{"text_format":"1","workbook":"xlsx","n_sheets":15,"sheets":["Standing Data","Accountant's Report","Fin.Return - SOFA","Fin.Return - BS","Fin.Return - Other Notes","CoPty.Return","Subsidiaries","Bench.Return ","Land and Property","CP IDs","LA CPID Look up","Reference","NumData","ChaData","Change log"],"not_rendered":{"charts":0,"images":0,"macros":1,"external_links":1,"defined_names":40,"comments":0,"pivot_tables":1},"unopened":[],"bounds":{"document_bytes":16777216,"sheet_cells":100000,"rows_first":2000,"rows_last":500,"rows_between":2000,"halvings":0,"cell_chars":16384,"cell_head_chars":4096},"cells_cut":0,"cells_raw":0,"read":"whole","date_system":"1900"}

{"sheet":"Standing Data","index":0,"n_rows":189,"n_cols":30,"rows_kept":189,"cut":false,"hidden":false,"merged":[[102,8,102,10],[103,8,103,10],[111,8,111,10],[81,8,81,10],[62,8,62,10],[86,8,86,10],[87,8,87,10],[65,8,65,10],[66,8,66,10],[85,8,85,10],[63,8,63,10],[64,8,64,10],[75,8,75,10],[67,8,67,10],[68,8,68,10],[25,0,25,1],[89,8,89,10],[90,8,90,10],[104,8,104,10],[116,8,116,10],[37,5,37,7],[40,5,40,7],[51,8,51,10],[57,8,57,10],[58,8,58,10],[59,8,59,10],[31,0,31,1],[60,8,60,10],[34,5,34,7],[46,8,46,10],[47,8,47,10],[54,8,54,10],[55,8,55,10],[48,8,48,10],[49,8,49,10],[78,8,78,10],[79,8,79,10],[80,8,80,10],[52,8,52,10],[50,8,50,10],[162,3,162,4],[134,8,134,10],[135,8,135,10],[126,8,126,10],[127,8,127,10],[69,8,69,10],[70,8,70,10],[71,8,71,10],[77,8,77,10],[53,8,53,10],[76,8,76,10],[91,8,91,10],[82,8,82,10],[83,8,83,10],[84,8,84,10],[61,8,61,10],[72,8,72,10],[73,8,73,10],[74,8,74,10],[56,8,56,10],[158,4,158,5],[159,4,159,5],[160,4,160,5],[171,0,171,4],[172,0,172,4],[174,1,174,3],[179,1,179,3],[175,0,175,3],[177,1,177,3],[2,5,2,9],[47,0,51,1],[146,8,146,10],[139,8,139,10],[140,8,140,10],[141,8,141,10],[142,8,142,10],[143,8,143,10],[136,8,136,10],[137,8,137,10],[138,8,138,10],[144,8,144,10],[145,8,145,10],[131,8,131,10],[132,8,132,10],[133,8,133,10],[28,0,28,1],[101,8,101,10],[152,0,153,1],[117,8,117,10],[118,8,118,10],[119,8,119,10],[120,8,120,10],[121,8,121,10],[108,8,108,10],[109,8,109,10],[110,8,110,10],[112,8,112,10],[113,8,113,10],[114,8,114,10],[124,8,124,10],[147,8,147,10],[171,7,171,12],[148,0,150,1],[92,8,92,10],[96,8,96,10],[97,8,97,10],[98,8,98,10],[88,8,88,10],[99,8,99,10],[100,8,100,10],[93,8,93,10],[94,8,94,10],[95,8,95,10],[165,3,165,4],[122,8,122,10],[123,8,123,10],[125,8,125,10],[170,0,170,4],[115,8,115,10],[106,8,106,10],[107,8,107,10],[105,8,105,10],[128,8,128,10],[129,8,129,10],[130,8,130,10]]}
["Accounts Return March 2016 - Standing Data"]
[]
["Academy Trust company name"]
[null,null,null,"Enter company name in the cell above",null,"If the Academy Trust has changed its name in the period please enter the previous name in the cell above"]
[]
["Period end",null,null,"2016-03-31"]
[null,null,null,"Select from drop-down box in the cell above"]
[]
["Academy UPIN"]
[null,null,null,"Enter UPIN or \"Multiple\" if MAT"]
[]
["Academy Trusts Trading Name",null,null,{"$f":"VLOOKUP(D$9,Reference!O8:P5603,2,FALSE)","v":{"$error":"#N/A"}},null,null,null,null,null,null,null,null,null,null,null,null,null,null,null,null,null,null,null,null,null,null,null,"Check for number",null,{"$f":"IF(ISERROR(D9),\"XXXXXX\",IF(OR(D9=\"Multiple\",D9=\"000000\"),IF(F9<>\"\",F9,\"XXXXXX\"),D9))","v":0}]
[null,null,null,"Trading name will populate automatically in the cell above",null,"If pre-populated name is incorrect please enter the correct name in the cell above",null,null,null,null,null,null,null,null,null,null,null,null,null,null,null,null,null,null,null,null,null,"Random numner",null,{"$f":"IF(AD12<>\"XXXXXX\",\"\",IF(D14<>\"Type number here\",D14,INT(RAND()*100000000)))","v":""}]
["Trust's company number",null,null,"Type number here"]
[null,null,null,"Enter company's registration number in the cell above"]
[]
["Conversion date",null,null,{"$f":"VLOOKUP($D$9,Reference!O8:Q5603,3,FALSE)","v":{"$error":"#N/A"}},null,null,null,null,null,null,null,null,null,null,null,null,null,null,null,null,null,null,null,null,null,null,null,"File name to save",null,{"$f":"IF(AD13=\"\",AD12,AD12&\" - \"&AD13)","v":0}]
[null,null,null,"Date will populate automatically in the cell above",null,"If pre-populated date is incorrect please enter the correct date in the cell above"]
[]
["Incorporation date"]
[null,null,null,"Enter company's incorporation date in the cell above"]
[]
["Period length"]
[null,null,null,"Select from drop-down box in the cell above"]
[]
["Status of the 2015 financial statements' audit opinion",null,null,"N/A - 31 March"]
[null,null,null,"Select from drop-down box in the cell above"]
[]
["Did the Academy Trust submit  a EFA financial return as at 31 March 2012",null,null,"No"]
[null,null,null,"Select from drop-down box in the cell above"]
[]
["Conclusion of 2015 assurance report on regularity",null,null,"N/A - 31 March"]
[null,null,null,"Select from drop-down box in the cell above"]
[]
["Regional Schools Commissioner",null,null,{"$f":"VLOOKUP($D$9,Reference!O8:T5603,6,FALSE)","v":{"$error":"#N/A"}}]
[null,null,null,"Region will populate automatically above",null,"If pre-populated region is incorrect please enter the correct region in the cell above"]
[]
["Ex-local authority",null,null,{"$f":"VLOOKUP($D$9,Reference!O8:T5603,4,FALSE)","v":{"$error":"#N/A"}}]
[null,null,null,"Local authority will populate automatically above",null,"If pre-populated local authority is incorrect please enter the correct local authority in the cell above"]
[]
["Academy type"]
[null,null,null,"Select from drop-down box in the cell above",null,"If 'Other' please enter the correct academy type in the cell above"]
[]
["Multi-academy Trust",null,null,{"$f":"IF(D12=\"Multi-academy trust\",\"Yes\",\"No\")","v":{"$error":"#N/A"}}]
[null,null,null,"Trust status will populate automatically above"]
[]
[null,null,null,"Multi-academy Trust\nacademy school names","Academy UPIN","Exisiting, newly converted, transferred in or transferred out member","Date joined/left if in period",null,"Correct Academy name"]
["Academies included within this Accounts Return submitted by a Multi-academy Trust",null,null,{"$f":"IFERROR(VLOOKUP(E48,Reference!$O$10:$P$5603,2,FALSE),\"\")","v":""}]
[null,null,null,{"$f":"IFERROR(VLOOKUP(E49,Reference!$O$10:$P$5603,2,FALSE),\"\")","v":""}]
[null,null,null,{"$f":"IFERROR(VLOOKUP(E50,Reference!$O$10:$P$5603,2,FALSE),\"\")","v":""}]
[null,null,null,{"$f":"IFERROR(VLOOKUP(E51,Reference!$O$10:$P$5603,2,FALSE),\"\")","v":""}]
[null,null,null,{"$f":"IFERROR(VLOOKUP(E52,Reference!$O$10:$P$5603,2,FALSE),\"\")","v":""}]
[null,null,null,{"$f":"IFERROR(VLOOKUP(E53,Reference!$O$10:$P$5603,2,FALSE),\"\")","v":""}]
[null,null,null,{"$f":"IFERROR(VLOOKUP(E54,Reference!$O$10:$P$5603,2,FALSE),\"\")","v":""}]
[null,null,null,{"$f":"IFERROR(VLOOKUP(E55,Reference!$O$10:$P$5603,2,FALSE),\"\")","v":""}]
[null,null,null,{"$f":"IFERROR(VLOOKUP(E56,Reference!$O$10:$P$5603,2,FALSE),\"\")","v":""}]
[null,null,null,{"$f":"IFERROR(VLOOKUP(E57,Reference!$O$10:$P$5603,2,FALSE),\"\")","v":""}]
[null,null,null,{"$f":"IFERROR(VLOOKUP(E58,Reference!$O$10:$P$5603,2,FALSE),\"\")","v":""}]
[null,null,null,{"$f":"IFERROR(VLOOKUP(E59,Reference!$O$10:$P$5603,2,FALSE),\"\")","v":""}]
[null,null,null,{"$f":"IFERROR(VLOOKUP(E60,Reference!$O$10:$P$5603,2,FALSE),\"\")","v":""}]
[null,null,null,{"$f":"IFERROR(VLOOKUP(E61,Reference!$O$10:$P$5603,2,FALSE),\"\")","v":""}]
[null,null,null,{"$f":"IFERROR(VLOOKUP(E62,Reference!$O$10:$P$5603,2,FALSE),\"\")","v":""}]
[null,null,null,{"$f":"IFERROR(VLOOKUP(E63,Reference!$O$10:$P$5603,2,FALSE),\"\")","v":""}]
[null,null,null,{"$f":"IFERROR(VLOOKUP(E64,Reference!$O$10:$P$5603,2,FALSE),\"\")","v":""}]
[null,null,null,{"$f":"IFERROR(VLOOKUP(E65,Reference!$O$10:$P$5603,2,FALSE),\"\")","v":""}]
[null,null,null,{"$f":"IFERROR(VLOOKUP(E66,Reference!$O$10:$P$5603,2,FALSE),\"\")","v":""}]
[null,null,null,{"$f":"IFERROR(VLOOKUP(E67,Reference!$O$10:$P$5603,2,FALSE),\"\")","v":""}]
[null,null,null,{"$f":"IFERROR(VLOOKUP(E68,Reference!$O$10:$P$5603,2,FALSE),\"\")","v":""}]
[null,null,null,{"$f":"IFERROR(VLOOKUP(E69,Reference!$O$10:$P$5603,2,FALSE),\"\")","v":""}]
[null,null,null,{"$f":"IFERROR(VLOOKUP(E70,Reference!$O$10:$P$5603,2,FALSE),\"\")","v":""}]
[null,null,null,{"$f":"IFERROR(VLOOKUP(E71,Reference!$O$10:$P$5603,2,FALSE),\"\")","v":""}]
[null,null,null,{"$f":"IFERROR(VLOOKUP(E72,Reference!$O$10:$P$5603,2,FALSE),\"\")","v":""}]
[null,null,null,{"$f":"IFERROR(VLOOKUP(E73,Reference!$O$10:$P$5603,2,FALSE),\"\")","v":""}]
[null,null,null,{"$f":"IFERROR(VLOOKUP(E74,Reference!$O$10:$P$5603,2,FALSE),\"\")","v":""}]
[null,null,null,{"$f":"IFERROR(VLOOKUP(E75,Reference!$O$10:$P$5603,2,FALSE),\"\")","v":""}]
[null,null,null,{"$f":"IFERROR(VLOOKUP(E76,Reference!$O$10:$P$5603,2,FALSE),\"\")","v":""}]
[null,null,null,{"$f":"IFERROR(VLOOKUP(E77,Reference!$O$10:$P$5603,2,FALSE),\"\")","v":""}]
[null,null,null,{"$f":"IFERROR(VLOOKUP(E78,Reference!$O$10:$P$5603,2,FALSE),\"\")","v":""}]
[null,null,null,{"$f":"IFERROR(VLOOKUP(E79,Reference!$O$10:$P$5603,2,FALSE),\"\")","v":""}]
[null,null,null,{"$f":"IFERROR(VLOOKUP(E80,Reference!$O$10:$P$5603,2,FALSE),\"\")","v":""}]
[null,null,null,{"$f":"IFERROR(VLOOKUP(E81,Reference!$O$10:$P$5603,2,FALSE),\"\")","v":""}]
[null,null,null,{"$f":"IFERROR(VLOOKUP(E82,Reference!$O$10:$P$5603,2,FALSE),\"\")","v":""}]
[null,null,null,{"$f":"IFERROR(VLOOKUP(E83,Reference!$O$10:$P$5603,2,FALSE),\"\")","v":""}]
[null,null,null,{"$f":"IFERROR(VLOOKUP(E84,Reference!$O$10:$P$5603,2,FALSE),\"\")","v":""}]
[null,null,null,{"$f":"IFERROR(VLOOKUP(E85,Reference!$O$10:$P$5603,2,FALSE),\"\")","v":""}]
[null,null,null,{"$f":"IFERROR(VLOOKUP(E86,Reference!$O$10:$P$5603,2,FALSE),\"\")","v":""}]
[null,null,null,{"$f":"IFERROR(VLOOKUP(E87,Reference!$O$10:$P$5603,2,FALSE),\"\")","v":""}]
[null,null,null,{"$f":"IFERROR(VLOOKUP(E88,Reference!$O$10:$P$5603,2,FALSE),\"\")","v":""}]
[null,null,null,{"$f":"IFERROR(VLOOKUP(E89,Reference!$O$10:$P$5603,2,FALSE),\"\")","v":""}]
[null,null,null,{"$f":"IFERROR(VLOOKUP(E90,Reference!$O$10:$P$5603,2,FALSE),\"\")","v":""}]
[null,null,null,{"$f":"IFERROR(VLOOKUP(E91,Reference!$O$10:$P$5603,2,FALSE),\"\")","v":""}]
[null,null,null,{"$f":"IFERROR(VLOOKUP(E92,Reference!$O$10:$P$5603,2,FALSE),\"\")","v":""}]
[null,null,null,{"$f":"IFERROR(VLOOKUP(E93,Reference!$O$10:$P$5603,2,FALSE),\"\")","v":""}]
[null,null,null,{"$f":"IFERROR(VLOOKUP(E94,Reference!$O$10:$P$5603,2,FALSE),\"\")","v":""}]
[null,null,null,{"$f":"IFERROR(VLOOKUP(E95,Reference!$O$10:$P$5603,2,FALSE),\"\")","v":""}]
[null,null,null,{"$f":"IFERROR(VLOOKUP(E96,Reference!$O$10:$P$5603,2,FALSE),\"\")","v":""}]
[null,null,null,{"$f":"IFERROR(VLOOKUP(E97,Reference!$O$10:$P$5603,2,FALSE),\"\")","v":""}]
[null,null,null,{"$f":"IFERROR(VLOOKUP(E98,Reference!$O$10:$P$5603,2,FALSE),\"\")","v":""}]
[null,null,null,{"$f":"IFERROR(VLOOKUP(E99,Reference!$O$10:$P$5603,2,FALSE),\"\")","v":""}]
[null,null,null,{"$f":"IFERROR(VLOOKUP(E100,Reference!$O$10:$P$5603,2,FALSE),\"\")","v":""}]
[null,null,null,{"$f":"IFERROR(VLOOKUP(E101,Reference!$O$10:$P$5603,2,FALSE),\"\")","v":""}]
[null,null,null,{"$f":"IFERROR(VLOOKUP(E102,Reference!$O$10:$P$5603,2,FALSE),\"\")","v":""}]
[null,null,null,{"$f":"IFERROR(VLOOKUP(E103,Reference!$O$10:$P$5603,2,FALSE),\"\")","v":""}]
[null,null,null,{"$f":"IFERROR(VLOOKUP(E104,Reference!$O$10:$P$5603,2,FALSE),\"\")","v":""}]
[null,null,null,{"$f":"IFERROR(VLOOKUP(E105,Reference!$O$10:$P$5603,2,FALSE),\"\")","v":""}]
[null,null,null,{"$f":"IFERROR(VLOOKUP(E106,Reference!$O$10:$P$5603,2,FALSE),\"\")","v":""}]
[null,null,null,{"$f":"IFERROR(VLOOKUP(E107,Reference!$O$10:$P$5603,2,FALSE),\"\")","v":""}]
[null,null,null,{"$f":"IFERROR(VLOOKUP(E108,Reference!$O$10:$P$5603,2,FALSE),\"\")","v":""}]
[null,null,null,{"$f":"IFERROR(VLOOKUP(E109,Reference!$O$10:$P$5603,2,FALSE),\"\")","v":""}]
[null,null,null,{"$f":"IFERROR(VLOOKUP(E110,Reference!$O$10:$P$5603,2,FALSE),\"\")","v":""}]
[null,null,null,{"$f":"IFERROR(VLOOKUP(E111,Reference!$O$10:$P$5603,2,FALSE),\"\")","v":""}]
[null,null,null,{"$f":"IFERROR(VLOOKUP(E112,Reference!$O$10:$P$5603,2,FALSE),\"\")","v":""}]
[null,null,null,{"$f":"IFERROR(VLOOKUP(E113,Reference!$O$10:$P$5603,2,FALSE),\"\")","v":""}]
[null,null,null,{"$f":"IFERROR(VLOOKUP(E114,Reference!$O$10:$P$5603,2,FALSE),\"\")","v":""}]
[null,null,null,{"$f":"IFERROR(VLOOKUP(E115,Reference!$O$10:$P$5603,2,FALSE),\"\")","v":""}]
[null,null,null,{"$f":"IFERROR(VLOOKUP(E116,Reference!$O$10:$P$5603,2,FALSE),\"\")","v":""}]
[null,null,null,{"$f":"IFERROR(VLOOKUP(E117,Reference!$O$10:$P$5603,2,FALSE),\"\")","v":""}]
[null,null,null,{"$f":"IFERROR(VLOOKUP(E118,Reference!$O$10:$P$5603,2,FALSE),\"\")","v":""}]
[null,null,null,{"$f":"IFERROR(VLOOKUP(E119,Reference!$O$10:$P$5603,2,FALSE),\"\")","v":""}]
[null,null,null,{"$f":"IFERROR(VLOOKUP(E120,Reference!$O$10:$P$5603,2,FALSE),\"\")","v":""}]
[null,null,null,{"$f":"IFERROR(VLOOKUP(E121,Reference!$O$10:$P$5603,2,FALSE),\"\")","v":""}]
[null,null,null,{"$f":"IFERROR(VLOOKUP(E122,Reference!$O$10:$P$5603,2,FALSE),\"\")","v":""}]
[null,null,null,{"$f":"IFERROR(VLOOKUP(E123,Reference!$O$10:$P$5603,2,FALSE),\"\")","v":""}]
[null,null,null,{"$f":"IFERROR(VLOOKUP(E124,Reference!$O$10:$P$5603,2,FALSE),\"\")","v":""}]
[null,null,null,{"$f":"IFERROR(VLOOKUP(E125,Reference!$O$10:$P$5603,2,FALSE),\"\")","v":""}]
[null,null,null,{"$f":"IFERROR(VLOOKUP(E126,Reference!$O$10:$P$5603,2,FALSE),\"\")","v":""}]
[null,null,null,{"$f":"IFERROR(VLOOKUP(E127,Reference!$O$10:$P$5603,2,FALSE),\"\")","v":""}]
[null,null,null,{"$f":"IFERROR(VLOOKUP(E128,Reference!$O$10:$P$5603,2,FALSE),\"\")","v":""}]
[null,null,null,{"$f":"IFERROR(VLOOKUP(E129,Reference!$O$10:$P$5603,2,FALSE),\"\")","v":""}]
[null,null,null,{"$f":"IFERROR(VLOOKUP(E130,Reference!$O$10:$P$5603,2,FALSE),\"\")","v":""}]
[null,null,null,{"$f":"IFERROR(VLOOKUP(E131,Reference!$O$10:$P$5603,2,FALSE),\"\")","v":""}]
[null,null,null,{"$f":"IFERROR(VLOOKUP(E132,Reference!$O$10:$P$5603,2,FALSE),\"\")","v":""}]
[null,null,null,{"$f":"IFERROR(VLOOKUP(E133,Reference!$O$10:$P$5603,2,FALSE),\"\")","v":""}]
[null,null,null,{"$f":"IFERROR(VLOOKUP(E134,Reference!$O$10:$P$5603,2,FALSE),\"\")","v":""}]
[null,null,null,{"$f":"IFERROR(VLOOKUP(E135,Reference!$O$10:$P$5603,2,FALSE),\"\")","v":""}]
[null,null,null,{"$f":"IFERROR(VLOOKUP(E136,Reference!$O$10:$P$5603,2,FALSE),\"\")","v":""}]
[null,null,null,{"$f":"IFERROR(VLOOKUP(E137,Reference!$O$10:$P$5603,2,FALSE),\"\")","v":""}]
[null,null,null,{"$f":"IFERROR(VLOOKUP(E138,Reference!$O$10:$P$5603,2,FALSE),\"\")","v":""}]
[null,null,null,{"$f":"IFERROR(VLOOKUP(E139,Reference!$O$10:$P$5603,2,FALSE),\"\")","v":""}]
[null,null,null,{"$f":"IFERROR(VLOOKUP(E140,Reference!$O$10:$P$5603,2,FALSE),\"\")","v":""}]
[null,null,null,{"$f":"IFERROR(VLOOKUP(E141,Reference!$O$10:$P$5603,2,FALSE),\"\")","v":""}]
[null,null,null,{"$f":"IFERROR(VLOOKUP(E142,Reference!$O$10:$P$5603,2,FALSE),\"\")","v":""}]
[null,null,null,{"$f":"IFERROR(VLOOKUP(E143,Reference!$O$10:$P$5603,2,FALSE),\"\")","v":""}]
[null,null,null,{"$f":"IFERROR(VLOOKUP(E144,Reference!$O$10:$P$5603,2,FALSE),\"\")","v":""}]
[null,null,null,{"$f":"IFERROR(VLOOKUP(E145,Reference!$O$10:$P$5603,2,FALSE),\"\")","v":""}]
[null,null,null,{"$f":"IFERROR(VLOOKUP(E146,Reference!$O$10:$P$5603,2,FALSE),\"\")","v":""}]
[null,null,null,{"$f":"IFERROR(VLOOKUP(E147,Reference!$O$10:$P$5603,2,FALSE),\"\")","v":""}]
[null,null,null,null,"Please input the academy UPIN","Select from drop-down box in the cells above",null,null,"If pre-populated name is incorrect please enter the correct name in the cell above"]
["Has the Trust had subsidiaries during the period?"]
[]
[null,null,null,"No"]
[]
["Has the subsidiaries tab been completed?"]
[null,null,null,"No",null,{"$f":"IF(D151=\"Yes\", IF(D154=\"No\",\"Subsiduaries tab must be completed\",\"\"),\"\")","v":""}]
[]
["PREPARER DETAILS"]
["Contact details of person completing the form:"]
[" (please enter these details, so EFA can contact you if there are any questions)"]
["Contact Name:     "]
["Contact Telephone Number:     "]
["Contact E-mail Address:     "]
[]
["Professional accounting advisors"]
[null,null,null,"Please enter the name of the Trust's accounting advisors, if used, in the cell above"]
[]
["External auditors"]
[null,null,null,"Please enter the name of the Trust's external auditors, including office, in the cell above"]
[]
["ACADEMY TRUST DECLARATION"]
[]
["I confirm that those entries in the Accounts Return denoted as:"]
["·   Green cells have been prepared on a consistent basis (accounting policies and recognition & \n    valuation criteria) with those policies and criteria that will be used to prepare the academy trust’s full \n    audited statutory financial statements for the period.",null,null,null,null,null,null,"Navigation Links & Error Counts"]
["·   Amber and red cells have been properly extracted from the academy’s financial records and \n    presented within the Accounts Return in accordance with the guidance notes issued by the \n    Education Funding Agency."]
[null,null,null,null,null,null,null,"SoFA",{"$f":"COUNTIF('Fin.Return - SOFA'!D16:J59,\"Error*\")","v":0},"Balance Sheet",{"$f":"COUNTIF('Fin.Return - BS'!D16:H58,\"Error*\")","v":0},"Total Errors",{"$f":"I176+K176+M176+I178+K178+M178+I180+K180+M180+I174+K174+I182+K182+M182+I184","v":3}]
["Signed:   ","Please type name here",null,null,null,null,null,"SoFA notes"]
["Accounting Officer",null,null,null,null,null,null,"Income",{"$f":"COUNTIF('Fin.Return - SOFA'!D65:J166,\"Error*\")","v":0},"Expenses",{"$f":"COUNTIF('Fin.Return - SOFA'!D169:J352,\"Error*\")","v":0},"Boarding",{"$f":"COUNTIF('Fin.Return - SOFA'!D354:H414,\"Error*\")","v":0}]
[null,null,null,null,null,null,null,"Balance sheet notes"]
["E-mail address","Please type e-mail here",null,null,null,null,null,"Fixed Assets",{"$f":"COUNTIF('Fin.Return - BS'!D62:P191,\"Error*\")","v":0},"Current Assets",{"$f":"COUNTIF('Fin.Return - BS'!D193:M266,\"Error*\")","v":0},"Liabilities",{"$f":"COUNTIF('Fin.Return - BS'!D268:K411,\"Error*\")","v":0}]
[null,null,null,null,null,null,null,"Other Notes"]
["Date: ",null,null,null,null,null,null,"Funds",{"$f":"COUNTIF('Fin.Return - Other Notes'!D15:L134,\"Error*\")","v":0},"Pensions & Commit'ts",{"$f":"COUNTIF('Fin.Return - Other Notes'!D136:N158,\"Error*\")+COUNTIF('Fin.Return - Other Notes'!D221:AV264,\"Error*\")+COUNTIF('Fin.Return - Other Notes'!D345:AV472, \"Error*\")","v":0},"PFI & Later Notes",{"$f":"COUNTIF('Fin.Return - Other Notes'!D474:N657,\"Error*\")","v":3}]
[null,null,null,null,null,null,null,"Other Tabs"]
[null,null,null,null,null,null,null,"Counterparty",{"$f":"COUNTIF(CoPty.Return!A15:AV221,\"Error*\")","v":0},"Subsidiaries",{"$f":"COUNTIF(Subsidiaries!C11:N24,\"Error*\")","v":0},"Benchmarking",0]
[]
[null,null,null,null,null,null,null,"Land and Property",{"$f":"COUNTIF('Land and Property'!C14:L112,\"Error*\")+COUNTIF('Land and Property'!K3:K5,\"error*\")","v":0}]
[]
[]
[]
[null,"Version date",null,"2016-03-31"]
[null,null,null,"v1"]

{"sheet":"Accountant's Report","index":1,"n_rows":27,"n_cols":1,"rows_kept":27,"cut":false,"hidden":true,"merged":[]}
["INDEPENDENT REPORTING ACCOUNTANT’S REPORT ON THE ACCOUNTS RETURN TO [ACADEMY TRUST NAME] FOR THE [YEAR/PERIOD] ENDED 31st AUGUST 2015"]
[]
["We have examined the Accounts Return set out in the attached file, together with the audited statutory financial statements of [academy trust name] for the [period/year] ended 31 August 2015 prepared under section 396 of the Companies Act 2006, and the applicable framework comprising the Charities SORP and the Academies Accounts Direction 2014 to 2015."]
[]
["This report is made solely to [academy trust name] in accordance with our instructions.  Our work has been undertaken so that we might state to [academy trust name] those matters we are required to state to them in an independent reporting accountant’s report and for no other purpose.  To the fullest extent permitted by law, we do not accept or assume responsibility to anyone other than [academy trust name], for our work, for this report, or for the conclusions we have drawn."]
[]
["Respective responsibilities of the [trustees]/[directors] and independent reporting accountant"]
[]
["The [trustees]/[directors] are responsible for preparing the Accounts Return, in accordance with the requirements set out in the guidance notes issued by the Education Funding Agency, and the audited statutory financial statements."]
[]
["It is our responsibility to report to you our conclusion as to whether:"]
["·           information in the Accounts Return marked as ‘sourced directly from financial statements’ is consistent with [academy trust name]’s audited statutory financial statements for the period; and"]
["·           other information provided in the Accounts Return has been properly extracted from [academy trust name]’s financial records and presented in the Accounts Return in accordance with the guidance notes issued by the Education Funding Agency."]
[]
["Scope"]
["As a practising member firm of the [Institute of Chartered Accountants in England and Wales or other relevant accounting body], we are subject to its ethical and other professional requirements which are detailed at [www.icaew.com/en/members/regulations-standards-and-guidance or equivalent link for other bodies]."]
[]
["We have not been instructed to carry out an audit or a review of the Accounts Return or of the underlying accounting records from which the Accounts Return is prepared. For this reason, we have not verified the accuracy or completeness of the accounting records or information and explanations you have given to us. Consequently the procedures undertaken do not provide all the evidence that would be required in an audit and, therefore, we do not express an audit opinion on the information presented in the Accounts Return nor do we express an audit opinion in respect of the underlying accounting records from which the Accounts Return is prepared."]
[]
["Conclusion"]
[]
["It is our conclusion that the information marked as ‘sourced directly from the financial statements’ in the Accounts Return is consistent with the audited statutory financial statements of [academy trust name] for the [period/year] ended 31 August 2015 and other information provided in the Accounts Return has been properly extracted from [academy trust name]’s financial records and presented in [academy trust name]’s Accounts Return in accordance with the guidance notes issued by the Education Funding Agency."]
[]
[]
["Auditor LLP"]
["[Office]"]
["[Date]"]

{"sheet":"Fin.Return - SOFA","index":2,"n_rows":413,"n_cols":28,"rows_kept":413,"cut":false,"hidden":false,"merged":[[2,8,2,13],[298,1,298,2],[10,16,10,21],[10,3,10,6],[10,22,10,27],[61,0,61,13],[13,0,13,10],[53,1,53,2],[54,1,54,2]]}
["Accounts Return March 2016 - Financial Return (Statement of Financial Activity)"]
[]
["Trust:",null,{"$f":"'Standing Data'!$D$3","v":0},null,null,null,null,"% of cells","Navigation Links & Error Counts"]
[]
["Period end:",null,{"$f":"'Standing Data'!$D$6","v":"2016-03-31"},null,null,null,"Sourced directly from Financial Statements",{"$f":"Q13/V13","v":0.57002457002457008},"SoFA",{"$f":"COUNTIF(A16:K59,\"Error*\")","v":0},"Balance Sheet",null,"Notes to the F.S.",{"$f":"J7+L7+N7+J9+L9+N9+J11+L11+N11","v":0}]
[]
["Company No.:",null,{"$f":"'Standing Data'!D14","v":"Type number here"},null,null,null,"Additional to Financial Statements, prepared on a similar basis",{"$f":"S13/V13","v":0.31695331695331697},"Income",{"$f":"COUNTIF(A66:J167,\"Error*\")","v":0},"Expenses",{"$f":"COUNTIF(A169:J352,\"Error*\")","v":0},"Boarding",{"$f":"COUNTIF(A354:H414,\"Error*\")","v":0}]
[]
["Academy UPIN:",null,{"$f":"IF(AND(OR('Standing Data'!D9=\"Multiple\",'Standing Data'!D9=\"Federation\"),'Standing Data'!M48=0),'Standing Data'!E48,IF('Standing Data'!M48<>0,'Standing Data'!M48,IF(OR('Standing Data'!D9=\"Other\",'Standing Data'!F9<>\"\"),'Standing Data'!F9,'Standing Data'!D12)))","v":{"$error":"#N/A"}},null,null,null,"Additional to Financial Statements, prepared on a different/new basis",{"$f":"T13/V13","v":0},"Fixed Assets",null,"Current Assets",null,"Liabilities"]
[null,null,"Above details will populate automatically"]
[null,null,null,"Cells populate automatically from elsewhere in the Return",null,null,null,{"$f":"U13/V13","v":0.11302211302211303},"Funds",null,"Pensions & Commit'ts",null,"PFI & Later Notes",null,null,null,"Possible Cells",null,null,null,null,null,"Completed Cells"]
["FINANCIAL RETURN",null,null,"Error check cells",null,"HELP",null,null,null,null,null,null,null,null,"DESTINATION",null,"Green","Blue","Amber","Red","Grey","Total","Green","Blue","Amber","Red","Grey","Total"]
[null,null,null,null,null,null,null,null,null,null,null,null,null,null,null,null,{"$f":"SUM(Q14:Q1361)","v":232},null,{"$f":"SUM(S14:S1361)","v":129},{"$f":"SUM(T14:T1361)","v":0},{"$f":"SUM(U14:U1361)","v":46},{"$f":"SUM(Q13:U13)","v":407},{"$f":"SUM(W14:W1361)","v":15},null,{"$f":"SUM(Y14:Y1361)","v":0},{"$f":"SUM(Z14:Z1361)","v":0},{"$f":"SUM(AA14:AA1361)","v":3},{"$f":"SUM(W13:AA13)","v":18}]
["STATEMENT OF FINANCIAL ACTIVITIES"]
[]
[null,null,null,null,"Total",null,"Unrestricted\nFunds","Restricted\nFunds","Restricted \nFixed Asset \nFunds","Endowment\nFunds",null,"Lower limit","Upper limit "]
["                                                  ",null,null,null,"£000",null,"£000","£000","£000","£000",null,"£000","£000"]
["Income and Endowments from:"]
[null,null,"Donations",null,{"$f":"SUM(G19:J19)","v":0},null,null,null,null,null,null,-750000,750000,null,"Consol, SoCNE",null,4,null,null,null,null,null,{"$f":"COUNTA(G19:J19)","v":0}]
[null,null,"Transfer on conversion",null,{"$f":"SUM(G20:J20)","v":0},null,null,null,null,null,null,{"$f":"L19","v":-750000},{"$f":"M19","v":750000},null,"Consol, SoCNE",null,4,null,null,null,null,null,{"$f":"COUNTA(G20:J20)","v":0}]
[null,null,"Transfers on existing academies moving into the trust",null,{"$f":"SUM(G21:J21)","v":0},null,null,null,null,null,null,{"$f":"L20","v":-750000},{"$f":"M20","v":750000}]
[null,null,"Activities for generating funds",null,{"$f":"SUM(G22:J22)","v":0},null,null,null,null,null,null,{"$f":"L20","v":-750000},{"$f":"M20","v":750000},null,"Consol, SoCNE",null,4,null,null,null,null,null,{"$f":"COUNTA(G22:J22)","v":0}]
[null,null,"Investment income",null,{"$f":"SUM(G23:J23)","v":0},null,null,null,null,null,null,{"$f":"L22","v":-750000},{"$f":"M22","v":750000},null,"Consol, SoCNE",null,4,null,null,null,null,null,{"$f":"COUNTA(G23:J23)","v":0}]
[null,"Charitable activities:"]
[null,null,"Funding for the academy's educational operations",null,{"$f":"SUM(G25:J25)","v":0},null,null,null,null,null,null,{"$f":"L23","v":-750000},{"$f":"M23","v":750000},null,"Consol, SoCNE",null,4,null,null,null,null,null,{"$f":"COUNTA(G25:J25)","v":0}]
[null,null,"Provision of boarding activities",null,{"$f":"SUM(G26:J26)","v":0},null,null,null,null,null,null,{"$f":"L25","v":-750000},{"$f":"M25","v":750000},null,"Consol, SoCNE",null,4,null,null,null,null,null,{"$f":"COUNTA(G26:J26)","v":0}]
[]
["Total",null,null,null,{"$f":"SUM(E18:E27)","v":0},null,{"$f":"SUM(G18:G27)","v":0},{"$f":"SUM(H18:H27)","v":0},{"$f":"SUM(I18:I27)","v":0},{"$f":"SUM(J18:J27)","v":0}]
["Expenditure on:"]
[null,"Raising funds:"]
[null,null,"Costs of generating voluntary income",null,{"$f":"SUM(G31:J31)","v":0},null,null,null,null,null,null,{"$f":"L26","v":-750000},{"$f":"M26","v":750000},null,"Consol, SoCNE",null,4,null,null,null,null,null,{"$f":"COUNTA(G31:J31)","v":0}]
[null,null,"Transfers on existing academies moving out of the trust",null,{"$f":"SUM(G32:J32)","v":0},null,null,null,null,null,null,{"$f":"+(L31)","v":-750000},{"$f":"+(M31)","v":750000}]
[null,null,"Fund raising income",null,{"$f":"SUM(G33:J33)","v":0},null,null,null,null,null,null,{"$f":"L31","v":-750000},{"$f":"M31","v":750000},null,"Consol, SoCNE",null,4,null,null,null,null,null,{"$f":"COUNTA(G33:J33)","v":0}]
[null,"Charitable activities:"]
[null,null,"Academy's educational operations",null,{"$f":"SUM(G35:J35)","v":0},null,null,null,null,null,null,{"$f":"L33","v":-750000},{"$f":"M33","v":750000},null,"Consol, SoCNE",null,4,null,null,null,null,null,{"$f":"COUNTA(G35:J35)","v":0}]
[null,null,"Provision of boarding activities",null,{"$f":"SUM(G36:J36)","v":0},null,null,null,null,null,null,{"$f":"L35","v":-750000},{"$f":"M35","v":750000},null,"Consol, SoCNE",null,4,null,null,null,null,null,{"$f":"COUNTA(G36:J36)","v":0}]
[null,"Governance costs",null,null,{"$f":"SUM(G37:J37)","v":0},null,null,null,null,null,null,{"$f":"L36","v":-750000},{"$f":"M36","v":750000},null,"Consol, SoCNE",null,4,null,null,null,null,null,{"$f":"COUNTA(G37:J37)","v":0}]
[]
["Total",null,null,null,{"$f":"SUM(E31:E38)","v":0},null,{"$f":"SUM(G31:G38)","v":0},{"$f":"SUM(H31:H38)","v":0},{"$f":"SUM(I31:I38)","v":0},{"$f":"SUM(J31:J38)","v":0}]
["Net incoming/(outgoing) resources before transfers",null,null,null,{"$f":"E28-E39","v":0},null,{"$f":"G28-G39","v":0},{"$f":"H28-H39","v":0},{"$f":"I28-I39","v":0},{"$f":"J28-J39","v":0}]
["Gross transfers between funds",null,null,{"$f":"IF(E41<>0,\"Error - should be nil\",\"\")","v":""},{"$f":"SUM(G41:J41)","v":0},null,null,null,null,null,null,{"$f":"L37","v":-750000},{"$f":"M37","v":750000},null,"Consol, SoCNE",null,4,null,null,null,null,null,{"$f":"COUNTA(G41:J41)","v":0}]
[]
["Net income/(expenditure) for the period",null,null,null,{"$f":"SUM(E40:E41)","v":0},null,{"$f":"SUM(G40:G41)","v":0},{"$f":"SUM(H40:H41)","v":0},{"$f":"SUM(I40:I41)","v":0},{"$f":"SUM(J40:J41)","v":0}]
["OTHER RECOGNISED GAINS AND LOSSES"]
[null,"Actuarial gains/(losses) on defined benefit pension schemes",null,{"$f":"IF(E45<>'Fin.Return - Other Notes'!E174,\"Error - imbalance with note\",\"\")","v":""},{"$f":"SUM(G45:H45)","v":0},null,null,null,null,null,null,{"$f":"L41","v":-750000},{"$f":"M41","v":750000},null,"Consol, SoCNE",null,2,null,null,null,null,null,{"$f":"COUNTA(G45:H45)","v":0}]
[null,"Valuation gains/(losses) on tangible and intangible fixed assets",null,{"$f":"IF(E46<>('Fin.Return - BS'!E74+'Fin.Return - BS'!E84+'Fin.Return - BS'!E134-'Fin.Return - BS'!E144),\"Error - not equal to tangible and intangible fixed asset notes\",\"\")","v":""},{"$f":"SUM(G46:J46)","v":0},null,null,null,null,null,null,{"$f":"L45","v":-750000},750000,null,"Consol, SoCNE",null,4,null,null,null,null,null,{"$f":"COUNTA(G46:J46)","v":0}]
[null,"Valuation gains/(losses) on investment portfolio",null,{"$f":"IF(E47<>('Fin.Return - BS'!E251+'Fin.Return - BS'!E182),\"Error - not equal to fixed and current assets investment notes\",\"\")","v":""},{"$f":"SUM(G47:J47)","v":0},null,null,null,null,null,null,-750000,750000,null,"Consol, SoCNE",null,4,null,null,null,null,null,{"$f":"COUNTA(G47:J47)","v":0}]
[null,"Other",null,null,{"$f":"SUM(G48:J48)","v":0},null,null,null,null,null,null,-750000,750000,null,null,null,4,null,null,null,null,null,{"$f":"COUNTA(G48:J48)","v":0}]
[]
["NET MOVEMENT IN FUNDS",null,null,null,{"$f":"SUM(E43:E49)","v":0},null,{"$f":"SUM(G43:G49)","v":0},{"$f":"SUM(H43:H49)","v":0},{"$f":"SUM(I43:I49)","v":0},{"$f":"SUM(J43:J49)","v":0}]
["RECONCILIATION OF FUNDS"]
[null,"Funds brought forward",null,null,{"$f":"SUM(G52:J52)","v":0},null,{"$f":"'Fin.Return - BS'!E406","v":0},{"$f":"'Fin.Return - BS'!E390","v":0},{"$f":"'Fin.Return - BS'!E401","v":0},{"$f":"'Fin.Return - BS'!E404","v":0},null,{"$f":"L48","v":-750000},{"$f":"M48","v":750000},null,"Consol, SoCNE",null,0,null,null,null,4,null,{"$f":"COUNTA(G52:J52)","v":4}]
[null,"Funds obtained on conversion",null,null,{"$f":"SUM(G53:J53)","v":0},null,null,null,null,null,null,{"$f":"L52","v":-750000},750000,null,"Consol, SoCNE",null,4,null,null,null,null,null,{"$f":"COUNTA(G53:J53)","v":0}]
[null,"Funds obtained on existing academies transfering into the trust",null,null,{"$f":"SUM(G54:J54)","v":0},null,null,null,null,null,null,-750000,750000,null,null,null,4,null,null,null,null,null,{"$f":"COUNTA(G54:J54)","v":0}]
[null,"Funds disposed of on existing academies transferring out of the trust",null,null,{"$f":"SUM(G55:J55)","v":0},null,null,null,null,null,null,-750000,750000,null,null,null,4,null,null,null,null,null,0]
[null,"Net movement in funds",null,null,{"$f":"SUM(G56:J56)","v":0},null,{"$f":"G50","v":0},{"$f":"H50","v":0},{"$f":"I50","v":0},{"$f":"J50","v":0}]
[]
[null,"Funds carried forward",null,{"$f":"IF(E58<>'Fin.Return - BS'!G57,\"Error - with BS\",\"\")","v":""},{"$f":"SUM(E52:E57)","v":0},null,{"$f":"SUM(G52:G57)","v":0},{"$f":"SUM(H52:H57)","v":0},{"$f":"SUM(I52:I57)","v":0},{"$f":"SUM(J52:J57)","v":0}]
[null,null,null,null,null,null,{"$f":"IF(G58<>'Fin.Return - BS'!G55,\"Error - with BS\",\"\")","v":""},{"$f":"IF(H58<>SUM('Fin.Return - BS'!G48:G49),\"Error - with BS\",\"\")","v":""},{"$f":"IF(I58<>'Fin.Return - BS'!G47,\"Error - with BS\",\"\")","v":""},{"$f":"IF(J58<>'Fin.Return - BS'!G45,\"Error - with BS\",\"\")","v":""}]
[]
[]
["NOTES TO THE STATEMENT OF FINANCIAL ACTIVITIES"]
[]
[]
[]
["DONATIONS",null,null,null,"Total",null,"Unrestricted Funds","Restricted Funds (including Fixed Assets)","Endowment\nFunds",null,"Lower limit","Upper limit "]
["SoFA",null,null,null,"£000",null,"£000","£000","£000",null,"£000","£000"]
[null,"Donated fixed assets (non-EFA)",null,{"$f":"'Fin.Return - BS'!D70","v":""},{"$f":"SUM(G68:I68)","v":0},null,null,null,null,null,{"$f":"$L$19","v":-750000},{"$f":"$M$19","v":750000},null,null,"Consol, EFA/DfE SoCNE",null,3,null,null,null,null,null,{"$f":"COUNTA(G68:I68)","v":0}]
[null,"Fixed assets donated by the EFA",null,{"$f":"'Fin.Return - BS'!D71","v":""},{"$f":"SUM(G69:I69)","v":0},null,null,null,null,null,{"$f":"$L$19","v":-750000},{"$f":"$M$19","v":750000}]
[null,"Private sponsorship",null,null,{"$f":"SUM(G70:I70)","v":0},null,null,null,null,null,{"$f":"K68","v":-750000},{"$f":"L68","v":750000},null,null,"Consol, EFA/DfE SoCNE",null,3,null,null,null,null,null,{"$f":"COUNTA(G70:I70)","v":0}]
[null,"Other donations",null,null,{"$f":"SUM(G71:I71)","v":0},null,null,null,null,null,{"$f":"K70","v":-750000},{"$f":"L70","v":750000},null,null,"Consol, EFA/DfE SoCNE",null,3,null,null,null,null,null,{"$f":"COUNTA(G71:I71)","v":0}]
[]
[null,null,null,{"$f":"IF(E73<>SUM(E68:E72),\"Error - column does not cast\",\"\")","v":""},{"$f":"E19","v":0},null,{"$f":"G19","v":0},{"$f":"SUM(H19:I19)","v":0},{"$f":"J19","v":0},null,null,null,null,null,null,null,null,null,null,null,4,null,null,null,null,null,{"$f":"COUNTIF(G73:I73,\"<>0\")+COUNTIF(E73:E73,\"<>0\")","v":0}]
[null,null,null,{"$f":"IF(E73<>E19,\"Error - Total does not agree to SOFA donations\",\"\")","v":""},null,null,{"$f":"IF(G73<>SUM(G68:G72),\"Error - column does not cast\",\"\")","v":""},{"$f":"IF(H73<>SUM(H68:H72),\"Error - column does not cast\",\"\")","v":""},{"$f":"IF(I73<>SUM(I68:I72),\"Error - column does not cast\",\"\")","v":""}]
[null,null,null,null,null,null,{"$f":"IF(G74<>\"\",\"Error - Total does not agree  to SOFA donations\",\"\")","v":""},{"$f":"IF(H73<>(H19+I19),\"Error - Total does not agree to SOFA donations\",\"\")","v":""},{"$f":"IF(I74<>\"\",\"Error - Total does not agree to SOFA donations\",\"\")","v":""}]
[]
["ACTIVITIES FOR GENERATING FUNDS",null,null,null,"Total",null,"Unrestricted Funds","Restricted Funds (including Fixed Assets)","Endowment\nFunds",null,"Lower limit","Upper limit "]
["SoFA",null,null,null,"£000",null,"£000","£000","£000",null,"£000","£000"]
[null,"Hire of facilities",null,null,{"$f":"SUM(G79:I79)","v":0},null,null,null,null,null,{"$f":"$L$19","v":-750000},{"$f":"$M$19","v":750000},null,null,"Consol, EFA/DfE SoCNE",null,3,null,null,null,null,null,{"$f":"COUNTA(G79:I79)","v":0}]
[null,"Catering income",null,null,0,null,null,null,null,null,{"$f":"K79","v":-750000},750000,null,null,"Consol, EFA/DfE SoCNE",null,3,null,null,null,null,null,{"$f":"COUNTA(G80:I80)","v":0}]
[null,"Rental income",null,null,0,null,null,null,null,null,-750000,750000,null,null,"Consol, EFA/DfE SoCNE",null,3,null,null,null,null,null,{"$f":"COUNTA(G81:I81)","v":0}]
[null,"Receipts from supply teacher insurance claims",null,null,0,null,null,null,null,null,-750000,750000,null,null,null,null,null,null,3]
[null,"Risk Protection Arrangement Claims",null,null,0,null,null,null,null,null,-750000,750000]
[null,"Other",null,null,0,null,null,null,null,null,{"$f":"K82","v":-750000},{"$f":"L82","v":750000},null,null,"Consol, EFA/DfE SoCNE",null,null,null,3,null,null,null,{"$f":"COUNTA(G84:I84)","v":0}]
[]
[null,null,null,{"$f":"IF(E86<>SUM(E79:E85),\"Error - column does not cast\",\"\")","v":""},{"$f":"E22","v":0},null,{"$f":"G22","v":0},{"$f":"SUM(H22:I22)","v":0},{"$f":"J22","v":0},null,null,null,null,null,null,null,null,null,null,null,4,null,null,null,null,null,{"$f":"COUNTIF(G86:I86,\"<>0\")+COUNTIF(E86:E86,\"<>0\")","v":0}]
[null,null,null,{"$f":"IF(D86<>\"\",\"Total does not agree SOFA AFGF\",\"\")","v":""},null,null,{"$f":"IF(G86<>SUM(G79:G85),\"Error - column does not cast\",\"\")","v":""},{"$f":"IF(H86<>SUM(H79:H85),\"Error - column does not cast\",\"\")","v":""},{"$f":"IF(I86<>SUM(I79:I85),\"Error - column does not cast\",\"\")","v":""}]
[null,null,null,null,null,null,{"$f":"IF(G87<>\"\",\"Error -Total does not agree to SOFA AFGF\",\"\")","v":""},{"$f":"IF(H87<>\"\",\"Error - Total does not agree to SOFA AFGF\",\"\")","v":""},{"$f":"IF(I87<>\"\",\"Error - Total does not agree to SOFA AFGF\",\"\")","v":""}]
[]
["INVESTMENT INCOME",null,null,null,"Total",null,"Unrestricted Funds","Restricted Funds (including Fixed Assets)","Endowment\nFunds",null,"Lower limit","Upper limit "]
["SoFA",null,null,null,"£000",null,"£000","£000","£000",null,"£000","£000"]
[null,"Short-term deposits",null,null,{"$f":"SUM(G92:I92)","v":0},null,null,null,null,null,{"$f":"$L$19","v":-750000},{"$f":"$M$19","v":750000},null,null,"Consol, EFA/DfE SoCNE",null,3,null,null,null,null,null,{"$f":"COUNTA(G92:I92)","v":0}]
[null,"Interest",null,null,{"$f":"SUM(G93:I93)","v":0},null,null,null,null,null,{"$f":"K92","v":-750000},750000,null,null,"Consol, EFA/DfE SoCNE",null,3,null,null,null,null,null,{"$f":"COUNTA(G93:I93)","v":0}]
[null,"Dividend income",null,null,{"$f":"SUM(G94:I94)","v":0},null,null,null,null,null,-750000,750000,null,null,null,null,3]
[null,"Other",null,null,{"$f":"SUM(G95:I95)","v":0},null,null,null,null,null,-750000,750000,null,null,"Consol, EFA/DfE SoCNE",null,3,null,null,null,null,null,{"$f":"COUNTA(G95:I95)","v":0}]
[]
[null,null,null,{"$f":"IF(E97<>SUM(E92:E96),\"Error - column does not cast\",\"\")","v":""},{"$f":"E23","v":0},null,{"$f":"G23","v":0},{"$f":"SUM(H23:I23)","v":0},{"$f":"J23","v":0},null,null,null,null,null,null,null,null,null,null,null,4,null,null,null,null,null,{"$f":"COUNTIF(G97:I97,\"<>0\")+COUNTIF(E97:E97,\"<>0\")","v":0}]
[null,null,null,{"$f":"IF(D97<>\"\",\"Error - Total does not agree to SOFA Inv Inc\",\"\")","v":""},null,null,{"$f":"IF(G97<>SUM(G92:G96),\"Error - column does not cast\",\"\")","v":""},{"$f":"IF(H97<>SUM(H92:H96),\"Error - column does not cast\",\"\")","v":""},{"$f":"IF(I97<>SUM(I92:I96),\"Error - column does not cast\",\"\")","v":""}]
[null,null,null,null,null,null,{"$f":"IF(G98<>\"\",\"Error - Total does not agree to SOFA Inv Inc\",\"\")","v":""},{"$f":"IF(H98<>\"\",\"Error - Total does not agree to SOFA Inv Inc\",\"\")","v":""},{"$f":"IF(I98<>\"\",\"Error - Total does not agree to SOFA Inv Inc\",\"\")","v":""}]
[]
["FUNDING FOR ACADEMY'S EDUCATIONAL OPERATIONS",null,null,"Notes","Total",null,"Unrestricted Funds","Restricted Funds (including Fixed Assets)",null,"Lower limit","Upper limit "]
["SoFA",null,null,null,"£000",null,"£000","£000",null,"£000","£000"]
[null,"EFA Grants"]
[null,null,"Revenue Grants"]
[null,null,"20% Rates Relief",null,{"$f":"SUM(G105:H105)","v":0},null,null,null,null,{"$f":"$L$19","v":-750000},{"$f":"$M$19","v":750000},null,null,null,"Consol, EFA/DfE SoCNE",null,null,null,2,null,null,null,null,null,{"$f":"COUNTA(G105:H105)","v":0}]
[null,null,"Pupil Led Factors",null,0,null,null,null,null,{"$f":"J105","v":-750000},{"$f":"K105","v":750000},null,null,null,"Consol, EFA/DfE SoCNE",null,null,null,2,null,null,null,null,null,0]
[null,null,"Academy Post 16 Bursary Funding",null,0,null,null,null,null,{"$f":"(J106)","v":-750000},{"$f":"(K106)","v":750000},null,null,null,"Consol, EFA/DfE SoCNE",null,null,null,2,null,null,null,null,null,0]
[null,null,"Education Services Grant",null,0,null,null,null,null,-750000,750000,null,null,null,"Consol, EFA/DfE SoCNE",null,null,null,2,null,null,null,null,null,0]
[null,null,"Pupil Premium",null,0,null,null,null,null,{"$f":"(J108)","v":-750000},{"$f":"(K108)","v":750000},null,null,null,null,null,null,null,2,null,null,null,null,null,0]
[null,null,"Start-up Grant A",null,0,null,null,null,null,-750000,750000,null,null,null,"Consol, EFA/DfE SoCNE",null,null,null,2,null,null,null,null,null,0]
[null,null,"Start-up Grant B",null,0,null,null,null,null,-750000,750000,null,null,null,"Consol, EFA/DfE SoCNE",null,null,null,2,null,null,null,null,null,0]
[null,null,"Insurance",null,0,null,null,null,null,-750000,750000,null,null,null,"Consol, EFA/DfE SoCNE",null,null,null,2,null,null,null,null,null,0]
[null,null,"Other Mainstream Grants",null,0,null,null,null,null,-750000,750000,null,null,null,"Consol, EFA/DfE SoCNE",null,null,null,2,null,null,null,null,null,0]
[null,null,"Other",null,0,null,null,null,null,-750000,750000,null,null,null,"Consol, EFA/DfE SoCNE",null,null,null,2,null,null,null,null,null,0]
[]
[null,null,"Capital Grants"]
[null,null,"16-19 Demographic Growth Capital Fund",null,{"$f":"SUM(G117:H117)","v":0},null,null,null,null,{"$f":"J114","v":-750000},{"$f":"K114","v":750000},null,null,null,null,null,null,null,2,null,null,null,null,null,{"$f":"COUNTA(G117:H117)","v":0}]
[null,null,"Devolved Formula Capital for Young People Aged Under 16 yrs",null,0,null,null,null,null,{"$f":"J117","v":-750000},750000,null,null,null,null,null,null,null,2,null,null,null,null,null,0]
[null,null,"Centrally Managed Programme - Framework Academies",null,0,null,null,null,null,-750000,750000,null,null,null,null,null,null,null,2,null,null,null,null,null,0]
[null,null,"Centrally Managed Programme - BSF Legacy Academies",null,0,null,null,null,null,-750000,750000,null,null,null,null,null,null,null,2,null,null,null,null,null,0]
[null,null,"Centrally Managed Programme - Free Schools",null,0,null,null,null,null,-750000,750000,null,null,null,null,null,null,null,2,null,null,null,null,null,0]
[null,null,"Devolved Programmes - Academies Capital Maintenance",null,0,null,null,null,null,-750000,750000,null,null,null,null,null,null,null,2,null,null,null,null,null,0]
[null,null,"Continuing Commitments - Building Schools for the Future",null,0,null,null,null,null,-750000,750000,null,null,null,null,null,null,null,2,null,null,null,null,null,0]
[null,null,"Other",null,0,null,null,null,null,-750000,750000,null,null,null,null,null,null,null,2,null,null,null,null,null,0]
[]
[null,null,null,null,{"$f":"SUM(E105:E125)","v":0},null,{"$f":"SUM(G105:G125)","v":0},{"$f":"SUM(H105:H125)","v":0}]
[null,"DfE Family Revenue Grants:"]
[null,null,"Department for Education (DfE)",null,{"$f":"SUM(G128:H128)","v":0},null,null,null,null,{"$f":"J124","v":-750000},{"$f":"K124","v":750000},null,null,null,"Consol, EFA/DfE SoCNE",null,null,null,2,null,null,null,null,null,{"$f":"COUNTA(G128:H128)","v":0}]
[null,null,"Teaching Agency (TA)",null,0,null,null,null,null,{"$f":"+(J128)","v":-750000},750000,null,null,null,"Consol, EFA/DfE SoCNE",null,null,null,2,null,null,null,null,null,0]
[null,null,"National College for Teaching and Leadership (NCTL)",null,0,null,null,null,null,-750000,750000,null,null,null,"Consol, EFA/DfE SoCNE",null,null,null,2,null,null,null,null,null,0]
[null,null,"Standards and Testing Agency (STA)",null,0,null,null,null,null,-750000,750000,null,null,null,"Consol, EFA/DfE SoCNE",null,null,null,2,null,null,null,null,null,0]
[null,null,"Equality and Human Rights Commission (EHRC)",null,0,null,null,null,null,-750000,750000,null,null,null,"Consol, EFA/DfE SoCNE",null,null,null,2,null,null,null,null,null,0]
[null,null,"Office of the Children's Commissioner (OCC)",null,0,null,null,null,null,-750000,750000,null,null,null,"Consol, EFA/DfE SoCNE",null,null,null,2,null,null,null,null,null,0]
[]
[null,null,null,null,{"$f":"SUM(E128:E134)","v":0},null,{"$f":"SUM(G128:G134)","v":0},{"$f":"SUM(H128:H134)","v":0}]
[null,"DfE Family Capital Grants"]
[null,null,"DfE",null,{"$f":"SUM(G137:H137)","v":0},null,null,null,null,{"$f":"J133","v":-750000},{"$f":"K133","v":750000},null,null,null,"Consol, EFA/DfE SoCNE",null,null,null,2,null,null,null,null,null,{"$f":"COUNTA(G137:H137)","v":0}]
[null,null,"TA",null,0,null,null,null,null,{"$f":"+(J137)","v":-750000},{"$f":"+(K137)","v":750000},null,null,null,"Consol, EFA/DfE SoCNE",null,null,null,2,null,null,null,null,null,0]
[null,null,"NCTL",null,0,null,null,null,null,{"$f":"(J138)","v":-750000},750000,null,null,null,"Consol, EFA/DfE SoCNE",null,null,null,2,null,null,null,null,null,0]
[null,null,"STA",null,0,null,null,null,null,-750000,750000,null,null,null,"Consol, EFA/DfE SoCNE",null,null,null,2,null,null,null,null,null,0]
[null,null,"EHRC",null,0,null,null,null,null,-750000,750000,null,null,null,"Consol, EFA/DfE SoCNE",null,null,null,2,null,null,null,null,null,0]
[null,null,"OCC",null,0,null,null,null,null,-750000,750000,null,null,null,"Consol, EFA/DfE SoCNE",null,null,null,2,null,null,null,null,null,0]
[]
[null,null,null,null,{"$f":"SUM(E137:E143)","v":0},null,{"$f":"SUM(G137:G143)","v":0},{"$f":"SUM(H137:H143)","v":0}]
[null,"Local Authority Grants",null,null,null,null,null,null,null,null,null,null,null,null,null,null,null,null,null,null,null,null,null,null,{"$f":"COUNTA(G145:H145)","v":0}]
[null,null,"SEN ",null,{"$f":"SUM(G146:H146)","v":0},null,null,null,null,{"$f":"(J142)","v":-750000},{"$f":"(K142)","v":750000},null,null,null,null,null,null,null,2,null,null,null,null,null,{"$f":"COUNTA(G146:H146)","v":0}]
[null,null,"Other Revenue",null,{"$f":"SUM(G147:H147)","v":0},null,null,null,null,{"$f":"(J146)","v":-750000},{"$f":"(K146)","v":750000},null,null,null,null,null,null,null,2,null,null,null,null,null,{"$f":"COUNTA(G147:H147)","v":0}]
[null,null,"Capital",null,{"$f":"SUM(G148:H148)","v":0},null,null,null,null,{"$f":"(J147)","v":-750000},{"$f":"(K147)","v":750000},null,null,null,null,null,null,null,2,null,null,null,null,null,{"$f":"COUNTA(G148:H148)","v":0}]
[]
[null,null,null,null,{"$f":"SUM(E146:E149)","v":0},null,{"$f":"SUM(G146:G149)","v":0},0]
[]
[null,"Other Government Grants"]
[null,null,"Revenue",null,{"$f":"SUM(G153:H153)","v":0},null,null,null,null,{"$f":"J142","v":-750000},{"$f":"K142","v":750000},null,null,null,"Consol, EFA/DfE SoCNE",null,2,null,null,null,null,null,{"$f":"COUNTA(G153:H153)","v":0}]
[null,null,"Capital",null,{"$f":"SUM(G154:H154)","v":0},null,null,null,null,{"$f":"J153","v":-750000},{"$f":"K153","v":750000},null,null,null,"Consol, EFA/DfE SoCNE",null,2,null,null,null,null,null,{"$f":"COUNTA(G154:H154)","v":0}]
[]
[null,null,null,null,{"$f":"SUM(E153:E155)","v":0},null,{"$f":"SUM(G153:G155)","v":0},{"$f":"SUM(H153:H155)","v":0}]
[null,"Other Income",null,null,null,null,null,null,null,null,null,null,null,null,"Consol, EFA/DfE SoCNE"]
[null,null,"Government sources (non-grant)",null,{"$f":"SUM(G158:H158)","v":0},null,null,null,null,{"$f":"J154","v":-750000},{"$f":"K154","v":750000},null,null,null,null,null,2,null,null,null,null,null,{"$f":"COUNTA(G158:H158)","v":0}]
[null,null,"Academies",null,{"$f":"SUM(G159:H159)","v":0},null,null,null,null,{"$f":"J158","v":-750000},{"$f":"K158","v":750000},null,null,null,null,null,2,null,null,null,null,null,{"$f":"COUNTA(G159:H159)","v":0}]
[null,null,"Non-Government - Revenue",null,{"$f":"SUM(G160:H160)","v":0},null,null,null,null,{"$f":"J159","v":-750000},{"$f":"K159","v":750000},null,null,null,null,null,2,null,null,null,null,null,{"$f":"COUNTA(G160:H160)","v":0}]
[null,null,"Non-Government - Capital",null,{"$f":"SUM(G161:H161)","v":0},null,null,null,null,{"$f":"J159","v":-750000},{"$f":"K159","v":750000},null,null,null,null,null,2,null,null,null,null,null,{"$f":"COUNTA(G161:H161)","v":0}]
[]
[null,null,null,null,{"$f":"SUM(E158:E162)","v":0},null,{"$f":"SUM(G158:G162)","v":0},{"$f":"SUM(H158:H162)","v":0}]
[]
[null,null,null,{"$f":"IF(E165<>(E126+E135+E144+E156+E163+E150),\"Error - column does not cast\",\"\")","v":""},{"$f":"E25","v":0},null,{"$f":"G25","v":0},{"$f":"SUM(H25:I25)","v":0},null,null,null,null,null,null,null,null,null,null,null,null,3,null,null,null,null,null,{"$f":"COUNTIF(G165:H165,\"<>0\")+COUNTIF(E165:E165,\"<>0\")","v":0}]
[null,null,null,{"$f":"IF(D165<>\"\",\"Error - Total does not agree with SOFA AEO\",\"\")","v":""},null,null,{"$f":"IF(G165<>(G126+G135+G144+G156+G163+G150),\"Error - column does not cast\",\"\")","v":""},{"$f":"IF(H165<>(H126+H135+H144+H156+H163+H150),\"Error - column does not cast\",\"\")","v":""}]
[null,null,null,null,null,null,{"$f":"IF(G166<>\"\",\"Error - Total does not agree  with SOFA AEO\",\"\")","v":""},{"$f":"IF(H166<>\"\",\"Error - Total does not agree with SOFA AEO\",\"\")","v":""}]
[]
["EXPENDITURE",null,null,"Notes","Total",null,"Pay Costs","Premises","Other Costs",null,"Lower limit","Upper limit "]
["SoFA",null,null,null,"£000",null,"£000","£000","£000",null,"£000","£000"]
[null,"Costs of generating voluntary income",null,{"$f":"IF(E171<>SUM(G171:I171),\"Error - row does not cross cast\",\"\")","v":""},{"$f":"E206","v":0},null,{"$f":"+(E200)","v":0},null,null,null,{"$f":"$L$19","v":-750000},{"$f":"$M$19","v":750000},null,null,"Consol, EFA/DfE SoCNE",null,2,null,null,null,2,null,{"$f":"COUNTA(H171:I171)","v":0},null,null,null,{"$f":"COUNTA(G171)","v":1}]
[null,"Costs of activities for generating funds",null,{"$f":"IF(E172<>SUM(G172:I172),\"Error - row does not cross cast\",\"\")","v":""},{"$f":"E33","v":0},null,null,null,null,null,{"$f":"K171","v":-750000},{"$f":"L171","v":750000},null,null,"Consol, EFA/DfE SoCNE",null,3,null,null,null,1,null,{"$f":"COUNTA(G172:I172)","v":0},null,null,null,{"$f":"COUNTIF(E172:E172,\"<>0\")","v":0}]
[null,"Academy's educational operations:"]
[null,null,"Direct costs",{"$f":"IF(E174<>SUM(G174:I174),\"Error - row does not cross cast\",\"\")","v":""},{"$f":"E225","v":0},null,{"$f":"+(E212)","v":0},null,null,null,{"$f":"K172","v":-750000},{"$f":"L172","v":750000},null,null,"Consol, EFA/DfE SoCNE",null,2,null,null,null,2,null,{"$f":"COUNTA(H174:I174)","v":0},null,null,null,{"$f":"COUNTA(G174)","v":1}]
[null,null,"Allocated support costs",{"$f":"IF(E175<>SUM(G175:I175),\"Error - row does not cross cast\",\"\")","v":""},{"$f":"E259","v":0},null,{"$f":"+(E227)","v":0},null,null,null,{"$f":"K174","v":-750000},{"$f":"L174","v":750000},null,null,"Consol, EFA/DfE SoCNE",null,2,null,null,null,2,null,{"$f":"COUNTA(H175:I175)","v":0},null,null,null,{"$f":"COUNTA(G175)","v":1}]
[]
[null,null,null,{"$f":"IF(E177<>SUM(G177:I177),\"Error - row does not cross cast\",\"\")","v":""},{"$f":"SUM(E171:E176)","v":0},null,{"$f":"SUM(G171:G176)","v":0},{"$f":"SUM(H171:H176)","v":0},{"$f":"SUM(I171:I176)","v":0}]
[null,"Governance costs including allocated support costs",null,{"$f":"IF(E178<>SUM(G178:I178),\"Error - row does not cross cast\",\"\")","v":""},{"$f":"E283","v":0},null,{"$f":"+E276","v":0},null,null,null,{"$f":"K175","v":-750000},{"$f":"L175","v":750000},null,null,"Consol, EFA/DfE SoCNE",null,2,null,null,null,2,null,{"$f":"COUNTA(G178:I178)","v":1},null,null,null,{"$f":"COUNTIF(E178:E178,\"<>0\")","v":0}]
[null,"Provision of boarding activities",null,{"$f":"IF(E179<>SUM(G179:I179),\"Error - row does not cross cast\",\"\")","v":""},{"$f":"-E380-E400","v":0},null,{"$f":"-E374-E382","v":0},null,null,null,{"$f":"K178","v":-750000},{"$f":"L178","v":750000},null,null,null,null,null,null,2,null,2,null,null,null,{"$f":"COUNTA(H179:I179)","v":0},null,{"$f":"COUNTIF(E179:E179,\"<>0\")","v":0}]
[]
[null,null,null,null,{"$f":"SUM(E177:E180)","v":0},null,{"$f":"SUM(G177:G180)","v":0},{"$f":"SUM(H177:H180)","v":0},{"$f":"SUM(I177:I180)","v":0}]
[]
[null,"(Incoming)/outgoing resources for the year include:"]
[null,null,"Operating leases:"]
[null,null,"Land and buildings",null,{"$f":"E237-E385","v":0},null,null,null,null,null,null,null,null,null,"Consol, EFA/DfE SoCNE",null,null,null,null,null,1,null,null,null,null,null,{"$f":"COUNTIF(E185:E185,\"<>0\")","v":0}]
[null,null,"Other",null,{"$f":"E236-E384","v":0},null,null,null,null,null,null,null,null,null,"Consol, EFA/DfE SoCNE",null,null,null,null,null,1,null,null,null,null,null,{"$f":"COUNTIF(E186:E186,\"<>0\")","v":0}]
[null,null,"Depreciation",{"$f":"IF(E187<>-'Fin.Return - BS'!E81,\"Error - imbalance with FA note\",\"\")","v":""},{"$f":"E201+E213+E229+E267-E391","v":0},null,null,null,null,null,null,null,null,null,"Consol, EFA/DfE SoCNE",null,null,null,null,null,1,null,null,null,null,null,{"$f":"COUNTIF(E187:E187,\"<>0\")","v":0}]
[null,null,"Amortisation",{"$f":"IF(E188<>-'Fin.Return - BS'!E141,\"Error - imbalance with FA note\",\"\")","v":""},{"$f":"E202+E214+E230+E268-E392","v":0},null,null,null,null,null,null,null,null,null,"Consol, EFA/DfE SoCNE",null,null,null,null,null,1,null,null,null,null,null,{"$f":"COUNTIF(E188:E188,\"<>0\")","v":0}]
[null,null,"Impairment",{"$f":"IF(E189<>-(SUM('Fin.Return - BS'!E91:E92)+SUM('Fin.Return - BS'!E151:E152)),\"Error - imbalance with FA note\",\"\")","v":""},{"$f":"E203+E215+E231+E269-E393","v":0},null,null,null,null,null,null,null,null,null,"Consol, EFA/DfE SoCNE",null,null,null,null,null,1,null,null,null,null,null,{"$f":"COUNTIF(E189:E189,\"<>0\")","v":0}]
[null,null,"Fees payable to auditors:"]
[null,null,"Audit",null,{"$f":"E271","v":0},null,null,null,null,null,null,null,null,null,"Consol, EFA/DfE SoCNE",null,null,null,null,null,1,null,null,null,null,null,{"$f":"COUNTIF(E191:E191,\"<>0\")","v":0}]
[null,null,"Other services",null,{"$f":"E272","v":0},null,null,null,null,null,null,null,null,null,"Consol, EFA/DfE SoCNE",null,null,null,null,null,1,null,null,null,null,null,{"$f":"COUNTIF(E192:E192,\"<>0\")","v":0}]
[null,null,"(Gain)/loss on disposal of tangible fixed assets",null,{"$f":"E254+E273-E395","v":0},null,null,null,null,null,null,null,null,null,"Consol, EFA/DfE SoCNE",null,null,null,null,null,1,null,null,null,null,null,{"$f":"COUNTIF(E193:E193,\"<>0\")","v":0}]
[null,null,"(Gain)/loss on disposal of intangible fixed assets",null,{"$f":"E255+E274-E396","v":0},null,null,null,null,null,null,null,null,null,"Consol, EFA/DfE SoCNE",null,null,null,null,null,1,null,null,null,null,null,{"$f":"COUNTIF(E194:E194,\"<>0\")","v":0}]
[null,null,"(Gain)/loss on disposal of investments",null,{"$f":"E256+E275-E397","v":0},null,null,null,null,null,null,null,null,null,"Consol, EFA/DfE SoCNE",null,null,null,null,null,1,null,null,null,null,null,{"$f":"COUNTIF(E195:E195,\"<>0\")","v":0}]
[]
[]
["COSTS OF GENERATING VOLUNTARY INCOME",null,null,null,"Total",null,"Lower limit","Upper limit "]
["SoFA",null,null,null,"£000",null,"£000","£000"]
[null,"Pay costs",null,null,null,null,{"$f":"$L$19","v":-750000},{"$f":"$M$19","v":750000},null,null,null,null,null,null,null,null,1,null,null,null,null,null,{"$f":"COUNTA(E200:E200)","v":0}]
[null,"Depreciation",null,{"$f":"D187","v":""},null,null,{"$f":"(G200)","v":-750000},{"$f":"(H200)","v":750000},null,null,null,null,null,null,null,null,1,null,null,null,null,null,0]
[null,"Amortisation",null,{"$f":"D188","v":""},null,null,{"$f":"G201","v":-750000},750000,null,null,null,null,null,null,null,null,1,null,null,null,null,null,0]
[null,"Impairment",null,{"$f":"D189","v":""},null,null,-750000,750000,null,null,null,null,null,null,null,null,1,null,null,null,null,null,0]
[null,"Other",null,null,null,null,-750000,750000,null,null,null,null,null,null,null,null,1,null,null,null,null,null,0]
[]
[null,null,null,{"$f":"IF(E206<>SUM(E200:E205),\"Error - column does not cast\",\"\")","v":""},{"$f":"E31","v":0},null,null,null,null,null,null,null,null,null,null,null,null,null,null,null,1,null,null,null,null,null,{"$f":"COUNTIF(E206:E206,\"<>0\")","v":0}]
[null,null,null,{"$f":"IF(D206<>\"\",\"Error - Total does not agree with SOFA GVI\",\"\")","v":""}]
[]
["CHARITABLE ACTIVITIES - ACADEMY'S EDUCATIONAL OPERATIONS",null,null,null,"Total",null,"Lower limit","Upper limit "]
["SoFA",null,null,null,"£000",null,"£000","£000"]
[null,"Direct costs"]
[null,null,"Teaching and educational support staff pay costs",null,null,null,{"$f":"$L$19","v":-750000},{"$f":"$M$19","v":750000},null,null,null,null,null,null,"Consol, EFA/DfE SoCNE",null,1,null,null,null,null,null,{"$f":"COUNTA(E212:E212)","v":0}]
[null,null,"Depreciation",{"$f":"D187","v":""},null,null,{"$f":"G212","v":-750000},{"$f":"H212","v":750000},null,null,null,null,null,null,"Consol, EFA/DfE SoCNE",null,1,null,null,null,null,null,0]
[null,null,"Amortisation",{"$f":"D188","v":""},null,null,{"$f":"G213","v":-750000},750000,null,null,null,null,null,null,"Consol, EFA/DfE SoCNE",null,1,null,null,null,null,null,0]
[null,null,"Impairment",{"$f":"D189","v":""},null,null,-750000,750000,null,null,null,null,null,null,"Consol, EFA/DfE SoCNE",null,1,null,null,null,null,null,0]
[null,null,"Educational supplies",null,null,null,-750000,750000,null,null,null,null,null,null,"Consol, EFA/DfE SoCNE",null,1,null,null,null,null,null,0]
[null,null,"Examination fees",null,null,null,-750000,750000,null,null,null,null,null,null,"Consol, EFA/DfE SoCNE",null,1,null,null,null,null,null,0]
[null,null,"Staff development",null,null,null,-750000,750000,null,null,null,null,null,null,"Consol, EFA/DfE SoCNE",null,1,null,null,null,null,null,0]
[null,null,"Staff related insurance",null,null,null,-750000,750000,null,null,null,null,null,null,null,null,null,null,1]
[null,null,"Technology costs",null,null,null,{"$f":"G218","v":-750000},{"$f":"H218","v":750000},null,null,null,null,null,null,"Consol, EFA/DfE SoCNE",null,1,null,null,null,null,null,{"$f":"COUNTA(E220:E220)","v":0}]
[null,null,"Educational consultancy",null,null,null,{"$f":"G220","v":-750000},750000,null,null,null,null,null,null,"Consol, EFA/DfE SoCNE",null,1,null,null,null,null,null,{"$f":"COUNTA(E221:E221)","v":0}]
[null,null,"Travel and subsistence","Notes",null,null,-750000,750000,null,null,null,null,null,null,"Consol, EFA/DfE SoCNE",null,null,null,1,null,null,null,null,null,{"$f":"COUNTA(E222:E222)","v":0}]
[null,null,"Other direct costs",null,null,null,-750000,750000,null,null,null,null,null,null,"Consol, EFA/DfE SoCNE",null,null,null,1,null,null,null,null,null,{"$f":"COUNTA(E223:E223)","v":0}]
[]
[null,null,null,null,{"$f":"SUM(E212:E224)","v":0}]
[null,"Allocated support costs"]
[null,null,"Support staff pay costs",null,null,null,{"$f":"G223","v":-750000},{"$f":"H223","v":750000},null,null,null,null,null,null,"Consol, EFA/DfE SoCNE",null,1,null,null,null,null,null,{"$f":"COUNTA(E227:E227)","v":0}]
[null,null,"Supply teacher insurance",null,null,null,{"$f":"G227","v":-750000},{"$f":"H227","v":750000},null,null,null,null,null,null,"Consol, EFA/DfE SoCNE",null,null,null,1]
[null,null,"Depreciation",{"$f":"D187","v":""},null,null,{"$f":"G227","v":-750000},{"$f":"H227","v":750000},null,null,null,null,null,null,"Consol, EFA/DfE SoCNE",null,1,null,null,null,null,null,{"$f":"COUNTA(E229:E229)","v":0}]
[null,null,"Amortisation",{"$f":"D188","v":""},null,null,{"$f":"G229","v":-750000},{"$f":"H229","v":750000},null,null,null,null,null,null,"Consol, EFA/DfE SoCNE",null,1,null,null,null,null,null,{"$f":"COUNTA(E230:E230)","v":0}]
[null,null,"Impairment",{"$f":"D189","v":""},null,null,-750000,750000,null,null,null,null,null,null,"Consol, EFA/DfE SoCNE",null,1,null,null,null,null,null,{"$f":"COUNTA(E231:E231)","v":0}]
[null,null,"Recruitment and support",null,null,null,-750000,750000,null,null,null,null,null,null,"Consol, EFA/DfE SoCNE",null,1,null,null,null,null,null,{"$f":"COUNTA(E232:E232)","v":0}]
[null,null,"Maintenance of premises",null,null,null,-750000,750000,null,null,null,null,null,null,"Consol, EFA/DfE SoCNE",null,null,null,1,null,null,null,null,null,{"$f":"COUNTA(E233:E233)","v":0}]
[null,null,"Maintenance of equipment",null,null,null,-750000,750000,null,null,null,null,null,null,"Consol, EFA/DfE SoCNE",null,null,null,1,null,null,null,null,null,{"$f":"COUNTA(E234:E234)","v":0}]
[null,null,"Cleaning",null,null,null,-750000,750000,null,null,null,null,null,null,"Consol, EFA/DfE SoCNE",null,1,null,null,null,null,null,{"$f":"COUNTA(E235:E235)","v":0}]
[null,null,"Operating lease rentals - other",null,null,null,-750000,750000,null,null,null,null,null,null,"Consol, EFA/DfE SoCNE",null,null,null,1,null,null,null,null,null,{"$f":"COUNTA(E236:E236)","v":0}]
[null,null,"Operating lease rentals - land & buildings",null,null,null,-750000,750000,null,null,null,null,null,null,"Consol, EFA/DfE SoCNE",null,null,null,1,null,null,null,null,null,{"$f":"COUNTA(E237:E237)","v":0}]
[null,null,"Rates",null,null,null,-750000,750000,null,null,null,null,null,null,"Consol, EFA/DfE SoCNE",null,null,null,1,null,null,null,null,null,{"$f":"COUNTA(E238:E238)","v":0}]
[null,null,"Water rates",null,null,null,-750000,750000,null,null,null,null,null,null,"Consol, EFA/DfE SoCNE",null,null,null,1,null,null,null,null,null,{"$f":"COUNTA(E239:E239)","v":0}]
[null,null,"Energy",null,null,null,-750000,750000,null,null,null,null,null,null,"Consol, EFA/DfE SoCNE",null,1,null,null,null,null,null,{"$f":"COUNTA(E240:E240)","v":0}]
[null,null,"Insurance",null,null,null,-750000,750000,null,null,null,null,null,null,"Consol, EFA/DfE SoCNE",null,null,null,1,null,null,null,0]
[null,null,"Risk Protection Arrangement Fees",null,null,null,-750000,750000,null,null,null,null,null,null,null,null,null,null,1]
[null,null,"Security",null,null,null,{"$f":"G241","v":-750000},{"$f":"H241","v":750000},null,null,null,null,null,null,"Consol, EFA/DfE SoCNE",null,1,null,null,null,null,null,0]
[null,null,"Transport",null,null,null,-750000,750000,null,null,null,null,null,null,"Consol, EFA/DfE SoCNE",null,1,null,null,null,null,null,0]
[null,null,"Catering",null,null,null,-750000,750000,null,null,null,null,null,null,"Consol, EFA/DfE SoCNE",null,1,null,null,null,null,null,0]
[null,null,"Technology costs",null,null,null,-750000,750000,null,null,null,null,null,null,"Consol, EFA/DfE SoCNE",null,1,null,null,null,null,null,0]
[null,null,"Other occupancy costs",null,null,null,-750000,750000,null,null,null,null,null,null,"Consol, EFA/DfE SoCNE",null,1,null,null,null,null,null,0]
[null,null,"PFI Charges",null,null,null,-750000,750000,null,null,null,null,null,null,null,null,1]
[null,null,"Loan interest - paid to DFE family",null,null,null,null,null,null,null,null,null,null,null,null,null,null,null,1]
[null,null,"Loan interest - paid to others",null,null,null,null,null,null,null,null,null,null,null,null,null,null,null,1]
[null,null,"Finance lease interest",null,null,null,{"$f":"G247","v":-750000},{"$f":"H247","v":750000},null,null,null,null,null,null,"Consol, EFA/DfE SoCNE",null,1,null,null,null,null,null,{"$f":"COUNTA(E251:E251)","v":0}]
[null,null,"Bank interest and charges",null,null,null,{"$f":"G251","v":-750000},750000,null,null,null,null,null,null,"Consol, EFA/DfE SoCNE",null,1,null,null,null,null,null,{"$f":"COUNTA(E252:E252)","v":0}]
[null,null,"Travel and subsistence",null,null,null,-750000,750000,null,null,null,null,null,null,"Consol, EFA/DfE SoCNE",null,null,null,1,null,null,null,null,null,{"$f":"COUNTA(E253:E253)","v":0}]
[null,null,"(Gain)/loss on disposal of tangible fixed assets",null,null,null,-750000,750000,null,null,null,null,null,null,null,null,null,null,1,null,null,null,null,null,{"$f":"COUNTA(E254:E254)","v":0}]
[null,null,"(Gain)/loss on disposal of intangible fixed assets",null,null,null,-750000,750000,null,null,null,null,null,null,null,null,null,null,1,null,null,null,null,null,{"$f":"COUNTA(E255:E255)","v":0}]
[null,null,"(Gain)/loss on disposal of investments",null,null,null,-750000,750000,null,null,null,null,null,null,null,null,null,null,1,null,null,null,null,null,{"$f":"COUNTA(E256:E256)","v":0}]
[null,null,"Other support costs",null,null,null,-750000,750000,null,null,null,null,null,null,"Consol, EFA/DfE SoCNE",null,null,null,1,null,null,null,null,null,{"$f":"COUNTA(E257:E257)","v":0}]
[]
[null,null,null,null,{"$f":"SUM(E227:E258)","v":0}]
[]
[null,null,null,{"$f":"IF(E261<>(E225+E259),\"Error - column does not cast\",\"\")","v":""},{"$f":"E35","v":0},null,null,null,null,null,null,null,null,null,null,null,null,null,null,null,1,null,null,null,null,null,{"$f":"COUNTIF(E261:E261,\"<>0\")","v":0}]
[null,null,null,{"$f":"IF(D261<>\"\",\"Error - Total does not agree with SOFA AEO\",\"\")","v":""}]
[]
["GOVERNANCE COSTS",null,null,null,"Total",null,"Lower limit","Upper limit "]
["SoFA",null,null,null,"£000",null,"£000","£000"]
[null,"Legal and professional fees",null,null,null,null,{"$f":"$L$19","v":-750000},{"$f":"$M$19","v":750000},null,null,null,null,null,null,"Consol, EFA/DfE SoCNE",null,1,null,null,null,null,null,{"$f":"COUNTA(E266:E266)","v":0}]
[null,"Depreciation",null,{"$f":"D187","v":""},null,null,{"$f":"G266","v":-750000},750000,null,null,null,null,null,null,"Consol, EFA/DfE SoCNE",null,1,null,null,null,null,null,{"$f":"COUNTA(E267:E267)","v":0}]
[null,"Amortisation",null,{"$f":"D188","v":""},null,null,-750000,750000,null,null,null,null,null,null,"Consol, EFA/DfE SoCNE",null,1,null,null,null,null,null,{"$f":"COUNTA(E268:E268)","v":0}]
[null,"Impairment",null,{"$f":"D189","v":""},null,null,-750000,750000,null,null,null,null,null,null,"Consol, EFA/DfE SoCNE",null,1,null,null,null,null,null,{"$f":"COUNTA(E269:E269)","v":0}]
[null,"Fees paid to auditors"]
[null,null,"Audit",null,null,null,{"$f":"G269","v":-750000},{"$f":"H269","v":750000},null,null,null,null,null,null,"Consol, EFA/DfE SoCNE",null,1,null,null,null,null,null,{"$f":"COUNTA(E271:E271)","v":0}]
[null,null,"Other",null,null,null,{"$f":"G271","v":-750000},750000,null,null,null,null,null,null,"Consol, EFA/DfE SoCNE",null,1,null,null,null,null,null,{"$f":"COUNTA(E272:E272)","v":0}]
[null,"(Gain)/loss on disposal of tangible fixed assets",null,null,null,null,-750000,750000,null,null,null,null,null,null,null,null,null,null,1,null,null,null,null,null,{"$f":"COUNTA(E273:E273)","v":0}]
[null,"(Gain)/loss on disposal of intangible fixed assets",null,null,null,null,-750000,750000,null,null,null,null,null,null,null,null,null,null,1,null,null,null,null,null,{"$f":"COUNTA(E274:E274)","v":0}]
[null,"(Gain)/loss on disposal of investments",null,null,null,null,-750000,750000,null,null,null,null,null,null,null,null,null,null,1,null,null,null,null,null,{"$f":"COUNTA(E275:E275)","v":0}]
[null,"Staff pay costs",null,null,null,null,-750000,750000]
[null,"Other support costs",null,null,null,null,{"$f":"G275","v":-750000},{"$f":"H275","v":750000},null,null,null,null,null,null,"Consol, EFA/DfE SoCNE",null,null,null,1,null,null,null,{"$f":"COUNTA(E277:E277)","v":0}]
[null,"Governors' reimbursed expenses"]
[null,null,"Fees","Notes",null,null,{"$f":"G277","v":-750000},{"$f":"H277","v":750000},null,null,null,null,null,null,"Consol, EFA/DfE SoCNE",null,null,null,1,null,null,null,null,null,{"$f":"COUNTA(E279:E279)","v":0}]
[null,null,"Travel and subsistence",null,null,null,{"$f":"G279","v":-750000},{"$f":"H279","v":750000},null,null,null,null,null,null,"Consol, EFA/DfE SoCNE",null,null,null,1,null,null,null,null,null,{"$f":"COUNTA(E280:E280)","v":0}]
[null,null,"Other",null,null,null,{"$f":"G280","v":-750000},{"$f":"H280","v":750000},null,null,null,null,null,null,"Consol, EFA/DfE SoCNE",null,null,null,1,null,null,null,null,null,{"$f":"COUNTA(E281:E281)","v":0}]
[]
[null,null,null,{"$f":"IF(E283<>SUM(E266:E282),\"Error - column does not cast\",\"\")","v":""},{"$f":"E37","v":0},null,null,null,null,null,null,null,null,null,null,null,null,null,null,null,1,null,null,null,null,null,{"$f":"COUNTIF(E283:E283,\"<>0\")","v":0}]
[null,null,null,{"$f":"IF(D283<>\"\",\"Error - Total does not agree with SOFA Gov costs\",\"\")","v":""}]
[]
["STAFF COSTS",null,null,null,"Total",null,"Permanently Employed","Temporary/ Interim Staff",null,null,null,"Lower limit","Upper limit "]
["SoFA",null,null,null,"£000",null,"£000","£000",null,null,null,"£000","£000"]
[null,"Staff costs during the period:"]
[null,null,"Wages and salaries",{"$f":"IF(E289<>SUM(G289:H289),\"Error - row does not cross cast\",\"\")","v":""},{"$f":"SUM(G289:H289)","v":0},null,null,null,null,null,null,{"$f":"$L$19","v":-750000},{"$f":"$M$19","v":750000},null,"Consol, EFA/DfE SoCNE, Staff Costs Note",null,1,null,2,null,null,null,{"$f":"COUNTA(E289:E289)","v":1},null,{"$f":"COUNTA(G289:H289)","v":0}]
[null,null,"Social security costs",{"$f":"IF(E290<>SUM(G290:H290),\"Error - row does not cross cast\",\"\")","v":""},{"$f":"SUM(G290:H290)","v":0},null,null,null,"Notes",null,null,{"$f":"L289","v":-750000},{"$f":"M289","v":750000},null,"Consol, EFA/DfE SoCNE, Staff Costs Note",null,1,null,2,null,null,null,{"$f":"COUNTA(E290:E290)","v":1},null,{"$f":"COUNTA(G290:H290)","v":0}]
[null,null,"Pension costs",{"$f":"IF(E291<>SUM(G291:H291),\"Error - row does not cross cast\",\"\")","v":""},{"$f":"SUM(G291:H291)","v":0},null,null,null,null,null,null,{"$f":"L290","v":-750000},{"$f":"M290","v":750000},null,"Consol, EFA/DfE SoCNE, Staff Costs Note",null,1,null,2,null,null,null,{"$f":"COUNTA(E291:E291)","v":1},null,{"$f":"COUNTA(G291:H291)","v":0}]
[]
[null,null,null,null,{"$f":"SUM(E289:E292)","v":0},null,{"$f":"SUM(G289:G292)","v":0},{"$f":"SUM(H289:H292)","v":0}]
[null,null,"Agency costs - teaching staff",{"$f":"IF(E294<>SUM(G294:H294),\"Error - row does not cross cast\",\"\")","v":""},{"$f":"SUM(G294:H294)","v":0},null,null,null,null,null,null,{"$f":"L291","v":-750000},{"$f":"M291","v":750000},null,"Consol, EFA/DfE SoCNE, Staff Costs Note",null,1,null,1,null,null,null,{"$f":"COUNTA(E294:E294)","v":1},null,{"$f":"COUNTA(G294:H294)","v":0}]
[null,null,"Agency costs - other staff ",{"$f":"IF(E295<>SUM(G295:H295),\"Error - row does not cross cast\",\"\")","v":""},{"$f":"SUM(G295:H295)","v":0},null,null,null,null,null,null,{"$f":"L294","v":-750000},{"$f":"M294","v":750000},null,null,null,1,null,1,null,null,null,{"$f":"COUNTA(E295:E295)","v":1},null,{"$f":"COUNTA(G295:H295)","v":0}]
[null,null,"Compensation payments",{"$f":"IF(E296<>SUM(G296:H296),\"Error - row does not cross cast\",\"\")","v":""},{"$f":"SUM(G296:H296)","v":0},null,null,null,null,null,null,{"$f":"L295","v":-750000},{"$f":"M295","v":750000},null,"Consol, EFA/DfE SoCNE, Staff Costs Note",null,1,null,2,null,null,null,{"$f":"COUNTA(E296:E296)","v":1},null,{"$f":"COUNTA(G296:H296)","v":0}]
[]
[null,null,null,null,{"$f":"SUM(E293:E297)","v":0},null,{"$f":"SUM(G293:G297)","v":0},{"$f":"SUM(H293:H297)","v":0}]
[null,"Less: recoveries of staff costs for employees seconded out of the organisation",null,{"$f":"IF(E299<>SUM(G299:H299),\"Error - row does not cross cast\",\"\")","v":""},{"$f":"SUM(G299:H299)","v":0},null,null,null,null,null,null,{"$f":"L296","v":-750000},0,null,"Consol, EFA/DfE SoCNE, Staff Costs Note",null,1,null,2,null,null,null,{"$f":"COUNTA(E299:E299)","v":1},null,{"$f":"COUNTA(G299:H299)","v":0}]
[]
[null,null,null,{"$f":"IF(E301<>(E298+E299),\"Error - column does not cast\",\"\")","v":""},{"$f":"G181","v":0},null,{"$f":"SUM(G298:G300)","v":0},{"$f":"SUM(H298:H300)","v":0},null,null,null,null,null,null,null,null,null,null,null,null,1,null,null,null,null,null,{"$f":"COUNTIF(E301:E301,\"<>0\")","v":0}]
[null,null,null,{"$f":"IF(D301<>\"\",\"Error - Total does not agree with pay costs in exp note\",\"\")","v":""}]
[]
[null,"Average staff numbers (full time equivalent):",null,null,"Total Full Time Equivalents (ftes)",null,"Permanently Employed ftes","Temporary/ Interim Staff ftes"]
[null,null,null,null,"Number",null,"Number","Number"]
[null,null,"Teachers",null,{"$f":"+SUM(G306:H306)","v":0},null,null,null,null,null,null,0,10000,null,null,null,1,null,2,null,null,null,{"$f":"COUNTA(E306:E306)","v":1},null,{"$f":"COUNTA(G306:H306)","v":0}]
[null,null,"Administration & support",null,{"$f":"+SUM(G307:H307)","v":0},null,null,null,null,null,null,{"$f":"L306","v":0},{"$f":"M306","v":10000},null,null,null,1,null,2,null,null,null,{"$f":"COUNTA(E307:E307)","v":1},null,{"$f":"COUNTA(G307:H307)","v":0}]
[null,null,"Management",null,0,null,null,null,null,null,null,{"$f":"L307","v":0},{"$f":"M307","v":10000},null,null,null,1,null,2,null,null,null,{"$f":"COUNTA(E308:E308)","v":1},null,{"$f":"COUNTA(G308:H308)","v":0}]
[]
[null,null,null,null,{"$f":"SUM(E306:E309)","v":0},null,{"$f":"SUM(G306:G309)","v":0},{"$f":"SUM(H306:H309)","v":0}]
[]
[null,"Employee's emoluments:",null,"Notes",null,null,null,null,"Illustrative examples of actual emolument bands"]
[null,null,null,null,{"$f":"'Fin.Return - BS'!E16","v":2016},null,null,null,"for long or short reporting periods"]
[null,null,"Annualised emolument bands",null,"Number",null,null,"4 months","6 months","18 months"]
[null,null,"£60,001 - £70,000",null,null,null,null,"£20,000 - £23,333","£30,000 - £35,000","£90,000 - £105,000",null,{"$f":"L306","v":0},1000,null,"Consol, EFA/DfE Staff Costs Note",null,1,null,null,null,null,null,{"$f":"COUNTA(E315:E315)","v":0}]
[null,null,"£70,001 - £80,000",null,null,null,null,"£23,334 - £26,667","£35,001 - £40,000","£105,001 - £120,000",null,{"$f":"L315","v":0},{"$f":"M315","v":1000},null,"Consol, EFA/DfE Staff Costs Note",null,1,null,null,null,null,null,0]
[null,null,"£80,001 - £90,000",null,null,null,null,"£26,668 - £30,000","£40,001 - £45,000","£120,001 - £135,000",null,0,1000,null,"Consol, EFA/DfE Staff Costs Note",null,1,null,null,null,null,null,0]
[null,null,"£90,001 - £100,000",null,null,null,null,"£30,001 - £33,333","£45,001 - £50,000","£135,001 - £150,000",null,0,1000,null,"Consol, EFA/DfE Staff Costs Note",null,1,null,null,null,null,null,0]
[null,null,"£100,001 - £110,000",null,null,null,null,"£33,334 - £36,667","£50,001 - £55,000","£150,001 - £165,000",null,0,1000,null,"Consol, EFA/DfE Staff Costs Note",null,1,null,null,null,null,null,0]
[null,null,"£110,001 - £120,000",null,null,null,null,"£36,668 - £40,000","£55,001 - £60,000","£165,001 - £180,000",null,0,1000,null,"Consol, EFA/DfE Staff Costs Note",null,1,null,null,null,null,null,0]
[null,null,"£120,001 - £130,000",null,null,null,null,"£40,001 - £43,333","£60,001 - £65,000","£180,001 - £195,000",null,0,1000,null,"Consol, EFA/DfE Staff Costs Note",null,1,null,null,null,null,null,0]
[null,null,"£130,001 - £140,000",null,null,null,null,"£43,334 - £46,667","£65,001 - £70,000","£195,001 - £210,000",null,0,1000,null,"Consol, EFA/DfE Staff Costs Note",null,1,null,null,null,null,null,0]
[null,null,"£140,001 - £150,000",null,null,null,null,"£46,668 - £50,000","£70,001 - £75,000","£210,001 - £225,000",null,0,1000,null,"Consol, EFA/DfE Staff Costs Note",null,1,null,null,null,null,null,0]
[null,null,"£150,001 - £160,000",null,null,null,null,"£50,001 - £53,133","£75,001 - £80,000","£225,001 - £240,000",null,0,1000,null,"Consol, EFA/DfE Staff Costs Note",null,1,null,null,null,null,null,0]
[null,null,"£160,001 - £170,000",null,null,null,null,"£53,134 - £56,667","£80,001 - £85,000","£240,001 - £255,000",null,0,1000,null,"Consol, EFA/DfE Staff Costs Note",null,1,null,null,null,null,null,0]
[null,null,"£170,001 - £180,000",null,null,null,null,"£56,668 - £60,000","£85,001 - £90,000","£255,001 - £270,000",null,0,1000,null,"Consol, EFA/DfE Staff Costs Note",null,1,null,null,null,null,null,0]
[null,null,"£180,001 - £190,000",null,null,null,null,"£60,001 - £63,133","£90,001 - £95,000","£270,001 - £285,000",null,0,1000,null,"Consol, EFA/DfE Staff Costs Note",null,1,null,null,null,null,null,0]
[null,null,"£190,001 - £200,000",null,null,null,null,"£63,134 - £66,667","£95,001 - £100,000","£285,001 - £300,000",null,0,1000,null,"Consol, EFA/DfE Staff Costs Note",null,1,null,null,null,null,null,0]
[null,null,"£200,001 - £210,000",null,null,null,null,"£66,668 - £70,000","£100,001 - £105,000","£300,001 - £315,000",null,0,1000,null,"Consol, EFA/DfE Staff Costs Note",null,1,null,null,null,null,null,0]
[null,null,"£210,001 - £220,000",null,null,null,null,"£70,001 - £73,133","£105,001 - £110,000","£315,001 - £330,000",null,0,1000,null,"Consol, EFA/DfE Staff Costs Note",null,1,null,null,null,null,null,0]
[null,null,"£220,001 - £230,000",null,null,null,null,"£73,134 - £76,667","£110,001 - £115,000","£330,001 - £345,000",null,0,1000,null,"Consol, EFA/DfE Staff Costs Note",null,1,null,null,null,null,null,0]
[null,null,"£230,001 - £240,000",null,null,null,null,"£76,668 - £80,000","£115,001 - £120,000","£345,001 - £360,000",null,0,1000,null,"Consol, EFA/DfE Staff Costs Note",null,1,null,null,null,null,null,0]
[null,null,"£240,001 - £250,000",null,null,null,null,"£80,001 - £83,133","£120,001 - £125,000","£360,001 - £375,000",null,0,1000,null,"Consol, EFA/DfE Staff Costs Note",null,1,null,null,null,null,null,0]
[null,null,"£250,001 - £260,000",null,null,null,null,"£83,134 - £86,667","£125,001 - £130,000","£375,001 - £390,000",null,0,1000,null,"Consol, EFA/DfE Staff Costs Note",null,1,null,null,null,null,null,0]
[null,null,"£260,001 - £270,000",null,null,null,null,"£86,668 - £90,000","£130,001 - £135,000","£390,001 - £405,000",null,0,1000,null,"Consol, EFA/DfE Staff Costs Note",null,1,null,null,null,null,null,0]
[null,null,"£270,001 - £280,000",null,null,null,null,"£90,0001 - £93,133","£135,001 - £140,000","£405,001 - £420,000",null,0,1000,null,"Consol, EFA/DfE Staff Costs Note",null,1,null,null,null,null,null,0]
[null,null,"£280,001 - £290,000",null,null,null,null,"£93,134 - £96,667","£140,001 - £145,000","£420,001 - £435,000",null,0,1000,null,"Consol, EFA/DfE Staff Costs Note",null,1,null,null,null,null,null,0]
[null,null,"£290,001 - £300,000",null,null,null,null,"£96,668 - £100,000","£145,001 - £150,000","£435,001 - £450,000",null,0,1000,null,"Consol, EFA/DfE Staff Costs Note",null,1,null,null,null,null,null,0]
[null,null,"£300,001 - £310,000",null,null,null,null,"£100,001 - £103,133","£150,001 - £155,000","£450,001 - £465,000",null,0,1000,null,"Consol, EFA/DfE Staff Costs Note",null,1,null,null,null,null,null,0]
[null,null,"£310,001 - £320,000",null,null,null,null,"£103,134 - £106,667","£155,001 - £160,000","£465,001 - £480,000",null,0,1000,null,"Consol, EFA/DfE Staff Costs Note",null,1,null,null,null,null,null,0]
[null,null,"£320,001 - £330,000",null,null,null,null,"£106,668 - £110,000","£160,001 - £165,000","£480,001 - £495,000",null,0,1000,null,"Consol, EFA/DfE Staff Costs Note",null,1,null,null,null,null,null,0]
[null,null,"£330,001 - £340,000",null,null,null,null,"£110,001 - £113,133","£165,001 - £170,000","£495,001 - £510,000",null,0,1000,null,"Consol, EFA/DfE Staff Costs Note",null,1,null,null,null,null,null,0]
[null,null,"£340,001 - £350,000",null,null,null,null,"£113,134 - £116,667","£170,001 - £175,000","£510,001 - £525,000",null,0,1000,null,"Consol, EFA/DfE Staff Costs Note",null,1,null,null,null,null,null,0]
[null,null,"£350,001 - £360,000",null,null,null,null,"£116,668 - £120,000","£175,001 - £180,000","£525,001 - £540,000",null,{"$f":"L342","v":0},{"$f":"M342","v":1000},null,null,null,1,null,null,null,null,null,{"$f":"COUNTA(E344:E344)","v":0}]
[null,null,"£360,001 - £370,000",null,null,null,null,"£120,001 - £123,333","£180,001 - £185,000","£540,001 - £555,000",null,{"$f":"L342","v":0},{"$f":"M342","v":1000},null,null,null,1,null,null,null,null,null,0]
[null,null,"£370,001 - £380,000",null,null,null,null,"£123,334 - £126,667","£185,001 - £190,000","£555,001 - £570,000",null,{"$f":"L343","v":0},{"$f":"M343","v":1000},null,null,null,1,null,null,null,null,null,0]
[]
[null,"Pension contributions to individuals included within the numerical disclosures above:"]
[null,null,null,null,"Total",null,"TPS","LGPS","Stakeholder/ Private Pension Schemes","Other"]
[null,null,null,null,"£000",null,"£000","£000","£000","£000"]
[null,null,null,null,{"$f":"SUM(G351:J351)","v":0},null,null,null,null,null,null,{"$f":"+(L346)","v":0},{"$f":"+(M299)","v":0},null,"Consol, EFA/DfE Staff Costs Note",null,4,null,null,null,null,null,{"$f":"COUNTA(G351:J351)","v":0}]
[]
[]
["PROVISION OF BOARDING ACTIVITIES",null,null,null,null,null,null,null,"Lower limit","Upper limit "]
["SoFA",null,null,null,"£000",null,"£000",null,"£000","£000"]
[null,"INCOME"]
[null,null,"Fee income",null,null,null,null,null,{"$f":"$L$19","v":-750000},{"$f":"$M$19","v":750000},null,null,null,null,"Consol, EFA/DfE SoCNE",null,1,null,null,null,null,null,{"$f":"COUNTA(G357:G357)","v":0}]
[null,null,"Grants - EFA",null,null,null,null,null,{"$f":"I357","v":-750000},{"$f":"J357","v":750000},null,null,null,null,"Consol, EFA/DfE SoCNE",null,1,null,null,null,null,null,{"$f":"COUNTA(G358:G358)","v":0}]
[null,null,"Grants - DfE Family:"]
[null,null,"DfE",null,null,null,null,null,{"$f":"I358","v":-750000},{"$f":"J358","v":750000},null,null,null,null,"Consol, EFA/DfE SoCNE",null,1,null,null,null,null,null,{"$f":"COUNTA(G360:G360)","v":0}]
[null,null,"TA",null,null,null,null,null,{"$f":"I360","v":-750000},750000,null,null,null,null,"Consol, EFA/DfE SoCNE",null,1,null,null,null,null,null,0]
[null,null,"NCTL",null,null,null,null,null,-750000,750000,null,null,null,null,"Consol, EFA/DfE SoCNE",null,1,null,null,null,null,null,0]
[null,null,"STA",null,null,null,null,null,-750000,750000,null,null,null,null,"Consol, EFA/DfE SoCNE",null,1,null,null,null,null,null,0]
[null,null,"EHRC",null,null,null,null,null,-750000,750000,null,null,null,null,"Consol, EFA/DfE SoCNE",null,1,null,null,null,null,null,0]
[null,null,"OCC",null,null,null,null,null,-750000,750000,null,null,null,null,"Consol, EFA/DfE SoCNE",null,1,null,null,null,null,null,0]
[null,null,"Grants - Other Government",null,null,null,null,null,-750000,750000,null,null,null,null,"Consol, EFA/DfE SoCNE",null,1,null,null,null,null,null,0]
[null,null,"Grants - Other",null,null,null,null,null,-750000,750000,null,null,null,null,"Consol, EFA/DfE SoCNE",null,1,null,null,null,null,null,0]
[null,null,"Other Income",null,null,null,null,null,-750000,750000,null,null,null,null,"Consol, EFA/DfE SoCNE",null,1,null,null,null,null,null,0]
[]
[null,null,"TOTAL",{"$f":"IF(G370<>SUM(G357:G369),\"Error - column does not cast\",\"\")","v":""},null,null,{"$f":"E26","v":0},null,null,null,null,null,null,null,null,null,null,null,null,null,1,null,null,null,null,null,{"$f":"COUNTIF(G370:G370,\"<>0\")","v":0}]
[null,null,null,{"$f":"IF(D370<>\"\",\"Error - Total does not agree with boarding in SOFA\",\"\")","v":""}]
[null,"EXPENDITURE"]
[null,null,"Direct costs"]
[null,null,"Staff pay costs",null,null,null,null,null,{"$f":"I368","v":-750000},{"$f":"J368","v":750000},null,null,null,null,"Consol, EFA/DfE SoCNE",null,1,null,null,null,null,null,{"$f":"COUNTA(E374:E374)","v":0}]
[null,null,"Goods and services",null,null,null,null,null,{"$f":"I374","v":-750000},{"$f":"J374","v":750000},null,null,null,null,"Consol, EFA/DfE SoCNE",null,1,null,null,null,null,null,{"$f":"COUNTA(E375:E375)","v":0}]
[null,null,"Travel and subsistence","Notes",null,null,null,null,{"$f":"I375","v":-750000},750000,null,null,null,null,"Consol, EFA/DfE SoCNE",null,null,null,1,null,null,null,null,null,{"$f":"COUNTA(E376:E376)","v":0}]
[null,null,"Other direct costs",null,null,null,null,null,-750000,750000,null,null,null,null,"Consol, EFA/DfE SoCNE",null,null,null,1,null,null,null,null,null,{"$f":"COUNTA(E377:E377)","v":0}]
[null,null,"Bad debt write-offs",null,null,null,null,null,-750000,750000,null,null,null,null,"Consol, EFA/DfE SoCNE",null,1,null,null,null,null,null,{"$f":"COUNTA(E378:E378)","v":0}]
[]
[null,null,null,null,{"$f":"SUM(E373:E379)","v":0}]
[null,null,"Indirect costs"]
[null,null,"Staff pay costs",null,null,null,null,null,{"$f":"I378","v":-750000},{"$f":"J378","v":750000},null,null,null,null,"Consol, EFA/DfE SoCNE",null,1,null,null,null,null,null,{"$f":"COUNTA(E382:E382)","v":0}]
[null,null,"Utilities",null,null,null,null,null,{"$f":"I382","v":-750000},{"$f":"J382","v":750000},null,null,null,null,"Consol, EFA/DfE SoCNE",null,1,null,null,null,null,null,{"$f":"COUNTA(E383:E383)","v":0}]
[null,null,"Operating lease rentals - other",null,null,null,null,null,{"$f":"I383","v":-750000},{"$f":"J383","v":750000}]
[null,null,"Operating lease rentals - land & buildings",null,null,null,null,null,-750000,750000,null,null,null,null,"Consol, EFA/DfE SoCNE",null,null,null,1,null,null,null,null,null,{"$f":"COUNTA(E385:E385)","v":0}]
[null,null,"Rates",null,null,null,null,null,-750000,750000,null,null,null,null,"Consol, EFA/DfE SoCNE",null,null,null,1,null,null,null,null,null,{"$f":"COUNTA(E386:E386)","v":0}]
[null,null,"Insurance",null,null,null,null,null,-750000,750000,null,null,null,null,"Consol, EFA/DfE SoCNE",null,1,null,null,null,null,null,{"$f":"COUNTA(E387:E387)","v":0}]
[null,null,"Security",null,null,null,null,null,-750000,750000,null,null,null,null,"Consol, EFA/DfE SoCNE",null,1,null,null,null,null,null,{"$f":"COUNTA(E388:E388)","v":0}]
[null,null,"Maintenance of premises",null,null,null,null,null,-750000,750000,null,null,null,null,"Consol, EFA/DfE SoCNE",null,null,null,1,null,null,null,null,null,{"$f":"COUNTA(E389:E389)","v":0}]
[null,null,"Maintenance of equipment",null,null,null,null,null,-750000,750000,null,null,null,null,"Consol, EFA/DfE SoCNE",null,null,null,1,null,null,null,null,null,{"$f":"COUNTA(E390:E390)","v":0}]
[null,null,"Depreciation",{"$f":"D187","v":""},null,null,null,null,-750000,750000,null,null,null,null,"Consol, EFA/DfE SoCNE",null,1,null,null,null,null,null,{"$f":"COUNTA(E391:E391)","v":0}]
[null,null,"Amortisation",{"$f":"D188","v":""},null,null,null,null,-750000,750000,null,null,null,null,"Consol, EFA/DfE SoCNE",null,1,null,null,null,null,null,{"$f":"COUNTA(E392:E392)","v":0}]
[null,null,"Impairment",{"$f":"D189","v":""},null,null,null,null,-750000,750000,null,null,null,null,"Consol, EFA/DfE SoCNE",null,1,null,null,null,null,null,{"$f":"COUNTA(E393:E393)","v":0}]
[null,null,"Travel and subsistence",null,null,null,null,null,-750000,750000,null,null,null,null,"Consol, EFA/DfE SoCNE",null,null,null,1,null,null,null,null,null,{"$f":"COUNTA(E394:E394)","v":0}]
[null,null,"Gain/(loss) on disposal of tangible fixed assets",null,null,null,null,null,-750000,750000,null,null,null,null,null,null,null,null,1]
[null,null,"Gain/(loss) on disposal of intangible fixed assets",null,null,null,null,null,-750000,750000,null,null,null,null,null,null,null,null,1]
[null,null,"Gain/(loss) on disposal of investments",null,null,null,null,null,-750000,750000,null,null,null,null,null,null,null,null,1]
[null,null,"Other indirect costs",null,null,null,null,null,-750000,750000,null,null,null,null,"Consol, EFA/DfE SoCNE",null,null,null,1,null,null,null,null,null,{"$f":"COUNTA(E398:E398)","v":0}]
[]
[null,null,null,null,{"$f":"SUM(E381:E399)","v":0}]
[null,null,"Stock costs"]
[null,null,"Opening stock",null,null,null,null,null,{"$f":"I398","v":-750000},{"$f":"J398","v":750000},null,null,null,null,"Consol, EFA/DfE SoCNE",null,1,null,null,null,null,null,{"$f":"COUNTA(E402:E402)","v":0}]
[null,null,"Closing stock",null,null,null,null,null,{"$f":"I402","v":-750000},{"$f":"J402","v":750000},null,null,null,null,"Consol, EFA/DfE SoCNE",null,1,null,null,null,null,null,{"$f":"COUNTA(E403:E403)","v":0}]
[]
[null,null,"Movement",null,{"$f":"SUM(E402:E403)","v":0}]
[]
[null,null,"TOTAL",{"$f":"IF(G407<>+(E380+E400+E405),\"Error - column does not cast\",\"\")","v":""},null,null,{"$f":"-E36","v":0},null,null,null,null,null,null,null,null,null,null,null,null,null,1,null,null,null,null,null,{"$f":"COUNTIF(G407:G407,\"<>0\")","v":0}]
[]
[null,null,null,{"$f":"IF(D407<>\"\",\"Error - Total does not agree with boarding in SOFA\",\"\")","v":""}]
[null,"SURPLUS/(DEFICIT) ON BOARDING",null,null,null,null,{"$f":"SUM(G370:G408)","v":0}]
[null,"Surplus/(deficit) brought forward",null,null,null,null,null,null,{"$f":"I403","v":-750000},{"$f":"J403","v":750000},null,null,null,null,"Consol, Reserves Note",null,1,null,null,null,null,null,{"$f":"COUNTA(G411:G411)","v":0}]
[]
[null,"SURPLUS/(DEFICIT) CARRIED FORWARD",null,null,null,null,{"$f":"SUM(G410:G412)","v":0}]

{"sheet":"Fin.Return - BS","index":3,"n_rows":430,"n_cols":36,"rows_kept":430,"cut":false,"hidden":false,"merged":[[10,24,10,29],[10,30,10,35],[353,0,353,2],[256,1,256,8],[371,2,371,4],[13,0,13,7],[168,6,168,10],[168,11,168,17],[237,6,237,10],[237,11,237,17],[421,1,421,12],[374,0,374,2],[2,9,2,14],[10,3,10,6],[59,0,59,14],[189,1,189,2],[187,1,187,8]]}
["Accounts Return March 2016 - Financial Return (Balance Sheet)"]
[]
["Trust:",null,{"$f":"'Standing Data'!$D$3","v":0},null,null,null,null,"% of cells",null,"Navigation Links & Error Counts"]
[]
["Period end:",null,{"$f":"'Standing Data'!$D$6","v":"2016-03-31"},null,null,null,"Sourced directly from Financial Statements",{"$f":"+(Y13/AD13)","v":0.71961325966850831},null,"SoFA",null,"Balance Sheet",{"$f":"COUNTIF('Fin.Return - BS'!D16:H58,\"Error*\")","v":0},"Notes to the F.S.",{"$f":"K7+M7+O7+K9+M9+O9+K11+M11+O11","v":0}]
[]
["Company No.:",null,{"$f":"'Standing Data'!D14","v":"Type number here"},null,null,null,"Additional to Financial Statements, prepared on a similar basis",{"$f":"AA13/AD13","v":3.0386740331491711E-2},null,"Income",null,"Expenses",null,"Boarding"]
[]
["Academy UPIN:",null,{"$f":"IF(AND(OR('Standing Data'!D9=\"Multiple\",'Standing Data'!D9=\"Federation\"),'Standing Data'!M48=0),'Standing Data'!E48,IF('Standing Data'!M48<>0,'Standing Data'!M48,IF(OR('Standing Data'!D9=\"Other\",'Standing Data'!F9<>\"\"),'Standing Data'!F9,'Standing Data'!D12)))","v":{"$error":"#N/A"}},null,null,null,"Additional to Financial Statements, prepared on a different/new basis",{"$f":"AB13/AD13","v":2.7624309392265192E-3},null,"Fixed Assets",{"$f":"COUNTIF(D60:P191,\"Error*\")","v":0},"Current Assets",{"$f":"COUNTIF(D193:M266,\"Error*\")","v":0},"Liabilities",{"$f":"COUNTIF(D268:N431,\"Error*\")","v":0}]
[null,null,"Above details will populate automatically"]
[null,null,null,"Cells populate automatically from elsewhere in the Return",null,null,null,{"$f":"AC13/AD13","v":0.10359116022099447},null,"Funds",null,"Pensions & Commit'ts",null,"PFI & Later Notes",null,null,null,null,null,null,null,null,null,null,"Possible Cells",null,null,null,null,null,"Completed Cells"]
["FINANCIAL RETURN",null,null,"Error check cells",null,"HELP",null,null,null,null,null,null,null,null,null,null,null,null,null,null,null,null,"DESTINATION",null,"Green","Blue","Amber","Red","Grey","Total","Green","Blue","Amber","Red","Grey","Total"]
[null,null,null,null,null,null,null,null,null,null,null,null,null,null,null,null,null,null,null,null,null,null,null,null,{"$f":"+SUM(Y19:Y443)","v":521},{"$f":"+SUM(Z19:Z443)","v":104},{"$f":"+SUM(AA19:AA443)","v":22},{"$f":"+SUM(AB19:AB443)","v":2},{"$f":"+SUM(AC19:AC443)","v":75},{"$f":"+SUM(Y13:AC13)","v":724},{"$f":"+SUM(AE19:AE443)","v":13},0,0,0,0,0]
["BALANCE SHEET"]
[]
[null,null,null,null,{"$f":"YEAR('Fin.Return - SOFA'!C5)","v":2016},null,{"$f":"E16","v":2016},null,"Lower limit","Upper limit "]
[null,null,null,null,"£000",null,"£000",null,"£000","£000"]
["FIXED ASSETS"]
[null,"Tangible assets",null,null,null,null,null,null,0,750000,null,null,null,null,null,null,null,null,null,null,null,null,"Consol, EFA/DfE SoFP",null,1,null,null,null,null,null,{"$f":"COUNTA('Fin.Return - BS'!#REF!)","v":1}]
[null,"Intangible assets",null,null,null,null,null,null,{"$f":"I19","v":0},{"$f":"J19","v":750000},null,null,null,null,null,null,null,null,null,null,null,null,"Consol, EFA/DfE SoFP",null,1,null,null,null,null,null,{"$f":"COUNTA('Fin.Return - BS'!#REF!)","v":1}]
[null,"Investments",null,null,null,null,null,null,{"$f":"I20","v":0},{"$f":"J20","v":750000},null,null,null,null,null,null,null,null,null,null,null,null,"Consol, EFA/DfE SoFP",null,1,null,null,null,null,null,{"$f":"COUNTA('Fin.Return - BS'!#REF!)","v":1}]
[]
[null,null,null,null,null,null,{"$f":"SUM(G19:G22)","v":0}]
["CURRENT ASSETS"]
[null,"Stock",null,null,null,null,null,null,0,{"$f":"J21","v":750000},null,null,null,null,null,null,null,null,null,null,null,null,"Consol, EFA/DfE SoFP",null,1,null,null,null,null,null,{"$f":"COUNTA('Fin.Return - BS'!#REF!)","v":1}]
[null,"Debtors - amounts due within one year",null,null,null,null,null,null,{"$f":"I25","v":0},750000,null,null,null,null,null,null,null,null,null,null,null,null,"Consol, EFA/DfE SoFP",null,1,null,null,null,null,null,{"$f":"COUNTA('Fin.Return - BS'!#REF!)","v":1}]
[null,"Debtors  - amounts due after more than one year",null,null,null,null,null,null,0,750000,null,null,null,null,null,null,null,null,null,null,null,null,"Consol, EFA/DfE SoFP",null,1,null,null,null,null,null,{"$f":"COUNTA('Fin.Return - BS'!#REF!)","v":1}]
[null,"Investments",null,null,null,null,null,null,0,750000,null,null,null,null,null,null,null,null,null,null,null,null,"Consol, EFA/DfE SoFP",null,1,null,null,null,null,null,{"$f":"COUNTA('Fin.Return - BS'!#REF!)","v":1}]
[null,"Cash at bank and in hand",null,null,null,null,null,null,0,750000,null,null,null,null,null,null,null,null,null,null,null,null,"Consol, EFA/DfE SoFP",null,1,null,null,null,null,null,{"$f":"COUNTA('Fin.Return - BS'!#REF!)","v":1}]
[]
[null,null,null,null,{"$f":"SUM(E24:E30)","v":0}]
["CREDITORS: AMOUNTS DUE WITHIN ONE YEAR",null,null,null,null,null,null,null,{"$f":"-J19","v":-750000},0,null,null,null,null,null,null,null,null,null,null,null,null,"Consol, EFA/DfE SoFP",null,1,null,null,null,null,null,{"$f":"COUNTA('Fin.Return - BS'!#REF!)","v":1}]
[]
["NET CURRENT ASSETS/(LIABILITIES)",null,null,null,null,null,{"$f":"SUM(E31:E33)","v":0}]
[]
["TOTAL ASSETS LESS CURRENT LIABILTIIES",null,null,null,null,null,{"$f":"SUM(G23:G35)","v":0}]
["CREDITORS: AMOUNTS DUE AFTER MORE THAN ONE YEAR",null,null,null,null,null,null,null,{"$f":"I32","v":-750000},{"$f":"J32","v":0},null,null,null,null,null,null,null,null,null,null,null,null,"Consol, EFA/DfE SoFP",null,1,null,null,null,null,null,{"$f":"COUNTA('Fin.Return - BS'!#REF!)","v":1}]
["PROVISIONS FOR LIABILITIES AND CHARGES",null,null,null,null,null,null,null,{"$f":"I37","v":-750000},{"$f":"J37","v":0},null,null,null,null,null,null,null,null,null,null,null,null,"Consol, EFA/DfE SoFP",null,1,null,null,null,null,null,{"$f":"COUNTA('Fin.Return - BS'!#REF!)","v":1}]
[]
["NET ASSETS EXCLUDING PENSION LIABILTIY",null,null,null,null,null,{"$f":"SUM(G36:G39)","v":0}]
[null,"Pension scheme liability",null,null,null,null,null,null,{"$f":"I38","v":-750000},{"$f":"J29","v":750000},null,null,null,null,null,null,null,null,null,null,null,null,"Consol, EFA/DfE SoFP",null,1,null,null,null,null,null,{"$f":"COUNTA('Fin.Return - BS'!#REF!)","v":1}]
[]
["NET ASSETS INCLUDING PENSION SCHEME LIABILITY",null,null,null,null,null,{"$f":"SUM(G40:G42)","v":0}]
["FUNDS OF THE ACADEMY:"]
["Endowment Funds",null,null,null,null,null,null,null,{"$f":"I41","v":-750000},{"$f":"J41","v":750000}]
["Restricted Funds"]
[null,"Fixed Asset Fund(s)",null,null,null,null,null,null,{"$f":"I45","v":-750000},{"$f":"J45","v":750000},null,null,null,null,null,null,null,null,null,null,null,null,"Consol, EFA/DfE SoFP",null,1,null,null,null,null,null,{"$f":"COUNTA('Fin.Return - BS'!G1:G1)","v":0}]
[null,"General Fund(s)",null,null,null,null,null,null,{"$f":"I47","v":-750000},{"$f":"J47","v":750000},null,null,null,null,null,null,null,null,null,null,null,null,"Consol, EFA/DfE SoFP",null,1,null,null,null,null,null,{"$f":"COUNTA('Fin.Return - BS'!G2:G2)","v":0}]
[null,"Pension Reserves",null,{"$f":"IF(G49<>G41, \"Error - not equal to pension scheme liability\",\"\")","v":""},null,null,null,null,{"$f":"I48","v":-750000},{"$f":"J48","v":750000},null,null,null,null,null,null,null,null,null,null,null,null,"Consol, EFA/DfE SoFP",null,1,null,null,null,null,null,{"$f":"COUNTA('Fin.Return - BS'!G3:G3)","v":0}]
[]
["Total Restricted Funds",null,null,null,null,null,{"$f":"SUM(G47:G50)","v":0}]
["Unrestricted Funds"]
[null,"General Fund(s)",null,null,null,null,null,null,{"$f":"I49","v":-750000},{"$f":"J49","v":750000},null,null,null,null,null,null,null,null,null,null,null,null,"Consol, EFA/DfE SoFP",null,1,null,null,null,null,null,{"$f":"COUNTA('Fin.Return - BS'!G7:G7)","v":1}]
[]
["Total Unrestricted Funds",null,null,null,null,null,{"$f":"SUM(G53:G54)","v":0}]
[]
["TOTAL FUNDS",null,null,{"$f":"IF(G43<>G57,\"Error - with net assets\",\"\")","v":""},null,null,{"$f":"G45+G51+G55","v":0}]
[]
[]
["NOTES TO THE BALANCE SHEET"]
["TANGIBLE FIXED ASSETS",null,null,null,"Total",null,"Freehold \nLand and Buildings","Leasehold Land and Buildings","Leasehold Improvements","Plant & Machinery","Furniture & Equipment","Computer Equipment","Motor \nVehicles","Assets \nUnder Construction",null,"Lower limit","Upper limit "]
["Balance sheet",null,null,null,"£000",null,"£000","£000","£000","£000","£000","£000","£000","£000",null,"£000","£000"]
[null,"Cost or valuation"]
[null,null,"At start of period",null,{"$f":"SUM(G64:N64)","v":0},null,null,null,null,null,null,null,null,null,null,0,{"$f":"'Fin.Return - BS'!$J$19","v":750000},null,null,null,null,null,null,7,null,2]
[null,null,"Additions - funded from EFA capital grant",null,0,null,null,null,null,null,null,null,null,null,null,{"$f":"P64","v":0},750000,null,null,null,null,null,null,0,null,9]
[null,null,"Additions - other",null,0,null,null,null,null,null,null,null,null,null,null,0,750000,null,null,null,null,null,null,null,null,9]
[null,null,"Transferred in on conversion - local authority",null,0,null,null,null,null,null,null,null,null,null,null,{"$f":"P65","v":0},{"$f":"Q65","v":750000},null,null,null,null,null,null,7,null,2]
[null,null,"Transferred in on conversion - elsewhere",null,0,null,null,null,null,null,null,null,null,null,null,0,750000,null,null,null,null,null,null,7,null,2]
[null,null,"Transferred in on existing academies joining the trust",null,0,null,null,null,null,null,null,null,null,null,null,0,750000,null,null,null,null,null,null,7,null,2]
[null,null,"Donations (non-EFA)",{"$f":"IF(E70<>'Fin.Return - SOFA'!E68,\"Error - does not equal capital donations in SOFA voluntary income note\",\"\")","v":""},0,null,null,null,null,null,null,null,null,null,null,{"$f":"P68","v":0},{"$f":"Q68","v":750000},null,null,null,null,null,null,0,null,9]
[null,null,"Donated by the EFA",{"$f":"IF(E71<>'Fin.Return - SOFA'!E69,\"Error - does not equal EFA capital donations in SOFA voluntary income note\",\"\")","v":""},0,null,null,null,null,null,null,null,null,null,null,{"$f":"P69","v":0},{"$f":"Q69","v":750000},null,null,null,null,null,null,null,null,9]
[null,null,"Disposals",null,0,null,null,null,null,null,null,null,null,null,null,{"$f":"'Fin.Return - BS'!$I$45","v":-750000},0,null,null,null,null,null,null,7,null,2]
[null,null,"Transferred out on existing academies leaving the trust",null,0,null,null,null,null,null,null,null,null,null,null,-750000,"-",null,null,null,null,null,null,7,null,2]
["SoFA",null,"Revaluations",null,0,null,null,null,null,null,null,null,null,null,null,{"$f":"P72","v":-750000},{"$f":"Q70","v":750000},null,null,null,null,null,null,7,null,2]
[null,null,"Reclassifications",{"$f":"IF(E75<>0, \"Error - reclassifications must sum to zero\",\"\")","v":""},0,null,null,null,null,null,null,null,null,null,null,{"$f":"P74","v":-750000},{"$f":"Q74","v":750000},null,null,null,null,null,null,7,null,2]
[]
[null,null,"At close of period",null,{"$f":"SUM(E64:E76)","v":0},null,{"$f":"SUM(G64:G76)","v":0},0,0,0,0,0,0,0]
[null,null,null,null,{"$f":"IF(E77<0,\"Error - credit bal.\",\"\")","v":""},null,{"$f":"IF(G77<0,\"Error - credit bal.\",\"\")","v":""},"","","","","","",""]
[null,"Depreciation"]
[null,null,"At start of period",null,{"$f":"SUM(G80:N80)","v":0},null,0,0,0,0,0,0,0,0,null,{"$f":"P75","v":-750000},0,null,null,null,null,null,null,7,null,2]
[null,null,"Charge in the period",null,0,null,null,null,null,null,null,null,null,null,null,{"$f":"P80","v":-750000},{"$f":"Q80","v":0},null,null,null,null,null,null,6,null,2]
[null,null,"Eliminated on disposal",null,0,null,null,null,null,null,null,null,null,null,null,0,{"$f":"'Fin.Return - BS'!$J$19","v":750000},null,null,null,null,null,null,7,null,2]
[null,null,"Transferred out on existing academies leaving the trust",null,0,null,null,null,null,null,null,null,null,null,null,0,{"$f":"'Fin.Return - BS'!$J$19","v":750000},null,null,null,null,null,null,7,null,2]
[null,null,"Revaluations",null,0,null,null,null,null,null,null,null,null,null,null,{"$f":"P81","v":-750000},{"$f":"Q82","v":750000},null,null,null,null,null,null,7,null,2]
[null,null,"Reclassifications",{"$f":"IF(E85<>0, \"Error - reclassifications must sum to zero\",\"\")","v":""},0,null,null,null,null,null,null,null,null,null,null,{"$f":"P84","v":-750000},{"$f":"Q84","v":750000},null,null,null,null,null,null,7,null,2]
[]
[null,null,"At close of period",null,{"$f":"SUM(E80:E86)","v":0},null,{"$f":"SUM(G80:G86)","v":0},0,0,0,0,0,0,0]
[null,null,null,null,{"$f":"IF(E87>0,\"Error - debit bal.\",\"\")","v":""},null,{"$f":"IF(G87>0,\"Error - debit bal.\",\"\")","v":""},"","","","","","",""]
[null,"Impairment"]
[null,null,"At start of period",null,{"$f":"SUM(G90:N90)","v":0},null,0,0,0,0,0,0,0,0,null,{"$f":"P85","v":-750000},0,null,null,null,null,null,null,7,null,2]
[null,null,"Charge in the period",null,{"$f":"SUM(G91:N91)","v":0},null,null,null,null,null,null,null,null,null,null,{"$f":"P90","v":-750000},{"$f":"Q90","v":0},null,null,null,null,null,null,7,null,2]
[null,null,"Released in period",null,{"$f":"SUM(G92:N92)","v":0},null,null,null,null,null,null,null,null,null,null,0,{"$f":"'Fin.Return - BS'!$J$19","v":750000},null,null,null,null,null,null,7,null,2]
[null,null,"Transferred out on existing academies leaving the trust",null,{"$f":"SUM(G93:N93)","v":0},null,null,null,null,null,null,null,null,null,null,0,{"$f":"'Fin.Return - BS'!$J$19","v":750000},null,null,null,null,null,null,7,null,2]
[]
[null,null,"At close of period",null,{"$f":"SUM(E90:E94)","v":0},null,{"$f":"SUM(G90:G94)","v":0},0,0,0,0,0,0,0]
[null,null,null,null,{"$f":"IF(E95>0,\"Error - debit bal.\",\"\")","v":""},null,{"$f":"IF(G95>0,\"Error - debit bal.\",\"\")","v":""},"","","","","","",""]
[null,"Net book value"]
[null,null,"At close of period",{"$f":"IF(E98<>E77+E87+E95,\"Error - column does not cast\",\"\")","v":""},{"$f":"'Fin.Return - BS'!G19","v":0},null,{"$f":"G77+G87+G95","v":0},0,0,0,0,0,0,0,null,null,null,null,null,null,null,null,null,null,null,null,null,1]
[null,null,null,{"$f":"IF(E98<>SUM(G98:N98),\"Error - row does not cross cast\",\"\")","v":""},null,null,{"$f":"IF(G98<0,\"Error - credit bal.\",\"\")","v":""},"","","","","","",""]
[null,null,null,{"$f":"IF(OR(D98<>\"\",D99<>\"\"),\"Error - Total does not agree to balance sheet\",\"\")","v":""}]
[null,null,"At start of period",null,{"$f":"E64+E80+E90","v":0},null,{"$f":"G64+G80+G90","v":0},0,0,0,0,0,0,0]
[null,null,null,null,{"$f":"IF(E101<0,\"Error - credit bal.\",\"\")","v":""},null,{"$f":"IF(G101<0,\"Error - credit bal.\",\"\")","v":""},"","","","","","",""]
[]
[null,"Depreciation periods per accounting policies: (months)",null,null,"Notes"]
[null,null,"Single period or minimum of range",null,null,null,null,null,null,null,null,null,null,null,null,{"$f":"P92","v":0},1500,null,null,null,null,null,null,6,null,2]
[null,null,"Maximum of range",null,null,null,null,null,null,null,null,null,null,null,null,{"$f":"P105","v":0},{"$f":"Q105","v":1500},null,null,null,null,null,null,6,null,2]
[null,null,"Reducing balance rate",null,"Notes",null,null,null,null,null,null,null,null,null,null,{"$f":"P106","v":0},100,null,null,null,null,null,null,6,null,2]
[null,null,null,null,null,null,{"$f":"IF(AND(G77>0,G105=\"\",G107=\"\"),\"Error - depreciation absent\",\"\")","v":""},"","","","","",""]
[null,"Analysis of closing NBV of Land and Buildings:",null,null,"Notes"]
[null,null,"Land",null,null,null,null,null,null,null,null,null,null,null,null,0,{"$f":"'Fin.Return - BS'!$J$19","v":750000},null,null,null,null,null,null,null,null,2]
[null,null,"Buildings",null,null,null,null,null,null,null,null,null,null,null,null,0,{"$f":"'Fin.Return - BS'!$J$19","v":750000},null,null,null,null,null,null,null,null,2]
[]
[null,null,null,null,null,null,{"$f":"G98","v":0},{"$f":"H98","v":0}]
[null,null,null,null,null,null,{"$f":"IF(G113<>SUM(G110:G112),\"Error - column does not cast\",\"\")","v":""},{"$f":"IF(H113<>SUM(H110:H112),\"Error - column does not cast\",\"\")","v":""}]
[null,"Revalued assets - historic cost analysis:"]
[null,null,"Historic cost",null,{"$f":"SUM(G116:N116)","v":0},null,null,null,null,null,null,null,null,null,null,{"$f":"P105","v":0},{"$f":"'Fin.Return - BS'!$J$19","v":750000},null,null,null,null,null,null,null,null,9]
[null,null,"Closing cumulative depreciation based on historic cost",null,{"$f":"SUM(G117:N117)","v":0},null,null,null,null,null,null,null,null,null,null,{"$f":"(P91)","v":-750000},0,null,null,null,null,null,null,null,null,9]
[]
[null,null,"Historic cost - carrying value",null,{"$f":"SUM(E116:E118)","v":0},null,{"$f":"SUM(G116:G118)","v":0},0,0,0,0,0,0,0]
[]
[null,"NBV of finance leased assets:",null,null,{"$f":"SUM(G121:N121)","v":0},null,null,null,null,null,null,null,null,null,null,{"$f":"P116","v":0},{"$f":"Q116","v":750000}]
[null,null,null,null,null,null,{"$f":"IF(G121>G98,\"Error - above greater than total NBV\",\"\")","v":""},"","","","","",{"$f":"IF(M121>M98,\"Error - above greater than total NBV\",\"\")","v":""},{"$f":"IF(N121>N98,\"Error - above greater than total NBV\",\"\")","v":""},null,null,null,null,null,null,null,null,null,7,null,2]
[]
["INTANGIBLE FIXED ASSETS",null,null,null,"Total",null,"Other","Software","Trademarks, \nlicences, royalties, etc.","Goodwill",null,"Lower limit","Upper limit "]
["Balance sheet",null,null,null,"£000",null,"£000","£000","£000","£000",null,"£000","£000"]
[null,"Cost or valuation"]
[null,null,"At start of period",null,{"$f":"SUM(G127:J127)","v":0},null,null,null,null,null,null,0,{"$f":"'Fin.Return - BS'!$J$19","v":750000},null,null,null,null,null,null,null,null,null,null,null,3]
[null,null,"Additions",null,{"$f":"SUM(G128:J128)","v":0},null,null,null,null,null,null,{"$f":"L127","v":0},750000,null,null,null,null,null,null,null,null,null,null,null,3]
[null,null,"Transferred in on conversion - local authority",null,0,null,null,null,null,null,null,{"$f":"L128","v":0},750000,null,null,null,null,null,null,null,null,null,null,null,3]
[null,null,"Transferred in on conversion - elsewhere",null,0,null,null,null,null,null,null,{"$f":"L129","v":0},750000,null,null,null,null,null,null,null,null,null,null,null,3]
[null,null,"Transferred in on existing academies joining the trust",null,0,null,null,null,null,null,null,{"$f":"L130","v":0},750000,null,null,null,null,null,null,null,null,null,null,null,3]
[null,null,"Disposals",null,0,null,null,null,null,null,null,{"$f":"'Fin.Return - BS'!$I$45","v":-750000},0,null,null,null,null,null,null,null,null,null,null,null,3]
[null,null,"Transferred out on existing academies leaving the trust",null,0,null,null,null,null,null,null,{"$f":"'Fin.Return - BS'!$I$45","v":-750000},0,null,null,null,null,null,null,null,null,null,null,null,3]
["SoFA",null,"Revaluations",null,0,null,null,null,null,null,null,{"$f":"L132","v":-750000},{"$f":"M130","v":750000},null,null,null,null,null,null,null,null,null,null,null,3]
[null,null,"Reclassifications",{"$f":"IF(E135<>0, \"Error - reclassifications must sum to zero\",\"\")","v":""},0,null,null,null,null,null,null,{"$f":"L134","v":-750000},{"$f":"M134","v":750000},null,null,null,null,null,null,null,null,null,null,null,3]
[]
[null,null,"At close of period",null,{"$f":"SUM(E127:E136)","v":0},null,{"$f":"SUM(G127:G136)","v":0},{"$f":"SUM(H127:H136)","v":0},{"$f":"SUM(I127:I136)","v":0},{"$f":"SUM(J127:J136)","v":0}]
[null,null,null,null,{"$f":"IF(E137<0,\"Error - credit bal.\",\"\")","v":""},null,{"$f":"IF(G137<0,\"Error - credit bal.\",\"\")","v":""},{"$f":"IF(H137<0,\"Error - credit bal.\",\"\")","v":""},{"$f":"IF(I137<0,\"Error - credit bal.\",\"\")","v":""},{"$f":"IF(J137<0,\"Error - credit bal.\",\"\")","v":""}]
[null,"Amortisation"]
[null,null,"At start of period",null,{"$f":"SUM(G140:J140)","v":0},null,null,null,null,null,null,{"$f":"L135","v":-750000},0,null,null,null,null,null,null,null,null,null,null,null,3]
[null,null,"Charge in the period",null,0,null,null,null,null,null,null,{"$f":"L140","v":-750000},{"$f":"M140","v":0},null,null,null,null,null,null,null,null,null,null,null,3]
[null,null,"Eliminated on disposal",null,0,null,null,null,null,null,null,0,{"$f":"M135","v":750000},null,null,null,null,null,null,null,null,null,null,null,3]
[null,null,"Transferred out on existing academies leaving the trust",null,0,null,null,null,null,null,null,0,{"$f":"(M142)","v":750000},null,null,null,null,null,null,null,null,null,null,null,3]
[null,null,"Revaluations",null,0,null,null,null,null,null,null,{"$f":"L141","v":-750000},{"$f":"M142","v":750000},null,null,null,null,null,null,null,null,null,null,null,3]
[null,null,"Reclassifications",{"$f":"IF(E145<>0, \"Error - reclassifications must sum to zero\",\"\")","v":""},0,null,null,null,null,null,null,{"$f":"L144","v":-750000},{"$f":"M144","v":750000},null,null,null,null,null,null,null,null,null,null,null,3]
[]
[null,null,"At close of period",null,{"$f":"SUM(E140:E146)","v":0},null,{"$f":"SUM(G140:G146)","v":0},{"$f":"SUM(H140:H146)","v":0},{"$f":"SUM(I140:I146)","v":0},{"$f":"SUM(J140:J146)","v":0}]
[null,null,null,null,{"$f":"IF(E147>0,\"Error - debit bal.\",\"\")","v":""},null,{"$f":"IF(G147>0,\"Error - debit bal.\",\"\")","v":""},{"$f":"IF(H147>0,\"Error - debit bal.\",\"\")","v":""},{"$f":"IF(I147>0,\"Error - debit bal.\",\"\")","v":""},{"$f":"IF(J147>0,\"Error - debit bal.\",\"\")","v":""}]
[null,"Impairment"]
[null,null,"At start of period",null,{"$f":"SUM(G150:J150)","v":0},null,null,null,null,null,null,{"$f":"L145","v":-750000},0,null,null,null,null,null,null,null,null,null,null,null,3]
[null,null,"Charge in the period",null,0,null,null,null,null,null,null,{"$f":"L150","v":-750000},0,null,null,null,null,null,null,null,null,null,null,null,3]
[null,null,"Released in period",null,0,null,null,null,null,null,null,0,{"$f":"M145","v":750000},null,null,null,null,null,null,null,null,null,null,null,3]
[null,null,"Transferred out on existing academies leaving the trust",null,{"$f":"SUM(G153:I153)","v":0},null,null,null,null,null,null,{"$f":"(L152)","v":0},{"$f":"(M152)","v":750000},null,null,null,null,null,null,null,null,null,null,null,3]
[]
[null,null,"At close of period",null,{"$f":"SUM(E150:E154)","v":0},null,{"$f":"SUM(G150:G154)","v":0},{"$f":"SUM(H150:H154)","v":0},{"$f":"SUM(I150:I154)","v":0},{"$f":"SUM(J150:J154)","v":0}]
[null,null,null,null,{"$f":"IF(E155>0,\"Error - debit bal.\",\"\")","v":""},null,{"$f":"IF(G155>0,\"Error - debit bal.\",\"\")","v":""},{"$f":"IF(H155>0,\"Error - debit bal.\",\"\")","v":""},{"$f":"IF(I155>0,\"Error - debit bal.\",\"\")","v":""},{"$f":"IF(J155>0,\"Error - debit bal.\",\"\")","v":""}]
[null,"Net book value"]
[null,null,"At close of period",{"$f":"IF(E158<>(E137+E147+E155),\"Error - column does not cast\",\"\")","v":""},{"$f":"'Fin.Return - BS'!G20","v":0},null,{"$f":"G137+G147+G155","v":0},{"$f":"H137+H147+H155","v":0},{"$f":"I137+I147+I155","v":0},{"$f":"J137+J147+J155","v":0},null,null,null,null,null,null,null,null,null,null,null,null,null,null,null,null,null,null,1]
[null,null,null,{"$f":"IF(E158<>SUM(G158:I158),\"Error - row does not cross cast\",\"\")","v":""},null,null,{"$f":"IF(G158<0,\"Error - credit bal.\",\"\")","v":""},{"$f":"IF(H158<0,\"Error - credit bal.\",\"\")","v":""},{"$f":"IF(I158<0,\"Error - credit bal.\",\"\")","v":""},{"$f":"IF(J158<0,\"Error - credit bal.\",\"\")","v":""}]
[null,null,null,{"$f":"IF(OR(D158<>\"\",D159<>\"\"),\"Total does not agree with balance sheet\",\"\")","v":""}]
[null,null,"At start of period",null,{"$f":"E127+E140+E150","v":0},null,{"$f":"G127+G140+G150","v":0},{"$f":"H127+H140+H150","v":0},{"$f":"I127+I140+I150","v":0},{"$f":"J127+J140+J150","v":0}]
[null,null,null,null,{"$f":"IF(E161<0,\"Error - negative\",\"\")","v":""},null,{"$f":"IF(G161<0,\"Error - credit bal.\",\"\")","v":""},{"$f":"IF(H161<0,\"Error - credit bal.\",\"\")","v":""},{"$f":"IF(I161<0,\"Error - credit bal.\",\"\")","v":""},{"$f":"IF(J161<0,\"Error - credit bal.\",\"\")","v":""}]
[null,"Amortisation periods: (months)",null,null,"Notes"]
[null,null,"Single period or minimum of range",null,null,null,null,null,null,null,null,0,1200,null,null,null,null,null,null,null,null,null,null,null,3]
[null,null,"Maximum of range",null,null,null,null,null,null,null,null,0,{"$f":"M164","v":1200},null,null,null,null,null,null,null,null,null,null,null,3]
[null,null,"Reducing balance rate",null,"Notes",null,null,null,null,null,null,0,100,null,null,null,null,null,null,null,null,null,null,null,3]
[null,null,null,null,null,null,{"$f":"IF(AND(G137>0,G164=\"\",G166=\"\"),\"Error - amortisation absent\",\"\")","v":""},{"$f":"IF(AND(H137>0,H164=\"\",H166=\"\"),\"Error - amortisation absent\",\"\")","v":""},{"$f":"IF(AND(I137>0,I164=\"\",I166=\"\"),\"Error - amortisation absent\",\"\")","v":""},{"$f":"IF(AND(J137>0,J164=\"\",J166=\"\"),\"Error - amortisation absent\",\"\")","v":""}]
[]
["INVESTMENTS - FIXED",null,null,null,null,null,"Held at Cost",null,null,null,null,"Held at market (fair) value",null,null,null,null,null,null,null,"Lower limit","Upper limit "]
[null,null,null,null,"Total",null,"Subsidiaries ","Unlisted shares","Unlisted corporate bonds","Investment property","Other \n","Listed shares*","Managed Funds*","Listed Bonds (Gilts and corporate)","Derivative securities","Cash term deposits","Investment property","Other"]
["Balance sheet",null,null,null,"£000",null,"£000","£000","£000","£000","£000","£000","£000","£000","£000","£000","£000","£000",null,"£000","£000"]
[null,"Opening balance",null,null,{"$f":"SUM(G172:R172)","v":0},null,null,null,null,null,null,null,null,null,null,null,null,null,null,null,null,null,null,null,12]
[null,"Additions",null,null,{"$f":"SUM(G173:R173)","v":0},null,null,null,null,null,null,null,null,null,null,null,null,null,null,0,{"$f":"'Fin.Return - BS'!$J$19","v":750000},null,null,null,12]
[null,"Reclassification from current asset investments",null,null,0,null,null,null,null,null,null,null,null,null,null,null,null,null,null,{"$f":"T173","v":0},750000,null,null,null,12]
[null,"Transferred in on conversion - local authority",null,null,0,null,null,null,null,null,null,null,null,null,null,null,null,null,null,{"$f":"T174","v":0},750000,null,null,null,12]
[null,"Transferred in on conversion - elsewhere",null,null,0,null,null,null,null,null,null,null,null,null,null,null,null,null,null,{"$f":"T175","v":0},750000,null,null,null,12]
[null,"Transferred in on existing academies joining the trust",null,null,0,null,null,null,null,null,null,null,null,null,null,null,null,null,null,{"$f":"T176","v":0},750000,null,null,null,12]
[null,"Transferred out on existing academies leaving the trust",null,null,0,null,null,null,null,null,null,null,null,null,null,null,null,null,null,{"$f":"'Fin.Return - BS'!$I$45","v":-750000},0,null,null,null,12]
[null,"Disposals",null,null,0,null,null,null,null,null,null,null,null,null,null,null,null,null,null,{"$f":"'Fin.Return - BS'!$I$45","v":-750000},0,null,null,null,12]
[null,"Reclassification to current asset investments",null,null,0,null,null,null,null,null,null,null,null,null,null,null,null,null,null,{"$f":"T179","v":-750000},{"$f":"U179","v":0},null,null,null,12]
[null,"Reclassification within fixed asset investments",null,{"$f":"IF(E181<>0,\"Error - reclassifications must sum to zero\",\"\")","v":""},0,null,null,null,null,null,null,null,null,null,null,null,null,null,null,{"$f":"(T180)","v":-750000},750000,null,null,null,12]
["SoFA","Period end fair value gain/(loss)",null,null,0,null,null,null,null,null,null,null,null,null,null,null,null,null,null,{"$f":"T180","v":-750000},{"$f":"U176","v":750000},null,null,null,7]
[null,"Impairment",null,null,0,null,null,null,null,null,null,null,null,null,null,null,null,null,null,{"$f":"T182","v":-750000},{"$f":"U182","v":750000},null,null,null,12]
[]
[null,"Closing balance",null,{"$f":"IF(E185<>SUM(E172:E184),\"Error - column does not cast\",\"\")","v":""},{"$f":"'Fin.Return - BS'!G21","v":0},null,{"$f":"SUM(G172:G184)","v":0},0,0,{"$f":"SUM(J172:J184)","v":0},0,0,0,0,0,0,0,0,null,null,null,null,null,null,null,null,null,null,1]
[null,null,null,null,null,null,{"$f":"IF(G185<0,\"Error - credit bal.\",\"\")","v":""},"","",{"$f":"IF(J185<0,\"Error - credit bal.\",\"\")","v":""},{"$f":"IF(K185<0,\"Error - credit bal.\",\"\")","v":""},"","","","","","",""]
[null,"Please describe 'Others' below",null,{"$f":"IF(OR(D185<>\"\",D186<>\"\"),\"Error - Total does not agree with balance sheet\",\"\")","v":""}]
[null,null,null,null,null,null,null,null,null,null,null,null,null,null,null,null,null,null,null,null,null,null,null,null,null,1]
[null,null,null,null,null,null,null,null,null,null,"*=includes uninvested cash balances."]
[null,"Does the Academy have financial instruments other than receivables and payables?",null,"No","Notes",null,null,null,null,null,null,null,null,null,null,null,null,null,null,null,null,null,null,null,null,null,null,1]
[null,null,null,"Select from drop-down box in the cell above"]
[]
["STOCK",null,null,null,{"$f":"'Fin.Return - BS'!E16","v":2016},null,"Lower limit","Upper limit "]
["Balance sheet",null,null,null,"£000",null,"£000","£000"]
[null,"Clothing/uniform",null,null,null,null,0,{"$f":"'Fin.Return - BS'!$J$19","v":750000},null,null,null,null,null,null,null,null,null,null,null,null,null,null,null,null,1]
[null,"Catering",null,null,null,null,{"$f":"G195","v":0},750000,null,null,null,null,null,null,null,null,null,null,null,null,null,null,null,null,1]
[null,"Grounds maintenance",null,null,null,null,0,750000,null,null,null,null,null,null,null,null,null,null,null,null,null,null,null,null,1]
[null,"Stationery",null,null,null,null,0,750000,null,null,null,null,null,null,null,null,null,null,null,null,null,null,null,null,1]
[null,"Other",null,null,null,null,0,750000,null,null,null,null,null,null,null,null,null,null,null,null,null,null,null,null,1]
[]
[null,null,null,{"$f":"IF(E201<>SUM(E195:E200),\"Error - column does not cast\",\"\")","v":""},{"$f":"'Fin.Return - BS'!E25","v":0},null,null,null,null,null,null,null,null,null,null,null,null,null,null,null,null,null,null,null,null,null,null,null,1]
[null,null,null,{"$f":"IF(D201<>\"\",\"Error - Total does not agree with balance sheet\",\"\")","v":""}]
[]
["DEBTORS",null,null,null,"Amounts within one year",null,"Amounts due after more than one year",null,"Lower limit","Upper limit "]
["Balance sheet",null,null,null,"£000",null,"£000",null,"£000","£000"]
[null,"Type analysis"]
[null,null,"Trade debtors",null,null,null,null,null,0,{"$f":"'Fin.Return - BS'!$J$19","v":750000},null,null,null,null,null,null,null,null,null,null,null,null,null,null,2]
[null,null,"Amounts owed by group undertakings",null,null,null,null,null,{"$f":"I207","v":0},750000,null,null,null,null,null,null,null,null,null,null,null,null,null,null,2]
[null,null,"Prepayments and accrued income",null,null,null,null,null,0,750000,null,null,null,null,null,null,null,null,null,null,null,null,null,null,2]
[null,null,"VAT recoverable",null,null,null,null,null,0,750000,null,null,null,null,null,null,null,null,null,null,null,null,null,null,2]
[null,null,"Other debtors",null,null,null,null,null,0,750000,null,null,null,null,null,null,null,null,null,null,null,null,null,null,2]
[]
[null,null,null,{"$f":"IF(E213<>SUM(E207:E212),\"Error - column does not cast\",\"\")","v":""},{"$f":"'Fin.Return - BS'!E26","v":0},null,{"$f":"'Fin.Return - BS'!E27","v":0},{"$f":"IF(G213<>SUM(G207:G212),\"Error - column does not cast\",\"\")","v":""},null,null,null,null,null,null,null,null,null,null,null,null,null,null,null,null,null,null,null,null,2]
[null,null,null,{"$f":"IF(D213<>\"\",\"Error - Total does not agree with balance sheet\",\"\")","v":""},null,null,null,{"$f":"IF(H213<>\"\",\"Error - Total does not agree with balance sheet\",\"\")","v":""}]
[null,"Counterparty analysis",null,null,"Amounts within one year",null,"Amounts due after more than one year"]
[null,null,null,null,"£000",null,"£000"]
[null,"Balances with central government bodies"]
[null,null,"DfE Group:"]
[null,null,"EFA","Notes",{"$f":"SUM(CoPty.Return!W23:AA23)","v":0},null,{"$f":"SUM(CoPty.Return!AC23:AF23)","v":0},null,null,null,null,null,null,null,null,null,null,null,null,null,null,null,null,null,null,null,null,null,2]
[null,null,"DfE",null,{"$f":"SUM(CoPty.Return!W22:AA22)","v":0},null,{"$f":"SUM(CoPty.Return!AC22:AF22)","v":0},null,null,null,null,null,null,null,null,null,null,null,null,null,null,null,null,null,null,null,null,null,2]
[null,null,"TA",null,{"$f":"SUM(CoPty.Return!W24:AA24)","v":0},null,{"$f":"SUM(CoPty.Return!AC24:AF24)","v":0},null,null,null,null,null,null,null,null,null,null,null,null,null,null,null,null,null,null,null,null,null,2]
[null,null,"NCTL",null,{"$f":"SUM(CoPty.Return!W25:AA25)","v":0},null,{"$f":"SUM(CoPty.Return!AC25:AF25)","v":0},null,null,null,null,null,null,null,null,null,null,null,null,null,null,null,null,null,null,null,null,null,2]
[null,null,"STA",null,{"$f":"SUM(CoPty.Return!W26:AA26)","v":0},null,{"$f":"SUM(CoPty.Return!AC26:AF26)","v":0},null,null,null,null,null,null,null,null,null,null,null,null,null,null,null,null,null,null,null,null,null,2]
[null,null,"EHRC",null,{"$f":"SUM(CoPty.Return!W28:AA28)","v":0},null,{"$f":"SUM(CoPty.Return!AC28:AF28)","v":0},null,null,null,null,null,null,null,null,null,null,null,null,null,null,null,null,null,null,null,null,null,2]
[null,null,"OCC",null,{"$f":"SUM(CoPty.Return!W27:AA27)","v":0},null,{"$f":"SUM(CoPty.Return!AC27:AF27)","v":0},null,null,null,null,null,null,null,null,null,null,null,null,null,null,null,null,null,null,null,null,null,2]
[null,null,"Other Government bodies",null,{"$f":"SUMIF(CoPty.Return!$D$29:$D$221,\"CenGov't\",CoPty.Return!$W$29:$W$221)+SUMIF(CoPty.Return!$D$29:$D$221,\"CenGov't\",CoPty.Return!$X$29:$X$221)+SUMIF(CoPty.Return!$D$29:$D$221,\"CenGov't\",CoPty.Return!$Y$29:$Y$221)+SUMIF(CoPty.Return!$D$29:$D$221,\"CenGov't\",CoPty.Return!$Z$29:$Z$221)+SUMIF(CoPty.Return!$D$29:$D$221,\"CenGov't\",CoPty.Return!$AA$29:$AA$221)","v":0},null,{"$f":"SUMIF(CoPty.Return!$D$29:$D$221,\"CenGov't\",CoPty.Return!$AC$29:$AC$221)+SUMIF(CoPty.Return!$D$29:$D$221,\"CenGov't\",CoPty.Return!$AD$29:$AD$221)+SUMIF(CoPty.Return!$D$29:$D$221,\"CenGov't\",CoPty.Return!$AE$29:$AE$221)+SUMIF(CoPty.Return!$D$29:$D$221,\"CenGov't\",CoPty.Return!$AF$29:$AF$221)","v":0},null,null,null,null,null,null,null,null,null,null,null,null,null,null,null,null,null,null,null,null,null,2]
[null,null,"Academies","Notes",{"$f":"SUMIF(CoPty.Return!$D$29:$D$221,\"Academy\",CoPty.Return!$W$29:$W$221)+SUMIF(CoPty.Return!$D$29:$D$221,\"Academy\",CoPty.Return!$X$29:$X$221)+SUMIF(CoPty.Return!$D$29:$D$221,\"Academy\",CoPty.Return!$Y$29:$Y$221)+SUMIF(CoPty.Return!$D$29:$D$221,\"Academy\",CoPty.Return!$Z$29:$Z$221)+SUMIF(CoPty.Return!$D$29:$D$221,\"Academy\",CoPty.Return!$AA$29:$AA$221)","v":0},null,{"$f":"SUMIF(CoPty.Return!$D$29:$D$221,\"Academy\",CoPty.Return!$AC$29:$AC$221)+SUMIF(CoPty.Return!$D$29:$D$221,\"Academy\",CoPty.Return!$AD$29:$AD$221)+SUMIF(CoPty.Return!$D$29:$D$221,\"Academy\",CoPty.Return!$AE$29:$AE$221)+SUMIF(CoPty.Return!$D$29:$D$221,\"Academy\",CoPty.Return!$AF$29:$AF$221)","v":0},null,null,null,null,null,null,null,null,null,null,null,null,null,null,null,null,null,null,null,null,null,2]
[null,"Balances with local authorities",null,null,{"$f":"SUMIF(CoPty.Return!$D$29:$D$221,\"LocGov't\",CoPty.Return!$W$29:$W$221)+SUMIF(CoPty.Return!$D$29:$D$221,\"LocGov't\",CoPty.Return!$X$29:$X$221)+SUMIF(CoPty.Return!$D$29:$D$221,\"LocGov't\",CoPty.Return!$Y$29:$Y$221)+SUMIF(CoPty.Return!$D$29:$D$221,\"LocGov't\",CoPty.Return!$Z$29:$Z$221)+SUMIF(CoPty.Return!$D$29:$D$221,\"LocGov't\",CoPty.Return!$AA$29:$AA$221)","v":0},null,{"$f":"SUMIF(CoPty.Return!$D$29:$D$221,\"LocGov't\",CoPty.Return!$AC$29:$AC$221)+SUMIF(CoPty.Return!$D$29:$D$221,\"LocGov't\",CoPty.Return!$AD$29:$AD$221)+SUMIF(CoPty.Return!$D$29:$D$221,\"LocGov't\",CoPty.Return!$AE$29:$AE$221)+SUMIF(CoPty.Return!$D$29:$D$221,\"LocGov't\",CoPty.Return!$AF$29:$AF$221)","v":0},null,null,null,null,null,null,null,null,null,null,null,null,null,null,null,null,null,null,null,null,null,2]
[null,"Balances with NHS Trusts",null,null,{"$f":"SUMIF(CoPty.Return!$D$29:$D$221,\"NHS\",CoPty.Return!$W$29:$W$221)+SUMIF(CoPty.Return!$D$29:$D$221,\"NHS\",CoPty.Return!$X$29:$X$221)+SUMIF(CoPty.Return!$D$29:$D$221,\"NHS\",CoPty.Return!$Y$29:$Y$221)+SUMIF(CoPty.Return!$D$29:$D$221,\"NHS\",CoPty.Return!$Z$29:$Z$221)+SUMIF(CoPty.Return!$D$29:$D$221,\"NHS\",CoPty.Return!$AA$29:$AA$221)","v":0},null,{"$f":"SUMIF(CoPty.Return!$D$29:$D$221,\"NHS\",CoPty.Return!$AC$29:$AC$221)+SUMIF(CoPty.Return!$D$29:$D$221,\"NHS\",CoPty.Return!$AD$29:$AD$221)+SUMIF(CoPty.Return!$D$29:$D$221,\"NHS\",CoPty.Return!$AE$29:$AE$221)+SUMIF(CoPty.Return!$D$29:$D$221,\"NHS\",CoPty.Return!$AF$29:$AF$221)","v":0},null,null,null,null,null,null,null,null,null,null,null,null,null,null,null,null,null,null,null,null,null,2]
[null,"Balances with public corporations and trading funds",null,null,{"$f":"SUMIF(CoPty.Return!$D$29:$D$221,\"PCs\",CoPty.Return!$W$29:$W$221)+SUMIF(CoPty.Return!$D$29:$D$221,\"PCs\",CoPty.Return!$X$29:$X$221)+SUMIF(CoPty.Return!$D$29:$D$221,\"PCs\",CoPty.Return!$Y$29:$Y$221)+SUMIF(CoPty.Return!$D$29:$D$221,\"PCs\",CoPty.Return!$Z$29:$Z$221)+SUMIF(CoPty.Return!$D$29:$D$221,\"PCs\",CoPty.Return!$AA$29:$AA$221)","v":0},null,{"$f":"SUMIF(CoPty.Return!$D$29:$D$221,\"PCs\",CoPty.Return!$AC$29:$AC$221)+SUMIF(CoPty.Return!$D$29:$D$221,\"PCs\",CoPty.Return!$AD$29:$AD$221)+SUMIF(CoPty.Return!$D$29:$D$221,\"PCs\",CoPty.Return!$AE$29:$AE$221)+SUMIF(CoPty.Return!$D$29:$D$221,\"PCs\",CoPty.Return!$AF$29:$AF$221)","v":0},null,null,null,null,null,null,null,null,null,null,null,null,null,null,null,null,null,null,null,null,null,2]
[]
[null,null,null,null,{"$f":"SUM(E219:E231)","v":0},null,{"$f":"SUM(G219:G231)","v":0}]
[null,"Balances with bodies external to government",null,null,{"$f":"E235-E232","v":0},null,{"$f":"G235-G232","v":0},null,null,null,null,null,null,null,null,null,null,null,null,null,null,null,null,null,null,null,null,null,2]
[]
[null,null,null,null,{"$f":"E213","v":0},null,{"$f":"G213","v":0},null,null,null,null,null,null,null,null,null,null,null,null,null,null,null,null,null,null,null,null,null,2]
[]
[]
["INVESTMENTS - CURRENT",null,null,null,null,null,"Held at Cost",null,null,null,null,"Held at market (fair) value",null,null,null,null,null,null,null,"Lower limit","Upper limit "]
[null,null,null,null,"Total",null,"Subsidiaries ","Unlisted shares","Unlisted corporate bonds","Investment property","Other \n","Listed shares*","Listed unit trusts and OEICs*","Listed Bonds (Gilts and corporate)","Derivative securities","Cash term deposits","Investment property","Other"]
["Balance sheet",null,null,null,"£000",null,"£000","£000","£000","£000","£000","£000","£000","£000","£000","£000","£000","£000",null,"£000","£000"]
[null,"Opening balance",null,null,{"$f":"SUM(G241:R241)","v":0},null,null,null,null,null,null,null,null,null,null,null,null,null,null,null,null,null,null,null,12]
[null,"Additions",null,null,{"$f":"SUM(G242:R242)","v":0},null,null,null,null,null,null,null,null,null,null,null,null,null,null,0,{"$f":"'Fin.Return - BS'!$J$19","v":750000},null,null,null,12]
[null,"Reclassification from fixed asset investments",null,null,0,null,null,null,null,null,null,null,null,null,null,null,null,null,null,{"$f":"T242","v":0},750000,null,null,null,12]
[null,"Transferred in on conversion - local authority",null,null,0,null,null,null,null,null,null,null,null,null,null,null,null,null,null,{"$f":"T243","v":0},750000,null,null,null,12]
[null,"Transferred in on conversion - elsewhere",null,null,0,null,null,null,null,null,null,null,null,null,null,null,null,null,null,{"$f":"T244","v":0},750000,null,null,null,12]
[null,"Transferred in on existing academies joining the trust",null,null,0,null,null,null,null,null,null,null,null,null,null,null,null,null,null,{"$f":"T245","v":0},750000,null,null,null,12]
[null,"Transferred out on existing academies leaving the trust",null,null,0,null,null,null,null,null,null,null,null,null,null,null,null,null,null,{"$f":"'Fin.Return - BS'!$I$45","v":-750000},0,null,null,null,12]
[null,"Disposals",null,null,0,null,null,null,null,null,null,null,null,null,null,null,null,null,null,{"$f":"'Fin.Return - BS'!$I$45","v":-750000},0,null,null,null,12]
[null,"Reclassification to fixed asset investments",null,null,0,null,null,null,null,null,null,null,null,null,null,null,null,null,null,{"$f":"T248","v":-750000},{"$f":"U248","v":0},null,null,null,12]
[null,"Reclassification within current asset investments",null,{"$f":"IF(E250<>0,\"Error - reclassifications must sum to zero\",\"\")","v":""},{"$f":"SUM(G250:R250)","v":0},null,null,null,null,null,null,null,null,null,null,null,null,null,null,{"$f":"(T249)","v":-750000},750000,null,null,null,12]
["SoFA","Period end fair value gain/(loss)",null,null,0,null,null,null,null,null,null,null,null,null,null,null,null,null,null,{"$f":"T249","v":-750000},{"$f":"U245","v":750000},null,null,null,7]
[null,"Impairment",null,null,0,null,null,null,null,null,null,null,null,null,null,null,null,null,null,{"$f":"T251","v":-750000},{"$f":"U251","v":750000},null,null,null,12]
[]
[null,"Closing balance",null,{"$f":"IF(E254<>SUM(E241:E253),\"Error - column does not cast\",\"\")","v":""},{"$f":"'Fin.Return - BS'!E28","v":0},null,{"$f":"SUM(G241:G253)","v":0},{"$f":"SUM(H241:H253)","v":0},{"$f":"SUM(I241:I253)","v":0},{"$f":"SUM(J241:J253)","v":0},{"$f":"SUM(K241:K253)","v":0},{"$f":"SUM(L241:L253)","v":0},0,0,0,0,0,{"$f":"SUM(R241:R253)","v":0},null,null,null,null,null,null,null,null,null,null,1]
[null,null,null,{"$f":"IF(D254<>\"\",\"Error -Total does not agree with the balance sheet\",\"\")","v":""},null,null,{"$f":"IF(G254<0,\"Error - credit bal.\",\"\")","v":""},"","","",{"$f":"IF(K254<0,\"Error - credit bal.\",\"\")","v":""},"","","","","","",{"$f":"IF(R254<0,\"Error - credit bal.\",\"\")","v":""}]
[null,"Please describe 'Others' below"]
[null,null,null,null,null,null,null,null,null,null,null,null,null,null,null,null,null,null,null,null,null,null,null,null,null,1]
[null,null,null,null,null,null,null,null,null,null,"*=includes uninvested cash balances."]
[]
["CASH AT BANK AND IN HAND",null,null,null,{"$f":"'Fin.Return - BS'!E16","v":2016},null,"Lower limit","Upper limit "]
["Balance sheet",null,null,null,"£000",null,"£000","£000"]
[null,"At bank",null,null,null,null,0,{"$f":"'Fin.Return - BS'!$J$19","v":750000},null,null,null,null,null,null,null,null,null,null,null,null,null,null,null,null,1]
[null,"Petty cash",null,null,null,null,0,100,null,null,null,null,null,null,null,null,null,null,null,null,null,null,null,null,1]
[]
[null,null,null,{"$f":"IF(E265<>SUM(E262:E263),\"Error - column does not cast\",\"\")","v":""},{"$f":"'Fin.Return - BS'!E29","v":0},null,null,null,null,null,null,null,null,null,null,null,null,null,null,null,null,null,null,null,null,null,null,null,1]
[null,null,null,{"$f":"IF(D265<>\"\",\"Error - Total does not agree with the balance sheet\",\"\")","v":""}]
[]
["CREDITORS: AMOUNTS DUE WITHIN ONE YEAR",null,null,null,{"$f":"'Fin.Return - BS'!E16","v":2016},null,"Lower limit","Upper limit "]
["Balance sheet",null,null,null,"£000",null,"£000","£000"]
[null,"Bank overdrafts",null,null,null,null,0,{"$f":"-'Fin.Return - BS'!$I$45","v":750000},null,null,null,null,null,null,null,null,null,null,null,null,null,null,null,null,1]
[null,"Loans",null,null,null,null,{"$f":"G270","v":0},{"$f":"H270","v":750000},null,null,null,null,null,null,null,null,null,null,null,null,null,null,null,null,1]
[null,"Trade creditors",null,null,null,null,0,750000,null,null,null,null,null,null,null,null,null,null,null,null,null,null,null,null,1]
[null,"Amounts owed to group undertakings",null,null,null,null,0,750000,null,null,null,null,null,null,null,null,null,null,null,null,null,null,null,null,1]
[null,"Other taxes and social security",null,null,null,null,0,750000,null,null,null,null,null,null,null,null,null,null,null,null,null,null,null,null,1]
[null,"Finance leases",null,null,null,null,0,750000,null,null,null,null,null,null,null,null,null,null,null,null,null,null,null,null,1]
[null,"VAT payable",null,null,null,null,0,750000,null,null,null,null,null,null,null,null,null,null,null,null,null,null,null,null,1]
[null,"Other creditors",null,null,null,null,{"$f":"G276","v":0},{"$f":"H276","v":750000},null,null,null,null,null,null,null,null,null,null,null,null,null,null,null,null,1]
[null,"Corporation tax",null,null,null,null,0,750000,null,null,null,null,null,null,null,null,null,null,null,null,null,null,null,null,1]
[null,"Accruals and deferred income",null,null,null,null,0,750000,null,null,null,null,null,null,null,null,null,null,null,null,null,null,null,null,1]
[]
[null,null,null,{"$f":"IF(E281<>SUM(E270:E280),\"Error - column does not cast\",\"\")","v":""},{"$f":"-'Fin.Return - BS'!E32","v":0},null,null,null,null,null,null,null,null,null,null,null,null,null,null,null,null,null,null,null,null,null,null,null,1]
[null,null,null,{"$f":"IF(D281<>\"\",\"Error -Total does not agree with balance sheet\",\"\")","v":""}]
[null,"Deferred income analysis"]
[null,null,"Deferred income at start of period",null,null,null,{"$f":"G279","v":0},{"$f":"H279","v":750000},null,null,null,null,null,null,null,null,null,null,null,null,null,null,null,null,1]
[null,null,"Resources deferred in the period",null,null,null,{"$f":"G280","v":0},{"$f":"H284","v":750000},null,null,null,null,null,null,null,null,null,null,null,null,null,null,null,null,1]
[null,null,"Amounts released from previous years",null,null,null,{"$f":"-H285","v":-750000},0,null,null,null,null,null,null,null,null,null,null,null,null,null,null,null,null,1]
[]
[null,null,"Deferred income at close of period",null,{"$f":"SUM(E284:E287)","v":0}]
[]
[]
[null,"Counter-party analysis"]
[null,null,null,null,"Total"]
[null,"Balances with central government bodies",null,null,"£000"]
[null,null,"DfE Group:"]
[null,null,"EFA","Notes",{"$f":"-SUM(CoPty.Return!AH23:AO23)","v":0},null,null,null,null,null,null,null,null,null,null,null,null,null,null,null,null,null,null,null,null,null,null,null,1]
[null,null,"DfE",null,{"$f":"-SUM(CoPty.Return!AH22:AO22)","v":0},null,null,null,null,null,null,null,null,null,null,null,null,null,null,null,null,null,null,null,null,null,null,null,1]
[null,null,"TA",null,{"$f":"-SUM(CoPty.Return!AH24:AO24)","v":0},null,null,null,null,null,null,null,null,null,null,null,null,null,null,null,null,null,null,null,null,null,null,null,1]
[null,null,"NCTL",null,{"$f":"-SUM(CoPty.Return!AH25:AO25)","v":0},null,null,null,null,null,null,null,null,null,null,null,null,null,null,null,null,null,null,null,null,null,null,null,1]
[null,null,"STA",null,{"$f":"-SUM(CoPty.Return!AH26:AO26)","v":0},null,null,null,null,null,null,null,null,null,null,null,null,null,null,null,null,null,null,null,null,null,null,null,1]
[null,null,"EHRC",null,{"$f":"-SUM(CoPty.Return!AH28:AO28)","v":0},null,null,null,null,null,null,null,null,null,null,null,null,null,null,null,null,null,null,null,null,null,null,null,1]
[null,null,"OCC",null,{"$f":"-SUM(CoPty.Return!AH27:AO27)","v":0},null,null,null,null,null,null,null,null,null,null,null,null,null,null,null,null,null,null,null,null,null,null,null,1]
[null,null,"Other Government bodies",null,{"$f":"-SUMIF(CoPty.Return!$D$29:$D$221,\"CenGov't\",CoPty.Return!$AH$29:$AH$221)-SUMIF(CoPty.Return!$D$29:$D$221,\"CenGov't\",CoPty.Return!$AI$29:$AI$221)-SUMIF(CoPty.Return!$D$29:$D$221,\"CenGov't\",CoPty.Return!$AJ$29:$AJ$221)-SUMIF(CoPty.Return!$D$29:$D$221,\"CenGov't\",CoPty.Return!$AK$29:$AK$221)-SUMIF(CoPty.Return!$D$29:$D$221,\"CenGov't\",CoPty.Return!$AL$29:$AL$221)-SUMIF(CoPty.Return!$D$29:$D$221,\"CenGov't\",CoPty.Return!$AM$29:$AM$221)-SUMIF(CoPty.Return!$D$29:$D$221,\"CenGov't\",CoPty.Return!$AN$29:$AN$221)-SUMIF(CoPty.Return!$D$29:$D$221,\"CenGov't\",CoPty.Return!$AO$29:$AO$221)","v":0},null,null,null,null,null,null,null,null,null,null,null,null,null,null,null,null,null,null,null,null,null,null,null,1]
[null,null,"Academies","Notes",{"$f":"-SUMIF(CoPty.Return!$D$29:$D$221,\"Academy\",CoPty.Return!$AH$29:$AH$221)-SUMIF(CoPty.Return!$D$29:$D$221,\"Academy\",CoPty.Return!$AI$29:$AI$221)-SUMIF(CoPty.Return!$D$29:$D$221,\"Academy\",CoPty.Return!$AJ$29:$AJ$221)-SUMIF(CoPty.Return!$D$29:$D$221,\"Academy\",CoPty.Return!$AK$29:$AK$221)-SUMIF(CoPty.Return!$D$29:$D$221,\"Academy\",CoPty.Return!$AL$29:$AL$221)-SUMIF(CoPty.Return!$D$29:$D$221,\"Academy\",CoPty.Return!$AM$29:$AM$221)-SUMIF(CoPty.Return!$D$29:$D$221,\"Academy\",CoPty.Return!$AN$29:$AN$221)-SUMIF(CoPty.Return!$D$29:$D$221,\"Academy\",CoPty.Return!$AO$29:$AO$221)","v":0},null,null,null,null,null,null,null,null,null,null,null,null,null,null,null,null,null,null,null,null,null,null,null,1]
[null,"Balances with local authorities",null,null,{"$f":"-SUMIF(CoPty.Return!$D$29:$D$221,\"LocGov't\",CoPty.Return!$AH$29:$AH$221)-SUMIF(CoPty.Return!$D$29:$D$221,\"LocGov't\",CoPty.Return!$AI$29:$AI$221)-SUMIF(CoPty.Return!$D$29:$D$221,\"LocGov't\",CoPty.Return!$AJ$29:$AJ$221)-SUMIF(CoPty.Return!$D$29:$D$221,\"LocGov't\",CoPty.Return!$AK$29:$AK$221)-SUMIF(CoPty.Return!$D$29:$D$221,\"LocGov't\",CoPty.Return!$AL$29:$AL$221)-SUMIF(CoPty.Return!$D$29:$D$221,\"LocGov't\",CoPty.Return!$AM$29:$AM$221)-SUMIF(CoPty.Return!$D$29:$D$221,\"LocGov't\",CoPty.Return!$AN$29:$AN$221)-SUMIF(CoPty.Return!$D$29:$D$221,\"LocGov't\",CoPty.Return!$AO$29:$AO$221)","v":0},null,null,null,null,null,null,null,null,null,null,null,null,null,null,null,null,null,null,null,null,null,null,null,1]
[null,"Balances with NHS Trusts",null,null,{"$f":"-SUMIF(CoPty.Return!$D$29:$D$221,\"NHS\",CoPty.Return!$AH$29:$AH$221)-SUMIF(CoPty.Return!$D$29:$D$221,\"NHS\",CoPty.Return!$AI$29:$AI$221)-SUMIF(CoPty.Return!$D$29:$D$221,\"NHS\",CoPty.Return!$AJ$29:$AJ$221)-SUMIF(CoPty.Return!$D$29:$D$221,\"NHS\",CoPty.Return!$AK$29:$AK$221)-SUMIF(CoPty.Return!$D$29:$D$221,\"NHS\",CoPty.Return!$AL$29:$AL$221)-SUMIF(CoPty.Return!$D$29:$D$221,\"NHS\",CoPty.Return!$AM$29:$AM$221)-SUMIF(CoPty.Return!$D$29:$D$221,\"NHS\",CoPty.Return!$AN$29:$AN$221)-SUMIF(CoPty.Return!$D$29:$D$221,\"NHS\",CoPty.Return!$AO$29:$AO$221)","v":0},null,null,null,null,null,null,null,null,null,null,null,null,null,null,null,null,null,null,null,null,null,null,null,1]
[null,"Balances with public corporations and trading funds",null,null,{"$f":"-SUMIF(CoPty.Return!$D$29:$D$221,\"PCs\",CoPty.Return!$AH$29:$AH$221)-SUMIF(CoPty.Return!$D$29:$D$221,\"PCs\",CoPty.Return!$AI$29:$AI$221)-SUMIF(CoPty.Return!$D$29:$D$221,\"PCs\",CoPty.Return!$AJ$29:$AJ$221)-SUMIF(CoPty.Return!$D$29:$D$221,\"PCs\",CoPty.Return!$AK$29:$AK$221)-SUMIF(CoPty.Return!$D$29:$D$221,\"PCs\",CoPty.Return!$AL$29:$AL$221)-SUMIF(CoPty.Return!$D$29:$D$221,\"PCs\",CoPty.Return!$AM$29:$AM$221)-SUMIF(CoPty.Return!$D$29:$D$221,\"PCs\",CoPty.Return!$AN$29:$AN$221)-SUMIF(CoPty.Return!$D$29:$D$221,\"PCs\",CoPty.Return!$AO$29:$AO$221)","v":0},null,null,null,null,null,null,null,null,null,null,null,null,null,null,null,null,null,null,null,null,null,null,null,1]
[]
[null,null,null,null,{"$f":"SUM(E295:E307)","v":0}]
[null,"Balances with bodies external to government",null,null,{"$f":"E311-E308","v":0},null,null,null,null,null,null,null,null,null,null,null,null,null,null,null,null,null,null,null,null,null,null,null,1]
[]
[null,null,null,{"$f":"IF(E311<>SUM(E308:E310),\"Error - column does not cast\",\"\")","v":""},{"$f":"E281","v":0},null,null,null,null,null,null,null,null,null,null,null,null,null,null,null,null,null,null,null,null,null,null,null,1]
[null,null,null,{"$f":"IF(D311<>\"\",\"Total does not agree - cell E76\",\"\")","v":""}]
[]
["CREDITORS: AMOUNTS DUE AFTER MORE THAN ONE YEAR",null,null,null,{"$f":"'Fin.Return - BS'!E16","v":2016},null,"Lower limit","Upper limit "]
["Balance sheet",null,null,null,"£000",null,"£000","£000"]
[null,"Loans",null,null,null,null,0,{"$f":"-'Fin.Return - BS'!$I$45","v":750000},null,null,null,null,null,null,null,null,null,null,null,null,null,null,null,null,1]
[null,"Amounts owed to group undertakings",null,null,null,null,{"$f":"G316","v":0},750000,null,null,null,null,null,null,null,null,null,null,null,null,null,null,null,null,1]
[null,"Finance leases",null,null,null,null,0,750000,null,null,null,null,null,null,null,null,null,null,null,null,null,null,null,null,1]
[null,"Other creditors",null,null,null,null,0,750000,null,null,null,null,null,null,null,null,null,null,null,null,null,null,null,null,1]
[null,"Deferred tax",null,null,null,null,0,750000,null,null,null,null,null,null,null,null,null,null,null,null,null,null,null,null,1]
[]
[null,null,null,{"$f":"IF(E322<>SUM(E316:E321),\"Error - column does not cast\",\"\")","v":""},{"$f":"-'Fin.Return - BS'!G37","v":0},null,null,null,null,null,null,null,null,null,null,null,null,null,null,null,null,null,null,null,null,null,null,null,1]
[null,null,null,{"$f":"IF(D322<>\"\",\"Error - Total does not agree with balance sheet\",\"\")","v":""}]
[null,"Loan maturity analysis:"]
[null,null,"Within one year",null,{"$f":"E271","v":0},null,{"$f":"G320","v":0},{"$f":"H320","v":750000},null,null,null,null,null,null,null,null,null,null,null,null,null,null,null,null,null,null,null,null,1]
[null,null,"Between two and five years",null,null,null,{"$f":"G325","v":0},{"$f":"H325","v":750000},null,null,null,null,null,null,null,null,null,null,null,null,null,null,null,null,1]
[null,null,"After more than five years",null,null,null,{"$f":"G326","v":0},{"$f":"H326","v":750000},null,null,null,null,null,null,null,null,null,null,null,null,null,null,null,null,1]
[]
[null,null,null,{"$f":"IF(E329<>(E271+E316),\"Error - imbalance within note\",\"\")","v":""},{"$f":"SUM(E325:E328)","v":0}]
[null,null,null,{"$f":"IF(D329<>\"\",\"Error - total does agree with total loans in creditors notes\",\"\")","v":""}]
[null,"Counter-party analysis",null,null,"Amounts due after more than one year"]
[null,null,null,null,"£000"]
[null,"Balances with central government bodies"]
[null,null,"DfE Group:"]
[null,null,"EFA","Notes",{"$f":"-SUM(CoPty.Return!AQ23:AS23)","v":0},null,null,null,null,null,null,null,null,null,null,null,null,null,null,null,null,null,null,null,null,null,null,null,1]
[null,null,"DfE",null,{"$f":"-SUM(CoPty.Return!AQ22:AS22)","v":0},null,null,null,null,null,null,null,null,null,null,null,null,null,null,null,null,null,null,null,null,null,null,null,1]
[null,null,"TA",null,{"$f":"-SUM(CoPty.Return!AQ24:AS24)","v":0},null,null,null,null,null,null,null,null,null,null,null,null,null,null,null,null,null,null,null,null,null,null,null,1]
[null,null,"NCTL",null,{"$f":"-SUM(CoPty.Return!AQ25:AS25)","v":0},null,null,null,null,null,null,null,null,null,null,null,null,null,null,null,null,null,null,null,null,null,null,null,1]
[null,null,"STA",null,{"$f":"-SUM(CoPty.Return!AQ26:AS26)","v":0},null,null,null,null,null,null,null,null,null,null,null,null,null,null,null,null,null,null,null,null,null,null,null,1]
[null,null,"EHRC",null,{"$f":"-SUM(CoPty.Return!AQ28:AS28)","v":0},null,null,null,null,null,null,null,null,null,null,null,null,null,null,null,null,null,null,null,null,null,null,null,1]
[null,null,"OCC",null,{"$f":"-SUM(CoPty.Return!AQ27:AS27)","v":0},null,null,null,null,null,null,null,null,null,null,null,null,null,null,null,null,null,null,null,null,null,null,null,1]
[null,null,"Other Government bodies",null,{"$f":"-SUMIF(CoPty.Return!$D$29:$D$221,\"CenGov't\",CoPty.Return!$AQ$29:$AQ$221)-SUMIF(CoPty.Return!$D$29:$D$221,\"CenGov't\",CoPty.Return!$AR$29:$AR$221)-SUMIF(CoPty.Return!$D$29:$D$221,\"CenGov't\",CoPty.Return!$AS$29:$AS$221)","v":0},null,null,null,null,null,null,null,null,null,null,null,null,null,null,null,null,null,null,null,null,null,null,null,1]
[null,null,"Academies","Notes",{"$f":"-SUMIF(CoPty.Return!$D$29:$D$221,\"Academy\",CoPty.Return!$AQ$29:$AQ$221)-SUMIF(CoPty.Return!$D$29:$D$221,\"Academy\",CoPty.Return!$AR$29:$AR$221)-SUMIF(CoPty.Return!$D$29:$D$221,\"Academy\",CoPty.Return!$AS$29:$AS$221)","v":0},null,null,null,null,null,null,null,null,null,null,null,null,null,null,null,null,null,null,null,null,null,null,null,1]
[null,"Balances with local authorities",null,null,{"$f":"-SUMIF(CoPty.Return!$D$29:$D$221,\"LocGov't\",CoPty.Return!$AQ$29:$AQ$221)-SUMIF(CoPty.Return!$D$29:$D$221,\"LocGov't\",CoPty.Return!$AR$29:$AR$221)-SUMIF(CoPty.Return!$D$29:$D$221,\"LocGov't\",CoPty.Return!$AS$29:$AS$221)","v":0},null,null,null,null,null,null,null,null,null,null,null,null,null,null,null,null,null,null,null,null,null,null,null,1]
[null,"Balances with NHS Trusts",null,null,{"$f":"-SUMIF(CoPty.Return!$D$29:$D$221,\"NHS\",CoPty.Return!$AQ$29:$AQ$221)-SUMIF(CoPty.Return!$D$29:$D$221,\"NHS\",CoPty.Return!$AR$29:$AR$221)-SUMIF(CoPty.Return!$D$29:$D$221,\"NHS\",CoPty.Return!$AS$29:$AS$221)","v":0},null,null,null,null,null,null,null,null,null,null,null,null,null,null,null,null,null,null,null,null,null,null,null,1]
[null,"Balances with public corporations and trading funds",null,null,{"$f":"-SUMIF(CoPty.Return!$D$29:$D$221,\"PCs\",CoPty.Return!$AQ$29:$AQ$221)-SUMIF(CoPty.Return!$D$29:$D$221,\"PCs\",CoPty.Return!$AR$29:$AR$221)-SUMIF(CoPty.Return!$D$29:$D$221,\"PCs\",CoPty.Return!$AS$29:$AS$221)","v":0},null,null,null,null,null,null,null,null,null,null,null,null,null,null,null,null,null,null,null,null,null,null,null,1]
[]
[null,null,null,null,{"$f":"SUM(E335:E347)","v":0}]
[null,"Balances with bodies external to government",null,null,{"$f":"E351-E348","v":0},null,null,null,null,null,null,null,null,null,null,null,null,null,null,null,null,null,null,null,null,null,null,null,1]
[]
[null,null,null,null,{"$f":"E322","v":0},null,null,null,null,null,null,null,null,null,null,null,null,null,null,null,null,null,null,null,null,null,null,null,1]
[]
[]
["PROVISIONS FOR LIABILITIES AND CHARGES\nPlease analyse out the provisions balance into the classes provided.",null,null,null,"Total",null,"Property","Early Departure Costs","Retirement Compensation","Other",null,null,"Lower limit","Upper limit "]
["Balance sheet",null,null,null,"£000",null,"£000","£000","£000","£000",null,null,"£000","£000"]
[null,"Opening balance",null,{"$f":"IF(E356<>SUM(G356:J356),\"Error - row does not cross cast\",\"\")","v":""},{"$f":"+SUM(G356:J356)","v":0},null,null,null,null,null,"Notes",null,0,{"$f":"-'Fin.Return - BS'!$I$45","v":750000},null,null,null,null,null,null,null,null,null,null,4]
[null,"Charged in the period",null,{"$f":"IF(E357<>SUM(G357:J357),\"Error - row does not cross cast\",\"\")","v":""},{"$f":"+SUM(G357:J357)","v":0},null,null,null,null,null,null,null,{"$f":"M356","v":0},{"$f":"N356","v":750000},null,null,null,null,null,null,null,null,null,null,4]
[null,"Utilised in the period",null,{"$f":"IF(E358<>SUM(G358:J358),\"Error - row does not cross cast\",\"\")","v":""},{"$f":"+SUM(G358:J358)","v":0},null,null,null,null,null,null,null,{"$f":"-N357","v":-750000},0,null,null,null,null,null,null,null,null,null,null,4]
[null,"Released in the period",null,{"$f":"IF(E359<>SUM(G359:J359),\"Error - row does not cross cast\",\"\")","v":""},{"$f":"+SUM(G359:J359)","v":0},null,null,null,null,null,null,null,{"$f":"M358","v":-750000},{"$f":"N358","v":0},null,null,null,null,null,null,null,null,null,null,4]
[]
[null,"Closing balance",null,{"$f":"IF(E361<>SUM(E356:E360),\"Error - column does not cast\",\"\")","v":""},{"$f":"-'Fin.Return - BS'!G38","v":0},null,{"$f":"SUM(G356:G360)","v":0},{"$f":"SUM(H356:H360)","v":0},{"$f":"SUM(I356:I360)","v":0},{"$f":"SUM(J356:J360)","v":0},null,null,null,null,null,null,null,null,null,null,null,null,null,null,null,null,null,null,1]
[null,null,null,{"$f":"IF(D361<>\"\",\"Error - Total does not agree balance sheet\",\"\")","v":""},null,null,{"$f":"IF(G361<0,\"Error - debit bal.\",\"\")","v":""},{"$f":"IF(H361<0,\"Error - debit bal.\",\"\")","v":""},{"$f":"IF(I361<0,\"Error - debit bal.\",\"\")","v":""},{"$f":"IF(J361<0,\"Error - debit bal.\",\"\")","v":""}]
[]
[null,"Ageing of provisions",null,null,"Total",null,"Property","Early Departure Costs","Retirement Compensation","Other"]
[null,"Please analyse the closing balances of the provisions into maturity buckets.",null,null,"£000",null,"£000","£000","£000","£000"]
[null,null,"Within one year",null,{"$f":"SUM(G366:J366)","v":0},null,null,null,null,null,"Notes",null,0,{"$f":"N356","v":750000},null,null,null,null,null,null,null,null,null,null,4]
[null,null,"Between two and five years",null,{"$f":"SUM(G367:J367)","v":0},null,null,null,null,null,null,null,{"$f":"M360","v":0},{"$f":"N366","v":750000},null,null,null,null,null,null,null,null,null,null,4]
[null,null,"More than five years",null,{"$f":"SUM(G368:J368)","v":0},null,null,null,null,null,null,null,{"$f":"M361","v":0},{"$f":"N367","v":750000},null,null,null,null,null,null,null,null,null,null,4]
[]
[null,null,null,{"$f":"IF(E370<>SUM(E365:E369),\"Error - column does not cast\",\"\")","v":""},{"$f":"E361","v":0},null,{"$f":"SUM(G366:G369)","v":0},{"$f":"SUM(H366:H369)","v":0},{"$f":"SUM(I366:I369)","v":0},{"$f":"SUM(J366:J369)","v":0},null,null,null,null,null,null,null,null,null,null,null,null,null,null,null,null,null,null,1]
[null,null,null,{"$f":"IF(D370<>\"\",\"Error - Total does not agree with balance sheet\",\"\")","v":""},null,null,{"$f":"IF(G370<>G361,\"Error - within note\",\"\")","v":""},{"$f":"IF(H370<>H361,\"Error - within note\",\"\")","v":""},{"$f":"IF(I370<>I361,\"Error - within note\",\"\")","v":""},{"$f":"IF(J370<>J361,\"Error - within note\",\"\")","v":""}]
[null,null,"Describe Other here",null,null,null,{"$f":"IF(G371<>\"\",\"Error -Does not agree with total provisions above.\",\"\")","v":""},{"$f":"IF(H371<>\"\",\"Error - Does not agree with total provisions above\",\"\")","v":""},{"$f":"IF(I371<>\"\",\"Error - Does not agree with total provisions above\",\"\")","v":""},{"$f":"IF(J371<>\"\",\"Error - Does not agree with total provisions above\",\"\")","v":""}]
[]
[]
["FUNDS\nPlease analyse DfE grants between the different entities within the \nDfE Group.",null,null,null,"Balance at start of period",null,"Incoming Resources","Resources Expended","Transfers on conversion","Transfers in or out of existing academies","Other gains, losses and transfers",null,"Balance at period end",null,"Lower limit","Upper limit "]
["Balance sheet",null,null,null,"£000",null,"£000","£000","£000","£000","£000",null,"£000",null,"£000","£000"]
[null,"Restricted General Fund(s)"]
[null,null,"EFA - General Annual Grant",null,null,null,null,null,null,null,null,null,{"$f":"SUM(E378:K378)","v":0},null,{"$f":"'Fin.Return - SOFA'!$L$19","v":-750000},{"$f":"'Fin.Return - SOFA'!$M$19","v":750000},null,null,null,null,null,null,null,null,6]
[null,null,"Other EFA grants",null,null,null,null,null,null,null,null,null,{"$f":"SUM(E379:K379)","v":0},null,{"$f":"O378","v":-750000},{"$f":"P378","v":750000},null,null,null,null,null,null,null,null,6]
[null,null,"DfE Group (DfE, TA, NCTL, STA, EHRC, OCC)",null,null,null,null,null,null,null,null,null,{"$f":"SUM(E380:K380)","v":0},null,{"$f":"O379","v":-750000},{"$f":"P379","v":750000},null,null,null,null,null,null,null,null,6]
[null,null,"Provision for boarding activities",null,null,null,null,null,null,null,null,null,{"$f":"SUM(E381:K381)","v":0},null,{"$f":"(O380)","v":-750000},{"$f":"(P380)","v":750000},null,null,null,null,null,null,null,null,6]
[null,null,"Other Government (local and central) grants",null,null,null,null,null,null,null,null,null,0,null,{"$f":"O381","v":-750000},{"$f":"P381","v":750000},null,null,null,null,null,null,null,null,6]
[]
[null,null,"Revaluations",null,null,null,null,null,null,null,null,null,{"$f":"SUM(E384:K384)","v":0},null,{"$f":"O382","v":-750000},{"$f":"P382","v":750000},null,null,null,null,null,null,null,null,6]
[null,null,"Other activities",null,null,null,null,null,null,null,null,null,0,{"$f":"IF(N387<>\"\",\"Error - Total does not agree with RGF in balance sheet\",\"\")","v":""},{"$f":"O384","v":-750000},{"$f":"P384","v":750000},null,null,null,null,null,null,null,null,6]
[]
[null,null,null,null,{"$f":"SUM(E378:E386)","v":0},null,{"$f":"SUM(G378:G386)","v":0},{"$f":"SUM(H378:H386)","v":0},{"$f":"SUM(I378:I386)","v":0},{"$f":"SUM(J378:J386)","v":0},{"$f":"SUM(K378:K386)","v":0},null,{"$f":"'Fin.Return - BS'!G48","v":0},{"$f":"IF(M387<>SUM(E387:K387),\"Error - row does not cross cast\",\"\")","v":""},null,null,null,null,null,null,null,null,null,null,null,null,null,null,1]
[null,null,"Pension reserve",null,null,null,null,null,null,null,null,null,{"$f":"'Fin.Return - BS'!G49","v":0},{"$f":"IF(M388<>SUM(E388:K388),\"Error - row does not cross cast\",\"\")","v":""},{"$f":"O385","v":-750000},{"$f":"P385","v":750000},null,null,null,null,null,null,null,null,null,null,null,null,1]
[]
[null,null,null,null,{"$f":"SUM(E387:E389)","v":0},null,{"$f":"SUM(G387:G389)","v":0},{"$f":"SUM(H387:H389)","v":0},{"$f":"SUM(I387:I389)","v":0},{"$f":"SUM(J387:J389)","v":0},{"$f":"SUM(K387:K389)","v":0},null,{"$f":"SUM(M387:M389)","v":0},{"$f":"IF(N388<>\"\",\"Error - Total does not agree with pension res in balance sheet\",\"\")","v":""}]
[null,"Restricted Fixed Asset Fund(s)"]
[null,null,"EFA capital grants",null,null,null,null,null,null,null,null,null,{"$f":"SUM(E392:K392)","v":0},null,{"$f":"O388","v":-750000},{"$f":"P388","v":750000},null,null,null,null,null,null,null,null,6]
[null,null,"DfE Group (DfE, TA, NCTL, STA, EHRC, OCC)",null,null,null,null,null,null,null,null,null,{"$f":"SUM(E393:K393)","v":0},null,{"$f":"O392","v":-750000},{"$f":"P392","v":750000},null,null,null,null,null,null,null,null,6]
[null,null,"Capital expenditure from GAG",null,null,null,null,null,null,null,null,null,{"$f":"SUM(E394:K394)","v":0},null,{"$f":"(O393)","v":-750000},{"$f":"(P393)","v":750000},null,null,null,null,null,null,null,null,6]
[null,null,"Other Government (local and central) grants",null,null,null,null,null,null,null,null,null,0,null,{"$f":"O394","v":-750000},{"$f":"P394","v":750000},null,null,null,null,null,null,null,null,6]
[]
[null,null,"Private sector capital sponsorship",null,null,null,null,null,null,null,null,null,{"$f":"SUM(E397:K397)","v":0},null,{"$f":"O395","v":-750000},{"$f":"P395","v":750000},null,null,null,null,null,null,null,null,6]
[null,null,"Revaluations",null,null,null,null,null,null,null,null,null,0,null,{"$f":"O397","v":-750000},{"$f":"P397","v":750000},null,null,null,null,null,null,null,null,6]
[null,null,"Other activities",null,null,null,null,null,null,null,null,null,0,{"$f":"IF(N401<>\"\",\"Error - Total does not agree - with RFAF in balance sheet\",\"\")","v":""},{"$f":"O398","v":-750000},{"$f":"P398","v":750000},null,null,null,null,null,null,null,null,6]
[]
[null,null,null,null,{"$f":"SUM(E392:E400)","v":0},null,{"$f":"SUM(G392:G400)","v":0},{"$f":"SUM(H392:H400)","v":0},{"$f":"SUM(I392:I400)","v":0},{"$f":"SUM(J392:J400)","v":0},{"$f":"SUM(K392:K400)","v":0},null,{"$f":"'Fin.Return - BS'!G47","v":0},{"$f":"IF(M401<>SUM(E401:K401),\"Error - row does not cross cast\",\"\")","v":""},null,null,null,null,null,null,null,null,null,null,null,null,null,null,1]
[null,"Total restricted finds",null,null,{"$f":"E390+E401","v":0},null,{"$f":"G390+G401","v":0},{"$f":"H390+H401","v":0},{"$f":"I390+I401","v":0},{"$f":"J390+J401","v":0},{"$f":"K390+K401","v":0},null,{"$f":"'Fin.Return - BS'!G51","v":0},{"$f":"IF(M402<>SUM(E402:K402),\"Error - row does not cross cast\",\"\")","v":""},null,null,null,null,null,null,null,null,null,null,null,null,null,null,1]
[null,null,null,null,null,null,null,null,null,null,null,null,null,{"$f":"IF(N402<>\"\",\"Error - Total does not agree with total RF in balance sheet\",\"\")","v":""}]
[null,"Endowment Funds",null,null,null,null,null,null,null,null,null,null,{"$f":"'Fin.Return - BS'!G45","v":0},{"$f":"IF(M404<>SUM(E404:K404),\"Error - row does not cross cast\",\"\")","v":""},{"$f":"O399","v":-750000},{"$f":"P399","v":750000},null,null,null,null,null,null,null,null,6,null,null,null,1]
[null,"Unrestricted Funds",null,null,null,null,null,null,null,null,null,null,null,{"$f":"IF(N404<>\"\",\"Error - Total does not agree with endowment funds in balance sheet\",\"\")","v":""}]
[null,null,"Unrestricted funds",null,null,null,null,null,null,null,null,null,{"$f":"'Fin.Return - BS'!G53","v":0},{"$f":"IF(M406<>SUM(E406:K406),\"Error - row does not cross cast\",\"\")","v":""},{"$f":"O404","v":-750000},{"$f":"P404","v":750000},null,null,null,null,null,null,null,null,6,null,null,null,1]
[]
[null,"Total unrestricted finds",null,null,{"$f":"SUM(E406:E407)","v":0},null,{"$f":"SUM(G406:G407)","v":0},{"$f":"SUM(H406:H407)","v":0},{"$f":"SUM(I406:I407)","v":0},{"$f":"SUM(J406:J407)","v":0},{"$f":"SUM(K406:K407)","v":0},null,{"$f":"SUM(M406:M407)","v":0},{"$f":"IF(N406<>\"\",\"Error - Total does not agree with unrestricted funds in balance sheet\",\"\")","v":""}]
[]
[null,"Total funds",null,null,{"$f":"E402+E404+E408","v":0},null,{"$f":"G402+G404+G408","v":0},{"$f":"H402+H404+H408","v":0},{"$f":"I402+I404+I408","v":0},{"$f":"J402+J404+J408","v":0},{"$f":"K402+K404+K408","v":0},null,{"$f":"'Fin.Return - BS'!G57","v":0},{"$f":"IF(M410<>SUM(E410:K410),\"Error - row does not cross cast\",\"\")","v":""},null,null,null,null,null,null,null,null,null,null,null,null,null,null,1]
[null,null,null,null,{"$f":"IF(E410<>'Fin.Return - SOFA'!E52,\"Error - imbalance with SoFA\",\"\")","v":""},null,null,null,null,null,null,null,null,{"$f":"IF(N410<>\"\",\"Error - Total does not agree total funds in the balance sheet\",\"\")","v":""}]
[]
["LOANS COUNTERPARTY ANALYSIS",null,null,null,"Total",null,"DfE Group\n(see below)","Other Government","Other",null,null,null,null,null,"Lower limit","Upper limit "]
[null,null,null,null,"£000",null,"£000","£000","£000",null,null,null,null,null,"£000","£000"]
[null,"Loan maturity analysis:"]
[null,null,"Within one year",{"$f":"IF(E416<>SUM(G416:I416),\"Error - row does not cast\",\"\")","v":""},{"$f":"+(E325)","v":0},null,{"$f":"E426","v":0},null,null,null,null,null,null,null,0,{"$f":"'Fin.Return - SOFA'!$M$19","v":750000},null,null,null,null,null,null,null,null,null,null,2]
[null,null,"Between two and five years",{"$f":"IF(E417<>SUM(G417:I417),\"Error - row does not cast\",\"\")","v":""},{"$f":"+(E326)","v":0},null,{"$f":"E427","v":0},null,null,null,null,null,null,null,{"$f":"O416","v":0},{"$f":"P416","v":750000},null,null,null,null,null,null,null,null,null,null,2]
[null,null,"After more than five years","",0,null,{"$f":"E428","v":0},null,null,null,null,null,null,null,{"$f":"O417","v":0},{"$f":"P417","v":750000}]
[]
[null,null,null,null,{"$f":"SUM(E416:E419)","v":0},null,{"$f":"SUM(G416:G419)","v":0},{"$f":"SUM(H416:H419)","v":0},{"$f":"SUM(I416:I419)","v":0}]
[]
[null,"DfE Group Analysis"]
[null,null,null,null,"Total",null,"DfE","EFA","NCTL","STA","EHRC","OCC"]
[null,null,null,null,"£000",null,"£000","£000","£000","£000","£000","£000"]
[null,"Loan maturity analysis:"]
[null,null,"Within one year",null,{"$f":"SUM(G426:L426)","v":0},null,null,null,null,null,null,null,null,null,{"$f":"O418","v":0},{"$f":"P418","v":750000},null,null,null,null,null,null,null,null,null,null,6]
[null,null,"Between two and five years",null,{"$f":"SUM(G427:L427)","v":0},null,null,null,null,null,null,null,null,null,{"$f":"O420","v":0},{"$f":"P426","v":750000},null,null,null,null,null,null,null,null,null,null,6]
[null,null,"After more than five years",null,{"$f":"SUM(G428:L428)","v":0},null,null,null,null,null,null,null,null,null,{"$f":"O421","v":0},{"$f":"P427","v":750000},null,null,null,null,null,null,null,null,null,null,6]
[]
[null,null,null,null,{"$f":"SUM(E426:E429)","v":0},null,{"$f":"SUM(G426:G429)","v":0},0,0,0,0,0]

{"sheet":"Fin.Return - Other Notes","index":4,"n_rows":657,"n_cols":66,"rows_kept":657,"cut":false,"hidden":false,"merged":[[646,1,646,2],[645,1,645,2],[642,1,642,2],[641,1,641,2],[637,1,637,2],[643,1,643,2],[644,1,644,2],[639,1,639,2],[640,1,640,2],[10,54,10,59],[10,60,10,65],[13,0,13,7],[15,6,15,10],[481,1,481,12],[148,9,149,10],[141,4,141,9],[140,4,140,9],[139,4,139,9],[2,9,2,14],[10,3,10,6],[142,4,142,9],[143,4,143,9],[500,1,500,12],[221,0,221,2],[392,1,392,12],[451,1,451,12],[473,0,473,2],[390,3,390,10],[449,3,449,10],[264,0,264,2],[305,0,305,2],[612,11,612,12],[513,1,513,2],[514,1,514,2],[515,1,515,2],[638,1,638,2],[612,8,612,9],[636,1,636,2],[635,1,635,2],[634,1,634,2],[633,1,633,2],[612,4,612,6],[652,1,652,2],[653,1,653,2],[647,1,647,2],[648,1,648,2],[649,1,649,2],[650,1,650,2],[651,1,651,2]]}
["Accounts Return March 2016 - Financial Return (Other Notes)"]
[]
["Trust:",null,{"$f":"'Standing Data'!$D$3","v":0},null,null,null,null,"% of cells",null,"Navigation Links & Error Counts"]
[]
["Period end:",null,{"$f":"'Standing Data'!$D$6","v":"2016-03-31"},null,null,null,"Sourced directly from Financial Statements",{"$f":"BC13/BH13","v":0.17915309446254071},null,"SoFA",null,"Balance Sheet",null,"Notes to the F.S.",{"$f":"K7+M7+O7+K9+M9+O9+K11+M11+O11","v":3}]
[]
["Company No.:",null,{"$f":"'Standing Data'!D14","v":"Type number here"},null,null,null,"Additional to Financial Statements, prepared on a similar basis",{"$f":"BE13/BH13","v":0.59315960912052113},null,"Income",null,"Expenses",null,"Boarding"]
[]
["Academy UPIN:",null,{"$f":"IF(AND(OR('Standing Data'!D9=\"Multiple\",'Standing Data'!D9=\"Federation\"),'Standing Data'!M48=0),'Standing Data'!E48,IF('Standing Data'!M48<>0,'Standing Data'!M48,IF(OR('Standing Data'!D9=\"Other\",'Standing Data'!F9<>\"\"),'Standing Data'!F9,'Standing Data'!D12)))","v":{"$error":"#N/A"}},null,null,null,"Additional to Financial Statements, prepared on a different/new basis",{"$f":"BF13/BH13","v":9.543973941368078E-2},null,"Fixed Assets",null,"Current Assets",null,"Liabilities"]
[null,null,"Above details will populate automatically"]
[null,null,null,"Cells populate automatically from elsewhere in the Return",null,null,null,{"$f":"BG13/BH13","v":9.9674267100977196E-2},null,"Funds",{"$f":"COUNTIF(D15:L134,\"Error*\")","v":0},"Pensions & Commit'ts",{"$f":"COUNTIF(D136:N158,\"Error*\")+COUNTIF(D220:N264,\"Error*\")+COUNTIF(D346:N472,\"Error*\")","v":0},"PFI & Later Notes",{"$f":"COUNTIF(D474:N657,\"Error*\")","v":3},null,null,null,null,null,null,null,null,null,null,null,null,null,null,null,null,null,null,null,null,null,null,null,null,null,null,null,null,null,null,null,null,null,null,null,null,null,null,null,"Possible Cells",null,null,null,null,null,"Completed Cells"]
["FINANCIAL RETURN",null,null,"Error check cells",null,"HELP",null,null,null,null,null,null,null,null,null,null,null,null,null,null,null,null,null,null,null,null,null,null,null,null,null,null,null,null,null,null,null,null,null,null,null,null,null,null,null,null,null,null,null,null,null,null,"DESTINATION",null,"Green","Blue","Amber","Red","Grey","Total","Green","Blue","Amber","Red","Grey","Total"]
[null,null,null,null,null,null,null,null,null,null,null,null,null,null,null,null,null,null,null,null,null,null,null,null,null,null,null,null,null,null,null,null,null,null,null,null,null,null,null,null,null,null,null,null,null,null,null,null,null,null,null,null,null,null,{"$f":"+SUM(BC19:BC650)","v":550},{"$f":"+SUM(BD19:BD650)","v":100},{"$f":"+SUM(BE19:BE650)","v":1821},{"$f":"+SUM(BF19:BF650)","v":293},{"$f":"+SUM(BG19:BG650)","v":306},{"$f":"+SUM(BC13:BG13)","v":3070}]
["OTHER NOTES "]
["FUNDS - FOR MULTI-ACADEMY TRUSTS ONLY"]
[null,null,null,null,"Closing General Funds Balance",null,"Analysis of academies by cost"]
["Balance sheet",null,null,null,{"$f":"'Fin.Return - BS'!E16","v":2016},null,"Teaching and Educational Support Staff Costs","Other Support Staff Costs","Educational Supplies","Other Costs (excluding Depreciation)","Total","Lower limit","Upper limit "]
[null,null,"Academy","Notes","£000","Notes","£000","£000","£000","£000","£000","£000","£000"]
[null,null,{"$f":"+('Standing Data'!D48)","v":""},null,null,null,null,null,null,null,{"$f":"+SUM(G19:J19)","v":0},{"$f":"'Fin.Return - BS'!$I$45","v":-750000},{"$f":"'Fin.Return - BS'!$J$19","v":750000},null,null,null,null,null,null,null,null,null,null,null,null,null,null,null,null,null,null,null,null,null,null,null,null,null,null,null,null,null,null,null,null,null,null,null,null,null,null,null,null,null,5,null,null,null,1,null,{"$f":"COUNTA(E19:J19)","v":0},null,null,null,{"$f":"COUNTA(C19)","v":1}]
[null,null,{"$f":"+('Standing Data'!D49)","v":""},null,null,null,null,null,null,null,0,{"$f":"L19","v":-750000},{"$f":"M19","v":750000},null,null,null,null,null,null,null,null,null,null,null,null,null,null,null,null,null,null,null,null,null,null,null,null,null,null,null,null,null,null,null,null,null,null,null,null,null,null,null,null,null,5,null,null,null,1,null,0,null,null,null,1]
[null,null,{"$f":"+('Standing Data'!D50)","v":""},null,null,null,null,null,null,null,0,-750000,750000,null,null,null,null,null,null,null,null,null,null,null,null,null,null,null,null,null,null,null,null,null,null,null,null,null,null,null,null,null,null,null,null,null,null,null,null,null,null,null,null,null,5,null,null,null,1,null,0,null,null,null,1]
[null,null,{"$f":"+('Standing Data'!D51)","v":""},null,null,null,null,null,null,null,0,-750000,750000,null,null,null,null,null,null,null,null,null,null,null,null,null,null,null,null,null,null,null,null,null,null,null,null,null,null,null,null,null,null,null,null,null,null,null,null,null,null,null,null,null,5,null,null,null,1,null,0,null,null,null,1]
[null,null,{"$f":"+('Standing Data'!D52)","v":""},null,null,null,null,null,null,null,0,-750000,750000,null,null,null,null,null,null,null,null,null,null,null,null,null,null,null,null,null,null,null,null,null,null,null,null,null,null,null,null,null,null,null,null,null,null,null,null,null,null,null,null,null,5,null,null,null,1,null,0,null,null,null,1]
[null,null,{"$f":"+('Standing Data'!D53)","v":""},null,null,null,null,null,null,null,0,-750000,750000,null,null,null,null,null,null,null,null,null,null,null,null,null,null,null,null,null,null,null,null,null,null,null,null,null,null,null,null,null,null,null,null,null,null,null,null,null,null,null,null,null,5,null,null,null,1,null,0,null,null,null,1]
[null,null,{"$f":"+('Standing Data'!D54)","v":""},null,null,null,null,null,null,null,0,-750000,750000,null,null,null,null,null,null,null,null,null,null,null,null,null,null,null,null,null,null,null,null,null,null,null,null,null,null,null,null,null,null,null,null,null,null,null,null,null,null,null,null,null,5,null,null,null,1,null,0,null,null,null,1]
[null,null,{"$f":"+('Standing Data'!D55)","v":""},null,null,null,null,null,null,null,0,-750000,750000,null,null,null,null,null,null,null,null,null,null,null,null,null,null,null,null,null,null,null,null,null,null,null,null,null,null,null,null,null,null,null,null,null,null,null,null,null,null,null,null,null,5,null,null,null,1,null,0,null,null,null,1]
[null,null,{"$f":"+('Standing Data'!D56)","v":""},null,null,null,null,null,null,null,0,-750000,750000,null,null,null,null,null,null,null,null,null,null,null,null,null,null,null,null,null,null,null,null,null,null,null,null,null,null,null,null,null,null,null,null,null,null,null,null,null,null,null,null,null,5,null,null,null,1,null,0,null,null,null,1]
[null,null,{"$f":"+('Standing Data'!D57)","v":""},null,null,null,null,null,null,null,0,-750000,750000,null,null,null,null,null,null,null,null,null,null,null,null,null,null,null,null,null,null,null,null,null,null,null,null,null,null,null,null,null,null,null,null,null,null,null,null,null,null,null,null,null,5,null,null,null,1,null,0,null,null,null,1]
[null,null,{"$f":"+('Standing Data'!D58)","v":""},null,null,null,null,null,null,null,0,-750000,750000,null,null,null,null,null,null,null,null,null,null,null,null,null,null,null,null,null,null,null,null,null,null,null,null,null,null,null,null,null,null,null,null,null,null,null,null,null,null,null,null,null,5,null,null,null,1,null,0,null,null,null,1]
[null,null,{"$f":"+('Standing Data'!D59)","v":""},null,null,null,null,null,null,null,0,-750000,750000,null,null,null,null,null,null,null,null,null,null,null,null,null,null,null,null,null,null,null,null,null,null,null,null,null,null,null,null,null,null,null,null,null,null,null,null,null,null,null,null,null,5,null,null,null,1,null,0,null,null,null,1]
[null,null,{"$f":"+('Standing Data'!D60)","v":""},null,null,null,null,null,null,null,0,-750000,750000,null,null,null,null,null,null,null,null,null,null,null,null,null,null,null,null,null,null,null,null,null,null,null,null,null,null,null,null,null,null,null,null,null,null,null,null,null,null,null,null,null,5,null,null,null,1,null,0,null,null,null,1]
[null,null,{"$f":"+('Standing Data'!D61)","v":""},null,null,null,null,null,null,null,0,-750000,750000,null,null,null,null,null,null,null,null,null,null,null,null,null,null,null,null,null,null,null,null,null,null,null,null,null,null,null,null,null,null,null,null,null,null,null,null,null,null,null,null,null,5,null,null,null,1,null,0,null,null,null,1]
[null,null,{"$f":"+('Standing Data'!D62)","v":""},null,null,null,null,null,null,null,0,-750000,750000,null,null,null,null,null,null,null,null,null,null,null,null,null,null,null,null,null,null,null,null,null,null,null,null,null,null,null,null,null,null,null,null,null,null,null,null,null,null,null,null,null,5,null,null,null,1,null,0,null,null,null,1]
[null,null,{"$f":"+('Standing Data'!D63)","v":""},null,null,null,null,null,null,null,0,-750000,750000,null,null,null,null,null,null,null,null,null,null,null,null,null,null,null,null,null,null,null,null,null,null,null,null,null,null,null,null,null,null,null,null,null,null,null,null,null,null,null,null,null,5,null,null,null,1,null,0,null,null,null,1]
[null,null,{"$f":"+('Standing Data'!D64)","v":""},null,null,null,null,null,null,null,0,-750000,750000,null,null,null,null,null,null,null,null,null,null,null,null,null,null,null,null,null,null,null,null,null,null,null,null,null,null,null,null,null,null,null,null,null,null,null,null,null,null,null,null,null,5,null,null,null,1,null,0,null,null,null,1]
[null,null,{"$f":"+('Standing Data'!D65)","v":""},null,null,null,null,null,null,null,0,-750000,750000,null,null,null,null,null,null,null,null,null,null,null,null,null,null,null,null,null,null,null,null,null,null,null,null,null,null,null,null,null,null,null,null,null,null,null,null,null,null,null,null,null,5,null,null,null,1,null,0,null,null,null,1]
[null,null,{"$f":"+('Standing Data'!D66)","v":""},null,null,null,null,null,null,null,0,-750000,750000,null,null,null,null,null,null,null,null,null,null,null,null,null,null,null,null,null,null,null,null,null,null,null,null,null,null,null,null,null,null,null,null,null,null,null,null,null,null,null,null,null,5,null,null,null,1,null,0,null,null,null,1]
[null,null,{"$f":"+('Standing Data'!D67)","v":""},null,null,null,null,null,null,null,0,-750000,750000,null,null,null,null,null,null,null,null,null,null,null,null,null,null,null,null,null,null,null,null,null,null,null,null,null,null,null,null,null,null,null,null,null,null,null,null,null,null,null,null,null,5,null,null,null,1,null,0,null,null,null,1]
[null,null,{"$f":"+('Standing Data'!D68)","v":""},null,null,null,null,null,null,null,0,-750000,750000,null,null,null,null,null,null,null,null,null,null,null,null,null,null,null,null,null,null,null,null,null,null,null,null,null,null,null,null,null,null,null,null,null,null,null,null,null,null,null,null,null,5,null,null,null,1,null,0,null,null,null,1]
[null,null,{"$f":"+('Standing Data'!D69)","v":""},null,null,null,null,null,null,null,0,-750000,750000,null,null,null,null,null,null,null,null,null,null,null,null,null,null,null,null,null,null,null,null,null,null,null,null,null,null,null,null,null,null,null,null,null,null,null,null,null,null,null,null,null,5,null,null,null,1,null,0,null,null,null,1]
[null,null,{"$f":"+('Standing Data'!D70)","v":""},null,null,null,null,null,null,null,0,-750000,750000,null,null,null,null,null,null,null,null,null,null,null,null,null,null,null,null,null,null,null,null,null,null,null,null,null,null,null,null,null,null,null,null,null,null,null,null,null,null,null,null,null,5,null,null,null,1,null,0,null,null,null,1]
[null,null,{"$f":"+('Standing Data'!D71)","v":""},null,null,null,null,null,null,null,0,-750000,750000,null,null,null,null,null,null,null,null,null,null,null,null,null,null,null,null,null,null,null,null,null,null,null,null,null,null,null,null,null,null,null,null,null,null,null,null,null,null,null,null,null,5,null,null,null,1,null,0,null,null,null,1]
[null,null,{"$f":"+('Standing Data'!D72)","v":""},null,null,null,null,null,null,null,0,-750000,750000,null,null,null,null,null,null,null,null,null,null,null,null,null,null,null,null,null,null,null,null,null,null,null,null,null,null,null,null,null,null,null,null,null,null,null,null,null,null,null,null,null,5,null,null,null,1,null,0,null,null,null,1]
[null,null,{"$f":"+('Standing Data'!D73)","v":""},null,null,null,null,null,null,null,0,-750000,750000,null,null,null,null,null,null,null,null,null,null,null,null,null,null,null,null,null,null,null,null,null,null,null,null,null,null,null,null,null,null,null,null,null,null,null,null,null,null,null,null,null,5,null,null,null,1,null,0,null,null,null,1]
[null,null,{"$f":"+('Standing Data'!D74)","v":""},null,null,null,null,null,null,null,0,-750000,750000,null,null,null,null,null,null,null,null,null,null,null,null,null,null,null,null,null,null,null,null,null,null,null,null,null,null,null,null,null,null,null,null,null,null,null,null,null,null,null,null,null,5,null,null,null,1,null,0,null,null,null,1]
[null,null,{"$f":"+('Standing Data'!D75)","v":""},null,null,null,null,null,null,null,0,-750000,750000,null,null,null,null,null,null,null,null,null,null,null,null,null,null,null,null,null,null,null,null,null,null,null,null,null,null,null,null,null,null,null,null,null,null,null,null,null,null,null,null,null,5,null,null,null,1,null,0,null,null,null,1]
[null,null,{"$f":"+('Standing Data'!D76)","v":""},null,null,null,null,null,null,null,0,-750000,750000,null,null,null,null,null,null,null,null,null,null,null,null,null,null,null,null,null,null,null,null,null,null,null,null,null,null,null,null,null,null,null,null,null,null,null,null,null,null,null,null,null,5,null,null,null,1,null,0,null,null,null,1]
[null,null,{"$f":"+('Standing Data'!D77)","v":""},null,null,null,null,null,null,null,0,-750000,750000,null,null,null,null,null,null,null,null,null,null,null,null,null,null,null,null,null,null,null,null,null,null,null,null,null,null,null,null,null,null,null,null,null,null,null,null,null,null,null,null,null,5,null,null,null,1,null,0,null,null,null,1]
[null,null,{"$f":"+('Standing Data'!D78)","v":""},null,null,null,null,null,null,null,0,-750000,750000,null,null,null,null,null,null,null,null,null,null,null,null,null,null,null,null,null,null,null,null,null,null,null,null,null,null,null,null,null,null,null,null,null,null,null,null,null,null,null,null,null,5,null,null,null,1,null,0,null,null,null,1]
[null,null,{"$f":"+('Standing Data'!D79)","v":""},null,null,null,null,null,null,null,0,-750000,750000,null,null,null,null,null,null,null,null,null,null,null,null,null,null,null,null,null,null,null,null,null,null,null,null,null,null,null,null,null,null,null,null,null,null,null,null,null,null,null,null,null,5,null,null,null,1,null,0,null,null,null,1]
[null,null,{"$f":"+('Standing Data'!D80)","v":""},null,null,null,null,null,null,null,{"$f":"+SUM(G51:J51)","v":0},-750000,750000,null,null,null,null,null,null,null,null,null,null,null,null,null,null,null,null,null,null,null,null,null,null,null,null,null,null,null,null,null,null,null,null,null,null,null,null,null,null,null,null,null,5,null,null,null,1,null,{"$f":"COUNTA(E51:J51)","v":0},null,null,null,{"$f":"COUNTA(C51)","v":1}]
[null,null,{"$f":"+('Standing Data'!D81)","v":""},null,null,null,null,null,null,null,0,{"$f":"L51","v":-750000},{"$f":"M51","v":750000},null,null,null,null,null,null,null,null,null,null,null,null,null,null,null,null,null,null,null,null,null,null,null,null,null,null,null,null,null,null,null,null,null,null,null,null,null,null,null,null,null,5,null,null,null,1,null,0,null,null,null,1]
[null,null,{"$f":"+('Standing Data'!D82)","v":""},null,null,null,null,null,null,null,0,-750000,750000,null,null,null,null,null,null,null,null,null,null,null,null,null,null,null,null,null,null,null,null,null,null,null,null,null,null,null,null,null,null,null,null,null,null,null,null,null,null,null,null,null,5,null,null,null,1,null,0,null,null,null,1]
[null,null,{"$f":"+('Standing Data'!D83)","v":""},null,null,null,null,null,null,null,0,-750000,750000,null,null,null,null,null,null,null,null,null,null,null,null,null,null,null,null,null,null,null,null,null,null,null,null,null,null,null,null,null,null,null,null,null,null,null,null,null,null,null,null,null,5,null,null,null,1,null,0,null,null,null,1]
[null,null,{"$f":"+('Standing Data'!D84)","v":""},null,null,null,null,null,null,null,0,-750000,750000,null,null,null,null,null,null,null,null,null,null,null,null,null,null,null,null,null,null,null,null,null,null,null,null,null,null,null,null,null,null,null,null,null,null,null,null,null,null,null,null,null,5,null,null,null,1,null,0,null,null,null,1]
[null,null,{"$f":"+('Standing Data'!D85)","v":""},null,null,null,null,null,null,null,0,-750000,750000,null,null,null,null,null,null,null,null,null,null,null,null,null,null,null,null,null,null,null,null,null,null,null,null,null,null,null,null,null,null,null,null,null,null,null,null,null,null,null,null,null,5,null,null,null,1,null,0,null,null,null,1]
[null,null,{"$f":"+('Standing Data'!D86)","v":""},null,null,null,null,null,null,null,0,-750000,750000,null,null,null,null,null,null,null,null,null,null,null,null,null,null,null,null,null,null,null,null,null,null,null,null,null,null,null,null,null,null,null,null,null,null,null,null,null,null,null,null,null,5,null,null,null,1,null,0,null,null,null,1]
[null,null,{"$f":"+('Standing Data'!D87)","v":""},null,null,null,null,null,null,null,0,-750000,750000,null,null,null,null,null,null,null,null,null,null,null,null,null,null,null,null,null,null,null,null,null,null,null,null,null,null,null,null,null,null,null,null,null,null,null,null,null,null,null,null,null,5,null,null,null,1,null,0,null,null,null,1]
[null,null,{"$f":"+('Standing Data'!D88)","v":""},null,null,null,null,null,null,null,0,-750000,750000,null,null,null,null,null,null,null,null,null,null,null,null,null,null,null,null,null,null,null,null,null,null,null,null,null,null,null,null,null,null,null,null,null,null,null,null,null,null,null,null,null,5,null,null,null,1,null,0,null,null,null,1]
[null,null,{"$f":"+('Standing Data'!D89)","v":""},null,null,null,null,null,null,null,0,-750000,750000,null,null,null,null,null,null,null,null,null,null,null,null,null,null,null,null,null,null,null,null,null,null,null,null,null,null,null,null,null,null,null,null,null,null,null,null,null,null,null,null,null,5,null,null,null,1,null,0,null,null,null,1]
[null,null,{"$f":"+('Standing Data'!D90)","v":""},null,null,null,null,null,null,null,0,-750000,750000,null,null,null,null,null,null,null,null,null,null,null,null,null,null,null,null,null,null,null,null,null,null,null,null,null,null,null,null,null,null,null,null,null,null,null,null,null,null,null,null,null,5,null,null,null,1,null,0,null,null,null,1]
[null,null,{"$f":"+('Standing Data'!D91)","v":""},null,null,null,null,null,null,null,0,-750000,750000,null,null,null,null,null,null,null,null,null,null,null,null,null,null,null,null,null,null,null,null,null,null,null,null,null,null,null,null,null,null,null,null,null,null,null,null,null,null,null,null,null,5,null,null,null,1,null,0,null,null,null,1]
[null,null,{"$f":"+('Standing Data'!D92)","v":""},null,null,null,null,null,null,null,0,-750000,750000,null,null,null,null,null,null,null,null,null,null,null,null,null,null,null,null,null,null,null,null,null,null,null,null,null,null,null,null,null,null,null,null,null,null,null,null,null,null,null,null,null,5,null,null,null,1,null,0,null,null,null,1]
[null,null,{"$f":"+('Standing Data'!D93)","v":""},null,null,null,null,null,null,null,0,-750000,750000,null,null,null,null,null,null,null,null,null,null,null,null,null,null,null,null,null,null,null,null,null,null,null,null,null,null,null,null,null,null,null,null,null,null,null,null,null,null,null,null,null,5,null,null,null,1,null,0,null,null,null,1]
[null,null,{"$f":"+('Standing Data'!D94)","v":""},null,null,null,null,null,null,null,0,-750000,750000,null,null,null,null,null,null,null,null,null,null,null,null,null,null,null,null,null,null,null,null,null,null,null,null,null,null,null,null,null,null,null,null,null,null,null,null,null,null,null,null,null,5,null,null,null,1,null,0,null,null,null,1]
[null,null,{"$f":"+('Standing Data'!D95)","v":""},null,null,null,null,null,null,null,0,-750000,750000,null,null,null,null,null,null,null,null,null,null,null,null,null,null,null,null,null,null,null,null,null,null,null,null,null,null,null,null,null,null,null,null,null,null,null,null,null,null,null,null,null,5,null,null,null,1,null,0,null,null,null,1]
[null,null,{"$f":"+('Standing Data'!D96)","v":""},null,null,null,null,null,null,null,0,-750000,750000,null,null,null,null,null,null,null,null,null,null,null,null,null,null,null,null,null,null,null,null,null,null,null,null,null,null,null,null,null,null,null,null,null,null,null,null,null,null,null,null,null,5,null,null,null,1,null,0,null,null,null,1]
[null,null,{"$f":"+('Standing Data'!D97)","v":""},null,null,null,null,null,null,null,0,-750000,750000,null,null,null,null,null,null,null,null,null,null,null,null,null,null,null,null,null,null,null,null,null,null,null,null,null,null,null,null,null,null,null,null,null,null,null,null,null,null,null,null,null,5,null,null,null,1,null,0,null,null,null,1]
[null,null,{"$f":"+('Standing Data'!D98)","v":""},null,null,null,null,null,null,null,0,-750000,750000,null,null,null,null,null,null,null,null,null,null,null,null,null,null,null,null,null,null,null,null,null,null,null,null,null,null,null,null,null,null,null,null,null,null,null,null,null,null,null,null,null,5,null,null,null,1,null,0,null,null,null,1]
[null,null,{"$f":"+('Standing Data'!D99)","v":""},null,null,null,null,null,null,null,0,-750000,750000,null,null,null,null,null,null,null,null,null,null,null,null,null,null,null,null,null,null,null,null,null,null,null,null,null,null,null,null,null,null,null,null,null,null,null,null,null,null,null,null,null,5,null,null,null,1,null,0,null,null,null,1]
[null,null,{"$f":"+('Standing Data'!D100)","v":""},null,null,null,null,null,null,null,0,-750000,750000,null,null,null,null,null,null,null,null,null,null,null,null,null,null,null,null,null,null,null,null,null,null,null,null,null,null,null,null,null,null,null,null,null,null,null,null,null,null,null,null,null,5,null,null,null,1,null,0,null,null,null,1]
[null,null,{"$f":"+('Standing Data'!D101)","v":""},null,null,null,null,null,null,null,0,-750000,750000,null,null,null,null,null,null,null,null,null,null,null,null,null,null,null,null,null,null,null,null,null,null,null,null,null,null,null,null,null,null,null,null,null,null,null,null,null,null,null,null,null,5,null,null,null,1,null,0,null,null,null,1]
[null,null,{"$f":"+('Standing Data'!D102)","v":""},null,null,null,null,null,null,null,0,-750000,750000,null,null,null,null,null,null,null,null,null,null,null,null,null,null,null,null,null,null,null,null,null,null,null,null,null,null,null,null,null,null,null,null,null,null,null,null,null,null,null,null,null,5,null,null,null,1,null,0,null,null,null,1]
[null,null,{"$f":"+('Standing Data'!D103)","v":""},null,null,null,null,null,null,null,0,-750000,750000,null,null,null,null,null,null,null,null,null,null,null,null,null,null,null,null,null,null,null,null,null,null,null,null,null,null,null,null,null,null,null,null,null,null,null,null,null,null,null,null,null,5,null,null,null,1,null,0,null,null,null,1]
[null,null,{"$f":"+('Standing Data'!D104)","v":""},null,null,null,null,null,null,null,0,-750000,750000,null,null,null,null,null,null,null,null,null,null,null,null,null,null,null,null,null,null,null,null,null,null,null,null,null,null,null,null,null,null,null,null,null,null,null,null,null,null,null,null,null,5,null,null,null,1,null,0,null,null,null,1]
[null,null,{"$f":"+('Standing Data'!D105)","v":""},null,null,null,null,null,null,null,0,-750000,750000,null,null,null,null,null,null,null,null,null,null,null,null,null,null,null,null,null,null,null,null,null,null,null,null,null,null,null,null,null,null,null,null,null,null,null,null,null,null,null,null,null,5,null,null,null,1,null,0,null,null,null,1]
[null,null,{"$f":"+('Standing Data'!D106)","v":""},null,null,null,null,null,null,null,0,-750000,750000,null,null,null,null,null,null,null,null,null,null,null,null,null,null,null,null,null,null,null,null,null,null,null,null,null,null,null,null,null,null,null,null,null,null,null,null,null,null,null,null,null,5,null,null,null,1,null,0,null,null,null,1]
[null,null,{"$f":"+('Standing Data'!D107)","v":""},null,null,null,null,null,null,null,0,-750000,750000,null,null,null,null,null,null,null,null,null,null,null,null,null,null,null,null,null,null,null,null,null,null,null,null,null,null,null,null,null,null,null,null,null,null,null,null,null,null,null,null,null,5,null,null,null,1,null,0,null,null,null,1]
[null,null,{"$f":"+('Standing Data'!D108)","v":""},null,null,null,null,null,null,null,0,-750000,750000,null,null,null,null,null,null,null,null,null,null,null,null,null,null,null,null,null,null,null,null,null,null,null,null,null,null,null,null,null,null,null,null,null,null,null,null,null,null,null,null,null,5,null,null,null,1,null,0,null,null,null,1]
[null,null,{"$f":"+('Standing Data'!D109)","v":""},null,null,null,null,null,null,null,0,-750000,750000,null,null,null,null,null,null,null,null,null,null,null,null,null,null,null,null,null,null,null,null,null,null,null,null,null,null,null,null,null,null,null,null,null,null,null,null,null,null,null,null,null,5,null,null,null,1,null,0,null,null,null,1]
[null,null,{"$f":"+('Standing Data'!D110)","v":""},null,null,null,null,null,null,null,0,-750000,750000,null,null,null,null,null,null,null,null,null,null,null,null,null,null,null,null,null,null,null,null,null,null,null,null,null,null,null,null,null,null,null,null,null,null,null,null,null,null,null,null,null,5,null,null,null,1,null,0,null,null,null,1]
[null,null,{"$f":"+('Standing Data'!D111)","v":""},null,null,null,null,null,null,null,0,-750000,750000,null,null,null,null,null,null,null,null,null,null,null,null,null,null,null,null,null,null,null,null,null,null,null,null,null,null,null,null,null,null,null,null,null,null,null,null,null,null,null,null,null,5,null,null,null,1,null,0,null,null,null,1]
[null,null,{"$f":"+('Standing Data'!D112)","v":""},null,null,null,null,null,null,null,{"$f":"+SUM(G83:J83)","v":0},-750000,750000,null,null,null,null,null,null,null,null,null,null,null,null,null,null,null,null,null,null,null,null,null,null,null,null,null,null,null,null,null,null,null,null,null,null,null,null,null,null,null,null,null,5,null,null,null,1,null,{"$f":"COUNTA(E83:J83)","v":0},null,null,null,{"$f":"COUNTA(C83)","v":1}]
[null,null,{"$f":"+('Standing Data'!D113)","v":""},null,null,null,null,null,null,null,0,{"$f":"L83","v":-750000},{"$f":"M83","v":750000},null,null,null,null,null,null,null,null,null,null,null,null,null,null,null,null,null,null,null,null,null,null,null,null,null,null,null,null,null,null,null,null,null,null,null,null,null,null,null,null,null,5,null,null,null,1,null,0,null,null,null,1]
[null,null,{"$f":"+('Standing Data'!D114)","v":""},null,null,null,null,null,null,null,0,-750000,750000,null,null,null,null,null,null,null,null,null,null,null,null,null,null,null,null,null,null,null,null,null,null,null,null,null,null,null,null,null,null,null,null,null,null,null,null,null,null,null,null,null,5,null,null,null,1,null,0,null,null,null,1]
[null,null,{"$f":"+('Standing Data'!D115)","v":""},null,null,null,null,null,null,null,0,-750000,750000,null,null,null,null,null,null,null,null,null,null,null,null,null,null,null,null,null,null,null,null,null,null,null,null,null,null,null,null,null,null,null,null,null,null,null,null,null,null,null,null,null,5,null,null,null,1,null,0,null,null,null,1]
[null,null,{"$f":"+('Standing Data'!D116)","v":""},null,null,null,null,null,null,null,0,-750000,750000,null,null,null,null,null,null,null,null,null,null,null,null,null,null,null,null,null,null,null,null,null,null,null,null,null,null,null,null,null,null,null,null,null,null,null,null,null,null,null,null,null,5,null,null,null,1,null,0,null,null,null,1]
[null,null,{"$f":"+('Standing Data'!D117)","v":""},null,null,null,null,null,null,null,0,-750000,750000,null,null,null,null,null,null,null,null,null,null,null,null,null,null,null,null,null,null,null,null,null,null,null,null,null,null,null,null,null,null,null,null,null,null,null,null,null,null,null,null,null,5,null,null,null,1,null,0,null,null,null,1]
[null,null,{"$f":"+('Standing Data'!D118)","v":""},null,null,null,null,null,null,null,0,-750000,750000,null,null,null,null,null,null,null,null,null,null,null,null,null,null,null,null,null,null,null,null,null,null,null,null,null,null,null,null,null,null,null,null,null,null,null,null,null,null,null,null,null,5,null,null,null,1,null,0,null,null,null,1]
[null,null,{"$f":"+('Standing Data'!D119)","v":""},null,null,null,null,null,null,null,0,-750000,750000,null,null,null,null,null,null,null,null,null,null,null,null,null,null,null,null,null,null,null,null,null,null,null,null,null,null,null,null,null,null,null,null,null,null,null,null,null,null,null,null,null,5,null,null,null,1,null,0,null,null,null,1]
[null,null,{"$f":"+('Standing Data'!D120)","v":""},null,null,null,null,null,null,null,0,-750000,750000,null,null,null,null,null,null,null,null,null,null,null,null,null,null,null,null,null,null,null,null,null,null,null,null,null,null,null,null,null,null,null,null,null,null,null,null,null,null,null,null,null,5,null,null,null,1,null,0,null,null,null,1]
[null,null,{"$f":"+('Standing Data'!D121)","v":""},null,null,null,null,null,null,null,0,-750000,750000,null,null,null,null,null,null,null,null,null,null,null,null,null,null,null,null,null,null,null,null,null,null,null,null,null,null,null,null,null,null,null,null,null,null,null,null,null,null,null,null,null,5,null,null,null,1,null,0,null,null,null,1]
[null,null,{"$f":"+('Standing Data'!D122)","v":""},null,null,null,null,null,null,null,0,-750000,750000,null,null,null,null,null,null,null,null,null,null,null,null,null,null,null,null,null,null,null,null,null,null,null,null,null,null,null,null,null,null,null,null,null,null,null,null,null,null,null,null,null,5,null,null,null,1,null,0,null,null,null,1]
[null,null,{"$f":"+('Standing Data'!D123)","v":""},null,null,null,null,null,null,null,0,-750000,750000,null,null,null,null,null,null,null,null,null,null,null,null,null,null,null,null,null,null,null,null,null,null,null,null,null,null,null,null,null,null,null,null,null,null,null,null,null,null,null,null,null,5,null,null,null,1,null,0,null,null,null,1]
[null,null,{"$f":"+('Standing Data'!D124)","v":""},null,null,null,null,null,null,null,0,-750000,750000,null,null,null,null,null,null,null,null,null,null,null,null,null,null,null,null,null,null,null,null,null,null,null,null,null,null,null,null,null,null,null,null,null,null,null,null,null,null,null,null,null,5,null,null,null,1,null,0,null,null,null,1]
[null,null,{"$f":"+('Standing Data'!D125)","v":""},null,null,null,null,null,null,null,0,-750000,750000,null,null,null,null,null,null,null,null,null,null,null,null,null,null,null,null,null,null,null,null,null,null,null,null,null,null,null,null,null,null,null,null,null,null,null,null,null,null,null,null,null,5,null,null,null,1,null,0,null,null,null,1]
[null,null,{"$f":"+('Standing Data'!D126)","v":""},null,null,null,null,null,null,null,0,-750000,750000,null,null,null,null,null,null,null,null,null,null,null,null,null,null,null,null,null,null,null,null,null,null,null,null,null,null,null,null,null,null,null,null,null,null,null,null,null,null,null,null,null,5,null,null,null,1,null,0,null,null,null,1]
[null,null,{"$f":"+('Standing Data'!D127)","v":""},null,null,null,null,null,null,null,0,-750000,750000,null,null,null,null,null,null,null,null,null,null,null,null,null,null,null,null,null,null,null,null,null,null,null,null,null,null,null,null,null,null,null,null,null,null,null,null,null,null,null,null,null,5,null,null,null,1,null,0,null,null,null,1]
[null,null,{"$f":"+('Standing Data'!D128)","v":""},null,null,null,null,null,null,null,0,-750000,750000,null,null,null,null,null,null,null,null,null,null,null,null,null,null,null,null,null,null,null,null,null,null,null,null,null,null,null,null,null,null,null,null,null,null,null,null,null,null,null,null,null,5,null,null,null,1,null,0,null,null,null,1]
[null,null,{"$f":"+('Standing Data'!D129)","v":""},null,null,null,null,null,null,null,0,-750000,750000,null,null,null,null,null,null,null,null,null,null,null,null,null,null,null,null,null,null,null,null,null,null,null,null,null,null,null,null,null,null,null,null,null,null,null,null,null,null,null,null,null,5,null,null,null,1,null,0,null,null,null,1]
[null,null,{"$f":"+('Standing Data'!D130)","v":""},null,null,null,null,null,null,null,0,-750000,750000,null,null,null,null,null,null,null,null,null,null,null,null,null,null,null,null,null,null,null,null,null,null,null,null,null,null,null,null,null,null,null,null,null,null,null,null,null,null,null,null,null,5,null,null,null,1,null,0,null,null,null,1]
[null,null,{"$f":"+('Standing Data'!D131)","v":""},null,null,null,null,null,null,null,0,-750000,750000,null,null,null,null,null,null,null,null,null,null,null,null,null,null,null,null,null,null,null,null,null,null,null,null,null,null,null,null,null,null,null,null,null,null,null,null,null,null,null,null,null,5,null,null,null,1,null,0,null,null,null,1]
[null,null,{"$f":"+('Standing Data'!D132)","v":""},null,null,null,null,null,null,null,0,-750000,750000,null,null,null,null,null,null,null,null,null,null,null,null,null,null,null,null,null,null,null,null,null,null,null,null,null,null,null,null,null,null,null,null,null,null,null,null,null,null,null,null,null,5,null,null,null,1,null,0,null,null,null,1]
[null,null,{"$f":"+('Standing Data'!D133)","v":""},null,null,null,null,null,null,null,0,-750000,750000,null,null,null,null,null,null,null,null,null,null,null,null,null,null,null,null,null,null,null,null,null,null,null,null,null,null,null,null,null,null,null,null,null,null,null,null,null,null,null,null,null,5,null,null,null,1,null,0,null,null,null,1]
[null,null,{"$f":"+('Standing Data'!D134)","v":""},null,null,null,null,null,null,null,0,-750000,750000,null,null,null,null,null,null,null,null,null,null,null,null,null,null,null,null,null,null,null,null,null,null,null,null,null,null,null,null,null,null,null,null,null,null,null,null,null,null,null,null,null,5,null,null,null,1,null,0,null,null,null,1]
[null,null,{"$f":"+('Standing Data'!D135)","v":""},null,null,null,null,null,null,null,0,-750000,750000,null,null,null,null,null,null,null,null,null,null,null,null,null,null,null,null,null,null,null,null,null,null,null,null,null,null,null,null,null,null,null,null,null,null,null,null,null,null,null,null,null,5,null,null,null,1,null,0,null,null,null,1]
[null,null,{"$f":"+('Standing Data'!D136)","v":""},null,null,null,null,null,null,null,0,-750000,750000,null,null,null,null,null,null,null,null,null,null,null,null,null,null,null,null,null,null,null,null,null,null,null,null,null,null,null,null,null,null,null,null,null,null,null,null,null,null,null,null,null,5,null,null,null,1,null,0,null,null,null,1]
[null,null,{"$f":"+('Standing Data'!D137)","v":""},null,null,null,null,null,null,null,0,-750000,750000,null,null,null,null,null,null,null,null,null,null,null,null,null,null,null,null,null,null,null,null,null,null,null,null,null,null,null,null,null,null,null,null,null,null,null,null,null,null,null,null,null,5,null,null,null,1,null,0,null,null,null,1]
[null,null,{"$f":"+('Standing Data'!D138)","v":""},null,null,null,null,null,null,null,0,-750000,750000,null,null,null,null,null,null,null,null,null,null,null,null,null,null,null,null,null,null,null,null,null,null,null,null,null,null,null,null,null,null,null,null,null,null,null,null,null,null,null,null,null,5,null,null,null,1,null,0,null,null,null,1]
[null,null,{"$f":"+('Standing Data'!D139)","v":""},null,null,null,null,null,null,null,0,-750000,750000,null,null,null,null,null,null,null,null,null,null,null,null,null,null,null,null,null,null,null,null,null,null,null,null,null,null,null,null,null,null,null,null,null,null,null,null,null,null,null,null,null,5,null,null,null,1,null,0,null,null,null,1]
[null,null,{"$f":"+('Standing Data'!D140)","v":""},null,null,null,null,null,null,null,0,-750000,750000,null,null,null,null,null,null,null,null,null,null,null,null,null,null,null,null,null,null,null,null,null,null,null,null,null,null,null,null,null,null,null,null,null,null,null,null,null,null,null,null,null,5,null,null,null,1,null,0,null,null,null,1]
[null,null,{"$f":"+('Standing Data'!D141)","v":""},null,null,null,null,null,null,null,0,-750000,750000,null,null,null,null,null,null,null,null,null,null,null,null,null,null,null,null,null,null,null,null,null,null,null,null,null,null,null,null,null,null,null,null,null,null,null,null,null,null,null,null,null,5,null,null,null,1,null,0,null,null,null,1]
[null,null,{"$f":"+('Standing Data'!D142)","v":""},null,null,null,null,null,null,null,0,-750000,750000,null,null,null,null,null,null,null,null,null,null,null,null,null,null,null,null,null,null,null,null,null,null,null,null,null,null,null,null,null,null,null,null,null,null,null,null,null,null,null,null,null,5,null,null,null,1,null,0,null,null,null,1]
[null,null,{"$f":"+('Standing Data'!D143)","v":""},null,null,null,null,null,null,null,0,-750000,750000,null,null,null,null,null,null,null,null,null,null,null,null,null,null,null,null,null,null,null,null,null,null,null,null,null,null,null,null,null,null,null,null,null,null,null,null,null,null,null,null,null,5,null,null,null,1,null,0,null,null,null,1]
[null,null,{"$f":"+('Standing Data'!D144)","v":""},null,null,null,null,null,null,null,{"$f":"+SUM(G115:J115)","v":0},-750000,750000,null,null,null,null,null,null,null,null,null,null,null,null,null,null,null,null,null,null,null,null,null,null,null,null,null,null,null,null,null,null,null,null,null,null,null,null,null,null,null,null,null,5,null,null,null,1,null,0,null,null,null,1]
[null,null,{"$f":"+('Standing Data'!D145)","v":""},null,null,null,null,null,null,null,0,-750000,750000,null,null,null,null,null,null,null,null,null,null,null,null,null,null,null,null,null,null,null,null,null,null,null,null,null,null,null,null,null,null,null,null,null,null,null,null,null,null,null,null,null,5,null,null,null,1,null,0,null,null,null,1]
[null,null,{"$f":"+('Standing Data'!D146)","v":""},null,null,null,null,null,null,null,0,-750000,750000,null,null,null,null,null,null,null,null,null,null,null,null,null,null,null,null,null,null,null,null,null,null,null,null,null,null,null,null,null,null,null,null,null,null,null,null,null,null,null,null,null,5,null,null,null,1,null,0,null,null,null,1]
[null,null,{"$f":"+('Standing Data'!D147)","v":""},null,null,null,null,null,null,null,0,-750000,750000,null,null,null,null,null,null,null,null,null,null,null,null,null,null,null,null,null,null,null,null,null,null,null,null,null,null,null,null,null,null,null,null,null,null,null,null,null,null,null,null,null,5,null,null,null,1,null,0,null,null,null,1]
[null,null,"Central Services (if applicable)",null,null,null,null,null,null,null,0,-750000,750000,null,null,null,null,null,null,null,null,null,null,null,null,null,null,null,null,null,null,null,null,null,null,null,null,null,null,null,null,null,null,null,null,null,null,null,null,null,null,null,null,null,5,null,null,null,null,null,0,null,null,null,1]
[null,null,null,{"$f":"IF('Standing Data'!D9=\"Multiple\",IF(E120<>('Fin.Return - BS'!G48+'Fin.Return - BS'!G53),\"Error - imbalance with BS\",\"\"),\"\")","v":""},{"$f":"+SUM(E19:E119)","v":0},null,{"$f":"+SUM(G19:G119)","v":0},{"$f":"+SUM(H19:H119)","v":0},{"$f":"+SUM(I19:I119)","v":0},{"$f":"+SUM(J19:J119)","v":0},{"$f":"+SUM(K19:K119)","v":0}]
[null,null,null,{"$f":"IF(K120>0,IF(K119=0,\"No central service management charges shown, please check before submission\"),\"\")","v":""},null,null,null,null,null,null,{"$f":"IF('Standing Data'!D9=\"Multiple\",IF(K120<>('Fin.Return - SOFA'!G39+'Fin.Return - SOFA'!H39),\"Error - imbalance with SoFA\",\"\"),\"\")","v":""}]
[]
[]
["ANALYSIS OF NET ASSETS BETWEEN FUNDS",null,null,null,"Total",null,"Unrestricted\nFunds","Restricted\nFunds","Restricted\nFixed Asset\nFunds","Endowment\nFunds",null,"Lower limit","Upper limit "]
["Balance sheet",null,null,null,"£000",null,"£000","£000","£000","£000",null,"£000","£000"]
[null,"Fixed assets",null,{"$f":"IF(E126<>SUM(G126:J126),\"Error - row does not cross cast\",\"\")","v":""},{"$f":"'Fin.Return - BS'!G23","v":0},null,null,null,null,null,null,{"$f":"'Fin.Return - BS'!$I$45","v":-750000},{"$f":"'Fin.Return - BS'!$J$19","v":750000},null,null,null,null,null,null,null,null,null,null,null,null,null,null,null,null,null,null,null,null,null,null,null,null,null,null,null,null,null,null,null,null,null,null,null,null,null,null,null,null,null,4,null,null,null,1,null,{"$f":"COUNTA(G126:J126)","v":0},null,null,null,{"$f":"COUNTIF(E126:E126,\"<>0\")","v":0}]
[null,"Current assets",null,"",{"$f":"'Fin.Return - BS'!E31","v":0},null,null,null,null,null,null,{"$f":"L126","v":-750000},750000,null,null,null,null,null,null,null,null,null,null,null,null,null,null,null,null,null,null,null,null,null,null,null,null,null,null,null,null,null,null,null,null,null,null,null,null,null,null,null,null,null,4,null,null,null,1,null,0,null,null,null,0]
[null,"Current liabilities",null,"",{"$f":"'Fin.Return - BS'!E32","v":0},null,null,null,null,null,null,-750000,750000,null,null,null,null,null,null,null,null,null,null,null,null,null,null,null,null,null,null,null,null,null,null,null,null,null,null,null,null,null,null,null,null,null,null,null,null,null,null,null,null,null,4,null,null,null,1,null,0,null,null,null,0]
[null,"Non-current liabilities",null,"",{"$f":"'Fin.Return - BS'!G37","v":0},null,null,null,null,null,null,-750000,750000,null,null,null,null,null,null,null,null,null,null,null,null,null,null,null,null,null,null,null,null,null,null,null,null,null,null,null,null,null,null,null,null,null,null,null,null,null,null,null,null,null,4,null,null,null,1,null,0,null,null,null,0]
[null,"Provisions",null,"",{"$f":"'Fin.Return - BS'!G38","v":0},null,null,null,null,null,null,-750000,750000,null,null,null,null,null,null,null,null,null,null,null,null,null,null,null,null,null,null,null,null,null,null,null,null,null,null,null,null,null,null,null,null,null,null,null,null,null,null,null,null,null,4,null,null,null,1,null,0,null,null,null,0]
[null,"Pension scheme liabilities",null,"",{"$f":"'Fin.Return - BS'!G41","v":0},null,null,null,null,null,null,-750000,750000,null,null,null,null,null,null,null,null,null,null,null,null,null,null,null,null,null,null,null,null,null,null,null,null,null,null,null,null,null,null,null,null,null,null,null,null,null,null,null,null,null,4,null,null,null,1,null,0,null,null,null,0]
[]
[null,null,null,null,{"$f":"'Fin.Return - BS'!G43","v":0},null,{"$f":"'Fin.Return - BS'!G55","v":0},{"$f":"'Fin.Return - BS'!G51-'Fin.Return - BS'!G47","v":0},{"$f":"'Fin.Return - BS'!G47","v":0},{"$f":"'Fin.Return - BS'!G45","v":0},null,null,null,null,null,null,null,null,null,null,null,null,null,null,null,null,null,null,null,null,null,null,null,null,null,null,null,null,null,null,null,null,null,null,null,null,null,null,null,null,null,null,null,null,null,null,null,null,5,null,null,null,null,null,{"$f":"COUNTIF(E133:E133,\"<>0\")+COUNTIF(G133:J133,\"<>0\")","v":0}]
[null,null,null,null,null,null,{"$f":"IF(G133<>SUM(G126:G132),\"Error - column does not cast\",\"\")","v":""},{"$f":"IF(H133<>SUM(H126:H132),\"Error - column does not cast\",\"\")","v":""},{"$f":"IF(I133<>SUM(I126:I132),\"Error - column does not cast\",\"\")","v":""},{"$f":"IF(J133<>SUM(J126:J132),\"Error - column does not cast\",\"\")","v":""}]
[]
["PENSION COMMITMENTS"]
["SoFA"]
[null,"Please identify, by scheme type, the Academy's pension schemes from the dropdown boxes below:"]
[null,null,"Scheme",null,"Scheme type"]
[null,null,"Teachers' Pension Scheme",null,"Defined benefit scheme(s) - multi-employer unallocated scheme assets and liabilities",null,null,null,null,null,null,null,null,null,null,null,null,null,null,null,null,null,null,null,null,null,null,null,null,null,null,null,null,null,null,null,null,null,null,null,null,null,null,null,null,null,null,null,null,null,null,null,"Consol, EFA/DfE Pension Note"]
[null,null,"Local Government Pension Scheme (LGPS)",null,"Defined benefit scheme(s) - multi-employer allocated scheme assets and liabilities",null,null,null,null,null,null,null,null,null,null,null,null,null,null,null,null,null,null,null,null,null,null,null,null,null,null,null,null,null,null,null,null,null,null,null,null,null,null,null,null,null,null,null,null,null,null,null,"Consol, EFA/DfE Pension Note"]
[null,"Notes","Scheme Name",{"$f":"IF(OR(AND(C142<>\"Scheme Name\",E142=\"Scheme Type\"),AND(C142=\"Scheme Name\",E142<>\"Scheme Type\")),\"Error - within note\",\"\")","v":""},"Scheme Type",null,null,null,null,null,{"$f":"IF(OR(E142=Reference!L$8,E142=Reference!L$9),\"Complete 'Green' disclosures below\", IF(E142=\"Scheme Type\",\"\",\"Ignore 'Green' disclosures below\"))","v":""},null,null,null,null,null,null,null,null,null,null,null,null,null,null,null,null,null,null,null,null,null,null,null,null,null,null,null,null,null,null,null,null,null,null,null,null,null,null,null,null,null,"Consol, EFA/DfE Pension Note",null,null,null,2,null,null,null,null,null,{"$f":"COUNTA(C142:E142)-1","v":2}]
[null,null,"Scheme Name",{"$f":"IF(OR(AND(C143<>\"Scheme Name\",E143=\"Scheme Type\"),AND(C143=\"Scheme Name\",E143<>\"Scheme Type\")),\"Error - within note\",\"\")","v":""},"Scheme Type",null,null,null,null,null,{"$f":"IF(OR(E143=Reference!L$8,E143=Reference!L$9),\"Complete 'Green' disclosures below\", IF(E143=\"Scheme Type\",\"\",\"Ignore 'Green' disclosures below\"))","v":""},null,null,null,null,null,null,null,null,null,null,null,null,null,null,null,null,null,null,null,null,null,null,null,null,null,null,null,null,null,null,null,null,null,null,null,null,null,null,null,null,null,"Consol, EFA/DfE Pension Note",null,null,null,2,null,null,null,null,null,{"$f":"COUNTA(C142:E142)-1","v":2}]
[null,null,"Scheme Name",{"$f":"IF(OR(AND(C144<>\"Scheme Name\",E144=\"Scheme Type\"),AND(C144=\"Scheme Name\",E144<>\"Scheme Type\")),\"Error - within note\",\"\")","v":""},"Scheme Type",null,null,null,null,null,{"$f":"IF(OR(E144=Reference!L$8,E144=Reference!L$9),\"Complete 'Green' disclosures below\", IF(E144=\"Scheme Type\",\"\",\"Ignore 'Green' disclosures below\"))","v":""},null,null,null,null,null,null,null,null,null,null,null,null,null,null,null,null,null,null,null,null,null,null,null,null,null,null,null,null,null,null,null,null,null,null,null,null,null,null,null,null,null,"Consol, EFA/DfE Pension Note",null,null,null,2,null,null,null,null,null,{"$f":"COUNTA(C142:E142)-1","v":2}]
[null,null,"Select scheme name from drop-down box",null,"Select scheme type from drop-down box"]
[]
[null,"Breakdown of SoFA pension charge:",null,null,"Total",null,"Employer Contributions","FRS17 Adjustment",null,null,null,null,"Lower limit","Upper limit "]
[null,null,null,null,"£000",null,"£000","£000",null,null,null,null,"£000","£000"]
[null,null,"LGPS",null,{"$f":"SUM(G149:H149)","v":0},null,null,null,null,{"$f":"IF(G149<>SUMIF(CoPty.Return!B22:B221,\"LG*\",CoPty.Return!O22:O221), \"Error - LGPS employer contributions do not equal total contributions shown in counter party return\",\"\")","v":""},null,null,-750000,{"$f":"'Fin.Return - BS'!$J$19","v":750000},null,null,null,null,null,null,null,null,null,null,null,null,null,null,null,null,null,null,null,null,null,null,null,null,null,null,null,null,null,null,null,null,null,null,null,null,null,null,"Consol, EFA/DfE Pension Note",null,null,null,0,null,2,null,null,null,{"$f":"COUNTA(G149:H149)","v":0}]
[null,null,"Other defined benefit scheme(s) - multi-employer allocated scheme assets and liabilities",null,{"$f":"SUM(G150:H150)","v":0},null,null,null,null,null,null,null,-750000,{"$f":"'Fin.Return - BS'!$J$19","v":750000}]
[null,null,"Defined benefit scheme(s) - single employer",null,{"$f":"SUM(G151:H151)","v":0},null,null,null,null,null,null,null,-750000,{"$f":"N149","v":750000},null,null,null,null,null,null,null,null,null,null,null,null,null,null,null,null,null,null,null,null,null,null,null,null,null,null,null,null,null,null,null,null,null,null,null,null,null,null,"Consol, EFA/DfE Pension Note",null,null,null,2,null,null,null,null,null,{"$f":"COUNTA(G151:H151)","v":0}]
[null,null,"TPS",null,{"$f":"G152","v":0},null,null,null,null,null,null,null,-750000,{"$f":"N150","v":750000}]
[null,null,"Other defined benefit scheme(s) - multi-employer unallocated scheme assets and liabilities",null,{"$f":"G153","v":0},null,null,null,null,null,null,null,{"$f":"M151","v":-750000},{"$f":"N151","v":750000},null,null,null,null,null,null,null,null,null,null,null,null,null,null,null,null,null,null,null,null,null,null,null,null,null,null,null,null,null,null,null,null,null,null,null,null,null,null,"Consol, EFA/DfE Pension Note",null,null,null,1,null,null,null,null,null,{"$f":"COUNTA(G153:H153)","v":0}]
[null,null,"Defined contribution scheme(s)",null,{"$f":"G154","v":0},null,null,null,null,null,null,null,{"$f":"M153","v":-750000},{"$f":"N153","v":750000},null,null,null,null,null,null,null,null,null,null,null,null,null,null,null,null,null,null,null,null,null,null,null,null,null,null,null,null,null,null,null,null,null,null,null,null,null,null,"Consol, EFA/DfE Pension Note",null,null,null,1,null,null,null,null,null,{"$f":"COUNTA(G154:H154)","v":0}]
[null,null,"Stakeholder/private pension provision",null,{"$f":"G155","v":0},null,null,null,null,null,null,null,{"$f":"M154","v":-750000},{"$f":"N154","v":750000},null,null,null,null,null,null,null,null,null,null,null,null,null,null,null,null,null,null,null,null,null,null,null,null,null,null,null,null,null,null,null,null,null,null,null,null,null,null,"Consol, EFA/DfE Pension Note",null,null,null,1,null,null,null,null,null,{"$f":"COUNTA(G155:H155)","v":0}]
[]
[null,null,null,{"$f":"IF(E157<>SUM(E149:E156),\"Error - column does not cast\",\"\")","v":""},{"$f":"'Fin.Return - SOFA'!E291","v":0},null,{"$f":"SUM(G149:G156)","v":0},{"$f":"SUM(H149:H156)","v":0},null,null,null,null,null,null,null,null,null,null,null,null,null,null,null,null,null,null,null,null,null,null,null,null,null,null,null,null,null,null,null,null,null,null,null,null,null,null,null,null,null,null,null,null,null,null,null,null,null,null,1]
[null,null,null,{"$f":"IF(D157<>\"\",\"Error - Total does not agree SOFA staff note\",\"\")","v":""}]
[null,"FRS 17 pension scheme disclosures",null,null,"Total",null,"LGPS",{"$f":"IF(OR($E142=Reference!$L$8,$E142=Reference!$L$9),'Fin.Return - Other Notes'!$C142,\"\")","v":""},{"$f":"IF(OR($E143=Reference!$L$8,$E143=Reference!$L$9),'Fin.Return - Other Notes'!$C143,\"\")","v":""},{"$f":"IF(OR($E144=Reference!$L$8,$E144=Reference!$L$9),'Fin.Return - Other Notes'!$C144,\"\")","v":""},null,null,null,null,null,null,null,null,null,null,null,null,null,null,null,null,null,null,null,null,null,null,null,null,null,null,null,null,null,null,null,null,null,null,null,null,null,null,null,null,null,null,null,null,null,null,null,null,3]
[null,null,null,null,"£000",null,"£000","£000","£000","£000"]
[null,"Amounts recognised in the financial statements",null,null,null,null,null,{"$f":"IF(P161=TRUE, \"No pension scheme selected\",\"\")","v":""},{"$f":"IF(Q161=TRUE, \"No pension scheme selected\",\"\")","v":""},{"$f":"IF(R161=TRUE, \"No pension scheme selected\",\"\")","v":""},null,null,null,null,null,{"$f":"AND(H159=\"\",H166+H172+H174+H190+H203+H219<>0)","v":false},{"$f":"AND(I159=\"\",I166+I172+I174+I190+I203+I219<>0)","v":false},{"$f":"AND(J159=\"\",J166+J172+J174+J190+J203+J219<>0)","v":false}]
[null,null,"Current service cost",{"$f":"IF(E162<>SUM(G162:J162),\"Error - row does not cross cast\",\"\")","v":""},null,null,null,null,null,null,null,null,-750000,{"$f":"N155","v":750000},null,null,null,null,null,null,null,null,null,null,null,null,null,null,null,null,null,null,null,null,null,null,null,null,null,null,null,null,null,null,null,null,null,null,null,null,null,null,"Consol, EFA/DfE Pension Note",null,1,null,3,null,1,null,{"$f":"COUNTA(E162:E162)","v":0},null,{"$f":"COUNTA(H162:J162)","v":0}]
[null,null,"Past service cost",{"$f":"IF(E163<>SUM(G163:J163),\"Error - row does not cross cast\",\"\")","v":""},null,null,null,null,null,null,null,null,{"$f":"M162","v":-750000},{"$f":"N162","v":750000},null,null,null,null,null,null,null,null,null,null,null,null,null,null,null,null,null,null,null,null,null,null,null,null,null,null,null,null,null,null,null,null,null,null,null,null,null,null,"Consol, EFA/DfE Pension Note",null,1,null,3,null,1,null,{"$f":"COUNTA(E163:E163)","v":0},null,{"$f":"COUNTA(H163:J163)","v":0}]
[null,null,"Curtailment and settlement",{"$f":"IF(E164<>SUM(G164:J164),\"Error - row does not cross cast\",\"\")","v":""},null,null,null,null,null,null,null,null,{"$f":"M163","v":-750000},{"$f":"N163","v":750000},null,null,null,null,null,null,null,null,null,null,null,null,null,null,null,null,null,null,null,null,null,null,null,null,null,null,null,null,null,null,null,null,null,null,null,null,null,null,"Consol, EFA/DfE Pension Note",null,1,null,3,null,1,null,{"$f":"COUNTA(E164:E164)","v":0},null,{"$f":"COUNTA(H164:J164)","v":0}]
[]
[null,null,"Total operating charge",null,{"$f":"SUM(E162:E165)","v":0},null,{"$f":"SUM(G162:G165)","v":0},{"$f":"SUM(H162:H165)","v":0},{"$f":"SUM(I162:I165)","v":0},{"$f":"SUM(J162:J165)","v":0}]
[]
[null,"Analysis of pension finance return/(charge)"]
[null,null,"Expected return on employers' share of scheme assets",{"$f":"IF(E169<>SUM(G169:J169),\"Error - row does not cross cast\",\"\")","v":""},null,null,null,null,null,null,null,null,{"$f":"M164","v":-750000},{"$f":"N164","v":750000},null,null,null,null,null,null,null,null,null,null,null,null,null,null,null,null,null,null,null,null,null,null,null,null,null,null,null,null,null,null,null,null,null,null,null,null,null,null,"Consol, EFA/DfE Pension Note",null,1,null,4,null,null,null,{"$f":"COUNTA(E169:E169)","v":0},null,{"$f":"COUNTA(H169:J169)","v":0}]
[null,null,"Interest on pension liabilities",{"$f":"IF(E170<>SUM(G170:J170),\"Error - row does not cross cast\",\"\")","v":""},null,null,null,null,null,null,null,null,{"$f":"M169","v":-750000},{"$f":"N169","v":750000},null,null,null,null,null,null,null,null,null,null,null,null,null,null,null,null,null,null,null,null,null,null,null,null,null,null,null,null,null,null,null,null,null,null,null,null,null,null,"Consol, EFA/DfE Pension Note",null,1,null,4,null,null,null,{"$f":"COUNTA(E170:E170)","v":0},null,{"$f":"COUNTA(H170:J170)","v":0}]
[]
[null,null,"Pension finance return/(charge)",null,{"$f":"SUM(E169:E171)","v":0},null,{"$f":"SUM(G169:G171)","v":0},{"$f":"SUM(H169:H171)","v":0},{"$f":"SUM(I169:I171)","v":0},{"$f":"SUM(J169:J171)","v":0}]
[]
["SoFA","Actuarial gains/(losses) recognised",null,{"$f":"IF(E174<>SUM(G174:J174),\"Error - row does not cross cast\",\"\")","v":""},{"$f":"'Fin.Return - SOFA'!E45","v":0},null,null,null,null,null,null,null,{"$f":"M170","v":-750000},{"$f":"N170","v":750000},null,null,null,null,null,null,null,null,null,null,null,null,null,null,null,null,null,null,null,null,null,null,null,null,null,null,null,null,null,null,null,null,null,null,null,null,null,null,"Consol, EFA/DfE Pension Note",null,null,null,4,null,null,null,null,null,{"$f":"COUNTA(H174:J174)","v":0}]
[null,null,null,{"$f":"IF(D174<>\"\",\"Total does not agree - SOFA E46\",\"\")","v":""}]
[null,"Movements in the present value of obligations during the year"]
[null,null,"Opening present value of scheme obligations",{"$f":"IF(E177<>SUM(G177:J177),\"Error - row does not cross cast\",\"\")","v":""},null,null,null,null,null,null,null,null,-750000,0,null,null,null,null,null,null,null,null,null,null,null,null,null,null,null,null,null,null,null,null,null,null,null,null,null,null,null,null,null,null,null,null,null,null,null,null,null,null,"Consol, EFA/DfE Pension Note",null,1,null,4,null,null,null,{"$f":"COUNTA(E177:E177)","v":0},null,{"$f":"COUNTA(H177:J177)","v":0}]
[null,null,"Service cost","",null,null,null,null,null,null,null,null,-750000,0,null,null,null,null,null,null,null,null,null,null,null,null,null,null,null,null,null,null,null,null,null,null,null,null,null,null,null,null,null,null,null,null,null,null,null,null,null,null,"Consol, EFA/DfE Pension Note",null,1,null,4,null,null,null,0,null,0]
[null,null,"Interest cost","",null,null,null,null,null,null,null,null,-750000,0,null,null,null,null,null,null,null,null,null,null,null,null,null,null,null,null,null,null,null,null,null,null,null,null,null,null,null,null,null,null,null,null,null,null,null,null,null,null,"Consol, EFA/DfE Pension Note",null,1,null,4,null,null,null,0,null,0]
[null,null,"Actuarial (loss)/gain","",null,null,null,null,null,null,null,null,-750000,750000,null,null,null,null,null,null,null,null,null,null,null,null,null,null,null,null,null,null,null,null,null,null,null,null,null,null,null,null,null,null,null,null,null,null,null,null,null,null,"Consol, EFA/DfE Pension Note",null,1,null,4,null,null,null,0,null,0]
[null,null,"Employee contributions","",null,null,null,null,null,null,null,null,-750000,750000,null,null,null,null,null,null,null,null,null,null,null,null,null,null,null,null,null,null,null,null,null,null,null,null,null,null,null,null,null,null,null,null,null,null,null,null,null,null,"Consol, EFA/DfE Pension Note",null,1,null,4,null,null,null,0,null,0]
[null,null,"Benefits paid","",null,null,null,null,null,null,null,null,0,750000,null,null,null,null,null,null,null,null,null,null,null,null,null,null,null,null,null,null,null,null,null,null,null,null,null,null,null,null,null,null,null,null,null,null,null,null,null,null,"Consol, EFA/DfE Pension Note",null,1,null,4,null,null,null,0,null,0]
[null,null,"Curtailments and settlements","",null,null,null,null,null,null,null,null,-750000,750000,null,null,null,null,null,null,null,null,null,null,null,null,null,null,null,null,null,null,null,null,null,null,null,null,null,null,null,null,null,null,null,null,null,null,null,null,null,null,"Consol, EFA/DfE Pension Note",null,1,null,4,null,null,null,0,null,0]
[null,null,"Past service cost/(gain)","",null,null,null,null,null,null,null,null,-750000,750000,null,null,null,null,null,null,null,null,null,null,null,null,null,null,null,null,null,null,null,null,null,null,null,null,null,null,null,null,null,null,null,null,null,null,null,null,null,null,"Consol, EFA/DfE Pension Note",null,1,null,4,null,null,null,0,null,0]
[null,null,"Unfunded pension payments","",null,null,null,null,null,null,null,null,0,750000,null,null,null,null,null,null,null,null,null,null,null,null,null,null,null,null,null,null,null,null,null,null,null,null,null,null,null,null,null,null,null,null,null,null,null,null,null,null,"Consol, EFA/DfE Pension Note",null,1,null,4,null,null,null,0,null,0]
[null,null,"Transfer in from new academies","",null,null,null,null,null,null,null,null,-750000,0,null,null,null,null,null,null,null,null,null,null,null,null,null,null,null,null,null,null,null,null,null,null,null,null,null,null,null,null,null,null,null,null,null,null,null,null,null,null,"Consol, EFA/DfE Pension Note",null,1,null,4,null,null,null,0,null,0]
[null,null,"Transferred in on existing academies joining the trust","",null,null,null,null,null,null,null,null,-750000,750000]
[null,null,"Transferred out on existing academies leaving the trust","",null,null,null,null,null,null,null,null,-750000,750000]
[]
[null,null,"Closing defined benefit obligation",null,{"$f":"SUM(E177:E189)","v":0},null,{"$f":"SUM(G177:G189)","v":0},{"$f":"SUM(H177:H189)","v":0},{"$f":"SUM(I177:I189)","v":0},{"$f":"SUM(J177:J189)","v":0}]
[]
[null,"Movements in the fair value of the Academy's share of scheme assets"]
[null,null,"Opening fair value of scheme assets",{"$f":"IF(E193<>SUM(G193:J193),\"Error - row does not cross cast\",\"\")","v":""},null,null,null,null,null,null,null,null,0,750000,null,null,null,null,null,null,null,null,null,null,null,null,null,null,null,null,null,null,null,null,null,null,null,null,null,null,null,null,null,null,null,null,null,null,null,null,null,null,"Consol, EFA/DfE Pension Note",null,1,null,4,null,null,null,{"$f":"COUNTA(E193:E193)","v":0},null,{"$f":"COUNTA(H193:J193)","v":0}]
[null,null,"Expected return on scheme assets","",null,null,null,null,null,null,null,null,0,750000,null,null,null,null,null,null,null,null,null,null,null,null,null,null,null,null,null,null,null,null,null,null,null,null,null,null,null,null,null,null,null,null,null,null,null,null,null,null,"Consol, EFA/DfE Pension Note",null,1,null,4,null,null,null,0,null,0]
[null,null,"Actuarial (loss)/gain","",null,null,null,null,null,null,null,null,-750000,750000,null,null,null,null,null,null,null,null,null,null,null,null,null,null,null,null,null,null,null,null,null,null,null,null,null,null,null,null,null,null,null,null,null,null,null,null,null,null,"Consol, EFA/DfE Pension Note",null,1,null,4,null,null,null,0,null,0]
[null,null,"Employer contributions","",null,null,null,null,null,null,null,null,0,750000,null,null,null,null,null,null,null,null,null,null,null,null,null,null,null,null,null,null,null,null,null,null,null,null,null,null,null,null,null,null,null,null,null,null,null,null,null,null,"Consol, EFA/DfE Pension Note",null,1,null,4,null,null,null,0,null,0]
[null,null,"Employee contributions","",{"$f":"-(E181)","v":0},null,{"$f":"-(G181)","v":0},{"$f":"-(H181)","v":0},0,0,null,null,-750000,750000,null,null,null,null,null,null,null,null,null,null,null,null,null,null,null,null,null,null,null,null,null,null,null,null,null,null,null,null,null,null,null,null,null,null,null,null,null,null,"Consol, EFA/DfE Pension Note",null,null,null,null,null,5,null,1,null,3]
[null,null,"Benefits paid","",{"$f":"-(E182)","v":0},null,{"$f":"-(G182)","v":0},{"$f":"-(H182)","v":0},0,0,null,null,-750000,0,null,null,null,null,null,null,null,null,null,null,null,null,null,null,null,null,null,null,null,null,null,null,null,null,null,null,null,null,null,null,null,null,null,null,null,null,null,null,"Consol, EFA/DfE Pension Note",null,null,null,null,null,5,null,1,null,3]
[null,null,"Transfer in from new academies","",null,null,null,null,null,null,null,null,0,750000,null,null,null,null,null,null,null,null,null,null,null,null,null,null,null,null,null,null,null,null,null,null,null,null,null,null,null,null,null,null,null,null,null,null,null,null,null,null,"Consol, EFA/DfE Pension Note",null,1,null,4,null,null,null,0,null,0]
[null,null,"Transferred in on existing academies joining the trust","",null,null,null,null,null,null,null,null,-750000,750000]
[null,null,"Transferred out on existing academies leaving the trust","",null,null,null,null,null,null,null,null,-750000,750000]
[]
[null,null,"Closing fair value of scheme assets",null,{"$f":"SUM(E193:E202)","v":0},null,{"$f":"SUM(G193:G202)","v":0},{"$f":"SUM(H193:H202)","v":0},{"$f":"SUM(I193:I202)","v":0},{"$f":"SUM(J193:J202)","v":0}]
[]
[null,"Reconciliation of opening to closing (deficit)/surplus"]
[null,null,"Opening balance",{"$f":"IF(E206<>SUM(G206:J206),\"Error - row does not cross cast\",\"\")","v":""},{"$f":"E177+E193","v":0},null,{"$f":"G177+G193","v":0},{"$f":"H177+H193","v":0},{"$f":"I177+I193","v":0},{"$f":"J177+J193","v":0},null,null,null,null,null,null,null,null,null,null,null,null,null,null,null,null,null,null,null,null,null,null,null,null,null,null,null,null,null,null,null,null,null,null,null,null,null,null,null,null,null,null,"Consol, EFA/DfE Pension Note",null,null,null,null,null,5,null,{"$f":"COUNTA(E206:E206)","v":1},null,{"$f":"COUNTA(H206:J206)","v":3}]
[null,null,"Change in asset valuation","",{"$f":"E194","v":0},null,{"$f":"G194","v":0},{"$f":"H194","v":0},{"$f":"I194","v":0},{"$f":"J194","v":0},null,null,null,null,null,null,null,null,null,null,null,null,null,null,null,null,null,null,null,null,null,null,null,null,null,null,null,null,null,null,null,null,null,null,null,null,null,null,null,null,null,null,"Consol, EFA/DfE Pension Note",null,null,null,null,null,5,null,1,null,3]
[null,null,"Current service cost","",{"$f":"E178","v":0},null,{"$f":"G178","v":0},{"$f":"H178","v":0},{"$f":"I178","v":0},{"$f":"J178","v":0},null,null,null,null,null,null,null,null,null,null,null,null,null,null,null,null,null,null,null,null,null,null,null,null,null,null,null,null,null,null,null,null,null,null,null,null,null,null,null,null,null,null,"Consol, EFA/DfE Pension Note",null,null,null,null,null,5,null,1,null,3]
[null,null,"Employer contributions","",{"$f":"E196","v":0},null,{"$f":"G196","v":0},{"$f":"H196","v":0},{"$f":"I196","v":0},{"$f":"J196","v":0},null,null,null,null,null,null,null,null,null,null,null,null,null,null,null,null,null,null,null,null,null,null,null,null,null,null,null,null,null,null,null,null,null,null,null,null,null,null,null,null,null,null,"Consol, EFA/DfE Pension Note",null,null,null,null,null,5,null,1,null,3]
[null,null,"Unfunded pension payments","",{"$f":"E185","v":0},null,{"$f":"G185","v":0},{"$f":"H185","v":0},{"$f":"I185","v":0},{"$f":"J185","v":0},null,null,null,null,null,null,null,null,null,null,null,null,null,null,null,null,null,null,null,null,null,null,null,null,null,null,null,null,null,null,null,null,null,null,null,null,null,null,null,null,null,null,"Consol, EFA/DfE Pension Note",null,null,null,null,null,5,null,1,null,3]
[null,null,"Past service costs","",{"$f":"E184","v":0},null,{"$f":"G184","v":0},{"$f":"H184","v":0},{"$f":"I184","v":0},{"$f":"J184","v":0},null,null,null,null,null,null,null,null,null,null,null,null,null,null,null,null,null,null,null,null,null,null,null,null,null,null,null,null,null,null,null,null,null,null,null,null,null,null,null,null,null,null,"Consol, EFA/DfE Pension Note",null,null,null,null,null,5,null,1,null,3]
[null,null,"Other finance income","",{"$f":"E179","v":0},null,{"$f":"G179","v":0},{"$f":"H179","v":0},{"$f":"I179","v":0},{"$f":"J179","v":0},null,null,null,null,null,null,null,null,null,null,null,null,null,null,null,null,null,null,null,null,null,null,null,null,null,null,null,null,null,null,null,null,null,null,null,null,null,null,null,null,null,null,"Consol, EFA/DfE Pension Note",null,null,null,null,null,5,null,1,null,3]
[null,null,"Curtailments and settlements","",{"$f":"E183","v":0},null,{"$f":"G183","v":0},{"$f":"H183","v":0},{"$f":"I183","v":0},{"$f":"J183","v":0},null,null,null,null,null,null,null,null,null,null,null,null,null,null,null,null,null,null,null,null,null,null,null,null,null,null,null,null,null,null,null,null,null,null,null,null,null,null,null,null,null,null,"Consol, EFA/DfE Pension Note",null,null,null,null,null,5,null,1,null,3]
[null,null,"Actuarial (loss)/gain","",{"$f":"E180+E195","v":0},null,{"$f":"G180+G195","v":0},{"$f":"H180+H195","v":0},{"$f":"I180+I195","v":0},{"$f":"J180+J195","v":0},null,null,null,null,null,null,null,null,null,null,null,null,null,null,null,null,null,null,null,null,null,null,null,null,null,null,null,null,null,null,null,null,null,null,null,null,null,null,null,null,null,null,"Consol, EFA/DfE Pension Note",null,null,null,null,null,5,null,1,null,3]
[null,null,"Transfer in from new academies","",{"$f":"E199+E186","v":0},null,{"$f":"G199+G186","v":0},{"$f":"H199+H186","v":0},{"$f":"I199+I186","v":0},{"$f":"J199+J186","v":0},null,null,null,null,null,null,null,null,null,null,null,null,null,null,null,null,null,null,null,null,null,null,null,null,null,null,null,null,null,null,null,null,null,null,null,null,null,null,null,null,null,null,"Consol, EFA/DfE Pension Note",null,null,null,null,null,5,null,1,null,3]
[null,null,"Transferred in on existing academies joining the trust","",{"$f":"E200+E187","v":0},null,{"$f":"G200+G187","v":0},0,0,0]
[null,null,"Transferred out on existing academies leaving the trust","",0,null,{"$f":"G201+G188","v":0},0,0,0]
[]
[null,null,"Closing balance",{"$f":"IF(E219<>'Fin.Return - BS'!G41, \"Error - not equal to balance sheet G41\",\"\")","v":""},{"$f":"SUM(E206:E218)","v":0},null,{"$f":"SUM(G206:G218)","v":0},{"$f":"SUM(H206:H218)","v":0},{"$f":"SUM(I206:I218)","v":0},{"$f":"SUM(J206:J218)","v":0}]
[]
[]
["CONVERSION TO AN ACADEMY\nIN THE YEAR OF CONVERSION ONLY",null,null,{"$f":"IF('Standing Data'!$D$9=\"Multiple\",IF(COUNTA(G222:AV222)<>COUNTIF('Standing Data'!$F$48:$F$147,\"Newly converted member\"),\"Error - standing data shows more or less new members\",\"\"),\"\")","v":""},null,"UPIN",null,null,null,null,null,null,null,null,null,null,null,null,null,null,null,null,null,null,null,null,null,null,null,null,null,null,null,null,null,null,null,null,null,null,null,null,null,null,null,null,null,null,null,null,null,null,null,null,null,20]
[null,null,null,null,null,"Academy Name",{"$f":"IFERROR(VLOOKUP(G222,Reference!$O$10:$T$5603,2,FALSE),\"\")","v":""},{"$f":"IFERROR(VLOOKUP(H222,Reference!$O$10:$T$5603,2,FALSE),\"\")","v":""},{"$f":"IFERROR(VLOOKUP(I222,Reference!$O$10:$T$5603,2,FALSE),\"\")","v":""},{"$f":"IFERROR(VLOOKUP(J222,Reference!$O$10:$T$5603,2,FALSE),\"\")","v":""},{"$f":"IFERROR(VLOOKUP(K222,Reference!$O$10:$T$5603,2,FALSE),\"\")","v":""},{"$f":"IFERROR(VLOOKUP(L222,Reference!$O$10:$T$5603,2,FALSE),\"\")","v":""},{"$f":"IFERROR(VLOOKUP(M222,Reference!$O$10:$T$5603,2,FALSE),\"\")","v":""},{"$f":"IFERROR(VLOOKUP(N222,Reference!$O$10:$T$5603,2,FALSE),\"\")","v":""},{"$f":"IFERROR(VLOOKUP(O222,Reference!$O$10:$T$5603,2,FALSE),\"\")","v":""},{"$f":"IFERROR(VLOOKUP(P222,Reference!$O$10:$T$5603,2,FALSE),\"\")","v":""},{"$f":"IFERROR(VLOOKUP(Q222,Reference!$O$10:$T$5603,2,FALSE),\"\")","v":""},{"$f":"IFERROR(VLOOKUP(R222,Reference!$O$10:$T$5603,2,FALSE),\"\")","v":""},{"$f":"IFERROR(VLOOKUP(S222,Reference!$O$10:$T$5603,2,FALSE),\"\")","v":""},{"$f":"IFERROR(VLOOKUP(T222,Reference!$O$10:$T$5603,2,FALSE),\"\")","v":""},{"$f":"IFERROR(VLOOKUP(U222,Reference!$O$10:$T$5603,2,FALSE),\"\")","v":""},{"$f":"IFERROR(VLOOKUP(V222,Reference!$O$10:$T$5603,2,FALSE),\"\")","v":""},{"$f":"IFERROR(VLOOKUP(W222,Reference!$O$10:$T$5603,2,FALSE),\"\")","v":""},{"$f":"IFERROR(VLOOKUP(X222,Reference!$O$10:$T$5603,2,FALSE),\"\")","v":""},{"$f":"IFERROR(VLOOKUP(Y222,Reference!$O$10:$T$5603,2,FALSE),\"\")","v":""},{"$f":"IFERROR(VLOOKUP(Z222,Reference!$O$10:$T$5603,2,FALSE),\"\")","v":""},{"$f":"IFERROR(VLOOKUP(AA222,Reference!$O$10:$T$5603,2,FALSE),\"\")","v":""},{"$f":"IFERROR(VLOOKUP(AB222,Reference!$O$10:$T$5603,2,FALSE),\"\")","v":""},{"$f":"IFERROR(VLOOKUP(AC222,Reference!$O$10:$T$5603,2,FALSE),\"\")","v":""},{"$f":"IFERROR(VLOOKUP(AD222,Reference!$O$10:$T$5603,2,FALSE),\"\")","v":""},{"$f":"IFERROR(VLOOKUP(AE222,Reference!$O$10:$T$5603,2,FALSE),\"\")","v":""},{"$f":"IFERROR(VLOOKUP(AF222,Reference!$O$10:$T$5603,2,FALSE),\"\")","v":""},{"$f":"IFERROR(VLOOKUP(AG222,Reference!$O$10:$T$5603,2,FALSE),\"\")","v":""},{"$f":"IFERROR(VLOOKUP(AH222,Reference!$O$10:$T$5603,2,FALSE),\"\")","v":""},{"$f":"IFERROR(VLOOKUP(AI222,Reference!$O$10:$T$5603,2,FALSE),\"\")","v":""},{"$f":"IFERROR(VLOOKUP(AJ222,Reference!$O$10:$T$5603,2,FALSE),\"\")","v":""},{"$f":"IFERROR(VLOOKUP(AK222,Reference!$O$10:$T$5603,2,FALSE),\"\")","v":""},{"$f":"IFERROR(VLOOKUP(AL222,Reference!$O$10:$T$5603,2,FALSE),\"\")","v":""},{"$f":"IFERROR(VLOOKUP(AM222,Reference!$O$10:$T$5603,2,FALSE),\"\")","v":""},{"$f":"IFERROR(VLOOKUP(AN222,Reference!$O$10:$T$5603,2,FALSE),\"\")","v":""},{"$f":"IFERROR(VLOOKUP(AO222,Reference!$O$10:$T$5603,2,FALSE),\"\")","v":""},{"$f":"IFERROR(VLOOKUP(AP222,Reference!$O$10:$T$5603,2,FALSE),\"\")","v":""},{"$f":"IFERROR(VLOOKUP(AQ222,Reference!$O$10:$T$5603,2,FALSE),\"\")","v":""},{"$f":"IFERROR(VLOOKUP(AR222,Reference!$O$10:$T$5603,2,FALSE),\"\")","v":""},{"$f":"IFERROR(VLOOKUP(AS222,Reference!$O$10:$T$5603,2,FALSE),\"\")","v":""},{"$f":"IFERROR(VLOOKUP(AT222,Reference!$O$10:$T$5603,2,FALSE),\"\")","v":""},{"$f":"IFERROR(VLOOKUP(AU222,Reference!$O$10:$T$5603,2,FALSE),\"\")","v":""},{"$f":"IFERROR(VLOOKUP(AV222,Reference!$O$10:$T$5603,2,FALSE),\"\")","v":""},null,null,null,null,null,null,null,null,null,null,20]
[null,null,null,null,null,"LA",{"$f":"IFERROR(VLOOKUP(G$222,Reference!$O$10:$T$5603,5,FALSE),\"\")","v":""},{"$f":"IFERROR(VLOOKUP(H$222,Reference!$O$10:$T$5603,5,FALSE),\"\")","v":""},{"$f":"IFERROR(VLOOKUP(I$222,Reference!$O$10:$T$5603,5,FALSE),\"\")","v":""},{"$f":"IFERROR(VLOOKUP(J$222,Reference!$O$10:$T$5603,5,FALSE),\"\")","v":""},{"$f":"IFERROR(VLOOKUP(K$222,Reference!$O$10:$T$5603,5,FALSE),\"\")","v":""},{"$f":"IFERROR(VLOOKUP(L$222,Reference!$O$10:$T$5603,5,FALSE),\"\")","v":""},{"$f":"IFERROR(VLOOKUP(M$222,Reference!$O$10:$T$5603,5,FALSE),\"\")","v":""},{"$f":"IFERROR(VLOOKUP(N$222,Reference!$O$10:$T$5603,5,FALSE),\"\")","v":""},{"$f":"IFERROR(VLOOKUP(O$222,Reference!$O$10:$T$5603,5,FALSE),\"\")","v":""},{"$f":"IFERROR(VLOOKUP(P$222,Reference!$O$10:$T$5603,5,FALSE),\"\")","v":""},{"$f":"IFERROR(VLOOKUP(Q$222,Reference!$O$10:$T$5603,5,FALSE),\"\")","v":""},{"$f":"IFERROR(VLOOKUP(R$222,Reference!$O$10:$T$5603,5,FALSE),\"\")","v":""},{"$f":"IFERROR(VLOOKUP(S$222,Reference!$O$10:$T$5603,5,FALSE),\"\")","v":""},{"$f":"IFERROR(VLOOKUP(T$222,Reference!$O$10:$T$5603,5,FALSE),\"\")","v":""},{"$f":"IFERROR(VLOOKUP(U$222,Reference!$O$10:$T$5603,5,FALSE),\"\")","v":""},{"$f":"IFERROR(VLOOKUP(V$222,Reference!$O$10:$T$5603,5,FALSE),\"\")","v":""},{"$f":"IFERROR(VLOOKUP(W$222,Reference!$O$10:$T$5603,5,FALSE),\"\")","v":""},{"$f":"IFERROR(VLOOKUP(X$222,Reference!$O$10:$T$5603,5,FALSE),\"\")","v":""},{"$f":"IFERROR(VLOOKUP(Y$222,Reference!$O$10:$T$5603,5,FALSE),\"\")","v":""},{"$f":"IFERROR(VLOOKUP(Z$222,Reference!$O$10:$T$5603,5,FALSE),\"\")","v":""},{"$f":"IFERROR(VLOOKUP(AA$222,Reference!$O$10:$T$5603,5,FALSE),\"\")","v":""},{"$f":"IFERROR(VLOOKUP(AB$222,Reference!$O$10:$T$5603,5,FALSE),\"\")","v":""},{"$f":"IFERROR(VLOOKUP(AC$222,Reference!$O$10:$T$5603,5,FALSE),\"\")","v":""},{"$f":"IFERROR(VLOOKUP(AD$222,Reference!$O$10:$T$5603,5,FALSE),\"\")","v":""},{"$f":"IFERROR(VLOOKUP(AE$222,Reference!$O$10:$T$5603,5,FALSE),\"\")","v":""},{"$f":"IFERROR(VLOOKUP(AF$222,Reference!$O$10:$T$5603,5,FALSE),\"\")","v":""},{"$f":"IFERROR(VLOOKUP(AG$222,Reference!$O$10:$T$5603,5,FALSE),\"\")","v":""},{"$f":"IFERROR(VLOOKUP(AH$222,Reference!$O$10:$T$5603,5,FALSE),\"\")","v":""},{"$f":"IFERROR(VLOOKUP(AI$222,Reference!$O$10:$T$5603,5,FALSE),\"\")","v":""},{"$f":"IFERROR(VLOOKUP(AJ$222,Reference!$O$10:$T$5603,5,FALSE),\"\")","v":""},{"$f":"IFERROR(VLOOKUP(AK$222,Reference!$O$10:$T$5603,5,FALSE),\"\")","v":""},{"$f":"IFERROR(VLOOKUP(AL$222,Reference!$O$10:$T$5603,5,FALSE),\"\")","v":""},{"$f":"IFERROR(VLOOKUP(AM$222,Reference!$O$10:$T$5603,5,FALSE),\"\")","v":""},{"$f":"IFERROR(VLOOKUP(AN$222,Reference!$O$10:$T$5603,5,FALSE),\"\")","v":""},{"$f":"IFERROR(VLOOKUP(AO$222,Reference!$O$10:$T$5603,5,FALSE),\"\")","v":""},{"$f":"IFERROR(VLOOKUP(AP$222,Reference!$O$10:$T$5603,5,FALSE),\"\")","v":""},{"$f":"IFERROR(VLOOKUP(AQ$222,Reference!$O$10:$T$5603,5,FALSE),\"\")","v":""},{"$f":"IFERROR(VLOOKUP(AR$222,Reference!$O$10:$T$5603,5,FALSE),\"\")","v":""},{"$f":"IFERROR(VLOOKUP(AS$222,Reference!$O$10:$T$5603,5,FALSE),\"\")","v":""},{"$f":"IFERROR(VLOOKUP(AT$222,Reference!$O$10:$T$5603,5,FALSE),\"\")","v":""},{"$f":"IFERROR(VLOOKUP(AU$222,Reference!$O$10:$T$5603,5,FALSE),\"\")","v":""},{"$f":"IFERROR(VLOOKUP(AV$222,Reference!$O$10:$T$5603,5,FALSE),\"\")","v":""},null,"Lower limit","Upper limit ",null,null,null,null,null,null,null,20]
[null,null,null,null,null,"LA CPID Ref.",{"$f":"IFERROR(VLOOKUP(G224,'CP IDs'!$B$2:$F$7199,2,FALSE),\"\")","v":""},{"$f":"IFERROR(VLOOKUP(H224,'CP IDs'!$B$2:$F$7199,2,FALSE),\"\")","v":""},{"$f":"IFERROR(VLOOKUP(I224,'CP IDs'!$B$2:$F$7199,2,FALSE),\"\")","v":""},{"$f":"IFERROR(VLOOKUP(J224,'CP IDs'!$B$2:$F$7199,2,FALSE),\"\")","v":""},{"$f":"IFERROR(VLOOKUP(K224,'CP IDs'!$B$2:$F$7199,2,FALSE),\"\")","v":""},{"$f":"IFERROR(VLOOKUP(L224,'CP IDs'!$B$2:$F$7199,2,FALSE),\"\")","v":""},{"$f":"IFERROR(VLOOKUP(M224,'CP IDs'!$B$2:$F$7199,2,FALSE),\"\")","v":""},{"$f":"IFERROR(VLOOKUP(N224,'CP IDs'!$B$2:$F$7199,2,FALSE),\"\")","v":""},{"$f":"IFERROR(VLOOKUP(O224,'CP IDs'!$B$2:$F$7199,2,FALSE),\"\")","v":""},{"$f":"IFERROR(VLOOKUP(P224,'CP IDs'!$B$2:$F$7199,2,FALSE),\"\")","v":""},{"$f":"IFERROR(VLOOKUP(Q224,'CP IDs'!$B$2:$F$7199,2,FALSE),\"\")","v":""},{"$f":"IFERROR(VLOOKUP(R224,'CP IDs'!$B$2:$F$7199,2,FALSE),\"\")","v":""},{"$f":"IFERROR(VLOOKUP(S224,'CP IDs'!$B$2:$F$7199,2,FALSE),\"\")","v":""},{"$f":"IFERROR(VLOOKUP(T224,'CP IDs'!$B$2:$F$7199,2,FALSE),\"\")","v":""},{"$f":"IFERROR(VLOOKUP(U224,'CP IDs'!$B$2:$F$7199,2,FALSE),\"\")","v":""},{"$f":"IFERROR(VLOOKUP(V224,'CP IDs'!$B$2:$F$7199,2,FALSE),\"\")","v":""},{"$f":"IFERROR(VLOOKUP(W224,'CP IDs'!$B$2:$F$7199,2,FALSE),\"\")","v":""},{"$f":"IFERROR(VLOOKUP(X224,'CP IDs'!$B$2:$F$7199,2,FALSE),\"\")","v":""},{"$f":"IFERROR(VLOOKUP(Y224,'CP IDs'!$B$2:$F$7199,2,FALSE),\"\")","v":""},{"$f":"IFERROR(VLOOKUP(Z224,'CP IDs'!$B$2:$F$7199,2,FALSE),\"\")","v":""},{"$f":"IFERROR(VLOOKUP(AA224,'CP IDs'!$B$2:$F$7199,2,FALSE),\"\")","v":""},{"$f":"IFERROR(VLOOKUP(AB224,'CP IDs'!$B$2:$F$7199,2,FALSE),\"\")","v":""},{"$f":"IFERROR(VLOOKUP(AC224,'CP IDs'!$B$2:$F$7199,2,FALSE),\"\")","v":""},{"$f":"IFERROR(VLOOKUP(AD224,'CP IDs'!$B$2:$F$7199,2,FALSE),\"\")","v":""},{"$f":"IFERROR(VLOOKUP(AE224,'CP IDs'!$B$2:$F$7199,2,FALSE),\"\")","v":""},{"$f":"IFERROR(VLOOKUP(AF224,'CP IDs'!$B$2:$F$7199,2,FALSE),\"\")","v":""},{"$f":"IFERROR(VLOOKUP(AG224,'CP IDs'!$B$2:$F$7199,2,FALSE),\"\")","v":""},{"$f":"IFERROR(VLOOKUP(AH224,'CP IDs'!$B$2:$F$7199,2,FALSE),\"\")","v":""},{"$f":"IFERROR(VLOOKUP(AI224,'CP IDs'!$B$2:$F$7199,2,FALSE),\"\")","v":""},{"$f":"IFERROR(VLOOKUP(AJ224,'CP IDs'!$B$2:$F$7199,2,FALSE),\"\")","v":""},{"$f":"IFERROR(VLOOKUP(AK224,'CP IDs'!$B$2:$F$7199,2,FALSE),\"\")","v":""},{"$f":"IFERROR(VLOOKUP(AL224,'CP IDs'!$B$2:$F$7199,2,FALSE),\"\")","v":""},{"$f":"IFERROR(VLOOKUP(AM224,'CP IDs'!$B$2:$F$7199,2,FALSE),\"\")","v":""},{"$f":"IFERROR(VLOOKUP(AN224,'CP IDs'!$B$2:$F$7199,2,FALSE),\"\")","v":""},{"$f":"IFERROR(VLOOKUP(AO224,'CP IDs'!$B$2:$F$7199,2,FALSE),\"\")","v":""},{"$f":"IFERROR(VLOOKUP(AP224,'CP IDs'!$B$2:$F$7199,2,FALSE),\"\")","v":""},{"$f":"IFERROR(VLOOKUP(AQ224,'CP IDs'!$B$2:$F$7199,2,FALSE),\"\")","v":""},{"$f":"IFERROR(VLOOKUP(AR224,'CP IDs'!$B$2:$F$7199,2,FALSE),\"\")","v":""},{"$f":"IFERROR(VLOOKUP(AS224,'CP IDs'!$B$2:$F$7199,2,FALSE),\"\")","v":""},{"$f":"IFERROR(VLOOKUP(AT224,'CP IDs'!$B$2:$F$7199,2,FALSE),\"\")","v":""},{"$f":"IFERROR(VLOOKUP(AU224,'CP IDs'!$B$2:$F$7199,2,FALSE),\"\")","v":""},{"$f":"IFERROR(VLOOKUP(AV224,'CP IDs'!$B$2:$F$7199,2,FALSE),\"\")","v":""},null,null,null,null,null,null,null,null,null,null,20]
[null,null,null,{"$f":"IF(COUNTA(G226:AV226)<>COUNTA(G222:AV222),\"Error - Imbalance between rows 222 & 226\",\"\")","v":""},null,"Converted From",null,null,null,null,null,null,null,null,null,null,null,null,null,null,null,null,null,null,null,null,null,null,null,null,null,null,null,null,null,null,null,null,null,null,null,null,null,null,null,null,null,null,null,null,null,null,null,null,null,20]
[null,"Tangible fixed assets",null,null,"£000",null,"£000","£000","£000","£000","£000","£000","£000","£000","£000","£000","£000","£000","£000","£000","£000","£000","£000","£000","£000","£000","£000","£000","£000","£000","£000","£000","£000","£000","£000","£000","£000","£000","£000","£000","£000","£000","£000","£000","£000","£000","£000","£000",null,"£000","£000"]
[null,null,"Land",{"$f":"IF(SUM(E228:E229)<>('Fin.Return - BS'!G67+'Fin.Return - BS'!G68+'Fin.Return - BS'!H67+'Fin.Return - BS'!H68+'Fin.Return - BS'!I67+'Fin.Return - BS'!I68),\"Error - imbalance with FA note\",\"\")","v":""},{"$f":"SUM(G228:AV228)","v":0},null,null,null,null,null,null,null,null,null,null,null,null,null,null,null,null,null,null,null,null,null,null,null,null,null,null,null,null,null,null,null,null,null,null,null,null,null,null,null,null,null,null,null,null,0,{"$f":"'Fin.Return - BS'!$J$19","v":750000},null,"Consol, EFA/DfE Acquisition Note",null,null,null,20,null,null,null,null,null,{"$f":"COUNTA(G228:AV228)","v":0},null,{"$f":"COUNTIF(E228:E228,\"<>0\")","v":0}]
[null,null,"Buildings",null,{"$f":"SUM(G229:AV229)","v":0},null,null,null,null,null,null,null,null,null,null,null,null,null,null,null,null,null,null,null,null,null,null,null,null,null,null,null,null,null,null,null,null,null,null,null,null,null,null,null,null,null,null,null,null,0,{"$f":"AY228","v":750000},null,"Consol, EFA/DfE Acquisition Note",null,null,null,20,null,null,null,null,null,0]
[null,null,"Other assets",{"$f":"IF(E230<>SUM('Fin.Return - BS'!J67:N68),\"Error - imbalance with FA note\",\"\")","v":""},{"$f":"+SUM('Fin.Return - BS'!J67:N68)","v":0},null,null,null,null,null,null,null,null,null,null,null,null,null,null,null,null,null,null,null,null,null,null,null,null,null,null,null,null,null,null,null,null,null,null,null,null,null,null,null,null,null,null,null,null,0,750000,null,"Consol, EFA/DfE Acquisition Note",null,null,null,20,null,null,null,null,null,0,null,{"$f":"COUNTIF(E230:E230,\"<>0\")","v":0}]
[null,"Intangible fixed assets",null,{"$f":"IF(E231<>('Fin.Return - BS'!E129+'Fin.Return - BS'!E130),\"Error - imbalance with FA Note\",\"\")","v":""},{"$f":"SUM('Fin.Return - BS'!E129:E130)","v":0},null,null,null,null,null,null,null,null,null,null,null,null,null,null,null,null,null,null,null,null,null,null,null,null,null,null,null,null,null,null,null,null,null,null,null,null,null,null,null,null,null,null,null,null,0,750000,null,"Consol, EFA/DfE Acquisition Note",null,null,null,20,null,null,null,null,null,0,null,{"$f":"COUNTIF(E231:E231,\"<>0\")","v":0}]
[null,"Investment fixed assets",null,{"$f":"IF(E232<>('Fin.Return - BS'!E175+'Fin.Return - BS'!E176),\"Error - imbalance with Inv. Notes\",\"\")","v":""},{"$f":"SUM('Fin.Return - BS'!E175:E176)","v":0},null,null,null,null,null,null,null,null,null,null,null,null,null,null,null,null,null,null,null,null,null,null,null,null,null,null,null,null,null,null,null,null,null,null,null,null,null,null,null,null,null,null,null,null,0,750000,null,"Consol, EFA/DfE Acquisition Note",null,null,null,20,null,null,null,null,null,0,null,{"$f":"COUNTIF(E232:E232,\"<>0\")","v":0}]
[null,"Stock",null,null,{"$f":"SUM(G233:AV233)","v":0},null,null,null,null,null,null,null,null,null,null,null,null,null,null,null,null,null,null,null,null,null,null,null,null,null,null,null,null,null,null,null,null,null,null,null,null,null,null,null,null,null,null,null,null,0,750000,null,"Consol, EFA/DfE Acquisition Note",null,null,null,20,null,null,null,null,null,0]
[null,"Debtors after more than one year",null,null,{"$f":"SUM(G234:AV234)","v":0},null,null,null,null,null,null,null,null,null,null,null,null,null,null,null,null,null,null,null,null,null,null,null,null,null,null,null,null,null,null,null,null,null,null,null,null,null,null,null,null,null,null,null,null,0,750000,null,"Consol, EFA/DfE Acquisition Note",null,null,null,20,null,null,null,null,null,0]
[null,"Debtors"]
[null,null,"Trade debtors",null,{"$f":"SUM(G236:AV236)","v":0},null,null,null,null,null,null,null,null,null,null,null,null,null,null,null,null,null,null,null,null,null,null,null,null,null,null,null,null,null,null,null,null,null,null,null,null,null,null,null,null,null,null,null,null,0,{"$f":"AY234","v":750000},null,"Consol, EFA/DfE Acquisition Note",null,null,null,20,null,null,null,null,null,{"$f":"COUNTA(G236:AV236)","v":0}]
[null,null,"Prepayments and accrued income",null,{"$f":"SUM(G237:AV237)","v":0},null,null,null,null,null,null,null,null,null,null,null,null,null,null,null,null,null,null,null,null,null,null,null,null,null,null,null,null,null,null,null,null,null,null,null,null,null,null,null,null,null,null,null,null,0,{"$f":"AY236","v":750000},null,"Consol, EFA/DfE Acquisition Note",null,null,null,20,null,null,null,null,null,{"$f":"COUNTA(G237:AV237)","v":0}]
[null,null,"VAT",null,{"$f":"SUM(G238:AV238)","v":0},null,null,null,null,null,null,null,null,null,null,null,null,null,null,null,null,null,null,null,null,null,null,null,null,null,null,null,null,null,null,null,null,null,null,null,null,null,null,null,null,null,null,null,null,0,{"$f":"AY237","v":750000},null,"Consol, EFA/DfE Acquisition Note",null,null,null,20,null,null,null,null,null,{"$f":"COUNTA(G238:AV238)","v":0}]
[null,null,"Other debtors",null,{"$f":"SUM(G239:AV239)","v":0},null,null,null,null,null,null,null,null,null,null,null,null,null,null,null,null,null,null,null,null,null,null,null,null,null,null,null,null,null,null,null,null,null,null,null,null,null,null,null,null,null,null,null,null,0,{"$f":"AY238","v":750000},null,"Consol, EFA/DfE Acquisition Note",null,null,null,20,null,null,null,null,null,{"$f":"COUNTA(G239:AV239)","v":0}]
[null,"Cash at bank and in hand",null,null,{"$f":"SUM(G240:AV240)","v":0},null,null,null,null,null,null,null,null,null,null,null,null,null,null,null,null,null,null,null,null,null,null,null,null,null,null,null,null,null,null,null,null,null,null,null,null,null,null,null,null,null,null,null,null,0,{"$f":"AY239","v":750000},null,"Consol, EFA/DfE Acquisition Note",null,null,null,20,null,null,null,null,null,{"$f":"COUNTA(G240:AV240)","v":0}]
[]
[null,"Total assets",null,null,{"$f":"SUM(E227:E241)","v":0},null,{"$f":"SUM(G227:G241)","v":0},0,0,0,0,0,0,0,0,0,0,0,0,0,0,0,0,0,{"$f":"SUM(Y227:Y241)","v":0},0,0,0,0,0,0,0,0,0,0,0,0,0,0,0,0,0,0,0,0,0,0,0]
[null,"Creditors less than one year"]
[null,null,"Bank overdrafts",null,{"$f":"SUM(G244:AV244)","v":0},null,null,null,null,null,null,null,null,null,null,null,null,null,null,null,null,null,null,null,null,null,null,null,null,null,null,null,null,null,null,null,null,null,null,null,null,null,null,null,null,null,null,null,null,{"$f":"'Fin.Return - BS'!$I$45","v":-750000},0,null,"Consol, EFA/DfE Acquisition Note",null,null,null,20,null,null,null,null,null,{"$f":"COUNTA(G244:AV244)","v":0}]
[null,null,"Loans",null,0,null,null,null,null,null,null,null,null,null,null,null,null,null,null,null,null,null,null,null,null,null,null,null,null,null,null,null,null,null,null,null,null,null,null,null,null,null,null,null,null,null,null,null,null,{"$f":"AX244","v":-750000},0,null,"Consol, EFA/DfE Acquisition Note",null,null,null,20,null,null,null,null,null,0]
[null,null,"Trade creditors",null,0,null,null,null,null,null,null,null,null,null,null,null,null,null,null,null,null,null,null,null,null,null,null,null,null,null,null,null,null,null,null,null,null,null,null,null,null,null,null,null,null,null,null,null,null,-750000,0,null,"Consol, EFA/DfE Acquisition Note",null,null,null,20,null,null,null,null,null,0]
[null,null,"Other taxes and social security",null,0,null,null,null,null,null,null,null,null,null,null,null,null,null,null,null,null,null,null,null,null,null,null,null,null,null,null,null,null,null,null,null,null,null,null,null,null,null,null,null,null,null,null,null,null,-750000,0,null,"Consol, EFA/DfE Acquisition Note",null,null,null,20,null,null,null,null,null,0]
[null,null,"Finance leases",null,0,null,null,null,null,null,null,null,null,null,null,null,null,null,null,null,null,null,null,null,null,null,null,null,null,null,null,null,null,null,null,null,null,null,null,null,null,null,null,null,null,null,null,null,null,-750000,0,null,"Consol, EFA/DfE Acquisition Note",null,null,null,20,null,null,null,null,null,0]
[null,null,"VAT",null,0,null,null,null,null,null,null,null,null,null,null,null,null,null,null,null,null,null,null,null,null,null,null,null,null,null,null,null,null,null,null,null,null,null,null,null,null,null,null,null,null,null,null,null,null,-750000,0,null,"Consol, EFA/DfE Acquisition Note",null,null,null,20,null,null,null,null,null,0]
[null,null,"Other creditors",null,0,null,null,null,null,null,null,null,null,null,null,null,null,null,null,null,null,null,null,null,null,null,null,null,null,null,null,null,null,null,null,null,null,null,null,null,null,null,null,null,null,null,null,null,null,-750000,0,null,"Consol, EFA/DfE Acquisition Note",null,null,null,20,null,null,null,null,null,0]
[null,null,"Accruals and deferred income",null,0,null,null,null,null,null,null,null,null,null,null,null,null,null,null,null,null,null,null,null,null,null,null,null,null,null,null,null,null,null,null,null,null,null,null,null,null,null,null,null,null,null,null,null,null,-750000,0,null,"Consol, EFA/DfE Acquisition Note",null,null,null,20,null,null,null,null,null,0]
[null,"Creditors more than one year"]
[null,null,"Loans",null,{"$f":"SUM(G253:AV253)","v":0},null,null,null,null,null,null,null,null,null,null,null,null,null,null,null,null,null,null,null,null,null,null,null,null,null,null,null,null,null,null,null,null,null,null,null,null,null,null,null,null,null,null,null,null,{"$f":"AX251","v":-750000},{"$f":"AY251","v":0},null,"Consol, EFA/DfE Acquisition Note",null,null,null,20,null,null,null,null,null,{"$f":"COUNTA(G253:AV253)","v":0}]
[null,null,"Finance leases",null,{"$f":"SUM(G254:AV254)","v":0},null,null,null,null,null,null,null,null,null,null,null,null,null,null,null,null,null,null,null,null,null,null,null,null,null,null,null,null,null,null,null,null,null,null,null,null,null,null,null,null,null,null,null,null,{"$f":"AX253","v":-750000},0,null,"Consol, EFA/DfE Acquisition Note",null,null,null,20,null,null,null,null,null,{"$f":"COUNTA(G254:AV254)","v":0}]
[null,null,"Other creditors",null,{"$f":"SUM(G255:AV255)","v":0},null,null,null,null,null,null,null,null,null,null,null,null,null,null,null,null,null,null,null,null,null,null,null,null,null,null,null,null,null,null,null,null,null,null,null,null,null,null,null,null,null,null,null,null,-750000,0,null,"Consol, EFA/DfE Acquisition Note",null,null,null,20,null,null,null,null,null,{"$f":"COUNTA(G255:AV255)","v":0}]
[null,"Provisions for liabilities and charges",null,null,{"$f":"SUM(G256:AV256)","v":0},null,null,null,null,null,null,null,null,null,null,null,null,null,null,null,null,null,null,null,null,null,null,null,null,null,null,null,null,null,null,null,null,null,null,null,null,null,null,null,null,null,null,null,null,-750000,0,null,"Consol, EFA/DfE Acquisition Note",null,null,null,20,null,null,null,null,null,{"$f":"COUNTA(G256:AV256)","v":0}]
[]
[null,"Total assets less trading liabilities",null,null,{"$f":"SUM(E242:E257)","v":0},null,{"$f":"SUM(G242:G257)","v":0},0,0,0,0,0,0,0,0,0,0,0,0,0,0,0,0,0,{"$f":"SUM(Y242:Y257)","v":0},0,0,0,0,0,0,0,0,0,0,0,0,0,0,0,0,0,0,0,0,0,0,0]
[null,"Other balances"]
[null,null,"Pensions scheme surplus/(deficit)",{"$f":"IF('Fin.Return - BS'!G41<>'Fin.Return - Other Notes'!E260,\"Error - imbalance with Balance Sheet\",\"\")","v":""},{"$f":"SUM(G260:AV260)","v":0},null,null,null,null,null,null,null,null,null,null,null,null,null,null,null,null,null,null,null,null,null,null,null,null,null,null,null,null,null,null,null,null,null,null,null,null,null,null,null,null,null,null,null,null,{"$f":"AX256","v":-750000},{"$f":"AY240","v":750000},null,"Consol, EFA/DfE Acquisition Note",null,null,null,20,null,null,null,null,null,{"$f":"COUNTA(G260:AV260)","v":0}]
[]
[null,"Identifiable net assets/(liabilities)",null,{"$f":"IF(E262<>('Fin.Return - SOFA'!E20+'Fin.Return - SOFA'!E53),\"Error - Not equal to transfers and funds obtained on conversion in the SoFA\",\"\")","v":""},{"$f":"SUM(E258:E261)","v":0},null,{"$f":"SUM(G258:G261)","v":0},0,0,0,0,0,0,0,0,0,0,0,0,0,0,0,0,0,{"$f":"SUM(Y258:Y261)","v":0},0,0,0,0,0,0,0,0,0,0,0,0,0,0,0,0,0,0,0,0,0,0,0]
[null,null,null,null,null,null,{"$f":"IF(AND(G222=\"\",COUNT(G228:G260)-2>0),\"Error - UPIN of academy school not provided in row 222\",\"\")","v":""},{"$f":"IF(AND(H222=\"\",COUNT(H228:H260)-2>0),\"Error - UPIN of academy school not provided in row 222\",\"\")","v":""},"","","","","","","","","","","","","","","","","","","","","","","","","","","","","","","","","","","","","","","",""]
[]
["TRANSFER OF AN EXISTING ACADEMY INTO THE TRUST - YEAR OF TRANSFER ONLY",null,null,{"$f":"IF('Standing Data'!D9=\"Multiple\",IF(COUNTA(G265:AV265)<>COUNTIF('Standing Data'!$F$48:$F$147,\"In period transfer in\"),\"Error - standing data shows more or less transfers out\",\"\"),\"\")","v":""},null,"UPIN",null,null,null,null,null,null,null,null,null,null,null,null,null,null,null,null,null,null,null,null,null,null,null,null,null,null,null,null,null,null,null,null,null,null,null,null,null,null,null,null,null,null,null,null,null,null,null,null,null,20]
[null,null,null,null,null,"Academy Name",{"$f":"IFERROR(VLOOKUP(G265,Reference!$O$10:$T$5093,2,FALSE),\"\")","v":""},{"$f":"IFERROR(VLOOKUP(H265,Reference!$O$10:$T$5093,2,FALSE),\"\")","v":""},{"$f":"IFERROR(VLOOKUP(I265,Reference!$O$10:$T$5093,2,FALSE),\"\")","v":""},{"$f":"IFERROR(VLOOKUP(J265,Reference!$O$10:$T$5093,2,FALSE),\"\")","v":""},{"$f":"IFERROR(VLOOKUP(K265,Reference!$O$10:$T$5093,2,FALSE),\"\")","v":""},{"$f":"IFERROR(VLOOKUP(L265,Reference!$O$10:$T$5093,2,FALSE),\"\")","v":""},{"$f":"IFERROR(VLOOKUP(M265,Reference!$O$10:$T$5093,2,FALSE),\"\")","v":""},{"$f":"IFERROR(VLOOKUP(N265,Reference!$O$10:$T$5093,2,FALSE),\"\")","v":""},{"$f":"IFERROR(VLOOKUP(O265,Reference!$O$10:$T$5093,2,FALSE),\"\")","v":""},{"$f":"IFERROR(VLOOKUP(P265,Reference!$O$10:$T$5093,2,FALSE),\"\")","v":""},{"$f":"IFERROR(VLOOKUP(Q265,Reference!$O$10:$T$5093,2,FALSE),\"\")","v":""},{"$f":"IFERROR(VLOOKUP(R265,Reference!$O$10:$T$5093,2,FALSE),\"\")","v":""},{"$f":"IFERROR(VLOOKUP(S265,Reference!$O$10:$T$5093,2,FALSE),\"\")","v":""},{"$f":"IFERROR(VLOOKUP(T265,Reference!$O$10:$T$5093,2,FALSE),\"\")","v":""},{"$f":"IFERROR(VLOOKUP(U265,Reference!$O$10:$T$5093,2,FALSE),\"\")","v":""},{"$f":"IFERROR(VLOOKUP(V265,Reference!$O$10:$T$5093,2,FALSE),\"\")","v":""},{"$f":"IFERROR(VLOOKUP(W265,Reference!$O$10:$T$5093,2,FALSE),\"\")","v":""},{"$f":"IFERROR(VLOOKUP(X265,Reference!$O$10:$T$5093,2,FALSE),\"\")","v":""},{"$f":"IFERROR(VLOOKUP(Y265,Reference!$O$10:$T$5093,2,FALSE),\"\")","v":""},{"$f":"IFERROR(VLOOKUP(Z265,Reference!$O$10:$T$5093,2,FALSE),\"\")","v":""},{"$f":"IFERROR(VLOOKUP(AA265,Reference!$O$10:$T$5093,2,FALSE),\"\")","v":""},{"$f":"IFERROR(VLOOKUP(AB265,Reference!$O$10:$T$5093,2,FALSE),\"\")","v":""},{"$f":"IFERROR(VLOOKUP(AC265,Reference!$O$10:$T$5093,2,FALSE),\"\")","v":""},{"$f":"IFERROR(VLOOKUP(AD265,Reference!$O$10:$T$5093,2,FALSE),\"\")","v":""},{"$f":"IFERROR(VLOOKUP(AE265,Reference!$O$10:$T$5093,2,FALSE),\"\")","v":""},{"$f":"IFERROR(VLOOKUP(AF265,Reference!$O$10:$T$5093,2,FALSE),\"\")","v":""},{"$f":"IFERROR(VLOOKUP(AG265,Reference!$O$10:$T$5093,2,FALSE),\"\")","v":""},{"$f":"IFERROR(VLOOKUP(AH265,Reference!$O$10:$T$5093,2,FALSE),\"\")","v":""},{"$f":"IFERROR(VLOOKUP(AI265,Reference!$O$10:$T$5093,2,FALSE),\"\")","v":""},{"$f":"IFERROR(VLOOKUP(AJ265,Reference!$O$10:$T$5093,2,FALSE),\"\")","v":""},{"$f":"IFERROR(VLOOKUP(AK265,Reference!$O$10:$T$5093,2,FALSE),\"\")","v":""},{"$f":"IFERROR(VLOOKUP(AL265,Reference!$O$10:$T$5093,2,FALSE),\"\")","v":""},{"$f":"IFERROR(VLOOKUP(AM265,Reference!$O$10:$T$5093,2,FALSE),\"\")","v":""},{"$f":"IFERROR(VLOOKUP(AN265,Reference!$O$10:$T$5093,2,FALSE),\"\")","v":""},{"$f":"IFERROR(VLOOKUP(AO265,Reference!$O$10:$T$5093,2,FALSE),\"\")","v":""},{"$f":"IFERROR(VLOOKUP(AP265,Reference!$O$10:$T$5093,2,FALSE),\"\")","v":""},{"$f":"IFERROR(VLOOKUP(AQ265,Reference!$O$10:$T$5093,2,FALSE),\"\")","v":""},{"$f":"IFERROR(VLOOKUP(AR265,Reference!$O$10:$T$5093,2,FALSE),\"\")","v":""},{"$f":"IFERROR(VLOOKUP(AS265,Reference!$O$10:$T$5093,2,FALSE),\"\")","v":""},{"$f":"IFERROR(VLOOKUP(AT265,Reference!$O$10:$T$5093,2,FALSE),\"\")","v":""},{"$f":"IFERROR(VLOOKUP(AU265,Reference!$O$10:$T$5093,2,FALSE),\"\")","v":""},{"$f":"IFERROR(VLOOKUP(AV265,Reference!$O$10:$T$5093,2,FALSE),\"\")","v":""},null,null,null,null,null,null,null,null,null,null,20]
[null,null,null,null,null,"Transferred from (Trust Name)",null,null,null,null,null,null,null,null,null,null,null,null,null,null,null,null,null,null,null,null,null,null,null,null,null,null,null,null,null,null,null,null,null,null,null,null,null,null,null,null,null,null,null,null,null,null,null,null,null,null,20]
[null,"Tangible fixed assets",null,null,"£000",null,"£000","£000","£000","£000","£000","£000","£000","£000","£000","£000","£000","£000","£000","£000","£000","£000","£000","£000","£000","£000","£000","£000","£000","£000","£000","£000","£000","£000","£000","£000","£000","£000","£000","£000","£000","£000","£000","£000","£000","£000","£000","£000",null,"£000","£000"]
[null,null,"Land",{"$f":"IF(SUM(E269:E270)<>('Fin.Return - BS'!G69+'Fin.Return - BS'!H69+'Fin.Return - BS'!I69),\"Error - imbalance with FA note\",\"\")","v":""},{"$f":"SUM(G269:AV269)","v":0},null,null,null,null,null,null,null,null,null,null,null,null,null,null,null,null,null,null,null,null,null,null,null,null,null,null,null,null,null,null,null,null,null,null,null,null,null,null,null,null,null,null,null,null,0,{"$f":"'Fin.Return - BS'!$J$19","v":750000},null,"Consol, EFA/DfE Acquisition Note",null,null,null,20,null,null,null,null,null,{"$f":"COUNTA(G269:AV269)","v":0},null,{"$f":"COUNTIF(E269:E269,\"<>0\")","v":0}]
[null,null,"Buildings",null,{"$f":"SUM(G270:AV270)","v":0},null,null,null,null,null,null,null,null,null,null,null,null,null,null,null,null,null,null,null,null,null,null,null,null,null,null,null,null,null,null,null,null,null,null,null,null,null,null,null,null,null,null,null,null,0,{"$f":"AY269","v":750000},null,"Consol, EFA/DfE Acquisition Note",null,null,null,20,null,null,null,null,null,0]
[null,null,"Other assets",{"$f":"IF(E271<>SUM(G271:AV271),\"Error - lines does not cross cast\",\"\")","v":""},{"$f":"+SUM('Fin.Return - BS'!J69:N69)","v":0},null,null,null,null,null,null,null,null,null,null,null,null,null,null,null,null,null,null,null,null,null,null,null,null,null,null,null,null,null,null,null,null,null,null,null,null,null,null,null,null,null,null,null,null,0,750000,null,"Consol, EFA/DfE Acquisition Note",null,null,null,20,null,null,null,null,null,0,null,{"$f":"COUNTIF(E271:E271,\"<>0\")","v":0}]
[null,"Intangible fixed assets",null,{"$f":"IF(E272<>SUM(G272:AV272),\"Error - lines does not cross cast\",\"\")","v":""},{"$f":"+('Fin.Return - BS'!E131)","v":0},null,null,null,null,null,null,null,null,null,null,null,null,null,null,null,null,null,null,null,null,null,null,null,null,null,null,null,null,null,null,null,null,null,null,null,null,null,null,null,null,null,null,null,null,0,750000,null,"Consol, EFA/DfE Acquisition Note",null,null,null,20,null,null,null,null,null,0,null,{"$f":"COUNTIF(E272:E272,\"<>0\")","v":0}]
[null,"Investments",null,{"$f":"IF(E273<>SUM(G273:AV273),\"Error - lines does not cross cast\",\"\")","v":""},{"$f":"+('Fin.Return - BS'!E177+'Fin.Return - BS'!E246)","v":0},null,null,null,null,null,null,null,null,null,null,null,null,null,null,null,null,null,null,null,null,null,null,null,null,null,null,null,null,null,null,null,null,null,null,null,null,null,null,null,null,null,null,null,null,0,750000,null,"Consol, EFA/DfE Acquisition Note",null,null,null,20,null,null,null,null,null,0,null,{"$f":"COUNTIF(E273:E273,\"<>0\")","v":0}]
[null,"Stock",null,null,{"$f":"SUM(G274:AV274)","v":0},null,null,null,null,null,null,null,null,null,null,null,null,null,null,null,null,null,null,null,null,null,null,null,null,null,null,null,null,null,null,null,null,null,null,null,null,null,null,null,null,null,null,null,null,0,750000,null,"Consol, EFA/DfE Acquisition Note",null,null,null,20,null,null,null,null,null,0]
[null,"Debtors after more than one year",null,null,{"$f":"SUM(G275:AV275)","v":0},null,null,null,null,null,null,null,null,null,null,null,null,null,null,null,null,null,null,null,null,null,null,null,null,null,null,null,null,null,null,null,null,null,null,null,null,null,null,null,null,null,null,null,null,0,750000,null,"Consol, EFA/DfE Acquisition Note",null,null,null,20,null,null,null,null,null,0]
[null,"Debtors"]
[null,null,"Trade debtors",null,{"$f":"SUM(G277:AV277)","v":0},null,null,null,null,null,null,null,null,null,null,null,null,null,null,null,null,null,null,null,null,null,null,null,null,null,null,null,null,null,null,null,null,null,null,null,null,null,null,null,null,null,null,null,null,0,{"$f":"AY275","v":750000},null,"Consol, EFA/DfE Acquisition Note",null,null,null,20,null,null,null,null,null,{"$f":"COUNTA(G277:AV277)","v":0}]
[null,null,"Prepayments and accrued income",null,{"$f":"SUM(G278:AV278)","v":0},null,null,null,null,null,null,null,null,null,null,null,null,null,null,null,null,null,null,null,null,null,null,null,null,null,null,null,null,null,null,null,null,null,null,null,null,null,null,null,null,null,null,null,null,0,{"$f":"AY277","v":750000},null,"Consol, EFA/DfE Acquisition Note",null,null,null,20,null,null,null,null,null,{"$f":"COUNTA(G278:AV278)","v":0}]
[null,null,"VAT",null,{"$f":"SUM(G279:AV279)","v":0},null,null,null,null,null,null,null,null,null,null,null,null,null,null,null,null,null,null,null,null,null,null,null,null,null,null,null,null,null,null,null,null,null,null,null,null,null,null,null,null,null,null,null,null,0,{"$f":"AY278","v":750000},null,"Consol, EFA/DfE Acquisition Note",null,null,null,20,null,null,null,null,null,{"$f":"COUNTA(G279:AV279)","v":0}]
[null,null,"Other debtors",null,{"$f":"SUM(G280:AV280)","v":0},null,null,null,null,null,null,null,null,null,null,null,null,null,null,null,null,null,null,null,null,null,null,null,null,null,null,null,null,null,null,null,null,null,null,null,null,null,null,null,null,null,null,null,null,0,{"$f":"AY279","v":750000},null,"Consol, EFA/DfE Acquisition Note",null,null,null,20,null,null,null,null,null,{"$f":"COUNTA(G280:AV280)","v":0}]
[null,"Cash at bank and in hand",null,null,{"$f":"SUM(G281:AV281)","v":0},null,null,null,null,null,null,null,null,null,null,null,null,null,null,null,null,null,null,null,null,null,null,null,null,null,null,null,null,null,null,null,null,null,null,null,null,null,null,null,null,null,null,null,null,0,{"$f":"AY280","v":750000},null,"Consol, EFA/DfE Acquisition Note",null,null,null,20,null,null,null,null,null,{"$f":"COUNTA(G281:AV281)","v":0}]
[]
[null,"Total assets",null,null,{"$f":"SUM(E268:E282)","v":0},null,{"$f":"SUM(G268:G282)","v":0},0,0,0,0,0,0,0,0,0,0,0,0,0,0,0,0,0,{"$f":"SUM(Y268:Y282)","v":0},0,0,0,0,0,0,0,0,0,0,0,0,0,0,0,0,0,0,0,0,0,0,0]
[null,"Creditors less than one year"]
[null,null,"Bank overdrafts",null,{"$f":"SUM(G285:AV285)","v":0},null,null,null,null,null,null,null,null,null,null,null,null,null,null,null,null,null,null,null,null,null,null,null,null,null,null,null,null,null,null,null,null,null,null,null,null,null,null,null,null,null,null,null,null,{"$f":"'Fin.Return - BS'!$I$45","v":-750000},0,null,"Consol, EFA/DfE Acquisition Note",null,null,null,20,null,null,null,null,null,{"$f":"COUNTA(G285:AV285)","v":0}]
[null,null,"Loans",null,0,null,null,null,null,null,null,null,null,null,null,null,null,null,null,null,null,null,null,null,null,null,null,null,null,null,null,null,null,null,null,null,null,null,null,null,null,null,null,null,null,null,null,null,null,{"$f":"AX285","v":-750000},0,null,"Consol, EFA/DfE Acquisition Note",null,null,null,20,null,null,null,null,null,0]
[null,null,"Trade creditors",null,0,null,null,null,null,null,null,null,null,null,null,null,null,null,null,null,null,null,null,null,null,null,null,null,null,null,null,null,null,null,null,null,null,null,null,null,null,null,null,null,null,null,null,null,null,{"$f":"AX286","v":-750000},0,null,"Consol, EFA/DfE Acquisition Note",null,null,null,20,null,null,null,null,null,0]
[null,null,"Other taxes and social security",null,0,null,null,null,null,null,null,null,null,null,null,null,null,null,null,null,null,null,null,null,null,null,null,null,null,null,null,null,null,null,null,null,null,null,null,null,null,null,null,null,null,null,null,null,null,{"$f":"AX287","v":-750000},0,null,"Consol, EFA/DfE Acquisition Note",null,null,null,20,null,null,null,null,null,0]
[null,null,"Finance leases",null,0,null,null,null,null,null,null,null,null,null,null,null,null,null,null,null,null,null,null,null,null,null,null,null,null,null,null,null,null,null,null,null,null,null,null,null,null,null,null,null,null,null,null,null,null,{"$f":"AX288","v":-750000},0,null,"Consol, EFA/DfE Acquisition Note",null,null,null,20,null,null,null,null,null,0]
[null,null,"VAT",null,0,null,null,null,null,null,null,null,null,null,null,null,null,null,null,null,null,null,null,null,null,null,null,null,null,null,null,null,null,null,null,null,null,null,null,null,null,null,null,null,null,null,null,null,null,{"$f":"AX289","v":-750000},0,null,"Consol, EFA/DfE Acquisition Note",null,null,null,20,null,null,null,null,null,0]
[null,null,"Other creditors",null,0,null,null,null,null,null,null,null,null,null,null,null,null,null,null,null,null,null,null,null,null,null,null,null,null,null,null,null,null,null,null,null,null,null,null,null,null,null,null,null,null,null,null,null,null,{"$f":"AX290","v":-750000},0,null,"Consol, EFA/DfE Acquisition Note",null,null,null,20,null,null,null,null,null,0]
[null,null,"Accruals and deferred income",null,0,null,null,null,null,null,null,null,null,null,null,null,null,null,null,null,null,null,null,null,null,null,null,null,null,null,null,null,null,null,null,null,null,null,null,null,null,null,null,null,null,null,null,null,null,{"$f":"AX291","v":-750000},0,null,"Consol, EFA/DfE Acquisition Note",null,null,null,20,null,null,null,null,null,0]
[null,"Creditors more than one year"]
[null,null,"Loans",null,{"$f":"SUM(G294:AV294)","v":0},null,null,null,null,null,null,null,null,null,null,null,null,null,null,null,null,null,null,null,null,null,null,null,null,null,null,null,null,null,null,null,null,null,null,null,null,null,null,null,null,null,null,null,null,{"$f":"AX292","v":-750000},{"$f":"AY292","v":0},null,"Consol, EFA/DfE Acquisition Note",null,null,null,20,null,null,null,null,null,{"$f":"COUNTA(G294:AV294)","v":0}]
[null,null,"Finance leases",null,{"$f":"SUM(G295:AV295)","v":0},null,null,null,null,null,null,null,null,null,null,null,null,null,null,null,null,null,null,null,null,null,null,null,null,null,null,null,null,null,null,null,null,null,null,null,null,null,null,null,null,null,null,null,null,{"$f":"AX294","v":-750000},0,null,"Consol, EFA/DfE Acquisition Note",null,null,null,20,null,null,null,null,null,{"$f":"COUNTA(G295:AV295)","v":0}]
[null,null,"Other creditors",null,{"$f":"SUM(G296:AV296)","v":0},null,null,null,null,null,null,null,null,null,null,null,null,null,null,null,null,null,null,null,null,null,null,null,null,null,null,null,null,null,null,null,null,null,null,null,null,null,null,null,null,null,null,null,null,{"$f":"AX295","v":-750000},0,null,"Consol, EFA/DfE Acquisition Note",null,null,null,20,null,null,null,null,null,{"$f":"COUNTA(G296:AV296)","v":0}]
[null,"Provisions for liabilities and charges",null,null,{"$f":"SUM(G297:AV297)","v":0},null,null,null,null,null,null,null,null,null,null,null,null,null,null,null,null,null,null,null,null,null,null,null,null,null,null,null,null,null,null,null,null,null,null,null,null,null,null,null,null,null,null,null,null,{"$f":"AX296","v":-750000},0,null,"Consol, EFA/DfE Acquisition Note",null,null,null,20,null,null,null,null,null,{"$f":"COUNTA(G297:AV297)","v":0}]
[]
[null,"Total assets less trading liabilities",null,null,{"$f":"SUM(E283:E298)","v":0},null,{"$f":"SUM(G283:G298)","v":0},0,0,0,0,0,0,0,0,0,0,0,0,0,0,0,0,0,{"$f":"SUM(Y283:Y298)","v":0},0,0,0,0,0,0,0,0,0,0,0,0,0,0,0,0,0,0,0,0,0,0,0]
[null,"Other balances"]
[null,null,"Pensions scheme surplus/(deficit)",{"$f":"IF(E301<>SUM(G301:Z301),\"Error - imbalance with the pensions note\",\"\")","v":""},{"$f":"+(E216)","v":0},null,null,null,null,null,null,null,null,null,null,null,null,null,null,null,null,null,null,null,null,null,null,null,null,null,null,null,null,null,null,null,null,null,null,null,null,null,null,null,null,null,null,null,null,{"$f":"AX297","v":-750000},{"$f":"AY281","v":750000},null,"Consol, EFA/DfE Acquisition Note",null,null,null,20,null,null,null,null,null,{"$f":"COUNTA(G301:AV301)","v":0}]
[]
[null,"Identifiable net assets/(liabilities)",null,null,{"$f":"SUM(E299:E302)","v":0},null,{"$f":"SUM(G299:G302)","v":0},0,0,0,0,0,0,0,0,0,0,0,0,0,0,0,0,0,{"$f":"SUM(Y299:Y302)","v":0},0,0,0,0,0,0,0,0,0,0,0,0,0,0,0,0,0,0,0,0,0,0,0]
[null,null,null,{"$f":"IF(E303<>('Fin.Return - SOFA'!E21+'Fin.Return - SOFA'!E54),\"Error - net assets/liabilities transferring in do not equal SoFA\",\"\")","v":""},null,null,{"$f":"IF(AND(G267=\"\",COUNT(G269:G301)-2>0),\"Error - name of trust not provided in row 267\",\"\")","v":""},{"$f":"IF(AND(H267=\"\",COUNT(H269:H301)-2>0),\"Error - name of trust not provided in row 267\",\"\")","v":""},"","","","","","","","","","","","","","","","",{"$f":"IF(AND(Y267=\"\",COUNT(Y269:Y301)-2>0),\"Error - name of trust not provided in row 267\",\"\")","v":""},"","","","","","","","","","","","","","","","","","","","","","",""]
[]
["TRANSFER OF AN EXISTING ACADEMY OUT OF THE TRUST - YEAR OF TRANSFER ONLY",null,null,{"$f":"IF('Standing Data'!D9=\"Multiple\", IF(COUNTA(G306:AV306)<>COUNTIF('Standing Data'!$F$48:$F$147,\"In period transfer out\"),\"Error - standing data shows more or less transfers out\",\"\"),\"\")","v":""},null,"UPIN",null,null,null,null,null,null,null,null,null,null,null,null,null,null,null,null,null,null,null,null,null,null,null,null,null,null,null,null,null,null,null,null,null,null,null,null,null,null,null,null,null,null,null,null,null,null,null,null,null,20]
[null,null,null,null,null,"Academy Name",{"$f":"IFERROR(VLOOKUP(G306,Reference!$O$10:$T$5093,2,FALSE),\"\")","v":""},{"$f":"IFERROR(VLOOKUP(H306,Reference!$O$10:$T$5093,2,FALSE),\"\")","v":""},{"$f":"IFERROR(VLOOKUP(I306,Reference!$O$10:$T$5093,2,FALSE),\"\")","v":""},{"$f":"IFERROR(VLOOKUP(J306,Reference!$O$10:$T$5093,2,FALSE),\"\")","v":""},{"$f":"IFERROR(VLOOKUP(K306,Reference!$O$10:$T$5093,2,FALSE),\"\")","v":""},{"$f":"IFERROR(VLOOKUP(L306,Reference!$O$10:$T$5093,2,FALSE),\"\")","v":""},{"$f":"IFERROR(VLOOKUP(M306,Reference!$O$10:$T$5093,2,FALSE),\"\")","v":""},{"$f":"IFERROR(VLOOKUP(N306,Reference!$O$10:$T$5093,2,FALSE),\"\")","v":""},{"$f":"IFERROR(VLOOKUP(O306,Reference!$O$10:$T$5093,2,FALSE),\"\")","v":""},{"$f":"IFERROR(VLOOKUP(P306,Reference!$O$10:$T$5093,2,FALSE),\"\")","v":""},{"$f":"IFERROR(VLOOKUP(Q306,Reference!$O$10:$T$5093,2,FALSE),\"\")","v":""},{"$f":"IFERROR(VLOOKUP(R306,Reference!$O$10:$T$5093,2,FALSE),\"\")","v":""},{"$f":"IFERROR(VLOOKUP(S306,Reference!$O$10:$T$5093,2,FALSE),\"\")","v":""},{"$f":"IFERROR(VLOOKUP(T306,Reference!$O$10:$T$5093,2,FALSE),\"\")","v":""},{"$f":"IFERROR(VLOOKUP(U306,Reference!$O$10:$T$5093,2,FALSE),\"\")","v":""},{"$f":"IFERROR(VLOOKUP(V306,Reference!$O$10:$T$5093,2,FALSE),\"\")","v":""},{"$f":"IFERROR(VLOOKUP(W306,Reference!$O$10:$T$5093,2,FALSE),\"\")","v":""},{"$f":"IFERROR(VLOOKUP(X306,Reference!$O$10:$T$5093,2,FALSE),\"\")","v":""},{"$f":"IFERROR(VLOOKUP(Y306,Reference!$O$10:$T$5093,2,FALSE),\"\")","v":""},{"$f":"IFERROR(VLOOKUP(Z306,Reference!$O$10:$T$5093,2,FALSE),\"\")","v":""},{"$f":"IFERROR(VLOOKUP(AA306,Reference!$O$10:$T$5093,2,FALSE),\"\")","v":""},{"$f":"IFERROR(VLOOKUP(AB306,Reference!$O$10:$T$5093,2,FALSE),\"\")","v":""},{"$f":"IFERROR(VLOOKUP(AC306,Reference!$O$10:$T$5093,2,FALSE),\"\")","v":""},{"$f":"IFERROR(VLOOKUP(AD306,Reference!$O$10:$T$5093,2,FALSE),\"\")","v":""},{"$f":"IFERROR(VLOOKUP(AE306,Reference!$O$10:$T$5093,2,FALSE),\"\")","v":""},{"$f":"IFERROR(VLOOKUP(AF306,Reference!$O$10:$T$5093,2,FALSE),\"\")","v":""},{"$f":"IFERROR(VLOOKUP(AG306,Reference!$O$10:$T$5093,2,FALSE),\"\")","v":""},{"$f":"IFERROR(VLOOKUP(AH306,Reference!$O$10:$T$5093,2,FALSE),\"\")","v":""},{"$f":"IFERROR(VLOOKUP(AI306,Reference!$O$10:$T$5093,2,FALSE),\"\")","v":""},{"$f":"IFERROR(VLOOKUP(AJ306,Reference!$O$10:$T$5093,2,FALSE),\"\")","v":""},{"$f":"IFERROR(VLOOKUP(AK306,Reference!$O$10:$T$5093,2,FALSE),\"\")","v":""},{"$f":"IFERROR(VLOOKUP(AL306,Reference!$O$10:$T$5093,2,FALSE),\"\")","v":""},{"$f":"IFERROR(VLOOKUP(AM306,Reference!$O$10:$T$5093,2,FALSE),\"\")","v":""},{"$f":"IFERROR(VLOOKUP(AN306,Reference!$O$10:$T$5093,2,FALSE),\"\")","v":""},{"$f":"IFERROR(VLOOKUP(AO306,Reference!$O$10:$T$5093,2,FALSE),\"\")","v":""},{"$f":"IFERROR(VLOOKUP(AP306,Reference!$O$10:$T$5093,2,FALSE),\"\")","v":""},{"$f":"IFERROR(VLOOKUP(AQ306,Reference!$O$10:$T$5093,2,FALSE),\"\")","v":""},{"$f":"IFERROR(VLOOKUP(AR306,Reference!$O$10:$T$5093,2,FALSE),\"\")","v":""},{"$f":"IFERROR(VLOOKUP(AS306,Reference!$O$10:$T$5093,2,FALSE),\"\")","v":""},{"$f":"IFERROR(VLOOKUP(AT306,Reference!$O$10:$T$5093,2,FALSE),\"\")","v":""},{"$f":"IFERROR(VLOOKUP(AU306,Reference!$O$10:$T$5093,2,FALSE),\"\")","v":""},{"$f":"IFERROR(VLOOKUP(AV306,Reference!$O$10:$T$5093,2,FALSE),\"\")","v":""},null,null,null,null,null,null,null,null,null,null,20]
[null,null,null,null,null,"Transferred to (Trust Name)",null,null,null,null,null,null,null,null,null,null,null,null,null,null,null,null,null,null,null,null,null,null,null,null,null,null,null,null,null,null,null,null,null,null,null,null,null,null,null,null,null,null,null,null,null,null,null,null,null,20]
[null,"Tangible fixed assets",null,null,"£000",null,"£000","£000","£000","£000","£000","£000","£000","£000","£000","£000","£000","£000","£000","£000","£000","£000","£000","£000","£000","£000","£000","£000","£000","£000","£000","£000","£000","£000","£000","£000","£000","£000","£000","£000","£000","£000","£000","£000","£000","£000","£000","£000",null,"£000","£000"]
[null,null,"Land",{"$f":"IF(SUM(E310:E311)<>('Fin.Return - BS'!G73+'Fin.Return - BS'!H73+'Fin.Return - BS'!I73+'Fin.Return - BS'!G83+'Fin.Return - BS'!H83+'Fin.Return - BS'!I83+'Fin.Return - BS'!G93+'Fin.Return - BS'!H93+'Fin.Return - BS'!I93),\"Error - imbalance with FA note\",\"\")","v":""},{"$f":"SUM(G310:AV310)","v":0},null,null,null,null,null,null,null,null,null,null,null,null,null,null,null,null,null,null,null,null,null,null,null,null,null,null,null,null,null,null,null,null,null,null,null,null,null,null,null,null,null,null,null,null,{"$f":"'Fin.Return - BS'!$I$45","v":-750000},0,null,"Consol, EFA/DfE Acquisition Note",null,null,null,20,null,null,null,null,null,{"$f":"COUNTA(G310:AV310)","v":0},null,{"$f":"COUNTIF(E310:E310,\"<>0\")","v":0}]
[null,null,"Buildings",null,{"$f":"SUM(G311:AV311)","v":0},null,null,null,null,null,null,null,null,null,null,null,null,null,null,null,null,null,null,null,null,null,null,null,null,null,null,null,null,null,null,null,null,null,null,null,null,null,null,null,null,null,null,null,null,{"$f":"'Fin.Return - BS'!$I$45","v":-750000},0,null,"Consol, EFA/DfE Acquisition Note",null,null,null,20,null,null,null,null,null,0]
[null,null,"Other assets",{"$f":"IF(E312<>SUM(G312:AV312),\"Error - lines does not cross cast\",\"\")","v":""},{"$f":"SUM('Fin.Return - BS'!J73:N73)+SUM('Fin.Return - BS'!J83:N83)+SUM('Fin.Return - BS'!J93:N93)","v":0},null,null,null,null,null,null,null,null,null,null,null,null,null,null,null,null,null,null,null,null,null,null,null,null,null,null,null,null,null,null,null,null,null,null,null,null,null,null,null,null,null,null,null,null,{"$f":"'Fin.Return - BS'!$I$45","v":-750000},0,null,"Consol, EFA/DfE Acquisition Note",null,null,null,20,null,null,null,null,null,0,null,{"$f":"COUNTIF(E312:E312,\"<>0\")","v":0}]
[null,"Intangible fixed assets",null,{"$f":"IF(E313<>SUM(G313:AV313),\"Error - lines does not cross cast\",\"\")","v":""},{"$f":"SUM('Fin.Return - BS'!E133+'Fin.Return - BS'!E143+'Fin.Return - BS'!E153)","v":0},null,null,null,null,null,null,null,null,null,null,null,null,null,null,null,null,null,null,null,null,null,null,null,null,null,null,null,null,null,null,null,null,null,null,null,null,null,null,null,null,null,null,null,null,{"$f":"'Fin.Return - BS'!$I$45","v":-750000},0,null,"Consol, EFA/DfE Acquisition Note",null,null,null,20,null,null,null,null,null,0,null,{"$f":"COUNTIF(E313:E313,\"<>0\")","v":0}]
[null,"Investments",null,{"$f":"IF(E314<>SUM(G314:AV314),\"Error - lines does not cross cast\",\"\")","v":""},{"$f":"+('Fin.Return - BS'!E178+'Fin.Return - BS'!E247)","v":0},null,null,null,null,null,null,null,null,null,null,null,null,null,null,null,null,null,null,null,null,null,null,null,null,null,null,null,null,null,null,null,null,null,null,null,null,null,null,null,null,null,null,null,null,{"$f":"'Fin.Return - BS'!$I$45","v":-750000},0,null,"Consol, EFA/DfE Acquisition Note",null,null,null,20,null,null,null,null,null,0,null,{"$f":"COUNTIF(E314:E314,\"<>0\")","v":0}]
[null,"Stock",null,null,{"$f":"SUM(G315:AV315)","v":0},null,null,null,null,null,null,null,null,null,null,null,null,null,null,null,null,null,null,null,null,null,null,null,null,null,null,null,null,null,null,null,null,null,null,null,null,null,null,null,null,null,null,null,null,{"$f":"'Fin.Return - BS'!$I$45","v":-750000},0,null,"Consol, EFA/DfE Acquisition Note",null,null,null,20,null,null,null,null,null,0]
[null,"Debtors after more than one year",null,null,{"$f":"SUM(G316:AV316)","v":0},null,null,null,null,null,null,null,null,null,null,null,null,null,null,null,null,null,null,null,null,null,null,null,null,null,null,null,null,null,null,null,null,null,null,null,null,null,null,null,null,null,null,null,null,{"$f":"'Fin.Return - BS'!$I$45","v":-750000},0,null,"Consol, EFA/DfE Acquisition Note",null,null,null,20,null,null,null,null,null,0]
[null,"Debtors"]
[null,null,"Trade debtors",null,{"$f":"SUM(G318:AV318)","v":0},null,null,null,null,null,null,null,null,null,null,null,null,null,null,null,null,null,null,null,null,null,null,null,null,null,null,null,null,null,null,null,null,null,null,null,null,null,null,null,null,null,null,null,null,{"$f":"'Fin.Return - BS'!$I$45","v":-750000},0,null,"Consol, EFA/DfE Acquisition Note",null,null,null,20,null,null,null,null,null,{"$f":"COUNTA(G318:AV318)","v":0}]
[null,null,"Prepayments and accrued income",null,{"$f":"SUM(G319:AV319)","v":0},null,null,null,null,null,null,null,null,null,null,null,null,null,null,null,null,null,null,null,null,null,null,null,null,null,null,null,null,null,null,null,null,null,null,null,null,null,null,null,null,null,null,null,null,{"$f":"'Fin.Return - BS'!$I$45","v":-750000},0,null,"Consol, EFA/DfE Acquisition Note",null,null,null,20,null,null,null,null,null,{"$f":"COUNTA(G319:AV319)","v":0}]
[null,null,"VAT",null,{"$f":"SUM(G320:AV320)","v":0},null,null,null,null,null,null,null,null,null,null,null,null,null,null,null,null,null,null,null,null,null,null,null,null,null,null,null,null,null,null,null,null,null,null,null,null,null,null,null,null,null,null,null,null,{"$f":"'Fin.Return - BS'!$I$45","v":-750000},0,null,"Consol, EFA/DfE Acquisition Note",null,null,null,20,null,null,null,null,null,{"$f":"COUNTA(G320:AV320)","v":0}]
[null,null,"Other debtors",null,{"$f":"SUM(G321:AV321)","v":0},null,null,null,null,null,null,null,null,null,null,null,null,null,null,null,null,null,null,null,null,null,null,null,null,null,null,null,null,null,null,null,null,null,null,null,null,null,null,null,null,null,null,null,null,{"$f":"'Fin.Return - BS'!$I$45","v":-750000},0,null,"Consol, EFA/DfE Acquisition Note",null,null,null,20,null,null,null,null,null,{"$f":"COUNTA(G321:AV321)","v":0}]
[null,"Cash at bank and in hand",null,null,{"$f":"SUM(G322:AV322)","v":0},null,null,null,null,null,null,null,null,null,null,null,null,null,null,null,null,null,null,null,null,null,null,null,null,null,null,null,null,null,null,null,null,null,null,null,null,null,null,null,null,null,null,null,null,{"$f":"'Fin.Return - BS'!$I$45","v":-750000},0,null,"Consol, EFA/DfE Acquisition Note",null,null,null,20,null,null,null,null,null,{"$f":"COUNTA(G322:AV322)","v":0}]
[]
[null,"Total assets",null,null,{"$f":"SUM(E309:E323)","v":0},null,{"$f":"SUM(G309:G323)","v":0},0,0,0,0,0,0,0,0,0,0,0,0,0,0,0,0,0,{"$f":"SUM(Y309:Y323)","v":0},0,0,0,0,0,0,0,0,0,0,0,0,0,0,0,0,0,0,0,0,0,0,0]
[null,"Creditors less than one year"]
[null,null,"Bank overdrafts",null,{"$f":"SUM(G326:AV326)","v":0},null,null,null,null,null,null,null,null,null,null,null,null,null,null,null,null,null,null,null,null,null,null,null,null,null,null,null,null,null,null,null,null,null,null,null,null,null,null,null,null,null,null,null,null,0,750000,null,"Consol, EFA/DfE Acquisition Note",null,null,null,20,null,null,null,null,null,{"$f":"COUNTA(G326:AV326)","v":0}]
[null,null,"Loans",null,0,null,null,null,null,null,null,null,null,null,null,null,null,null,null,null,null,null,null,null,null,null,null,null,null,null,null,null,null,null,null,null,null,null,null,null,null,null,null,null,null,null,null,null,null,{"$f":"AX326","v":0},750000,null,"Consol, EFA/DfE Acquisition Note",null,null,null,20,null,null,null,null,null,0]
[null,null,"Trade creditors",null,0,null,null,null,null,null,null,null,null,null,null,null,null,null,null,null,null,null,null,null,null,null,null,null,null,null,null,null,null,null,null,null,null,null,null,null,null,null,null,null,null,null,null,null,null,{"$f":"AX327","v":0},750000,null,"Consol, EFA/DfE Acquisition Note",null,null,null,20,null,null,null,null,null,0]
[null,null,"Other taxes and social security",null,0,null,null,null,null,null,null,null,null,null,null,null,null,null,null,null,null,null,null,null,null,null,null,null,null,null,null,null,null,null,null,null,null,null,null,null,null,null,null,null,null,null,null,null,null,{"$f":"AX328","v":0},750000,null,"Consol, EFA/DfE Acquisition Note",null,null,null,20,null,null,null,null,null,0]
[null,null,"Finance leases",null,0,null,null,null,null,null,null,null,null,null,null,null,null,null,null,null,null,null,null,null,null,null,null,null,null,null,null,null,null,null,null,null,null,null,null,null,null,null,null,null,null,null,null,null,null,{"$f":"AX329","v":0},750000,null,"Consol, EFA/DfE Acquisition Note",null,null,null,20,null,null,null,null,null,0]
[null,null,"VAT",null,0,null,null,null,null,null,null,null,null,null,null,null,null,null,null,null,null,null,null,null,null,null,null,null,null,null,null,null,null,null,null,null,null,null,null,null,null,null,null,null,null,null,null,null,null,{"$f":"AX330","v":0},750000,null,"Consol, EFA/DfE Acquisition Note",null,null,null,20,null,null,null,null,null,0]
[null,null,"Other creditors",null,0,null,null,null,null,null,null,null,null,null,null,null,null,null,null,null,null,null,null,null,null,null,null,null,null,null,null,null,null,null,null,null,null,null,null,null,null,null,null,null,null,null,null,null,null,{"$f":"AX331","v":0},750000,null,"Consol, EFA/DfE Acquisition Note",null,null,null,20,null,null,null,null,null,0]
[null,null,"Accruals and deferred income",null,0,null,null,null,null,null,null,null,null,null,null,null,null,null,null,null,null,null,null,null,null,null,null,null,null,null,null,null,null,null,null,null,null,null,null,null,null,null,null,null,null,null,null,null,null,{"$f":"AX332","v":0},750000,null,"Consol, EFA/DfE Acquisition Note",null,null,null,20,null,null,null,null,null,0]
[null,"Creditors more than one year"]
[null,null,"Loans",null,{"$f":"SUM(G335:AV335)","v":0},null,null,null,null,null,null,null,null,null,null,null,null,null,null,null,null,null,null,null,null,null,null,null,null,null,null,null,null,null,null,null,null,null,null,null,null,null,null,null,null,null,null,null,null,{"$f":"AX333","v":0},{"$f":"AY333","v":750000},null,"Consol, EFA/DfE Acquisition Note",null,null,null,20,null,null,null,null,null,{"$f":"COUNTA(G335:AV335)","v":0}]
[null,null,"Finance leases",null,{"$f":"SUM(G336:AV336)","v":0},null,null,null,null,null,null,null,null,null,null,null,null,null,null,null,null,null,null,null,null,null,null,null,null,null,null,null,null,null,null,null,null,null,null,null,null,null,null,null,null,null,null,null,null,{"$f":"AX335","v":0},750000,null,"Consol, EFA/DfE Acquisition Note",null,null,null,20,null,null,null,null,null,{"$f":"COUNTA(G336:AV336)","v":0}]
[null,null,"Other creditors",null,{"$f":"SUM(G337:AV337)","v":0},null,null,null,null,null,null,null,null,null,null,null,null,null,null,null,null,null,null,null,null,null,null,null,null,null,null,null,null,null,null,null,null,null,null,null,null,null,null,null,null,null,null,null,null,{"$f":"AX336","v":0},750000,null,"Consol, EFA/DfE Acquisition Note",null,null,null,20,null,null,null,null,null,{"$f":"COUNTA(G337:AV337)","v":0}]
[null,"Provisions for liabilities and charges",null,null,{"$f":"SUM(G338:AV338)","v":0},null,null,null,null,null,null,null,null,null,null,null,null,null,null,null,null,null,null,null,null,null,null,null,null,null,null,null,null,null,null,null,null,null,null,null,null,null,null,null,null,null,null,null,null,{"$f":"AX337","v":0},750000,null,"Consol, EFA/DfE Acquisition Note",null,null,null,20,null,null,null,null,null,{"$f":"COUNTA(G338:AV338)","v":0}]
[]
[null,"Total assets less trading liabilities",null,null,{"$f":"SUM(E324:E339)","v":0},null,{"$f":"SUM(G324:G339)","v":0},0,0,0,0,0,0,0,0,0,0,0,0,0,0,0,0,0,{"$f":"SUM(Y324:Y339)","v":0},0,0,0,0,0,0,0,0,0,0,0,0,0,0,0,0,0,0,0,0,0,0,0]
[null,"Other balances"]
[null,null,"Pensions scheme surplus/(deficit)",{"$f":"IF(E342<>SUM(G342:Z342),\"Error - imbalance with the pensions note\",\"\")","v":""},{"$f":"+(E217)","v":0},null,null,null,null,null,null,null,null,null,null,null,null,null,null,null,null,null,null,null,null,null,null,null,null,null,null,null,null,null,null,null,null,null,null,null,null,null,null,null,null,null,null,null,null,-750000,750000,null,"Consol, EFA/DfE Acquisition Note",null,null,null,20,null,null,null,null,null,{"$f":"COUNTA(G342:AV342)","v":0}]
[]
[null,"Identifiable net assets/(liabilities)",null,null,{"$f":"SUM(E340:E343)","v":0},null,{"$f":"SUM(G340:G343)","v":0},0,0,0,0,0,0,0,0,0,0,0,0,0,0,0,0,0,{"$f":"SUM(Y340:Y343)","v":0},0,0,0,0,0,0,0,0,0,0,0,0,0,0,0,0,0,0,0,0,0,0,0]
[null,null,null,{"$f":"IF(E344<>(-'Fin.Return - SOFA'!E32+'Fin.Return - SOFA'!E55),\"Error - net assets/liabilities transferring out do not equal SoFA\",\"\")","v":""},null,null,{"$f":"IF(AND(G308=\"\",COUNT(G310:G342)-2>0),\"Error - name of trust not provided in row 308\",\"\")","v":""},{"$f":"IF(AND(H308=\"\",COUNT(H310:H342)-2>0),\"Error - name of trust not provided in row 308\",\"\")","v":""},"","","","","","","","","","","","","","","","",{"$f":"IF(AND(Y308=\"\",COUNT(Y310:Y342)-2>0),\"Error - name of trust not provided in row 308\",\"\")","v":""},"","","","","","","","","","","","","","","","","","","","","","",""]
[]
["CAPITAL COMMITMENTS",null,null,null,{"$f":"'Fin.Return - BS'!E16","v":2016},null,"Lower limit","Upper limit "]
[null,null,null,null,"£000",null,"£000","£000"]
[null,"Contracted for, but not recognised in the financial statements"]
[null,null,"Tangible fixed assets","Notes",null,null,0,{"$f":"'Fin.Return - BS'!$J$19","v":750000},null,null,null,null,null,null,null,null,null,null,null,null,null,null,null,null,null,null,null,null,null,null,null,null,null,null,null,null,null,null,null,null,null,null,null,null,null,null,null,null,null,null,null,null,"Consol, EFA/DfE Capital Commitments Note",null,null,null,1,null,null,null,null,null,{"$f":"COUNTA(E350:E350)","v":0}]
[null,null,"Intangible assets",null,null,null,{"$f":"G350","v":0},{"$f":"H350","v":750000},null,null,null,null,null,null,null,null,null,null,null,null,null,null,null,null,null,null,null,null,null,null,null,null,null,null,null,null,null,null,null,null,null,null,null,null,null,null,null,null,null,null,null,null,"Consol, EFA/DfE Capital Commitments Note",null,null,null,1,null,null,null,null,null,{"$f":"COUNTA(E351:E351)","v":0}]
[]
[null,"Please analyse capital commitments between tangible and intangible asset classes.",null,null,null,null,{"$f":"G351","v":0},{"$f":"H351","v":750000},null,null,null,null,null,null,null,null,null,null,null,null,null,null,null,null,null,null,null,null,null,null,null,null,null,null,null,null,null,null,null,null,null,null,null,null,null,null,null,null,null,null,null,null,null,null,1,null,null,null,null,null,{"$f":"COUNTA(E353:E353)","v":0}]
[null,null,null,null,{"$f":"IF(E353<>SUM(E350:E351),\"Error - column does not cast\",\"\")","v":""}]
[]
["FINANCIAL COMMITMENTS (Operating leases)",null,null,null,"Total",null,"Land","Buildings","Other",null,null,null,null,null,"Lower limit","Upper limit "]
[null,null,null,null,"£000",null,"£000","£000","£000",null,null,null,null,null,"£000","£000"]
[null,"SORP (FRS102) disclosure"]
[null,null,"Within one year","Notes",{"$f":"SUM(G359:M359)","v":0},null,null,null,null,null,null,null,null,null,0,{"$f":"'Fin.Return - BS'!$J$19","v":750000},null,null,null,null,null,null,null,null,null,null,null,null,null,null,null,null,null,null,null,null,null,null,null,null,null,null,null,null,null,null,null,null,null,null,null,null,"Consol, EFA/DfE Lease Commitments Note",null,null,null,null,3,null,null,null,null,null,{"$f":"COUNTA(G359:I359)","v":0}]
[null,null,"Within two and five years inclusive",null,{"$f":"SUM(G360:M360)","v":0},null,null,null,null,null,null,null,null,null,{"$f":"O359","v":0},{"$f":"P359","v":750000},null,null,null,null,null,null,null,null,null,null,null,null,null,null,null,null,null,null,null,null,null,null,null,null,null,null,null,null,null,null,null,null,null,null,null,null,"Consol, EFA/DfE Lease Commitments Note",null,null,null,null,3,null,null,null,null,null,{"$f":"COUNTA(G360:I360)","v":0}]
[null,null,"Over five years",null,{"$f":"SUM(G361:M361)","v":0},null,null,null,null,null,null,null,null,null,{"$f":"O360","v":0},{"$f":"P360","v":750000},null,null,null,null,null,null,null,null,null,null,null,null,null,null,null,null,null,null,null,null,null,null,null,null,null,null,null,null,null,null,null,null,null,null,null,null,"Consol, EFA/DfE Lease Commitments Note",null,null,null,null,3,null,null,null,null,null,{"$f":"COUNTA(G361:I361)","v":0}]
[]
[null,null,null,null,{"$f":"SUM(E359:E362)","v":0},null,{"$f":"SUM(G359:G362)","v":0},{"$f":"SUM(H359:H362)","v":0},{"$f":"SUM(I359:I362)","v":0}]
[null,null,"Recovered through sub-letting",null,{"$f":"SUM(G364:I364)","v":0},null,null,null,null,null,null,null,null,null,{"$f":"-P361","v":-750000},{"$f":"P363","v":0},null,null,null,null,null,null,null,null,null,null,null,null,null,null,null,null,null,null,null,null,null,null,null,null,null,null,null,null,null,null,null,null,null,null,null,null,null,null,null,null,null,3,null,null,null,null,null,{"$f":"COUNTA(G364:I364)","v":0}]
[]
[null,null,null,null,{"$f":"SUM(E363:E365)","v":0},null,{"$f":"SUM(G363:G365)","v":0},{"$f":"SUM(H363:H365)","v":0},{"$f":"SUM(I363:I365)","v":0}]
[null,null,null,null,{"$f":"IF(E366<>E389,\"Error\",\"\")","v":""},null,{"$f":"IF(G363<>SUM(E374:E376),\"Error\",\"\")","v":""},{"$f":"IF(H363<>SUM(E378:E380),\"Error\",\"\")","v":""},{"$f":"IF(I363<>SUM(E382:E384),\"Error\",\"\")","v":""}]
[null,null,null,null,{"$f":"IF(E367=\"Error\",\"does not equal counterparty analysis\",\"\")","v":""},null,{"$f":"IF(G367=\"Error\",\"does not equal counterparty analysis\",\"\")","v":""},"",""]
[]
[null,"Counterparty analysis - SORP (FRS102) disclosure",null,"Notes"]
[null,null,null,null,"Total",null,"DfE Group\n(see below)","Other Government","Other"]
[null,null,null,null,"£000",null,"£000","£000","£000"]
[null,"Land"]
[null,null,"Within one year",{"$f":"IF(E374<>G359,\"Error - within note\",\"\")","v":""},{"$f":"SUM(G374:M374)","v":0},null,{"$f":"E397","v":0},null,null,null,null,null,null,null,{"$f":"O373","v":0},{"$f":"P359","v":750000},null,null,null,null,null,null,null,null,null,null,null,null,null,null,null,null,null,null,null,null,null,null,null,null,null,null,null,null,null,null,null,null,null,null,null,null,"Consol, EFA/DfE Lease Commitments Note",null,null,null,null,2,1,null,null,null,null,{"$f":"COUNTA(H374:I374)","v":0},{"$f":"COUNTIF(G374:G374,\"<>0\")","v":0}]
[null,null,"Within two and five years inclusive",{"$f":"IF(E375<>G360,\"Error - within note\",\"\")","v":""},{"$f":"SUM(G375:M375)","v":0},null,{"$f":"E398","v":0},null,null,null,null,null,null,null,{"$f":"O374","v":0},{"$f":"P374","v":750000},null,null,null,null,null,null,null,null,null,null,null,null,null,null,null,null,null,null,null,null,null,null,null,null,null,null,null,null,null,null,null,null,null,null,null,null,"Consol, EFA/DfE Lease Commitments Note",null,null,null,null,2,1,null,null,null,null,{"$f":"COUNTA(H375:I375)","v":0},{"$f":"COUNTIF(G375:G375,\"<>0\")","v":0}]
[null,null,"Over five years",{"$f":"IF(E376<>G361,\"Error - within note\",\"\")","v":""},{"$f":"SUM(G376:M376)","v":0},null,{"$f":"E399","v":0},null,null,null,null,null,null,null,{"$f":"O375","v":0},{"$f":"P375","v":750000},null,null,null,null,null,null,null,null,null,null,null,null,null,null,null,null,null,null,null,null,null,null,null,null,null,null,null,null,null,null,null,null,null,null,null,null,"Consol, EFA/DfE Lease Commitments Note",null,null,null,null,2,1,null,null,null,null,{"$f":"COUNTA(H376:I376)","v":0},{"$f":"COUNTIF(G376:G376,\"<>0\")","v":0}]
[null,"Buildings"]
[null,null,"Within one year",{"$f":"IF(E378<>H359,\"Error - within note\",\"\")","v":""},{"$f":"SUM(G378:M378)","v":0},null,{"$f":"E401","v":0},null,null,null,null,null,null,null,{"$f":"O374","v":0},{"$f":"P374","v":750000},null,null,null,null,null,null,null,null,null,null,null,null,null,null,null,null,null,null,null,null,null,null,null,null,null,null,null,null,null,null,null,null,null,null,null,null,"Consol, EFA/DfE Lease Commitments Note",null,null,null,null,2,1,null,null,null,null,{"$f":"COUNTA(H378:I378)","v":0},{"$f":"COUNTIF(G378:G378,\"<>0\")","v":0}]
[null,null,"Within two and five years inclusive",{"$f":"IF(E379<>H360,\"Error - within note\",\"\")","v":""},{"$f":"SUM(G379:M379)","v":0},null,{"$f":"E402","v":0},null,null,null,null,null,null,null,{"$f":"O378","v":0},{"$f":"P378","v":750000},null,null,null,null,null,null,null,null,null,null,null,null,null,null,null,null,null,null,null,null,null,null,null,null,null,null,null,null,null,null,null,null,null,null,null,null,"Consol, EFA/DfE Lease Commitments Note",null,null,null,null,2,1,null,null,null,null,{"$f":"COUNTA(H379:I379)","v":0},{"$f":"COUNTIF(G379:G379,\"<>0\")","v":0}]
[null,null,"Over five years",{"$f":"IF(E380<>H361,\"Error - within note\",\"\")","v":""},{"$f":"SUM(G380:M380)","v":0},null,{"$f":"E403","v":0},null,null,null,null,null,null,null,{"$f":"O379","v":0},{"$f":"P379","v":750000},null,null,null,null,null,null,null,null,null,null,null,null,null,null,null,null,null,null,null,null,null,null,null,null,null,null,null,null,null,null,null,null,null,null,null,null,"Consol, EFA/DfE Lease Commitments Note",null,null,null,null,2,1,null,null,null,null,{"$f":"COUNTA(H380:I380)","v":0},{"$f":"COUNTIF(G380:G380,\"<>0\")","v":0}]
[null,"Other"]
[null,null,"Within one year",{"$f":"IF(E382<>I359,\"Error - within note\",\"\")","v":""},{"$f":"SUM(G382:M382)","v":0},null,{"$f":"E405","v":0},null,null,null,null,null,null,null,{"$f":"O378","v":0},{"$f":"P378","v":750000},null,null,null,null,null,null,null,null,null,null,null,null,null,null,null,null,null,null,null,null,null,null,null,null,null,null,null,null,null,null,null,null,null,null,null,null,"Consol, EFA/DfE Lease Commitments Note",null,null,null,null,2,1,null,null,null,null,{"$f":"COUNTA(H382:I382)","v":0},{"$f":"COUNTIF(G382:G382,\"<>0\")","v":0}]
[null,null,"Within two and five years inclusive",{"$f":"IF(E383<>I360,\"Error - within note\",\"\")","v":""},{"$f":"SUM(G383:M383)","v":0},null,{"$f":"E406","v":0},null,null,null,null,null,null,null,{"$f":"O382","v":0},{"$f":"P382","v":750000},null,null,null,null,null,null,null,null,null,null,null,null,null,null,null,null,null,null,null,null,null,null,null,null,null,null,null,null,null,null,null,null,null,null,null,null,"Consol, EFA/DfE Lease Commitments Note",null,null,null,null,2,1,null,null,null,null,{"$f":"COUNTA(H383:I383)","v":0},{"$f":"COUNTIF(G383:G383,\"<>0\")","v":0}]
[null,null,"Over five years",{"$f":"IF(E384<>I361,\"Error - within note\",\"\")","v":""},{"$f":"SUM(G384:M384)","v":0},null,{"$f":"E407","v":0},null,null,null,null,null,null,null,{"$f":"O383","v":0},{"$f":"P383","v":750000},null,null,null,null,null,null,null,null,null,null,null,null,null,null,null,null,null,null,null,null,null,null,null,null,null,null,null,null,null,null,null,null,null,null,null,null,"Consol, EFA/DfE Lease Commitments Note",null,null,null,null,2,1,null,null,null,null,{"$f":"COUNTA(H384:I384)","v":0},{"$f":"COUNTIF(G384:G384,\"<>0\")","v":0}]
[]
[null,null,null,null,{"$f":"SUM(E374:E385)","v":0},null,{"$f":"SUM(G374:G385)","v":0},{"$f":"SUM(H374:H385)","v":0},{"$f":"SUM(I374:I385)","v":0}]
[null,null,"Recovered through sub-letting",{"$f":"IF(E387<>E364,\"Error - within note\",\"\")","v":""},{"$f":"SUM(G387:M387)","v":0},null,{"$f":"E410","v":0},null,null,null,null,null,null,null,{"$f":"-P384","v":-750000},0,null,null,null,null,null,null,null,null,null,null,null,null,null,null,null,null,null,null,null,null,null,null,null,null,null,null,null,null,null,null,null,null,null,null,null,null,"Consol, EFA/DfE Lease Commitments Note",null,null,null,null,2,1,null,null,null,null,{"$f":"COUNTA(H387:I387)","v":0},{"$f":"COUNTIF(G387:G387,\"<>0\")","v":0}]
[]
[null,null,null,null,{"$f":"SUM(E386:E388)","v":0},null,{"$f":"SUM(G386:G388)","v":0},{"$f":"SUM(H386:H388)","v":0},{"$f":"SUM(I386:I388)","v":0}]
[]
[null,"If sub-let to an academic body please identify here:",null,"Name here",null,null,null,null,null,null,null,null,null,null,null,null,null,null,null,null,null,null,null,null,null,null,null,null,null,null,null,null,null,null,null,null,null,null,null,null,null,null,null,null,null,null,null,null,null,null,null,null,"Consol, EFA/DfE Lease Commitments Note"]
[]
[null,"DfE Group Analysis (for cells G1108 to G1121)"]
[null,null,null,null,"Total",null,"DfE","EFA","NCTL","STA","EHRC","OCC"]
[null,null,null,null,"£000",null,"£000","£000","£000","£000","£000","£000"]
[null,"Land"]
[null,null,"Within one year",null,{"$f":"SUM(G397:L397)","v":0},null,null,null,null,null,null,null,null,null,{"$f":"O396","v":0},{"$f":"P382","v":750000},null,null,null,null,null,null,null,null,null,null,null,null,null,null,null,null,null,null,null,null,null,null,null,null,null,null,null,null,null,null,null,null,null,null,null,null,"Consol, EFA/DfE Lease Commitments Note",null,null,null,null,7,null,null,null,null,null,{"$f":"COUNTA(G397:M397)","v":0}]
[null,null,"Within two and five years inclusive",null,{"$f":"SUM(G398:L398)","v":0},null,null,null,null,null,null,null,null,null,{"$f":"O397","v":0},{"$f":"P397","v":750000},null,null,null,null,null,null,null,null,null,null,null,null,null,null,null,null,null,null,null,null,null,null,null,null,null,null,null,null,null,null,null,null,null,null,null,null,"Consol, EFA/DfE Lease Commitments Note",null,null,null,null,7,null,null,null,null,null,{"$f":"COUNTA(G398:M398)","v":0}]
[null,null,"Over five years",null,{"$f":"SUM(G399:L399)","v":0},null,null,null,null,null,null,null,null,null,{"$f":"O398","v":0},{"$f":"P398","v":750000},null,null,null,null,null,null,null,null,null,null,null,null,null,null,null,null,null,null,null,null,null,null,null,null,null,null,null,null,null,null,null,null,null,null,null,null,"Consol, EFA/DfE Lease Commitments Note",null,null,null,null,7,null,null,null,null,null,{"$f":"COUNTA(G399:M399)","v":0}]
[null,"Buildings"]
[null,null,"Within one year",null,{"$f":"SUM(G401:L401)","v":0},null,null,null,null,null,null,null,null,null,{"$f":"O397","v":0},{"$f":"P397","v":750000},null,null,null,null,null,null,null,null,null,null,null,null,null,null,null,null,null,null,null,null,null,null,null,null,null,null,null,null,null,null,null,null,null,null,null,null,"Consol, EFA/DfE Lease Commitments Note",null,null,null,null,7,null,null,null,null,null,{"$f":"COUNTA(G401:M401)","v":0}]
[null,null,"Within two and five years inclusive",null,{"$f":"SUM(G402:L402)","v":0},null,null,null,null,null,null,null,null,null,{"$f":"O401","v":0},{"$f":"P401","v":750000},null,null,null,null,null,null,null,null,null,null,null,null,null,null,null,null,null,null,null,null,null,null,null,null,null,null,null,null,null,null,null,null,null,null,null,null,"Consol, EFA/DfE Lease Commitments Note",null,null,null,null,7,null,null,null,null,null,{"$f":"COUNTA(G402:M402)","v":0}]
[null,null,"Over five years",null,{"$f":"SUM(G403:L403)","v":0},null,null,null,null,null,null,null,null,null,{"$f":"O402","v":0},{"$f":"P402","v":750000},null,null,null,null,null,null,null,null,null,null,null,null,null,null,null,null,null,null,null,null,null,null,null,null,null,null,null,null,null,null,null,null,null,null,null,null,"Consol, EFA/DfE Lease Commitments Note",null,null,null,null,7,null,null,null,null,null,{"$f":"COUNTA(G403:M403)","v":0}]
[null,"Other"]
[null,null,"Within one year",null,{"$f":"SUM(G405:L405)","v":0},null,null,null,null,null,null,null,null,null,{"$f":"O401","v":0},{"$f":"P401","v":750000},null,null,null,null,null,null,null,null,null,null,null,null,null,null,null,null,null,null,null,null,null,null,null,null,null,null,null,null,null,null,null,null,null,null,null,null,"Consol, EFA/DfE Lease Commitments Note",null,null,null,null,7,null,null,null,null,null,{"$f":"COUNTA(G405:M405)","v":0}]
[null,null,"Within two and five years inclusive",null,{"$f":"SUM(G406:L406)","v":0},null,null,null,null,null,null,null,null,null,{"$f":"O405","v":0},{"$f":"P405","v":750000},null,null,null,null,null,null,null,null,null,null,null,null,null,null,null,null,null,null,null,null,null,null,null,null,null,null,null,null,null,null,null,null,null,null,null,null,"Consol, EFA/DfE Lease Commitments Note",null,null,null,null,7,null,null,null,null,null,{"$f":"COUNTA(G406:M406)","v":0}]
[null,null,"Over five years",null,{"$f":"SUM(G407:L407)","v":0},null,null,null,null,null,null,null,null,null,{"$f":"O406","v":0},{"$f":"P406","v":750000},null,null,null,null,null,null,null,null,null,null,null,null,null,null,null,null,null,null,null,null,null,null,null,null,null,null,null,null,null,null,null,null,null,null,null,null,"Consol, EFA/DfE Lease Commitments Note",null,null,null,null,7,null,null,null,null,null,{"$f":"COUNTA(G407:M407)","v":0}]
[]
[null,null,null,null,{"$f":"SUM(E397:E408)","v":0},null,{"$f":"SUM(G397:G408)","v":0},0,0,0,0,0]
[null,null,"Recovered through sub-letting",null,{"$f":"SUM(G410:L410)","v":0},null,null,null,null,null,null,null,null,null,{"$f":"-P407","v":-750000},0,null,null,null,null,null,null,null,null,null,null,null,null,null,null,null,null,null,null,null,null,null,null,null,null,null,null,null,null,null,null,null,null,null,null,null,null,"Consol, EFA/DfE Lease Commitments Note",null,null,null,null,7,null,null,null,null,null,{"$f":"COUNTA(G410:M410)","v":0}]
[]
[null,null,null,null,{"$f":"SUM(E409:E411)","v":0},null,{"$f":"SUM(G409:G411)","v":0},0,0,0,0,0]
[]
[]
["FINANCIAL COMMITMENTS (Finance leases)",null,null,null,"Total",null,"Land","Buildings","Other",null,null,null,null,null,"Lower limit","Upper limit "]
[null,null,null,null,"£000",null,"£000","£000","£000"]
[null,"SORP (FRS102) disclosure"]
[null,null,"Within one year","Notes",{"$f":"SUM(G418:M418)","v":0},null,null,null,null,null,null,null,null,null,-750000,750000,null,null,null,null,null,null,null,null,null,null,null,null,null,null,null,null,null,null,null,null,null,null,null,null,null,null,null,null,null,null,null,null,null,null,null,null,"Consol, EFA/DfE Lease Commitments Note",null,null,null,null,3,null,null,null,null,null,{"$f":"COUNTA(G418:I418)","v":0}]
[null,null,"Within two and five years inclusive",null,{"$f":"SUM(G419:M419)","v":0},null,null,null,null,null,null,null,null,null,{"$f":"O418","v":-750000},{"$f":"P418","v":750000},null,null,null,null,null,null,null,null,null,null,null,null,null,null,null,null,null,null,null,null,null,null,null,null,null,null,null,null,null,null,null,null,null,null,null,null,"Consol, EFA/DfE Lease Commitments Note",null,null,null,null,3,null,null,null,null,null,{"$f":"COUNTA(G419:I419)","v":0}]
[null,null,"Over five years",null,{"$f":"SUM(G420:M420)","v":0},null,null,null,null,null,null,null,null,null,{"$f":"O419","v":-750000},{"$f":"P419","v":750000},null,null,null,null,null,null,null,null,null,null,null,null,null,null,null,null,null,null,null,null,null,null,null,null,null,null,null,null,null,null,null,null,null,null,null,null,"Consol, EFA/DfE Lease Commitments Note",null,null,null,null,3,null,null,null,null,null,{"$f":"COUNTA(G420:I420)","v":0}]
[]
[null,null,null,null,{"$f":"SUM(E418:E421)","v":0},null,{"$f":"SUM(G418:G421)","v":0},{"$f":"SUM(H418:H421)","v":0},{"$f":"SUM(I418:I421)","v":0}]
[null,null,"Recovered through sub-letting",null,{"$f":"SUM(G423:M423)","v":0},null,null,null,null,null,null,null,null,null,{"$f":"-P420","v":-750000},0,null,null,null,null,null,null,null,null,null,null,null,null,null,null,null,null,null,null,null,null,null,null,null,null,null,null,null,null,null,null,null,null,null,null,null,null,null,null,null,null,null,3,null,null,null,null,null,{"$f":"COUNTA(G423:I423)","v":0}]
[]
[null,null,null,null,{"$f":"SUM(E422:E424)","v":0},null,{"$f":"SUM(G422:G424)","v":0},{"$f":"SUM(H422:H424)","v":0},{"$f":"SUM(I422:I424)","v":0}]
[null,null,null,null,{"$f":"IF(E425<>E448,\"Error\",\"\")","v":""},null,{"$f":"IF(G422<>SUM(E433:E435),\"Error\",\"\")","v":""},{"$f":"IF(H422<>SUM(E437:E439),\"Error\",\"\")","v":""},{"$f":"IF(I422<>SUM(E441:E443),\"Error\",\"\")","v":""}]
[null,null,null,null,{"$f":"IF(E426=\"Error\",\"does not equal counterparty analysis\",\"\")","v":""},null,{"$f":"IF(G426=\"Error\",\"does not equal counterparty analysis\",\"\")","v":""},"",""]
[]
[null,"Counterparty analysis - SORP (FRS102)",null,"Notes"]
[null,null,null,null,"Total",null,"DfE Group\n(see below)","Other Government","Other"]
[null,null,null,null,"£000",null,"£000","£000","£000"]
[null,"Land"]
[null,null,"Within one year",{"$f":"IF(E433<>G418,\"Error - within note\",\"\")","v":""},{"$f":"SUM(G433:M433)","v":0},null,{"$f":"E456","v":0},null,null,null,null,null,null,null,0,{"$f":"P418","v":750000},null,null,null,null,null,null,null,null,null,null,null,null,null,null,null,null,null,null,null,null,null,null,null,null,null,null,null,null,null,null,null,null,null,null,null,null,"Consol, EFA/DfE Lease Commitments Note",null,null,null,null,2,1,null,null,null,null,{"$f":"COUNTA(H433:I433)","v":0},{"$f":"COUNTIF(G433:G433,\"<>0\")","v":0}]
[null,null,"Within two and five years inclusive",{"$f":"IF(E434<>G419,\"Error - within note\",\"\")","v":""},{"$f":"SUM(G434:M434)","v":0},null,{"$f":"E457","v":0},null,null,null,null,null,null,null,{"$f":"O433","v":0},{"$f":"P433","v":750000},null,null,null,null,null,null,null,null,null,null,null,null,null,null,null,null,null,null,null,null,null,null,null,null,null,null,null,null,null,null,null,null,null,null,null,null,"Consol, EFA/DfE Lease Commitments Note",null,null,null,null,2,1,null,null,null,null,{"$f":"COUNTA(H434:I434)","v":0},{"$f":"COUNTIF(G434:G434,\"<>0\")","v":0}]
[null,null,"Over five years",{"$f":"IF(E435<>G420,\"Error - within note\",\"\")","v":""},{"$f":"SUM(G435:M435)","v":0},null,{"$f":"E458","v":0},null,null,null,null,null,null,null,{"$f":"O434","v":0},{"$f":"P434","v":750000},null,null,null,null,null,null,null,null,null,null,null,null,null,null,null,null,null,null,null,null,null,null,null,null,null,null,null,null,null,null,null,null,null,null,null,null,"Consol, EFA/DfE Lease Commitments Note",null,null,null,null,2,1,null,null,null,null,{"$f":"COUNTA(H435:I435)","v":0},{"$f":"COUNTIF(G435:G435,\"<>0\")","v":0}]
[null,"Buildings"]
[null,null,"Within one year",{"$f":"IF(E437<>H418,\"Error - within note\",\"\")","v":""},{"$f":"SUM(G437:M437)","v":0},null,{"$f":"E460","v":0},null,null,null,null,null,null,null,{"$f":"O435","v":0},{"$f":"P435","v":750000},null,null,null,null,null,null,null,null,null,null,null,null,null,null,null,null,null,null,null,null,null,null,null,null,null,null,null,null,null,null,null,null,null,null,null,null,"Consol, EFA/DfE Lease Commitments Note",null,null,null,null,2,1,null,null,null,null,{"$f":"COUNTA(H437:I437)","v":0},{"$f":"COUNTIF(G437:G437,\"<>0\")","v":0}]
[null,null,"Within two and five years inclusive",{"$f":"IF(E438<>H419,\"Error - within note\",\"\")","v":""},{"$f":"SUM(G438:M438)","v":0},null,{"$f":"E461","v":0},null,null,null,null,null,null,null,{"$f":"O437","v":0},{"$f":"P437","v":750000},null,null,null,null,null,null,null,null,null,null,null,null,null,null,null,null,null,null,null,null,null,null,null,null,null,null,null,null,null,null,null,null,null,null,null,null,"Consol, EFA/DfE Lease Commitments Note",null,null,null,null,2,1,null,null,null,null,{"$f":"COUNTA(H438:I438)","v":0},{"$f":"COUNTIF(G438:G438,\"<>0\")","v":0}]
[null,null,"Over five years",{"$f":"IF(E439<>H420,\"Error - within note\",\"\")","v":""},{"$f":"SUM(G439:M439)","v":0},null,{"$f":"E462","v":0},null,null,null,null,null,null,null,{"$f":"O438","v":0},{"$f":"P438","v":750000},null,null,null,null,null,null,null,null,null,null,null,null,null,null,null,null,null,null,null,null,null,null,null,null,null,null,null,null,null,null,null,null,null,null,null,null,"Consol, EFA/DfE Lease Commitments Note",null,null,null,null,2,1,null,null,null,null,{"$f":"COUNTA(H439:I439)","v":0},{"$f":"COUNTIF(G439:G439,\"<>0\")","v":0}]
[null,"Other"]
[null,null,"Within one year",{"$f":"IF(E441<>I418,\"Error - within note\",\"\")","v":""},{"$f":"SUM(G441:M441)","v":0},null,{"$f":"E464","v":0},null,null,null,null,null,null,null,{"$f":"O439","v":0},{"$f":"P439","v":750000},null,null,null,null,null,null,null,null,null,null,null,null,null,null,null,null,null,null,null,null,null,null,null,null,null,null,null,null,null,null,null,null,null,null,null,null,"Consol, EFA/DfE Lease Commitments Note",null,null,null,null,2,1,null,null,null,null,{"$f":"COUNTA(H441:I441)","v":0},{"$f":"COUNTIF(G441:G441,\"<>0\")","v":0}]
[null,null,"Within two and five years inclusive",{"$f":"IF(E442<>I419,\"Error - within note\",\"\")","v":""},{"$f":"SUM(G442:M442)","v":0},null,{"$f":"E465","v":0},null,null,null,null,null,null,null,{"$f":"O441","v":0},{"$f":"P441","v":750000},null,null,null,null,null,null,null,null,null,null,null,null,null,null,null,null,null,null,null,null,null,null,null,null,null,null,null,null,null,null,null,null,null,null,null,null,"Consol, EFA/DfE Lease Commitments Note",null,null,null,null,2,1,null,null,null,null,{"$f":"COUNTA(H442:I442)","v":0},{"$f":"COUNTIF(G442:G442,\"<>0\")","v":0}]
[null,null,"Over five years",{"$f":"IF(E443<>I420,\"Error - within note\",\"\")","v":""},{"$f":"SUM(G443:M443)","v":0},null,{"$f":"E466","v":0},null,null,null,null,null,null,null,{"$f":"O442","v":0},{"$f":"P442","v":750000},null,null,null,null,null,null,null,null,null,null,null,null,null,null,null,null,null,null,null,null,null,null,null,null,null,null,null,null,null,null,null,null,null,null,null,null,"Consol, EFA/DfE Lease Commitments Note",null,null,null,null,2,1,null,null,null,null,{"$f":"COUNTA(H443:I443)","v":0},{"$f":"COUNTIF(G443:G443,\"<>0\")","v":0}]
[]
[null,null,null,null,{"$f":"SUM(E433:E444)","v":0},null,{"$f":"SUM(G433:G444)","v":0},{"$f":"SUM(H433:H444)","v":0},{"$f":"SUM(I433:I444)","v":0}]
[null,null,"Recovered through sub-letting",{"$f":"IF(E446<>E423,\"Error - within note\",\"\")","v":""},{"$f":"SUM(G446:M446)","v":0},null,{"$f":"E469","v":0},null,null,null,null,null,null,null,{"$f":"-P443","v":-750000},{"$f":"P444","v":0},null,null,null,null,null,null,null,null,null,null,null,null,null,null,null,null,null,null,null,null,null,null,null,null,null,null,null,null,null,null,null,null,null,null,null,null,"Consol, EFA/DfE Lease Commitments Note",null,null,null,null,2,1,null,null,null,null,{"$f":"COUNTA(H446:I446)","v":0},{"$f":"COUNTIF(G446:G446,\"<>0\")","v":0}]
[]
[null,null,null,null,{"$f":"SUM(E445:E447)","v":0},null,{"$f":"SUM(G445:G447)","v":0},{"$f":"SUM(H445:H447)","v":0},{"$f":"SUM(I445:I447)","v":0}]
[]
[null,"If sub-let to an academic body please identify here:",null,"Name here",null,null,null,null,null,null,null,null,null,null,null,null,null,null,null,null,null,null,null,null,null,null,null,null,null,null,null,null,null,null,null,null,null,null,null,null,null,null,null,null,null,null,null,null,null,null,null,null,"Consol, EFA/DfE Lease Commitments Note"]
[]
[null,"DfE Group Analysis (for cells G1186 to G1199)"]
[null,null,null,null,"Total",null,"DfE","EFA","NCTL","STA","EHRC","OCC"]
[null,null,null,null,"£000",null,"£000","£000","£000","£000","£000","£000"]
[null,"Land"]
[null,null,"Within one year",null,{"$f":"SUM(G456:L456)","v":0},null,null,null,null,null,null,null,null,null,0,{"$f":"P433","v":750000},null,null,null,null,null,null,null,null,null,null,null,null,null,null,null,null,null,null,null,null,null,null,null,null,null,null,null,null,null,null,null,null,null,null,null,null,"Consol, EFA/DfE Lease Commitments Note",null,null,null,null,7,null,null,null,null,null,{"$f":"COUNTA(G456:M456)","v":0}]
[null,null,"Within two and five years inclusive",null,{"$f":"SUM(G457:L457)","v":0},null,null,null,null,null,null,null,null,null,{"$f":"O456","v":0},{"$f":"P456","v":750000},null,null,null,null,null,null,null,null,null,null,null,null,null,null,null,null,null,null,null,null,null,null,null,null,null,null,null,null,null,null,null,null,null,null,null,null,"Consol, EFA/DfE Lease Commitments Note",null,null,null,null,7,null,null,null,null,null,{"$f":"COUNTA(G457:M457)","v":0}]
[null,null,"Over five years",null,{"$f":"SUM(G458:L458)","v":0},null,null,null,null,null,null,null,null,null,{"$f":"O457","v":0},{"$f":"P457","v":750000},null,null,null,null,null,null,null,null,null,null,null,null,null,null,null,null,null,null,null,null,null,null,null,null,null,null,null,null,null,null,null,null,null,null,null,null,"Consol, EFA/DfE Lease Commitments Note",null,null,null,null,7,null,null,null,null,null,{"$f":"COUNTA(G458:M458)","v":0}]
[null,"Buildings"]
[null,null,"Within one year",null,{"$f":"SUM(G460:L460)","v":0},null,null,null,null,null,null,null,null,null,{"$f":"O458","v":0},{"$f":"P458","v":750000},null,null,null,null,null,null,null,null,null,null,null,null,null,null,null,null,null,null,null,null,null,null,null,null,null,null,null,null,null,null,null,null,null,null,null,null,"Consol, EFA/DfE Lease Commitments Note",null,null,null,null,7,null,null,null,null,null,{"$f":"COUNTA(G460:M460)","v":0}]
[null,null,"Within two and five years inclusive",null,{"$f":"SUM(G461:L461)","v":0},null,null,null,null,null,null,null,null,null,{"$f":"O460","v":0},{"$f":"P460","v":750000},null,null,null,null,null,null,null,null,null,null,null,null,null,null,null,null,null,null,null,null,null,null,null,null,null,null,null,null,null,null,null,null,null,null,null,null,"Consol, EFA/DfE Lease Commitments Note",null,null,null,null,7,null,null,null,null,null,{"$f":"COUNTA(G461:M461)","v":0}]
[null,null,"Over five years",null,{"$f":"SUM(G462:L462)","v":0},null,null,null,null,null,null,null,null,null,{"$f":"O461","v":0},{"$f":"P461","v":750000},null,null,null,null,null,null,null,null,null,null,null,null,null,null,null,null,null,null,null,null,null,null,null,null,null,null,null,null,null,null,null,null,null,null,null,null,"Consol, EFA/DfE Lease Commitments Note",null,null,null,null,7,null,null,null,null,null,{"$f":"COUNTA(G462:M462)","v":0}]
[null,"Other"]
[null,null,"Within one year",null,{"$f":"SUM(G464:L464)","v":0},null,null,null,null,null,null,null,null,null,{"$f":"O462","v":0},{"$f":"P462","v":750000},null,null,null,null,null,null,null,null,null,null,null,null,null,null,null,null,null,null,null,null,null,null,null,null,null,null,null,null,null,null,null,null,null,null,null,null,"Consol, EFA/DfE Lease Commitments Note",null,null,null,null,7,null,null,null,null,null,{"$f":"COUNTA(G464:M464)","v":0}]
[null,null,"Within two and five years inclusive",null,{"$f":"SUM(G465:L465)","v":0},null,null,null,null,null,null,null,null,null,{"$f":"O464","v":0},{"$f":"P464","v":750000},null,null,null,null,null,null,null,null,null,null,null,null,null,null,null,null,null,null,null,null,null,null,null,null,null,null,null,null,null,null,null,null,null,null,null,null,"Consol, EFA/DfE Lease Commitments Note",null,null,null,null,7,null,null,null,null,null,{"$f":"COUNTA(G465:M465)","v":0}]
[null,null,"Over five years",null,{"$f":"SUM(G466:L466)","v":0},null,null,null,null,null,null,null,null,null,{"$f":"O465","v":0},{"$f":"P465","v":750000},null,null,null,null,null,null,null,null,null,null,null,null,null,null,null,null,null,null,null,null,null,null,null,null,null,null,null,null,null,null,null,null,null,null,null,null,"Consol, EFA/DfE Lease Commitments Note",null,null,null,null,7,null,null,null,null,null,{"$f":"COUNTA(G466:M466)","v":0}]
[]
[null,null,null,null,{"$f":"SUM(E456:E467)","v":0},null,{"$f":"SUM(G456:G467)","v":0},0,0,0,0,0]
[null,"Recovered through sub-letting",null,null,{"$f":"SUM(G469:L469)","v":0},null,null,null,null,null,null,null,null,null,{"$f":"-P466","v":-750000},{"$f":"P467","v":0},null,null,null,null,null,null,null,null,null,null,null,null,null,null,null,null,null,null,null,null,null,null,null,null,null,null,null,null,null,null,null,null,null,null,null,null,"Consol, EFA/DfE Lease Commitments Note",null,null,null,null,7,null,null,null,null,null,{"$f":"COUNTA(G469:M469)","v":0}]
[]
[null,null,null,null,{"$f":"SUM(E468:E470)","v":0},null,{"$f":"SUM(G468:G470)","v":0},0,0,0,0,0]
[]
[]
["COMMITMENTS UNDER PFI AND OTHER SERVICE \nCONCESSION ARRANGEMENTS",null,null,null,"Total",null,"DfE Group\n(see below)","Other Government","Other",null,null,null,null,null,"Lower limit","Upper limit "]
[null,null,null,null,"£000",null,"£000","£000","£000",null,null,null,null,null,"£000","£000"]
[null,"Not later than one year",null,null,{"$f":"SUM(G476:M476)","v":0},null,{"$f":"E485","v":0},null,null,null,null,null,null,null,0,{"$f":"'Fin.Return - SOFA'!$M$19","v":750000},null,null,null,null,null,null,null,null,null,null,null,null,null,null,null,null,null,null,null,null,null,null,null,null,null,null,null,null,null,null,null,null,null,null,null,null,"Consol, EFA/DfE Note",null,null,null,2,null,1,null,null,null,{"$f":"COUNTA(H476:I476)","v":0},null,{"$f":"COUNTIF(G476:G476,\"<>0\")","v":0}]
[null,"Later than one year but not later than 5 years",null,null,{"$f":"SUM(G477:M477)","v":0},null,{"$f":"E486","v":0},null,null,null,null,null,null,null,{"$f":"O476","v":0},{"$f":"P476","v":750000},null,null,null,null,null,null,null,null,null,null,null,null,null,null,null,null,null,null,null,null,null,null,null,null,null,null,null,null,null,null,null,null,null,null,null,null,"Consol, EFA/DfE Note",null,null,null,2,null,1,null,null,null,{"$f":"COUNTA(H477:I477)","v":0},null,{"$f":"COUNTIF(G477:G477,\"<>0\")","v":0}]
[null,"Later than 5 years",null,null,{"$f":"SUM(G478:M478)","v":0},null,{"$f":"E487","v":0},null,null,null,null,null,null,null,{"$f":"O477","v":0},{"$f":"P477","v":750000},null,null,null,null,null,null,null,null,null,null,null,null,null,null,null,null,null,null,null,null,null,null,null,null,null,null,null,null,null,null,null,null,null,null,null,null,"Consol, EFA/DfE Note",null,null,null,2,null,1,null,null,null,{"$f":"COUNTA(H478:I478)","v":0},null,{"$f":"COUNTIF(G478:G478,\"<>0\")","v":0}]
[]
[null,null,null,null,{"$f":"SUM(E476:E479)","v":0},null,{"$f":"SUM(G476:G479)","v":0},{"$f":"SUM(H476:H479)","v":0},{"$f":"SUM(I476:I479)","v":0}]
[]
[null,"DfE Group Analysis"]
[null,null,null,null,"Total",null,"DfE","EFA","NCTL","STA","EHRC","OCC"]
[null,null,null,null,"£000",null,"£000","£000","£000","£000","£000","£000"]
[null,"Not later than one year",null,null,{"$f":"SUM(G485:L485)","v":0},null,null,null,null,null,null,null,null,null,{"$f":"O478","v":0},{"$f":"P478","v":750000},null,null,null,null,null,null,null,null,null,null,null,null,null,null,null,null,null,null,null,null,null,null,null,null,null,null,null,null,null,null,null,null,null,null,null,null,"Consol, EFA/DfE Note",null,null,null,7,null,null,null,null,null,{"$f":"COUNTA(G485:M485)","v":0}]
[null,"Later than one year but not later than 5 years",null,null,{"$f":"SUM(G486:L486)","v":0},null,null,null,null,null,null,null,null,null,{"$f":"O479","v":0},{"$f":"P485","v":750000},null,null,null,null,null,null,null,null,null,null,null,null,null,null,null,null,null,null,null,null,null,null,null,null,null,null,null,null,null,null,null,null,null,null,null,null,"Consol, EFA/DfE Note",null,null,null,7,null,null,null,null,null,{"$f":"COUNTA(G486:M486)","v":0}]
[null,"Later than 5 years",null,null,{"$f":"SUM(G487:L487)","v":0},null,null,null,null,null,null,null,null,null,{"$f":"O480","v":0},{"$f":"P486","v":750000},null,null,null,null,null,null,null,null,null,null,null,null,null,null,null,null,null,null,null,null,null,null,null,null,null,null,null,null,null,null,null,null,null,null,null,null,"Consol, EFA/DfE Note",null,null,null,7,null,null,null,null,null,{"$f":"COUNTA(G487:M487)","v":0}]
[]
[null,null,null,null,{"$f":"SUM(E485:E488)","v":0},null,{"$f":"SUM(G485:G488)","v":0},0,0,0,0,0]
[]
[]
["OTHER FINANCIAL COMMITMENTS ",null,null,null,"Total",null,"DfE Group\n(see below)","Other Government","Other",null,null,null,null,null,"Lower limit","Upper limit "]
[null,null,null,null,"£000",null,"£000","£000","£000",null,null,null,null,null,"£000","£000"]
[null,"Non-cancellable contracts"]
[null,null,"Not later than one year",null,{"$f":"SUM(G495:M495)","v":0},null,{"$f":"E505","v":0},null,null,null,null,null,null,null,0,{"$f":"'Fin.Return - SOFA'!$M$19","v":750000},null,null,null,null,null,null,null,null,null,null,null,null,null,null,null,null,null,null,null,null,null,null,null,null,null,null,null,null,null,null,null,null,null,null,null,null,"Consol, EFA/DfE Note",null,null,null,2,null,1,null,null,null,{"$f":"COUNTA(H495:I495)","v":0},null,{"$f":"COUNTIF(G495:G495,\"<>0\")","v":0}]
[null,null,"Later than one year but not later than 5 years",null,{"$f":"SUM(G496:M496)","v":0},null,{"$f":"E506","v":0},null,null,null,null,null,null,null,{"$f":"O495","v":0},{"$f":"P495","v":750000},null,null,null,null,null,null,null,null,null,null,null,null,null,null,null,null,null,null,null,null,null,null,null,null,null,null,null,null,null,null,null,null,null,null,null,null,"Consol, EFA/DfE Note",null,null,null,2,null,1,null,null,null,{"$f":"COUNTA(H496:I496)","v":0},null,{"$f":"COUNTIF(G496:G496,\"<>0\")","v":0}]
[null,null,"Later than 5 years",null,{"$f":"SUM(G497:M497)","v":0},null,{"$f":"E507","v":0},null,null,null,null,null,null,null,{"$f":"O496","v":0},{"$f":"P496","v":750000},null,null,null,null,null,null,null,null,null,null,null,null,null,null,null,null,null,null,null,null,null,null,null,null,null,null,null,null,null,null,null,null,null,null,null,null,"Consol, EFA/DfE Note",null,null,null,2,null,1,null,null,null,{"$f":"COUNTA(H497:I497)","v":0},null,{"$f":"COUNTIF(G497:G497,\"<>0\")","v":0}]
[]
[null,null,null,null,{"$f":"SUM(E495:E498)","v":0},null,{"$f":"SUM(G495:G498)","v":0},{"$f":"SUM(H495:H498)","v":0},{"$f":"SUM(I495:I498)","v":0}]
[]
[null,"DfE Group Analysis"]
[null,null,null,null,"Total",null,"DfE","EFA","NCTL","STA","EHRC","OCC"]
[null,null,null,null,"£000",null,"£000","£000","£000","£000","£000","£000"]
[null,"Non-cancellable contracts"]
[null,null,"Not later than one year",null,{"$f":"SUM(G505:L505)","v":0},null,null,null,null,null,null,null,null,null,{"$f":"O497","v":0},{"$f":"P497","v":750000},null,null,null,null,null,null,null,null,null,null,null,null,null,null,null,null,null,null,null,null,null,null,null,null,null,null,null,null,null,null,null,null,null,null,null,null,"Consol, EFA/DfE Note",null,null,null,7,null,null,null,null,null,{"$f":"COUNTA(G505:M505)","v":0}]
[null,null,"Later than one year but not later than 5 years",null,{"$f":"SUM(G506:L506)","v":0},null,null,null,null,null,null,null,null,null,{"$f":"O499","v":0},{"$f":"P505","v":750000},null,null,null,null,null,null,null,null,null,null,null,null,null,null,null,null,null,null,null,null,null,null,null,null,null,null,null,null,null,null,null,null,null,null,null,null,"Consol, EFA/DfE Note",null,null,null,7,null,null,null,null,null,{"$f":"COUNTA(G506:M506)","v":0}]
[null,null,"Later than 5 years",null,{"$f":"SUM(G507:L507)","v":0},null,null,null,null,null,null,null,null,null,{"$f":"O500","v":0},{"$f":"P506","v":750000},null,null,null,null,null,null,null,null,null,null,null,null,null,null,null,null,null,null,null,null,null,null,null,null,null,null,null,null,null,null,null,null,null,null,null,null,"Consol, EFA/DfE Note",null,null,null,7,null,null,null,null,null,{"$f":"COUNTA(G507:M507)","v":0}]
[]
[null,null,null,null,{"$f":"SUM(E505:E508)","v":0},null,{"$f":"SUM(G505:G508)","v":0},0,0,0,0,0]
[]
[]
["CONTINGENT LIABILITIES",null,null,null,"At start of period",null,"Increase in period","Liabilities crystallised in period","Obligation expired in period",null,"At end of period",null,"Lower limit","Upper limit "]
[null,null,null,null,"£000",null,"£000","£000","£000",null,"£000",null,"£000","£000"]
[null,"Contingent liability 1",null,"Notes",0,null,null,null,null,null,{"$f":"SUM(E514:J514)","v":0},null,0,{"$f":"'Fin.Return - SOFA'!$M$19","v":750000},null,null,null,null,null,null,null,null,null,null,null,null,null,null,null,null,null,null,null,null,null,null,null,null,null,null,null,null,null,null,null,null,null,null,null,null,null,null,"Consol, EFA/DfE Note",null,null,null,4,null,null,null,null,null,{"$f":"COUNTA(E514:I514)","v":1}]
[null,"Contingent liability 2",null,null,0,null,null,null,null,null,{"$f":"SUM(E515:J515)","v":0},null,{"$f":"M514","v":0},{"$f":"N514","v":750000},null,null,null,null,null,null,null,null,null,null,null,null,null,null,null,null,null,null,null,null,null,null,null,null,null,null,null,null,null,null,null,null,null,null,null,null,null,null,"Consol, EFA/DfE Note",null,null,null,4,null,null,null,null,null,{"$f":"COUNTA(E515:I515)","v":1}]
[null,"Contingent liability 3",null,null,0,null,null,null,null,null,{"$f":"SUM(E516:J516)","v":0},null,{"$f":"M515","v":0},{"$f":"N515","v":750000},null,null,null,null,null,null,null,null,null,null,null,null,null,null,null,null,null,null,null,null,null,null,null,null,null,null,null,null,null,null,null,null,null,null,null,null,null,null,"Consol, EFA/DfE Note",null,null,null,4,null,null,null,null,null,{"$f":"COUNTA(E516:I516)","v":1}]
[]
[null,"Please provide details of all contingent liabilities",null,null,{"$f":"SUM(E514:E517)","v":0},null,{"$f":"SUM(G514:G517)","v":0},{"$f":"SUM(H514:H517)","v":0},{"$f":"SUM(I514:I517)","v":0},null,{"$f":"SUM(K514:K517)","v":0}]
[]
[]
["RELATED PARTY TRANSACTIONS - TRUSTEES REMUNERATION",null,null,null,null,null,null,null,null,null,null,null,"Lower limit","Upper limit "]
[]
[null,null,"Trustees (including principal/CEO where relevant)",null,null,null,"Number paid as staff","Number paid as  trustees","Total"]
[null,null,"Payments Received"]
[null,null,"£0-£60,000",null,null,null,null,null,{"$f":"+SUM(G525:H525)","v":0},null,null,null,0,100]
[null,null,"£60,001-£70,000",null,null,null,null,null,0,null,null,null,0,100]
[null,null,"£70,001-£80,000",null,null,null,null,null,0,null,null,null,0,100]
[null,null,"£80,001-£90,000",null,null,null,null,null,0,null,null,null,0,100]
[null,null,"£90,001-£100,000",null,null,null,null,null,0,null,null,null,0,100]
[null,null,"£100,001-£110,000",null,null,null,null,null,0,null,null,null,0,100]
[null,null,"£110,001-£120,000",null,null,null,null,null,0,null,null,null,0,100]
[null,null,"£120,001-£130,000",null,null,null,null,null,0,null,null,null,0,100]
[null,null,"£130,001-£140,000",null,null,null,null,null,0,null,null,null,0,100]
[null,null,"£140,001-£150,000",null,null,null,null,null,0,null,null,null,0,100]
[null,null,"£150,000+",null,null,null,null,null,0,null,null,null,0,100]
[]
[null,null,"Total",null,null,null,{"$f":"+SUM(G525:G535)","v":0},{"$f":"+SUM(H525:H535)","v":0},0]
[]
[null,"Please confirm whether the Trust had any trustee remuneration transactions in the period?",null,null,null,null,null,null,null,null,{"$f":"IF(OR(AND(I539=\"No transactions\",SUM(I497:L537)=0),AND(I539=\"Transactions\",SUM(I497:L537)<>0)),\"\",\"Error - within note\")","v":"Error - within note"}]
[]
[]
["RELATED PARTY TRANSACTIONS - TRUST (OTHER THAN TRUSTEE REMUNERATION)",null,null,null,null,null,null,null,null,null,null,null,"Lower limit","Upper limit "]
[null,null,null,null,null,null,null,null,null,null,null,null,"£000","£000"]
[]
[null,null,"Value of payments TO related party",null,null,null,"Number of related parties"]
[null,null,"£0-£50,000",null,null,null,null,null,null,null,null,null,0,100]
[null,null,"£50,001-£100,000",null,null,null,null,null,null,null,null,null,0,100]
[null,null,"£100,001-£150,000",null,null,null,null,null,null,null,null,null,0,100]
[null,null,"£150,001-£200,000",null,null,null,null,null,null,null,null,null,0,100]
[null,null,"£200,001-£250,000",null,null,null,null,null,null,null,null,null,0,100]
[null,null,"£250,001+",null,null,null,null,null,null,null,null,null,0,100]
[]
[null,null,"Value of payments FROM related party",null,null,null,"Number of related parties"]
[null,null,"£0-£50,000",null,null,null,null,null,null,null,null,null,0,100]
[null,null,"£50,001-£100,000",null,null,null,null,null,null,null,null,null,0,100]
[null,null,"£100,001-£150,000",null,null,null,null,null,null,null,null,null,0,100]
[null,null,"£150,001-£200,000",null,null,null,null,null,null,null,null,null,0,100]
[null,null,"£200,001-£250,000",null,null,null,null,null,null,null,null,null,0,100]
[null,null,"£250,001+",null,null,null,null,null,null,null,null,null,0,100]
[]
[null,"Please confirm whether the Trust had any related party transactions other than trustee remuneration in the period?",null,null,null,null,null,null,{"$f":"IF(OR(AND(G561=\"No transactions\",SUM(G519:J559)=0),AND(G561=\"Transactions\",SUM(G519:J559)<>0)),\"\",\"Error - within note\")","v":"Error - within note"}]
[null,null,null,null,null,null,null,null,null,null,null,null,null,null,null,null,null,null,null,null,null,null,null,null,null,null,null,null,null,null,null,null,null,null,null,null,null,null,null,null,null,null,null,null,null,null,null,null,null,null,null,null,"Consol, DfE Related Party Note",null,null,null,3,null,null,null,null,null,{"$f":"COUNTA(E568:H568)","v":0}]
[null,null,null,null,null,null,null,null,null,null,null,null,null,null,null,null,null,null,null,null,null,null,null,null,null,null,null,null,null,null,null,null,null,null,null,null,null,null,null,null,null,null,null,null,null,null,null,null,null,null,null,null,"Consol, DfE Related Party Note",null,null,null,3,null,null,null,null,null,0]
[null,null,null,null,null,null,null,null,null,null,null,null,null,null,null,null,null,null,null,null,null,null,null,null,null,null,null,null,null,null,null,null,null,null,null,null,null,null,null,null,null,null,null,null,null,null,null,null,null,null,null,null,"Consol, DfE Related Party Note",null,null,null,3,null,null,null,null,null,0]
["RELATED PARTY TRANSACTIONS - DfE",null,null,null,null,null,null,null,null,null,null,null,null,null,null,null,null,null,null,null,null,null,null,null,null,null,null,null,null,null,null,null,null,null,null,null,null,null,null,null,null,null,null,null,null,null,null,null,null,null,null,null,"Consol, DfE Related Party Note",null,null,null,3,null,null,null,null,null,0]
[null,"Name of Body/Person",null,null,"Closing balance\nDr/(Cr)",null,"Payments","Receipts",null,"Lower limit","Upper limit ",null,null,null,null,null,null,null,null,null,null,null,null,null,null,null,null,null,null,null,null,null,null,null,null,null,null,null,null,null,null,null,null,null,null,null,null,null,null,null,null,null,"Consol, DfE Related Party Note",null,null,null,3,null,null,null,null,null,0]
[null,null,null,null,"£000",null,"£000","£000",null,"£000","£000",null,null,null,null,null,null,null,null,null,null,null,null,null,null,null,null,null,null,null,null,null,null,null,null,null,null,null,null,null,null,null,null,null,null,null,null,null,null,null,null,null,"Consol, DfE Related Party Note",null,null,null,3,null,null,null,null,null,0]
[null,"Accenture",null,null,null,null,null,null,null,{"$f":"'Fin.Return - SOFA'!$L$19","v":-750000},{"$f":"'Fin.Return - SOFA'!$M$19","v":750000},null,null,null,null,null,null,null,null,null,null,null,null,null,null,null,null,null,null,null,null,null,null,null,null,null,null,null,null,null,null,null,null,null,null,null,null,null,null,null,null,null,"Consol, DfE Related Party Note",null,null,null,3,null,null,null,null,null,0]
[null,"Access Inspiration",null,null,null,null,null,null,null,{"$f":"J568","v":-750000},{"$f":"K568","v":750000},null,null,null,null,null,null,null,null,null,null,null,null,null,null,null,null,null,null,null,null,null,null,null,null,null,null,null,null,null,null,null,null,null,null,null,null,null,null,null,null,null,"Consol, DfE Related Party Note",null,null,null,3,null,null,null,null,null,0]
[null,"Accident and Credit Services Ltd",null,null,null,null,null,null,null,-750000,750000,null,null,null,null,null,null,null,null,null,null,null,null,null,null,null,null,null,null,null,null,null,null,null,null,null,null,null,null,null,null,null,null,null,null,null,null,null,null,null,null,null,"Consol, DfE Related Party Note",null,null,null,3,null,null,null,null,null,0]
[null,"ARK Schools",null,null,null,null,null,null,null,-750000,750000,null,null,null,null,null,null,null,null,null,null,null,null,null,null,null,null,null,null,null,null,null,null,null,null,null,null,null,null,null,null,null,null,null,null,null,null,null,null,null,null,null,"Consol, DfE Related Party Note",null,null,null,3,null,null,null,null,null,0]
[null,"Bishop Thomas Grant School, Streatham",null,null,null,null,null,null,null,-750000,750000,null,null,null,null,null,null,null,null,null,null,null,null,null,null,null,null,null,null,null,null,null,null,null,null,null,null,null,null,null,null,null,null,null,null,null,null,null,null,null,null,null,"Consol, DfE Related Party Note",null,null,null,3,null,null,null,null,null,0]
[null,"Brilliant Club, The",null,null,null,null,null,null,null,-750000,750000,null,null,null,null,null,null,null,null,null,null,null,null,null,null,null,null,null,null,null,null,null,null,null,null,null,null,null,null,null,null,null,null,null,null,null,null,null,null,null,null,null,"Consol, DfE Related Party Note",null,null,null,3,null,null,null,null,null,0]
[null,"British Friends of Jaffa Institute, The",null,null,null,null,null,null,null,-750000,750000,null,null,null,null,null,null,null,null,null,null,null,null,null,null,null,null,null,null,null,null,null,null,null,null,null,null,null,null,null,null,null,null,null,null,null,null,null,null,null,null,null,null,null,null,null,3,null,null,null,null,null,0]
[null,"Burnley Group Partnership",null,null,null,null,null,null,null,-750000,750000,null,null,null,null,null,null,null,null,null,null,null,null,null,null,null,null,null,null,null,null,null,null,null,null,null,null,null,null,null,null,null,null,null,null,null,null,null,null,null,null,null,null,null,null,null,3,null,null,null,null,null,0]
[null,"Bushey Academy, The",null,null,null,null,null,null,null,-750000,750000,null,null,null,null,null,null,null,null,null,null,null,null,null,null,null,null,null,null,null,null,null,null,null,null,null,null,null,null,null,null,null,null,null,null,null,null,null,null,null,null,null,null,null,null,null,3,null,null,null,null,null,0]
[null,"CentreForum",null,null,null,null,null,null,null,-750000,750000,null,null,null,null,null,null,null,null,null,null,null,null,null,null,null,null,null,null,null,null,null,null,null,null,null,null,null,null,null,null,null,null,null,null,null,null,null,null,null,null,null,"Consol, DfE Related Party Note",null,null,null,3,null,null,null,null,null,0]
[null,"Challenge Partners",null,null,null,null,null,null,null,-750000,750000,null,null,null,null,null,null,null,null,null,null,null,null,null,null,null,null,null,null,null,null,null,null,null,null,null,null,null,null,null,null,null,null,null,null,null,null,null,null,null,null,null,"Consol, DfE Related Party Note",null,null,null,3,null,null,null,null,null,0]
[null,"CML Ltd",null,null,null,null,null,null,null,-750000,750000,null,null,null,null,null,null,null,null,null,null,null,null,null,null,null,null,null,null,null,null,null,null,null,null,null,null,null,null,null,null,null,null,null,null,null,null,null,null,null,null,null,"Consol, DfE Related Party Note",null,null,null,3,null,null,null,null,null,0]
[null,"Corpus Christi College, Oxford",null,null,null,null,null,null,null,-750000,750000,null,null,null,null,null,null,null,null,null,null,null,null,null,null,null,null,null,null,null,null,null,null,null,null,null,null,null,null,null,null,null,null,null,null,null,null,null,null,null,null,null,"Consol, DfE Related Party Note",null,null,null,3,null,null,null,null,null,0]
[null,"Corpus Christi Primary School, Brixton",null,null,null,null,null,null,null,-750000,750000,null,null,null,null,null,null,null,null,null,null,null,null,null,null,null,null,null,null,null,null,null,null,null,null,null,null,null,null,null,null,null,null,null,null,null,null,null,null,null,null,null,"Consol, DfE Related Party Note",null,null,null,3,null,null,null,null,null,0]
[null,"Elstree UTC, The",null,null,null,null,null,null,null,-750000,750000,null,null,null,null,null,null,null,null,null,null,null,null,null,null,null,null,null,null,null,null,null,null,null,null,null,null,null,null,null,null,null,null,null,null,null,null,null,null,null,null,null,"Consol, DfE Related Party Note",null,null,null,3,null,null,null,null,null,0]
[null,"Eureka Charitable Schools",null,null,null,null,null,null,null,-750000,750000,null,null,null,null,null,null,null,null,null,null,null,null,null,null,null,null,null,null,null,null,null,null,null,null,null,null,null,null,null,null,null,null,null,null,null,null,null,null,null,null,null,"Consol, DfE Related Party Note",null,null,null,3,null,null,null,null,null,0]
[null,"Flovate Ltd",null,null,null,null,null,null,null,-750000,750000,null,null,null,null,null,null,null,null,null,null,null,null,null,null,null,null,null,null,null,null,null,null,null,null,null,null,null,null,null,null,null,null,null,null,null,null,null,null,null,null,null,"Consol, DfE Related Party Note",null,null,null,3,null,null,null,null,null,0]
[null,"Future Leaders",null,null,null,null,null,null,null,-750000,750000,null,null,null,null,null,null,null,null,null,null,null,null,null,null,null,null,null,null,null,null,null,null,null,null,null,null,null,null,null,null,null,null,null,null,null,null,null,null,null,null,null,"Consol, DfE Related Party Note",null,null,null,3,null,null,null,null,null,0]
[null,"Greenhouse",null,null,null,null,null,null,null,-750000,750000,null,null,null,null,null,null,null,null,null,null,null,null,null,null,null,null,null,null,null,null,null,null,null,null,null,null,null,null,null,null,null,null,null,null,null,null,null,null,null,null,null,"Consol, DfE Related Party Note",null,null,null,3,null,null,null,null,null,0]
[null,"Greenwich Free School",null,null,null,null,null,null,null,-750000,750000,null,null,null,null,null,null,null,null,null,null,null,null,null,null,null,null,null,null,null,null,null,null,null,null,null,null,null,null,null,null,null,null,null,null,null,null,null,null,null,null,null,"Consol, DfE Related Party Note",null,null,null,3,null,null,null,null,null,0]
[null,"Grenada School Ltd",null,null,null,null,null,null,null,-750000,750000,null,null,null,null,null,null,null,null,null,null,null,null,null,null,null,null,null,null,null,null,null,null,null,null,null,null,null,null,null,null,null,null,null,null,null,null,null,null,null,null,null,"Consol, DfE Related Party Note",null,null,null,3,null,null,null,null,null,0]
[null,"Harefield Academy, The",null,null,null,null,null,null,null,-750000,750000,null,null,null,null,null,null,null,null,null,null,null,null,null,null,null,null,null,null,null,null,null,null,null,null,null,null,null,null,null,null,null,null,null,null,null,null,null,null,null,null,null,"Consol, DfE Related Party Note",null,null,null,3,null,null,null,null,null,0]
[null,"Hertswood Academy",null,null,null,null,null,null,null,-750000,750000,null,null,null,null,null,null,null,null,null,null,null,null,null,null,null,null,null,null,null,null,null,null,null,null,null,null,null,null,null,null,null,null,null,null,null,null,null,null,null,null,null,"Consol, DfE Related Party Note",null,null,null,3,null,null,null,null,null,0]
[null,"Inspiration Trust",null,null,null,null,null,null,null,-750000,750000,null,null,null,null,null,null,null,null,null,null,null,null,null,null,null,null,null,null,null,null,null,null,null,null,null,null,null,null,null,null,null,null,null,null,null,null,null,null,null,null,null,"Consol, DfE Related Party Note",null,null,null,3,null,null,null,null,null,0]
[null,"Lampton Academy",null,null,null,null,null,null,null,-750000,750000,null,null,null,null,null,null,null,null,null,null,null,null,null,null,null,null,null,null,null,null,null,null,null,null,null,null,null,null,null,null,null,null,null,null,null,null,null,null,null,null,null,"Consol, DfE Related Party Note",null,null,null,3,null,null,null,null,null,0]
[null,"London Leadership Strategy",null,null,null,null,null,null,null,-750000,750000,null,null,null,null,null,null,null,null,null,null,null,null,null,null,null,null,null,null,null,null,null,null,null,null,null,null,null,null,null,null,null,null,null,null,null,null,null,null,null,null,null,"Consol, DfE Related Party Note",null,null,null,3,null,null,null,null,null,0]
[null,"Marshall Wace LLP",null,null,null,null,null,null,null,-750000,750000,null,null,null,null,null,null,null,null,null,null,null,null,null,null,null,null,null,null,null,null,null,null,null,null,null,null,null,null,null,null,null,null,null,null,null,null,null,null,null,null,null,"Consol, DfE Related Party Note",null,null,null,3,null,null,null,null,null,0]
[null,"Meller Educational Trust, The",null,null,null,null,null,null,null,-750000,750000,null,null,null,null,null,null,null,null,null,null,null,null,null,null,null,null,null,null,null,null,null,null,null,null,null,null,null,null,null,null,null,null,null,null,null,null,null,null,null,null,null,"Consol, DfE Related Party Note",null,null,null,3,null,null,null,null,null,0]
[null,"Mount Street Investments",null,null,null,null,null,null,null,-750000,750000,null,null,null,null,null,null,null,null,null,null,null,null,null,null,null,null,null,null,null,null,null,null,null,null,null,null,null,null,null,null,null,null,null,null,null,null,null,null,null,null,null,"Consol, DfE Related Party Note",null,null,null,3,null,null,null,null,null,0]
[null,"National Apprenticeship Amabssadors Network",null,null,null,null,null,null,null,-750000,750000,null,null,null,null,null,null,null,null,null,null,null,null,null,null,null,null,null,null,null,null,null,null,null,null,null,null,null,null,null,null,null,null,null,null,null,null,null,null,null,null,null,"Consol, DfE Related Party Note",null,null,null,3,null,null,null,null,null,0]
[null,"Natural History Museum",null,null,null,null,null,null,null,-750000,750000,null,null,null,null,null,null,null,null,null,null,null,null,null,null,null,null,null,null,null,null,null,null,null,null,null,null,null,null,null,null,null,null,null,null,null,null,null,null,null,null,null,"Consol, DfE Related Party Note",null,null,null,3,null,null,null,null,null,0]
[null,"Policy Exchange",null,null,null,null,null,null,null,-750000,750000,null,null,null,null,null,null,null,null,null,null,null,null,null,null,null,null,null,null,null,null,null,null,null,null,null,null,null,null,null,null,null,null,null,null,null,null,null,null,null,null,null,"Consol, DfE Related Party Note",null,null,null,3,null,null,null,null,null,0]
[null,"Presidents Club",null,null,null,null,null,null,null,-750000,750000,null,null,null,null,null,null,null,null,null,null,null,null,null,null,null,null,null,null,null,null,null,null,null,null,null,null,null,null,null,null,null,null,null,null,null,null,null,null,null,null,null,"Consol, DfE Related Party Note",null,null,null,3,null,null,null,null,null,0]
[null,"RQ Capital Ltd",null,null,null,null,null,null,null,{"$f":"J600","v":-750000},{"$f":"K600","v":750000},null,null,null,null,null,null,null,null,null,null,null,null,null,null,null,null,null,null,null,null,null,null,null,null,null,null,null,null,null,null,null,null,null,null,null,null,null,null,null,null,null,"Consol, DfE Related Party Note",null,null,null,3,null,null,null,null,null,0]
[null,"Sequoia Trust",null,null,null,null,null,null,null,-750000,750000,null,null,null,null,null,null,null,null,null,null,null,null,null,null,null,null,null,null,null,null,null,null,null,null,null,null,null,null,null,null,null,null,null,null,null,null,null,null,null,null,null,"Consol, DfE Related Party Note",null,null,null,3,null,null,null,null,null,0]
[null,"Skillforce",null,null,null,null,null,null,null,-750000,750000,null,null,null,null,null,null,null,null,null,null,null,null,null,null,null,null,null,null,null,null,null,null,null,null,null,null,null,null,null,null,null,null,null,null,null,null,null,null,null,null,null,"Consol, DfE Related Party Note",null,null,null,3,null,null,null,null,null,{"$f":"COUNTA(#REF!)","v":1}]
[null,"Somerton Capital",null,null,null,null,null,null,null,-750000,750000,null,null,null,null,null,null,null,null,null,null,null,null,null,null,null,null,null,null,null,null,null,null,null,null,null,null,null,null,null,null,null,null,null,null,null,null,null,null,null,null,null,"Consol, DfE Related Party Note",null,null,null,3,null,null,null,null,null,{"$f":"COUNTA(#REF!)","v":1}]
[null,"Teaching Leaders",null,null,null,null,null,null,null,-750000,750000,null,null,null,null,null,null,null,null,null,null,null,null,null,null,null,null,null,null,null,null,null,null,null,null,null,null,null,null,null,null,null,null,null,null,null,null,null,null,null,null,null,"Consol, DfE Related Party Note",null,null,null,3,null,null,null,null,null,{"$f":"COUNTA(#REF!)","v":1}]
[null,"Tel Aviv University Trust, The",null,null,null,null,null,null,null,-750000,750000,null,null,null,null,null,null,null,null,null,null,null,null,null,null,null,null,null,null,null,null,null,null,null,null,null,null,null,null,null,null,null,null,null,null,null,null,null,null,null,null,null,"Consol, DfE Related Party Note",null,null,null,3,null,null,null,null,null,{"$f":"COUNTA(#REF!)","v":1}]
[null,"Ursuline Grammar School, Wimbledon",null,null,null,null,null,null,null,-750000,750000,null,null,null,null,null,null,null,null,null,null,null,null,null,null,null,null,null,null,null,null,null,null,null,null,null,null,null,null,null,null,null,null,null,null,null,null,null,null,null,null,null,"Consol, DfE Related Party Note",null,null,null,3,null,null,null,null,null,{"$f":"COUNTA(#REF!)","v":1}]
[null,"Watford UTC, The",null,null,null,null,null,null,null,-750000,750000,null,null,null,null,null,null,null,null,null,null,null,null,null,null,null,null,null,null,null,null,null,null,null,null,null,null,null,null,null,null,null,null,null,null,null,null,null,null,null,null,null,"Consol, DfE Related Party Note",null,null,null,3,null,null,null,null,null,{"$f":"COUNTA(#REF!)","v":1}]
[null,null,null,null,null,null,null,null,null,null,null,null,null,null,null,null,null,null,null,null,null,null,null,null,null,null,null,null,null,null,null,null,null,null,null,null,null,null,null,null,null,null,null,null,null,null,null,null,null,null,null,null,"Consol, EFA/DfE Annual Report",null,null,null,null,4,null,null,null,null,null,{"$f":"COUNTA(I615:J615)+COUNTA(L615:M615)","v":0}]
[null,"Please confirm whether the Trust had transactions in the period with the bodies listed above.",null,null,null,null,{"$f":"IF(OR(AND(E610=\"No transactions\",SUM(E568:H608)=0),AND(E610=\"Transactions\",SUM(E568:H608)<>0)),\"\",\"Error - within note\")","v":"Error - within note"},null,null,null,null,null,null,null,null,null,null,null,null,null,null,null,null,null,null,null,null,null,null,null,null,null,null,null,null,null,null,null,null,null,null,null,null,null,null,null,null,null,null,null,null,null,"Consol, EFA/DfE Annual Report",null,null,null,null,4,null,null,null,null,null,0]
[null,null,null,null,null,null,null,null,null,null,null,null,null,null,null,null,null,null,null,null,null,null,null,null,null,null,null,null,null,null,null,null,null,null,null,null,null,null,null,null,null,null,null,null,null,null,null,null,null,null,null,null,"Consol, EFA/DfE Annual Report",null,null,null,null,4,null,null,null,null,null,0]
[null,null,null,null,null,null,null,null,null,null,null,null,null,null,null,null,null,null,null,null,null,null,null,null,null,null,null,null,null,null,null,null,null,null,null,null,null,null,null,null,null,null,null,null,null,null,null,null,null,null,null,null,"Consol, EFA/DfE Annual Report",null,null,null,null,4,null,null,null,null,null,0]
["EXIT PACKAGES - NON-CIVIL SERVICE SCHEMES",null,null,null,"Total Exit Packages Agreed",null,null,null,"Compulsory Redundancies",null,null,"Other Departures Agreed",null,null,"Lower limit","Upper limit ",null,null,null,null,null,null,null,null,null,null,null,null,null,null,null,null,null,null,null,null,null,null,null,null,null,null,null,null,null,null,null,null,null,null,null,null,"Consol, EFA/DfE Annual Report",null,null,null,null,4,null,null,null,null,null,0]
[null,"Band",null,null,"No. of cases",null,"Value\n£000",null,"No. of cases","Value\n£000",null,"No. of cases","Value\n£000",null,"£000","£000",null,null,null,null,null,null,null,null,null,null,null,null,null,null,null,null,null,null,null,null,null,null,null,null,null,null,null,null,null,null,null,null,null,null,null,null,"Consol, EFA/DfE Annual Report",null,null,null,null,4,null,null,null,null,null,0]
[null,"< £10,000",null,null,{"$f":"I615+L615","v":0},null,{"$f":"J615+M615","v":0},null,null,null,{"$f":"IFERROR(IF(J615/I615>10,\"Error - ave. cost exceeds band\",\"\"),\"\")","v":""},null,null,{"$f":"IFERROR(IF(M615/L615>10,\"Error - ave. cost exceeds band\",\"\"),\"\")","v":""},0,5000,null,null,null,null,null,null,null,null,null,null,null,null,null,null,null,null,null,null,null,null,null,null,null,null,null,null,null,null,null,null,null,null,null,null,null,null,"Consol, EFA/DfE Annual Report",null,null,null,null,4,null,null,null,null,null,0]
[null,"£10,001 - £25,000",null,null,0,null,0,null,null,null,{"$f":"IFERROR(IF(J616/I616>25,\"Error - ave. cost exceeds band\",\"\"),\"\")","v":""},null,null,{"$f":"IFERROR(IF(M616/L616>25,\"Error - ave. cost exceeds band\",\"\"),\"\")","v":""},{"$f":"O615","v":0},{"$f":"P615","v":5000},null,null,null,null,null,null,null,null,null,null,null,null,null,null,null,null,null,null,null,null,null,null,null,null,null,null,null,null,null,null,null,null,null,null,null,null,"Consol, EFA/DfE Annual Report",null,null,null,null,4,null,null,null,null,null,0]
[null,"£25,001 - £50,000",null,null,0,null,0,null,null,null,{"$f":"IFERROR(IF(J617/I617>50,\"Error - ave. cost exceeds band\",\"\"),\"\")","v":""},null,null,{"$f":"IFERROR(IF(M617/L617>50,\"Error - ave. cost exceeds band\",\"\"),\"\")","v":""},0,5000,null,null,null,null,null,null,null,null,null,null,null,null,null,null,null,null,null,null,null,null,null,null,null,null,null,null,null,null,null,null,null,null,null,null,null,null,"Consol, EFA/DfE Annual Report",null,null,null,null,4,null,null,null,null,null,0]
[null,"£50,001 - £100,000",null,null,0,null,0,null,null,null,{"$f":"IFERROR(IF(J618/I618>100,\"Error - ave. cost exceeds band\",\"\"),\"\")","v":""},null,null,{"$f":"IFERROR(IF(M618/L618>100,\"Error - ave. cost exceeds band\",\"\"),\"\")","v":""},0,5000,null,null,null,null,null,null,null,null,null,null,null,null,null,null,null,null,null,null,null,null,null,null,null,null,null,null,null,null,null,null,null,null,null,null,null,null,"Consol, EFA/DfE Annual Report",null,null,null,null,4,null,null,null,null,null,0]
[null,"£100,001 - £150,000",null,null,0,null,0,null,null,null,{"$f":"IFERROR(IF(J619/I619>150,\"Error - ave. cost exceeds band\",\"\"),\"\")","v":""},null,null,{"$f":"IFERROR(IF(M619/L619>150,\"Error - ave. cost exceeds band\",\"\"),\"\")","v":""},0,5000,null,null,null,null,null,null,null,null,null,null,null,null,null,null,null,null,null,null,null,null,null,null,null,null,null,null,null,null,null,null,null,null,null,null,null,null,"Consol, EFA/DfE Annual Report",null,null,null,null,4,null,null,null,null,null,0]
[null,"£150,001 - £200,000",null,null,0,null,0,null,null,null,{"$f":"IFERROR(IF(J620/I620>200,\"Error - ave. cost exceeds band\",\"\"),\"\")","v":""},null,null,{"$f":"IFERROR(IF(M620/L620>200,\"Error - ave. cost exceeds band\",\"\"),\"\")","v":""},0,5000,null,null,null,null,null,null,null,null,null,null,null,null,null,null,null,null,null,null,null,null,null,null,null,null,null,null,null,null,null,null,null,null,null,null,null,null,"Consol, EFA/DfE Annual Report",null,null,null,null,4,null,null,null,null,null,0]
[null,"£200,001 - £250,000",null,null,0,null,0,null,null,null,{"$f":"IFERROR(IF(J621/I621>250,\"Error - ave. cost exceeds band\",\"\"),\"\")","v":""},null,null,{"$f":"IFERROR(IF(M621/L621>250,\"Error - ave. cost exceeds band\",\"\"),\"\")","v":""},0,5000,null,null,null,null,null,null,null,null,null,null,null,null,null,null,null,null,null,null,null,null,null,null,null,null,null,null,null,null,null,null,null,null,null,null,null,null,"Consol, EFA/DfE Annual Report",null,null,null,null,4,null,null,null,null,null,0]
[null,"£250,001 - £300,000",null,null,0,null,0,null,null,null,{"$f":"IFERROR(IF(J622/I622>300,\"Error - ave. cost exceeds band\",\"\"),\"\")","v":""},null,null,{"$f":"IFERROR(IF(M622/L622>300,\"Error - ave. cost exceeds band\",\"\"),\"\")","v":""},0,5000,null,null,null,null,null,null,null,null,null,null,null,null,null,null,null,null,null,null,null,null,null,null,null,null,null,null,null,null,null,null,null,null,null,null,null,null,"Consol, EFA/DfE Annual Report",null,null,null,null,4,null,null,null,null,null,0]
[null,"£300,001 - £350,000",null,null,0,null,0,null,null,null,{"$f":"IFERROR(IF(J623/I623>350,\"Error - ave. cost exceeds band\",\"\"),\"\")","v":""},null,null,{"$f":"IFERROR(IF(M623/L623>350,\"Error - ave. cost exceeds band\",\"\"),\"\")","v":""},0,5000]
[null,"£350,001 - £400,000",null,null,0,null,0,null,null,null,{"$f":"IFERROR(IF(J624/I624>400,\"Error - ave. cost exceeds band\",\"\"),\"\")","v":""},null,null,{"$f":"IFERROR(IF(M624/L624>400,\"Error - ave. cost exceeds band\",\"\"),\"\")","v":""},0,5000,null,{"$f":"AND('Fin.Return - SOFA'!E296>0,G630=0)","v":false}]
[null,"£400,001 - £450,000",null,null,0,null,0,null,null,null,{"$f":"IFERROR(IF(J625/I625>450,\"Error - ave. cost exceeds band\",\"\"),\"\")","v":""},null,null,{"$f":"IFERROR(IF(M625/L625>450,\"Error - ave. cost exceeds band\",\"\"),\"\")","v":""},0,5000]
[null,"£450,001 - £500,000",null,null,0,null,0,null,null,null,{"$f":"IFERROR(IF(J626/I626>500,\"Error - ave. cost exceeds band\",\"\"),\"\")","v":""},null,null,{"$f":"IFERROR(IF(M626/L626>500,\"Error - ave. cost exceeds band\",\"\"),\"\")","v":""},0,5000]
[null,"£500,001 - £550,000",null,null,0,null,0,null,null,null,{"$f":"IFERROR(IF(J627/I627>550,\"Error - ave. cost exceeds band\",\"\"),\"\")","v":""},null,null,{"$f":"IFERROR(IF(M627/L627>550,\"Error - ave. cost exceeds band\",\"\"),\"\")","v":""},0,5000]
[null,"£550,001 - £600,000",null,null,0,null,0,null,null,null,{"$f":"IFERROR(IF(J628/I628>600,\"Error - ave. cost exceeds band\",\"\"),\"\")","v":""},null,null,{"$f":"IFERROR(IF(M628/L628>600,\"Error - ave. cost exceeds band\",\"\"),\"\")","v":""},0,5000]
[null,null,null,null,null,null,null,null,null,null,null,null,null,null,null,null,null,null,null,null,null,null,null,null,null,null,null,null,null,null,null,null,null,null,null,null,null,null,null,null,null,null,null,null,null,null,null,null,null,null,null,null,"Consol, EFA/DfE Special Payments Note",null,null,null,null,3,null,null,null,null,null,{"$f":"COUNTA(E635:H635)","v":0}]
[null,null,null,{"$f":"IF('Fin.Return - SOFA'!E296<>G630,\"Error - Imbalance with Staff note compensation payments\",\"\")","v":""},{"$f":"SUM(E615:E629)","v":0},null,{"$f":"SUM(G615:G629)","v":0},null,{"$f":"SUM(I615:I629)","v":0},{"$f":"SUM(J615:J629)","v":0},null,{"$f":"SUM(L615:L629)","v":0},{"$f":"SUM(M615:M629)","v":0},null,null,null,null,null,null,null,null,null,null,null,null,null,null,null,null,null,null,null,null,null,null,null,null,null,null,null,null,null,null,null,null,null,null,null,null,null,null,null,"Consol, EFA/DfE Special Payments Note",null,null,null,null,3,null,null,null,null,null,0]
[null,null,null,null,null,null,null,null,null,null,null,null,null,null,null,null,null,null,null,null,null,null,null,null,null,null,null,null,null,null,null,null,null,null,null,null,null,null,null,null,null,null,null,null,null,null,null,null,null,null,null,null,"Consol, EFA/DfE Special Payments Note",null,null,null,null,3,null,null,null,null,null,0]
[null,null,null,null,null,null,null,null,null,null,null,null,null,null,null,null,null,null,null,null,null,null,null,null,null,null,null,null,null,null,null,null,null,null,null,null,null,null,null,null,null,null,null,null,null,null,null,null,null,null,null,null,"Consol, EFA/DfE Special Payments Note",null,null,null,null,3,null,null,null,null,null,0]
["LOSSES AND SPECIAL PAYMENTS",null,null,null,{"$f":"'Fin.Return - BS'!E16","v":2016},null,null,null,null,null,"Lower limit","Upper limit ",null,null,null,null,null,null,null,null,null,null,null,null,null,null,null,null,null,null,null,null,null,null,null,null,null,null,null,null,null,null,null,null,null,null,null,null,null,null,null,null,"Consol, EFA/DfE Special Payments Note",null,null,null,null,3,null,null,null,null,null,0]
[null,"Description of loss or special payment",null,null,"£000",null,"Recognition Date","Payment Date","Type",null,"£000","£000",null,null,null,null,null,null,null,null,null,null,null,null,null,null,null,null,null,null,null,null,null,null,null,null,null,null,null,null,null,null,null,null,null,null,null,null,null,null,null,null,"Consol, EFA/DfE Special Payments Note",null,null,null,null,3,null,null,null,null,null,0]
[null,"Payment A",null,{"$f":"IF(AND(E635>0,G635=0),\"Error - no recognition date\",\"\")","v":""},null,null,null,null,null,{"$f":"IF(AND(E635>0,I635=0),\"Error - no type\",\"\")","v":""},0,{"$f":"'Fin.Return - SOFA'!$M$19","v":750000},null,null,null,null,null,null,null,null,null,null,null,null,null,null,null,null,null,null,null,null,null,null,null,null,null,null,null,null,null,null,null,null,null,null,null,null,null,null,null,null,"Consol, EFA/DfE Special Payments Note",null,null,null,null,3,null,null,null,null,null,0]
[null,"Payment B",null,"",null,null,null,null,null,"",{"$f":"K635","v":0},{"$f":"L635","v":750000},null,null,null,null,null,null,null,null,null,null,null,null,null,null,null,null,null,null,null,null,null,null,null,null,null,null,null,null,null,null,null,null,null,null,null,null,null,null,null,null,"Consol, EFA/DfE Special Payments Note",null,null,null,null,3,null,null,null,null,null,0]
[null,"Payment C",null,"",null,null,null,null,null,"",0,750000,null,null,null,null,null,null,null,null,null,null,null,null,null,null,null,null,null,null,null,null,null,null,null,null,null,null,null,null,null,null,null,null,null,null,null,null,null,null,null,null,"Consol, EFA/DfE Special Payments Note",null,null,null,null,3,null,null,null,null,null,0]
[null,"Payment D",null,"",null,null,null,null,null,"",0,750000,null,null,null,null,null,null,null,null,null,null,null,null,null,null,null,null,null,null,null,null,null,null,null,null,null,null,null,null,null,null,null,null,null,null,null,null,null,null,null,null,"Consol, EFA/DfE Special Payments Note",null,null,null,null,3,null,null,null,null,null,0]
[null,"Payment E",null,"",null,null,null,null,null,"",0,750000,null,null,null,null,null,null,null,null,null,null,null,null,null,null,null,null,null,null,null,null,null,null,null,null,null,null,null,null,null,null,null,null,null,null,null,null,null,null,null,null,"Consol, EFA/DfE Special Payments Note",null,null,null,null,3,null,null,null,null,null,0]
[null,"Payment F",null,"",null,null,null,null,null,"",0,750000]
[null,"Payment G",null,"",null,null,null,null,null,"",0,750000]
[null,"Payment H",null,"",null,null,null,null,null,"",0,750000]
[null,"Payment I",null,"",null,null,null,null,null,"",0,750000]
[null,"Payment J",null,"",null,null,null,null,null,"",0,750000]
[null,"Payment K",null,null,null,null,null,null,null,"",0,750000]
[null,"Payment L",null,null,null,null,null,null,null,"",0,750000]
[null,"Payment M",null,null,null,null,null,null,null,"",0,750000]
[null,"Payment N",null,null,null,null,null,null,null,"",0,750000]
[null,"Payment O",null,null,null,null,null,null,null,"",0,750000]
[null,"Payment P",null,null,null,null,null,null,null,"",0,750000]
[null,"Payment Q",null,null,null,null,null,null,null,"",0,750000]
[null,"Payment R",null,null,null,null,null,null,null,"",0,750000]
[null,"Payment S",null,null,null,null,null,null,null,"",0,750000]
[null,"Payment T",null,null,null,null,null,null,null,"",0,750000]
[]
[null,null,null,null,{"$f":"SUM(E635:E655)","v":0},null,null,"No. of cases",{"$f":"COUNTA(E635:E655)","v":0}]
[null,null,null,null,null,null,null,null,"Select from drop-down box"]

{"sheet":"CoPty.Return","index":5,"n_rows":221,"n_cols":62,"rows_kept":221,"cut":false,"hidden":false,"merged":[[18,8,18,10],[2,3,2,4],[16,53,16,56],[16,57,16,60],[17,46,17,47],[2,13,2,14],[17,5,17,11],[17,33,17,40],[17,42,17,44],[17,22,17,26],[17,28,17,31],[17,13,17,20]]}
["Accounts Return March 2016 - Counterparty Return"]
[]
["Trust:",null,{"$f":"'Standing Data'!D3","v":0},"NAVIGATION LINKS"]
[]
["Period end:",null,{"$f":"'Standing Data'!D6","v":"2016-03-31"},"Incoming resources","Resources expended",null,"Cells will populate automatically from elsewhere in the Return"]
[null,null,null,"Assets","Liabilities <1yr"]
["Company Number:",null,{"$f":"'Standing Data'!D14","v":"Type number here"},"Liabilities >1yr","Provisions",null,"Additional to Financial Statements, prepared on a similar basis"]
[null,null,null,"Pension deficit"]
["Academy UPIN:",null,{"$f":"'Fin.Return - SOFA'!C9","v":{"$error":"#N/A"}},null,null,null,"Non-financial cells to be populated by Academy Trust"]
[null,null,"Above details will populate automatically"]
[null,null,null,null,"Errors",null,"Comment cells available to the Academy Trust"]
["COUNTERPARTY RETURN",null,null,null,{"$f":"COUNTIF(A31:A221,\"Error*\")+COUNTIF(E31:E221,\"Error*\")","v":0},"HELP"]
[]
[]
[null,null,"Financial Return caption value",null,null,{"$f":"-'Fin.Return - SOFA'!$E73","v":0},{"$f":"-'Fin.Return - SOFA'!$E86","v":0},{"$f":"-'Fin.Return - SOFA'!$E97","v":0},{"$f":"-('Fin.Return - SOFA'!E126+'Fin.Return - SOFA'!E135+'Fin.Return - SOFA'!E144)","v":0},{"$f":"-('Fin.Return - SOFA'!E150+'Fin.Return - SOFA'!E156)","v":0},{"$f":"-('Fin.Return - SOFA'!E163)","v":0},{"$f":"-'Fin.Return - SOFA'!$G370","v":0},null,{"$f":"'Fin.Return - SOFA'!$E289","v":0},{"$f":"+'Fin.Return - Other Notes'!G157","v":0},{"$f":"'Fin.Return - SOFA'!$E185","v":0},null,{"$f":"'Fin.Return - SOFA'!$E251","v":0},{"$f":"'Fin.Return - SOFA'!$E238-'Fin.Return - SOFA'!$E386","v":0},null,{"$f":"-'Fin.Return - SOFA'!G407","v":0},null,{"$f":"'Fin.Return - BS'!E207","v":0},{"$f":"'Fin.Return - BS'!E209","v":0},null,{"$f":"'Fin.Return - BS'!E210","v":0},{"$f":"'Fin.Return - BS'!E211","v":0},null,{"$f":"'Fin.Return - BS'!G207","v":0},{"$f":"'Fin.Return - BS'!G209","v":0},{"$f":"'Fin.Return - BS'!G210","v":0},{"$f":"'Fin.Return - BS'!G211","v":0},null,{"$f":"-'Fin.Return - BS'!E271","v":0},{"$f":"-'Fin.Return - BS'!E272","v":0},{"$f":"-'Fin.Return - BS'!E274-'Fin.Return - BS'!E278","v":0},{"$f":"-'Fin.Return - BS'!E275","v":0},{"$f":"-'Fin.Return - BS'!E277","v":0},{"$f":"-'Fin.Return - BS'!E276","v":0},{"$f":"-'Fin.Return - BS'!E279","v":0},null,null,{"$f":"-'Fin.Return - BS'!E316","v":0},{"$f":"-'Fin.Return - BS'!E318","v":0},{"$f":"-'Fin.Return - BS'!E319","v":0},null,{"$f":"-'Fin.Return - BS'!E361","v":0},{"$f":"'Fin.Return - BS'!M388","v":0}]
[null,null,null,null,null,{"$f":"+IF(F15-SUM(F22:F221)>0,\"Error - counterparty balances exceed caption value\",\"\")","v":""},{"$f":"+IF(G15-SUM(G22:G221)>0,\"Error - counterparty balances exceed caption value\",\"\")","v":""},{"$f":"+IF(H15-SUM(H22:H221)>0,\"Error - counterparty balances exceed caption value\",\"\")","v":""},{"$f":"+IF(I15-SUM(I22:I221)<>0,\"Error - counterparty analysis does not equal SoFA note\",\"\")","v":""},{"$f":"+IF(J15-SUM(J22:J221)<>0,\"Error - counterparty analysis does not equal SoFA note\",\"\")","v":""},{"$f":"+IF(K15-SUM(K22:K221)>0,\"Error - counterparty balances exceed caption value\",\"\")","v":""},{"$f":"+IF(L15-SUM(L22:L221)>0,\"Error - counterparty balances exceed caption value\",\"\")","v":""},null,{"$f":"+IF(N15-SUM(N22:N221)<0,\"Error - counterparty balances exceed caption value\",\"\")","v":""},{"$f":"+IF(O15-SUM(O22:O221)<0,\"Error - counterparty balances exceed caption value\",\"\")","v":""},{"$f":"+IF(P15-SUM(P22:Q221)<0,\"Error - counterparty balances exceed caption value\",\"\")","v":""},null,{"$f":"+IF(R15-SUM(R22:R221)<0,\"Error - counterparty balances exceed caption value\",\"\")","v":""},{"$f":"+IF(S15-SUM(S22:S221)<0,\"Error - counterparty balances exceed caption value\",\"\")","v":""},null,{"$f":"+IF(U15-SUM(U22:U221)<0,\"Error - counterparty balances exceed caption value\",\"\")","v":""},null,{"$f":"+IF(W15-SUM(W22:W221)<0,\"Error - counterparty balances exceed caption value\",\"\")","v":""},{"$f":"+IF(X15-SUM(X22:Y221)<0,\"Error - counterparty balances exceed caption value\",\"\")","v":""},null,{"$f":"+IF(Z15-SUM(Z22:Z221)<0,\"Error - counterparty balances exceed caption value\",\"\")","v":""},{"$f":"+IF(AA15-SUM(AA22:AA221)<0,\"Error - counterparty balances exceed caption value\",\"\")","v":""},null,{"$f":"+IF(AC15-SUM(AC22:AC221)<0,\"Error - counterparty balances exceed caption value\",\"\")","v":""},{"$f":"+IF(AD15-SUM(AD22:AD221)<0,\"Error - counterparty balances exceed caption value\",\"\")","v":""},{"$f":"+IF(AE15-SUM(AE22:AE221)<0,\"Error - counterparty balances exceed caption value\",\"\")","v":""},{"$f":"+IF(AF15-SUM(AF22:AF221)<0,\"Error - counterparty balances exceed caption value\",\"\")","v":""},null,{"$f":"+IF(AH15-SUM(AH22:AH221)>0,\"Error - counterparty balances exceed caption value\",\"\")","v":""},"","","","","",{"$f":"+IF(AN15-SUM(AN22:AO221)>0,\"Error - counterparty balances exceed caption value\",\"\")","v":""},null,null,{"$f":"+IF(AQ15-SUM(AQ22:AQ221)>0,\"Error - counterparty balances exceed caption value\",\"\")","v":""},{"$f":"+IF(AR15-SUM(AR22:AR221)>0,\"Error - counterparty balances exceed caption value\",\"\")","v":""},{"$f":"+IF(AS15-SUM(AS22:AS221)>0,\"Error - counterparty balances exceed caption value\",\"\")","v":""},null,{"$f":"+IF(AU15-SUM(AU22:AU221)>0,\"Error - counterparty balances exceed caption value\",\"\")","v":""},{"$f":"+IF(AV15-SUM(AV22:AV221)>0,\"Error - counterparty balances exceed caption value\",\"\")","v":""}]
[]
["HELP",null,null,null,null,"Income and Endowments",null,null,null,null,null,null,null,"Expenditure",null,null,null,null,null,null,null,null,"Debtors under one year",null,null,null,null,null,"Debtors over more than one year",null,null,null,null,"Liabilities less than one year",null,null,null,null,null,null,null,null,"Liabilities over one year",null,null,null,"Other",null,null,null,null,null,null,"Blue","Grey","Amber","Total","Blue","Grey","Amber","Total"]
[null,null,null,null,null,null,null,null,"Funding for the Academy's educational \noperations"]
[null,"CPID & Academy Code (populate from drop-down boxes)","Name of Public Body and/or Academy\n","Type",null,"Voluntary income","Activities for generating funds","Investment income","DfE Family","LA and other government grants","Other","Provision of boarding activities",null,"Wages and salaries","Employer's pension contributions","Operating lease rentals - Buildings","Operating lease rentals - Land","Finance lease interest payments","Business rates","Purchase of goods and services","Boarding Activities",null,"Trade debtors","Prepayments and accrued income (exc government grants)","Accrued Government grants","VAT recoverable","Other debtors",null,"Trade debtors","Prepayments and accrued income","VAT recoverable","Other debtors",null,"Loans within one year","Trade creditors","Taxes and social security","Finance lease creditors within one year","Other creditors within one year","VAT Payable","Accruals and deferred income (excluding deferred government grants)","Deferred Government Grants",null,"Loans","Finance lease creditors","Other creditors",null,"Provisions","Pension scheme surplus/(deficit)",null,null,"Lower limit","Upper limit ",null,{"$f":"SUM(BB21:BB496)","v":192},{"$f":"SUM(BC21:BC496)","v":200},{"$f":"SUM(BD21:BD496)","v":6200},{"$f":"SUM(BB20:BD20)","v":6592},{"$f":"SUM(BF21:BF496)","v":192},{"$f":"SUM(BG21:BG496)","v":9},{"$f":"SUM(BH21:BH496)","v":31},{"$f":"SUM(BF20:BH20)","v":232}]
[null,null,null,null,null,"£000","£000","£000","£000",null,null,"£000",null,"£000","£000","£000","£000","£000","£000","£000","£000",null,"£000","£000","£000","£000","£000",null,"£000","£000","£000","£000",null,"£000","£000","£000","£000","£000","£000","£000","£000",null,"£000","£000","£000",null,"£000","£000",null,null,"£000","£000"]
[null,"DFE022-01",{"$f":"IFERROR(VLOOKUP(B22,'CP IDs'!$A$1:$E$7199,2,FALSE),\"\")","v":"Department for Education"},"CenGov't",null,null,null,null,{"$f":"-('Fin.Return - SOFA'!E128+'Fin.Return - SOFA'!E137)","v":0},null,null,{"$f":"-('Fin.Return - SOFA'!G360)","v":0},null,null,null,null,null,null,null,null,null,null,null,null,null,null,null,null,null,null,null,null,null,{"$f":"-('Fin.Return - BS'!G426)","v":0},null,null,null,null,null,null,null,null,{"$f":"+SUM('Fin.Return - BS'!G427:G428)","v":0},null,null,null,null,null,null,null,-500000,500000,null,null,1,31,null,null,1,{"$f":"COUNT(F22:AV22)","v":4}]
[null,"DFE022-08",{"$f":"IFERROR(VLOOKUP(B23,'CP IDs'!$A$1:$E$7199,2,FALSE),\"\")","v":"Education Funding Agency (EFA)"},"CenGov't",null,null,null,null,{"$f":"-('Fin.Return - SOFA'!E126)","v":0},null,null,{"$f":"-('Fin.Return - SOFA'!G358)","v":0},null,null,null,null,null,null,null,null,null,null,null,null,null,null,null,null,null,null,null,null,null,{"$f":"-('Fin.Return - BS'!H426)","v":0},null,null,null,null,null,null,null,null,{"$f":"+SUM('Fin.Return - BS'!H427:H428)","v":0},null,null,null,null,null,null,null,{"$f":"AY22","v":-500000},{"$f":"AZ22","v":500000},null,null,1,31,null,null,1,4]
[null,{"$error":"#N/A"},{"$f":"IFERROR(VLOOKUP(B24,'CP IDs'!$A$1:$E$7199,2,FALSE),\"\")","v":""},"CenGov't",null,null,null,null,{"$f":"-('Fin.Return - SOFA'!E129+'Fin.Return - SOFA'!E138)","v":0},null,null,{"$f":"-('Fin.Return - SOFA'!G361)","v":0},null,null,null,null,null,null,null,null,null,null,null,null,null,null,null,null,null,null,null,null,null,null,null,null,null,null,null,null,null,null,null,null,null,null,null,null,null,null,{"$f":"AY23","v":-500000},{"$f":"AZ23","v":500000},null,null,1,31,null,null,1,2]
[null,"DFE022-02",{"$f":"IFERROR(VLOOKUP(B25,'CP IDs'!$A$1:$E$7199,2,FALSE),\"\")","v":"National College for Teaching and Leadership (NCTL)"},"CenGov't",null,null,null,null,{"$f":"-('Fin.Return - SOFA'!E130+'Fin.Return - SOFA'!E139)","v":0},null,null,{"$f":"-('Fin.Return - SOFA'!G362)","v":0},null,null,null,null,null,null,null,null,null,null,null,null,null,null,null,null,null,null,null,null,null,{"$f":"-('Fin.Return - BS'!I426)","v":0},null,null,null,null,null,null,null,null,{"$f":"+SUM('Fin.Return - BS'!I427:I428)","v":0},null,null,null,null,null,null,null,{"$f":"AY24","v":-500000},{"$f":"AZ24","v":500000},null,null,1,31,null,null,1,4]
[null,"DFE022-06",{"$f":"IFERROR(VLOOKUP(B26,'CP IDs'!$A$1:$E$7199,2,FALSE),\"\")","v":"Standards and Testing Agency (STA)"},"CenGov't",null,null,null,null,{"$f":"-('Fin.Return - SOFA'!E131+'Fin.Return - SOFA'!E140)","v":0},null,null,{"$f":"-('Fin.Return - SOFA'!G363)","v":0},null,null,null,null,null,null,null,null,null,null,null,null,null,null,null,null,null,null,null,null,null,{"$f":"-('Fin.Return - BS'!J426)","v":0},null,null,null,null,null,null,null,null,{"$f":"+SUM('Fin.Return - BS'!J427:J428)","v":0},null,null,null,null,null,null,null,-500000,500000,null,null,1,31,null,null,1,4]
[null,"DFE022-03",{"$f":"IFERROR(VLOOKUP(B27,'CP IDs'!$A$1:$E$7199,2,FALSE),\"\")","v":"Office of the Children’s Commissioner"},"CenGov't",null,null,null,null,{"$f":"-('Fin.Return - SOFA'!E133+'Fin.Return - SOFA'!E142)","v":0},null,null,{"$f":"-('Fin.Return - SOFA'!G365)","v":0},null,null,null,null,null,null,null,null,null,null,null,null,null,null,null,null,null,null,null,null,null,{"$f":"-('Fin.Return - BS'!L426)","v":0},null,null,null,null,null,null,null,null,{"$f":"+SUM('Fin.Return - BS'!L427:L428)","v":0},null,null,null,null,null,null,null,-500000,500000,null,null,1,31,null,null,1,4]
[null,"EHR064",{"$f":"IFERROR(VLOOKUP(B28,'CP IDs'!$A$1:$E$7199,2,FALSE),\"\")","v":"Equality and Human Rights Commission"},"CenGov't",null,null,null,null,{"$f":"-('Fin.Return - SOFA'!E132+'Fin.Return - SOFA'!E141)","v":0},null,null,{"$f":"-('Fin.Return - SOFA'!G364)","v":0},null,null,null,null,null,null,null,null,null,null,null,null,null,null,null,null,null,null,null,null,null,{"$f":"+('Fin.Return - BS'!K426)","v":0},null,null,null,null,null,null,null,null,{"$f":"+SUM('Fin.Return - BS'!K427:K428)","v":0},null,null,null,null,null,null,null,-500000,500000,null,null,1,31,null,null,1,4]
[null,"TPS904",{"$f":"IFERROR(VLOOKUP(B29,'CP IDs'!$A$1:$E$7199,2,FALSE),\"\")","v":"Teachers' Pension Scheme (England & Wales)"},"CenGov't",null,null,null,null,null,null,null,null,null,null,{"$f":"+('Fin.Return - Other Notes'!E152)","v":0},null,null,null,null,null,null,null,null,null,null,null,null,null,null,null,null,null,null,null,null,null,null,null,null,null,null,null,null,null,null,null,null,null,null,null,-500000,500000,null,null,1,31,null,null,1,1]
[null,"HMR041-01",{"$f":"IFERROR(VLOOKUP(B30,'CP IDs'!$A$1:$E$7199,2,FALSE),\"\")","v":"HM Revenue and Customs"},"CenGov't",null,null,null,null,null,null,null,null,null,null,null,null,null,null,null,null,null,null,null,null,null,{"$f":"+('Fin.Return - BS'!E210)","v":0},null,null,null,null,{"$f":"+('Fin.Return - BS'!G210)","v":0},null,null,null,null,{"$f":"-('Fin.Return - BS'!E274+'Fin.Return - BS'!E278)","v":0},null,null,{"$f":"-('Fin.Return - BS'!E276)","v":0},null,null,null,null,null,null,null,null,null,null,null,-500000,500000,null,1,1,31,null,{"$f":"COUNTA(C30)","v":1},{"$f":"1-COUNTBLANK(B30)","v":1},4,null,{"$f":"AND(B30=$C$9,'Standing Data'!$D$9<>\"Multi-academy Trust\")","v":{"$error":"#N/A"}}]
[{"$f":"IF(B31<>\"\",IF('Standing Data'!$D$9<>\"Multiple\",IF('Standing Data'!$D$9=B31,\"Error - counterparty with self\",\"\"),IF(N(ISNA(MATCH(B31,'Standing Data'!$E$48:$E$147,0)))<>0,\"\",\"Error - counterparty with self\")),\"\")","v":""},null,{"$f":"IFERROR(VLOOKUP(B31,'CP IDs'!$A$1:$E$7199,2,FALSE),\"\")","v":""},{"$f":"IFERROR(VLOOKUP(B31,'CP IDs'!$A$1:$E$7199,5,FALSE),\"\")","v":""},{"$f":"IF(OR(AND(COUNT(F31:AV31)>0,C31=\"\"),AND(COUNT(F31:AV31)=0,C31<>\"\")),\"Error - on line\",\"\")","v":""},null,null,null,null,null,null,null,null,null,null,null,null,null,null,null,null,null,null,null,null,null,null,null,null,null,null,null,null,null,null,null,null,null,null,null,null,null,null,null,null,null,null,null,null,null,-500000,500000,null,1,1,31,null,1,0,0,null,{"$f":"AND(B31=$C$9,'Standing Data'!$D$9<>\"Multi-academy Trust\")","v":{"$error":"#N/A"}}]
[{"$f":"IF(B32<>\"\",IF('Standing Data'!$D$9<>\"Multiple\",IF('Standing Data'!$D$9=B32,\"Error - counterparty with self\",\"\"),IF(N(ISNA(MATCH(B32,'Standing Data'!$E$48:$E$147,0)))<>0,\"\",\"Error - counterparty with self\")),\"\")","v":""},null,{"$f":"IFERROR(VLOOKUP(B32,'CP IDs'!$A$1:$E$7199,2,FALSE),\"\")","v":""},{"$f":"IFERROR(VLOOKUP(B32,'CP IDs'!$A$1:$E$7199,5,FALSE),\"\")","v":""},"",null,null,null,null,null,null,null,null,null,null,null,null,null,null,null,null,null,null,null,null,null,null,null,null,null,null,null,null,null,null,null,null,null,null,null,null,null,null,null,null,null,null,null,null,null,-500000,500000,null,1,1,31,null,1,0,0,null,{"$f":"AND(B32=$C$9,'Standing Data'!$D$9<>\"Multi-academy Trust\")","v":{"$error":"#N/A"}}]
[{"$f":"IF(B33<>\"\",IF('Standing Data'!$D$9<>\"Multiple\",IF('Standing Data'!$D$9=B33,\"Error - counterparty with self\",\"\"),IF(N(ISNA(MATCH(B33,'Standing Data'!$E$48:$E$147,0)))<>0,\"\",\"Error - counterparty with self\")),\"\")","v":""},null,{"$f":"IFERROR(VLOOKUP(B33,'CP IDs'!$A$1:$E$7199,2,FALSE),\"\")","v":""},{"$f":"IFERROR(VLOOKUP(B33,'CP IDs'!$A$1:$E$7199,5,FALSE),\"\")","v":""},"",null,null,null,null,null,null,null,null,null,null,null,null,null,null,null,null,null,null,null,null,null,null,null,null,null,null,null,null,null,null,null,null,null,null,null,null,null,null,null,null,null,null,null,null,null,-500000,500000,null,1,1,31,null,1,0,0,null,{"$f":"AND(B33=$C$9,'Standing Data'!$D$9<>\"Multi-academy Trust\")","v":{"$error":"#N/A"}}]
[{"$f":"IF(B34<>\"\",IF('Standing Data'!$D$9<>\"Multiple\",IF('Standing Data'!$D$9=B34,\"Error - counterparty with self\",\"\"),IF(N(ISNA(MATCH(B34,'Standing Data'!$E$48:$E$147,0)))<>0,\"\",\"Error - counterparty with self\")),\"\")","v":""},null,{"$f":"IFERROR(VLOOKUP(B34,'CP IDs'!$A$1:$E$7199,2,FALSE),\"\")","v":""},{"$f":"IFERROR(VLOOKUP(B34,'CP IDs'!$A$1:$E$7199,5,FALSE),\"\")","v":""},"",null,null,null,null,null,null,null,null,null,null,null,null,null,null,null,null,null,null,null,null,null,null,null,null,null,null,null,null,null,null,null,null,null,null,null,null,null,null,null,null,null,null,null,null,null,-500000,500000,null,1,1,31,null,1,0,0,null,{"$f":"AND(B34=$C$9,'Standing Data'!$D$9<>\"Multi-academy Trust\")","v":{"$error":"#N/A"}}]
[{"$f":"IF(B35<>\"\",IF('Standing Data'!$D$9<>\"Multiple\",IF('Standing Data'!$D$9=B35,\"Error - counterparty with self\",\"\"),IF(N(ISNA(MATCH(B35,'Standing Data'!$E$48:$E$147,0)))<>0,\"\",\"Error - counterparty with self\")),\"\")","v":""},null,{"$f":"IFERROR(VLOOKUP(B35,'CP IDs'!$A$1:$E$7199,2,FALSE),\"\")","v":""},{"$f":"IFERROR(VLOOKUP(B35,'CP IDs'!$A$1:$E$7199,5,FALSE),\"\")","v":""},"",null,null,null,null,null,null,null,null,null,null,null,null,null,null,null,null,null,null,null,null,null,null,null,null,null,null,null,null,null,null,null,null,null,null,null,null,null,null,null,null,null,null,null,null,null,-500000,500000,null,1,1,31,null,1,0,0,null,{"$f":"AND(B35=$C$9,'Standing Data'!$D$9<>\"Multi-academy Trust\")","v":{"$error":"#N/A"}}]
[{"$f":"IF(B36<>\"\",IF('Standing Data'!$D$9<>\"Multiple\",IF('Standing Data'!$D$9=B36,\"Error - counterparty with self\",\"\"),IF(N(ISNA(MATCH(B36,'Standing Data'!$E$48:$E$147,0)))<>0,\"\",\"Error - counterparty with self\")),\"\")","v":""},null,{"$f":"IFERROR(VLOOKUP(B36,'CP IDs'!$A$1:$E$7199,2,FALSE),\"\")","v":""},{"$f":"IFERROR(VLOOKUP(B36,'CP IDs'!$A$1:$E$7199,5,FALSE),\"\")","v":""},"",null,null,null,null,null,null,null,null,null,null,null,null,null,null,null,null,null,null,null,null,null,null,null,null,null,null,null,null,null,null,null,null,null,null,null,null,null,null,null,null,null,null,null,null,null,-500000,500000,null,1,1,31,null,1,0,0,null,{"$f":"AND(B36=$C$9,'Standing Data'!$D$9<>\"Multi-academy Trust\")","v":{"$error":"#N/A"}}]
[{"$f":"IF(B37<>\"\",IF('Standing Data'!$D$9<>\"Multiple\",IF('Standing Data'!$D$9=B37,\"Error - counterparty with self\",\"\"),IF(N(ISNA(MATCH(B37,'Standing Data'!$E$48:$E$147,0)))<>0,\"\",\"Error - counterparty with self\")),\"\")","v":""},null,{"$f":"IFERROR(VLOOKUP(B37,'CP IDs'!$A$1:$E$7199,2,FALSE),\"\")","v":""},{"$f":"IFERROR(VLOOKUP(B37,'CP IDs'!$A$1:$E$7199,5,FALSE),\"\")","v":""},"",null,null,null,null,null,null,null,null,null,null,null,null,null,null,null,null,null,null,null,null,null,null,null,null,null,null,null,null,null,null,null,null,null,null,null,null,null,null,null,null,null,null,null,null,null,-500000,500000,null,1,1,31,null,1,0,0,null,{"$f":"AND(B37=$C$9,'Standing Data'!$D$9<>\"Multi-academy Trust\")","v":{"$error":"#N/A"}}]
[{"$f":"IF(B38<>\"\",IF('Standing Data'!$D$9<>\"Multiple\",IF('Standing Data'!$D$9=B38,\"Error - counterparty with self\",\"\"),IF(N(ISNA(MATCH(B38,'Standing Data'!$E$48:$E$147,0)))<>0,\"\",\"Error - counterparty with self\")),\"\")","v":""},null,{"$f":"IFERROR(VLOOKUP(B38,'CP IDs'!$A$1:$E$7199,2,FALSE),\"\")","v":""},{"$f":"IFERROR(VLOOKUP(B38,'CP IDs'!$A$1:$E$7199,5,FALSE),\"\")","v":""},"",null,null,null,null,null,null,null,null,null,null,null,null,null,null,null,null,null,null,null,null,null,null,null,null,null,null,null,null,null,null,null,null,null,null,null,null,null,null,null,null,null,null,null,null,null,-500000,500000,null,1,1,31,null,1,0,0,null,{"$f":"AND(B38=$C$9,'Standing Data'!$D$9<>\"Multi-academy Trust\")","v":{"$error":"#N/A"}}]
[{"$f":"IF(B39<>\"\",IF('Standing Data'!$D$9<>\"Multiple\",IF('Standing Data'!$D$9=B39,\"Error - counterparty with self\",\"\"),IF(N(ISNA(MATCH(B39,'Standing Data'!$E$48:$E$147,0)))<>0,\"\",\"Error - counterparty with self\")),\"\")","v":""},null,{"$f":"IFERROR(VLOOKUP(B39,'CP IDs'!$A$1:$E$7199,2,FALSE),\"\")","v":""},{"$f":"IFERROR(VLOOKUP(B39,'CP IDs'!$A$1:$E$7199,5,FALSE),\"\")","v":""},"",null,null,null,null,null,null,null,null,null,null,null,null,null,null,null,null,null,null,null,null,null,null,null,null,null,null,null,null,null,null,null,null,null,null,null,null,null,null,null,null,null,null,null,null,null,-500000,500000,null,1,1,31,null,1,0,0,null,{"$f":"AND(B39=$C$9,'Standing Data'!$D$9<>\"Multi-academy Trust\")","v":{"$error":"#N/A"}}]
[{"$f":"IF(B40<>\"\",IF('Standing Data'!$D$9<>\"Multiple\",IF('Standing Data'!$D$9=B40,\"Error - counterparty with self\",\"\"),IF(N(ISNA(MATCH(B40,'Standing Data'!$E$48:$E$147,0)))<>0,\"\",\"Error - counterparty with self\")),\"\")","v":""},null,{"$f":"IFERROR(VLOOKUP(B40,'CP IDs'!$A$1:$E$7199,2,FALSE),\"\")","v":""},{"$f":"IFERROR(VLOOKUP(B40,'CP IDs'!$A$1:$E$7199,5,FALSE),\"\")","v":""},"",null,null,null,null,null,null,null,null,null,null,null,null,null,null,null,null,null,null,null,null,null,null,null,null,null,null,null,null,null,null,null,null,null,null,null,null,null,null,null,null,null,null,null,null,null,-500000,500000,null,1,1,31,null,1,0,0,null,{"$f":"AND(B40=$C$9,'Standing Data'!$D$9<>\"Multi-academy Trust\")","v":{"$error":"#N/A"}}]
[{"$f":"IF(B41<>\"\",IF('Standing Data'!$D$9<>\"Multiple\",IF('Standing Data'!$D$9=B41,\"Error - counterparty with self\",\"\"),IF(N(ISNA(MATCH(B41,'Standing Data'!$E$48:$E$147,0)))<>0,\"\",\"Error - counterparty with self\")),\"\")","v":""},null,{"$f":"IFERROR(VLOOKUP(B41,'CP IDs'!$A$1:$E$7199,2,FALSE),\"\")","v":""},{"$f":"IFERROR(VLOOKUP(B41,'CP IDs'!$A$1:$E$7199,5,FALSE),\"\")","v":""},"",null,null,null,null,null,null,null,null,null,null,null,null,null,null,null,null,null,null,null,null,null,null,null,null,null,null,null,null,null,null,null,null,null,null,null,null,null,null,null,null,null,null,null,null,null,-500000,500000,null,1,1,31,null,1,0,0,null,{"$f":"AND(B41=$C$9,'Standing Data'!$D$9<>\"Multi-academy Trust\")","v":{"$error":"#N/A"}}]
[{"$f":"IF(B42<>\"\",IF('Standing Data'!$D$9<>\"Multiple\",IF('Standing Data'!$D$9=B42,\"Error - counterparty with self\",\"\"),IF(N(ISNA(MATCH(B42,'Standing Data'!$E$48:$E$147,0)))<>0,\"\",\"Error - counterparty with self\")),\"\")","v":""},null,{"$f":"IFERROR(VLOOKUP(B42,'CP IDs'!$A$1:$E$7199,2,FALSE),\"\")","v":""},{"$f":"IFERROR(VLOOKUP(B42,'CP IDs'!$A$1:$E$7199,5,FALSE),\"\")","v":""},"",null,null,null,null,null,null,null,null,null,null,null,null,null,null,null,null,null,null,null,null,null,null,null,null,null,null,null,null,null,null,null,null,null,null,null,null,null,null,null,null,null,null,null,null,null,-500000,500000,null,1,1,31,null,1,0,0,null,{"$f":"AND(B42=$C$9,'Standing Data'!$D$9<>\"Multi-academy Trust\")","v":{"$error":"#N/A"}}]
[{"$f":"IF(B43<>\"\",IF('Standing Data'!$D$9<>\"Multiple\",IF('Standing Data'!$D$9=B43,\"Error - counterparty with self\",\"\"),IF(N(ISNA(MATCH(B43,'Standing Data'!$E$48:$E$147,0)))<>0,\"\",\"Error - counterparty with self\")),\"\")","v":""},null,{"$f":"IFERROR(VLOOKUP(B43,'CP IDs'!$A$1:$E$7199,2,FALSE),\"\")","v":""},{"$f":"IFERROR(VLOOKUP(B43,'CP IDs'!$A$1:$E$7199,5,FALSE),\"\")","v":""},"",null,null,null,null,null,null,null,null,null,null,null,null,null,null,null,null,null,null,null,null,null,null,null,null,null,null,null,null,null,null,null,null,null,null,null,null,null,null,null,null,null,null,null,null,null,-500000,500000,null,1,1,31,null,1,0,0,null,{"$f":"AND(B43=$C$9,'Standing Data'!$D$9<>\"Multi-academy Trust\")","v":{"$error":"#N/A"}}]
[{"$f":"IF(B44<>\"\",IF('Standing Data'!$D$9<>\"Multiple\",IF('Standing Data'!$D$9=B44,\"Error - counterparty with self\",\"\"),IF(N(ISNA(MATCH(B44,'Standing Data'!$E$48:$E$147,0)))<>0,\"\",\"Error - counterparty with self\")),\"\")","v":""},null,{"$f":"IFERROR(VLOOKUP(B44,'CP IDs'!$A$1:$E$7199,2,FALSE),\"\")","v":""},{"$f":"IFERROR(VLOOKUP(B44,'CP IDs'!$A$1:$E$7199,5,FALSE),\"\")","v":""},"",null,null,null,null,null,null,null,null,null,null,null,null,null,null,null,null,null,null,null,null,null,null,null,null,null,null,null,null,null,null,null,null,null,null,null,null,null,null,null,null,null,null,null,null,null,-500000,500000,null,1,1,31,null,1,0,0,null,{"$f":"AND(B44=$C$9,'Standing Data'!$D$9<>\"Multi-academy Trust\")","v":{"$error":"#N/A"}}]
[{"$f":"IF(B45<>\"\",IF('Standing Data'!$D$9<>\"Multiple\",IF('Standing Data'!$D$9=B45,\"Error - counterparty with self\",\"\"),IF(N(ISNA(MATCH(B45,'Standing Data'!$E$48:$E$147,0)))<>0,\"\",\"Error - counterparty with self\")),\"\")","v":""},null,{"$f":"IFERROR(VLOOKUP(B45,'CP IDs'!$A$1:$E$7199,2,FALSE),\"\")","v":""},{"$f":"IFERROR(VLOOKUP(B45,'CP IDs'!$A$1:$E$7199,5,FALSE),\"\")","v":""},"",null,null,null,null,null,null,null,null,null,null,null,null,null,null,null,null,null,null,null,null,null,null,null,null,null,null,null,null,null,null,null,null,null,null,null,null,null,null,null,null,null,null,null,null,null,-500000,500000,null,1,1,31,null,1,0,0,null,{"$f":"AND(B45=$C$9,'Standing Data'!$D$9<>\"Multi-academy Trust\")","v":{"$error":"#N/A"}}]
[{"$f":"IF(B46<>\"\",IF('Standing Data'!$D$9<>\"Multiple\",IF('Standing Data'!$D$9=B46,\"Error - counterparty with self\",\"\"),IF(N(ISNA(MATCH(B46,'Standing Data'!$E$48:$E$147,0)))<>0,\"\",\"Error - counterparty with self\")),\"\")","v":""},null,{"$f":"IFERROR(VLOOKUP(B46,'CP IDs'!$A$1:$E$7199,2,FALSE),\"\")","v":""},{"$f":"IFERROR(VLOOKUP(B46,'CP IDs'!$A$1:$E$7199,5,FALSE),\"\")","v":""},"",null,null,null,null,null,null,null,null,null,null,null,null,null,null,null,null,null,null,null,null,null,null,null,null,null,null,null,null,null,null,null,null,null,null,null,null,null,null,null,null,null,null,null,null,null,-500000,500000,null,1,1,31,null,1,0,0,null,{"$f":"AND(B46=$C$9,'Standing Data'!$D$9<>\"Multi-academy Trust\")","v":{"$error":"#N/A"}}]
[{"$f":"IF(B47<>\"\",IF('Standing Data'!$D$9<>\"Multiple\",IF('Standing Data'!$D$9=B47,\"Error - counterparty with self\",\"\"),IF(N(ISNA(MATCH(B47,'Standing Data'!$E$48:$E$147,0)))<>0,\"\",\"Error - counterparty with self\")),\"\")","v":""},null,{"$f":"IFERROR(VLOOKUP(B47,'CP IDs'!$A$1:$E$7199,2,FALSE),\"\")","v":""},{"$f":"IFERROR(VLOOKUP(B47,'CP IDs'!$A$1:$E$7199,5,FALSE),\"\")","v":""},"",null,null,null,null,null,null,null,null,null,null,null,null,null,null,null,null,null,null,null,null,null,null,null,null,null,null,null,null,null,null,null,null,null,null,null,null,null,null,null,null,null,null,null,null,null,-500000,500000,null,1,1,31,null,1,0,0,null,{"$f":"AND(B47=$C$9,'Standing Data'!$D$9<>\"Multi-academy Trust\")","v":{"$error":"#N/A"}}]
[{"$f":"IF(B48<>\"\",IF('Standing Data'!$D$9<>\"Multiple\",IF('Standing Data'!$D$9=B48,\"Error - counterparty with self\",\"\"),IF(N(ISNA(MATCH(B48,'Standing Data'!$E$48:$E$147,0)))<>0,\"\",\"Error - counterparty with self\")),\"\")","v":""},null,{"$f":"IFERROR(VLOOKUP(B48,'CP IDs'!$A$1:$E$7199,2,FALSE),\"\")","v":""},{"$f":"IFERROR(VLOOKUP(B48,'CP IDs'!$A$1:$E$7199,5,FALSE),\"\")","v":""},"",null,null,null,null,null,null,null,null,null,null,null,null,null,null,null,null,null,null,null,null,null,null,null,null,null,null,null,null,null,null,null,null,null,null,null,null,null,null,null,null,null,null,null,null,null,-500000,500000,null,1,1,31,null,1,0,0,null,{"$f":"AND(B48=$C$9,'Standing Data'!$D$9<>\"Multi-academy Trust\")","v":{"$error":"#N/A"}}]
[{"$f":"IF(B49<>\"\",IF('Standing Data'!$D$9<>\"Multiple\",IF('Standing Data'!$D$9=B49,\"Error - counterparty with self\",\"\"),IF(N(ISNA(MATCH(B49,'Standing Data'!$E$48:$E$147,0)))<>0,\"\",\"Error - counterparty with self\")),\"\")","v":""},null,{"$f":"IFERROR(VLOOKUP(B49,'CP IDs'!$A$1:$E$7199,2,FALSE),\"\")","v":""},{"$f":"IFERROR(VLOOKUP(B49,'CP IDs'!$A$1:$E$7199,5,FALSE),\"\")","v":""},"",null,null,null,null,null,null,null,null,null,null,null,null,null,null,null,null,null,null,null,null,null,null,null,null,null,null,null,null,null,null,null,null,null,null,null,null,null,null,null,null,null,null,null,null,null,-500000,500000,null,1,1,31,null,1,0,0,null,{"$f":"AND(B49=$C$9,'Standing Data'!$D$9<>\"Multi-academy Trust\")","v":{"$error":"#N/A"}}]
[{"$f":"IF(B50<>\"\",IF('Standing Data'!$D$9<>\"Multiple\",IF('Standing Data'!$D$9=B50,\"Error - counterparty with self\",\"\"),IF(N(ISNA(MATCH(B50,'Standing Data'!$E$48:$E$147,0)))<>0,\"\",\"Error - counterparty with self\")),\"\")","v":""},null,{"$f":"IFERROR(VLOOKUP(B50,'CP IDs'!$A$1:$E$7199,2,FALSE),\"\")","v":""},{"$f":"IFERROR(VLOOKUP(B50,'CP IDs'!$A$1:$E$7199,5,FALSE),\"\")","v":""},"",null,null,null,null,null,null,null,null,null,null,null,null,null,null,null,null,null,null,null,null,null,null,null,null,null,null,null,null,null,null,null,null,null,null,null,null,null,null,null,null,null,null,null,null,null,-500000,500000,null,1,1,31,null,1,0,0,null,{"$f":"AND(B50=$C$9,'Standing Data'!$D$9<>\"Multi-academy Trust\")","v":{"$error":"#N/A"}}]
[{"$f":"IF(B51<>\"\",IF('Standing Data'!$D$9<>\"Multiple\",IF('Standing Data'!$D$9=B51,\"Error - counterparty with self\",\"\"),IF(N(ISNA(MATCH(B51,'Standing Data'!$E$48:$E$147,0)))<>0,\"\",\"Error - counterparty with self\")),\"\")","v":""},null,{"$f":"IFERROR(VLOOKUP(B51,'CP IDs'!$A$1:$E$7199,2,FALSE),\"\")","v":""},{"$f":"IFERROR(VLOOKUP(B51,'CP IDs'!$A$1:$E$7199,5,FALSE),\"\")","v":""},"",null,null,null,null,null,null,null,null,null,null,null,null,null,null,null,null,null,null,null,null,null,null,null,null,null,null,null,null,null,null,null,null,null,null,null,null,null,null,null,null,null,null,null,null,null,-500000,500000,null,1,1,31,null,1,0,0,null,{"$f":"AND(B51=$C$9,'Standing Data'!$D$9<>\"Multi-academy Trust\")","v":{"$error":"#N/A"}}]
[{"$f":"IF(B52<>\"\",IF('Standing Data'!$D$9<>\"Multiple\",IF('Standing Data'!$D$9=B52,\"Error - counterparty with self\",\"\"),IF(N(ISNA(MATCH(B52,'Standing Data'!$E$48:$E$147,0)))<>0,\"\",\"Error - counterparty with self\")),\"\")","v":""},null,{"$f":"IFERROR(VLOOKUP(B52,'CP IDs'!$A$1:$E$7199,2,FALSE),\"\")","v":""},{"$f":"IFERROR(VLOOKUP(B52,'CP IDs'!$A$1:$E$7199,5,FALSE),\"\")","v":""},"",null,null,null,null,null,null,null,null,null,null,null,null,null,null,null,null,null,null,null,null,null,null,null,null,null,null,null,null,null,null,null,null,null,null,null,null,null,null,null,null,null,null,null,null,null,-500000,500000,null,1,1,31,null,1,0,0,null,{"$f":"AND(B52=$C$9,'Standing Data'!$D$9<>\"Multi-academy Trust\")","v":{"$error":"#N/A"}}]
[{"$f":"IF(B53<>\"\",IF('Standing Data'!$D$9<>\"Multiple\",IF('Standing Data'!$D$9=B53,\"Error - counterparty with self\",\"\"),IF(N(ISNA(MATCH(B53,'Standing Data'!$E$48:$E$147,0)))<>0,\"\",\"Error - counterparty with self\")),\"\")","v":""},null,{"$f":"IFERROR(VLOOKUP(B53,'CP IDs'!$A$1:$E$7199,2,FALSE),\"\")","v":""},{"$f":"IFERROR(VLOOKUP(B53,'CP IDs'!$A$1:$E$7199,5,FALSE),\"\")","v":""},"",null,null,null,null,null,null,null,null,null,null,null,null,null,null,null,null,null,null,null,null,null,null,null,null,null,null,null,null,null,null,null,null,null,null,null,null,null,null,null,null,null,null,null,null,null,-500000,500000,null,1,1,31,null,1,0,0,null,{"$f":"AND(B53=$C$9,'Standing Data'!$D$9<>\"Multi-academy Trust\")","v":{"$error":"#N/A"}}]
[{"$f":"IF(B54<>\"\",IF('Standing Data'!$D$9<>\"Multiple\",IF('Standing Data'!$D$9=B54,\"Error - counterparty with self\",\"\"),IF(N(ISNA(MATCH(B54,'Standing Data'!$E$48:$E$147,0)))<>0,\"\",\"Error - counterparty with self\")),\"\")","v":""},null,{"$f":"IFERROR(VLOOKUP(B54,'CP IDs'!$A$1:$E$7199,2,FALSE),\"\")","v":""},{"$f":"IFERROR(VLOOKUP(B54,'CP IDs'!$A$1:$E$7199,5,FALSE),\"\")","v":""},"",null,null,null,null,null,null,null,null,null,null,null,null,null,null,null,null,null,null,null,null,null,null,null,null,null,null,null,null,null,null,null,null,null,null,null,null,null,null,null,null,null,null,null,null,null,-500000,500000,null,1,1,31,null,1,0,0,null,{"$f":"AND(B54=$C$9,'Standing Data'!$D$9<>\"Multi-academy Trust\")","v":{"$error":"#N/A"}}]
[{"$f":"IF(B55<>\"\",IF('Standing Data'!$D$9<>\"Multiple\",IF('Standing Data'!$D$9=B55,\"Error - counterparty with self\",\"\"),IF(N(ISNA(MATCH(B55,'Standing Data'!$E$48:$E$147,0)))<>0,\"\",\"Error - counterparty with self\")),\"\")","v":""},null,{"$f":"IFERROR(VLOOKUP(B55,'CP IDs'!$A$1:$E$7199,2,FALSE),\"\")","v":""},{"$f":"IFERROR(VLOOKUP(B55,'CP IDs'!$A$1:$E$7199,5,FALSE),\"\")","v":""},"",null,null,null,null,null,null,null,null,null,null,null,null,null,null,null,null,null,null,null,null,null,null,null,null,null,null,null,null,null,null,null,null,null,null,null,null,null,null,null,null,null,null,null,null,null,-500000,500000,null,1,1,31,null,1,0,0,null,{"$f":"AND(B55=$C$9,'Standing Data'!$D$9<>\"Multi-academy Trust\")","v":{"$error":"#N/A"}}]
[{"$f":"IF(B56<>\"\",IF('Standing Data'!$D$9<>\"Multiple\",IF('Standing Data'!$D$9=B56,\"Error - counterparty with self\",\"\"),IF(N(ISNA(MATCH(B56,'Standing Data'!$E$48:$E$147,0)))<>0,\"\",\"Error - counterparty with self\")),\"\")","v":""},null,{"$f":"IFERROR(VLOOKUP(B56,'CP IDs'!$A$1:$E$7199,2,FALSE),\"\")","v":""},{"$f":"IFERROR(VLOOKUP(B56,'CP IDs'!$A$1:$E$7199,5,FALSE),\"\")","v":""},"",null,null,null,null,null,null,null,null,null,null,null,null,null,null,null,null,null,null,null,null,null,null,null,null,null,null,null,null,null,null,null,null,null,null,null,null,null,null,null,null,null,null,null,null,null,-500000,500000,null,1,1,31,null,1,0,0,null,{"$f":"AND(B56=$C$9,'Standing Data'!$D$9<>\"Multi-academy Trust\")","v":{"$error":"#N/A"}}]
[{"$f":"IF(B57<>\"\",IF('Standing Data'!$D$9<>\"Multiple\",IF('Standing Data'!$D$9=B57,\"Error - counterparty with self\",\"\"),IF(N(ISNA(MATCH(B57,'Standing Data'!$E$48:$E$147,0)))<>0,\"\",\"Error - counterparty with self\")),\"\")","v":""},null,{"$f":"IFERROR(VLOOKUP(B57,'CP IDs'!$A$1:$E$7199,2,FALSE),\"\")","v":""},{"$f":"IFERROR(VLOOKUP(B57,'CP IDs'!$A$1:$E$7199,5,FALSE),\"\")","v":""},"",null,null,null,null,null,null,null,null,null,null,null,null,null,null,null,null,null,null,null,null,null,null,null,null,null,null,null,null,null,null,null,null,null,null,null,null,null,null,null,null,null,null,null,null,null,-500000,500000,null,1,1,31,null,1,0,0,null,{"$f":"AND(B57=$C$9,'Standing Data'!$D$9<>\"Multi-academy Trust\")","v":{"$error":"#N/A"}}]
[{"$f":"IF(B58<>\"\",IF('Standing Data'!$D$9<>\"Multiple\",IF('Standing Data'!$D$9=B58,\"Error - counterparty with self\",\"\"),IF(N(ISNA(MATCH(B58,'Standing Data'!$E$48:$E$147,0)))<>0,\"\",\"Error - counterparty with self\")),\"\")","v":""},null,{"$f":"IFERROR(VLOOKUP(B58,'CP IDs'!$A$1:$E$7199,2,FALSE),\"\")","v":""},{"$f":"IFERROR(VLOOKUP(B58,'CP IDs'!$A$1:$E$7199,5,FALSE),\"\")","v":""},"",null,null,null,null,null,null,null,null,null,null,null,null,null,null,null,null,null,null,null,null,null,null,null,null,null,null,null,null,null,null,null,null,null,null,null,null,null,null,null,null,null,null,null,null,null,-500000,500000,null,1,1,31,null,1,0,0,null,{"$f":"AND(B58=$C$9,'Standing Data'!$D$9<>\"Multi-academy Trust\")","v":{"$error":"#N/A"}}]
[{"$f":"IF(B59<>\"\",IF('Standing Data'!$D$9<>\"Multiple\",IF('Standing Data'!$D$9=B59,\"Error - counterparty with self\",\"\"),IF(N(ISNA(MATCH(B59,'Standing Data'!$E$48:$E$147,0)))<>0,\"\",\"Error - counterparty with self\")),\"\")","v":""},null,{"$f":"IFERROR(VLOOKUP(B59,'CP IDs'!$A$1:$E$7199,2,FALSE),\"\")","v":""},{"$f":"IFERROR(VLOOKUP(B59,'CP IDs'!$A$1:$E$7199,5,FALSE),\"\")","v":""},"",null,null,null,null,null,null,null,null,null,null,null,null,null,null,null,null,null,null,null,null,null,null,null,null,null,null,null,null,null,null,null,null,null,null,null,null,null,null,null,null,null,null,null,null,null,-500000,500000,null,1,1,31,null,1,0,0,null,{"$f":"AND(B59=$C$9,'Standing Data'!$D$9<>\"Multi-academy Trust\")","v":{"$error":"#N/A"}}]
[{"$f":"IF(B60<>\"\",IF('Standing Data'!$D$9<>\"Multiple\",IF('Standing Data'!$D$9=B60,\"Error - counterparty with self\",\"\"),IF(N(ISNA(MATCH(B60,'Standing Data'!$E$48:$E$147,0)))<>0,\"\",\"Error - counterparty with self\")),\"\")","v":""},null,{"$f":"IFERROR(VLOOKUP(B60,'CP IDs'!$A$1:$E$7199,2,FALSE),\"\")","v":""},{"$f":"IFERROR(VLOOKUP(B60,'CP IDs'!$A$1:$E$7199,5,FALSE),\"\")","v":""},"",null,null,null,null,null,null,null,null,null,null,null,null,null,null,null,null,null,null,null,null,null,null,null,null,null,null,null,null,null,null,null,null,null,null,null,null,null,null,null,null,null,null,null,null,null,-500000,500000,null,1,1,31,null,1,0,0,null,{"$f":"AND(B60=$C$9,'Standing Data'!$D$9<>\"Multi-academy Trust\")","v":{"$error":"#N/A"}}]
[{"$f":"IF(B61<>\"\",IF('Standing Data'!$D$9<>\"Multiple\",IF('Standing Data'!$D$9=B61,\"Error - counterparty with self\",\"\"),IF(N(ISNA(MATCH(B61,'Standing Data'!$E$48:$E$147,0)))<>0,\"\",\"Error - counterparty with self\")),\"\")","v":""},null,{"$f":"IFERROR(VLOOKUP(B61,'CP IDs'!$A$1:$E$7199,2,FALSE),\"\")","v":""},{"$f":"IFERROR(VLOOKUP(B61,'CP IDs'!$A$1:$E$7199,5,FALSE),\"\")","v":""},"",null,null,null,null,null,null,null,null,null,null,null,null,null,null,null,null,null,null,null,null,null,null,null,null,null,null,null,null,null,null,null,null,null,null,null,null,null,null,null,null,null,null,null,null,null,-500000,500000,null,1,1,31,null,1,0,0,null,{"$f":"AND(B61=$C$9,'Standing Data'!$D$9<>\"Multi-academy Trust\")","v":{"$error":"#N/A"}}]
[{"$f":"IF(B62<>\"\",IF('Standing Data'!$D$9<>\"Multiple\",IF('Standing Data'!$D$9=B62,\"Error - counterparty with self\",\"\"),IF(N(ISNA(MATCH(B62,'Standing Data'!$E$48:$E$147,0)))<>0,\"\",\"Error - counterparty with self\")),\"\")","v":""},null,{"$f":"IFERROR(VLOOKUP(B62,'CP IDs'!$A$1:$E$7199,2,FALSE),\"\")","v":""},{"$f":"IFERROR(VLOOKUP(B62,'CP IDs'!$A$1:$E$7199,5,FALSE),\"\")","v":""},"",null,null,null,null,null,null,null,null,null,null,null,null,null,null,null,null,null,null,null,null,null,null,null,null,null,null,null,null,null,null,null,null,null,null,null,null,null,null,null,null,null,null,null,null,null,-500000,500000,null,1,1,31,null,1,0,0,null,{"$f":"AND(B62=$C$9,'Standing Data'!$D$9<>\"Multi-academy Trust\")","v":{"$error":"#N/A"}}]
[{"$f":"IF(B63<>\"\",IF('Standing Data'!$D$9<>\"Multiple\",IF('Standing Data'!$D$9=B63,\"Error - counterparty with self\",\"\"),IF(N(ISNA(MATCH(B63,'Standing Data'!$E$48:$E$147,0)))<>0,\"\",\"Error - counterparty with self\")),\"\")","v":""},null,{"$f":"IFERROR(VLOOKUP(B63,'CP IDs'!$A$1:$E$7199,2,FALSE),\"\")","v":""},{"$f":"IFERROR(VLOOKUP(B63,'CP IDs'!$A$1:$E$7199,5,FALSE),\"\")","v":""},"",null,null,null,null,null,null,null,null,null,null,null,null,null,null,null,null,null,null,null,null,null,null,null,null,null,null,null,null,null,null,null,null,null,null,null,null,null,null,null,null,null,null,null,null,null,-500000,500000,null,1,1,31,null,1,0,0,null,{"$f":"AND(B63=$C$9,'Standing Data'!$D$9<>\"Multi-academy Trust\")","v":{"$error":"#N/A"}}]
[{"$f":"IF(B64<>\"\",IF('Standing Data'!$D$9<>\"Multiple\",IF('Standing Data'!$D$9=B64,\"Error - counterparty with self\",\"\"),IF(N(ISNA(MATCH(B64,'Standing Data'!$E$48:$E$147,0)))<>0,\"\",\"Error - counterparty with self\")),\"\")","v":""},null,{"$f":"IFERROR(VLOOKUP(B64,'CP IDs'!$A$1:$E$7199,2,FALSE),\"\")","v":""},{"$f":"IFERROR(VLOOKUP(B64,'CP IDs'!$A$1:$E$7199,5,FALSE),\"\")","v":""},"",null,null,null,null,null,null,null,null,null,null,null,null,null,null,null,null,null,null,null,null,null,null,null,null,null,null,null,null,null,null,null,null,null,null,null,null,null,null,null,null,null,null,null,null,null,-500000,500000,null,1,1,31,null,1,0,0,null,{"$f":"AND(B64=$C$9,'Standing Data'!$D$9<>\"Multi-academy Trust\")","v":{"$error":"#N/A"}}]
[{"$f":"IF(B65<>\"\",IF('Standing Data'!$D$9<>\"Multiple\",IF('Standing Data'!$D$9=B65,\"Error - counterparty with self\",\"\"),IF(N(ISNA(MATCH(B65,'Standing Data'!$E$48:$E$147,0)))<>0,\"\",\"Error - counterparty with self\")),\"\")","v":""},null,{"$f":"IFERROR(VLOOKUP(B65,'CP IDs'!$A$1:$E$7199,2,FALSE),\"\")","v":""},{"$f":"IFERROR(VLOOKUP(B65,'CP IDs'!$A$1:$E$7199,5,FALSE),\"\")","v":""},"",null,null,null,null,null,null,null,null,null,null,null,null,null,null,null,null,null,null,null,null,null,null,null,null,null,null,null,null,null,null,null,null,null,null,null,null,null,null,null,null,null,null,null,null,null,-500000,500000,null,1,1,31,null,1,0,0,null,{"$f":"AND(B65=$C$9,'Standing Data'!$D$9<>\"Multi-academy Trust\")","v":{"$error":"#N/A"}}]
[{"$f":"IF(B66<>\"\",IF('Standing Data'!$D$9<>\"Multiple\",IF('Standing Data'!$D$9=B66,\"Error - counterparty with self\",\"\"),IF(N(ISNA(MATCH(B66,'Standing Data'!$E$48:$E$147,0)))<>0,\"\",\"Error - counterparty with self\")),\"\")","v":""},null,{"$f":"IFERROR(VLOOKUP(B66,'CP IDs'!$A$1:$E$7199,2,FALSE),\"\")","v":""},{"$f":"IFERROR(VLOOKUP(B66,'CP IDs'!$A$1:$E$7199,5,FALSE),\"\")","v":""},"",null,null,null,null,null,null,null,null,null,null,null,null,null,null,null,null,null,null,null,null,null,null,null,null,null,null,null,null,null,null,null,null,null,null,null,null,null,null,null,null,null,null,null,null,null,-500000,500000,null,1,1,31,null,1,0,0,null,{"$f":"AND(B66=$C$9,'Standing Data'!$D$9<>\"Multi-academy Trust\")","v":{"$error":"#N/A"}}]
[{"$f":"IF(B67<>\"\",IF('Standing Data'!$D$9<>\"Multiple\",IF('Standing Data'!$D$9=B67,\"Error - counterparty with self\",\"\"),IF(N(ISNA(MATCH(B67,'Standing Data'!$E$48:$E$147,0)))<>0,\"\",\"Error - counterparty with self\")),\"\")","v":""},null,{"$f":"IFERROR(VLOOKUP(B67,'CP IDs'!$A$1:$E$7199,2,FALSE),\"\")","v":""},{"$f":"IFERROR(VLOOKUP(B67,'CP IDs'!$A$1:$E$7199,5,FALSE),\"\")","v":""},"",null,null,null,null,null,null,null,null,null,null,null,null,null,null,null,null,null,null,null,null,null,null,null,null,null,null,null,null,null,null,null,null,null,null,null,null,null,null,null,null,null,null,null,null,null,-500000,500000,null,1,1,31,null,1,0,0,null,{"$f":"AND(B67=$C$9,'Standing Data'!$D$9<>\"Multi-academy Trust\")","v":{"$error":"#N/A"}}]
[{"$f":"IF(B68<>\"\",IF('Standing Data'!$D$9<>\"Multiple\",IF('Standing Data'!$D$9=B68,\"Error - counterparty with self\",\"\"),IF(N(ISNA(MATCH(B68,'Standing Data'!$E$48:$E$147,0)))<>0,\"\",\"Error - counterparty with self\")),\"\")","v":""},null,{"$f":"IFERROR(VLOOKUP(B68,'CP IDs'!$A$1:$E$7199,2,FALSE),\"\")","v":""},{"$f":"IFERROR(VLOOKUP(B68,'CP IDs'!$A$1:$E$7199,5,FALSE),\"\")","v":""},"",null,null,null,null,null,null,null,null,null,null,null,null,null,null,null,null,null,null,null,null,null,null,null,null,null,null,null,null,null,null,null,null,null,null,null,null,null,null,null,null,null,null,null,null,null,-500000,500000,null,1,1,31,null,1,0,0,null,{"$f":"AND(B68=$C$9,'Standing Data'!$D$9<>\"Multi-academy Trust\")","v":{"$error":"#N/A"}}]
[{"$f":"IF(B69<>\"\",IF('Standing Data'!$D$9<>\"Multiple\",IF('Standing Data'!$D$9=B69,\"Error - counterparty with self\",\"\"),IF(N(ISNA(MATCH(B69,'Standing Data'!$E$48:$E$147,0)))<>0,\"\",\"Error - counterparty with self\")),\"\")","v":""},null,{"$f":"IFERROR(VLOOKUP(B69,'CP IDs'!$A$1:$E$7199,2,FALSE),\"\")","v":""},{"$f":"IFERROR(VLOOKUP(B69,'CP IDs'!$A$1:$E$7199,5,FALSE),\"\")","v":""},"",null,null,null,null,null,null,null,null,null,null,null,null,null,null,null,null,null,null,null,null,null,null,null,null,null,null,null,null,null,null,null,null,null,null,null,null,null,null,null,null,null,null,null,null,null,-500000,500000,null,1,1,31,null,1,0,0,null,{"$f":"AND(B69=$C$9,'Standing Data'!$D$9<>\"Multi-academy Trust\")","v":{"$error":"#N/A"}}]
[{"$f":"IF(B70<>\"\",IF('Standing Data'!$D$9<>\"Multiple\",IF('Standing Data'!$D$9=B70,\"Error - counterparty with self\",\"\"),IF(N(ISNA(MATCH(B70,'Standing Data'!$E$48:$E$147,0)))<>0,\"\",\"Error - counterparty with self\")),\"\")","v":""},null,{"$f":"IFERROR(VLOOKUP(B70,'CP IDs'!$A$1:$E$7199,2,FALSE),\"\")","v":""},{"$f":"IFERROR(VLOOKUP(B70,'CP IDs'!$A$1:$E$7199,5,FALSE),\"\")","v":""},"",null,null,null,null,null,null,null,null,null,null,null,null,null,null,null,null,null,null,null,null,null,null,null,null,null,null,null,null,null,null,null,null,null,null,null,null,null,null,null,null,null,null,null,null,null,-500000,500000,null,1,1,31,null,1,0,0,null,{"$f":"AND(B70=$C$9,'Standing Data'!$D$9<>\"Multi-academy Trust\")","v":{"$error":"#N/A"}}]
[{"$f":"IF(B71<>\"\",IF('Standing Data'!$D$9<>\"Multiple\",IF('Standing Data'!$D$9=B71,\"Error - counterparty with self\",\"\"),IF(N(ISNA(MATCH(B71,'Standing Data'!$E$48:$E$147,0)))<>0,\"\",\"Error - counterparty with self\")),\"\")","v":""},null,{"$f":"IFERROR(VLOOKUP(B71,'CP IDs'!$A$1:$E$7199,2,FALSE),\"\")","v":""},{"$f":"IFERROR(VLOOKUP(B71,'CP IDs'!$A$1:$E$7199,5,FALSE),\"\")","v":""},"",null,null,null,null,null,null,null,null,null,null,null,null,null,null,null,null,null,null,null,null,null,null,null,null,null,null,null,null,null,null,null,null,null,null,null,null,null,null,null,null,null,null,null,null,null,-500000,500000,null,1,1,31,null,1,0,0,null,{"$f":"AND(B71=$C$9,'Standing Data'!$D$9<>\"Multi-academy Trust\")","v":{"$error":"#N/A"}}]
[{"$f":"IF(B72<>\"\",IF('Standing Data'!$D$9<>\"Multiple\",IF('Standing Data'!$D$9=B72,\"Error - counterparty with self\",\"\"),IF(N(ISNA(MATCH(B72,'Standing Data'!$E$48:$E$147,0)))<>0,\"\",\"Error - counterparty with self\")),\"\")","v":""},null,{"$f":"IFERROR(VLOOKUP(B72,'CP IDs'!$A$1:$E$7199,2,FALSE),\"\")","v":""},{"$f":"IFERROR(VLOOKUP(B72,'CP IDs'!$A$1:$E$7199,5,FALSE),\"\")","v":""},"",null,null,null,null,null,null,null,null,null,null,null,null,null,null,null,null,null,null,null,null,null,null,null,null,null,null,null,null,null,null,null,null,null,null,null,null,null,null,null,null,null,null,null,null,null,-500000,500000,null,1,1,31,null,1,0,0,null,{"$f":"AND(B72=$C$9,'Standing Data'!$D$9<>\"Multi-academy Trust\")","v":{"$error":"#N/A"}}]
[{"$f":"IF(B73<>\"\",IF('Standing Data'!$D$9<>\"Multiple\",IF('Standing Data'!$D$9=B73,\"Error - counterparty with self\",\"\"),IF(N(ISNA(MATCH(B73,'Standing Data'!$E$48:$E$147,0)))<>0,\"\",\"Error - counterparty with self\")),\"\")","v":""},null,{"$f":"IFERROR(VLOOKUP(B73,'CP IDs'!$A$1:$E$7199,2,FALSE),\"\")","v":""},{"$f":"IFERROR(VLOOKUP(B73,'CP IDs'!$A$1:$E$7199,5,FALSE),\"\")","v":""},"",null,null,null,null,null,null,null,null,null,null,null,null,null,null,null,null,null,null,null,null,null,null,null,null,null,null,null,null,null,null,null,null,null,null,null,null,null,null,null,null,null,null,null,null,null,-500000,500000,null,1,1,31,null,1,0,0,null,{"$f":"AND(B73=$C$9,'Standing Data'!$D$9<>\"Multi-academy Trust\")","v":{"$error":"#N/A"}}]
[{"$f":"IF(B74<>\"\",IF('Standing Data'!$D$9<>\"Multiple\",IF('Standing Data'!$D$9=B74,\"Error - counterparty with self\",\"\"),IF(N(ISNA(MATCH(B74,'Standing Data'!$E$48:$E$147,0)))<>0,\"\",\"Error - counterparty with self\")),\"\")","v":""},null,{"$f":"IFERROR(VLOOKUP(B74,'CP IDs'!$A$1:$E$7199,2,FALSE),\"\")","v":""},{"$f":"IFERROR(VLOOKUP(B74,'CP IDs'!$A$1:$E$7199,5,FALSE),\"\")","v":""},"",null,null,null,null,null,null,null,null,null,null,null,null,null,null,null,null,null,null,null,null,null,null,null,null,null,null,null,null,null,null,null,null,null,null,null,null,null,null,null,null,null,null,null,null,null,-500000,500000,null,1,1,31,null,1,0,0,null,{"$f":"AND(B74=$C$9,'Standing Data'!$D$9<>\"Multi-academy Trust\")","v":{"$error":"#N/A"}}]
[{"$f":"IF(B75<>\"\",IF('Standing Data'!$D$9<>\"Multiple\",IF('Standing Data'!$D$9=B75,\"Error - counterparty with self\",\"\"),IF(N(ISNA(MATCH(B75,'Standing Data'!$E$48:$E$147,0)))<>0,\"\",\"Error - counterparty with self\")),\"\")","v":""},null,{"$f":"IFERROR(VLOOKUP(B75,'CP IDs'!$A$1:$E$7199,2,FALSE),\"\")","v":""},{"$f":"IFERROR(VLOOKUP(B75,'CP IDs'!$A$1:$E$7199,5,FALSE),\"\")","v":""},"",null,null,null,null,null,null,null,null,null,null,null,null,null,null,null,null,null,null,null,null,null,null,null,null,null,null,null,null,null,null,null,null,null,null,null,null,null,null,null,null,null,null,null,null,null,-500000,500000,null,1,1,31,null,1,0,0,null,{"$f":"AND(B75=$C$9,'Standing Data'!$D$9<>\"Multi-academy Trust\")","v":{"$error":"#N/A"}}]
[{"$f":"IF(B76<>\"\",IF('Standing Data'!$D$9<>\"Multiple\",IF('Standing Data'!$D$9=B76,\"Error - counterparty with self\",\"\"),IF(N(ISNA(MATCH(B76,'Standing Data'!$E$48:$E$147,0)))<>0,\"\",\"Error - counterparty with self\")),\"\")","v":""},null,{"$f":"IFERROR(VLOOKUP(B76,'CP IDs'!$A$1:$E$7199,2,FALSE),\"\")","v":""},{"$f":"IFERROR(VLOOKUP(B76,'CP IDs'!$A$1:$E$7199,5,FALSE),\"\")","v":""},"",null,null,null,null,null,null,null,null,null,null,null,null,null,null,null,null,null,null,null,null,null,null,null,null,null,null,null,null,null,null,null,null,null,null,null,null,null,null,null,null,null,null,null,null,null,-500000,500000,null,1,1,31,null,1,0,0,null,{"$f":"AND(B76=$C$9,'Standing Data'!$D$9<>\"Multi-academy Trust\")","v":{"$error":"#N/A"}}]
[{"$f":"IF(B77<>\"\",IF('Standing Data'!$D$9<>\"Multiple\",IF('Standing Data'!$D$9=B77,\"Error - counterparty with self\",\"\"),IF(N(ISNA(MATCH(B77,'Standing Data'!$E$48:$E$147,0)))<>0,\"\",\"Error - counterparty with self\")),\"\")","v":""},null,{"$f":"IFERROR(VLOOKUP(B77,'CP IDs'!$A$1:$E$7199,2,FALSE),\"\")","v":""},{"$f":"IFERROR(VLOOKUP(B77,'CP IDs'!$A$1:$E$7199,5,FALSE),\"\")","v":""},"",null,null,null,null,null,null,null,null,null,null,null,null,null,null,null,null,null,null,null,null,null,null,null,null,null,null,null,null,null,null,null,null,null,null,null,null,null,null,null,null,null,null,null,null,null,-500000,500000,null,1,1,31,null,1,0,0,null,{"$f":"AND(B77=$C$9,'Standing Data'!$D$9<>\"Multi-academy Trust\")","v":{"$error":"#N/A"}}]
[{"$f":"IF(B78<>\"\",IF('Standing Data'!$D$9<>\"Multiple\",IF('Standing Data'!$D$9=B78,\"Error - counterparty with self\",\"\"),IF(N(ISNA(MATCH(B78,'Standing Data'!$E$48:$E$147,0)))<>0,\"\",\"Error - counterparty with self\")),\"\")","v":""},null,{"$f":"IFERROR(VLOOKUP(B78,'CP IDs'!$A$1:$E$7199,2,FALSE),\"\")","v":""},{"$f":"IFERROR(VLOOKUP(B78,'CP IDs'!$A$1:$E$7199,5,FALSE),\"\")","v":""},"",null,null,null,null,null,null,null,null,null,null,null,null,null,null,null,null,null,null,null,null,null,null,null,null,null,null,null,null,null,null,null,null,null,null,null,null,null,null,null,null,null,null,null,null,null,-500000,500000,null,1,1,31,null,1,0,0,null,{"$f":"AND(B78=$C$9,'Standing Data'!$D$9<>\"Multi-academy Trust\")","v":{"$error":"#N/A"}}]
[{"$f":"IF(B79<>\"\",IF('Standing Data'!$D$9<>\"Multiple\",IF('Standing Data'!$D$9=B79,\"Error - counterparty with self\",\"\"),IF(N(ISNA(MATCH(B79,'Standing Data'!$E$48:$E$147,0)))<>0,\"\",\"Error - counterparty with self\")),\"\")","v":""},null,{"$f":"IFERROR(VLOOKUP(B79,'CP IDs'!$A$1:$E$7199,2,FALSE),\"\")","v":""},{"$f":"IFERROR(VLOOKUP(B79,'CP IDs'!$A$1:$E$7199,5,FALSE),\"\")","v":""},"",null,null,null,null,null,null,null,null,null,null,null,null,null,null,null,null,null,null,null,null,null,null,null,null,null,null,null,null,null,null,null,null,null,null,null,null,null,null,null,null,null,null,null,null,null,-500000,500000,null,1,1,31,null,1,0,0,null,{"$f":"AND(B79=$C$9,'Standing Data'!$D$9<>\"Multi-academy Trust\")","v":{"$error":"#N/A"}}]
[{"$f":"IF(B80<>\"\",IF('Standing Data'!$D$9<>\"Multiple\",IF('Standing Data'!$D$9=B80,\"Error - counterparty with self\",\"\"),IF(N(ISNA(MATCH(B80,'Standing Data'!$E$48:$E$147,0)))<>0,\"\",\"Error - counterparty with self\")),\"\")","v":""},null,{"$f":"IFERROR(VLOOKUP(B80,'CP IDs'!$A$1:$E$7199,2,FALSE),\"\")","v":""},{"$f":"IFERROR(VLOOKUP(B80,'CP IDs'!$A$1:$E$7199,5,FALSE),\"\")","v":""},"",null,null,null,null,null,null,null,null,null,null,null,null,null,null,null,null,null,null,null,null,null,null,null,null,null,null,null,null,null,null,null,null,null,null,null,null,null,null,null,null,null,null,null,null,null,-500000,500000,null,1,1,31,null,1,0,0,null,{"$f":"AND(B80=$C$9,'Standing Data'!$D$9<>\"Multi-academy Trust\")","v":{"$error":"#N/A"}}]
[{"$f":"IF(B81<>\"\",IF('Standing Data'!$D$9<>\"Multiple\",IF('Standing Data'!$D$9=B81,\"Error - counterparty with self\",\"\"),IF(N(ISNA(MATCH(B81,'Standing Data'!$E$48:$E$147,0)))<>0,\"\",\"Error - counterparty with self\")),\"\")","v":""},null,{"$f":"IFERROR(VLOOKUP(B81,'CP IDs'!$A$1:$E$7199,2,FALSE),\"\")","v":""},{"$f":"IFERROR(VLOOKUP(B81,'CP IDs'!$A$1:$E$7199,5,FALSE),\"\")","v":""},"",null,null,null,null,null,null,null,null,null,null,null,null,null,null,null,null,null,null,null,null,null,null,null,null,null,null,null,null,null,null,null,null,null,null,null,null,null,null,null,null,null,null,null,null,null,-500000,500000,null,1,1,31,null,1,0,0,null,{"$f":"AND(B81=$C$9,'Standing Data'!$D$9<>\"Multi-academy Trust\")","v":{"$error":"#N/A"}}]
[{"$f":"IF(B82<>\"\",IF('Standing Data'!$D$9<>\"Multiple\",IF('Standing Data'!$D$9=B82,\"Error - counterparty with self\",\"\"),IF(N(ISNA(MATCH(B82,'Standing Data'!$E$48:$E$147,0)))<>0,\"\",\"Error - counterparty with self\")),\"\")","v":""},null,{"$f":"IFERROR(VLOOKUP(B82,'CP IDs'!$A$1:$E$7199,2,FALSE),\"\")","v":""},{"$f":"IFERROR(VLOOKUP(B82,'CP IDs'!$A$1:$E$7199,5,FALSE),\"\")","v":""},"",null,null,null,null,null,null,null,null,null,null,null,null,null,null,null,null,null,null,null,null,null,null,null,null,null,null,null,null,null,null,null,null,null,null,null,null,null,null,null,null,null,null,null,null,null,-500000,500000,null,1,1,31,null,1,0,0,null,{"$f":"AND(B82=$C$9,'Standing Data'!$D$9<>\"Multi-academy Trust\")","v":{"$error":"#N/A"}}]
[{"$f":"IF(B83<>\"\",IF('Standing Data'!$D$9<>\"Multiple\",IF('Standing Data'!$D$9=B83,\"Error - counterparty with self\",\"\"),IF(N(ISNA(MATCH(B83,'Standing Data'!$E$48:$E$147,0)))<>0,\"\",\"Error - counterparty with self\")),\"\")","v":""},null,{"$f":"IFERROR(VLOOKUP(B83,'CP IDs'!$A$1:$E$7199,2,FALSE),\"\")","v":""},{"$f":"IFERROR(VLOOKUP(B83,'CP IDs'!$A$1:$E$7199,5,FALSE),\"\")","v":""},"",null,null,null,null,null,null,null,null,null,null,null,null,null,null,null,null,null,null,null,null,null,null,null,null,null,null,null,null,null,null,null,null,null,null,null,null,null,null,null,null,null,null,null,null,null,-500000,500000,null,1,1,31,null,1,0,0,null,{"$f":"AND(B83=$C$9,'Standing Data'!$D$9<>\"Multi-academy Trust\")","v":{"$error":"#N/A"}}]
[{"$f":"IF(B84<>\"\",IF('Standing Data'!$D$9<>\"Multiple\",IF('Standing Data'!$D$9=B84,\"Error - counterparty with self\",\"\"),IF(N(ISNA(MATCH(B84,'Standing Data'!$E$48:$E$147,0)))<>0,\"\",\"Error - counterparty with self\")),\"\")","v":""},null,{"$f":"IFERROR(VLOOKUP(B84,'CP IDs'!$A$1:$E$7199,2,FALSE),\"\")","v":""},{"$f":"IFERROR(VLOOKUP(B84,'CP IDs'!$A$1:$E$7199,5,FALSE),\"\")","v":""},"",null,null,null,null,null,null,null,null,null,null,null,null,null,null,null,null,null,null,null,null,null,null,null,null,null,null,null,null,null,null,null,null,null,null,null,null,null,null,null,null,null,null,null,null,null,-500000,500000,null,1,1,31,null,1,0,0,null,{"$f":"AND(B84=$C$9,'Standing Data'!$D$9<>\"Multi-academy Trust\")","v":{"$error":"#N/A"}}]
[{"$f":"IF(B85<>\"\",IF('Standing Data'!$D$9<>\"Multiple\",IF('Standing Data'!$D$9=B85,\"Error - counterparty with self\",\"\"),IF(N(ISNA(MATCH(B85,'Standing Data'!$E$48:$E$147,0)))<>0,\"\",\"Error - counterparty with self\")),\"\")","v":""},null,{"$f":"IFERROR(VLOOKUP(B85,'CP IDs'!$A$1:$E$7199,2,FALSE),\"\")","v":""},{"$f":"IFERROR(VLOOKUP(B85,'CP IDs'!$A$1:$E$7199,5,FALSE),\"\")","v":""},"",null,null,null,null,null,null,null,null,null,null,null,null,null,null,null,null,null,null,null,null,null,null,null,null,null,null,null,null,null,null,null,null,null,null,null,null,null,null,null,null,null,null,null,null,null,-500000,500000,null,1,1,31,null,1,0,0,null,{"$f":"AND(B85=$C$9,'Standing Data'!$D$9<>\"Multi-academy Trust\")","v":{"$error":"#N/A"}}]
[{"$f":"IF(B86<>\"\",IF('Standing Data'!$D$9<>\"Multiple\",IF('Standing Data'!$D$9=B86,\"Error - counterparty with self\",\"\"),IF(N(ISNA(MATCH(B86,'Standing Data'!$E$48:$E$147,0)))<>0,\"\",\"Error - counterparty with self\")),\"\")","v":""},null,{"$f":"IFERROR(VLOOKUP(B86,'CP IDs'!$A$1:$E$7199,2,FALSE),\"\")","v":""},{"$f":"IFERROR(VLOOKUP(B86,'CP IDs'!$A$1:$E$7199,5,FALSE),\"\")","v":""},"",null,null,null,null,null,null,null,null,null,null,null,null,null,null,null,null,null,null,null,null,null,null,null,null,null,null,null,null,null,null,null,null,null,null,null,null,null,null,null,null,null,null,null,null,null,-500000,500000,null,1,1,31,null,1,0,{"$f":"COUNT(F86:AV86)","v":0},null,{"$f":"AND(B86=$C$9,'Standing Data'!$D$9<>\"Multi-academy Trust\")","v":{"$error":"#N/A"}}]
[{"$f":"IF(B87<>\"\",IF('Standing Data'!$D$9<>\"Multiple\",IF('Standing Data'!$D$9=B87,\"Error - counterparty with self\",\"\"),IF(N(ISNA(MATCH(B87,'Standing Data'!$E$48:$E$147,0)))<>0,\"\",\"Error - counterparty with self\")),\"\")","v":""},null,{"$f":"IFERROR(VLOOKUP(B87,'CP IDs'!$A$1:$E$7199,2,FALSE),\"\")","v":""},{"$f":"IFERROR(VLOOKUP(B87,'CP IDs'!$A$1:$E$7199,5,FALSE),\"\")","v":""},"",null,null,null,null,null,null,null,null,null,null,null,null,null,null,null,null,null,null,null,null,null,null,null,null,null,null,null,null,null,null,null,null,null,null,null,null,null,null,null,null,null,null,null,null,null,{"$f":"AY86","v":-500000},{"$f":"AZ86","v":500000},null,1,1,31,null,1,0,0,null,{"$f":"AND(B87=$C$9,'Standing Data'!$D$9<>\"Multi-academy Trust\")","v":{"$error":"#N/A"}}]
[{"$f":"IF(B88<>\"\",IF('Standing Data'!$D$9<>\"Multiple\",IF('Standing Data'!$D$9=B88,\"Error - counterparty with self\",\"\"),IF(N(ISNA(MATCH(B88,'Standing Data'!$E$48:$E$147,0)))<>0,\"\",\"Error - counterparty with self\")),\"\")","v":""},null,{"$f":"IFERROR(VLOOKUP(B88,'CP IDs'!$A$1:$E$7199,2,FALSE),\"\")","v":""},{"$f":"IFERROR(VLOOKUP(B88,'CP IDs'!$A$1:$E$7199,5,FALSE),\"\")","v":""},"",null,null,null,null,null,null,null,null,null,null,null,null,null,null,null,null,null,null,null,null,null,null,null,null,null,null,null,null,null,null,null,null,null,null,null,null,null,null,null,null,null,null,null,null,null,-500000,500000,null,1,1,31,null,1,0,0,null,{"$f":"AND(B88=$C$9,'Standing Data'!$D$9<>\"Multi-academy Trust\")","v":{"$error":"#N/A"}}]
[{"$f":"IF(B89<>\"\",IF('Standing Data'!$D$9<>\"Multiple\",IF('Standing Data'!$D$9=B89,\"Error - counterparty with self\",\"\"),IF(N(ISNA(MATCH(B89,'Standing Data'!$E$48:$E$147,0)))<>0,\"\",\"Error - counterparty with self\")),\"\")","v":""},null,{"$f":"IFERROR(VLOOKUP(B89,'CP IDs'!$A$1:$E$7199,2,FALSE),\"\")","v":""},{"$f":"IFERROR(VLOOKUP(B89,'CP IDs'!$A$1:$E$7199,5,FALSE),\"\")","v":""},"",null,null,null,null,null,null,null,null,null,null,null,null,null,null,null,null,null,null,null,null,null,null,null,null,null,null,null,null,null,null,null,null,null,null,null,null,null,null,null,null,null,null,null,null,null,-500000,500000,null,1,1,31,null,1,0,0,null,{"$f":"AND(B89=$C$9,'Standing Data'!$D$9<>\"Multi-academy Trust\")","v":{"$error":"#N/A"}}]
[{"$f":"IF(B90<>\"\",IF('Standing Data'!$D$9<>\"Multiple\",IF('Standing Data'!$D$9=B90,\"Error - counterparty with self\",\"\"),IF(N(ISNA(MATCH(B90,'Standing Data'!$E$48:$E$147,0)))<>0,\"\",\"Error - counterparty with self\")),\"\")","v":""},null,{"$f":"IFERROR(VLOOKUP(B90,'CP IDs'!$A$1:$E$7199,2,FALSE),\"\")","v":""},{"$f":"IFERROR(VLOOKUP(B90,'CP IDs'!$A$1:$E$7199,5,FALSE),\"\")","v":""},"",null,null,null,null,null,null,null,null,null,null,null,null,null,null,null,null,null,null,null,null,null,null,null,null,null,null,null,null,null,null,null,null,null,null,null,null,null,null,null,null,null,null,null,null,null,-500000,500000,null,1,1,31,null,1,0,0,null,{"$f":"AND(B90=$C$9,'Standing Data'!$D$9<>\"Multi-academy Trust\")","v":{"$error":"#N/A"}}]
[{"$f":"IF(B91<>\"\",IF('Standing Data'!$D$9<>\"Multiple\",IF('Standing Data'!$D$9=B91,\"Error - counterparty with self\",\"\"),IF(N(ISNA(MATCH(B91,'Standing Data'!$E$48:$E$147,0)))<>0,\"\",\"Error - counterparty with self\")),\"\")","v":""},null,{"$f":"IFERROR(VLOOKUP(B91,'CP IDs'!$A$1:$E$7199,2,FALSE),\"\")","v":""},{"$f":"IFERROR(VLOOKUP(B91,'CP IDs'!$A$1:$E$7199,5,FALSE),\"\")","v":""},"",null,null,null,null,null,null,null,null,null,null,null,null,null,null,null,null,null,null,null,null,null,null,null,null,null,null,null,null,null,null,null,null,null,null,null,null,null,null,null,null,null,null,null,null,null,-500000,500000,null,1,1,31,null,1,0,0,null,{"$f":"AND(B91=$C$9,'Standing Data'!$D$9<>\"Multi-academy Trust\")","v":{"$error":"#N/A"}}]
[{"$f":"IF(B92<>\"\",IF('Standing Data'!$D$9<>\"Multiple\",IF('Standing Data'!$D$9=B92,\"Error - counterparty with self\",\"\"),IF(N(ISNA(MATCH(B92,'Standing Data'!$E$48:$E$147,0)))<>0,\"\",\"Error - counterparty with self\")),\"\")","v":""},null,{"$f":"IFERROR(VLOOKUP(B92,'CP IDs'!$A$1:$E$7199,2,FALSE),\"\")","v":""},{"$f":"IFERROR(VLOOKUP(B92,'CP IDs'!$A$1:$E$7199,5,FALSE),\"\")","v":""},"",null,null,null,null,null,null,null,null,null,null,null,null,null,null,null,null,null,null,null,null,null,null,null,null,null,null,null,null,null,null,null,null,null,null,null,null,null,null,null,null,null,null,null,null,null,-500000,500000,null,1,1,31,null,1,0,0,null,{"$f":"AND(B92=$C$9,'Standing Data'!$D$9<>\"Multi-academy Trust\")","v":{"$error":"#N/A"}}]
[{"$f":"IF(B93<>\"\",IF('Standing Data'!$D$9<>\"Multiple\",IF('Standing Data'!$D$9=B93,\"Error - counterparty with self\",\"\"),IF(N(ISNA(MATCH(B93,'Standing Data'!$E$48:$E$147,0)))<>0,\"\",\"Error - counterparty with self\")),\"\")","v":""},null,{"$f":"IFERROR(VLOOKUP(B93,'CP IDs'!$A$1:$E$7199,2,FALSE),\"\")","v":""},{"$f":"IFERROR(VLOOKUP(B93,'CP IDs'!$A$1:$E$7199,5,FALSE),\"\")","v":""},"",null,null,null,null,null,null,null,null,null,null,null,null,null,null,null,null,null,null,null,null,null,null,null,null,null,null,null,null,null,null,null,null,null,null,null,null,null,null,null,null,null,null,null,null,null,-500000,500000,null,1,1,31,null,1,0,0,null,{"$f":"AND(B93=$C$9,'Standing Data'!$D$9<>\"Multi-academy Trust\")","v":{"$error":"#N/A"}}]
[{"$f":"IF(B94<>\"\",IF('Standing Data'!$D$9<>\"Multiple\",IF('Standing Data'!$D$9=B94,\"Error - counterparty with self\",\"\"),IF(N(ISNA(MATCH(B94,'Standing Data'!$E$48:$E$147,0)))<>0,\"\",\"Error - counterparty with self\")),\"\")","v":""},null,{"$f":"IFERROR(VLOOKUP(B94,'CP IDs'!$A$1:$E$7199,2,FALSE),\"\")","v":""},{"$f":"IFERROR(VLOOKUP(B94,'CP IDs'!$A$1:$E$7199,5,FALSE),\"\")","v":""},"",null,null,null,null,null,null,null,null,null,null,null,null,null,null,null,null,null,null,null,null,null,null,null,null,null,null,null,null,null,null,null,null,null,null,null,null,null,null,null,null,null,null,null,null,null,-500000,500000,null,1,1,31,null,{"$f":"COUNTA(C94)","v":1},{"$f":"1-COUNTBLANK(B94)","v":0},0,null,{"$f":"AND(B94=$C$9,'Standing Data'!$D$9<>\"Multi-academy Trust\")","v":{"$error":"#N/A"}}]
[{"$f":"IF(B95<>\"\",IF('Standing Data'!$D$9<>\"Multiple\",IF('Standing Data'!$D$9=B95,\"Error - counterparty with self\",\"\"),IF(N(ISNA(MATCH(B95,'Standing Data'!$E$48:$E$147,0)))<>0,\"\",\"Error - counterparty with self\")),\"\")","v":""},null,{"$f":"IFERROR(VLOOKUP(B95,'CP IDs'!$A$1:$E$7199,2,FALSE),\"\")","v":""},{"$f":"IFERROR(VLOOKUP(B95,'CP IDs'!$A$1:$E$7199,5,FALSE),\"\")","v":""},{"$f":"IF(OR(AND(COUNT(F95:AV95)>0,C95=\"\"),AND(COUNT(F95:AV95)=0,C95<>\"\")),\"Error - on line\",\"\")","v":""},null,null,null,null,null,null,null,null,null,null,null,null,null,null,null,null,null,null,null,null,null,null,null,null,null,null,null,null,null,null,null,null,null,null,null,null,null,null,null,null,null,null,null,null,null,-500000,500000,null,1,1,31,null,1,0,0,null,{"$f":"AND(B95=$C$9,'Standing Data'!$D$9<>\"Multi-academy Trust\")","v":{"$error":"#N/A"}}]
[{"$f":"IF(B96<>\"\",IF('Standing Data'!$D$9<>\"Multiple\",IF('Standing Data'!$D$9=B96,\"Error - counterparty with self\",\"\"),IF(N(ISNA(MATCH(B96,'Standing Data'!$E$48:$E$147,0)))<>0,\"\",\"Error - counterparty with self\")),\"\")","v":""},null,{"$f":"IFERROR(VLOOKUP(B96,'CP IDs'!$A$1:$E$7199,2,FALSE),\"\")","v":""},{"$f":"IFERROR(VLOOKUP(B96,'CP IDs'!$A$1:$E$7199,5,FALSE),\"\")","v":""},"",null,null,null,null,null,null,null,null,null,null,null,null,null,null,null,null,null,null,null,null,null,null,null,null,null,null,null,null,null,null,null,null,null,null,null,null,null,null,null,null,null,null,null,null,null,-500000,500000,null,1,1,31,null,1,0,0,null,{"$f":"AND(B96=$C$9,'Standing Data'!$D$9<>\"Multi-academy Trust\")","v":{"$error":"#N/A"}}]
[{"$f":"IF(B97<>\"\",IF('Standing Data'!$D$9<>\"Multiple\",IF('Standing Data'!$D$9=B97,\"Error - counterparty with self\",\"\"),IF(N(ISNA(MATCH(B97,'Standing Data'!$E$48:$E$147,0)))<>0,\"\",\"Error - counterparty with self\")),\"\")","v":""},null,{"$f":"IFERROR(VLOOKUP(B97,'CP IDs'!$A$1:$E$7199,2,FALSE),\"\")","v":""},{"$f":"IFERROR(VLOOKUP(B97,'CP IDs'!$A$1:$E$7199,5,FALSE),\"\")","v":""},"",null,null,null,null,null,null,null,null,null,null,null,null,null,null,null,null,null,null,null,null,null,null,null,null,null,null,null,null,null,null,null,null,null,null,null,null,null,null,null,null,null,null,null,null,null,-500000,500000,null,1,1,31,null,1,0,0,null,{"$f":"AND(B97=$C$9,'Standing Data'!$D$9<>\"Multi-academy Trust\")","v":{"$error":"#N/A"}}]
[{"$f":"IF(B98<>\"\",IF('Standing Data'!$D$9<>\"Multiple\",IF('Standing Data'!$D$9=B98,\"Error - counterparty with self\",\"\"),IF(N(ISNA(MATCH(B98,'Standing Data'!$E$48:$E$147,0)))<>0,\"\",\"Error - counterparty with self\")),\"\")","v":""},null,{"$f":"IFERROR(VLOOKUP(B98,'CP IDs'!$A$1:$E$7199,2,FALSE),\"\")","v":""},{"$f":"IFERROR(VLOOKUP(B98,'CP IDs'!$A$1:$E$7199,5,FALSE),\"\")","v":""},"",null,null,null,null,null,null,null,null,null,null,null,null,null,null,null,null,null,null,null,null,null,null,null,null,null,null,null,null,null,null,null,null,null,null,null,null,null,null,null,null,null,null,null,null,null,-500000,500000,null,1,1,31,null,1,0,0,null,{"$f":"AND(B98=$C$9,'Standing Data'!$D$9<>\"Multi-academy Trust\")","v":{"$error":"#N/A"}}]
[{"$f":"IF(B99<>\"\",IF('Standing Data'!$D$9<>\"Multiple\",IF('Standing Data'!$D$9=B99,\"Error - counterparty with self\",\"\"),IF(N(ISNA(MATCH(B99,'Standing Data'!$E$48:$E$147,0)))<>0,\"\",\"Error - counterparty with self\")),\"\")","v":""},null,{"$f":"IFERROR(VLOOKUP(B99,'CP IDs'!$A$1:$E$7199,2,FALSE),\"\")","v":""},{"$f":"IFERROR(VLOOKUP(B99,'CP IDs'!$A$1:$E$7199,5,FALSE),\"\")","v":""},"",null,null,null,null,null,null,null,null,null,null,null,null,null,null,null,null,null,null,null,null,null,null,null,null,null,null,null,null,null,null,null,null,null,null,null,null,null,null,null,null,null,null,null,null,null,-500000,500000,null,1,1,31,null,1,0,0,null,{"$f":"AND(B99=$C$9,'Standing Data'!$D$9<>\"Multi-academy Trust\")","v":{"$error":"#N/A"}}]
[{"$f":"IF(B100<>\"\",IF('Standing Data'!$D$9<>\"Multiple\",IF('Standing Data'!$D$9=B100,\"Error - counterparty with self\",\"\"),IF(N(ISNA(MATCH(B100,'Standing Data'!$E$48:$E$147,0)))<>0,\"\",\"Error - counterparty with self\")),\"\")","v":""},null,{"$f":"IFERROR(VLOOKUP(B100,'CP IDs'!$A$1:$E$7199,2,FALSE),\"\")","v":""},{"$f":"IFERROR(VLOOKUP(B100,'CP IDs'!$A$1:$E$7199,5,FALSE),\"\")","v":""},"",null,null,null,null,null,null,null,null,null,null,null,null,null,null,null,null,null,null,null,null,null,null,null,null,null,null,null,null,null,null,null,null,null,null,null,null,null,null,null,null,null,null,null,null,null,-500000,500000,null,1,1,31,null,1,0,0,null,{"$f":"AND(B100=$C$9,'Standing Data'!$D$9<>\"Multi-academy Trust\")","v":{"$error":"#N/A"}}]
[{"$f":"IF(B101<>\"\",IF('Standing Data'!$D$9<>\"Multiple\",IF('Standing Data'!$D$9=B101,\"Error - counterparty with self\",\"\"),IF(N(ISNA(MATCH(B101,'Standing Data'!$E$48:$E$147,0)))<>0,\"\",\"Error - counterparty with self\")),\"\")","v":""},null,{"$f":"IFERROR(VLOOKUP(B101,'CP IDs'!$A$1:$E$7199,2,FALSE),\"\")","v":""},{"$f":"IFERROR(VLOOKUP(B101,'CP IDs'!$A$1:$E$7199,5,FALSE),\"\")","v":""},"",null,null,null,null,null,null,null,null,null,null,null,null,null,null,null,null,null,null,null,null,null,null,null,null,null,null,null,null,null,null,null,null,null,null,null,null,null,null,null,null,null,null,null,null,null,-500000,500000,null,1,1,31,null,1,0,0,null,{"$f":"AND(B101=$C$9,'Standing Data'!$D$9<>\"Multi-academy Trust\")","v":{"$error":"#N/A"}}]
[{"$f":"IF(B102<>\"\",IF('Standing Data'!$D$9<>\"Multiple\",IF('Standing Data'!$D$9=B102,\"Error - counterparty with self\",\"\"),IF(N(ISNA(MATCH(B102,'Standing Data'!$E$48:$E$147,0)))<>0,\"\",\"Error - counterparty with self\")),\"\")","v":""},null,{"$f":"IFERROR(VLOOKUP(B102,'CP IDs'!$A$1:$E$7199,2,FALSE),\"\")","v":""},{"$f":"IFERROR(VLOOKUP(B102,'CP IDs'!$A$1:$E$7199,5,FALSE),\"\")","v":""},"",null,null,null,null,null,null,null,null,null,null,null,null,null,null,null,null,null,null,null,null,null,null,null,null,null,null,null,null,null,null,null,null,null,null,null,null,null,null,null,null,null,null,null,null,null,-500000,500000,null,1,1,31,null,1,0,0,null,{"$f":"AND(B102=$C$9,'Standing Data'!$D$9<>\"Multi-academy Trust\")","v":{"$error":"#N/A"}}]
[{"$f":"IF(B103<>\"\",IF('Standing Data'!$D$9<>\"Multiple\",IF('Standing Data'!$D$9=B103,\"Error - counterparty with self\",\"\"),IF(N(ISNA(MATCH(B103,'Standing Data'!$E$48:$E$147,0)))<>0,\"\",\"Error - counterparty with self\")),\"\")","v":""},null,{"$f":"IFERROR(VLOOKUP(B103,'CP IDs'!$A$1:$E$7199,2,FALSE),\"\")","v":""},{"$f":"IFERROR(VLOOKUP(B103,'CP IDs'!$A$1:$E$7199,5,FALSE),\"\")","v":""},"",null,null,null,null,null,null,null,null,null,null,null,null,null,null,null,null,null,null,null,null,null,null,null,null,null,null,null,null,null,null,null,null,null,null,null,null,null,null,null,null,null,null,null,null,null,-500000,500000,null,1,1,31,null,1,0,0,null,{"$f":"AND(B103=$C$9,'Standing Data'!$D$9<>\"Multi-academy Trust\")","v":{"$error":"#N/A"}}]
[{"$f":"IF(B104<>\"\",IF('Standing Data'!$D$9<>\"Multiple\",IF('Standing Data'!$D$9=B104,\"Error - counterparty with self\",\"\"),IF(N(ISNA(MATCH(B104,'Standing Data'!$E$48:$E$147,0)))<>0,\"\",\"Error - counterparty with self\")),\"\")","v":""},null,{"$f":"IFERROR(VLOOKUP(B104,'CP IDs'!$A$1:$E$7199,2,FALSE),\"\")","v":""},{"$f":"IFERROR(VLOOKUP(B104,'CP IDs'!$A$1:$E$7199,5,FALSE),\"\")","v":""},"",null,null,null,null,null,null,null,null,null,null,null,null,null,null,null,null,null,null,null,null,null,null,null,null,null,null,null,null,null,null,null,null,null,null,null,null,null,null,null,null,null,null,null,null,null,-500000,500000,null,1,1,31,null,1,0,0,null,{"$f":"AND(B104=$C$9,'Standing Data'!$D$9<>\"Multi-academy Trust\")","v":{"$error":"#N/A"}}]
[{"$f":"IF(B105<>\"\",IF('Standing Data'!$D$9<>\"Multiple\",IF('Standing Data'!$D$9=B105,\"Error - counterparty with self\",\"\"),IF(N(ISNA(MATCH(B105,'Standing Data'!$E$48:$E$147,0)))<>0,\"\",\"Error - counterparty with self\")),\"\")","v":""},null,{"$f":"IFERROR(VLOOKUP(B105,'CP IDs'!$A$1:$E$7199,2,FALSE),\"\")","v":""},{"$f":"IFERROR(VLOOKUP(B105,'CP IDs'!$A$1:$E$7199,5,FALSE),\"\")","v":""},"",null,null,null,null,null,null,null,null,null,null,null,null,null,null,null,null,null,null,null,null,null,null,null,null,null,null,null,null,null,null,null,null,null,null,null,null,null,null,null,null,null,null,null,null,null,-500000,500000,null,1,1,31,null,1,0,0,null,{"$f":"AND(B105=$C$9,'Standing Data'!$D$9<>\"Multi-academy Trust\")","v":{"$error":"#N/A"}}]
[{"$f":"IF(B106<>\"\",IF('Standing Data'!$D$9<>\"Multiple\",IF('Standing Data'!$D$9=B106,\"Error - counterparty with self\",\"\"),IF(N(ISNA(MATCH(B106,'Standing Data'!$E$48:$E$147,0)))<>0,\"\",\"Error - counterparty with self\")),\"\")","v":""},null,{"$f":"IFERROR(VLOOKUP(B106,'CP IDs'!$A$1:$E$7199,2,FALSE),\"\")","v":""},{"$f":"IFERROR(VLOOKUP(B106,'CP IDs'!$A$1:$E$7199,5,FALSE),\"\")","v":""},"",null,null,null,null,null,null,null,null,null,null,null,null,null,null,null,null,null,null,null,null,null,null,null,null,null,null,null,null,null,null,null,null,null,null,null,null,null,null,null,null,null,null,null,null,null,-500000,500000,null,1,1,31,null,1,0,0,null,{"$f":"AND(B106=$C$9,'Standing Data'!$D$9<>\"Multi-academy Trust\")","v":{"$error":"#N/A"}}]
[{"$f":"IF(B107<>\"\",IF('Standing Data'!$D$9<>\"Multiple\",IF('Standing Data'!$D$9=B107,\"Error - counterparty with self\",\"\"),IF(N(ISNA(MATCH(B107,'Standing Data'!$E$48:$E$147,0)))<>0,\"\",\"Error - counterparty with self\")),\"\")","v":""},null,{"$f":"IFERROR(VLOOKUP(B107,'CP IDs'!$A$1:$E$7199,2,FALSE),\"\")","v":""},{"$f":"IFERROR(VLOOKUP(B107,'CP IDs'!$A$1:$E$7199,5,FALSE),\"\")","v":""},"",null,null,null,null,null,null,null,null,null,null,null,null,null,null,null,null,null,null,null,null,null,null,null,null,null,null,null,null,null,null,null,null,null,null,null,null,null,null,null,null,null,null,null,null,null,-500000,500000,null,1,1,31,null,1,0,0,null,{"$f":"AND(B107=$C$9,'Standing Data'!$D$9<>\"Multi-academy Trust\")","v":{"$error":"#N/A"}}]
[{"$f":"IF(B108<>\"\",IF('Standing Data'!$D$9<>\"Multiple\",IF('Standing Data'!$D$9=B108,\"Error - counterparty with self\",\"\"),IF(N(ISNA(MATCH(B108,'Standing Data'!$E$48:$E$147,0)))<>0,\"\",\"Error - counterparty with self\")),\"\")","v":""},null,{"$f":"IFERROR(VLOOKUP(B108,'CP IDs'!$A$1:$E$7199,2,FALSE),\"\")","v":""},{"$f":"IFERROR(VLOOKUP(B108,'CP IDs'!$A$1:$E$7199,5,FALSE),\"\")","v":""},"",null,null,null,null,null,null,null,null,null,null,null,null,null,null,null,null,null,null,null,null,null,null,null,null,null,null,null,null,null,null,null,null,null,null,null,null,null,null,null,null,null,null,null,null,null,-500000,500000,null,1,1,31,null,1,0,0,null,{"$f":"AND(B108=$C$9,'Standing Data'!$D$9<>\"Multi-academy Trust\")","v":{"$error":"#N/A"}}]
[{"$f":"IF(B109<>\"\",IF('Standing Data'!$D$9<>\"Multiple\",IF('Standing Data'!$D$9=B109,\"Error - counterparty with self\",\"\"),IF(N(ISNA(MATCH(B109,'Standing Data'!$E$48:$E$147,0)))<>0,\"\",\"Error - counterparty with self\")),\"\")","v":""},null,{"$f":"IFERROR(VLOOKUP(B109,'CP IDs'!$A$1:$E$7199,2,FALSE),\"\")","v":""},{"$f":"IFERROR(VLOOKUP(B109,'CP IDs'!$A$1:$E$7199,5,FALSE),\"\")","v":""},"",null,null,null,null,null,null,null,null,null,null,null,null,null,null,null,null,null,null,null,null,null,null,null,null,null,null,null,null,null,null,null,null,null,null,null,null,null,null,null,null,null,null,null,null,null,-500000,500000,null,1,1,31,null,1,0,0,null,{"$f":"AND(B109=$C$9,'Standing Data'!$D$9<>\"Multi-academy Trust\")","v":{"$error":"#N/A"}}]
[{"$f":"IF(B110<>\"\",IF('Standing Data'!$D$9<>\"Multiple\",IF('Standing Data'!$D$9=B110,\"Error - counterparty with self\",\"\"),IF(N(ISNA(MATCH(B110,'Standing Data'!$E$48:$E$147,0)))<>0,\"\",\"Error - counterparty with self\")),\"\")","v":""},null,{"$f":"IFERROR(VLOOKUP(B110,'CP IDs'!$A$1:$E$7199,2,FALSE),\"\")","v":""},{"$f":"IFERROR(VLOOKUP(B110,'CP IDs'!$A$1:$E$7199,5,FALSE),\"\")","v":""},"",null,null,null,null,null,null,null,null,null,null,null,null,null,null,null,null,null,null,null,null,null,null,null,null,null,null,null,null,null,null,null,null,null,null,null,null,null,null,null,null,null,null,null,null,null,-500000,500000,null,1,1,31,null,1,0,0,null,{"$f":"AND(B110=$C$9,'Standing Data'!$D$9<>\"Multi-academy Trust\")","v":{"$error":"#N/A"}}]
[{"$f":"IF(B111<>\"\",IF('Standing Data'!$D$9<>\"Multiple\",IF('Standing Data'!$D$9=B111,\"Error - counterparty with self\",\"\"),IF(N(ISNA(MATCH(B111,'Standing Data'!$E$48:$E$147,0)))<>0,\"\",\"Error - counterparty with self\")),\"\")","v":""},null,{"$f":"IFERROR(VLOOKUP(B111,'CP IDs'!$A$1:$E$7199,2,FALSE),\"\")","v":""},{"$f":"IFERROR(VLOOKUP(B111,'CP IDs'!$A$1:$E$7199,5,FALSE),\"\")","v":""},"",null,null,null,null,null,null,null,null,null,null,null,null,null,null,null,null,null,null,null,null,null,null,null,null,null,null,null,null,null,null,null,null,null,null,null,null,null,null,null,null,null,null,null,null,null,-500000,500000,null,1,1,31,null,1,0,0,null,{"$f":"AND(B111=$C$9,'Standing Data'!$D$9<>\"Multi-academy Trust\")","v":{"$error":"#N/A"}}]
[{"$f":"IF(B112<>\"\",IF('Standing Data'!$D$9<>\"Multiple\",IF('Standing Data'!$D$9=B112,\"Error - counterparty with self\",\"\"),IF(N(ISNA(MATCH(B112,'Standing Data'!$E$48:$E$147,0)))<>0,\"\",\"Error - counterparty with self\")),\"\")","v":""},null,{"$f":"IFERROR(VLOOKUP(B112,'CP IDs'!$A$1:$E$7199,2,FALSE),\"\")","v":""},{"$f":"IFERROR(VLOOKUP(B112,'CP IDs'!$A$1:$E$7199,5,FALSE),\"\")","v":""},"",null,null,null,null,null,null,null,null,null,null,null,null,null,null,null,null,null,null,null,null,null,null,null,null,null,null,null,null,null,null,null,null,null,null,null,null,null,null,null,null,null,null,null,null,null,-500000,500000,null,1,1,31,null,1,0,0,null,{"$f":"AND(B112=$C$9,'Standing Data'!$D$9<>\"Multi-academy Trust\")","v":{"$error":"#N/A"}}]
[{"$f":"IF(B113<>\"\",IF('Standing Data'!$D$9<>\"Multiple\",IF('Standing Data'!$D$9=B113,\"Error - counterparty with self\",\"\"),IF(N(ISNA(MATCH(B113,'Standing Data'!$E$48:$E$147,0)))<>0,\"\",\"Error - counterparty with self\")),\"\")","v":""},null,{"$f":"IFERROR(VLOOKUP(B113,'CP IDs'!$A$1:$E$7199,2,FALSE),\"\")","v":""},{"$f":"IFERROR(VLOOKUP(B113,'CP IDs'!$A$1:$E$7199,5,FALSE),\"\")","v":""},"",null,null,null,null,null,null,null,null,null,null,null,null,null,null,null,null,null,null,null,null,null,null,null,null,null,null,null,null,null,null,null,null,null,null,null,null,null,null,null,null,null,null,null,null,null,-500000,500000,null,1,1,31,null,1,0,0,null,{"$f":"AND(B113=$C$9,'Standing Data'!$D$9<>\"Multi-academy Trust\")","v":{"$error":"#N/A"}}]
[{"$f":"IF(B114<>\"\",IF('Standing Data'!$D$9<>\"Multiple\",IF('Standing Data'!$D$9=B114,\"Error - counterparty with self\",\"\"),IF(N(ISNA(MATCH(B114,'Standing Data'!$E$48:$E$147,0)))<>0,\"\",\"Error - counterparty with self\")),\"\")","v":""},null,{"$f":"IFERROR(VLOOKUP(B114,'CP IDs'!$A$1:$E$7199,2,FALSE),\"\")","v":""},{"$f":"IFERROR(VLOOKUP(B114,'CP IDs'!$A$1:$E$7199,5,FALSE),\"\")","v":""},"",null,null,null,null,null,null,null,null,null,null,null,null,null,null,null,null,null,null,null,null,null,null,null,null,null,null,null,null,null,null,null,null,null,null,null,null,null,null,null,null,null,null,null,null,null,-500000,500000,null,1,1,31,null,1,0,0,null,{"$f":"AND(B114=$C$9,'Standing Data'!$D$9<>\"Multi-academy Trust\")","v":{"$error":"#N/A"}}]
[{"$f":"IF(B115<>\"\",IF('Standing Data'!$D$9<>\"Multiple\",IF('Standing Data'!$D$9=B115,\"Error - counterparty with self\",\"\"),IF(N(ISNA(MATCH(B115,'Standing Data'!$E$48:$E$147,0)))<>0,\"\",\"Error - counterparty with self\")),\"\")","v":""},null,{"$f":"IFERROR(VLOOKUP(B115,'CP IDs'!$A$1:$E$7199,2,FALSE),\"\")","v":""},{"$f":"IFERROR(VLOOKUP(B115,'CP IDs'!$A$1:$E$7199,5,FALSE),\"\")","v":""},"",null,null,null,null,null,null,null,null,null,null,null,null,null,null,null,null,null,null,null,null,null,null,null,null,null,null,null,null,null,null,null,null,null,null,null,null,null,null,null,null,null,null,null,null,null,-500000,500000,null,1,1,31,null,1,0,0,null,{"$f":"AND(B115=$C$9,'Standing Data'!$D$9<>\"Multi-academy Trust\")","v":{"$error":"#N/A"}}]
[{"$f":"IF(B116<>\"\",IF('Standing Data'!$D$9<>\"Multiple\",IF('Standing Data'!$D$9=B116,\"Error - counterparty with self\",\"\"),IF(N(ISNA(MATCH(B116,'Standing Data'!$E$48:$E$147,0)))<>0,\"\",\"Error - counterparty with self\")),\"\")","v":""},null,{"$f":"IFERROR(VLOOKUP(B116,'CP IDs'!$A$1:$E$7199,2,FALSE),\"\")","v":""},{"$f":"IFERROR(VLOOKUP(B116,'CP IDs'!$A$1:$E$7199,5,FALSE),\"\")","v":""},"",null,null,null,null,null,null,null,null,null,null,null,null,null,null,null,null,null,null,null,null,null,null,null,null,null,null,null,null,null,null,null,null,null,null,null,null,null,null,null,null,null,null,null,null,null,-500000,500000,null,1,1,31,null,1,0,0,null,{"$f":"AND(B116=$C$9,'Standing Data'!$D$9<>\"Multi-academy Trust\")","v":{"$error":"#N/A"}}]
[{"$f":"IF(B117<>\"\",IF('Standing Data'!$D$9<>\"Multiple\",IF('Standing Data'!$D$9=B117,\"Error - counterparty with self\",\"\"),IF(N(ISNA(MATCH(B117,'Standing Data'!$E$48:$E$147,0)))<>0,\"\",\"Error - counterparty with self\")),\"\")","v":""},null,{"$f":"IFERROR(VLOOKUP(B117,'CP IDs'!$A$1:$E$7199,2,FALSE),\"\")","v":""},{"$f":"IFERROR(VLOOKUP(B117,'CP IDs'!$A$1:$E$7199,5,FALSE),\"\")","v":""},"",null,null,null,null,null,null,null,null,null,null,null,null,null,null,null,null,null,null,null,null,null,null,null,null,null,null,null,null,null,null,null,null,null,null,null,null,null,null,null,null,null,null,null,null,null,-500000,500000,null,1,1,31,null,1,0,0,null,{"$f":"AND(B117=$C$9,'Standing Data'!$D$9<>\"Multi-academy Trust\")","v":{"$error":"#N/A"}}]
[{"$f":"IF(B118<>\"\",IF('Standing Data'!$D$9<>\"Multiple\",IF('Standing Data'!$D$9=B118,\"Error - counterparty with self\",\"\"),IF(N(ISNA(MATCH(B118,'Standing Data'!$E$48:$E$147,0)))<>0,\"\",\"Error - counterparty with self\")),\"\")","v":""},null,{"$f":"IFERROR(VLOOKUP(B118,'CP IDs'!$A$1:$E$7199,2,FALSE),\"\")","v":""},{"$f":"IFERROR(VLOOKUP(B118,'CP IDs'!$A$1:$E$7199,5,FALSE),\"\")","v":""},"",null,null,null,null,null,null,null,null,null,null,null,null,null,null,null,null,null,null,null,null,null,null,null,null,null,null,null,null,null,null,null,null,null,null,null,null,null,null,null,null,null,null,null,null,null,-500000,500000,null,1,1,31,null,1,0,0,null,{"$f":"AND(B118=$C$9,'Standing Data'!$D$9<>\"Multi-academy Trust\")","v":{"$error":"#N/A"}}]
[{"$f":"IF(B119<>\"\",IF('Standing Data'!$D$9<>\"Multiple\",IF('Standing Data'!$D$9=B119,\"Error - counterparty with self\",\"\"),IF(N(ISNA(MATCH(B119,'Standing Data'!$E$48:$E$147,0)))<>0,\"\",\"Error - counterparty with self\")),\"\")","v":""},null,{"$f":"IFERROR(VLOOKUP(B119,'CP IDs'!$A$1:$E$7199,2,FALSE),\"\")","v":""},{"$f":"IFERROR(VLOOKUP(B119,'CP IDs'!$A$1:$E$7199,5,FALSE),\"\")","v":""},"",null,null,null,null,null,null,null,null,null,null,null,null,null,null,null,null,null,null,null,null,null,null,null,null,null,null,null,null,null,null,null,null,null,null,null,null,null,null,null,null,null,null,null,null,null,-500000,500000,null,1,1,31,null,1,0,0,null,{"$f":"AND(B119=$C$9,'Standing Data'!$D$9<>\"Multi-academy Trust\")","v":{"$error":"#N/A"}}]
[{"$f":"IF(B120<>\"\",IF('Standing Data'!$D$9<>\"Multiple\",IF('Standing Data'!$D$9=B120,\"Error - counterparty with self\",\"\"),IF(N(ISNA(MATCH(B120,'Standing Data'!$E$48:$E$147,0)))<>0,\"\",\"Error - counterparty with self\")),\"\")","v":""},null,{"$f":"IFERROR(VLOOKUP(B120,'CP IDs'!$A$1:$E$7199,2,FALSE),\"\")","v":""},{"$f":"IFERROR(VLOOKUP(B120,'CP IDs'!$A$1:$E$7199,5,FALSE),\"\")","v":""},"",null,null,null,null,null,null,null,null,null,null,null,null,null,null,null,null,null,null,null,null,null,null,null,null,null,null,null,null,null,null,null,null,null,null,null,null,null,null,null,null,null,null,null,null,null,-500000,500000,null,1,1,31,null,1,0,0,null,{"$f":"AND(B120=$C$9,'Standing Data'!$D$9<>\"Multi-academy Trust\")","v":{"$error":"#N/A"}}]
[{"$f":"IF(B121<>\"\",IF('Standing Data'!$D$9<>\"Multiple\",IF('Standing Data'!$D$9=B121,\"Error - counterparty with self\",\"\"),IF(N(ISNA(MATCH(B121,'Standing Data'!$E$48:$E$147,0)))<>0,\"\",\"Error - counterparty with self\")),\"\")","v":""},null,{"$f":"IFERROR(VLOOKUP(B121,'CP IDs'!$A$1:$E$7199,2,FALSE),\"\")","v":""},{"$f":"IFERROR(VLOOKUP(B121,'CP IDs'!$A$1:$E$7199,5,FALSE),\"\")","v":""},"",null,null,null,null,null,null,null,null,null,null,null,null,null,null,null,null,null,null,null,null,null,null,null,null,null,null,null,null,null,null,null,null,null,null,null,null,null,null,null,null,null,null,null,null,null,-500000,500000,null,1,1,31,null,1,0,0,null,{"$f":"AND(B121=$C$9,'Standing Data'!$D$9<>\"Multi-academy Trust\")","v":{"$error":"#N/A"}}]
[{"$f":"IF(B122<>\"\",IF('Standing Data'!$D$9<>\"Multiple\",IF('Standing Data'!$D$9=B122,\"Error - counterparty with self\",\"\"),IF(N(ISNA(MATCH(B122,'Standing Data'!$E$48:$E$147,0)))<>0,\"\",\"Error - counterparty with self\")),\"\")","v":""},null,{"$f":"IFERROR(VLOOKUP(B122,'CP IDs'!$A$1:$E$7199,2,FALSE),\"\")","v":""},{"$f":"IFERROR(VLOOKUP(B122,'CP IDs'!$A$1:$E$7199,5,FALSE),\"\")","v":""},"",null,null,null,null,null,null,null,null,null,null,null,null,null,null,null,null,null,null,null,null,null,null,null,null,null,null,null,null,null,null,null,null,null,null,null,null,null,null,null,null,null,null,null,null,null,-500000,500000,null,1,1,31,null,1,0,0,null,{"$f":"AND(B122=$C$9,'Standing Data'!$D$9<>\"Multi-academy Trust\")","v":{"$error":"#N/A"}}]
[{"$f":"IF(B123<>\"\",IF('Standing Data'!$D$9<>\"Multiple\",IF('Standing Data'!$D$9=B123,\"Error - counterparty with self\",\"\"),IF(N(ISNA(MATCH(B123,'Standing Data'!$E$48:$E$147,0)))<>0,\"\",\"Error - counterparty with self\")),\"\")","v":""},null,{"$f":"IFERROR(VLOOKUP(B123,'CP IDs'!$A$1:$E$7199,2,FALSE),\"\")","v":""},{"$f":"IFERROR(VLOOKUP(B123,'CP IDs'!$A$1:$E$7199,5,FALSE),\"\")","v":""},"",null,null,null,null,null,null,null,null,null,null,null,null,null,null,null,null,null,null,null,null,null,null,null,null,null,null,null,null,null,null,null,null,null,null,null,null,null,null,null,null,null,null,null,null,null,-500000,500000,null,1,1,31,null,1,0,0,null,{"$f":"AND(B123=$C$9,'Standing Data'!$D$9<>\"Multi-academy Trust\")","v":{"$error":"#N/A"}}]
[{"$f":"IF(B124<>\"\",IF('Standing Data'!$D$9<>\"Multiple\",IF('Standing Data'!$D$9=B124,\"Error - counterparty with self\",\"\"),IF(N(ISNA(MATCH(B124,'Standing Data'!$E$48:$E$147,0)))<>0,\"\",\"Error - counterparty with self\")),\"\")","v":""},null,{"$f":"IFERROR(VLOOKUP(B124,'CP IDs'!$A$1:$E$7199,2,FALSE),\"\")","v":""},{"$f":"IFERROR(VLOOKUP(B124,'CP IDs'!$A$1:$E$7199,5,FALSE),\"\")","v":""},"",null,null,null,null,null,null,null,null,null,null,null,null,null,null,null,null,null,null,null,null,null,null,null,null,null,null,null,null,null,null,null,null,null,null,null,null,null,null,null,null,null,null,null,null,null,-500000,500000,null,1,1,31,null,1,0,0,null,{"$f":"AND(B124=$C$9,'Standing Data'!$D$9<>\"Multi-academy Trust\")","v":{"$error":"#N/A"}}]
[{"$f":"IF(B125<>\"\",IF('Standing Data'!$D$9<>\"Multiple\",IF('Standing Data'!$D$9=B125,\"Error - counterparty with self\",\"\"),IF(N(ISNA(MATCH(B125,'Standing Data'!$E$48:$E$147,0)))<>0,\"\",\"Error - counterparty with self\")),\"\")","v":""},null,{"$f":"IFERROR(VLOOKUP(B125,'CP IDs'!$A$1:$E$7199,2,FALSE),\"\")","v":""},{"$f":"IFERROR(VLOOKUP(B125,'CP IDs'!$A$1:$E$7199,5,FALSE),\"\")","v":""},"",null,null,null,null,null,null,null,null,null,null,null,null,null,null,null,null,null,null,null,null,null,null,null,null,null,null,null,null,null,null,null,null,null,null,null,null,null,null,null,null,null,null,null,null,null,-500000,500000,null,1,1,31,null,1,0,0,null,{"$f":"AND(B125=$C$9,'Standing Data'!$D$9<>\"Multi-academy Trust\")","v":{"$error":"#N/A"}}]
[{"$f":"IF(B126<>\"\",IF('Standing Data'!$D$9<>\"Multiple\",IF('Standing Data'!$D$9=B126,\"Error - counterparty with self\",\"\"),IF(N(ISNA(MATCH(B126,'Standing Data'!$E$48:$E$147,0)))<>0,\"\",\"Error - counterparty with self\")),\"\")","v":""},null,{"$f":"IFERROR(VLOOKUP(B126,'CP IDs'!$A$1:$E$7199,2,FALSE),\"\")","v":""},{"$f":"IFERROR(VLOOKUP(B126,'CP IDs'!$A$1:$E$7199,5,FALSE),\"\")","v":""},"",null,null,null,null,null,null,null,null,null,null,null,null,null,null,null,null,null,null,null,null,null,null,null,null,null,null,null,null,null,null,null,null,null,null,null,null,null,null,null,null,null,null,null,null,null,-500000,500000,null,1,1,31,null,1,0,0,null,{"$f":"AND(B126=$C$9,'Standing Data'!$D$9<>\"Multi-academy Trust\")","v":{"$error":"#N/A"}}]
[{"$f":"IF(B127<>\"\",IF('Standing Data'!$D$9<>\"Multiple\",IF('Standing Data'!$D$9=B127,\"Error - counterparty with self\",\"\"),IF(N(ISNA(MATCH(B127,'Standing Data'!$E$48:$E$147,0)))<>0,\"\",\"Error - counterparty with self\")),\"\")","v":""},null,{"$f":"IFERROR(VLOOKUP(B127,'CP IDs'!$A$1:$E$7199,2,FALSE),\"\")","v":""},{"$f":"IFERROR(VLOOKUP(B127,'CP IDs'!$A$1:$E$7199,5,FALSE),\"\")","v":""},"",null,null,null,null,null,null,null,null,null,null,null,null,null,null,null,null,null,null,null,null,null,null,null,null,null,null,null,null,null,null,null,null,null,null,null,null,null,null,null,null,null,null,null,null,null,-500000,500000,null,1,1,31,null,1,0,0,null,{"$f":"AND(B127=$C$9,'Standing Data'!$D$9<>\"Multi-academy Trust\")","v":{"$error":"#N/A"}}]
[{"$f":"IF(B128<>\"\",IF('Standing Data'!$D$9<>\"Multiple\",IF('Standing Data'!$D$9=B128,\"Error - counterparty with self\",\"\"),IF(N(ISNA(MATCH(B128,'Standing Data'!$E$48:$E$147,0)))<>0,\"\",\"Error - counterparty with self\")),\"\")","v":""},null,{"$f":"IFERROR(VLOOKUP(B128,'CP IDs'!$A$1:$E$7199,2,FALSE),\"\")","v":""},{"$f":"IFERROR(VLOOKUP(B128,'CP IDs'!$A$1:$E$7199,5,FALSE),\"\")","v":""},"",null,null,null,null,null,null,null,null,null,null,null,null,null,null,null,null,null,null,null,null,null,null,null,null,null,null,null,null,null,null,null,null,null,null,null,null,null,null,null,null,null,null,null,null,null,-500000,500000,null,1,1,31,null,1,0,0,null,{"$f":"AND(B128=$C$9,'Standing Data'!$D$9<>\"Multi-academy Trust\")","v":{"$error":"#N/A"}}]
[{"$f":"IF(B129<>\"\",IF('Standing Data'!$D$9<>\"Multiple\",IF('Standing Data'!$D$9=B129,\"Error - counterparty with self\",\"\"),IF(N(ISNA(MATCH(B129,'Standing Data'!$E$48:$E$147,0)))<>0,\"\",\"Error - counterparty with self\")),\"\")","v":""},null,{"$f":"IFERROR(VLOOKUP(B129,'CP IDs'!$A$1:$E$7199,2,FALSE),\"\")","v":""},{"$f":"IFERROR(VLOOKUP(B129,'CP IDs'!$A$1:$E$7199,5,FALSE),\"\")","v":""},"",null,null,null,null,null,null,null,null,null,null,null,null,null,null,null,null,null,null,null,null,null,null,null,null,null,null,null,null,null,null,null,null,null,null,null,null,null,null,null,null,null,null,null,null,null,-500000,500000,null,1,1,31,null,1,0,0,null,{"$f":"AND(B129=$C$9,'Standing Data'!$D$9<>\"Multi-academy Trust\")","v":{"$error":"#N/A"}}]
[{"$f":"IF(B130<>\"\",IF('Standing Data'!$D$9<>\"Multiple\",IF('Standing Data'!$D$9=B130,\"Error - counterparty with self\",\"\"),IF(N(ISNA(MATCH(B130,'Standing Data'!$E$48:$E$147,0)))<>0,\"\",\"Error - counterparty with self\")),\"\")","v":""},null,{"$f":"IFERROR(VLOOKUP(B130,'CP IDs'!$A$1:$E$7199,2,FALSE),\"\")","v":""},{"$f":"IFERROR(VLOOKUP(B130,'CP IDs'!$A$1:$E$7199,5,FALSE),\"\")","v":""},"",null,null,null,null,null,null,null,null,null,null,null,null,null,null,null,null,null,null,null,null,null,null,null,null,null,null,null,null,null,null,null,null,null,null,null,null,null,null,null,null,null,null,null,null,null,-500000,500000,null,1,1,31,null,1,0,0,null,{"$f":"AND(B130=$C$9,'Standing Data'!$D$9<>\"Multi-academy Trust\")","v":{"$error":"#N/A"}}]
[{"$f":"IF(B131<>\"\",IF('Standing Data'!$D$9<>\"Multiple\",IF('Standing Data'!$D$9=B131,\"Error - counterparty with self\",\"\"),IF(N(ISNA(MATCH(B131,'Standing Data'!$E$48:$E$147,0)))<>0,\"\",\"Error - counterparty with self\")),\"\")","v":""},null,{"$f":"IFERROR(VLOOKUP(B131,'CP IDs'!$A$1:$E$7199,2,FALSE),\"\")","v":""},{"$f":"IFERROR(VLOOKUP(B131,'CP IDs'!$A$1:$E$7199,5,FALSE),\"\")","v":""},"",null,null,null,null,null,null,null,null,null,null,null,null,null,null,null,null,null,null,null,null,null,null,null,null,null,null,null,null,null,null,null,null,null,null,null,null,null,null,null,null,null,null,null,null,null,-500000,500000,null,1,1,31,null,1,0,0,null,{"$f":"AND(B131=$C$9,'Standing Data'!$D$9<>\"Multi-academy Trust\")","v":{"$error":"#N/A"}}]
[{"$f":"IF(B132<>\"\",IF('Standing Data'!$D$9<>\"Multiple\",IF('Standing Data'!$D$9=B132,\"Error - counterparty with self\",\"\"),IF(N(ISNA(MATCH(B132,'Standing Data'!$E$48:$E$147,0)))<>0,\"\",\"Error - counterparty with self\")),\"\")","v":""},null,{"$f":"IFERROR(VLOOKUP(B132,'CP IDs'!$A$1:$E$7199,2,FALSE),\"\")","v":""},{"$f":"IFERROR(VLOOKUP(B132,'CP IDs'!$A$1:$E$7199,5,FALSE),\"\")","v":""},"",null,null,null,null,null,null,null,null,null,null,null,null,null,null,null,null,null,null,null,null,null,null,null,null,null,null,null,null,null,null,null,null,null,null,null,null,null,null,null,null,null,null,null,null,null,-500000,500000,null,1,1,31,null,1,0,0,null,{"$f":"AND(B132=$C$9,'Standing Data'!$D$9<>\"Multi-academy Trust\")","v":{"$error":"#N/A"}}]
[{"$f":"IF(B133<>\"\",IF('Standing Data'!$D$9<>\"Multiple\",IF('Standing Data'!$D$9=B133,\"Error - counterparty with self\",\"\"),IF(N(ISNA(MATCH(B133,'Standing Data'!$E$48:$E$147,0)))<>0,\"\",\"Error - counterparty with self\")),\"\")","v":""},null,{"$f":"IFERROR(VLOOKUP(B133,'CP IDs'!$A$1:$E$7199,2,FALSE),\"\")","v":""},{"$f":"IFERROR(VLOOKUP(B133,'CP IDs'!$A$1:$E$7199,5,FALSE),\"\")","v":""},"",null,null,null,null,null,null,null,null,null,null,null,null,null,null,null,null,null,null,null,null,null,null,null,null,null,null,null,null,null,null,null,null,null,null,null,null,null,null,null,null,null,null,null,null,null,-500000,500000,null,1,1,31,null,1,0,0,null,{"$f":"AND(B133=$C$9,'Standing Data'!$D$9<>\"Multi-academy Trust\")","v":{"$error":"#N/A"}}]
[{"$f":"IF(B134<>\"\",IF('Standing Data'!$D$9<>\"Multiple\",IF('Standing Data'!$D$9=B134,\"Error - counterparty with self\",\"\"),IF(N(ISNA(MATCH(B134,'Standing Data'!$E$48:$E$147,0)))<>0,\"\",\"Error - counterparty with self\")),\"\")","v":""},null,{"$f":"IFERROR(VLOOKUP(B134,'CP IDs'!$A$1:$E$7199,2,FALSE),\"\")","v":""},{"$f":"IFERROR(VLOOKUP(B134,'CP IDs'!$A$1:$E$7199,5,FALSE),\"\")","v":""},"",null,null,null,null,null,null,null,null,null,null,null,null,null,null,null,null,null,null,null,null,null,null,null,null,null,null,null,null,null,null,null,null,null,null,null,null,null,null,null,null,null,null,null,null,null,-500000,500000,null,1,1,31,null,1,0,0,null,{"$f":"AND(B134=$C$9,'Standing Data'!$D$9<>\"Multi-academy Trust\")","v":{"$error":"#N/A"}}]
[{"$f":"IF(B135<>\"\",IF('Standing Data'!$D$9<>\"Multiple\",IF('Standing Data'!$D$9=B135,\"Error - counterparty with self\",\"\"),IF(N(ISNA(MATCH(B135,'Standing Data'!$E$48:$E$147,0)))<>0,\"\",\"Error - counterparty with self\")),\"\")","v":""},null,{"$f":"IFERROR(VLOOKUP(B135,'CP IDs'!$A$1:$E$7199,2,FALSE),\"\")","v":""},{"$f":"IFERROR(VLOOKUP(B135,'CP IDs'!$A$1:$E$7199,5,FALSE),\"\")","v":""},"",null,null,null,null,null,null,null,null,null,null,null,null,null,null,null,null,null,null,null,null,null,null,null,null,null,null,null,null,null,null,null,null,null,null,null,null,null,null,null,null,null,null,null,null,null,-500000,500000,null,1,1,31,null,1,0,0,null,{"$f":"AND(B135=$C$9,'Standing Data'!$D$9<>\"Multi-academy Trust\")","v":{"$error":"#N/A"}}]
[{"$f":"IF(B136<>\"\",IF('Standing Data'!$D$9<>\"Multiple\",IF('Standing Data'!$D$9=B136,\"Error - counterparty with self\",\"\"),IF(N(ISNA(MATCH(B136,'Standing Data'!$E$48:$E$147,0)))<>0,\"\",\"Error - counterparty with self\")),\"\")","v":""},null,{"$f":"IFERROR(VLOOKUP(B136,'CP IDs'!$A$1:$E$7199,2,FALSE),\"\")","v":""},{"$f":"IFERROR(VLOOKUP(B136,'CP IDs'!$A$1:$E$7199,5,FALSE),\"\")","v":""},"",null,null,null,null,null,null,null,null,null,null,null,null,null,null,null,null,null,null,null,null,null,null,null,null,null,null,null,null,null,null,null,null,null,null,null,null,null,null,null,null,null,null,null,null,null,-500000,500000,null,1,1,31,null,1,0,0,null,{"$f":"AND(B136=$C$9,'Standing Data'!$D$9<>\"Multi-academy Trust\")","v":{"$error":"#N/A"}}]
[{"$f":"IF(B137<>\"\",IF('Standing Data'!$D$9<>\"Multiple\",IF('Standing Data'!$D$9=B137,\"Error - counterparty with self\",\"\"),IF(N(ISNA(MATCH(B137,'Standing Data'!$E$48:$E$147,0)))<>0,\"\",\"Error - counterparty with self\")),\"\")","v":""},null,{"$f":"IFERROR(VLOOKUP(B137,'CP IDs'!$A$1:$E$7199,2,FALSE),\"\")","v":""},{"$f":"IFERROR(VLOOKUP(B137,'CP IDs'!$A$1:$E$7199,5,FALSE),\"\")","v":""},"",null,null,null,null,null,null,null,null,null,null,null,null,null,null,null,null,null,null,null,null,null,null,null,null,null,null,null,null,null,null,null,null,null,null,null,null,null,null,null,null,null,null,null,null,null,-500000,500000,null,1,1,31,null,1,0,0,null,{"$f":"AND(B137=$C$9,'Standing Data'!$D$9<>\"Multi-academy Trust\")","v":{"$error":"#N/A"}}]
[{"$f":"IF(B138<>\"\",IF('Standing Data'!$D$9<>\"Multiple\",IF('Standing Data'!$D$9=B138,\"Error - counterparty with self\",\"\"),IF(N(ISNA(MATCH(B138,'Standing Data'!$E$48:$E$147,0)))<>0,\"\",\"Error - counterparty with self\")),\"\")","v":""},null,{"$f":"IFERROR(VLOOKUP(B138,'CP IDs'!$A$1:$E$7199,2,FALSE),\"\")","v":""},{"$f":"IFERROR(VLOOKUP(B138,'CP IDs'!$A$1:$E$7199,5,FALSE),\"\")","v":""},"",null,null,null,null,null,null,null,null,null,null,null,null,null,null,null,null,null,null,null,null,null,null,null,null,null,null,null,null,null,null,null,null,null,null,null,null,null,null,null,null,null,null,null,null,null,-500000,500000,null,1,1,31,null,1,0,0,null,{"$f":"AND(B138=$C$9,'Standing Data'!$D$9<>\"Multi-academy Trust\")","v":{"$error":"#N/A"}}]
[{"$f":"IF(B139<>\"\",IF('Standing Data'!$D$9<>\"Multiple\",IF('Standing Data'!$D$9=B139,\"Error - counterparty with self\",\"\"),IF(N(ISNA(MATCH(B139,'Standing Data'!$E$48:$E$147,0)))<>0,\"\",\"Error - counterparty with self\")),\"\")","v":""},null,{"$f":"IFERROR(VLOOKUP(B139,'CP IDs'!$A$1:$E$7199,2,FALSE),\"\")","v":""},{"$f":"IFERROR(VLOOKUP(B139,'CP IDs'!$A$1:$E$7199,5,FALSE),\"\")","v":""},"",null,null,null,null,null,null,null,null,null,null,null,null,null,null,null,null,null,null,null,null,null,null,null,null,null,null,null,null,null,null,null,null,null,null,null,null,null,null,null,null,null,null,null,null,null,-500000,500000,null,1,1,31,null,1,0,0,null,{"$f":"AND(B139=$C$9,'Standing Data'!$D$9<>\"Multi-academy Trust\")","v":{"$error":"#N/A"}}]
[{"$f":"IF(B140<>\"\",IF('Standing Data'!$D$9<>\"Multiple\",IF('Standing Data'!$D$9=B140,\"Error - counterparty with self\",\"\"),IF(N(ISNA(MATCH(B140,'Standing Data'!$E$48:$E$147,0)))<>0,\"\",\"Error - counterparty with self\")),\"\")","v":""},null,{"$f":"IFERROR(VLOOKUP(B140,'CP IDs'!$A$1:$E$7199,2,FALSE),\"\")","v":""},{"$f":"IFERROR(VLOOKUP(B140,'CP IDs'!$A$1:$E$7199,5,FALSE),\"\")","v":""},"",null,null,null,null,null,null,null,null,null,null,null,null,null,null,null,null,null,null,null,null,null,null,null,null,null,null,null,null,null,null,null,null,null,null,null,null,null,null,null,null,null,null,null,null,null,-500000,500000,null,1,1,31,null,1,0,0,null,{"$f":"AND(B140=$C$9,'Standing Data'!$D$9<>\"Multi-academy Trust\")","v":{"$error":"#N/A"}}]
[{"$f":"IF(B141<>\"\",IF('Standing Data'!$D$9<>\"Multiple\",IF('Standing Data'!$D$9=B141,\"Error - counterparty with self\",\"\"),IF(N(ISNA(MATCH(B141,'Standing Data'!$E$48:$E$147,0)))<>0,\"\",\"Error - counterparty with self\")),\"\")","v":""},null,{"$f":"IFERROR(VLOOKUP(B141,'CP IDs'!$A$1:$E$7199,2,FALSE),\"\")","v":""},{"$f":"IFERROR(VLOOKUP(B141,'CP IDs'!$A$1:$E$7199,5,FALSE),\"\")","v":""},"",null,null,null,null,null,null,null,null,null,null,null,null,null,null,null,null,null,null,null,null,null,null,null,null,null,null,null,null,null,null,null,null,null,null,null,null,null,null,null,null,null,null,null,null,null,-500000,500000,null,1,1,31,null,1,0,0,null,{"$f":"AND(B141=$C$9,'Standing Data'!$D$9<>\"Multi-academy Trust\")","v":{"$error":"#N/A"}}]
[{"$f":"IF(B142<>\"\",IF('Standing Data'!$D$9<>\"Multiple\",IF('Standing Data'!$D$9=B142,\"Error - counterparty with self\",\"\"),IF(N(ISNA(MATCH(B142,'Standing Data'!$E$48:$E$147,0)))<>0,\"\",\"Error - counterparty with self\")),\"\")","v":""},null,{"$f":"IFERROR(VLOOKUP(B142,'CP IDs'!$A$1:$E$7199,2,FALSE),\"\")","v":""},{"$f":"IFERROR(VLOOKUP(B142,'CP IDs'!$A$1:$E$7199,5,FALSE),\"\")","v":""},"",null,null,null,null,null,null,null,null,null,null,null,null,null,null,null,null,null,null,null,null,null,null,null,null,null,null,null,null,null,null,null,null,null,null,null,null,null,null,null,null,null,null,null,null,null,-500000,500000,null,1,1,31,null,1,0,0,null,{"$f":"AND(B142=$C$9,'Standing Data'!$D$9<>\"Multi-academy Trust\")","v":{"$error":"#N/A"}}]
[{"$f":"IF(B143<>\"\",IF('Standing Data'!$D$9<>\"Multiple\",IF('Standing Data'!$D$9=B143,\"Error - counterparty with self\",\"\"),IF(N(ISNA(MATCH(B143,'Standing Data'!$E$48:$E$147,0)))<>0,\"\",\"Error - counterparty with self\")),\"\")","v":""},null,{"$f":"IFERROR(VLOOKUP(B143,'CP IDs'!$A$1:$E$7199,2,FALSE),\"\")","v":""},{"$f":"IFERROR(VLOOKUP(B143,'CP IDs'!$A$1:$E$7199,5,FALSE),\"\")","v":""},"",null,null,null,null,null,null,null,null,null,null,null,null,null,null,null,null,null,null,null,null,null,null,null,null,null,null,null,null,null,null,null,null,null,null,null,null,null,null,null,null,null,null,null,null,null,-500000,500000,null,1,1,31,null,1,0,0,null,{"$f":"AND(B143=$C$9,'Standing Data'!$D$9<>\"Multi-academy Trust\")","v":{"$error":"#N/A"}}]
[{"$f":"IF(B144<>\"\",IF('Standing Data'!$D$9<>\"Multiple\",IF('Standing Data'!$D$9=B144,\"Error - counterparty with self\",\"\"),IF(N(ISNA(MATCH(B144,'Standing Data'!$E$48:$E$147,0)))<>0,\"\",\"Error - counterparty with self\")),\"\")","v":""},null,{"$f":"IFERROR(VLOOKUP(B144,'CP IDs'!$A$1:$E$7199,2,FALSE),\"\")","v":""},{"$f":"IFERROR(VLOOKUP(B144,'CP IDs'!$A$1:$E$7199,5,FALSE),\"\")","v":""},"",null,null,null,null,null,null,null,null,null,null,null,null,null,null,null,null,null,null,null,null,null,null,null,null,null,null,null,null,null,null,null,null,null,null,null,null,null,null,null,null,null,null,null,null,null,-500000,500000,null,1,1,31,null,1,0,0,null,{"$f":"AND(B144=$C$9,'Standing Data'!$D$9<>\"Multi-academy Trust\")","v":{"$error":"#N/A"}}]
[{"$f":"IF(B145<>\"\",IF('Standing Data'!$D$9<>\"Multiple\",IF('Standing Data'!$D$9=B145,\"Error - counterparty with self\",\"\"),IF(N(ISNA(MATCH(B145,'Standing Data'!$E$48:$E$147,0)))<>0,\"\",\"Error - counterparty with self\")),\"\")","v":""},null,{"$f":"IFERROR(VLOOKUP(B145,'CP IDs'!$A$1:$E$7199,2,FALSE),\"\")","v":""},{"$f":"IFERROR(VLOOKUP(B145,'CP IDs'!$A$1:$E$7199,5,FALSE),\"\")","v":""},"",null,null,null,null,null,null,null,null,null,null,null,null,null,null,null,null,null,null,null,null,null,null,null,null,null,null,null,null,null,null,null,null,null,null,null,null,null,null,null,null,null,null,null,null,null,-500000,500000,null,1,1,31,null,1,0,0,null,{"$f":"AND(B145=$C$9,'Standing Data'!$D$9<>\"Multi-academy Trust\")","v":{"$error":"#N/A"}}]
[{"$f":"IF(B146<>\"\",IF('Standing Data'!$D$9<>\"Multiple\",IF('Standing Data'!$D$9=B146,\"Error - counterparty with self\",\"\"),IF(N(ISNA(MATCH(B146,'Standing Data'!$E$48:$E$147,0)))<>0,\"\",\"Error - counterparty with self\")),\"\")","v":""},null,{"$f":"IFERROR(VLOOKUP(B146,'CP IDs'!$A$1:$E$7199,2,FALSE),\"\")","v":""},{"$f":"IFERROR(VLOOKUP(B146,'CP IDs'!$A$1:$E$7199,5,FALSE),\"\")","v":""},"",null,null,null,null,null,null,null,null,null,null,null,null,null,null,null,null,null,null,null,null,null,null,null,null,null,null,null,null,null,null,null,null,null,null,null,null,null,null,null,null,null,null,null,null,null,-500000,500000,null,1,1,31,null,1,0,0,null,{"$f":"AND(B146=$C$9,'Standing Data'!$D$9<>\"Multi-academy Trust\")","v":{"$error":"#N/A"}}]
[{"$f":"IF(B147<>\"\",IF('Standing Data'!$D$9<>\"Multiple\",IF('Standing Data'!$D$9=B147,\"Error - counterparty with self\",\"\"),IF(N(ISNA(MATCH(B147,'Standing Data'!$E$48:$E$147,0)))<>0,\"\",\"Error - counterparty with self\")),\"\")","v":""},null,{"$f":"IFERROR(VLOOKUP(B147,'CP IDs'!$A$1:$E$7199,2,FALSE),\"\")","v":""},{"$f":"IFERROR(VLOOKUP(B147,'CP IDs'!$A$1:$E$7199,5,FALSE),\"\")","v":""},"",null,null,null,null,null,null,null,null,null,null,null,null,null,null,null,null,null,null,null,null,null,null,null,null,null,null,null,null,null,null,null,null,null,null,null,null,null,null,null,null,null,null,null,null,null,-500000,500000,null,1,1,31,null,1,0,0,null,{"$f":"AND(B147=$C$9,'Standing Data'!$D$9<>\"Multi-academy Trust\")","v":{"$error":"#N/A"}}]
[{"$f":"IF(B148<>\"\",IF('Standing Data'!$D$9<>\"Multiple\",IF('Standing Data'!$D$9=B148,\"Error - counterparty with self\",\"\"),IF(N(ISNA(MATCH(B148,'Standing Data'!$E$48:$E$147,0)))<>0,\"\",\"Error - counterparty with self\")),\"\")","v":""},null,{"$f":"IFERROR(VLOOKUP(B148,'CP IDs'!$A$1:$E$7199,2,FALSE),\"\")","v":""},{"$f":"IFERROR(VLOOKUP(B148,'CP IDs'!$A$1:$E$7199,5,FALSE),\"\")","v":""},"",null,null,null,null,null,null,null,null,null,null,null,null,null,null,null,null,null,null,null,null,null,null,null,null,null,null,null,null,null,null,null,null,null,null,null,null,null,null,null,null,null,null,null,null,null,-500000,500000,null,1,1,31,null,1,0,0,null,{"$f":"AND(B148=$C$9,'Standing Data'!$D$9<>\"Multi-academy Trust\")","v":{"$error":"#N/A"}}]
[{"$f":"IF(B149<>\"\",IF('Standing Data'!$D$9<>\"Multiple\",IF('Standing Data'!$D$9=B149,\"Error - counterparty with self\",\"\"),IF(N(ISNA(MATCH(B149,'Standing Data'!$E$48:$E$147,0)))<>0,\"\",\"Error - counterparty with self\")),\"\")","v":""},null,{"$f":"IFERROR(VLOOKUP(B149,'CP IDs'!$A$1:$E$7199,2,FALSE),\"\")","v":""},{"$f":"IFERROR(VLOOKUP(B149,'CP IDs'!$A$1:$E$7199,5,FALSE),\"\")","v":""},"",null,null,null,null,null,null,null,null,null,null,null,null,null,null,null,null,null,null,null,null,null,null,null,null,null,null,null,null,null,null,null,null,null,null,null,null,null,null,null,null,null,null,null,null,null,-500000,500000,null,1,1,31,null,1,0,0,null,{"$f":"AND(B149=$C$9,'Standing Data'!$D$9<>\"Multi-academy Trust\")","v":{"$error":"#N/A"}}]
[{"$f":"IF(B150<>\"\",IF('Standing Data'!$D$9<>\"Multiple\",IF('Standing Data'!$D$9=B150,\"Error - counterparty with self\",\"\"),IF(N(ISNA(MATCH(B150,'Standing Data'!$E$48:$E$147,0)))<>0,\"\",\"Error - counterparty with self\")),\"\")","v":""},null,{"$f":"IFERROR(VLOOKUP(B150,'CP IDs'!$A$1:$E$7199,2,FALSE),\"\")","v":""},{"$f":"IFERROR(VLOOKUP(B150,'CP IDs'!$A$1:$E$7199,5,FALSE),\"\")","v":""},"",null,null,null,null,null,null,null,null,null,null,null,null,null,null,null,null,null,null,null,null,null,null,null,null,null,null,null,null,null,null,null,null,null,null,null,null,null,null,null,null,null,null,null,null,null,-500000,500000,null,1,1,31,null,1,0,{"$f":"COUNT(F150:AV150)","v":0},null,{"$f":"AND(B150=$C$9,'Standing Data'!$D$9<>\"Multi-academy Trust\")","v":{"$error":"#N/A"}}]
[{"$f":"IF(B151<>\"\",IF('Standing Data'!$D$9<>\"Multiple\",IF('Standing Data'!$D$9=B151,\"Error - counterparty with self\",\"\"),IF(N(ISNA(MATCH(B151,'Standing Data'!$E$48:$E$147,0)))<>0,\"\",\"Error - counterparty with self\")),\"\")","v":""},null,{"$f":"IFERROR(VLOOKUP(B151,'CP IDs'!$A$1:$E$7199,2,FALSE),\"\")","v":""},{"$f":"IFERROR(VLOOKUP(B151,'CP IDs'!$A$1:$E$7199,5,FALSE),\"\")","v":""},"",null,null,null,null,null,null,null,null,null,null,null,null,null,null,null,null,null,null,null,null,null,null,null,null,null,null,null,null,null,null,null,null,null,null,null,null,null,null,null,null,null,null,null,null,null,{"$f":"AY150","v":-500000},{"$f":"AZ150","v":500000},null,1,1,31,null,1,0,0,null,{"$f":"AND(B151=$C$9,'Standing Data'!$D$9<>\"Multi-academy Trust\")","v":{"$error":"#N/A"}}]
[{"$f":"IF(B152<>\"\",IF('Standing Data'!$D$9<>\"Multiple\",IF('Standing Data'!$D$9=B152,\"Error - counterparty with self\",\"\"),IF(N(ISNA(MATCH(B152,'Standing Data'!$E$48:$E$147,0)))<>0,\"\",\"Error - counterparty with self\")),\"\")","v":""},null,{"$f":"IFERROR(VLOOKUP(B152,'CP IDs'!$A$1:$E$7199,2,FALSE),\"\")","v":""},{"$f":"IFERROR(VLOOKUP(B152,'CP IDs'!$A$1:$E$7199,5,FALSE),\"\")","v":""},"",null,null,null,null,null,null,null,null,null,null,null,null,null,null,null,null,null,null,null,null,null,null,null,null,null,null,null,null,null,null,null,null,null,null,null,null,null,null,null,null,null,null,null,null,null,-500000,500000,null,1,1,31,null,1,0,0,null,{"$f":"AND(B152=$C$9,'Standing Data'!$D$9<>\"Multi-academy Trust\")","v":{"$error":"#N/A"}}]
[{"$f":"IF(B153<>\"\",IF('Standing Data'!$D$9<>\"Multiple\",IF('Standing Data'!$D$9=B153,\"Error - counterparty with self\",\"\"),IF(N(ISNA(MATCH(B153,'Standing Data'!$E$48:$E$147,0)))<>0,\"\",\"Error - counterparty with self\")),\"\")","v":""},null,{"$f":"IFERROR(VLOOKUP(B153,'CP IDs'!$A$1:$E$7199,2,FALSE),\"\")","v":""},{"$f":"IFERROR(VLOOKUP(B153,'CP IDs'!$A$1:$E$7199,5,FALSE),\"\")","v":""},"",null,null,null,null,null,null,null,null,null,null,null,null,null,null,null,null,null,null,null,null,null,null,null,null,null,null,null,null,null,null,null,null,null,null,null,null,null,null,null,null,null,null,null,null,null,-500000,500000,null,1,1,31,null,1,0,0,null,{"$f":"AND(B153=$C$9,'Standing Data'!$D$9<>\"Multi-academy Trust\")","v":{"$error":"#N/A"}}]
[{"$f":"IF(B154<>\"\",IF('Standing Data'!$D$9<>\"Multiple\",IF('Standing Data'!$D$9=B154,\"Error - counterparty with self\",\"\"),IF(N(ISNA(MATCH(B154,'Standing Data'!$E$48:$E$147,0)))<>0,\"\",\"Error - counterparty with self\")),\"\")","v":""},null,{"$f":"IFERROR(VLOOKUP(B154,'CP IDs'!$A$1:$E$7199,2,FALSE),\"\")","v":""},{"$f":"IFERROR(VLOOKUP(B154,'CP IDs'!$A$1:$E$7199,5,FALSE),\"\")","v":""},"",null,null,null,null,null,null,null,null,null,null,null,null,null,null,null,null,null,null,null,null,null,null,null,null,null,null,null,null,null,null,null,null,null,null,null,null,null,null,null,null,null,null,null,null,null,-500000,500000,null,1,1,31,null,1,0,0,null,{"$f":"AND(B154=$C$9,'Standing Data'!$D$9<>\"Multi-academy Trust\")","v":{"$error":"#N/A"}}]
[{"$f":"IF(B155<>\"\",IF('Standing Data'!$D$9<>\"Multiple\",IF('Standing Data'!$D$9=B155,\"Error - counterparty with self\",\"\"),IF(N(ISNA(MATCH(B155,'Standing Data'!$E$48:$E$147,0)))<>0,\"\",\"Error - counterparty with self\")),\"\")","v":""},null,{"$f":"IFERROR(VLOOKUP(B155,'CP IDs'!$A$1:$E$7199,2,FALSE),\"\")","v":""},{"$f":"IFERROR(VLOOKUP(B155,'CP IDs'!$A$1:$E$7199,5,FALSE),\"\")","v":""},"",null,null,null,null,null,null,null,null,null,null,null,null,null,null,null,null,null,null,null,null,null,null,null,null,null,null,null,null,null,null,null,null,null,null,null,null,null,null,null,null,null,null,null,null,null,-500000,500000,null,1,1,31,null,1,0,0,null,{"$f":"AND(B155=$C$9,'Standing Data'!$D$9<>\"Multi-academy Trust\")","v":{"$error":"#N/A"}}]
[{"$f":"IF(B156<>\"\",IF('Standing Data'!$D$9<>\"Multiple\",IF('Standing Data'!$D$9=B156,\"Error - counterparty with self\",\"\"),IF(N(ISNA(MATCH(B156,'Standing Data'!$E$48:$E$147,0)))<>0,\"\",\"Error - counterparty with self\")),\"\")","v":""},null,{"$f":"IFERROR(VLOOKUP(B156,'CP IDs'!$A$1:$E$7199,2,FALSE),\"\")","v":""},{"$f":"IFERROR(VLOOKUP(B156,'CP IDs'!$A$1:$E$7199,5,FALSE),\"\")","v":""},"",null,null,null,null,null,null,null,null,null,null,null,null,null,null,null,null,null,null,null,null,null,null,null,null,null,null,null,null,null,null,null,null,null,null,null,null,null,null,null,null,null,null,null,null,null,-500000,500000,null,1,1,31,null,1,0,0,null,{"$f":"AND(B156=$C$9,'Standing Data'!$D$9<>\"Multi-academy Trust\")","v":{"$error":"#N/A"}}]
[{"$f":"IF(B157<>\"\",IF('Standing Data'!$D$9<>\"Multiple\",IF('Standing Data'!$D$9=B157,\"Error - counterparty with self\",\"\"),IF(N(ISNA(MATCH(B157,'Standing Data'!$E$48:$E$147,0)))<>0,\"\",\"Error - counterparty with self\")),\"\")","v":""},null,{"$f":"IFERROR(VLOOKUP(B157,'CP IDs'!$A$1:$E$7199,2,FALSE),\"\")","v":""},{"$f":"IFERROR(VLOOKUP(B157,'CP IDs'!$A$1:$E$7199,5,FALSE),\"\")","v":""},"",null,null,null,null,null,null,null,null,null,null,null,null,null,null,null,null,null,null,null,null,null,null,null,null,null,null,null,null,null,null,null,null,null,null,null,null,null,null,null,null,null,null,null,null,null,-500000,500000,null,1,1,31,null,1,0,0,null,{"$f":"AND(B157=$C$9,'Standing Data'!$D$9<>\"Multi-academy Trust\")","v":{"$error":"#N/A"}}]
[{"$f":"IF(B158<>\"\",IF('Standing Data'!$D$9<>\"Multiple\",IF('Standing Data'!$D$9=B158,\"Error - counterparty with self\",\"\"),IF(N(ISNA(MATCH(B158,'Standing Data'!$E$48:$E$147,0)))<>0,\"\",\"Error - counterparty with self\")),\"\")","v":""},null,{"$f":"IFERROR(VLOOKUP(B158,'CP IDs'!$A$1:$E$7199,2,FALSE),\"\")","v":""},{"$f":"IFERROR(VLOOKUP(B158,'CP IDs'!$A$1:$E$7199,5,FALSE),\"\")","v":""},"",null,null,null,null,null,null,null,null,null,null,null,null,null,null,null,null,null,null,null,null,null,null,null,null,null,null,null,null,null,null,null,null,null,null,null,null,null,null,null,null,null,null,null,null,null,-500000,500000,null,1,1,31,null,{"$f":"COUNTA(C158)","v":1},{"$f":"1-COUNTBLANK(B158)","v":0},0,null,{"$f":"AND(B158=$C$9,'Standing Data'!$D$9<>\"Multi-academy Trust\")","v":{"$error":"#N/A"}}]
[{"$f":"IF(B159<>\"\",IF('Standing Data'!$D$9<>\"Multiple\",IF('Standing Data'!$D$9=B159,\"Error - counterparty with self\",\"\"),IF(N(ISNA(MATCH(B159,'Standing Data'!$E$48:$E$147,0)))<>0,\"\",\"Error - counterparty with self\")),\"\")","v":""},null,{"$f":"IFERROR(VLOOKUP(B159,'CP IDs'!$A$1:$E$7199,2,FALSE),\"\")","v":""},{"$f":"IFERROR(VLOOKUP(B159,'CP IDs'!$A$1:$E$7199,5,FALSE),\"\")","v":""},{"$f":"IF(OR(AND(COUNT(F159:AV159)>0,C159=\"\"),AND(COUNT(F159:AV159)=0,C159<>\"\")),\"Error - on line\",\"\")","v":""},null,null,null,null,null,null,null,null,null,null,null,null,null,null,null,null,null,null,null,null,null,null,null,null,null,null,null,null,null,null,null,null,null,null,null,null,null,null,null,null,null,null,null,null,null,-500000,500000,null,1,1,31,null,1,0,0,null,{"$f":"AND(B159=$C$9,'Standing Data'!$D$9<>\"Multi-academy Trust\")","v":{"$error":"#N/A"}}]
[{"$f":"IF(B160<>\"\",IF('Standing Data'!$D$9<>\"Multiple\",IF('Standing Data'!$D$9=B160,\"Error - counterparty with self\",\"\"),IF(N(ISNA(MATCH(B160,'Standing Data'!$E$48:$E$147,0)))<>0,\"\",\"Error - counterparty with self\")),\"\")","v":""},null,{"$f":"IFERROR(VLOOKUP(B160,'CP IDs'!$A$1:$E$7199,2,FALSE),\"\")","v":""},{"$f":"IFERROR(VLOOKUP(B160,'CP IDs'!$A$1:$E$7199,5,FALSE),\"\")","v":""},"",null,null,null,null,null,null,null,null,null,null,null,null,null,null,null,null,null,null,null,null,null,null,null,null,null,null,null,null,null,null,null,null,null,null,null,null,null,null,null,null,null,null,null,null,null,-500000,500000,null,1,1,31,null,1,0,0,null,{"$f":"AND(B160=$C$9,'Standing Data'!$D$9<>\"Multi-academy Trust\")","v":{"$error":"#N/A"}}]
[{"$f":"IF(B161<>\"\",IF('Standing Data'!$D$9<>\"Multiple\",IF('Standing Data'!$D$9=B161,\"Error - counterparty with self\",\"\"),IF(N(ISNA(MATCH(B161,'Standing Data'!$E$48:$E$147,0)))<>0,\"\",\"Error - counterparty with self\")),\"\")","v":""},null,{"$f":"IFERROR(VLOOKUP(B161,'CP IDs'!$A$1:$E$7199,2,FALSE),\"\")","v":""},{"$f":"IFERROR(VLOOKUP(B161,'CP IDs'!$A$1:$E$7199,5,FALSE),\"\")","v":""},"",null,null,null,null,null,null,null,null,null,null,null,null,null,null,null,null,null,null,null,null,null,null,null,null,null,null,null,null,null,null,null,null,null,null,null,null,null,null,null,null,null,null,null,null,null,-500000,500000,null,1,1,31,null,1,0,0,null,{"$f":"AND(B161=$C$9,'Standing Data'!$D$9<>\"Multi-academy Trust\")","v":{"$error":"#N/A"}}]
[{"$f":"IF(B162<>\"\",IF('Standing Data'!$D$9<>\"Multiple\",IF('Standing Data'!$D$9=B162,\"Error - counterparty with self\",\"\"),IF(N(ISNA(MATCH(B162,'Standing Data'!$E$48:$E$147,0)))<>0,\"\",\"Error - counterparty with self\")),\"\")","v":""},null,{"$f":"IFERROR(VLOOKUP(B162,'CP IDs'!$A$1:$E$7199,2,FALSE),\"\")","v":""},{"$f":"IFERROR(VLOOKUP(B162,'CP IDs'!$A$1:$E$7199,5,FALSE),\"\")","v":""},"",null,null,null,null,null,null,null,null,null,null,null,null,null,null,null,null,null,null,null,null,null,null,null,null,null,null,null,null,null,null,null,null,null,null,null,null,null,null,null,null,null,null,null,null,null,-500000,500000,null,1,1,31,null,1,0,0,null,{"$f":"AND(B162=$C$9,'Standing Data'!$D$9<>\"Multi-academy Trust\")","v":{"$error":"#N/A"}}]
[{"$f":"IF(B163<>\"\",IF('Standing Data'!$D$9<>\"Multiple\",IF('Standing Data'!$D$9=B163,\"Error - counterparty with self\",\"\"),IF(N(ISNA(MATCH(B163,'Standing Data'!$E$48:$E$147,0)))<>0,\"\",\"Error - counterparty with self\")),\"\")","v":""},null,{"$f":"IFERROR(VLOOKUP(B163,'CP IDs'!$A$1:$E$7199,2,FALSE),\"\")","v":""},{"$f":"IFERROR(VLOOKUP(B163,'CP IDs'!$A$1:$E$7199,5,FALSE),\"\")","v":""},"",null,null,null,null,null,null,null,null,null,null,null,null,null,null,null,null,null,null,null,null,null,null,null,null,null,null,null,null,null,null,null,null,null,null,null,null,null,null,null,null,null,null,null,null,null,-500000,500000,null,1,1,31,null,1,0,0,null,{"$f":"AND(B163=$C$9,'Standing Data'!$D$9<>\"Multi-academy Trust\")","v":{"$error":"#N/A"}}]
[{"$f":"IF(B164<>\"\",IF('Standing Data'!$D$9<>\"Multiple\",IF('Standing Data'!$D$9=B164,\"Error - counterparty with self\",\"\"),IF(N(ISNA(MATCH(B164,'Standing Data'!$E$48:$E$147,0)))<>0,\"\",\"Error - counterparty with self\")),\"\")","v":""},null,{"$f":"IFERROR(VLOOKUP(B164,'CP IDs'!$A$1:$E$7199,2,FALSE),\"\")","v":""},{"$f":"IFERROR(VLOOKUP(B164,'CP IDs'!$A$1:$E$7199,5,FALSE),\"\")","v":""},"",null,null,null,null,null,null,null,null,null,null,null,null,null,null,null,null,null,null,null,null,null,null,null,null,null,null,null,null,null,null,null,null,null,null,null,null,null,null,null,null,null,null,null,null,null,-500000,500000,null,1,1,31,null,1,0,0,null,{"$f":"AND(B164=$C$9,'Standing Data'!$D$9<>\"Multi-academy Trust\")","v":{"$error":"#N/A"}}]
[{"$f":"IF(B165<>\"\",IF('Standing Data'!$D$9<>\"Multiple\",IF('Standing Data'!$D$9=B165,\"Error - counterparty with self\",\"\"),IF(N(ISNA(MATCH(B165,'Standing Data'!$E$48:$E$147,0)))<>0,\"\",\"Error - counterparty with self\")),\"\")","v":""},null,{"$f":"IFERROR(VLOOKUP(B165,'CP IDs'!$A$1:$E$7199,2,FALSE),\"\")","v":""},{"$f":"IFERROR(VLOOKUP(B165,'CP IDs'!$A$1:$E$7199,5,FALSE),\"\")","v":""},"",null,null,null,null,null,null,null,null,null,null,null,null,null,null,null,null,null,null,null,null,null,null,null,null,null,null,null,null,null,null,null,null,null,null,null,null,null,null,null,null,null,null,null,null,null,-500000,500000,null,1,1,31,null,1,0,0,null,{"$f":"AND(B165=$C$9,'Standing Data'!$D$9<>\"Multi-academy Trust\")","v":{"$error":"#N/A"}}]
[{"$f":"IF(B166<>\"\",IF('Standing Data'!$D$9<>\"Multiple\",IF('Standing Data'!$D$9=B166,\"Error - counterparty with self\",\"\"),IF(N(ISNA(MATCH(B166,'Standing Data'!$E$48:$E$147,0)))<>0,\"\",\"Error - counterparty with self\")),\"\")","v":""},null,{"$f":"IFERROR(VLOOKUP(B166,'CP IDs'!$A$1:$E$7199,2,FALSE),\"\")","v":""},{"$f":"IFERROR(VLOOKUP(B166,'CP IDs'!$A$1:$E$7199,5,FALSE),\"\")","v":""},"",null,null,null,null,null,null,null,null,null,null,null,null,null,null,null,null,null,null,null,null,null,null,null,null,null,null,null,null,null,null,null,null,null,null,null,null,null,null,null,null,null,null,null,null,null,-500000,500000,null,1,1,31,null,1,0,0,null,{"$f":"AND(B166=$C$9,'Standing Data'!$D$9<>\"Multi-academy Trust\")","v":{"$error":"#N/A"}}]
[{"$f":"IF(B167<>\"\",IF('Standing Data'!$D$9<>\"Multiple\",IF('Standing Data'!$D$9=B167,\"Error - counterparty with self\",\"\"),IF(N(ISNA(MATCH(B167,'Standing Data'!$E$48:$E$147,0)))<>0,\"\",\"Error - counterparty with self\")),\"\")","v":""},null,{"$f":"IFERROR(VLOOKUP(B167,'CP IDs'!$A$1:$E$7199,2,FALSE),\"\")","v":""},{"$f":"IFERROR(VLOOKUP(B167,'CP IDs'!$A$1:$E$7199,5,FALSE),\"\")","v":""},"",null,null,null,null,null,null,null,null,null,null,null,null,null,null,null,null,null,null,null,null,null,null,null,null,null,null,null,null,null,null,null,null,null,null,null,null,null,null,null,null,null,null,null,null,null,-500000,500000,null,1,1,31,null,1,0,0,null,{"$f":"AND(B167=$C$9,'Standing Data'!$D$9<>\"Multi-academy Trust\")","v":{"$error":"#N/A"}}]
[{"$f":"IF(B168<>\"\",IF('Standing Data'!$D$9<>\"Multiple\",IF('Standing Data'!$D$9=B168,\"Error - counterparty with self\",\"\"),IF(N(ISNA(MATCH(B168,'Standing Data'!$E$48:$E$147,0)))<>0,\"\",\"Error - counterparty with self\")),\"\")","v":""},null,{"$f":"IFERROR(VLOOKUP(B168,'CP IDs'!$A$1:$E$7199,2,FALSE),\"\")","v":""},{"$f":"IFERROR(VLOOKUP(B168,'CP IDs'!$A$1:$E$7199,5,FALSE),\"\")","v":""},"",null,null,null,null,null,null,null,null,null,null,null,null,null,null,null,null,null,null,null,null,null,null,null,null,null,null,null,null,null,null,null,null,null,null,null,null,null,null,null,null,null,null,null,null,null,-500000,500000,null,1,1,31,null,1,0,0,null,{"$f":"AND(B168=$C$9,'Standing Data'!$D$9<>\"Multi-academy Trust\")","v":{"$error":"#N/A"}}]
[{"$f":"IF(B169<>\"\",IF('Standing Data'!$D$9<>\"Multiple\",IF('Standing Data'!$D$9=B169,\"Error - counterparty with self\",\"\"),IF(N(ISNA(MATCH(B169,'Standing Data'!$E$48:$E$147,0)))<>0,\"\",\"Error - counterparty with self\")),\"\")","v":""},null,{"$f":"IFERROR(VLOOKUP(B169,'CP IDs'!$A$1:$E$7199,2,FALSE),\"\")","v":""},{"$f":"IFERROR(VLOOKUP(B169,'CP IDs'!$A$1:$E$7199,5,FALSE),\"\")","v":""},"",null,null,null,null,null,null,null,null,null,null,null,null,null,null,null,null,null,null,null,null,null,null,null,null,null,null,null,null,null,null,null,null,null,null,null,null,null,null,null,null,null,null,null,null,null,-500000,500000,null,1,1,31,null,1,0,0,null,{"$f":"AND(B169=$C$9,'Standing Data'!$D$9<>\"Multi-academy Trust\")","v":{"$error":"#N/A"}}]
[{"$f":"IF(B170<>\"\",IF('Standing Data'!$D$9<>\"Multiple\",IF('Standing Data'!$D$9=B170,\"Error - counterparty with self\",\"\"),IF(N(ISNA(MATCH(B170,'Standing Data'!$E$48:$E$147,0)))<>0,\"\",\"Error - counterparty with self\")),\"\")","v":""},null,{"$f":"IFERROR(VLOOKUP(B170,'CP IDs'!$A$1:$E$7199,2,FALSE),\"\")","v":""},{"$f":"IFERROR(VLOOKUP(B170,'CP IDs'!$A$1:$E$7199,5,FALSE),\"\")","v":""},"",null,null,null,null,null,null,null,null,null,null,null,null,null,null,null,null,null,null,null,null,null,null,null,null,null,null,null,null,null,null,null,null,null,null,null,null,null,null,null,null,null,null,null,null,null,-500000,500000,null,1,1,31,null,1,0,0,null,{"$f":"AND(B170=$C$9,'Standing Data'!$D$9<>\"Multi-academy Trust\")","v":{"$error":"#N/A"}}]
[{"$f":"IF(B171<>\"\",IF('Standing Data'!$D$9<>\"Multiple\",IF('Standing Data'!$D$9=B171,\"Error - counterparty with self\",\"\"),IF(N(ISNA(MATCH(B171,'Standing Data'!$E$48:$E$147,0)))<>0,\"\",\"Error - counterparty with self\")),\"\")","v":""},null,{"$f":"IFERROR(VLOOKUP(B171,'CP IDs'!$A$1:$E$7199,2,FALSE),\"\")","v":""},{"$f":"IFERROR(VLOOKUP(B171,'CP IDs'!$A$1:$E$7199,5,FALSE),\"\")","v":""},"",null,null,null,null,null,null,null,null,null,null,null,null,null,null,null,null,null,null,null,null,null,null,null,null,null,null,null,null,null,null,null,null,null,null,null,null,null,null,null,null,null,null,null,null,null,-500000,500000,null,1,1,31,null,1,0,0,null,{"$f":"AND(B171=$C$9,'Standing Data'!$D$9<>\"Multi-academy Trust\")","v":{"$error":"#N/A"}}]
[{"$f":"IF(B172<>\"\",IF('Standing Data'!$D$9<>\"Multiple\",IF('Standing Data'!$D$9=B172,\"Error - counterparty with self\",\"\"),IF(N(ISNA(MATCH(B172,'Standing Data'!$E$48:$E$147,0)))<>0,\"\",\"Error - counterparty with self\")),\"\")","v":""},null,{"$f":"IFERROR(VLOOKUP(B172,'CP IDs'!$A$1:$E$7199,2,FALSE),\"\")","v":""},{"$f":"IFERROR(VLOOKUP(B172,'CP IDs'!$A$1:$E$7199,5,FALSE),\"\")","v":""},"",null,null,null,null,null,null,null,null,null,null,null,null,null,null,null,null,null,null,null,null,null,null,null,null,null,null,null,null,null,null,null,null,null,null,null,null,null,null,null,null,null,null,null,null,null,-500000,500000,null,1,1,31,null,1,0,0,null,{"$f":"AND(B172=$C$9,'Standing Data'!$D$9<>\"Multi-academy Trust\")","v":{"$error":"#N/A"}}]
[{"$f":"IF(B173<>\"\",IF('Standing Data'!$D$9<>\"Multiple\",IF('Standing Data'!$D$9=B173,\"Error - counterparty with self\",\"\"),IF(N(ISNA(MATCH(B173,'Standing Data'!$E$48:$E$147,0)))<>0,\"\",\"Error - counterparty with self\")),\"\")","v":""},null,{"$f":"IFERROR(VLOOKUP(B173,'CP IDs'!$A$1:$E$7199,2,FALSE),\"\")","v":""},{"$f":"IFERROR(VLOOKUP(B173,'CP IDs'!$A$1:$E$7199,5,FALSE),\"\")","v":""},"",null,null,null,null,null,null,null,null,null,null,null,null,null,null,null,null,null,null,null,null,null,null,null,null,null,null,null,null,null,null,null,null,null,null,null,null,null,null,null,null,null,null,null,null,null,-500000,500000,null,1,1,31,null,1,0,0,null,{"$f":"AND(B173=$C$9,'Standing Data'!$D$9<>\"Multi-academy Trust\")","v":{"$error":"#N/A"}}]
[{"$f":"IF(B174<>\"\",IF('Standing Data'!$D$9<>\"Multiple\",IF('Standing Data'!$D$9=B174,\"Error - counterparty with self\",\"\"),IF(N(ISNA(MATCH(B174,'Standing Data'!$E$48:$E$147,0)))<>0,\"\",\"Error - counterparty with self\")),\"\")","v":""},null,{"$f":"IFERROR(VLOOKUP(B174,'CP IDs'!$A$1:$E$7199,2,FALSE),\"\")","v":""},{"$f":"IFERROR(VLOOKUP(B174,'CP IDs'!$A$1:$E$7199,5,FALSE),\"\")","v":""},"",null,null,null,null,null,null,null,null,null,null,null,null,null,null,null,null,null,null,null,null,null,null,null,null,null,null,null,null,null,null,null,null,null,null,null,null,null,null,null,null,null,null,null,null,null,-500000,500000,null,1,1,31,null,1,0,0,null,{"$f":"AND(B174=$C$9,'Standing Data'!$D$9<>\"Multi-academy Trust\")","v":{"$error":"#N/A"}}]
[{"$f":"IF(B175<>\"\",IF('Standing Data'!$D$9<>\"Multiple\",IF('Standing Data'!$D$9=B175,\"Error - counterparty with self\",\"\"),IF(N(ISNA(MATCH(B175,'Standing Data'!$E$48:$E$147,0)))<>0,\"\",\"Error - counterparty with self\")),\"\")","v":""},null,{"$f":"IFERROR(VLOOKUP(B175,'CP IDs'!$A$1:$E$7199,2,FALSE),\"\")","v":""},{"$f":"IFERROR(VLOOKUP(B175,'CP IDs'!$A$1:$E$7199,5,FALSE),\"\")","v":""},"",null,null,null,null,null,null,null,null,null,null,null,null,null,null,null,null,null,null,null,null,null,null,null,null,null,null,null,null,null,null,null,null,null,null,null,null,null,null,null,null,null,null,null,null,null,-500000,500000,null,1,1,31,null,1,0,0,null,{"$f":"AND(B175=$C$9,'Standing Data'!$D$9<>\"Multi-academy Trust\")","v":{"$error":"#N/A"}}]
[{"$f":"IF(B176<>\"\",IF('Standing Data'!$D$9<>\"Multiple\",IF('Standing Data'!$D$9=B176,\"Error - counterparty with self\",\"\"),IF(N(ISNA(MATCH(B176,'Standing Data'!$E$48:$E$147,0)))<>0,\"\",\"Error - counterparty with self\")),\"\")","v":""},null,{"$f":"IFERROR(VLOOKUP(B176,'CP IDs'!$A$1:$E$7199,2,FALSE),\"\")","v":""},{"$f":"IFERROR(VLOOKUP(B176,'CP IDs'!$A$1:$E$7199,5,FALSE),\"\")","v":""},"",null,null,null,null,null,null,null,null,null,null,null,null,null,null,null,null,null,null,null,null,null,null,null,null,null,null,null,null,null,null,null,null,null,null,null,null,null,null,null,null,null,null,null,null,null,-500000,500000,null,1,1,31,null,1,0,0,null,{"$f":"AND(B176=$C$9,'Standing Data'!$D$9<>\"Multi-academy Trust\")","v":{"$error":"#N/A"}}]
[{"$f":"IF(B177<>\"\",IF('Standing Data'!$D$9<>\"Multiple\",IF('Standing Data'!$D$9=B177,\"Error - counterparty with self\",\"\"),IF(N(ISNA(MATCH(B177,'Standing Data'!$E$48:$E$147,0)))<>0,\"\",\"Error - counterparty with self\")),\"\")","v":""},null,{"$f":"IFERROR(VLOOKUP(B177,'CP IDs'!$A$1:$E$7199,2,FALSE),\"\")","v":""},{"$f":"IFERROR(VLOOKUP(B177,'CP IDs'!$A$1:$E$7199,5,FALSE),\"\")","v":""},"",null,null,null,null,null,null,null,null,null,null,null,null,null,null,null,null,null,null,null,null,null,null,null,null,null,null,null,null,null,null,null,null,null,null,null,null,null,null,null,null,null,null,null,null,null,-500000,500000,null,1,1,31,null,1,0,0,null,{"$f":"AND(B177=$C$9,'Standing Data'!$D$9<>\"Multi-academy Trust\")","v":{"$error":"#N/A"}}]
[{"$f":"IF(B178<>\"\",IF('Standing Data'!$D$9<>\"Multiple\",IF('Standing Data'!$D$9=B178,\"Error - counterparty with self\",\"\"),IF(N(ISNA(MATCH(B178,'Standing Data'!$E$48:$E$147,0)))<>0,\"\",\"Error - counterparty with self\")),\"\")","v":""},null,{"$f":"IFERROR(VLOOKUP(B178,'CP IDs'!$A$1:$E$7199,2,FALSE),\"\")","v":""},{"$f":"IFERROR(VLOOKUP(B178,'CP IDs'!$A$1:$E$7199,5,FALSE),\"\")","v":""},"",null,null,null,null,null,null,null,null,null,null,null,null,null,null,null,null,null,null,null,null,null,null,null,null,null,null,null,null,null,null,null,null,null,null,null,null,null,null,null,null,null,null,null,null,null,-500000,500000,null,1,1,31,null,1,0,0,null,{"$f":"AND(B178=$C$9,'Standing Data'!$D$9<>\"Multi-academy Trust\")","v":{"$error":"#N/A"}}]
[{"$f":"IF(B179<>\"\",IF('Standing Data'!$D$9<>\"Multiple\",IF('Standing Data'!$D$9=B179,\"Error - counterparty with self\",\"\"),IF(N(ISNA(MATCH(B179,'Standing Data'!$E$48:$E$147,0)))<>0,\"\",\"Error - counterparty with self\")),\"\")","v":""},null,{"$f":"IFERROR(VLOOKUP(B179,'CP IDs'!$A$1:$E$7199,2,FALSE),\"\")","v":""},{"$f":"IFERROR(VLOOKUP(B179,'CP IDs'!$A$1:$E$7199,5,FALSE),\"\")","v":""},"",null,null,null,null,null,null,null,null,null,null,null,null,null,null,null,null,null,null,null,null,null,null,null,null,null,null,null,null,null,null,null,null,null,null,null,null,null,null,null,null,null,null,null,null,null,-500000,500000,null,1,1,31,null,1,0,0,null,{"$f":"AND(B179=$C$9,'Standing Data'!$D$9<>\"Multi-academy Trust\")","v":{"$error":"#N/A"}}]
[{"$f":"IF(B180<>\"\",IF('Standing Data'!$D$9<>\"Multiple\",IF('Standing Data'!$D$9=B180,\"Error - counterparty with self\",\"\"),IF(N(ISNA(MATCH(B180,'Standing Data'!$E$48:$E$147,0)))<>0,\"\",\"Error - counterparty with self\")),\"\")","v":""},null,{"$f":"IFERROR(VLOOKUP(B180,'CP IDs'!$A$1:$E$7199,2,FALSE),\"\")","v":""},{"$f":"IFERROR(VLOOKUP(B180,'CP IDs'!$A$1:$E$7199,5,FALSE),\"\")","v":""},"",null,null,null,null,null,null,null,null,null,null,null,null,null,null,null,null,null,null,null,null,null,null,null,null,null,null,null,null,null,null,null,null,null,null,null,null,null,null,null,null,null,null,null,null,null,-500000,500000,null,1,1,31,null,1,0,0,null,{"$f":"AND(B180=$C$9,'Standing Data'!$D$9<>\"Multi-academy Trust\")","v":{"$error":"#N/A"}}]
[{"$f":"IF(B181<>\"\",IF('Standing Data'!$D$9<>\"Multiple\",IF('Standing Data'!$D$9=B181,\"Error - counterparty with self\",\"\"),IF(N(ISNA(MATCH(B181,'Standing Data'!$E$48:$E$147,0)))<>0,\"\",\"Error - counterparty with self\")),\"\")","v":""},null,{"$f":"IFERROR(VLOOKUP(B181,'CP IDs'!$A$1:$E$7199,2,FALSE),\"\")","v":""},{"$f":"IFERROR(VLOOKUP(B181,'CP IDs'!$A$1:$E$7199,5,FALSE),\"\")","v":""},"",null,null,null,null,null,null,null,null,null,null,null,null,null,null,null,null,null,null,null,null,null,null,null,null,null,null,null,null,null,null,null,null,null,null,null,null,null,null,null,null,null,null,null,null,null,-500000,500000,null,1,1,31,null,1,0,0,null,{"$f":"AND(B181=$C$9,'Standing Data'!$D$9<>\"Multi-academy Trust\")","v":{"$error":"#N/A"}}]
[{"$f":"IF(B182<>\"\",IF('Standing Data'!$D$9<>\"Multiple\",IF('Standing Data'!$D$9=B182,\"Error - counterparty with self\",\"\"),IF(N(ISNA(MATCH(B182,'Standing Data'!$E$48:$E$147,0)))<>0,\"\",\"Error - counterparty with self\")),\"\")","v":""},null,{"$f":"IFERROR(VLOOKUP(B182,'CP IDs'!$A$1:$E$7199,2,FALSE),\"\")","v":""},{"$f":"IFERROR(VLOOKUP(B182,'CP IDs'!$A$1:$E$7199,5,FALSE),\"\")","v":""},"",null,null,null,null,null,null,null,null,null,null,null,null,null,null,null,null,null,null,null,null,null,null,null,null,null,null,null,null,null,null,null,null,null,null,null,null,null,null,null,null,null,null,null,null,null,-500000,500000,null,1,1,31,null,1,0,0,null,{"$f":"AND(B182=$C$9,'Standing Data'!$D$9<>\"Multi-academy Trust\")","v":{"$error":"#N/A"}}]
[{"$f":"IF(B183<>\"\",IF('Standing Data'!$D$9<>\"Multiple\",IF('Standing Data'!$D$9=B183,\"Error - counterparty with self\",\"\"),IF(N(ISNA(MATCH(B183,'Standing Data'!$E$48:$E$147,0)))<>0,\"\",\"Error - counterparty with self\")),\"\")","v":""},null,{"$f":"IFERROR(VLOOKUP(B183,'CP IDs'!$A$1:$E$7199,2,FALSE),\"\")","v":""},{"$f":"IFERROR(VLOOKUP(B183,'CP IDs'!$A$1:$E$7199,5,FALSE),\"\")","v":""},"",null,null,null,null,null,null,null,null,null,null,null,null,null,null,null,null,null,null,null,null,null,null,null,null,null,null,null,null,null,null,null,null,null,null,null,null,null,null,null,null,null,null,null,null,null,-500000,500000,null,1,1,31,null,1,0,0,null,{"$f":"AND(B183=$C$9,'Standing Data'!$D$9<>\"Multi-academy Trust\")","v":{"$error":"#N/A"}}]
[{"$f":"IF(B184<>\"\",IF('Standing Data'!$D$9<>\"Multiple\",IF('Standing Data'!$D$9=B184,\"Error - counterparty with self\",\"\"),IF(N(ISNA(MATCH(B184,'Standing Data'!$E$48:$E$147,0)))<>0,\"\",\"Error - counterparty with self\")),\"\")","v":""},null,{"$f":"IFERROR(VLOOKUP(B184,'CP IDs'!$A$1:$E$7199,2,FALSE),\"\")","v":""},{"$f":"IFERROR(VLOOKUP(B184,'CP IDs'!$A$1:$E$7199,5,FALSE),\"\")","v":""},"",null,null,null,null,null,null,null,null,null,null,null,null,null,null,null,null,null,null,null,null,null,null,null,null,null,null,null,null,null,null,null,null,null,null,null,null,null,null,null,null,null,null,null,null,null,-500000,500000,null,1,1,31,null,1,0,0,null,{"$f":"AND(B184=$C$9,'Standing Data'!$D$9<>\"Multi-academy Trust\")","v":{"$error":"#N/A"}}]
[{"$f":"IF(B185<>\"\",IF('Standing Data'!$D$9<>\"Multiple\",IF('Standing Data'!$D$9=B185,\"Error - counterparty with self\",\"\"),IF(N(ISNA(MATCH(B185,'Standing Data'!$E$48:$E$147,0)))<>0,\"\",\"Error - counterparty with self\")),\"\")","v":""},null,{"$f":"IFERROR(VLOOKUP(B185,'CP IDs'!$A$1:$E$7199,2,FALSE),\"\")","v":""},{"$f":"IFERROR(VLOOKUP(B185,'CP IDs'!$A$1:$E$7199,5,FALSE),\"\")","v":""},"",null,null,null,null,null,null,null,null,null,null,null,null,null,null,null,null,null,null,null,null,null,null,null,null,null,null,null,null,null,null,null,null,null,null,null,null,null,null,null,null,null,null,null,null,null,-500000,500000,null,1,1,31,null,1,0,0,null,{"$f":"AND(B185=$C$9,'Standing Data'!$D$9<>\"Multi-academy Trust\")","v":{"$error":"#N/A"}}]
[{"$f":"IF(B186<>\"\",IF('Standing Data'!$D$9<>\"Multiple\",IF('Standing Data'!$D$9=B186,\"Error - counterparty with self\",\"\"),IF(N(ISNA(MATCH(B186,'Standing Data'!$E$48:$E$147,0)))<>0,\"\",\"Error - counterparty with self\")),\"\")","v":""},null,{"$f":"IFERROR(VLOOKUP(B186,'CP IDs'!$A$1:$E$7199,2,FALSE),\"\")","v":""},{"$f":"IFERROR(VLOOKUP(B186,'CP IDs'!$A$1:$E$7199,5,FALSE),\"\")","v":""},"",null,null,null,null,null,null,null,null,null,null,null,null,null,null,null,null,null,null,null,null,null,null,null,null,null,null,null,null,null,null,null,null,null,null,null,null,null,null,null,null,null,null,null,null,null,-500000,500000,null,1,1,31,null,1,0,0,null,{"$f":"AND(B186=$C$9,'Standing Data'!$D$9<>\"Multi-academy Trust\")","v":{"$error":"#N/A"}}]
[{"$f":"IF(B187<>\"\",IF('Standing Data'!$D$9<>\"Multiple\",IF('Standing Data'!$D$9=B187,\"Error - counterparty with self\",\"\"),IF(N(ISNA(MATCH(B187,'Standing Data'!$E$48:$E$147,0)))<>0,\"\",\"Error - counterparty with self\")),\"\")","v":""},null,{"$f":"IFERROR(VLOOKUP(B187,'CP IDs'!$A$1:$E$7199,2,FALSE),\"\")","v":""},{"$f":"IFERROR(VLOOKUP(B187,'CP IDs'!$A$1:$E$7199,5,FALSE),\"\")","v":""},"",null,null,null,null,null,null,null,null,null,null,null,null,null,null,null,null,null,null,null,null,null,null,null,null,null,null,null,null,null,null,null,null,null,null,null,null,null,null,null,null,null,null,null,null,null,-500000,500000,null,1,1,31,null,1,0,0,null,{"$f":"AND(B187=$C$9,'Standing Data'!$D$9<>\"Multi-academy Trust\")","v":{"$error":"#N/A"}}]
[{"$f":"IF(B188<>\"\",IF('Standing Data'!$D$9<>\"Multiple\",IF('Standing Data'!$D$9=B188,\"Error - counterparty with self\",\"\"),IF(N(ISNA(MATCH(B188,'Standing Data'!$E$48:$E$147,0)))<>0,\"\",\"Error - counterparty with self\")),\"\")","v":""},null,{"$f":"IFERROR(VLOOKUP(B188,'CP IDs'!$A$1:$E$7199,2,FALSE),\"\")","v":""},{"$f":"IFERROR(VLOOKUP(B188,'CP IDs'!$A$1:$E$7199,5,FALSE),\"\")","v":""},"",null,null,null,null,null,null,null,null,null,null,null,null,null,null,null,null,null,null,null,null,null,null,null,null,null,null,null,null,null,null,null,null,null,null,null,null,null,null,null,null,null,null,null,null,null,-500000,500000,null,1,1,31,null,1,0,0,null,{"$f":"AND(B188=$C$9,'Standing Data'!$D$9<>\"Multi-academy Trust\")","v":{"$error":"#N/A"}}]
[{"$f":"IF(B189<>\"\",IF('Standing Data'!$D$9<>\"Multiple\",IF('Standing Data'!$D$9=B189,\"Error - counterparty with self\",\"\"),IF(N(ISNA(MATCH(B189,'Standing Data'!$E$48:$E$147,0)))<>0,\"\",\"Error - counterparty with self\")),\"\")","v":""},null,{"$f":"IFERROR(VLOOKUP(B189,'CP IDs'!$A$1:$E$7199,2,FALSE),\"\")","v":""},{"$f":"IFERROR(VLOOKUP(B189,'CP IDs'!$A$1:$E$7199,5,FALSE),\"\")","v":""},"",null,null,null,null,null,null,null,null,null,null,null,null,null,null,null,null,null,null,null,null,null,null,null,null,null,null,null,null,null,null,null,null,null,null,null,null,null,null,null,null,null,null,null,null,null,-500000,500000,null,1,1,31,null,1,0,0,null,{"$f":"AND(B189=$C$9,'Standing Data'!$D$9<>\"Multi-academy Trust\")","v":{"$error":"#N/A"}}]
[{"$f":"IF(B190<>\"\",IF('Standing Data'!$D$9<>\"Multiple\",IF('Standing Data'!$D$9=B190,\"Error - counterparty with self\",\"\"),IF(N(ISNA(MATCH(B190,'Standing Data'!$E$48:$E$147,0)))<>0,\"\",\"Error - counterparty with self\")),\"\")","v":""},null,{"$f":"IFERROR(VLOOKUP(B190,'CP IDs'!$A$1:$E$7199,2,FALSE),\"\")","v":""},{"$f":"IFERROR(VLOOKUP(B190,'CP IDs'!$A$1:$E$7199,5,FALSE),\"\")","v":""},"",null,null,null,null,null,null,null,null,null,null,null,null,null,null,null,null,null,null,null,null,null,null,null,null,null,null,null,null,null,null,null,null,null,null,null,null,null,null,null,null,null,null,null,null,null,-500000,500000,null,1,1,31,null,1,0,0,null,{"$f":"AND(B190=$C$9,'Standing Data'!$D$9<>\"Multi-academy Trust\")","v":{"$error":"#N/A"}}]
[{"$f":"IF(B191<>\"\",IF('Standing Data'!$D$9<>\"Multiple\",IF('Standing Data'!$D$9=B191,\"Error - counterparty with self\",\"\"),IF(N(ISNA(MATCH(B191,'Standing Data'!$E$48:$E$147,0)))<>0,\"\",\"Error - counterparty with self\")),\"\")","v":""},null,{"$f":"IFERROR(VLOOKUP(B191,'CP IDs'!$A$1:$E$7199,2,FALSE),\"\")","v":""},{"$f":"IFERROR(VLOOKUP(B191,'CP IDs'!$A$1:$E$7199,5,FALSE),\"\")","v":""},"",null,null,null,null,null,null,null,null,null,null,null,null,null,null,null,null,null,null,null,null,null,null,null,null,null,null,null,null,null,null,null,null,null,null,null,null,null,null,null,null,null,null,null,null,null,-500000,500000,null,1,1,31,null,1,0,0,null,{"$f":"AND(B191=$C$9,'Standing Data'!$D$9<>\"Multi-academy Trust\")","v":{"$error":"#N/A"}}]
[{"$f":"IF(B192<>\"\",IF('Standing Data'!$D$9<>\"Multiple\",IF('Standing Data'!$D$9=B192,\"Error - counterparty with self\",\"\"),IF(N(ISNA(MATCH(B192,'Standing Data'!$E$48:$E$147,0)))<>0,\"\",\"Error - counterparty with self\")),\"\")","v":""},null,{"$f":"IFERROR(VLOOKUP(B192,'CP IDs'!$A$1:$E$7199,2,FALSE),\"\")","v":""},{"$f":"IFERROR(VLOOKUP(B192,'CP IDs'!$A$1:$E$7199,5,FALSE),\"\")","v":""},"",null,null,null,null,null,null,null,null,null,null,null,null,null,null,null,null,null,null,null,null,null,null,null,null,null,null,null,null,null,null,null,null,null,null,null,null,null,null,null,null,null,null,null,null,null,-500000,500000,null,1,1,31,null,1,0,0,null,{"$f":"AND(B192=$C$9,'Standing Data'!$D$9<>\"Multi-academy Trust\")","v":{"$error":"#N/A"}}]
[{"$f":"IF(B193<>\"\",IF('Standing Data'!$D$9<>\"Multiple\",IF('Standing Data'!$D$9=B193,\"Error - counterparty with self\",\"\"),IF(N(ISNA(MATCH(B193,'Standing Data'!$E$48:$E$147,0)))<>0,\"\",\"Error - counterparty with self\")),\"\")","v":""},null,{"$f":"IFERROR(VLOOKUP(B193,'CP IDs'!$A$1:$E$7199,2,FALSE),\"\")","v":""},{"$f":"IFERROR(VLOOKUP(B193,'CP IDs'!$A$1:$E$7199,5,FALSE),\"\")","v":""},"",null,null,null,null,null,null,null,null,null,null,null,null,null,null,null,null,null,null,null,null,null,null,null,null,null,null,null,null,null,null,null,null,null,null,null,null,null,null,null,null,null,null,null,null,null,-500000,500000,null,1,1,31,null,1,0,0,null,{"$f":"AND(B193=$C$9,'Standing Data'!$D$9<>\"Multi-academy Trust\")","v":{"$error":"#N/A"}}]
[{"$f":"IF(B194<>\"\",IF('Standing Data'!$D$9<>\"Multiple\",IF('Standing Data'!$D$9=B194,\"Error - counterparty with self\",\"\"),IF(N(ISNA(MATCH(B194,'Standing Data'!$E$48:$E$147,0)))<>0,\"\",\"Error - counterparty with self\")),\"\")","v":""},null,{"$f":"IFERROR(VLOOKUP(B194,'CP IDs'!$A$1:$E$7199,2,FALSE),\"\")","v":""},{"$f":"IFERROR(VLOOKUP(B194,'CP IDs'!$A$1:$E$7199,5,FALSE),\"\")","v":""},"",null,null,null,null,null,null,null,null,null,null,null,null,null,null,null,null,null,null,null,null,null,null,null,null,null,null,null,null,null,null,null,null,null,null,null,null,null,null,null,null,null,null,null,null,null,-500000,500000,null,1,1,31,null,1,0,0,null,{"$f":"AND(B194=$C$9,'Standing Data'!$D$9<>\"Multi-academy Trust\")","v":{"$error":"#N/A"}}]
[{"$f":"IF(B195<>\"\",IF('Standing Data'!$D$9<>\"Multiple\",IF('Standing Data'!$D$9=B195,\"Error - counterparty with self\",\"\"),IF(N(ISNA(MATCH(B195,'Standing Data'!$E$48:$E$147,0)))<>0,\"\",\"Error - counterparty with self\")),\"\")","v":""},null,{"$f":"IFERROR(VLOOKUP(B195,'CP IDs'!$A$1:$E$7199,2,FALSE),\"\")","v":""},{"$f":"IFERROR(VLOOKUP(B195,'CP IDs'!$A$1:$E$7199,5,FALSE),\"\")","v":""},"",null,null,null,null,null,null,null,null,null,null,null,null,null,null,null,null,null,null,null,null,null,null,null,null,null,null,null,null,null,null,null,null,null,null,null,null,null,null,null,null,null,null,null,null,null,-500000,500000,null,1,1,31,null,1,0,0,null,{"$f":"AND(B195=$C$9,'Standing Data'!$D$9<>\"Multi-academy Trust\")","v":{"$error":"#N/A"}}]
[{"$f":"IF(B196<>\"\",IF('Standing Data'!$D$9<>\"Multiple\",IF('Standing Data'!$D$9=B196,\"Error - counterparty with self\",\"\"),IF(N(ISNA(MATCH(B196,'Standing Data'!$E$48:$E$147,0)))<>0,\"\",\"Error - counterparty with self\")),\"\")","v":""},null,{"$f":"IFERROR(VLOOKUP(B196,'CP IDs'!$A$1:$E$7199,2,FALSE),\"\")","v":""},{"$f":"IFERROR(VLOOKUP(B196,'CP IDs'!$A$1:$E$7199,5,FALSE),\"\")","v":""},"",null,null,null,null,null,null,null,null,null,null,null,null,null,null,null,null,null,null,null,null,null,null,null,null,null,null,null,null,null,null,null,null,null,null,null,null,null,null,null,null,null,null,null,null,null,-500000,500000,null,1,1,31,null,1,0,0,null,{"$f":"AND(B196=$C$9,'Standing Data'!$D$9<>\"Multi-academy Trust\")","v":{"$error":"#N/A"}}]
[{"$f":"IF(B197<>\"\",IF('Standing Data'!$D$9<>\"Multiple\",IF('Standing Data'!$D$9=B197,\"Error - counterparty with self\",\"\"),IF(N(ISNA(MATCH(B197,'Standing Data'!$E$48:$E$147,0)))<>0,\"\",\"Error - counterparty with self\")),\"\")","v":""},null,{"$f":"IFERROR(VLOOKUP(B197,'CP IDs'!$A$1:$E$7199,2,FALSE),\"\")","v":""},{"$f":"IFERROR(VLOOKUP(B197,'CP IDs'!$A$1:$E$7199,5,FALSE),\"\")","v":""},"",null,null,null,null,null,null,null,null,null,null,null,null,null,null,null,null,null,null,null,null,null,null,null,null,null,null,null,null,null,null,null,null,null,null,null,null,null,null,null,null,null,null,null,null,null,-500000,500000,null,1,1,31,null,1,0,0,null,{"$f":"AND(B197=$C$9,'Standing Data'!$D$9<>\"Multi-academy Trust\")","v":{"$error":"#N/A"}}]
[{"$f":"IF(B198<>\"\",IF('Standing Data'!$D$9<>\"Multiple\",IF('Standing Data'!$D$9=B198,\"Error - counterparty with self\",\"\"),IF(N(ISNA(MATCH(B198,'Standing Data'!$E$48:$E$147,0)))<>0,\"\",\"Error - counterparty with self\")),\"\")","v":""},null,{"$f":"IFERROR(VLOOKUP(B198,'CP IDs'!$A$1:$E$7199,2,FALSE),\"\")","v":""},{"$f":"IFERROR(VLOOKUP(B198,'CP IDs'!$A$1:$E$7199,5,FALSE),\"\")","v":""},"",null,null,null,null,null,null,null,null,null,null,null,null,null,null,null,null,null,null,null,null,null,null,null,null,null,null,null,null,null,null,null,null,null,null,null,null,null,null,null,null,null,null,null,null,null,-500000,500000,null,1,1,31,null,1,0,0,null,{"$f":"AND(B198=$C$9,'Standing Data'!$D$9<>\"Multi-academy Trust\")","v":{"$error":"#N/A"}}]
[{"$f":"IF(B199<>\"\",IF('Standing Data'!$D$9<>\"Multiple\",IF('Standing Data'!$D$9=B199,\"Error - counterparty with self\",\"\"),IF(N(ISNA(MATCH(B199,'Standing Data'!$E$48:$E$147,0)))<>0,\"\",\"Error - counterparty with self\")),\"\")","v":""},null,{"$f":"IFERROR(VLOOKUP(B199,'CP IDs'!$A$1:$E$7199,2,FALSE),\"\")","v":""},{"$f":"IFERROR(VLOOKUP(B199,'CP IDs'!$A$1:$E$7199,5,FALSE),\"\")","v":""},"",null,null,null,null,null,null,null,null,null,null,null,null,null,null,null,null,null,null,null,null,null,null,null,null,null,null,null,null,null,null,null,null,null,null,null,null,null,null,null,null,null,null,null,null,null,-500000,500000,null,1,1,31,null,1,0,0,null,{"$f":"AND(B199=$C$9,'Standing Data'!$D$9<>\"Multi-academy Trust\")","v":{"$error":"#N/A"}}]
[{"$f":"IF(B200<>\"\",IF('Standing Data'!$D$9<>\"Multiple\",IF('Standing Data'!$D$9=B200,\"Error - counterparty with self\",\"\"),IF(N(ISNA(MATCH(B200,'Standing Data'!$E$48:$E$147,0)))<>0,\"\",\"Error - counterparty with self\")),\"\")","v":""},null,{"$f":"IFERROR(VLOOKUP(B200,'CP IDs'!$A$1:$E$7199,2,FALSE),\"\")","v":""},{"$f":"IFERROR(VLOOKUP(B200,'CP IDs'!$A$1:$E$7199,5,FALSE),\"\")","v":""},"",null,null,null,null,null,null,null,null,null,null,null,null,null,null,null,null,null,null,null,null,null,null,null,null,null,null,null,null,null,null,null,null,null,null,null,null,null,null,null,null,null,null,null,null,null,-500000,500000,null,1,1,31,null,1,0,0,null,{"$f":"AND(B200=$C$9,'Standing Data'!$D$9<>\"Multi-academy Trust\")","v":{"$error":"#N/A"}}]
[{"$f":"IF(B201<>\"\",IF('Standing Data'!$D$9<>\"Multiple\",IF('Standing Data'!$D$9=B201,\"Error - counterparty with self\",\"\"),IF(N(ISNA(MATCH(B201,'Standing Data'!$E$48:$E$147,0)))<>0,\"\",\"Error - counterparty with self\")),\"\")","v":""},null,{"$f":"IFERROR(VLOOKUP(B201,'CP IDs'!$A$1:$E$7199,2,FALSE),\"\")","v":""},{"$f":"IFERROR(VLOOKUP(B201,'CP IDs'!$A$1:$E$7199,5,FALSE),\"\")","v":""},"",null,null,null,null,null,null,null,null,null,null,null,null,null,null,null,null,null,null,null,null,null,null,null,null,null,null,null,null,null,null,null,null,null,null,null,null,null,null,null,null,null,null,null,null,null,-500000,500000,null,1,1,31,null,1,0,0,null,{"$f":"AND(B201=$C$9,'Standing Data'!$D$9<>\"Multi-academy Trust\")","v":{"$error":"#N/A"}}]
[{"$f":"IF(B202<>\"\",IF('Standing Data'!$D$9<>\"Multiple\",IF('Standing Data'!$D$9=B202,\"Error - counterparty with self\",\"\"),IF(N(ISNA(MATCH(B202,'Standing Data'!$E$48:$E$147,0)))<>0,\"\",\"Error - counterparty with self\")),\"\")","v":""},null,{"$f":"IFERROR(VLOOKUP(B202,'CP IDs'!$A$1:$E$7199,2,FALSE),\"\")","v":""},{"$f":"IFERROR(VLOOKUP(B202,'CP IDs'!$A$1:$E$7199,5,FALSE),\"\")","v":""},"",null,null,null,null,null,null,null,null,null,null,null,null,null,null,null,null,null,null,null,null,null,null,null,null,null,null,null,null,null,null,null,null,null,null,null,null,null,null,null,null,null,null,null,null,null,-500000,500000,null,1,1,31,null,1,0,0,null,{"$f":"AND(B202=$C$9,'Standing Data'!$D$9<>\"Multi-academy Trust\")","v":{"$error":"#N/A"}}]
[{"$f":"IF(B203<>\"\",IF('Standing Data'!$D$9<>\"Multiple\",IF('Standing Data'!$D$9=B203,\"Error - counterparty with self\",\"\"),IF(N(ISNA(MATCH(B203,'Standing Data'!$E$48:$E$147,0)))<>0,\"\",\"Error - counterparty with self\")),\"\")","v":""},null,{"$f":"IFERROR(VLOOKUP(B203,'CP IDs'!$A$1:$E$7199,2,FALSE),\"\")","v":""},{"$f":"IFERROR(VLOOKUP(B203,'CP IDs'!$A$1:$E$7199,5,FALSE),\"\")","v":""},"",null,null,null,null,null,null,null,null,null,null,null,null,null,null,null,null,null,null,null,null,null,null,null,null,null,null,null,null,null,null,null,null,null,null,null,null,null,null,null,null,null,null,null,null,null,-500000,500000,null,1,1,31,null,1,0,0,null,{"$f":"AND(B203=$C$9,'Standing Data'!$D$9<>\"Multi-academy Trust\")","v":{"$error":"#N/A"}}]
[{"$f":"IF(B204<>\"\",IF('Standing Data'!$D$9<>\"Multiple\",IF('Standing Data'!$D$9=B204,\"Error - counterparty with self\",\"\"),IF(N(ISNA(MATCH(B204,'Standing Data'!$E$48:$E$147,0)))<>0,\"\",\"Error - counterparty with self\")),\"\")","v":""},null,{"$f":"IFERROR(VLOOKUP(B204,'CP IDs'!$A$1:$E$7199,2,FALSE),\"\")","v":""},{"$f":"IFERROR(VLOOKUP(B204,'CP IDs'!$A$1:$E$7199,5,FALSE),\"\")","v":""},"",null,null,null,null,null,null,null,null,null,null,null,null,null,null,null,null,null,null,null,null,null,null,null,null,null,null,null,null,null,null,null,null,null,null,null,null,null,null,null,null,null,null,null,null,null,-500000,500000,null,1,1,31,null,1,0,0,null,{"$f":"AND(B204=$C$9,'Standing Data'!$D$9<>\"Multi-academy Trust\")","v":{"$error":"#N/A"}}]
[{"$f":"IF(B205<>\"\",IF('Standing Data'!$D$9<>\"Multiple\",IF('Standing Data'!$D$9=B205,\"Error - counterparty with self\",\"\"),IF(N(ISNA(MATCH(B205,'Standing Data'!$E$48:$E$147,0)))<>0,\"\",\"Error - counterparty with self\")),\"\")","v":""},null,{"$f":"IFERROR(VLOOKUP(B205,'CP IDs'!$A$1:$E$7199,2,FALSE),\"\")","v":""},{"$f":"IFERROR(VLOOKUP(B205,'CP IDs'!$A$1:$E$7199,5,FALSE),\"\")","v":""},"",null,null,null,null,null,null,null,null,null,null,null,null,null,null,null,null,null,null,null,null,null,null,null,null,null,null,null,null,null,null,null,null,null,null,null,null,null,null,null,null,null,null,null,null,null,-500000,500000,null,1,1,31,null,1,0,0,null,{"$f":"AND(B205=$C$9,'Standing Data'!$D$9<>\"Multi-academy Trust\")","v":{"$error":"#N/A"}}]
[{"$f":"IF(B206<>\"\",IF('Standing Data'!$D$9<>\"Multiple\",IF('Standing Data'!$D$9=B206,\"Error - counterparty with self\",\"\"),IF(N(ISNA(MATCH(B206,'Standing Data'!$E$48:$E$147,0)))<>0,\"\",\"Error - counterparty with self\")),\"\")","v":""},null,{"$f":"IFERROR(VLOOKUP(B206,'CP IDs'!$A$1:$E$7199,2,FALSE),\"\")","v":""},{"$f":"IFERROR(VLOOKUP(B206,'CP IDs'!$A$1:$E$7199,5,FALSE),\"\")","v":""},"",null,null,null,null,null,null,null,null,null,null,null,null,null,null,null,null,null,null,null,null,null,null,null,null,null,null,null,null,null,null,null,null,null,null,null,null,null,null,null,null,null,null,null,null,null,-500000,500000,null,1,1,31,null,1,0,0,null,{"$f":"AND(B206=$C$9,'Standing Data'!$D$9<>\"Multi-academy Trust\")","v":{"$error":"#N/A"}}]
[{"$f":"IF(B207<>\"\",IF('Standing Data'!$D$9<>\"Multiple\",IF('Standing Data'!$D$9=B207,\"Error - counterparty with self\",\"\"),IF(N(ISNA(MATCH(B207,'Standing Data'!$E$48:$E$147,0)))<>0,\"\",\"Error - counterparty with self\")),\"\")","v":""},null,{"$f":"IFERROR(VLOOKUP(B207,'CP IDs'!$A$1:$E$7199,2,FALSE),\"\")","v":""},{"$f":"IFERROR(VLOOKUP(B207,'CP IDs'!$A$1:$E$7199,5,FALSE),\"\")","v":""},"",null,null,null,null,null,null,null,null,null,null,null,null,null,null,null,null,null,null,null,null,null,null,null,null,null,null,null,null,null,null,null,null,null,null,null,null,null,null,null,null,null,null,null,null,null,-500000,500000,null,1,1,31,null,1,0,0,null,{"$f":"AND(B207=$C$9,'Standing Data'!$D$9<>\"Multi-academy Trust\")","v":{"$error":"#N/A"}}]
[{"$f":"IF(B208<>\"\",IF('Standing Data'!$D$9<>\"Multiple\",IF('Standing Data'!$D$9=B208,\"Error - counterparty with self\",\"\"),IF(N(ISNA(MATCH(B208,'Standing Data'!$E$48:$E$147,0)))<>0,\"\",\"Error - counterparty with self\")),\"\")","v":""},null,{"$f":"IFERROR(VLOOKUP(B208,'CP IDs'!$A$1:$E$7199,2,FALSE),\"\")","v":""},{"$f":"IFERROR(VLOOKUP(B208,'CP IDs'!$A$1:$E$7199,5,FALSE),\"\")","v":""},"",null,null,null,null,null,null,null,null,null,null,null,null,null,null,null,null,null,null,null,null,null,null,null,null,null,null,null,null,null,null,null,null,null,null,null,null,null,null,null,null,null,null,null,null,null,-500000,500000,null,1,1,31,null,1,0,0,null,{"$f":"AND(B208=$C$9,'Standing Data'!$D$9<>\"Multi-academy Trust\")","v":{"$error":"#N/A"}}]
[{"$f":"IF(B209<>\"\",IF('Standing Data'!$D$9<>\"Multiple\",IF('Standing Data'!$D$9=B209,\"Error - counterparty with self\",\"\"),IF(N(ISNA(MATCH(B209,'Standing Data'!$E$48:$E$147,0)))<>0,\"\",\"Error - counterparty with self\")),\"\")","v":""},null,{"$f":"IFERROR(VLOOKUP(B209,'CP IDs'!$A$1:$E$7199,2,FALSE),\"\")","v":""},{"$f":"IFERROR(VLOOKUP(B209,'CP IDs'!$A$1:$E$7199,5,FALSE),\"\")","v":""},"",null,null,null,null,null,null,null,null,null,null,null,null,null,null,null,null,null,null,null,null,null,null,null,null,null,null,null,null,null,null,null,null,null,null,null,null,null,null,null,null,null,null,null,null,null,-500000,500000,null,1,1,31,null,1,0,0,null,{"$f":"AND(B209=$C$9,'Standing Data'!$D$9<>\"Multi-academy Trust\")","v":{"$error":"#N/A"}}]
[{"$f":"IF(B210<>\"\",IF('Standing Data'!$D$9<>\"Multiple\",IF('Standing Data'!$D$9=B210,\"Error - counterparty with self\",\"\"),IF(N(ISNA(MATCH(B210,'Standing Data'!$E$48:$E$147,0)))<>0,\"\",\"Error - counterparty with self\")),\"\")","v":""},null,{"$f":"IFERROR(VLOOKUP(B210,'CP IDs'!$A$1:$E$7199,2,FALSE),\"\")","v":""},{"$f":"IFERROR(VLOOKUP(B210,'CP IDs'!$A$1:$E$7199,5,FALSE),\"\")","v":""},"",null,null,null,null,null,null,null,null,null,null,null,null,null,null,null,null,null,null,null,null,null,null,null,null,null,null,null,null,null,null,null,null,null,null,null,null,null,null,null,null,null,null,null,null,null,-500000,500000,null,1,1,31,null,1,0,0,null,{"$f":"AND(B210=$C$9,'Standing Data'!$D$9<>\"Multi-academy Trust\")","v":{"$error":"#N/A"}}]
[{"$f":"IF(B211<>\"\",IF('Standing Data'!$D$9<>\"Multiple\",IF('Standing Data'!$D$9=B211,\"Error - counterparty with self\",\"\"),IF(N(ISNA(MATCH(B211,'Standing Data'!$E$48:$E$147,0)))<>0,\"\",\"Error - counterparty with self\")),\"\")","v":""},null,{"$f":"IFERROR(VLOOKUP(B211,'CP IDs'!$A$1:$E$7199,2,FALSE),\"\")","v":""},{"$f":"IFERROR(VLOOKUP(B211,'CP IDs'!$A$1:$E$7199,5,FALSE),\"\")","v":""},"",null,null,null,null,null,null,null,null,null,null,null,null,null,null,null,null,null,null,null,null,null,null,null,null,null,null,null,null,null,null,null,null,null,null,null,null,null,null,null,null,null,null,null,null,null,-500000,500000,null,1,1,31,null,1,0,0,null,{"$f":"AND(B211=$C$9,'Standing Data'!$D$9<>\"Multi-academy Trust\")","v":{"$error":"#N/A"}}]
[{"$f":"IF(B212<>\"\",IF('Standing Data'!$D$9<>\"Multiple\",IF('Standing Data'!$D$9=B212,\"Error - counterparty with self\",\"\"),IF(N(ISNA(MATCH(B212,'Standing Data'!$E$48:$E$147,0)))<>0,\"\",\"Error - counterparty with self\")),\"\")","v":""},null,{"$f":"IFERROR(VLOOKUP(B212,'CP IDs'!$A$1:$E$7199,2,FALSE),\"\")","v":""},{"$f":"IFERROR(VLOOKUP(B212,'CP IDs'!$A$1:$E$7199,5,FALSE),\"\")","v":""},"",null,null,null,null,null,null,null,null,null,null,null,null,null,null,null,null,null,null,null,null,null,null,null,null,null,null,null,null,null,null,null,null,null,null,null,null,null,null,null,null,null,null,null,null,null,-500000,500000,null,1,1,31,null,1,0,0,null,{"$f":"AND(B212=$C$9,'Standing Data'!$D$9<>\"Multi-academy Trust\")","v":{"$error":"#N/A"}}]
[{"$f":"IF(B213<>\"\",IF('Standing Data'!$D$9<>\"Multiple\",IF('Standing Data'!$D$9=B213,\"Error - counterparty with self\",\"\"),IF(N(ISNA(MATCH(B213,'Standing Data'!$E$48:$E$147,0)))<>0,\"\",\"Error - counterparty with self\")),\"\")","v":""},null,{"$f":"IFERROR(VLOOKUP(B213,'CP IDs'!$A$1:$E$7199,2,FALSE),\"\")","v":""},{"$f":"IFERROR(VLOOKUP(B213,'CP IDs'!$A$1:$E$7199,5,FALSE),\"\")","v":""},"",null,null,null,null,null,null,null,null,null,null,null,null,null,null,null,null,null,null,null,null,null,null,null,null,null,null,null,null,null,null,null,null,null,null,null,null,null,null,null,null,null,null,null,null,null,-500000,500000,null,1,1,31,null,1,0,0,null,{"$f":"AND(B213=$C$9,'Standing Data'!$D$9<>\"Multi-academy Trust\")","v":{"$error":"#N/A"}}]
[{"$f":"IF(B214<>\"\",IF('Standing Data'!$D$9<>\"Multiple\",IF('Standing Data'!$D$9=B214,\"Error - counterparty with self\",\"\"),IF(N(ISNA(MATCH(B214,'Standing Data'!$E$48:$E$147,0)))<>0,\"\",\"Error - counterparty with self\")),\"\")","v":""},null,{"$f":"IFERROR(VLOOKUP(B214,'CP IDs'!$A$1:$E$7199,2,FALSE),\"\")","v":""},{"$f":"IFERROR(VLOOKUP(B214,'CP IDs'!$A$1:$E$7199,5,FALSE),\"\")","v":""},"",null,null,null,null,null,null,null,null,null,null,null,null,null,null,null,null,null,null,null,null,null,null,null,null,null,null,null,null,null,null,null,null,null,null,null,null,null,null,null,null,null,null,null,null,null,-500000,500000,null,1,1,31,null,1,0,{"$f":"COUNT(F214:AV214)","v":0},null,{"$f":"AND(B214=$C$9,'Standing Data'!$D$9<>\"Multi-academy Trust\")","v":{"$error":"#N/A"}}]
[{"$f":"IF(B215<>\"\",IF('Standing Data'!$D$9<>\"Multiple\",IF('Standing Data'!$D$9=B215,\"Error - counterparty with self\",\"\"),IF(N(ISNA(MATCH(B215,'Standing Data'!$E$48:$E$147,0)))<>0,\"\",\"Error - counterparty with self\")),\"\")","v":""},null,{"$f":"IFERROR(VLOOKUP(B215,'CP IDs'!$A$1:$E$7199,2,FALSE),\"\")","v":""},{"$f":"IFERROR(VLOOKUP(B215,'CP IDs'!$A$1:$E$7199,5,FALSE),\"\")","v":""},"",null,null,null,null,null,null,null,null,null,null,null,null,null,null,null,null,null,null,null,null,null,null,null,null,null,null,null,null,null,null,null,null,null,null,null,null,null,null,null,null,null,null,null,null,null,{"$f":"AY214","v":-500000},{"$f":"AZ214","v":500000},null,1,1,31,null,1,0,0,null,{"$f":"AND(B215=$C$9,'Standing Data'!$D$9<>\"Multi-academy Trust\")","v":{"$error":"#N/A"}}]
[{"$f":"IF(B216<>\"\",IF('Standing Data'!$D$9<>\"Multiple\",IF('Standing Data'!$D$9=B216,\"Error - counterparty with self\",\"\"),IF(N(ISNA(MATCH(B216,'Standing Data'!$E$48:$E$147,0)))<>0,\"\",\"Error - counterparty with self\")),\"\")","v":""},null,{"$f":"IFERROR(VLOOKUP(B216,'CP IDs'!$A$1:$E$7199,2,FALSE),\"\")","v":""},{"$f":"IFERROR(VLOOKUP(B216,'CP IDs'!$A$1:$E$7199,5,FALSE),\"\")","v":""},"",null,null,null,null,null,null,null,null,null,null,null,null,null,null,null,null,null,null,null,null,null,null,null,null,null,null,null,null,null,null,null,null,null,null,null,null,null,null,null,null,null,null,null,null,null,-500000,500000,null,1,1,31,null,1,0,0,null,{"$f":"AND(B216=$C$9,'Standing Data'!$D$9<>\"Multi-academy Trust\")","v":{"$error":"#N/A"}}]
[{"$f":"IF(B217<>\"\",IF('Standing Data'!$D$9<>\"Multiple\",IF('Standing Data'!$D$9=B217,\"Error - counterparty with self\",\"\"),IF(N(ISNA(MATCH(B217,'Standing Data'!$E$48:$E$147,0)))<>0,\"\",\"Error - counterparty with self\")),\"\")","v":""},null,{"$f":"IFERROR(VLOOKUP(B217,'CP IDs'!$A$1:$E$7199,2,FALSE),\"\")","v":""},{"$f":"IFERROR(VLOOKUP(B217,'CP IDs'!$A$1:$E$7199,5,FALSE),\"\")","v":""},"",null,null,null,null,null,null,null,null,null,null,null,null,null,null,null,null,null,null,null,null,null,null,null,null,null,null,null,null,null,null,null,null,null,null,null,null,null,null,null,null,null,null,null,null,null,-500000,500000,null,1,1,31,null,1,0,0,null,{"$f":"AND(B217=$C$9,'Standing Data'!$D$9<>\"Multi-academy Trust\")","v":{"$error":"#N/A"}}]
[{"$f":"IF(B218<>\"\",IF('Standing Data'!$D$9<>\"Multiple\",IF('Standing Data'!$D$9=B218,\"Error - counterparty with self\",\"\"),IF(N(ISNA(MATCH(B218,'Standing Data'!$E$48:$E$147,0)))<>0,\"\",\"Error - counterparty with self\")),\"\")","v":""},null,{"$f":"IFERROR(VLOOKUP(B218,'CP IDs'!$A$1:$E$7199,2,FALSE),\"\")","v":""},{"$f":"IFERROR(VLOOKUP(B218,'CP IDs'!$A$1:$E$7199,5,FALSE),\"\")","v":""},"",null,null,null,null,null,null,null,null,null,null,null,null,null,null,null,null,null,null,null,null,null,null,null,null,null,null,null,null,null,null,null,null,null,null,null,null,null,null,null,null,null,null,null,null,null,-500000,500000,null,1,1,31,null,1,0,0,null,{"$f":"AND(B218=$C$9,'Standing Data'!$D$9<>\"Multi-academy Trust\")","v":{"$error":"#N/A"}}]
[{"$f":"IF(B219<>\"\",IF('Standing Data'!$D$9<>\"Multiple\",IF('Standing Data'!$D$9=B219,\"Error - counterparty with self\",\"\"),IF(N(ISNA(MATCH(B219,'Standing Data'!$E$48:$E$147,0)))<>0,\"\",\"Error - counterparty with self\")),\"\")","v":""},null,{"$f":"IFERROR(VLOOKUP(B219,'CP IDs'!$A$1:$E$7199,2,FALSE),\"\")","v":""},{"$f":"IFERROR(VLOOKUP(B219,'CP IDs'!$A$1:$E$7199,5,FALSE),\"\")","v":""},"",null,null,null,null,null,null,null,null,null,null,null,null,null,null,null,null,null,null,null,null,null,null,null,null,null,null,null,null,null,null,null,null,null,null,null,null,null,null,null,null,null,null,null,null,null,-500000,500000,null,1,1,31,null,1,0,0,null,{"$f":"AND(B219=$C$9,'Standing Data'!$D$9<>\"Multi-academy Trust\")","v":{"$error":"#N/A"}}]
[{"$f":"IF(B220<>\"\",IF('Standing Data'!$D$9<>\"Multiple\",IF('Standing Data'!$D$9=B220,\"Error - counterparty with self\",\"\"),IF(N(ISNA(MATCH(B220,'Standing Data'!$E$48:$E$147,0)))<>0,\"\",\"Error - counterparty with self\")),\"\")","v":""},null,{"$f":"IFERROR(VLOOKUP(B220,'CP IDs'!$A$1:$E$7199,2,FALSE),\"\")","v":""},{"$f":"IFERROR(VLOOKUP(B220,'CP IDs'!$A$1:$E$7199,5,FALSE),\"\")","v":""},"",null,null,null,null,null,null,null,null,null,null,null,null,null,null,null,null,null,null,null,null,null,null,null,null,null,null,null,null,null,null,null,null,null,null,null,null,null,null,null,null,null,null,null,null,null,-500000,500000,null,1,1,31,null,1,0,0,null,{"$f":"AND(B220=$C$9,'Standing Data'!$D$9<>\"Multi-academy Trust\")","v":{"$error":"#N/A"}}]
[{"$f":"IF(B221<>\"\",IF('Standing Data'!$D$9<>\"Multiple\",IF('Standing Data'!$D$9=B221,\"Error - counterparty with self\",\"\"),IF(N(ISNA(MATCH(B221,'Standing Data'!$E$48:$E$147,0)))<>0,\"\",\"Error - counterparty with self\")),\"\")","v":""},null,{"$f":"IFERROR(VLOOKUP(B221,'CP IDs'!$A$1:$E$7199,2,FALSE),\"\")","v":""},{"$f":"IFERROR(VLOOKUP(B221,'CP IDs'!$A$1:$E$7199,5,FALSE),\"\")","v":""},"",null,null,null,null,null,null,null,null,null,null,null,null,null,null,null,null,null,null,null,null,null,null,null,null,null,null,null,null,null,null,null,null,null,null,null,null,null,null,null,null,null,null,null,null,null,-500000,500000,null,1,1,31,null,1,0,0,null,{"$f":"AND(B221=$C$9,'Standing Data'!$D$9<>\"Multi-academy Trust\")","v":{"$error":"#N/A"}}]

{"sheet":"Subsidiaries","index":6,"n_rows":23,"n_cols":24,"rows_kept":23,"cut":false,"hidden":true,"merged":[[10,4,10,5],[10,6,10,10],[8,14,8,18],[8,19,8,23]]}
["Accounts Return August 2015 - Subsidiaries"]
[]
["Trust:",null,{"$f":"'Standing Data'!$D$3","v":0},null,null,null,"% of cells"]
[]
["Period end:",null,{"$f":"'Standing Data'!$D$6","v":"2016-03-31"},null,null,"Sourced directly from Financial Statements",{"$f":"+(O11/S11)","v":0.55555555555555558}]
[]
["Co. No.:",null,{"$f":"'Standing Data'!D14","v":"Type number here"},null,null,"Additional to Financial Statements, prepared on a similar basis",{"$f":"+(P11/S11)","v":0.33333333333333331}]
[]
["Academy UPIN:",null,{"$f":"IF(AND(OR('Standing Data'!D9=\"Multiple\",'Standing Data'!D9=\"Federation\"),'Standing Data'!M48=0),'Standing Data'!E48,IF('Standing Data'!M48<>0,'Standing Data'!M48,IF(OR('Standing Data'!D9=\"Other\",'Standing Data'!F9<>\"\"),'Standing Data'!F9,'Standing Data'!D12)))","v":{"$error":"#N/A"}},null,null,"Additional to Financial Statements, prepared on a different/new basis",{"$f":"+(Q11/S11)","v":0.1111111111111111},null,null,null,null,null,null,null,"Possible Cells",null,null,null,null,"Completed Cells"]
[null,null,"Above details will populate automatically","Error check cells",null,null,null,null,null,null,null,null,null,null,"Green","Amber","Red","Grey","Total","Green","Amber","Red","Grey","Total"]
[null,null,null,null,"For the period",null,"At the period end",null,null,null,null,null,null,null,{"$f":"+SUM(O14:O23)","v":50},{"$f":"+SUM(P14:P23)","v":30},10,0,90]
[null,null,"Full name of subsidiary company","Company number","Turnover","Profit","Assets","Loans","Finance Leases","Other Liabilities","Capital and Reserves",null,"Lower limit","Upper limit "]
[null,null,null,null,"£000","£000","£000","£000","£000","£000","£000",null,"£000","£000"]
[null,null,"Subsidiary 1",null,null,null,null,null,null,null,null,{"$f":"+IF(G14<>SUM(H14:K14), \"Error-balance sheet does not balance\",\"\")","v":""},-500000,500000,5,3,1,null,{"$f":"+SUM(O14:R14)","v":9}]
[null,null,"Subsidiary 2",null,null,null,null,null,null,null,null,{"$f":"+IF(G15<>SUM(H15:K15), \"Error-balance sheet does not balance\",\"\")","v":""},-500000,500000,5,3,1,null,{"$f":"+SUM(O15:R15)","v":9}]
[null,null,"Subsidiary 3",null,null,null,null,null,null,null,null,"",-500000,500000,5,3,1,null,9]
[null,null,"Subsidiary 4",null,null,null,null,null,null,null,null,"",-500000,500000,5,3,1,null,9]
[null,null,"Subsidiary 5",null,null,null,null,null,null,null,null,"",-500000,500000,5,3,1,null,9]
[null,null,"Subsidiary 6",null,null,null,null,null,null,null,null,"",-500000,500000,5,3,1,null,9]
[null,null,"Subsidiary 7",null,null,null,null,null,null,null,null,"",-500000,500000,5,3,1,null,9]
[null,null,"Subsidiary 8",null,null,null,null,null,null,null,null,"",-500000,500000,5,3,1,null,9]
[null,null,"Subsidiary 9",null,null,null,null,null,null,null,null,"",-500000,500000,5,3,1,null,9]
[null,null,"Subsidiary 10",null,null,null,null,null,null,null,null,"",-500000,500000,5,3,1,null,9]

{"sheet":"Bench.Return ","index":7,"n_rows":112,"n_cols":113,"rows_kept":112,"cut":false,"hidden":true,"merged":[[12,5,12,8],[13,5,13,8],[14,5,14,8]]}
["Accounts Return August 2015 - Benchmarking Return"]
[]
["Trust:",null,{"$f":"'Standing Data'!$D$3","v":0}]
[]
["Period end:",null,{"$f":"'Standing Data'!$D$6","v":"2016-03-31"},null,null,"Sourced directly from Financial Statements"]
[]
["Co. No.:",null,{"$f":"'Standing Data'!D14","v":"Type number here"},null,null,"Additional to Financial Statements, prepared on a similar basis"]
[]
["Academy UPIN:",null,{"$f":"'Fin.Return - SOFA'!C9","v":{"$error":"#N/A"}},null,null,"Cells populate automatically from elsewhere in the Return"]
[null,null,"Above details will populate automatically"]
[]
["BENCHMARKING RETURN",null,null,null,null,null,null,null,null,null,"These columns are for MATs only"]
[null,null,"Academy Name",null,null,{"$f":"+(C3)","v":0},null,null,null,null,"Central Services",{"$f":"'Standing Data'!D48","v":""},{"$f":"'Standing Data'!D49","v":""},{"$f":"'Standing Data'!D50","v":""},{"$f":"'Standing Data'!D51","v":""},{"$f":"'Standing Data'!D52","v":""},{"$f":"'Standing Data'!D53","v":""},{"$f":"'Standing Data'!D54","v":""},{"$f":"'Standing Data'!D55","v":""},{"$f":"'Standing Data'!D56","v":""},{"$f":"'Standing Data'!D57","v":""},{"$f":"'Standing Data'!D58","v":""},{"$f":"'Standing Data'!D59","v":""},{"$f":"'Standing Data'!D60","v":""},{"$f":"'Standing Data'!D61","v":""},{"$f":"'Standing Data'!D62","v":""},{"$f":"'Standing Data'!D63","v":""},{"$f":"'Standing Data'!D64","v":""},{"$f":"'Standing Data'!D65","v":""},{"$f":"'Standing Data'!D66","v":""},{"$f":"'Standing Data'!D67","v":""},{"$f":"'Standing Data'!D68","v":""},{"$f":"'Standing Data'!D69","v":""},{"$f":"'Standing Data'!D70","v":""},{"$f":"'Standing Data'!D71","v":""},{"$f":"'Standing Data'!D72","v":""},{"$f":"'Standing Data'!D73","v":""},{"$f":"'Standing Data'!D74","v":""},{"$f":"'Standing Data'!D75","v":""},{"$f":"'Standing Data'!D76","v":""},{"$f":"'Standing Data'!D77","v":""},{"$f":"'Standing Data'!D78","v":""},{"$f":"'Standing Data'!D79","v":""},{"$f":"'Standing Data'!D80","v":""},{"$f":"'Standing Data'!D81","v":""},{"$f":"'Standing Data'!D82","v":""},{"$f":"'Standing Data'!D83","v":""},{"$f":"'Standing Data'!D84","v":""},{"$f":"'Standing Data'!D85","v":""},{"$f":"'Standing Data'!D86","v":""},{"$f":"'Standing Data'!D87","v":""},{"$f":"'Standing Data'!D88","v":""},{"$f":"'Standing Data'!D89","v":""},{"$f":"'Standing Data'!D90","v":""},{"$f":"'Standing Data'!D91","v":""},{"$f":"'Standing Data'!D92","v":""},{"$f":"'Standing Data'!D93","v":""},{"$f":"'Standing Data'!D94","v":""},{"$f":"'Standing Data'!D95","v":""},{"$f":"'Standing Data'!D96","v":""},{"$f":"'Standing Data'!D97","v":""},{"$f":"'Standing Data'!D98","v":""},{"$f":"'Standing Data'!D99","v":""},{"$f":"'Standing Data'!D100","v":""},{"$f":"'Standing Data'!D101","v":""},{"$f":"'Standing Data'!D102","v":""},{"$f":"'Standing Data'!D103","v":""},{"$f":"'Standing Data'!D104","v":""},{"$f":"'Standing Data'!D105","v":""},{"$f":"'Standing Data'!D106","v":""},{"$f":"'Standing Data'!D107","v":""},{"$f":"'Standing Data'!D108","v":""},{"$f":"'Standing Data'!D109","v":""},{"$f":"'Standing Data'!D110","v":""},{"$f":"'Standing Data'!D111","v":""},{"$f":"'Standing Data'!D112","v":""},{"$f":"'Standing Data'!D113","v":""},{"$f":"'Standing Data'!D114","v":""},{"$f":"'Standing Data'!D115","v":""},{"$f":"'Standing Data'!D116","v":""},{"$f":"'Standing Data'!D117","v":""},{"$f":"'Standing Data'!D118","v":""},{"$f":"'Standing Data'!D119","v":""},{"$f":"'Standing Data'!D120","v":""},{"$f":"'Standing Data'!D121","v":""},{"$f":"'Standing Data'!D122","v":""},{"$f":"'Standing Data'!D123","v":""},{"$f":"'Standing Data'!D124","v":""},{"$f":"'Standing Data'!D125","v":""},{"$f":"'Standing Data'!D126","v":""},{"$f":"'Standing Data'!D127","v":""},{"$f":"'Standing Data'!D128","v":""},{"$f":"'Standing Data'!D129","v":""},{"$f":"'Standing Data'!D130","v":""},{"$f":"'Standing Data'!D131","v":""},{"$f":"'Standing Data'!D132","v":""},{"$f":"'Standing Data'!D133","v":""},{"$f":"'Standing Data'!D134","v":""},{"$f":"'Standing Data'!D135","v":""},{"$f":"'Standing Data'!D136","v":""},{"$f":"'Standing Data'!D137","v":""},{"$f":"'Standing Data'!D138","v":""},{"$f":"'Standing Data'!D139","v":""},{"$f":"'Standing Data'!D140","v":""},{"$f":"'Standing Data'!D141","v":""},{"$f":"'Standing Data'!D142","v":""},{"$f":"'Standing Data'!D143","v":""},{"$f":"'Standing Data'!D144","v":""},{"$f":"'Standing Data'!D145","v":""},{"$f":"'Standing Data'!D146","v":""},{"$f":"'Standing Data'!D147","v":""}]
[null,null,"Period Length (months)"]
[null,null,"UPIN",null,"Errors",{"$f":"IFERROR(VLOOKUP(F$988,Reference!$P$860:$T$3670,5,FALSE),\"\")","v":""},{"$f":"IFERROR(VLOOKUP(G$988,Reference!$P$860:$T$3670,5,FALSE),\"\")","v":""},{"$f":"IFERROR(VLOOKUP(H$988,Reference!$P$860:$T$3670,5,FALSE),\"\")","v":""},{"$f":"IFERROR(VLOOKUP(I$988,Reference!$P$860:$T$3670,5,FALSE),\"\")","v":""},null,{"$f":"IFERROR(VLOOKUP(K$988,Reference!$P$860:$T$3670,5,FALSE),\"\")","v":""},{"$f":"+('Standing Data'!$E48)","v":0},{"$f":"+('Standing Data'!$E49)","v":0},{"$f":"+('Standing Data'!$E50)","v":0},{"$f":"+('Standing Data'!$E51)","v":0},{"$f":"+('Standing Data'!$E52)","v":0},{"$f":"+('Standing Data'!$E53)","v":0},{"$f":"+('Standing Data'!$E54)","v":0},{"$f":"+('Standing Data'!$E55)","v":0},{"$f":"+('Standing Data'!$E56)","v":0},{"$f":"+('Standing Data'!$E57)","v":0},{"$f":"+('Standing Data'!$E58)","v":0},{"$f":"+('Standing Data'!$E59)","v":0},{"$f":"+('Standing Data'!$E60)","v":0},{"$f":"+('Standing Data'!$E61)","v":0},{"$f":"+('Standing Data'!$E62)","v":0},{"$f":"+('Standing Data'!$E63)","v":0},{"$f":"+('Standing Data'!$E64)","v":0},{"$f":"+('Standing Data'!$E65)","v":0},{"$f":"+('Standing Data'!$E66)","v":0},{"$f":"+('Standing Data'!$E67)","v":0},{"$f":"+('Standing Data'!$E68)","v":0},{"$f":"+('Standing Data'!$E69)","v":0},{"$f":"+('Standing Data'!$E70)","v":0},{"$f":"+('Standing Data'!$E71)","v":0},{"$f":"+('Standing Data'!$E72)","v":0},{"$f":"+('Standing Data'!$E73)","v":0},{"$f":"+('Standing Data'!$E74)","v":0},{"$f":"+('Standing Data'!$E75)","v":0},{"$f":"+('Standing Data'!$E76)","v":0},{"$f":"+('Standing Data'!$E77)","v":0},{"$f":"+('Standing Data'!$E78)","v":0},{"$f":"+('Standing Data'!$E79)","v":0},{"$f":"+('Standing Data'!$E80)","v":0},{"$f":"+('Standing Data'!$E81)","v":0},{"$f":"+('Standing Data'!$E82)","v":0},{"$f":"+('Standing Data'!$E83)","v":0},{"$f":"+('Standing Data'!$E84)","v":0},{"$f":"+('Standing Data'!$E85)","v":0},{"$f":"+('Standing Data'!$E86)","v":0},{"$f":"+('Standing Data'!$E87)","v":0},{"$f":"+('Standing Data'!$E88)","v":0},{"$f":"+('Standing Data'!$E89)","v":0},{"$f":"+('Standing Data'!$E90)","v":0},{"$f":"+('Standing Data'!$E91)","v":0},{"$f":"+('Standing Data'!$E92)","v":0},{"$f":"+('Standing Data'!$E93)","v":0},{"$f":"+('Standing Data'!$E94)","v":0},{"$f":"+('Standing Data'!$E95)","v":0},{"$f":"+('Standing Data'!$E96)","v":0},{"$f":"+('Standing Data'!$E97)","v":0},{"$f":"+('Standing Data'!$E98)","v":0},{"$f":"+('Standing Data'!$E99)","v":0},{"$f":"+('Standing Data'!$E100)","v":0},{"$f":"+('Standing Data'!$E101)","v":0},{"$f":"+('Standing Data'!$E102)","v":0},{"$f":"+('Standing Data'!$E103)","v":0},{"$f":"+('Standing Data'!$E104)","v":0},{"$f":"+('Standing Data'!$E105)","v":0},{"$f":"+('Standing Data'!$E106)","v":0},{"$f":"+('Standing Data'!$E107)","v":0},{"$f":"+('Standing Data'!$E108)","v":0},{"$f":"+('Standing Data'!$E109)","v":0},{"$f":"+('Standing Data'!$E110)","v":0},{"$f":"+('Standing Data'!$E111)","v":0},{"$f":"+('Standing Data'!$E112)","v":0},{"$f":"+('Standing Data'!$E113)","v":0},{"$f":"+('Standing Data'!$E114)","v":0},{"$f":"+('Standing Data'!$E115)","v":0},{"$f":"+('Standing Data'!$E116)","v":0},{"$f":"+('Standing Data'!$E117)","v":0},{"$f":"+('Standing Data'!$E118)","v":0},{"$f":"+('Standing Data'!$E119)","v":0},{"$f":"+('Standing Data'!$E120)","v":0},{"$f":"+('Standing Data'!$E121)","v":0},{"$f":"+('Standing Data'!$E122)","v":0},{"$f":"+('Standing Data'!$E123)","v":0},{"$f":"+('Standing Data'!$E124)","v":0},{"$f":"+('Standing Data'!$E125)","v":0},{"$f":"+('Standing Data'!$E126)","v":0},{"$f":"+('Standing Data'!$E127)","v":0},{"$f":"+('Standing Data'!$E128)","v":0},{"$f":"+('Standing Data'!$E129)","v":0},{"$f":"+('Standing Data'!$E130)","v":0},{"$f":"+('Standing Data'!$E131)","v":0},{"$f":"+('Standing Data'!$E132)","v":0},{"$f":"+('Standing Data'!$E133)","v":0},{"$f":"+('Standing Data'!$E134)","v":0},{"$f":"+('Standing Data'!$E135)","v":0},{"$f":"+('Standing Data'!$E136)","v":0},{"$f":"+('Standing Data'!$E137)","v":0},{"$f":"+('Standing Data'!$E138)","v":0},{"$f":"+('Standing Data'!$E139)","v":0},{"$f":"+('Standing Data'!$E140)","v":0},{"$f":"+('Standing Data'!$E141)","v":0},{"$f":"+('Standing Data'!$E142)","v":0},{"$f":"+('Standing Data'!$E143)","v":0},{"$f":"+('Standing Data'!$E144)","v":0},{"$f":"+('Standing Data'!$E145)","v":0},{"$f":"+('Standing Data'!$E146)","v":0},{"$f":"+('Standing Data'!$E147)","v":0}]
[null,null,null,"Line no.",null,"£000","£000",null,"£000",null,"£000","£000","£000","£000","£000","£000","£000","£000","£000","£000","£000","£000","£000","£000","£000","£000","£000","£000","£000","£000","£000","£000","£000","£000","£000","£000","£000","£000","£000","£000","£000","£000","£000","£000","£000","£000","£000","£000","£000","£000","£000","£000","£000","£000","£000","£000","£000","£000","£000","£000","£000","£000","£000","£000","£000","£000","£000","£000","£000","£000","£000","£000","£000","£000","£000","£000","£000","£000","£000","£000","£000","£000","£000","£000","£000","£000","£000","£000","£000","£000","£000","£000","£000","£000","£000","£000","£000","£000","£000","£000","£000","£000","£000","£000","£000","£000","£000","£000","£000","£000","£000"]
["REVENUE INCOME",null,null,null,null,null,null,null,null,null,null,{"$f":"IF(AND(L15<>0,SUM(L18:L114)=0),\"Error - no values entered\",IF(AND(L15=0,SUM(L18:L114)<>0),\"Error - values entered against blank UPIN\",\"\"))","v":""},"","","","","","","","","","","","","","","","","","","","","","","","","","","","","","","",{"$f":"IF(AND(AR15<>0,SUM(AR18:AR114)=0),\"Error - no values entered\",IF(AND(AR15=0,SUM(AR18:AR114)<>0),\"Error - values entered against blank UPIN\",\"\"))","v":""},"","","","","","","","","","","","","","","","","","","","","","","","","","","","","","","",{"$f":"IF(AND(BX15<>0,SUM(BX18:BX114)=0),\"Error - no values entered\",IF(AND(BX15=0,SUM(BX18:BX114)<>0),\"Error - values entered against blank UPIN\",\"\"))","v":""},"","","","","","","","","","","","","","","","","","","","","","","","","","","","","","","",{"$f":"IF(AND(DD15<>0,SUM(DD18:DD114)=0),\"Error - no values entered\",IF(AND(DD15=0,SUM(DD18:DD114)<>0),\"Error - values entered against blank UPIN\",\"\"))","v":""},"","",""]
[null,"Grant funding"]
[null,"EFA","EFA revenue grants",1,{"$f":"IF(DI19=TRUE, \"Error - imbalance\",\"\")","v":""},null,{"$f":"+SUM('Fin.Return - SOFA'!E105:E114)","v":0},null,null,null,null,null,null,null,null,null,null,null,null,null,null,null,null,null,null,null,null,null,null,null,null,null,null,null,null,null,null,null,null,null,null,null,null,null,null,null,null,null,null,null,null,null,null,null,null,null,null,null,null,null,null,null,null,null,null,null,null,null,null,null,null,null,null,null,null,null,null,null,null,null,null,null,null,null,null,null,null,null,null,null,null,null,null,null,null,null,null,null,null,null,null,null,null,null,null,null,null,null,null,null,null,null,{"$f":"AND(G19<>SUM(K19:DG19),'Standing Data'!$D$9=\"Multiple\")","v":false}]
[null,"DfE","Other DfE grants (Revenue)",2,{"$f":"IF(DI20=TRUE, \"Error - imbalance\",\"\")","v":""},null,{"$f":"'Fin.Return - SOFA'!E135","v":0},null,null,null,null,null,null,null,null,null,null,null,null,null,null,null,null,null,null,null,null,null,null,null,null,null,null,null,null,null,null,null,null,null,null,null,null,null,null,null,null,null,null,null,null,null,null,null,null,null,null,null,null,null,null,null,null,null,null,null,null,null,null,null,null,null,null,null,null,null,null,null,null,null,null,null,null,null,null,null,null,null,null,null,null,null,null,null,null,null,null,null,null,null,null,null,null,null,null,null,null,null,null,null,null,null,{"$f":"AND(G20<>SUM(K20:DG20),'Standing Data'!$D$9=\"Multiple\")","v":false}]
[null,"LA","SEN",3,"",null,{"$f":"'Fin.Return - SOFA'!E146","v":0},null,null,null,null,null,null,null,null,null,null,null,null,null,null,null,null,null,null,null,null,null,null,null,null,null,null,null,null,null,null,null,null,null,null,null,null,null,null,null,null,null,null,null,null,null,null,null,null,null,null,null,null,null,null,null,null,null,null,null,null,null,null,null,null,null,null,null,null,null,null,null,null,null,null,null,null,null,null,null,null,null,null,null,null,null,null,null,null,null,null,null,null,null,null,null,null,null,null,null,null,null,null,null,null,null,{"$f":"AND(G21<>SUM(K21:DG21),'Standing Data'!$D$9=\"Multiple\")","v":false}]
[null,"LA","Other income",4,"",null,{"$f":"'Fin.Return - SOFA'!E147","v":0},null,null,null,null,null,null,null,null,null,null,null,null,null,null,null,null,null,null,null,null,null,null,null,null,null,null,null,null,null,null,null,null,null,null,null,null,null,null,null,null,null,null,null,null,null,null,null,null,null,null,null,null,null,null,null,null,null,null,null,null,null,null,null,null,null,null,null,null,null,null,null,null,null,null,null,null,null,null,null,null,null,null,null,null,null,null,null,null,null,null,null,null,null,null,null,null,null,null,null,null,null,null,null,null,null,{"$f":"AND(G22<>SUM(K22:DG22),'Standing Data'!$D$9=\"Multiple\")","v":false}]
[null,"Other","Other Government grants",5,"",null,{"$f":"'Fin.Return - SOFA'!E153","v":0},null,null,null,null,null,null,null,null,null,null,null,null,null,null,null,null,null,null,null,null,null,null,null,null,null,null,null,null,null,null,null,null,null,null,null,null,null,null,null,null,null,null,null,null,null,null,null,null,null,null,null,null,null,null,null,null,null,null,null,null,null,null,null,null,null,null,null,null,null,null,null,null,null,null,null,null,null,null,null,null,null,null,null,null,null,null,null,null,null,null,null,null,null,null,null,null,null,null,null,null,null,null,null,null,null,{"$f":"AND(G23<>SUM(K23:DG23),'Standing Data'!$D$9=\"Multiple\")","v":false}]
[null,null,null,null,null,null,null,null,{"$f":"SUM(G19:G23)","v":0},null,{"$f":"SUM(K19:K23)","v":0},0,0,0,0,0,0,0,0,0,0,0,0,0,0,0,0,0,0,0,0,0,0,0,0,0,0,0,0,0,0,0,{"$f":"SUM(AQ19:AQ23)","v":0},0,0,0,0,0,0,0,0,0,0,0,0,0,0,0,0,0,0,0,0,0,0,0,0,0,0,0,0,0,0,0,{"$f":"SUM(BW19:BW23)","v":0},0,0,0,0,0,0,0,0,0,0,0,0,0,0,0,0,0,0,0,0,0,0,0,0,0,0,0,0,0,0,0,{"$f":"SUM(DC19:DC23)","v":0},0,0,0,0]
[null,"Other Revenue income"]
[null,null,"Government source (non-grant)",6,{"$f":"IF(DI26=TRUE, \"Error - imbalance\",\"\")","v":""},null,{"$f":"'Fin.Return - SOFA'!E158","v":0},null,null,null,null,null,null,null,null,null,null,null,null,null,null,null,null,null,null,null,null,null,null,null,null,null,null,null,null,null,null,null,null,null,null,null,null,null,null,null,null,null,null,null,null,null,null,null,null,null,null,null,null,null,null,null,null,null,null,null,null,null,null,null,null,null,null,null,null,null,null,null,null,null,null,null,null,null,null,null,null,null,null,null,null,null,null,null,null,null,null,null,null,null,null,null,null,null,null,null,null,null,null,null,null,null,{"$f":"AND(G26<>SUM(K26:DG26),'Standing Data'!$D$9=\"Multiple\")","v":false}]
[null,null,"Academies",7,"",null,{"$f":"'Fin.Return - SOFA'!E159","v":0},null,null,null,null,null,null,null,null,null,null,null,null,null,null,null,null,null,null,null,null,null,null,null,null,null,null,null,null,null,null,null,null,null,null,null,null,null,null,null,null,null,null,null,null,null,null,null,null,null,null,null,null,null,null,null,null,null,null,null,null,null,null,null,null,null,null,null,null,null,null,null,null,null,null,null,null,null,null,null,null,null,null,null,null,null,null,null,null,null,null,null,null,null,null,null,null,null,null,null,null,null,null,null,null,null,{"$f":"AND(G27<>SUM(K27:DG27),'Standing Data'!$D$9=\"Multiple\")","v":false}]
[null,null,"Non- Government",8,"",null,{"$f":"'Fin.Return - SOFA'!E160","v":0},null,null,null,null,null,null,null,null,null,null,null,null,null,null,null,null,null,null,null,null,null,null,null,null,null,null,null,null,null,null,null,null,null,null,null,null,null,null,null,null,null,null,null,null,null,null,null,null,null,null,null,null,null,null,null,null,null,null,null,null,null,null,null,null,null,null,null,null,null,null,null,null,null,null,null,null,null,null,null,null,null,null,null,null,null,null,null,null,null,null,null,null,null,null,null,null,null,null,null,null,null,null,null,null,null,{"$f":"AND(G28<>SUM(K28:DG28),'Standing Data'!$D$9=\"Multiple\")","v":false}]
[null,null,null,null,null,null,null,null,{"$f":"SUM(G26:G28)","v":0},null,{"$f":"SUM(K26:K28)","v":0},{"$f":"SUM(L26:L28)","v":0},0,0,0,0,0,0,0,0,0,0,0,0,0,0,0,0,0,0,0,0,0,0,0,0,0,0,0,0,0,0,0,0,0,0,0,0,0,{"$f":"SUM(AX26:AX28)","v":0},0,0,0,0,0,0,0,0,0,0,0,0,0,0,0,0,0,0,0,0,0,0,0,0,0,0,0,0,0,0,0,0,0,0,0,0,0,0,0,0,0,0,0,0,0,0,0,0,0,0,0,0,0,0,0,0,0,0,0,0,0]
[null,"Self-generated income"]
[null,null,"Income from facilities and services",9,{"$f":"IF(DI31=TRUE, \"Error - imbalance\",\"\")","v":""},null,{"$f":"'Fin.Return - SOFA'!E79+'Fin.Return - SOFA'!E81","v":0},null,null,null,null,null,null,null,null,null,null,null,null,null,null,null,null,null,null,null,null,null,null,null,null,null,null,null,null,null,null,null,null,null,null,null,null,null,null,null,null,null,null,null,null,null,null,null,null,null,null,null,null,null,null,null,null,null,null,null,null,null,null,null,null,null,null,null,null,null,null,null,null,null,null,null,null,null,null,null,null,null,null,null,null,null,null,null,null,null,null,null,null,null,null,null,null,null,null,null,null,null,null,null,null,null,{"$f":"AND(G31<>SUM(K31:DG31),'Standing Data'!$D$9=\"Multiple\")","v":false}]
[null,null,"Income from catering",10,"",null,{"$f":"'Fin.Return - SOFA'!E80","v":0},null,null,null,null,null,null,null,null,null,null,null,null,null,null,null,null,null,null,null,null,null,null,null,null,null,null,null,null,null,null,null,null,null,null,null,null,null,null,null,null,null,null,null,null,null,null,null,null,null,null,null,null,null,null,null,null,null,null,null,null,null,null,null,null,null,null,null,null,null,null,null,null,null,null,null,null,null,null,null,null,null,null,null,null,null,null,null,null,null,null,null,null,null,null,null,null,null,null,null,null,null,null,null,null,null,{"$f":"AND(G32<>SUM(K32:DG32),'Standing Data'!$D$9=\"Multiple\")","v":false}]
[null,null,"Receipts from supply teacher insurance claims",11,"",null,{"$f":"+('Fin.Return - SOFA'!E82)","v":0},null,null,null,null,null,null,null,null,null,null,null,null,null,null,null,null,null,null,null,null,null,null,null,null,null,null,null,null,null,null,null,null,null,null,null,null,null,null,null,null,null,null,null,null,null,null,null,null,null,null,null,null,null,null,null,null,null,null,null,null,null,null,null,null,null,null,null,null,null,null,null,null,null,null,null,null,null,null,null,null,null,null,null,null,null,null,null,null,null,null,null,null,null,null,null,null,null,null,null,null,null,null,null,null,null,{"$f":"AND(G33<>SUM(K33:DG33),'Standing Data'!$D$9=\"Multiple\")","v":false}]
[null,null,"Other income - revenue",12,"",null,{"$f":"'Fin.Return - SOFA'!E84","v":0},null,null,null,null,null,null,null,null,null,null,null,null,null,null,null,null,null,null,null,null,null,null,null,null,null,null,null,null,null,null,null,null,null,null,null,null,null,null,null,null,null,null,null,null,null,null,null,null,null,null,null,null,null,null,null,null,null,null,null,null,null,null,null,null,null,null,null,null,null,null,null,null,null,null,null,null,null,null,null,null,null,null,null,null,null,null,null,null,null,null,null,null,null,null,null,null,null,null,null,null,null,null,null,null,null,{"$f":"AND(G34<>SUM(K34:DG34),'Standing Data'!$D$9=\"Multiple\")","v":false}]
[null,null,null,null,null,null,null,null,{"$f":"SUM(G31:G34)","v":0},null,{"$f":"SUM(K31:K34)","v":0},{"$f":"SUM(L31:L34)","v":0},0,0,0,0,0,0,0,0,0,0,0,0,0,0,0,0,0,0,0,0,0,0,0,0,0,0,0,0,0,0,0,0,0,0,0,0,0,0,0,0,0,0,0,0,0,0,0,0,0,0,0,0,0,0,0,0,0,0,0,0,0,0,0,{"$f":"SUM(BX31:BX34)","v":0},0,0,0,0,0,0,0,0,0,0,0,0,0,0,0,0,0,0,0,0,0,0,0,0,0,0,0,0,0,0,0,0,0,0,0]
[null,"Voluntary income"]
[null,null,"Donations and/or voluntary funds - revenue",13,{"$f":"IF(DI37=TRUE, \"Error - imbalance\",\"\")","v":""},null,{"$f":"'Fin.Return - SOFA'!E70+'Fin.Return - SOFA'!E71","v":0},null,null,null,null,null,null,null,null,null,null,null,null,null,null,null,null,null,null,null,null,null,null,null,null,null,null,null,null,null,null,null,null,null,null,null,null,null,null,null,null,null,null,null,null,null,null,null,null,null,null,null,null,null,null,null,null,null,null,null,null,null,null,null,null,null,null,null,null,null,null,null,null,null,null,null,null,null,null,null,null,null,null,null,null,null,null,null,null,null,null,null,null,null,null,null,null,null,null,null,null,null,null,null,null,null,{"$f":"AND(G37<>SUM(K37:DG37),'Standing Data'!$D$9=\"Multiple\")","v":false}]
[null,null,null,null,null,null,null,null,{"$f":"SUM(G37)","v":0}]
[null,"Investment income"]
[null,null,"Investment income",14,{"$f":"IF(DI40=TRUE, \"Error - imbalance\",\"\")","v":""},null,{"$f":"'Fin.Return - SOFA'!E97","v":0},null,{"$f":"G40","v":0},null,null,null,null,null,null,null,null,null,null,null,null,null,null,null,null,null,null,null,null,null,null,null,null,null,null,null,null,null,null,null,null,null,null,null,null,null,null,null,null,null,null,null,null,null,null,null,null,null,null,null,null,null,null,null,null,null,null,null,null,null,null,null,null,null,null,null,null,null,null,null,null,null,null,null,null,null,null,null,null,null,null,null,null,null,null,null,null,null,null,null,null,null,null,null,null,null,null,null,null,null,null,null,{"$f":"AND(G40<>SUM(K40:DG40),'Standing Data'!$D$9=\"Multiple\")","v":false}]
[]
[]
["TOTAL REVENUE INCOME",null,null,15,{"$f":"IF(DI43=TRUE, \"Error - imbalance\",\"\")","v":""},null,null,null,{"$f":"SUM(I24:I42)","v":0},null,{"$f":"+K40+K37+K35+K29+K24","v":0},{"$f":"+L40+L37+L35+L29+L24","v":0},0,0,0,0,0,0,0,0,0,0,0,0,0,0,0,0,0,0,0,0,0,0,0,0,0,0,0,0,0,0,0,0,0,0,0,0,0,0,0,0,0,0,0,0,0,0,0,0,0,0,0,0,0,0,0,0,0,0,0,0,0,0,0,{"$f":"+BX40+BX37+BX35+BX29+BX24","v":0},0,0,0,0,0,0,0,0,0,0,0,0,0,0,0,0,0,0,0,0,0,0,0,0,0,0,0,0,0,0,0,0,0,0,0,null,{"$f":"AND(I43<>SUM(K43:DG43),'Standing Data'!$D$9=\"Multiple\")","v":false}]
[]
["FUNDS INHERITED ON CONVERSION",null,null,16,{"$f":"IF(DI45=TRUE, \"Error - imbalance\",\"\")","v":""},null,null,null,{"$f":"'Fin.Return - SOFA'!E20","v":0},null,null,null,null,null,null,null,null,null,null,null,null,null,null,null,null,null,null,null,null,null,null,null,null,null,null,null,null,null,null,null,null,null,null,null,null,null,null,null,null,null,null,null,null,null,null,null,null,null,null,null,null,null,null,null,null,null,null,null,null,null,null,null,null,null,null,null,null,null,null,null,null,null,null,null,null,null,null,null,null,null,null,null,null,null,null,null,null,null,null,null,null,null,null,null,null,null,null,null,null,null,null,null,{"$f":"AND(I45<>SUM(K45:DG45),'Standing Data'!$D$9=\"Multiple\")","v":false}]
[]
["REVENUE EXPENDITURE"]
[null,"Staff costs - extra note for guidance for Staff re-structure"]
[null,null,"Teaching staff",17,{"$f":"IF(DI49=TRUE, \"Error - imbalance\",\"\")","v":""},null,null,null,null,null,null,null,null,null,null,null,null,null,null,null,null,null,null,null,null,null,null,null,null,null,null,null,null,null,null,null,null,null,null,null,null,null,null,null,null,null,null,null,null,null,null,null,null,null,null,null,null,null,null,null,null,null,null,null,null,null,null,null,null,null,null,null,null,null,null,null,null,null,null,null,null,null,null,null,null,null,null,null,null,null,null,null,null,null,null,null,null,null,null,null,null,null,null,null,null,null,null,null,null,null,null,null,{"$f":"AND(F49<>SUM(K49:DG49),'Standing Data'!$D$9=\"Multiple\")","v":false}]
[null,null,"Supply teaching staff - extra note in guidance",18,"",null,null,null,null,null,null,null,null,null,null,null,null,null,null,null,null,null,null,null,null,null,null,null,null,null,null,null,null,null,null,null,null,null,null,null,null,null,null,null,null,null,null,null,null,null,null,null,null,null,null,null,null,null,null,null,null,null,null,null,null,null,null,null,null,null,null,null,null,null,null,null,null,null,null,null,null,null,null,null,null,null,null,null,null,null,null,null,null,null,null,null,null,null,null,null,null,null,null,null,null,null,null,null,null,null,null,null,{"$f":"AND(F50<>SUM(K50:DG50),'Standing Data'!$D$9=\"Multiple\")","v":false}]
[null,null,"Education support staff",19,"",null,null,null,null,null,null,null,null,null,null,null,null,null,null,null,null,null,null,null,null,null,null,null,null,null,null,null,null,null,null,null,null,null,null,null,null,null,null,null,null,null,null,null,null,null,null,null,null,null,null,null,null,null,null,null,null,null,null,null,null,null,null,null,null,null,null,null,null,null,null,null,null,null,null,null,null,null,null,null,null,null,null,null,null,null,null,null,null,null,null,null,null,null,null,null,null,null,null,null,null,null,null,null,null,null,null,null,{"$f":"AND(F51<>SUM(K51:DG51),'Standing Data'!$D$9=\"Multiple\")","v":false}]
[null,null,"Administrative and clerical staff",20,"",null,null,null,null,null,null,null,null,null,null,null,null,null,null,null,null,null,null,null,null,null,null,null,null,null,null,null,null,null,null,null,null,null,null,null,null,null,null,null,null,null,null,null,null,null,null,null,null,null,null,null,null,null,null,null,null,null,null,null,null,null,null,null,null,null,null,null,null,null,null,null,null,null,null,null,null,null,null,null,null,null,null,null,null,null,null,null,null,null,null,null,null,null,null,null,null,null,null,null,null,null,null,null,null,null,null,null,{"$f":"AND(F52<>SUM(K52:DG52),'Standing Data'!$D$9=\"Multiple\")","v":false}]
[null,null,"Premises staff",21,"",null,null,null,null,null,null,null,null,null,null,null,null,null,null,null,null,null,null,null,null,null,null,null,null,null,null,null,null,null,null,null,null,null,null,null,null,null,null,null,null,null,null,null,null,null,null,null,null,null,null,null,null,null,null,null,null,null,null,null,null,null,null,null,null,null,null,null,null,null,null,null,null,null,null,null,null,null,null,null,null,null,null,null,null,null,null,null,null,null,null,null,null,null,null,null,null,null,null,null,null,null,null,null,null,null,null,null,{"$f":"AND(F53<>SUM(K53:DG53),'Standing Data'!$D$9=\"Multiple\")","v":false}]
[null,null,"Catering staff",22,"",null,null,null,null,null,null,null,null,null,null,null,null,null,null,null,null,null,null,null,null,null,null,null,null,null,null,null,null,null,null,null,null,null,null,null,null,null,null,null,null,null,null,null,null,null,null,null,null,null,null,null,null,null,null,null,null,null,null,null,null,null,null,null,null,null,null,null,null,null,null,null,null,null,null,null,null,null,null,null,null,null,null,null,null,null,null,null,null,null,null,null,null,null,null,null,null,null,null,null,null,null,null,null,null,null,null,null,{"$f":"AND(F54<>SUM(K54:DG54),'Standing Data'!$D$9=\"Multiple\")","v":false}]
[null,null,"Trade union facility time cover",23,"",null,null,null,null,null,null,null,null,null,null,null,null,null,null,null,null,null,null,null,null,null,null,null,null,null,null,null,null,null,null,null,null,null,null,null,null,null,null,null,null,null,null,null,null,null,null,null,null,null,null,null,null,null,null,null,null,null,null,null,null,null,null,null,null,null,null,null,null,null,null,null,null,null,null,null,null,null,null,null,null,null,null,null,null,null,null,null,null,null,null,null,null,null,null,null,null,null,null,null,null,null,null,null,null,null,null,null,{"$f":"AND(F55<>SUM(K55:DG55),'Standing Data'!$D$9=\"Multiple\")","v":false}]
[null,null,"Other staff",24,"",null,null,null,null,null,null,null,null,null,null,null,null,null,null,null,null,null,null,null,null,null,null,null,null,null,null,null,null,null,null,null,null,null,null,null,null,null,null,null,null,null,null,null,null,null,null,null,null,null,null,null,null,null,null,null,null,null,null,null,null,null,null,null,null,null,null,null,null,null,null,null,null,null,null,null,null,null,null,null,null,null,null,null,null,null,null,null,null,null,null,null,null,null,null,null,null,null,null,null,null,null,null,null,null,null,null,null,{"$f":"AND(F56<>SUM(K56:DG56),'Standing Data'!$D$9=\"Multiple\")","v":false}]
[null,null,null,{"$f":"IF(G57<=0,\"Error - no values entered for staff costs\",\"\")","v":"Error - no values entered for staff costs"},{"$f":"IF(G57>'Fin.Return - SOFA'!E301,\"Error - value exceeds staff note in financial return\",\"\")","v":""},null,{"$f":"SUM(F49:F56)","v":0},null,null,null,{"$f":"SUM(K49:K56)","v":0},{"$f":"SUM(L49:L56)","v":0},0,0,0,0,0,0,0,0,0,0,0,0,0,0,0,0,0,0,0,0,0,0,0,0,0,0,0,0,0,0,0,0,0,0,0,0,0,0,0,0,0,0,0,0,0,0,0,0,0,0,0,0,0,0,0,0,0,0,0,0,0,0,0,{"$f":"SUM(BX49:BX56)","v":0},0,0,0,0,0,0,0,0,0,0,0,0,0,0,0,0,0,0,0,0,0,0,0,0,0,0,0,0,0,0,0,0,0,0,0]
[]
[null,null,"Indirect employee expenses",25,{"$f":"IF(DI59=TRUE, \"Error - imbalance\",\"\")","v":""},{"$f":"+'Fin.Return - SOFA'!E253","v":0},null,null,null,null,null,null,null,null,null,null,null,null,null,null,null,null,null,null,null,null,null,null,null,null,null,null,null,null,null,null,null,null,null,null,null,null,null,null,null,null,null,null,null,null,null,null,null,null,null,null,null,null,null,null,null,null,null,null,null,null,null,null,null,null,null,null,null,null,null,null,null,null,null,null,null,null,null,null,null,null,null,null,null,null,null,null,null,null,null,null,null,null,null,null,null,null,null,null,null,null,null,null,null,null,null,null,{"$f":"AND(F59<>SUM(K59:DG59),'Standing Data'!$D$9=\"Multiple\")","v":false}]
[null,null,"Staff development and training",26,"",{"$f":"+'Fin.Return - SOFA'!E218","v":0},null,null,null,null,null,null,null,null,null,null,null,null,null,null,null,null,null,null,null,null,null,null,null,null,null,null,null,null,null,null,null,null,null,null,null,null,null,null,null,null,null,null,null,null,null,null,null,null,null,null,null,null,null,null,null,null,null,null,null,null,null,null,null,null,null,null,null,null,null,null,null,null,null,null,null,null,null,null,null,null,null,null,null,null,null,null,null,null,null,null,null,null,null,null,null,null,null,null,null,null,null,null,null,null,null,null,{"$f":"AND(F60<>SUM(K60:DG60),'Standing Data'!$D$9=\"Multiple\")","v":false}]
[null,null,"Staff-related insurance",27,"",{"$f":"+'Fin.Return - SOFA'!E219","v":0},null,null,null,null,null,null,null,null,null,null,null,null,null,null,null,null,null,null,null,null,null,null,null,null,null,null,null,null,null,null,null,null,null,null,null,null,null,null,null,null,null,null,null,null,null,null,null,null,null,null,null,null,null,null,null,null,null,null,null,null,null,null,null,null,null,null,null,null,null,null,null,null,null,null,null,null,null,null,null,null,null,null,null,null,null,null,null,null,null,null,null,null,null,null,null,null,null,null,null,null,null,null,null,null,null,null,{"$f":"AND(F61<>SUM(K61:DG61),'Standing Data'!$D$9=\"Multiple\")","v":false}]
[null,null,null,null,null,null,{"$f":"SUM(F59:F61)","v":0},null,null,null,{"$f":"SUM(K59:K61)","v":0},{"$f":"SUM(L59:L61)","v":0},0,0,0,0,0,0,0,0,0,0,0,0,0,0,0,0,0,0,0,0,0,0,0,0,0,0,0,0,0,0,0,0,0,0,0,0,0,{"$f":"SUM(AX59:AX61)","v":0},0,0,0,0,0,0,0,0,0,0,0,0,0,0,0,0,0,0,0,0,0,0,0,0,0,0,0,0,0,0,0,0,0,0,0,0,0,0,0,0,0,0,0,0,0,0,0,0,0,0,0,0,0,0,0,0,0,0,0,0,0]
[]
[null,"Maintenance of premises",null,28,{"$f":"IF(DI64=TRUE, \"Error - imbalance\",\"\")","v":""},null,{"$f":"+'Fin.Return - SOFA'!E233+'Fin.Return - SOFA'!E234","v":0},null,null,null,null,null,null,null,null,null,null,null,null,null,null,null,null,null,null,null,null,null,null,null,null,null,null,null,null,null,null,null,null,null,null,null,null,null,null,null,null,null,null,null,null,null,null,null,null,null,null,null,null,null,null,null,null,null,null,null,null,null,null,null,null,null,null,null,null,null,null,null,null,null,null,null,null,null,null,null,null,null,null,null,null,null,null,null,null,null,null,null,null,null,null,null,null,null,null,null,null,null,null,null,null,null,{"$f":"AND(G64<>SUM(K64:DG64),'Standing Data'!$D$9=\"Multiple\")","v":false}]
[]
[null,"Other occupancy costs"]
[null,null,"Cleaning",29,{"$f":"IF(DI67=TRUE, \"Error - imbalance\",\"\")","v":""},{"$f":"+'Fin.Return - SOFA'!E235","v":0},null,null,null,null,null,null,null,null,null,null,null,null,null,null,null,null,null,null,null,null,null,null,null,null,null,null,null,null,null,null,null,null,null,null,null,null,null,null,null,null,null,null,null,null,null,null,null,null,null,null,null,null,null,null,null,null,null,null,null,null,null,null,null,null,null,null,null,null,null,null,null,null,null,null,null,null,null,null,null,null,null,null,null,null,null,null,null,null,null,null,null,null,null,null,null,null,null,null,null,null,null,null,null,null,null,null,{"$f":"AND(F67<>SUM(K67:DG67),'Standing Data'!$D$9=\"Multiple\")","v":false}]
[null,null,"Water and sewerage",30,"",{"$f":"+'Fin.Return - SOFA'!E239","v":0},null,null,null,null,null,null,null,null,null,null,null,null,null,null,null,null,null,null,null,null,null,null,null,null,null,null,null,null,null,null,null,null,null,null,null,null,null,null,null,null,null,null,null,null,null,null,null,null,null,null,null,null,null,null,null,null,null,null,null,null,null,null,null,null,null,null,null,null,null,null,null,null,null,null,null,null,null,null,null,null,null,null,null,null,null,null,null,null,null,null,null,null,null,null,null,null,null,null,null,null,null,null,null,null,null,null,{"$f":"AND(F68<>SUM(K68:DG68),'Standing Data'!$D$9=\"Multiple\")","v":false}]
[null,null,"Energy",31,"",{"$f":"+'Fin.Return - SOFA'!E240","v":0},null,null,null,null,null,null,null,null,null,null,null,null,null,null,null,null,null,null,null,null,null,null,null,null,null,null,null,null,null,null,null,null,null,null,null,null,null,null,null,null,null,null,null,null,null,null,null,null,null,null,null,null,null,null,null,null,null,null,null,null,null,null,null,null,null,null,null,null,null,null,null,null,null,null,null,null,null,null,null,null,null,null,null,null,null,null,null,null,null,null,null,null,null,null,null,null,null,null,null,null,null,null,null,null,null,null,{"$f":"AND(F69<>SUM(K69:DG69),'Standing Data'!$D$9=\"Multiple\")","v":false}]
[null,null,"Rates",32,"",{"$f":"+'Fin.Return - SOFA'!E238","v":0},null,null,null,null,null,null,null,null,null,null,null,null,null,null,null,null,null,null,null,null,null,null,null,null,null,null,null,null,null,null,null,null,null,null,null,null,null,null,null,null,null,null,null,null,null,null,null,null,null,null,null,null,null,null,null,null,null,null,null,null,null,null,null,null,null,null,null,null,null,null,null,null,null,null,null,null,null,null,null,null,null,null,null,null,null,null,null,null,null,null,null,null,null,null,null,null,null,null,null,null,null,null,null,null,null,null,{"$f":"AND(F70<>SUM(K70:DG70),'Standing Data'!$D$9=\"Multiple\")","v":false}]
[null,null,"Rent",33,"",{"$f":"+'Fin.Return - SOFA'!E237","v":0},null,null,null,null,null,null,null,null,null,null,null,null,null,null,null,null,null,null,null,null,null,null,null,null,null,null,null,null,null,null,null,null,null,null,null,null,null,null,null,null,null,null,null,null,null,null,null,null,null,null,null,null,null,null,null,null,null,null,null,null,null,null,null,null,null,null,null,null,null,null,null,null,null,null,null,null,null,null,null,null,null,null,null,null,null,null,null,null,null,null,null,null,null,null,null,null,null,null,null,null,null,null,null,null,null,null,{"$f":"AND(F71<>SUM(K71:DG71),'Standing Data'!$D$9=\"Multiple\")","v":false}]
[null,null,"Other occupation costs",34,"",{"$f":"'Fin.Return - SOFA'!E243","v":0},null,null,null,null,null,null,null,null,null,null,null,null,null,null,null,null,null,null,null,null,null,null,null,null,null,null,null,null,null,null,null,null,null,null,null,null,null,null,null,null,null,null,null,null,null,null,null,null,null,null,null,null,null,null,null,null,null,null,null,null,null,null,null,null,null,null,null,null,null,null,null,null,null,null,null,null,null,null,null,null,null,null,null,null,null,null,null,null,null,null,null,null,null,null,null,null,null,null,null,null,null,null,null,null,null,null,{"$f":"AND(F72<>SUM(K72:DG72),'Standing Data'!$D$9=\"Multiple\")","v":false}]
[null,null,null,null,null,null,{"$f":"SUM(F67:F72)","v":0},null,null,null,{"$f":"SUM(K67:K72)","v":0},{"$f":"SUM(L67:L72)","v":0},0,0,0,0,0,0,0,0,0,0,0,0,0,0,0,0,0,0,0,0,0,0,0,0,0,0,0,0,0,0,0,0,0,0,0,0,0,0,0,0,0,0,0,0,0,0,0,0,0,0,0,0,0,0,0,0,0,0,0,0,0,0,0,{"$f":"SUM(BX67:BX72)","v":0},0,0,0,0,0,0,0,0,0,0,0,0,0,0,0,0,0,0,0,0,0,0,0,0,0,0,0,0,0,0,0,0,0,0,0]
[]
[null,"Special facilities",null,35,{"$f":"IF(DI75=TRUE, \"Error - imbalance\",\"\")","v":""},null,{"$f":"-'Fin.Return - SOFA'!E400+'Fin.Return - SOFA'!E172","v":0},null,null,null,null,null,null,null,null,null,null,null,null,null,null,null,null,null,null,null,null,null,null,null,null,null,null,null,null,null,null,null,null,null,null,null,null,null,null,null,null,null,null,null,null,null,null,null,null,null,null,null,null,null,null,null,null,null,null,null,null,null,null,null,null,null,null,null,null,null,null,null,null,null,null,null,null,null,null,null,null,null,null,null,null,null,null,null,null,null,null,null,null,null,null,null,null,null,null,null,null,null,null,null,null,null,{"$f":"AND(G75<>SUM(K75:DG75),'Standing Data'!$D$9=\"Multiple\")","v":false}]
[]
[null,"Educational supplies and services"]
[null,null,"Learning resources (not ICT equipment)",36,{"$f":"IF(DI78=TRUE, \"Error - imbalance\",\"\")","v":""},{"$f":"+'Fin.Return - SOFA'!E216+'Fin.Return - SOFA'!E223","v":0},null,null,null,null,null,null,null,null,null,null,null,null,null,null,null,null,null,null,null,null,null,null,null,null,null,null,null,null,null,null,null,null,null,null,null,null,null,null,null,null,null,null,null,null,null,null,null,null,null,null,null,null,null,null,null,null,null,null,null,null,null,null,null,null,null,null,null,null,null,null,null,null,null,null,null,null,null,null,null,null,null,null,null,null,null,null,null,null,null,null,null,null,null,null,null,null,null,null,null,null,null,null,null,null,null,null,{"$f":"AND(F78<>SUM(K78:DG78),'Standing Data'!$D$9=\"Multiple\")","v":false}]
[null,null,"ICT learning resources",37,"",{"$f":"+'Fin.Return - SOFA'!E220","v":0},null,null,null,null,null,null,null,null,null,null,null,null,null,null,null,null,null,null,null,null,null,null,null,null,null,null,null,null,null,null,null,null,null,null,null,null,null,null,null,null,null,null,null,null,null,null,null,null,null,null,null,null,null,null,null,null,null,null,null,null,null,null,null,null,null,null,null,null,null,null,null,null,null,null,null,null,null,null,null,null,null,null,null,null,null,null,null,null,null,null,null,null,null,null,null,null,null,null,null,null,null,null,null,null,null,null,{"$f":"AND(F79<>SUM(K79:DG79),'Standing Data'!$D$9=\"Multiple\")","v":false}]
[null,null,"Examination fees",38,"",{"$f":"+'Fin.Return - SOFA'!E217","v":0},null,null,null,null,null,null,null,null,null,null,null,null,null,null,null,null,null,null,null,null,null,null,null,null,null,null,null,null,null,null,null,null,null,null,null,null,null,null,null,null,null,null,null,null,null,null,null,null,null,null,null,null,null,null,null,null,null,null,null,null,null,null,null,null,null,null,null,null,null,null,null,null,null,null,null,null,null,null,null,null,null,null,null,null,null,null,null,null,null,null,null,null,null,null,null,null,null,null,null,null,null,null,null,null,null,null,{"$f":"AND(F80<>SUM(K80:DG80),'Standing Data'!$D$9=\"Multiple\")","v":false}]
[null,null,"Educational Consultancy",39,"",{"$f":"+'Fin.Return - SOFA'!E221","v":0},null,null,null,null,null,null,null,null,null,null,null,null,null,null,null,null,null,null,null,null,null,null,null,null,null,null,null,null,null,null,null,null,null,null,null,null,null,null,null,null,null,null,null,null,null,null,null,null,null,null,null,null,null,null,null,null,null,null,null,null,null,null,null,null,null,null,null,null,null,null,null,null,null,null,null,null,null,null,null,null,null,null,null,null,null,null,null,null,null,null,null,null,null,null,null,null,null,null,null,null,null,null,null,null,null,null,{"$f":"AND(F81<>SUM(K81:DG81),'Standing Data'!$D$9=\"Multiple\")","v":false}]
[null,null,"Supply teacher insurance",40,"",{"$f":"'Fin.Return - SOFA'!E228","v":0},null,null,null,null,null,null,null,null,null,null,null,null,null,null,null,null,null,null,null,null,null,null,null,null,null,null,null,null,null,null,null,null,null,null,null,null,null,null,null,null,null,null,null,null,null,null,null,null,null,null,null,null,null,null,null,null,null,null,null,null,null,null,null,null,null,null,null,null,null,null,null,null,null,null,null,null,null,null,null,null,null,null,null,null,null,null,null,null,null,null,null,null,null,null,null,null,null,null,null,null,null,null,null,null,null,null,{"$f":"AND(F82<>SUM(K82:DG82),'Standing Data'!$D$9=\"Multiple\")","v":false}]
[null,null,"Agency supply teaching staff",41,"",{"$f":"'Fin.Return - SOFA'!E294","v":0},null,null,null,null,null,null,null,null,null,null,null,null,null,null,null,null,null,null,null,null,null,null,null,null,null,null,null,null,null,null,null,null,null,null,null,null,null,null,null,null,null,null,null,null,null,null,null,null,null,null,null,null,null,null,null,null,null,null,null,null,null,null,null,null,null,null,null,null,null,null,null,null,null,null,null,null,null,null,null,null,null,null,null,null,null,null,null,null,null,null,null,null,null,null,null,null,null,null,null,null,null,null,null,null,null,null,{"$f":"AND(F83<>SUM(K83:DG83),'Standing Data'!$D$9=\"Multiple\")","v":false}]
[null,null,null,null,null,null,{"$f":"SUM(F78:F83)","v":0},null,null,null,{"$f":"SUM(K78:K83)","v":0},{"$f":"SUM(L78:L83)","v":0},0,0,0,0,0,0,0,0,0,0,0,0,0,0,0,0,0,0,0,0,0,0,0,0,0,0,0,0,0,0,0,0,0,0,0,0,0,{"$f":"SUM(AX78:AX83)","v":0},0,0,0,0,0,0,0,0,0,0,0,0,0,0,0,0,0,0,0,0,0,0,0,0,0,0,0,0,0,0,0,0,0,0,0,0,0,0,0,0,0,0,0,0,0,0,0,0,0,0,0,0,0,0,0,0,0,0,0,0,0]
[]
[]
[null,"Other supplies and services"]
[null,null,"Catering supplies",42,{"$f":"IF(DI88=TRUE, \"Error - imbalance\",\"\")","v":""},{"$f":"'Fin.Return - SOFA'!E245","v":0},null,null,null,null,null,null,null,null,null,null,null,null,null,null,null,null,null,null,null,null,null,null,null,null,null,null,null,null,null,null,null,null,null,null,null,null,null,null,null,null,null,null,null,null,null,null,null,null,null,null,null,null,null,null,null,null,null,null,null,null,null,null,null,null,null,null,null,null,null,null,null,null,null,null,null,null,null,null,null,null,null,null,null,null,null,null,null,null,null,null,null,null,null,null,null,null,null,null,null,null,null,null,null,null,null,null,{"$f":"AND(F88<>SUM(K88:DG88),'Standing Data'!$D$9=\"Multiple\")","v":false}]
[null,null,"Legal & Professional",43,"",{"$f":"'Fin.Return - SOFA'!E266","v":0},null,null,null,null,null,null,null,null,null,null,null,null,null,null,null,null,null,null,null,null,null,null,null,null,null,null,null,null,null,null,null,null,null,null,null,null,null,null,null,null,null,null,null,null,null,null,null,null,null,null,null,null,null,null,null,null,null,null,null,null,null,null,null,null,null,null,null,null,null,null,null,null,null,null,null,null,null,null,null,null,null,null,null,null,null,null,null,null,null,null,null,null,null,null,null,null,null,null,null,null,null,null,null,null,null,null,{"$f":"AND(F89<>SUM(K89:DG89),'Standing Data'!$D$9=\"Multiple\")","v":false}]
[null,null,"Auditor costs - Audit fees",44,"",{"$f":"'Fin.Return - SOFA'!E271","v":0},null,null,null,null,null,null,null,null,null,null,null,null,null,null,null,null,null,null,null,null,null,null,null,null,null,null,null,null,null,null,null,null,null,null,null,null,null,null,null,null,null,null,null,null,null,null,null,null,null,null,null,null,null,null,null,null,null,null,null,null,null,null,null,null,null,null,null,null,null,null,null,null,null,null,null,null,null,null,null,null,null,null,null,null,null,null,null,null,null,null,null,null,null,null,null,null,null,null,null,null,null,null,null,null,null,null,{"$f":"AND(F90<>SUM(K90:DG90),'Standing Data'!$D$9=\"Multiple\")","v":false}]
[null,null,"Auditor costs - Other fees",45,"",{"$f":"'Fin.Return - SOFA'!E272","v":0},null,null,null,null,null,null,null,null,null,null,null,null,null,null,null,null,null,null,null,null,null,null,null,null,null,null,null,null,null,null,null,null,null,null,null,null,null,null,null,null,null,null,null,null,null,null,null,null,null,null,null,null,null,null,null,null,null,null,null,null,null,null,null,null,null,null,null,null,null,null,null,null,null,null,null,null,null,null,null,null,null,null,null,null,null,null,null,null,null,null,null,null,null,null,null,null,null,null,null,null,null,null,null,null,null,null,{"$f":"AND(F91<>SUM(K91:DG91),'Standing Data'!$D$9=\"Multiple\")","v":false}]
[null,null,"Other insurance premiums",46,"",{"$f":"'Fin.Return - SOFA'!E241","v":0},null,null,null,null,null,null,null,null,null,null,null,null,null,null,null,null,null,null,null,null,null,null,null,null,null,null,null,null,null,null,null,null,null,null,null,null,null,null,null,null,null,null,null,null,null,null,null,null,null,null,null,null,null,null,null,null,null,null,null,null,null,null,null,null,null,null,null,null,null,null,null,null,null,null,null,null,null,null,null,null,null,null,null,null,null,null,null,null,null,null,null,null,null,null,null,null,null,null,null,null,null,null,null,null,null,null,{"$f":"AND(F92<>SUM(K92:DG92),'Standing Data'!$D$9=\"Multiple\")","v":false}]
[null,null,"Administrative supplies - non educational",47,"",{"$f":"+'Fin.Return - SOFA'!E204+'Fin.Return - SOFA'!E232+'Fin.Return - SOFA'!E236+'Fin.Return - SOFA'!E244+'Fin.Return - SOFA'!E246+'Fin.Return - SOFA'!E257+'Fin.Return - SOFA'!E277+'Fin.Return - SOFA'!E279+'Fin.Return - SOFA'!E280+'Fin.Return - SOFA'!E281","v":0},null,null,null,null,null,null,null,null,null,null,null,null,null,null,null,null,null,null,null,null,null,null,null,null,null,null,null,null,null,null,null,null,null,null,null,null,null,null,null,null,null,null,null,null,null,null,null,null,null,null,null,null,null,null,null,null,null,null,null,null,null,null,null,null,null,null,null,null,null,null,null,null,null,null,null,null,null,null,null,null,null,null,null,null,null,null,null,null,null,null,null,null,null,null,null,null,null,null,null,null,null,null,null,null,null,null,{"$f":"AND(F93<>SUM(K93:DG93),'Standing Data'!$D$9=\"Multiple\")","v":false}]
[null,null,"Direct revenue financing (Revenue contributions to capital)",48,"",{"$f":"'Fin.Return - SOFA'!I41","v":0},null,null,null,null,null,null,null,null,null,null,null,null,null,null,null,null,null,null,null,null,null,null,null,null,null,null,null,null,null,null,null,null,null,null,null,null,null,null,null,null,null,null,null,null,null,null,null,null,null,null,null,null,null,null,null,null,null,null,null,null,null,null,null,null,null,null,null,null,null,null,null,null,null,null,null,null,null,null,null,null,null,null,null,null,null,null,null,null,null,null,null,null,null,null,null,null,null,null,null,null,null,null,null,null,null,null,{"$f":"AND(F94<>SUM(K94:DG94),'Standing Data'!$D$9=\"Multiple\")","v":false}]
[null,null,"Other",49,"",{"$f":"+'Fin.Return - SOFA'!E254+'Fin.Return - SOFA'!E255+'Fin.Return - SOFA'!E256+'Fin.Return - SOFA'!E273+'Fin.Return - SOFA'!E274+'Fin.Return - SOFA'!E275","v":0},null,null,null,null,null,null,null,null,null,null,null,null,null,null,null,null,null,null,null,null,null,null,null,null,null,null,null,null,null,null,null,null,null,null,null,null,null,null,null,null,null,null,null,null,null,null,null,null,null,null,null,null,null,null,null,null,null,null,null,null,null,null,null,null,null,null,null,null,null,null,null,null,null,null,null,null,null,null,null,null,null,null,null,null,null,null,null,null,null,null,null,null,null,null,null,null,null,null,null,null,null,null,null,null,null,null,{"$f":"AND(F95<>SUM(K95:DG95),'Standing Data'!$D$9=\"Multiple\")","v":false}]
[null,null,null,null,null,null,{"$f":"SUM(F88:F95)","v":0},null,null,null,{"$f":"SUM(K88:K95)","v":0},{"$f":"SUM(L88:L95)","v":0},0,0,0,0,0,0,0,0,0,0,0,0,0,0,0,0,0,0,0,0,0,0,0,0,0,0,0,0,0,0,0,0,0,0,0,0,0,0,0,0,0,0,0,0,0,0,0,0,0,0,0,0,0,0,0,0,0,0,0,0,0,0,0,{"$f":"SUM(BX88:BX95)","v":0},0,0,0,0,0,0,0,0,0,0,0,0,0,0,0,0,0,0,0,0,0,0,0,0,0,0,0,0,0,0,0,0,0,0,0]
[]
[null,"Funding costs"]
[null,null,"Interest charges for Loan and bank",51,{"$f":"IF(DI99=TRUE, \"Error - imbalance\",\"\")","v":""},{"$f":"+'Fin.Return - SOFA'!E251+'Fin.Return - SOFA'!E252","v":0},null,null,null,null,null,null,null,null,null,null,null,null,null,null,null,null,null,null,null,null,null,null,null,null,null,null,null,null,null,null,null,null,null,null,null,null,null,null,null,null,null,null,null,null,null,null,null,null,null,null,null,null,null,null,null,null,null,null,null,null,null,null,null,null,null,null,null,null,null,null,null,null,null,null,null,null,null,null,null,null,null,null,null,null,null,null,null,null,null,null,null,null,null,null,null,null,null,null,null,null,null,null,null,null,null,null,{"$f":"AND(F99<>SUM(K99:DG99),'Standing Data'!$D$9=\"Multiple\")","v":false}]
[null,null,"PFI Charges",52,"",{"$f":"+'Fin.Return - SOFA'!E248","v":0},null,null,null,null,null,null,null,null,null,null,null,null,null,null,null,null,null,null,null,null,null,null,null,null,null,null,null,null,null,null,null,null,null,null,null,null,null,null,null,null,null,null,null,null,null,null,null,null,null,null,null,null,null,null,null,null,null,null,null,null,null,null,null,null,null,null,null,null,null,null,null,null,null,null,null,null,null,null,null,null,null,null,null,null,null,null,null,null,null,null,null,null,null,null,null,null,null,null,null,null,null,null,null,null,null,null,{"$f":"AND(F100<>SUM(K100:DG100),'Standing Data'!$D$9=\"Multiple\")","v":false}]
[null,null,"Central Recharges - MATs only ",53,"",null,null,null,null,null,null,null,null,null,null,null,null,null,null,null,null,null,null,null,null,null,null,null,null,null,null,null,null,null,null,null,null,null,null,null,null,null,null,null,null,null,null,null,null,null,null,null,null,null,null,null,null,null,null,null,null,null,null,null,null,null,null,null,null,null,null,null,null,null,null,null,null,null,null,null,null,null,null,null,null,null,null,null,null,null,null,null,null,null,null,null,null,null,null,null,null,null,null,null,null,null,null,null,null,null,null,null,{"$f":"AND(F101<>SUM(K101:DG101),'Standing Data'!$D$9=\"Multiple\")","v":false}]
[null,null,null,null,null,null,{"$f":"SUM(F99:F101)","v":0},null,null,null,{"$f":"SUM(K99:K101)","v":0},{"$f":"SUM(L99:L101)","v":0},0,0,0,0,0,0,0,0,0,0,0,0,0,0,0,0,0,0,0,0,0,0,0,0,0,0,0,0,0,0,0,0,0,0,0,0,0,{"$f":"SUM(AX99:AX101)","v":0},0,0,0,0,0,0,0,0,0,0,0,0,0,0,0,0,0,0,0,0,0,0,0,0,0,0,0,0,0,0,0,0,0,0,0,0,0,0,0,0,0,0,0,0,0,0,0,0,0,0,0,0,0,0,0,0,0,0,0,0,0]
[]
["TOTAL REVENUE EXPENDITURE",null,null,null,null,null,null,null,{"$f":"SUM(G57:G102)","v":0},null,{"$f":"+K102+K96+K84+K75+K73+K64+K62+K57","v":0},{"$f":"+L102+L96+L84+L75+L73+L64+L62+L57","v":0},0,0,0,0,0,0,0,0,0,0,0,0,0,0,0,0,0,0,0,0,0,0,0,0,0,0,0,0,0,0,0,0,0,0,0,0,0,0,0,0,0,0,0,0,0,0,0,0,0,0,0,0,0,0,0,0,0,0,0,0,0,0,0,{"$f":"+BX102+BX96+BX84+BX75+BX73+BX64+BX62+BX57","v":0},0,0,0,0,0,0,0,0,0,0,0,0,0,0,0,0,0,0,0,0,0,0,0,0,0,0,0,0,0,0,0,0,0,0,0]
[]
[]
["Average staff numbers (full time equivalent)",null,null,null,null,"Total Number","Permanently Employed Number","Temporary/ Interim Staff Number"]
[]
[null,null,"Teachers",54,{"$f":"IF(DI109=TRUE, \"Error - imbalance\",\"\")","v":""},{"$f":"'Fin.Return - SOFA'!E306","v":0},{"$f":"'Fin.Return - SOFA'!G306","v":0},{"$f":"'Fin.Return - SOFA'!H306","v":0},null,null,null,null,null,null,null,null,null,null,null,null,null,null,null,null,null,null,null,null,null,null,null,null,null,null,null,null,null,null,null,null,null,null,null,null,null,null,null,null,null,null,null,null,null,null,null,null,null,null,null,null,null,null,null,null,null,null,null,null,null,null,null,null,null,null,null,null,null,null,null,null,null,null,null,null,null,null,null,null,null,null,null,null,null,null,null,null,null,null,null,null,null,null,null,null,null,null,null,null,null,null,null,null,{"$f":"AND(F109<>SUM(K109:DG109),'Standing Data'!$D$9=\"Multiple\")","v":false}]
[null,null,"Administration & Support",55,"",{"$f":"'Fin.Return - SOFA'!E307","v":0},{"$f":"'Fin.Return - SOFA'!G307","v":0},{"$f":"'Fin.Return - SOFA'!H307","v":0},null,null,null,null,null,null,null,null,null,null,null,null,null,null,null,null,null,null,null,null,null,null,null,null,null,null,null,null,null,null,null,null,null,null,null,null,null,null,null,null,null,null,null,null,null,null,null,null,null,null,null,null,null,null,null,null,null,null,null,null,null,null,null,null,null,null,null,null,null,null,null,null,null,null,null,null,null,null,null,null,null,null,null,null,null,null,null,null,null,null,null,null,null,null,null,null,null,null,null,null,null,null,null,null,{"$f":"AND(F110<>SUM(K110:DG110),'Standing Data'!$D$9=\"Multiple\")","v":false}]
[null,null,"Management",56,"",{"$f":"'Fin.Return - SOFA'!E308","v":0},{"$f":"'Fin.Return - SOFA'!G308","v":0},{"$f":"'Fin.Return - SOFA'!H308","v":0},null,null,null,null,null,null,null,null,null,null,null,null,null,null,null,null,null,null,null,null,null,null,null,null,null,null,null,null,null,null,null,null,null,null,null,null,null,null,null,null,null,null,null,null,null,null,null,null,null,null,null,null,null,null,null,null,null,null,null,null,null,null,null,null,null,null,null,null,null,null,null,null,null,null,null,null,null,null,null,null,null,null,null,null,null,null,null,null,null,null,null,null,null,null,null,null,null,null,null,null,null,null,null,null,{"$f":"AND(F111<>SUM(K111:DG111),'Standing Data'!$D$9=\"Multiple\")","v":false}]
[null,null,null,null,null,{"$f":"SUM(F109:F111)","v":0},{"$f":"SUM(G109:G111)","v":0},{"$f":"SUM(H109:H111)","v":0},null,null,{"$f":"SUM(K109:K111)","v":0},{"$f":"SUM(L109:L111)","v":0},0,0,0,0,0,0,0,0,0,0,0,0,0,0,0,0,0,0,0,0,0,0,0,0,0,0,0,0,0,0,0,0,0,0,0,0,0,{"$f":"SUM(AX109:AX111)","v":0},0,0,0,0,0,0,0,0,0,0,0,0,0,0,0,0,0,0,0,0,0,0,0,0,0,0,0,0,0,0,0,0,0,0,0,0,0,0,0,0,0,0,0,0,0,0,0,0,0,0,0,0,0,0,0,0,0,0,0,0,0]

{"sheet":"Land and Property","index":8,"n_rows":112,"n_cols":15,"rows_kept":112,"cut":false,"hidden":false,"merged":[]}
["Accounts Return March 2016 - Land and property",null,null,null,null,null,null,"Below","Fin.Return","Diff.","Validation"]
[null,null,null,null,null,null,null,"£'000","£'000","£'000"]
["Trust:",null,{"$f":"'Standing Data'!$D$3","v":0},null,null,null,"Freehold Land and Buildings",{"$f":"SUMIF($G$14:$G$112,G3,$F$14:$F$112)","v":0},{"$f":"'Fin.Return - BS'!G98","v":0},{"$f":"H3-I3","v":0},{"$f":"IF(J3<>0,\"ERROR\",\"OK\")","v":"OK"}]
[null,null,null,null,null,null,"Leasehold Land and Buildings",{"$f":"SUMIF($G$14:$G$112,G4,$F$14:$F$112)","v":0},{"$f":"'Fin.Return - BS'!H98","v":0},{"$f":"H4-I4","v":0},{"$f":"IF(J4<>0,\"ERROR\",\"OK\")","v":"OK"}]
["Period end:",null,{"$f":"('Standing Data'!D6)","v":"2016-03-31"},"Cells will populate automatically from elsewhere in the Return",null,null,"Leasehold Improvements",0,{"$f":"'Fin.Return - BS'!I98","v":0},0,"OK"]
[]
["Company No.:",null,{"$f":"'Standing Data'!D14","v":"Type number here"},"Additional to Financial Statements, prepared on a similar basis"]
[]
["Academy UPIN:",null,{"$f":"'Fin.Return - SOFA'!C9","v":{"$error":"#N/A"}},"Non-financial cells to be populated by Academy Trust"]
[null,null,"Above details will populate automatically",null,"Error check cells"]
[]
[null,null,"Academy Name","UPIN","Description of property","Net Book Value included in financial return","Leasehold / Freehold / Leasehold Improvements","Donor/ Lessor/ Purchaser Type","Lease term if applicable (years)","If leasehold, lease type","Rental/lease payment type (if applicable)",null,null,"Lower limit","Upper limit "]
[null,null,null,null,null,"£000",null,null,null,null,null,null,null,"£000","£000"]
[null,null,{"$f":"IFERROR(VLOOKUP(D14,Reference!$O$10:$T$7199,2,FALSE),\"\")","v":""},null,null,null,null,null,null,null,null,{"$f":"IF(AND(F14<>0,G14=\"\"),\"Complete column G\",IF(AND(LEFT(G14,9)=\"Leasehold\",OR(I14=\"\",I14=0)),\"ERROR - Missing lease input\",IF(AND(LEFT(G14,9)=\"Leasehold\",OR(J14=\"\",J14=0,J14=\"n/a\")),\"ERROR - Missing lease input\",IF(AND(LEFT(G14,9)=\"Leasehold\",OR(K14=\"\",K14=0,K14=\"n/a\")),\"ERROR - Missing lease input\",\"\"))))","v":""},null,0,100000]
[null,null,{"$f":"IFERROR(VLOOKUP(D15,Reference!$O$10:$T$7199,2,FALSE),\"\")","v":""},null,null,null,null,null,null,null,null,{"$f":"IF(AND(F15<>0,G15=\"\"),\"Complete column G\",IF(AND(LEFT(G15,9)=\"Leasehold\",OR(I15=\"\",I15=0)),\"ERROR - Missing lease input\",IF(AND(LEFT(G15,9)=\"Leasehold\",OR(J15=\"\",J15=0,J15=\"n/a\")),\"ERROR - Missing lease input\",IF(AND(LEFT(G15,9)=\"Leasehold\",OR(K15=\"\",K15=0,K15=\"n/a\")),\"ERROR - Missing lease input\",\"\"))))","v":""}]
[null,null,{"$f":"IFERROR(VLOOKUP(D16,Reference!$O$10:$T$7199,2,FALSE),\"\")","v":""},null,null,null,null,null,null,null,null,""]
[null,null,{"$f":"IFERROR(VLOOKUP(D17,Reference!$O$10:$T$7199,2,FALSE),\"\")","v":""},null,null,null,null,null,null,null,null,""]
[null,null,{"$f":"IFERROR(VLOOKUP(D18,Reference!$O$10:$T$7199,2,FALSE),\"\")","v":""},null,null,null,null,null,null,null,null,""]
[null,null,{"$f":"IFERROR(VLOOKUP(D19,Reference!$O$10:$T$7199,2,FALSE),\"\")","v":""},null,null,null,null,null,null,null,null,""]
[null,null,{"$f":"IFERROR(VLOOKUP(D20,Reference!$O$10:$T$7199,2,FALSE),\"\")","v":""},null,null,null,null,null,null,null,null,""]
[null,null,{"$f":"IFERROR(VLOOKUP(D21,Reference!$O$10:$T$7199,2,FALSE),\"\")","v":""},null,null,null,null,null,null,null,null,""]
[null,null,{"$f":"IFERROR(VLOOKUP(D22,Reference!$O$10:$T$7199,2,FALSE),\"\")","v":""},null,null,null,null,null,null,null,null,""]
[null,null,{"$f":"IFERROR(VLOOKUP(D23,Reference!$O$10:$T$7199,2,FALSE),\"\")","v":""},null,null,null,null,null,null,null,null,""]
[null,null,{"$f":"IFERROR(VLOOKUP(D24,Reference!$O$10:$T$7199,2,FALSE),\"\")","v":""},null,null,null,null,null,null,null,null,""]
[null,null,{"$f":"IFERROR(VLOOKUP(D25,Reference!$O$10:$T$7199,2,FALSE),\"\")","v":""},null,null,null,null,null,null,null,null,""]
[null,null,{"$f":"IFERROR(VLOOKUP(D26,Reference!$O$10:$T$7199,2,FALSE),\"\")","v":""},null,null,null,null,null,null,null,null,""]
[null,null,{"$f":"IFERROR(VLOOKUP(D27,Reference!$O$10:$T$7199,2,FALSE),\"\")","v":""},null,null,null,null,null,null,null,null,""]
[null,null,{"$f":"IFERROR(VLOOKUP(D28,Reference!$O$10:$T$7199,2,FALSE),\"\")","v":""},null,null,null,null,null,null,null,null,""]
[null,null,{"$f":"IFERROR(VLOOKUP(D29,Reference!$O$10:$T$7199,2,FALSE),\"\")","v":""},null,null,null,null,null,null,null,null,""]
[null,null,{"$f":"IFERROR(VLOOKUP(D30,Reference!$O$10:$T$7199,2,FALSE),\"\")","v":""},null,null,null,null,null,null,null,null,""]
[null,null,{"$f":"IFERROR(VLOOKUP(D31,Reference!$O$10:$T$7199,2,FALSE),\"\")","v":""},null,null,null,null,null,null,null,null,""]
[null,null,{"$f":"IFERROR(VLOOKUP(D32,Reference!$O$10:$T$7199,2,FALSE),\"\")","v":""},null,null,null,null,null,null,null,null,""]
[null,null,{"$f":"IFERROR(VLOOKUP(D33,Reference!$O$10:$T$7199,2,FALSE),\"\")","v":""},null,null,null,null,null,null,null,null,""]
[null,null,{"$f":"IFERROR(VLOOKUP(D34,Reference!$O$10:$T$7199,2,FALSE),\"\")","v":""},null,null,null,null,null,null,null,null,""]
[null,null,{"$f":"IFERROR(VLOOKUP(D35,Reference!$O$10:$T$7199,2,FALSE),\"\")","v":""},null,null,null,null,null,null,null,null,""]
[null,null,{"$f":"IFERROR(VLOOKUP(D36,Reference!$O$10:$T$7199,2,FALSE),\"\")","v":""},null,null,null,null,null,null,null,null,""]
[null,null,{"$f":"IFERROR(VLOOKUP(D37,Reference!$O$10:$T$7199,2,FALSE),\"\")","v":""},null,null,null,null,null,null,null,null,""]
[null,null,{"$f":"IFERROR(VLOOKUP(D38,Reference!$O$10:$T$7199,2,FALSE),\"\")","v":""},null,null,null,null,null,null,null,null,""]
[null,null,{"$f":"IFERROR(VLOOKUP(D39,Reference!$O$10:$T$7199,2,FALSE),\"\")","v":""},null,null,null,null,null,null,null,null,""]
[null,null,{"$f":"IFERROR(VLOOKUP(D40,Reference!$O$10:$T$7199,2,FALSE),\"\")","v":""},null,null,null,null,null,null,null,null,""]
[null,null,{"$f":"IFERROR(VLOOKUP(D41,Reference!$O$10:$T$7199,2,FALSE),\"\")","v":""},null,null,null,null,null,null,null,null,""]
[null,null,{"$f":"IFERROR(VLOOKUP(D42,Reference!$O$10:$T$7199,2,FALSE),\"\")","v":""},null,null,null,null,null,null,null,null,""]
[null,null,{"$f":"IFERROR(VLOOKUP(D43,Reference!$O$10:$T$7199,2,FALSE),\"\")","v":""},null,null,null,null,null,null,null,null,""]
[null,null,{"$f":"IFERROR(VLOOKUP(D44,Reference!$O$10:$T$7199,2,FALSE),\"\")","v":""},null,null,null,null,null,null,null,null,""]
[null,null,{"$f":"IFERROR(VLOOKUP(D45,Reference!$O$10:$T$7199,2,FALSE),\"\")","v":""},null,null,null,null,null,null,null,null,""]
[null,null,{"$f":"IFERROR(VLOOKUP(D46,Reference!$O$10:$T$7199,2,FALSE),\"\")","v":""},null,null,null,null,null,null,null,null,""]
[null,null,{"$f":"IFERROR(VLOOKUP(D47,Reference!$O$10:$T$7199,2,FALSE),\"\")","v":""},null,null,null,null,null,null,null,null,""]
[null,null,{"$f":"IFERROR(VLOOKUP(D48,Reference!$O$10:$T$7199,2,FALSE),\"\")","v":""},null,null,null,null,null,null,null,null,""]
[null,null,{"$f":"IFERROR(VLOOKUP(D49,Reference!$O$10:$T$7199,2,FALSE),\"\")","v":""},null,null,null,null,null,null,null,null,""]
[null,null,{"$f":"IFERROR(VLOOKUP(D50,Reference!$O$10:$T$7199,2,FALSE),\"\")","v":""},null,null,null,null,null,null,null,null,""]
[null,null,{"$f":"IFERROR(VLOOKUP(D51,Reference!$O$10:$T$7199,2,FALSE),\"\")","v":""},null,null,null,null,null,null,null,null,""]
[null,null,{"$f":"IFERROR(VLOOKUP(D52,Reference!$O$10:$T$7199,2,FALSE),\"\")","v":""},null,null,null,null,null,null,null,null,""]
[null,null,{"$f":"IFERROR(VLOOKUP(D53,Reference!$O$10:$T$7199,2,FALSE),\"\")","v":""},null,null,null,null,null,null,null,null,""]
[null,null,{"$f":"IFERROR(VLOOKUP(D54,Reference!$O$10:$T$7199,2,FALSE),\"\")","v":""},null,null,null,null,null,null,null,null,""]
[null,null,{"$f":"IFERROR(VLOOKUP(D55,Reference!$O$10:$T$7199,2,FALSE),\"\")","v":""},null,null,null,null,null,null,null,null,""]
[null,null,{"$f":"IFERROR(VLOOKUP(D56,Reference!$O$10:$T$7199,2,FALSE),\"\")","v":""},null,null,null,null,null,null,null,null,""]
[null,null,{"$f":"IFERROR(VLOOKUP(D57,Reference!$O$10:$T$7199,2,FALSE),\"\")","v":""},null,null,null,null,null,null,null,null,""]
[null,null,{"$f":"IFERROR(VLOOKUP(D58,Reference!$O$10:$T$7199,2,FALSE),\"\")","v":""},null,null,null,null,null,null,null,null,""]
[null,null,{"$f":"IFERROR(VLOOKUP(D59,Reference!$O$10:$T$7199,2,FALSE),\"\")","v":""},null,null,null,null,null,null,null,null,""]
[null,null,{"$f":"IFERROR(VLOOKUP(D60,Reference!$O$10:$T$7199,2,FALSE),\"\")","v":""},null,null,null,null,null,null,null,null,""]
[null,null,{"$f":"IFERROR(VLOOKUP(D61,Reference!$O$10:$T$7199,2,FALSE),\"\")","v":""},null,null,null,null,null,null,null,null,""]
[null,null,{"$f":"IFERROR(VLOOKUP(D62,Reference!$O$10:$T$7199,2,FALSE),\"\")","v":""},null,null,null,null,null,null,null,null,""]
[null,null,{"$f":"IFERROR(VLOOKUP(D63,Reference!$O$10:$T$7199,2,FALSE),\"\")","v":""},null,null,null,null,null,null,null,null,""]
[null,null,{"$f":"IFERROR(VLOOKUP(D64,Reference!$O$10:$T$7199,2,FALSE),\"\")","v":""},null,null,null,null,null,null,null,null,""]
[null,null,{"$f":"IFERROR(VLOOKUP(D65,Reference!$O$10:$T$7199,2,FALSE),\"\")","v":""},null,null,null,null,null,null,null,null,""]
[null,null,{"$f":"IFERROR(VLOOKUP(D66,Reference!$O$10:$T$7199,2,FALSE),\"\")","v":""},null,null,null,null,null,null,null,null,""]
[null,null,{"$f":"IFERROR(VLOOKUP(D67,Reference!$O$10:$T$7199,2,FALSE),\"\")","v":""},null,null,null,null,null,null,null,null,""]
[null,null,{"$f":"IFERROR(VLOOKUP(D68,Reference!$O$10:$T$7199,2,FALSE),\"\")","v":""},null,null,null,null,null,null,null,null,""]
[null,null,{"$f":"IFERROR(VLOOKUP(D69,Reference!$O$10:$T$7199,2,FALSE),\"\")","v":""},null,null,null,null,null,null,null,null,""]
[null,null,{"$f":"IFERROR(VLOOKUP(D70,Reference!$O$10:$T$7199,2,FALSE),\"\")","v":""},null,null,null,null,null,null,null,null,""]
[null,null,{"$f":"IFERROR(VLOOKUP(D71,Reference!$O$10:$T$7199,2,FALSE),\"\")","v":""},null,null,null,null,null,null,null,null,""]
[null,null,{"$f":"IFERROR(VLOOKUP(D72,Reference!$O$10:$T$7199,2,FALSE),\"\")","v":""},null,null,null,null,null,null,null,null,""]
[null,null,{"$f":"IFERROR(VLOOKUP(D73,Reference!$O$10:$T$7199,2,FALSE),\"\")","v":""},null,null,null,null,null,null,null,null,""]
[null,null,{"$f":"IFERROR(VLOOKUP(D74,Reference!$O$10:$T$7199,2,FALSE),\"\")","v":""},null,null,null,null,null,null,null,null,""]
[null,null,{"$f":"IFERROR(VLOOKUP(D75,Reference!$O$10:$T$7199,2,FALSE),\"\")","v":""},null,null,null,null,null,null,null,null,""]
[null,null,{"$f":"IFERROR(VLOOKUP(D76,Reference!$O$10:$T$7199,2,FALSE),\"\")","v":""},null,null,null,null,null,null,null,null,""]
[null,null,{"$f":"IFERROR(VLOOKUP(D77,Reference!$O$10:$T$7199,2,FALSE),\"\")","v":""},null,null,null,null,null,null,null,null,""]
[null,null,{"$f":"IFERROR(VLOOKUP(D78,Reference!$O$10:$T$7199,2,FALSE),\"\")","v":""},null,null,null,null,null,null,null,null,""]
[null,null,{"$f":"IFERROR(VLOOKUP(D79,Reference!$O$10:$T$7199,2,FALSE),\"\")","v":""},null,null,null,null,null,null,null,null,{"$f":"IF(AND(F79<>0,G79=\"\"),\"Complete column G\",IF(AND(LEFT(G79,9)=\"Leasehold\",OR(I79=\"\",I79=0)),\"ERROR - Missing lease input\",IF(AND(LEFT(G79,9)=\"Leasehold\",OR(J79=\"\",J79=0,J79=\"n/a\")),\"ERROR - Missing lease input\",IF(AND(LEFT(G79,9)=\"Leasehold\",OR(K79=\"\",K79=0,K79=\"n/a\")),\"ERROR - Missing lease input\",\"\"))))","v":""}]
[null,null,{"$f":"IFERROR(VLOOKUP(D80,Reference!$O$10:$T$7199,2,FALSE),\"\")","v":""},null,null,null,null,null,null,null,null,""]
[null,null,{"$f":"IFERROR(VLOOKUP(D81,Reference!$O$10:$T$7199,2,FALSE),\"\")","v":""},null,null,null,null,null,null,null,null,""]
[null,null,{"$f":"IFERROR(VLOOKUP(D82,Reference!$O$10:$T$7199,2,FALSE),\"\")","v":""},null,null,null,null,null,null,null,null,""]
[null,null,{"$f":"IFERROR(VLOOKUP(D83,Reference!$O$10:$T$7199,2,FALSE),\"\")","v":""},null,null,null,null,null,null,null,null,""]
[null,null,{"$f":"IFERROR(VLOOKUP(D84,Reference!$O$10:$T$7199,2,FALSE),\"\")","v":""},null,null,null,null,null,null,null,null,""]
[null,null,{"$f":"IFERROR(VLOOKUP(D85,Reference!$O$10:$T$7199,2,FALSE),\"\")","v":""},null,null,null,null,null,null,null,null,""]
[null,null,{"$f":"IFERROR(VLOOKUP(D86,Reference!$O$10:$T$7199,2,FALSE),\"\")","v":""},null,null,null,null,null,null,null,null,""]
[null,null,{"$f":"IFERROR(VLOOKUP(D87,Reference!$O$10:$T$7199,2,FALSE),\"\")","v":""},null,null,null,null,null,null,null,null,""]
[null,null,{"$f":"IFERROR(VLOOKUP(D88,Reference!$O$10:$T$7199,2,FALSE),\"\")","v":""},null,null,null,null,null,null,null,null,""]
[null,null,{"$f":"IFERROR(VLOOKUP(D89,Reference!$O$10:$T$7199,2,FALSE),\"\")","v":""},null,null,null,null,null,null,null,null,""]
[null,null,{"$f":"IFERROR(VLOOKUP(D90,Reference!$O$10:$T$7199,2,FALSE),\"\")","v":""},null,null,null,null,null,null,null,null,""]
[null,null,{"$f":"IFERROR(VLOOKUP(D91,Reference!$O$10:$T$7199,2,FALSE),\"\")","v":""},null,null,null,null,null,null,null,null,""]
[null,null,{"$f":"IFERROR(VLOOKUP(D92,Reference!$O$10:$T$7199,2,FALSE),\"\")","v":""},null,null,null,null,null,null,null,null,""]
[null,null,{"$f":"IFERROR(VLOOKUP(D93,Reference!$O$10:$T$7199,2,FALSE),\"\")","v":""},null,null,null,null,null,null,null,null,""]
[null,null,{"$f":"IFERROR(VLOOKUP(D94,Reference!$O$10:$T$7199,2,FALSE),\"\")","v":""},null,null,null,null,null,null,null,null,""]
[null,null,{"$f":"IFERROR(VLOOKUP(D95,Reference!$O$10:$T$7199,2,FALSE),\"\")","v":""},null,null,null,null,null,null,null,null,""]
[null,null,{"$f":"IFERROR(VLOOKUP(D96,Reference!$O$10:$T$7199,2,FALSE),\"\")","v":""},null,null,null,null,null,null,null,null,""]
[null,null,{"$f":"IFERROR(VLOOKUP(D97,Reference!$O$10:$T$7199,2,FALSE),\"\")","v":""},null,null,null,null,null,null,null,null,""]
[null,null,{"$f":"IFERROR(VLOOKUP(D98,Reference!$O$10:$T$7199,2,FALSE),\"\")","v":""},null,null,null,null,null,null,null,null,""]
[null,null,{"$f":"IFERROR(VLOOKUP(D99,Reference!$O$10:$T$7199,2,FALSE),\"\")","v":""},null,null,null,null,null,null,null,null,""]
[null,null,{"$f":"IFERROR(VLOOKUP(D100,Reference!$O$10:$T$7199,2,FALSE),\"\")","v":""},null,null,null,null,null,null,null,null,""]
[null,null,{"$f":"IFERROR(VLOOKUP(D101,Reference!$O$10:$T$7199,2,FALSE),\"\")","v":""},null,null,null,null,null,null,null,null,""]
[null,null,{"$f":"IFERROR(VLOOKUP(D102,Reference!$O$10:$T$7199,2,FALSE),\"\")","v":""},null,null,null,null,null,null,null,null,""]
[null,null,{"$f":"IFERROR(VLOOKUP(D103,Reference!$O$10:$T$7199,2,FALSE),\"\")","v":""},null,null,null,null,null,null,null,null,""]
[null,null,{"$f":"IFERROR(VLOOKUP(D104,Reference!$O$10:$T$7199,2,FALSE),\"\")","v":""},null,null,null,null,null,null,null,null,""]
[null,null,{"$f":"IFERROR(VLOOKUP(D105,Reference!$O$10:$T$7199,2,FALSE),\"\")","v":""},null,null,null,null,null,null,null,null,""]
[null,null,{"$f":"IFERROR(VLOOKUP(D106,Reference!$O$10:$T$7199,2,FALSE),\"\")","v":""},null,null,null,null,null,null,null,null,""]
[null,null,{"$f":"IFERROR(VLOOKUP(D107,Reference!$O$10:$T$7199,2,FALSE),\"\")","v":""},null,null,null,null,null,null,null,null,""]
[null,null,{"$f":"IFERROR(VLOOKUP(D108,Reference!$O$10:$T$7199,2,FALSE),\"\")","v":""},null,null,null,null,null,null,null,null,""]
[null,null,{"$f":"IFERROR(VLOOKUP(D109,Reference!$O$10:$T$7199,2,FALSE),\"\")","v":""},null,null,null,null,null,null,null,null,""]
[null,null,{"$f":"IFERROR(VLOOKUP(D110,Reference!$O$10:$T$7199,2,FALSE),\"\")","v":""},null,null,null,null,null,null,null,null,""]
[null,null,{"$f":"IFERROR(VLOOKUP(D111,Reference!$O$10:$T$7199,2,FALSE),\"\")","v":""},null,null,null,null,null,null,null,null,""]
[null,null,{"$f":"IFERROR(VLOOKUP(D112,Reference!$O$10:$T$7199,2,FALSE),\"\")","v":""},null,null,null,null,null,null,null,null,""]

{"sheet":"CP IDs","index":9,"n_rows":7199,"n_cols":5,"rows_kept":7199,"cut":false,"hidden":false,"merged":[]}
["CODE","NAME","CODE","Counterparty Type","Counterparty Gross"]
[130335,"AB Kettleby Community Primary School",130335,"Academy","Academy"]
[123288,"Abacus Belsize Primary School",123288,"Academy","Academy"]
[127210,"Abbey CofE Academy",127210,"Academy","Academy"]
[120322,"Abbey College, Ramsey",120322,"Academy","Academy"]
[120083,"Abbey Grange Church of England Academy",120083,"Academy","Academy"]
[124243,"Abbey Hey Primary Academy",124243,"Academy","Academy"]
[124569,"Abbey Hill Academy",124569,"Academy","Academy"]
[119988,"Abbey Infants' School",119988,"Academy","Academy"]
[119989,"Abbey Junior School",119989,"Academy","Academy"]
[126329,"Abbey Park Academy",126329,"Academy","Academy"]
[120154,"Abbey School, The",120154,"Academy","Academy"]
[123404,"Abbey View",123404,"Academy","Academy"]
[123534,"Abbey Woods Academy",123534,"Academy","Academy"]
[122250,"Abbeyfield School",122250,"Academy","Academy"]
[122309,"Abbeywood Community School",122309,"Academy","Academy"]
[133078,"Abbeywood First School",133078,"Academy","Academy"]
[122896,"Abbots Hall Primary School",122896,"Academy","Academy"]
[131130,"Abbotsweld Primary School",131130,"Academy","Academy"]
[119551,"Abbs Cross Academy and Arts College",119551,"Academy","Academy"]
[121187,"Abington Vale Primary School",121187,"Academy","Academy"]
[119101,"Abraham Darby Academy",119101,"Academy","Academy"]
[120210,"Abraham Guest Academy",120210,"Academy","Academy"]
[122270,"Academy @ Worden",122270,"Academy","Academy"]
[119119,"Academy 360",119119,"Academy","Academy"]
[119508,"Academy at Shotton Hall, The",119508,"Academy","Academy"]
[123407,"Academy of Central Bedfordshire, The",123407,"Academy","Academy"]
[119111,"Academy of St Francis of Assisi, The",119111,"Academy","Academy"]
[119813,"Academy of Trinity C of E Primary",119813,"Academy","Academy"]
[120096,"Academy Selsey, The",120096,"Academy","Academy"]
[118597,"Accrington Academy",118597,"Academy","Academy"]
[120359,"Accrington St Christopher's Church of England High School",120359,"Academy","Academy"]
[122775,"ACE Academy, The",122775,"Academy","Academy"]
[122565,"Acle Academy",122565,"Academy","Academy"]
[123272,"Acocks Green Primary School",123272,"Academy","Academy"]
[123412,"Acorn Free School",123412,"Academy","Academy"]
[123239,"Acorns Primary School",123239,"Academy","Academy"]
[122311,"Acre Hall Primary School",122311,"Academy","Academy"]
[122739,"Acre Rigg Academy",122739,"Academy","Academy"]
[130951,"Ad Astra Infant School",130951,"Academy","Academy"]
[120418,"Adams' Grammar School",120418,"Academy","Academy"]
[129409,"Adelaide School",129409,"Academy","Academy"]
[129888,"Adisham Church of England Primary School",129888,"Academy","Academy"]
[129010,"Admiral Lord Nelson School",129010,"Academy","Academy"]
[122656,"Admirals Academy",122656,"Academy","Academy"]
[132034,"Aegir",132034,"Academy","Academy"]
[123037,"Aerodrome Primary Academy",123037,"Academy","Academy"]
[124306,"Ainthorpe Primary School",124306,"Academy","Academy"]
[119563,"Airedale Academy",119563,"Academy","Academy"]
[131232,"Airedale Infant School",131232,"Academy","Academy"]
[131374,"Airedale Junior School",131374,"Academy","Academy"]
[132632,"Akaal Primary School",132632,"Academy","Academy"]
[120249,"Alameda Middle School",120249,"Academy","Academy"]
[119583,"Alban Church of England Academy",119583,"Academy","Academy"]
[122102,"Alban City School",122102,"Academy","Academy"]
[121853,"Albany Academy - Chorley",121853,"Academy","Academy"]
[120189,"Albany School, The - Havering",120189,"Academy","Academy"]
[130333,"Albert Bradbeer Primary Academy",130333,"Academy","Academy"]
[121940,"Albion Academy, The",121940,"Academy","Academy"]
[120172,"Alcester Academy",120172,"Academy","Academy"]
[119579,"Alcester Grammar School",119579,"Academy","Academy"]
[120534,"Aldborough Primary School",120534,"Academy","Academy"]
[127509,"Alde Valley School",127509,"Academy","Academy"]
[119994,"Alderbrook School",119994,"Academy","Academy"]
[119676,"Alderman Jacobs Primary School",119676,"Academy","Academy"]
[122717,"Alderman White School",122717,"Academy","Academy"]
[122992,"Aldersley High School",122992,"Academy","Academy"]
[121205,"Aldridge School",121205,"Academy","Academy"]
[123939,"Alec Hunter Academy",123939,"Academy","Academy"]
[118409,"Alec Reed Academy",118409,"Academy","Academy"]
[125230,"Alexandra Infant School",125230,"Academy","Academy"]
[125200,"Alexandra Junior School",125200,"Academy","Academy"]
[120567,"Alexandra Park School",120567,"Academy","Academy"]
[124171,"Alexandra School",124171,"Academy","Academy"]
[120753,"Alfriston School",120753,"Academy","Academy"]
[121000,"All Faiths Children's Academy",121000,"Academy","Academy"]
[123111,"All Hallows Catholic College",123111,"Academy","Academy"]
[120930,"All Saints Academy  Darfield",120930,"Academy","Academy"]
[120760,"All Saints Academy - Stockton-on-Tees",120760,"Academy","Academy"]
[130748,"All Saints Academy - Walsall",130748,"Academy","Academy"]
[131178,"All saints Academy - Wissey Valley",131178,"Academy","Academy"]
[119040,"All Saints Academy Dunstable",119040,"Academy","Academy"]
[119150,"All Saints' Academy, Cheltenham",119150,"Academy","Academy"]
[130163,"All Saints Babbacombe CofE Primary School",130163,"Academy","Academy"]
[124644,"All Saints Catholic College - Dukinfield",124644,"Academy","Academy"]
[121197,"All Saints' Catholic High School - Sheffield",121197,"Academy","Academy"]
[131646,"All Saints CE Junior School - Hastings",131646,"Academy","Academy"]
[119199,"All Saints Church of England Academy, The - Plymouth",119199,"Academy","Academy"]
[131793,"All Saints Church of England Primary School - Chatham",131793,"Academy","Academy"]
[132908,"All Saints CofE Primary School (Marsh)",132908,"Academy","Academy"]
[131252,"All Saints Harworth CofE (Aided) Primary School",131252,"Academy","Academy"]
[124183,"All Saints Interchurch Academy - March",124183,"Academy","Academy"]
[120504,"All Saints Junior School - Reading",120504,"Academy","Academy"]
[129891,"All Saints RC Comprehensive School",129891,"Academy","Academy"]
[129424,"All Saints VA CofE Primary School",129424,"Academy","Academy"]
[131429,"Allenbourn Middle School",131429,"Academy","Academy"]
[131351,"Allenton Primary School",131351,"Academy","Academy"]
[123084,"Alleyne's Academy",123084,"Academy","Academy"]
[124701,"Allhallows Primary Academy",124701,"Academy","Academy"]
[122969,"Allington Primary School",122969,"Academy","Academy"]
[123357,"Alma Primary",123357,"Academy","Academy"]
[122100,"Al-Madinah School",122100,"Academy","Academy"]
[122325,"Alperton Community School",122325,"Academy","Academy"]
[124251,"Alsager School",124251,"Academy","Academy"]
[122572,"Alston Primary School",122572,"Academy","Academy"]
[131166,"Alt Academy",131166,"Academy","Academy"]
[130649,"Altarnun Community Primary School",130649,"Academy","Academy"]
[132412,"Alternative Provision for Medical Needs",132412,"Academy","Academy"]
[122124,"Altrincham College of Arts",122124,"Academy","Academy"]
[119511,"Altrincham Grammar School for Boys",119511,"Academy","Academy"]
[120289,"Altrincham Grammar School for Girls",120289,"Academy","Academy"]
[122326,"Altwood CofE Secondary School",122326,"Academy","Academy"]
[131129,"Alverton Primary School",131129,"Academy","Academy"]
[130606,"Ambergate Sports College",130606,"Academy","Academy"]
[132267,"Ambleside CofE Primary School - Ambleside",132267,"Academy","Academy"]
[122945,"Ambleside Primary School - Nottingham",122945,"Academy","Academy"]
[120372,"Amersham School",120372,"Academy","Academy"]
[120500,"Amery Hill School",120500,"Academy","Academy"]
[119499,"Amherst School",119499,"Academy","Academy"]
[124111,"Anchorsholme Primary Academy",124111,"Academy","Academy"]
[131651,"Angel Oak Academy",131651,"Academy","Academy"]
[123086,"Anglesey Primary Academy",123086,"Academy","Academy"]
[120813,"Anglo European School",120813,"Academy","Academy"]
[119839,"Ansford Academy",119839,"Academy","Academy"]
[130934,"Anston Greenlands Primary School",130934,"Academy","Academy"]
[130493,"Anthony Curton CofE Primary School",130493,"Academy","Academy"]
[131131,"Antingham and Southrepps Community Primary School",131131,"Academy","Academy"]
[131671,"Antony Church of England School",131671,"Academy","Academy"]
[131050,"Apollo Studio Academy",131050,"Academy","Academy"]
[120251,"Appleby Grammar School",120251,"Academy","Academy"]
[120654,"Applecroft School",120654,"Academy","Academy"]
[123941,"Applegarth Academy",123941,"Academy","Academy"]
[119126,"Appleton Academy - Bradford",119126,"Academy","Academy"]
[124252,"Appleton Primary School - Hull",124252,"Academy","Academy"]
[119556,"Appleton School, The - Benfleet",119556,"Academy","Academy"]
[122541,"Arbours Primary Academy, The",122541,"Academy","Academy"]
[120258,"Archbishop Benson CofE Primary School",120258,"Academy","Academy"]
[124585,"Archbishop Courtenay Primary School",124585,"Academy","Academy"]
[124584,"Archbishop Cranmer Church of England Academy",124584,"Academy","Academy"]
[119523,"Archbishop Holgate's School",119523,"Academy","Academy"]
[130936,"Archbishop Lanfranc Academy, The",130936,"Academy","Academy"]
[119095,"Archbishop Sentamu Academy",119095,"Academy","Academy"]
[130702,"Archbishop Wake Church of England Primary School",130702,"Academy","Academy"]
[123349,"Archer Academy, The",123349,"Academy","Academy"]
[119276,"Arden",119276,"Academy","Academy"]
[124389,"Arden Grove Infant and Nursery School",124389,"Academy","Academy"]
[121192,"Ardley Hill Academy",121192,"Academy","Academy"]
[118659,"ARK Academy",118659,"Academy","Academy"]
[122186,"ARK All Saints Academy",122186,"Academy","Academy"]
[120505,"ARK Atwood Primary Academy",120505,"Academy","Academy"]
[123906,"ARK Ayrton Primary Academy",123906,"Academy","Academy"]
[122381,"ARK Bentworth Primary Academy",122381,"Academy","Academy"]
[130774,"ARK Blacklands Primary Academy",130774,"Academy","Academy"]
[125180,"ARK Boulton Academy",125180,"Academy","Academy"]
[124488,"ARK Brunel Primary Academy",124488,"Academy","Academy"]
[118604,"ARK Burlington Danes Primary Academy",118604,"Academy","Academy"]
[132633,"ARK Byron Primary Academy",132633,"Academy","Academy"]
[120428,"ARK Chamberlain Primary Academy",120428,"Academy","Academy"]
[120506,"ARK Conway Primary Academy",120506,"Academy","Academy"]
[129541,"ARK Dickens Primary Academy",129541,"Academy","Academy"]
[129412,"ARK Elvin Academy",129412,"Academy","Academy"]
[124680,"ARK Franklin Primary Academy",124680,"Academy","Academy"]
[118614,"ARK Globe Academy",118614,"Academy","Academy"]
[124685,"ARK Helenswood Academy",124685,"Academy","Academy"]
[120917,"ARK Isaac Newton Academy",120917,"Academy","Academy"]
[123290,"ARK John Keats Academy",123290,"Academy","Academy"]
[120907,"ARK Kings Academy",120907,"Academy","Academy"]
[130044,"ARK Little Ridge Primary Academy",130044,"Academy","Academy"]
[120114,"ARK Oval Primary Academy",120114,"Academy","Academy"]
[121923,"ARK Priory Primary Academy",121923,"Academy","Academy"]
[122388,"ARK Putney Academy",122388,"Academy","Academy"]
[121847,"ARK Rose Primary Academy",121847,"Academy","Academy"]
[119134,"ARK St Alban's Academy",119134,"Academy","Academy"]
[124224,"ARK Swift Primary Academy",124224,"Academy","Academy"]
[120992,"ARK Tindal Primary Academy",120992,"Academy","Academy"]
[119116,"ARK Walworth Academy",119116,"Academy","Academy"]
[124511,"ARK William Parker Academy",124511,"Academy","Academy"]
[121002,"Armthorpe Academy",121002,"Academy","Academy"]
[121125,"Armthorpe Shaw Wood Academy",121125,"Academy","Academy"]
[127778,"Arnbrook Primary School",127778,"Academy","Academy"]
[119649,"Arnewood School Academy, The",119649,"Academy","Academy"]
[119841,"Arnold Academy",119841,"Academy","Academy"]
[120591,"Arnold Hill Academy",120591,"Academy","Academy"]
[120652,"Arnside National CofE School",120652,"Academy","Academy"]
[122314,"Arrow Vale RSA Academy",122314,"Academy","Academy"]
[119274,"Arthur Mellows Village College",119274,"Academy","Academy"]
[120018,"Arthur Terry School, The",120018,"Academy","Academy"]
[130476,"Ascot Road Community Free School",130476,"Academy","Academy"]
[124150,"Asfordby Hill Primary School",124150,"Academy","Academy"]
[121036,"Ash Field Academy",121036,"Academy","Academy"]
[120803,"Ash Green School",120803,"Academy","Academy"]
[124642,"Ash Grove Academy",124642,"Academy","Academy"]
[120458,"Ash Hill Academy",120458,"Academy","Academy"]
[131115,"Ash Trees School",131115,"Academy","Academy"]
[119678,"Ashburton Primary School",119678,"Academy","Academy"]
[122680,"Ashby Hill Top Primary School",122680,"Academy","Academy"]
[122080,"Ashby School",122080,"Academy","Academy"]
[118598,"Ashcroft Technology Academy",118598,"Academy","Academy"]
[121097,"Ashfield Comprehensive School",121097,"Academy","Academy"]
[120332,"Ashingdon Primary Academy",120332,"Academy","Academy"]
[119553,"Ashlawn School",119553,"Academy","Academy"]
[130830,"Ashley CofE Aided Primary School",130830,"Academy","Academy"]
[120339,"Ashley School, The",120339,"Academy","Academy"]
[119277,"Ashmole Academy",119277,"Academy","Academy"]
[119524,"Ashperton Primary Academy",119524,"Academy","Academy"]
[131438,"Ashton West End Primary School",131438,"Academy","Academy"]
[122001,"Ashton-on-Mersey School",122001,"Academy","Academy"]
[123233,"Ashwell Academy",123233,"Academy","Academy"]
[130930,"Ashwood Academy, The",130930,"Academy","Academy"]
[132302,"Askwith Community Primary School",132302,"Academy","Academy"]
[128037,"Aspire Academy",128037,"Academy","Academy"]
[130479,"Aspire Academy - Harlow",130479,"Academy","Academy"]
[130478,"Aspire Academy - Hull",130478,"Academy","Academy"]
[130477,"Aspire Academy, The - Worcester",130477,"Academy","Academy"]
[119718,"Aston Academy - Rotherham",119718,"Academy","Academy"]
[131233,"Aston All Saints CofE (A) Primary School",131233,"Academy","Academy"]
[119882,"Aston Manor Academy - Birmingham",119882,"Academy","Academy"]
[122150,"Aston University Engineering Academy",122150,"Academy","Academy"]
[122113,"Astor College",122113,"Academy","Academy"]
[124767,"Astwood Bank First School",124767,"Academy","Academy"]
[121960,"Atherton Community School",121960,"Academy","Academy"]
[121210,"Atkinson Road Primary School",121210,"Academy","Academy"]
[132676,"Atrium Studio School",132676,"Academy","Academy"]
[127652,"Attleborough Academy Norfolk",127652,"Academy","Academy"]
[128107,"Atwood Primary Academy",128107,"Academy","Academy"]
[120431,"Auckley School",120431,"Academy","Academy"]
[119350,"Audenshaw School",119350,"Academy","Academy"]
[130769,"Austin Farm Primary School",130769,"Academy","Academy"]
[123227,"Austrey CofE Primary School",123227,"Academy","Academy"]
[133034,"Avanti Court Primary School",133034,"Academy","Academy"]
[123026,"Avanti House School",123026,"Academy","Academy"]
[121137,"Avenue Primary Academy",121137,"Academy","Academy"]
[130057,"Avenue Primary School and Children's Centre, The",130057,"Academy","Academy"]
[120383,"Avenue School, The",120383,"Academy","Academy"]
[122910,"Aveton Gifford CofE Primary School",122910,"Academy","Academy"]
[120174,"Avishayes Community Primary School",120174,"Academy","Academy"]
[121944,"Avonbourne College",121944,"Academy","Academy"]
[122395,"Axbridge Church of England First School",122395,"Academy","Academy"]
[120982,"Axholme Academy, The",120982,"Academy","Academy"]
[131150,"Axminster Community Primary School",131150,"Academy","Academy"]
[119884,"Aylesbury Grammar School",119884,"Academy","Academy"]
[119846,"Aylesbury High School",119846,"Academy","Academy"]
[118894,"Aylesbury Vale Academy, The",118894,"Academy","Academy"]
[124228,"Aylesford Primary School",124228,"Academy","Academy"]
[120810,"Aylesford School and Sixth Form College",120810,"Academy","Academy"]
[119211,"Aylward Academy - Enfield",119211,"Academy","Academy"]
[130326,"Aylward Primary School - Stanmore",130326,"Academy","Academy"]
[119719,"Backwell School",119719,"Academy","Academy"]
[118383,"Bacon's College",118383,"Academy","Academy"]
[122800,"Bacup and Rawtenstall Grammar School",122800,"Academy","Academy"]
[129893,"Badby School",129893,"Academy","Academy"]
[124819,"Baird Primary Academy, The",124819,"Academy","Academy"]
[124987,"Balby Carr Community Academy",124987,"Academy","Academy"]
[119474,"Balcarras School",119474,"Academy","Academy"]
[130747,"Baldwins Hill Primary School, East Grinstead",130747,"Academy","Academy"]
[120216,"Balgowan Primary School",120216,"Academy","Academy"]
[122160,"Balsall Common Primary School",122160,"Academy","Academy"]
[120360,"Bamford Academy",120360,"Academy","Academy"]
[131548,"Bampton CofE Primary School",131548,"Academy","Academy"]
[120641,"Banbury Academy",120641,"Academy","Academy"]
[122940,"Bannerman Road Community Academy",122940,"Academy","Academy"]
[130643,"Banovallum School, The",130643,"Academy","Academy"]
[128240,"Banstead Infant School",128240,"Academy","Academy"]
[122338,"Barbara Priestman School",122338,"Academy","Academy"]
[129895,"Barby Church of England Primary School",129895,"Academy","Academy"]
[122408,"Barclay Primary School",122408,"Academy","Academy"]
[130149,"Barlestone Church of England Primary School",130149,"Academy","Academy"]
[121426,"Barnby Dun Primary Academy",121426,"Academy","Academy"]
[119256,"Barnby Road Academy Primary and Nursery school",119256,"Academy","Academy"]
[126400,"Barnehurst Infant School",126400,"Academy","Academy"]
[126291,"Barnehurst Junior School",126291,"Academy","Academy"]
[130703,"Barnes Infant Academy",130703,"Academy","Academy"]
[123951,"Barnes Wallis Academy, The",123951,"Academy","Academy"]
[119325,"Barnfield Business and Enterprise Studio",119325,"Academy","Academy"]
[120524,"Barnfield Moorlands Free School",120524,"Academy","Academy"]
[118599,"Barnfield South Academy Luton",118599,"Academy","Academy"]
[120860,"Barnfield Vale Academy - Dunstable",120860,"Academy","Academy"]
[118600,"Barnfield West Academy Luton",118600,"Academy","Academy"]
[132458,"Barnham Primary School",132458,"Academy","Academy"]
[120071,"Barnhill Community High School",120071,"Academy","Academy"]
[127442,"Barnsbury Primary School",127442,"Academy","Academy"]
[118649,"Barnsley Academy",118649,"Academy","Academy"]
[127259,"Barnwell Academy",127259,"Academy","Academy"]
[119885,"Barr Beacon School",119885,"Academy","Academy"]
[121961,"Barrow 1618 CofE Free School",121961,"Academy","Academy"]
[124068,"Barrow Hall Orchard Church of England Primary School",124068,"Academy","Academy"]
[122903,"Barrs Court School",122903,"Academy","Academy"]
[132400,"Barr's Hill School and Community College",132400,"Academy","Academy"]
[120914,"Bartholomew School",120914,"Academy","Academy"]
[119552,"Bartley Green School",119552,"Academy","Academy"]
[120444,"Barton Court Grammar School",120444,"Academy","Academy"]
[120920,"Barton Hill Academy - Torquay",120920,"Academy","Academy"]
[130771,"Barton Hill Primary - Bristol",130771,"Academy","Academy"]
[122170,"Barton Junior School",122170,"Academy","Academy"]
[122989,"Barwell Church of England Junior School",122989,"Academy","Academy"]
[119146,"Basildon Lower Academy, The",119146,"Academy","Academy"]
[119147,"Basildon Upper Academy, The",119147,"Academy","Academy"]
[120401,"Bassingbourn Village College",120401,"Academy","Academy"]
[120949,"Bath Community Academy",120949,"Academy","Academy"]
[130578,"Bath Studio School, The",130578,"Academy","Academy"]
[120432,"Batley Girls High School",120432,"Academy","Academy"]
[120487,"Batley Grammar School",120487,"Academy","Academy"]
[132495,"Batt Church of England Voluntary Aided Primary School, The",132495,"Academy","Academy"]
[122633,"Battle Primary Academy",122633,"Academy","Academy"]
[124192,"Battling Brook Primary School",124192,"Academy","Academy"]
[124250,"Baverstock Academy, The",124250,"Academy","Academy"]
[122417,"Baxter College",122417,"Academy","Academy"]
[120781,"Bay House School",120781,"Academy","Academy"]
[130923,"Bayards Hill School",130923,"Academy","Academy"]
[120259,"Baylis Court School",120259,"Academy","Academy"]
[121045,"BBG Academy",121045,"Academy","Academy"]
[129561,"Beachcroft Ap Academy",129561,"Academy","Academy"]
[122916,"Beacon Academy - Loughborough",122916,"Academy","Academy"]
[113087,"Beacon Community College - Crowborough",113087,"Academy","Academy"]
[121872,"Beacon Hill Academy",121872,"Academy","Academy"]
[130416,"Beacon Primary Academy",130416,"Academy","Academy"]
[120708,"Beacon School, The - Banstead",120708,"Academy","Academy"]
[122635,"Beacon View Primary Academy",122635,"Academy","Academy"]
[127317,"Beaconsfield High School",127317,"Academy","Academy"]
[123082,"Beaconsfield School, The",123082,"Academy","Academy"]
[130483,"Beal Business Innovation Hub",130483,"Academy","Academy"]
[129576,"Beal High School",129576,"Academy","Academy"]
[129542,"Beaminster St Mary's Academy",129542,"Academy","Academy"]
[122491,"Beamont Collegiate",122491,"Academy","Academy"]
[122248,"Beanfield Primary School",122248,"Academy","Academy"]
[113692,"Beauchamp College",113692,"Academy","Academy"]
[125001,"Beaufort Co-operative Academy",125001,"Academy","Academy"]
[126292,"Beaufort Primary School - Woking",126292,"Academy","Academy"]
[120531,"Beaumont Hill Academy",120531,"Academy","Academy"]
[122174,"Beaumont School",122174,"Academy","Academy"]
[131967,"Beaver Green Primary School",131967,"Academy","Academy"]
[125217,"Beaver Road Primary School",125217,"Academy","Academy"]
[122025,"Beccles Free School",122025,"Academy","Academy"]
[132326,"Beccles Primary Academy",132326,"Academy","Academy"]
[132274,"Beck Primary School",132274,"Academy","Academy"]
[121966,"Becket Keys Church of England Free School",121966,"Academy","Academy"]
[120279,"Becket School, The",120279,"Academy","Academy"]
[121064,"Beckfoot School",121064,"Academy","Academy"]
[131540,"Beckfoot Upper Heaton",131540,"Academy","Academy"]
[132223,"Beddington Park Primary School",132223,"Academy","Academy"]
[118883,"Bede Academy",118883,"Academy","Academy"]
[119151,"Bedford Academy",119151,"Academy","Academy"]
[122011,"Bedford Free School",122011,"Academy","Academy"]
[124687,"Bedford Hall Methodist Primary School",124687,"Academy","Academy"]
[120556,"Bedminster Down School",120556,"Academy","Academy"]
[130154,"Beech Academy, The - Mansfield",130154,"Academy","Academy"]
[120433,"Beech Hill Junior and Infant School - Halifax",120433,"Academy","Academy"]
[119570,"Beechen Cliff School",119570,"Academy","Academy"]
[125244,"Beechwood Junior School",125244,"Academy","Academy"]
[124120,"Beecroft Academy",124120,"Academy","Academy"]
[132344,"Beeston Fields Primary School and Nursery",132344,"Academy","Academy"]
[122143,"Begbrook Primary Academy",122143,"Academy","Academy"]
[120898,"Beis Yaakov High School",120898,"Academy","Academy"]
[120834,"Belfairs Academy",120834,"Academy","Academy"]
[119546,"Belgrave St Bartholomew's Academy",119546,"Academy","Academy"]
[132634,"Belham Primary School, The",132634,"Academy","Academy"]
[132922,"Bell Lane Primary (J and I) School",132922,"Academy","Academy"]
[120720,"Belle Vue Girls' School",120720,"Academy","Academy"]
[122087,"Bellerive FCJ Catholic College",122087,"Academy","Academy"]
[120640,"Belleville Primary School",120640,"Academy","Academy"]
[124079,"Bellfield Primary School",124079,"Academy","Academy"]
[122972,"Belmont Castle Academy",122972,"Academy","Academy"]
[122850,"Belmore Primary Academy",122850,"Academy","Academy"]
[120507,"Belthorn Academy Primary School",120507,"Academy","Academy"]
[118601,"Belvedere Academy, The",118601,"Academy","Academy"]
[122812,"Belvedere Junior School",122812,"Academy","Academy"]
[122736,"Belvoir High School and Melton Vale Post 16 Centre",122736,"Academy","Academy"]
[121022,"Benedict Biscop Church of England Academy",121022,"Academy","Academy"]
[127409,"Benedict Primary School",127409,"Academy","Academy"]
[127642,"Bengeworth CE Academy",127642,"Academy","Academy"]
[120676,"Benjamin Adlard Primary School",120676,"Academy","Academy"]
[119633,"Bennett Memorial Diocesan School",119633,"Academy","Academy"]
[124781,"Bentley Heath Church of England Primary School",124781,"Academy","Academy"]
[120178,"Bentley Wood High School",120178,"Academy","Academy"]
[123282,"Benyon Primary School",123282,"Academy","Academy"]
[130411,"Berewood Primary School",130411,"Academy","Academy"]
[131992,"Berkeley Academy, The",131992,"Academy","Academy"]
[129809,"Berrybrook Primary School",129809,"Academy","Academy"]
[120647,"Berwick Academy",120647,"Academy","Academy"]
[131886,"Bethany Church of England Junior School",131886,"Academy","Academy"]
[120739,"Bethnal Green Academy",120739,"Academy","Academy"]
[119278,"Beths Grammar School",119278,"Academy","Academy"]
[130772,"Beulah Infants' School",130772,"Academy","Academy"]
[119995,"Beverley Grammar School",119995,"Academy","Academy"]
[121160,"Bewbush Academy, The",121160,"Academy","Academy"]
[119487,"Bexhill Academy",119487,"Academy","Academy"]
[122894,"Bexhill High Academy",122894,"Academy","Academy"]
[119389,"Bexley Grammar School",119389,"Academy","Academy"]
[120138,"Bexleyheath Academy",120138,"Academy","Academy"]
[131789,"Bicester School, The",131789,"Academy","Academy"]
[120895,"Bickleigh on Exe Church of England Primary School",120895,"Academy","Academy"]
[124397,"Biddick Academy",124397,"Academy","Academy"]
[120427,"Biddulph High School",120427,"Academy","Academy"]
[132391,"Bideford College",132391,"Academy","Academy"]
[130496,"Big Creative Academy",130496,"Academy","Academy"]
[120244,"Biggin Hill Primary School - Bromley",120244,"Academy","Academy"]
[122915,"Biggin Hill Primary School - Hull",122915,"Academy","Academy"]
[120576,"Biggleswade Academy",120576,"Academy","Academy"]
[121967,"Bilingual Primary School - Brighton & Hove",121967,"Academy","Academy"]
[119861,"Billericay School, The",119861,"Academy","Academy"]
[122846,"Billesley Primary School",122846,"Academy","Academy"]
[125231,"Billing Brook Special School",125231,"Academy","Academy"]
[131994,"Bilsthorpe Flying High Academy",131994,"Academy","Academy"]
[120838,"Bilton School",120838,"Academy","Academy"]
[123862,"Birchills Church of England Community Academy",123862,"Academy","Academy"]
[124126,"Birchwood Community High School - Warrington",124126,"Academy","Academy"]
[120632,"Birchwood High School - Bishop's Stortford",120632,"Academy","Academy"]
[122649,"Birchwood Primary School - Tamworth",122649,"Academy","Academy"]
[124162,"Birdwell Primary School",124162,"Academy","Academy"]
[120297,"Birkdale High School",120297,"Academy","Academy"]
[118888,"Birkenhead High School Academy",118888,"Academy","Academy"]
[119444,"Birkenhead Park School, The",119444,"Academy","Academy"]
[129418,"Birklands Primary School",129418,"Academy","Academy"]
[119944,"Birmingham Ormiston Academy",119944,"Academy","Academy"]
[123240,"Birstall Primary Academy",123240,"Academy","Academy"]
[120945,"Biscovey Academy",120945,"Academy","Academy"]
[129240,"Bishop Alexander L.E.A.D. Academy",129240,"Academy","Academy"]
[127392,"Bishop Bronescombe CofE School",127392,"Academy","Academy"]
[132402,"Bishop Carpenter Church of England Aided Primary School",132402,"Academy","Academy"]
[119720,"Bishop Creighton Academy",119720,"Academy","Academy"]
[132357,"Bishop David Brown School, The",132357,"Academy","Academy"]
[119851,"Bishop Fox's School",119851,"Academy","Academy"]
[119466,"Bishop Justus CofE School",119466,"Academy","Academy"]
[130605,"Bishop Lonsdale Church of England Primary School and Nursery",130605,"Academy","Academy"]
[127604,"Bishop Luffa Church of England School, Chichester",127604,"Academy","Academy"]
[124380,"Bishop Milner Catholic College",124380,"Academy","Academy"]
[119200,"Bishop of Winchester Academy, The",119200,"Academy","Academy"]
[121136,"Bishop Perowne CofE College",121136,"Academy","Academy"]
[120457,"Bishop Ramsey Church of England School",120457,"Academy","Academy"]
[120296,"Bishop Rawstorne Church of England Academy",120296,"Academy","Academy"]
[120086,"Bishop Stopford School",120086,"Academy","Academy"]
[120745,"Bishop Vesey's Grammar School",120745,"Academy","Academy"]
[123911,"Bishop Walsh Catholic School",123911,"Academy","Academy"]
[122089,"Bishop Wand Church of England School, The",122089,"Academy","Academy"]
[119500,"Bishop Wordsworth's Grammar School",119500,"Academy","Academy"]
[119587,"Bishops' Blue Coat Church of England High School, The",119587,"Academy","Academy"]
[120271,"Bishops Cleeve Primary School",120271,"Academy","Academy"]
[120821,"Bishop's Hatfield Girls' School",120821,"Academy","Academy"]
[133234,"Bishops Lydeard Church of England Voluntary Controlled Primary School",133234,"Academy","Academy"]
[120519,"Bishopshalt School",120519,"Academy","Academy"]
[120021,"Bishopton Redmarshall CofE Primary School",120021,"Academy","Academy"]
[132193,"Bitterley CofE Primary School (Aided)",132193,"Academy","Academy"]
[119933,"Black Country UTC",119933,"Academy","Academy"]
[130776,"Black Firs Primary School",130776,"Academy","Academy"]
[124784,"Blackawton Primary School",124784,"Academy","Academy"]
[121186,"Blackfen School for Girls",121186,"Academy","Academy"]
[131145,"Blackfield Primary School",131145,"Academy","Academy"]
[130726,"Blackfriars School",130726,"Academy","Academy"]
[127877,"Blackpool Aspire Academy",127877,"Academy","Academy"]
[131219,"Blackpool Baines Endowed Church of England Voluntary Aided Primary School",131219,"Academy","Academy"]
[120479,"Blackpool Church of England Primary School",120479,"Academy","Academy"]
[133008,"Blackpool Gateway Academy",133008,"Academy","Academy"]
[122845,"Blackthorn Primary School",122845,"Academy","Academy"]
[132059,"Blackthorns Community Primary Academy",132059,"Academy","Academy"]
[132063,"Blackwater Community Primary School",132063,"Academy","Academy"]
[131403,"Blake Church of England Primary School, The",131403,"Academy","Academy"]
[130704,"Blandford St Mary Church of England Primary School",130704,"Academy","Academy"]
[120717,"Blenheim High School",120717,"Academy","Academy"]
[130699,"Blessed George Napier Catholic School and Sports College",130699,"Academy","Academy"]
[132919,"Blessed Mother Teresa's Catholic Primary School",132919,"Academy","Academy"]
[120042,"Blessed Robert Widmerpool Catholic Primary and Nursery School",120042,"Academy","Academy"]
[132907,"Blessed William Howard Catholic School",132907,"Academy","Academy"]
[120799,"Blockley Church of England Primary School",120799,"Academy","Academy"]
[120274,"Bloxwich Academy",120274,"Academy","Academy"]
[124253,"Blue Bell Hill Primary and Nursery School",124253,"Academy","Academy"]
[122313,"Blue Coat Church of England Academy, Walsall",122313,"Academy","Academy"]
[120275,"Blue Coat Church of England School and Music College",120275,"Academy","Academy"]
[120133,"Blue Coat CofE School, The - Oldham",120133,"Academy","Academy"]
[120903,"Blue Coat School, The - Liverpool",120903,"Academy","Academy"]
[120285,"Blue School, The - Wells",120285,"Academy","Academy"]
[120792,"Bluecoat Academy - Nottingham",120792,"Academy","Academy"]
[128027,"Bluecoat Beechdale Academy, The",128027,"Academy","Academy"]
[113218,"Blyth Academy, The",113218,"Academy","Academy"]
[127643,"Bobbing Village School",127643,"Academy","Academy"]
[124087,"Boddington Church of England Voluntary School",124087,"Academy","Academy"]
[119408,"Bodmin College",119408,"Academy","Academy"]
[119584,"Bodriggy Academy",119584,"Academy","Academy"]
[119646,"Bohunt School",119646,"Academy","Academy"]
[131993,"Bohunt School Worthing",131993,"Academy","Academy"]
[122013,"Bolingbroke Academy",122013,"Academy","Academy"]
[120597,"Bolsover School, The",120597,"Academy","Academy"]
[120434,"Bolton Brow Primary Academy",120434,"Academy","Academy"]
[119135,"Bolton St Catherine's Academy",119135,"Academy","Academy"]
[130559,"Bolton Wanderers Free School",130559,"Academy","Academy"]
[124702,"Boothroyd Primary Academy",124702,"Academy","Academy"]
[120721,"Borden Grammar School",120721,"Academy","Academy"]
[123054,"Boston Grammar School, The",123054,"Academy","Academy"]
[122993,"Boston High School",122993,"Academy","Academy"]
[123293,"Boston Pioneers Free School Academy",123293,"Academy","Academy"]
[122016,"Boston West Primary School",122016,"Academy","Academy"]
[120999,"Boswells School, The",120999,"Academy","Academy"]
[121188,"Bosworth Academy",121188,"Academy","Academy"]
[122714,"Bottesford Church of England Primary School",122714,"Academy","Academy"]
[119687,"Bottisham Village College",119687,"Academy","Academy"]
[131457,"Boughton Heath Primary School",131457,"Academy","Academy"]
[121833,"Boughton Primary School",121833,"Academy","Academy"]
[122527,"Boulevard Academy, The",122527,"Academy","Academy"]
[120572,"Bourn CofE Primary Academy",120572,"Academy","Academy"]
[119379,"Bourne Abbey Church of England Primary Academy",119379,"Academy","Academy"]
[120400,"Bourne Academy - Bourne",120400,"Academy","Academy"]
[119201,"Bourne Academy, The - Bournemouth",119201,"Academy","Academy"]
[129247,"Bourne Elsea Park Church of England Primary Academy",129247,"Academy","Academy"]
[126461,"Bourne End Academy",126461,"Academy","Academy"]
[120801,"Bourne Grammar School - Bourne",120801,"Academy","Academy"]
[120639,"Bourne Westfield Primary Academy",120639,"Academy","Academy"]
[120387,"Bournemouth School",120387,"Academy","Academy"]
[119996,"Bournemouth School for Girls",119996,"Academy","Academy"]
[120748,"Bournville School and Sixth Form Centre",120748,"Academy","Academy"]
[120734,"Bourton Meadow Academy",120734,"Academy","Academy"]
[120736,"Bourton-on-the-Water Primary School",120736,"Academy","Academy"]
[119825,"Bovingdon Primary Academy",119825,"Academy","Academy"]
[123072,"Bower Park Academy",123072,"Academy","Academy"]
[131423,"Bowerhill Primary School",131423,"Academy","Academy"]
[119997,"Bowland High",119997,"Academy","Academy"]
[132384,"Bowness Primary School",132384,"Academy","Academy"]
[124514,"Boxgrove Primary School",124514,"Academy","Academy"]
[129560,"Boyton Community Primary School",129560,"Academy","Academy"]
[123122,"Bracebridge Infant and Nursery School",123122,"Academy","Academy"]
[124513,"Braddock CofE Primary School",124513,"Academy","Academy"]
[120972,"Bradfield School - Sheffield",120972,"Academy","Academy"]
[128020,"Bradfields Academy - Chatham",128020,"Academy","Academy"]
[118603,"Bradford Academy",118603,"Academy","Academy"]
[131873,"Bradford Forster Academy",131873,"Academy","Academy"]
[123294,"Bradford Girls' Grammar School",123294,"Academy","Academy"]
[122530,"Bradford Studio School",122530,"Academy","Academy"]
[120766,"Bradley Stoke Community School",120766,"Academy","Academy"]
[132018,"Bradon Forest School",132018,"Academy","Academy"]
[121004,"Bradshaw Primary School",121004,"Academy","Academy"]
[132097,"Bradwell County Primary School",132097,"Academy","Academy"]
[119492,"Bradworthy Primary Academy",119492,"Academy","Academy"]
[129595,"Braiswick Primary School",129595,"Academy","Academy"]
[131602,"Braithwaite CofE Primary School",131602,"Academy","Academy"]
[131418,"Bramble Academy, The",131418,"Academy","Academy"]
[122242,"Brambles Primary Academy",122242,"Academy","Academy"]
[130722,"Brambleside Primary School",130722,"Academy","Academy"]
[122719,"Bramcote School, The",122719,"Academy","Academy"]
[123893,"Bramford Primary School",123893,"Academy","Academy"]
[130838,"Bramley Grange Primary School",130838,"Academy","Academy"]
[119684,"Brampton Manor Academy",119684,"Academy","Academy"]
[130700,"Brampton Primary Academy",130700,"Academy","Academy"]
[120617,"Bransgore Church of England Primary School",120617,"Academy","Academy"]
[119378,"Branston Community Academy",119378,"Academy","Academy"]
[122339,"Branston Junior Academy",122339,"Academy","Academy"]
[129896,"Braunston Church of England Primary School",129896,"Academy","Academy"]
[120993,"Braunton Academy",120993,"Academy","Academy"]
[131830,"Brayford Academy",131830,"Academy","Academy"]
[130485,"Braywick Court School",130485,"Academy","Academy"]
[129429,"Brent Primary School, The",129429,"Academy","Academy"]
[122944,"Brentford School for Girls",122944,"Academy","Academy"]
[123055,"Brentside Primary School",123055,"Academy","Academy"]
[128090,"Brentwood County High School",128090,"Academy","Academy"]
[122961,"Brentwood Ursuline Convent High School",122961,"Academy","Academy"]
[122799,"Briar Hill Primary School",122799,"Academy","Academy"]
[124245,"Bricknell Primary School",124245,"Academy","Academy"]
[126429,"Bridge Academy - Milton Keynes",126429,"Academy","Academy"]
[118650,"Bridge Academy, The - Hackney",118650,"Academy","Academy"]
[122831,"Bridge AP Academy, The - Hammersmith and Fulham",122831,"Academy","Academy"]
[131697,"Bridge Integrated Learning Space, The",131697,"Academy","Academy"]
[120926,"Bridge Learning Campus - Bristol",120926,"Academy","Academy"]
[121885,"Bridgemary School",121885,"Academy","Academy"]
[132029,"Bridgeview Special School",132029,"Academy","Academy"]
[131359,"Bridgewater High School",131359,"Academy","Academy"]
[124825,"Bridgewater Park Primary School",124825,"Academy","Academy"]
[122900,"Bridgnorth Endowed School",122900,"Academy","Academy"]
[120953,"Bridgwater College Academy",120953,"Academy","Academy"]
[119609,"Brighouse High School",119609,"Academy","Academy"]
[119232,"Brighton Aldridge Community Academy",119232,"Academy","Academy"]
[122683,"Brill Church of England Combined School",122683,"Academy","Academy"]
[119250,"Brine Leas School",119250,"Academy","Academy"]
[130876,"Bringhurst Primary School",130876,"Academy","Academy"]
[119279,"Brinsworth Comprehensive School",119279,"Academy","Academy"]
[122142,"Briscoe Lane Academy",122142,"Academy","Academy"]
[121877,"Briscoe Primary School & Nursery Academy",121877,"Academy","Academy"]
[123843,"Bristnall Hall Academy",123843,"Academy","Academy"]
[118609,"Bristol Brunel Academy",118609,"Academy","Academy"]
[118660,"Bristol Cathedral Choir School",118660,"Academy","Academy"]
[120522,"Bristol Free School",120522,"Academy","Academy"]
[119139,"Bristol Metropolitan Academy",119139,"Academy","Academy"]
[122153,"Bristol Technology and Engineering Academy",122153,"Academy","Academy"]
[118384,"BRIT School for the Performing Arts & Technology, The",118384,"Academy","Academy"]
[132635,"British Sikh School, The",132635,"Academy","Academy"]
[119558,"Brittons Academy, The",119558,"Academy","Academy"]
[120789,"Brixham College",120789,"Academy","Academy"]
[132387,"Brixington Primary School",132387,"Academy","Academy"]
[133070,"Brize Norton Primary School",133070,"Academy","Academy"]
[119258,"Broadclyst Primary Academy",119258,"Academy","Academy"]
[122284,"Broadfield East Infant School and Nursery - Crawley",122284,"Academy","Academy"]
[122064,"Broadfield East Junior School - Crawley",122064,"Academy","Academy"]
[124302,"Broadfields Primary School - Edgeware",124302,"Academy","Academy"]
[122287,"Broadlands Academy",122287,"Academy","Academy"]
[130071,"Broadmead Primary School",130071,"Academy","Academy"]
[123856,"Broadmere Community Primary School",123856,"Academy","Academy"]
[120912,"Broadoak Mathematics and Computing College",120912,"Academy","Academy"]
[120550,"Broadoak Primary School - Salford",120550,"Academy","Academy"]
[122012,"Broadoak School - Trafford",122012,"Academy","Academy"]
[130881,"Broadstone First School",130881,"Academy","Academy"]
[131132,"Broadstone Middle School",131132,"Academy","Academy"]
[124188,"Broadway Academy",124188,"Academy","Academy"]
[120599,"Brockhampton Primary School",120599,"Academy","Academy"]
[120466,"Brockhill Park Performing Arts College",120466,"Academy","Academy"]
[122370,"Brockington College",122370,"Academy","Academy"]
[131382,"Brocklewood Primary and Nursery School",131382,"Academy","Academy"]
[124323,"Brocks Hill Primary School",124323,"Academy","Academy"]
[121848,"Brockworth Primary Academy",121848,"Academy","Academy"]
[131119,"Broken Cross Primary Academy and Nursery",131119,"Academy","Academy"]
[123077,"Bromfords School and Sixth Form College, The",123077,"Academy","Academy"]
[132297,"Bromley Beacon Academy",132297,"Academy","Academy"]
[130145,"Bromley Trust Alternative Provision Academy",130145,"Academy","Academy"]
[131062,"Bromley-Pensnett Primary School, The",131062,"Academy","Academy"]
[119167,"Brompton Academy",119167,"Academy","Academy"]
[130359,"Brompton-Westbrook Primary School",130359,"Academy","Academy"]
[131478,"Brook House Primary School",131478,"Academy","Academy"]
[120065,"Brooke Hill Academy",120065,"Academy","Academy"]
[118385,"Brooke Weston Academy",118385,"Academy","Academy"]
[119537,"Brookfield Academy Trust - Chesterfield",119537,"Academy","Academy"]
[122405,"Brookfield House School - Woodford Green",122405,"Academy","Academy"]
[127103,"Brookfield Primary Academy -  Swinton",127103,"Academy","Academy"]
[130344,"Brookfield School, The",130344,"Academy","Academy"]
[120638,"Brooklands Middle School",120638,"Academy","Academy"]
[120495,"Brooksbank School, The",120495,"Academy","Academy"]
[119826,"Brookside Community Primary School - Street",119826,"Academy","Academy"]
[122808,"Brookside Primary School - Hayes",122808,"Academy","Academy"]
[122091,"Brookvale High School - Groby",122091,"Academy","Academy"]
[122695,"Brookvale Primary School - Erdington",122695,"Academy","Academy"]
[132370,"Brookwood Primary School",132370,"Academy","Academy"]
[122960,"Broom Leys School",122960,"Academy","Academy"]
[122368,"Broomfield Community Primary School",122368,"Academy","Academy"]
[130928,"Brotherton and Byram Community Primary Academy",130928,"Academy","Academy"]
[121902,"Broughton Jewish Cassel Fox Primary School",121902,"Academy","Academy"]
[120605,"Broughton Primary School",120605,"Academy","Academy"]
[126485,"Browney Primary Academy",126485,"Academy","Academy"]
[121963,"Brownhill Primary Academy",121963,"Academy","Academy"]
[130342,"Brownlow Primary School",130342,"Academy","Academy"]
[131169,"Brownmead Junior and Infant School",131169,"Academy","Academy"]
[119410,"Broxbourne School, The",119410,"Academy","Academy"]
[119957,"Brunel Primary & Nursery Academy",119957,"Academy","Academy"]
[132379,"Bruntcliffe Academy",132379,"Academy","Academy"]
[120785,"Brunts Academy, The",120785,"Academy","Academy"]
[123954,"Brymore Academy",123954,"Academy","Academy"]
[120593,"Buckden CofE Primary School",120593,"Academy","Academy"]
[119679,"Buckfastleigh Primary School",119679,"Academy","Academy"]
[129954,"Buckingham Primary Academy",129954,"Academy","Academy"]
[122154,"Buckinghamshire UTC",122154,"Academy","Academy"]
[124562,"Buckland Church of England Primary School",124562,"Academy","Academy"]
[131732,"Buckland St Mary Church of England Primary School",131732,"Academy","Academy"]
[120193,"Bucklers Mead Academy",120193,"Academy","Academy"]
[131136,"Budbrooke Primary School",131136,"Academy","Academy"]
[122912,"Bude Park Primary School",122912,"Academy","Academy"]
[133668,"Buildwas Primary School",133668,"Academy","Academy"]
[119721,"Bullers Wood School",119721,"Academy","Academy"]
[118884,"Bulwell Academy, The",118884,"Academy","Academy"]
[119998,"Bungay High School",119998,"Academy","Academy"]
[123286,"Burbage Primary School",123286,"Academy","Academy"]
[131127,"Burchetts Green CofE Infants' School",131127,"Academy","Academy"]
[132951,"Burford Primary School",132951,"Academy","Academy"]
[121840,"Burford School and Community College",121840,"Academy","Academy"]
[119737,"Burgate School and Sixth Form, The",119737,"Academy","Academy"]
[120629,"Burghill Community Primary School",120629,"Academy","Academy"]
[118604,"Burlington Danes Academy",118604,"Academy","Academy"]
[126456,"Burnage Academy for Boys",126456,"Academy","Academy"]
[132924,"Burnbush Primary School",132924,"Academy","Academy"]
[120551,"Burnham Grammar School",120551,"Academy","Academy"]
[130487,"Burnley High School",130487,"Academy","Academy"]
[120435,"Burnley Road Academy",120435,"Academy","Academy"]
[132452,"Burnt Ash Primary School",132452,"Academy","Academy"]
[120833,"Burnt Mill Comprehensive School",120833,"Academy","Academy"]
[131976,"Burnt Oak Junior School",131976,"Academy","Academy"]
[124381,"Burntwood School",124381,"Academy","Academy"]
[120026,"Burrington Church of England Controlled Primary School",120026,"Academy","Academy"]
[124979,"Burrowmoor Primary School",124979,"Academy","Academy"]
[124684,"Burrsville Infant Academy",124684,"Academy","Academy"]
[121143,"Bursar Primary Academy",121143,"Academy","Academy"]
[121042,"Bursley Academy",121042,"Academy","Academy"]
[124678,"Bursted Wood Primary School",124678,"Academy","Academy"]
[130740,"Burton End Community Primary School",130740,"Academy","Academy"]
[120512,"Burton Morewood CofE Primary School",120512,"Academy","Academy"]
[123367,"Bury CofE Primary School",123367,"Academy","Academy"]
[119990,"Bury St Edmunds County Upper School",119990,"Academy","Academy"]
[119103,"Bushey Academy, THe",119103,"Academy","Academy"]
[121008,"Bushey Meads School",121008,"Academy","Academy"]
[122601,"Bushloe High School",122601,"Academy","Academy"]
[118403,"Business Academy Bexley, The",118403,"Academy","Academy"]
[119722,"Buttsbury Junior School",119722,"Academy","Academy"]
[120844,"By Brook Valley CofE Primary School",120844,"Academy","Academy"]
[122801,"Byrchall High School, The",122801,"Academy","Academy"]
[133181,"Byron Primary School",133181,"Academy","Academy"]
[122112,"Caister Academy",122112,"Academy","Academy"]
[119377,"Caistor Grammar School",119377,"Academy","Academy"]
[119958,"Caistor Yarborough Academy",119958,"Academy","Academy"]
[121860,"Calday Grange Grammar School",121860,"Academy","Academy"]
[120254,"Caldew School",120254,"Academy","Academy"]
[123882,"Caldicotes Primary Academy",123882,"Academy","Academy"]
[131465,"Callicroft Primary School",131465,"Academy","Academy"]
[119608,"Callington Community College",119608,"Academy","Academy"]
[129568,"Callington Primary School",129568,"Academy","Academy"]
[130313,"Calthorpe Teaching Academy",130313,"Academy","Academy"]
[120328,"Caludon Castle School",120328,"Academy","Academy"]
[119596,"Camborne Science and International Academy",119596,"Academy","Academy"]
[123295,"Cambourne Village College",123295,"Academy","Academy"]
[120437,"Cambridge Park Academy",120437,"Academy","Academy"]
[120347,"Campion School - Leamington Spa",120347,"Academy","Academy"]
[120087,"Campion School - Northampton",120087,"Academy","Academy"]
[120040,"Campion School, The - Hornchurch",120040,"Academy","Academy"]
[120489,"Campsmount (A Co-Operative Academy)",120489,"Academy","Academy"]
[120494,"Cams Hill School",120494,"Academy","Academy"]
[120467,"Canary Wharf College",120467,"Academy","Academy"]
[130488,"Canary Wharf College 2",130488,"Academy","Academy"]
[131378,"Canford Heath Infant School",131378,"Academy","Academy"]
[130871,"Canford Heath Junior School",130871,"Academy","Academy"]
[124559,"Canklow Woods Primary School",124559,"Academy","Academy"]
[122279,"Cann Hall Primary School",122279,"Academy","Academy"]
[120423,"Cannock Chase High School",120423,"Academy","Academy"]
[130762,"Canon Peter Hall CofE Primary School, The",130762,"Academy","Academy"]
[121115,"Canon Pyon CofE Primary School",121115,"Academy","Academy"]
[132374,"Canon Sharples Church of England Primary School and Nursery",132374,"Academy","Academy"]
[120199,"Canons High School",120199,"Academy","Academy"]
[119281,"Canterbury Academy, The",119281,"Academy","Academy"]
[119282,"Canterbury Primary School, The",119282,"Academy","Academy"]
[118386,"Capital City Academy",118386,"Academy","Academy"]
[124187,"Captains Close Primary School",124187,"Academy","Academy"]
[131209,"Carclaze Community Primary School",131209,"Academy","Academy"]
[120889,"Cardinal Hume Catholic School",120889,"Academy","Academy"]
[132426,"Cardinal Newman Catholic School",132426,"Academy","Academy"]
[132002,"Cardinal Vaughan Memorial RC School, The",132002,"Academy","Academy"]
[132319,"Cardinal Wiseman Catholic School and Language College",132319,"Academy","Academy"]
[123956,"Carew Academy",123956,"Academy","Academy"]
[123252,"Carleton Community High School",123252,"Academy","Academy"]
[120085,"Carlton Academy",120085,"Academy","Academy"]
[119542,"Carlton Le Willows Academy",119542,"Academy","Academy"]
[122772,"Carlton Primary Academy",122772,"Academy","Academy"]
[121234,"Carlton Road Academy",121234,"Academy","Academy"]
[120603,"Carmel College",120603,"Academy","Academy"]
[122114,"Carmountside Primary Academy",122114,"Academy","Academy"]
[120089,"Caroline Chisholm School",120089,"Academy","Academy"]
[129591,"Carr Lodge Academy",129591,"Academy","Academy"]
[122708,"Carradon PRU",122708,"Academy","Academy"]
[120213,"Carre's Grammar School",120213,"Academy","Academy"]
[121198,"Carrfield Primary Academy",121198,"Academy","Academy"]
[119760,"Carshalton Boys Sports College",119760,"Academy","Academy"]
[119761,"Carshalton High School for Girls",119761,"Academy","Academy"]
[122880,"Carter Community School",122880,"Academy","Academy"]
[120410,"Cartmel Priory CofE School",120410,"Academy","Academy"]
[130734,"Carwarden House Community School",130734,"Academy","Academy"]
[132979,"Castercliff Primary School",132979,"Academy","Academy"]
[120405,"Casterton Business & Enterprise College",120405,"Academy","Academy"]
[121987,"Castle Academy - Doncaster",121987,"Academy","Academy"]
[127821,"Castle Academy - Northampton",127821,"Academy","Academy"]
[133456,"Castle Acre CofE VC Primary School",133456,"Academy","Academy"]
[120361,"Castle Carrock School",120361,"Academy","Academy"]
[119280,"Castle Community College",119280,"Academy","Academy"]
[122372,"Castle Donington College",122372,"Academy","Academy"]
[120438,"Castle Hall Academy - M irfield",120438,"Academy","Academy"]
[124668,"Castle Hill Academy - Croydon",124668,"Academy","Academy"]
[131379,"Castle Hill Infant School - Ipswich",131379,"Academy","Academy"]
[131363,"Castle Hill Junior School - Ipswich",131363,"Academy","Academy"]
[131690,"Castle Hill Primary School - Chessington",131690,"Academy","Academy"]
[120815,"Castle Manor Academy",120815,"Academy","Academy"]
[130366,"Castle Mead School",130366,"Academy","Academy"]
[131420,"Castle Primary School - Stoke-on-Trent",131420,"Academy","Academy"]
[131733,"Castle Primary School - Stoke-Sub-Hamdon",131733,"Academy","Academy"]
[122135,"Castle Rock High School",122135,"Academy","Academy"]
[119916,"Castle School, The - Taunton",119916,"Academy","Academy"]
[123062,"Castle School, The - Thornbury",123062,"Academy","Academy"]
[119127,"Castle View Enterprise Academy",119127,"Academy","Academy"]
[131059,"Castle View School - Canvey Island",131059,"Academy","Academy"]
[130157,"Castle Wood Academy",130157,"Academy","Academy"]
[127709,"Castlecombe Primary School",127709,"Academy","Academy"]
[131448,"Castledon School",131448,"Academy","Academy"]
[119602,"Castleford Academy",119602,"Academy","Academy"]
[124999,"Castleford Glasshoughton Infant School",124999,"Academy","Academy"]
[130761,"Castleford Oyster Park Primary School",130761,"Academy","Academy"]
[122958,"Castleford Park Junior Academy",122958,"Academy","Academy"]
[130890,"Castleford Three Lane Ends Academy",130890,"Academy","Academy"]
[123177,"Castlegreen Community School",123177,"Academy","Academy"]
[122340,"Castleview Primary School",122340,"Academy","Academy"]
[124489,"Catcote School",124489,"Academy","Academy"]
[120756,"Cathedral Academy - Wakefield",120756,"Academy","Academy"]
[123296,"Cathedral Primary School",123296,"Academy","Academy"]
[130107,"Cathedral School of St Mary, The",130107,"Academy","Academy"]
[123813,"Catholic High School, Chester, The",123813,"Academy","Academy"]
[119527,"Catmose College",119527,"Academy","Academy"]
[121113,"Catmose Primary",121113,"Academy","Academy"]
[125223,"Cavendish High School - Runcorn",125223,"Academy","Academy"]
[122177,"Cavendish School, The - Eastbourne",122177,"Academy","Academy"]
[123212,"Cawston Grange Primary School",123212,"Academy","Academy"]
[122728,"CE Academy, The",122728,"Academy","Academy"]
[132375,"Cecil Jones College",132375,"Academy","Academy"]
[120927,"Cedar Mount Academy",120927,"Academy","Academy"]
[120686,"Cedar Road Primary School",120686,"Academy","Academy"]
[122702,"Cedars Academy - Gateshead",122702,"Academy","Academy"]
[130329,"Cedars Academy, The - Birstall",130329,"Academy","Academy"]
[120411,"Cedars Upper School - Leighton Buzzard",120411,"Academy","Academy"]
[122156,"Central Bedfordshire UTC",122156,"Academy","Academy"]
[120340,"Centre School, The",120340,"Academy","Academy"]
[123887,"Chacombe CEVA Primary Academy",123887,"Academy","Academy"]
[120268,"Chadsmead Primary Academy",120268,"Academy","Academy"]
[119269,"Chadwell Heath Academy",119269,"Academy","Academy"]
[124495,"Chafford School, The ",124495,"Academy","Academy"]
[119723,"Chalfont St Peter CofE Academy",119723,"Academy","Academy"]
[120924,"Chalfont Valley E-ACT Primary Academy",120924,"Academy","Academy"]
[120215,"Chalfonts Community College, The",120215,"Academy","Academy"]
[119648,"Challney High School for Boys",119648,"Academy","Academy"]
[122120,"Chandlers Ridge Academy",122120,"Academy","Academy"]
[132626,"Channeling Positivity",132626,"Academy","Academy"]
[120958,"Chantry Academy",120958,"Academy","Academy"]
[122685,"Chantry Community Academy - Gravesend",122685,"Academy","Academy"]
[122103,"Chantry Primary Academy - Luton",122103,"Academy","Academy"]
[119897,"Chantry School, The - Worcester",119897,"Academy","Academy"]
[122882,"Chapel End Junior Academy",122882,"Academy","Academy"]
[130489,"Chapeltown Academy",130489,"Academy","Academy"]
[131463,"Charborough Road Primary School",131463,"Academy","Academy"]
[124579,"Charfield Primary School",124579,"Academy","Academy"]
[123087,"Charles Coddy Walker Academy, The",123087,"Academy","Academy"]
[119586,"Charles Darwin School",119586,"Academy","Academy"]
[119479,"Charles Read Academy",119479,"Academy","Academy"]
[121954,"Charles Warren Academy",121954,"Academy","Academy"]
[119799,"Charlestown Primary School",119799,"Academy","Academy"]
[131648,"Charlton Church of England Primary School",131648,"Academy","Academy"]
[119999,"Charlton Kings Infant School",119999,"Academy","Academy"]
[120266,"Charlton Kings Junior School",120266,"Academy","Academy"]
[122099,"Charlton Park Academy",122099,"Academy","Academy"]
[124203,"Charlton Primary School",124203,"Academy","Academy"]
[131799,"Charnwood College (High)",131799,"Academy","Academy"]
[114647,"Charnwood College (Upper)",114647,"Academy","Academy"]
[119137,"Charter Academy - Portsmouth",119137,"Academy","Academy"]
[119271,"Charter School, The - Southwark",119271,"Academy","Academy"]
[120779,"Charters School - Windsor & Maidenhead",120779,"Academy","Academy"]
[123176,"Charville Primary School",123176,"Academy","Academy"]
[131778,"Chase High School",131778,"Academy","Academy"]
[120628,"Chase, The",120628,"Academy","Academy"]
[119418,"Chatham & Clarendon Grammar School",119418,"Academy","Academy"]
[119601,"Chatham Grammar School for Boys",119601,"Academy","Academy"]
[120429,"Chatham Grammar School for Girls",120429,"Academy","Academy"]
[121879,"Chattenden Primary School",121879,"Academy","Academy"]
[120928,"Chaucer School Academy",120928,"Academy","Academy"]
[124062,"Chaulden Junior School",124062,"Academy","Academy"]
[120090,"Chauncy School, The",120090,"Academy","Academy"]
[119959,"Cheadle Academy, The",119959,"Academy","Academy"]
[120752,"Cheadle Hulme High School",120752,"Academy","Academy"]
[133097,"Cheam Common Junior Academy",133097,"Academy","Academy"]
[119775,"Cheam High School",119775,"Academy","Academy"]
[125010,"Cheam Park Farm Infants School",125010,"Academy","Academy"]
[119591,"Cheam Park Farm Junior School",119591,"Academy","Academy"]
[124578,"Cheddon Fitzpaine Church School",124578,"Academy","Academy"]
[120528,"Cheetham CofE Community Academy",120528,"Academy","Academy"]
[119381,"Chellaston Academy",119381,"Academy","Academy"]
[120260,"Chelmer Valley High School",120260,"Academy","Academy"]
[119432,"Chelmsford County High School for Girls",119432,"Academy","Academy"]
[118895,"Chelsea Academy",118895,"Academy","Academy"]
[119724,"Cheltenham Bournside School and Sixth Form Centre",119724,"Academy","Academy"]
[120989,"Chenderit School",120989,"Academy","Academy"]
[123080,"Cheney School",123080,"Academy","Academy"]
[121029,"Chepping View Primary Academy",121029,"Academy","Academy"]
[130866,"Cherry Tree Academy Trust Marham Infant",130866,"Academy","Academy"]
[131968,"Cherry Tree Primary School and Speech and Language Unit",131968,"Academy","Academy"]
[121116,"Cherwell School, The",121116,"Academy","Academy"]
[120091,"Chesham Grammar School",120091,"Academy","Academy"]
[120486,"Chesterfield High School",120486,"Academy","Academy"]
[119887,"Chesterton Community College - Cambridge",119887,"Academy","Academy"]
[124993,"Chesterton Community Sports College - Newcastle-u-Lyme",124993,"Academy","Academy"]
[126498,"Chesterton Primary School",126498,"Academy","Academy"]
[119883,"Chestnut Grove School",119883,"Academy","Academy"]
[129868,"Chestnut Park Primary School",129868,"Academy","Academy"]
[120890,"Chetwynd Primary Academy",120890,"Academy","Academy"]
[130490,"Chetwynde School",130490,"Academy","Academy"]
[122392,"Chew Stoke Church School",122392,"Academy","Academy"]
[123297,"Chichester Free School",123297,"Academy","Academy"]
[124980,"Chichester High School for Boys",124980,"Academy","Academy"]
[124981,"Chichester High School for Girls",124981,"Academy","Academy"]
[123171,"Chickerell Primary Academy",123171,"Academy","Academy"]
[120625,"Chiddingstone Church of England School",120625,"Academy","Academy"]
[131972,"Chigwell Primary School",131972,"Academy","Academy"]
[122492,"Childwall Sports & Science Academy",122492,"Academy","Academy"]
[120280,"Chiltern Hills Academy",120280,"Academy","Academy"]
[131786,"Chilton Academy Primary School",131786,"Academy","Academy"]
[122259,"Chilwell Croft Academy",122259,"Academy","Academy"]
[122263,"Chingford Foundation School",122263,"Academy","Academy"]
[121432,"Chingford Hall Primary School",121432,"Academy","Academy"]
[119960,"Chipping Campden School",119960,"Academy","Academy"]
[113956,"Chipping Norton School",113956,"Academy","Academy"]
[124173,"Chipping Warden Primary Academy",124173,"Academy","Academy"]
[129897,"Chipstead Valley Primary School",129897,"Academy","Academy"]
[120344,"Chislehurst and Sidcup Grammar School",120344,"Academy","Academy"]
[131172,"Chislehurst Church of England Primary",131172,"Academy","Academy"]
[119467,"Chislehurst School for Girls",119467,"Academy","Academy"]
[121123,"Chiswick School",121123,"Academy","Academy"]
[124208,"Chivenor Primary School",124208,"Academy","Academy"]
[121928,"Chobham Academy",121928,"Academy","Academy"]
[124596,"Cholsey Primary School",124596,"Academy","Academy"]
[122953,"Chorlton High School",122953,"Academy","Academy"]
[119611,"Chosen Hill School",119611,"Academy","Academy"]
[130775,"Christ Church & Saint Peter's CoE Primary School",130775,"Academy","Academy"]
[122919,"Christ Church (Erith) CofE Primary School",122919,"Academy","Academy"]
[119961,"Christ Church Academy",119961,"Academy","Academy"]
[121859,"Christ Church CE Academy",121859,"Academy","Academy"]
[123038,"Christ Church Cep Academy, Folkestone",123038,"Academy","Academy"]
[122959,"Christ Church Chorleywood CofE School",122959,"Academy","Academy"]
[123167,"Christ Church Church of England Academy - Shipley",123167,"Academy","Academy"]
[122877,"Christ Church Church of England Junior School, Ramsgate",122877,"Academy","Academy"]
[121013,"Christ Church Church of England Primary School - Bristol",121013,"Academy","Academy"]
[122715,"Christ Church CofE Primary School - Cheltenham",122715,"Academy","Academy"]
[130736,"Christ the King Catholic Academy - Blackpool",130736,"Academy","Academy"]
[130116,"Christ The King Catholic Primary School - Bournemouth",130116,"Academy","Academy"]
[121100,"Christ The King Catholic Voluntary Academy - Nottingham",121100,"Academy","Academy"]
[132327,"Christ The King Roman Catholic Primary School - Thornaby",132327,"Academy","Academy"]
[127978,"Christian Malford CofE Primary School",127978,"Academy","Academy"]
[119680,"Christleton High School",119680,"Academy","Academy"]
[124621,"Christopher Pickering Primary School",124621,"Academy","Academy"]
[119890,"Christopher Whitehead Language College",119890,"Academy","Academy"]
[121088,"Christow Community School",121088,"Academy","Academy"]
[120345,"Christ's College Finchley",120345,"Academy","Academy"]
[131588,"Christ's College, Guildford",131588,"Academy","Academy"]
[120474,"Chudleigh Knighton Church of England Primary School",120474,"Academy","Academy"]
[120024,"Chulmleigh Community College",120024,"Academy","Academy"]
[120023,"Chulmleigh Primary School",120023,"Academy","Academy"]
[122394,"Church Hill Church of England Junior School",122394,"Academy","Academy"]
[122410,"Church Hill Infant School",122410,"Academy","Academy"]
[133057,"Church Hill Middle School",133057,"Academy","Academy"]
[123865,"Church Stretton School",123865,"Academy","Academy"]
[119956,"Churchdown School",119956,"Academy","Academy"]
[120173,"Churchdown Village Infant School",120173,"Academy","Academy"]
[119461,"Churchend Primary Academy",119461,"Academy","Academy"]
[122817,"Churchfield Church School",122817,"Academy","Academy"]
[120388,"Churchfields Academy - Swindon",120388,"Academy","Academy"]
[124639,"Churchfields Primary School - Newcastle-u-Lyme",124639,"Academy","Academy"]
[120000,"Churchill Academy",120000,"Academy","Academy"]
[126330,"Churchill Gardens Primary Academy",126330,"Academy","Academy"]
[123396,"Churchill Special Free School",123396,"Academy","Academy"]
[130848,"Churchwood Primary Academy, The",130848,"Academy","Academy"]
[119406,"Churston Ferrers Grammar School Academy",119406,"Academy","Academy"]
[131603,"Cicely Haughton School",131603,"Academy","Academy"]
[121194,"Cippenham Infant School",121194,"Academy","Academy"]
[121195,"Cippenham Primary School",121195,"Academy","Academy"]
[119533,"Cirencester Deer Park School",119533,"Academy","Academy"]
[120217,"Cirencester Kingshill School",120217,"Academy","Academy"]
[117017,"City Academy Bristol, The",117017,"Academy","Academy"]
[119104,"City Academy Norwich",119104,"Academy","Academy"]
[123896,"City Academy Whitehawk",123896,"Academy","Academy"]
[118896,"City Academy, The - Hackney",118896,"Academy","Academy"]
[122804,"City Gateway 14-19 Provision",122804,"Academy","Academy"]
[121926,"City Heights E-ACT Academy",121926,"Academy","Academy"]
[121869,"City of Derby Academy",121869,"Academy","Academy"]
[118387,"City of London Academy (Southwark)",118387,"Academy","Academy"]
[118605,"City of London Academy Islington",118605,"Academy","Academy"]
[130865,"City of Norwich School",130865,"Academy","Academy"]
[124497,"City of Peterborough Academy",124497,"Academy","Academy"]
[122220,"City of Peterborough Academy Special School",122220,"Academy","Academy"]
[123855,"City Road Primary School",123855,"Academy","Academy"]
[130491,"City United Ltd (CUL) Academy ",130491,"Academy","Academy"]
[129602,"Civitas Academy",129602,"Academy","Academy"]
[119097,"Clacton Coastal Academy",119097,"Academy","Academy"]
[121144,"Clacton County High School",121144,"Academy","Academy"]
[119950,"Clapton Girls' Academy",119950,"Academy","Academy"]
[119612,"Claremont High School",119612,"Academy","Academy"]
[133558,"Claremont Primary School",133558,"Academy","Academy"]
[122867,"Clarendon Academy, The",122867,"Academy","Academy"]
[119417,"Clarendon House Grammar School, The",119417,"Academy","Academy"]
[132294,"Clayton Hall Academy",132294,"Academy","Academy"]
[120548,"Clayton-le-Moors All Saints Church of England Primary School",120548,"Academy","Academy"]
[130626,"Cleadon Church of England Academy",130626,"Academy","Academy"]
[131078,"Clee Hill Community Academy",131078,"Academy","Academy"]
[119311,"Cleethorpes Academy",119311,"Academy","Academy"]
[121830,"Cleeve Park School - Sidcup",121830,"Academy","Academy"]
[125222,"Cleeve Primary School - Hull",125222,"Academy","Academy"]
[119773,"Cleeve School - Cheltenham",119773,"Academy","Academy"]
[131087,"Clenchwarton Community Primary School",131087,"Academy","Academy"]
[131186,"Cleobury Mortimer Primary School",131186,"Academy","Academy"]
[120636,"Clevedon School",120636,"Academy","Academy"]
[128237,"Cleves Cross Primary School",128237,"Academy","Academy"]
[119358,"Cleves School",119358,"Academy","Academy"]
[131249,"Cliff Lane Primary School",131249,"Academy","Academy"]
[123121,"Cliff Park - Ormiston Academy",123121,"Academy","Academy"]
[123953,"Cliff Park Infant School, Gorleston",123953,"Academy","Academy"]
[123937,"Cliff Park Junior School",123937,"Academy","Academy"]
[124217,"Cliffdale Primary School",124217,"Academy","Academy"]
[119827,"Cliffe Woods Primary School",119827,"Academy","Academy"]
[132410,"Clifford Bridge Academy",132410,"Academy","Academy"]
[123206,"Clifton All Saints Academy - Sheffield",123206,"Academy","Academy"]
[125021,"Cliftonville Primary School",125021,"Academy","Academy"]
[119403,"Clitheroe Royal Grammar School",119403,"Academy","Academy"]
[124771,"Cloughwood Academy",124771,"Academy","Academy"]
[132040,"Clutton Primary School",132040,"Academy","Academy"]
[119545,"Clyst Vale Community College",119545,"Academy","Academy"]
[132388,"Coal Clough Academy",132388,"Academy","Academy"]
[123074,"Cobden Primary School & Community Centre",123074,"Academy","Academy"]
[121974,"Cobham Free School",121974,"Academy","Academy"]
[131365,"Cobholm Primary Academy",131365,"Academy","Academy"]
[132947,"Cockburn School",132947,"Academy","Academy"]
[120872,"Cockermouth School",120872,"Academy","Academy"]
[124153,"Cockington Primary School",124153,"Academy","Academy"]
[119333,"Colchester Academy",119333,"Academy","Academy"]
[120554,"Colchester County High School for Girls",120554,"Academy","Academy"]
[120596,"Colchester Royal Grammar School",120596,"Academy","Academy"]
[120614,"Colebrook Infant Academy",120614,"Academy","Academy"]
[131411,"Colehill First School",131411,"Academy","Academy"]
[119664,"Coleridge Community College",119664,"Academy","Academy"]
[122335,"Coleridge Primary",122335,"Academy","Academy"]
[119986,"Coleshill School, The",119986,"Academy","Academy"]
[131882,"Colkirk Church of England Primary Academy",131882,"Academy","Academy"]
[123298,"Collective Spirit Free School",123298,"Academy","Academy"]
[132001,"College Central",132001,"Academy","Academy"]
[119837,"Collingwood College",119837,"Academy","Academy"]
[124081,"Collingwood Primary School",124081,"Academy","Academy"]
[124561,"Colnbrook Church of England Primary School",124561,"Academy","Academy"]
[120460,"Colne Community School and College",120460,"Academy","Academy"]
[122260,"Colne Primet Academy",122260,"Academy","Academy"]
[125186,"Colne Valley High School",125186,"Academy","Academy"]
[118661,"Colston's Girls' School",118661,"Academy","Academy"]
[120843,"Colston's Primary School",120843,"Academy","Academy"]
[120671,"Columbus School and College",120671,"Academy","Academy"]
[131655,"Colwich CofE (C) Primary School",131655,"Academy","Academy"]
[119405,"Colyton Grammar School",119405,"Academy","Academy"]
[124141,"Combe Pafford School",124141,"Academy","Academy"]
[119503,"Comberton Village College",119503,"Academy","Academy"]
[120190,"Commonweal School, The",120190,"Academy","Academy"]
[122700,"Community & Hospital Education Service",122700,"Academy","Academy"]
[121990,"Compass School Southwark",121990,"Academy","Academy"]
[119441,"Compton School, The",119441,"Academy","Academy"]
[128063,"Concord Junior School",128063,"Academy","Academy"]
[119672,"Congleton High School",119672,"Academy","Academy"]
[120757,"Conisbrough Ivanhoe Primary Academy",120757,"Academy","Academy"]
[124574,"Connaught Junior School",124574,"Academy","Academy"]
[123061,"Connaught School for Girls",123061,"Academy","Academy"]
[123351,"Connell Sixth Form College",123351,"Academy","Academy"]
[132028,"Connor Downs Primary School",132028,"Academy","Academy"]
[120915,"Consett Academy",120915,"Academy","Academy"]
[123408,"ContinU Plus Academy",123408,"Academy","Academy"]
[121834,"Convent of Jesus and Mary Language College",121834,"Academy","Academy"]
[123323,"Conyers School",123323,"Academy","Academy"]
[124689,"Cooks Spinney Primary School and Nursery",124689,"Academy","Academy"]
[120886,"Coombe Boys' School",120886,"Academy","Academy"]
[119575,"Coombe Dean School",119575,"Academy","Academy"]
[120864,"Coombe Girls' School",120864,"Academy","Academy"]
[120176,"Coombeshead Academy",120176,"Academy","Academy"]
[129578,"Cooper School, The",129578,"Academy","Academy"]
[121005,"Co-operative Academy of Leeds, The",121005,"Academy","Academy"]
[119221,"Co-operative Academy of Manchester, The",119221,"Academy","Academy"]
[119168,"Co-operative Academy of Stoke on Trent, The",119168,"Academy","Academy"]
[119636,"Coopers' Company and Coborn School, The",119636,"Academy","Academy"]
[119504,"Coopers School",119504,"Academy","Academy"]
[119835,"Copleston High School",119835,"Academy","Academy"]
[123081,"Copley Academy",123081,"Academy","Academy"]
[123900,"Copperfield Academy",123900,"Academy","Academy"]
[123263,"Coppice Primary Academy",123263,"Academy","Academy"]
[120715,"Coppice Primary School",120715,"Academy","Academy"]
[130727,"Coppice School - Newcastle-u-Lyme",130727,"Academy","Academy"]
[130922,"Coppice Spring School, The",130922,"Academy","Academy"]
[120826,"Copthall School",120826,"Academy","Academy"]
[120430,"Corbet School Technology College, The",120430,"Academy","Academy"]
[118606,"Corby Business Academy",118606,"Academy","Academy"]
[126905,"Corby Primary Academy",126905,"Academy","Academy"]
[121975,"Corby Technical School",121975,"Academy","Academy"]
[122315,"Cordeaux Academy",122315,"Academy","Academy"]
[124348,"Cordwalles Junior School",124348,"Academy","Academy"]
[120350,"Corelli College",120350,"Academy","Academy"]
[131970,"Corfe Castle Church of England Voluntary Controlled Primary School",131970,"Academy","Academy"]
[119560,"Corfe Hills School",119560,"Academy","Academy"]
[125020,"Cornelius Vermuyden School, The",125020,"Academy","Academy"]
[122996,"Corngreaves Academy",122996,"Academy","Academy"]
[118607,"Cornwallis Academy",118607,"Academy","Academy"]
[120295,"Corpus Christi Catholic Primary School - Lambeth",120295,"Academy","Academy"]
[131660,"Corpus Christi Catholic Primary School - Wolverhampton",131660,"Academy","Academy"]
[132434,"Corpus Christi Catholic School - Coventry",132434,"Academy","Academy"]
[132284,"Corpus Christi RC Primary School - Middlesbrough",132284,"Academy","Academy"]
[124988,"Corringham Primary School",124988,"Academy","Academy"]
[119565,"Corsham Primary School",119565,"Academy","Academy"]
[122832,"Corsham Regis Primary Academy, The",122832,"Academy","Academy"]
[119625,"Corsham School, The",119625,"Academy","Academy"]
[122373,"Cosby Primary School",122373,"Academy","Academy"]
[121453,"Costello School, The",121453,"Academy","Academy"]
[124742,"Costessey Infant School",124742,"Academy","Academy"]
[121043,"Costessey Junior School",121043,"Academy","Academy"]
[122984,"Coteford Junior School",122984,"Academy","Academy"]
[121190,"Cotgrave Candleby Lane School",121190,"Academy","Academy"]
[120389,"Cotham School",120389,"Academy","Academy"]
[119252,"Cotswold Academy, The",119252,"Academy","Academy"]
[120325,"Cottenham Village College",120325,"Academy","Academy"]
[129559,"Cottesbrooke Infant School",129559,"Academy","Academy"]
[133101,"Cottesmore Millfield Academy",133101,"Academy","Academy"]
[133645,"Cottingham CofE Primary School Academy Trust",133645,"Academy","Academy"]
[119907,"Cottingham High School and Sixth Form College",119907,"Academy","Academy"]
[122304,"Cottingley Primary Academy",122304,"Academy","Academy"]
[121126,"Coundon Court",121126,"Academy","Academy"]
[124586,"Countess Anne School, Hatfield",124586,"Academy","Academy"]
[122374,"Countesthorpe Community College",122374,"Academy","Academy"]
[122134,"County High School Leftwich, The",122134,"Academy","Academy"]
[131366,"Coupals Community Primary School",131366,"Academy","Academy"]
[124670,"Court Fields School",124670,"Academy","Academy"]
[133171,"Court-de-Wyck Primary School",133171,"Academy","Academy"]
[124256,"Courtyard AP Academy",124256,"Academy","Academy"]
[126521,"Coverack Community Primary School",126521,"Academy","Academy"]
[130629,"Cowes Enterprise College",130629,"Academy","Academy"]
[133185,"Cowlersley Primary School",133185,"Academy","Academy"]
[123160,"Cowley St Laurence CofE Primary School",123160,"Academy","Academy"]
[120847,"Cowplain Community School",120847,"Academy","Academy"]
[120817,"Cox Green School",120817,"Academy","Academy"]
[123828,"Crabbs' Cross Academy",123828,"Academy","Academy"]
[124780,"Crabtree Infants' School",124780,"Academy","Academy"]
[124744,"Crabtree Junior School",124744,"Academy","Academy"]
[120424,"Cramlington Learning Village",120424,"Academy","Academy"]
[121976,"Cramlington Village Primary School",121976,"Academy","Academy"]
[124635,"Cranberry Academy",124635,"Academy","Academy"]
[131839,"Cranbrook Education Campus",131839,"Academy","Academy"]
[120626,"Cranbrook School",120626,"Academy","Academy"]
[120772,"Cranfield Church of England Academy",120772,"Academy","Academy"]
[119613,"Cranford Community College",119613,"Academy","Academy"]
[122678,"Cranford Park Academy",122678,"Academy","Academy"]
[124229,"Craven Primary Academy",124229,"Academy","Academy"]
[127109,"Cravenwood Primary Academy",127109,"Academy","Academy"]
[122149,"Crawshaw Academy",122149,"Academy","Academy"]
[123385,"Create Studio",123385,"Academy","Academy"]
[119941,"Crescent Academy, The",119941,"Academy","Academy"]
[132420,"Crescent Primary School, The",132420,"Academy","Academy"]
[119083,"Crest Academies, The",119083,"Academy","Academy"]
[119084,"Crest Boys' Academy",119084,"Academy","Academy"]
[131361,"Crestwood School, The",131361,"Academy","Academy"]
[122119,"Crigglestone St James CofE Primary Academy",122119,"Academy","Academy"]
[130474,"Cringle Brook Primary School",130474,"Academy","Academy"]
[119913,"Crispin School Academy",119913,"Academy","Academy"]
[122046,"Croft Academy",122046,"Academy","Academy"]
[121917,"Croft Primary School, The",121917,"Academy","Academy"]
[120001,"Crofton Academy",120001,"Academy","Academy"]
[122398,"Crofton Infant School - Orpington",122398,"Academy","Academy"]
[133180,"Crofton Infant School - Wakefield",133180,"Academy","Academy"]
[120518,"Crofton Junior School",120518,"Academy","Academy"]
[124118,"Croftway Primary Academy",124118,"Academy","Academy"]
[120326,"Cromer Academy",120326,"Academy","Academy"]
[120294,"Crompton House Church of England Academy, The",120294,"Academy","Academy"]
[130358,"Cromwell Academy",130358,"Academy","Academy"]
[121145,"Cromwell Community College",121145,"Academy","Academy"]
[120897,"Crookesbroom Primary Academy",120897,"Academy","Academy"]
[123053,"Crosby-on-Eden CofE School",123053,"Academy","Academy"]
[132491,"Cross Farm Infant School",132491,"Academy","Academy"]
[124334,"Crossacres Primary Academy",124334,"Academy","Academy"]
[119283,"Crosshall Infant School Academy Trust",119283,"Academy","Academy"]
[119284,"Crosshall Junior School",119284,"Academy","Academy"]
[120701,"Crossley Heath School, The",120701,"Academy","Academy"]
[122995,"Crowle Primary School",122995,"Academy","Academy"]
[127313,"Croxton Kerrial Church of England Primary School",127313,"Academy","Academy"]
[119557,"Crypt School, The",119557,"Academy","Academy"]
[117814,"CTC Kingshurst Academy",117814,"Academy","Academy"]
[132036,"Cuckmere House School",132036,"Academy","Academy"]
[119260,"Cuckoo Hall Academy",119260,"Academy","Academy"]
[130836,"Cuddington Croft Primary School",130836,"Academy","Academy"]
[131144,"Cudham Church of England Primary School",131144,"Academy","Academy"]
[122986,"Culloden Primary - A Paradigm Academy",122986,"Academy","Academy"]
[131693,"Culverstone Green Primary School",131693,"Academy","Academy"]
[124157,"Culworth Church of England School",124157,"Academy","Academy"]
[122662,"Curledge Street Academy",122662,"Academy","Academy"]
[130886,"Cutnall Green CofE First",130886,"Academy","Academy"]
[122430,"Cutteslowe Primary School",122430,"Academy","Academy"]
[131068,"Cuxton Community Infant School",131068,"Academy","Academy"]
[130751,"Cuxton Community Junior School",130751,"Academy","Academy"]
[123381,"Da Vinci Studio School of Creative Enterprise, The",123381,"Academy","Academy"]
[122525,"Da Vinci Studio School of Science and Engineering, The",122525,"Academy","Academy"]
[120205,"Dallam School",120205,"Academy","Academy"]
[123262,"Dallow Primary School",123262,"Academy","Academy"]
[130868,"Dalton Listerdale Academy",130868,"Academy","Academy"]
[119614,"Dame Alice Owen's School",119614,"Academy","Academy"]
[121938,"Dame Janet Primary Academy",121938,"Academy","Academy"]
[119663,"Dane Court Grammar School",119663,"Academy","Academy"]
[131831,"Danecourt School",131831,"Academy","Academy"]
[127273,"Danesfield Church of England Voluntary Controlled Community Middle School",127273,"Academy","Academy"]
[132942,"Danesholme Junior Academy",132942,"Academy","Academy"]
[122792,"Danetree Junior School",122792,"Academy","Academy"]
[120490,"Danum Academy",120490,"Academy","Academy"]
[124061,"Darfield Primary Academy, The",124061,"Academy","Academy"]
[129557,"Darlinghurst School",129557,"Academy","Academy"]
[120122,"Darlington School of Maths and Science",120122,"Academy","Academy"]
[120032,"Darrick Wood Infant School",120032,"Academy","Academy"]
[119382,"Darrick Wood School",119382,"Academy","Academy"]
[124643,"Darrington Church of England Primary School",124643,"Academy","Academy"]
[119383,"Dartford Grammar School",119383,"Academy","Academy"]
[131069,"Dartford Primary",131069,"Academy","Academy"]
[119337,"Dartmouth Academy",119337,"Academy","Academy"]
[126451,"Darton Primary School",126451,"Academy","Academy"]
[118611,"Darwen Aldridge Community Academy",118611,"Academy","Academy"]
[123382,"Darwen Aldridge Enterprise Studio",123382,"Academy","Academy"]
[129889,"Darwen St James CofE Primary Academy",129889,"Academy","Academy"]
[131137,"Darwen Vale High School",131137,"Academy","Academy"]
[130837,"Darwen, St Barnabas CofE Primary Academy",130837,"Academy","Academy"]
[120592,"Dashwood Banbury Academy",120592,"Academy","Academy"]
[120827,"Datchet St Mary's CofE Primary School",120827,"Academy","Academy"]
[121098,"Daubeney Academy",121098,"Academy","Academy"]
[124328,"Dauntsey Academy Primary School",124328,"Academy","Academy"]
[119539,"Davenant Foundation School",119539,"Academy","Academy"]
[122157,"Daventry UTC",122157,"Academy","Academy"]
[120195,"David Livingstone Academy",120195,"Academy","Academy"]
[118608,"David Young Community Academy",118608,"Academy","Academy"]
[130541,"Dawes Lane Academy",130541,"Academy","Academy"]
[129546,"Days Lane Primary School",129546,"Academy","Academy"]
[119491,"De Aston School",119491,"Academy","Academy"]
[119433,"de Ferrers Academy, The",119433,"Academy","Academy"]
[119442,"De La Salle Academy, The",119442,"Academy","Academy"]
[121031,"De Lacy Academy",121031,"Academy","Academy"]
[122501,"De Lisle Catholic School Loughborough Leicestershire",122501,"Academy","Academy"]
[130570,"De Salis Studio College",130570,"Academy","Academy"]
[119133,"De Warenne Academy",119133,"Academy","Academy"]
[121945,"Dean Academy, The",121945,"Academy","Academy"]
[132367,"Dean Trust Ardwick",132367,"Academy","Academy"]
[120155,"Deanery Church of England Primary School, The",120155,"Academy","Academy"]
[123058,"Deansbrook Junior School",123058,"Academy","Academy"]
[120651,"Dearham Primary School",120651,"Academy","Academy"]
[119681,"Debden Park High School",119681,"Academy","Academy"]
[119434,"Debenham High School",119434,"Academy","Academy"]
[120710,"Deepings School, The",120710,"Academy","Academy"]
[131223,"Deeplish Primary Academy",131223,"Academy","Academy"]
[132636,"Deer Park School",132636,"Academy","Academy"]
[131352,"Delabole Community Primary School",131352,"Academy","Academy"]
[119528,"Delamere CofE Primary Academy",119528,"Academy","Academy"]
[131533,"Delaware Primary Academy",131533,"Academy","Academy"]
[129573,"Delce Academy",129573,"Academy","Academy"]
[131649,"Dell Primary School",131649,"Academy","Academy"]
[119351,"Denbigh High School - Luton",119351,"Academy","Academy"]
[119468,"Denbigh School - Milton Keynes",119468,"Academy","Academy"]
[132341,"Dene House Primary School",132341,"Academy","Academy"]
[120422,"Dene Magna School",120422,"Academy","Academy"]
[120913,"Denefield School",120913,"Academy","Academy"]
[131862,"Deneholm Primary School",131862,"Academy","Academy"]
[123805,"Denham Green E-ACT Academy",123805,"Academy","Academy"]
[120561,"Denton West End Primary School",120561,"Academy","Academy"]
[132683,"Derby Manufacturing UTC",132683,"Academy","Academy"]
[122536,"Derby Pride Academy",122536,"Academy","Academy"]
[133093,"Dereham Church of England Junior Academy",133093,"Academy","Academy"]
[123430,"Desborough College",123430,"Academy","Academy"]
[111451,"Devizes School",111451,"Academy","Academy"]
[123383,"Devon Studio School",123383,"Academy","Academy"]
[119496,"Devonport High School for Boys",119496,"Academy","Academy"]
[119615,"Devonport High School for Girls",119615,"Academy","Academy"]
[130725,"Devonshire Infant School",130725,"Academy","Academy"]
[130724,"Devonshire Junior School",130724,"Academy","Academy"]
[124114,"Devonshire Primary Academy",124114,"Academy","Academy"]
[120485,"Deyes High School",120485,"Academy","Academy"]
[121957,"Diamond Academy",121957,"Academy","Academy"]
[124576,"Diamond Hall Infant Academy",124576,"Academy","Academy"]
[126480,"Diamond Wood Community Academy",126480,"Academy","Academy"]
[122589,"Didcot Girls' School",122589,"Academy","Academy"]
[131805,"Didsbury CofE Primary School",131805,"Academy","Academy"]
[132677,"Digitech Studio School",132677,"Academy","Academy"]
[131356,"Dilhorne Endowed CE (A) Primary School",131356,"Academy","Academy"]
[120782,"Dilkes Academy",120782,"Academy","Academy"]
[130707,"Dilton Marsh CofE Primary School",130707,"Academy","Academy"]
[131242,"Dinnington High School",131242,"Academy","Academy"]
[130947,"Discovery Academy - Nuneaton",130947,"Academy","Academy"]
[119522,"Discovery Academy - Stoke-on-Trent",119522,"Academy","Academy"]
[120473,"Discovery New School - Crawley",120473,"Academy","Academy"]
[123374,"Discovery School - Newcastle-u-Lyme",123374,"Academy","Academy"]
[120092,"Diss High School",120092,"Academy","Academy"]
[127777,"Ditchingham Church of England Academy",127777,"Academy","Academy"]
[130552,"Ditton Park Academy",130552,"Academy","Academy"]
[118885,"Dixons Allerton Academy",118885,"Academy","Academy"]
[118388,"Dixons City Academy",118388,"Academy","Academy"]
[120465,"Dixons Kings Academy",120465,"Academy","Academy"]
[131394,"Dixons Manningham Academy",131394,"Academy","Academy"]
[127700,"Dixons Marchbank Primary",127700,"Academy","Academy"]
[130495,"Dixons McMillan Academy",130495,"Academy","Academy"]
[121977,"Dixons Music Primary",121977,"Academy","Academy"]
[122017,"Dixons Trinity Academy",122017,"Academy","Academy"]
[118389,"Djanogly City Academy",118389,"Academy","Academy"]
[120182,"Djanogly Northgate Academy",120182,"Academy","Academy"]
[129257,"Djanogly Strelley Academy",129257,"Academy","Academy"]
[124145,"Dodworth St John the Baptist CofE Primary Academy",124145,"Academy","Academy"]
[130328,"Dogsthorpe Academy",130328,"Academy","Academy"]
[122299,"Dolphin School, The",122299,"Academy","Academy"]
[120472,"Don Valley Academy",120472,"Academy","Academy"]
[120699,"Dorcan Academy, The",120699,"Academy","Academy"]
[122131,"Dorchester Middle School",122131,"Academy","Academy"]
[124143,"Dorchester Primary School",124143,"Academy","Academy"]
[122571,"Dordon Community Primary School",122571,"Academy","Academy"]
[124653,"Dormanstown Primary Academy",124653,"Academy","Academy"]
[130481,"Dorothy Barley Junior Academy",130481,"Academy","Academy"]
[121016,"Dorothy Goodman School Hinckley",121016,"Academy","Academy"]
[121865,"Dorrington Academy",121865,"Academy","Academy"]
[130571,"Dorset Studio School",130571,"Academy","Academy"]
[121058,"Douay Martyrs Catholic School, The",121058,"Academy","Academy"]
[120565,"Dove House School",120565,"Academy","Academy"]
[130723,"Dovedale Primary School",130723,"Academy","Academy"]
[119220,"Dover Christ Church Academy",119220,"Academy","Academy"]
[123248,"Downend School",123248,"Academy","Academy"]
[122810,"Downham Market Academy",122810,"Academy","Academy"]
[124527,"Downview Primary School",124527,"Academy","Academy"]
[119435,"Dr Challoner's Grammar School",119435,"Academy","Academy"]
[120219,"Dr Challoner's High School",120219,"Academy","Academy"]
[119152,"Drapers' Academy",119152,"Academy","Academy"]
[130045,"Drapers' Brookside Junior School",130045,"Academy","Academy"]
[132637,"Drapers' Maylands Primary School",132637,"Academy","Academy"]
[122031,"Drapers Mills Primary Academy",122031,"Academy","Academy"]
[120221,"Drayton Manor High School",120221,"Academy","Academy"]
[119902,"Droitwich Spa High School and Sixth Form Centre",119902,"Academy","Academy"]
[122002,"Drove Primary School",122002,"Academy","Academy"]
[118886,"Droylsden Academy",118886,"Academy","Academy"]
[121069,"DSLV E-ACT Academy",121069,"Academy","Academy"]
[130354,"Duchy of Lancaster Methwold CofE Primary School",130354,"Academy","Academy"]
[123249,"Duchy School Bradninch, The",123249,"Academy","Academy"]
[125028,"Dudley Infant Academy",125028,"Academy","Academy"]
[119233,"Duke of York's Royal Military School",119233,"Academy","Academy"]
[122429,"Dukeries Academy, The",122429,"Academy","Academy"]
[122086,"Dukesgate Academy",122086,"Academy","Academy"]
[119581,"Dulwich Hamlet Junior School",119581,"Academy","Academy"]
[124725,"Dunbury Church of England Academy",124725,"Academy","Academy"]
[132435,"Dundry Church of England Primary School",132435,"Academy","Academy"]
[120093,"Dunraven School",120093,"Academy","Academy"]
[122690,"Dunsville Primary School",122690,"Academy","Academy"]
[126428,"Dunswell Primary School",126428,"Academy","Academy"]
[119264,"Durand Academy",119264,"Academy","Academy"]
[123299,"Durham Free School, The",123299,"Academy","Academy"]
[129565,"Durrington High School",129565,"Academy","Academy"]
[123052,"Dursley Church of England Primary Academy",123052,"Academy","Academy"]
[119935,"Duston School, The",119935,"Academy","Academy"]
[132990,"Dycorts School",132990,"Academy","Academy"]
[124065,"Dyke House Sports and Technology College",124065,"Academy","Academy"]
[132950,"Dymchurch Primary School",132950,"Academy","Academy"]
[120186,"Dyson Perrins CofE Academy",120186,"Academy","Academy"]
[120973,"E-ACT Blackley Academy",120973,"Academy","Academy"]
[120931,"E-Act Burnham Park Academy, The",120931,"Academy","Academy"]
[119758,"Eaglesfield Paddle CofE Primary Academy",119758,"Academy","Academy"]
[121150,"Eagley Infant School",121150,"Academy","Academy"]
[121164,"Eagley Junior School",121164,"Academy","Academy"]
[130545,"Earl's Court Free School Primary",130545,"Academy","Academy"]
[120746,"Earls High School, The",120746,"Academy","Academy"]
[121001,"Easington Academy",121001,"Academy","Academy"]
[129707,"Easington Church of England Voluntary Controlled Primary School",129707,"Academy","Academy"]
[124769,"East Allington Primary School",124769,"Academy","Academy"]
[119674,"East Barnet School",119674,"Academy","Academy"]
[120218,"East Bergholt High School",120218,"Academy","Academy"]
[122537,"East Birmingham Network Academy",122537,"Academy","Academy"]
[124629,"East Bridgford St Peters Church of England Academy",124629,"Academy","Academy"]
[131835,"East Crompton St George's CofE School",131835,"Academy","Academy"]
[122323,"East Dene Primary",122323,"Academy","Academy"]
[125195,"East Garforth Primary Academy",125195,"Academy","Academy"]
[122083,"East Herrington Primary Academy",122083,"Academy","Academy"]
[122413,"East Leake Academy",122413,"Academy","Academy"]
[130801,"East London Arts & Music",130801,"Academy","Academy"]
[123300,"East London Science School",123300,"Academy","Academy"]
[119145,"East Manchester Academy, The",119145,"Academy","Academy"]
[120134,"East Point Academy",120134,"Academy","Academy"]
[120770,"East Ravendale CofE Primary School Academy",120770,"Academy","Academy"]
[122014,"East Tilbury Junior School",122014,"Academy","Academy"]
[121024,"East Tilbury Primary School and Nursery",121024,"Academy","Academy"]
[119662,"East Wickham Primary Academy",119662,"Academy","Academy"]
[120025,"East Worlington Primary School",120025,"Academy","Academy"]
[119169,"Eastbourne Academy, The",119169,"Academy","Academy"]
[123101,"Eastbrook Primary Academy",123101,"Academy","Academy"]
[133453,"Eastcote Primary Academy",133453,"Academy","Academy"]
[125018,"Easterside Academy",125018,"Academy","Academy"]
[120935,"Eastfield Academy",120935,"Academy","Academy"]
[124597,"Eastfield Primary Academy - Immingham",124597,"Academy","Academy"]
[124080,"Eastfield Primary School - Hull",124080,"Academy","Academy"]
[122375,"Eastfield Primary School - Leicester",122375,"Academy","Academy"]
[129544,"Eastgate Academy",129544,"Academy","Academy"]
[130324,"Easton Church of England Academy",130324,"Academy","Academy"]
[131163,"Easton Community Primary School",131163,"Academy","Academy"]
[132913,"Easton Garford Endowed CofE School",132913,"Academy","Academy"]
[122140,"Easton Royal Academy",122140,"Academy","Academy"]
[120390,"Eastrop Infant School",120390,"Academy","Academy"]
[120284,"Eastwood Academy, The",120284,"Academy","Academy"]
[129603,"Eastwood Village Primary School",129603,"Academy","Academy"]
[122027,"Eaton Bank Academy - Congleton",122027,"Academy","Academy"]
[119536,"Eaton Bray Academy - Dunstable",119536,"Academy","Academy"]
[122975,"Eaton Hall School, Norwich",122975,"Academy","Academy"]
[120783,"Eaton Park Primary School",120783,"Academy","Academy"]
[131517,"Eaton Primary School",131517,"Academy","Academy"]
[120981,"Ebbsfleet Academy, The",120981,"Academy","Academy"]
[132628,"EBN Academy Phase 2",132628,"Academy","Academy"]
[131985,"EBOR Academy Filey",131985,"Academy","Academy"]
[119661,"Ecclesbourne Primary School - Croydon",119661,"Academy","Academy"]
[119514,"Ecclesbourne School, The - Belper",119514,"Academy","Academy"]
[124700,"Ecclesfield School",124700,"Academy","Academy"]
[124665,"Echelford Primary School, The",124665,"Academy","Academy"]
[121428,"Ecton Brook Primary School",121428,"Academy","Academy"]
[129899,"Edale Rise Primary & Nursery School",129899,"Academy","Academy"]
[130497,"Eden BESD Free School - Blackburn",130497,"Academy","Academy"]
[130484,"Eden Boys' School Bolton",130484,"Academy","Academy"]
[132638,"Eden Boys' School, Birmingham",132638,"Academy","Academy"]
[132639,"Eden Boys' School, Preston",132639,"Academy","Academy"]
[130492,"Eden Girls' School Coventry",130492,"Academy","Academy"]
[130555,"Eden Girls' School Waltham Forest",130555,"Academy","Academy"]
[132640,"Eden Girls' School, Slough",132640,"Academy","Academy"]
[119892,"Eden Park Primary School Academy",119892,"Academy","Academy"]
[120469,"Eden Primary",120469,"Academy","Academy"]
[132381,"Edenham High School",132381,"Academy","Academy"]
[124115,"Edgar Stammers Primary Academy",124115,"Academy","Academy"]
[132629,"Edge Academy, The",132629,"Academy","Academy"]
[130750,"Edith Cavell Academy and Nursery",130750,"Academy","Academy"]
[133462,"Edith Weston Academy",133462,"Academy","Academy"]
[130304,"Edmunds Primary Academy, The",130304,"Academy","Academy"]
[120574,"Edna G. Olds Academy",120574,"Academy","Academy"]
[122036,"Education Links",122036,"Academy","Academy"]
[132915,"Edwalton Primary School",132915,"Academy","Academy"]
[121007,"Edward Bryant School",121007,"Academy","Academy"]
[121995,"Edward Heneage Primary Academy",121995,"Academy","Academy"]
[120832,"Eggar's School",120832,"Academy","Academy"]
[124785,"Eggbuckland Community College",124785,"Academy","Academy"]
[121893,"Elaine Primary Academy",121893,"Academy","Academy"]
[121458,"Elburton Primary School",121458,"Academy","Academy"]
[124581,"Eldon Grove Academy",124581,"Academy","Academy"]
[123041,"Elizabeth Woodville School",123041,"Academy","Academy"]
[120873,"Elizabethan Academy, The",120873,"Academy","Academy"]
[121154,"Ellacombe Primary School Academy",121154,"Academy","Academy"]
[123352,"Elland Academy, The",123352,"Academy","Academy"]
[132641,"Elliott Hudson College",132641,"Academy","Academy"]
[122676,"Ellison Boulters Church of England Primary School",122676,"Academy","Academy"]
[131656,"Elliston Primary School",131656,"Academy","Academy"]
[131201,"Ellowes Hall Sports College",131201,"Academy","Academy"]
[123051,"Elm Academy",123051,"Academy","Academy"]
[133092,"Elm Road Primary School",133092,"Academy","Academy"]
[132353,"Elm Tree Community Primary School",132353,"Academy","Academy"]
[119843,"Elmlea Junior School",119843,"Academy","Academy"]
[122009,"Elmridge Primary School",122009,"Academy","Academy"]
[132322,"Elsecar Holy Trinity CofE Primary Academy",132322,"Academy","Academy"]
[132312,"Elston Hall Primary School",132312,"Academy","Academy"]
[123376,"Elstree UTC, The",123376,"Academy","Academy"]
[131118,"Elton Community Primary School",131118,"Academy","Academy"]
[130563,"elutec",130563,"Academy","Academy"]
[122802,"Elveden Church of England Primary Academy",122802,"Academy","Academy"]
[120613,"Ely College",120613,"Academy","Academy"]
[131162,"Ely St Mary's CofE Junior School",131162,"Academy","Academy"]
[120346,"Emerson Park Academy",120346,"Academy","Academy"]
[124994,"Emmanuel Anglican Methodist Junior School",124994,"Academy","Academy"]
[118390,"Emmanuel College - Gateshead",118390,"Academy","Academy"]
[122320,"Emmanuel Community School - Walthamstow",122320,"Academy","Academy"]
[130134,"Emmaus Catholic and CofE Primary School",130134,"Academy","Academy"]
[131070,"Emslie Morgan Alternative Provision School (EMAPS)",131070,"Academy","Academy"]
[129246,"Endeavour Academy, Oxford",129246,"Academy","Academy"]
[126441,"Enderby Danemill Primary School",126441,"Academy","Academy"]
[124992,"Endike Academy",124992,"Academy","Academy"]
[124982,"Endsleigh Holy Child VC Academy",124982,"Academy","Academy"]
[123380,"Energy Coast UTC",123380,"Academy","Academy"]
[132045,"Enfield Academy of New Waltham",132045,"Academy","Academy"]
[120094,"Enfield Grammar School",120094,"Academy","Academy"]
[121979,"Enfield Heights Academy",121979,"Academy","Academy"]
[127205,"England Lane Academy",127205,"Academy","Academy"]
[126519,"English Martyrs' Catholic Primary - Nottingham",126519,"Academy","Academy"]
[124329,"English Martyrs' Catholic Primary School - Oakham",124329,"Academy","Academy"]
[131211,"English Martyrs Catholic Primary School - Wakefield",131211,"Academy","Academy"]
[129903,"English Martyrs School and Sixth Form College, The",129903,"Academy","Academy"]
[120391,"Enmore Church of England Primary School",120391,"Academy","Academy"]
[119202,"Enterprise South Liverpool Academy",119202,"Academy","Academy"]
[121086,"Epiphany Church of England Primary School, The",121086,"Academy","Academy"]
[122067,"Eppleton Academy Primary School",122067,"Academy","Academy"]
[120508,"Epsom and Ewell High School",120508,"Academy","Academy"]
[122066,"Epworth Primary Academy",122066,"Academy","Academy"]
[119886,"Erasmus Darwin Academy",119886,"Academy","Academy"]
[121166,"Erdington Hall Primary School",121166,"Academy","Academy"]
[122974,"Eresby School, Spilsby, The",122974,"Academy","Academy"]
[119285,"Erith Secondary School",119285,"Academy","Academy"]
[119871,"Ermine Primary Academy",119871,"Academy","Academy"]
[131801,"Ernehale Junior School",131801,"Academy","Academy"]
[130867,"Ernesettle Community School",130867,"Academy","Academy"]
[126323,"Ernesford Grange Community Academy",126323,"Academy","Academy"]
[120187,"Ernulf Academy",120187,"Academy","Academy"]
[124917,"Esher Church of England High School",124917,"Academy","Academy"]
[130737,"Esher Church School",130737,"Academy","Academy"]
[124568,"Eskdale Academy",124568,"Academy","Academy"]
[119125,"Essa Academy",119125,"Academy","Academy"]
[130498,"Essa Primary School",130498,"Academy","Academy"]
[129564,"Estcourt Primary Academy",129564,"Academy","Academy"]
[120911,"Eston Park Academy",120911,"Academy","Academy"]
[133467,"Eton Porny CofE First School",133467,"Academy","Academy"]
[120584,"Etonbury Academy",120584,"Academy","Academy"]
[120804,"Etone College",120804,"Academy","Academy"]
[120538,"Etz Chaim Jewish Primary School",120538,"Academy","Academy"]
[121980,"Europa School UK",121980,"Academy","Academy"]
[118662,"Evelyn Grace Academy",118662,"Academy","Academy"]
[130499,"Evendons Primary School",130499,"Academy","Academy"]
[120113,"Everest Community Academy",120113,"Academy","Academy"]
[119946,"Eversholt Lower School",119946,"Academy","Academy"]
[122538,"Everton Free School",122538,"Academy","Academy"]
[123238,"Excel Academy, The",123238,"Academy","Academy"]
[118610,"Excelsior Academy",118610,"Academy","Academy"]
[122586,"Exeter - A Learning Community Academy",122586,"Academy","Academy"]
[131188,"Exeter House Special School",131188,"Academy","Academy"]
[130500,"Exeter Mathematics School",130500,"Academy","Academy"]
[119526,"Exmouth Community College",119526,"Academy","Academy"]
[126315,"Eynsham Community Primary School",126315,"Academy","Academy"]
[133182,"Eyrescroft Primary School",133182,"Academy","Academy"]
[122660,"Faber Catholic Primary School, The",122660,"Academy","Academy"]
[131821,"Fair Field Junior School",131821,"Academy","Academy"]
[120100,"Fair Oak Academy",120100,"Academy","Academy"]
[129884,"Fairchildes Primary School",129884,"Academy","Academy"]
[119908,"Fairfax School",119908,"Academy","Academy"]
[121158,"Fairfield Community Primary School - Wigston",121158,"Academy","Academy"]
[115392,"Fairfield High School - Bristol",115392,"Academy","Academy"]
[128342,"Fairfield High School - Hereford",128342,"Academy","Academy"]
[119603,"Fairfield High School for Girls - Manchester",119603,"Academy","Academy"]
[132917,"Fairfield Primary School - Cockermouth",132917,"Academy","Academy"]
[131396,"Fairfield Primary School - Grimsby",131396,"Academy","Academy"]
[123274,"Fairfield Primary School - Nottingham",123274,"Academy","Academy"]
[130415,"Fairlawn Primary School",130415,"Academy","Academy"]
[123210,"Fairway Primary School",123210,"Academy","Academy"]
[123891,"Fakenham Academy",123891,"Academy","Academy"]
[130305,"Falconer's Hill Academy",130305,"Academy","Academy"]
[130501,"Falcons Primary School",130501,"Academy","Academy"]
[119251,"Fallibroome Academy, The",119251,"Academy","Academy"]
[124651,"Falmouth Primary Academy",124651,"Academy","Academy"]
[120223,"Falmouth School",120223,"Academy","Academy"]
[130546,"Family School London, The",130546,"Academy","Academy"]
[124768,"Fareham Academy",124768,"Academy","Academy"]
[121091,"Faringdon Community College - Faringdon",121091,"Academy","Academy"]
[121092,"Faringdon Infant School - Faringdon",121092,"Academy","Academy"]
[121162,"Faringdon Junior School - Faringdon",121162,"Academy","Academy"]
[119834,"Farlingaye High School",119834,"Academy","Academy"]
[120097,"Farmor's School",120097,"Academy","Academy"]
[130941,"Farnborough Academy",130941,"Academy","Academy"]
[125242,"Farnborough Primary School",125242,"Academy","Academy"]
[122176,"Farndon Fields Primary School",122176,"Academy","Academy"]
[123222,"Farnham Heath End School",123222,"Academy","Academy"]
[121065,"Farnley Academy, The",121065,"Academy","Academy"]
[123118,"Farringdon Academy - Sunderland",123118,"Academy","Academy"]
[124537,"Farringdon Community Academy - Sunderland",124537,"Academy","Academy"]
[131147,"Fawley Infant School",131147,"Academy","Academy"]
[130698,"Featherstone Academy - Wolverhampton",130698,"Academy","Academy"]
[120985,"Featherstone Academy, The - Wakefield",120985,"Academy","Academy"]
[120693,"Featherstone High School - Ealing",120693,"Academy","Academy"]
[120321,"Felixstowe Academy",120321,"Academy","Academy"]
[120514,"Feltham Community College",120514,"Academy","Academy"]
[129428,"Fen Park Community Primary School",129428,"Academy","Academy"]
[132630,"Fermain Academy, The",132630,"Academy","Academy"]
[132266,"Ferndale Primary School & Nursery",132266,"Academy","Academy"]
[130738,"Fernhurst Primary School",130738,"Academy","Academy"]
[121852,"Ferns Primary Academy, The",121852,"Academy","Academy"]
[119738,"Fernwood School",119738,"Academy","Academy"]
[122710,"Ferrars Academy, The",122710,"Academy","Academy"]
[124777,"Ferrers School, The",124777,"Academy","Academy"]
[119962,"Feversham College",119962,"Academy","Academy"]
[122249,"Feversham Primary Academy",122249,"Academy","Academy"]
[120393,"Field Court Church of England Infant Academy",120393,"Academy","Academy"]
[120392,"Field Court Junior School",120392,"Academy","Academy"]
[122079,"Field Lane Primary School",122079,"Academy","Academy"]
[131449,"Field View Primary School",131449,"Academy","Academy"]
[123234,"Fieldhead Primary Academy",123234,"Academy","Academy"]
[131161,"Filby Primary School",131161,"Academy","Academy"]
[121179,"Filton Avenue Primary School",121179,"Academy","Academy"]
[132433,"Filton Avenue Primary School - Closed",132433,"Academy","Academy"]
[132461,"Finberry Primary School",132461,"Academy","Academy"]
[129582,"Finch Woods Academy",129582,"Academy","Academy"]
[131122,"Finedon Infant School",131122,"Academy","Academy"]
[131120,"Finedon Mulso Church of England Junior School",131120,"Academy","Academy"]
[132642,"Finham Park 2",132642,"Academy","Academy"]
[119963,"Finham Park School",119963,"Academy","Academy"]
[132493,"Finstock Church of England Primary School",132493,"Academy","Academy"]
[122632,"Fir Tree Primary School and Nursery",122632,"Academy","Academy"]
[120750,"Fir Vale School",120750,"Academy","Academy"]
[123934,"Firbeck Academy",123934,"Academy","Academy"]
[120795,"Firs Lower School, The",120795,"Academy","Academy"]
[123198,"Firth Park Academy",123198,"Academy","Academy"]
[121831,"Firthmoor Primary School",121831,"Academy","Academy"]
[120961,"Fishponds Church of England Academy",120961,"Academy","Academy"]
[123158,"Fishtoft Academy",123158,"Academy","Academy"]
[123157,"Fitzwaryn School",123157,"Academy","Academy"]
[132099,"FitzWimarc School, The",132099,"Academy","Academy"]
[131845,"Five Spires Academy",131845,"Academy","Academy"]
[123151,"Flamstead End School",123151,"Academy","Academy"]
[130832,"Flanderwell Primary School",130832,"Academy","Academy"]
[124729,"Flax Hill Junior Academy",124729,"Academy","Academy"]
[121094,"Fleetville Infant and Nursery School",121094,"Academy","Academy"]
[121193,"Fleetville Junior School",121193,"Academy","Academy"]
[122343,"Flegg High School",122343,"Academy","Academy"]
[119450,"Flitch Green Academy, The",119450,"Academy","Academy"]
[130164,"Flitcham Voluntary Aided Church of England Primary School",130164,"Academy","Academy"]
[119965,"Flixton Girls' School",119965,"Academy","Academy"]
[132643,"Floreat Brentford Primary School",132643,"Academy","Academy"]
[129878,"Floreat Wandsworth Primary School",129878,"Academy","Academy"]
[128000,"Flying Bull Primary School",128000,"Academy","Academy"]
[124750,"Flying High Academy, The",124750,"Academy","Academy"]
[118612,"Folkestone Academy",118612,"Academy","Academy"]
[120899,"Folkestone School for Girls, The",120899,"Academy","Academy"]
[123049,"Folkestone, St Mary's Church of England Primary Academy",123049,"Academy","Academy"]
[119371,"Forest Academy - Brandon",119371,"Academy","Academy"]
[124169,"Forest Academy - Croydon",124169,"Academy","Academy"]
[121111,"Forest Academy - Ilford",121111,"Academy","Academy"]
[122857,"Forest Academy, The - Barnsley",122857,"Academy","Academy"]
[132671,"Forest Bridge School",132671,"Academy","Academy"]
[122240,"Forest Gate Academy",122240,"Academy","Academy"]
[131174,"Forest Hall School",131174,"Academy","Academy"]
[120938,"Forest High School, The - Cinderford",120938,"Academy","Academy"]
[124300,"Forest School - Wokingham",124300,"Academy","Academy"]
[122977,"Forest View Primary School",122977,"Academy","Academy"]
[120879,"Forest Way School - Coalville",120879,"Academy","Academy"]
[127176,"Forge Valley School",127176,"Academy","Academy"]
[120363,"Formby High School",120363,"Academy","Academy"]
[119357,"Fort Pitt Grammar School",119357,"Academy","Academy"]
[119764,"Fosse Way Academy - Lincoln",119764,"Academy","Academy"]
[120394,"Fosse Way School - Bath",120394,"Academy","Academy"]
[130892,"Four Acres Academy",130892,"Academy","Academy"]
[122290,"Four Dwellings Academy",122290,"Academy","Academy"]
[122485,"Four Dwellings Primary Academy",122485,"Academy","Academy"]
[132931,"Fowey Primary School",132931,"Academy","Academy"]
[130609,"Fowey River Academy",130609,"Academy","Academy"]
[122652,"Fox Hill Primary",122652,"Academy","Academy"]
[123886,"Foxborough Primary School",123886,"Academy","Academy"]
[124703,"Foxhole Learning Academy",124703,"Academy","Academy"]
[122350,"Foxwood Academy",122350,"Academy","Academy"]
[120818,"Framwellgate School Durham",120818,"Academy","Academy"]
[121842,"Frances Bardsley Academy for Girls, The",121842,"Academy","Academy"]
[124622,"Francis Askew Primary School",124622,"Academy","Academy"]
[118887,"Francis Combe Academy",118887,"Academy","Academy"]
[120364,"Fred Longworth High School",120364,"Academy","Academy"]
[124155,"Frederick Nattrass Primary Academy",124155,"Academy","Academy"]
[120521,"Free School Norwich, The",120521,"Academy","Academy"]
[119192,"Freebrough Academy",119192,"Academy","Academy"]
[132928,"Freehold Community Primary Academy",132928,"Academy","Academy"]
[130332,"Freeland Church of England Primary School",130332,"Academy","Academy"]
[123073,"Freemans Endowed Church of England Junior Academy",123073,"Academy","Academy"]
[119616,"Freemantle Church of England Community Academy",119616,"Academy","Academy"]
[120509,"Freeston Academy, The",120509,"Academy","Academy"]
[120002,"Freman College",120002,"Academy","Academy"]
[123935,"Freshwaters Primary Academy",123935,"Academy","Academy"]
[123859,"Friars Academy",123859,"Academy","Academy"]
[124085,"Frisby Church of England Primary School",124085,"Academy","Academy"]
[124249,"Frogmore Junior School",124249,"Academy","Academy"]
[121075,"Frome Vale Academy",121075,"Academy","Academy"]
[131824,"Frome Valley CofE VA First School",131824,"Academy","Academy"]
[122000,"Front Lawn Primary Academy",122000,"Academy","Academy"]
[122774,"Fulbridge Academy",122774,"Academy","Academy"]
[121231,"Fulbrook Middle School - Milton Keynes",121231,"Academy","Academy"]
[123304,"Fulham Boys School",123304,"Academy","Academy"]
[123178,"Fulham College Boys' School",123178,"Academy","Academy"]
[123175,"Fulham Cross Girls' School and Language College",123175,"Academy","Academy"]
[120003,"Fullbrook School - Addlestone",120003,"Academy","Academy"]
[119286,"Fulston Manor School",119286,"Academy","Academy"]
[122990,"Fulwell Infant School Academy",122990,"Academy","Academy"]
[119131,"Fulwood Academy",119131,"Academy","Academy"]
[127276,"Furley Park Primary Academy",127276,"Academy","Academy"]
[119132,"Furness Academy",119132,"Academy","Academy"]
[120695,"Furze Platt Senior School",120695,"Academy","Academy"]
[130572,"Future Tech Studio, The",130572,"Academy","Academy"]
[119854,"Gable Hall School",119854,"Academy","Academy"]
[122376,"Gaddesby Primary School",122376,"Academy","Academy"]
[119123,"Gainsborough Academy, The",119123,"Academy","Academy"]
[122008,"Gainsborough Hillcrest Early Years Academy, The",122008,"Academy","Academy"]
[122498,"Gainsborough Parish Church Primary School, The",122498,"Academy","Academy"]
[120990,"Gamlingay Village College",120990,"Academy","Academy"]
[124628,"Ganton School",124628,"Academy","Academy"]
[121888,"Garden City Academy",121888,"Academy","Academy"]
[119360,"Garforth Academy",119360,"Academy","Academy"]
[120365,"Garstang Community Academy",120365,"Academy","Academy"]
[133111,"Garth School, The ",133111,"Academy","Academy"]
[122041,"Gartree High School Oadby",122041,"Academy","Academy"]
[131390,"Gatcombe Park Primary School",131390,"Academy","Academy"]
[131228,"Gatehouse ACE Academy",131228,"Academy","Academy"]
[124529,"Gateway Academy - Westminster",124529,"Academy","Academy"]
[118651,"Gateway Academy, The - Grays",118651,"Academy","Academy"]
[129440,"Gateway Primary Academy, The - Dartford",129440,"Academy","Academy"]
[121982,"Gateway Primary Free School, The - Grays",121982,"Academy","Academy"]
[130735,"Gatley Primary School",130735,"Academy","Academy"]
[130494,"Gatwick School, The",130494,"Academy","Academy"]
[120661,"Gawthorpe Community Academy",120661,"Academy","Academy"]
[119853,"George Abbot School",119853,"Academy","Academy"]
[124335,"George Betts Primary Academy",124335,"Academy","Academy"]
[121912,"George Dixon Academy",121912,"Academy","Academy"]
[120079,"George Eliot School, The",120079,"Academy","Academy"]
[127305,"George Grenville Academy",127305,"Academy","Academy"]
[132290,"George Hastwell School Special Academy",132290,"Academy","Academy"]
[118613,"George Salter Academy",118613,"Academy","Academy"]
[119255,"George Spencer Academy and Technology College",119255,"Academy","Academy"]
[133568,"Gerrans School",133568,"Academy","Academy"]
[120777,"Gerrards Cross CofE School, The",120777,"Academy","Academy"]
[122418,"Ghyllside Primary School",122418,"Academy","Academy"]
[125015,"Giffard Catholic Primary School, The",125015,"Academy","Academy"]
[129883,"Giffards Primary School",129883,"Academy","Academy"]
[121141,"Gilberd School, The",121141,"Academy","Academy"]
[120835,"Gilbert Inglefield Academy",120835,"Academy","Academy"]
[123301,"Gildredge House",123301,"Academy","Academy"]
[119247,"Giles Academy, The",119247,"Academy","Academy"]
[120909,"Gillbrook Academy",120909,"Academy","Academy"]
[131596,"Gillingham St Michael's Church of England Primary School",131596,"Academy","Academy"]
[120811,"Gillotts School",120811,"Academy","Academy"]
[124185,"Gilmorton Chandler Church of England Primary School",124185,"Academy","Academy"]
[121886,"Gilsland CofE Primary School",121886,"Academy","Academy"]
[123124,"Gipsey Bridge Primary School",123124,"Academy","Academy"]
[130143,"Gladstone Park Primary School",130143,"Academy","Academy"]
[124177,"Glapton Academy, The",124177,"Academy","Academy"]
[131073,"Glascote Heath Primary School",131073,"Academy","Academy"]
[124519,"Glebe Academy",124519,"Academy","Academy"]
[131383,"Glemsford Primary Academy",131383,"Academy","Academy"]
[121039,"Glen Hills Primary School",121039,"Academy","Academy"]
[128050,"Glenbrook Primary and Nursery School",128050,"Academy","Academy"]
[129437,"Glenfield Infant School",129437,"Academy","Academy"]
[129427,"Glenfield Primary School",129427,"Academy","Academy"]
[122042,"Glenleigh Park Primary Academy",122042,"Academy","Academy"]
[124533,"Glenmere Community Primary School",124533,"Academy","Academy"]
[127405,"Glenmoor Academy",127405,"Academy","Academy"]
[119914,"Glenthorne High School",119914,"Academy","Academy"]
[131196,"Globe Primary Academy, The",131196,"Academy","Academy"]
[129571,"Glory Farm Primary School",129571,"Academy","Academy"]
[119328,"Gloucester Academy",119328,"Academy","Academy"]
[119592,"Glyn School",119592,"Academy","Academy"]
[122127,"Glyne Gap School",122127,"Academy","Academy"]
[122605,"Glynn House Short Stay School",122605,"Academy","Academy"]
[131553,"Gnosall St Lawrence CoE Primary Academy",131553,"Academy","Academy"]
[119352,"Goddard Park Community Primary School",119352,"Academy","Academy"]
[131735,"Godinton Primary School",131735,"Academy","Academy"]
[121209,"Godmanchester Primary School",121209,"Academy","Academy"]
[122296,"Godolphin Infant School",122296,"Academy","Academy"]
[122294,"Godolphin Junior School",122294,"Academy","Academy"]
[120515,"Goffs School",120515,"Academy","Academy"]
[119531,"Goldington Academy",119531,"Academy","Academy"]
[123268,"Goldington Green Academy",123268,"Academy","Academy"]
[122141,"Goldsmith Primary Academy",122141,"Academy","Academy"]
[120673,"Goldsworth Primary School",120673,"Academy","Academy"]
[119725,"Gonville Academy",119725,"Academy","Academy"]
[133553,"Good Shepherd Catholic Primary and Nursery School",133553,"Academy","Academy"]
[121096,"Good Shepherd Catholic Primary, Arnold, The",121096,"Academy","Academy"]
[132414,"Good Shepherd Catholic School",132414,"Academy","Academy"]
[130877,"Gooderstone Church of England Primary Academy",130877,"Academy","Academy"]
[120316,"Goole High School",120316,"Academy","Academy"]
[122559,"Goose Green Primary School",122559,"Academy","Academy"]
[121937,"Gooseacre Primary Academy",121937,"Academy","Academy"]
[119856,"Gordano School",119856,"Academy","Academy"]
[128087,"Gordon Infant School",128087,"Academy","Academy"]
[124823,"Gordon Junior School",124823,"Academy","Academy"]
[120674,"Gordon's School",120674,"Academy","Academy"]
[130480,"Goresbrook School",130480,"Academy","Academy"]
[121867,"Gorse Hill Primary School - Swindon",121867,"Academy","Academy"]
[131734,"Gorsefield Primary School",131734,"Academy","Academy"]
[120937,"Gorton Mount Primary Academy",120937,"Academy","Academy"]
[123820,"Gosberton Primary School",123820,"Academy","Academy"]
[122906,"Gosford Hill School",122906,"Academy","Academy"]
[119376,"Gosforth Academy",119376,"Academy","Academy"]
[119375,"Gosforth Junior High Academy",119375,"Academy","Academy"]
[120207,"Gotherington Primary School",120207,"Academy","Academy"]
[123200,"Gothic Mede Academy",123200,"Academy","Academy"]
[118616,"Grace Academy Coventry",118616,"Academy","Academy"]
[119087,"Grace Academy Darlaston",119087,"Academy","Academy"]
[118615,"Grace Academy Solihull",118615,"Academy","Academy"]
[126434,"Grade-Ruan CofE School",126434,"Academy","Academy"]
[122907,"Graham James Primary Academy",122907,"Academy","Academy"]
[122256,"Grampian Primary Academy",122256,"Academy","Academy"]
[127842,"Grampound Road Village CofE School",127842,"Academy","Academy"]
[127480,"Grampound-with-Creed CofE School",127480,"Academy","Academy"]
[120439,"Grange Lane Infant Academy",120439,"Academy","Academy"]
[124655,"Grange Primary - Shrewsbury",124655,"Academy","Academy"]
[124322,"Grange Primary Academy - Kettering",124322,"Academy","Academy"]
[122976,"Grange School - Bedford",122976,"Academy","Academy"]
[130912,"Grange School, The - Christchurch",130912,"Academy","Academy"]
[123159,"Grange School, The - Shrewsbury",123159,"Academy","Academy"]
[120525,"Grange Technology College - Bradford",120525,"Academy","Academy"]
[124590,"Grangefield Academy, The",124590,"Academy","Academy"]
[121112,"Grangewood School",121112,"Academy","Academy"]
[130625,"Grantham Sandon School, The",130625,"Academy","Academy"]
[122274,"Grasmere Academy",122274,"Academy","Academy"]
[122386,"Grasvenor Avenue Infant School",122386,"Academy","Academy"]
[120829,"Graveney Primary School",120829,"Academy","Academy"]
[120005,"Graveney School",120005,"Academy","Academy"]
[122383,"Gravenhurst Academy",122383,"Academy","Academy"]
[120099,"Gravesend Grammar School",120099,"Academy","Academy"]
[123079,"Gray's Farm Primary Academy",123079,"Academy","Academy"]
[132041,"Greasbrough Primary School",132041,"Academy","Academy"]
[130896,"Great Addington CofE (VA) Primary School",130896,"Academy","Academy"]
[119855,"Great Baddow High School",119855,"Academy","Academy"]
[122125,"Great Barr Primary School",122125,"Academy","Academy"]
[132925,"Great Barton Church of England Voluntary Controlled Primary School",132925,"Academy","Academy"]
[120226,"Great Berry Primary School",120226,"Academy","Academy"]
[122049,"Great Bowden Church of England Primary School",122049,"Academy","Academy"]
[120510,"Great Chesterford Church of England Primary Academy",120510,"Academy","Academy"]
[127907,"Great Clacton Church of England (Voluntary Aided) Junior School",127907,"Academy","Academy"]
[120366,"Great Corby Primary School",120366,"Academy","Academy"]
[123868,"Great Dalby School",123868,"Academy","Academy"]
[132366,"Great Heath Primary School",132366,"Academy","Academy"]
[119984,"Great Malvern Primary School",119984,"Academy","Academy"]
[119964,"Great Marlow School",119964,"Academy","Academy"]
[132268,"Great Marsden St John's Church of England Primary School",132268,"Academy","Academy"]
[126436,"Great Missenden CofE Combined School",126436,"Academy","Academy"]
[122006,"Great Sankey High School",122006,"Academy","Academy"]
[120442,"Great Smeaton Academy Primary School",120442,"Academy","Academy"]
[127610,"Great Staughton Primary School",127610,"Academy","Academy"]
[120228,"Great Torrington School",120228,"Academy","Academy"]
[133447,"Great Witchingham Church of England Primary School",133447,"Academy","Academy"]
[122285,"Great Yarmouth Primary Academy",122285,"Academy","Academy"]
[130564,"Greater Manchester Sustainable Engineering UTC",130564,"Academy","Academy"]
[124673,"Green End Primary School",124673,"Academy","Academy"]
[131506,"Green Gates Academy",131506,"Academy","Academy"]
[119356,"Green Lane Primary Academy - Leeds",119356,"Academy","Academy"]
[130047,"Green Lane Primary Academy - Middlesborough",130047,"Academy","Academy"]
[120851,"Green Meadow Primary School",120851,"Academy","Academy"]
[126496,"Green Oaks Primary Academy",126496,"Academy","Academy"]
[124560,"Green School, The",124560,"Academy","Academy"]
[120067,"Green Street Green Primary School",120067,"Academy","Academy"]
[121837,"Green Way Academy, The",121837,"Academy","Academy"]
[132014,"Green Wrythe Lane Primary School",132014,"Academy","Academy"]
[120759,"Greenacre School - Barnsley",120759,"Academy","Academy"]
[120888,"Greenacre School - Chatham",120888,"Academy","Academy"]
[120609,"Greenbank High School",120609,"Academy","Academy"]
[121881,"Greenfield Academy",121881,"Academy","Academy"]
[120290,"Greenfield CofE VC Lower School",120290,"Academy","Academy"]
[122291,"Greenfield E-ACT Primary Academy",122291,"Academy","Academy"]
[126997,"Greenfields Primary School - Kettering",126997,"Academy","Academy"]
[130719,"Greenfields Specialist School for Communication",130719,"Academy","Academy"]
[123125,"Greengate Lane Academy",123125,"Academy","Academy"]
[128097,"Greenhill Academy",128097,"Academy","Academy"]
[122075,"Greenholm Primary School",122075,"Academy","Academy"]
[119768,"Greenshaw High School",119768,"Academy","Academy"]
[131353,"Greenside Primary School",131353,"Academy","Academy"]
[122247,"Greensted Junior School",122247,"Academy","Academy"]
[118664,"Greensward Academy",118664,"Academy","Academy"]
[122295,"Greenway Academy",122295,"Academy","Academy"]
[122037,"Greenwich Free School, The",122037,"Academy","Academy"]
[122297,"Greenwood Academy",122297,"Academy","Academy"]
[119396,"Greetland Academy, The",119396,"Academy","Academy"]
[118391,"Greig City Academy",118391,"Academy","Academy"]
[119945,"Greneway School, The",119945,"Academy","Academy"]
[124649,"Grestone Academy",124649,"Academy","Academy"]
[120623,"Gretton Primary School - Cheltenham",120623,"Academy","Academy"]
[122743,"Gretton Primary School - Corby",122743,"Academy","Academy"]
[122178,"Grey Coat Hospital, The",122178,"Academy","Academy"]
[122576,"Grey Court School",122576,"Academy","Academy"]
[122674,"Greys Education Centre",122674,"Academy","Academy"]
[132096,"Greystoke Primary School",132096,"Academy","Academy"]
[133451,"Greythorn Primary School",133451,"Academy","Academy"]
[130773,"Griffin Primary School",130773,"Academy","Academy"]
[121984,"Grindon Hall Christian School",121984,"Academy","Academy"]
[122282,"Groby Community College",122282,"Academy","Academy"]
[122951,"Grove Academy, The - Harrogate",122951,"Academy","Academy"]
[121889,"Grove Academy, The - Watford",121889,"Academy","Academy"]
[125228,"Grove Church of England School",125228,"Academy","Academy"]
[132672,"Grove House School",132672,"Academy","Academy"]
[121895,"Grove Park Primary School",121895,"Academy","Academy"]
[129866,"Grove Primary School - Lowestoft",129866,"Academy","Academy"]
[132455,"Grove Primary School, The - Camberley",132455,"Academy","Academy"]
[131173,"Grove Primary School, The - Melton Mowbray",131173,"Academy","Academy"]
[130338,"Grove Wood Primary School",130338,"Academy","Academy"]
[122602,"Gryphon School, The",122602,"Academy","Academy"]
[123854,"Guildford County School",123854,"Academy","Academy"]
[119489,"Guilsborough Academy",119489,"Academy","Academy"]
[130610,"Gulval Community Primary School",130610,"Academy","Academy"]
[121127,"Gumley House RC Convent School, FCJ",121127,"Academy","Academy"]
[132933,"Gunnislake Primary Academy",132933,"Academy","Academy"]
[133067,"Gunton Primary Academy",133067,"Academy","Academy"]
[122356,"Gurney Pease Academy",122356,"Academy","Academy"]
[119373,"Guru Nanak Sikh Academy",119373,"Academy","Academy"]
[124627,"Gusford Community Primary School",124627,"Academy","Academy"]
[122917,"Guthlaxton College Wigston",122917,"Academy","Academy"]
[119138,"Haberdashers' Aske's Crayford Academy",119138,"Academy","Academy"]
[118392,"Haberdashers' Aske's Hatcham College",118392,"Academy","Academy"]
[123307,"Haberdashers' Aske's Hatcham Temple Grove Free School",123307,"Academy","Academy"]
[118617,"Haberdashers' Aske's Knights Academy",118617,"Academy","Academy"]
[132644,"Hackney New Primary School",132644,"Academy","Academy"]
[123305,"Hackney New School",123305,"Academy","Academy"]
[122152,"Hackney University Technical College",122152,"Academy","Academy"]
[119918,"Hadleigh High School",119918,"Academy","Academy"]
[120027,"Hadleigh Infant and Nursery School",120027,"Academy","Academy"]
[120327,"Hadleigh Junior School",120327,"Academy","Academy"]
[123306,"Hadlow Rural Community School",123306,"Academy","Academy"]
[120668,"Hadrian Academy",120668,"Academy","Academy"]
[130860,"Hagley Catholic High School",130860,"Academy","Academy"]
[120103,"Hagley Park Academy",120103,"Academy","Academy"]
[132470,"Hailey Hall School",132470,"Academy","Academy"]
[132449,"Haileybury Turnford",132449,"Academy","Academy"]
[129592,"Hailsham Academy",129592,"Academy","Academy"]
[122327,"Hailsham Community College",122327,"Academy","Academy"]
[121011,"Halewood Academy",121011,"Academy","Academy"]
[123165,"Halifax Academy, The",123165,"Academy","Academy"]
[120696,"Hall Cross Academy",120696,"Academy","Academy"]
[120887,"Hall Green School",120887,"Academy","Academy"]
[120197,"Hall Mead School",120197,"Academy","Academy"]
[130765,"Hall Park Academy",130765,"Academy","Academy"]
[121838,"Hall Road Academy",121838,"Academy","Academy"]
[131987,"Hallam Primary School",131987,"Academy","Academy"]
[132645,"Halley House School",132645,"Academy","Academy"]
[130849,"Halsford Park Primary School",130849,"Academy","Academy"]
[124121,"Haltwhistle Community Campus Lower School",124121,"Academy","Academy"]
[124122,"Haltwhistle Community Campus Upper School",124122,"Academy","Academy"]
[119413,"Hambleton Primary Academy",119413,"Academy","Academy"]
[131430,"Hambridge Community Primary School",131430,"Academy","Academy"]
[121076,"Hamford Primary Academy",121076,"Academy","Academy"]
[121202,"Hamilton Academy",121202,"Academy","Academy"]
[119223,"Hammersmith Academy",119223,"Academy","Academy"]
[120238,"Hammond Academy",120238,"Academy","Academy"]
[132418,"Hammond Community Junior School",132418,"Academy","Academy"]
[122934,"Hamp Academy",122934,"Academy","Academy"]
[119170,"Hampton Academy",119170,"Academy","Academy"]
[130882,"Hampton College",130882,"Academy","Academy"]
[121204,"Hampton Primary School",121204,"Academy","Academy"]
[124640,"Hamstead Hall Academy",124640,"Academy","Academy"]
[127318,"Hamstreet Primary Academy",127318,"Academy","Academy"]
[130349,"Hanborough Manor CofE School",130349,"Academy","Academy"]
[130878,"Handsworth Grange Community Sports College",130878,"Academy","Academy"]
[122707,"Handsworth Wood Girls' Academy",122707,"Academy","Academy"]
[130777,"Hanham Woods Academy",130777,"Academy","Academy"]
[120101,"Hanley Castle High School",120101,"Academy","Academy"]
[119753,"Hans Price Academy",119753,"Academy","Academy"]
[120808,"Hanwell Fields Community School",120808,"Academy","Academy"]
[119308,"Harborne Academy",119308,"Academy","Academy"]
[124738,"Harden Primary School",124738,"Academy","Academy"]
[111710,"Hardenhuish School",111710,"Academy","Academy"]
[127606,"Hardingstone Academy",127606,"Academy","Academy"]
[123944,"Hardwick Green Primary Academy",123944,"Academy","Academy"]
[131526,"Hardwicke Parochial Academy",131526,"Academy","Academy"]
[121121,"Hareclive Academy",121121,"Academy","Academy"]
[118404,"Harefield Academy, The - Uxbridge",118404,"Academy","Academy"]
[124069,"Harefield Primary School - Southampton",124069,"Academy","Academy"]
[121968,"Harewood College",121968,"Academy","Academy"]
[123244,"Haringey Sixth Form Centre",123244,"Academy","Academy"]
[132646,"Harington School",132646,"Academy","Academy"]
[129562,"Harlands Primary School",129562,"Academy","Academy"]
[122126,"Harlington Lower School",122126,"Academy","Academy"]
[119954,"Harlington Upper School",119954,"Academy","Academy"]
[122539,"Harmonize Academy AP Free School",122539,"Academy","Academy"]
[121986,"Harpenden Free School",121986,"Academy","Academy"]
[122488,"Harpfield Primary Academy",122488,"Academy","Academy"]
[123223,"Harriers Banbury Academy",123223,"Academy","Academy"]
[130931,"Harris Academy Battersea",130931,"Academy","Academy"]
[120121,"Harris Academy Beckenham",120121,"Academy","Academy"]
[118633,"Harris Academy Bermondsey",118633,"Academy","Academy"]
[120343,"Harris Academy Bromley",120343,"Academy","Academy"]
[120594,"Harris Academy Chafford Hundred",120594,"Academy","Academy"]
[118665,"Harris Academy Falconwood",118665,"Academy","Academy"]
[120964,"Harris Academy Greenwich",120964,"Academy","Academy"]
[118634,"Harris Academy Merton",118634,"Academy","Academy"]
[122637,"Harris Academy Morden",122637,"Academy","Academy"]
[118402,"Harris Academy Peckham",118402,"Academy","Academy"]
[118967,"Harris Academy Purley",118967,"Academy","Academy"]
[118618,"Harris Academy South Norwood",118618,"Academy","Academy"]
[130509,"Harris Academy Tottenham",130509,"Academy","Academy"]
[124212,"Harris Academy Upper Norwood",124212,"Academy","Academy"]
[123409,"Harris Aspire Academy",123409,"Academy","Academy"]
[118889,"Harris Boys' Academy East Dulwich",118889,"Academy","Academy"]
[118619,"Harris City Academy Crystal Palace",118619,"Academy","Academy"]
[124641,"Harris CofE Academy - Rugby",124641,"Academy","Academy"]
[118635,"Harris Girls' Academy East Dulwich",118635,"Academy","Academy"]
[130504,"Harris Invictus Academy Croydon",130504,"Academy","Academy"]
[124236,"Harris Junior Academy Carshalton",124236,"Academy","Academy"]
[130505,"Harris Primary Academy Beckenham",130505,"Academy","Academy"]
[124735,"Harris Primary Academy Benson",124735,"Academy","Academy"]
[121887,"Harris Primary Academy Chafford Hundred",121887,"Academy","Academy"]
[121949,"Harris Primary Academy Coleraine Park",121949,"Academy","Academy"]
[124223,"Harris Primary Academy Crystal Palace",124223,"Academy","Academy"]
[130508,"Harris Primary Academy East Dulwich",130508,"Academy","Academy"]
[130418,"Harris Primary Academy Haling Park",130418,"Academy","Academy"]
[123899,"Harris Primary Academy Kenley",123899,"Academy","Academy"]
[123018,"Harris Primary Academy Kent House",123018,"Academy","Academy"]
[130507,"Harris Primary Academy Mayflower",130507,"Academy","Academy"]
[130046,"Harris Primary Academy Merton",130046,"Academy","Academy"]
[120357,"Harris Primary Academy Peckham Park",120357,"Academy","Academy"]
[122303,"Harris Primary Academy Philip Lane",122303,"Academy","Academy"]
[130506,"Harris Primary Academy Shortlands",130506,"Academy","Academy"]
[122026,"Harris Primary Free School Peckham",122026,"Academy","Academy"]
[130510,"Harris Westminster Sixth Form",130510,"Academy","Academy"]
[119497,"Harrogate Grammar School",119497,"Academy","Academy"]
[120719,"Harrogate High School",120719,"Academy","Academy"]
[132328,"Harrogate, Bilton Grange Community Primary School",132328,"Academy","Academy"]
[119472,"Harrold Priory Middle School",119472,"Academy","Academy"]
[130844,"Harrow Gate Academy",130844,"Academy","Academy"]
[120177,"Harrow High School",120177,"Academy","Academy"]
[120604,"Harrowbarrow School",120604,"Academy","Academy"]
[122360,"Harrowby Church of England Infant School, Grantham, The",122360,"Academy","Academy"]
[119243,"Hartismere School",119243,"Academy","Academy"]
[121165,"Hartley Brook Primary School",121165,"Academy","Academy"]
[122281,"Hartley Primary Academy",122281,"Academy","Academy"]
[121985,"Hartsbrook E-ACT Free School",121985,"Academy","Academy"]
[119564,"Hartsdown Academy",119564,"Academy","Academy"]
[120882,"Hartshill School",120882,"Academy","Academy"]
[120730,"Hartsholme Academy",120730,"Academy","Academy"]
[119588,"Hartwell Primary School",119588,"Academy","Academy"]
[122101,"Harvey Grammar School, The",122101,"Academy","Academy"]
[121047,"Harwich and Dovercourt High School",121047,"Academy","Academy"]
[121072,"Harwood Meadows Primary School",121072,"Academy","Academy"]
[120480,"Hasmonean High School",120480,"Academy","Academy"]
[120449,"Hassenbrook Academy",120449,"Academy","Academy"]
[122310,"Hasting Hill Academy",122310,"Academy","Academy"]
[119430,"Hastings Academy, The",119430,"Academy","Academy"]
[124626,"Hastings High School",124626,"Academy","Academy"]
[131984,"Hastingsbury Business & Enterprise College",131984,"Academy","Academy"]
[120204,"Hatch End High School",120204,"Academy","Academy"]
[121147,"Hatfield Academy",121147,"Academy","Academy"]
[121988,"Hatfield Community Free School",121988,"Academy","Academy"]
[131520,"Hatfield Heath Community Primary School",131520,"Academy","Academy"]
[120894,"Hatfield Woodhouse Primary School",120894,"Academy","Academy"]
[124320,"Hathaway Academy, The",124320,"Academy","Academy"]
[120039,"Hathershaw College, The",120039,"Academy","Academy"]
[122568,"Hatton Park Primary School",122568,"Academy","Academy"]
[120585,"Haughton Academy",120585,"Academy","Academy"]
[131549,"Haughton St Giles CofE Primary Academy",131549,"Academy","Academy"]
[119228,"Havant Academy",119228,"Academy","Academy"]
[123284,"Haveley Hey Community School",123284,"Academy","Academy"]
[118620,"Havelock Academy",118620,"Academy","Academy"]
[124528,"Havelock Infant School",124528,"Academy","Academy"]
[126427,"Havelock Junior School",126427,"Academy","Academy"]
[121172,"Haven High Academy",121172,"Academy","Academy"]
[123191,"Havercroft Academy",123191,"Academy","Academy"]
[130316,"Havergal CofE (C) Primary School",130316,"Academy","Academy"]
[131206,"Hawes Down Infant School",131206,"Academy","Academy"]
[131205,"Hawes Down Junior School",131205,"Academy","Academy"]
[122117,"Hawes Side Academy",122117,"Academy","Academy"]
[122875,"Hawkesley Church Primary Academy",122875,"Academy","Academy"]
[121935,"Hawkley Hall High School",121935,"Academy","Academy"]
[121969,"Hawthorne's Free School, The",121969,"Academy","Academy"]
[124301,"Hawthorns School",124301,"Academy","Academy"]
[124733,"Haxby Road Primary Academy",124733,"Academy","Academy"]
[119898,"Haybridge High School and Sixth Form",119898,"Academy","Academy"]
[133700,"Haybrook College",133700,"Academy","Academy"]
[124756,"Haybrook College - Closed",124756,"Academy","Academy"]
[124388,"Haybrook College PRU",124388,"Academy","Academy"]
[119610,"Haydon School",119610,"Academy","Academy"]
[130850,"Haydon Wick Primary School",130850,"Academy","Academy"]
[119920,"Hayes Primary School",119920,"Academy","Academy"]
[119617,"Hayes School - Bromley",119617,"Academy","Academy"]
[119677,"Hayes School - Paignton",119677,"Academy","Academy"]
[119302,"Hayesbrook School, The",119302,"Academy","Academy"]
[124648,"Hayesdown First School",124648,"Academy","Academy"]
[119966,"Hayesfield Girls School",119966,"Academy","Academy"]
[131454,"Hayeswood First School",131454,"Academy","Academy"]
[119623,"Hayfield School, The",119623,"Academy","Academy"]
[119917,"Haygrove School",119917,"Academy","Academy"]
[130855,"Haymoor Junior School",130855,"Academy","Academy"]
[120546,"Haywood Academy",120546,"Academy","Academy"]
[120837,"Hazel Grove High School",120837,"Academy","Academy"]
[132275,"Hazel Leys Academy",132275,"Academy","Academy"]
[122344,"Hazelbeck Special School",122344,"Academy","Academy"]
[119844,"Hazeley Academy, The",119844,"Academy","Academy"]
[120263,"Hazelwick School",120263,"Academy","Academy"]
[122818,"Hazelwood Academy",122818,"Academy","Academy"]
[121459,"Headlands Primary School",121459,"Academy","Academy"]
[130854,"Healing Primary Academy",130854,"Academy","Academy"]
[119265,"Healing Science Academy",119265,"Academy","Academy"]
[132684,"Health Futures UTC",132684,"Academy","Academy"]
[120578,"Heanor Gate Science College",120578,"Academy","Academy"]
[119909,"Heart of England School",119909,"Academy","Academy"]
[119140,"Heartlands Academy - Birmingham",119140,"Academy","Academy"]
[124247,"Heartlands High School - Haringey",124247,"Academy","Academy"]
[122097,"Heartsease Primary Academy",122097,"Academy","Academy"]
[129555,"Heath Hayes Primary Academy",129555,"Academy","Academy"]
[120754,"Heath Park",120754,"Academy","Academy"]
[119790,"Heath School, The",119790,"Academy","Academy"]
[130764,"Heath View Academy",130764,"Academy","Academy"]
[123110,"Heather Garth Primary School Academy",123110,"Academy","Academy"]
[129869,"Heathfield Academy - Croydon",129869,"Academy","Academy"]
[122081,"Heathfield Academy, The - Leicester",122081,"Academy","Academy"]
[132309,"Heathfield Primary School - Birmingham",132309,"Academy","Academy"]
[121941,"Heathfield Primary School - Darlington",121941,"Academy","Academy"]
[128073,"Heathland School",128073,"Academy","Academy"]
[130155,"Heathlands Junior and Infant School (NC)",130155,"Academy","Academy"]
[131867,"Heathlands Primary Academy",131867,"Academy","Academy"]
[123379,"Heathrow Aviation Engineering UTC",123379,"Academy","Academy"]
[132419,"Heathside School",132419,"Academy","Academy"]
[131401,"Heaton Avenue Primary School",131401,"Academy","Academy"]
[119267,"Heckmondwike Grammar School",119267,"Academy","Academy"]
[123066,"Hedingham School and Sixth Form",123066,"Academy","Academy"]
[120022,"Heighington Church of England Primary School",120022,"Academy","Academy"]
[120201,"Heighington Millfield Primary Academy",120201,"Academy","Academy"]
[123413,"Heights Free School, The",123413,"Academy","Academy"]
[130547,"Heights Primary School, The",130547,"Academy","Academy"]
[121057,"Helena Romanes School and Sixth Form Centre",121057,"Academy","Academy"]
[119576,"Hele's School",119576,"Academy","Academy"]
[120916,"Hellesdon High School",120916,"Academy","Academy"]
[125017,"Hemlington Hall Academy",125017,"Academy","Academy"]
[123199,"Hemsworth Arts and Community Academy",123199,"Academy","Academy"]
[120543,"Hemyock Primary School",120543,"Academy","Academy"]
[122813,"Henbury Court Primary Academy",122813,"Academy","Academy"]
[120840,"Henbury School",120840,"Academy","Academy"]
[120517,"Hendon School",120517,"Academy","Academy"]
[125250,"Hendreds Church of England School, The",125250,"Academy","Academy"]
[120492,"Henleaze Junior School",120492,"Academy","Academy"]
[119991,"Henley In Arden School",119991,"Academy","Academy"]
[123059,"Henley-In-Arden CofE Primary School",123059,"Academy","Academy"]
[120570,"Henlow Church of England Academy",120570,"Academy","Academy"]
[120690,"Henrietta Barnett School, The",120690,"Academy","Academy"]
[122060,"Henry Box School, The",122060,"Academy","Academy"]
[120905,"Henry Hinde Infant School",120905,"Academy","Academy"]
[127508,"Henry Hinde Junior School",127508,"Academy","Academy"]
[132350,"Henry Moore Primary School",132350,"Academy","Academy"]
[118672,"Hereford Academy, The",118672,"Academy","Academy"]
[119665,"Hermitage Academy, The - Chester-le-Street",119665,"Academy","Academy"]
[127573,"Hermitage Primary School - Crewe",127573,"Academy","Academy"]
[127810,"Hermitage School, The - Working",127810,"Academy","Academy"]
[119506,"Herne Bay High School",119506,"Academy","Academy"]
[123308,"Heron Hall Academy",123308,"Academy","Academy"]
[122019,"Heron Park Primary Academy",122019,"Academy","Academy"]
[122651,"Herons' Moor Academy",122651,"Academy","Academy"]
[123231,"Heronsgate School",123231,"Academy","Academy"]
[131345,"Heronswood Primary School",131345,"Academy","Academy"]
[121044,"Herringham Primary Academy",121044,"Academy","Academy"]
[131667,"Herringthorpe Junior School",131667,"Academy","Academy"]
[120995,"Herschel Grammar School",120995,"Academy","Academy"]
[122255,"Hersden Village Primary School",122255,"Academy","Academy"]
[125220,"Hertfordshire & Essex High School and Science College, The",125220,"Academy","Academy"]
[120802,"Hertswood Academy",120802,"Academy","Academy"]
[120306,"Hessle High School and Sixth Form College",120306,"Academy","Academy"]
[120307,"Hessle Penshurst Primary School",120307,"Academy","Academy"]
[121146,"Heston Community School",121146,"Academy","Academy"]
[126311,"Hethersett Academy",126311,"Academy","Academy"]
[131814,"Heversham St Peter's CofE Primary School",131814,"Academy","Academy"]
[120078,"Hewens College",120078,"Academy","Academy"]
[123309,"Hewens Primary School",123309,"Academy","Academy"]
[132992,"Hewett Academy, The",132992,"Academy","Academy"]
[123102,"Heybridge Primary School",123102,"Academy","Academy"]
[123310,"Heyford Park Free School",123310,"Academy","Academy"]
[131358,"Heygreen Community Primary School",131358,"Academy","Academy"]
[121052,"Hibaldstow Academy",121052,"Academy","Academy"]
[120823,"High Arcal School, The",120823,"Academy","Academy"]
[121054,"High Halstow Primary School",121054,"Academy","Academy"]
[130925,"High Hazels Junior School",130925,"Academy","Academy"]
[131384,"High Hazels Nursery Infant School",131384,"Academy","Academy"]
[130693,"High Littleton CofE VC Primary School",130693,"Academy","Academy"]
[119682,"High School for Girls",119682,"Academy","Academy"]
[132023,"High View Primary Learning Centre Academy",132023,"Academy","Academy"]
[120934,"High Weald Academy",120934,"Academy","Academy"]
[120853,"Higham Lane School",120853,"Academy","Academy"]
[130741,"Higham-on-the-Hill Church of England Primary School",130741,"Academy","Academy"]
[120484,"Highams Park School",120484,"Academy","Academy"]
[125182,"Highbank Primary and Nursery School",125182,"Academy","Academy"]
[130367,"Highcliffe Primary School and Community Centre",130367,"Academy","Academy"]
[119769,"Highcliffe School",119769,"Academy","Academy"]
[119858,"Highcrest Academy",119858,"Academy","Academy"]
[119364,"Highdown School and Sixth Form Centre",119364,"Academy","Academy"]
[125203,"Highfield Infants' School - Bromley",125203,"Academy","Academy"]
[125204,"Highfield Junior School - Bromley",125204,"Academy","Academy"]
[131544,"Highfield South Farnham Primary School",131544,"Academy","Academy"]
[120952,"Highfields Primary Academy - Doncaster",120952,"Academy","Academy"]
[131513,"Highfields School - Wolverhampton",131513,"Academy","Academy"]
[121073,"Highgate Primary Academy",121073,"Academy","Academy"]
[122898,"Highlands Primary School",122898,"Academy","Academy"]
[124667,"Highlees Primary School",124667,"Academy","Academy"]
[120102,"Highnam CofE Primary Academy",120102,"Academy","Academy"]
[119287,"Highsted Grammar School",119287,"Academy","Academy"]
[124679,"Hightown Primary School",124679,"Academy","Academy"]
[123224,"Highwoods Community Primary School",123224,"Academy","Academy"]
[119416,"Highworth Grammar School",119416,"Academy","Academy"]
[119860,"Highworth Warneford School",119860,"Academy","Academy"]
[120885,"Hilbre High School",120885,"Academy","Academy"]
[132927,"Hilgay Riverside Academy",132927,"Academy","Academy"]
[124127,"Hill Farm Academy",124127,"Academy","Academy"]
[121211,"Hill Primary Academy, The",121211,"Academy","Academy"]
[132027,"Hill View Primary School",132027,"Academy","Academy"]
[122599,"Hill West Primary School",122599,"Academy","Academy"]
[124293,"Hillcrest Academy - Leeds",124293,"Academy","Academy"]
[120482,"Hillcrest School and Sixth Form Centre",120482,"Academy","Academy"]
[130347,"Hillcroft Primary School",130347,"Academy","Academy"]
[129071,"Hillingdon Primary School",129071,"Academy","Academy"]
[123278,"Hills Academy, The",123278,"Academy","Academy"]
[125023,"Hillsborough Primary School",125023,"Academy","Academy"]
[132307,"Hillsgrove Primary School",132307,"Academy","Academy"]
[131737,"Hillside High School",131737,"Academy","Academy"]
[124737,"Hillside Primary and Nursery School - Nottingham",124737,"Academy","Academy"]
[130752,"Hillside Primary School - Ipswich",130752,"Academy","Academy"]
[121862,"Hillside Primary School - Orpington",121862,"Academy","Academy"]
[130343,"Hillstone Primary School",130343,"Academy","Academy"]
[131334,"Hillsview Academy",131334,"Academy","Academy"]
[120245,"Hilltop Junior School - Wickford",120245,"Academy","Academy"]
[122063,"Hilltop Primary School - Crawley",122063,"Academy","Academy"]
[120104,"Hillview School for Girls",120104,"Academy","Academy"]
[119436,"Hillyfield Primary Academy",119436,"Academy","Academy"]
[122905,"Hilton Primary Academy",122905,"Academy","Academy"]
[120503,"Hinchingbrooke School",120503,"Academy","Academy"]
[120416,"Hinchley Wood School",120416,"Academy","Academy"]
[131914,"Hinckley Academy and John Cleveland Sixth Form Centre",131914,"Academy","Academy"]
[122797,"Hinde House 3-16 School",122797,"Academy","Academy"]
[131432,"Hindley Green Community Primary School",131432,"Academy","Academy"]
[122679,"Histon and Impington Infant School",122679,"Academy","Academy"]
[122718,"Histon and Impington Junior School",122718,"Academy","Academy"]
[122668,"Hitchin Boys' School",122668,"Academy","Academy"]
[120288,"Hitchin Girls' School",120288,"Academy","Academy"]
[122709,"Hobart High School",122709,"Academy","Academy"]
[119482,"Hockerill Anglo-European College",119482,"Academy","Academy"]
[133457,"Hockering Church of England Voluntary Aided Primary School",133457,"Academy","Academy"]
[121857,"Hockley Heath Academy",121857,"Academy","Academy"]
[119726,"Hodgson Academy",119726,"Academy","Academy"]
[132647,"Hoe Valley School",132647,"Academy","Academy"]
[126107,"Hogarth Academy",126107,"Academy","Academy"]
[122262,"Hogsthorpe Primary Academy",122262,"Academy","Academy"]
[130893,"Holbeach Primary School",130893,"Academy","Academy"]
[120208,"Holbrook Academy",120208,"Academy","Academy"]
[124990,"Holgate Academy",124990,"Academy","Academy"]
[124090,"Holland Park School",124090,"Academy","Academy"]
[122147,"Holley Park Academy",122147,"Academy","Academy"]
[130870,"Hollington Primary Academy, The",130870,"Academy","Academy"]
[120921,"Hollingworth Academy",120921,"Academy","Academy"]
[132000,"Hollinsclough Church of England Academy",132000,"Academy","Academy"]
[131890,"Hollinwood Academy",131890,"Academy","Academy"]
[120425,"Holly Hall Academy, The",120425,"Academy","Academy"]
[122588,"Hollybrook Infant School",122588,"Academy","Academy"]
[122859,"Hollybrook Junior School",122859,"Academy","Academy"]
[120544,"Hollyfield School and Sixth Form Centre, The",120544,"Academy","Academy"]
[130127,"Hollymount School  - Worcester",130127,"Academy","Academy"]
[132066,"Holmbush Primary Academy",132066,"Academy","Academy"]
[124580,"Holme Church of England Primary School, The",124580,"Academy","Academy"]
[120499,"Holmer CofE Academy",120499,"Academy","Academy"]
[121070,"Holmer Green Senior School",121070,"Academy","Academy"]
[120367,"Holmes Chapel Comprehensive School",120367,"Academy","Academy"]
[124565,"Holmes Chapel Primary School",124565,"Academy","Academy"]
[131175,"Holt Farm Junior School",131175,"Academy","Academy"]
[119880,"Holt School, The",119880,"Academy","Academy"]
[119981,"Holy Cross Catholic Primary School",119981,"Academy","Academy"]
[130084,"Holy Cross Catholic Primary School - Plymouth",130084,"Academy","Academy"]
[123902,"Holy Cross Catholic Primary School - Sutton Coldfield",123902,"Academy","Academy"]
[119967,"Holy Cross Catholic Primary School, Harlow",119967,"Academy","Academy"]
[121055,"Holy Cross Primary Catholic Voluntary Academy - Nottingham",121055,"Academy","Academy"]
[122363,"Holy Cross School A Catholic Voluntary Academy, Whitwick, Leicestershire",122363,"Academy","Academy"]
[122725,"Holy Cross School, The",122725,"Academy","Academy"]
[131226,"Holy Family and St Michael's Catholic Primary School - Pontefract",131226,"Academy","Academy"]
[123904,"Holy Family Catholic Academy - Cleethorpes",123904,"Academy","Academy"]
[130317,"Holy Family Catholic Primary School - Doncaster",130317,"Academy","Academy"]
[122507,"Holy Family Catholic Primary School - Swindon",122507,"Academy","Academy"]
[124248,"Holy Family Catholic Primary School, The - Maidstone",124248,"Academy","Academy"]
[124097,"Holy Family RC Primary School - Darlington",124097,"Academy","Academy"]
[129431,"Holy Innocents Catholic Primary School",129431,"Academy","Academy"]
[132973,"Holy Name Catholic Voluntary Academy",132973,"Academy","Academy"]
[120074,"Holy Rood Catholic Primary School",120074,"Academy","Academy"]
[131682,"Holy Rosary Catholic Primary School",131682,"Academy","Academy"]
[130512,"Holy Trinity",130512,"Academy","Academy"]
[126366,"Holy Trinity Catholic School - Newark",126366,"Academy","Academy"]
[130770,"Holy Trinity Catholic School, Chipping Norton",130770,"Academy","Academy"]
[124168,"Holy Trinity CE Primary Academy (Handsworth)",124168,"Academy","Academy"]
[121913,"Holy Trinity Church of England Academy - Calne",121913,"Academy","Academy"]
[130717,"Holy Trinity Church of England Academy (South Shields)",130717,"Academy","Academy"]
[120441,"Holy Trinity Church of England Primary Academy, The - Devizes",120441,"Academy","Academy"]
[123196,"Holy Trinity CofE Primary School - Haringey",123196,"Academy","Academy"]
[132301,"Holy Trinity Lamorbey Church of England School",132301,"Academy","Academy"]
[122132,"Holy Trinity Primary School, A Church of England Academy",122132,"Academy","Academy"]
[120034,"Holyhead School",120034,"Academy","Academy"]
[123312,"Holyport College",123312,"Academy","Academy"]
[119244,"Holyrood Academy",119244,"Academy","Academy"]
[122555,"Holywell Primary School - Loughborough",122555,"Academy","Academy"]
[122088,"Holywell School - Bedford",122088,"Academy","Academy"]
[120373,"Homewood School and Sixth Form Centre",120373,"Academy","Academy"]
[124330,"Honeybourne First School",124330,"Academy","Academy"]
[119912,"Honiton Community College",119912,"Academy","Academy"]
[119727,"Honywood Community Science School, The",119727,"Academy","Academy"]
[122819,"Hooe Primary Academy",122819,"Academy","Academy"]
[122163,"Hook-with-Warsash Church of England Academy",122163,"Academy","Academy"]
[119925,"Hope Academy",119925,"Academy","Academy"]
[123313,"Hope Community School",123313,"Academy","Academy"]
[120066,"Hope Valley College",120066,"Academy","Academy"]
[122597,"Hope Wood Academy",122597,"Academy","Academy"]
[122558,"Horbury Academy",122558,"Academy","Academy"]
[120893,"Horbury Bridge Church of England Junior and Infant Academy",120893,"Academy","Academy"]
[120136,"Horizon Primary Academy",120136,"Academy","Academy"]
[122172,"Hornbeam Academy Special Academy",122172,"Academy","Academy"]
[132189,"Horncastle St Lawrence School, The",132189,"Academy","Academy"]
[132191,"Hornton Primary School",132191,"Academy","Academy"]
[120179,"Horringer Court Middle School",120179,"Academy","Academy"]
[124132,"Horrington Primary School",124132,"Academy","Academy"]
[123940,"Horsell Village School",123940,"Academy","Academy"]
[120765,"Horsforth School",120765,"Academy","Academy"]
[125025,"Horsington Church School",125025,"Academy","Academy"]
[124144,"Hotwells Primary School",124144,"Academy","Academy"]
[121836,"Houghton Regis Academy",121836,"Academy","Academy"]
[120229,"Hounsdown School",120229,"Academy","Academy"]
[131404,"Howard Junior School",131404,"Academy","Academy"]
[119833,"Howard of Effingham School",119833,"Academy","Academy"]
[132397,"Howard Primary School, The",132397,"Academy","Academy"]
[130857,"Howard School, The",130857,"Academy","Academy"]
[129584,"Howbridge Church of England Junior School",129584,"Academy","Academy"]
[123036,"Hoyland Common Primary School",123036,"Academy","Academy"]
[132190,"Hoyland Springwood Primary School",132190,"Academy","Academy"]
[119245,"Huish Episcopi Academy",119245,"Academy","Academy"]
[131434,"Huish Episcopi Primary School",131434,"Academy","Academy"]
[124759,"Huish Primary School",124759,"Academy","Academy"]
[122028,"Hull Studio School",122028,"Academy","Academy"]
[120922,"Hull Trinity House Academy",120922,"Academy","Academy"]
[132685,"Humber UTC",132685,"Academy","Academy"]
[120200,"Humberston Academy",120200,"Academy","Academy"]
[121839,"Humberston Cloverfields Academy",121839,"Academy","Academy"]
[120443,"Humberston Park School",120443,"Academy","Academy"]
[124337,"Humberstone Junior School",124337,"Academy","Academy"]
[119838,"Hummersknott Academy",119838,"Academy","Academy"]
[120901,"Humphrey Perkins School",120901,"Academy","Academy"]
[122173,"Huncote Community Primary School",122173,"Academy","Academy"]
[120119,"Hundred of Hoo Academy, The",120119,"Academy","Academy"]
[131511,"Hungerford Primary Academy",131511,"Academy","Academy"]
[120940,"Hungerhill School",120940,"Academy","Academy"]
[132648,"Hunsley Primary School",132648,"Academy","Academy"]
[120568,"Huntcliff School",120568,"Academy","Academy"]
[120539,"Huntingdon Academy - Nottingham",120539,"Academy","Academy"]
[131680,"Huntington Primary School - York",131680,"Academy","Academy"]
[124181,"Huntingtower Community Primary Academy",124181,"Academy","Academy"]
[131989,"Hunts Grove Primary Academy",131989,"Academy","Academy"]
[131684,"Hurlingham Academy, The",131684,"Academy","Academy"]
[124620,"Hurst Primary School",124620,"Academy","Academy"]
[128047,"Hursthead Junior School",128047,"Academy","Academy"]
[120404,"Hurstmere School",120404,"Academy","Academy"]
[121832,"Hurworth Primary School",121832,"Academy","Academy"]
[119572,"Hurworth School",119572,"Academy","Academy"]
[122869,"Huttoft Primary School",122869,"Academy","Academy"]
[120718,"Hutton All Saints' Church of England Primary School",120718,"Academy","Academy"]
[121017,"Huxlow Science College",121017,"Academy","Academy"]
[124345,"Hyde School, The",124345,"Academy","Academy"]
[120072,"Hylands School",120072,"Academy","Academy"]
[122529,"Hyndburn Studio School",122529,"Academy","Academy"]
[131367,"Ian Ramsey Church of England Academy",131367,"Academy","Academy"]
[122655,"Ibstock Community College",122655,"Academy","Academy"]
[131973,"Iceni Academy - Colchester",131973,"Academy","Academy"]
[122542,"Iceni Academy - Thetford",122542,"Academy","Academy"]
[120569,"Icknield High School",120569,"Academy","Academy"]
[130123,"Idsall School",130123,"Academy","Academy"]
[122015,"IES Breckland",122015,"Academy","Academy"]
[132681,"IKB Studio School (Bath), The",132681,"Academy","Academy"]
[124360,"Ilfracombe Church of England Academy, The",124360,"Academy","Academy"]
[119821,"Ilkley Grammar School",119821,"Academy","Academy"]
[120906,"Ilminster Avenue E-ACT Academy",120906,"Academy","Academy"]
[120304,"Ilsham Church of England Academy",120304,"Academy","Academy"]
[119919,"Ilsington Church of England Primary School",119919,"Academy","Academy"]
[131587,"Immaculate Conception Catholic Primary",131587,"Academy","Academy"]
[133176,"Immanuel College",133176,"Academy","Academy"]
[120714,"Impington Village College",120714,"Academy","Academy"]
[120303,"Independent Jewish Day School",120303,"Academy","Academy"]
[130513,"Ingleby Manor Free School & Sixth Form",130513,"Academy","Academy"]
[121167,"Ingoldmells Academy",121167,"Academy","Academy"]
[131387,"Ingoldsby Wood Academy",131387,"Academy","Academy"]
[131832,"Inkersall Primary School",131832,"Academy","Academy"]
[129876,"Inspire Academy",129876,"Academy","Academy"]
[123392,"Inspire Enterprise Academy",123392,"Academy","Academy"]
[130514,"INSPIRE Free Special School",130514,"Academy","Academy"]
[119660,"Invicta Grammar School",119660,"Academy","Academy"]
[122543,"Ipsley CE RSA Academy",122543,"Academy","Academy"]
[119502,"Ipswich Academy",119502,"Academy","Academy"]
[124195,"Iqra Academy - Bradford",124195,"Academy","Academy"]
[131940,"Irthlingborough Infant School and Nursery",131940,"Academy","Academy"]
[131937,"Irthlingborough Junior School",131937,"Academy","Academy"]
[130913,"Isaac Newton Primary School, The",130913,"Academy","Academy"]
[124077,"Isambard Brunel Junior School",124077,"Academy","Academy"]
[122640,"Isca",122640,"Academy","Academy"]
[131347,"Isebrook SEN Cognition & Learning College",131347,"Academy","Academy"]
[122868,"Isis Academy, The",122868,"Academy","Academy"]
[130516,"Island Free School, The",130516,"Academy","Academy"]
[130406,"Isle of Ely Primary School",130406,"Academy","Academy"]
[120983,"Isle of Portland Aldridge Community Academy",120983,"Academy","Academy"]
[130573,"Isle of Wight Studio School",130573,"Academy","Academy"]
[120870,"Isleworth and Syon School for Boys",120870,"Academy","Academy"]
[131527,"Istead Rise Primary School",131527,"Academy","Academy"]
[122128,"Ivanhoe College Ashby-De-La-Zouch",122128,"Academy","Academy"]
[124647,"Ivingswood Academy",124647,"Academy","Academy"]
[131551,"Ivy Bank Primary School",131551,"Academy","Academy"]
[119367,"Ivybridge Community College",119367,"Academy","Academy"]
[128030,"Iwade School",128030,"Academy","Academy"]
[130518,"Ixworth Free School",130518,"Academy","Academy"]
[120663,"James Brindley School",120663,"Academy","Academy"]
[123285,"James Elliman Academy",123285,"Academy","Academy"]
[121878,"James Hornsby School, The",121878,"Academy","Academy"]
[130519,"Jane Austen College",130519,"Academy","Academy"]
[119213,"JCB Academy, The",119213,"Academy","Academy"]
[120148,"Jerry Clay Academy",120148,"Academy","Academy"]
[131412,"Jervoise School",131412,"Academy","Academy"]
[126491,"Jewell Academy Bournemouth",126491,"Academy","Academy"]
[120571,"John Bentley School, The",120571,"Academy","Academy"]
[124731,"John Blandy Primary School",124731,"Academy","Academy"]
[118621,"John Cabot Academy",118621,"Academy","Academy"]
[122331,"John Cleveland College",122331,"Academy","Academy"]
[120261,"John Colet School",120261,"Academy","Academy"]
[131974,"John Curwen Co-operative Academy, The",131974,"Academy","Academy"]
[129075,"John Donne Primary School",129075,"Academy","Academy"]
[130904,"John F Kennedy Special School",130904,"Academy","Academy"]
[120644,"John Ferneley College",120644,"Academy","Academy"]
[133187,"John Fielding Special School, The",133187,"Academy","Academy"]
[119770,"John Hampden Grammar School",119770,"Academy","Academy"]
[122336,"John Henry Newman Academy",122336,"Academy","Academy"]
[119437,"John Henry Newman Catholic College - Solihull",119437,"Academy","Academy"]
[121183,"John Henry Newman Catholic School, The - Stevenage",121183,"Academy","Academy"]
[119414,"John Kyrle High School and Sixth Form Centre Academy",119414,"Academy","Academy"]
[129596,"John Locke Academy",129596,"Academy","Academy"]
[118622,"John Madejski Academy",118622,"Academy","Academy"]
[119800,"John Masefield High School",119800,"Academy","Academy"]
[129426,"John Mason School",129426,"Academy","Academy"]
[120822,"John of Gaunt School, The",120822,"Academy","Academy"]
[119618,"John Port School",119618,"Academy","Academy"]
[120516,"John Smeaton Academy",120516,"Academy","Academy"]
[119968,"John Spendluffe Foundation Technology College",119968,"Academy","Academy"]
[119353,"John Taylor High School",119353,"Academy","Academy"]
[119309,"John Wallis Church of England Academy, The",119309,"Academy","Academy"]
[119627,"John Warner School, The",119627,"Academy","Academy"]
[130829,"John Wheeldon Primary Academy",130829,"Academy","Academy"]
[120464,"John Whitgift Academy",120464,"Academy","Academy"]
[125014,"Joseph Clarke School",125014,"Academy","Academy"]
[120848,"Joseph Leckie Academy",120848,"Academy","Academy"]
[120691,"Joseph Swan Academy",120691,"Academy","Academy"]
[120678,"Joseph Whitaker School",120678,"Academy","Academy"]
[120247,"Jotmans Hall Primary School",120247,"Academy","Academy"]
[122136,"Joyce Frankland Academy, Newport",122136,"Academy","Academy"]
[120619,"Joydens Wood Infant School",120619,"Academy","Academy"]
[120618,"Joydens Wood Junior School",120618,"Academy","Academy"]
[122043,"Jubilee Academy Mossley",122043,"Academy","Academy"]
[123414,"Jubilee Academy, The - Harrow",123414,"Academy","Academy"]
[124734,"Jubilee High School",124734,"Academy","Academy"]
[124117,"Jubilee Park Academy",124117,"Academy","Academy"]
[130520,"Jubilee Primary School - Maidstone",130520,"Academy","Academy"]
[131177,"Jubilee Primary School - Nottingham",131177,"Academy","Academy"]
[123315,"Judith Kerr Primary School",123315,"Academy","Academy"]
[130511,"Jupiter Community Free School",130511,"Academy","Academy"]
[129905,"Kader Primary School",129905,"Academy","Academy"]
[123387,"Kajans Hospitality & Catering Studio College - Khcsc",123387,"Academy","Academy"]
[123860,"Kanes Hill Primary School",123860,"Academy","Academy"]
[120033,"Katharine Lady Berkeley's School",120033,"Academy","Academy"]
[131357,"Katherine Semar Infant School",131357,"Academy","Academy"]
[120727,"Katherine Semar Junior School",120727,"Academy","Academy"]
[119227,"Kearsley Academy",119227,"Academy","Academy"]
[123254,"Kedington Primary Academy",123254,"Academy","Academy"]
[131688,"Keelby Primary School",131688,"Academy","Academy"]
[133438,"Kehelland Village School",133438,"Academy","Academy"]
[122569,"Kelsall Primary School",122569,"Academy","Academy"]
[123161,"Kelvedon St Mary's Church of England Primary Academy",123161,"Academy","Academy"]
[119273,"Kemnal Technology College",119273,"Academy","Academy"]
[123946,"Kemsley Primary Academy",123946,"Academy","Academy"]
[119464,"Kendrick School",119464,"Academy","Academy"]
[119645,"Kennet School",119645,"Academy","Academy"]
[122516,"Kennett Primary School",122516,"Academy","Academy"]
[131179,"Kennington Church of England Academy",131179,"Academy","Academy"]
[124452,"Kennington Park Academy",124452,"Academy","Academy"]
[122566,"Kenningtons Primary Academy",122566,"Academy","Academy"]
[122005,"Kensington Aldridge Academy",122005,"Academy","Academy"]
[131389,"Kentmere Primary Academy",131389,"Academy","Academy"]
[120910,"Kenton School",120910,"Academy","Academy"]
[120330,"Kents Hill Infant School",120330,"Academy","Academy"]
[120586,"Kents Hill Junior School",120586,"Academy","Academy"]
[130950,"Kents Hill School - Milton Keynes",130950,"Academy","Academy"]
[124295,"Kenyngton Manor Primary School",124295,"Academy","Academy"]
[120262,"Kepier",120262,"Academy","Academy"]
[131659,"Keresley Newland Primary Academy",131659,"Academy","Academy"]
[119969,"Kesgrave High School",119969,"Academy","Academy"]
[130319,"Kessingland Church of England Primary Academy",130319,"Academy","Academy"]
[122564,"Kesteven and Grantham Girls' School",122564,"Academy","Academy"]
[120675,"Kesteven and Sleaford High School Selective Academy",120675,"Academy","Academy"]
[129900,"Keston Church of England Primary School",129900,"Academy","Academy"]
[119862,"Keswick School",119862,"Academy","Academy"]
[119105,"Kettering Buccleuch Academy",119105,"Academy","Academy"]
[119106,"Kettering Science Academy",119106,"Academy","Academy"]
[131053,"Ketton Church of England Primary School",131053,"Academy","Academy"]
[130085,"Keyham Barton Catholic Primary School",130085,"Academy","Academy"]
[123316,"Khalsa Science Academy",123316,"Academy","Academy"]
[123317,"Khalsa Secondary Academy",123317,"Academy","Academy"]
[121908,"Kibblesworth Academy",121908,"Academy","Academy"]
[122048,"Kibworth Church of England Primary School",122048,"Academy","Academy"]
[120555,"Kibworth High School & Community Technology College",120555,"Academy","Academy"]
[132976,"Kickstart",132976,"Academy","Academy"]
[132649,"Kilburn Grange School",132649,"Academy","Academy"]
[129892,"Kilsby Church of England Primary School",129892,"Academy","Academy"]
[122603,"Kilton Thorpe Specialist Academy",122603,"Academy","Academy"]
[123318,"Kimberley 16 - 19 Stem College",123318,"Academy","Academy"]
[122726,"Kimberley School, The",122726,"Academy","Academy"]
[127277,"Kimbolton Primary Academy",127277,"Academy","Academy"]
[120140,"King Alfred's",120140,"Academy","Academy"]
[121012,"King Charles I Secondary School",121012,"Academy","Academy"]
[120309,"King David High School, The",120309,"Academy","Academy"]
[123275,"King David Primary School",123275,"Academy","Academy"]
[121930,"King Ecgbert School",121930,"Academy","Academy"]
[119868,"King Edmund School, The",119868,"Academy","Academy"]
[121215,"King Edward VI Academy - Spilsby",121215,"Academy","Academy"]
[120043,"King Edward VI Aston School",120043,"Academy","Academy"]
[120045,"King Edward VI Camp Hill School for Boys",120045,"Academy","Academy"]
[120044,"King Edward VI Camp Hill School for Girls",120044,"Academy","Academy"]
[120046,"King Edward VI Five Ways School",120046,"Academy","Academy"]
[132405,"King Edward VI Grammar School - Louth",132405,"Academy","Academy"]
[119685,"King Edward VI Grammar School, Chelmsford",119685,"Academy","Academy"]
[120047,"King Edward VI Handsworth School",120047,"Academy","Academy"]
[120302,"King Edward VI School - Stratford-upon-Avon",120302,"Academy","Academy"]
[120871,"King Edward VI School, The",120871,"Academy","Academy"]
[119208,"King Edward VI Sheldon Heath Academy",119208,"Academy","Academy"]
[130296,"King Edward VII Academy",130296,"Academy","Academy"]
[114115,"King Edward VII Science and Sport College",114115,"Academy","Academy"]
[119658,"King Ethelbert School",119658,"Academy","Academy"]
[119365,"King Harold Business & Enterprise Academy",119365,"Academy","Academy"]
[130864,"King Ina Academy (Infants)",130864,"Academy","Academy"]
[119771,"King James I Academy Bishop Auckland",119771,"Academy","Academy"]
[122293,"King James's School",122293,"Academy","Academy"]
[119652,"King John School, The",119652,"Academy","Academy"]
[122301,"King Offa Primary Academy",122301,"Academy","Academy"]
[118623,"King Solomon Academy",118623,"Academy","Academy"]
[132650,"King Solomon International Business School",132650,"Academy","Academy"]
[121875,"King William Street Church of England Primary School",121875,"Academy","Academy"]
[130522,"King’s College London Maths School",130522,"Academy","Academy"]
[131116,"Kingfisher Academy - Burton-on-Trent",131116,"Academy","Academy"]
[124656,"Kingfisher Community Primary School",124656,"Academy","Academy"]
[121993,"Kingfisher Hall Primary Academy",121993,"Academy","Academy"]
[122544,"Kingfisher School - Abingdon",122544,"Academy","Academy"]
[122666,"Kingfisher School, The - Bristol",122666,"Academy","Academy"]
[127196,"Kingfisher School, The - Redditch",127196,"Academy","Academy"]
[119404,"King's (The Cathedral) School, The - Peterborough",119404,"Academy","Academy"]
[118405,"King's Academy, The",118405,"Academy","Academy"]
[122663,"Kings Ash Academy",122663,"Academy","Academy"]
[119795,"King's Caple Primary Academy",119795,"Academy","Academy"]
[130933,"Kings College Guildford",130933,"Academy","Academy"]
[130943,"Kings Cross Academy",130943,"Academy","Academy"]
[124669,"Kings Heath Primary Academy",124669,"Academy","Academy"]
[123186,"Kings Langley School",123186,"Academy","Academy"]
[121989,"King's Leadership Academy",121989,"Academy","Academy"]
[120954,"King's Leadership Academy, Liverpool",120954,"Academy","Academy"]
[119326,"King's Lynn Academy",119326,"Academy","Academy"]
[119621,"Kings Norton Girls' School",119621,"Academy","Academy"]
[120106,"King's Oak Academy",120106,"Academy","Academy"]
[119289,"Kings of Wessex Academy, The",119289,"Academy","Academy"]
[131738,"King's Park Academy",131738,"Academy","Academy"]
[123100,"Kings Priory School",123100,"Academy","Academy"]
[122851,"Kings Rise Academy",122851,"Academy","Academy"]
[123319,"King's School - Hove",123319,"Academy","Academy"]
[120166,"King's School, Grantham, The",120166,"Academy","Academy"]
[119688,"King's School, The - Devon",119688,"Academy","Academy"]
[123220,"King's School, The - Wakefield",123220,"Academy","Academy"]
[124193,"Kings Sutton Primary School",124193,"Academy","Academy"]
[119402,"Kingsbridge Academy",119402,"Academy","Academy"]
[120732,"Kingsbury High School",120732,"Academy","Academy"]
[131669,"Kingsbury School",131669,"Academy","Academy"]
[119361,"Kingsdale Foundation School",119361,"Academy","Academy"]
[120265,"Kingsdown School",120265,"Academy","Academy"]
[130330,"Kingsfield Primary School",130330,"Academy","Academy"]
[130895,"Kingsham Primary School",130895,"Academy","Academy"]
[122815,"Kingshill Church School",122815,"Academy","Academy"]
[131687,"Kingsleigh Primary School",131687,"Academy","Academy"]
[121991,"Kingsley Academy - Hounslow",121991,"Academy","Academy"]
[120656,"Kingsley School - Kettering",120656,"Academy","Academy"]
[119540,"Kingsmead Academy - Taunton",119540,"Academy","Academy"]
[132270,"Kingsmead School - Cannock",132270,"Academy","Academy"]
[119288,"Kingsmead School - Enfield",119288,"Academy","Academy"]
[122841,"Kingsmoor Academy",122841,"Academy","Academy"]
[133110,"Kingsnorth Church of England Primary School",133110,"Academy","Academy"]
[122371,"Kingsthorpe College",122371,"Academy","Academy"]
[132660,"Kingston Academy, The",132660,"Academy","Academy"]
[132651,"Kingston Community School",132651,"Academy","Academy"]
[122956,"Kingston Park Academy",122956,"Academy","Academy"]
[120220,"Kingston School",120220,"Academy","Academy"]
[120426,"Kingstone and Thruxton Primary School",120426,"Academy","Academy"]
[120073,"Kingstone High School",120073,"Academy","Academy"]
[130932,"Kingsway Academy, The - Moreton",130932,"Academy","Academy"]
[132488,"Kingsway School, The - Cheadle",132488,"Academy","Academy"]
[124727,"Kingswear Community Primary School",124727,"Academy","Academy"]
[120520,"Kingswinford School & Science College, The",120520,"Academy","Academy"]
[122809,"Kingswood Academy - Hull",122809,"Academy","Academy"]
[129599,"Kingswood Parks Primary School",129599,"Academy","Academy"]
[122684,"Kingswood Primary Academy - Corby",122684,"Academy","Academy"]
[124835,"Kingswood Secondary Academy - Corby",124835,"Academy","Academy"]
[131998,"Kinsley Primary (J and I) School",131998,"Academy","Academy"]
[132425,"Kinson Primary School",132425,"Academy","Academy"]
[131355,"Kinver High School and Sixth Form",131355,"Academy","Academy"]
[126355,"Kirby Muxloe Primary School",126355,"Academy","Academy"]
[124683,"Kirby Primary Academy",124683,"Academy","Academy"]
[124305,"Kirk Balk Academy",124305,"Academy","Academy"]
[119485,"Kirk Hallam Community Academy",119485,"Academy","Academy"]
[122723,"Kirk Sandall Infant School",122723,"Academy","Academy"]
[131590,"Kirk Sandall Junior School",131590,"Academy","Academy"]
[119686,"Kirkbie Kendal School",119686,"Academy","Academy"]
[121041,"Kirkby College",121041,"Academy","Academy"]
[124216,"Kirkby High School",124216,"Academy","Academy"]
[120107,"Kirkby Stephen Grammar School",120107,"Academy","Academy"]
[124736,"Kirkby-la-Thorpe Church of England Primary School, The",124736,"Academy","Academy"]
[119626,"Knights Templar School, The",119626,"Academy","Academy"]
[122167,"Knightsfield School",122167,"Academy","Academy"]
[131112,"Knockhall Academy",131112,"Academy","Academy"]
[119193,"Knole Academy",119193,"Academy","Academy"]
[130138,"Knollmead Primary School",130138,"Academy","Academy"]
[122738,"Knottingley St Botolphs C of E Academy",122738,"Academy","Academy"]
[130828,"Knowl Hill Church of England Primary Academy",130828,"Academy","Academy"]
[123878,"Knowle Church of England Primary Academy",123878,"Academy","Academy"]
[130952,"Knowsley Lane Primary School",130952,"Academy","Academy"]
[121163,"Knutsford Academy",121163,"Academy","Academy"]
[130574,"Knutsford Academy - the Studio",130574,"Academy","Academy"]
[122713,"Krishna Avanti Primary School - Harrow",122713,"Academy","Academy"]
[120530,"Krishna Avanti Primary School - Leicester",120530,"Academy","Academy"]
[130486,"La Fontaine Academy",130486,"Academy","Academy"]
[131834,"Lace Hill Academy",131834,"Academy","Academy"]
[128058,"Laceby Acres Primary Academy",128058,"Academy","Academy"]
[120368,"Lacey Green Primary Academy",120368,"Academy","Academy"]
[130312,"Lacon Childe School, The",130312,"Academy","Academy"]
[127543,"Ladock CofE School",127543,"Academy","Academy"]
[120540,"Lady Hawkins' School",120540,"Academy","Academy"]
[122816,"Lady Jane Grey Primary School",122816,"Academy","Academy"]
[122577,"Lady Margaret School",122577,"Academy","Academy"]
[120523,"Lady Seaward's Church of England Primary School",120523,"Academy","Academy"]
[124681,"Ladybarn Primary School",124681,"Academy","Academy"]
[123909,"Ladygrove Park Primary School",123909,"Academy","Academy"]
[132389,"Laithes Primary School",132389,"Academy","Academy"]
[129597,"Lake Farm Park Academy",129597,"Academy","Academy"]
[122587,"Lakelands Academy",122587,"Academy","Academy"]
[133096,"Lakeside Primary School",133096,"Academy","Academy"]
[118624,"Lambeth Academy",118624,"Academy","Academy"]
[119270,"Lampton Academy",119270,"Academy","Academy"]
[119412,"Lancaster Girls' Grammar School",119412,"Academy","Academy"]
[119751,"Lancaster Royal Grammar School",119751,"Academy","Academy"]
[130556,"Lanchester Community Free School",130556,"Academy","Academy"]
[132977,"Lancot School",132977,"Academy","Academy"]
[123267,"Landau Forte Academy Greenacres",123267,"Academy","Academy"]
[121918,"Landau Forte Academy Moorhead",121918,"Academy","Academy"]
[131642,"Landau Forte Academy Tamworth Sixth Form",131642,"Academy","Academy"]
[119203,"Landau Forte Academy, Amington",119203,"Academy","Academy"]
[120146,"Landau Forte Academy, QEMS",120146,"Academy","Academy"]
[118636,"Landau Forte College - Derby",118636,"Academy","Academy"]
[127406,"Landulph School",127406,"Academy","Academy"]
[125012,"Lanesend Primary School",125012,"Academy","Academy"]
[123320,"Langdale Free School",123320,"Academy","Academy"]
[127703,"Langdon Academy",127703,"Academy","Academy"]
[121077,"Langer Primary Academy",121077,"Academy","Academy"]
[130611,"Langford Lower School",130611,"Academy","Academy"]
[131591,"Langford Primary School",131591,"Academy","Academy"]
[124624,"Langham CofE (Controlled) Primary School",124624,"Academy","Academy"]
[131872,"Langham Oaks",131872,"Academy","Academy"]
[133032,"Langley Academy Primary, The",133032,"Academy","Academy"]
[118632,"Langley Academy, The - Slough",118632,"Academy","Academy"]
[119554,"Langley Grammar School",119554,"Academy","Academy"]
[120461,"Langley Hall Primary Academy",120461,"Academy","Academy"]
[119544,"Langley Park School for Boys",119544,"Academy","Academy"]
[120006,"Langley Park School for Girls",120006,"Academy","Academy"]
[120007,"Langley School - Solihull",120007,"Academy","Academy"]
[124538,"Langmoor Primary School Oadby",124538,"Academy","Academy"]
[124242,"Langtons Junior Academy",124242,"Academy","Academy"]
[120994,"Langtree School",120994,"Academy","Academy"]
[121152,"Lansdowne Primary Academy - Tilbury",121152,"Academy","Academy"]
[131509,"Lansdowne Primary School - Sittingbourne",131509,"Academy","Academy"]
[120869,"Lapford Community Primary School",120869,"Academy","Academy"]
[130118,"Larchwood Primary School",130118,"Academy","Academy"]
[124782,"Lark Hall Infant & Nursery Academy",124782,"Academy","Academy"]
[119290,"Lark Rise Academy",119290,"Academy","Academy"]
[131685,"Larkswood Primary School",131685,"Academy","Academy"]
[132430,"Latchingdon Church of England Voluntary Controlled Primary School",132430,"Academy","Academy"]
[122414,"Latchmere School",122414,"Academy","Academy"]
[129567,"Latimer AP Academy",129567,"Academy","Academy"]
[131140,"Latton Green Primary Academy",131140,"Academy","Academy"]
[123169,"Launceston College",123169,"Academy","Academy"]
[124350,"Launde Primary School",124350,"Academy","Academy"]
[122935,"Laurel Lane Primary School",122935,"Academy","Academy"]
[119400,"Lavington School",119400,"Academy","Academy"]
[132390,"Lawley Village Academy",132390,"Academy","Academy"]
[130320,"Lawrence Sheriff School",130320,"Academy","Academy"]
[131238,"Lazonby C of E Primary School",131238,"Academy","Academy"]
[122574,"Lea Forest Primary Academy",122574,"Academy","Academy"]
[122885,"Leaf Studio",122885,"Academy","Academy"]
[132480,"Leamington Hastings Church of England Academy",132480,"Academy","Academy"]
[124824,"Leamington Primary and Nursery Academy",124824,"Academy","Academy"]
[132057,"Lee Brigg Infant and Nursery School",132057,"Academy","Academy"]
[120108,"Lee Chapel Primary School",120108,"Academy","Academy"]
[123950,"Leeds City Academy",123950,"Academy","Academy"]
[119926,"Leeds East Academy",119926,"Academy","Academy"]
[123321,"Leeds Jewish Free School",123321,"Academy","Academy"]
[119091,"Leeds West Academy",119091,"Academy","Academy"]
[120095,"Lees Brook Community School",120095,"Academy","Academy"]
[131064,"Leesons Primary School",131064,"Academy","Academy"]
[118686,"Leigh Academy, The",118686,"Academy","Academy"]
[131181,"Leigh Beck Infant School and Nursery Academy",131181,"Academy","Academy"]
[127383,"Leigh Primary School",127383,"Academy","Academy"]
[130560,"Leigh UTC, The - Dartford",130560,"Academy","Academy"]
[123260,"Leighfield Primary School",123260,"Academy","Academy"]
[124179,"Leighton Academy",124179,"Academy","Academy"]
[131191,"Leiston Primary School",131191,"Academy","Academy"]
[129583,"Lena Gardens Primary School",129583,"Academy","Academy"]
[132926,"Lent Rise School",132926,"Academy","Academy"]
[123078,"Lerryn CofE Primary School",123078,"Academy","Academy"]
[132224,"Lessness Heath Primary School",132224,"Academy","Academy"]
[120191,"Lethbridge Primary School",120191,"Academy","Academy"]
[130302,"Levenshulme High School",130302,"Academy","Academy"]
[120156,"Leventhorpe",120156,"Academy","Academy"]
[119392,"Lever Edge Primary Academy",119392,"Academy","Academy"]
[119585,"Leverington Primary Academy",119585,"Academy","Academy"]
[120728,"Leverton Church of England Academy",120728,"Academy","Academy"]
[129552,"Lewannick Community Primary School",129552,"Academy","Academy"]
[122377,"Leysland High School",122377,"Academy","Academy"]
[120615,"Lickhill Primary School",120615,"Academy","Academy"]
[120231,"Light Hall School",120231,"Academy","Academy"]
[120036,"Lightcliffe Academy",120036,"Academy","Academy"]
[122534,"Lighthouse School Leeds",122534,"Academy","Academy"]
[132469,"Lightwater Village School",132469,"Academy","Academy"]
[126289,"Lime Tree Primary School - Reigate",126289,"Academy","Academy"]
[127505,"Lime Tree Primary School - Sale",127505,"Academy","Academy"]
[120098,"Limehurst Academy",120098,"Academy","Academy"]
[126508,"Lincoln Carlton Academy",126508,"Academy","Academy"]
[119669,"Lincoln Castle Academy",119669,"Academy","Academy"]
[120408,"Lincoln Christ's Hospital School",120408,"Academy","Academy"]
[122137,"Lincoln Manor Leas Infants School, The",122137,"Academy","Academy"]
[124196,"Lincoln Manor Leas Junior School, The",124196,"Academy","Academy"]
[130565,"Lincoln University Technical College",130565,"Academy","Academy"]
[119471,"Lincroft Middle School",119471,"Academy","Academy"]
[130152,"Linden Road Academy",130152,"Academy","Academy"]
[132056,"Lindfield Primary Academy",132056,"Academy","Academy"]
[130718,"Lindley Church of England Infant School",130718,"Academy","Academy"]
[120547,"Lindley Junior School",120547,"Academy","Academy"]
[122490,"Lings Primary School",122490,"Academy","Academy"]
[132964,"Lingwood Primary and Nursery School",132964,"Academy","Academy"]
[122706,"Links AP Academy, The",122706,"Academy","Academy"]
[119759,"Linslade Academy Trust",119759,"Academy","Academy"]
[119451,"Linton Village College",119451,"Academy","Academy"]
[130548,"LIPA Primary School",130548,"Academy","Academy"]
[119683,"Lipson Co-operative Academy",119683,"Academy","Academy"]
[130614,"Liskeard Hillfort Primary School",130614,"Academy","Academy"]
[120559,"Lisle Marsden Church of England Primary Academy",120559,"Academy","Academy"]
[131672,"Litherland High School",131672,"Academy","Academy"]
[122711,"Little Gonerby Church of England Infant School, The",122711,"Academy","Academy"]
[126529,"Little Hill Primary",126529,"Academy","Academy"]
[132914,"Little Lever School",132914,"Academy","Academy"]
[122769,"Little Mead Primary Academy",122769,"Academy","Academy"]
[124688,"Little Parndon Primary School",124688,"Academy","Academy"]
[121208,"Little Reddings Primary School",121208,"Academy","Academy"]
[124730,"Littledown School",124730,"Academy","Academy"]
[118853,"Littlehampton Academy, The",118853,"Academy","Academy"]
[120849,"Littletown Primary Academy",120849,"Academy","Academy"]
[121939,"Littleworth Grange Primary Academy",121939,"Academy","Academy"]
[122814,"Liverpool College",122814,"Academy","Academy"]
[122158,"Liverpool Life Sciences UTC",122158,"Academy","Academy"]
[122821,"Llangrove CofE Primary School",122821,"Academy","Academy"]
[124516,"Loatlands Primary School",124516,"Academy","Academy"]
[130842,"Loddington CofE (VA) Primary School",130842,"Academy","Academy"]
[120008,"Lode Heath School",120008,"Academy","Academy"]
[120943,"Lodge Park Academy",120943,"Academy","Academy"]
[118396,"London Academy - Barnet",118396,"Academy","Academy"]
[121994,"London Academy of Excellence - Newham",121994,"Academy","Academy"]
[130523,"London Enterprise Academy",130523,"Academy","Academy"]
[120157,"London Oratory School, The",120157,"Academy","Academy"]
[121040,"Long Bennington Church of England Primary School",121040,"Academy","Academy"]
[119650,"Long Eaton School, The",119650,"Academy","Academy"]
[122654,"Long Field Academy",122654,"Academy","Academy"]
[124532,"Longcot and Fernham Church of England Primary School",124532,"Academy","Academy"]
[120110,"Longdean School",120110,"Academy","Academy"]
[118625,"Longfield Academy - Kent",118625,"Academy","Academy"]
[120222,"Longfield Academy of Sport - Darlington",120222,"Academy","Academy"]
[124261,"Longhill Primary School",124261,"Academy","Academy"]
[131373,"Longlands Primary School",131373,"Academy","Academy"]
[132957,"Longney Church of England Primary Academy",132957,"Academy","Academy"]
[119992,"Longsands Academy",119992,"Academy","Academy"]
[133459,"Longshaw Primary School",133459,"Academy","Academy"]
[123322,"Longsight Community Primary",123322,"Academy","Academy"]
[114117,"Longslade Community College",114117,"Academy","Academy"]
[124205,"Longspee School",124205,"Academy","Academy"]
[131141,"Longwood Primary Academy",131141,"Academy","Academy"]
[120828,"Looe Community Academy",120828,"Academy","Academy"]
[125175,"Looe Primary School",125175,"Academy","Academy"]
[124231,"Lord Derby Academy",124231,"Academy","Academy"]
[120758,"Lord Lawson of Beamish Academy",120758,"Academy","Academy"]
[119796,"Lord Scudamore Primary School",119796,"Academy","Academy"]
[122280,"Lord Williams's School",122280,"Academy","Academy"]
[130352,"Lord Wilson School",130352,"Academy","Academy"]
[122557,"Lordswood Boys' School - Birmingham",122557,"Academy","Academy"]
[119622,"Lordswood Girls' School and Sixth Form Centre - Birmingham",119622,"Academy","Academy"]
[124659,"Lordswood School - Chatham",124659,"Academy","Academy"]
[121920,"Loreto College - St. Albans",121920,"Academy","Academy"]
[122561,"Loreto Grammar School - Trafford",122561,"Academy","Academy"]
[120111,"Lostock Hall Academy",120111,"Academy","Academy"]
[132409,"Lostwithiel School",132409,"Academy","Academy"]
[132346,"Lothersdale Community Primary School",132346,"Academy","Academy"]
[130334,"Loughborough Church of England Primary School",130334,"Academy","Academy"]
[124158,"Loughton School",124158,"Academy","Academy"]
[124315,"Lound Infant School",124315,"Academy","Academy"]
[124298,"Lound Junior School",124298,"Academy","Academy"]
[121871,"Louth Kidgate Primary School",121871,"Academy","Academy"]
[119659,"Lowbrook Academy",119659,"Academy","Academy"]
[130767,"Lowedges Junior Academy",130767,"Academy","Academy"]
[126527,"Loxford School of Science and Technology",126527,"Academy","Academy"]
[131424,"Loxley Hall School",131424,"Academy","Academy"]
[124556,"Lubenham All Saints Church of England Primary School",124556,"Academy","Academy"]
[120764,"Luddendenfoot Academy",120764,"Academy","Academy"]
[121132,"Luddenham School",121132,"Academy","Academy"]
[120395,"Ludgvan Community Primary School",120395,"Academy","Academy"]
[122604,"Ludlow Infant Academy",122604,"Academy","Academy"]
[122948,"Ludlow Junior School",122948,"Academy","Academy"]
[121087,"Lugwardine Primary Academy",121087,"Academy","Academy"]
[122254,"Lumbertubs Primary School",122254,"Academy","Academy"]
[121464,"Lutterworth College",121464,"Academy","Academy"]
[120115,"Lutterworth High School",120115,"Academy","Academy"]
[131689,"Lydd Primary School",131689,"Academy","Academy"]
[131840,"Lyde Green Primary School",131840,"Academy","Academy"]
[122665,"Lydiard Millicent CofE Primary School",122665,"Academy","Academy"]
[120264,"Lydiard Park Academy",120264,"Academy","Academy"]
[122502,"Lymm High School",122502,"Academy","Academy"]
[130524,"Lynch Hill Enterprise Academy",130524,"Academy","Academy"]
[120010,"Lynch Hill School Primary Academy",120010,"Academy","Academy"]
[122991,"Lyndhurst Junior School",122991,"Academy","Academy"]
[132343,"Lyndon School",132343,"Academy","Academy"]
[120607,"Lynn Grove Academy",120607,"Academy","Academy"]
[120374,"Lynsted and Norton Primary School",120374,"Academy","Academy"]
[121080,"Lyons Hall School",121080,"Academy","Academy"]
[121873,"Mablethorpe Primary Academy",121873,"Academy","Academy"]
[122794,"Macaulay Primary Academy",122794,"Academy","Academy"]
[120064,"Macclesfield Academy, The",120064,"Academy","Academy"]
[118397,"Macmillan Academy",118397,"Academy","Academy"]
[119112,"Madeley Academy",119112,"Academy","Academy"]
[124490,"Madeley High School",124490,"Academy","Academy"]
[122354,"Magdalen College School",122354,"Academy","Academy"]
[120488,"Maghull High School",120488,"Academy","Academy"]
[123952,"Magna Academy",123952,"Academy","Academy"]
[120116,"Magna Carta School, The",120116,"Academy","Academy"]
[127677,"Magnus Church of England Academy",127677,"Academy","Academy"]
[120462,"Maharishi Free School",120462,"Academy","Academy"]
[120118,"Maiden Beech Academy",120118,"Academy","Academy"]
[119547,"Maiden Erlegh School",119547,"Academy","Academy"]
[132652,"Maiden Erlegh School in Reading",132652,"Academy","Academy"]
[120672,"Maidstone, St John's Church of England Primary School",120672,"Academy","Academy"]
[119331,"Malcolm Arnold Academy",119331,"Academy","Academy"]
[130525,"Malcolm Arnold Preparatory School",130525,"Academy","Academy"]
[120735,"Malcolm Sargent Primary School",120735,"Academy","Academy"]
[132399,"Malet Lambert",132399,"Academy","Academy"]
[121117,"Malmesbury Church of England Primary School",121117,"Academy","Academy"]
[132026,"Malmesbury Park Primary School",132026,"Academy","Academy"]
[120308,"Malmesbury School",120308,"Academy","Academy"]
[119142,"Maltby Academy",119142,"Academy","Academy"]
[131698,"Maltby Lilly Hall Primary School",131698,"Academy","Academy"]
[131234,"Maltby Manor Academy",131234,"Academy","Academy"]
[127292,"Maltby Redwood Academy",127292,"Academy","Academy"]
[131852,"Maltese Road Primary School",131852,"Academy","Academy"]
[118666,"Maltings Academy",118666,"Academy","Academy"]
[123356,"Maltings College, The",123356,"Academy","Academy"]
[124147,"Malvin's Close Primary School",124147,"Academy","Academy"]
[126513,"Manaccan Primary School",126513,"Academy","Academy"]
[119074,"Manchester Academy",119074,"Academy","Academy"]
[119171,"Manchester Communication Academy",119171,"Academy","Academy"]
[130414,"Manchester Communications Primary Academy - Harpurhey",130414,"Academy","Academy"]
[119148,"Manchester Creative and Media Academy",119148,"Academy","Academy"]
[119149,"Manchester Creative and Media Academy (Boys)",119149,"Academy","Academy"]
[120496,"Manchester Creative Learning Academy",120496,"Academy","Academy"]
[130575,"Manchester Creative Studio",130575,"Academy","Academy"]
[118890,"Manchester Enterprise Academy",118890,"Academy","Academy"]
[118891,"Manchester Health Academy",118891,"Academy","Academy"]
[130846,"Manchester Road Primary School",130846,"Academy","Academy"]
[123179,"Mandeville Primary School",123179,"Academy","Academy"]
[132047,"Mangotsfield School",132047,"Academy","Academy"]
[132055,"Manifold Church of England Primary School",132055,"Academy","Academy"]
[121170,"Manningtree High School",121170,"Academy","Academy"]
[132008,"Manor Academy Sale",132008,"Academy","Academy"]
[120158,"Manor Academy, The - Mansfield",120158,"Academy","Academy"]
[119567,"Manor Church of England Academy - York",119567,"Academy","Academy"]
[122796,"Manor CofE VC Primary School, The",122796,"Academy","Academy"]
[131673,"Manor Community Academy - Hartlepool",131673,"Academy","Academy"]
[132192,"Manor Community Primary School - Swanscombe",132192,"Academy","Academy"]
[123849,"Manor Court Community Primary School - Chard",123849,"Academy","Academy"]
[122426,"Manor Croft Academy",122426,"Academy","Academy"]
[131589,"Manor Green Primary Academy",131589,"Academy","Academy"]
[120120,"Manor High School - Oadby",120120,"Academy","Academy"]
[125184,"Manor Oak Primary School",125184,"Academy","Academy"]
[132989,"Manor Park Primary School",132989,"Academy","Academy"]
[131255,"Manor Primary School - Bilston",131255,"Academy","Academy"]
[123897,"Manor School - Didcot",123897,"Academy","Academy"]
[120606,"Manor School Sports College - Wellingborough",120606,"Academy","Academy"]
[132939,"Manor Way Primary Academy",132939,"Academy","Academy"]
[132093,"Manorside Academy",132093,"Academy","Academy"]
[122653,"Mansel Primary",122653,"Academy","Academy"]
[122848,"Mansfield Green E-ACT Academy",122848,"Academy","Academy"]
[122494,"Mansfield Primary Academy",122494,"Academy","Academy"]
[122162,"Manston St James Primary Academy",122162,"Academy","Academy"]
[122487,"Maple Court Academy",122487,"Academy","Academy"]
[120716,"Maplefields School",120716,"Academy","Academy"]
[120854,"Maplesden Noakes School, The",120854,"Academy","Academy"]
[123397,"Marchbank Free School",123397,"Academy","Academy"]
[119979,"Marches School, The",119979,"Academy","Academy"]
[124747,"Marden Lodge Primary School - Caterham",124747,"Academy","Academy"]
[127115,"Marden Primary Academy - Marden",127115,"Academy","Academy"]
[131979,"Marden Vale CofE Academy",131979,"Academy","Academy"]
[119475,"Margaret Beaufort Middle School",119475,"Academy","Academy"]
[130739,"Marham Junior School",130739,"Academy","Academy"]
[131808,"Marian Vian Primary School",131808,"Academy","Academy"]
[119222,"Marine Academy Plymouth",119222,"Academy","Academy"]
[123324,"Marine Academy Primary",123324,"Academy","Academy"]
[122065,"Marish Primary School",122065,"Academy","Academy"]
[122431,"Mark Hall Academy",122431,"Academy","Academy"]
[123075,"Mark Rutherford School",123075,"Academy","Academy"]
[121956,"Market Bosworth School, The",121956,"Academy","Academy"]
[130858,"Market Harborough Church of England Primary School",130858,"Academy","Academy"]
[122590,"Marlborough Church of England School, The",122590,"Academy","Academy"]
[120942,"Marlborough Road Academy",120942,"Academy","Academy"]
[121214,"Marlborough Science Academy, The",121214,"Academy","Academy"]
[127576,"Marlfields Primary School",127576,"Academy","Academy"]
[120123,"Marling School",120123,"Academy","Academy"]
[118398,"Marlowe Academy, The",118398,"Academy","Academy"]
[130863,"Marlwood School",130863,"Academy","Academy"]
[131897,"Marsden Junior School",131897,"Academy","Academy"]
[118626,"Marsh Academy, The",118626,"Academy","Academy"]
[133183,"Marshland High School",133183,"Academy","Academy"]
[132978,"Marshland St James VC Primary School and Nursery",132978,"Academy","Academy"]
[130946,"Marshlands Academy",130946,"Academy","Academy"]
[131148,"Marshwood Church of England Aided Primary School",131148,"Academy","Academy"]
[130151,"Marston Green Infant Academy",130151,"Academy","Academy"]
[122735,"Marston Vale Middle School",122735,"Academy","Academy"]
[131874,"Martello Grove Academy",131874,"Academy","Academy"]
[119384,"Martham Primary and Nursery School",119384,"Academy","Academy"]
[121032,"Martin High School Anstey, The",121032,"Academy","Academy"]
[130869,"Marton Primary Academy and Nursery",130869,"Academy","Academy"]
[123241,"Mary Rose School",123241,"Academy","Academy"]
[130526,"Marylebone Boys' School",130526,"Academy","Academy"]
[119847,"Mascalls School",119847,"Academy","Academy"]
[126349,"Matchborough First School",126349,"Academy","Academy"]
[123228,"Matthew Arnold School - Oxford",123228,"Academy","Academy"]
[120819,"Matthew Arnold School, The - Staines",120819,"Academy","Academy"]
[130635,"Mawgan-in-Pydar Community Primary School",130635,"Academy","Academy"]
[124241,"Maybury Primary School",124241,"Academy","Academy"]
[120867,"Mayfield Grammar School, Gravesend",120867,"Academy","Academy"]
[132334,"Mayfield Primary School",132334,"Academy","Academy"]
[123103,"Mayflower Academy",123103,"Academy","Academy"]
[120048,"Mayflower High School",120048,"Academy","Academy"]
[132394,"Maylandsea Primary School",132394,"Academy","Academy"]
[130873,"Mayplace Primary School",130873,"Academy","Academy"]
[130146,"McAuley Catholic High School, The",130146,"Academy","Academy"]
[121106,"Mead Community Primary School, The",121106,"Academy","Academy"]
[130715,"Mead Road Infant School",130715,"Academy","Academy"]
[127997,"Meadgate Primary School",127997,"Academy","Academy"]
[132279,"Meadow Community Primary School - Lowestoft",132279,"Academy","Academy"]
[121890,"Meadow Community Primary School, The - Wigston",121890,"Academy","Academy"]
[121899,"Meadow Park Academy",121899,"Academy","Academy"]
[129549,"Meadow Primary School - Cambridge",129549,"Academy","Academy"]
[130906,"Meadowbrook College",130906,"Academy","Academy"]
[131529,"Meadowbrook Primary School",131529,"Academy","Academy"]
[120868,"Meadowdale Middle School",120868,"Academy","Academy"]
[122092,"Meadowdale Primary School",122092,"Academy","Academy"]
[121019,"Meadowhead School Academy Trust",121019,"Academy","Academy"]
[122650,"Meadstead Primary Academy",122650,"Academy","Academy"]
[123060,"Measham Church of England Primary School",123060,"Academy","Academy"]
[122396,"Meden School",122396,"Academy","Academy"]
[120375,"Medmerry Primary School",120375,"Academy","Academy"]
[132686,"Medway UTC",132686,"Academy","Academy"]
[120478,"Melbourn Village College",120478,"Academy","Academy"]
[122636,"Melior Community Academy",122636,"Academy","Academy"]
[131413,"Melksham Oak Community School",131413,"Academy","Academy"]
[122273,"Melland High School",122273,"Academy","Academy"]
[120643,"Mellor Primary School",120643,"Academy","Academy"]
[132352,"Membury Primary School",132352,"Academy","Academy"]
[132674,"Mendip School, The",132674,"Academy","Academy"]
[132678,"Mendip Studio School",132678,"Academy","Academy"]
[119385,"Meopham Community Academy",119385,"Academy","Academy"]
[120845,"Meopham School",120845,"Academy","Academy"]
[131142,"Mepal and Witcham Church of England Primary School",131142,"Academy","Academy"]
[124180,"Meppershall Church of England Academy",124180,"Academy","Academy"]
[123269,"Mercenfeld Primary School",123269,"Academy","Academy"]
[124222,"Mercer's Wood Academy",124222,"Academy","Academy"]
[118627,"Merchants' Academy",118627,"Academy","Academy"]
[122693,"Mere Green Primary School",122693,"Academy","Academy"]
[130527,"Meridian Angel Primary School",130527,"Academy","Academy"]
[122641,"Meridian High School",122641,"Academy","Academy"]
[119940,"Meridian School",119940,"Academy","Academy"]
[131380,"Merley First School",131380,"Academy","Academy"]
[122854,"Merlin Top Primary Academy",122854,"Academy","Academy"]
[120960,"Merrill Academy",120960,"Academy","Academy"]
[122661,"Merritts Brook Primary E-ACT Academy",122661,"Academy","Academy"]
[124661,"Mersey Primary Academy",124661,"Academy","Academy"]
[122384,"Merton Primary School, The",122384,"Academy","Academy"]
[122876,"Messing Primary School",122876,"Academy","Academy"]
[120645,"Mesty Croft Academy",120645,"Academy","Academy"]
[131220,"Mevagissey Community Primary School",131220,"Academy","Academy"]
[121876,"Mexborough Academy",121876,"Academy","Academy"]
[122779,"Meynell Community Primary School",122779,"Academy","Academy"]
[122035,"Michaela Community School",122035,"Academy","Academy"]
[122077,"Middlefield Primary Academy",122077,"Academy","Academy"]
[121082,"Middlethorpe Primary Academy",121082,"Academy","Academy"]
[124170,"Middleton Cheney Community Primary School",124170,"Academy","Academy"]
[129882,"Middleton Primary School",129882,"Academy","Academy"]
[131535,"Middleton Voluntary Controlled Primary School",131535,"Academy","Academy"]
[131461,"Middlezoy Primary School",131461,"Academy","Academy"]
[131245,"Midfield Primary School",131245,"Academy","Academy"]
[118907,"Midhurst Rother College",118907,"Academy","Academy"]
[122528,"Midland Studio College Hinckley, The",122528,"Academy","Academy"]
[123389,"Midland Studio College Nuneaton, The",123389,"Academy","Academy"]
[131827,"Milborne St Andrew First School",131827,"Academy","Academy"]
[124383,"Mildenhall College Academy",124383,"Academy","Academy"]
[131229,"Mildmay Junior School",131229,"Academy","Academy"]
[120666,"Milestone Academy",120666,"Academy","Academy"]
[122716,"Milford Academy, The",122716,"Academy","Academy"]
[124765,"Milford-on-Sea Church of England Primary School",124765,"Academy","Academy"]
[124995,"Mill Chase Academy",124995,"Academy","Academy"]
[119934,"Mill Hill County High School",119934,"Academy","Academy"]
[124064,"Mill Primary Academy, The",124064,"Academy","Academy"]
[131522,"Mill View Primary School",131522,"Academy","Academy"]
[122182,"Millbank Academy",122182,"Academy","Academy"]
[131674,"Millbridge Junior Infant and Nursery School",131674,"Academy","Academy"]
[120918,"Millbrook Academy - Gloucester",120918,"Academy","Academy"]
[124515,"Millbrook CofE Primary School - Torpoint",124515,"Academy","Academy"]
[130400,"Millbrook Park Primary School",130400,"Academy","Academy"]
[124164,"Millbrook Primary School - Swindon",124164,"Academy","Academy"]
[130926,"Millbrook Primary School - Wantage",130926,"Academy","Academy"]
[122872,"Millfield L.E.A.D. Academy",122872,"Academy","Academy"]
[133265,"Millfield Primary School",133265,"Academy","Academy"]
[120376,"Milstead and Frinsted Church of England Primary School",120376,"Academy","Academy"]
[123947,"Milton Court Primary Academy",123947,"Academy","Academy"]
[118892,"Milton Keynes Academy, The",118892,"Academy","Academy"]
[131939,"Milton Parochial Primary School",131939,"Academy","Academy"]
[120780,"Miltoncross Academy",120780,"Academy","Academy"]
[131417,"Minchinhampton Primary Academy",131417,"Academy","Academy"]
[119774,"Minehead Middle School",119774,"Academy","Academy"]
[121952,"Minerva Academy, The",121952,"Academy","Academy"]
[121085,"Minerva Primary Academy",121085,"Academy","Academy"]
[120011,"Minsthorpe Community College",120011,"Academy","Academy"]
[119643,"Mirfield Free Grammar and Sixth Form, The",119643,"Academy","Academy"]
[131675,"Mistley Church of England Primary School",131675,"Academy","Academy"]
[132012,"Mithian School",132012,"Academy","Academy"]
[127725,"Mitton Manor Primary School",127725,"Academy","Academy"]
[121174,"Molehill Primary Academy",121174,"Academy","Academy"]
[122506,"Monk's Walk School",122506,"Academy","Academy"]
[123068,"Monkton Infants' School",123068,"Academy","Academy"]
[120763,"Monkton Junior School",120763,"Academy","Academy"]
[129441,"Monkwearmouth Academy",129441,"Academy","Academy"]
[130353,"Monkwick Infant and Nursery School",130353,"Academy","Academy"]
[129414,"Monkwick Junior School",129414,"Academy","Academy"]
[130953,"Monkwood Primary Academy",130953,"Academy","Academy"]
[120286,"Montacute School",120286,"Academy","Academy"]
[130147,"Montagu Academy",130147,"Academy","Academy"]
[122181,"Monteclefe Church of England VA Junior School",122181,"Academy","Academy"]
[126341,"Montem Academy",126341,"Academy","Academy"]
[122646,"Monteney Primary School",122646,"Academy","Academy"]
[130875,"Montgomerie Primary School",130875,"Academy","Academy"]
[121827,"Montgomery High School",121827,"Academy","Academy"]
[122298,"Montgomery Primary Academy",122298,"Academy","Academy"]
[120049,"Montsaye Academy",120049,"Academy","Academy"]
[120016,"Moor End Academy",120016,"Academy","Academy"]
[122924,"Moor Green Primary School",122924,"Academy","Academy"]
[121020,"Moorcroft School",121020,"Academy","Academy"]
[131775,"Moordown St John's Church of England Primary School",131775,"Academy","Academy"]
[130753,"Moorgate Community Primary School",130753,"Academy","Academy"]
[124696,"Moorlands CofE Primary Academy",124696,"Academy","Academy"]
[123811,"Moorside Community Primary Academy School",123811,"Academy","Academy"]
[133179,"Moorside Primary School",133179,"Academy","Academy"]
[122598,"Mordiford CofE Primary School",122598,"Academy","Academy"]
[130745,"More Park Catholic Primary School",130745,"Academy","Academy"]
[121861,"Moredon Primary School",121861,"Academy","Academy"]
[127197,"Morehall Academy",127197,"Academy","Academy"]
[131080,"Moretonhampstead Primary School",131080,"Academy","Academy"]
[124566,"Morgan's Vale and Woodfalls Church of England Primary School",124566,"Academy","Academy"]
[119424,"Morley Academy, The",119424,"Academy","Academy"]
[131822,"Morley Newlands Academy",131822,"Academy","Academy"]
[120712,"Morpeth Chantry Middle School",120712,"Academy","Academy"]
[120670,"Morpeth Newminster Middle School",120670,"Academy","Academy"]
[124151,"Morpeth Road Primary School",124151,"Academy","Academy"]
[130619,"Morville CofE (Controlled) Primary School",130619,"Academy","Academy"]
[123339,"Mosaic Jewish Primary School",123339,"Academy","Academy"]
[120977,"Moseley Park",120977,"Academy","Academy"]
[122512,"Mosley Academy, The",122512,"Academy","Academy"]
[119080,"Mossbourne Community Academy",119080,"Academy","Academy"]
[132265,"Mossbourne Parkside Academy",132265,"Academy","Academy"]
[129870,"Mossbourne Riverside Academy",129870,"Academy","Academy"]
[121929,"Mossbourne Victoria Park Academy",121929,"Academy","Academy"]
[129577,"Mossley CofE Primary School",129577,"Academy","Academy"]
[132043,"Motcombe CofE VA Primary School",132043,"Academy","Academy"]
[132478,"Mottingham Primary School",132478,"Academy","Academy"]
[119607,"Mottram St Andrew Primary Academy",119607,"Academy","Academy"]
[119863,"Moulsham High School",119863,"Academy","Academy"]
[119830,"Moulsham Infant School",119830,"Academy","Academy"]
[121180,"Moulsham Junior School",121180,"Academy","Academy"]
[120662,"Moulton School and Science College",120662,"Academy","Academy"]
[122510,"Mount Grace High School - Hinckley",122510,"Academy","Academy"]
[120224,"Mount Grace School - Potters Bar",120224,"Academy","Academy"]
[119635,"Mount Hawke Academy",119635,"Academy","Academy"]
[121898,"Mount Pellon Primary Academy",121898,"Academy","Academy"]
[120627,"Mount Street Academy",120627,"Academy","Academy"]
[119642,"Mountbatten School, The",119642,"Academy","Academy"]
[122694,"Mountfields Lodge School",122694,"Academy","Academy"]
[121903,"Mountford Manor Primary School",121903,"Academy","Academy"]
[119873,"Mounts Bay Academy",119873,"Academy","Academy"]
[122168,"Mowden Infants' School",122168,"Academy","Academy"]
[122070,"Mowden Junior School",122070,"Academy","Academy"]
[130879,"Mowmacre Hill Primary School",130879,"Academy","Academy"]
[131185,"Mrs Ethelston's CofE Primary Academy",131185,"Academy","Academy"]
[131246,"Mundford Church of England Primary School",131246,"Academy","Academy"]
[124410,"Murrow Primary Academy",124410,"Academy","Academy"]
[132269,"Muscliff Primary School",132269,"Academy","Academy"]
[132376,"Mytchett Primary School",132376,"Academy","Academy"]
[119900,"Myton School",119900,"Academy","Academy"]
[122737,"Nailsea School",122737,"Academy","Academy"]
[123325,"Nanaksar Primary School",123325,"Academy","Academy"]
[122484,"Nansen Primary School",122484,"Academy","Academy"]
[120684,"Nansloe Academy",120684,"Academy","Academy"]
[132987,"Nantwich Primary Academy",132987,"Academy","Academy"]
[130883,"Napier Community Primary and Nursery Academy",130883,"Academy","Academy"]
[133454,"Narborough Church of England Voluntary Controlled Primary School",133454,"Academy","Academy"]
[123880,"Narborough The Pastures Primary School",123880,"Academy","Academy"]
[131692,"NAS Church Lawton School",131692,"Academy","Academy"]
[126346,"Naseby Church of England Primary Academy",126346,"Academy","Academy"]
[122359,"National Church of England Junior School, Grantham, The",122359,"Academy","Academy"]
[120159,"National CofE Academy, The",120159,"Academy","Academy"]
[122936,"Neale-Wade Academy",122936,"Academy","Academy"]
[124775,"Neasden Primary School",124775,"Academy","Academy"]
[122258,"Nechells Primary E-ACT Academy",122258,"Academy","Academy"]
[127386,"Nelson Academy - Downham Market",127386,"Academy","Academy"]
[126481,"Nelson Primary School - Whitton",126481,"Academy","Academy"]
[125026,"Nene Infant School, The",125026,"Academy","Academy"]
[120082,"Nene Park Academy",120082,"Academy","Academy"]
[121828,"Neston High School",121828,"Academy","Academy"]
[131076,"Nether Alderley Primary School",131076,"Academy","Academy"]
[132373,"Nether Edge Primary School",132373,"Academy","Academy"]
[121026,"Nethergate School",121026,"Academy","Academy"]
[132984,"Netherhall School, The",132984,"Academy","Academy"]
[122486,"Nethersole CofE Academy, The",122486,"Academy","Academy"]
[120700,"Netherthorpe School",120700,"Academy","Academy"]
[122698,"Nettleham Infant School, The",122698,"Academy","Academy"]
[133200,"New Bridge Academy",133200,"Academy","Academy"]
[121914,"New Bridge School",121914,"Academy","Academy"]
[123390,"New Campus Basildon Studio School",123390,"Academy","Academy"]
[119938,"New Chapter Primary School",119938,"Academy","Academy"]
[118628,"New Charter Academy",118628,"Academy","Academy"]
[122253,"New Forest Academy, The",122253,"Academy","Academy"]
[124758,"New Haw Community Junior School",124758,"Academy","Academy"]
[130409,"New Horizons Children's Academy",130409,"Academy","Academy"]
[132035,"New Horizons School",132035,"Academy","Academy"]
[123326,"New Islington Free School",123326,"Academy","Academy"]
[119073,"New Line Learning Academy",119073,"Academy","Academy"]
[123877,"New Monument School",123877,"Academy","Academy"]
[119939,"New North Academy, The",119939,"Academy","Academy"]
[132330,"New Park Primary Academy",132330,"Academy","Academy"]
[131986,"New Park School",131986,"Academy","Academy"]
[123943,"New Penshaw Academy",123943,"Academy","Academy"]
[118667,"New Rickstones Academy",118667,"Academy","Academy"]
[127443,"New Road Primary School",127443,"Academy","Academy"]
[122264,"New Seaham Primary School",122264,"Academy","Academy"]
[130937,"New Valley Primary School",130937,"Academy","Academy"]
[120768,"New Waltham Academy",120768,"Academy","Academy"]
[131426,"Newall Green High School",131426,"Academy","Academy"]
[126482,"Newall Green Primary School",126482,"Academy","Academy"]
[122307,"Newark Academy, The",122307,"Academy","Academy"]
[129415,"Newark Hill Primary School",129415,"Academy","Academy"]
[130608,"Newbold CofE VA Primary School",130608,"Academy","Academy"]
[127708,"Newbottle Primary School",127708,"Academy","Academy"]
[122107,"Newbridge High School",122107,"Academy","Academy"]
[124070,"Newbridge Junior School",124070,"Academy","Academy"]
[127250,"Newbridge Short Stay Secondary School",127250,"Academy","Academy"]
[132296,"Newcastle Academy",132296,"Academy","Academy"]
[114738,"Newent Community School and Sixth Form Centre",114738,"Academy","Academy"]
[127665,"Newfield Secondary School",127665,"Academy","Academy"]
[129593,"Newhaven Academy",129593,"Academy","Academy"]
[121850,"Newington Academy",121850,"Academy","Academy"]
[131433,"Newland St John's Church of England Academy",131433,"Academy","Academy"]
[126464,"Newlands Academy - Southwark",126464,"Academy","Academy"]
[132436,"Newlands Girls' School",132436,"Academy","Academy"]
[121947,"Newlands Primary School - Ramsgate",121947,"Academy","Academy"]
[122104,"Newlands Spring Primary School - Chelmsford",122104,"Academy","Academy"]
[131151,"Newlyn School",131151,"Academy","Academy"]
[127397,"Newmarket Academy",127397,"Academy","Academy"]
[124327,"Newnham Primary School",124327,"Academy","Academy"]
[120012,"Newport Community School Primary Academy",120012,"Academy","Academy"]
[119605,"Newport Girls' High School",119605,"Academy","Academy"]
[119407,"Newquay Junior Academy",119407,"Academy","Academy"]
[119593,"Newquay Tretherras",119593,"Academy","Academy"]
[124632,"Newstead Primary School",124632,"Academy","Academy"]
[119582,"Newstead Wood School",119582,"Academy","Academy"]
[120124,"Newton Abbot College",120124,"Academy","Academy"]
[120476,"Newton Ferrers Church of England Primary School",120476,"Academy","Academy"]
[123247,"Newton Regis CofE Primary School",123247,"Academy","Academy"]
[121182,"Nicholas Breakspear Catholic School",121182,"Academy","Academy"]
[124658,"Nicholas Chamberlaine Technology College",124658,"Academy","Academy"]
[122493,"Nicholas Hamond Academy",122493,"Academy","Academy"]
[119480,"Nicholas Hawksmoor Primary School",119480,"Academy","Academy"]
[119229,"Nightingale Academy",119229,"Academy","Academy"]
[126507,"Nightingale Primary Academy",126507,"Academy","Academy"]
[122704,"Nine Maidens Short Stay School",122704,"Academy","Academy"]
[119291,"Ninestiles School",119291,"Academy","Academy"]
[122052,"Nishkam High School",122052,"Academy","Academy"]
[120502,"Nishkam Primary School Birmingham",120502,"Academy","Academy"]
[123289,"Nishkam Primary School Wolverhampton",123289,"Academy","Academy"]
[123327,"Nishkam School West London",123327,"Academy","Academy"]
[120125,"Noadswood School",120125,"Academy","Academy"]
[121950,"Noel Park Primary School",121950,"Academy","Academy"]
[119772,"Nonsuch High School for Girls",119772,"Academy","Academy"]
[131415,"Nonsuch Primary School",131415,"Academy","Academy"]
[122169,"Norbreck Primary Academy",122169,"Academy","Academy"]
[120105,"Norbridge Academy",120105,"Academy","Academy"]
[120706,"Norbury Manor Business and Enterprise College for Girls",120706,"Academy","Academy"]
[130346,"Norman Church of England Primary School, Northwold, The",130346,"Academy","Academy"]
[129902,"Normanby Primary School",129902,"Academy","Academy"]
[131980,"Normandy Primary School",131980,"Academy","Academy"]
[131592,"Normanton Common Primary Academy",131592,"Academy","Academy"]
[131975,"Normanton Junior Academy",131975,"Academy","Academy"]
[119143,"North Birmingham Academy",119143,"Academy","Academy"]
[123938,"North Cambridge Academy",123938,"Academy","Academy"]
[127895,"North Cerney Church of England Primary Academy",127895,"Academy","Academy"]
[130847,"North Chadderton School",130847,"Academy","Academy"]
[122703,"North Cornwall Short Stay School",122703,"Academy","Academy"]
[119929,"North Durham Academy, The",119929,"Academy","Academy"]
[119237,"North East Wolverhampton Academy",119237,"Academy","Academy"]
[119786,"North Halifax Grammar School, The",119786,"Academy","Academy"]
[122378,"North Hykeham Ling Moor Primary School",122378,"Academy","Academy"]
[119870,"North Kesteven School",119870,"Academy","Academy"]
[132428,"North Leigh Church of England (Controlled) School",132428,"Academy","Academy"]
[118629,"North Liverpool Academy",118629,"Academy","Academy"]
[122833,"North Ormesby Primary Academy",122833,"Academy","Academy"]
[118908,"North Oxfordshire Academy",118908,"Academy","Academy"]
[133178,"North Petherwin School",133178,"Academy","Academy"]
[119210,"North Shore Academy",119210,"Academy","Academy"]
[130529,"North Somerset Enterprise and Technology College",130529,"Academy","Academy"]
[123823,"North Thoresby Primary School",123823,"Academy","Academy"]
[120126,"North Town Primary School",120126,"Academy","Academy"]
[130839,"North View Academy",130839,"Academy","Academy"]
[130301,"North West London Jewish Day School",130301,"Academy","Academy"]
[118399,"Northampton Academy",118399,"Academy","Academy"]
[119246,"Northampton School for Boys",119246,"Academy","Academy"]
[124176,"Northampton School for Girls",124176,"Academy","Academy"]
[122517,"Northdown Primary School",122517,"Academy","Academy"]
[122146,"Northern House School - Oxford",122146,"Academy","Academy"]
[123266,"Northern House School (Solihull)",123266,"Academy","Academy"]
[130898,"Northfield House Primary Academy",130898,"Academy","Academy"]
[131864,"Northfield Manor Primary Academy",131864,"Academy","Academy"]
[132282,"Northfield St Nicholas Primary School",132282,"Academy","Academy"]
[130862,"Northgate High School",130862,"Academy","Academy"]
[122109,"Northgate Primary School",122109,"Academy","Academy"]
[120135,"Northgate School Arts College",120135,"Academy","Academy"]
[118897,"Northumberland CofE Academy",118897,"Academy","Academy"]
[119947,"Northumberland Heath Primary School",119947,"Academy","Academy"]
[130834,"Northwick Park Primary School",130834,"Academy","Academy"]
[130897,"Northwold Primary School",130897,"Academy","Academy"]
[131467,"Northwood Park Primary School",131467,"Academy","Academy"]
[124066,"Northwood Primary School - Cowes",124066,"Academy","Academy"]
[122770,"Northwood Primary School - Darlington",122770,"Academy","Academy"]
[120877,"Northwood School",120877,"Academy","Academy"]
[129553,"Norton Canes Primary Academy",129553,"Academy","Academy"]
[119743,"Norton College",119743,"Academy","Academy"]
[130694,"Norton Fitzwarren Church School",130694,"Academy","Academy"]
[119292,"Norton Hill Academy",119292,"Academy","Academy"]
[121028,"Norton Knatchbull School, The",121028,"Academy","Academy"]
[127309,"Norton Primary Academy - Stockton-on-Tees",127309,"Academy","Academy"]
[130137,"Norton-le-Moors Primary Academy",130137,"Academy","Academy"]
[124572,"Norwich Primary Academy",124572,"Academy","Academy"]
[124318,"Norwich Road Academy",124318,"Academy","Academy"]
[124313,"Norwood Green Junior School",124313,"Academy","Academy"]
[122074,"Notley Green Primary School",122074,"Academy","Academy"]
[120013,"Notley High School and Braintree Sixth Form",120013,"Academy","Academy"]
[121460,"Notre Dame High School - Sheffield",121460,"Academy","Academy"]
[121105,"Notre Dame High School, Norwich",121105,"Academy","Academy"]
[130088,"Notre Dame RC School - Plymouth",130088,"Academy","Academy"]
[118893,"Nottingham Academy",118893,"Academy","Academy"]
[123817,"Nottingham Emmanuel School, The",123817,"Academy","Academy"]
[130530,"Nottingham Free School",130530,"Academy","Academy"]
[120184,"Nottingham Girls' Academy",120184,"Academy","Academy"]
[130531,"Nottingham University Academy of Science and Technology",130531,"Academy","Academy"]
[118852,"Nottingham University Samworth Academy",118852,"Academy","Academy"]
[121084,"Nova Hreod Academy",121084,"Academy","Academy"]
[120028,"Nower Hill High School",120028,"Academy","Academy"]
[119230,"Nuneaton Academy, The",119230,"Academy","Academy"]
[120051,"Nunnery Wood High School",120051,"Academy","Academy"]
[122721,"Nunthorpe Academy",122721,"Academy","Academy"]
[129907,"Nunthorpe Primary Academy",129907,"Academy","Academy"]
[121900,"Nyland School",121900,"Academy","Academy"]
[123089,"Oak Academy - Bournemouth",123089,"Academy","Academy"]
[124078,"Oak Bank School",124078,"Academy","Academy"]
[130331,"Oak Hill Academy",130331,"Academy","Academy"]
[131810,"Oak Lodge Primary School",131810,"Academy","Academy"]
[124161,"Oak Tree Academy, The",124161,"Academy","Academy"]
[129289,"Oak View Academy, The - Winsford",129289,"Academy","Academy"]
[124142,"Oak Wood Primary School",124142,"Academy","Academy"]
[124146,"Oak Wood Secondary School",124146,"Academy","Academy"]
[121997,"Oakbank School",121997,"Academy","Academy"]
[122866,"Oakfield Primary Academy - Rugby",122866,"Academy","Academy"]
[119970,"Oakfield School - Frome",119970,"Academy","Academy"]
[119509,"Oakgrove School",119509,"Academy","Academy"]
[131385,"Oakhill Church of England Primary School",131385,"Academy","Academy"]
[120577,"Oakhill Primary Academy",120577,"Academy","Academy"]
[131853,"Oakhurst Community First School",131853,"Academy","Academy"]
[120377,"Oaklands Catholic School",120377,"Academy","Academy"]
[132272,"Oaklands Primary Academy - Westerham",132272,"Academy","Academy"]
[122954,"Oaklands Primary School, The - Birmingham",122954,"Academy","Academy"]
[124135,"Oakley Vale Primary School",124135,"Academy","Academy"]
[133611,"Oaks Academy, The",133611,"Academy","Academy"]
[131204,"Oaks Community Primary School, The",131204,"Academy","Academy"]
[122237,"Oaks Primary Academy - Maidstone",122237,"Academy","Academy"]
[122130,"Oaks Primary School, The",122130,"Academy","Academy"]
[123873,"Oaktree School, The",123873,"Academy","Academy"]
[130607,"Oakway Academy",130607,"Academy","Academy"]
[120825,"Oakwood Academy - Eccles",120825,"Academy","Academy"]
[131167,"Oakwood Academy, The",131167,"Academy","Academy"]
[127503,"Oakwood High School - Rotherham",127503,"Academy","Academy"]
[119728,"Oakwood Park Grammar School",119728,"Academy","Academy"]
[122020,"Oakwood Primary Academy - Eastbourne",122020,"Academy","Academy"]
[122639,"Oakwood Primary Academy - Leeds",122639,"Academy","Academy"]
[131691,"Oare Church of England Primary School",131691,"Academy","Academy"]
[126501,"Oasis Academy Arena",126501,"Academy","Academy"]
[124752,"Oasis Academy Aspinal",124752,"Academy","Academy"]
[122246,"Oasis Academy Bank Leaze",122246,"Academy","Academy"]
[122788,"Oasis Academy Blakenhale Infants",122788,"Academy","Academy"]
[122847,"Oasis Academy Blakenhale Junior",122847,"Academy","Academy"]
[122839,"Oasis Academy Boulton",122839,"Academy","Academy"]
[118668,"Oasis Academy Brightstowe",118668,"Academy","Academy"]
[131427,"Oasis Academy Brislington",131427,"Academy","Academy"]
[122111,"Oasis Academy Byron",122111,"Academy","Academy"]
[121855,"Oasis Academy Connaught",121855,"Academy","Academy"]
[119122,"Oasis Academy Coulsdon",119122,"Academy","Academy"]
[131875,"Oasis Academy Don Valley",131875,"Academy","Academy"]
[118630,"Oasis Academy Enfield",118630,"Academy","Academy"]
[130412,"Oasis Academy Firvale",130412,"Academy","Academy"]
[124160,"Oasis Academy Foundry",124160,"Academy","Academy"]
[119085,"Oasis Academy Hadley",119085,"Academy","Academy"]
[122044,"Oasis Academy Harpur Mount",122044,"Academy","Academy"]
[122321,"Oasis Academy Henderson Avenue",122321,"Academy","Academy"]
[124336,"Oasis Academy Hextable",124336,"Academy","Academy"]
[122838,"Oasis Academy Hobmoor",122838,"Academy","Academy"]
[118631,"Oasis Academy Immingham",118631,"Academy","Academy"]
[119099,"Oasis Academy Isle of Sheppey",119099,"Academy","Academy"]
[120349,"Oasis Academy Johanna",120349,"Academy","Academy"]
[118671,"Oasis Academy John Williams",118671,"Academy","Academy"]
[120369,"Oasis Academy Limeside",120369,"Academy","Academy"]
[124211,"Oasis Academy Lister Park",124211,"Academy","Academy"]
[124602,"Oasis Academy Long Cross",124602,"Academy","Academy"]
[122884,"Oasis Academy Longmeadow",122884,"Academy","Academy"]
[119120,"Oasis Academy Lord's Hill",119120,"Academy","Academy"]
[129589,"Oasis Academy Marksbury Road",129589,"Academy","Academy"]
[119121,"Oasis Academy Mayfield",119121,"Academy","Academy"]
[118669,"Oasis Academy MediaCityUK",118669,"Academy","Academy"]
[121199,"Oasis Academy New Oak",121199,"Academy","Academy"]
[120947,"Oasis Academy Nunsthorpe",120947,"Academy","Academy"]
[119153,"Oasis Academy Oldham",119153,"Academy","Academy"]
[122849,"Oasis Academy Parkwood",122849,"Academy","Academy"]
[125027,"Oasis Academy Pinewood",125027,"Academy","Academy"]
[119141,"Oasis Academy Shirley Park",119141,"Academy","Academy"]
[122853,"Oasis Academy Short Heath",122853,"Academy","Academy"]
[130533,"Oasis Academy Silvertown",130533,"Academy","Academy"]
[122664,"Oasis Academy Skinner Street",122664,"Academy","Academy"]
[123328,"Oasis Academy South Bank",123328,"Academy","Academy"]
[125022,"Oasis Academy Warndon",125022,"Academy","Academy"]
[130402,"Oasis Academy Watermead",130402,"Academy","Academy"]
[118637,"Oasis Academy Wintringham",118637,"Academy","Academy"]
[122890,"Oasis Academy Woodview",122890,"Academy","Academy"]
[129585,"Oasis Ryelands",129585,"Academy","Academy"]
[132276,"Oatlands Community Junior School",132276,"Academy","Academy"]
[131885,"Ocean Academy Poole",131885,"Academy","Academy"]
[119409,"Ockendon Academy, The",119409,"Academy","Academy"]
[124123,"Ocker Hill Academy",124123,"Academy","Academy"]
[130144,"Octagon AP academy",130144,"Academy","Academy"]
[122243,"Offa's Mead Academy",122243,"Academy","Academy"]
[131663,"Ogbourne St George and St Andrew Church of England Controlled Primary School",131663,"Academy","Academy"]
[122672,"Old Basford School",122672,"Academy","Academy"]
[132308,"Old Bexley Church of England School",132308,"Academy","Academy"]
[124184,"Old Clee Primary School",124184,"Academy","Academy"]
[124606,"Old Cleeve CofE School, Washford",124606,"Academy","Academy"]
[124067,"Old Dalby Church of England Primary School",124067,"Academy","Academy"]
[120445,"Old Earth Primary School",120445,"Academy","Academy"]
[122994,"Old Ford Primary School",122994,"Academy","Academy"]
[133439,"Old Hall Drive Primary School",133439,"Academy","Academy"]
[120729,"Old Priory Junior Academy",120729,"Academy","Academy"]
[130136,"Old Trafford Community Academy",130136,"Academy","Academy"]
[120610,"Oldbury Academy",120610,"Academy","Academy"]
[131829,"Oldbury Wells School",131829,"Academy","Academy"]
[119895,"Oldershaw Academy, The",119895,"Academy","Academy"]
[119483,"Oldfield School",119483,"Academy","Academy"]
[119194,"Oldham Academy North, The",119194,"Academy","Academy"]
[132438,"Oldway Primary School",132438,"Academy","Academy"]
[127209,"Olive Alternative Provision Academy",127209,"Academy","Academy"]
[123359,"Olive School Blackburn, The",123359,"Academy","Academy"]
[123360,"Olive School Hackney, The",123360,"Academy","Academy"]
[123361,"Olive Tree Primary School Bolton, The",123361,"Academy","Academy"]
[119765,"Olney Infant Academy",119765,"Academy","Academy"]
[124309,"Olympic Primary School",124309,"Academy","Academy"]
[121998,"One In A Million Free School",121998,"Academy","Academy"]
[132661,"Ongar Academy, The",132661,"Academy","Academy"]
[120806,"Onslow St Audrey's School",120806,"Academy","Academy"]
[118673,"Open Academy, The",118673,"Academy","Academy"]
[120963,"Orchard Academy - Milton Keynes",120963,"Academy","Academy"]
[122879,"Orchard Meadow Primary School",122879,"Academy","Academy"]
[132321,"Orchard Primary Academy - Dewsbury",132321,"Academy","Academy"]
[120948,"Orchard School Bristol",120948,"Academy","Academy"]
[120527,"Orchard Vale Community School",120527,"Academy","Academy"]
[119368,"Orchards Academy - Swanley",119368,"Academy","Academy"]
[132285,"Orchards Junior School",132285,"Academy","Academy"]
[124324,"Orchards Primary Academy, The - Birmingham",124324,"Academy","Academy"]
[123949,"Ore Village Primary Academy",123949,"Academy","Academy"]
[119411,"Oreston Community Academy",119411,"Academy","Academy"]
[125177,"Oriel Primary School",125177,"Academy","Academy"]
[121910,"Orleans Park School",121910,"Academy","Academy"]
[119335,"Ormiston Bolingbroke Academy",119335,"Academy","Academy"]
[118910,"Ormiston Bushfield Academy",118910,"Academy","Academy"]
[130615,"Ormiston Chadwick Academy",130615,"Academy","Academy"]
[120566,"Ormiston Denes Academy",120566,"Academy","Academy"]
[120967,"Ormiston Endeavour Academy",120967,"Academy","Academy"]
[120919,"Ormiston Forge Academy",120919,"Academy","Academy"]
[125172,"Ormiston Herman Academy",125172,"Academy","Academy"]
[119928,"Ormiston Horizon Academy",119928,"Academy","Academy"]
[120253,"Ormiston Ilkeston Academy",120253,"Academy","Academy"]
[120109,"Ormiston Ilkeston Enterprise Academy",120109,"Academy","Academy"]
[120196,"Ormiston Maritime Academy",120196,"Academy","Academy"]
[127191,"Ormiston Meadows Academy",127191,"Academy","Academy"]
[119036,"Ormiston Park Academy",119036,"Academy","Academy"]
[120152,"Ormiston Rivers Academy",120152,"Academy","Academy"]
[119066,"Ormiston Sandwell Community Academy",119066,"Academy","Academy"]
[118909,"Ormiston Shelfield Community Academy",118909,"Academy","Academy"]
[119209,"Ormiston Sir Stanley Matthews Academy",119209,"Academy","Academy"]
[125181,"Ormiston Six Villages Academy",125181,"Academy","Academy"]
[122265,"Ormiston South Parade Academy",122265,"Academy","Academy"]
[121009,"Ormiston Sudbury Academy",121009,"Academy","Academy"]
[119338,"Ormiston Venture Academy",119338,"Academy","Academy"]
[119339,"Ormiston Victory Academy",119339,"Academy","Academy"]
[119473,"Ossett Academy and Sixth Form College",119473,"Academy","Academy"]
[131377,"Othery Village School",131377,"Academy","Academy"]
[120702,"Otley Prince Henry's Grammar School Specialist Language College",120702,"Academy","Academy"]
[131349,"Ounsdale High School",131349,"Academy","Academy"]
[120209,"Our Lady & St Edward Primary & Nursery Catholic Voluntary Academy",120209,"Academy","Academy"]
[131368,"Our Lady and St Bede RC School",131368,"Academy","Academy"]
[123405,"Our Lady and St Benedict Catholic Primary School",123405,"Academy","Academy"]
[131686,"Our Lady and St Chad Catholic Sports College",131686,"Academy","Academy"]
[131802,"Our Lady and St Hubert's Catholic Primary School",131802,"Academy","Academy"]
[130475,"Our Lady and St Patrick's Roman Catholic Primary School",130475,"Academy","Academy"]
[122399,"Our Lady Catholic Primary School",122399,"Academy","Academy"]
[120790,"Our Lady Immaculate Catholic Primary School",120790,"Academy","Academy"]
[130874,"Our Lady of Fatima Catholic Primary School",130874,"Academy","Academy"]
[124331,"Our Lady of Good Counsel Catholic Primary School",124331,"Academy","Academy"]
[123377,"Our Lady of Grace Catholic Academy - Biddulph",123377,"Academy","Academy"]
[131187,"Our Lady of Hartley Catholic Primary School, Hartley, Longfield",131187,"Academy","Academy"]
[124317,"Our Lady of Lincoln Catholic Primary School",124317,"Academy","Academy"]
[124082,"Our Lady of Lourdes Catholic Primary School, Witney",124082,"Academy","Academy"]
[130720,"Our Lady of Mount Carmel Catholic First School",130720,"Academy","Academy"]
[122348,"Our Lady of Perpetual Succour Catholic Primary School",122348,"Academy","Academy"]
[125264,"Our Lady of Pity Catholic Primary School",125264,"Academy","Academy"]
[131247,"Our Lady of the Angels Catholic Infant School",131247,"Academy","Academy"]
[126572,"Our Lady of Victories Catholic School",126572,"Academy","Academy"]
[131441,"Our Lady of Walsingham Catholic Primary School",131441,"Academy","Academy"]
[124634,"Our Lady's Catholic Academy - Stoke-on-Trent",124634,"Academy","Academy"]
[123876,"Our Lady's Catholic Primary School - Oxford",123876,"Academy","Academy"]
[130108,"Our Lady's Catholic Primary School, Barnstaple",130108,"Academy","Academy"]
[120052,"Ousedale School",120052,"Academy","Academy"]
[122305,"Outwood Academy Acklam",122305,"Academy","Academy"]
[119090,"Outwood Academy Adwick",119090,"Academy","Academy"]
[122932,"Outwood Academy Brumby",122932,"Academy","Academy"]
[122952,"Outwood Academy Bydales",122952,"Academy","Academy"]
[122288,"Outwood Academy Carlton",122288,"Academy","Academy"]
[124294,"Outwood Academy City - Sheffield",124294,"Academy","Academy"]
[120004,"Outwood Academy Foxhills",120004,"Academy","Academy"]
[130888,"Outwood Academy Newbold",130888,"Academy","Academy"]
[122122,"Outwood Academy Ormesby",122122,"Academy","Academy"]
[120143,"Outwood Academy Portland",120143,"Academy","Academy"]
[120447,"Outwood Academy Ripon",120447,"Academy","Academy"]
[122289,"Outwood Academy Shafton",122289,"Academy","Academy"]
[120144,"Outwood Academy Valley",120144,"Academy","Academy"]
[119076,"Outwood Grange Academy",119076,"Academy","Academy"]
[122312,"Outwood Primary Academy Kirkhamgate",122312,"Academy","Academy"]
[122780,"Outwood Primary Academy Ledger Lane",122780,"Academy","Academy"]
[124778,"Outwood Primary Academy Lofthouse Gate",124778,"Academy","Academy"]
[122669,"Outwoods Edge Community Primary School",122669,"Academy","Academy"]
[124307,"Over Hall Community School",124307,"Academy","Academy"]
[122973,"Overthorpe CofE Academy",122973,"Academy","Academy"]
[119779,"Overton Grange School",119779,"Academy","Academy"]
[122983,"Oxclose Community Academy",122983,"Academy","Academy"]
[127391,"Oxclose Primary Academy",127391,"Academy","Academy"]
[118674,"Oxford Academy, The",118674,"Academy","Academy"]
[119438,"Oxford Spires Academy",119438,"Academy","Academy"]
[119828,"Oxley Park Primary School",119828,"Academy","Academy"]
[132299,"Oxted School",132299,"Academy","Academy"]
[118638,"Paddington Academy",118638,"Academy","Academy"]
[120183,"Padstow School",120183,"Academy","Academy"]
[122789,"Paignton Community and Sports Academy",122789,"Academy","Academy"]
[122686,"Painsley Catholic College",122686,"Academy","Academy"]
[131595,"Pakefield Primary School",131595,"Academy","Academy"]
[120301,"Palace Fields Primary Academy",120301,"Academy","Academy"]
[120088,"Palmer Catholic Academy, The",120088,"Academy","Academy"]
[123180,"Palmer Primary Academy, The",123180,"Academy","Academy"]
[120127,"Parbold Douglas Church of England Academy",120127,"Academy","Academy"]
[120741,"Parish Church of England Primary School",120741,"Academy","Academy"]
[124486,"Park Campus Academy",124486,"Academy","Academy"]
[124119,"Park Community Academy",124119,"Academy","Academy"]
[130535,"Park Community School",130535,"Academy","Academy"]
[118922,"Park Hall Academy - Solihull",118922,"Academy","Academy"]
[119293,"Park Hall Infant Academy - Walsall",119293,"Academy","Academy"]
[120751,"Park Hall Junior Academy",120751,"Academy","Academy"]
[120075,"Park High School",120075,"Academy","Academy"]
[119729,"Park House School",119729,"Academy","Academy"]
[121061,"Park Lane Primary & Nursery School",121061,"Academy","Academy"]
[124296,"Park Lane Primary School",124296,"Academy","Academy"]
[123827,"Park Primary School - Boston",123827,"Academy","Academy"]
[119393,"Park Road Academy Primary School - Altrincham",119393,"Academy","Academy"]
[124518,"Park Road Primary School - Sale",124518,"Academy","Academy"]
[122482,"Park View Primary Academy - Leeds",122482,"Academy","Academy"]
[133073,"Park View Primary School - Huyton",133073,"Academy","Academy"]
[119971,"Park View School",119971,"Academy","Academy"]
[121897,"Parker E-ACT Academy, The",121897,"Academy","Academy"]
[122778,"Parkfield Community School - Saltley",122778,"Academy","Academy"]
[124343,"Parkfield Primary School - Hendon",124343,"Academy","Academy"]
[121999,"Parkfield School - Bournemouth",121999,"Academy","Academy"]
[122115,"Parkland Primary School South Wigston",122115,"Academy","Academy"]
[121171,"Parklands High School",121171,"Academy","Academy"]
[126541,"Parkroyal Community School",126541,"Academy","Academy"]
[124662,"Parks Primary Academy, The - Hull",124662,"Academy","Academy"]
[121093,"Parkside Academy",121093,"Academy","Academy"]
[119655,"Parkside Community College",119655,"Academy","Academy"]
[132019,"Parkside GGI Academy",132019,"Academy","Academy"]
[122724,"Parkside Primary Academy",122724,"Academy","Academy"]
[122531,"Parkside Studio College",122531,"Academy","Academy"]
[119399,"Parkstone Grammar School",119399,"Academy","Academy"]
[131518,"Parkwood Academy - Chelmsford",131518,"Academy","Academy"]
[119130,"Parkwood E-ACT Academy",119130,"Academy","Academy"]
[131971,"Parkwood Hall Co-Operative Academy",131971,"Academy","Academy"]
[130754,"Parlaunt Park Primary Academy",130754,"Academy","Academy"]
[119869,"Parmiter's School",119869,"Academy","Academy"]
[122891,"Parson Street Primary School",122891,"Academy","Academy"]
[120323,"Passmores Academy",120323,"Academy","Academy"]
[124517,"Patchway Community College",124517,"Academy","Academy"]
[119380,"Pate's Grammar School",119380,"Academy","Academy"]
[124615,"Pathways E-ACT Primary Academy",124615,"Academy","Academy"]
[125179,"Patrington Church of England Voluntary Controlled Primary School",125179,"Academy","Academy"]
[130989,"Paxton Academy Sports and Science",130989,"Academy","Academy"]
[127357,"Peafield Lane Academy",127357,"Academy","Academy"]
[121883,"Peak Academy",121883,"Academy","Academy"]
[130885,"Pear Tree Mead Primary and Nursery School",130885,"Academy","Academy"]
[129551,"Pear Tree Primary School",129551,"Academy","Academy"]
[120329,"Peareswood Primary School",120329,"Academy","Academy"]
[133035,"Pearson Primary School",133035,"Academy","Academy"]
[123329,"Peaslake School",123329,"Academy","Academy"]
[124131,"Peatmoor Community Primary School",124131,"Academy","Academy"]
[124603,"Pebsham Primary Academy",124603,"Academy","Academy"]
[124194,"Peckover Primary School",124194,"Academy","Academy"]
[123852,"Pegasus Primary School - Birmingham",123852,"Academy","Academy"]
[123093,"Pegasus School - Oxford",123093,"Academy","Academy"]
[123912,"Pelham Primary School",123912,"Academy","Academy"]
[129594,"Pemberley Academy",129594,"Academy","Academy"]
[123850,"Pembroke Park Primary School",123850,"Academy","Academy"]
[122745,"Pen Mill Infants' School",122745,"Academy","Academy"]
[119571,"Penair School",119571,"Academy","Academy"]
[120396,"Pencalenick School",120396,"Academy","Academy"]
[129953,"Pendeen School",129953,"Academy","Academy"]
[122316,"Pendle Primary Academy",122316,"Academy","Academy"]
[123091,"Penketh High School",123091,"Academy","Academy"]
[120511,"Pennine Way Junior Academy",120511,"Academy","Academy"]
[124983,"Penny Bridge CofE School",124983,"Academy","Academy"]
[122241,"Pennyman Primary Academy",122241,"Academy","Academy"]
[129413,"Penponds School",129413,"Academy","Academy"]
[119561,"Penrice Academy",119561,"Academy","Academy"]
[119852,"Penryn College",119852,"Academy","Academy"]
[122642,"Penryn Primary Academy",122642,"Academy","Academy"]
[131154,"Pensans Primary School",131154,"Academy","Academy"]
[130536,"Pentland Field School",130536,"Academy","Academy"]
[122648,"Penwith Alternative Provision Academy",122648,"Academy","Academy"]
[121835,"Penwortham Priory Academy",121835,"Academy","Academy"]
[131598,"Peover Superior Endowed Primary School",131598,"Academy","Academy"]
[122090,"Percy Shurmer Academy",122090,"Academy","Academy"]
[120128,"Perins School A Community Sports College",120128,"Academy","Academy"]
[132325,"Perranporth Community Primary School",132325,"Academy","Academy"]
[122185,"Perry Beeches II The Free School",122185,"Academy","Academy"]
[128244,"Perry Beeches III the Free School",128244,"Academy","Academy"]
[130537,"Perry Beeches IV - The Free School",130537,"Academy","Academy"]
[120050,"Perry Beeches the Academy",120050,"Academy","Academy"]
[132653,"Perry Beeches V - The All Through Family School",132653,"Academy","Academy"]
[126479,"Perry Hall Primary School - Orpington",126479,"Academy","Academy"]
[124207,"Perry Hall Primary School - Wednesfield",124207,"Academy","Academy"]
[123088,"Perry Wood Primary and Nursery School",123088,"Academy","Academy"]
[119905,"Pershore High School",119905,"Academy","Academy"]
[118653,"Petchey Academy, The",118653,"Academy","Academy"]
[131536,"Peterhouse CofE Primary Academy",131536,"Academy","Academy"]
[119857,"Petersfield School, The",119857,"Academy","Academy"]
[124764,"Petham Primary School",124764,"Academy","Academy"]
[129558,"Pewsey Primary School",129558,"Academy","Academy"]
[119849,"Pewsey Vale School",119849,"Academy","Academy"]
[120450,"Pheasant Bank Academy",120450,"Academy","Academy"]
[120589,"Philip Morant School and College",120589,"Academy","Academy"]
[120724,"Phoenix Academy, The - Grantham",120724,"Academy","Academy"]
[121892,"Phoenix Junior Academy - Medway",121892,"Academy","Academy"]
[130766,"Phoenix Park Academy",130766,"Academy","Academy"]
[120069,"Pickhurst Infant School",120069,"Academy","Academy"]
[120070,"Pickhurst Junior School",120070,"Academy","Academy"]
[127600,"Pictor Academy",127600,"Academy","Academy"]
[131850,"Piddle Valley Church of England First School",131850,"Academy","Academy"]
[119891,"Piggott School, The",119891,"Academy","Academy"]
[120950,"Pilgrims' Way Primary School and Nursery",120950,"Academy","Academy"]
[122351,"Pilton Bluecoat Church of England Academy",122351,"Academy","Academy"]
[119867,"Pilton Community College",119867,"Academy","Academy"]
[118663,"Pimlico Academy",118663,"Academy","Academy"]
[122038,"Pimlico Primary",122038,"Academy","Academy"]
[130914,"Pinewood School",130914,"Academy","Academy"]
[130139,"Pinkwell Primary School",130139,"Academy","Academy"]
[122071,"Pioneer School, The",122071,"Academy","Academy"]
[131084,"Piper Hill High School",131084,"Academy","Academy"]
[120836,"Place Farm Primary Academy",120836,"Academy","Academy"]
[123942,"Plains Farm Academy",123942,"Academy","Academy"]
[120053,"Plantsbrook School",120053,"Academy","Academy"]
[119507,"Platanos College",119507,"Academy","Academy"]
[123236,"Platt Bridge Community Primary School",123236,"Academy","Academy"]
[133079,"Pleckgate High School Mathematics and Computing College",133079,"Academy","Academy"]
[120642,"Pluckley Church of England Primary School",120642,"Academy","Academy"]
[120333,"Plumberow Primary School",120333,"Academy","Academy"]
[120904,"Plume School",120904,"Academy","Academy"]
[123330,"Plymouth School of Creative Arts",123330,"Academy","Academy"]
[132679,"Plymouth Studio School",132679,"Academy","Academy"]
[119569,"Plymstock School",119569,"Academy","Academy"]
[122406,"Pochin School, THe",122406,"Academy","Academy"]
[123915,"Pokesdown Community Primary School",123915,"Academy","Academy"]
[132654,"Polam Hall School",132654,"Academy","Academy"]
[119512,"Polesworth School, The",119512,"Academy","Academy"]
[121025,"Pond Meadow School",121025,"Academy","Academy"]
[124600,"Pontefract Carleton Park Junior and Infant School",124600,"Academy","Academy"]
[124599,"Pontefract De Lacy Primary School",124599,"Academy","Academy"]
[123279,"Pontefract Halfpenny Lane Junior Infant and Nursery School",123279,"Academy","Academy"]
[123215,"Pontefract Larks Hill Junior and Infant School",123215,"Academy","Academy"]
[123209,"Pontefract Orchard Head Junior and Infant and Nursery School",123209,"Academy","Academy"]
[119590,"Pool Academy",119590,"Academy","Academy"]
[131346,"Pool Hayes Arts and Community School",131346,"Academy","Academy"]
[119850,"Poole Grammar School",119850,"Academy","Academy"]
[131999,"Poppleton Ousebank Primary School",131999,"Academy","Academy"]
[124347,"Porter Croft Church of England Primary Academy",124347,"Academy","Academy"]
[121962,"Portfield Primary Academy",121962,"Academy","Academy"]
[122328,"Portland Academy - Sunderland",122328,"Academy","Academy"]
[124989,"Portland School - Nottingham",124989,"Academy","Academy"]
[119937,"Portslade Aldridge Community Academy",119937,"Academy","Academy"]
[123958,"Portsmouth Academy for Girls",123958,"Academy","Academy"]
[121114,"Portswood Primary School",121114,"Academy","Academy"]
[124618,"Potter Street Academy",124618,"Academy","Academy"]
[132450,"Pound Hill Infant Academy",132450,"Academy","Academy"]
[124619,"Powers Hall Academy",124619,"Academy","Academy"]
[119259,"Premier Academy, The",119259,"Academy","Academy"]
[120130,"Prenton High School for Girls",120130,"Academy","Academy"]
[121129,"Presdales School",121129,"Academy","Academy"]
[124494,"President Kennedy School Academy",124494,"Academy","Academy"]
[132098,"Prestolee Primary School",132098,"Academy","Academy"]
[124783,"Preston CofE VC Primary School",124783,"Academy","Academy"]
[122505,"Preston Hedges Primary School",122505,"Academy","Academy"]
[123910,"Preston Manor School",123910,"Academy","Academy"]
[131143,"Preston Primary School",131143,"Academy","Academy"]
[119894,"Preston School Academy",119894,"Academy","Academy"]
[120129,"Priestlands School",120129,"Academy","Academy"]
[123261,"Primrose Hill Church of England Primary Academy",123261,"Academy","Academy"]
[132403,"Prince Albert Junior and Infant School",132403,"Academy","Academy"]
[120704,"Prince Avenue Academy and Nursery",120704,"Academy","Academy"]
[119469,"Prince Henry's High school",119469,"Academy","Academy"]
[132382,"Prince William School",132382,"Academy","Academy"]
[131235,"Princes Plain Primary School",131235,"Academy","Academy"]
[120378,"Princes Risborough",120378,"Academy","Academy"]
[120470,"Priors School, The",120470,"Academy","Academy"]
[119439,"Priorslee Primary School",119439,"Academy","Academy"]
[123890,"Priorswood Primary School",123890,"Academy","Academy"]
[121207,"Priory Academy - Dunstable",121207,"Academy","Academy"]
[118690,"Priory Academy LSST, The",118690,"Academy","Academy"]
[121063,"Priory Catholic Voluntary Academy, The",121063,"Academy","Academy"]
[118689,"Priory City of Lincoln Academy, The",118689,"Academy","Academy"]
[120300,"Priory Community School",120300,"Academy","Academy"]
[124766,"Priory Primary School - Hull",124766,"Academy","Academy"]
[119463,"Priory Primary School, The - Tadley",119463,"Academy","Academy"]
[130117,"Priory Roman Catholic Primary School, Torquay",130117,"Academy","Academy"]
[119334,"Priory Ruskin Academy, The",119334,"Academy","Academy"]
[120334,"Priory School - Bury St Edmunds",120334,"Academy","Academy"]
[123020,"Priory School (Specialist Sports College)",123020,"Academy","Academy"]
[121168,"Priory School, The - A Business and Enterprise College - Shrewsbury",121168,"Academy","Academy"]
[121934,"Priory School, The - Orpington",121934,"Academy","Academy"]
[133099,"Priory School, The - Spalding",133099,"Academy","Academy"]
[118688,"Priory Witham Academy, The",118688,"Academy","Academy"]
[119876,"Prospect School",119876,"Academy","Academy"]
[131826,"Puddletown Church of England First School",131826,"Academy","Academy"]
[120291,"Pulloxhill Lower School",120291,"Academy","Academy"]
[123281,"Purfleet Primary Academy",123281,"Academy","Academy"]
[124751,"Purford Green Primary School",124751,"Academy","Academy"]
[124760,"Purleigh Community Primary School",124760,"Academy","Academy"]
[123257,"Putnoe Primary School",123257,"Academy","Academy"]
[130721,"Pye Green Valley Primary School",130721,"Academy","Academy"]
[124763,"Pyrcroft Grange Primary School",124763,"Academy","Academy"]
[124674,"Pyrford Church of England Aided Primary School",124674,"Academy","Academy"]
[128249,"Pyrgo Priory Primary School",128249,"Academy","Academy"]
[132383,"Pytchley Endowed Church of England Primary School",132383,"Academy","Academy"]
[118641,"Q3 Academy",118641,"Academy","Academy"]
[124321,"Quarry Hill Academy",124321,"Academy","Academy"]
[120944,"Quarrydale School",120944,"Academy","Academy"]
[124310,"Quay Academy",124310,"Academy","Academy"]
[122950,"Quay School, The",122950,"Academy","Academy"]
[123905,"Queen Eleanor Primary Academy",123905,"Academy","Academy"]
[131153,"Queen Eleanor's Church of England School",131153,"Academy","Academy"]
[124660,"Queen Elizabeth Academy, The",124660,"Academy","Academy"]
[119730,"Queen Elizabeth Grammar School - Penrith",119730,"Academy","Academy"]
[120824,"Queen Elizabeth Humanities College - Bromyard",120824,"Academy","Academy"]
[119387,"Queen Elizabeth School - Kirby Lonsdale",119387,"Academy","Academy"]
[119304,"Queen Elizabeth’s Grammar Alford",119304,"Academy","Academy"]
[130538,"Queen Elizabeth’s Grammar School - Blackburn",130538,"Academy","Academy"]
[119673,"Queen Elizabeth's - Crediton",119673,"Academy","Academy"]
[121103,"Queen Elizabeth's Academy - Mansfield",121103,"Academy","Academy"]
[120131,"Queen Elizabeth's Girls' School - Barnet",120131,"Academy","Academy"]
[119972,"Queen Elizabeth's Grammar School - Ashbourne",119972,"Academy","Academy"]
[119566,"Queen Elizabeth's Grammar School - Faversham",119566,"Academy","Academy"]
[122791,"Queen Elizabeth's Grammar School, Horncastle",122791,"Academy","Academy"]
[124604,"Queen Elizabeth's School - Wimbourne",124604,"Academy","Academy"]
[119272,"Queen Elizabeth's School, Barnet",119272,"Academy","Academy"]
[132304,"Queen Emma's Primary School",132304,"Academy","Academy"]
[119629,"Queen Katherine School, The",119629,"Academy","Academy"]
[119780,"Queen Mary's Grammar School",119780,"Academy","Academy"]
[119781,"Queen Mary's High School",119781,"Academy","Academy"]
[124671,"Queen's CofE Academy",124671,"Academy","Academy"]
[130728,"Queen's Crescent Primary School",130728,"Academy","Academy"]
[119577,"Queen's Park Academy - Bedford",119577,"Academy","Academy"]
[122570,"Queen's Park Academy - Bournemouth",122570,"Academy","Academy"]
[122740,"Queens Park Community School",122740,"Academy","Academy"]
[124136,"Queens Park Infant School",124136,"Academy","Academy"]
[122844,"Queens Road Academy",122844,"Academy","Academy"]
[119877,"Queens' School",119877,"Academy","Academy"]
[121863,"Queensbury Academy",121863,"Academy","Academy"]
[122873,"Queensmead Primary Academy",122873,"Academy","Academy"]
[119731,"Queensmead School",119731,"Academy","Academy"]
[130114,"Queensway Catholic Primary School",130114,"Academy","Academy"]
[122369,"Queniborough Church of England Primary School",122369,"Academy","Academy"]
[119329,"Quest Academy, The",119329,"Academy","Academy"]
[129580,"Quethiock CofE VA School",129580,"Academy","Academy"]
[127590,"Quinta Primary School, The",127590,"Academy","Academy"]
[120595,"Quintin Kynaston Academy",120595,"Academy","Academy"]
[119355,"R A Butler Infant School",119355,"Academy","Academy"]
[119354,"R A Butler Junior School",119354,"Academy","Academy"]
[122244,"Race Leys Junior School",122244,"Academy","Academy"]
[124654,"Racemeadow Primary Academy",124654,"Academy","Academy"]
[124288,"Radcliffe Primary School",124288,"Academy","Academy"]
[126326,"Radford Primary Academy",126326,"Academy","Academy"]
[131088,"Radford Primary School - Nottingham",131088,"Academy","Academy"]
[121206,"Raglan Primary School",121206,"Academy","Academy"]
[120320,"Rainbow Primary School",120320,"Academy","Academy"]
[119864,"Rainham Mark Grammar School",119864,"Academy","Academy"]
[119462,"Rainham School for Girls",119462,"Academy","Academy"]
[120014,"Raleigh School, The",120014,"Academy","Academy"]
[122732,"Ralph Allen School",122732,"Academy","Academy"]
[121846,"Ralph Sadleir School",121846,"Academy","Academy"]
[125173,"Ramnoth Junior School",125173,"Academy","Academy"]
[120966,"Ramsey Academy, Halstead, The",120966,"Academy","Academy"]
[132656,"Ramsgate Free School",132656,"Academy","Academy"]
[120267,"Ranelagh School",120267,"Academy","Academy"]
[120526,"Range High School",120526,"Academy","Academy"]
[132980,"Ranikhet Academy",132980,"Academy","Academy"]
[120446,"Rastrick High School",120446,"Academy","Academy"]
[123085,"Ratby Primary School",123085,"Academy","Academy"]
[132354,"Rattlesden Church of England Voluntary Controlled School",132354,"Academy","Academy"]
[122093,"Ratton School",122093,"Academy","Academy"]
[122082,"Rauceby Church of England Primary School",122082,"Academy","Academy"]
[131666,"Ravenfield Primary School",131666,"Academy","Academy"]
[122937,"Ravens Academy",122937,"Academy","Academy"]
[119606,"Ravens Wood School",119606,"Academy","Academy"]
[119670,"Ravensbourne School, The",119670,"Academy","Academy"]
[131236,"Ravenscote Community Junior School",131236,"Academy","Academy"]
[122358,"Rawlett School, The",122358,"Academy","Academy"]
[114120,"Rawlins Academy",114120,"Academy","Academy"]
[129887,"Rawmarsh Ashwood Primary School",129887,"Academy","Academy"]
[129727,"Rawmarsh Community School",129727,"Academy","Academy"]
[123174,"Rayleigh Primary School Academy Trust, The",123174,"Academy","Academy"]
[122508,"Raynsford Church of England Academy",122508,"Academy","Academy"]
[122007,"Reach Academy Feltham",122007,"Academy","Academy"]
[123363,"Reach Free School, The",123363,"Academy","Academy"]
[123410,"Reach School",123410,"Academy","Academy"]
[119465,"Reading School",119465,"Academy","Academy"]
[122591,"Reaside Academy",122591,"Academy","Academy"]
[130899,"Reculver Church of England Primary School",130899,"Academy","Academy"]
[123258,"Red Hill Field Primary School",123258,"Academy","Academy"]
[119144,"Red House Academy",119144,"Academy","Academy"]
[119574,"Redborne Upper School and Community College",119574,"Academy","Academy"]
[120356,"Redby Primary School",120356,"Academy","Academy"]
[123071,"Redcar Academy",123071,"Academy","Academy"]
[120351,"Redden Court School",120351,"Academy","Academy"]
[120733,"Reddish Vale Technology College",120733,"Academy","Academy"]
[130413,"Redfield Educate Together Primary Academy",130413,"Academy","Academy"]
[119386,"Redhill Academy",119386,"Academy","Academy"]
[121006,"Redhill Primary School",121006,"Academy","Academy"]
[123889,"Redhill School and Specialist Language College",123889,"Academy","Academy"]
[122427,"Redland Green School",122427,"Academy","Academy"]
[120132,"Redmarley Church of England Primary School",120132,"Academy","Academy"]
[130632,"Redmile Church of England Primary School",130632,"Academy","Academy"]
[121153,"Redmoor High School",121153,"Academy","Academy"]
[120878,"Redriff Primary School",120878,"Academy","Academy"]
[119903,"Redstart Primary School, The",119903,"Academy","Academy"]
[122033,"Reedswood E-ACT Academy",122033,"Academy","Academy"]
[122382,"Reepham High School and College",122382,"Academy","Academy"]
[125024,"Regency High School",125024,"Academy","Academy"]
[119798,"Regis Manor Primary School",119798,"Academy","Academy"]
[120908,"Regis School, The",120908,"Academy","Academy"]
[119836,"Reid Street Primary School",119836,"Academy","Academy"]
[122562,"Rendell Primary School",122562,"Academy","Academy"]
[122701,"Restormel PRU",122701,"Academy","Academy"]
[120117,"Retford Oaks Academy",120117,"Academy","Academy"]
[129410,"Revoe Learning Academy",129410,"Academy","Academy"]
[131676,"Reydon Primary School",131676,"Academy","Academy"]
[124663,"Reynolds Primary Academy",124663,"Academy","Academy"]
[122347,"Ribbon School",122347,"Academy","Academy"]
[119782,"Ribston Hall High School",119782,"Academy","Academy"]
[120299,"Richard Challoner School",120299,"Academy","Academy"]
[132440,"Richard Crosse CofE Primary School, The",132440,"Academy","Academy"]
[120857,"Richard Hale School",120857,"Academy","Academy"]
[118687,"Richard Rose Central Academy",118687,"Academy","Academy"]
[118691,"Richard Rose Morton Academy",118691,"Academy","Academy"]
[131668,"Richard Taylor Church of England Primary School",131668,"Academy","Academy"]
[127201,"Richmond Academy - Sheerness",127201,"Academy","Academy"]
[129570,"Richmond Hill Primary Academy",129570,"Academy","Academy"]
[119310,"Richmond Park Academy",119310,"Academy","Academy"]
[123163,"Richmond Primary School",123163,"Academy","Academy"]
[122608,"Rickley Park Primary School",122608,"Academy","Academy"]
[119620,"Rickmansworth School",119620,"Academy","Academy"]
[121932,"Riddlesdown Collegiate",121932,"Academy","Academy"]
[121882,"Ridge Academy, The",121882,"Academy","Academy"]
[122957,"Ridgeway Academy",122957,"Academy","Academy"]
[122179,"Ridgeway Primary Academy - Market Harborough",122179,"Academy","Academy"]
[123050,"Ridgeway Primary School - South Shields",123050,"Academy","Academy"]
[119599,"Ridgeway School - Plymouth",119599,"Academy","Academy"]
[120160,"Ridgeway School & Sixth Form College, The - Swindon",120160,"Academy","Academy"]
[123821,"Ridgewood High School - Stourbridge",123821,"Academy","Academy"]
[120553,"Ridgewood School - Doncaster",120553,"Academy","Academy"]
[121983,"Rimon Jewish Primary School",121983,"Academy","Academy"]
[120232,"Ringmer Community College",120232,"Academy","Academy"]
[131593,"Ringstead Church of England Primary School",131593,"Academy","Academy"]
[119644,"Ringwood School Academy",119644,"Academy","Academy"]
[130616,"Ripley Academy, The",130616,"Academy","Academy"]
[119732,"Ripley St Thomas Church of England Academy",119732,"Academy","Academy"]
[124676,"Risdene Academy",124676,"Academy","Academy"]
[130551,"Rise Free School, The",130551,"Academy","Academy"]
[130701,"Rise Park Infant School",130701,"Academy","Academy"]
[130900,"Rise Park Junior School",130900,"Academy","Academy"]
[123332,"River Bank Primary School",123332,"Academy","Academy"]
[124984,"River Beach Primary School",124984,"Academy","Academy"]
[122852,"River Mead School",122852,"Academy","Academy"]
[131375,"Riverbank School",131375,"Academy","Academy"]
[123192,"Riverley Primary School",123192,"Academy","Academy"]
[133106,"Rivermead School",133106,"Academy","Academy"]
[120009,"Rivers Academy West London",120009,"Academy","Academy"]
[126483,"Rivers Primary Academy",126483,"Academy","Academy"]
[122862,"Riverside Academy - Newbold",122862,"Academy","Academy"]
[133033,"Riverside Bridge School",133033,"Academy","Academy"]
[130368,"Riverside Community Primary School Birstall",130368,"Academy","Academy"]
[122345,"Riverside Primary Academy - Gateshead",122345,"Academy","Academy"]
[133031,"Riverside Primary School - Barking",133031,"Academy","Academy"]
[131677,"Riverside Primary School and Early Years Unit",131677,"Academy","Academy"]
[123355,"Riverside School - Barking",123355,"Academy","Academy"]
[127343,"Riversides School - Worcester",127343,"Academy","Academy"]
[131662,"Riverview Infant School",131662,"Academy","Academy"]
[124573,"RNIB Three Spires Academy",124573,"Academy","Academy"]
[131360,"Robartes ACE Academy",131360,"Academy","Academy"]
[122742,"Robert Bakewell Primary School and Community Centre",122742,"Academy","Academy"]
[119733,"Robert Bloomfield Academy",119733,"Academy","Academy"]
[132991,"Robert Bruce Middle School",132991,"Academy","Academy"]
[120246,"Robert Drake Primary School, The",120246,"Academy","Academy"]
[122747,"Robert Fitzroy Academy",122747,"Academy","Academy"]
[120711,"Robert May's School",120711,"Academy","Academy"]
[121891,"Robert Napier School, The",121891,"Academy","Academy"]
[123334,"Robert Owen Academy",123334,"Academy","Academy"]
[120161,"Robert Smyth Academy, The",120161,"Academy","Academy"]
[124206,"Robert Wilkinson Primary School",124206,"Academy","Academy"]
[125260,"Robin Hood Academy",125260,"Academy","Academy"]
[119598,"Robinswood Primary School",119598,"Academy","Academy"]
[130861,"Robsack Wood Primary Academy, The",130861,"Academy","Academy"]
[119362,"Rochester Grammar School, The",119362,"Academy","Academy"]
[129881,"Rochford Primary and Nursery School",129881,"Academy","Academy"]
[124646,"Rockingham Primary School",124646,"Academy","Academy"]
[120743,"Rockwood Academy",120743,"Academy","Academy"]
[120019,"Rodborough Technology College",120019,"Academy","Academy"]
[121904,"Rodbourne Cheney Primary School",121904,"Academy","Academy"]
[120842,"Rodillian Academy",120842,"Academy","Academy"]
[119391,"Roger Ascham Primary School",119391,"Academy","Academy"]
[129443,"Rolph CofE Primary School",129443,"Academy","Academy"]
[120239,"Romsey School, The",120239,"Academy","Academy"]
[123205,"Rookeries Carleton Junior and Infant School, The",123205,"Academy","Academy"]
[120168,"Rookery School",120168,"Academy","Academy"]
[120198,"Rooks Heath College",120198,"Academy","Academy"]
[120448,"Rooks Nest Academy",120448,"Academy","Academy"]
[130901,"Rosa Street Primary School",130901,"Academy","Academy"]
[120419,"Rosary Catholic Primary School, The",120419,"Academy","Academy"]
[131678,"Rose Bridge Academy",131678,"Academy","Academy"]
[131208,"Rose Green Junior School",131208,"Academy","Academy"]
[125009,"Rose Wood Academy",125009,"Academy","Academy"]
[122389,"Roseacre Primary Academy - Blackpool",122389,"Academy","Academy"]
[132324,"Roseacres Primary School - Bishops Stortford",132324,"Academy","Academy"]
[131126,"Roseberry CP Academy",131126,"Academy","Academy"]
[120707,"Rosebery School",120707,"Academy","Academy"]
[120077,"Rosedale College",120077,"Academy","Academy"]
[131641,"Rosedale Primary School",131641,"Academy","Academy"]
[119562,"Roseland Community College, The",119562,"Academy","Academy"]
[132473,"Roselands Primary School",132473,"Academy","Academy"]
[122535,"Rosewood Free School",122535,"Academy","Academy"]
[131149,"Rosherville Church of England Academy",131149,"Academy","Academy"]
[119896,"Rossett School",119896,"Academy","Academy"]
[119754,"Rossington All Saints Academy",119754,"Academy","Academy"]
[131393,"Rosslyn Park Primary and Nursery School",131393,"Academy","Academy"]
[122874,"Rothley Church of England Primary School",122874,"Academy","Academy"]
[127152,"Rothwell Church of England Primary Academy",127152,"Academy","Academy"]
[124520,"Rothwell Junior School",124520,"Academy","Academy"]
[124487,"Rothwell Victoria Infant School",124487,"Academy","Academy"]
[123864,"Rough Hay Primary School",123864,"Academy","Academy"]
[124377,"Round House Primary Academy, The",124377,"Academy","Academy"]
[121181,"Roundhill Academy, The",121181,"Academy","Academy"]
[124672,"Roundthorn Primary Academy",124672,"Academy","Academy"]
[119973,"Roundwood Park School",119973,"Academy","Academy"]
[123335,"Route 39 Academy",123335,"Academy","Academy"]
[120255,"Rowanfield Junior School",120255,"Academy","Academy"]
[123123,"Rowde Church of England Primary Academy",123123,"Academy","Academy"]
[130620,"Rowdown Primary School",130620,"Academy","Academy"]
[120608,"Rowena Academy",120608,"Academy","Academy"]
[130756,"Rowley Park Primary Academy",130756,"Academy","Academy"]
[119484,"Royal Grammar School, High Wycombe, The",119484,"Academy","Academy"]
[120501,"Royal Latin School",120501,"Academy","Academy"]
[119911,"Royal Wootton Bassett Academy",119911,"Academy","Academy"]
[123936,"Roydon Primary School",123936,"Academy","Academy"]
[119949,"Roysia Middle School",119949,"Academy","Academy"]
[133062,"Royston St John Baptist CE Primary",133062,"Academy","Academy"]
[118675,"RSA Academy - Tipton",118675,"Academy","Academy"]
[123283,"Rudheath Primary Academy",123283,"Academy","Academy"]
[132657,"Rugby Free Primary School",132657,"Academy","Academy"]
[119632,"Rugby High School",119632,"Academy","Academy"]
[129423,"Ruislip High School",129423,"Academy","Academy"]
[131152,"Runcton Holme Church of England Primary School",131152,"Academy","Academy"]
[120054,"Runwell Community Primary School",120054,"Academy","Academy"]
[121970,"Rural Enterprise Academy, The",121970,"Academy","Academy"]
[121074,"Rush Common School",121074,"Academy","Academy"]
[122129,"Rushcliffe School",122129,"Academy","Academy"]
[122667,"Rushcroft Foundation School",122667,"Academy","Academy"]
[123097,"Rushden Community College",123097,"Academy","Academy"]
[131851,"Rushden Primary Academy",131851,"Academy","Academy"]
[127801,"Rushey Mead Academy",127801,"Academy","Academy"]
[124536,"Rushton Primary School",124536,"Academy","Academy"]
[122835,"Ruskin Junior School",122835,"Academy","Academy"]
[121159,"Ruskington Chestnut Street Church of England Academy",121159,"Academy","Academy"]
[132429,"Russett School, The",132429,"Academy","Academy"]
[123883,"Rustington Community Primary School",123883,"Academy","Academy"]
[130553,"Ruth Gorse Academy, The",130553,"Academy","Academy"]
[123291,"Rutherford House School",123291,"Academy","Academy"]
[120558,"Ryburn Valley High School",120558,"Academy","Academy"]
[123090,"Rydal Academy, The",123090,"Academy","Academy"]
[119953,"Ryde Academy",119953,"Academy","Academy"]
[120137,"Rydens Enterprise School and Sixth Form College",120137,"Academy","Academy"]
[119594,"Ryders Hayes School",119594,"Academy","Academy"]
[120497,"Rydon Primary School",120497,"Academy","Academy"]
[122385,"Rye College",122385,"Academy","Academy"]
[131464,"Rye Community Primary School",131464,"Academy","Academy"]
[123391,"Rye Studio School",123391,"Academy","Academy"]
[130128,"Ryecroft Academy - Leeds",130128,"Academy","Academy"]
[122483,"Ryecroft Primary Academy - Bradford",122483,"Academy","Academy"]
[131248,"Ryefield Primary School",131248,"Academy","Academy"]
[131155,"Ryhall CofE Primary Academy",131155,"Academy","Academy"]
[124534,"Ryhope Infant School Academy",124534,"Academy","Academy"]
[121829,"Ryvers School",121829,"Academy","Academy"]
[120896,"Sacred Heart Catholic High School - Newcastle-u-Tyne",120896,"Academy","Academy"]
[132404,"Sacred Heart Catholic Primary School - Coventry",132404,"Academy","Academy"]
[121184,"Sacred Heart Catholic Primary School - Leicester",121184,"Academy","Academy"]
[130129,"Sacred Heart Catholic Primary School - Newcastle-u-Lyme",130129,"Academy","Academy"]
[122409,"Sacred Heart Catholic Primary School - Wakefield",122409,"Academy","Academy"]
[121090,"Sacred Heart Catholic Primary School, Carlton",121090,"Academy","Academy"]
[123818,"Sacred Heart Catholic Primary School, The - Bradford",123818,"Academy","Academy"]
[130109,"Sacred Heart Catholic School - Paignton",130109,"Academy","Academy"]
[121905,"Sacred Heart Catholic School - Southwark",121905,"Academy","Academy"]
[122496,"Sacred Heart Catholic Voluntary Academy - Loughborough",122496,"Academy","Academy"]
[130688,"Sacred Heart Catholic Voluntary Academy - Sowerby Bridge",130688,"Academy","Academy"]
[121110,"Sacred Heart High School - Hammersmith and Fulham",121110,"Academy","Academy"]
[120233,"Sacred Heart of Mary Girls' School",120233,"Academy","Academy"]
[132385,"Sacred Heart RC Primary School - Middlesbrough",132385,"Academy","Academy"]
[124631,"Sacred Heart School - Sheffield",124631,"Academy","Academy"]
[130339,"Sacred Heart Secondary Catholic Voluntary Academy",130339,"Academy","Academy"]
[119783,"Saffron Walden County High School",119783,"Academy","Academy"]
[121826,"Saint Augustine Webster Catholic Voluntary Academy",121826,"Academy","Academy"]
[124332,"Saint Augustine's Catholic Voluntary Academy, The - Stamford",124332,"Academy","Academy"]
[130307,"Saint Bede's Catholic VA Primary School",130307,"Academy","Academy"]
[122806,"Saint Benedict, A Catholic Voluntary Academy",122806,"Academy","Academy"]
[131534,"Saint Cecilia's Church of England School",131534,"Academy","Academy"]
[122497,"Saint Clare's Primary School A Catholic Voluntary Academy, Coalville, Leicestershire",122497,"Academy","Academy"]
[120397,"Saint Edmund's Roman Catholic Primary School",120397,"Academy","Academy"]
[129587,"Saint Gabriel's Catholic Voluntary Aided Primary School",129587,"Academy","Academy"]
[120624,"Saint George's Church of England School",120624,"Academy","Academy"]
[124326,"Saint Hugh's Catholic Primary School, Lincoln, The",124326,"Academy","Academy"]
[121078,"Saint Joan of Arc Catholic School",121078,"Academy","Academy"]
[121156,"Saint John Fisher Catholic Voluntary Academy, Wigston, Leicestershire",121156,"Academy","Academy"]
[121034,"Saint John Houghton Catholic Voluntary Academy",121034,"Academy","Academy"]
[130308,"Saint Joseph's Roman Catholic Primary School - Saltburn",130308,"Academy","Academy"]
[122402,"Saint Martin's Catholic Voluntary Academy - Stoke Golding",122402,"Academy","Academy"]
[131531,"Saint Mary's Catholic Primary School - Congleton",131531,"Academy","Academy"]
[122362,"Saint Mary's Catholic Primary School, Loughborough",122362,"Academy","Academy"]
[123168,"Saint Mary's Catholic Voluntary Academy - Grimsby",123168,"Academy","Academy"]
[121157,"Saint Michael's Catholic High School",121157,"Academy","Academy"]
[123857,"Saint Nathaniel's Academy",123857,"Academy","Academy"]
[121924,"Saint Norbert's Catholic Primary School",121924,"Academy","Academy"]
[130309,"Saint Paulinus Catholic Voluntary Aided Primary School",130309,"Academy","Academy"]
[123866,"Saint Paul's Catholic High School - Manchester",123866,"Academy","Academy"]
[129438,"Saint Peter's Catholic College of Maths and Computing",129438,"Academy","Academy"]
[122364,"Saint Winefride's Catholic Primary School, Shepshed, Leicestershire",122364,"Academy","Academy"]
[120475,"Salcombe Church of England Primary School",120475,"Academy","Academy"]
[119498,"Sale Grammar School",119498,"Academy","Academy"]
[120713,"Salendine Nook High School",120713,"Academy","Academy"]
[118916,"Salford City Academy",118916,"Academy","Academy"]
[132395,"Salfords Primary School",132395,"Academy","Academy"]
[130539,"Salisbury Sixth Form College",130539,"Academy","Academy"]
[122252,"Salmestone Primary School",122252,"Academy","Academy"]
[119559,"Saltash.net Community School",119559,"Academy","Academy"]
[120452,"Salterlee Primary School",120452,"Academy","Academy"]
[131781,"Saltley School and Specialist Science College",131781,"Academy","Academy"]
[122500,"Salvatorian Roman Catholic College",122500,"Academy","Academy"]
[120477,"Sampford Peverell Church of England Primary School",120477,"Academy","Academy"]
[120923,"Samuel Lister Academy, The",120923,"Academy","Academy"]
[121015,"Samuel Ryder Academy",121015,"Academy","Academy"]
[119369,"Samuel Ward Academy",119369,"Academy","Academy"]
[119952,"Samuel Whitbread Academy",119952,"Academy","Academy"]
[118654,"Samworth Church Academy",118654,"Academy","Academy"]
[122938,"Sandal Magna Community Academy",122938,"Academy","Academy"]
[119374,"Sandbach High School and Sixth Form College",119374,"Academy","Academy"]
[131237,"Sandbach Primary Academy",131237,"Academy","Academy"]
[120535,"Sandbach School",120535,"Academy","Academy"]
[130902,"Sandfield Primary School",130902,"Academy","Academy"]
[125201,"Sandhill Primary Academy",125201,"Academy","Academy"]
[131508,"Sandhill Primary School",131508,"Academy","Academy"]
[131253,"Sandhill View Academy",131253,"Academy","Academy"]
[121233,"Sandon Primary School - Stoke-on-Trent",121233,"Academy","Academy"]
[120240,"Sandon School, The - Chelmsford",120240,"Academy","Academy"]
[119927,"Sandown Bay Academy",119927,"Academy","Academy"]
[132393,"Sandringham School - Frimley",132393,"Academy","Academy"]
[119628,"Sandringham School - St Albans",119628,"Academy","Academy"]
[118639,"Sandwell Academy",118639,"Academy","Academy"]
[119370,"Sandwich Technology School",119370,"Academy","Academy"]
[119359,"Sandy Hill Academy",119359,"Academy","Academy"]
[119589,"Sandye Place Academy",119589,"Academy","Academy"]
[122010,"Sandymoor",122010,"Academy","Academy"]
[119238,"Sarum Academy",119238,"Academy","Academy"]
[130731,"Sawley Infant and Nursery School",130731,"Academy","Academy"]
[130705,"Sawley Junior School",130705,"Academy","Academy"]
[119791,"Sawston Village College",119791,"Academy","Academy"]
[119974,"Sawtry Community College",119974,"Academy","Academy"]
[121971,"Saxmundham Free School",121971,"Academy","Academy"]
[132039,"Saxon Hill Academy",132039,"Academy","Academy"]
[131125,"Saxon Mount School",131125,"Academy","Academy"]
[124732,"Saxon Primary School - Shepperton ",124732,"Academy","Academy"]
[124657,"Saxon Way Primary School - Gillingham",124657,"Academy","Academy"]
[130135,"Sayes Court School",130135,"Academy","Academy"]
[120769,"Scartho Junior Academy",120769,"Academy","Academy"]
[121056,"Scawby Academy",121056,"Academy","Academy"]
[122021,"School 21",122021,"Academy","Academy"]
[124214,"Schoolscompany Central Devon Academy",124214,"Academy","Academy"]
[124213,"Schoolscompany North Devon Academy",124213,"Academy","Academy"]
[124215,"SchoolsCompany South and West Devon Academy",124215,"Academy","Academy"]
[122807,"Scientia Academy",122807,"Academy","Academy"]
[129901,"Scotts Park Primary School",129901,"Academy","Academy"]
[120456,"Scout Road Academy",120456,"Academy","Academy"]
[131859,"Sculthorpe Church of England Primary Academy",131859,"Academy","Academy"]
[122276,"Seaford Head School",122276,"Academy","Academy"]
[132459,"Seagry Church of England Primary School",132459,"Academy","Academy"]
[125004,"Seahaven Academy",125004,"Academy","Academy"]
[121155,"Seal Primary Academy",121155,"Academy","Academy"]
[119253,"Seaton Academy",119253,"Academy","Academy"]
[131388,"Seend Church of England VA Primary School",131388,"Academy","Academy"]
[122955,"Seer Green Church of England School",122955,"Academy","Academy"]
[120797,"Sele School, The",120797,"Academy","Academy"]
[120379,"Selling Church of England Primary School",120379,"Academy","Academy"]
[120852,"Selwood Academy",120852,"Academy","Academy"]
[120141,"Serlby Park Academy",120141,"Academy","Academy"]
[120269,"Settlebeck High School",120269,"Academy","Academy"]
[130542,"Seva School",130542,"Academy","Academy"]
[121851,"Seven Fields Primary School",121851,"Academy","Academy"]
[131629,"Sevenhills Academy",131629,"Academy","Academy"]
[130903,"Severn Beach Primary School",130903,"Academy","Academy"]
[120298,"Severn Vale School",120298,"Academy","Academy"]
[122302,"Severn View Academy",122302,"Academy","Academy"]
[123216,"Severnbanks Primary School",123216,"Academy","Academy"]
[126347,"Severndale",126347,"Academy","Academy"]
[132981,"Sewell Park Academy",132981,"Academy","Academy"]
[120313,"Sexey's School",120313,"Academy","Academy"]
[122269,"Seymour Primary School",122269,"Academy","Academy"]
[122638,"Seymour Road Primary School",122638,"Academy","Academy"]
[126497,"Shade Primary School, The",126497,"Academy","Academy"]
[132052,"Shaftesbury Church of England Primary School",132052,"Academy","Academy"]
[130311,"Shaftesbury School",130311,"Academy","Academy"]
[122914,"Shafton Primary Academy",122914,"Academy","Academy"]
[130708,"Shardlow Primary School",130708,"Academy","Academy"]
[123070,"Sharnbrook John Gibbard Lower School",123070,"Academy","Academy"]
[119470,"Sharnbrook Upper School",119470,"Academy","Academy"]
[122116,"Shatterlocks Infant School",122116,"Academy","Academy"]
[132934,"Shavington Academy",132934,"Academy","Academy"]
[132969,"Shavington Primary School",132969,"Academy","Academy"]
[131462,"Shaw Church of England Voluntary Controlled Primary School",131462,"Academy","Academy"]
[122985,"Shaw Primary Academy",122985,"Academy","Academy"]
[124130,"Shaw Ridge Primary School",124130,"Academy","Academy"]
[118640,"Sheffield Park Academy",118640,"Academy","Academy"]
[118642,"Sheffield Springs Academy",118642,"Academy","Academy"]
[119550,"Sheldon School",119550,"Academy","Academy"]
[120380,"Sheldwich Primary School",120380,"Academy","Academy"]
[120454,"Shelley College",120454,"Academy","Academy"]
[121067,"Shenfield High School",121067,"Academy","Academy"]
[124535,"Shenfield St. Mary's Church of England Primary School",124535,"Academy","Academy"]
[119086,"Shenley Academy",119086,"Academy","Academy"]
[119734,"Shenley Brook End School",119734,"Academy","Academy"]
[122329,"Shepherdswell Academy",122329,"Academy","Academy"]
[120646,"Sheringham High School",120646,"Academy","Academy"]
[130880,"Sheringham Primary School",130880,"Academy","Academy"]
[120936,"Sherwood Academy",120936,"Academy","Academy"]
[127459,"Sherwood Park Primary School",127459,"Academy","Academy"]
[123251,"Shibden Head Primary Academy",123251,"Academy","Academy"]
[132351,"Shield Row Primary School",132351,"Academy","Academy"]
[119675,"Shiphay Learning Academy",119675,"Academy","Academy"]
[120649,"Shipston High School",120649,"Academy","Academy"]
[123226,"Shipston-on-Stour Primary School",123226,"Academy","Academy"]
[119534,"Shire Oak Academy",119534,"Academy","Academy"]
[119195,"Shirebrook Academy",119195,"Academy","Academy"]
[118644,"Shireland Collegiate Academy",118644,"Academy","Academy"]
[124361,"Shireland Hall Primary Academy",124361,"Academy","Academy"]
[122556,"Shirestone Academy, The",122556,"Academy","Academy"]
[120742,"Shirley High School Performing Arts College",120742,"Academy","Academy"]
[122357,"Shirley Infant School",122357,"Academy","Academy"]
[122595,"Shirley Junior School",122595,"Academy","Academy"]
[129417,"Shirley Manor Primary School",129417,"Academy","Academy"]
[120634,"Shoeburyness High School",120634,"Academy","Academy"]
[122727,"Shooters Hill Post-16 Campus",122727,"Academy","Academy"]
[119107,"Shoreham Academy",119107,"Academy","Academy"]
[131199,"Shorne Church of England Voluntary Controlled Primary School",131199,"Academy","Academy"]
[126351,"Short Stay School for Norfolk",126351,"Academy","Academy"]
[132005,"Shortlanesend Community Primary School",132005,"Academy","Academy"]
[124539,"Shrivenham Church of England Controlled School",124539,"Academy","Academy"]
[132475,"Sibford Gower Endowed Primary School",132475,"Academy","Academy"]
[120545,"Sidbury Church of England Primary School",120545,"Academy","Academy"]
[120564,"Siddal Primary School",120564,"Academy","Academy"]
[130125,"Sidegate Primary School",130125,"Academy","Academy"]
[119196,"Sidney Stringer Academy",119196,"Academy","Academy"]
[132658,"Sidney Stringer Primary Academy",132658,"Academy","Academy"]
[119975,"Signhills Academy",119975,"Academy","Academy"]
[121175,"Signhills Infant Academy",121175,"Academy","Academy"]
[122856,"Sileby Redlands Community Primary School",122856,"Academy","Academy"]
[132283,"Silkmore Academy",132283,"Academy","Academy"]
[120951,"Silver Springs Primary Academy",120951,"Academy","Academy"]
[124664,"Silverdale Primary Academy - Newcastle-u-Lyme",124664,"Academy","Academy"]
[131227,"Silverdale Primary Academy - St Leonard's-on-Sea",131227,"Academy","Academy"]
[122404,"Silverdale School - Sheffield",122404,"Academy","Academy"]
[122050,"Silverstone UTC",122050,"Academy","Academy"]
[124124,"Silvertrees Academy Trust",124124,"Academy","Academy"]
[121196,"Simon Balle School",121196,"Academy","Academy"]
[131239,"Simon de Senlis Primary School",131239,"Academy","Academy"]
[122161,"Simpson's Lane Academy",122161,"Academy","Academy"]
[127704,"Sir Bernard Lovell School",127704,"Academy","Academy"]
[130271,"Sir Charles Kao UTC",130271,"Academy","Academy"]
[121109,"Sir Christopher Hatton School",121109,"Academy","Academy"]
[131392,"Sir Donald Bailey Academy, The",131392,"Academy","Academy"]
[132365,"Sir Frank Whittle Primary School",132365,"Academy","Academy"]
[130580,"Sir Frank Whittle Studio School",130580,"Academy","Academy"]
[121151,"Sir Harry Smith Community College",121151,"Academy","Academy"]
[119845,"Sir Henry Floyd Grammar School",119845,"Academy","Academy"]
[121894,"Sir Herbert Leon Academy",121894,"Academy","Academy"]
[123337,"Sir Isaac Newton Sixth Form Free School",123337,"Academy","Academy"]
[124140,"Sir John Colfox School, The",124140,"Academy","Academy"]
[118043,"Sir John Gleed School",118043,"Academy","Academy"]
[120270,"Sir John Lawes School",120270,"Academy","Academy"]
[120055,"Sir John Leman High School",120055,"Academy","Academy"]
[130942,"Sir John Talbot's Technology College",130942,"Academy","Academy"]
[119657,"Sir Joseph Williamson's Mathematical School",119657,"Academy","Academy"]
[120257,"Sir Robert Geffery's Voluntary Aided Church of England Primary School",120257,"Academy","Academy"]
[113716,"Sir Robert Pattinson Academy",113716,"Academy","Academy"]
[118898,"Sir Robert Woodard Academy, The",118898,"Academy","Academy"]
[119501,"Sir Roger Manwood's School",119501,"Academy","Academy"]
[123338,"Sir Thomas Fremantle School",123338,"Academy","Academy"]
[119297,"Sir Thomas Rich's School",119297,"Academy","Academy"]
[122731,"Sir Thomas Wharton Community College",122731,"Academy","Academy"]
[119757,"Sir William Borlase's Grammar School",119757,"Academy","Academy"]
[120557,"Sir William Burrough Primary School",120557,"Academy","Academy"]
[120256,"Sir William Ramsay School",120256,"Academy","Academy"]
[122899,"Sir William Robertson Academy, Welbourn",122899,"Academy","Academy"]
[119985,"Sir William Romney's School",119985,"Academy","Academy"]
[123945,"Sir William Stanier Community School",123945,"Academy","Academy"]
[119129,"Sirius Academy",119129,"Academy","Academy"]
[121053,"Sittingbourne Community College",121053,"Academy","Academy"]
[130337,"Sitwell Junior School",130337,"Academy","Academy"]
[131891,"Sixpenny Handley First School",131891,"Academy","Academy"]
[124829,"Skegby Junior Academy",124829,"Academy","Academy"]
[119332,"Skegness Academy",119332,"Academy","Academy"]
[122110,"Skegness Grammar School",122110,"Academy","Academy"]
[122390,"Skegness Infant Academy",122390,"Academy","Academy"]
[121189,"Skegness Junior Academy",121189,"Academy","Academy"]
[126488,"Skelton Primary School",126488,"Academy","Academy"]
[122909,"Skerne Park Academy",122909,"Academy","Academy"]
[132490,"Skills Hub, The",132490,"Academy","Academy"]
[119204,"Skinners' Academy",119204,"Academy","Academy"]
[118899,"Skinners' Kent Academy",118899,"Academy","Academy"]
[131865,"Skinners' Kent Primary School",131865,"Academy","Academy"]
[129554,"Skinners' School, The",129554,"Academy","Academy"]
[130768,"Skipton Academy, The",130768,"Academy","Academy"]
[119580,"Skipton Girls' High School",119580,"Academy","Academy"]
[121173,"Slade Primary School",121173,"Academy","Academy"]
[120287,"Slough and Eton CofE Business and Enterprise College",120287,"Academy","Academy"]
[129572,"Smallwood CofE Primary School",129572,"Academy","Academy"]
[120588,"Smarden Primary School",120588,"Academy","Academy"]
[128017,"Smestow School",128017,"Academy","Academy"]
[124749,"Smithills School",124749,"Academy","Academy"]
[130639,"Smith's Wood Primary Academy",130639,"Academy","Academy"]
[122272,"Snaith School, The",122272,"Academy","Academy"]
[120681,"Sneinton St Stephen's CofE Primary School",120681,"Academy","Academy"]
[130298,"Snettisham Primary School",130298,"Academy","Academy"]
[119624,"Soham Village College",119624,"Academy","Academy"]
[122034,"Solebay Primary",122034,"Academy","Academy"]
[130294,"Somerby Primary School",130294,"Academy","Academy"]
[133076,"Somercotes Academy",133076,"Academy","Academy"]
[132457,"Somerfords' Walter Powell CofE Academy",132457,"Academy","Academy"]
[120292,"Somers Park Primary School",120292,"Academy","Academy"]
[119298,"Somervale School Specialist Media Arts College",119298,"Academy","Academy"]
[127043,"South Avenue Junior School",127043,"Academy","Academy"]
[129435,"South Avenue Primary School",129435,"Academy","Academy"]
[120683,"South Axholme Academy",120683,"Academy","Academy"]
[120029,"South Benfleet Primary School",120029,"Academy","Academy"]
[131240,"South Borough Primary School",131240,"Academy","Academy"]
[120541,"South Brent Primary School",120541,"Academy","Academy"]
[123303,"South Bromsgrove Community High School",123303,"Academy","Academy"]
[123276,"South Charnwood High School",123276,"Academy","Academy"]
[119735,"South Craven School",119735,"Academy","Academy"]
[119568,"South Dartmoor Community College",119568,"Academy","Academy"]
[132687,"South Devon UTC",132687,"Academy","Academy"]
[119888,"South Farnham School",119888,"Academy","Academy"]
[132331,"South Hetton Primary",132331,"Academy","Academy"]
[119651,"South Hunsley School and Sixth Form College",119651,"Academy","Academy"]
[119092,"South Leeds Academy",119092,"Academy","Academy"]
[133188,"South Norwood Primary School",133188,"Academy","Academy"]
[120112,"South Nottinghamshire Academy",120112,"Academy","Academy"]
[120616,"South Ossett Infant Academy",120616,"Academy","Academy"]
[124998,"South Shore Academy",124998,"Academy","Academy"]
[121037,"South Wigston High School",121037,"Academy","Academy"]
[119401,"South Wilts Grammar School for Girls",119401,"Academy","Academy"]
[132688,"South Wiltshire UTC",132688,"Academy","Academy"]
[121854,"South Wolds Academy & Sixth Form, The",121854,"Academy","Academy"]
[119088,"South Wolverhampton and Bilston Academy",119088,"Academy","Academy"]
[124175,"Southampton Children's Hospital School",124175,"Academy","Academy"]
[120679,"Southborough High School",120679,"Academy","Academy"]
[124299,"Southbroom St James Church Academy",124299,"Academy","Academy"]
[130623,"Southcoates Primary Academy",130623,"Academy","Academy"]
[119452,"Southend High School for Boys",119452,"Academy","Academy"]
[119454,"Southend High School for Girls",119454,"Academy","Academy"]
[123411,"Southend YMCA Community School",123411,"Academy","Academy"]
[133604,"Southery Primary School",133604,"Academy","Academy"]
[122787,"Southey Green Community Primary School and Nurseries",122787,"Academy","Academy"]
[120398,"Southfield Junior School",120398,"Academy","Academy"]
[122355,"Southfield Primary School",122355,"Academy","Academy"]
[120573,"Southfield School - Bradford",120573,"Academy","Academy"]
[119976,"Southfield School for Girls - Kettering",119976,"Academy","Academy"]
[122705,"Southfields Academy",122705,"Academy","Academy"]
[122268,"Southlands Lower School",122268,"Academy","Academy"]
[124095,"Southmere Primary School",124095,"Academy","Academy"]
[123120,"Southminster Church of England (Controlled) Primary School",123120,"Academy","Academy"]
[121955,"Southmoor Academy",121955,"Academy","Academy"]
[122022,"Southwark Free School",122022,"Academy","Academy"]
[120272,"Southwark Primary School",120272,"Academy","Academy"]
[119866,"Southwater Infant Academy",119866,"Academy","Academy"]
[119865,"Southwater Junior Academy",119865,"Academy","Academy"]
[121973,"Southway Primary School",121973,"Academy","Academy"]
[130576,"Space Studio Banbury",130576,"Academy","Academy"]
[132680,"Space Studio West London",132680,"Academy","Academy"]
[123875,"Spalding Grammar School",123875,"Academy","Academy"]
[130733,"Sparken Hill Academy",130733,"Academy","Academy"]
[123340,"Sparkwell All Saints Primary School",123340,"Academy","Academy"]
[130713,"Spetisbury CofE VA Primary School",130713,"Academy","Academy"]
[119115,"Spires Academy",119115,"Academy","Academy"]
[119488,"Sponne School",119488,"Academy","Academy"]
[133469,"Sporle Voluntary Controlled Primary School",133469,"Academy","Academy"]
[132318,"Spring Common School",132318,"Academy","Academy"]
[124260,"Spring Cottage Primary School",124260,"Academy","Academy"]
[122171,"Spring Lane Primary School",122171,"Academy","Academy"]
[120194,"Springbank Primary Academy",120194,"Academy","Academy"]
[120659,"Springfield Academy - Darlington",120659,"Academy","Academy"]
[132398,"Springfield Primary School - Grimsby",132398,"Academy","Academy"]
[124349,"Springfield Primary School - Sunbury-on-Thames",124349,"Academy","Academy"]
[120399,"Springfields Academy - Calne",120399,"Academy","Academy"]
[120293,"Springhill Catholic Primary School",120293,"Academy","Academy"]
[129419,"Springhill Primary Academy",129419,"Academy","Academy"]
[122670,"Springwell Alternative Academy",122670,"Academy","Academy"]
[123155,"Springwell Dene School",123155,"Academy","Academy"]
[121430,"Springwell Special Academy",121430,"Academy","Academy"]
[119604,"Springwood High School",119604,"Academy","Academy"]
[132489,"Springwood Junior Academy",132489,"Academy","Academy"]
[132291,"Sprites Primary School",132291,"Academy","Academy"]
[133475,"Sproughton Church of England Voluntary Controlled Primary School",133475,"Academy","Academy"]
[121845,"Ss Simon & Jude CofE Primary School, Bolton",121845,"Academy","Academy"]
[123826,"Ss. Peter and Paul Catholic Primary School - Yeadon",123826,"Academy","Academy"]
[121033,"St Agatha's Catholic Primary School",121033,"Academy","Academy"]
[132065,"St Agnes ACE Academy",132065,"Academy","Academy"]
[124239,"St Aidan's Catholic Academy - Ashbrooke",124239,"Academy","Academy"]
[127207,"St Aidan's Catholic Primary School - Ilford",127207,"Academy","Academy"]
[119117,"St Aidan's Church of England Academy",119117,"Academy","Academy"]
[120139,"St Aidan's Church of England High School",120139,"Academy","Academy"]
[130905,"St Aidan's Primary School",130905,"Academy","Academy"]
[121003,"St Alban's Catholic High School",121003,"Academy","Academy"]
[120056,"St Alban's Catholic Primary School",120056,"Academy","Academy"]
[131425,"St Alban's Catholic Primary School, a Voluntary Academy",131425,"Academy","Academy"]
[130872,"St Alban's CofE (Aided) Primary School",130872,"Academy","Academy"]
[120335,"St Albans Girls' School",120335,"Academy","Academy"]
[119348,"St Aldhelm's Academy",119348,"Academy","Academy"]
[132386,"St Alphonsus' RC Primary School",132386,"Academy","Academy"]
[131193,"St Ambrose Catholic Primary",131193,"Academy","Academy"]
[120533,"St Ambrose College",120533,"Academy","Academy"]
[131530,"St Andrew and St Francis CofE Primary School",131530,"Academy","Academy"]
[123341,"St Andrew the Apostle Greek Orthodox School",123341,"Academy","Academy"]
[131146,"St Andrew's Church of England (VA) Primary School - Axminister",131146,"Academy","Academy"]
[133441,"St Andrew's Church of England Primary Academy - Swaffham",133441,"Academy","Academy"]
[130148,"St Andrew's Church of England Primary School - Kettering",130148,"Academy","Academy"]
[124991,"St Andrew's Church of England Primary School - Taunton",124991,"Academy","Academy"]
[131848,"St Andrew's CofE (C) Primary School - Stafford",131848,"Academy","Academy"]
[131083,"St Andrew's CofE Primary School - Ely",131083,"Academy","Academy"]
[121858,"St Andrew's CofE Primary School - Woodhall Spa",121858,"Academy","Academy"]
[133066,"St Andrew's Primary School",133066,"Academy","Academy"]
[126469,"St Anne's Catholic Primary School - Keighley",126469,"Academy","Academy"]
[131933,"St Anne's Catholic Primary School - Nuneaton",131933,"Academy","Academy"]
[132940,"St Anne's Catholic Primary School - Stafford",132940,"Academy","Academy"]
[122697,"St Anne's Catholic School",122697,"Academy","Academy"]
[118645,"St Anne's Church of England Academy",118645,"Academy","Academy"]
[125202,"St Ann's Catholic Primary School - Sheffield",125202,"Academy","Academy"]
[132024,"St Ann's Church of England Primary School - Prescot",132024,"Academy","Academy"]
[123204,"St Ann's CofE Primary School - Haringey",123204,"Academy","Academy"]
[120631,"St Ann's Well Academy",120631,"Academy","Academy"]
[130345,"St Anselm's Catholic School",130345,"Academy","Academy"]
[119778,"St Anselm's College",119778,"Academy","Academy"]
[120381,"St Anthony's Catholic Primary School - Fareham",120381,"Academy","Academy"]
[123869,"St Anthony's Catholic Primary School - Manchester",123869,"Academy","Academy"]
[121140,"St Anthony's Girls' Catholic Academy",121140,"Academy","Academy"]
[123342,"St Anthony's School",123342,"Academy","Academy"]
[119943,"St Augustine Academy - Maidstone",119943,"Academy","Academy"]
[122918,"St Augustine of Canterbury CofE Primary School - Belvedere",122918,"Academy","Academy"]
[120403,"St Augustine's Catholic College - Trowbridge",120403,"Academy","Academy"]
[130696,"St Augustine's Catholic High School",130696,"Academy","Academy"]
[120956,"St Augustine's Catholic Primary and Nursery School",120956,"Academy","Academy"]
[130056,"St Augustine's Catholic Primary School - Runcorn",130056,"Academy","Academy"]
[130070,"St Augustine's Catholic Primary School, Weymouth",130070,"Academy","Academy"]
[124652,"St Augustine's RC (A) Primary School",124652,"Academy","Academy"]
[124088,"St Augustine's RC Primary School - Darlington",124088,"Academy","Academy"]
[132289,"St Augustine's RC Primary School - Middlesbrough",132289,"Academy","Academy"]
[132968,"St Austin's Catholic (VA) Primary School - Stafford",132968,"Academy","Academy"]
[132003,"St Austin's Catholic Primary School - Wakefield",132003,"Academy","Academy"]
[130907,"St Barnabas Church of England School - Wellingborough",130907,"Academy","Academy"]
[120957,"St Barnabas CofE Primary Academy - Manchester",120957,"Academy","Academy"]
[123806,"St Bartholomew's Church of England Academy - Coventry",123806,"Academy","Academy"]
[131063,"St Bartholomews Primary Academy - Wootton Bassett",131063,"Academy","Academy"]
[120402,"St Bartholomew's School - Newbury",120402,"Academy","Academy"]
[119889,"St Bede Academy - Bolton",119889,"Academy","Academy"]
[127917,"St Bede's Catholic Academy - Stockton-on-Tees",127917,"Academy","Academy"]
[120562,"St Bede's Catholic College - Bristol",120562,"Academy","Academy"]
[122144,"St Bede's Catholic Comprehensive School and Sixth Form College, Lanchester",122144,"Academy","Academy"]
[130691,"St Bede's Catholic Middle School",130691,"Academy","Academy"]
[124191,"St Bede's Catholic Primary School - Rotherham",124191,"Academy","Academy"]
[121200,"St Bede's Catholic Voluntary Academy - Scunthorpe",121200,"Academy","Academy"]
[121102,"St Bede's Inter-Church School",121102,"Academy","Academy"]
[122352,"St Bede's RC Primary School - Darlington",122352,"Academy","Academy"]
[130295,"St Benedict’s Primary Catholic Voluntary Academy ",130295,"Academy","Academy"]
[131221,"St Benedict's Catholic Primary School - Atherstone",131221,"Academy","Academy"]
[122365,"St Benedict's Catholic Primary School - Leeds",122365,"Academy","Academy"]
[130732,"St Benet Biscop Catholic Academy",130732,"Academy","Academy"]
[132943,"St Bernadette's Catholic Primary School",132943,"Academy","Academy"]
[121925,"St Bernadette's Catholic Primary Voluntary Academy",121925,"Academy","Academy"]
[132362,"St Bernadette's RC Primary School",132362,"Academy","Academy"]
[122062,"St Bernard's Catholic High School",122062,"Academy","Academy"]
[120312,"St Bernard's High School",120312,"Academy","Academy"]
[130356,"St Bernard's Roman Catholic Primary School",130356,"Academy","Academy"]
[132194,"St Bernard's School, Louth",132194,"Academy","Academy"]
[122729,"St Birinus School",122729,"Academy","Academy"]
[123808,"St Blasius Shanklin CofE Primary Academy",123808,"Academy","Academy"]
[130645,"St Boniface's RC College",130645,"Academy","Academy"]
[131190,"St Botolph's Church of England Primary School",131190,"Academy","Academy"]
[132982,"St Brendan's Catholic Primary School",132982,"Academy","Academy"]
[120142,"St Breock Primary School",120142,"Academy","Academy"]
[130630,"St Brigid's Catholic Primary School",130630,"Academy","Academy"]
[119254,"St Buryan Primary School",119254,"Academy","Academy"]
[122511,"St Catherine of Siena Catholic Primary School",122511,"Academy","Academy"]
[122138,"St Catherine's Catholic Primary School, Swindon",122138,"Academy","Academy"]
[130115,"St Catherine's Catholic Primary School, Wimborne",130115,"Academy","Academy"]
[119931,"St Catherine's Catholic School for Girls",119931,"Academy","Academy"]
[125002,"St Catherine's Catholic Voluntary Academy (Hallam)",125002,"Academy","Academy"]
[130120,"St Catherine's Roman Catholic School",130120,"Academy","Academy"]
[130314,"St Cedd's Church of England Voluntary Aided Primary School, Bradwell",130314,"Academy","Academy"]
[124484,"St Chad's Catholic Primary School",124484,"Academy","Academy"]
[131075,"St Chad's Church of England Primary School - Leeds",131075,"Academy","Academy"]
[122166,"St Chad's Church of England Primary School - Oldham",122166,"Academy","Academy"]
[121050,"St Christopher School, The",121050,"Academy","Academy"]
[120726,"St Christophers Academy",120726,"Academy","Academy"]
[131455,"St Christopher's Church of England School - Lechlade",131455,"Academy","Academy"]
[127580,"St Christopher's Church of England School, Cowley",127580,"Academy","Academy"]
[124555,"St Clare's Catholic Primary School - Clacton-on-Sea",124555,"Academy","Academy"]
[132347,"St Clare's RC Primary School - Acklam",132347,"Academy","Academy"]
[119859,"St Clement Danes School",119859,"Academy","Academy"]
[131777,"St Clement's and St John's Church of England Infant School",131777,"Academy","Academy"]
[122108,"St Clement's Church of England Academy",122108,"Academy","Academy"]
[127678,"St Clement's CofE Primary",127678,"Academy","Academy"]
[129411,"St Clement's High School",129411,"Academy","Academy"]
[120440,"St Clere's School",120440,"Academy","Academy"]
[119822,"St Columb Major Academy",119822,"Academy","Academy"]
[119823,"St Columb Minor Academy",119823,"Academy","Academy"]
[121948,"St Columba Church of England Primary Academy",121948,"Academy","Academy"]
[121201,"St Columba's Catholic Boys' School",121201,"Academy","Academy"]
[131679,"St Columba's Catholic Primary School",131679,"Academy","Academy"]
[130908,"St Cuthbert's Catholic Academy - Blackpool",130908,"Academy","Academy"]
[120858,"St Cuthbert's Church of England Infants School",120858,"Academy","Academy"]
[121035,"St Cuthbert's High School",121035,"Academy","Academy"]
[121191,"St Cyprian's Greek Orthodox Primary Academy",121191,"Academy","Academy"]
[120856,"St David's Church of England Primary School",120856,"Academy","Academy"]
[130909,"St Dennis Primary Academy",130909,"Academy","Academy"]
[132970,"St Dominic's Catholic Primary School - Stone",132970,"Academy","Academy"]
[120407,"St Dominic's Catholic Primary School - Stroud",120407,"Academy","Academy"]
[120202,"St Dunstan's School",120202,"Academy","Academy"]
[123048,"St Eanswythe's Church of England Primary School",123048,"Academy","Academy"]
[120273,"St Edmund Campion Catholic Primary School",120273,"Academy","Academy"]
[125005,"St Edmunds Catholic Academy - Wolverhampton",125005,"Academy","Academy"]
[120611,"St Edmund's Girls' School",120611,"Academy","Academy"]
[131408,"St Edward's Catholic Primary School - Kettering",131408,"Academy","Academy"]
[122913,"St Edward's Church of England Academy",122913,"Academy","Academy"]
[120145,"St Edward's Church of England School & Sixth Form College",120145,"Academy","Academy"]
[132962,"St Edward's CofE Primary School",132962,"Academy","Academy"]
[119736,"St Edward's College",119736,"Academy","Academy"]
[132337,"St Edward's RC Primary School - Middlesbrough",132337,"Academy","Academy"]
[129574,"St Elizabeth's Catholic Primary School",129574,"Academy","Academy"]
[122657,"St Filumena's Catholic Primary School",122657,"Academy","Academy"]
[131202,"St Francis Catholic Primary School",131202,"Academy","Academy"]
[131135,"St Francis Catholic Primary School, South Ascot",131135,"Academy","Academy"]
[131881,"St Francis Xavier Catholic Primary School",131881,"Academy","Academy"]
[122503,"St Francis Xavier's College",122503,"Academy","Academy"]
[123406,"St George and St Martin's Catholic Primary School",123406,"Academy","Academy"]
[123415,"St Georges Academy - Hockley",123415,"Academy","Academy"]
[119012,"St George's Academy - Sleaford",119012,"Academy","Academy"]
[122691,"St George's Catholic Primary School - Derby",122691,"Academy","Academy"]
[121849,"St George's Catholic School - Westminster",121849,"Academy","Academy"]
[123197,"St George's Church of England Academy, Newtown",123197,"Academy","Academy"]
[125720,"St George's Church of England Primary School - Edgbaston",125720,"Academy","Academy"]
[131453,"St George's Church of England Primary School, Semington",131453,"Academy","Academy"]
[131528,"St Georges CofE (Aided) Primary School",131528,"Academy","Academy"]
[124802,"St George's CofE Primary Academy - Plymouth",124802,"Academy","Academy"]
[120807,"St George's School - Harpenden",120807,"Academy","Academy"]
[129890,"St George's School A Church of England Academy",129890,"Academy","Academy"]
[124186,"St Gerard's Catholic Primary School - Rotherham",124186,"Academy","Academy"]
[132364,"St Gerard's RC Primary School - Middlesbrough",132364,"Academy","Academy"]
[131158,"St Giles Academy",131158,"Academy","Academy"]
[127252,"St Giles' and St George's CofE (C) Primary School",127252,"Academy","Academy"]
[122659,"St Giles Catholic Primary School",122659,"Academy","Academy"]
[131594,"St Giles Church of England Primary School",131594,"Academy","Academy"]
[127247,"St Giles CofE (VA) J&I Pontefract",127247,"Academy","Academy"]
[124075,"St Gregory the Great Catholic School",124075,"Academy","Academy"]
[123183,"St Gregory's Catholic Middle School",123183,"Academy","Academy"]
[132442,"St Gregory's Catholic Primary School - Coventry",132442,"Academy","Academy"]
[124638,"St Gregory's Catholic Primary School - Longton",124638,"Academy","Academy"]
[131861,"St Gregory's Catholic Primary School - Smethwick",131861,"Academy","Academy"]
[124074,"St Gregory's Catholic Primary School - Stockton-on-Tees",124074,"Academy","Academy"]
[124289,"St Gregory's Catholic Primary School, Margate",124289,"Academy","Academy"]
[123235,"St Gregory's Catholic School",123235,"Academy","Academy"]
[132946,"St Gregory's Catholic Science College",132946,"Academy","Academy"]
[121048,"St Helena School",121048,"Academy","Academy"]
[119977,"St Helen's Catholic Junior School",119977,"Academy","Academy"]
[131898,"St Helen's Catholic Primary School",131898,"Academy","Academy"]
[124308,"St Helen's CE Primary School",124308,"Academy","Academy"]
[122596,"St Helen's Primary Academy - Barnsley",122596,"Academy","Academy"]
[131198,"St Helen's Primary School - Ispwich",131198,"Academy","Academy"]
[119824,"St Hilary School",119824,"Academy","Academy"]
[122332,"St Ignatius Catholic Primary School",122332,"Academy","Academy"]
[120412,"St Ives Infant School",120412,"Academy","Academy"]
[131846,"St Ives Primary School",131846,"Academy","Academy"]
[130048,"St Ives School",130048,"Academy","Academy"]
[120305,"St Ivo School",120305,"Academy","Academy"]
[130642,"St James Catholic Primary School",130642,"Academy","Academy"]
[131397,"St James' Church of England Academy - Hull",131397,"Academy","Academy"]
[131900,"St James' Church of England First School, Alderholt",131900,"Academy","Academy"]
[121953,"St James Church of England Primary Academy - Rochester",121953,"Academy","Academy"]
[130348,"St James' Church of England Primary School - Bournemouth",130348,"Academy","Academy"]
[131681,"St James Church of England Primary School - Harlow",131681,"Academy","Academy"]
[132486,"St James Church of England Primary School, Hanney",132486,"Academy","Academy"]
[123119,"St James Church School - Taunton",123119,"Academy","Academy"]
[130072,"St James' CofE Academy - Bedworth",130072,"Academy","Academy"]
[131783,"St James' CofE Primary School, Gorton",131783,"Academy","Academy"]
[131938,"St James CofE VA Primary School - Northampton",131938,"Academy","Academy"]
[121465,"St James' Roman Catholic Primary School",121465,"Academy","Academy"]
[121099,"St James the Great Academy - East Maling",121099,"Academy","Academy"]
[121461,"St James the Great RC Primary and Nursery School",121461,"Academy","Academy"]
[131806,"St Joachim's RC Primary School",131806,"Academy","Academy"]
[123098,"St John and St Francis Church School",123098,"Academy","Academy"]
[122133,"St John Fisher - Alvaston",122133,"Academy","Academy"]
[123848,"St John Fisher and Thomas More Catholic Primary School",123848,"Academy","Academy"]
[129547,"St John Fisher Catholic College - Newcastle-u-Lyme",129547,"Academy","Academy"]
[132413,"St John Fisher Catholic Primary School - Coventry",132413,"Academy","Academy"]
[124138,"St John Fisher Catholic Primary School - Sheffield",124138,"Academy","Academy"]
[124083,"St John Fisher Catholic Primary School, Littlemore",124083,"Academy","Academy"]
[130692,"St John Fisher Catholic Voluntary Academy - Drewsbury",130692,"Academy","Academy"]
[122865,"St John Plessington Catholic College",122865,"Academy","Academy"]
[123150,"St John Rigby Catholic Primary School",123150,"Academy","Academy"]
[122573,"St John Roman Catholic Primary School",122573,"Academy","Academy"]
[130122,"St John the Baptist Roman Catholic Primary School, Dartmouth",130122,"Academy","Academy"]
[123362,"St John the Evangelist Catholic Primary",123362,"Academy","Academy"]
[120493,"St John's (CofE) Primary Academy, Clifton",120493,"Academy","Academy"]
[122798,"St John's and St Peter's CofE Academy",122798,"Academy","Academy"]
[132960,"St John's Catholic Primary School - Stafford",132960,"Academy","Academy"]
[130113,"St John's Catholic Primary School - Tiverton",130113,"Academy","Academy"]
[130133,"St John's Catholic Primary School, Camborne",130133,"Academy","Academy"]
[131658,"St John's Catholic Primary School, Gravesend",131658,"Academy","Academy"]
[122688,"St John's Church of England Academy - Coleford",122688,"Academy","Academy"]
[130831,"St John's Church of England Academy - Coventry",130831,"Academy","Academy"]
[121906,"St John's Church of England Academy - Darlington",121906,"Academy","Academy"]
[131895,"St John's Church of England Infant School",131895,"Academy","Academy"]
[123250,"St John's Church of England Middle School Academy - Bromsgrove",123250,"Academy","Academy"]
[130315,"St Johns Church of England Primary Academy - Wednesbury",130315,"Academy","Academy"]
[132904,"St John's Church of England Primary School - Bristol",132904,"Academy","Academy"]
[123099,"St John's Church of England Primary School - Dorking",123099,"Academy","Academy"]
[127097,"St John's Church of England Primary School - Penge",127097,"Academy","Academy"]
[131447,"St John's Church of England Primary School, Abram",131447,"Academy","Academy"]
[131451,"St John's Church of England Primary School, Hindley Green",131451,"Academy","Academy"]
[131442,"St John's Church of England Voluntary Controlled First School, Wimborne",131442,"Academy","Academy"]
[133055,"St John's CofE Academy - Worksop",133055,"Academy","Academy"]
[122106,"St John's CofE Primary School - Birmingham",122106,"Academy","Academy"]
[123245,"St John's CofE Primary School - Radstock",123245,"Academy","Academy"]
[111443,"St John's Marlborough",111443,"Academy","Academy"]
[120809,"St John's Primary Academy - Bracebridge Heath",120809,"Academy","Academy"]
[131085,"St John's Primary Academy - Wolverhampton",131085,"Academy","Academy"]
[123907,"St John's Primary School - Wallingford",123907,"Academy","Academy"]
[127095,"St John's Primary School - Woking",127095,"Academy","Academy"]
[122722,"St John's Primary School In Rishworth",122722,"Academy","Academy"]
[120336,"St John's School - Bedford",120336,"Academy","Academy"]
[120831,"St John's School & Sixth Form College",120831,"Academy","Academy"]
[124633,"St Joseph's Catholic Academy - Hebburn",124633,"Academy","Academy"]
[123400,"St Joseph's Catholic Academy, Goldenhill",123400,"Academy","Academy"]
[119980,"St Joseph's Catholic College - Swindon",119980,"Academy","Academy"]
[131934,"St Joseph's Catholic Junior School",131934,"Academy","Academy"]
[126370,"St Joseph's Catholic Primary and Nursery School - Newark",126370,"Academy","Academy"]
[120382,"St Joseph's Catholic Primary School - Aldershot",120382,"Academy","Academy"]
[131683,"St Joseph's Catholic Primary School - Birmingham",131683,"Academy","Academy"]
[129420,"St Joseph's Catholic Primary School - Bromley",129420,"Academy","Academy"]
[127307,"St Joseph's Catholic Primary School - Dinnington",127307,"Academy","Academy"]
[124442,"St Joseph's Catholic Primary School - Dudley",124442,"Academy","Academy"]
[126348,"St Joseph's Catholic Primary School - Mansfield",126348,"Academy","Academy"]
[130110,"St Joseph's Catholic Primary School - Newton Abbot",130110,"Academy","Academy"]
[130089,"St Joseph's Catholic Primary School - Plymouth",130089,"Academy","Academy"]
[122834,"St Joseph's Catholic Primary School - Uttoxeter",122834,"Academy","Academy"]
[122403,"St Joseph's Catholic Primary School - Wakefield",122403,"Academy","Academy"]
[122349,"St Joseph's Catholic Primary School Castleford",122349,"Academy","Academy"]
[125019,"St Joseph's Catholic Primary School, Aylesham",125019,"Academy","Academy"]
[130709,"St Joseph's Catholic Primary School, Banbury",130709,"Academy","Academy"]
[124290,"St Joseph's Catholic Primary School, Broadstairs",124290,"Academy","Academy"]
[124056,"St Joseph's Catholic Primary School, Carterton",124056,"Academy","Academy"]
[120413,"St Joseph's Catholic Primary School, Devizes",120413,"Academy","Academy"]
[130130,"St Joseph's Catholic Primary School, Exmouth",130130,"Academy","Academy"]
[132278,"St Joseph's Catholic Primary School, Harrogate, a Voluntary Academy",132278,"Academy","Academy"]
[129425,"St Joseph's Catholic Primary School, Moorthorpe",129425,"Academy","Academy"]
[131222,"St Joseph's Catholic Primary School, Northfleet",131222,"Academy","Academy"]
[123824,"St Joseph's Catholic Primary School, Otley",123824,"Academy","Academy"]
[130121,"St Joseph's Catholic Primary School, Poole",130121,"Academy","Academy"]
[123861,"St Joseph's Catholic Primary School, Pudsey",123861,"Academy","Academy"]
[124099,"St Joseph's Catholic Primary School, Thame",124099,"Academy","Academy"]
[121864,"St Joseph's Catholic Primary Voluntary Academy",121864,"Academy","Academy"]
[121124,"St Joseph's Catholic Voluntary Academy",121124,"Academy","Academy"]
[121177,"St Joseph's Catholic Voluntary Academy - Leicestershire",121177,"Academy","Academy"]
[121138,"St Joseph's College - Croydon",121138,"Academy","Academy"]
[119510,"St Joseph's College - Stoke-on-Trent",119510,"Academy","Academy"]
[123230,"St Joseph's Primary School - Sheffield",123230,"Academy","Academy"]
[123152,"St Joseph's RC Lower School",123152,"Academy","Academy"]
[132340,"St Joseph's RC Primary School - Middlesbrough",132340,"Academy","Academy"]
[130835,"St Joseph's RC Primary School - Stourbridge",130835,"Academy","Academy"]
[123901,"St Joseph's RC Primary School - Sutton Coldfield",123901,"Academy","Academy"]
[127180,"St Joseph's School, A Catholic Voluntary Academy - Doncaster",127180,"Academy","Academy"]
[127323,"St Jude's Church of England Primary Academy",127323,"Academy","Academy"]
[132481,"St Just Primary School",132481,"Academy","Academy"]
[126520,"St Keverne Community Primary School",126520,"Academy","Academy"]
[132030,"St Laurence CofE VA Primary School",132030,"Academy","Academy"]
[122870,"St Laurence in Thanet Church of England Junior School",122870,"Academy","Academy"]
[120057,"St Laurence School - Bradford-on-Avon",120057,"Academy","Academy"]
[123851,"St Laurences CofE Primary School - Coventry",123851,"Academy","Academy"]
[119124,"St Lawrence Academy, The - Scunthorpe",119124,"Academy","Academy"]
[124523,"St Lawrence CofE Primary School - Hassocks",124523,"Academy","Academy"]
[131183,"St Lawrence Primary School - Leatherhead",131183,"Academy","Academy"]
[131816,"St Leonard’s Church of England Primary Academy - St Leonard's-on-Sea",131816,"Academy","Academy"]
[133644,"St Leonard's (CofE) Primary School (VC)",133644,"Academy","Academy"]
[119431,"St Leonards Academy, The",119431,"Academy","Academy"]
[120621,"St Leonard's Church of England Primary Academy, Blunsdon",120621,"Academy","Academy"]
[124098,"St Louis Roman Catholic Academy",124098,"Academy","Academy"]
[123874,"St Loys Church of England Primary Academy, Weedon Lois",123874,"Academy","Academy"]
[127420,"St Luke and St Philips Church of England Voluntary Aided Primary School",127420,"Academy","Academy"]
[124522,"St Luke's Catholic Academy",124522,"Academy","Academy"]
[120536,"St Luke's Church of England Primary - Camden",120536,"Academy","Academy"]
[131780,"St Luke's Church of England Primary School - Bournemouth",131780,"Academy","Academy"]
[131133,"St Luke's CofE Primary School - Maidenhaed",131133,"Academy","Academy"]
[123065,"St Mabyn CofE School",123065,"Academy","Academy"]
[130706,"St Malachy's Catholic Primary School, a Voluntary Academy",130706,"Academy","Academy"]
[130111,"St Margaret Clitherow Catholic Primary School - Brixham",130111,"Academy","Academy"]
[121059,"St Margaret Clitherow Catholic Primary School - Nottingham",121059,"Academy","Academy"]
[131054,"St Margaret Clitherow Catholic Primary School - Tonbridge",131054,"Academy","Academy"]
[131354,"St Margaret Clitherow Catholic Primary School, Bracknell",131354,"Academy","Academy"]
[128093,"St Margaret Clitherows RC Primary School - Middlesborough",128093,"Academy","Academy"]
[132355,"St Margaret of Scotland Catholic Primary School",132355,"Academy","Academy"]
[123311,"St Margaret Ward Catholic Academy",123311,"Academy","Academy"]
[119671,"St Margaret's Academy",119671,"Academy","Academy"]
[122342,"St Margaret's Church of England Academy",122342,"Academy","Academy"]
[131788,"St Margaret's Church of England Junior School",131788,"Academy","Academy"]
[132295,"St Margaret's Community Primary School",132295,"Academy","Academy"]
[124616,"St Maria Goretti Catholic Primary School",124616,"Academy","Academy"]
[122671,"St Marie's School",122671,"Academy","Academy"]
[121095,"St Mark's Catholic School",121095,"Academy","Academy"]
[118646,"St Mark's Church of England Academy",118646,"Academy","Academy"]
[132281,"St Mark's Church of England Aided Primary School - Bournemouth",132281,"Academy","Academy"]
[130910,"St Mark's Church of England Primary Academy - Croydon",130910,"Academy","Academy"]
[131160,"St Mark's Church of England Primary School - Bromley",131160,"Academy","Academy"]
[131176,"St Mark's CofE Junior School, Salisbury",131176,"Academy","Academy"]
[120058,"St Mark's West Essex Catholic School",120058,"Academy","Academy"]
[129436,"St Martin at Shouldham Church of England Voluntary Aided Primary School",129436,"Academy","Academy"]
[132360,"St Martin De Porres Catholic Primary School",132360,"Academy","Academy"]
[121874,"St Martin in the Fields High School for Girls",121874,"Academy","Academy"]
[126523,"St Martin-in-Meneage Community Primary School",126523,"Academy","Academy"]
[123343,"St Martin's Academy Chester",123343,"Academy","Academy"]
[131445,"St Martin's Church of England Primary School - Bilston",131445,"Academy","Academy"]
[130407,"St Martin's Church of England Primary School - West Drayton",130407,"Academy","Academy"]
[124485,"St Martin's CofE VA School - Liskeard",124485,"Academy","Academy"]
[119875,"St Martin's School Brentwood",119875,"Academy","Academy"]
[130141,"St Mary & St Joseph's Catholic Primary School",130141,"Academy","Academy"]
[124666,"St Mary and St John Catholic Primary School",124666,"Academy","Academy"]
[118670,"St Mary Magdalene Academy",118670,"Academy","Academy"]
[123398,"St Mary Magdalene Academy: the Courtyard",123398,"Academy","Academy"]
[131210,"St Mary Magdalene CofE (VA) Primary School",131210,"Academy","Academy"]
[130927,"St Mary of Charity CofE (Aided) Primary School",130927,"Academy","Academy"]
[124978,"St Mary Queen of Martyrs RC Primary School",124978,"Academy","Academy"]
[122600,"St Mary Roman Catholic Primary School",122600,"Academy","Academy"]
[130165,"St Marychurch Church of England Primary and Nursery School",130165,"Academy","Academy"]
[123401,"St Marylebone Church of England Bridge School, The",123401,"Academy","Academy"]
[120352,"St Marylebone CofE School, The",120352,"Academy","Academy"]
[132010,"St Mary's and St Thomas' CofE Primary School",132010,"Academy","Academy"]
[131421,"St Mary's Broughton Gifford Voluntary Controlled Church of England Primary School",131421,"Academy","Academy"]
[121135,"St Marys C of E Primary and Nursery, Academy, Handsworth",121135,"Academy","Academy"]
[130841,"St Mary's Catholic Academy - Blackpool",130841,"Academy","Academy"]
[122793,"St Mary's Catholic Academy - Leek",122793,"Academy","Academy"]
[130124,"St Mary's Catholic First School, Dorchester",130124,"Academy","Academy"]
[122513,"St Mary's Catholic High School - Chesterfield",122513,"Academy","Academy"]
[132966,"St Mary's Catholic Infant School - Croydon",132966,"Academy","Academy"]
[129433,"St Mary's Catholic Primary School - Beckenham",129433,"Academy","Academy"]
[130695,"St Mary's Catholic Primary School - Deal",130695,"Academy","Academy"]
[120031,"St Mary's Catholic Primary School - Gloucester",120031,"Academy","Academy"]
[129566,"St Mary's Catholic Primary School - Newcastle-u-Lyme",129566,"Academy","Academy"]
[122379,"St Mary's Catholic Primary School - Nottingham",122379,"Academy","Academy"]
[124182,"St Mary's Catholic Primary School - Rotherham",124182,"Academy","Academy"]
[132955,"St Mary's Catholic Primary School - Stafford",132955,"Academy","Academy"]
[123403,"St Marys Catholic Primary School - Stoke-on-Trent",123403,"Academy","Academy"]
[120147,"St Mary's Catholic Primary School - Swindon",120147,"Academy","Academy"]
[124189,"St Mary's Catholic Primary School (Maltby)",124189,"Academy","Academy"]
[130131,"St Mary's Catholic Primary School, Axminster",130131,"Academy","Academy"]
[130090,"St Mary's Catholic Primary School, Bodmin",130090,"Academy","Academy"]
[130142,"St Mary's Catholic Primary School, Buckfast",130142,"Academy","Academy"]
[130093,"St Mary's Catholic Primary School, Falmouth",130093,"Academy","Academy"]
[123819,"St Mary's Catholic Primary School, Horsforth",123819,"Academy","Academy"]
[124344,"St Mary's Catholic Primary School, Maidenhead",124344,"Academy","Academy"]
[130132,"St Mary's Catholic Primary School, Marnhull",130132,"Academy","Academy"]
[130112,"St Mary's Catholic Primary School, Poole",130112,"Academy","Academy"]
[130126,"St Mary's Catholic Primary School, Swanage",130126,"Academy","Academy"]
[132463,"St Mary's Catholic Primary School, Whitstable",132463,"Academy","Academy"]
[131664,"St Mary's Catholic Primary School, Wolverhampton",131664,"Academy","Academy"]
[121463,"St Mary's Catholic Primary Voluntary Academy - Brigg",121463,"Academy","Academy"]
[124614,"St Mary's Catholic School",124614,"Academy","Academy"]
[130095,"St Mary's Catholic School, Penzance",130095,"Academy","Academy"]
[120337,"St Mary's Church of England Academy - Bury St Edmunds",120337,"Academy","Academy"]
[132477,"St Mary's Church of England Controlled Infant School - Witney",132477,"Academy","Academy"]
[121232,"St Mary's Church of England High School (VA)",121232,"Academy","Academy"]
[120311,"St Mary's Church of England Junior School - Norwich",120311,"Academy","Academy"]
[121942,"St Mary's Church of England Middle School, Puddletown",121942,"Academy","Academy"]
[130543,"St Marys Church of England Primary Norwood Green",130543,"Academy","Academy"]
[123149,"St Mary's Church of England Primary School",123149,"Academy","Academy"]
[125176,"St Mary's Church of England Primary School - Godalming",125176,"Academy","Academy"]
[126471,"St Mary's Church of England Primary School - Sheffield",126471,"Academy","Academy"]
[133051,"St Mary's Church of England Primary School St Neots",133051,"Academy","Academy"]
[120549,"St Mary's Church of England Primary School, Barnsley",120549,"Academy","Academy"]
[123064,"St Mary's Church of England Primary School, Burton Latimer",123064,"Academy","Academy"]
[123112,"St Mary's Church of England Voluntary Aided Primary School - Kettering",123112,"Academy","Academy"]
[133556,"St Mary's Church of England Voluntary Aided Primary School, Hadleigh",133556,"Academy","Academy"]
[133476,"St Mary's Church of England Voluntary Aided Primary School, Woodbridge",133476,"Academy","Academy"]
[120814,"St Mary's CofE Academy, Stotfold",120814,"Academy","Academy"]
[132484,"St Mary's CofE Primary School, The - Rugeley",132484,"Academy","Academy"]
[123345,"St Mary's Hampton Church of England Primary",123345,"Academy","Academy"]
[124623,"St Mary's Primary School - High Green",124623,"Academy","Academy"]
[132371,"St Mary's Primary School Knaresborough, A Voluntary Catholic Academy",132371,"Academy","Academy"]
[123344,"St Mary's Primary School, Dilwyn",123344,"Academy","Academy"]
[126503,"St Mary's RC Primary School - Brierley Hill",126503,"Academy","Academy"]
[129300,"St Mary's RC Primary School - Middlesborough",129300,"Academy","Academy"]
[132011,"St Mary's School - Heathfield",132011,"Academy","Academy"]
[119114,"St Matthew Academy",119114,"Academy","Academy"]
[131657,"St Matthew's Catholic Primary School",131657,"Academy","Academy"]
[123353,"St Matthews Church of England Academy - Stoke-on-Trent",123353,"Academy","Academy"]
[129875,"St Matthew's Church of England Primary and Nursery Academy",129875,"Academy","Academy"]
[123908,"St Matthew's Church of England Primary School - Stockport",123908,"Academy","Academy"]
[123166,"St Matthew's CofE Primary School - West Drayton",123166,"Academy","Academy"]
[120185,"St Matthias Church of England Primary School",120185,"Academy","Academy"]
[129444,"St Meriadoc CofE Junior School",129444,"Academy","Academy"]
[129442,"St Meriadoc CofE Nursery and Infant School",129442,"Academy","Academy"]
[120635,"St Merryn School",120635,"Academy","Academy"]
[120414,"St Mewan Community Primary School",120414,"Academy","Academy"]
[122412,"St Michael & All Angels Church of England Primary School",122412,"Academy","Academy"]
[118647,"St Michael and All Angels CofE - Southwark",118647,"Academy","Academy"]
[123955,"St Michael's Catholic Academy - Billingham",123955,"Academy","Academy"]
[121843,"St Michael's Catholic College - Bermondsey",121843,"Academy","Academy"]
[125007,"St Michael's Catholic Primary School - Wolverhampton",125007,"Academy","Academy"]
[122024,"St Michael's Catholic Secondary School - Camborne",122024,"Academy","Academy"]
[131189,"St Michael's Church of England Academy - King's Lynn",131189,"Academy","Academy"]
[122771,"St Michael's Church of England Aided Primary School - Birmingham",122771,"Academy","Academy"]
[119893,"St Michael's Church of England High School",119893,"Academy","Academy"]
[131184,"St Michael's Church of England High School - Crosby",131184,"Academy","Academy"]
[124291,"St Michael's Church of England Primary Academy - Exeter",124291,"Academy","Academy"]
[132941,"St Michael's Church of England Primary School - Bedworth",132941,"Academy","Academy"]
[131439,"St Michael's Church of England Voluntary Aided Middle School, Colehill",131439,"Academy","Academy"]
[122881,"St Michael's CofE Academy",122881,"Academy","Academy"]
[121118,"St Michael's CofE Primary Academy, Handsworth",121118,"Academy","Academy"]
[123207,"St Michael's CofE Primary School - Haringey",123207,"Academy","Academy"]
[124762,"St Michael's Community Academy",124762,"Academy","Academy"]
[124524,"St Michael's Voluntary Controlled Church of England Primary School - Helston",124524,"Academy","Academy"]
[130916,"St Minver School",130916,"Academy","Academy"]
[123021,"St Newlyn East Learning Academy",123021,"Academy","Academy"]
[123948,"St Nicholas Catholic Primary School - Exeter",123948,"Academy","Academy"]
[123913,"St Nicholas Catholic Primary School - Sutton Coldfield",123913,"Academy","Academy"]
[131077,"St Nicholas Church of England Primary School - Oakham",131077,"Academy","Academy"]
[122175,"St Nicholas' CofE Primary - Alcester",122175,"Academy","Academy"]
[130924,"St Nicholas CofE Primary School - Wantage",130924,"Academy","Academy"]
[122858,"St Nicholas of Tolentine Catholic Primary School",122858,"Academy","Academy"]
[124575,"St Nicholas Primary School",124575,"Academy","Academy"]
[120946,"St Nicolas' Church of England Combined School",120946,"Academy","Academy"]
[123182,"St Nicolas CofE (Voluntary Aided) Primary School",123182,"Academy","Academy"]
[124525,"St Nicolas' CofE VA School, Downderry",124525,"Academy","Academy"]
[121933,"St Osmund's Church of England Voluntary Aided Middle School, Dorchester",121933,"Academy","Academy"]
[122245,"St Oswald's Church of England Primary Academy - Bradford",122245,"Academy","Academy"]
[122277,"St Oswald's CofE Academy - Doncaster",122277,"Academy","Academy"]
[132974,"St Oswald's CofE Primary School - Rugby",132974,"Academy","Academy"]
[132432,"St Patrick's Catholic College",132432,"Academy","Academy"]
[124148,"St Patrick's Catholic Primary and Nursery School - Nottingham",124148,"Academy","Academy"]
[122411,"St Patrick's Catholic Primary School - Bristol",122411,"Academy","Academy"]
[132411,"St Patrick's Catholic Primary School - Coventry",132411,"Academy","Academy"]
[126367,"St Patrick's Catholic Primary School - Mansfield",126367,"Academy","Academy"]
[132909,"St Patrick's Catholic Primary School - Stafford",132909,"Academy","Academy"]
[123237,"St Patrick's Catholic Voluntary Academy - Sheffield",123237,"Academy","Academy"]
[119372,"St Patricks Church of England Primary Academy - Solihull",119372,"Academy","Academy"]
[132392,"St Paulinus Church of England Primary School",132392,"Academy","Academy"]
[119110,"St Paul's Academy - Greenwich",119110,"Academy","Academy"]
[123202,"St Paul's and All Hallows CofE Infant School",123202,"Academy","Academy"]
[123208,"St Paul's and All Hallows CofE Junior School",123208,"Academy","Academy"]
[130711,"St Paul's Catholic Academy",130711,"Academy","Academy"]
[130636,"St Paul's Catholic Primary School - Birmingham",130636,"Academy","Academy"]
[131516,"St Paul's Catholic Primary School, a Voluntary Academy",131516,"Academy","Academy"]
[124094,"St Pauls Church of England Academy - Tipton",124094,"Academy","Academy"]
[124814,"St Paul's CofE Primary School - Addlestone",124814,"Academy","Academy"]
[121133,"St Paul's CofE Primary School - Hereford",121133,"Academy","Academy"]
[122145,"St Paul's CofE Primary School, Astley Bridge",122145,"Academy","Academy"]
[130055,"St Paul's Roman Catholic Primary School - Plymouth",130055,"Academy","Academy"]
[132415,"St Peter and Paul Catholic Primary School - Coventry",132415,"Academy","Academy"]
[129439,"St Peter and St Paul Catholic Primary School",129439,"Academy","Academy"]
[122380,"St Peter and St Paul Church of England Academy",122380,"Academy","Academy"]
[131214,"St Peter and St Paul Church of England Voluntary Controlled Primary School",131214,"Academy","Academy"]
[124351,"St Peter and St Paul, Catholic Voluntary Academy",124351,"Academy","Academy"]
[119936,"St Peter's Academy - Stoke-on-Trent",119936,"Academy","Academy"]
[130716,"St Peter's Catholic Academy",130716,"Academy","Academy"]
[120421,"St Peter's Catholic Comprehensive School - Bournemouth",120421,"Academy","Academy"]
[130710,"St Peter's Catholic First School",130710,"Academy","Academy"]
[119982,"St Peter's Catholic High School and Sixth Form Centre",119982,"Academy","Academy"]
[130894,"St Peter's Catholic Primary School - Sittingbourne",130894,"Academy","Academy"]
[123402,"St Peter's Catholic Primary School - Stoke-on-Trent",123402,"Academy","Academy"]
[132456,"St Peter's Church of England (VA) Junior School - Tavistock",132456,"Academy","Academy"]
[127147,"St Peter's Church of England Academy - Wellingborough",127147,"Academy","Academy"]
[127243,"St Peter's Church of England First School - Taunton",127243,"Academy","Academy"]
[131194,"St Peter's Church of England Middle School - Windsor",131194,"Academy","Academy"]
[123044,"St Peter's Church of England Primary Academy",123044,"Academy","Academy"]
[132487,"St Peter's Church of England Primary School - Harrogate",132487,"Academy","Academy"]
[130633,"St Peter's Church of England Primary School Wymondham",130633,"Academy","Academy"]
[130351,"St Peter's Church of England Primary School, Cassington",130351,"Academy","Academy"]
[129898,"St Peter's Church of England Primary School, Chippenham",129898,"Academy","Academy"]
[131466,"St Peter's Church of England Primary School, Hindley",131466,"Academy","Academy"]
[131452,"St Peter's Church of England Voluntary Aided Infants School, Alvescot",131452,"Academy","Academy"]
[131854,"St Peter's CofE (C) Primary School - Stafford",131854,"Academy","Academy"]
[131157,"St Peter's CofE Aided Junior School - Wisbech",131157,"Academy","Academy"]
[133446,"St Peter's CofE VA Primary School, Easton",133446,"Academy","Academy"]
[122401,"St Peter's Collegiate Church of England School",122401,"Academy","Academy"]
[130106,"St Peter's RC Primary School - Plymouth",130106,"Academy","Academy"]
[120248,"St Peter's School - Huntingdon",120248,"Academy","Academy"]
[123092,"St Petroc's Church of England Voluntary Aided Primary School",123092,"Academy","Academy"]
[132460,"St Philip Howard Catholic Voluntary Academy",132460,"Academy","Academy"]
[126569,"St Philip Neri with St Bede Catholic Voluntary Academy",126569,"Academy","Academy"]
[131344,"St Philip's Catholic Primary School",131344,"Academy","Academy"]
[129543,"St Philip's CofE Primary School",129543,"Academy","Academy"]
[128103,"St Philomena's Primary School",128103,"Academy","Academy"]
[130840,"St Richard's Catholic Primary School - Dover",130840,"Academy","Academy"]
[131350,"St Richard's RC Primary School - Hull",131350,"Academy","Academy"]
[132363,"St Rumon's Church of England (VC) Infants School",132363,"Academy","Academy"]
[131171,"St Silas Church of England Primary School",131171,"Academy","Academy"]
[130743,"St Simon of England Roman Catholic Primary School, Ashford",130743,"Academy","Academy"]
[123872,"St Simon Stock Catholic School",123872,"Academy","Academy"]
[133075,"St Stephen Churchtown Community Primary School",133075,"Academy","Academy"]
[132975,"St Stephen's Catholic Primary School and Nursery, a Voluntary Academy",132975,"Academy","Academy"]
[129009,"St Stephen's Community Academy",129009,"Academy","Academy"]
[119415,"St Stephen's Junior School",119415,"Academy","Academy"]
[129556,"St Teresa's Catholic (A) Primary School - Stoke-on-Trent",129556,"Academy","Academy"]
[122864,"St Teresa's Catholic Primary School - Bristol",122864,"Academy","Academy"]
[122361,"St Teresa's Catholic Primary School - Nottingham",122361,"Academy","Academy"]
[124577,"St Teresa's Catholic Primary School, Basildon",124577,"Academy","Academy"]
[122421,"St Teresa's Catholic Primary School, Colchester",122421,"Academy","Academy"]
[125011,"St Teresa's Catholic Primary School, Parkfield",125011,"Academy","Academy"]
[132300,"St Therese of Lisieux Catholic Primary School",132300,"Academy","Academy"]
[122353,"St Thomas à Becket Catholic Secondary School - Wakefield",122353,"Academy","Academy"]
[129548,"St Thomas Aquinas Catholic Primary School - Stoke-on-Trent",129548,"Academy","Academy"]
[130637,"St Thomas Aquinas Catholic School - Birmingham",130637,"Academy","Academy"]
[122730,"St Thomas Becket Catholic Primary School - Croydon",122730,"Academy","Academy"]
[125145,"St Thomas Cantilupe CofE Academy",125145,"Academy","Academy"]
[122673,"St Thomas' Catholic Primary School - Stoke-on-Trent",122673,"Academy","Academy"]
[131051,"St Thomas' Catholic Primary School, Sevenoaks",131051,"Academy","Academy"]
[131884,"St Thomas' Church of England VA Primary School",131884,"Academy","Academy"]
[125000,"St Thomas More Catholic Academy - Longton",125000,"Academy","Academy"]
[131443,"St Thomas More Catholic Comprehensive School",131443,"Academy","Academy"]
[123812,"St Thomas More Catholic High School - Crewe",123812,"Academy","Academy"]
[131437,"St Thomas More Catholic Primary School - Kettering",131437,"Academy","Academy"]
[124073,"St Thomas More Catholic Primary School, Kidlington",124073,"Academy","Academy"]
[120281,"St Thomas More Catholic Primary School, Saffron Walden",120281,"Academy","Academy"]
[132474,"St Thomas More Catholic Primary, a Voluntary Academy - Sheffield",132474,"Academy","Academy"]
[123184,"St Thomas More Catholic School",123184,"Academy","Academy"]
[120513,"St Thomas More Catholic School - Gateshead",120513,"Academy","Academy"]
[123203,"St Thomas More Catholic School - Haringey",123203,"Academy","Academy"]
[131936,"St Thomas More Catholic School and Sixth Form College",131936,"Academy","Academy"]
[121185,"St Thomas More Catholic Voluntary Academy - Leicester",121185,"Academy","Academy"]
[120310,"St Thomas More High School",120310,"Academy","Academy"]
[132348,"St Thomas More RC Primary School - Middlesbrough",132348,"Academy","Academy"]
[120865,"St Thomas More Roman Catholic Academy",120865,"Academy","Academy"]
[122400,"St Thomas More Roman Catholic Primary School - Letchworth",122400,"Academy","Academy"]
[120324,"St Thomas More's Catholic Primary School, Colchester",120324,"Academy","Academy"]
[122514,"St Thomas of Canterbury Catholic Primary School",122514,"Academy","Academy"]
[123057,"St Tudy CofE Primary School",123057,"Academy","Academy"]
[120468,"St Ursula's E-ACT Academy",120468,"Academy","Academy"]
[129430,"St Vincent's Catholic Primary School - Bromley",129430,"Academy","Academy"]
[130058,"St Vincent's Voluntary Catholic Academy - Hull",130058,"Academy","Academy"]
[131241,"St Werburgh's CE (A) Primary School",131241,"Academy","Academy"]
[130540,"St Wilfrid's Academy, Doncaster",130540,"Academy","Academy"]
[122334,"St Wilfrid's Catholic High School and Sixth Form College",122334,"Academy","Academy"]
[122712,"St Wilfrid's Catholic Primary School - Sheffield",122712,"Academy","Academy"]
[123287,"St Wilfrid's Catholic Primary School - Tunstall",123287,"Academy","Academy"]
[119872,"St Wilfrid's Church of England Academy",119872,"Academy","Academy"]
[133104,"St Wilfrid's RC College",133104,"Academy","Academy"]
[123164,"St Winnow CofE School",123164,"Academy","Academy"]
[131180,"St Wulstan's Catholic Primary School",131180,"Academy","Academy"]
[122165,"St. Augustine's Academy - Dunstable",122165,"Academy","Academy"]
[121844,"St. George's Church of England Academy - Darlington",121844,"Academy","Academy"]
[122330,"St. John the Baptist Catholic Primary School",122330,"Academy","Academy"]
[131170,"St. Joseph’s Catholic Primary School",131170,"Academy","Academy"]
[130954,"St. Mary Cray Primary Academy",130954,"Academy","Academy"]
[132905,"St. Mary's Catholic Junior School - Croydon",132905,"Academy","Academy"]
[123825,"St. Mary's Menston - Menston",123825,"Academy","Academy"]
[122689,"St. Michael's Academy - Yeovil",122689,"Academy","Academy"]
[132485,"St. Patrick's Roman Catholic Primary School",132485,"Academy","Academy"]
[121946,"Stafford Leys Community Primary School",121946,"Academy","Academy"]
[120164,"Staffordshire University Academy",120164,"Academy","Academy"]
[120234,"Staindrop School An Academy",120234,"Academy","Academy"]
[129865,"Stalham Academy",129865,"Academy","Academy"]
[131398,"Stalham High School",131398,"Academy","Academy"]
[131538,"Stambridge Primary Academy",131538,"Academy","Academy"]
[123217,"Stamford St Gilberts Church of England Primary School",123217,"Academy","Academy"]
[120687,"Stamford Welland Academy",120687,"Academy","Academy"]
[124086,"Stamshaw Junior School",124086,"Academy","Academy"]
[120664,"Stanborough School",120664,"Academy","Academy"]
[120080,"Stanchester Academy",120080,"Academy","Academy"]
[124557,"Standish St Wilfrid's Church of England Primary Academy",124557,"Academy","Academy"]
[130327,"Standlake Church of England Primary School",130327,"Academy","Academy"]
[123879,"Stanford-le-Hope Primary School",123879,"Academy","Academy"]
[120991,"Stanground Academy",120991,"Academy","Academy"]
[125178,"Stanground St Johns CofE Primary School",125178,"Academy","Academy"]
[121139,"Staniland Academy",121139,"Academy","Academy"]
[127673,"Stanley Green Infant Academy",127673,"Academy","Academy"]
[120962,"Stanley Grove Primary Academy",120962,"Academy","Academy"]
[130150,"Stanton Harcourt CofE Primary School",130150,"Academy","Academy"]
[123270,"Stanton Under Bardon Community Primary School",123270,"Academy","Academy"]
[121062,"Stanway School, The",121062,"Academy","Academy"]
[131192,"Stanwix School",131192,"Academy","Academy"]
[124197,"Stapeley Broad Lane CofE Primary School",124197,"Academy","Academy"]
[130689,"Staplegrove Church School",130689,"Academy","Academy"]
[121119,"Star Academy, Sandyford",121119,"Academy","Academy"]
[130341,"Stationers Crown Woods Academy",130341,"Academy","Academy"]
[120149,"Staunton and Corse Church of England Primary School",120149,"Academy","Academy"]
[129906,"Staverton Church of England Voluntary Primary School",129906,"Academy","Academy"]
[130544,"Steiner Academy Bristol",130544,"Academy","Academy"]
[123346,"Steiner Academy Exeter",123346,"Academy","Academy"]
[121981,"Steiner Academy Frome",121981,"Academy","Academy"]
[119118,"Steiner Academy Hereford, The",119118,"Academy","Academy"]
[130515,"Stella Maris Primary School",130515,"Academy","Academy"]
[120965,"Stephenson Academy",120965,"Academy","Academy"]
[120459,"Stephenson Studio School",120459,"Academy","Academy"]
[122790,"Stephenson Way Academy and Nursery School",122790,"Academy","Academy"]
[120498,"Stewards Academy - Science Specialist, Harlow",120498,"Academy","Academy"]
[120035,"Stewart Fleming Primary School",120035,"Academy","Academy"]
[131812,"Stifford Clays Primary School",131812,"Academy","Academy"]
[129708,"Stimpson Avenue Academy",129708,"Academy","Academy"]
[120560,"Stisted Church of England Primary Academy",120560,"Academy","Academy"]
[120417,"Stockland Church of England Primary School",120417,"Academy","Academy"]
[119993,"Stockland Green School",119993,"Academy","Academy"]
[118400,"Stockley Academy",118400,"Academy","Academy"]
[118648,"Stockport Academy",118648,"Academy","Academy"]
[123348,"Stockport Technical School",123348,"Academy","Academy"]
[131456,"Stockwell Academy",131456,"Academy","Academy"]
[123225,"Stoke Bishop Church of England Primary School",123225,"Academy","Academy"]
[130714,"Stoke Community School",130714,"Academy","Academy"]
[119541,"Stoke Damerel Community College",119541,"Academy","Academy"]
[124743,"Stoke Fleming Community Primary School",124743,"Academy","Academy"]
[124773,"Stoke High School - Ormiston Academy",124773,"Academy","Academy"]
[124739,"Stoke Lodge Primary School",124739,"Academy","Academy"]
[122526,"Stoke Studio College for Construction and Building Excellence",122526,"Academy","Academy"]
[123393,"Stoke Studio College for Manufacturing and Design Engineering",123393,"Academy","Academy"]
[131195,"Stokesay Primary School",131195,"Academy","Academy"]
[131847,"Stokesley School",131847,"Academy","Academy"]
[131381,"Stone Lodge Academy",131381,"Academy","Academy"]
[122803,"Stone Soup Academy",122803,"Academy","Academy"]
[124598,"Stone with Woodford Church of England Primary School",124598,"Academy","Academy"]
[122675,"Stonebow Primary School Loughborough",122675,"Academy","Academy"]
[121958,"Stoneleigh Academy",121958,"Academy","Academy"]
[131809,"Stottesdon CofE Primary School",131809,"Academy","Academy"]
[120537,"Stour Valley Community School",120537,"Academy","Academy"]
[122415,"Stourfield Infant School",122415,"Academy","Academy"]
[120162,"Stourport High School and Sixth Form Centre, The",120162,"Academy","Academy"]
[120996,"Stowford School",120996,"Academy","Academy"]
[121051,"Stradbroke High School",121051,"Academy","Academy"]
[131519,"Stradbroke Primary School",131519,"Academy","Academy"]
[120722,"Stramongate Primary School",120722,"Academy","Academy"]
[122306,"Strand Primary Academy",122306,"Academy","Academy"]
[124156,"Stranton Primary School",124156,"Academy","Academy"]
[120235,"Stratford Girls' Grammar School",120235,"Academy","Academy"]
[119978,"Stratford School - Newham",119978,"Academy","Academy"]
[120236,"Stratford upon Avon School",120236,"Academy","Academy"]
[133670,"Stratford-Upon-Avon Primary School",133670,"Academy","Academy"]
[120575,"Stratton Upper School",120575,"Academy","Academy"]
[120669,"Streetly Academy, The",120669,"Academy","Academy"]
[123853,"Stretton Church of England Academy",123853,"Academy","Academy"]
[120068,"Stretton Sugwas CofE Academy",120068,"Academy","Academy"]
[119100,"Strood Academy",119100,"Academy","Academy"]
[119874,"Stroud High School",119874,"Academy","Academy"]
[122532,"Studio School Liverpool, The",122532,"Academy","Academy"]
[130577,"Studio West",130577,"Academy","Academy"]
[119793,"Studley High School",119793,"Academy","Academy"]
[130755,"Studley St Mary's CofE Academy",130755,"Academy","Academy"]
[122180,"Sturry Church of England Primary School",122180,"Academy","Academy"]
[119983,"Suckley Primary School",119983,"Academy","Academy"]
[122776,"Sudbury Primary School",122776,"Academy","Academy"]
[131446,"Sudell Primary School",131446,"Academy","Academy"]
[132454,"Suffolk One",132454,"Academy","Academy"]
[127552,"Summercourt Community Primary School - Newquay",127552,"Academy","Academy"]
[120338,"Summercroft Primary School - Bishop's Stortford",120338,"Academy","Academy"]
[122795,"Summerfields Primary Academy",122795,"Academy","Academy"]
[122098,"Summerhill Academy",122098,"Academy","Academy"]
[119597,"Sunbury Manor School",119597,"Academy","Academy"]
[122283,"Sundon Lower School",122283,"Academy","Academy"]
[123095,"Sundorne School and Sports College",123095,"Academy","Academy"]
[125016,"Sunnyside Academy - Middlesborough",125016,"Academy","Academy"]
[123096,"Sunnyside Primary Academy - Northampton",123096,"Academy","Academy"]
[128105,"Sunnyside Spencer Academy",128105,"Academy","Academy"]
[123894,"Sutherland Business and Enterprise College",123894,"Academy","Academy"]
[120737,"Sutherland Primary Academy",120737,"Academy","Academy"]
[119197,"Sutton Academy, The",119197,"Academy","Academy"]
[119785,"Sutton Coldfield Grammar School for Girls",119785,"Academy","Academy"]
[122308,"Sutton Community Academy",122308,"Academy","Academy"]
[119776,"Sutton Grammar School",119776,"Academy","Academy"]
[122895,"Sutton Park Primary School",122895,"Academy","Academy"]
[119797,"Sutton Primary School",119797,"Academy","Academy"]
[131539,"Swaffham CofE VC Junior School",131539,"Academy","Academy"]
[119549,"Swakeleys School for Girls",119549,"Academy","Academy"]
[121049,"Swallow Hill Community College",121049,"Academy","Academy"]
[124159,"Swallowdale Primary School and Community Centre",124159,"Academy","Academy"]
[122039,"Swanage School, The",122039,"Academy","Academy"]
[131983,"Swanage St Mark's Church of England Primary School",131983,"Academy","Academy"]
[120151,"Swanland Primary School",120151,"Academy","Academy"]
[119656,"Swavesey Village College",119656,"Academy","Academy"]
[124071,"Sweyne Park School, The",124071,"Academy","Academy"]
[118643,"Swindon Academy",118643,"Academy","Academy"]
[119987,"Swinton High School, The",119987,"Academy","Academy"]
[123957,"Sybourn Primary School",123957,"Academy","Academy"]
[120830,"Sycamore Academy",120830,"Academy","Academy"]
[131695,"Sydney Russell School, The",131695,"Academy","Academy"]
[127676,"Sythwood Primary School",127676,"Academy","Academy"]
[123170,"Tabor Academy",123170,"Academy","Academy"]
[129607,"Tadpole Farm Primary School",129607,"Academy","Academy"]
[131982,"Takeley Primary School",131982,"Academy","Academy"]
[122139,"Tame Valley Academy",122139,"Academy","Academy"]
[120986,"Tamworth Enterprise College and AET Academy",120986,"Academy","Academy"]
[121068,"Tangmere Primary Academy",121068,"Academy","Academy"]
[132443,"Tanners Brook Primary School",132443,"Academy","Academy"]
[122096,"Tanworth-in-Arden CofE Primary School",122096,"Academy","Academy"]
[120017,"Tapton School",120017,"Academy","Academy"]
[120778,"Tarleton Academy",120778,"Academy","Academy"]
[122275,"Tarporley High School and Sixth Form College",122275,"Academy","Academy"]
[120175,"Tatworth Primary School",120175,"Academy","Academy"]
[122029,"Tauheedul Islam Boys' High School",122029,"Academy","Academy"]
[130640,"Tauheedul Islam Girls High School",130640,"Academy","Academy"]
[119349,"Taunton Academy, The",119349,"Academy","Academy"]
[122084,"Taverham High School",122084,"Academy","Academy"]
[133109,"TBAP Cambridge AP Academy",133109,"Academy","Academy"]
[131597,"Tebay Primary School",131597,"Academy","Academy"]
[123347,"Tech City College",123347,"Academy","Academy"]
[120883,"Teddington School",120883,"Academy","Academy"]
[120153,"Teesdale School",120153,"Academy","Academy"]
[119494,"Teign School",119494,"Academy","Academy"]
[119495,"Teignmouth Community School, Exeter Road",119495,"Academy","Academy"]
[119493,"Teignmouth Community School, Mill Lane",119493,"Academy","Academy"]
[123888,"Telford Langley School",123888,"Academy","Academy"]
[124325,"Telford Park School",124325,"Academy","Academy"]
[133159,"Telford Priory School, The",133159,"Academy","Academy"]
[123109,"Temple Ewell Church of England Primary School",123109,"Academy","Academy"]
[122425,"Temple Grove Academy",122425,"Academy","Academy"]
[132659,"Temple Learning Academy",132659,"Academy","Academy"]
[133190,"Temple Mill Primary School",133190,"Academy","Academy"]
[132958,"Ten Mile Bank Riverside Academy",132958,"Academy","Academy"]
[133054,"Tenbury CofE Primary School",133054,"Academy","Academy"]
[130911,"Tenbury High Ormiston Academy",130911,"Academy","Academy"]
[122533,"Tendring Enterprise Studio School",122533,"Academy","Academy"]
[120188,"Tendring Technology College",120188,"Academy","Academy"]
[120315,"Testwood Sports College",120315,"Academy","Academy"]
[120800,"Tewkesbury School",120800,"Academy","Academy"]
[122720,"Thames Primary Academy",122720,"Academy","Academy"]
[123399,"Thames Valley School",123399,"Academy","Academy"]
[122581,"Thames View Infants' School",122581,"Academy","Academy"]
[131731,"Thames View Junior School",131731,"Academy","Academy"]
[121921,"Thameside Primary School",121921,"Academy","Academy"]
[120237,"Thamesmead School",120237,"Academy","Academy"]
[124637,"Thele Green School",124637,"Academy","Academy"]
[119327,"Thetford Academy, The",119327,"Academy","Academy"]
[123416,"Thetford Alternative Provision Free School",123416,"Academy","Academy"]
[131893,"Thistle Hill Academy",131893,"Academy","Academy"]
[122045,"Thistley Hough Academy",122045,"Academy","Academy"]
[124697,"Thomas Alleyne School, The",124697,"Academy","Academy"]
[120451,"Thomas Aveling School, The",120451,"Academy","Academy"]
[120900,"Thomas Bennett Community College",120900,"Academy","Academy"]
[130306,"Thomas Bullock Church of England Primary Academy",130306,"Academy","Academy"]
[121027,"Thomas Clarkson Academy",121027,"Academy","Academy"]
[122337,"Thomas Cowley High School, The",122337,"Academy","Academy"]
[118655,"Thomas Deacon Academy",118655,"Academy","Academy"]
[122387,"Thomas Estley Community College",122387,"Academy","Academy"]
[120984,"Thomas Ferens Academy",120984,"Academy","Academy"]
[131419,"Thomas Gainsborough School",131419,"Academy","Academy"]
[127697,"Thomas Gamuel Primary School",127697,"Academy","Academy"]
[120163,"Thomas Hardye School, The",120163,"Academy","Academy"]
[126332,"Thomas Hepburn Community Academy",126332,"Academy","Academy"]
[124746,"Thomas Hinderwell Primary Academy",124746,"Academy","Academy"]
[120059,"Thomas Keble School",120059,"Academy","Academy"]
[119832,"Thomas Knyvett College",119832,"Academy","Academy"]
[121120,"Thomas Lord Audley School, The",121120,"Academy","Academy"]
[131407,"Thomas Middlecott Academy",131407,"Academy","Academy"]
[119794,"Thomas Mills High School",119794,"Academy","Academy"]
[118401,"Thomas Telford School",118401,"Academy","Academy"]
[127690,"Thomas Walling Primary Academy",127690,"Academy","Academy"]
[120648,"Thomas Wolsey School",120648,"Academy","Academy"]
[132310,"Thomas's Academy",132310,"Academy","Academy"]
[123365,"Thomson House School",123365,"Academy","Academy"]
[124089,"Thoresby Primary School",124089,"Academy","Academy"]
[119198,"Thornaby Academy",119198,"Academy","Academy"]
[119739,"Thornden School",119739,"Academy","Academy"]
[121060,"Thornhill Community Academy",121060,"Academy","Academy"]
[123259,"Thornton Primary School",123259,"Academy","Academy"]
[130325,"Thorp Academy",130325,"Academy","Academy"]
[132293,"Thorpepark Academy",132293,"Academy","Academy"]
[123015,"Thorplands Primary School",123015,"Academy","Academy"]
[131838,"Three Legged Cross First School",131838,"Academy","Academy"]
[131200,"Three Peaks Primary Academy",131200,"Academy","Academy"]
[130763,"Three Towers Alternative Provision Academy",130763,"Academy","Academy"]
[123156,"Three Ways School",123156,"Academy","Academy"]
[120563,"Thriftwood School",120563,"Academy","Academy"]
[124255,"Thringstone Primary School",124255,"Academy","Academy"]
[121023,"Thrunscoe Primary and Nursery Academy",121023,"Academy","Academy"]
[122393,"Thrussington Church of England Primary School",122393,"Academy","Academy"]
[122860,"Thrybergh Academy and Sports College",122860,"Academy","Academy"]
[131128,"Thrybergh Fullerton Church of England Primary School",131128,"Academy","Academy"]
[130321,"Thrybergh Primary School",130321,"Academy","Academy"]
[131435,"Thundersley Primary School",131435,"Academy","Academy"]
[121959,"Thurcroft Junior School",121959,"Academy","Academy"]
[120241,"Thurstable School Sports College and Sixth Form Centre",120241,"Academy","Academy"]
[132462,"Thurston Church of England Voluntary Controlled Primary School",132462,"Academy","Academy"]
[131371,"Tickenham Church of England Primary School",131371,"Academy","Academy"]
[120353,"Tidemill Academy",120353,"Academy","Academy"]
[119529,"Tiffin Girls' School, The",119529,"Academy","Academy"]
[119910,"Tiffin School",119910,"Academy","Academy"]
[121972,"Tiger Primary School",121972,"Academy","Academy"]
[127376,"Tilbury Pioneer Academy",127376,"Academy","Academy"]
[120276,"Tile Hill Wood School and Language College",120276,"Academy","Academy"]
[131444,"Tilney All Saints Voluntary Controlled Primary School",131444,"Academy","Academy"]
[122095,"Timberley Academy",122095,"Academy","Academy"]
[122988,"Timbertree Academy",122988,"Academy","Academy"]
[131082,"Tintagel Primary School",131082,"Academy","Academy"]
[123892,"Tiverton Academy",123892,"Academy","Academy"]
[122416,"Toddington St George Church of England School",122416,"Academy","Academy"]
[119266,"Tollbar Academy",119266,"Academy","Academy"]
[130757,"Tollgate Primary School",130757,"Academy","Academy"]
[120060,"Tolworth Girls’ School and Sixth Form",120060,"Academy","Academy"]
[124690,"Tomlinscote School and Sixth Form College",124690,"Academy","Academy"]
[119443,"Tonbridge Grammar School",119443,"Academy","Academy"]
[119878,"Toot Hill School",119878,"Academy","Academy"]
[123366,"Tooting Primary School",123366,"Academy","Academy"]
[120968,"Top Valley Academy",120968,"Academy","Academy"]
[120206,"Tor Bridge High",120206,"Academy","Academy"]
[131124,"Torfield School",131124,"Academy","Academy"]
[120970,"Torquay Academy",120970,"Academy","Academy"]
[119363,"Torquay Boys' Grammar School",119363,"Academy","Academy"]
[119515,"Torquay Girls' Grammar School",119515,"Academy","Academy"]
[123858,"Torre Church of England Academy",123858,"Academy","Academy"]
[127603,"Totley Primary School",127603,"Academy","Academy"]
[130568,"Tottenham UTC",130568,"Academy","Academy"]
[120409,"Totteridge Academy, The",120409,"Academy","Academy"]
[133455,"Towcester Church of England Primary School",133455,"Academy","Academy"]
[132303,"Tower Hill Community Primary School",132303,"Academy","Academy"]
[119766,"Tower Road Academy - Boston",119766,"Academy","Academy"]
[119555,"Towers School and Sixth Form Centre",119555,"Academy","Academy"]
[119486,"Town End Academy",119486,"Academy","Academy"]
[131164,"Town Junior School",131164,"Academy","Academy"]
[130638,"Townfield Primary School",130638,"Academy","Academy"]
[127547,"Townhill Infant School",127547,"Academy","Academy"]
[131213,"Townlands Church of England Primary School",131213,"Academy","Academy"]
[120740,"Townley Grammar School",120740,"Academy","Academy"]
[131399,"Trafalgar School",131399,"Academy","Academy"]
[127609,"Tredworth Infant School",127609,"Academy","Academy"]
[120925,"Tree Tops Primary Academy",120925,"Academy","Academy"]
[120971,"Tregolls School ",120971,"Academy","Academy"]
[120998,"Tregonwell Academy",120998,"Academy","Academy"]
[133584,"Tregony Community Primary School",133584,"Academy","Academy"]
[121919,"Tregoze Primary School",121919,"Academy","Academy"]
[119366,"Trenance Learning Academy",119366,"Academy","Academy"]
[120076,"Treverbyn Academy",120076,"Academy","Academy"]
[119637,"Trevithick Learning Academy",119637,"Academy","Academy"]
[119881,"Trewirgie Infant School",119881,"Academy","Academy"]
[119848,"Trewirgie Junior School",119848,"Academy","Academy"]
[122333,"Tring School",122333,"Academy","Academy"]
[118407,"Trinity Academy - Doncaster",118407,"Academy","Academy"]
[130554,"Trinity Academy - Lambeth",130554,"Academy","Academy"]
[123213,"Trinity Academy Newcastle",123213,"Academy","Academy"]
[119154,"Trinity Academy, Halifax",119154,"Academy","Academy"]
[133172,"Trinity Anglican-Methodist Primary School",133172,"Academy","Academy"]
[132464,"Trinity Catholic College - Middlesbrough",132464,"Academy","Academy"]
[122324,"Trinity Catholic School A Voluntary Academy, The - Aspley",122324,"Academy","Academy"]
[119525,"Trinity Church of England School, Belvedere",119525,"Academy","Academy"]
[131251,"Trinity Church of England Voluntary Aided Primary, Devizes, The",131251,"Academy","Academy"]
[120665,"Trinity CofE High School - Hulme",120665,"Academy","Academy"]
[131134,"Trinity Croft CofE Junior and Infant School",131134,"Academy","Academy"]
[120167,"Trinity High School and Sixth Form Centre",120167,"Academy","Academy"]
[122422,"Trinity Primary Academy",122422,"Academy","Academy"]
[120063,"Trinity School - Cumbria",120063,"Academy","Academy"]
[122391,"Trinity School - Newbury",122391,"Academy","Academy"]
[123336,"Trinity School - Sevenoaks",123336,"Academy","Academy"]
[133856,"Trinity Solutions Academy",133856,"Academy","Academy"]
[129422,"Troon Community Primary School",129422,"Academy","Academy"]
[124704,"Truro Learning Academy",124704,"Academy","Academy"]
[120862,"Tubbenden Primary School",120862,"Academy","Academy"]
[130915,"Tuckswood Primary School and Nursery",130915,"Academy","Academy"]
[122366,"Tudhoe Colliery Primary School",122366,"Academy","Academy"]
[132961,"Tudor Church of England Voluntary Controlled Primary School, Sudbury",132961,"Academy","Academy"]
[130884,"Tudor Court Primary School",130884,"Academy","Academy"]
[119299,"Tudor Grange Academy - Solihull",119299,"Academy","Academy"]
[129885,"Tudor Grange Academy Redditch",129885,"Academy","Academy"]
[119128,"Tudor Grange Academy Worcester",119128,"Academy","Academy"]
[128100,"Tudor Grange Primary Academy, Haselor",128100,"Academy","Academy"]
[123047,"Tudor Grange Primary Academy, St James",123047,"Academy","Academy"]
[119113,"Tudor Grange Samworth Academy, A Church of England School, The",119113,"Academy","Academy"]
[130627,"Tugby Church of England Primary School",130627,"Academy","Academy"]
[132665,"Turing House School",132665,"Academy","Academy"]
[131696,"Turnditch Church of England Primary School",131696,"Academy","Academy"]
[120319,"Tuxford Academy",120319,"Academy","Academy"]
[123280,"Tuxford Primary Academy",123280,"Academy","Academy"]
[124592,"Tweendykes School",124592,"Academy","Academy"]
[119172,"Twickenham Academy",119172,"Academy","Academy"]
[132666,"Twickenham Primary Academy - Twickenham",132666,"Academy","Academy"]
[124779,"Twickenham Primary School - Birmingham",124779,"Academy","Academy"]
[120061,"Two Mile Ash School",120061,"Academy","Academy"]
[133191,"Twydall Primary School and Nursery",133191,"Academy","Academy"]
[120602,"Twyford Church of England High School",120602,"Academy","Academy"]
[119647,"Twynham School",119647,"Academy","Academy"]
[120892,"Tyldesley Primary School",120892,"Academy","Academy"]
[124227,"Tymberwood Academy",124227,"Academy","Academy"]
[123368,"Tyndale Community School",123368,"Academy","Academy"]
[120650,"Tyrrells School, The",120650,"Academy","Academy"]
[129416,"Tytherington School",129416,"Academy","Academy"]
[131542,"Tywardreath School",131542,"Academy","Academy"]
[120181,"UCL Academy, The",120181,"Academy","Academy"]
[124072,"Uffculme Primary School",124072,"Academy","Academy"]
[119263,"Uffculme School",119263,"Academy","Academy"]
[127507,"Ulceby St Nicholas Church of England Primary School",127507,"Academy","Academy"]
[131849,"Umberleigh Primary Academy",131849,"Academy","Academy"]
[131803,"Unicorn Primary School",131803,"Academy","Academy"]
[130322,"Unity Academy - Colchester",130322,"Academy","Academy"]
[123069,"Unity Academy Blackpool",123069,"Academy","Academy"]
[117095,"Unity City Academy",117095,"Academy","Academy"]
[132667,"Unity Community Primary",132667,"Academy","Academy"]
[120282,"University Academy Holbeach",120282,"Academy","Academy"]
[119307,"University Academy Keighley",119307,"Academy","Academy"]
[124084,"University Academy Kidsgrove",124084,"Academy","Academy"]
[124129,"University Academy of Engineering South Bank",124129,"Academy","Academy"]
[120725,"University Academy Warrington",120725,"Academy","Academy"]
[123369,"University Cathedral Free School",123369,"Academy","Academy"]
[132663,"University of Birmingham School, The",132663,"Academy","Academy"]
[132664,"University of Cambridge Primary School, The",132664,"Academy","Academy"]
[120987,"University of Chester Academy Northwich",120987,"Academy","Academy"]
[119102,"University of Chester CE Academy",119102,"Academy","Academy"]
[125183,"University Primary Academy Kidsgrove",125183,"Academy","Academy"]
[124588,"University Primary Academy Weaverham",124588,"Academy","Academy"]
[123375,"University Technical College Norfolk",123375,"Academy","Academy"]
[122151,"University Technical College, Royal Borough of Greenwich",122151,"Academy","Academy"]
[122777,"Upminster Infant School",122777,"Academy","Academy"]
[122840,"Upminster Junior School",122840,"Academy","Academy"]
[120037,"Upper Shirley High School",120037,"Academy","Academy"]
[120601,"Upperwood Academy",120601,"Academy","Academy"]
[119631,"Uppingham Community College",119631,"Academy","Academy"]
[119440,"Upton Court Grammar School",119440,"Academy","Academy"]
[132273,"Upton Cross Primary School",132273,"Academy","Academy"]
[121081,"Upton Hall School FCJ",121081,"Academy","Academy"]
[132016,"Upton Priory School",132016,"Academy","Academy"]
[119268,"Urmston Grammar Academy",119268,"Academy","Academy"]
[124304,"Ursula Taylor Church of England School",124304,"Academy","Academy"]
[120348,"Ursuline Academy Ilford, The",120348,"Academy","Academy"]
[124133,"Ursuline College - Westgate-on-Sea",124133,"Academy","Academy"]
[132689,"UTC Bolton",132689,"Academy","Academy"]
[130562,"UTC Cambridge",130562,"Academy","Academy"]
[122155,"UTC Lancashire",122155,"Academy","Academy"]
[132690,"UTC Oxfordshire",132690,"Academy","Academy"]
[122056,"UTC Plymouth",122056,"Academy","Academy"]
[122057,"UTC Reading",122057,"Academy","Academy"]
[122058,"UTC Sheffield",122058,"Academy","Academy"]
[130569,"UTC Swindon",130569,"Academy","Academy"]
[132691,"UTC@Harbourside",132691,"Academy","Academy"]
[132692,"UTC@MediaCityUK",132692,"Academy","Academy"]
[123822,"Utterby Primary School, The",123822,"Academy","Academy"]
[119789,"Uxbridge High School",119789,"Academy","Academy"]
[120463,"Vale Academy, The",120463,"Academy","Academy"]
[122971,"Vale of Evesham School",122971,"Academy","Academy"]
[122061,"Vale Primary Academy, The",122061,"Academy","Academy"]
[129872,"Valley Invicta Primary School At Holborough Lakes",129872,"Academy","Academy"]
[129873,"Valley Invicta Primary School At Kings Hill",129873,"Academy","Academy"]
[129871,"Valley Invicta Primary School At Leybourne Chase",129871,"Academy","Academy"]
[131203,"Valley Park Community School - Sheffield",131203,"Academy","Academy"]
[119653,"Valley Park School - Maidestone",119653,"Academy","Academy"]
[120242,"Valley Primary School - Bromley",120242,"Academy","Academy"]
[131364,"Valley Primary School, The - Oakamoor",131364,"Academy","Academy"]
[120169,"Vandyke Upper School and Community College",120169,"Academy","Academy"]
[121134,"Vaynor First School, The",121134,"Academy","Academy"]
[123243,"Venerable Bede Church of England [Aided] Secondary School",123243,"Academy","Academy"]
[131995,"Veritas Primary Academy",131995,"Academy","Academy"]
[120038,"Verulam School",120038,"Academy","Academy"]
[128057,"Veryan CofE School",128057,"Academy","Academy"]
[132025,"Victoria Academy",132025,"Academy","Academy"]
[122842,"Victoria Lane Academy",122842,"Academy","Academy"]
[121122,"Victoria Park Primary",121122,"Academy","Academy"]
[126452,"Victoria Primary Academy - Wellingborough",126452,"Academy","Academy"]
[133112,"Victoria Primary School - Leeds",133112,"Academy","Academy"]
[119166,"Victory Academy, The",119166,"Academy","Academy"]
[123016,"Victory Primary School, The",123016,"Academy","Academy"]
[125006,"Viewley Hill Academy",125006,"Academy","Academy"]
[119762,"Violet Way Academy, The",119762,"Academy","Academy"]
[130581,"Vision Studio School",130581,"Academy","Academy"]
[120084,"Voyager Academy, The",120084,"Academy","Academy"]
[120542,"Vyners School",120542,"Academy","Academy"]
[130557,"Wac Arts College",130557,"Academy","Academy"]
[120384,"Waddesdon Church of England School",120384,"Academy","Academy"]
[122567,"Wade Deacon High School",122567,"Academy","Academy"]
[120420,"Wadebridge Primary Academy",120420,"Academy","Academy"]
[120705,"Wadebridge School",120705,"Academy","Academy"]
[127491,"Wainfleet Magdalen Church of England/Methodist School, The",127491,"Academy","Academy"]
[132060,"Waingels College",132060,"Academy","Academy"]
[124137,"Wainstalls School",124137,"Academy","Academy"]
[122495,"Wainwright Primary Academy",122495,"Academy","Academy"]
[119397,"Wakefield City Academy",119397,"Academy","Academy"]
[121021,"Waldegrave School for Girls",121021,"Academy","Academy"]
[120667,"Walderslade Girls' School",120667,"Academy","Academy"]
[119300,"Wales High School",119300,"Academy","Academy"]
[122949,"Walkwood CofE Middle School",122949,"Academy","Academy"]
[120385,"Wallingford School",120385,"Academy","Academy"]
[119777,"Wallington County Grammar School",119777,"Academy","Academy"]
[119792,"Wallington High School for Girls",119792,"Academy","Academy"]
[122432,"Wallscourt Farm Academy",122432,"Academy","Academy"]
[130917,"Walney School",130917,"Academy","Academy"]
[118408,"Walsall Academy",118408,"Academy","Academy"]
[123394,"Walsall Studio School",123394,"Academy","Academy"]
[132406,"Walsgrave Church of England Primary School",132406,"Academy","Academy"]
[120771,"Waltham Leas Primary Academy",120771,"Academy","Academy"]
[130604,"Waltham on the Wolds Church of England Primary School",130604,"Academy","Academy"]
[118656,"Walthamstow Academy",118656,"Academy","Academy"]
[130833,"Walthamstow Primary Academy",130833,"Academy","Academy"]
[119538,"Walton Girls' High School and Sixth Form",119538,"Academy","Academy"]
[130758,"Walton Hall Academy",130758,"Academy","Academy"]
[119842,"Walton High",119842,"Academy","Academy"]
[130742,"Walton Primary Academy",130742,"Academy","Academy"]
[120354,"Wandle Valley School",120354,"Academy","Academy"]
[124650,"Wansbeck Primary School",124650,"Academy","Academy"]
[122579,"Wansdyke Community School",122579,"Academy","Academy"]
[124163,"Wantage Church of England Primary School",124163,"Academy","Academy"]
[121978,"Wapping High School",121978,"Academy","Academy"]
[132921,"Warberry CofE Academy",132921,"Academy","Academy"]
[123067,"Warden House Primary School",123067,"Academy","Academy"]
[120211,"Warden Park Primary Academy",120211,"Academy","Academy"]
[120386,"Warden Park School",120386,"Academy","Academy"]
[122073,"Wardle Academy",122073,"Academy","Academy"]
[132032,"Wareham St Mary Church of England Voluntary Controlled Primary School",132032,"Academy","Academy"]
[122593,"Warlingham School",122593,"Academy","Academy"]
[124770,"Warlingham Village Primary School",124770,"Academy","Academy"]
[120230,"Warminster Kingdown",120230,"Academy","Academy"]
[122068,"Warren Farm Primary School",122068,"Academy","Academy"]
[127930,"Warren Mead Junior School",127930,"Academy","Academy"]
[120283,"Warren Primary School",120283,"Academy","Academy"]
[119915,"Warren Road Primary School",119915,"Academy","Academy"]
[131291,"Warren School, The",131291,"Academy","Academy"]
[132033,"Warren Wood - a specialist academy",132033,"Academy","Academy"]
[130759,"Warren Wood Community Primary School and Language Unit",130759,"Academy","Academy"]
[132407,"Warriner School, The",132407,"Academy","Academy"]
[123232,"Warton Nethersole's CofE Primary School",123232,"Academy","Academy"]
[122734,"Warwick Primary School",122734,"Academy","Academy"]
[122594,"Waseley Hills High School",122594,"Academy","Academy"]
[121212,"Washingborough Academy",121212,"Academy","Academy"]
[124134,"Washwood Heath Academy",124134,"Academy","Academy"]
[124352,"Watchfield Primary School",124352,"Academy","Academy"]
[131117,"Water Lane Primary School",131117,"Academy","Academy"]
[119212,"Waterhead Academy",119212,"Academy","Academy"]
[122121,"Waterloo Primary School",122121,"Academy","Academy"]
[131066,"Waterman Primary Academy",131066,"Academy","Academy"]
[124128,"Waterwells Primary Academy",124128,"Academy","Academy"]
[119248,"Watford Grammar School for Boys",119248,"Academy","Academy"]
[119249,"Watford Grammar School for Girls",119249,"Academy","Academy"]
[130567,"Watford UTC, The",130567,"Academy","Academy"]
[132668,"Watling Park School",132668,"Academy","Academy"]
[131409,"Waverley School",131409,"Academy","Academy"]
[123395,"Waverley Studio College",123395,"Academy","Academy"]
[120212,"Waycroft Academy",120212,"Academy","Academy"]
[125268,"Wayfield Primary School",125268,"Academy","Academy"]
[120855,"Wayland Academy Norfolk",120855,"Academy","Academy"]
[129586,"Wayland Junior Academy Watton",129586,"Academy","Academy"]
[121089,"Waynflete Infants' School",121089,"Academy","Academy"]
[131543,"Weald CofE Voluntary Aided Primary School, The",131543,"Academy","Academy"]
[119505,"Weald of Kent Grammar School",119505,"Academy","Academy"]
[119634,"Weare Academy First School",119634,"Academy","Academy"]
[120776,"Weatherfield School",120776,"Academy","Academy"]
[120749,"Weatherhead High School",120749,"Academy","Academy"]
[124232,"Weavers Academy",124232,"Academy","Academy"]
[123153,"Weavers Close Church of England Primary School",123153,"Academy","Academy"]
[121235,"Webheath First School Academy",121235,"Academy","Academy"]
[122893,"Webster Primary School",122893,"Academy","Academy"]
[119829,"Wedmore First School",119829,"Academy","Academy"]
[124076,"Wednesbury Oak Primary School",124076,"Academy","Academy"]
[130918,"Wednesfield High School",130918,"Academy","Academy"]
[129894,"Weedon Bec Primary School",129894,"Academy","Academy"]
[124694,"Weeley St Andrew's CofE Primary School",124694,"Academy","Academy"]
[121992,"Weelsby Academy",121992,"Academy","Academy"]
[129718,"Weeting Church of England Primary School",129718,"Academy","Academy"]
[122322,"Welbeck Academy",122322,"Academy","Academy"]
[133448,"Weldon Church of England Primary School",133448,"Academy","Academy"]
[130845,"Welholme Academy",130845,"Academy","Academy"]
[119394,"Wellacre Technology Academy",119394,"Academy","Academy"]
[124996,"Welland Academy - Peterborough",124996,"Academy","Academy"]
[120170,"Welland Park Academy - Market Harborough",120170,"Academy","Academy"]
[123885,"Wellesley Park Primary School",123885,"Academy","Academy"]
[119740,"Welling School",119740,"Academy","Academy"]
[118900,"Wellington Academy, The - Ludgershall",118900,"Academy","Academy"]
[130401,"Wellington Primary Academy - Tidworth",130401,"Academy","Academy"]
[119395,"Wellington School - Altrincham",119395,"Academy","Academy"]
[123364,"Wells Free School, The",123364,"Academy","Academy"]
[120630,"Wellsway School",120630,"Academy","Academy"]
[122076,"Welton Church of England Academy",122076,"Academy","Academy"]
[122658,"Welton St Mary's Church of England Primary Academy",122658,"Academy","Academy"]
[122580,"Wembley High Technology College",122580,"Academy","Academy"]
[122563,"Wensley Fold CofE Primary Academy",122563,"Academy","Academy"]
[131521,"Wensum Junior School",131521,"Academy","Academy"]
[120784,"Wentworth Primary School",120784,"Academy","Academy"]
[129550,"Werneth Primary School",129550,"Academy","Academy"]
[133189,"Werrington Community Primary School",133189,"Academy","Academy"]
[119543,"West Bridgford School, The",119543,"Academy","Academy"]
[122696,"West Derby School",122696,"Academy","Academy"]
[132669,"West Didsbury CE Primary School",132669,"Academy","Academy"]
[123229,"West End Academy",123229,"Academy","Academy"]
[119477,"West Grantham Academy - Earl of Dysart",119477,"Academy","Academy"]
[119476,"West Grantham Academy St Hugh's, The",119476,"Academy","Academy"]
[119478,"West Grantham Academy St John's, The",119478,"Academy","Academy"]
[119787,"West Hatch High School",119787,"Academy","Academy"]
[120020,"West Hill School",120020,"Academy","Academy"]
[120243,"West Kirby Grammar School",120243,"Academy","Academy"]
[118657,"West Lakes Academy",118657,"Academy","Academy"]
[120471,"West London Free School",120471,"Academy","Academy"]
[123371,"West London Free School Primary",123371,"Academy","Academy"]
[130919,"West Lynn Primary School",130919,"Academy","Academy"]
[122286,"West Malling Church of England Voluntary Controlled Primary School",122286,"Academy","Academy"]
[127592,"West Meadows Primary School",127592,"Academy","Academy"]
[132693,"West Midlands Construction UTC",132693,"Academy","Academy"]
[131855,"West Moors, St Mary's Church of England Voluntary Controlled First School",131855,"Academy","Academy"]
[123372,"West Newcastle Academy",123372,"Academy","Academy"]
[119901,"West Park Academy",119901,"Academy","Academy"]
[120587,"West Park Primary School",120587,"Academy","Academy"]
[119548,"West Park School",119548,"Academy","Academy"]
[131863,"West Raynham Church of England Primary Academy",131863,"Academy","Academy"]
[119784,"West Somerset College",119784,"Academy","Academy"]
[125003,"West St Leonards Primary Academy",125003,"Academy","Academy"]
[119763,"West Thornton Primary School",119763,"Academy","Academy"]
[122892,"West Thurrock Academy",122892,"Academy","Academy"]
[120436,"West Town Lane Academy",120436,"Academy","Academy"]
[127400,"West Town Primary Academy",127400,"Academy","Academy"]
[131065,"West View Primary School",131065,"Academy","Academy"]
[121922,"West Walsall E-ACT Academy",121922,"Academy","Academy"]
[119301,"Westborough Academy, The",119301,"Academy","Academy"]
[123185,"Westbourne Academy",123185,"Academy","Academy"]
[119767,"Westbourne Primary School",119767,"Academy","Academy"]
[127649,"Westbridge Primary School",127649,"Academy","Academy"]
[124492,"Westbrook Primary School",124492,"Academy","Academy"]
[122341,"Westbury Park Primary School",122341,"Academy","Academy"]
[120062,"Westbury-On-Trym Church of England Academy",120062,"Academy","Academy"]
[119262,"Westcliff High School for Boys Academy",119262,"Academy","Academy"]
[119490,"Westcliff High School for Girls",119490,"Academy","Academy"]
[120370,"Westcliff Primary School - Blackpool",120370,"Academy","Academy"]
[132441,"Westcliff School - Dawlish",132441,"Academy","Academy"]
[133065,"Westcroft Sport and Vocational College",133065,"Academy","Academy"]
[120341,"Westerings Primary Academy",120341,"Academy","Academy"]
[130622,"Western House Academy",130622,"Academy","Academy"]
[132333,"Western Primary School",132333,"Academy","Academy"]
[131797,"Westerton Primary School",131797,"Academy","Academy"]
[124311,"Westfield Academy",124311,"Academy","Academy"]
[120203,"Westfield Academy - Yeovil",120203,"Academy","Academy"]
[124755,"Westfield Primary Academy - Haverhill",124755,"Academy","Academy"]
[120317,"Westgate Academy",120317,"Academy","Academy"]
[121066,"Westgate School, The",121066,"Academy","Academy"]
[131507,"Westlands Academy",131507,"Academy","Academy"]
[119257,"Westlands Primary School",119257,"Academy","Academy"]
[124564,"Westlands School - Thornaby",124564,"Academy","Academy"]
[119261,"Westlands School, The - Sittingbourne",119261,"Academy","Academy"]
[124152,"Westlea Primary School",124152,"Academy","Academy"]
[124692,"Westleigh Methodist Primary School",124692,"Academy","Academy"]
[120180,"Westley Middle School",120180,"Academy","Academy"]
[118658,"Westminster Academy",118658,"Academy","Academy"]
[122164,"Westminster City School",122164,"Academy","Academy"]
[120816,"Weston Academy",120816,"Academy","Academy"]
[119948,"Weston Favell Academy",119948,"Academy","Academy"]
[121467,"Weston Favell CofE Primary School",121467,"Academy","Academy"]
[120583,"Weston Road Academy, The",120583,"Academy","Academy"]
[130760,"Weston St Mary Church of England Primary School",130760,"Academy","Academy"]
[133170,"Westover Primary School",133170,"Academy","Academy"]
[123417,"Westside Free School",123417,"Academy","Academy"]
[120030,"Westwood Academy - Benfleet",120030,"Academy","Academy"]
[131400,"Westwood Academy - Oldham",131400,"Academy","Academy"]
[120225,"Westwood Academy, The - Coventry",120225,"Academy","Academy"]
[124630,"Westwood Primary School",124630,"Academy","Academy"]
[122499,"Westwoodside Church of England Academy",122499,"Academy","Academy"]
[122687,"Wey Valley School, The",122687,"Academy","Academy"]
[119595,"Weydon School",119595,"Academy","Academy"]
[122545,"Weyfield Academy",122545,"Academy","Academy"]
[130357,"Whalley Range 11-18 High School",130357,"Academy","Academy"]
[126518,"Wheatfield Academy",126518,"Academy","Academy"]
[125171,"Wheatley Church of England (C) Primary School",125171,"Academy","Academy"]
[126207,"Wheatley Park School",126207,"Academy","Academy"]
[124063,"Wheeler Primary School",124063,"Academy","Academy"]
[122861,"Whetley Academy",122861,"Academy","Academy"]
[120358,"Whickham School",120358,"Academy","Academy"]
[122346,"Whipperley Infant Academy",122346,"Academy","Academy"]
[124204,"Whirley Primary School",124204,"Academy","Academy"]
[131057,"Whissendine Church of England Primary School",131057,"Academy","Academy"]
[124563,"Whiston Junior and Infant School",124563,"Academy","Academy"]
[124583,"Whiston Worry Goose Junior and Infant School",124583,"Academy","Academy"]
[119398,"Whitburn Church of England Academy",119398,"Academy","Academy"]
[122069,"White Cliffs Primary College for the Arts",122069,"Academy","Academy"]
[120929,"White Hall Academy",120929,"Academy","Academy"]
[130920,"White House Academy",130920,"Academy","Academy"]
[130079,"White Meadows Primary School",130079,"Academy","Academy"]
[122292,"White Waltham CofE Academy",122292,"Academy","Academy"]
[123807,"White’s Wood Academy",123807,"Academy","Academy"]
[120600,"Whitecross Hereford; High School and Specialist Sports College",120600,"Academy","Academy"]
[120355,"Whitefield School - Cricklewood",120355,"Academy","Academy"]
[126350,"Whitefield Schools and Centre - Walthamstow",126350,"Academy","Academy"]
[130297,"Whitefriars Church of England Primary Academy",130297,"Academy","Academy"]
[127889,"Whitefriars School",127889,"Academy","Academy"]
[130517,"Whitehall Park School",130517,"Academy","Academy"]
[127198,"Whitehaven Academy, The",127198,"Academy","Academy"]
[119600,"Whitehill Community Academy",119600,"Academy","Academy"]
[129100,"Whitehill Primary School",129100,"Academy","Academy"]
[119666,"Whitehorse Manor Infant School",119666,"Academy","Academy"]
[119667,"Whitehorse Manor Junior School",119667,"Academy","Academy"]
[131990,"Whitehouse Pupil Referral Unit",131990,"Academy","Academy"]
[127278,"Whitelands Park Primary School",127278,"Academy","Academy"]
[122897,"Whitemoor Academy",122897,"Academy","Academy"]
[122018,"Whitemoor Academy (Primary and Nursery)",122018,"Academy","Academy"]
[124297,"Whitesheet Church of England Primary Academy",124297,"Academy","Academy"]
[132911,"Whiteshill Primary School",132911,"Academy","Academy"]
[131216,"Whitfield Valley Primary School",131216,"Academy","Academy"]
[119840,"Whitley Academy",119840,"Academy","Academy"]
[120192,"Whitstone",120192,"Academy","Academy"]
[123201,"Whittingham Primary Academy",123201,"Academy","Academy"]
[131197,"Whitton Community Primary School",131197,"Academy","Academy"]
[131225,"Whyteleafe Primary School",131225,"Academy","Academy"]
[131217,"Wickersley Northfield Primary School",131217,"Academy","Academy"]
[129177,"Wickersley School and Sports College",129177,"Academy","Academy"]
[120590,"Wickford Church of England School, The",120590,"Academy","Academy"]
[131820,"Wickham Common Primary School",131820,"Academy","Academy"]
[131123,"Wickham Market Community Primary School",131123,"Academy","Academy"]
[131370,"Wicklea Academy",131370,"Academy","Academy"]
[119668,"Widecombe-in-the-Moor Primary School",119668,"Academy","Academy"]
[122942,"Widewell Primary School",122942,"Academy","Academy"]
[131052,"Widnes Academy",131052,"Academy","Academy"]
[122059,"Wigan UTC",122059,"Academy","Academy"]
[119420,"Wigmore Primary School",119420,"Academy","Academy"]
[119421,"Wigmore School",119421,"Academy","Academy"]
[121203,"Wigston Academy",121203,"Academy","Academy"]
[122105,"Wigston Birkett House Community Special School",122105,"Academy","Academy"]
[124530,"Wilbarston Church of England Primary School",124530,"Academy","Academy"]
[123271,"Wilberforce Primary",123271,"Academy","Academy"]
[120362,"Wilcombe Primary School",120362,"Academy","Academy"]
[119641,"Wildern School",119641,"Academy","Academy"]
[132423,"Willaston Primary Academy",132423,"Academy","Academy"]
[120976,"Willenhall E-ACT Academy",120976,"Academy","Academy"]
[120637,"William Alvey School",120637,"Academy","Academy"]
[131058,"William Bradford Academy, The",131058,"Academy","Academy"]
[123181,"William Brookes School",123181,"Academy","Academy"]
[119630,"William de Ferrers School",119630,"Academy","Academy"]
[131159,"William De Yaxley Church of England Academy, The",131159,"Academy","Academy"]
[120214,"William Edwards School",120214,"Academy","Academy"]
[119445,"William Farr CofE Comprehensive School",119445,"Academy","Academy"]
[131935,"William Gilbert Endowed Church of England Primary School",131935,"Academy","Academy"]
[120252,"William Howard School",120252,"Academy","Academy"]
[118652,"William Hulme's Grammar School",118652,"Academy","Academy"]
[130355,"William Law CE Primary School",130355,"Academy","Academy"]
[121866,"William Lovell Church of England School",121866,"Academy","Academy"]
[133195,"William Morris Primary School",133195,"Academy","Academy"]
[121996,"William Perkin Church of England High School",121996,"Academy","Academy"]
[120481,"William Tyndale Primary School",120481,"Academy","Academy"]
[129540,"Willoughby Road Primary Academy",129540,"Academy","Academy"]
[120698,"Willow Academy - Doncaster",120698,"Academy","Academy"]
[120532,"Willow Bank Primary School",120532,"Academy","Academy"]
[120974,"Willow Brook Primary School Academy",120974,"Academy","Academy"]
[130921,"Willow Brook Primary School and Nursery",130921,"Academy","Academy"]
[122251,"Willow Green Academy",122251,"Academy","Academy"]
[122871,"Willow Primary School - Slough",122871,"Academy","Academy"]
[124112,"Willowcroft Community School",124112,"Academy","Academy"]
[130410,"Willowdown Primary Academy",130410,"Academy","Academy"]
[123017,"Willows Primary Academy",123017,"Academy","Academy"]
[124303,"Willows Primary School, The - Manchester",124303,"Academy","Academy"]
[120483,"Willows School, The - Hillingdon",120483,"Academy","Academy"]
[119330,"Wilmington Academy",119330,"Academy","Academy"]
[120227,"Wilmington Grammar School for Boys",120227,"Academy","Academy"]
[120250,"Wilmington Grammar School for Girls",120250,"Academy","Academy"]
[120620,"Wilmington Primary School",120620,"Academy","Academy"]
[122943,"Wilnecote High School",122943,"Academy","Academy"]
[129588,"Wilshere-Dacre Junior Academy",129588,"Academy","Academy"]
[121131,"Wilson Stuart School",121131,"Academy","Academy"]
[119535,"Wilson's School",119535,"Academy","Academy"]
[129908,"Winchcombe Abbey Church of England Primary School",129908,"Academy","Academy"]
[119788,"Winchcombe School",119788,"Academy","Academy"]
[129432,"Wincobank Nursery and Infant School",129432,"Academy","Academy"]
[122878,"Windale Community Primary School",122878,"Academy","Academy"]
[131079,"Windhill School",131079,"Academy","Academy"]
[127710,"Windmill Hill Academy",127710,"Academy","Academy"]
[122939,"Windmill LEAD Academy",122939,"Academy","Academy"]
[124316,"Windmill Primary School - Wellingborough",124316,"Academy","Academy"]
[126512,"Windmill Primary School - Wokingham",126512,"Academy","Academy"]
[132044,"Windsor Boys' School, The",132044,"Academy","Academy"]
[132046,"Windsor Girls' School",132046,"Academy","Academy"]
[119532,"Windsor High School and Sixth Form",119532,"Academy","Academy"]
[123211,"Wingfield Academy",123211,"Academy","Academy"]
[122047,"Winhills Primary School",122047,"Academy","Academy"]
[122911,"Winifred Holtby Academy",122911,"Academy","Academy"]
[119336,"Winsford Academy, The",119336,"Academy","Academy"]
[122148,"Winstanley Community College",122148,"Academy","Academy"]
[132288,"Winter Gardens Primary Academy",132288,"Academy","Academy"]
[127977,"Winterbourne Boys' Academy",127977,"Academy","Academy"]
[119094,"Winterbourne International Academy",119094,"Academy","Academy"]
[130310,"Winterhill School",130310,"Academy","Academy"]
[122560,"Winterton Community Academy",122560,"Academy","Academy"]
[123804,"Winton Arts and Media College",123804,"Academy","Academy"]
[121884,"Winton Community Academy",121884,"Academy","Academy"]
[132358,"Winton Primary School",132358,"Academy","Academy"]
[120371,"Wirral Grammar School for Boys",120371,"Academy","Academy"]
[120171,"Wirral Grammar School for Girls",120171,"Academy","Academy"]
[132985,"Wisewood Community Primary School",132985,"Academy","Academy"]
[122424,"Wishmore Cross Academy",122424,"Academy","Academy"]
[129605,"Wistaston Academy",129605,"Academy","Academy"]
[130712,"Wistaston Church Lane Primary School",130712,"Academy","Academy"]
[131459,"Witchampton Church of England Voluntary Aided First School",131459,"Academy","Academy"]
[120655,"Witchford Village College",120655,"Academy","Academy"]
[121856,"Witham St Hughs Academy",121856,"Academy","Academy"]
[131894,"Withernsea Primary School",131894,"Academy","Academy"]
[125008,"Witton Park High School",125008,"Academy","Academy"]
[130561,"WMG Academy for Young Engineers",130561,"Academy","Academy"]
[122489,"Woden Primary School",122489,"Academy","Academy"]
[126339,"Wodensborough Ormiston Academy",126339,"Academy","Academy"]
[124312,"Woking High School",124312,"Academy","Academy"]
[124230,"Wold Academy",124230,"Academy","Academy"]
[125013,"Wolsey Junior Academy",125013,"Academy","Academy"]
[132298,"Wolstanton High Academy",132298,"Academy","Academy"]
[132453,"Wolvercote Primary School",132453,"Academy","Academy"]
[130336,"Wolverhampton Girls' High School",130336,"Academy","Academy"]
[132675,"Wolverhampton Vocational Training Centre",132675,"Academy","Academy"]
[131988,"Wombwell Park Street Primary School Academy",131988,"Academy","Academy"]
[119741,"Wood End Academy - Greenford",119741,"Academy","Academy"]
[122682,"Wood End Park Academy - Hayes",122682,"Academy","Academy"]
[124605,"Wood End Primary School - Athlestone",124605,"Academy","Academy"]
[119530,"Wood Green Academy",119530,"Academy","Academy"]
[120318,"Woodbrook Vale School",120318,"Academy","Academy"]
[120612,"Woodchurch High School",120612,"Academy","Academy"]
[121951,"Woodcote High School",121951,"Academy","Academy"]
[121936,"Woodfield Academy - Redditch",121936,"Academy","Academy"]
[130300,"Woodfield School - Kingsbury",130300,"Academy","Academy"]
[129886,"Woodford Halse Church of England School",129886,"Academy","Academy"]
[121107,"Woodford Valley Church of England Aided School",121107,"Academy","Academy"]
[122575,"Woodham Academy",122575,"Academy","Academy"]
[131436,"Woodham Ley Primary School",131436,"Academy","Academy"]
[130744,"Woodhouse Academy",130744,"Academy","Academy"]
[123256,"Woodhouse Primary Academy",123256,"Academy","Academy"]
[120455,"Woodkirk Academy",120455,"Academy","Academy"]
[119573,"Woodland Middle School Academy",119573,"Academy","Academy"]
[121104,"Woodland View Primary School",121104,"Academy","Academy"]
[120165,"Woodlands Academy - Coventry",120165,"Academy","Academy"]
[122118,"Woodlands Academy of Learning - Willenhall",122118,"Academy","Academy"]
[123219,"Woodlands Academy, The - Scarborough",123219,"Academy","Academy"]
[124246,"Woodlands Primary Academy - Bradwell",124246,"Academy","Academy"]
[122319,"Woodlands Primary Academy - Leeds",122319,"Academy","Academy"]
[133082,"Woodlands Primary School - Grimsby",133082,"Academy","Academy"]
[123042,"Woodlands Primary School - Medway",123042,"Academy","Academy"]
[121014,"Woodlands School - Allestree",121014,"Academy","Academy"]
[130948,"Woodlands School - Basildon",130948,"Academy","Academy"]
[132007,"Woodloes Primary School",132007,"Academy","Academy"]
[121108,"Woodnewton",121108,"Academy","Academy"]
[120552,"Woodpecker Hall Primary Academy",120552,"Academy","Academy"]
[119904,"Woodrush Community High School",119904,"Academy","Academy"]
[131550,"Woodseaves CoE Primary Academy",131550,"Academy","Academy"]
[121178,"Woodside Academy",121178,"Academy","Academy"]
[122592,"Woodside Academy - Grays",122592,"Academy","Academy"]
[123242,"Woodside CofE Controlled Primary School",123242,"Academy","Academy"]
[120694,"Woodside High School - Haringey",120694,"Academy","Academy"]
[122843,"Woodside Primary Academy, The",122843,"Academy","Academy"]
[122397,"Woodside Primary School - Oswestry",122397,"Academy","Academy"]
[123094,"Woodvale Primary Academy",123094,"Academy","Academy"]
[124753,"Woodville Primary School",124753,"Academy","Academy"]
[122420,"Woodwater Academy, The",122420,"Academy","Academy"]
[127647,"Woolavington Village Primary School",127647,"Academy","Academy"]
[130624,"Woolden Hill Primary School",130624,"Academy","Academy"]
[121841,"Woolgrove School",121841,"Academy","Academy"]
[120314,"Woolmer Hill School",120314,"Academy","Academy"]
[132431,"Woolpit Community Primary School",132431,"Academy","Academy"]
[130350,"Woolwich Polytechnic School",130350,"Academy","Academy"]
[122266,"Wootton Primary School",122266,"Academy","Academy"]
[120406,"Wootton Upper School",120406,"Academy","Academy"]
[130852,"Wordsworth Primary School",130852,"Academy","Academy"]
[131866,"Workington Academy, The",131866,"Academy","Academy"]
[122741,"Worlaby Academy",122741,"Academy","Academy"]
[131165,"Wormegay Church of England Primary School",131165,"Academy","Academy"]
[133192,"Worsley Bridge Primary School",133192,"Academy","Academy"]
[123814,"Worth Primary School",123814,"Academy","Academy"]
[122970,"Worthing High School",122970,"Academy","Academy"]
[113696,"Wreake Valley Academy",113696,"Academy","Academy"]
[118676,"Wren Academy - North Finchley",118676,"Academy","Academy"]
[132662,"WREN School, The",132662,"Academy","Academy"]
[124748,"Wrenn School - Wellingborough",124748,"Academy","Academy"]
[120633,"Writhlington School",120633,"Academy","Academy"]
[123881,"Wrockwardine Wood Arts Academy",123881,"Academy","Academy"]
[120709,"Wrotham School",120709,"Academy","Academy"]
[121916,"Wroxham School, The",121916,"Academy","Academy"]
[122428,"Wybers Wood Academy",122428,"Academy","Academy"]
[132280,"Wychall Primary School",132280,"Academy","Academy"]
[119742,"Wycombe High School",119742,"Academy","Academy"]
[123373,"Wye School",123373,"Academy","Academy"]
[120415,"Wyedean School and 6th Form Centre",120415,"Academy","Academy"]
[130420,"Wygate Park Academy",130420,"Academy","Academy"]
[119481,"Wymondham College",119481,"Academy","Academy"]
[120342,"Wymondham High School",120342,"Academy","Academy"]
[131218,"Wyndcliffe Primary School",131218,"Academy","Academy"]
[131207,"Wyndham Park Infants' School",131207,"Academy","Academy"]
[120997,"Wyndham Primary Academy",120997,"Academy","Academy"]
[132670,"Wynyard Church of England Primary School",132670,"Academy","Academy"]
[122578,"Wyvern Academy",122578,"Academy","Academy"]
[121161,"Wyvern College",121161,"Academy","Academy"]
[130558,"XP School (Doncaster)",130558,"Academy","Academy"]
[131086,"Yanwath Primary School",131086,"Academy","Academy"]
[121901,"Yarborough Academy",121901,"Academy","Academy"]
[119390,"Yardley Primary School - Waltham Forrest",119390,"Academy","Academy"]
[123056,"Yardleys School - Birmingham",123056,"Academy","Academy"]
[132022,"Yarlside Academy",132022,"Academy","Academy"]
[129569,"Yarm Primary School",129569,"Academy","Academy"]
[122947,"Yarnfield Primary School",122947,"Academy","Academy"]
[119093,"Yate International Academy",119093,"Academy","Academy"]
[119906,"Yavneh College",119906,"Academy","Academy"]
[119654,"Yealmpton Primary School",119654,"Academy","Academy"]
[131372,"Yeo Moor Primary School",131372,"Academy","Academy"]
[119578,"Yesoiday Hatorah School",119578,"Academy","Academy"]
[132368,"Yewdale School",132368,"Academy","Academy"]
[120453,"Yewlands Academy",120453,"Academy","Academy"]
[120980,"York Road Junior Academy",120980,"Academy","Academy"]
[131405,"Young People's Academy, The",131405,"Academy","Academy"]
[131089,"Young People's Education Centre",131089,"Academy","Academy"]
[129864,"Zouch Academy",129864,"Academy","Academy"]
["MOJ047-46","Children and Family Court Advisory and Support Service","MOJ047-46","DfE Family","DfE Family"]
["DFE022-01","Department for Education","DFE022-01","DfE Family","DfE Family"]
["DFE022-02","National College for Teaching and Leadership (NCTL)","DFE022-02","DfE Family","DfE Family"]
["DFE022-03","Office of the Children’s Commissioner","DFE022-03","DfE Family","DfE Family"]
["DFE022-04","School Teachers’ Review Body","DFE022-04","DfE Family","DfE Family"]
["DFE022-05","Schools Mobility and Child Poverty Commssion","DFE022-05","DfE Family","DfE Family"]
["DFE022-06","Standards and Testing Agency (STA)","DFE022-06","DfE Family","DfE Family"]
["DFE022-07","Teaching Agency","DFE022-07","DfE Family","DfE Family"]
["DFE022-08","Education Funding Agency (EFA)","DFE022-08","DfE Family","DfE Family"]
["ACA084","Advisory Conciliation and Arbitration Service (ACAS)","ACA084","CenGov't","CenGov't"]
["ACE048","Arts Council of England","ACE048","CenGov't","CenGov't"]
["ACL048","Arts Council of England Lottery","ACL048","CenGov't","CenGov't"]
["AHC084","Arts and Humanities Research Council","AHC084","CenGov't","CenGov't"]
["AHD003","Agriculture and Horticulture Development Board","AHD003","CenGov't","CenGov't"]
["BBC048","British Broadcasting Corporation","BBC048","CenGov't","CenGov't"]
["BFI048","British Film Institute","BFI048","CenGov't","CenGov't"]
["BIS084-01","BIS (Postal Services Act 2011) Company Limited","BIS084-01","CenGov't","CenGov't"]
["BIS084-02","British Hallmarking Council","BIS084-02","CenGov't","CenGov't"]
["BIS084-03","British Shipbuilders","BIS084-03","CenGov't","CenGov't"]
["BIS084-04","Capital for Enterprise Ltd","BIS084-04","CenGov't","CenGov't"]
["BIS084-05","Chief Executive of Skills Funding","BIS084-05","CenGov't","CenGov't"]
["BIS084-06","Competition Appeal Tribunal","BIS084-06","CenGov't","CenGov't"]
["BIS084-07","Competition Service","BIS084-07","CenGov't","CenGov't"]
["BIS084-08","Copyright Tribunal","BIS084-08","CenGov't","CenGov't"]
["BIS084-09","Council for Science and Technology","BIS084-09","CenGov't","CenGov't"]
["BIS084-10","Department for Business, Innovation and Skills","BIS084-10","CenGov't","CenGov't"]
["BIS084-11","Diamond Light Source Ltd","BIS084-11","CenGov't","CenGov't"]
["BIS084-12","Direction Finningley","BIS084-12","CenGov't","CenGov't"]
["BIS084-13","Industrial Development Advisory Board","BIS084-13","CenGov't","CenGov't"]
["BIS084-14","Insolvency Practitioners Tribunal","BIS084-14","CenGov't","CenGov't"]
["BIS084-15","Insolvency Service","BIS084-15","CenGov't","CenGov't"]
["BIS084-16","Low Pay Commission","BIS084-16","CenGov't","CenGov't"]
["BIS084-17","National Measurement Office, The","BIS084-17","CenGov't","CenGov't"]
["BIS084-18","Office for Fair Access","BIS084-18","CenGov't","CenGov't"]
["BIS084-19","Office of Manpower Economics","BIS084-19","CenGov't","CenGov't"]
["BIS084-20","Skills Funding Agency","BIS084-20","CenGov't","CenGov't"]
["BIS084-21","STFC Innovations Ltd","BIS084-21","CenGov't","CenGov't"]
["NES084","The NESTA Trust","NES084","CenGov't","CenGov't"]
["BIS084-23","The Pirbright Institute (was Institute for Animal Health)","BIS084-23","CenGov't","CenGov't"]
["BIS084-24","UK Space Agency","BIS084-24","CenGov't","CenGov't"]
["BIS084-25","Wave Hub Ltd","BIS084-25","CenGov't","CenGov't"]
["BIS084-26","British Business Bank PLC","BIS084-26","CenGov't","CenGov't"]
["BLF048","BIG Lottery Fund","BLF048","CenGov't","CenGov't"]
["BRB004-01","DoA Limited","BRB004-01","CenGov't","CenGov't"]
["BRC084","Biotechnology and Biological Sciences Research Council (BBSRC)","BRC084","CenGov't","CenGov't"]
["BRL048","British Library","BRL048","CenGov't","CenGov't"]
["BRM048","British Museum","BRM048","CenGov't","CenGov't"]
["BTP004","British Transport Police Authority (sSRA)","BTP004","CenGov't","CenGov't"]
["CAB010-01","Advisory Committee on Business Appointments","CAB010-01","CenGov't","CenGov't"]
["CAB010-02","Boundary Commission for England","CAB010-02","CenGov't","CenGov't"]
["CAB010-03","Boundary Commission for Wales","CAB010-03","CenGov't","CenGov't"]
["CAB010-04","Cabinet Office","CAB010-04","CenGov't","CenGov't"]
["CAB010-05","Commissioner for Public Appointments","CAB010-05","CenGov't","CenGov't"]
["CAB010-06","Committee on Standards in Public Life","CAB010-06","CenGov't","CenGov't"]
["CAB010-07","House of Lords Appointments Commission","CAB010-07","CenGov't","CenGov't"]
["CAB010-08","Main Honours Advisory Committee","CAB010-08","CenGov't","CenGov't"]
["CAB010-09","Security Vetting Appeals Panel","CAB010-09","CenGov't","CenGov't"]
["CAB010-10","Senior Salaries Review Body","CAB010-10","CenGov't","CenGov't"]
["CAP074","OFT - Competition Act penalties trust statement   ","CAP074","CenGov't","CenGov't"]
["CBA033","NHS England","CBA033","CenGov't","CenGov't"]
["CFW003","Consumer Council for Water","CFW003","CenGov't","CenGov't"]
["CHC009","Charity Commission","CHC009","CenGov't","CenGov't"]
["CHP033","Community Health Partnerships Ltd","CHP033","CenGov't","CenGov't"]
["CIC047","Criminal Injuries Compensation Authority","CIC047","CenGov't","CenGov't"]
["CLA085","Commission for Local Administration in England","CLA085","CenGov't","CenGov't"]
["CNC066","Civil Nuclear Police Authority (CNPA)","CNC066","CenGov't","CenGov't"]
["COF888","Consolidated Fund","COF888","CenGov't","CenGov't"]
["COL066","Coal Authority","COL066","CenGov't","CenGov't"]
["COM085-01","Architects Registrations Board","COM085-01","CenGov't","CenGov't"]
["COM085-02","AWM (Subsidiary) Ltd","COM085-02","CenGov't","CenGov't"]
["COM085-03","Building Regulations Advisory Committee","COM085-03","CenGov't","CenGov't"]
["COM085-04","Department for Communities and Local Government","COM085-04","CenGov't","CenGov't"]
["COM085-05","emEP Limited","COM085-05","CenGov't","CenGov't"]
["COM085-06","English Partnerships (LP) Limited","COM085-06","CenGov't","CenGov't"]
["COM085-07","Estuary Management Company Ltd","COM085-07","CenGov't","CenGov't"]
["COM085-08","Independent Housing Ombudsman Limited","COM085-08","CenGov't","CenGov't"]
["COM085-09","NorwePP (NWDA Subsidiary) Limited","COM085-09","CenGov't","CenGov't"]
["COM085-10","ONE North East General Partner Limited","COM085-10","CenGov't","CenGov't"]
["COM085-11","The Leasehold Advisory Service","COM085-11","CenGov't","CenGov't"]
["COP034","College of Policing","COP034","CenGov't","CenGov't"]
["CPS016","Crown Prosecution Service","CPS016","CenGov't","CenGov't"]
["CQC033","Care Quality Commission","CQC033","CenGov't","CenGov't"]
["CRC066","Carbon Reduction Commitment Trust Statement","CRC066","CenGov't","CenGov't"]
["CRP033","Professional Standards Authority for Health and Social Care","CRP033","CenGov't","CenGov't"]
["CSF047","HM Court Service fines and penalties trust statement","CSF047","CenGov't","CenGov't"]
["CSS010","Civil Service Commission","CSS010","CenGov't","CenGov't"]
["CTF888","Contingencies Fund","CTF888","CenGov't","CenGov't"]
["DCM048-01","Artco Trading Ltd","DCM048-01","CenGov't","CenGov't"]
["DCM048-02","BBC Children in Need Appeal Ltd","DCM048-02","CenGov't","CenGov't"]
["DCM048-03","BBC Free to View (Satellite) Ltd","DCM048-03","CenGov't","CenGov't"]
["DCM048-04","BBC Free to View Ltd","DCM048-04","CenGov't","CenGov't"]
["DCM048-05","BBC News Ltd","DCM048-05","CenGov't","CenGov't"]
["DCM048-06","BBC Property Development Ltd","DCM048-06","CenGov't","CenGov't"]
["DCM048-07","BBC Property Investment Ltd","DCM048-07","CenGov't","CenGov't"]
["DCM048-08","BBC Property Ltd","DCM048-08","CenGov't","CenGov't"]
["DCM048-09","British Museum Great Court Limited","DCM048-09","CenGov't","CenGov't"]
["DCM048-10","Broadcasters’ Audience Research Board Ltd","DCM048-10","CenGov't","CenGov't"]
["DCM048-11","Caversham Lakes Trust Limited","DCM048-11","CenGov't","CenGov't"]
["DCM048-12","Children in Need Ltd","DCM048-12","CenGov't","CenGov't"]
["DCM048-13","Churches Conservation Trust","DCM048-13","CenGov't","CenGov't"]
["DCM048-14","Contracts Right Renewal Adjudicator (OFCOM)","DCM048-14","CenGov't","CenGov't"]
["DCM048-15","Dept. Culture Media and Sport","DCM048-15","CenGov't","CenGov't"]
["DCM048-16","Digital UK Limited","DCM048-16","CenGov't","CenGov't"]
["DCM048-17","DSHS Ltd","DCM048-17","CenGov't","CenGov't"]
["DCM048-18","DTT Multiplex Operators Ltd","DCM048-18","CenGov't","CenGov't"]
["DCM048-19","English Institute of Sport","DCM048-19","CenGov't","CenGov't"]
["DCM048-20","English Tourist Authority","DCM048-20","CenGov't","CenGov't"]
["DCM048-21","Geffrye Museum Trust Ltd","DCM048-21","CenGov't","CenGov't"]
["DCM048-22","Horniman Museum Enterprises Limited","DCM048-22","CenGov't","CenGov't"]
["DCM048-23","Horniman Public Museum and Public Park Trust","DCM048-23","CenGov't","CenGov't"]
["DCM048-24","Horserace Betting Levy Appeals Tribunal for England and Wales","DCM048-24","CenGov't","CenGov't"]
["DCM048-25","Imperial War Museum Trading Company Limited","DCM048-25","CenGov't","CenGov't"]
["DCM048-26","Iveagh Bequest","DCM048-26","CenGov't","CenGov't"]
["DCM048-27","Joint Industry Grading Scheme Ltd","DCM048-27","CenGov't","CenGov't"]
["DCM048-28","Media Applications Technologies Ltd","DCM048-28","CenGov't","CenGov't"]
["DCM048-29","Mortimer Productions Ltd","DCM048-29","CenGov't","CenGov't"]
["DCM048-30","National Lottery Commission","DCM048-30","CenGov't","CenGov't"]
["DCM048-31","Office of the Adjudicator (OFCOM)","DCM048-31","CenGov't","CenGov't"]
["DCM048-32","Registrar of the Public Lending Right","DCM048-32","CenGov't","CenGov't"]
["DCM048-33","Reviewing Committee on the Export of Works of Art","DCM048-33","CenGov't","CenGov't"]
["DCM048-34","Sports Ground Safety Authority","DCM048-34","CenGov't","CenGov't"]
["DCM048-35","Stratford Village Development (GP) Ltd","DCM048-35","CenGov't","CenGov't"]
["DCM048-36","Tate Gallery Projects Limited","DCM048-36","CenGov't","CenGov't"]
["DCM048-37","The Commonwealth Broadcasting  Association","DCM048-37","CenGov't","CenGov't"]
["DCM048-38","The Dame Helen Gardner Bequest","DCM048-38","CenGov't","CenGov't"]
["DCM048-39","The Development Fund","DCM048-39","CenGov't","CenGov't"]
["DCM048-40","The Historic Buildings and Monuments Commission for England","DCM048-40","CenGov't","CenGov't"]
["DCM048-41","The Number 3 Trust Fund","DCM048-41","CenGov't","CenGov't"]
["DCM048-42","The Portrait Fund","DCM048-42","CenGov't","CenGov't"]
["DCM048-43","The Sports Council Trust Company","DCM048-43","CenGov't","CenGov't"]
["DCM048-44","Theatres Trust","DCM048-44","CenGov't","CenGov't"]
["DCM048-45","Treasure Valuation Committee","DCM048-45","CenGov't","CenGov't"]
["DCM048-46","UK Anti-Doping","DCM048-46","CenGov't","CenGov't"]
["DEC066-01","Committee on Climate Change (CCC)","DEC066-01","CenGov't","CenGov't"]
["DEC066-02","Committee on Radioactive Waste Management","DEC066-02","CenGov't","CenGov't"]
["DEC066-03","Department of Energy and Climate Change","DEC066-03","CenGov't","CenGov't"]
["DEC066-04","Fuel Poverty Advisory Group","DEC066-04","CenGov't","CenGov't"]
["DEC066-05","Nuclear Liabilities Financing Assurance Board","DEC066-05","CenGov't","CenGov't"]
["DFT004-01","Air Travel Trust Fund","DFT004-01","CenGov't","CenGov't"]
["DFT004-02","CTRL Section 1 Finance Plc","DFT004-02","CenGov't","CenGov't"]
["DFT004-03","Department for Transport","DFT004-03","CenGov't","CenGov't"]
["DFT004-04","Disabled Persons Transport Advisory Committee","DFT004-04","CenGov't","CenGov't"]
["DFT004-05","High Speed Two (HS2) Limited","DFT004-05","CenGov't","CenGov't"]
["DFT004-06","LCR Finance Plc","DFT004-06","CenGov't","CenGov't"]
["LCR004","London and Continental Railways","LCR004","PCs","PCs"]
["DFT004-08","Passenger Focus","DFT004-08","CenGov't","CenGov't"]
["DID030-01","Commonwealth Scholarship Commission in the United Kingdom","DID030-01","CenGov't","CenGov't"]
["DID030-02","Department for International Development","DID030-02","CenGov't","CenGov't"]
["DID030-03","The Independent Commission for Aid Impact","DID030-03","CenGov't","CenGov't"]
["DMA888","Debt Management Account","DMA888","CenGov't","CenGov't"]
["DMO087","UK Debt Management Office","DMO087","CenGov't","CenGov't"]
["DOH033-01","Administration of Radioactive Substances Advisory Committee","DOH033-01","CenGov't","CenGov't"]
["DOH033-02","Advisory Committee on Antimicrobial Resistance and Healthcare Associated Infection","DOH033-02","CenGov't","CenGov't"]
["DOH033-03","Advisory Committee on Dangerous Pathogens","DOH033-03","CenGov't","CenGov't"]
["DOH033-04","Advisory Group on Hepatitis","DOH033-04","CenGov't","CenGov't"]
["DOH033-05","Committee on Carcinogenicity of Chemicals in Food, Consumer Products and the Environment","DOH033-05","CenGov't","CenGov't"]
["DOH033-06","Committee on the Medical Aspects of Radiation in the Environment","DOH033-06","CenGov't","CenGov't"]
["DOH033-07","Committee on the Medical Effects of Air Pollutants","DOH033-07","CenGov't","CenGov't"]
["DOH033-08","Committee on the Mutagenicity of Chemicals in Food, Consumer Products and the Environment","DOH033-08","CenGov't","CenGov't"]
["DOH033-09","Department of Health","DOH033-09","CenGov't","CenGov't"]
["DOH033-10","Expert Advisory Group on AIDS","DOH033-10","CenGov't","CenGov't"]
["DOH033-11","Human Genetics Commission","DOH033-11","CenGov't","CenGov't"]
["DOH033-12","Joint Committee on Vaccination and Immunisation","DOH033-12","CenGov't","CenGov't"]
["DOH033-13","NHS Business Services Authority","DOH033-13","CenGov't","CenGov't"]
["DOH033-14","NHS Charities in England (as defined by section 43 of the Charities Act 1993 as amended)","DOH033-14","CenGov't","CenGov't"]
["DOH033-15","NHS Commissioning Board","DOH033-15","CenGov't","CenGov't"]
["DOH033-16","NHS Litigation Authority","DOH033-16","CenGov't","CenGov't"]
["TDA033","NHS Trust Development Authority","TDA033","CenGov't","CenGov't"]
["DOH033-18","Review Body on Doctors’ and Dentists’ Remuneration","DOH033-18","CenGov't","CenGov't"]
["SKF033","Skipton Fund Ltd","SKF033","CenGov't","CenGov't"]
["DOH033-20","Strategic Health Authorities","DOH033-20","CenGov't","CenGov't"]
["DOH033-21","The Information Centre","DOH033-21","CenGov't","CenGov't"]
["DOH033-22","The NHS Pay Review Body","DOH033-22","CenGov't","CenGov't"]
["DFT004-09","Directly Operated Railways","DFT004-09","CenGov't","CenGov't"]
["DSG017","Defence Support Group","DSG017","CenGov't","CenGov't"]
["DSR066","Dounreay Site Restoration Limited","DSR066","CenGov't","CenGov't"]
["DVL004","Driver and Vehicle Licensing Agency","DVL004","CenGov't","CenGov't"]
["DWP032-01","Child Maintenance and Enforcement Commission (CMEC)","DWP032-01","CenGov't","CenGov't"]
["DWP032-02","Department for Work and Pensions (DWP)","DWP032-02","CenGov't","CenGov't"]
["DWP032-03","Disability Living Allowance Advisory Board (DLAAB)","DWP032-03","CenGov't","CenGov't"]
["DWP032-04","Equality 2025","DWP032-04","CenGov't","CenGov't"]
["DWP032-05","Health and Safety Executive (HSE)","DWP032-05","CenGov't","CenGov't"]
["DWP032-06","Health and Safety Laboratory (HSL)","DWP032-06","CenGov't","CenGov't"]
["DWP032-07","Industrial Injuries Advisory Council (IIAC)","DWP032-07","CenGov't","CenGov't"]
["DWP032-08","Jobcentre Plus (JCP)","DWP032-08","CenGov't","CenGov't"]
["DWP032-09","Office for Nuclear Regulation (ONR)","DWP032-09","CenGov't","CenGov't"]
["DWP032-10","Ombudsman for the Board of the Pension Protection Fund (OPPF)","DWP032-10","CenGov't","CenGov't"]
["DWP032-11","Social Security Advisory Committee (SSAC)","DWP032-11","CenGov't","CenGov't"]
["DWP032-12","The Pension, Disability and Carers Service (PDCS)","DWP032-12","CenGov't","CenGov't"]
["DWP032-13","The Pensions Advisory Service Limited (TPAS)","DWP032-13","CenGov't","CenGov't"]
["DWP032-14","The Pensions Ombudsman (TPO)","DWP032-14","CenGov't","CenGov't"]
["E5105X","Museum of London","E5105X","CenGov't","CenGov't"]
["EAT066","EU Emissions Allowance Trust Statement","EAT066","CenGov't","CenGov't"]
["EEA888","Exchange Equalisation Account","EEA888","CenGov't","CenGov't"]
["EFR003-01","Advisory Committee on Hazardous Substances","EFR003-01","CenGov't","CenGov't"]
["EFR003-02","Advisory Committee on Pesticides","EFR003-02","CenGov't","CenGov't"]
["EFR003-03","Advisory Committee on Releases to the Environment","EFR003-03","CenGov't","CenGov't"]
["EFR003-04","Agricultural Dwelling House Advisory Committees (England)","EFR003-04","CenGov't","CenGov't"]
["EFR003-05","Agricultural Land Tribunals (England)","EFR003-05","CenGov't","CenGov't"]
["EFR003-06","Agricultural Wages Board for England and Wales","EFR003-06","CenGov't","CenGov't"]
["EFR003-07","Agricultural Wages Committees for England","EFR003-07","CenGov't","CenGov't"]
["EFR003-08","Animal Health and Veterinary Laboratories Agency","EFR003-08","CenGov't","CenGov't"]
["EFR003-09","Centre for Environment, Fisheries, Aquaculture & Science","EFR003-09","CenGov't","CenGov't"]
["EFR003-10","Department for Environment, Food and Rural Affairs","EFR003-10","CenGov't","CenGov't"]
["EFR003-11","Food & Environment Research Agency","EFR003-11","CenGov't","CenGov't"]
["EFR003-12","Independent Agricultural Appeals Panel","EFR003-12","CenGov't","CenGov't"]
["EFR003-13","Inland Waterways Advisory Council","EFR003-13","CenGov't","CenGov't"]
["EFR003-14","Meat and Livestock Commercial Services Limited","EFR003-14","CenGov't","CenGov't"]
["EFR003-15","RBG Kew Enterprises Limited","EFR003-15","CenGov't","CenGov't"]
["EFR003-16","Rural Payments Agency","EFR003-16","CenGov't","CenGov't"]
["EFR003-17","Science Advisory Council","EFR003-17","CenGov't","CenGov't"]
["EFR003-18","Sutton Bridge Experimental Unit Limited","EFR003-18","CenGov't","CenGov't"]
["EFR003-19","Veterinary Medicines Directorate","EFR003-19","CenGov't","CenGov't"]
["EFR003-20","Veterinary Products Committee","EFR003-20","CenGov't","CenGov't"]
["EHG048","English Heritage","EHG048","CenGov't","CenGov't"]
["EHR064","Equality and Human Rights Commission","EHR064","CenGov't","CenGov't"]
["EIT084","Engineering Construction Industry Training Board","EIT084","CenGov't","CenGov't"]
["ENV003","Environment Agency","ENV003","CenGov't","CenGov't"]
["EPS084","Engineering and Physical Sciences Research Council","EPS084","CenGov't","CenGov't"]
["ESC066","Electricity Settlements Company Ltd","ESC066","CenGov't","CenGov't"]
["ESR084","Economic and Social Research Council","ESR084","CenGov't","CenGov't"]
["FAS032","DWP - Financial Assistance Scheme                 ","FAS032","CenGov't","CenGov't"]
["FCM003","Forestry Commission (England)","FCM003","CenGov't","CenGov't"]
["FCO027-01","BBC World Service","FCO027-01","CenGov't","CenGov't"]
["FCO027-02","Foreign and Commonwealth Office","FCO027-02","CenGov't","CenGov't"]
["FCO027-03","Foreign Compensation Commission","FCO027-03","CenGov't","CenGov't"]
["FCO027-04","Marshall Aid Commemoration Commission","FCO027-04","CenGov't","CenGov't"]
["FCO027-05","The Great Britain-China Centre","FCO027-05","CenGov't","CenGov't"]
["FCO027-06","The Westminster Foundation for Democracy Limited","FCO027-06","CenGov't","CenGov't"]
["FCS027","FCO Services","FCS027","CenGov't","CenGov't"]
["FFA085","NNDR Trust Statement                              ","FFA085","CenGov't","CenGov't"]
["FFL020","OFGEM - Fossil Fuel Levy                          ","FFL020","CenGov't","CenGov't"]
["FRC084","Financial Reporting Council","FRC084","CenGov't","CenGov't"]
["FSA026-01","Advisory Committee on Animal Feedingstuffs","FSA026-01","CenGov't","CenGov't"]
["FSA026-02","Advisory Committee on Consumer Engagement","FSA026-02","CenGov't","CenGov't"]
["FSA026-03","Advisory Committee on Novel Foods and Processes","FSA026-03","CenGov't","CenGov't"]
["FSA026-04","Advisory Committee on the Microbiological Safety of Food","FSA026-04","CenGov't","CenGov't"]
["FSA026-05","Committee on Toxicity of Chemicals in Food, Consumer Products and the Environment","FSA026-05","CenGov't","CenGov't"]
["FSA026-06","Expert Group on Vitamins and Minerals","FSA026-06","CenGov't","CenGov't"]
["FSA026-07","Food Standards Agency","FSA026-07","CenGov't","CenGov't"]
["FSA026-08","General Advisory Committee on Science","FSA026-08","CenGov't","CenGov't"]
["FSA026-09","Social Science Research Committee","FSA026-09","CenGov't","CenGov't"]
["GAD031","Government Actuary’s Department","GAD031","CenGov't","CenGov't"]
["GBG048","Gambling Commission","GBG048","CenGov't","CenGov't"]
["GEE033","Geonomics England Limited","GEE033","CenGov't","CenGov't"]
["GFF048","Geffrye Museum","GFF048","CenGov't","CenGov't"]
["GIB084","UK Green Investment Bank plc","GIB084","CenGov't","CenGov't"]
["HOF034-21","Gangmasters Licensing Authority","HOF034-21","CenGov't","CenGov't"]
["HBL048","Horserace Betting Levy Board","HBL048","CenGov't","CenGov't"]
["HCA085","Homes and Communities Agency","HCA085","CenGov't","CenGov't"]
["HEE033","Health Education Engalnd","HEE033","CenGov't","CenGov't"]
["HEF084","Higher Education Funding Council for England","HEF084","CenGov't","CenGov't"]
["HFE033","Human Fertilisation and Embryology Authority","HFE033","CenGov't","CenGov't"]
["HGT089","HM Procurator General and Treasury Solicitor","HGT089","CenGov't","CenGov't"]
["HIC033","The Health and Social Care Information Centre","HIC033","CenGov't","CenGov't"]
["HLF048","Heritage Lottery Fund","HLF048","CenGov't","CenGov't"]
["HMM048","Horniman Museum and Public Park Foundation","HMM048","CenGov't","CenGov't"]
["HMR041-01","HM Revenue and Customs","HMR041-01","CenGov't","CenGov't"]
["HMR041-02","Valuation Office Agency","HMR041-02","CenGov't","CenGov't"]
["HMT087-01","Asset Protection Agency","HMT087-01","CenGov't","CenGov't"]
["HMT087-02","Financial Reporting Advisory Board","HMT087-02","CenGov't","CenGov't"]
["FSC087","Financial Services Compensation Scheme","FSC087","PCs","PCs"]
["HMT087-04","Local Partnerships LLP","HMT087-04","CenGov't","CenGov't"]
["HMT087-05","Royal Mint Advisory Committee on the Design of Coins, Medals, Seals and Decorations","HMT087-05","CenGov't","CenGov't"]
["HOF034-01","Animals in Science Committee","HOF034-01","CenGov't","CenGov't"]
["HOF034-02","Criminal Records Bureau","HOF034-02","CenGov't","CenGov't"]
["DBS034","Disclosure and Barring Service","DBS034","PCs","PCs"]
["HOF034-04","Her Majesty’s Inspectorate of Constabulary","HOF034-04","CenGov't","CenGov't"]
["HOF034-05","Home Office","HOF034-05","CenGov't","CenGov't"]
["HOF034-06","Identity & Passport Service","HOF034-06","CenGov't","CenGov't"]
["HOF034-07","Independent Chief Inspector of the UK Border Agency","HOF034-07","CenGov't","CenGov't"]
["HOF034-08","Investigatory Powers Tribunal","HOF034-08","CenGov't","CenGov't"]
["HOF034-09","Migration Advisory Committee","HOF034-09","CenGov't","CenGov't"]
["HOF034-10","National DNA Database Ethics Group","HOF034-10","CenGov't","CenGov't"]
["HOF034-11","National Fraud Authority","HOF034-11","CenGov't","CenGov't"]
["HOF034-12","Office of Surveillance Commissioners","HOF034-12","CenGov't","CenGov't"]
["HOF034-13","Office of the Immigration Services Commissioner","HOF034-13","CenGov't","CenGov't"]
["HOF034-14","Police Advisory Board for England and Wales","HOF034-14","CenGov't","CenGov't"]
["HOF034-15","Police Appeals Tribunal","HOF034-15","CenGov't","CenGov't"]
["HOF034-16","Police Arbitration Tribunal","HOF034-16","CenGov't","CenGov't"]
["HOF034-17","Police Negotiating Board","HOF034-17","CenGov't","CenGov't"]
["HOF034-18","Technical Advisory Board","HOF034-18","CenGov't","CenGov't"]
["HOF034-19","The Advisory Council on the Misuse of Drugs","HOF034-19","CenGov't","CenGov't"]
["HOF034-20","United Kingdom Border Agency","HOF034-20","CenGov't","CenGov't"]
["HRA033","Health Research Authority","HRA033","CenGov't","CenGov't"]
["HTA033","Human Tissue Authority","HTA033","CenGov't","CenGov't"]
["HTB087","Help to Buy (HMT) Limited","HTB087","CenGov't","CenGov't"]
["IIF848","Northern Ireland National Insurance Fund","IIF848","CenGov't","CenGov't"]
["ILF032","Independent Living Fund (ILF)","ILF032","CenGov't","CenGov't"]
["IPO034","Independent Police Complaints Commission","IPO034","CenGov't","CenGov't"]
["IRT813","HM Revenue and Customs Trust Statement","IRT813","CenGov't","CenGov't"]
["ISA034","Independent Safeguarding Authority","ISA034","CenGov't","CenGov't"]
["IWM048","Imperial War Museum","IWM048","CenGov't","CenGov't"]
["JNC003","Joint Nature Conservation Committee","JNC003","CenGov't","CenGov't"]
["KEW003","Royal Botanic Gardens, Kew","KEW003","CenGov't","CenGov't"]
["LCC066","Low Carbon Contracts Company Ltd","LCC066","CenGov't","CenGov't"]
["LEC047","Legal Aid Agency","LEC047","CenGov't","CenGov't"]
["LIT033","NHS Litigation Authority","LIT033","CenGov't","CenGov't"]
["LLW066","LLW Repository Limited","LLW066","CenGov't","CenGov't"]
["LOG048","London Organising Committee of the Olympic Games Limited","LOG048","CenGov't","CenGov't"]
["MAL066","Magnox Limited","MAL066","CenGov't","CenGov't"]
["MAS087","Money Advice Service","MAS087","CenGov't","CenGov't"]
["MIR033","Monitor – Independent Regulator of NHS Foundation Trusts","MIR033","CenGov't","CenGov't"]
["MMO003","Marine Management Organisation","MMO003","CenGov't","CenGov't"]
["MOD017-01","ABF: the Soldiers’ Charity","MOD017-01","CenGov't","CenGov't"]
["MOD017-02","Advisory Committee on Conscientious Objectors","MOD017-02","CenGov't","CenGov't"]
["MOD017-03","Advisory Group on Military Medicine","MOD017-03","CenGov't","CenGov't"]
["MOD017-04","Armed Forces Pay Review Body","MOD017-04","CenGov't","CenGov't"]
["MOD017-05","Central Advisory Committee on Pensions and Compensation","MOD017-05","CenGov't","CenGov't"]
["MOD017-06","Commonwealth War Graves Commission","MOD017-06","CenGov't","CenGov't"]
["MOD017-07","Council of Reserve Forces and Cadet Associations","MOD017-07","CenGov't","CenGov't"]
["MOD017-08","Defence Nuclear Safety Committee","MOD017-08","CenGov't","CenGov't"]
["MOD017-09","Defence Scientific Advisory Council","MOD017-09","CenGov't","CenGov't"]
["MOD017-10","Independent Monitoring Board for the Military Corrective Training Centre (MCTC) Colchester","MOD017-10","CenGov't","CenGov't"]
["MOD017-11","Ministry of Defence","MOD017-11","CenGov't","CenGov't"]
["MOD017-12","National Employer Advisory Board","MOD017-12","CenGov't","CenGov't"]
["MOD017-13","National Museum of the Royal Navy","MOD017-13","CenGov't","CenGov't"]
["MOD017-14","Nuclear Research Advisory Council","MOD017-14","CenGov't","CenGov't"]
["MOD017-15","Review Board for Government Contracts","MOD017-15","CenGov't","CenGov't"]
["MOD017-16","Science Advisory Committee on the Medical Implications of Less Lethal Weapons","MOD017-16","CenGov't","CenGov't"]
["MOD017-17","War Pensions Committees","MOD017-17","CenGov't","CenGov't"]
["MOD017-18","Single Source Regulation Office","MOD017-18","CenGov't","CenGov't"]
["MOJ047-01","Administrative Justice and Tribunals Council","MOJ047-01","CenGov't","CenGov't"]
["MOJ047-02","Advisory Committee on Civil Costs","MOJ047-02","CenGov't","CenGov't"]
["MOJ047-03","Advisory Committees on Justices of the Peace in England and Wales","MOJ047-03","CenGov't","CenGov't"]
["MOJ047-04","Advisory Council on National Records and Archives","MOJ047-04","CenGov't","CenGov't"]
["MOJ047-05","Advisory Panel on Public Sector Information","MOJ047-05","CenGov't","CenGov't"]
["MOJ047-06","Assessor for Compensation of Miscarriages of Justice","MOJ047-06","CenGov't","CenGov't"]
["MOJ047-07","Civil Justice Council","MOJ047-07","CenGov't","CenGov't"]
["MOJ047-08","Civil Procedure Rule Committee","MOJ047-08","CenGov't","CenGov't"]
["MOJ047-09","Commission on a Bill of Rights","MOJ047-09","CenGov't","CenGov't"]
["MOJ047-10","Court Funds Office  ","MOJ047-10","CenGov't","CenGov't"]
["MOJ047-11","Criminal Cases Review Commission","MOJ047-11","CenGov't","CenGov't"]
["MOJ047-12","Criminal Procedure Rule Committee","MOJ047-12","CenGov't","CenGov't"]
["MOJ047-13","Crown Court Rule Committee","MOJ047-13","CenGov't","CenGov't"]
["MOJ047-14","Family Justice Council","MOJ047-14","CenGov't","CenGov't"]
["MOJ047-15","Family Procedure Rules Committee","MOJ047-15","CenGov't","CenGov't"]
["MOJ047-16","Her Majesty's Courts and Tribunal Service","MOJ047-16","CenGov't","CenGov't"]
["MOJ047-17","Independent Advisory Panel on Deaths in Custody","MOJ047-17","CenGov't","CenGov't"]
["MOJ047-18","Independent Monitoring Boards of Prisons, Immigration Removal Centres and Immigration Holding Facilities ","MOJ047-18","CenGov't","CenGov't"]
["MOJ047-19","Insolvency Rules Committee","MOJ047-19","CenGov't","CenGov't"]
["MOJ047-20","Judicial Appointments and Conduct Ombudsman","MOJ047-20","CenGov't","CenGov't"]
["MOJ047-21","Judicial Appointments Commission","MOJ047-21","CenGov't","CenGov't"]
["MOJ047-22","Judicial College","MOJ047-22","CenGov't","CenGov't"]
["MOJ047-23","Judicial Communications Office","MOJ047-23","CenGov't","CenGov't"]
["MOJ047-24","Judicial Office","MOJ047-24","CenGov't","CenGov't"]
["MOJ047-25","Law Commission","MOJ047-25","CenGov't","CenGov't"]
["MOJ047-26","Legal Services Board","MOJ047-26","CenGov't","CenGov't"]
["MOJ047-27","Magistrates’ Courts Rules Committee","MOJ047-27","CenGov't","CenGov't"]
["MOJ047-28","Ministry of Justice","MOJ047-28","CenGov't","CenGov't"]
["MOJ047-29","National Offender Management Service","MOJ047-29","CenGov't","CenGov't"]
["MOJ047-30","Office for Judicial Complaints","MOJ047-30","CenGov't","CenGov't"]
["MOJ047-31","Office for Legal Complaints","MOJ047-31","CenGov't","CenGov't"]
["MOJ047-32","Office of HM Inspectorate of Prisons","MOJ047-32","CenGov't","CenGov't"]
["MOJ047-33","Office of HM Inspectorate of Probation","MOJ047-33","CenGov't","CenGov't"]
["MOJ047-34","Office of the Judge Advocate General","MOJ047-34","CenGov't","CenGov't"]
["MOJ047-35","Office of the Public Guardian","MOJ047-35","CenGov't","CenGov't"]
["MOJ047-36","Official Solicitor and Public Trustee","MOJ047-36","CenGov't","CenGov't"]
["MOJ047-37","Parole Board for England and Wales","MOJ047-37","CenGov't","CenGov't"]
["MOJ047-38","Prison Service Pay Review Body","MOJ047-38","CenGov't","CenGov't"]
["MOJ047-39","Prisons and Probation Ombudsman","MOJ047-39","CenGov't","CenGov't"]
["MOJ047-40","Probation Trusts (as established under section 5 of the Offender Management Act 2007)","MOJ047-40","CenGov't","CenGov't"]
["MOJ047-41","Restraint Advisory Board","MOJ047-41","CenGov't","CenGov't"]
["MOJ047-42","Sentencing Council for England and Wales","MOJ047-42","CenGov't","CenGov't"]
["MOJ047-43","Tribunal Procedure Committee","MOJ047-43","CenGov't","CenGov't"]
["MOJ047-44","Victims Advisory Panel","MOJ047-44","CenGov't","CenGov't"]
["MOJ047-45","Victims’ Commissioner","MOJ047-45","CenGov't","CenGov't"]
["MRC084","Medical Research Council","MRC084","CenGov't","CenGov't"]
["NAM017","National Army Museum","NAM017","CenGov't","CenGov't"]
["NCA034","National Crime Agency","NCA034","CenGov't","CenGov't"]
["NCE033","National Institute for Health and Clinical Excellence","NCE033","CenGov't","CenGov't"]
["NDA066","Nuclear Decommissioning Authority","NDA066","CenGov't","CenGov't"]
["NDL066","NDA Archives Limited","NDL066","CenGov't","CenGov't"]
["NEN003","Natural England","NEN003","CenGov't","CenGov't"]
["NER084","Natural Environment Research Council","NER084","CenGov't","CenGov't"]
["NFC003","National Forest Company","NFC003","CenGov't","CenGov't"]
["NFTCHR","NHS Charitable Trusts","NFTCHR","CenGov't","CenGov't"]
["NGL048","National Gallery","NGL048","CenGov't","CenGov't"]
["NHF048","National Heritage Memorial Fund","NHF048","CenGov't","CenGov't"]
["NHM048","Natural History Museum","NHM048","CenGov't","CenGov't"]
["NIF822","National Insurance Fund","NIF822","CenGov't","CenGov't"]
["NLD048","National Lottery Distribution Fund","NLD048","CenGov't","CenGov't"]
["NLF888","National Loans Fund","NLF888","CenGov't","CenGov't"]
["NLL048","National Lottery UK Sports Council Lottery","NLL048","CenGov't","CenGov't"]
["NMG048","National Museums and Galleries on Merseyside","NMG048","CenGov't","CenGov't"]
["NMM048","National Maritime Museum","NMM048","CenGov't","CenGov't"]
["NPG048","National Portrait Gallery","NPG048","CenGov't","CenGov't"]
["NPS033","NHS Property Services Ltd","NPS033","CenGov't","CenGov't"]
["NSI049","National Savings and Investments","NSI049","CenGov't","CenGov't"]
["NUL066","Nuclear Liabilities Fund","NUL066","CenGov't","CenGov't"]
["OBR087","Office for Budget Responsibility","OBR087","CenGov't","CenGov't"]
["OFC084","OFCOM","OFC084","CenGov't","CenGov't"]
["OFT074","Office of Fair Trading","OFT074","CenGov't","CenGov't"]
["OGE020","Office of Gas and Electricity Markets (OFGEM)","OGE020","CenGov't","CenGov't"]
["OIC047","Office of the Information Commissioner","OIC047","CenGov't","CenGov't"]
["OLA048","Olympic Delivery Authority","OLA048","CenGov't","CenGov't"]
["OLD048","Olympic Lottery Distributor","OLD048","CenGov't","CenGov't"]
["OLF048","Olympic Lottery Distribution Fund","OLF048","CenGov't","CenGov't"]
["ONS005","UK Statistics Authority (ONS)","ONS005","CenGov't","CenGov't"]
["ORC010","Office of the Registrar of Consultant Lobbyists","ORC010","CenGov't","CenGov't"]
["ORR088","Office of Rail Regulation","ORR088","CenGov't","CenGov't"]
["OSE072","Office for Standard in Education children's Services and Skills (Ofsted)","OSE072","CenGov't","CenGov't"]
["PFT087","Infrastructure Finance Unit Limited","PFT087","CenGov't","CenGov't"]
["PHE033","Public Health England","PHE033","CenGov't","CenGov't"]
["PIN085","Planning Inspectorate","PIN085","CenGov't","CenGov't"]
["PLT066","Petroleum Licences Trust Statement","PLT066","CenGov't","CenGov't"]
["PWL888","Public Works Loans Board","PWL888","CenGov't","CenGov't"]
["QEC085","Queen Elizabeth II Conference Centre","QEC085","PCs","PCs"]
["RAF017","Royal Air Force Museum","RAF017","CenGov't","CenGov't"]
["RAM048","Royal Armouries Museum","RAM048","CenGov't","CenGov't"]
["RHC017","Royal Hospital Chelsea","RHC017","CenGov't","CenGov't"]
["RHH087","Royal Household","RHH087","CenGov't","CenGov't"]
["RSR066","Research Site Restoration Limited","RSR066","CenGov't","CenGov't"]
["RWM066","Radioactive Waste Management Limited","RWM066","CenGov't","CenGov't"]
["SEL048","Sport England Lottery","SEL048","CenGov't","CenGov't"]
["SFL066","Sellafield Limited","SFL066","CenGov't","CenGov't"]
["SFO019","Serious Fraud Office","SFO019","CenGov't","CenGov't"]
["SIA003","Sea Fish Industry Authority","SIA003","CenGov't","CenGov't"]
["SIV007","Security and Intelligence Agencies","SIV007","CenGov't","CenGov't"]
["SIY034","Security Industry Authority","SIY034","CenGov't","CenGov't"]
["SJS048","Sir John Soane’s Museum","SJS048","CenGov't","CenGov't"]
["SLC084","Student Loans Company Limited","SLC084","CenGov't","CenGov't"]
["SMG048","Science Museum Group","SMG048","CenGov't","CenGov't"]
["SPE048","English Sports Council","SPE048","CenGov't","CenGov't"]
["SSC084","UK SBS","SSC084","CenGov't","CenGov't"]
["STF084","Science and Technology Facilities Council","STF084","CenGov't","CenGov't"]
["SUP072","The UK Supreme Court","SUP072","CenGov't","CenGov't"]
["TGL048","Tate Gallery","TGL048","CenGov't","CenGov't"]
["THO085","The Housing Ombudsman","THO085","CenGov't","CenGov't"]
["TNA067","The National Archives","TNA067","CenGov't","CenGov't"]
["TPR032","The Pensions Regulator (TPR)","TPR032","CenGov't","CenGov't"]
["TPS904","Teachers' Pension Scheme (England & Wales)","TPS904","CenGov't","CenGov't"]
["TST084","Innovate UK","TST084","CenGov't","CenGov't"]
["UKA084","United Kingdom Atomic Energy Authority","UKA084","CenGov't","CenGov't"]
["UKC084","United Kingdom Commission for Employment and Skills","UKC084","CenGov't","CenGov't"]
["UKF087","UK Financial Investments Limited","UKF087","CenGov't","CenGov't"]
["UKR087","UKAR Asset Resolution Limited","UKR087","CenGov't","CenGov't"]
["UKS048","UK Sport","UKS048","CenGov't","CenGov't"]
["UKT013","UK Trade & Investment","UKT013","CenGov't","CenGov't"]
["VAM048","Victoria and Albert Museum","VAM048","CenGov't","CenGov't"]
["VED837","Vehicle Excise Duty (Trust Statement for DVLA)","VED837","CenGov't","CenGov't"]
["VGB048","VisitBritain","VGB048","CenGov't","CenGov't"]
["VOS004-01","Traffic Commissioners/Licensing Authorities","VOS004-01","CenGov't","CenGov't"]
["VTE085","Valuation Tribunal For England","VTE085","CenGov't","CenGov't"]
["VTS085","Valuation Tribunal Service","VTS085","CenGov't","CenGov't"]
["WCO048","Wallace Collection","WCO048","CenGov't","CenGov't"]
["WFC048","S4C","WFC048","CenGov't","CenGov't"]
["WNU085","West Northamptonshire Development Corporation","WNU085","CenGov't","CenGov't"]
["WSR057","Water Services Regulation Authority","WSR057","CenGov't","CenGov't"]
["YJB047","Youth Justice Board for England and Wales","YJB047","CenGov't","CenGov't"]
["E0101X","Bath & North East Somerset Council","E0101X","EngLocGov't","LocGov't"]
["E0102X","Bristol City Council","E0102X","EngLocGov't","LocGov't"]
["E0103X","South Gloucestershire Council","E0103X","EngLocGov't","LocGov't"]
["E0104X","North Somerset Council","E0104X","EngLocGov't","LocGov't"]
["E0201X","Luton Borough Council","E0201X","EngLocGov't","LocGov't"]
["E0202X","Bedford Unitary Authority","E0202X","EngLocGov't","LocGov't"]
["E0203X","Central Bedfordshire Unitary Authority","E0203X","EngLocGov't","LocGov't"]
["E0301X","Bracknell Forest Borough Council","E0301X","EngLocGov't","LocGov't"]
["E0302X","West Berkshire Council","E0302X","EngLocGov't","LocGov't"]
["E0303X","Reading Borough Council","E0303X","EngLocGov't","LocGov't"]
["E0304X","Slough Borough Council","E0304X","EngLocGov't","LocGov't"]
["E0305X","Windsor and Maidenhead (Royal Borough of)","E0305X","EngLocGov't","LocGov't"]
["E0306X","Wokingham Council","E0306X","EngLocGov't","LocGov't"]
["E0401X","Milton Keynes Council","E0401X","EngLocGov't","LocGov't"]
["E0421X","Buckinghamshire County Council","E0421X","EngLocGov't","LocGov't"]
["E0431X","Aylesbury Vale District Council","E0431X","EngLocGov't","LocGov't"]
["E0432X","Chiltern District Council","E0432X","EngLocGov't","LocGov't"]
["E0434X","South Bucks District Council","E0434X","EngLocGov't","LocGov't"]
["E0435X","Wycombe District Council","E0435X","EngLocGov't","LocGov't"]
["E0501X","Peterborough City Council","E0501X","EngLocGov't","LocGov't"]
["E0521X","Cambridgeshire County Council","E0521X","EngLocGov't","LocGov't"]
["E0531X","Cambridge City Council","E0531X","EngLocGov't","LocGov't"]
["E0532X","East Cambridgeshire District Council","E0532X","EngLocGov't","LocGov't"]
["E0533X","Fenland District Council","E0533X","EngLocGov't","LocGov't"]
["E0536X","South Cambridgeshire District Council","E0536X","EngLocGov't","LocGov't"]
["E0551X","Huntingdonshire District Council","E0551X","EngLocGov't","LocGov't"]
["E0601X","Halton Borough Council","E0601X","EngLocGov't","LocGov't"]
["E0602X","Warrington Borough Council","E0602X","EngLocGov't","LocGov't"]
["E0603X","Cheshire East Unitary Authority","E0603X","EngLocGov't","LocGov't"]
["E0604X","Cheshire West and Chester Unitary Authority","E0604X","EngLocGov't","LocGov't"]
["E0701X","Hartlepool Borough Council","E0701X","EngLocGov't","LocGov't"]
["E0702X","Middlesbrough Council","E0702X","EngLocGov't","LocGov't"]
["E0703X","Redcar and Cleveland Borough Council","E0703X","EngLocGov't","LocGov't"]
["E0704X","Stockton-on-Tees Borough Council","E0704X","EngLocGov't","LocGov't"]
["E0801X","Cornwall Unitary Authority","E0801X","EngLocGov't","LocGov't"]
["E0920X","Cumbria County Council","E0920X","EngLocGov't","LocGov't"]
["E0931X","Allerdale Borough Council","E0931X","EngLocGov't","LocGov't"]
["E0932X","Barrow-in-Furness Borough Council","E0932X","EngLocGov't","LocGov't"]
["E0933X","Carlisle City Council","E0933X","EngLocGov't","LocGov't"]
["E0934X","Copeland Borough Council","E0934X","EngLocGov't","LocGov't"]
["E0935X","Eden District Council","E0935X","EngLocGov't","LocGov't"]
["E0936X","South Lakeland District Council","E0936X","EngLocGov't","LocGov't"]
["E1001X","Derby City Council","E1001X","EngLocGov't","LocGov't"]
["E1021X","Derbyshire County Council","E1021X","EngLocGov't","LocGov't"]
["E1031X","Amber Valley Borough Council","E1031X","EngLocGov't","LocGov't"]
["E1032X","Bolsover District Council","E1032X","EngLocGov't","LocGov't"]
["E1033X","Chesterfield Borough Council","E1033X","EngLocGov't","LocGov't"]
["E1035X","Derbyshire Dales District Council","E1035X","EngLocGov't","LocGov't"]
["E1036X","Erewash Borough Council","E1036X","EngLocGov't","LocGov't"]
["E1037X","High Peak Borough Council","E1037X","EngLocGov't","LocGov't"]
["E1038X","North East Derbyshire District Council","E1038X","EngLocGov't","LocGov't"]
["E1039X","South Derbyshire District Council","E1039X","EngLocGov't","LocGov't"]
["E1101X","Plymouth City Council","E1101X","EngLocGov't","LocGov't"]
["E1102X","Torbay Council","E1102X","EngLocGov't","LocGov't"]
["E1121X","Devon County Council","E1121X","EngLocGov't","LocGov't"]
["E1131X","East Devon District Council","E1131X","EngLocGov't","LocGov't"]
["E1132X","Exeter City Council","E1132X","EngLocGov't","LocGov't"]
["E1133X","Mid Devon District Council","E1133X","EngLocGov't","LocGov't"]
["E1134X","North Devon District Council","E1134X","EngLocGov't","LocGov't"]
["E1136X","South Hams District Council","E1136X","EngLocGov't","LocGov't"]
["E1137X","Teignbridge District Council","E1137X","EngLocGov't","LocGov't"]
["E1139X","Torridge District Council","E1139X","EngLocGov't","LocGov't"]
["E1140X","West Devon Borough Council","E1140X","EngLocGov't","LocGov't"]
["E1201X","Poole (Borough of)","E1201X","EngLocGov't","LocGov't"]
["E1202X","Bournemouth Council","E1202X","EngLocGov't","LocGov't"]
["E1221X","Dorset County Council","E1221X","EngLocGov't","LocGov't"]
["E1232X","Christchurch Borough Council","E1232X","EngLocGov't","LocGov't"]
["E1233X","East Dorset District Council","E1233X","EngLocGov't","LocGov't"]
["E1234X","North Dorset District Council","E1234X","EngLocGov't","LocGov't"]
["E1236X","Purbeck District Council","E1236X","EngLocGov't","LocGov't"]
["E1237X","West Dorset District Council","E1237X","EngLocGov't","LocGov't"]
["E1238X","Weymouth and Portland Borough Council","E1238X","EngLocGov't","LocGov't"]
["E1301X","Darlington Borough Council","E1301X","EngLocGov't","LocGov't"]
["E1302X","County Durham Unitary Authority","E1302X","EngLocGov't","LocGov't"]
["E1401X","Brighton & Hove City Council","E1401X","EngLocGov't","LocGov't"]
["E1421X","East Sussex County Council","E1421X","EngLocGov't","LocGov't"]
["E1432X","Eastbourne Borough Council","E1432X","EngLocGov't","LocGov't"]
["E1433X","Hastings Borough Council","E1433X","EngLocGov't","LocGov't"]
["E1435X","Lewes District Council","E1435X","EngLocGov't","LocGov't"]
["E1436X","Rother District Council","E1436X","EngLocGov't","LocGov't"]
["E1437X","Wealden District Council","E1437X","EngLocGov't","LocGov't"]
["E1501X","Southend-on-Sea Borough Council","E1501X","EngLocGov't","LocGov't"]
["E1502X","Thurrock Unitary Authority","E1502X","EngLocGov't","LocGov't"]
["E1521X","Essex County Council","E1521X","EngLocGov't","LocGov't"]
["E1531X","Basildon District Council","E1531X","EngLocGov't","LocGov't"]
["E1532X","Braintree District Council","E1532X","EngLocGov't","LocGov't"]
["E1533X","Brentwood Borough Council","E1533X","EngLocGov't","LocGov't"]
["E1534X","Castle Point Borough Council","E1534X","EngLocGov't","LocGov't"]
["E1535X","Chelmsford Borough Council","E1535X","EngLocGov't","LocGov't"]
["E1536X","Colchester Borough Council","E1536X","EngLocGov't","LocGov't"]
["E1537X","Epping Forest District Council","E1537X","EngLocGov't","LocGov't"]
["E1538X","Harlow District Council","E1538X","EngLocGov't","LocGov't"]
["E1539X","Maldon District Council","E1539X","EngLocGov't","LocGov't"]
["E1540X","Rochford District Council","E1540X","EngLocGov't","LocGov't"]
["E1542X","Tendring District Council","E1542X","EngLocGov't","LocGov't"]
["E1544X","Uttlesford District Council","E1544X","EngLocGov't","LocGov't"]
["E1620X","Gloucestershire County Council","E1620X","EngLocGov't","LocGov't"]
["E1631X","Cheltenham Borough Council","E1631X","EngLocGov't","LocGov't"]
["E1632X","Cotswold District Council","E1632X","EngLocGov't","LocGov't"]
["E1633X","Forest of Dean District Council","E1633X","EngLocGov't","LocGov't"]
["E1634X","Gloucester City Council","E1634X","EngLocGov't","LocGov't"]
["E1635X","Stroud District Council","E1635X","EngLocGov't","LocGov't"]
["E1636X","Tewkesbury Borough Council","E1636X","EngLocGov't","LocGov't"]
["E1701X","Portsmouth City Council","E1701X","EngLocGov't","LocGov't"]
["E1702X","Southampton City Council","E1702X","EngLocGov't","LocGov't"]
["E1721X","Hampshire County Council","E1721X","EngLocGov't","LocGov't"]
["E1731X","Basingstoke and Deane Borough Council","E1731X","EngLocGov't","LocGov't"]
["E1732X","East Hampshire District Council","E1732X","EngLocGov't","LocGov't"]
["E1733X","Eastleigh Borough Council","E1733X","EngLocGov't","LocGov't"]
["E1734X","Fareham Borough Council","E1734X","EngLocGov't","LocGov't"]
["E1735X","Gosport Borough Council","E1735X","EngLocGov't","LocGov't"]
["E1736X","Hart District Council","E1736X","EngLocGov't","LocGov't"]
["E1737X","Havant Borough Council","E1737X","EngLocGov't","LocGov't"]
["E1738X","New Forest District Council","E1738X","EngLocGov't","LocGov't"]
["E1740X","Rushmoor Borough Council","E1740X","EngLocGov't","LocGov't"]
["E1742X","Test Valley Borough Council","E1742X","EngLocGov't","LocGov't"]
["E1743X","Winchester City Council","E1743X","EngLocGov't","LocGov't"]
["E1801X","Herefordshire Council","E1801X","EngLocGov't","LocGov't"]
["E1821X","Worcestershire County Council","E1821X","EngLocGov't","LocGov't"]
["E1831X","Bromsgrove District Council","E1831X","EngLocGov't","LocGov't"]
["E1835X","Redditch Borough Council","E1835X","EngLocGov't","LocGov't"]
["E1837X","Worcester City Council","E1837X","EngLocGov't","LocGov't"]
["E1838X","Wychavon District Council","E1838X","EngLocGov't","LocGov't"]
["E1839X","Wyre Forest District Council","E1839X","EngLocGov't","LocGov't"]
["E1851X","Malvern Hills District Council","E1851X","EngLocGov't","LocGov't"]
["E1920X","Hertfordshire County Council","E1920X","EngLocGov't","LocGov't"]
["E1931X","Broxbourne Borough Council","E1931X","EngLocGov't","LocGov't"]
["E1932X","Dacorum Borough Council","E1932X","EngLocGov't","LocGov't"]
["E1933X","East Hertfordshire District Council","E1933X","EngLocGov't","LocGov't"]
["E1934X","Hertsmere Borough Council","E1934X","EngLocGov't","LocGov't"]
["E1935X","North Hertfordshire District Council","E1935X","EngLocGov't","LocGov't"]
["E1936X","St Albans City and District Council","E1936X","EngLocGov't","LocGov't"]
["E1937X","Stevenage Borough Council","E1937X","EngLocGov't","LocGov't"]
["E1938X","Three Rivers District Council","E1938X","EngLocGov't","LocGov't"]
["E1939X","Watford Borough Council","E1939X","EngLocGov't","LocGov't"]
["E1940X","Welwyn Hatfield District Council","E1940X","EngLocGov't","LocGov't"]
["E2001X","East Riding of Yorkshire Council","E2001X","EngLocGov't","LocGov't"]
["E2002X","Kingston upon Hull City Council","E2002X","EngLocGov't","LocGov't"]
["E2003X","North East Lincolnshire Council","E2003X","EngLocGov't","LocGov't"]
["E2004X","North Lincolnshire Council","E2004X","EngLocGov't","LocGov't"]
["E2101X","Isle of Wight Council","E2101X","EngLocGov't","LocGov't"]
["E2201X","Medway Towns Unitary Authority (The)","E2201X","EngLocGov't","LocGov't"]
["E2221X","Kent County Council","E2221X","EngLocGov't","LocGov't"]
["E2231X","Ashford Borough Council","E2231X","EngLocGov't","LocGov't"]
["E2232X","Canterbury City Council","E2232X","EngLocGov't","LocGov't"]
["E2233X","Dartford Borough Council","E2233X","EngLocGov't","LocGov't"]
["E2234X","Dover District Council","E2234X","EngLocGov't","LocGov't"]
["E2236X","Gravesham Borough Council","E2236X","EngLocGov't","LocGov't"]
["E2237X","Maidstone Borough Council","E2237X","EngLocGov't","LocGov't"]
["E2239X","Sevenoaks District Council","E2239X","EngLocGov't","LocGov't"]
["E2240X","Shepway District Council","E2240X","EngLocGov't","LocGov't"]
["E2241X","Swale Borough Council","E2241X","EngLocGov't","LocGov't"]
["E2242X","Thanet District Council","E2242X","EngLocGov't","LocGov't"]
["E2243X","Tonbridge and Malling Borough Council","E2243X","EngLocGov't","LocGov't"]
["E2244X","Tunbridge Wells Borough Council","E2244X","EngLocGov't","LocGov't"]
["E2301X","Blackburn with Darwen Unitary Authority","E2301X","EngLocGov't","LocGov't"]
["E2302X","Blackpool Unitary Authority","E2302X","EngLocGov't","LocGov't"]
["E2321X","Lancashire County Council","E2321X","EngLocGov't","LocGov't"]
["E2333X","Burnley Borough Council","E2333X","EngLocGov't","LocGov't"]
["E2334X","Chorley Borough Council","E2334X","EngLocGov't","LocGov't"]
["E2335X","Fylde Borough Council","E2335X","EngLocGov't","LocGov't"]
["E2336X","Hyndburn Borough Council","E2336X","EngLocGov't","LocGov't"]
["E2337X","Lancaster City Council","E2337X","EngLocGov't","LocGov't"]
["E2338X","Pendle Borough Council","E2338X","EngLocGov't","LocGov't"]
["E2339X","Preston City Council","E2339X","EngLocGov't","LocGov't"]
["E2340X","Ribble Valley Borough Council","E2340X","EngLocGov't","LocGov't"]
["E2341X","Rossendale Borough Council","E2341X","EngLocGov't","LocGov't"]
["E2342X","South Ribble Borough Council","E2342X","EngLocGov't","LocGov't"]
["E2343X","West Lancashire District Council","E2343X","EngLocGov't","LocGov't"]
["E2344X","Wyre Borough Council","E2344X","EngLocGov't","LocGov't"]
["E2401X","Leicester City Council","E2401X","EngLocGov't","LocGov't"]
["E2402X","Rutland County Council","E2402X","EngLocGov't","LocGov't"]
["E2421X","Leicestershire County Council","E2421X","EngLocGov't","LocGov't"]
["E2431X","Blaby District Council","E2431X","EngLocGov't","LocGov't"]
["E2432X","Charnwood Borough Council","E2432X","EngLocGov't","LocGov't"]
["E2433X","Harborough District Council","E2433X","EngLocGov't","LocGov't"]
["E2434X","Hinckley and Bosworth Borough Council","E2434X","EngLocGov't","LocGov't"]
["E2436X","Melton Borough Council","E2436X","EngLocGov't","LocGov't"]
["E2437X","North West Leicestershire District Council","E2437X","EngLocGov't","LocGov't"]
["E2438X","Oadby and Wigston Borough Council","E2438X","EngLocGov't","LocGov't"]
["E2520X","Lincolnshire County Council","E2520X","EngLocGov't","LocGov't"]
["E2531X","Boston Borough Council","E2531X","EngLocGov't","LocGov't"]
["E2532X","East Lindsey District Council","E2532X","EngLocGov't","LocGov't"]
["E2533X","Lincoln City Council","E2533X","EngLocGov't","LocGov't"]
["E2534X","North Kesteven District Council","E2534X","EngLocGov't","LocGov't"]
["E2535X","South Holland District Council","E2535X","EngLocGov't","LocGov't"]
["E2536X","South Kesteven District Council","E2536X","EngLocGov't","LocGov't"]
["E2537X","West Lindsey District Council","E2537X","EngLocGov't","LocGov't"]
["E2620X","Norfolk County Council","E2620X","EngLocGov't","LocGov't"]
["E2631X","Breckland District Council","E2631X","EngLocGov't","LocGov't"]
["E2632X","Broadland District Council","E2632X","EngLocGov't","LocGov't"]
["E2633X","Great Yarmouth Borough Council","E2633X","EngLocGov't","LocGov't"]
["E2634X","Kings Lynn and West Norfolk Borough Council","E2634X","EngLocGov't","LocGov't"]
["E2635X","North Norfolk District Council","E2635X","EngLocGov't","LocGov't"]
["E2636X","Norwich City Council","E2636X","EngLocGov't","LocGov't"]
["E2637X","South Norfolk District Council","E2637X","EngLocGov't","LocGov't"]
["E2701X","City of York Council","E2701X","EngLocGov't","LocGov't"]
["E2721X","North Yorkshire County Council","E2721X","EngLocGov't","LocGov't"]
["E2731X","Craven District Council","E2731X","EngLocGov't","LocGov't"]
["E2732X","Hambleton District Council","E2732X","EngLocGov't","LocGov't"]
["E2734X","Richmondshire District Council","E2734X","EngLocGov't","LocGov't"]
["E2736X","Scarborough Borough Council","E2736X","EngLocGov't","LocGov't"]
["E2753X","Harrogate Borough Council","E2753X","EngLocGov't","LocGov't"]
["E2755X","Ryedale District Council","E2755X","EngLocGov't","LocGov't"]
["E2757X","Selby District Council","E2757X","EngLocGov't","LocGov't"]
["E2820X","Northamptonshire County Council","E2820X","EngLocGov't","LocGov't"]
["E2831X","Corby Borough Council","E2831X","EngLocGov't","LocGov't"]
["E2832X","Daventry District Council","E2832X","EngLocGov't","LocGov't"]
["E2833X","East Northamptonshire District Council","E2833X","EngLocGov't","LocGov't"]
["E2834X","Kettering Borough Council","E2834X","EngLocGov't","LocGov't"]
["E2835X","Northampton Borough Council","E2835X","EngLocGov't","LocGov't"]
["E2836X","South Northamptonshire Council","E2836X","EngLocGov't","LocGov't"]
["E2837X","Wellingborough Borough Council","E2837X","EngLocGov't","LocGov't"]
["E2901X","Northumberland Unitary Authority","E2901X","EngLocGov't","LocGov't"]
["E3001X","Nottingham City Council","E3001X","EngLocGov't","LocGov't"]
["E3021X","Nottinghamshire County Council","E3021X","EngLocGov't","LocGov't"]
["E3031X","Ashfield District Council","E3031X","EngLocGov't","LocGov't"]
["E3032X","Bassetlaw District Council","E3032X","EngLocGov't","LocGov't"]
["E3033X","Broxtowe Borough Council","E3033X","EngLocGov't","LocGov't"]
["E3034X","Gedling Borough Council","E3034X","EngLocGov't","LocGov't"]
["E3035X","Mansfield District Council","E3035X","EngLocGov't","LocGov't"]
["E3036X","Newark and Sherwood District Council","E3036X","EngLocGov't","LocGov't"]
["E3038X","Rushcliffe Borough Council","E3038X","EngLocGov't","LocGov't"]
["E3120X","Oxfordshire County Council","E3120X","EngLocGov't","LocGov't"]
["E3131X","Cherwell District Council","E3131X","EngLocGov't","LocGov't"]
["E3132X","Oxford City Council","E3132X","EngLocGov't","LocGov't"]
["E3133X","South Oxfordshire District Council","E3133X","EngLocGov't","LocGov't"]
["E3134X","Vale of White Horse District Council","E3134X","EngLocGov't","LocGov't"]
["E3135X","West Oxfordshire District Council","E3135X","EngLocGov't","LocGov't"]
["E3201X","Telford and Wrekin (Borough of)","E3201X","EngLocGov't","LocGov't"]
["E3202X","Shropshire Unitary Authority","E3202X","EngLocGov't","LocGov't"]
["E3320X","Somerset County Council","E3320X","EngLocGov't","LocGov't"]
["E3331X","Mendip District Council","E3331X","EngLocGov't","LocGov't"]
["E3332X","Sedgemoor District Council","E3332X","EngLocGov't","LocGov't"]
["E3333X","Taunton Deane Borough Council","E3333X","EngLocGov't","LocGov't"]
["E3334X","South Somerset District Council","E3334X","EngLocGov't","LocGov't"]
["E3335X","West Somerset District Council","E3335X","EngLocGov't","LocGov't"]
["E3401X","Stoke-on-Trent Unitary Authority","E3401X","EngLocGov't","LocGov't"]
["E3421X","Staffordshire County Council","E3421X","EngLocGov't","LocGov't"]
["E3431X","Cannock Chase District Council","E3431X","EngLocGov't","LocGov't"]
["E3432X","East Staffordshire Borough Council","E3432X","EngLocGov't","LocGov't"]
["E3433X","Lichfield District Council","E3433X","EngLocGov't","LocGov't"]
["E3434X","Newcastle-under-Lyme Borough Council","E3434X","EngLocGov't","LocGov't"]
["E3435X","South Staffordshire District Council","E3435X","EngLocGov't","LocGov't"]
["E3436X","Stafford Borough Council","E3436X","EngLocGov't","LocGov't"]
["E3437X","Staffordshire Moorlands District Council","E3437X","EngLocGov't","LocGov't"]
["E3439X","Tamworth Borough Council","E3439X","EngLocGov't","LocGov't"]
["E3520X","Suffolk County Council","E3520X","EngLocGov't","LocGov't"]
["E3531X","Babergh District Council","E3531X","EngLocGov't","LocGov't"]
["E3532X","Forest Heath District Council","E3532X","EngLocGov't","LocGov't"]
["E3533X","Ipswich Borough Council","E3533X","EngLocGov't","LocGov't"]
["E3534X","Mid Suffolk District Council","E3534X","EngLocGov't","LocGov't"]
["E3535X","St Edmundsbury Borough Council","E3535X","EngLocGov't","LocGov't"]
["E3536X","Suffolk Coastal District Council","E3536X","EngLocGov't","LocGov't"]
["E3537X","Waveney District Council","E3537X","EngLocGov't","LocGov't"]
["E3620X","Surrey County Council","E3620X","EngLocGov't","LocGov't"]
["E3631X","Elmbridge Borough Council","E3631X","EngLocGov't","LocGov't"]
["E3632X","Epsom and Ewell Borough Council","E3632X","EngLocGov't","LocGov't"]
["E3633X","Guildford Borough Council","E3633X","EngLocGov't","LocGov't"]
["E3634X","Mole Valley District Council","E3634X","EngLocGov't","LocGov't"]
["E3635X","Reigate and Banstead Borough Council","E3635X","EngLocGov't","LocGov't"]
["E3636X","Runnymede Borough Council","E3636X","EngLocGov't","LocGov't"]
["E3637X","Spelthorne Borough Council","E3637X","EngLocGov't","LocGov't"]
["E3638X","Surrey Heath Borough Council","E3638X","EngLocGov't","LocGov't"]
["E3639X","Tandridge District Council","E3639X","EngLocGov't","LocGov't"]
["E3640X","Waverley Borough Council","E3640X","EngLocGov't","LocGov't"]
["E3641X","Woking Borough Council","E3641X","EngLocGov't","LocGov't"]
["E3720X","Warwickshire County Council","E3720X","EngLocGov't","LocGov't"]
["E3731X","North Warwickshire Borough Council","E3731X","EngLocGov't","LocGov't"]
["E3732X","Nuneaton and Bedworth Borough Council","E3732X","EngLocGov't","LocGov't"]
["E3733X","Rugby Borough Council","E3733X","EngLocGov't","LocGov't"]
["E3734X","Stratford-on-Avon District Council","E3734X","EngLocGov't","LocGov't"]
["E3735X","Warwick District Council","E3735X","EngLocGov't","LocGov't"]
["E3820X","West Sussex County Council","E3820X","EngLocGov't","LocGov't"]
["E3831X","Adur District Council","E3831X","EngLocGov't","LocGov't"]
["E3832X","Arun District Council","E3832X","EngLocGov't","LocGov't"]
["E3833X","Chichester District Council","E3833X","EngLocGov't","LocGov't"]
["E3834X","Crawley Borough Council","E3834X","EngLocGov't","LocGov't"]
["E3835X","Horsham District Council","E3835X","EngLocGov't","LocGov't"]
["E3836X","Mid Sussex District Council","E3836X","EngLocGov't","LocGov't"]
["E3837X","Worthing Borough Council","E3837X","EngLocGov't","LocGov't"]
["E3901X","Swindon Unitary Authority","E3901X","EngLocGov't","LocGov't"]
["E3902X","Wiltshire Unitary Authority","E3902X","EngLocGov't","LocGov't"]
["E4001X","Isles of Scilly (Council of the)","E4001X","EngLocGov't","LocGov't"]
["E4201X","Bolton Metropolitan Borough Council","E4201X","EngLocGov't","LocGov't"]
["E4202X","Bury Metropolitan Borough Council","E4202X","EngLocGov't","LocGov't"]
["E4203X","Manchester City Council","E4203X","EngLocGov't","LocGov't"]
["E4204X","Oldham Metropolitan Borough Council","E4204X","EngLocGov't","LocGov't"]
["E4205X","Rochdale Borough Council","E4205X","EngLocGov't","LocGov't"]
["E4206X","Salford City Council","E4206X","EngLocGov't","LocGov't"]
["E4207X","Stockport Metropolitan Borough Council","E4207X","EngLocGov't","LocGov't"]
["E4208X","Tameside Metropolitan Borough Council","E4208X","EngLocGov't","LocGov't"]
["E4209X","Trafford Metropolitan Borough Council","E4209X","EngLocGov't","LocGov't"]
["E4210X","Wigan Metropolitan Borough Council","E4210X","EngLocGov't","LocGov't"]
["E4301X","Knowsley Metropolitan Borough Council","E4301X","EngLocGov't","LocGov't"]
["E4302X","Liverpool City Council","E4302X","EngLocGov't","LocGov't"]
["E4303X","St Helens Metropolitan Borough Council","E4303X","EngLocGov't","LocGov't"]
["E4304X","Sefton Metropolitan Borough Council","E4304X","EngLocGov't","LocGov't"]
["E4305X","Wirral Metropolitan Borough Council","E4305X","EngLocGov't","LocGov't"]
["E4401X","Barnsley Metropolitan Borough Council","E4401X","EngLocGov't","LocGov't"]
["E4402X","Doncaster Metropolitan Borough Council","E4402X","EngLocGov't","LocGov't"]
["E4403X","Rotherham Borough Council","E4403X","EngLocGov't","LocGov't"]
["E4404X","Sheffield City Council","E4404X","EngLocGov't","LocGov't"]
["E4501X","Gateshead Council","E4501X","EngLocGov't","LocGov't"]
["E4502X","Newcastle upon Tyne City Council","E4502X","EngLocGov't","LocGov't"]
["E4503X","North Tyneside Metropolitan Borough Council","E4503X","EngLocGov't","LocGov't"]
["E4504X","South Tyneside Council","E4504X","EngLocGov't","LocGov't"]
["E4505X","Sunderland City Metropolitan Borough Council","E4505X","EngLocGov't","LocGov't"]
["E4601X","Birmingham City Council","E4601X","EngLocGov't","LocGov't"]
["E4602X","Coventry City Council","E4602X","EngLocGov't","LocGov't"]
["E4603X","Dudley Metropolitan Borough Council","E4603X","EngLocGov't","LocGov't"]
["E4604X","Sandwell Metropolitan Borough Council","E4604X","EngLocGov't","LocGov't"]
["E4605X","Solihull Metropolitan Borough Council","E4605X","EngLocGov't","LocGov't"]
["E4606X","Walsall Metropolitan Borough Council","E4606X","EngLocGov't","LocGov't"]
["E4607X","Wolverhampton City Council","E4607X","EngLocGov't","LocGov't"]
["E4701X","Bradford City Council","E4701X","EngLocGov't","LocGov't"]
["E4702X","Calderdale Metropolitan Borough Council","E4702X","EngLocGov't","LocGov't"]
["E4703X","Kirklees Metropolitan Council","E4703X","EngLocGov't","LocGov't"]
["E4704X","Leeds City Council","E4704X","EngLocGov't","LocGov't"]
["E4705X","Wakefield City Council","E4705X","EngLocGov't","LocGov't"]
["E5010X","Common Council of the City of London","E5010X","EngLocGov't","LocGov't"]
["E5011X","Camden London Borough Council","E5011X","EngLocGov't","LocGov't"]
["E5012X","Greenwich London Borough Council","E5012X","EngLocGov't","LocGov't"]
["E5013X","Hackney London Borough Council","E5013X","EngLocGov't","LocGov't"]
["E5014X","Hammersmith and Fulham London Borough Council","E5014X","EngLocGov't","LocGov't"]
["E5015X","Islington London Borough Council","E5015X","EngLocGov't","LocGov't"]
["E5016X","Kensington and Chelsea Council (Royal Borough of)","E5016X","EngLocGov't","LocGov't"]
["E5017X","Lambeth London Borough Council","E5017X","EngLocGov't","LocGov't"]
["E5018X","Lewisham London Borough Council","E5018X","EngLocGov't","LocGov't"]
["E5019X","Southwark London Borough Council","E5019X","EngLocGov't","LocGov't"]
["E5020X","Tower Hamlets London Borough Council","E5020X","EngLocGov't","LocGov't"]
["E5021X","Wandsworth London Borough Council","E5021X","EngLocGov't","LocGov't"]
["E5022X","Westminster City Council","E5022X","EngLocGov't","LocGov't"]
["E5030X","Barking & Dagenham London Borough Council","E5030X","EngLocGov't","LocGov't"]
["E5031X","Barnet London Borough Council","E5031X","EngLocGov't","LocGov't"]
["E5032X","Bexley London Borough Council","E5032X","EngLocGov't","LocGov't"]
["E5033X","Brent London Borough Council","E5033X","EngLocGov't","LocGov't"]
["E5034X","Bromley London Borough Council","E5034X","EngLocGov't","LocGov't"]
["E5035X","Croydon London Borough Council","E5035X","EngLocGov't","LocGov't"]
["E5036X","Ealing London Borough Council","E5036X","EngLocGov't","LocGov't"]
["E5037X","Enfield London Borough Council","E5037X","EngLocGov't","LocGov't"]
["E5038X","Haringey London Borough Council","E5038X","EngLocGov't","LocGov't"]
["E5039X","Harrow London Borough Council","E5039X","EngLocGov't","LocGov't"]
["E5040X","Havering London Borough Council","E5040X","EngLocGov't","LocGov't"]
["E5041X","Hillingdon London Borough Council","E5041X","EngLocGov't","LocGov't"]
["E5042X","Hounslow London Borough Council","E5042X","EngLocGov't","LocGov't"]
["E5043X","Kingston upon Thames Council (Royal Borough of)","E5043X","EngLocGov't","LocGov't"]
["E5044X","Merton Borough Council","E5044X","EngLocGov't","LocGov't"]
["E5045X","Newham London Borough Council","E5045X","EngLocGov't","LocGov't"]
["E5046X","Redbridge London Borough Council","E5046X","EngLocGov't","LocGov't"]
["E5047X","Richmond upon Thames Borough Council","E5047X","EngLocGov't","LocGov't"]
["E5048X","Sutton London Borough Council","E5048X","EngLocGov't","LocGov't"]
["E5049X","Waltham Forest London Borough Council","E5049X","EngLocGov't","LocGov't"]
["E5100X","Greater London Authority","E5100X","EngLocGov't","LocGov't"]
["E5102X","London Fire and Emergency Planning Authority","E5102X","EngLocGov't","LocGov't"]
["E5104X","Transport for London","E5104X","EngLocGov't","LocGov't"]
["E5106X","London Legacy Development Corporation","E5106X","EngLocGov't","LocGov't"]
["E6101X","Avon Combined Fire and Rescue Authority","E6101X","EngLocGov't","LocGov't"]
["E6102X","Bedfordshire Combined Fire and Rescue Authority","E6102X","EngLocGov't","LocGov't"]
["E6103X","Berkshire Combined Fire and Rescue Authority","E6103X","EngLocGov't","LocGov't"]
["E6104X","Buckinghamshire Combined Fire and Rescue Authority","E6104X","EngLocGov't","LocGov't"]
["E6105X","Cambridgeshire Combined Fire and Rescue Authority","E6105X","EngLocGov't","LocGov't"]
["E6106X","Cheshire Combined Fire and Rescue Authority","E6106X","EngLocGov't","LocGov't"]
["E6107X","Cleveland Combined Fire and Rescue Authority","E6107X","EngLocGov't","LocGov't"]
["E6110X","Derbyshire Combined Fire and Rescue Authority","E6110X","EngLocGov't","LocGov't"]
["E6112X","Dorset Combined Fire and Rescue Authority","E6112X","EngLocGov't","LocGov't"]
["E6113X","Durham Combined Fire and Rescue Authority","E6113X","EngLocGov't","LocGov't"]
["E6114X","East Sussex Combined Fire and Rescue Authority","E6114X","EngLocGov't","LocGov't"]
["E6115X","Essex Combined Fire and Rescue Authority","E6115X","EngLocGov't","LocGov't"]
["E6117X","Hampshire Combined Fire and Rescue Authority","E6117X","EngLocGov't","LocGov't"]
["E6118X","Hereford & Worcester Combined Fire and Rescue Authority","E6118X","EngLocGov't","LocGov't"]
["E6120X","Humberside Combined Fire and Rescue Authority","E6120X","EngLocGov't","LocGov't"]
["E6122X","Kent Combined Fire and Rescue Authority","E6122X","EngLocGov't","LocGov't"]
["E6123X","Lancashire Combined Fire and Rescue Authority","E6123X","EngLocGov't","LocGov't"]
["E6124X","Leicestershire Combined Fire and Rescue Authority","E6124X","EngLocGov't","LocGov't"]
["E6127X","North Yorkshire Combined Fire and Rescue Authority","E6127X","EngLocGov't","LocGov't"]
["E6130X","Nottinghamshire Combined Fire and Rescue Authority","E6130X","EngLocGov't","LocGov't"]
["E6132X","Shropshire Combined Fire and Rescue Authority","E6132X","EngLocGov't","LocGov't"]
["E6134X","Staffordshire Combined Fire and Rescue Authority","E6134X","EngLocGov't","LocGov't"]
["E6139X","Wiltshire Combined Fire and Rescue Authority","E6139X","EngLocGov't","LocGov't"]
["E6142X","Greater Manchester Fire and Rescue Authority","E6142X","EngLocGov't","LocGov't"]
["E6143X","Merseyside Fire and Rescue Authority","E6143X","EngLocGov't","LocGov't"]
["E6144X","South Yorkshire Fire and Rescue Authority","E6144X","EngLocGov't","LocGov't"]
["E6145X","Tyne and Wear Fire and Rescue Authority","E6145X","EngLocGov't","LocGov't"]
["E6146X","West Midlands Fire and Rescue Authority","E6146X","EngLocGov't","LocGov't"]
["E6147X","West Yorkshire Fire and Rescue Authority","E6147X","EngLocGov't","LocGov't"]
["E6161X","Devon and Somerset Combined Fire and Rescue Authority","E6161X","EngLocGov't","LocGov't"]
["E6201X","East London Waste Authority","E6201X","EngLocGov't","LocGov't"]
["E6202X","Greater Manchester Waste Disposal Authority","E6202X","EngLocGov't","LocGov't"]
["E6204X","Merseyside Waste Disposal Authority","E6204X","EngLocGov't","LocGov't"]
["E6205X","North London Waste Authority","E6205X","EngLocGov't","LocGov't"]
["E6206X","Western Riverside Waste Authority","E6206X","EngLocGov't","LocGov't"]
["E6207X","West London Waste Authority","E6207X","EngLocGov't","LocGov't"]
["E6343X","Merseyside Integrated Transport Authority","E6343X","EngLocGov't","LocGov't"]
["E6344X","South Yorkshire Integrated Transport Authority","E6344X","EngLocGov't","LocGov't"]
["E6345X","Tyne & Wear Integrated Transport Authority","E6345X","EngLocGov't","LocGov't"]
["E6346X","West Midlands Integrated Transport Authority","E6346X","EngLocGov't","LocGov't"]
["E6347X","West Yorkshire Integrated Transport Authority","E6347X","EngLocGov't","LocGov't"]
["E6348X","Greater Manchester Combined Authority","E6348X","EngLocGov't","LocGov't"]
["E6401X","Dartmoor National Park Authority","E6401X","EngLocGov't","LocGov't"]
["E6402X","Exmoor National Park Authority","E6402X","EngLocGov't","LocGov't"]
["E6403X","Lake District National Park Authority","E6403X","EngLocGov't","LocGov't"]
["E6404X","North York Moors National Park Authority","E6404X","EngLocGov't","LocGov't"]
["E6405X","Northumberland National Park Authority","E6405X","EngLocGov't","LocGov't"]
["E6406X","Peak District National Park Authority","E6406X","EngLocGov't","LocGov't"]
["E6407X","Yorkshire Dales National Park Authority","E6407X","EngLocGov't","LocGov't"]
["E6408X","Broads Authority (The)","E6408X","EngLocGov't","LocGov't"]
["E6409X","New Forest National Park Authority","E6409X","EngLocGov't","LocGov't"]
["E6410X","South Downs National Park","E6410X","EngLocGov't","LocGov't"]
["E6803X","Lee Valley Regional Park Authority","E6803X","EngLocGov't","LocGov't"]
["E7002X","Bedfordshire Police and Crime Commissioner and Chief Constable","E7002X","EngLocGov't","LocGov't"]
["E7005X","Cambridgeshire Police and Crime Commissioner and Chief Constable","E7005X","EngLocGov't","LocGov't"]
["E7006X","Cheshire Police and Crime Commissioner and Chief Constable","E7006X","EngLocGov't","LocGov't"]
["E7007X","Cleveland Police and Crime Commissioner and Chief Constable","E7007X","EngLocGov't","LocGov't"]
["E7009X","Cumbria Police and Crime Commissioner and Chief Constable","E7009X","EngLocGov't","LocGov't"]
["E7010X","Derbyshire Police and Crime Commissioner and Chief Constable","E7010X","EngLocGov't","LocGov't"]
["E7012X","Dorset Police and Crime Commissioner and Chief Constable","E7012X","EngLocGov't","LocGov't"]
["E7013X","Durham Police and Crime Commissioner and Chief Constable","E7013X","EngLocGov't","LocGov't"]
["E7015X","West Mercia Police and Crime Commissioner and Chief Constable","E7015X","EngLocGov't","LocGov't"]
["E7016X","Gloucestershire Police and Crime Commissioner and Chief Constable","E7016X","EngLocGov't","LocGov't"]
["E7019X","Essex Police and Crime Commissioner and Chief Constable","E7019X","EngLocGov't","LocGov't"]
["E7020X","Humberside Police and Crime Commissioner and Chief Constable","E7020X","EngLocGov't","LocGov't"]
["E7022X","Kent Police and Crime Commissioner and Chief Constable","E7022X","EngLocGov't","LocGov't"]
["E7023X","Lancashire Police and Crime Commissioner and Chief Constable","E7023X","EngLocGov't","LocGov't"]
["E7024X","Leicestershire Police and Crime Commissioner and Chief Constable","E7024X","EngLocGov't","LocGov't"]
["E7025X","Lincolnshire Police and Crime Commissioner and Chief Constable","E7025X","EngLocGov't","LocGov't"]
["E7026X","Norfolk Police and Crime Commissioner and Chief Constable","E7026X","EngLocGov't","LocGov't"]
["E7027X","North Yorkshire Police and Crime Commissioner and Chief Constable","E7027X","EngLocGov't","LocGov't"]
["E7028X","Northamptonshire Police and Crime Commissioner and Chief Constable","E7028X","EngLocGov't","LocGov't"]
["E7030X","Nottinghamshire Police and Crime Commissioner and Chief Constable","E7030X","EngLocGov't","LocGov't"]
["E7034X","Staffordshire Police and Crime Commissioner and Chief Constable","E7034X","EngLocGov't","LocGov't"]
["E7035X","Suffolk Police and Crime Commissioner and Chief Constable","E7035X","EngLocGov't","LocGov't"]
["E7036X","Surrey Police and Crime Commissioner and Chief Constable","E7036X","EngLocGov't","LocGov't"]
["E7037X","Warwickshire Police and Crime Commissioner and Chief Constable","E7037X","EngLocGov't","LocGov't"]
["E7039X","Wiltshire Police and Crime Commissioner and Chief Constable","E7039X","EngLocGov't","LocGov't"]
["E7042X","Greater Manchester Police and Crime Commissioner and Chief Constable","E7042X","EngLocGov't","LocGov't"]
["E7043X","Merseyside Police and Crime Commissioner and Chief Constable","E7043X","EngLocGov't","LocGov't"]
["E7044X","South Yorkshire Police and Crime Commissioner and Chief Constable","E7044X","EngLocGov't","LocGov't"]
["E7045X","Northumbria Police and Crime Commissioner and Chief Constable","E7045X","EngLocGov't","LocGov't"]
["E7046X","West Midlands Police and Crime Commissioner and Chief Constable","E7046X","EngLocGov't","LocGov't"]
["E7047X","West Yorkshire Police and Crime Commissioner and Chief Constable","E7047X","EngLocGov't","LocGov't"]
["E7050X","Avon & Somerset Police and Crime Commissioner and Chief Constable","E7050X","EngLocGov't","LocGov't"]
["E7051X","Devon & Cornwall Police and Crime Commissioner and Chief Constable","E7051X","EngLocGov't","LocGov't"]
["E7052X","Hampshire Police and Crime Commissioner and Chief Constable","E7052X","EngLocGov't","LocGov't"]
["E7053X","Sussex Police and Crime Commissioner and Chief Constable","E7053X","EngLocGov't","LocGov't"]
["E7054X","Thames Valley Police and Crime Commissioner and Chief Constable","E7054X","EngLocGov't","LocGov't"]
["E7055X","Hertfordshire Police and Crime Commissioner and Chief Constable","E7055X","EngLocGov't","LocGov't"]
["E7060X","Mayor’s Office for Policing and Crime and Metropolis Police Commissioner","E7060X","EngLocGov't","LocGov't"]
["LG001","Barking and Dagenham - LGPS","LG001","LGPS","LocGov't"]
["LG002","Barnet - LGPS","LG002","LGPS","LocGov't"]
["LG003","Bath and North East Somerset Council - LGPS","LG003","LGPS","LocGov't"]
["LG004","Bedfordshire Pension Fund - LGPS","LG004","LGPS","LocGov't"]
["LG005","Bexley - LGPS","LG005","LGPS","LocGov't"]
["LG006","Brent - LGPS","LG006","LGPS","LocGov't"]
["LG007","Bromley - LGPS","LG007","LGPS","LocGov't"]
["LG008","Buckinghamshire County Council- LGPS","LG008","LGPS","LocGov't"]
["LG009","Cambridgeshire County Council - LGPS","LG009","LGPS","LocGov't"]
["LG010","Camden - LGPS","LG010","LGPS","LocGov't"]
["LG011","Cheshire Pension Fund - LGPS","LG011","LGPS","LocGov't"]
["LG012","Cornwall County Council - LGPS","LG012","LGPS","LocGov't"]
["LG013","Corporation of London - LGPS","LG013","LGPS","LocGov't"]
["LG014","Croydon - LGPS","LG014","LGPS","LocGov't"]
["LG015","Cumbria County Council - LGPS","LG015","LGPS","LocGov't"]
["LG016","Derbyshire County Council - LGPS","LG016","LGPS","LocGov't"]
["LG017","Devon County Council - LGPS","LG017","LGPS","LocGov't"]
["LG018","Dorset County Council  - LGPS","LG018","LGPS","LocGov't"]
["LG019","Durham County Council - LGPS","LG019","LGPS","LocGov't"]
["LG020","Ealing - LGPS","LG020","LGPS","LocGov't"]
["LG021","East Riding Pension Fund - LGPS","LG021","LGPS","LocGov't"]
["LG022","East Sussex County Council - LGPS","LG022","LGPS","LocGov't"]
["LG023","Enfield - LGPS","LG023","LGPS","LocGov't"]
["LG024","Environment Agency - LGPS","LG024","LGPS","LocGov't"]
["LG025","Essex County Council - LGPS","LG025","LGPS","LocGov't"]
["LG026","Gloucestershire County Council - LGPS","LG026","LGPS","LocGov't"]
["LG027","Greater Manchester Pension Fund - LGPS","LG027","LGPS","LocGov't"]
["LG028","Greenwich - LGPS","LG028","LGPS","LocGov't"]
["LG029","Hackney - LGPS","LG029","LGPS","LocGov't"]
["LG030","Hammersmith and Fulham - LGPS","LG030","LGPS","LocGov't"]
["LG031","Hampshire Pension Fund - LGPS","LG031","LGPS","LocGov't"]
["LG032","Haringey - LGPS","LG032","LGPS","LocGov't"]
["LG033","Harrow - LGPS","LG033","LGPS","LocGov't"]
["LG034","Havering - LGPS","LG034","LGPS","LocGov't"]
["LG035","Hertfordshire County Council - LGPS","LG035","LGPS","LocGov't"]
["LG036","Hillingdon - LGPS","LG036","LGPS","LocGov't"]
["LG037","Hounslow - LGPS","LG037","LGPS","LocGov't"]
["LG038","Isle of Wight Council - LGPS","LG038","LGPS","LocGov't"]
["LG039","Islington - LGPS","LG039","LGPS","LocGov't"]
["LG040","Kensington and Chelsea - LGPS","LG040","LGPS","LocGov't"]
["LG041","Kent County Council (Kent Pension Fund) - LGPS","LG041","LGPS","LocGov't"]
["LG042","Kingston upon Thames - LGPS","LG042","LGPS","LocGov't"]
["LG043","Lambeth - LGPS","LG043","LGPS","LocGov't"]
["LG044","Lancashire County Council - LGPS","LG044","LGPS","LocGov't"]
["LG045","Leicestershire County Council - LGPS","LG045","LGPS","LocGov't"]
["LG046","Lewisham - LGPS","LG046","LGPS","LocGov't"]
["LG047","Lincolnshire County Council - LGPS","LG047","LGPS","LocGov't"]
["LG048","London Pension Fund Authority - LGPS","LG048","LGPS","LocGov't"]
["LG049","Merseyside Pension Fund - LGPS","LG049","LGPS","LocGov't"]
["LG050","Merton - LGPS","LG050","LGPS","LocGov't"]
["LG051","Newham - LGPS","LG051","LGPS","LocGov't"]
["LG052","Norfolk County Council - LGPS","LG052","LGPS","LocGov't"]
["LG053","North Yorkshire County Council - LGPS","LG053","LGPS","LocGov't"]
["LG054","Northamptonshire County Council - LGPS","LG054","LGPS","LocGov't"]
["LG055","Northumberland County Council - LGPS","LG055","LGPS","LocGov't"]
["LG056","Nottinghamshire County Council - LGPS","LG056","LGPS","LocGov't"]
["LG057","Oxfordshire County Council - LGPS","LG057","LGPS","LocGov't"]
["LG058","Redbridge - LGPS","LG058","LGPS","LocGov't"]
["LG059","Richmond upon Thames - LGPS","LG059","LGPS","LocGov't"]
["LG060","Royal County of Berkshire Pension Fund - LGPS","LG060","LGPS","LocGov't"]
["LG061","Shropshire County Pension Fund - LGPS","LG061","LGPS","LocGov't"]
["LG062","Somerset County Council - LGPS","LG062","LGPS","LocGov't"]
["LG063","South Yorkshire Integrated Transport Pension Fund - LGPS","LG063","LGPS","LocGov't"]
["LG064","South Yorkshire Pension Authority - LGPS","LG064","LGPS","LocGov't"]
["LG065","Southwark - LGPS","LG065","LGPS","LocGov't"]
["LG066","Staffordshire County Council - LGPS","LG066","LGPS","LocGov't"]
["LG067","Suffolk County Council - LGPS","LG067","LGPS","LocGov't"]
["LG068","Surrey County Council - LGPS","LG068","LGPS","LocGov't"]
["LG069","Sutton - LGPS","LG069","LGPS","LocGov't"]
["LG070","Teesside Pension Fund - LGPS","LG070","LGPS","LocGov't"]
["LG071","Tower Hamlets - LGPS","LG071","LGPS","LocGov't"]
["LG072","Tyne and Wear Pension Fund - LGPS","LG072","LGPS","LocGov't"]
["LG073","Waltham Forest - LGPS","LG073","LGPS","LocGov't"]
["LG074","Wandsworth - LGPS","LG074","LGPS","LocGov't"]
["LG075","Warwickshire County Council - LGPS","LG075","LGPS","LocGov't"]
["LG076","West Midlands Pension Fund - LGPS","LG076","LGPS","LocGov't"]
["LG077","West Sussex County Council - LGPS","LG077","LGPS","LocGov't"]
["LG078","West Yorkshire Pension Fund - LGPS","LG078","LGPS","LocGov't"]
["LG079","Westminster City Council - LGPS","LG079","LGPS","LocGov't"]
["LG080","Wiltshire County Council - LGPS","LG080","LGPS","LocGov't"]
["LG081","Worcestershire County Council - LGPS","LG081","LGPS","LocGov't"]
["AUC085","Audit Commission","AUC085","PCs","PCs"]
["BAP091","Bank Of England Asset Purchase Facility (BEAPF)","BAP091","PCs","PCs"]
["BCL027","British Council","BCL027","PCs","PCs"]
["BHC004","Blyth Harbour Commissioners","BHC004","PCs","PCs"]
["BNC084","British Nuclear Fuels","BNC084","PCs","PCs"]
["BOE091","Bank Of England","BOE091","PCs","PCs"]
["BOI091","Bank of England Issue Department","BOI091","PCs","PCs"]
["BRB004-02","British Railways Board (Residuary) Ltd","BRB004-02","PCs","PCs"]
["BWB003","British Waterways Board","BWB003","PCs","PCs"]
["BWM003","British Wool Marketing Board","BWM003","PCs","PCs"]
["BYA010","Government Procurement Service","BYA010","PCs","PCs"]
["CAA004","Civil Aviation Authority","CAA004","PCs","PCs"]
["CDC030","Commonwealth Development Corporation","CDC030","PCs","PCs"]
["CFT048","Channel Four Television Corporation","CFT048","PCs","PCs"]
["CGM003","Covent Garden Market Authority","CGM003","PCs","PCs"]
["CMA084","Competition and Markets Authority","CMA084","PCs","PCs"]
["COH084","Companies House","COH084","PCs","PCs"]
["DHB004","Dover Harbour Board","DHB004","PCs","PCs"]
["DSA004","Driving Standards Agency","DSA004","PCs","PCs"]
["DST017","Defence Science and Technology Laboratory","DST017","PCs","PCs"]
["ECG025-01","Export Credits Guarantee Department","ECG025-01","PCs","PCs"]
["ECG025-02","Export Guarantees Advisory Council","ECG025-02","PCs","PCs"]
["FCA087","Financial Conduct Authority","FCA087","PCs","PCs"]
["FEA028","Forest Enterprise Agency (England)","FEA028","PCs","PCs"]
["FEA075","Forest Enterprise Agency (Scotland)","FEA075","PCs","PCs"]
["FOL087","Financial Ombudsman Services Limited","FOL087","PCs","PCs"]
["FSC085","Fire Service College","FSC085","PCs","PCs"]
["FSS034","Forensic Science Service","FSS034","PCs","PCs"]
["GEF025","Guaranteed Export Finance Corporation","GEF025","PCs","PCs"]
["GLF004","General Lighthouse Fund","GLF004","PCs","PCs"]
["GRH017","Greenwich Hospital","GRH017","PCs","PCs"]
["HHA004","Harwich Haven Authority","HHA004","PCs","PCs"]
["HPR048","Historic Royal Palaces Trust","HPR048","PCs","PCs"]
["HYO017","UK Hydrographic Office","HYO017","PCs","PCs"]
["INS066","International Nuclear Services Ltd","INS066","PCs","PCs"]
["LRG084","Land Registry","LRG084","PCs","PCs"]
["MEO084","Meteorological Office","MEO084","PCs","PCs"]
["MHP004","Milford Haven Port Authority","MHP004","PCs","PCs"]
["MHP033","Medicines and Healthcare Products Regulatory Agency","MHP033","PCs","PCs"]
["NAF017","Navy, Army and Air Force Institute","NAF017","PCs","PCs"]
["NBA033","NHS Blood and Transplant","NBA033","PCs","PCs"]
["NNL066","National Nuclear Laboratory Ltd","NNL066","PCs","PCs"]
["NSP033","NHS Professionals","NSP033","PCs","PCs"]
["NST032","National Employment Savings Trust Corporation (NEST)","NST032","PCs","PCs"]
["NWR004","Network Rail","NWR004","PCs","PCs"]
["NXS004","Nexus (Tyne & Wear Passenger Transport Executive)","NXS004","PCs","PCs"]
["ORD085","Ordnance Survey","ORD085","PCs","PCs"]
["ONR032","Office of Nuclear Regulation","ONR032","PCs","PCs"]
["OQE022","Office of Qulaifications and Examination Regulator","OQE022","PCs","PCs"]
["PAO084","Intellectual Property Office","PAO084","PCs","PCs"]
["PHC004","Poole Harbour Commissioners","PHC004","PCs","PCs"]
["PLA004","Port of London Authority","PLA004","PCs","PCs"]
["PNT066","Pacific Nuclear Transport Ltd","PNT066","PCs","PCs"]
["POL084","Post Office Limited","POL084","PCs","PCs"]
["PPF032","Pension Protection Fund (PPF)","PPF032","PCs","PCs"]
["PRA087","Prudential Regulation Authority","PRA087","PCs","PCs"]
["PRA091","Prudential Regulation Authority ","PRA091","PCs","PCs"]
["PTA004","Port of Tyne Authority","PTA004","PCs","PCs"]
["RCT048","Royal Collection Trust","RCT048","PCs","PCs"]
["REL032","Remploy","REL032","PCs","PCs"]
["RMH084","Royal Mail Holdings plc","RMH084","PCs","PCs"]
["RMT087","Royal Mint","RMT087","PCs","PCs"]
["SPA004","Shoreham Port Authority","SPA004","PCs","PCs"]
["VOS004-02","Vehicle and Operator Services Agency","VOS004-02","PCs","PCs"]
["CCG00C","NHS DARLINGTON CCG","CCG00C","NHS","NHS"]
["CCG00D","NHS DURHAM DALES, EASINGTON AND SEDGEFIELD CCG","CCG00D","NHS","NHS"]
["CCG00F","NHS GATESHEAD CCG","CCG00F","NHS","NHS"]
["CCG00G","NHS NEWCASTLE NORTH AND EAST CCG","CCG00G","NHS","NHS"]
["CCG00H","NHS NEWCASTLE WEST CCG","CCG00H","NHS","NHS"]
["CCG00J","NHS NORTH DURHAM CCG","CCG00J","NHS","NHS"]
["CCG00K","NHS HARTLEPOOL AND STOCKTON-ON-TEES CCG","CCG00K","NHS","NHS"]
["CCG00L","NHS NORTHUMBERLAND CCG","CCG00L","NHS","NHS"]
["CCG00M","NHS SOUTH TEES CCG","CCG00M","NHS","NHS"]
["CCG00N","NHS SOUTH TYNESIDE CCG","CCG00N","NHS","NHS"]
["CCG00P","NHS SUNDERLAND CCG","CCG00P","NHS","NHS"]
["CCG00Q","NHS BLACKBURN WITH DARWEN CCG","CCG00Q","NHS","NHS"]
["CCG00R","NHS BLACKPOOL CCG","CCG00R","NHS","NHS"]
["CCG00T","NHS BOLTON CCG","CCG00T","NHS","NHS"]
["CCG00V","NHS BURY CCG","CCG00V","NHS","NHS"]
["CCG00W","NHS CENTRAL MANCHESTER CCG","CCG00W","NHS","NHS"]
["CCG00X","NHS CHORLEY AND SOUTH RIBBLE CCG","CCG00X","NHS","NHS"]
["CCG00Y","NHS OLDHAM CCG","CCG00Y","NHS","NHS"]
["CCG01A","NHS EAST LANCASHIRE CCG","CCG01A","NHS","NHS"]
["CCG01C","NHS EASTERN CHESHIRE CCG","CCG01C","NHS","NHS"]
["CCG01D","NHS HEYWOOD, MIDDLETON AND ROCHDALE CCG","CCG01D","NHS","NHS"]
["CCG01E","NHS GREATER PRESTON CCG","CCG01E","NHS","NHS"]
["CCG01F","NHS HALTON CCG","CCG01F","NHS","NHS"]
["CCG01G","NHS SALFORD CCG","CCG01G","NHS","NHS"]
["CCG01H","NHS CUMBRIA CCG","CCG01H","NHS","NHS"]
["CCG01J","NHS KNOWSLEY CCG","CCG01J","NHS","NHS"]
["CCG01K","NHS LANCASHIRE NORTH CCG","CCG01K","NHS","NHS"]
["CCG01M","NHS NORTH MANCHESTER CCG","CCG01M","NHS","NHS"]
["CCG01N","NHS SOUTH MANCHESTER CCG","CCG01N","NHS","NHS"]
["CCG01R","NHS SOUTH CHESHIRE CCG","CCG01R","NHS","NHS"]
["CCG01T","NHS SOUTH SEFTON CCG","CCG01T","NHS","NHS"]
["CCG01V","NHS SOUTHPORT AND FORMBY CCG","CCG01V","NHS","NHS"]
["CCG01W","NHS STOCKPORT CCG","CCG01W","NHS","NHS"]
["CCG01X","NHS ST HELENS CCG","CCG01X","NHS","NHS"]
["CCG01Y","NHS TAMESIDE AND GLOSSOP CCG","CCG01Y","NHS","NHS"]
["CCG02A","NHS TRAFFORD CCG","CCG02A","NHS","NHS"]
["CCG02D","NHS VALE ROYAL CCG","CCG02D","NHS","NHS"]
["CCG02E","NHS WARRINGTON CCG","CCG02E","NHS","NHS"]
["CCG02F","NHS WEST CHESHIRE CCG","CCG02F","NHS","NHS"]
["CCG02G","NHS WEST LANCASHIRE CCG","CCG02G","NHS","NHS"]
["CCG02H","NHS WIGAN BOROUGH CCG","CCG02H","NHS","NHS"]
["CCG02M","NHS FYLDE & WYRE CCG","CCG02M","NHS","NHS"]
["CCG02N","NHS AIREDALE, WHARFDALE AND CRAVEN CCG","CCG02N","NHS","NHS"]
["CCG02P","NHS BARNSLEY CCG","CCG02P","NHS","NHS"]
["CCG02Q","NHS BASSETLAW CCG","CCG02Q","NHS","NHS"]
["CCG02R","NHS BRADFORD DISTRICTS CCG","CCG02R","NHS","NHS"]
["CCG02T","NHS CALDERDALE CCG","CCG02T","NHS","NHS"]
["CCG02V","NHS LEEDS NORTH CCG","CCG02V","NHS","NHS"]
["CCG02W","NHS BRADFORD CITY CCG","CCG02W","NHS","NHS"]
["CCG02X","NHS DONCASTER CCG","CCG02X","NHS","NHS"]
["CCG02Y","NHS EAST RIDING OF YORKSHIRE CCG","CCG02Y","NHS","NHS"]
["CCG03A","NHS GREATER HUDDERSFIELD CCG","CCG03A","NHS","NHS"]
["CCG03C","NHS LEEDS WEST CCG","CCG03C","NHS","NHS"]
["CCG03D","NHS HAMBLETON, RICHMONDSHIRE AND WHITBY CCG","CCG03D","NHS","NHS"]
["CCG03E","NHS HARROGATE AND RURAL DISTRICT CCG","CCG03E","NHS","NHS"]
["CCG03F","NHS HULL CCG","CCG03F","NHS","NHS"]
["CCG03G","NHS LEEDS SOUTH AND EAST CCG","CCG03G","NHS","NHS"]
["CCG03H","NHS NORTH EAST LINCOLNSHIRE CCG","CCG03H","NHS","NHS"]
["CCG03J","NHS NORTH KIRKLEES CCG","CCG03J","NHS","NHS"]
["CCG03K","NHS NORTH LINCOLNSHIRE CCG","CCG03K","NHS","NHS"]
["CCG03L","NHS ROTHERHAM CCG","CCG03L","NHS","NHS"]
["CCG03M","NHS SCARBOROUGH AND RYEDALE CCG","CCG03M","NHS","NHS"]
["CCG03N","NHS SHEFFIELD CCG","CCG03N","NHS","NHS"]
["CCG03Q","NHS VALE OF YORK CCG","CCG03Q","NHS","NHS"]
["CCG03R","NHS WAKEFIELD CCG","CCG03R","NHS","NHS"]
["CCG03T","NHS LINCOLNSHIRE EAST CCG","CCG03T","NHS","NHS"]
["CCG03V","NHS CORBY CCG","CCG03V","NHS","NHS"]
["CCG03W","NHS EAST LEICESTERSHIRE AND RUTLAND CCG","CCG03W","NHS","NHS"]
["CCG03X","NHS EREWASH CCG","CCG03X","NHS","NHS"]
["CCG03Y","NHS HARDWICK CCG","CCG03Y","NHS","NHS"]
["CCG04C","NHS LEICESTER CITY CCG","CCG04C","NHS","NHS"]
["CCG04D","NHS LINCOLNSHIRE WEST CCG","CCG04D","NHS","NHS"]
["CCG04E","NHS MANSFIELD AND ASHFIELD CCG","CCG04E","NHS","NHS"]
["CCG04F","NHS MILTON KEYNES CCG","CCG04F","NHS","NHS"]
["CCG04G","NHS NENE CCG","CCG04G","NHS","NHS"]
["CCG04H","NHS NEWARK & SHERWOOD CCG","CCG04H","NHS","NHS"]
["CCG04J","NHS NORTH DERBYSHIRE CCG","CCG04J","NHS","NHS"]
["CCG04K","NHS NOTTINGHAM CITY CCG","CCG04K","NHS","NHS"]
["CCG04L","NHS NOTTINGHAM NORTH AND EAST CCG","CCG04L","NHS","NHS"]
["CCG04M","NHS NOTTINGHAM WEST CCG","CCG04M","NHS","NHS"]
["CCG04N","NHS RUSHCLIFFE CCG","CCG04N","NHS","NHS"]
["CCG04Q","NHS SOUTH WEST LINCOLNSHIRE CCG","CCG04Q","NHS","NHS"]
["CCG04R","NHS SOUTHERN DERBYSHIRE CCG","CCG04R","NHS","NHS"]
["CCG04V","NHS WEST LEICESTERSHIRE CCG","CCG04V","NHS","NHS"]
["CCG04X","NHS BIRMINGHAM SOUTH AND CENTRAL CCG","CCG04X","NHS","NHS"]
["CCG04Y","NHS CANNOCK CHASE CCG","CCG04Y","NHS","NHS"]
["CCG05A","NHS COVENTRY AND RUGBY CCG","CCG05A","NHS","NHS"]
["CCG05C","NHS DUDLEY CCG","CCG05C","NHS","NHS"]
["CCG05D","NHS EAST STAFFORDSHIRE CCG","CCG05D","NHS","NHS"]
["CCG05F","NHS HEREFORDSHIRE CCG","CCG05F","NHS","NHS"]
["CCG05G","NHS NORTH STAFFORDSHIRE CCG","CCG05G","NHS","NHS"]
["CCG05H","NHS WARWICKSHIRE NORTH CCG","CCG05H","NHS","NHS"]
["CCG05J","NHS REDDITCH AND BROMSGROVE CCG","CCG05J","NHS","NHS"]
["CCG05L","NHS SANDWELL AND WEST BIRMINGHAM CCG","CCG05L","NHS","NHS"]
["CCG05N","NHS SHROPSHIRE CCG","CCG05N","NHS","NHS"]
["CCG05P","NHS SOLIHULL CCG","CCG05P","NHS","NHS"]
["CCG05Q","NHS SOUTH EAST STAFFS AND SEISDON PENINSULAR CCG","CCG05Q","NHS","NHS"]
["CCG05R","NHS SOUTH WARWICKSHIRE CCG","CCG05R","NHS","NHS"]
["CCG05T","NHS SOUTH WORCESTERSHIRE CCG","CCG05T","NHS","NHS"]
["CCG05V","NHS STAFFORD AND SURROUNDS CCG","CCG05V","NHS","NHS"]
["CCG05W","NHS STOKE ON TRENT CCG","CCG05W","NHS","NHS"]
["CCG05X","NHS TELFORD AND WREKIN CCG","CCG05X","NHS","NHS"]
["CCG05Y","NHS WALSALL CCG","CCG05Y","NHS","NHS"]
["CCG06A","NHS WOLVERHAMPTON CCG","CCG06A","NHS","NHS"]
["CCG06D","NHS WYRE FOREST CCG","CCG06D","NHS","NHS"]
["CCG06F","NHS BEDFORDSHIRE CCG","CCG06F","NHS","NHS"]
["CCG06H","NHS CAMBRIDGESHIRE AND PETERBOROUGH CCG","CCG06H","NHS","NHS"]
["CCG06K","NHS EAST AND NORTH HERTFORDSHIRE CCG","CCG06K","NHS","NHS"]
["CCG06L","NHS IPSWICH AND EAST SUFFOLK CCG","CCG06L","NHS","NHS"]
["CCG06M","NHS GREAT YARMOUTH AND WAVENEY CCG","CCG06M","NHS","NHS"]
["CCG06N","NHS HERTS VALLEYS CCG","CCG06N","NHS","NHS"]
["CCG06P","NHS LUTON CCG","CCG06P","NHS","NHS"]
["CCG06Q","NHS MID ESSEX CCG","CCG06Q","NHS","NHS"]
["CCG06T","NHS NORTH EAST ESSEX CCG","CCG06T","NHS","NHS"]
["CCG06V","NHS NORTH NORFOLK CCG","CCG06V","NHS","NHS"]
["CCG06W","NHS NORWICH CCG","CCG06W","NHS","NHS"]
["CCG06Y","NHS SOUTH NORFOLK CCG","CCG06Y","NHS","NHS"]
["CCG07G","NHS THURROCK CCG","CCG07G","NHS","NHS"]
["CCG07H","NHS WEST ESSEX CCG","CCG07H","NHS","NHS"]
["CCG07J","NHS WEST NORFOLK CCG","CCG07J","NHS","NHS"]
["CCG07K","NHS WEST SUFFOLK CCG","CCG07K","NHS","NHS"]
["CCG07L","NHS BARKING AND DAGENHAM CCG","CCG07L","NHS","NHS"]
["CCG07M","NHS BARNET CCG","CCG07M","NHS","NHS"]
["CCG07N","NHS BEXLEY CCG","CCG07N","NHS","NHS"]
["CCG07P","NHS BRENT CCG","CCG07P","NHS","NHS"]
["CCG07Q","NHS BROMLEY CCG","CCG07Q","NHS","NHS"]
["CCG07R","NHS CAMDEN CCG","CCG07R","NHS","NHS"]
["CCG07T","NHS CITY AND HACKNEY CCG","CCG07T","NHS","NHS"]
["CCG07V","NHS CROYDON CCG","CCG07V","NHS","NHS"]
["CCG07W","NHS EALING CCG","CCG07W","NHS","NHS"]
["CCG07X","NHS ENFIELD CCG","CCG07X","NHS","NHS"]
["CCG07Y","NHS HOUNSLOW CCG","CCG07Y","NHS","NHS"]
["CCG08A","NHS GREENWICH CCG","CCG08A","NHS","NHS"]
["CCG08C","NHS HAMMERSMITH AND FULHAM CCG","CCG08C","NHS","NHS"]
["CCG08D","NHS HARINGEY CCG","CCG08D","NHS","NHS"]
["CCG08E","NHS HARROW CCG","CCG08E","NHS","NHS"]
["CCG08F","NHS HAVERING CCG","CCG08F","NHS","NHS"]
["CCG08G","NHS HILLINGDON CCG","CCG08G","NHS","NHS"]
["CCG08H","NHS ISLINGTON CCG","CCG08H","NHS","NHS"]
["CCG08J","NHS KINGSTON CCG","CCG08J","NHS","NHS"]
["CCG08K","NHS LAMBETH CCG","CCG08K","NHS","NHS"]
["CCG08L","NHS LEWISHAM CCG","CCG08L","NHS","NHS"]
["CCG08M","NHS NEWHAM CCG","CCG08M","NHS","NHS"]
["CCG08N","NHS REDBRIDGE CCG","CCG08N","NHS","NHS"]
["CCG08P","NHS RICHMOND CCG","CCG08P","NHS","NHS"]
["CCG08Q","NHS SOUTHWARK CCG","CCG08Q","NHS","NHS"]
["CCG08R","NHS MERTON CCG","CCG08R","NHS","NHS"]
["CCG08T","NHS SUTTON CCG","CCG08T","NHS","NHS"]
["CCG08V","NHS TOWER HAMLETS CCG","CCG08V","NHS","NHS"]
["CCG08W","NHS WALTHAM FOREST CCG","CCG08W","NHS","NHS"]
["CCG08X","NHS WANDSWORTH CCG","CCG08X","NHS","NHS"]
["CCG08Y","NHS WEST LONDON (K&C & QPP) CCG","CCG08Y","NHS","NHS"]
["CCG09A","NHS CENTRAL LONDON (WESTMINSTER) CCG","CCG09A","NHS","NHS"]
["CCG09C","NHS ASHFORD CCG","CCG09C","NHS","NHS"]
["CCG09D","NHS BRIGHTON AND HOVE CCG","CCG09D","NHS","NHS"]
["CCG09E","NHS CANTERBURY AND COASTAL CCG","CCG09E","NHS","NHS"]
["CCG09F","NHS EASTBOURNE, HAILSHAM AND SEAFORD CCG","CCG09F","NHS","NHS"]
["CCG09G","NHS COASTAL WEST SUSSEX CCG","CCG09G","NHS","NHS"]
["CCG09H","NHS CRAWLEY CCG","CCG09H","NHS","NHS"]
["CCG09J","NHS DARTFORD, GRAVESHAM AND SWANLEY CCG","CCG09J","NHS","NHS"]
["CCG09L","NHS EAST SURREY CCG","CCG09L","NHS","NHS"]
["CCG09N","NHS GUILDFORD AND WAVERLEY CCG","CCG09N","NHS","NHS"]
["CCG09P","NHS HASTINGS AND ROTHER CCG","CCG09P","NHS","NHS"]
["CCG09W","NHS MEDWAY CCG","CCG09W","NHS","NHS"]
["CCG09X","NHS HORSHAM AND MID SUSSEX CCG","CCG09X","NHS","NHS"]
["CCG09Y","NHS NORTH WEST SURREY CCG","CCG09Y","NHS","NHS"]
["CCG10A","NHS SOUTH KENT COAST CCG","CCG10A","NHS","NHS"]
["CCG10C","NHS SURREY HEATH CCG","CCG10C","NHS","NHS"]
["CCG10D","NHS SWALE CCG","CCG10D","NHS","NHS"]
["CCG10E","NHS THANET CCG","CCG10E","NHS","NHS"]
["CCG10G","NHS BRACKNELL AND ASCOT CCG","CCG10G","NHS","NHS"]
["CCG10H","NHS CHILTERN CCG","CCG10H","NHS","NHS"]
["CCG10J","NHS NORTH HAMPSHIRE CCG","CCG10J","NHS","NHS"]
["CCG10K","NHS FAREHAM AND GOSPORT CCG","CCG10K","NHS","NHS"]
["CCG10L","NHS ISLE OF WIGHT CCG","CCG10L","NHS","NHS"]
["CCG10M","NHS NEWBURY AND DISTRICT CCG","CCG10M","NHS","NHS"]
["CCG10N","NHS NORTH & WEST READING CCG","CCG10N","NHS","NHS"]
["CCG10Q","NHS OXFORDSHIRE CCG","CCG10Q","NHS","NHS"]
["CCG10R","NHS PORTSMOUTH CCG","CCG10R","NHS","NHS"]
["CCG10T","NHS SLOUGH CCG","CCG10T","NHS","NHS"]
["CCG10V","NHS SOUTH EASTERN HAMPSHIRE CCG","CCG10V","NHS","NHS"]
["CCG10W","NHS SOUTH READING CCG","CCG10W","NHS","NHS"]
["CCG10X","NHS SOUTHAMPTON CCG","CCG10X","NHS","NHS"]
["CCG10Y","NHS AYLESBURY VALE CCG","CCG10Y","NHS","NHS"]
["CCG11A","NHS WEST HAMPSHIRE CCG","CCG11A","NHS","NHS"]
["CCG11C","NHS WINDSOR, ASCOT AND MAIDENHEAD CCG","CCG11C","NHS","NHS"]
["CCG11D","NHS WOKINGHAM CCG","CCG11D","NHS","NHS"]
["CCG11E","NHS BATH AND NORTH EAST SOMERSET CCG","CCG11E","NHS","NHS"]
["CCG11H","NHS BRISTOL CCG","CCG11H","NHS","NHS"]
["CCG11J","NHS DORSET CCG","CCG11J","NHS","NHS"]
["CCG11M","NHS GLOUCESTERSHIRE CCG","CCG11M","NHS","NHS"]
["CCG11N","NHS KERNOW CCG","CCG11N","NHS","NHS"]
["CCG11T","NHS NORTH SOMERSET CCG","CCG11T","NHS","NHS"]
["CCG11X","NHS SOMERSET CCG","CCG11X","NHS","NHS"]
["CCG12A","NHS SOUTH GLOUCESTERSHIRE CCG","CCG12A","NHS","NHS"]
["CCG12D","NHS SWINDON CCG","CCG12D","NHS","NHS"]
["CCG12F","NHS WIRRAL CCG","CCG12F","NHS","NHS"]
["CCG13P","NHS BIRMINGHAM CROSSCITY CCG","CCG13P","NHS","NHS"]
["CCG99A","NHS LIVERPOOL CCG","CCG99A","NHS","NHS"]
["CCG99C","NHS NORTH TYNESIDE CCG","CCG99C","NHS","NHS"]
["CCG99D","NHS SOUTH LINCOLNSHIRE CCG","CCG99D","NHS","NHS"]
["CCG99E","NHS BASILDON AND BRENTWOOD CCG","CCG99E","NHS","NHS"]
["CCG99F","NHS CASTLE POINT AND ROCHFORD CCG","CCG99F","NHS","NHS"]
["CCG99G","NHS SOUTHEND CCG","CCG99G","NHS","NHS"]
["CCG99H","NHS SURREY DOWNS CCG","CCG99H","NHS","NHS"]
["CCG99J","NHS WEST KENT CCG","CCG99J","NHS","NHS"]
["CCG99K","NHS HIGH WEALD LEWES HAVENS CCG","CCG99K","NHS","NHS"]
["CCG99M","NHS NORTH EAST HAMPSHIRE AND FARNHAM CCG","CCG99M","NHS","NHS"]
["CCG99N","NHS WILTSHIRE CCG","CCG99N","NHS","NHS"]
["CCG99P","NHS NORTH, EAST, WEST DEVON CCG","CCG99P","NHS","NHS"]
["CCG99Q","NHS SOUTH DEVON AND TORBAY CCG","CCG99Q","NHS","NHS"]
["FTRA2X","Royal Surrey County NHS Foundation Trust","FTRA2X","NHS","NHS"]
["FTRA4X","Yeovil District Hospital NHS Foundation Trust","FTRA4X","NHS","NHS"]
["FTRA7X","University Hospitals Bristol NHS Foundation Trust","FTRA7X","NHS","NHS"]
["FTRA9X","South Devon Healthcare NHS Foundation Trust","FTRA9X","NHS","NHS"]
["FTRAEX","Bradford Teaching Hospitals NHSFT","FTRAEX","NHS","NHS"]
["FTRAJX","Southend University Hospital NHS Foundation Trust","FTRAJX","NHS","NHS"]
["FTRALX","Royal Free London NHSFT","FTRALX","NHS","NHS"]
["FTRASX","The Hillingdon Hospitals NHS Foundation Trust","FTRASX","NHS","NHS"]
["FTRATX","North East London NHS Foundation Trust","FTRATX","NHS","NHS"]
["FTRAXX","Kingston Hospital NHSFT","FTRAXX","NHS","NHS"]
["FTRBAX","Taunton And Somerset NHS Foundation Trust","FTRBAX","NHS","NHS"]
["FTRBBX","Royal National Hospital for Rheumatic Diseases NHS Foundation Trust","FTRBBX","NHS","NHS"]
["FTRBDX","Dorset County Hospital NHS Foundation Trust","FTRBDX","NHS","NHS"]
["FTRBLX","Wirral University Teaching Hospital NHS Foundation Trust","FTRBLX","NHS","NHS"]
["FTRBQX","Liverpool Heart and Chest NHS Foundation Trust","FTRBQX","NHS","NHS"]
["FTRBSX","Alder Hey Children's NHS Foundation Trust","FTRBSX","NHS","NHS"]
["FTRBTX","Mid-Cheshire Hospitals NHS Foundation Trust","FTRBTX","NHS","NHS"]
["FTRBVX","The Christie NHS Foundation Trust","FTRBVX","NHS","NHS"]
["FTRC9X","Luton and Dunstable Hospital NHS Foundation Trust","FTRC9X","NHS","NHS"]
["FTRCBX","York Hospitals NHS Foundation Trust","FTRCBX","NHS","NHS"]
["FTRCDX","Harrogate and District NHS Foundation Trust","FTRCDX","NHS","NHS"]
["FTRCFX","Airedale NHS Foundation Trust","FTRCFX","NHS","NHS"]
["FTRCUX","Sheffield Children’s NHS Foundation Trust","FTRCUX","NHS","NHS"]
["FTRCXX","The Queen Elizabeth Hospital, King’s Lynn, NHS Foundation Trust","FTRCXX","NHS","NHS"]
["FTRD3X","Poole Hospital NHS Foundation Trust","FTRD3X","NHS","NHS"]
["FTRD8X","Milton Keynes Hospital NHS Foundation Trust","FTRD8X","NHS","NHS"]
["FTRDDX","Basildon and Thurrock University Hospital NHSFT","FTRDDX","NHS","NHS"]
["FTRDEX","Colchester Hospital University NHS Foundation Trust","FTRDEX","NHS","NHS"]
["FTRDUX","Frimley Park Hospital NHS Foundation Trust","FTRDUX","NHS","NHS"]
["FTRDYX","Dorset Healthcare NHS Foundation Trust","FTRDYX","NHS","NHS"]
["FTRDZX","The Royal Bournemouth & Christchurch Hospitals NHS Foundation Trust","FTRDZX","NHS","NHS"]
["FTRE9X","South Tyneside NHS Foundation Trust","FTRE9X","NHS","NHS"]
["FTREMX","Aintree University Hospitals NHS Foundation Trust","FTREMX","NHS","NHS"]
["FTRENX","Clatterbridge Centre for Oncology NHS Foundation Trust","FTRENX","NHS","NHS"]
["FTREPX","Liverpool Women's NHS Foundation Trust","FTREPX","NHS","NHS"]
["FTRETX","The Walton Centre NHS Foundation Trust","FTRETX","NHS","NHS"]
["FTRFFX","Barnsley Hospital NHS Foundation Trust","FTRFFX","NHS","NHS"]
["FTRFRX","The Rotherham NHS Foundation Trust","FTRFRX","NHS","NHS"]
["FTRFSX","Chesterfield Royal Hospital NHS Foundation Trust","FTRFSX","NHS","NHS"]
["FTRGDX","Leeds Partnerships NHS Foundation Trust","FTRGDX","NHS","NHS"]
["FTRGMX","Papworth Hospital NHSFT","FTRGMX","NHS","NHS"]
["FTRGNX","Peterborough and Stamford Hospitals NHSFT","FTRGNX","NHS","NHS"]
["FTRGPX","James Paget University Hospitals NHS Foundation Trust","FTRGPX","NHS","NHS"]
["FTRGRX","West Suffolk NHS Foundation Trust","FTRGRX","NHS","NHS"]
["FTRGTX","Cambridge University Hospitals NHSFT","FTRGTX","NHS","NHS"]
["FTRH5X","Somerset Partnership NHS Foundation Trust","FTRH5X","NHS","NHS"]
["FTRH8X","Royal Devon & Exeter NHSFT","FTRH8X","NHS","NHS"]
["FTRHMX","University Hospital Southampton NHS Foundation Trust","FTRHMX","NHS","NHS"]
["FTRHQX","Sheffield Teaching Hospitals NHSFT","FTRHQX","NHS","NHS"]
["FTRHWX","Royal Berkshire NHS Foundation Trust","FTRHWX","NHS","NHS"]
["FTRJ1X","Guy's and St. Thomas's NHS Foundation Trust","FTRJ1X","NHS","NHS"]
["FTRJ8X","Cornwall Partnership NHS Foundation Trust","FTRJ8X","NHS","NHS"]
["FTRJCX","South Warwickshire NHS Foundation Trust","FTRJCX","NHS","NHS"]
["FTRJDX","Mid Staffordshire NHS Foundation Trust","FTRJDX","NHS","NHS"]
["FTRJFX","Burton Hospitals NHS Foundation Trust","FTRJFX","NHS","NHS"]
["FTRJLX","Northern Lincolnshire and Goole Hospitals NHS Foundation Trust","FTRJLX","NHS","NHS"]
["FTRJRX","Countess of Chester Hospital NHSFT","FTRJRX","NHS","NHS"]
["FTRJXX","Calderstones Partnership NHS Foundation Trust","FTRJXX","NHS","NHS"]
["FTRJZX","King's College Hospital NHS Foundation Trust","FTRJZX","NHS","NHS"]
["FTRK5X","Sherwood Forest Hospitals NHS Foundation Trust","FTRK5X","NHS","NHS"]
["FTRL1X","The Robert Jones and Agnes Hunt Orthopaedic Hospital NHS Foundation Trust","FTRL1X","NHS","NHS"]
["FTRLNX","City Hospitals Sunderland NHSFT","FTRLNX","NHS","NHS"]
["FTRLUX","Birmingham Women`s NHS Foundation Trust","FTRLUX","NHS","NHS"]
["FTRM1X","Norfolk and Norwich University Hosptials NHS Foundation Trust","FTRM1X","NHS","NHS"]
["FTRM2X","University Hospital of South Manchester NHS Foundation Trust","FTRM2X","NHS","NHS"]
["FTRM3X","Salford Royal NHS Foundation Trust","FTRM3X","NHS","NHS"]
["FTRMCX","Royal Bolton Hospital NHS Foundation Trust","FTRMCX","NHS","NHS"]
["FTRMPX","Tameside Hospital NHS Foundation Trust","FTRMPX","NHS","NHS"]
["FTRMYX","Norfolk and Waveney Mental Health Partnership NHS Foundation Trust","FTRMYX","NHS","NHS"]
["FTRN3X","Great Western Hospitals NHS Foundation Trust","FTRN3X","NHS","NHS"]
["FTRN5X","Hampshire Hospitals NHSFT","FTRN5X","NHS","NHS"]
["FTRNAX","The Dudley Group of Hospitals NHS Foundation Trust","FTRNAX","NHS","NHS"]
["FTRNKX","Tavistock and Portman NHS Foundation Trust","FTRNKX","NHS","NHS"]
["FTRNNX","Cumbria Partnership NHS Foundation Trust","FTRNNX","NHS","NHS"]
["FTRNQX","Kettering General Hospital NHS Foundation Trust","FTRNQX","NHS","NHS"]
["FTRNUX","Oxford and Buckinghamshire Mental Health NHS Foundation Trust","FTRNUX","NHS","NHS"]
["FTRNZX","Salisbury NHS Foundation Trust","FTRNZX","NHS","NHS"]
["FTRP1X","Northamptonshire Healthcare NHS Foundation Trust","FTRP1X","NHS","NHS"]
["FTRP4X","Great Ormond Street Hospital for Children NHS Foundation Trust","FTRP4X","NHS","NHS"]
["FTRP5X","Doncaster and Bassetlaw Hospitals NHS Foundation Trust","FTRP5X","NHS","NHS"]
["FTRP6X","Moorfields Eye Hospital NHSFT","FTRP6X","NHS","NHS"]
["FTRP7X","Lincolnshire Partnership NHS Foundation Trust","FTRP7X","NHS","NHS"]
["FTRPAX","Medway NHS Foundation Trust","FTRPAX","NHS","NHS"]
["FTRPCX","Queen Victoria Hospital NHS Foundation Trust","FTRPCX","NHS","NHS"]
["FTRPGX","Oxleas NHS Foundation Trust","FTRPGX","NHS","NHS"]
["FTRPYX","The Royal Marsden NHSFT","FTRPYX","NHS","NHS"]
["FTRQ3X","Birmingham Children's Hospital NHS Foundation Trust","FTRQ3X","NHS","NHS"]
["FTRQMX","Chelsea and Westminster Hospital NHS Foundation Trust","FTRQMX","NHS","NHS"]
["FTRQXX","Homerton University Hospital NHS Foundation Trust","FTRQXX","NHS","NHS"]
["FTRR1X","Heart of England NHS Foundation Trust","FTRR1X","NHS","NHS"]
["FTRR7X","Gateshead Health NHS Foundation Trust","FTRR7X","NHS","NHS"]
["FTRRDX","North Essex Partnership NHS Foundation Trust","FTRRDX","NHS","NHS"]
["FTRREX","South Staffordshire and Shropshire Healthcare NHS Foundation Trust","FTRREX","NHS","NHS"]
["FTRRFX","Wrightington, Wigan and Leigh NHS Foundation Trust","FTRRFX","NHS","NHS"]
["FTRRJX","The Royal Orthopaedic Hospital NHS Foundation Trust","FTRRJX","NHS","NHS"]
["FTRRKX","University Hospital Birmingham NHSFT","FTRRKX","NHS","NHS"]
["FTRRVX","University College London Hospitals NHS Foundation Trust","FTRRVX","NHS","NHS"]
["FTRT1X","Cambridgeshire and Peterborough NHS Foundation Trust","FTRT1X","NHS","NHS"]
["FTRT2X","Pennine Care NHS Foundation Trust","FTRT2X","NHS","NHS"]
["FTRT3X","Royal Brompton and Harefield NHS Foundation Trust","FTRT3X","NHS","NHS"]
["FTRTDX","The Newcastle Upon Tyne Hospitals NHS Foundation Trust","FTRTDX","NHS","NHS"]
["FTRTEX","Gloucestershire Hospitals NHS Foundation Trust","FTRTEX","NHS","NHS"]
["FTRTFX","Northumbria Healthcare NHS Foundation Trust","FTRTFX","NHS","NHS"]
["FTRTGX","Derby Hospitals NHSFT","FTRTGX","NHS","NHS"]
["FTRTKX","Ashford and St Peter's Hospitals NHS Foundation Trust","FTRTKX","NHS","NHS"]
["FTRTQX","2gether NHS Foundation Trust","FTRTQX","NHS","NHS"]
["FTRTRX","South Tees NHS Foundation Trust","FTRTRX","NHS","NHS"]
["FTRTVX","5 Boroughs Partnership NHS Foundation Trust","FTRTVX","NHS","NHS"]
["FTRTXX","University Hospitals of Morecambe Bay NHS Foundation Trust","FTRTXX","NHS","NHS"]
["FTRV3X","Central and North West London NHS Foundation Trust","FTRV3X","NHS","NHS"]
["FTRV5X","South London and Maudsley NHS Foundation Trust","FTRV5X","NHS","NHS"]
["FTRV9X","Humber NHS Foundation Trust","FTRV9X","NHS","NHS"]
["FTRVVX","East Kent Hospitals University NHS Foundation Trust ","FTRVVX","NHS","NHS"]
["FTRVWX","North Tees & Hartlepool NHS Foundation Trust","FTRVWX","NHS","NHS"]
["FTRW1X","Southern Health NHS Foundation Trust","FTRW1X","NHS","NHS"]
["FTRW3X","Central Manchseter University Hospitals NHS Foundation Trust","FTRW3X","NHS","NHS"]
["FTRW5X","Lancashire Care NHS Foundation Trust","FTRW5X","NHS","NHS"]
["FTRWJX","Stockport NHSFT","FTRWJX","NHS","NHS"]
["FTRWKX","East London NHS Foundation Trust","FTRWKX","NHS","NHS"]
["FTRWNX","South Essex Partnership University NHS Foundation Trust","FTRWNX","NHS","NHS"]
["FTRWRX","Hertfordshire Partnership NHS Foundation Trust","FTRWRX","NHS","NHS"]
["FTRWWX","Warrington and Halton Hospitals NHS Foundation Trust","FTRWWX","NHS","NHS"]
["FTRWXX","Berkshire Healthcare NHS Foundation Trust","FTRWXX","NHS","NHS"]
["FTRWYX","Calderdale and Huddersfield NHS Foundation Trust","FTRWYX","NHS","NHS"]
["FTRX2X","Sussex Partnership NHS Foundation Trust","FTRX2X","NHS","NHS"]
["FTRX3X","Tees Esk and Wear Valleys NHS Foundation Trust","FTRX3X","NHS","NHS"]
["FTRX4X","Northumberland, Tyne & Wear NHS Foundation Trust","FTRX4X","NHS","NHS"]
["FTRXAX","Cheshire and Wirral Partnership NHS Foundation Trust","FTRXAX","NHS","NHS"]
["FTRXEX","Rotherham Doncaster & South Humber NHSFT ","FTRXEX","NHS","NHS"]
["FTRXGX","South West Yorkshire Partnership NHS foundation trust","FTRXGX","NHS","NHS"]
["FTRXLX","Blackpool, Fylde And Wyre Hospitals NHS Foundation Trust","FTRXLX","NHS","NHS"]
["FTRXNX","Lancashire Teaching Hospitals NHS Foundation Trust","FTRXNX","NHS","NHS"]
["FTRXPX","County Durham and Darlington NHS Foundation Trust","FTRXPX","NHS","NHS"]
["FTRXTX","Birmingham and Solihull Mental Health NHS Foundation Trust","FTRXTX","NHS","NHS"]
["FTRXVX","Greater Manchester West Mental Health Foundation Trust","FTRXVX","NHS","NHS"]
["FTRXXX","Surrey and Borders Partnership NHS Foundation Trust","FTRXXX","NHS","NHS"]
["FTRY2X","Bridgwater Community Healthcare NHS FT","FTRY2X","NHS","NHS"]
["FTRY8X","Derbyshire Community Health Services NHS FT","FTRY8X","NHS","NHS"]
["FTRYAX","West Midlands Ambulance Service NHSFT","FTRYAX","NHS","NHS"]
["FTRYDX-01","South Central Ambulance Service NHSFT","FTRYDX-01","NHS","NHS"]
["FTRYDX-02","South East Coast Ambulance Service NHSFT","FTRYDX-02","NHS","NHS"]
["FTRYEX","South Central Ambulance Service NHS Foundation Trust","FTRYEX","NHS","NHS"]
["FTRYFX","South Western Ambulance Service NHSFT","FTRYFX","NHS","NHS"]
["FTRYRX","Western Sussex Hospitals NHSFT","FTRYRX","NHS","NHS"]
["FTRYYX","Kent Community Health NHS FT","FTRYYX","NHS","NHS"]
["FTTAFX","Camden and Islington NHS Foundation Trust","FTTAFX","NHS","NHS"]
["FTTAHX","Sheffield Health and Social Care NHS Foundation Trust","FTTAHX","NHS","NHS"]
["FTTAJX","Black Country Partnership NHS FT","FTTAJX","NHS","NHS"]
["NFTR1A","Worcestshire Health and Care NHS Trust","NFTR1A","NHS","NHS"]
["NFTR1C","The Solent NHS Trust","NFTR1C","NHS","NHS"]
["NFTR1D","Shropshire Community NHS Trust","NFTR1D","NHS","NHS"]
["NFTR1E","Staffordshire and Stoke on Trent Partnership NHS Trust ","NFTR1E","NHS","NHS"]
["NFTR1F","Isle of Wight NHS Trust","NFTR1F","NHS","NHS"]
["NFTR1G","Torbay and Southern Devon Health and Care NHS Trust","NFTR1G","NHS","NHS"]
["NFTR1H","Barts Health NHS Trust","NFTR1H","NHS","NHS"]
["NFTR1J","Gloucestershire Care Services NHS Trust","NFTR1J","NHS","NHS"]
["NFTR1K","London North West Helathcare NHS Trust","NFTR1K","NHS","NHS"]
["NFTRA3","Weston Area Health NFT","NFTRA3","NHS","NHS"]
["NFTRAN","Royal National Orthopaedic Hospital NFT","NFTRAN","NHS","NHS"]
["NFTRAP","North Middlesex University Hospital NFT","NFTRAP","NHS","NHS"]
["NFTRBK","Walsall Hospitals NFT","NFTRBK","NHS","NHS"]
["NFTRBN","St Helens and Knowsley Hospitals NFT","NFTRBN","NHS","NHS"]
["NFTRBZ","Northern Devon Healthcare NFT","NFTRBZ","NHS","NHS"]
["NFTRC1","Bedford Hospitals NFT","NFTRC1","NHS","NHS"]
["FTRD1X","Royal United Hospital Bath NHS FT","FTRD1X","NHS","NHS"]
["NFTRDR","Sussex Community NFT","NFTRDR","NHS","NHS"]
["NFTREF","Royal Cornwall Hospitals NFT","NFTREF","NHS","NHS"]
["NFTRF4","Barking, Havering and Redbridge Hospital NFT","NFTRF4","NHS","NHS"]
["NFTRFW","West Middlesex University NFT","NFTRFW","NHS","NHS"]
["NFTRGQ","Ipswich Hospital NFT","NFTRGQ","NHS","NHS"]
["FTRHAX","Nottinghamshire Healthcare NHS FT","FTRHAX","NHS","NHS"]
["NFTRHU","Portsmouth Hospitals NFT","NFTRHU","NHS","NHS"]
["NFTRJ2","Lewisham and GreenwichHNS Trust","NFTRJ2","NHS","NHS"]
["NFTRJ6","Croydon Health Services NFT","NFTRJ6","NHS","NHS"]
["FTRJ7X","St George's Univeristy Hospitals NHS Foundation Trust","FTRJ7X","NHS","NHS"]
["NFTRJE","University Hospital of North Staffordshi NFT","NFTRJE","NHS","NHS"]
["NFTRJN","East Cheshire NFT","NFTRJN","NHS","NHS"]
["NFTRK9","Plymouth Hospitals NFT","NFTRK9","NHS","NHS"]
["NFTRKB","University Hospitals Coventry and Warwic NFT","NFTRKB","NHS","NHS"]
["NFTRKE","Whittington Hospital NFT","NFTRKE","NHS","NHS"]
["NFTRKL","West London Mental Health NFT","NFTRKL","NHS","NHS"]
["NFTRL4","Royal Wolverhampton Hospitals NFT","NFTRL4","NHS","NHS"]
["NFTRLQ","Wye Valley NHS Trust","NFTRLQ","NHS","NHS"]
["NFTRLT","George Eliot Hospital NFT","NFTRLT","NHS","NHS"]
["NFTRLY","North Staffordshire Combined Healthcare NFT","NFTRLY","NHS","NHS"]
["NFTRN7","Dartford and Gravesham NFT","NFTRN7","NHS","NHS"]
["NFTRNL","North Cumbria Acute Hospitals NFT","NFTRNL","NHS","NHS"]
["NFTRNS","Northampton General Hospital NFT","NFTRNS","NHS","NHS"]
["NFTRQ6","Royal Liverpool and Broadgreen Universit NFT","NFTRQ6","NHS","NHS"]
["NFTRQ8","Mid Essex Hospital Services NFT","NFTRQ8","NHS","NHS"]
["NFTRQQ","Hinchingbrooke Health Care NFT","NFTRQQ","NHS","NHS"]
["NFTRQW","Princess Alexandra Hospital NFT","NFTRQW","NHS","NHS"]
["NFTRQY","South West London and St George's Mental NFT","NFTRQY","NHS","NHS"]
["NFTRR8","Leeds Teaching Hospitals NFT","NFTRR8","NHS","NHS"]
["NFTRRP","Barnet, Enfield and Haringey Mental Heal NFT","NFTRRP","NHS","NHS"]
["NFTRRU","London Ambulance Service NFT","NFTRRU","NHS","NHS"]
["NFTRT5","Leicestershire Partnership NFT","NFTRT5","NHS","NHS"]
["NFTRTH","Oxford University Hospitals NHST","NFTRTH","NHS","NHS"]
["NFTRTP","Surrey And Sussex Healthcare NFT","NFTRTP","NHS","NHS"]
["NFTRVJ","North Bristol NFT","NFTRVJ","NHS","NHS"]
["NFTRVN","Avon and Wiltshire Mental Health Partner NFT","NFTRVN","NHS","NHS"]
["NFTRVR","Epsom and St Helier University Hospitals NFT","NFTRVR","NHS","NHS"]
["NFTRVY","Southport and Ormskirk Hospital NFT","NFTRVY","NHS","NHS"]
["NFTRW4","Mersey Care NFT","NFTRW4","NHS","NHS"]
["NFTRW6","Pennine Acute Hospitals NFT","NFTRW6","NHS","NHS"]
["NFTRWA","Hull and East Yorkshire Hospitals NFT","NFTRWA","NHS","NHS"]
["NFTRWD","United Lincolnshire Hospitals NFT","NFTRWD","NHS","NHS"]
["NFTRWE","University Hospitals of Leicester NFT","NFTRWE","NHS","NHS"]
["NFTRWF","Maidstone and Tunbridge Wells NFT","NFTRWF","NHS","NHS"]
["NFTRWG","West Hertfordshire Hospitals NFT","NFTRWG","NHS","NHS"]
["NFTRWH","East And North Hertfordshire NFT","NFTRWH","NHS","NHS"]
["NFTRWP","Worcestershire Acute Hospitals NFT","NFTRWP","NHS","NHS"]
["NFTRWV","Devon Partnership NFT","NFTRWV","NHS","NHS"]
["NFTRX1","Nottingham University Hospitals NHS Trust","NFTRX1","NHS","NHS"]
["NFTRX7","North West Ambulance Service NHS Trust","NFTRX7","NHS","NHS"]
["NFTRX8","Yorkshire Ambulance Service NHS Trust","NFTRX8","NHS","NHS"]
["NFTRX9","East Midlands Ambulance Service NHS Trust","NFTRX9","NHS","NHS"]
["NFTRXC","East Sussex Hospitals NFT","NFTRXC","NHS","NHS"]
["NFTRXF","Mid Yorkshire Hospitals NFT","NFTRXF","NHS","NHS"]
["NFTRXH","Brighton and Sussex University Hospitals NFT","NFTRXH","NHS","NHS"]
["NFTRXK","Sandwell and West Birmingham Hospitals NFT","NFTRXK","NHS","NHS"]
["NFTRXQ","Buckinghamshire Hospitals NFT","NFTRXQ","NHS","NHS"]
["NFTRXR","East Lancashire Hospitals NFT","NFTRXR","NHS","NHS"]
["NFTRXW","Shrewsbury and Telford Hospitals NFT","NFTRXW","NHS","NHS"]
["NFTRXY","Kent and Medway NHS and Social Care Partnership Trust","NFTRXY","NHS","NHS"]
["NFTRY1","Liverpool Community Healthcare NFT","NFTRY1","NHS","NHS"]
["NFTRY3","Norfolk Community Health and Care NFT","NFTRY3","NHS","NHS"]
["NFTRY4","Hertfordshire Community NFT","NFTRY4","NHS","NHS"]
["NFTRY5","The Lincolnshire Community Health Services NHS Trust","NFTRY5","NHS","NHS"]
["NFTRY6","The Leeds Community NHS Trust","NFTRY6","NHS","NHS"]
["NFTRY7","The Wirral Community NHS Trust","NFTRY7","NHS","NHS"]
["NFTRY9","The Hounclow and Richmond  Community Healthcare NHS Trust","NFTRY9","NHS","NHS"]
["NFTRYC","East of England Ambulance Service NHS Trust","NFTRYC","NHS","NHS"]
["NFTRYG","Coventry and Warwickshire Partnership NHS Trust","NFTRYG","NHS","NHS"]
["NFTRYJ","Imperial College Healthcare NFT","NFTRYJ","NHS","NHS"]
["NFTRYK","Dudley and Walsall Mental Health Partnership NHS Trust","NFTRYK","NHS","NHS"]
["NFTRYV","Cambridgeshire Community Services NFT","NFTRYV","NHS","NHS"]
["NFTRYW","Birmingham Community Healthcare NFT","NFTRYW","NHS","NHS"]
["NFTRYX","Central London Community Healthcare NFT","NFTRYX","NHS","NHS"]
["NFTTAD","Bradford District Care Trust NFT","NFTTAD","NHS","NHS"]
["NFTTAE","Manchester Mental Health and Social Care NFT","NFTTAE","NHS","NHS"]
["W512XX","Isle of Anglesey County Council","W512XX","WelLocGov't","LocGov't"]
["W514XX","Gwynedd County Council","W514XX","WelLocGov't","LocGov't"]
["W516XX","Conwy County Borough Council","W516XX","WelLocGov't","LocGov't"]
["W518XX","Denbighshire County Council","W518XX","WelLocGov't","LocGov't"]
["W520XX","Flintshire County Council","W520XX","WelLocGov't","LocGov't"]
["W522XX","Wrexham County Borough Council","W522XX","WelLocGov't","LocGov't"]
["W524XX","Powys County Council","W524XX","WelLocGov't","LocGov't"]
["W526XX","Ceredigion County Council","W526XX","WelLocGov't","LocGov't"]
["W528XX","Pembrokeshire County Council","W528XX","WelLocGov't","LocGov't"]
["W530XX","Carmarthenshire County Council","W530XX","WelLocGov't","LocGov't"]
["W532XX","Swansea City and County Council","W532XX","WelLocGov't","LocGov't"]
["W534XX","Neath Port Talbot County Borough Council","W534XX","WelLocGov't","LocGov't"]
["W536XX","Bridgend County Borough Council","W536XX","WelLocGov't","LocGov't"]
["W538XX","Vale of Glamorgan County Council","W538XX","WelLocGov't","LocGov't"]
["W540XX","Rhondda Cynon Taff County Borough Council","W540XX","WelLocGov't","LocGov't"]
["W542XX","Merthyr Tydfil County Borough Council","W542XX","WelLocGov't","LocGov't"]
["W544XX","Caerphilly County Borough Council","W544XX","WelLocGov't","LocGov't"]
["W545XX","Blaenau Gwent County Borough Council","W545XX","WelLocGov't","LocGov't"]
["W546XX","Torfaen County Borough Council","W546XX","WelLocGov't","LocGov't"]
["W548XX","Monmouthshire County Council","W548XX","WelLocGov't","LocGov't"]
["W550XX","Newport City Council","W550XX","WelLocGov't","LocGov't"]
["W552XX","Cardiff City and County Council","W552XX","WelLocGov't","LocGov't"]
["W562XX","Dyfed Powys Police and Crime Commissioner","W562XX","WelLocGov't","LocGov't"]
["W564XX","Gwent Police and Crime Commissioner","W564XX","WelLocGov't","LocGov't"]
["W566XX","North Wales Police and Crime Commissioner","W566XX","WelLocGov't","LocGov't"]
["W568XX","South Wales Police and Crime Commissioner","W568XX","WelLocGov't","LocGov't"]
["W572XX","Mid and West Wales Fire Authority","W572XX","WelLocGov't","LocGov't"]
["W574XX","North Wales Fire Authority","W574XX","WelLocGov't","LocGov't"]
["W576XX","South Wales Fire Authority","W576XX","WelLocGov't","LocGov't"]
["W584XX","Pembrokeshire Coast National Park Authority","W584XX","WelLocGov't","LocGov't"]
["W586XX","Snowdonia National Park Authority","W586XX","WelLocGov't","LocGov't"]
["NI001X","Antrim Borough Council - Northern Ireland","NI001X","NILocGov't","LocGov't"]
["NI002X","Ards Borough Council - Northern Ireland","NI002X","NILocGov't","LocGov't"]
["NI003X","Armagh City and District Council - Northern Ireland","NI003X","NILocGov't","LocGov't"]
["NI004X","Ballymena Borough Council - Northern Ireland","NI004X","NILocGov't","LocGov't"]
["NI005X","Ballymoney Borough Council - Northern Ireland","NI005X","NILocGov't","LocGov't"]
["NI006X","Banbridge District Council - Northern Ireland","NI006X","NILocGov't","LocGov't"]
["NI007X","Belfast City Council - Northern Ireland","NI007X","NILocGov't","LocGov't"]
["NI008X","Carrickfergus Borough Council - Northern Ireland","NI008X","NILocGov't","LocGov't"]
["NI009X","Castlereagh Borough Council - Northern Ireland","NI009X","NILocGov't","LocGov't"]
["NI010X","Coleraine Borough Council - Northern Ireland","NI010X","NILocGov't","LocGov't"]
["NI011X","Cookstown District Council - Northern Ireland","NI011X","NILocGov't","LocGov't"]
["NI012X","Craigavon Borough Council - Northern Ireland","NI012X","NILocGov't","LocGov't"]
["NI013X","Derry City Council - Northern Ireland","NI013X","NILocGov't","LocGov't"]
["NI014X","Down District Council - Northern Ireland","NI014X","NILocGov't","LocGov't"]
["NI015X","Dungannon and South Tyrone Borough Council - Northern Ireland","NI015X","NILocGov't","LocGov't"]
["NI016X","Fermanagh District Council - Northern Ireland","NI016X","NILocGov't","LocGov't"]
["NI017X","Larne Borough Council - Northern Ireland","NI017X","NILocGov't","LocGov't"]
["NI018X","Limavady Borough Council - Northern Ireland","NI018X","NILocGov't","LocGov't"]
["NI019X","Lisburn City Council - Northern Ireland","NI019X","NILocGov't","LocGov't"]
["NI020X","Magherafelt District Council - Northern Ireland","NI020X","NILocGov't","LocGov't"]
["NI021X","Moyle District Council - Northern Ireland","NI021X","NILocGov't","LocGov't"]
["NI022X","Newry and Mourne District Council - Northern Ireland","NI022X","NILocGov't","LocGov't"]
["NI023X","Newtownabbey Borough Council - Northern Ireland","NI023X","NILocGov't","LocGov't"]
["NI024X","North Down Borough Council - Northern Ireland","NI024X","NILocGov't","LocGov't"]
["NI025X","Omagh District Council - Northern Ireland","NI025X","NILocGov't","LocGov't"]
["NI026X","Strabane District Council - Northern Ireland","NI026X","NILocGov't","LocGov't"]
["NI027X","Arc21 Joint Committee - Northern Ireland","NI027X","NILocGov't","LocGov't"]
["S001XX","Aberdeen City Council","S001XX","ScotLocGov't","LocGov't"]
["S002XX","Aberdeenshire Council","S002XX","ScotLocGov't","LocGov't"]
["S003XX","Angus Council","S003XX","ScotLocGov't","LocGov't"]
["S004XX","Argyll and Bute Council","S004XX","ScotLocGov't","LocGov't"]
["S005XX","Clackmannanshire Council","S005XX","ScotLocGov't","LocGov't"]
["S006XX","Comhairle nan Eilean Siar (Western Isles Council)","S006XX","ScotLocGov't","LocGov't"]
["S007XX","Dumfries and Galloway Council","S007XX","ScotLocGov't","LocGov't"]
["S008XX","Dundee City Council","S008XX","ScotLocGov't","LocGov't"]
["S009XX","East Ayrshire Council","S009XX","ScotLocGov't","LocGov't"]
["S010XX","East Dunbartonshire Council","S010XX","ScotLocGov't","LocGov't"]
["S011XX","East Lothian Council","S011XX","ScotLocGov't","LocGov't"]
["S012XX","East Renfrewshire Council","S012XX","ScotLocGov't","LocGov't"]
["S013XX","Edinburgh City Council","S013XX","ScotLocGov't","LocGov't"]
["S014XX","Falkirk Council","S014XX","ScotLocGov't","LocGov't"]
["S015XX","Fife Council","S015XX","ScotLocGov't","LocGov't"]
["S016XX","Glasgow City Council","S016XX","ScotLocGov't","LocGov't"]
["S017XX","Highland Council","S017XX","ScotLocGov't","LocGov't"]
["S018XX","Inverclyde Council","S018XX","ScotLocGov't","LocGov't"]
["S019XX","Midlothian Council","S019XX","ScotLocGov't","LocGov't"]
["S020XX","Moray Council","S020XX","ScotLocGov't","LocGov't"]
["S021XX","North Ayrshire Council","S021XX","ScotLocGov't","LocGov't"]
["S022XX","North Lanarkshire Council","S022XX","ScotLocGov't","LocGov't"]
["S023XX","Orkney Islands Council","S023XX","ScotLocGov't","LocGov't"]
["S025XX","Perth and Kinross Council","S025XX","ScotLocGov't","LocGov't"]
["S026XX","Renfrewshire Council","S026XX","ScotLocGov't","LocGov't"]
["S027XX","Scottish Borders Council","S027XX","ScotLocGov't","LocGov't"]
["S028XX","Shetland Islands Council","S028XX","ScotLocGov't","LocGov't"]
["S029XX","South Ayrshire Council","S029XX","ScotLocGov't","LocGov't"]
["S030XX","South Lanarkshire Council","S030XX","ScotLocGov't","LocGov't"]
["S031XX","Stirling Council","S031XX","ScotLocGov't","LocGov't"]
["S032XX","West Dunbartonshire Council","S032XX","ScotLocGov't","LocGov't"]
["S033XX","West Lothian Council","S033XX","ScotLocGov't","LocGov't"]
["S034XX","Central Scotland Fire and Rescue Service","S034XX","ScotLocGov't","LocGov't"]
["S035XX","Grampian Fire and Rescue Service","S035XX","ScotLocGov't","LocGov't"]
["S036XX","Highlands & Islands Fire Brigade","S036XX","ScotLocGov't","LocGov't"]
["S037XX","Lothian & Borders Fire and Rescue Service","S037XX","ScotLocGov't","LocGov't"]
["S038XX","Strathclyde Fire and Rescue Service","S038XX","ScotLocGov't","LocGov't"]
["S039XX","Tayside Fire and Rescue","S039XX","ScotLocGov't","LocGov't"]
["S040XX","Central Scotland Police","S040XX","ScotLocGov't","LocGov't"]
["S041XX","Grampian Police","S041XX","ScotLocGov't","LocGov't"]
["S042XX","Lothian & Borders Police ","S042XX","ScotLocGov't","LocGov't"]
["S043XX","Northern Constabulary","S043XX","ScotLocGov't","LocGov't"]
["S044XX","Strathclyde Police","S044XX","ScotLocGov't","LocGov't"]
["S045XX","Tayside Police","S045XX","ScotLocGov't","LocGov't"]
["S046XX","Strathclyde Partnership for Transport","S046XX","ScotLocGov't","LocGov't"]
["S049XX","South-East of Scotland Transport Partnership (SESTRAN)","S049XX","ScotLocGov't","LocGov't"]
["S055XX","Forth Estuary Transport Authority","S055XX","ScotLocGov't","LocGov't"]
["S056XX","Tay Road Bridge Joint Board","S056XX","ScotLocGov't","LocGov't"]
["S099XX","Shetland Charitable Trust","S099XX","ScotLocGov't","LocGov't"]
["S100XX","Police Service Scotland","S100XX","ScotLocGov't","LocGov't"]
["S200XX","Fire Service Scotland","S200XX","ScotLocGov't","LocGov't"]

{"sheet":"LA CPID Look up","index":10,"n_rows":154,"n_cols":6,"rows_kept":154,"cut":false,"hidden":true,"merged":[]}
[]
["Academy file name","CPID name"]
["Row Labels"]
["Barking and Dagenham London Borough Council","Barking & Dagenham London Borough Council",null,null,null,{"$f":"IF(A4<>B4,\"Diff\",\"ok\")","v":"Diff"}]
["Barnet London Borough Council","Barnet London Borough Council",null,null,null,{"$f":"IF(A5<>B5,\"Diff\",\"ok\")","v":"ok"}]
["Barnsley Metropolitan Borough Council","Barnsley Metropolitan Borough Council",null,null,null,"ok"]
["Bath & North East Somerset Council","Bath & North East Somerset Council",null,null,null,"ok"]
["Bedford Borough Council","Bedford Unitary Authority",null,null,null,"Diff"]
["Bexley London Borough Council","Bexley London Borough Council",null,null,null,"ok"]
["Birmingham City Council","Birmingham City Council",null,null,null,"ok"]
["Blackburn with Darwen Borough Council","Blackburn with Darwen Unitary Authority",null,null,null,"Diff"]
["Blackpool Council","Blackpool Unitary Authority",null,null,null,"Diff"]
["Bolton Metropolitan Borough Council","Bolton Metropolitan Borough Council",null,null,null,"ok"]
["Bournemouth Borough Council","Bournemouth Council",null,null,null,"Diff"]
["Bracknell Forest Council","Bracknell Forest Borough Council",null,null,null,"Diff"]
["Bradford Metropolitan District Council","Bradford City Council",null,null,null,"Diff"]
["Brent London Borough Council","Brent London Borough Council",null,null,null,"ok"]
["Brighton and Hove City Council","Brighton & Hove City Council",null,null,null,"Diff"]
["Bristol City Council","Bristol City Council",null,null,null,"ok"]
["Bromley London Borough Council","Bromley London Borough Council",null,null,null,"ok"]
["Buckinghamshire County Council","Buckinghamshire County Council",null,null,null,"ok"]
["Bury Metropolitan Borough Council","Bury Metropolitan Borough Council",null,null,null,"ok"]
["Calderdale Metropolitan Borough Council","Calderdale Metropolitan Borough Council",null,null,null,"ok"]
["Cambridgeshire County Council","Cambridgeshire County Council",null,null,null,"ok"]
["Camden London Borough Council","Camden London Borough Council",null,null,null,"ok"]
["Central Bedfordshire Council","Central Bedfordshire Unitary Authority",null,null,null,"Diff"]
["Cheshire East Council","Cheshire East Unitary Authority",null,null,null,"Diff"]
["Cheshire West and Chester Council","Cheshire West and Chester Unitary Authority",null,null,null,"Diff"]
["City of York Council","City of York Council",null,null,null,"ok"]
["Cornwall Council","Cornwall Unitary Authority",null,null,null,"Diff"]
["Coventry City Council","Coventry City Council",null,null,null,"ok"]
["Croydon London Borough Council","Croydon London Borough Council",null,null,null,"ok"]
["Cumbria County Council","Cumbria County Council",null,null,null,"ok"]
["Darlington Borough Council","Darlington Borough Council",null,null,null,"ok"]
["Derby City Council","Derby City Council",null,null,null,"ok"]
["Derbyshire County Council","Derbyshire County Council",null,null,null,"ok"]
["Devon County Council","Devon County Council",null,null,null,"ok"]
["Doncaster Metropolitan Borough Council","Doncaster Metropolitan Borough Council",null,null,null,"ok"]
["Dorset County Council","Dorset County Council",null,null,null,"ok"]
["Dudley Metropolitan Borough Council","Dudley Metropolitan Borough Council",null,null,null,"ok"]
["Durham County Council","County Durham Unitary Authority",null,null,null,"Diff"]
["Ealing London Borough Council","Ealing London Borough Council",null,null,null,"ok"]
["East Riding of Yorkshire Council","East Riding of Yorkshire Council",null,null,null,"ok"]
["East Sussex County Council","East Sussex County Council",null,null,null,"ok"]
["Enfield London Borough Council","Enfield London Borough Council",null,null,null,"ok"]
["Essex County Council","Essex County Council",null,null,null,"ok"]
["Gateshead Council","Gateshead Council",null,null,null,"ok"]
["Gloucestershire County Council","Gloucestershire County Council",null,null,null,"ok"]
["Greenwich London Borough Council","Greenwich London Borough Council",null,null,null,"ok"]
["Hackney London Borough Council (The Learning Trust)","Hackney London Borough Council",null,null,null,"Diff"]
["Halton Borough Council","Halton Borough Council",null,null,null,"ok"]
["Hammersmith and Fulham London Borough Council","Hammersmith and Fulham London Borough Council",null,null,null,"ok"]
["Hampshire County Council","Hampshire County Council",null,null,null,"ok"]
["Haringey London Borough Council","Haringey London Borough Council",null,null,null,"ok"]
["Harrow London Borough Council","Harrow London Borough Council",null,null,null,"ok"]
["Hartlepool Borough Council","Hartlepool Borough Council",null,null,null,"ok"]
["Havering London Borough Council","Havering London Borough Council",null,null,null,"ok"]
["Herefordshire Council","Herefordshire Council",null,null,null,"ok"]
["Hertfordshire County Council","Hertfordshire County Council",null,null,null,"ok"]
["Hillingdon London Borough Council","Hillingdon London Borough Council",null,null,null,"ok"]
["Hounslow London Borough Council","Hounslow London Borough Council",null,null,null,"ok"]
["Hull City Council","Kingston upon Hull City Council",null,null,null,"Diff"]
["Isle of Wight Council","Isle of Wight Council",null,null,null,"ok"]
["Islington London Borough Council","Islington London Borough Council",null,null,null,"ok"]
["Kent County Council","Kent County Council",null,null,null,"ok"]
["Kirklees Metropolitan Council","Kirklees Metropolitan Council",null,null,null,"ok"]
["Knowsley Metropolitan Borough Council","Knowsley Metropolitan Borough Council",null,null,null,"ok"]
["Lambeth London Borough Council","Lambeth London Borough Council",null,null,null,"ok"]
["Lancashire County Council","Lancashire County Council",null,null,null,{"$f":"IF(A69<>B69,\"Diff\",\"ok\")","v":"ok"}]
["Leeds City Council","Leeds City Council",null,null,null,"ok"]
["Leicester City Council","Leicester City Council",null,null,null,"ok"]
["Leicestershire County Council","Leicestershire County Council",null,null,null,"ok"]
["Lewisham London Borough Council","Lewisham London Borough Council",null,null,null,"ok"]
["Lincolnshire County Council","Lincolnshire County Council",null,null,null,"ok"]
["Liverpool City Council","Liverpool City Council",null,null,null,"ok"]
["Luton Borough Council","Luton Borough Council",null,null,null,"ok"]
["Manchester City Council","Manchester City Council",null,null,null,"ok"]
["Medway Council","Medway Towns Unitary Authority (The)",null,null,null,"Diff"]
["Merton Borough Council","Merton Borough Council",null,null,null,"ok"]
["Middlesbrough Council","Middlesbrough Council",null,null,null,"ok"]
["Milton Keynes Council","Milton Keynes Council",null,null,null,"ok"]
["Newcastle Upon Tyne City Council","Newcastle upon Tyne City Council",null,null,null,"ok"]
["Newham London Borough Council","Newham London Borough Council",null,null,null,"ok"]
["Norfolk County Council","Norfolk County Council",null,null,null,"ok"]
["North East Lincolnshire Council","North East Lincolnshire Council",null,null,null,"ok"]
["North Lincolnshire Council","North Lincolnshire Council",null,null,null,"ok"]
["North Somerset District Council","North Somerset Council",null,null,null,"Diff"]
["North Tyneside Council","North Tyneside Metropolitan Borough Council",null,null,null,"Diff"]
["North Yorkshire County Council","North Yorkshire County Council",null,null,null,"ok"]
["Northamptonshire County Council","Northamptonshire County Council",null,null,null,"ok"]
["Northumberland County Council","Northumberland Unitary Authority",null,null,null,"Diff"]
["Nottingham City Council","Nottingham City Council",null,null,null,"ok"]
["Nottinghamshire County Council","Nottinghamshire County Council",null,null,null,"ok"]
["Oldham Metropolitan Borough Council","Oldham Metropolitan Borough Council",null,null,null,"ok"]
["Oxfordshire County Council","Oxfordshire County Council",null,null,null,"ok"]
["Peterborough City Council","Peterborough City Council",null,null,null,"ok"]
["Plymouth City Council","Plymouth City Council",null,null,null,"ok"]
["Poole Borough Council","Poole (Borough of)",null,null,null,"Diff"]
["Portsmouth City Council","Portsmouth City Council",null,null,null,"ok"]
["Reading Borough Council","Reading Borough Council",null,null,null,"ok"]
["Redbridge London Borough Council","Redbridge London Borough Council",null,null,null,"ok"]
["Redcar and Cleveland Borough Council","Redcar and Cleveland Borough Council",null,null,null,"ok"]
["Richmond Upon Thames Borough Council","Richmond upon Thames Borough Council",null,null,null,"ok"]
["Rochdale Metropolitan Borough Council","Rochdale Borough Council",null,null,null,"Diff"]
["Rotherham Metropolitan Borough Council","Rotherham Borough Council",null,null,null,"Diff"]
["Royal Borough of Kensington and Chelsea Council","Kensington and Chelsea Council (Royal Borough of)",null,null,null,"Diff"]
["Royal Borough of Kingston Upon Thames Council","Kingston upon Thames Council (Royal Borough of)",null,null,null,"Diff"]
["Royal Borough of Windsor and Maidenhead","Windsor and Maidenhead (Royal Borough of)",null,null,null,"Diff"]
["Rutland County Council","Rutland County Council",null,null,null,"ok"]
["Salford City Council","Salford City Council",null,null,null,"ok"]
["Sandwell Metropolitan Borough Council","Sandwell Metropolitan Borough Council",null,null,null,"ok"]
["Sefton Metropolitan Borough Council","Sefton Metropolitan Borough Council",null,null,null,"ok"]
["Sheffield City Council","Sheffield City Council",null,null,null,"ok"]
["Shropshire Council","Shropshire Unitary Authority",null,null,null,"Diff"]
["Slough Borough Council","Slough Borough Council",null,null,null,"ok"]
["Solihull Metropolitan Borough Council","Solihull Metropolitan Borough Council",null,null,null,"ok"]
["Somerset County Council","Somerset County Council",null,null,null,"ok"]
["South Gloucestershire Council","South Gloucestershire Council",null,null,null,"ok"]
["South Tyneside Council","South Tyneside Council",null,null,null,"ok"]
["Southampton City Council","Southampton City Council",null,null,null,"ok"]
["Southend-on-Sea Borough Council","Southend-on-Sea Borough Council",null,null,null,"ok"]
["Southwark London Borough Council","Southwark London Borough Council",null,null,null,"ok"]
["St Helens Metropolitan Borough Council","St Helens Metropolitan Borough Council",null,null,null,"ok"]
["Staffordshire County Council","Staffordshire County Council",null,null,null,"ok"]
["Stockport Metropolitan Borough Council","Stockport Metropolitan Borough Council",null,null,null,"ok"]
["Stockton-on-Tees Borough Council","Stockton-on-Tees Borough Council",null,null,null,"ok"]
["Stoke-on-Trent City Council","Stoke-on-Trent Unitary Authority",null,null,null,"Diff"]
["Suffolk County Council","Suffolk County Council",null,null,null,"ok"]
["Sunderland City Council","Sunderland City Metropolitan Borough Council",null,null,null,"Diff"]
["Surrey County Council","Surrey County Council",null,null,null,"ok"]
["Sutton London Borough Council","Sutton London Borough Council",null,null,null,"ok"]
["Swindon Borough Council","Swindon Unitary Authority",null,null,null,"Diff"]
["Tameside Metropolitan Borough Council","Tameside Metropolitan Borough Council",null,null,null,{"$f":"IF(A133<>B133,\"Diff\",\"ok\")","v":"ok"}]
["Telford and Wrekin Council","Telford and Wrekin (Borough of)",null,null,null,"Diff"]
["Thurrock Borough Council","Thurrock Unitary Authority",null,null,null,"Diff"]
["Torbay Council","Torbay Council",null,null,null,"ok"]
["Tower Hamlets London Borough Council","Tower Hamlets London Borough Council",null,null,null,"ok"]
["Trafford Borough Council","Trafford Metropolitan Borough Council",null,null,null,"Diff"]
["Wakefield Council","Wakefield City Council",null,null,null,"Diff"]
["Walsall Metropolitan Borough Council","Walsall Metropolitan Borough Council",null,null,null,"ok"]
["Waltham Forest London Borough Council","Waltham Forest London Borough Council",null,null,null,"ok"]
["Wandsworth London Borough Council","Wandsworth London Borough Council",null,null,null,"ok"]
["Warrington Borough Council","Warrington Borough Council",null,null,null,"ok"]
["Warwickshire County Council","Warwickshire County Council",null,null,null,"ok"]
["West Berkshire Council","West Berkshire Council",null,null,null,"ok"]
["West Sussex County Council","West Sussex County Council",null,null,null,"ok"]
["Westminster City Council","Westminster City Council",null,null,null,"ok"]
["Wigan Metropolitan Borough Council","Wigan Metropolitan Borough Council",null,null,null,"ok"]
["Wiltshire Council","Wiltshire Unitary Authority",null,null,null,"Diff"]
["Wirral Metropolitan Borough Council","Wirral Metropolitan Borough Council",null,null,null,"ok"]
["Wokingham Borough Council","Wokingham Council",null,null,null,"Diff"]
["Wolverhampton City Council","Wolverhampton City Council",null,null,null,"ok"]
["Worcestershire County Council","Worcestershire County Council",null,null,null,"ok"]
["Grand Total"]

{"sheet":"Reference","index":11,"n_rows":5605,"n_cols":21,"rows_kept":4500,"cut":true,"hidden":false,"merged":[[4,14,4,19]],"bounds":{"rows_first":2000,"rows_last":500,"rows_between":2000,"halvings":0}}
["EFA Accounts Return"]
["Period end:",{"$f":"'Standing Data'!D6","v":"2016-03-31"}]
[]
["LOOKUPS AND DATA TABLES"]
[null,null,null,null,null,null,null,null,null,null,null,null,null,null,"Academy schools - as at 31 March 2016"]
[]
[null,null,null,null,"Period length",null,"New or existing member",null,"Pension Schemes",null,null,"Pension scheme types",null,null,"UPIN","NAME","Date of conversion","LA","LA CPID","Regional Schools Commissioner"]
[null,null,"Yes",null,"Year",null,"Member for whole period",null,"LGPS",1,null,"Defined benefit scheme(s) - multi-employer allocated scheme assets and liabilities"]
[null,null,"No",null,"Short first period",null,"Newly converted member",null,"Teachers Pension Scheme",2,null,"Defined benefit scheme(s) - single employer",null,null,"Multiple","Multi-academy Trust","Multiple","Multiple",null,"Multiple"]
[null,null,null,null,"Long first period",null,"In period transfer in",null,"Stakeholder/private pension scheme provider",3,null,"Defined benefit scheme(s) - multi-employer unallocated scheme assets and liabilities",null,null,130335,"AB Kettleby Community Primary School","2014-04-01","Leicestershire County Council",{"$f":"VLOOKUP(R10,'LA CPID Look up'!$A$3:$C$153,2,FALSE)","v":"Leicestershire County Council"},"East Midlands and the Humber"]
[null,null,null,null,"Short later period",null,"In period transfer out",null,"Other",4,null,"Defined contribution scheme(s)",null,null,123288,"Abacus Belsize Primary School","2013-09-01","Camden London Borough Council",{"$f":"VLOOKUP(R11,'LA CPID Look up'!$A$3:$C$153,2,FALSE)","v":"Camden London Borough Council"},"South-Central England and North-West London"]
[null,null,null,null,"Long later period",null,null,null,"Scheme Name",5,null,"Stakeholder/private pension provision",null,null,127210,"Abbey CofE Academy","2013-12-01","Northamptonshire County Council",{"$f":"VLOOKUP(R12,'LA CPID Look up'!$A$3:$C$153,2,FALSE)","v":"Northamptonshire County Council"},"East of England and North-East London"]
["Predecessor School Type",null,null,null,null,null,null,null,null,6,null,"Scheme Type",null,null,120322,"Abbey College, Ramsey","2011-09-01","Cambridgeshire County Council",{"$f":"VLOOKUP(R13,'LA CPID Look up'!$A$3:$C$153,2,FALSE)","v":"Cambridgeshire County Council"},"East of England and North-East London"]
["LA school",null,null,null,null,null,null,null,null,7,null,null,null,null,120083,"Abbey Grange Church of England Academy","2011-08-01","Leeds City Council",{"$f":"VLOOKUP(R14,'LA CPID Look up'!$A$3:$C$153,2,FALSE)","v":"Leeds City Council"},"Lancashire and West Yorkshire"]
["Independent school",null,null,null,null,null,null,null,null,8,null,null,null,null,124243,"Abbey Hey Primary Academy","2013-12-01","Manchester City Council",{"$f":"VLOOKUP(R15,'LA CPID Look up'!$A$3:$C$153,2,FALSE)","v":"Manchester City Council"},"Lancashire and West Yorkshire"]
["Faith school",null,null,null,null,null,null,null,null,9,null,null,null,null,124569,"Abbey Hill Academy","2013-08-01","Stockton-on-Tees Borough Council",{"$f":"VLOOKUP(R16,'LA CPID Look up'!$A$3:$C$153,2,FALSE)","v":"Stockton-on-Tees Borough Council"},"North of England"]
["Foundation school",null,null,null,null,null,null,null,null,10,null,null,null,null,119988,"Abbey Infants' School","2011-08-01","Darlington Borough Council",{"$f":"VLOOKUP(R17,'LA CPID Look up'!$A$3:$C$153,2,FALSE)","v":"Darlington Borough Council"},"North of England"]
["Voluntary aided/controlled",null,null,null,"Special payments and losses",null,"Related parties",null,null,null,null,null,null,null,119989,"Abbey Junior School","2011-08-01","Darlington Borough Council",{"$f":"VLOOKUP(R18,'LA CPID Look up'!$A$3:$C$153,2,FALSE)","v":"Darlington Borough Council"},"North of England"]
["No predecessor",null,null,null,"Cash losses",null,"No transactions",null,null,null,null,null,null,null,126329,"Abbey Park Academy","2013-12-01","Calderdale Metropolitan Borough Council",{"$f":"VLOOKUP(R19,'LA CPID Look up'!$A$3:$C$153,2,FALSE)","v":"Calderdale Metropolitan Borough Council"},"Lancashire and West Yorkshire"]
[null,null,null,null,"Claims abandoned",null,"Transactions",null,null,null,null,null,null,null,120154,"Abbey School, The","2011-08-01","Kent County Council",{"$f":"VLOOKUP(R20,'LA CPID Look up'!$A$3:$C$153,2,FALSE)","v":"Kent County Council"},"South-East England and South London"]
["Audit opinion",null,null,null,"Administration write-offs",null,null,null,null,null,null,null,null,null,123404,"Abbey View","2013-09-01","Gloucestershire County Council",{"$f":"VLOOKUP(R21,'LA CPID Look up'!$A$3:$C$153,2,FALSE)","v":"Gloucestershire County Council"},"South-West England"]
["Unqualified",null,null,null,"Fruitless payments",null,null,null,null,null,null,null,null,null,123534,"Abbey Woods Academy","2013-09-01","Oxfordshire County Council",{"$f":"VLOOKUP(R22,'LA CPID Look up'!$A$3:$C$153,2,FALSE)","v":"Oxfordshire County Council"},"East of England and North-East London"]
["Qualified",null,null,null,"Store/stock losses",null,null,null,"Assurance report on regularity conclusion",null,null,"LGPS Schemes",null,null,122250,"Abbeyfield School","2012-10-01","Northamptonshire County Council",{"$f":"VLOOKUP(R23,'LA CPID Look up'!$A$3:$C$153,2,FALSE)","v":"Northamptonshire County Council"},"East of England and North-East London"]
["Emphasis of Matter",null,null,null,"Special payments - non contractual exit packages",null,null,null,"No matters by exception",null,null,"Barking and Dagenham - LGPS",null,null,122309,"Abbeywood Community School","2013-01-01","South Gloucestershire Council",{"$f":"VLOOKUP(R24,'LA CPID Look up'!$A$3:$C$153,2,FALSE)","v":"South Gloucestershire Council"},"South-West England"]
["Adverse",null,null,null,"Special payments -other",null,null,null,"Matters by exception",null,null,"Barnet - LGPS",null,null,133078,"Abbeywood First School","2016-03-01","Worcestershire County Council",{"$f":"VLOOKUP(R25,'LA CPID Look up'!$A$3:$C$153,2,FALSE)","v":"Worcestershire County Council"},"West Midlands"]
["N/A - 31 March",null,null,null,"Gifts",null,null,null,"N/A - 31 March",null,null,"Bath and North East Somerset Council - LGPS",null,null,122896,"Abbots Hall Primary School","2013-05-01","Thurrock Borough Council",{"$f":"VLOOKUP(R26,'LA CPID Look up'!$A$3:$C$153,2,FALSE)","v":"Thurrock Unitary Authority"},"East of England and North-East London"]
[null,null,null,null,"Academy Type",null,null,null,null,null,null,"Bedfordshire Pension Fund - LGPS",null,null,131130,"Abbotsweld Primary School","2015-01-01","Essex County Council",{"$f":"VLOOKUP(R27,'LA CPID Look up'!$A$3:$C$153,2,FALSE)","v":"Essex County Council"},"East of England and North-East London"]
[null,null,null,null,"Sponsored Academy",null,null,null,null,null,null,"Bexley - LGPS",null,null,119551,"Abbs Cross Academy and Arts College","2011-04-01","Havering London Borough Council",{"$f":"VLOOKUP(R28,'LA CPID Look up'!$A$3:$C$153,2,FALSE)","v":"Havering London Borough Council"},"East of England and North-East London"]
["Period End",null,null,null,"Converter Academy",null,null,null,"Benchmarking period",null,null,"Brent - LGPS",null,null,121187,"Abington Vale Primary School","2012-11-01","Northamptonshire County Council",{"$f":"VLOOKUP(R29,'LA CPID Look up'!$A$3:$C$153,2,FALSE)","v":"Northamptonshire County Council"},"East of England and North-East London"]
["2014-03-31",null,null,null,"Fast Track Sponsored",null,null,null,null,null,null,"Bromley - LGPS",null,null,119101,"Abraham Darby Academy","2008-09-02","Telford and Wrekin Council",{"$f":"VLOOKUP(R30,'LA CPID Look up'!$A$3:$C$153,2,FALSE)","v":"Telford and Wrekin (Borough of)"},"West Midlands"]
["2014-04-30",null,null,null,"Free School",null,null,null,"0 -6 months",null,null,"Buckinghamshire County Council- LGPS",null,null,120210,"Abraham Guest Academy","2012-01-01","Wigan Metropolitan Borough Council",{"$f":"VLOOKUP(R31,'LA CPID Look up'!$A$3:$C$153,2,FALSE)","v":"Wigan Metropolitan Borough Council"},"Lancashire and West Yorkshire"]
["2014-05-31",null,null,null,"University Technical College",null,null,null,"6 - 12 months",null,null,"Cambridgeshire County Council - LGPS",null,null,122270,"Academy @ Worden","2013-02-01","Lancashire County Council",{"$f":"VLOOKUP(R32,'LA CPID Look up'!$A$3:$C$153,2,FALSE)","v":"Lancashire County Council"},"Lancashire and West Yorkshire"]
["2014-06-30",null,null,null,"Special School",null,null,null,"12 months",null,null,"Camden - LGPS",null,null,119119,"Academy 360","2008-09-01","Sunderland City Council",{"$f":"VLOOKUP(R33,'LA CPID Look up'!$A$3:$C$153,2,FALSE)","v":"Sunderland City Metropolitan Borough Council"},"North of England"]
["2014-07-31",null,null,null,"Studio School",null,null,null,"12 - 18 months",null,null,"Cheshire Pension Fund - LGPS",null,null,119508,"Academy at Shotton Hall, The","2011-02-01","Durham County Council",{"$f":"VLOOKUP(R34,'LA CPID Look up'!$A$3:$C$153,2,FALSE)","v":"County Durham Unitary Authority"},"North of England"]
["2014-08-31",null,null,null,"Multiple",null,null,null,"18 + months",null,null,"Cornwall County Council - LGPS",null,null,123407,"Academy of Central Bedfordshire, The","2013-09-01","Bedford Borough Council",{"$f":"VLOOKUP(R35,'LA CPID Look up'!$A$3:$C$153,2,FALSE)","v":"Bedford Unitary Authority"},"South-Central England and North-West London"]
["2015-03-31",null,null,null,"CTC",null,null,null,null,null,null,"Corporation of London - LGPS",null,null,119111,"Academy of St Francis of Assisi, The","2005-09-01","Liverpool City Council",{"$f":"VLOOKUP(R36,'LA CPID Look up'!$A$3:$C$153,2,FALSE)","v":"Liverpool City Council"},"Lancashire and West Yorkshire"]
["2015-08-31",null,null,null,"Intermediate",null,null,null,"Land and Buildings",null,null,"Croydon - LGPS",null,null,119813,"Academy of Trinity C of E Primary","2011-06-01","Bath & North East Somerset Council",{"$f":"VLOOKUP(R37,'LA CPID Look up'!$A$3:$C$153,2,FALSE)","v":"Bath & North East Somerset Council"},"South-West England"]
["2016-03-31",null,null,null,"Other",null,null,null,"Land and Buildings - school buildings",null,null,"Cumbria County Council - LGPS",null,null,120096,"Academy Selsey, The","2011-09-01","West Sussex County Council",{"$f":"VLOOKUP(R38,'LA CPID Look up'!$A$3:$C$153,2,FALSE)","v":"West Sussex County Council"},"South-East England and South London"]
[null,null,null,null,null,null,null,null,"Land and Buildings - sports facilities",null,null,"Derbyshire County Council - LGPS",null,null,118597,"Accrington Academy","2008-09-01","Lancashire County Council",{"$f":"VLOOKUP(R39,'LA CPID Look up'!$A$3:$C$153,2,FALSE)","v":"Lancashire County Council"},"Lancashire and West Yorkshire"]
[null,null,null,null,"Freehold/leasehold",null,null,null,"Land and Buildings - HQ/admin",null,null,"Devon County Council - LGPS",null,null,120359,"Accrington St Christopher's Church of England High School","2011-09-01","Lancashire County Council",{"$f":"VLOOKUP(R40,'LA CPID Look up'!$A$3:$C$153,2,FALSE)","v":"Lancashire County Council"},"Lancashire and West Yorkshire"]
[null,null,null,null,"Freehold Land and Buildings","_FreeholdLandandBuildings","_FreeholdLBRental",null,"Land and Buildings - Investment",null,null,"Dorset County Council  - LGPS",null,null,122775,"ACE Academy, The","2013-03-01","Sandwell Metropolitan Borough Council",{"$f":"VLOOKUP(R41,'LA CPID Look up'!$A$3:$C$153,2,FALSE)","v":"Sandwell Metropolitan Borough Council"},"West Midlands"]
[null,null,null,null,"Leasehold Land and Buildings","_LeaseholdLandandBuildings","_LeaseholdLBRental",null,"Land and Buildings - Other",null,null,"Durham County Council - LGPS",null,null,122565,"Acle Academy","2012-09-01","Norfolk County Council",{"$f":"VLOOKUP(R42,'LA CPID Look up'!$A$3:$C$153,2,FALSE)","v":"Norfolk County Council"},"East of England and North-East London"]
[null,null,null,null,"Leasehold Improvements","_LeaseholdImprovements","_ImprovementsLBRental",null,"Land only - sports pitches",null,null,"Ealing - LGPS",null,null,123272,"Acocks Green Primary School","2013-04-01","Birmingham City Council",{"$f":"VLOOKUP(R43,'LA CPID Look up'!$A$3:$C$153,2,FALSE)","v":"Birmingham City Council"},"West Midlands"]
[null,null,null,null,"Donor/lessor",null,null,null,"Land only - car parks",null,null,"East Riding Pension Fund - LGPS",null,null,123412,"Acorn Free School","2013-09-01","Lincolnshire County Council",{"$f":"VLOOKUP(R44,'LA CPID Look up'!$A$3:$C$153,2,FALSE)","v":"Lincolnshire County Council"},"East Midlands and the Humber"]
[null,null,null,null,"Purchase by trust",null,null,null,"Land only - investment",null,null,"East Sussex County Council - LGPS",null,null,123239,"Acorns Primary School","2014-09-01","Warwickshire County Council",{"$f":"VLOOKUP(R45,'LA CPID Look up'!$A$3:$C$153,2,FALSE)","v":"Warwickshire County Council"},"West Midlands"]
[null,null,null,null,"Local authority",null,null,null,"Land only - other",null,null,"Enfield - LGPS",null,null,122311,"Acre Hall Primary School","2013-07-01","Trafford Borough Council",{"$f":"VLOOKUP(R46,'LA CPID Look up'!$A$3:$C$153,2,FALSE)","v":"Trafford Metropolitan Borough Council"},"Lancashire and West Yorkshire"]
[null,null,null,null,"Church",null,null,null,null,null,null,"Environment Agency - LGPS",null,null,122739,"Acre Rigg Academy","2012-12-01","Durham County Council",{"$f":"VLOOKUP(R47,'LA CPID Look up'!$A$3:$C$153,2,FALSE)","v":"County Durham Unitary Authority"},"North of England"]
[null,null,null,null,"Other faith body",null,null,null,null,null,null,"Essex County Council - LGPS",null,null,130951,"Ad Astra Infant School","2015-04-01","Poole Borough Council",{"$f":"VLOOKUP(R48,'LA CPID Look up'!$A$3:$C$153,2,FALSE)","v":"Poole (Borough of)"},"South-West England"]
[null,null,null,null,"Other",null,null,null,"_LeaseholdLandandBuildings",null,null,"Gloucestershire County Council - LGPS",null,null,120418,"Adams' Grammar School","2011-09-01","Telford and Wrekin Council",{"$f":"VLOOKUP(R49,'LA CPID Look up'!$A$3:$C$153,2,FALSE)","v":"Telford and Wrekin (Borough of)"},"West Midlands"]
[null,null,null,null,null,null,null,null,"Operating",null,null,"Greater Manchester Pension Fund - LGPS",null,null,129409,"Adelaide School","2013-12-01","Cheshire East Council",{"$f":"VLOOKUP(R50,'LA CPID Look up'!$A$3:$C$153,2,FALSE)","v":"Cheshire East Unitary Authority"},"West Midlands"]
[null,null,null,null,"_FreeholdLBRental",null,null,null,"Finance",null,null,"Greenwich - LGPS",null,null,129888,"Adisham Church of England Primary School","2014-09-01","Kent County Council",{"$f":"VLOOKUP(R51,'LA CPID Look up'!$A$3:$C$153,2,FALSE)","v":"Kent County Council"},"South-East England and South London"]
[null,null,null,null,"n/a",null,null,null,null,null,null,"Hackney - LGPS",null,null,129010,"Admiral Lord Nelson School","2014-04-01","Portsmouth City Council",{"$f":"VLOOKUP(R52,'LA CPID Look up'!$A$3:$C$153,2,FALSE)","v":"Portsmouth City Council"},"South-East England and South London"]
[null,null,null,null,null,null,null,null,null,null,null,"Hammersmith and Fulham - LGPS",null,null,122656,"Admirals Academy","2012-11-01","Norfolk County Council",{"$f":"VLOOKUP(R53,'LA CPID Look up'!$A$3:$C$153,2,FALSE)","v":"Norfolk County Council"},"East of England and North-East London"]
[null,null,null,null,null,null,null,null,"_LeaseholdImprovements",null,null,"Hampshire Pension Fund - LGPS",null,null,132034,"Aegir","2015-07-01","Lincolnshire County Council",{"$f":"VLOOKUP(R54,'LA CPID Look up'!$A$3:$C$153,2,FALSE)","v":"Lincolnshire County Council"},"East Midlands and the Humber"]
[null,null,null,null,"_LeaseholdLBRental",null,null,null,"Operating",null,null,"Haringey - LGPS",null,null,123037,"Aerodrome Primary Academy","2012-12-01","Croydon London Borough Council",{"$f":"VLOOKUP(R55,'LA CPID Look up'!$A$3:$C$153,2,FALSE)","v":"Croydon London Borough Council"},"South-East England and South London"]
[null,null,null,null,"Nominal",null,null,null,"Finance",null,null,"Harrow - LGPS",null,null,124306,"Ainthorpe Primary School","2013-12-01","Hull City Council",{"$f":"VLOOKUP(R56,'LA CPID Look up'!$A$3:$C$153,2,FALSE)","v":"Kingston upon Hull City Council"},"East Midlands and the Humber"]
[null,null,null,null,"Market Value",null,null,null,"Rental",null,null,"Havering - LGPS",null,null,119563,"Airedale Academy","2011-04-01","Wakefield Council",{"$f":"VLOOKUP(R57,'LA CPID Look up'!$A$3:$C$153,2,FALSE)","v":"Wakefield City Council"},"Lancashire and West Yorkshire"]
[null,null,null,null,null,null,null,null,null,null,null,"Hertfordshire County Council - LGPS",null,null,131232,"Airedale Infant School","2014-11-01","Wakefield Council",{"$f":"VLOOKUP(R58,'LA CPID Look up'!$A$3:$C$153,2,FALSE)","v":"Wakefield City Council"},"Lancashire and West Yorkshire"]
[null,null,null,null,"_ImprovementsLBRental",null,null,null,"_FreeholdLandandBuildings",null,null,"Hillingdon - LGPS",null,null,131374,"Airedale Junior School","2015-01-01","Wakefield Council",{"$f":"VLOOKUP(R59,'LA CPID Look up'!$A$3:$C$153,2,FALSE)","v":"Wakefield City Council"},"Lancashire and West Yorkshire"]
[null,null,null,null,"Nominal",null,null,null,"n/a",null,null,"Hounslow - LGPS",null,null,132632,"Akaal Primary School","2015-09-01","Derby City Council",{"$f":"VLOOKUP(R60,'LA CPID Look up'!$A$3:$C$153,2,FALSE)","v":"Derby City Council"},"East Midlands and the Humber"]
[null,null,null,null,"Market Value",null,null,null,null,null,null,"Isle of Wight Council - LGPS",null,null,120249,"Alameda Middle School","2011-08-01","Central Bedfordshire Council",{"$f":"VLOOKUP(R61,'LA CPID Look up'!$A$3:$C$153,2,FALSE)","v":"Central Bedfordshire Unitary Authority"},"South-Central England and North-West London"]
[null,null,null,null,null,null,null,null,null,null,null,"Islington - LGPS",null,null,119583,"Alban Church of England Academy","2011-04-01","Bedford Borough Council",{"$f":"VLOOKUP(R62,'LA CPID Look up'!$A$3:$C$153,2,FALSE)","v":"Bedford Unitary Authority"},"South-Central England and North-West London"]
[null,null,null,null,null,null,null,null,null,null,null,"Kensington and Chelsea - LGPS",null,null,122102,"Alban City School","2012-09-01","Hertfordshire County Council",{"$f":"VLOOKUP(R63,'LA CPID Look up'!$A$3:$C$153,2,FALSE)","v":"Hertfordshire County Council"},"East of England and North-East London"]
[null,null,null,null,null,null,null,null,null,null,null,"Kent County Council (Kent Pension Fund) - LGPS",null,null,121853,"Albany Academy - Chorley","2012-08-01","Lancashire County Council",{"$f":"VLOOKUP(R64,'LA CPID Look up'!$A$3:$C$153,2,FALSE)","v":"Lancashire County Council"},"Lancashire and West Yorkshire"]
[null,null,null,null,null,null,null,null,null,null,null,"Kingston upon Thames - LGPS",null,null,120189,"Albany School, The - Havering","2011-08-01","Havering London Borough Council",{"$f":"VLOOKUP(R65,'LA CPID Look up'!$A$3:$C$153,2,FALSE)","v":"Havering London Borough Council"},"East of England and North-East London"]
[null,null,null,null,null,null,null,null,null,null,null,"Lambeth - LGPS",null,null,130333,"Albert Bradbeer Primary Academy","2014-09-01","Birmingham City Council",{"$f":"VLOOKUP(R66,'LA CPID Look up'!$A$3:$C$153,2,FALSE)","v":"Birmingham City Council"},"West Midlands"]
[null,null,null,null,null,null,null,null,null,null,null,"Lancashire County Council - LGPS",null,null,121940,"Albion Academy, The","2012-09-01","Salford City Council",{"$f":"VLOOKUP(R67,'LA CPID Look up'!$A$3:$C$153,2,FALSE)","v":"Salford City Council"},"Lancashire and West Yorkshire"]
[null,null,null,null,null,null,null,null,null,null,null,"Leicestershire County Council - LGPS",null,null,120172,"Alcester Academy","2011-08-01","Warwickshire County Council",{"$f":"VLOOKUP(R68,'LA CPID Look up'!$A$3:$C$153,2,FALSE)","v":"Warwickshire County Council"},"West Midlands"]
[null,null,null,null,null,null,null,null,null,null,null,"Lewisham - LGPS",null,null,119579,"Alcester Grammar School","2011-04-01","Warwickshire County Council",{"$f":"VLOOKUP(R69,'LA CPID Look up'!$A$3:$C$153,2,FALSE)","v":"Warwickshire County Council"},"West Midlands"]
[null,null,null,null,null,null,null,null,null,null,null,"Lincolnshire County Council - LGPS",null,null,120534,"Aldborough Primary School","2011-09-01","Redbridge London Borough Council",{"$f":"VLOOKUP(R70,'LA CPID Look up'!$A$3:$C$153,2,FALSE)","v":"Redbridge London Borough Council"},"East of England and North-East London"]
[null,null,null,null,null,null,null,null,null,null,null,"London Pension Fund Authority - LGPS",null,null,127509,"Alde Valley School","2015-01-01","Suffolk County Council",{"$f":"VLOOKUP(R71,'LA CPID Look up'!$A$3:$C$153,2,FALSE)","v":"Suffolk County Council"},"East of England and North-East London"]
[null,null,null,null,null,null,null,null,null,null,null,"Merseyside Pension Fund - LGPS",null,null,119994,"Alderbrook School","2011-08-01","Solihull Metropolitan Borough Council",{"$f":"VLOOKUP(R72,'LA CPID Look up'!$A$3:$C$153,2,FALSE)","v":"Solihull Metropolitan Borough Council"},"West Midlands"]
[null,null,null,null,null,null,null,null,null,null,null,"Merton - LGPS",null,null,119676,"Alderman Jacobs Primary School","2011-04-01","Cambridgeshire County Council",{"$f":"VLOOKUP(R73,'LA CPID Look up'!$A$3:$C$153,2,FALSE)","v":"Cambridgeshire County Council"},"East of England and North-East London"]
[null,null,null,null,null,null,null,null,null,null,null,"Newham - LGPS",null,null,122717,"Alderman White School","2012-10-01","Nottinghamshire County Council",{"$f":"VLOOKUP(R74,'LA CPID Look up'!$A$3:$C$153,2,FALSE)","v":"Nottinghamshire County Council"},"East Midlands and the Humber"]
[null,null,null,null,null,null,null,null,null,null,null,"Norfolk County Council - LGPS",null,null,122992,"Aldersley High School","2013-01-01","Wolverhampton City Council",{"$f":"VLOOKUP(R75,'LA CPID Look up'!$A$3:$C$153,2,FALSE)","v":"Wolverhampton City Council"},"West Midlands"]
[null,null,null,null,null,null,null,null,null,null,null,"North Yorkshire County Council - LGPS",null,null,121205,"Aldridge School","2012-04-01","Walsall Metropolitan Borough Council",{"$f":"VLOOKUP(R76,'LA CPID Look up'!$A$3:$C$153,2,FALSE)","v":"Walsall Metropolitan Borough Council"},"West Midlands"]
[null,null,null,null,null,null,null,null,null,null,null,"Northamptonshire County Council - LGPS",null,null,123939,"Alec Hunter Academy","2013-04-01","Essex County Council",{"$f":"VLOOKUP(R77,'LA CPID Look up'!$A$3:$C$153,2,FALSE)","v":"Essex County Council"},"East of England and North-East London"]
[null,null,null,null,null,null,null,null,null,null,null,"Northumberland County Council - LGPS",null,null,118409,"Alec Reed Academy","2003-09-01","Ealing London Borough Council",{"$f":"VLOOKUP(R78,'LA CPID Look up'!$A$3:$C$153,2,FALSE)","v":"Ealing London Borough Council"},"South-Central England and North-West London"]
[null,null,null,null,null,null,null,null,null,null,null,"Nottinghamshire County Council - LGPS",null,null,125230,"Alexandra Infant School","2013-12-01","Bromley London Borough Council",{"$f":"VLOOKUP(R79,'LA CPID Look up'!$A$3:$C$153,2,FALSE)","v":"Bromley London Borough Council"},"South-East England and South London"]
[null,null,null,null,null,null,null,null,null,null,null,"Oxfordshire County Council - LGPS",null,null,125200,"Alexandra Junior School","2013-09-01","Bromley London Borough Council",{"$f":"VLOOKUP(R80,'LA CPID Look up'!$A$3:$C$153,2,FALSE)","v":"Bromley London Borough Council"},"South-East England and South London"]
[null,null,null,null,null,null,null,null,null,null,null,"Redbridge - LGPS",null,null,120567,"Alexandra Park School","2011-10-01","Haringey London Borough Council",{"$f":"VLOOKUP(R81,'LA CPID Look up'!$A$3:$C$153,2,FALSE)","v":"Haringey London Borough Council"},"East of England and North-East London"]
[null,null,null,null,null,null,null,null,null,null,null,"Richmond upon Thames - LGPS",null,null,124171,"Alexandra School","2013-09-01","Harrow London Borough Council",{"$f":"VLOOKUP(R82,'LA CPID Look up'!$A$3:$C$153,2,FALSE)","v":"Harrow London Borough Council"},"East of England and North-East London"]
[null,null,null,null,null,null,null,null,null,null,null,"Royal County of Berkshire Pension Fund - LGPS",null,null,120753,"Alfriston School","2012-03-01","Buckinghamshire County Council",{"$f":"VLOOKUP(R83,'LA CPID Look up'!$A$3:$C$153,2,FALSE)","v":"Buckinghamshire County Council"},"South-Central England and North-West London"]
[null,null,null,null,null,null,null,null,null,null,null,"Shropshire County Pension Fund - LGPS",null,null,121000,"All Faiths Children's Academy","2012-06-01","Medway Council",{"$f":"VLOOKUP(R84,'LA CPID Look up'!$A$3:$C$153,2,FALSE)","v":"Medway Towns Unitary Authority (The)"},"South-East England and South London"]
[null,null,null,null,null,null,null,null,null,null,null,"Somerset County Council - LGPS",null,null,123111,"All Hallows Catholic College","2013-01-01","Cheshire East Council",{"$f":"VLOOKUP(R85,'LA CPID Look up'!$A$3:$C$153,2,FALSE)","v":"Cheshire East Unitary Authority"},"West Midlands"]
[null,null,null,null,null,null,null,null,null,null,null,"South Yorkshire Integrated Transport Pension Fund - LGPS",null,null,120930,"All Saints Academy  Darfield","2012-09-01","Barnsley Metropolitan Borough Council",{"$f":"VLOOKUP(R86,'LA CPID Look up'!$A$3:$C$153,2,FALSE)","v":"Barnsley Metropolitan Borough Council"},"East Midlands and the Humber"]
[null,null,null,null,null,null,null,null,null,null,null,"South Yorkshire Pension Authority - LGPS",null,null,120760,"All Saints Academy - Stockton-on-Tees","2013-05-01","Stockton-on-Tees Borough Council",{"$f":"VLOOKUP(R87,'LA CPID Look up'!$A$3:$C$153,2,FALSE)","v":"Stockton-on-Tees Borough Council"},"North of England"]
[null,null,null,null,null,null,null,null,null,null,null,"Southwark - LGPS",null,null,130748,"All Saints Academy - Walsall","2015-09-01","Walsall Metropolitan Borough Council",{"$f":"VLOOKUP(R88,'LA CPID Look up'!$A$3:$C$153,2,FALSE)","v":"Walsall Metropolitan Borough Council"},"West Midlands"]
[null,null,null,null,null,null,null,null,null,null,null,"Staffordshire County Council - LGPS",null,null,131178,"All saints Academy - Wissey Valley","2014-10-01","Norfolk County Council",{"$f":"VLOOKUP(R89,'LA CPID Look up'!$A$3:$C$153,2,FALSE)","v":"Norfolk County Council"},"East of England and North-East London"]
[null,null,null,null,null,null,null,null,null,null,null,"Suffolk County Council - LGPS",null,null,119040,"All Saints Academy Dunstable","2009-09-01","Central Bedfordshire Council",{"$f":"VLOOKUP(R90,'LA CPID Look up'!$A$3:$C$153,2,FALSE)","v":"Central Bedfordshire Unitary Authority"},"South-Central England and North-West London"]
[null,null,null,null,null,null,null,null,null,null,null,"Surrey County Council - LGPS",null,null,119150,"All Saints' Academy, Cheltenham","2011-09-01","Gloucestershire County Council",{"$f":"VLOOKUP(R91,'LA CPID Look up'!$A$3:$C$153,2,FALSE)","v":"Gloucestershire County Council"},"South-West England"]
[null,null,null,null,null,null,null,null,null,null,null,"Sutton - LGPS",null,null,130163,"All Saints Babbacombe CofE Primary School","2014-03-01","Torbay Council",{"$f":"VLOOKUP(R92,'LA CPID Look up'!$A$3:$C$153,2,FALSE)","v":"Torbay Council"},"South-West England"]
[null,null,null,null,null,null,null,null,null,null,null,"Teesside Pension Fund - LPGS",null,null,124644,"All Saints Catholic College - Dukinfield","2013-06-01","Tameside Metropolitan Borough Council",{"$f":"VLOOKUP(R93,'LA CPID Look up'!$A$3:$C$153,2,FALSE)","v":"Tameside Metropolitan Borough Council"},"Lancashire and West Yorkshire"]
[null,null,null,null,null,null,null,null,null,null,null,"Tower Hamlets - LGPS",null,null,121197,"All Saints' Catholic High School - Sheffield","2012-07-01","Sheffield City Council",{"$f":"VLOOKUP(R94,'LA CPID Look up'!$A$3:$C$153,2,FALSE)","v":"Sheffield City Council"},"East Midlands and the Humber"]
[null,null,null,null,null,null,null,null,null,null,null,"Tyne and Wear Pension Fund - LGPS",null,null,131646,"All Saints CE Junior School - Hastings","2015-02-01","East Sussex County Council",{"$f":"VLOOKUP(R95,'LA CPID Look up'!$A$3:$C$153,2,FALSE)","v":"East Sussex County Council"},"South-East England and South London"]
[null,null,null,null,null,null,null,null,null,null,null,"Waltham Forest - LGPS",null,null,119199,"All Saints Church of England Academy, The - Plymouth","2010-09-01","Plymouth City Council",{"$f":"VLOOKUP(R96,'LA CPID Look up'!$A$3:$C$153,2,FALSE)","v":"Plymouth City Council"},"South-West England"]
[null,null,null,null,null,null,null,null,null,null,null,"Wandsworth - LGPS",null,null,131793,"All Saints Church of England Primary School - Chatham","2015-09-01","Medway Council",{"$f":"VLOOKUP(R97,'LA CPID Look up'!$A$3:$C$153,2,FALSE)","v":"Medway Towns Unitary Authority (The)"},"South-East England and South London"]
[null,null,null,null,null,null,null,null,null,null,null,"Warwickshire County Council - LGPS",null,null,132908,"All Saints CofE Primary School (Marsh)","2015-09-01","Devon County Council",{"$f":"VLOOKUP(R98,'LA CPID Look up'!$A$3:$C$153,2,FALSE)","v":"Devon County Council"},"South-West England"]
[null,null,null,null,null,null,null,null,null,null,null,"West Midlands Pension Fund - LGPS",null,null,131252,"All Saints Harworth CofE (Aided) Primary School","2014-11-01","Nottinghamshire County Council",{"$f":"VLOOKUP(R99,'LA CPID Look up'!$A$3:$C$153,2,FALSE)","v":"Nottinghamshire County Council"},"East Midlands and the Humber"]
[null,null,null,null,null,null,null,null,null,null,null,"West Sussex County Council - LGPS",null,null,124183,"All Saints Interchurch Academy - March","2013-04-01","Cambridgeshire County Council",{"$f":"VLOOKUP(R100,'LA CPID Look up'!$A$3:$C$153,2,FALSE)","v":"Cambridgeshire County Council"},"East of England and North-East London"]
[null,null,null,null,null,null,null,null,null,null,null,"West Yorkshire Pension Fund - LGPS",null,null,120504,"All Saints Junior School - Reading","2011-09-01","Reading Borough Council",{"$f":"VLOOKUP(R101,'LA CPID Look up'!$A$3:$C$153,2,FALSE)","v":"Reading Borough Council"},"East of England and North-East London"]
[null,null,null,null,null,null,null,null,null,null,null,"Westminster City Council - LGPS",null,null,129891,"All Saints RC Comprehensive School","2014-04-01","Nottinghamshire County Council",{"$f":"VLOOKUP(R102,'LA CPID Look up'!$A$3:$C$153,2,FALSE)","v":"Nottinghamshire County Council"},"East Midlands and the Humber"]
[null,null,null,null,null,null,null,null,null,null,null,"Wiltshire County Council - LGPS",null,null,129424,"All Saints VA CofE Primary School","2014-04-01","Wiltshire Council",{"$f":"VLOOKUP(R103,'LA CPID Look up'!$A$3:$C$153,2,FALSE)","v":"Wiltshire Unitary Authority"},"South-West England"]
[null,null,null,null,null,null,null,null,null,null,null,"Worcestershire County Council - LGPS",null,null,131429,"Allenbourn Middle School","2015-03-01","Dorset County Council",{"$f":"VLOOKUP(R104,'LA CPID Look up'!$A$3:$C$153,2,FALSE)","v":"Dorset County Council"},"South-West England"]
[null,null,null,null,null,null,null,null,null,null,null,null,null,null,131351,"Allenton Primary School","2015-01-01","Derby City Council",{"$f":"VLOOKUP(R105,'LA CPID Look up'!$A$3:$C$153,2,FALSE)","v":"Derby City Council"},"East Midlands and the Humber"]
[null,null,null,null,null,null,null,null,null,null,null,null,null,null,123084,"Alleyne's Academy","2013-09-01","Staffordshire County Council",{"$f":"VLOOKUP(R106,'LA CPID Look up'!$A$3:$C$153,2,FALSE)","v":"Staffordshire County Council"},"West Midlands"]
[null,null,null,null,null,null,null,null,null,null,null,null,null,null,124701,"Allhallows Primary Academy","2013-09-01","Medway Council",{"$f":"VLOOKUP(R107,'LA CPID Look up'!$A$3:$C$153,2,FALSE)","v":"Medway Towns Unitary Authority (The)"},"South-East England and South London"]
[null,null,null,null,null,null,null,null,null,null,null,null,null,null,122969,"Allington Primary School","2012-12-01","Kent County Council",{"$f":"VLOOKUP(R108,'LA CPID Look up'!$A$3:$C$153,2,FALSE)","v":"Kent County Council"},"South-East England and South London"]
[null,null,null,null,null,null,null,null,null,null,null,null,null,null,123357,"Alma Primary","2013-09-01","Barnet London Borough Council",{"$f":"VLOOKUP(R109,'LA CPID Look up'!$A$3:$C$153,2,FALSE)","v":"Barnet London Borough Council"},"South-Central England and North-West London"]
[null,null,null,null,null,null,null,null,null,null,null,null,null,null,122100,"Al-Madinah School","2012-09-01","Derby City Council",{"$f":"VLOOKUP(R110,'LA CPID Look up'!$A$3:$C$153,2,FALSE)","v":"Derby City Council"},"East Midlands and the Humber"]
[null,null,null,null,null,null,null,null,null,null,null,null,null,null,122325,"Alperton Community School","2012-09-01","Brent London Borough Council",{"$f":"VLOOKUP(R111,'LA CPID Look up'!$A$3:$C$153,2,FALSE)","v":"Brent London Borough Council"},"South-Central England and North-West London"]
[null,null,null,null,null,null,null,null,null,null,null,null,null,null,124251,"Alsager School","2013-09-01","Cheshire East Council",{"$f":"VLOOKUP(R112,'LA CPID Look up'!$A$3:$C$153,2,FALSE)","v":"Cheshire East Unitary Authority"},"West Midlands"]
[null,null,null,null,null,null,null,null,null,null,null,null,null,null,122572,"Alston Primary School","2014-07-01","Birmingham City Council",{"$f":"VLOOKUP(R113,'LA CPID Look up'!$A$3:$C$153,2,FALSE)","v":"Birmingham City Council"},"West Midlands"]
[null,null,null,null,null,null,null,null,null,null,null,null,null,null,131166,"Alt Academy","2014-10-01","Oldham Metropolitan Borough Council",{"$f":"VLOOKUP(R114,'LA CPID Look up'!$A$3:$C$153,2,FALSE)","v":"Oldham Metropolitan Borough Council"},"Lancashire and West Yorkshire"]
[null,null,null,null,null,null,null,null,null,null,null,null,null,null,130649,"Altarnun Community Primary School","2014-06-01","Cornwall Council",{"$f":"VLOOKUP(R115,'LA CPID Look up'!$A$3:$C$153,2,FALSE)","v":"Cornwall Unitary Authority"},"South-West England"]
[null,null,null,null,null,null,null,null,null,null,null,null,null,null,132412,"Alternative Provision for Medical Needs","2015-09-01","Hull City Council",{"$f":"VLOOKUP(R116,'LA CPID Look up'!$A$3:$C$153,2,FALSE)","v":"Kingston upon Hull City Council"},"East Midlands and the Humber"]
[null,null,null,null,null,null,null,null,null,null,null,null,null,null,122124,"Altrincham College of Arts","2012-09-01","Trafford Borough Council",{"$f":"VLOOKUP(R117,'LA CPID Look up'!$A$3:$C$153,2,FALSE)","v":"Trafford Metropolitan Borough Council"},"Lancashire and West Yorkshire"]
[null,null,null,null,null,null,null,null,null,null,null,null,null,null,119511,"Altrincham Grammar School for Boys","2011-02-01","Trafford Borough Council",{"$f":"VLOOKUP(R118,'LA CPID Look up'!$A$3:$C$153,2,FALSE)","v":"Trafford Metropolitan Borough Council"},"Lancashire and West Yorkshire"]
[null,null,null,null,null,null,null,null,null,null,null,null,null,null,120289,"Altrincham Grammar School for Girls","2011-08-17","Trafford Borough Council",{"$f":"VLOOKUP(R119,'LA CPID Look up'!$A$3:$C$153,2,FALSE)","v":"Trafford Metropolitan Borough Council"},"Lancashire and West Yorkshire"]
[null,null,null,null,null,null,null,null,null,null,null,null,null,null,122326,"Altwood CofE Secondary School","2012-07-01","Royal Borough of Windsor and Maidenhead",{"$f":"VLOOKUP(R120,'LA CPID Look up'!$A$3:$C$153,2,FALSE)","v":"Windsor and Maidenhead (Royal Borough of)"},"East of England and North-East London"]
[null,null,null,null,null,null,null,null,null,null,null,null,null,null,131129,"Alverton Primary School","2015-09-01","Cornwall Council",{"$f":"VLOOKUP(R121,'LA CPID Look up'!$A$3:$C$153,2,FALSE)","v":"Cornwall Unitary Authority"},"South-West England"]
[null,null,null,null,null,null,null,null,null,null,null,null,null,null,130606,"Ambergate Sports College","2014-09-01","Lincolnshire County Council",{"$f":"VLOOKUP(R122,'LA CPID Look up'!$A$3:$C$153,2,FALSE)","v":"Lincolnshire County Council"},"East Midlands and the Humber"]
[null,null,null,null,null,null,null,null,null,null,null,null,null,null,132267,"Ambleside CofE Primary School - Ambleside","2015-10-01","Cumbria County Council",{"$f":"VLOOKUP(R123,'LA CPID Look up'!$A$3:$C$153,2,FALSE)","v":"Cumbria County Council"},"North of England"]
[null,null,null,null,null,null,null,null,null,null,null,null,null,null,122945,"Ambleside Primary School - Nottingham","2013-04-01","Nottingham City Council",{"$f":"VLOOKUP(R124,'LA CPID Look up'!$A$3:$C$153,2,FALSE)","v":"Nottingham City Council"},"East Midlands and the Humber"]
[null,null,null,null,null,null,null,null,null,null,null,null,null,null,120372,"Amersham School","2011-09-01","Buckinghamshire County Council",{"$f":"VLOOKUP(R125,'LA CPID Look up'!$A$3:$C$153,2,FALSE)","v":"Buckinghamshire County Council"},"South-Central England and North-West London"]
[null,null,null,null,null,null,null,null,null,null,null,null,null,null,120500,"Amery Hill School","2011-10-01","Hampshire County Council",{"$f":"VLOOKUP(R126,'LA CPID Look up'!$A$3:$C$153,2,FALSE)","v":"Hampshire County Council"},"South-East England and South London"]
[null,null,null,null,null,null,null,null,null,null,null,null,null,null,119499,"Amherst School","2011-03-01","Kent County Council",{"$f":"VLOOKUP(R127,'LA CPID Look up'!$A$3:$C$153,2,FALSE)","v":"Kent County Council"},"South-East England and South London"]
[null,null,null,null,null,null,null,null,null,null,null,null,null,null,124111,"Anchorsholme Primary Academy","2013-09-01","Blackpool Council",{"$f":"VLOOKUP(R128,'LA CPID Look up'!$A$3:$C$153,2,FALSE)","v":"Blackpool Unitary Authority"},"Lancashire and West Yorkshire"]
[null,null,null,null,null,null,null,null,null,null,null,null,null,null,131651,"Angel Oak Academy","2015-02-01","Southwark London Borough Council",{"$f":"VLOOKUP(R129,'LA CPID Look up'!$A$3:$C$153,2,FALSE)","v":"Southwark London Borough Council"},"South-East England and South London"]
[null,null,null,null,null,null,null,null,null,null,null,null,null,null,123086,"Anglesey Primary Academy","2012-12-01","Staffordshire County Council",{"$f":"VLOOKUP(R130,'LA CPID Look up'!$A$3:$C$153,2,FALSE)","v":"Staffordshire County Council"},"West Midlands"]
[null,null,null,null,null,null,null,null,null,null,null,null,null,null,120813,"Anglo European School","2011-12-01","Essex County Council",{"$f":"VLOOKUP(R131,'LA CPID Look up'!$A$3:$C$153,2,FALSE)","v":"Essex County Council"},"East of England and North-East London"]
[null,null,null,null,null,null,null,null,null,null,null,null,null,null,119839,"Ansford Academy","2011-07-01","Somerset County Council",{"$f":"VLOOKUP(R132,'LA CPID Look up'!$A$3:$C$153,2,FALSE)","v":"Somerset County Council"},"South-West England"]
[null,null,null,null,null,null,null,null,null,null,null,null,null,null,130934,"Anston Greenlands Primary School","2014-11-01","Rotherham Metropolitan Borough Council",{"$f":"VLOOKUP(R133,'LA CPID Look up'!$A$3:$C$153,2,FALSE)","v":"Rotherham Borough Council"},"East Midlands and the Humber"]
[null,null,null,null,null,null,null,null,null,null,null,null,null,null,130493,"Anthony Curton CofE Primary School","2015-03-01","Norfolk County Council",{"$f":"VLOOKUP(R134,'LA CPID Look up'!$A$3:$C$153,2,FALSE)","v":"Norfolk County Council"},"East of England and North-East London"]
[null,null,null,null,null,null,null,null,null,null,null,null,null,null,131131,"Antingham and Southrepps Community Primary School","2014-10-01","Norfolk County Council",{"$f":"VLOOKUP(R135,'LA CPID Look up'!$A$3:$C$153,2,FALSE)","v":"Norfolk County Council"},"East of England and North-East London"]
[null,null,null,null,null,null,null,null,null,null,null,null,null,null,131671,"Antony Church of England School","2015-01-01","Cornwall Council",{"$f":"VLOOKUP(R136,'LA CPID Look up'!$A$3:$C$153,2,FALSE)","v":"Cornwall Unitary Authority"},"South-West England"]
[null,null,null,null,null,null,null,null,null,null,null,null,null,null,131050,"Apollo Studio Academy","2014-09-01","Durham County Council",{"$f":"VLOOKUP(R137,'LA CPID Look up'!$A$3:$C$153,2,FALSE)","v":"County Durham Unitary Authority"},"North of England"]
[null,null,null,null,null,null,null,null,null,null,null,null,null,null,120251,"Appleby Grammar School","2011-08-01","Cumbria County Council",{"$f":"VLOOKUP(R138,'LA CPID Look up'!$A$3:$C$153,2,FALSE)","v":"Cumbria County Council"},"North of England"]
[null,null,null,null,null,null,null,null,null,null,null,null,null,null,120654,"Applecroft School","2012-03-01","Hertfordshire County Council",{"$f":"VLOOKUP(R139,'LA CPID Look up'!$A$3:$C$153,2,FALSE)","v":"Hertfordshire County Council"},"East of England and North-East London"]
[null,null,null,null,null,null,null,null,null,null,null,null,null,null,123941,"Applegarth Academy","2013-04-01","Croydon London Borough Council",{"$f":"VLOOKUP(R140,'LA CPID Look up'!$A$3:$C$153,2,FALSE)","v":"Croydon London Borough Council"},"South-East England and South London"]
[null,null,null,null,null,null,null,null,null,null,null,null,null,null,119126,"Appleton Academy - Bradford","2009-09-01","Bradford Metropolitan District Council",{"$f":"VLOOKUP(R141,'LA CPID Look up'!$A$3:$C$153,2,FALSE)","v":"Bradford City Council"},"Lancashire and West Yorkshire"]
[null,null,null,null,null,null,null,null,null,null,null,null,null,null,124252,"Appleton Primary School - Hull","2013-10-01","Hull City Council",{"$f":"VLOOKUP(R142,'LA CPID Look up'!$A$3:$C$153,2,FALSE)","v":"Kingston upon Hull City Council"},"East Midlands and the Humber"]
[null,null,null,null,null,null,null,null,null,null,null,null,null,null,119556,"Appleton School, The - Benfleet","2011-04-01","Essex County Council",{"$f":"VLOOKUP(R143,'LA CPID Look up'!$A$3:$C$153,2,FALSE)","v":"Essex County Council"},"East of England and North-East London"]
[null,null,null,null,null,null,null,null,null,null,null,null,null,null,122541,"Arbours Primary Academy, The","2013-01-01","Northamptonshire County Council",{"$f":"VLOOKUP(R144,'LA CPID Look up'!$A$3:$C$153,2,FALSE)","v":"Northamptonshire County Council"},"East of England and North-East London"]
[null,null,null,null,null,null,null,null,null,null,null,null,null,null,120258,"Archbishop Benson CofE Primary School","2011-08-01","Cornwall Council",{"$f":"VLOOKUP(R145,'LA CPID Look up'!$A$3:$C$153,2,FALSE)","v":"Cornwall Unitary Authority"},"South-West England"]
[null,null,null,null,null,null,null,null,null,null,null,null,null,null,124585,"Archbishop Courtenay Primary School","2014-09-01","Kent County Council",{"$f":"VLOOKUP(R146,'LA CPID Look up'!$A$3:$C$153,2,FALSE)","v":"Kent County Council"},"South-East England and South London"]
[null,null,null,null,null,null,null,null,null,null,null,null,null,null,124584,"Archbishop Cranmer Church of England Academy","2014-02-01","Nottinghamshire County Council",{"$f":"VLOOKUP(R147,'LA CPID Look up'!$A$3:$C$153,2,FALSE)","v":"Nottinghamshire County Council"},"East Midlands and the Humber"]
[null,null,null,null,null,null,null,null,null,null,null,null,null,null,119523,"Archbishop Holgate's School","2011-04-01","City of York Council",{"$f":"VLOOKUP(R148,'LA CPID Look up'!$A$3:$C$153,2,FALSE)","v":"City of York Council"},"East Midlands and the Humber"]
[null,null,null,null,null,null,null,null,null,null,null,null,null,null,130936,"Archbishop Lanfranc Academy, The","2014-09-01","Croydon London Borough Council",{"$f":"VLOOKUP(R149,'LA CPID Look up'!$A$3:$C$153,2,FALSE)","v":"Croydon London Borough Council"},"South-East England and South London"]
[null,null,null,null,null,null,null,null,null,null,null,null,null,null,119095,"Archbishop Sentamu Academy","2008-09-01","Hull City Council",{"$f":"VLOOKUP(R150,'LA CPID Look up'!$A$3:$C$153,2,FALSE)","v":"Kingston upon Hull City Council"},"East Midlands and the Humber"]
[null,null,null,null,null,null,null,null,null,null,null,null,null,null,130702,"Archbishop Wake Church of England Primary School","2014-07-01","Dorset County Council",{"$f":"VLOOKUP(R151,'LA CPID Look up'!$A$3:$C$153,2,FALSE)","v":"Dorset County Council"},"South-West England"]
[null,null,null,null,null,null,null,null,null,null,null,null,null,null,123349,"Archer Academy, The","2013-09-01","Barnet London Borough Council",{"$f":"VLOOKUP(R152,'LA CPID Look up'!$A$3:$C$153,2,FALSE)","v":"Barnet London Borough Council"},"South-Central England and North-West London"]
[null,null,null,null,null,null,null,null,null,null,null,null,null,null,119276,"Arden","2010-10-01","Solihull Metropolitan Borough Council",{"$f":"VLOOKUP(R153,'LA CPID Look up'!$A$3:$C$153,2,FALSE)","v":"Solihull Metropolitan Borough Council"},"West Midlands"]
[null,null,null,null,null,null,null,null,null,null,null,null,null,null,124389,"Arden Grove Infant and Nursery School","2013-06-01","Norfolk County Council",{"$f":"VLOOKUP(R154,'LA CPID Look up'!$A$3:$C$153,2,FALSE)","v":"Norfolk County Council"},"East of England and North-East London"]
[null,null,null,null,null,null,null,null,null,null,null,null,null,null,121192,"Ardley Hill Academy","2012-06-01","Central Bedfordshire Council",{"$f":"VLOOKUP(R155,'LA CPID Look up'!$A$3:$C$153,2,FALSE)","v":"Central Bedfordshire Unitary Authority"},"South-Central England and North-West London"]
[null,null,null,null,null,null,null,null,null,null,null,null,null,null,118659,"ARK Academy","2008-09-30","Brent London Borough Council",{"$f":"VLOOKUP(R156,'LA CPID Look up'!$A$3:$C$153,2,FALSE)","v":"Brent London Borough Council"},"South-Central England and North-West London"]
[null,null,null,null,null,null,null,null,null,null,null,null,null,null,122186,"ARK All Saints Academy","2013-09-01","Southwark London Borough Council",{"$f":"VLOOKUP(R157,'LA CPID Look up'!$A$3:$C$153,2,FALSE)","v":"Southwark London Borough Council"},"South-East England and South London"]
[null,null,null,null,null,null,null,null,null,null,null,null,null,null,120505,"ARK Atwood Primary Academy","2011-09-01","Westminster City Council",{"$f":"VLOOKUP(R158,'LA CPID Look up'!$A$3:$C$153,2,FALSE)","v":"Westminster City Council"},"East of England and North-East London"]
[null,null,null,null,null,null,null,null,null,null,null,null,null,null,123906,"ARK Ayrton Primary Academy","2013-09-01","Portsmouth City Council",{"$f":"VLOOKUP(R159,'LA CPID Look up'!$A$3:$C$153,2,FALSE)","v":"Portsmouth City Council"},"South-East England and South London"]
[null,null,null,null,null,null,null,null,null,null,null,null,null,null,122381,"ARK Bentworth Primary Academy","2012-09-01","Hammersmith and Fulham London Borough Council",{"$f":"VLOOKUP(R160,'LA CPID Look up'!$A$3:$C$153,2,FALSE)","v":"Hammersmith and Fulham London Borough Council"},"South-Central England and North-West London"]
[null,null,null,null,null,null,null,null,null,null,null,null,null,null,130774,"ARK Blacklands Primary Academy","2014-09-01","East Sussex County Council",{"$f":"VLOOKUP(R161,'LA CPID Look up'!$A$3:$C$153,2,FALSE)","v":"East Sussex County Council"},"South-East England and South London"]
[null,null,null,null,null,null,null,null,null,null,null,null,null,null,125180,"ARK Boulton Academy","2013-10-01","Birmingham City Council",{"$f":"VLOOKUP(R162,'LA CPID Look up'!$A$3:$C$153,2,FALSE)","v":"Birmingham City Council"},"West Midlands"]
[null,null,null,null,null,null,null,null,null,null,null,null,null,null,124488,"ARK Brunel Primary Academy","2013-09-01","Royal Borough of Kensington and Chelsea Council",{"$f":"VLOOKUP(R163,'LA CPID Look up'!$A$3:$C$153,2,FALSE)","v":"Kensington and Chelsea Council (Royal Borough of)"},"East of England and North-East London"]
[null,null,null,null,null,null,null,null,null,null,null,null,null,null,118604,"ARK Burlington Danes Primary Academy","2015-09-01","Hammersmith and Fulham London Borough Council",{"$f":"VLOOKUP(R164,'LA CPID Look up'!$A$3:$C$153,2,FALSE)","v":"Hammersmith and Fulham London Borough Council"},"South-Central England and North-West London"]
[null,null,null,null,null,null,null,null,null,null,null,null,null,null,132633,"ARK Byron Primary Academy","2015-09-01","Ealing London Borough Council",{"$f":"VLOOKUP(R165,'LA CPID Look up'!$A$3:$C$153,2,FALSE)","v":"Ealing London Borough Council"},"South-Central England and North-West London"]
[null,null,null,null,null,null,null,null,null,null,null,null,null,null,120428,"ARK Chamberlain Primary Academy","2012-04-01","Birmingham City Council",{"$f":"VLOOKUP(R166,'LA CPID Look up'!$A$3:$C$153,2,FALSE)","v":"Birmingham City Council"},"West Midlands"]
[null,null,null,null,null,null,null,null,null,null,null,null,null,null,120506,"ARK Conway Primary Academy","2011-09-01","Hammersmith and Fulham London Borough Council",{"$f":"VLOOKUP(R167,'LA CPID Look up'!$A$3:$C$153,2,FALSE)","v":"Hammersmith and Fulham London Borough Council"},"South-Central England and North-West London"]
[null,null,null,null,null,null,null,null,null,null,null,null,null,null,129541,"ARK Dickens Primary Academy","2014-09-01","Portsmouth City Council",{"$f":"VLOOKUP(R168,'LA CPID Look up'!$A$3:$C$153,2,FALSE)","v":"Portsmouth City Council"},"South-East England and South London"]
[null,null,null,null,null,null,null,null,null,null,null,null,null,null,129412,"ARK Elvin Academy","2014-09-01","Brent London Borough Council",{"$f":"VLOOKUP(R169,'LA CPID Look up'!$A$3:$C$153,2,FALSE)","v":"Brent London Borough Council"},"South-Central England and North-West London"]
[null,null,null,null,null,null,null,null,null,null,null,null,null,null,124680,"ARK Franklin Primary Academy","2013-09-01","Brent London Borough Council",{"$f":"VLOOKUP(R170,'LA CPID Look up'!$A$3:$C$153,2,FALSE)","v":"Brent London Borough Council"},"South-Central England and North-West London"]
[null,null,null,null,null,null,null,null,null,null,null,null,null,null,118614,"ARK Globe Academy","2008-09-01","Southwark London Borough Council",{"$f":"VLOOKUP(R171,'LA CPID Look up'!$A$3:$C$153,2,FALSE)","v":"Southwark London Borough Council"},"South-East England and South London"]
[null,null,null,null,null,null,null,null,null,null,null,null,null,null,124685,"ARK Helenswood Academy","2013-09-01","East Sussex County Council",{"$f":"VLOOKUP(R172,'LA CPID Look up'!$A$3:$C$153,2,FALSE)","v":"East Sussex County Council"},"South-East England and South London"]
[null,null,null,null,null,null,null,null,null,null,null,null,null,null,120917,"ARK Isaac Newton Academy","2012-09-01","Redbridge London Borough Council",{"$f":"VLOOKUP(R173,'LA CPID Look up'!$A$3:$C$153,2,FALSE)","v":"Redbridge London Borough Council"},"East of England and North-East London"]
[null,null,null,null,null,null,null,null,null,null,null,null,null,null,123290,"ARK John Keats Academy","2013-09-01","Enfield London Borough Council",{"$f":"VLOOKUP(R174,'LA CPID Look up'!$A$3:$C$153,2,FALSE)","v":"Enfield London Borough Council"},"South-Central England and North-West London"]
[null,null,null,null,null,null,null,null,null,null,null,null,null,null,120907,"ARK Kings Academy","2012-09-01","Birmingham City Council",{"$f":"VLOOKUP(R175,'LA CPID Look up'!$A$3:$C$153,2,FALSE)","v":"Birmingham City Council"},"West Midlands"]
[null,null,null,null,null,null,null,null,null,null,null,null,null,null,130044,"ARK Little Ridge Primary Academy","2014-09-01","East Sussex County Council",{"$f":"VLOOKUP(R176,'LA CPID Look up'!$A$3:$C$153,2,FALSE)","v":"East Sussex County Council"},"South-East England and South London"]
[null,null,null,null,null,null,null,null,null,null,null,null,null,null,120114,"ARK Oval Primary Academy","2011-09-01","Croydon London Borough Council",{"$f":"VLOOKUP(R177,'LA CPID Look up'!$A$3:$C$153,2,FALSE)","v":"Croydon London Borough Council"},"South-East England and South London"]
[null,null,null,null,null,null,null,null,null,null,null,null,null,null,121923,"ARK Priory Primary Academy","2013-09-01","Ealing London Borough Council",{"$f":"VLOOKUP(R178,'LA CPID Look up'!$A$3:$C$153,2,FALSE)","v":"Ealing London Borough Council"},"South-Central England and North-West London"]
[null,null,null,null,null,null,null,null,null,null,null,null,null,null,122388,"ARK Putney Academy","2012-09-01","Wandsworth London Borough Council",{"$f":"VLOOKUP(R179,'LA CPID Look up'!$A$3:$C$153,2,FALSE)","v":"Wandsworth London Borough Council"},"South-East England and South London"]
[null,null,null,null,null,null,null,null,null,null,null,null,null,null,121847,"ARK Rose Primary Academy","2012-09-01","Birmingham City Council",{"$f":"VLOOKUP(R180,'LA CPID Look up'!$A$3:$C$153,2,FALSE)","v":"Birmingham City Council"},"West Midlands"]
[null,null,null,null,null,null,null,null,null,null,null,null,null,null,119134,"ARK St Alban's Academy","2009-09-01","Birmingham City Council",{"$f":"VLOOKUP(R181,'LA CPID Look up'!$A$3:$C$153,2,FALSE)","v":"Birmingham City Council"},"West Midlands"]
[null,null,null,null,null,null,null,null,null,null,null,null,null,null,124224,"ARK Swift Primary Academy","2013-09-01","Hammersmith and Fulham London Borough Council",{"$f":"VLOOKUP(R182,'LA CPID Look up'!$A$3:$C$153,2,FALSE)","v":"Hammersmith and Fulham London Borough Council"},"South-Central England and North-West London"]
[null,null,null,null,null,null,null,null,null,null,null,null,null,null,120992,"ARK Tindal Primary Academy","2012-09-01","Birmingham City Council",{"$f":"VLOOKUP(R183,'LA CPID Look up'!$A$3:$C$153,2,FALSE)","v":"Birmingham City Council"},"West Midlands"]
[null,null,null,null,null,null,null,null,null,null,null,null,null,null,119116,"ARK Walworth Academy","2007-09-05","Southwark London Borough Council",{"$f":"VLOOKUP(R184,'LA CPID Look up'!$A$3:$C$153,2,FALSE)","v":"Southwark London Borough Council"},"South-East England and South London"]
[null,null,null,null,null,null,null,null,null,null,null,null,null,null,124511,"ARK William Parker Academy","2013-09-01","East Sussex County Council",{"$f":"VLOOKUP(R185,'LA CPID Look up'!$A$3:$C$153,2,FALSE)","v":"East Sussex County Council"},"South-East England and South London"]
[null,null,null,null,null,null,null,null,null,null,null,null,null,null,121002,"Armthorpe Academy","2012-07-01","Doncaster Metropolitan Borough Council",{"$f":"VLOOKUP(R186,'LA CPID Look up'!$A$3:$C$153,2,FALSE)","v":"Doncaster Metropolitan Borough Council"},"East Midlands and the Humber"]
[null,null,null,null,null,null,null,null,null,null,null,null,null,null,121125,"Armthorpe Shaw Wood Academy","2012-09-01","Doncaster Metropolitan Borough Council",{"$f":"VLOOKUP(R187,'LA CPID Look up'!$A$3:$C$153,2,FALSE)","v":"Doncaster Metropolitan Borough Council"},"East Midlands and the Humber"]
[null,null,null,null,null,null,null,null,null,null,null,null,null,null,127778,"Arnbrook Primary School","2014-04-01","Nottinghamshire County Council",{"$f":"VLOOKUP(R188,'LA CPID Look up'!$A$3:$C$153,2,FALSE)","v":"Nottinghamshire County Council"},"East Midlands and the Humber"]
[null,null,null,null,null,null,null,null,null,null,null,null,null,null,119649,"Arnewood School Academy, The","2011-04-01","Hampshire County Council",{"$f":"VLOOKUP(R189,'LA CPID Look up'!$A$3:$C$153,2,FALSE)","v":"Hampshire County Council"},"South-East England and South London"]
[null,null,null,null,null,null,null,null,null,null,null,null,null,null,119841,"Arnold Academy","2011-07-01","Central Bedfordshire Council",{"$f":"VLOOKUP(R190,'LA CPID Look up'!$A$3:$C$153,2,FALSE)","v":"Central Bedfordshire Unitary Authority"},"South-Central England and North-West London"]
[null,null,null,null,null,null,null,null,null,null,null,null,null,null,120591,"Arnold Hill Academy","2011-10-01","Nottinghamshire County Council",{"$f":"VLOOKUP(R191,'LA CPID Look up'!$A$3:$C$153,2,FALSE)","v":"Nottinghamshire County Council"},"East Midlands and the Humber"]
[null,null,null,null,null,null,null,null,null,null,null,null,null,null,120652,"Arnside National CofE School","2011-12-01","Cumbria County Council",{"$f":"VLOOKUP(R192,'LA CPID Look up'!$A$3:$C$153,2,FALSE)","v":"Cumbria County Council"},"North of England"]
[null,null,null,null,null,null,null,null,null,null,null,null,null,null,122314,"Arrow Vale RSA Academy","2012-09-01","Worcestershire County Council",{"$f":"VLOOKUP(R193,'LA CPID Look up'!$A$3:$C$153,2,FALSE)","v":"Worcestershire County Council"},"West Midlands"]
[null,null,null,null,null,null,null,null,null,null,null,null,null,null,119274,"Arthur Mellows Village College","2010-09-01","Peterborough City Council",{"$f":"VLOOKUP(R194,'LA CPID Look up'!$A$3:$C$153,2,FALSE)","v":"Peterborough City Council"},"East of England and North-East London"]
[null,null,null,null,null,null,null,null,null,null,null,null,null,null,120018,"Arthur Terry School, The","2012-05-01","Birmingham City Council",{"$f":"VLOOKUP(R195,'LA CPID Look up'!$A$3:$C$153,2,FALSE)","v":"Birmingham City Council"},"West Midlands"]
[null,null,null,null,null,null,null,null,null,null,null,null,null,null,130476,"Ascot Road Community Free School","2014-09-01","Hertfordshire County Council",{"$f":"VLOOKUP(R196,'LA CPID Look up'!$A$3:$C$153,2,FALSE)","v":"Hertfordshire County Council"},"East of England and North-East London"]
[null,null,null,null,null,null,null,null,null,null,null,null,null,null,124150,"Asfordby Hill Primary School","2013-03-01","Leicestershire County Council",{"$f":"VLOOKUP(R197,'LA CPID Look up'!$A$3:$C$153,2,FALSE)","v":"Leicestershire County Council"},"East Midlands and the Humber"]
[null,null,null,null,null,null,null,null,null,null,null,null,null,null,121036,"Ash Field Academy","2012-04-01","Leicester City Council",{"$f":"VLOOKUP(R198,'LA CPID Look up'!$A$3:$C$153,2,FALSE)","v":"Leicester City Council"},"East Midlands and the Humber"]
[null,null,null,null,null,null,null,null,null,null,null,null,null,null,120803,"Ash Green School","2012-01-01","Warwickshire County Council",{"$f":"VLOOKUP(R199,'LA CPID Look up'!$A$3:$C$153,2,FALSE)","v":"Warwickshire County Council"},"West Midlands"]
[null,null,null,null,null,null,null,null,null,null,null,null,null,null,124642,"Ash Grove Academy","2013-12-01","Cheshire East Council",{"$f":"VLOOKUP(R200,'LA CPID Look up'!$A$3:$C$153,2,FALSE)","v":"Cheshire East Unitary Authority"},"West Midlands"]
[null,null,null,null,null,null,null,null,null,null,null,null,null,null,120458,"Ash Hill Academy","2011-09-01","Doncaster Metropolitan Borough Council",{"$f":"VLOOKUP(R201,'LA CPID Look up'!$A$3:$C$153,2,FALSE)","v":"Doncaster Metropolitan Borough Council"},"East Midlands and the Humber"]
[null,null,null,null,null,null,null,null,null,null,null,null,null,null,131115,"Ash Trees School","2014-11-01","Stockton-on-Tees Borough Council",{"$f":"VLOOKUP(R202,'LA CPID Look up'!$A$3:$C$153,2,FALSE)","v":"Stockton-on-Tees Borough Council"},"North of England"]
[null,null,null,null,null,null,null,null,null,null,null,null,null,null,119678,"Ashburton Primary School","2011-04-01","Devon County Council",{"$f":"VLOOKUP(R203,'LA CPID Look up'!$A$3:$C$153,2,FALSE)","v":"Devon County Council"},"South-West England"]
[null,null,null,null,null,null,null,null,null,null,null,null,null,null,122680,"Ashby Hill Top Primary School","2012-10-01","Leicestershire County Council",{"$f":"VLOOKUP(R204,'LA CPID Look up'!$A$3:$C$153,2,FALSE)","v":"Leicestershire County Council"},"East Midlands and the Humber"]
[null,null,null,null,null,null,null,null,null,null,null,null,null,null,122080,"Ashby School","2012-10-01","Leicestershire County Council",{"$f":"VLOOKUP(R205,'LA CPID Look up'!$A$3:$C$153,2,FALSE)","v":"Leicestershire County Council"},"East Midlands and the Humber"]
[null,null,null,null,null,null,null,null,null,null,null,null,null,null,118598,"Ashcroft Technology Academy","2007-09-01","Wandsworth London Borough Council",{"$f":"VLOOKUP(R206,'LA CPID Look up'!$A$3:$C$153,2,FALSE)","v":"Wandsworth London Borough Council"},"South-East England and South London"]
[null,null,null,null,null,null,null,null,null,null,null,null,null,null,121097,"Ashfield Comprehensive School","2012-04-01","Nottingham City Council",{"$f":"VLOOKUP(R207,'LA CPID Look up'!$A$3:$C$153,2,FALSE)","v":"Nottingham City Council"},"East Midlands and the Humber"]
[null,null,null,null,null,null,null,null,null,null,null,null,null,null,120332,"Ashingdon Primary Academy","2011-09-01","Essex County Council",{"$f":"VLOOKUP(R208,'LA CPID Look up'!$A$3:$C$153,2,FALSE)","v":"Essex County Council"},"East of England and North-East London"]
[null,null,null,null,null,null,null,null,null,null,null,null,null,null,119553,"Ashlawn School","2011-04-01","Warwickshire County Council",{"$f":"VLOOKUP(R209,'LA CPID Look up'!$A$3:$C$153,2,FALSE)","v":"Warwickshire County Council"},"West Midlands"]
[null,null,null,null,null,null,null,null,null,null,null,null,null,null,130830,"Ashley CofE Aided Primary School","2014-09-01","Surrey County Council",{"$f":"VLOOKUP(R210,'LA CPID Look up'!$A$3:$C$153,2,FALSE)","v":"Surrey County Council"},"South-East England and South London"]
[null,null,null,null,null,null,null,null,null,null,null,null,null,null,120339,"Ashley School, The","2011-09-01","Suffolk County Council",{"$f":"VLOOKUP(R211,'LA CPID Look up'!$A$3:$C$153,2,FALSE)","v":"Suffolk County Council"},"East of England and North-East London"]
[null,null,null,null,null,null,null,null,null,null,null,null,null,null,119277,"Ashmole Academy","2010-10-01","Barnet London Borough Council",{"$f":"VLOOKUP(R212,'LA CPID Look up'!$A$3:$C$153,2,FALSE)","v":"Barnet London Borough Council"},"South-Central England and North-West London"]
[null,null,null,null,null,null,null,null,null,null,null,null,null,null,119524,"Ashperton Primary Academy","2011-04-01","Herefordshire Council",{"$f":"VLOOKUP(R213,'LA CPID Look up'!$A$3:$C$153,2,FALSE)","v":"Herefordshire Council"},"West Midlands"]
[null,null,null,null,null,null,null,null,null,null,null,null,null,null,131438,"Ashton West End Primary School","2015-03-01","Tameside Metropolitan Borough Council",{"$f":"VLOOKUP(R214,'LA CPID Look up'!$A$3:$C$153,2,FALSE)","v":"Tameside Metropolitan Borough Council"},"Lancashire and West Yorkshire"]
[null,null,null,null,null,null,null,null,null,null,null,null,null,null,122001,"Ashton-on-Mersey School","2012-05-01","Trafford Borough Council",{"$f":"VLOOKUP(R215,'LA CPID Look up'!$A$3:$C$153,2,FALSE)","v":"Trafford Metropolitan Borough Council"},"Lancashire and West Yorkshire"]
[null,null,null,null,null,null,null,null,null,null,null,null,null,null,123233,"Ashwell Academy","2013-04-01","Hull City Council",{"$f":"VLOOKUP(R216,'LA CPID Look up'!$A$3:$C$153,2,FALSE)","v":"Kingston upon Hull City Council"},"East Midlands and the Humber"]
[null,null,null,null,null,null,null,null,null,null,null,null,null,null,130930,"Ashwood Academy, The","2014-09-01","Hampshire County Council",{"$f":"VLOOKUP(R217,'LA CPID Look up'!$A$3:$C$153,2,FALSE)","v":"Hampshire County Council"},"South-East England and South London"]
[null,null,null,null,null,null,null,null,null,null,null,null,null,null,132302,"Askwith Community Primary School","2015-08-01","North Yorkshire County Council",{"$f":"VLOOKUP(R218,'LA CPID Look up'!$A$3:$C$153,2,FALSE)","v":"North Yorkshire County Council"},"North of England"]
[null,null,null,null,null,null,null,null,null,null,null,null,null,null,128037,"Aspire Academy","2014-04-01","Bath & North East Somerset Council",{"$f":"VLOOKUP(R219,'LA CPID Look up'!$A$3:$C$153,2,FALSE)","v":"Bath & North East Somerset Council"},"South-West England"]
[null,null,null,null,null,null,null,null,null,null,null,null,null,null,130479,"Aspire Academy - Harlow","2014-09-01","Essex County Council",{"$f":"VLOOKUP(R220,'LA CPID Look up'!$A$3:$C$153,2,FALSE)","v":"Essex County Council"},"East of England and North-East London"]
[null,null,null,null,null,null,null,null,null,null,null,null,null,null,130478,"Aspire Academy - Hull","2014-09-01","Hull City Council",{"$f":"VLOOKUP(R221,'LA CPID Look up'!$A$3:$C$153,2,FALSE)","v":"Kingston upon Hull City Council"},"East Midlands and the Humber"]
[null,null,null,null,null,null,null,null,null,null,null,null,null,null,130477,"Aspire Academy, The - Worcester","2014-09-01","Worcestershire County Council",{"$f":"VLOOKUP(R222,'LA CPID Look up'!$A$3:$C$153,2,FALSE)","v":"Worcestershire County Council"},"West Midlands"]
[null,null,null,null,null,null,null,null,null,null,null,null,null,null,119718,"Aston Academy - Rotherham","2011-05-01","Rotherham Metropolitan Borough Council",{"$f":"VLOOKUP(R223,'LA CPID Look up'!$A$3:$C$153,2,FALSE)","v":"Rotherham Borough Council"},"East Midlands and the Humber"]
[null,null,null,null,null,null,null,null,null,null,null,null,null,null,131233,"Aston All Saints CofE (A) Primary School","2014-12-01","Rotherham Metropolitan Borough Council",{"$f":"VLOOKUP(R224,'LA CPID Look up'!$A$3:$C$153,2,FALSE)","v":"Rotherham Borough Council"},"East Midlands and the Humber"]
[null,null,null,null,null,null,null,null,null,null,null,null,null,null,119882,"Aston Manor Academy - Birmingham","2011-07-01","Birmingham City Council",{"$f":"VLOOKUP(R225,'LA CPID Look up'!$A$3:$C$153,2,FALSE)","v":"Birmingham City Council"},"West Midlands"]
[null,null,null,null,null,null,null,null,null,null,null,null,null,null,122150,"Aston University Engineering Academy","2012-09-01","Birmingham City Council",{"$f":"VLOOKUP(R226,'LA CPID Look up'!$A$3:$C$153,2,FALSE)","v":"Birmingham City Council"},"West Midlands"]
[null,null,null,null,null,null,null,null,null,null,null,null,null,null,122113,"Astor College","2012-06-01","Kent County Council",{"$f":"VLOOKUP(R227,'LA CPID Look up'!$A$3:$C$153,2,FALSE)","v":"Kent County Council"},"South-East England and South London"]
[null,null,null,null,null,null,null,null,null,null,null,null,null,null,124767,"Astwood Bank First School","2013-10-01","Worcestershire County Council",{"$f":"VLOOKUP(R228,'LA CPID Look up'!$A$3:$C$153,2,FALSE)","v":"Worcestershire County Council"},"West Midlands"]
[null,null,null,null,null,null,null,null,null,null,null,null,null,null,121960,"Atherton Community School","2012-09-01","Wigan Metropolitan Borough Council",{"$f":"VLOOKUP(R229,'LA CPID Look up'!$A$3:$C$153,2,FALSE)","v":"Wigan Metropolitan Borough Council"},"Lancashire and West Yorkshire"]
[null,null,null,null,null,null,null,null,null,null,null,null,null,null,121210,"Atkinson Road Primary School","2012-06-01","Newcastle Upon Tyne City Council",{"$f":"VLOOKUP(R230,'LA CPID Look up'!$A$3:$C$153,2,FALSE)","v":"Newcastle upon Tyne City Council"},"North of England"]
[null,null,null,null,null,null,null,null,null,null,null,null,null,null,132676,"Atrium Studio School","2015-09-01","Devon County Council",{"$f":"VLOOKUP(R231,'LA CPID Look up'!$A$3:$C$153,2,FALSE)","v":"Devon County Council"},"South-West England"]
[null,null,null,null,null,null,null,null,null,null,null,null,null,null,127652,"Attleborough Academy Norfolk","2014-01-01","Norfolk County Council",{"$f":"VLOOKUP(R232,'LA CPID Look up'!$A$3:$C$153,2,FALSE)","v":"Norfolk County Council"},"East of England and North-East London"]
[null,null,null,null,null,null,null,null,null,null,null,null,null,null,128107,"Atwood Primary Academy","2014-01-01","Croydon London Borough Council",{"$f":"VLOOKUP(R233,'LA CPID Look up'!$A$3:$C$153,2,FALSE)","v":"Croydon London Borough Council"},"South-East England and South London"]
[null,null,null,null,null,null,null,null,null,null,null,null,null,null,120431,"Auckley School","2011-09-01","Doncaster Metropolitan Borough Council",{"$f":"VLOOKUP(R234,'LA CPID Look up'!$A$3:$C$153,2,FALSE)","v":"Doncaster Metropolitan Borough Council"},"East Midlands and the Humber"]
[null,null,null,null,null,null,null,null,null,null,null,null,null,null,119350,"Audenshaw School","2010-09-01","Tameside Metropolitan Borough Council",{"$f":"VLOOKUP(R235,'LA CPID Look up'!$A$3:$C$153,2,FALSE)","v":"Tameside Metropolitan Borough Council"},"Lancashire and West Yorkshire"]
[null,null,null,null,null,null,null,null,null,null,null,null,null,null,130769,"Austin Farm Primary School","2015-03-01","Plymouth City Council",{"$f":"VLOOKUP(R236,'LA CPID Look up'!$A$3:$C$153,2,FALSE)","v":"Plymouth City Council"},"South-West England"]
[null,null,null,null,null,null,null,null,null,null,null,null,null,null,123227,"Austrey CofE Primary School","2013-09-01","Warwickshire County Council",{"$f":"VLOOKUP(R237,'LA CPID Look up'!$A$3:$C$153,2,FALSE)","v":"Warwickshire County Council"},"West Midlands"]
[null,null,null,null,null,null,null,null,null,null,null,null,null,null,133034,"Avanti Court Primary School","2015-12-01","Redbridge London Borough Council",{"$f":"VLOOKUP(R238,'LA CPID Look up'!$A$3:$C$153,2,FALSE)","v":"Redbridge London Borough Council"},"East of England and North-East London"]
[null,null,null,null,null,null,null,null,null,null,null,null,null,null,123026,"Avanti House School","2012-09-01","Harrow London Borough Council",{"$f":"VLOOKUP(R239,'LA CPID Look up'!$A$3:$C$153,2,FALSE)","v":"Harrow London Borough Council"},"East of England and North-East London"]
[null,null,null,null,null,null,null,null,null,null,null,null,null,null,121137,"Avenue Primary Academy","2015-09-01","Sutton London Borough Council",{"$f":"VLOOKUP(R240,'LA CPID Look up'!$A$3:$C$153,2,FALSE)","v":"Sutton London Borough Council"},"South-East England and South London"]
[null,null,null,null,null,null,null,null,null,null,null,null,null,null,130057,"Avenue Primary School and Children's Centre, The","2015-01-01","Wiltshire Council",{"$f":"VLOOKUP(R241,'LA CPID Look up'!$A$3:$C$153,2,FALSE)","v":"Wiltshire Unitary Authority"},"South-West England"]
[null,null,null,null,null,null,null,null,null,null,null,null,null,null,120383,"Avenue School, The","2011-09-01","Reading Borough Council",{"$f":"VLOOKUP(R242,'LA CPID Look up'!$A$3:$C$153,2,FALSE)","v":"Reading Borough Council"},"East of England and North-East London"]
[null,null,null,null,null,null,null,null,null,null,null,null,null,null,122910,"Aveton Gifford CofE Primary School","2012-09-01","Devon County Council",{"$f":"VLOOKUP(R243,'LA CPID Look up'!$A$3:$C$153,2,FALSE)","v":"Devon County Council"},"South-West England"]
[null,null,null,null,null,null,null,null,null,null,null,null,null,null,120174,"Avishayes Community Primary School","2011-08-01","Somerset County Council",{"$f":"VLOOKUP(R244,'LA CPID Look up'!$A$3:$C$153,2,FALSE)","v":"Somerset County Council"},"South-West England"]
[null,null,null,null,null,null,null,null,null,null,null,null,null,null,121944,"Avonbourne College","2012-06-01","Bournemouth Borough Council",{"$f":"VLOOKUP(R245,'LA CPID Look up'!$A$3:$C$153,2,FALSE)","v":"Bournemouth Council"},"South-West England"]
[null,null,null,null,null,null,null,null,null,null,null,null,null,null,122395,"Axbridge Church of England First School","2012-09-01","Somerset County Council",{"$f":"VLOOKUP(R246,'LA CPID Look up'!$A$3:$C$153,2,FALSE)","v":"Somerset County Council"},"South-West England"]
[null,null,null,null,null,null,null,null,null,null,null,null,null,null,120982,"Axholme Academy, The","2012-01-01","North Lincolnshire Council",{"$f":"VLOOKUP(R247,'LA CPID Look up'!$A$3:$C$153,2,FALSE)","v":"North Lincolnshire Council"},"East Midlands and the Humber"]
[null,null,null,null,null,null,null,null,null,null,null,null,null,null,131150,"Axminster Community Primary School","2014-11-01","Devon County Council",{"$f":"VLOOKUP(R248,'LA CPID Look up'!$A$3:$C$153,2,FALSE)","v":"Devon County Council"},"South-West England"]
[null,null,null,null,null,null,null,null,null,null,null,null,null,null,119884,"Aylesbury Grammar School","2011-07-01","Buckinghamshire County Council",{"$f":"VLOOKUP(R249,'LA CPID Look up'!$A$3:$C$153,2,FALSE)","v":"Buckinghamshire County Council"},"South-Central England and North-West London"]
[null,null,null,null,null,null,null,null,null,null,null,null,null,null,119846,"Aylesbury High School","2011-07-01","Buckinghamshire County Council",{"$f":"VLOOKUP(R250,'LA CPID Look up'!$A$3:$C$153,2,FALSE)","v":"Buckinghamshire County Council"},"South-Central England and North-West London"]
[null,null,null,null,null,null,null,null,null,null,null,null,null,null,118894,"Aylesbury Vale Academy, The","2009-09-01","Buckinghamshire County Council",{"$f":"VLOOKUP(R251,'LA CPID Look up'!$A$3:$C$153,2,FALSE)","v":"Buckinghamshire County Council"},"South-Central England and North-West London"]
[null,null,null,null,null,null,null,null,null,null,null,null,null,null,124228,"Aylesford Primary School","2013-12-01","Kent County Council",{"$f":"VLOOKUP(R252,'LA CPID Look up'!$A$3:$C$153,2,FALSE)","v":"Kent County Council"},"South-East England and South London"]
[null,null,null,null,null,null,null,null,null,null,null,null,null,null,120810,"Aylesford School and Sixth Form College","2012-01-01","Warwickshire County Council",{"$f":"VLOOKUP(R253,'LA CPID Look up'!$A$3:$C$153,2,FALSE)","v":"Warwickshire County Council"},"West Midlands"]
[null,null,null,null,null,null,null,null,null,null,null,null,null,null,119211,"Aylward Academy - Enfield","2010-09-01","Enfield London Borough Council",{"$f":"VLOOKUP(R254,'LA CPID Look up'!$A$3:$C$153,2,FALSE)","v":"Enfield London Borough Council"},"South-Central England and North-West London"]
[null,null,null,null,null,null,null,null,null,null,null,null,null,null,130326,"Aylward Primary School - Stanmore","2014-04-01","Harrow London Borough Council",{"$f":"VLOOKUP(R255,'LA CPID Look up'!$A$3:$C$153,2,FALSE)","v":"Harrow London Borough Council"},"East of England and North-East London"]
[null,null,null,null,null,null,null,null,null,null,null,null,null,null,119719,"Backwell School","2011-05-01","North Somerset District Council",{"$f":"VLOOKUP(R256,'LA CPID Look up'!$A$3:$C$153,2,FALSE)","v":"North Somerset Council"},"South-West England"]
[null,null,null,null,null,null,null,null,null,null,null,null,null,null,118383,"Bacon's College","2007-09-01","Southwark London Borough Council",{"$f":"VLOOKUP(R257,'LA CPID Look up'!$A$3:$C$153,2,FALSE)","v":"Southwark London Borough Council"},"South-East England and South London"]
[null,null,null,null,null,null,null,null,null,null,null,null,null,null,122800,"Bacup and Rawtenstall Grammar School","2012-10-01","Lancashire County Council",{"$f":"VLOOKUP(R258,'LA CPID Look up'!$A$3:$C$153,2,FALSE)","v":"Lancashire County Council"},"Lancashire and West Yorkshire"]
[null,null,null,null,null,null,null,null,null,null,null,null,null,null,129893,"Badby School","2014-07-01","Northamptonshire County Council",{"$f":"VLOOKUP(R259,'LA CPID Look up'!$A$3:$C$153,2,FALSE)","v":"Northamptonshire County Council"},"East of England and North-East London"]
[null,null,null,null,null,null,null,null,null,null,null,null,null,null,124819,"Baird Primary Academy, The","2014-01-01","East Sussex County Council",{"$f":"VLOOKUP(R260,'LA CPID Look up'!$A$3:$C$153,2,FALSE)","v":"East Sussex County Council"},"South-East England and South London"]
[null,null,null,null,null,null,null,null,null,null,null,null,null,null,124987,"Balby Carr Community Academy","2013-11-01","Doncaster Metropolitan Borough Council",{"$f":"VLOOKUP(R261,'LA CPID Look up'!$A$3:$C$153,2,FALSE)","v":"Doncaster Metropolitan Borough Council"},"East Midlands and the Humber"]
[null,null,null,null,null,null,null,null,null,null,null,null,null,null,119474,"Balcarras School","2011-02-01","Gloucestershire County Council",{"$f":"VLOOKUP(R262,'LA CPID Look up'!$A$3:$C$153,2,FALSE)","v":"Gloucestershire County Council"},"South-West England"]
[null,null,null,null,null,null,null,null,null,null,null,null,null,null,130747,"Baldwins Hill Primary School, East Grinstead","2014-09-01","West Sussex County Council",{"$f":"VLOOKUP(R263,'LA CPID Look up'!$A$3:$C$153,2,FALSE)","v":"West Sussex County Council"},"South-East England and South London"]
[null,null,null,null,null,null,null,null,null,null,null,null,null,null,120216,"Balgowan Primary School","2011-08-01","Bromley London Borough Council",{"$f":"VLOOKUP(R264,'LA CPID Look up'!$A$3:$C$153,2,FALSE)","v":"Bromley London Borough Council"},"South-East England and South London"]
[null,null,null,null,null,null,null,null,null,null,null,null,null,null,122160,"Balsall Common Primary School","2012-08-01","Solihull Metropolitan Borough Council",{"$f":"VLOOKUP(R265,'LA CPID Look up'!$A$3:$C$153,2,FALSE)","v":"Solihull Metropolitan Borough Council"},"West Midlands"]
[null,null,null,null,null,null,null,null,null,null,null,null,null,null,120360,"Bamford Academy","2011-09-01","Rochdale Metropolitan Borough Council",{"$f":"VLOOKUP(R266,'LA CPID Look up'!$A$3:$C$153,2,FALSE)","v":"Rochdale Borough Council"},"Lancashire and West Yorkshire"]
[null,null,null,null,null,null,null,null,null,null,null,null,null,null,131548,"Bampton CofE Primary School","2015-07-01","Oxfordshire County Council",{"$f":"VLOOKUP(R267,'LA CPID Look up'!$A$3:$C$153,2,FALSE)","v":"Oxfordshire County Council"},"East of England and North-East London"]
[null,null,null,null,null,null,null,null,null,null,null,null,null,null,120641,"Banbury Academy","2012-08-01","Oxfordshire County Council",{"$f":"VLOOKUP(R268,'LA CPID Look up'!$A$3:$C$153,2,FALSE)","v":"Oxfordshire County Council"},"East of England and North-East London"]
[null,null,null,null,null,null,null,null,null,null,null,null,null,null,122940,"Bannerman Road Community Academy","2013-01-01","Bristol City Council",{"$f":"VLOOKUP(R269,'LA CPID Look up'!$A$3:$C$153,2,FALSE)","v":"Bristol City Council"},"South-West England"]
[null,null,null,null,null,null,null,null,null,null,null,null,null,null,130643,"Banovallum School, The","2014-12-01","Lincolnshire County Council",{"$f":"VLOOKUP(R270,'LA CPID Look up'!$A$3:$C$153,2,FALSE)","v":"Lincolnshire County Council"},"East Midlands and the Humber"]
[null,null,null,null,null,null,null,null,null,null,null,null,null,null,128240,"Banstead Infant School","2014-04-01","Surrey County Council",{"$f":"VLOOKUP(R271,'LA CPID Look up'!$A$3:$C$153,2,FALSE)","v":"Surrey County Council"},"South-East England and South London"]
[null,null,null,null,null,null,null,null,null,null,null,null,null,null,122338,"Barbara Priestman School","2012-08-01","Sunderland City Council",{"$f":"VLOOKUP(R272,'LA CPID Look up'!$A$3:$C$153,2,FALSE)","v":"Sunderland City Metropolitan Borough Council"},"North of England"]
[null,null,null,null,null,null,null,null,null,null,null,null,null,null,129895,"Barby Church of England Primary School","2014-07-01","Northamptonshire County Council",{"$f":"VLOOKUP(R273,'LA CPID Look up'!$A$3:$C$153,2,FALSE)","v":"Northamptonshire County Council"},"East of England and North-East London"]
[null,null,null,null,null,null,null,null,null,null,null,null,null,null,122408,"Barclay Primary School","2012-09-01","Waltham Forest London Borough Council",{"$f":"VLOOKUP(R274,'LA CPID Look up'!$A$3:$C$153,2,FALSE)","v":"Waltham Forest London Borough Council"},"East of England and North-East London"]
[null,null,null,null,null,null,null,null,null,null,null,null,null,null,130149,"Barlestone Church of England Primary School","2014-06-01","Leicestershire County Council",{"$f":"VLOOKUP(R275,'LA CPID Look up'!$A$3:$C$153,2,FALSE)","v":"Leicestershire County Council"},"East Midlands and the Humber"]
[null,null,null,null,null,null,null,null,null,null,null,null,null,null,121426,"Barnby Dun Primary Academy","2012-06-01","Doncaster Metropolitan Borough Council",{"$f":"VLOOKUP(R276,'LA CPID Look up'!$A$3:$C$153,2,FALSE)","v":"Doncaster Metropolitan Borough Council"},"East Midlands and the Humber"]
[null,null,null,null,null,null,null,null,null,null,null,null,null,null,119256,"Barnby Road Academy Primary and Nursery school","2010-09-06","Nottinghamshire County Council",{"$f":"VLOOKUP(R277,'LA CPID Look up'!$A$3:$C$153,2,FALSE)","v":"Nottinghamshire County Council"},"East Midlands and the Humber"]
[null,null,null,null,null,null,null,null,null,null,null,null,null,null,126400,"Barnehurst Infant School","2013-11-01","Bexley London Borough Council",{"$f":"VLOOKUP(R278,'LA CPID Look up'!$A$3:$C$153,2,FALSE)","v":"Bexley London Borough Council"},"South-East England and South London"]
[null,null,null,null,null,null,null,null,null,null,null,null,null,null,126291,"Barnehurst Junior School","2013-11-01","Bexley London Borough Council",{"$f":"VLOOKUP(R279,'LA CPID Look up'!$A$3:$C$153,2,FALSE)","v":"Bexley London Borough Council"},"South-East England and South London"]
[null,null,null,null,null,null,null,null,null,null,null,null,null,null,130703,"Barnes Infant Academy","2014-07-01","Sunderland City Council",{"$f":"VLOOKUP(R280,'LA CPID Look up'!$A$3:$C$153,2,FALSE)","v":"Sunderland City Metropolitan Borough Council"},"North of England"]
[null,null,null,null,null,null,null,null,null,null,null,null,null,null,123951,"Barnes Wallis Academy, The","2014-09-01","Lincolnshire County Council",{"$f":"VLOOKUP(R281,'LA CPID Look up'!$A$3:$C$153,2,FALSE)","v":"Lincolnshire County Council"},"East Midlands and the Humber"]
[null,null,null,null,null,null,null,null,null,null,null,null,null,null,119325,"Barnfield Business and Enterprise Studio","2010-09-01","Luton Borough Council",{"$f":"VLOOKUP(R282,'LA CPID Look up'!$A$3:$C$153,2,FALSE)","v":"Luton Borough Council"},"East of England and North-East London"]
[null,null,null,null,null,null,null,null,null,null,null,null,null,null,120524,"Barnfield Moorlands Free School","2011-09-01","Luton Borough Council",{"$f":"VLOOKUP(R283,'LA CPID Look up'!$A$3:$C$153,2,FALSE)","v":"Luton Borough Council"},"East of England and North-East London"]
[null,null,null,null,null,null,null,null,null,null,null,null,null,null,118599,"Barnfield South Academy Luton","2007-09-01","Luton Borough Council",{"$f":"VLOOKUP(R284,'LA CPID Look up'!$A$3:$C$153,2,FALSE)","v":"Luton Borough Council"},"East of England and North-East London"]
[null,null,null,null,null,null,null,null,null,null,null,null,null,null,120860,"Barnfield Vale Academy - Dunstable","2012-09-01","Central Bedfordshire Council",{"$f":"VLOOKUP(R285,'LA CPID Look up'!$A$3:$C$153,2,FALSE)","v":"Central Bedfordshire Unitary Authority"},"South-Central England and North-West London"]
[null,null,null,null,null,null,null,null,null,null,null,null,null,null,118600,"Barnfield West Academy Luton","2007-09-01","Luton Borough Council",{"$f":"VLOOKUP(R286,'LA CPID Look up'!$A$3:$C$153,2,FALSE)","v":"Luton Borough Council"},"East of England and North-East London"]
[null,null,null,null,null,null,null,null,null,null,null,null,null,null,132458,"Barnham Primary School","2015-07-01","West Sussex County Council",{"$f":"VLOOKUP(R287,'LA CPID Look up'!$A$3:$C$153,2,FALSE)","v":"West Sussex County Council"},"South-East England and South London"]
[null,null,null,null,null,null,null,null,null,null,null,null,null,null,120071,"Barnhill Community High School","2012-02-01","Hillingdon London Borough Council",{"$f":"VLOOKUP(R288,'LA CPID Look up'!$A$3:$C$153,2,FALSE)","v":"Hillingdon London Borough Council"},"East of England and North-East London"]
[null,null,null,null,null,null,null,null,null,null,null,null,null,null,127442,"Barnsbury Primary School","2014-01-01","Surrey County Council",{"$f":"VLOOKUP(R289,'LA CPID Look up'!$A$3:$C$153,2,FALSE)","v":"Surrey County Council"},"South-East England and South London"]
[null,null,null,null,null,null,null,null,null,null,null,null,null,null,118649,"Barnsley Academy","2006-09-01","Barnsley Metropolitan Borough Council",{"$f":"VLOOKUP(R290,'LA CPID Look up'!$A$3:$C$153,2,FALSE)","v":"Barnsley Metropolitan Borough Council"},"East Midlands and the Humber"]
[null,null,null,null,null,null,null,null,null,null,null,null,null,null,127259,"Barnwell Academy","2014-04-01","Sunderland City Council",{"$f":"VLOOKUP(R291,'LA CPID Look up'!$A$3:$C$153,2,FALSE)","v":"Sunderland City Metropolitan Borough Council"},"North of England"]
[null,null,null,null,null,null,null,null,null,null,null,null,null,null,119885,"Barr Beacon School","2011-07-01","Walsall Metropolitan Borough Council",{"$f":"VLOOKUP(R292,'LA CPID Look up'!$A$3:$C$153,2,FALSE)","v":"Walsall Metropolitan Borough Council"},"West Midlands"]
[null,null,null,null,null,null,null,null,null,null,null,null,null,null,121961,"Barrow 1618 CofE Free School","2012-09-01","Shropshire Council",{"$f":"VLOOKUP(R293,'LA CPID Look up'!$A$3:$C$153,2,FALSE)","v":"Shropshire Unitary Authority"},"West Midlands"]
[null,null,null,null,null,null,null,null,null,null,null,null,null,null,124068,"Barrow Hall Orchard Church of England Primary School","2013-10-01","Leicestershire County Council",{"$f":"VLOOKUP(R294,'LA CPID Look up'!$A$3:$C$153,2,FALSE)","v":"Leicestershire County Council"},"East Midlands and the Humber"]
[null,null,null,null,null,null,null,null,null,null,null,null,null,null,122903,"Barrs Court School","2013-05-01","Herefordshire Council",{"$f":"VLOOKUP(R295,'LA CPID Look up'!$A$3:$C$153,2,FALSE)","v":"Herefordshire Council"},"West Midlands"]
[null,null,null,null,null,null,null,null,null,null,null,null,null,null,132400,"Barr's Hill School and Community College","2015-10-01","Coventry City Council",{"$f":"VLOOKUP(R296,'LA CPID Look up'!$A$3:$C$153,2,FALSE)","v":"Coventry City Council"},"West Midlands"]
[null,null,null,null,null,null,null,null,null,null,null,null,null,null,120914,"Bartholomew School","2012-03-01","Oxfordshire County Council",{"$f":"VLOOKUP(R297,'LA CPID Look up'!$A$3:$C$153,2,FALSE)","v":"Oxfordshire County Council"},"East of England and North-East London"]
[null,null,null,null,null,null,null,null,null,null,null,null,null,null,119552,"Bartley Green School","2011-04-01","Birmingham City Council",{"$f":"VLOOKUP(R298,'LA CPID Look up'!$A$3:$C$153,2,FALSE)","v":"Birmingham City Council"},"West Midlands"]
[null,null,null,null,null,null,null,null,null,null,null,null,null,null,120444,"Barton Court Grammar School","2011-09-01","Kent County Council",{"$f":"VLOOKUP(R299,'LA CPID Look up'!$A$3:$C$153,2,FALSE)","v":"Kent County Council"},"South-East England and South London"]
[null,null,null,null,null,null,null,null,null,null,null,null,null,null,120920,"Barton Hill Academy - Torquay","2012-09-01","Torbay Council",{"$f":"VLOOKUP(R300,'LA CPID Look up'!$A$3:$C$153,2,FALSE)","v":"Torbay Council"},"South-West England"]
[null,null,null,null,null,null,null,null,null,null,null,null,null,null,130771,"Barton Hill Primary - Bristol","2014-09-01","Bristol City Council",{"$f":"VLOOKUP(R301,'LA CPID Look up'!$A$3:$C$153,2,FALSE)","v":"Bristol City Council"},"South-West England"]
[null,null,null,null,null,null,null,null,null,null,null,null,null,null,122170,"Barton Junior School","2012-06-01","Kent County Council",{"$f":"VLOOKUP(R302,'LA CPID Look up'!$A$3:$C$153,2,FALSE)","v":"Kent County Council"},"South-East England and South London"]
[null,null,null,null,null,null,null,null,null,null,null,null,null,null,122989,"Barwell Church of England Junior School","2012-11-01","Leicestershire County Council",{"$f":"VLOOKUP(R303,'LA CPID Look up'!$A$3:$C$153,2,FALSE)","v":"Leicestershire County Council"},"East Midlands and the Humber"]
[null,null,null,null,null,null,null,null,null,null,null,null,null,null,119146,"Basildon Lower Academy, The","2009-09-01","Essex County Council",{"$f":"VLOOKUP(R304,'LA CPID Look up'!$A$3:$C$153,2,FALSE)","v":"Essex County Council"},"East of England and North-East London"]
[null,null,null,null,null,null,null,null,null,null,null,null,null,null,119147,"Basildon Upper Academy, The","2009-09-01","Essex County Council",{"$f":"VLOOKUP(R305,'LA CPID Look up'!$A$3:$C$153,2,FALSE)","v":"Essex County Council"},"East of England and North-East London"]
[null,null,null,null,null,null,null,null,null,null,null,null,null,null,120401,"Bassingbourn Village College","2011-09-01","Cambridgeshire County Council",{"$f":"VLOOKUP(R306,'LA CPID Look up'!$A$3:$C$153,2,FALSE)","v":"Cambridgeshire County Council"},"East of England and North-East London"]
[null,null,null,null,null,null,null,null,null,null,null,null,null,null,120949,"Bath Community Academy","2012-09-01","Bath & North East Somerset Council",{"$f":"VLOOKUP(R307,'LA CPID Look up'!$A$3:$C$153,2,FALSE)","v":"Bath & North East Somerset Council"},"South-West England"]
[null,null,null,null,null,null,null,null,null,null,null,null,null,null,130578,"Bath Studio School, The","2014-09-01","Bath & North East Somerset Council",{"$f":"VLOOKUP(R308,'LA CPID Look up'!$A$3:$C$153,2,FALSE)","v":"Bath & North East Somerset Council"},"South-West England"]
[null,null,null,null,null,null,null,null,null,null,null,null,null,null,120432,"Batley Girls High School","2011-09-01","Kirklees Metropolitan Council",{"$f":"VLOOKUP(R309,'LA CPID Look up'!$A$3:$C$153,2,FALSE)","v":"Kirklees Metropolitan Council"},"Lancashire and West Yorkshire"]
[null,null,null,null,null,null,null,null,null,null,null,null,null,null,120487,"Batley Grammar School","2011-09-01","Kirklees Metropolitan Council",{"$f":"VLOOKUP(R310,'LA CPID Look up'!$A$3:$C$153,2,FALSE)","v":"Kirklees Metropolitan Council"},"Lancashire and West Yorkshire"]
[null,null,null,null,null,null,null,null,null,null,null,null,null,null,132495,"Batt Church of England Voluntary Aided Primary School, The","2015-10-01","Oxfordshire County Council",{"$f":"VLOOKUP(R311,'LA CPID Look up'!$A$3:$C$153,2,FALSE)","v":"Oxfordshire County Council"},"East of England and North-East London"]
[null,null,null,null,null,null,null,null,null,null,null,null,null,null,122633,"Battle Primary Academy","2013-01-01","Reading Borough Council",{"$f":"VLOOKUP(R312,'LA CPID Look up'!$A$3:$C$153,2,FALSE)","v":"Reading Borough Council"},"East of England and North-East London"]
[null,null,null,null,null,null,null,null,null,null,null,null,null,null,124192,"Battling Brook Primary School","2013-06-01","Leicestershire County Council",{"$f":"VLOOKUP(R313,'LA CPID Look up'!$A$3:$C$153,2,FALSE)","v":"Leicestershire County Council"},"East Midlands and the Humber"]
[null,null,null,null,null,null,null,null,null,null,null,null,null,null,124250,"Baverstock Academy, The","2013-06-01","Birmingham City Council",{"$f":"VLOOKUP(R314,'LA CPID Look up'!$A$3:$C$153,2,FALSE)","v":"Birmingham City Council"},"West Midlands"]
[null,null,null,null,null,null,null,null,null,null,null,null,null,null,122417,"Baxter College","2012-09-01","Worcestershire County Council",{"$f":"VLOOKUP(R315,'LA CPID Look up'!$A$3:$C$153,2,FALSE)","v":"Worcestershire County Council"},"West Midlands"]
[null,null,null,null,null,null,null,null,null,null,null,null,null,null,120781,"Bay House School","2012-01-01","Hampshire County Council",{"$f":"VLOOKUP(R316,'LA CPID Look up'!$A$3:$C$153,2,FALSE)","v":"Hampshire County Council"},"South-East England and South London"]
[null,null,null,null,null,null,null,null,null,null,null,null,null,null,130923,"Bayards Hill School","2014-10-01","Oxfordshire County Council",{"$f":"VLOOKUP(R317,'LA CPID Look up'!$A$3:$C$153,2,FALSE)","v":"Oxfordshire County Council"},"East of England and North-East London"]
[null,null,null,null,null,null,null,null,null,null,null,null,null,null,120259,"Baylis Court School","2011-08-01","Slough Borough Council",{"$f":"VLOOKUP(R318,'LA CPID Look up'!$A$3:$C$153,2,FALSE)","v":"Slough Borough Council"},"East of England and North-East London"]
[null,null,null,null,null,null,null,null,null,null,null,null,null,null,121045,"BBG Academy","2012-05-01","Kirklees Metropolitan Council",{"$f":"VLOOKUP(R319,'LA CPID Look up'!$A$3:$C$153,2,FALSE)","v":"Kirklees Metropolitan Council"},"Lancashire and West Yorkshire"]
[null,null,null,null,null,null,null,null,null,null,null,null,null,null,129561,"Beachcroft Ap Academy","2014-04-01","Westminster City Council",{"$f":"VLOOKUP(R320,'LA CPID Look up'!$A$3:$C$153,2,FALSE)","v":"Westminster City Council"},"East of England and North-East London"]
[null,null,null,null,null,null,null,null,null,null,null,null,null,null,122916,"Beacon Academy - Loughborough","2012-12-01","Leicestershire County Council",{"$f":"VLOOKUP(R321,'LA CPID Look up'!$A$3:$C$153,2,FALSE)","v":"Leicestershire County Council"},"East Midlands and the Humber"]
[null,null,null,null,null,null,null,null,null,null,null,null,null,null,113087,"Beacon Community College - Crowborough","2012-04-01","East Sussex County Council",{"$f":"VLOOKUP(R322,'LA CPID Look up'!$A$3:$C$153,2,FALSE)","v":"East Sussex County Council"},"South-East England and South London"]
[null,null,null,null,null,null,null,null,null,null,null,null,null,null,121872,"Beacon Hill Academy","2012-09-01","Thurrock Borough Council",{"$f":"VLOOKUP(R323,'LA CPID Look up'!$A$3:$C$153,2,FALSE)","v":"Thurrock Unitary Authority"},"East of England and North-East London"]
[null,null,null,null,null,null,null,null,null,null,null,null,null,null,130416,"Beacon Primary Academy","2014-09-01","Lincolnshire County Council",{"$f":"VLOOKUP(R324,'LA CPID Look up'!$A$3:$C$153,2,FALSE)","v":"Lincolnshire County Council"},"East Midlands and the Humber"]
[null,null,null,null,null,null,null,null,null,null,null,null,null,null,120708,"Beacon School, The - Banstead","2011-12-01","Surrey County Council",{"$f":"VLOOKUP(R325,'LA CPID Look up'!$A$3:$C$153,2,FALSE)","v":"Surrey County Council"},"South-East England and South London"]
[null,null,null,null,null,null,null,null,null,null,null,null,null,null,122635,"Beacon View Primary Academy","2013-01-01","Portsmouth City Council",{"$f":"VLOOKUP(R326,'LA CPID Look up'!$A$3:$C$153,2,FALSE)","v":"Portsmouth City Council"},"South-East England and South London"]
[null,null,null,null,null,null,null,null,null,null,null,null,null,null,127317,"Beaconsfield High School","2014-09-01","Buckinghamshire County Council",{"$f":"VLOOKUP(R327,'LA CPID Look up'!$A$3:$C$153,2,FALSE)","v":"Buckinghamshire County Council"},"South-Central England and North-West London"]
[null,null,null,null,null,null,null,null,null,null,null,null,null,null,123082,"Beaconsfield School, The","2013-03-01","Buckinghamshire County Council",{"$f":"VLOOKUP(R328,'LA CPID Look up'!$A$3:$C$153,2,FALSE)","v":"Buckinghamshire County Council"},"South-Central England and North-West London"]
[null,null,null,null,null,null,null,null,null,null,null,null,null,null,130483,"Beal Business Innovation Hub","2014-09-01","Redbridge London Borough Council",{"$f":"VLOOKUP(R329,'LA CPID Look up'!$A$3:$C$153,2,FALSE)","v":"Redbridge London Borough Council"},"East of England and North-East London"]
[null,null,null,null,null,null,null,null,null,null,null,null,null,null,129576,"Beal High School","2014-02-01","Redbridge London Borough Council",{"$f":"VLOOKUP(R330,'LA CPID Look up'!$A$3:$C$153,2,FALSE)","v":"Redbridge London Borough Council"},"East of England and North-East London"]
[null,null,null,null,null,null,null,null,null,null,null,null,null,null,129542,"Beaminster St Mary's Academy","2014-02-01","Dorset County Council",{"$f":"VLOOKUP(R331,'LA CPID Look up'!$A$3:$C$153,2,FALSE)","v":"Dorset County Council"},"South-West England"]
[null,null,null,null,null,null,null,null,null,null,null,null,null,null,122491,"Beamont Collegiate","2013-03-01","Warrington Borough Council",{"$f":"VLOOKUP(R332,'LA CPID Look up'!$A$3:$C$153,2,FALSE)","v":"Warrington Borough Council"},"Lancashire and West Yorkshire"]
[null,null,null,null,null,null,null,null,null,null,null,null,null,null,122248,"Beanfield Primary School","2012-09-01","Northamptonshire County Council",{"$f":"VLOOKUP(R333,'LA CPID Look up'!$A$3:$C$153,2,FALSE)","v":"Northamptonshire County Council"},"East of England and North-East London"]
[null,null,null,null,null,null,null,null,null,null,null,null,null,null,113692,"Beauchamp College","2013-05-01","Leicestershire County Council",{"$f":"VLOOKUP(R334,'LA CPID Look up'!$A$3:$C$153,2,FALSE)","v":"Leicestershire County Council"},"East Midlands and the Humber"]
[null,null,null,null,null,null,null,null,null,null,null,null,null,null,125001,"Beaufort Co-operative Academy","2013-10-01","Gloucestershire County Council",{"$f":"VLOOKUP(R335,'LA CPID Look up'!$A$3:$C$153,2,FALSE)","v":"Gloucestershire County Council"},"South-West England"]
[null,null,null,null,null,null,null,null,null,null,null,null,null,null,126292,"Beaufort Primary School - Woking","2014-01-01","Surrey County Council",{"$f":"VLOOKUP(R336,'LA CPID Look up'!$A$3:$C$153,2,FALSE)","v":"Surrey County Council"},"South-East England and South London"]
[null,null,null,null,null,null,null,null,null,null,null,null,null,null,120531,"Beaumont Hill Academy","2012-04-01","Darlington Borough Council",{"$f":"VLOOKUP(R337,'LA CPID Look up'!$A$3:$C$153,2,FALSE)","v":"Darlington Borough Council"},"North of England"]
[null,null,null,null,null,null,null,null,null,null,null,null,null,null,122174,"Beaumont School","2012-07-01","Hertfordshire County Council",{"$f":"VLOOKUP(R338,'LA CPID Look up'!$A$3:$C$153,2,FALSE)","v":"Hertfordshire County Council"},"East of England and North-East London"]
[null,null,null,null,null,null,null,null,null,null,null,null,null,null,131967,"Beaver Green Primary School","2015-04-01","Kent County Council",{"$f":"VLOOKUP(R339,'LA CPID Look up'!$A$3:$C$153,2,FALSE)","v":"Kent County Council"},"South-East England and South London"]
[null,null,null,null,null,null,null,null,null,null,null,null,null,null,125217,"Beaver Road Primary School","2013-11-01","Manchester City Council",{"$f":"VLOOKUP(R340,'LA CPID Look up'!$A$3:$C$153,2,FALSE)","v":"Manchester City Council"},"Lancashire and West Yorkshire"]
[null,null,null,null,null,null,null,null,null,null,null,null,null,null,122025,"Beccles Free School","2012-09-01","Suffolk County Council",{"$f":"VLOOKUP(R341,'LA CPID Look up'!$A$3:$C$153,2,FALSE)","v":"Suffolk County Council"},"East of England and North-East London"]
[null,null,null,null,null,null,null,null,null,null,null,null,null,null,132326,"Beccles Primary Academy","2015-07-01","Suffolk County Council",{"$f":"VLOOKUP(R342,'LA CPID Look up'!$A$3:$C$153,2,FALSE)","v":"Suffolk County Council"},"East of England and North-East London"]
[null,null,null,null,null,null,null,null,null,null,null,null,null,null,132274,"Beck Primary School","2016-02-01","Sheffield City Council",{"$f":"VLOOKUP(R343,'LA CPID Look up'!$A$3:$C$153,2,FALSE)","v":"Sheffield City Council"},"East Midlands and the Humber"]
[null,null,null,null,null,null,null,null,null,null,null,null,null,null,121966,"Becket Keys Church of England Free School","2012-09-01","Essex County Council",{"$f":"VLOOKUP(R344,'LA CPID Look up'!$A$3:$C$153,2,FALSE)","v":"Essex County Council"},"East of England and North-East London"]
[null,null,null,null,null,null,null,null,null,null,null,null,null,null,120279,"Becket School, The","2011-09-01","Nottinghamshire County Council",{"$f":"VLOOKUP(R345,'LA CPID Look up'!$A$3:$C$153,2,FALSE)","v":"Nottinghamshire County Council"},"East Midlands and the Humber"]
[null,null,null,null,null,null,null,null,null,null,null,null,null,null,121064,"Beckfoot School","2013-08-01","Bradford Metropolitan District Council",{"$f":"VLOOKUP(R346,'LA CPID Look up'!$A$3:$C$153,2,FALSE)","v":"Bradford City Council"},"Lancashire and West Yorkshire"]
[null,null,null,null,null,null,null,null,null,null,null,null,null,null,131540,"Beckfoot Upper Heaton","2015-09-01","Bradford Metropolitan District Council",{"$f":"VLOOKUP(R347,'LA CPID Look up'!$A$3:$C$153,2,FALSE)","v":"Bradford City Council"},"Lancashire and West Yorkshire"]
[null,null,null,null,null,null,null,null,null,null,null,null,null,null,132223,"Beddington Park Primary School","2015-06-01","Sutton London Borough Council",{"$f":"VLOOKUP(R348,'LA CPID Look up'!$A$3:$C$153,2,FALSE)","v":"Sutton London Borough Council"},"South-East England and South London"]
[null,null,null,null,null,null,null,null,null,null,null,null,null,null,118883,"Bede Academy","2009-09-01","Northumberland County Council",{"$f":"VLOOKUP(R349,'LA CPID Look up'!$A$3:$C$153,2,FALSE)","v":"Northumberland Unitary Authority"},"North of England"]
[null,null,null,null,null,null,null,null,null,null,null,null,null,null,119151,"Bedford Academy","2010-09-01","Bedford Borough Council",{"$f":"VLOOKUP(R350,'LA CPID Look up'!$A$3:$C$153,2,FALSE)","v":"Bedford Unitary Authority"},"South-Central England and North-West London"]
[null,null,null,null,null,null,null,null,null,null,null,null,null,null,122011,"Bedford Free School","2012-09-01","Bedford Borough Council",{"$f":"VLOOKUP(R351,'LA CPID Look up'!$A$3:$C$153,2,FALSE)","v":"Bedford Unitary Authority"},"South-Central England and North-West London"]
[null,null,null,null,null,null,null,null,null,null,null,null,null,null,124687,"Bedford Hall Methodist Primary School","2013-09-01","Wigan Metropolitan Borough Council",{"$f":"VLOOKUP(R352,'LA CPID Look up'!$A$3:$C$153,2,FALSE)","v":"Wigan Metropolitan Borough Council"},"Lancashire and West Yorkshire"]
[null,null,null,null,null,null,null,null,null,null,null,null,null,null,120556,"Bedminster Down School","2012-06-01","Bristol City Council",{"$f":"VLOOKUP(R353,'LA CPID Look up'!$A$3:$C$153,2,FALSE)","v":"Bristol City Council"},"South-West England"]
[null,null,null,null,null,null,null,null,null,null,null,null,null,null,130154,"Beech Academy, The - Mansfield","2014-06-01","Nottinghamshire County Council",{"$f":"VLOOKUP(R354,'LA CPID Look up'!$A$3:$C$153,2,FALSE)","v":"Nottinghamshire County Council"},"East Midlands and the Humber"]
[null,null,null,null,null,null,null,null,null,null,null,null,null,null,120433,"Beech Hill Junior and Infant School - Halifax","2011-09-01","Calderdale Metropolitan Borough Council",{"$f":"VLOOKUP(R355,'LA CPID Look up'!$A$3:$C$153,2,FALSE)","v":"Calderdale Metropolitan Borough Council"},"Lancashire and West Yorkshire"]
[null,null,null,null,null,null,null,null,null,null,null,null,null,null,119570,"Beechen Cliff School","2011-04-01","Bath & North East Somerset Council",{"$f":"VLOOKUP(R356,'LA CPID Look up'!$A$3:$C$153,2,FALSE)","v":"Bath & North East Somerset Council"},"South-West England"]
[null,null,null,null,null,null,null,null,null,null,null,null,null,null,125244,"Beechwood Junior School","2013-10-01","Southampton City Council",{"$f":"VLOOKUP(R357,'LA CPID Look up'!$A$3:$C$153,2,FALSE)","v":"Southampton City Council"},"South-East England and South London"]
[null,null,null,null,null,null,null,null,null,null,null,null,null,null,124120,"Beecroft Academy","2013-11-01","Central Bedfordshire Council",{"$f":"VLOOKUP(R358,'LA CPID Look up'!$A$3:$C$153,2,FALSE)","v":"Central Bedfordshire Unitary Authority"},"South-Central England and North-West London"]
[null,null,null,null,null,null,null,null,null,null,null,null,null,null,132344,"Beeston Fields Primary School and Nursery","2015-09-01","Nottinghamshire County Council",{"$f":"VLOOKUP(R359,'LA CPID Look up'!$A$3:$C$153,2,FALSE)","v":"Nottinghamshire County Council"},"East Midlands and the Humber"]
[null,null,null,null,null,null,null,null,null,null,null,null,null,null,122143,"Begbrook Primary Academy","2012-09-01","Bristol City Council",{"$f":"VLOOKUP(R360,'LA CPID Look up'!$A$3:$C$153,2,FALSE)","v":"Bristol City Council"},"South-West England"]
[null,null,null,null,null,null,null,null,null,null,null,null,null,null,120898,"Beis Yaakov High School","2012-09-01","Salford City Council",{"$f":"VLOOKUP(R361,'LA CPID Look up'!$A$3:$C$153,2,FALSE)","v":"Salford City Council"},"Lancashire and West Yorkshire"]
[null,null,null,null,null,null,null,null,null,null,null,null,null,null,120834,"Belfairs Academy","2012-06-01","Southend-on-Sea Borough Council",{"$f":"VLOOKUP(R362,'LA CPID Look up'!$A$3:$C$153,2,FALSE)","v":"Southend-on-Sea Borough Council"},"East of England and North-East London"]
[null,null,null,null,null,null,null,null,null,null,null,null,null,null,119546,"Belgrave St Bartholomew's Academy","2011-04-01","Stoke-on-Trent City Council",{"$f":"VLOOKUP(R363,'LA CPID Look up'!$A$3:$C$153,2,FALSE)","v":"Stoke-on-Trent Unitary Authority"},"West Midlands"]
[null,null,null,null,null,null,null,null,null,null,null,null,null,null,132634,"Belham Primary School, The","2015-09-01","Southwark London Borough Council",{"$f":"VLOOKUP(R364,'LA CPID Look up'!$A$3:$C$153,2,FALSE)","v":"Southwark London Borough Council"},"South-East England and South London"]
[null,null,null,null,null,null,null,null,null,null,null,null,null,null,132922,"Bell Lane Primary (J and I) School","2015-08-01","Wakefield Council",{"$f":"VLOOKUP(R365,'LA CPID Look up'!$A$3:$C$153,2,FALSE)","v":"Wakefield City Council"},"Lancashire and West Yorkshire"]
[null,null,null,null,null,null,null,null,null,null,null,null,null,null,120720,"Belle Vue Girls' School","2012-04-01","Bradford Metropolitan District Council",{"$f":"VLOOKUP(R366,'LA CPID Look up'!$A$3:$C$153,2,FALSE)","v":"Bradford City Council"},"Lancashire and West Yorkshire"]
[null,null,null,null,null,null,null,null,null,null,null,null,null,null,122087,"Bellerive FCJ Catholic College","2012-06-01","Liverpool City Council",{"$f":"VLOOKUP(R367,'LA CPID Look up'!$A$3:$C$153,2,FALSE)","v":"Liverpool City Council"},"Lancashire and West Yorkshire"]
[null,null,null,null,null,null,null,null,null,null,null,null,null,null,120640,"Belleville Primary School","2011-10-01","Wandsworth London Borough Council",{"$f":"VLOOKUP(R368,'LA CPID Look up'!$A$3:$C$153,2,FALSE)","v":"Wandsworth London Borough Council"},"South-East England and South London"]
[null,null,null,null,null,null,null,null,null,null,null,null,null,null,124079,"Bellfield Primary School","2013-07-01","Hull City Council",{"$f":"VLOOKUP(R369,'LA CPID Look up'!$A$3:$C$153,2,FALSE)","v":"Kingston upon Hull City Council"},"East Midlands and the Humber"]
[null,null,null,null,null,null,null,null,null,null,null,null,null,null,122972,"Belmont Castle Academy","2012-12-01","Thurrock Borough Council",{"$f":"VLOOKUP(R370,'LA CPID Look up'!$A$3:$C$153,2,FALSE)","v":"Thurrock Unitary Authority"},"East of England and North-East London"]
[null,null,null,null,null,null,null,null,null,null,null,null,null,null,122850,"Belmore Primary Academy","2012-12-01","Hillingdon London Borough Council",{"$f":"VLOOKUP(R371,'LA CPID Look up'!$A$3:$C$153,2,FALSE)","v":"Hillingdon London Borough Council"},"East of England and North-East London"]
[null,null,null,null,null,null,null,null,null,null,null,null,null,null,120507,"Belthorn Academy Primary School","2011-10-01","Lancashire County Council",{"$f":"VLOOKUP(R372,'LA CPID Look up'!$A$3:$C$153,2,FALSE)","v":"Lancashire County Council"},"Lancashire and West Yorkshire"]
[null,null,null,null,null,null,null,null,null,null,null,null,null,null,118601,"Belvedere Academy, The","2007-09-01","Liverpool City Council",{"$f":"VLOOKUP(R373,'LA CPID Look up'!$A$3:$C$153,2,FALSE)","v":"Liverpool City Council"},"Lancashire and West Yorkshire"]
[null,null,null,null,null,null,null,null,null,null,null,null,null,null,122812,"Belvedere Junior School","2013-04-01","Bexley London Borough Council",{"$f":"VLOOKUP(R374,'LA CPID Look up'!$A$3:$C$153,2,FALSE)","v":"Bexley London Borough Council"},"South-East England and South London"]
[null,null,null,null,null,null,null,null,null,null,null,null,null,null,122736,"Belvoir High School and Melton Vale Post 16 Centre","2012-10-01","Leicestershire County Council",{"$f":"VLOOKUP(R375,'LA CPID Look up'!$A$3:$C$153,2,FALSE)","v":"Leicestershire County Council"},"East Midlands and the Humber"]
[null,null,null,null,null,null,null,null,null,null,null,null,null,null,121022,"Benedict Biscop Church of England Academy","2012-02-01","Sunderland City Council",{"$f":"VLOOKUP(R376,'LA CPID Look up'!$A$3:$C$153,2,FALSE)","v":"Sunderland City Metropolitan Borough Council"},"North of England"]
[null,null,null,null,null,null,null,null,null,null,null,null,null,null,127409,"Benedict Primary School","2014-01-01","Merton Borough Council",{"$f":"VLOOKUP(R377,'LA CPID Look up'!$A$3:$C$153,2,FALSE)","v":"Merton Borough Council"},"South-East England and South London"]
[null,null,null,null,null,null,null,null,null,null,null,null,null,null,127642,"Bengeworth CE Academy","2014-06-01","Worcestershire County Council",{"$f":"VLOOKUP(R378,'LA CPID Look up'!$A$3:$C$153,2,FALSE)","v":"Worcestershire County Council"},"West Midlands"]
[null,null,null,null,null,null,null,null,null,null,null,null,null,null,120676,"Benjamin Adlard Primary School","2012-04-01","Lincolnshire County Council",{"$f":"VLOOKUP(R379,'LA CPID Look up'!$A$3:$C$153,2,FALSE)","v":"Lincolnshire County Council"},"East Midlands and the Humber"]
[null,null,null,null,null,null,null,null,null,null,null,null,null,null,119633,"Bennett Memorial Diocesan School","2011-04-01","Kent County Council",{"$f":"VLOOKUP(R380,'LA CPID Look up'!$A$3:$C$153,2,FALSE)","v":"Kent County Council"},"South-East England and South London"]
[null,null,null,null,null,null,null,null,null,null,null,null,null,null,124781,"Bentley Heath Church of England Primary School","2013-12-01","Solihull Metropolitan Borough Council",{"$f":"VLOOKUP(R381,'LA CPID Look up'!$A$3:$C$153,2,FALSE)","v":"Solihull Metropolitan Borough Council"},"West Midlands"]
[null,null,null,null,null,null,null,null,null,null,null,null,null,null,120178,"Bentley Wood High School","2011-08-01","Harrow London Borough Council",{"$f":"VLOOKUP(R382,'LA CPID Look up'!$A$3:$C$153,2,FALSE)","v":"Harrow London Borough Council"},"East of England and North-East London"]
[null,null,null,null,null,null,null,null,null,null,null,null,null,null,123282,"Benyon Primary School","2013-04-01","Thurrock Borough Council",{"$f":"VLOOKUP(R383,'LA CPID Look up'!$A$3:$C$153,2,FALSE)","v":"Thurrock Unitary Authority"},"East of England and North-East London"]
[null,null,null,null,null,null,null,null,null,null,null,null,null,null,130411,"Berewood Primary School","2014-09-01","Hampshire County Council",{"$f":"VLOOKUP(R384,'LA CPID Look up'!$A$3:$C$153,2,FALSE)","v":"Hampshire County Council"},"South-East England and South London"]
[null,null,null,null,null,null,null,null,null,null,null,null,null,null,131992,"Berkeley Academy, The","2015-09-01","Cheshire East Council",{"$f":"VLOOKUP(R385,'LA CPID Look up'!$A$3:$C$153,2,FALSE)","v":"Cheshire East Unitary Authority"},"West Midlands"]
[null,null,null,null,null,null,null,null,null,null,null,null,null,null,129809,"Berrybrook Primary School","2014-04-01","Wolverhampton City Council",{"$f":"VLOOKUP(R386,'LA CPID Look up'!$A$3:$C$153,2,FALSE)","v":"Wolverhampton City Council"},"West Midlands"]
[null,null,null,null,null,null,null,null,null,null,null,null,null,null,120647,"Berwick Academy","2011-11-01","Northumberland County Council",{"$f":"VLOOKUP(R387,'LA CPID Look up'!$A$3:$C$153,2,FALSE)","v":"Northumberland Unitary Authority"},"North of England"]
[null,null,null,null,null,null,null,null,null,null,null,null,null,null,131886,"Bethany Church of England Junior School","2015-07-01","Bournemouth Borough Council",{"$f":"VLOOKUP(R388,'LA CPID Look up'!$A$3:$C$153,2,FALSE)","v":"Bournemouth Council"},"South-West England"]
[null,null,null,null,null,null,null,null,null,null,null,null,null,null,120739,"Bethnal Green Academy","2012-01-01","Tower Hamlets London Borough Council",{"$f":"VLOOKUP(R389,'LA CPID Look up'!$A$3:$C$153,2,FALSE)","v":"Tower Hamlets London Borough Council"},"East of England and North-East London"]
[null,null,null,null,null,null,null,null,null,null,null,null,null,null,119278,"Beths Grammar School","2010-10-01","Bexley London Borough Council",{"$f":"VLOOKUP(R390,'LA CPID Look up'!$A$3:$C$153,2,FALSE)","v":"Bexley London Borough Council"},"South-East England and South London"]
[null,null,null,null,null,null,null,null,null,null,null,null,null,null,130772,"Beulah Infants' School","2014-09-01","Croydon London Borough Council",{"$f":"VLOOKUP(R391,'LA CPID Look up'!$A$3:$C$153,2,FALSE)","v":"Croydon London Borough Council"},"South-East England and South London"]
[null,null,null,null,null,null,null,null,null,null,null,null,null,null,119995,"Beverley Grammar School","2011-08-01","East Riding of Yorkshire Council",{"$f":"VLOOKUP(R392,'LA CPID Look up'!$A$3:$C$153,2,FALSE)","v":"East Riding of Yorkshire Council"},"East Midlands and the Humber"]
[null,null,null,null,null,null,null,null,null,null,null,null,null,null,121160,"Bewbush Academy, The","2012-04-01","West Sussex County Council",{"$f":"VLOOKUP(R393,'LA CPID Look up'!$A$3:$C$153,2,FALSE)","v":"West Sussex County Council"},"South-East England and South London"]
[null,null,null,null,null,null,null,null,null,null,null,null,null,null,119487,"Bexhill Academy","2011-03-01","Sunderland City Council",{"$f":"VLOOKUP(R394,'LA CPID Look up'!$A$3:$C$153,2,FALSE)","v":"Sunderland City Metropolitan Borough Council"},"North of England"]
[null,null,null,null,null,null,null,null,null,null,null,null,null,null,122894,"Bexhill High Academy","2012-11-01","East Sussex County Council",{"$f":"VLOOKUP(R395,'LA CPID Look up'!$A$3:$C$153,2,FALSE)","v":"East Sussex County Council"},"South-East England and South London"]
[null,null,null,null,null,null,null,null,null,null,null,null,null,null,119389,"Bexley Grammar School","2011-01-01","Bexley London Borough Council",{"$f":"VLOOKUP(R396,'LA CPID Look up'!$A$3:$C$153,2,FALSE)","v":"Bexley London Borough Council"},"South-East England and South London"]
[null,null,null,null,null,null,null,null,null,null,null,null,null,null,120138,"Bexleyheath Academy","2011-09-01","Bexley London Borough Council",{"$f":"VLOOKUP(R397,'LA CPID Look up'!$A$3:$C$153,2,FALSE)","v":"Bexley London Borough Council"},"South-East England and South London"]
[null,null,null,null,null,null,null,null,null,null,null,null,null,null,131789,"Bicester School, The","2015-08-01","Oxfordshire County Council",{"$f":"VLOOKUP(R398,'LA CPID Look up'!$A$3:$C$153,2,FALSE)","v":"Oxfordshire County Council"},"East of England and North-East London"]
[null,null,null,null,null,null,null,null,null,null,null,null,null,null,120895,"Bickleigh on Exe Church of England Primary School","2012-01-01","Devon County Council",{"$f":"VLOOKUP(R399,'LA CPID Look up'!$A$3:$C$153,2,FALSE)","v":"Devon County Council"},"South-West England"]
[null,null,null,null,null,null,null,null,null,null,null,null,null,null,124397,"Biddick Academy","2013-07-01","Sunderland City Council",{"$f":"VLOOKUP(R400,'LA CPID Look up'!$A$3:$C$153,2,FALSE)","v":"Sunderland City Metropolitan Borough Council"},"North of England"]
[null,null,null,null,null,null,null,null,null,null,null,null,null,null,120427,"Biddulph High School","2011-09-01","Staffordshire County Council",{"$f":"VLOOKUP(R401,'LA CPID Look up'!$A$3:$C$153,2,FALSE)","v":"Staffordshire County Council"},"West Midlands"]
[null,null,null,null,null,null,null,null,null,null,null,null,null,null,132391,"Bideford College","2016-03-01","Devon County Council",{"$f":"VLOOKUP(R402,'LA CPID Look up'!$A$3:$C$153,2,FALSE)","v":"Devon County Council"},"South-West England"]
[null,null,null,null,null,null,null,null,null,null,null,null,null,null,130496,"Big Creative Academy","2014-09-01","Waltham Forest London Borough Council",{"$f":"VLOOKUP(R403,'LA CPID Look up'!$A$3:$C$153,2,FALSE)","v":"Waltham Forest London Borough Council"},"East of England and North-East London"]
[null,null,null,null,null,null,null,null,null,null,null,null,null,null,120244,"Biggin Hill Primary School - Bromley","2011-08-01","Bromley London Borough Council",{"$f":"VLOOKUP(R404,'LA CPID Look up'!$A$3:$C$153,2,FALSE)","v":"Bromley London Borough Council"},"South-East England and South London"]
[null,null,null,null,null,null,null,null,null,null,null,null,null,null,122915,"Biggin Hill Primary School - Hull","2013-04-01","Hull City Council",{"$f":"VLOOKUP(R405,'LA CPID Look up'!$A$3:$C$153,2,FALSE)","v":"Kingston upon Hull City Council"},"East Midlands and the Humber"]
[null,null,null,null,null,null,null,null,null,null,null,null,null,null,120576,"Biggleswade Academy","2012-03-01","Central Bedfordshire Council",{"$f":"VLOOKUP(R406,'LA CPID Look up'!$A$3:$C$153,2,FALSE)","v":"Central Bedfordshire Unitary Authority"},"South-Central England and North-West London"]
[null,null,null,null,null,null,null,null,null,null,null,null,null,null,121967,"Bilingual Primary School - Brighton & Hove","2012-09-01","Brighton and Hove City Council",{"$f":"VLOOKUP(R407,'LA CPID Look up'!$A$3:$C$153,2,FALSE)","v":"Brighton & Hove City Council"},"South-East England and South London"]
[null,null,null,null,null,null,null,null,null,null,null,null,null,null,119861,"Billericay School, The","2011-07-01","Essex County Council",{"$f":"VLOOKUP(R408,'LA CPID Look up'!$A$3:$C$153,2,FALSE)","v":"Essex County Council"},"East of England and North-East London"]
[null,null,null,null,null,null,null,null,null,null,null,null,null,null,122846,"Billesley Primary School","2012-11-01","Birmingham City Council",{"$f":"VLOOKUP(R409,'LA CPID Look up'!$A$3:$C$153,2,FALSE)","v":"Birmingham City Council"},"West Midlands"]
[null,null,null,null,null,null,null,null,null,null,null,null,null,null,125231,"Billing Brook Special School","2013-12-01","Northamptonshire County Council",{"$f":"VLOOKUP(R410,'LA CPID Look up'!$A$3:$C$153,2,FALSE)","v":"Northamptonshire County Council"},"East of England and North-East London"]
[null,null,null,null,null,null,null,null,null,null,null,null,null,null,131994,"Bilsthorpe Flying High Academy","2015-10-01","Nottinghamshire County Council",{"$f":"VLOOKUP(R411,'LA CPID Look up'!$A$3:$C$153,2,FALSE)","v":"Nottinghamshire County Council"},"East Midlands and the Humber"]
[null,null,null,null,null,null,null,null,null,null,null,null,null,null,120838,"Bilton School","2011-12-01","Warwickshire County Council",{"$f":"VLOOKUP(R412,'LA CPID Look up'!$A$3:$C$153,2,FALSE)","v":"Warwickshire County Council"},"West Midlands"]
[null,null,null,null,null,null,null,null,null,null,null,null,null,null,123862,"Birchills Church of England Community Academy","2013-07-01","Walsall Metropolitan Borough Council",{"$f":"VLOOKUP(R413,'LA CPID Look up'!$A$3:$C$153,2,FALSE)","v":"Walsall Metropolitan Borough Council"},"West Midlands"]
[null,null,null,null,null,null,null,null,null,null,null,null,null,null,124126,"Birchwood Community High School - Warrington","2013-07-01","Warrington Borough Council",{"$f":"VLOOKUP(R414,'LA CPID Look up'!$A$3:$C$153,2,FALSE)","v":"Warrington Borough Council"},"Lancashire and West Yorkshire"]
[null,null,null,null,null,null,null,null,null,null,null,null,null,null,120632,"Birchwood High School - Bishop's Stortford","2011-11-01","Hertfordshire County Council",{"$f":"VLOOKUP(R415,'LA CPID Look up'!$A$3:$C$153,2,FALSE)","v":"Hertfordshire County Council"},"East of England and North-East London"]
[null,null,null,null,null,null,null,null,null,null,null,null,null,null,122649,"Birchwood Primary School - Tamworth","2012-11-01","Warwickshire County Council",{"$f":"VLOOKUP(R416,'LA CPID Look up'!$A$3:$C$153,2,FALSE)","v":"Warwickshire County Council"},"West Midlands"]
[null,null,null,null,null,null,null,null,null,null,null,null,null,null,124162,"Birdwell Primary School","2013-04-01","North Somerset District Council",{"$f":"VLOOKUP(R417,'LA CPID Look up'!$A$3:$C$153,2,FALSE)","v":"North Somerset Council"},"South-West England"]
[null,null,null,null,null,null,null,null,null,null,null,null,null,null,120297,"Birkdale High School","2011-08-17","Sefton Metropolitan Borough Council",{"$f":"VLOOKUP(R418,'LA CPID Look up'!$A$3:$C$153,2,FALSE)","v":"Sefton Metropolitan Borough Council"},"Lancashire and West Yorkshire"]
[null,null,null,null,null,null,null,null,null,null,null,null,null,null,118888,"Birkenhead High School Academy","2009-09-01","Wirral Metropolitan Borough Council",{"$f":"VLOOKUP(R419,'LA CPID Look up'!$A$3:$C$153,2,FALSE)","v":"Wirral Metropolitan Borough Council"},"Lancashire and West Yorkshire"]
[null,null,null,null,null,null,null,null,null,null,null,null,null,null,119444,"Birkenhead Park School, The","2011-01-01","Wirral Metropolitan Borough Council",{"$f":"VLOOKUP(R420,'LA CPID Look up'!$A$3:$C$153,2,FALSE)","v":"Wirral Metropolitan Borough Council"},"Lancashire and West Yorkshire"]
[null,null,null,null,null,null,null,null,null,null,null,null,null,null,129418,"Birklands Primary School","2014-04-01","Nottinghamshire County Council",{"$f":"VLOOKUP(R421,'LA CPID Look up'!$A$3:$C$153,2,FALSE)","v":"Nottinghamshire County Council"},"East Midlands and the Humber"]
[null,null,null,null,null,null,null,null,null,null,null,null,null,null,119944,"Birmingham Ormiston Academy","2011-09-01","Birmingham City Council",{"$f":"VLOOKUP(R422,'LA CPID Look up'!$A$3:$C$153,2,FALSE)","v":"Birmingham City Council"},"West Midlands"]
[null,null,null,null,null,null,null,null,null,null,null,null,null,null,123240,"Birstall Primary Academy","2013-03-01","Kirklees Metropolitan Council",{"$f":"VLOOKUP(R423,'LA CPID Look up'!$A$3:$C$153,2,FALSE)","v":"Kirklees Metropolitan Council"},"Lancashire and West Yorkshire"]
[null,null,null,null,null,null,null,null,null,null,null,null,null,null,120945,"Biscovey Academy","2012-01-01","Cornwall Council",{"$f":"VLOOKUP(R424,'LA CPID Look up'!$A$3:$C$153,2,FALSE)","v":"Cornwall Unitary Authority"},"South-West England"]
[null,null,null,null,null,null,null,null,null,null,null,null,null,null,129240,"Bishop Alexander L.E.A.D. Academy","2014-02-01","Nottinghamshire County Council",{"$f":"VLOOKUP(R425,'LA CPID Look up'!$A$3:$C$153,2,FALSE)","v":"Nottinghamshire County Council"},"East Midlands and the Humber"]
[null,null,null,null,null,null,null,null,null,null,null,null,null,null,127392,"Bishop Bronescombe CofE School","2013-12-01","Cornwall Council",{"$f":"VLOOKUP(R426,'LA CPID Look up'!$A$3:$C$153,2,FALSE)","v":"Cornwall Unitary Authority"},"South-West England"]
[null,null,null,null,null,null,null,null,null,null,null,null,null,null,132402,"Bishop Carpenter Church of England Aided Primary School","2015-08-01","Oxfordshire County Council",{"$f":"VLOOKUP(R427,'LA CPID Look up'!$A$3:$C$153,2,FALSE)","v":"Oxfordshire County Council"},"East of England and North-East London"]
[null,null,null,null,null,null,null,null,null,null,null,null,null,null,119720,"Bishop Creighton Academy","2011-05-01","Peterborough City Council",{"$f":"VLOOKUP(R428,'LA CPID Look up'!$A$3:$C$153,2,FALSE)","v":"Peterborough City Council"},"East of England and North-East London"]
[null,null,null,null,null,null,null,null,null,null,null,null,null,null,132357,"Bishop David Brown School, The","2015-11-01","Surrey County Council",{"$f":"VLOOKUP(R429,'LA CPID Look up'!$A$3:$C$153,2,FALSE)","v":"Surrey County Council"},"South-East England and South London"]
[null,null,null,null,null,null,null,null,null,null,null,null,null,null,119851,"Bishop Fox's School","2011-07-01","Somerset County Council",{"$f":"VLOOKUP(R430,'LA CPID Look up'!$A$3:$C$153,2,FALSE)","v":"Somerset County Council"},"South-West England"]
[null,null,null,null,null,null,null,null,null,null,null,null,null,null,119466,"Bishop Justus CofE School","2011-03-01","Bromley London Borough Council",{"$f":"VLOOKUP(R431,'LA CPID Look up'!$A$3:$C$153,2,FALSE)","v":"Bromley London Borough Council"},"South-East England and South London"]
[null,null,null,null,null,null,null,null,null,null,null,null,null,null,130605,"Bishop Lonsdale Church of England Primary School and Nursery","2014-06-01","Derby City Council",{"$f":"VLOOKUP(R432,'LA CPID Look up'!$A$3:$C$153,2,FALSE)","v":"Derby City Council"},"East Midlands and the Humber"]
[null,null,null,null,null,null,null,null,null,null,null,null,null,null,127604,"Bishop Luffa Church of England School, Chichester","2013-12-01","West Sussex County Council",{"$f":"VLOOKUP(R433,'LA CPID Look up'!$A$3:$C$153,2,FALSE)","v":"West Sussex County Council"},"South-East England and South London"]
[null,null,null,null,null,null,null,null,null,null,null,null,null,null,124380,"Bishop Milner Catholic College","2013-09-01","Dudley Metropolitan Borough Council",{"$f":"VLOOKUP(R434,'LA CPID Look up'!$A$3:$C$153,2,FALSE)","v":"Dudley Metropolitan Borough Council"},"West Midlands"]
[null,null,null,null,null,null,null,null,null,null,null,null,null,null,119200,"Bishop of Winchester Academy, The","2010-09-01","Bournemouth Borough Council",{"$f":"VLOOKUP(R435,'LA CPID Look up'!$A$3:$C$153,2,FALSE)","v":"Bournemouth Council"},"South-West England"]
[null,null,null,null,null,null,null,null,null,null,null,null,null,null,121136,"Bishop Perowne CofE College","2012-05-01","Worcestershire County Council",{"$f":"VLOOKUP(R436,'LA CPID Look up'!$A$3:$C$153,2,FALSE)","v":"Worcestershire County Council"},"West Midlands"]
[null,null,null,null,null,null,null,null,null,null,null,null,null,null,120457,"Bishop Ramsey Church of England School","2011-09-01","Hillingdon London Borough Council",{"$f":"VLOOKUP(R437,'LA CPID Look up'!$A$3:$C$153,2,FALSE)","v":"Hillingdon London Borough Council"},"East of England and North-East London"]
[null,null,null,null,null,null,null,null,null,null,null,null,null,null,120296,"Bishop Rawstorne Church of England Academy","2011-08-17","Lancashire County Council",{"$f":"VLOOKUP(R438,'LA CPID Look up'!$A$3:$C$153,2,FALSE)","v":"Lancashire County Council"},"Lancashire and West Yorkshire"]
[null,null,null,null,null,null,null,null,null,null,null,null,null,null,120086,"Bishop Stopford School","2011-08-01","Northamptonshire County Council",{"$f":"VLOOKUP(R439,'LA CPID Look up'!$A$3:$C$153,2,FALSE)","v":"Northamptonshire County Council"},"East of England and North-East London"]
[null,null,null,null,null,null,null,null,null,null,null,null,null,null,120745,"Bishop Vesey's Grammar School","2012-04-01","Birmingham City Council",{"$f":"VLOOKUP(R440,'LA CPID Look up'!$A$3:$C$153,2,FALSE)","v":"Birmingham City Council"},"West Midlands"]
[null,null,null,null,null,null,null,null,null,null,null,null,null,null,123911,"Bishop Walsh Catholic School","2014-01-01","Birmingham City Council",{"$f":"VLOOKUP(R441,'LA CPID Look up'!$A$3:$C$153,2,FALSE)","v":"Birmingham City Council"},"West Midlands"]
[null,null,null,null,null,null,null,null,null,null,null,null,null,null,122089,"Bishop Wand Church of England School, The","2012-08-01","Surrey County Council",{"$f":"VLOOKUP(R442,'LA CPID Look up'!$A$3:$C$153,2,FALSE)","v":"Surrey County Council"},"South-East England and South London"]
[null,null,null,null,null,null,null,null,null,null,null,null,null,null,119500,"Bishop Wordsworth's Grammar School","2011-03-01","Wiltshire Council",{"$f":"VLOOKUP(R443,'LA CPID Look up'!$A$3:$C$153,2,FALSE)","v":"Wiltshire Unitary Authority"},"South-West England"]
[null,null,null,null,null,null,null,null,null,null,null,null,null,null,119587,"Bishops' Blue Coat Church of England High School, The","2011-04-01","Cheshire West and Chester Council",{"$f":"VLOOKUP(R444,'LA CPID Look up'!$A$3:$C$153,2,FALSE)","v":"Cheshire West and Chester Unitary Authority"},"West Midlands"]
[null,null,null,null,null,null,null,null,null,null,null,null,null,null,120271,"Bishops Cleeve Primary School","2011-08-01","Gloucestershire County Council",{"$f":"VLOOKUP(R445,'LA CPID Look up'!$A$3:$C$153,2,FALSE)","v":"Gloucestershire County Council"},"South-West England"]
[null,null,null,null,null,null,null,null,null,null,null,null,null,null,120821,"Bishop's Hatfield Girls' School","2012-01-01","Hertfordshire County Council",{"$f":"VLOOKUP(R446,'LA CPID Look up'!$A$3:$C$153,2,FALSE)","v":"Hertfordshire County Council"},"East of England and North-East London"]
[null,null,null,null,null,null,null,null,null,null,null,null,null,null,133234,"Bishops Lydeard Church of England Voluntary Controlled Primary School","2015-12-01","Somerset County Council",{"$f":"VLOOKUP(R447,'LA CPID Look up'!$A$3:$C$153,2,FALSE)","v":"Somerset County Council"},"South-West England"]
[null,null,null,null,null,null,null,null,null,null,null,null,null,null,120519,"Bishopshalt School","2011-11-01","Hillingdon London Borough Council",{"$f":"VLOOKUP(R448,'LA CPID Look up'!$A$3:$C$153,2,FALSE)","v":"Hillingdon London Borough Council"},"East of England and North-East London"]
[null,null,null,null,null,null,null,null,null,null,null,null,null,null,120021,"Bishopton Redmarshall CofE Primary School","2011-08-01","Darlington Borough Council",{"$f":"VLOOKUP(R449,'LA CPID Look up'!$A$3:$C$153,2,FALSE)","v":"Darlington Borough Council"},"North of England"]
[null,null,null,null,null,null,null,null,null,null,null,null,null,null,132193,"Bitterley CofE Primary School (Aided)","2015-07-01","Shropshire Council",{"$f":"VLOOKUP(R450,'LA CPID Look up'!$A$3:$C$153,2,FALSE)","v":"Shropshire Unitary Authority"},"West Midlands"]
[null,null,null,null,null,null,null,null,null,null,null,null,null,null,119933,"Black Country UTC","2011-09-01","Walsall Metropolitan Borough Council",{"$f":"VLOOKUP(R451,'LA CPID Look up'!$A$3:$C$153,2,FALSE)","v":"Walsall Metropolitan Borough Council"},"West Midlands"]
[null,null,null,null,null,null,null,null,null,null,null,null,null,null,130776,"Black Firs Primary School","2014-06-01","Cheshire East Council",{"$f":"VLOOKUP(R452,'LA CPID Look up'!$A$3:$C$153,2,FALSE)","v":"Cheshire East Unitary Authority"},"West Midlands"]
[null,null,null,null,null,null,null,null,null,null,null,null,null,null,124784,"Blackawton Primary School","2014-09-01","Devon County Council",{"$f":"VLOOKUP(R453,'LA CPID Look up'!$A$3:$C$153,2,FALSE)","v":"Devon County Council"},"South-West England"]
[null,null,null,null,null,null,null,null,null,null,null,null,null,null,121186,"Blackfen School for Girls","2012-04-01","Bexley London Borough Council",{"$f":"VLOOKUP(R454,'LA CPID Look up'!$A$3:$C$153,2,FALSE)","v":"Bexley London Borough Council"},"South-East England and South London"]
[null,null,null,null,null,null,null,null,null,null,null,null,null,null,131145,"Blackfield Primary School","2014-10-01","Hampshire County Council",{"$f":"VLOOKUP(R455,'LA CPID Look up'!$A$3:$C$153,2,FALSE)","v":"Hampshire County Council"},"South-East England and South London"]
[null,null,null,null,null,null,null,null,null,null,null,null,null,null,130726,"Blackfriars School","2014-10-01","Staffordshire County Council",{"$f":"VLOOKUP(R456,'LA CPID Look up'!$A$3:$C$153,2,FALSE)","v":"Staffordshire County Council"},"West Midlands"]
[null,null,null,null,null,null,null,null,null,null,null,null,null,null,127877,"Blackpool Aspire Academy","2014-09-01","Blackpool Council",{"$f":"VLOOKUP(R457,'LA CPID Look up'!$A$3:$C$153,2,FALSE)","v":"Blackpool Unitary Authority"},"Lancashire and West Yorkshire"]
[null,null,null,null,null,null,null,null,null,null,null,null,null,null,131219,"Blackpool Baines Endowed Church of England Voluntary Aided Primary School","2015-03-01","Blackpool Council",{"$f":"VLOOKUP(R458,'LA CPID Look up'!$A$3:$C$153,2,FALSE)","v":"Blackpool Unitary Authority"},"Lancashire and West Yorkshire"]
[null,null,null,null,null,null,null,null,null,null,null,null,null,null,120479,"Blackpool Church of England Primary School","2011-11-01","Devon County Council",{"$f":"VLOOKUP(R459,'LA CPID Look up'!$A$3:$C$153,2,FALSE)","v":"Devon County Council"},"South-West England"]
[null,null,null,null,null,null,null,null,null,null,null,null,null,null,133008,"Blackpool Gateway Academy","2015-09-01","Blackpool Council",{"$f":"VLOOKUP(R460,'LA CPID Look up'!$A$3:$C$153,2,FALSE)","v":"Blackpool Unitary Authority"},"Lancashire and West Yorkshire"]
[null,null,null,null,null,null,null,null,null,null,null,null,null,null,122845,"Blackthorn Primary School","2012-12-01","Northamptonshire County Council",{"$f":"VLOOKUP(R461,'LA CPID Look up'!$A$3:$C$153,2,FALSE)","v":"Northamptonshire County Council"},"East of England and North-East London"]
[null,null,null,null,null,null,null,null,null,null,null,null,null,null,132059,"Blackthorns Community Primary Academy","2015-04-01","West Sussex County Council",{"$f":"VLOOKUP(R462,'LA CPID Look up'!$A$3:$C$153,2,FALSE)","v":"West Sussex County Council"},"South-East England and South London"]
[null,null,null,null,null,null,null,null,null,null,null,null,null,null,132063,"Blackwater Community Primary School","2015-09-01","Cornwall Council",{"$f":"VLOOKUP(R463,'LA CPID Look up'!$A$3:$C$153,2,FALSE)","v":"Cornwall Unitary Authority"},"South-West England"]
[null,null,null,null,null,null,null,null,null,null,null,null,null,null,131403,"Blake Church of England Primary School, The","2015-03-01","Oxfordshire County Council",{"$f":"VLOOKUP(R464,'LA CPID Look up'!$A$3:$C$153,2,FALSE)","v":"Oxfordshire County Council"},"East of England and North-East London"]
[null,null,null,null,null,null,null,null,null,null,null,null,null,null,130704,"Blandford St Mary Church of England Primary School","2014-07-01","Dorset County Council",{"$f":"VLOOKUP(R465,'LA CPID Look up'!$A$3:$C$153,2,FALSE)","v":"Dorset County Council"},"South-West England"]
[null,null,null,null,null,null,null,null,null,null,null,null,null,null,120717,"Blenheim High School","2012-03-01","Surrey County Council",{"$f":"VLOOKUP(R466,'LA CPID Look up'!$A$3:$C$153,2,FALSE)","v":"Surrey County Council"},"South-East England and South London"]
[null,null,null,null,null,null,null,null,null,null,null,null,null,null,130699,"Blessed George Napier Catholic School and Sports College","2014-08-01","Oxfordshire County Council",{"$f":"VLOOKUP(R467,'LA CPID Look up'!$A$3:$C$153,2,FALSE)","v":"Oxfordshire County Council"},"East of England and North-East London"]
[null,null,null,null,null,null,null,null,null,null,null,null,null,null,132919,"Blessed Mother Teresa's Catholic Primary School","2016-03-01","Staffordshire County Council",{"$f":"VLOOKUP(R468,'LA CPID Look up'!$A$3:$C$153,2,FALSE)","v":"Staffordshire County Council"},"West Midlands"]
[null,null,null,null,null,null,null,null,null,null,null,null,null,null,120042,"Blessed Robert Widmerpool Catholic Primary and Nursery School","2011-09-01","Nottingham City Council",{"$f":"VLOOKUP(R469,'LA CPID Look up'!$A$3:$C$153,2,FALSE)","v":"Nottingham City Council"},"East Midlands and the Humber"]
[null,null,null,null,null,null,null,null,null,null,null,null,null,null,132907,"Blessed William Howard Catholic School","2016-03-01","Staffordshire County Council",{"$f":"VLOOKUP(R470,'LA CPID Look up'!$A$3:$C$153,2,FALSE)","v":"Staffordshire County Council"},"West Midlands"]
[null,null,null,null,null,null,null,null,null,null,null,null,null,null,120799,"Blockley Church of England Primary School","2013-04-01","Gloucestershire County Council",{"$f":"VLOOKUP(R471,'LA CPID Look up'!$A$3:$C$153,2,FALSE)","v":"Gloucestershire County Council"},"South-West England"]
[null,null,null,null,null,null,null,null,null,null,null,null,null,null,120274,"Bloxwich Academy","2012-01-01","Walsall Metropolitan Borough Council",{"$f":"VLOOKUP(R472,'LA CPID Look up'!$A$3:$C$153,2,FALSE)","v":"Walsall Metropolitan Borough Council"},"West Midlands"]
[null,null,null,null,null,null,null,null,null,null,null,null,null,null,124253,"Blue Bell Hill Primary and Nursery School","2013-10-01","Nottingham City Council",{"$f":"VLOOKUP(R473,'LA CPID Look up'!$A$3:$C$153,2,FALSE)","v":"Nottingham City Council"},"East Midlands and the Humber"]
[null,null,null,null,null,null,null,null,null,null,null,null,null,null,122313,"Blue Coat Church of England Academy, Walsall","2012-09-01","Walsall Metropolitan Borough Council",{"$f":"VLOOKUP(R474,'LA CPID Look up'!$A$3:$C$153,2,FALSE)","v":"Walsall Metropolitan Borough Council"},"West Midlands"]
[null,null,null,null,null,null,null,null,null,null,null,null,null,null,120275,"Blue Coat Church of England School and Music College","2011-07-12","Coventry City Council",{"$f":"VLOOKUP(R475,'LA CPID Look up'!$A$3:$C$153,2,FALSE)","v":"Coventry City Council"},"West Midlands"]
[null,null,null,null,null,null,null,null,null,null,null,null,null,null,120133,"Blue Coat CofE School, The - Oldham","2011-08-01","Oldham Metropolitan Borough Council",{"$f":"VLOOKUP(R476,'LA CPID Look up'!$A$3:$C$153,2,FALSE)","v":"Oldham Metropolitan Borough Council"},"Lancashire and West Yorkshire"]
[null,null,null,null,null,null,null,null,null,null,null,null,null,null,120903,"Blue Coat School, The - Liverpool","2012-03-01","Liverpool City Council",{"$f":"VLOOKUP(R477,'LA CPID Look up'!$A$3:$C$153,2,FALSE)","v":"Liverpool City Council"},"Lancashire and West Yorkshire"]
[null,null,null,null,null,null,null,null,null,null,null,null,null,null,120285,"Blue School, The - Wells","2011-08-17","Somerset County Council",{"$f":"VLOOKUP(R478,'LA CPID Look up'!$A$3:$C$153,2,FALSE)","v":"Somerset County Council"},"South-West England"]
[null,null,null,null,null,null,null,null,null,null,null,null,null,null,120792,"Bluecoat Academy - Nottingham","2012-01-01","Nottingham City Council",{"$f":"VLOOKUP(R479,'LA CPID Look up'!$A$3:$C$153,2,FALSE)","v":"Nottingham City Council"},"East Midlands and the Humber"]
[null,null,null,null,null,null,null,null,null,null,null,null,null,null,128027,"Bluecoat Beechdale Academy, The","2014-04-01","Nottingham City Council",{"$f":"VLOOKUP(R480,'LA CPID Look up'!$A$3:$C$153,2,FALSE)","v":"Nottingham City Council"},"East Midlands and the Humber"]
[null,null,null,null,null,null,null,null,null,null,null,null,null,null,113218,"Blyth Academy, The","2013-10-01","Northumberland County Council",{"$f":"VLOOKUP(R481,'LA CPID Look up'!$A$3:$C$153,2,FALSE)","v":"Northumberland Unitary Authority"},"North of England"]
[null,null,null,null,null,null,null,null,null,null,null,null,null,null,127643,"Bobbing Village School","2014-06-01","Kent County Council",{"$f":"VLOOKUP(R482,'LA CPID Look up'!$A$3:$C$153,2,FALSE)","v":"Kent County Council"},"South-East England and South London"]
[null,null,null,null,null,null,null,null,null,null,null,null,null,null,124087,"Boddington Church of England Voluntary School","2013-09-01","Northamptonshire County Council",{"$f":"VLOOKUP(R483,'LA CPID Look up'!$A$3:$C$153,2,FALSE)","v":"Northamptonshire County Council"},"East of England and North-East London"]
[null,null,null,null,null,null,null,null,null,null,null,null,null,null,119408,"Bodmin College","2011-01-01","Cornwall Council",{"$f":"VLOOKUP(R484,'LA CPID Look up'!$A$3:$C$153,2,FALSE)","v":"Cornwall Unitary Authority"},"South-West England"]
[null,null,null,null,null,null,null,null,null,null,null,null,null,null,119584,"Bodriggy Academy","2011-04-01","Cornwall Council",{"$f":"VLOOKUP(R485,'LA CPID Look up'!$A$3:$C$153,2,FALSE)","v":"Cornwall Unitary Authority"},"South-West England"]
[null,null,null,null,null,null,null,null,null,null,null,null,null,null,119646,"Bohunt School","2011-04-01","Hampshire County Council",{"$f":"VLOOKUP(R486,'LA CPID Look up'!$A$3:$C$153,2,FALSE)","v":"Hampshire County Council"},"South-East England and South London"]
[null,null,null,null,null,null,null,null,null,null,null,null,null,null,131993,"Bohunt School Worthing","2015-09-01","West Sussex County Council",{"$f":"VLOOKUP(R487,'LA CPID Look up'!$A$3:$C$153,2,FALSE)","v":"West Sussex County Council"},"South-East England and South London"]
[null,null,null,null,null,null,null,null,null,null,null,null,null,null,122013,"Bolingbroke Academy","2012-09-01","Wandsworth London Borough Council",{"$f":"VLOOKUP(R488,'LA CPID Look up'!$A$3:$C$153,2,FALSE)","v":"Wandsworth London Borough Council"},"South-East England and South London"]
[null,null,null,null,null,null,null,null,null,null,null,null,null,null,120597,"Bolsover School, The","2012-10-01","Derbyshire County Council",{"$f":"VLOOKUP(R489,'LA CPID Look up'!$A$3:$C$153,2,FALSE)","v":"Derbyshire County Council"},"East Midlands and the Humber"]
[null,null,null,null,null,null,null,null,null,null,null,null,null,null,120434,"Bolton Brow Primary Academy","2011-09-01","Calderdale Metropolitan Borough Council",{"$f":"VLOOKUP(R490,'LA CPID Look up'!$A$3:$C$153,2,FALSE)","v":"Calderdale Metropolitan Borough Council"},"Lancashire and West Yorkshire"]
[null,null,null,null,null,null,null,null,null,null,null,null,null,null,119135,"Bolton St Catherine's Academy","2009-09-01","Bolton Metropolitan Borough Council",{"$f":"VLOOKUP(R491,'LA CPID Look up'!$A$3:$C$153,2,FALSE)","v":"Bolton Metropolitan Borough Council"},"Lancashire and West Yorkshire"]
[null,null,null,null,null,null,null,null,null,null,null,null,null,null,130559,"Bolton Wanderers Free School","2014-09-01","Bolton Metropolitan Borough Council",{"$f":"VLOOKUP(R492,'LA CPID Look up'!$A$3:$C$153,2,FALSE)","v":"Bolton Metropolitan Borough Council"},"Lancashire and West Yorkshire"]
[null,null,null,null,null,null,null,null,null,null,null,null,null,null,124702,"Boothroyd Primary Academy","2013-10-01","Kirklees Metropolitan Council",{"$f":"VLOOKUP(R493,'LA CPID Look up'!$A$3:$C$153,2,FALSE)","v":"Kirklees Metropolitan Council"},"Lancashire and West Yorkshire"]
[null,null,null,null,null,null,null,null,null,null,null,null,null,null,120721,"Borden Grammar School","2012-01-01","Kent County Council",{"$f":"VLOOKUP(R494,'LA CPID Look up'!$A$3:$C$153,2,FALSE)","v":"Kent County Council"},"South-East England and South London"]
[null,null,null,null,null,null,null,null,null,null,null,null,null,null,123054,"Boston Grammar School, The","2013-01-01","Lincolnshire County Council",{"$f":"VLOOKUP(R495,'LA CPID Look up'!$A$3:$C$153,2,FALSE)","v":"Lincolnshire County Council"},"East Midlands and the Humber"]
[null,null,null,null,null,null,null,null,null,null,null,null,null,null,122993,"Boston High School","2013-01-01","Lincolnshire County Council",{"$f":"VLOOKUP(R496,'LA CPID Look up'!$A$3:$C$153,2,FALSE)","v":"Lincolnshire County Council"},"East Midlands and the Humber"]
[null,null,null,null,null,null,null,null,null,null,null,null,null,null,123293,"Boston Pioneers Free School Academy","2013-09-01","Lincolnshire County Council",{"$f":"VLOOKUP(R497,'LA CPID Look up'!$A$3:$C$153,2,FALSE)","v":"Lincolnshire County Council"},"East Midlands and the Humber"]
[null,null,null,null,null,null,null,null,null,null,null,null,null,null,122016,"Boston West Primary School","2012-07-01","Lincolnshire County Council",{"$f":"VLOOKUP(R498,'LA CPID Look up'!$A$3:$C$153,2,FALSE)","v":"Lincolnshire County Council"},"East Midlands and the Humber"]
[null,null,null,null,null,null,null,null,null,null,null,null,null,null,120999,"Boswells School, The","2012-02-01","Essex County Council",{"$f":"VLOOKUP(R499,'LA CPID Look up'!$A$3:$C$153,2,FALSE)","v":"Essex County Council"},"East of England and North-East London"]
[null,null,null,null,null,null,null,null,null,null,null,null,null,null,121188,"Bosworth Academy","2012-04-01","Leicestershire County Council",{"$f":"VLOOKUP(R500,'LA CPID Look up'!$A$3:$C$153,2,FALSE)","v":"Leicestershire County Council"},"East Midlands and the Humber"]
[null,null,null,null,null,null,null,null,null,null,null,null,null,null,122714,"Bottesford Church of England Primary School","2012-11-01","Leicestershire County Council",{"$f":"VLOOKUP(R501,'LA CPID Look up'!$A$3:$C$153,2,FALSE)","v":"Leicestershire County Council"},"East Midlands and the Humber"]
[null,null,null,null,null,null,null,null,null,null,null,null,null,null,119687,"Bottisham Village College","2011-04-01","Cambridgeshire County Council",{"$f":"VLOOKUP(R502,'LA CPID Look up'!$A$3:$C$153,2,FALSE)","v":"Cambridgeshire County Council"},"East of England and North-East London"]
[null,null,null,null,null,null,null,null,null,null,null,null,null,null,131457,"Boughton Heath Primary School","2015-01-01","Cheshire West and Chester Council",{"$f":"VLOOKUP(R503,'LA CPID Look up'!$A$3:$C$153,2,FALSE)","v":"Cheshire West and Chester Unitary Authority"},"West Midlands"]
[null,null,null,null,null,null,null,null,null,null,null,null,null,null,121833,"Boughton Primary School","2012-09-01","Northamptonshire County Council",{"$f":"VLOOKUP(R504,'LA CPID Look up'!$A$3:$C$153,2,FALSE)","v":"Northamptonshire County Council"},"East of England and North-East London"]
[null,null,null,null,null,null,null,null,null,null,null,null,null,null,122527,"Boulevard Academy, The","2013-09-01","Hull City Council",{"$f":"VLOOKUP(R505,'LA CPID Look up'!$A$3:$C$153,2,FALSE)","v":"Kingston upon Hull City Council"},"East Midlands and the Humber"]
[null,null,null,null,null,null,null,null,null,null,null,null,null,null,120572,"Bourn CofE Primary Academy","2011-11-01","Cambridgeshire County Council",{"$f":"VLOOKUP(R506,'LA CPID Look up'!$A$3:$C$153,2,FALSE)","v":"Cambridgeshire County Council"},"East of England and North-East London"]
[null,null,null,null,null,null,null,null,null,null,null,null,null,null,119379,"Bourne Abbey Church of England Primary Academy","2010-12-01","Lincolnshire County Council",{"$f":"VLOOKUP(R507,'LA CPID Look up'!$A$3:$C$153,2,FALSE)","v":"Lincolnshire County Council"},"East Midlands and the Humber"]
[null,null,null,null,null,null,null,null,null,null,null,null,null,null,120400,"Bourne Academy - Bourne","2011-09-01","Lincolnshire County Council",{"$f":"VLOOKUP(R508,'LA CPID Look up'!$A$3:$C$153,2,FALSE)","v":"Lincolnshire County Council"},"East Midlands and the Humber"]
[null,null,null,null,null,null,null,null,null,null,null,null,null,null,119201,"Bourne Academy, The - Bournemouth","2010-09-01","Bournemouth Borough Council",{"$f":"VLOOKUP(R509,'LA CPID Look up'!$A$3:$C$153,2,FALSE)","v":"Bournemouth Council"},"South-West England"]
[null,null,null,null,null,null,null,null,null,null,null,null,null,null,129247,"Bourne Elsea Park Church of England Primary Academy","2014-09-01","Lincolnshire County Council",{"$f":"VLOOKUP(R510,'LA CPID Look up'!$A$3:$C$153,2,FALSE)","v":"Lincolnshire County Council"},"East Midlands and the Humber"]
[null,null,null,null,null,null,null,null,null,null,null,null,null,null,126461,"Bourne End Academy","2014-09-01","Buckinghamshire County Council",{"$f":"VLOOKUP(R511,'LA CPID Look up'!$A$3:$C$153,2,FALSE)","v":"Buckinghamshire County Council"},"South-Central England and North-West London"]
[null,null,null,null,null,null,null,null,null,null,null,null,null,null,120801,"Bourne Grammar School - Bourne","2012-01-01","Lincolnshire County Council",{"$f":"VLOOKUP(R512,'LA CPID Look up'!$A$3:$C$153,2,FALSE)","v":"Lincolnshire County Council"},"East Midlands and the Humber"]
[null,null,null,null,null,null,null,null,null,null,null,null,null,null,120639,"Bourne Westfield Primary Academy","2011-11-01","Lincolnshire County Council",{"$f":"VLOOKUP(R513,'LA CPID Look up'!$A$3:$C$153,2,FALSE)","v":"Lincolnshire County Council"},"East Midlands and the Humber"]
[null,null,null,null,null,null,null,null,null,null,null,null,null,null,120387,"Bournemouth School","2011-09-01","Bournemouth Borough Council",{"$f":"VLOOKUP(R514,'LA CPID Look up'!$A$3:$C$153,2,FALSE)","v":"Bournemouth Council"},"South-West England"]
[null,null,null,null,null,null,null,null,null,null,null,null,null,null,119996,"Bournemouth School for Girls","2011-08-01","Bournemouth Borough Council",{"$f":"VLOOKUP(R515,'LA CPID Look up'!$A$3:$C$153,2,FALSE)","v":"Bournemouth Council"},"South-West England"]
[null,null,null,null,null,null,null,null,null,null,null,null,null,null,120748,"Bournville School and Sixth Form Centre","2014-11-01","Birmingham City council",{"$f":"VLOOKUP(R516,'LA CPID Look up'!$A$3:$C$153,2,FALSE)","v":"Birmingham City Council"},"West Midlands"]
[null,null,null,null,null,null,null,null,null,null,null,null,null,null,120734,"Bourton Meadow Academy","2012-03-01","Buckinghamshire County Council",{"$f":"VLOOKUP(R517,'LA CPID Look up'!$A$3:$C$153,2,FALSE)","v":"Buckinghamshire County Council"},"South-Central England and North-West London"]
[null,null,null,null,null,null,null,null,null,null,null,null,null,null,120736,"Bourton-on-the-Water Primary School","2013-02-01","Gloucestershire County Council",{"$f":"VLOOKUP(R518,'LA CPID Look up'!$A$3:$C$153,2,FALSE)","v":"Gloucestershire County Council"},"South-West England"]
[null,null,null,null,null,null,null,null,null,null,null,null,null,null,119825,"Bovingdon Primary Academy","2011-07-01","Hertfordshire County Council",{"$f":"VLOOKUP(R519,'LA CPID Look up'!$A$3:$C$153,2,FALSE)","v":"Hertfordshire County Council"},"East of England and North-East London"]
[null,null,null,null,null,null,null,null,null,null,null,null,null,null,123072,"Bower Park Academy","2013-02-01","Havering London Borough Council",{"$f":"VLOOKUP(R520,'LA CPID Look up'!$A$3:$C$153,2,FALSE)","v":"Havering London Borough Council"},"East of England and North-East London"]
[null,null,null,null,null,null,null,null,null,null,null,null,null,null,131423,"Bowerhill Primary School","2015-04-01","Wiltshire Council",{"$f":"VLOOKUP(R521,'LA CPID Look up'!$A$3:$C$153,2,FALSE)","v":"Wiltshire Unitary Authority"},"South-West England"]
[null,null,null,null,null,null,null,null,null,null,null,null,null,null,119997,"Bowland High","2011-08-01","Lancashire County Council",{"$f":"VLOOKUP(R522,'LA CPID Look up'!$A$3:$C$153,2,FALSE)","v":"Lancashire County Council"},"Lancashire and West Yorkshire"]
[null,null,null,null,null,null,null,null,null,null,null,null,null,null,132384,"Bowness Primary School","2015-12-01","Bolton Metropolitan Borough Council",{"$f":"VLOOKUP(R523,'LA CPID Look up'!$A$3:$C$153,2,FALSE)","v":"Bolton Metropolitan Borough Council"},"Lancashire and West Yorkshire"]
[null,null,null,null,null,null,null,null,null,null,null,null,null,null,124514,"Boxgrove Primary School","2013-09-01","Surrey County Council",{"$f":"VLOOKUP(R524,'LA CPID Look up'!$A$3:$C$153,2,FALSE)","v":"Surrey County Council"},"South-East England and South London"]
[null,null,null,null,null,null,null,null,null,null,null,null,null,null,129560,"Boyton Community Primary School","2014-02-01","Cornwall Council",{"$f":"VLOOKUP(R525,'LA CPID Look up'!$A$3:$C$153,2,FALSE)","v":"Cornwall Unitary Authority"},"South-West England"]
[null,null,null,null,null,null,null,null,null,null,null,null,null,null,123122,"Bracebridge Infant and Nursery School","2013-01-01","Lincolnshire County Council",{"$f":"VLOOKUP(R526,'LA CPID Look up'!$A$3:$C$153,2,FALSE)","v":"Lincolnshire County Council"},"East Midlands and the Humber"]
[null,null,null,null,null,null,null,null,null,null,null,null,null,null,124513,"Braddock CofE Primary School","2013-12-01","Cornwall Council",{"$f":"VLOOKUP(R527,'LA CPID Look up'!$A$3:$C$153,2,FALSE)","v":"Cornwall Unitary Authority"},"South-West England"]
[null,null,null,null,null,null,null,null,null,null,null,null,null,null,120972,"Bradfield School - Sheffield","2012-12-01","Sheffield City Council",{"$f":"VLOOKUP(R528,'LA CPID Look up'!$A$3:$C$153,2,FALSE)","v":"Sheffield City Council"},"East Midlands and the Humber"]
[null,null,null,null,null,null,null,null,null,null,null,null,null,null,128020,"Bradfields Academy - Chatham","2014-04-01","Medway Council",{"$f":"VLOOKUP(R529,'LA CPID Look up'!$A$3:$C$153,2,FALSE)","v":"Medway Towns Unitary Authority (The)"},"South-East England and South London"]
[null,null,null,null,null,null,null,null,null,null,null,null,null,null,118603,"Bradford Academy","2007-09-01","Bradford Metropolitan District Council",{"$f":"VLOOKUP(R530,'LA CPID Look up'!$A$3:$C$153,2,FALSE)","v":"Bradford City Council"},"Lancashire and West Yorkshire"]
[null,null,null,null,null,null,null,null,null,null,null,null,null,null,131873,"Bradford Forster Academy","2015-09-01","Bradford Metropolitan District Council",{"$f":"VLOOKUP(R531,'LA CPID Look up'!$A$3:$C$153,2,FALSE)","v":"Bradford City Council"},"Lancashire and West Yorkshire"]
[null,null,null,null,null,null,null,null,null,null,null,null,null,null,123294,"Bradford Girls' Grammar School","2013-09-01","Bradford Metropolitan District Council",{"$f":"VLOOKUP(R532,'LA CPID Look up'!$A$3:$C$153,2,FALSE)","v":"Bradford City Council"},"Lancashire and West Yorkshire"]
[null,null,null,null,null,null,null,null,null,null,null,null,null,null,122530,"Bradford Studio School","2012-09-01","Bradford Metropolitan District Council",{"$f":"VLOOKUP(R533,'LA CPID Look up'!$A$3:$C$153,2,FALSE)","v":"Bradford City Council"},"Lancashire and West Yorkshire"]
[null,null,null,null,null,null,null,null,null,null,null,null,null,null,120766,"Bradley Stoke Community School","2012-01-01","South Gloucestershire Council",{"$f":"VLOOKUP(R534,'LA CPID Look up'!$A$3:$C$153,2,FALSE)","v":"South Gloucestershire Council"},"South-West England"]
[null,null,null,null,null,null,null,null,null,null,null,null,null,null,132018,"Bradon Forest School","2015-09-01","Wiltshire Council",{"$f":"VLOOKUP(R535,'LA CPID Look up'!$A$3:$C$153,2,FALSE)","v":"Wiltshire Unitary Authority"},"South-West England"]
[null,null,null,null,null,null,null,null,null,null,null,null,null,null,121004,"Bradshaw Primary School","2012-04-01","Calderdale Metropolitan Borough Council",{"$f":"VLOOKUP(R536,'LA CPID Look up'!$A$3:$C$153,2,FALSE)","v":"Calderdale Metropolitan Borough Council"},"Lancashire and West Yorkshire"]
[null,null,null,null,null,null,null,null,null,null,null,null,null,null,132097,"Bradwell County Primary School","2015-08-01","Staffordshire County Council",{"$f":"VLOOKUP(R537,'LA CPID Look up'!$A$3:$C$153,2,FALSE)","v":"Staffordshire County Council"},"West Midlands"]
[null,null,null,null,null,null,null,null,null,null,null,null,null,null,119492,"Bradworthy Primary Academy","2011-03-01","Devon County Council",{"$f":"VLOOKUP(R538,'LA CPID Look up'!$A$3:$C$153,2,FALSE)","v":"Devon County Council"},"South-West England"]
[null,null,null,null,null,null,null,null,null,null,null,null,null,null,129595,"Braiswick Primary School","2015-09-01","Essex County Council",{"$f":"VLOOKUP(R539,'LA CPID Look up'!$A$3:$C$153,2,FALSE)","v":"Essex County Council"},"East of England and North-East London"]
[null,null,null,null,null,null,null,null,null,null,null,null,null,null,131602,"Braithwaite CofE Primary School","2015-09-01","Cumbria County Council",{"$f":"VLOOKUP(R540,'LA CPID Look up'!$A$3:$C$153,2,FALSE)","v":"Cumbria County Council"},"North of England"]
[null,null,null,null,null,null,null,null,null,null,null,null,null,null,131418,"Bramble Academy, The","2015-01-01","Nottinghamshire County Council",{"$f":"VLOOKUP(R541,'LA CPID Look up'!$A$3:$C$153,2,FALSE)","v":"Nottinghamshire County Council"},"East Midlands and the Humber"]
[null,null,null,null,null,null,null,null,null,null,null,null,null,null,122242,"Brambles Primary Academy","2012-09-01","Middlesbrough Council",{"$f":"VLOOKUP(R542,'LA CPID Look up'!$A$3:$C$153,2,FALSE)","v":"Middlesbrough Council"},"North of England"]
[null,null,null,null,null,null,null,null,null,null,null,null,null,null,130722,"Brambleside Primary School","2015-04-01","Northamptonshire County Council",{"$f":"VLOOKUP(R543,'LA CPID Look up'!$A$3:$C$153,2,FALSE)","v":"Northamptonshire County Council"},"East of England and North-East London"]
[null,null,null,null,null,null,null,null,null,null,null,null,null,null,122719,"Bramcote School, The","2012-10-01","Nottinghamshire County Council",{"$f":"VLOOKUP(R544,'LA CPID Look up'!$A$3:$C$153,2,FALSE)","v":"Nottinghamshire County Council"},"East Midlands and the Humber"]
[null,null,null,null,null,null,null,null,null,null,null,null,null,null,123893,"Bramford Primary School","2013-06-01","Dudley Metropolitan Borough Council",{"$f":"VLOOKUP(R545,'LA CPID Look up'!$A$3:$C$153,2,FALSE)","v":"Dudley Metropolitan Borough Council"},"West Midlands"]
[null,null,null,null,null,null,null,null,null,null,null,null,null,null,130838,"Bramley Grange Primary School","2014-10-01","Rotherham Metropolitan Borough Council",{"$f":"VLOOKUP(R546,'LA CPID Look up'!$A$3:$C$153,2,FALSE)","v":"Rotherham Borough Council"},"East Midlands and the Humber"]
[null,null,null,null,null,null,null,null,null,null,null,null,null,null,119684,"Brampton Manor Academy","2011-04-01","Newham London Borough Council",{"$f":"VLOOKUP(R547,'LA CPID Look up'!$A$3:$C$153,2,FALSE)","v":"Newham London Borough Council"},"East of England and North-East London"]
[null,null,null,null,null,null,null,null,null,null,null,null,null,null,130700,"Brampton Primary Academy","2014-07-01","Bexley London Borough Council",{"$f":"VLOOKUP(R548,'LA CPID Look up'!$A$3:$C$153,2,FALSE)","v":"Bexley London Borough Council"},"South-East England and South London"]
[null,null,null,null,null,null,null,null,null,null,null,null,null,null,120617,"Bransgore Church of England Primary School","2011-12-01","Hampshire County Council",{"$f":"VLOOKUP(R549,'LA CPID Look up'!$A$3:$C$153,2,FALSE)","v":"Hampshire County Council"},"South-East England and South London"]
[null,null,null,null,null,null,null,null,null,null,null,null,null,null,119378,"Branston Community Academy","2010-12-01","Lincolnshire County Council",{"$f":"VLOOKUP(R550,'LA CPID Look up'!$A$3:$C$153,2,FALSE)","v":"Lincolnshire County Council"},"East Midlands and the Humber"]
[null,null,null,null,null,null,null,null,null,null,null,null,null,null,122339,"Branston Junior Academy","2012-08-01","Lincolnshire County Council",{"$f":"VLOOKUP(R551,'LA CPID Look up'!$A$3:$C$153,2,FALSE)","v":"Lincolnshire County Council"},"East Midlands and the Humber"]
[null,null,null,null,null,null,null,null,null,null,null,null,null,null,129896,"Braunston Church of England Primary School","2014-07-01","Northamptonshire County Council",{"$f":"VLOOKUP(R552,'LA CPID Look up'!$A$3:$C$153,2,FALSE)","v":"Northamptonshire County Council"},"East of England and North-East London"]
[null,null,null,null,null,null,null,null,null,null,null,null,null,null,120993,"Braunton Academy","2012-04-01","Devon County Council",{"$f":"VLOOKUP(R553,'LA CPID Look up'!$A$3:$C$153,2,FALSE)","v":"Devon County Council"},"South-West England"]
[null,null,null,null,null,null,null,null,null,null,null,null,null,null,131830,"Brayford Academy","2015-04-01","Devon County Council",{"$f":"VLOOKUP(R554,'LA CPID Look up'!$A$3:$C$153,2,FALSE)","v":"Devon County Council"},"South-West England"]
[null,null,null,null,null,null,null,null,null,null,null,null,null,null,130485,"Braywick Court School","2014-09-01","Royal Borough of Windsor and Maidenhead",{"$f":"VLOOKUP(R555,'LA CPID Look up'!$A$3:$C$153,2,FALSE)","v":"Windsor and Maidenhead (Royal Borough of)"},"East of England and North-East London"]
[null,null,null,null,null,null,null,null,null,null,null,null,null,null,129429,"Brent Primary School, The","2014-02-01","Kent County Council",{"$f":"VLOOKUP(R556,'LA CPID Look up'!$A$3:$C$153,2,FALSE)","v":"Kent County Council"},"South-East England and South London"]
[null,null,null,null,null,null,null,null,null,null,null,null,null,null,122944,"Brentford School for Girls","2012-12-01","Hounslow London Borough Council",{"$f":"VLOOKUP(R557,'LA CPID Look up'!$A$3:$C$153,2,FALSE)","v":"Hounslow London Borough Council"},"East of England and North-East London"]
[null,null,null,null,null,null,null,null,null,null,null,null,null,null,123055,"Brentside Primary School","2013-04-01","Ealing London Borough Council",{"$f":"VLOOKUP(R558,'LA CPID Look up'!$A$3:$C$153,2,FALSE)","v":"Ealing London Borough Council"},"South-Central England and North-West London"]
[null,null,null,null,null,null,null,null,null,null,null,null,null,null,128090,"Brentwood County High School","2014-06-01","Essex County Council",{"$f":"VLOOKUP(R559,'LA CPID Look up'!$A$3:$C$153,2,FALSE)","v":"Essex County Council"},"East of England and North-East London"]
[null,null,null,null,null,null,null,null,null,null,null,null,null,null,122961,"Brentwood Ursuline Convent High School","2012-10-01","Essex County Council",{"$f":"VLOOKUP(R560,'LA CPID Look up'!$A$3:$C$153,2,FALSE)","v":"Essex County Council"},"East of England and North-East London"]
[null,null,null,null,null,null,null,null,null,null,null,null,null,null,122799,"Briar Hill Primary School","2012-11-01","Northamptonshire County Council",{"$f":"VLOOKUP(R561,'LA CPID Look up'!$A$3:$C$153,2,FALSE)","v":"Northamptonshire County Council"},"East of England and North-East London"]
[null,null,null,null,null,null,null,null,null,null,null,null,null,null,124245,"Bricknell Primary School","2013-10-01","Hull City Council",{"$f":"VLOOKUP(R562,'LA CPID Look up'!$A$3:$C$153,2,FALSE)","v":"Kingston upon Hull City Council"},"East Midlands and the Humber"]
[null,null,null,null,null,null,null,null,null,null,null,null,null,null,126429,"Bridge Academy - Milton Keynes","2013-10-01","Milton Keynes Council",{"$f":"VLOOKUP(R563,'LA CPID Look up'!$A$3:$C$153,2,FALSE)","v":"Milton Keynes Council"},"East of England and North-East London"]
[null,null,null,null,null,null,null,null,null,null,null,null,null,null,118650,"Bridge Academy, The - Hackney","2007-09-06","Hackney London Borough Council (The Learning Trust)",{"$f":"VLOOKUP(R564,'LA CPID Look up'!$A$3:$C$153,2,FALSE)","v":"Hackney London Borough Council"},"East of England and North-East London"]
[null,null,null,null,null,null,null,null,null,null,null,null,null,null,122831,"Bridge AP Academy, The - Hammersmith and Fulham","2013-04-01","Hammersmith and Fulham London Borough Council",{"$f":"VLOOKUP(R565,'LA CPID Look up'!$A$3:$C$153,2,FALSE)","v":"Hammersmith and Fulham London Borough Council"},"South-Central England and North-West London"]
[null,null,null,null,null,null,null,null,null,null,null,null,null,null,131697,"Bridge Integrated Learning Space, The","2015-01-01","Islington London Borough Council",{"$f":"VLOOKUP(R566,'LA CPID Look up'!$A$3:$C$153,2,FALSE)","v":"Islington London Borough Council"},"East of England and North-East London"]
[null,null,null,null,null,null,null,null,null,null,null,null,null,null,120926,"Bridge Learning Campus - Bristol","2013-03-01","Bristol City Council",{"$f":"VLOOKUP(R567,'LA CPID Look up'!$A$3:$C$153,2,FALSE)","v":"Bristol City Council"},"South-West England"]
[null,null,null,null,null,null,null,null,null,null,null,null,null,null,121885,"Bridgemary School","2012-09-01","Hampshire County Council",{"$f":"VLOOKUP(R568,'LA CPID Look up'!$A$3:$C$153,2,FALSE)","v":"Hampshire County Council"},"South-East England and South London"]
[null,null,null,null,null,null,null,null,null,null,null,null,null,null,132029,"Bridgeview Special School","2015-09-01","Hull City Council",{"$f":"VLOOKUP(R569,'LA CPID Look up'!$A$3:$C$153,2,FALSE)","v":"Kingston upon Hull City Council"},"East Midlands and the Humber"]
[null,null,null,null,null,null,null,null,null,null,null,null,null,null,131359,"Bridgewater High School","2014-12-01","Warrington Borough Council",{"$f":"VLOOKUP(R570,'LA CPID Look up'!$A$3:$C$153,2,FALSE)","v":"Warrington Borough Council"},"Lancashire and West Yorkshire"]
[null,null,null,null,null,null,null,null,null,null,null,null,null,null,124825,"Bridgewater Park Primary School","2014-04-01","Halton Borough Council",{"$f":"VLOOKUP(R571,'LA CPID Look up'!$A$3:$C$153,2,FALSE)","v":"Halton Borough Council"},"Lancashire and West Yorkshire"]
[null,null,null,null,null,null,null,null,null,null,null,null,null,null,122900,"Bridgnorth Endowed School","2013-03-01","Shropshire Council",{"$f":"VLOOKUP(R572,'LA CPID Look up'!$A$3:$C$153,2,FALSE)","v":"Shropshire Unitary Authority"},"West Midlands"]
[null,null,null,null,null,null,null,null,null,null,null,null,null,null,120953,"Bridgwater College Academy","2012-09-01","Somerset County Council",{"$f":"VLOOKUP(R573,'LA CPID Look up'!$A$3:$C$153,2,FALSE)","v":"Somerset County Council"},"South-West England"]
[null,null,null,null,null,null,null,null,null,null,null,null,null,null,119609,"Brighouse High School","2011-04-01","Calderdale Metropolitan Borough Council",{"$f":"VLOOKUP(R574,'LA CPID Look up'!$A$3:$C$153,2,FALSE)","v":"Calderdale Metropolitan Borough Council"},"Lancashire and West Yorkshire"]
[null,null,null,null,null,null,null,null,null,null,null,null,null,null,119232,"Brighton Aldridge Community Academy","2010-09-01","Brighton and Hove City Council",{"$f":"VLOOKUP(R575,'LA CPID Look up'!$A$3:$C$153,2,FALSE)","v":"Brighton & Hove City Council"},"South-East England and South London"]
[null,null,null,null,null,null,null,null,null,null,null,null,null,null,122683,"Brill Church of England Combined School","2013-04-01","Buckinghamshire County Council",{"$f":"VLOOKUP(R576,'LA CPID Look up'!$A$3:$C$153,2,FALSE)","v":"Buckinghamshire County Council"},"South-Central England and North-West London"]
[null,null,null,null,null,null,null,null,null,null,null,null,null,null,119250,"Brine Leas School","2010-09-02","Cheshire East Council",{"$f":"VLOOKUP(R577,'LA CPID Look up'!$A$3:$C$153,2,FALSE)","v":"Cheshire East Unitary Authority"},"West Midlands"]
[null,null,null,null,null,null,null,null,null,null,null,null,null,null,130876,"Bringhurst Primary School","2014-09-01","Leicestershire County Council",{"$f":"VLOOKUP(R578,'LA CPID Look up'!$A$3:$C$153,2,FALSE)","v":"Leicestershire County Council"},"East Midlands and the Humber"]
[null,null,null,null,null,null,null,null,null,null,null,null,null,null,119279,"Brinsworth Comprehensive School","2010-10-01","Rotherham Metropolitan Borough Council",{"$f":"VLOOKUP(R579,'LA CPID Look up'!$A$3:$C$153,2,FALSE)","v":"Rotherham Borough Council"},"East Midlands and the Humber"]
[null,null,null,null,null,null,null,null,null,null,null,null,null,null,122142,"Briscoe Lane Academy","2012-09-01","Manchester City Council",{"$f":"VLOOKUP(R580,'LA CPID Look up'!$A$3:$C$153,2,FALSE)","v":"Manchester City Council"},"Lancashire and West Yorkshire"]
[null,null,null,null,null,null,null,null,null,null,null,null,null,null,121877,"Briscoe Primary School & Nursery Academy","2012-09-01","Essex County Council",{"$f":"VLOOKUP(R581,'LA CPID Look up'!$A$3:$C$153,2,FALSE)","v":"Essex County Council"},"East of England and North-East London"]
[null,null,null,null,null,null,null,null,null,null,null,null,null,null,123843,"Bristnall Hall Academy","2012-12-01","Sandwell Metropolitan Borough Council",{"$f":"VLOOKUP(R582,'LA CPID Look up'!$A$3:$C$153,2,FALSE)","v":"Sandwell Metropolitan Borough Council"},"West Midlands"]
[null,null,null,null,null,null,null,null,null,null,null,null,null,null,118609,"Bristol Brunel Academy","2007-09-01","Bristol City Council",{"$f":"VLOOKUP(R583,'LA CPID Look up'!$A$3:$C$153,2,FALSE)","v":"Bristol City Council"},"South-West England"]
[null,null,null,null,null,null,null,null,null,null,null,null,null,null,118660,"Bristol Cathedral Choir School","2008-09-04","Bristol City Council",{"$f":"VLOOKUP(R584,'LA CPID Look up'!$A$3:$C$153,2,FALSE)","v":"Bristol City Council"},"South-West England"]
[null,null,null,null,null,null,null,null,null,null,null,null,null,null,120522,"Bristol Free School","2011-09-01","Bristol City Council",{"$f":"VLOOKUP(R585,'LA CPID Look up'!$A$3:$C$153,2,FALSE)","v":"Bristol City Council"},"South-West England"]
[null,null,null,null,null,null,null,null,null,null,null,null,null,null,119139,"Bristol Metropolitan Academy","2009-09-01","Bristol City Council",{"$f":"VLOOKUP(R586,'LA CPID Look up'!$A$3:$C$153,2,FALSE)","v":"Bristol City Council"},"South-West England"]
[null,null,null,null,null,null,null,null,null,null,null,null,null,null,122153,"Bristol Technology and Engineering Academy","2013-09-01","South Gloucestershire Council",{"$f":"VLOOKUP(R587,'LA CPID Look up'!$A$3:$C$153,2,FALSE)","v":"South Gloucestershire Council"},"South-West England"]
[null,null,null,null,null,null,null,null,null,null,null,null,null,null,118384,"BRIT School for the Performing Arts & Technology, The","1991-10-22","Croydon London Borough Council",{"$f":"VLOOKUP(R588,'LA CPID Look up'!$A$3:$C$153,2,FALSE)","v":"Croydon London Borough Council"},"South-East England and South London"]
[null,null,null,null,null,null,null,null,null,null,null,null,null,null,132635,"British Sikh School, The","2015-09-01","Wolverhampton City Council",{"$f":"VLOOKUP(R589,'LA CPID Look up'!$A$3:$C$153,2,FALSE)","v":"Wolverhampton City Council"},"West Midlands"]
[null,null,null,null,null,null,null,null,null,null,null,null,null,null,119558,"Brittons Academy, The","2011-04-01","Havering London Borough Council",{"$f":"VLOOKUP(R590,'LA CPID Look up'!$A$3:$C$153,2,FALSE)","v":"Havering London Borough Council"},"East of England and North-East London"]
[null,null,null,null,null,null,null,null,null,null,null,null,null,null,120789,"Brixham College","2012-01-01","Torbay Council",{"$f":"VLOOKUP(R591,'LA CPID Look up'!$A$3:$C$153,2,FALSE)","v":"Torbay Council"},"South-West England"]
[null,null,null,null,null,null,null,null,null,null,null,null,null,null,132387,"Brixington Primary School","2015-09-01","Devon County Council",{"$f":"VLOOKUP(R592,'LA CPID Look up'!$A$3:$C$153,2,FALSE)","v":"Devon County Council"},"South-West England"]
[null,null,null,null,null,null,null,null,null,null,null,null,null,null,133070,"Brize Norton Primary School","2016-03-01","Oxfordshire County Council",{"$f":"VLOOKUP(R593,'LA CPID Look up'!$A$3:$C$153,2,FALSE)","v":"Oxfordshire County Council"},"East of England and North-East London"]
[null,null,null,null,null,null,null,null,null,null,null,null,null,null,119258,"Broadclyst Primary Academy","2010-09-01","Devon County Council",{"$f":"VLOOKUP(R594,'LA CPID Look up'!$A$3:$C$153,2,FALSE)","v":"Devon County Council"},"South-West England"]
[null,null,null,null,null,null,null,null,null,null,null,null,null,null,122284,"Broadfield East Infant School and Nursery - Crawley","2012-09-01","West Sussex County Council",{"$f":"VLOOKUP(R595,'LA CPID Look up'!$A$3:$C$153,2,FALSE)","v":"West Sussex County Council"},"South-East England and South London"]
[null,null,null,null,null,null,null,null,null,null,null,null,null,null,122064,"Broadfield East Junior School - Crawley","2012-09-01","West Sussex County Council",{"$f":"VLOOKUP(R596,'LA CPID Look up'!$A$3:$C$153,2,FALSE)","v":"West Sussex County Council"},"South-East England and South London"]
[null,null,null,null,null,null,null,null,null,null,null,null,null,null,124302,"Broadfields Primary School - Edgeware","2013-10-01","Barnet London Borough Council",{"$f":"VLOOKUP(R597,'LA CPID Look up'!$A$3:$C$153,2,FALSE)","v":"Barnet London Borough Council"},"South-Central England and North-West London"]
[null,null,null,null,null,null,null,null,null,null,null,null,null,null,122287,"Broadlands Academy","2012-12-01","Bath & North East Somerset Council",{"$f":"VLOOKUP(R598,'LA CPID Look up'!$A$3:$C$153,2,FALSE)","v":"Bath & North East Somerset Council"},"South-West England"]
[null,null,null,null,null,null,null,null,null,null,null,null,null,null,130071,"Broadmead Primary School","2014-06-01","Croydon London Borough Council",{"$f":"VLOOKUP(R599,'LA CPID Look up'!$A$3:$C$153,2,FALSE)","v":"Croydon London Borough Council"},"South-East England and South London"]
[null,null,null,null,null,null,null,null,null,null,null,null,null,null,123856,"Broadmere Community Primary School","2013-04-01","Surrey County Council",{"$f":"VLOOKUP(R600,'LA CPID Look up'!$A$3:$C$153,2,FALSE)","v":"Surrey County Council"},"South-East England and South London"]
[null,null,null,null,null,null,null,null,null,null,null,null,null,null,120912,"Broadoak Mathematics and Computing College","2012-02-01","North Somerset District Council",{"$f":"VLOOKUP(R601,'LA CPID Look up'!$A$3:$C$153,2,FALSE)","v":"North Somerset Council"},"South-West England"]
[null,null,null,null,null,null,null,null,null,null,null,null,null,null,120550,"Broadoak Primary School - Salford","2011-10-01","Salford City Council",{"$f":"VLOOKUP(R602,'LA CPID Look up'!$A$3:$C$153,2,FALSE)","v":"Salford City Council"},"Lancashire and West Yorkshire"]
[null,null,null,null,null,null,null,null,null,null,null,null,null,null,122012,"Broadoak School - Trafford","2012-05-01","Trafford Borough Council",{"$f":"VLOOKUP(R603,'LA CPID Look up'!$A$3:$C$153,2,FALSE)","v":"Trafford Metropolitan Borough Council"},"Lancashire and West Yorkshire"]
[null,null,null,null,null,null,null,null,null,null,null,null,null,null,130881,"Broadstone First School","2014-09-01","Poole Borough Council",{"$f":"VLOOKUP(R604,'LA CPID Look up'!$A$3:$C$153,2,FALSE)","v":"Poole (Borough of)"},"South-West England"]
[null,null,null,null,null,null,null,null,null,null,null,null,null,null,131132,"Broadstone Middle School","2014-09-01","Poole Borough Council",{"$f":"VLOOKUP(R605,'LA CPID Look up'!$A$3:$C$153,2,FALSE)","v":"Poole (Borough of)"},"South-West England"]
[null,null,null,null,null,null,null,null,null,null,null,null,null,null,124188,"Broadway Academy","2013-07-01","Birmingham City Council",{"$f":"VLOOKUP(R606,'LA CPID Look up'!$A$3:$C$153,2,FALSE)","v":"Birmingham City Council"},"West Midlands"]
[null,null,null,null,null,null,null,null,null,null,null,null,null,null,120599,"Brockhampton Primary School","2011-11-01","Herefordshire Council",{"$f":"VLOOKUP(R607,'LA CPID Look up'!$A$3:$C$153,2,FALSE)","v":"Herefordshire Council"},"West Midlands"]
[null,null,null,null,null,null,null,null,null,null,null,null,null,null,120466,"Brockhill Park Performing Arts College","2011-09-01","Kent County Council",{"$f":"VLOOKUP(R608,'LA CPID Look up'!$A$3:$C$153,2,FALSE)","v":"Kent County Council"},"South-East England and South London"]
[null,null,null,null,null,null,null,null,null,null,null,null,null,null,122370,"Brockington College","2012-08-01","Leicestershire County Council",{"$f":"VLOOKUP(R609,'LA CPID Look up'!$A$3:$C$153,2,FALSE)","v":"Leicestershire County Council"},"East Midlands and the Humber"]
[null,null,null,null,null,null,null,null,null,null,null,null,null,null,131382,"Brocklewood Primary and Nursery School","2015-01-01","Nottingham City Council",{"$f":"VLOOKUP(R610,'LA CPID Look up'!$A$3:$C$153,2,FALSE)","v":"Nottingham City Council"},"East Midlands and the Humber"]
[null,null,null,null,null,null,null,null,null,null,null,null,null,null,124323,"Brocks Hill Primary School","2013-06-01","Leicestershire County Council",{"$f":"VLOOKUP(R611,'LA CPID Look up'!$A$3:$C$153,2,FALSE)","v":"Leicestershire County Council"},"East Midlands and the Humber"]
[null,null,null,null,null,null,null,null,null,null,null,null,null,null,121848,"Brockworth Primary Academy","2012-09-01","Gloucestershire County Council",{"$f":"VLOOKUP(R612,'LA CPID Look up'!$A$3:$C$153,2,FALSE)","v":"Gloucestershire County Council"},"South-West England"]
[null,null,null,null,null,null,null,null,null,null,null,null,null,null,131119,"Broken Cross Primary Academy and Nursery","2014-09-01","Cheshire East Council",{"$f":"VLOOKUP(R613,'LA CPID Look up'!$A$3:$C$153,2,FALSE)","v":"Cheshire East Unitary Authority"},"West Midlands"]
[null,null,null,null,null,null,null,null,null,null,null,null,null,null,123077,"Bromfords School and Sixth Form College, The","2013-01-01","Essex County Council",{"$f":"VLOOKUP(R614,'LA CPID Look up'!$A$3:$C$153,2,FALSE)","v":"Essex County Council"},"East of England and North-East London"]
[null,null,null,null,null,null,null,null,null,null,null,null,null,null,132297,"Bromley Beacon Academy","2016-02-01","Bromley London Borough Council",{"$f":"VLOOKUP(R615,'LA CPID Look up'!$A$3:$C$153,2,FALSE)","v":"Bromley London Borough Council"},"South-East England and South London"]
[null,null,null,null,null,null,null,null,null,null,null,null,null,null,130145,"Bromley Trust Alternative Provision Academy","2014-09-01","Bromley London Borough Council",{"$f":"VLOOKUP(R616,'LA CPID Look up'!$A$3:$C$153,2,FALSE)","v":"Bromley London Borough Council"},"South-East England and South London"]
[null,null,null,null,null,null,null,null,null,null,null,null,null,null,131062,"Bromley-Pensnett Primary School, The","2015-10-01","Dudley Metropolitan Borough Council",{"$f":"VLOOKUP(R617,'LA CPID Look up'!$A$3:$C$153,2,FALSE)","v":"Dudley Metropolitan Borough Council"},"West Midlands"]
[null,null,null,null,null,null,null,null,null,null,null,null,null,null,119167,"Brompton Academy","2010-09-01","Medway Council",{"$f":"VLOOKUP(R618,'LA CPID Look up'!$A$3:$C$153,2,FALSE)","v":"Medway Towns Unitary Authority (The)"},"South-East England and South London"]
[null,null,null,null,null,null,null,null,null,null,null,null,null,null,130359,"Brompton-Westbrook Primary School","2014-10-01","Medway Council",{"$f":"VLOOKUP(R619,'LA CPID Look up'!$A$3:$C$153,2,FALSE)","v":"Medway Towns Unitary Authority (The)"},"South-East England and South London"]
[null,null,null,null,null,null,null,null,null,null,null,null,null,null,131478,"Brook House Primary School","2014-09-01","Haringey London Borough Council",{"$f":"VLOOKUP(R620,'LA CPID Look up'!$A$3:$C$153,2,FALSE)","v":"Haringey London Borough Council"},"East of England and North-East London"]
[null,null,null,null,null,null,null,null,null,null,null,null,null,null,120065,"Brooke Hill Academy","2011-09-01","Rutland County Council",{"$f":"VLOOKUP(R621,'LA CPID Look up'!$A$3:$C$153,2,FALSE)","v":"Rutland County Council"},"East Midlands and the Humber"]
[null,null,null,null,null,null,null,null,null,null,null,null,null,null,118385,"Brooke Weston Academy","2008-08-18","Northamptonshire County Council",{"$f":"VLOOKUP(R622,'LA CPID Look up'!$A$3:$C$153,2,FALSE)","v":"Northamptonshire County Council"},"East of England and North-East London"]
[null,null,null,null,null,null,null,null,null,null,null,null,null,null,119537,"Brookfield Academy Trust - Chesterfield","2011-04-01","Derbyshire County Council",{"$f":"VLOOKUP(R623,'LA CPID Look up'!$A$3:$C$153,2,FALSE)","v":"Derbyshire County Council"},"East Midlands and the Humber"]
[null,null,null,null,null,null,null,null,null,null,null,null,null,null,122405,"Brookfield House School - Woodford Green","2012-09-01","Waltham Forest London Borough Council",{"$f":"VLOOKUP(R624,'LA CPID Look up'!$A$3:$C$153,2,FALSE)","v":"Waltham Forest London Borough Council"},"East of England and North-East London"]
[null,null,null,null,null,null,null,null,null,null,null,null,null,null,127103,"Brookfield Primary Academy -  Swinton","2014-01-01","Rotherham Metropolitan Borough Council",{"$f":"VLOOKUP(R625,'LA CPID Look up'!$A$3:$C$153,2,FALSE)","v":"Rotherham Borough Council"},"East Midlands and the Humber"]
[null,null,null,null,null,null,null,null,null,null,null,null,null,null,130344,"Brookfield School, The","2014-10-01","Herefordshire Council",{"$f":"VLOOKUP(R626,'LA CPID Look up'!$A$3:$C$153,2,FALSE)","v":"Herefordshire Council"},"West Midlands"]
[null,null,null,null,null,null,null,null,null,null,null,null,null,null,120638,"Brooklands Middle School","2011-11-01","Central Bedfordshire Council",{"$f":"VLOOKUP(R627,'LA CPID Look up'!$A$3:$C$153,2,FALSE)","v":"Central Bedfordshire Unitary Authority"},"South-Central England and North-West London"]
[null,null,null,null,null,null,null,null,null,null,null,null,null,null,120495,"Brooksbank School, The","2011-10-01","Calderdale Metropolitan Borough Council",{"$f":"VLOOKUP(R628,'LA CPID Look up'!$A$3:$C$153,2,FALSE)","v":"Calderdale Metropolitan Borough Council"},"Lancashire and West Yorkshire"]
[null,null,null,null,null,null,null,null,null,null,null,null,null,null,119826,"Brookside Community Primary School - Street","2011-07-01","Somerset County Council",{"$f":"VLOOKUP(R629,'LA CPID Look up'!$A$3:$C$153,2,FALSE)","v":"Somerset County Council"},"South-West England"]
[null,null,null,null,null,null,null,null,null,null,null,null,null,null,122808,"Brookside Primary School - Hayes","2013-04-01","Hillingdon London Borough Council",{"$f":"VLOOKUP(R630,'LA CPID Look up'!$A$3:$C$153,2,FALSE)","v":"Hillingdon London Borough Council"},"East of England and North-East London"]
[null,null,null,null,null,null,null,null,null,null,null,null,null,null,122091,"Brookvale High School - Groby","2012-07-01","Leicestershire County Council",{"$f":"VLOOKUP(R631,'LA CPID Look up'!$A$3:$C$153,2,FALSE)","v":"Leicestershire County Council"},"East Midlands and the Humber"]
[null,null,null,null,null,null,null,null,null,null,null,null,null,null,122695,"Brookvale Primary School - Erdington","2013-04-01","Birmingham City Council",{"$f":"VLOOKUP(R632,'LA CPID Look up'!$A$3:$C$153,2,FALSE)","v":"Birmingham City Council"},"West Midlands"]
[null,null,null,null,null,null,null,null,null,null,null,null,null,null,132370,"Brookwood Primary School","2015-12-01","Surrey County Council",{"$f":"VLOOKUP(R633,'LA CPID Look up'!$A$3:$C$153,2,FALSE)","v":"Surrey County Council"},"South-East England and South London"]
[null,null,null,null,null,null,null,null,null,null,null,null,null,null,122960,"Broom Leys School","2012-11-01","Leicestershire County Council",{"$f":"VLOOKUP(R634,'LA CPID Look up'!$A$3:$C$153,2,FALSE)","v":"Leicestershire County Council"},"East Midlands and the Humber"]
[null,null,null,null,null,null,null,null,null,null,null,null,null,null,122368,"Broomfield Community Primary School","2012-10-01","Leicestershire County Council",{"$f":"VLOOKUP(R635,'LA CPID Look up'!$A$3:$C$153,2,FALSE)","v":"Leicestershire County Council"},"East Midlands and the Humber"]
[null,null,null,null,null,null,null,null,null,null,null,null,null,null,130928,"Brotherton and Byram Community Primary Academy","2015-08-01","North Yorkshire County Council",{"$f":"VLOOKUP(R636,'LA CPID Look up'!$A$3:$C$153,2,FALSE)","v":"North Yorkshire County Council"},"North of England"]
[null,null,null,null,null,null,null,null,null,null,null,null,null,null,121902,"Broughton Jewish Cassel Fox Primary School","2012-08-01","Salford City Council",{"$f":"VLOOKUP(R637,'LA CPID Look up'!$A$3:$C$153,2,FALSE)","v":"Salford City Council"},"Lancashire and West Yorkshire"]
[null,null,null,null,null,null,null,null,null,null,null,null,null,null,120605,"Broughton Primary School","2011-10-01","Cumbria County Council",{"$f":"VLOOKUP(R638,'LA CPID Look up'!$A$3:$C$153,2,FALSE)","v":"Cumbria County Council"},"North of England"]
[null,null,null,null,null,null,null,null,null,null,null,null,null,null,126485,"Browney Primary Academy","2014-03-01","Durham County Council",{"$f":"VLOOKUP(R639,'LA CPID Look up'!$A$3:$C$153,2,FALSE)","v":"County Durham Unitary Authority"},"North of England"]
[null,null,null,null,null,null,null,null,null,null,null,null,null,null,121963,"Brownhill Primary Academy","2012-12-01","Leeds City Council",{"$f":"VLOOKUP(R640,'LA CPID Look up'!$A$3:$C$153,2,FALSE)","v":"Leeds City Council"},"Lancashire and West Yorkshire"]
[null,null,null,null,null,null,null,null,null,null,null,null,null,null,130342,"Brownlow Primary School","2014-04-01","Leicestershire County Council",{"$f":"VLOOKUP(R641,'LA CPID Look up'!$A$3:$C$153,2,FALSE)","v":"Leicestershire County Council"},"East Midlands and the Humber"]
[null,null,null,null,null,null,null,null,null,null,null,null,null,null,131169,"Brownmead Junior and Infant School","2014-11-01","Birmingham City council",{"$f":"VLOOKUP(R642,'LA CPID Look up'!$A$3:$C$153,2,FALSE)","v":"Birmingham City Council"},"West Midlands"]
[null,null,null,null,null,null,null,null,null,null,null,null,null,null,119410,"Broxbourne School, The","2011-01-01","Hertfordshire County Council",{"$f":"VLOOKUP(R643,'LA CPID Look up'!$A$3:$C$153,2,FALSE)","v":"Hertfordshire County Council"},"East of England and North-East London"]
[null,null,null,null,null,null,null,null,null,null,null,null,null,null,119957,"Brunel Primary & Nursery Academy","2011-08-01","Cornwall Council",{"$f":"VLOOKUP(R644,'LA CPID Look up'!$A$3:$C$153,2,FALSE)","v":"Cornwall Unitary Authority"},"South-West England"]
[null,null,null,null,null,null,null,null,null,null,null,null,null,null,132379,"Bruntcliffe Academy","2015-09-01","Leeds City Council",{"$f":"VLOOKUP(R645,'LA CPID Look up'!$A$3:$C$153,2,FALSE)","v":"Leeds City Council"},"Lancashire and West Yorkshire"]
[null,null,null,null,null,null,null,null,null,null,null,null,null,null,120785,"Brunts Academy, The","2012-01-01","Nottinghamshire County Council",{"$f":"VLOOKUP(R646,'LA CPID Look up'!$A$3:$C$153,2,FALSE)","v":"Nottinghamshire County Council"},"East Midlands and the Humber"]
[null,null,null,null,null,null,null,null,null,null,null,null,null,null,123954,"Brymore Academy","2013-09-01","Somerset County Council",{"$f":"VLOOKUP(R647,'LA CPID Look up'!$A$3:$C$153,2,FALSE)","v":"Somerset County Council"},"South-West England"]
[null,null,null,null,null,null,null,null,null,null,null,null,null,null,120593,"Buckden CofE Primary School","2011-11-01","Cambridgeshire County Council",{"$f":"VLOOKUP(R648,'LA CPID Look up'!$A$3:$C$153,2,FALSE)","v":"Cambridgeshire County Council"},"East of England and North-East London"]
[null,null,null,null,null,null,null,null,null,null,null,null,null,null,119679,"Buckfastleigh Primary School","2011-04-01","Devon County Council",{"$f":"VLOOKUP(R649,'LA CPID Look up'!$A$3:$C$153,2,FALSE)","v":"Devon County Council"},"South-West England"]
[null,null,null,null,null,null,null,null,null,null,null,null,null,null,129954,"Buckingham Primary Academy","2014-06-01","Hull City Council",{"$f":"VLOOKUP(R650,'LA CPID Look up'!$A$3:$C$153,2,FALSE)","v":"Kingston upon Hull City Council"},"East Midlands and the Humber"]
[null,null,null,null,null,null,null,null,null,null,null,null,null,null,122154,"Buckinghamshire UTC","2013-09-01","Buckinghamshire County Council",{"$f":"VLOOKUP(R651,'LA CPID Look up'!$A$3:$C$153,2,FALSE)","v":"Buckinghamshire County Council"},"South-Central England and North-West London"]
[null,null,null,null,null,null,null,null,null,null,null,null,null,null,124562,"Buckland Church of England Primary School","2013-11-01","Oxfordshire County Council",{"$f":"VLOOKUP(R652,'LA CPID Look up'!$A$3:$C$153,2,FALSE)","v":"Oxfordshire County Council"},"East of England and North-East London"]
[null,null,null,null,null,null,null,null,null,null,null,null,null,null,131732,"Buckland St Mary Church of England Primary School","2015-03-01","Somerset County Council",{"$f":"VLOOKUP(R653,'LA CPID Look up'!$A$3:$C$153,2,FALSE)","v":"Somerset County Council"},"South-West England"]
[null,null,null,null,null,null,null,null,null,null,null,null,null,null,120193,"Bucklers Mead Academy","2011-08-01","Somerset County Council",{"$f":"VLOOKUP(R654,'LA CPID Look up'!$A$3:$C$153,2,FALSE)","v":"Somerset County Council"},"South-West England"]
[null,null,null,null,null,null,null,null,null,null,null,null,null,null,131136,"Budbrooke Primary School","2014-10-01","Warwickshire County Council",{"$f":"VLOOKUP(R655,'LA CPID Look up'!$A$3:$C$153,2,FALSE)","v":"Warwickshire County Council"},"West Midlands"]
[null,null,null,null,null,null,null,null,null,null,null,null,null,null,122912,"Bude Park Primary School","2013-04-01","Hull City Council",{"$f":"VLOOKUP(R656,'LA CPID Look up'!$A$3:$C$153,2,FALSE)","v":"Kingston upon Hull City Council"},"East Midlands and the Humber"]
[null,null,null,null,null,null,null,null,null,null,null,null,null,null,133668,"Buildwas Primary School","2016-02-01","Shropshire Council",{"$f":"VLOOKUP(R657,'LA CPID Look up'!$A$3:$C$153,2,FALSE)","v":"Shropshire Unitary Authority"},"West Midlands"]
[null,null,null,null,null,null,null,null,null,null,null,null,null,null,119721,"Bullers Wood School","2011-05-01","Bromley London Borough Council",{"$f":"VLOOKUP(R658,'LA CPID Look up'!$A$3:$C$153,2,FALSE)","v":"Bromley London Borough Council"},"South-East England and South London"]
[null,null,null,null,null,null,null,null,null,null,null,null,null,null,118884,"Bulwell Academy, The","2009-09-01","Nottingham City Council",{"$f":"VLOOKUP(R659,'LA CPID Look up'!$A$3:$C$153,2,FALSE)","v":"Nottingham City Council"},"East Midlands and the Humber"]
[null,null,null,null,null,null,null,null,null,null,null,null,null,null,119998,"Bungay High School","2011-08-01","Suffolk County Council",{"$f":"VLOOKUP(R660,'LA CPID Look up'!$A$3:$C$153,2,FALSE)","v":"Suffolk County Council"},"East of England and North-East London"]
[null,null,null,null,null,null,null,null,null,null,null,null,null,null,123286,"Burbage Primary School","2013-04-01","Wiltshire Council",{"$f":"VLOOKUP(R661,'LA CPID Look up'!$A$3:$C$153,2,FALSE)","v":"Wiltshire Unitary Authority"},"South-West England"]
[null,null,null,null,null,null,null,null,null,null,null,null,null,null,131127,"Burchetts Green CofE Infants' School","2014-12-01","Royal Borough of Windsor and Maidenhead",{"$f":"VLOOKUP(R662,'LA CPID Look up'!$A$3:$C$153,2,FALSE)","v":"Windsor and Maidenhead (Royal Borough of)"},"East of England and North-East London"]
[null,null,null,null,null,null,null,null,null,null,null,null,null,null,132951,"Burford Primary School","2015-10-01","Oxfordshire County Council",{"$f":"VLOOKUP(R663,'LA CPID Look up'!$A$3:$C$153,2,FALSE)","v":"Oxfordshire County Council"},"East of England and North-East London"]
[null,null,null,null,null,null,null,null,null,null,null,null,null,null,121840,"Burford School and Community College","2012-07-01","Oxfordshire County Council",{"$f":"VLOOKUP(R664,'LA CPID Look up'!$A$3:$C$153,2,FALSE)","v":"Oxfordshire County Council"},"East of England and North-East London"]
[null,null,null,null,null,null,null,null,null,null,null,null,null,null,119737,"Burgate School and Sixth Form, The","2011-05-01","Hampshire County Council",{"$f":"VLOOKUP(R665,'LA CPID Look up'!$A$3:$C$153,2,FALSE)","v":"Hampshire County Council"},"South-East England and South London"]
[null,null,null,null,null,null,null,null,null,null,null,null,null,null,120629,"Burghill Community Primary School","2013-05-01","Herefordshire Council",{"$f":"VLOOKUP(R666,'LA CPID Look up'!$A$3:$C$153,2,FALSE)","v":"Herefordshire Council"},"West Midlands"]
[null,null,null,null,null,null,null,null,null,null,null,null,null,null,118604,"Burlington Danes Academy","2006-09-01","Hammersmith and Fulham London Borough Council",{"$f":"VLOOKUP(R667,'LA CPID Look up'!$A$3:$C$153,2,FALSE)","v":"Hammersmith and Fulham London Borough Council"},"South-Central England and North-West London"]
[null,null,null,null,null,null,null,null,null,null,null,null,null,null,126456,"Burnage Academy for Boys","2014-04-01","Manchester City Council",{"$f":"VLOOKUP(R668,'LA CPID Look up'!$A$3:$C$153,2,FALSE)","v":"Manchester City Council"},"Lancashire and West Yorkshire"]
[null,null,null,null,null,null,null,null,null,null,null,null,null,null,132924,"Burnbush Primary School","2015-10-01","Bristol City Council",{"$f":"VLOOKUP(R669,'LA CPID Look up'!$A$3:$C$153,2,FALSE)","v":"Bristol City Council"},"South-West England"]
[null,null,null,null,null,null,null,null,null,null,null,null,null,null,120551,"Burnham Grammar School","2011-10-01","Buckinghamshire County Council",{"$f":"VLOOKUP(R670,'LA CPID Look up'!$A$3:$C$153,2,FALSE)","v":"Buckinghamshire County Council"},"South-Central England and North-West London"]
[null,null,null,null,null,null,null,null,null,null,null,null,null,null,130487,"Burnley High School","2014-09-01","Lancashire County Council",{"$f":"VLOOKUP(R671,'LA CPID Look up'!$A$3:$C$153,2,FALSE)","v":"Lancashire County Council"},"Lancashire and West Yorkshire"]
[null,null,null,null,null,null,null,null,null,null,null,null,null,null,120435,"Burnley Road Academy","2011-09-01","Calderdale Metropolitan Borough Council",{"$f":"VLOOKUP(R672,'LA CPID Look up'!$A$3:$C$153,2,FALSE)","v":"Calderdale Metropolitan Borough Council"},"Lancashire and West Yorkshire"]
[null,null,null,null,null,null,null,null,null,null,null,null,null,null,132452,"Burnt Ash Primary School","2016-02-01","Bromley London Borough Council",{"$f":"VLOOKUP(R673,'LA CPID Look up'!$A$3:$C$153,2,FALSE)","v":"Bromley London Borough Council"},"South-East England and South London"]
[null,null,null,null,null,null,null,null,null,null,null,null,null,null,120833,"Burnt Mill Comprehensive School","2011-12-01","Essex County Council",{"$f":"VLOOKUP(R674,'LA CPID Look up'!$A$3:$C$153,2,FALSE)","v":"Essex County Council"},"East of England and North-East London"]
[null,null,null,null,null,null,null,null,null,null,null,null,null,null,131976,"Burnt Oak Junior School","2015-07-01","Bexley London Borough Council",{"$f":"VLOOKUP(R675,'LA CPID Look up'!$A$3:$C$153,2,FALSE)","v":"Bexley London Borough Council"},"South-East England and South London"]
[null,null,null,null,null,null,null,null,null,null,null,null,null,null,124381,"Burntwood School","2013-07-01","Wandsworth London Borough Council",{"$f":"VLOOKUP(R676,'LA CPID Look up'!$A$3:$C$153,2,FALSE)","v":"Wandsworth London Borough Council"},"South-East England and South London"]
[null,null,null,null,null,null,null,null,null,null,null,null,null,null,120026,"Burrington Church of England Controlled Primary School","2011-08-01","Devon County Council",{"$f":"VLOOKUP(R677,'LA CPID Look up'!$A$3:$C$153,2,FALSE)","v":"Devon County Council"},"South-West England"]
[null,null,null,null,null,null,null,null,null,null,null,null,null,null,124979,"Burrowmoor Primary School","2013-07-01","Cambridgeshire County Council",{"$f":"VLOOKUP(R678,'LA CPID Look up'!$A$3:$C$153,2,FALSE)","v":"Cambridgeshire County Council"},"East of England and North-East London"]
[null,null,null,null,null,null,null,null,null,null,null,null,null,null,124684,"Burrsville Infant Academy","2013-12-01","Essex County Council",{"$f":"VLOOKUP(R679,'LA CPID Look up'!$A$3:$C$153,2,FALSE)","v":"Essex County Council"},"East of England and North-East London"]
[null,null,null,null,null,null,null,null,null,null,null,null,null,null,121143,"Bursar Primary Academy","2012-08-01","North East Lincolnshire Council",{"$f":"VLOOKUP(R680,'LA CPID Look up'!$A$3:$C$153,2,FALSE)","v":"North East Lincolnshire Council"},"East Midlands and the Humber"]
[null,null,null,null,null,null,null,null,null,null,null,null,null,null,121042,"Bursley Academy","2012-04-01","Staffordshire County Council",{"$f":"VLOOKUP(R681,'LA CPID Look up'!$A$3:$C$153,2,FALSE)","v":"Staffordshire County Council"},"West Midlands"]
[null,null,null,null,null,null,null,null,null,null,null,null,null,null,124678,"Bursted Wood Primary School","2013-12-01","Bexley London Borough Council",{"$f":"VLOOKUP(R682,'LA CPID Look up'!$A$3:$C$153,2,FALSE)","v":"Bexley London Borough Council"},"South-East England and South London"]
[null,null,null,null,null,null,null,null,null,null,null,null,null,null,130740,"Burton End Community Primary School","2014-11-01","Suffolk County Council",{"$f":"VLOOKUP(R683,'LA CPID Look up'!$A$3:$C$153,2,FALSE)","v":"Suffolk County Council"},"East of England and North-East London"]
[null,null,null,null,null,null,null,null,null,null,null,null,null,null,120512,"Burton Morewood CofE Primary School","2011-10-01","Cumbria County Council",{"$f":"VLOOKUP(R684,'LA CPID Look up'!$A$3:$C$153,2,FALSE)","v":"Cumbria County Council"},"North of England"]
[null,null,null,null,null,null,null,null,null,null,null,null,null,null,123367,"Bury CofE Primary School","2013-07-01","Cambridgeshire County Council",{"$f":"VLOOKUP(R685,'LA CPID Look up'!$A$3:$C$153,2,FALSE)","v":"Cambridgeshire County Council"},"East of England and North-East London"]
[null,null,null,null,null,null,null,null,null,null,null,null,null,null,119990,"Bury St Edmunds County Upper School","2011-08-01","Suffolk County Council",{"$f":"VLOOKUP(R686,'LA CPID Look up'!$A$3:$C$153,2,FALSE)","v":"Suffolk County Council"},"East of England and North-East London"]
[null,null,null,null,null,null,null,null,null,null,null,null,null,null,119103,"Bushey Academy, THe","2009-09-01","Hertfordshire County Council",{"$f":"VLOOKUP(R687,'LA CPID Look up'!$A$3:$C$153,2,FALSE)","v":"Hertfordshire County Council"},"East of England and North-East London"]
[null,null,null,null,null,null,null,null,null,null,null,null,null,null,121008,"Bushey Meads School","2012-02-01","Hertfordshire County Council",{"$f":"VLOOKUP(R688,'LA CPID Look up'!$A$3:$C$153,2,FALSE)","v":"Hertfordshire County Council"},"East of England and North-East London"]
[null,null,null,null,null,null,null,null,null,null,null,null,null,null,122601,"Bushloe High School","2012-11-01","Leicestershire County Council",{"$f":"VLOOKUP(R689,'LA CPID Look up'!$A$3:$C$153,2,FALSE)","v":"Leicestershire County Council"},"East Midlands and the Humber"]
[null,null,null,null,null,null,null,null,null,null,null,null,null,null,118403,"Business Academy Bexley, The","2002-09-01","Bexley London Borough Council",{"$f":"VLOOKUP(R690,'LA CPID Look up'!$A$3:$C$153,2,FALSE)","v":"Bexley London Borough Council"},"South-East England and South London"]
[null,null,null,null,null,null,null,null,null,null,null,null,null,null,119722,"Buttsbury Junior School","2011-05-01","Essex County Council",{"$f":"VLOOKUP(R691,'LA CPID Look up'!$A$3:$C$153,2,FALSE)","v":"Essex County Council"},"East of England and North-East London"]
[null,null,null,null,null,null,null,null,null,null,null,null,null,null,120844,"By Brook Valley CofE Primary School","2012-05-01","Wiltshire Council",{"$f":"VLOOKUP(R692,'LA CPID Look up'!$A$3:$C$153,2,FALSE)","v":"Wiltshire Unitary Authority"},"South-West England"]
[null,null,null,null,null,null,null,null,null,null,null,null,null,null,122801,"Byrchall High School, The","2012-09-01","Wigan Metropolitan Borough Council",{"$f":"VLOOKUP(R693,'LA CPID Look up'!$A$3:$C$153,2,FALSE)","v":"Wigan Metropolitan Borough Council"},"Lancashire and West Yorkshire"]
[null,null,null,null,null,null,null,null,null,null,null,null,null,null,133181,"Byron Primary School","2016-01-01","Medway Council",{"$f":"VLOOKUP(R694,'LA CPID Look up'!$A$3:$C$153,2,FALSE)","v":"Medway Towns Unitary Authority (The)"},"South-East England and South London"]
[null,null,null,null,null,null,null,null,null,null,null,null,null,null,122112,"Caister Academy","2015-03-01","Norfolk County Council",{"$f":"VLOOKUP(R695,'LA CPID Look up'!$A$3:$C$153,2,FALSE)","v":"Norfolk County Council"},"East of England and North-East London"]
[null,null,null,null,null,null,null,null,null,null,null,null,null,null,119377,"Caistor Grammar School","2010-12-01","Lincolnshire County Council",{"$f":"VLOOKUP(R696,'LA CPID Look up'!$A$3:$C$153,2,FALSE)","v":"Lincolnshire County Council"},"East Midlands and the Humber"]
[null,null,null,null,null,null,null,null,null,null,null,null,null,null,119958,"Caistor Yarborough Academy","2011-08-01","Lincolnshire County Council",{"$f":"VLOOKUP(R697,'LA CPID Look up'!$A$3:$C$153,2,FALSE)","v":"Lincolnshire County Council"},"East Midlands and the Humber"]
[null,null,null,null,null,null,null,null,null,null,null,null,null,null,121860,"Calday Grange Grammar School","2013-01-01","Wirral Metropolitan Borough Council",{"$f":"VLOOKUP(R698,'LA CPID Look up'!$A$3:$C$153,2,FALSE)","v":"Wirral Metropolitan Borough Council"},"Lancashire and West Yorkshire"]
[null,null,null,null,null,null,null,null,null,null,null,null,null,null,120254,"Caldew School","2011-08-01","Cumbria County Council",{"$f":"VLOOKUP(R699,'LA CPID Look up'!$A$3:$C$153,2,FALSE)","v":"Cumbria County Council"},"North of England"]
[null,null,null,null,null,null,null,null,null,null,null,null,null,null,123882,"Caldicotes Primary Academy","2013-04-01","Middlesbrough Council",{"$f":"VLOOKUP(R700,'LA CPID Look up'!$A$3:$C$153,2,FALSE)","v":"Middlesbrough Council"},"North of England"]
[null,null,null,null,null,null,null,null,null,null,null,null,null,null,131465,"Callicroft Primary School","2015-10-01","Wakefield Council",{"$f":"VLOOKUP(R701,'LA CPID Look up'!$A$3:$C$153,2,FALSE)","v":"Wakefield City Council"},"Lancashire and West Yorkshire"]
[null,null,null,null,null,null,null,null,null,null,null,null,null,null,119608,"Callington Community College","2011-04-01","Cornwall Council",{"$f":"VLOOKUP(R702,'LA CPID Look up'!$A$3:$C$153,2,FALSE)","v":"Cornwall Unitary Authority"},"South-West England"]
[null,null,null,null,null,null,null,null,null,null,null,null,null,null,129568,"Callington Primary School","2014-02-01","Cornwall Council",{"$f":"VLOOKUP(R703,'LA CPID Look up'!$A$3:$C$153,2,FALSE)","v":"Cornwall Unitary Authority"},"South-West England"]
[null,null,null,null,null,null,null,null,null,null,null,null,null,null,130313,"Calthorpe Teaching Academy","2014-09-01","Birmingham City Council",{"$f":"VLOOKUP(R704,'LA CPID Look up'!$A$3:$C$153,2,FALSE)","v":"Birmingham City Council"},"West Midlands"]
[null,null,null,null,null,null,null,null,null,null,null,null,null,null,120328,"Caludon Castle School","2013-02-01","Coventry City Council",{"$f":"VLOOKUP(R705,'LA CPID Look up'!$A$3:$C$153,2,FALSE)","v":"Coventry City Council"},"West Midlands"]
[null,null,null,null,null,null,null,null,null,null,null,null,null,null,119596,"Camborne Science and International Academy","2011-04-01","Cornwall Council",{"$f":"VLOOKUP(R706,'LA CPID Look up'!$A$3:$C$153,2,FALSE)","v":"Cornwall Unitary Authority"},"South-West England"]
[null,null,null,null,null,null,null,null,null,null,null,null,null,null,123295,"Cambourne Village College","2013-09-01","Cambridgeshire County Council",{"$f":"VLOOKUP(R707,'LA CPID Look up'!$A$3:$C$153,2,FALSE)","v":"Cambridgeshire County Council"},"East of England and North-East London"]
[null,null,null,null,null,null,null,null,null,null,null,null,null,null,120437,"Cambridge Park Academy","2011-09-01","North East Lincolnshire Council",{"$f":"VLOOKUP(R708,'LA CPID Look up'!$A$3:$C$153,2,FALSE)","v":"North East Lincolnshire Council"},"East Midlands and the Humber"]
[null,null,null,null,null,null,null,null,null,null,null,null,null,null,120347,"Campion School - Leamington Spa","2012-01-01","Warwickshire County Council",{"$f":"VLOOKUP(R709,'LA CPID Look up'!$A$3:$C$153,2,FALSE)","v":"Warwickshire County Council"},"West Midlands"]
[null,null,null,null,null,null,null,null,null,null,null,null,null,null,120087,"Campion School - Northampton","2011-08-01","Northamptonshire County Council",{"$f":"VLOOKUP(R710,'LA CPID Look up'!$A$3:$C$153,2,FALSE)","v":"Northamptonshire County Council"},"East of England and North-East London"]
[null,null,null,null,null,null,null,null,null,null,null,null,null,null,120040,"Campion School, The - Hornchurch","2011-08-01","Havering London Borough Council",{"$f":"VLOOKUP(R711,'LA CPID Look up'!$A$3:$C$153,2,FALSE)","v":"Havering London Borough Council"},"East of England and North-East London"]
[null,null,null,null,null,null,null,null,null,null,null,null,null,null,120489,"Campsmount (A Co-Operative Academy)","2012-05-01","Doncaster Metropolitan Borough Council",{"$f":"VLOOKUP(R712,'LA CPID Look up'!$A$3:$C$153,2,FALSE)","v":"Doncaster Metropolitan Borough Council"},"East Midlands and the Humber"]
[null,null,null,null,null,null,null,null,null,null,null,null,null,null,120494,"Cams Hill School","2011-10-01","Hampshire County Council",{"$f":"VLOOKUP(R713,'LA CPID Look up'!$A$3:$C$153,2,FALSE)","v":"Hampshire County Council"},"South-East England and South London"]
[null,null,null,null,null,null,null,null,null,null,null,null,null,null,120467,"Canary Wharf College","2011-09-01","Tower Hamlets London Borough Council",{"$f":"VLOOKUP(R714,'LA CPID Look up'!$A$3:$C$153,2,FALSE)","v":"Tower Hamlets London Borough Council"},"East of England and North-East London"]
[null,null,null,null,null,null,null,null,null,null,null,null,null,null,130488,"Canary Wharf College 2","2014-09-01","Tower Hamlets London Borough Council",{"$f":"VLOOKUP(R715,'LA CPID Look up'!$A$3:$C$153,2,FALSE)","v":"Tower Hamlets London Borough Council"},"East of England and North-East London"]
[null,null,null,null,null,null,null,null,null,null,null,null,null,null,131378,"Canford Heath Infant School","2015-04-01","Poole Borough Council",{"$f":"VLOOKUP(R716,'LA CPID Look up'!$A$3:$C$153,2,FALSE)","v":"Poole (Borough of)"},"South-West England"]
[null,null,null,null,null,null,null,null,null,null,null,null,null,null,130871,"Canford Heath Junior School","2015-04-01","Poole Borough Council",{"$f":"VLOOKUP(R717,'LA CPID Look up'!$A$3:$C$153,2,FALSE)","v":"Poole (Borough of)"},"South-West England"]
[null,null,null,null,null,null,null,null,null,null,null,null,null,null,124559,"Canklow Woods Primary School","2013-09-01","Rotherham Metropolitan Borough Council",{"$f":"VLOOKUP(R718,'LA CPID Look up'!$A$3:$C$153,2,FALSE)","v":"Rotherham Borough Council"},"East Midlands and the Humber"]
[null,null,null,null,null,null,null,null,null,null,null,null,null,null,122279,"Cann Hall Primary School","2012-11-01","Essex County Council",{"$f":"VLOOKUP(R719,'LA CPID Look up'!$A$3:$C$153,2,FALSE)","v":"Essex County Council"},"East of England and North-East London"]
[null,null,null,null,null,null,null,null,null,null,null,null,null,null,120423,"Cannock Chase High School","2011-09-01","Staffordshire County Council",{"$f":"VLOOKUP(R720,'LA CPID Look up'!$A$3:$C$153,2,FALSE)","v":"Staffordshire County Council"},"West Midlands"]
[null,null,null,null,null,null,null,null,null,null,null,null,null,null,130762,"Canon Peter Hall CofE Primary School, The","2014-07-01","North East Lincolnshire Council",{"$f":"VLOOKUP(R721,'LA CPID Look up'!$A$3:$C$153,2,FALSE)","v":"North East Lincolnshire Council"},"East Midlands and the Humber"]
[null,null,null,null,null,null,null,null,null,null,null,null,null,null,121115,"Canon Pyon CofE Primary School","2013-02-01","Herefordshire Council",{"$f":"VLOOKUP(R722,'LA CPID Look up'!$A$3:$C$153,2,FALSE)","v":"Herefordshire Council"},"West Midlands"]
[null,null,null,null,null,null,null,null,null,null,null,null,null,null,132374,"Canon Sharples Church of England Primary School and Nursery","2015-07-01","Wigan Metropolitan Borough Council",{"$f":"VLOOKUP(R723,'LA CPID Look up'!$A$3:$C$153,2,FALSE)","v":"Wigan Metropolitan Borough Council"},"Lancashire and West Yorkshire"]
[null,null,null,null,null,null,null,null,null,null,null,null,null,null,120199,"Canons High School","2011-08-01","Harrow London Borough Council",{"$f":"VLOOKUP(R724,'LA CPID Look up'!$A$3:$C$153,2,FALSE)","v":"Harrow London Borough Council"},"East of England and North-East London"]
[null,null,null,null,null,null,null,null,null,null,null,null,null,null,119281,"Canterbury Academy, The","2010-10-01","Kent County Council",{"$f":"VLOOKUP(R725,'LA CPID Look up'!$A$3:$C$153,2,FALSE)","v":"Kent County Council"},"South-East England and South London"]
[null,null,null,null,null,null,null,null,null,null,null,null,null,null,119282,"Canterbury Primary School, The","2010-10-01","Kent County Council",{"$f":"VLOOKUP(R726,'LA CPID Look up'!$A$3:$C$153,2,FALSE)","v":"Kent County Council"},"South-East England and South London"]
[null,null,null,null,null,null,null,null,null,null,null,null,null,null,118386,"Capital City Academy","2003-09-01","Brent London Borough Council",{"$f":"VLOOKUP(R727,'LA CPID Look up'!$A$3:$C$153,2,FALSE)","v":"Brent London Borough Council"},"South-Central England and North-West London"]
[null,null,null,null,null,null,null,null,null,null,null,null,null,null,124187,"Captains Close Primary School","2013-07-01","Leicestershire County Council",{"$f":"VLOOKUP(R728,'LA CPID Look up'!$A$3:$C$153,2,FALSE)","v":"Leicestershire County Council"},"East Midlands and the Humber"]
[null,null,null,null,null,null,null,null,null,null,null,null,null,null,131209,"Carclaze Community Primary School","2015-02-01","Cornwall Council",{"$f":"VLOOKUP(R729,'LA CPID Look up'!$A$3:$C$153,2,FALSE)","v":"Cornwall Unitary Authority"},"South-West England"]
[null,null,null,null,null,null,null,null,null,null,null,null,null,null,120889,"Cardinal Hume Catholic School","2012-02-01","Gateshead Council",{"$f":"VLOOKUP(R730,'LA CPID Look up'!$A$3:$C$153,2,FALSE)","v":"Gateshead Council"},"North of England"]
[null,null,null,null,null,null,null,null,null,null,null,null,null,null,132426,"Cardinal Newman Catholic School","2015-09-01","Luton Borough Council",{"$f":"VLOOKUP(R731,'LA CPID Look up'!$A$3:$C$153,2,FALSE)","v":"Luton Borough Council"},"East of England and North-East London"]
[null,null,null,null,null,null,null,null,null,null,null,null,null,null,132002,"Cardinal Vaughan Memorial RC School, The","2015-04-01","Royal Borough of Kensington and Chelsea Council",{"$f":"VLOOKUP(R732,'LA CPID Look up'!$A$3:$C$153,2,FALSE)","v":"Kensington and Chelsea Council (Royal Borough of)"},"East of England and North-East London"]
[null,null,null,null,null,null,null,null,null,null,null,null,null,null,132319,"Cardinal Wiseman Catholic School and Language College","2015-08-01","Coventry City Council",{"$f":"VLOOKUP(R733,'LA CPID Look up'!$A$3:$C$153,2,FALSE)","v":"Coventry City Council"},"West Midlands"]
[null,null,null,null,null,null,null,null,null,null,null,null,null,null,123956,"Carew Academy","2013-09-01","Sutton London Borough Council",{"$f":"VLOOKUP(R734,'LA CPID Look up'!$A$3:$C$153,2,FALSE)","v":"Sutton London Borough Council"},"South-East England and South London"]
[null,null,null,null,null,null,null,null,null,null,null,null,null,null,123252,"Carleton Community High School","2013-04-01","Wakefield Council",{"$f":"VLOOKUP(R735,'LA CPID Look up'!$A$3:$C$153,2,FALSE)","v":"Wakefield City Council"},"Lancashire and West Yorkshire"]
[null,null,null,null,null,null,null,null,null,null,null,null,null,null,120085,"Carlton Academy","2011-09-01","Nottinghamshire County Council",{"$f":"VLOOKUP(R736,'LA CPID Look up'!$A$3:$C$153,2,FALSE)","v":"Nottinghamshire County Council"},"East Midlands and the Humber"]
[null,null,null,null,null,null,null,null,null,null,null,null,null,null,119542,"Carlton Le Willows Academy","2011-04-01","Nottinghamshire County Council",{"$f":"VLOOKUP(R737,'LA CPID Look up'!$A$3:$C$153,2,FALSE)","v":"Nottinghamshire County Council"},"East Midlands and the Humber"]
[null,null,null,null,null,null,null,null,null,null,null,null,null,null,122772,"Carlton Primary Academy","2012-12-01","Barnsley Metropolitan Borough Council",{"$f":"VLOOKUP(R738,'LA CPID Look up'!$A$3:$C$153,2,FALSE)","v":"Barnsley Metropolitan Borough Council"},"East Midlands and the Humber"]
[null,null,null,null,null,null,null,null,null,null,null,null,null,null,121234,"Carlton Road Academy","2012-09-01","Lincolnshire County Council",{"$f":"VLOOKUP(R739,'LA CPID Look up'!$A$3:$C$153,2,FALSE)","v":"Lincolnshire County Council"},"East Midlands and the Humber"]
[null,null,null,null,null,null,null,null,null,null,null,null,null,null,120603,"Carmel College","2011-11-01","Darlington Borough Council",{"$f":"VLOOKUP(R740,'LA CPID Look up'!$A$3:$C$153,2,FALSE)","v":"Darlington Borough Council"},"North of England"]
[null,null,null,null,null,null,null,null,null,null,null,null,null,null,122114,"Carmountside Primary Academy","2013-07-01","Stoke-on-Trent City Council",{"$f":"VLOOKUP(R741,'LA CPID Look up'!$A$3:$C$153,2,FALSE)","v":"Stoke-on-Trent Unitary Authority"},"West Midlands"]
[null,null,null,null,null,null,null,null,null,null,null,null,null,null,120089,"Caroline Chisholm School","2011-08-01","Northamptonshire County Council",{"$f":"VLOOKUP(R742,'LA CPID Look up'!$A$3:$C$153,2,FALSE)","v":"Northamptonshire County Council"},"East of England and North-East London"]
[null,null,null,null,null,null,null,null,null,null,null,null,null,null,129591,"Carr Lodge Academy","2015-09-01","Doncaster Metropolitan Borough Council",{"$f":"VLOOKUP(R743,'LA CPID Look up'!$A$3:$C$153,2,FALSE)","v":"Doncaster Metropolitan Borough Council"},"East Midlands and the Humber"]
[null,null,null,null,null,null,null,null,null,null,null,null,null,null,122708,"Carradon PRU","2013-06-01","Cornwall Council",{"$f":"VLOOKUP(R744,'LA CPID Look up'!$A$3:$C$153,2,FALSE)","v":"Cornwall Unitary Authority"},"South-West England"]
[null,null,null,null,null,null,null,null,null,null,null,null,null,null,120213,"Carre's Grammar School","2011-08-01","Lincolnshire County Council",{"$f":"VLOOKUP(R745,'LA CPID Look up'!$A$3:$C$153,2,FALSE)","v":"Lincolnshire County Council"},"East Midlands and the Humber"]
[null,null,null,null,null,null,null,null,null,null,null,null,null,null,121198,"Carrfield Primary Academy","2012-09-01","Barnsley Metropolitan Borough Council",{"$f":"VLOOKUP(R746,'LA CPID Look up'!$A$3:$C$153,2,FALSE)","v":"Barnsley Metropolitan Borough Council"},"East Midlands and the Humber"]
[null,null,null,null,null,null,null,null,null,null,null,null,null,null,119760,"Carshalton Boys Sports College","2011-06-01","Sutton London Borough Council",{"$f":"VLOOKUP(R747,'LA CPID Look up'!$A$3:$C$153,2,FALSE)","v":"Sutton London Borough Council"},"South-East England and South London"]
[null,null,null,null,null,null,null,null,null,null,null,null,null,null,119761,"Carshalton High School for Girls","2011-06-01","Sutton London Borough Council",{"$f":"VLOOKUP(R748,'LA CPID Look up'!$A$3:$C$153,2,FALSE)","v":"Sutton London Borough Council"},"South-East England and South London"]
[null,null,null,null,null,null,null,null,null,null,null,null,null,null,122880,"Carter Community School","2013-04-01","Poole Borough Council",{"$f":"VLOOKUP(R749,'LA CPID Look up'!$A$3:$C$153,2,FALSE)","v":"Poole (Borough of)"},"South-West England"]
[null,null,null,null,null,null,null,null,null,null,null,null,null,null,120410,"Cartmel Priory CofE School","2011-09-01","Cumbria County Council",{"$f":"VLOOKUP(R750,'LA CPID Look up'!$A$3:$C$153,2,FALSE)","v":"Cumbria County Council"},"North of England"]
[null,null,null,null,null,null,null,null,null,null,null,null,null,null,130734,"Carwarden House Community School","2014-08-01","Surrey County Council",{"$f":"VLOOKUP(R751,'LA CPID Look up'!$A$3:$C$153,2,FALSE)","v":"Surrey County Council"},"South-East England and South London"]
[null,null,null,null,null,null,null,null,null,null,null,null,null,null,132979,"Castercliff Primary School","2015-09-01","Lancashire County Council",{"$f":"VLOOKUP(R752,'LA CPID Look up'!$A$3:$C$153,2,FALSE)","v":"Lancashire County Council"},"Lancashire and West Yorkshire"]
[null,null,null,null,null,null,null,null,null,null,null,null,null,null,120405,"Casterton Business & Enterprise College","2011-09-01","Rutland County Council",{"$f":"VLOOKUP(R753,'LA CPID Look up'!$A$3:$C$153,2,FALSE)","v":"Rutland County Council"},"East Midlands and the Humber"]
[null,null,null,null,null,null,null,null,null,null,null,null,null,null,121987,"Castle Academy - Doncaster","2012-09-01","Doncaster Metropolitan Borough Council",{"$f":"VLOOKUP(R754,'LA CPID Look up'!$A$3:$C$153,2,FALSE)","v":"Doncaster Metropolitan Borough Council"},"East Midlands and the Humber"]
[null,null,null,null,null,null,null,null,null,null,null,null,null,null,127821,"Castle Academy - Northampton","2014-01-01","Northamptonshire County Council",{"$f":"VLOOKUP(R755,'LA CPID Look up'!$A$3:$C$153,2,FALSE)","v":"Northamptonshire County Council"},"East of England and North-East London"]
[null,null,null,null,null,null,null,null,null,null,null,null,null,null,133456,"Castle Acre CofE VC Primary School","2016-03-01","Norfolk County Council",{"$f":"VLOOKUP(R756,'LA CPID Look up'!$A$3:$C$153,2,FALSE)","v":"Norfolk County Council"},"East of England and North-East London"]
[null,null,null,null,null,null,null,null,null,null,null,null,null,null,120361,"Castle Carrock School","2011-11-01","Cumbria County Council",{"$f":"VLOOKUP(R757,'LA CPID Look up'!$A$3:$C$153,2,FALSE)","v":"Cumbria County Council"},"North of England"]
[null,null,null,null,null,null,null,null,null,null,null,null,null,null,119280,"Castle Community College","2010-10-01","Kent County Council",{"$f":"VLOOKUP(R758,'LA CPID Look up'!$A$3:$C$153,2,FALSE)","v":"Kent County Council"},"South-East England and South London"]
[null,null,null,null,null,null,null,null,null,null,null,null,null,null,122372,"Castle Donington College","2012-10-01","Leicestershire County Council",{"$f":"VLOOKUP(R759,'LA CPID Look up'!$A$3:$C$153,2,FALSE)","v":"Leicestershire County Council"},"East Midlands and the Humber"]
[null,null,null,null,null,null,null,null,null,null,null,null,null,null,120438,"Castle Hall Academy - M irfield","2011-09-01","Kirklees Metropolitan Council",{"$f":"VLOOKUP(R760,'LA CPID Look up'!$A$3:$C$153,2,FALSE)","v":"Kirklees Metropolitan Council"},"Lancashire and West Yorkshire"]
[null,null,null,null,null,null,null,null,null,null,null,null,null,null,124668,"Castle Hill Academy - Croydon","2013-11-01","Croydon London Borough Council",{"$f":"VLOOKUP(R761,'LA CPID Look up'!$A$3:$C$153,2,FALSE)","v":"Croydon London Borough Council"},"South-East England and South London"]
[null,null,null,null,null,null,null,null,null,null,null,null,null,null,131379,"Castle Hill Infant School - Ipswich","2014-12-01","Suffolk County Council",{"$f":"VLOOKUP(R762,'LA CPID Look up'!$A$3:$C$153,2,FALSE)","v":"Suffolk County Council"},"East of England and North-East London"]
[null,null,null,null,null,null,null,null,null,null,null,null,null,null,131363,"Castle Hill Junior School - Ipswich","2014-12-01","Suffolk County Council",{"$f":"VLOOKUP(R763,'LA CPID Look up'!$A$3:$C$153,2,FALSE)","v":"Suffolk County Council"},"East of England and North-East London"]
[null,null,null,null,null,null,null,null,null,null,null,null,null,null,131690,"Castle Hill Primary School - Chessington","2015-03-01","Royal Borough of Kingston upon Thames Council",{"$f":"VLOOKUP(R764,'LA CPID Look up'!$A$3:$C$153,2,FALSE)","v":"Kingston upon Thames Council (Royal Borough of)"},"South-East England and South London"]
[null,null,null,null,null,null,null,null,null,null,null,null,null,null,120815,"Castle Manor Academy","2012-06-01","Suffolk County Council",{"$f":"VLOOKUP(R765,'LA CPID Look up'!$A$3:$C$153,2,FALSE)","v":"Suffolk County Council"},"East of England and North-East London"]
[null,null,null,null,null,null,null,null,null,null,null,null,null,null,130366,"Castle Mead School","2014-09-01","Wiltshire Council",{"$f":"VLOOKUP(R766,'LA CPID Look up'!$A$3:$C$153,2,FALSE)","v":"Wiltshire Unitary Authority"},"South-West England"]
[null,null,null,null,null,null,null,null,null,null,null,null,null,null,131420,"Castle Primary School - Stoke-on-Trent","2015-03-01","Staffordshire County Council",{"$f":"VLOOKUP(R767,'LA CPID Look up'!$A$3:$C$153,2,FALSE)","v":"Staffordshire County Council"},"West Midlands"]
[null,null,null,null,null,null,null,null,null,null,null,null,null,null,131733,"Castle Primary School - Stoke-Sub-Hamdon","2015-03-01","Somerset County Council",{"$f":"VLOOKUP(R768,'LA CPID Look up'!$A$3:$C$153,2,FALSE)","v":"Somerset County Council"},"South-West England"]
[null,null,null,null,null,null,null,null,null,null,null,null,null,null,122135,"Castle Rock High School","2012-08-01","Leicestershire County Council",{"$f":"VLOOKUP(R769,'LA CPID Look up'!$A$3:$C$153,2,FALSE)","v":"Leicestershire County Council"},"East Midlands and the Humber"]
[null,null,null,null,null,null,null,null,null,null,null,null,null,null,119916,"Castle School, The - Taunton","2011-07-01","Somerset County Council",{"$f":"VLOOKUP(R770,'LA CPID Look up'!$A$3:$C$153,2,FALSE)","v":"Somerset County Council"},"South-West England"]
[null,null,null,null,null,null,null,null,null,null,null,null,null,null,123062,"Castle School, The - Thornbury","2013-03-01","South Gloucestershire Council",{"$f":"VLOOKUP(R771,'LA CPID Look up'!$A$3:$C$153,2,FALSE)","v":"South Gloucestershire Council"},"South-West England"]
[null,null,null,null,null,null,null,null,null,null,null,null,null,null,119127,"Castle View Enterprise Academy","2009-09-01","Sunderland City Council",{"$f":"VLOOKUP(R772,'LA CPID Look up'!$A$3:$C$153,2,FALSE)","v":"Sunderland City Metropolitan Borough Council"},"North of England"]
[null,null,null,null,null,null,null,null,null,null,null,null,null,null,131059,"Castle View School - Canvey Island","2014-10-01","Essex County Council",{"$f":"VLOOKUP(R773,'LA CPID Look up'!$A$3:$C$153,2,FALSE)","v":"Essex County Council"},"East of England and North-East London"]
[null,null,null,null,null,null,null,null,null,null,null,null,null,null,130157,"Castle Wood Academy","2015-09-01","Lincolnshire County Council",{"$f":"VLOOKUP(R774,'LA CPID Look up'!$A$3:$C$153,2,FALSE)","v":"Lincolnshire County Council"},"East Midlands and the Humber"]
[null,null,null,null,null,null,null,null,null,null,null,null,null,null,127709,"Castlecombe Primary School","2014-01-01","Bromley London Borough Council",{"$f":"VLOOKUP(R775,'LA CPID Look up'!$A$3:$C$153,2,FALSE)","v":"Bromley London Borough Council"},"South-East England and South London"]
[null,null,null,null,null,null,null,null,null,null,null,null,null,null,131448,"Castledon School","2015-03-01","Essex County Council",{"$f":"VLOOKUP(R776,'LA CPID Look up'!$A$3:$C$153,2,FALSE)","v":"Essex County Council"},"East of England and North-East London"]
[null,null,null,null,null,null,null,null,null,null,null,null,null,null,119602,"Castleford Academy","2011-04-01","Wakefield Council",{"$f":"VLOOKUP(R777,'LA CPID Look up'!$A$3:$C$153,2,FALSE)","v":"Wakefield City Council"},"Lancashire and West Yorkshire"]
[null,null,null,null,null,null,null,null,null,null,null,null,null,null,124999,"Castleford Glasshoughton Infant School","2013-11-01","Wakefield Council",{"$f":"VLOOKUP(R778,'LA CPID Look up'!$A$3:$C$153,2,FALSE)","v":"Wakefield City Council"},"Lancashire and West Yorkshire"]
[null,null,null,null,null,null,null,null,null,null,null,null,null,null,130761,"Castleford Oyster Park Primary School","2014-08-01","Wakefield Council",{"$f":"VLOOKUP(R779,'LA CPID Look up'!$A$3:$C$153,2,FALSE)","v":"Wakefield City Council"},"Lancashire and West Yorkshire"]
[null,null,null,null,null,null,null,null,null,null,null,null,null,null,122958,"Castleford Park Junior Academy","2013-03-01","Wakefield Council",{"$f":"VLOOKUP(R780,'LA CPID Look up'!$A$3:$C$153,2,FALSE)","v":"Wakefield City Council"},"Lancashire and West Yorkshire"]
[null,null,null,null,null,null,null,null,null,null,null,null,null,null,130890,"Castleford Three Lane Ends Academy","2014-09-01","Wakefield Council",{"$f":"VLOOKUP(R781,'LA CPID Look up'!$A$3:$C$153,2,FALSE)","v":"Wakefield City Council"},"Lancashire and West Yorkshire"]
[null,null,null,null,null,null,null,null,null,null,null,null,null,null,123177,"Castlegreen Community School","2014-07-01","Sunderland City Council",{"$f":"VLOOKUP(R782,'LA CPID Look up'!$A$3:$C$153,2,FALSE)","v":"Sunderland City Metropolitan Borough Council"},"North of England"]
[null,null,null,null,null,null,null,null,null,null,null,null,null,null,122340,"Castleview Primary School","2012-09-01","Slough Borough Council",{"$f":"VLOOKUP(R783,'LA CPID Look up'!$A$3:$C$153,2,FALSE)","v":"Slough Borough Council"},"East of England and North-East London"]
[null,null,null,null,null,null,null,null,null,null,null,null,null,null,124489,"Catcote School","2013-08-01","Hartlepool Borough Council",{"$f":"VLOOKUP(R784,'LA CPID Look up'!$A$3:$C$153,2,FALSE)","v":"Hartlepool Borough Council"},"North of England"]
[null,null,null,null,null,null,null,null,null,null,null,null,null,null,120756,"Cathedral Academy - Wakefield","2012-01-01","Wakefield Council",{"$f":"VLOOKUP(R785,'LA CPID Look up'!$A$3:$C$153,2,FALSE)","v":"Wakefield City Council"},"Lancashire and West Yorkshire"]
[null,null,null,null,null,null,null,null,null,null,null,null,null,null,123296,"Cathedral Primary School","2013-09-01","Bristol City Council",{"$f":"VLOOKUP(R786,'LA CPID Look up'!$A$3:$C$153,2,FALSE)","v":"Bristol City Council"},"South-West England"]
[null,null,null,null,null,null,null,null,null,null,null,null,null,null,130107,"Cathedral School of St Mary, The","2014-04-01","Plymouth City Council",{"$f":"VLOOKUP(R787,'LA CPID Look up'!$A$3:$C$153,2,FALSE)","v":"Plymouth City Council"},"South-West England"]
[null,null,null,null,null,null,null,null,null,null,null,null,null,null,123813,"Catholic High School, Chester, The","2013-03-01","Cheshire West and Chester Council",{"$f":"VLOOKUP(R788,'LA CPID Look up'!$A$3:$C$153,2,FALSE)","v":"Cheshire West and Chester Unitary Authority"},"West Midlands"]
[null,null,null,null,null,null,null,null,null,null,null,null,null,null,119527,"Catmose College","2011-04-01","Rutland County Council",{"$f":"VLOOKUP(R789,'LA CPID Look up'!$A$3:$C$153,2,FALSE)","v":"Rutland County Council"},"East Midlands and the Humber"]
[null,null,null,null,null,null,null,null,null,null,null,null,null,null,121113,"Catmose Primary","2012-05-01","Rutland County Council",{"$f":"VLOOKUP(R790,'LA CPID Look up'!$A$3:$C$153,2,FALSE)","v":"Rutland County Council"},"East Midlands and the Humber"]
[null,null,null,null,null,null,null,null,null,null,null,null,null,null,125223,"Cavendish High School - Runcorn","2014-02-01","Halton Borough Council",{"$f":"VLOOKUP(R791,'LA CPID Look up'!$A$3:$C$153,2,FALSE)","v":"Halton Borough Council"},"Lancashire and West Yorkshire"]
[null,null,null,null,null,null,null,null,null,null,null,null,null,null,122177,"Cavendish School, The - Eastbourne","2012-08-01","East Sussex County Council",{"$f":"VLOOKUP(R792,'LA CPID Look up'!$A$3:$C$153,2,FALSE)","v":"East Sussex County Council"},"South-East England and South London"]
[null,null,null,null,null,null,null,null,null,null,null,null,null,null,123212,"Cawston Grange Primary School","2013-09-01","Warwickshire County Council",{"$f":"VLOOKUP(R793,'LA CPID Look up'!$A$3:$C$153,2,FALSE)","v":"Warwickshire County Council"},"West Midlands"]
[null,null,null,null,null,null,null,null,null,null,null,null,null,null,122728,"CE Academy, The","2012-11-01","Northamptonshire County Council",{"$f":"VLOOKUP(R794,'LA CPID Look up'!$A$3:$C$153,2,FALSE)","v":"Northamptonshire County Council"},"East of England and North-East London"]
[null,null,null,null,null,null,null,null,null,null,null,null,null,null,132375,"Cecil Jones College","2015-09-01","Southend-on-Sea Borough Council",{"$f":"VLOOKUP(R795,'LA CPID Look up'!$A$3:$C$153,2,FALSE)","v":"Southend-on-Sea Borough Council"},"East of England and North-East London"]
[null,null,null,null,null,null,null,null,null,null,null,null,null,null,120927,"Cedar Mount Academy","2012-08-01","Manchester City Council",{"$f":"VLOOKUP(R796,'LA CPID Look up'!$A$3:$C$153,2,FALSE)","v":"Manchester City Council"},"Lancashire and West Yorkshire"]
[null,null,null,null,null,null,null,null,null,null,null,null,null,null,120686,"Cedar Road Primary School","2012-06-01","Northamptonshire County Council",{"$f":"VLOOKUP(R797,'LA CPID Look up'!$A$3:$C$153,2,FALSE)","v":"Northamptonshire County Council"},"East of England and North-East London"]
[null,null,null,null,null,null,null,null,null,null,null,null,null,null,122702,"Cedars Academy - Gateshead","2012-09-01","Gateshead Council",{"$f":"VLOOKUP(R798,'LA CPID Look up'!$A$3:$C$153,2,FALSE)","v":"Gateshead Council"},"North of England"]
[null,null,null,null,null,null,null,null,null,null,null,null,null,null,130329,"Cedars Academy, The - Birstall","2014-04-01","Leicestershire County Council",{"$f":"VLOOKUP(R799,'LA CPID Look up'!$A$3:$C$153,2,FALSE)","v":"Leicestershire County Council"},"East Midlands and the Humber"]
[null,null,null,null,null,null,null,null,null,null,null,null,null,null,120411,"Cedars Upper School - Leighton Buzzard","2011-09-01","Central Bedfordshire Council",{"$f":"VLOOKUP(R800,'LA CPID Look up'!$A$3:$C$153,2,FALSE)","v":"Central Bedfordshire Unitary Authority"},"South-Central England and North-West London"]
[null,null,null,null,null,null,null,null,null,null,null,null,null,null,122156,"Central Bedfordshire UTC","2012-09-01","Central Bedfordshire Council",{"$f":"VLOOKUP(R801,'LA CPID Look up'!$A$3:$C$153,2,FALSE)","v":"Central Bedfordshire Unitary Authority"},"South-Central England and North-West London"]
[null,null,null,null,null,null,null,null,null,null,null,null,null,null,120340,"Centre School, The","2011-09-01","Cambridgeshire County Council",{"$f":"VLOOKUP(R802,'LA CPID Look up'!$A$3:$C$153,2,FALSE)","v":"Cambridgeshire County Council"},"East of England and North-East London"]
[null,null,null,null,null,null,null,null,null,null,null,null,null,null,123887,"Chacombe CEVA Primary Academy","2013-09-01","Northamptonshire County Council",{"$f":"VLOOKUP(R803,'LA CPID Look up'!$A$3:$C$153,2,FALSE)","v":"Northamptonshire County Council"},"East of England and North-East London"]
[null,null,null,null,null,null,null,null,null,null,null,null,null,null,120268,"Chadsmead Primary Academy","2011-08-01","Staffordshire County Council",{"$f":"VLOOKUP(R804,'LA CPID Look up'!$A$3:$C$153,2,FALSE)","v":"Staffordshire County Council"},"West Midlands"]
[null,null,null,null,null,null,null,null,null,null,null,null,null,null,119269,"Chadwell Heath Academy","2010-09-01","Redbridge London Borough Council",{"$f":"VLOOKUP(R805,'LA CPID Look up'!$A$3:$C$153,2,FALSE)","v":"Redbridge London Borough Council"},"East of England and North-East London"]
[null,null,null,null,null,null,null,null,null,null,null,null,null,null,124495,"Chafford School, The ","2013-11-01","Havering London Borough Council",{"$f":"VLOOKUP(R806,'LA CPID Look up'!$A$3:$C$153,2,FALSE)","v":"Havering London Borough Council"},"East of England and North-East London"]
[null,null,null,null,null,null,null,null,null,null,null,null,null,null,119723,"Chalfont St Peter CofE Academy","2011-05-01","Buckinghamshire County Council",{"$f":"VLOOKUP(R807,'LA CPID Look up'!$A$3:$C$153,2,FALSE)","v":"Buckinghamshire County Council"},"South-Central England and North-West London"]
[null,null,null,null,null,null,null,null,null,null,null,null,null,null,120924,"Chalfont Valley E-ACT Primary Academy","2012-09-01","Buckinghamshire County Council",{"$f":"VLOOKUP(R808,'LA CPID Look up'!$A$3:$C$153,2,FALSE)","v":"Buckinghamshire County Council"},"South-Central England and North-West London"]
[null,null,null,null,null,null,null,null,null,null,null,null,null,null,120215,"Chalfonts Community College, The","2011-08-01","Buckinghamshire County Council",{"$f":"VLOOKUP(R809,'LA CPID Look up'!$A$3:$C$153,2,FALSE)","v":"Buckinghamshire County Council"},"South-Central England and North-West London"]
[null,null,null,null,null,null,null,null,null,null,null,null,null,null,119648,"Challney High School for Boys","2011-04-01","Luton Borough Council",{"$f":"VLOOKUP(R810,'LA CPID Look up'!$A$3:$C$153,2,FALSE)","v":"Luton Borough Council"},"East of England and North-East London"]
[null,null,null,null,null,null,null,null,null,null,null,null,null,null,122120,"Chandlers Ridge Academy","2012-09-01","Middlesbrough Council",{"$f":"VLOOKUP(R811,'LA CPID Look up'!$A$3:$C$153,2,FALSE)","v":"Middlesbrough Council"},"North of England"]
[null,null,null,null,null,null,null,null,null,null,null,null,null,null,132626,"Channeling Positivity","2015-09-01","Nottingham City Council",{"$f":"VLOOKUP(R812,'LA CPID Look up'!$A$3:$C$153,2,FALSE)","v":"Nottingham City Council"},"East Midlands and the Humber"]
[null,null,null,null,null,null,null,null,null,null,null,null,null,null,120958,"Chantry Academy","2013-02-01","Suffolk County Council",{"$f":"VLOOKUP(R813,'LA CPID Look up'!$A$3:$C$153,2,FALSE)","v":"Suffolk County Council"},"East of England and North-East London"]
[null,null,null,null,null,null,null,null,null,null,null,null,null,null,122685,"Chantry Community Academy - Gravesend","2013-06-01","Kent County Council",{"$f":"VLOOKUP(R814,'LA CPID Look up'!$A$3:$C$153,2,FALSE)","v":"Kent County Council"},"South-East England and South London"]
[null,null,null,null,null,null,null,null,null,null,null,null,null,null,122103,"Chantry Primary Academy - Luton","2012-08-01","Luton Borough Council",{"$f":"VLOOKUP(R815,'LA CPID Look up'!$A$3:$C$153,2,FALSE)","v":"Luton Borough Council"},"East of England and North-East London"]
[null,null,null,null,null,null,null,null,null,null,null,null,null,null,119897,"Chantry School, The - Worcester","2011-07-01","Worcestershire County Council",{"$f":"VLOOKUP(R816,'LA CPID Look up'!$A$3:$C$153,2,FALSE)","v":"Worcestershire County Council"},"West Midlands"]
[null,null,null,null,null,null,null,null,null,null,null,null,null,null,122882,"Chapel End Junior Academy","2013-04-01","Waltham Forest London Borough Council",{"$f":"VLOOKUP(R817,'LA CPID Look up'!$A$3:$C$153,2,FALSE)","v":"Waltham Forest London Borough Council"},"East of England and North-East London"]
[null,null,null,null,null,null,null,null,null,null,null,null,null,null,130489,"Chapeltown Academy","2014-09-01","Sheffield City Council",{"$f":"VLOOKUP(R818,'LA CPID Look up'!$A$3:$C$153,2,FALSE)","v":"Sheffield City Council"},"East Midlands and the Humber"]
[null,null,null,null,null,null,null,null,null,null,null,null,null,null,131463,"Charborough Road Primary School","2015-01-01","South Gloucestershire Council",{"$f":"VLOOKUP(R819,'LA CPID Look up'!$A$3:$C$153,2,FALSE)","v":"South Gloucestershire Council"},"South-West England"]
[null,null,null,null,null,null,null,null,null,null,null,null,null,null,124579,"Charfield Primary School","2013-09-01","South Gloucestershire Council",{"$f":"VLOOKUP(R820,'LA CPID Look up'!$A$3:$C$153,2,FALSE)","v":"South Gloucestershire Council"},"South-West England"]
[null,null,null,null,null,null,null,null,null,null,null,null,null,null,123087,"Charles Coddy Walker Academy, The","2013-01-01","Walsall Metropolitan Borough Council",{"$f":"VLOOKUP(R821,'LA CPID Look up'!$A$3:$C$153,2,FALSE)","v":"Walsall Metropolitan Borough Council"},"West Midlands"]
[null,null,null,null,null,null,null,null,null,null,null,null,null,null,119586,"Charles Darwin School","2011-04-01","Bromley London Borough Council",{"$f":"VLOOKUP(R822,'LA CPID Look up'!$A$3:$C$153,2,FALSE)","v":"Bromley London Borough Council"},"South-East England and South London"]
[null,null,null,null,null,null,null,null,null,null,null,null,null,null,119479,"Charles Read Academy","2011-02-01","Lincolnshire County Council",{"$f":"VLOOKUP(R823,'LA CPID Look up'!$A$3:$C$153,2,FALSE)","v":"Lincolnshire County Council"},"East Midlands and the Humber"]
[null,null,null,null,null,null,null,null,null,null,null,null,null,null,121954,"Charles Warren Academy","2012-09-01","Milton Keynes Council",{"$f":"VLOOKUP(R824,'LA CPID Look up'!$A$3:$C$153,2,FALSE)","v":"Milton Keynes Council"},"East of England and North-East London"]
[null,null,null,null,null,null,null,null,null,null,null,null,null,null,119799,"Charlestown Primary School","2011-06-01","Cornwall Council",{"$f":"VLOOKUP(R825,'LA CPID Look up'!$A$3:$C$153,2,FALSE)","v":"Cornwall Unitary Authority"},"South-West England"]
[null,null,null,null,null,null,null,null,null,null,null,null,null,null,131648,"Charlton Church of England Primary School","2015-03-01","Kent County Council",{"$f":"VLOOKUP(R826,'LA CPID Look up'!$A$3:$C$153,2,FALSE)","v":"Kent County Council"},"South-East England and South London"]
[null,null,null,null,null,null,null,null,null,null,null,null,null,null,119999,"Charlton Kings Infant School","2011-08-01","Gloucestershire County Council",{"$f":"VLOOKUP(R827,'LA CPID Look up'!$A$3:$C$153,2,FALSE)","v":"Gloucestershire County Council"},"South-West England"]
[null,null,null,null,null,null,null,null,null,null,null,null,null,null,120266,"Charlton Kings Junior School","2011-08-01","Gloucestershire County Council",{"$f":"VLOOKUP(R828,'LA CPID Look up'!$A$3:$C$153,2,FALSE)","v":"Gloucestershire County Council"},"South-West England"]
[null,null,null,null,null,null,null,null,null,null,null,null,null,null,122099,"Charlton Park Academy","2012-08-01","Greenwich London Borough Council",{"$f":"VLOOKUP(R829,'LA CPID Look up'!$A$3:$C$153,2,FALSE)","v":"Greenwich London Borough Council"},"South-East England and South London"]
[null,null,null,null,null,null,null,null,null,null,null,null,null,null,124203,"Charlton Primary School","2013-10-01","Oxfordshire County Council",{"$f":"VLOOKUP(R830,'LA CPID Look up'!$A$3:$C$153,2,FALSE)","v":"Oxfordshire County Council"},"East of England and North-East London"]
[null,null,null,null,null,null,null,null,null,null,null,null,null,null,131799,"Charnwood College (High)","2015-04-01","Leicestershire County Council",{"$f":"VLOOKUP(R831,'LA CPID Look up'!$A$3:$C$153,2,FALSE)","v":"Leicestershire County Council"},"East Midlands and the Humber"]
[null,null,null,null,null,null,null,null,null,null,null,null,null,null,114647,"Charnwood College (Upper)","2015-04-01","Leicestershire County Council",{"$f":"VLOOKUP(R832,'LA CPID Look up'!$A$3:$C$153,2,FALSE)","v":"Leicestershire County Council"},"East Midlands and the Humber"]
[null,null,null,null,null,null,null,null,null,null,null,null,null,null,119137,"Charter Academy - Portsmouth","2009-09-01","Portsmouth City Council",{"$f":"VLOOKUP(R833,'LA CPID Look up'!$A$3:$C$153,2,FALSE)","v":"Portsmouth City Council"},"South-East England and South London"]
[null,null,null,null,null,null,null,null,null,null,null,null,null,null,119271,"Charter School, The - Southwark","2010-09-06","Southwark London Borough Council",{"$f":"VLOOKUP(R834,'LA CPID Look up'!$A$3:$C$153,2,FALSE)","v":"Southwark London Borough Council"},"South-East England and South London"]
[null,null,null,null,null,null,null,null,null,null,null,null,null,null,120779,"Charters School - Windsor & Maidenhead","2012-10-01","Royal Borough of Windsor and Maidenhead",{"$f":"VLOOKUP(R835,'LA CPID Look up'!$A$3:$C$153,2,FALSE)","v":"Windsor and Maidenhead (Royal Borough of)"},"East of England and North-East London"]
[null,null,null,null,null,null,null,null,null,null,null,null,null,null,123176,"Charville Primary School","2013-05-01","Hillingdon London Borough Council",{"$f":"VLOOKUP(R836,'LA CPID Look up'!$A$3:$C$153,2,FALSE)","v":"Hillingdon London Borough Council"},"East of England and North-East London"]
[null,null,null,null,null,null,null,null,null,null,null,null,null,null,131778,"Chase High School","2015-04-01","Southend-on-Sea Borough Council",{"$f":"VLOOKUP(R837,'LA CPID Look up'!$A$3:$C$153,2,FALSE)","v":"Southend-on-Sea Borough Council"},"East of England and North-East London"]
[null,null,null,null,null,null,null,null,null,null,null,null,null,null,120628,"Chase, The","2011-11-01","Worcestershire County Council",{"$f":"VLOOKUP(R838,'LA CPID Look up'!$A$3:$C$153,2,FALSE)","v":"Worcestershire County Council"},"West Midlands"]
[null,null,null,null,null,null,null,null,null,null,null,null,null,null,119418,"Chatham & Clarendon Grammar School","2011-01-01","Kent County Council",{"$f":"VLOOKUP(R839,'LA CPID Look up'!$A$3:$C$153,2,FALSE)","v":"Kent County Council"},"South-East England and South London"]
[null,null,null,null,null,null,null,null,null,null,null,null,null,null,119601,"Chatham Grammar School for Boys","2011-04-01","Medway Council",{"$f":"VLOOKUP(R840,'LA CPID Look up'!$A$3:$C$153,2,FALSE)","v":"Medway Towns Unitary Authority (The)"},"South-East England and South London"]
[null,null,null,null,null,null,null,null,null,null,null,null,null,null,120429,"Chatham Grammar School for Girls","2011-09-01","Medway Council",{"$f":"VLOOKUP(R841,'LA CPID Look up'!$A$3:$C$153,2,FALSE)","v":"Medway Towns Unitary Authority (The)"},"South-East England and South London"]
[null,null,null,null,null,null,null,null,null,null,null,null,null,null,121879,"Chattenden Primary School","2012-07-01","Medway Council",{"$f":"VLOOKUP(R842,'LA CPID Look up'!$A$3:$C$153,2,FALSE)","v":"Medway Towns Unitary Authority (The)"},"South-East England and South London"]
[null,null,null,null,null,null,null,null,null,null,null,null,null,null,120928,"Chaucer School Academy","2012-09-01","Sheffield City Council",{"$f":"VLOOKUP(R843,'LA CPID Look up'!$A$3:$C$153,2,FALSE)","v":"Sheffield City Council"},"East Midlands and the Humber"]
[null,null,null,null,null,null,null,null,null,null,null,null,null,null,124062,"Chaulden Junior School","2013-05-01","Hertfordshire County Council",{"$f":"VLOOKUP(R844,'LA CPID Look up'!$A$3:$C$153,2,FALSE)","v":"Hertfordshire County Council"},"East of England and North-East London"]
[null,null,null,null,null,null,null,null,null,null,null,null,null,null,120090,"Chauncy School, The","2011-08-01","Hertfordshire County Council",{"$f":"VLOOKUP(R845,'LA CPID Look up'!$A$3:$C$153,2,FALSE)","v":"Hertfordshire County Council"},"East of England and North-East London"]
[null,null,null,null,null,null,null,null,null,null,null,null,null,null,119959,"Cheadle Academy, The","2011-08-01","Staffordshire County Council",{"$f":"VLOOKUP(R846,'LA CPID Look up'!$A$3:$C$153,2,FALSE)","v":"Staffordshire County Council"},"West Midlands"]
[null,null,null,null,null,null,null,null,null,null,null,null,null,null,120752,"Cheadle Hulme High School","2012-02-01","Stockport Metropolitan Borough Council",{"$f":"VLOOKUP(R847,'LA CPID Look up'!$A$3:$C$153,2,FALSE)","v":"Stockport Metropolitan Borough Council"},"Lancashire and West Yorkshire"]
[null,null,null,null,null,null,null,null,null,null,null,null,null,null,133097,"Cheam Common Junior Academy","2016-01-01","Sutton London Borough Council",{"$f":"VLOOKUP(R848,'LA CPID Look up'!$A$3:$C$153,2,FALSE)","v":"Sutton London Borough Council"},"South-East England and South London"]
[null,null,null,null,null,null,null,null,null,null,null,null,null,null,119775,"Cheam High School","2011-06-01","Sutton London Borough Council",{"$f":"VLOOKUP(R849,'LA CPID Look up'!$A$3:$C$153,2,FALSE)","v":"Sutton London Borough Council"},"South-East England and South London"]
[null,null,null,null,null,null,null,null,null,null,null,null,null,null,125010,"Cheam Park Farm Infants School","2013-10-01","Sutton London Borough Council",{"$f":"VLOOKUP(R850,'LA CPID Look up'!$A$3:$C$153,2,FALSE)","v":"Sutton London Borough Council"},"South-East England and South London"]
[null,null,null,null,null,null,null,null,null,null,null,null,null,null,119591,"Cheam Park Farm Junior School","2011-04-01","Sutton London Borough Council",{"$f":"VLOOKUP(R851,'LA CPID Look up'!$A$3:$C$153,2,FALSE)","v":"Sutton London Borough Council"},"South-East England and South London"]
[null,null,null,null,null,null,null,null,null,null,null,null,null,null,124578,"Cheddon Fitzpaine Church School","2013-09-01","Somerset County Council",{"$f":"VLOOKUP(R852,'LA CPID Look up'!$A$3:$C$153,2,FALSE)","v":"Somerset County Council"},"South-West England"]
[null,null,null,null,null,null,null,null,null,null,null,null,null,null,120528,"Cheetham CofE Community Academy","2011-11-01","Manchester City Council",{"$f":"VLOOKUP(R853,'LA CPID Look up'!$A$3:$C$153,2,FALSE)","v":"Manchester City Council"},"Lancashire and West Yorkshire"]
[null,null,null,null,null,null,null,null,null,null,null,null,null,null,119381,"Chellaston Academy","2010-12-01","Derby City Council",{"$f":"VLOOKUP(R854,'LA CPID Look up'!$A$3:$C$153,2,FALSE)","v":"Derby City Council"},"East Midlands and the Humber"]
[null,null,null,null,null,null,null,null,null,null,null,null,null,null,120260,"Chelmer Valley High School","2011-08-01","Essex County Council",{"$f":"VLOOKUP(R855,'LA CPID Look up'!$A$3:$C$153,2,FALSE)","v":"Essex County Council"},"East of England and North-East London"]
[null,null,null,null,null,null,null,null,null,null,null,null,null,null,119432,"Chelmsford County High School for Girls","2011-01-01","Essex County Council",{"$f":"VLOOKUP(R856,'LA CPID Look up'!$A$3:$C$153,2,FALSE)","v":"Essex County Council"},"East of England and North-East London"]
[null,null,null,null,null,null,null,null,null,null,null,null,null,null,118895,"Chelsea Academy","2009-09-01","Royal Borough of Kensington and Chelsea Council",{"$f":"VLOOKUP(R857,'LA CPID Look up'!$A$3:$C$153,2,FALSE)","v":"Kensington and Chelsea Council (Royal Borough of)"},"East of England and North-East London"]
[null,null,null,null,null,null,null,null,null,null,null,null,null,null,119724,"Cheltenham Bournside School and Sixth Form Centre","2011-05-01","Gloucestershire County Council",{"$f":"VLOOKUP(R858,'LA CPID Look up'!$A$3:$C$153,2,FALSE)","v":"Gloucestershire County Council"},"South-West England"]
[null,null,null,null,null,null,null,null,null,null,null,null,null,null,120989,"Chenderit School","2012-02-01","Northamptonshire County Council",{"$f":"VLOOKUP(R859,'LA CPID Look up'!$A$3:$C$153,2,FALSE)","v":"Northamptonshire County Council"},"East of England and North-East London"]
[null,null,null,null,null,null,null,null,null,null,null,null,null,null,123080,"Cheney School","2013-01-01","Oxfordshire County Council",{"$f":"VLOOKUP(R860,'LA CPID Look up'!$A$3:$C$153,2,FALSE)","v":"Oxfordshire County Council"},"East of England and North-East London"]
[null,null,null,null,null,null,null,null,null,null,null,null,null,null,121029,"Chepping View Primary Academy","2012-04-01","Buckinghamshire County Council",{"$f":"VLOOKUP(R861,'LA CPID Look up'!$A$3:$C$153,2,FALSE)","v":"Buckinghamshire County Council"},"South-Central England and North-West London"]
[null,null,null,null,null,null,null,null,null,null,null,null,null,null,130866,"Cherry Tree Academy Trust Marham Infant","2014-08-01","Norfolk County Council",{"$f":"VLOOKUP(R862,'LA CPID Look up'!$A$3:$C$153,2,FALSE)","v":"Norfolk County Council"},"East of England and North-East London"]
[null,null,null,null,null,null,null,null,null,null,null,null,null,null,131968,"Cherry Tree Primary School and Speech and Language Unit","2015-09-01","Essex County Council",{"$f":"VLOOKUP(R863,'LA CPID Look up'!$A$3:$C$153,2,FALSE)","v":"Essex County Council"},"East of England and North-East London"]
[null,null,null,null,null,null,null,null,null,null,null,null,null,null,121116,"Cherwell School, The","2012-04-01","Oxfordshire County Council",{"$f":"VLOOKUP(R864,'LA CPID Look up'!$A$3:$C$153,2,FALSE)","v":"Oxfordshire County Council"},"East of England and North-East London"]
[null,null,null,null,null,null,null,null,null,null,null,null,null,null,120091,"Chesham Grammar School","2011-08-01","Buckinghamshire County Council",{"$f":"VLOOKUP(R865,'LA CPID Look up'!$A$3:$C$153,2,FALSE)","v":"Buckinghamshire County Council"},"South-Central England and North-West London"]
[null,null,null,null,null,null,null,null,null,null,null,null,null,null,120486,"Chesterfield High School","2011-10-01","Sefton Metropolitan Borough Council",{"$f":"VLOOKUP(R866,'LA CPID Look up'!$A$3:$C$153,2,FALSE)","v":"Sefton Metropolitan Borough Council"},"Lancashire and West Yorkshire"]
[null,null,null,null,null,null,null,null,null,null,null,null,null,null,119887,"Chesterton Community College - Cambridge","2011-07-01","Cambridgeshire County Council",{"$f":"VLOOKUP(R867,'LA CPID Look up'!$A$3:$C$153,2,FALSE)","v":"Cambridgeshire County Council"},"East of England and North-East London"]
[null,null,null,null,null,null,null,null,null,null,null,null,null,null,124993,"Chesterton Community Sports College - Newcastle-u-Lyme","2013-12-01","Staffordshire County Council",{"$f":"VLOOKUP(R868,'LA CPID Look up'!$A$3:$C$153,2,FALSE)","v":"Staffordshire County Council"},"West Midlands"]
[null,null,null,null,null,null,null,null,null,null,null,null,null,null,126498,"Chesterton Primary School","2013-09-01","Cambridgeshire County Council",{"$f":"VLOOKUP(R869,'LA CPID Look up'!$A$3:$C$153,2,FALSE)","v":"Cambridgeshire County Council"},"East of England and North-East London"]
[null,null,null,null,null,null,null,null,null,null,null,null,null,null,119883,"Chestnut Grove School","2011-07-01","Wandsworth London Borough Council",{"$f":"VLOOKUP(R870,'LA CPID Look up'!$A$3:$C$153,2,FALSE)","v":"Wandsworth London Borough Council"},"South-East England and South London"]
[null,null,null,null,null,null,null,null,null,null,null,null,null,null,129868,"Chestnut Park Primary School","2015-09-01","Croydon London Borough Council",{"$f":"VLOOKUP(R871,'LA CPID Look up'!$A$3:$C$153,2,FALSE)","v":"Croydon London Borough Council"},"South-East England and South London"]
[null,null,null,null,null,null,null,null,null,null,null,null,null,null,120890,"Chetwynd Primary Academy","2012-04-01","Nottinghamshire County Council",{"$f":"VLOOKUP(R872,'LA CPID Look up'!$A$3:$C$153,2,FALSE)","v":"Nottinghamshire County Council"},"East Midlands and the Humber"]
[null,null,null,null,null,null,null,null,null,null,null,null,null,null,130490,"Chetwynde School","2014-09-01","Cumbria County Council",{"$f":"VLOOKUP(R873,'LA CPID Look up'!$A$3:$C$153,2,FALSE)","v":"Cumbria County Council"},"North of England"]
[null,null,null,null,null,null,null,null,null,null,null,null,null,null,122392,"Chew Stoke Church School","2012-09-01","Bath & North East Somerset Council",{"$f":"VLOOKUP(R874,'LA CPID Look up'!$A$3:$C$153,2,FALSE)","v":"Bath & North East Somerset Council"},"South-West England"]
[null,null,null,null,null,null,null,null,null,null,null,null,null,null,123297,"Chichester Free School","2013-09-01","West Sussex County Council",{"$f":"VLOOKUP(R875,'LA CPID Look up'!$A$3:$C$153,2,FALSE)","v":"West Sussex County Council"},"South-East England and South London"]
[null,null,null,null,null,null,null,null,null,null,null,null,null,null,124980,"Chichester High School for Boys","2013-09-01","West Sussex County Council",{"$f":"VLOOKUP(R876,'LA CPID Look up'!$A$3:$C$153,2,FALSE)","v":"West Sussex County Council"},"South-East England and South London"]
[null,null,null,null,null,null,null,null,null,null,null,null,null,null,124981,"Chichester High School for Girls","2013-09-01","West Sussex County Council",{"$f":"VLOOKUP(R877,'LA CPID Look up'!$A$3:$C$153,2,FALSE)","v":"West Sussex County Council"},"South-East England and South London"]
[null,null,null,null,null,null,null,null,null,null,null,null,null,null,123171,"Chickerell Primary Academy","2013-01-01","Dorset County Council",{"$f":"VLOOKUP(R878,'LA CPID Look up'!$A$3:$C$153,2,FALSE)","v":"Dorset County Council"},"South-West England"]
[null,null,null,null,null,null,null,null,null,null,null,null,null,null,120625,"Chiddingstone Church of England School","2011-12-01","Kent County Council",{"$f":"VLOOKUP(R879,'LA CPID Look up'!$A$3:$C$153,2,FALSE)","v":"Kent County Council"},"South-East England and South London"]
[null,null,null,null,null,null,null,null,null,null,null,null,null,null,131972,"Chigwell Primary School","2015-09-01","Essex County Council",{"$f":"VLOOKUP(R880,'LA CPID Look up'!$A$3:$C$153,2,FALSE)","v":"Essex County Council"},"East of England and North-East London"]
[null,null,null,null,null,null,null,null,null,null,null,null,null,null,122492,"Childwall Sports & Science Academy","2012-09-01","Liverpool City Council",{"$f":"VLOOKUP(R881,'LA CPID Look up'!$A$3:$C$153,2,FALSE)","v":"Liverpool City Council"},"Lancashire and West Yorkshire"]
[null,null,null,null,null,null,null,null,null,null,null,null,null,null,120280,"Chiltern Hills Academy","2011-09-01","Buckinghamshire County Council",{"$f":"VLOOKUP(R882,'LA CPID Look up'!$A$3:$C$153,2,FALSE)","v":"Buckinghamshire County Council"},"South-Central England and North-West London"]
[null,null,null,null,null,null,null,null,null,null,null,null,null,null,131786,"Chilton Academy Primary School","2015-03-01","Kent County Council",{"$f":"VLOOKUP(R883,'LA CPID Look up'!$A$3:$C$153,2,FALSE)","v":"Kent County Council"},"South-East England and South London"]
[null,null,null,null,null,null,null,null,null,null,null,null,null,null,122259,"Chilwell Croft Academy","2012-09-01","Birmingham City Council",{"$f":"VLOOKUP(R884,'LA CPID Look up'!$A$3:$C$153,2,FALSE)","v":"Birmingham City Council"},"West Midlands"]
[null,null,null,null,null,null,null,null,null,null,null,null,null,null,122263,"Chingford Foundation School","2012-09-01","Waltham Forest London Borough Council",{"$f":"VLOOKUP(R885,'LA CPID Look up'!$A$3:$C$153,2,FALSE)","v":"Waltham Forest London Borough Council"},"East of England and North-East London"]
[null,null,null,null,null,null,null,null,null,null,null,null,null,null,121432,"Chingford Hall Primary School","2012-07-01","Waltham Forest London Borough Council",{"$f":"VLOOKUP(R886,'LA CPID Look up'!$A$3:$C$153,2,FALSE)","v":"Waltham Forest London Borough Council"},"East of England and North-East London"]
[null,null,null,null,null,null,null,null,null,null,null,null,null,null,119960,"Chipping Campden School","2011-08-01","Gloucestershire County Council",{"$f":"VLOOKUP(R887,'LA CPID Look up'!$A$3:$C$153,2,FALSE)","v":"Gloucestershire County Council"},"South-West England"]
[null,null,null,null,null,null,null,null,null,null,null,null,null,null,113956,"Chipping Norton School","2012-03-01","Oxfordshire County Council",{"$f":"VLOOKUP(R888,'LA CPID Look up'!$A$3:$C$153,2,FALSE)","v":"Oxfordshire County Council"},"East of England and North-East London"]
[null,null,null,null,null,null,null,null,null,null,null,null,null,null,124173,"Chipping Warden Primary Academy","2013-09-01","Northamptonshire County Council",{"$f":"VLOOKUP(R889,'LA CPID Look up'!$A$3:$C$153,2,FALSE)","v":"Northamptonshire County Council"},"East of England and North-East London"]
[null,null,null,null,null,null,null,null,null,null,null,null,null,null,129897,"Chipstead Valley Primary School","2014-04-01","Croydon London Borough Council",{"$f":"VLOOKUP(R890,'LA CPID Look up'!$A$3:$C$153,2,FALSE)","v":"Croydon London Borough Council"},"South-East England and South London"]
[null,null,null,null,null,null,null,null,null,null,null,null,null,null,120344,"Chislehurst and Sidcup Grammar School","2011-09-01","Bexley London Borough Council",{"$f":"VLOOKUP(R891,'LA CPID Look up'!$A$3:$C$153,2,FALSE)","v":"Bexley London Borough Council"},"South-East England and South London"]
[null,null,null,null,null,null,null,null,null,null,null,null,null,null,131172,"Chislehurst Church of England Primary","2014-11-01","Bromley London Borough Council",{"$f":"VLOOKUP(R892,'LA CPID Look up'!$A$3:$C$153,2,FALSE)","v":"Bromley London Borough Council"},"South-East England and South London"]
[null,null,null,null,null,null,null,null,null,null,null,null,null,null,119467,"Chislehurst School for Girls","2011-03-01","Bromley London Borough Council",{"$f":"VLOOKUP(R893,'LA CPID Look up'!$A$3:$C$153,2,FALSE)","v":"Bromley London Borough Council"},"South-East England and South London"]
[null,null,null,null,null,null,null,null,null,null,null,null,null,null,121123,"Chiswick School","2012-03-01","Hounslow London Borough Council",{"$f":"VLOOKUP(R894,'LA CPID Look up'!$A$3:$C$153,2,FALSE)","v":"Hounslow London Borough Council"},"East of England and North-East London"]
[null,null,null,null,null,null,null,null,null,null,null,null,null,null,124208,"Chivenor Primary School","2014-02-01","Birmingham City Council",{"$f":"VLOOKUP(R895,'LA CPID Look up'!$A$3:$C$153,2,FALSE)","v":"Birmingham City Council"},"West Midlands"]
[null,null,null,null,null,null,null,null,null,null,null,null,null,null,121928,"Chobham Academy","2013-09-01","Newham London Borough Council",{"$f":"VLOOKUP(R896,'LA CPID Look up'!$A$3:$C$153,2,FALSE)","v":"Newham London Borough Council"},"East of England and North-East London"]
[null,null,null,null,null,null,null,null,null,null,null,null,null,null,124596,"Cholsey Primary School","2013-11-01","Oxfordshire County Council",{"$f":"VLOOKUP(R897,'LA CPID Look up'!$A$3:$C$153,2,FALSE)","v":"Oxfordshire County Council"},"East of England and North-East London"]
[null,null,null,null,null,null,null,null,null,null,null,null,null,null,122953,"Chorlton High School","2013-01-01","Manchester City Council",{"$f":"VLOOKUP(R898,'LA CPID Look up'!$A$3:$C$153,2,FALSE)","v":"Manchester City Council"},"Lancashire and West Yorkshire"]
[null,null,null,null,null,null,null,null,null,null,null,null,null,null,119611,"Chosen Hill School","2011-04-01","Gloucestershire County Council",{"$f":"VLOOKUP(R899,'LA CPID Look up'!$A$3:$C$153,2,FALSE)","v":"Gloucestershire County Council"},"South-West England"]
[null,null,null,null,null,null,null,null,null,null,null,null,null,null,130775,"Christ Church & Saint Peter's CoE Primary School","2014-12-01","Leicestershire County Council",{"$f":"VLOOKUP(R900,'LA CPID Look up'!$A$3:$C$153,2,FALSE)","v":"Leicestershire County Council"},"East Midlands and the Humber"]
[null,null,null,null,null,null,null,null,null,null,null,null,null,null,122919,"Christ Church (Erith) CofE Primary School","2013-05-01","Bexley London Borough Council",{"$f":"VLOOKUP(R901,'LA CPID Look up'!$A$3:$C$153,2,FALSE)","v":"Bexley London Borough Council"},"South-East England and South London"]
[null,null,null,null,null,null,null,null,null,null,null,null,null,null,119961,"Christ Church Academy","2011-08-01","Staffordshire County Council",{"$f":"VLOOKUP(R902,'LA CPID Look up'!$A$3:$C$153,2,FALSE)","v":"Staffordshire County Council"},"West Midlands"]
[null,null,null,null,null,null,null,null,null,null,null,null,null,null,121859,"Christ Church CE Academy","2012-09-01","Kirklees Metropolitan Council",{"$f":"VLOOKUP(R903,'LA CPID Look up'!$A$3:$C$153,2,FALSE)","v":"Kirklees Metropolitan Council"},"Lancashire and West Yorkshire"]
[null,null,null,null,null,null,null,null,null,null,null,null,null,null,123038,"Christ Church Cep Academy, Folkestone","2013-03-01","Kent County Council",{"$f":"VLOOKUP(R904,'LA CPID Look up'!$A$3:$C$153,2,FALSE)","v":"Kent County Council"},"South-East England and South London"]
[null,null,null,null,null,null,null,null,null,null,null,null,null,null,122959,"Christ Church Chorleywood CofE School","2013-04-01","Hertfordshire County Council",{"$f":"VLOOKUP(R905,'LA CPID Look up'!$A$3:$C$153,2,FALSE)","v":"Hertfordshire County Council"},"East of England and North-East London"]
[null,null,null,null,null,null,null,null,null,null,null,null,null,null,123167,"Christ Church Church of England Academy - Shipley","2013-08-01","Bradford Metropolitan District Council",{"$f":"VLOOKUP(R906,'LA CPID Look up'!$A$3:$C$153,2,FALSE)","v":"Bradford City Council"},"Lancashire and West Yorkshire"]
[null,null,null,null,null,null,null,null,null,null,null,null,null,null,122877,"Christ Church Church of England Junior School, Ramsgate","2013-12-01","Kent County Council",{"$f":"VLOOKUP(R907,'LA CPID Look up'!$A$3:$C$153,2,FALSE)","v":"Kent County Council"},"South-East England and South London"]
[null,null,null,null,null,null,null,null,null,null,null,null,null,null,121013,"Christ Church Church of England Primary School - Bristol","2012-07-01","Bristol City Council",{"$f":"VLOOKUP(R908,'LA CPID Look up'!$A$3:$C$153,2,FALSE)","v":"Bristol City Council"},"South-West England"]
[null,null,null,null,null,null,null,null,null,null,null,null,null,null,122715,"Christ Church CofE Primary School - Cheltenham","2012-11-01","Gloucestershire County Council",{"$f":"VLOOKUP(R909,'LA CPID Look up'!$A$3:$C$153,2,FALSE)","v":"Gloucestershire County Council"},"South-West England"]
[null,null,null,null,null,null,null,null,null,null,null,null,null,null,130736,"Christ the King Catholic Academy - Blackpool","2014-09-01","Blackpool Council",{"$f":"VLOOKUP(R910,'LA CPID Look up'!$A$3:$C$153,2,FALSE)","v":"Blackpool Unitary Authority"},"Lancashire and West Yorkshire"]
[null,null,null,null,null,null,null,null,null,null,null,null,null,null,130116,"Christ The King Catholic Primary School - Bournemouth","2014-04-01","Bournemouth Borough Council",{"$f":"VLOOKUP(R911,'LA CPID Look up'!$A$3:$C$153,2,FALSE)","v":"Bournemouth Council"},"South-West England"]
[null,null,null,null,null,null,null,null,null,null,null,null,null,null,121100,"Christ The King Catholic Voluntary Academy - Nottingham","2012-10-01","Nottinghamshire County Council",{"$f":"VLOOKUP(R912,'LA CPID Look up'!$A$3:$C$153,2,FALSE)","v":"Nottinghamshire County Council"},"East Midlands and the Humber"]
[null,null,null,null,null,null,null,null,null,null,null,null,null,null,132327,"Christ The King Roman Catholic Primary School - Thornaby","2015-09-01","Stockton-on-Tees Borough Council",{"$f":"VLOOKUP(R913,'LA CPID Look up'!$A$3:$C$153,2,FALSE)","v":"Stockton-on-Tees Borough Council"},"North of England"]
[null,null,null,null,null,null,null,null,null,null,null,null,null,null,127978,"Christian Malford CofE Primary School","2013-12-01","Wiltshire Council",{"$f":"VLOOKUP(R914,'LA CPID Look up'!$A$3:$C$153,2,FALSE)","v":"Wiltshire Unitary Authority"},"South-West England"]
[null,null,null,null,null,null,null,null,null,null,null,null,null,null,119680,"Christleton High School","2011-04-01","Cheshire West and Chester Council",{"$f":"VLOOKUP(R915,'LA CPID Look up'!$A$3:$C$153,2,FALSE)","v":"Cheshire West and Chester Unitary Authority"},"West Midlands"]
[null,null,null,null,null,null,null,null,null,null,null,null,null,null,124621,"Christopher Pickering Primary School","2015-02-01","Hull City Council",{"$f":"VLOOKUP(R916,'LA CPID Look up'!$A$3:$C$153,2,FALSE)","v":"Kingston upon Hull City Council"},"East Midlands and the Humber"]
[null,null,null,null,null,null,null,null,null,null,null,null,null,null,119890,"Christopher Whitehead Language College","2011-07-01","Worcestershire County Council",{"$f":"VLOOKUP(R917,'LA CPID Look up'!$A$3:$C$153,2,FALSE)","v":"Worcestershire County Council"},"West Midlands"]
[null,null,null,null,null,null,null,null,null,null,null,null,null,null,121088,"Christow Community School","2012-09-01","Devon County Council",{"$f":"VLOOKUP(R918,'LA CPID Look up'!$A$3:$C$153,2,FALSE)","v":"Devon County Council"},"South-West England"]
[null,null,null,null,null,null,null,null,null,null,null,null,null,null,120345,"Christ's College Finchley","2011-09-01","Barnet London Borough Council",{"$f":"VLOOKUP(R919,'LA CPID Look up'!$A$3:$C$153,2,FALSE)","v":"Barnet London Borough Council"},"South-Central England and North-West London"]
[null,null,null,null,null,null,null,null,null,null,null,null,null,null,131588,"Christ's College, Guildford","2015-12-01","Surrey County Council",{"$f":"VLOOKUP(R920,'LA CPID Look up'!$A$3:$C$153,2,FALSE)","v":"Surrey County Council"},"South-East England and South London"]
[null,null,null,null,null,null,null,null,null,null,null,null,null,null,120474,"Chudleigh Knighton Church of England Primary School","2011-11-01","Devon County Council",{"$f":"VLOOKUP(R921,'LA CPID Look up'!$A$3:$C$153,2,FALSE)","v":"Devon County Council"},"South-West England"]
[null,null,null,null,null,null,null,null,null,null,null,null,null,null,120024,"Chulmleigh Community College","2011-08-01","Devon County Council",{"$f":"VLOOKUP(R922,'LA CPID Look up'!$A$3:$C$153,2,FALSE)","v":"Devon County Council"},"South-West England"]
[null,null,null,null,null,null,null,null,null,null,null,null,null,null,120023,"Chulmleigh Primary School","2011-08-01","Devon County Council",{"$f":"VLOOKUP(R923,'LA CPID Look up'!$A$3:$C$153,2,FALSE)","v":"Devon County Council"},"South-West England"]
[null,null,null,null,null,null,null,null,null,null,null,null,null,null,122394,"Church Hill Church of England Junior School","2012-11-01","Leicestershire County Council",{"$f":"VLOOKUP(R924,'LA CPID Look up'!$A$3:$C$153,2,FALSE)","v":"Leicestershire County Council"},"East Midlands and the Humber"]
[null,null,null,null,null,null,null,null,null,null,null,null,null,null,122410,"Church Hill Infant School","2012-11-01","Leicestershire County Council",{"$f":"VLOOKUP(R925,'LA CPID Look up'!$A$3:$C$153,2,FALSE)","v":"Leicestershire County Council"},"East Midlands and the Humber"]
[null,null,null,null,null,null,null,null,null,null,null,null,null,null,133057,"Church Hill Middle School","2016-03-01","Worcestershire County Council",{"$f":"VLOOKUP(R926,'LA CPID Look up'!$A$3:$C$153,2,FALSE)","v":"Worcestershire County Council"},"West Midlands"]
[null,null,null,null,null,null,null,null,null,null,null,null,null,null,123865,"Church Stretton School","2013-04-01","Shropshire Council",{"$f":"VLOOKUP(R927,'LA CPID Look up'!$A$3:$C$153,2,FALSE)","v":"Shropshire Unitary Authority"},"West Midlands"]
[null,null,null,null,null,null,null,null,null,null,null,null,null,null,119956,"Churchdown School","2011-11-01","Gloucestershire County Council",{"$f":"VLOOKUP(R928,'LA CPID Look up'!$A$3:$C$153,2,FALSE)","v":"Gloucestershire County Council"},"South-West England"]
[null,null,null,null,null,null,null,null,null,null,null,null,null,null,120173,"Churchdown Village Infant School","2011-08-01","Gloucestershire County Council",{"$f":"VLOOKUP(R929,'LA CPID Look up'!$A$3:$C$153,2,FALSE)","v":"Gloucestershire County Council"},"South-West England"]
[null,null,null,null,null,null,null,null,null,null,null,null,null,null,119461,"Churchend Primary Academy","2011-02-01","Reading Borough Council",{"$f":"VLOOKUP(R930,'LA CPID Look up'!$A$3:$C$153,2,FALSE)","v":"Reading Borough Council"},"East of England and North-East London"]
[null,null,null,null,null,null,null,null,null,null,null,null,null,null,122817,"Churchfield Church School","2013-04-01","Somerset County Council",{"$f":"VLOOKUP(R931,'LA CPID Look up'!$A$3:$C$153,2,FALSE)","v":"Somerset County Council"},"South-West England"]
[null,null,null,null,null,null,null,null,null,null,null,null,null,null,120388,"Churchfields Academy - Swindon","2011-09-01","Swindon Borough Council",{"$f":"VLOOKUP(R932,'LA CPID Look up'!$A$3:$C$153,2,FALSE)","v":"Swindon Unitary Authority"},"South-West England"]
[null,null,null,null,null,null,null,null,null,null,null,null,null,null,124639,"Churchfields Primary School - Newcastle-u-Lyme","2013-12-01","Staffordshire County Council",{"$f":"VLOOKUP(R933,'LA CPID Look up'!$A$3:$C$153,2,FALSE)","v":"Staffordshire County Council"},"West Midlands"]
[null,null,null,null,null,null,null,null,null,null,null,null,null,null,120000,"Churchill Academy","2011-08-01","North Somerset District Council",{"$f":"VLOOKUP(R934,'LA CPID Look up'!$A$3:$C$153,2,FALSE)","v":"North Somerset Council"},"South-West England"]
[null,null,null,null,null,null,null,null,null,null,null,null,null,null,126330,"Churchill Gardens Primary Academy","2013-09-01","Westminster City Council",{"$f":"VLOOKUP(R935,'LA CPID Look up'!$A$3:$C$153,2,FALSE)","v":"Westminster City Council"},"East of England and North-East London"]
[null,null,null,null,null,null,null,null,null,null,null,null,null,null,123396,"Churchill Special Free School","2013-09-01","Suffolk County Council",{"$f":"VLOOKUP(R936,'LA CPID Look up'!$A$3:$C$153,2,FALSE)","v":"Suffolk County Council"},"East of England and North-East London"]
[null,null,null,null,null,null,null,null,null,null,null,null,null,null,130848,"Churchwood Primary Academy, The","2014-09-01","East Sussex County Council",{"$f":"VLOOKUP(R937,'LA CPID Look up'!$A$3:$C$153,2,FALSE)","v":"East Sussex County Council"},"South-East England and South London"]
[null,null,null,null,null,null,null,null,null,null,null,null,null,null,119406,"Churston Ferrers Grammar School Academy","2011-01-01","Torbay Council",{"$f":"VLOOKUP(R938,'LA CPID Look up'!$A$3:$C$153,2,FALSE)","v":"Torbay Council"},"South-West England"]
[null,null,null,null,null,null,null,null,null,null,null,null,null,null,131603,"Cicely Haughton School","2015-08-01","Staffordshire County Council",{"$f":"VLOOKUP(R939,'LA CPID Look up'!$A$3:$C$153,2,FALSE)","v":"Staffordshire County Council"},"West Midlands"]
[null,null,null,null,null,null,null,null,null,null,null,null,null,null,121194,"Cippenham Infant School","2012-04-01","Slough Borough Council",{"$f":"VLOOKUP(R940,'LA CPID Look up'!$A$3:$C$153,2,FALSE)","v":"Slough Borough Council"},"East of England and North-East London"]
[null,null,null,null,null,null,null,null,null,null,null,null,null,null,121195,"Cippenham Primary School","2012-04-01","Slough Borough Council",{"$f":"VLOOKUP(R941,'LA CPID Look up'!$A$3:$C$153,2,FALSE)","v":"Slough Borough Council"},"East of England and North-East London"]
[null,null,null,null,null,null,null,null,null,null,null,null,null,null,119533,"Cirencester Deer Park School","2011-04-01","Gloucestershire County Council",{"$f":"VLOOKUP(R942,'LA CPID Look up'!$A$3:$C$153,2,FALSE)","v":"Gloucestershire County Council"},"South-West England"]
[null,null,null,null,null,null,null,null,null,null,null,null,null,null,120217,"Cirencester Kingshill School","2011-08-01","Gloucestershire County Council",{"$f":"VLOOKUP(R943,'LA CPID Look up'!$A$3:$C$153,2,FALSE)","v":"Gloucestershire County Council"},"South-West England"]
[null,null,null,null,null,null,null,null,null,null,null,null,null,null,117017,"City Academy Bristol, The","2003-09-01","Bristol City Council",{"$f":"VLOOKUP(R944,'LA CPID Look up'!$A$3:$C$153,2,FALSE)","v":"Bristol City Council"},"South-West England"]
[null,null,null,null,null,null,null,null,null,null,null,null,null,null,119104,"City Academy Norwich","2009-09-01","Norfolk County Council",{"$f":"VLOOKUP(R945,'LA CPID Look up'!$A$3:$C$153,2,FALSE)","v":"Norfolk County Council"},"East of England and North-East London"]
[null,null,null,null,null,null,null,null,null,null,null,null,null,null,123896,"City Academy Whitehawk","2013-09-01","Brighton and Hove City Council",{"$f":"VLOOKUP(R946,'LA CPID Look up'!$A$3:$C$153,2,FALSE)","v":"Brighton & Hove City Council"},"South-East England and South London"]
[null,null,null,null,null,null,null,null,null,null,null,null,null,null,118896,"City Academy, The - Hackney","2009-09-03","Hackney London Borough Council (The Learning Trust)",{"$f":"VLOOKUP(R947,'LA CPID Look up'!$A$3:$C$153,2,FALSE)","v":"Hackney London Borough Council"},"East of England and North-East London"]
[null,null,null,null,null,null,null,null,null,null,null,null,null,null,122804,"City Gateway 14-19 Provision","2012-09-01","Tower Hamlets London Borough Council",{"$f":"VLOOKUP(R948,'LA CPID Look up'!$A$3:$C$153,2,FALSE)","v":"Tower Hamlets London Borough Council"},"East of England and North-East London"]
[null,null,null,null,null,null,null,null,null,null,null,null,null,null,121926,"City Heights E-ACT Academy","2013-09-01","Hackney London Borough Council (The Learning Trust)",{"$f":"VLOOKUP(R949,'LA CPID Look up'!$A$3:$C$153,2,FALSE)","v":"Hackney London Borough Council"},"East of England and North-East London"]
[null,null,null,null,null,null,null,null,null,null,null,null,null,null,121869,"City of Derby Academy","2013-06-01","Derby City Council",{"$f":"VLOOKUP(R950,'LA CPID Look up'!$A$3:$C$153,2,FALSE)","v":"Derby City Council"},"East Midlands and the Humber"]
[null,null,null,null,null,null,null,null,null,null,null,null,null,null,118387,"City of London Academy (Southwark)","2003-09-01","Southwark London Borough Council",{"$f":"VLOOKUP(R951,'LA CPID Look up'!$A$3:$C$153,2,FALSE)","v":"Southwark London Borough Council"},"South-East England and South London"]
[null,null,null,null,null,null,null,null,null,null,null,null,null,null,118605,"City of London Academy Islington","2008-09-01","Islington London Borough Council",{"$f":"VLOOKUP(R952,'LA CPID Look up'!$A$3:$C$153,2,FALSE)","v":"Islington London Borough Council"},"East of England and North-East London"]
[null,null,null,null,null,null,null,null,null,null,null,null,null,null,130865,"City of Norwich School","2014-09-01","Norfolk County Council",{"$f":"VLOOKUP(R953,'LA CPID Look up'!$A$3:$C$153,2,FALSE)","v":"Norfolk County Council"},"East of England and North-East London"]
[null,null,null,null,null,null,null,null,null,null,null,null,null,null,124497,"City of Peterborough Academy","2013-09-01","Peterborough City Council",{"$f":"VLOOKUP(R954,'LA CPID Look up'!$A$3:$C$153,2,FALSE)","v":"Peterborough City Council"},"East of England and North-East London"]
[null,null,null,null,null,null,null,null,null,null,null,null,null,null,122220,"City of Peterborough Academy Special School","2012-09-01","Peterborough City Council",{"$f":"VLOOKUP(R955,'LA CPID Look up'!$A$3:$C$153,2,FALSE)","v":"Peterborough City Council"},"East of England and North-East London"]
[null,null,null,null,null,null,null,null,null,null,null,null,null,null,123855,"City Road Primary School","2013-07-01","Birmingham City Council",{"$f":"VLOOKUP(R956,'LA CPID Look up'!$A$3:$C$153,2,FALSE)","v":"Birmingham City Council"},"West Midlands"]
[null,null,null,null,null,null,null,null,null,null,null,null,null,null,130491,"City United Ltd (CUL) Academy ","2014-09-01","Birmingham City Council",{"$f":"VLOOKUP(R957,'LA CPID Look up'!$A$3:$C$153,2,FALSE)","v":"Birmingham City Council"},"West Midlands"]
[null,null,null,null,null,null,null,null,null,null,null,null,null,null,129602,"Civitas Academy","2015-09-01","Reading Borough Council",{"$f":"VLOOKUP(R958,'LA CPID Look up'!$A$3:$C$153,2,FALSE)","v":"Reading Borough Council"},"East of England and North-East London"]
[null,null,null,null,null,null,null,null,null,null,null,null,null,null,119097,"Clacton Coastal Academy","2009-09-01","Essex County Council",{"$f":"VLOOKUP(R959,'LA CPID Look up'!$A$3:$C$153,2,FALSE)","v":"Essex County Council"},"East of England and North-East London"]
[null,null,null,null,null,null,null,null,null,null,null,null,null,null,121144,"Clacton County High School","2012-04-01","Essex County Council",{"$f":"VLOOKUP(R960,'LA CPID Look up'!$A$3:$C$153,2,FALSE)","v":"Essex County Council"},"East of England and North-East London"]
[null,null,null,null,null,null,null,null,null,null,null,null,null,null,119950,"Clapton Girls' Academy","2011-09-01","Hackney London Borough Council (The Learning Trust)",{"$f":"VLOOKUP(R961,'LA CPID Look up'!$A$3:$C$153,2,FALSE)","v":"Hackney London Borough Council"},"East of England and North-East London"]
[null,null,null,null,null,null,null,null,null,null,null,null,null,null,119612,"Claremont High School","2011-04-01","Brent London Borough Council",{"$f":"VLOOKUP(R962,'LA CPID Look up'!$A$3:$C$153,2,FALSE)","v":"Brent London Borough Council"},"South-Central England and North-West London"]
[null,null,null,null,null,null,null,null,null,null,null,null,null,null,133558,"Claremont Primary School","2016-03-01","Barnet London Borough Council",{"$f":"VLOOKUP(R963,'LA CPID Look up'!$A$3:$C$153,2,FALSE)","v":"Barnet London Borough Council"},"South-Central England and North-West London"]
[null,null,null,null,null,null,null,null,null,null,null,null,null,null,122867,"Clarendon Academy, The","2012-12-01","Wiltshire Council",{"$f":"VLOOKUP(R964,'LA CPID Look up'!$A$3:$C$153,2,FALSE)","v":"Wiltshire Unitary Authority"},"South-West England"]
[null,null,null,null,null,null,null,null,null,null,null,null,null,null,119417,"Clarendon House Grammar School, The","2011-01-01","Kent County Council",{"$f":"VLOOKUP(R965,'LA CPID Look up'!$A$3:$C$153,2,FALSE)","v":"Kent County Council"},"South-East England and South London"]
[null,null,null,null,null,null,null,null,null,null,null,null,null,null,132294,"Clayton Hall Academy","2015-10-01","Staffordshire County Council",{"$f":"VLOOKUP(R966,'LA CPID Look up'!$A$3:$C$153,2,FALSE)","v":"Staffordshire County Council"},"West Midlands"]
[null,null,null,null,null,null,null,null,null,null,null,null,null,null,120548,"Clayton-le-Moors All Saints Church of England Primary School","2011-11-01","Lancashire County Council",{"$f":"VLOOKUP(R967,'LA CPID Look up'!$A$3:$C$153,2,FALSE)","v":"Lancashire County Council"},"Lancashire and West Yorkshire"]
[null,null,null,null,null,null,null,null,null,null,null,null,null,null,130626,"Cleadon Church of England Academy","2014-07-01","South Tyneside Council",{"$f":"VLOOKUP(R968,'LA CPID Look up'!$A$3:$C$153,2,FALSE)","v":"South Tyneside Council"},"North of England"]
[null,null,null,null,null,null,null,null,null,null,null,null,null,null,131078,"Clee Hill Community Academy","2015-02-01","Shropshire Council",{"$f":"VLOOKUP(R969,'LA CPID Look up'!$A$3:$C$153,2,FALSE)","v":"Shropshire Unitary Authority"},"West Midlands"]
[null,null,null,null,null,null,null,null,null,null,null,null,null,null,119311,"Cleethorpes Academy","2010-09-01","North East Lincolnshire Council",{"$f":"VLOOKUP(R970,'LA CPID Look up'!$A$3:$C$153,2,FALSE)","v":"North East Lincolnshire Council"},"East Midlands and the Humber"]
[null,null,null,null,null,null,null,null,null,null,null,null,null,null,121830,"Cleeve Park School - Sidcup","2012-09-01","Bexley London Borough Council",{"$f":"VLOOKUP(R971,'LA CPID Look up'!$A$3:$C$153,2,FALSE)","v":"Bexley London Borough Council"},"South-East England and South London"]
[null,null,null,null,null,null,null,null,null,null,null,null,null,null,125222,"Cleeve Primary School - Hull","2013-12-01","Hull City Council",{"$f":"VLOOKUP(R972,'LA CPID Look up'!$A$3:$C$153,2,FALSE)","v":"Kingston upon Hull City Council"},"East Midlands and the Humber"]
[null,null,null,null,null,null,null,null,null,null,null,null,null,null,119773,"Cleeve School - Cheltenham","2011-06-01","Gloucestershire County Council",{"$f":"VLOOKUP(R973,'LA CPID Look up'!$A$3:$C$153,2,FALSE)","v":"Gloucestershire County Council"},"South-West England"]
[null,null,null,null,null,null,null,null,null,null,null,null,null,null,131087,"Clenchwarton Community Primary School","2014-10-01","Norfolk County Council",{"$f":"VLOOKUP(R974,'LA CPID Look up'!$A$3:$C$153,2,FALSE)","v":"Norfolk County Council"},"East of England and North-East London"]
[null,null,null,null,null,null,null,null,null,null,null,null,null,null,131186,"Cleobury Mortimer Primary School","2015-01-01","Shropshire Council",{"$f":"VLOOKUP(R975,'LA CPID Look up'!$A$3:$C$153,2,FALSE)","v":"Shropshire Unitary Authority"},"West Midlands"]
[null,null,null,null,null,null,null,null,null,null,null,null,null,null,120636,"Clevedon School","2012-02-01","North Somerset District Council",{"$f":"VLOOKUP(R976,'LA CPID Look up'!$A$3:$C$153,2,FALSE)","v":"North Somerset Council"},"South-West England"]
[null,null,null,null,null,null,null,null,null,null,null,null,null,null,128237,"Cleves Cross Primary School","2013-11-01","Durham County Council",{"$f":"VLOOKUP(R977,'LA CPID Look up'!$A$3:$C$153,2,FALSE)","v":"County Durham Unitary Authority"},"North of England"]
[null,null,null,null,null,null,null,null,null,null,null,null,null,null,119358,"Cleves School","2010-11-01","Surrey County Council",{"$f":"VLOOKUP(R978,'LA CPID Look up'!$A$3:$C$153,2,FALSE)","v":"Surrey County Council"},"South-East England and South London"]
[null,null,null,null,null,null,null,null,null,null,null,null,null,null,131249,"Cliff Lane Primary School","2014-12-01","Suffolk County Council",{"$f":"VLOOKUP(R979,'LA CPID Look up'!$A$3:$C$153,2,FALSE)","v":"Suffolk County Council"},"East of England and North-East London"]
[null,null,null,null,null,null,null,null,null,null,null,null,null,null,123121,"Cliff Park - Ormiston Academy","2014-01-01","Norfolk County Council",{"$f":"VLOOKUP(R980,'LA CPID Look up'!$A$3:$C$153,2,FALSE)","v":"Norfolk County Council"},"East of England and North-East London"]
[null,null,null,null,null,null,null,null,null,null,null,null,null,null,123953,"Cliff Park Infant School, Gorleston","2013-04-01","Norfolk County Council",{"$f":"VLOOKUP(R981,'LA CPID Look up'!$A$3:$C$153,2,FALSE)","v":"Norfolk County Council"},"East of England and North-East London"]
[null,null,null,null,null,null,null,null,null,null,null,null,null,null,123937,"Cliff Park Junior School","2013-04-01","Norfolk County Council",{"$f":"VLOOKUP(R982,'LA CPID Look up'!$A$3:$C$153,2,FALSE)","v":"Norfolk County Council"},"East of England and North-East London"]
[null,null,null,null,null,null,null,null,null,null,null,null,null,null,124217,"Cliffdale Primary School","2013-12-01","Portsmouth City Council",{"$f":"VLOOKUP(R983,'LA CPID Look up'!$A$3:$C$153,2,FALSE)","v":"Portsmouth City Council"},"South-East England and South London"]
[null,null,null,null,null,null,null,null,null,null,null,null,null,null,119827,"Cliffe Woods Primary School","2011-07-01","Medway Council",{"$f":"VLOOKUP(R984,'LA CPID Look up'!$A$3:$C$153,2,FALSE)","v":"Medway Towns Unitary Authority (The)"},"South-East England and South London"]
[null,null,null,null,null,null,null,null,null,null,null,null,null,null,132410,"Clifford Bridge Academy","2015-09-01","Coventry City Council",{"$f":"VLOOKUP(R985,'LA CPID Look up'!$A$3:$C$153,2,FALSE)","v":"Coventry City Council"},"West Midlands"]
[null,null,null,null,null,null,null,null,null,null,null,null,null,null,123206,"Clifton All Saints Academy - Sheffield","2013-10-01","Central Bedfordshire Council",{"$f":"VLOOKUP(R986,'LA CPID Look up'!$A$3:$C$153,2,FALSE)","v":"Central Bedfordshire Unitary Authority"},"South-Central England and North-West London"]
[null,null,null,null,null,null,null,null,null,null,null,null,null,null,125021,"Cliftonville Primary School","2013-12-01","Kent County Council",{"$f":"VLOOKUP(R987,'LA CPID Look up'!$A$3:$C$153,2,FALSE)","v":"Kent County Council"},"South-East England and South London"]
[null,null,null,null,null,null,null,null,null,null,null,null,null,null,119403,"Clitheroe Royal Grammar School","2011-01-01","Lancashire County Council",{"$f":"VLOOKUP(R988,'LA CPID Look up'!$A$3:$C$153,2,FALSE)","v":"Lancashire County Council"},"Lancashire and West Yorkshire"]
[null,null,null,null,null,null,null,null,null,null,null,null,null,null,124771,"Cloughwood Academy","2013-09-01","Cheshire West and Chester Council",{"$f":"VLOOKUP(R989,'LA CPID Look up'!$A$3:$C$153,2,FALSE)","v":"Cheshire West and Chester Unitary Authority"},"West Midlands"]
[null,null,null,null,null,null,null,null,null,null,null,null,null,null,132040,"Clutton Primary School","2015-03-01","Bath & North East Somerset Council",{"$f":"VLOOKUP(R990,'LA CPID Look up'!$A$3:$C$153,2,FALSE)","v":"Bath & North East Somerset Council"},"South-West England"]
[null,null,null,null,null,null,null,null,null,null,null,null,null,null,119545,"Clyst Vale Community College","2011-04-01","Devon County Council",{"$f":"VLOOKUP(R991,'LA CPID Look up'!$A$3:$C$153,2,FALSE)","v":"Devon County Council"},"South-West England"]
[null,null,null,null,null,null,null,null,null,null,null,null,null,null,132388,"Coal Clough Academy","2015-09-01","Lancashire County Council",{"$f":"VLOOKUP(R992,'LA CPID Look up'!$A$3:$C$153,2,FALSE)","v":"Lancashire County Council"},"Lancashire and West Yorkshire"]
[null,null,null,null,null,null,null,null,null,null,null,null,null,null,123074,"Cobden Primary School & Community Centre","2013-03-01","Leicestershire County Council",{"$f":"VLOOKUP(R993,'LA CPID Look up'!$A$3:$C$153,2,FALSE)","v":"Leicestershire County Council"},"East Midlands and the Humber"]
[null,null,null,null,null,null,null,null,null,null,null,null,null,null,121974,"Cobham Free School","2012-09-01","Surrey County Council",{"$f":"VLOOKUP(R994,'LA CPID Look up'!$A$3:$C$153,2,FALSE)","v":"Surrey County Council"},"South-East England and South London"]
[null,null,null,null,null,null,null,null,null,null,null,null,null,null,131365,"Cobholm Primary Academy","2014-12-01","Norfolk County Council",{"$f":"VLOOKUP(R995,'LA CPID Look up'!$A$3:$C$153,2,FALSE)","v":"Norfolk County Council"},"East of England and North-East London"]
[null,null,null,null,null,null,null,null,null,null,null,null,null,null,132947,"Cockburn School","2016-02-01","Leeds City Council",{"$f":"VLOOKUP(R996,'LA CPID Look up'!$A$3:$C$153,2,FALSE)","v":"Leeds City Council"},"Lancashire and West Yorkshire"]
[null,null,null,null,null,null,null,null,null,null,null,null,null,null,120872,"Cockermouth School","2015-09-01","Cumbria County Council",{"$f":"VLOOKUP(R997,'LA CPID Look up'!$A$3:$C$153,2,FALSE)","v":"Cumbria County Council"},"North of England"]
[null,null,null,null,null,null,null,null,null,null,null,null,null,null,124153,"Cockington Primary School","2013-09-01","Torbay Council",{"$f":"VLOOKUP(R998,'LA CPID Look up'!$A$3:$C$153,2,FALSE)","v":"Torbay Council"},"South-West England"]
[null,null,null,null,null,null,null,null,null,null,null,null,null,null,119333,"Colchester Academy","2010-09-01","Essex County Council",{"$f":"VLOOKUP(R999,'LA CPID Look up'!$A$3:$C$153,2,FALSE)","v":"Essex County Council"},"East of England and North-East London"]
[null,null,null,null,null,null,null,null,null,null,null,null,null,null,120554,"Colchester County High School for Girls","2011-10-01","Essex County Council",{"$f":"VLOOKUP(R1000,'LA CPID Look up'!$A$3:$C$153,2,FALSE)","v":"Essex County Council"},"East of England and North-East London"]
[null,null,null,null,null,null,null,null,null,null,null,null,null,null,120596,"Colchester Royal Grammar School","2012-01-01","Essex County Council",{"$f":"VLOOKUP(R1001,'LA CPID Look up'!$A$3:$C$153,2,FALSE)","v":"Essex County Council"},"East of England and North-East London"]
[null,null,null,null,null,null,null,null,null,null,null,null,null,null,120614,"Colebrook Infant Academy","2011-11-01","Swindon Borough Council",{"$f":"VLOOKUP(R1002,'LA CPID Look up'!$A$3:$C$153,2,FALSE)","v":"Swindon Unitary Authority"},"South-West England"]
[null,null,null,null,null,null,null,null,null,null,null,null,null,null,131411,"Colehill First School","2015-03-01","Dorset County Council",{"$f":"VLOOKUP(R1003,'LA CPID Look up'!$A$3:$C$153,2,FALSE)","v":"Dorset County Council"},"South-West England"]
[null,null,null,null,null,null,null,null,null,null,null,null,null,null,119664,"Coleridge Community College","2011-04-01","Cambridgeshire County Council",{"$f":"VLOOKUP(R1004,'LA CPID Look up'!$A$3:$C$153,2,FALSE)","v":"Cambridgeshire County Council"},"East of England and North-East London"]
[null,null,null,null,null,null,null,null,null,null,null,null,null,null,122335,"Coleridge Primary","2013-04-01","Rotherham Metropolitan Borough Council",{"$f":"VLOOKUP(R1005,'LA CPID Look up'!$A$3:$C$153,2,FALSE)","v":"Rotherham Borough Council"},"East Midlands and the Humber"]
[null,null,null,null,null,null,null,null,null,null,null,null,null,null,119986,"Coleshill School, The","2011-08-01","Warwickshire County Council",{"$f":"VLOOKUP(R1006,'LA CPID Look up'!$A$3:$C$153,2,FALSE)","v":"Warwickshire County Council"},"West Midlands"]
[null,null,null,null,null,null,null,null,null,null,null,null,null,null,131882,"Colkirk Church of England Primary Academy","2015-12-01","Norfolk County Council",{"$f":"VLOOKUP(R1007,'LA CPID Look up'!$A$3:$C$153,2,FALSE)","v":"Norfolk County Council"},"East of England and North-East London"]
[null,null,null,null,null,null,null,null,null,null,null,null,null,null,123298,"Collective Spirit Free School","2013-09-01","Oldham Metropolitan Borough Council",{"$f":"VLOOKUP(R1008,'LA CPID Look up'!$A$3:$C$153,2,FALSE)","v":"Oldham Metropolitan Borough Council"},"Lancashire and West Yorkshire"]
[null,null,null,null,null,null,null,null,null,null,null,null,null,null,132001,"College Central","2015-09-01","East Sussex County Council",{"$f":"VLOOKUP(R1009,'LA CPID Look up'!$A$3:$C$153,2,FALSE)","v":"East Sussex County Council"},"South-East England and South London"]
[null,null,null,null,null,null,null,null,null,null,null,null,null,null,119837,"Collingwood College","2011-07-01","Surrey County Council",{"$f":"VLOOKUP(R1010,'LA CPID Look up'!$A$3:$C$153,2,FALSE)","v":"Surrey County Council"},"South-East England and South London"]
[null,null,null,null,null,null,null,null,null,null,null,null,null,null,124081,"Collingwood Primary School","2013-07-01","Hull City Council",{"$f":"VLOOKUP(R1011,'LA CPID Look up'!$A$3:$C$153,2,FALSE)","v":"Kingston upon Hull City Council"},"East Midlands and the Humber"]
[null,null,null,null,null,null,null,null,null,null,null,null,null,null,124561,"Colnbrook Church of England Primary School","2013-06-01","Slough Borough Council",{"$f":"VLOOKUP(R1012,'LA CPID Look up'!$A$3:$C$153,2,FALSE)","v":"Slough Borough Council"},"East of England and North-East London"]
[null,null,null,null,null,null,null,null,null,null,null,null,null,null,120460,"Colne Community School and College","2011-09-01","Essex County Council",{"$f":"VLOOKUP(R1013,'LA CPID Look up'!$A$3:$C$153,2,FALSE)","v":"Essex County Council"},"East of England and North-East London"]
[null,null,null,null,null,null,null,null,null,null,null,null,null,null,122260,"Colne Primet Academy","2013-01-01","Lancashire County Council",{"$f":"VLOOKUP(R1014,'LA CPID Look up'!$A$3:$C$153,2,FALSE)","v":"Lancashire County Council"},"Lancashire and West Yorkshire"]
[null,null,null,null,null,null,null,null,null,null,null,null,null,null,125186,"Colne Valley High School","2014-09-01","Kirklees Metropolitan Council",{"$f":"VLOOKUP(R1015,'LA CPID Look up'!$A$3:$C$153,2,FALSE)","v":"Kirklees Metropolitan Council"},"Lancashire and West Yorkshire"]
[null,null,null,null,null,null,null,null,null,null,null,null,null,null,118661,"Colston's Girls' School","2008-09-02","Bristol City Council",{"$f":"VLOOKUP(R1016,'LA CPID Look up'!$A$3:$C$153,2,FALSE)","v":"Bristol City Council"},"South-West England"]
[null,null,null,null,null,null,null,null,null,null,null,null,null,null,120843,"Colston's Primary School","2012-09-01","Bristol City Council",{"$f":"VLOOKUP(R1017,'LA CPID Look up'!$A$3:$C$153,2,FALSE)","v":"Bristol City Council"},"South-West England"]
[null,null,null,null,null,null,null,null,null,null,null,null,null,null,120671,"Columbus School and College","2012-05-01","Essex County Council",{"$f":"VLOOKUP(R1018,'LA CPID Look up'!$A$3:$C$153,2,FALSE)","v":"Essex County Council"},"East of England and North-East London"]
[null,null,null,null,null,null,null,null,null,null,null,null,null,null,131655,"Colwich CofE (C) Primary School","2016-02-01","Staffordshire County Council",{"$f":"VLOOKUP(R1019,'LA CPID Look up'!$A$3:$C$153,2,FALSE)","v":"Staffordshire County Council"},"West Midlands"]
[null,null,null,null,null,null,null,null,null,null,null,null,null,null,119405,"Colyton Grammar School","2011-01-01","Devon County Council",{"$f":"VLOOKUP(R1020,'LA CPID Look up'!$A$3:$C$153,2,FALSE)","v":"Devon County Council"},"South-West England"]
[null,null,null,null,null,null,null,null,null,null,null,null,null,null,124141,"Combe Pafford School","2013-04-01","Torbay Council",{"$f":"VLOOKUP(R1021,'LA CPID Look up'!$A$3:$C$153,2,FALSE)","v":"Torbay Council"},"South-West England"]
[null,null,null,null,null,null,null,null,null,null,null,null,null,null,119503,"Comberton Village College","2011-02-01","Cambridgeshire County Council",{"$f":"VLOOKUP(R1022,'LA CPID Look up'!$A$3:$C$153,2,FALSE)","v":"Cambridgeshire County Council"},"East of England and North-East London"]
[null,null,null,null,null,null,null,null,null,null,null,null,null,null,120190,"Commonweal School, The","2011-08-01","Swindon Borough Council",{"$f":"VLOOKUP(R1023,'LA CPID Look up'!$A$3:$C$153,2,FALSE)","v":"Swindon Unitary Authority"},"South-West England"]
[null,null,null,null,null,null,null,null,null,null,null,null,null,null,122700,"Community & Hospital Education Service","2013-06-01","Cornwall Council",{"$f":"VLOOKUP(R1024,'LA CPID Look up'!$A$3:$C$153,2,FALSE)","v":"Cornwall Unitary Authority"},"South-West England"]
[null,null,null,null,null,null,null,null,null,null,null,null,null,null,121990,"Compass School Southwark","2013-09-01","Southwark London Borough Council",{"$f":"VLOOKUP(R1025,'LA CPID Look up'!$A$3:$C$153,2,FALSE)","v":"Southwark London Borough Council"},"South-East England and South London"]
[null,null,null,null,null,null,null,null,null,null,null,null,null,null,119441,"Compton School, The","2011-01-01","Barnet London Borough Council",{"$f":"VLOOKUP(R1026,'LA CPID Look up'!$A$3:$C$153,2,FALSE)","v":"Barnet London Borough Council"},"South-Central England and North-West London"]
[null,null,null,null,null,null,null,null,null,null,null,null,null,null,128063,"Concord Junior School","2014-03-01","Sheffield City Council",{"$f":"VLOOKUP(R1027,'LA CPID Look up'!$A$3:$C$153,2,FALSE)","v":"Sheffield City Council"},"East Midlands and the Humber"]
[null,null,null,null,null,null,null,null,null,null,null,null,null,null,119672,"Congleton High School","2011-04-01","Cheshire East Council",{"$f":"VLOOKUP(R1028,'LA CPID Look up'!$A$3:$C$153,2,FALSE)","v":"Cheshire East Unitary Authority"},"West Midlands"]
[null,null,null,null,null,null,null,null,null,null,null,null,null,null,120757,"Conisbrough Ivanhoe Primary Academy","2012-01-01","Doncaster Metropolitan Borough Council",{"$f":"VLOOKUP(R1029,'LA CPID Look up'!$A$3:$C$153,2,FALSE)","v":"Doncaster Metropolitan Borough Council"},"East Midlands and the Humber"]
[null,null,null,null,null,null,null,null,null,null,null,null,null,null,124574,"Connaught Junior School","2013-10-01","Surrey County Council",{"$f":"VLOOKUP(R1030,'LA CPID Look up'!$A$3:$C$153,2,FALSE)","v":"Surrey County Council"},"South-East England and South London"]
[null,null,null,null,null,null,null,null,null,null,null,null,null,null,123061,"Connaught School for Girls","2013-02-01","Waltham Forest London Borough Council",{"$f":"VLOOKUP(R1031,'LA CPID Look up'!$A$3:$C$153,2,FALSE)","v":"Waltham Forest London Borough Council"},"East of England and North-East London"]
[null,null,null,null,null,null,null,null,null,null,null,null,null,null,123351,"Connell Sixth Form College","2013-09-01","Manchester City Council",{"$f":"VLOOKUP(R1032,'LA CPID Look up'!$A$3:$C$153,2,FALSE)","v":"Manchester City Council"},"Lancashire and West Yorkshire"]
[null,null,null,null,null,null,null,null,null,null,null,null,null,null,132028,"Connor Downs Primary School","2015-07-01","Cornwall Council",{"$f":"VLOOKUP(R1033,'LA CPID Look up'!$A$3:$C$153,2,FALSE)","v":"Cornwall Unitary Authority"},"South-West England"]
[null,null,null,null,null,null,null,null,null,null,null,null,null,null,120915,"Consett Academy","2012-01-01","Durham County Council",{"$f":"VLOOKUP(R1034,'LA CPID Look up'!$A$3:$C$153,2,FALSE)","v":"County Durham Unitary Authority"},"North of England"]
[null,null,null,null,null,null,null,null,null,null,null,null,null,null,123408,"ContinU Plus Academy","2013-09-01","Worcestershire County Council",{"$f":"VLOOKUP(R1035,'LA CPID Look up'!$A$3:$C$153,2,FALSE)","v":"Worcestershire County Council"},"West Midlands"]
[null,null,null,null,null,null,null,null,null,null,null,null,null,null,121834,"Convent of Jesus and Mary Language College","2012-04-01","Brent London Borough Council",{"$f":"VLOOKUP(R1036,'LA CPID Look up'!$A$3:$C$153,2,FALSE)","v":"Brent London Borough Council"},"South-Central England and North-West London"]
[null,null,null,null,null,null,null,null,null,null,null,null,null,null,123323,"Conyers School","2013-02-01","Stockton-on-Tees Borough Council",{"$f":"VLOOKUP(R1037,'LA CPID Look up'!$A$3:$C$153,2,FALSE)","v":"Stockton-on-Tees Borough Council"},"North of England"]
[null,null,null,null,null,null,null,null,null,null,null,null,null,null,124689,"Cooks Spinney Primary School and Nursery","2013-12-01","Essex County Council",{"$f":"VLOOKUP(R1038,'LA CPID Look up'!$A$3:$C$153,2,FALSE)","v":"Essex County Council"},"East of England and North-East London"]
[null,null,null,null,null,null,null,null,null,null,null,null,null,null,120886,"Coombe Boys' School","2012-02-01","Royal Borough of Kingston Upon Thames Council",{"$f":"VLOOKUP(R1039,'LA CPID Look up'!$A$3:$C$153,2,FALSE)","v":"Kingston upon Thames Council (Royal Borough of)"},"South-East England and South London"]
[null,null,null,null,null,null,null,null,null,null,null,null,null,null,119575,"Coombe Dean School","2011-04-01","Plymouth City Council",{"$f":"VLOOKUP(R1040,'LA CPID Look up'!$A$3:$C$153,2,FALSE)","v":"Plymouth City Council"},"South-West England"]
[null,null,null,null,null,null,null,null,null,null,null,null,null,null,120864,"Coombe Girls' School","2012-02-01","Royal Borough of Kingston Upon Thames Council",{"$f":"VLOOKUP(R1041,'LA CPID Look up'!$A$3:$C$153,2,FALSE)","v":"Kingston upon Thames Council (Royal Borough of)"},"South-East England and South London"]
[null,null,null,null,null,null,null,null,null,null,null,null,null,null,120176,"Coombeshead Academy","2011-08-01","Devon County Council",{"$f":"VLOOKUP(R1042,'LA CPID Look up'!$A$3:$C$153,2,FALSE)","v":"Devon County Council"},"South-West England"]
[null,null,null,null,null,null,null,null,null,null,null,null,null,null,129578,"Cooper School, The","2014-07-01","Oxfordshire County Council",{"$f":"VLOOKUP(R1043,'LA CPID Look up'!$A$3:$C$153,2,FALSE)","v":"Oxfordshire County Council"},"East of England and North-East London"]
[null,null,null,null,null,null,null,null,null,null,null,null,null,null,121005,"Co-operative Academy of Leeds, The","2012-09-01","Leeds City Council",{"$f":"VLOOKUP(R1044,'LA CPID Look up'!$A$3:$C$153,2,FALSE)","v":"Leeds City Council"},"Lancashire and West Yorkshire"]
[null,null,null,null,null,null,null,null,null,null,null,null,null,null,119221,"Co-operative Academy of Manchester, The","2010-09-01","Manchester City Council",{"$f":"VLOOKUP(R1045,'LA CPID Look up'!$A$3:$C$153,2,FALSE)","v":"Manchester City Council"},"Lancashire and West Yorkshire"]
[null,null,null,null,null,null,null,null,null,null,null,null,null,null,119168,"Co-operative Academy of Stoke on Trent, The","2010-09-01","Stoke-on-Trent City Council",{"$f":"VLOOKUP(R1046,'LA CPID Look up'!$A$3:$C$153,2,FALSE)","v":"Stoke-on-Trent Unitary Authority"},"West Midlands"]
[null,null,null,null,null,null,null,null,null,null,null,null,null,null,119636,"Coopers' Company and Coborn School, The","2011-04-01","Havering London Borough Council",{"$f":"VLOOKUP(R1047,'LA CPID Look up'!$A$3:$C$153,2,FALSE)","v":"Havering London Borough Council"},"East of England and North-East London"]
[null,null,null,null,null,null,null,null,null,null,null,null,null,null,119504,"Coopers School","2011-03-01","Bromley London Borough Council",{"$f":"VLOOKUP(R1048,'LA CPID Look up'!$A$3:$C$153,2,FALSE)","v":"Bromley London Borough Council"},"South-East England and South London"]
[null,null,null,null,null,null,null,null,null,null,null,null,null,null,119835,"Copleston High School","2011-07-01","Suffolk County Council",{"$f":"VLOOKUP(R1049,'LA CPID Look up'!$A$3:$C$153,2,FALSE)","v":"Suffolk County Council"},"East of England and North-East London"]
[null,null,null,null,null,null,null,null,null,null,null,null,null,null,123081,"Copley Academy","2013-02-01","Tameside Metropolitan Borough Council",{"$f":"VLOOKUP(R1050,'LA CPID Look up'!$A$3:$C$153,2,FALSE)","v":"Tameside Metropolitan Borough Council"},"Lancashire and West Yorkshire"]
[null,null,null,null,null,null,null,null,null,null,null,null,null,null,123900,"Copperfield Academy","2013-11-01","Kent County Council",{"$f":"VLOOKUP(R1051,'LA CPID Look up'!$A$3:$C$153,2,FALSE)","v":"Kent County Council"},"South-East England and South London"]
[null,null,null,null,null,null,null,null,null,null,null,null,null,null,123263,"Coppice Primary Academy","2013-09-01","Oldham Metropolitan Borough Council",{"$f":"VLOOKUP(R1052,'LA CPID Look up'!$A$3:$C$153,2,FALSE)","v":"Oldham Metropolitan Borough Council"},"Lancashire and West Yorkshire"]
[null,null,null,null,null,null,null,null,null,null,null,null,null,null,120715,"Coppice Primary School","2011-12-01","Worcestershire County Council",{"$f":"VLOOKUP(R1053,'LA CPID Look up'!$A$3:$C$153,2,FALSE)","v":"Worcestershire County Council"},"West Midlands"]
[null,null,null,null,null,null,null,null,null,null,null,null,null,null,130727,"Coppice School - Newcastle-u-Lyme","2014-10-01","Staffordshire County Council",{"$f":"VLOOKUP(R1054,'LA CPID Look up'!$A$3:$C$153,2,FALSE)","v":"Staffordshire County Council"},"West Midlands"]
[null,null,null,null,null,null,null,null,null,null,null,null,null,null,130922,"Coppice Spring School, The","2014-09-01","Hampshire County Council",{"$f":"VLOOKUP(R1055,'LA CPID Look up'!$A$3:$C$153,2,FALSE)","v":"Hampshire County Council"},"South-East England and South London"]
[null,null,null,null,null,null,null,null,null,null,null,null,null,null,120826,"Copthall School","2012-09-01","Barnet London Borough Council",{"$f":"VLOOKUP(R1056,'LA CPID Look up'!$A$3:$C$153,2,FALSE)","v":"Barnet London Borough Council"},"South-Central England and North-West London"]
[null,null,null,null,null,null,null,null,null,null,null,null,null,null,120430,"Corbet School Technology College, The","2011-09-01","Shropshire Council",{"$f":"VLOOKUP(R1057,'LA CPID Look up'!$A$3:$C$153,2,FALSE)","v":"Shropshire Unitary Authority"},"West Midlands"]
[null,null,null,null,null,null,null,null,null,null,null,null,null,null,118606,"Corby Business Academy","2008-09-03","Northamptonshire County Council",{"$f":"VLOOKUP(R1058,'LA CPID Look up'!$A$3:$C$153,2,FALSE)","v":"Northamptonshire County Council"},"East of England and North-East London"]
[null,null,null,null,null,null,null,null,null,null,null,null,null,null,126905,"Corby Primary Academy","2013-09-01","Northamptonshire County Council",{"$f":"VLOOKUP(R1059,'LA CPID Look up'!$A$3:$C$153,2,FALSE)","v":"Northamptonshire County Council"},"East of England and North-East London"]
[null,null,null,null,null,null,null,null,null,null,null,null,null,null,121975,"Corby Technical School","2012-09-01","Northamptonshire County Council",{"$f":"VLOOKUP(R1060,'LA CPID Look up'!$A$3:$C$153,2,FALSE)","v":"Northamptonshire County Council"},"East of England and North-East London"]
[null,null,null,null,null,null,null,null,null,null,null,null,null,null,122315,"Cordeaux Academy","2013-01-01","Lincolnshire County Council",{"$f":"VLOOKUP(R1061,'LA CPID Look up'!$A$3:$C$153,2,FALSE)","v":"Lincolnshire County Council"},"East Midlands and the Humber"]
[null,null,null,null,null,null,null,null,null,null,null,null,null,null,124348,"Cordwalles Junior School","2013-12-01","Surrey County Council",{"$f":"VLOOKUP(R1062,'LA CPID Look up'!$A$3:$C$153,2,FALSE)","v":"Surrey County Council"},"South-East England and South London"]
[null,null,null,null,null,null,null,null,null,null,null,null,null,null,120350,"Corelli College","2011-09-01","Greenwich London Borough Council",{"$f":"VLOOKUP(R1063,'LA CPID Look up'!$A$3:$C$153,2,FALSE)","v":"Greenwich London Borough Council"},"South-East England and South London"]
[null,null,null,null,null,null,null,null,null,null,null,null,null,null,131970,"Corfe Castle Church of England Voluntary Controlled Primary School","2015-07-01","Dorset County Council",{"$f":"VLOOKUP(R1064,'LA CPID Look up'!$A$3:$C$153,2,FALSE)","v":"Dorset County Council"},"South-West England"]
[null,null,null,null,null,null,null,null,null,null,null,null,null,null,119560,"Corfe Hills School","2011-04-01","Poole Borough Council",{"$f":"VLOOKUP(R1065,'LA CPID Look up'!$A$3:$C$153,2,FALSE)","v":"Poole (Borough of)"},"South-West England"]
[null,null,null,null,null,null,null,null,null,null,null,null,null,null,125020,"Cornelius Vermuyden School, The","2013-11-01","Essex County Council",{"$f":"VLOOKUP(R1066,'LA CPID Look up'!$A$3:$C$153,2,FALSE)","v":"Essex County Council"},"East of England and North-East London"]
[null,null,null,null,null,null,null,null,null,null,null,null,null,null,122996,"Corngreaves Academy","2013-06-01","Sandwell Metropolitan Borough Council",{"$f":"VLOOKUP(R1067,'LA CPID Look up'!$A$3:$C$153,2,FALSE)","v":"Sandwell Metropolitan Borough Council"},"West Midlands"]
[null,null,null,null,null,null,null,null,null,null,null,null,null,null,118607,"Cornwallis Academy","2007-09-01","Kent County Council",{"$f":"VLOOKUP(R1068,'LA CPID Look up'!$A$3:$C$153,2,FALSE)","v":"Kent County Council"},"South-East England and South London"]
[null,null,null,null,null,null,null,null,null,null,null,null,null,null,120295,"Corpus Christi Catholic Primary School - Lambeth","2011-08-17","Lambeth London Borough Council",{"$f":"VLOOKUP(R1069,'LA CPID Look up'!$A$3:$C$153,2,FALSE)","v":"Lambeth London Borough Council"},"South-East England and South London"]
[null,null,null,null,null,null,null,null,null,null,null,null,null,null,131660,"Corpus Christi Catholic Primary School - Wolverhampton","2015-03-01","Wolverhampton City Council",{"$f":"VLOOKUP(R1070,'LA CPID Look up'!$A$3:$C$153,2,FALSE)","v":"Wolverhampton City Council"},"West Midlands"]
[null,null,null,null,null,null,null,null,null,null,null,null,null,null,132434,"Corpus Christi Catholic School - Coventry","2015-08-01","Coventry City Council",{"$f":"VLOOKUP(R1071,'LA CPID Look up'!$A$3:$C$153,2,FALSE)","v":"Coventry City Council"},"West Midlands"]
[null,null,null,null,null,null,null,null,null,null,null,null,null,null,132284,"Corpus Christi RC Primary School - Middlesbrough","2015-11-01","Middlesbrough Council",{"$f":"VLOOKUP(R1072,'LA CPID Look up'!$A$3:$C$153,2,FALSE)","v":"Middlesbrough Council"},"North of England"]
[null,null,null,null,null,null,null,null,null,null,null,null,null,null,124988,"Corringham Primary School","2013-10-01","Thurrock Borough Council",{"$f":"VLOOKUP(R1073,'LA CPID Look up'!$A$3:$C$153,2,FALSE)","v":"Thurrock Unitary Authority"},"East of England and North-East London"]
[null,null,null,null,null,null,null,null,null,null,null,null,null,null,119565,"Corsham Primary School","2011-04-01","Wiltshire Council",{"$f":"VLOOKUP(R1074,'LA CPID Look up'!$A$3:$C$153,2,FALSE)","v":"Wiltshire Unitary Authority"},"South-West England"]
[null,null,null,null,null,null,null,null,null,null,null,null,null,null,122832,"Corsham Regis Primary Academy, The","2013-01-01","Wiltshire Council",{"$f":"VLOOKUP(R1075,'LA CPID Look up'!$A$3:$C$153,2,FALSE)","v":"Wiltshire Unitary Authority"},"South-West England"]
[null,null,null,null,null,null,null,null,null,null,null,null,null,null,119625,"Corsham School, The","2011-04-01","Wiltshire Council",{"$f":"VLOOKUP(R1076,'LA CPID Look up'!$A$3:$C$153,2,FALSE)","v":"Wiltshire Unitary Authority"},"South-West England"]
[null,null,null,null,null,null,null,null,null,null,null,null,null,null,122373,"Cosby Primary School","2012-08-01","Leicestershire County Council",{"$f":"VLOOKUP(R1077,'LA CPID Look up'!$A$3:$C$153,2,FALSE)","v":"Leicestershire County Council"},"East Midlands and the Humber"]
[null,null,null,null,null,null,null,null,null,null,null,null,null,null,121453,"Costello School, The","2012-07-01","Hampshire County Council",{"$f":"VLOOKUP(R1078,'LA CPID Look up'!$A$3:$C$153,2,FALSE)","v":"Hampshire County Council"},"South-East England and South London"]
[null,null,null,null,null,null,null,null,null,null,null,null,null,null,124742,"Costessey Infant School","2013-09-01","Norfolk County Council",{"$f":"VLOOKUP(R1079,'LA CPID Look up'!$A$3:$C$153,2,FALSE)","v":"Norfolk County Council"},"East of England and North-East London"]
[null,null,null,null,null,null,null,null,null,null,null,null,null,null,121043,"Costessey Junior School","2012-09-01","Norfolk County Council",{"$f":"VLOOKUP(R1080,'LA CPID Look up'!$A$3:$C$153,2,FALSE)","v":"Norfolk County Council"},"East of England and North-East London"]
[null,null,null,null,null,null,null,null,null,null,null,null,null,null,122984,"Coteford Junior School","2013-02-01","Hillingdon London Borough Council",{"$f":"VLOOKUP(R1081,'LA CPID Look up'!$A$3:$C$153,2,FALSE)","v":"Hillingdon London Borough Council"},"East of England and North-East London"]
[null,null,null,null,null,null,null,null,null,null,null,null,null,null,121190,"Cotgrave Candleby Lane School","2012-07-01","Nottinghamshire County Council",{"$f":"VLOOKUP(R1082,'LA CPID Look up'!$A$3:$C$153,2,FALSE)","v":"Nottinghamshire County Council"},"East Midlands and the Humber"]
[null,null,null,null,null,null,null,null,null,null,null,null,null,null,120389,"Cotham School","2011-09-01","Bristol City Council",{"$f":"VLOOKUP(R1083,'LA CPID Look up'!$A$3:$C$153,2,FALSE)","v":"Bristol City Council"},"South-West England"]
[null,null,null,null,null,null,null,null,null,null,null,null,null,null,119252,"Cotswold Academy, The","2010-09-06","Gloucestershire County Council",{"$f":"VLOOKUP(R1084,'LA CPID Look up'!$A$3:$C$153,2,FALSE)","v":"Gloucestershire County Council"},"South-West England"]
[null,null,null,null,null,null,null,null,null,null,null,null,null,null,120325,"Cottenham Village College","2011-09-01","Cambridgeshire County Council",{"$f":"VLOOKUP(R1085,'LA CPID Look up'!$A$3:$C$153,2,FALSE)","v":"Cambridgeshire County Council"},"East of England and North-East London"]
[null,null,null,null,null,null,null,null,null,null,null,null,null,null,129559,"Cottesbrooke Infant School","2014-04-01","Birmingham City Council",{"$f":"VLOOKUP(R1086,'LA CPID Look up'!$A$3:$C$153,2,FALSE)","v":"Birmingham City Council"},"West Midlands"]
[null,null,null,null,null,null,null,null,null,null,null,null,null,null,133101,"Cottesmore Millfield Academy","2016-01-01","Rutland County Council",{"$f":"VLOOKUP(R1087,'LA CPID Look up'!$A$3:$C$153,2,FALSE)","v":"Rutland County Council"},"East Midlands and the Humber"]
[null,null,null,null,null,null,null,null,null,null,null,null,null,null,133645,"Cottingham CofE Primary School Academy Trust","2016-03-01","Northamptonshire County Council",{"$f":"VLOOKUP(R1088,'LA CPID Look up'!$A$3:$C$153,2,FALSE)","v":"Northamptonshire County Council"},"East of England and North-East London"]
[null,null,null,null,null,null,null,null,null,null,null,null,null,null,119907,"Cottingham High School and Sixth Form College","2011-07-01","East Riding of Yorkshire Council",{"$f":"VLOOKUP(R1089,'LA CPID Look up'!$A$3:$C$153,2,FALSE)","v":"East Riding of Yorkshire Council"},"East Midlands and the Humber"]
[null,null,null,null,null,null,null,null,null,null,null,null,null,null,122304,"Cottingley Primary Academy","2012-12-01","Leeds City Council",{"$f":"VLOOKUP(R1090,'LA CPID Look up'!$A$3:$C$153,2,FALSE)","v":"Leeds City Council"},"Lancashire and West Yorkshire"]
[null,null,null,null,null,null,null,null,null,null,null,null,null,null,121126,"Coundon Court","2012-04-01","Coventry City Council",{"$f":"VLOOKUP(R1091,'LA CPID Look up'!$A$3:$C$153,2,FALSE)","v":"Coventry City Council"},"West Midlands"]
[null,null,null,null,null,null,null,null,null,null,null,null,null,null,124586,"Countess Anne School, Hatfield","2013-10-01","Hertfordshire County Council",{"$f":"VLOOKUP(R1092,'LA CPID Look up'!$A$3:$C$153,2,FALSE)","v":"Hertfordshire County Council"},"East of England and North-East London"]
[null,null,null,null,null,null,null,null,null,null,null,null,null,null,122374,"Countesthorpe Community College","2012-08-01","Leicestershire County Council",{"$f":"VLOOKUP(R1093,'LA CPID Look up'!$A$3:$C$153,2,FALSE)","v":"Leicestershire County Council"},"East Midlands and the Humber"]
[null,null,null,null,null,null,null,null,null,null,null,null,null,null,122134,"County High School Leftwich, The","2012-09-01","Cheshire West and Chester Council",{"$f":"VLOOKUP(R1094,'LA CPID Look up'!$A$3:$C$153,2,FALSE)","v":"Cheshire West and Chester Unitary Authority"},"West Midlands"]
[null,null,null,null,null,null,null,null,null,null,null,null,null,null,131366,"Coupals Community Primary School","2015-01-01","Suffolk County Council",{"$f":"VLOOKUP(R1095,'LA CPID Look up'!$A$3:$C$153,2,FALSE)","v":"Suffolk County Council"},"East of England and North-East London"]
[null,null,null,null,null,null,null,null,null,null,null,null,null,null,124670,"Court Fields School","2014-01-01","Somerset County Council",{"$f":"VLOOKUP(R1096,'LA CPID Look up'!$A$3:$C$153,2,FALSE)","v":"Somerset County Council"},"South-West England"]
[null,null,null,null,null,null,null,null,null,null,null,null,null,null,133171,"Court-de-Wyck Primary School","2015-12-01","North Somerset District Council",{"$f":"VLOOKUP(R1097,'LA CPID Look up'!$A$3:$C$153,2,FALSE)","v":"North Somerset Council"},"South-West England"]
[null,null,null,null,null,null,null,null,null,null,null,null,null,null,124256,"Courtyard AP Academy","2013-04-01","Hammersmith and Fulham London Borough Council",{"$f":"VLOOKUP(R1098,'LA CPID Look up'!$A$3:$C$153,2,FALSE)","v":"Hammersmith and Fulham London Borough Council"},"South-Central England and North-West London"]
[null,null,null,null,null,null,null,null,null,null,null,null,null,null,126521,"Coverack Community Primary School","2014-03-01","Cornwall Council",{"$f":"VLOOKUP(R1099,'LA CPID Look up'!$A$3:$C$153,2,FALSE)","v":"Cornwall Unitary Authority"},"South-West England"]
[null,null,null,null,null,null,null,null,null,null,null,null,null,null,130629,"Cowes Enterprise College","2014-09-01","Isle of Wight Council",{"$f":"VLOOKUP(R1100,'LA CPID Look up'!$A$3:$C$153,2,FALSE)","v":"Isle of Wight Council"},"South-East England and South London"]
[null,null,null,null,null,null,null,null,null,null,null,null,null,null,133185,"Cowlersley Primary School","2016-02-01","Kirklees Metropolitan Council",{"$f":"VLOOKUP(R1101,'LA CPID Look up'!$A$3:$C$153,2,FALSE)","v":"Kirklees Metropolitan Council"},"Lancashire and West Yorkshire"]
[null,null,null,null,null,null,null,null,null,null,null,null,null,null,123160,"Cowley St Laurence CofE Primary School","2013-02-01","Hillingdon London Borough Council",{"$f":"VLOOKUP(R1102,'LA CPID Look up'!$A$3:$C$153,2,FALSE)","v":"Hillingdon London Borough Council"},"East of England and North-East London"]
[null,null,null,null,null,null,null,null,null,null,null,null,null,null,120847,"Cowplain Community School","2012-04-01","Hampshire County Council",{"$f":"VLOOKUP(R1103,'LA CPID Look up'!$A$3:$C$153,2,FALSE)","v":"Hampshire County Council"},"South-East England and South London"]
[null,null,null,null,null,null,null,null,null,null,null,null,null,null,120817,"Cox Green School","2011-12-01","Royal Borough of Windsor and Maidenhead",{"$f":"VLOOKUP(R1104,'LA CPID Look up'!$A$3:$C$153,2,FALSE)","v":"Windsor and Maidenhead (Royal Borough of)"},"East of England and North-East London"]
[null,null,null,null,null,null,null,null,null,null,null,null,null,null,123828,"Crabbs' Cross Academy","2013-09-01","Worcestershire County Council",{"$f":"VLOOKUP(R1105,'LA CPID Look up'!$A$3:$C$153,2,FALSE)","v":"Worcestershire County Council"},"West Midlands"]
[null,null,null,null,null,null,null,null,null,null,null,null,null,null,124780,"Crabtree Infants' School","2014-04-01","Hertfordshire County Council",{"$f":"VLOOKUP(R1106,'LA CPID Look up'!$A$3:$C$153,2,FALSE)","v":"Hertfordshire County Council"},"East of England and North-East London"]
[null,null,null,null,null,null,null,null,null,null,null,null,null,null,124744,"Crabtree Junior School","2014-04-01","Hertfordshire County Council",{"$f":"VLOOKUP(R1107,'LA CPID Look up'!$A$3:$C$153,2,FALSE)","v":"Hertfordshire County Council"},"East of England and North-East London"]
[null,null,null,null,null,null,null,null,null,null,null,null,null,null,120424,"Cramlington Learning Village","2011-09-01","Northumberland County Council",{"$f":"VLOOKUP(R1108,'LA CPID Look up'!$A$3:$C$153,2,FALSE)","v":"Northumberland Unitary Authority"},"North of England"]
[null,null,null,null,null,null,null,null,null,null,null,null,null,null,121976,"Cramlington Village Primary School","2012-09-01","Northumberland County Council",{"$f":"VLOOKUP(R1109,'LA CPID Look up'!$A$3:$C$153,2,FALSE)","v":"Northumberland Unitary Authority"},"North of England"]
[null,null,null,null,null,null,null,null,null,null,null,null,null,null,124635,"Cranberry Academy","2013-11-01","Cheshire East Council",{"$f":"VLOOKUP(R1110,'LA CPID Look up'!$A$3:$C$153,2,FALSE)","v":"Cheshire East Unitary Authority"},"West Midlands"]
[null,null,null,null,null,null,null,null,null,null,null,null,null,null,131839,"Cranbrook Education Campus","2015-09-01","Devon County Council",{"$f":"VLOOKUP(R1111,'LA CPID Look up'!$A$3:$C$153,2,FALSE)","v":"Devon County Council"},"South-West England"]
[null,null,null,null,null,null,null,null,null,null,null,null,null,null,120626,"Cranbrook School","2011-12-01","Kent County Council",{"$f":"VLOOKUP(R1112,'LA CPID Look up'!$A$3:$C$153,2,FALSE)","v":"Kent County Council"},"South-East England and South London"]
[null,null,null,null,null,null,null,null,null,null,null,null,null,null,120772,"Cranfield Church of England Academy","2012-02-01","Central Bedfordshire Council",{"$f":"VLOOKUP(R1113,'LA CPID Look up'!$A$3:$C$153,2,FALSE)","v":"Central Bedfordshire Unitary Authority"},"South-Central England and North-West London"]
[null,null,null,null,null,null,null,null,null,null,null,null,null,null,119613,"Cranford Community College","2011-04-01","Hounslow London Borough Council",{"$f":"VLOOKUP(R1114,'LA CPID Look up'!$A$3:$C$153,2,FALSE)","v":"Hounslow London Borough Council"},"East of England and North-East London"]
[null,null,null,null,null,null,null,null,null,null,null,null,null,null,122678,"Cranford Park Academy","2012-09-01","Hillingdon London Borough Council",{"$f":"VLOOKUP(R1115,'LA CPID Look up'!$A$3:$C$153,2,FALSE)","v":"Hillingdon London Borough Council"},"East of England and North-East London"]
[null,null,null,null,null,null,null,null,null,null,null,null,null,null,124229,"Craven Primary Academy","2013-11-01","Hull City Council",{"$f":"VLOOKUP(R1116,'LA CPID Look up'!$A$3:$C$153,2,FALSE)","v":"Kingston upon Hull City Council"},"East Midlands and the Humber"]
[null,null,null,null,null,null,null,null,null,null,null,null,null,null,127109,"Cravenwood Primary Academy","2014-04-01","Manchester City Council",{"$f":"VLOOKUP(R1117,'LA CPID Look up'!$A$3:$C$153,2,FALSE)","v":"Manchester City Council"},"Lancashire and West Yorkshire"]
[null,null,null,null,null,null,null,null,null,null,null,null,null,null,122149,"Crawshaw Academy","2012-07-01","Leeds City Council",{"$f":"VLOOKUP(R1118,'LA CPID Look up'!$A$3:$C$153,2,FALSE)","v":"Leeds City Council"},"Lancashire and West Yorkshire"]
[null,null,null,null,null,null,null,null,null,null,null,null,null,null,123385,"Create Studio","2013-09-01","East Riding of Yorkshire Council",{"$f":"VLOOKUP(R1119,'LA CPID Look up'!$A$3:$C$153,2,FALSE)","v":"East Riding of Yorkshire Council"},"East Midlands and the Humber"]
[null,null,null,null,null,null,null,null,null,null,null,null,null,null,119941,"Crescent Academy, The","2012-08-01","Stoke-on-Trent City Council",{"$f":"VLOOKUP(R1120,'LA CPID Look up'!$A$3:$C$153,2,FALSE)","v":"Stoke-on-Trent Unitary Authority"},"West Midlands"]
[null,null,null,null,null,null,null,null,null,null,null,null,null,null,132420,"Crescent Primary School, The","2015-10-01","Croydon London Borough Council",{"$f":"VLOOKUP(R1121,'LA CPID Look up'!$A$3:$C$153,2,FALSE)","v":"Croydon London Borough Council"},"South-East England and South London"]
[null,null,null,null,null,null,null,null,null,null,null,null,null,null,119083,"Crest Academies, The","2009-09-07","Brent London Borough Council",{"$f":"VLOOKUP(R1122,'LA CPID Look up'!$A$3:$C$153,2,FALSE)","v":"Brent London Borough Council"},"South-Central England and North-West London"]
[null,null,null,null,null,null,null,null,null,null,null,null,null,null,119084,"Crest Boys' Academy","2009-09-09","Brent London Borough Council",{"$f":"VLOOKUP(R1123,'LA CPID Look up'!$A$3:$C$153,2,FALSE)","v":"Brent London Borough Council"},"South-Central England and North-West London"]
[null,null,null,null,null,null,null,null,null,null,null,null,null,null,131361,"Crestwood School, The","2015-03-01","Dudley Metropolitan Borough Council",{"$f":"VLOOKUP(R1124,'LA CPID Look up'!$A$3:$C$153,2,FALSE)","v":"Dudley Metropolitan Borough Council"},"West Midlands"]
[null,null,null,null,null,null,null,null,null,null,null,null,null,null,122119,"Crigglestone St James CofE Primary Academy","2012-07-01","Wakefield Council",{"$f":"VLOOKUP(R1125,'LA CPID Look up'!$A$3:$C$153,2,FALSE)","v":"Wakefield City Council"},"Lancashire and West Yorkshire"]
[null,null,null,null,null,null,null,null,null,null,null,null,null,null,130474,"Cringle Brook Primary School","2014-04-01","Manchester City Council",{"$f":"VLOOKUP(R1126,'LA CPID Look up'!$A$3:$C$153,2,FALSE)","v":"Manchester City Council"},"Lancashire and West Yorkshire"]
[null,null,null,null,null,null,null,null,null,null,null,null,null,null,119913,"Crispin School Academy","2011-07-01","Somerset County Council",{"$f":"VLOOKUP(R1127,'LA CPID Look up'!$A$3:$C$153,2,FALSE)","v":"Somerset County Council"},"South-West England"]
[null,null,null,null,null,null,null,null,null,null,null,null,null,null,122046,"Croft Academy","2012-09-01","Walsall Metropolitan Borough Council",{"$f":"VLOOKUP(R1128,'LA CPID Look up'!$A$3:$C$153,2,FALSE)","v":"Walsall Metropolitan Borough Council"},"West Midlands"]
[null,null,null,null,null,null,null,null,null,null,null,null,null,null,121917,"Croft Primary School, The","2012-09-01","Swindon Borough Council",{"$f":"VLOOKUP(R1129,'LA CPID Look up'!$A$3:$C$153,2,FALSE)","v":"Swindon Unitary Authority"},"South-West England"]
[null,null,null,null,null,null,null,null,null,null,null,null,null,null,120001,"Crofton Academy","2011-08-01","Wakefield Council",{"$f":"VLOOKUP(R1130,'LA CPID Look up'!$A$3:$C$153,2,FALSE)","v":"Wakefield City Council"},"Lancashire and West Yorkshire"]
[null,null,null,null,null,null,null,null,null,null,null,null,null,null,122398,"Crofton Infant School - Orpington","2012-09-01","Bromley London Borough Council",{"$f":"VLOOKUP(R1131,'LA CPID Look up'!$A$3:$C$153,2,FALSE)","v":"Bromley London Borough Council"},"South-East England and South London"]
[null,null,null,null,null,null,null,null,null,null,null,null,null,null,133180,"Crofton Infant School - Wakefield","2015-12-01","Wakefield Council",{"$f":"VLOOKUP(R1132,'LA CPID Look up'!$A$3:$C$153,2,FALSE)","v":"Wakefield City Council"},"Lancashire and West Yorkshire"]
[null,null,null,null,null,null,null,null,null,null,null,null,null,null,120518,"Crofton Junior School","2011-12-01","Bromley London Borough Council",{"$f":"VLOOKUP(R1133,'LA CPID Look up'!$A$3:$C$153,2,FALSE)","v":"Bromley London Borough Council"},"South-East England and South London"]
[null,null,null,null,null,null,null,null,null,null,null,null,null,null,124118,"Croftway Primary Academy","2013-06-01","Northumberland County Council",{"$f":"VLOOKUP(R1134,'LA CPID Look up'!$A$3:$C$153,2,FALSE)","v":"Northumberland Unitary Authority"},"North of England"]
[null,null,null,null,null,null,null,null,null,null,null,null,null,null,120326,"Cromer Academy","2011-09-01","Norfolk County Council",{"$f":"VLOOKUP(R1135,'LA CPID Look up'!$A$3:$C$153,2,FALSE)","v":"Norfolk County Council"},"East of England and North-East London"]
[null,null,null,null,null,null,null,null,null,null,null,null,null,null,120294,"Crompton House Church of England Academy, The","2011-08-17","Oldham Metropolitan Borough Council",{"$f":"VLOOKUP(R1136,'LA CPID Look up'!$A$3:$C$153,2,FALSE)","v":"Oldham Metropolitan Borough Council"},"Lancashire and West Yorkshire"]
[null,null,null,null,null,null,null,null,null,null,null,null,null,null,130358,"Cromwell Academy","2014-09-01","Cambridgeshire County Council",{"$f":"VLOOKUP(R1137,'LA CPID Look up'!$A$3:$C$153,2,FALSE)","v":"Cambridgeshire County Council"},"East of England and North-East London"]
[null,null,null,null,null,null,null,null,null,null,null,null,null,null,121145,"Cromwell Community College","2012-06-01","Cambridgeshire County Council",{"$f":"VLOOKUP(R1138,'LA CPID Look up'!$A$3:$C$153,2,FALSE)","v":"Cambridgeshire County Council"},"East of England and North-East London"]
[null,null,null,null,null,null,null,null,null,null,null,null,null,null,120897,"Crookesbroom Primary Academy","2012-04-01","Doncaster Metropolitan Borough Council",{"$f":"VLOOKUP(R1139,'LA CPID Look up'!$A$3:$C$153,2,FALSE)","v":"Doncaster Metropolitan Borough Council"},"East Midlands and the Humber"]
[null,null,null,null,null,null,null,null,null,null,null,null,null,null,123053,"Crosby-on-Eden CofE School","2012-11-01","Cumbria County Council",{"$f":"VLOOKUP(R1140,'LA CPID Look up'!$A$3:$C$153,2,FALSE)","v":"Cumbria County Council"},"North of England"]
[null,null,null,null,null,null,null,null,null,null,null,null,null,null,132491,"Cross Farm Infant School","2015-10-01","Surrey County Council",{"$f":"VLOOKUP(R1141,'LA CPID Look up'!$A$3:$C$153,2,FALSE)","v":"Surrey County Council"},"South-East England and South London"]
[null,null,null,null,null,null,null,null,null,null,null,null,null,null,124334,"Crossacres Primary Academy","2014-04-01","Manchester City Council",{"$f":"VLOOKUP(R1142,'LA CPID Look up'!$A$3:$C$153,2,FALSE)","v":"Manchester City Council"},"Lancashire and West Yorkshire"]
[null,null,null,null,null,null,null,null,null,null,null,null,null,null,119283,"Crosshall Infant School Academy Trust","2010-10-01","Cambridgeshire County Council",{"$f":"VLOOKUP(R1143,'LA CPID Look up'!$A$3:$C$153,2,FALSE)","v":"Cambridgeshire County Council"},"East of England and North-East London"]
[null,null,null,null,null,null,null,null,null,null,null,null,null,null,119284,"Crosshall Junior School","2010-10-01","Cambridgeshire County Council",{"$f":"VLOOKUP(R1144,'LA CPID Look up'!$A$3:$C$153,2,FALSE)","v":"Cambridgeshire County Council"},"East of England and North-East London"]
[null,null,null,null,null,null,null,null,null,null,null,null,null,null,120701,"Crossley Heath School, The","2013-01-01","Calderdale Metropolitan Borough Council",{"$f":"VLOOKUP(R1145,'LA CPID Look up'!$A$3:$C$153,2,FALSE)","v":"Calderdale Metropolitan Borough Council"},"Lancashire and West Yorkshire"]
[null,null,null,null,null,null,null,null,null,null,null,null,null,null,122995,"Crowle Primary School","2012-12-01","North Lincolnshire Council",{"$f":"VLOOKUP(R1146,'LA CPID Look up'!$A$3:$C$153,2,FALSE)","v":"North Lincolnshire Council"},"East Midlands and the Humber"]
[null,null,null,null,null,null,null,null,null,null,null,null,null,null,127313,"Croxton Kerrial Church of England Primary School","2013-11-01","Leicestershire County Council",{"$f":"VLOOKUP(R1147,'LA CPID Look up'!$A$3:$C$153,2,FALSE)","v":"Leicestershire County Council"},"East Midlands and the Humber"]
[null,null,null,null,null,null,null,null,null,null,null,null,null,null,119557,"Crypt School, The","2011-04-01","Gloucestershire County Council",{"$f":"VLOOKUP(R1148,'LA CPID Look up'!$A$3:$C$153,2,FALSE)","v":"Gloucestershire County Council"},"South-West England"]
[null,null,null,null,null,null,null,null,null,null,null,null,null,null,117814,"CTC Kingshurst Academy","2008-09-05","Solihull Metropolitan Borough Council",{"$f":"VLOOKUP(R1149,'LA CPID Look up'!$A$3:$C$153,2,FALSE)","v":"Solihull Metropolitan Borough Council"},"West Midlands"]
[null,null,null,null,null,null,null,null,null,null,null,null,null,null,132036,"Cuckmere House School","2015-09-01","East Sussex County Council",{"$f":"VLOOKUP(R1150,'LA CPID Look up'!$A$3:$C$153,2,FALSE)","v":"East Sussex County Council"},"South-East England and South London"]
[null,null,null,null,null,null,null,null,null,null,null,null,null,null,119260,"Cuckoo Hall Academy","2010-09-01","Enfield London Borough Council",{"$f":"VLOOKUP(R1151,'LA CPID Look up'!$A$3:$C$153,2,FALSE)","v":"Enfield London Borough Council"},"South-Central England and North-West London"]
[null,null,null,null,null,null,null,null,null,null,null,null,null,null,130836,"Cuddington Croft Primary School","2014-10-01","Surrey County Council",{"$f":"VLOOKUP(R1152,'LA CPID Look up'!$A$3:$C$153,2,FALSE)","v":"Surrey County Council"},"South-East England and South London"]
[null,null,null,null,null,null,null,null,null,null,null,null,null,null,131144,"Cudham Church of England Primary School","2015-04-01","Bromley London Borough Council",{"$f":"VLOOKUP(R1153,'LA CPID Look up'!$A$3:$C$153,2,FALSE)","v":"Bromley London Borough Council"},"South-East England and South London"]
[null,null,null,null,null,null,null,null,null,null,null,null,null,null,122986,"Culloden Primary - A Paradigm Academy","2013-09-01","Tower Hamlets London Borough Council",{"$f":"VLOOKUP(R1154,'LA CPID Look up'!$A$3:$C$153,2,FALSE)","v":"Tower Hamlets London Borough Council"},"East of England and North-East London"]
[null,null,null,null,null,null,null,null,null,null,null,null,null,null,131693,"Culverstone Green Primary School","2015-10-01","Kent County Council",{"$f":"VLOOKUP(R1155,'LA CPID Look up'!$A$3:$C$153,2,FALSE)","v":"Kent County Council"},"South-East England and South London"]
[null,null,null,null,null,null,null,null,null,null,null,null,null,null,124157,"Culworth Church of England School","2013-09-01","Northamptonshire County Council",{"$f":"VLOOKUP(R1156,'LA CPID Look up'!$A$3:$C$153,2,FALSE)","v":"Northamptonshire County Council"},"East of England and North-East London"]
[null,null,null,null,null,null,null,null,null,null,null,null,null,null,122662,"Curledge Street Academy","2012-09-01","Torbay Council",{"$f":"VLOOKUP(R1157,'LA CPID Look up'!$A$3:$C$153,2,FALSE)","v":"Torbay Council"},"South-West England"]
[null,null,null,null,null,null,null,null,null,null,null,null,null,null,130886,"Cutnall Green CofE First","2014-10-01","Worcestershire County Council",{"$f":"VLOOKUP(R1158,'LA CPID Look up'!$A$3:$C$153,2,FALSE)","v":"Worcestershire County Council"},"West Midlands"]
[null,null,null,null,null,null,null,null,null,null,null,null,null,null,122430,"Cutteslowe Primary School","2013-04-01","Oxfordshire County Council",{"$f":"VLOOKUP(R1159,'LA CPID Look up'!$A$3:$C$153,2,FALSE)","v":"Oxfordshire County Council"},"East of England and North-East London"]
[null,null,null,null,null,null,null,null,null,null,null,null,null,null,131068,"Cuxton Community Infant School","2014-09-01","Medway Council",{"$f":"VLOOKUP(R1160,'LA CPID Look up'!$A$3:$C$153,2,FALSE)","v":"Medway Towns Unitary Authority (The)"},"South-East England and South London"]
[null,null,null,null,null,null,null,null,null,null,null,null,null,null,130751,"Cuxton Community Junior School","2014-09-01","Medway Council",{"$f":"VLOOKUP(R1161,'LA CPID Look up'!$A$3:$C$153,2,FALSE)","v":"Medway Towns Unitary Authority (The)"},"South-East England and South London"]
[null,null,null,null,null,null,null,null,null,null,null,null,null,null,123381,"Da Vinci Studio School of Creative Enterprise, The","2013-09-01","Hertfordshire County Council",{"$f":"VLOOKUP(R1162,'LA CPID Look up'!$A$3:$C$153,2,FALSE)","v":"Hertfordshire County Council"},"East of England and North-East London"]
[null,null,null,null,null,null,null,null,null,null,null,null,null,null,122525,"Da Vinci Studio School of Science and Engineering, The","2012-09-01","Hertfordshire County Council",{"$f":"VLOOKUP(R1163,'LA CPID Look up'!$A$3:$C$153,2,FALSE)","v":"Hertfordshire County Council"},"East of England and North-East London"]
[null,null,null,null,null,null,null,null,null,null,null,null,null,null,120205,"Dallam School","2011-08-01","Cumbria County Council",{"$f":"VLOOKUP(R1164,'LA CPID Look up'!$A$3:$C$153,2,FALSE)","v":"Cumbria County Council"},"North of England"]
[null,null,null,null,null,null,null,null,null,null,null,null,null,null,123262,"Dallow Primary School","2013-12-01","Luton Borough Council",{"$f":"VLOOKUP(R1165,'LA CPID Look up'!$A$3:$C$153,2,FALSE)","v":"Luton Borough Council"},"East of England and North-East London"]
[null,null,null,null,null,null,null,null,null,null,null,null,null,null,130868,"Dalton Listerdale Academy","2014-11-01","Rotherham Metropolitan Borough Council",{"$f":"VLOOKUP(R1166,'LA CPID Look up'!$A$3:$C$153,2,FALSE)","v":"Rotherham Borough Council"},"East Midlands and the Humber"]
[null,null,null,null,null,null,null,null,null,null,null,null,null,null,119614,"Dame Alice Owen's School","2011-04-01","Hertfordshire County Council",{"$f":"VLOOKUP(R1167,'LA CPID Look up'!$A$3:$C$153,2,FALSE)","v":"Hertfordshire County Council"},"East of England and North-East London"]
[null,null,null,null,null,null,null,null,null,null,null,null,null,null,121938,"Dame Janet Primary Academy","2012-12-01","Kent County Council",{"$f":"VLOOKUP(R1168,'LA CPID Look up'!$A$3:$C$153,2,FALSE)","v":"Kent County Council"},"South-East England and South London"]
[null,null,null,null,null,null,null,null,null,null,null,null,null,null,119663,"Dane Court Grammar School","2011-04-01","Kent County Council",{"$f":"VLOOKUP(R1169,'LA CPID Look up'!$A$3:$C$153,2,FALSE)","v":"Kent County Council"},"South-East England and South London"]
[null,null,null,null,null,null,null,null,null,null,null,null,null,null,131831,"Danecourt School","2015-09-01","Medway Council",{"$f":"VLOOKUP(R1170,'LA CPID Look up'!$A$3:$C$153,2,FALSE)","v":"Medway Towns Unitary Authority (The)"},"South-East England and South London"]
[null,null,null,null,null,null,null,null,null,null,null,null,null,null,127273,"Danesfield Church of England Voluntary Controlled Community Middle School","2014-03-01","Somerset County Council",{"$f":"VLOOKUP(R1171,'LA CPID Look up'!$A$3:$C$153,2,FALSE)","v":"Somerset County Council"},"South-West England"]
[null,null,null,null,null,null,null,null,null,null,null,null,null,null,132942,"Danesholme Junior Academy","2015-09-01","Northamptonshire County Council",{"$f":"VLOOKUP(R1172,'LA CPID Look up'!$A$3:$C$153,2,FALSE)","v":"Northamptonshire County Council"},"East of England and North-East London"]
[null,null,null,null,null,null,null,null,null,null,null,null,null,null,122792,"Danetree Junior School","2012-09-01","Surrey County Council",{"$f":"VLOOKUP(R1173,'LA CPID Look up'!$A$3:$C$153,2,FALSE)","v":"Surrey County Council"},"South-East England and South London"]
[null,null,null,null,null,null,null,null,null,null,null,null,null,null,120490,"Danum Academy","2011-10-01","Doncaster Metropolitan Borough Council",{"$f":"VLOOKUP(R1174,'LA CPID Look up'!$A$3:$C$153,2,FALSE)","v":"Doncaster Metropolitan Borough Council"},"East Midlands and the Humber"]
[null,null,null,null,null,null,null,null,null,null,null,null,null,null,124061,"Darfield Primary Academy, The","2013-09-01","Barnsley Metropolitan Borough Council",{"$f":"VLOOKUP(R1175,'LA CPID Look up'!$A$3:$C$153,2,FALSE)","v":"Barnsley Metropolitan Borough Council"},"East Midlands and the Humber"]
[null,null,null,null,null,null,null,null,null,null,null,null,null,null,129557,"Darlinghurst School","2014-01-01","Southend-on-Sea Borough Council",{"$f":"VLOOKUP(R1176,'LA CPID Look up'!$A$3:$C$153,2,FALSE)","v":"Southend-on-Sea Borough Council"},"East of England and North-East London"]
[null,null,null,null,null,null,null,null,null,null,null,null,null,null,120122,"Darlington School of Maths and Science","2012-01-01","Darlington Borough Council",{"$f":"VLOOKUP(R1177,'LA CPID Look up'!$A$3:$C$153,2,FALSE)","v":"Darlington Borough Council"},"North of England"]
[null,null,null,null,null,null,null,null,null,null,null,null,null,null,120032,"Darrick Wood Infant School","2011-08-01","Bromley London Borough Council",{"$f":"VLOOKUP(R1178,'LA CPID Look up'!$A$3:$C$153,2,FALSE)","v":"Bromley London Borough Council"},"South-East England and South London"]
[null,null,null,null,null,null,null,null,null,null,null,null,null,null,119382,"Darrick Wood School","2010-12-01","Bromley London Borough Council",{"$f":"VLOOKUP(R1179,'LA CPID Look up'!$A$3:$C$153,2,FALSE)","v":"Bromley London Borough Council"},"South-East England and South London"]
[null,null,null,null,null,null,null,null,null,null,null,null,null,null,124643,"Darrington Church of England Primary School","2013-09-01","Wakefield Council",{"$f":"VLOOKUP(R1180,'LA CPID Look up'!$A$3:$C$153,2,FALSE)","v":"Wakefield City Council"},"Lancashire and West Yorkshire"]
[null,null,null,null,null,null,null,null,null,null,null,null,null,null,119383,"Dartford Grammar School","2010-12-01","Kent County Council",{"$f":"VLOOKUP(R1181,'LA CPID Look up'!$A$3:$C$153,2,FALSE)","v":"Kent County Council"},"South-East England and South London"]
[null,null,null,null,null,null,null,null,null,null,null,null,null,null,131069,"Dartford Primary","2014-11-01","Kent County Council",{"$f":"VLOOKUP(R1182,'LA CPID Look up'!$A$3:$C$153,2,FALSE)","v":"Kent County Council"},"South-East England and South London"]
[null,null,null,null,null,null,null,null,null,null,null,null,null,null,119337,"Dartmouth Academy","2010-09-01","Devon County Council",{"$f":"VLOOKUP(R1183,'LA CPID Look up'!$A$3:$C$153,2,FALSE)","v":"Devon County Council"},"South-West England"]
[null,null,null,null,null,null,null,null,null,null,null,null,null,null,126451,"Darton Primary School","2014-02-01","Barnsley Metropolitan Borough Council",{"$f":"VLOOKUP(R1184,'LA CPID Look up'!$A$3:$C$153,2,FALSE)","v":"Barnsley Metropolitan Borough Council"},"East Midlands and the Humber"]
[null,null,null,null,null,null,null,null,null,null,null,null,null,null,118611,"Darwen Aldridge Community Academy","2008-09-01","Blackburn with Darwen Borough Council",{"$f":"VLOOKUP(R1185,'LA CPID Look up'!$A$3:$C$153,2,FALSE)","v":"Blackburn with Darwen Unitary Authority"},"Lancashire and West Yorkshire"]
[null,null,null,null,null,null,null,null,null,null,null,null,null,null,123382,"Darwen Aldridge Enterprise Studio","2013-09-01","Blackburn with Darwen Borough Council",{"$f":"VLOOKUP(R1186,'LA CPID Look up'!$A$3:$C$153,2,FALSE)","v":"Blackburn with Darwen Unitary Authority"},"Lancashire and West Yorkshire"]
[null,null,null,null,null,null,null,null,null,null,null,null,null,null,129889,"Darwen St James CofE Primary Academy","2014-10-01","Blackburn with Darwen Borough Council",{"$f":"VLOOKUP(R1187,'LA CPID Look up'!$A$3:$C$153,2,FALSE)","v":"Blackburn with Darwen Unitary Authority"},"Lancashire and West Yorkshire"]
[null,null,null,null,null,null,null,null,null,null,null,null,null,null,131137,"Darwen Vale High School","2014-12-01","Blackburn with Darwen Borough Council",{"$f":"VLOOKUP(R1188,'LA CPID Look up'!$A$3:$C$153,2,FALSE)","v":"Blackburn with Darwen Unitary Authority"},"Lancashire and West Yorkshire"]
[null,null,null,null,null,null,null,null,null,null,null,null,null,null,130837,"Darwen, St Barnabas CofE Primary Academy","2014-10-01","Blackburn with Darwen Borough Council",{"$f":"VLOOKUP(R1189,'LA CPID Look up'!$A$3:$C$153,2,FALSE)","v":"Blackburn with Darwen Unitary Authority"},"Lancashire and West Yorkshire"]
[null,null,null,null,null,null,null,null,null,null,null,null,null,null,120592,"Dashwood Banbury Academy","2012-08-01","Oxfordshire County Council",{"$f":"VLOOKUP(R1190,'LA CPID Look up'!$A$3:$C$153,2,FALSE)","v":"Oxfordshire County Council"},"East of England and North-East London"]
[null,null,null,null,null,null,null,null,null,null,null,null,null,null,120827,"Datchet St Mary's CofE Primary School","2012-01-01","Royal Borough of Windsor and Maidenhead",{"$f":"VLOOKUP(R1191,'LA CPID Look up'!$A$3:$C$153,2,FALSE)","v":"Windsor and Maidenhead (Royal Borough of)"},"East of England and North-East London"]
[null,null,null,null,null,null,null,null,null,null,null,null,null,null,121098,"Daubeney Academy","2012-04-01","Bedford Borough Council",{"$f":"VLOOKUP(R1192,'LA CPID Look up'!$A$3:$C$153,2,FALSE)","v":"Bedford Unitary Authority"},"South-Central England and North-West London"]
[null,null,null,null,null,null,null,null,null,null,null,null,null,null,124328,"Dauntsey Academy Primary School","2013-08-01","Wiltshire Council",{"$f":"VLOOKUP(R1193,'LA CPID Look up'!$A$3:$C$153,2,FALSE)","v":"Wiltshire Unitary Authority"},"South-West England"]
[null,null,null,null,null,null,null,null,null,null,null,null,null,null,119539,"Davenant Foundation School","2011-04-01","Essex County Council",{"$f":"VLOOKUP(R1194,'LA CPID Look up'!$A$3:$C$153,2,FALSE)","v":"Essex County Council"},"East of England and North-East London"]
[null,null,null,null,null,null,null,null,null,null,null,null,null,null,122157,"Daventry UTC","2013-09-01","Northamptonshire County Council",{"$f":"VLOOKUP(R1195,'LA CPID Look up'!$A$3:$C$153,2,FALSE)","v":"Northamptonshire County Council"},"East of England and North-East London"]
[null,null,null,null,null,null,null,null,null,null,null,null,null,null,120195,"David Livingstone Academy","2011-08-01","Croydon London Borough Council",{"$f":"VLOOKUP(R1196,'LA CPID Look up'!$A$3:$C$153,2,FALSE)","v":"Croydon London Borough Council"},"South-East England and South London"]
[null,null,null,null,null,null,null,null,null,null,null,null,null,null,118608,"David Young Community Academy","2006-09-01","Leeds City Council",{"$f":"VLOOKUP(R1197,'LA CPID Look up'!$A$3:$C$153,2,FALSE)","v":"Leeds City Council"},"Lancashire and West Yorkshire"]
[null,null,null,null,null,null,null,null,null,null,null,null,null,null,130541,"Dawes Lane Academy","2014-09-01","North Lincolnshire Council",{"$f":"VLOOKUP(R1198,'LA CPID Look up'!$A$3:$C$153,2,FALSE)","v":"North Lincolnshire Council"},"East Midlands and the Humber"]
[null,null,null,null,null,null,null,null,null,null,null,null,null,null,129546,"Days Lane Primary School","2014-04-01","Bexley London Borough Council",{"$f":"VLOOKUP(R1199,'LA CPID Look up'!$A$3:$C$153,2,FALSE)","v":"Bexley London Borough Council"},"South-East England and South London"]
[null,null,null,null,null,null,null,null,null,null,null,null,null,null,119491,"De Aston School","2011-03-01","Lincolnshire County Council",{"$f":"VLOOKUP(R1200,'LA CPID Look up'!$A$3:$C$153,2,FALSE)","v":"Lincolnshire County Council"},"East Midlands and the Humber"]
[null,null,null,null,null,null,null,null,null,null,null,null,null,null,119433,"de Ferrers Academy, The","2011-01-01","Staffordshire County Council",{"$f":"VLOOKUP(R1201,'LA CPID Look up'!$A$3:$C$153,2,FALSE)","v":"Staffordshire County Council"},"West Midlands"]
[null,null,null,null,null,null,null,null,null,null,null,null,null,null,119442,"De La Salle Academy, The","2011-01-01","Liverpool City Council",{"$f":"VLOOKUP(R1202,'LA CPID Look up'!$A$3:$C$153,2,FALSE)","v":"Liverpool City Council"},"Lancashire and West Yorkshire"]
[null,null,null,null,null,null,null,null,null,null,null,null,null,null,121031,"De Lacy Academy","2012-04-01","Wakefield Council",{"$f":"VLOOKUP(R1203,'LA CPID Look up'!$A$3:$C$153,2,FALSE)","v":"Wakefield City Council"},"Lancashire and West Yorkshire"]
[null,null,null,null,null,null,null,null,null,null,null,null,null,null,122501,"De Lisle Catholic School Loughborough Leicestershire","2012-07-01","Leicestershire County Council",{"$f":"VLOOKUP(R1204,'LA CPID Look up'!$A$3:$C$153,2,FALSE)","v":"Leicestershire County Council"},"East Midlands and the Humber"]
[null,null,null,null,null,null,null,null,null,null,null,null,null,null,130570,"De Salis Studio College","2014-09-01","Hillingdon London Borough Council",{"$f":"VLOOKUP(R1205,'LA CPID Look up'!$A$3:$C$153,2,FALSE)","v":"Hillingdon London Borough Council"},"East of England and North-East London"]
[null,null,null,null,null,null,null,null,null,null,null,null,null,null,119133,"De Warenne Academy","2009-09-01","Doncaster Metropolitan Borough Council",{"$f":"VLOOKUP(R1206,'LA CPID Look up'!$A$3:$C$153,2,FALSE)","v":"Doncaster Metropolitan Borough Council"},"East Midlands and the Humber"]
[null,null,null,null,null,null,null,null,null,null,null,null,null,null,121945,"Dean Academy, The","2012-11-01","Gloucestershire County Council",{"$f":"VLOOKUP(R1207,'LA CPID Look up'!$A$3:$C$153,2,FALSE)","v":"Gloucestershire County Council"},"South-West England"]
[null,null,null,null,null,null,null,null,null,null,null,null,null,null,132367,"Dean Trust Ardwick","2015-09-01","Manchester City Council",{"$f":"VLOOKUP(R1208,'LA CPID Look up'!$A$3:$C$153,2,FALSE)","v":"Manchester City Council"},"Lancashire and West Yorkshire"]
[null,null,null,null,null,null,null,null,null,null,null,null,null,null,120155,"Deanery Church of England Primary School, The","2011-08-01","Birmingham City Council",{"$f":"VLOOKUP(R1209,'LA CPID Look up'!$A$3:$C$153,2,FALSE)","v":"Birmingham City Council"},"West Midlands"]
[null,null,null,null,null,null,null,null,null,null,null,null,null,null,123058,"Deansbrook Junior School","2013-04-01","Barnet London Borough Council",{"$f":"VLOOKUP(R1210,'LA CPID Look up'!$A$3:$C$153,2,FALSE)","v":"Barnet London Borough Council"},"South-Central England and North-West London"]
[null,null,null,null,null,null,null,null,null,null,null,null,null,null,120651,"Dearham Primary School","2011-11-01","Cumbria County Council",{"$f":"VLOOKUP(R1211,'LA CPID Look up'!$A$3:$C$153,2,FALSE)","v":"Cumbria County Council"},"North of England"]
[null,null,null,null,null,null,null,null,null,null,null,null,null,null,119681,"Debden Park High School","2011-04-01","Essex County Council",{"$f":"VLOOKUP(R1212,'LA CPID Look up'!$A$3:$C$153,2,FALSE)","v":"Essex County Council"},"East of England and North-East London"]
[null,null,null,null,null,null,null,null,null,null,null,null,null,null,119434,"Debenham High School","2011-01-01","Suffolk County Council",{"$f":"VLOOKUP(R1213,'LA CPID Look up'!$A$3:$C$153,2,FALSE)","v":"Suffolk County Council"},"East of England and North-East London"]
[null,null,null,null,null,null,null,null,null,null,null,null,null,null,120710,"Deepings School, The","2012-02-01","Lincolnshire County Council",{"$f":"VLOOKUP(R1214,'LA CPID Look up'!$A$3:$C$153,2,FALSE)","v":"Lincolnshire County Council"},"East Midlands and the Humber"]
[null,null,null,null,null,null,null,null,null,null,null,null,null,null,131223,"Deeplish Primary Academy","2014-12-01","Rochdale Metropolitan Borough Council",{"$f":"VLOOKUP(R1215,'LA CPID Look up'!$A$3:$C$153,2,FALSE)","v":"Rochdale Borough Council"},"Lancashire and West Yorkshire"]
[null,null,null,null,null,null,null,null,null,null,null,null,null,null,132636,"Deer Park School","2015-09-01","Richmond upon Thames Borough Council",{"$f":"VLOOKUP(R1216,'LA CPID Look up'!$A$3:$C$153,2,FALSE)","v":"Richmond upon Thames Borough Council"},"South-East England and South London"]
[null,null,null,null,null,null,null,null,null,null,null,null,null,null,131352,"Delabole Community Primary School","2014-11-01","Cornwall Council",{"$f":"VLOOKUP(R1217,'LA CPID Look up'!$A$3:$C$153,2,FALSE)","v":"Cornwall Unitary Authority"},"South-West England"]
[null,null,null,null,null,null,null,null,null,null,null,null,null,null,119528,"Delamere CofE Primary Academy","2011-04-01","Cheshire West and Chester Council",{"$f":"VLOOKUP(R1218,'LA CPID Look up'!$A$3:$C$153,2,FALSE)","v":"Cheshire West and Chester Unitary Authority"},"West Midlands"]
[null,null,null,null,null,null,null,null,null,null,null,null,null,null,131533,"Delaware Primary Academy","2015-12-01","Cornwall Council",{"$f":"VLOOKUP(R1219,'LA CPID Look up'!$A$3:$C$153,2,FALSE)","v":"Cornwall Unitary Authority"},"South-West England"]
[null,null,null,null,null,null,null,null,null,null,null,null,null,null,129573,"Delce Academy","2014-04-01","Medway Council",{"$f":"VLOOKUP(R1220,'LA CPID Look up'!$A$3:$C$153,2,FALSE)","v":"Medway Towns Unitary Authority (The)"},"South-East England and South London"]
[null,null,null,null,null,null,null,null,null,null,null,null,null,null,131649,"Dell Primary School","2015-11-01","Suffolk County Council",{"$f":"VLOOKUP(R1221,'LA CPID Look up'!$A$3:$C$153,2,FALSE)","v":"Suffolk County Council"},"East of England and North-East London"]
[null,null,null,null,null,null,null,null,null,null,null,null,null,null,119351,"Denbigh High School - Luton","2010-11-01","Luton Borough Council",{"$f":"VLOOKUP(R1222,'LA CPID Look up'!$A$3:$C$153,2,FALSE)","v":"Luton Borough Council"},"East of England and North-East London"]
[null,null,null,null,null,null,null,null,null,null,null,null,null,null,119468,"Denbigh School - Milton Keynes","2011-03-01","Milton Keynes Council",{"$f":"VLOOKUP(R1223,'LA CPID Look up'!$A$3:$C$153,2,FALSE)","v":"Milton Keynes Council"},"East of England and North-East London"]
[null,null,null,null,null,null,null,null,null,null,null,null,null,null,132341,"Dene House Primary School","2015-09-01","Durham County Council",{"$f":"VLOOKUP(R1224,'LA CPID Look up'!$A$3:$C$153,2,FALSE)","v":"County Durham Unitary Authority"},"North of England"]
[null,null,null,null,null,null,null,null,null,null,null,null,null,null,120422,"Dene Magna School","2011-09-01","Gloucestershire County Council",{"$f":"VLOOKUP(R1225,'LA CPID Look up'!$A$3:$C$153,2,FALSE)","v":"Gloucestershire County Council"},"South-West England"]
[null,null,null,null,null,null,null,null,null,null,null,null,null,null,120913,"Denefield School","2012-01-01","West Berkshire Council",{"$f":"VLOOKUP(R1226,'LA CPID Look up'!$A$3:$C$153,2,FALSE)","v":"West Berkshire Council"},"East of England and North-East London"]
[null,null,null,null,null,null,null,null,null,null,null,null,null,null,131862,"Deneholm Primary School","2015-04-01","Thurrock Borough Council",{"$f":"VLOOKUP(R1227,'LA CPID Look up'!$A$3:$C$153,2,FALSE)","v":"Thurrock Unitary Authority"},"East of England and North-East London"]
[null,null,null,null,null,null,null,null,null,null,null,null,null,null,123805,"Denham Green E-ACT Academy","2013-09-01","Buckinghamshire County Council",{"$f":"VLOOKUP(R1228,'LA CPID Look up'!$A$3:$C$153,2,FALSE)","v":"Buckinghamshire County Council"},"South-Central England and North-West London"]
[null,null,null,null,null,null,null,null,null,null,null,null,null,null,120561,"Denton West End Primary School","2012-06-01","Tameside Metropolitan Borough Council",{"$f":"VLOOKUP(R1229,'LA CPID Look up'!$A$3:$C$153,2,FALSE)","v":"Tameside Metropolitan Borough Council"},"Lancashire and West Yorkshire"]
[null,null,null,null,null,null,null,null,null,null,null,null,null,null,132683,"Derby Manufacturing UTC","2015-09-01","Derby City Council",{"$f":"VLOOKUP(R1230,'LA CPID Look up'!$A$3:$C$153,2,FALSE)","v":"Derby City Council"},"East Midlands and the Humber"]
[null,null,null,null,null,null,null,null,null,null,null,null,null,null,122536,"Derby Pride Academy","2012-09-01","Derby City Council",{"$f":"VLOOKUP(R1231,'LA CPID Look up'!$A$3:$C$153,2,FALSE)","v":"Derby City Council"},"East Midlands and the Humber"]
[null,null,null,null,null,null,null,null,null,null,null,null,null,null,133093,"Dereham Church of England Junior Academy","2015-11-01","Norfolk County Council",{"$f":"VLOOKUP(R1232,'LA CPID Look up'!$A$3:$C$153,2,FALSE)","v":"Norfolk County Council"},"East of England and North-East London"]
[null,null,null,null,null,null,null,null,null,null,null,null,null,null,123430,"Desborough College","2012-10-01","Royal Borough of Windsor and Maidenhead",{"$f":"VLOOKUP(R1233,'LA CPID Look up'!$A$3:$C$153,2,FALSE)","v":"Windsor and Maidenhead (Royal Borough of)"},"East of England and North-East London"]
[null,null,null,null,null,null,null,null,null,null,null,null,null,null,111451,"Devizes School","2012-09-01","Wiltshire Council",{"$f":"VLOOKUP(R1234,'LA CPID Look up'!$A$3:$C$153,2,FALSE)","v":"Wiltshire Unitary Authority"},"South-West England"]
[null,null,null,null,null,null,null,null,null,null,null,null,null,null,123383,"Devon Studio School","2013-09-01","Torbay Council",{"$f":"VLOOKUP(R1235,'LA CPID Look up'!$A$3:$C$153,2,FALSE)","v":"Torbay Council"},"South-West England"]
[null,null,null,null,null,null,null,null,null,null,null,null,null,null,119496,"Devonport High School for Boys","2011-03-01","Plymouth City Council",{"$f":"VLOOKUP(R1236,'LA CPID Look up'!$A$3:$C$153,2,FALSE)","v":"Plymouth City Council"},"South-West England"]
[null,null,null,null,null,null,null,null,null,null,null,null,null,null,119615,"Devonport High School for Girls","2011-04-01","Plymouth City Council",{"$f":"VLOOKUP(R1237,'LA CPID Look up'!$A$3:$C$153,2,FALSE)","v":"Plymouth City Council"},"South-West England"]
[null,null,null,null,null,null,null,null,null,null,null,null,null,null,130725,"Devonshire Infant School","2014-09-01","Sandwell Metropolitan Borough Council",{"$f":"VLOOKUP(R1238,'LA CPID Look up'!$A$3:$C$153,2,FALSE)","v":"Sandwell Metropolitan Borough Council"},"West Midlands"]
[null,null,null,null,null,null,null,null,null,null,null,null,null,null,130724,"Devonshire Junior School","2014-09-01","Sandwell Metropolitan Borough Council",{"$f":"VLOOKUP(R1239,'LA CPID Look up'!$A$3:$C$153,2,FALSE)","v":"Sandwell Metropolitan Borough Council"},"West Midlands"]
[null,null,null,null,null,null,null,null,null,null,null,null,null,null,124114,"Devonshire Primary Academy","2013-09-01","Blackpool Council",{"$f":"VLOOKUP(R1240,'LA CPID Look up'!$A$3:$C$153,2,FALSE)","v":"Blackpool Unitary Authority"},"Lancashire and West Yorkshire"]
[null,null,null,null,null,null,null,null,null,null,null,null,null,null,120485,"Deyes High School","2011-10-01","Sefton Metropolitan Borough Council",{"$f":"VLOOKUP(R1241,'LA CPID Look up'!$A$3:$C$153,2,FALSE)","v":"Sefton Metropolitan Borough Council"},"Lancashire and West Yorkshire"]
[null,null,null,null,null,null,null,null,null,null,null,null,null,null,121957,"Diamond Academy","2012-09-01","Norfolk County Council",{"$f":"VLOOKUP(R1242,'LA CPID Look up'!$A$3:$C$153,2,FALSE)","v":"Norfolk County Council"},"East of England and North-East London"]
[null,null,null,null,null,null,null,null,null,null,null,null,null,null,124576,"Diamond Hall Infant Academy","2013-07-01","Sunderland City Council",{"$f":"VLOOKUP(R1243,'LA CPID Look up'!$A$3:$C$153,2,FALSE)","v":"Sunderland City Metropolitan Borough Council"},"North of England"]
[null,null,null,null,null,null,null,null,null,null,null,null,null,null,126480,"Diamond Wood Community Academy","2014-02-01","Kirklees Metropolitan Council",{"$f":"VLOOKUP(R1244,'LA CPID Look up'!$A$3:$C$153,2,FALSE)","v":"Kirklees Metropolitan Council"},"Lancashire and West Yorkshire"]
[null,null,null,null,null,null,null,null,null,null,null,null,null,null,122589,"Didcot Girls' School","2012-08-01","Oxfordshire County Council",{"$f":"VLOOKUP(R1245,'LA CPID Look up'!$A$3:$C$153,2,FALSE)","v":"Oxfordshire County Council"},"East of England and North-East London"]
[null,null,null,null,null,null,null,null,null,null,null,null,null,null,131805,"Didsbury CofE Primary School","2015-09-01","Manchester City Council",{"$f":"VLOOKUP(R1246,'LA CPID Look up'!$A$3:$C$153,2,FALSE)","v":"Manchester City Council"},"Lancashire and West Yorkshire"]
[null,null,null,null,null,null,null,null,null,null,null,null,null,null,132677,"Digitech Studio School","2015-09-01","South Gloucestershire Council",{"$f":"VLOOKUP(R1247,'LA CPID Look up'!$A$3:$C$153,2,FALSE)","v":"South Gloucestershire Council"},"South-West England"]
[null,null,null,null,null,null,null,null,null,null,null,null,null,null,131356,"Dilhorne Endowed CE (A) Primary School","2015-09-01","Staffordshire County Council",{"$f":"VLOOKUP(R1248,'LA CPID Look up'!$A$3:$C$153,2,FALSE)","v":"Staffordshire County Council"},"West Midlands"]
[null,null,null,null,null,null,null,null,null,null,null,null,null,null,120782,"Dilkes Academy","2012-12-01","Thurrock Borough Council",{"$f":"VLOOKUP(R1249,'LA CPID Look up'!$A$3:$C$153,2,FALSE)","v":"Thurrock Unitary Authority"},"East of England and North-East London"]
[null,null,null,null,null,null,null,null,null,null,null,null,null,null,130707,"Dilton Marsh CofE Primary School","2014-08-01","Wiltshire Council",{"$f":"VLOOKUP(R1250,'LA CPID Look up'!$A$3:$C$153,2,FALSE)","v":"Wiltshire Unitary Authority"},"South-West England"]
[null,null,null,null,null,null,null,null,null,null,null,null,null,null,131242,"Dinnington High School","2015-02-01","Rotherham Metropolitan Borough Council",{"$f":"VLOOKUP(R1251,'LA CPID Look up'!$A$3:$C$153,2,FALSE)","v":"Rotherham Borough Council"},"East Midlands and the Humber"]
[null,null,null,null,null,null,null,null,null,null,null,null,null,null,130947,"Discovery Academy - Nuneaton","2015-09-01","Warwickshire County Council",{"$f":"VLOOKUP(R1252,'LA CPID Look up'!$A$3:$C$153,2,FALSE)","v":"Warwickshire County Council"},"West Midlands"]
[null,null,null,null,null,null,null,null,null,null,null,null,null,null,119522,"Discovery Academy - Stoke-on-Trent","2011-09-01","Stoke-on-Trent City Council",{"$f":"VLOOKUP(R1253,'LA CPID Look up'!$A$3:$C$153,2,FALSE)","v":"Stoke-on-Trent Unitary Authority"},"West Midlands"]
[null,null,null,null,null,null,null,null,null,null,null,null,null,null,120473,"Discovery New School - Crawley","2011-09-01","West Sussex County Council",{"$f":"VLOOKUP(R1254,'LA CPID Look up'!$A$3:$C$153,2,FALSE)","v":"West Sussex County Council"},"South-East England and South London"]
[null,null,null,null,null,null,null,null,null,null,null,null,null,null,123374,"Discovery School - Newcastle-u-Lyme","2014-09-01","Newcastle upon Tyne City Council",{"$f":"VLOOKUP(R1255,'LA CPID Look up'!$A$3:$C$153,2,FALSE)","v":"Newcastle upon Tyne City Council"},"North of England"]
[null,null,null,null,null,null,null,null,null,null,null,null,null,null,120092,"Diss High School","2011-08-01","Norfolk County Council",{"$f":"VLOOKUP(R1256,'LA CPID Look up'!$A$3:$C$153,2,FALSE)","v":"Norfolk County Council"},"East of England and North-East London"]
[null,null,null,null,null,null,null,null,null,null,null,null,null,null,127777,"Ditchingham Church of England Academy","2014-02-01","Norfolk County Council",{"$f":"VLOOKUP(R1257,'LA CPID Look up'!$A$3:$C$153,2,FALSE)","v":"Norfolk County Council"},"East of England and North-East London"]
[null,null,null,null,null,null,null,null,null,null,null,null,null,null,130552,"Ditton Park Academy","2014-09-01","Slough Borough Council",{"$f":"VLOOKUP(R1258,'LA CPID Look up'!$A$3:$C$153,2,FALSE)","v":"Slough Borough Council"},"East of England and North-East London"]
[null,null,null,null,null,null,null,null,null,null,null,null,null,null,118885,"Dixons Allerton Academy","2009-09-01","Bradford Metropolitan District Council",{"$f":"VLOOKUP(R1259,'LA CPID Look up'!$A$3:$C$153,2,FALSE)","v":"Bradford City Council"},"Lancashire and West Yorkshire"]
[null,null,null,null,null,null,null,null,null,null,null,null,null,null,118388,"Dixons City Academy","2005-09-01","Bradford Metropolitan District Council",{"$f":"VLOOKUP(R1260,'LA CPID Look up'!$A$3:$C$153,2,FALSE)","v":"Bradford City Council"},"Lancashire and West Yorkshire"]
[null,null,null,null,null,null,null,null,null,null,null,null,null,null,120465,"Dixons Kings Academy","2011-09-01","Bradford Metropolitan District Council",{"$f":"VLOOKUP(R1261,'LA CPID Look up'!$A$3:$C$153,2,FALSE)","v":"Bradford City Council"},"Lancashire and West Yorkshire"]
[null,null,null,null,null,null,null,null,null,null,null,null,null,null,131394,"Dixons Manningham Academy","2015-01-01","Bradford Metropolitan District Council",{"$f":"VLOOKUP(R1262,'LA CPID Look up'!$A$3:$C$153,2,FALSE)","v":"Bradford City Council"},"Lancashire and West Yorkshire"]
[null,null,null,null,null,null,null,null,null,null,null,null,null,null,127700,"Dixons Marchbank Primary","2014-01-01","Bradford Metropolitan District Council",{"$f":"VLOOKUP(R1263,'LA CPID Look up'!$A$3:$C$153,2,FALSE)","v":"Bradford City Council"},"Lancashire and West Yorkshire"]
[null,null,null,null,null,null,null,null,null,null,null,null,null,null,130495,"Dixons McMillan Academy","2014-09-01","Bradford Metropolitan District Council",{"$f":"VLOOKUP(R1264,'LA CPID Look up'!$A$3:$C$153,2,FALSE)","v":"Bradford City Council"},"Lancashire and West Yorkshire"]
[null,null,null,null,null,null,null,null,null,null,null,null,null,null,121977,"Dixons Music Primary","2012-09-01","Bradford Metropolitan District Council",{"$f":"VLOOKUP(R1265,'LA CPID Look up'!$A$3:$C$153,2,FALSE)","v":"Bradford City Council"},"Lancashire and West Yorkshire"]
[null,null,null,null,null,null,null,null,null,null,null,null,null,null,122017,"Dixons Trinity Academy","2012-09-01","Bradford Metropolitan District Council",{"$f":"VLOOKUP(R1266,'LA CPID Look up'!$A$3:$C$153,2,FALSE)","v":"Bradford City Council"},"Lancashire and West Yorkshire"]
[null,null,null,null,null,null,null,null,null,null,null,null,null,null,118389,"Djanogly City Academy","2003-09-01","Nottingham City Council",{"$f":"VLOOKUP(R1267,'LA CPID Look up'!$A$3:$C$153,2,FALSE)","v":"Nottingham City Council"},"East Midlands and the Humber"]
[null,null,null,null,null,null,null,null,null,null,null,null,null,null,120182,"Djanogly Northgate Academy","2011-08-01","Nottingham City Council",{"$f":"VLOOKUP(R1268,'LA CPID Look up'!$A$3:$C$153,2,FALSE)","v":"Nottingham City Council"},"East Midlands and the Humber"]
[null,null,null,null,null,null,null,null,null,null,null,null,null,null,129257,"Djanogly Strelley Academy","2014-02-01","Nottingham City Council",{"$f":"VLOOKUP(R1269,'LA CPID Look up'!$A$3:$C$153,2,FALSE)","v":"Nottingham City Council"},"East Midlands and the Humber"]
[null,null,null,null,null,null,null,null,null,null,null,null,null,null,124145,"Dodworth St John the Baptist CofE Primary Academy","2014-01-01","Barnsley Metropolitan Borough Council",{"$f":"VLOOKUP(R1270,'LA CPID Look up'!$A$3:$C$153,2,FALSE)","v":"Barnsley Metropolitan Borough Council"},"East Midlands and the Humber"]
[null,null,null,null,null,null,null,null,null,null,null,null,null,null,130328,"Dogsthorpe Academy","2014-09-01","Peterborough City Council",{"$f":"VLOOKUP(R1271,'LA CPID Look up'!$A$3:$C$153,2,FALSE)","v":"Peterborough City Council"},"East of England and North-East London"]
[null,null,null,null,null,null,null,null,null,null,null,null,null,null,122299,"Dolphin School, The","2012-09-01","Bristol City Council",{"$f":"VLOOKUP(R1272,'LA CPID Look up'!$A$3:$C$153,2,FALSE)","v":"Bristol City Council"},"South-West England"]
[null,null,null,null,null,null,null,null,null,null,null,null,null,null,120472,"Don Valley Academy","2011-09-01","Doncaster Metropolitan Borough Council",{"$f":"VLOOKUP(R1273,'LA CPID Look up'!$A$3:$C$153,2,FALSE)","v":"Doncaster Metropolitan Borough Council"},"East Midlands and the Humber"]
[null,null,null,null,null,null,null,null,null,null,null,null,null,null,120699,"Dorcan Academy, The","2011-12-01","Swindon Borough Council",{"$f":"VLOOKUP(R1274,'LA CPID Look up'!$A$3:$C$153,2,FALSE)","v":"Swindon Unitary Authority"},"South-West England"]
[null,null,null,null,null,null,null,null,null,null,null,null,null,null,122131,"Dorchester Middle School","2012-06-01","Dorset County Council",{"$f":"VLOOKUP(R1275,'LA CPID Look up'!$A$3:$C$153,2,FALSE)","v":"Dorset County Council"},"South-West England"]
[null,null,null,null,null,null,null,null,null,null,null,null,null,null,124143,"Dorchester Primary School","2013-04-01","Hull City Council",{"$f":"VLOOKUP(R1276,'LA CPID Look up'!$A$3:$C$153,2,FALSE)","v":"Kingston upon Hull City Council"},"East Midlands and the Humber"]
[null,null,null,null,null,null,null,null,null,null,null,null,null,null,122571,"Dordon Community Primary School","2012-11-01","Warwickshire County Council",{"$f":"VLOOKUP(R1277,'LA CPID Look up'!$A$3:$C$153,2,FALSE)","v":"Warwickshire County Council"},"West Midlands"]
[null,null,null,null,null,null,null,null,null,null,null,null,null,null,124653,"Dormanstown Primary Academy","2013-09-01","Redcar and Cleveland Borough Council",{"$f":"VLOOKUP(R1278,'LA CPID Look up'!$A$3:$C$153,2,FALSE)","v":"Redcar and Cleveland Borough Council"},"North of England"]
[null,null,null,null,null,null,null,null,null,null,null,null,null,null,130481,"Dorothy Barley Junior Academy","2014-06-01","Barking and Dagenham London Borough Council",{"$f":"VLOOKUP(R1279,'LA CPID Look up'!$A$3:$C$153,2,FALSE)","v":"Barking & Dagenham London Borough Council"},"East of England and North-East London"]
[null,null,null,null,null,null,null,null,null,null,null,null,null,null,121016,"Dorothy Goodman School Hinckley","2012-06-01","Leicestershire County Council",{"$f":"VLOOKUP(R1280,'LA CPID Look up'!$A$3:$C$153,2,FALSE)","v":"Leicestershire County Council"},"East Midlands and the Humber"]
[null,null,null,null,null,null,null,null,null,null,null,null,null,null,121865,"Dorrington Academy","2012-06-01","Birmingham City Council",{"$f":"VLOOKUP(R1281,'LA CPID Look up'!$A$3:$C$153,2,FALSE)","v":"Birmingham City Council"},"West Midlands"]
[null,null,null,null,null,null,null,null,null,null,null,null,null,null,130571,"Dorset Studio School","2014-09-01","Dorset County Council",{"$f":"VLOOKUP(R1282,'LA CPID Look up'!$A$3:$C$153,2,FALSE)","v":"Dorset County Council"},"South-West England"]
[null,null,null,null,null,null,null,null,null,null,null,null,null,null,121058,"Douay Martyrs Catholic School, The","2012-03-01","Hillingdon London Borough Council",{"$f":"VLOOKUP(R1283,'LA CPID Look up'!$A$3:$C$153,2,FALSE)","v":"Hillingdon London Borough Council"},"East of England and North-East London"]
[null,null,null,null,null,null,null,null,null,null,null,null,null,null,120565,"Dove House School","2011-11-01","Hampshire County Council",{"$f":"VLOOKUP(R1284,'LA CPID Look up'!$A$3:$C$153,2,FALSE)","v":"Hampshire County Council"},"South-East England and South London"]
[null,null,null,null,null,null,null,null,null,null,null,null,null,null,130723,"Dovedale Primary School","2014-11-01","Derbyshire County Council",{"$f":"VLOOKUP(R1285,'LA CPID Look up'!$A$3:$C$153,2,FALSE)","v":"Derbyshire County Council"},"East Midlands and the Humber"]
[null,null,null,null,null,null,null,null,null,null,null,null,null,null,119220,"Dover Christ Church Academy","2010-09-01","Kent County Council",{"$f":"VLOOKUP(R1286,'LA CPID Look up'!$A$3:$C$153,2,FALSE)","v":"Kent County Council"},"South-East England and South London"]
[null,null,null,null,null,null,null,null,null,null,null,null,null,null,123248,"Downend School","2013-03-01","South Gloucestershire Council",{"$f":"VLOOKUP(R1287,'LA CPID Look up'!$A$3:$C$153,2,FALSE)","v":"South Gloucestershire Council"},"South-West England"]
[null,null,null,null,null,null,null,null,null,null,null,null,null,null,122810,"Downham Market Academy","2013-07-01","Norfolk County Council",{"$f":"VLOOKUP(R1288,'LA CPID Look up'!$A$3:$C$153,2,FALSE)","v":"Norfolk County Council"},"East of England and North-East London"]
[null,null,null,null,null,null,null,null,null,null,null,null,null,null,124527,"Downview Primary School","2013-09-01","West Sussex County Council",{"$f":"VLOOKUP(R1289,'LA CPID Look up'!$A$3:$C$153,2,FALSE)","v":"West Sussex County Council"},"South-East England and South London"]
[null,null,null,null,null,null,null,null,null,null,null,null,null,null,119435,"Dr Challoner's Grammar School","2011-01-01","Buckinghamshire County Council",{"$f":"VLOOKUP(R1290,'LA CPID Look up'!$A$3:$C$153,2,FALSE)","v":"Buckinghamshire County Council"},"South-Central England and North-West London"]
[null,null,null,null,null,null,null,null,null,null,null,null,null,null,120219,"Dr Challoner's High School","2011-08-01","Buckinghamshire County Council",{"$f":"VLOOKUP(R1291,'LA CPID Look up'!$A$3:$C$153,2,FALSE)","v":"Buckinghamshire County Council"},"South-Central England and North-West London"]
[null,null,null,null,null,null,null,null,null,null,null,null,null,null,119152,"Drapers' Academy","2010-09-01","Havering London Borough Council",{"$f":"VLOOKUP(R1292,'LA CPID Look up'!$A$3:$C$153,2,FALSE)","v":"Havering London Borough Council"},"East of England and North-East London"]
[null,null,null,null,null,null,null,null,null,null,null,null,null,null,130045,"Drapers' Brookside Junior School","2014-07-01","Havering London Borough Council",{"$f":"VLOOKUP(R1293,'LA CPID Look up'!$A$3:$C$153,2,FALSE)","v":"Havering London Borough Council"},"East of England and North-East London"]
[null,null,null,null,null,null,null,null,null,null,null,null,null,null,132637,"Drapers' Maylands Primary School","2015-09-01","Havering London Borough Council",{"$f":"VLOOKUP(R1294,'LA CPID Look up'!$A$3:$C$153,2,FALSE)","v":"Havering London Borough Council"},"East of England and North-East London"]
[null,null,null,null,null,null,null,null,null,null,null,null,null,null,122031,"Drapers Mills Primary Academy","2012-12-01","Kent County Council",{"$f":"VLOOKUP(R1295,'LA CPID Look up'!$A$3:$C$153,2,FALSE)","v":"Kent County Council"},"South-East England and South London"]
[null,null,null,null,null,null,null,null,null,null,null,null,null,null,120221,"Drayton Manor High School","2011-08-01","Ealing London Borough Council",{"$f":"VLOOKUP(R1296,'LA CPID Look up'!$A$3:$C$153,2,FALSE)","v":"Ealing London Borough Council"},"South-Central England and North-West London"]
[null,null,null,null,null,null,null,null,null,null,null,null,null,null,119902,"Droitwich Spa High School and Sixth Form Centre","2011-07-01","Worcestershire County Council",{"$f":"VLOOKUP(R1297,'LA CPID Look up'!$A$3:$C$153,2,FALSE)","v":"Worcestershire County Council"},"West Midlands"]
[null,null,null,null,null,null,null,null,null,null,null,null,null,null,122002,"Drove Primary School","2012-07-01","Swindon Borough Council",{"$f":"VLOOKUP(R1298,'LA CPID Look up'!$A$3:$C$153,2,FALSE)","v":"Swindon Unitary Authority"},"South-West England"]
[null,null,null,null,null,null,null,null,null,null,null,null,null,null,118886,"Droylsden Academy","2009-09-03","Tameside Metropolitan Borough Council",{"$f":"VLOOKUP(R1299,'LA CPID Look up'!$A$3:$C$153,2,FALSE)","v":"Tameside Metropolitan Borough Council"},"Lancashire and West Yorkshire"]
[null,null,null,null,null,null,null,null,null,null,null,null,null,null,121069,"DSLV E-ACT Academy","2012-04-01","Northamptonshire County Council",{"$f":"VLOOKUP(R1300,'LA CPID Look up'!$A$3:$C$153,2,FALSE)","v":"Northamptonshire County Council"},"East of England and North-East London"]
[null,null,null,null,null,null,null,null,null,null,null,null,null,null,130354,"Duchy of Lancaster Methwold CofE Primary School","2014-04-01","Norfolk County Council",{"$f":"VLOOKUP(R1301,'LA CPID Look up'!$A$3:$C$153,2,FALSE)","v":"Norfolk County Council"},"East of England and North-East London"]
[null,null,null,null,null,null,null,null,null,null,null,null,null,null,123249,"Duchy School Bradninch, The","2013-09-01","Devon County Council",{"$f":"VLOOKUP(R1302,'LA CPID Look up'!$A$3:$C$153,2,FALSE)","v":"Devon County Council"},"South-West England"]
[null,null,null,null,null,null,null,null,null,null,null,null,null,null,125028,"Dudley Infant Academy","2013-11-01","East Sussex County Council",{"$f":"VLOOKUP(R1303,'LA CPID Look up'!$A$3:$C$153,2,FALSE)","v":"East Sussex County Council"},"South-East England and South London"]
[null,null,null,null,null,null,null,null,null,null,null,null,null,null,119233,"Duke of York's Royal Military School","2010-09-10","Kent County Council",{"$f":"VLOOKUP(R1304,'LA CPID Look up'!$A$3:$C$153,2,FALSE)","v":"Kent County Council"},"South-East England and South London"]
[null,null,null,null,null,null,null,null,null,null,null,null,null,null,122429,"Dukeries Academy, The","2013-01-01","Nottinghamshire County Council",{"$f":"VLOOKUP(R1305,'LA CPID Look up'!$A$3:$C$153,2,FALSE)","v":"Nottinghamshire County Council"},"East Midlands and the Humber"]
[null,null,null,null,null,null,null,null,null,null,null,null,null,null,122086,"Dukesgate Academy","2012-09-01","Salford City Council",{"$f":"VLOOKUP(R1306,'LA CPID Look up'!$A$3:$C$153,2,FALSE)","v":"Salford City Council"},"Lancashire and West Yorkshire"]
[null,null,null,null,null,null,null,null,null,null,null,null,null,null,119581,"Dulwich Hamlet Junior School","2011-04-01","Southwark London Borough Council",{"$f":"VLOOKUP(R1307,'LA CPID Look up'!$A$3:$C$153,2,FALSE)","v":"Southwark London Borough Council"},"South-East England and South London"]
[null,null,null,null,null,null,null,null,null,null,null,null,null,null,124725,"Dunbury Church of England Academy","2014-02-01","Dorset County Council",{"$f":"VLOOKUP(R1308,'LA CPID Look up'!$A$3:$C$153,2,FALSE)","v":"Dorset County Council"},"South-West England"]
[null,null,null,null,null,null,null,null,null,null,null,null,null,null,132435,"Dundry Church of England Primary School","2015-09-01","North Somerset District Council",{"$f":"VLOOKUP(R1309,'LA CPID Look up'!$A$3:$C$153,2,FALSE)","v":"North Somerset Council"},"South-West England"]
[null,null,null,null,null,null,null,null,null,null,null,null,null,null,120093,"Dunraven School","2011-08-01","Lambeth London Borough Council",{"$f":"VLOOKUP(R1310,'LA CPID Look up'!$A$3:$C$153,2,FALSE)","v":"Lambeth London Borough Council"},"South-East England and South London"]
[null,null,null,null,null,null,null,null,null,null,null,null,null,null,122690,"Dunsville Primary School","2012-11-01","Doncaster Metropolitan Borough Council",{"$f":"VLOOKUP(R1311,'LA CPID Look up'!$A$3:$C$153,2,FALSE)","v":"Doncaster Metropolitan Borough Council"},"East Midlands and the Humber"]
[null,null,null,null,null,null,null,null,null,null,null,null,null,null,126428,"Dunswell Primary School","2013-09-01","East Riding of Yorkshire Council",{"$f":"VLOOKUP(R1312,'LA CPID Look up'!$A$3:$C$153,2,FALSE)","v":"East Riding of Yorkshire Council"},"East Midlands and the Humber"]
[null,null,null,null,null,null,null,null,null,null,null,null,null,null,119264,"Durand Academy","2010-09-01","Lambeth London Borough Council",{"$f":"VLOOKUP(R1313,'LA CPID Look up'!$A$3:$C$153,2,FALSE)","v":"Lambeth London Borough Council"},"South-East England and South London"]
[null,null,null,null,null,null,null,null,null,null,null,null,null,null,123299,"Durham Free School, The","2013-09-01","Durham County Council",{"$f":"VLOOKUP(R1314,'LA CPID Look up'!$A$3:$C$153,2,FALSE)","v":"County Durham Unitary Authority"},"North of England"]
[null,null,null,null,null,null,null,null,null,null,null,null,null,null,129565,"Durrington High School","2014-04-01","West Sussex County Council",{"$f":"VLOOKUP(R1315,'LA CPID Look up'!$A$3:$C$153,2,FALSE)","v":"West Sussex County Council"},"South-East England and South London"]
[null,null,null,null,null,null,null,null,null,null,null,null,null,null,123052,"Dursley Church of England Primary Academy","2013-06-01","Gloucestershire County Council",{"$f":"VLOOKUP(R1316,'LA CPID Look up'!$A$3:$C$153,2,FALSE)","v":"Gloucestershire County Council"},"South-West England"]
[null,null,null,null,null,null,null,null,null,null,null,null,null,null,119935,"Duston School, The","2012-06-01","Northamptonshire County Council",{"$f":"VLOOKUP(R1317,'LA CPID Look up'!$A$3:$C$153,2,FALSE)","v":"Northamptonshire County Council"},"East of England and North-East London"]
[null,null,null,null,null,null,null,null,null,null,null,null,null,null,132990,"Dycorts School","2015-09-01","Havering London Borough Council",{"$f":"VLOOKUP(R1318,'LA CPID Look up'!$A$3:$C$153,2,FALSE)","v":"Havering London Borough Council"},"East of England and North-East London"]
[null,null,null,null,null,null,null,null,null,null,null,null,null,null,124065,"Dyke House Sports and Technology College","2013-04-01","Hartlepool Borough Council",{"$f":"VLOOKUP(R1319,'LA CPID Look up'!$A$3:$C$153,2,FALSE)","v":"Hartlepool Borough Council"},"North of England"]
[null,null,null,null,null,null,null,null,null,null,null,null,null,null,132950,"Dymchurch Primary School","2015-10-01","Kent County Council",{"$f":"VLOOKUP(R1320,'LA CPID Look up'!$A$3:$C$153,2,FALSE)","v":"Kent County Council"},"South-East England and South London"]
[null,null,null,null,null,null,null,null,null,null,null,null,null,null,120186,"Dyson Perrins CofE Academy","2011-08-01","Worcestershire County Council",{"$f":"VLOOKUP(R1321,'LA CPID Look up'!$A$3:$C$153,2,FALSE)","v":"Worcestershire County Council"},"West Midlands"]
[null,null,null,null,null,null,null,null,null,null,null,null,null,null,120973,"E-ACT Blackley Academy","2012-01-01","Manchester City Council",{"$f":"VLOOKUP(R1322,'LA CPID Look up'!$A$3:$C$153,2,FALSE)","v":"Manchester City Council"},"Lancashire and West Yorkshire"]
[null,null,null,null,null,null,null,null,null,null,null,null,null,null,120931,"E-Act Burnham Park Academy, The","2012-04-01","Buckinghamshire County Council",{"$f":"VLOOKUP(R1323,'LA CPID Look up'!$A$3:$C$153,2,FALSE)","v":"Buckinghamshire County Council"},"South-Central England and North-West London"]
[null,null,null,null,null,null,null,null,null,null,null,null,null,null,119758,"Eaglesfield Paddle CofE Primary Academy","2011-06-01","Cumbria County Council",{"$f":"VLOOKUP(R1324,'LA CPID Look up'!$A$3:$C$153,2,FALSE)","v":"Cumbria County Council"},"North of England"]
[null,null,null,null,null,null,null,null,null,null,null,null,null,null,121150,"Eagley Infant School","2012-04-01","Bolton Metropolitan Borough Council",{"$f":"VLOOKUP(R1325,'LA CPID Look up'!$A$3:$C$153,2,FALSE)","v":"Bolton Metropolitan Borough Council"},"Lancashire and West Yorkshire"]
[null,null,null,null,null,null,null,null,null,null,null,null,null,null,121164,"Eagley Junior School","2012-06-01","Bolton Metropolitan Borough Council",{"$f":"VLOOKUP(R1326,'LA CPID Look up'!$A$3:$C$153,2,FALSE)","v":"Bolton Metropolitan Borough Council"},"Lancashire and West Yorkshire"]
[null,null,null,null,null,null,null,null,null,null,null,null,null,null,130545,"Earl's Court Free School Primary","2014-09-01","Hammersmith and Fulham London Borough Council",{"$f":"VLOOKUP(R1327,'LA CPID Look up'!$A$3:$C$153,2,FALSE)","v":"Hammersmith and Fulham London Borough Council"},"South-Central England and North-West London"]
[null,null,null,null,null,null,null,null,null,null,null,null,null,null,120746,"Earls High School, The","2012-01-01","Dudley Metropolitan Borough Council",{"$f":"VLOOKUP(R1328,'LA CPID Look up'!$A$3:$C$153,2,FALSE)","v":"Dudley Metropolitan Borough Council"},"West Midlands"]
[null,null,null,null,null,null,null,null,null,null,null,null,null,null,121001,"Easington Academy","2012-04-01","Durham County Council",{"$f":"VLOOKUP(R1329,'LA CPID Look up'!$A$3:$C$153,2,FALSE)","v":"County Durham Unitary Authority"},"North of England"]
[null,null,null,null,null,null,null,null,null,null,null,null,null,null,129707,"Easington Church of England Voluntary Controlled Primary School","2014-04-01","East Riding of Yorkshire Council",{"$f":"VLOOKUP(R1330,'LA CPID Look up'!$A$3:$C$153,2,FALSE)","v":"East Riding of Yorkshire Council"},"East Midlands and the Humber"]
[null,null,null,null,null,null,null,null,null,null,null,null,null,null,124769,"East Allington Primary School","2014-09-01","Devon County Council",{"$f":"VLOOKUP(R1331,'LA CPID Look up'!$A$3:$C$153,2,FALSE)","v":"Devon County Council"},"South-West England"]
[null,null,null,null,null,null,null,null,null,null,null,null,null,null,119674,"East Barnet School","2011-04-01","Barnet London Borough Council",{"$f":"VLOOKUP(R1332,'LA CPID Look up'!$A$3:$C$153,2,FALSE)","v":"Barnet London Borough Council"},"South-Central England and North-West London"]
[null,null,null,null,null,null,null,null,null,null,null,null,null,null,120218,"East Bergholt High School","2011-08-01","Suffolk County Council",{"$f":"VLOOKUP(R1333,'LA CPID Look up'!$A$3:$C$153,2,FALSE)","v":"Suffolk County Council"},"East of England and North-East London"]
[null,null,null,null,null,null,null,null,null,null,null,null,null,null,122537,"East Birmingham Network Academy","2012-09-01","Birmingham City Council",{"$f":"VLOOKUP(R1334,'LA CPID Look up'!$A$3:$C$153,2,FALSE)","v":"Birmingham City Council"},"West Midlands"]
[null,null,null,null,null,null,null,null,null,null,null,null,null,null,124629,"East Bridgford St Peters Church of England Academy","2014-02-01","Nottinghamshire County Council",{"$f":"VLOOKUP(R1335,'LA CPID Look up'!$A$3:$C$153,2,FALSE)","v":"Nottinghamshire County Council"},"East Midlands and the Humber"]
[null,null,null,null,null,null,null,null,null,null,null,null,null,null,131835,"East Crompton St George's CofE School","2015-09-01","Oldham Metropolitan Borough Council",{"$f":"VLOOKUP(R1336,'LA CPID Look up'!$A$3:$C$153,2,FALSE)","v":"Oldham Metropolitan Borough Council"},"Lancashire and West Yorkshire"]
[null,null,null,null,null,null,null,null,null,null,null,null,null,null,122323,"East Dene Primary","2013-04-01","Rotherham Metropolitan Borough Council",{"$f":"VLOOKUP(R1337,'LA CPID Look up'!$A$3:$C$153,2,FALSE)","v":"Rotherham Borough Council"},"East Midlands and the Humber"]
[null,null,null,null,null,null,null,null,null,null,null,null,null,null,125195,"East Garforth Primary Academy","2013-09-01","Leeds City Council",{"$f":"VLOOKUP(R1338,'LA CPID Look up'!$A$3:$C$153,2,FALSE)","v":"Leeds City Council"},"Lancashire and West Yorkshire"]
[null,null,null,null,null,null,null,null,null,null,null,null,null,null,122083,"East Herrington Primary Academy","2012-07-01","Sunderland City Council",{"$f":"VLOOKUP(R1339,'LA CPID Look up'!$A$3:$C$153,2,FALSE)","v":"Sunderland City Metropolitan Borough Council"},"North of England"]
[null,null,null,null,null,null,null,null,null,null,null,null,null,null,122413,"East Leake Academy","2012-11-01","Nottinghamshire County Council",{"$f":"VLOOKUP(R1340,'LA CPID Look up'!$A$3:$C$153,2,FALSE)","v":"Nottinghamshire County Council"},"East Midlands and the Humber"]
[null,null,null,null,null,null,null,null,null,null,null,null,null,null,130801,"East London Arts & Music","2014-09-01","Newham London Borough Council",{"$f":"VLOOKUP(R1341,'LA CPID Look up'!$A$3:$C$153,2,FALSE)","v":"Newham London Borough Council"},"East of England and North-East London"]
[null,null,null,null,null,null,null,null,null,null,null,null,null,null,123300,"East London Science School","2013-09-01","Tower Hamlets London Borough Council",{"$f":"VLOOKUP(R1342,'LA CPID Look up'!$A$3:$C$153,2,FALSE)","v":"Tower Hamlets London Borough Council"},"East of England and North-East London"]
[null,null,null,null,null,null,null,null,null,null,null,null,null,null,119145,"East Manchester Academy, The","2010-09-01","Manchester City Council",{"$f":"VLOOKUP(R1343,'LA CPID Look up'!$A$3:$C$153,2,FALSE)","v":"Manchester City Council"},"Lancashire and West Yorkshire"]
[null,null,null,null,null,null,null,null,null,null,null,null,null,null,120134,"East Point Academy","2011-09-01","Suffolk County Council",{"$f":"VLOOKUP(R1344,'LA CPID Look up'!$A$3:$C$153,2,FALSE)","v":"Suffolk County Council"},"East of England and North-East London"]
[null,null,null,null,null,null,null,null,null,null,null,null,null,null,120770,"East Ravendale CofE Primary School Academy","2012-01-01","North East Lincolnshire Council",{"$f":"VLOOKUP(R1345,'LA CPID Look up'!$A$3:$C$153,2,FALSE)","v":"North East Lincolnshire Council"},"East Midlands and the Humber"]
[null,null,null,null,null,null,null,null,null,null,null,null,null,null,122014,"East Tilbury Junior School","2012-04-01","Thurrock Borough Council",{"$f":"VLOOKUP(R1346,'LA CPID Look up'!$A$3:$C$153,2,FALSE)","v":"Thurrock Unitary Authority"},"East of England and North-East London"]
[null,null,null,null,null,null,null,null,null,null,null,null,null,null,121024,"East Tilbury Primary School and Nursery","2012-04-01","Thurrock Borough Council",{"$f":"VLOOKUP(R1347,'LA CPID Look up'!$A$3:$C$153,2,FALSE)","v":"Thurrock Unitary Authority"},"East of England and North-East London"]
[null,null,null,null,null,null,null,null,null,null,null,null,null,null,119662,"East Wickham Primary Academy","2011-04-01","Bexley London Borough Council",{"$f":"VLOOKUP(R1348,'LA CPID Look up'!$A$3:$C$153,2,FALSE)","v":"Bexley London Borough Council"},"South-East England and South London"]
[null,null,null,null,null,null,null,null,null,null,null,null,null,null,120025,"East Worlington Primary School","2011-08-01","Devon County Council",{"$f":"VLOOKUP(R1349,'LA CPID Look up'!$A$3:$C$153,2,FALSE)","v":"Devon County Council"},"South-West England"]
[null,null,null,null,null,null,null,null,null,null,null,null,null,null,119169,"Eastbourne Academy, The","2010-09-01","East Sussex County Council",{"$f":"VLOOKUP(R1350,'LA CPID Look up'!$A$3:$C$153,2,FALSE)","v":"East Sussex County Council"},"South-East England and South London"]
[null,null,null,null,null,null,null,null,null,null,null,null,null,null,123101,"Eastbrook Primary Academy","2013-09-01","West Sussex County Council",{"$f":"VLOOKUP(R1351,'LA CPID Look up'!$A$3:$C$153,2,FALSE)","v":"West Sussex County Council"},"South-East England and South London"]
[null,null,null,null,null,null,null,null,null,null,null,null,null,null,133453,"Eastcote Primary Academy","2016-02-01","Bexley London Borough Council",{"$f":"VLOOKUP(R1352,'LA CPID Look up'!$A$3:$C$153,2,FALSE)","v":"Bexley London Borough Council"},"South-East England and South London"]
[null,null,null,null,null,null,null,null,null,null,null,null,null,null,125018,"Easterside Academy","2014-04-01","Middlesbrough Council",{"$f":"VLOOKUP(R1353,'LA CPID Look up'!$A$3:$C$153,2,FALSE)","v":"Middlesbrough Council"},"North of England"]
[null,null,null,null,null,null,null,null,null,null,null,null,null,null,120935,"Eastfield Academy","2012-11-01","Northamptonshire County Council",{"$f":"VLOOKUP(R1354,'LA CPID Look up'!$A$3:$C$153,2,FALSE)","v":"Northamptonshire County Council"},"East of England and North-East London"]
[null,null,null,null,null,null,null,null,null,null,null,null,null,null,124597,"Eastfield Primary Academy - Immingham","2013-08-01","North East Lincolnshire Council",{"$f":"VLOOKUP(R1355,'LA CPID Look up'!$A$3:$C$153,2,FALSE)","v":"North East Lincolnshire Council"},"East Midlands and the Humber"]
[null,null,null,null,null,null,null,null,null,null,null,null,null,null,124080,"Eastfield Primary School - Hull","2013-07-01","Hull City Council",{"$f":"VLOOKUP(R1356,'LA CPID Look up'!$A$3:$C$153,2,FALSE)","v":"Kingston upon Hull City Council"},"East Midlands and the Humber"]
[null,null,null,null,null,null,null,null,null,null,null,null,null,null,122375,"Eastfield Primary School - Leicester","2012-10-01","Leicestershire County Council",{"$f":"VLOOKUP(R1357,'LA CPID Look up'!$A$3:$C$153,2,FALSE)","v":"Leicestershire County Council"},"East Midlands and the Humber"]
[null,null,null,null,null,null,null,null,null,null,null,null,null,null,129544,"Eastgate Academy","2014-04-01","Norfolk County Council",{"$f":"VLOOKUP(R1358,'LA CPID Look up'!$A$3:$C$153,2,FALSE)","v":"Norfolk County Council"},"East of England and North-East London"]
[null,null,null,null,null,null,null,null,null,null,null,null,null,null,130324,"Easton Church of England Academy","2014-09-01","Bristol City Council",{"$f":"VLOOKUP(R1359,'LA CPID Look up'!$A$3:$C$153,2,FALSE)","v":"Bristol City Council"},"South-West England"]
[null,null,null,null,null,null,null,null,null,null,null,null,null,null,131163,"Easton Community Primary School","2014-11-01","Suffolk County Council",{"$f":"VLOOKUP(R1360,'LA CPID Look up'!$A$3:$C$153,2,FALSE)","v":"Suffolk County Council"},"East of England and North-East London"]
[null,null,null,null,null,null,null,null,null,null,null,null,null,null,132913,"Easton Garford Endowed CofE School","2015-07-01","Northamptonshire County Council",{"$f":"VLOOKUP(R1361,'LA CPID Look up'!$A$3:$C$153,2,FALSE)","v":"Northamptonshire County Council"},"East of England and North-East London"]
[null,null,null,null,null,null,null,null,null,null,null,null,null,null,122140,"Easton Royal Academy","2012-09-01","Wiltshire Council",{"$f":"VLOOKUP(R1362,'LA CPID Look up'!$A$3:$C$153,2,FALSE)","v":"Wiltshire Unitary Authority"},"South-West England"]
[null,null,null,null,null,null,null,null,null,null,null,null,null,null,120390,"Eastrop Infant School","2011-09-01","Swindon Borough Council",{"$f":"VLOOKUP(R1363,'LA CPID Look up'!$A$3:$C$153,2,FALSE)","v":"Swindon Unitary Authority"},"South-West England"]
[null,null,null,null,null,null,null,null,null,null,null,null,null,null,120284,"Eastwood Academy, The","2011-08-17","Southend-on-Sea Borough Council",{"$f":"VLOOKUP(R1364,'LA CPID Look up'!$A$3:$C$153,2,FALSE)","v":"Southend-on-Sea Borough Council"},"East of England and North-East London"]
[null,null,null,null,null,null,null,null,null,null,null,null,null,null,129603,"Eastwood Village Primary School","2015-09-01","Rotherham Metropolitan Borough Council",{"$f":"VLOOKUP(R1365,'LA CPID Look up'!$A$3:$C$153,2,FALSE)","v":"Rotherham Borough Council"},"East Midlands and the Humber"]
[null,null,null,null,null,null,null,null,null,null,null,null,null,null,122027,"Eaton Bank Academy - Congleton","2012-09-01","Cheshire East Council",{"$f":"VLOOKUP(R1366,'LA CPID Look up'!$A$3:$C$153,2,FALSE)","v":"Cheshire East Unitary Authority"},"West Midlands"]
[null,null,null,null,null,null,null,null,null,null,null,null,null,null,119536,"Eaton Bray Academy - Dunstable","2011-04-01","Central Bedfordshire Council",{"$f":"VLOOKUP(R1367,'LA CPID Look up'!$A$3:$C$153,2,FALSE)","v":"Central Bedfordshire Unitary Authority"},"South-Central England and North-West London"]
[null,null,null,null,null,null,null,null,null,null,null,null,null,null,122975,"Eaton Hall School, Norwich","2012-12-01","Norfolk County Council",{"$f":"VLOOKUP(R1368,'LA CPID Look up'!$A$3:$C$153,2,FALSE)","v":"Norfolk County Council"},"East of England and North-East London"]
[null,null,null,null,null,null,null,null,null,null,null,null,null,null,120783,"Eaton Park Primary School","2012-08-01","Stoke-on-Trent City Council",{"$f":"VLOOKUP(R1369,'LA CPID Look up'!$A$3:$C$153,2,FALSE)","v":"Stoke-on-Trent Unitary Authority"},"West Midlands"]
[null,null,null,null,null,null,null,null,null,null,null,null,null,null,131517,"Eaton Primary School","2015-02-01","Norfolk County Council",{"$f":"VLOOKUP(R1370,'LA CPID Look up'!$A$3:$C$153,2,FALSE)","v":"Norfolk County Council"},"East of England and North-East London"]
[null,null,null,null,null,null,null,null,null,null,null,null,null,null,120981,"Ebbsfleet Academy, The","2013-11-01","Kent County Council",{"$f":"VLOOKUP(R1371,'LA CPID Look up'!$A$3:$C$153,2,FALSE)","v":"Kent County Council"},"South-East England and South London"]
[null,null,null,null,null,null,null,null,null,null,null,null,null,null,132628,"EBN Academy Phase 2","2015-09-01","Birmingham City Council",{"$f":"VLOOKUP(R1372,'LA CPID Look up'!$A$3:$C$153,2,FALSE)","v":"Birmingham City Council"},"West Midlands"]
[null,null,null,null,null,null,null,null,null,null,null,null,null,null,131985,"EBOR Academy Filey","2015-09-01","North Yorkshire County Council",{"$f":"VLOOKUP(R1373,'LA CPID Look up'!$A$3:$C$153,2,FALSE)","v":"North Yorkshire County Council"},"North of England"]
[null,null,null,null,null,null,null,null,null,null,null,null,null,null,119661,"Ecclesbourne Primary School - Croydon","2011-04-01","Croydon London Borough Council",{"$f":"VLOOKUP(R1374,'LA CPID Look up'!$A$3:$C$153,2,FALSE)","v":"Croydon London Borough Council"},"South-East England and South London"]
[null,null,null,null,null,null,null,null,null,null,null,null,null,null,119514,"Ecclesbourne School, The - Belper","2011-03-01","Derbyshire County Council",{"$f":"VLOOKUP(R1375,'LA CPID Look up'!$A$3:$C$153,2,FALSE)","v":"Derbyshire County Council"},"East Midlands and the Humber"]
[null,null,null,null,null,null,null,null,null,null,null,null,null,null,124700,"Ecclesfield School","2014-04-01","Sheffield City Council",{"$f":"VLOOKUP(R1376,'LA CPID Look up'!$A$3:$C$153,2,FALSE)","v":"Sheffield City Council"},"East Midlands and the Humber"]
[null,null,null,null,null,null,null,null,null,null,null,null,null,null,124665,"Echelford Primary School, The","2013-10-01","Surrey County Council",{"$f":"VLOOKUP(R1377,'LA CPID Look up'!$A$3:$C$153,2,FALSE)","v":"Surrey County Council"},"South-East England and South London"]
[null,null,null,null,null,null,null,null,null,null,null,null,null,null,121428,"Ecton Brook Primary School","2012-11-01","Northamptonshire County Council",{"$f":"VLOOKUP(R1378,'LA CPID Look up'!$A$3:$C$153,2,FALSE)","v":"Northamptonshire County Council"},"East of England and North-East London"]
[null,null,null,null,null,null,null,null,null,null,null,null,null,null,129899,"Edale Rise Primary & Nursery School","2014-04-01","Nottingham City Council",{"$f":"VLOOKUP(R1379,'LA CPID Look up'!$A$3:$C$153,2,FALSE)","v":"Nottingham City Council"},"East Midlands and the Humber"]
[null,null,null,null,null,null,null,null,null,null,null,null,null,null,130497,"Eden BESD Free School - Blackburn","2014-09-01","Blackburn with Darwen Borough Council",{"$f":"VLOOKUP(R1380,'LA CPID Look up'!$A$3:$C$153,2,FALSE)","v":"Blackburn with Darwen Unitary Authority"},"Lancashire and West Yorkshire"]
[null,null,null,null,null,null,null,null,null,null,null,null,null,null,130484,"Eden Boys' School Bolton","2014-09-01","Bolton Metropolitan Borough Council",{"$f":"VLOOKUP(R1381,'LA CPID Look up'!$A$3:$C$153,2,FALSE)","v":"Bolton Metropolitan Borough Council"},"Lancashire and West Yorkshire"]
[null,null,null,null,null,null,null,null,null,null,null,null,null,null,132638,"Eden Boys' School, Birmingham","2015-09-01","Birmingham City Council",{"$f":"VLOOKUP(R1382,'LA CPID Look up'!$A$3:$C$153,2,FALSE)","v":"Birmingham City Council"},"West Midlands"]
[null,null,null,null,null,null,null,null,null,null,null,null,null,null,132639,"Eden Boys' School, Preston","2015-09-01","Lancashire County Council",{"$f":"VLOOKUP(R1383,'LA CPID Look up'!$A$3:$C$153,2,FALSE)","v":"Lancashire County Council"},"Lancashire and West Yorkshire"]
[null,null,null,null,null,null,null,null,null,null,null,null,null,null,130492,"Eden Girls' School Coventry","2014-09-01","Coventry City Council",{"$f":"VLOOKUP(R1384,'LA CPID Look up'!$A$3:$C$153,2,FALSE)","v":"Coventry City Council"},"West Midlands"]
[null,null,null,null,null,null,null,null,null,null,null,null,null,null,130555,"Eden Girls' School Waltham Forest","2014-09-01","Waltham Forest London Borough Council",{"$f":"VLOOKUP(R1385,'LA CPID Look up'!$A$3:$C$153,2,FALSE)","v":"Waltham Forest London Borough Council"},"East of England and North-East London"]
[null,null,null,null,null,null,null,null,null,null,null,null,null,null,132640,"Eden Girls' School, Slough","2015-09-01","Slough Borough Council",{"$f":"VLOOKUP(R1386,'LA CPID Look up'!$A$3:$C$153,2,FALSE)","v":"Slough Borough Council"},"East of England and North-East London"]
[null,null,null,null,null,null,null,null,null,null,null,null,null,null,119892,"Eden Park Primary School Academy","2011-07-01","Torbay Council",{"$f":"VLOOKUP(R1387,'LA CPID Look up'!$A$3:$C$153,2,FALSE)","v":"Torbay Council"},"South-West England"]
[null,null,null,null,null,null,null,null,null,null,null,null,null,null,120469,"Eden Primary","2011-09-01","Haringey London Borough Council",{"$f":"VLOOKUP(R1388,'LA CPID Look up'!$A$3:$C$153,2,FALSE)","v":"Haringey London Borough Council"},"East of England and North-East London"]
[null,null,null,null,null,null,null,null,null,null,null,null,null,null,132381,"Edenham High School","2015-09-01","Croydon London Borough Council",{"$f":"VLOOKUP(R1389,'LA CPID Look up'!$A$3:$C$153,2,FALSE)","v":"Croydon London Borough Council"},"South-East England and South London"]
[null,null,null,null,null,null,null,null,null,null,null,null,null,null,124115,"Edgar Stammers Primary Academy","2013-07-01","Walsall Metropolitan Borough Council",{"$f":"VLOOKUP(R1390,'LA CPID Look up'!$A$3:$C$153,2,FALSE)","v":"Walsall Metropolitan Borough Council"},"West Midlands"]
[null,null,null,null,null,null,null,null,null,null,null,null,null,null,132629,"Edge Academy, The","2015-09-01","Birmingham City Council",{"$f":"VLOOKUP(R1391,'LA CPID Look up'!$A$3:$C$153,2,FALSE)","v":"Birmingham City Council"},"West Midlands"]
[null,null,null,null,null,null,null,null,null,null,null,null,null,null,130750,"Edith Cavell Academy and Nursery","2014-07-01","Norfolk County Council",{"$f":"VLOOKUP(R1392,'LA CPID Look up'!$A$3:$C$153,2,FALSE)","v":"Norfolk County Council"},"East of England and North-East London"]
[null,null,null,null,null,null,null,null,null,null,null,null,null,null,133462,"Edith Weston Academy","2016-01-01","Rutland County Council",{"$f":"VLOOKUP(R1393,'LA CPID Look up'!$A$3:$C$153,2,FALSE)","v":"Rutland County Council"},"East Midlands and the Humber"]
[null,null,null,null,null,null,null,null,null,null,null,null,null,null,130304,"Edmunds Primary Academy, The","2014-09-01","Barnsley Metropolitan Borough Council",{"$f":"VLOOKUP(R1394,'LA CPID Look up'!$A$3:$C$153,2,FALSE)","v":"Barnsley Metropolitan Borough Council"},"East Midlands and the Humber"]
[null,null,null,null,null,null,null,null,null,null,null,null,null,null,120574,"Edna G. Olds Academy","2011-10-01","Nottingham City Council",{"$f":"VLOOKUP(R1395,'LA CPID Look up'!$A$3:$C$153,2,FALSE)","v":"Nottingham City Council"},"East Midlands and the Humber"]
[null,null,null,null,null,null,null,null,null,null,null,null,null,null,122036,"Education Links","2014-09-01","Newham London Borough Council",{"$f":"VLOOKUP(R1396,'LA CPID Look up'!$A$3:$C$153,2,FALSE)","v":"Newham London Borough Council"},"East of England and North-East London"]
[null,null,null,null,null,null,null,null,null,null,null,null,null,null,132915,"Edwalton Primary School","2015-10-01","Nottinghamshire County Council",{"$f":"VLOOKUP(R1397,'LA CPID Look up'!$A$3:$C$153,2,FALSE)","v":"Nottinghamshire County Council"},"East Midlands and the Humber"]
[null,null,null,null,null,null,null,null,null,null,null,null,null,null,121007,"Edward Bryant School","2012-04-01","West Sussex County Council",{"$f":"VLOOKUP(R1398,'LA CPID Look up'!$A$3:$C$153,2,FALSE)","v":"West Sussex County Council"},"South-East England and South London"]
[null,null,null,null,null,null,null,null,null,null,null,null,null,null,121995,"Edward Heneage Primary Academy","2012-10-01","North East Lincolnshire Council",{"$f":"VLOOKUP(R1399,'LA CPID Look up'!$A$3:$C$153,2,FALSE)","v":"North East Lincolnshire Council"},"East Midlands and the Humber"]
[null,null,null,null,null,null,null,null,null,null,null,null,null,null,120832,"Eggar's School","2012-09-01","Hampshire County Council",{"$f":"VLOOKUP(R1400,'LA CPID Look up'!$A$3:$C$153,2,FALSE)","v":"Hampshire County Council"},"South-East England and South London"]
[null,null,null,null,null,null,null,null,null,null,null,null,null,null,124785,"Eggbuckland Community College","2013-09-01","Plymouth City Council",{"$f":"VLOOKUP(R1401,'LA CPID Look up'!$A$3:$C$153,2,FALSE)","v":"Plymouth City Council"},"South-West England"]
[null,null,null,null,null,null,null,null,null,null,null,null,null,null,121893,"Elaine Primary Academy","2012-09-01","Medway Council",{"$f":"VLOOKUP(R1402,'LA CPID Look up'!$A$3:$C$153,2,FALSE)","v":"Medway Towns Unitary Authority (The)"},"South-East England and South London"]
[null,null,null,null,null,null,null,null,null,null,null,null,null,null,121458,"Elburton Primary School","2012-07-01","Plymouth City Council",{"$f":"VLOOKUP(R1403,'LA CPID Look up'!$A$3:$C$153,2,FALSE)","v":"Plymouth City Council"},"South-West England"]
[null,null,null,null,null,null,null,null,null,null,null,null,null,null,124581,"Eldon Grove Academy","2013-07-01","Hartlepool Borough Council",{"$f":"VLOOKUP(R1404,'LA CPID Look up'!$A$3:$C$153,2,FALSE)","v":"Hartlepool Borough Council"},"North of England"]
[null,null,null,null,null,null,null,null,null,null,null,null,null,null,123041,"Elizabeth Woodville School","2012-12-01","Northamptonshire County Council",{"$f":"VLOOKUP(R1405,'LA CPID Look up'!$A$3:$C$153,2,FALSE)","v":"Northamptonshire County Council"},"East of England and North-East London"]
[null,null,null,null,null,null,null,null,null,null,null,null,null,null,120873,"Elizabethan Academy, The","2012-04-01","Nottinghamshire County Council",{"$f":"VLOOKUP(R1406,'LA CPID Look up'!$A$3:$C$153,2,FALSE)","v":"Nottinghamshire County Council"},"East Midlands and the Humber"]
[null,null,null,null,null,null,null,null,null,null,null,null,null,null,121154,"Ellacombe Primary School Academy","2012-04-01","Torbay Council",{"$f":"VLOOKUP(R1407,'LA CPID Look up'!$A$3:$C$153,2,FALSE)","v":"Torbay Council"},"South-West England"]
[null,null,null,null,null,null,null,null,null,null,null,null,null,null,123352,"Elland Academy, The","2014-09-01","Leeds City Council",{"$f":"VLOOKUP(R1408,'LA CPID Look up'!$A$3:$C$153,2,FALSE)","v":"Leeds City Council"},"Lancashire and West Yorkshire"]
[null,null,null,null,null,null,null,null,null,null,null,null,null,null,132641,"Elliott Hudson College","2015-09-01","Leeds City Council",{"$f":"VLOOKUP(R1409,'LA CPID Look up'!$A$3:$C$153,2,FALSE)","v":"Leeds City Council"},"Lancashire and West Yorkshire"]
[null,null,null,null,null,null,null,null,null,null,null,null,null,null,122676,"Ellison Boulters Church of England Primary School","2012-09-01","Lincolnshire County Council",{"$f":"VLOOKUP(R1410,'LA CPID Look up'!$A$3:$C$153,2,FALSE)","v":"Lincolnshire County Council"},"East Midlands and the Humber"]
[null,null,null,null,null,null,null,null,null,null,null,null,null,null,131656,"Elliston Primary School","2015-03-01","North East Lincolnshire Council",{"$f":"VLOOKUP(R1411,'LA CPID Look up'!$A$3:$C$153,2,FALSE)","v":"North East Lincolnshire Council"},"East Midlands and the Humber"]
[null,null,null,null,null,null,null,null,null,null,null,null,null,null,131201,"Ellowes Hall Sports College","2015-03-01","Dudley Metropolitan Borough Council",{"$f":"VLOOKUP(R1412,'LA CPID Look up'!$A$3:$C$153,2,FALSE)","v":"Dudley Metropolitan Borough Council"},"West Midlands"]
[null,null,null,null,null,null,null,null,null,null,null,null,null,null,123051,"Elm Academy","2012-12-01","Bournemouth Borough Council",{"$f":"VLOOKUP(R1413,'LA CPID Look up'!$A$3:$C$153,2,FALSE)","v":"Bournemouth Council"},"South-West England"]
[null,null,null,null,null,null,null,null,null,null,null,null,null,null,133092,"Elm Road Primary School","2015-11-01","Cambridgeshire County Council",{"$f":"VLOOKUP(R1414,'LA CPID Look up'!$A$3:$C$153,2,FALSE)","v":"Cambridgeshire County Council"},"East of England and North-East London"]
[null,null,null,null,null,null,null,null,null,null,null,null,null,null,132353,"Elm Tree Community Primary School","2016-03-01","Suffolk County Council",{"$f":"VLOOKUP(R1415,'LA CPID Look up'!$A$3:$C$153,2,FALSE)","v":"Suffolk County Council"},"East of England and North-East London"]
[null,null,null,null,null,null,null,null,null,null,null,null,null,null,119843,"Elmlea Junior School","2011-07-01","Bristol City Council",{"$f":"VLOOKUP(R1416,'LA CPID Look up'!$A$3:$C$153,2,FALSE)","v":"Bristol City Council"},"South-West England"]
[null,null,null,null,null,null,null,null,null,null,null,null,null,null,122009,"Elmridge Primary School","2012-09-01","Trafford Borough Council",{"$f":"VLOOKUP(R1417,'LA CPID Look up'!$A$3:$C$153,2,FALSE)","v":"Trafford Metropolitan Borough Council"},"Lancashire and West Yorkshire"]
[null,null,null,null,null,null,null,null,null,null,null,null,null,null,132322,"Elsecar Holy Trinity CofE Primary Academy","2015-10-01","Barnsley Metropolitan Borough Council",{"$f":"VLOOKUP(R1418,'LA CPID Look up'!$A$3:$C$153,2,FALSE)","v":"Barnsley Metropolitan Borough Council"},"East Midlands and the Humber"]
[null,null,null,null,null,null,null,null,null,null,null,null,null,null,132312,"Elston Hall Primary School","2015-10-01","Wolverhampton City Council",{"$f":"VLOOKUP(R1419,'LA CPID Look up'!$A$3:$C$153,2,FALSE)","v":"Wolverhampton City Council"},"West Midlands"]
[null,null,null,null,null,null,null,null,null,null,null,null,null,null,123376,"Elstree UTC, The","2013-09-01","Hertfordshire County Council",{"$f":"VLOOKUP(R1420,'LA CPID Look up'!$A$3:$C$153,2,FALSE)","v":"Hertfordshire County Council"},"East of England and North-East London"]
[null,null,null,null,null,null,null,null,null,null,null,null,null,null,131118,"Elton Community Primary School","2014-09-01","Bury Metropolitan Borough Council",{"$f":"VLOOKUP(R1421,'LA CPID Look up'!$A$3:$C$153,2,FALSE)","v":"Bury Metropolitan Borough Council"},"Lancashire and West Yorkshire"]
[null,null,null,null,null,null,null,null,null,null,null,null,null,null,130563,"elutec","2014-09-01","Havering London Borough Council",{"$f":"VLOOKUP(R1422,'LA CPID Look up'!$A$3:$C$153,2,FALSE)","v":"Havering London Borough Council"},"East of England and North-East London"]
[null,null,null,null,null,null,null,null,null,null,null,null,null,null,122802,"Elveden Church of England Primary Academy","2013-01-01","Suffolk County Council",{"$f":"VLOOKUP(R1423,'LA CPID Look up'!$A$3:$C$153,2,FALSE)","v":"Suffolk County Council"},"East of England and North-East London"]
[null,null,null,null,null,null,null,null,null,null,null,null,null,null,120613,"Ely College","2012-01-01","Cambridgeshire County Council",{"$f":"VLOOKUP(R1424,'LA CPID Look up'!$A$3:$C$153,2,FALSE)","v":"Cambridgeshire County Council"},"East of England and North-East London"]
[null,null,null,null,null,null,null,null,null,null,null,null,null,null,131162,"Ely St Mary's CofE Junior School","2015-02-01","Cambridgeshire County Council",{"$f":"VLOOKUP(R1425,'LA CPID Look up'!$A$3:$C$153,2,FALSE)","v":"Cambridgeshire County Council"},"East of England and North-East London"]
[null,null,null,null,null,null,null,null,null,null,null,null,null,null,120346,"Emerson Park Academy","2011-09-01","Havering London Borough Council",{"$f":"VLOOKUP(R1426,'LA CPID Look up'!$A$3:$C$153,2,FALSE)","v":"Havering London Borough Council"},"East of England and North-East London"]
[null,null,null,null,null,null,null,null,null,null,null,null,null,null,124994,"Emmanuel Anglican Methodist Junior School","2015-02-01","Sheffield City Council",{"$f":"VLOOKUP(R1427,'LA CPID Look up'!$A$3:$C$153,2,FALSE)","v":"Sheffield City Council"},"East Midlands and the Humber"]
[null,null,null,null,null,null,null,null,null,null,null,null,null,null,118390,"Emmanuel College - Gateshead","1991-04-05","Gateshead Council",{"$f":"VLOOKUP(R1428,'LA CPID Look up'!$A$3:$C$153,2,FALSE)","v":"Gateshead Council"},"North of England"]
[null,null,null,null,null,null,null,null,null,null,null,null,null,null,122320,"Emmanuel Community School - Walthamstow","2012-09-01","Waltham Forest London Borough Council",{"$f":"VLOOKUP(R1429,'LA CPID Look up'!$A$3:$C$153,2,FALSE)","v":"Waltham Forest London Borough Council"},"East of England and North-East London"]
[null,null,null,null,null,null,null,null,null,null,null,null,null,null,130134,"Emmaus Catholic and CofE Primary School","2014-08-01","Sheffield City Council",{"$f":"VLOOKUP(R1430,'LA CPID Look up'!$A$3:$C$153,2,FALSE)","v":"Sheffield City Council"},"East Midlands and the Humber"]
[null,null,null,null,null,null,null,null,null,null,null,null,null,null,131070,"Emslie Morgan Alternative Provision School (EMAPS)","2015-03-01","Wirral Metropolitan Borough Council",{"$f":"VLOOKUP(R1431,'LA CPID Look up'!$A$3:$C$153,2,FALSE)","v":"Wirral Metropolitan Borough Council"},"Lancashire and West Yorkshire"]
[null,null,null,null,null,null,null,null,null,null,null,null,null,null,129246,"Endeavour Academy, Oxford","2014-09-01","Oxfordshire County Council",{"$f":"VLOOKUP(R1432,'LA CPID Look up'!$A$3:$C$153,2,FALSE)","v":"Oxfordshire County Council"},"East of England and North-East London"]
[null,null,null,null,null,null,null,null,null,null,null,null,null,null,126441,"Enderby Danemill Primary School","2013-11-01","Leicestershire County Council",{"$f":"VLOOKUP(R1433,'LA CPID Look up'!$A$3:$C$153,2,FALSE)","v":"Leicestershire County Council"},"East Midlands and the Humber"]
[null,null,null,null,null,null,null,null,null,null,null,null,null,null,124992,"Endike Academy","2013-11-01","Hull City Council",{"$f":"VLOOKUP(R1434,'LA CPID Look up'!$A$3:$C$153,2,FALSE)","v":"Kingston upon Hull City Council"},"East Midlands and the Humber"]
[null,null,null,null,null,null,null,null,null,null,null,null,null,null,124982,"Endsleigh Holy Child VC Academy","2014-06-01","Hull City Council",{"$f":"VLOOKUP(R1435,'LA CPID Look up'!$A$3:$C$153,2,FALSE)","v":"Kingston upon Hull City Council"},"East Midlands and the Humber"]
[null,null,null,null,null,null,null,null,null,null,null,null,null,null,123380,"Energy Coast UTC","2014-09-01","Cumbria County Council",{"$f":"VLOOKUP(R1436,'LA CPID Look up'!$A$3:$C$153,2,FALSE)","v":"Cumbria County Council"},"North of England"]
[null,null,null,null,null,null,null,null,null,null,null,null,null,null,132045,"Enfield Academy of New Waltham","2015-09-01","North East Lincolnshire Council",{"$f":"VLOOKUP(R1437,'LA CPID Look up'!$A$3:$C$153,2,FALSE)","v":"North East Lincolnshire Council"},"East Midlands and the Humber"]
[null,null,null,null,null,null,null,null,null,null,null,null,null,null,120094,"Enfield Grammar School","2011-08-01","Enfield London Borough Council",{"$f":"VLOOKUP(R1438,'LA CPID Look up'!$A$3:$C$153,2,FALSE)","v":"Enfield London Borough Council"},"South-Central England and North-West London"]
[null,null,null,null,null,null,null,null,null,null,null,null,null,null,121979,"Enfield Heights Academy","2012-09-01","Enfield London Borough Council",{"$f":"VLOOKUP(R1439,'LA CPID Look up'!$A$3:$C$153,2,FALSE)","v":"Enfield London Borough Council"},"South-Central England and North-West London"]
[null,null,null,null,null,null,null,null,null,null,null,null,null,null,127205,"England Lane Academy","2013-12-01","Wakefield Council",{"$f":"VLOOKUP(R1440,'LA CPID Look up'!$A$3:$C$153,2,FALSE)","v":"Wakefield City Council"},"Lancashire and West Yorkshire"]
[null,null,null,null,null,null,null,null,null,null,null,null,null,null,126519,"English Martyrs' Catholic Primary - Nottingham","2013-09-01","Derbyshire County Council",{"$f":"VLOOKUP(R1441,'LA CPID Look up'!$A$3:$C$153,2,FALSE)","v":"Derbyshire County Council"},"East Midlands and the Humber"]
[null,null,null,null,null,null,null,null,null,null,null,null,null,null,124329,"English Martyrs' Catholic Primary School - Oakham","2013-05-01","Rutland County Council",{"$f":"VLOOKUP(R1442,'LA CPID Look up'!$A$3:$C$153,2,FALSE)","v":"Rutland County Council"},"East Midlands and the Humber"]
[null,null,null,null,null,null,null,null,null,null,null,null,null,null,131211,"English Martyrs Catholic Primary School - Wakefield","2014-12-01","Wakefield Council",{"$f":"VLOOKUP(R1443,'LA CPID Look up'!$A$3:$C$153,2,FALSE)","v":"Wakefield City Council"},"Lancashire and West Yorkshire"]
[null,null,null,null,null,null,null,null,null,null,null,null,null,null,129903,"English Martyrs School and Sixth Form College, The","2014-05-01","Hartlepool Borough Council",{"$f":"VLOOKUP(R1444,'LA CPID Look up'!$A$3:$C$153,2,FALSE)","v":"Hartlepool Borough Council"},"North of England"]
[null,null,null,null,null,null,null,null,null,null,null,null,null,null,120391,"Enmore Church of England Primary School","2011-09-01","Somerset County Council",{"$f":"VLOOKUP(R1445,'LA CPID Look up'!$A$3:$C$153,2,FALSE)","v":"Somerset County Council"},"South-West England"]
[null,null,null,null,null,null,null,null,null,null,null,null,null,null,119202,"Enterprise South Liverpool Academy","2010-09-01","Liverpool City Council",{"$f":"VLOOKUP(R1446,'LA CPID Look up'!$A$3:$C$153,2,FALSE)","v":"Liverpool City Council"},"Lancashire and West Yorkshire"]
[null,null,null,null,null,null,null,null,null,null,null,null,null,null,121086,"Epiphany Church of England Primary School, The","2012-04-01","Bournemouth Borough Council",{"$f":"VLOOKUP(R1447,'LA CPID Look up'!$A$3:$C$153,2,FALSE)","v":"Bournemouth Council"},"South-West England"]
[null,null,null,null,null,null,null,null,null,null,null,null,null,null,122067,"Eppleton Academy Primary School","2012-06-01","Sunderland City Council",{"$f":"VLOOKUP(R1448,'LA CPID Look up'!$A$3:$C$153,2,FALSE)","v":"Sunderland City Metropolitan Borough Council"},"North of England"]
[null,null,null,null,null,null,null,null,null,null,null,null,null,null,120508,"Epsom and Ewell High School","2011-10-01","Surrey County Council",{"$f":"VLOOKUP(R1449,'LA CPID Look up'!$A$3:$C$153,2,FALSE)","v":"Surrey County Council"},"South-East England and South London"]
[null,null,null,null,null,null,null,null,null,null,null,null,null,null,122066,"Epworth Primary Academy","2012-09-01","North Lincolnshire Council",{"$f":"VLOOKUP(R1450,'LA CPID Look up'!$A$3:$C$153,2,FALSE)","v":"North Lincolnshire Council"},"East Midlands and the Humber"]
[null,null,null,null,null,null,null,null,null,null,null,null,null,null,119886,"Erasmus Darwin Academy","2011-07-01","Staffordshire County Council",{"$f":"VLOOKUP(R1451,'LA CPID Look up'!$A$3:$C$153,2,FALSE)","v":"Staffordshire County Council"},"West Midlands"]
[null,null,null,null,null,null,null,null,null,null,null,null,null,null,121166,"Erdington Hall Primary School","2012-06-01","Birmingham City Council",{"$f":"VLOOKUP(R1452,'LA CPID Look up'!$A$3:$C$153,2,FALSE)","v":"Birmingham City Council"},"West Midlands"]
[null,null,null,null,null,null,null,null,null,null,null,null,null,null,122974,"Eresby School, Spilsby, The","2013-05-01","Lincolnshire County Council",{"$f":"VLOOKUP(R1453,'LA CPID Look up'!$A$3:$C$153,2,FALSE)","v":"Lincolnshire County Council"},"East Midlands and the Humber"]
[null,null,null,null,null,null,null,null,null,null,null,null,null,null,119285,"Erith Secondary School","2010-10-01","Bexley London Borough Council",{"$f":"VLOOKUP(R1454,'LA CPID Look up'!$A$3:$C$153,2,FALSE)","v":"Bexley London Borough Council"},"South-East England and South London"]
[null,null,null,null,null,null,null,null,null,null,null,null,null,null,119871,"Ermine Primary Academy","2011-07-01","Lincolnshire County Council",{"$f":"VLOOKUP(R1455,'LA CPID Look up'!$A$3:$C$153,2,FALSE)","v":"Lincolnshire County Council"},"East Midlands and the Humber"]
[null,null,null,null,null,null,null,null,null,null,null,null,null,null,131801,"Ernehale Junior School","2015-04-01","Nottinghamshire County Council",{"$f":"VLOOKUP(R1456,'LA CPID Look up'!$A$3:$C$153,2,FALSE)","v":"Nottinghamshire County Council"},"East Midlands and the Humber"]
[null,null,null,null,null,null,null,null,null,null,null,null,null,null,130867,"Ernesettle Community School","2016-01-01","Plymouth City Council",{"$f":"VLOOKUP(R1457,'LA CPID Look up'!$A$3:$C$153,2,FALSE)","v":"Plymouth City Council"},"South-West England"]
[null,null,null,null,null,null,null,null,null,null,null,null,null,null,126323,"Ernesford Grange Community Academy","2014-01-01","Coventry City Council",{"$f":"VLOOKUP(R1458,'LA CPID Look up'!$A$3:$C$153,2,FALSE)","v":"Coventry City Council"},"West Midlands"]
[null,null,null,null,null,null,null,null,null,null,null,null,null,null,120187,"Ernulf Academy","2011-08-01","Cambridgeshire County Council",{"$f":"VLOOKUP(R1459,'LA CPID Look up'!$A$3:$C$153,2,FALSE)","v":"Cambridgeshire County Council"},"East of England and North-East London"]
[null,null,null,null,null,null,null,null,null,null,null,null,null,null,124917,"Esher Church of England High School","2014-03-01","Surrey County Council",{"$f":"VLOOKUP(R1460,'LA CPID Look up'!$A$3:$C$153,2,FALSE)","v":"Surrey County Council"},"South-East England and South London"]
[null,null,null,null,null,null,null,null,null,null,null,null,null,null,130737,"Esher Church School","2015-02-01","Surrey County Council",{"$f":"VLOOKUP(R1461,'LA CPID Look up'!$A$3:$C$153,2,FALSE)","v":"Surrey County Council"},"South-East England and South London"]
[null,null,null,null,null,null,null,null,null,null,null,null,null,null,124568,"Eskdale Academy","2013-07-01","Hartlepool Borough Council",{"$f":"VLOOKUP(R1462,'LA CPID Look up'!$A$3:$C$153,2,FALSE)","v":"Hartlepool Borough Council"},"North of England"]
[null,null,null,null,null,null,null,null,null,null,null,null,null,null,119125,"Essa Academy","2009-01-05","Bolton Metropolitan Borough Council",{"$f":"VLOOKUP(R1463,'LA CPID Look up'!$A$3:$C$153,2,FALSE)","v":"Bolton Metropolitan Borough Council"},"Lancashire and West Yorkshire"]
[null,null,null,null,null,null,null,null,null,null,null,null,null,null,130498,"Essa Primary School","2014-09-01","Bolton Metropolitan Borough Council",{"$f":"VLOOKUP(R1464,'LA CPID Look up'!$A$3:$C$153,2,FALSE)","v":"Bolton Metropolitan Borough Council"},"Lancashire and West Yorkshire"]
[null,null,null,null,null,null,null,null,null,null,null,null,null,null,129564,"Estcourt Primary Academy","2014-04-01","Hull City Council",{"$f":"VLOOKUP(R1465,'LA CPID Look up'!$A$3:$C$153,2,FALSE)","v":"Kingston upon Hull City Council"},"East Midlands and the Humber"]
[null,null,null,null,null,null,null,null,null,null,null,null,null,null,120911,"Eston Park Academy","2012-01-01","Redcar and Cleveland Borough Council",{"$f":"VLOOKUP(R1466,'LA CPID Look up'!$A$3:$C$153,2,FALSE)","v":"Redcar and Cleveland Borough Council"},"North of England"]
[null,null,null,null,null,null,null,null,null,null,null,null,null,null,133467,"Eton Porny CofE First School","2016-02-01","Royal Borough of Windsor and Maidenhead",{"$f":"VLOOKUP(R1467,'LA CPID Look up'!$A$3:$C$153,2,FALSE)","v":"Windsor and Maidenhead (Royal Borough of)"},"East of England and North-East London"]
[null,null,null,null,null,null,null,null,null,null,null,null,null,null,120584,"Etonbury Academy","2011-11-01","Central Bedfordshire Council",{"$f":"VLOOKUP(R1468,'LA CPID Look up'!$A$3:$C$153,2,FALSE)","v":"Central Bedfordshire Unitary Authority"},"South-Central England and North-West London"]
[null,null,null,null,null,null,null,null,null,null,null,null,null,null,120804,"Etone College","2012-01-01","Warwickshire County Council",{"$f":"VLOOKUP(R1469,'LA CPID Look up'!$A$3:$C$153,2,FALSE)","v":"Warwickshire County Council"},"West Midlands"]
[null,null,null,null,null,null,null,null,null,null,null,null,null,null,120538,"Etz Chaim Jewish Primary School","2011-09-01","Barnet London Borough Council",{"$f":"VLOOKUP(R1470,'LA CPID Look up'!$A$3:$C$153,2,FALSE)","v":"Barnet London Borough Council"},"South-Central England and North-West London"]
[null,null,null,null,null,null,null,null,null,null,null,null,null,null,121980,"Europa School UK","2012-09-01","Oxfordshire County Council",{"$f":"VLOOKUP(R1471,'LA CPID Look up'!$A$3:$C$153,2,FALSE)","v":"Oxfordshire County Council"},"East of England and North-East London"]
[null,null,null,null,null,null,null,null,null,null,null,null,null,null,118662,"Evelyn Grace Academy","2009-09-01","Lambeth London Borough Council",{"$f":"VLOOKUP(R1472,'LA CPID Look up'!$A$3:$C$153,2,FALSE)","v":"Lambeth London Borough Council"},"South-East England and South London"]
[null,null,null,null,null,null,null,null,null,null,null,null,null,null,130499,"Evendons Primary School","2014-09-01","Wokingham Borough Council",{"$f":"VLOOKUP(R1473,'LA CPID Look up'!$A$3:$C$153,2,FALSE)","v":"Wokingham Council"},"East of England and North-East London"]
[null,null,null,null,null,null,null,null,null,null,null,null,null,null,120113,"Everest Community Academy","2011-09-01","Hampshire County Council",{"$f":"VLOOKUP(R1474,'LA CPID Look up'!$A$3:$C$153,2,FALSE)","v":"Hampshire County Council"},"South-East England and South London"]
[null,null,null,null,null,null,null,null,null,null,null,null,null,null,119946,"Eversholt Lower School","2011-10-01","Central Bedfordshire Council",{"$f":"VLOOKUP(R1475,'LA CPID Look up'!$A$3:$C$153,2,FALSE)","v":"Central Bedfordshire Unitary Authority"},"South-Central England and North-West London"]
[null,null,null,null,null,null,null,null,null,null,null,null,null,null,122538,"Everton Free School","2012-09-01","Liverpool City Council",{"$f":"VLOOKUP(R1476,'LA CPID Look up'!$A$3:$C$153,2,FALSE)","v":"Liverpool City Council"},"Lancashire and West Yorkshire"]
[null,null,null,null,null,null,null,null,null,null,null,null,null,null,123238,"Excel Academy, The","2014-03-01","Stoke-on-Trent City Council",{"$f":"VLOOKUP(R1477,'LA CPID Look up'!$A$3:$C$153,2,FALSE)","v":"Stoke-on-Trent Unitary Authority"},"West Midlands"]
[null,null,null,null,null,null,null,null,null,null,null,null,null,null,118610,"Excelsior Academy","2008-09-01","Newcastle Upon Tyne City Council",{"$f":"VLOOKUP(R1478,'LA CPID Look up'!$A$3:$C$153,2,FALSE)","v":"Newcastle upon Tyne City Council"},"North of England"]
[null,null,null,null,null,null,null,null,null,null,null,null,null,null,122586,"Exeter - A Learning Community Academy","2013-01-01","Northamptonshire County Council",{"$f":"VLOOKUP(R1479,'LA CPID Look up'!$A$3:$C$153,2,FALSE)","v":"Northamptonshire County Council"},"East of England and North-East London"]
[null,null,null,null,null,null,null,null,null,null,null,null,null,null,131188,"Exeter House Special School","2015-01-01","Wiltshire Council",{"$f":"VLOOKUP(R1480,'LA CPID Look up'!$A$3:$C$153,2,FALSE)","v":"Wiltshire Unitary Authority"},"South-West England"]
[null,null,null,null,null,null,null,null,null,null,null,null,null,null,130500,"Exeter Mathematics School","2014-09-01","Devon County Council",{"$f":"VLOOKUP(R1481,'LA CPID Look up'!$A$3:$C$153,2,FALSE)","v":"Devon County Council"},"South-West England"]
[null,null,null,null,null,null,null,null,null,null,null,null,null,null,119526,"Exmouth Community College","2011-04-01","Devon County Council",{"$f":"VLOOKUP(R1482,'LA CPID Look up'!$A$3:$C$153,2,FALSE)","v":"Devon County Council"},"South-West England"]
[null,null,null,null,null,null,null,null,null,null,null,null,null,null,126315,"Eynsham Community Primary School","2014-05-01","Oxfordshire County Council",{"$f":"VLOOKUP(R1483,'LA CPID Look up'!$A$3:$C$153,2,FALSE)","v":"Oxfordshire County Council"},"East of England and North-East London"]
[null,null,null,null,null,null,null,null,null,null,null,null,null,null,133182,"Eyrescroft Primary School","2015-12-01","Peterborough City Council",{"$f":"VLOOKUP(R1484,'LA CPID Look up'!$A$3:$C$153,2,FALSE)","v":"Peterborough City Council"},"East of England and North-East London"]
[null,null,null,null,null,null,null,null,null,null,null,null,null,null,122660,"Faber Catholic Primary School, The","2012-09-01","Staffordshire County Council",{"$f":"VLOOKUP(R1485,'LA CPID Look up'!$A$3:$C$153,2,FALSE)","v":"Staffordshire County Council"},"West Midlands"]
[null,null,null,null,null,null,null,null,null,null,null,null,null,null,131821,"Fair Field Junior School","2015-04-01","Hertfordshire County Council",{"$f":"VLOOKUP(R1486,'LA CPID Look up'!$A$3:$C$153,2,FALSE)","v":"Hertfordshire County Council"},"East of England and North-East London"]
[null,null,null,null,null,null,null,null,null,null,null,null,null,null,120100,"Fair Oak Academy","2011-09-01","Staffordshire County Council",{"$f":"VLOOKUP(R1487,'LA CPID Look up'!$A$3:$C$153,2,FALSE)","v":"Staffordshire County Council"},"West Midlands"]
[null,null,null,null,null,null,null,null,null,null,null,null,null,null,129884,"Fairchildes Primary School","2014-04-01","Croydon London Borough Council",{"$f":"VLOOKUP(R1488,'LA CPID Look up'!$A$3:$C$153,2,FALSE)","v":"Croydon London Borough Council"},"South-East England and South London"]
[null,null,null,null,null,null,null,null,null,null,null,null,null,null,119908,"Fairfax School","2011-07-01","Birmingham City Council",{"$f":"VLOOKUP(R1489,'LA CPID Look up'!$A$3:$C$153,2,FALSE)","v":"Birmingham City Council"},"West Midlands"]
[null,null,null,null,null,null,null,null,null,null,null,null,null,null,121158,"Fairfield Community Primary School - Wigston","2012-03-01","Leicestershire County Council",{"$f":"VLOOKUP(R1490,'LA CPID Look up'!$A$3:$C$153,2,FALSE)","v":"Leicestershire County Council"},"East Midlands and the Humber"]
[null,null,null,null,null,null,null,null,null,null,null,null,null,null,115392,"Fairfield High School - Bristol","2015-02-01","Bristol City Council",{"$f":"VLOOKUP(R1491,'LA CPID Look up'!$A$3:$C$153,2,FALSE)","v":"Bristol City Council"},"South-West England"]
[null,null,null,null,null,null,null,null,null,null,null,null,null,null,128342,"Fairfield High School - Hereford","2014-05-01","Herefordshire Council",{"$f":"VLOOKUP(R1492,'LA CPID Look up'!$A$3:$C$153,2,FALSE)","v":"Herefordshire Council"},"West Midlands"]
[null,null,null,null,null,null,null,null,null,null,null,null,null,null,119603,"Fairfield High School for Girls - Manchester","2011-04-01","Tameside Metropolitan Borough Council",{"$f":"VLOOKUP(R1493,'LA CPID Look up'!$A$3:$C$153,2,FALSE)","v":"Tameside Metropolitan Borough Council"},"Lancashire and West Yorkshire"]
[null,null,null,null,null,null,null,null,null,null,null,null,null,null,132917,"Fairfield Primary School - Cockermouth","2015-08-01","Cumbria County Council",{"$f":"VLOOKUP(R1494,'LA CPID Look up'!$A$3:$C$153,2,FALSE)","v":"Cumbria County Council"},"North of England"]
[null,null,null,null,null,null,null,null,null,null,null,null,null,null,131396,"Fairfield Primary School - Grimsby","2015-01-01","North East Lincolnshire Council",{"$f":"VLOOKUP(R1495,'LA CPID Look up'!$A$3:$C$153,2,FALSE)","v":"North East Lincolnshire Council"},"East Midlands and the Humber"]
[null,null,null,null,null,null,null,null,null,null,null,null,null,null,123274,"Fairfield Primary School - Nottingham","2013-09-01","Nottinghamshire County Council",{"$f":"VLOOKUP(R1496,'LA CPID Look up'!$A$3:$C$153,2,FALSE)","v":"Nottinghamshire County Council"},"East Midlands and the Humber"]
[null,null,null,null,null,null,null,null,null,null,null,null,null,null,130415,"Fairlawn Primary School","2015-09-01","Bristol City Council",{"$f":"VLOOKUP(R1497,'LA CPID Look up'!$A$3:$C$153,2,FALSE)","v":"Bristol City Council"},"South-West England"]
[null,null,null,null,null,null,null,null,null,null,null,null,null,null,123210,"Fairway Primary School","2013-04-01","Birmingham City Council",{"$f":"VLOOKUP(R1498,'LA CPID Look up'!$A$3:$C$153,2,FALSE)","v":"Birmingham City Council"},"West Midlands"]
[null,null,null,null,null,null,null,null,null,null,null,null,null,null,123891,"Fakenham Academy","2013-10-01","Norfolk County Council",{"$f":"VLOOKUP(R1499,'LA CPID Look up'!$A$3:$C$153,2,FALSE)","v":"Norfolk County Council"},"East of England and North-East London"]
[null,null,null,null,null,null,null,null,null,null,null,null,null,null,130305,"Falconer's Hill Academy","2014-05-01","Northamptonshire County Council",{"$f":"VLOOKUP(R1500,'LA CPID Look up'!$A$3:$C$153,2,FALSE)","v":"Northamptonshire County Council"},"East of England and North-East London"]
[null,null,null,null,null,null,null,null,null,null,null,null,null,null,130501,"Falcons Primary School","2014-10-27","Leicestershire County Council",{"$f":"VLOOKUP(R1501,'LA CPID Look up'!$A$3:$C$153,2,FALSE)","v":"Leicestershire County Council"},"East Midlands and the Humber"]
[null,null,null,null,null,null,null,null,null,null,null,null,null,null,119251,"Fallibroome Academy, The","2010-09-01","Cheshire East Council",{"$f":"VLOOKUP(R1502,'LA CPID Look up'!$A$3:$C$153,2,FALSE)","v":"Cheshire East Unitary Authority"},"West Midlands"]
[null,null,null,null,null,null,null,null,null,null,null,null,null,null,124651,"Falmouth Primary Academy","2013-12-01","Cornwall Council",{"$f":"VLOOKUP(R1503,'LA CPID Look up'!$A$3:$C$153,2,FALSE)","v":"Cornwall Unitary Authority"},"South-West England"]
[null,null,null,null,null,null,null,null,null,null,null,null,null,null,120223,"Falmouth School","2011-08-01","Cornwall Council",{"$f":"VLOOKUP(R1504,'LA CPID Look up'!$A$3:$C$153,2,FALSE)","v":"Cornwall Unitary Authority"},"South-West England"]
[null,null,null,null,null,null,null,null,null,null,null,null,null,null,130546,"Family School London, The","2014-09-01","Islington London Borough Council",{"$f":"VLOOKUP(R1505,'LA CPID Look up'!$A$3:$C$153,2,FALSE)","v":"Islington London Borough Council"},"East of England and North-East London"]
[null,null,null,null,null,null,null,null,null,null,null,null,null,null,124768,"Fareham Academy","2013-09-01","Hampshire County Council",{"$f":"VLOOKUP(R1506,'LA CPID Look up'!$A$3:$C$153,2,FALSE)","v":"Hampshire County Council"},"South-East England and South London"]
[null,null,null,null,null,null,null,null,null,null,null,null,null,null,121091,"Faringdon Community College - Faringdon","2012-04-01","Oxfordshire County Council",{"$f":"VLOOKUP(R1507,'LA CPID Look up'!$A$3:$C$153,2,FALSE)","v":"Oxfordshire County Council"},"East of England and North-East London"]
[null,null,null,null,null,null,null,null,null,null,null,null,null,null,121092,"Faringdon Infant School - Faringdon","2012-04-01","Oxfordshire County Council",{"$f":"VLOOKUP(R1508,'LA CPID Look up'!$A$3:$C$153,2,FALSE)","v":"Oxfordshire County Council"},"East of England and North-East London"]
[null,null,null,null,null,null,null,null,null,null,null,null,null,null,121162,"Faringdon Junior School - Faringdon","2012-04-01","Oxfordshire County Council",{"$f":"VLOOKUP(R1509,'LA CPID Look up'!$A$3:$C$153,2,FALSE)","v":"Oxfordshire County Council"},"East of England and North-East London"]
[null,null,null,null,null,null,null,null,null,null,null,null,null,null,119834,"Farlingaye High School","2011-07-01","Suffolk County Council",{"$f":"VLOOKUP(R1510,'LA CPID Look up'!$A$3:$C$153,2,FALSE)","v":"Suffolk County Council"},"East of England and North-East London"]
[null,null,null,null,null,null,null,null,null,null,null,null,null,null,120097,"Farmor's School","2011-08-01","Gloucestershire County Council",{"$f":"VLOOKUP(R1511,'LA CPID Look up'!$A$3:$C$153,2,FALSE)","v":"Gloucestershire County Council"},"South-West England"]
[null,null,null,null,null,null,null,null,null,null,null,null,null,null,130941,"Farnborough Academy","2015-01-01","Nottingham City Council",{"$f":"VLOOKUP(R1512,'LA CPID Look up'!$A$3:$C$153,2,FALSE)","v":"Nottingham City Council"},"East Midlands and the Humber"]
[null,null,null,null,null,null,null,null,null,null,null,null,null,null,125242,"Farnborough Primary School","2013-12-01","Bromley London Borough Council",{"$f":"VLOOKUP(R1513,'LA CPID Look up'!$A$3:$C$153,2,FALSE)","v":"Bromley London Borough Council"},"South-East England and South London"]
[null,null,null,null,null,null,null,null,null,null,null,null,null,null,122176,"Farndon Fields Primary School","2012-07-01","Leicestershire County Council",{"$f":"VLOOKUP(R1514,'LA CPID Look up'!$A$3:$C$153,2,FALSE)","v":"Leicestershire County Council"},"East Midlands and the Humber"]
[null,null,null,null,null,null,null,null,null,null,null,null,null,null,123222,"Farnham Heath End School","2013-04-01","Surrey County Council",{"$f":"VLOOKUP(R1515,'LA CPID Look up'!$A$3:$C$153,2,FALSE)","v":"Surrey County Council"},"South-East England and South London"]
[null,null,null,null,null,null,null,null,null,null,null,null,null,null,121065,"Farnley Academy, The","2012-02-01","Leeds City Council",{"$f":"VLOOKUP(R1516,'LA CPID Look up'!$A$3:$C$153,2,FALSE)","v":"Leeds City Council"},"Lancashire and West Yorkshire"]
[null,null,null,null,null,null,null,null,null,null,null,null,null,null,123118,"Farringdon Academy - Sunderland","2012-12-01","Sunderland City Council",{"$f":"VLOOKUP(R1517,'LA CPID Look up'!$A$3:$C$153,2,FALSE)","v":"Sunderland City Metropolitan Borough Council"},"North of England"]
[null,null,null,null,null,null,null,null,null,null,null,null,null,null,124537,"Farringdon Community Academy - Sunderland","2013-07-01","Sunderland City Council",{"$f":"VLOOKUP(R1518,'LA CPID Look up'!$A$3:$C$153,2,FALSE)","v":"Sunderland City Metropolitan Borough Council"},"North of England"]
[null,null,null,null,null,null,null,null,null,null,null,null,null,null,131147,"Fawley Infant School","2014-10-01","Hampshire County Council",{"$f":"VLOOKUP(R1519,'LA CPID Look up'!$A$3:$C$153,2,FALSE)","v":"Hampshire County Council"},"South-East England and South London"]
[null,null,null,null,null,null,null,null,null,null,null,null,null,null,130698,"Featherstone Academy - Wolverhampton","2014-09-01","Staffordshire County Council",{"$f":"VLOOKUP(R1520,'LA CPID Look up'!$A$3:$C$153,2,FALSE)","v":"Staffordshire County Council"},"West Midlands"]
[null,null,null,null,null,null,null,null,null,null,null,null,null,null,120985,"Featherstone Academy, The - Wakefield","2012-09-01","Wakefield Council",{"$f":"VLOOKUP(R1521,'LA CPID Look up'!$A$3:$C$153,2,FALSE)","v":"Wakefield City Council"},"Lancashire and West Yorkshire"]
[null,null,null,null,null,null,null,null,null,null,null,null,null,null,120693,"Featherstone High School - Ealing","2011-12-01","Ealing London Borough Council",{"$f":"VLOOKUP(R1522,'LA CPID Look up'!$A$3:$C$153,2,FALSE)","v":"Ealing London Borough Council"},"South-Central England and North-West London"]
[null,null,null,null,null,null,null,null,null,null,null,null,null,null,120321,"Felixstowe Academy","2011-09-01","Suffolk County Council",{"$f":"VLOOKUP(R1523,'LA CPID Look up'!$A$3:$C$153,2,FALSE)","v":"Suffolk County Council"},"East of England and North-East London"]
[null,null,null,null,null,null,null,null,null,null,null,null,null,null,120514,"Feltham Community College","2011-11-01","Hounslow London Borough Council",{"$f":"VLOOKUP(R1524,'LA CPID Look up'!$A$3:$C$153,2,FALSE)","v":"Hounslow London Borough Council"},"East of England and North-East London"]
[null,null,null,null,null,null,null,null,null,null,null,null,null,null,129428,"Fen Park Community Primary School","2014-03-01","Suffolk County Council",{"$f":"VLOOKUP(R1525,'LA CPID Look up'!$A$3:$C$153,2,FALSE)","v":"Suffolk County Council"},"East of England and North-East London"]
[null,null,null,null,null,null,null,null,null,null,null,null,null,null,132630,"Fermain Academy, The","2015-09-01","Cheshire East Council",{"$f":"VLOOKUP(R1526,'LA CPID Look up'!$A$3:$C$153,2,FALSE)","v":"Cheshire East Unitary Authority"},"West Midlands"]
[null,null,null,null,null,null,null,null,null,null,null,null,null,null,132266,"Ferndale Primary School & Nursery","2016-02-01","Swindon Borough Council",{"$f":"VLOOKUP(R1527,'LA CPID Look up'!$A$3:$C$153,2,FALSE)","v":"Swindon Unitary Authority"},"South-West England"]
[null,null,null,null,null,null,null,null,null,null,null,null,null,null,130738,"Fernhurst Primary School","2014-09-01","West Sussex County Council",{"$f":"VLOOKUP(R1528,'LA CPID Look up'!$A$3:$C$153,2,FALSE)","v":"West Sussex County Council"},"South-East England and South London"]
[null,null,null,null,null,null,null,null,null,null,null,null,null,null,121852,"Ferns Primary Academy, The","2012-09-01","Bolton Metropolitan Borough Council",{"$f":"VLOOKUP(R1529,'LA CPID Look up'!$A$3:$C$153,2,FALSE)","v":"Bolton Metropolitan Borough Council"},"Lancashire and West Yorkshire"]
[null,null,null,null,null,null,null,null,null,null,null,null,null,null,119738,"Fernwood School","2011-05-01","Nottingham City Council",{"$f":"VLOOKUP(R1530,'LA CPID Look up'!$A$3:$C$153,2,FALSE)","v":"Nottingham City Council"},"East Midlands and the Humber"]
[null,null,null,null,null,null,null,null,null,null,null,null,null,null,122710,"Ferrars Academy, The","2013-05-01","Luton Borough Council",{"$f":"VLOOKUP(R1531,'LA CPID Look up'!$A$3:$C$153,2,FALSE)","v":"Luton Borough Council"},"East of England and North-East London"]
[null,null,null,null,null,null,null,null,null,null,null,null,null,null,124777,"Ferrers School, The","2013-08-01","Northamptonshire County Council",{"$f":"VLOOKUP(R1532,'LA CPID Look up'!$A$3:$C$153,2,FALSE)","v":"Northamptonshire County Council"},"East of England and North-East London"]
[null,null,null,null,null,null,null,null,null,null,null,null,null,null,119962,"Feversham College","2011-08-01","Bradford Metropolitan District Council",{"$f":"VLOOKUP(R1533,'LA CPID Look up'!$A$3:$C$153,2,FALSE)","v":"Bradford City Council"},"Lancashire and West Yorkshire"]
[null,null,null,null,null,null,null,null,null,null,null,null,null,null,122249,"Feversham Primary Academy","2012-11-01","Bradford Metropolitan District Council",{"$f":"VLOOKUP(R1534,'LA CPID Look up'!$A$3:$C$153,2,FALSE)","v":"Bradford City Council"},"Lancashire and West Yorkshire"]
[null,null,null,null,null,null,null,null,null,null,null,null,null,null,120393,"Field Court Church of England Infant Academy","2011-09-01","Gloucestershire County Council",{"$f":"VLOOKUP(R1535,'LA CPID Look up'!$A$3:$C$153,2,FALSE)","v":"Gloucestershire County Council"},"South-West England"]
[null,null,null,null,null,null,null,null,null,null,null,null,null,null,120392,"Field Court Junior School","2011-09-01","Gloucestershire County Council",{"$f":"VLOOKUP(R1536,'LA CPID Look up'!$A$3:$C$153,2,FALSE)","v":"Gloucestershire County Council"},"South-West England"]
[null,null,null,null,null,null,null,null,null,null,null,null,null,null,122079,"Field Lane Primary School","2012-09-01","Calderdale Metropolitan Borough Council",{"$f":"VLOOKUP(R1537,'LA CPID Look up'!$A$3:$C$153,2,FALSE)","v":"Calderdale Metropolitan Borough Council"},"Lancashire and West Yorkshire"]
[null,null,null,null,null,null,null,null,null,null,null,null,null,null,131449,"Field View Primary School","2015-03-01","Wolverhampton City Council",{"$f":"VLOOKUP(R1538,'LA CPID Look up'!$A$3:$C$153,2,FALSE)","v":"Wolverhampton City Council"},"West Midlands"]
[null,null,null,null,null,null,null,null,null,null,null,null,null,null,123234,"Fieldhead Primary Academy","2013-03-01","Kirklees Metropolitan Council",{"$f":"VLOOKUP(R1539,'LA CPID Look up'!$A$3:$C$153,2,FALSE)","v":"Kirklees Metropolitan Council"},"Lancashire and West Yorkshire"]
[null,null,null,null,null,null,null,null,null,null,null,null,null,null,131161,"Filby Primary School","2014-10-01","Norfolk County Council",{"$f":"VLOOKUP(R1540,'LA CPID Look up'!$A$3:$C$153,2,FALSE)","v":"Norfolk County Council"},"East of England and North-East London"]
[null,null,null,null,null,null,null,null,null,null,null,null,null,null,121179,"Filton Avenue Primary School","2012-09-01","Bristol City Council",{"$f":"VLOOKUP(R1541,'LA CPID Look up'!$A$3:$C$153,2,FALSE)","v":"Bristol City Council"},"South-West England"]
[null,null,null,null,null,null,null,null,null,null,null,null,null,null,132433,"Filton Avenue Primary School - Closed","2015-09-01","Bristol City Council",{"$f":"VLOOKUP(R1542,'LA CPID Look up'!$A$3:$C$153,2,FALSE)","v":"Bristol City Council"},"South-West England"]
[null,null,null,null,null,null,null,null,null,null,null,null,null,null,132461,"Finberry Primary School","2015-09-01","Kent County Council",{"$f":"VLOOKUP(R1543,'LA CPID Look up'!$A$3:$C$153,2,FALSE)","v":"Kent County Council"},"South-East England and South London"]
[null,null,null,null,null,null,null,null,null,null,null,null,null,null,129582,"Finch Woods Academy","2014-09-01","Knowsley Metropolitan Borough Council",{"$f":"VLOOKUP(R1544,'LA CPID Look up'!$A$3:$C$153,2,FALSE)","v":"Knowsley Metropolitan Borough Council"},"Lancashire and West Yorkshire"]
[null,null,null,null,null,null,null,null,null,null,null,null,null,null,131122,"Finedon Infant School","2015-04-01","Northamptonshire County Council",{"$f":"VLOOKUP(R1545,'LA CPID Look up'!$A$3:$C$153,2,FALSE)","v":"Northamptonshire County Council"},"East of England and North-East London"]
[null,null,null,null,null,null,null,null,null,null,null,null,null,null,131120,"Finedon Mulso Church of England Junior School","2015-04-01","Northamptonshire County Council",{"$f":"VLOOKUP(R1546,'LA CPID Look up'!$A$3:$C$153,2,FALSE)","v":"Northamptonshire County Council"},"East of England and North-East London"]
[null,null,null,null,null,null,null,null,null,null,null,null,null,null,132642,"Finham Park 2","2015-09-01","Coventry City Council",{"$f":"VLOOKUP(R1547,'LA CPID Look up'!$A$3:$C$153,2,FALSE)","v":"Coventry City Council"},"West Midlands"]
[null,null,null,null,null,null,null,null,null,null,null,null,null,null,119963,"Finham Park School","2011-08-01","Coventry City Council",{"$f":"VLOOKUP(R1548,'LA CPID Look up'!$A$3:$C$153,2,FALSE)","v":"Coventry City Council"},"West Midlands"]
[null,null,null,null,null,null,null,null,null,null,null,null,null,null,132493,"Finstock Church of England Primary School","2015-10-01","Oxfordshire County Council",{"$f":"VLOOKUP(R1549,'LA CPID Look up'!$A$3:$C$153,2,FALSE)","v":"Oxfordshire County Council"},"East of England and North-East London"]
[null,null,null,null,null,null,null,null,null,null,null,null,null,null,122632,"Fir Tree Primary School and Nursery","2013-03-01","West Berkshire Council",{"$f":"VLOOKUP(R1550,'LA CPID Look up'!$A$3:$C$153,2,FALSE)","v":"West Berkshire Council"},"East of England and North-East London"]
[null,null,null,null,null,null,null,null,null,null,null,null,null,null,120750,"Fir Vale School","2012-11-01","Sheffield City Council",{"$f":"VLOOKUP(R1551,'LA CPID Look up'!$A$3:$C$153,2,FALSE)","v":"Sheffield City Council"},"East Midlands and the Humber"]
[null,null,null,null,null,null,null,null,null,null,null,null,null,null,123934,"Firbeck Academy","2013-07-01","Nottingham City Council",{"$f":"VLOOKUP(R1552,'LA CPID Look up'!$A$3:$C$153,2,FALSE)","v":"Nottingham City Council"},"East Midlands and the Humber"]
[null,null,null,null,null,null,null,null,null,null,null,null,null,null,120795,"Firs Lower School, The","2012-01-01","Central Bedfordshire Council",{"$f":"VLOOKUP(R1553,'LA CPID Look up'!$A$3:$C$153,2,FALSE)","v":"Central Bedfordshire Unitary Authority"},"South-Central England and North-West London"]
[null,null,null,null,null,null,null,null,null,null,null,null,null,null,123198,"Firth Park Academy","2013-08-01","Sheffield City Council",{"$f":"VLOOKUP(R1554,'LA CPID Look up'!$A$3:$C$153,2,FALSE)","v":"Sheffield City Council"},"East Midlands and the Humber"]
[null,null,null,null,null,null,null,null,null,null,null,null,null,null,121831,"Firthmoor Primary School","2012-05-01","Darlington Borough Council",{"$f":"VLOOKUP(R1555,'LA CPID Look up'!$A$3:$C$153,2,FALSE)","v":"Darlington Borough Council"},"North of England"]
[null,null,null,null,null,null,null,null,null,null,null,null,null,null,120961,"Fishponds Church of England Academy","2012-09-01","Bristol City Council",{"$f":"VLOOKUP(R1556,'LA CPID Look up'!$A$3:$C$153,2,FALSE)","v":"Bristol City Council"},"South-West England"]
[null,null,null,null,null,null,null,null,null,null,null,null,null,null,123158,"Fishtoft Academy","2013-02-01","Lincolnshire County Council",{"$f":"VLOOKUP(R1557,'LA CPID Look up'!$A$3:$C$153,2,FALSE)","v":"Lincolnshire County Council"},"East Midlands and the Humber"]
[null,null,null,null,null,null,null,null,null,null,null,null,null,null,123157,"Fitzwaryn School","2013-02-01","Oxfordshire County Council",{"$f":"VLOOKUP(R1558,'LA CPID Look up'!$A$3:$C$153,2,FALSE)","v":"Oxfordshire County Council"},"East of England and North-East London"]
[null,null,null,null,null,null,null,null,null,null,null,null,null,null,132099,"FitzWimarc School, The","2015-03-01","Essex County Council",{"$f":"VLOOKUP(R1559,'LA CPID Look up'!$A$3:$C$153,2,FALSE)","v":"Essex County Council"},"East of England and North-East London"]
[null,null,null,null,null,null,null,null,null,null,null,null,null,null,131845,"Five Spires Academy","2015-09-01","Staffordshire County Council",{"$f":"VLOOKUP(R1560,'LA CPID Look up'!$A$3:$C$153,2,FALSE)","v":"Staffordshire County Council"},"West Midlands"]
[null,null,null,null,null,null,null,null,null,null,null,null,null,null,123151,"Flamstead End School","2013-04-01","Hertfordshire County Council",{"$f":"VLOOKUP(R1561,'LA CPID Look up'!$A$3:$C$153,2,FALSE)","v":"Hertfordshire County Council"},"East of England and North-East London"]
[null,null,null,null,null,null,null,null,null,null,null,null,null,null,130832,"Flanderwell Primary School","2015-02-01","Rotherham Metropolitan Borough Council",{"$f":"VLOOKUP(R1562,'LA CPID Look up'!$A$3:$C$153,2,FALSE)","v":"Rotherham Borough Council"},"East Midlands and the Humber"]
[null,null,null,null,null,null,null,null,null,null,null,null,null,null,124729,"Flax Hill Junior Academy","2014-01-01","Staffordshire County Council",{"$f":"VLOOKUP(R1563,'LA CPID Look up'!$A$3:$C$153,2,FALSE)","v":"Staffordshire County Council"},"West Midlands"]
[null,null,null,null,null,null,null,null,null,null,null,null,null,null,121094,"Fleetville Infant and Nursery School","2012-06-01","Hertfordshire County Council",{"$f":"VLOOKUP(R1564,'LA CPID Look up'!$A$3:$C$153,2,FALSE)","v":"Hertfordshire County Council"},"East of England and North-East London"]
[null,null,null,null,null,null,null,null,null,null,null,null,null,null,121193,"Fleetville Junior School","2012-06-01","Hertfordshire County Council",{"$f":"VLOOKUP(R1565,'LA CPID Look up'!$A$3:$C$153,2,FALSE)","v":"Hertfordshire County Council"},"East of England and North-East London"]
[null,null,null,null,null,null,null,null,null,null,null,null,null,null,122343,"Flegg High School","2012-09-01","Norfolk County Council",{"$f":"VLOOKUP(R1566,'LA CPID Look up'!$A$3:$C$153,2,FALSE)","v":"Norfolk County Council"},"East of England and North-East London"]
[null,null,null,null,null,null,null,null,null,null,null,null,null,null,119450,"Flitch Green Academy, The","2011-02-01","Essex County Council",{"$f":"VLOOKUP(R1567,'LA CPID Look up'!$A$3:$C$153,2,FALSE)","v":"Essex County Council"},"East of England and North-East London"]
[null,null,null,null,null,null,null,null,null,null,null,null,null,null,130164,"Flitcham Voluntary Aided Church of England Primary School","2014-07-01","Norfolk County Council",{"$f":"VLOOKUP(R1568,'LA CPID Look up'!$A$3:$C$153,2,FALSE)","v":"Norfolk County Council"},"East of England and North-East London"]
[null,null,null,null,null,null,null,null,null,null,null,null,null,null,119965,"Flixton Girls' School","2011-08-01","Trafford Borough Council",{"$f":"VLOOKUP(R1569,'LA CPID Look up'!$A$3:$C$153,2,FALSE)","v":"Trafford Metropolitan Borough Council"},"Lancashire and West Yorkshire"]
[null,null,null,null,null,null,null,null,null,null,null,null,null,null,132643,"Floreat Brentford Primary School","2015-09-01","Hounslow London Borough Council",{"$f":"VLOOKUP(R1570,'LA CPID Look up'!$A$3:$C$153,2,FALSE)","v":"Hounslow London Borough Council"},"East of England and North-East London"]
[null,null,null,null,null,null,null,null,null,null,null,null,null,null,129878,"Floreat Wandsworth Primary School","2015-09-01","Wandsworth London Borough Council",{"$f":"VLOOKUP(R1571,'LA CPID Look up'!$A$3:$C$153,2,FALSE)","v":"Wandsworth London Borough Council"},"South-East England and South London"]
[null,null,null,null,null,null,null,null,null,null,null,null,null,null,128000,"Flying Bull Primary School","2014-04-01","Portsmouth City Council",{"$f":"VLOOKUP(R1572,'LA CPID Look up'!$A$3:$C$153,2,FALSE)","v":"Portsmouth City Council"},"South-East England and South London"]
[null,null,null,null,null,null,null,null,null,null,null,null,null,null,124750,"Flying High Academy, The","2014-01-01","Nottinghamshire County Council",{"$f":"VLOOKUP(R1573,'LA CPID Look up'!$A$3:$C$153,2,FALSE)","v":"Nottinghamshire County Council"},"East Midlands and the Humber"]
[null,null,null,null,null,null,null,null,null,null,null,null,null,null,118612,"Folkestone Academy","2007-09-01","Kent County Council",{"$f":"VLOOKUP(R1574,'LA CPID Look up'!$A$3:$C$153,2,FALSE)","v":"Kent County Council"},"South-East England and South London"]
[null,null,null,null,null,null,null,null,null,null,null,null,null,null,120899,"Folkestone School for Girls, The","2012-02-01","Kent County Council",{"$f":"VLOOKUP(R1575,'LA CPID Look up'!$A$3:$C$153,2,FALSE)","v":"Kent County Council"},"South-East England and South London"]
[null,null,null,null,null,null,null,null,null,null,null,null,null,null,123049,"Folkestone, St Mary's Church of England Primary Academy","2013-02-01","Kent County Council",{"$f":"VLOOKUP(R1576,'LA CPID Look up'!$A$3:$C$153,2,FALSE)","v":"Kent County Council"},"South-East England and South London"]
[null,null,null,null,null,null,null,null,null,null,null,null,null,null,119371,"Forest Academy - Brandon","2010-11-01","Suffolk County Council",{"$f":"VLOOKUP(R1577,'LA CPID Look up'!$A$3:$C$153,2,FALSE)","v":"Suffolk County Council"},"East of England and North-East London"]
[null,null,null,null,null,null,null,null,null,null,null,null,null,null,124169,"Forest Academy - Croydon","2013-09-01","Croydon London Borough Council",{"$f":"VLOOKUP(R1578,'LA CPID Look up'!$A$3:$C$153,2,FALSE)","v":"Croydon London Borough Council"},"South-East England and South London"]
[null,null,null,null,null,null,null,null,null,null,null,null,null,null,121111,"Forest Academy - Ilford","2012-01-01","Redbridge London Borough Council",{"$f":"VLOOKUP(R1579,'LA CPID Look up'!$A$3:$C$153,2,FALSE)","v":"Redbridge London Borough Council"},"East of England and North-East London"]
[null,null,null,null,null,null,null,null,null,null,null,null,null,null,122857,"Forest Academy, The - Barnsley","2013-05-01","Barnsley Metropolitan Borough Council",{"$f":"VLOOKUP(R1580,'LA CPID Look up'!$A$3:$C$153,2,FALSE)","v":"Barnsley Metropolitan Borough Council"},"East Midlands and the Humber"]
[null,null,null,null,null,null,null,null,null,null,null,null,null,null,132671,"Forest Bridge School","2015-09-01","Royal Borough of Windsor and Maidenhead",{"$f":"VLOOKUP(R1581,'LA CPID Look up'!$A$3:$C$153,2,FALSE)","v":"Windsor and Maidenhead (Royal Borough of)"},"East of England and North-East London"]
[null,null,null,null,null,null,null,null,null,null,null,null,null,null,122240,"Forest Gate Academy","2012-09-01","Trafford Borough Council",{"$f":"VLOOKUP(R1582,'LA CPID Look up'!$A$3:$C$153,2,FALSE)","v":"Trafford Metropolitan Borough Council"},"Lancashire and West Yorkshire"]
[null,null,null,null,null,null,null,null,null,null,null,null,null,null,131174,"Forest Hall School","2015-02-01","Essex County Council",{"$f":"VLOOKUP(R1583,'LA CPID Look up'!$A$3:$C$153,2,FALSE)","v":"Essex County Council"},"East of England and North-East London"]
[null,null,null,null,null,null,null,null,null,null,null,null,null,null,120938,"Forest High School, The - Cinderford","2012-09-01","Gloucestershire County Council",{"$f":"VLOOKUP(R1584,'LA CPID Look up'!$A$3:$C$153,2,FALSE)","v":"Gloucestershire County Council"},"South-West England"]
[null,null,null,null,null,null,null,null,null,null,null,null,null,null,124300,"Forest School - Wokingham","2013-07-01","Wokingham Borough Council",{"$f":"VLOOKUP(R1585,'LA CPID Look up'!$A$3:$C$153,2,FALSE)","v":"Wokingham Council"},"East of England and North-East London"]
[null,null,null,null,null,null,null,null,null,null,null,null,null,null,122977,"Forest View Primary School","2013-02-01","Gloucestershire County Council",{"$f":"VLOOKUP(R1586,'LA CPID Look up'!$A$3:$C$153,2,FALSE)","v":"Gloucestershire County Council"},"South-West England"]
[null,null,null,null,null,null,null,null,null,null,null,null,null,null,120879,"Forest Way School - Coalville","2012-03-01","Leicestershire County Council",{"$f":"VLOOKUP(R1587,'LA CPID Look up'!$A$3:$C$153,2,FALSE)","v":"Leicestershire County Council"},"East Midlands and the Humber"]
[null,null,null,null,null,null,null,null,null,null,null,null,null,null,127176,"Forge Valley School","2014-09-01","Sheffield City Council",{"$f":"VLOOKUP(R1588,'LA CPID Look up'!$A$3:$C$153,2,FALSE)","v":"Sheffield City Council"},"East Midlands and the Humber"]
[null,null,null,null,null,null,null,null,null,null,null,null,null,null,120363,"Formby High School","2011-09-01","Sefton Metropolitan Borough Council",{"$f":"VLOOKUP(R1589,'LA CPID Look up'!$A$3:$C$153,2,FALSE)","v":"Sefton Metropolitan Borough Council"},"Lancashire and West Yorkshire"]
[null,null,null,null,null,null,null,null,null,null,null,null,null,null,119357,"Fort Pitt Grammar School","2010-11-01","Medway Council",{"$f":"VLOOKUP(R1590,'LA CPID Look up'!$A$3:$C$153,2,FALSE)","v":"Medway Towns Unitary Authority (The)"},"South-East England and South London"]
[null,null,null,null,null,null,null,null,null,null,null,null,null,null,119764,"Fosse Way Academy - Lincoln","2011-06-01","Lincolnshire County Council",{"$f":"VLOOKUP(R1591,'LA CPID Look up'!$A$3:$C$153,2,FALSE)","v":"Lincolnshire County Council"},"East Midlands and the Humber"]
[null,null,null,null,null,null,null,null,null,null,null,null,null,null,120394,"Fosse Way School - Bath","2011-09-01","Bath & North East Somerset Council",{"$f":"VLOOKUP(R1592,'LA CPID Look up'!$A$3:$C$153,2,FALSE)","v":"Bath & North East Somerset Council"},"South-West England"]
[null,null,null,null,null,null,null,null,null,null,null,null,null,null,130892,"Four Acres Academy","2015-02-01","Bristol City Council",{"$f":"VLOOKUP(R1593,'LA CPID Look up'!$A$3:$C$153,2,FALSE)","v":"Bristol City Council"},"South-West England"]
[null,null,null,null,null,null,null,null,null,null,null,null,null,null,122290,"Four Dwellings Academy","2013-03-01","Birmingham City Council",{"$f":"VLOOKUP(R1594,'LA CPID Look up'!$A$3:$C$153,2,FALSE)","v":"Birmingham City Council"},"West Midlands"]
[null,null,null,null,null,null,null,null,null,null,null,null,null,null,122485,"Four Dwellings Primary Academy","2013-01-01","Birmingham City Council",{"$f":"VLOOKUP(R1595,'LA CPID Look up'!$A$3:$C$153,2,FALSE)","v":"Birmingham City Council"},"West Midlands"]
[null,null,null,null,null,null,null,null,null,null,null,null,null,null,132931,"Fowey Primary School","2015-09-01","Cornwall Council",{"$f":"VLOOKUP(R1596,'LA CPID Look up'!$A$3:$C$153,2,FALSE)","v":"Cornwall Unitary Authority"},"South-West England"]
[null,null,null,null,null,null,null,null,null,null,null,null,null,null,130609,"Fowey River Academy","2014-06-01","Cornwall Council",{"$f":"VLOOKUP(R1597,'LA CPID Look up'!$A$3:$C$153,2,FALSE)","v":"Cornwall Unitary Authority"},"South-West England"]
[null,null,null,null,null,null,null,null,null,null,null,null,null,null,122652,"Fox Hill Primary","2013-04-01","Sheffield City Council",{"$f":"VLOOKUP(R1598,'LA CPID Look up'!$A$3:$C$153,2,FALSE)","v":"Sheffield City Council"},"East Midlands and the Humber"]
[null,null,null,null,null,null,null,null,null,null,null,null,null,null,123886,"Foxborough Primary School","2014-01-01","Slough Borough Council",{"$f":"VLOOKUP(R1599,'LA CPID Look up'!$A$3:$C$153,2,FALSE)","v":"Slough Borough Council"},"East of England and North-East London"]
[null,null,null,null,null,null,null,null,null,null,null,null,null,null,124703,"Foxhole Learning Academy","2013-12-01","Cornwall Council",{"$f":"VLOOKUP(R1600,'LA CPID Look up'!$A$3:$C$153,2,FALSE)","v":"Cornwall Unitary Authority"},"South-West England"]
[null,null,null,null,null,null,null,null,null,null,null,null,null,null,122350,"Foxwood Academy","2012-09-01","Nottinghamshire County Council",{"$f":"VLOOKUP(R1601,'LA CPID Look up'!$A$3:$C$153,2,FALSE)","v":"Nottinghamshire County Council"},"East Midlands and the Humber"]
[null,null,null,null,null,null,null,null,null,null,null,null,null,null,120818,"Framwellgate School Durham","2011-12-01","Durham County Council",{"$f":"VLOOKUP(R1602,'LA CPID Look up'!$A$3:$C$153,2,FALSE)","v":"County Durham Unitary Authority"},"North of England"]
[null,null,null,null,null,null,null,null,null,null,null,null,null,null,121842,"Frances Bardsley Academy for Girls, The","2012-07-01","Havering London Borough Council",{"$f":"VLOOKUP(R1603,'LA CPID Look up'!$A$3:$C$153,2,FALSE)","v":"Havering London Borough Council"},"East of England and North-East London"]
[null,null,null,null,null,null,null,null,null,null,null,null,null,null,124622,"Francis Askew Primary School","2014-07-01","Hull City Council",{"$f":"VLOOKUP(R1604,'LA CPID Look up'!$A$3:$C$153,2,FALSE)","v":"Kingston upon Hull City Council"},"East Midlands and the Humber"]
[null,null,null,null,null,null,null,null,null,null,null,null,null,null,118887,"Francis Combe Academy","2009-09-01","Hertfordshire County Council",{"$f":"VLOOKUP(R1605,'LA CPID Look up'!$A$3:$C$153,2,FALSE)","v":"Hertfordshire County Council"},"East of England and North-East London"]
[null,null,null,null,null,null,null,null,null,null,null,null,null,null,120364,"Fred Longworth High School","2011-09-01","Wigan Metropolitan Borough Council",{"$f":"VLOOKUP(R1606,'LA CPID Look up'!$A$3:$C$153,2,FALSE)","v":"Wigan Metropolitan Borough Council"},"Lancashire and West Yorkshire"]
[null,null,null,null,null,null,null,null,null,null,null,null,null,null,124155,"Frederick Nattrass Primary Academy","2013-09-01","Stockton-on-Tees Borough Council",{"$f":"VLOOKUP(R1607,'LA CPID Look up'!$A$3:$C$153,2,FALSE)","v":"Stockton-on-Tees Borough Council"},"North of England"]
[null,null,null,null,null,null,null,null,null,null,null,null,null,null,120521,"Free School Norwich, The","2011-09-01","Norfolk County Council",{"$f":"VLOOKUP(R1608,'LA CPID Look up'!$A$3:$C$153,2,FALSE)","v":"Norfolk County Council"},"East of England and North-East London"]
[null,null,null,null,null,null,null,null,null,null,null,null,null,null,119192,"Freebrough Academy","2010-09-01","Redcar and Cleveland Borough Council",{"$f":"VLOOKUP(R1609,'LA CPID Look up'!$A$3:$C$153,2,FALSE)","v":"Redcar and Cleveland Borough Council"},"North of England"]
[null,null,null,null,null,null,null,null,null,null,null,null,null,null,132928,"Freehold Community Primary Academy","2015-11-01","Oldham Metropolitan Borough Council",{"$f":"VLOOKUP(R1610,'LA CPID Look up'!$A$3:$C$153,2,FALSE)","v":"Oldham Metropolitan Borough Council"},"Lancashire and West Yorkshire"]
[null,null,null,null,null,null,null,null,null,null,null,null,null,null,130332,"Freeland Church of England Primary School","2014-06-01","Oxfordshire County Council",{"$f":"VLOOKUP(R1611,'LA CPID Look up'!$A$3:$C$153,2,FALSE)","v":"Oxfordshire County Council"},"East of England and North-East London"]
[null,null,null,null,null,null,null,null,null,null,null,null,null,null,123073,"Freemans Endowed Church of England Junior Academy","2013-04-01","Northamptonshire County Council",{"$f":"VLOOKUP(R1612,'LA CPID Look up'!$A$3:$C$153,2,FALSE)","v":"Northamptonshire County Council"},"East of England and North-East London"]
[null,null,null,null,null,null,null,null,null,null,null,null,null,null,119616,"Freemantle Church of England Community Academy","2011-04-01","Southampton City Council",{"$f":"VLOOKUP(R1613,'LA CPID Look up'!$A$3:$C$153,2,FALSE)","v":"Southampton City Council"},"South-East England and South London"]
[null,null,null,null,null,null,null,null,null,null,null,null,null,null,120509,"Freeston Academy, The","2011-11-01","Wakefield Council",{"$f":"VLOOKUP(R1614,'LA CPID Look up'!$A$3:$C$153,2,FALSE)","v":"Wakefield City Council"},"Lancashire and West Yorkshire"]
[null,null,null,null,null,null,null,null,null,null,null,null,null,null,120002,"Freman College","2011-08-01","Hertfordshire County Council",{"$f":"VLOOKUP(R1615,'LA CPID Look up'!$A$3:$C$153,2,FALSE)","v":"Hertfordshire County Council"},"East of England and North-East London"]
[null,null,null,null,null,null,null,null,null,null,null,null,null,null,123935,"Freshwaters Primary Academy","2013-09-01","Essex County Council",{"$f":"VLOOKUP(R1616,'LA CPID Look up'!$A$3:$C$153,2,FALSE)","v":"Essex County Council"},"East of England and North-East London"]
[null,null,null,null,null,null,null,null,null,null,null,null,null,null,123859,"Friars Academy","2013-11-01","Northamptonshire County Council",{"$f":"VLOOKUP(R1617,'LA CPID Look up'!$A$3:$C$153,2,FALSE)","v":"Northamptonshire County Council"},"East of England and North-East London"]
[null,null,null,null,null,null,null,null,null,null,null,null,null,null,124085,"Frisby Church of England Primary School","2013-06-01","Leicestershire County Council",{"$f":"VLOOKUP(R1618,'LA CPID Look up'!$A$3:$C$153,2,FALSE)","v":"Leicestershire County Council"},"East Midlands and the Humber"]
[null,null,null,null,null,null,null,null,null,null,null,null,null,null,124249,"Frogmore Junior School","2013-09-01","Hampshire County Council",{"$f":"VLOOKUP(R1619,'LA CPID Look up'!$A$3:$C$153,2,FALSE)","v":"Hampshire County Council"},"South-East England and South London"]
[null,null,null,null,null,null,null,null,null,null,null,null,null,null,121075,"Frome Vale Academy","2012-09-01","Bristol City Council",{"$f":"VLOOKUP(R1620,'LA CPID Look up'!$A$3:$C$153,2,FALSE)","v":"Bristol City Council"},"South-West England"]
[null,null,null,null,null,null,null,null,null,null,null,null,null,null,131824,"Frome Valley CofE VA First School","2015-04-01","Dorset County Council",{"$f":"VLOOKUP(R1621,'LA CPID Look up'!$A$3:$C$153,2,FALSE)","v":"Dorset County Council"},"South-West England"]
[null,null,null,null,null,null,null,null,null,null,null,null,null,null,122000,"Front Lawn Primary Academy","2013-04-01","Hampshire County Council",{"$f":"VLOOKUP(R1622,'LA CPID Look up'!$A$3:$C$153,2,FALSE)","v":"Hampshire County Council"},"South-East England and South London"]
[null,null,null,null,null,null,null,null,null,null,null,null,null,null,122774,"Fulbridge Academy","2013-03-01","Peterborough City Council",{"$f":"VLOOKUP(R1623,'LA CPID Look up'!$A$3:$C$153,2,FALSE)","v":"Peterborough City Council"},"East of England and North-East London"]
[null,null,null,null,null,null,null,null,null,null,null,null,null,null,121231,"Fulbrook Middle School - Milton Keynes","2012-03-01","Central Bedfordshire Council",{"$f":"VLOOKUP(R1624,'LA CPID Look up'!$A$3:$C$153,2,FALSE)","v":"Central Bedfordshire Unitary Authority"},"South-Central England and North-West London"]
[null,null,null,null,null,null,null,null,null,null,null,null,null,null,123304,"Fulham Boys School","2014-09-01","Hammersmith and Fulham London Borough Council",{"$f":"VLOOKUP(R1625,'LA CPID Look up'!$A$3:$C$153,2,FALSE)","v":"Hammersmith and Fulham London Borough Council"},"South-Central England and North-West London"]
[null,null,null,null,null,null,null,null,null,null,null,null,null,null,123178,"Fulham College Boys' School","2013-03-01","Hammersmith and Fulham London Borough Council",{"$f":"VLOOKUP(R1626,'LA CPID Look up'!$A$3:$C$153,2,FALSE)","v":"Hammersmith and Fulham London Borough Council"},"South-Central England and North-West London"]
[null,null,null,null,null,null,null,null,null,null,null,null,null,null,123175,"Fulham Cross Girls' School and Language College","2013-03-01","Hammersmith and Fulham London Borough Council",{"$f":"VLOOKUP(R1627,'LA CPID Look up'!$A$3:$C$153,2,FALSE)","v":"Hammersmith and Fulham London Borough Council"},"South-Central England and North-West London"]
[null,null,null,null,null,null,null,null,null,null,null,null,null,null,120003,"Fullbrook School - Addlestone","2011-08-01","Surrey County Council",{"$f":"VLOOKUP(R1628,'LA CPID Look up'!$A$3:$C$153,2,FALSE)","v":"Surrey County Council"},"South-East England and South London"]
[null,null,null,null,null,null,null,null,null,null,null,null,null,null,119286,"Fulston Manor School","2010-10-01","Kent County Council",{"$f":"VLOOKUP(R1629,'LA CPID Look up'!$A$3:$C$153,2,FALSE)","v":"Kent County Council"},"South-East England and South London"]
[null,null,null,null,null,null,null,null,null,null,null,null,null,null,122990,"Fulwell Infant School Academy","2012-12-01","Sunderland City Council",{"$f":"VLOOKUP(R1630,'LA CPID Look up'!$A$3:$C$153,2,FALSE)","v":"Sunderland City Metropolitan Borough Council"},"North of England"]
[null,null,null,null,null,null,null,null,null,null,null,null,null,null,119131,"Fulwood Academy","2009-09-07","Lancashire County Council",{"$f":"VLOOKUP(R1631,'LA CPID Look up'!$A$3:$C$153,2,FALSE)","v":"Lancashire County Council"},"Lancashire and West Yorkshire"]
[null,null,null,null,null,null,null,null,null,null,null,null,null,null,127276,"Furley Park Primary Academy","2013-11-01","Kent County Council",{"$f":"VLOOKUP(R1632,'LA CPID Look up'!$A$3:$C$153,2,FALSE)","v":"Kent County Council"},"South-East England and South London"]
[null,null,null,null,null,null,null,null,null,null,null,null,null,null,119132,"Furness Academy","2009-09-01","Cumbria County Council",{"$f":"VLOOKUP(R1633,'LA CPID Look up'!$A$3:$C$153,2,FALSE)","v":"Cumbria County Council"},"North of England"]
[null,null,null,null,null,null,null,null,null,null,null,null,null,null,120695,"Furze Platt Senior School","2011-12-01","Royal Borough of Windsor and Maidenhead",{"$f":"VLOOKUP(R1634,'LA CPID Look up'!$A$3:$C$153,2,FALSE)","v":"Windsor and Maidenhead (Royal Borough of)"},"East of England and North-East London"]
[null,null,null,null,null,null,null,null,null,null,null,null,null,null,130572,"Future Tech Studio, The","2014-09-01","Warrington Borough Council",{"$f":"VLOOKUP(R1635,'LA CPID Look up'!$A$3:$C$153,2,FALSE)","v":"Warrington Borough Council"},"Lancashire and West Yorkshire"]
[null,null,null,null,null,null,null,null,null,null,null,null,null,null,119854,"Gable Hall School","2011-07-01","Thurrock Borough Council",{"$f":"VLOOKUP(R1636,'LA CPID Look up'!$A$3:$C$153,2,FALSE)","v":"Thurrock Unitary Authority"},"East of England and North-East London"]
[null,null,null,null,null,null,null,null,null,null,null,null,null,null,122376,"Gaddesby Primary School","2012-10-01","Leicestershire County Council",{"$f":"VLOOKUP(R1637,'LA CPID Look up'!$A$3:$C$153,2,FALSE)","v":"Leicestershire County Council"},"East Midlands and the Humber"]
[null,null,null,null,null,null,null,null,null,null,null,null,null,null,119123,"Gainsborough Academy, The","2008-09-01","Lincolnshire County Council",{"$f":"VLOOKUP(R1638,'LA CPID Look up'!$A$3:$C$153,2,FALSE)","v":"Lincolnshire County Council"},"East Midlands and the Humber"]
[null,null,null,null,null,null,null,null,null,null,null,null,null,null,122008,"Gainsborough Hillcrest Early Years Academy, The","2012-07-01","Lincolnshire County Council",{"$f":"VLOOKUP(R1639,'LA CPID Look up'!$A$3:$C$153,2,FALSE)","v":"Lincolnshire County Council"},"East Midlands and the Humber"]
[null,null,null,null,null,null,null,null,null,null,null,null,null,null,122498,"Gainsborough Parish Church Primary School, The","2012-09-01","Lincolnshire County Council",{"$f":"VLOOKUP(R1640,'LA CPID Look up'!$A$3:$C$153,2,FALSE)","v":"Lincolnshire County Council"},"East Midlands and the Humber"]
[null,null,null,null,null,null,null,null,null,null,null,null,null,null,120990,"Gamlingay Village College","2012-02-01","Cambridgeshire County Council",{"$f":"VLOOKUP(R1641,'LA CPID Look up'!$A$3:$C$153,2,FALSE)","v":"Cambridgeshire County Council"},"East of England and North-East London"]
[null,null,null,null,null,null,null,null,null,null,null,null,null,null,124628,"Ganton School","2015-02-01","Hull City Council",{"$f":"VLOOKUP(R1642,'LA CPID Look up'!$A$3:$C$153,2,FALSE)","v":"Kingston upon Hull City Council"},"East Midlands and the Humber"]
[null,null,null,null,null,null,null,null,null,null,null,null,null,null,121888,"Garden City Academy","2012-09-01","Hertfordshire County Council",{"$f":"VLOOKUP(R1643,'LA CPID Look up'!$A$3:$C$153,2,FALSE)","v":"Hertfordshire County Council"},"East of England and North-East London"]
[null,null,null,null,null,null,null,null,null,null,null,null,null,null,119360,"Garforth Academy","2010-11-01","Leeds City Council",{"$f":"VLOOKUP(R1644,'LA CPID Look up'!$A$3:$C$153,2,FALSE)","v":"Leeds City Council"},"Lancashire and West Yorkshire"]
[null,null,null,null,null,null,null,null,null,null,null,null,null,null,120365,"Garstang Community Academy","2011-09-01","Lancashire County Council",{"$f":"VLOOKUP(R1645,'LA CPID Look up'!$A$3:$C$153,2,FALSE)","v":"Lancashire County Council"},"Lancashire and West Yorkshire"]
[null,null,null,null,null,null,null,null,null,null,null,null,null,null,133111,"Garth School, The ","2016-03-01","Lincolnshire County Council",{"$f":"VLOOKUP(R1646,'LA CPID Look up'!$A$3:$C$153,2,FALSE)","v":"Lincolnshire County Council"},"East Midlands and the Humber"]
[null,null,null,null,null,null,null,null,null,null,null,null,null,null,122041,"Gartree High School Oadby","2012-06-01","Leicestershire County Council",{"$f":"VLOOKUP(R1647,'LA CPID Look up'!$A$3:$C$153,2,FALSE)","v":"Leicestershire County Council"},"East Midlands and the Humber"]
[null,null,null,null,null,null,null,null,null,null,null,null,null,null,131390,"Gatcombe Park Primary School","2015-02-01","Portsmouth City Council",{"$f":"VLOOKUP(R1648,'LA CPID Look up'!$A$3:$C$153,2,FALSE)","v":"Portsmouth City Council"},"South-East England and South London"]
[null,null,null,null,null,null,null,null,null,null,null,null,null,null,131228,"Gatehouse ACE Academy","2014-12-01","Devon County Council",{"$f":"VLOOKUP(R1649,'LA CPID Look up'!$A$3:$C$153,2,FALSE)","v":"Devon County Council"},"South-West England"]
[null,null,null,null,null,null,null,null,null,null,null,null,null,null,124529,"Gateway Academy - Westminster","2013-09-01","Westminster City Council",{"$f":"VLOOKUP(R1650,'LA CPID Look up'!$A$3:$C$153,2,FALSE)","v":"Westminster City Council"},"East of England and North-East London"]
[null,null,null,null,null,null,null,null,null,null,null,null,null,null,118651,"Gateway Academy, The - Grays","2006-09-01","Thurrock Borough Council",{"$f":"VLOOKUP(R1651,'LA CPID Look up'!$A$3:$C$153,2,FALSE)","v":"Thurrock Unitary Authority"},"East of England and North-East London"]
[null,null,null,null,null,null,null,null,null,null,null,null,null,null,129440,"Gateway Primary Academy, The - Dartford","2014-02-01","Kent County Council",{"$f":"VLOOKUP(R1652,'LA CPID Look up'!$A$3:$C$153,2,FALSE)","v":"Kent County Council"},"South-East England and South London"]
[null,null,null,null,null,null,null,null,null,null,null,null,null,null,121982,"Gateway Primary Free School, The - Grays","2012-09-01","Thurrock Borough Council",{"$f":"VLOOKUP(R1653,'LA CPID Look up'!$A$3:$C$153,2,FALSE)","v":"Thurrock Unitary Authority"},"East of England and North-East London"]
[null,null,null,null,null,null,null,null,null,null,null,null,null,null,130735,"Gatley Primary School","2014-09-01","Stockport Metropolitan Borough Council",{"$f":"VLOOKUP(R1654,'LA CPID Look up'!$A$3:$C$153,2,FALSE)","v":"Stockport Metropolitan Borough Council"},"Lancashire and West Yorkshire"]
[null,null,null,null,null,null,null,null,null,null,null,null,null,null,130494,"Gatwick School, The","2014-09-01","West Sussex County Council",{"$f":"VLOOKUP(R1655,'LA CPID Look up'!$A$3:$C$153,2,FALSE)","v":"West Sussex County Council"},"South-East England and South London"]
[null,null,null,null,null,null,null,null,null,null,null,null,null,null,120661,"Gawthorpe Community Academy","2011-11-01","Wakefield Council",{"$f":"VLOOKUP(R1656,'LA CPID Look up'!$A$3:$C$153,2,FALSE)","v":"Wakefield City Council"},"Lancashire and West Yorkshire"]
[null,null,null,null,null,null,null,null,null,null,null,null,null,null,119853,"George Abbot School","2011-07-01","Surrey County Council",{"$f":"VLOOKUP(R1657,'LA CPID Look up'!$A$3:$C$153,2,FALSE)","v":"Surrey County Council"},"South-East England and South London"]
[null,null,null,null,null,null,null,null,null,null,null,null,null,null,124335,"George Betts Primary Academy","2013-07-01","Sandwell Metropolitan Borough Council",{"$f":"VLOOKUP(R1658,'LA CPID Look up'!$A$3:$C$153,2,FALSE)","v":"Sandwell Metropolitan Borough Council"},"West Midlands"]
[null,null,null,null,null,null,null,null,null,null,null,null,null,null,121912,"George Dixon Academy","2012-09-01","Birmingham City Council",{"$f":"VLOOKUP(R1659,'LA CPID Look up'!$A$3:$C$153,2,FALSE)","v":"Birmingham City Council"},"West Midlands"]
[null,null,null,null,null,null,null,null,null,null,null,null,null,null,120079,"George Eliot School, The","2011-09-01","Warwickshire County Council",{"$f":"VLOOKUP(R1660,'LA CPID Look up'!$A$3:$C$153,2,FALSE)","v":"Warwickshire County Council"},"West Midlands"]
[null,null,null,null,null,null,null,null,null,null,null,null,null,null,127305,"George Grenville Academy","2015-02-01","Buckinghamshire County Council",{"$f":"VLOOKUP(R1661,'LA CPID Look up'!$A$3:$C$153,2,FALSE)","v":"Buckinghamshire County Council"},"South-Central England and North-West London"]
[null,null,null,null,null,null,null,null,null,null,null,null,null,null,132290,"George Hastwell School Special Academy","2015-09-01","Cumbria County Council",{"$f":"VLOOKUP(R1662,'LA CPID Look up'!$A$3:$C$153,2,FALSE)","v":"Cumbria County Council"},"North of England"]
[null,null,null,null,null,null,null,null,null,null,null,null,null,null,118613,"George Salter Academy","2007-09-01","Sandwell Metropolitan Borough Council",{"$f":"VLOOKUP(R1663,'LA CPID Look up'!$A$3:$C$153,2,FALSE)","v":"Sandwell Metropolitan Borough Council"},"West Midlands"]
[null,null,null,null,null,null,null,null,null,null,null,null,null,null,119255,"George Spencer Academy and Technology College","2010-09-01","Nottinghamshire County Council",{"$f":"VLOOKUP(R1664,'LA CPID Look up'!$A$3:$C$153,2,FALSE)","v":"Nottinghamshire County Council"},"East Midlands and the Humber"]
[null,null,null,null,null,null,null,null,null,null,null,null,null,null,133568,"Gerrans School","2016-03-01","Cornwall Council",{"$f":"VLOOKUP(R1665,'LA CPID Look up'!$A$3:$C$153,2,FALSE)","v":"Cornwall Unitary Authority"},"South-West England"]
[null,null,null,null,null,null,null,null,null,null,null,null,null,null,120777,"Gerrards Cross CofE School, The","2012-01-01","Buckinghamshire County Council",{"$f":"VLOOKUP(R1666,'LA CPID Look up'!$A$3:$C$153,2,FALSE)","v":"Buckinghamshire County Council"},"South-Central England and North-West London"]
[null,null,null,null,null,null,null,null,null,null,null,null,null,null,122418,"Ghyllside Primary School","2012-09-01","Cumbria County Council",{"$f":"VLOOKUP(R1667,'LA CPID Look up'!$A$3:$C$153,2,FALSE)","v":"Cumbria County Council"},"North of England"]
[null,null,null,null,null,null,null,null,null,null,null,null,null,null,125015,"Giffard Catholic Primary School, The","2013-07-01","Wolverhampton City Council",{"$f":"VLOOKUP(R1668,'LA CPID Look up'!$A$3:$C$153,2,FALSE)","v":"Wolverhampton City Council"},"West Midlands"]
[null,null,null,null,null,null,null,null,null,null,null,null,null,null,129883,"Giffards Primary School","2014-04-01","Thurrock Borough Council",{"$f":"VLOOKUP(R1669,'LA CPID Look up'!$A$3:$C$153,2,FALSE)","v":"Thurrock Unitary Authority"},"East of England and North-East London"]
[null,null,null,null,null,null,null,null,null,null,null,null,null,null,121141,"Gilberd School, The","2012-03-01","Essex County Council",{"$f":"VLOOKUP(R1670,'LA CPID Look up'!$A$3:$C$153,2,FALSE)","v":"Essex County Council"},"East of England and North-East London"]
[null,null,null,null,null,null,null,null,null,null,null,null,null,null,120835,"Gilbert Inglefield Academy","2012-04-01","Central Bedfordshire Council",{"$f":"VLOOKUP(R1671,'LA CPID Look up'!$A$3:$C$153,2,FALSE)","v":"Central Bedfordshire Unitary Authority"},"South-Central England and North-West London"]
[null,null,null,null,null,null,null,null,null,null,null,null,null,null,123301,"Gildredge House","2013-09-01","East Sussex County Council",{"$f":"VLOOKUP(R1672,'LA CPID Look up'!$A$3:$C$153,2,FALSE)","v":"East Sussex County Council"},"South-East England and South London"]
[null,null,null,null,null,null,null,null,null,null,null,null,null,null,119247,"Giles Academy, The","2010-09-01","Lincolnshire County Council",{"$f":"VLOOKUP(R1673,'LA CPID Look up'!$A$3:$C$153,2,FALSE)","v":"Lincolnshire County Council"},"East Midlands and the Humber"]
[null,null,null,null,null,null,null,null,null,null,null,null,null,null,120909,"Gillbrook Academy","2012-09-01","Redcar and Cleveland Borough Council",{"$f":"VLOOKUP(R1674,'LA CPID Look up'!$A$3:$C$153,2,FALSE)","v":"Redcar and Cleveland Borough Council"},"North of England"]
[null,null,null,null,null,null,null,null,null,null,null,null,null,null,131596,"Gillingham St Michael's Church of England Primary School","2015-03-01","Norfolk County Council",{"$f":"VLOOKUP(R1675,'LA CPID Look up'!$A$3:$C$153,2,FALSE)","v":"Norfolk County Council"},"East of England and North-East London"]
[null,null,null,null,null,null,null,null,null,null,null,null,null,null,120811,"Gillotts School","2012-03-01","Oxfordshire County Council",{"$f":"VLOOKUP(R1676,'LA CPID Look up'!$A$3:$C$153,2,FALSE)","v":"Oxfordshire County Council"},"East of England and North-East London"]
[null,null,null,null,null,null,null,null,null,null,null,null,null,null,124185,"Gilmorton Chandler Church of England Primary School","2013-07-01","Leicestershire County Council",{"$f":"VLOOKUP(R1677,'LA CPID Look up'!$A$3:$C$153,2,FALSE)","v":"Leicestershire County Council"},"East Midlands and the Humber"]
[null,null,null,null,null,null,null,null,null,null,null,null,null,null,121886,"Gilsland CofE Primary School","2012-06-01","Cumbria County Council",{"$f":"VLOOKUP(R1678,'LA CPID Look up'!$A$3:$C$153,2,FALSE)","v":"Cumbria County Council"},"North of England"]
[null,null,null,null,null,null,null,null,null,null,null,null,null,null,123124,"Gipsey Bridge Primary School","2013-02-01","Lincolnshire County Council",{"$f":"VLOOKUP(R1679,'LA CPID Look up'!$A$3:$C$153,2,FALSE)","v":"Lincolnshire County Council"},"East Midlands and the Humber"]
[null,null,null,null,null,null,null,null,null,null,null,null,null,null,130143,"Gladstone Park Primary School","2014-06-01","Brent London Borough Council",{"$f":"VLOOKUP(R1680,'LA CPID Look up'!$A$3:$C$153,2,FALSE)","v":"Brent London Borough Council"},"South-Central England and North-West London"]
[null,null,null,null,null,null,null,null,null,null,null,null,null,null,124177,"Glapton Academy, The","2013-10-01","Nottingham City Council",{"$f":"VLOOKUP(R1681,'LA CPID Look up'!$A$3:$C$153,2,FALSE)","v":"Nottingham City Council"},"East Midlands and the Humber"]
[null,null,null,null,null,null,null,null,null,null,null,null,null,null,131073,"Glascote Heath Primary School","2014-10-01","Staffordshire County Council",{"$f":"VLOOKUP(R1682,'LA CPID Look up'!$A$3:$C$153,2,FALSE)","v":"Staffordshire County Council"},"West Midlands"]
[null,null,null,null,null,null,null,null,null,null,null,null,null,null,124519,"Glebe Academy","2013-11-01","Stoke-on-Trent City Council",{"$f":"VLOOKUP(R1683,'LA CPID Look up'!$A$3:$C$153,2,FALSE)","v":"Stoke-on-Trent Unitary Authority"},"West Midlands"]
[null,null,null,null,null,null,null,null,null,null,null,null,null,null,131383,"Glemsford Primary Academy","2015-01-01","Suffolk County Council",{"$f":"VLOOKUP(R1684,'LA CPID Look up'!$A$3:$C$153,2,FALSE)","v":"Suffolk County Council"},"East of England and North-East London"]
[null,null,null,null,null,null,null,null,null,null,null,null,null,null,121039,"Glen Hills Primary School","2012-03-01","Leicestershire County Council",{"$f":"VLOOKUP(R1685,'LA CPID Look up'!$A$3:$C$153,2,FALSE)","v":"Leicestershire County Council"},"East Midlands and the Humber"]
[null,null,null,null,null,null,null,null,null,null,null,null,null,null,128050,"Glenbrook Primary and Nursery School","2014-04-01","Nottingham City Council",{"$f":"VLOOKUP(R1686,'LA CPID Look up'!$A$3:$C$153,2,FALSE)","v":"Nottingham City Council"},"East Midlands and the Humber"]
[null,null,null,null,null,null,null,null,null,null,null,null,null,null,129437,"Glenfield Infant School","2014-01-01","Southampton City Council",{"$f":"VLOOKUP(R1687,'LA CPID Look up'!$A$3:$C$153,2,FALSE)","v":"Southampton City Council"},"South-East England and South London"]
[null,null,null,null,null,null,null,null,null,null,null,null,null,null,129427,"Glenfield Primary School","2014-07-01","Leicestershire County Council",{"$f":"VLOOKUP(R1688,'LA CPID Look up'!$A$3:$C$153,2,FALSE)","v":"Leicestershire County Council"},"East Midlands and the Humber"]
[null,null,null,null,null,null,null,null,null,null,null,null,null,null,122042,"Glenleigh Park Primary Academy","2012-09-01","East Sussex County Council",{"$f":"VLOOKUP(R1689,'LA CPID Look up'!$A$3:$C$153,2,FALSE)","v":"East Sussex County Council"},"South-East England and South London"]
[null,null,null,null,null,null,null,null,null,null,null,null,null,null,124533,"Glenmere Community Primary School","2013-07-01","Leicestershire County Council",{"$f":"VLOOKUP(R1690,'LA CPID Look up'!$A$3:$C$153,2,FALSE)","v":"Leicestershire County Council"},"East Midlands and the Humber"]
[null,null,null,null,null,null,null,null,null,null,null,null,null,null,127405,"Glenmoor Academy","2013-09-01","Bournemouth Borough Council",{"$f":"VLOOKUP(R1691,'LA CPID Look up'!$A$3:$C$153,2,FALSE)","v":"Bournemouth Council"},"South-West England"]
[null,null,null,null,null,null,null,null,null,null,null,null,null,null,119914,"Glenthorne High School","2011-07-01","Sutton London Borough Council",{"$f":"VLOOKUP(R1692,'LA CPID Look up'!$A$3:$C$153,2,FALSE)","v":"Sutton London Borough Council"},"South-East England and South London"]
[null,null,null,null,null,null,null,null,null,null,null,null,null,null,131196,"Globe Primary Academy, The","2014-11-01","West Sussex County Council",{"$f":"VLOOKUP(R1693,'LA CPID Look up'!$A$3:$C$153,2,FALSE)","v":"West Sussex County Council"},"South-East England and South London"]
[null,null,null,null,null,null,null,null,null,null,null,null,null,null,129571,"Glory Farm Primary School","2014-07-01","Oxfordshire County Council",{"$f":"VLOOKUP(R1694,'LA CPID Look up'!$A$3:$C$153,2,FALSE)","v":"Oxfordshire County Council"},"East of England and North-East London"]
[null,null,null,null,null,null,null,null,null,null,null,null,null,null,119328,"Gloucester Academy","2010-09-01","Gloucestershire County Council",{"$f":"VLOOKUP(R1695,'LA CPID Look up'!$A$3:$C$153,2,FALSE)","v":"Gloucestershire County Council"},"South-West England"]
[null,null,null,null,null,null,null,null,null,null,null,null,null,null,119592,"Glyn School","2011-04-01","Surrey County Council",{"$f":"VLOOKUP(R1696,'LA CPID Look up'!$A$3:$C$153,2,FALSE)","v":"Surrey County Council"},"South-East England and South London"]
[null,null,null,null,null,null,null,null,null,null,null,null,null,null,122127,"Glyne Gap School","2013-04-01","East Sussex County Council",{"$f":"VLOOKUP(R1697,'LA CPID Look up'!$A$3:$C$153,2,FALSE)","v":"East Sussex County Council"},"South-East England and South London"]
[null,null,null,null,null,null,null,null,null,null,null,null,null,null,122605,"Glynn House Short Stay School","2013-06-01","Cornwall Council",{"$f":"VLOOKUP(R1698,'LA CPID Look up'!$A$3:$C$153,2,FALSE)","v":"Cornwall Unitary Authority"},"South-West England"]
[null,null,null,null,null,null,null,null,null,null,null,null,null,null,131553,"Gnosall St Lawrence CoE Primary Academy","2015-04-01","Staffordshire County Council",{"$f":"VLOOKUP(R1699,'LA CPID Look up'!$A$3:$C$153,2,FALSE)","v":"Staffordshire County Council"},"West Midlands"]
[null,null,null,null,null,null,null,null,null,null,null,null,null,null,119352,"Goddard Park Community Primary School","2010-09-22","Swindon Borough Council",{"$f":"VLOOKUP(R1700,'LA CPID Look up'!$A$3:$C$153,2,FALSE)","v":"Swindon Unitary Authority"},"South-West England"]
[null,null,null,null,null,null,null,null,null,null,null,null,null,null,131735,"Godinton Primary School","2015-03-01","Kent County Council",{"$f":"VLOOKUP(R1701,'LA CPID Look up'!$A$3:$C$153,2,FALSE)","v":"Kent County Council"},"South-East England and South London"]
[null,null,null,null,null,null,null,null,null,null,null,null,null,null,121209,"Godmanchester Primary School","2012-04-01","Cambridgeshire County Council",{"$f":"VLOOKUP(R1702,'LA CPID Look up'!$A$3:$C$153,2,FALSE)","v":"Cambridgeshire County Council"},"East of England and North-East London"]
[null,null,null,null,null,null,null,null,null,null,null,null,null,null,122296,"Godolphin Infant School","2012-09-01","Slough Borough Council",{"$f":"VLOOKUP(R1703,'LA CPID Look up'!$A$3:$C$153,2,FALSE)","v":"Slough Borough Council"},"East of England and North-East London"]
[null,null,null,null,null,null,null,null,null,null,null,null,null,null,122294,"Godolphin Junior School","2012-07-01","Slough Borough Council",{"$f":"VLOOKUP(R1704,'LA CPID Look up'!$A$3:$C$153,2,FALSE)","v":"Slough Borough Council"},"East of England and North-East London"]
[null,null,null,null,null,null,null,null,null,null,null,null,null,null,120515,"Goffs School","2011-10-01","Hertfordshire County Council",{"$f":"VLOOKUP(R1705,'LA CPID Look up'!$A$3:$C$153,2,FALSE)","v":"Hertfordshire County Council"},"East of England and North-East London"]
[null,null,null,null,null,null,null,null,null,null,null,null,null,null,119531,"Goldington Academy","2011-04-01","Bedford Borough Council",{"$f":"VLOOKUP(R1706,'LA CPID Look up'!$A$3:$C$153,2,FALSE)","v":"Bedford Unitary Authority"},"South-Central England and North-West London"]
[null,null,null,null,null,null,null,null,null,null,null,null,null,null,123268,"Goldington Green Academy","2013-04-01","Bedford Borough Council",{"$f":"VLOOKUP(R1707,'LA CPID Look up'!$A$3:$C$153,2,FALSE)","v":"Bedford Unitary Authority"},"South-Central England and North-West London"]
[null,null,null,null,null,null,null,null,null,null,null,null,null,null,122141,"Goldsmith Primary Academy","2012-09-01","Walsall Metropolitan Borough Council",{"$f":"VLOOKUP(R1708,'LA CPID Look up'!$A$3:$C$153,2,FALSE)","v":"Walsall Metropolitan Borough Council"},"West Midlands"]
[null,null,null,null,null,null,null,null,null,null,null,null,null,null,120673,"Goldsworth Primary School","2012-02-01","Surrey County Council",{"$f":"VLOOKUP(R1709,'LA CPID Look up'!$A$3:$C$153,2,FALSE)","v":"Surrey County Council"},"South-East England and South London"]
[null,null,null,null,null,null,null,null,null,null,null,null,null,null,119725,"Gonville Academy","2011-05-01","Croydon London Borough Council",{"$f":"VLOOKUP(R1710,'LA CPID Look up'!$A$3:$C$153,2,FALSE)","v":"Croydon London Borough Council"},"South-East England and South London"]
[null,null,null,null,null,null,null,null,null,null,null,null,null,null,133553,"Good Shepherd Catholic Primary and Nursery School","2016-02-01","Croydon London Borough Council",{"$f":"VLOOKUP(R1711,'LA CPID Look up'!$A$3:$C$153,2,FALSE)","v":"Croydon London Borough Council"},"South-East England and South London"]
[null,null,null,null,null,null,null,null,null,null,null,null,null,null,121096,"Good Shepherd Catholic Primary, Arnold, The","2012-10-01","Nottinghamshire County Council",{"$f":"VLOOKUP(R1712,'LA CPID Look up'!$A$3:$C$153,2,FALSE)","v":"Nottinghamshire County Council"},"East Midlands and the Humber"]
[null,null,null,null,null,null,null,null,null,null,null,null,null,null,132414,"Good Shepherd Catholic School","2015-08-01","Coventry City Council",{"$f":"VLOOKUP(R1713,'LA CPID Look up'!$A$3:$C$153,2,FALSE)","v":"Coventry City Council"},"West Midlands"]
[null,null,null,null,null,null,null,null,null,null,null,null,null,null,130877,"Gooderstone Church of England Primary Academy","2015-03-01","Norfolk County Council",{"$f":"VLOOKUP(R1714,'LA CPID Look up'!$A$3:$C$153,2,FALSE)","v":"Norfolk County Council"},"East of England and North-East London"]
[null,null,null,null,null,null,null,null,null,null,null,null,null,null,120316,"Goole High School","2011-08-17","East Riding of Yorkshire Council",{"$f":"VLOOKUP(R1715,'LA CPID Look up'!$A$3:$C$153,2,FALSE)","v":"East Riding of Yorkshire Council"},"East Midlands and the Humber"]
[null,null,null,null,null,null,null,null,null,null,null,null,null,null,122559,"Goose Green Primary School","2012-10-01","Southwark London Borough Council",{"$f":"VLOOKUP(R1716,'LA CPID Look up'!$A$3:$C$153,2,FALSE)","v":"Southwark London Borough Council"},"South-East England and South London"]
[null,null,null,null,null,null,null,null,null,null,null,null,null,null,121937,"Gooseacre Primary Academy","2012-09-01","Barnsley Metropolitan Borough Council",{"$f":"VLOOKUP(R1717,'LA CPID Look up'!$A$3:$C$153,2,FALSE)","v":"Barnsley Metropolitan Borough Council"},"East Midlands and the Humber"]
[null,null,null,null,null,null,null,null,null,null,null,null,null,null,119856,"Gordano School","2011-07-01","North Somerset District Council",{"$f":"VLOOKUP(R1718,'LA CPID Look up'!$A$3:$C$153,2,FALSE)","v":"North Somerset Council"},"South-West England"]
[null,null,null,null,null,null,null,null,null,null,null,null,null,null,128087,"Gordon Infant School","2014-03-01","Medway Council",{"$f":"VLOOKUP(R1719,'LA CPID Look up'!$A$3:$C$153,2,FALSE)","v":"Medway Towns Unitary Authority (The)"},"South-East England and South London"]
[null,null,null,null,null,null,null,null,null,null,null,null,null,null,124823,"Gordon Junior School","2014-03-01","Medway Council",{"$f":"VLOOKUP(R1720,'LA CPID Look up'!$A$3:$C$153,2,FALSE)","v":"Medway Towns Unitary Authority (The)"},"South-East England and South London"]
[null,null,null,null,null,null,null,null,null,null,null,null,null,null,120674,"Gordon's School","2013-01-01","Surrey County Council",{"$f":"VLOOKUP(R1721,'LA CPID Look up'!$A$3:$C$153,2,FALSE)","v":"Surrey County Council"},"South-East England and South London"]
[null,null,null,null,null,null,null,null,null,null,null,null,null,null,130480,"Goresbrook School","2014-09-01","Barking and Dagenham London Borough Council",{"$f":"VLOOKUP(R1722,'LA CPID Look up'!$A$3:$C$153,2,FALSE)","v":"Barking & Dagenham London Borough Council"},"East of England and North-East London"]
[null,null,null,null,null,null,null,null,null,null,null,null,null,null,121867,"Gorse Hill Primary School - Swindon","2012-04-01","Swindon Borough Council",{"$f":"VLOOKUP(R1723,'LA CPID Look up'!$A$3:$C$153,2,FALSE)","v":"Swindon Unitary Authority"},"South-West England"]
[null,null,null,null,null,null,null,null,null,null,null,null,null,null,131734,"Gorsefield Primary School","2015-04-01","Bury Metropolitan Borough Council",{"$f":"VLOOKUP(R1724,'LA CPID Look up'!$A$3:$C$153,2,FALSE)","v":"Bury Metropolitan Borough Council"},"Lancashire and West Yorkshire"]
[null,null,null,null,null,null,null,null,null,null,null,null,null,null,120937,"Gorton Mount Primary Academy","2012-09-01","Manchester City Council",{"$f":"VLOOKUP(R1725,'LA CPID Look up'!$A$3:$C$153,2,FALSE)","v":"Manchester City Council"},"Lancashire and West Yorkshire"]
[null,null,null,null,null,null,null,null,null,null,null,null,null,null,123820,"Gosberton Primary School","2013-01-01","Lincolnshire County Council",{"$f":"VLOOKUP(R1726,'LA CPID Look up'!$A$3:$C$153,2,FALSE)","v":"Lincolnshire County Council"},"East Midlands and the Humber"]
[null,null,null,null,null,null,null,null,null,null,null,null,null,null,122906,"Gosford Hill School","2012-11-01","Oxfordshire County Council",{"$f":"VLOOKUP(R1727,'LA CPID Look up'!$A$3:$C$153,2,FALSE)","v":"Oxfordshire County Council"},"East of England and North-East London"]
[null,null,null,null,null,null,null,null,null,null,null,null,null,null,119376,"Gosforth Academy","2010-12-01","Newcastle Upon Tyne City Council",{"$f":"VLOOKUP(R1728,'LA CPID Look up'!$A$3:$C$153,2,FALSE)","v":"Newcastle upon Tyne City Council"},"North of England"]
[null,null,null,null,null,null,null,null,null,null,null,null,null,null,119375,"Gosforth Junior High Academy","2010-12-01","Newcastle Upon Tyne City Council",{"$f":"VLOOKUP(R1729,'LA CPID Look up'!$A$3:$C$153,2,FALSE)","v":"Newcastle upon Tyne City Council"},"North of England"]
[null,null,null,null,null,null,null,null,null,null,null,null,null,null,120207,"Gotherington Primary School","2011-08-01","Gloucestershire County Council",{"$f":"VLOOKUP(R1730,'LA CPID Look up'!$A$3:$C$153,2,FALSE)","v":"Gloucestershire County Council"},"South-West England"]
[null,null,null,null,null,null,null,null,null,null,null,null,null,null,123200,"Gothic Mede Academy","2013-11-01","Central Bedfordshire Council",{"$f":"VLOOKUP(R1731,'LA CPID Look up'!$A$3:$C$153,2,FALSE)","v":"Central Bedfordshire Unitary Authority"},"South-Central England and North-West London"]
[null,null,null,null,null,null,null,null,null,null,null,null,null,null,118616,"Grace Academy Coventry","2008-09-01","Coventry City Council",{"$f":"VLOOKUP(R1732,'LA CPID Look up'!$A$3:$C$153,2,FALSE)","v":"Coventry City Council"},"West Midlands"]
[null,null,null,null,null,null,null,null,null,null,null,null,null,null,119087,"Grace Academy Darlaston","2009-09-01","Walsall Metropolitan Borough Council",{"$f":"VLOOKUP(R1733,'LA CPID Look up'!$A$3:$C$153,2,FALSE)","v":"Walsall Metropolitan Borough Council"},"West Midlands"]
[null,null,null,null,null,null,null,null,null,null,null,null,null,null,118615,"Grace Academy Solihull","2006-09-01","Solihull Metropolitan Borough Council",{"$f":"VLOOKUP(R1734,'LA CPID Look up'!$A$3:$C$153,2,FALSE)","v":"Solihull Metropolitan Borough Council"},"West Midlands"]
[null,null,null,null,null,null,null,null,null,null,null,null,null,null,126434,"Grade-Ruan CofE School","2014-03-01","Cornwall Council",{"$f":"VLOOKUP(R1735,'LA CPID Look up'!$A$3:$C$153,2,FALSE)","v":"Cornwall Unitary Authority"},"South-West England"]
[null,null,null,null,null,null,null,null,null,null,null,null,null,null,122907,"Graham James Primary Academy","2013-05-01","Thurrock Borough Council",{"$f":"VLOOKUP(R1736,'LA CPID Look up'!$A$3:$C$153,2,FALSE)","v":"Thurrock Unitary Authority"},"East of England and North-East London"]
[null,null,null,null,null,null,null,null,null,null,null,null,null,null,122256,"Grampian Primary Academy","2012-12-01","Derby City Council",{"$f":"VLOOKUP(R1737,'LA CPID Look up'!$A$3:$C$153,2,FALSE)","v":"Derby City Council"},"East Midlands and the Humber"]
[null,null,null,null,null,null,null,null,null,null,null,null,null,null,127842,"Grampound Road Village CofE School","2013-12-01","Cornwall Council",{"$f":"VLOOKUP(R1738,'LA CPID Look up'!$A$3:$C$153,2,FALSE)","v":"Cornwall Unitary Authority"},"South-West England"]
[null,null,null,null,null,null,null,null,null,null,null,null,null,null,127480,"Grampound-with-Creed CofE School","2013-12-01","Cornwall Council",{"$f":"VLOOKUP(R1739,'LA CPID Look up'!$A$3:$C$153,2,FALSE)","v":"Cornwall Unitary Authority"},"South-West England"]
[null,null,null,null,null,null,null,null,null,null,null,null,null,null,120439,"Grange Lane Infant Academy","2011-09-01","Doncaster Metropolitan Borough Council",{"$f":"VLOOKUP(R1740,'LA CPID Look up'!$A$3:$C$153,2,FALSE)","v":"Doncaster Metropolitan Borough Council"},"East Midlands and the Humber"]
[null,null,null,null,null,null,null,null,null,null,null,null,null,null,124655,"Grange Primary - Shrewsbury","2013-08-01","Shropshire Council",{"$f":"VLOOKUP(R1741,'LA CPID Look up'!$A$3:$C$153,2,FALSE)","v":"Shropshire Unitary Authority"},"West Midlands"]
[null,null,null,null,null,null,null,null,null,null,null,null,null,null,124322,"Grange Primary Academy - Kettering","2013-08-01","Northamptonshire County Council",{"$f":"VLOOKUP(R1742,'LA CPID Look up'!$A$3:$C$153,2,FALSE)","v":"Northamptonshire County Council"},"East of England and North-East London"]
[null,null,null,null,null,null,null,null,null,null,null,null,null,null,122976,"Grange School - Bedford","2013-03-01","Bedford Borough Council",{"$f":"VLOOKUP(R1743,'LA CPID Look up'!$A$3:$C$153,2,FALSE)","v":"Bedford Unitary Authority"},"South-Central England and North-West London"]
[null,null,null,null,null,null,null,null,null,null,null,null,null,null,130912,"Grange School, The - Christchurch","2015-02-01","Dorset County Council",{"$f":"VLOOKUP(R1744,'LA CPID Look up'!$A$3:$C$153,2,FALSE)","v":"Dorset County Council"},"South-West England"]
[null,null,null,null,null,null,null,null,null,null,null,null,null,null,123159,"Grange School, The - Shrewsbury","2013-04-01","Shropshire Council",{"$f":"VLOOKUP(R1745,'LA CPID Look up'!$A$3:$C$153,2,FALSE)","v":"Shropshire Unitary Authority"},"West Midlands"]
[null,null,null,null,null,null,null,null,null,null,null,null,null,null,120525,"Grange Technology College - Bradford","2013-08-01","Bradford Metropolitan District Council",{"$f":"VLOOKUP(R1746,'LA CPID Look up'!$A$3:$C$153,2,FALSE)","v":"Bradford City Council"},"Lancashire and West Yorkshire"]
[null,null,null,null,null,null,null,null,null,null,null,null,null,null,124590,"Grangefield Academy, The","2014-01-01","Stockton-on-Tees Borough Council",{"$f":"VLOOKUP(R1747,'LA CPID Look up'!$A$3:$C$153,2,FALSE)","v":"Stockton-on-Tees Borough Council"},"North of England"]
[null,null,null,null,null,null,null,null,null,null,null,null,null,null,121112,"Grangewood School","2012-06-01","Hillingdon London Borough Council",{"$f":"VLOOKUP(R1748,'LA CPID Look up'!$A$3:$C$153,2,FALSE)","v":"Hillingdon London Borough Council"},"East of England and North-East London"]
[null,null,null,null,null,null,null,null,null,null,null,null,null,null,130625,"Grantham Sandon School, The","2014-09-01","Lincolnshire County Council",{"$f":"VLOOKUP(R1749,'LA CPID Look up'!$A$3:$C$153,2,FALSE)","v":"Lincolnshire County Council"},"East Midlands and the Humber"]
[null,null,null,null,null,null,null,null,null,null,null,null,null,null,122274,"Grasmere Academy","2012-09-01","North Tyneside Council",{"$f":"VLOOKUP(R1750,'LA CPID Look up'!$A$3:$C$153,2,FALSE)","v":"North Tyneside Metropolitan Borough Council"},"North of England"]
[null,null,null,null,null,null,null,null,null,null,null,null,null,null,122386,"Grasvenor Avenue Infant School","2012-09-01","Barnet London Borough Council",{"$f":"VLOOKUP(R1751,'LA CPID Look up'!$A$3:$C$153,2,FALSE)","v":"Barnet London Borough Council"},"South-Central England and North-West London"]
[null,null,null,null,null,null,null,null,null,null,null,null,null,null,120829,"Graveney Primary School","2012-02-01","Kent County Council",{"$f":"VLOOKUP(R1752,'LA CPID Look up'!$A$3:$C$153,2,FALSE)","v":"Kent County Council"},"South-East England and South London"]
[null,null,null,null,null,null,null,null,null,null,null,null,null,null,120005,"Graveney School","2011-08-01","Wandsworth London Borough Council",{"$f":"VLOOKUP(R1753,'LA CPID Look up'!$A$3:$C$153,2,FALSE)","v":"Wandsworth London Borough Council"},"South-East England and South London"]
[null,null,null,null,null,null,null,null,null,null,null,null,null,null,122383,"Gravenhurst Academy","2013-09-01","Central Bedfordshire Council",{"$f":"VLOOKUP(R1754,'LA CPID Look up'!$A$3:$C$153,2,FALSE)","v":"Central Bedfordshire Unitary Authority"},"South-Central England and North-West London"]
[null,null,null,null,null,null,null,null,null,null,null,null,null,null,120099,"Gravesend Grammar School","2011-08-01","Kent County Council",{"$f":"VLOOKUP(R1755,'LA CPID Look up'!$A$3:$C$153,2,FALSE)","v":"Kent County Council"},"South-East England and South London"]
[null,null,null,null,null,null,null,null,null,null,null,null,null,null,123079,"Gray's Farm Primary Academy","2013-09-01","Bromley London Borough Council",{"$f":"VLOOKUP(R1756,'LA CPID Look up'!$A$3:$C$153,2,FALSE)","v":"Bromley London Borough Council"},"South-East England and South London"]
[null,null,null,null,null,null,null,null,null,null,null,null,null,null,132041,"Greasbrough Primary School","2015-07-01","Rotherham Metropolitan Borough Council",{"$f":"VLOOKUP(R1757,'LA CPID Look up'!$A$3:$C$153,2,FALSE)","v":"Rotherham Borough Council"},"East Midlands and the Humber"]
[null,null,null,null,null,null,null,null,null,null,null,null,null,null,130896,"Great Addington CofE (VA) Primary School","2014-10-01","Northamptonshire County Council",{"$f":"VLOOKUP(R1758,'LA CPID Look up'!$A$3:$C$153,2,FALSE)","v":"Northamptonshire County Council"},"East of England and North-East London"]
[null,null,null,null,null,null,null,null,null,null,null,null,null,null,119855,"Great Baddow High School","2011-07-01","Essex County Council",{"$f":"VLOOKUP(R1759,'LA CPID Look up'!$A$3:$C$153,2,FALSE)","v":"Essex County Council"},"East of England and North-East London"]
[null,null,null,null,null,null,null,null,null,null,null,null,null,null,122125,"Great Barr Primary School","2012-09-01","Birmingham City Council",{"$f":"VLOOKUP(R1760,'LA CPID Look up'!$A$3:$C$153,2,FALSE)","v":"Birmingham City Council"},"West Midlands"]
[null,null,null,null,null,null,null,null,null,null,null,null,null,null,132925,"Great Barton Church of England Voluntary Controlled Primary School","2016-01-01","Suffolk County Council",{"$f":"VLOOKUP(R1761,'LA CPID Look up'!$A$3:$C$153,2,FALSE)","v":"Suffolk County Council"},"East of England and North-East London"]
[null,null,null,null,null,null,null,null,null,null,null,null,null,null,120226,"Great Berry Primary School","2011-08-01","Essex County Council",{"$f":"VLOOKUP(R1762,'LA CPID Look up'!$A$3:$C$153,2,FALSE)","v":"Essex County Council"},"East of England and North-East London"]
[null,null,null,null,null,null,null,null,null,null,null,null,null,null,122049,"Great Bowden Church of England Primary School","2012-07-01","Leicestershire County Council",{"$f":"VLOOKUP(R1763,'LA CPID Look up'!$A$3:$C$153,2,FALSE)","v":"Leicestershire County Council"},"East Midlands and the Humber"]
[null,null,null,null,null,null,null,null,null,null,null,null,null,null,120510,"Great Chesterford Church of England Primary Academy","2011-10-01","Essex County Council",{"$f":"VLOOKUP(R1764,'LA CPID Look up'!$A$3:$C$153,2,FALSE)","v":"Essex County Council"},"East of England and North-East London"]
[null,null,null,null,null,null,null,null,null,null,null,null,null,null,127907,"Great Clacton Church of England (Voluntary Aided) Junior School","2014-03-01","Essex County Council",{"$f":"VLOOKUP(R1765,'LA CPID Look up'!$A$3:$C$153,2,FALSE)","v":"Essex County Council"},"East of England and North-East London"]
[null,null,null,null,null,null,null,null,null,null,null,null,null,null,120366,"Great Corby Primary School","2012-02-01","Cumbria County Council",{"$f":"VLOOKUP(R1766,'LA CPID Look up'!$A$3:$C$153,2,FALSE)","v":"Cumbria County Council"},"North of England"]
[null,null,null,null,null,null,null,null,null,null,null,null,null,null,123868,"Great Dalby School","2013-03-01","Leicestershire County Council",{"$f":"VLOOKUP(R1767,'LA CPID Look up'!$A$3:$C$153,2,FALSE)","v":"Leicestershire County Council"},"East Midlands and the Humber"]
[null,null,null,null,null,null,null,null,null,null,null,null,null,null,132366,"Great Heath Primary School","2015-08-01","Suffolk County Council",{"$f":"VLOOKUP(R1768,'LA CPID Look up'!$A$3:$C$153,2,FALSE)","v":"Suffolk County Council"},"East of England and North-East London"]
[null,null,null,null,null,null,null,null,null,null,null,null,null,null,119984,"Great Malvern Primary School","2011-08-01","Worcestershire County Council",{"$f":"VLOOKUP(R1769,'LA CPID Look up'!$A$3:$C$153,2,FALSE)","v":"Worcestershire County Council"},"West Midlands"]
[null,null,null,null,null,null,null,null,null,null,null,null,null,null,119964,"Great Marlow School","2011-08-01","Buckinghamshire County Council",{"$f":"VLOOKUP(R1770,'LA CPID Look up'!$A$3:$C$153,2,FALSE)","v":"Buckinghamshire County Council"},"South-Central England and North-West London"]
[null,null,null,null,null,null,null,null,null,null,null,null,null,null,132268,"Great Marsden St John's Church of England Primary School","2015-07-01","Lancashire County Council",{"$f":"VLOOKUP(R1771,'LA CPID Look up'!$A$3:$C$153,2,FALSE)","v":"Lancashire County Council"},"Lancashire and West Yorkshire"]
[null,null,null,null,null,null,null,null,null,null,null,null,null,null,126436,"Great Missenden CofE Combined School","2014-04-01","Buckinghamshire County Council",{"$f":"VLOOKUP(R1772,'LA CPID Look up'!$A$3:$C$153,2,FALSE)","v":"Buckinghamshire County Council"},"South-Central England and North-West London"]
[null,null,null,null,null,null,null,null,null,null,null,null,null,null,122006,"Great Sankey High School","2013-01-01","Warrington Borough Council",{"$f":"VLOOKUP(R1773,'LA CPID Look up'!$A$3:$C$153,2,FALSE)","v":"Warrington Borough Council"},"Lancashire and West Yorkshire"]
[null,null,null,null,null,null,null,null,null,null,null,null,null,null,120442,"Great Smeaton Academy Primary School","2011-09-01","North Yorkshire County Council",{"$f":"VLOOKUP(R1774,'LA CPID Look up'!$A$3:$C$153,2,FALSE)","v":"North Yorkshire County Council"},"North of England"]
[null,null,null,null,null,null,null,null,null,null,null,null,null,null,127610,"Great Staughton Primary School","2014-01-01","Cambridgeshire County Council",{"$f":"VLOOKUP(R1775,'LA CPID Look up'!$A$3:$C$153,2,FALSE)","v":"Cambridgeshire County Council"},"East of England and North-East London"]
[null,null,null,null,null,null,null,null,null,null,null,null,null,null,120228,"Great Torrington School","2011-08-01","Devon County Council",{"$f":"VLOOKUP(R1776,'LA CPID Look up'!$A$3:$C$153,2,FALSE)","v":"Devon County Council"},"South-West England"]
[null,null,null,null,null,null,null,null,null,null,null,null,null,null,133447,"Great Witchingham Church of England Primary School","2016-03-01","Norfolk County Council",{"$f":"VLOOKUP(R1777,'LA CPID Look up'!$A$3:$C$153,2,FALSE)","v":"Norfolk County Council"},"East of England and North-East London"]
[null,null,null,null,null,null,null,null,null,null,null,null,null,null,122285,"Great Yarmouth Primary Academy","2012-09-01","Norfolk County Council",{"$f":"VLOOKUP(R1778,'LA CPID Look up'!$A$3:$C$153,2,FALSE)","v":"Norfolk County Council"},"East of England and North-East London"]
[null,null,null,null,null,null,null,null,null,null,null,null,null,null,130564,"Greater Manchester Sustainable Engineering UTC","2014-09-01","Oldham Metropolitan Borough Council",{"$f":"VLOOKUP(R1779,'LA CPID Look up'!$A$3:$C$153,2,FALSE)","v":"Oldham Metropolitan Borough Council"},"Lancashire and West Yorkshire"]
[null,null,null,null,null,null,null,null,null,null,null,null,null,null,124673,"Green End Primary School","2013-09-01","Manchester City Council",{"$f":"VLOOKUP(R1780,'LA CPID Look up'!$A$3:$C$153,2,FALSE)","v":"Manchester City Council"},"Lancashire and West Yorkshire"]
[null,null,null,null,null,null,null,null,null,null,null,null,null,null,131506,"Green Gates Academy","2014-09-01","Stockton-on-Tees Borough Council",{"$f":"VLOOKUP(R1781,'LA CPID Look up'!$A$3:$C$153,2,FALSE)","v":"Stockton-on-Tees Borough Council"},"North of England"]
[null,null,null,null,null,null,null,null,null,null,null,null,null,null,119356,"Green Lane Primary Academy - Leeds","2010-11-01","Leeds City Council",{"$f":"VLOOKUP(R1782,'LA CPID Look up'!$A$3:$C$153,2,FALSE)","v":"Leeds City Council"},"Lancashire and West Yorkshire"]
[null,null,null,null,null,null,null,null,null,null,null,null,null,null,130047,"Green Lane Primary Academy - Middlesborough","2014-04-01","Middlesbrough Council",{"$f":"VLOOKUP(R1783,'LA CPID Look up'!$A$3:$C$153,2,FALSE)","v":"Middlesbrough Council"},"North of England"]
[null,null,null,null,null,null,null,null,null,null,null,null,null,null,120851,"Green Meadow Primary School","2015-01-01","Birmingham City Council",{"$f":"VLOOKUP(R1784,'LA CPID Look up'!$A$3:$C$153,2,FALSE)","v":"Birmingham City Council"},"West Midlands"]
[null,null,null,null,null,null,null,null,null,null,null,null,null,null,126496,"Green Oaks Primary Academy","2014-01-01","Northamptonshire County Council",{"$f":"VLOOKUP(R1785,'LA CPID Look up'!$A$3:$C$153,2,FALSE)","v":"Northamptonshire County Council"},"East of England and North-East London"]
[null,null,null,null,null,null,null,null,null,null,null,null,null,null,124560,"Green School, The","2013-08-01","Hounslow London Borough Council",{"$f":"VLOOKUP(R1786,'LA CPID Look up'!$A$3:$C$153,2,FALSE)","v":"Hounslow London Borough Council"},"East of England and North-East London"]
[null,null,null,null,null,null,null,null,null,null,null,null,null,null,120067,"Green Street Green Primary School","2011-08-01","Bromley London Borough Council",{"$f":"VLOOKUP(R1787,'LA CPID Look up'!$A$3:$C$153,2,FALSE)","v":"Bromley London Borough Council"},"South-East England and South London"]
[null,null,null,null,null,null,null,null,null,null,null,null,null,null,121837,"Green Way Academy, The","2012-09-01","Hull City Council",{"$f":"VLOOKUP(R1788,'LA CPID Look up'!$A$3:$C$153,2,FALSE)","v":"Kingston upon Hull City Council"},"East Midlands and the Humber"]
[null,null,null,null,null,null,null,null,null,null,null,null,null,null,132014,"Green Wrythe Lane Primary School","2015-04-01","Sutton London Borough Council",{"$f":"VLOOKUP(R1789,'LA CPID Look up'!$A$3:$C$153,2,FALSE)","v":"Sutton London Borough Council"},"South-East England and South London"]
[null,null,null,null,null,null,null,null,null,null,null,null,null,null,120759,"Greenacre School - Barnsley","2015-04-01","Barnsley Metropolitan Borough Council",{"$f":"VLOOKUP(R1790,'LA CPID Look up'!$A$3:$C$153,2,FALSE)","v":"Barnsley Metropolitan Borough Council"},"East Midlands and the Humber"]
[null,null,null,null,null,null,null,null,null,null,null,null,null,null,120888,"Greenacre School - Chatham","2012-04-01","Medway Council",{"$f":"VLOOKUP(R1791,'LA CPID Look up'!$A$3:$C$153,2,FALSE)","v":"Medway Towns Unitary Authority (The)"},"South-East England and South London"]
[null,null,null,null,null,null,null,null,null,null,null,null,null,null,120609,"Greenbank High School","2011-11-01","Sefton Metropolitan Borough Council",{"$f":"VLOOKUP(R1792,'LA CPID Look up'!$A$3:$C$153,2,FALSE)","v":"Sefton Metropolitan Borough Council"},"Lancashire and West Yorkshire"]
[null,null,null,null,null,null,null,null,null,null,null,null,null,null,121881,"Greenfield Academy","2012-09-01","Gloucestershire County Council",{"$f":"VLOOKUP(R1793,'LA CPID Look up'!$A$3:$C$153,2,FALSE)","v":"Gloucestershire County Council"},"South-West England"]
[null,null,null,null,null,null,null,null,null,null,null,null,null,null,120290,"Greenfield CofE VC Lower School","2011-08-17","Central Bedfordshire Council",{"$f":"VLOOKUP(R1794,'LA CPID Look up'!$A$3:$C$153,2,FALSE)","v":"Central Bedfordshire Unitary Authority"},"South-Central England and North-West London"]
[null,null,null,null,null,null,null,null,null,null,null,null,null,null,122291,"Greenfield E-ACT Primary Academy","2012-09-01","Bristol City Council",{"$f":"VLOOKUP(R1795,'LA CPID Look up'!$A$3:$C$153,2,FALSE)","v":"Bristol City Council"},"South-West England"]
[null,null,null,null,null,null,null,null,null,null,null,null,null,null,126997,"Greenfields Primary School - Kettering","2013-11-01","Northamptonshire County Council",{"$f":"VLOOKUP(R1796,'LA CPID Look up'!$A$3:$C$153,2,FALSE)","v":"Northamptonshire County Council"},"East of England and North-East London"]
[null,null,null,null,null,null,null,null,null,null,null,null,null,null,130719,"Greenfields Specialist School for Communication","2015-02-01","Northamptonshire County Council",{"$f":"VLOOKUP(R1797,'LA CPID Look up'!$A$3:$C$153,2,FALSE)","v":"Northamptonshire County Council"},"East of England and North-East London"]
[null,null,null,null,null,null,null,null,null,null,null,null,null,null,123125,"Greengate Lane Academy","2013-02-01","Sheffield City Council",{"$f":"VLOOKUP(R1798,'LA CPID Look up'!$A$3:$C$153,2,FALSE)","v":"Sheffield City Council"},"East Midlands and the Humber"]
[null,null,null,null,null,null,null,null,null,null,null,null,null,null,128097,"Greenhill Academy","2014-02-01","Oldham Metropolitan Borough Council",{"$f":"VLOOKUP(R1799,'LA CPID Look up'!$A$3:$C$153,2,FALSE)","v":"Oldham Metropolitan Borough Council"},"Lancashire and West Yorkshire"]
[null,null,null,null,null,null,null,null,null,null,null,null,null,null,122075,"Greenholm Primary School","2012-09-01","Birmingham City Council",{"$f":"VLOOKUP(R1800,'LA CPID Look up'!$A$3:$C$153,2,FALSE)","v":"Birmingham City Council"},"West Midlands"]
[null,null,null,null,null,null,null,null,null,null,null,null,null,null,119768,"Greenshaw High School","2011-06-01","Sutton London Borough Council",{"$f":"VLOOKUP(R1801,'LA CPID Look up'!$A$3:$C$153,2,FALSE)","v":"Sutton London Borough Council"},"South-East England and South London"]
[null,null,null,null,null,null,null,null,null,null,null,null,null,null,131353,"Greenside Primary School","2015-04-01","Hammersmith and Fulham London Borough Council",{"$f":"VLOOKUP(R1802,'LA CPID Look up'!$A$3:$C$153,2,FALSE)","v":"Hammersmith and Fulham London Borough Council"},"South-Central England and North-West London"]
[null,null,null,null,null,null,null,null,null,null,null,null,null,null,122247,"Greensted Junior School","2012-09-01","Essex County Council",{"$f":"VLOOKUP(R1803,'LA CPID Look up'!$A$3:$C$153,2,FALSE)","v":"Essex County Council"},"East of England and North-East London"]
[null,null,null,null,null,null,null,null,null,null,null,null,null,null,118664,"Greensward Academy","2008-09-04","Essex County Council",{"$f":"VLOOKUP(R1804,'LA CPID Look up'!$A$3:$C$153,2,FALSE)","v":"Essex County Council"},"East of England and North-East London"]
[null,null,null,null,null,null,null,null,null,null,null,null,null,null,122295,"Greenway Academy","2012-08-01","West Sussex County Council",{"$f":"VLOOKUP(R1805,'LA CPID Look up'!$A$3:$C$153,2,FALSE)","v":"West Sussex County Council"},"South-East England and South London"]
[null,null,null,null,null,null,null,null,null,null,null,null,null,null,122037,"Greenwich Free School, The","2012-09-01","Greenwich London Borough Council",{"$f":"VLOOKUP(R1806,'LA CPID Look up'!$A$3:$C$153,2,FALSE)","v":"Greenwich London Borough Council"},"South-East England and South London"]
[null,null,null,null,null,null,null,null,null,null,null,null,null,null,122297,"Greenwood Academy","2013-01-01","Birmingham City Council",{"$f":"VLOOKUP(R1807,'LA CPID Look up'!$A$3:$C$153,2,FALSE)","v":"Birmingham City Council"},"West Midlands"]
[null,null,null,null,null,null,null,null,null,null,null,null,null,null,119396,"Greetland Academy, The","2011-01-01","Calderdale Metropolitan Borough Council",{"$f":"VLOOKUP(R1808,'LA CPID Look up'!$A$3:$C$153,2,FALSE)","v":"Calderdale Metropolitan Borough Council"},"Lancashire and West Yorkshire"]
[null,null,null,null,null,null,null,null,null,null,null,null,null,null,118391,"Greig City Academy","2002-09-01","Haringey London Borough Council",{"$f":"VLOOKUP(R1809,'LA CPID Look up'!$A$3:$C$153,2,FALSE)","v":"Haringey London Borough Council"},"East of England and North-East London"]
[null,null,null,null,null,null,null,null,null,null,null,null,null,null,119945,"Greneway School, The","2011-11-01","Hertfordshire County Council",{"$f":"VLOOKUP(R1810,'LA CPID Look up'!$A$3:$C$153,2,FALSE)","v":"Hertfordshire County Council"},"East of England and North-East London"]
[null,null,null,null,null,null,null,null,null,null,null,null,null,null,124649,"Grestone Academy","2013-10-01","Birmingham City Council",{"$f":"VLOOKUP(R1811,'LA CPID Look up'!$A$3:$C$153,2,FALSE)","v":"Birmingham City Council"},"West Midlands"]
[null,null,null,null,null,null,null,null,null,null,null,null,null,null,120623,"Gretton Primary School - Cheltenham","2012-02-01","Gloucestershire County Council",{"$f":"VLOOKUP(R1812,'LA CPID Look up'!$A$3:$C$153,2,FALSE)","v":"Gloucestershire County Council"},"South-West England"]
[null,null,null,null,null,null,null,null,null,null,null,null,null,null,122743,"Gretton Primary School - Corby","2012-09-01","Northamptonshire County Council",{"$f":"VLOOKUP(R1813,'LA CPID Look up'!$A$3:$C$153,2,FALSE)","v":"Northamptonshire County Council"},"East of England and North-East London"]
[null,null,null,null,null,null,null,null,null,null,null,null,null,null,122178,"Grey Coat Hospital, The","2012-07-01","Westminster City Council",{"$f":"VLOOKUP(R1814,'LA CPID Look up'!$A$3:$C$153,2,FALSE)","v":"Westminster City Council"},"East of England and North-East London"]
[null,null,null,null,null,null,null,null,null,null,null,null,null,null,122576,"Grey Court School","2012-10-01","Richmond Upon Thames Borough Council",{"$f":"VLOOKUP(R1815,'LA CPID Look up'!$A$3:$C$153,2,FALSE)","v":"Richmond upon Thames Borough Council"},"South-East England and South London"]
[null,null,null,null,null,null,null,null,null,null,null,null,null,null,122674,"Greys Education Centre","2013-02-01","Bedford Borough Council",{"$f":"VLOOKUP(R1816,'LA CPID Look up'!$A$3:$C$153,2,FALSE)","v":"Bedford Unitary Authority"},"South-Central England and North-West London"]
[null,null,null,null,null,null,null,null,null,null,null,null,null,null,132096,"Greystoke Primary School","2015-04-01","Leicestershire County Council",{"$f":"VLOOKUP(R1817,'LA CPID Look up'!$A$3:$C$153,2,FALSE)","v":"Leicestershire County Council"},"East Midlands and the Humber"]
[null,null,null,null,null,null,null,null,null,null,null,null,null,null,133451,"Greythorn Primary School","2016-01-01","Nottinghamshire County Council",{"$f":"VLOOKUP(R1818,'LA CPID Look up'!$A$3:$C$153,2,FALSE)","v":"Nottinghamshire County Council"},"East Midlands and the Humber"]
[null,null,null,null,null,null,null,null,null,null,null,null,null,null,130773,"Griffin Primary School","2014-09-01","Wandsworth London Borough Council",{"$f":"VLOOKUP(R1819,'LA CPID Look up'!$A$3:$C$153,2,FALSE)","v":"Wandsworth London Borough Council"},"South-East England and South London"]
[null,null,null,null,null,null,null,null,null,null,null,null,null,null,121984,"Grindon Hall Christian School","2012-09-01","Sunderland City Council",{"$f":"VLOOKUP(R1820,'LA CPID Look up'!$A$3:$C$153,2,FALSE)","v":"Sunderland City Metropolitan Borough Council"},"North of England"]
[null,null,null,null,null,null,null,null,null,null,null,null,null,null,122282,"Groby Community College","2012-09-01","Leicestershire County Council",{"$f":"VLOOKUP(R1821,'LA CPID Look up'!$A$3:$C$153,2,FALSE)","v":"Leicestershire County Council"},"East Midlands and the Humber"]
[null,null,null,null,null,null,null,null,null,null,null,null,null,null,122951,"Grove Academy, The - Harrogate","2013-09-01","North Yorkshire County Council",{"$f":"VLOOKUP(R1822,'LA CPID Look up'!$A$3:$C$153,2,FALSE)","v":"North Yorkshire County Council"},"North of England"]
[null,null,null,null,null,null,null,null,null,null,null,null,null,null,121889,"Grove Academy, The - Watford","2012-09-01","Hertfordshire County Council",{"$f":"VLOOKUP(R1823,'LA CPID Look up'!$A$3:$C$153,2,FALSE)","v":"Hertfordshire County Council"},"East of England and North-East London"]
[null,null,null,null,null,null,null,null,null,null,null,null,null,null,125228,"Grove Church of England School","2013-12-01","Oxfordshire County Council",{"$f":"VLOOKUP(R1824,'LA CPID Look up'!$A$3:$C$153,2,FALSE)","v":"Oxfordshire County Council"},"East of England and North-East London"]
[null,null,null,null,null,null,null,null,null,null,null,null,null,null,132672,"Grove House School","2015-09-01","Essex County Council",{"$f":"VLOOKUP(R1825,'LA CPID Look up'!$A$3:$C$153,2,FALSE)","v":"Essex County Council"},"East of England and North-East London"]
[null,null,null,null,null,null,null,null,null,null,null,null,null,null,121895,"Grove Park Primary School","2012-06-01","Kent County Council",{"$f":"VLOOKUP(R1826,'LA CPID Look up'!$A$3:$C$153,2,FALSE)","v":"Kent County Council"},"South-East England and South London"]
[null,null,null,null,null,null,null,null,null,null,null,null,null,null,129866,"Grove Primary School - Lowestoft","2014-05-01","Suffolk County Council",{"$f":"VLOOKUP(R1827,'LA CPID Look up'!$A$3:$C$153,2,FALSE)","v":"Suffolk County Council"},"East of England and North-East London"]
[null,null,null,null,null,null,null,null,null,null,null,null,null,null,132455,"Grove Primary School, The - Camberley","2015-10-01","Surrey County Council",{"$f":"VLOOKUP(R1828,'LA CPID Look up'!$A$3:$C$153,2,FALSE)","v":"Surrey County Council"},"South-East England and South London"]
[null,null,null,null,null,null,null,null,null,null,null,null,null,null,131173,"Grove Primary School, The - Melton Mowbray","2014-10-01","Leicestershire County Council",{"$f":"VLOOKUP(R1829,'LA CPID Look up'!$A$3:$C$153,2,FALSE)","v":"Leicestershire County Council"},"East Midlands and the Humber"]
[null,null,null,null,null,null,null,null,null,null,null,null,null,null,130338,"Grove Wood Primary School","2014-07-01","Essex County Council",{"$f":"VLOOKUP(R1830,'LA CPID Look up'!$A$3:$C$153,2,FALSE)","v":"Essex County Council"},"East of England and North-East London"]
[null,null,null,null,null,null,null,null,null,null,null,null,null,null,122602,"Gryphon School, The","2012-08-01","Dorset County Council",{"$f":"VLOOKUP(R1831,'LA CPID Look up'!$A$3:$C$153,2,FALSE)","v":"Dorset County Council"},"South-West England"]
[null,null,null,null,null,null,null,null,null,null,null,null,null,null,123854,"Guildford County School","2013-01-01","Surrey County Council",{"$f":"VLOOKUP(R1832,'LA CPID Look up'!$A$3:$C$153,2,FALSE)","v":"Surrey County Council"},"South-East England and South London"]
[null,null,null,null,null,null,null,null,null,null,null,null,null,null,119489,"Guilsborough Academy","2011-03-01","Northamptonshire County Council",{"$f":"VLOOKUP(R1833,'LA CPID Look up'!$A$3:$C$153,2,FALSE)","v":"Northamptonshire County Council"},"East of England and North-East London"]
[null,null,null,null,null,null,null,null,null,null,null,null,null,null,130610,"Gulval Community Primary School","2014-06-01","Cornwall Council",{"$f":"VLOOKUP(R1834,'LA CPID Look up'!$A$3:$C$153,2,FALSE)","v":"Cornwall Unitary Authority"},"South-West England"]
[null,null,null,null,null,null,null,null,null,null,null,null,null,null,121127,"Gumley House RC Convent School, FCJ","2012-03-01","Hounslow London Borough Council",{"$f":"VLOOKUP(R1835,'LA CPID Look up'!$A$3:$C$153,2,FALSE)","v":"Hounslow London Borough Council"},"East of England and North-East London"]
[null,null,null,null,null,null,null,null,null,null,null,null,null,null,132933,"Gunnislake Primary Academy","2015-12-01","Cornwall Council",{"$f":"VLOOKUP(R1836,'LA CPID Look up'!$A$3:$C$153,2,FALSE)","v":"Cornwall Unitary Authority"},"South-West England"]
[null,null,null,null,null,null,null,null,null,null,null,null,null,null,133067,"Gunton Primary Academy","2015-10-01","Suffolk County Council",{"$f":"VLOOKUP(R1837,'LA CPID Look up'!$A$3:$C$153,2,FALSE)","v":"Suffolk County Council"},"East of England and North-East London"]
[null,null,null,null,null,null,null,null,null,null,null,null,null,null,122356,"Gurney Pease Academy","2012-07-01","Darlington Borough Council",{"$f":"VLOOKUP(R1838,'LA CPID Look up'!$A$3:$C$153,2,FALSE)","v":"Darlington Borough Council"},"North of England"]
[null,null,null,null,null,null,null,null,null,null,null,null,null,null,119373,"Guru Nanak Sikh Academy","2010-11-01","Hillingdon London Borough Council",{"$f":"VLOOKUP(R1839,'LA CPID Look up'!$A$3:$C$153,2,FALSE)","v":"Hillingdon London Borough Council"},"East of England and North-East London"]
[null,null,null,null,null,null,null,null,null,null,null,null,null,null,124627,"Gusford Community Primary School","2013-08-01","Suffolk County Council",{"$f":"VLOOKUP(R1840,'LA CPID Look up'!$A$3:$C$153,2,FALSE)","v":"Suffolk County Council"},"East of England and North-East London"]
[null,null,null,null,null,null,null,null,null,null,null,null,null,null,122917,"Guthlaxton College Wigston","2012-11-01","Leicestershire County Council",{"$f":"VLOOKUP(R1841,'LA CPID Look up'!$A$3:$C$153,2,FALSE)","v":"Leicestershire County Council"},"East Midlands and the Humber"]
[null,null,null,null,null,null,null,null,null,null,null,null,null,null,119138,"Haberdashers' Aske's Crayford Academy","2009-09-01","Bexley London Borough Council",{"$f":"VLOOKUP(R1842,'LA CPID Look up'!$A$3:$C$153,2,FALSE)","v":"Bexley London Borough Council"},"South-East England and South London"]
[null,null,null,null,null,null,null,null,null,null,null,null,null,null,118392,"Haberdashers' Aske's Hatcham College","2005-09-01","Lewisham London Borough Council",{"$f":"VLOOKUP(R1843,'LA CPID Look up'!$A$3:$C$153,2,FALSE)","v":"Lewisham London Borough Council"},"South-East England and South London"]
[null,null,null,null,null,null,null,null,null,null,null,null,null,null,123307,"Haberdashers' Aske's Hatcham Temple Grove Free School","2013-09-01","Lewisham London Borough Council",{"$f":"VLOOKUP(R1844,'LA CPID Look up'!$A$3:$C$153,2,FALSE)","v":"Lewisham London Borough Council"},"South-East England and South London"]
[null,null,null,null,null,null,null,null,null,null,null,null,null,null,118617,"Haberdashers' Aske's Knights Academy","2005-09-01","Lewisham London Borough Council",{"$f":"VLOOKUP(R1845,'LA CPID Look up'!$A$3:$C$153,2,FALSE)","v":"Lewisham London Borough Council"},"South-East England and South London"]
[null,null,null,null,null,null,null,null,null,null,null,null,null,null,132644,"Hackney New Primary School","2015-09-01","Hackney London Borough Council (The Learning Trust)",{"$f":"VLOOKUP(R1846,'LA CPID Look up'!$A$3:$C$153,2,FALSE)","v":"Hackney London Borough Council"},"East of England and North-East London"]
[null,null,null,null,null,null,null,null,null,null,null,null,null,null,123305,"Hackney New School","2013-09-01","Hackney London Borough Council (The Learning Trust)",{"$f":"VLOOKUP(R1847,'LA CPID Look up'!$A$3:$C$153,2,FALSE)","v":"Hackney London Borough Council"},"East of England and North-East London"]
[null,null,null,null,null,null,null,null,null,null,null,null,null,null,122152,"Hackney University Technical College","2012-09-01","Hackney London Borough Council (The Learning Trust)",{"$f":"VLOOKUP(R1848,'LA CPID Look up'!$A$3:$C$153,2,FALSE)","v":"Hackney London Borough Council"},"East of England and North-East London"]
[null,null,null,null,null,null,null,null,null,null,null,null,null,null,119918,"Hadleigh High School","2011-07-01","Suffolk County Council",{"$f":"VLOOKUP(R1849,'LA CPID Look up'!$A$3:$C$153,2,FALSE)","v":"Suffolk County Council"},"East of England and North-East London"]
[null,null,null,null,null,null,null,null,null,null,null,null,null,null,120027,"Hadleigh Infant and Nursery School","2011-08-01","Essex County Council",{"$f":"VLOOKUP(R1850,'LA CPID Look up'!$A$3:$C$153,2,FALSE)","v":"Essex County Council"},"East of England and North-East London"]
[null,null,null,null,null,null,null,null,null,null,null,null,null,null,120327,"Hadleigh Junior School","2011-09-01","Essex County Council",{"$f":"VLOOKUP(R1851,'LA CPID Look up'!$A$3:$C$153,2,FALSE)","v":"Essex County Council"},"East of England and North-East London"]
[null,null,null,null,null,null,null,null,null,null,null,null,null,null,123306,"Hadlow Rural Community School","2013-09-01","Kent County Council",{"$f":"VLOOKUP(R1852,'LA CPID Look up'!$A$3:$C$153,2,FALSE)","v":"Kent County Council"},"South-East England and South London"]
[null,null,null,null,null,null,null,null,null,null,null,null,null,null,120668,"Hadrian Academy","2012-01-01","Central Bedfordshire Council",{"$f":"VLOOKUP(R1853,'LA CPID Look up'!$A$3:$C$153,2,FALSE)","v":"Central Bedfordshire Unitary Authority"},"South-Central England and North-West London"]
[null,null,null,null,null,null,null,null,null,null,null,null,null,null,130860,"Hagley Catholic High School","2014-10-01","Worcestershire County Council",{"$f":"VLOOKUP(R1854,'LA CPID Look up'!$A$3:$C$153,2,FALSE)","v":"Worcestershire County Council"},"West Midlands"]
[null,null,null,null,null,null,null,null,null,null,null,null,null,null,120103,"Hagley Park Academy","2011-09-01","Staffordshire County Council",{"$f":"VLOOKUP(R1855,'LA CPID Look up'!$A$3:$C$153,2,FALSE)","v":"Staffordshire County Council"},"West Midlands"]
[null,null,null,null,null,null,null,null,null,null,null,null,null,null,132470,"Hailey Hall School","2015-09-01","Hertfordshire County Council",{"$f":"VLOOKUP(R1856,'LA CPID Look up'!$A$3:$C$153,2,FALSE)","v":"Hertfordshire County Council"},"East of England and North-East London"]
[null,null,null,null,null,null,null,null,null,null,null,null,null,null,132449,"Haileybury Turnford","2015-09-01","Hertfordshire County Council",{"$f":"VLOOKUP(R1857,'LA CPID Look up'!$A$3:$C$153,2,FALSE)","v":"Hertfordshire County Council"},"East of England and North-East London"]
[null,null,null,null,null,null,null,null,null,null,null,null,null,null,129592,"Hailsham Academy","2015-09-01","East Sussex County Council",{"$f":"VLOOKUP(R1858,'LA CPID Look up'!$A$3:$C$153,2,FALSE)","v":"East Sussex County Council"},"South-East England and South London"]
[null,null,null,null,null,null,null,null,null,null,null,null,null,null,122327,"Hailsham Community College","2012-08-01","East Sussex County Council",{"$f":"VLOOKUP(R1859,'LA CPID Look up'!$A$3:$C$153,2,FALSE)","v":"East Sussex County Council"},"South-East England and South London"]
[null,null,null,null,null,null,null,null,null,null,null,null,null,null,121011,"Halewood Academy","2013-05-01","Knowsley Metropolitan Borough Council",{"$f":"VLOOKUP(R1860,'LA CPID Look up'!$A$3:$C$153,2,FALSE)","v":"Knowsley Metropolitan Borough Council"},"Lancashire and West Yorkshire"]
[null,null,null,null,null,null,null,null,null,null,null,null,null,null,123165,"Halifax Academy, The","2013-11-01","Calderdale Metropolitan Borough Council",{"$f":"VLOOKUP(R1861,'LA CPID Look up'!$A$3:$C$153,2,FALSE)","v":"Calderdale Metropolitan Borough Council"},"Lancashire and West Yorkshire"]
[null,null,null,null,null,null,null,null,null,null,null,null,null,null,120696,"Hall Cross Academy","2012-02-01","Doncaster Metropolitan Borough Council",{"$f":"VLOOKUP(R1862,'LA CPID Look up'!$A$3:$C$153,2,FALSE)","v":"Doncaster Metropolitan Borough Council"},"East Midlands and the Humber"]
[null,null,null,null,null,null,null,null,null,null,null,null,null,null,120887,"Hall Green School","2012-02-01","Birmingham City Council",{"$f":"VLOOKUP(R1863,'LA CPID Look up'!$A$3:$C$153,2,FALSE)","v":"Birmingham City Council"},"West Midlands"]
[null,null,null,null,null,null,null,null,null,null,null,null,null,null,120197,"Hall Mead School","2011-08-01","Havering London Borough Council",{"$f":"VLOOKUP(R1864,'LA CPID Look up'!$A$3:$C$153,2,FALSE)","v":"Havering London Borough Council"},"East of England and North-East London"]
[null,null,null,null,null,null,null,null,null,null,null,null,null,null,130765,"Hall Park Academy","2014-07-01","Nottinghamshire County Council",{"$f":"VLOOKUP(R1865,'LA CPID Look up'!$A$3:$C$153,2,FALSE)","v":"Nottinghamshire County Council"},"East Midlands and the Humber"]
[null,null,null,null,null,null,null,null,null,null,null,null,null,null,121838,"Hall Road Academy","2012-09-01","Hull City Council",{"$f":"VLOOKUP(R1866,'LA CPID Look up'!$A$3:$C$153,2,FALSE)","v":"Kingston upon Hull City Council"},"East Midlands and the Humber"]
[null,null,null,null,null,null,null,null,null,null,null,null,null,null,131987,"Hallam Primary School","2015-09-01","Sheffield City Council",{"$f":"VLOOKUP(R1867,'LA CPID Look up'!$A$3:$C$153,2,FALSE)","v":"Sheffield City Council"},"East Midlands and the Humber"]
[null,null,null,null,null,null,null,null,null,null,null,null,null,null,132645,"Halley House School","2015-09-01","Hackney London Borough Council (The Learning Trust)",{"$f":"VLOOKUP(R1868,'LA CPID Look up'!$A$3:$C$153,2,FALSE)","v":"Hackney London Borough Council"},"East of England and North-East London"]
[null,null,null,null,null,null,null,null,null,null,null,null,null,null,130849,"Halsford Park Primary School","2014-09-01","West Sussex County Council",{"$f":"VLOOKUP(R1869,'LA CPID Look up'!$A$3:$C$153,2,FALSE)","v":"West Sussex County Council"},"South-East England and South London"]
[null,null,null,null,null,null,null,null,null,null,null,null,null,null,124121,"Haltwhistle Community Campus Lower School","2013-09-01","Northumberland County Council",{"$f":"VLOOKUP(R1870,'LA CPID Look up'!$A$3:$C$153,2,FALSE)","v":"Northumberland Unitary Authority"},"North of England"]
[null,null,null,null,null,null,null,null,null,null,null,null,null,null,124122,"Haltwhistle Community Campus Upper School","2013-09-01","Northumberland County Council",{"$f":"VLOOKUP(R1871,'LA CPID Look up'!$A$3:$C$153,2,FALSE)","v":"Northumberland Unitary Authority"},"North of England"]
[null,null,null,null,null,null,null,null,null,null,null,null,null,null,119413,"Hambleton Primary Academy","2011-01-01","Lancashire County Council",{"$f":"VLOOKUP(R1872,'LA CPID Look up'!$A$3:$C$153,2,FALSE)","v":"Lancashire County Council"},"Lancashire and West Yorkshire"]
[null,null,null,null,null,null,null,null,null,null,null,null,null,null,131430,"Hambridge Community Primary School","2015-03-01","Somerset County Council",{"$f":"VLOOKUP(R1873,'LA CPID Look up'!$A$3:$C$153,2,FALSE)","v":"Somerset County Council"},"South-West England"]
[null,null,null,null,null,null,null,null,null,null,null,null,null,null,121076,"Hamford Primary Academy","2012-04-01","Essex County Council",{"$f":"VLOOKUP(R1874,'LA CPID Look up'!$A$3:$C$153,2,FALSE)","v":"Essex County Council"},"East of England and North-East London"]
[null,null,null,null,null,null,null,null,null,null,null,null,null,null,121202,"Hamilton Academy","2012-04-01","Buckinghamshire County Council",{"$f":"VLOOKUP(R1875,'LA CPID Look up'!$A$3:$C$153,2,FALSE)","v":"Buckinghamshire County Council"},"South-Central England and North-West London"]
[null,null,null,null,null,null,null,null,null,null,null,null,null,null,119223,"Hammersmith Academy","2011-09-01","Hammersmith and Fulham London Borough Council",{"$f":"VLOOKUP(R1876,'LA CPID Look up'!$A$3:$C$153,2,FALSE)","v":"Hammersmith and Fulham London Borough Council"},"South-Central England and North-West London"]
[null,null,null,null,null,null,null,null,null,null,null,null,null,null,120238,"Hammond Academy","2011-08-01","Hertfordshire County Council",{"$f":"VLOOKUP(R1877,'LA CPID Look up'!$A$3:$C$153,2,FALSE)","v":"Hertfordshire County Council"},"East of England and North-East London"]
[null,null,null,null,null,null,null,null,null,null,null,null,null,null,132418,"Hammond Community Junior School","2015-11-01","Surrey County Council",{"$f":"VLOOKUP(R1878,'LA CPID Look up'!$A$3:$C$153,2,FALSE)","v":"Surrey County Council"},"South-East England and South London"]
[null,null,null,null,null,null,null,null,null,null,null,null,null,null,122934,"Hamp Academy","2013-09-01","Somerset County Council",{"$f":"VLOOKUP(R1879,'LA CPID Look up'!$A$3:$C$153,2,FALSE)","v":"Somerset County Council"},"South-West England"]
[null,null,null,null,null,null,null,null,null,null,null,null,null,null,119170,"Hampton Academy","2010-09-01","Richmond Upon Thames Borough Council",{"$f":"VLOOKUP(R1880,'LA CPID Look up'!$A$3:$C$153,2,FALSE)","v":"Richmond upon Thames Borough Council"},"South-East England and South London"]
[null,null,null,null,null,null,null,null,null,null,null,null,null,null,130882,"Hampton College","2014-09-01","Peterborough City Council",{"$f":"VLOOKUP(R1881,'LA CPID Look up'!$A$3:$C$153,2,FALSE)","v":"Peterborough City Council"},"East of England and North-East London"]
[null,null,null,null,null,null,null,null,null,null,null,null,null,null,121204,"Hampton Primary School","2012-04-01","Kent County Council",{"$f":"VLOOKUP(R1882,'LA CPID Look up'!$A$3:$C$153,2,FALSE)","v":"Kent County Council"},"South-East England and South London"]
[null,null,null,null,null,null,null,null,null,null,null,null,null,null,124640,"Hamstead Hall Academy","2013-06-01","Birmingham City Council",{"$f":"VLOOKUP(R1883,'LA CPID Look up'!$A$3:$C$153,2,FALSE)","v":"Birmingham City Council"},"West Midlands"]
[null,null,null,null,null,null,null,null,null,null,null,null,null,null,127318,"Hamstreet Primary Academy","2013-11-01","Kent County Council",{"$f":"VLOOKUP(R1884,'LA CPID Look up'!$A$3:$C$153,2,FALSE)","v":"Kent County Council"},"South-East England and South London"]
[null,null,null,null,null,null,null,null,null,null,null,null,null,null,130349,"Hanborough Manor CofE School","2014-07-01","Oxfordshire County Council",{"$f":"VLOOKUP(R1885,'LA CPID Look up'!$A$3:$C$153,2,FALSE)","v":"Oxfordshire County Council"},"East of England and North-East London"]
[null,null,null,null,null,null,null,null,null,null,null,null,null,null,130878,"Handsworth Grange Community Sports College","2014-10-01","Sheffield City Council",{"$f":"VLOOKUP(R1886,'LA CPID Look up'!$A$3:$C$153,2,FALSE)","v":"Sheffield City Council"},"East Midlands and the Humber"]
[null,null,null,null,null,null,null,null,null,null,null,null,null,null,122707,"Handsworth Wood Girls' Academy","2012-11-01","Birmingham City Council",{"$f":"VLOOKUP(R1887,'LA CPID Look up'!$A$3:$C$153,2,FALSE)","v":"Birmingham City Council"},"West Midlands"]
[null,null,null,null,null,null,null,null,null,null,null,null,null,null,130777,"Hanham Woods Academy","2014-09-01","South Gloucestershire Council",{"$f":"VLOOKUP(R1888,'LA CPID Look up'!$A$3:$C$153,2,FALSE)","v":"South Gloucestershire Council"},"South-West England"]
[null,null,null,null,null,null,null,null,null,null,null,null,null,null,120101,"Hanley Castle High School","2011-08-01","Worcestershire County Council",{"$f":"VLOOKUP(R1889,'LA CPID Look up'!$A$3:$C$153,2,FALSE)","v":"Worcestershire County Council"},"West Midlands"]
[null,null,null,null,null,null,null,null,null,null,null,null,null,null,119753,"Hans Price Academy","2011-05-01","North Somerset District Council",{"$f":"VLOOKUP(R1890,'LA CPID Look up'!$A$3:$C$153,2,FALSE)","v":"North Somerset Council"},"South-West England"]
[null,null,null,null,null,null,null,null,null,null,null,null,null,null,120808,"Hanwell Fields Community School","2012-03-01","Oxfordshire County Council",{"$f":"VLOOKUP(R1891,'LA CPID Look up'!$A$3:$C$153,2,FALSE)","v":"Oxfordshire County Council"},"East of England and North-East London"]
[null,null,null,null,null,null,null,null,null,null,null,null,null,null,119308,"Harborne Academy","2010-09-01","Birmingham City Council",{"$f":"VLOOKUP(R1892,'LA CPID Look up'!$A$3:$C$153,2,FALSE)","v":"Birmingham City Council"},"West Midlands"]
[null,null,null,null,null,null,null,null,null,null,null,null,null,null,124738,"Harden Primary School","2013-09-01","Bradford Metropolitan District Council",{"$f":"VLOOKUP(R1893,'LA CPID Look up'!$A$3:$C$153,2,FALSE)","v":"Bradford City Council"},"Lancashire and West Yorkshire"]
[null,null,null,null,null,null,null,null,null,null,null,null,null,null,111710,"Hardenhuish School","2010-09-01","Wiltshire Council",{"$f":"VLOOKUP(R1894,'LA CPID Look up'!$A$3:$C$153,2,FALSE)","v":"Wiltshire Unitary Authority"},"South-West England"]
[null,null,null,null,null,null,null,null,null,null,null,null,null,null,127606,"Hardingstone Academy","2014-01-01","Northamptonshire County Council",{"$f":"VLOOKUP(R1895,'LA CPID Look up'!$A$3:$C$153,2,FALSE)","v":"Northamptonshire County Council"},"East of England and North-East London"]
[null,null,null,null,null,null,null,null,null,null,null,null,null,null,123944,"Hardwick Green Primary Academy","2013-06-01","Stockton-on-Tees Borough Council",{"$f":"VLOOKUP(R1896,'LA CPID Look up'!$A$3:$C$153,2,FALSE)","v":"Stockton-on-Tees Borough Council"},"North of England"]
[null,null,null,null,null,null,null,null,null,null,null,null,null,null,131526,"Hardwicke Parochial Academy","2014-12-01","Gloucestershire County Council",{"$f":"VLOOKUP(R1897,'LA CPID Look up'!$A$3:$C$153,2,FALSE)","v":"Gloucestershire County Council"},"South-West England"]
[null,null,null,null,null,null,null,null,null,null,null,null,null,null,121121,"Hareclive Academy","2012-08-01","Bristol City Council",{"$f":"VLOOKUP(R1898,'LA CPID Look up'!$A$3:$C$153,2,FALSE)","v":"Bristol City Council"},"South-West England"]
[null,null,null,null,null,null,null,null,null,null,null,null,null,null,118404,"Harefield Academy, The - Uxbridge","2005-09-01","Hillingdon London Borough Council",{"$f":"VLOOKUP(R1899,'LA CPID Look up'!$A$3:$C$153,2,FALSE)","v":"Hillingdon London Borough Council"},"East of England and North-East London"]
[null,null,null,null,null,null,null,null,null,null,null,null,null,null,124069,"Harefield Primary School - Southampton","2013-06-01","Southampton City Council",{"$f":"VLOOKUP(R1900,'LA CPID Look up'!$A$3:$C$153,2,FALSE)","v":"Southampton City Council"},"South-East England and South London"]
[null,null,null,null,null,null,null,null,null,null,null,null,null,null,121968,"Harewood College","2012-06-01","Bournemouth Borough Council",{"$f":"VLOOKUP(R1901,'LA CPID Look up'!$A$3:$C$153,2,FALSE)","v":"Bournemouth Council"},"South-West England"]
[null,null,null,null,null,null,null,null,null,null,null,null,null,null,123244,"Haringey Sixth Form Centre","2013-03-01","Haringey London Borough Council",{"$f":"VLOOKUP(R1902,'LA CPID Look up'!$A$3:$C$153,2,FALSE)","v":"Haringey London Borough Council"},"East of England and North-East London"]
[null,null,null,null,null,null,null,null,null,null,null,null,null,null,132646,"Harington School","2015-09-01","Rutland County Council",{"$f":"VLOOKUP(R1903,'LA CPID Look up'!$A$3:$C$153,2,FALSE)","v":"Rutland County Council"},"East Midlands and the Humber"]
[null,null,null,null,null,null,null,null,null,null,null,null,null,null,129562,"Harlands Primary School","2014-04-01","West Sussex County Council",{"$f":"VLOOKUP(R1904,'LA CPID Look up'!$A$3:$C$153,2,FALSE)","v":"West Sussex County Council"},"South-East England and South London"]
[null,null,null,null,null,null,null,null,null,null,null,null,null,null,122126,"Harlington Lower School","2013-04-01","Bedford Borough Council",{"$f":"VLOOKUP(R1905,'LA CPID Look up'!$A$3:$C$153,2,FALSE)","v":"Bedford Unitary Authority"},"South-Central England and North-West London"]
[null,null,null,null,null,null,null,null,null,null,null,null,null,null,119954,"Harlington Upper School","2012-03-01","Central Bedfordshire Council",{"$f":"VLOOKUP(R1906,'LA CPID Look up'!$A$3:$C$153,2,FALSE)","v":"Central Bedfordshire Unitary Authority"},"South-Central England and North-West London"]
[null,null,null,null,null,null,null,null,null,null,null,null,null,null,122539,"Harmonize Academy AP Free School","2013-04-01","Liverpool City Council",{"$f":"VLOOKUP(R1907,'LA CPID Look up'!$A$3:$C$153,2,FALSE)","v":"Liverpool City Council"},"Lancashire and West Yorkshire"]
[null,null,null,null,null,null,null,null,null,null,null,null,null,null,121986,"Harpenden Free School","2012-09-01","Hertfordshire County Council",{"$f":"VLOOKUP(R1908,'LA CPID Look up'!$A$3:$C$153,2,FALSE)","v":"Hertfordshire County Council"},"East of England and North-East London"]
[null,null,null,null,null,null,null,null,null,null,null,null,null,null,122488,"Harpfield Primary Academy","2013-05-01","Stoke-on-Trent City Council",{"$f":"VLOOKUP(R1909,'LA CPID Look up'!$A$3:$C$153,2,FALSE)","v":"Stoke-on-Trent Unitary Authority"},"West Midlands"]
[null,null,null,null,null,null,null,null,null,null,null,null,null,null,123223,"Harriers Banbury Academy","2013-02-01","Oxfordshire County Council",{"$f":"VLOOKUP(R1910,'LA CPID Look up'!$A$3:$C$153,2,FALSE)","v":"Oxfordshire County Council"},"East of England and North-East London"]
[null,null,null,null,null,null,null,null,null,null,null,null,null,null,130931,"Harris Academy Battersea","2014-09-01","Wandsworth London Borough Council",{"$f":"VLOOKUP(R1911,'LA CPID Look up'!$A$3:$C$153,2,FALSE)","v":"Wandsworth London Borough Council"},"South-East England and South London"]
[null,null,null,null,null,null,null,null,null,null,null,null,null,null,120121,"Harris Academy Beckenham","2011-09-01","Bromley London Borough Council",{"$f":"VLOOKUP(R1912,'LA CPID Look up'!$A$3:$C$153,2,FALSE)","v":"Bromley London Borough Council"},"South-East England and South London"]
[null,null,null,null,null,null,null,null,null,null,null,null,null,null,118633,"Harris Academy Bermondsey","2006-09-01","Southwark London Borough Council",{"$f":"VLOOKUP(R1913,'LA CPID Look up'!$A$3:$C$153,2,FALSE)","v":"Southwark London Borough Council"},"South-East England and South London"]
[null,null,null,null,null,null,null,null,null,null,null,null,null,null,120343,"Harris Academy Bromley","2011-09-01","Bromley London Borough Council",{"$f":"VLOOKUP(R1914,'LA CPID Look up'!$A$3:$C$153,2,FALSE)","v":"Bromley London Borough Council"},"South-East England and South London"]
[null,null,null,null,null,null,null,null,null,null,null,null,null,null,120594,"Harris Academy Chafford Hundred","2011-10-01","Thurrock Borough Council",{"$f":"VLOOKUP(R1915,'LA CPID Look up'!$A$3:$C$153,2,FALSE)","v":"Thurrock Unitary Authority"},"East of England and North-East London"]
[null,null,null,null,null,null,null,null,null,null,null,null,null,null,118665,"Harris Academy Falconwood","2008-09-03","Bexley London Borough Council",{"$f":"VLOOKUP(R1916,'LA CPID Look up'!$A$3:$C$153,2,FALSE)","v":"Bexley London Borough Council"},"South-East England and South London"]
[null,null,null,null,null,null,null,null,null,null,null,null,null,null,120964,"Harris Academy Greenwich","2012-09-01","Greenwich London Borough Council",{"$f":"VLOOKUP(R1917,'LA CPID Look up'!$A$3:$C$153,2,FALSE)","v":"Greenwich London Borough Council"},"South-East England and South London"]
[null,null,null,null,null,null,null,null,null,null,null,null,null,null,118634,"Harris Academy Merton","2006-09-01","Merton Borough Council",{"$f":"VLOOKUP(R1918,'LA CPID Look up'!$A$3:$C$153,2,FALSE)","v":"Merton Borough Council"},"South-East England and South London"]
[null,null,null,null,null,null,null,null,null,null,null,null,null,null,122637,"Harris Academy Morden","2013-03-01","Merton Borough Council",{"$f":"VLOOKUP(R1919,'LA CPID Look up'!$A$3:$C$153,2,FALSE)","v":"Merton Borough Council"},"South-East England and South London"]
[null,null,null,null,null,null,null,null,null,null,null,null,null,null,118402,"Harris Academy Peckham","2003-09-01","Southwark London Borough Council",{"$f":"VLOOKUP(R1920,'LA CPID Look up'!$A$3:$C$153,2,FALSE)","v":"Southwark London Borough Council"},"South-East England and South London"]
[null,null,null,null,null,null,null,null,null,null,null,null,null,null,118967,"Harris Academy Purley","2009-09-01","Croydon London Borough Council",{"$f":"VLOOKUP(R1921,'LA CPID Look up'!$A$3:$C$153,2,FALSE)","v":"Croydon London Borough Council"},"South-East England and South London"]
[null,null,null,null,null,null,null,null,null,null,null,null,null,null,118618,"Harris Academy South Norwood","2007-09-01","Croydon London Borough Council",{"$f":"VLOOKUP(R1922,'LA CPID Look up'!$A$3:$C$153,2,FALSE)","v":"Croydon London Borough Council"},"South-East England and South London"]
[null,null,null,null,null,null,null,null,null,null,null,null,null,null,130509,"Harris Academy Tottenham","2014-09-01","Haringey London Borough Council",{"$f":"VLOOKUP(R1923,'LA CPID Look up'!$A$3:$C$153,2,FALSE)","v":"Haringey London Borough Council"},"East of England and North-East London"]
[null,null,null,null,null,null,null,null,null,null,null,null,null,null,124212,"Harris Academy Upper Norwood","2013-09-01","Croydon London Borough Council",{"$f":"VLOOKUP(R1924,'LA CPID Look up'!$A$3:$C$153,2,FALSE)","v":"Croydon London Borough Council"},"South-East England and South London"]
[null,null,null,null,null,null,null,null,null,null,null,null,null,null,123409,"Harris Aspire Academy","2013-09-01","Croydon London Borough Council",{"$f":"VLOOKUP(R1925,'LA CPID Look up'!$A$3:$C$153,2,FALSE)","v":"Croydon London Borough Council"},"South-East England and South London"]
[null,null,null,null,null,null,null,null,null,null,null,null,null,null,118889,"Harris Boys' Academy East Dulwich","2009-09-01","Southwark London Borough Council",{"$f":"VLOOKUP(R1926,'LA CPID Look up'!$A$3:$C$153,2,FALSE)","v":"Southwark London Borough Council"},"South-East England and South London"]
[null,null,null,null,null,null,null,null,null,null,null,null,null,null,118619,"Harris City Academy Crystal Palace","2007-09-01","Croydon London Borough Council",{"$f":"VLOOKUP(R1927,'LA CPID Look up'!$A$3:$C$153,2,FALSE)","v":"Croydon London Borough Council"},"South-East England and South London"]
[null,null,null,null,null,null,null,null,null,null,null,null,null,null,124641,"Harris CofE Academy - Rugby","2014-01-01","Warwickshire County Council",{"$f":"VLOOKUP(R1928,'LA CPID Look up'!$A$3:$C$153,2,FALSE)","v":"Warwickshire County Council"},"West Midlands"]
[null,null,null,null,null,null,null,null,null,null,null,null,null,null,118635,"Harris Girls' Academy East Dulwich","2006-09-01","Southwark London Borough Council",{"$f":"VLOOKUP(R1929,'LA CPID Look up'!$A$3:$C$153,2,FALSE)","v":"Southwark London Borough Council"},"South-East England and South London"]
[null,null,null,null,null,null,null,null,null,null,null,null,null,null,130504,"Harris Invictus Academy Croydon","2014-09-01","Croydon London Borough Council",{"$f":"VLOOKUP(R1930,'LA CPID Look up'!$A$3:$C$153,2,FALSE)","v":"Croydon London Borough Council"},"South-East England and South London"]
[null,null,null,null,null,null,null,null,null,null,null,null,null,null,124236,"Harris Junior Academy Carshalton","2013-09-01","Sutton London Borough Council",{"$f":"VLOOKUP(R1931,'LA CPID Look up'!$A$3:$C$153,2,FALSE)","v":"Sutton London Borough Council"},"South-East England and South London"]
[null,null,null,null,null,null,null,null,null,null,null,null,null,null,130505,"Harris Primary Academy Beckenham","2015-09-01","Bromley London Borough Council",{"$f":"VLOOKUP(R1932,'LA CPID Look up'!$A$3:$C$153,2,FALSE)","v":"Bromley London Borough Council"},"South-East England and South London"]
[null,null,null,null,null,null,null,null,null,null,null,null,null,null,124735,"Harris Primary Academy Benson","2013-09-01","Croydon London Borough Council",{"$f":"VLOOKUP(R1933,'LA CPID Look up'!$A$3:$C$153,2,FALSE)","v":"Croydon London Borough Council"},"South-East England and South London"]
[null,null,null,null,null,null,null,null,null,null,null,null,null,null,121887,"Harris Primary Academy Chafford Hundred","2012-07-01","Thurrock Borough Council",{"$f":"VLOOKUP(R1934,'LA CPID Look up'!$A$3:$C$153,2,FALSE)","v":"Thurrock Unitary Authority"},"East of England and North-East London"]
[null,null,null,null,null,null,null,null,null,null,null,null,null,null,121949,"Harris Primary Academy Coleraine Park","2012-09-01","Haringey London Borough Council",{"$f":"VLOOKUP(R1935,'LA CPID Look up'!$A$3:$C$153,2,FALSE)","v":"Haringey London Borough Council"},"East of England and North-East London"]
[null,null,null,null,null,null,null,null,null,null,null,null,null,null,124223,"Harris Primary Academy Crystal Palace","2013-09-01","Bromley London Borough Council",{"$f":"VLOOKUP(R1936,'LA CPID Look up'!$A$3:$C$153,2,FALSE)","v":"Bromley London Borough Council"},"South-East England and South London"]
[null,null,null,null,null,null,null,null,null,null,null,null,null,null,130508,"Harris Primary Academy East Dulwich","2014-09-01","Southwark London Borough Council",{"$f":"VLOOKUP(R1937,'LA CPID Look up'!$A$3:$C$153,2,FALSE)","v":"Southwark London Borough Council"},"South-East England and South London"]
[null,null,null,null,null,null,null,null,null,null,null,null,null,null,130418,"Harris Primary Academy Haling Park","2014-09-01","Croydon London Borough Council",{"$f":"VLOOKUP(R1938,'LA CPID Look up'!$A$3:$C$153,2,FALSE)","v":"Croydon London Borough Council"},"South-East England and South London"]
[null,null,null,null,null,null,null,null,null,null,null,null,null,null,123899,"Harris Primary Academy Kenley","2013-09-01","Croydon London Borough Council",{"$f":"VLOOKUP(R1939,'LA CPID Look up'!$A$3:$C$153,2,FALSE)","v":"Croydon London Borough Council"},"South-East England and South London"]
[null,null,null,null,null,null,null,null,null,null,null,null,null,null,123018,"Harris Primary Academy Kent House","2013-09-01","Bromley London Borough Council",{"$f":"VLOOKUP(R1940,'LA CPID Look up'!$A$3:$C$153,2,FALSE)","v":"Bromley London Borough Council"},"South-East England and South London"]
[null,null,null,null,null,null,null,null,null,null,null,null,null,null,130507,"Harris Primary Academy Mayflower","2014-09-01","Thurrock Borough Council",{"$f":"VLOOKUP(R1941,'LA CPID Look up'!$A$3:$C$153,2,FALSE)","v":"Thurrock Unitary Authority"},"East of England and North-East London"]
[null,null,null,null,null,null,null,null,null,null,null,null,null,null,130046,"Harris Primary Academy Merton","2014-09-01","Merton Borough Council",{"$f":"VLOOKUP(R1942,'LA CPID Look up'!$A$3:$C$153,2,FALSE)","v":"Merton Borough Council"},"South-East England and South London"]
[null,null,null,null,null,null,null,null,null,null,null,null,null,null,120357,"Harris Primary Academy Peckham Park","2011-09-01","Southwark London Borough Council",{"$f":"VLOOKUP(R1943,'LA CPID Look up'!$A$3:$C$153,2,FALSE)","v":"Southwark London Borough Council"},"South-East England and South London"]
[null,null,null,null,null,null,null,null,null,null,null,null,null,null,122303,"Harris Primary Academy Philip Lane","2012-09-01","Haringey London Borough Council",{"$f":"VLOOKUP(R1944,'LA CPID Look up'!$A$3:$C$153,2,FALSE)","v":"Haringey London Borough Council"},"East of England and North-East London"]
[null,null,null,null,null,null,null,null,null,null,null,null,null,null,130506,"Harris Primary Academy Shortlands","2014-09-01","Bromley London Borough Council",{"$f":"VLOOKUP(R1945,'LA CPID Look up'!$A$3:$C$153,2,FALSE)","v":"Bromley London Borough Council"},"South-East England and South London"]
[null,null,null,null,null,null,null,null,null,null,null,null,null,null,122026,"Harris Primary Free School Peckham","2012-09-01","Southwark London Borough Council",{"$f":"VLOOKUP(R1946,'LA CPID Look up'!$A$3:$C$153,2,FALSE)","v":"Southwark London Borough Council"},"South-East England and South London"]
[null,null,null,null,null,null,null,null,null,null,null,null,null,null,130510,"Harris Westminster Sixth Form","2014-09-01","Westminster City Council",{"$f":"VLOOKUP(R1947,'LA CPID Look up'!$A$3:$C$153,2,FALSE)","v":"Westminster City Council"},"East of England and North-East London"]
[null,null,null,null,null,null,null,null,null,null,null,null,null,null,119497,"Harrogate Grammar School","2011-03-01","North Yorkshire County Council",{"$f":"VLOOKUP(R1948,'LA CPID Look up'!$A$3:$C$153,2,FALSE)","v":"North Yorkshire County Council"},"North of England"]
[null,null,null,null,null,null,null,null,null,null,null,null,null,null,120719,"Harrogate High School","2012-06-01","North Yorkshire County Council",{"$f":"VLOOKUP(R1949,'LA CPID Look up'!$A$3:$C$153,2,FALSE)","v":"North Yorkshire County Council"},"North of England"]
[null,null,null,null,null,null,null,null,null,null,null,null,null,null,132328,"Harrogate, Bilton Grange Community Primary School","2015-08-01","North Yorkshire County Council",{"$f":"VLOOKUP(R1950,'LA CPID Look up'!$A$3:$C$153,2,FALSE)","v":"North Yorkshire County Council"},"North of England"]
[null,null,null,null,null,null,null,null,null,null,null,null,null,null,119472,"Harrold Priory Middle School","2011-02-01","Bedford Borough Council",{"$f":"VLOOKUP(R1951,'LA CPID Look up'!$A$3:$C$153,2,FALSE)","v":"Bedford Unitary Authority"},"South-Central England and North-West London"]
[null,null,null,null,null,null,null,null,null,null,null,null,null,null,130844,"Harrow Gate Academy","2014-09-01","Stockton-on-Tees Borough Council",{"$f":"VLOOKUP(R1952,'LA CPID Look up'!$A$3:$C$153,2,FALSE)","v":"Stockton-on-Tees Borough Council"},"North of England"]
[null,null,null,null,null,null,null,null,null,null,null,null,null,null,120177,"Harrow High School","2011-08-01","Harrow London Borough Council",{"$f":"VLOOKUP(R1953,'LA CPID Look up'!$A$3:$C$153,2,FALSE)","v":"Harrow London Borough Council"},"East of England and North-East London"]
[null,null,null,null,null,null,null,null,null,null,null,null,null,null,120604,"Harrowbarrow School","2011-10-01","Cornwall Council",{"$f":"VLOOKUP(R1954,'LA CPID Look up'!$A$3:$C$153,2,FALSE)","v":"Cornwall Unitary Authority"},"South-West England"]
[null,null,null,null,null,null,null,null,null,null,null,null,null,null,122360,"Harrowby Church of England Infant School, Grantham, The","2012-07-01","Lincolnshire County Council",{"$f":"VLOOKUP(R1955,'LA CPID Look up'!$A$3:$C$153,2,FALSE)","v":"Lincolnshire County Council"},"East Midlands and the Humber"]
[null,null,null,null,null,null,null,null,null,null,null,null,null,null,119243,"Hartismere School","2010-09-01","Suffolk County Council",{"$f":"VLOOKUP(R1956,'LA CPID Look up'!$A$3:$C$153,2,FALSE)","v":"Suffolk County Council"},"East of England and North-East London"]
[null,null,null,null,null,null,null,null,null,null,null,null,null,null,121165,"Hartley Brook Primary School","2012-05-01","Sheffield City Council",{"$f":"VLOOKUP(R1957,'LA CPID Look up'!$A$3:$C$153,2,FALSE)","v":"Sheffield City Council"},"East Midlands and the Humber"]
[null,null,null,null,null,null,null,null,null,null,null,null,null,null,122281,"Hartley Primary Academy","2013-05-01","Kent County Council",{"$f":"VLOOKUP(R1958,'LA CPID Look up'!$A$3:$C$153,2,FALSE)","v":"Kent County Council"},"South-East England and South London"]
[null,null,null,null,null,null,null,null,null,null,null,null,null,null,121985,"Hartsbrook E-ACT Free School","2012-09-01","Haringey London Borough Council",{"$f":"VLOOKUP(R1959,'LA CPID Look up'!$A$3:$C$153,2,FALSE)","v":"Haringey London Borough Council"},"East of England and North-East London"]
[null,null,null,null,null,null,null,null,null,null,null,null,null,null,119564,"Hartsdown Academy","2011-04-01","Kent County Council",{"$f":"VLOOKUP(R1960,'LA CPID Look up'!$A$3:$C$153,2,FALSE)","v":"Kent County Council"},"South-East England and South London"]
[null,null,null,null,null,null,null,null,null,null,null,null,null,null,120882,"Hartshill School","2012-09-01","Warwickshire County Council",{"$f":"VLOOKUP(R1961,'LA CPID Look up'!$A$3:$C$153,2,FALSE)","v":"Warwickshire County Council"},"West Midlands"]
[null,null,null,null,null,null,null,null,null,null,null,null,null,null,120730,"Hartsholme Academy","2012-01-01","Lincolnshire County Council",{"$f":"VLOOKUP(R1962,'LA CPID Look up'!$A$3:$C$153,2,FALSE)","v":"Lincolnshire County Council"},"East Midlands and the Humber"]
[null,null,null,null,null,null,null,null,null,null,null,null,null,null,119588,"Hartwell Primary School","2011-04-01","Northamptonshire County Council",{"$f":"VLOOKUP(R1963,'LA CPID Look up'!$A$3:$C$153,2,FALSE)","v":"Northamptonshire County Council"},"East of England and North-East London"]
[null,null,null,null,null,null,null,null,null,null,null,null,null,null,122101,"Harvey Grammar School, The","2012-08-01","Kent County Council",{"$f":"VLOOKUP(R1964,'LA CPID Look up'!$A$3:$C$153,2,FALSE)","v":"Kent County Council"},"South-East England and South London"]
[null,null,null,null,null,null,null,null,null,null,null,null,null,null,121047,"Harwich and Dovercourt High School","2012-03-01","Essex County Council",{"$f":"VLOOKUP(R1965,'LA CPID Look up'!$A$3:$C$153,2,FALSE)","v":"Essex County Council"},"East of England and North-East London"]
[null,null,null,null,null,null,null,null,null,null,null,null,null,null,121072,"Harwood Meadows Primary School","2012-04-01","Bolton Metropolitan Borough Council",{"$f":"VLOOKUP(R1966,'LA CPID Look up'!$A$3:$C$153,2,FALSE)","v":"Bolton Metropolitan Borough Council"},"Lancashire and West Yorkshire"]
[null,null,null,null,null,null,null,null,null,null,null,null,null,null,120480,"Hasmonean High School","2011-10-01","Barnet London Borough Council",{"$f":"VLOOKUP(R1967,'LA CPID Look up'!$A$3:$C$153,2,FALSE)","v":"Barnet London Borough Council"},"South-Central England and North-West London"]
[null,null,null,null,null,null,null,null,null,null,null,null,null,null,120449,"Hassenbrook Academy","2011-09-01","Thurrock Borough Council",{"$f":"VLOOKUP(R1968,'LA CPID Look up'!$A$3:$C$153,2,FALSE)","v":"Thurrock Unitary Authority"},"East of England and North-East London"]
[null,null,null,null,null,null,null,null,null,null,null,null,null,null,122310,"Hasting Hill Academy","2012-12-01","Sunderland City Council",{"$f":"VLOOKUP(R1969,'LA CPID Look up'!$A$3:$C$153,2,FALSE)","v":"Sunderland City Metropolitan Borough Council"},"North of England"]
[null,null,null,null,null,null,null,null,null,null,null,null,null,null,119430,"Hastings Academy, The","2011-09-01","East Sussex County Council",{"$f":"VLOOKUP(R1970,'LA CPID Look up'!$A$3:$C$153,2,FALSE)","v":"East Sussex County Council"},"South-East England and South London"]
[null,null,null,null,null,null,null,null,null,null,null,null,null,null,124626,"Hastings High School","2013-09-01","Leicestershire County Council",{"$f":"VLOOKUP(R1971,'LA CPID Look up'!$A$3:$C$153,2,FALSE)","v":"Leicestershire County Council"},"East Midlands and the Humber"]
[null,null,null,null,null,null,null,null,null,null,null,null,null,null,131984,"Hastingsbury Business & Enterprise College","2015-11-01","Bedford Borough Council",{"$f":"VLOOKUP(R1972,'LA CPID Look up'!$A$3:$C$153,2,FALSE)","v":"Bedford Unitary Authority"},"South-Central England and North-West London"]
[null,null,null,null,null,null,null,null,null,null,null,null,null,null,120204,"Hatch End High School","2011-08-01","Harrow London Borough Council",{"$f":"VLOOKUP(R1973,'LA CPID Look up'!$A$3:$C$153,2,FALSE)","v":"Harrow London Borough Council"},"East of England and North-East London"]
[null,null,null,null,null,null,null,null,null,null,null,null,null,null,121147,"Hatfield Academy","2012-05-01","Sheffield City Council",{"$f":"VLOOKUP(R1974,'LA CPID Look up'!$A$3:$C$153,2,FALSE)","v":"Sheffield City Council"},"East Midlands and the Humber"]
[null,null,null,null,null,null,null,null,null,null,null,null,null,null,121988,"Hatfield Community Free School","2012-09-01","Hertfordshire County Council",{"$f":"VLOOKUP(R1975,'LA CPID Look up'!$A$3:$C$153,2,FALSE)","v":"Hertfordshire County Council"},"East of England and North-East London"]
[null,null,null,null,null,null,null,null,null,null,null,null,null,null,131520,"Hatfield Heath Community Primary School","2015-02-01","Essex County Council",{"$f":"VLOOKUP(R1976,'LA CPID Look up'!$A$3:$C$153,2,FALSE)","v":"Essex County Council"},"East of England and North-East London"]
[null,null,null,null,null,null,null,null,null,null,null,null,null,null,120894,"Hatfield Woodhouse Primary School","2012-04-01","Doncaster Metropolitan Borough Council",{"$f":"VLOOKUP(R1977,'LA CPID Look up'!$A$3:$C$153,2,FALSE)","v":"Doncaster Metropolitan Borough Council"},"East Midlands and the Humber"]
[null,null,null,null,null,null,null,null,null,null,null,null,null,null,124320,"Hathaway Academy, The","2013-07-01","Thurrock Borough Council",{"$f":"VLOOKUP(R1978,'LA CPID Look up'!$A$3:$C$153,2,FALSE)","v":"Thurrock Unitary Authority"},"East of England and North-East London"]
[null,null,null,null,null,null,null,null,null,null,null,null,null,null,120039,"Hathershaw College, The","2011-08-01","Oldham Metropolitan Borough Council",{"$f":"VLOOKUP(R1979,'LA CPID Look up'!$A$3:$C$153,2,FALSE)","v":"Oldham Metropolitan Borough Council"},"Lancashire and West Yorkshire"]
[null,null,null,null,null,null,null,null,null,null,null,null,null,null,122568,"Hatton Park Primary School","2012-12-01","Cambridgeshire County Council",{"$f":"VLOOKUP(R1980,'LA CPID Look up'!$A$3:$C$153,2,FALSE)","v":"Cambridgeshire County Council"},"East of England and North-East London"]
[null,null,null,null,null,null,null,null,null,null,null,null,null,null,120585,"Haughton Academy","2012-04-01","Darlington Borough Council",{"$f":"VLOOKUP(R1981,'LA CPID Look up'!$A$3:$C$153,2,FALSE)","v":"Darlington Borough Council"},"North of England"]
[null,null,null,null,null,null,null,null,null,null,null,null,null,null,131549,"Haughton St Giles CofE Primary Academy","2015-04-01","Staffordshire County Council",{"$f":"VLOOKUP(R1982,'LA CPID Look up'!$A$3:$C$153,2,FALSE)","v":"Staffordshire County Council"},"West Midlands"]
[null,null,null,null,null,null,null,null,null,null,null,null,null,null,119228,"Havant Academy","2010-09-01","Hampshire County Council",{"$f":"VLOOKUP(R1983,'LA CPID Look up'!$A$3:$C$153,2,FALSE)","v":"Hampshire County Council"},"South-East England and South London"]
[null,null,null,null,null,null,null,null,null,null,null,null,null,null,123284,"Haveley Hey Community School","2013-04-01","Manchester City Council",{"$f":"VLOOKUP(R1984,'LA CPID Look up'!$A$3:$C$153,2,FALSE)","v":"Manchester City Council"},"Lancashire and West Yorkshire"]
[null,null,null,null,null,null,null,null,null,null,null,null,null,null,118620,"Havelock Academy","2007-09-01","North East Lincolnshire Council",{"$f":"VLOOKUP(R1985,'LA CPID Look up'!$A$3:$C$153,2,FALSE)","v":"North East Lincolnshire Council"},"East Midlands and the Humber"]
[null,null,null,null,null,null,null,null,null,null,null,null,null,null,124528,"Havelock Infant School","2013-09-01","Northamptonshire County Council",{"$f":"VLOOKUP(R1986,'LA CPID Look up'!$A$3:$C$153,2,FALSE)","v":"Northamptonshire County Council"},"East of England and North-East London"]
[null,null,null,null,null,null,null,null,null,null,null,null,null,null,126427,"Havelock Junior School","2013-09-01","Northamptonshire County Council",{"$f":"VLOOKUP(R1987,'LA CPID Look up'!$A$3:$C$153,2,FALSE)","v":"Northamptonshire County Council"},"East of England and North-East London"]
[null,null,null,null,null,null,null,null,null,null,null,null,null,null,121172,"Haven High Academy","2012-09-01","Lincolnshire County Council",{"$f":"VLOOKUP(R1988,'LA CPID Look up'!$A$3:$C$153,2,FALSE)","v":"Lincolnshire County Council"},"East Midlands and the Humber"]
[null,null,null,null,null,null,null,null,null,null,null,null,null,null,123191,"Havercroft Academy","2013-09-01","Wakefield Council",{"$f":"VLOOKUP(R1989,'LA CPID Look up'!$A$3:$C$153,2,FALSE)","v":"Wakefield City Council"},"Lancashire and West Yorkshire"]
[null,null,null,null,null,null,null,null,null,null,null,null,null,null,130316,"Havergal CofE (C) Primary School","2014-07-01","Staffordshire County Council",{"$f":"VLOOKUP(R1990,'LA CPID Look up'!$A$3:$C$153,2,FALSE)","v":"Staffordshire County Council"},"West Midlands"]
[null,null,null,null,null,null,null,null,null,null,null,null,null,null,131206,"Hawes Down Infant School","2015-04-01","Bromley London Borough Council",{"$f":"VLOOKUP(R1991,'LA CPID Look up'!$A$3:$C$153,2,FALSE)","v":"Bromley London Borough Council"},"South-East England and South London"]
[null,null,null,null,null,null,null,null,null,null,null,null,null,null,131205,"Hawes Down Junior School","2015-04-01","Bromley London Borough Council",{"$f":"VLOOKUP(R1992,'LA CPID Look up'!$A$3:$C$153,2,FALSE)","v":"Bromley London Borough Council"},"South-East England and South London"]
[null,null,null,null,null,null,null,null,null,null,null,null,null,null,122117,"Hawes Side Academy","2012-08-01","Blackpool Council",{"$f":"VLOOKUP(R1993,'LA CPID Look up'!$A$3:$C$153,2,FALSE)","v":"Blackpool Unitary Authority"},"Lancashire and West Yorkshire"]
[null,null,null,null,null,null,null,null,null,null,null,null,null,null,122875,"Hawkesley Church Primary Academy","2013-06-01","Birmingham City Council",{"$f":"VLOOKUP(R1994,'LA CPID Look up'!$A$3:$C$153,2,FALSE)","v":"Birmingham City Council"},"West Midlands"]
[null,null,null,null,null,null,null,null,null,null,null,null,null,null,121935,"Hawkley Hall High School","2012-05-01","Wigan Metropolitan Borough Council",{"$f":"VLOOKUP(R1995,'LA CPID Look up'!$A$3:$C$153,2,FALSE)","v":"Wigan Metropolitan Borough Council"},"Lancashire and West Yorkshire"]
[null,null,null,null,null,null,null,null,null,null,null,null,null,null,121969,"Hawthorne's Free School, The","2012-09-01","Sefton Metropolitan Borough Council",{"$f":"VLOOKUP(R1996,'LA CPID Look up'!$A$3:$C$153,2,FALSE)","v":"Sefton Metropolitan Borough Council"},"Lancashire and West Yorkshire"]
[null,null,null,null,null,null,null,null,null,null,null,null,null,null,124301,"Hawthorns School","2013-09-01","Tameside Metropolitan Borough Council",{"$f":"VLOOKUP(R1997,'LA CPID Look up'!$A$3:$C$153,2,FALSE)","v":"Tameside Metropolitan Borough Council"},"Lancashire and West Yorkshire"]
[null,null,null,null,null,null,null,null,null,null,null,null,null,null,124733,"Haxby Road Primary Academy","2014-02-01","City of York Council",{"$f":"VLOOKUP(R1998,'LA CPID Look up'!$A$3:$C$153,2,FALSE)","v":"City of York Council"},"East Midlands and the Humber"]
[null,null,null,null,null,null,null,null,null,null,null,null,null,null,119898,"Haybridge High School and Sixth Form","2011-07-01","Worcestershire County Council",{"$f":"VLOOKUP(R1999,'LA CPID Look up'!$A$3:$C$153,2,FALSE)","v":"Worcestershire County Council"},"West Midlands"]
[null,null,null,null,null,null,null,null,null,null,null,null,null,null,133700,"Haybrook College","2016-01-14","Slough Borough Council",{"$f":"VLOOKUP(R2000,'LA CPID Look up'!$A$3:$C$153,2,FALSE)","v":"Slough Borough Council"},"East of England and North-East London"]
[null,null,null,null,null,null,null,null,null,null,null,null,null,null,124756,"Haybrook College - Closed","2013-10-01","Slough Borough Council",{"$f":"VLOOKUP(R2001,'LA CPID Look up'!$A$3:$C$153,2,FALSE)","v":"Slough Borough Council"},"East of England and North-East London"]
[null,null,null,null,null,null,null,null,null,null,null,null,null,null,124388,"Haybrook College PRU","2013-10-01","Slough Borough Council",{"$f":"VLOOKUP(R2002,'LA CPID Look up'!$A$3:$C$153,2,FALSE)","v":"Slough Borough Council"},"East of England and North-East London"]
[null,null,null,null,null,null,null,null,null,null,null,null,null,null,130850,"Haydon Wick Primary School","2014-09-01","Swindon Borough Council",{"$f":"VLOOKUP(R2004,'LA CPID Look up'!$A$3:$C$153,2,FALSE)","v":"Swindon Unitary Authority"},"South-West England"]
[null,null,null,null,null,null,null,null,null,null,null,null,null,null,119920,"Hayes Primary School","2011-07-01","Bromley London Borough Council",{"$f":"VLOOKUP(R2005,'LA CPID Look up'!$A$3:$C$153,2,FALSE)","v":"Bromley London Borough Council"},"South-East England and South London"]
[null,null,null,null,null,null,null,null,null,null,null,null,null,null,119677,"Hayes School - Paignton","2011-04-01","Torbay Council",{"$f":"VLOOKUP(R2007,'LA CPID Look up'!$A$3:$C$153,2,FALSE)","v":"Torbay Council"},"South-West England"]
[null,null,null,null,null,null,null,null,null,null,null,null,null,null,119302,"Hayesbrook School, The","2010-12-01","Kent County Council",{"$f":"VLOOKUP(R2008,'LA CPID Look up'!$A$3:$C$153,2,FALSE)","v":"Kent County Council"},"South-East England and South London"]
[null,null,null,null,null,null,null,null,null,null,null,null,null,null,119966,"Hayesfield Girls School","2011-08-01","Bath & North East Somerset Council",{"$f":"VLOOKUP(R2010,'LA CPID Look up'!$A$3:$C$153,2,FALSE)","v":"Bath & North East Somerset Council"},"South-West England"]
[null,null,null,null,null,null,null,null,null,null,null,null,null,null,131454,"Hayeswood First School","2015-03-01","Dorset County Council",{"$f":"VLOOKUP(R2011,'LA CPID Look up'!$A$3:$C$153,2,FALSE)","v":"Dorset County Council"},"South-West England"]
[null,null,null,null,null,null,null,null,null,null,null,null,null,null,119917,"Haygrove School","2011-07-01","Somerset County Council",{"$f":"VLOOKUP(R2013,'LA CPID Look up'!$A$3:$C$153,2,FALSE)","v":"Somerset County Council"},"South-West England"]
[null,null,null,null,null,null,null,null,null,null,null,null,null,null,130855,"Haymoor Junior School","2015-04-01","Poole Borough Council",{"$f":"VLOOKUP(R2014,'LA CPID Look up'!$A$3:$C$153,2,FALSE)","v":"Poole (Borough of)"},"South-West England"]
[null,null,null,null,null,null,null,null,null,null,null,null,null,null,132275,"Hazel Leys Academy","2015-09-01","Northamptonshire County Council",{"$f":"VLOOKUP(R2017,'LA CPID Look up'!$A$3:$C$153,2,FALSE)","v":"Northamptonshire County Council"},"East of England and North-East London"]
[null,null,null,null,null,null,null,null,null,null,null,null,null,null,122344,"Hazelbeck Special School","2013-08-01","Bradford Metropolitan District Council",{"$f":"VLOOKUP(R2018,'LA CPID Look up'!$A$3:$C$153,2,FALSE)","v":"Bradford City Council"},"Lancashire and West Yorkshire"]
[null,null,null,null,null,null,null,null,null,null,null,null,null,null,120263,"Hazelwick School","2011-08-01","West Sussex County Council",{"$f":"VLOOKUP(R2020,'LA CPID Look up'!$A$3:$C$153,2,FALSE)","v":"West Sussex County Council"},"South-East England and South London"]
[null,null,null,null,null,null,null,null,null,null,null,null,null,null,122818,"Hazelwood Academy","2013-06-01","Swindon Borough Council",{"$f":"VLOOKUP(R2021,'LA CPID Look up'!$A$3:$C$153,2,FALSE)","v":"Swindon Unitary Authority"},"South-West England"]
[null,null,null,null,null,null,null,null,null,null,null,null,null,null,130854,"Healing Primary Academy","2014-09-01","North East Lincolnshire Council",{"$f":"VLOOKUP(R2023,'LA CPID Look up'!$A$3:$C$153,2,FALSE)","v":"North East Lincolnshire Council"},"East Midlands and the Humber"]
[null,null,null,null,null,null,null,null,null,null,null,null,null,null,119265,"Healing Science Academy","2010-09-01","North East Lincolnshire Council",{"$f":"VLOOKUP(R2024,'LA CPID Look up'!$A$3:$C$153,2,FALSE)","v":"North East Lincolnshire Council"},"East Midlands and the Humber"]
[null,null,null,null,null,null,null,null,null,null,null,null,null,null,120578,"Heanor Gate Science College","2011-11-01","Derbyshire County Council",{"$f":"VLOOKUP(R2026,'LA CPID Look up'!$A$3:$C$153,2,FALSE)","v":"Derbyshire County Council"},"East Midlands and the Humber"]
[null,null,null,null,null,null,null,null,null,null,null,null,null,null,119909,"Heart of England School","2011-07-01","Solihull Metropolitan Borough Council",{"$f":"VLOOKUP(R2027,'LA CPID Look up'!$A$3:$C$153,2,FALSE)","v":"Solihull Metropolitan Borough Council"},"West Midlands"]
[null,null,null,null,null,null,null,null,null,null,null,null,null,null,124247,"Heartlands High School - Haringey","2013-05-01","Haringey London Borough Council",{"$f":"VLOOKUP(R2029,'LA CPID Look up'!$A$3:$C$153,2,FALSE)","v":"Haringey London Borough Council"},"East of England and North-East London"]
[null,null,null,null,null,null,null,null,null,null,null,null,null,null,122097,"Heartsease Primary Academy","2013-04-01","Norfolk County Council",{"$f":"VLOOKUP(R2030,'LA CPID Look up'!$A$3:$C$153,2,FALSE)","v":"Norfolk County Council"},"East of England and North-East London"]
[null,null,null,null,null,null,null,null,null,null,null,null,null,null,120754,"Heath Park","2011-12-01","Wolverhampton City Council",{"$f":"VLOOKUP(R2032,'LA CPID Look up'!$A$3:$C$153,2,FALSE)","v":"Wolverhampton City Council"},"West Midlands"]
[null,null,null,null,null,null,null,null,null,null,null,null,null,null,119790,"Heath School, The","2011-06-01","Halton Borough Council",{"$f":"VLOOKUP(R2033,'LA CPID Look up'!$A$3:$C$153,2,FALSE)","v":"Halton Borough Council"},"Lancashire and West Yorkshire"]
[null,null,null,null,null,null,null,null,null,null,null,null,null,null,123110,"Heather Garth Primary School Academy","2013-06-01","Barnsley Metropolitan Borough Council",{"$f":"VLOOKUP(R2035,'LA CPID Look up'!$A$3:$C$153,2,FALSE)","v":"Barnsley Metropolitan Borough Council"},"East Midlands and the Humber"]
[null,null,null,null,null,null,null,null,null,null,null,null,null,null,129869,"Heathfield Academy - Croydon","2015-09-01","Croydon London Borough Council",{"$f":"VLOOKUP(R2036,'LA CPID Look up'!$A$3:$C$153,2,FALSE)","v":"Croydon London Borough Council"},"South-East England and South London"]
[null,null,null,null,null,null,null,null,null,null,null,null,null,null,132309,"Heathfield Primary School - Birmingham","2015-09-01","Birmingham City Council",{"$f":"VLOOKUP(R2038,'LA CPID Look up'!$A$3:$C$153,2,FALSE)","v":"Birmingham City Council"},"West Midlands"]
[null,null,null,null,null,null,null,null,null,null,null,null,null,null,121941,"Heathfield Primary School - Darlington","2012-06-01","Darlington Borough Council",{"$f":"VLOOKUP(R2039,'LA CPID Look up'!$A$3:$C$153,2,FALSE)","v":"Darlington Borough Council"},"North of England"]
[null,null,null,null,null,null,null,null,null,null,null,null,null,null,130155,"Heathlands Junior and Infant School (NC)","2014-06-01","Birmingham City Council",{"$f":"VLOOKUP(R2041,'LA CPID Look up'!$A$3:$C$153,2,FALSE)","v":"Birmingham City Council"},"West Midlands"]
[null,null,null,null,null,null,null,null,null,null,null,null,null,null,131867,"Heathlands Primary Academy","2015-07-01","Bournemouth Borough Council",{"$f":"VLOOKUP(R2042,'LA CPID Look up'!$A$3:$C$153,2,FALSE)","v":"Bournemouth Council"},"South-West England"]
[null,null,null,null,null,null,null,null,null,null,null,null,null,null,131401,"Heaton Avenue Primary School","2015-04-01","Kirklees Metropolitan Council",{"$f":"VLOOKUP(R2045,'LA CPID Look up'!$A$3:$C$153,2,FALSE)","v":"Kirklees Metropolitan Council"},"Lancashire and West Yorkshire"]
[null,null,null,null,null,null,null,null,null,null,null,null,null,null,119267,"Heckmondwike Grammar School","2010-09-01","Kirklees Metropolitan Council",{"$f":"VLOOKUP(R2046,'LA CPID Look up'!$A$3:$C$153,2,FALSE)","v":"Kirklees Metropolitan Council"},"Lancashire and West Yorkshire"]
[null,null,null,null,null,null,null,null,null,null,null,null,null,null,120022,"Heighington Church of England Primary School","2011-08-01","Darlington Borough Council",{"$f":"VLOOKUP(R2048,'LA CPID Look up'!$A$3:$C$153,2,FALSE)","v":"Darlington Borough Council"},"North of England"]
[null,null,null,null,null,null,null,null,null,null,null,null,null,null,120201,"Heighington Millfield Primary Academy","2011-08-01","Lincolnshire County Council",{"$f":"VLOOKUP(R2049,'LA CPID Look up'!$A$3:$C$153,2,FALSE)","v":"Lincolnshire County Council"},"East Midlands and the Humber"]
[null,null,null,null,null,null,null,null,null,null,null,null,null,null,130547,"Heights Primary School, The","2014-09-01","Reading Borough Council",{"$f":"VLOOKUP(R2051,'LA CPID Look up'!$A$3:$C$153,2,FALSE)","v":"Reading Borough Council"},"East of England and North-East London"]
[null,null,null,null,null,null,null,null,null,null,null,null,null,null,121057,"Helena Romanes School and Sixth Form Centre","2012-04-01","Essex County Council",{"$f":"VLOOKUP(R2052,'LA CPID Look up'!$A$3:$C$153,2,FALSE)","v":"Essex County Council"},"East of England and North-East London"]
[null,null,null,null,null,null,null,null,null,null,null,null,null,null,120916,"Hellesdon High School","2012-04-01","Norfolk County Council",{"$f":"VLOOKUP(R2054,'LA CPID Look up'!$A$3:$C$153,2,FALSE)","v":"Norfolk County Council"},"East of England and North-East London"]
[null,null,null,null,null,null,null,null,null,null,null,null,null,null,125017,"Hemlington Hall Academy","2014-01-01","Middlesbrough Council",{"$f":"VLOOKUP(R2055,'LA CPID Look up'!$A$3:$C$153,2,FALSE)","v":"Middlesbrough Council"},"North of England"]
[null,null,null,null,null,null,null,null,null,null,null,null,null,null,120543,"Hemyock Primary School","2011-11-01","Devon County Council",{"$f":"VLOOKUP(R2057,'LA CPID Look up'!$A$3:$C$153,2,FALSE)","v":"Devon County Council"},"South-West England"]
[null,null,null,null,null,null,null,null,null,null,null,null,null,null,122813,"Henbury Court Primary Academy","2013-04-01","Bristol City Council",{"$f":"VLOOKUP(R2058,'LA CPID Look up'!$A$3:$C$153,2,FALSE)","v":"Bristol City Council"},"South-West England"]
[null,null,null,null,null,null,null,null,null,null,null,null,null,null,120517,"Hendon School","2011-11-01","Barnet London Borough Council",{"$f":"VLOOKUP(R2060,'LA CPID Look up'!$A$3:$C$153,2,FALSE)","v":"Barnet London Borough Council"},"South-Central England and North-West London"]
[null,null,null,null,null,null,null,null,null,null,null,null,null,null,125250,"Hendreds Church of England School, The","2013-12-01","Oxfordshire County Council",{"$f":"VLOOKUP(R2061,'LA CPID Look up'!$A$3:$C$153,2,FALSE)","v":"Oxfordshire County Council"},"East of England and North-East London"]
[null,null,null,null,null,null,null,null,null,null,null,null,null,null,119991,"Henley In Arden School","2011-08-01","Warwickshire County Council",{"$f":"VLOOKUP(R2063,'LA CPID Look up'!$A$3:$C$153,2,FALSE)","v":"Warwickshire County Council"},"West Midlands"]
[null,null,null,null,null,null,null,null,null,null,null,null,null,null,123059,"Henley-In-Arden CofE Primary School","2013-09-01","Warwickshire County Council",{"$f":"VLOOKUP(R2064,'LA CPID Look up'!$A$3:$C$153,2,FALSE)","v":"Warwickshire County Council"},"West Midlands"]
[null,null,null,null,null,null,null,null,null,null,null,null,null,null,120690,"Henrietta Barnett School, The","2012-04-01","Barnet London Borough Council",{"$f":"VLOOKUP(R2066,'LA CPID Look up'!$A$3:$C$153,2,FALSE)","v":"Barnet London Borough Council"},"South-Central England and North-West London"]
[null,null,null,null,null,null,null,null,null,null,null,null,null,null,122060,"Henry Box School, The","2012-06-01","Oxfordshire County Council",{"$f":"VLOOKUP(R2067,'LA CPID Look up'!$A$3:$C$153,2,FALSE)","v":"Oxfordshire County Council"},"East of England and North-East London"]
[null,null,null,null,null,null,null,null,null,null,null,null,null,null,127508,"Henry Hinde Junior School","2014-01-01","Warwickshire County Council",{"$f":"VLOOKUP(R2069,'LA CPID Look up'!$A$3:$C$153,2,FALSE)","v":"Warwickshire County Council"},"West Midlands"]
[null,null,null,null,null,null,null,null,null,null,null,null,null,null,132350,"Henry Moore Primary School","2015-11-01","Essex County Council",{"$f":"VLOOKUP(R2070,'LA CPID Look up'!$A$3:$C$153,2,FALSE)","v":"Essex County Council"},"East of England and North-East London"]
[null,null,null,null,null,null,null,null,null,null,null,null,null,null,119665,"Hermitage Academy, The - Chester-le-Street","2011-04-01","Durham County Council",{"$f":"VLOOKUP(R2072,'LA CPID Look up'!$A$3:$C$153,2,FALSE)","v":"County Durham Unitary Authority"},"North of England"]
[null,null,null,null,null,null,null,null,null,null,null,null,null,null,127573,"Hermitage Primary School - Crewe","2014-04-01","Cheshire East Council",{"$f":"VLOOKUP(R2073,'LA CPID Look up'!$A$3:$C$153,2,FALSE)","v":"Cheshire East Unitary Authority"},"West Midlands"]
[null,null,null,null,null,null,null,null,null,null,null,null,null,null,123308,"Heron Hall Academy","2013-09-01","Enfield London Borough Council",{"$f":"VLOOKUP(R2076,'LA CPID Look up'!$A$3:$C$153,2,FALSE)","v":"Enfield London Borough Council"},"South-Central England and North-West London"]
[null,null,null,null,null,null,null,null,null,null,null,null,null,null,122019,"Heron Park Primary Academy","2012-09-01","East Sussex County Council",{"$f":"VLOOKUP(R2077,'LA CPID Look up'!$A$3:$C$153,2,FALSE)","v":"East Sussex County Council"},"South-East England and South London"]
[null,null,null,null,null,null,null,null,null,null,null,null,null,null,123231,"Heronsgate School","2013-04-01","Milton Keynes Council",{"$f":"VLOOKUP(R2079,'LA CPID Look up'!$A$3:$C$153,2,FALSE)","v":"Milton Keynes Council"},"East of England and North-East London"]
[null,null,null,null,null,null,null,null,null,null,null,null,null,null,131345,"Heronswood Primary School","2014-10-01","Worcestershire County Council",{"$f":"VLOOKUP(R2080,'LA CPID Look up'!$A$3:$C$153,2,FALSE)","v":"Worcestershire County Council"},"West Midlands"]
[null,null,null,null,null,null,null,null,null,null,null,null,null,null,131667,"Herringthorpe Junior School","2015-04-01","Rotherham Metropolitan Borough Council",{"$f":"VLOOKUP(R2082,'LA CPID Look up'!$A$3:$C$153,2,FALSE)","v":"Rotherham Borough Council"},"East Midlands and the Humber"]
[null,null,null,null,null,null,null,null,null,null,null,null,null,null,120995,"Herschel Grammar School","2012-02-01","Slough Borough Council",{"$f":"VLOOKUP(R2083,'LA CPID Look up'!$A$3:$C$153,2,FALSE)","v":"Slough Borough Council"},"East of England and North-East London"]
[null,null,null,null,null,null,null,null,null,null,null,null,null,null,125220,"Hertfordshire & Essex High School and Science College, The","2014-04-01","Hertfordshire County Council",{"$f":"VLOOKUP(R2085,'LA CPID Look up'!$A$3:$C$153,2,FALSE)","v":"Hertfordshire County Council"},"East of England and North-East London"]
[null,null,null,null,null,null,null,null,null,null,null,null,null,null,120802,"Hertswood Academy","2012-09-01","Hertfordshire County Council",{"$f":"VLOOKUP(R2086,'LA CPID Look up'!$A$3:$C$153,2,FALSE)","v":"Hertfordshire County Council"},"East of England and North-East London"]
[null,null,null,null,null,null,null,null,null,null,null,null,null,null,120307,"Hessle Penshurst Primary School","2011-08-17","East Riding of Yorkshire Council",{"$f":"VLOOKUP(R2088,'LA CPID Look up'!$A$3:$C$153,2,FALSE)","v":"East Riding of Yorkshire Council"},"East Midlands and the Humber"]
[null,null,null,null,null,null,null,null,null,null,null,null,null,null,121146,"Heston Community School","2012-11-01","Hounslow London Borough Council",{"$f":"VLOOKUP(R2089,'LA CPID Look up'!$A$3:$C$153,2,FALSE)","v":"Hounslow London Borough Council"},"East of England and North-East London"]
[null,null,null,null,null,null,null,null,null,null,null,null,null,null,131814,"Heversham St Peter's CofE Primary School","2015-06-01","Cumbria County Council",{"$f":"VLOOKUP(R2091,'LA CPID Look up'!$A$3:$C$153,2,FALSE)","v":"Cumbria County Council"},"North of England"]
[null,null,null,null,null,null,null,null,null,null,null,null,null,null,120078,"Hewens College","2011-08-01","Hillingdon London Borough Council",{"$f":"VLOOKUP(R2092,'LA CPID Look up'!$A$3:$C$153,2,FALSE)","v":"Hillingdon London Borough Council"},"East of England and North-East London"]
[null,null,null,null,null,null,null,null,null,null,null,null,null,null,132992,"Hewett Academy, The","2015-09-01","Norfolk County Council",{"$f":"VLOOKUP(R2094,'LA CPID Look up'!$A$3:$C$153,2,FALSE)","v":"Norfolk County Council"},"East of England and North-East London"]
[null,null,null,null,null,null,null,null,null,null,null,null,null,null,123102,"Heybridge Primary School","2012-12-01","Essex County Council",{"$f":"VLOOKUP(R2095,'LA CPID Look up'!$A$3:$C$153,2,FALSE)","v":"Essex County Council"},"East of England and North-East London"]
[null,null,null,null,null,null,null,null,null,null,null,null,null,null,131358,"Heygreen Community Primary School","2015-12-01","Liverpool City Council",{"$f":"VLOOKUP(R2097,'LA CPID Look up'!$A$3:$C$153,2,FALSE)","v":"Liverpool City Council"},"Lancashire and West Yorkshire"]
[null,null,null,null,null,null,null,null,null,null,null,null,null,null,121052,"Hibaldstow Academy","2012-04-01","North Lincolnshire Council",{"$f":"VLOOKUP(R2098,'LA CPID Look up'!$A$3:$C$153,2,FALSE)","v":"North Lincolnshire Council"},"East Midlands and the Humber"]
[null,null,null,null,null,null,null,null,null,null,null,null,null,null,121054,"High Halstow Primary School","2012-04-01","Medway Council",{"$f":"VLOOKUP(R2100,'LA CPID Look up'!$A$3:$C$153,2,FALSE)","v":"Medway Towns Unitary Authority (The)"},"South-East England and South London"]
[null,null,null,null,null,null,null,null,null,null,null,null,null,null,130925,"High Hazels Junior School","2015-01-01","Sheffield City Council",{"$f":"VLOOKUP(R2101,'LA CPID Look up'!$A$3:$C$153,2,FALSE)","v":"Sheffield City Council"},"East Midlands and the Humber"]
[null,null,null,null,null,null,null,null,null,null,null,null,null,null,119682,"High School for Girls","2011-04-01","Gloucestershire County Council",{"$f":"VLOOKUP(R2104,'LA CPID Look up'!$A$3:$C$153,2,FALSE)","v":"Gloucestershire County Council"},"South-West England"]
[null,null,null,null,null,null,null,null,null,null,null,null,null,null,132023,"High View Primary Learning Centre Academy","2015-10-01","Barnsley Metropolitan Borough Council",{"$f":"VLOOKUP(R2105,'LA CPID Look up'!$A$3:$C$153,2,FALSE)","v":"Barnsley Metropolitan Borough Council"},"East Midlands and the Humber"]
[null,null,null,null,null,null,null,null,null,null,null,null,null,null,120853,"Higham Lane School","2012-01-01","Warwickshire County Council",{"$f":"VLOOKUP(R2107,'LA CPID Look up'!$A$3:$C$153,2,FALSE)","v":"Warwickshire County Council"},"West Midlands"]
[null,null,null,null,null,null,null,null,null,null,null,null,null,null,130741,"Higham-on-the-Hill Church of England Primary School","2014-10-01","Leicestershire County Council",{"$f":"VLOOKUP(R2108,'LA CPID Look up'!$A$3:$C$153,2,FALSE)","v":"Leicestershire County Council"},"East Midlands and the Humber"]
[null,null,null,null,null,null,null,null,null,null,null,null,null,null,125182,"Highbank Primary and Nursery School","2013-10-01","Nottingham City Council",{"$f":"VLOOKUP(R2110,'LA CPID Look up'!$A$3:$C$153,2,FALSE)","v":"Nottingham City Council"},"East Midlands and the Humber"]
[null,null,null,null,null,null,null,null,null,null,null,null,null,null,130367,"Highcliffe Primary School and Community Centre","2014-04-01","Leicestershire County Council",{"$f":"VLOOKUP(R2111,'LA CPID Look up'!$A$3:$C$153,2,FALSE)","v":"Leicestershire County Council"},"East Midlands and the Humber"]
[null,null,null,null,null,null,null,null,null,null,null,null,null,null,119858,"Highcrest Academy","2011-07-01","Buckinghamshire County Council",{"$f":"VLOOKUP(R2113,'LA CPID Look up'!$A$3:$C$153,2,FALSE)","v":"Buckinghamshire County Council"},"South-Central England and North-West London"]
[null,null,null,null,null,null,null,null,null,null,null,null,null,null,119364,"Highdown School and Sixth Form Centre","2010-11-01","Reading Borough Council",{"$f":"VLOOKUP(R2114,'LA CPID Look up'!$A$3:$C$153,2,FALSE)","v":"Reading Borough Council"},"East of England and North-East London"]
[null,null,null,null,null,null,null,null,null,null,null,null,null,null,125204,"Highfield Junior School - Bromley","2013-10-01","Bromley London Borough Council",{"$f":"VLOOKUP(R2116,'LA CPID Look up'!$A$3:$C$153,2,FALSE)","v":"Bromley London Borough Council"},"South-East England and South London"]
[null,null,null,null,null,null,null,null,null,null,null,null,null,null,131544,"Highfield South Farnham Primary School","2015-02-01","Surrey County Council",{"$f":"VLOOKUP(R2117,'LA CPID Look up'!$A$3:$C$153,2,FALSE)","v":"Surrey County Council"},"South-East England and South London"]
[null,null,null,null,null,null,null,null,null,null,null,null,null,null,131513,"Highfields School - Wolverhampton","2015-12-01","Wolverhampton City Council",{"$f":"VLOOKUP(R2119,'LA CPID Look up'!$A$3:$C$153,2,FALSE)","v":"Wolverhampton City Council"},"West Midlands"]
[null,null,null,null,null,null,null,null,null,null,null,null,null,null,121073,"Highgate Primary Academy","2012-09-01","Barnsley Metropolitan Borough Council",{"$f":"VLOOKUP(R2120,'LA CPID Look up'!$A$3:$C$153,2,FALSE)","v":"Barnsley Metropolitan Borough Council"},"East Midlands and the Humber"]
[null,null,null,null,null,null,null,null,null,null,null,null,null,null,124667,"Highlees Primary School","2013-09-01","Peterborough City Council",{"$f":"VLOOKUP(R2122,'LA CPID Look up'!$A$3:$C$153,2,FALSE)","v":"Peterborough City Council"},"East of England and North-East London"]
[null,null,null,null,null,null,null,null,null,null,null,null,null,null,120102,"Highnam CofE Primary Academy","2011-08-01","Gloucestershire County Council",{"$f":"VLOOKUP(R2123,'LA CPID Look up'!$A$3:$C$153,2,FALSE)","v":"Gloucestershire County Council"},"South-West England"]
[null,null,null,null,null,null,null,null,null,null,null,null,null,null,124679,"Hightown Primary School","2013-09-01","Southampton City Council",{"$f":"VLOOKUP(R2125,'LA CPID Look up'!$A$3:$C$153,2,FALSE)","v":"Southampton City Council"},"South-East England and South London"]
[null,null,null,null,null,null,null,null,null,null,null,null,null,null,123224,"Highwoods Community Primary School","2013-04-01","Essex County Council",{"$f":"VLOOKUP(R2126,'LA CPID Look up'!$A$3:$C$153,2,FALSE)","v":"Essex County Council"},"East of England and North-East London"]
[null,null,null,null,null,null,null,null,null,null,null,null,null,null,119860,"Highworth Warneford School","2011-07-01","Swindon Borough Council",{"$f":"VLOOKUP(R2128,'LA CPID Look up'!$A$3:$C$153,2,FALSE)","v":"Swindon Unitary Authority"},"South-West England"]
[null,null,null,null,null,null,null,null,null,null,null,null,null,null,120885,"Hilbre High School","2012-07-01","Wirral Metropolitan Borough Council",{"$f":"VLOOKUP(R2129,'LA CPID Look up'!$A$3:$C$153,2,FALSE)","v":"Wirral Metropolitan Borough Council"},"Lancashire and West Yorkshire"]
[null,null,null,null,null,null,null,null,null,null,null,null,null,null,124127,"Hill Farm Academy","2013-09-01","Coventry City Council",{"$f":"VLOOKUP(R2131,'LA CPID Look up'!$A$3:$C$153,2,FALSE)","v":"Coventry City Council"},"West Midlands"]
[null,null,null,null,null,null,null,null,null,null,null,null,null,null,121211,"Hill Primary Academy, The","2012-09-01","Barnsley Metropolitan Borough Council",{"$f":"VLOOKUP(R2132,'LA CPID Look up'!$A$3:$C$153,2,FALSE)","v":"Barnsley Metropolitan Borough Council"},"East Midlands and the Humber"]
[null,null,null,null,null,null,null,null,null,null,null,null,null,null,124293,"Hillcrest Academy - Leeds","2014-01-01","Leeds City Council",{"$f":"VLOOKUP(R2135,'LA CPID Look up'!$A$3:$C$153,2,FALSE)","v":"Leeds City Council"},"Lancashire and West Yorkshire"]
[null,null,null,null,null,null,null,null,null,null,null,null,null,null,120482,"Hillcrest School and Sixth Form Centre","2011-09-01","Birmingham City Council",{"$f":"VLOOKUP(R2136,'LA CPID Look up'!$A$3:$C$153,2,FALSE)","v":"Birmingham City Council"},"West Midlands"]
[null,null,null,null,null,null,null,null,null,null,null,null,null,null,129071,"Hillingdon Primary School","2014-07-01","Hillingdon London Borough Council",{"$f":"VLOOKUP(R2138,'LA CPID Look up'!$A$3:$C$153,2,FALSE)","v":"Hillingdon London Borough Council"},"East of England and North-East London"]
[null,null,null,null,null,null,null,null,null,null,null,null,null,null,123278,"Hills Academy, The","2013-04-01","Bedford Borough Council",{"$f":"VLOOKUP(R2139,'LA CPID Look up'!$A$3:$C$153,2,FALSE)","v":"Bedford Unitary Authority"},"South-Central England and North-West London"]
[null,null,null,null,null,null,null,null,null,null,null,null,null,null,132307,"Hillsgrove Primary School","2015-09-01","Bexley London Borough Council",{"$f":"VLOOKUP(R2141,'LA CPID Look up'!$A$3:$C$153,2,FALSE)","v":"Bexley London Borough Council"},"South-East England and South London"]
[null,null,null,null,null,null,null,null,null,null,null,null,null,null,131737,"Hillside High School","2015-03-01","Sefton Metropolitan Borough Council",{"$f":"VLOOKUP(R2142,'LA CPID Look up'!$A$3:$C$153,2,FALSE)","v":"Sefton Metropolitan Borough Council"},"Lancashire and West Yorkshire"]
[null,null,null,null,null,null,null,null,null,null,null,null,null,null,130752,"Hillside Primary School - Ipswich","2014-07-01","Suffolk County Council",{"$f":"VLOOKUP(R2144,'LA CPID Look up'!$A$3:$C$153,2,FALSE)","v":"Suffolk County Council"},"East of England and North-East London"]
[null,null,null,null,null,null,null,null,null,null,null,null,null,null,121862,"Hillside Primary School - Orpington","2012-09-01","Bromley London Borough Council",{"$f":"VLOOKUP(R2145,'LA CPID Look up'!$A$3:$C$153,2,FALSE)","v":"Bromley London Borough Council"},"South-East England and South London"]
[null,null,null,null,null,null,null,null,null,null,null,null,null,null,131334,"Hillsview Academy","2014-09-01","Redcar and Cleveland Borough Council",{"$f":"VLOOKUP(R2147,'LA CPID Look up'!$A$3:$C$153,2,FALSE)","v":"Redcar and Cleveland Borough Council"},"North of England"]
[null,null,null,null,null,null,null,null,null,null,null,null,null,null,120245,"Hilltop Junior School - Wickford","2011-08-01","Essex County Council",{"$f":"VLOOKUP(R2148,'LA CPID Look up'!$A$3:$C$153,2,FALSE)","v":"Essex County Council"},"East of England and North-East London"]
[null,null,null,null,null,null,null,null,null,null,null,null,null,null,120104,"Hillview School for Girls","2011-08-01","Kent County Council",{"$f":"VLOOKUP(R2150,'LA CPID Look up'!$A$3:$C$153,2,FALSE)","v":"Kent County Council"},"South-East England and South London"]
[null,null,null,null,null,null,null,null,null,null,null,null,null,null,119436,"Hillyfield Primary Academy","2011-01-11","Waltham Forest London Borough Council",{"$f":"VLOOKUP(R2151,'LA CPID Look up'!$A$3:$C$153,2,FALSE)","v":"Waltham Forest London Borough Council"},"East of England and North-East London"]
[null,null,null,null,null,null,null,null,null,null,null,null,null,null,120503,"Hinchingbrooke School","2011-09-01","Cambridgeshire County Council",{"$f":"VLOOKUP(R2153,'LA CPID Look up'!$A$3:$C$153,2,FALSE)","v":"Cambridgeshire County Council"},"East of England and North-East London"]
[null,null,null,null,null,null,null,null,null,null,null,null,null,null,120416,"Hinchley Wood School","2012-02-01","Surrey County Council",{"$f":"VLOOKUP(R2154,'LA CPID Look up'!$A$3:$C$153,2,FALSE)","v":"Surrey County Council"},"South-East England and South London"]
[null,null,null,null,null,null,null,null,null,null,null,null,null,null,122797,"Hinde House 3-16 School","2013-07-01","Sheffield City Council",{"$f":"VLOOKUP(R2156,'LA CPID Look up'!$A$3:$C$153,2,FALSE)","v":"Sheffield City Council"},"East Midlands and the Humber"]
[null,null,null,null,null,null,null,null,null,null,null,null,null,null,131432,"Hindley Green Community Primary School","2015-01-01","Wigan Metropolitan Borough Council",{"$f":"VLOOKUP(R2157,'LA CPID Look up'!$A$3:$C$153,2,FALSE)","v":"Wigan Metropolitan Borough Council"},"Lancashire and West Yorkshire"]
[null,null,null,null,null,null,null,null,null,null,null,null,null,null,122718,"Histon and Impington Junior School","2012-12-01","Cambridgeshire County Council",{"$f":"VLOOKUP(R2159,'LA CPID Look up'!$A$3:$C$153,2,FALSE)","v":"Cambridgeshire County Council"},"East of England and North-East London"]
[null,null,null,null,null,null,null,null,null,null,null,null,null,null,122668,"Hitchin Boys' School","2013-01-01","Hertfordshire County Council",{"$f":"VLOOKUP(R2160,'LA CPID Look up'!$A$3:$C$153,2,FALSE)","v":"Hertfordshire County Council"},"East of England and North-East London"]
[null,null,null,null,null,null,null,null,null,null,null,null,null,null,119482,"Hockerill Anglo-European College","2011-02-01","Hertfordshire County Council",{"$f":"VLOOKUP(R2163,'LA CPID Look up'!$A$3:$C$153,2,FALSE)","v":"Hertfordshire County Council"},"East of England and North-East London"]
[null,null,null,null,null,null,null,null,null,null,null,null,null,null,133457,"Hockering Church of England Voluntary Aided Primary School","2016-03-01","Norfolk County Council",{"$f":"VLOOKUP(R2164,'LA CPID Look up'!$A$3:$C$153,2,FALSE)","v":"Norfolk County Council"},"East of England and North-East London"]
[null,null,null,null,null,null,null,null,null,null,null,null,null,null,119726,"Hodgson Academy","2011-05-01","Lancashire County Council",{"$f":"VLOOKUP(R2166,'LA CPID Look up'!$A$3:$C$153,2,FALSE)","v":"Lancashire County Council"},"Lancashire and West Yorkshire"]
[null,null,null,null,null,null,null,null,null,null,null,null,null,null,132647,"Hoe Valley School","2015-09-01","Surrey County Council",{"$f":"VLOOKUP(R2167,'LA CPID Look up'!$A$3:$C$153,2,FALSE)","v":"Surrey County Council"},"South-East England and South London"]
[null,null,null,null,null,null,null,null,null,null,null,null,null,null,122262,"Hogsthorpe Primary Academy","2012-09-01","Lincolnshire County Council",{"$f":"VLOOKUP(R2169,'LA CPID Look up'!$A$3:$C$153,2,FALSE)","v":"Lincolnshire County Council"},"East Midlands and the Humber"]
[null,null,null,null,null,null,null,null,null,null,null,null,null,null,130893,"Holbeach Primary School","2014-09-01","Lincolnshire County Council",{"$f":"VLOOKUP(R2170,'LA CPID Look up'!$A$3:$C$153,2,FALSE)","v":"Lincolnshire County Council"},"East Midlands and the Humber"]
[null,null,null,null,null,null,null,null,null,null,null,null,null,null,124990,"Holgate Academy","2013-09-01","Nottinghamshire County Council",{"$f":"VLOOKUP(R2172,'LA CPID Look up'!$A$3:$C$153,2,FALSE)","v":"Nottinghamshire County Council"},"East Midlands and the Humber"]
[null,null,null,null,null,null,null,null,null,null,null,null,null,null,124090,"Holland Park School","2013-09-01","Royal Borough of Kensington and Chelsea Council",{"$f":"VLOOKUP(R2173,'LA CPID Look up'!$A$3:$C$153,2,FALSE)","v":"Kensington and Chelsea Council (Royal Borough of)"},"East of England and North-East London"]
[null,null,null,null,null,null,null,null,null,null,null,null,null,null,130870,"Hollington Primary Academy, The","2014-09-01","East Sussex County Council",{"$f":"VLOOKUP(R2175,'LA CPID Look up'!$A$3:$C$153,2,FALSE)","v":"East Sussex County Council"},"South-East England and South London"]
[null,null,null,null,null,null,null,null,null,null,null,null,null,null,120921,"Hollingworth Academy","2013-09-01","Rochdale Metropolitan Borough Council",{"$f":"VLOOKUP(R2176,'LA CPID Look up'!$A$3:$C$153,2,FALSE)","v":"Rochdale Borough Council"},"Lancashire and West Yorkshire"]
[null,null,null,null,null,null,null,null,null,null,null,null,null,null,131890,"Hollinwood Academy","2015-09-01","Oldham Metropolitan Borough Council",{"$f":"VLOOKUP(R2178,'LA CPID Look up'!$A$3:$C$153,2,FALSE)","v":"Oldham Metropolitan Borough Council"},"Lancashire and West Yorkshire"]
[null,null,null,null,null,null,null,null,null,null,null,null,null,null,120425,"Holly Hall Academy, The","2011-09-01","Dudley Metropolitan Borough Council",{"$f":"VLOOKUP(R2179,'LA CPID Look up'!$A$3:$C$153,2,FALSE)","v":"Dudley Metropolitan Borough Council"},"West Midlands"]
[null,null,null,null,null,null,null,null,null,null,null,null,null,null,122859,"Hollybrook Junior School","2013-05-01","Southampton City Council",{"$f":"VLOOKUP(R2181,'LA CPID Look up'!$A$3:$C$153,2,FALSE)","v":"Southampton City Council"},"South-East England and South London"]
[null,null,null,null,null,null,null,null,null,null,null,null,null,null,120544,"Hollyfield School and Sixth Form Centre, The","2011-12-01","Royal Borough of Kingston Upon Thames Council",{"$f":"VLOOKUP(R2182,'LA CPID Look up'!$A$3:$C$153,2,FALSE)","v":"Kingston upon Thames Council (Royal Borough of)"},"South-East England and South London"]
[null,null,null,null,null,null,null,null,null,null,null,null,null,null,132066,"Holmbush Primary Academy","2015-04-01","West Sussex County Council",{"$f":"VLOOKUP(R2184,'LA CPID Look up'!$A$3:$C$153,2,FALSE)","v":"West Sussex County Council"},"South-East England and South London"]
[null,null,null,null,null,null,null,null,null,null,null,null,null,null,124580,"Holme Church of England Primary School, The","2013-09-01","Hampshire County Council",{"$f":"VLOOKUP(R2185,'LA CPID Look up'!$A$3:$C$153,2,FALSE)","v":"Hampshire County Council"},"South-East England and South London"]
[null,null,null,null,null,null,null,null,null,null,null,null,null,null,121070,"Holmer Green Senior School","2012-04-01","Buckinghamshire County Council",{"$f":"VLOOKUP(R2187,'LA CPID Look up'!$A$3:$C$153,2,FALSE)","v":"Buckinghamshire County Council"},"South-Central England and North-West London"]
[null,null,null,null,null,null,null,null,null,null,null,null,null,null,120367,"Holmes Chapel Comprehensive School","2011-09-01","Cheshire East Council",{"$f":"VLOOKUP(R2188,'LA CPID Look up'!$A$3:$C$153,2,FALSE)","v":"Cheshire East Unitary Authority"},"West Midlands"]
[null,null,null,null,null,null,null,null,null,null,null,null,null,null,131175,"Holt Farm Junior School","2014-09-01","Essex County Council",{"$f":"VLOOKUP(R2190,'LA CPID Look up'!$A$3:$C$153,2,FALSE)","v":"Essex County Council"},"East of England and North-East London"]
[null,null,null,null,null,null,null,null,null,null,null,null,null,null,119880,"Holt School, The","2011-07-01","Wokingham Borough Council",{"$f":"VLOOKUP(R2191,'LA CPID Look up'!$A$3:$C$153,2,FALSE)","v":"Wokingham Council"},"East of England and North-East London"]
[null,null,null,null,null,null,null,null,null,null,null,null,null,null,123902,"Holy Cross Catholic Primary School - Sutton Coldfield","2014-01-01","Birmingham City Council",{"$f":"VLOOKUP(R2194,'LA CPID Look up'!$A$3:$C$153,2,FALSE)","v":"Birmingham City Council"},"West Midlands"]
[null,null,null,null,null,null,null,null,null,null,null,null,null,null,119967,"Holy Cross Catholic Primary School, Harlow","2011-08-01","Essex County Council",{"$f":"VLOOKUP(R2195,'LA CPID Look up'!$A$3:$C$153,2,FALSE)","v":"Essex County Council"},"East of England and North-East London"]
[null,null,null,null,null,null,null,null,null,null,null,null,null,null,122363,"Holy Cross School A Catholic Voluntary Academy, Whitwick, Leicestershire","2012-07-01","Leicestershire County Council",{"$f":"VLOOKUP(R2197,'LA CPID Look up'!$A$3:$C$153,2,FALSE)","v":"Leicestershire County Council"},"East Midlands and the Humber"]
[null,null,null,null,null,null,null,null,null,null,null,null,null,null,122725,"Holy Cross School, The","2012-08-01","Royal Borough of Kingston Upon Thames Council",{"$f":"VLOOKUP(R2198,'LA CPID Look up'!$A$3:$C$153,2,FALSE)","v":"Kingston upon Thames Council (Royal Borough of)"},"South-East England and South London"]
[null,null,null,null,null,null,null,null,null,null,null,null,null,null,123904,"Holy Family Catholic Academy - Cleethorpes","2013-09-01","North East Lincolnshire Council",{"$f":"VLOOKUP(R2200,'LA CPID Look up'!$A$3:$C$153,2,FALSE)","v":"North East Lincolnshire Council"},"East Midlands and the Humber"]
[null,null,null,null,null,null,null,null,null,null,null,null,null,null,130317,"Holy Family Catholic Primary School - Doncaster","2014-07-01","Doncaster Metropolitan Borough Council",{"$f":"VLOOKUP(R2201,'LA CPID Look up'!$A$3:$C$153,2,FALSE)","v":"Doncaster Metropolitan Borough Council"},"East Midlands and the Humber"]
[null,null,null,null,null,null,null,null,null,null,null,null,null,null,124248,"Holy Family Catholic Primary School, The - Maidstone","2014-06-01","Kent County Council",{"$f":"VLOOKUP(R2203,'LA CPID Look up'!$A$3:$C$153,2,FALSE)","v":"Kent County Council"},"South-East England and South London"]
[null,null,null,null,null,null,null,null,null,null,null,null,null,null,124097,"Holy Family RC Primary School - Darlington","2013-04-01","Darlington Borough Council",{"$f":"VLOOKUP(R2204,'LA CPID Look up'!$A$3:$C$153,2,FALSE)","v":"Darlington Borough Council"},"North of England"]
[null,null,null,null,null,null,null,null,null,null,null,null,null,null,132973,"Holy Name Catholic Voluntary Academy","2015-08-01","Leeds City Council",{"$f":"VLOOKUP(R2206,'LA CPID Look up'!$A$3:$C$153,2,FALSE)","v":"Leeds City Council"},"Lancashire and West Yorkshire"]
[null,null,null,null,null,null,null,null,null,null,null,null,null,null,120074,"Holy Rood Catholic Primary School","2011-08-01","Swindon Borough Council",{"$f":"VLOOKUP(R2207,'LA CPID Look up'!$A$3:$C$153,2,FALSE)","v":"Swindon Unitary Authority"},"South-West England"]
[null,null,null,null,null,null,null,null,null,null,null,null,null,null,130512,"Holy Trinity","2014-09-01","Worcestershire County Council",{"$f":"VLOOKUP(R2209,'LA CPID Look up'!$A$3:$C$153,2,FALSE)","v":"Worcestershire County Council"},"West Midlands"]
[null,null,null,null,null,null,null,null,null,null,null,null,null,null,126366,"Holy Trinity Catholic School - Newark","2014-04-01","Nottinghamshire County Council",{"$f":"VLOOKUP(R2210,'LA CPID Look up'!$A$3:$C$153,2,FALSE)","v":"Nottinghamshire County Council"},"East Midlands and the Humber"]
[null,null,null,null,null,null,null,null,null,null,null,null,null,null,124168,"Holy Trinity CE Primary Academy (Handsworth)","2013-12-01","Birmingham City Council",{"$f":"VLOOKUP(R2212,'LA CPID Look up'!$A$3:$C$153,2,FALSE)","v":"Birmingham City Council"},"West Midlands"]
[null,null,null,null,null,null,null,null,null,null,null,null,null,null,121913,"Holy Trinity Church of England Academy - Calne","2012-05-01","Wiltshire Council",{"$f":"VLOOKUP(R2213,'LA CPID Look up'!$A$3:$C$153,2,FALSE)","v":"Wiltshire Unitary Authority"},"South-West England"]
[null,null,null,null,null,null,null,null,null,null,null,null,null,null,120441,"Holy Trinity Church of England Primary Academy, The - Devizes","2011-09-01","Wiltshire Council",{"$f":"VLOOKUP(R2215,'LA CPID Look up'!$A$3:$C$153,2,FALSE)","v":"Wiltshire Unitary Authority"},"South-West England"]
[null,null,null,null,null,null,null,null,null,null,null,null,null,null,123196,"Holy Trinity CofE Primary School - Haringey","2013-02-01","Haringey London Borough Council",{"$f":"VLOOKUP(R2216,'LA CPID Look up'!$A$3:$C$153,2,FALSE)","v":"Haringey London Borough Council"},"East of England and North-East London"]
[null,null,null,null,null,null,null,null,null,null,null,null,null,null,122132,"Holy Trinity Primary School, A Church of England Academy","2012-07-01","Calderdale Metropolitan Borough Council",{"$f":"VLOOKUP(R2218,'LA CPID Look up'!$A$3:$C$153,2,FALSE)","v":"Calderdale Metropolitan Borough Council"},"Lancashire and West Yorkshire"]
[null,null,null,null,null,null,null,null,null,null,null,null,null,null,120034,"Holyhead School","2011-08-01","Birmingham City Council",{"$f":"VLOOKUP(R2219,'LA CPID Look up'!$A$3:$C$153,2,FALSE)","v":"Birmingham City Council"},"West Midlands"]
[null,null,null,null,null,null,null,null,null,null,null,null,null,null,122555,"Holywell Primary School - Loughborough","2012-11-01","Leicestershire County Council",{"$f":"VLOOKUP(R2222,'LA CPID Look up'!$A$3:$C$153,2,FALSE)","v":"Leicestershire County Council"},"East Midlands and the Humber"]
[null,null,null,null,null,null,null,null,null,null,null,null,null,null,122088,"Holywell School - Bedford","2012-10-01","Central Bedfordshire Council",{"$f":"VLOOKUP(R2223,'LA CPID Look up'!$A$3:$C$153,2,FALSE)","v":"Central Bedfordshire Unitary Authority"},"South-Central England and North-West London"]
[null,null,null,null,null,null,null,null,null,null,null,null,null,null,124330,"Honeybourne First School","2013-06-01","Worcestershire County Council",{"$f":"VLOOKUP(R2225,'LA CPID Look up'!$A$3:$C$153,2,FALSE)","v":"Worcestershire County Council"},"West Midlands"]
[null,null,null,null,null,null,null,null,null,null,null,null,null,null,119912,"Honiton Community College","2011-07-01","Devon County Council",{"$f":"VLOOKUP(R2226,'LA CPID Look up'!$A$3:$C$153,2,FALSE)","v":"Devon County Council"},"South-West England"]
[null,null,null,null,null,null,null,null,null,null,null,null,null,null,122819,"Hooe Primary Academy","2013-03-01","Plymouth City Council",{"$f":"VLOOKUP(R2228,'LA CPID Look up'!$A$3:$C$153,2,FALSE)","v":"Plymouth City Council"},"South-West England"]
[null,null,null,null,null,null,null,null,null,null,null,null,null,null,122163,"Hook-with-Warsash Church of England Academy","2012-09-01","Hampshire County Council",{"$f":"VLOOKUP(R2229,'LA CPID Look up'!$A$3:$C$153,2,FALSE)","v":"Hampshire County Council"},"South-East England and South London"]
[null,null,null,null,null,null,null,null,null,null,null,null,null,null,123313,"Hope Community School","2013-09-01","Bexley London Borough Council",{"$f":"VLOOKUP(R2231,'LA CPID Look up'!$A$3:$C$153,2,FALSE)","v":"Bexley London Borough Council"},"South-East England and South London"]
[null,null,null,null,null,null,null,null,null,null,null,null,null,null,120066,"Hope Valley College","2011-09-01","Derbyshire County Council",{"$f":"VLOOKUP(R2232,'LA CPID Look up'!$A$3:$C$153,2,FALSE)","v":"Derbyshire County Council"},"East Midlands and the Humber"]
[null,null,null,null,null,null,null,null,null,null,null,null,null,null,122558,"Horbury Academy","2012-09-01","Wakefield Council",{"$f":"VLOOKUP(R2234,'LA CPID Look up'!$A$3:$C$153,2,FALSE)","v":"Wakefield City Council"},"Lancashire and West Yorkshire"]
[null,null,null,null,null,null,null,null,null,null,null,null,null,null,120893,"Horbury Bridge Church of England Junior and Infant Academy","2012-04-01","Wakefield Council",{"$f":"VLOOKUP(R2235,'LA CPID Look up'!$A$3:$C$153,2,FALSE)","v":"Wakefield City Council"},"Lancashire and West Yorkshire"]
[null,null,null,null,null,null,null,null,null,null,null,null,null,null,122172,"Hornbeam Academy Special Academy","2012-09-01","Waltham Forest London Borough Council",{"$f":"VLOOKUP(R2237,'LA CPID Look up'!$A$3:$C$153,2,FALSE)","v":"Waltham Forest London Borough Council"},"East of England and North-East London"]
[null,null,null,null,null,null,null,null,null,null,null,null,null,null,132189,"Horncastle St Lawrence School, The","2015-09-01","Lincolnshire County Council",{"$f":"VLOOKUP(R2238,'LA CPID Look up'!$A$3:$C$153,2,FALSE)","v":"Lincolnshire County Council"},"East Midlands and the Humber"]
[null,null,null,null,null,null,null,null,null,null,null,null,null,null,120179,"Horringer Court Middle School","2011-08-01","Suffolk County Council",{"$f":"VLOOKUP(R2240,'LA CPID Look up'!$A$3:$C$153,2,FALSE)","v":"Suffolk County Council"},"East of England and North-East London"]
[null,null,null,null,null,null,null,null,null,null,null,null,null,null,124132,"Horrington Primary School","2013-05-01","Somerset County Council",{"$f":"VLOOKUP(R2241,'LA CPID Look up'!$A$3:$C$153,2,FALSE)","v":"Somerset County Council"},"South-West England"]
[null,null,null,null,null,null,null,null,null,null,null,null,null,null,120765,"Horsforth School","2012-01-01","Leeds City Council",{"$f":"VLOOKUP(R2243,'LA CPID Look up'!$A$3:$C$153,2,FALSE)","v":"Leeds City Council"},"Lancashire and West Yorkshire"]
[null,null,null,null,null,null,null,null,null,null,null,null,null,null,125025,"Horsington Church School","2013-12-01","Somerset County Council",{"$f":"VLOOKUP(R2244,'LA CPID Look up'!$A$3:$C$153,2,FALSE)","v":"Somerset County Council"},"South-West England"]
[null,null,null,null,null,null,null,null,null,null,null,null,null,null,121836,"Houghton Regis Academy","2012-09-01","Central Bedfordshire Council",{"$f":"VLOOKUP(R2246,'LA CPID Look up'!$A$3:$C$153,2,FALSE)","v":"Central Bedfordshire Unitary Authority"},"South-Central England and North-West London"]
[null,null,null,null,null,null,null,null,null,null,null,null,null,null,120229,"Hounsdown School","2011-08-01","Hampshire County Council",{"$f":"VLOOKUP(R2247,'LA CPID Look up'!$A$3:$C$153,2,FALSE)","v":"Hampshire County Council"},"South-East England and South London"]
[null,null,null,null,null,null,null,null,null,null,null,null,null,null,119833,"Howard of Effingham School","2011-07-01","Surrey County Council",{"$f":"VLOOKUP(R2249,'LA CPID Look up'!$A$3:$C$153,2,FALSE)","v":"Surrey County Council"},"South-East England and South London"]
[null,null,null,null,null,null,null,null,null,null,null,null,null,null,132397,"Howard Primary School, The","2015-08-01","Staffordshire County Council",{"$f":"VLOOKUP(R2250,'LA CPID Look up'!$A$3:$C$153,2,FALSE)","v":"Staffordshire County Council"},"West Midlands"]
[null,null,null,null,null,null,null,null,null,null,null,null,null,null,123036,"Hoyland Common Primary School","2013-10-01","Barnsley Metropolitan Borough Council",{"$f":"VLOOKUP(R2253,'LA CPID Look up'!$A$3:$C$153,2,FALSE)","v":"Barnsley Metropolitan Borough Council"},"East Midlands and the Humber"]
[null,null,null,null,null,null,null,null,null,null,null,null,null,null,132190,"Hoyland Springwood Primary School","2015-10-01","Barnsley Metropolitan Borough Council",{"$f":"VLOOKUP(R2254,'LA CPID Look up'!$A$3:$C$153,2,FALSE)","v":"Barnsley Metropolitan Borough Council"},"East Midlands and the Humber"]
[null,null,null,null,null,null,null,null,null,null,null,null,null,null,131434,"Huish Episcopi Primary School","2015-03-01","Somerset County Council",{"$f":"VLOOKUP(R2256,'LA CPID Look up'!$A$3:$C$153,2,FALSE)","v":"Somerset County Council"},"South-West England"]
[null,null,null,null,null,null,null,null,null,null,null,null,null,null,124759,"Huish Primary School","2013-12-01","Somerset County Council",{"$f":"VLOOKUP(R2257,'LA CPID Look up'!$A$3:$C$153,2,FALSE)","v":"Somerset County Council"},"South-West England"]
[null,null,null,null,null,null,null,null,null,null,null,null,null,null,120922,"Hull Trinity House Academy","2012-04-01","Hull City Council",{"$f":"VLOOKUP(R2259,'LA CPID Look up'!$A$3:$C$153,2,FALSE)","v":"Kingston upon Hull City Council"},"East Midlands and the Humber"]
[null,null,null,null,null,null,null,null,null,null,null,null,null,null,132685,"Humber UTC","2015-09-01","North Lincolnshire Council",{"$f":"VLOOKUP(R2260,'LA CPID Look up'!$A$3:$C$153,2,FALSE)","v":"North Lincolnshire Council"},"East Midlands and the Humber"]
[null,null,null,null,null,null,null,null,null,null,null,null,null,null,121839,"Humberston Cloverfields Academy","2014-04-01","North East Lincolnshire Council",{"$f":"VLOOKUP(R2262,'LA CPID Look up'!$A$3:$C$153,2,FALSE)","v":"North East Lincolnshire Council"},"East Midlands and the Humber"]
[null,null,null,null,null,null,null,null,null,null,null,null,null,null,120443,"Humberston Park School","2011-09-01","North East Lincolnshire Council",{"$f":"VLOOKUP(R2263,'LA CPID Look up'!$A$3:$C$153,2,FALSE)","v":"North East Lincolnshire Council"},"East Midlands and the Humber"]
[null,null,null,null,null,null,null,null,null,null,null,null,null,null,119838,"Hummersknott Academy","2011-07-01","Darlington Borough Council",{"$f":"VLOOKUP(R2265,'LA CPID Look up'!$A$3:$C$153,2,FALSE)","v":"Darlington Borough Council"},"North of England"]
[null,null,null,null,null,null,null,null,null,null,null,null,null,null,120901,"Humphrey Perkins School","2012-01-01","Leicestershire County Council",{"$f":"VLOOKUP(R2266,'LA CPID Look up'!$A$3:$C$153,2,FALSE)","v":"Leicestershire County Council"},"East Midlands and the Humber"]
[null,null,null,null,null,null,null,null,null,null,null,null,null,null,120119,"Hundred of Hoo Academy, The","2011-09-01","Medway Council",{"$f":"VLOOKUP(R2268,'LA CPID Look up'!$A$3:$C$153,2,FALSE)","v":"Medway Towns Unitary Authority (The)"},"South-East England and South London"]
[null,null,null,null,null,null,null,null,null,null,null,null,null,null,131511,"Hungerford Primary Academy","2015-02-01","Cheshire East Council",{"$f":"VLOOKUP(R2269,'LA CPID Look up'!$A$3:$C$153,2,FALSE)","v":"Cheshire East Unitary Authority"},"West Midlands"]
[null,null,null,null,null,null,null,null,null,null,null,null,null,null,132648,"Hunsley Primary School","2015-09-01","East Riding of Yorkshire Council",{"$f":"VLOOKUP(R2271,'LA CPID Look up'!$A$3:$C$153,2,FALSE)","v":"East Riding of Yorkshire Council"},"East Midlands and the Humber"]
[null,null,null,null,null,null,null,null,null,null,null,null,null,null,120568,"Huntcliff School","2012-02-01","North Lincolnshire Council",{"$f":"VLOOKUP(R2272,'LA CPID Look up'!$A$3:$C$153,2,FALSE)","v":"North Lincolnshire Council"},"East Midlands and the Humber"]
[null,null,null,null,null,null,null,null,null,null,null,null,null,null,131680,"Huntington Primary School - York","2015-04-01","City of York Council",{"$f":"VLOOKUP(R2274,'LA CPID Look up'!$A$3:$C$153,2,FALSE)","v":"City of York Council"},"East Midlands and the Humber"]
[null,null,null,null,null,null,null,null,null,null,null,null,null,null,124181,"Huntingtower Community Primary Academy","2013-05-01","Lincolnshire County Council",{"$f":"VLOOKUP(R2275,'LA CPID Look up'!$A$3:$C$153,2,FALSE)","v":"Lincolnshire County Council"},"East Midlands and the Humber"]
[null,null,null,null,null,null,null,null,null,null,null,null,null,null,131684,"Hurlingham Academy, The","2015-01-01","Hammersmith and Fulham London Borough Council",{"$f":"VLOOKUP(R2277,'LA CPID Look up'!$A$3:$C$153,2,FALSE)","v":"Hammersmith and Fulham London Borough Council"},"South-Central England and North-West London"]
[null,null,null,null,null,null,null,null,null,null,null,null,null,null,124620,"Hurst Primary School","2013-10-01","Bexley London Borough Council",{"$f":"VLOOKUP(R2278,'LA CPID Look up'!$A$3:$C$153,2,FALSE)","v":"Bexley London Borough Council"},"South-East England and South London"]
[null,null,null,null,null,null,null,null,null,null,null,null,null,null,121832,"Hurworth Primary School","2012-06-01","Darlington Borough Council",{"$f":"VLOOKUP(R2281,'LA CPID Look up'!$A$3:$C$153,2,FALSE)","v":"Darlington Borough Council"},"North of England"]
[null,null,null,null,null,null,null,null,null,null,null,null,null,null,119572,"Hurworth School","2011-04-01","Darlington Borough Council",{"$f":"VLOOKUP(R2282,'LA CPID Look up'!$A$3:$C$153,2,FALSE)","v":"Darlington Borough Council"},"North of England"]
[null,null,null,null,null,null,null,null,null,null,null,null,null,null,120718,"Hutton All Saints' Church of England Primary School","2011-12-01","Essex County Council",{"$f":"VLOOKUP(R2284,'LA CPID Look up'!$A$3:$C$153,2,FALSE)","v":"Essex County Council"},"East of England and North-East London"]
[null,null,null,null,null,null,null,null,null,null,null,null,null,null,121017,"Huxlow Science College","2012-04-01","Northamptonshire County Council",{"$f":"VLOOKUP(R2285,'LA CPID Look up'!$A$3:$C$153,2,FALSE)","v":"Northamptonshire County Council"},"East of England and North-East London"]
[null,null,null,null,null,null,null,null,null,null,null,null,null,null,120072,"Hylands School","2011-08-01","Essex County Council",{"$f":"VLOOKUP(R2287,'LA CPID Look up'!$A$3:$C$153,2,FALSE)","v":"Essex County Council"},"East of England and North-East London"]
[null,null,null,null,null,null,null,null,null,null,null,null,null,null,122529,"Hyndburn Studio School","2012-09-01","Lancashire County Council",{"$f":"VLOOKUP(R2288,'LA CPID Look up'!$A$3:$C$153,2,FALSE)","v":"Lancashire County Council"},"Lancashire and West Yorkshire"]
[null,null,null,null,null,null,null,null,null,null,null,null,null,null,122655,"Ibstock Community College","2012-09-01","Leicestershire County Council",{"$f":"VLOOKUP(R2290,'LA CPID Look up'!$A$3:$C$153,2,FALSE)","v":"Leicestershire County Council"},"East Midlands and the Humber"]
[null,null,null,null,null,null,null,null,null,null,null,null,null,null,131973,"Iceni Academy - Colchester","2015-09-01","Essex County Council",{"$f":"VLOOKUP(R2291,'LA CPID Look up'!$A$3:$C$153,2,FALSE)","v":"Essex County Council"},"East of England and North-East London"]
[null,null,null,null,null,null,null,null,null,null,null,null,null,null,120569,"Icknield High School","2011-12-01","Luton Borough Council",{"$f":"VLOOKUP(R2293,'LA CPID Look up'!$A$3:$C$153,2,FALSE)","v":"Luton Borough Council"},"East of England and North-East London"]
[null,null,null,null,null,null,null,null,null,null,null,null,null,null,130123,"Idsall School","2014-06-01","Shropshire Council",{"$f":"VLOOKUP(R2294,'LA CPID Look up'!$A$3:$C$153,2,FALSE)","v":"Shropshire Unitary Authority"},"West Midlands"]
[null,null,null,null,null,null,null,null,null,null,null,null,null,null,132681,"IKB Studio School (Bath), The","2015-09-01","Bath & North East Somerset Council",{"$f":"VLOOKUP(R2296,'LA CPID Look up'!$A$3:$C$153,2,FALSE)","v":"Bath & North East Somerset Council"},"South-West England"]
[null,null,null,null,null,null,null,null,null,null,null,null,null,null,124360,"Ilfracombe Church of England Academy, The","2013-05-01","Devon County Council",{"$f":"VLOOKUP(R2297,'LA CPID Look up'!$A$3:$C$153,2,FALSE)","v":"Devon County Council"},"South-West England"]
[null,null,null,null,null,null,null,null,null,null,null,null,null,null,120906,"Ilminster Avenue E-ACT Academy","2012-01-01","Bristol City Council",{"$f":"VLOOKUP(R2299,'LA CPID Look up'!$A$3:$C$153,2,FALSE)","v":"Bristol City Council"},"South-West England"]
[null,null,null,null,null,null,null,null,null,null,null,null,null,null,120304,"Ilsham Church of England Academy","2011-08-17","Torbay Council",{"$f":"VLOOKUP(R2300,'LA CPID Look up'!$A$3:$C$153,2,FALSE)","v":"Torbay Council"},"South-West England"]
[null,null,null,null,null,null,null,null,null,null,null,null,null,null,131587,"Immaculate Conception Catholic Primary","2014-12-01","Derbyshire County Council",{"$f":"VLOOKUP(R2302,'LA CPID Look up'!$A$3:$C$153,2,FALSE)","v":"Derbyshire County Council"},"East Midlands and the Humber"]
[null,null,null,null,null,null,null,null,null,null,null,null,null,null,133176,"Immanuel College","2016-02-01","Bradford Metropolitan District Council",{"$f":"VLOOKUP(R2303,'LA CPID Look up'!$A$3:$C$153,2,FALSE)","v":"Bradford City Council"},"Lancashire and West Yorkshire"]
[null,null,null,null,null,null,null,null,null,null,null,null,null,null,120303,"Independent Jewish Day School","2011-08-17","Barnet London Borough Council",{"$f":"VLOOKUP(R2305,'LA CPID Look up'!$A$3:$C$153,2,FALSE)","v":"Barnet London Borough Council"},"South-Central England and North-West London"]
[null,null,null,null,null,null,null,null,null,null,null,null,null,null,130513,"Ingleby Manor Free School & Sixth Form","2014-09-01","Stockton-on-Tees Borough Council",{"$f":"VLOOKUP(R2306,'LA CPID Look up'!$A$3:$C$153,2,FALSE)","v":"Stockton-on-Tees Borough Council"},"North of England"]
[null,null,null,null,null,null,null,null,null,null,null,null,null,null,131387,"Ingoldsby Wood Academy","2015-03-01","Lincolnshire County Council",{"$f":"VLOOKUP(R2308,'LA CPID Look up'!$A$3:$C$153,2,FALSE)","v":"Lincolnshire County Council"},"East Midlands and the Humber"]
[null,null,null,null,null,null,null,null,null,null,null,null,null,null,131832,"Inkersall Primary School","2015-09-01","Derbyshire County Council",{"$f":"VLOOKUP(R2309,'LA CPID Look up'!$A$3:$C$153,2,FALSE)","v":"Derbyshire County Council"},"East Midlands and the Humber"]
[null,null,null,null,null,null,null,null,null,null,null,null,null,null,130514,"INSPIRE Free Special School","2014-09-01","Medway Council",{"$f":"VLOOKUP(R2312,'LA CPID Look up'!$A$3:$C$153,2,FALSE)","v":"Medway Towns Unitary Authority (The)"},"South-East England and South London"]
[null,null,null,null,null,null,null,null,null,null,null,null,null,null,119660,"Invicta Grammar School","2011-04-01","Kent County Council",{"$f":"VLOOKUP(R2313,'LA CPID Look up'!$A$3:$C$153,2,FALSE)","v":"Kent County Council"},"South-East England and South London"]
[null,null,null,null,null,null,null,null,null,null,null,null,null,null,119502,"Ipswich Academy","2011-03-01","Suffolk County Council",{"$f":"VLOOKUP(R2315,'LA CPID Look up'!$A$3:$C$153,2,FALSE)","v":"Suffolk County Council"},"East of England and North-East London"]
[null,null,null,null,null,null,null,null,null,null,null,null,null,null,124195,"Iqra Academy - Bradford","2013-09-01","Bradford Metropolitan District Council",{"$f":"VLOOKUP(R2316,'LA CPID Look up'!$A$3:$C$153,2,FALSE)","v":"Bradford City Council"},"Lancashire and West Yorkshire"]
[null,null,null,null,null,null,null,null,null,null,null,null,null,null,131937,"Irthlingborough Junior School","2015-04-01","Northamptonshire County Council",{"$f":"VLOOKUP(R2318,'LA CPID Look up'!$A$3:$C$153,2,FALSE)","v":"Northamptonshire County Council"},"East of England and North-East London"]
[null,null,null,null,null,null,null,null,null,null,null,null,null,null,130913,"Isaac Newton Primary School, The","2014-12-01","Lincolnshire County Council",{"$f":"VLOOKUP(R2319,'LA CPID Look up'!$A$3:$C$153,2,FALSE)","v":"Lincolnshire County Council"},"East Midlands and the Humber"]
[null,null,null,null,null,null,null,null,null,null,null,null,null,null,122640,"Isca","2013-10-01","Devon County Council",{"$f":"VLOOKUP(R2321,'LA CPID Look up'!$A$3:$C$153,2,FALSE)","v":"Devon County Council"},"South-West England"]
[null,null,null,null,null,null,null,null,null,null,null,null,null,null,131347,"Isebrook SEN Cognition & Learning College","2015-03-01","Northamptonshire County Council",{"$f":"VLOOKUP(R2322,'LA CPID Look up'!$A$3:$C$153,2,FALSE)","v":"Northamptonshire County Council"},"East of England and North-East London"]
[null,null,null,null,null,null,null,null,null,null,null,null,null,null,130516,"Island Free School, The","2014-09-01","Isle of Wight Council",{"$f":"VLOOKUP(R2324,'LA CPID Look up'!$A$3:$C$153,2,FALSE)","v":"Isle of Wight Council"},"South-East England and South London"]
[null,null,null,null,null,null,null,null,null,null,null,null,null,null,130406,"Isle of Ely Primary School","2014-09-01","Cambridgeshire County Council",{"$f":"VLOOKUP(R2325,'LA CPID Look up'!$A$3:$C$153,2,FALSE)","v":"Cambridgeshire County Council"},"East of England and North-East London"]
[null,null,null,null,null,null,null,null,null,null,null,null,null,null,130573,"Isle of Wight Studio School","2014-09-01","Isle of Wight Council",{"$f":"VLOOKUP(R2327,'LA CPID Look up'!$A$3:$C$153,2,FALSE)","v":"Isle of Wight Council"},"South-East England and South London"]
[null,null,null,null,null,null,null,null,null,null,null,null,null,null,120870,"Isleworth and Syon School for Boys","2012-03-01","Hounslow London Borough Council",{"$f":"VLOOKUP(R2328,'LA CPID Look up'!$A$3:$C$153,2,FALSE)","v":"Hounslow London Borough Council"},"East of England and North-East London"]
[null,null,null,null,null,null,null,null,null,null,null,null,null,null,122128,"Ivanhoe College Ashby-De-La-Zouch","2012-07-01","Leicestershire County Council",{"$f":"VLOOKUP(R2330,'LA CPID Look up'!$A$3:$C$153,2,FALSE)","v":"Leicestershire County Council"},"East Midlands and the Humber"]
[null,null,null,null,null,null,null,null,null,null,null,null,null,null,124647,"Ivingswood Academy","2015-09-01","Buckinghamshire County Council",{"$f":"VLOOKUP(R2331,'LA CPID Look up'!$A$3:$C$153,2,FALSE)","v":"Buckinghamshire County Council"},"South-Central England and North-West London"]
[null,null,null,null,null,null,null,null,null,null,null,null,null,null,119367,"Ivybridge Community College","2010-11-01","Devon County Council",{"$f":"VLOOKUP(R2333,'LA CPID Look up'!$A$3:$C$153,2,FALSE)","v":"Devon County Council"},"South-West England"]
[null,null,null,null,null,null,null,null,null,null,null,null,null,null,128030,"Iwade School","2014-06-01","Kent County Council",{"$f":"VLOOKUP(R2334,'LA CPID Look up'!$A$3:$C$153,2,FALSE)","v":"Kent County Council"},"South-East England and South London"]
[null,null,null,null,null,null,null,null,null,null,null,null,null,null,120663,"James Brindley School","2013-04-01","Birmingham City Council",{"$f":"VLOOKUP(R2336,'LA CPID Look up'!$A$3:$C$153,2,FALSE)","v":"Birmingham City Council"},"West Midlands"]
[null,null,null,null,null,null,null,null,null,null,null,null,null,null,123285,"James Elliman Academy","2013-04-01","Slough Borough Council",{"$f":"VLOOKUP(R2337,'LA CPID Look up'!$A$3:$C$153,2,FALSE)","v":"Slough Borough Council"},"East of England and North-East London"]
[null,null,null,null,null,null,null,null,null,null,null,null,null,null,130519,"Jane Austen College","2014-09-01","Norfolk County Council",{"$f":"VLOOKUP(R2339,'LA CPID Look up'!$A$3:$C$153,2,FALSE)","v":"Norfolk County Council"},"East of England and North-East London"]
[null,null,null,null,null,null,null,null,null,null,null,null,null,null,119213,"JCB Academy, The","2010-09-01","Staffordshire County Council",{"$f":"VLOOKUP(R2340,'LA CPID Look up'!$A$3:$C$153,2,FALSE)","v":"Staffordshire County Council"},"West Midlands"]
[null,null,null,null,null,null,null,null,null,null,null,null,null,null,126491,"Jewell Academy Bournemouth","2013-09-01","Bournemouth Borough Council",{"$f":"VLOOKUP(R2343,'LA CPID Look up'!$A$3:$C$153,2,FALSE)","v":"Bournemouth Council"},"South-West England"]
[null,null,null,null,null,null,null,null,null,null,null,null,null,null,120571,"John Bentley School, The","2011-11-01","Wiltshire Council",{"$f":"VLOOKUP(R2344,'LA CPID Look up'!$A$3:$C$153,2,FALSE)","v":"Wiltshire Unitary Authority"},"South-West England"]
[null,null,null,null,null,null,null,null,null,null,null,null,null,null,118621,"John Cabot Academy","2007-09-01","South Gloucestershire Council",{"$f":"VLOOKUP(R2346,'LA CPID Look up'!$A$3:$C$153,2,FALSE)","v":"South Gloucestershire Council"},"South-West England"]
[null,null,null,null,null,null,null,null,null,null,null,null,null,null,122331,"John Cleveland College","2012-07-01","Leicestershire County Council",{"$f":"VLOOKUP(R2347,'LA CPID Look up'!$A$3:$C$153,2,FALSE)","v":"Leicestershire County Council"},"East Midlands and the Humber"]
[null,null,null,null,null,null,null,null,null,null,null,null,null,null,131974,"John Curwen Co-operative Academy, The","2015-04-01","Kirklees Metropolitan Council",{"$f":"VLOOKUP(R2349,'LA CPID Look up'!$A$3:$C$153,2,FALSE)","v":"Kirklees Metropolitan Council"},"Lancashire and West Yorkshire"]
[null,null,null,null,null,null,null,null,null,null,null,null,null,null,129075,"John Donne Primary School","2014-01-01","Southwark London Borough Council",{"$f":"VLOOKUP(R2350,'LA CPID Look up'!$A$3:$C$153,2,FALSE)","v":"Southwark London Borough Council"},"South-East England and South London"]
[null,null,null,null,null,null,null,null,null,null,null,null,null,null,120644,"John Ferneley College","2011-11-01","Leicestershire County Council",{"$f":"VLOOKUP(R2352,'LA CPID Look up'!$A$3:$C$153,2,FALSE)","v":"Leicestershire County Council"},"East Midlands and the Humber"]
[null,null,null,null,null,null,null,null,null,null,null,null,null,null,133187,"John Fielding Special School, The","2016-03-01","Lincolnshire County Council",{"$f":"VLOOKUP(R2353,'LA CPID Look up'!$A$3:$C$153,2,FALSE)","v":"Lincolnshire County Council"},"East Midlands and the Humber"]
[null,null,null,null,null,null,null,null,null,null,null,null,null,null,122336,"John Henry Newman Academy","2012-09-01","Oxfordshire County Council",{"$f":"VLOOKUP(R2355,'LA CPID Look up'!$A$3:$C$153,2,FALSE)","v":"Oxfordshire County Council"},"East of England and North-East London"]
[null,null,null,null,null,null,null,null,null,null,null,null,null,null,119437,"John Henry Newman Catholic College - Solihull","2011-01-01","Solihull Metropolitan Borough Council",{"$f":"VLOOKUP(R2356,'LA CPID Look up'!$A$3:$C$153,2,FALSE)","v":"Solihull Metropolitan Borough Council"},"West Midlands"]
[null,null,null,null,null,null,null,null,null,null,null,null,null,null,119414,"John Kyrle High School and Sixth Form Centre Academy","2011-01-01","Herefordshire Council",{"$f":"VLOOKUP(R2358,'LA CPID Look up'!$A$3:$C$153,2,FALSE)","v":"Herefordshire Council"},"West Midlands"]
[null,null,null,null,null,null,null,null,null,null,null,null,null,null,129596,"John Locke Academy","2014-09-01","Hillingdon London Borough Council",{"$f":"VLOOKUP(R2359,'LA CPID Look up'!$A$3:$C$153,2,FALSE)","v":"Hillingdon London Borough Council"},"East of England and North-East London"]
[null,null,null,null,null,null,null,null,null,null,null,null,null,null,119800,"John Masefield High School","2011-06-01","Herefordshire Council",{"$f":"VLOOKUP(R2361,'LA CPID Look up'!$A$3:$C$153,2,FALSE)","v":"Herefordshire Council"},"West Midlands"]
[null,null,null,null,null,null,null,null,null,null,null,null,null,null,129426,"John Mason School","2014-02-01","Oxfordshire County Council",{"$f":"VLOOKUP(R2362,'LA CPID Look up'!$A$3:$C$153,2,FALSE)","v":"Oxfordshire County Council"},"East of England and North-East London"]
[null,null,null,null,null,null,null,null,null,null,null,null,null,null,119618,"John Port School","2011-04-01","Derbyshire County Council",{"$f":"VLOOKUP(R2364,'LA CPID Look up'!$A$3:$C$153,2,FALSE)","v":"Derbyshire County Council"},"East Midlands and the Humber"]
[null,null,null,null,null,null,null,null,null,null,null,null,null,null,120516,"John Smeaton Academy","2014-01-01","Leeds City Council",{"$f":"VLOOKUP(R2365,'LA CPID Look up'!$A$3:$C$153,2,FALSE)","v":"Leeds City Council"},"Lancashire and West Yorkshire"]
[null,null,null,null,null,null,null,null,null,null,null,null,null,null,119353,"John Taylor High School","2010-11-01","Staffordshire County Council",{"$f":"VLOOKUP(R2367,'LA CPID Look up'!$A$3:$C$153,2,FALSE)","v":"Staffordshire County Council"},"West Midlands"]
[null,null,null,null,null,null,null,null,null,null,null,null,null,null,119309,"John Wallis Church of England Academy, The","2010-09-01","Kent County Council",{"$f":"VLOOKUP(R2368,'LA CPID Look up'!$A$3:$C$153,2,FALSE)","v":"Kent County Council"},"South-East England and South London"]
[null,null,null,null,null,null,null,null,null,null,null,null,null,null,120464,"John Whitgift Academy","2011-09-01","North East Lincolnshire Council",{"$f":"VLOOKUP(R2371,'LA CPID Look up'!$A$3:$C$153,2,FALSE)","v":"North East Lincolnshire Council"},"East Midlands and the Humber"]
[null,null,null,null,null,null,null,null,null,null,null,null,null,null,125014,"Joseph Clarke School","2014-04-01","Waltham Forest London Borough Council",{"$f":"VLOOKUP(R2372,'LA CPID Look up'!$A$3:$C$153,2,FALSE)","v":"Waltham Forest London Borough Council"},"East of England and North-East London"]
[null,null,null,null,null,null,null,null,null,null,null,null,null,null,120691,"Joseph Swan Academy","2012-03-01","Gateshead Council",{"$f":"VLOOKUP(R2374,'LA CPID Look up'!$A$3:$C$153,2,FALSE)","v":"Gateshead Council"},"North of England"]
[null,null,null,null,null,null,null,null,null,null,null,null,null,null,120678,"Joseph Whitaker School","2011-11-01","Nottinghamshire County Council",{"$f":"VLOOKUP(R2375,'LA CPID Look up'!$A$3:$C$153,2,FALSE)","v":"Nottinghamshire County Council"},"East Midlands and the Humber"]
[null,null,null,null,null,null,null,null,null,null,null,null,null,null,122136,"Joyce Frankland Academy, Newport","2012-09-01","Essex County Council",{"$f":"VLOOKUP(R2377,'LA CPID Look up'!$A$3:$C$153,2,FALSE)","v":"Essex County Council"},"East of England and North-East London"]
[null,null,null,null,null,null,null,null,null,null,null,null,null,null,120619,"Joydens Wood Infant School","2011-11-01","Kent County Council",{"$f":"VLOOKUP(R2378,'LA CPID Look up'!$A$3:$C$153,2,FALSE)","v":"Kent County Council"},"South-East England and South London"]
[null,null,null,null,null,null,null,null,null,null,null,null,null,null,122043,"Jubilee Academy Mossley","2012-08-01","Walsall Metropolitan Borough Council",{"$f":"VLOOKUP(R2380,'LA CPID Look up'!$A$3:$C$153,2,FALSE)","v":"Walsall Metropolitan Borough Council"},"West Midlands"]
[null,null,null,null,null,null,null,null,null,null,null,null,null,null,123414,"Jubilee Academy, The - Harrow","2013-09-01","Harrow London Borough Council",{"$f":"VLOOKUP(R2381,'LA CPID Look up'!$A$3:$C$153,2,FALSE)","v":"Harrow London Borough Council"},"East of England and North-East London"]
[null,null,null,null,null,null,null,null,null,null,null,null,null,null,124117,"Jubilee Park Academy","2013-09-01","Sandwell metropolitan Borough Council",{"$f":"VLOOKUP(R2383,'LA CPID Look up'!$A$3:$C$153,2,FALSE)","v":"Sandwell Metropolitan Borough Council"},"West Midlands"]
[null,null,null,null,null,null,null,null,null,null,null,null,null,null,130520,"Jubilee Primary School - Maidstone","2014-09-01","Kent County Council",{"$f":"VLOOKUP(R2384,'LA CPID Look up'!$A$3:$C$153,2,FALSE)","v":"Kent County Council"},"South-East England and South London"]
[null,null,null,null,null,null,null,null,null,null,null,null,null,null,123315,"Judith Kerr Primary School","2013-09-01","Southwark London Borough Council",{"$f":"VLOOKUP(R2386,'LA CPID Look up'!$A$3:$C$153,2,FALSE)","v":"Southwark London Borough Council"},"South-East England and South London"]
[null,null,null,null,null,null,null,null,null,null,null,null,null,null,130511,"Jupiter Community Free School","2014-09-01","Hertfordshire County Council",{"$f":"VLOOKUP(R2387,'LA CPID Look up'!$A$3:$C$153,2,FALSE)","v":"Hertfordshire County Council"},"East of England and North-East London"]
[null,null,null,null,null,null,null,null,null,null,null,null,null,null,123387,"Kajans Hospitality & Catering Studio College - Khcsc","2013-09-01","Birmingham City Council",{"$f":"VLOOKUP(R2389,'LA CPID Look up'!$A$3:$C$153,2,FALSE)","v":"Birmingham City Council"},"West Midlands"]
[null,null,null,null,null,null,null,null,null,null,null,null,null,null,123860,"Kanes Hill Primary School","2013-05-01","Southampton City Council",{"$f":"VLOOKUP(R2390,'LA CPID Look up'!$A$3:$C$153,2,FALSE)","v":"Southampton City Council"},"South-East England and South London"]
[null,null,null,null,null,null,null,null,null,null,null,null,null,null,131357,"Katherine Semar Infant School","2014-12-01","Essex County Council",{"$f":"VLOOKUP(R2392,'LA CPID Look up'!$A$3:$C$153,2,FALSE)","v":"Essex County Council"},"East of England and North-East London"]
[null,null,null,null,null,null,null,null,null,null,null,null,null,null,120727,"Katherine Semar Junior School","2014-12-01","Essex County Council",{"$f":"VLOOKUP(R2393,'LA CPID Look up'!$A$3:$C$153,2,FALSE)","v":"Essex County Council"},"East of England and North-East London"]
[null,null,null,null,null,null,null,null,null,null,null,null,null,null,123254,"Kedington Primary Academy","2013-04-01","Suffolk County Council",{"$f":"VLOOKUP(R2395,'LA CPID Look up'!$A$3:$C$153,2,FALSE)","v":"Suffolk County Council"},"East of England and North-East London"]
[null,null,null,null,null,null,null,null,null,null,null,null,null,null,131688,"Keelby Primary School","2015-03-01","Lincolnshire County Council",{"$f":"VLOOKUP(R2396,'LA CPID Look up'!$A$3:$C$153,2,FALSE)","v":"Lincolnshire County Council"},"East Midlands and the Humber"]
[null,null,null,null,null,null,null,null,null,null,null,null,null,null,122569,"Kelsall Primary School","2012-09-01","Cheshire West and Chester Council",{"$f":"VLOOKUP(R2398,'LA CPID Look up'!$A$3:$C$153,2,FALSE)","v":"Cheshire West and Chester Unitary Authority"},"West Midlands"]
[null,null,null,null,null,null,null,null,null,null,null,null,null,null,123161,"Kelvedon St Mary's Church of England Primary Academy","2013-03-01","Essex County Council",{"$f":"VLOOKUP(R2399,'LA CPID Look up'!$A$3:$C$153,2,FALSE)","v":"Essex County Council"},"East of England and North-East London"]
[null,null,null,null,null,null,null,null,null,null,null,null,null,null,119464,"Kendrick School","2011-02-01","Reading Borough Council",{"$f":"VLOOKUP(R2402,'LA CPID Look up'!$A$3:$C$153,2,FALSE)","v":"Reading Borough Council"},"East of England and North-East London"]
[null,null,null,null,null,null,null,null,null,null,null,null,null,null,119645,"Kennet School","2011-04-01","West Berkshire Council",{"$f":"VLOOKUP(R2403,'LA CPID Look up'!$A$3:$C$153,2,FALSE)","v":"West Berkshire Council"},"East of England and North-East London"]
[null,null,null,null,null,null,null,null,null,null,null,null,null,null,131179,"Kennington Church of England Academy","2014-11-01","Kent County Council",{"$f":"VLOOKUP(R2405,'LA CPID Look up'!$A$3:$C$153,2,FALSE)","v":"Kent County Council"},"South-East England and South London"]
[null,null,null,null,null,null,null,null,null,null,null,null,null,null,124452,"Kennington Park Academy","2014-07-01","Lambeth London Borough Council",{"$f":"VLOOKUP(R2406,'LA CPID Look up'!$A$3:$C$153,2,FALSE)","v":"Lambeth London Borough Council"},"South-East England and South London"]
[null,null,null,null,null,null,null,null,null,null,null,null,null,null,122005,"Kensington Aldridge Academy","2014-09-01","Royal Borough of Kensington and Chelsea Council",{"$f":"VLOOKUP(R2408,'LA CPID Look up'!$A$3:$C$153,2,FALSE)","v":"Kensington and Chelsea Council (Royal Borough of)"},"East of England and North-East London"]
[null,null,null,null,null,null,null,null,null,null,null,null,null,null,131389,"Kentmere Primary Academy","2015-02-01","Rochdale metropolitan borough Council",{"$f":"VLOOKUP(R2409,'LA CPID Look up'!$A$3:$C$153,2,FALSE)","v":"Rochdale Borough Council"},"Lancashire and West Yorkshire"]
[null,null,null,null,null,null,null,null,null,null,null,null,null,null,120330,"Kents Hill Infant School","2011-09-01","Essex County Council",{"$f":"VLOOKUP(R2411,'LA CPID Look up'!$A$3:$C$153,2,FALSE)","v":"Essex County Council"},"East of England and North-East London"]
[null,null,null,null,null,null,null,null,null,null,null,null,null,null,120586,"Kents Hill Junior School","2011-11-01","Essex County Council",{"$f":"VLOOKUP(R2412,'LA CPID Look up'!$A$3:$C$153,2,FALSE)","v":"Essex County Council"},"East of England and North-East London"]
[null,null,null,null,null,null,null,null,null,null,null,null,null,null,124295,"Kenyngton Manor Primary School","2013-12-01","Surrey County Council",{"$f":"VLOOKUP(R2414,'LA CPID Look up'!$A$3:$C$153,2,FALSE)","v":"Surrey County Council"},"South-East England and South London"]
[null,null,null,null,null,null,null,null,null,null,null,null,null,null,120262,"Kepier","2011-08-01","Sunderland City Council",{"$f":"VLOOKUP(R2415,'LA CPID Look up'!$A$3:$C$153,2,FALSE)","v":"Sunderland City Metropolitan Borough Council"},"North of England"]
[null,null,null,null,null,null,null,null,null,null,null,null,null,null,119969,"Kesgrave High School","2011-08-01","Suffolk County Council",{"$f":"VLOOKUP(R2417,'LA CPID Look up'!$A$3:$C$153,2,FALSE)","v":"Suffolk County Council"},"East of England and North-East London"]
[null,null,null,null,null,null,null,null,null,null,null,null,null,null,130319,"Kessingland Church of England Primary Academy","2014-09-01","Suffolk County Council",{"$f":"VLOOKUP(R2418,'LA CPID Look up'!$A$3:$C$153,2,FALSE)","v":"Suffolk County Council"},"East of England and North-East London"]
[null,null,null,null,null,null,null,null,null,null,null,null,null,null,120675,"Kesteven and Sleaford High School Selective Academy","2011-11-01","Lincolnshire County Council",{"$f":"VLOOKUP(R2420,'LA CPID Look up'!$A$3:$C$153,2,FALSE)","v":"Lincolnshire County Council"},"East Midlands and the Humber"]
[null,null,null,null,null,null,null,null,null,null,null,null,null,null,129900,"Keston Church of England Primary School","2014-04-01","Bromley London Borough Council",{"$f":"VLOOKUP(R2421,'LA CPID Look up'!$A$3:$C$153,2,FALSE)","v":"Bromley London Borough Council"},"South-East England and South London"]
[null,null,null,null,null,null,null,null,null,null,null,null,null,null,119105,"Kettering Buccleuch Academy","2009-09-01","Northamptonshire County Council",{"$f":"VLOOKUP(R2423,'LA CPID Look up'!$A$3:$C$153,2,FALSE)","v":"Northamptonshire County Council"},"East of England and North-East London"]
[null,null,null,null,null,null,null,null,null,null,null,null,null,null,119106,"Kettering Science Academy","2009-09-01","Northamptonshire County Council",{"$f":"VLOOKUP(R2424,'LA CPID Look up'!$A$3:$C$153,2,FALSE)","v":"Northamptonshire County Council"},"East of England and North-East London"]
[null,null,null,null,null,null,null,null,null,null,null,null,null,null,130085,"Keyham Barton Catholic Primary School","2014-04-01","Plymouth City Council",{"$f":"VLOOKUP(R2426,'LA CPID Look up'!$A$3:$C$153,2,FALSE)","v":"Plymouth City Council"},"South-West England"]
[null,null,null,null,null,null,null,null,null,null,null,null,null,null,123316,"Khalsa Science Academy","2013-09-01","Leeds City Council",{"$f":"VLOOKUP(R2427,'LA CPID Look up'!$A$3:$C$153,2,FALSE)","v":"Leeds City Council"},"Lancashire and West Yorkshire"]
[null,null,null,null,null,null,null,null,null,null,null,null,null,null,122048,"Kibworth Church of England Primary School","2012-07-01","Leicestershire County Council",{"$f":"VLOOKUP(R2430,'LA CPID Look up'!$A$3:$C$153,2,FALSE)","v":"Leicestershire County Council"},"East Midlands and the Humber"]
[null,null,null,null,null,null,null,null,null,null,null,null,null,null,120555,"Kibworth High School & Community Technology College","2011-10-01","Leicestershire County Council",{"$f":"VLOOKUP(R2431,'LA CPID Look up'!$A$3:$C$153,2,FALSE)","v":"Leicestershire County Council"},"East Midlands and the Humber"]
[null,null,null,null,null,null,null,null,null,null,null,null,null,null,132649,"Kilburn Grange School","2015-09-01","Brent London Borough Council",{"$f":"VLOOKUP(R2433,'LA CPID Look up'!$A$3:$C$153,2,FALSE)","v":"Brent London Borough Council"},"South-Central England and North-West London"]
[null,null,null,null,null,null,null,null,null,null,null,null,null,null,129892,"Kilsby Church of England Primary School","2014-07-01","Northamptonshire County Council",{"$f":"VLOOKUP(R2434,'LA CPID Look up'!$A$3:$C$153,2,FALSE)","v":"Northamptonshire County Council"},"East of England and North-East London"]
[null,null,null,null,null,null,null,null,null,null,null,null,null,null,123318,"Kimberley 16 - 19 Stem College","2013-09-01","Bedford Borough Council",{"$f":"VLOOKUP(R2436,'LA CPID Look up'!$A$3:$C$153,2,FALSE)","v":"Bedford Unitary Authority"},"South-Central England and North-West London"]
[null,null,null,null,null,null,null,null,null,null,null,null,null,null,122726,"Kimberley School, The","2012-09-01","Nottinghamshire County Council",{"$f":"VLOOKUP(R2437,'LA CPID Look up'!$A$3:$C$153,2,FALSE)","v":"Nottinghamshire County Council"},"East Midlands and the Humber"]
[null,null,null,null,null,null,null,null,null,null,null,null,null,null,120140,"King Alfred's","2011-08-01","Oxfordshire County Council",{"$f":"VLOOKUP(R2439,'LA CPID Look up'!$A$3:$C$153,2,FALSE)","v":"Oxfordshire County Council"},"East of England and North-East London"]
[null,null,null,null,null,null,null,null,null,null,null,null,null,null,121012,"King Charles I Secondary School","2012-04-01","Worcestershire County Council",{"$f":"VLOOKUP(R2440,'LA CPID Look up'!$A$3:$C$153,2,FALSE)","v":"Worcestershire County Council"},"West Midlands"]
[null,null,null,null,null,null,null,null,null,null,null,null,null,null,123275,"King David Primary School","2013-06-01","Manchester City Council",{"$f":"VLOOKUP(R2442,'LA CPID Look up'!$A$3:$C$153,2,FALSE)","v":"Manchester City Council"},"Lancashire and West Yorkshire"]
[null,null,null,null,null,null,null,null,null,null,null,null,null,null,121930,"King Ecgbert School","2012-10-01","Sheffield City Council",{"$f":"VLOOKUP(R2443,'LA CPID Look up'!$A$3:$C$153,2,FALSE)","v":"Sheffield City Council"},"East Midlands and the Humber"]
[null,null,null,null,null,null,null,null,null,null,null,null,null,null,121215,"King Edward VI Academy - Spilsby","2012-09-01","Lincolnshire County Council",{"$f":"VLOOKUP(R2445,'LA CPID Look up'!$A$3:$C$153,2,FALSE)","v":"Lincolnshire County Council"},"East Midlands and the Humber"]
[null,null,null,null,null,null,null,null,null,null,null,null,null,null,120043,"King Edward VI Aston School","2011-08-01","Birmingham City Council",{"$f":"VLOOKUP(R2446,'LA CPID Look up'!$A$3:$C$153,2,FALSE)","v":"Birmingham City Council"},"West Midlands"]
[null,null,null,null,null,null,null,null,null,null,null,null,null,null,120044,"King Edward VI Camp Hill School for Girls","2011-08-01","Birmingham City Council",{"$f":"VLOOKUP(R2448,'LA CPID Look up'!$A$3:$C$153,2,FALSE)","v":"Birmingham City Council"},"West Midlands"]
[null,null,null,null,null,null,null,null,null,null,null,null,null,null,120046,"King Edward VI Five Ways School","2011-08-01","Birmingham City Council",{"$f":"VLOOKUP(R2449,'LA CPID Look up'!$A$3:$C$153,2,FALSE)","v":"Birmingham City Council"},"West Midlands"]
[null,null,null,null,null,null,null,null,null,null,null,null,null,null,119685,"King Edward VI Grammar School, Chelmsford","2011-04-01","Essex County Council",{"$f":"VLOOKUP(R2451,'LA CPID Look up'!$A$3:$C$153,2,FALSE)","v":"Essex County Council"},"East of England and North-East London"]
[null,null,null,null,null,null,null,null,null,null,null,null,null,null,120047,"King Edward VI Handsworth School","2011-08-01","Birmingham City Council",{"$f":"VLOOKUP(R2452,'LA CPID Look up'!$A$3:$C$153,2,FALSE)","v":"Birmingham City Council"},"West Midlands"]
[null,null,null,null,null,null,null,null,null,null,null,null,null,null,120871,"King Edward VI School, The","2011-12-01","Northumberland County Council",{"$f":"VLOOKUP(R2454,'LA CPID Look up'!$A$3:$C$153,2,FALSE)","v":"Northumberland Unitary Authority"},"North of England"]
[null,null,null,null,null,null,null,null,null,null,null,null,null,null,119208,"King Edward VI Sheldon Heath Academy","2010-09-01","Birmingham City Council",{"$f":"VLOOKUP(R2455,'LA CPID Look up'!$A$3:$C$153,2,FALSE)","v":"Birmingham City Council"},"West Midlands"]
[null,null,null,null,null,null,null,null,null,null,null,null,null,null,114115,"King Edward VII Science and Sport College","2012-10-01","Leicestershire County Council",{"$f":"VLOOKUP(R2457,'LA CPID Look up'!$A$3:$C$153,2,FALSE)","v":"Leicestershire County Council"},"East Midlands and the Humber"]
[null,null,null,null,null,null,null,null,null,null,null,null,null,null,119658,"King Ethelbert School","2011-04-01","Kent County Council",{"$f":"VLOOKUP(R2458,'LA CPID Look up'!$A$3:$C$153,2,FALSE)","v":"Kent County Council"},"South-East England and South London"]
[null,null,null,null,null,null,null,null,null,null,null,null,null,null,119771,"King James I Academy Bishop Auckland","2011-06-01","Durham County Council",{"$f":"VLOOKUP(R2461,'LA CPID Look up'!$A$3:$C$153,2,FALSE)","v":"County Durham Unitary Authority"},"North of England"]
[null,null,null,null,null,null,null,null,null,null,null,null,null,null,122293,"King James's School","2012-09-01","Kirklees Metropolitan Council",{"$f":"VLOOKUP(R2462,'LA CPID Look up'!$A$3:$C$153,2,FALSE)","v":"Kirklees Metropolitan Council"},"Lancashire and West Yorkshire"]
[null,null,null,null,null,null,null,null,null,null,null,null,null,null,122301,"King Offa Primary Academy","2012-09-01","East Sussex County Council",{"$f":"VLOOKUP(R2464,'LA CPID Look up'!$A$3:$C$153,2,FALSE)","v":"East Sussex County Council"},"South-East England and South London"]
[null,null,null,null,null,null,null,null,null,null,null,null,null,null,118623,"King Solomon Academy","2007-09-01","Westminster City Council",{"$f":"VLOOKUP(R2465,'LA CPID Look up'!$A$3:$C$153,2,FALSE)","v":"Westminster City Council"},"East of England and North-East London"]
[null,null,null,null,null,null,null,null,null,null,null,null,null,null,121875,"King William Street Church of England Primary School","2012-08-01","Swindon Borough Council",{"$f":"VLOOKUP(R2467,'LA CPID Look up'!$A$3:$C$153,2,FALSE)","v":"Swindon Unitary Authority"},"South-West England"]
[null,null,null,null,null,null,null,null,null,null,null,null,null,null,130522,"King’s College London Maths School","2014-09-01","Lambeth London Borough Council",{"$f":"VLOOKUP(R2468,'LA CPID Look up'!$A$3:$C$153,2,FALSE)","v":"Lambeth London Borough Council"},"South-East England and South London"]
[null,null,null,null,null,null,null,null,null,null,null,null,null,null,124656,"Kingfisher Community Primary School","2013-09-01","Medway Council",{"$f":"VLOOKUP(R2470,'LA CPID Look up'!$A$3:$C$153,2,FALSE)","v":"Medway Towns Unitary Authority (The)"},"South-East England and South London"]
[null,null,null,null,null,null,null,null,null,null,null,null,null,null,121993,"Kingfisher Hall Primary Academy","2012-09-01","Enfield London Borough Council",{"$f":"VLOOKUP(R2471,'LA CPID Look up'!$A$3:$C$153,2,FALSE)","v":"Enfield London Borough Council"},"South-Central England and North-West London"]
[null,null,null,null,null,null,null,null,null,null,null,null,null,null,122666,"Kingfisher School, The - Bristol","2013-04-01","Bristol City Council",{"$f":"VLOOKUP(R2473,'LA CPID Look up'!$A$3:$C$153,2,FALSE)","v":"Bristol City Council"},"South-West England"]
[null,null,null,null,null,null,null,null,null,null,null,null,null,null,127196,"Kingfisher School, The - Redditch","2014-01-01","Worcestershire County Council",{"$f":"VLOOKUP(R2474,'LA CPID Look up'!$A$3:$C$153,2,FALSE)","v":"Worcestershire County Council"},"West Midlands"]
[null,null,null,null,null,null,null,null,null,null,null,null,null,null,118405,"King's Academy, The","2003-09-01","Middlesbrough Council",{"$f":"VLOOKUP(R2476,'LA CPID Look up'!$A$3:$C$153,2,FALSE)","v":"Middlesbrough Council"},"North of England"]
[null,null,null,null,null,null,null,null,null,null,null,null,null,null,122663,"Kings Ash Academy","2012-09-01","Torbay Council",{"$f":"VLOOKUP(R2477,'LA CPID Look up'!$A$3:$C$153,2,FALSE)","v":"Torbay Council"},"South-West England"]
[null,null,null,null,null,null,null,null,null,null,null,null,null,null,130933,"Kings College Guildford","2014-09-01","Surrey County Council",{"$f":"VLOOKUP(R2479,'LA CPID Look up'!$A$3:$C$153,2,FALSE)","v":"Surrey County Council"},"South-East England and South London"]
[null,null,null,null,null,null,null,null,null,null,null,null,null,null,130943,"Kings Cross Academy","2015-09-01","Camden London Borough Council",{"$f":"VLOOKUP(R2480,'LA CPID Look up'!$A$3:$C$153,2,FALSE)","v":"Camden London Borough Council"},"South-Central England and North-West London"]
[null,null,null,null,null,null,null,null,null,null,null,null,null,null,123186,"Kings Langley School","2012-12-01","Hertfordshire County Council",{"$f":"VLOOKUP(R2482,'LA CPID Look up'!$A$3:$C$153,2,FALSE)","v":"Hertfordshire County Council"},"East of England and North-East London"]
[null,null,null,null,null,null,null,null,null,null,null,null,null,null,121989,"King's Leadership Academy","2012-09-01","Warrington Borough Council",{"$f":"VLOOKUP(R2483,'LA CPID Look up'!$A$3:$C$153,2,FALSE)","v":"Warrington Borough Council"},"Lancashire and West Yorkshire"]
[null,null,null,null,null,null,null,null,null,null,null,null,null,null,119326,"King's Lynn Academy","2010-09-01","Norfolk County Council",{"$f":"VLOOKUP(R2485,'LA CPID Look up'!$A$3:$C$153,2,FALSE)","v":"Norfolk County Council"},"East of England and North-East London"]
[null,null,null,null,null,null,null,null,null,null,null,null,null,null,119621,"Kings Norton Girls' School","2011-04-01","Birmingham City Council",{"$f":"VLOOKUP(R2486,'LA CPID Look up'!$A$3:$C$153,2,FALSE)","v":"Birmingham City Council"},"West Midlands"]
[null,null,null,null,null,null,null,null,null,null,null,null,null,null,131738,"King's Park Academy","2015-03-01","Bournemouth Borough Council",{"$f":"VLOOKUP(R2489,'LA CPID Look up'!$A$3:$C$153,2,FALSE)","v":"Bournemouth Council"},"South-West England"]
[null,null,null,null,null,null,null,null,null,null,null,null,null,null,123100,"Kings Priory School","2013-09-01","North Tyneside Council",{"$f":"VLOOKUP(R2490,'LA CPID Look up'!$A$3:$C$153,2,FALSE)","v":"North Tyneside Metropolitan Borough Council"},"North of England"]
[null,null,null,null,null,null,null,null,null,null,null,null,null,null,123319,"King's School - Hove","2013-09-01","Brighton and Hove City Council",{"$f":"VLOOKUP(R2492,'LA CPID Look up'!$A$3:$C$153,2,FALSE)","v":"Brighton & Hove City Council"},"South-East England and South London"]
[null,null,null,null,null,null,null,null,null,null,null,null,null,null,120166,"King's School, Grantham, The","2011-08-01","Lincolnshire County Council",{"$f":"VLOOKUP(R2493,'LA CPID Look up'!$A$3:$C$153,2,FALSE)","v":"Lincolnshire County Council"},"East Midlands and the Humber"]
[null,null,null,null,null,null,null,null,null,null,null,null,null,null,123220,"King's School, The - Wakefield","2013-04-01","Wakefield Council",{"$f":"VLOOKUP(R2495,'LA CPID Look up'!$A$3:$C$153,2,FALSE)","v":"Wakefield City Council"},"Lancashire and West Yorkshire"]
[null,null,null,null,null,null,null,null,null,null,null,null,null,null,124193,"Kings Sutton Primary School","2013-09-01","Northamptonshire County Council",{"$f":"VLOOKUP(R2496,'LA CPID Look up'!$A$3:$C$153,2,FALSE)","v":"Northamptonshire County Council"},"East of England and North-East London"]
[null,null,null,null,null,null,null,null,null,null,null,null,null,null,120732,"Kingsbury High School","2011-12-01","Brent London Borough Council",{"$f":"VLOOKUP(R2498,'LA CPID Look up'!$A$3:$C$153,2,FALSE)","v":"Brent London Borough Council"},"South-Central England and North-West London"]
[null,null,null,null,null,null,null,null,null,null,null,null,null,null,131669,"Kingsbury School","2015-03-01","Warwickshire County Council",{"$f":"VLOOKUP(R2499,'LA CPID Look up'!$A$3:$C$153,2,FALSE)","v":"Warwickshire County Council"},"West Midlands"]
[null,null,null,null,null,null,null,null,null,null,null,null,null,null,120265,"Kingsdown School","2011-08-01","Swindon Borough Council",{"$f":"VLOOKUP(R2501,'LA CPID Look up'!$A$3:$C$153,2,FALSE)","v":"Swindon Unitary Authority"},"South-West England"]
[null,null,null,null,null,null,null,null,null,null,null,null,null,null,130330,"Kingsfield Primary School","2014-07-01","Cambridgeshire County Council",{"$f":"VLOOKUP(R2502,'LA CPID Look up'!$A$3:$C$153,2,FALSE)","v":"Cambridgeshire County Council"},"East of England and North-East London"]
[null,null,null,null,null,null,null,null,null,null,null,null,null,null,122815,"Kingshill Church School","2013-04-01","North Somerset District Council",{"$f":"VLOOKUP(R2504,'LA CPID Look up'!$A$3:$C$153,2,FALSE)","v":"North Somerset Council"},"South-West England"]
[null,null,null,null,null,null,null,null,null,null,null,null,null,null,131687,"Kingsleigh Primary School","2015-12-01","Bournemouth Borough Council",{"$f":"VLOOKUP(R2505,'LA CPID Look up'!$A$3:$C$153,2,FALSE)","v":"Bournemouth Council"},"South-West England"]
[null,null,null,null,null,null,null,null,null,null,null,null,null,null,120656,"Kingsley School - Kettering","2012-02-01","Northamptonshire County Council",{"$f":"VLOOKUP(R2507,'LA CPID Look up'!$A$3:$C$153,2,FALSE)","v":"Northamptonshire County Council"},"East of England and North-East London"]
[null,null,null,null,null,null,null,null,null,null,null,null,null,null,119540,"Kingsmead Academy - Taunton","2011-04-01","Somerset County Council",{"$f":"VLOOKUP(R2508,'LA CPID Look up'!$A$3:$C$153,2,FALSE)","v":"Somerset County Council"},"South-West England"]
[null,null,null,null,null,null,null,null,null,null,null,null,null,null,119288,"Kingsmead School - Enfield","2010-10-01","Enfield London Borough Council",{"$f":"VLOOKUP(R2510,'LA CPID Look up'!$A$3:$C$153,2,FALSE)","v":"Enfield London Borough Council"},"South-Central England and North-West London"]
[null,null,null,null,null,null,null,null,null,null,null,null,null,null,122841,"Kingsmoor Academy","2012-12-01","Essex County Council",{"$f":"VLOOKUP(R2511,'LA CPID Look up'!$A$3:$C$153,2,FALSE)","v":"Essex County Council"},"East of England and North-East London"]
[null,null,null,null,null,null,null,null,null,null,null,null,null,null,122371,"Kingsthorpe College","2012-11-01","Northamptonshire County Council",{"$f":"VLOOKUP(R2513,'LA CPID Look up'!$A$3:$C$153,2,FALSE)","v":"Northamptonshire County Council"},"East of England and North-East London"]
[null,null,null,null,null,null,null,null,null,null,null,null,null,null,132660,"Kingston Academy, The","2015-09-01","Royal Borough of Kingston upon Thames Council",{"$f":"VLOOKUP(R2514,'LA CPID Look up'!$A$3:$C$153,2,FALSE)","v":"Kingston upon Thames Council (Royal Borough of)"},"South-East England and South London"]
[null,null,null,null,null,null,null,null,null,null,null,null,null,null,122956,"Kingston Park Academy","2012-12-01","Nottinghamshire County Council",{"$f":"VLOOKUP(R2516,'LA CPID Look up'!$A$3:$C$153,2,FALSE)","v":"Nottinghamshire County Council"},"East Midlands and the Humber"]
[null,null,null,null,null,null,null,null,null,null,null,null,null,null,120220,"Kingston School","2011-08-01","Essex County Council",{"$f":"VLOOKUP(R2517,'LA CPID Look up'!$A$3:$C$153,2,FALSE)","v":"Essex County Council"},"East of England and North-East London"]
[null,null,null,null,null,null,null,null,null,null,null,null,null,null,130932,"Kingsway Academy, The - Moreton","2015-02-01","Wirral Metropolitan Borough Council",{"$f":"VLOOKUP(R2520,'LA CPID Look up'!$A$3:$C$153,2,FALSE)","v":"Wirral Metropolitan Borough Council"},"Lancashire and West Yorkshire"]
[null,null,null,null,null,null,null,null,null,null,null,null,null,null,132488,"Kingsway School, The - Cheadle","2016-02-01","Stockport Metropolitan Borough Council",{"$f":"VLOOKUP(R2521,'LA CPID Look up'!$A$3:$C$153,2,FALSE)","v":"Stockport Metropolitan Borough Council"},"Lancashire and West Yorkshire"]
[null,null,null,null,null,null,null,null,null,null,null,null,null,null,120520,"Kingswinford School & Science College, The","2012-01-01","Dudley Metropolitan Borough Council",{"$f":"VLOOKUP(R2523,'LA CPID Look up'!$A$3:$C$153,2,FALSE)","v":"Dudley Metropolitan Borough Council"},"West Midlands"]
[null,null,null,null,null,null,null,null,null,null,null,null,null,null,122809,"Kingswood Academy - Hull","2013-07-01","Hull City Council",{"$f":"VLOOKUP(R2524,'LA CPID Look up'!$A$3:$C$153,2,FALSE)","v":"Kingston upon Hull City Council"},"East Midlands and the Humber"]
[null,null,null,null,null,null,null,null,null,null,null,null,null,null,122684,"Kingswood Primary Academy - Corby","2013-04-01","Northamptonshire County Council",{"$f":"VLOOKUP(R2526,'LA CPID Look up'!$A$3:$C$153,2,FALSE)","v":"Northamptonshire County Council"},"East of England and North-East London"]
[null,null,null,null,null,null,null,null,null,null,null,null,null,null,124835,"Kingswood Secondary Academy - Corby","2013-09-01","Northamptonshire County Council",{"$f":"VLOOKUP(R2527,'LA CPID Look up'!$A$3:$C$153,2,FALSE)","v":"Northamptonshire County Council"},"East of England and North-East London"]
[null,null,null,null,null,null,null,null,null,null,null,null,null,null,132425,"Kinson Primary School","2015-12-01","Bournemouth Borough Council",{"$f":"VLOOKUP(R2529,'LA CPID Look up'!$A$3:$C$153,2,FALSE)","v":"Bournemouth Council"},"South-West England"]
[null,null,null,null,null,null,null,null,null,null,null,null,null,null,131355,"Kinver High School and Sixth Form","2015-03-01","Staffordshire County Council",{"$f":"VLOOKUP(R2530,'LA CPID Look up'!$A$3:$C$153,2,FALSE)","v":"Staffordshire County Council"},"West Midlands"]
[null,null,null,null,null,null,null,null,null,null,null,null,null,null,124683,"Kirby Primary Academy","2013-10-01","Essex County Council",{"$f":"VLOOKUP(R2532,'LA CPID Look up'!$A$3:$C$153,2,FALSE)","v":"Essex County Council"},"East of England and North-East London"]
[null,null,null,null,null,null,null,null,null,null,null,null,null,null,124305,"Kirk Balk Academy","2015-03-01","Barnsley Metropolitan Borough Council",{"$f":"VLOOKUP(R2533,'LA CPID Look up'!$A$3:$C$153,2,FALSE)","v":"Barnsley Metropolitan Borough Council"},"East Midlands and the Humber"]
[null,null,null,null,null,null,null,null,null,null,null,null,null,null,122723,"Kirk Sandall Infant School","2012-11-01","Doncaster Metropolitan Borough Council",{"$f":"VLOOKUP(R2535,'LA CPID Look up'!$A$3:$C$153,2,FALSE)","v":"Doncaster Metropolitan Borough Council"},"East Midlands and the Humber"]
[null,null,null,null,null,null,null,null,null,null,null,null,null,null,131590,"Kirk Sandall Junior School","2015-03-01","Doncaster Metropolitan Borough Council",{"$f":"VLOOKUP(R2536,'LA CPID Look up'!$A$3:$C$153,2,FALSE)","v":"Doncaster Metropolitan Borough Council"},"East Midlands and the Humber"]
[null,null,null,null,null,null,null,null,null,null,null,null,null,null,121041,"Kirkby College","2012-08-01","Nottinghamshire County Council",{"$f":"VLOOKUP(R2538,'LA CPID Look up'!$A$3:$C$153,2,FALSE)","v":"Nottinghamshire County Council"},"East Midlands and the Humber"]
[null,null,null,null,null,null,null,null,null,null,null,null,null,null,124216,"Kirkby High School","2013-09-01","Knowsley Metropolitan Borough Council",{"$f":"VLOOKUP(R2539,'LA CPID Look up'!$A$3:$C$153,2,FALSE)","v":"Knowsley Metropolitan Borough Council"},"Lancashire and West Yorkshire"]
[null,null,null,null,null,null,null,null,null,null,null,null,null,null,124736,"Kirkby-la-Thorpe Church of England Primary School, The","2013-12-01","Lincolnshire County Council",{"$f":"VLOOKUP(R2541,'LA CPID Look up'!$A$3:$C$153,2,FALSE)","v":"Lincolnshire County Council"},"East Midlands and the Humber"]
[null,null,null,null,null,null,null,null,null,null,null,null,null,null,119626,"Knights Templar School, The","2011-04-01","Hertfordshire County Council",{"$f":"VLOOKUP(R2542,'LA CPID Look up'!$A$3:$C$153,2,FALSE)","v":"Hertfordshire County Council"},"East of England and North-East London"]
[null,null,null,null,null,null,null,null,null,null,null,null,null,null,131112,"Knockhall Academy","2014-08-01","Kent County Council",{"$f":"VLOOKUP(R2544,'LA CPID Look up'!$A$3:$C$153,2,FALSE)","v":"Kent County Council"},"South-East England and South London"]
[null,null,null,null,null,null,null,null,null,null,null,null,null,null,119193,"Knole Academy","2010-09-01","Kent County Council",{"$f":"VLOOKUP(R2545,'LA CPID Look up'!$A$3:$C$153,2,FALSE)","v":"Kent County Council"},"South-East England and South London"]
[null,null,null,null,null,null,null,null,null,null,null,null,null,null,130828,"Knowl Hill Church of England Primary Academy","2014-09-01","Royal Borough of Windsor and Maidenhead",{"$f":"VLOOKUP(R2548,'LA CPID Look up'!$A$3:$C$153,2,FALSE)","v":"Windsor and Maidenhead (Royal Borough of)"},"East of England and North-East London"]
[null,null,null,null,null,null,null,null,null,null,null,null,null,null,123878,"Knowle Church of England Primary Academy","2013-04-01","Solihull Metropolitan Borough Council",{"$f":"VLOOKUP(R2549,'LA CPID Look up'!$A$3:$C$153,2,FALSE)","v":"Solihull Metropolitan Borough Council"},"West Midlands"]
[null,null,null,null,null,null,null,null,null,null,null,null,null,null,121163,"Knutsford Academy","2012-04-01","Cheshire East Council",{"$f":"VLOOKUP(R2551,'LA CPID Look up'!$A$3:$C$153,2,FALSE)","v":"Cheshire East Unitary Authority"},"West Midlands"]
[null,null,null,null,null,null,null,null,null,null,null,null,null,null,130574,"Knutsford Academy - the Studio","2014-09-01","Cheshire East Council",{"$f":"VLOOKUP(R2552,'LA CPID Look up'!$A$3:$C$153,2,FALSE)","v":"Cheshire East Unitary Authority"},"West Midlands"]
[null,null,null,null,null,null,null,null,null,null,null,null,null,null,120530,"Krishna Avanti Primary School - Leicester","2011-09-01","Leicester City Council",{"$f":"VLOOKUP(R2554,'LA CPID Look up'!$A$3:$C$153,2,FALSE)","v":"Leicester City Council"},"East Midlands and the Humber"]
[null,null,null,null,null,null,null,null,null,null,null,null,null,null,130486,"La Fontaine Academy","2014-09-01","Bromley London Borough Council",{"$f":"VLOOKUP(R2555,'LA CPID Look up'!$A$3:$C$153,2,FALSE)","v":"Bromley London Borough Council"},"South-East England and South London"]
[null,null,null,null,null,null,null,null,null,null,null,null,null,null,128058,"Laceby Acres Primary Academy","2014-02-01","North East Lincolnshire Council",{"$f":"VLOOKUP(R2557,'LA CPID Look up'!$A$3:$C$153,2,FALSE)","v":"North East Lincolnshire Council"},"East Midlands and the Humber"]
[null,null,null,null,null,null,null,null,null,null,null,null,null,null,120368,"Lacey Green Primary Academy","2011-09-01","Cheshire East Council",{"$f":"VLOOKUP(R2558,'LA CPID Look up'!$A$3:$C$153,2,FALSE)","v":"Cheshire East Unitary Authority"},"West Midlands"]
[null,null,null,null,null,null,null,null,null,null,null,null,null,null,127543,"Ladock CofE School","2013-12-01","Cornwall Council",{"$f":"VLOOKUP(R2560,'LA CPID Look up'!$A$3:$C$153,2,FALSE)","v":"Cornwall Unitary Authority"},"South-West England"]
[null,null,null,null,null,null,null,null,null,null,null,null,null,null,120540,"Lady Hawkins' School","2011-11-01","Herefordshire Council",{"$f":"VLOOKUP(R2561,'LA CPID Look up'!$A$3:$C$153,2,FALSE)","v":"Herefordshire Council"},"West Midlands"]
[null,null,null,null,null,null,null,null,null,null,null,null,null,null,122577,"Lady Margaret School","2012-09-01","Hammersmith and Fulham London Borough Council",{"$f":"VLOOKUP(R2563,'LA CPID Look up'!$A$3:$C$153,2,FALSE)","v":"Hammersmith and Fulham London Borough Council"},"South-Central England and North-West London"]
[null,null,null,null,null,null,null,null,null,null,null,null,null,null,120523,"Lady Seaward's Church of England Primary School","2011-11-01","Devon County Council",{"$f":"VLOOKUP(R2564,'LA CPID Look up'!$A$3:$C$153,2,FALSE)","v":"Devon County Council"},"South-West England"]
[null,null,null,null,null,null,null,null,null,null,null,null,null,null,123909,"Ladygrove Park Primary School","2013-06-01","Oxfordshire County Council",{"$f":"VLOOKUP(R2566,'LA CPID Look up'!$A$3:$C$153,2,FALSE)","v":"Oxfordshire County Council"},"East of England and North-East London"]
[null,null,null,null,null,null,null,null,null,null,null,null,null,null,132389,"Laithes Primary School","2015-09-01","Barnsley Metropolitan Borough Council",{"$f":"VLOOKUP(R2567,'LA CPID Look up'!$A$3:$C$153,2,FALSE)","v":"Barnsley Metropolitan Borough Council"},"East Midlands and the Humber"]
[null,null,null,null,null,null,null,null,null,null,null,null,null,null,122587,"Lakelands Academy","2012-12-01","Shropshire Council",{"$f":"VLOOKUP(R2569,'LA CPID Look up'!$A$3:$C$153,2,FALSE)","v":"Shropshire Unitary Authority"},"West Midlands"]
[null,null,null,null,null,null,null,null,null,null,null,null,null,null,133096,"Lakeside Primary School","2015-10-01","Cheshire East Council",{"$f":"VLOOKUP(R2570,'LA CPID Look up'!$A$3:$C$153,2,FALSE)","v":"Cheshire East Unitary Authority"},"West Midlands"]
[null,null,null,null,null,null,null,null,null,null,null,null,null,null,119270,"Lampton Academy","2010-09-01","Hounslow London Borough Council",{"$f":"VLOOKUP(R2572,'LA CPID Look up'!$A$3:$C$153,2,FALSE)","v":"Hounslow London Borough Council"},"East of England and North-East London"]
[null,null,null,null,null,null,null,null,null,null,null,null,null,null,119412,"Lancaster Girls' Grammar School","2011-01-01","Lancashire County Council",{"$f":"VLOOKUP(R2573,'LA CPID Look up'!$A$3:$C$153,2,FALSE)","v":"Lancashire County Council"},"Lancashire and West Yorkshire"]
[null,null,null,null,null,null,null,null,null,null,null,null,null,null,130556,"Lanchester Community Free School","2014-09-01","Hertfordshire County Council",{"$f":"VLOOKUP(R2575,'LA CPID Look up'!$A$3:$C$153,2,FALSE)","v":"Hertfordshire County Council"},"East of England and North-East London"]
[null,null,null,null,null,null,null,null,null,null,null,null,null,null,132977,"Lancot School","2015-09-01","Central Bedfordshire Council",{"$f":"VLOOKUP(R2576,'LA CPID Look up'!$A$3:$C$153,2,FALSE)","v":"Central Bedfordshire Unitary Authority"},"South-Central England and North-West London"]
[null,null,null,null,null,null,null,null,null,null,null,null,null,null,131642,"Landau Forte Academy Tamworth Sixth Form","2013-08-01","Staffordshire County Council",{"$f":"VLOOKUP(R2579,'LA CPID Look up'!$A$3:$C$153,2,FALSE)","v":"Staffordshire County Council"},"West Midlands"]
[null,null,null,null,null,null,null,null,null,null,null,null,null,null,119203,"Landau Forte Academy, Amington","2010-09-01","Staffordshire County Council",{"$f":"VLOOKUP(R2580,'LA CPID Look up'!$A$3:$C$153,2,FALSE)","v":"Staffordshire County Council"},"West Midlands"]
[null,null,null,null,null,null,null,null,null,null,null,null,null,null,118636,"Landau Forte College - Derby","2006-09-01","Derby City Council",{"$f":"VLOOKUP(R2582,'LA CPID Look up'!$A$3:$C$153,2,FALSE)","v":"Derby City Council"},"East Midlands and the Humber"]
[null,null,null,null,null,null,null,null,null,null,null,null,null,null,127406,"Landulph School","2014-01-01","Cornwall Council",{"$f":"VLOOKUP(R2583,'LA CPID Look up'!$A$3:$C$153,2,FALSE)","v":"Cornwall Unitary Authority"},"South-West England"]
[null,null,null,null,null,null,null,null,null,null,null,null,null,null,123320,"Langdale Free School","2013-09-01","Blackpool Council",{"$f":"VLOOKUP(R2585,'LA CPID Look up'!$A$3:$C$153,2,FALSE)","v":"Blackpool Unitary Authority"},"Lancashire and West Yorkshire"]
[null,null,null,null,null,null,null,null,null,null,null,null,null,null,127703,"Langdon Academy","2014-01-01","Newham London Borough Council",{"$f":"VLOOKUP(R2586,'LA CPID Look up'!$A$3:$C$153,2,FALSE)","v":"Newham London Borough Council"},"East of England and North-East London"]
[null,null,null,null,null,null,null,null,null,null,null,null,null,null,130611,"Langford Lower School","2014-06-01","Central Bedfordshire Council",{"$f":"VLOOKUP(R2588,'LA CPID Look up'!$A$3:$C$153,2,FALSE)","v":"Central Bedfordshire Unitary Authority"},"South-Central England and North-West London"]
[null,null,null,null,null,null,null,null,null,null,null,null,null,null,131591,"Langford Primary School","2016-01-01","Hammersmith and Fulham London Borough Council",{"$f":"VLOOKUP(R2589,'LA CPID Look up'!$A$3:$C$153,2,FALSE)","v":"Hammersmith and Fulham London Borough Council"},"South-Central England and North-West London"]
[null,null,null,null,null,null,null,null,null,null,null,null,null,null,131872,"Langham Oaks","2015-04-01","Essex County Council",{"$f":"VLOOKUP(R2591,'LA CPID Look up'!$A$3:$C$153,2,FALSE)","v":"Essex County Council"},"East of England and North-East London"]
[null,null,null,null,null,null,null,null,null,null,null,null,null,null,133032,"Langley Academy Primary, The","2015-09-01","Slough Borough Council",{"$f":"VLOOKUP(R2592,'LA CPID Look up'!$A$3:$C$153,2,FALSE)","v":"Slough Borough Council"},"East of England and North-East London"]
[null,null,null,null,null,null,null,null,null,null,null,null,null,null,119554,"Langley Grammar School","2011-04-01","Slough Borough Council",{"$f":"VLOOKUP(R2594,'LA CPID Look up'!$A$3:$C$153,2,FALSE)","v":"Slough Borough Council"},"East of England and North-East London"]
[null,null,null,null,null,null,null,null,null,null,null,null,null,null,120461,"Langley Hall Primary Academy","2011-09-01","Slough Borough Council",{"$f":"VLOOKUP(R2595,'LA CPID Look up'!$A$3:$C$153,2,FALSE)","v":"Slough Borough Council"},"East of England and North-East London"]
[null,null,null,null,null,null,null,null,null,null,null,null,null,null,120006,"Langley Park School for Girls","2011-08-01","Bromley London Borough Council",{"$f":"VLOOKUP(R2597,'LA CPID Look up'!$A$3:$C$153,2,FALSE)","v":"Bromley London Borough Council"},"South-East England and South London"]
[null,null,null,null,null,null,null,null,null,null,null,null,null,null,120007,"Langley School - Solihull","2011-08-01","Solihull Metropolitan Borough Council",{"$f":"VLOOKUP(R2598,'LA CPID Look up'!$A$3:$C$153,2,FALSE)","v":"Solihull Metropolitan Borough Council"},"West Midlands"]
[null,null,null,null,null,null,null,null,null,null,null,null,null,null,124242,"Langtons Junior Academy","2013-04-01","Havering London Borough Council",{"$f":"VLOOKUP(R2600,'LA CPID Look up'!$A$3:$C$153,2,FALSE)","v":"Havering London Borough Council"},"East of England and North-East London"]
[null,null,null,null,null,null,null,null,null,null,null,null,null,null,120994,"Langtree School","2012-04-01","Oxfordshire County Council",{"$f":"VLOOKUP(R2601,'LA CPID Look up'!$A$3:$C$153,2,FALSE)","v":"Oxfordshire County Council"},"East of England and North-East London"]
[null,null,null,null,null,null,null,null,null,null,null,null,null,null,131509,"Lansdowne Primary School - Sittingbourne","2014-11-01","Kent County Council",{"$f":"VLOOKUP(R2603,'LA CPID Look up'!$A$3:$C$153,2,FALSE)","v":"Kent County Council"},"South-East England and South London"]
[null,null,null,null,null,null,null,null,null,null,null,null,null,null,120869,"Lapford Community Primary School","2012-01-01","Devon County Council",{"$f":"VLOOKUP(R2604,'LA CPID Look up'!$A$3:$C$153,2,FALSE)","v":"Devon County Council"},"South-West England"]
[null,null,null,null,null,null,null,null,null,null,null,null,null,null,119290,"Lark Rise Academy","2010-10-01","Central Bedfordshire Council",{"$f":"VLOOKUP(R2607,'LA CPID Look up'!$A$3:$C$153,2,FALSE)","v":"Central Bedfordshire Unitary Authority"},"South-Central England and North-West London"]
[null,null,null,null,null,null,null,null,null,null,null,null,null,null,131685,"Larkswood Primary School","2015-02-01","Waltham Forest London Borough Council",{"$f":"VLOOKUP(R2608,'LA CPID Look up'!$A$3:$C$153,2,FALSE)","v":"Waltham Forest London Borough Council"},"East of England and North-East London"]
[null,null,null,null,null,null,null,null,null,null,null,null,null,null,122414,"Latchmere School","2012-09-01","Royal Borough of Kingston Upon Thames Council",{"$f":"VLOOKUP(R2610,'LA CPID Look up'!$A$3:$C$153,2,FALSE)","v":"Kingston upon Thames Council (Royal Borough of)"},"South-East England and South London"]
[null,null,null,null,null,null,null,null,null,null,null,null,null,null,129567,"Latimer AP Academy","2014-04-01","Royal Borough of Kensington and Chelsea Council",{"$f":"VLOOKUP(R2611,'LA CPID Look up'!$A$3:$C$153,2,FALSE)","v":"Kensington and Chelsea Council (Royal Borough of)"},"East of England and North-East London"]
[null,null,null,null,null,null,null,null,null,null,null,null,null,null,123169,"Launceston College","2013-01-01","Cornwall Council",{"$f":"VLOOKUP(R2613,'LA CPID Look up'!$A$3:$C$153,2,FALSE)","v":"Cornwall Unitary Authority"},"South-West England"]
[null,null,null,null,null,null,null,null,null,null,null,null,null,null,124350,"Launde Primary School","2013-06-01","Leicestershire County Council",{"$f":"VLOOKUP(R2614,'LA CPID Look up'!$A$3:$C$153,2,FALSE)","v":"Leicestershire County Council"},"East Midlands and the Humber"]
[null,null,null,null,null,null,null,null,null,null,null,null,null,null,119400,"Lavington School","2011-01-01","Wiltshire Council",{"$f":"VLOOKUP(R2616,'LA CPID Look up'!$A$3:$C$153,2,FALSE)","v":"Wiltshire Unitary Authority"},"South-West England"]
[null,null,null,null,null,null,null,null,null,null,null,null,null,null,132390,"Lawley Village Academy","2015-09-01","Telford and Wrekin Council",{"$f":"VLOOKUP(R2617,'LA CPID Look up'!$A$3:$C$153,2,FALSE)","v":"Telford and Wrekin (Borough of)"},"West Midlands"]
[null,null,null,null,null,null,null,null,null,null,null,null,null,null,131238,"Lazonby C of E Primary School","2015-02-01","Cumbria County Council",{"$f":"VLOOKUP(R2619,'LA CPID Look up'!$A$3:$C$153,2,FALSE)","v":"Cumbria County Council"},"North of England"]
[null,null,null,null,null,null,null,null,null,null,null,null,null,null,122574,"Lea Forest Primary Academy","2012-12-01","Birmingham City Council",{"$f":"VLOOKUP(R2620,'LA CPID Look up'!$A$3:$C$153,2,FALSE)","v":"Birmingham City Council"},"West Midlands"]
[null,null,null,null,null,null,null,null,null,null,null,null,null,null,132480,"Leamington Hastings Church of England Academy","2015-09-01","Warwickshire County Council",{"$f":"VLOOKUP(R2622,'LA CPID Look up'!$A$3:$C$153,2,FALSE)","v":"Warwickshire County Council"},"West Midlands"]
[null,null,null,null,null,null,null,null,null,null,null,null,null,null,124824,"Leamington Primary and Nursery Academy","2013-09-01","Nottinghamshire County Council",{"$f":"VLOOKUP(R2623,'LA CPID Look up'!$A$3:$C$153,2,FALSE)","v":"Nottinghamshire County Council"},"East Midlands and the Humber"]
[null,null,null,null,null,null,null,null,null,null,null,null,null,null,120108,"Lee Chapel Primary School","2011-08-01","Essex County Council",{"$f":"VLOOKUP(R2625,'LA CPID Look up'!$A$3:$C$153,2,FALSE)","v":"Essex County Council"},"East of England and North-East London"]
[null,null,null,null,null,null,null,null,null,null,null,null,null,null,123950,"Leeds City Academy","2014-08-01","Leeds City Council",{"$f":"VLOOKUP(R2626,'LA CPID Look up'!$A$3:$C$153,2,FALSE)","v":"Leeds City Council"},"Lancashire and West Yorkshire"]
[null,null,null,null,null,null,null,null,null,null,null,null,null,null,123321,"Leeds Jewish Free School","2013-09-01","Leeds City Council",{"$f":"VLOOKUP(R2628,'LA CPID Look up'!$A$3:$C$153,2,FALSE)","v":"Leeds City Council"},"Lancashire and West Yorkshire"]
[null,null,null,null,null,null,null,null,null,null,null,null,null,null,119091,"Leeds West Academy","2009-09-01","Leeds City Council",{"$f":"VLOOKUP(R2629,'LA CPID Look up'!$A$3:$C$153,2,FALSE)","v":"Leeds City Council"},"Lancashire and West Yorkshire"]
[null,null,null,null,null,null,null,null,null,null,null,null,null,null,131064,"Leesons Primary School","2014-09-01","Bromley London Borough Council",{"$f":"VLOOKUP(R2631,'LA CPID Look up'!$A$3:$C$153,2,FALSE)","v":"Bromley London Borough Council"},"South-East England and South London"]
[null,null,null,null,null,null,null,null,null,null,null,null,null,null,118686,"Leigh Academy, The","2007-09-01","Kent County Council",{"$f":"VLOOKUP(R2632,'LA CPID Look up'!$A$3:$C$153,2,FALSE)","v":"Kent County Council"},"South-East England and South London"]
[null,null,null,null,null,null,null,null,null,null,null,null,null,null,127383,"Leigh Primary School","2014-01-01","Birmingham City Council",{"$f":"VLOOKUP(R2634,'LA CPID Look up'!$A$3:$C$153,2,FALSE)","v":"Birmingham City Council"},"West Midlands"]
[null,null,null,null,null,null,null,null,null,null,null,null,null,null,130560,"Leigh UTC, The - Dartford","2014-09-01","Kent County Council",{"$f":"VLOOKUP(R2635,'LA CPID Look up'!$A$3:$C$153,2,FALSE)","v":"Kent County Council"},"South-East England and South London"]
[null,null,null,null,null,null,null,null,null,null,null,null,null,null,131191,"Leiston Primary School","2014-11-01","Suffolk County Council",{"$f":"VLOOKUP(R2638,'LA CPID Look up'!$A$3:$C$153,2,FALSE)","v":"Suffolk County Council"},"East of England and North-East London"]
[null,null,null,null,null,null,null,null,null,null,null,null,null,null,129583,"Lena Gardens Primary School","2014-03-01","Hammersmith and Fulham London Borough Council",{"$f":"VLOOKUP(R2639,'LA CPID Look up'!$A$3:$C$153,2,FALSE)","v":"Hammersmith and Fulham London Borough Council"},"South-Central England and North-West London"]
[null,null,null,null,null,null,null,null,null,null,null,null,null,null,123078,"Lerryn CofE Primary School","2012-12-01","Cornwall Council",{"$f":"VLOOKUP(R2641,'LA CPID Look up'!$A$3:$C$153,2,FALSE)","v":"Cornwall Unitary Authority"},"South-West England"]
[null,null,null,null,null,null,null,null,null,null,null,null,null,null,132224,"Lessness Heath Primary School","2015-04-01","Bexley London Borough Council",{"$f":"VLOOKUP(R2642,'LA CPID Look up'!$A$3:$C$153,2,FALSE)","v":"Bexley London Borough Council"},"South-East England and South London"]
[null,null,null,null,null,null,null,null,null,null,null,null,null,null,130302,"Levenshulme High School","2014-09-01","Manchester City Council",{"$f":"VLOOKUP(R2644,'LA CPID Look up'!$A$3:$C$153,2,FALSE)","v":"Manchester City Council"},"Lancashire and West Yorkshire"]
[null,null,null,null,null,null,null,null,null,null,null,null,null,null,120156,"Leventhorpe","2011-08-01","Hertfordshire County Council",{"$f":"VLOOKUP(R2645,'LA CPID Look up'!$A$3:$C$153,2,FALSE)","v":"Hertfordshire County Council"},"East of England and North-East London"]
[null,null,null,null,null,null,null,null,null,null,null,null,null,null,119585,"Leverington Primary Academy","2011-04-01","Cambridgeshire County Council",{"$f":"VLOOKUP(R2647,'LA CPID Look up'!$A$3:$C$153,2,FALSE)","v":"Cambridgeshire County Council"},"East of England and North-East London"]
[null,null,null,null,null,null,null,null,null,null,null,null,null,null,120728,"Leverton Church of England Academy","2012-04-01","Nottinghamshire County Council",{"$f":"VLOOKUP(R2648,'LA CPID Look up'!$A$3:$C$153,2,FALSE)","v":"Nottinghamshire County Council"},"East Midlands and the Humber"]
[null,null,null,null,null,null,null,null,null,null,null,null,null,null,122377,"Leysland High School","2012-08-01","Leicestershire County Council",{"$f":"VLOOKUP(R2650,'LA CPID Look up'!$A$3:$C$153,2,FALSE)","v":"Leicestershire County Council"},"East Midlands and the Humber"]
[null,null,null,null,null,null,null,null,null,null,null,null,null,null,120615,"Lickhill Primary School","2012-02-01","Worcestershire County Council",{"$f":"VLOOKUP(R2651,'LA CPID Look up'!$A$3:$C$153,2,FALSE)","v":"Worcestershire County Council"},"West Midlands"]
[null,null,null,null,null,null,null,null,null,null,null,null,null,null,120036,"Lightcliffe Academy","2011-08-01","Calderdale Metropolitan Borough Council",{"$f":"VLOOKUP(R2653,'LA CPID Look up'!$A$3:$C$153,2,FALSE)","v":"Calderdale Metropolitan Borough Council"},"Lancashire and West Yorkshire"]
[null,null,null,null,null,null,null,null,null,null,null,null,null,null,122534,"Lighthouse School Leeds","2012-09-01","Leeds City Council",{"$f":"VLOOKUP(R2654,'LA CPID Look up'!$A$3:$C$153,2,FALSE)","v":"Leeds City Council"},"Lancashire and West Yorkshire"]
[null,null,null,null,null,null,null,null,null,null,null,null,null,null,126289,"Lime Tree Primary School - Reigate","2013-08-01","Surrey County Council",{"$f":"VLOOKUP(R2656,'LA CPID Look up'!$A$3:$C$153,2,FALSE)","v":"Surrey County Council"},"South-East England and South London"]
[null,null,null,null,null,null,null,null,null,null,null,null,null,null,127505,"Lime Tree Primary School - Sale","2014-05-01","Trafford Borough Council",{"$f":"VLOOKUP(R2657,'LA CPID Look up'!$A$3:$C$153,2,FALSE)","v":"Trafford Metropolitan Borough Council"},"Lancashire and West Yorkshire"]
[null,null,null,null,null,null,null,null,null,null,null,null,null,null,126508,"Lincoln Carlton Academy","2013-10-01","Lincolnshire County Council",{"$f":"VLOOKUP(R2659,'LA CPID Look up'!$A$3:$C$153,2,FALSE)","v":"Lincolnshire County Council"},"East Midlands and the Humber"]
[null,null,null,null,null,null,null,null,null,null,null,null,null,null,119669,"Lincoln Castle Academy","2011-04-01","Lincolnshire County Council",{"$f":"VLOOKUP(R2660,'LA CPID Look up'!$A$3:$C$153,2,FALSE)","v":"Lincolnshire County Council"},"East Midlands and the Humber"]
[null,null,null,null,null,null,null,null,null,null,null,null,null,null,122137,"Lincoln Manor Leas Infants School, The","2012-06-01","Lincolnshire County Council",{"$f":"VLOOKUP(R2662,'LA CPID Look up'!$A$3:$C$153,2,FALSE)","v":"Lincolnshire County Council"},"East Midlands and the Humber"]
[null,null,null,null,null,null,null,null,null,null,null,null,null,null,124196,"Lincoln Manor Leas Junior School, The","2013-04-01","Lincolnshire County Council",{"$f":"VLOOKUP(R2663,'LA CPID Look up'!$A$3:$C$153,2,FALSE)","v":"Lincolnshire County Council"},"East Midlands and the Humber"]
[null,null,null,null,null,null,null,null,null,null,null,null,null,null,130152,"Linden Road Academy","2015-03-01","Tameside Metropolitan Borough Council",{"$f":"VLOOKUP(R2666,'LA CPID Look up'!$A$3:$C$153,2,FALSE)","v":"Tameside Metropolitan Borough Council"},"Lancashire and West Yorkshire"]
[null,null,null,null,null,null,null,null,null,null,null,null,null,null,132056,"Lindfield Primary Academy","2015-09-01","West Sussex County Council",{"$f":"VLOOKUP(R2667,'LA CPID Look up'!$A$3:$C$153,2,FALSE)","v":"West Sussex County Council"},"South-East England and South London"]
[null,null,null,null,null,null,null,null,null,null,null,null,null,null,120547,"Lindley Junior School","2011-10-01","Kirklees Metropolitan Council",{"$f":"VLOOKUP(R2669,'LA CPID Look up'!$A$3:$C$153,2,FALSE)","v":"Kirklees Metropolitan Council"},"Lancashire and West Yorkshire"]
[null,null,null,null,null,null,null,null,null,null,null,null,null,null,122490,"Lings Primary School","2012-11-01","Northamptonshire County Council",{"$f":"VLOOKUP(R2670,'LA CPID Look up'!$A$3:$C$153,2,FALSE)","v":"Northamptonshire County Council"},"East of England and North-East London"]
[null,null,null,null,null,null,null,null,null,null,null,null,null,null,122706,"Links AP Academy, The","2013-02-01","Hertfordshire County Council",{"$f":"VLOOKUP(R2672,'LA CPID Look up'!$A$3:$C$153,2,FALSE)","v":"Hertfordshire County Council"},"East of England and North-East London"]
[null,null,null,null,null,null,null,null,null,null,null,null,null,null,119759,"Linslade Academy Trust","2011-06-01","Central Bedfordshire Council",{"$f":"VLOOKUP(R2673,'LA CPID Look up'!$A$3:$C$153,2,FALSE)","v":"Central Bedfordshire Unitary Authority"},"South-Central England and North-West London"]
[null,null,null,null,null,null,null,null,null,null,null,null,null,null,130548,"LIPA Primary School","2014-09-01","Liverpool City Council",{"$f":"VLOOKUP(R2675,'LA CPID Look up'!$A$3:$C$153,2,FALSE)","v":"Liverpool City Council"},"Lancashire and West Yorkshire"]
[null,null,null,null,null,null,null,null,null,null,null,null,null,null,119683,"Lipson Co-operative Academy","2011-04-01","Plymouth City Council",{"$f":"VLOOKUP(R2676,'LA CPID Look up'!$A$3:$C$153,2,FALSE)","v":"Plymouth City Council"},"South-West England"]
[null,null,null,null,null,null,null,null,null,null,null,null,null,null,120559,"Lisle Marsden Church of England Primary Academy","2011-11-01","North East Lincolnshire Council",{"$f":"VLOOKUP(R2678,'LA CPID Look up'!$A$3:$C$153,2,FALSE)","v":"North East Lincolnshire Council"},"East Midlands and the Humber"]
[null,null,null,null,null,null,null,null,null,null,null,null,null,null,131672,"Litherland High School","2015-03-01","Sefton Metropolitan Borough Council",{"$f":"VLOOKUP(R2679,'LA CPID Look up'!$A$3:$C$153,2,FALSE)","v":"Sefton Metropolitan Borough Council"},"Lancashire and West Yorkshire"]
[null,null,null,null,null,null,null,null,null,null,null,null,null,null,126529,"Little Hill Primary","2015-09-01","Leicestershire County Council",{"$f":"VLOOKUP(R2681,'LA CPID Look up'!$A$3:$C$153,2,FALSE)","v":"Leicestershire County Council"},"East Midlands and the Humber"]
[null,null,null,null,null,null,null,null,null,null,null,null,null,null,132914,"Little Lever School","2015-12-01","Bolton Metropolitan Borough Council",{"$f":"VLOOKUP(R2682,'LA CPID Look up'!$A$3:$C$153,2,FALSE)","v":"Bolton Metropolitan Borough Council"},"Lancashire and West Yorkshire"]
[null,null,null,null,null,null,null,null,null,null,null,null,null,null,124688,"Little Parndon Primary School","2014-04-01","Essex County Council",{"$f":"VLOOKUP(R2684,'LA CPID Look up'!$A$3:$C$153,2,FALSE)","v":"Essex County Council"},"East of England and North-East London"]
[null,null,null,null,null,null,null,null,null,null,null,null,null,null,121208,"Little Reddings Primary School","2012-02-01","Hertfordshire County Council",{"$f":"VLOOKUP(R2685,'LA CPID Look up'!$A$3:$C$153,2,FALSE)","v":"Hertfordshire County Council"},"East of England and North-East London"]
[null,null,null,null,null,null,null,null,null,null,null,null,null,null,118853,"Littlehampton Academy, The","2009-09-01","West Sussex County Council",{"$f":"VLOOKUP(R2687,'LA CPID Look up'!$A$3:$C$153,2,FALSE)","v":"West Sussex County Council"},"South-East England and South London"]
[null,null,null,null,null,null,null,null,null,null,null,null,null,null,120849,"Littletown Primary Academy","2011-12-01","Devon County Council",{"$f":"VLOOKUP(R2688,'LA CPID Look up'!$A$3:$C$153,2,FALSE)","v":"Devon County Council"},"South-West England"]
[null,null,null,null,null,null,null,null,null,null,null,null,null,null,122814,"Liverpool College","2013-09-01","Liverpool City Council",{"$f":"VLOOKUP(R2690,'LA CPID Look up'!$A$3:$C$153,2,FALSE)","v":"Liverpool City Council"},"Lancashire and West Yorkshire"]
[null,null,null,null,null,null,null,null,null,null,null,null,null,null,122158,"Liverpool Life Sciences UTC","2013-09-01","Liverpool City Council",{"$f":"VLOOKUP(R2691,'LA CPID Look up'!$A$3:$C$153,2,FALSE)","v":"Liverpool City Council"},"Lancashire and West Yorkshire"]
[null,null,null,null,null,null,null,null,null,null,null,null,null,null,124516,"Loatlands Primary School","2013-09-01","Northamptonshire County Council",{"$f":"VLOOKUP(R2693,'LA CPID Look up'!$A$3:$C$153,2,FALSE)","v":"Northamptonshire County Council"},"East of England and North-East London"]
[null,null,null,null,null,null,null,null,null,null,null,null,null,null,130842,"Loddington CofE (VA) Primary School","2014-10-01","Northamptonshire County Council",{"$f":"VLOOKUP(R2694,'LA CPID Look up'!$A$3:$C$153,2,FALSE)","v":"Northamptonshire County Council"},"East of England and North-East London"]
[null,null,null,null,null,null,null,null,null,null,null,null,null,null,118396,"London Academy - Barnet","2004-09-01","Barnet London Borough Council",{"$f":"VLOOKUP(R2697,'LA CPID Look up'!$A$3:$C$153,2,FALSE)","v":"Barnet London Borough Council"},"South-Central England and North-West London"]
[null,null,null,null,null,null,null,null,null,null,null,null,null,null,121994,"London Academy of Excellence - Newham","2012-09-01","Newham London Borough Council",{"$f":"VLOOKUP(R2698,'LA CPID Look up'!$A$3:$C$153,2,FALSE)","v":"Newham London Borough Council"},"East of England and North-East London"]
[null,null,null,null,null,null,null,null,null,null,null,null,null,null,120157,"London Oratory School, The","2011-08-01","Hammersmith and Fulham London Borough Council",{"$f":"VLOOKUP(R2700,'LA CPID Look up'!$A$3:$C$153,2,FALSE)","v":"Hammersmith and Fulham London Borough Council"},"South-Central England and North-West London"]
[null,null,null,null,null,null,null,null,null,null,null,null,null,null,121040,"Long Bennington Church of England Primary School","2012-04-01","Lincolnshire County Council",{"$f":"VLOOKUP(R2701,'LA CPID Look up'!$A$3:$C$153,2,FALSE)","v":"Lincolnshire County Council"},"East Midlands and the Humber"]
[null,null,null,null,null,null,null,null,null,null,null,null,null,null,122654,"Long Field Academy","2012-09-01","Leicestershire County Council",{"$f":"VLOOKUP(R2703,'LA CPID Look up'!$A$3:$C$153,2,FALSE)","v":"Leicestershire County Council"},"East Midlands and the Humber"]
[null,null,null,null,null,null,null,null,null,null,null,null,null,null,124532,"Longcot and Fernham Church of England Primary School","2013-11-01","Oxfordshire County Council",{"$f":"VLOOKUP(R2704,'LA CPID Look up'!$A$3:$C$153,2,FALSE)","v":"Oxfordshire County Council"},"East of England and North-East London"]
[null,null,null,null,null,null,null,null,null,null,null,null,null,null,118625,"Longfield Academy - Kent","2008-09-01","Kent County Council",{"$f":"VLOOKUP(R2706,'LA CPID Look up'!$A$3:$C$153,2,FALSE)","v":"Kent County Council"},"South-East England and South London"]
[null,null,null,null,null,null,null,null,null,null,null,null,null,null,120222,"Longfield Academy of Sport - Darlington","2011-08-01","Darlington Borough Council",{"$f":"VLOOKUP(R2707,'LA CPID Look up'!$A$3:$C$153,2,FALSE)","v":"Darlington Borough Council"},"North of England"]
[null,null,null,null,null,null,null,null,null,null,null,null,null,null,131373,"Longlands Primary School","2015-01-01","Shropshire Council",{"$f":"VLOOKUP(R2709,'LA CPID Look up'!$A$3:$C$153,2,FALSE)","v":"Shropshire Unitary Authority"},"West Midlands"]
[null,null,null,null,null,null,null,null,null,null,null,null,null,null,132957,"Longney Church of England Primary Academy","2015-11-01","Gloucestershire County Council",{"$f":"VLOOKUP(R2710,'LA CPID Look up'!$A$3:$C$153,2,FALSE)","v":"Gloucestershire County Council"},"South-West England"]
[null,null,null,null,null,null,null,null,null,null,null,null,null,null,133459,"Longshaw Primary School","2016-01-01","Waltham Forest London Borough Council",{"$f":"VLOOKUP(R2712,'LA CPID Look up'!$A$3:$C$153,2,FALSE)","v":"Waltham Forest London Borough Council"},"East of England and North-East London"]
[null,null,null,null,null,null,null,null,null,null,null,null,null,null,123322,"Longsight Community Primary","2013-09-01","Manchester City Council",{"$f":"VLOOKUP(R2713,'LA CPID Look up'!$A$3:$C$153,2,FALSE)","v":"Manchester City Council"},"Lancashire and West Yorkshire"]
[null,null,null,null,null,null,null,null,null,null,null,null,null,null,124205,"Longspee School","2013-09-01","Poole Borough Council",{"$f":"VLOOKUP(R2715,'LA CPID Look up'!$A$3:$C$153,2,FALSE)","v":"Poole (Borough of)"},"South-West England"]
[null,null,null,null,null,null,null,null,null,null,null,null,null,null,131141,"Longwood Primary Academy","2015-01-01","Essex County Council",{"$f":"VLOOKUP(R2716,'LA CPID Look up'!$A$3:$C$153,2,FALSE)","v":"Essex County Council"},"East of England and North-East London"]
[null,null,null,null,null,null,null,null,null,null,null,null,null,null,125175,"Looe Primary School","2013-11-01","Cornwall Council",{"$f":"VLOOKUP(R2718,'LA CPID Look up'!$A$3:$C$153,2,FALSE)","v":"Cornwall Unitary Authority"},"South-West England"]
[null,null,null,null,null,null,null,null,null,null,null,null,null,null,124231,"Lord Derby Academy","2014-02-01","Knowsley Metropolitan Borough Council",{"$f":"VLOOKUP(R2719,'LA CPID Look up'!$A$3:$C$153,2,FALSE)","v":"Knowsley Metropolitan Borough Council"},"Lancashire and West Yorkshire"]
[null,null,null,null,null,null,null,null,null,null,null,null,null,null,119796,"Lord Scudamore Primary School","2011-06-01","Herefordshire Council",{"$f":"VLOOKUP(R2721,'LA CPID Look up'!$A$3:$C$153,2,FALSE)","v":"Herefordshire Council"},"West Midlands"]
[null,null,null,null,null,null,null,null,null,null,null,null,null,null,122280,"Lord Williams's School","2012-09-01","Oxfordshire County Council",{"$f":"VLOOKUP(R2722,'LA CPID Look up'!$A$3:$C$153,2,FALSE)","v":"Oxfordshire County Council"},"East of England and North-East London"]
[null,null,null,null,null,null,null,null,null,null,null,null,null,null,119622,"Lordswood Girls' School and Sixth Form Centre - Birmingham","2011-04-01","Birmingham City Council",{"$f":"VLOOKUP(R2725,'LA CPID Look up'!$A$3:$C$153,2,FALSE)","v":"Birmingham City Council"},"West Midlands"]
[null,null,null,null,null,null,null,null,null,null,null,null,null,null,124659,"Lordswood School - Chatham","2013-11-01","Medway Council",{"$f":"VLOOKUP(R2726,'LA CPID Look up'!$A$3:$C$153,2,FALSE)","v":"Medway Towns Unitary Authority (The)"},"South-East England and South London"]
[null,null,null,null,null,null,null,null,null,null,null,null,null,null,122561,"Loreto Grammar School - Trafford","2012-08-01","Trafford Borough Council",{"$f":"VLOOKUP(R2728,'LA CPID Look up'!$A$3:$C$153,2,FALSE)","v":"Trafford Metropolitan Borough Council"},"Lancashire and West Yorkshire"]
[null,null,null,null,null,null,null,null,null,null,null,null,null,null,120111,"Lostock Hall Academy","2011-08-01","Lancashire County Council",{"$f":"VLOOKUP(R2729,'LA CPID Look up'!$A$3:$C$153,2,FALSE)","v":"Lancashire County Council"},"Lancashire and West Yorkshire"]
[null,null,null,null,null,null,null,null,null,null,null,null,null,null,132346,"Lothersdale Community Primary School","2015-08-01","North Yorkshire County Council",{"$f":"VLOOKUP(R2731,'LA CPID Look up'!$A$3:$C$153,2,FALSE)","v":"North Yorkshire County Council"},"North of England"]
[null,null,null,null,null,null,null,null,null,null,null,null,null,null,130334,"Loughborough Church of England Primary School","2014-06-01","Leicestershire County Council",{"$f":"VLOOKUP(R2732,'LA CPID Look up'!$A$3:$C$153,2,FALSE)","v":"Leicestershire County Council"},"East Midlands and the Humber"]
[null,null,null,null,null,null,null,null,null,null,null,null,null,null,124315,"Lound Infant School","2013-07-01","Sheffield City Council",{"$f":"VLOOKUP(R2734,'LA CPID Look up'!$A$3:$C$153,2,FALSE)","v":"Sheffield City Council"},"East Midlands and the Humber"]
[null,null,null,null,null,null,null,null,null,null,null,null,null,null,124298,"Lound Junior School","2013-07-01","Sheffield City Council",{"$f":"VLOOKUP(R2735,'LA CPID Look up'!$A$3:$C$153,2,FALSE)","v":"Sheffield City Council"},"East Midlands and the Humber"]
[null,null,null,null,null,null,null,null,null,null,null,null,null,null,119659,"Lowbrook Academy","2011-04-01","Royal Borough of Windsor and Maidenhead",{"$f":"VLOOKUP(R2737,'LA CPID Look up'!$A$3:$C$153,2,FALSE)","v":"Windsor and Maidenhead (Royal Borough of)"},"East of England and North-East London"]
[null,null,null,null,null,null,null,null,null,null,null,null,null,null,130767,"Lowedges Junior Academy","2014-09-01","Sheffield City Council",{"$f":"VLOOKUP(R2738,'LA CPID Look up'!$A$3:$C$153,2,FALSE)","v":"Sheffield City Council"},"East Midlands and the Humber"]
[null,null,null,null,null,null,null,null,null,null,null,null,null,null,131424,"Loxley Hall School","2015-08-01","Staffordshire County Council",{"$f":"VLOOKUP(R2740,'LA CPID Look up'!$A$3:$C$153,2,FALSE)","v":"Staffordshire County Council"},"West Midlands"]
[null,null,null,null,null,null,null,null,null,null,null,null,null,null,124556,"Lubenham All Saints Church of England Primary School","2013-07-01","Leicestershire County Council",{"$f":"VLOOKUP(R2741,'LA CPID Look up'!$A$3:$C$153,2,FALSE)","v":"Leicestershire County Council"},"East Midlands and the Humber"]
[null,null,null,null,null,null,null,null,null,null,null,null,null,null,121132,"Luddenham School","2012-04-01","Kent County Council",{"$f":"VLOOKUP(R2743,'LA CPID Look up'!$A$3:$C$153,2,FALSE)","v":"Kent County Council"},"South-East England and South London"]
[null,null,null,null,null,null,null,null,null,null,null,null,null,null,120395,"Ludgvan Community Primary School","2011-09-01","Cornwall Council",{"$f":"VLOOKUP(R2744,'LA CPID Look up'!$A$3:$C$153,2,FALSE)","v":"Cornwall Unitary Authority"},"South-West England"]
[null,null,null,null,null,null,null,null,null,null,null,null,null,null,122948,"Ludlow Junior School","2012-12-01","Southampton City Council",{"$f":"VLOOKUP(R2746,'LA CPID Look up'!$A$3:$C$153,2,FALSE)","v":"Southampton City Council"},"South-East England and South London"]
[null,null,null,null,null,null,null,null,null,null,null,null,null,null,121087,"Lugwardine Primary Academy","2012-04-01","Herefordshire Council",{"$f":"VLOOKUP(R2747,'LA CPID Look up'!$A$3:$C$153,2,FALSE)","v":"Herefordshire Council"},"West Midlands"]
[null,null,null,null,null,null,null,null,null,null,null,null,null,null,121464,"Lutterworth College","2012-06-01","Leicestershire County Council",{"$f":"VLOOKUP(R2749,'LA CPID Look up'!$A$3:$C$153,2,FALSE)","v":"Leicestershire County Council"},"East Midlands and the Humber"]
[null,null,null,null,null,null,null,null,null,null,null,null,null,null,120115,"Lutterworth High School","2011-08-01","Leicestershire County Council",{"$f":"VLOOKUP(R2750,'LA CPID Look up'!$A$3:$C$153,2,FALSE)","v":"Leicestershire County Council"},"East Midlands and the Humber"]
[null,null,null,null,null,null,null,null,null,null,null,null,null,null,131840,"Lyde Green Primary School","2015-09-01","South Gloucestershire Council",{"$f":"VLOOKUP(R2752,'LA CPID Look up'!$A$3:$C$153,2,FALSE)","v":"South Gloucestershire Council"},"South-West England"]
[null,null,null,null,null,null,null,null,null,null,null,null,null,null,122665,"Lydiard Millicent CofE Primary School","2015-12-01","Wiltshire Council",{"$f":"VLOOKUP(R2753,'LA CPID Look up'!$A$3:$C$153,2,FALSE)","v":"Wiltshire Unitary Authority"},"South-West England"]
[null,null,null,null,null,null,null,null,null,null,null,null,null,null,130524,"Lynch Hill Enterprise Academy","2014-09-01","Slough Borough Council",{"$f":"VLOOKUP(R2756,'LA CPID Look up'!$A$3:$C$153,2,FALSE)","v":"Slough Borough Council"},"East of England and North-East London"]
[null,null,null,null,null,null,null,null,null,null,null,null,null,null,120010,"Lynch Hill School Primary Academy","2011-08-01","Slough Borough Council",{"$f":"VLOOKUP(R2757,'LA CPID Look up'!$A$3:$C$153,2,FALSE)","v":"Slough Borough Council"},"East of England and North-East London"]
[null,null,null,null,null,null,null,null,null,null,null,null,null,null,132343,"Lyndon School","2015-09-01","Solihull Metropolitan Borough Council",{"$f":"VLOOKUP(R2759,'LA CPID Look up'!$A$3:$C$153,2,FALSE)","v":"Solihull Metropolitan Borough Council"},"West Midlands"]
[null,null,null,null,null,null,null,null,null,null,null,null,null,null,120607,"Lynn Grove Academy","2011-10-01","Norfolk County Council",{"$f":"VLOOKUP(R2760,'LA CPID Look up'!$A$3:$C$153,2,FALSE)","v":"Norfolk County Council"},"East of England and North-East London"]
[null,null,null,null,null,null,null,null,null,null,null,null,null,null,121080,"Lyons Hall School","2012-04-01","Essex County Council",{"$f":"VLOOKUP(R2762,'LA CPID Look up'!$A$3:$C$153,2,FALSE)","v":"Essex County Council"},"East of England and North-East London"]
[null,null,null,null,null,null,null,null,null,null,null,null,null,null,121873,"Mablethorpe Primary Academy","2012-09-01","Lincolnshire County Council",{"$f":"VLOOKUP(R2763,'LA CPID Look up'!$A$3:$C$153,2,FALSE)","v":"Lincolnshire County Council"},"East Midlands and the Humber"]
[null,null,null,null,null,null,null,null,null,null,null,null,null,null,120064,"Macclesfield Academy, The","2011-09-01","Cheshire East Council",{"$f":"VLOOKUP(R2765,'LA CPID Look up'!$A$3:$C$153,2,FALSE)","v":"Cheshire East Unitary Authority"},"West Midlands"]
[null,null,null,null,null,null,null,null,null,null,null,null,null,null,118397,"Macmillan Academy","2005-09-01","Middlesbrough Council",{"$f":"VLOOKUP(R2766,'LA CPID Look up'!$A$3:$C$153,2,FALSE)","v":"Middlesbrough Council"},"North of England"]
[null,null,null,null,null,null,null,null,null,null,null,null,null,null,124490,"Madeley High School","2013-09-01","Staffordshire County Council",{"$f":"VLOOKUP(R2768,'LA CPID Look up'!$A$3:$C$153,2,FALSE)","v":"Staffordshire County Council"},"West Midlands"]
[null,null,null,null,null,null,null,null,null,null,null,null,null,null,122354,"Magdalen College School","2013-01-01","Northamptonshire County Council",{"$f":"VLOOKUP(R2769,'LA CPID Look up'!$A$3:$C$153,2,FALSE)","v":"Northamptonshire County Council"},"East of England and North-East London"]
[null,null,null,null,null,null,null,null,null,null,null,null,null,null,123952,"Magna Academy","2013-09-01","Poole Borough Council",{"$f":"VLOOKUP(R2771,'LA CPID Look up'!$A$3:$C$153,2,FALSE)","v":"Poole (Borough of)"},"South-West England"]
[null,null,null,null,null,null,null,null,null,null,null,null,null,null,120116,"Magna Carta School, The","2011-08-01","Surrey County Council",{"$f":"VLOOKUP(R2772,'LA CPID Look up'!$A$3:$C$153,2,FALSE)","v":"Surrey County Council"},"South-East England and South London"]
[null,null,null,null,null,null,null,null,null,null,null,null,null,null,120462,"Maharishi Free School","2011-09-01","Lancashire County Council",{"$f":"VLOOKUP(R2774,'LA CPID Look up'!$A$3:$C$153,2,FALSE)","v":"Lancashire County Council"},"Lancashire and West Yorkshire"]
[null,null,null,null,null,null,null,null,null,null,null,null,null,null,120118,"Maiden Beech Academy","2011-08-01","Somerset County Council",{"$f":"VLOOKUP(R2775,'LA CPID Look up'!$A$3:$C$153,2,FALSE)","v":"Somerset County Council"},"South-West England"]
[null,null,null,null,null,null,null,null,null,null,null,null,null,null,132652,"Maiden Erlegh School in Reading","2015-09-01","Reading Borough Council",{"$f":"VLOOKUP(R2777,'LA CPID Look up'!$A$3:$C$153,2,FALSE)","v":"Reading Borough Council"},"East of England and North-East London"]
[null,null,null,null,null,null,null,null,null,null,null,null,null,null,120672,"Maidstone, St John's Church of England Primary School","2011-11-01","Kent County Council",{"$f":"VLOOKUP(R2778,'LA CPID Look up'!$A$3:$C$153,2,FALSE)","v":"Kent County Council"},"South-East England and South London"]
[null,null,null,null,null,null,null,null,null,null,null,null,null,null,130525,"Malcolm Arnold Preparatory School","2014-09-01","Northamptonshire County Council",{"$f":"VLOOKUP(R2780,'LA CPID Look up'!$A$3:$C$153,2,FALSE)","v":"Northamptonshire County Council"},"East of England and North-East London"]
[null,null,null,null,null,null,null,null,null,null,null,null,null,null,120735,"Malcolm Sargent Primary School","2011-12-01","Lincolnshire County Council",{"$f":"VLOOKUP(R2781,'LA CPID Look up'!$A$3:$C$153,2,FALSE)","v":"Lincolnshire County Council"},"East Midlands and the Humber"]
[null,null,null,null,null,null,null,null,null,null,null,null,null,null,132026,"Malmesbury Park Primary School","2015-10-01","Bournemouth Borough Council",{"$f":"VLOOKUP(R2784,'LA CPID Look up'!$A$3:$C$153,2,FALSE)","v":"Bournemouth Council"},"South-West England"]
[null,null,null,null,null,null,null,null,null,null,null,null,null,null,120308,"Malmesbury School","2011-08-17","Wiltshire Council",{"$f":"VLOOKUP(R2785,'LA CPID Look up'!$A$3:$C$153,2,FALSE)","v":"Wiltshire Unitary Authority"},"South-West England"]
[null,null,null,null,null,null,null,null,null,null,null,null,null,null,131698,"Maltby Lilly Hall Primary School","2015-03-01","Rotherham Metropolitan Borough Council",{"$f":"VLOOKUP(R2787,'LA CPID Look up'!$A$3:$C$153,2,FALSE)","v":"Rotherham Borough Council"},"East Midlands and the Humber"]
[null,null,null,null,null,null,null,null,null,null,null,null,null,null,131234,"Maltby Manor Academy","2014-12-01","Rotherham Metropolitan Borough Council",{"$f":"VLOOKUP(R2788,'LA CPID Look up'!$A$3:$C$153,2,FALSE)","v":"Rotherham Borough Council"},"East Midlands and the Humber"]
[null,null,null,null,null,null,null,null,null,null,null,null,null,null,131852,"Maltese Road Primary School","2015-09-01","Essex County Council",{"$f":"VLOOKUP(R2790,'LA CPID Look up'!$A$3:$C$153,2,FALSE)","v":"Essex County Council"},"East of England and North-East London"]
[null,null,null,null,null,null,null,null,null,null,null,null,null,null,118666,"Maltings Academy","2008-09-04","Essex County Council",{"$f":"VLOOKUP(R2791,'LA CPID Look up'!$A$3:$C$153,2,FALSE)","v":"Essex County Council"},"East of England and North-East London"]
[null,null,null,null,null,null,null,null,null,null,null,null,null,null,124147,"Malvin's Close Primary School","2013-06-01","Northumberland County Council",{"$f":"VLOOKUP(R2793,'LA CPID Look up'!$A$3:$C$153,2,FALSE)","v":"Northumberland Unitary Authority"},"North of England"]
[null,null,null,null,null,null,null,null,null,null,null,null,null,null,126513,"Manaccan Primary School","2014-03-01","Cornwall Council",{"$f":"VLOOKUP(R2794,'LA CPID Look up'!$A$3:$C$153,2,FALSE)","v":"Cornwall Unitary Authority"},"South-West England"]
[null,null,null,null,null,null,null,null,null,null,null,null,null,null,119171,"Manchester Communication Academy","2010-09-01","Manchester City Council",{"$f":"VLOOKUP(R2796,'LA CPID Look up'!$A$3:$C$153,2,FALSE)","v":"Manchester City Council"},"Lancashire and West Yorkshire"]
[null,null,null,null,null,null,null,null,null,null,null,null,null,null,130414,"Manchester Communications Primary Academy - Harpurhey","2014-09-01","Manchester City Council",{"$f":"VLOOKUP(R2797,'LA CPID Look up'!$A$3:$C$153,2,FALSE)","v":"Manchester City Council"},"Lancashire and West Yorkshire"]
[null,null,null,null,null,null,null,null,null,null,null,null,null,null,119149,"Manchester Creative and Media Academy (Boys)","2009-09-04","Manchester City Council",{"$f":"VLOOKUP(R2799,'LA CPID Look up'!$A$3:$C$153,2,FALSE)","v":"Manchester City Council"},"Lancashire and West Yorkshire"]
[null,null,null,null,null,null,null,null,null,null,null,null,null,null,120496,"Manchester Creative Learning Academy","2012-09-01","Manchester City Council",{"$f":"VLOOKUP(R2800,'LA CPID Look up'!$A$3:$C$153,2,FALSE)","v":"Manchester City Council"},"Lancashire and West Yorkshire"]
[null,null,null,null,null,null,null,null,null,null,null,null,null,null,118890,"Manchester Enterprise Academy","2009-09-07","Manchester City Council",{"$f":"VLOOKUP(R2802,'LA CPID Look up'!$A$3:$C$153,2,FALSE)","v":"Manchester City Council"},"Lancashire and West Yorkshire"]
[null,null,null,null,null,null,null,null,null,null,null,null,null,null,118891,"Manchester Health Academy","2009-09-07","Manchester City Council",{"$f":"VLOOKUP(R2803,'LA CPID Look up'!$A$3:$C$153,2,FALSE)","v":"Manchester City Council"},"Lancashire and West Yorkshire"]
[null,null,null,null,null,null,null,null,null,null,null,null,null,null,123179,"Mandeville Primary School","2013-01-01","Hertfordshire County Council",{"$f":"VLOOKUP(R2805,'LA CPID Look up'!$A$3:$C$153,2,FALSE)","v":"Hertfordshire County Council"},"East of England and North-East London"]
[null,null,null,null,null,null,null,null,null,null,null,null,null,null,132047,"Mangotsfield School","2015-09-01","South Gloucestershire Council",{"$f":"VLOOKUP(R2806,'LA CPID Look up'!$A$3:$C$153,2,FALSE)","v":"South Gloucestershire Council"},"South-West England"]
[null,null,null,null,null,null,null,null,null,null,null,null,null,null,121170,"Manningtree High School","2012-03-01","Essex County Council",{"$f":"VLOOKUP(R2808,'LA CPID Look up'!$A$3:$C$153,2,FALSE)","v":"Essex County Council"},"East of England and North-East London"]
[null,null,null,null,null,null,null,null,null,null,null,null,null,null,132008,"Manor Academy Sale","2016-01-01","Trafford Borough Council",{"$f":"VLOOKUP(R2809,'LA CPID Look up'!$A$3:$C$153,2,FALSE)","v":"Trafford Metropolitan Borough Council"},"Lancashire and West Yorkshire"]
[null,null,null,null,null,null,null,null,null,null,null,null,null,null,119567,"Manor Church of England Academy - York","2011-04-01","City of York Council",{"$f":"VLOOKUP(R2811,'LA CPID Look up'!$A$3:$C$153,2,FALSE)","v":"City of York Council"},"East Midlands and the Humber"]
[null,null,null,null,null,null,null,null,null,null,null,null,null,null,122796,"Manor CofE VC Primary School, The","2012-09-01","Wiltshire Council",{"$f":"VLOOKUP(R2812,'LA CPID Look up'!$A$3:$C$153,2,FALSE)","v":"Wiltshire Unitary Authority"},"South-West England"]
[null,null,null,null,null,null,null,null,null,null,null,null,null,null,123849,"Manor Court Community Primary School - Chard","2013-04-01","Somerset County Council",{"$f":"VLOOKUP(R2815,'LA CPID Look up'!$A$3:$C$153,2,FALSE)","v":"Somerset County Council"},"South-West England"]
[null,null,null,null,null,null,null,null,null,null,null,null,null,null,122426,"Manor Croft Academy","2013-09-01","Kirklees Metropolitan Council",{"$f":"VLOOKUP(R2816,'LA CPID Look up'!$A$3:$C$153,2,FALSE)","v":"Kirklees Metropolitan Council"},"Lancashire and West Yorkshire"]
[null,null,null,null,null,null,null,null,null,null,null,null,null,null,120120,"Manor High School - Oadby","2011-08-01","Leicestershire County Council",{"$f":"VLOOKUP(R2818,'LA CPID Look up'!$A$3:$C$153,2,FALSE)","v":"Leicestershire County Council"},"East Midlands and the Humber"]
[null,null,null,null,null,null,null,null,null,null,null,null,null,null,125184,"Manor Oak Primary School","2013-12-01","Bromley London Borough Council",{"$f":"VLOOKUP(R2819,'LA CPID Look up'!$A$3:$C$153,2,FALSE)","v":"Bromley London Borough Council"},"South-East England and South London"]
[null,null,null,null,null,null,null,null,null,null,null,null,null,null,131255,"Manor Primary School - Bilston","2016-02-01","Wolverhampton City Council",{"$f":"VLOOKUP(R2821,'LA CPID Look up'!$A$3:$C$153,2,FALSE)","v":"Wolverhampton City Council"},"West Midlands"]
[null,null,null,null,null,null,null,null,null,null,null,null,null,null,123897,"Manor School - Didcot","2013-06-01","Oxfordshire County Council",{"$f":"VLOOKUP(R2822,'LA CPID Look up'!$A$3:$C$153,2,FALSE)","v":"Oxfordshire County Council"},"East of England and North-East London"]
[null,null,null,null,null,null,null,null,null,null,null,null,null,null,132939,"Manor Way Primary Academy","2015-10-01","Dudley Metropolitan Borough Council",{"$f":"VLOOKUP(R2824,'LA CPID Look up'!$A$3:$C$153,2,FALSE)","v":"Dudley Metropolitan Borough Council"},"West Midlands"]
[null,null,null,null,null,null,null,null,null,null,null,null,null,null,132093,"Manorside Academy","2015-04-01","Poole Borough Council",{"$f":"VLOOKUP(R2825,'LA CPID Look up'!$A$3:$C$153,2,FALSE)","v":"Poole (Borough of)"},"South-West England"]
[null,null,null,null,null,null,null,null,null,null,null,null,null,null,122848,"Mansfield Green E-ACT Academy","2013-01-01","Birmingham City Council",{"$f":"VLOOKUP(R2827,'LA CPID Look up'!$A$3:$C$153,2,FALSE)","v":"Birmingham City Council"},"West Midlands"]
[null,null,null,null,null,null,null,null,null,null,null,null,null,null,122494,"Mansfield Primary Academy","2012-09-01","Nottinghamshire County Council",{"$f":"VLOOKUP(R2828,'LA CPID Look up'!$A$3:$C$153,2,FALSE)","v":"Nottinghamshire County Council"},"East Midlands and the Humber"]
[null,null,null,null,null,null,null,null,null,null,null,null,null,null,122487,"Maple Court Academy","2013-06-01","Stoke-on-Trent City Council",{"$f":"VLOOKUP(R2830,'LA CPID Look up'!$A$3:$C$153,2,FALSE)","v":"Stoke-on-Trent Unitary Authority"},"West Midlands"]
[null,null,null,null,null,null,null,null,null,null,null,null,null,null,120716,"Maplefields School","2012-09-01","Northamptonshire County Council",{"$f":"VLOOKUP(R2831,'LA CPID Look up'!$A$3:$C$153,2,FALSE)","v":"Northamptonshire County Council"},"East of England and North-East London"]
[null,null,null,null,null,null,null,null,null,null,null,null,null,null,123397,"Marchbank Free School","2013-09-01","Darlington Borough Council",{"$f":"VLOOKUP(R2833,'LA CPID Look up'!$A$3:$C$153,2,FALSE)","v":"Darlington Borough Council"},"North of England"]
[null,null,null,null,null,null,null,null,null,null,null,null,null,null,119979,"Marches School, The","2011-08-01","Shropshire Council",{"$f":"VLOOKUP(R2834,'LA CPID Look up'!$A$3:$C$153,2,FALSE)","v":"Shropshire Unitary Authority"},"West Midlands"]
[null,null,null,null,null,null,null,null,null,null,null,null,null,null,127115,"Marden Primary Academy - Marden","2014-01-01","Herefordshire Council",{"$f":"VLOOKUP(R2836,'LA CPID Look up'!$A$3:$C$153,2,FALSE)","v":"Herefordshire Council"},"West Midlands"]
[null,null,null,null,null,null,null,null,null,null,null,null,null,null,131979,"Marden Vale CofE Academy","2015-09-01","Wiltshire Council",{"$f":"VLOOKUP(R2837,'LA CPID Look up'!$A$3:$C$153,2,FALSE)","v":"Wiltshire Unitary Authority"},"South-West England"]
[null,null,null,null,null,null,null,null,null,null,null,null,null,null,130739,"Marham Junior School","2014-10-01","Norfolk County Council",{"$f":"VLOOKUP(R2839,'LA CPID Look up'!$A$3:$C$153,2,FALSE)","v":"Norfolk County Council"},"East of England and North-East London"]
[null,null,null,null,null,null,null,null,null,null,null,null,null,null,131808,"Marian Vian Primary School","2015-09-01","Bromley London Borough Council",{"$f":"VLOOKUP(R2840,'LA CPID Look up'!$A$3:$C$153,2,FALSE)","v":"Bromley London Borough Council"},"South-East England and South London"]
[null,null,null,null,null,null,null,null,null,null,null,null,null,null,122065,"Marish Primary School","2012-06-01","Slough Borough Council",{"$f":"VLOOKUP(R2843,'LA CPID Look up'!$A$3:$C$153,2,FALSE)","v":"Slough Borough Council"},"East of England and North-East London"]
[null,null,null,null,null,null,null,null,null,null,null,null,null,null,122431,"Mark Hall Academy","2013-09-01","Essex County Council",{"$f":"VLOOKUP(R2844,'LA CPID Look up'!$A$3:$C$153,2,FALSE)","v":"Essex County Council"},"East of England and North-East London"]
[null,null,null,null,null,null,null,null,null,null,null,null,null,null,121956,"Market Bosworth School, The","2012-05-01","Leicestershire County Council",{"$f":"VLOOKUP(R2846,'LA CPID Look up'!$A$3:$C$153,2,FALSE)","v":"Leicestershire County Council"},"East Midlands and the Humber"]
[null,null,null,null,null,null,null,null,null,null,null,null,null,null,130858,"Market Harborough Church of England Primary School","2014-08-01","Leicestershire County Council",{"$f":"VLOOKUP(R2847,'LA CPID Look up'!$A$3:$C$153,2,FALSE)","v":"Leicestershire County Council"},"East Midlands and the Humber"]
[null,null,null,null,null,null,null,null,null,null,null,null,null,null,120942,"Marlborough Road Academy","2012-09-01","Salford City Council",{"$f":"VLOOKUP(R2849,'LA CPID Look up'!$A$3:$C$153,2,FALSE)","v":"Salford City Council"},"Lancashire and West Yorkshire"]
[null,null,null,null,null,null,null,null,null,null,null,null,null,null,121214,"Marlborough Science Academy, The","2012-04-01","Hertfordshire County Council",{"$f":"VLOOKUP(R2850,'LA CPID Look up'!$A$3:$C$153,2,FALSE)","v":"Hertfordshire County Council"},"East of England and North-East London"]
[null,null,null,null,null,null,null,null,null,null,null,null,null,null,120123,"Marling School","2011-08-01","Gloucestershire County Council",{"$f":"VLOOKUP(R2852,'LA CPID Look up'!$A$3:$C$153,2,FALSE)","v":"Gloucestershire County Council"},"South-West England"]
[null,null,null,null,null,null,null,null,null,null,null,null,null,null,118398,"Marlowe Academy, The","2005-09-01","Kent County Council",{"$f":"VLOOKUP(R2853,'LA CPID Look up'!$A$3:$C$153,2,FALSE)","v":"Kent County Council"},"South-East England and South London"]
[null,null,null,null,null,null,null,null,null,null,null,null,null,null,131897,"Marsden Junior School","2015-04-01","Kirklees Metropolitan Council",{"$f":"VLOOKUP(R2855,'LA CPID Look up'!$A$3:$C$153,2,FALSE)","v":"Kirklees Metropolitan Council"},"Lancashire and West Yorkshire"]
[null,null,null,null,null,null,null,null,null,null,null,null,null,null,118626,"Marsh Academy, The","2007-09-01","Kent County Council",{"$f":"VLOOKUP(R2856,'LA CPID Look up'!$A$3:$C$153,2,FALSE)","v":"Kent County Council"},"South-East England and South London"]
[null,null,null,null,null,null,null,null,null,null,null,null,null,null,132978,"Marshland St James VC Primary School and Nursery","2015-09-01","Norfolk County Council",{"$f":"VLOOKUP(R2858,'LA CPID Look up'!$A$3:$C$153,2,FALSE)","v":"Norfolk County Council"},"East of England and North-East London"]
[null,null,null,null,null,null,null,null,null,null,null,null,null,null,130946,"Marshlands Academy","2014-09-01","East Sussex County Council",{"$f":"VLOOKUP(R2859,'LA CPID Look up'!$A$3:$C$153,2,FALSE)","v":"East Sussex County Council"},"South-East England and South London"]
[null,null,null,null,null,null,null,null,null,null,null,null,null,null,130151,"Marston Green Infant Academy","2014-04-01","Solihull Metropolitan Borough Council",{"$f":"VLOOKUP(R2861,'LA CPID Look up'!$A$3:$C$153,2,FALSE)","v":"Solihull Metropolitan Borough Council"},"West Midlands"]
[null,null,null,null,null,null,null,null,null,null,null,null,null,null,122735,"Marston Vale Middle School","2013-01-01","Bedford Borough Council",{"$f":"VLOOKUP(R2862,'LA CPID Look up'!$A$3:$C$153,2,FALSE)","v":"Bedford Unitary Authority"},"South-Central England and North-West London"]
[null,null,null,null,null,null,null,null,null,null,null,null,null,null,119384,"Martham Primary and Nursery School","2010-12-01","Norfolk County Council",{"$f":"VLOOKUP(R2864,'LA CPID Look up'!$A$3:$C$153,2,FALSE)","v":"Norfolk County Council"},"East of England and North-East London"]
[null,null,null,null,null,null,null,null,null,null,null,null,null,null,121032,"Martin High School Anstey, The","2012-02-01","Leicestershire County Council",{"$f":"VLOOKUP(R2865,'LA CPID Look up'!$A$3:$C$153,2,FALSE)","v":"Leicestershire County Council"},"East Midlands and the Humber"]
[null,null,null,null,null,null,null,null,null,null,null,null,null,null,123241,"Mary Rose School","2013-11-01","Portsmouth City Council",{"$f":"VLOOKUP(R2867,'LA CPID Look up'!$A$3:$C$153,2,FALSE)","v":"Portsmouth City Council"},"South-East England and South London"]
[null,null,null,null,null,null,null,null,null,null,null,null,null,null,130526,"Marylebone Boys' School","2014-09-01","Westminster City Council",{"$f":"VLOOKUP(R2868,'LA CPID Look up'!$A$3:$C$153,2,FALSE)","v":"Westminster City Council"},"East of England and North-East London"]
[null,null,null,null,null,null,null,null,null,null,null,null,null,null,126349,"Matchborough First School","2013-11-01","Worcestershire County Council",{"$f":"VLOOKUP(R2870,'LA CPID Look up'!$A$3:$C$153,2,FALSE)","v":"Worcestershire County Council"},"West Midlands"]
[null,null,null,null,null,null,null,null,null,null,null,null,null,null,123228,"Matthew Arnold School - Oxford","2015-08-01","Oxfordshire County Council",{"$f":"VLOOKUP(R2871,'LA CPID Look up'!$A$3:$C$153,2,FALSE)","v":"Oxfordshire County Council"},"East of England and North-East London"]
[null,null,null,null,null,null,null,null,null,null,null,null,null,null,124241,"Maybury Primary School","2013-10-01","Hull City Council",{"$f":"VLOOKUP(R2874,'LA CPID Look up'!$A$3:$C$153,2,FALSE)","v":"Kingston upon Hull City Council"},"East Midlands and the Humber"]
[null,null,null,null,null,null,null,null,null,null,null,null,null,null,120867,"Mayfield Grammar School, Gravesend","2012-02-01","Kent County Council",{"$f":"VLOOKUP(R2875,'LA CPID Look up'!$A$3:$C$153,2,FALSE)","v":"Kent County Council"},"South-East England and South London"]
[null,null,null,null,null,null,null,null,null,null,null,null,null,null,123103,"Mayflower Academy","2013-09-01","Plymouth City Council",{"$f":"VLOOKUP(R2877,'LA CPID Look up'!$A$3:$C$153,2,FALSE)","v":"Plymouth City Council"},"South-West England"]
[null,null,null,null,null,null,null,null,null,null,null,null,null,null,120048,"Mayflower High School","2011-08-01","Essex County Council",{"$f":"VLOOKUP(R2878,'LA CPID Look up'!$A$3:$C$153,2,FALSE)","v":"Essex County Council"},"East of England and North-East London"]
[null,null,null,null,null,null,null,null,null,null,null,null,null,null,130873,"Mayplace Primary School","2014-09-01","Bexley London Borough Council",{"$f":"VLOOKUP(R2880,'LA CPID Look up'!$A$3:$C$153,2,FALSE)","v":"Bexley London Borough Council"},"South-East England and South London"]
[null,null,null,null,null,null,null,null,null,null,null,null,null,null,130146,"McAuley Catholic High School, The","2014-05-01","Doncaster Metropolitan Borough Council",{"$f":"VLOOKUP(R2881,'LA CPID Look up'!$A$3:$C$153,2,FALSE)","v":"Doncaster Metropolitan Borough Council"},"East Midlands and the Humber"]
[null,null,null,null,null,null,null,null,null,null,null,null,null,null,130715,"Mead Road Infant School","2015-09-01","Bromley London Borough Council",{"$f":"VLOOKUP(R2883,'LA CPID Look up'!$A$3:$C$153,2,FALSE)","v":"Bromley London Borough Council"},"South-East England and South London"]
[null,null,null,null,null,null,null,null,null,null,null,null,null,null,127997,"Meadgate Primary School","2014-04-01","Essex County Council",{"$f":"VLOOKUP(R2884,'LA CPID Look up'!$A$3:$C$153,2,FALSE)","v":"Essex County Council"},"East of England and North-East London"]
[null,null,null,null,null,null,null,null,null,null,null,null,null,null,121890,"Meadow Community Primary School, The - Wigston","2012-06-01","Leicestershire County Council",{"$f":"VLOOKUP(R2886,'LA CPID Look up'!$A$3:$C$153,2,FALSE)","v":"Leicestershire County Council"},"East Midlands and the Humber"]
[null,null,null,null,null,null,null,null,null,null,null,null,null,null,121899,"Meadow Park Academy","2012-09-01","Reading Borough Council",{"$f":"VLOOKUP(R2887,'LA CPID Look up'!$A$3:$C$153,2,FALSE)","v":"Reading Borough Council"},"East of England and North-East London"]
[null,null,null,null,null,null,null,null,null,null,null,null,null,null,130906,"Meadowbrook College","2015-02-01","Oxfordshire County Council",{"$f":"VLOOKUP(R2889,'LA CPID Look up'!$A$3:$C$153,2,FALSE)","v":"Oxfordshire County Council"},"East of England and North-East London"]
[null,null,null,null,null,null,null,null,null,null,null,null,null,null,131529,"Meadowbrook Primary School","2015-01-01","South Gloucestershire Council",{"$f":"VLOOKUP(R2890,'LA CPID Look up'!$A$3:$C$153,2,FALSE)","v":"South Gloucestershire Council"},"South-West England"]
[null,null,null,null,null,null,null,null,null,null,null,null,null,null,122092,"Meadowdale Primary School","2012-07-01","Leicestershire County Council",{"$f":"VLOOKUP(R2892,'LA CPID Look up'!$A$3:$C$153,2,FALSE)","v":"Leicestershire County Council"},"East Midlands and the Humber"]
[null,null,null,null,null,null,null,null,null,null,null,null,null,null,121019,"Meadowhead School Academy Trust","2012-08-01","Sheffield City Council",{"$f":"VLOOKUP(R2893,'LA CPID Look up'!$A$3:$C$153,2,FALSE)","v":"Sheffield City Council"},"East Midlands and the Humber"]
[null,null,null,null,null,null,null,null,null,null,null,null,null,null,123060,"Measham Church of England Primary School","2012-12-01","Leicestershire County Council",{"$f":"VLOOKUP(R2895,'LA CPID Look up'!$A$3:$C$153,2,FALSE)","v":"Leicestershire County Council"},"East Midlands and the Humber"]
[null,null,null,null,null,null,null,null,null,null,null,null,null,null,122396,"Meden School","2012-09-01","Nottinghamshire County Council",{"$f":"VLOOKUP(R2896,'LA CPID Look up'!$A$3:$C$153,2,FALSE)","v":"Nottinghamshire County Council"},"East Midlands and the Humber"]
[null,null,null,null,null,null,null,null,null,null,null,null,null,null,132686,"Medway UTC","2015-09-01","Medway Council",{"$f":"VLOOKUP(R2898,'LA CPID Look up'!$A$3:$C$153,2,FALSE)","v":"Medway Towns Unitary Authority (The)"},"South-East England and South London"]
[null,null,null,null,null,null,null,null,null,null,null,null,null,null,120478,"Melbourn Village College","2011-10-01","Cambridgeshire County Council",{"$f":"VLOOKUP(R2899,'LA CPID Look up'!$A$3:$C$153,2,FALSE)","v":"Cambridgeshire County Council"},"East of England and North-East London"]
[null,null,null,null,null,null,null,null,null,null,null,null,null,null,122273,"Melland High School","2012-08-01","Manchester City Council",{"$f":"VLOOKUP(R2902,'LA CPID Look up'!$A$3:$C$153,2,FALSE)","v":"Manchester City Council"},"Lancashire and West Yorkshire"]
[null,null,null,null,null,null,null,null,null,null,null,null,null,null,120643,"Mellor Primary School","2011-10-01","Stockport Metropolitan Borough Council",{"$f":"VLOOKUP(R2903,'LA CPID Look up'!$A$3:$C$153,2,FALSE)","v":"Stockport Metropolitan Borough Council"},"Lancashire and West Yorkshire"]
[null,null,null,null,null,null,null,null,null,null,null,null,null,null,132674,"Mendip School, The","2015-09-01","Somerset County Council",{"$f":"VLOOKUP(R2905,'LA CPID Look up'!$A$3:$C$153,2,FALSE)","v":"Somerset County Council"},"South-West England"]
[null,null,null,null,null,null,null,null,null,null,null,null,null,null,132678,"Mendip Studio School","2015-09-01","Bath & North East Somerset Council",{"$f":"VLOOKUP(R2906,'LA CPID Look up'!$A$3:$C$153,2,FALSE)","v":"Bath & North East Somerset Council"},"South-West England"]
[null,null,null,null,null,null,null,null,null,null,null,null,null,null,120845,"Meopham School","2013-02-01","Kent County Council",{"$f":"VLOOKUP(R2908,'LA CPID Look up'!$A$3:$C$153,2,FALSE)","v":"Kent County Council"},"South-East England and South London"]
[null,null,null,null,null,null,null,null,null,null,null,null,null,null,131142,"Mepal and Witcham Church of England Primary School","2014-11-01","Cambridgeshire County Council",{"$f":"VLOOKUP(R2909,'LA CPID Look up'!$A$3:$C$153,2,FALSE)","v":"Cambridgeshire County Council"},"East of England and North-East London"]
[null,null,null,null,null,null,null,null,null,null,null,null,null,null,123269,"Mercenfeld Primary School","2013-04-01","Leicestershire County Council",{"$f":"VLOOKUP(R2911,'LA CPID Look up'!$A$3:$C$153,2,FALSE)","v":"Leicestershire County Council"},"East Midlands and the Humber"]
[null,null,null,null,null,null,null,null,null,null,null,null,null,null,124222,"Mercer's Wood Academy","2013-03-01","Lincolnshire County Council",{"$f":"VLOOKUP(R2912,'LA CPID Look up'!$A$3:$C$153,2,FALSE)","v":"Lincolnshire County Council"},"East Midlands and the Humber"]
[null,null,null,null,null,null,null,null,null,null,null,null,null,null,122693,"Mere Green Primary School","2013-04-01","Birmingham City Council",{"$f":"VLOOKUP(R2914,'LA CPID Look up'!$A$3:$C$153,2,FALSE)","v":"Birmingham City Council"},"West Midlands"]
[null,null,null,null,null,null,null,null,null,null,null,null,null,null,130527,"Meridian Angel Primary School","2014-09-01","Enfield London Borough Council",{"$f":"VLOOKUP(R2915,'LA CPID Look up'!$A$3:$C$153,2,FALSE)","v":"Enfield London Borough Council"},"South-Central England and North-West London"]
[null,null,null,null,null,null,null,null,null,null,null,null,null,null,119940,"Meridian School","2011-11-01","Hertfordshire County Council",{"$f":"VLOOKUP(R2917,'LA CPID Look up'!$A$3:$C$153,2,FALSE)","v":"Hertfordshire County Council"},"East of England and North-East London"]
[null,null,null,null,null,null,null,null,null,null,null,null,null,null,131380,"Merley First School","2015-03-01","Poole Borough Council",{"$f":"VLOOKUP(R2918,'LA CPID Look up'!$A$3:$C$153,2,FALSE)","v":"Poole (Borough of)"},"South-West England"]
[null,null,null,null,null,null,null,null,null,null,null,null,null,null,120960,"Merrill Academy","2013-01-01","Derby City Council",{"$f":"VLOOKUP(R2920,'LA CPID Look up'!$A$3:$C$153,2,FALSE)","v":"Derby City Council"},"East Midlands and the Humber"]
[null,null,null,null,null,null,null,null,null,null,null,null,null,null,122661,"Merritts Brook Primary E-ACT Academy","2013-01-01","Birmingham City Council",{"$f":"VLOOKUP(R2921,'LA CPID Look up'!$A$3:$C$153,2,FALSE)","v":"Birmingham City Council"},"West Midlands"]
[null,null,null,null,null,null,null,null,null,null,null,null,null,null,122384,"Merton Primary School, The","2012-10-01","Leicestershire County Council",{"$f":"VLOOKUP(R2923,'LA CPID Look up'!$A$3:$C$153,2,FALSE)","v":"Leicestershire County Council"},"East Midlands and the Humber"]
[null,null,null,null,null,null,null,null,null,null,null,null,null,null,122876,"Messing Primary School","2013-09-01","Essex County Council",{"$f":"VLOOKUP(R2924,'LA CPID Look up'!$A$3:$C$153,2,FALSE)","v":"Essex County Council"},"East of England and North-East London"]
[null,null,null,null,null,null,null,null,null,null,null,null,null,null,131220,"Mevagissey Community Primary School","2015-02-01","Cornwall Council",{"$f":"VLOOKUP(R2926,'LA CPID Look up'!$A$3:$C$153,2,FALSE)","v":"Cornwall Unitary Authority"},"South-West England"]
[null,null,null,null,null,null,null,null,null,null,null,null,null,null,121876,"Mexborough Academy","2015-01-01","Doncaster Metropolitan Borough Council",{"$f":"VLOOKUP(R2927,'LA CPID Look up'!$A$3:$C$153,2,FALSE)","v":"Doncaster Metropolitan Borough Council"},"East Midlands and the Humber"]
[null,null,null,null,null,null,null,null,null,null,null,null,null,null,122035,"Michaela Community School","2014-09-01","Brent London Borough Council",{"$f":"VLOOKUP(R2929,'LA CPID Look up'!$A$3:$C$153,2,FALSE)","v":"Brent London Borough Council"},"South-Central England and North-West London"]
[null,null,null,null,null,null,null,null,null,null,null,null,null,null,122077,"Middlefield Primary Academy","2012-06-01","Cambridgeshire County Council",{"$f":"VLOOKUP(R2930,'LA CPID Look up'!$A$3:$C$153,2,FALSE)","v":"Cambridgeshire County Council"},"East of England and North-East London"]
[null,null,null,null,null,null,null,null,null,null,null,null,null,null,129882,"Middleton Primary School","2014-04-01","Milton Keynes Council",{"$f":"VLOOKUP(R2933,'LA CPID Look up'!$A$3:$C$153,2,FALSE)","v":"Milton Keynes Council"},"East of England and North-East London"]
[null,null,null,null,null,null,null,null,null,null,null,null,null,null,131535,"Middleton Voluntary Controlled Primary School","2015-02-01","Norfolk County Council",{"$f":"VLOOKUP(R2934,'LA CPID Look up'!$A$3:$C$153,2,FALSE)","v":"Norfolk County Council"},"East of England and North-East London"]
[null,null,null,null,null,null,null,null,null,null,null,null,null,null,131245,"Midfield Primary School","2015-01-01","Bromley London Borough Council",{"$f":"VLOOKUP(R2936,'LA CPID Look up'!$A$3:$C$153,2,FALSE)","v":"Bromley London Borough Council"},"South-East England and South London"]
[null,null,null,null,null,null,null,null,null,null,null,null,null,null,118907,"Midhurst Rother College","2009-01-01","West Sussex County Council",{"$f":"VLOOKUP(R2937,'LA CPID Look up'!$A$3:$C$153,2,FALSE)","v":"West Sussex County Council"},"South-East England and South London"]
[null,null,null,null,null,null,null,null,null,null,null,null,null,null,123389,"Midland Studio College Nuneaton, The","2013-09-01","Warwickshire County Council",{"$f":"VLOOKUP(R2939,'LA CPID Look up'!$A$3:$C$153,2,FALSE)","v":"Warwickshire County Council"},"West Midlands"]
[null,null,null,null,null,null,null,null,null,null,null,null,null,null,131827,"Milborne St Andrew First School","2015-04-01","Dorset County Council",{"$f":"VLOOKUP(R2940,'LA CPID Look up'!$A$3:$C$153,2,FALSE)","v":"Dorset County Council"},"South-West England"]
[null,null,null,null,null,null,null,null,null,null,null,null,null,null,131229,"Mildmay Junior School","2014-12-01","Essex County Council",{"$f":"VLOOKUP(R2942,'LA CPID Look up'!$A$3:$C$153,2,FALSE)","v":"Essex County Council"},"East of England and North-East London"]
[null,null,null,null,null,null,null,null,null,null,null,null,null,null,120666,"Milestone Academy","2012-02-01","Kent County Council",{"$f":"VLOOKUP(R2943,'LA CPID Look up'!$A$3:$C$153,2,FALSE)","v":"Kent County Council"},"South-East England and South London"]
[null,null,null,null,null,null,null,null,null,null,null,null,null,null,124765,"Milford-on-Sea Church of England Primary School","2013-09-01","Hampshire County Council",{"$f":"VLOOKUP(R2945,'LA CPID Look up'!$A$3:$C$153,2,FALSE)","v":"Hampshire County Council"},"South-East England and South London"]
[null,null,null,null,null,null,null,null,null,null,null,null,null,null,124995,"Mill Chase Academy","2013-11-01","Hampshire County Council",{"$f":"VLOOKUP(R2946,'LA CPID Look up'!$A$3:$C$153,2,FALSE)","v":"Hampshire County Council"},"South-East England and South London"]
[null,null,null,null,null,null,null,null,null,null,null,null,null,null,124064,"Mill Primary Academy, The","2013-09-01","West Sussex County Council",{"$f":"VLOOKUP(R2948,'LA CPID Look up'!$A$3:$C$153,2,FALSE)","v":"West Sussex County Council"},"South-East England and South London"]
[null,null,null,null,null,null,null,null,null,null,null,null,null,null,131522,"Mill View Primary School","2015-01-01","Cheshire West and Chester Council",{"$f":"VLOOKUP(R2949,'LA CPID Look up'!$A$3:$C$153,2,FALSE)","v":"Cheshire West and Chester Unitary Authority"},"West Midlands"]
[null,null,null,null,null,null,null,null,null,null,null,null,null,null,131674,"Millbridge Junior Infant and Nursery School","2015-04-01","Kirklees Metropolitan Council",{"$f":"VLOOKUP(R2951,'LA CPID Look up'!$A$3:$C$153,2,FALSE)","v":"Kirklees Metropolitan Council"},"Lancashire and West Yorkshire"]
[null,null,null,null,null,null,null,null,null,null,null,null,null,null,120918,"Millbrook Academy - Gloucester","2012-01-01","Gloucestershire County Council",{"$f":"VLOOKUP(R2952,'LA CPID Look up'!$A$3:$C$153,2,FALSE)","v":"Gloucestershire County Council"},"South-West England"]
[null,null,null,null,null,null,null,null,null,null,null,null,null,null,130400,"Millbrook Park Primary School","2014-09-01","Barnet London Borough Council",{"$f":"VLOOKUP(R2954,'LA CPID Look up'!$A$3:$C$153,2,FALSE)","v":"Barnet London Borough Council"},"South-Central England and North-West London"]
[null,null,null,null,null,null,null,null,null,null,null,null,null,null,124164,"Millbrook Primary School - Swindon","2013-11-01","Swindon Borough Council",{"$f":"VLOOKUP(R2955,'LA CPID Look up'!$A$3:$C$153,2,FALSE)","v":"Swindon Unitary Authority"},"South-West England"]
[null,null,null,null,null,null,null,null,null,null,null,null,null,null,122872,"Millfield L.E.A.D. Academy","2013-01-01","Leicestershire County Council",{"$f":"VLOOKUP(R2957,'LA CPID Look up'!$A$3:$C$153,2,FALSE)","v":"Leicestershire County Council"},"East Midlands and the Humber"]
[null,null,null,null,null,null,null,null,null,null,null,null,null,null,133265,"Millfield Primary School","2015-12-01","Cambridgeshire County Council",{"$f":"VLOOKUP(R2958,'LA CPID Look up'!$A$3:$C$153,2,FALSE)","v":"Cambridgeshire County Council"},"East of England and North-East London"]
[null,null,null,null,null,null,null,null,null,null,null,null,null,null,123947,"Milton Court Primary Academy","2013-04-01","Kent County Council",{"$f":"VLOOKUP(R2960,'LA CPID Look up'!$A$3:$C$153,2,FALSE)","v":"Kent County Council"},"South-East England and South London"]
[null,null,null,null,null,null,null,null,null,null,null,null,null,null,118892,"Milton Keynes Academy, The","2009-09-01","Milton Keynes Council",{"$f":"VLOOKUP(R2961,'LA CPID Look up'!$A$3:$C$153,2,FALSE)","v":"Milton Keynes Council"},"East of England and North-East London"]
[null,null,null,null,null,null,null,null,null,null,null,null,null,null,131417,"Minchinhampton Primary Academy","2014-11-01","Gloucestershire County Council",{"$f":"VLOOKUP(R2964,'LA CPID Look up'!$A$3:$C$153,2,FALSE)","v":"Gloucestershire County Council"},"South-West England"]
[null,null,null,null,null,null,null,null,null,null,null,null,null,null,119774,"Minehead Middle School","2011-06-01","Somerset County Council",{"$f":"VLOOKUP(R2965,'LA CPID Look up'!$A$3:$C$153,2,FALSE)","v":"Somerset County Council"},"South-West England"]
[null,null,null,null,null,null,null,null,null,null,null,null,null,null,121085,"Minerva Primary Academy","2012-09-01","Bristol City Council",{"$f":"VLOOKUP(R2967,'LA CPID Look up'!$A$3:$C$153,2,FALSE)","v":"Bristol City Council"},"South-West England"]
[null,null,null,null,null,null,null,null,null,null,null,null,null,null,120011,"Minsthorpe Community College","2011-08-01","Wakefield Council",{"$f":"VLOOKUP(R2968,'LA CPID Look up'!$A$3:$C$153,2,FALSE)","v":"Wakefield City Council"},"Lancashire and West Yorkshire"]
[null,null,null,null,null,null,null,null,null,null,null,null,null,null,131675,"Mistley Church of England Primary School","2015-02-01","Essex County Council",{"$f":"VLOOKUP(R2970,'LA CPID Look up'!$A$3:$C$153,2,FALSE)","v":"Essex County Council"},"East of England and North-East London"]
[null,null,null,null,null,null,null,null,null,null,null,null,null,null,132012,"Mithian School","2015-09-01","Cornwall Council",{"$f":"VLOOKUP(R2971,'LA CPID Look up'!$A$3:$C$153,2,FALSE)","v":"Cornwall Unitary Authority"},"South-West England"]
[null,null,null,null,null,null,null,null,null,null,null,null,null,null,121174,"Molehill Primary Academy","2012-06-01","Kent County Council",{"$f":"VLOOKUP(R2973,'LA CPID Look up'!$A$3:$C$153,2,FALSE)","v":"Kent County Council"},"South-East England and South London"]
[null,null,null,null,null,null,null,null,null,null,null,null,null,null,122506,"Monk's Walk School","2012-09-01","Hertfordshire County Council",{"$f":"VLOOKUP(R2974,'LA CPID Look up'!$A$3:$C$153,2,FALSE)","v":"Hertfordshire County Council"},"East of England and North-East London"]
[null,null,null,null,null,null,null,null,null,null,null,null,null,null,120763,"Monkton Junior School","2012-04-01","South Tyneside Council",{"$f":"VLOOKUP(R2976,'LA CPID Look up'!$A$3:$C$153,2,FALSE)","v":"South Tyneside Council"},"North of England"]
[null,null,null,null,null,null,null,null,null,null,null,null,null,null,129441,"Monkwearmouth Academy","2013-12-01","Sunderland City Council",{"$f":"VLOOKUP(R2977,'LA CPID Look up'!$A$3:$C$153,2,FALSE)","v":"Sunderland City Metropolitan Borough Council"},"North of England"]
[null,null,null,null,null,null,null,null,null,null,null,null,null,null,129414,"Monkwick Junior School","2014-04-01","Essex County Council",{"$f":"VLOOKUP(R2979,'LA CPID Look up'!$A$3:$C$153,2,FALSE)","v":"Essex County Council"},"East of England and North-East London"]
[null,null,null,null,null,null,null,null,null,null,null,null,null,null,130953,"Monkwood Primary Academy","2014-10-01","Rotherham Metropolitan Borough Council",{"$f":"VLOOKUP(R2980,'LA CPID Look up'!$A$3:$C$153,2,FALSE)","v":"Rotherham Borough Council"},"East Midlands and the Humber"]
[null,null,null,null,null,null,null,null,null,null,null,null,null,null,130147,"Montagu Academy","2014-05-01","Doncaster Metropolitan Borough Council",{"$f":"VLOOKUP(R2982,'LA CPID Look up'!$A$3:$C$153,2,FALSE)","v":"Doncaster Metropolitan Borough Council"},"East Midlands and the Humber"]
[null,null,null,null,null,null,null,null,null,null,null,null,null,null,122181,"Monteclefe Church of England VA Junior School","2012-08-01","Somerset County Council",{"$f":"VLOOKUP(R2983,'LA CPID Look up'!$A$3:$C$153,2,FALSE)","v":"Somerset County Council"},"South-West England"]
[null,null,null,null,null,null,null,null,null,null,null,null,null,null,122646,"Monteney Primary School","2013-04-01","Sheffield City Council",{"$f":"VLOOKUP(R2985,'LA CPID Look up'!$A$3:$C$153,2,FALSE)","v":"Sheffield City Council"},"East Midlands and the Humber"]
[null,null,null,null,null,null,null,null,null,null,null,null,null,null,130875,"Montgomerie Primary School","2014-09-01","Essex County Council",{"$f":"VLOOKUP(R2986,'LA CPID Look up'!$A$3:$C$153,2,FALSE)","v":"Essex County Council"},"East of England and North-East London"]
[null,null,null,null,null,null,null,null,null,null,null,null,null,null,122298,"Montgomery Primary Academy","2012-10-01","Birmingham City Council",{"$f":"VLOOKUP(R2988,'LA CPID Look up'!$A$3:$C$153,2,FALSE)","v":"Birmingham City Council"},"West Midlands"]
[null,null,null,null,null,null,null,null,null,null,null,null,null,null,120049,"Montsaye Academy","2011-08-01","Northamptonshire County Council",{"$f":"VLOOKUP(R2989,'LA CPID Look up'!$A$3:$C$153,2,FALSE)","v":"Northamptonshire County Council"},"East of England and North-East London"]
[null,null,null,null,null,null,null,null,null,null,null,null,null,null,121020,"Moorcroft School","2012-06-01","Hillingdon London Borough Council",{"$f":"VLOOKUP(R2992,'LA CPID Look up'!$A$3:$C$153,2,FALSE)","v":"Hillingdon London Borough Council"},"East of England and North-East London"]
[null,null,null,null,null,null,null,null,null,null,null,null,null,null,131775,"Moordown St John's Church of England Primary School","2015-12-01","Bournemouth Borough Council",{"$f":"VLOOKUP(R2993,'LA CPID Look up'!$A$3:$C$153,2,FALSE)","v":"Bournemouth Council"},"South-West England"]
[null,null,null,null,null,null,null,null,null,null,null,null,null,null,124696,"Moorlands CofE Primary Academy","2013-11-01","Norfolk County Council",{"$f":"VLOOKUP(R2995,'LA CPID Look up'!$A$3:$C$153,2,FALSE)","v":"Norfolk County Council"},"East of England and North-East London"]
[null,null,null,null,null,null,null,null,null,null,null,null,null,null,123811,"Moorside Community Primary Academy School","2013-04-01","Lancashire County Council",{"$f":"VLOOKUP(R2996,'LA CPID Look up'!$A$3:$C$153,2,FALSE)","v":"Lancashire County Council"},"Lancashire and West Yorkshire"]
[null,null,null,null,null,null,null,null,null,null,null,null,null,null,122598,"Mordiford CofE Primary School","2013-12-01","Herefordshire Council",{"$f":"VLOOKUP(R2998,'LA CPID Look up'!$A$3:$C$153,2,FALSE)","v":"Herefordshire Council"},"West Midlands"]
[null,null,null,null,null,null,null,null,null,null,null,null,null,null,130745,"More Park Catholic Primary School","2014-10-01","Kent County Council",{"$f":"VLOOKUP(R2999,'LA CPID Look up'!$A$3:$C$153,2,FALSE)","v":"Kent County Council"},"South-East England and South London"]
[null,null,null,null,null,null,null,null,null,null,null,null,null,null,127197,"Morehall Academy","2014-04-01","Kent County Council",{"$f":"VLOOKUP(R3001,'LA CPID Look up'!$A$3:$C$153,2,FALSE)","v":"Kent County Council"},"South-East England and South London"]
[null,null,null,null,null,null,null,null,null,null,null,null,null,null,131080,"Moretonhampstead Primary School","2014-09-01","Devon County Council",{"$f":"VLOOKUP(R3002,'LA CPID Look up'!$A$3:$C$153,2,FALSE)","v":"Devon County Council"},"South-West England"]
[null,null,null,null,null,null,null,null,null,null,null,null,null,null,119424,"Morley Academy, The","2011-01-01","Leeds City Council",{"$f":"VLOOKUP(R3004,'LA CPID Look up'!$A$3:$C$153,2,FALSE)","v":"Leeds City Council"},"Lancashire and West Yorkshire"]
[null,null,null,null,null,null,null,null,null,null,null,null,null,null,131822,"Morley Newlands Academy","2015-03-01","Leeds City Council",{"$f":"VLOOKUP(R3005,'LA CPID Look up'!$A$3:$C$153,2,FALSE)","v":"Leeds City Council"},"Lancashire and West Yorkshire"]
[null,null,null,null,null,null,null,null,null,null,null,null,null,null,120670,"Morpeth Newminster Middle School","2011-12-01","Northumberland County Council",{"$f":"VLOOKUP(R3007,'LA CPID Look up'!$A$3:$C$153,2,FALSE)","v":"Northumberland Unitary Authority"},"North of England"]
[null,null,null,null,null,null,null,null,null,null,null,null,null,null,124151,"Morpeth Road Primary School","2013-06-01","Northumberland County Council",{"$f":"VLOOKUP(R3008,'LA CPID Look up'!$A$3:$C$153,2,FALSE)","v":"Northumberland Unitary Authority"},"North of England"]
[null,null,null,null,null,null,null,null,null,null,null,null,null,null,123339,"Mosaic Jewish Primary School","2013-09-01","Wandsworth London Borough Council",{"$f":"VLOOKUP(R3010,'LA CPID Look up'!$A$3:$C$153,2,FALSE)","v":"Wandsworth London Borough Council"},"South-East England and South London"]
[null,null,null,null,null,null,null,null,null,null,null,null,null,null,120977,"Moseley Park","2012-06-01","Wolverhampton City Council",{"$f":"VLOOKUP(R3011,'LA CPID Look up'!$A$3:$C$153,2,FALSE)","v":"Wolverhampton City Council"},"West Midlands"]
[null,null,null,null,null,null,null,null,null,null,null,null,null,null,119080,"Mossbourne Community Academy","2004-09-01","Hackney London Borough Council (The Learning Trust)",{"$f":"VLOOKUP(R3013,'LA CPID Look up'!$A$3:$C$153,2,FALSE)","v":"Hackney London Borough Council"},"East of England and North-East London"]
[null,null,null,null,null,null,null,null,null,null,null,null,null,null,132265,"Mossbourne Parkside Academy","2015-09-01","Hackney London Borough Council (The Learning Trust)",{"$f":"VLOOKUP(R3014,'LA CPID Look up'!$A$3:$C$153,2,FALSE)","v":"Hackney London Borough Council"},"East of England and North-East London"]
[null,null,null,null,null,null,null,null,null,null,null,null,null,null,121929,"Mossbourne Victoria Park Academy","2014-09-01","Hackney London Borough Council (The Learning Trust)",{"$f":"VLOOKUP(R3016,'LA CPID Look up'!$A$3:$C$153,2,FALSE)","v":"Hackney London Borough Council"},"East of England and North-East London"]
[null,null,null,null,null,null,null,null,null,null,null,null,null,null,129577,"Mossley CofE Primary School","2014-08-01","Cheshire East Council",{"$f":"VLOOKUP(R3017,'LA CPID Look up'!$A$3:$C$153,2,FALSE)","v":"Cheshire East Unitary Authority"},"West Midlands"]
[null,null,null,null,null,null,null,null,null,null,null,null,null,null,132478,"Mottingham Primary School","2015-09-01","Bromley London Borough Council",{"$f":"VLOOKUP(R3019,'LA CPID Look up'!$A$3:$C$153,2,FALSE)","v":"Bromley London Borough Council"},"South-East England and South London"]
[null,null,null,null,null,null,null,null,null,null,null,null,null,null,119607,"Mottram St Andrew Primary Academy","2011-04-01","Cheshire East Council",{"$f":"VLOOKUP(R3020,'LA CPID Look up'!$A$3:$C$153,2,FALSE)","v":"Cheshire East Unitary Authority"},"West Midlands"]
[null,null,null,null,null,null,null,null,null,null,null,null,null,null,121180,"Moulsham Junior School","2012-04-01","Essex County Council",{"$f":"VLOOKUP(R3023,'LA CPID Look up'!$A$3:$C$153,2,FALSE)","v":"Essex County Council"},"East of England and North-East London"]
[null,null,null,null,null,null,null,null,null,null,null,null,null,null,120662,"Moulton School and Science College","2011-11-01","Northamptonshire County Council",{"$f":"VLOOKUP(R3024,'LA CPID Look up'!$A$3:$C$153,2,FALSE)","v":"Northamptonshire County Council"},"East of England and North-East London"]
[null,null,null,null,null,null,null,null,null,null,null,null,null,null,120224,"Mount Grace School - Potters Bar","2011-08-01","Hertfordshire County Council",{"$f":"VLOOKUP(R3026,'LA CPID Look up'!$A$3:$C$153,2,FALSE)","v":"Hertfordshire County Council"},"East of England and North-East London"]
[null,null,null,null,null,null,null,null,null,null,null,null,null,null,119635,"Mount Hawke Academy","2011-04-01","Cornwall Council",{"$f":"VLOOKUP(R3027,'LA CPID Look up'!$A$3:$C$153,2,FALSE)","v":"Cornwall Unitary Authority"},"South-West England"]
[null,null,null,null,null,null,null,null,null,null,null,null,null,null,120627,"Mount Street Academy","2011-10-01","Lincolnshire County Council",{"$f":"VLOOKUP(R3029,'LA CPID Look up'!$A$3:$C$153,2,FALSE)","v":"Lincolnshire County Council"},"East Midlands and the Humber"]
[null,null,null,null,null,null,null,null,null,null,null,null,null,null,119642,"Mountbatten School, The","2011-04-01","Hampshire County Council",{"$f":"VLOOKUP(R3030,'LA CPID Look up'!$A$3:$C$153,2,FALSE)","v":"Hampshire County Council"},"South-East England and South London"]
[null,null,null,null,null,null,null,null,null,null,null,null,null,null,121903,"Mountford Manor Primary School","2012-07-01","Swindon Borough Council",{"$f":"VLOOKUP(R3032,'LA CPID Look up'!$A$3:$C$153,2,FALSE)","v":"Swindon Unitary Authority"},"South-West England"]
[null,null,null,null,null,null,null,null,null,null,null,null,null,null,119873,"Mounts Bay Academy","2011-07-01","Cornwall Council",{"$f":"VLOOKUP(R3033,'LA CPID Look up'!$A$3:$C$153,2,FALSE)","v":"Cornwall Unitary Authority"},"South-West England"]
[null,null,null,null,null,null,null,null,null,null,null,null,null,null,122070,"Mowden Junior School","2012-06-01","Darlington Borough Council",{"$f":"VLOOKUP(R3035,'LA CPID Look up'!$A$3:$C$153,2,FALSE)","v":"Darlington Borough Council"},"North of England"]
[null,null,null,null,null,null,null,null,null,null,null,null,null,null,130879,"Mowmacre Hill Primary School","2014-09-01","Leicester City Council",{"$f":"VLOOKUP(R3036,'LA CPID Look up'!$A$3:$C$153,2,FALSE)","v":"Leicester City Council"},"East Midlands and the Humber"]
[null,null,null,null,null,null,null,null,null,null,null,null,null,null,131246,"Mundford Church of England Primary School","2014-12-01","Norfolk County Council",{"$f":"VLOOKUP(R3038,'LA CPID Look up'!$A$3:$C$153,2,FALSE)","v":"Norfolk County Council"},"East of England and North-East London"]
[null,null,null,null,null,null,null,null,null,null,null,null,null,null,124410,"Murrow Primary Academy","2013-07-01","Cambridgeshire County Council",{"$f":"VLOOKUP(R3039,'LA CPID Look up'!$A$3:$C$153,2,FALSE)","v":"Cambridgeshire County Council"},"East of England and North-East London"]
[null,null,null,null,null,null,null,null,null,null,null,null,null,null,132376,"Mytchett Primary School","2015-10-01","Surrey County Council",{"$f":"VLOOKUP(R3041,'LA CPID Look up'!$A$3:$C$153,2,FALSE)","v":"Surrey County Council"},"South-East England and South London"]
[null,null,null,null,null,null,null,null,null,null,null,null,null,null,119900,"Myton School","2011-07-01","Warwickshire County Council",{"$f":"VLOOKUP(R3042,'LA CPID Look up'!$A$3:$C$153,2,FALSE)","v":"Warwickshire County Council"},"West Midlands"]
[null,null,null,null,null,null,null,null,null,null,null,null,null,null,123325,"Nanaksar Primary School","2013-09-01","Hillingdon London Borough Council",{"$f":"VLOOKUP(R3044,'LA CPID Look up'!$A$3:$C$153,2,FALSE)","v":"Hillingdon London Borough Council"},"East of England and North-East London"]
[null,null,null,null,null,null,null,null,null,null,null,null,null,null,122484,"Nansen Primary School","2012-10-01","Birmingham City Council",{"$f":"VLOOKUP(R3045,'LA CPID Look up'!$A$3:$C$153,2,FALSE)","v":"Birmingham City Council"},"West Midlands"]
[null,null,null,null,null,null,null,null,null,null,null,null,null,null,132987,"Nantwich Primary Academy","2015-10-01","Cheshire East Council",{"$f":"VLOOKUP(R3047,'LA CPID Look up'!$A$3:$C$153,2,FALSE)","v":"Cheshire East Unitary Authority"},"West Midlands"]
[null,null,null,null,null,null,null,null,null,null,null,null,null,null,130883,"Napier Community Primary and Nursery Academy","2014-09-01","Medway Council",{"$f":"VLOOKUP(R3048,'LA CPID Look up'!$A$3:$C$153,2,FALSE)","v":"Medway Towns Unitary Authority (The)"},"South-East England and South London"]
[null,null,null,null,null,null,null,null,null,null,null,null,null,null,131692,"NAS Church Lawton School","2015-01-01","Cheshire East Council",{"$f":"VLOOKUP(R3051,'LA CPID Look up'!$A$3:$C$153,2,FALSE)","v":"Cheshire East Unitary Authority"},"West Midlands"]
[null,null,null,null,null,null,null,null,null,null,null,null,null,null,126346,"Naseby Church of England Primary Academy","2014-04-01","Northamptonshire County Council",{"$f":"VLOOKUP(R3052,'LA CPID Look up'!$A$3:$C$153,2,FALSE)","v":"Northamptonshire County Council"},"East of England and North-East London"]
[null,null,null,null,null,null,null,null,null,null,null,null,null,null,120159,"National CofE Academy, The","2011-08-01","Nottinghamshire County Council",{"$f":"VLOOKUP(R3054,'LA CPID Look up'!$A$3:$C$153,2,FALSE)","v":"Nottinghamshire County Council"},"East Midlands and the Humber"]
[null,null,null,null,null,null,null,null,null,null,null,null,null,null,122936,"Neale-Wade Academy","2013-04-01","Cambridgeshire County Council",{"$f":"VLOOKUP(R3055,'LA CPID Look up'!$A$3:$C$153,2,FALSE)","v":"Cambridgeshire County Council"},"East of England and North-East London"]
[null,null,null,null,null,null,null,null,null,null,null,null,null,null,122258,"Nechells Primary E-ACT Academy","2012-09-01","Birmingham City Council",{"$f":"VLOOKUP(R3057,'LA CPID Look up'!$A$3:$C$153,2,FALSE)","v":"Birmingham City Council"},"West Midlands"]
[null,null,null,null,null,null,null,null,null,null,null,null,null,null,127386,"Nelson Academy - Downham Market","2014-01-01","Norfolk County Council",{"$f":"VLOOKUP(R3058,'LA CPID Look up'!$A$3:$C$153,2,FALSE)","v":"Norfolk County Council"},"East of England and North-East London"]
[null,null,null,null,null,null,null,null,null,null,null,null,null,null,125026,"Nene Infant School, The","2013-10-01","Cambridgeshire County Council",{"$f":"VLOOKUP(R3060,'LA CPID Look up'!$A$3:$C$153,2,FALSE)","v":"Cambridgeshire County Council"},"East of England and North-East London"]
[null,null,null,null,null,null,null,null,null,null,null,null,null,null,120082,"Nene Park Academy","2011-09-01","Peterborough City Council",{"$f":"VLOOKUP(R3061,'LA CPID Look up'!$A$3:$C$153,2,FALSE)","v":"Peterborough City Council"},"East of England and North-East London"]
[null,null,null,null,null,null,null,null,null,null,null,null,null,null,131076,"Nether Alderley Primary School","2014-09-01","Cheshire East Council",{"$f":"VLOOKUP(R3063,'LA CPID Look up'!$A$3:$C$153,2,FALSE)","v":"Cheshire East Unitary Authority"},"West Midlands"]
[null,null,null,null,null,null,null,null,null,null,null,null,null,null,132373,"Nether Edge Primary School","2015-09-01","Sheffield City Council",{"$f":"VLOOKUP(R3064,'LA CPID Look up'!$A$3:$C$153,2,FALSE)","v":"Sheffield City Council"},"East Midlands and the Humber"]
[null,null,null,null,null,null,null,null,null,null,null,null,null,null,132984,"Netherhall School, The","2016-02-01","Cambridgeshire County Council",{"$f":"VLOOKUP(R3066,'LA CPID Look up'!$A$3:$C$153,2,FALSE)","v":"Cambridgeshire County Council"},"East of England and North-East London"]
[null,null,null,null,null,null,null,null,null,null,null,null,null,null,122486,"Nethersole CofE Academy, The","2013-04-01","Warwickshire County Council",{"$f":"VLOOKUP(R3067,'LA CPID Look up'!$A$3:$C$153,2,FALSE)","v":"Warwickshire County Council"},"West Midlands"]
[null,null,null,null,null,null,null,null,null,null,null,null,null,null,122698,"Nettleham Infant School, The","2012-09-01","Lincolnshire County Council",{"$f":"VLOOKUP(R3069,'LA CPID Look up'!$A$3:$C$153,2,FALSE)","v":"Lincolnshire County Council"},"East Midlands and the Humber"]
[null,null,null,null,null,null,null,null,null,null,null,null,null,null,133200,"New Bridge Academy","2015-09-01","Sunderland City Council",{"$f":"VLOOKUP(R3070,'LA CPID Look up'!$A$3:$C$153,2,FALSE)","v":"Sunderland City Metropolitan Borough Council"},"North of England"]
[null,null,null,null,null,null,null,null,null,null,null,null,null,null,123390,"New Campus Basildon Studio School","2013-09-01","Essex County Council",{"$f":"VLOOKUP(R3072,'LA CPID Look up'!$A$3:$C$153,2,FALSE)","v":"Essex County Council"},"East of England and North-East London"]
[null,null,null,null,null,null,null,null,null,null,null,null,null,null,119938,"New Chapter Primary School","2013-01-01","Milton Keynes Council",{"$f":"VLOOKUP(R3073,'LA CPID Look up'!$A$3:$C$153,2,FALSE)","v":"Milton Keynes Council"},"East of England and North-East London"]
[null,null,null,null,null,null,null,null,null,null,null,null,null,null,122253,"New Forest Academy, The","2012-09-01","Hampshire County Council",{"$f":"VLOOKUP(R3075,'LA CPID Look up'!$A$3:$C$153,2,FALSE)","v":"Hampshire County Council"},"South-East England and South London"]
[null,null,null,null,null,null,null,null,null,null,null,null,null,null,124758,"New Haw Community Junior School","2014-05-01","Surrey County Council",{"$f":"VLOOKUP(R3076,'LA CPID Look up'!$A$3:$C$153,2,FALSE)","v":"Surrey County Council"},"South-East England and South London"]
[null,null,null,null,null,null,null,null,null,null,null,null,null,null,132035,"New Horizons School","2015-09-01","East Sussex County Council",{"$f":"VLOOKUP(R3078,'LA CPID Look up'!$A$3:$C$153,2,FALSE)","v":"East Sussex County Council"},"South-East England and South London"]
[null,null,null,null,null,null,null,null,null,null,null,null,null,null,123326,"New Islington Free School","2013-09-01","Manchester City Council",{"$f":"VLOOKUP(R3079,'LA CPID Look up'!$A$3:$C$153,2,FALSE)","v":"Manchester City Council"},"Lancashire and West Yorkshire"]
[null,null,null,null,null,null,null,null,null,null,null,null,null,null,119939,"New North Academy, The","2011-09-01","Islington London Borough Council",{"$f":"VLOOKUP(R3082,'LA CPID Look up'!$A$3:$C$153,2,FALSE)","v":"Islington London Borough Council"},"East of England and North-East London"]
[null,null,null,null,null,null,null,null,null,null,null,null,null,null,132330,"New Park Primary Academy","2015-12-01","North Yorkshire County Council",{"$f":"VLOOKUP(R3083,'LA CPID Look up'!$A$3:$C$153,2,FALSE)","v":"North Yorkshire County Council"},"North of England"]
[null,null,null,null,null,null,null,null,null,null,null,null,null,null,123943,"New Penshaw Academy","2013-04-01","Sunderland City Council",{"$f":"VLOOKUP(R3085,'LA CPID Look up'!$A$3:$C$153,2,FALSE)","v":"Sunderland City Metropolitan Borough Council"},"North of England"]
[null,null,null,null,null,null,null,null,null,null,null,null,null,null,118667,"New Rickstones Academy","2008-09-04","Essex County Council",{"$f":"VLOOKUP(R3086,'LA CPID Look up'!$A$3:$C$153,2,FALSE)","v":"Essex County Council"},"East of England and North-East London"]
[null,null,null,null,null,null,null,null,null,null,null,null,null,null,122264,"New Seaham Primary School","2012-10-01","Durham County Council",{"$f":"VLOOKUP(R3088,'LA CPID Look up'!$A$3:$C$153,2,FALSE)","v":"County Durham Unitary Authority"},"North of England"]
[null,null,null,null,null,null,null,null,null,null,null,null,null,null,130937,"New Valley Primary School","2014-09-01","Croydon London Borough Council",{"$f":"VLOOKUP(R3089,'LA CPID Look up'!$A$3:$C$153,2,FALSE)","v":"Croydon London Borough Council"},"South-East England and South London"]
[null,null,null,null,null,null,null,null,null,null,null,null,null,null,131426,"Newall Green High School","2015-04-01","Manchester City Council",{"$f":"VLOOKUP(R3091,'LA CPID Look up'!$A$3:$C$153,2,FALSE)","v":"Manchester City Council"},"Lancashire and West Yorkshire"]
[null,null,null,null,null,null,null,null,null,null,null,null,null,null,126482,"Newall Green Primary School","2015-11-01","Manchester City Council",{"$f":"VLOOKUP(R3092,'LA CPID Look up'!$A$3:$C$153,2,FALSE)","v":"Manchester City Council"},"Lancashire and West Yorkshire"]
[null,null,null,null,null,null,null,null,null,null,null,null,null,null,129415,"Newark Hill Primary School","2014-04-01","Peterborough City Council",{"$f":"VLOOKUP(R3094,'LA CPID Look up'!$A$3:$C$153,2,FALSE)","v":"Peterborough City Council"},"East of England and North-East London"]
[null,null,null,null,null,null,null,null,null,null,null,null,null,null,130608,"Newbold CofE VA Primary School","2014-07-01","Derbyshire County Council",{"$f":"VLOOKUP(R3095,'LA CPID Look up'!$A$3:$C$153,2,FALSE)","v":"Derbyshire County Council"},"East Midlands and the Humber"]
[null,null,null,null,null,null,null,null,null,null,null,null,null,null,122107,"Newbridge High School","2012-07-01","Leicestershire County Council",{"$f":"VLOOKUP(R3097,'LA CPID Look up'!$A$3:$C$153,2,FALSE)","v":"Leicestershire County Council"},"East Midlands and the Humber"]
[null,null,null,null,null,null,null,null,null,null,null,null,null,null,124070,"Newbridge Junior School","2014-11-01","Portsmouth City Council",{"$f":"VLOOKUP(R3098,'LA CPID Look up'!$A$3:$C$153,2,FALSE)","v":"Portsmouth City Council"},"South-East England and South London"]
[null,null,null,null,null,null,null,null,null,null,null,null,null,null,132296,"Newcastle Academy","2015-10-01","Staffordshire County Council",{"$f":"VLOOKUP(R3100,'LA CPID Look up'!$A$3:$C$153,2,FALSE)","v":"Staffordshire County Council"},"West Midlands"]
[null,null,null,null,null,null,null,null,null,null,null,null,null,null,114738,"Newent Community School and Sixth Form Centre","2012-09-01","Gloucestershire County Council",{"$f":"VLOOKUP(R3101,'LA CPID Look up'!$A$3:$C$153,2,FALSE)","v":"Gloucestershire County Council"},"South-West England"]
[null,null,null,null,null,null,null,null,null,null,null,null,null,null,129593,"Newhaven Academy","2015-09-01","East Sussex County Council",{"$f":"VLOOKUP(R3103,'LA CPID Look up'!$A$3:$C$153,2,FALSE)","v":"East Sussex County Council"},"South-East England and South London"]
[null,null,null,null,null,null,null,null,null,null,null,null,null,null,121850,"Newington Academy","2012-09-01","Hull City Council",{"$f":"VLOOKUP(R3104,'LA CPID Look up'!$A$3:$C$153,2,FALSE)","v":"Kingston upon Hull City Council"},"East Midlands and the Humber"]
[null,null,null,null,null,null,null,null,null,null,null,null,null,null,126464,"Newlands Academy - Southwark","2013-09-01","Southwark London Borough Council",{"$f":"VLOOKUP(R3106,'LA CPID Look up'!$A$3:$C$153,2,FALSE)","v":"Southwark London Borough Council"},"South-East England and South London"]
[null,null,null,null,null,null,null,null,null,null,null,null,null,null,132436,"Newlands Girls' School","2015-10-01","Royal Borough of Windsor and Maidenhead",{"$f":"VLOOKUP(R3107,'LA CPID Look up'!$A$3:$C$153,2,FALSE)","v":"Windsor and Maidenhead (Royal Borough of)"},"East of England and North-East London"]
[null,null,null,null,null,null,null,null,null,null,null,null,null,null,131151,"Newlyn School","2015-09-01","Cornwall Council",{"$f":"VLOOKUP(R3110,'LA CPID Look up'!$A$3:$C$153,2,FALSE)","v":"Cornwall Unitary Authority"},"South-West England"]
[null,null,null,null,null,null,null,null,null,null,null,null,null,null,127397,"Newmarket Academy","2014-07-01","Suffolk County Council",{"$f":"VLOOKUP(R3111,'LA CPID Look up'!$A$3:$C$153,2,FALSE)","v":"Suffolk County Council"},"East of England and North-East London"]
[null,null,null,null,null,null,null,null,null,null,null,null,null,null,120012,"Newport Community School Primary Academy","2011-08-01","Devon County Council",{"$f":"VLOOKUP(R3113,'LA CPID Look up'!$A$3:$C$153,2,FALSE)","v":"Devon County Council"},"South-West England"]
[null,null,null,null,null,null,null,null,null,null,null,null,null,null,119605,"Newport Girls' High School","2011-04-01","Telford and Wrekin Council",{"$f":"VLOOKUP(R3114,'LA CPID Look up'!$A$3:$C$153,2,FALSE)","v":"Telford and Wrekin (Borough of)"},"West Midlands"]
[null,null,null,null,null,null,null,null,null,null,null,null,null,null,119593,"Newquay Tretherras","2011-04-01","Cornwall Council",{"$f":"VLOOKUP(R3116,'LA CPID Look up'!$A$3:$C$153,2,FALSE)","v":"Cornwall Unitary Authority"},"South-West England"]
[null,null,null,null,null,null,null,null,null,null,null,null,null,null,124632,"Newstead Primary School","2013-11-01","Stoke-on-Trent City Council",{"$f":"VLOOKUP(R3117,'LA CPID Look up'!$A$3:$C$153,2,FALSE)","v":"Stoke-on-Trent Unitary Authority"},"West Midlands"]
[null,null,null,null,null,null,null,null,null,null,null,null,null,null,120124,"Newton Abbot College","2011-08-01","Devon County Council",{"$f":"VLOOKUP(R3119,'LA CPID Look up'!$A$3:$C$153,2,FALSE)","v":"Devon County Council"},"South-West England"]
[null,null,null,null,null,null,null,null,null,null,null,null,null,null,120476,"Newton Ferrers Church of England Primary School","2011-11-01","Devon County Council",{"$f":"VLOOKUP(R3120,'LA CPID Look up'!$A$3:$C$153,2,FALSE)","v":"Devon County Council"},"South-West England"]
[null,null,null,null,null,null,null,null,null,null,null,null,null,null,121182,"Nicholas Breakspear Catholic School","2012-03-01","Hertfordshire County Council",{"$f":"VLOOKUP(R3122,'LA CPID Look up'!$A$3:$C$153,2,FALSE)","v":"Hertfordshire County Council"},"East of England and North-East London"]
[null,null,null,null,null,null,null,null,null,null,null,null,null,null,124658,"Nicholas Chamberlaine Technology College","2013-09-01","Warwickshire County Council",{"$f":"VLOOKUP(R3123,'LA CPID Look up'!$A$3:$C$153,2,FALSE)","v":"Warwickshire County Council"},"West Midlands"]
[null,null,null,null,null,null,null,null,null,null,null,null,null,null,119480,"Nicholas Hawksmoor Primary School","2011-02-01","Northamptonshire County Council",{"$f":"VLOOKUP(R3125,'LA CPID Look up'!$A$3:$C$153,2,FALSE)","v":"Northamptonshire County Council"},"East of England and North-East London"]
[null,null,null,null,null,null,null,null,null,null,null,null,null,null,119229,"Nightingale Academy","2010-09-01","Enfield London Borough Council",{"$f":"VLOOKUP(R3126,'LA CPID Look up'!$A$3:$C$153,2,FALSE)","v":"Enfield London Borough Council"},"South-Central England and North-West London"]
[null,null,null,null,null,null,null,null,null,null,null,null,null,null,122704,"Nine Maidens Short Stay School","2013-06-01","Cornwall Council",{"$f":"VLOOKUP(R3128,'LA CPID Look up'!$A$3:$C$153,2,FALSE)","v":"Cornwall Unitary Authority"},"South-West England"]
[null,null,null,null,null,null,null,null,null,null,null,null,null,null,119291,"Ninestiles School","2011-01-01","Birmingham City Council",{"$f":"VLOOKUP(R3129,'LA CPID Look up'!$A$3:$C$153,2,FALSE)","v":"Birmingham City Council"},"West Midlands"]
[null,null,null,null,null,null,null,null,null,null,null,null,null,null,120502,"Nishkam Primary School Birmingham","2011-09-01","Birmingham City Council",{"$f":"VLOOKUP(R3131,'LA CPID Look up'!$A$3:$C$153,2,FALSE)","v":"Birmingham City Council"},"West Midlands"]
[null,null,null,null,null,null,null,null,null,null,null,null,null,null,123289,"Nishkam Primary School Wolverhampton","2013-09-01","Wolverhampton City Council",{"$f":"VLOOKUP(R3132,'LA CPID Look up'!$A$3:$C$153,2,FALSE)","v":"Wolverhampton City Council"},"West Midlands"]
[null,null,null,null,null,null,null,null,null,null,null,null,null,null,120125,"Noadswood School","2011-08-01","Hampshire County Council",{"$f":"VLOOKUP(R3134,'LA CPID Look up'!$A$3:$C$153,2,FALSE)","v":"Hampshire County Council"},"South-East England and South London"]
[null,null,null,null,null,null,null,null,null,null,null,null,null,null,121950,"Noel Park Primary School","2012-09-01","Haringey London Borough Council",{"$f":"VLOOKUP(R3135,'LA CPID Look up'!$A$3:$C$153,2,FALSE)","v":"Haringey London Borough Council"},"East of England and North-East London"]
[null,null,null,null,null,null,null,null,null,null,null,null,null,null,131415,"Nonsuch Primary School","2016-01-01","Birmingham City Council",{"$f":"VLOOKUP(R3137,'LA CPID Look up'!$A$3:$C$153,2,FALSE)","v":"Birmingham City Council"},"West Midlands"]
[null,null,null,null,null,null,null,null,null,null,null,null,null,null,122169,"Norbreck Primary Academy","2012-09-01","Blackpool Council",{"$f":"VLOOKUP(R3138,'LA CPID Look up'!$A$3:$C$153,2,FALSE)","v":"Blackpool Unitary Authority"},"Lancashire and West Yorkshire"]
[null,null,null,null,null,null,null,null,null,null,null,null,null,null,130346,"Norman Church of England Primary School, Northwold, The","2014-07-01","Norfolk County Council",{"$f":"VLOOKUP(R3141,'LA CPID Look up'!$A$3:$C$153,2,FALSE)","v":"Norfolk County Council"},"East of England and North-East London"]
[null,null,null,null,null,null,null,null,null,null,null,null,null,null,129902,"Normanby Primary School","2014-06-01","Redcar and Cleveland Borough Council",{"$f":"VLOOKUP(R3142,'LA CPID Look up'!$A$3:$C$153,2,FALSE)","v":"Redcar and Cleveland Borough Council"},"North of England"]
[null,null,null,null,null,null,null,null,null,null,null,null,null,null,131592,"Normanton Common Primary Academy","2015-03-01","Wakefield Council",{"$f":"VLOOKUP(R3144,'LA CPID Look up'!$A$3:$C$153,2,FALSE)","v":"Wakefield City Council"},"Lancashire and West Yorkshire"]
[null,null,null,null,null,null,null,null,null,null,null,null,null,null,131975,"Normanton Junior Academy","2015-08-01","Wakefield Council",{"$f":"VLOOKUP(R3145,'LA CPID Look up'!$A$3:$C$153,2,FALSE)","v":"Wakefield City Council"},"Lancashire and West Yorkshire"]
[null,null,null,null,null,null,null,null,null,null,null,null,null,null,123938,"North Cambridge Academy","2013-09-01","Cambridgeshire County Council",{"$f":"VLOOKUP(R3147,'LA CPID Look up'!$A$3:$C$153,2,FALSE)","v":"Cambridgeshire County Council"},"East of England and North-East London"]
[null,null,null,null,null,null,null,null,null,null,null,null,null,null,127895,"North Cerney Church of England Primary Academy","2015-11-01","Gloucestershire County Council",{"$f":"VLOOKUP(R3148,'LA CPID Look up'!$A$3:$C$153,2,FALSE)","v":"Gloucestershire County Council"},"South-West England"]
[null,null,null,null,null,null,null,null,null,null,null,null,null,null,122703,"North Cornwall Short Stay School","2013-06-01","Cornwall Council",{"$f":"VLOOKUP(R3150,'LA CPID Look up'!$A$3:$C$153,2,FALSE)","v":"Cornwall Unitary Authority"},"South-West England"]
[null,null,null,null,null,null,null,null,null,null,null,null,null,null,119929,"North Durham Academy, The","2011-09-01","Durham County Council",{"$f":"VLOOKUP(R3151,'LA CPID Look up'!$A$3:$C$153,2,FALSE)","v":"County Durham Unitary Authority"},"North of England"]
[null,null,null,null,null,null,null,null,null,null,null,null,null,null,119786,"North Halifax Grammar School, The","2011-06-01","Calderdale Metropolitan Borough Council",{"$f":"VLOOKUP(R3153,'LA CPID Look up'!$A$3:$C$153,2,FALSE)","v":"Calderdale Metropolitan Borough Council"},"Lancashire and West Yorkshire"]
[null,null,null,null,null,null,null,null,null,null,null,null,null,null,122378,"North Hykeham Ling Moor Primary School","2012-09-01","Lincolnshire County Council",{"$f":"VLOOKUP(R3154,'LA CPID Look up'!$A$3:$C$153,2,FALSE)","v":"Lincolnshire County Council"},"East Midlands and the Humber"]
[null,null,null,null,null,null,null,null,null,null,null,null,null,null,132428,"North Leigh Church of England (Controlled) School","2015-07-01","Oxfordshire County Council",{"$f":"VLOOKUP(R3156,'LA CPID Look up'!$A$3:$C$153,2,FALSE)","v":"Oxfordshire County Council"},"East of England and North-East London"]
[null,null,null,null,null,null,null,null,null,null,null,null,null,null,118629,"North Liverpool Academy","2006-09-01","Liverpool City Council",{"$f":"VLOOKUP(R3157,'LA CPID Look up'!$A$3:$C$153,2,FALSE)","v":"Liverpool City Council"},"Lancashire and West Yorkshire"]
[null,null,null,null,null,null,null,null,null,null,null,null,null,null,118908,"North Oxfordshire Academy","2007-09-01","Oxfordshire County Council",{"$f":"VLOOKUP(R3159,'LA CPID Look up'!$A$3:$C$153,2,FALSE)","v":"Oxfordshire County Council"},"East of England and North-East London"]
[null,null,null,null,null,null,null,null,null,null,null,null,null,null,133178,"North Petherwin School","2016-01-01","Cornwall Council",{"$f":"VLOOKUP(R3160,'LA CPID Look up'!$A$3:$C$153,2,FALSE)","v":"Cornwall Unitary Authority"},"South-West England"]
[null,null,null,null,null,null,null,null,null,null,null,null,null,null,130529,"North Somerset Enterprise and Technology College","2014-09-01","North Somerset District Council",{"$f":"VLOOKUP(R3162,'LA CPID Look up'!$A$3:$C$153,2,FALSE)","v":"North Somerset Council"},"South-West England"]
[null,null,null,null,null,null,null,null,null,null,null,null,null,null,123823,"North Thoresby Primary School","2013-07-01","Lincolnshire County Council",{"$f":"VLOOKUP(R3163,'LA CPID Look up'!$A$3:$C$153,2,FALSE)","v":"Lincolnshire County Council"},"East Midlands and the Humber"]
[null,null,null,null,null,null,null,null,null,null,null,null,null,null,130839,"North View Academy","2014-08-01","Sunderland City Council",{"$f":"VLOOKUP(R3165,'LA CPID Look up'!$A$3:$C$153,2,FALSE)","v":"Sunderland City Metropolitan Borough Council"},"North of England"]
[null,null,null,null,null,null,null,null,null,null,null,null,null,null,130301,"North West London Jewish Day School","2014-08-01","Brent London Borough Council",{"$f":"VLOOKUP(R3166,'LA CPID Look up'!$A$3:$C$153,2,FALSE)","v":"Brent London Borough Council"},"South-Central England and North-West London"]
[null,null,null,null,null,null,null,null,null,null,null,null,null,null,124176,"Northampton School for Girls","2014-01-01","Northamptonshire County Council",{"$f":"VLOOKUP(R3169,'LA CPID Look up'!$A$3:$C$153,2,FALSE)","v":"Northamptonshire County Council"},"East of England and North-East London"]
[null,null,null,null,null,null,null,null,null,null,null,null,null,null,122517,"Northdown Primary School","2012-09-01","Kent County Council",{"$f":"VLOOKUP(R3170,'LA CPID Look up'!$A$3:$C$153,2,FALSE)","v":"Kent County Council"},"South-East England and South London"]
[null,null,null,null,null,null,null,null,null,null,null,null,null,null,123266,"Northern House School (Solihull)","2015-01-01","Solihull Metropolitan Borough Council",{"$f":"VLOOKUP(R3172,'LA CPID Look up'!$A$3:$C$153,2,FALSE)","v":"Solihull Metropolitan Borough Council"},"West Midlands"]
[null,null,null,null,null,null,null,null,null,null,null,null,null,null,130898,"Northfield House Primary Academy","2015-11-01","Leicester City Council",{"$f":"VLOOKUP(R3173,'LA CPID Look up'!$A$3:$C$153,2,FALSE)","v":"Leicester City Council"},"East Midlands and the Humber"]
[null,null,null,null,null,null,null,null,null,null,null,null,null,null,132282,"Northfield St Nicholas Primary School","2015-07-01","Suffolk County Council",{"$f":"VLOOKUP(R3175,'LA CPID Look up'!$A$3:$C$153,2,FALSE)","v":"Suffolk County Council"},"East of England and North-East London"]
[null,null,null,null,null,null,null,null,null,null,null,null,null,null,130862,"Northgate High School","2014-09-01","Norfolk County Council",{"$f":"VLOOKUP(R3176,'LA CPID Look up'!$A$3:$C$153,2,FALSE)","v":"Norfolk County Council"},"East of England and North-East London"]
[null,null,null,null,null,null,null,null,null,null,null,null,null,null,120135,"Northgate School Arts College","2011-09-01","Northamptonshire County Council",{"$f":"VLOOKUP(R3178,'LA CPID Look up'!$A$3:$C$153,2,FALSE)","v":"Northamptonshire County Council"},"East of England and North-East London"]
[null,null,null,null,null,null,null,null,null,null,null,null,null,null,118897,"Northumberland CofE Academy","2009-09-01","Northumberland County Council",{"$f":"VLOOKUP(R3179,'LA CPID Look up'!$A$3:$C$153,2,FALSE)","v":"Northumberland Unitary Authority"},"North of England"]
[null,null,null,null,null,null,null,null,null,null,null,null,null,null,130834,"Northwick Park Primary School","2014-12-01","Essex County Council",{"$f":"VLOOKUP(R3181,'LA CPID Look up'!$A$3:$C$153,2,FALSE)","v":"Essex County Council"},"East of England and North-East London"]
[null,null,null,null,null,null,null,null,null,null,null,null,null,null,130897,"Northwold Primary School","2015-04-01","Hackney London Borough Council (The Learning Trust)",{"$f":"VLOOKUP(R3182,'LA CPID Look up'!$A$3:$C$153,2,FALSE)","v":"Hackney London Borough Council"},"East of England and North-East London"]
[null,null,null,null,null,null,null,null,null,null,null,null,null,null,124066,"Northwood Primary School - Cowes","2013-04-01","Isle of Wight Council",{"$f":"VLOOKUP(R3184,'LA CPID Look up'!$A$3:$C$153,2,FALSE)","v":"Isle of Wight Council"},"South-East England and South London"]
[null,null,null,null,null,null,null,null,null,null,null,null,null,null,122770,"Northwood Primary School - Darlington","2016-02-01","Darlington Borough Council",{"$f":"VLOOKUP(R3185,'LA CPID Look up'!$A$3:$C$153,2,FALSE)","v":"Darlington Borough Council"},"North of England"]
[null,null,null,null,null,null,null,null,null,null,null,null,null,null,129553,"Norton Canes Primary Academy","2014-01-01","Staffordshire County Council",{"$f":"VLOOKUP(R3187,'LA CPID Look up'!$A$3:$C$153,2,FALSE)","v":"Staffordshire County Council"},"West Midlands"]
[null,null,null,null,null,null,null,null,null,null,null,null,null,null,119743,"Norton College","2011-05-01","North Yorkshire County Council",{"$f":"VLOOKUP(R3188,'LA CPID Look up'!$A$3:$C$153,2,FALSE)","v":"North Yorkshire County Council"},"North of England"]
[null,null,null,null,null,null,null,null,null,null,null,null,null,null,119292,"Norton Hill Academy","2010-10-01","Bath & North East Somerset Council",{"$f":"VLOOKUP(R3190,'LA CPID Look up'!$A$3:$C$153,2,FALSE)","v":"Bath & North East Somerset Council"},"South-West England"]
[null,null,null,null,null,null,null,null,null,null,null,null,null,null,121028,"Norton Knatchbull School, The","2012-04-01","Kent County Council",{"$f":"VLOOKUP(R3191,'LA CPID Look up'!$A$3:$C$153,2,FALSE)","v":"Kent County Council"},"South-East England and South London"]
[null,null,null,null,null,null,null,null,null,null,null,null,null,null,130137,"Norton-le-Moors Primary Academy","2014-07-01","Stoke-on-Trent City Council",{"$f":"VLOOKUP(R3193,'LA CPID Look up'!$A$3:$C$153,2,FALSE)","v":"Stoke-on-Trent Unitary Authority"},"West Midlands"]
[null,null,null,null,null,null,null,null,null,null,null,null,null,null,124572,"Norwich Primary Academy","2013-09-01","Norfolk County Council",{"$f":"VLOOKUP(R3194,'LA CPID Look up'!$A$3:$C$153,2,FALSE)","v":"Norfolk County Council"},"East of England and North-East London"]
[null,null,null,null,null,null,null,null,null,null,null,null,null,null,124313,"Norwood Green Junior School","2013-07-01","Hounslow London Borough Council",{"$f":"VLOOKUP(R3196,'LA CPID Look up'!$A$3:$C$153,2,FALSE)","v":"Hounslow London Borough Council"},"East of England and North-East London"]
[null,null,null,null,null,null,null,null,null,null,null,null,null,null,122074,"Notley Green Primary School","2012-11-01","Essex County Council",{"$f":"VLOOKUP(R3197,'LA CPID Look up'!$A$3:$C$153,2,FALSE)","v":"Essex County Council"},"East of England and North-East London"]
[null,null,null,null,null,null,null,null,null,null,null,null,null,null,121105,"Notre Dame High School, Norwich","2012-03-01","Norfolk County Council",{"$f":"VLOOKUP(R3200,'LA CPID Look up'!$A$3:$C$153,2,FALSE)","v":"Norfolk County Council"},"East of England and North-East London"]
[null,null,null,null,null,null,null,null,null,null,null,null,null,null,130088,"Notre Dame RC School - Plymouth","2014-04-01","Plymouth City Council",{"$f":"VLOOKUP(R3201,'LA CPID Look up'!$A$3:$C$153,2,FALSE)","v":"Plymouth City Council"},"South-West England"]
[null,null,null,null,null,null,null,null,null,null,null,null,null,null,123817,"Nottingham Emmanuel School, The","2013-06-01","Nottingham City Council",{"$f":"VLOOKUP(R3203,'LA CPID Look up'!$A$3:$C$153,2,FALSE)","v":"Nottingham City Council"},"East Midlands and the Humber"]
[null,null,null,null,null,null,null,null,null,null,null,null,null,null,130530,"Nottingham Free School","2014-09-01","Nottingham City Council",{"$f":"VLOOKUP(R3204,'LA CPID Look up'!$A$3:$C$153,2,FALSE)","v":"Nottingham City Council"},"East Midlands and the Humber"]
[null,null,null,null,null,null,null,null,null,null,null,null,null,null,130531,"Nottingham University Academy of Science and Technology","2014-09-01","Nottingham City Council",{"$f":"VLOOKUP(R3206,'LA CPID Look up'!$A$3:$C$153,2,FALSE)","v":"Nottingham City Council"},"East Midlands and the Humber"]
[null,null,null,null,null,null,null,null,null,null,null,null,null,null,118852,"Nottingham University Samworth Academy","2009-09-01","Nottingham City Council",{"$f":"VLOOKUP(R3207,'LA CPID Look up'!$A$3:$C$153,2,FALSE)","v":"Nottingham City Council"},"East Midlands and the Humber"]
[null,null,null,null,null,null,null,null,null,null,null,null,null,null,120028,"Nower Hill High School","2011-08-01","Harrow London Borough Council",{"$f":"VLOOKUP(R3209,'LA CPID Look up'!$A$3:$C$153,2,FALSE)","v":"Harrow London Borough Council"},"East of England and North-East London"]
[null,null,null,null,null,null,null,null,null,null,null,null,null,null,119230,"Nuneaton Academy, The","2010-09-01","Warwickshire County Council",{"$f":"VLOOKUP(R3210,'LA CPID Look up'!$A$3:$C$153,2,FALSE)","v":"Warwickshire County Council"},"West Midlands"]
[null,null,null,null,null,null,null,null,null,null,null,null,null,null,122721,"Nunthorpe Academy","2012-10-01","Redcar and Cleveland Borough Council",{"$f":"VLOOKUP(R3212,'LA CPID Look up'!$A$3:$C$153,2,FALSE)","v":"Redcar and Cleveland Borough Council"},"North of England"]
[null,null,null,null,null,null,null,null,null,null,null,null,null,null,129907,"Nunthorpe Primary Academy","2014-06-01","Redcar and Cleveland Borough Council",{"$f":"VLOOKUP(R3213,'LA CPID Look up'!$A$3:$C$153,2,FALSE)","v":"Redcar and Cleveland Borough Council"},"North of England"]
[null,null,null,null,null,null,null,null,null,null,null,null,null,null,123089,"Oak Academy - Bournemouth","2012-12-01","Bournemouth Borough Council",{"$f":"VLOOKUP(R3215,'LA CPID Look up'!$A$3:$C$153,2,FALSE)","v":"Bournemouth Council"},"South-West England"]
[null,null,null,null,null,null,null,null,null,null,null,null,null,null,124078,"Oak Bank School","2013-11-01","Central Bedfordshire Council",{"$f":"VLOOKUP(R3216,'LA CPID Look up'!$A$3:$C$153,2,FALSE)","v":"Central Bedfordshire Unitary Authority"},"South-Central England and North-West London"]
[null,null,null,null,null,null,null,null,null,null,null,null,null,null,131810,"Oak Lodge Primary School","2015-09-01","Bromley London Borough Council",{"$f":"VLOOKUP(R3218,'LA CPID Look up'!$A$3:$C$153,2,FALSE)","v":"Bromley London Borough Council"},"South-East England and South London"]
[null,null,null,null,null,null,null,null,null,null,null,null,null,null,124161,"Oak Tree Academy, The","2013-09-01","Stockton-on-Tees Borough Council",{"$f":"VLOOKUP(R3219,'LA CPID Look up'!$A$3:$C$153,2,FALSE)","v":"Stockton-on-Tees Borough Council"},"North of England"]
[null,null,null,null,null,null,null,null,null,null,null,null,null,null,124142,"Oak Wood Primary School","2013-04-01","Warwickshire County Council",{"$f":"VLOOKUP(R3221,'LA CPID Look up'!$A$3:$C$153,2,FALSE)","v":"Warwickshire County Council"},"West Midlands"]
[null,null,null,null,null,null,null,null,null,null,null,null,null,null,124146,"Oak Wood Secondary School","2013-04-01","Warwickshire County Council",{"$f":"VLOOKUP(R3222,'LA CPID Look up'!$A$3:$C$153,2,FALSE)","v":"Warwickshire County Council"},"West Midlands"]
[null,null,null,null,null,null,null,null,null,null,null,null,null,null,122866,"Oakfield Primary Academy - Rugby","2012-11-01","Warwickshire County Council",{"$f":"VLOOKUP(R3224,'LA CPID Look up'!$A$3:$C$153,2,FALSE)","v":"Warwickshire County Council"},"West Midlands"]
[null,null,null,null,null,null,null,null,null,null,null,null,null,null,119970,"Oakfield School - Frome","2011-08-01","Somerset County Council",{"$f":"VLOOKUP(R3225,'LA CPID Look up'!$A$3:$C$153,2,FALSE)","v":"Somerset County Council"},"South-West England"]
[null,null,null,null,null,null,null,null,null,null,null,null,null,null,120577,"Oakhill Primary Academy","2012-02-01","Barnsley Metropolitan Borough Council",{"$f":"VLOOKUP(R3228,'LA CPID Look up'!$A$3:$C$153,2,FALSE)","v":"Barnsley Metropolitan Borough Council"},"East Midlands and the Humber"]
[null,null,null,null,null,null,null,null,null,null,null,null,null,null,131853,"Oakhurst Community First School","2015-12-01","Dorset County Council",{"$f":"VLOOKUP(R3229,'LA CPID Look up'!$A$3:$C$153,2,FALSE)","v":"Dorset County Council"},"South-West England"]
[null,null,null,null,null,null,null,null,null,null,null,null,null,null,132272,"Oaklands Primary Academy - Westerham","2015-09-01","Bromley London Borough Council",{"$f":"VLOOKUP(R3231,'LA CPID Look up'!$A$3:$C$153,2,FALSE)","v":"Bromley London Borough Council"},"South-East England and South London"]
[null,null,null,null,null,null,null,null,null,null,null,null,null,null,122954,"Oaklands Primary School, The - Birmingham","2013-01-01","Birmingham City Council",{"$f":"VLOOKUP(R3232,'LA CPID Look up'!$A$3:$C$153,2,FALSE)","v":"Birmingham City Council"},"West Midlands"]
[null,null,null,null,null,null,null,null,null,null,null,null,null,null,133611,"Oaks Academy, The","2016-01-01","Cheshire East Council",{"$f":"VLOOKUP(R3234,'LA CPID Look up'!$A$3:$C$153,2,FALSE)","v":"Cheshire East Unitary Authority"},"West Midlands"]
[null,null,null,null,null,null,null,null,null,null,null,null,null,null,131204,"Oaks Community Primary School, The","2015-03-01","Suffolk County Council",{"$f":"VLOOKUP(R3235,'LA CPID Look up'!$A$3:$C$153,2,FALSE)","v":"Suffolk County Council"},"East of England and North-East London"]
[null,null,null,null,null,null,null,null,null,null,null,null,null,null,122130,"Oaks Primary School, The","2012-09-01","West Sussex County Council",{"$f":"VLOOKUP(R3237,'LA CPID Look up'!$A$3:$C$153,2,FALSE)","v":"West Sussex County Council"},"South-East England and South London"]
[null,null,null,null,null,null,null,null,null,null,null,null,null,null,123873,"Oaktree School, The","2013-09-01","Surrey County Council",{"$f":"VLOOKUP(R3238,'LA CPID Look up'!$A$3:$C$153,2,FALSE)","v":"Surrey County Council"},"South-East England and South London"]
[null,null,null,null,null,null,null,null,null,null,null,null,null,null,120825,"Oakwood Academy - Eccles","2012-05-01","Salford City Council",{"$f":"VLOOKUP(R3240,'LA CPID Look up'!$A$3:$C$153,2,FALSE)","v":"Salford City Council"},"Lancashire and West Yorkshire"]
[null,null,null,null,null,null,null,null,null,null,null,null,null,null,131167,"Oakwood Academy, The","2015-04-01","Nottingham City Council",{"$f":"VLOOKUP(R3241,'LA CPID Look up'!$A$3:$C$153,2,FALSE)","v":"Nottingham City Council"},"East Midlands and the Humber"]
[null,null,null,null,null,null,null,null,null,null,null,null,null,null,119728,"Oakwood Park Grammar School","2011-05-01","Kent County Council",{"$f":"VLOOKUP(R3243,'LA CPID Look up'!$A$3:$C$153,2,FALSE)","v":"Kent County Council"},"South-East England and South London"]
[null,null,null,null,null,null,null,null,null,null,null,null,null,null,122020,"Oakwood Primary Academy - Eastbourne","2012-09-01","East Sussex County Council",{"$f":"VLOOKUP(R3244,'LA CPID Look up'!$A$3:$C$153,2,FALSE)","v":"East Sussex County Council"},"South-East England and South London"]
[null,null,null,null,null,null,null,null,null,null,null,null,null,null,131691,"Oare Church of England Primary School","2015-04-01","Wiltshire Council",{"$f":"VLOOKUP(R3246,'LA CPID Look up'!$A$3:$C$153,2,FALSE)","v":"Wiltshire Unitary Authority"},"South-West England"]
[null,null,null,null,null,null,null,null,null,null,null,null,null,null,126501,"Oasis Academy Arena","2015-09-01","Croydon London Borough Council",{"$f":"VLOOKUP(R3247,'LA CPID Look up'!$A$3:$C$153,2,FALSE)","v":"Croydon London Borough Council"},"South-East England and South London"]
[null,null,null,null,null,null,null,null,null,null,null,null,null,null,122246,"Oasis Academy Bank Leaze","2012-09-01","Bristol City Council",{"$f":"VLOOKUP(R3249,'LA CPID Look up'!$A$3:$C$153,2,FALSE)","v":"Bristol City Council"},"South-West England"]
[null,null,null,null,null,null,null,null,null,null,null,null,null,null,122788,"Oasis Academy Blakenhale Infants","2013-02-01","Birmingham City Council",{"$f":"VLOOKUP(R3250,'LA CPID Look up'!$A$3:$C$153,2,FALSE)","v":"Birmingham City Council"},"West Midlands"]
[null,null,null,null,null,null,null,null,null,null,null,null,null,null,122839,"Oasis Academy Boulton","2013-04-01","Birmingham City Council",{"$f":"VLOOKUP(R3252,'LA CPID Look up'!$A$3:$C$153,2,FALSE)","v":"Birmingham City Council"},"West Midlands"]
[null,null,null,null,null,null,null,null,null,null,null,null,null,null,118668,"Oasis Academy Brightstowe","2008-09-03","Bristol City Council",{"$f":"VLOOKUP(R3253,'LA CPID Look up'!$A$3:$C$153,2,FALSE)","v":"Bristol City Council"},"South-West England"]
[null,null,null,null,null,null,null,null,null,null,null,null,null,null,122111,"Oasis Academy Byron","2012-09-01","Croydon London Borough Council",{"$f":"VLOOKUP(R3255,'LA CPID Look up'!$A$3:$C$153,2,FALSE)","v":"Croydon London Borough Council"},"South-East England and South London"]
[null,null,null,null,null,null,null,null,null,null,null,null,null,null,121855,"Oasis Academy Connaught","2012-09-01","Bristol City Council",{"$f":"VLOOKUP(R3256,'LA CPID Look up'!$A$3:$C$153,2,FALSE)","v":"Bristol City Council"},"South-West England"]
[null,null,null,null,null,null,null,null,null,null,null,null,null,null,118630,"Oasis Academy Enfield","2007-09-01","Enfield London Borough Council",{"$f":"VLOOKUP(R3259,'LA CPID Look up'!$A$3:$C$153,2,FALSE)","v":"Enfield London Borough Council"},"South-Central England and North-West London"]
[null,null,null,null,null,null,null,null,null,null,null,null,null,null,130412,"Oasis Academy Firvale","2014-09-01","Sheffield City Council",{"$f":"VLOOKUP(R3260,'LA CPID Look up'!$A$3:$C$153,2,FALSE)","v":"Sheffield City Council"},"East Midlands and the Humber"]
[null,null,null,null,null,null,null,null,null,null,null,null,null,null,119085,"Oasis Academy Hadley","2009-09-01","Enfield London Borough Council",{"$f":"VLOOKUP(R3262,'LA CPID Look up'!$A$3:$C$153,2,FALSE)","v":"Enfield London Borough Council"},"South-Central England and North-West London"]
[null,null,null,null,null,null,null,null,null,null,null,null,null,null,122044,"Oasis Academy Harpur Mount","2013-01-01","Manchester City Council",{"$f":"VLOOKUP(R3263,'LA CPID Look up'!$A$3:$C$153,2,FALSE)","v":"Manchester City Council"},"Lancashire and West Yorkshire"]
[null,null,null,null,null,null,null,null,null,null,null,null,null,null,124336,"Oasis Academy Hextable","2013-09-01","Kent County Council",{"$f":"VLOOKUP(R3265,'LA CPID Look up'!$A$3:$C$153,2,FALSE)","v":"Kent County Council"},"South-East England and South London"]
[null,null,null,null,null,null,null,null,null,null,null,null,null,null,122838,"Oasis Academy Hobmoor","2013-09-01","Birmingham City Council",{"$f":"VLOOKUP(R3266,'LA CPID Look up'!$A$3:$C$153,2,FALSE)","v":"Birmingham City Council"},"West Midlands"]
[null,null,null,null,null,null,null,null,null,null,null,null,null,null,119099,"Oasis Academy Isle of Sheppey","2009-09-01","Kent County Council",{"$f":"VLOOKUP(R3268,'LA CPID Look up'!$A$3:$C$153,2,FALSE)","v":"Kent County Council"},"South-East England and South London"]
[null,null,null,null,null,null,null,null,null,null,null,null,null,null,120349,"Oasis Academy Johanna","2011-09-01","Lambeth London Borough Council",{"$f":"VLOOKUP(R3269,'LA CPID Look up'!$A$3:$C$153,2,FALSE)","v":"Lambeth London Borough Council"},"South-East England and South London"]
[null,null,null,null,null,null,null,null,null,null,null,null,null,null,120369,"Oasis Academy Limeside","2011-09-01","Oldham Metropolitan Borough Council",{"$f":"VLOOKUP(R3271,'LA CPID Look up'!$A$3:$C$153,2,FALSE)","v":"Oldham Metropolitan Borough Council"},"Lancashire and West Yorkshire"]
[null,null,null,null,null,null,null,null,null,null,null,null,null,null,124211,"Oasis Academy Lister Park","2013-09-01","Bradford Metropolitan District Council",{"$f":"VLOOKUP(R3272,'LA CPID Look up'!$A$3:$C$153,2,FALSE)","v":"Bradford City Council"},"Lancashire and West Yorkshire"]
[null,null,null,null,null,null,null,null,null,null,null,null,null,null,122884,"Oasis Academy Longmeadow","2013-04-01","Wiltshire Council",{"$f":"VLOOKUP(R3274,'LA CPID Look up'!$A$3:$C$153,2,FALSE)","v":"Wiltshire Unitary Authority"},"South-West England"]
[null,null,null,null,null,null,null,null,null,null,null,null,null,null,119120,"Oasis Academy Lord's Hill","2008-09-01","Southampton City Council",{"$f":"VLOOKUP(R3275,'LA CPID Look up'!$A$3:$C$153,2,FALSE)","v":"Southampton City Council"},"South-East England and South London"]
[null,null,null,null,null,null,null,null,null,null,null,null,null,null,119121,"Oasis Academy Mayfield","2008-09-01","Southampton City Council",{"$f":"VLOOKUP(R3277,'LA CPID Look up'!$A$3:$C$153,2,FALSE)","v":"Southampton City Council"},"South-East England and South London"]
[null,null,null,null,null,null,null,null,null,null,null,null,null,null,118669,"Oasis Academy MediaCityUK","2008-09-08","Salford City Council",{"$f":"VLOOKUP(R3278,'LA CPID Look up'!$A$3:$C$153,2,FALSE)","v":"Salford City Council"},"Lancashire and West Yorkshire"]
[null,null,null,null,null,null,null,null,null,null,null,null,null,null,120947,"Oasis Academy Nunsthorpe","2012-09-01","North East Lincolnshire Council",{"$f":"VLOOKUP(R3280,'LA CPID Look up'!$A$3:$C$153,2,FALSE)","v":"North East Lincolnshire Council"},"East Midlands and the Humber"]
[null,null,null,null,null,null,null,null,null,null,null,null,null,null,119153,"Oasis Academy Oldham","2010-09-01","Oldham Metropolitan Borough Council",{"$f":"VLOOKUP(R3281,'LA CPID Look up'!$A$3:$C$153,2,FALSE)","v":"Oldham Metropolitan Borough Council"},"Lancashire and West Yorkshire"]
[null,null,null,null,null,null,null,null,null,null,null,null,null,null,125027,"Oasis Academy Pinewood","2013-10-01","Havering London Borough Council",{"$f":"VLOOKUP(R3283,'LA CPID Look up'!$A$3:$C$153,2,FALSE)","v":"Havering London Borough Council"},"East of England and North-East London"]
[null,null,null,null,null,null,null,null,null,null,null,null,null,null,119141,"Oasis Academy Shirley Park","2009-09-01","Croydon London Borough Council",{"$f":"VLOOKUP(R3284,'LA CPID Look up'!$A$3:$C$153,2,FALSE)","v":"Croydon London Borough Council"},"South-East England and South London"]
[null,null,null,null,null,null,null,null,null,null,null,null,null,null,122664,"Oasis Academy Skinner Street","2013-09-01","Medway Council",{"$f":"VLOOKUP(R3287,'LA CPID Look up'!$A$3:$C$153,2,FALSE)","v":"Medway Towns Unitary Authority (The)"},"South-East England and South London"]
[null,null,null,null,null,null,null,null,null,null,null,null,null,null,123328,"Oasis Academy South Bank","2013-09-01","Lambeth London Borough Council",{"$f":"VLOOKUP(R3288,'LA CPID Look up'!$A$3:$C$153,2,FALSE)","v":"Lambeth London Borough Council"},"South-East England and South London"]
[null,null,null,null,null,null,null,null,null,null,null,null,null,null,130402,"Oasis Academy Watermead","2014-09-01","Sheffield City Council",{"$f":"VLOOKUP(R3290,'LA CPID Look up'!$A$3:$C$153,2,FALSE)","v":"Sheffield City Council"},"East Midlands and the Humber"]
[null,null,null,null,null,null,null,null,null,null,null,null,null,null,118637,"Oasis Academy Wintringham","2007-09-01","North East Lincolnshire Council",{"$f":"VLOOKUP(R3291,'LA CPID Look up'!$A$3:$C$153,2,FALSE)","v":"North East Lincolnshire Council"},"East Midlands and the Humber"]
[null,null,null,null,null,null,null,null,null,null,null,null,null,null,129585,"Oasis Ryelands","2014-05-01","Croydon London Borough Council",{"$f":"VLOOKUP(R3293,'LA CPID Look up'!$A$3:$C$153,2,FALSE)","v":"Croydon London Borough Council"},"South-East England and South London"]
[null,null,null,null,null,null,null,null,null,null,null,null,null,null,132276,"Oatlands Community Junior School","2015-08-01","North Yorkshire County Council",{"$f":"VLOOKUP(R3294,'LA CPID Look up'!$A$3:$C$153,2,FALSE)","v":"North Yorkshire County Council"},"North of England"]
[null,null,null,null,null,null,null,null,null,null,null,null,null,null,119409,"Ockendon Academy, The","2011-01-01","Thurrock Borough Council",{"$f":"VLOOKUP(R3296,'LA CPID Look up'!$A$3:$C$153,2,FALSE)","v":"Thurrock Unitary Authority"},"East of England and North-East London"]
[null,null,null,null,null,null,null,null,null,null,null,null,null,null,124123,"Ocker Hill Academy","2013-09-01","Sandwell metropolitan Borough Council",{"$f":"VLOOKUP(R3297,'LA CPID Look up'!$A$3:$C$153,2,FALSE)","v":"Sandwell Metropolitan Borough Council"},"West Midlands"]
[null,null,null,null,null,null,null,null,null,null,null,null,null,null,122243,"Offa's Mead Academy","2012-09-01","Gloucestershire County Council",{"$f":"VLOOKUP(R3299,'LA CPID Look up'!$A$3:$C$153,2,FALSE)","v":"Gloucestershire County Council"},"South-West England"]
[null,null,null,null,null,null,null,null,null,null,null,null,null,null,131663,"Ogbourne St George and St Andrew Church of England Controlled Primary School","2015-04-01","Wiltshire Council",{"$f":"VLOOKUP(R3300,'LA CPID Look up'!$A$3:$C$153,2,FALSE)","v":"Wiltshire Unitary Authority"},"South-West England"]
[null,null,null,null,null,null,null,null,null,null,null,null,null,null,132308,"Old Bexley Church of England School","2015-09-01","Bexley London Borough Council",{"$f":"VLOOKUP(R3302,'LA CPID Look up'!$A$3:$C$153,2,FALSE)","v":"Bexley London Borough Council"},"South-East England and South London"]
[null,null,null,null,null,null,null,null,null,null,null,null,null,null,124184,"Old Clee Primary School","2013-04-01","North East Lincolnshire Council",{"$f":"VLOOKUP(R3303,'LA CPID Look up'!$A$3:$C$153,2,FALSE)","v":"North East Lincolnshire Council"},"East Midlands and the Humber"]
[null,null,null,null,null,null,null,null,null,null,null,null,null,null,124067,"Old Dalby Church of England Primary School","2013-09-01","Leicestershire County Council",{"$f":"VLOOKUP(R3305,'LA CPID Look up'!$A$3:$C$153,2,FALSE)","v":"Leicestershire County Council"},"East Midlands and the Humber"]
[null,null,null,null,null,null,null,null,null,null,null,null,null,null,120445,"Old Earth Primary School","2011-09-01","Calderdale Metropolitan Borough Council",{"$f":"VLOOKUP(R3306,'LA CPID Look up'!$A$3:$C$153,2,FALSE)","v":"Calderdale Metropolitan Borough Council"},"Lancashire and West Yorkshire"]
[null,null,null,null,null,null,null,null,null,null,null,null,null,null,133439,"Old Hall Drive Primary School","2016-02-01","Manchester City Council",{"$f":"VLOOKUP(R3308,'LA CPID Look up'!$A$3:$C$153,2,FALSE)","v":"Manchester City Council"},"Lancashire and West Yorkshire"]
[null,null,null,null,null,null,null,null,null,null,null,null,null,null,120729,"Old Priory Junior Academy","2012-02-01","Plymouth City Council",{"$f":"VLOOKUP(R3309,'LA CPID Look up'!$A$3:$C$153,2,FALSE)","v":"Plymouth City Council"},"South-West England"]
[null,null,null,null,null,null,null,null,null,null,null,null,null,null,120610,"Oldbury Academy","2011-12-01","Sandwell Metropolitan Borough Council",{"$f":"VLOOKUP(R3311,'LA CPID Look up'!$A$3:$C$153,2,FALSE)","v":"Sandwell Metropolitan Borough Council"},"West Midlands"]
[null,null,null,null,null,null,null,null,null,null,null,null,null,null,131829,"Oldbury Wells School","2015-07-01","Shropshire Council",{"$f":"VLOOKUP(R3312,'LA CPID Look up'!$A$3:$C$153,2,FALSE)","v":"Shropshire Unitary Authority"},"West Midlands"]
[null,null,null,null,null,null,null,null,null,null,null,null,null,null,119483,"Oldfield School","2011-02-01","Bath & North East Somerset Council",{"$f":"VLOOKUP(R3314,'LA CPID Look up'!$A$3:$C$153,2,FALSE)","v":"Bath & North East Somerset Council"},"South-West England"]
[null,null,null,null,null,null,null,null,null,null,null,null,null,null,119194,"Oldham Academy North, The","2010-09-01","Oldham Metropolitan Borough Council",{"$f":"VLOOKUP(R3315,'LA CPID Look up'!$A$3:$C$153,2,FALSE)","v":"Oldham Metropolitan Borough Council"},"Lancashire and West Yorkshire"]
[null,null,null,null,null,null,null,null,null,null,null,null,null,null,123359,"Olive School Blackburn, The","2013-09-01","Blackburn with Darwen Borough Council",{"$f":"VLOOKUP(R3318,'LA CPID Look up'!$A$3:$C$153,2,FALSE)","v":"Blackburn with Darwen Unitary Authority"},"Lancashire and West Yorkshire"]
[null,null,null,null,null,null,null,null,null,null,null,null,null,null,123360,"Olive School Hackney, The","2013-09-01","Hackney London Borough Council (The Learning Trust)",{"$f":"VLOOKUP(R3319,'LA CPID Look up'!$A$3:$C$153,2,FALSE)","v":"Hackney London Borough Council"},"East of England and North-East London"]
[null,null,null,null,null,null,null,null,null,null,null,null,null,null,119765,"Olney Infant Academy","2011-06-01","Milton Keynes Council",{"$f":"VLOOKUP(R3321,'LA CPID Look up'!$A$3:$C$153,2,FALSE)","v":"Milton Keynes Council"},"East of England and North-East London"]
[null,null,null,null,null,null,null,null,null,null,null,null,null,null,124309,"Olympic Primary School","2013-05-01","Northamptonshire County Council",{"$f":"VLOOKUP(R3322,'LA CPID Look up'!$A$3:$C$153,2,FALSE)","v":"Northamptonshire County Council"},"East of England and North-East London"]
[null,null,null,null,null,null,null,null,null,null,null,null,null,null,132661,"Ongar Academy, The","2015-09-01","Essex County Council",{"$f":"VLOOKUP(R3324,'LA CPID Look up'!$A$3:$C$153,2,FALSE)","v":"Essex County Council"},"East of England and North-East London"]
[null,null,null,null,null,null,null,null,null,null,null,null,null,null,120806,"Onslow St Audrey's School","2012-01-01","Hertfordshire County Council",{"$f":"VLOOKUP(R3325,'LA CPID Look up'!$A$3:$C$153,2,FALSE)","v":"Hertfordshire County Council"},"East of England and North-East London"]
[null,null,null,null,null,null,null,null,null,null,null,null,null,null,120963,"Orchard Academy - Milton Keynes","2012-09-01","Milton Keynes Council",{"$f":"VLOOKUP(R3327,'LA CPID Look up'!$A$3:$C$153,2,FALSE)","v":"Milton Keynes Council"},"East of England and North-East London"]
[null,null,null,null,null,null,null,null,null,null,null,null,null,null,122879,"Orchard Meadow Primary School","2013-08-01","Oxfordshire County Council",{"$f":"VLOOKUP(R3328,'LA CPID Look up'!$A$3:$C$153,2,FALSE)","v":"Oxfordshire County Council"},"East of England and North-East London"]
[null,null,null,null,null,null,null,null,null,null,null,null,null,null,120948,"Orchard School Bristol","2012-09-01","Bristol City Council",{"$f":"VLOOKUP(R3330,'LA CPID Look up'!$A$3:$C$153,2,FALSE)","v":"Bristol City Council"},"South-West England"]
[null,null,null,null,null,null,null,null,null,null,null,null,null,null,120527,"Orchard Vale Community School","2011-11-01","Devon County Council",{"$f":"VLOOKUP(R3331,'LA CPID Look up'!$A$3:$C$153,2,FALSE)","v":"Devon County Council"},"South-West England"]
[null,null,null,null,null,null,null,null,null,null,null,null,null,null,132285,"Orchards Junior School","2015-10-01","West Sussex County Council",{"$f":"VLOOKUP(R3333,'LA CPID Look up'!$A$3:$C$153,2,FALSE)","v":"West Sussex County Council"},"South-East England and South London"]
[null,null,null,null,null,null,null,null,null,null,null,null,null,null,124324,"Orchards Primary Academy, The - Birmingham","2013-07-01","Birmingham City Council",{"$f":"VLOOKUP(R3334,'LA CPID Look up'!$A$3:$C$153,2,FALSE)","v":"Birmingham City Council"},"West Midlands"]
[null,null,null,null,null,null,null,null,null,null,null,null,null,null,119411,"Oreston Community Academy","2011-01-01","Plymouth City Council",{"$f":"VLOOKUP(R3336,'LA CPID Look up'!$A$3:$C$153,2,FALSE)","v":"Plymouth City Council"},"South-West England"]
[null,null,null,null,null,null,null,null,null,null,null,null,null,null,125177,"Oriel Primary School","2013-10-01","Hounslow London Borough Council",{"$f":"VLOOKUP(R3337,'LA CPID Look up'!$A$3:$C$153,2,FALSE)","v":"Hounslow London Borough Council"},"East of England and North-East London"]
[null,null,null,null,null,null,null,null,null,null,null,null,null,null,119335,"Ormiston Bolingbroke Academy","2010-09-01","Halton Borough Council",{"$f":"VLOOKUP(R3339,'LA CPID Look up'!$A$3:$C$153,2,FALSE)","v":"Halton Borough Council"},"Lancashire and West Yorkshire"]
[null,null,null,null,null,null,null,null,null,null,null,null,null,null,118910,"Ormiston Bushfield Academy","2009-09-01","Peterborough City Council",{"$f":"VLOOKUP(R3340,'LA CPID Look up'!$A$3:$C$153,2,FALSE)","v":"Peterborough City Council"},"East of England and North-East London"]
[null,null,null,null,null,null,null,null,null,null,null,null,null,null,120566,"Ormiston Denes Academy","2013-06-01","Suffolk County Council",{"$f":"VLOOKUP(R3342,'LA CPID Look up'!$A$3:$C$153,2,FALSE)","v":"Suffolk County Council"},"East of England and North-East London"]
[null,null,null,null,null,null,null,null,null,null,null,null,null,null,120967,"Ormiston Endeavour Academy","2012-01-01","Suffolk County Council",{"$f":"VLOOKUP(R3343,'LA CPID Look up'!$A$3:$C$153,2,FALSE)","v":"Suffolk County Council"},"East of England and North-East London"]
[null,null,null,null,null,null,null,null,null,null,null,null,null,null,119928,"Ormiston Horizon Academy","2011-09-01","Stoke-on-Trent City Council",{"$f":"VLOOKUP(R3346,'LA CPID Look up'!$A$3:$C$153,2,FALSE)","v":"Stoke-on-Trent Unitary Authority"},"West Midlands"]
[null,null,null,null,null,null,null,null,null,null,null,null,null,null,120253,"Ormiston Ilkeston Academy","2011-08-01","Derbyshire County Council",{"$f":"VLOOKUP(R3347,'LA CPID Look up'!$A$3:$C$153,2,FALSE)","v":"Derbyshire County Council"},"East Midlands and the Humber"]
[null,null,null,null,null,null,null,null,null,null,null,null,null,null,120196,"Ormiston Maritime Academy","2011-08-01","North East Lincolnshire Council",{"$f":"VLOOKUP(R3349,'LA CPID Look up'!$A$3:$C$153,2,FALSE)","v":"North East Lincolnshire Council"},"East Midlands and the Humber"]
[null,null,null,null,null,null,null,null,null,null,null,null,null,null,127191,"Ormiston Meadows Academy","2014-01-01","Peterborough City Council",{"$f":"VLOOKUP(R3350,'LA CPID Look up'!$A$3:$C$153,2,FALSE)","v":"Peterborough City Council"},"East of England and North-East London"]
[null,null,null,null,null,null,null,null,null,null,null,null,null,null,120152,"Ormiston Rivers Academy","2011-09-01","Essex County Council",{"$f":"VLOOKUP(R3352,'LA CPID Look up'!$A$3:$C$153,2,FALSE)","v":"Essex County Council"},"East of England and North-East London"]
[null,null,null,null,null,null,null,null,null,null,null,null,null,null,119066,"Ormiston Sandwell Community Academy","2009-09-01","Sandwell Metropolitan Borough Council",{"$f":"VLOOKUP(R3353,'LA CPID Look up'!$A$3:$C$153,2,FALSE)","v":"Sandwell Metropolitan Borough Council"},"West Midlands"]
[null,null,null,null,null,null,null,null,null,null,null,null,null,null,119209,"Ormiston Sir Stanley Matthews Academy","2010-09-01","Stoke-on-Trent City Council",{"$f":"VLOOKUP(R3355,'LA CPID Look up'!$A$3:$C$153,2,FALSE)","v":"Stoke-on-Trent Unitary Authority"},"West Midlands"]
[null,null,null,null,null,null,null,null,null,null,null,null,null,null,125181,"Ormiston Six Villages Academy","2013-11-01","West Sussex County Council",{"$f":"VLOOKUP(R3356,'LA CPID Look up'!$A$3:$C$153,2,FALSE)","v":"West Sussex County Council"},"South-East England and South London"]
[null,null,null,null,null,null,null,null,null,null,null,null,null,null,121009,"Ormiston Sudbury Academy","2012-09-01","Suffolk County Council",{"$f":"VLOOKUP(R3358,'LA CPID Look up'!$A$3:$C$153,2,FALSE)","v":"Suffolk County Council"},"East of England and North-East London"]
[null,null,null,null,null,null,null,null,null,null,null,null,null,null,119338,"Ormiston Venture Academy","2010-09-01","Norfolk County Council",{"$f":"VLOOKUP(R3359,'LA CPID Look up'!$A$3:$C$153,2,FALSE)","v":"Norfolk County Council"},"East of England and North-East London"]
[null,null,null,null,null,null,null,null,null,null,null,null,null,null,119473,"Ossett Academy and Sixth Form College","2011-02-01","Wakefield Council",{"$f":"VLOOKUP(R3361,'LA CPID Look up'!$A$3:$C$153,2,FALSE)","v":"Wakefield City Council"},"Lancashire and West Yorkshire"]
[null,null,null,null,null,null,null,null,null,null,null,null,null,null,131377,"Othery Village School","2015-03-01","Somerset County Council",{"$f":"VLOOKUP(R3362,'LA CPID Look up'!$A$3:$C$153,2,FALSE)","v":"Somerset County Council"},"South-West England"]
[null,null,null,null,null,null,null,null,null,null,null,null,null,null,131349,"Ounsdale High School","2015-03-01","Staffordshire County Council",{"$f":"VLOOKUP(R3364,'LA CPID Look up'!$A$3:$C$153,2,FALSE)","v":"Staffordshire County Council"},"West Midlands"]
[null,null,null,null,null,null,null,null,null,null,null,null,null,null,120209,"Our Lady & St Edward Primary & Nursery Catholic Voluntary Academy","2011-09-01","Nottingham City Council",{"$f":"VLOOKUP(R3365,'LA CPID Look up'!$A$3:$C$153,2,FALSE)","v":"Nottingham City Council"},"East Midlands and the Humber"]
[null,null,null,null,null,null,null,null,null,null,null,null,null,null,123405,"Our Lady and St Benedict Catholic Primary School","2013-09-01","Stoke-on-Trent City Council",{"$f":"VLOOKUP(R3367,'LA CPID Look up'!$A$3:$C$153,2,FALSE)","v":"Stoke-on-Trent Unitary Authority"},"West Midlands"]
[null,null,null,null,null,null,null,null,null,null,null,null,null,null,131686,"Our Lady and St Chad Catholic Sports College","2015-03-01","Wolverhampton City Council",{"$f":"VLOOKUP(R3368,'LA CPID Look up'!$A$3:$C$153,2,FALSE)","v":"Wolverhampton City Council"},"West Midlands"]
[null,null,null,null,null,null,null,null,null,null,null,null,null,null,130475,"Our Lady and St Patrick's Roman Catholic Primary School","2014-04-01","Devon County Council",{"$f":"VLOOKUP(R3370,'LA CPID Look up'!$A$3:$C$153,2,FALSE)","v":"Devon County Council"},"South-West England"]
[null,null,null,null,null,null,null,null,null,null,null,null,null,null,122399,"Our Lady Catholic Primary School","2012-07-01","Hertfordshire County Council",{"$f":"VLOOKUP(R3371,'LA CPID Look up'!$A$3:$C$153,2,FALSE)","v":"Hertfordshire County Council"},"East of England and North-East London"]
[null,null,null,null,null,null,null,null,null,null,null,null,null,null,130874,"Our Lady of Fatima Catholic Primary School","2014-10-01","Birmingham City Council",{"$f":"VLOOKUP(R3373,'LA CPID Look up'!$A$3:$C$153,2,FALSE)","v":"Birmingham City Council"},"West Midlands"]
[null,null,null,null,null,null,null,null,null,null,null,null,null,null,124331,"Our Lady of Good Counsel Catholic Primary School","2013-05-01","Lincolnshire County Council",{"$f":"VLOOKUP(R3374,'LA CPID Look up'!$A$3:$C$153,2,FALSE)","v":"Lincolnshire County Council"},"East Midlands and the Humber"]
[null,null,null,null,null,null,null,null,null,null,null,null,null,null,124317,"Our Lady of Lincoln Catholic Primary School","2013-05-01","Lincolnshire County Council",{"$f":"VLOOKUP(R3377,'LA CPID Look up'!$A$3:$C$153,2,FALSE)","v":"Lincolnshire County Council"},"East Midlands and the Humber"]
[null,null,null,null,null,null,null,null,null,null,null,null,null,null,124082,"Our Lady of Lourdes Catholic Primary School, Witney","2013-04-01","Oxfordshire County Council",{"$f":"VLOOKUP(R3378,'LA CPID Look up'!$A$3:$C$153,2,FALSE)","v":"Oxfordshire County Council"},"East of England and North-East London"]
[null,null,null,null,null,null,null,null,null,null,null,null,null,null,122348,"Our Lady of Perpetual Succour Catholic Primary School","2012-07-01","Nottingham City Council",{"$f":"VLOOKUP(R3380,'LA CPID Look up'!$A$3:$C$153,2,FALSE)","v":"Nottingham City Council"},"East Midlands and the Humber"]
[null,null,null,null,null,null,null,null,null,null,null,null,null,null,125264,"Our Lady of Pity Catholic Primary School","2013-12-01","Wirral Metropolitan Borough Council",{"$f":"VLOOKUP(R3381,'LA CPID Look up'!$A$3:$C$153,2,FALSE)","v":"Wirral Metropolitan Borough Council"},"Lancashire and West Yorkshire"]
[null,null,null,null,null,null,null,null,null,null,null,null,null,null,126572,"Our Lady of Victories Catholic School","2014-07-01","Bradford Metropolitan District Council",{"$f":"VLOOKUP(R3383,'LA CPID Look up'!$A$3:$C$153,2,FALSE)","v":"Bradford City Council"},"Lancashire and West Yorkshire"]
[null,null,null,null,null,null,null,null,null,null,null,null,null,null,131441,"Our Lady of Walsingham Catholic Primary School","2015-03-01","Northamptonshire County Council",{"$f":"VLOOKUP(R3384,'LA CPID Look up'!$A$3:$C$153,2,FALSE)","v":"Northamptonshire County Council"},"East of England and North-East London"]
[null,null,null,null,null,null,null,null,null,null,null,null,null,null,123876,"Our Lady's Catholic Primary School - Oxford","2013-04-01","Oxfordshire County Council",{"$f":"VLOOKUP(R3386,'LA CPID Look up'!$A$3:$C$153,2,FALSE)","v":"Oxfordshire County Council"},"East of England and North-East London"]
[null,null,null,null,null,null,null,null,null,null,null,null,null,null,130108,"Our Lady's Catholic Primary School, Barnstaple","2014-04-01","Devon County Council",{"$f":"VLOOKUP(R3387,'LA CPID Look up'!$A$3:$C$153,2,FALSE)","v":"Devon County Council"},"South-West England"]
[null,null,null,null,null,null,null,null,null,null,null,null,null,null,122305,"Outwood Academy Acklam","2013-09-01","Middlesbrough Council",{"$f":"VLOOKUP(R3389,'LA CPID Look up'!$A$3:$C$153,2,FALSE)","v":"Middlesbrough Council"},"North of England"]
[null,null,null,null,null,null,null,null,null,null,null,null,null,null,119090,"Outwood Academy Adwick","2009-09-01","Doncaster Metropolitan Borough Council",{"$f":"VLOOKUP(R3390,'LA CPID Look up'!$A$3:$C$153,2,FALSE)","v":"Doncaster Metropolitan Borough Council"},"East Midlands and the Humber"]
[null,null,null,null,null,null,null,null,null,null,null,null,null,null,122952,"Outwood Academy Bydales","2015-02-01","Redcar and Cleveland Borough Council",{"$f":"VLOOKUP(R3392,'LA CPID Look up'!$A$3:$C$153,2,FALSE)","v":"Redcar and Cleveland Borough Council"},"North of England"]
[null,null,null,null,null,null,null,null,null,null,null,null,null,null,122288,"Outwood Academy Carlton","2016-02-01","Barnsley Metropolitan Borough Council",{"$f":"VLOOKUP(R3393,'LA CPID Look up'!$A$3:$C$153,2,FALSE)","v":"Barnsley Metropolitan Borough Council"},"East Midlands and the Humber"]
[null,null,null,null,null,null,null,null,null,null,null,null,null,null,120004,"Outwood Academy Foxhills","2011-08-01","North Lincolnshire Council",{"$f":"VLOOKUP(R3395,'LA CPID Look up'!$A$3:$C$153,2,FALSE)","v":"North Lincolnshire Council"},"East Midlands and the Humber"]
[null,null,null,null,null,null,null,null,null,null,null,null,null,null,130888,"Outwood Academy Newbold","2015-01-01","Derbyshire County Council",{"$f":"VLOOKUP(R3396,'LA CPID Look up'!$A$3:$C$153,2,FALSE)","v":"Derbyshire County Council"},"East Midlands and the Humber"]
[null,null,null,null,null,null,null,null,null,null,null,null,null,null,120143,"Outwood Academy Portland","2012-06-01","Nottinghamshire County Council",{"$f":"VLOOKUP(R3398,'LA CPID Look up'!$A$3:$C$153,2,FALSE)","v":"Nottinghamshire County Council"},"East Midlands and the Humber"]
[null,null,null,null,null,null,null,null,null,null,null,null,null,null,120447,"Outwood Academy Ripon","2011-09-01","North Yorkshire County Council",{"$f":"VLOOKUP(R3399,'LA CPID Look up'!$A$3:$C$153,2,FALSE)","v":"North Yorkshire County Council"},"North of England"]
[null,null,null,null,null,null,null,null,null,null,null,null,null,null,120144,"Outwood Academy Valley","2012-06-01","Nottinghamshire County Council",{"$f":"VLOOKUP(R3401,'LA CPID Look up'!$A$3:$C$153,2,FALSE)","v":"Nottinghamshire County Council"},"East Midlands and the Humber"]
[null,null,null,null,null,null,null,null,null,null,null,null,null,null,119076,"Outwood Grange Academy","2009-09-01","Wakefield Council",{"$f":"VLOOKUP(R3402,'LA CPID Look up'!$A$3:$C$153,2,FALSE)","v":"Wakefield City Council"},"Lancashire and West Yorkshire"]
[null,null,null,null,null,null,null,null,null,null,null,null,null,null,124778,"Outwood Primary Academy Lofthouse Gate","2013-09-01","Wakefield Council",{"$f":"VLOOKUP(R3405,'LA CPID Look up'!$A$3:$C$153,2,FALSE)","v":"Wakefield City Council"},"Lancashire and West Yorkshire"]
[null,null,null,null,null,null,null,null,null,null,null,null,null,null,122669,"Outwoods Edge Community Primary School","2012-12-01","Leicestershire County Council",{"$f":"VLOOKUP(R3406,'LA CPID Look up'!$A$3:$C$153,2,FALSE)","v":"Leicestershire County Council"},"East Midlands and the Humber"]
[null,null,null,null,null,null,null,null,null,null,null,null,null,null,122973,"Overthorpe CofE Academy","2013-03-01","Kirklees Metropolitan Council",{"$f":"VLOOKUP(R3408,'LA CPID Look up'!$A$3:$C$153,2,FALSE)","v":"Kirklees Metropolitan Council"},"Lancashire and West Yorkshire"]
[null,null,null,null,null,null,null,null,null,null,null,null,null,null,119779,"Overton Grange School","2011-06-01","Sutton London Borough Council",{"$f":"VLOOKUP(R3409,'LA CPID Look up'!$A$3:$C$153,2,FALSE)","v":"Sutton London Borough Council"},"South-East England and South London"]
[null,null,null,null,null,null,null,null,null,null,null,null,null,null,127391,"Oxclose Primary Academy","2014-04-01","Sunderland City Council",{"$f":"VLOOKUP(R3411,'LA CPID Look up'!$A$3:$C$153,2,FALSE)","v":"Sunderland City Metropolitan Borough Council"},"North of England"]
[null,null,null,null,null,null,null,null,null,null,null,null,null,null,118674,"Oxford Academy, The","2008-09-02","Oxfordshire County Council",{"$f":"VLOOKUP(R3412,'LA CPID Look up'!$A$3:$C$153,2,FALSE)","v":"Oxfordshire County Council"},"East of England and North-East London"]
[null,null,null,null,null,null,null,null,null,null,null,null,null,null,119828,"Oxley Park Primary School","2011-07-01","Milton Keynes Council",{"$f":"VLOOKUP(R3414,'LA CPID Look up'!$A$3:$C$153,2,FALSE)","v":"Milton Keynes Council"},"East of England and North-East London"]
[null,null,null,null,null,null,null,null,null,null,null,null,null,null,132299,"Oxted School","2015-09-01","Surrey County Council",{"$f":"VLOOKUP(R3415,'LA CPID Look up'!$A$3:$C$153,2,FALSE)","v":"Surrey County Council"},"South-East England and South London"]
[null,null,null,null,null,null,null,null,null,null,null,null,null,null,120183,"Padstow School","2011-08-01","Cornwall Council",{"$f":"VLOOKUP(R3417,'LA CPID Look up'!$A$3:$C$153,2,FALSE)","v":"Cornwall Unitary Authority"},"South-West England"]
[null,null,null,null,null,null,null,null,null,null,null,null,null,null,122789,"Paignton Community and Sports Academy","2012-10-01","Torbay Council",{"$f":"VLOOKUP(R3418,'LA CPID Look up'!$A$3:$C$153,2,FALSE)","v":"Torbay Council"},"South-West England"]
[null,null,null,null,null,null,null,null,null,null,null,null,null,null,131595,"Pakefield Primary School","2015-01-01","Suffolk County Council",{"$f":"VLOOKUP(R3420,'LA CPID Look up'!$A$3:$C$153,2,FALSE)","v":"Suffolk County Council"},"East of England and North-East London"]
[null,null,null,null,null,null,null,null,null,null,null,null,null,null,120301,"Palace Fields Primary Academy","2011-08-17","Halton Borough Council",{"$f":"VLOOKUP(R3421,'LA CPID Look up'!$A$3:$C$153,2,FALSE)","v":"Halton Borough Council"},"Lancashire and West Yorkshire"]
[null,null,null,null,null,null,null,null,null,null,null,null,null,null,123180,"Palmer Primary Academy, The","2013-09-01","Reading Borough Council",{"$f":"VLOOKUP(R3423,'LA CPID Look up'!$A$3:$C$153,2,FALSE)","v":"Reading Borough Council"},"East of England and North-East London"]
[null,null,null,null,null,null,null,null,null,null,null,null,null,null,120127,"Parbold Douglas Church of England Academy","2011-08-01","Lancashire County Council",{"$f":"VLOOKUP(R3424,'LA CPID Look up'!$A$3:$C$153,2,FALSE)","v":"Lancashire County Council"},"Lancashire and West Yorkshire"]
[null,null,null,null,null,null,null,null,null,null,null,null,null,null,124486,"Park Campus Academy","2014-07-01","Lambeth London Borough Council",{"$f":"VLOOKUP(R3426,'LA CPID Look up'!$A$3:$C$153,2,FALSE)","v":"Lambeth London Borough Council"},"South-East England and South London"]
[null,null,null,null,null,null,null,null,null,null,null,null,null,null,124119,"Park Community Academy","2013-09-01","Blackpool Council",{"$f":"VLOOKUP(R3427,'LA CPID Look up'!$A$3:$C$153,2,FALSE)","v":"Blackpool Unitary Authority"},"Lancashire and West Yorkshire"]
[null,null,null,null,null,null,null,null,null,null,null,null,null,null,118922,"Park Hall Academy - Solihull","2009-09-01","Solihull Metropolitan Borough Council",{"$f":"VLOOKUP(R3429,'LA CPID Look up'!$A$3:$C$153,2,FALSE)","v":"Solihull Metropolitan Borough Council"},"West Midlands"]
[null,null,null,null,null,null,null,null,null,null,null,null,null,null,119293,"Park Hall Infant Academy - Walsall","2010-10-01","Walsall Metropolitan Borough Council",{"$f":"VLOOKUP(R3430,'LA CPID Look up'!$A$3:$C$153,2,FALSE)","v":"Walsall Metropolitan Borough Council"},"West Midlands"]
[null,null,null,null,null,null,null,null,null,null,null,null,null,null,120075,"Park High School","2011-08-01","Harrow London Borough Council",{"$f":"VLOOKUP(R3432,'LA CPID Look up'!$A$3:$C$153,2,FALSE)","v":"Harrow London Borough Council"},"East of England and North-East London"]
[null,null,null,null,null,null,null,null,null,null,null,null,null,null,119729,"Park House School","2011-05-01","West Berkshire Council",{"$f":"VLOOKUP(R3433,'LA CPID Look up'!$A$3:$C$153,2,FALSE)","v":"West Berkshire Council"},"East of England and North-East London"]
[null,null,null,null,null,null,null,null,null,null,null,null,null,null,123827,"Park Primary School - Boston","2013-01-01","Lincolnshire County Council",{"$f":"VLOOKUP(R3436,'LA CPID Look up'!$A$3:$C$153,2,FALSE)","v":"Lincolnshire County Council"},"East Midlands and the Humber"]
[null,null,null,null,null,null,null,null,null,null,null,null,null,null,119393,"Park Road Academy Primary School - Altrincham","2011-01-01","Trafford Borough Council",{"$f":"VLOOKUP(R3437,'LA CPID Look up'!$A$3:$C$153,2,FALSE)","v":"Trafford Metropolitan Borough Council"},"Lancashire and West Yorkshire"]
[null,null,null,null,null,null,null,null,null,null,null,null,null,null,122482,"Park View Primary Academy - Leeds","2012-09-01","Leeds City Council",{"$f":"VLOOKUP(R3439,'LA CPID Look up'!$A$3:$C$153,2,FALSE)","v":"Leeds City Council"},"Lancashire and West Yorkshire"]
[null,null,null,null,null,null,null,null,null,null,null,null,null,null,133073,"Park View Primary School - Huyton","2016-01-01","Knowsley Metropolitan Borough Council",{"$f":"VLOOKUP(R3440,'LA CPID Look up'!$A$3:$C$153,2,FALSE)","v":"Knowsley Metropolitan Borough Council"},"Lancashire and West Yorkshire"]
[null,null,null,null,null,null,null,null,null,null,null,null,null,null,121897,"Parker E-ACT Academy, The","2012-09-01","Northamptonshire County Council",{"$f":"VLOOKUP(R3442,'LA CPID Look up'!$A$3:$C$153,2,FALSE)","v":"Northamptonshire County Council"},"East of England and North-East London"]
[null,null,null,null,null,null,null,null,null,null,null,null,null,null,122778,"Parkfield Community School - Saltley","2013-01-01","Birmingham City Council",{"$f":"VLOOKUP(R3443,'LA CPID Look up'!$A$3:$C$153,2,FALSE)","v":"Birmingham City Council"},"West Midlands"]
[null,null,null,null,null,null,null,null,null,null,null,null,null,null,121999,"Parkfield School - Bournemouth","2013-09-01","Bournemouth Borough Council",{"$f":"VLOOKUP(R3445,'LA CPID Look up'!$A$3:$C$153,2,FALSE)","v":"Bournemouth Council"},"South-West England"]
[null,null,null,null,null,null,null,null,null,null,null,null,null,null,122115,"Parkland Primary School South Wigston","2012-07-01","Leicestershire County Council",{"$f":"VLOOKUP(R3446,'LA CPID Look up'!$A$3:$C$153,2,FALSE)","v":"Leicestershire County Council"},"East Midlands and the Humber"]
[null,null,null,null,null,null,null,null,null,null,null,null,null,null,126541,"Parkroyal Community School","2013-12-01","Cheshire East Council",{"$f":"VLOOKUP(R3448,'LA CPID Look up'!$A$3:$C$153,2,FALSE)","v":"Cheshire East Unitary Authority"},"West Midlands"]
[null,null,null,null,null,null,null,null,null,null,null,null,null,null,124662,"Parks Primary Academy, The - Hull","2013-12-01","Hull City Council",{"$f":"VLOOKUP(R3449,'LA CPID Look up'!$A$3:$C$153,2,FALSE)","v":"Kingston upon Hull City Council"},"East Midlands and the Humber"]
[null,null,null,null,null,null,null,null,null,null,null,null,null,null,119655,"Parkside Community College","2011-04-01","Cambridgeshire County Council",{"$f":"VLOOKUP(R3451,'LA CPID Look up'!$A$3:$C$153,2,FALSE)","v":"Cambridgeshire County Council"},"East of England and North-East London"]
[null,null,null,null,null,null,null,null,null,null,null,null,null,null,132019,"Parkside GGI Academy","2015-09-01","Cumbria County Council",{"$f":"VLOOKUP(R3452,'LA CPID Look up'!$A$3:$C$153,2,FALSE)","v":"Cumbria County Council"},"North of England"]
[null,null,null,null,null,null,null,null,null,null,null,null,null,null,122531,"Parkside Studio College","2012-09-01","Hillingdon London Borough Council",{"$f":"VLOOKUP(R3454,'LA CPID Look up'!$A$3:$C$153,2,FALSE)","v":"Hillingdon London Borough Council"},"East of England and North-East London"]
[null,null,null,null,null,null,null,null,null,null,null,null,null,null,119399,"Parkstone Grammar School","2011-01-01","Poole Borough Council",{"$f":"VLOOKUP(R3455,'LA CPID Look up'!$A$3:$C$153,2,FALSE)","v":"Poole (Borough of)"},"South-West England"]
[null,null,null,null,null,null,null,null,null,null,null,null,null,null,119130,"Parkwood E-ACT Academy","2009-09-01","Sheffield City Council",{"$f":"VLOOKUP(R3457,'LA CPID Look up'!$A$3:$C$153,2,FALSE)","v":"Sheffield City Council"},"East Midlands and the Humber"]
[null,null,null,null,null,null,null,null,null,null,null,null,null,null,131971,"Parkwood Hall Co-Operative Academy","2015-05-01","Royal Borough of Kensington and Chelsea Council",{"$f":"VLOOKUP(R3458,'LA CPID Look up'!$A$3:$C$153,2,FALSE)","v":"Kensington and Chelsea Council (Royal Borough of)"},"East of England and North-East London"]
[null,null,null,null,null,null,null,null,null,null,null,null,null,null,119869,"Parmiter's School","2011-07-01","Hertfordshire County Council",{"$f":"VLOOKUP(R3460,'LA CPID Look up'!$A$3:$C$153,2,FALSE)","v":"Hertfordshire County Council"},"East of England and North-East London"]
[null,null,null,null,null,null,null,null,null,null,null,null,null,null,122891,"Parson Street Primary School","2012-11-01","Bristol City Council",{"$f":"VLOOKUP(R3461,'LA CPID Look up'!$A$3:$C$153,2,FALSE)","v":"Bristol City Council"},"South-West England"]
[null,null,null,null,null,null,null,null,null,null,null,null,null,null,119380,"Pate's Grammar School","2010-12-01","Gloucestershire County Council",{"$f":"VLOOKUP(R3464,'LA CPID Look up'!$A$3:$C$153,2,FALSE)","v":"Gloucestershire County Council"},"South-West England"]
[null,null,null,null,null,null,null,null,null,null,null,null,null,null,124615,"Pathways E-ACT Primary Academy","2013-09-01","Sheffield City Council",{"$f":"VLOOKUP(R3465,'LA CPID Look up'!$A$3:$C$153,2,FALSE)","v":"Sheffield City Council"},"East Midlands and the Humber"]
[null,null,null,null,null,null,null,null,null,null,null,null,null,null,130989,"Paxton Academy Sports and Science","2014-09-01","Croydon London Borough Council",{"$f":"VLOOKUP(R3467,'LA CPID Look up'!$A$3:$C$153,2,FALSE)","v":"Croydon London Borough Council"},"South-East England and South London"]
[null,null,null,null,null,null,null,null,null,null,null,null,null,null,127357,"Peafield Lane Academy","2014-03-01","Nottinghamshire County Council",{"$f":"VLOOKUP(R3468,'LA CPID Look up'!$A$3:$C$153,2,FALSE)","v":"Nottinghamshire County Council"},"East Midlands and the Humber"]
[null,null,null,null,null,null,null,null,null,null,null,null,null,null,130885,"Pear Tree Mead Primary and Nursery School","2014-09-01","Essex County Council",{"$f":"VLOOKUP(R3470,'LA CPID Look up'!$A$3:$C$153,2,FALSE)","v":"Essex County Council"},"East of England and North-East London"]
[null,null,null,null,null,null,null,null,null,null,null,null,null,null,129551,"Pear Tree Primary School","2014-04-01","Cheshire East Council",{"$f":"VLOOKUP(R3471,'LA CPID Look up'!$A$3:$C$153,2,FALSE)","v":"Cheshire East Unitary Authority"},"West Midlands"]
[null,null,null,null,null,null,null,null,null,null,null,null,null,null,133035,"Pearson Primary School","2016-03-01","Hull City Council",{"$f":"VLOOKUP(R3473,'LA CPID Look up'!$A$3:$C$153,2,FALSE)","v":"Kingston upon Hull City Council"},"East Midlands and the Humber"]
[null,null,null,null,null,null,null,null,null,null,null,null,null,null,123329,"Peaslake School","2013-09-01","Surrey County Council",{"$f":"VLOOKUP(R3474,'LA CPID Look up'!$A$3:$C$153,2,FALSE)","v":"Surrey County Council"},"South-East England and South London"]
[null,null,null,null,null,null,null,null,null,null,null,null,null,null,124603,"Pebsham Primary Academy","2014-01-01","East Sussex County Council",{"$f":"VLOOKUP(R3476,'LA CPID Look up'!$A$3:$C$153,2,FALSE)","v":"East Sussex County Council"},"South-East England and South London"]
[null,null,null,null,null,null,null,null,null,null,null,null,null,null,124194,"Peckover Primary School","2013-04-01","Cambridgeshire County Council",{"$f":"VLOOKUP(R3477,'LA CPID Look up'!$A$3:$C$153,2,FALSE)","v":"Cambridgeshire County Council"},"East of England and North-East London"]
[null,null,null,null,null,null,null,null,null,null,null,null,null,null,123093,"Pegasus School - Oxford","2013-08-01","Oxfordshire County Council",{"$f":"VLOOKUP(R3479,'LA CPID Look up'!$A$3:$C$153,2,FALSE)","v":"Oxfordshire County Council"},"East of England and North-East London"]
[null,null,null,null,null,null,null,null,null,null,null,null,null,null,123912,"Pelham Primary School","2013-04-01","Bexley London Borough Council",{"$f":"VLOOKUP(R3480,'LA CPID Look up'!$A$3:$C$153,2,FALSE)","v":"Bexley London Borough Council"},"South-East England and South London"]
[null,null,null,null,null,null,null,null,null,null,null,null,null,null,123850,"Pembroke Park Primary School","2013-04-01","Wiltshire Council",{"$f":"VLOOKUP(R3482,'LA CPID Look up'!$A$3:$C$153,2,FALSE)","v":"Wiltshire Unitary Authority"},"South-West England"]
[null,null,null,null,null,null,null,null,null,null,null,null,null,null,122745,"Pen Mill Infants' School","2012-10-01","Somerset County Council",{"$f":"VLOOKUP(R3483,'LA CPID Look up'!$A$3:$C$153,2,FALSE)","v":"Somerset County Council"},"South-West England"]
[null,null,null,null,null,null,null,null,null,null,null,null,null,null,120396,"Pencalenick School","2011-09-01","Cornwall Council",{"$f":"VLOOKUP(R3485,'LA CPID Look up'!$A$3:$C$153,2,FALSE)","v":"Cornwall Unitary Authority"},"South-West England"]
[null,null,null,null,null,null,null,null,null,null,null,null,null,null,129953,"Pendeen School","2014-04-01","Cornwall Council",{"$f":"VLOOKUP(R3486,'LA CPID Look up'!$A$3:$C$153,2,FALSE)","v":"Cornwall Unitary Authority"},"South-West England"]
[null,null,null,null,null,null,null,null,null,null,null,null,null,null,123091,"Penketh High School","2013-04-01","Warrington Borough Council",{"$f":"VLOOKUP(R3488,'LA CPID Look up'!$A$3:$C$153,2,FALSE)","v":"Warrington Borough Council"},"Lancashire and West Yorkshire"]
[null,null,null,null,null,null,null,null,null,null,null,null,null,null,120511,"Pennine Way Junior Academy","2011-10-01","Derbyshire County Council",{"$f":"VLOOKUP(R3489,'LA CPID Look up'!$A$3:$C$153,2,FALSE)","v":"Derbyshire County Council"},"East Midlands and the Humber"]
[null,null,null,null,null,null,null,null,null,null,null,null,null,null,122241,"Pennyman Primary Academy","2012-09-01","Middlesbrough Council",{"$f":"VLOOKUP(R3491,'LA CPID Look up'!$A$3:$C$153,2,FALSE)","v":"Middlesbrough Council"},"North of England"]
[null,null,null,null,null,null,null,null,null,null,null,null,null,null,129413,"Penponds School","2014-04-01","Cornwall Council",{"$f":"VLOOKUP(R3492,'LA CPID Look up'!$A$3:$C$153,2,FALSE)","v":"Cornwall Unitary Authority"},"South-West England"]
[null,null,null,null,null,null,null,null,null,null,null,null,null,null,122642,"Penryn Primary Academy","2015-01-01","Cornwall Council",{"$f":"VLOOKUP(R3495,'LA CPID Look up'!$A$3:$C$153,2,FALSE)","v":"Cornwall Unitary Authority"},"South-West England"]
[null,null,null,null,null,null,null,null,null,null,null,null,null,null,131154,"Pensans Primary School","2015-09-01","Cornwall Council",{"$f":"VLOOKUP(R3496,'LA CPID Look up'!$A$3:$C$153,2,FALSE)","v":"Cornwall Unitary Authority"},"South-West England"]
[null,null,null,null,null,null,null,null,null,null,null,null,null,null,122648,"Penwith Alternative Provision Academy","2013-06-01","Cornwall Council",{"$f":"VLOOKUP(R3498,'LA CPID Look up'!$A$3:$C$153,2,FALSE)","v":"Cornwall Unitary Authority"},"South-West England"]
[null,null,null,null,null,null,null,null,null,null,null,null,null,null,121835,"Penwortham Priory Academy","2012-11-01","Lancashire County Council",{"$f":"VLOOKUP(R3499,'LA CPID Look up'!$A$3:$C$153,2,FALSE)","v":"Lancashire County Council"},"Lancashire and West Yorkshire"]
[null,null,null,null,null,null,null,null,null,null,null,null,null,null,122090,"Percy Shurmer Academy","2012-09-01","Birmingham City Council",{"$f":"VLOOKUP(R3501,'LA CPID Look up'!$A$3:$C$153,2,FALSE)","v":"Birmingham City Council"},"West Midlands"]
[null,null,null,null,null,null,null,null,null,null,null,null,null,null,120128,"Perins School A Community Sports College","2011-08-01","Hampshire County Council",{"$f":"VLOOKUP(R3502,'LA CPID Look up'!$A$3:$C$153,2,FALSE)","v":"Hampshire County Council"},"South-East England and South London"]
[null,null,null,null,null,null,null,null,null,null,null,null,null,null,122185,"Perry Beeches II The Free School","2012-09-01","Birmingham City Council",{"$f":"VLOOKUP(R3504,'LA CPID Look up'!$A$3:$C$153,2,FALSE)","v":"Birmingham City Council"},"West Midlands"]
[null,null,null,null,null,null,null,null,null,null,null,null,null,null,128244,"Perry Beeches III the Free School","2013-09-01","Birmingham City Council",{"$f":"VLOOKUP(R3505,'LA CPID Look up'!$A$3:$C$153,2,FALSE)","v":"Birmingham City Council"},"West Midlands"]
[null,null,null,null,null,null,null,null,null,null,null,null,null,null,120050,"Perry Beeches the Academy","2012-05-03","Birmingham City Council",{"$f":"VLOOKUP(R3507,'LA CPID Look up'!$A$3:$C$153,2,FALSE)","v":"Birmingham City Council"},"West Midlands"]
[null,null,null,null,null,null,null,null,null,null,null,null,null,null,132653,"Perry Beeches V - The All Through Family School","2015-09-01","Birmingham City Council",{"$f":"VLOOKUP(R3508,'LA CPID Look up'!$A$3:$C$153,2,FALSE)","v":"Birmingham City Council"},"West Midlands"]
[null,null,null,null,null,null,null,null,null,null,null,null,null,null,124207,"Perry Hall Primary School - Wednesfield","2013-07-01","Wolverhampton City Council",{"$f":"VLOOKUP(R3510,'LA CPID Look up'!$A$3:$C$153,2,FALSE)","v":"Wolverhampton City Council"},"West Midlands"]
[null,null,null,null,null,null,null,null,null,null,null,null,null,null,123088,"Perry Wood Primary and Nursery School","2012-12-01","Worcestershire County Council",{"$f":"VLOOKUP(R3511,'LA CPID Look up'!$A$3:$C$153,2,FALSE)","v":"Worcestershire County Council"},"West Midlands"]
[null,null,null,null,null,null,null,null,null,null,null,null,null,null,118653,"Petchey Academy, The","2006-09-01","Hackney London Borough Council (The Learning Trust)",{"$f":"VLOOKUP(R3513,'LA CPID Look up'!$A$3:$C$153,2,FALSE)","v":"Hackney London Borough Council"},"East of England and North-East London"]
[null,null,null,null,null,null,null,null,null,null,null,null,null,null,131536,"Peterhouse CofE Primary Academy","2015-03-01","Norfolk County Council",{"$f":"VLOOKUP(R3514,'LA CPID Look up'!$A$3:$C$153,2,FALSE)","v":"Norfolk County Council"},"East of England and North-East London"]
[null,null,null,null,null,null,null,null,null,null,null,null,null,null,124764,"Petham Primary School","2013-09-01","Kent County Council",{"$f":"VLOOKUP(R3516,'LA CPID Look up'!$A$3:$C$153,2,FALSE)","v":"Kent County Council"},"South-East England and South London"]
[null,null,null,null,null,null,null,null,null,null,null,null,null,null,129558,"Pewsey Primary School","2014-04-01","Wiltshire Council",{"$f":"VLOOKUP(R3517,'LA CPID Look up'!$A$3:$C$153,2,FALSE)","v":"Wiltshire Unitary Authority"},"South-West England"]
[null,null,null,null,null,null,null,null,null,null,null,null,null,null,120450,"Pheasant Bank Academy","2011-09-01","Doncaster Metropolitan Borough Council",{"$f":"VLOOKUP(R3519,'LA CPID Look up'!$A$3:$C$153,2,FALSE)","v":"Doncaster Metropolitan Borough Council"},"East Midlands and the Humber"]
[null,null,null,null,null,null,null,null,null,null,null,null,null,null,120589,"Philip Morant School and College","2011-11-01","Essex County Council",{"$f":"VLOOKUP(R3520,'LA CPID Look up'!$A$3:$C$153,2,FALSE)","v":"Essex County Council"},"East of England and North-East London"]
[null,null,null,null,null,null,null,null,null,null,null,null,null,null,130766,"Phoenix Park Academy","2014-12-01","North East Lincolnshire Council",{"$f":"VLOOKUP(R3523,'LA CPID Look up'!$A$3:$C$153,2,FALSE)","v":"North East Lincolnshire Council"},"East Midlands and the Humber"]
[null,null,null,null,null,null,null,null,null,null,null,null,null,null,120069,"Pickhurst Infant School","2011-08-01","Bromley London Borough Council",{"$f":"VLOOKUP(R3524,'LA CPID Look up'!$A$3:$C$153,2,FALSE)","v":"Bromley London Borough Council"},"South-East England and South London"]
[null,null,null,null,null,null,null,null,null,null,null,null,null,null,127600,"Pictor Academy","2016-01-01","Trafford Borough Council",{"$f":"VLOOKUP(R3526,'LA CPID Look up'!$A$3:$C$153,2,FALSE)","v":"Trafford Metropolitan Borough Council"},"Lancashire and West Yorkshire"]
[null,null,null,null,null,null,null,null,null,null,null,null,null,null,131850,"Piddle Valley Church of England First School","2015-04-01","Dorset County Council",{"$f":"VLOOKUP(R3527,'LA CPID Look up'!$A$3:$C$153,2,FALSE)","v":"Dorset County Council"},"South-West England"]
[null,null,null,null,null,null,null,null,null,null,null,null,null,null,120950,"Pilgrims' Way Primary School and Nursery","2013-12-01","Kent County Council",{"$f":"VLOOKUP(R3529,'LA CPID Look up'!$A$3:$C$153,2,FALSE)","v":"Kent County Council"},"South-East England and South London"]
[null,null,null,null,null,null,null,null,null,null,null,null,null,null,122351,"Pilton Bluecoat Church of England Academy","2012-07-01","Devon County Council",{"$f":"VLOOKUP(R3530,'LA CPID Look up'!$A$3:$C$153,2,FALSE)","v":"Devon County Council"},"South-West England"]
[null,null,null,null,null,null,null,null,null,null,null,null,null,null,118663,"Pimlico Academy","2008-09-01","Westminster City Council",{"$f":"VLOOKUP(R3532,'LA CPID Look up'!$A$3:$C$153,2,FALSE)","v":"Westminster City Council"},"East of England and North-East London"]
[null,null,null,null,null,null,null,null,null,null,null,null,null,null,122038,"Pimlico Primary","2013-09-01","Westminster City Council",{"$f":"VLOOKUP(R3533,'LA CPID Look up'!$A$3:$C$153,2,FALSE)","v":"Westminster City Council"},"East of England and North-East London"]
[null,null,null,null,null,null,null,null,null,null,null,null,null,null,130139,"Pinkwell Primary School","2014-04-01","Hillingdon London Borough Council",{"$f":"VLOOKUP(R3535,'LA CPID Look up'!$A$3:$C$153,2,FALSE)","v":"Hillingdon London Borough Council"},"East of England and North-East London"]
[null,null,null,null,null,null,null,null,null,null,null,null,null,null,122071,"Pioneer School, The","2012-06-01","Essex County Council",{"$f":"VLOOKUP(R3536,'LA CPID Look up'!$A$3:$C$153,2,FALSE)","v":"Essex County Council"},"East of England and North-East London"]
[null,null,null,null,null,null,null,null,null,null,null,null,null,null,120836,"Place Farm Primary Academy","2012-06-01","Suffolk County Council",{"$f":"VLOOKUP(R3538,'LA CPID Look up'!$A$3:$C$153,2,FALSE)","v":"Suffolk County Council"},"East of England and North-East London"]
[null,null,null,null,null,null,null,null,null,null,null,null,null,null,123942,"Plains Farm Academy","2013-04-01","Sunderland City Council",{"$f":"VLOOKUP(R3539,'LA CPID Look up'!$A$3:$C$153,2,FALSE)","v":"Sunderland City Metropolitan Borough Council"},"North of England"]
[null,null,null,null,null,null,null,null,null,null,null,null,null,null,119507,"Platanos College","2011-02-01","Lambeth London Borough Council",{"$f":"VLOOKUP(R3541,'LA CPID Look up'!$A$3:$C$153,2,FALSE)","v":"Lambeth London Borough Council"},"South-East England and South London"]
[null,null,null,null,null,null,null,null,null,null,null,null,null,null,123236,"Platt Bridge Community Primary School","2013-02-01","Wigan Metropolitan Borough Council",{"$f":"VLOOKUP(R3542,'LA CPID Look up'!$A$3:$C$153,2,FALSE)","v":"Wigan Metropolitan Borough Council"},"Lancashire and West Yorkshire"]
[null,null,null,null,null,null,null,null,null,null,null,null,null,null,120642,"Pluckley Church of England Primary School","2012-04-01","Kent County Council",{"$f":"VLOOKUP(R3544,'LA CPID Look up'!$A$3:$C$153,2,FALSE)","v":"Kent County Council"},"South-East England and South London"]
[null,null,null,null,null,null,null,null,null,null,null,null,null,null,120333,"Plumberow Primary School","2011-09-01","Essex County Council",{"$f":"VLOOKUP(R3545,'LA CPID Look up'!$A$3:$C$153,2,FALSE)","v":"Essex County Council"},"East of England and North-East London"]
[null,null,null,null,null,null,null,null,null,null,null,null,null,null,123330,"Plymouth School of Creative Arts","2013-09-01","Plymouth City Council",{"$f":"VLOOKUP(R3547,'LA CPID Look up'!$A$3:$C$153,2,FALSE)","v":"Plymouth City Council"},"South-West England"]
[null,null,null,null,null,null,null,null,null,null,null,null,null,null,132679,"Plymouth Studio School","2015-09-01","Plymouth City Council",{"$f":"VLOOKUP(R3548,'LA CPID Look up'!$A$3:$C$153,2,FALSE)","v":"Plymouth City Council"},"South-West England"]
[null,null,null,null,null,null,null,null,null,null,null,null,null,null,122406,"Pochin School, THe","2012-10-01","Leicestershire County Council",{"$f":"VLOOKUP(R3550,'LA CPID Look up'!$A$3:$C$153,2,FALSE)","v":"Leicestershire County Council"},"East Midlands and the Humber"]
[null,null,null,null,null,null,null,null,null,null,null,null,null,null,123915,"Pokesdown Community Primary School","2013-04-01","Bournemouth Borough Council",{"$f":"VLOOKUP(R3551,'LA CPID Look up'!$A$3:$C$153,2,FALSE)","v":"Bournemouth Council"},"South-West England"]
[null,null,null,null,null,null,null,null,null,null,null,null,null,null,121025,"Pond Meadow School","2014-11-01","Surrey County Council",{"$f":"VLOOKUP(R3554,'LA CPID Look up'!$A$3:$C$153,2,FALSE)","v":"Surrey County Council"},"South-East England and South London"]
[null,null,null,null,null,null,null,null,null,null,null,null,null,null,124600,"Pontefract Carleton Park Junior and Infant School","2013-12-01","Wakefield Council",{"$f":"VLOOKUP(R3555,'LA CPID Look up'!$A$3:$C$153,2,FALSE)","v":"Wakefield City Council"},"Lancashire and West Yorkshire"]
[null,null,null,null,null,null,null,null,null,null,null,null,null,null,123279,"Pontefract Halfpenny Lane Junior Infant and Nursery School","2013-04-01","Wakefield Council",{"$f":"VLOOKUP(R3557,'LA CPID Look up'!$A$3:$C$153,2,FALSE)","v":"Wakefield City Council"},"Lancashire and West Yorkshire"]
[null,null,null,null,null,null,null,null,null,null,null,null,null,null,123215,"Pontefract Larks Hill Junior and Infant School","2013-04-01","Wakefield Council",{"$f":"VLOOKUP(R3558,'LA CPID Look up'!$A$3:$C$153,2,FALSE)","v":"Wakefield City Council"},"Lancashire and West Yorkshire"]
[null,null,null,null,null,null,null,null,null,null,null,null,null,null,119590,"Pool Academy","2011-04-01","Cornwall Council",{"$f":"VLOOKUP(R3560,'LA CPID Look up'!$A$3:$C$153,2,FALSE)","v":"Cornwall Unitary Authority"},"South-West England"]
[null,null,null,null,null,null,null,null,null,null,null,null,null,null,131346,"Pool Hayes Arts and Community School","2016-02-01","Walsall Metropolitan Borough Council",{"$f":"VLOOKUP(R3561,'LA CPID Look up'!$A$3:$C$153,2,FALSE)","v":"Walsall Metropolitan Borough Council"},"West Midlands"]
[null,null,null,null,null,null,null,null,null,null,null,null,null,null,131999,"Poppleton Ousebank Primary School","2015-04-01","City of York Council",{"$f":"VLOOKUP(R3563,'LA CPID Look up'!$A$3:$C$153,2,FALSE)","v":"City of York Council"},"East Midlands and the Humber"]
[null,null,null,null,null,null,null,null,null,null,null,null,null,null,124347,"Porter Croft Church of England Primary Academy","2013-08-01","Sheffield City Council",{"$f":"VLOOKUP(R3564,'LA CPID Look up'!$A$3:$C$153,2,FALSE)","v":"Sheffield City Council"},"East Midlands and the Humber"]
[null,null,null,null,null,null,null,null,null,null,null,null,null,null,122328,"Portland Academy - Sunderland","2012-08-01","Sunderland City Council",{"$f":"VLOOKUP(R3566,'LA CPID Look up'!$A$3:$C$153,2,FALSE)","v":"Sunderland City Metropolitan Borough Council"},"North of England"]
[null,null,null,null,null,null,null,null,null,null,null,null,null,null,124989,"Portland School - Nottingham","2014-02-01","Nottingham City Council",{"$f":"VLOOKUP(R3567,'LA CPID Look up'!$A$3:$C$153,2,FALSE)","v":"Nottingham City Council"},"East Midlands and the Humber"]
[null,null,null,null,null,null,null,null,null,null,null,null,null,null,123958,"Portsmouth Academy for Girls","2013-09-01","Portsmouth City Council",{"$f":"VLOOKUP(R3569,'LA CPID Look up'!$A$3:$C$153,2,FALSE)","v":"Portsmouth City Council"},"South-East England and South London"]
[null,null,null,null,null,null,null,null,null,null,null,null,null,null,121114,"Portswood Primary School","2012-09-01","Southampton City Council",{"$f":"VLOOKUP(R3570,'LA CPID Look up'!$A$3:$C$153,2,FALSE)","v":"Southampton City Council"},"South-East England and South London"]
[null,null,null,null,null,null,null,null,null,null,null,null,null,null,132450,"Pound Hill Infant Academy","2015-09-01","West Sussex County Council",{"$f":"VLOOKUP(R3572,'LA CPID Look up'!$A$3:$C$153,2,FALSE)","v":"West Sussex County Council"},"South-East England and South London"]
[null,null,null,null,null,null,null,null,null,null,null,null,null,null,124619,"Powers Hall Academy","2013-07-01","Essex County Council",{"$f":"VLOOKUP(R3573,'LA CPID Look up'!$A$3:$C$153,2,FALSE)","v":"Essex County Council"},"East of England and North-East London"]
[null,null,null,null,null,null,null,null,null,null,null,null,null,null,120130,"Prenton High School for Girls","2011-08-01","Wirral Metropolitan Borough Council",{"$f":"VLOOKUP(R3575,'LA CPID Look up'!$A$3:$C$153,2,FALSE)","v":"Wirral Metropolitan Borough Council"},"Lancashire and West Yorkshire"]
[null,null,null,null,null,null,null,null,null,null,null,null,null,null,121129,"Presdales School","2012-04-01","Hertfordshire County Council",{"$f":"VLOOKUP(R3576,'LA CPID Look up'!$A$3:$C$153,2,FALSE)","v":"Hertfordshire County Council"},"East of England and North-East London"]
[null,null,null,null,null,null,null,null,null,null,null,null,null,null,132098,"Prestolee Primary School","2015-04-01","Bolton Metropolitan Borough Council",{"$f":"VLOOKUP(R3578,'LA CPID Look up'!$A$3:$C$153,2,FALSE)","v":"Bolton Metropolitan Borough Council"},"Lancashire and West Yorkshire"]
[null,null,null,null,null,null,null,null,null,null,null,null,null,null,124783,"Preston CofE VC Primary School","2013-11-01","Somerset County Council",{"$f":"VLOOKUP(R3579,'LA CPID Look up'!$A$3:$C$153,2,FALSE)","v":"Somerset County Council"},"South-West England"]
[null,null,null,null,null,null,null,null,null,null,null,null,null,null,123910,"Preston Manor School","2013-02-01","Brent London Borough Council",{"$f":"VLOOKUP(R3581,'LA CPID Look up'!$A$3:$C$153,2,FALSE)","v":"Brent London Borough Council"},"South-Central England and North-West London"]
[null,null,null,null,null,null,null,null,null,null,null,null,null,null,131143,"Preston Primary School","2014-10-01","Torbay Council",{"$f":"VLOOKUP(R3582,'LA CPID Look up'!$A$3:$C$153,2,FALSE)","v":"Torbay Council"},"South-West England"]
[null,null,null,null,null,null,null,null,null,null,null,null,null,null,123261,"Primrose Hill Church of England Primary Academy","2013-10-01","Gloucestershire County Council",{"$f":"VLOOKUP(R3585,'LA CPID Look up'!$A$3:$C$153,2,FALSE)","v":"Gloucestershire County Council"},"South-West England"]
[null,null,null,null,null,null,null,null,null,null,null,null,null,null,132403,"Prince Albert Junior and Infant School","2015-09-01","Birmingham City Council",{"$f":"VLOOKUP(R3586,'LA CPID Look up'!$A$3:$C$153,2,FALSE)","v":"Birmingham City Council"},"West Midlands"]
[null,null,null,null,null,null,null,null,null,null,null,null,null,null,119469,"Prince Henry's High school","2011-03-01","Worcestershire County Council",{"$f":"VLOOKUP(R3588,'LA CPID Look up'!$A$3:$C$153,2,FALSE)","v":"Worcestershire County Council"},"West Midlands"]
[null,null,null,null,null,null,null,null,null,null,null,null,null,null,132382,"Prince William School","2015-09-01","Northamptonshire County Council",{"$f":"VLOOKUP(R3589,'LA CPID Look up'!$A$3:$C$153,2,FALSE)","v":"Northamptonshire County Council"},"East of England and North-East London"]
[null,null,null,null,null,null,null,null,null,null,null,null,null,null,120378,"Princes Risborough","2011-09-01","Buckinghamshire County Council",{"$f":"VLOOKUP(R3591,'LA CPID Look up'!$A$3:$C$153,2,FALSE)","v":"Buckinghamshire County Council"},"South-Central England and North-West London"]
[null,null,null,null,null,null,null,null,null,null,null,null,null,null,120470,"Priors School, The","2011-09-01","Warwickshire County Council",{"$f":"VLOOKUP(R3592,'LA CPID Look up'!$A$3:$C$153,2,FALSE)","v":"Warwickshire County Council"},"West Midlands"]
[null,null,null,null,null,null,null,null,null,null,null,null,null,null,123890,"Priorswood Primary School","2013-04-01","Somerset County Council",{"$f":"VLOOKUP(R3594,'LA CPID Look up'!$A$3:$C$153,2,FALSE)","v":"Somerset County Council"},"South-West England"]
[null,null,null,null,null,null,null,null,null,null,null,null,null,null,121207,"Priory Academy - Dunstable","2012-06-01","Central Bedfordshire Council",{"$f":"VLOOKUP(R3595,'LA CPID Look up'!$A$3:$C$153,2,FALSE)","v":"Central Bedfordshire Unitary Authority"},"South-Central England and North-West London"]
[null,null,null,null,null,null,null,null,null,null,null,null,null,null,121063,"Priory Catholic Voluntary Academy, The","2012-03-01","Nottinghamshire County Council",{"$f":"VLOOKUP(R3597,'LA CPID Look up'!$A$3:$C$153,2,FALSE)","v":"Nottinghamshire County Council"},"East Midlands and the Humber"]
[null,null,null,null,null,null,null,null,null,null,null,null,null,null,118689,"Priory City of Lincoln Academy, The","2008-09-01","Lincolnshire County Council",{"$f":"VLOOKUP(R3598,'LA CPID Look up'!$A$3:$C$153,2,FALSE)","v":"Lincolnshire County Council"},"East Midlands and the Humber"]
[null,null,null,null,null,null,null,null,null,null,null,null,null,null,124766,"Priory Primary School - Hull","2013-11-01","Hull City Council",{"$f":"VLOOKUP(R3600,'LA CPID Look up'!$A$3:$C$153,2,FALSE)","v":"Kingston upon Hull City Council"},"East Midlands and the Humber"]
[null,null,null,null,null,null,null,null,null,null,null,null,null,null,119463,"Priory Primary School, The - Tadley","2011-02-01","Hampshire County Council",{"$f":"VLOOKUP(R3601,'LA CPID Look up'!$A$3:$C$153,2,FALSE)","v":"Hampshire County Council"},"South-East England and South London"]
[null,null,null,null,null,null,null,null,null,null,null,null,null,null,119334,"Priory Ruskin Academy, The","2010-09-01","Lincolnshire County Council",{"$f":"VLOOKUP(R3603,'LA CPID Look up'!$A$3:$C$153,2,FALSE)","v":"Lincolnshire County Council"},"East Midlands and the Humber"]
[null,null,null,null,null,null,null,null,null,null,null,null,null,null,120334,"Priory School - Bury St Edmunds","2011-09-01","Suffolk County Council",{"$f":"VLOOKUP(R3604,'LA CPID Look up'!$A$3:$C$153,2,FALSE)","v":"Suffolk County Council"},"East of England and North-East London"]
[null,null,null,null,null,null,null,null,null,null,null,null,null,null,121168,"Priory School, The - A Business and Enterprise College - Shrewsbury","2012-06-01","Shropshire Council",{"$f":"VLOOKUP(R3606,'LA CPID Look up'!$A$3:$C$153,2,FALSE)","v":"Shropshire Unitary Authority"},"West Midlands"]
[null,null,null,null,null,null,null,null,null,null,null,null,null,null,121934,"Priory School, The - Orpington","2012-05-01","Bromley London Borough Council",{"$f":"VLOOKUP(R3607,'LA CPID Look up'!$A$3:$C$153,2,FALSE)","v":"Bromley London Borough Council"},"South-East England and South London"]
[null,null,null,null,null,null,null,null,null,null,null,null,null,null,118688,"Priory Witham Academy, The","2008-09-01","Lincolnshire County Council",{"$f":"VLOOKUP(R3609,'LA CPID Look up'!$A$3:$C$153,2,FALSE)","v":"Lincolnshire County Council"},"East Midlands and the Humber"]
[null,null,null,null,null,null,null,null,null,null,null,null,null,null,119876,"Prospect School","2011-07-01","Reading Borough Council",{"$f":"VLOOKUP(R3610,'LA CPID Look up'!$A$3:$C$153,2,FALSE)","v":"Reading Borough Council"},"East of England and North-East London"]
[null,null,null,null,null,null,null,null,null,null,null,null,null,null,123281,"Purfleet Primary Academy","2013-04-01","Thurrock Borough Council",{"$f":"VLOOKUP(R3613,'LA CPID Look up'!$A$3:$C$153,2,FALSE)","v":"Thurrock Unitary Authority"},"East of England and North-East London"]
[null,null,null,null,null,null,null,null,null,null,null,null,null,null,124751,"Purford Green Primary School","2013-09-01","Essex County Council",{"$f":"VLOOKUP(R3614,'LA CPID Look up'!$A$3:$C$153,2,FALSE)","v":"Essex County Council"},"East of England and North-East London"]
[null,null,null,null,null,null,null,null,null,null,null,null,null,null,123257,"Putnoe Primary School","2013-04-01","Bedford Borough Council",{"$f":"VLOOKUP(R3616,'LA CPID Look up'!$A$3:$C$153,2,FALSE)","v":"Bedford Unitary Authority"},"South-Central England and North-West London"]
[null,null,null,null,null,null,null,null,null,null,null,null,null,null,130721,"Pye Green Valley Primary School","2014-10-01","Staffordshire County Council",{"$f":"VLOOKUP(R3617,'LA CPID Look up'!$A$3:$C$153,2,FALSE)","v":"Staffordshire County Council"},"West Midlands"]
[null,null,null,null,null,null,null,null,null,null,null,null,null,null,124674,"Pyrford Church of England Aided Primary School","2014-06-01","Surrey County Council",{"$f":"VLOOKUP(R3619,'LA CPID Look up'!$A$3:$C$153,2,FALSE)","v":"Surrey County Council"},"South-East England and South London"]
[null,null,null,null,null,null,null,null,null,null,null,null,null,null,128249,"Pyrgo Priory Primary School","2015-02-01","Havering London Borough Council",{"$f":"VLOOKUP(R3620,'LA CPID Look up'!$A$3:$C$153,2,FALSE)","v":"Havering London Borough Council"},"East of England and North-East London"]
[null,null,null,null,null,null,null,null,null,null,null,null,null,null,118641,"Q3 Academy","2008-09-01","Sandwell Metropolitan Borough Council",{"$f":"VLOOKUP(R3622,'LA CPID Look up'!$A$3:$C$153,2,FALSE)","v":"Sandwell Metropolitan Borough Council"},"West Midlands"]
[null,null,null,null,null,null,null,null,null,null,null,null,null,null,124321,"Quarry Hill Academy","2013-07-01","Thurrock Borough Council",{"$f":"VLOOKUP(R3623,'LA CPID Look up'!$A$3:$C$153,2,FALSE)","v":"Thurrock Unitary Authority"},"East of England and North-East London"]
[null,null,null,null,null,null,null,null,null,null,null,null,null,null,124310,"Quay Academy","2015-02-01","East Riding of Yorkshire Council",{"$f":"VLOOKUP(R3625,'LA CPID Look up'!$A$3:$C$153,2,FALSE)","v":"East Riding of Yorkshire Council"},"East Midlands and the Humber"]
[null,null,null,null,null,null,null,null,null,null,null,null,null,null,122950,"Quay School, The","2013-04-01","Poole Borough Council",{"$f":"VLOOKUP(R3626,'LA CPID Look up'!$A$3:$C$153,2,FALSE)","v":"Poole (Borough of)"},"South-West England"]
[null,null,null,null,null,null,null,null,null,null,null,null,null,null,131153,"Queen Eleanor's Church of England School","2014-10-01","Surrey County Council",{"$f":"VLOOKUP(R3628,'LA CPID Look up'!$A$3:$C$153,2,FALSE)","v":"Surrey County Council"},"South-East England and South London"]
[null,null,null,null,null,null,null,null,null,null,null,null,null,null,124660,"Queen Elizabeth Academy, The","2014-09-01","Warwickshire County Council",{"$f":"VLOOKUP(R3629,'LA CPID Look up'!$A$3:$C$153,2,FALSE)","v":"Warwickshire County Council"},"West Midlands"]
[null,null,null,null,null,null,null,null,null,null,null,null,null,null,120824,"Queen Elizabeth Humanities College - Bromyard","2011-12-01","Herefordshire Council",{"$f":"VLOOKUP(R3631,'LA CPID Look up'!$A$3:$C$153,2,FALSE)","v":"Herefordshire Council"},"West Midlands"]
[null,null,null,null,null,null,null,null,null,null,null,null,null,null,119387,"Queen Elizabeth School - Kirby Lonsdale","2010-12-01","Cumbria County Council",{"$f":"VLOOKUP(R3632,'LA CPID Look up'!$A$3:$C$153,2,FALSE)","v":"Cumbria County Council"},"North of England"]
[null,null,null,null,null,null,null,null,null,null,null,null,null,null,130538,"Queen Elizabeth’s Grammar School - Blackburn","2014-09-01","Blackburn with Darwen Borough Council",{"$f":"VLOOKUP(R3634,'LA CPID Look up'!$A$3:$C$153,2,FALSE)","v":"Blackburn with Darwen Unitary Authority"},"Lancashire and West Yorkshire"]
[null,null,null,null,null,null,null,null,null,null,null,null,null,null,119673,"Queen Elizabeth's - Crediton","2011-04-01","Devon County Council",{"$f":"VLOOKUP(R3635,'LA CPID Look up'!$A$3:$C$153,2,FALSE)","v":"Devon County Council"},"South-West England"]
[null,null,null,null,null,null,null,null,null,null,null,null,null,null,120131,"Queen Elizabeth's Girls' School - Barnet","2011-08-01","Barnet London Borough Council",{"$f":"VLOOKUP(R3637,'LA CPID Look up'!$A$3:$C$153,2,FALSE)","v":"Barnet London Borough Council"},"South-Central England and North-West London"]
[null,null,null,null,null,null,null,null,null,null,null,null,null,null,119972,"Queen Elizabeth's Grammar School - Ashbourne","2011-08-01","Derbyshire County Council",{"$f":"VLOOKUP(R3638,'LA CPID Look up'!$A$3:$C$153,2,FALSE)","v":"Derbyshire County Council"},"East Midlands and the Humber"]
[null,null,null,null,null,null,null,null,null,null,null,null,null,null,122791,"Queen Elizabeth's Grammar School, Horncastle","2012-09-01","Lincolnshire County Council",{"$f":"VLOOKUP(R3640,'LA CPID Look up'!$A$3:$C$153,2,FALSE)","v":"Lincolnshire County Council"},"East Midlands and the Humber"]
[null,null,null,null,null,null,null,null,null,null,null,null,null,null,124604,"Queen Elizabeth's School - Wimbourne","2014-11-01","Dorset County Council",{"$f":"VLOOKUP(R3641,'LA CPID Look up'!$A$3:$C$153,2,FALSE)","v":"Dorset County Council"},"South-West England"]
[null,null,null,null,null,null,null,null,null,null,null,null,null,null,119629,"Queen Katherine School, The","2011-04-01","Cumbria County Council",{"$f":"VLOOKUP(R3644,'LA CPID Look up'!$A$3:$C$153,2,FALSE)","v":"Cumbria County Council"},"North of England"]
[null,null,null,null,null,null,null,null,null,null,null,null,null,null,119780,"Queen Mary's Grammar School","2011-06-01","Walsall Metropolitan Borough Council",{"$f":"VLOOKUP(R3645,'LA CPID Look up'!$A$3:$C$153,2,FALSE)","v":"Walsall Metropolitan Borough Council"},"West Midlands"]
[null,null,null,null,null,null,null,null,null,null,null,null,null,null,124671,"Queen's CofE Academy","2014-01-01","Warwickshire County Council",{"$f":"VLOOKUP(R3647,'LA CPID Look up'!$A$3:$C$153,2,FALSE)","v":"Warwickshire County Council"},"West Midlands"]
[null,null,null,null,null,null,null,null,null,null,null,null,null,null,130728,"Queen's Crescent Primary School","2014-09-01","Wiltshire Council",{"$f":"VLOOKUP(R3648,'LA CPID Look up'!$A$3:$C$153,2,FALSE)","v":"Wiltshire Unitary Authority"},"South-West England"]
[null,null,null,null,null,null,null,null,null,null,null,null,null,null,122570,"Queen's Park Academy - Bournemouth","2012-10-01","Bournemouth Borough Council",{"$f":"VLOOKUP(R3650,'LA CPID Look up'!$A$3:$C$153,2,FALSE)","v":"Bournemouth Council"},"South-West England"]
[null,null,null,null,null,null,null,null,null,null,null,null,null,null,122740,"Queens Park Community School","2012-09-01","Brent London Borough Council",{"$f":"VLOOKUP(R3651,'LA CPID Look up'!$A$3:$C$153,2,FALSE)","v":"Brent London Borough Council"},"South-Central England and North-West London"]
[null,null,null,null,null,null,null,null,null,null,null,null,null,null,122844,"Queens Road Academy","2013-09-01","Barnsley Metropolitan Borough Council",{"$f":"VLOOKUP(R3653,'LA CPID Look up'!$A$3:$C$153,2,FALSE)","v":"Barnsley Metropolitan Borough Council"},"East Midlands and the Humber"]
[null,null,null,null,null,null,null,null,null,null,null,null,null,null,119877,"Queens' School","2011-07-01","Hertfordshire County Council",{"$f":"VLOOKUP(R3654,'LA CPID Look up'!$A$3:$C$153,2,FALSE)","v":"Hertfordshire County Council"},"East of England and North-East London"]
[null,null,null,null,null,null,null,null,null,null,null,null,null,null,122873,"Queensmead Primary Academy","2012-11-01","Leicester City Council",{"$f":"VLOOKUP(R3656,'LA CPID Look up'!$A$3:$C$153,2,FALSE)","v":"Leicester City Council"},"East Midlands and the Humber"]
[null,null,null,null,null,null,null,null,null,null,null,null,null,null,119731,"Queensmead School","2011-05-01","Hillingdon London Borough Council",{"$f":"VLOOKUP(R3657,'LA CPID Look up'!$A$3:$C$153,2,FALSE)","v":"Hillingdon London Borough Council"},"East of England and North-East London"]
[null,null,null,null,null,null,null,null,null,null,null,null,null,null,122369,"Queniborough Church of England Primary School","2012-11-01","Leicestershire County Council",{"$f":"VLOOKUP(R3659,'LA CPID Look up'!$A$3:$C$153,2,FALSE)","v":"Leicestershire County Council"},"East Midlands and the Humber"]
[null,null,null,null,null,null,null,null,null,null,null,null,null,null,119329,"Quest Academy, The","2010-09-01","Croydon London Borough Council",{"$f":"VLOOKUP(R3660,'LA CPID Look up'!$A$3:$C$153,2,FALSE)","v":"Croydon London Borough Council"},"South-East England and South London"]
[null,null,null,null,null,null,null,null,null,null,null,null,null,null,127590,"Quinta Primary School, The","2014-01-01","Cheshire East Council",{"$f":"VLOOKUP(R3662,'LA CPID Look up'!$A$3:$C$153,2,FALSE)","v":"Cheshire East Unitary Authority"},"West Midlands"]
[null,null,null,null,null,null,null,null,null,null,null,null,null,null,120595,"Quintin Kynaston Academy","2011-11-01","Westminster City Council",{"$f":"VLOOKUP(R3663,'LA CPID Look up'!$A$3:$C$153,2,FALSE)","v":"Westminster City Council"},"East of England and North-East London"]
[null,null,null,null,null,null,null,null,null,null,null,null,null,null,119354,"R A Butler Junior School","2010-11-01","Essex County Council",{"$f":"VLOOKUP(R3665,'LA CPID Look up'!$A$3:$C$153,2,FALSE)","v":"Essex County Council"},"East of England and North-East London"]
[null,null,null,null,null,null,null,null,null,null,null,null,null,null,122244,"Race Leys Junior School","2012-09-01","Warwickshire County Council",{"$f":"VLOOKUP(R3666,'LA CPID Look up'!$A$3:$C$153,2,FALSE)","v":"Warwickshire County Council"},"West Midlands"]
[null,null,null,null,null,null,null,null,null,null,null,null,null,null,124288,"Radcliffe Primary School","2014-01-01","Bury Metropolitan Borough Council",{"$f":"VLOOKUP(R3668,'LA CPID Look up'!$A$3:$C$153,2,FALSE)","v":"Bury Metropolitan Borough Council"},"Lancashire and West Yorkshire"]
[null,null,null,null,null,null,null,null,null,null,null,null,null,null,126326,"Radford Primary Academy","2014-01-01","Coventry City Council",{"$f":"VLOOKUP(R3669,'LA CPID Look up'!$A$3:$C$153,2,FALSE)","v":"Coventry City Council"},"West Midlands"]
[null,null,null,null,null,null,null,null,null,null,null,null,null,null,120320,"Rainbow Primary School","2011-09-01","Bradford Metropolitan District Council",{"$f":"VLOOKUP(R3672,'LA CPID Look up'!$A$3:$C$153,2,FALSE)","v":"Bradford City Council"},"Lancashire and West Yorkshire"]
[null,null,null,null,null,null,null,null,null,null,null,null,null,null,119864,"Rainham Mark Grammar School","2011-07-01","Medway Council",{"$f":"VLOOKUP(R3673,'LA CPID Look up'!$A$3:$C$153,2,FALSE)","v":"Medway Towns Unitary Authority (The)"},"South-East England and South London"]
[null,null,null,null,null,null,null,null,null,null,null,null,null,null,120014,"Raleigh School, The","2011-08-01","Surrey County Council",{"$f":"VLOOKUP(R3675,'LA CPID Look up'!$A$3:$C$153,2,FALSE)","v":"Surrey County Council"},"South-East England and South London"]
[null,null,null,null,null,null,null,null,null,null,null,null,null,null,122732,"Ralph Allen School","2012-08-01","Bath & North East Somerset Council",{"$f":"VLOOKUP(R3676,'LA CPID Look up'!$A$3:$C$153,2,FALSE)","v":"Bath & North East Somerset Council"},"South-West England"]
[null,null,null,null,null,null,null,null,null,null,null,null,null,null,125173,"Ramnoth Junior School","2013-10-01","Cambridgeshire County Council",{"$f":"VLOOKUP(R3678,'LA CPID Look up'!$A$3:$C$153,2,FALSE)","v":"Cambridgeshire County Council"},"East of England and North-East London"]
[null,null,null,null,null,null,null,null,null,null,null,null,null,null,120966,"Ramsey Academy, Halstead, The","2013-09-01","Essex County Council",{"$f":"VLOOKUP(R3679,'LA CPID Look up'!$A$3:$C$153,2,FALSE)","v":"Essex County Council"},"East of England and North-East London"]
[null,null,null,null,null,null,null,null,null,null,null,null,null,null,120267,"Ranelagh School","2011-08-01","Bracknell Forest Council",{"$f":"VLOOKUP(R3681,'LA CPID Look up'!$A$3:$C$153,2,FALSE)","v":"Bracknell Forest Borough Council"},"South-Central England and North-West London"]
[null,null,null,null,null,null,null,null,null,null,null,null,null,null,120526,"Range High School","2011-11-01","Sefton Metropolitan Borough Council",{"$f":"VLOOKUP(R3682,'LA CPID Look up'!$A$3:$C$153,2,FALSE)","v":"Sefton Metropolitan Borough Council"},"Lancashire and West Yorkshire"]
[null,null,null,null,null,null,null,null,null,null,null,null,null,null,120446,"Rastrick High School","2011-09-01","Calderdale Metropolitan Borough Council",{"$f":"VLOOKUP(R3684,'LA CPID Look up'!$A$3:$C$153,2,FALSE)","v":"Calderdale Metropolitan Borough Council"},"Lancashire and West Yorkshire"]
[null,null,null,null,null,null,null,null,null,null,null,null,null,null,123085,"Ratby Primary School","2013-02-01","Leicestershire County Council",{"$f":"VLOOKUP(R3685,'LA CPID Look up'!$A$3:$C$153,2,FALSE)","v":"Leicestershire County Council"},"East Midlands and the Humber"]
[null,null,null,null,null,null,null,null,null,null,null,null,null,null,122093,"Ratton School","2012-08-01","East Sussex County Council",{"$f":"VLOOKUP(R3687,'LA CPID Look up'!$A$3:$C$153,2,FALSE)","v":"East Sussex County Council"},"South-East England and South London"]
[null,null,null,null,null,null,null,null,null,null,null,null,null,null,122082,"Rauceby Church of England Primary School","2012-07-01","Lincolnshire County Council",{"$f":"VLOOKUP(R3688,'LA CPID Look up'!$A$3:$C$153,2,FALSE)","v":"Lincolnshire County Council"},"East Midlands and the Humber"]
[null,null,null,null,null,null,null,null,null,null,null,null,null,null,122937,"Ravens Academy","2013-09-01","Essex County Council",{"$f":"VLOOKUP(R3690,'LA CPID Look up'!$A$3:$C$153,2,FALSE)","v":"Essex County Council"},"East of England and North-East London"]
[null,null,null,null,null,null,null,null,null,null,null,null,null,null,119606,"Ravens Wood School","2011-04-01","Bromley London Borough Council",{"$f":"VLOOKUP(R3691,'LA CPID Look up'!$A$3:$C$153,2,FALSE)","v":"Bromley London Borough Council"},"South-East England and South London"]
[null,null,null,null,null,null,null,null,null,null,null,null,null,null,131236,"Ravenscote Community Junior School","2014-12-01","Surrey County Council",{"$f":"VLOOKUP(R3693,'LA CPID Look up'!$A$3:$C$153,2,FALSE)","v":"Surrey County Council"},"South-East England and South London"]
[null,null,null,null,null,null,null,null,null,null,null,null,null,null,122358,"Rawlett School, The","2012-09-01","Staffordshire County Council",{"$f":"VLOOKUP(R3694,'LA CPID Look up'!$A$3:$C$153,2,FALSE)","v":"Staffordshire County Council"},"West Midlands"]
[null,null,null,null,null,null,null,null,null,null,null,null,null,null,129887,"Rawmarsh Ashwood Primary School","2014-04-01","Rotherham Metropolitan Borough Council",{"$f":"VLOOKUP(R3696,'LA CPID Look up'!$A$3:$C$153,2,FALSE)","v":"Rotherham Borough Council"},"East Midlands and the Humber"]
[null,null,null,null,null,null,null,null,null,null,null,null,null,null,129727,"Rawmarsh Community School","2014-08-01","Rotherham Metropolitan Borough Council",{"$f":"VLOOKUP(R3697,'LA CPID Look up'!$A$3:$C$153,2,FALSE)","v":"Rotherham Borough Council"},"East Midlands and the Humber"]
[null,null,null,null,null,null,null,null,null,null,null,null,null,null,122508,"Raynsford Church of England Academy","2013-04-01","Central Bedfordshire Council",{"$f":"VLOOKUP(R3699,'LA CPID Look up'!$A$3:$C$153,2,FALSE)","v":"Central Bedfordshire Unitary Authority"},"South-Central England and North-West London"]
[null,null,null,null,null,null,null,null,null,null,null,null,null,null,122007,"Reach Academy Feltham","2012-09-01","Hounslow London Borough Council",{"$f":"VLOOKUP(R3700,'LA CPID Look up'!$A$3:$C$153,2,FALSE)","v":"Hounslow London Borough Council"},"East of England and North-East London"]
[null,null,null,null,null,null,null,null,null,null,null,null,null,null,119465,"Reading School","2011-02-01","Reading Borough Council",{"$f":"VLOOKUP(R3703,'LA CPID Look up'!$A$3:$C$153,2,FALSE)","v":"Reading Borough Council"},"East of England and North-East London"]
[null,null,null,null,null,null,null,null,null,null,null,null,null,null,122591,"Reaside Academy","2012-12-01","Birmingham City Council",{"$f":"VLOOKUP(R3704,'LA CPID Look up'!$A$3:$C$153,2,FALSE)","v":"Birmingham City Council"},"West Midlands"]
[null,null,null,null,null,null,null,null,null,null,null,null,null,null,123258,"Red Hill Field Primary School","2013-03-01","Leicestershire County Council",{"$f":"VLOOKUP(R3706,'LA CPID Look up'!$A$3:$C$153,2,FALSE)","v":"Leicestershire County Council"},"East Midlands and the Humber"]
[null,null,null,null,null,null,null,null,null,null,null,null,null,null,119144,"Red House Academy","2009-09-01","Sunderland City Council",{"$f":"VLOOKUP(R3707,'LA CPID Look up'!$A$3:$C$153,2,FALSE)","v":"Sunderland City Metropolitan Borough Council"},"North of England"]
[null,null,null,null,null,null,null,null,null,null,null,null,null,null,120356,"Redby Primary School","2011-09-01","Sunderland City Council",{"$f":"VLOOKUP(R3709,'LA CPID Look up'!$A$3:$C$153,2,FALSE)","v":"Sunderland City Metropolitan Borough Council"},"North of England"]
[null,null,null,null,null,null,null,null,null,null,null,null,null,null,123071,"Redcar Academy","2012-12-01","Redcar and Cleveland Borough Council",{"$f":"VLOOKUP(R3710,'LA CPID Look up'!$A$3:$C$153,2,FALSE)","v":"Redcar and Cleveland Borough Council"},"North of England"]
[null,null,null,null,null,null,null,null,null,null,null,null,null,null,120733,"Reddish Vale Technology College","2012-02-01","Stockport Metropolitan Borough Council",{"$f":"VLOOKUP(R3712,'LA CPID Look up'!$A$3:$C$153,2,FALSE)","v":"Stockport Metropolitan Borough Council"},"Lancashire and West Yorkshire"]
[null,null,null,null,null,null,null,null,null,null,null,null,null,null,130413,"Redfield Educate Together Primary Academy","2014-09-01","Bristol City Council",{"$f":"VLOOKUP(R3713,'LA CPID Look up'!$A$3:$C$153,2,FALSE)","v":"Bristol City Council"},"South-West England"]
[null,null,null,null,null,null,null,null,null,null,null,null,null,null,121006,"Redhill Primary School","2012-03-01","Derbyshire County Council",{"$f":"VLOOKUP(R3715,'LA CPID Look up'!$A$3:$C$153,2,FALSE)","v":"Derbyshire County Council"},"East Midlands and the Humber"]
[null,null,null,null,null,null,null,null,null,null,null,null,null,null,123889,"Redhill School and Specialist Language College","2013-07-01","Dudley Metropolitan Borough Council",{"$f":"VLOOKUP(R3716,'LA CPID Look up'!$A$3:$C$153,2,FALSE)","v":"Dudley Metropolitan Borough Council"},"West Midlands"]
[null,null,null,null,null,null,null,null,null,null,null,null,null,null,120132,"Redmarley Church of England Primary School","2011-08-01","Gloucestershire County Council",{"$f":"VLOOKUP(R3718,'LA CPID Look up'!$A$3:$C$153,2,FALSE)","v":"Gloucestershire County Council"},"South-West England"]
[null,null,null,null,null,null,null,null,null,null,null,null,null,null,130632,"Redmile Church of England Primary School","2014-12-01","Leicestershire County Council",{"$f":"VLOOKUP(R3719,'LA CPID Look up'!$A$3:$C$153,2,FALSE)","v":"Leicestershire County Council"},"East Midlands and the Humber"]
[null,null,null,null,null,null,null,null,null,null,null,null,null,null,120878,"Redriff Primary School","2011-11-01","Southwark London Borough Council",{"$f":"VLOOKUP(R3721,'LA CPID Look up'!$A$3:$C$153,2,FALSE)","v":"Southwark London Borough Council"},"South-East England and South London"]
[null,null,null,null,null,null,null,null,null,null,null,null,null,null,119903,"Redstart Primary School, The","2011-07-01","Somerset County Council",{"$f":"VLOOKUP(R3722,'LA CPID Look up'!$A$3:$C$153,2,FALSE)","v":"Somerset County Council"},"South-West England"]
[null,null,null,null,null,null,null,null,null,null,null,null,null,null,122382,"Reepham High School and College","2012-10-01","Norfolk County Council",{"$f":"VLOOKUP(R3724,'LA CPID Look up'!$A$3:$C$153,2,FALSE)","v":"Norfolk County Council"},"East of England and North-East London"]
[null,null,null,null,null,null,null,null,null,null,null,null,null,null,125024,"Regency High School","2013-10-01","Worcestershire County Council",{"$f":"VLOOKUP(R3725,'LA CPID Look up'!$A$3:$C$153,2,FALSE)","v":"Worcestershire County Council"},"West Midlands"]
[null,null,null,null,null,null,null,null,null,null,null,null,null,null,120908,"Regis School, The","2012-01-01","West Sussex County Council",{"$f":"VLOOKUP(R3727,'LA CPID Look up'!$A$3:$C$153,2,FALSE)","v":"West Sussex County Council"},"South-East England and South London"]
[null,null,null,null,null,null,null,null,null,null,null,null,null,null,119836,"Reid Street Primary School","2011-07-01","Darlington Borough Council",{"$f":"VLOOKUP(R3728,'LA CPID Look up'!$A$3:$C$153,2,FALSE)","v":"Darlington Borough Council"},"North of England"]
[null,null,null,null,null,null,null,null,null,null,null,null,null,null,120117,"Retford Oaks Academy","2012-04-01","Nottinghamshire County Council",{"$f":"VLOOKUP(R3731,'LA CPID Look up'!$A$3:$C$153,2,FALSE)","v":"Nottinghamshire County Council"},"East Midlands and the Humber"]
[null,null,null,null,null,null,null,null,null,null,null,null,null,null,129410,"Revoe Learning Academy","2014-04-01","Blackpool Council",{"$f":"VLOOKUP(R3732,'LA CPID Look up'!$A$3:$C$153,2,FALSE)","v":"Blackpool Unitary Authority"},"Lancashire and West Yorkshire"]
[null,null,null,null,null,null,null,null,null,null,null,null,null,null,124663,"Reynolds Primary Academy","2013-09-01","North East Lincolnshire Council",{"$f":"VLOOKUP(R3734,'LA CPID Look up'!$A$3:$C$153,2,FALSE)","v":"North East Lincolnshire Council"},"East Midlands and the Humber"]
[null,null,null,null,null,null,null,null,null,null,null,null,null,null,122347,"Ribbon School","2012-09-01","Durham County Council",{"$f":"VLOOKUP(R3735,'LA CPID Look up'!$A$3:$C$153,2,FALSE)","v":"County Durham Unitary Authority"},"North of England"]
[null,null,null,null,null,null,null,null,null,null,null,null,null,null,120299,"Richard Challoner School","2011-08-17","Royal Borough of Kingston Upon Thames Council",{"$f":"VLOOKUP(R3737,'LA CPID Look up'!$A$3:$C$153,2,FALSE)","v":"Kingston upon Thames Council (Royal Borough of)"},"South-East England and South London"]
[null,null,null,null,null,null,null,null,null,null,null,null,null,null,132440,"Richard Crosse CofE Primary School, The","2015-08-01","Staffordshire County Council",{"$f":"VLOOKUP(R3738,'LA CPID Look up'!$A$3:$C$153,2,FALSE)","v":"Staffordshire County Council"},"West Midlands"]
[null,null,null,null,null,null,null,null,null,null,null,null,null,null,118687,"Richard Rose Central Academy","2008-09-04","Cumbria County Council",{"$f":"VLOOKUP(R3740,'LA CPID Look up'!$A$3:$C$153,2,FALSE)","v":"Cumbria County Council"},"North of England"]
[null,null,null,null,null,null,null,null,null,null,null,null,null,null,118691,"Richard Rose Morton Academy","2008-09-04","Cumbria County Council",{"$f":"VLOOKUP(R3741,'LA CPID Look up'!$A$3:$C$153,2,FALSE)","v":"Cumbria County Council"},"North of England"]
[null,null,null,null,null,null,null,null,null,null,null,null,null,null,127201,"Richmond Academy - Sheerness","2014-04-01","Kent County Council",{"$f":"VLOOKUP(R3743,'LA CPID Look up'!$A$3:$C$153,2,FALSE)","v":"Kent County Council"},"South-East England and South London"]
[null,null,null,null,null,null,null,null,null,null,null,null,null,null,129570,"Richmond Hill Primary Academy","2014-02-01","Doncaster Metropolitan Borough Council",{"$f":"VLOOKUP(R3744,'LA CPID Look up'!$A$3:$C$153,2,FALSE)","v":"Doncaster Metropolitan Borough Council"},"East Midlands and the Humber"]
[null,null,null,null,null,null,null,null,null,null,null,null,null,null,123163,"Richmond Primary School","2014-11-01","Oldham Metropolitan Borough Council",{"$f":"VLOOKUP(R3746,'LA CPID Look up'!$A$3:$C$153,2,FALSE)","v":"Oldham Metropolitan Borough Council"},"Lancashire and West Yorkshire"]
[null,null,null,null,null,null,null,null,null,null,null,null,null,null,122608,"Rickley Park Primary School","2012-11-01","Milton Keynes Council",{"$f":"VLOOKUP(R3747,'LA CPID Look up'!$A$3:$C$153,2,FALSE)","v":"Milton Keynes Council"},"East of England and North-East London"]
[null,null,null,null,null,null,null,null,null,null,null,null,null,null,121932,"Riddlesdown Collegiate","2012-06-01","Croydon London Borough Council",{"$f":"VLOOKUP(R3749,'LA CPID Look up'!$A$3:$C$153,2,FALSE)","v":"Croydon London Borough Council"},"South-East England and South London"]
[null,null,null,null,null,null,null,null,null,null,null,null,null,null,121882,"Ridge Academy, The","2012-09-01","Gloucestershire County Council",{"$f":"VLOOKUP(R3750,'LA CPID Look up'!$A$3:$C$153,2,FALSE)","v":"Gloucestershire County Council"},"South-West England"]
[null,null,null,null,null,null,null,null,null,null,null,null,null,null,122179,"Ridgeway Primary Academy - Market Harborough","2012-07-01","Leicestershire County Council",{"$f":"VLOOKUP(R3752,'LA CPID Look up'!$A$3:$C$153,2,FALSE)","v":"Leicestershire County Council"},"East Midlands and the Humber"]
[null,null,null,null,null,null,null,null,null,null,null,null,null,null,123050,"Ridgeway Primary School - South Shields","2013-02-01","South Tyneside Council",{"$f":"VLOOKUP(R3753,'LA CPID Look up'!$A$3:$C$153,2,FALSE)","v":"South Tyneside Council"},"North of England"]
[null,null,null,null,null,null,null,null,null,null,null,null,null,null,120160,"Ridgeway School & Sixth Form College, The - Swindon","2011-08-01","Swindon Borough Council",{"$f":"VLOOKUP(R3755,'LA CPID Look up'!$A$3:$C$153,2,FALSE)","v":"Swindon Unitary Authority"},"South-West England"]
[null,null,null,null,null,null,null,null,null,null,null,null,null,null,123821,"Ridgewood High School - Stourbridge","2015-03-01","Dudley Metropolitan Borough Council",{"$f":"VLOOKUP(R3756,'LA CPID Look up'!$A$3:$C$153,2,FALSE)","v":"Dudley Metropolitan Borough Council"},"West Midlands"]
[null,null,null,null,null,null,null,null,null,null,null,null,null,null,121983,"Rimon Jewish Primary School","2012-09-01","Barnet London Borough Council",{"$f":"VLOOKUP(R3758,'LA CPID Look up'!$A$3:$C$153,2,FALSE)","v":"Barnet London Borough Council"},"South-Central England and North-West London"]
[null,null,null,null,null,null,null,null,null,null,null,null,null,null,120232,"Ringmer Community College","2011-08-01","East Sussex County Council",{"$f":"VLOOKUP(R3759,'LA CPID Look up'!$A$3:$C$153,2,FALSE)","v":"East Sussex County Council"},"South-East England and South London"]
[null,null,null,null,null,null,null,null,null,null,null,null,null,null,130616,"Ripley Academy, The","2014-09-01","Derbyshire County Council",{"$f":"VLOOKUP(R3762,'LA CPID Look up'!$A$3:$C$153,2,FALSE)","v":"Derbyshire County Council"},"East Midlands and the Humber"]
[null,null,null,null,null,null,null,null,null,null,null,null,null,null,119732,"Ripley St Thomas Church of England Academy","2011-05-01","Lancashire County Council",{"$f":"VLOOKUP(R3763,'LA CPID Look up'!$A$3:$C$153,2,FALSE)","v":"Lancashire County Council"},"Lancashire and West Yorkshire"]
[null,null,null,null,null,null,null,null,null,null,null,null,null,null,130551,"Rise Free School, The","2014-09-01","Hounslow London Borough Council",{"$f":"VLOOKUP(R3765,'LA CPID Look up'!$A$3:$C$153,2,FALSE)","v":"Hounslow London Borough Council"},"East of England and North-East London"]
[null,null,null,null,null,null,null,null,null,null,null,null,null,null,130701,"Rise Park Infant School","2014-09-01","Havering London Borough Council",{"$f":"VLOOKUP(R3766,'LA CPID Look up'!$A$3:$C$153,2,FALSE)","v":"Havering London Borough Council"},"East of England and North-East London"]
[null,null,null,null,null,null,null,null,null,null,null,null,null,null,123332,"River Bank Primary School","2013-09-01","Luton Borough Council",{"$f":"VLOOKUP(R3768,'LA CPID Look up'!$A$3:$C$153,2,FALSE)","v":"Luton Borough Council"},"East of England and North-East London"]
[null,null,null,null,null,null,null,null,null,null,null,null,null,null,124984,"River Beach Primary School","2013-09-01","West Sussex County Council",{"$f":"VLOOKUP(R3769,'LA CPID Look up'!$A$3:$C$153,2,FALSE)","v":"West Sussex County Council"},"South-East England and South London"]
[null,null,null,null,null,null,null,null,null,null,null,null,null,null,131375,"Riverbank School","2015-01-01","Coventry City Council",{"$f":"VLOOKUP(R3771,'LA CPID Look up'!$A$3:$C$153,2,FALSE)","v":"Coventry City Council"},"West Midlands"]
[null,null,null,null,null,null,null,null,null,null,null,null,null,null,123192,"Riverley Primary School","2013-11-01","Waltham Forest London Borough Council",{"$f":"VLOOKUP(R3772,'LA CPID Look up'!$A$3:$C$153,2,FALSE)","v":"Waltham Forest London Borough Council"},"East of England and North-East London"]
[null,null,null,null,null,null,null,null,null,null,null,null,null,null,120009,"Rivers Academy West London","2011-08-01","Hounslow London Borough Council",{"$f":"VLOOKUP(R3774,'LA CPID Look up'!$A$3:$C$153,2,FALSE)","v":"Hounslow London Borough Council"},"East of England and North-East London"]
[null,null,null,null,null,null,null,null,null,null,null,null,null,null,126483,"Rivers Primary Academy","2013-11-01","Walsall Metropolitan Borough Council",{"$f":"VLOOKUP(R3775,'LA CPID Look up'!$A$3:$C$153,2,FALSE)","v":"Walsall Metropolitan Borough Council"},"West Midlands"]
[null,null,null,null,null,null,null,null,null,null,null,null,null,null,133033,"Riverside Bridge School","2015-09-01","Barking and Dagenham London Borough Council",{"$f":"VLOOKUP(R3777,'LA CPID Look up'!$A$3:$C$153,2,FALSE)","v":"Barking & Dagenham London Borough Council"},"East of England and North-East London"]
[null,null,null,null,null,null,null,null,null,null,null,null,null,null,130368,"Riverside Community Primary School Birstall","2014-04-01","Leicestershire County Council",{"$f":"VLOOKUP(R3778,'LA CPID Look up'!$A$3:$C$153,2,FALSE)","v":"Leicestershire County Council"},"East Midlands and the Humber"]
[null,null,null,null,null,null,null,null,null,null,null,null,null,null,133031,"Riverside Primary School - Barking","2015-09-01","Barking and Dagenham London Borough Council",{"$f":"VLOOKUP(R3780,'LA CPID Look up'!$A$3:$C$153,2,FALSE)","v":"Barking & Dagenham London Borough Council"},"East of England and North-East London"]
[null,null,null,null,null,null,null,null,null,null,null,null,null,null,131677,"Riverside Primary School and Early Years Unit","2015-04-01","Nottingham City Council",{"$f":"VLOOKUP(R3781,'LA CPID Look up'!$A$3:$C$153,2,FALSE)","v":"Nottingham City Council"},"East Midlands and the Humber"]
[null,null,null,null,null,null,null,null,null,null,null,null,null,null,127343,"Riversides School - Worcester","2014-01-01","Worcestershire County Council",{"$f":"VLOOKUP(R3783,'LA CPID Look up'!$A$3:$C$153,2,FALSE)","v":"Worcestershire County Council"},"West Midlands"]
[null,null,null,null,null,null,null,null,null,null,null,null,null,null,131662,"Riverview Infant School","2015-10-01","Kent County Council",{"$f":"VLOOKUP(R3784,'LA CPID Look up'!$A$3:$C$153,2,FALSE)","v":"Kent County Council"},"South-East England and South London"]
[null,null,null,null,null,null,null,null,null,null,null,null,null,null,131360,"Robartes ACE Academy","2015-01-01","Cornwall Council",{"$f":"VLOOKUP(R3786,'LA CPID Look up'!$A$3:$C$153,2,FALSE)","v":"Cornwall Unitary Authority"},"South-West England"]
[null,null,null,null,null,null,null,null,null,null,null,null,null,null,122742,"Robert Bakewell Primary School and Community Centre","2013-12-01","Leicestershire County Council",{"$f":"VLOOKUP(R3787,'LA CPID Look up'!$A$3:$C$153,2,FALSE)","v":"Leicestershire County Council"},"East Midlands and the Humber"]
[null,null,null,null,null,null,null,null,null,null,null,null,null,null,120246,"Robert Drake Primary School, The","2011-08-01","Essex County Council",{"$f":"VLOOKUP(R3790,'LA CPID Look up'!$A$3:$C$153,2,FALSE)","v":"Essex County Council"},"East of England and North-East London"]
[null,null,null,null,null,null,null,null,null,null,null,null,null,null,122747,"Robert Fitzroy Academy","2012-09-01","Croydon London Borough Council",{"$f":"VLOOKUP(R3791,'LA CPID Look up'!$A$3:$C$153,2,FALSE)","v":"Croydon London Borough Council"},"South-East England and South London"]
[null,null,null,null,null,null,null,null,null,null,null,null,null,null,121891,"Robert Napier School, The","2012-09-01","Medway Council",{"$f":"VLOOKUP(R3793,'LA CPID Look up'!$A$3:$C$153,2,FALSE)","v":"Medway Towns Unitary Authority (The)"},"South-East England and South London"]
[null,null,null,null,null,null,null,null,null,null,null,null,null,null,123334,"Robert Owen Academy","2013-09-01","Herefordshire Council",{"$f":"VLOOKUP(R3794,'LA CPID Look up'!$A$3:$C$153,2,FALSE)","v":"Herefordshire Council"},"West Midlands"]
[null,null,null,null,null,null,null,null,null,null,null,null,null,null,124206,"Robert Wilkinson Primary School","2013-12-01","City of York Council",{"$f":"VLOOKUP(R3796,'LA CPID Look up'!$A$3:$C$153,2,FALSE)","v":"City of York Council"},"East Midlands and the Humber"]
[null,null,null,null,null,null,null,null,null,null,null,null,null,null,125260,"Robin Hood Academy","2013-10-01","Birmingham City Council",{"$f":"VLOOKUP(R3797,'LA CPID Look up'!$A$3:$C$153,2,FALSE)","v":"Birmingham City Council"},"West Midlands"]
[null,null,null,null,null,null,null,null,null,null,null,null,null,null,130861,"Robsack Wood Primary Academy, The","2014-09-01","East Sussex County Council",{"$f":"VLOOKUP(R3799,'LA CPID Look up'!$A$3:$C$153,2,FALSE)","v":"East Sussex County Council"},"South-East England and South London"]
[null,null,null,null,null,null,null,null,null,null,null,null,null,null,119362,"Rochester Grammar School, The","2010-11-01","Medway Council",{"$f":"VLOOKUP(R3800,'LA CPID Look up'!$A$3:$C$153,2,FALSE)","v":"Medway Towns Unitary Authority (The)"},"South-East England and South London"]
[null,null,null,null,null,null,null,null,null,null,null,null,null,null,124646,"Rockingham Primary School","2013-08-01","Northamptonshire County Council",{"$f":"VLOOKUP(R3802,'LA CPID Look up'!$A$3:$C$153,2,FALSE)","v":"Northamptonshire County Council"},"East of England and North-East London"]
[null,null,null,null,null,null,null,null,null,null,null,null,null,null,120743,"Rockwood Academy","2012-04-01","Birmingham City Council",{"$f":"VLOOKUP(R3803,'LA CPID Look up'!$A$3:$C$153,2,FALSE)","v":"Birmingham City Council"},"West Midlands"]
[null,null,null,null,null,null,null,null,null,null,null,null,null,null,121904,"Rodbourne Cheney Primary School","2012-07-01","Swindon Borough Council",{"$f":"VLOOKUP(R3805,'LA CPID Look up'!$A$3:$C$153,2,FALSE)","v":"Swindon Unitary Authority"},"South-West England"]
[null,null,null,null,null,null,null,null,null,null,null,null,null,null,120842,"Rodillian Academy","2012-07-01","Leeds City Council",{"$f":"VLOOKUP(R3806,'LA CPID Look up'!$A$3:$C$153,2,FALSE)","v":"Leeds City Council"},"Lancashire and West Yorkshire"]
[null,null,null,null,null,null,null,null,null,null,null,null,null,null,129443,"Rolph CofE Primary School","2014-01-01","Essex County Council",{"$f":"VLOOKUP(R3808,'LA CPID Look up'!$A$3:$C$153,2,FALSE)","v":"Essex County Council"},"East of England and North-East London"]
[null,null,null,null,null,null,null,null,null,null,null,null,null,null,120239,"Romsey School, The","2011-08-01","Hampshire County Council",{"$f":"VLOOKUP(R3809,'LA CPID Look up'!$A$3:$C$153,2,FALSE)","v":"Hampshire County Council"},"South-East England and South London"]
[null,null,null,null,null,null,null,null,null,null,null,null,null,null,120168,"Rookery School","2011-08-01","Birmingham City Council",{"$f":"VLOOKUP(R3811,'LA CPID Look up'!$A$3:$C$153,2,FALSE)","v":"Birmingham City Council"},"West Midlands"]
[null,null,null,null,null,null,null,null,null,null,null,null,null,null,120198,"Rooks Heath College","2011-08-01","Harrow London Borough Council",{"$f":"VLOOKUP(R3812,'LA CPID Look up'!$A$3:$C$153,2,FALSE)","v":"Harrow London Borough Council"},"East of England and North-East London"]
[null,null,null,null,null,null,null,null,null,null,null,null,null,null,130901,"Rosa Street Primary School","2014-09-01","Durham County Council",{"$f":"VLOOKUP(R3814,'LA CPID Look up'!$A$3:$C$153,2,FALSE)","v":"County Durham Unitary Authority"},"North of England"]
[null,null,null,null,null,null,null,null,null,null,null,null,null,null,120419,"Rosary Catholic Primary School, The","2011-09-01","Gloucestershire County Council",{"$f":"VLOOKUP(R3815,'LA CPID Look up'!$A$3:$C$153,2,FALSE)","v":"Gloucestershire County Council"},"South-West England"]
[null,null,null,null,null,null,null,null,null,null,null,null,null,null,131208,"Rose Green Junior School","2014-12-01","West Sussex County Council",{"$f":"VLOOKUP(R3817,'LA CPID Look up'!$A$3:$C$153,2,FALSE)","v":"West Sussex County Council"},"South-East England and South London"]
[null,null,null,null,null,null,null,null,null,null,null,null,null,null,125009,"Rose Wood Academy","2014-01-01","Middlesbrough Council",{"$f":"VLOOKUP(R3818,'LA CPID Look up'!$A$3:$C$153,2,FALSE)","v":"Middlesbrough Council"},"North of England"]
[null,null,null,null,null,null,null,null,null,null,null,null,null,null,131126,"Roseberry CP Academy","2014-10-01","North Yorkshire County Council",{"$f":"VLOOKUP(R3821,'LA CPID Look up'!$A$3:$C$153,2,FALSE)","v":"North Yorkshire County Council"},"North of England"]
[null,null,null,null,null,null,null,null,null,null,null,null,null,null,120707,"Rosebery School","2011-12-01","Surrey County Council",{"$f":"VLOOKUP(R3822,'LA CPID Look up'!$A$3:$C$153,2,FALSE)","v":"Surrey County Council"},"South-East England and South London"]
[null,null,null,null,null,null,null,null,null,null,null,null,null,null,131641,"Rosedale Primary School","2014-11-01","Hillingdon London Borough Council",{"$f":"VLOOKUP(R3824,'LA CPID Look up'!$A$3:$C$153,2,FALSE)","v":"Hillingdon London Borough Council"},"East of England and North-East London"]
[null,null,null,null,null,null,null,null,null,null,null,null,null,null,119562,"Roseland Community College, The","2011-04-01","Cornwall Council",{"$f":"VLOOKUP(R3825,'LA CPID Look up'!$A$3:$C$153,2,FALSE)","v":"Cornwall Unitary Authority"},"South-West England"]
[null,null,null,null,null,null,null,null,null,null,null,null,null,null,122535,"Rosewood Free School","2012-09-01","Southampton City Council",{"$f":"VLOOKUP(R3827,'LA CPID Look up'!$A$3:$C$153,2,FALSE)","v":"Southampton City Council"},"South-East England and South London"]
[null,null,null,null,null,null,null,null,null,null,null,null,null,null,131149,"Rosherville Church of England Academy","2014-11-01","Kent County Council",{"$f":"VLOOKUP(R3828,'LA CPID Look up'!$A$3:$C$153,2,FALSE)","v":"Kent County Council"},"South-East England and South London"]
[null,null,null,null,null,null,null,null,null,null,null,null,null,null,119754,"Rossington All Saints Academy","2011-04-26","Doncaster Metropolitan Borough Council",{"$f":"VLOOKUP(R3830,'LA CPID Look up'!$A$3:$C$153,2,FALSE)","v":"Doncaster Metropolitan Borough Council"},"East Midlands and the Humber"]
[null,null,null,null,null,null,null,null,null,null,null,null,null,null,131393,"Rosslyn Park Primary and Nursery School","2015-01-01","Nottingham City Council",{"$f":"VLOOKUP(R3831,'LA CPID Look up'!$A$3:$C$153,2,FALSE)","v":"Nottingham City Council"},"East Midlands and the Humber"]
[null,null,null,null,null,null,null,null,null,null,null,null,null,null,127152,"Rothwell Church of England Primary Academy","2014-04-01","Leeds City Council",{"$f":"VLOOKUP(R3833,'LA CPID Look up'!$A$3:$C$153,2,FALSE)","v":"Leeds City Council"},"Lancashire and West Yorkshire"]
[null,null,null,null,null,null,null,null,null,null,null,null,null,null,124520,"Rothwell Junior School","2013-09-01","Northamptonshire County Council",{"$f":"VLOOKUP(R3834,'LA CPID Look up'!$A$3:$C$153,2,FALSE)","v":"Northamptonshire County Council"},"East of England and North-East London"]
[null,null,null,null,null,null,null,null,null,null,null,null,null,null,123864,"Rough Hay Primary School","2013-02-01","Walsall Metropolitan Borough Council",{"$f":"VLOOKUP(R3836,'LA CPID Look up'!$A$3:$C$153,2,FALSE)","v":"Walsall Metropolitan Borough Council"},"West Midlands"]
[null,null,null,null,null,null,null,null,null,null,null,null,null,null,124377,"Round House Primary Academy, The","2013-08-01","Cambridgeshire County Council",{"$f":"VLOOKUP(R3837,'LA CPID Look up'!$A$3:$C$153,2,FALSE)","v":"Cambridgeshire County Council"},"East of England and North-East London"]
[null,null,null,null,null,null,null,null,null,null,null,null,null,null,124672,"Roundthorn Primary Academy","2013-09-01","Oldham Metropolitan Borough Council",{"$f":"VLOOKUP(R3839,'LA CPID Look up'!$A$3:$C$153,2,FALSE)","v":"Oldham Metropolitan Borough Council"},"Lancashire and West Yorkshire"]
[null,null,null,null,null,null,null,null,null,null,null,null,null,null,119973,"Roundwood Park School","2011-08-01","Hertfordshire County Council",{"$f":"VLOOKUP(R3840,'LA CPID Look up'!$A$3:$C$153,2,FALSE)","v":"Hertfordshire County Council"},"East of England and North-East London"]
[null,null,null,null,null,null,null,null,null,null,null,null,null,null,120255,"Rowanfield Junior School","2011-08-01","Gloucestershire County Council",{"$f":"VLOOKUP(R3842,'LA CPID Look up'!$A$3:$C$153,2,FALSE)","v":"Gloucestershire County Council"},"South-West England"]
[null,null,null,null,null,null,null,null,null,null,null,null,null,null,123123,"Rowde Church of England Primary Academy","2013-01-01","Wiltshire Council",{"$f":"VLOOKUP(R3843,'LA CPID Look up'!$A$3:$C$153,2,FALSE)","v":"Wiltshire Unitary Authority"},"South-West England"]
[null,null,null,null,null,null,null,null,null,null,null,null,null,null,120608,"Rowena Academy","2011-11-01","Doncaster Metropolitan Borough Council",{"$f":"VLOOKUP(R3845,'LA CPID Look up'!$A$3:$C$153,2,FALSE)","v":"Doncaster Metropolitan Borough Council"},"East Midlands and the Humber"]
[null,null,null,null,null,null,null,null,null,null,null,null,null,null,130756,"Rowley Park Primary Academy","2014-08-01","Staffordshire County Council",{"$f":"VLOOKUP(R3846,'LA CPID Look up'!$A$3:$C$153,2,FALSE)","v":"Staffordshire County Council"},"West Midlands"]
[null,null,null,null,null,null,null,null,null,null,null,null,null,null,119911,"Royal Wootton Bassett Academy","2011-07-01","Wiltshire Council",{"$f":"VLOOKUP(R3849,'LA CPID Look up'!$A$3:$C$153,2,FALSE)","v":"Wiltshire Unitary Authority"},"South-West England"]
[null,null,null,null,null,null,null,null,null,null,null,null,null,null,123936,"Roydon Primary School","2013-12-01","Essex County Council",{"$f":"VLOOKUP(R3850,'LA CPID Look up'!$A$3:$C$153,2,FALSE)","v":"Essex County Council"},"East of England and North-East London"]
[null,null,null,null,null,null,null,null,null,null,null,null,null,null,133062,"Royston St John Baptist CE Primary","2016-02-01","Barnsley Metropolitan Borough Council",{"$f":"VLOOKUP(R3852,'LA CPID Look up'!$A$3:$C$153,2,FALSE)","v":"Barnsley Metropolitan Borough Council"},"East Midlands and the Humber"]
[null,null,null,null,null,null,null,null,null,null,null,null,null,null,118675,"RSA Academy - Tipton","2008-09-01","Sandwell Metropolitan Borough Council",{"$f":"VLOOKUP(R3853,'LA CPID Look up'!$A$3:$C$153,2,FALSE)","v":"Sandwell Metropolitan Borough Council"},"West Midlands"]
[null,null,null,null,null,null,null,null,null,null,null,null,null,null,132657,"Rugby Free Primary School","2015-09-01","Warwickshire County Council",{"$f":"VLOOKUP(R3855,'LA CPID Look up'!$A$3:$C$153,2,FALSE)","v":"Warwickshire County Council"},"West Midlands"]
[null,null,null,null,null,null,null,null,null,null,null,null,null,null,119632,"Rugby High School","2011-04-01","Warwickshire County Council",{"$f":"VLOOKUP(R3856,'LA CPID Look up'!$A$3:$C$153,2,FALSE)","v":"Warwickshire County Council"},"West Midlands"]
[null,null,null,null,null,null,null,null,null,null,null,null,null,null,131152,"Runcton Holme Church of England Primary School","2014-10-01","Norfolk County Council",{"$f":"VLOOKUP(R3858,'LA CPID Look up'!$A$3:$C$153,2,FALSE)","v":"Norfolk County Council"},"East of England and North-East London"]
[null,null,null,null,null,null,null,null,null,null,null,null,null,null,120054,"Runwell Community Primary School","2011-08-01","Essex County Council",{"$f":"VLOOKUP(R3859,'LA CPID Look up'!$A$3:$C$153,2,FALSE)","v":"Essex County Council"},"East of England and North-East London"]
[null,null,null,null,null,null,null,null,null,null,null,null,null,null,121074,"Rush Common School","2012-03-01","Oxfordshire County Council",{"$f":"VLOOKUP(R3861,'LA CPID Look up'!$A$3:$C$153,2,FALSE)","v":"Oxfordshire County Council"},"East of England and North-East London"]
[null,null,null,null,null,null,null,null,null,null,null,null,null,null,122129,"Rushcliffe School","2012-08-01","Nottinghamshire County Council",{"$f":"VLOOKUP(R3862,'LA CPID Look up'!$A$3:$C$153,2,FALSE)","v":"Nottinghamshire County Council"},"East Midlands and the Humber"]
[null,null,null,null,null,null,null,null,null,null,null,null,null,null,123097,"Rushden Community College","2012-12-01","Northamptonshire County Council",{"$f":"VLOOKUP(R3864,'LA CPID Look up'!$A$3:$C$153,2,FALSE)","v":"Northamptonshire County Council"},"East of England and North-East London"]
[null,null,null,null,null,null,null,null,null,null,null,null,null,null,131851,"Rushden Primary Academy","2015-09-01","Northamptonshire County Council",{"$f":"VLOOKUP(R3865,'LA CPID Look up'!$A$3:$C$153,2,FALSE)","v":"Northamptonshire County Council"},"East of England and North-East London"]
[null,null,null,null,null,null,null,null,null,null,null,null,null,null,124536,"Rushton Primary School","2013-09-01","Northamptonshire County Council",{"$f":"VLOOKUP(R3867,'LA CPID Look up'!$A$3:$C$153,2,FALSE)","v":"Northamptonshire County Council"},"East of England and North-East London"]
[null,null,null,null,null,null,null,null,null,null,null,null,null,null,122835,"Ruskin Junior School","2012-11-01","Northamptonshire County Council",{"$f":"VLOOKUP(R3868,'LA CPID Look up'!$A$3:$C$153,2,FALSE)","v":"Northamptonshire County Council"},"East of England and North-East London"]
[null,null,null,null,null,null,null,null,null,null,null,null,null,null,132429,"Russett School, The","2015-09-01","Cheshire West and Chester Council",{"$f":"VLOOKUP(R3870,'LA CPID Look up'!$A$3:$C$153,2,FALSE)","v":"Cheshire West and Chester Unitary Authority"},"West Midlands"]
[null,null,null,null,null,null,null,null,null,null,null,null,null,null,123883,"Rustington Community Primary School","2013-04-01","West Sussex County Council",{"$f":"VLOOKUP(R3871,'LA CPID Look up'!$A$3:$C$153,2,FALSE)","v":"West Sussex County Council"},"South-East England and South London"]
[null,null,null,null,null,null,null,null,null,null,null,null,null,null,123291,"Rutherford House School","2013-09-01","Wandsworth London Borough Council",{"$f":"VLOOKUP(R3873,'LA CPID Look up'!$A$3:$C$153,2,FALSE)","v":"Wandsworth London Borough Council"},"South-East England and South London"]
[null,null,null,null,null,null,null,null,null,null,null,null,null,null,120558,"Ryburn Valley High School","2014-09-01","Calderdale Metropolitan Borough Council",{"$f":"VLOOKUP(R3874,'LA CPID Look up'!$A$3:$C$153,2,FALSE)","v":"Calderdale Metropolitan Borough Council"},"Lancashire and West Yorkshire"]
[null,null,null,null,null,null,null,null,null,null,null,null,null,null,119953,"Ryde Academy","2011-09-01","Isle of Wight Council",{"$f":"VLOOKUP(R3876,'LA CPID Look up'!$A$3:$C$153,2,FALSE)","v":"Isle of Wight Council"},"South-East England and South London"]
[null,null,null,null,null,null,null,null,null,null,null,null,null,null,120137,"Rydens Enterprise School and Sixth Form College","2011-08-01","Surrey County Council",{"$f":"VLOOKUP(R3877,'LA CPID Look up'!$A$3:$C$153,2,FALSE)","v":"Surrey County Council"},"South-East England and South London"]
[null,null,null,null,null,null,null,null,null,null,null,null,null,null,122385,"Rye College","2012-09-01","East Sussex County Council",{"$f":"VLOOKUP(R3880,'LA CPID Look up'!$A$3:$C$153,2,FALSE)","v":"East Sussex County Council"},"South-East England and South London"]
[null,null,null,null,null,null,null,null,null,null,null,null,null,null,131464,"Rye Community Primary School","2015-03-01","East Sussex County Council",{"$f":"VLOOKUP(R3881,'LA CPID Look up'!$A$3:$C$153,2,FALSE)","v":"East Sussex County Council"},"South-East England and South London"]
[null,null,null,null,null,null,null,null,null,null,null,null,null,null,130128,"Ryecroft Academy - Leeds","2014-05-01","Leeds City Council",{"$f":"VLOOKUP(R3883,'LA CPID Look up'!$A$3:$C$153,2,FALSE)","v":"Leeds City Council"},"Lancashire and West Yorkshire"]
[null,null,null,null,null,null,null,null,null,null,null,null,null,null,122483,"Ryecroft Primary Academy - Bradford","2012-09-01","Bradford Metropolitan District Council",{"$f":"VLOOKUP(R3884,'LA CPID Look up'!$A$3:$C$153,2,FALSE)","v":"Bradford City Council"},"Lancashire and West Yorkshire"]
[null,null,null,null,null,null,null,null,null,null,null,null,null,null,131155,"Ryhall CofE Primary Academy","2014-10-01","Rutland County Council",{"$f":"VLOOKUP(R3886,'LA CPID Look up'!$A$3:$C$153,2,FALSE)","v":"Rutland County Council"},"East Midlands and the Humber"]
[null,null,null,null,null,null,null,null,null,null,null,null,null,null,124534,"Ryhope Infant School Academy","2014-09-01","Sunderland City Council",{"$f":"VLOOKUP(R3887,'LA CPID Look up'!$A$3:$C$153,2,FALSE)","v":"Sunderland City Metropolitan Borough Council"},"North of England"]
[null,null,null,null,null,null,null,null,null,null,null,null,null,null,120896,"Sacred Heart Catholic High School - Newcastle-u-Tyne","2011-12-01","Newcastle Upon Tyne City Council",{"$f":"VLOOKUP(R3889,'LA CPID Look up'!$A$3:$C$153,2,FALSE)","v":"Newcastle upon Tyne City Council"},"North of England"]
[null,null,null,null,null,null,null,null,null,null,null,null,null,null,132404,"Sacred Heart Catholic Primary School - Coventry","2015-08-01","Coventry City Council",{"$f":"VLOOKUP(R3890,'LA CPID Look up'!$A$3:$C$153,2,FALSE)","v":"Coventry City Council"},"West Midlands"]
[null,null,null,null,null,null,null,null,null,null,null,null,null,null,130129,"Sacred Heart Catholic Primary School - Newcastle-u-Lyme","2014-03-01","Gateshead Council",{"$f":"VLOOKUP(R3892,'LA CPID Look up'!$A$3:$C$153,2,FALSE)","v":"Gateshead Council"},"North of England"]
[null,null,null,null,null,null,null,null,null,null,null,null,null,null,122409,"Sacred Heart Catholic Primary School - Wakefield","2012-11-01","Wakefield Council",{"$f":"VLOOKUP(R3893,'LA CPID Look up'!$A$3:$C$153,2,FALSE)","v":"Wakefield City Council"},"Lancashire and West Yorkshire"]
[null,null,null,null,null,null,null,null,null,null,null,null,null,null,123818,"Sacred Heart Catholic Primary School, The - Bradford","2013-04-01","Bradford Metropolitan District Council",{"$f":"VLOOKUP(R3895,'LA CPID Look up'!$A$3:$C$153,2,FALSE)","v":"Bradford City Council"},"Lancashire and West Yorkshire"]
[null,null,null,null,null,null,null,null,null,null,null,null,null,null,130109,"Sacred Heart Catholic School - Paignton","2014-04-01","Torbay Council",{"$f":"VLOOKUP(R3896,'LA CPID Look up'!$A$3:$C$153,2,FALSE)","v":"Torbay Council"},"South-West England"]
[null,null,null,null,null,null,null,null,null,null,null,null,null,null,122496,"Sacred Heart Catholic Voluntary Academy - Loughborough","2012-07-01","Leicestershire County Council",{"$f":"VLOOKUP(R3898,'LA CPID Look up'!$A$3:$C$153,2,FALSE)","v":"Leicestershire County Council"},"East Midlands and the Humber"]
[null,null,null,null,null,null,null,null,null,null,null,null,null,null,130688,"Sacred Heart Catholic Voluntary Academy - Sowerby Bridge","2014-10-01","Calderdale Metropolitan Borough Council",{"$f":"VLOOKUP(R3899,'LA CPID Look up'!$A$3:$C$153,2,FALSE)","v":"Calderdale Metropolitan Borough Council"},"Lancashire and West Yorkshire"]
[null,null,null,null,null,null,null,null,null,null,null,null,null,null,120233,"Sacred Heart of Mary Girls' School","2011-08-01","Havering London Borough Council",{"$f":"VLOOKUP(R3901,'LA CPID Look up'!$A$3:$C$153,2,FALSE)","v":"Havering London Borough Council"},"East of England and North-East London"]
[null,null,null,null,null,null,null,null,null,null,null,null,null,null,132385,"Sacred Heart RC Primary School - Middlesbrough","2015-11-01","Middlesbrough Council",{"$f":"VLOOKUP(R3902,'LA CPID Look up'!$A$3:$C$153,2,FALSE)","v":"Middlesbrough Council"},"North of England"]
[null,null,null,null,null,null,null,null,null,null,null,null,null,null,130339,"Sacred Heart Secondary Catholic Voluntary Academy","2015-09-01","Redcar and Cleveland Borough Council",{"$f":"VLOOKUP(R3904,'LA CPID Look up'!$A$3:$C$153,2,FALSE)","v":"Redcar and Cleveland Borough Council"},"North of England"]
[null,null,null,null,null,null,null,null,null,null,null,null,null,null,119783,"Saffron Walden County High School","2011-06-01","Essex County Council",{"$f":"VLOOKUP(R3905,'LA CPID Look up'!$A$3:$C$153,2,FALSE)","v":"Essex County Council"},"East of England and North-East London"]
[null,null,null,null,null,null,null,null,null,null,null,null,null,null,130307,"Saint Bede's Catholic VA Primary School","2014-10-01","Redcar and Cleveland Borough Council",{"$f":"VLOOKUP(R3908,'LA CPID Look up'!$A$3:$C$153,2,FALSE)","v":"Redcar and Cleveland Borough Council"},"North of England"]
[null,null,null,null,null,null,null,null,null,null,null,null,null,null,122806,"Saint Benedict, A Catholic Voluntary Academy","2012-09-01","Derby City Council",{"$f":"VLOOKUP(R3909,'LA CPID Look up'!$A$3:$C$153,2,FALSE)","v":"Derby City Council"},"East Midlands and the Humber"]
[null,null,null,null,null,null,null,null,null,null,null,null,null,null,122497,"Saint Clare's Primary School A Catholic Voluntary Academy, Coalville, Leicestershire","2012-07-01","Leicestershire County Council",{"$f":"VLOOKUP(R3911,'LA CPID Look up'!$A$3:$C$153,2,FALSE)","v":"Leicestershire County Council"},"East Midlands and the Humber"]
[null,null,null,null,null,null,null,null,null,null,null,null,null,null,120397,"Saint Edmund's Roman Catholic Primary School","2011-09-01","Wiltshire Council",{"$f":"VLOOKUP(R3912,'LA CPID Look up'!$A$3:$C$153,2,FALSE)","v":"Wiltshire Unitary Authority"},"South-West England"]
[null,null,null,null,null,null,null,null,null,null,null,null,null,null,120624,"Saint George's Church of England School","2011-11-01","Kent County Council",{"$f":"VLOOKUP(R3914,'LA CPID Look up'!$A$3:$C$153,2,FALSE)","v":"Kent County Council"},"South-East England and South London"]
[null,null,null,null,null,null,null,null,null,null,null,null,null,null,124326,"Saint Hugh's Catholic Primary School, Lincoln, The","2013-05-01","Lincolnshire County Council",{"$f":"VLOOKUP(R3915,'LA CPID Look up'!$A$3:$C$153,2,FALSE)","v":"Lincolnshire County Council"},"East Midlands and the Humber"]
[null,null,null,null,null,null,null,null,null,null,null,null,null,null,121156,"Saint John Fisher Catholic Voluntary Academy, Wigston, Leicestershire","2012-04-01","Leicestershire County Council",{"$f":"VLOOKUP(R3917,'LA CPID Look up'!$A$3:$C$153,2,FALSE)","v":"Leicestershire County Council"},"East Midlands and the Humber"]
[null,null,null,null,null,null,null,null,null,null,null,null,null,null,121034,"Saint John Houghton Catholic Voluntary Academy","2012-03-01","Derbyshire County Council",{"$f":"VLOOKUP(R3918,'LA CPID Look up'!$A$3:$C$153,2,FALSE)","v":"Derbyshire County Council"},"East Midlands and the Humber"]
[null,null,null,null,null,null,null,null,null,null,null,null,null,null,122402,"Saint Martin's Catholic Voluntary Academy - Stoke Golding","2012-07-01","Leicestershire County Council",{"$f":"VLOOKUP(R3920,'LA CPID Look up'!$A$3:$C$153,2,FALSE)","v":"Leicestershire County Council"},"East Midlands and the Humber"]
[null,null,null,null,null,null,null,null,null,null,null,null,null,null,131531,"Saint Mary's Catholic Primary School - Congleton","2015-04-01","Cheshire East Council",{"$f":"VLOOKUP(R3921,'LA CPID Look up'!$A$3:$C$153,2,FALSE)","v":"Cheshire East Unitary Authority"},"West Midlands"]
[null,null,null,null,null,null,null,null,null,null,null,null,null,null,123168,"Saint Mary's Catholic Voluntary Academy - Grimsby","2012-12-01","North East Lincolnshire Council",{"$f":"VLOOKUP(R3923,'LA CPID Look up'!$A$3:$C$153,2,FALSE)","v":"North East Lincolnshire Council"},"East Midlands and the Humber"]
[null,null,null,null,null,null,null,null,null,null,null,null,null,null,121157,"Saint Michael's Catholic High School","2012-03-01","Hertfordshire County Council",{"$f":"VLOOKUP(R3924,'LA CPID Look up'!$A$3:$C$153,2,FALSE)","v":"Hertfordshire County Council"},"East of England and North-East London"]
[null,null,null,null,null,null,null,null,null,null,null,null,null,null,121924,"Saint Norbert's Catholic Primary School","2012-10-01","North Lincolnshire Council",{"$f":"VLOOKUP(R3926,'LA CPID Look up'!$A$3:$C$153,2,FALSE)","v":"North Lincolnshire Council"},"East Midlands and the Humber"]
[null,null,null,null,null,null,null,null,null,null,null,null,null,null,130309,"Saint Paulinus Catholic Voluntary Aided Primary School","2014-10-01","Redcar and Cleveland Borough Council",{"$f":"VLOOKUP(R3927,'LA CPID Look up'!$A$3:$C$153,2,FALSE)","v":"Redcar and Cleveland Borough Council"},"North of England"]
[null,null,null,null,null,null,null,null,null,null,null,null,null,null,129438,"Saint Peter's Catholic College of Maths and Computing","2014-04-01","Redcar and Cleveland Borough Council",{"$f":"VLOOKUP(R3929,'LA CPID Look up'!$A$3:$C$153,2,FALSE)","v":"Redcar and Cleveland Borough Council"},"North of England"]
[null,null,null,null,null,null,null,null,null,null,null,null,null,null,122364,"Saint Winefride's Catholic Primary School, Shepshed, Leicestershire","2012-07-01","Leicestershire County Council",{"$f":"VLOOKUP(R3930,'LA CPID Look up'!$A$3:$C$153,2,FALSE)","v":"Leicestershire County Council"},"East Midlands and the Humber"]
[null,null,null,null,null,null,null,null,null,null,null,null,null,null,119498,"Sale Grammar School","2011-03-01","Trafford Borough Council",{"$f":"VLOOKUP(R3932,'LA CPID Look up'!$A$3:$C$153,2,FALSE)","v":"Trafford Metropolitan Borough Council"},"Lancashire and West Yorkshire"]
[null,null,null,null,null,null,null,null,null,null,null,null,null,null,120713,"Salendine Nook High School","2012-02-01","Kirklees Metropolitan Council",{"$f":"VLOOKUP(R3933,'LA CPID Look up'!$A$3:$C$153,2,FALSE)","v":"Kirklees Metropolitan Council"},"Lancashire and West Yorkshire"]
[null,null,null,null,null,null,null,null,null,null,null,null,null,null,132395,"Salfords Primary School","2015-07-01","Surrey County Council",{"$f":"VLOOKUP(R3935,'LA CPID Look up'!$A$3:$C$153,2,FALSE)","v":"Surrey County Council"},"South-East England and South London"]
[null,null,null,null,null,null,null,null,null,null,null,null,null,null,130539,"Salisbury Sixth Form College","2014-09-01","Wiltshire Council",{"$f":"VLOOKUP(R3936,'LA CPID Look up'!$A$3:$C$153,2,FALSE)","v":"Wiltshire Unitary Authority"},"South-West England"]
[null,null,null,null,null,null,null,null,null,null,null,null,null,null,120452,"Salterlee Primary School","2011-09-01","Calderdale Metropolitan Borough Council",{"$f":"VLOOKUP(R3939,'LA CPID Look up'!$A$3:$C$153,2,FALSE)","v":"Calderdale Metropolitan Borough Council"},"Lancashire and West Yorkshire"]
[null,null,null,null,null,null,null,null,null,null,null,null,null,null,131781,"Saltley School and Specialist Science College","2015-03-01","Birmingham City Council",{"$f":"VLOOKUP(R3940,'LA CPID Look up'!$A$3:$C$153,2,FALSE)","v":"Birmingham City Council"},"West Midlands"]
[null,null,null,null,null,null,null,null,null,null,null,null,null,null,120477,"Sampford Peverell Church of England Primary School","2011-11-01","Devon County Council",{"$f":"VLOOKUP(R3942,'LA CPID Look up'!$A$3:$C$153,2,FALSE)","v":"Devon County Council"},"South-West England"]
[null,null,null,null,null,null,null,null,null,null,null,null,null,null,120923,"Samuel Lister Academy, The","2012-04-01","Bradford Metropolitan District Council",{"$f":"VLOOKUP(R3943,'LA CPID Look up'!$A$3:$C$153,2,FALSE)","v":"Bradford City Council"},"Lancashire and West Yorkshire"]
[null,null,null,null,null,null,null,null,null,null,null,null,null,null,119369,"Samuel Ward Academy","2010-11-01","Suffolk County Council",{"$f":"VLOOKUP(R3945,'LA CPID Look up'!$A$3:$C$153,2,FALSE)","v":"Suffolk County Council"},"East of England and North-East London"]
[null,null,null,null,null,null,null,null,null,null,null,null,null,null,119952,"Samuel Whitbread Academy","2012-03-01","Central Bedfordshire Council",{"$f":"VLOOKUP(R3946,'LA CPID Look up'!$A$3:$C$153,2,FALSE)","v":"Central Bedfordshire Unitary Authority"},"South-Central England and North-West London"]
[null,null,null,null,null,null,null,null,null,null,null,null,null,null,122938,"Sandal Magna Community Academy","2013-05-01","Wakefield Council",{"$f":"VLOOKUP(R3948,'LA CPID Look up'!$A$3:$C$153,2,FALSE)","v":"Wakefield City Council"},"Lancashire and West Yorkshire"]
[null,null,null,null,null,null,null,null,null,null,null,null,null,null,119374,"Sandbach High School and Sixth Form College","2010-11-01","Cheshire East Council",{"$f":"VLOOKUP(R3949,'LA CPID Look up'!$A$3:$C$153,2,FALSE)","v":"Cheshire East Unitary Authority"},"West Midlands"]
[null,null,null,null,null,null,null,null,null,null,null,null,null,null,120535,"Sandbach School","2011-09-01","Cheshire East Council",{"$f":"VLOOKUP(R3951,'LA CPID Look up'!$A$3:$C$153,2,FALSE)","v":"Cheshire East Unitary Authority"},"West Midlands"]
[null,null,null,null,null,null,null,null,null,null,null,null,null,null,130902,"Sandfield Primary School","2014-09-01","Surrey County Council",{"$f":"VLOOKUP(R3952,'LA CPID Look up'!$A$3:$C$153,2,FALSE)","v":"Surrey County Council"},"South-East England and South London"]
[null,null,null,null,null,null,null,null,null,null,null,null,null,null,131508,"Sandhill Primary School","2015-04-01","Barnsley Metropolitan Borough Council",{"$f":"VLOOKUP(R3954,'LA CPID Look up'!$A$3:$C$153,2,FALSE)","v":"Barnsley Metropolitan Borough Council"},"East Midlands and the Humber"]
[null,null,null,null,null,null,null,null,null,null,null,null,null,null,131253,"Sandhill View Academy","2015-07-01","Sunderland City Council",{"$f":"VLOOKUP(R3955,'LA CPID Look up'!$A$3:$C$153,2,FALSE)","v":"Sunderland City Metropolitan Borough Council"},"North of England"]
[null,null,null,null,null,null,null,null,null,null,null,null,null,null,120240,"Sandon School, The - Chelmsford","2011-08-01","Essex County Council",{"$f":"VLOOKUP(R3957,'LA CPID Look up'!$A$3:$C$153,2,FALSE)","v":"Essex County Council"},"East of England and North-East London"]
[null,null,null,null,null,null,null,null,null,null,null,null,null,null,119927,"Sandown Bay Academy","2011-09-01","Isle of Wight Council",{"$f":"VLOOKUP(R3958,'LA CPID Look up'!$A$3:$C$153,2,FALSE)","v":"Isle of Wight Council"},"South-East England and South London"]
[null,null,null,null,null,null,null,null,null,null,null,null,null,null,119628,"Sandringham School - St Albans","2011-04-01","Hertfordshire County Council",{"$f":"VLOOKUP(R3960,'LA CPID Look up'!$A$3:$C$153,2,FALSE)","v":"Hertfordshire County Council"},"East of England and North-East London"]
[null,null,null,null,null,null,null,null,null,null,null,null,null,null,118639,"Sandwell Academy","2006-09-01","Sandwell Metropolitan Borough Council",{"$f":"VLOOKUP(R3961,'LA CPID Look up'!$A$3:$C$153,2,FALSE)","v":"Sandwell Metropolitan Borough Council"},"West Midlands"]
[null,null,null,null,null,null,null,null,null,null,null,null,null,null,119359,"Sandy Hill Academy","2010-11-01","Cornwall Council",{"$f":"VLOOKUP(R3963,'LA CPID Look up'!$A$3:$C$153,2,FALSE)","v":"Cornwall Unitary Authority"},"South-West England"]
[null,null,null,null,null,null,null,null,null,null,null,null,null,null,119589,"Sandye Place Academy","2011-04-01","Central Bedfordshire Council",{"$f":"VLOOKUP(R3964,'LA CPID Look up'!$A$3:$C$153,2,FALSE)","v":"Central Bedfordshire Unitary Authority"},"South-Central England and North-West London"]
[null,null,null,null,null,null,null,null,null,null,null,null,null,null,130731,"Sawley Infant and Nursery School","2014-11-01","Derbyshire County Council",{"$f":"VLOOKUP(R3967,'LA CPID Look up'!$A$3:$C$153,2,FALSE)","v":"Derbyshire County Council"},"East Midlands and the Humber"]
[null,null,null,null,null,null,null,null,null,null,null,null,null,null,130705,"Sawley Junior School","2014-11-01","Derbyshire County Council",{"$f":"VLOOKUP(R3968,'LA CPID Look up'!$A$3:$C$153,2,FALSE)","v":"Derbyshire County Council"},"East Midlands and the Humber"]
[null,null,null,null,null,null,null,null,null,null,null,null,null,null,119974,"Sawtry Community College","2011-08-01","Cambridgeshire County Council",{"$f":"VLOOKUP(R3970,'LA CPID Look up'!$A$3:$C$153,2,FALSE)","v":"Cambridgeshire County Council"},"East of England and North-East London"]
[null,null,null,null,null,null,null,null,null,null,null,null,null,null,121971,"Saxmundham Free School","2012-09-01","Suffolk County Council",{"$f":"VLOOKUP(R3971,'LA CPID Look up'!$A$3:$C$153,2,FALSE)","v":"Suffolk County Council"},"East of England and North-East London"]
[null,null,null,null,null,null,null,null,null,null,null,null,null,null,131125,"Saxon Mount School","2014-10-01","East Sussex County Council",{"$f":"VLOOKUP(R3973,'LA CPID Look up'!$A$3:$C$153,2,FALSE)","v":"East Sussex County Council"},"South-East England and South London"]
[null,null,null,null,null,null,null,null,null,null,null,null,null,null,124732,"Saxon Primary School - Shepperton ","2013-10-01","Surrey County Council",{"$f":"VLOOKUP(R3974,'LA CPID Look up'!$A$3:$C$153,2,FALSE)","v":"Surrey County Council"},"South-East England and South London"]
[null,null,null,null,null,null,null,null,null,null,null,null,null,null,130135,"Sayes Court School","2014-06-01","Surrey County Council",{"$f":"VLOOKUP(R3976,'LA CPID Look up'!$A$3:$C$153,2,FALSE)","v":"Surrey County Council"},"South-East England and South London"]
[null,null,null,null,null,null,null,null,null,null,null,null,null,null,120769,"Scartho Junior Academy","2012-01-01","North East Lincolnshire Council",{"$f":"VLOOKUP(R3977,'LA CPID Look up'!$A$3:$C$153,2,FALSE)","v":"North East Lincolnshire Council"},"East Midlands and the Humber"]
[null,null,null,null,null,null,null,null,null,null,null,null,null,null,122021,"School 21","2012-09-01","Newham London Borough Council",{"$f":"VLOOKUP(R3979,'LA CPID Look up'!$A$3:$C$153,2,FALSE)","v":"Newham London Borough Council"},"East of England and North-East London"]
[null,null,null,null,null,null,null,null,null,null,null,null,null,null,124214,"Schoolscompany Central Devon Academy","2015-03-01","Devon County Council",{"$f":"VLOOKUP(R3980,'LA CPID Look up'!$A$3:$C$153,2,FALSE)","v":"Devon County Council"},"South-West England"]
[null,null,null,null,null,null,null,null,null,null,null,null,null,null,124215,"SchoolsCompany South and West Devon Academy","2015-03-01","Devon County Council",{"$f":"VLOOKUP(R3982,'LA CPID Look up'!$A$3:$C$153,2,FALSE)","v":"Devon County Council"},"South-West England"]
[null,null,null,null,null,null,null,null,null,null,null,null,null,null,122807,"Scientia Academy","2013-09-01","Staffordshire County Council",{"$f":"VLOOKUP(R3983,'LA CPID Look up'!$A$3:$C$153,2,FALSE)","v":"Staffordshire County Council"},"West Midlands"]
[null,null,null,null,null,null,null,null,null,null,null,null,null,null,120456,"Scout Road Academy","2011-09-01","Calderdale Metropolitan Borough Council",{"$f":"VLOOKUP(R3985,'LA CPID Look up'!$A$3:$C$153,2,FALSE)","v":"Calderdale Metropolitan Borough Council"},"Lancashire and West Yorkshire"]
[null,null,null,null,null,null,null,null,null,null,null,null,null,null,131859,"Sculthorpe Church of England Primary Academy","2015-12-01","Norfolk County Council",{"$f":"VLOOKUP(R3986,'LA CPID Look up'!$A$3:$C$153,2,FALSE)","v":"Norfolk County Council"},"East of England and North-East London"]
[null,null,null,null,null,null,null,null,null,null,null,null,null,null,132459,"Seagry Church of England Primary School","2015-09-01","Wiltshire Council",{"$f":"VLOOKUP(R3988,'LA CPID Look up'!$A$3:$C$153,2,FALSE)","v":"Wiltshire Unitary Authority"},"South-West England"]
[null,null,null,null,null,null,null,null,null,null,null,null,null,null,125004,"Seahaven Academy","2014-04-01","East Sussex County Council",{"$f":"VLOOKUP(R3989,'LA CPID Look up'!$A$3:$C$153,2,FALSE)","v":"East Sussex County Council"},"South-East England and South London"]
[null,null,null,null,null,null,null,null,null,null,null,null,null,null,119253,"Seaton Academy","2010-09-01","Cumbria County Council",{"$f":"VLOOKUP(R3991,'LA CPID Look up'!$A$3:$C$153,2,FALSE)","v":"Cumbria County Council"},"North of England"]
[null,null,null,null,null,null,null,null,null,null,null,null,null,null,131388,"Seend Church of England VA Primary School","2015-04-01","Wiltshire Council",{"$f":"VLOOKUP(R3992,'LA CPID Look up'!$A$3:$C$153,2,FALSE)","v":"Wiltshire Unitary Authority"},"South-West England"]
[null,null,null,null,null,null,null,null,null,null,null,null,null,null,120797,"Sele School, The","2012-08-01","Hertfordshire County Council",{"$f":"VLOOKUP(R3994,'LA CPID Look up'!$A$3:$C$153,2,FALSE)","v":"Hertfordshire County Council"},"East of England and North-East London"]
[null,null,null,null,null,null,null,null,null,null,null,null,null,null,120379,"Selling Church of England Primary School","2011-09-01","Kent County Council",{"$f":"VLOOKUP(R3995,'LA CPID Look up'!$A$3:$C$153,2,FALSE)","v":"Kent County Council"},"South-East England and South London"]
[null,null,null,null,null,null,null,null,null,null,null,null,null,null,120269,"Settlebeck High School","2011-08-01","Cumbria County Council",{"$f":"VLOOKUP(R3998,'LA CPID Look up'!$A$3:$C$153,2,FALSE)","v":"Cumbria County Council"},"North of England"]
[null,null,null,null,null,null,null,null,null,null,null,null,null,null,130542,"Seva School","2014-09-01","Coventry City Council",{"$f":"VLOOKUP(R3999,'LA CPID Look up'!$A$3:$C$153,2,FALSE)","v":"Coventry City Council"},"West Midlands"]
[null,null,null,null,null,null,null,null,null,null,null,null,null,null,131629,"Sevenhills Academy","2014-12-01","North East Lincolnshire Council",{"$f":"VLOOKUP(R4001,'LA CPID Look up'!$A$3:$C$153,2,FALSE)","v":"North East Lincolnshire Council"},"East Midlands and the Humber"]
[null,null,null,null,null,null,null,null,null,null,null,null,null,null,130903,"Severn Beach Primary School","2014-09-01","South Gloucestershire Council",{"$f":"VLOOKUP(R4002,'LA CPID Look up'!$A$3:$C$153,2,FALSE)","v":"South Gloucestershire Council"},"South-West England"]
[null,null,null,null,null,null,null,null,null,null,null,null,null,null,122302,"Severn View Academy","2012-09-01","Gloucestershire County Council",{"$f":"VLOOKUP(R4004,'LA CPID Look up'!$A$3:$C$153,2,FALSE)","v":"Gloucestershire County Council"},"South-West England"]
[null,null,null,null,null,null,null,null,null,null,null,null,null,null,123216,"Severnbanks Primary School","2013-01-01","Gloucestershire County Council",{"$f":"VLOOKUP(R4005,'LA CPID Look up'!$A$3:$C$153,2,FALSE)","v":"Gloucestershire County Council"},"South-West England"]
[null,null,null,null,null,null,null,null,null,null,null,null,null,null,132981,"Sewell Park Academy","2015-09-01","Norfolk County Council",{"$f":"VLOOKUP(R4007,'LA CPID Look up'!$A$3:$C$153,2,FALSE)","v":"Norfolk County Council"},"East of England and North-East London"]
[null,null,null,null,null,null,null,null,null,null,null,null,null,null,120313,"Sexey's School","2011-08-17","Somerset County Council",{"$f":"VLOOKUP(R4008,'LA CPID Look up'!$A$3:$C$153,2,FALSE)","v":"Somerset County Council"},"South-West England"]
[null,null,null,null,null,null,null,null,null,null,null,null,null,null,122638,"Seymour Road Primary School","2013-02-01","Manchester City Council",{"$f":"VLOOKUP(R4010,'LA CPID Look up'!$A$3:$C$153,2,FALSE)","v":"Manchester City Council"},"Lancashire and West Yorkshire"]
[null,null,null,null,null,null,null,null,null,null,null,null,null,null,126497,"Shade Primary School, The","2013-09-01","Cambridgeshire County Council",{"$f":"VLOOKUP(R4011,'LA CPID Look up'!$A$3:$C$153,2,FALSE)","v":"Cambridgeshire County Council"},"East of England and North-East London"]
[null,null,null,null,null,null,null,null,null,null,null,null,null,null,130311,"Shaftesbury School","2014-06-01","Dorset County Council",{"$f":"VLOOKUP(R4013,'LA CPID Look up'!$A$3:$C$153,2,FALSE)","v":"Dorset County Council"},"South-West England"]
[null,null,null,null,null,null,null,null,null,null,null,null,null,null,122914,"Shafton Primary Academy","2012-12-01","Barnsley Metropolitan Borough Council",{"$f":"VLOOKUP(R4014,'LA CPID Look up'!$A$3:$C$153,2,FALSE)","v":"Barnsley Metropolitan Borough Council"},"East Midlands and the Humber"]
[null,null,null,null,null,null,null,null,null,null,null,null,null,null,123070,"Sharnbrook John Gibbard Lower School","2013-04-01","Bedford Borough Council",{"$f":"VLOOKUP(R4016,'LA CPID Look up'!$A$3:$C$153,2,FALSE)","v":"Bedford Unitary Authority"},"South-Central England and North-West London"]
[null,null,null,null,null,null,null,null,null,null,null,null,null,null,119470,"Sharnbrook Upper School","2011-02-01","Bedford Borough Council",{"$f":"VLOOKUP(R4017,'LA CPID Look up'!$A$3:$C$153,2,FALSE)","v":"Bedford Unitary Authority"},"South-Central England and North-West London"]
[null,null,null,null,null,null,null,null,null,null,null,null,null,null,132934,"Shavington Academy","2015-09-01","Cheshire East Council",{"$f":"VLOOKUP(R4019,'LA CPID Look up'!$A$3:$C$153,2,FALSE)","v":"Cheshire East Unitary Authority"},"West Midlands"]
[null,null,null,null,null,null,null,null,null,null,null,null,null,null,132969,"Shavington Primary School","2015-12-01","Cheshire East Council",{"$f":"VLOOKUP(R4020,'LA CPID Look up'!$A$3:$C$153,2,FALSE)","v":"Cheshire East Unitary Authority"},"West Midlands"]
[null,null,null,null,null,null,null,null,null,null,null,null,null,null,122985,"Shaw Primary Academy","2013-02-01","Thurrock Borough Council",{"$f":"VLOOKUP(R4022,'LA CPID Look up'!$A$3:$C$153,2,FALSE)","v":"Thurrock Unitary Authority"},"East of England and North-East London"]
[null,null,null,null,null,null,null,null,null,null,null,null,null,null,124130,"Shaw Ridge Primary School","2013-11-01","Swindon Borough Council",{"$f":"VLOOKUP(R4023,'LA CPID Look up'!$A$3:$C$153,2,FALSE)","v":"Swindon Unitary Authority"},"South-West England"]
[null,null,null,null,null,null,null,null,null,null,null,null,null,null,119550,"Sheldon School","2011-04-01","Wiltshire Council",{"$f":"VLOOKUP(R4026,'LA CPID Look up'!$A$3:$C$153,2,FALSE)","v":"Wiltshire Unitary Authority"},"South-West England"]
[null,null,null,null,null,null,null,null,null,null,null,null,null,null,120380,"Sheldwich Primary School","2011-09-01","Kent County Council",{"$f":"VLOOKUP(R4027,'LA CPID Look up'!$A$3:$C$153,2,FALSE)","v":"Kent County Council"},"South-East England and South London"]
[null,null,null,null,null,null,null,null,null,null,null,null,null,null,121067,"Shenfield High School","2012-02-01","Essex County Council",{"$f":"VLOOKUP(R4029,'LA CPID Look up'!$A$3:$C$153,2,FALSE)","v":"Essex County Council"},"East of England and North-East London"]
[null,null,null,null,null,null,null,null,null,null,null,null,null,null,124535,"Shenfield St. Mary's Church of England Primary School","2013-06-01","Essex County Council",{"$f":"VLOOKUP(R4030,'LA CPID Look up'!$A$3:$C$153,2,FALSE)","v":"Essex County Council"},"East of England and North-East London"]
[null,null,null,null,null,null,null,null,null,null,null,null,null,null,119734,"Shenley Brook End School","2011-05-01","Milton Keynes Council",{"$f":"VLOOKUP(R4032,'LA CPID Look up'!$A$3:$C$153,2,FALSE)","v":"Milton Keynes Council"},"East of England and North-East London"]
[null,null,null,null,null,null,null,null,null,null,null,null,null,null,122329,"Shepherdswell Academy","2012-09-01","Milton Keynes Council",{"$f":"VLOOKUP(R4033,'LA CPID Look up'!$A$3:$C$153,2,FALSE)","v":"Milton Keynes Council"},"East of England and North-East London"]
[null,null,null,null,null,null,null,null,null,null,null,null,null,null,130880,"Sheringham Primary School","2014-09-01","Newham London Borough Council",{"$f":"VLOOKUP(R4035,'LA CPID Look up'!$A$3:$C$153,2,FALSE)","v":"Newham London Borough Council"},"East of England and North-East London"]
[null,null,null,null,null,null,null,null,null,null,null,null,null,null,120936,"Sherwood Academy","2012-09-01","Nottinghamshire County Council",{"$f":"VLOOKUP(R4036,'LA CPID Look up'!$A$3:$C$153,2,FALSE)","v":"Nottinghamshire County Council"},"East Midlands and the Humber"]
[null,null,null,null,null,null,null,null,null,null,null,null,null,null,123251,"Shibden Head Primary Academy","2013-03-01","Bradford Metropolitan District Council",{"$f":"VLOOKUP(R4038,'LA CPID Look up'!$A$3:$C$153,2,FALSE)","v":"Bradford City Council"},"Lancashire and West Yorkshire"]
[null,null,null,null,null,null,null,null,null,null,null,null,null,null,132351,"Shield Row Primary School","2015-09-01","Durham County Council",{"$f":"VLOOKUP(R4039,'LA CPID Look up'!$A$3:$C$153,2,FALSE)","v":"County Durham Unitary Authority"},"North of England"]
[null,null,null,null,null,null,null,null,null,null,null,null,null,null,120649,"Shipston High School","2012-09-01","Warwickshire County Council",{"$f":"VLOOKUP(R4041,'LA CPID Look up'!$A$3:$C$153,2,FALSE)","v":"Warwickshire County Council"},"West Midlands"]
[null,null,null,null,null,null,null,null,null,null,null,null,null,null,123226,"Shipston-on-Stour Primary School","2014-09-01","Warwickshire County Council",{"$f":"VLOOKUP(R4042,'LA CPID Look up'!$A$3:$C$153,2,FALSE)","v":"Warwickshire County Council"},"West Midlands"]
[null,null,null,null,null,null,null,null,null,null,null,null,null,null,119195,"Shirebrook Academy","2010-09-01","Derbyshire County Council",{"$f":"VLOOKUP(R4044,'LA CPID Look up'!$A$3:$C$153,2,FALSE)","v":"Derbyshire County Council"},"East Midlands and the Humber"]
[null,null,null,null,null,null,null,null,null,null,null,null,null,null,118644,"Shireland Collegiate Academy","2007-09-01","Sandwell Metropolitan Borough Council",{"$f":"VLOOKUP(R4045,'LA CPID Look up'!$A$3:$C$153,2,FALSE)","v":"Sandwell Metropolitan Borough Council"},"West Midlands"]
[null,null,null,null,null,null,null,null,null,null,null,null,null,null,122556,"Shirestone Academy, The","2012-11-01","Birmingham City Council",{"$f":"VLOOKUP(R4047,'LA CPID Look up'!$A$3:$C$153,2,FALSE)","v":"Birmingham City Council"},"West Midlands"]
[null,null,null,null,null,null,null,null,null,null,null,null,null,null,120742,"Shirley High School Performing Arts College","2012-01-01","Croydon London Borough Council",{"$f":"VLOOKUP(R4048,'LA CPID Look up'!$A$3:$C$153,2,FALSE)","v":"Croydon London Borough Council"},"South-East England and South London"]
[null,null,null,null,null,null,null,null,null,null,null,null,null,null,122595,"Shirley Junior School","2012-11-01","Southampton City Council",{"$f":"VLOOKUP(R4050,'LA CPID Look up'!$A$3:$C$153,2,FALSE)","v":"Southampton City Council"},"South-East England and South London"]
[null,null,null,null,null,null,null,null,null,null,null,null,null,null,129417,"Shirley Manor Primary School","2014-03-01","Bradford Metropolitan District Council",{"$f":"VLOOKUP(R4051,'LA CPID Look up'!$A$3:$C$153,2,FALSE)","v":"Bradford City Council"},"Lancashire and West Yorkshire"]
[null,null,null,null,null,null,null,null,null,null,null,null,null,null,122727,"Shooters Hill Post-16 Campus","2012-11-01","Greenwich London Borough Council",{"$f":"VLOOKUP(R4053,'LA CPID Look up'!$A$3:$C$153,2,FALSE)","v":"Greenwich London Borough Council"},"South-East England and South London"]
[null,null,null,null,null,null,null,null,null,null,null,null,null,null,119107,"Shoreham Academy","2009-09-01","West Sussex County Council",{"$f":"VLOOKUP(R4054,'LA CPID Look up'!$A$3:$C$153,2,FALSE)","v":"West Sussex County Council"},"South-East England and South London"]
[null,null,null,null,null,null,null,null,null,null,null,null,null,null,132005,"Shortlanesend Community Primary School","2015-09-01","Cornwall Council",{"$f":"VLOOKUP(R4057,'LA CPID Look up'!$A$3:$C$153,2,FALSE)","v":"Cornwall Unitary Authority"},"South-West England"]
[null,null,null,null,null,null,null,null,null,null,null,null,null,null,124539,"Shrivenham Church of England Controlled School","2013-11-01","Oxfordshire County Council",{"$f":"VLOOKUP(R4058,'LA CPID Look up'!$A$3:$C$153,2,FALSE)","v":"Oxfordshire County Council"},"East of England and North-East London"]
[null,null,null,null,null,null,null,null,null,null,null,null,null,null,120545,"Sidbury Church of England Primary School","2011-11-01","Devon County Council",{"$f":"VLOOKUP(R4060,'LA CPID Look up'!$A$3:$C$153,2,FALSE)","v":"Devon County Council"},"South-West England"]
[null,null,null,null,null,null,null,null,null,null,null,null,null,null,120564,"Siddal Primary School","2012-09-01","Calderdale Metropolitan Borough Council",{"$f":"VLOOKUP(R4061,'LA CPID Look up'!$A$3:$C$153,2,FALSE)","v":"Calderdale Metropolitan Borough Council"},"Lancashire and West Yorkshire"]
[null,null,null,null,null,null,null,null,null,null,null,null,null,null,119196,"Sidney Stringer Academy","2010-09-01","Coventry City Council",{"$f":"VLOOKUP(R4063,'LA CPID Look up'!$A$3:$C$153,2,FALSE)","v":"Coventry City Council"},"West Midlands"]
[null,null,null,null,null,null,null,null,null,null,null,null,null,null,132658,"Sidney Stringer Primary Academy","2015-09-01","Coventry City Council",{"$f":"VLOOKUP(R4064,'LA CPID Look up'!$A$3:$C$153,2,FALSE)","v":"Coventry City Council"},"West Midlands"]
[null,null,null,null,null,null,null,null,null,null,null,null,null,null,121175,"Signhills Infant Academy","2012-04-01","North East Lincolnshire Council",{"$f":"VLOOKUP(R4066,'LA CPID Look up'!$A$3:$C$153,2,FALSE)","v":"North East Lincolnshire Council"},"East Midlands and the Humber"]
[null,null,null,null,null,null,null,null,null,null,null,null,null,null,122856,"Sileby Redlands Community Primary School","2013-09-01","Leicestershire County Council",{"$f":"VLOOKUP(R4067,'LA CPID Look up'!$A$3:$C$153,2,FALSE)","v":"Leicestershire County Council"},"East Midlands and the Humber"]
[null,null,null,null,null,null,null,null,null,null,null,null,null,null,120951,"Silver Springs Primary Academy","2012-04-01","Tameside Metropolitan Borough Council",{"$f":"VLOOKUP(R4069,'LA CPID Look up'!$A$3:$C$153,2,FALSE)","v":"Tameside Metropolitan Borough Council"},"Lancashire and West Yorkshire"]
[null,null,null,null,null,null,null,null,null,null,null,null,null,null,124664,"Silverdale Primary Academy - Newcastle-u-Lyme","2014-01-01","Staffordshire County Council",{"$f":"VLOOKUP(R4070,'LA CPID Look up'!$A$3:$C$153,2,FALSE)","v":"Staffordshire County Council"},"West Midlands"]
[null,null,null,null,null,null,null,null,null,null,null,null,null,null,122404,"Silverdale School - Sheffield","2013-01-01","Sheffield City Council",{"$f":"VLOOKUP(R4072,'LA CPID Look up'!$A$3:$C$153,2,FALSE)","v":"Sheffield City Council"},"East Midlands and the Humber"]
[null,null,null,null,null,null,null,null,null,null,null,null,null,null,122050,"Silverstone UTC","2013-09-01","Northamptonshire County Council",{"$f":"VLOOKUP(R4073,'LA CPID Look up'!$A$3:$C$153,2,FALSE)","v":"Northamptonshire County Council"},"East of England and North-East London"]
[null,null,null,null,null,null,null,null,null,null,null,null,null,null,121196,"Simon Balle School","2013-11-01","Hertfordshire County Council",{"$f":"VLOOKUP(R4075,'LA CPID Look up'!$A$3:$C$153,2,FALSE)","v":"Hertfordshire County Council"},"East of England and North-East London"]
[null,null,null,null,null,null,null,null,null,null,null,null,null,null,131239,"Simon de Senlis Primary School","2015-04-01","Northamptonshire County Council",{"$f":"VLOOKUP(R4076,'LA CPID Look up'!$A$3:$C$153,2,FALSE)","v":"Northamptonshire County Council"},"East of England and North-East London"]
[null,null,null,null,null,null,null,null,null,null,null,null,null,null,127704,"Sir Bernard Lovell School","2015-04-01","South Gloucestershire Council",{"$f":"VLOOKUP(R4078,'LA CPID Look up'!$A$3:$C$153,2,FALSE)","v":"South Gloucestershire Council"},"South-West England"]
[null,null,null,null,null,null,null,null,null,null,null,null,null,null,130271,"Sir Charles Kao UTC","2014-09-01","Essex County Council",{"$f":"VLOOKUP(R4079,'LA CPID Look up'!$A$3:$C$153,2,FALSE)","v":"Essex County Council"},"East of England and North-East London"]
[null,null,null,null,null,null,null,null,null,null,null,null,null,null,131392,"Sir Donald Bailey Academy, The","2015-03-01","Nottinghamshire County Council",{"$f":"VLOOKUP(R4081,'LA CPID Look up'!$A$3:$C$153,2,FALSE)","v":"Nottinghamshire County Council"},"East Midlands and the Humber"]
[null,null,null,null,null,null,null,null,null,null,null,null,null,null,132365,"Sir Frank Whittle Primary School","2015-09-01","Coventry City Council",{"$f":"VLOOKUP(R4082,'LA CPID Look up'!$A$3:$C$153,2,FALSE)","v":"Coventry City Council"},"West Midlands"]
[null,null,null,null,null,null,null,null,null,null,null,null,null,null,119845,"Sir Henry Floyd Grammar School","2011-07-01","Buckinghamshire County Council",{"$f":"VLOOKUP(R4085,'LA CPID Look up'!$A$3:$C$153,2,FALSE)","v":"Buckinghamshire County Council"},"South-Central England and North-West London"]
[null,null,null,null,null,null,null,null,null,null,null,null,null,null,121894,"Sir Herbert Leon Academy","2012-09-01","Milton Keynes Council",{"$f":"VLOOKUP(R4086,'LA CPID Look up'!$A$3:$C$153,2,FALSE)","v":"Milton Keynes Council"},"East of England and North-East London"]
[null,null,null,null,null,null,null,null,null,null,null,null,null,null,124140,"Sir John Colfox School, The","2015-04-01","Dorset County Council",{"$f":"VLOOKUP(R4088,'LA CPID Look up'!$A$3:$C$153,2,FALSE)","v":"Dorset County Council"},"South-West England"]
[null,null,null,null,null,null,null,null,null,null,null,null,null,null,118043,"Sir John Gleed School","2013-01-01","Lincolnshire County Council",{"$f":"VLOOKUP(R4089,'LA CPID Look up'!$A$3:$C$153,2,FALSE)","v":"Lincolnshire County Council"},"East Midlands and the Humber"]
[null,null,null,null,null,null,null,null,null,null,null,null,null,null,120055,"Sir John Leman High School","2011-08-01","Suffolk County Council",{"$f":"VLOOKUP(R4091,'LA CPID Look up'!$A$3:$C$153,2,FALSE)","v":"Suffolk County Council"},"East of England and North-East London"]
[null,null,null,null,null,null,null,null,null,null,null,null,null,null,130942,"Sir John Talbot's Technology College","2014-09-01","Shropshire Council",{"$f":"VLOOKUP(R4092,'LA CPID Look up'!$A$3:$C$153,2,FALSE)","v":"Shropshire Unitary Authority"},"West Midlands"]
[null,null,null,null,null,null,null,null,null,null,null,null,null,null,120257,"Sir Robert Geffery's Voluntary Aided Church of England Primary School","2011-08-01","Cornwall Council",{"$f":"VLOOKUP(R4094,'LA CPID Look up'!$A$3:$C$153,2,FALSE)","v":"Cornwall Unitary Authority"},"South-West England"]
[null,null,null,null,null,null,null,null,null,null,null,null,null,null,113716,"Sir Robert Pattinson Academy","2011-08-01","Lincolnshire County Council",{"$f":"VLOOKUP(R4095,'LA CPID Look up'!$A$3:$C$153,2,FALSE)","v":"Lincolnshire County Council"},"East Midlands and the Humber"]
[null,null,null,null,null,null,null,null,null,null,null,null,null,null,119501,"Sir Roger Manwood's School","2011-03-01","Kent County Council",{"$f":"VLOOKUP(R4097,'LA CPID Look up'!$A$3:$C$153,2,FALSE)","v":"Kent County Council"},"South-East England and South London"]
[null,null,null,null,null,null,null,null,null,null,null,null,null,null,123338,"Sir Thomas Fremantle School","2013-09-01","Buckinghamshire County Council",{"$f":"VLOOKUP(R4098,'LA CPID Look up'!$A$3:$C$153,2,FALSE)","v":"Buckinghamshire County Council"},"South-Central England and North-West London"]
[null,null,null,null,null,null,null,null,null,null,null,null,null,null,122731,"Sir Thomas Wharton Community College","2013-02-01","Doncaster Metropolitan Borough Council",{"$f":"VLOOKUP(R4100,'LA CPID Look up'!$A$3:$C$153,2,FALSE)","v":"Doncaster Metropolitan Borough Council"},"East Midlands and the Humber"]
[null,null,null,null,null,null,null,null,null,null,null,null,null,null,119757,"Sir William Borlase's Grammar School","2011-06-01","Buckinghamshire County Council",{"$f":"VLOOKUP(R4101,'LA CPID Look up'!$A$3:$C$153,2,FALSE)","v":"Buckinghamshire County Council"},"South-Central England and North-West London"]
[null,null,null,null,null,null,null,null,null,null,null,null,null,null,120256,"Sir William Ramsay School","2011-08-01","Buckinghamshire County Council",{"$f":"VLOOKUP(R4103,'LA CPID Look up'!$A$3:$C$153,2,FALSE)","v":"Buckinghamshire County Council"},"South-Central England and North-West London"]
[null,null,null,null,null,null,null,null,null,null,null,null,null,null,122899,"Sir William Robertson Academy, Welbourn","2012-10-01","Lincolnshire County Council",{"$f":"VLOOKUP(R4104,'LA CPID Look up'!$A$3:$C$153,2,FALSE)","v":"Lincolnshire County Council"},"East Midlands and the Humber"]
[null,null,null,null,null,null,null,null,null,null,null,null,null,null,123945,"Sir William Stanier Community School","2013-09-01","Cheshire East Council",{"$f":"VLOOKUP(R4106,'LA CPID Look up'!$A$3:$C$153,2,FALSE)","v":"Cheshire East Unitary Authority"},"West Midlands"]
[null,null,null,null,null,null,null,null,null,null,null,null,null,null,119129,"Sirius Academy","2009-09-01","Hull City Council",{"$f":"VLOOKUP(R4107,'LA CPID Look up'!$A$3:$C$153,2,FALSE)","v":"Kingston upon Hull City Council"},"East Midlands and the Humber"]
[null,null,null,null,null,null,null,null,null,null,null,null,null,null,130337,"Sitwell Junior School","2014-07-01","Rotherham Metropolitan Borough Council",{"$f":"VLOOKUP(R4109,'LA CPID Look up'!$A$3:$C$153,2,FALSE)","v":"Rotherham Borough Council"},"East Midlands and the Humber"]
[null,null,null,null,null,null,null,null,null,null,null,null,null,null,131891,"Sixpenny Handley First School","2015-12-01","Dorset County Council",{"$f":"VLOOKUP(R4110,'LA CPID Look up'!$A$3:$C$153,2,FALSE)","v":"Dorset County Council"},"South-West England"]
[null,null,null,null,null,null,null,null,null,null,null,null,null,null,119332,"Skegness Academy","2010-09-01","Lincolnshire County Council",{"$f":"VLOOKUP(R4112,'LA CPID Look up'!$A$3:$C$153,2,FALSE)","v":"Lincolnshire County Council"},"East Midlands and the Humber"]
[null,null,null,null,null,null,null,null,null,null,null,null,null,null,122110,"Skegness Grammar School","2012-09-01","Lincolnshire County Council",{"$f":"VLOOKUP(R4113,'LA CPID Look up'!$A$3:$C$153,2,FALSE)","v":"Lincolnshire County Council"},"East Midlands and the Humber"]
[null,null,null,null,null,null,null,null,null,null,null,null,null,null,126488,"Skelton Primary School","2013-11-01","Redcar and Cleveland Borough Council",{"$f":"VLOOKUP(R4116,'LA CPID Look up'!$A$3:$C$153,2,FALSE)","v":"Redcar and Cleveland Borough Council"},"North of England"]
[null,null,null,null,null,null,null,null,null,null,null,null,null,null,122909,"Skerne Park Academy","2013-02-01","Darlington Borough Council",{"$f":"VLOOKUP(R4117,'LA CPID Look up'!$A$3:$C$153,2,FALSE)","v":"Darlington Borough Council"},"North of England"]
[null,null,null,null,null,null,null,null,null,null,null,null,null,null,119204,"Skinners' Academy","2010-09-01","Hackney London Borough Council (The Learning Trust)",{"$f":"VLOOKUP(R4119,'LA CPID Look up'!$A$3:$C$153,2,FALSE)","v":"Hackney London Borough Council"},"East of England and North-East London"]
[null,null,null,null,null,null,null,null,null,null,null,null,null,null,118899,"Skinners' Kent Academy","2009-09-01","Kent County Council",{"$f":"VLOOKUP(R4120,'LA CPID Look up'!$A$3:$C$153,2,FALSE)","v":"Kent County Council"},"South-East England and South London"]
[null,null,null,null,null,null,null,null,null,null,null,null,null,null,129554,"Skinners' School, The","2014-02-01","Kent County Council",{"$f":"VLOOKUP(R4122,'LA CPID Look up'!$A$3:$C$153,2,FALSE)","v":"Kent County Council"},"South-East England and South London"]
[null,null,null,null,null,null,null,null,null,null,null,null,null,null,130768,"Skipton Academy, The","2014-09-01","North Yorkshire County Council",{"$f":"VLOOKUP(R4123,'LA CPID Look up'!$A$3:$C$153,2,FALSE)","v":"North Yorkshire County Council"},"North of England"]
[null,null,null,null,null,null,null,null,null,null,null,null,null,null,121173,"Slade Primary School","2012-09-01","Birmingham City Council",{"$f":"VLOOKUP(R4125,'LA CPID Look up'!$A$3:$C$153,2,FALSE)","v":"Birmingham City Council"},"West Midlands"]
[null,null,null,null,null,null,null,null,null,null,null,null,null,null,120287,"Slough and Eton CofE Business and Enterprise College","2011-08-17","Slough Borough Council",{"$f":"VLOOKUP(R4126,'LA CPID Look up'!$A$3:$C$153,2,FALSE)","v":"Slough Borough Council"},"East of England and North-East London"]
[null,null,null,null,null,null,null,null,null,null,null,null,null,null,120588,"Smarden Primary School","2011-10-01","Kent County Council",{"$f":"VLOOKUP(R4128,'LA CPID Look up'!$A$3:$C$153,2,FALSE)","v":"Kent County Council"},"South-East England and South London"]
[null,null,null,null,null,null,null,null,null,null,null,null,null,null,128017,"Smestow School","2014-02-01","Wolverhampton City Council",{"$f":"VLOOKUP(R4129,'LA CPID Look up'!$A$3:$C$153,2,FALSE)","v":"Wolverhampton City Council"},"West Midlands"]
[null,null,null,null,null,null,null,null,null,null,null,null,null,null,130639,"Smith's Wood Primary Academy","2014-07-01","Solihull Metropolitan Borough Council",{"$f":"VLOOKUP(R4131,'LA CPID Look up'!$A$3:$C$153,2,FALSE)","v":"Solihull Metropolitan Borough Council"},"West Midlands"]
[null,null,null,null,null,null,null,null,null,null,null,null,null,null,122272,"Snaith School, The","2014-05-01","East Riding of Yorkshire Council",{"$f":"VLOOKUP(R4132,'LA CPID Look up'!$A$3:$C$153,2,FALSE)","v":"East Riding of Yorkshire Council"},"East Midlands and the Humber"]
[null,null,null,null,null,null,null,null,null,null,null,null,null,null,130298,"Snettisham Primary School","2014-06-01","Norfolk County Council",{"$f":"VLOOKUP(R4134,'LA CPID Look up'!$A$3:$C$153,2,FALSE)","v":"Norfolk County Council"},"East of England and North-East London"]
[null,null,null,null,null,null,null,null,null,null,null,null,null,null,119624,"Soham Village College","2011-04-01","Cambridgeshire County Council",{"$f":"VLOOKUP(R4135,'LA CPID Look up'!$A$3:$C$153,2,FALSE)","v":"Cambridgeshire County Council"},"East of England and North-East London"]
[null,null,null,null,null,null,null,null,null,null,null,null,null,null,130294,"Somerby Primary School","2014-04-01","Leicestershire County Council",{"$f":"VLOOKUP(R4137,'LA CPID Look up'!$A$3:$C$153,2,FALSE)","v":"Leicestershire County Council"},"East Midlands and the Humber"]
[null,null,null,null,null,null,null,null,null,null,null,null,null,null,133076,"Somercotes Academy","2015-11-01","Lincolnshire County Council",{"$f":"VLOOKUP(R4138,'LA CPID Look up'!$A$3:$C$153,2,FALSE)","v":"Lincolnshire County Council"},"East Midlands and the Humber"]
[null,null,null,null,null,null,null,null,null,null,null,null,null,null,120292,"Somers Park Primary School","2011-08-17","Worcestershire County Council",{"$f":"VLOOKUP(R4140,'LA CPID Look up'!$A$3:$C$153,2,FALSE)","v":"Worcestershire County Council"},"West Midlands"]
[null,null,null,null,null,null,null,null,null,null,null,null,null,null,119298,"Somervale School Specialist Media Arts College","2010-10-01","Bath & North East Somerset Council",{"$f":"VLOOKUP(R4141,'LA CPID Look up'!$A$3:$C$153,2,FALSE)","v":"Bath & North East Somerset Council"},"South-West England"]
[null,null,null,null,null,null,null,null,null,null,null,null,null,null,120683,"South Axholme Academy","2011-12-01","North Lincolnshire Council",{"$f":"VLOOKUP(R4144,'LA CPID Look up'!$A$3:$C$153,2,FALSE)","v":"North Lincolnshire Council"},"East Midlands and the Humber"]
[null,null,null,null,null,null,null,null,null,null,null,null,null,null,120029,"South Benfleet Primary School","2011-08-01","Essex County Council",{"$f":"VLOOKUP(R4145,'LA CPID Look up'!$A$3:$C$153,2,FALSE)","v":"Essex County Council"},"East of England and North-East London"]
[null,null,null,null,null,null,null,null,null,null,null,null,null,null,120541,"South Brent Primary School","2011-11-01","Devon County Council",{"$f":"VLOOKUP(R4147,'LA CPID Look up'!$A$3:$C$153,2,FALSE)","v":"Devon County Council"},"South-West England"]
[null,null,null,null,null,null,null,null,null,null,null,null,null,null,123303,"South Bromsgrove Community High School","2013-11-01","Worcestershire County Council",{"$f":"VLOOKUP(R4148,'LA CPID Look up'!$A$3:$C$153,2,FALSE)","v":"Worcestershire County Council"},"West Midlands"]
[null,null,null,null,null,null,null,null,null,null,null,null,null,null,119735,"South Craven School","2011-05-01","North Yorkshire County Council",{"$f":"VLOOKUP(R4150,'LA CPID Look up'!$A$3:$C$153,2,FALSE)","v":"North Yorkshire County Council"},"North of England"]
[null,null,null,null,null,null,null,null,null,null,null,null,null,null,119568,"South Dartmoor Community College","2011-04-01","Devon County Council",{"$f":"VLOOKUP(R4151,'LA CPID Look up'!$A$3:$C$153,2,FALSE)","v":"Devon County Council"},"South-West England"]
[null,null,null,null,null,null,null,null,null,null,null,null,null,null,119888,"South Farnham School","2011-07-01","Surrey County Council",{"$f":"VLOOKUP(R4153,'LA CPID Look up'!$A$3:$C$153,2,FALSE)","v":"Surrey County Council"},"South-East England and South London"]
[null,null,null,null,null,null,null,null,null,null,null,null,null,null,132331,"South Hetton Primary","2015-09-01","Durham County Council",{"$f":"VLOOKUP(R4154,'LA CPID Look up'!$A$3:$C$153,2,FALSE)","v":"County Durham Unitary Authority"},"North of England"]
[null,null,null,null,null,null,null,null,null,null,null,null,null,null,119092,"South Leeds Academy","2009-09-01","Leeds City Council",{"$f":"VLOOKUP(R4156,'LA CPID Look up'!$A$3:$C$153,2,FALSE)","v":"Leeds City Council"},"Lancashire and West Yorkshire"]
[null,null,null,null,null,null,null,null,null,null,null,null,null,null,133188,"South Norwood Primary School","2016-01-01","Croydon London Borough Council",{"$f":"VLOOKUP(R4157,'LA CPID Look up'!$A$3:$C$153,2,FALSE)","v":"Croydon London Borough Council"},"South-East England and South London"]
[null,null,null,null,null,null,null,null,null,null,null,null,null,null,120616,"South Ossett Infant Academy","2011-12-01","Wakefield Council",{"$f":"VLOOKUP(R4159,'LA CPID Look up'!$A$3:$C$153,2,FALSE)","v":"Wakefield City Council"},"Lancashire and West Yorkshire"]
[null,null,null,null,null,null,null,null,null,null,null,null,null,null,124998,"South Shore Academy","2013-12-01","Blackpool Council",{"$f":"VLOOKUP(R4160,'LA CPID Look up'!$A$3:$C$153,2,FALSE)","v":"Blackpool Unitary Authority"},"Lancashire and West Yorkshire"]
[null,null,null,null,null,null,null,null,null,null,null,null,null,null,119401,"South Wilts Grammar School for Girls","2011-01-01","Wiltshire Council",{"$f":"VLOOKUP(R4162,'LA CPID Look up'!$A$3:$C$153,2,FALSE)","v":"Wiltshire Unitary Authority"},"South-West England"]
[null,null,null,null,null,null,null,null,null,null,null,null,null,null,132688,"South Wiltshire UTC","2015-09-01","Wiltshire Council",{"$f":"VLOOKUP(R4163,'LA CPID Look up'!$A$3:$C$153,2,FALSE)","v":"Wiltshire Unitary Authority"},"South-West England"]
[null,null,null,null,null,null,null,null,null,null,null,null,null,null,119088,"South Wolverhampton and Bilston Academy","2009-09-01","Wolverhampton City Council",{"$f":"VLOOKUP(R4165,'LA CPID Look up'!$A$3:$C$153,2,FALSE)","v":"Wolverhampton City Council"},"West Midlands"]
[null,null,null,null,null,null,null,null,null,null,null,null,null,null,124175,"Southampton Children's Hospital School","2014-03-01","Southampton City Council",{"$f":"VLOOKUP(R4166,'LA CPID Look up'!$A$3:$C$153,2,FALSE)","v":"Southampton City Council"},"South-East England and South London"]
[null,null,null,null,null,null,null,null,null,null,null,null,null,null,124299,"Southbroom St James Church Academy","2013-12-01","Wiltshire Council",{"$f":"VLOOKUP(R4168,'LA CPID Look up'!$A$3:$C$153,2,FALSE)","v":"Wiltshire Unitary Authority"},"South-West England"]
[null,null,null,null,null,null,null,null,null,null,null,null,null,null,130623,"Southcoates Primary Academy","2014-06-01","Hull City Council",{"$f":"VLOOKUP(R4169,'LA CPID Look up'!$A$3:$C$153,2,FALSE)","v":"Kingston upon Hull City Council"},"East Midlands and the Humber"]
[null,null,null,null,null,null,null,null,null,null,null,null,null,null,119454,"Southend High School for Girls","2011-02-01","Southend-on-Sea Borough Council",{"$f":"VLOOKUP(R4171,'LA CPID Look up'!$A$3:$C$153,2,FALSE)","v":"Southend-on-Sea Borough Council"},"East of England and North-East London"]
[null,null,null,null,null,null,null,null,null,null,null,null,null,null,123411,"Southend YMCA Community School","2013-09-01","Essex County Council",{"$f":"VLOOKUP(R4172,'LA CPID Look up'!$A$3:$C$153,2,FALSE)","v":"Essex County Council"},"East of England and North-East London"]
[null,null,null,null,null,null,null,null,null,null,null,null,null,null,120398,"Southfield Junior School","2011-09-01","Swindon Borough Council",{"$f":"VLOOKUP(R4175,'LA CPID Look up'!$A$3:$C$153,2,FALSE)","v":"Swindon Unitary Authority"},"South-West England"]
[null,null,null,null,null,null,null,null,null,null,null,null,null,null,122355,"Southfield Primary School","2012-12-01","Northamptonshire County Council",{"$f":"VLOOKUP(R4176,'LA CPID Look up'!$A$3:$C$153,2,FALSE)","v":"Northamptonshire County Council"},"East of England and North-East London"]
[null,null,null,null,null,null,null,null,null,null,null,null,null,null,119976,"Southfield School for Girls - Kettering","2011-08-01","Northamptonshire County Council",{"$f":"VLOOKUP(R4178,'LA CPID Look up'!$A$3:$C$153,2,FALSE)","v":"Northamptonshire County Council"},"East of England and North-East London"]
[null,null,null,null,null,null,null,null,null,null,null,null,null,null,122705,"Southfields Academy","2012-09-01","Wandsworth London Borough Council",{"$f":"VLOOKUP(R4179,'LA CPID Look up'!$A$3:$C$153,2,FALSE)","v":"Wandsworth London Borough Council"},"South-East England and South London"]
[null,null,null,null,null,null,null,null,null,null,null,null,null,null,124095,"Southmere Primary School","2014-09-01","Bradford Metropolitan District Council",{"$f":"VLOOKUP(R4181,'LA CPID Look up'!$A$3:$C$153,2,FALSE)","v":"Bradford City Council"},"Lancashire and West Yorkshire"]
[null,null,null,null,null,null,null,null,null,null,null,null,null,null,123120,"Southminster Church of England (Controlled) Primary School","2013-11-01","Essex County Council",{"$f":"VLOOKUP(R4182,'LA CPID Look up'!$A$3:$C$153,2,FALSE)","v":"Essex County Council"},"East of England and North-East London"]
[null,null,null,null,null,null,null,null,null,null,null,null,null,null,122022,"Southwark Free School","2012-09-01","Southwark London Borough Council",{"$f":"VLOOKUP(R4184,'LA CPID Look up'!$A$3:$C$153,2,FALSE)","v":"Southwark London Borough Council"},"South-East England and South London"]
[null,null,null,null,null,null,null,null,null,null,null,null,null,null,120272,"Southwark Primary School","2011-09-01","Nottingham City Council",{"$f":"VLOOKUP(R4185,'LA CPID Look up'!$A$3:$C$153,2,FALSE)","v":"Nottingham City Council"},"East Midlands and the Humber"]
[null,null,null,null,null,null,null,null,null,null,null,null,null,null,119865,"Southwater Junior Academy","2011-07-01","West Sussex County Council",{"$f":"VLOOKUP(R4187,'LA CPID Look up'!$A$3:$C$153,2,FALSE)","v":"West Sussex County Council"},"South-East England and South London"]
[null,null,null,null,null,null,null,null,null,null,null,null,null,null,121973,"Southway Primary School","2012-09-01","West Sussex County Council",{"$f":"VLOOKUP(R4188,'LA CPID Look up'!$A$3:$C$153,2,FALSE)","v":"West Sussex County Council"},"South-East England and South London"]
[null,null,null,null,null,null,null,null,null,null,null,null,null,null,132680,"Space Studio West London","2015-09-01","Hounslow London Borough Council",{"$f":"VLOOKUP(R4190,'LA CPID Look up'!$A$3:$C$153,2,FALSE)","v":"Hounslow London Borough Council"},"East of England and North-East London"]
[null,null,null,null,null,null,null,null,null,null,null,null,null,null,123875,"Spalding Grammar School","2013-02-01","Lincolnshire County Council",{"$f":"VLOOKUP(R4191,'LA CPID Look up'!$A$3:$C$153,2,FALSE)","v":"Lincolnshire County Council"},"East Midlands and the Humber"]
[null,null,null,null,null,null,null,null,null,null,null,null,null,null,123340,"Sparkwell All Saints Primary School","2013-09-01","Devon County Council",{"$f":"VLOOKUP(R4193,'LA CPID Look up'!$A$3:$C$153,2,FALSE)","v":"Devon County Council"},"South-West England"]
[null,null,null,null,null,null,null,null,null,null,null,null,null,null,130713,"Spetisbury CofE VA Primary School","2014-07-01","Dorset County Council",{"$f":"VLOOKUP(R4194,'LA CPID Look up'!$A$3:$C$153,2,FALSE)","v":"Dorset County Council"},"South-West England"]
[null,null,null,null,null,null,null,null,null,null,null,null,null,null,119488,"Sponne School","2011-03-01","Northamptonshire County Council",{"$f":"VLOOKUP(R4196,'LA CPID Look up'!$A$3:$C$153,2,FALSE)","v":"Northamptonshire County Council"},"East of England and North-East London"]
[null,null,null,null,null,null,null,null,null,null,null,null,null,null,133469,"Sporle Voluntary Controlled Primary School","2016-03-01","Norfolk County Council",{"$f":"VLOOKUP(R4197,'LA CPID Look up'!$A$3:$C$153,2,FALSE)","v":"Norfolk County Council"},"East of England and North-East London"]
[null,null,null,null,null,null,null,null,null,null,null,null,null,null,124260,"Spring Cottage Primary School","2014-02-01","Hull City Council",{"$f":"VLOOKUP(R4199,'LA CPID Look up'!$A$3:$C$153,2,FALSE)","v":"Kingston upon Hull City Council"},"East Midlands and the Humber"]
[null,null,null,null,null,null,null,null,null,null,null,null,null,null,122171,"Spring Lane Primary School","2012-11-01","Northamptonshire County Council",{"$f":"VLOOKUP(R4200,'LA CPID Look up'!$A$3:$C$153,2,FALSE)","v":"Northamptonshire County Council"},"East of England and North-East London"]
[null,null,null,null,null,null,null,null,null,null,null,null,null,null,120659,"Springfield Academy - Darlington","2012-04-01","Darlington Borough Council",{"$f":"VLOOKUP(R4202,'LA CPID Look up'!$A$3:$C$153,2,FALSE)","v":"Darlington Borough Council"},"North of England"]
[null,null,null,null,null,null,null,null,null,null,null,null,null,null,132398,"Springfield Primary School - Grimsby","2015-09-01","North East Lincolnshire Council",{"$f":"VLOOKUP(R4203,'LA CPID Look up'!$A$3:$C$153,2,FALSE)","v":"North East Lincolnshire Council"},"East Midlands and the Humber"]
[null,null,null,null,null,null,null,null,null,null,null,null,null,null,120293,"Springhill Catholic Primary School","2011-08-17","Southampton City Council",{"$f":"VLOOKUP(R4206,'LA CPID Look up'!$A$3:$C$153,2,FALSE)","v":"Southampton City Council"},"South-East England and South London"]
[null,null,null,null,null,null,null,null,null,null,null,null,null,null,129419,"Springhill Primary Academy","2014-01-01","Staffordshire County Council",{"$f":"VLOOKUP(R4207,'LA CPID Look up'!$A$3:$C$153,2,FALSE)","v":"Staffordshire County Council"},"West Midlands"]
[null,null,null,null,null,null,null,null,null,null,null,null,null,null,123155,"Springwell Dene School","2013-02-01","Sunderland City Council",{"$f":"VLOOKUP(R4209,'LA CPID Look up'!$A$3:$C$153,2,FALSE)","v":"Sunderland City Metropolitan Borough Council"},"North of England"]
[null,null,null,null,null,null,null,null,null,null,null,null,null,null,121430,"Springwell Special Academy","2014-12-01","Barnsley Metropolitan Borough Council",{"$f":"VLOOKUP(R4210,'LA CPID Look up'!$A$3:$C$153,2,FALSE)","v":"Barnsley Metropolitan Borough Council"},"East Midlands and the Humber"]
[null,null,null,null,null,null,null,null,null,null,null,null,null,null,132489,"Springwood Junior Academy","2015-07-01","Rotherham Metropolitan Borough Council",{"$f":"VLOOKUP(R4212,'LA CPID Look up'!$A$3:$C$153,2,FALSE)","v":"Rotherham Borough Council"},"East Midlands and the Humber"]
[null,null,null,null,null,null,null,null,null,null,null,null,null,null,132291,"Sprites Primary School","2015-07-01","Suffolk County Council",{"$f":"VLOOKUP(R4213,'LA CPID Look up'!$A$3:$C$153,2,FALSE)","v":"Suffolk County Council"},"East of England and North-East London"]
[null,null,null,null,null,null,null,null,null,null,null,null,null,null,121845,"Ss Simon & Jude CofE Primary School, Bolton","2012-11-01","Bolton Metropolitan Borough Council",{"$f":"VLOOKUP(R4215,'LA CPID Look up'!$A$3:$C$153,2,FALSE)","v":"Bolton Metropolitan Borough Council"},"Lancashire and West Yorkshire"]
[null,null,null,null,null,null,null,null,null,null,null,null,null,null,123826,"Ss. Peter and Paul Catholic Primary School - Yeadon","2013-04-01","Leeds City Council",{"$f":"VLOOKUP(R4216,'LA CPID Look up'!$A$3:$C$153,2,FALSE)","v":"Leeds City Council"},"Lancashire and West Yorkshire"]
[null,null,null,null,null,null,null,null,null,null,null,null,null,null,132065,"St Agnes ACE Academy","2015-09-01","Cornwall Council",{"$f":"VLOOKUP(R4218,'LA CPID Look up'!$A$3:$C$153,2,FALSE)","v":"Cornwall Unitary Authority"},"South-West England"]
[null,null,null,null,null,null,null,null,null,null,null,null,null,null,124239,"St Aidan's Catholic Academy - Ashbrooke","2013-04-01","Sunderland City Council",{"$f":"VLOOKUP(R4219,'LA CPID Look up'!$A$3:$C$153,2,FALSE)","v":"Sunderland City Metropolitan Borough Council"},"North of England"]
[null,null,null,null,null,null,null,null,null,null,null,null,null,null,119117,"St Aidan's Church of England Academy","2007-09-01","Darlington Borough Council",{"$f":"VLOOKUP(R4221,'LA CPID Look up'!$A$3:$C$153,2,FALSE)","v":"Darlington Borough Council"},"North of England"]
[null,null,null,null,null,null,null,null,null,null,null,null,null,null,120139,"St Aidan's Church of England High School","2011-08-01","North Yorkshire County Council",{"$f":"VLOOKUP(R4222,'LA CPID Look up'!$A$3:$C$153,2,FALSE)","v":"North Yorkshire County Council"},"North of England"]
[null,null,null,null,null,null,null,null,null,null,null,null,null,null,121003,"St Alban's Catholic High School","2012-02-01","Suffolk County Council",{"$f":"VLOOKUP(R4224,'LA CPID Look up'!$A$3:$C$153,2,FALSE)","v":"Suffolk County Council"},"East of England and North-East London"]
[null,null,null,null,null,null,null,null,null,null,null,null,null,null,120056,"St Alban's Catholic Primary School","2011-08-01","Essex County Council",{"$f":"VLOOKUP(R4225,'LA CPID Look up'!$A$3:$C$153,2,FALSE)","v":"Essex County Council"},"East of England and North-East London"]
[null,null,null,null,null,null,null,null,null,null,null,null,null,null,130872,"St Alban's CofE (Aided) Primary School","2014-10-01","Rotherham Metropolitan Borough Council",{"$f":"VLOOKUP(R4227,'LA CPID Look up'!$A$3:$C$153,2,FALSE)","v":"Rotherham Borough Council"},"East Midlands and the Humber"]
[null,null,null,null,null,null,null,null,null,null,null,null,null,null,120335,"St Albans Girls' School","2011-09-01","Hertfordshire County Council",{"$f":"VLOOKUP(R4228,'LA CPID Look up'!$A$3:$C$153,2,FALSE)","v":"Hertfordshire County Council"},"East of England and North-East London"]
[null,null,null,null,null,null,null,null,null,null,null,null,null,null,132386,"St Alphonsus' RC Primary School","2015-11-01","Middlesbrough Council",{"$f":"VLOOKUP(R4230,'LA CPID Look up'!$A$3:$C$153,2,FALSE)","v":"Middlesbrough Council"},"North of England"]
[null,null,null,null,null,null,null,null,null,null,null,null,null,null,131193,"St Ambrose Catholic Primary","2014-10-01","Worcestershire County Council",{"$f":"VLOOKUP(R4231,'LA CPID Look up'!$A$3:$C$153,2,FALSE)","v":"Worcestershire County Council"},"West Midlands"]
[null,null,null,null,null,null,null,null,null,null,null,null,null,null,123341,"St Andrew the Apostle Greek Orthodox School","2013-09-01","Enfield London Borough Council",{"$f":"VLOOKUP(R4234,'LA CPID Look up'!$A$3:$C$153,2,FALSE)","v":"Enfield London Borough Council"},"South-Central England and North-West London"]
[null,null,null,null,null,null,null,null,null,null,null,null,null,null,131146,"St Andrew's Church of England (VA) Primary School - Axminister","2014-11-01","Devon County Council",{"$f":"VLOOKUP(R4235,'LA CPID Look up'!$A$3:$C$153,2,FALSE)","v":"Devon County Council"},"South-West England"]
[null,null,null,null,null,null,null,null,null,null,null,null,null,null,130148,"St Andrew's Church of England Primary School - Kettering","2014-05-01","Northamptonshire County Council",{"$f":"VLOOKUP(R4237,'LA CPID Look up'!$A$3:$C$153,2,FALSE)","v":"Northamptonshire County Council"},"East of England and North-East London"]
[null,null,null,null,null,null,null,null,null,null,null,null,null,null,124991,"St Andrew's Church of England Primary School - Taunton","2013-09-01","Somerset County Council",{"$f":"VLOOKUP(R4238,'LA CPID Look up'!$A$3:$C$153,2,FALSE)","v":"Somerset County Council"},"South-West England"]
[null,null,null,null,null,null,null,null,null,null,null,null,null,null,131083,"St Andrew's CofE Primary School - Ely","2014-11-01","Cambridgeshire County Council",{"$f":"VLOOKUP(R4240,'LA CPID Look up'!$A$3:$C$153,2,FALSE)","v":"Cambridgeshire County Council"},"East of England and North-East London"]
[null,null,null,null,null,null,null,null,null,null,null,null,null,null,121858,"St Andrew's CofE Primary School - Woodhall Spa","2012-08-01","Lincolnshire County Council",{"$f":"VLOOKUP(R4241,'LA CPID Look up'!$A$3:$C$153,2,FALSE)","v":"Lincolnshire County Council"},"East Midlands and the Humber"]
[null,null,null,null,null,null,null,null,null,null,null,null,null,null,126469,"St Anne's Catholic Primary School - Keighley","2014-07-01","Bradford Metropolitan District Council",{"$f":"VLOOKUP(R4243,'LA CPID Look up'!$A$3:$C$153,2,FALSE)","v":"Bradford City Council"},"Lancashire and West Yorkshire"]
[null,null,null,null,null,null,null,null,null,null,null,null,null,null,131933,"St Anne's Catholic Primary School - Nuneaton","2015-03-01","Warwickshire County Council",{"$f":"VLOOKUP(R4244,'LA CPID Look up'!$A$3:$C$153,2,FALSE)","v":"Warwickshire County Council"},"West Midlands"]
[null,null,null,null,null,null,null,null,null,null,null,null,null,null,122697,"St Anne's Catholic School","2012-08-01","Southampton City Council",{"$f":"VLOOKUP(R4246,'LA CPID Look up'!$A$3:$C$153,2,FALSE)","v":"Southampton City Council"},"South-East England and South London"]
[null,null,null,null,null,null,null,null,null,null,null,null,null,null,118645,"St Anne's Church of England Academy","2007-09-01","Rochdale Metropolitan Borough Council",{"$f":"VLOOKUP(R4247,'LA CPID Look up'!$A$3:$C$153,2,FALSE)","v":"Rochdale Borough Council"},"Lancashire and West Yorkshire"]
[null,null,null,null,null,null,null,null,null,null,null,null,null,null,132024,"St Ann's Church of England Primary School - Prescot","2015-08-01","St Helens Metropolitan Borough Council",{"$f":"VLOOKUP(R4249,'LA CPID Look up'!$A$3:$C$153,2,FALSE)","v":"St Helens Metropolitan Borough Council"},"Lancashire and West Yorkshire"]
[null,null,null,null,null,null,null,null,null,null,null,null,null,null,123204,"St Ann's CofE Primary School - Haringey","2013-01-01","Haringey London Borough Council",{"$f":"VLOOKUP(R4250,'LA CPID Look up'!$A$3:$C$153,2,FALSE)","v":"Haringey London Borough Council"},"East of England and North-East London"]
[null,null,null,null,null,null,null,null,null,null,null,null,null,null,130345,"St Anselm's Catholic School","2014-05-01","Kent County Council",{"$f":"VLOOKUP(R4252,'LA CPID Look up'!$A$3:$C$153,2,FALSE)","v":"Kent County Council"},"South-East England and South London"]
[null,null,null,null,null,null,null,null,null,null,null,null,null,null,119778,"St Anselm's College","2011-06-01","Wirral Metropolitan Borough Council",{"$f":"VLOOKUP(R4253,'LA CPID Look up'!$A$3:$C$153,2,FALSE)","v":"Wirral Metropolitan Borough Council"},"Lancashire and West Yorkshire"]
[null,null,null,null,null,null,null,null,null,null,null,null,null,null,123869,"St Anthony's Catholic Primary School - Manchester","2013-04-01","Manchester City Council",{"$f":"VLOOKUP(R4255,'LA CPID Look up'!$A$3:$C$153,2,FALSE)","v":"Manchester City Council"},"Lancashire and West Yorkshire"]
[null,null,null,null,null,null,null,null,null,null,null,null,null,null,121140,"St Anthony's Girls' Catholic Academy","2012-04-01","Sunderland City Council",{"$f":"VLOOKUP(R4256,'LA CPID Look up'!$A$3:$C$153,2,FALSE)","v":"Sunderland City Metropolitan Borough Council"},"North of England"]
[null,null,null,null,null,null,null,null,null,null,null,null,null,null,119943,"St Augustine Academy - Maidstone","2011-09-01","Kent County Council",{"$f":"VLOOKUP(R4258,'LA CPID Look up'!$A$3:$C$153,2,FALSE)","v":"Kent County Council"},"South-East England and South London"]
[null,null,null,null,null,null,null,null,null,null,null,null,null,null,122918,"St Augustine of Canterbury CofE Primary School - Belvedere","2013-08-01","Bexley London Borough Council",{"$f":"VLOOKUP(R4259,'LA CPID Look up'!$A$3:$C$153,2,FALSE)","v":"Bexley London Borough Council"},"South-East England and South London"]
[null,null,null,null,null,null,null,null,null,null,null,null,null,null,130696,"St Augustine's Catholic High School","2014-07-01","Worcestershire County Council",{"$f":"VLOOKUP(R4261,'LA CPID Look up'!$A$3:$C$153,2,FALSE)","v":"Worcestershire County Council"},"West Midlands"]
[null,null,null,null,null,null,null,null,null,null,null,null,null,null,120956,"St Augustine's Catholic Primary and Nursery School","2012-09-01","Nottingham City Council",{"$f":"VLOOKUP(R4262,'LA CPID Look up'!$A$3:$C$153,2,FALSE)","v":"Nottingham City Council"},"East Midlands and the Humber"]
[null,null,null,null,null,null,null,null,null,null,null,null,null,null,124652,"St Augustine's RC (A) Primary School","2013-11-01","Stoke-on-Trent City Council",{"$f":"VLOOKUP(R4265,'LA CPID Look up'!$A$3:$C$153,2,FALSE)","v":"Stoke-on-Trent Unitary Authority"},"West Midlands"]
[null,null,null,null,null,null,null,null,null,null,null,null,null,null,124088,"St Augustine's RC Primary School - Darlington","2013-04-01","Darlington Borough Council",{"$f":"VLOOKUP(R4266,'LA CPID Look up'!$A$3:$C$153,2,FALSE)","v":"Darlington Borough Council"},"North of England",{"$f":"VLOOKUP(R4266,'LA CPID Look up'!A:B,2)","v":"Darlington Borough Council"}]
[null,null,null,null,null,null,null,null,null,null,null,null,null,null,132968,"St Austin's Catholic (VA) Primary School - Stafford","2016-03-01","Staffordshire County Council",{"$f":"VLOOKUP(R4268,'LA CPID Look up'!$A$3:$C$153,2,FALSE)","v":"Staffordshire County Council"},"West Midlands"]
[null,null,null,null,null,null,null,null,null,null,null,null,null,null,132003,"St Austin's Catholic Primary School - Wakefield","2015-07-01","Wakefield Council",{"$f":"VLOOKUP(R4269,'LA CPID Look up'!$A$3:$C$153,2,FALSE)","v":"Wakefield City Council"},"Lancashire and West Yorkshire"]
[null,null,null,null,null,null,null,null,null,null,null,null,null,null,120957,"St Barnabas CofE Primary Academy - Manchester","2012-04-01","Manchester City Council",{"$f":"VLOOKUP(R4271,'LA CPID Look up'!$A$3:$C$153,2,FALSE)","v":"Manchester City Council"},"Lancashire and West Yorkshire"]
[null,null,null,null,null,null,null,null,null,null,null,null,null,null,123806,"St Bartholomew's Church of England Academy - Coventry","2013-09-01","Coventry City Council",{"$f":"VLOOKUP(R4272,'LA CPID Look up'!$A$3:$C$153,2,FALSE)","v":"Coventry City Council"},"West Midlands"]
[null,null,null,null,null,null,null,null,null,null,null,null,null,null,120402,"St Bartholomew's School - Newbury","2011-09-01","West Berkshire Council",{"$f":"VLOOKUP(R4274,'LA CPID Look up'!$A$3:$C$153,2,FALSE)","v":"West Berkshire Council"},"East of England and North-East London"]
[null,null,null,null,null,null,null,null,null,null,null,null,null,null,119889,"St Bede Academy - Bolton","2011-07-01","Bolton Metropolitan Borough Council",{"$f":"VLOOKUP(R4275,'LA CPID Look up'!$A$3:$C$153,2,FALSE)","v":"Bolton Metropolitan Borough Council"},"Lancashire and West Yorkshire"]
[null,null,null,null,null,null,null,null,null,null,null,null,null,null,120562,"St Bede's Catholic College - Bristol","2011-11-01","Bristol City Council",{"$f":"VLOOKUP(R4277,'LA CPID Look up'!$A$3:$C$153,2,FALSE)","v":"Bristol City Council"},"South-West England"]
[null,null,null,null,null,null,null,null,null,null,null,null,null,null,122144,"St Bede's Catholic Comprehensive School and Sixth Form College, Lanchester","2012-06-01","Durham County Council",{"$f":"VLOOKUP(R4278,'LA CPID Look up'!$A$3:$C$153,2,FALSE)","v":"County Durham Unitary Authority"},"North of England"]
[null,null,null,null,null,null,null,null,null,null,null,null,null,null,124191,"St Bede's Catholic Primary School - Rotherham","2013-07-01","Rotherham Metropolitan Borough Council",{"$f":"VLOOKUP(R4280,'LA CPID Look up'!$A$3:$C$153,2,FALSE)","v":"Rotherham Borough Council"},"East Midlands and the Humber"]
[null,null,null,null,null,null,null,null,null,null,null,null,null,null,121200,"St Bede's Catholic Voluntary Academy - Scunthorpe","2012-04-01","North Lincolnshire Council",{"$f":"VLOOKUP(R4281,'LA CPID Look up'!$A$3:$C$153,2,FALSE)","v":"North Lincolnshire Council"},"East Midlands and the Humber"]
[null,null,null,null,null,null,null,null,null,null,null,null,null,null,122352,"St Bede's RC Primary School - Darlington","2012-08-01","Darlington Borough Council",{"$f":"VLOOKUP(R4283,'LA CPID Look up'!$A$3:$C$153,2,FALSE)","v":"Darlington Borough Council"},"North of England"]
[null,null,null,null,null,null,null,null,null,null,null,null,null,null,130295,"St Benedict’s Primary Catholic Voluntary Academy ","2015-09-01","Redcar and Cleveland Borough Council",{"$f":"VLOOKUP(R4284,'LA CPID Look up'!$A$3:$C$153,2,FALSE)","v":"Redcar and Cleveland Borough Council"},"North of England"]
[null,null,null,null,null,null,null,null,null,null,null,null,null,null,122365,"St Benedict's Catholic Primary School - Leeds","2012-11-01","Leeds City Council",{"$f":"VLOOKUP(R4286,'LA CPID Look up'!$A$3:$C$153,2,FALSE)","v":"Leeds City Council"},"Lancashire and West Yorkshire"]
[null,null,null,null,null,null,null,null,null,null,null,null,null,null,130732,"St Benet Biscop Catholic Academy","2015-03-01","Northumberland County Council",{"$f":"VLOOKUP(R4287,'LA CPID Look up'!$A$3:$C$153,2,FALSE)","v":"Northumberland Unitary Authority"},"North of England"]
[null,null,null,null,null,null,null,null,null,null,null,null,null,null,121925,"St Bernadette's Catholic Primary Voluntary Academy","2012-04-01","North Lincolnshire Council",{"$f":"VLOOKUP(R4289,'LA CPID Look up'!$A$3:$C$153,2,FALSE)","v":"North Lincolnshire Council"},"East Midlands and the Humber"]
[null,null,null,null,null,null,null,null,null,null,null,null,null,null,132362,"St Bernadette's RC Primary School","2015-11-01","Middlesbrough Council",{"$f":"VLOOKUP(R4290,'LA CPID Look up'!$A$3:$C$153,2,FALSE)","v":"Middlesbrough Council"},"North of England"]
[null,null,null,null,null,null,null,null,null,null,null,null,null,null,130356,"St Bernard's Roman Catholic Primary School","2014-06-01","Cheshire West and Chester Council",{"$f":"VLOOKUP(R4293,'LA CPID Look up'!$A$3:$C$153,2,FALSE)","v":"Cheshire West and Chester Unitary Authority"},"West Midlands"]
[null,null,null,null,null,null,null,null,null,null,null,null,null,null,132194,"St Bernard's School, Louth","2015-09-01","Lincolnshire County Council",{"$f":"VLOOKUP(R4294,'LA CPID Look up'!$A$3:$C$153,2,FALSE)","v":"Lincolnshire County Council"},"East Midlands and the Humber"]
[null,null,null,null,null,null,null,null,null,null,null,null,null,null,123808,"St Blasius Shanklin CofE Primary Academy","2013-09-01","Isle of Wight Council",{"$f":"VLOOKUP(R4296,'LA CPID Look up'!$A$3:$C$153,2,FALSE)","v":"Isle of Wight Council"},"South-East England and South London"]
[null,null,null,null,null,null,null,null,null,null,null,null,null,null,130645,"St Boniface's RC College","2014-04-01","Plymouth City Council",{"$f":"VLOOKUP(R4297,'LA CPID Look up'!$A$3:$C$153,2,FALSE)","v":"Plymouth City Council"},"South-West England"]
[null,null,null,null,null,null,null,null,null,null,null,null,null,null,132982,"St Brendan's Catholic Primary School","2015-09-01","Northamptonshire County Council",{"$f":"VLOOKUP(R4299,'LA CPID Look up'!$A$3:$C$153,2,FALSE)","v":"Northamptonshire County Council"},"East of England and North-East London"]
[null,null,null,null,null,null,null,null,null,null,null,null,null,null,120142,"St Breock Primary School","2011-08-01","Cornwall Council",{"$f":"VLOOKUP(R4300,'LA CPID Look up'!$A$3:$C$153,2,FALSE)","v":"Cornwall Unitary Authority"},"South-West England"]
[null,null,null,null,null,null,null,null,null,null,null,null,null,null,119254,"St Buryan Primary School","2010-09-01","Cornwall Council",{"$f":"VLOOKUP(R4302,'LA CPID Look up'!$A$3:$C$153,2,FALSE)","v":"Cornwall Unitary Authority"},"South-West England"]
[null,null,null,null,null,null,null,null,null,null,null,null,null,null,122511,"St Catherine of Siena Catholic Primary School","2012-07-01","Hertfordshire County Council",{"$f":"VLOOKUP(R4303,'LA CPID Look up'!$A$3:$C$153,2,FALSE)","v":"Hertfordshire County Council"},"East of England and North-East London"]
[null,null,null,null,null,null,null,null,null,null,null,null,null,null,130115,"St Catherine's Catholic Primary School, Wimborne","2014-04-01","Dorset County Council",{"$f":"VLOOKUP(R4305,'LA CPID Look up'!$A$3:$C$153,2,FALSE)","v":"Dorset County Council"},"South-West England"]
[null,null,null,null,null,null,null,null,null,null,null,null,null,null,119931,"St Catherine's Catholic School for Girls","2011-12-01","Bexley London Borough Council",{"$f":"VLOOKUP(R4306,'LA CPID Look up'!$A$3:$C$153,2,FALSE)","v":"Bexley London Borough Council"},"South-East England and South London"]
[null,null,null,null,null,null,null,null,null,null,null,null,null,null,130120,"St Catherine's Roman Catholic School","2014-04-01","Dorset County Council",{"$f":"VLOOKUP(R4308,'LA CPID Look up'!$A$3:$C$153,2,FALSE)","v":"Dorset County Council"},"South-West England"]
[null,null,null,null,null,null,null,null,null,null,null,null,null,null,130314,"St Cedd's Church of England Voluntary Aided Primary School, Bradwell","2014-06-01","Essex County Council",{"$f":"VLOOKUP(R4309,'LA CPID Look up'!$A$3:$C$153,2,FALSE)","v":"Essex County Council"},"East of England and North-East London"]
[null,null,null,null,null,null,null,null,null,null,null,null,null,null,131075,"St Chad's Church of England Primary School - Leeds","2014-11-01","Leeds City Council",{"$f":"VLOOKUP(R4311,'LA CPID Look up'!$A$3:$C$153,2,FALSE)","v":"Leeds City Council"},"Lancashire and West Yorkshire"]
[null,null,null,null,null,null,null,null,null,null,null,null,null,null,122166,"St Chad's Church of England Primary School - Oldham","2014-02-01","Oldham Metropolitan Borough Council",{"$f":"VLOOKUP(R4312,'LA CPID Look up'!$A$3:$C$153,2,FALSE)","v":"Oldham Metropolitan Borough Council"},"Lancashire and West Yorkshire"]
[null,null,null,null,null,null,null,null,null,null,null,null,null,null,120726,"St Christophers Academy","2012-04-01","Central Bedfordshire Council",{"$f":"VLOOKUP(R4314,'LA CPID Look up'!$A$3:$C$153,2,FALSE)","v":"Central Bedfordshire Unitary Authority"},"South-Central England and North-West London"]
[null,null,null,null,null,null,null,null,null,null,null,null,null,null,131455,"St Christopher's Church of England School - Lechlade","2015-03-01","Oxfordshire County Council",{"$f":"VLOOKUP(R4315,'LA CPID Look up'!$A$3:$C$153,2,FALSE)","v":"Oxfordshire County Council"},"East of England and North-East London"]
[null,null,null,null,null,null,null,null,null,null,null,null,null,null,124555,"St Clare's Catholic Primary School - Clacton-on-Sea","2013-09-01","Essex County Council",{"$f":"VLOOKUP(R4317,'LA CPID Look up'!$A$3:$C$153,2,FALSE)","v":"Essex County Council"},"East of England and North-East London"]
[null,null,null,null,null,null,null,null,null,null,null,null,null,null,132347,"St Clare's RC Primary School - Acklam","2015-11-01","Middlesbrough Council",{"$f":"VLOOKUP(R4318,'LA CPID Look up'!$A$3:$C$153,2,FALSE)","v":"Middlesbrough Council"},"North of England"]
[null,null,null,null,null,null,null,null,null,null,null,null,null,null,131777,"St Clement's and St John's Church of England Infant School","2015-07-01","Bournemouth Borough Council",{"$f":"VLOOKUP(R4320,'LA CPID Look up'!$A$3:$C$153,2,FALSE)","v":"Bournemouth Council"},"South-West England"]
[null,null,null,null,null,null,null,null,null,null,null,null,null,null,122108,"St Clement's Church of England Academy","2012-10-01","Birmingham City Council",{"$f":"VLOOKUP(R4321,'LA CPID Look up'!$A$3:$C$153,2,FALSE)","v":"Birmingham City Council"},"West Midlands"]
[null,null,null,null,null,null,null,null,null,null,null,null,null,null,120440,"St Clere's School","2011-09-01","Thurrock Borough Council",{"$f":"VLOOKUP(R4324,'LA CPID Look up'!$A$3:$C$153,2,FALSE)","v":"Thurrock Unitary Authority"},"East of England and North-East London"]
[null,null,null,null,null,null,null,null,null,null,null,null,null,null,119822,"St Columb Major Academy","2011-07-01","Cornwall Council",{"$f":"VLOOKUP(R4325,'LA CPID Look up'!$A$3:$C$153,2,FALSE)","v":"Cornwall Unitary Authority"},"South-West England"]
[null,null,null,null,null,null,null,null,null,null,null,null,null,null,121948,"St Columba Church of England Primary Academy","2012-09-01","Hampshire County Council",{"$f":"VLOOKUP(R4327,'LA CPID Look up'!$A$3:$C$153,2,FALSE)","v":"Hampshire County Council"},"South-East England and South London"]
[null,null,null,null,null,null,null,null,null,null,null,null,null,null,121201,"St Columba's Catholic Boys' School","2012-09-01","Bexley London Borough Council",{"$f":"VLOOKUP(R4328,'LA CPID Look up'!$A$3:$C$153,2,FALSE)","v":"Bexley London Borough Council"},"South-East England and South London"]
[null,null,null,null,null,null,null,null,null,null,null,null,null,null,130908,"St Cuthbert's Catholic Academy - Blackpool","2014-09-01","Blackpool Council",{"$f":"VLOOKUP(R4330,'LA CPID Look up'!$A$3:$C$153,2,FALSE)","v":"Blackpool Unitary Authority"},"Lancashire and West Yorkshire"]
[null,null,null,null,null,null,null,null,null,null,null,null,null,null,120858,"St Cuthbert's Church of England Infants School","2012-11-01","Somerset County Council",{"$f":"VLOOKUP(R4331,'LA CPID Look up'!$A$3:$C$153,2,FALSE)","v":"Somerset County Council"},"South-West England"]
[null,null,null,null,null,null,null,null,null,null,null,null,null,null,121191,"St Cyprian's Greek Orthodox Primary Academy","2012-07-01","Croydon London Borough Council",{"$f":"VLOOKUP(R4333,'LA CPID Look up'!$A$3:$C$153,2,FALSE)","v":"Croydon London Borough Council"},"South-East England and South London"]
[null,null,null,null,null,null,null,null,null,null,null,null,null,null,120856,"St David's Church of England Primary School","2013-01-01","Gloucestershire County Council",{"$f":"VLOOKUP(R4334,'LA CPID Look up'!$A$3:$C$153,2,FALSE)","v":"Gloucestershire County Council"},"South-West England"]
[null,null,null,null,null,null,null,null,null,null,null,null,null,null,132970,"St Dominic's Catholic Primary School - Stone","2016-03-01","Staffordshire County Council",{"$f":"VLOOKUP(R4336,'LA CPID Look up'!$A$3:$C$153,2,FALSE)","v":"Staffordshire County Council"},"West Midlands"]
[null,null,null,null,null,null,null,null,null,null,null,null,null,null,120407,"St Dominic's Catholic Primary School - Stroud","2011-09-01","Gloucestershire County Council",{"$f":"VLOOKUP(R4337,'LA CPID Look up'!$A$3:$C$153,2,FALSE)","v":"Gloucestershire County Council"},"South-West England"]
[null,null,null,null,null,null,null,null,null,null,null,null,null,null,123048,"St Eanswythe's Church of England Primary School","2013-02-01","Kent County Council",{"$f":"VLOOKUP(R4339,'LA CPID Look up'!$A$3:$C$153,2,FALSE)","v":"Kent County Council"},"South-East England and South London"]
[null,null,null,null,null,null,null,null,null,null,null,null,null,null,120273,"St Edmund Campion Catholic Primary School","2011-09-01","Nottinghamshire County Council",{"$f":"VLOOKUP(R4340,'LA CPID Look up'!$A$3:$C$153,2,FALSE)","v":"Nottinghamshire County Council"},"East Midlands and the Humber"]
[null,null,null,null,null,null,null,null,null,null,null,null,null,null,120611,"St Edmund's Girls' School","2012-02-01","Wiltshire Council",{"$f":"VLOOKUP(R4342,'LA CPID Look up'!$A$3:$C$153,2,FALSE)","v":"Wiltshire Unitary Authority"},"South-West England"]
[null,null,null,null,null,null,null,null,null,null,null,null,null,null,131408,"St Edward's Catholic Primary School - Kettering","2015-03-01","Northamptonshire County Council",{"$f":"VLOOKUP(R4343,'LA CPID Look up'!$A$3:$C$153,2,FALSE)","v":"Northamptonshire County Council"},"East of England and North-East London"]
[null,null,null,null,null,null,null,null,null,null,null,null,null,null,120145,"St Edward's Church of England School & Sixth Form College","2011-08-01","Havering London Borough Council",{"$f":"VLOOKUP(R4345,'LA CPID Look up'!$A$3:$C$153,2,FALSE)","v":"Havering London Borough Council"},"East of England and North-East London"]
[null,null,null,null,null,null,null,null,null,null,null,null,null,null,132962,"St Edward's CofE Primary School","2015-11-01","Plymouth City Council",{"$f":"VLOOKUP(R4346,'LA CPID Look up'!$A$3:$C$153,2,FALSE)","v":"Plymouth City Council"},"South-West England"]
[null,null,null,null,null,null,null,null,null,null,null,null,null,null,132337,"St Edward's RC Primary School - Middlesbrough","2015-11-01","Middlesbrough Council",{"$f":"VLOOKUP(R4348,'LA CPID Look up'!$A$3:$C$153,2,FALSE)","v":"Middlesbrough Council"},"North of England"]
[null,null,null,null,null,null,null,null,null,null,null,null,null,null,129574,"St Elizabeth's Catholic Primary School","2014-04-01","Manchester City Council",{"$f":"VLOOKUP(R4349,'LA CPID Look up'!$A$3:$C$153,2,FALSE)","v":"Manchester City Council"},"Lancashire and West Yorkshire"]
[null,null,null,null,null,null,null,null,null,null,null,null,null,null,131135,"St Francis Catholic Primary School, South Ascot","2015-09-01","Royal Borough of Windsor and Maidenhead",{"$f":"VLOOKUP(R4352,'LA CPID Look up'!$A$3:$C$153,2,FALSE)","v":"Windsor and Maidenhead (Royal Borough of)"},"East of England and North-East London"]
[null,null,null,null,null,null,null,null,null,null,null,null,null,null,131881,"St Francis Xavier Catholic Primary School","2015-04-01","Sandwell Metropolitan Borough Council",{"$f":"VLOOKUP(R4353,'LA CPID Look up'!$A$3:$C$153,2,FALSE)","v":"Sandwell Metropolitan Borough Council"},"West Midlands"]
[null,null,null,null,null,null,null,null,null,null,null,null,null,null,123406,"St George and St Martin's Catholic Primary School","2013-09-01","Stoke-on-Trent City Council",{"$f":"VLOOKUP(R4355,'LA CPID Look up'!$A$3:$C$153,2,FALSE)","v":"Stoke-on-Trent Unitary Authority"},"West Midlands"]
[null,null,null,null,null,null,null,null,null,null,null,null,null,null,123415,"St Georges Academy - Hockley","2013-09-01","Birmingham City Council",{"$f":"VLOOKUP(R4356,'LA CPID Look up'!$A$3:$C$153,2,FALSE)","v":"Birmingham City Council"},"West Midlands"]
[null,null,null,null,null,null,null,null,null,null,null,null,null,null,122691,"St George's Catholic Primary School - Derby","2012-09-01","Derby City Council",{"$f":"VLOOKUP(R4358,'LA CPID Look up'!$A$3:$C$153,2,FALSE)","v":"Derby City Council"},"East Midlands and the Humber"]
[null,null,null,null,null,null,null,null,null,null,null,null,null,null,121849,"St George's Catholic School - Westminster","2013-03-01","Westminster City Council",{"$f":"VLOOKUP(R4359,'LA CPID Look up'!$A$3:$C$153,2,FALSE)","v":"Westminster City Council"},"East of England and North-East London"]
[null,null,null,null,null,null,null,null,null,null,null,null,null,null,125720,"St George's Church of England Primary School - Edgbaston","2013-07-01","Birmingham City Council",{"$f":"VLOOKUP(R4361,'LA CPID Look up'!$A$3:$C$153,2,FALSE)","v":"Birmingham City Council"},"West Midlands"]
[null,null,null,null,null,null,null,null,null,null,null,null,null,null,131453,"St George's Church of England Primary School, Semington","2015-04-01","Wiltshire Council",{"$f":"VLOOKUP(R4362,'LA CPID Look up'!$A$3:$C$153,2,FALSE)","v":"Wiltshire Unitary Authority"},"South-West England"]
[null,null,null,null,null,null,null,null,null,null,null,null,null,null,124802,"St George's CofE Primary Academy - Plymouth","2013-09-01","Plymouth City Council",{"$f":"VLOOKUP(R4364,'LA CPID Look up'!$A$3:$C$153,2,FALSE)","v":"Plymouth City Council"},"South-West England"]
[null,null,null,null,null,null,null,null,null,null,null,null,null,null,120807,"St George's School - Harpenden","2012-07-01","Hertfordshire County Council",{"$f":"VLOOKUP(R4365,'LA CPID Look up'!$A$3:$C$153,2,FALSE)","v":"Hertfordshire County Council"},"East of England and North-East London"]
[null,null,null,null,null,null,null,null,null,null,null,null,null,null,124186,"St Gerard's Catholic Primary School - Rotherham","2013-07-01","Rotherham Metropolitan Borough Council",{"$f":"VLOOKUP(R4367,'LA CPID Look up'!$A$3:$C$153,2,FALSE)","v":"Rotherham Borough Council"},"East Midlands and the Humber"]
[null,null,null,null,null,null,null,null,null,null,null,null,null,null,132364,"St Gerard's RC Primary School - Middlesbrough","2015-11-01","Middlesbrough Council",{"$f":"VLOOKUP(R4368,'LA CPID Look up'!$A$3:$C$153,2,FALSE)","v":"Middlesbrough Council"},"North of England"]
[null,null,null,null,null,null,null,null,null,null,null,null,null,null,127252,"St Giles' and St George's CofE (C) Primary School","2014-10-01","Staffordshire County Council",{"$f":"VLOOKUP(R4370,'LA CPID Look up'!$A$3:$C$153,2,FALSE)","v":"Staffordshire County Council"},"West Midlands"]
[null,null,null,null,null,null,null,null,null,null,null,null,null,null,122659,"St Giles Catholic Primary School","2012-09-01","Staffordshire County Council",{"$f":"VLOOKUP(R4371,'LA CPID Look up'!$A$3:$C$153,2,FALSE)","v":"Staffordshire County Council"},"West Midlands"]
[null,null,null,null,null,null,null,null,null,null,null,null,null,null,127247,"St Giles CofE (VA) J&I Pontefract","2013-12-01","Wakefield Council",{"$f":"VLOOKUP(R4373,'LA CPID Look up'!$A$3:$C$153,2,FALSE)","v":"Wakefield City Council"},"Lancashire and West Yorkshire"]
[null,null,null,null,null,null,null,null,null,null,null,null,null,null,124075,"St Gregory the Great Catholic School","2013-04-01","Oxfordshire County Council",{"$f":"VLOOKUP(R4374,'LA CPID Look up'!$A$3:$C$153,2,FALSE)","v":"Oxfordshire County Council"},"East of England and North-East London"]
[null,null,null,null,null,null,null,null,null,null,null,null,null,null,132442,"St Gregory's Catholic Primary School - Coventry","2015-08-01","Coventry City Council",{"$f":"VLOOKUP(R4376,'LA CPID Look up'!$A$3:$C$153,2,FALSE)","v":"Coventry City Council"},"West Midlands"]
[null,null,null,null,null,null,null,null,null,null,null,null,null,null,124638,"St Gregory's Catholic Primary School - Longton","2013-11-01","Stoke-on-Trent City Council",{"$f":"VLOOKUP(R4377,'LA CPID Look up'!$A$3:$C$153,2,FALSE)","v":"Stoke-on-Trent Unitary Authority"},"West Midlands"]
[null,null,null,null,null,null,null,null,null,null,null,null,null,null,124074,"St Gregory's Catholic Primary School - Stockton-on-Tees","2013-04-01","Stockton-on-Tees Borough Council",{"$f":"VLOOKUP(R4379,'LA CPID Look up'!$A$3:$C$153,2,FALSE)","v":"Stockton-on-Tees Borough Council"},"North of England"]
[null,null,null,null,null,null,null,null,null,null,null,null,null,null,124289,"St Gregory's Catholic Primary School, Margate","2014-05-01","Kent County Council",{"$f":"VLOOKUP(R4380,'LA CPID Look up'!$A$3:$C$153,2,FALSE)","v":"Kent County Council"},"South-East England and South London"]
[null,null,null,null,null,null,null,null,null,null,null,null,null,null,121048,"St Helena School","2012-03-01","Essex County Council",{"$f":"VLOOKUP(R4383,'LA CPID Look up'!$A$3:$C$153,2,FALSE)","v":"Essex County Council"},"East of England and North-East London"]
[null,null,null,null,null,null,null,null,null,null,null,null,null,null,119977,"St Helen's Catholic Junior School","2011-08-01","Essex County Council",{"$f":"VLOOKUP(R4384,'LA CPID Look up'!$A$3:$C$153,2,FALSE)","v":"Essex County Council"},"East of England and North-East London"]
[null,null,null,null,null,null,null,null,null,null,null,null,null,null,124308,"St Helen's CE Primary School","2013-07-01","Wakefield Council",{"$f":"VLOOKUP(R4386,'LA CPID Look up'!$A$3:$C$153,2,FALSE)","v":"Wakefield City Council"},"Lancashire and West Yorkshire"]
[null,null,null,null,null,null,null,null,null,null,null,null,null,null,122596,"St Helen's Primary Academy - Barnsley","2012-12-01","Barnsley Metropolitan Borough Council",{"$f":"VLOOKUP(R4387,'LA CPID Look up'!$A$3:$C$153,2,FALSE)","v":"Barnsley Metropolitan Borough Council"},"East Midlands and the Humber"]
[null,null,null,null,null,null,null,null,null,null,null,null,null,null,119824,"St Hilary School","2011-07-01","Cornwall Council",{"$f":"VLOOKUP(R4389,'LA CPID Look up'!$A$3:$C$153,2,FALSE)","v":"Cornwall Unitary Authority"},"South-West England"]
[null,null,null,null,null,null,null,null,null,null,null,null,null,null,122332,"St Ignatius Catholic Primary School","2012-11-01","Wakefield Council",{"$f":"VLOOKUP(R4390,'LA CPID Look up'!$A$3:$C$153,2,FALSE)","v":"Wakefield City Council"},"Lancashire and West Yorkshire"]
[null,null,null,null,null,null,null,null,null,null,null,null,null,null,131846,"St Ives Primary School","2015-12-01","Dorset County Council",{"$f":"VLOOKUP(R4392,'LA CPID Look up'!$A$3:$C$153,2,FALSE)","v":"Dorset County Council"},"South-West England"]
[null,null,null,null,null,null,null,null,null,null,null,null,null,null,130048,"St Ives School","2014-04-01","Cornwall Council",{"$f":"VLOOKUP(R4393,'LA CPID Look up'!$A$3:$C$153,2,FALSE)","v":"Cornwall Unitary Authority"},"South-West England"]
[null,null,null,null,null,null,null,null,null,null,null,null,null,null,130642,"St James Catholic Primary School","2015-04-01","Birmingham City Council",{"$f":"VLOOKUP(R4395,'LA CPID Look up'!$A$3:$C$153,2,FALSE)","v":"Birmingham City Council"},"West Midlands"]
[null,null,null,null,null,null,null,null,null,null,null,null,null,null,131397,"St James' Church of England Academy - Hull","2015-02-01","Hull City Council",{"$f":"VLOOKUP(R4396,'LA CPID Look up'!$A$3:$C$153,2,FALSE)","v":"Kingston upon Hull City Council"},"East Midlands and the Humber"]
[null,null,null,null,null,null,null,null,null,null,null,null,null,null,121953,"St James Church of England Primary Academy - Rochester","2012-12-01","Medway Council",{"$f":"VLOOKUP(R4398,'LA CPID Look up'!$A$3:$C$153,2,FALSE)","v":"Medway Towns Unitary Authority (The)"},"South-East England and South London"]
[null,null,null,null,null,null,null,null,null,null,null,null,null,null,130348,"St James' Church of England Primary School - Bournemouth","2014-04-01","Bournemouth Borough Council",{"$f":"VLOOKUP(R4399,'LA CPID Look up'!$A$3:$C$153,2,FALSE)","v":"Bournemouth Council"},"South-West England"]
[null,null,null,null,null,null,null,null,null,null,null,null,null,null,132486,"St James Church of England Primary School, Hanney","2016-03-01","Oxfordshire County Council",{"$f":"VLOOKUP(R4401,'LA CPID Look up'!$A$3:$C$153,2,FALSE)","v":"Oxfordshire County Council"},"East of England and North-East London"]
[null,null,null,null,null,null,null,null,null,null,null,null,null,null,123119,"St James Church School - Taunton","2013-04-01","Somerset County Council",{"$f":"VLOOKUP(R4402,'LA CPID Look up'!$A$3:$C$153,2,FALSE)","v":"Somerset County Council"},"South-West England"]
[null,null,null,null,null,null,null,null,null,null,null,null,null,null,131783,"St James' CofE Primary School, Gorton","2015-03-01","Manchester City Council",{"$f":"VLOOKUP(R4404,'LA CPID Look up'!$A$3:$C$153,2,FALSE)","v":"Manchester City Council"},"Lancashire and West Yorkshire"]
[null,null,null,null,null,null,null,null,null,null,null,null,null,null,131938,"St James CofE VA Primary School - Northampton","2015-02-01","Northamptonshire County Council",{"$f":"VLOOKUP(R4405,'LA CPID Look up'!$A$3:$C$153,2,FALSE)","v":"Northamptonshire County Council"},"East of England and North-East London"]
[null,null,null,null,null,null,null,null,null,null,null,null,null,null,121099,"St James the Great Academy - East Maling","2012-04-01","Kent County Council",{"$f":"VLOOKUP(R4407,'LA CPID Look up'!$A$3:$C$153,2,FALSE)","v":"Kent County Council"},"South-East England and South London"]
[null,null,null,null,null,null,null,null,null,null,null,null,null,null,121461,"St James the Great RC Primary and Nursery School","2012-04-01","Croydon London Borough Council",{"$f":"VLOOKUP(R4408,'LA CPID Look up'!$A$3:$C$153,2,FALSE)","v":"Croydon London Borough Council"},"South-East England and South London"]
[null,null,null,null,null,null,null,null,null,null,null,null,null,null,122133,"St John Fisher - Alvaston","2012-09-01","Derby City Council",{"$f":"VLOOKUP(R4411,'LA CPID Look up'!$A$3:$C$153,2,FALSE)","v":"Derby City Council"},"East Midlands and the Humber"]
[null,null,null,null,null,null,null,null,null,null,null,null,null,null,123848,"St John Fisher and Thomas More Catholic Primary School","2013-04-01","Manchester City Council",{"$f":"VLOOKUP(R4412,'LA CPID Look up'!$A$3:$C$153,2,FALSE)","v":"Manchester City Council"},"Lancashire and West Yorkshire"]
[null,null,null,null,null,null,null,null,null,null,null,null,null,null,132413,"St John Fisher Catholic Primary School - Coventry","2015-08-01","Coventry City Council",{"$f":"VLOOKUP(R4414,'LA CPID Look up'!$A$3:$C$153,2,FALSE)","v":"Coventry City Council"},"West Midlands"]
[null,null,null,null,null,null,null,null,null,null,null,null,null,null,124138,"St John Fisher Catholic Primary School - Sheffield","2013-12-01","Sheffield City Council",{"$f":"VLOOKUP(R4415,'LA CPID Look up'!$A$3:$C$153,2,FALSE)","v":"Sheffield City Council"},"East Midlands and the Humber"]
[null,null,null,null,null,null,null,null,null,null,null,null,null,null,130692,"St John Fisher Catholic Voluntary Academy - Drewsbury","2014-10-01","Kirklees Metropolitan Council",{"$f":"VLOOKUP(R4417,'LA CPID Look up'!$A$3:$C$153,2,FALSE)","v":"Kirklees Metropolitan Council"},"Lancashire and West Yorkshire"]
[null,null,null,null,null,null,null,null,null,null,null,null,null,null,122865,"St John Plessington Catholic College","2012-12-01","Wirral Metropolitan Borough Council",{"$f":"VLOOKUP(R4418,'LA CPID Look up'!$A$3:$C$153,2,FALSE)","v":"Wirral Metropolitan Borough Council"},"Lancashire and West Yorkshire"]
[null,null,null,null,null,null,null,null,null,null,null,null,null,null,122573,"St John Roman Catholic Primary School","2012-07-01","Hertfordshire County Council",{"$f":"VLOOKUP(R4420,'LA CPID Look up'!$A$3:$C$153,2,FALSE)","v":"Hertfordshire County Council"},"East of England and North-East London"]
[null,null,null,null,null,null,null,null,null,null,null,null,null,null,130122,"St John the Baptist Roman Catholic Primary School, Dartmouth","2014-04-01","Devon County Council",{"$f":"VLOOKUP(R4421,'LA CPID Look up'!$A$3:$C$153,2,FALSE)","v":"Devon County Council"},"South-West England"]
[null,null,null,null,null,null,null,null,null,null,null,null,null,null,120493,"St John's (CofE) Primary Academy, Clifton","2011-10-01","Calderdale Metropolitan Borough Council",{"$f":"VLOOKUP(R4423,'LA CPID Look up'!$A$3:$C$153,2,FALSE)","v":"Calderdale Metropolitan Borough Council"},"Lancashire and West Yorkshire"]
[null,null,null,null,null,null,null,null,null,null,null,null,null,null,122798,"St John's and St Peter's CofE Academy","2012-11-01","Birmingham City Council",{"$f":"VLOOKUP(R4424,'LA CPID Look up'!$A$3:$C$153,2,FALSE)","v":"Birmingham City Council"},"West Midlands"]
[null,null,null,null,null,null,null,null,null,null,null,null,null,null,130113,"St John's Catholic Primary School - Tiverton","2014-04-01","Devon County Council",{"$f":"VLOOKUP(R4426,'LA CPID Look up'!$A$3:$C$153,2,FALSE)","v":"Devon County Council"},"South-West England"]
[null,null,null,null,null,null,null,null,null,null,null,null,null,null,130133,"St John's Catholic Primary School, Camborne","2014-04-01","Cornwall Council",{"$f":"VLOOKUP(R4427,'LA CPID Look up'!$A$3:$C$153,2,FALSE)","v":"Cornwall Unitary Authority"},"South-West England"]
[null,null,null,null,null,null,null,null,null,null,null,null,null,null,122688,"St John's Church of England Academy - Coleford","2012-09-01","Gloucestershire County Council",{"$f":"VLOOKUP(R4429,'LA CPID Look up'!$A$3:$C$153,2,FALSE)","v":"Gloucestershire County Council"},"South-West England"]
[null,null,null,null,null,null,null,null,null,null,null,null,null,null,130831,"St John's Church of England Academy - Coventry","2014-09-01","Coventry City Council",{"$f":"VLOOKUP(R4430,'LA CPID Look up'!$A$3:$C$153,2,FALSE)","v":"Coventry City Council"},"West Midlands"]
[null,null,null,null,null,null,null,null,null,null,null,null,null,null,131895,"St John's Church of England Infant School","2015-09-01","Medway Council",{"$f":"VLOOKUP(R4432,'LA CPID Look up'!$A$3:$C$153,2,FALSE)","v":"Medway Towns Unitary Authority (The)"},"South-East England and South London"]
[null,null,null,null,null,null,null,null,null,null,null,null,null,null,123250,"St John's Church of England Middle School Academy - Bromsgrove","2013-02-01","Worcestershire County Council",{"$f":"VLOOKUP(R4433,'LA CPID Look up'!$A$3:$C$153,2,FALSE)","v":"Worcestershire County Council"},"West Midlands"]
[null,null,null,null,null,null,null,null,null,null,null,null,null,null,132904,"St John's Church of England Primary School - Bristol","2015-09-01","Bath & North East Somerset Council",{"$f":"VLOOKUP(R4435,'LA CPID Look up'!$A$3:$C$153,2,FALSE)","v":"Bath & North East Somerset Council"},"South-West England"]
[null,null,null,null,null,null,null,null,null,null,null,null,null,null,123099,"St John's Church of England Primary School - Dorking","2013-11-01","Surrey County Council",{"$f":"VLOOKUP(R4436,'LA CPID Look up'!$A$3:$C$153,2,FALSE)","v":"Surrey County Council"},"South-East England and South London"]
[null,null,null,null,null,null,null,null,null,null,null,null,null,null,131447,"St John's Church of England Primary School, Abram","2015-01-01","Wigan Metropolitan Borough Council",{"$f":"VLOOKUP(R4438,'LA CPID Look up'!$A$3:$C$153,2,FALSE)","v":"Wigan Metropolitan Borough Council"},"Lancashire and West Yorkshire"]
[null,null,null,null,null,null,null,null,null,null,null,null,null,null,131451,"St John's Church of England Primary School, Hindley Green","2015-01-01","Wigan Metropolitan Borough Council",{"$f":"VLOOKUP(R4439,'LA CPID Look up'!$A$3:$C$153,2,FALSE)","v":"Wigan Metropolitan Borough Council"},"Lancashire and West Yorkshire"]
[null,null,null,null,null,null,null,null,null,null,null,null,null,null,122106,"St John's CofE Primary School - Birmingham","2013-01-01","Birmingham City Council",{"$f":"VLOOKUP(R4442,'LA CPID Look up'!$A$3:$C$153,2,FALSE)","v":"Birmingham City Council"},"West Midlands"]
[null,null,null,null,null,null,null,null,null,null,null,null,null,null,123245,"St John's CofE Primary School - Radstock","2013-12-01","Bath & North East Somerset Council",{"$f":"VLOOKUP(R4443,'LA CPID Look up'!$A$3:$C$153,2,FALSE)","v":"Bath & North East Somerset Council"},"South-West England"]
[null,null,null,null,null,null,null,null,null,null,null,null,null,null,120809,"St John's Primary Academy - Bracebridge Heath","2012-01-01","Lincolnshire County Council",{"$f":"VLOOKUP(R4445,'LA CPID Look up'!$A$3:$C$153,2,FALSE)","v":"Lincolnshire County Council"},"East Midlands and the Humber"]
[null,null,null,null,null,null,null,null,null,null,null,null,null,null,131085,"St John's Primary Academy - Wolverhampton","2015-03-01","Staffordshire County Council",{"$f":"VLOOKUP(R4446,'LA CPID Look up'!$A$3:$C$153,2,FALSE)","v":"Staffordshire County Council"},"West Midlands"]
[null,null,null,null,null,null,null,null,null,null,null,null,null,null,127095,"St John's Primary School - Woking","2013-12-01","Surrey County Council",{"$f":"VLOOKUP(R4448,'LA CPID Look up'!$A$3:$C$153,2,FALSE)","v":"Surrey County Council"},"South-East England and South London"]
[null,null,null,null,null,null,null,null,null,null,null,null,null,null,122722,"St John's Primary School In Rishworth","2012-12-01","Calderdale Metropolitan Borough Council",{"$f":"VLOOKUP(R4449,'LA CPID Look up'!$A$3:$C$153,2,FALSE)","v":"Calderdale Metropolitan Borough Council"},"Lancashire and West Yorkshire"]
[null,null,null,null,null,null,null,null,null,null,null,null,null,null,120831,"St John's School & Sixth Form College","2011-12-01","Durham County Council",{"$f":"VLOOKUP(R4451,'LA CPID Look up'!$A$3:$C$153,2,FALSE)","v":"County Durham Unitary Authority"},"North of England"]
[null,null,null,null,null,null,null,null,null,null,null,null,null,null,124633,"St Joseph's Catholic Academy - Hebburn","2013-07-01","South Tyneside Council",{"$f":"VLOOKUP(R4452,'LA CPID Look up'!$A$3:$C$153,2,FALSE)","v":"South Tyneside Council"},"North of England"]
[null,null,null,null,null,null,null,null,null,null,null,null,null,null,119980,"St Joseph's Catholic College - Swindon","2011-08-01","Swindon Borough Council",{"$f":"VLOOKUP(R4454,'LA CPID Look up'!$A$3:$C$153,2,FALSE)","v":"Swindon Unitary Authority"},"South-West England"]
[null,null,null,null,null,null,null,null,null,null,null,null,null,null,131934,"St Joseph's Catholic Junior School","2015-03-01","Warwickshire County Council",{"$f":"VLOOKUP(R4455,'LA CPID Look up'!$A$3:$C$153,2,FALSE)","v":"Warwickshire County Council"},"West Midlands"]
[null,null,null,null,null,null,null,null,null,null,null,null,null,null,120382,"St Joseph's Catholic Primary School - Aldershot","2011-09-01","Hampshire County Council",{"$f":"VLOOKUP(R4457,'LA CPID Look up'!$A$3:$C$153,2,FALSE)","v":"Hampshire County Council"},"South-East England and South London"]
[null,null,null,null,null,null,null,null,null,null,null,null,null,null,131683,"St Joseph's Catholic Primary School - Birmingham","2015-04-01","Birmingham City Council",{"$f":"VLOOKUP(R4458,'LA CPID Look up'!$A$3:$C$153,2,FALSE)","v":"Birmingham City Council"},"West Midlands"]
[null,null,null,null,null,null,null,null,null,null,null,null,null,null,127307,"St Joseph's Catholic Primary School - Dinnington","2014-02-01","Rotherham Metropolitan Borough Council",{"$f":"VLOOKUP(R4460,'LA CPID Look up'!$A$3:$C$153,2,FALSE)","v":"Rotherham Borough Council"},"East Midlands and the Humber"]
[null,null,null,null,null,null,null,null,null,null,null,null,null,null,124442,"St Joseph's Catholic Primary School - Dudley","2013-09-01","Dudley Metropolitan Borough Council",{"$f":"VLOOKUP(R4461,'LA CPID Look up'!$A$3:$C$153,2,FALSE)","v":"Dudley Metropolitan Borough Council"},"West Midlands"]
[null,null,null,null,null,null,null,null,null,null,null,null,null,null,130110,"St Joseph's Catholic Primary School - Newton Abbot","2014-04-01","Devon County Council",{"$f":"VLOOKUP(R4463,'LA CPID Look up'!$A$3:$C$153,2,FALSE)","v":"Devon County Council"},"South-West England"]
[null,null,null,null,null,null,null,null,null,null,null,null,null,null,130089,"St Joseph's Catholic Primary School - Plymouth","2014-04-01","Plymouth City Council",{"$f":"VLOOKUP(R4464,'LA CPID Look up'!$A$3:$C$153,2,FALSE)","v":"Plymouth City Council"},"South-West England"]
[null,null,null,null,null,null,null,null,null,null,null,null,null,null,122403,"St Joseph's Catholic Primary School - Wakefield","2012-11-01","Wakefield Council",{"$f":"VLOOKUP(R4466,'LA CPID Look up'!$A$3:$C$153,2,FALSE)","v":"Wakefield City Council"},"Lancashire and West Yorkshire"]
[null,null,null,null,null,null,null,null,null,null,null,null,null,null,122349,"St Joseph's Catholic Primary School Castleford","2012-11-01","Wakefield Council",{"$f":"VLOOKUP(R4467,'LA CPID Look up'!$A$3:$C$153,2,FALSE)","v":"Wakefield City Council"},"Lancashire and West Yorkshire"]
[null,null,null,null,null,null,null,null,null,null,null,null,null,null,124290,"St Joseph's Catholic Primary School, Broadstairs","2014-03-01","Kent County Council",{"$f":"VLOOKUP(R4470,'LA CPID Look up'!$A$3:$C$153,2,FALSE)","v":"Kent County Council"},"South-East England and South London"]
[null,null,null,null,null,null,null,null,null,null,null,null,null,null,124056,"St Joseph's Catholic Primary School, Carterton","2013-04-01","Oxfordshire County Council",{"$f":"VLOOKUP(R4471,'LA CPID Look up'!$A$3:$C$153,2,FALSE)","v":"Oxfordshire County Council"},"East of England and North-East London"]
[null,null,null,null,null,null,null,null,null,null,null,null,null,null,130130,"St Joseph's Catholic Primary School, Exmouth","2014-04-01","Devon County Council",{"$f":"VLOOKUP(R4473,'LA CPID Look up'!$A$3:$C$153,2,FALSE)","v":"Devon County Council"},"South-West England"]
[null,null,null,null,null,null,null,null,null,null,null,null,null,null,132278,"St Joseph's Catholic Primary School, Harrogate, a Voluntary Academy","2015-07-01","North Yorkshire County Council",{"$f":"VLOOKUP(R4474,'LA CPID Look up'!$A$3:$C$153,2,FALSE)","v":"North Yorkshire County Council"},"North of England"]
[null,null,null,null,null,null,null,null,null,null,null,null,null,null,131222,"St Joseph's Catholic Primary School, Northfleet","2014-12-01","Kent County Council",{"$f":"VLOOKUP(R4476,'LA CPID Look up'!$A$3:$C$153,2,FALSE)","v":"Kent County Council"},"South-East England and South London"]
[null,null,null,null,null,null,null,null,null,null,null,null,null,null,123824,"St Joseph's Catholic Primary School, Otley","2013-03-01","Leeds City Council",{"$f":"VLOOKUP(R4477,'LA CPID Look up'!$A$3:$C$153,2,FALSE)","v":"Leeds City Council"},"Lancashire and West Yorkshire"]
[null,null,null,null,null,null,null,null,null,null,null,null,null,null,123861,"St Joseph's Catholic Primary School, Pudsey","2013-03-01","Leeds City Council",{"$f":"VLOOKUP(R4479,'LA CPID Look up'!$A$3:$C$153,2,FALSE)","v":"Leeds City Council"},"Lancashire and West Yorkshire"]
[null,null,null,null,null,null,null,null,null,null,null,null,null,null,124099,"St Joseph's Catholic Primary School, Thame","2013-04-01","Oxfordshire County Council",{"$f":"VLOOKUP(R4480,'LA CPID Look up'!$A$3:$C$153,2,FALSE)","v":"Oxfordshire County Council"},"East of England and North-East London"]
[null,null,null,null,null,null,null,null,null,null,null,null,null,null,121124,"St Joseph's Catholic Voluntary Academy","2012-05-01","Leicester City Council",{"$f":"VLOOKUP(R4482,'LA CPID Look up'!$A$3:$C$153,2,FALSE)","v":"Leicester City Council"},"East Midlands and the Humber"]
[null,null,null,null,null,null,null,null,null,null,null,null,null,null,121177,"St Joseph's Catholic Voluntary Academy - Leicestershire","2012-04-01","Leicestershire County Council",{"$f":"VLOOKUP(R4483,'LA CPID Look up'!$A$3:$C$153,2,FALSE)","v":"Leicestershire County Council"},"East Midlands and the Humber"]
[null,null,null,null,null,null,null,null,null,null,null,null,null,null,119510,"St Joseph's College - Stoke-on-Trent","2011-02-01","Stoke-on-Trent City Council",{"$f":"VLOOKUP(R4485,'LA CPID Look up'!$A$3:$C$153,2,FALSE)","v":"Stoke-on-Trent Unitary Authority"},"West Midlands"]
[null,null,null,null,null,null,null,null,null,null,null,null,null,null,123230,"St Joseph's Primary School - Sheffield","2013-03-01","Sheffield City Council",{"$f":"VLOOKUP(R4486,'LA CPID Look up'!$A$3:$C$153,2,FALSE)","v":"Sheffield City Council"},"East Midlands and the Humber"]
[null,null,null,null,null,null,null,null,null,null,null,null,null,null,132340,"St Joseph's RC Primary School - Middlesbrough","2015-11-01","Middlesbrough Council",{"$f":"VLOOKUP(R4488,'LA CPID Look up'!$A$3:$C$153,2,FALSE)","v":"Middlesbrough Council"},"North of England"]
[null,null,null,null,null,null,null,null,null,null,null,null,null,null,130835,"St Joseph's RC Primary School - Stourbridge","2014-10-01","Dudley Metropolitan Borough Council",{"$f":"VLOOKUP(R4489,'LA CPID Look up'!$A$3:$C$153,2,FALSE)","v":"Dudley Metropolitan Borough Council"},"West Midlands"]
[null,null,null,null,null,null,null,null,null,null,null,null,null,null,127180,"St Joseph's School, A Catholic Voluntary Academy - Doncaster","2013-12-01","Doncaster Metropolitan Borough Council",{"$f":"VLOOKUP(R4491,'LA CPID Look up'!$A$3:$C$153,2,FALSE)","v":"Doncaster Metropolitan Borough Council"},"East Midlands and the Humber"]
[null,null,null,null,null,null,null,null,null,null,null,null,null,null,127323,"St Jude's Church of England Primary Academy","2014-03-01","Wolverhampton City Council",{"$f":"VLOOKUP(R4492,'LA CPID Look up'!$A$3:$C$153,2,FALSE)","v":"Wolverhampton City Council"},"West Midlands"]
[null,null,null,null,null,null,null,null,null,null,null,null,null,null,126520,"St Keverne Community Primary School","2014-03-01","Cornwall Council",{"$f":"VLOOKUP(R4494,'LA CPID Look up'!$A$3:$C$153,2,FALSE)","v":"Cornwall Unitary Authority"},"South-West England"]
[null,null,null,null,null,null,null,null,null,null,null,null,null,null,132030,"St Laurence CofE VA Primary School","2015-04-01","Derbyshire County Council",{"$f":"VLOOKUP(R4495,'LA CPID Look up'!$A$3:$C$153,2,FALSE)","v":"Derbyshire County Council"},"East Midlands and the Humber"]
[null,null,null,null,null,null,null,null,null,null,null,null,null,null,120057,"St Laurence School - Bradford-on-Avon","2011-08-01","Wiltshire Council",{"$f":"VLOOKUP(R4497,'LA CPID Look up'!$A$3:$C$153,2,FALSE)","v":"Wiltshire Unitary Authority"},"South-West England"]
[null,null,null,null,null,null,null,null,null,null,null,null,null,null,123851,"St Laurences CofE Primary School - Coventry","2013-04-01","Coventry City Council",{"$f":"VLOOKUP(R4498,'LA CPID Look up'!$A$3:$C$153,2,FALSE)","v":"Coventry City Council"},"West Midlands"]
[null,null,null,null,null,null,null,null,null,null,null,null,null,null,131183,"St Lawrence Primary School - Leatherhead","2014-11-01","Surrey County Council",{"$f":"VLOOKUP(R4501,'LA CPID Look up'!$A$3:$C$153,2,FALSE)","v":"Surrey County Council"},"South-East England and South London"]
[null,null,null,null,null,null,null,null,null,null,null,null,null,null,131816,"St Leonard’s Church of England Primary Academy - St Leonard's-on-Sea","2015-04-01","East Sussex County Council",{"$f":"VLOOKUP(R4502,'LA CPID Look up'!$A$3:$C$153,2,FALSE)","v":"East Sussex County Council"},"South-East England and South London"]
[null,null,null,null,null,null,null,null,null,null,null,null,null,null,119431,"St Leonards Academy, The","2011-09-01","East Sussex County Council",{"$f":"VLOOKUP(R4504,'LA CPID Look up'!$A$3:$C$153,2,FALSE)","v":"East Sussex County Council"},"South-East England and South London"]
[null,null,null,null,null,null,null,null,null,null,null,null,null,null,120621,"St Leonard's Church of England Primary Academy, Blunsdon","2011-11-01","Swindon Borough Council",{"$f":"VLOOKUP(R4505,'LA CPID Look up'!$A$3:$C$153,2,FALSE)","v":"Swindon Unitary Authority"},"South-West England"]
[null,null,null,null,null,null,null,null,null,null,null,null,null,null,123874,"St Loys Church of England Primary Academy, Weedon Lois","2013-09-01","Northamptonshire County Council",{"$f":"VLOOKUP(R4507,'LA CPID Look up'!$A$3:$C$153,2,FALSE)","v":"Northamptonshire County Council"},"East of England and North-East London"]
[null,null,null,null,null,null,null,null,null,null,null,null,null,null,127420,"St Luke and St Philips Church of England Voluntary Aided Primary School","2014-05-01","Blackburn with Darwen Borough Council",{"$f":"VLOOKUP(R4508,'LA CPID Look up'!$A$3:$C$153,2,FALSE)","v":"Blackburn with Darwen Unitary Authority"},"Lancashire and West Yorkshire"]
[null,null,null,null,null,null,null,null,null,null,null,null,null,null,120536,"St Luke's Church of England Primary - Camden","2011-09-01","Camden London Borough Council",{"$f":"VLOOKUP(R4510,'LA CPID Look up'!$A$3:$C$153,2,FALSE)","v":"Camden London Borough Council"},"South-Central England and North-West London"]
[null,null,null,null,null,null,null,null,null,null,null,null,null,null,131780,"St Luke's Church of England Primary School - Bournemouth","2015-07-01","Bournemouth Borough Council",{"$f":"VLOOKUP(R4511,'LA CPID Look up'!$A$3:$C$153,2,FALSE)","v":"Bournemouth Council"},"South-West England"]
[null,null,null,null,null,null,null,null,null,null,null,null,null,null,123065,"St Mabyn CofE School","2012-12-01","Cornwall Council",{"$f":"VLOOKUP(R4513,'LA CPID Look up'!$A$3:$C$153,2,FALSE)","v":"Cornwall Unitary Authority"},"South-West England"]
[null,null,null,null,null,null,null,null,null,null,null,null,null,null,130706,"St Malachy's Catholic Primary School, a Voluntary Academy","2014-10-01","Calderdale Metropolitan Borough Council",{"$f":"VLOOKUP(R4514,'LA CPID Look up'!$A$3:$C$153,2,FALSE)","v":"Calderdale Metropolitan Borough Council"},"Lancashire and West Yorkshire"]
[null,null,null,null,null,null,null,null,null,null,null,null,null,null,121059,"St Margaret Clitherow Catholic Primary School - Nottingham","2012-10-01","Nottingham City Council",{"$f":"VLOOKUP(R4516,'LA CPID Look up'!$A$3:$C$153,2,FALSE)","v":"Nottingham City Council"},"East Midlands and the Humber"]
[null,null,null,null,null,null,null,null,null,null,null,null,null,null,131054,"St Margaret Clitherow Catholic Primary School - Tonbridge","2014-08-01","Kent County Council",{"$f":"VLOOKUP(R4517,'LA CPID Look up'!$A$3:$C$153,2,FALSE)","v":"Kent County Council"},"South-East England and South London"]
[null,null,null,null,null,null,null,null,null,null,null,null,null,null,128093,"St Margaret Clitherows RC Primary School - Middlesborough","2014-04-01","Redcar and Cleveland Borough Council",{"$f":"VLOOKUP(R4519,'LA CPID Look up'!$A$3:$C$153,2,FALSE)","v":"Redcar and Cleveland Borough Council"},"North of England"]
[null,null,null,null,null,null,null,null,null,null,null,null,null,null,132355,"St Margaret of Scotland Catholic Primary School","2015-09-01","Luton Borough Council",{"$f":"VLOOKUP(R4520,'LA CPID Look up'!$A$3:$C$153,2,FALSE)","v":"Luton Borough Council"},"East of England and North-East London"]
[null,null,null,null,null,null,null,null,null,null,null,null,null,null,119671,"St Margaret's Academy","2011-04-01","Torbay Council",{"$f":"VLOOKUP(R4522,'LA CPID Look up'!$A$3:$C$153,2,FALSE)","v":"Torbay Council"},"South-West England"]
[null,null,null,null,null,null,null,null,null,null,null,null,null,null,122342,"St Margaret's Church of England Academy","2012-10-01","Liverpool City Council",{"$f":"VLOOKUP(R4523,'LA CPID Look up'!$A$3:$C$153,2,FALSE)","v":"Liverpool City Council"},"Lancashire and West Yorkshire"]
[null,null,null,null,null,null,null,null,null,null,null,null,null,null,132295,"St Margaret's Community Primary School","2015-07-01","Suffolk County Council",{"$f":"VLOOKUP(R4525,'LA CPID Look up'!$A$3:$C$153,2,FALSE)","v":"Suffolk County Council"},"East of England and North-East London"]
[null,null,null,null,null,null,null,null,null,null,null,null,null,null,124616,"St Maria Goretti Catholic Primary School","2013-11-01","Stoke-on-Trent City Council",{"$f":"VLOOKUP(R4526,'LA CPID Look up'!$A$3:$C$153,2,FALSE)","v":"Stoke-on-Trent Unitary Authority"},"West Midlands"]
[null,null,null,null,null,null,null,null,null,null,null,null,null,null,118646,"St Mark's Church of England Academy","2006-09-01","Merton Borough Council",{"$f":"VLOOKUP(R4529,'LA CPID Look up'!$A$3:$C$153,2,FALSE)","v":"Merton Borough Council"},"South-East England and South London"]
[null,null,null,null,null,null,null,null,null,null,null,null,null,null,132281,"St Mark's Church of England Aided Primary School - Bournemouth","2015-12-01","Bournemouth Borough Council",{"$f":"VLOOKUP(R4530,'LA CPID Look up'!$A$3:$C$153,2,FALSE)","v":"Bournemouth Council"},"South-West England"]
[null,null,null,null,null,null,null,null,null,null,null,null,null,null,131160,"St Mark's Church of England Primary School - Bromley","2014-12-01","Bromley London Borough Council",{"$f":"VLOOKUP(R4532,'LA CPID Look up'!$A$3:$C$153,2,FALSE)","v":"Bromley London Borough Council"},"South-East England and South London"]
[null,null,null,null,null,null,null,null,null,null,null,null,null,null,131176,"St Mark's CofE Junior School, Salisbury","2015-01-01","Wiltshire Council",{"$f":"VLOOKUP(R4533,'LA CPID Look up'!$A$3:$C$153,2,FALSE)","v":"Wiltshire Unitary Authority"},"South-West England"]
[null,null,null,null,null,null,null,null,null,null,null,null,null,null,129436,"St Martin at Shouldham Church of England Voluntary Aided Primary School","2014-05-01","Norfolk County Council",{"$f":"VLOOKUP(R4535,'LA CPID Look up'!$A$3:$C$153,2,FALSE)","v":"Norfolk County Council"},"East of England and North-East London"]
[null,null,null,null,null,null,null,null,null,null,null,null,null,null,132360,"St Martin De Porres Catholic Primary School","2015-09-01","Luton Borough Council",{"$f":"VLOOKUP(R4536,'LA CPID Look up'!$A$3:$C$153,2,FALSE)","v":"Luton Borough Council"},"East of England and North-East London"]
[null,null,null,null,null,null,null,null,null,null,null,null,null,null,126523,"St Martin-in-Meneage Community Primary School","2014-03-01","Cornwall Council",{"$f":"VLOOKUP(R4538,'LA CPID Look up'!$A$3:$C$153,2,FALSE)","v":"Cornwall Unitary Authority"},"South-West England"]
[null,null,null,null,null,null,null,null,null,null,null,null,null,null,123343,"St Martin's Academy Chester","2013-09-01","Cheshire West and Chester Council",{"$f":"VLOOKUP(R4539,'LA CPID Look up'!$A$3:$C$153,2,FALSE)","v":"Cheshire West and Chester Unitary Authority"},"West Midlands"]
[null,null,null,null,null,null,null,null,null,null,null,null,null,null,130407,"St Martin's Church of England Primary School - West Drayton","2015-09-01","Hillingdon London Borough Council",{"$f":"VLOOKUP(R4541,'LA CPID Look up'!$A$3:$C$153,2,FALSE)","v":"Hillingdon London Borough Council"},"East of England and North-East London"]
[null,null,null,null,null,null,null,null,null,null,null,null,null,null,124485,"St Martin's CofE VA School - Liskeard","2013-12-01","Cornwall Council",{"$f":"VLOOKUP(R4542,'LA CPID Look up'!$A$3:$C$153,2,FALSE)","v":"Cornwall Unitary Authority"},"South-West England"]
[null,null,null,null,null,null,null,null,null,null,null,null,null,null,130141,"St Mary & St Joseph's Catholic Primary School","2014-04-01","Dorset County Council",{"$f":"VLOOKUP(R4544,'LA CPID Look up'!$A$3:$C$153,2,FALSE)","v":"Dorset County Council"},"South-West England"]
[null,null,null,null,null,null,null,null,null,null,null,null,null,null,124666,"St Mary and St John Catholic Primary School","2013-07-01","Wolverhampton City Council",{"$f":"VLOOKUP(R4545,'LA CPID Look up'!$A$3:$C$153,2,FALSE)","v":"Wolverhampton City Council"},"West Midlands"]
[null,null,null,null,null,null,null,null,null,null,null,null,null,null,123398,"St Mary Magdalene Academy: the Courtyard","2013-09-01","Islington London Borough Council",{"$f":"VLOOKUP(R4547,'LA CPID Look up'!$A$3:$C$153,2,FALSE)","v":"Islington London Borough Council"},"East of England and North-East London"]
[null,null,null,null,null,null,null,null,null,null,null,null,null,null,131210,"St Mary Magdalene CofE (VA) Primary School","2014-11-01","Nottinghamshire County Council",{"$f":"VLOOKUP(R4548,'LA CPID Look up'!$A$3:$C$153,2,FALSE)","v":"Nottinghamshire County Council"},"East Midlands and the Humber"]
[null,null,null,null,null,null,null,null,null,null,null,null,null,null,124978,"St Mary Queen of Martyrs RC Primary School","2014-06-01","Hull City Council",{"$f":"VLOOKUP(R4550,'LA CPID Look up'!$A$3:$C$153,2,FALSE)","v":"Kingston upon Hull City Council"},"East Midlands and the Humber"]
[null,null,null,null,null,null,null,null,null,null,null,null,null,null,122600,"St Mary Roman Catholic Primary School","2012-07-01","Hertfordshire County Council",{"$f":"VLOOKUP(R4551,'LA CPID Look up'!$A$3:$C$153,2,FALSE)","v":"Hertfordshire County Council"},"East of England and North-East London"]
[null,null,null,null,null,null,null,null,null,null,null,null,null,null,123401,"St Marylebone Church of England Bridge School, The","2013-09-01","Westminster City Council",{"$f":"VLOOKUP(R4553,'LA CPID Look up'!$A$3:$C$153,2,FALSE)","v":"Westminster City Council"},"East of England and North-East London"]
[null,null,null,null,null,null,null,null,null,null,null,null,null,null,120352,"St Marylebone CofE School, The","2011-09-01","Westminster City Council",{"$f":"VLOOKUP(R4554,'LA CPID Look up'!$A$3:$C$153,2,FALSE)","v":"Westminster City Council"},"East of England and North-East London"]
[null,null,null,null,null,null,null,null,null,null,null,null,null,null,131421,"St Mary's Broughton Gifford Voluntary Controlled Church of England Primary School","2015-04-01","Wiltshire Council",{"$f":"VLOOKUP(R4556,'LA CPID Look up'!$A$3:$C$153,2,FALSE)","v":"Wiltshire Unitary Authority"},"South-West England"]
[null,null,null,null,null,null,null,null,null,null,null,null,null,null,121135,"St Marys C of E Primary and Nursery, Academy, Handsworth","2013-02-01","Birmingham City Council",{"$f":"VLOOKUP(R4557,'LA CPID Look up'!$A$3:$C$153,2,FALSE)","v":"Birmingham City Council"},"West Midlands"]
[null,null,null,null,null,null,null,null,null,null,null,null,null,null,130124,"St Mary's Catholic First School, Dorchester","2014-04-01","Dorset County Council",{"$f":"VLOOKUP(R4560,'LA CPID Look up'!$A$3:$C$153,2,FALSE)","v":"Dorset County Council"},"South-West England"]
[null,null,null,null,null,null,null,null,null,null,null,null,null,null,122513,"St Mary's Catholic High School - Chesterfield","2012-08-01","Derbyshire County Council",{"$f":"VLOOKUP(R4561,'LA CPID Look up'!$A$3:$C$153,2,FALSE)","v":"Derbyshire County Council"},"East Midlands and the Humber"]
[null,null,null,null,null,null,null,null,null,null,null,null,null,null,129433,"St Mary's Catholic Primary School - Beckenham","2014-11-01","Bromley London Borough Council",{"$f":"VLOOKUP(R4563,'LA CPID Look up'!$A$3:$C$153,2,FALSE)","v":"Bromley London Borough Council"},"South-East England and South London"]
[null,null,null,null,null,null,null,null,null,null,null,null,null,null,130695,"St Mary's Catholic Primary School - Deal","2014-07-01","Kent County Council",{"$f":"VLOOKUP(R4564,'LA CPID Look up'!$A$3:$C$153,2,FALSE)","v":"Kent County Council"},"South-East England and South London"]
[null,null,null,null,null,null,null,null,null,null,null,null,null,null,129566,"St Mary's Catholic Primary School - Newcastle-u-Lyme","2014-04-01","Staffordshire County Council",{"$f":"VLOOKUP(R4566,'LA CPID Look up'!$A$3:$C$153,2,FALSE)","v":"Staffordshire County Council"},"West Midlands"]
[null,null,null,null,null,null,null,null,null,null,null,null,null,null,122379,"St Mary's Catholic Primary School - Nottingham","2012-07-01","Nottingham City Council",{"$f":"VLOOKUP(R4567,'LA CPID Look up'!$A$3:$C$153,2,FALSE)","v":"Nottingham City Council"},"East Midlands and the Humber"]
[null,null,null,null,null,null,null,null,null,null,null,null,null,null,132955,"St Mary's Catholic Primary School - Stafford","2016-03-01","Staffordshire County Council",{"$f":"VLOOKUP(R4569,'LA CPID Look up'!$A$3:$C$153,2,FALSE)","v":"Staffordshire County Council"},"West Midlands"]
[null,null,null,null,null,null,null,null,null,null,null,null,null,null,123403,"St Marys Catholic Primary School - Stoke-on-Trent","2013-09-01","Stoke-on-Trent City Council",{"$f":"VLOOKUP(R4570,'LA CPID Look up'!$A$3:$C$153,2,FALSE)","v":"Stoke-on-Trent Unitary Authority"},"West Midlands"]
[null,null,null,null,null,null,null,null,null,null,null,null,null,null,124189,"St Mary's Catholic Primary School (Maltby)","2013-07-01","Rotherham Metropolitan Borough Council",{"$f":"VLOOKUP(R4572,'LA CPID Look up'!$A$3:$C$153,2,FALSE)","v":"Rotherham Borough Council"},"East Midlands and the Humber"]
[null,null,null,null,null,null,null,null,null,null,null,null,null,null,130131,"St Mary's Catholic Primary School, Axminster","2014-04-01","Devon County Council",{"$f":"VLOOKUP(R4573,'LA CPID Look up'!$A$3:$C$153,2,FALSE)","v":"Devon County Council"},"South-West England"]
[null,null,null,null,null,null,null,null,null,null,null,null,null,null,130142,"St Mary's Catholic Primary School, Buckfast","2014-04-01","Devon County Council",{"$f":"VLOOKUP(R4575,'LA CPID Look up'!$A$3:$C$153,2,FALSE)","v":"Devon County Council"},"South-West England"]
[null,null,null,null,null,null,null,null,null,null,null,null,null,null,130093,"St Mary's Catholic Primary School, Falmouth","2014-04-01","Cornwall Council",{"$f":"VLOOKUP(R4576,'LA CPID Look up'!$A$3:$C$153,2,FALSE)","v":"Cornwall Unitary Authority"},"South-West England"]
[null,null,null,null,null,null,null,null,null,null,null,null,null,null,124344,"St Mary's Catholic Primary School, Maidenhead","2013-07-01","Royal Borough of Windsor and Maidenhead",{"$f":"VLOOKUP(R4578,'LA CPID Look up'!$A$3:$C$153,2,FALSE)","v":"Windsor and Maidenhead (Royal Borough of)"},"East of England and North-East London"]
[null,null,null,null,null,null,null,null,null,null,null,null,null,null,130132,"St Mary's Catholic Primary School, Marnhull","2014-04-01","Dorset County Council",{"$f":"VLOOKUP(R4579,'LA CPID Look up'!$A$3:$C$153,2,FALSE)","v":"Dorset County Council"},"South-West England"]
[null,null,null,null,null,null,null,null,null,null,null,null,null,null,130126,"St Mary's Catholic Primary School, Swanage","2014-04-01","Dorset County Council",{"$f":"VLOOKUP(R4581,'LA CPID Look up'!$A$3:$C$153,2,FALSE)","v":"Dorset County Council"},"South-West England"]
[null,null,null,null,null,null,null,null,null,null,null,null,null,null,132463,"St Mary's Catholic Primary School, Whitstable","2015-07-01","Kent County Council",{"$f":"VLOOKUP(R4582,'LA CPID Look up'!$A$3:$C$153,2,FALSE)","v":"Kent County Council"},"South-East England and South London"]
[null,null,null,null,null,null,null,null,null,null,null,null,null,null,121463,"St Mary's Catholic Primary Voluntary Academy - Brigg","2012-04-01","North Lincolnshire Council",{"$f":"VLOOKUP(R4584,'LA CPID Look up'!$A$3:$C$153,2,FALSE)","v":"North Lincolnshire Council"},"East Midlands and the Humber"]
[null,null,null,null,null,null,null,null,null,null,null,null,null,null,124614,"St Mary's Catholic School","2013-09-01","Newcastle Upon Tyne City Council",{"$f":"VLOOKUP(R4585,'LA CPID Look up'!$A$3:$C$153,2,FALSE)","v":"Newcastle upon Tyne City Council"},"North of England"]
[null,null,null,null,null,null,null,null,null,null,null,null,null,null,132477,"St Mary's Church of England Controlled Infant School - Witney","2015-12-01","Oxfordshire County Council",{"$f":"VLOOKUP(R4588,'LA CPID Look up'!$A$3:$C$153,2,FALSE)","v":"Oxfordshire County Council"},"East of England and North-East London"]
[null,null,null,null,null,null,null,null,null,null,null,null,null,null,121232,"St Mary's Church of England High School (VA)","2012-07-01","Hertfordshire County Council",{"$f":"VLOOKUP(R4589,'LA CPID Look up'!$A$3:$C$153,2,FALSE)","v":"Hertfordshire County Council"},"East of England and North-East London"]
[null,null,null,null,null,null,null,null,null,null,null,null,null,null,121942,"St Mary's Church of England Middle School, Puddletown","2012-06-01","Dorset County Council",{"$f":"VLOOKUP(R4591,'LA CPID Look up'!$A$3:$C$153,2,FALSE)","v":"Dorset County Council"},"South-West England"]
[null,null,null,null,null,null,null,null,null,null,null,null,null,null,130543,"St Marys Church of England Primary Norwood Green","2014-09-01","Ealing London Borough Council",{"$f":"VLOOKUP(R4592,'LA CPID Look up'!$A$3:$C$153,2,FALSE)","v":"Ealing London Borough Council"},"South-Central England and North-West London"]
[null,null,null,null,null,null,null,null,null,null,null,null,null,null,125176,"St Mary's Church of England Primary School - Godalming","2013-11-01","Surrey County Council",{"$f":"VLOOKUP(R4594,'LA CPID Look up'!$A$3:$C$153,2,FALSE)","v":"Surrey County Council"},"South-East England and South London"]
[null,null,null,null,null,null,null,null,null,null,null,null,null,null,126471,"St Mary's Church of England Primary School - Sheffield","2014-09-01","Sheffield City Council",{"$f":"VLOOKUP(R4595,'LA CPID Look up'!$A$3:$C$153,2,FALSE)","v":"Sheffield City Council"},"East Midlands and the Humber"]
[null,null,null,null,null,null,null,null,null,null,null,null,null,null,120549,"St Mary's Church of England Primary School, Barnsley","2012-02-01","Barnsley Metropolitan Borough Council",{"$f":"VLOOKUP(R4597,'LA CPID Look up'!$A$3:$C$153,2,FALSE)","v":"Barnsley Metropolitan Borough Council"},"East Midlands and the Humber"]
[null,null,null,null,null,null,null,null,null,null,null,null,null,null,123064,"St Mary's Church of England Primary School, Burton Latimer","2013-04-01","Northamptonshire County Council",{"$f":"VLOOKUP(R4598,'LA CPID Look up'!$A$3:$C$153,2,FALSE)","v":"Northamptonshire County Council"},"East of England and North-East London"]
[null,null,null,null,null,null,null,null,null,null,null,null,null,null,133556,"St Mary's Church of England Voluntary Aided Primary School, Hadleigh","2016-02-01","Suffolk County Council",{"$f":"VLOOKUP(R4600,'LA CPID Look up'!$A$3:$C$153,2,FALSE)","v":"Suffolk County Council"},"East of England and North-East London"]
[null,null,null,null,null,null,null,null,null,null,null,null,null,null,133476,"St Mary's Church of England Voluntary Aided Primary School, Woodbridge","2016-02-01","Suffolk County Council",{"$f":"VLOOKUP(R4601,'LA CPID Look up'!$A$3:$C$153,2,FALSE)","v":"Suffolk County Council"},"East of England and North-East London"]
[null,null,null,null,null,null,null,null,null,null,null,null,null,null,132484,"St Mary's CofE Primary School, The - Rugeley","2015-08-01","Staffordshire County Council",{"$f":"VLOOKUP(R4603,'LA CPID Look up'!$A$3:$C$153,2,FALSE)","v":"Staffordshire County Council"},"West Midlands"]
[null,null,null,null,null,null,null,null,null,null,null,null,null,null,123345,"St Mary's Hampton Church of England Primary","2013-09-01","Richmond Upon Thames Borough Council",{"$f":"VLOOKUP(R4604,'LA CPID Look up'!$A$3:$C$153,2,FALSE)","v":"Richmond upon Thames Borough Council"},"South-East England and South London"]
[null,null,null,null,null,null,null,null,null,null,null,null,null,null,132371,"St Mary's Primary School Knaresborough, A Voluntary Catholic Academy","2015-07-01","North Yorkshire County Council",{"$f":"VLOOKUP(R4606,'LA CPID Look up'!$A$3:$C$153,2,FALSE)","v":"North Yorkshire County Council"},"North of England"]
[null,null,null,null,null,null,null,null,null,null,null,null,null,null,123344,"St Mary's Primary School, Dilwyn","2013-01-07","Herefordshire Council",{"$f":"VLOOKUP(R4607,'LA CPID Look up'!$A$3:$C$153,2,FALSE)","v":"Herefordshire Council"},"West Midlands"]
[null,null,null,null,null,null,null,null,null,null,null,null,null,null,129300,"St Mary's RC Primary School - Middlesborough","2014-04-01","Redcar and Cleveland Borough Council",{"$f":"VLOOKUP(R4609,'LA CPID Look up'!$A$3:$C$153,2,FALSE)","v":"Redcar and Cleveland Borough Council"},"North of England"]
[null,null,null,null,null,null,null,null,null,null,null,null,null,null,132011,"St Mary's School - Heathfield","2015-09-01","East Sussex County Council",{"$f":"VLOOKUP(R4610,'LA CPID Look up'!$A$3:$C$153,2,FALSE)","v":"East Sussex County Council"},"South-East England and South London"]
[null,null,null,null,null,null,null,null,null,null,null,null,null,null,131657,"St Matthew's Catholic Primary School","2015-04-01","Northumberland County Council",{"$f":"VLOOKUP(R4612,'LA CPID Look up'!$A$3:$C$153,2,FALSE)","v":"Northumberland Unitary Authority"},"North of England"]
[null,null,null,null,null,null,null,null,null,null,null,null,null,null,123353,"St Matthews Church of England Academy - Stoke-on-Trent","2013-11-01","Stoke-on-Trent City Council",{"$f":"VLOOKUP(R4613,'LA CPID Look up'!$A$3:$C$153,2,FALSE)","v":"Stoke-on-Trent Unitary Authority"},"West Midlands"]
[null,null,null,null,null,null,null,null,null,null,null,null,null,null,123908,"St Matthew's Church of England Primary School - Stockport","2014-01-01","Stockport Metropolitan Borough Council",{"$f":"VLOOKUP(R4615,'LA CPID Look up'!$A$3:$C$153,2,FALSE)","v":"Stockport Metropolitan Borough Council"},"Lancashire and West Yorkshire"]
[null,null,null,null,null,null,null,null,null,null,null,null,null,null,123166,"St Matthew's CofE Primary School - West Drayton","2013-02-01","Hillingdon London Borough Council",{"$f":"VLOOKUP(R4616,'LA CPID Look up'!$A$3:$C$153,2,FALSE)","v":"Hillingdon London Borough Council"},"East of England and North-East London"]
[null,null,null,null,null,null,null,null,null,null,null,null,null,null,129442,"St Meriadoc CofE Nursery and Infant School","2014-04-01","Cornwall Council",{"$f":"VLOOKUP(R4619,'LA CPID Look up'!$A$3:$C$153,2,FALSE)","v":"Cornwall Unitary Authority"},"South-West England"]
[null,null,null,null,null,null,null,null,null,null,null,null,null,null,120635,"St Merryn School","2011-11-01","Cornwall Council",{"$f":"VLOOKUP(R4620,'LA CPID Look up'!$A$3:$C$153,2,FALSE)","v":"Cornwall Unitary Authority"},"South-West England"]
[null,null,null,null,null,null,null,null,null,null,null,null,null,null,122412,"St Michael & All Angels Church of England Primary School","2012-11-01","Leicestershire County Council",{"$f":"VLOOKUP(R4622,'LA CPID Look up'!$A$3:$C$153,2,FALSE)","v":"Leicestershire County Council"},"East Midlands and the Humber"]
[null,null,null,null,null,null,null,null,null,null,null,null,null,null,118647,"St Michael and All Angels CofE - Southwark","2007-09-01","Southwark London Borough Council",{"$f":"VLOOKUP(R4623,'LA CPID Look up'!$A$3:$C$153,2,FALSE)","v":"Southwark London Borough Council"},"South-East England and South London"]
[null,null,null,null,null,null,null,null,null,null,null,null,null,null,121843,"St Michael's Catholic College - Bermondsey","2012-11-01","Southwark London Borough Council",{"$f":"VLOOKUP(R4625,'LA CPID Look up'!$A$3:$C$153,2,FALSE)","v":"Southwark London Borough Council"},"South-East England and South London"]
[null,null,null,null,null,null,null,null,null,null,null,null,null,null,125007,"St Michael's Catholic Primary School - Wolverhampton","2013-07-01","Wolverhampton City Council",{"$f":"VLOOKUP(R4626,'LA CPID Look up'!$A$3:$C$153,2,FALSE)","v":"Wolverhampton City Council"},"West Midlands"]
[null,null,null,null,null,null,null,null,null,null,null,null,null,null,131189,"St Michael's Church of England Academy - King's Lynn","2015-03-01","Norfolk County Council",{"$f":"VLOOKUP(R4628,'LA CPID Look up'!$A$3:$C$153,2,FALSE)","v":"Norfolk County Council"},"East of England and North-East London"]
[null,null,null,null,null,null,null,null,null,null,null,null,null,null,122771,"St Michael's Church of England Aided Primary School - Birmingham","2013-01-01","Birmingham City Council",{"$f":"VLOOKUP(R4629,'LA CPID Look up'!$A$3:$C$153,2,FALSE)","v":"Birmingham City Council"},"West Midlands"]
[null,null,null,null,null,null,null,null,null,null,null,null,null,null,131184,"St Michael's Church of England High School - Crosby","2014-11-01","Sefton Metropolitan Borough Council",{"$f":"VLOOKUP(R4631,'LA CPID Look up'!$A$3:$C$153,2,FALSE)","v":"Sefton Metropolitan Borough Council"},"Lancashire and West Yorkshire"]
[null,null,null,null,null,null,null,null,null,null,null,null,null,null,124291,"St Michael's Church of England Primary Academy - Exeter","2013-09-01","Devon County Council",{"$f":"VLOOKUP(R4632,'LA CPID Look up'!$A$3:$C$153,2,FALSE)","v":"Devon County Council"},"South-West England"]
[null,null,null,null,null,null,null,null,null,null,null,null,null,null,131439,"St Michael's Church of England Voluntary Aided Middle School, Colehill","2015-03-01","Dorset County Council",{"$f":"VLOOKUP(R4634,'LA CPID Look up'!$A$3:$C$153,2,FALSE)","v":"Dorset County Council"},"South-West England"]
[null,null,null,null,null,null,null,null,null,null,null,null,null,null,122881,"St Michael's CofE Academy","2013-05-01","Wakefield Council",{"$f":"VLOOKUP(R4635,'LA CPID Look up'!$A$3:$C$153,2,FALSE)","v":"Wakefield City Council"},"Lancashire and West Yorkshire"]
[null,null,null,null,null,null,null,null,null,null,null,null,null,null,123207,"St Michael's CofE Primary School - Haringey","2013-01-01","Haringey London Borough Council",{"$f":"VLOOKUP(R4637,'LA CPID Look up'!$A$3:$C$153,2,FALSE)","v":"Haringey London Borough Council"},"East of England and North-East London"]
[null,null,null,null,null,null,null,null,null,null,null,null,null,null,124762,"St Michael's Community Academy","2013-11-01","Cheshire East Council",{"$f":"VLOOKUP(R4638,'LA CPID Look up'!$A$3:$C$153,2,FALSE)","v":"Cheshire East Unitary Authority"},"West Midlands"]
[null,null,null,null,null,null,null,null,null,null,null,null,null,null,130916,"St Minver School","2014-09-01","Cornwall Council",{"$f":"VLOOKUP(R4640,'LA CPID Look up'!$A$3:$C$153,2,FALSE)","v":"Cornwall Unitary Authority"},"South-West England"]
[null,null,null,null,null,null,null,null,null,null,null,null,null,null,123021,"St Newlyn East Learning Academy","2013-09-01","Cornwall Council",{"$f":"VLOOKUP(R4641,'LA CPID Look up'!$A$3:$C$153,2,FALSE)","v":"Cornwall Unitary Authority"},"South-West England"]
[null,null,null,null,null,null,null,null,null,null,null,null,null,null,123913,"St Nicholas Catholic Primary School - Sutton Coldfield","2014-01-01","Birmingham City Council",{"$f":"VLOOKUP(R4643,'LA CPID Look up'!$A$3:$C$153,2,FALSE)","v":"Birmingham City Council"},"West Midlands"]
[null,null,null,null,null,null,null,null,null,null,null,null,null,null,131077,"St Nicholas Church of England Primary School - Oakham","2014-10-01","Rutland County Council",{"$f":"VLOOKUP(R4644,'LA CPID Look up'!$A$3:$C$153,2,FALSE)","v":"Rutland County Council"},"East Midlands and the Humber"]
[null,null,null,null,null,null,null,null,null,null,null,null,null,null,122858,"St Nicholas of Tolentine Catholic Primary School","2012-12-01","Bristol City Council",{"$f":"VLOOKUP(R4647,'LA CPID Look up'!$A$3:$C$153,2,FALSE)","v":"Bristol City Council"},"South-West England"]
[null,null,null,null,null,null,null,null,null,null,null,null,null,null,124575,"St Nicholas Primary School","2015-08-01","Hull City Council",{"$f":"VLOOKUP(R4648,'LA CPID Look up'!$A$3:$C$153,2,FALSE)","v":"Kingston upon Hull City Council"},"East Midlands and the Humber"]
[null,null,null,null,null,null,null,null,null,null,null,null,null,null,123182,"St Nicolas CofE (Voluntary Aided) Primary School","2014-05-01","Warwickshire County Council",{"$f":"VLOOKUP(R4650,'LA CPID Look up'!$A$3:$C$153,2,FALSE)","v":"Warwickshire County Council"},"West Midlands"]
[null,null,null,null,null,null,null,null,null,null,null,null,null,null,124525,"St Nicolas' CofE VA School, Downderry","2013-12-01","Cornwall Council",{"$f":"VLOOKUP(R4651,'LA CPID Look up'!$A$3:$C$153,2,FALSE)","v":"Cornwall Unitary Authority"},"South-West England"]
[null,null,null,null,null,null,null,null,null,null,null,null,null,null,122245,"St Oswald's Church of England Primary Academy - Bradford","2012-11-01","Bradford Metropolitan District Council",{"$f":"VLOOKUP(R4653,'LA CPID Look up'!$A$3:$C$153,2,FALSE)","v":"Bradford City Council"},"Lancashire and West Yorkshire"]
[null,null,null,null,null,null,null,null,null,null,null,null,null,null,122277,"St Oswald's CofE Academy - Doncaster","2012-09-01","Doncaster Metropolitan Borough Council",{"$f":"VLOOKUP(R4654,'LA CPID Look up'!$A$3:$C$153,2,FALSE)","v":"Doncaster Metropolitan Borough Council"},"East Midlands and the Humber"]
[null,null,null,null,null,null,null,null,null,null,null,null,null,null,132432,"St Patrick's Catholic College","2015-09-01","Stockton-on-Tees Borough Council",{"$f":"VLOOKUP(R4656,'LA CPID Look up'!$A$3:$C$153,2,FALSE)","v":"Stockton-on-Tees Borough Council"},"North of England"]
[null,null,null,null,null,null,null,null,null,null,null,null,null,null,124148,"St Patrick's Catholic Primary and Nursery School - Nottingham","2013-04-01","Nottingham City Council",{"$f":"VLOOKUP(R4657,'LA CPID Look up'!$A$3:$C$153,2,FALSE)","v":"Nottingham City Council"},"East Midlands and the Humber"]
[null,null,null,null,null,null,null,null,null,null,null,null,null,null,132411,"St Patrick's Catholic Primary School - Coventry","2015-08-01","Coventry City Council",{"$f":"VLOOKUP(R4659,'LA CPID Look up'!$A$3:$C$153,2,FALSE)","v":"Coventry City Council"},"West Midlands"]
[null,null,null,null,null,null,null,null,null,null,null,null,null,null,126367,"St Patrick's Catholic Primary School - Mansfield","2014-04-01","Nottinghamshire County Council",{"$f":"VLOOKUP(R4660,'LA CPID Look up'!$A$3:$C$153,2,FALSE)","v":"Nottinghamshire County Council"},"East Midlands and the Humber"]
[null,null,null,null,null,null,null,null,null,null,null,null,null,null,123237,"St Patrick's Catholic Voluntary Academy - Sheffield","2013-03-01","Sheffield City Council",{"$f":"VLOOKUP(R4662,'LA CPID Look up'!$A$3:$C$153,2,FALSE)","v":"Sheffield City Council"},"East Midlands and the Humber"]
[null,null,null,null,null,null,null,null,null,null,null,null,null,null,119372,"St Patricks Church of England Primary Academy - Solihull","2010-11-01","Solihull Metropolitan Borough Council",{"$f":"VLOOKUP(R4663,'LA CPID Look up'!$A$3:$C$153,2,FALSE)","v":"Solihull Metropolitan Borough Council"},"West Midlands"]
[null,null,null,null,null,null,null,null,null,null,null,null,null,null,119110,"St Paul's Academy - Greenwich","2005-09-01","Greenwich London Borough Council",{"$f":"VLOOKUP(R4665,'LA CPID Look up'!$A$3:$C$153,2,FALSE)","v":"Greenwich London Borough Council"},"South-East England and South London"]
[null,null,null,null,null,null,null,null,null,null,null,null,null,null,123202,"St Paul's and All Hallows CofE Infant School","2013-01-01","Haringey London Borough Council",{"$f":"VLOOKUP(R4666,'LA CPID Look up'!$A$3:$C$153,2,FALSE)","v":"Haringey London Borough Council"},"East of England and North-East London"]
[null,null,null,null,null,null,null,null,null,null,null,null,null,null,130711,"St Paul's Catholic Academy","2015-03-01","Northumberland County Council",{"$f":"VLOOKUP(R4668,'LA CPID Look up'!$A$3:$C$153,2,FALSE)","v":"Northumberland Unitary Authority"},"North of England"]
[null,null,null,null,null,null,null,null,null,null,null,null,null,null,130636,"St Paul's Catholic Primary School - Birmingham","2015-04-01","Birmingham City Council",{"$f":"VLOOKUP(R4669,'LA CPID Look up'!$A$3:$C$153,2,FALSE)","v":"Birmingham City Council"},"West Midlands"]
[null,null,null,null,null,null,null,null,null,null,null,null,null,null,124094,"St Pauls Church of England Academy - Tipton","2015-03-01","Sandwell Metropolitan Borough Council",{"$f":"VLOOKUP(R4671,'LA CPID Look up'!$A$3:$C$153,2,FALSE)","v":"Sandwell Metropolitan Borough Council"},"West Midlands"]
[null,null,null,null,null,null,null,null,null,null,null,null,null,null,124814,"St Paul's CofE Primary School - Addlestone","2014-04-01","Surrey County Council",{"$f":"VLOOKUP(R4672,'LA CPID Look up'!$A$3:$C$153,2,FALSE)","v":"Surrey County Council"},"South-East England and South London"]
[null,null,null,null,null,null,null,null,null,null,null,null,null,null,122145,"St Paul's CofE Primary School, Astley Bridge","2012-10-01","Bolton Metropolitan Borough Council",{"$f":"VLOOKUP(R4674,'LA CPID Look up'!$A$3:$C$153,2,FALSE)","v":"Bolton Metropolitan Borough Council"},"Lancashire and West Yorkshire"]
[null,null,null,null,null,null,null,null,null,null,null,null,null,null,130055,"St Paul's Roman Catholic Primary School - Plymouth","2014-04-01","Plymouth City Council",{"$f":"VLOOKUP(R4675,'LA CPID Look up'!$A$3:$C$153,2,FALSE)","v":"Plymouth City Council"},"South-West England"]
[null,null,null,null,null,null,null,null,null,null,null,null,null,null,122380,"St Peter and St Paul Church of England Academy","2013-03-01","Leicestershire County Council",{"$f":"VLOOKUP(R4678,'LA CPID Look up'!$A$3:$C$153,2,FALSE)","v":"Leicestershire County Council"},"East Midlands and the Humber"]
[null,null,null,null,null,null,null,null,null,null,null,null,null,null,131214,"St Peter and St Paul Church of England Voluntary Controlled Primary School","2015-02-01","Norfolk County Council",{"$f":"VLOOKUP(R4679,'LA CPID Look up'!$A$3:$C$153,2,FALSE)","v":"Norfolk County Council"},"East of England and North-East London"]
[null,null,null,null,null,null,null,null,null,null,null,null,null,null,119936,"St Peter's Academy - Stoke-on-Trent","2011-09-01","Stoke-on-Trent City Council",{"$f":"VLOOKUP(R4681,'LA CPID Look up'!$A$3:$C$153,2,FALSE)","v":"Stoke-on-Trent Unitary Authority"},"West Midlands"]
[null,null,null,null,null,null,null,null,null,null,null,null,null,null,130716,"St Peter's Catholic Academy","2015-03-01","Northumberland County Council",{"$f":"VLOOKUP(R4682,'LA CPID Look up'!$A$3:$C$153,2,FALSE)","v":"Northumberland Unitary Authority"},"North of England"]
[null,null,null,null,null,null,null,null,null,null,null,null,null,null,130710,"St Peter's Catholic First School","2014-07-01","Worcestershire County Council",{"$f":"VLOOKUP(R4684,'LA CPID Look up'!$A$3:$C$153,2,FALSE)","v":"Worcestershire County Council"},"West Midlands"]
[null,null,null,null,null,null,null,null,null,null,null,null,null,null,119982,"St Peter's Catholic High School and Sixth Form Centre","2011-08-01","Gloucestershire County Council",{"$f":"VLOOKUP(R4685,'LA CPID Look up'!$A$3:$C$153,2,FALSE)","v":"Gloucestershire County Council"},"South-West England"]
[null,null,null,null,null,null,null,null,null,null,null,null,null,null,123402,"St Peter's Catholic Primary School - Stoke-on-Trent","2013-09-01","Stoke-on-Trent City Council",{"$f":"VLOOKUP(R4687,'LA CPID Look up'!$A$3:$C$153,2,FALSE)","v":"Stoke-on-Trent Unitary Authority"},"West Midlands"]
[null,null,null,null,null,null,null,null,null,null,null,null,null,null,132456,"St Peter's Church of England (VA) Junior School - Tavistock","2015-07-01","Devon County Council",{"$f":"VLOOKUP(R4688,'LA CPID Look up'!$A$3:$C$153,2,FALSE)","v":"Devon County Council"},"South-West England"]
[null,null,null,null,null,null,null,null,null,null,null,null,null,null,127243,"St Peter's Church of England First School - Taunton","2014-03-01","Somerset County Council",{"$f":"VLOOKUP(R4690,'LA CPID Look up'!$A$3:$C$153,2,FALSE)","v":"Somerset County Council"},"South-West England"]
[null,null,null,null,null,null,null,null,null,null,null,null,null,null,131194,"St Peter's Church of England Middle School - Windsor","2014-11-01","Royal Borough of Windsor and Maidenhead",{"$f":"VLOOKUP(R4691,'LA CPID Look up'!$A$3:$C$153,2,FALSE)","v":"Windsor and Maidenhead (Royal Borough of)"},"East of England and North-East London"]
[null,null,null,null,null,null,null,null,null,null,null,null,null,null,132487,"St Peter's Church of England Primary School - Harrogate","2016-03-01","North Yorkshire County Council",{"$f":"VLOOKUP(R4693,'LA CPID Look up'!$A$3:$C$153,2,FALSE)","v":"North Yorkshire County Council"},"North of England"]
[null,null,null,null,null,null,null,null,null,null,null,null,null,null,130633,"St Peter's Church of England Primary School Wymondham","2014-06-01","Leicestershire County Council",{"$f":"VLOOKUP(R4694,'LA CPID Look up'!$A$3:$C$153,2,FALSE)","v":"Leicestershire County Council"},"East Midlands and the Humber"]
[null,null,null,null,null,null,null,null,null,null,null,null,null,null,129898,"St Peter's Church of England Primary School, Chippenham","2014-09-01","Wiltshire Council",{"$f":"VLOOKUP(R4696,'LA CPID Look up'!$A$3:$C$153,2,FALSE)","v":"Wiltshire Unitary Authority"},"South-West England"]
[null,null,null,null,null,null,null,null,null,null,null,null,null,null,131466,"St Peter's Church of England Primary School, Hindley","2015-01-01","Wigan Metropolitan Borough Council",{"$f":"VLOOKUP(R4697,'LA CPID Look up'!$A$3:$C$153,2,FALSE)","v":"Wigan Metropolitan Borough Council"},"Lancashire and West Yorkshire"]
[null,null,null,null,null,null,null,null,null,null,null,null,null,null,131854,"St Peter's CofE (C) Primary School - Stafford","2016-02-01","Staffordshire County Council",{"$f":"VLOOKUP(R4699,'LA CPID Look up'!$A$3:$C$153,2,FALSE)","v":"Staffordshire County Council"},"West Midlands"]
[null,null,null,null,null,null,null,null,null,null,null,null,null,null,131157,"St Peter's CofE Aided Junior School - Wisbech","2014-11-01","Cambridgeshire County Council",{"$f":"VLOOKUP(R4700,'LA CPID Look up'!$A$3:$C$153,2,FALSE)","v":"Cambridgeshire County Council"},"East of England and North-East London"]
[null,null,null,null,null,null,null,null,null,null,null,null,null,null,122401,"St Peter's Collegiate Church of England School","2012-10-01","Wolverhampton City Council",{"$f":"VLOOKUP(R4702,'LA CPID Look up'!$A$3:$C$153,2,FALSE)","v":"Wolverhampton City Council"},"West Midlands"]
[null,null,null,null,null,null,null,null,null,null,null,null,null,null,130106,"St Peter's RC Primary School - Plymouth","2014-04-01","Plymouth City Council",{"$f":"VLOOKUP(R4703,'LA CPID Look up'!$A$3:$C$153,2,FALSE)","v":"Plymouth City Council"},"South-West England"]
[null,null,null,null,null,null,null,null,null,null,null,null,null,null,132460,"St Philip Howard Catholic Voluntary Academy","2015-09-01","Derbyshire County Council",{"$f":"VLOOKUP(R4706,'LA CPID Look up'!$A$3:$C$153,2,FALSE)","v":"Derbyshire County Council"},"East Midlands and the Humber"]
[null,null,null,null,null,null,null,null,null,null,null,null,null,null,126569,"St Philip Neri with St Bede Catholic Voluntary Academy","2014-10-01","Nottinghamshire County Council",{"$f":"VLOOKUP(R4707,'LA CPID Look up'!$A$3:$C$153,2,FALSE)","v":"Nottinghamshire County Council"},"East Midlands and the Humber"]
[null,null,null,null,null,null,null,null,null,null,null,null,null,null,129543,"St Philip's CofE Primary School","2014-08-01","Bradford Metropolitan District Council",{"$f":"VLOOKUP(R4709,'LA CPID Look up'!$A$3:$C$153,2,FALSE)","v":"Bradford City Council"},"Lancashire and West Yorkshire"]
[null,null,null,null,null,null,null,null,null,null,null,null,null,null,128103,"St Philomena's Primary School","2014-10-01","Bromley London Borough Council",{"$f":"VLOOKUP(R4710,'LA CPID Look up'!$A$3:$C$153,2,FALSE)","v":"Bromley London Borough Council"},"South-East England and South London"]
[null,null,null,null,null,null,null,null,null,null,null,null,null,null,131350,"St Richard's RC Primary School - Hull","2015-01-01","Hull City Council",{"$f":"VLOOKUP(R4712,'LA CPID Look up'!$A$3:$C$153,2,FALSE)","v":"Kingston upon Hull City Council"},"East Midlands and the Humber"]
[null,null,null,null,null,null,null,null,null,null,null,null,null,null,132363,"St Rumon's Church of England (VC) Infants School","2015-07-01","Devon County Council",{"$f":"VLOOKUP(R4713,'LA CPID Look up'!$A$3:$C$153,2,FALSE)","v":"Devon County Council"},"South-West England"]
[null,null,null,null,null,null,null,null,null,null,null,null,null,null,130743,"St Simon of England Roman Catholic Primary School, Ashford","2014-07-01","Kent County Council",{"$f":"VLOOKUP(R4715,'LA CPID Look up'!$A$3:$C$153,2,FALSE)","v":"Kent County Council"},"South-East England and South London"]
[null,null,null,null,null,null,null,null,null,null,null,null,null,null,123872,"St Simon Stock Catholic School","2014-01-01","Kent County Council",{"$f":"VLOOKUP(R4716,'LA CPID Look up'!$A$3:$C$153,2,FALSE)","v":"Kent County Council"},"South-East England and South London"]
[null,null,null,null,null,null,null,null,null,null,null,null,null,null,132975,"St Stephen's Catholic Primary School and Nursery, a Voluntary Academy","2015-08-01","North Yorkshire County Council",{"$f":"VLOOKUP(R4718,'LA CPID Look up'!$A$3:$C$153,2,FALSE)","v":"North Yorkshire County Council"},"North of England"]
[null,null,null,null,null,null,null,null,null,null,null,null,null,null,129009,"St Stephen's Community Academy","2014-01-01","Cornwall Council",{"$f":"VLOOKUP(R4719,'LA CPID Look up'!$A$3:$C$153,2,FALSE)","v":"Cornwall Unitary Authority"},"South-West England"]
[null,null,null,null,null,null,null,null,null,null,null,null,null,null,129556,"St Teresa's Catholic (A) Primary School - Stoke-on-Trent","2014-04-01","Stoke-on-Trent City Council",{"$f":"VLOOKUP(R4721,'LA CPID Look up'!$A$3:$C$153,2,FALSE)","v":"Stoke-on-Trent Unitary Authority"},"West Midlands"]
[null,null,null,null,null,null,null,null,null,null,null,null,null,null,122864,"St Teresa's Catholic Primary School - Bristol","2012-12-01","Bristol City Council",{"$f":"VLOOKUP(R4722,'LA CPID Look up'!$A$3:$C$153,2,FALSE)","v":"Bristol City Council"},"South-West England"]
[null,null,null,null,null,null,null,null,null,null,null,null,null,null,124577,"St Teresa's Catholic Primary School, Basildon","2013-12-01","Essex County Council",{"$f":"VLOOKUP(R4724,'LA CPID Look up'!$A$3:$C$153,2,FALSE)","v":"Essex County Council"},"East of England and North-East London"]
[null,null,null,null,null,null,null,null,null,null,null,null,null,null,122421,"St Teresa's Catholic Primary School, Colchester","2012-07-01","Essex County Council",{"$f":"VLOOKUP(R4725,'LA CPID Look up'!$A$3:$C$153,2,FALSE)","v":"Essex County Council"},"East of England and North-East London"]
[null,null,null,null,null,null,null,null,null,null,null,null,null,null,132300,"St Therese of Lisieux Catholic Primary School","2015-09-01","Stockton-on-Tees Borough Council",{"$f":"VLOOKUP(R4727,'LA CPID Look up'!$A$3:$C$153,2,FALSE)","v":"Stockton-on-Tees Borough Council"},"North of England"]
[null,null,null,null,null,null,null,null,null,null,null,null,null,null,122353,"St Thomas à Becket Catholic Secondary School - Wakefield","2012-11-01","Wakefield Council",{"$f":"VLOOKUP(R4728,'LA CPID Look up'!$A$3:$C$153,2,FALSE)","v":"Wakefield City Council"},"Lancashire and West Yorkshire"]
[null,null,null,null,null,null,null,null,null,null,null,null,null,null,130637,"St Thomas Aquinas Catholic School - Birmingham","2015-04-01","Birmingham City Council",{"$f":"VLOOKUP(R4730,'LA CPID Look up'!$A$3:$C$153,2,FALSE)","v":"Birmingham City Council"},"West Midlands"]
[null,null,null,null,null,null,null,null,null,null,null,null,null,null,122730,"St Thomas Becket Catholic Primary School - Croydon","2012-09-01","Croydon London Borough Council",{"$f":"VLOOKUP(R4731,'LA CPID Look up'!$A$3:$C$153,2,FALSE)","v":"Croydon London Borough Council"},"South-East England and South London"]
[null,null,null,null,null,null,null,null,null,null,null,null,null,null,122673,"St Thomas' Catholic Primary School - Stoke-on-Trent","2012-09-01","Staffordshire County Council",{"$f":"VLOOKUP(R4733,'LA CPID Look up'!$A$3:$C$153,2,FALSE)","v":"Staffordshire County Council"},"West Midlands"]
[null,null,null,null,null,null,null,null,null,null,null,null,null,null,131051,"St Thomas' Catholic Primary School, Sevenoaks","2014-08-01","Kent County Council",{"$f":"VLOOKUP(R4734,'LA CPID Look up'!$A$3:$C$153,2,FALSE)","v":"Kent County Council"},"South-East England and South London"]
[null,null,null,null,null,null,null,null,null,null,null,null,null,null,131443,"St Thomas More Catholic Comprehensive School","2015-02-01","Greenwich London Borough Council",{"$f":"VLOOKUP(R4737,'LA CPID Look up'!$A$3:$C$153,2,FALSE)","v":"Greenwich London Borough Council"},"South-East England and South London"]
[null,null,null,null,null,null,null,null,null,null,null,null,null,null,123812,"St Thomas More Catholic High School - Crewe","2013-06-01","Cheshire East Council",{"$f":"VLOOKUP(R4738,'LA CPID Look up'!$A$3:$C$153,2,FALSE)","v":"Cheshire East Unitary Authority"},"West Midlands"]
[null,null,null,null,null,null,null,null,null,null,null,null,null,null,124073,"St Thomas More Catholic Primary School, Kidlington","2013-04-01","Oxfordshire County Council",{"$f":"VLOOKUP(R4740,'LA CPID Look up'!$A$3:$C$153,2,FALSE)","v":"Oxfordshire County Council"},"East of England and North-East London"]
[null,null,null,null,null,null,null,null,null,null,null,null,null,null,120281,"St Thomas More Catholic Primary School, Saffron Walden","2011-08-01","Essex County Council",{"$f":"VLOOKUP(R4741,'LA CPID Look up'!$A$3:$C$153,2,FALSE)","v":"Essex County Council"},"East of England and North-East London"]
[null,null,null,null,null,null,null,null,null,null,null,null,null,null,123184,"St Thomas More Catholic School","2013-04-01","Bedford Borough Council",{"$f":"VLOOKUP(R4743,'LA CPID Look up'!$A$3:$C$153,2,FALSE)","v":"Bedford Unitary Authority"},"South-Central England and North-West London"]
[null,null,null,null,null,null,null,null,null,null,null,null,null,null,120513,"St Thomas More Catholic School - Gateshead","2012-02-01","Gateshead Council",{"$f":"VLOOKUP(R4744,'LA CPID Look up'!$A$3:$C$153,2,FALSE)","v":"Gateshead Council"},"North of England"]
[null,null,null,null,null,null,null,null,null,null,null,null,null,null,131936,"St Thomas More Catholic School and Sixth Form College","2015-03-01","Warwickshire County Council",{"$f":"VLOOKUP(R4746,'LA CPID Look up'!$A$3:$C$153,2,FALSE)","v":"Warwickshire County Council"},"West Midlands"]
[null,null,null,null,null,null,null,null,null,null,null,null,null,null,121185,"St Thomas More Catholic Voluntary Academy - Leicester","2012-06-01","Leicester City Council",{"$f":"VLOOKUP(R4747,'LA CPID Look up'!$A$3:$C$153,2,FALSE)","v":"Leicester City Council"},"East Midlands and the Humber"]
[null,null,null,null,null,null,null,null,null,null,null,null,null,null,132348,"St Thomas More RC Primary School - Middlesbrough","2015-11-01","Middlesbrough Council",{"$f":"VLOOKUP(R4749,'LA CPID Look up'!$A$3:$C$153,2,FALSE)","v":"Middlesbrough Council"},"North of England"]
[null,null,null,null,null,null,null,null,null,null,null,null,null,null,120865,"St Thomas More Roman Catholic Academy","2011-12-01","North Tyneside Council",{"$f":"VLOOKUP(R4750,'LA CPID Look up'!$A$3:$C$153,2,FALSE)","v":"North Tyneside Metropolitan Borough Council"},"North of England"]
[null,null,null,null,null,null,null,null,null,null,null,null,null,null,120324,"St Thomas More's Catholic Primary School, Colchester","2012-06-01","Essex County Council",{"$f":"VLOOKUP(R4752,'LA CPID Look up'!$A$3:$C$153,2,FALSE)","v":"Essex County Council"},"East of England and North-East London"]
[null,null,null,null,null,null,null,null,null,null,null,null,null,null,122514,"St Thomas of Canterbury Catholic Primary School","2012-10-01","Sheffield City Council",{"$f":"VLOOKUP(R4753,'LA CPID Look up'!$A$3:$C$153,2,FALSE)","v":"Sheffield City Council"},"East Midlands and the Humber"]
[null,null,null,null,null,null,null,null,null,null,null,null,null,null,120468,"St Ursula's E-ACT Academy","2011-09-01","Bristol City Council",{"$f":"VLOOKUP(R4755,'LA CPID Look up'!$A$3:$C$153,2,FALSE)","v":"Bristol City Council"},"South-West England"]
[null,null,null,null,null,null,null,null,null,null,null,null,null,null,129430,"St Vincent's Catholic Primary School - Bromley","2014-10-01","Bromley London Borough Council",{"$f":"VLOOKUP(R4756,'LA CPID Look up'!$A$3:$C$153,2,FALSE)","v":"Bromley London Borough Council"},"South-East England and South London"]
[null,null,null,null,null,null,null,null,null,null,null,null,null,null,131241,"St Werburgh's CE (A) Primary School","2015-09-01","Staffordshire County Council",{"$f":"VLOOKUP(R4758,'LA CPID Look up'!$A$3:$C$153,2,FALSE)","v":"Staffordshire County Council"},"West Midlands"]
[null,null,null,null,null,null,null,null,null,null,null,null,null,null,130540,"St Wilfrid's Academy, Doncaster","2014-09-01","Doncaster Metropolitan Borough Council",{"$f":"VLOOKUP(R4759,'LA CPID Look up'!$A$3:$C$153,2,FALSE)","v":"Doncaster Metropolitan Borough Council"},"East Midlands and the Humber"]
[null,null,null,null,null,null,null,null,null,null,null,null,null,null,122712,"St Wilfrid's Catholic Primary School - Sheffield","2012-10-01","Sheffield City Council",{"$f":"VLOOKUP(R4761,'LA CPID Look up'!$A$3:$C$153,2,FALSE)","v":"Sheffield City Council"},"East Midlands and the Humber"]
[null,null,null,null,null,null,null,null,null,null,null,null,null,null,123287,"St Wilfrid's Catholic Primary School - Tunstall","2013-09-01","Stoke-on-Trent City Council",{"$f":"VLOOKUP(R4762,'LA CPID Look up'!$A$3:$C$153,2,FALSE)","v":"Stoke-on-Trent Unitary Authority"},"West Midlands"]
[null,null,null,null,null,null,null,null,null,null,null,null,null,null,123164,"St Winnow CofE School","2012-12-01","Cornwall Council",{"$f":"VLOOKUP(R4765,'LA CPID Look up'!$A$3:$C$153,2,FALSE)","v":"Cornwall Unitary Authority"},"South-West England"]
[null,null,null,null,null,null,null,null,null,null,null,null,null,null,131180,"St Wulstan's Catholic Primary School","2014-10-01","Worcestershire County Council",{"$f":"VLOOKUP(R4766,'LA CPID Look up'!$A$3:$C$153,2,FALSE)","v":"Worcestershire County Council"},"West Midlands"]
[null,null,null,null,null,null,null,null,null,null,null,null,null,null,121844,"St. George's Church of England Academy - Darlington","2012-04-01","Darlington Borough Council",{"$f":"VLOOKUP(R4768,'LA CPID Look up'!$A$3:$C$153,2,FALSE)","v":"Darlington Borough Council"},"North of England"]
[null,null,null,null,null,null,null,null,null,null,null,null,null,null,122330,"St. John the Baptist Catholic Primary School","2012-11-01","Wakefield Council",{"$f":"VLOOKUP(R4769,'LA CPID Look up'!$A$3:$C$153,2,FALSE)","v":"Wakefield City Council"},"Lancashire and West Yorkshire"]
[null,null,null,null,null,null,null,null,null,null,null,null,null,null,130954,"St. Mary Cray Primary Academy","2014-11-01","Bromley London Borough Council",{"$f":"VLOOKUP(R4771,'LA CPID Look up'!$A$3:$C$153,2,FALSE)","v":"Bromley London Borough Council"},"South-East England and South London"]
[null,null,null,null,null,null,null,null,null,null,null,null,null,null,132905,"St. Mary's Catholic Junior School - Croydon","2015-09-01","Croydon London Borough Council",{"$f":"VLOOKUP(R4772,'LA CPID Look up'!$A$3:$C$153,2,FALSE)","v":"Croydon London Borough Council"},"South-East England and South London"]
[null,null,null,null,null,null,null,null,null,null,null,null,null,null,122689,"St. Michael's Academy - Yeovil","2012-10-01","Somerset County Council",{"$f":"VLOOKUP(R4774,'LA CPID Look up'!$A$3:$C$153,2,FALSE)","v":"Somerset County Council"},"South-West England"]
[null,null,null,null,null,null,null,null,null,null,null,null,null,null,132485,"St. Patrick's Roman Catholic Primary School","2015-09-01","Stockton-on-Tees Borough Council",{"$f":"VLOOKUP(R4775,'LA CPID Look up'!$A$3:$C$153,2,FALSE)","v":"Stockton-on-Tees Borough Council"},"North of England"]
[null,null,null,null,null,null,null,null,null,null,null,null,null,null,120164,"Staffordshire University Academy","2011-09-01","Staffordshire County Council",{"$f":"VLOOKUP(R4777,'LA CPID Look up'!$A$3:$C$153,2,FALSE)","v":"Staffordshire County Council"},"West Midlands"]
[null,null,null,null,null,null,null,null,null,null,null,null,null,null,120234,"Staindrop School An Academy","2011-08-01","Durham County Council",{"$f":"VLOOKUP(R4778,'LA CPID Look up'!$A$3:$C$153,2,FALSE)","v":"County Durham Unitary Authority"},"North of England"]
[null,null,null,null,null,null,null,null,null,null,null,null,null,null,131398,"Stalham High School","2015-01-01","Norfolk County Council",{"$f":"VLOOKUP(R4780,'LA CPID Look up'!$A$3:$C$153,2,FALSE)","v":"Norfolk County Council"},"East of England and North-East London"]
[null,null,null,null,null,null,null,null,null,null,null,null,null,null,131538,"Stambridge Primary Academy","2015-02-01","Essex County Council",{"$f":"VLOOKUP(R4781,'LA CPID Look up'!$A$3:$C$153,2,FALSE)","v":"Essex County Council"},"East of England and North-East London"]
[null,null,null,null,null,null,null,null,null,null,null,null,null,null,120687,"Stamford Welland Academy","2011-11-01","Lincolnshire County Council",{"$f":"VLOOKUP(R4783,'LA CPID Look up'!$A$3:$C$153,2,FALSE)","v":"Lincolnshire County Council"},"East Midlands and the Humber"]
[null,null,null,null,null,null,null,null,null,null,null,null,null,null,124086,"Stamshaw Junior School","2015-04-01","Portsmouth City Council",{"$f":"VLOOKUP(R4784,'LA CPID Look up'!$A$3:$C$153,2,FALSE)","v":"Portsmouth City Council"},"South-East England and South London"]
[null,null,null,null,null,null,null,null,null,null,null,null,null,null,120080,"Stanchester Academy","2011-08-01","Somerset County Council",{"$f":"VLOOKUP(R4786,'LA CPID Look up'!$A$3:$C$153,2,FALSE)","v":"Somerset County Council"},"South-West England"]
[null,null,null,null,null,null,null,null,null,null,null,null,null,null,124557,"Standish St Wilfrid's Church of England Primary Academy","2013-07-01","Wigan Metropolitan Borough Council",{"$f":"VLOOKUP(R4787,'LA CPID Look up'!$A$3:$C$153,2,FALSE)","v":"Wigan Metropolitan Borough Council"},"Lancashire and West Yorkshire"]
[null,null,null,null,null,null,null,null,null,null,null,null,null,null,123879,"Stanford-le-Hope Primary School","2013-06-01","Thurrock Borough Council",{"$f":"VLOOKUP(R4789,'LA CPID Look up'!$A$3:$C$153,2,FALSE)","v":"Thurrock Unitary Authority"},"East of England and North-East London"]
[null,null,null,null,null,null,null,null,null,null,null,null,null,null,120991,"Stanground Academy","2012-04-01","Peterborough City Council",{"$f":"VLOOKUP(R4790,'LA CPID Look up'!$A$3:$C$153,2,FALSE)","v":"Peterborough City Council"},"East of England and North-East London"]
[null,null,null,null,null,null,null,null,null,null,null,null,null,null,121139,"Staniland Academy","2012-09-01","Lincolnshire County Council",{"$f":"VLOOKUP(R4792,'LA CPID Look up'!$A$3:$C$153,2,FALSE)","v":"Lincolnshire County Council"},"East Midlands and the Humber"]
[null,null,null,null,null,null,null,null,null,null,null,null,null,null,127673,"Stanley Green Infant Academy","2014-01-01","Poole Borough Council",{"$f":"VLOOKUP(R4793,'LA CPID Look up'!$A$3:$C$153,2,FALSE)","v":"Poole (Borough of)"},"South-West England"]
[null,null,null,null,null,null,null,null,null,null,null,null,null,null,123270,"Stanton Under Bardon Community Primary School","2013-10-01","Leicestershire County Council",{"$f":"VLOOKUP(R4796,'LA CPID Look up'!$A$3:$C$153,2,FALSE)","v":"Leicestershire County Council"},"East Midlands and the Humber"]
[null,null,null,null,null,null,null,null,null,null,null,null,null,null,121062,"Stanway School, The","2012-03-01","Essex County Council",{"$f":"VLOOKUP(R4797,'LA CPID Look up'!$A$3:$C$153,2,FALSE)","v":"Essex County Council"},"East of England and North-East London"]
[null,null,null,null,null,null,null,null,null,null,null,null,null,null,124197,"Stapeley Broad Lane CofE Primary School","2013-04-01","Cheshire East Council",{"$f":"VLOOKUP(R4799,'LA CPID Look up'!$A$3:$C$153,2,FALSE)","v":"Cheshire East Unitary Authority"},"West Midlands"]
[null,null,null,null,null,null,null,null,null,null,null,null,null,null,130689,"Staplegrove Church School","2014-08-01","Somerset County Council",{"$f":"VLOOKUP(R4800,'LA CPID Look up'!$A$3:$C$153,2,FALSE)","v":"Somerset County Council"},"South-West England"]
[null,null,null,null,null,null,null,null,null,null,null,null,null,null,130341,"Stationers Crown Woods Academy","2014-09-01","Greenwich London Borough Council",{"$f":"VLOOKUP(R4802,'LA CPID Look up'!$A$3:$C$153,2,FALSE)","v":"Greenwich London Borough Council"},"South-East England and South London"]
[null,null,null,null,null,null,null,null,null,null,null,null,null,null,120149,"Staunton and Corse Church of England Primary School","2011-08-01","Gloucestershire County Council",{"$f":"VLOOKUP(R4803,'LA CPID Look up'!$A$3:$C$153,2,FALSE)","v":"Gloucestershire County Council"},"South-West England"]
[null,null,null,null,null,null,null,null,null,null,null,null,null,null,130544,"Steiner Academy Bristol","2014-09-01","Bristol City Council",{"$f":"VLOOKUP(R4805,'LA CPID Look up'!$A$3:$C$153,2,FALSE)","v":"Bristol City Council"},"South-West England"]
[null,null,null,null,null,null,null,null,null,null,null,null,null,null,123346,"Steiner Academy Exeter","2013-09-01","Devon County Council",{"$f":"VLOOKUP(R4806,'LA CPID Look up'!$A$3:$C$153,2,FALSE)","v":"Devon County Council"},"South-West England"]
[null,null,null,null,null,null,null,null,null,null,null,null,null,null,119118,"Steiner Academy Hereford, The","2008-09-04","Herefordshire Council",{"$f":"VLOOKUP(R4808,'LA CPID Look up'!$A$3:$C$153,2,FALSE)","v":"Herefordshire Council"},"West Midlands"]
[null,null,null,null,null,null,null,null,null,null,null,null,null,null,130515,"Stella Maris Primary School","2015-01-01","Kent County Council",{"$f":"VLOOKUP(R4809,'LA CPID Look up'!$A$3:$C$153,2,FALSE)","v":"Kent County Council"},"South-East England and South London"]
[null,null,null,null,null,null,null,null,null,null,null,null,null,null,120459,"Stephenson Studio School","2011-09-01","Leicestershire County Council",{"$f":"VLOOKUP(R4811,'LA CPID Look up'!$A$3:$C$153,2,FALSE)","v":"Leicestershire County Council"},"East Midlands and the Humber"]
[null,null,null,null,null,null,null,null,null,null,null,null,null,null,122790,"Stephenson Way Academy and Nursery School","2012-12-01","Durham County Council",{"$f":"VLOOKUP(R4812,'LA CPID Look up'!$A$3:$C$153,2,FALSE)","v":"County Durham Unitary Authority"},"North of England"]
[null,null,null,null,null,null,null,null,null,null,null,null,null,null,120035,"Stewart Fleming Primary School","2011-08-01","Bromley London Borough Council",{"$f":"VLOOKUP(R4814,'LA CPID Look up'!$A$3:$C$153,2,FALSE)","v":"Bromley London Borough Council"},"South-East England and South London"]
[null,null,null,null,null,null,null,null,null,null,null,null,null,null,131812,"Stifford Clays Primary School","2015-04-01","Thurrock Borough Council",{"$f":"VLOOKUP(R4815,'LA CPID Look up'!$A$3:$C$153,2,FALSE)","v":"Thurrock Unitary Authority"},"East of England and North-East London"]
[null,null,null,null,null,null,null,null,null,null,null,null,null,null,120560,"Stisted Church of England Primary Academy","2011-10-01","Essex County Council",{"$f":"VLOOKUP(R4817,'LA CPID Look up'!$A$3:$C$153,2,FALSE)","v":"Essex County Council"},"East of England and North-East London"]
[null,null,null,null,null,null,null,null,null,null,null,null,null,null,120417,"Stockland Church of England Primary School","2011-09-01","Devon County Council",{"$f":"VLOOKUP(R4818,'LA CPID Look up'!$A$3:$C$153,2,FALSE)","v":"Devon County Council"},"South-West England"]
[null,null,null,null,null,null,null,null,null,null,null,null,null,null,118400,"Stockley Academy","2004-09-01","Hillingdon London Borough Council",{"$f":"VLOOKUP(R4820,'LA CPID Look up'!$A$3:$C$153,2,FALSE)","v":"Hillingdon London Borough Council"},"East of England and North-East London"]
[null,null,null,null,null,null,null,null,null,null,null,null,null,null,118648,"Stockport Academy","2007-09-01","Stockport Metropolitan Borough Council",{"$f":"VLOOKUP(R4821,'LA CPID Look up'!$A$3:$C$153,2,FALSE)","v":"Stockport Metropolitan Borough Council"},"Lancashire and West Yorkshire"]
[null,null,null,null,null,null,null,null,null,null,null,null,null,null,131456,"Stockwell Academy","2015-02-01","Hull City Council",{"$f":"VLOOKUP(R4823,'LA CPID Look up'!$A$3:$C$153,2,FALSE)","v":"Kingston upon Hull City Council"},"East Midlands and the Humber"]
[null,null,null,null,null,null,null,null,null,null,null,null,null,null,123225,"Stoke Bishop Church of England Primary School","2013-04-01","Bristol City Council",{"$f":"VLOOKUP(R4824,'LA CPID Look up'!$A$3:$C$153,2,FALSE)","v":"Bristol City Council"},"South-West England"]
[null,null,null,null,null,null,null,null,null,null,null,null,null,null,124743,"Stoke Fleming Community Primary School","2014-09-01","Devon County Council",{"$f":"VLOOKUP(R4827,'LA CPID Look up'!$A$3:$C$153,2,FALSE)","v":"Devon County Council"},"South-West England"]
[null,null,null,null,null,null,null,null,null,null,null,null,null,null,124773,"Stoke High School - Ormiston Academy","2013-10-01","Suffolk County Council",{"$f":"VLOOKUP(R4828,'LA CPID Look up'!$A$3:$C$153,2,FALSE)","v":"Suffolk County Council"},"East of England and North-East London"]
[null,null,null,null,null,null,null,null,null,null,null,null,null,null,122526,"Stoke Studio College for Construction and Building Excellence","2012-09-01","Stoke-on-Trent City Council",{"$f":"VLOOKUP(R4830,'LA CPID Look up'!$A$3:$C$153,2,FALSE)","v":"Stoke-on-Trent Unitary Authority"},"West Midlands"]
[null,null,null,null,null,null,null,null,null,null,null,null,null,null,123393,"Stoke Studio College for Manufacturing and Design Engineering","2013-09-01","Stoke-on-Trent City Council",{"$f":"VLOOKUP(R4831,'LA CPID Look up'!$A$3:$C$153,2,FALSE)","v":"Stoke-on-Trent Unitary Authority"},"West Midlands"]
[null,null,null,null,null,null,null,null,null,null,null,null,null,null,131847,"Stokesley School","2015-04-01","North Yorkshire County Council",{"$f":"VLOOKUP(R4833,'LA CPID Look up'!$A$3:$C$153,2,FALSE)","v":"North Yorkshire County Council"},"North of England"]
[null,null,null,null,null,null,null,null,null,null,null,null,null,null,131381,"Stone Lodge Academy","2015-02-01","Suffolk County Council",{"$f":"VLOOKUP(R4834,'LA CPID Look up'!$A$3:$C$153,2,FALSE)","v":"Suffolk County Council"},"East of England and North-East London"]
[null,null,null,null,null,null,null,null,null,null,null,null,null,null,124598,"Stone with Woodford Church of England Primary School","2013-08-01","Gloucestershire County Council",{"$f":"VLOOKUP(R4836,'LA CPID Look up'!$A$3:$C$153,2,FALSE)","v":"Gloucestershire County Council"},"South-West England"]
[null,null,null,null,null,null,null,null,null,null,null,null,null,null,122675,"Stonebow Primary School Loughborough","2013-02-01","Leicestershire County Council",{"$f":"VLOOKUP(R4837,'LA CPID Look up'!$A$3:$C$153,2,FALSE)","v":"Leicestershire County Council"},"East Midlands and the Humber"]
[null,null,null,null,null,null,null,null,null,null,null,null,null,null,131809,"Stottesdon CofE Primary School","2015-09-01","Shropshire Council",{"$f":"VLOOKUP(R4839,'LA CPID Look up'!$A$3:$C$153,2,FALSE)","v":"Shropshire Unitary Authority"},"West Midlands"]
[null,null,null,null,null,null,null,null,null,null,null,null,null,null,120537,"Stour Valley Community School","2011-09-01","Suffolk County Council",{"$f":"VLOOKUP(R4840,'LA CPID Look up'!$A$3:$C$153,2,FALSE)","v":"Suffolk County Council"},"East of England and North-East London"]
[null,null,null,null,null,null,null,null,null,null,null,null,null,null,120162,"Stourport High School and Sixth Form Centre, The","2011-08-01","Worcestershire County Council",{"$f":"VLOOKUP(R4842,'LA CPID Look up'!$A$3:$C$153,2,FALSE)","v":"Worcestershire County Council"},"West Midlands"]
[null,null,null,null,null,null,null,null,null,null,null,null,null,null,120996,"Stowford School","2012-04-01","Devon County Council",{"$f":"VLOOKUP(R4843,'LA CPID Look up'!$A$3:$C$153,2,FALSE)","v":"Devon County Council"},"South-West England"]
[null,null,null,null,null,null,null,null,null,null,null,null,null,null,131519,"Stradbroke Primary School","2014-12-01","Norfolk County Council",{"$f":"VLOOKUP(R4845,'LA CPID Look up'!$A$3:$C$153,2,FALSE)","v":"Norfolk County Council"},"East of England and North-East London"]
[null,null,null,null,null,null,null,null,null,null,null,null,null,null,120722,"Stramongate Primary School","2012-04-01","Cumbria County Council",{"$f":"VLOOKUP(R4846,'LA CPID Look up'!$A$3:$C$153,2,FALSE)","v":"Cumbria County Council"},"North of England"]
[null,null,null,null,null,null,null,null,null,null,null,null,null,null,124156,"Stranton Primary School","2013-07-01","Hartlepool Borough Council",{"$f":"VLOOKUP(R4848,'LA CPID Look up'!$A$3:$C$153,2,FALSE)","v":"Hartlepool Borough Council"},"North of England"]
[null,null,null,null,null,null,null,null,null,null,null,null,null,null,120235,"Stratford Girls' Grammar School","2011-08-01","Warwickshire County Council",{"$f":"VLOOKUP(R4849,'LA CPID Look up'!$A$3:$C$153,2,FALSE)","v":"Warwickshire County Council"},"West Midlands"]
[null,null,null,null,null,null,null,null,null,null,null,null,null,null,120236,"Stratford upon Avon School","2011-08-01","Warwickshire County Council",{"$f":"VLOOKUP(R4851,'LA CPID Look up'!$A$3:$C$153,2,FALSE)","v":"Warwickshire County Council"},"West Midlands"]
[null,null,null,null,null,null,null,null,null,null,null,null,null,null,133670,"Stratford-Upon-Avon Primary School","2016-03-01","Warwickshire County Council",{"$f":"VLOOKUP(R4852,'LA CPID Look up'!$A$3:$C$153,2,FALSE)","v":"Warwickshire County Council"},"West Midlands"]
[null,null,null,null,null,null,null,null,null,null,null,null,null,null,123853,"Stretton Church of England Academy","2013-04-01","Coventry City Council",{"$f":"VLOOKUP(R4855,'LA CPID Look up'!$A$3:$C$153,2,FALSE)","v":"Coventry City Council"},"West Midlands"]
[null,null,null,null,null,null,null,null,null,null,null,null,null,null,120068,"Stretton Sugwas CofE Academy","2012-04-01","Herefordshire Council",{"$f":"VLOOKUP(R4856,'LA CPID Look up'!$A$3:$C$153,2,FALSE)","v":"Herefordshire Council"},"West Midlands"]
[null,null,null,null,null,null,null,null,null,null,null,null,null,null,119874,"Stroud High School","2011-07-01","Gloucestershire County Council",{"$f":"VLOOKUP(R4858,'LA CPID Look up'!$A$3:$C$153,2,FALSE)","v":"Gloucestershire County Council"},"South-West England"]
[null,null,null,null,null,null,null,null,null,null,null,null,null,null,122532,"Studio School Liverpool, The","2013-09-01","Liverpool City Council",{"$f":"VLOOKUP(R4859,'LA CPID Look up'!$A$3:$C$153,2,FALSE)","v":"Liverpool City Council"},"Lancashire and West Yorkshire"]
[null,null,null,null,null,null,null,null,null,null,null,null,null,null,119793,"Studley High School","2011-06-01","Warwickshire County Council",{"$f":"VLOOKUP(R4861,'LA CPID Look up'!$A$3:$C$153,2,FALSE)","v":"Warwickshire County Council"},"West Midlands"]
[null,null,null,null,null,null,null,null,null,null,null,null,null,null,130755,"Studley St Mary's CofE Academy","2014-07-01","Warwickshire County Council",{"$f":"VLOOKUP(R4862,'LA CPID Look up'!$A$3:$C$153,2,FALSE)","v":"Warwickshire County Council"},"West Midlands"]
[null,null,null,null,null,null,null,null,null,null,null,null,null,null,119983,"Suckley Primary School","2011-08-01","Worcestershire County Council",{"$f":"VLOOKUP(R4864,'LA CPID Look up'!$A$3:$C$153,2,FALSE)","v":"Worcestershire County Council"},"West Midlands"]
[null,null,null,null,null,null,null,null,null,null,null,null,null,null,122776,"Sudbury Primary School","2012-09-01","Brent London Borough Council",{"$f":"VLOOKUP(R4865,'LA CPID Look up'!$A$3:$C$153,2,FALSE)","v":"Brent London Borough Council"},"South-Central England and North-West London"]
[null,null,null,null,null,null,null,null,null,null,null,null,null,null,132454,"Suffolk One","2015-09-01","Suffolk County Council",{"$f":"VLOOKUP(R4867,'LA CPID Look up'!$A$3:$C$153,2,FALSE)","v":"Suffolk County Council"},"East of England and North-East London"]
[null,null,null,null,null,null,null,null,null,null,null,null,null,null,127552,"Summercourt Community Primary School - Newquay","2013-11-01","Cornwall Council",{"$f":"VLOOKUP(R4868,'LA CPID Look up'!$A$3:$C$153,2,FALSE)","v":"Cornwall Unitary Authority"},"South-West England"]
[null,null,null,null,null,null,null,null,null,null,null,null,null,null,122795,"Summerfields Primary Academy","2012-12-01","Barnsley Metropolitan Borough Council",{"$f":"VLOOKUP(R4870,'LA CPID Look up'!$A$3:$C$153,2,FALSE)","v":"Barnsley Metropolitan Borough Council"},"East Midlands and the Humber"]
[null,null,null,null,null,null,null,null,null,null,null,null,null,null,122098,"Summerhill Academy","2012-09-01","Bristol City Council",{"$f":"VLOOKUP(R4871,'LA CPID Look up'!$A$3:$C$153,2,FALSE)","v":"Bristol City Council"},"South-West England"]
[null,null,null,null,null,null,null,null,null,null,null,null,null,null,122283,"Sundon Lower School","2013-04-01","Central Bedfordshire Council",{"$f":"VLOOKUP(R4873,'LA CPID Look up'!$A$3:$C$153,2,FALSE)","v":"Central Bedfordshire Unitary Authority"},"South-Central England and North-West London"]
[null,null,null,null,null,null,null,null,null,null,null,null,null,null,123095,"Sundorne School and Sports College","2013-04-01","Shropshire Council",{"$f":"VLOOKUP(R4874,'LA CPID Look up'!$A$3:$C$153,2,FALSE)","v":"Shropshire Unitary Authority"},"West Midlands"]
[null,null,null,null,null,null,null,null,null,null,null,null,null,null,123096,"Sunnyside Primary Academy - Northampton","2013-02-01","Northamptonshire County Council",{"$f":"VLOOKUP(R4876,'LA CPID Look up'!$A$3:$C$153,2,FALSE)","v":"Northamptonshire County Council"},"East of England and North-East London"]
[null,null,null,null,null,null,null,null,null,null,null,null,null,null,128105,"Sunnyside Spencer Academy","2014-05-01","Nottinghamshire County Council",{"$f":"VLOOKUP(R4877,'LA CPID Look up'!$A$3:$C$153,2,FALSE)","v":"Nottinghamshire County Council"},"East Midlands and the Humber"]
[null,null,null,null,null,null,null,null,null,null,null,null,null,null,120737,"Sutherland Primary Academy","2012-08-01","Stoke-on-Trent City Council",{"$f":"VLOOKUP(R4879,'LA CPID Look up'!$A$3:$C$153,2,FALSE)","v":"Stoke-on-Trent Unitary Authority"},"West Midlands"]
[null,null,null,null,null,null,null,null,null,null,null,null,null,null,119197,"Sutton Academy, The","2010-09-01","St Helens Metropolitan Borough Council",{"$f":"VLOOKUP(R4880,'LA CPID Look up'!$A$3:$C$153,2,FALSE)","v":"St Helens Metropolitan Borough Council"},"Lancashire and West Yorkshire"]
[null,null,null,null,null,null,null,null,null,null,null,null,null,null,122308,"Sutton Community Academy","2013-01-01","Nottinghamshire County Council",{"$f":"VLOOKUP(R4882,'LA CPID Look up'!$A$3:$C$153,2,FALSE)","v":"Nottinghamshire County Council"},"East Midlands and the Humber"]
[null,null,null,null,null,null,null,null,null,null,null,null,null,null,119776,"Sutton Grammar School","2011-06-01","Sutton London Borough Council",{"$f":"VLOOKUP(R4883,'LA CPID Look up'!$A$3:$C$153,2,FALSE)","v":"Sutton London Borough Council"},"South-East England and South London"]
[null,null,null,null,null,null,null,null,null,null,null,null,null,null,131539,"Swaffham CofE VC Junior School","2015-02-01","Norfolk County Council",{"$f":"VLOOKUP(R4886,'LA CPID Look up'!$A$3:$C$153,2,FALSE)","v":"Norfolk County Council"},"East of England and North-East London"]
[null,null,null,null,null,null,null,null,null,null,null,null,null,null,119549,"Swakeleys School for Girls","2011-04-01","Hillingdon London Borough Council",{"$f":"VLOOKUP(R4887,'LA CPID Look up'!$A$3:$C$153,2,FALSE)","v":"Hillingdon London Borough Council"},"East of England and North-East London"]
[null,null,null,null,null,null,null,null,null,null,null,null,null,null,124159,"Swallowdale Primary School and Community Centre","2013-03-01","Leicestershire County Council",{"$f":"VLOOKUP(R4889,'LA CPID Look up'!$A$3:$C$153,2,FALSE)","v":"Leicestershire County Council"},"East Midlands and the Humber"]
[null,null,null,null,null,null,null,null,null,null,null,null,null,null,122039,"Swanage School, The","2013-09-01","Dorset County Council",{"$f":"VLOOKUP(R4890,'LA CPID Look up'!$A$3:$C$153,2,FALSE)","v":"Dorset County Council"},"South-West England"]
[null,null,null,null,null,null,null,null,null,null,null,null,null,null,120151,"Swanland Primary School","2011-08-01","East Riding of Yorkshire Council",{"$f":"VLOOKUP(R4892,'LA CPID Look up'!$A$3:$C$153,2,FALSE)","v":"East Riding of Yorkshire Council"},"East Midlands and the Humber"]
[null,null,null,null,null,null,null,null,null,null,null,null,null,null,119656,"Swavesey Village College","2011-04-01","Cambridgeshire County Council",{"$f":"VLOOKUP(R4893,'LA CPID Look up'!$A$3:$C$153,2,FALSE)","v":"Cambridgeshire County Council"},"East of England and North-East London"]
[null,null,null,null,null,null,null,null,null,null,null,null,null,null,118643,"Swindon Academy","2007-09-01","Swindon Borough Council",{"$f":"VLOOKUP(R4895,'LA CPID Look up'!$A$3:$C$153,2,FALSE)","v":"Swindon Unitary Authority"},"South-West England"]
[null,null,null,null,null,null,null,null,null,null,null,null,null,null,119987,"Swinton High School, The","2011-08-01","Salford City Council",{"$f":"VLOOKUP(R4896,'LA CPID Look up'!$A$3:$C$153,2,FALSE)","v":"Salford City Council"},"Lancashire and West Yorkshire"]
[null,null,null,null,null,null,null,null,null,null,null,null,null,null,120830,"Sycamore Academy","2012-01-01","Nottingham City Council",{"$f":"VLOOKUP(R4898,'LA CPID Look up'!$A$3:$C$153,2,FALSE)","v":"Nottingham City Council"},"East Midlands and the Humber"]
[null,null,null,null,null,null,null,null,null,null,null,null,null,null,131695,"Sydney Russell School, The","2015-02-01","Barking and Dagenham London Borough Council",{"$f":"VLOOKUP(R4899,'LA CPID Look up'!$A$3:$C$153,2,FALSE)","v":"Barking & Dagenham London Borough Council"},"East of England and North-East London"]
[null,null,null,null,null,null,null,null,null,null,null,null,null,null,123170,"Tabor Academy","2013-01-01","Essex County Council",{"$f":"VLOOKUP(R4901,'LA CPID Look up'!$A$3:$C$153,2,FALSE)","v":"Essex County Council"},"East of England and North-East London"]
[null,null,null,null,null,null,null,null,null,null,null,null,null,null,129607,"Tadpole Farm Primary School","2014-09-01","Swindon Borough Council",{"$f":"VLOOKUP(R4902,'LA CPID Look up'!$A$3:$C$153,2,FALSE)","v":"Swindon Unitary Authority"},"South-West England"]
[null,null,null,null,null,null,null,null,null,null,null,null,null,null,122139,"Tame Valley Academy","2012-12-01","Birmingham City Council",{"$f":"VLOOKUP(R4904,'LA CPID Look up'!$A$3:$C$153,2,FALSE)","v":"Birmingham City Council"},"West Midlands"]
[null,null,null,null,null,null,null,null,null,null,null,null,null,null,120986,"Tamworth Enterprise College and AET Academy","2012-09-01","Staffordshire County Council",{"$f":"VLOOKUP(R4905,'LA CPID Look up'!$A$3:$C$153,2,FALSE)","v":"Staffordshire County Council"},"West Midlands"]
[null,null,null,null,null,null,null,null,null,null,null,null,null,null,132443,"Tanners Brook Primary School","2015-09-01","Southampton City Council",{"$f":"VLOOKUP(R4907,'LA CPID Look up'!$A$3:$C$153,2,FALSE)","v":"Southampton City Council"},"South-East England and South London"]
[null,null,null,null,null,null,null,null,null,null,null,null,null,null,122096,"Tanworth-in-Arden CofE Primary School","2012-11-01","Warwickshire County Council",{"$f":"VLOOKUP(R4908,'LA CPID Look up'!$A$3:$C$153,2,FALSE)","v":"Warwickshire County Council"},"West Midlands"]
[null,null,null,null,null,null,null,null,null,null,null,null,null,null,120778,"Tarleton Academy","2012-01-01","Lancashire County Council",{"$f":"VLOOKUP(R4910,'LA CPID Look up'!$A$3:$C$153,2,FALSE)","v":"Lancashire County Council"},"Lancashire and West Yorkshire"]
[null,null,null,null,null,null,null,null,null,null,null,null,null,null,122275,"Tarporley High School and Sixth Form College","2012-08-01","Cheshire West and Chester Council",{"$f":"VLOOKUP(R4911,'LA CPID Look up'!$A$3:$C$153,2,FALSE)","v":"Cheshire West and Chester Unitary Authority"},"West Midlands"]
[null,null,null,null,null,null,null,null,null,null,null,null,null,null,130640,"Tauheedul Islam Girls High School","2014-12-01","Blackburn with Darwen Borough Council",{"$f":"VLOOKUP(R4914,'LA CPID Look up'!$A$3:$C$153,2,FALSE)","v":"Blackburn with Darwen Unitary Authority"},"Lancashire and West Yorkshire"]
[null,null,null,null,null,null,null,null,null,null,null,null,null,null,119349,"Taunton Academy, The","2010-09-01","Somerset County Council",{"$f":"VLOOKUP(R4915,'LA CPID Look up'!$A$3:$C$153,2,FALSE)","v":"Somerset County Council"},"South-West England"]
[null,null,null,null,null,null,null,null,null,null,null,null,null,null,133109,"TBAP Cambridge AP Academy","2015-10-01","Cambridgeshire County Council",{"$f":"VLOOKUP(R4917,'LA CPID Look up'!$A$3:$C$153,2,FALSE)","v":"Cambridgeshire County Council"},"East of England and North-East London"]
[null,null,null,null,null,null,null,null,null,null,null,null,null,null,131597,"Tebay Primary School","2015-03-01","Cumbria County Council",{"$f":"VLOOKUP(R4918,'LA CPID Look up'!$A$3:$C$153,2,FALSE)","v":"Cumbria County Council"},"North of England"]
[null,null,null,null,null,null,null,null,null,null,null,null,null,null,120883,"Teddington School","2012-08-01","Richmond Upon Thames Borough Council",{"$f":"VLOOKUP(R4920,'LA CPID Look up'!$A$3:$C$153,2,FALSE)","v":"Richmond upon Thames Borough Council"},"South-East England and South London"]
[null,null,null,null,null,null,null,null,null,null,null,null,null,null,120153,"Teesdale School","2011-08-01","Durham County Council",{"$f":"VLOOKUP(R4921,'LA CPID Look up'!$A$3:$C$153,2,FALSE)","v":"County Durham Unitary Authority"},"North of England"]
[null,null,null,null,null,null,null,null,null,null,null,null,null,null,119495,"Teignmouth Community School, Exeter Road","2011-03-01","Devon County Council",{"$f":"VLOOKUP(R4923,'LA CPID Look up'!$A$3:$C$153,2,FALSE)","v":"Devon County Council"},"South-West England"]
[null,null,null,null,null,null,null,null,null,null,null,null,null,null,119493,"Teignmouth Community School, Mill Lane","2011-03-01","Devon County Council",{"$f":"VLOOKUP(R4924,'LA CPID Look up'!$A$3:$C$153,2,FALSE)","v":"Devon County Council"},"South-West England"]
[null,null,null,null,null,null,null,null,null,null,null,null,null,null,124325,"Telford Park School","2013-04-01","Telford and Wrekin Council",{"$f":"VLOOKUP(R4926,'LA CPID Look up'!$A$3:$C$153,2,FALSE)","v":"Telford and Wrekin (Borough of)"},"West Midlands"]
[null,null,null,null,null,null,null,null,null,null,null,null,null,null,133159,"Telford Priory School, The","2015-09-01","Telford and Wrekin Council",{"$f":"VLOOKUP(R4927,'LA CPID Look up'!$A$3:$C$153,2,FALSE)","v":"Telford and Wrekin (Borough of)"},"West Midlands"]
[null,null,null,null,null,null,null,null,null,null,null,null,null,null,122425,"Temple Grove Academy","2013-01-01","Kent County Council",{"$f":"VLOOKUP(R4929,'LA CPID Look up'!$A$3:$C$153,2,FALSE)","v":"Kent County Council"},"South-East England and South London"]
[null,null,null,null,null,null,null,null,null,null,null,null,null,null,132659,"Temple Learning Academy","2015-09-01","Leeds City Council",{"$f":"VLOOKUP(R4930,'LA CPID Look up'!$A$3:$C$153,2,FALSE)","v":"Leeds City Council"},"Lancashire and West Yorkshire"]
[null,null,null,null,null,null,null,null,null,null,null,null,null,null,132958,"Ten Mile Bank Riverside Academy","2016-01-01","Norfolk County Council",{"$f":"VLOOKUP(R4932,'LA CPID Look up'!$A$3:$C$153,2,FALSE)","v":"Norfolk County Council"},"East of England and North-East London"]
[null,null,null,null,null,null,null,null,null,null,null,null,null,null,133054,"Tenbury CofE Primary School","2016-02-01","Worcestershire County Council",{"$f":"VLOOKUP(R4933,'LA CPID Look up'!$A$3:$C$153,2,FALSE)","v":"Worcestershire County Council"},"West Midlands"]
[null,null,null,null,null,null,null,null,null,null,null,null,null,null,122533,"Tendring Enterprise Studio School","2012-09-01","Essex County Council",{"$f":"VLOOKUP(R4935,'LA CPID Look up'!$A$3:$C$153,2,FALSE)","v":"Essex County Council"},"East of England and North-East London"]
[null,null,null,null,null,null,null,null,null,null,null,null,null,null,120188,"Tendring Technology College","2011-08-01","Essex County Council",{"$f":"VLOOKUP(R4936,'LA CPID Look up'!$A$3:$C$153,2,FALSE)","v":"Essex County Council"},"East of England and North-East London"]
[null,null,null,null,null,null,null,null,null,null,null,null,null,null,120800,"Tewkesbury School","2012-01-01","Gloucestershire County Council",{"$f":"VLOOKUP(R4938,'LA CPID Look up'!$A$3:$C$153,2,FALSE)","v":"Gloucestershire County Council"},"South-West England"]
[null,null,null,null,null,null,null,null,null,null,null,null,null,null,122720,"Thames Primary Academy","2012-11-01","Blackpool Council",{"$f":"VLOOKUP(R4939,'LA CPID Look up'!$A$3:$C$153,2,FALSE)","v":"Blackpool Unitary Authority"},"Lancashire and West Yorkshire"]
[null,null,null,null,null,null,null,null,null,null,null,null,null,null,122581,"Thames View Infants' School","2012-09-01","Barking and Dagenham London Borough Council",{"$f":"VLOOKUP(R4941,'LA CPID Look up'!$A$3:$C$153,2,FALSE)","v":"Barking & Dagenham London Borough Council"},"East of England and North-East London"]
[null,null,null,null,null,null,null,null,null,null,null,null,null,null,131731,"Thames View Junior School","2015-02-01","Barking and Dagenham London Borough Council",{"$f":"VLOOKUP(R4942,'LA CPID Look up'!$A$3:$C$153,2,FALSE)","v":"Barking & Dagenham London Borough Council"},"East of England and North-East London"]
[null,null,null,null,null,null,null,null,null,null,null,null,null,null,124637,"Thele Green School","2013-09-01","West Berkshire Council",{"$f":"VLOOKUP(R4945,'LA CPID Look up'!$A$3:$C$153,2,FALSE)","v":"West Berkshire Council"},"East of England and North-East London"]
[null,null,null,null,null,null,null,null,null,null,null,null,null,null,119327,"Thetford Academy, The","2010-09-01","Norfolk County Council",{"$f":"VLOOKUP(R4946,'LA CPID Look up'!$A$3:$C$153,2,FALSE)","v":"Norfolk County Council"},"East of England and North-East London"]
[null,null,null,null,null,null,null,null,null,null,null,null,null,null,131893,"Thistle Hill Academy","2015-09-01","Kent County Council",{"$f":"VLOOKUP(R4948,'LA CPID Look up'!$A$3:$C$153,2,FALSE)","v":"Kent County Council"},"South-East England and South London"]
[null,null,null,null,null,null,null,null,null,null,null,null,null,null,122045,"Thistley Hough Academy","2013-09-01","Stoke-on-Trent City Council",{"$f":"VLOOKUP(R4949,'LA CPID Look up'!$A$3:$C$153,2,FALSE)","v":"Stoke-on-Trent Unitary Authority"},"West Midlands"]
[null,null,null,null,null,null,null,null,null,null,null,null,null,null,120451,"Thomas Aveling School, The","2011-09-01","Medway Council",{"$f":"VLOOKUP(R4951,'LA CPID Look up'!$A$3:$C$153,2,FALSE)","v":"Medway Towns Unitary Authority (The)"},"South-East England and South London"]
[null,null,null,null,null,null,null,null,null,null,null,null,null,null,120900,"Thomas Bennett Community College","2012-09-01","West Sussex County Council",{"$f":"VLOOKUP(R4952,'LA CPID Look up'!$A$3:$C$153,2,FALSE)","v":"West Sussex County Council"},"South-East England and South London"]
[null,null,null,null,null,null,null,null,null,null,null,null,null,null,121027,"Thomas Clarkson Academy","2012-06-01","Cambridgeshire County Council",{"$f":"VLOOKUP(R4954,'LA CPID Look up'!$A$3:$C$153,2,FALSE)","v":"Cambridgeshire County Council"},"East of England and North-East London"]
[null,null,null,null,null,null,null,null,null,null,null,null,null,null,122337,"Thomas Cowley High School, The","2012-09-01","Lincolnshire County Council",{"$f":"VLOOKUP(R4955,'LA CPID Look up'!$A$3:$C$153,2,FALSE)","v":"Lincolnshire County Council"},"East Midlands and the Humber"]
[null,null,null,null,null,null,null,null,null,null,null,null,null,null,122387,"Thomas Estley Community College","2012-08-01","Leicestershire County Council",{"$f":"VLOOKUP(R4957,'LA CPID Look up'!$A$3:$C$153,2,FALSE)","v":"Leicestershire County Council"},"East Midlands and the Humber"]
[null,null,null,null,null,null,null,null,null,null,null,null,null,null,120984,"Thomas Ferens Academy","2012-09-01","Hull City Council",{"$f":"VLOOKUP(R4958,'LA CPID Look up'!$A$3:$C$153,2,FALSE)","v":"Kingston upon Hull City Council"},"East Midlands and the Humber"]
[null,null,null,null,null,null,null,null,null,null,null,null,null,null,127697,"Thomas Gamuel Primary School","2014-01-01","Waltham Forest London Borough Council",{"$f":"VLOOKUP(R4960,'LA CPID Look up'!$A$3:$C$153,2,FALSE)","v":"Waltham Forest London Borough Council"},"East of England and North-East London"]
[null,null,null,null,null,null,null,null,null,null,null,null,null,null,120163,"Thomas Hardye School, The","2011-08-01","Dorset County Council",{"$f":"VLOOKUP(R4961,'LA CPID Look up'!$A$3:$C$153,2,FALSE)","v":"Dorset County Council"},"South-West England"]
[null,null,null,null,null,null,null,null,null,null,null,null,null,null,124746,"Thomas Hinderwell Primary Academy","2013-11-01","North Yorkshire County Council",{"$f":"VLOOKUP(R4963,'LA CPID Look up'!$A$3:$C$153,2,FALSE)","v":"North Yorkshire County Council"},"North of England"]
[null,null,null,null,null,null,null,null,null,null,null,null,null,null,120059,"Thomas Keble School","2011-08-01","Gloucestershire County Council",{"$f":"VLOOKUP(R4964,'LA CPID Look up'!$A$3:$C$153,2,FALSE)","v":"Gloucestershire County Council"},"South-West England"]
[null,null,null,null,null,null,null,null,null,null,null,null,null,null,121120,"Thomas Lord Audley School, The","2012-03-01","Essex County Council",{"$f":"VLOOKUP(R4966,'LA CPID Look up'!$A$3:$C$153,2,FALSE)","v":"Essex County Council"},"East of England and North-East London"]
[null,null,null,null,null,null,null,null,null,null,null,null,null,null,131407,"Thomas Middlecott Academy","2015-03-01","Lincolnshire County Council",{"$f":"VLOOKUP(R4967,'LA CPID Look up'!$A$3:$C$153,2,FALSE)","v":"Lincolnshire County Council"},"East Midlands and the Humber"]
[null,null,null,null,null,null,null,null,null,null,null,null,null,null,118401,"Thomas Telford School","1992-02-07","Telford and Wrekin Council",{"$f":"VLOOKUP(R4969,'LA CPID Look up'!$A$3:$C$153,2,FALSE)","v":"Telford and Wrekin (Borough of)"},"West Midlands"]
[null,null,null,null,null,null,null,null,null,null,null,null,null,null,127690,"Thomas Walling Primary Academy","2014-04-01","Newcastle upon Tyne City Council",{"$f":"VLOOKUP(R4970,'LA CPID Look up'!$A$3:$C$153,2,FALSE)","v":"Newcastle upon Tyne City Council"},"North of England"]
[null,null,null,null,null,null,null,null,null,null,null,null,null,null,123365,"Thomson House School","2013-09-01","Richmond Upon Thames Borough Council",{"$f":"VLOOKUP(R4973,'LA CPID Look up'!$A$3:$C$153,2,FALSE)","v":"Richmond upon Thames Borough Council"},"South-East England and South London"]
[null,null,null,null,null,null,null,null,null,null,null,null,null,null,124089,"Thoresby Primary School","2013-07-01","Hull City Council",{"$f":"VLOOKUP(R4974,'LA CPID Look up'!$A$3:$C$153,2,FALSE)","v":"Kingston upon Hull City Council"},"East Midlands and the Humber"]
[null,null,null,null,null,null,null,null,null,null,null,null,null,null,119739,"Thornden School","2011-05-01","Hampshire County Council",{"$f":"VLOOKUP(R4976,'LA CPID Look up'!$A$3:$C$153,2,FALSE)","v":"Hampshire County Council"},"South-East England and South London"]
[null,null,null,null,null,null,null,null,null,null,null,null,null,null,121060,"Thornhill Community Academy","2012-12-01","Kirklees Metropolitan Council",{"$f":"VLOOKUP(R4977,'LA CPID Look up'!$A$3:$C$153,2,FALSE)","v":"Kirklees Metropolitan Council"},"Lancashire and West Yorkshire"]
[null,null,null,null,null,null,null,null,null,null,null,null,null,null,130325,"Thorp Academy","2014-09-01","Gateshead Council",{"$f":"VLOOKUP(R4979,'LA CPID Look up'!$A$3:$C$153,2,FALSE)","v":"Gateshead Council"},"North of England"]
[null,null,null,null,null,null,null,null,null,null,null,null,null,null,132293,"Thorpepark Academy","2015-09-01","Hull City Council",{"$f":"VLOOKUP(R4980,'LA CPID Look up'!$A$3:$C$153,2,FALSE)","v":"Kingston upon Hull City Council"},"East Midlands and the Humber"]
[null,null,null,null,null,null,null,null,null,null,null,null,null,null,131838,"Three Legged Cross First School","2015-12-01","Dorset County Council",{"$f":"VLOOKUP(R4982,'LA CPID Look up'!$A$3:$C$153,2,FALSE)","v":"Dorset County Council"},"South-West England"]
[null,null,null,null,null,null,null,null,null,null,null,null,null,null,131200,"Three Peaks Primary Academy","2014-12-01","Staffordshire County Council",{"$f":"VLOOKUP(R4983,'LA CPID Look up'!$A$3:$C$153,2,FALSE)","v":"Staffordshire County Council"},"West Midlands"]
[null,null,null,null,null,null,null,null,null,null,null,null,null,null,123156,"Three Ways School","2013-09-01","Bath & North East Somerset Council",{"$f":"VLOOKUP(R4985,'LA CPID Look up'!$A$3:$C$153,2,FALSE)","v":"Bath & North East Somerset Council"},"South-West England"]
[null,null,null,null,null,null,null,null,null,null,null,null,null,null,120563,"Thriftwood School","2011-10-01","Essex County Council",{"$f":"VLOOKUP(R4986,'LA CPID Look up'!$A$3:$C$153,2,FALSE)","v":"Essex County Council"},"East of England and North-East London"]
[null,null,null,null,null,null,null,null,null,null,null,null,null,null,121023,"Thrunscoe Primary and Nursery Academy","2012-08-01","North East Lincolnshire Council",{"$f":"VLOOKUP(R4988,'LA CPID Look up'!$A$3:$C$153,2,FALSE)","v":"North East Lincolnshire Council"},"East Midlands and the Humber"]
[null,null,null,null,null,null,null,null,null,null,null,null,null,null,122393,"Thrussington Church of England Primary School","2012-11-01","Leicestershire County Council",{"$f":"VLOOKUP(R4989,'LA CPID Look up'!$A$3:$C$153,2,FALSE)","v":"Leicestershire County Council"},"East Midlands and the Humber"]
[null,null,null,null,null,null,null,null,null,null,null,null,null,null,131128,"Thrybergh Fullerton Church of England Primary School","2015-02-01","Rotherham Metropolitan Borough Council",{"$f":"VLOOKUP(R4991,'LA CPID Look up'!$A$3:$C$153,2,FALSE)","v":"Rotherham Borough Council"},"East Midlands and the Humber"]
[null,null,null,null,null,null,null,null,null,null,null,null,null,null,130321,"Thrybergh Primary School","2014-07-01","Rotherham Metropolitan Borough Council",{"$f":"VLOOKUP(R4992,'LA CPID Look up'!$A$3:$C$153,2,FALSE)","v":"Rotherham Borough Council"},"East Midlands and the Humber"]
[null,null,null,null,null,null,null,null,null,null,null,null,null,null,121959,"Thurcroft Junior School","2012-07-01","Rotherham Metropolitan Borough Council",{"$f":"VLOOKUP(R4994,'LA CPID Look up'!$A$3:$C$153,2,FALSE)","v":"Rotherham Borough Council"},"East Midlands and the Humber"]
[null,null,null,null,null,null,null,null,null,null,null,null,null,null,120241,"Thurstable School Sports College and Sixth Form Centre","2011-08-01","Essex County Council",{"$f":"VLOOKUP(R4995,'LA CPID Look up'!$A$3:$C$153,2,FALSE)","v":"Essex County Council"},"East of England and North-East London"]
[null,null,null,null,null,null,null,null,null,null,null,null,null,null,131371,"Tickenham Church of England Primary School","2015-01-01","North Somerset District Council",{"$f":"VLOOKUP(R4997,'LA CPID Look up'!$A$3:$C$153,2,FALSE)","v":"North Somerset Council"},"South-West England"]
[null,null,null,null,null,null,null,null,null,null,null,null,null,null,120353,"Tidemill Academy","2011-09-01","Lewisham London Borough Council",{"$f":"VLOOKUP(R4998,'LA CPID Look up'!$A$3:$C$153,2,FALSE)","v":"Lewisham London Borough Council"},"South-East England and South London"]
[null,null,null,null,null,null,null,null,null,null,null,null,null,null,119910,"Tiffin School","2011-07-01","Royal Borough of Kingston Upon Thames Council",{"$f":"VLOOKUP(R5000,'LA CPID Look up'!$A$3:$C$153,2,FALSE)","v":"Kingston upon Thames Council (Royal Borough of)"},"South-East England and South London"]
[null,null,null,null,null,null,null,null,null,null,null,null,null,null,121972,"Tiger Primary School","2012-09-01","Kent County Council",{"$f":"VLOOKUP(R5001,'LA CPID Look up'!$A$3:$C$153,2,FALSE)","v":"Kent County Council"},"South-East England and South London"]
[null,null,null,null,null,null,null,null,null,null,null,null,null,null,131444,"Tilney All Saints Voluntary Controlled Primary School","2015-03-01","Norfolk County Council",{"$f":"VLOOKUP(R5004,'LA CPID Look up'!$A$3:$C$153,2,FALSE)","v":"Norfolk County Council"},"East of England and North-East London"]
[null,null,null,null,null,null,null,null,null,null,null,null,null,null,122095,"Timberley Academy","2012-05-01","Birmingham City Council",{"$f":"VLOOKUP(R5005,'LA CPID Look up'!$A$3:$C$153,2,FALSE)","v":"Birmingham City Council"},"West Midlands"]
[null,null,null,null,null,null,null,null,null,null,null,null,null,null,131082,"Tintagel Primary School","2014-11-01","Cornwall Council",{"$f":"VLOOKUP(R5007,'LA CPID Look up'!$A$3:$C$153,2,FALSE)","v":"Cornwall Unitary Authority"},"South-West England"]
[null,null,null,null,null,null,null,null,null,null,null,null,null,null,123892,"Tiverton Academy","2013-05-01","Birmingham City Council",{"$f":"VLOOKUP(R5008,'LA CPID Look up'!$A$3:$C$153,2,FALSE)","v":"Birmingham City Council"},"West Midlands"]
[null,null,null,null,null,null,null,null,null,null,null,null,null,null,119266,"Tollbar Academy","2010-09-01","North East Lincolnshire Council",{"$f":"VLOOKUP(R5010,'LA CPID Look up'!$A$3:$C$153,2,FALSE)","v":"North East Lincolnshire Council"},"East Midlands and the Humber"]
[null,null,null,null,null,null,null,null,null,null,null,null,null,null,130757,"Tollgate Primary School","2014-07-01","Suffolk County Council",{"$f":"VLOOKUP(R5011,'LA CPID Look up'!$A$3:$C$153,2,FALSE)","v":"Suffolk County Council"},"East of England and North-East London"]
[null,null,null,null,null,null,null,null,null,null,null,null,null,null,124690,"Tomlinscote School and Sixth Form College","2013-09-01","Surrey County Council",{"$f":"VLOOKUP(R5013,'LA CPID Look up'!$A$3:$C$153,2,FALSE)","v":"Surrey County Council"},"South-East England and South London"]
[null,null,null,null,null,null,null,null,null,null,null,null,null,null,119443,"Tonbridge Grammar School","2011-01-01","Kent County Council",{"$f":"VLOOKUP(R5014,'LA CPID Look up'!$A$3:$C$153,2,FALSE)","v":"Kent County Council"},"South-East England and South London"]
[null,null,null,null,null,null,null,null,null,null,null,null,null,null,123366,"Tooting Primary School","2013-09-01","Wandsworth London Borough Council",{"$f":"VLOOKUP(R5016,'LA CPID Look up'!$A$3:$C$153,2,FALSE)","v":"Wandsworth London Borough Council"},"South-East England and South London"]
[null,null,null,null,null,null,null,null,null,null,null,null,null,null,120968,"Top Valley Academy","2012-09-01","Nottingham City Council",{"$f":"VLOOKUP(R5017,'LA CPID Look up'!$A$3:$C$153,2,FALSE)","v":"Nottingham City Council"},"East Midlands and the Humber"]
[null,null,null,null,null,null,null,null,null,null,null,null,null,null,131124,"Torfield School","2014-10-01","East Sussex County Council",{"$f":"VLOOKUP(R5019,'LA CPID Look up'!$A$3:$C$153,2,FALSE)","v":"East Sussex County Council"},"South-East England and South London"]
[null,null,null,null,null,null,null,null,null,null,null,null,null,null,120970,"Torquay Academy","2012-09-01","Torbay Council",{"$f":"VLOOKUP(R5020,'LA CPID Look up'!$A$3:$C$153,2,FALSE)","v":"Torbay Council"},"South-West England"]
[null,null,null,null,null,null,null,null,null,null,null,null,null,null,119515,"Torquay Girls' Grammar School","2011-02-01","Torbay Council",{"$f":"VLOOKUP(R5022,'LA CPID Look up'!$A$3:$C$153,2,FALSE)","v":"Torbay Council"},"South-West England"]
[null,null,null,null,null,null,null,null,null,null,null,null,null,null,123858,"Torre Church of England Academy","2013-09-01","Torbay Council",{"$f":"VLOOKUP(R5023,'LA CPID Look up'!$A$3:$C$153,2,FALSE)","v":"Torbay Council"},"South-West England"]
[null,null,null,null,null,null,null,null,null,null,null,null,null,null,130568,"Tottenham UTC","2014-09-01","Haringey London Borough Council",{"$f":"VLOOKUP(R5025,'LA CPID Look up'!$A$3:$C$153,2,FALSE)","v":"Haringey London Borough Council"},"East of England and North-East London"]
[null,null,null,null,null,null,null,null,null,null,null,null,null,null,120409,"Totteridge Academy, The","2011-09-01","Barnet London Borough Council",{"$f":"VLOOKUP(R5026,'LA CPID Look up'!$A$3:$C$153,2,FALSE)","v":"Barnet London Borough Council"},"South-Central England and North-West London"]
[null,null,null,null,null,null,null,null,null,null,null,null,null,null,132303,"Tower Hill Community Primary School","2015-11-01","Oxfordshire County Council",{"$f":"VLOOKUP(R5028,'LA CPID Look up'!$A$3:$C$153,2,FALSE)","v":"Oxfordshire County Council"},"East of England and North-East London"]
[null,null,null,null,null,null,null,null,null,null,null,null,null,null,119766,"Tower Road Academy - Boston","2011-06-01","Lincolnshire County Council",{"$f":"VLOOKUP(R5029,'LA CPID Look up'!$A$3:$C$153,2,FALSE)","v":"Lincolnshire County Council"},"East Midlands and the Humber"]
[null,null,null,null,null,null,null,null,null,null,null,null,null,null,131164,"Town Junior School","2014-11-01","Birmingham City council",{"$f":"VLOOKUP(R5032,'LA CPID Look up'!$A$3:$C$153,2,FALSE)","v":"Birmingham City Council"},"West Midlands"]
[null,null,null,null,null,null,null,null,null,null,null,null,null,null,130638,"Townfield Primary School","2014-10-01","Wirral Metropolitan Borough Council",{"$f":"VLOOKUP(R5033,'LA CPID Look up'!$A$3:$C$153,2,FALSE)","v":"Wirral Metropolitan Borough Council"},"Lancashire and West Yorkshire"]
[null,null,null,null,null,null,null,null,null,null,null,null,null,null,131213,"Townlands Church of England Primary School","2015-01-01","Leicestershire County Council",{"$f":"VLOOKUP(R5035,'LA CPID Look up'!$A$3:$C$153,2,FALSE)","v":"Leicestershire County Council"},"East Midlands and the Humber"]
[null,null,null,null,null,null,null,null,null,null,null,null,null,null,120740,"Townley Grammar School","2012-01-01","Bexley London Borough Council",{"$f":"VLOOKUP(R5036,'LA CPID Look up'!$A$3:$C$153,2,FALSE)","v":"Bexley London Borough Council"},"South-East England and South London"]
[null,null,null,null,null,null,null,null,null,null,null,null,null,null,127609,"Tredworth Infant School","2014-04-01","Gloucestershire County Council",{"$f":"VLOOKUP(R5038,'LA CPID Look up'!$A$3:$C$153,2,FALSE)","v":"Gloucestershire County Council"},"South-West England"]
[null,null,null,null,null,null,null,null,null,null,null,null,null,null,120925,"Tree Tops Primary Academy","2012-04-01","Kent County Council",{"$f":"VLOOKUP(R5039,'LA CPID Look up'!$A$3:$C$153,2,FALSE)","v":"Kent County Council"},"South-East England and South London"]
[null,null,null,null,null,null,null,null,null,null,null,null,null,null,120998,"Tregonwell Academy","2012-04-01","Bournemouth Borough Council",{"$f":"VLOOKUP(R5041,'LA CPID Look up'!$A$3:$C$153,2,FALSE)","v":"Bournemouth Council"},"South-West England"]
[null,null,null,null,null,null,null,null,null,null,null,null,null,null,133584,"Tregony Community Primary School","2016-03-01","Cornwall Council",{"$f":"VLOOKUP(R5042,'LA CPID Look up'!$A$3:$C$153,2,FALSE)","v":"Cornwall Unitary Authority"},"South-West England"]
[null,null,null,null,null,null,null,null,null,null,null,null,null,null,119366,"Trenance Learning Academy","2010-11-01","Cornwall Council",{"$f":"VLOOKUP(R5044,'LA CPID Look up'!$A$3:$C$153,2,FALSE)","v":"Cornwall Unitary Authority"},"South-West England"]
[null,null,null,null,null,null,null,null,null,null,null,null,null,null,120076,"Treverbyn Academy","2011-09-01","Cornwall Council",{"$f":"VLOOKUP(R5045,'LA CPID Look up'!$A$3:$C$153,2,FALSE)","v":"Cornwall Unitary Authority"},"South-West England"]
[null,null,null,null,null,null,null,null,null,null,null,null,null,null,119881,"Trewirgie Infant School","2011-07-01","Cornwall Council",{"$f":"VLOOKUP(R5047,'LA CPID Look up'!$A$3:$C$153,2,FALSE)","v":"Cornwall Unitary Authority"},"South-West England"]
[null,null,null,null,null,null,null,null,null,null,null,null,null,null,119848,"Trewirgie Junior School","2011-07-01","Cornwall Council",{"$f":"VLOOKUP(R5048,'LA CPID Look up'!$A$3:$C$153,2,FALSE)","v":"Cornwall Unitary Authority"},"South-West England"]
[null,null,null,null,null,null,null,null,null,null,null,null,null,null,118407,"Trinity Academy - Doncaster","2005-09-01","Doncaster Metropolitan Borough Council",{"$f":"VLOOKUP(R5050,'LA CPID Look up'!$A$3:$C$153,2,FALSE)","v":"Doncaster Metropolitan Borough Council"},"East Midlands and the Humber"]
[null,null,null,null,null,null,null,null,null,null,null,null,null,null,130554,"Trinity Academy - Lambeth","2014-09-01","Lambeth London Borough Council",{"$f":"VLOOKUP(R5051,'LA CPID Look up'!$A$3:$C$153,2,FALSE)","v":"Lambeth London Borough Council"},"South-East England and South London"]
[null,null,null,null,null,null,null,null,null,null,null,null,null,null,119154,"Trinity Academy, Halifax","2010-09-01","Calderdale Metropolitan Borough Council",{"$f":"VLOOKUP(R5053,'LA CPID Look up'!$A$3:$C$153,2,FALSE)","v":"Calderdale Metropolitan Borough Council"},"Lancashire and West Yorkshire"]
[null,null,null,null,null,null,null,null,null,null,null,null,null,null,133172,"Trinity Anglican-Methodist Primary School","2016-03-01","North Somerset District Council",{"$f":"VLOOKUP(R5054,'LA CPID Look up'!$A$3:$C$153,2,FALSE)","v":"North Somerset Council"},"South-West England"]
[null,null,null,null,null,null,null,null,null,null,null,null,null,null,122324,"Trinity Catholic School A Voluntary Academy, The - Aspley","2012-07-01","Nottingham City Council",{"$f":"VLOOKUP(R5056,'LA CPID Look up'!$A$3:$C$153,2,FALSE)","v":"Nottingham City Council"},"East Midlands and the Humber"]
[null,null,null,null,null,null,null,null,null,null,null,null,null,null,119525,"Trinity Church of England School, Belvedere","2011-04-01","Bexley London Borough Council",{"$f":"VLOOKUP(R5057,'LA CPID Look up'!$A$3:$C$153,2,FALSE)","v":"Bexley London Borough Council"},"South-East England and South London"]
[null,null,null,null,null,null,null,null,null,null,null,null,null,null,120665,"Trinity CofE High School - Hulme","2012-01-01","Manchester City Council",{"$f":"VLOOKUP(R5059,'LA CPID Look up'!$A$3:$C$153,2,FALSE)","v":"Manchester City Council"},"Lancashire and West Yorkshire"]
[null,null,null,null,null,null,null,null,null,null,null,null,null,null,131134,"Trinity Croft CofE Junior and Infant School","2015-02-01","Rotherham Metropolitan Borough Council",{"$f":"VLOOKUP(R5060,'LA CPID Look up'!$A$3:$C$153,2,FALSE)","v":"Rotherham Borough Council"},"East Midlands and the Humber"]
[null,null,null,null,null,null,null,null,null,null,null,null,null,null,120063,"Trinity School - Cumbria","2011-09-01","Cumbria County Council",{"$f":"VLOOKUP(R5063,'LA CPID Look up'!$A$3:$C$153,2,FALSE)","v":"Cumbria County Council"},"North of England"]
[null,null,null,null,null,null,null,null,null,null,null,null,null,null,122391,"Trinity School - Newbury","2012-08-01","West Berkshire Council",{"$f":"VLOOKUP(R5064,'LA CPID Look up'!$A$3:$C$153,2,FALSE)","v":"West Berkshire Council"},"East of England and North-East London"]
[null,null,null,null,null,null,null,null,null,null,null,null,null,null,133856,"Trinity Solutions Academy","2016-01-01","Newcastle upon Tyne City Council",{"$f":"VLOOKUP(R5066,'LA CPID Look up'!$A$3:$C$153,2,FALSE)","v":"Newcastle upon Tyne City Council"},"North of England"]
[null,null,null,null,null,null,null,null,null,null,null,null,null,null,129422,"Troon Community Primary School","2014-04-01","Cornwall Council",{"$f":"VLOOKUP(R5067,'LA CPID Look up'!$A$3:$C$153,2,FALSE)","v":"Cornwall Unitary Authority"},"South-West England"]
[null,null,null,null,null,null,null,null,null,null,null,null,null,null,120862,"Tubbenden Primary School","2012-03-01","Bromley London Borough Council",{"$f":"VLOOKUP(R5069,'LA CPID Look up'!$A$3:$C$153,2,FALSE)","v":"Bromley London Borough Council"},"South-East England and South London"]
[null,null,null,null,null,null,null,null,null,null,null,null,null,null,130915,"Tuckswood Primary School and Nursery","2015-03-01","Norfolk County Council",{"$f":"VLOOKUP(R5070,'LA CPID Look up'!$A$3:$C$153,2,FALSE)","v":"Norfolk County Council"},"East of England and North-East London"]
[null,null,null,null,null,null,null,null,null,null,null,null,null,null,132961,"Tudor Church of England Voluntary Controlled Primary School, Sudbury","2015-08-01","Suffolk County Council",{"$f":"VLOOKUP(R5072,'LA CPID Look up'!$A$3:$C$153,2,FALSE)","v":"Suffolk County Council"},"East of England and North-East London"]
[null,null,null,null,null,null,null,null,null,null,null,null,null,null,130884,"Tudor Court Primary School","2014-07-01","Thurrock Borough Council",{"$f":"VLOOKUP(R5073,'LA CPID Look up'!$A$3:$C$153,2,FALSE)","v":"Thurrock Unitary Authority"},"East of England and North-East London"]
[null,null,null,null,null,null,null,null,null,null,null,null,null,null,129885,"Tudor Grange Academy Redditch","2014-04-01","Worcestershire County Council",{"$f":"VLOOKUP(R5075,'LA CPID Look up'!$A$3:$C$153,2,FALSE)","v":"Worcestershire County Council"},"West Midlands"]
[null,null,null,null,null,null,null,null,null,null,null,null,null,null,119128,"Tudor Grange Academy Worcester","2009-09-01","Worcestershire County Council",{"$f":"VLOOKUP(R5076,'LA CPID Look up'!$A$3:$C$153,2,FALSE)","v":"Worcestershire County Council"},"West Midlands"]
[null,null,null,null,null,null,null,null,null,null,null,null,null,null,123047,"Tudor Grange Primary Academy, St James","2013-01-01","Solihull Metropolitan Borough Council",{"$f":"VLOOKUP(R5078,'LA CPID Look up'!$A$3:$C$153,2,FALSE)","v":"Solihull Metropolitan Borough Council"},"West Midlands"]
[null,null,null,null,null,null,null,null,null,null,null,null,null,null,119113,"Tudor Grange Samworth Academy, A Church of England School, The","2007-09-01","Leicester City Council",{"$f":"VLOOKUP(R5079,'LA CPID Look up'!$A$3:$C$153,2,FALSE)","v":"Leicester City Council"},"East Midlands and the Humber"]
[null,null,null,null,null,null,null,null,null,null,null,null,null,null,132665,"Turing House School","2015-09-01","Richmond upon Thames Borough Council",{"$f":"VLOOKUP(R5081,'LA CPID Look up'!$A$3:$C$153,2,FALSE)","v":"Richmond upon Thames Borough Council"},"South-East England and South London"]
[null,null,null,null,null,null,null,null,null,null,null,null,null,null,131696,"Turnditch Church of England Primary School","2015-03-01","Derbyshire County Council",{"$f":"VLOOKUP(R5082,'LA CPID Look up'!$A$3:$C$153,2,FALSE)","v":"Derbyshire County Council"},"East Midlands and the Humber"]
[null,null,null,null,null,null,null,null,null,null,null,null,null,null,123280,"Tuxford Primary Academy","2013-02-01","Nottinghamshire County Council",{"$f":"VLOOKUP(R5084,'LA CPID Look up'!$A$3:$C$153,2,FALSE)","v":"Nottinghamshire County Council"},"East Midlands and the Humber"]
[null,null,null,null,null,null,null,null,null,null,null,null,null,null,124592,"Tweendykes School","2013-05-01","Hull City Council",{"$f":"VLOOKUP(R5085,'LA CPID Look up'!$A$3:$C$153,2,FALSE)","v":"Kingston upon Hull City Council"},"East Midlands and the Humber"]
[null,null,null,null,null,null,null,null,null,null,null,null,null,null,132666,"Twickenham Primary Academy - Twickenham","2015-09-01","Richmond upon Thames Borough Council",{"$f":"VLOOKUP(R5087,'LA CPID Look up'!$A$3:$C$153,2,FALSE)","v":"Richmond upon Thames Borough Council"},"South-East England and South London"]
[null,null,null,null,null,null,null,null,null,null,null,null,null,null,124779,"Twickenham Primary School - Birmingham","2014-01-01","Birmingham City Council",{"$f":"VLOOKUP(R5088,'LA CPID Look up'!$A$3:$C$153,2,FALSE)","v":"Birmingham City Council"},"West Midlands"]
[null,null,null,null,null,null,null,null,null,null,null,null,null,null,120602,"Twyford Church of England High School","2011-10-01","Ealing London Borough Council",{"$f":"VLOOKUP(R5091,'LA CPID Look up'!$A$3:$C$153,2,FALSE)","v":"Ealing London Borough Council"},"South-Central England and North-West London"]
[null,null,null,null,null,null,null,null,null,null,null,null,null,null,119647,"Twynham School","2011-04-01","Dorset County Council",{"$f":"VLOOKUP(R5092,'LA CPID Look up'!$A$3:$C$153,2,FALSE)","v":"Dorset County Council"},"South-West England"]
[null,null,null,null,null,null,null,null,null,null,null,null,null,null,124227,"Tymberwood Academy","2014-02-01","Kent County Council",{"$f":"VLOOKUP(R5094,'LA CPID Look up'!$A$3:$C$153,2,FALSE)","v":"Kent County Council"},"South-East England and South London"]
[null,null,null,null,null,null,null,null,null,null,null,null,null,null,123368,"Tyndale Community School","2013-09-01","Oxfordshire County Council",{"$f":"VLOOKUP(R5095,'LA CPID Look up'!$A$3:$C$153,2,FALSE)","v":"Oxfordshire County Council"},"East of England and North-East London"]
[null,null,null,null,null,null,null,null,null,null,null,null,null,null,129416,"Tytherington School","2014-04-01","Cheshire East Council",{"$f":"VLOOKUP(R5097,'LA CPID Look up'!$A$3:$C$153,2,FALSE)","v":"Cheshire East Unitary Authority"},"West Midlands"]
[null,null,null,null,null,null,null,null,null,null,null,null,null,null,131542,"Tywardreath School","2015-01-01","Cornwall Council",{"$f":"VLOOKUP(R5098,'LA CPID Look up'!$A$3:$C$153,2,FALSE)","v":"Cornwall Unitary Authority"},"South-West England"]
[null,null,null,null,null,null,null,null,null,null,null,null,null,null,124072,"Uffculme Primary School","2013-07-01","Devon County Council",{"$f":"VLOOKUP(R5100,'LA CPID Look up'!$A$3:$C$153,2,FALSE)","v":"Devon County Council"},"South-West England"]
[null,null,null,null,null,null,null,null,null,null,null,null,null,null,119263,"Uffculme School","2010-09-01","Devon County Council",{"$f":"VLOOKUP(R5101,'LA CPID Look up'!$A$3:$C$153,2,FALSE)","v":"Devon County Council"},"South-West England"]
[null,null,null,null,null,null,null,null,null,null,null,null,null,null,131849,"Umberleigh Primary Academy","2015-04-01","Devon County Council",{"$f":"VLOOKUP(R5103,'LA CPID Look up'!$A$3:$C$153,2,FALSE)","v":"Devon County Council"},"South-West England"]
[null,null,null,null,null,null,null,null,null,null,null,null,null,null,131803,"Unicorn Primary School","2015-09-01","Bromley London Borough Council",{"$f":"VLOOKUP(R5104,'LA CPID Look up'!$A$3:$C$153,2,FALSE)","v":"Bromley London Borough Council"},"South-East England and South London"]
[null,null,null,null,null,null,null,null,null,null,null,null,null,null,123069,"Unity Academy Blackpool","2013-09-01","Blackpool Council",{"$f":"VLOOKUP(R5106,'LA CPID Look up'!$A$3:$C$153,2,FALSE)","v":"Blackpool Unitary Authority"},"Lancashire and West Yorkshire"]
[null,null,null,null,null,null,null,null,null,null,null,null,null,null,117095,"Unity City Academy","2002-09-01","Middlesbrough Council",{"$f":"VLOOKUP(R5107,'LA CPID Look up'!$A$3:$C$153,2,FALSE)","v":"Middlesbrough Council"},"North of England"]
[null,null,null,null,null,null,null,null,null,null,null,null,null,null,132667,"Unity Community Primary","2015-09-01","Manchester City Council",{"$f":"VLOOKUP(R5108,'LA CPID Look up'!$A$3:$C$153,2,FALSE)","v":"Manchester City Council"},"Lancashire and West Yorkshire"]
[null,null,null,null,null,null,null,null,null,null,null,null,null,null,120282,"University Academy Holbeach","2011-09-01","Lincolnshire County Council",{"$f":"VLOOKUP(R5109,'LA CPID Look up'!$A$3:$C$153,2,FALSE)","v":"Lincolnshire County Council"},"East Midlands and the Humber"]
[null,null,null,null,null,null,null,null,null,null,null,null,null,null,119307,"University Academy Keighley","2010-09-01","Bradford Metropolitan District Council",{"$f":"VLOOKUP(R5110,'LA CPID Look up'!$A$3:$C$153,2,FALSE)","v":"Bradford City Council"},"Lancashire and West Yorkshire"]
[null,null,null,null,null,null,null,null,null,null,null,null,null,null,124084,"University Academy Kidsgrove","2013-06-01","Staffordshire County Council",{"$f":"VLOOKUP(R5111,'LA CPID Look up'!$A$3:$C$153,2,FALSE)","v":"Staffordshire County Council"},"West Midlands"]
[null,null,null,null,null,null,null,null,null,null,null,null,null,null,124129,"University Academy of Engineering South Bank","2014-09-01","Southwark London Borough Council",{"$f":"VLOOKUP(R5112,'LA CPID Look up'!$A$3:$C$153,2,FALSE)","v":"Southwark London Borough Council"},"South-East England and South London"]
[null,null,null,null,null,null,null,null,null,null,null,null,null,null,120725,"University Academy Warrington","2013-01-01","Warrington Borough Council",{"$f":"VLOOKUP(R5113,'LA CPID Look up'!$A$3:$C$153,2,FALSE)","v":"Warrington Borough Council"},"Lancashire and West Yorkshire"]
[null,null,null,null,null,null,null,null,null,null,null,null,null,null,123369,"University Cathedral Free School","2013-09-01","Cheshire West and Chester Council",{"$f":"VLOOKUP(R5114,'LA CPID Look up'!$A$3:$C$153,2,FALSE)","v":"Cheshire West and Chester Unitary Authority"},"West Midlands"]
[null,null,null,null,null,null,null,null,null,null,null,null,null,null,132663,"University of Birmingham School, The","2015-09-01","Birmingham City Council",{"$f":"VLOOKUP(R5115,'LA CPID Look up'!$A$3:$C$153,2,FALSE)","v":"Birmingham City Council"},"West Midlands"]
[null,null,null,null,null,null,null,null,null,null,null,null,null,null,132664,"University of Cambridge Primary School, The","2015-09-01","Cambridgeshire County Council",{"$f":"VLOOKUP(R5116,'LA CPID Look up'!$A$3:$C$153,2,FALSE)","v":"Cambridgeshire County Council"},"East of England and North-East London"]
[null,null,null,null,null,null,null,null,null,null,null,null,null,null,120987,"University of Chester Academy Northwich","2012-01-01","Cheshire West and Chester Council",{"$f":"VLOOKUP(R5117,'LA CPID Look up'!$A$3:$C$153,2,FALSE)","v":"Cheshire West and Chester Unitary Authority"},"West Midlands"]
[null,null,null,null,null,null,null,null,null,null,null,null,null,null,119102,"University of Chester CE Academy","2009-09-01","Cheshire West and Chester Council",{"$f":"VLOOKUP(R5118,'LA CPID Look up'!$A$3:$C$153,2,FALSE)","v":"Cheshire West and Chester Unitary Authority"},"West Midlands"]
[null,null,null,null,null,null,null,null,null,null,null,null,null,null,125183,"University Primary Academy Kidsgrove","2013-09-01","Staffordshire County Council",{"$f":"VLOOKUP(R5119,'LA CPID Look up'!$A$3:$C$153,2,FALSE)","v":"Staffordshire County Council"},"West Midlands"]
[null,null,null,null,null,null,null,null,null,null,null,null,null,null,124588,"University Primary Academy Weaverham","2014-01-01","Cheshire West and Chester Council",{"$f":"VLOOKUP(R5120,'LA CPID Look up'!$A$3:$C$153,2,FALSE)","v":"Cheshire West and Chester Unitary Authority"},"West Midlands"]
[null,null,null,null,null,null,null,null,null,null,null,null,null,null,123375,"University Technical College Norfolk","2014-09-01","Norfolk County Council",{"$f":"VLOOKUP(R5121,'LA CPID Look up'!$A$3:$C$153,2,FALSE)","v":"Norfolk County Council"},"East of England and North-East London"]
[null,null,null,null,null,null,null,null,null,null,null,null,null,null,122151,"University Technical College, Royal Borough of Greenwich","2013-09-01","Greenwich London Borough Council",{"$f":"VLOOKUP(R5122,'LA CPID Look up'!$A$3:$C$153,2,FALSE)","v":"Greenwich London Borough Council"},"South-East England and South London"]
[null,null,null,null,null,null,null,null,null,null,null,null,null,null,122777,"Upminster Infant School","2012-11-01","Havering London Borough Council",{"$f":"VLOOKUP(R5123,'LA CPID Look up'!$A$3:$C$153,2,FALSE)","v":"Havering London Borough Council"},"East of England and North-East London"]
[null,null,null,null,null,null,null,null,null,null,null,null,null,null,122840,"Upminster Junior School","2012-11-01","Havering London Borough Council",{"$f":"VLOOKUP(R5124,'LA CPID Look up'!$A$3:$C$153,2,FALSE)","v":"Havering London Borough Council"},"East of England and North-East London"]
[null,null,null,null,null,null,null,null,null,null,null,null,null,null,120037,"Upper Shirley High School","2011-08-01","Southampton City Council",{"$f":"VLOOKUP(R5125,'LA CPID Look up'!$A$3:$C$153,2,FALSE)","v":"Southampton City Council"},"South-East England and South London"]
[null,null,null,null,null,null,null,null,null,null,null,null,null,null,120601,"Upperwood Academy","2012-09-01","Barnsley Metropolitan Borough Council",{"$f":"VLOOKUP(R5126,'LA CPID Look up'!$A$3:$C$153,2,FALSE)","v":"Barnsley Metropolitan Borough Council"},"East Midlands and the Humber"]
[null,null,null,null,null,null,null,null,null,null,null,null,null,null,119631,"Uppingham Community College","2011-04-01","Rutland County Council",{"$f":"VLOOKUP(R5127,'LA CPID Look up'!$A$3:$C$153,2,FALSE)","v":"Rutland County Council"},"East Midlands and the Humber"]
[null,null,null,null,null,null,null,null,null,null,null,null,null,null,119440,"Upton Court Grammar School","2011-01-01","Slough Borough Council",{"$f":"VLOOKUP(R5128,'LA CPID Look up'!$A$3:$C$153,2,FALSE)","v":"Slough Borough Council"},"East of England and North-East London"]
[null,null,null,null,null,null,null,null,null,null,null,null,null,null,132273,"Upton Cross Primary School","2015-09-01","Newham London Borough Council",{"$f":"VLOOKUP(R5129,'LA CPID Look up'!$A$3:$C$153,2,FALSE)","v":"Newham London Borough Council"},"East of England and North-East London"]
[null,null,null,null,null,null,null,null,null,null,null,null,null,null,121081,"Upton Hall School FCJ","2012-03-01","Wirral Metropolitan Borough Council",{"$f":"VLOOKUP(R5130,'LA CPID Look up'!$A$3:$C$153,2,FALSE)","v":"Wirral Metropolitan Borough Council"},"Lancashire and West Yorkshire"]
[null,null,null,null,null,null,null,null,null,null,null,null,null,null,132016,"Upton Priory School","2015-12-01","Cheshire East Council",{"$f":"VLOOKUP(R5131,'LA CPID Look up'!$A$3:$C$153,2,FALSE)","v":"Cheshire East Unitary Authority"},"West Midlands"]
[null,null,null,null,null,null,null,null,null,null,null,null,null,null,119268,"Urmston Grammar Academy","2010-09-01","Trafford Borough Council",{"$f":"VLOOKUP(R5132,'LA CPID Look up'!$A$3:$C$153,2,FALSE)","v":"Trafford Metropolitan Borough Council"},"Lancashire and West Yorkshire"]
[null,null,null,null,null,null,null,null,null,null,null,null,null,null,124304,"Ursula Taylor Church of England School","2013-08-01","Bedford Borough Council",{"$f":"VLOOKUP(R5133,'LA CPID Look up'!$A$3:$C$153,2,FALSE)","v":"Bedford Unitary Authority"},"South-Central England and North-West London"]
[null,null,null,null,null,null,null,null,null,null,null,null,null,null,120348,"Ursuline Academy Ilford, The","2011-09-01","Redbridge London Borough Council",{"$f":"VLOOKUP(R5134,'LA CPID Look up'!$A$3:$C$153,2,FALSE)","v":"Redbridge London Borough Council"},"East of England and North-East London"]
[null,null,null,null,null,null,null,null,null,null,null,null,null,null,124133,"Ursuline College - Westgate-on-Sea","2015-01-01","Kent County Council",{"$f":"VLOOKUP(R5135,'LA CPID Look up'!$A$3:$C$153,2,FALSE)","v":"Kent County Council"},"South-East England and South London"]
[null,null,null,null,null,null,null,null,null,null,null,null,null,null,132689,"UTC Bolton","2015-09-01","Bolton Metropolitan Borough Council",{"$f":"VLOOKUP(R5136,'LA CPID Look up'!$A$3:$C$153,2,FALSE)","v":"Bolton Metropolitan Borough Council"},"Lancashire and West Yorkshire"]
[null,null,null,null,null,null,null,null,null,null,null,null,null,null,130562,"UTC Cambridge","2014-09-01","Cambridgeshire County Council",{"$f":"VLOOKUP(R5137,'LA CPID Look up'!$A$3:$C$153,2,FALSE)","v":"Cambridgeshire County Council"},"East of England and North-East London"]
[null,null,null,null,null,null,null,null,null,null,null,null,null,null,122155,"UTC Lancashire","2013-09-01","Lancashire County Council",{"$f":"VLOOKUP(R5138,'LA CPID Look up'!$A$3:$C$153,2,FALSE)","v":"Lancashire County Council"},"Lancashire and West Yorkshire"]
[null,null,null,null,null,null,null,null,null,null,null,null,null,null,132690,"UTC Oxfordshire","2015-09-01","Oxfordshire County Council",{"$f":"VLOOKUP(R5139,'LA CPID Look up'!$A$3:$C$153,2,FALSE)","v":"Oxfordshire County Council"},"East of England and North-East London"]
[null,null,null,null,null,null,null,null,null,null,null,null,null,null,122056,"UTC Plymouth","2013-09-01","Plymouth City Council",{"$f":"VLOOKUP(R5140,'LA CPID Look up'!$A$3:$C$153,2,FALSE)","v":"Plymouth City Council"},"South-West England"]
[null,null,null,null,null,null,null,null,null,null,null,null,null,null,122057,"UTC Reading","2013-09-01","Reading Borough Council",{"$f":"VLOOKUP(R5141,'LA CPID Look up'!$A$3:$C$153,2,FALSE)","v":"Reading Borough Council"},"East of England and North-East London"]
[null,null,null,null,null,null,null,null,null,null,null,null,null,null,122058,"UTC Sheffield","2013-09-01","Sheffield City Council",{"$f":"VLOOKUP(R5142,'LA CPID Look up'!$A$3:$C$153,2,FALSE)","v":"Sheffield City Council"},"East Midlands and the Humber"]
[null,null,null,null,null,null,null,null,null,null,null,null,null,null,130569,"UTC Swindon","2014-09-01","Swindon Borough Council",{"$f":"VLOOKUP(R5143,'LA CPID Look up'!$A$3:$C$153,2,FALSE)","v":"Swindon Unitary Authority"},"South-West England"]
[null,null,null,null,null,null,null,null,null,null,null,null,null,null,132691,"UTC@Harbourside","2015-09-01","East Sussex County Council",{"$f":"VLOOKUP(R5144,'LA CPID Look up'!$A$3:$C$153,2,FALSE)","v":"East Sussex County Council"},"South-East England and South London"]
[null,null,null,null,null,null,null,null,null,null,null,null,null,null,132692,"UTC@MediaCityUK","2015-09-01","Salford City Council",{"$f":"VLOOKUP(R5145,'LA CPID Look up'!$A$3:$C$153,2,FALSE)","v":"Salford City Council"},"Lancashire and West Yorkshire"]
[null,null,null,null,null,null,null,null,null,null,null,null,null,null,123822,"Utterby Primary School, The","2013-07-01","Lincolnshire County Council",{"$f":"VLOOKUP(R5146,'LA CPID Look up'!$A$3:$C$153,2,FALSE)","v":"Lincolnshire County Council"},"East Midlands and the Humber"]
[null,null,null,null,null,null,null,null,null,null,null,null,null,null,119789,"Uxbridge High School","2011-06-01","Hillingdon London Borough Council",{"$f":"VLOOKUP(R5147,'LA CPID Look up'!$A$3:$C$153,2,FALSE)","v":"Hillingdon London Borough Council"},"East of England and North-East London"]
[null,null,null,null,null,null,null,null,null,null,null,null,null,null,120463,"Vale Academy, The","2011-09-01","North Lincolnshire Council",{"$f":"VLOOKUP(R5148,'LA CPID Look up'!$A$3:$C$153,2,FALSE)","v":"North Lincolnshire Council"},"East Midlands and the Humber"]
[null,null,null,null,null,null,null,null,null,null,null,null,null,null,122971,"Vale of Evesham School","2013-05-14","Worcestershire County Council",{"$f":"VLOOKUP(R5149,'LA CPID Look up'!$A$3:$C$153,2,FALSE)","v":"Worcestershire County Council"},"West Midlands"]
[null,null,null,null,null,null,null,null,null,null,null,null,null,null,122061,"Vale Primary Academy, The","2012-07-01","Wakefield Council",{"$f":"VLOOKUP(R5150,'LA CPID Look up'!$A$3:$C$153,2,FALSE)","v":"Wakefield City Council"},"Lancashire and West Yorkshire"]
[null,null,null,null,null,null,null,null,null,null,null,null,null,null,129872,"Valley Invicta Primary School At Holborough Lakes","2015-09-01","Kent County Council",{"$f":"VLOOKUP(R5151,'LA CPID Look up'!$A$3:$C$153,2,FALSE)","v":"Kent County Council"},"South-East England and South London"]
[null,null,null,null,null,null,null,null,null,null,null,null,null,null,129873,"Valley Invicta Primary School At Kings Hill","2015-09-01","Kent County Council",{"$f":"VLOOKUP(R5152,'LA CPID Look up'!$A$3:$C$153,2,FALSE)","v":"Kent County Council"},"South-East England and South London"]
[null,null,null,null,null,null,null,null,null,null,null,null,null,null,129871,"Valley Invicta Primary School At Leybourne Chase","2015-09-01","Kent County Council",{"$f":"VLOOKUP(R5153,'LA CPID Look up'!$A$3:$C$153,2,FALSE)","v":"Kent County Council"},"South-East England and South London"]
[null,null,null,null,null,null,null,null,null,null,null,null,null,null,131203,"Valley Park Community School - Sheffield","2015-04-01","Sheffield City Council",{"$f":"VLOOKUP(R5154,'LA CPID Look up'!$A$3:$C$153,2,FALSE)","v":"Sheffield City Council"},"East Midlands and the Humber"]
[null,null,null,null,null,null,null,null,null,null,null,null,null,null,119653,"Valley Park School - Maidestone","2011-04-01","Kent County Council",{"$f":"VLOOKUP(R5155,'LA CPID Look up'!$A$3:$C$153,2,FALSE)","v":"Kent County Council"},"South-East England and South London"]
[null,null,null,null,null,null,null,null,null,null,null,null,null,null,120242,"Valley Primary School - Bromley","2011-08-01","Bromley London Borough Council",{"$f":"VLOOKUP(R5156,'LA CPID Look up'!$A$3:$C$153,2,FALSE)","v":"Bromley London Borough Council"},"South-East England and South London"]
[null,null,null,null,null,null,null,null,null,null,null,null,null,null,131364,"Valley Primary School, The - Oakamoor","2015-09-01","Staffordshire County Council",{"$f":"VLOOKUP(R5157,'LA CPID Look up'!$A$3:$C$153,2,FALSE)","v":"Staffordshire County Council"},"West Midlands"]
[null,null,null,null,null,null,null,null,null,null,null,null,null,null,120169,"Vandyke Upper School and Community College","2011-08-01","Central Bedfordshire Council",{"$f":"VLOOKUP(R5158,'LA CPID Look up'!$A$3:$C$153,2,FALSE)","v":"Central Bedfordshire Unitary Authority"},"South-Central England and North-West London"]
[null,null,null,null,null,null,null,null,null,null,null,null,null,null,121134,"Vaynor First School, The","2012-04-01","Worcestershire County Council",{"$f":"VLOOKUP(R5159,'LA CPID Look up'!$A$3:$C$153,2,FALSE)","v":"Worcestershire County Council"},"West Midlands"]
[null,null,null,null,null,null,null,null,null,null,null,null,null,null,123243,"Venerable Bede Church of England [Aided] Secondary School","2013-01-01","Sunderland City Council",{"$f":"VLOOKUP(R5160,'LA CPID Look up'!$A$3:$C$153,2,FALSE)","v":"Sunderland City Metropolitan Borough Council"},"North of England"]
[null,null,null,null,null,null,null,null,null,null,null,null,null,null,131995,"Veritas Primary Academy","2015-09-01","Staffordshire County Council",{"$f":"VLOOKUP(R5161,'LA CPID Look up'!$A$3:$C$153,2,FALSE)","v":"Staffordshire County Council"},"West Midlands"]
[null,null,null,null,null,null,null,null,null,null,null,null,null,null,120038,"Verulam School","2011-08-01","Hertfordshire County Council",{"$f":"VLOOKUP(R5162,'LA CPID Look up'!$A$3:$C$153,2,FALSE)","v":"Hertfordshire County Council"},"East of England and North-East London"]
[null,null,null,null,null,null,null,null,null,null,null,null,null,null,128057,"Veryan CofE School","2013-12-01","Cornwall Council",{"$f":"VLOOKUP(R5163,'LA CPID Look up'!$A$3:$C$153,2,FALSE)","v":"Cornwall Unitary Authority"},"South-West England"]
[null,null,null,null,null,null,null,null,null,null,null,null,null,null,132025,"Victoria Academy","2015-09-01","Cumbria County Council",{"$f":"VLOOKUP(R5164,'LA CPID Look up'!$A$3:$C$153,2,FALSE)","v":"Cumbria County Council"},"North of England"]
[null,null,null,null,null,null,null,null,null,null,null,null,null,null,122842,"Victoria Lane Academy","2012-12-01","Durham County Council",{"$f":"VLOOKUP(R5165,'LA CPID Look up'!$A$3:$C$153,2,FALSE)","v":"County Durham Unitary Authority"},"North of England"]
[null,null,null,null,null,null,null,null,null,null,null,null,null,null,121122,"Victoria Park Primary","2012-04-01","Sandwell Metropolitan Borough Council",{"$f":"VLOOKUP(R5166,'LA CPID Look up'!$A$3:$C$153,2,FALSE)","v":"Sandwell Metropolitan Borough Council"},"West Midlands"]
[null,null,null,null,null,null,null,null,null,null,null,null,null,null,126452,"Victoria Primary Academy - Wellingborough","2014-01-01","Northamptonshire County Council",{"$f":"VLOOKUP(R5167,'LA CPID Look up'!$A$3:$C$153,2,FALSE)","v":"Northamptonshire County Council"},"East of England and North-East London"]
[null,null,null,null,null,null,null,null,null,null,null,null,null,null,133112,"Victoria Primary School - Leeds","2015-11-01","Leeds City Council",{"$f":"VLOOKUP(R5168,'LA CPID Look up'!$A$3:$C$153,2,FALSE)","v":"Leeds City Council"},"Lancashire and West Yorkshire"]
[null,null,null,null,null,null,null,null,null,null,null,null,null,null,119166,"Victory Academy, The","2010-09-01","Medway Council",{"$f":"VLOOKUP(R5169,'LA CPID Look up'!$A$3:$C$153,2,FALSE)","v":"Medway Towns Unitary Authority (The)"},"South-East England and South London"]
[null,null,null,null,null,null,null,null,null,null,null,null,null,null,123016,"Victory Primary School, The","2013-09-01","Portsmouth City Council",{"$f":"VLOOKUP(R5170,'LA CPID Look up'!$A$3:$C$153,2,FALSE)","v":"Portsmouth City Council"},"South-East England and South London"]
[null,null,null,null,null,null,null,null,null,null,null,null,null,null,125006,"Viewley Hill Academy","2014-01-01","Middlesbrough Council",{"$f":"VLOOKUP(R5171,'LA CPID Look up'!$A$3:$C$153,2,FALSE)","v":"Middlesbrough Council"},"North of England"]
[null,null,null,null,null,null,null,null,null,null,null,null,null,null,119762,"Violet Way Academy, The","2011-06-01","Staffordshire County Council",{"$f":"VLOOKUP(R5172,'LA CPID Look up'!$A$3:$C$153,2,FALSE)","v":"Staffordshire County Council"},"West Midlands"]
[null,null,null,null,null,null,null,null,null,null,null,null,null,null,130581,"Vision Studio School","2014-09-01","Nottinghamshire County Council",{"$f":"VLOOKUP(R5173,'LA CPID Look up'!$A$3:$C$153,2,FALSE)","v":"Nottinghamshire County Council"},"East Midlands and the Humber"]
[null,null,null,null,null,null,null,null,null,null,null,null,null,null,120084,"Voyager Academy, The","2011-09-01","Peterborough City Council",{"$f":"VLOOKUP(R5174,'LA CPID Look up'!$A$3:$C$153,2,FALSE)","v":"Peterborough City Council"},"East of England and North-East London"]
[null,null,null,null,null,null,null,null,null,null,null,null,null,null,120542,"Vyners School","2011-11-01","Hillingdon London Borough Council",{"$f":"VLOOKUP(R5175,'LA CPID Look up'!$A$3:$C$153,2,FALSE)","v":"Hillingdon London Borough Council"},"East of England and North-East London"]
[null,null,null,null,null,null,null,null,null,null,null,null,null,null,130557,"Wac Arts College","2014-09-01","Camden London Borough Council",{"$f":"VLOOKUP(R5176,'LA CPID Look up'!$A$3:$C$153,2,FALSE)","v":"Camden London Borough Council"},"South-Central England and North-West London"]
[null,null,null,null,null,null,null,null,null,null,null,null,null,null,120384,"Waddesdon Church of England School","2011-09-01","Buckinghamshire County Council",{"$f":"VLOOKUP(R5177,'LA CPID Look up'!$A$3:$C$153,2,FALSE)","v":"Buckinghamshire County Council"},"South-Central England and North-West London"]
[null,null,null,null,null,null,null,null,null,null,null,null,null,null,122567,"Wade Deacon High School","2013-03-01","Halton Borough Council",{"$f":"VLOOKUP(R5178,'LA CPID Look up'!$A$3:$C$153,2,FALSE)","v":"Halton Borough Council"},"Lancashire and West Yorkshire"]
[null,null,null,null,null,null,null,null,null,null,null,null,null,null,120420,"Wadebridge Primary Academy","2011-09-01","Cornwall Council",{"$f":"VLOOKUP(R5179,'LA CPID Look up'!$A$3:$C$153,2,FALSE)","v":"Cornwall Unitary Authority"},"South-West England"]
[null,null,null,null,null,null,null,null,null,null,null,null,null,null,120705,"Wadebridge School","2012-04-01","Cornwall Council",{"$f":"VLOOKUP(R5180,'LA CPID Look up'!$A$3:$C$153,2,FALSE)","v":"Cornwall Unitary Authority"},"South-West England"]
[null,null,null,null,null,null,null,null,null,null,null,null,null,null,127491,"Wainfleet Magdalen Church of England/Methodist School, The","2014-04-01","Lincolnshire County Council",{"$f":"VLOOKUP(R5181,'LA CPID Look up'!$A$3:$C$153,2,FALSE)","v":"Lincolnshire County Council"},"East Midlands and the Humber"]
[null,null,null,null,null,null,null,null,null,null,null,null,null,null,132060,"Waingels College","2015-07-01","Wokingham Borough Council",{"$f":"VLOOKUP(R5182,'LA CPID Look up'!$A$3:$C$153,2,FALSE)","v":"Wokingham Council"},"East of England and North-East London"]
[null,null,null,null,null,null,null,null,null,null,null,null,null,null,124137,"Wainstalls School","2013-09-01","Calderdale Metropolitan Borough Council",{"$f":"VLOOKUP(R5183,'LA CPID Look up'!$A$3:$C$153,2,FALSE)","v":"Calderdale Metropolitan Borough Council"},"Lancashire and West Yorkshire"]
[null,null,null,null,null,null,null,null,null,null,null,null,null,null,122495,"Wainwright Primary Academy","2012-09-01","Nottinghamshire County Council",{"$f":"VLOOKUP(R5184,'LA CPID Look up'!$A$3:$C$153,2,FALSE)","v":"Nottinghamshire County Council"},"East Midlands and the Humber"]
[null,null,null,null,null,null,null,null,null,null,null,null,null,null,119397,"Wakefield City Academy","2011-01-01","Wakefield Council",{"$f":"VLOOKUP(R5185,'LA CPID Look up'!$A$3:$C$153,2,FALSE)","v":"Wakefield City Council"},"Lancashire and West Yorkshire"]
[null,null,null,null,null,null,null,null,null,null,null,null,null,null,121021,"Waldegrave School for Girls","2012-08-01","Richmond Upon Thames Borough Council",{"$f":"VLOOKUP(R5186,'LA CPID Look up'!$A$3:$C$153,2,FALSE)","v":"Richmond upon Thames Borough Council"},"South-East England and South London"]
[null,null,null,null,null,null,null,null,null,null,null,null,null,null,120667,"Walderslade Girls' School","2011-11-01","Medway Council",{"$f":"VLOOKUP(R5187,'LA CPID Look up'!$A$3:$C$153,2,FALSE)","v":"Medway Towns Unitary Authority (The)"},"South-East England and South London"]
[null,null,null,null,null,null,null,null,null,null,null,null,null,null,119300,"Wales High School","2010-10-01","Rotherham Metropolitan Borough Council",{"$f":"VLOOKUP(R5188,'LA CPID Look up'!$A$3:$C$153,2,FALSE)","v":"Rotherham Borough Council"},"East Midlands and the Humber"]
[null,null,null,null,null,null,null,null,null,null,null,null,null,null,122949,"Walkwood CofE Middle School","2013-01-01","Worcestershire County Council",{"$f":"VLOOKUP(R5189,'LA CPID Look up'!$A$3:$C$153,2,FALSE)","v":"Worcestershire County Council"},"West Midlands"]
[null,null,null,null,null,null,null,null,null,null,null,null,null,null,120385,"Wallingford School","2011-09-01","Oxfordshire County Council",{"$f":"VLOOKUP(R5190,'LA CPID Look up'!$A$3:$C$153,2,FALSE)","v":"Oxfordshire County Council"},"East of England and North-East London"]
[null,null,null,null,null,null,null,null,null,null,null,null,null,null,119777,"Wallington County Grammar School","2011-06-01","Sutton London Borough Council",{"$f":"VLOOKUP(R5191,'LA CPID Look up'!$A$3:$C$153,2,FALSE)","v":"Sutton London Borough Council"},"South-East England and South London"]
[null,null,null,null,null,null,null,null,null,null,null,null,null,null,119792,"Wallington High School for Girls","2011-06-01","Sutton London Borough Council",{"$f":"VLOOKUP(R5192,'LA CPID Look up'!$A$3:$C$153,2,FALSE)","v":"Sutton London Borough Council"},"South-East England and South London"]
[null,null,null,null,null,null,null,null,null,null,null,null,null,null,122432,"Wallscourt Farm Academy","2013-09-01","South Gloucestershire Council",{"$f":"VLOOKUP(R5193,'LA CPID Look up'!$A$3:$C$153,2,FALSE)","v":"South Gloucestershire Council"},"South-West England"]
[null,null,null,null,null,null,null,null,null,null,null,null,null,null,130917,"Walney School","2014-09-01","Cumbria County Council",{"$f":"VLOOKUP(R5194,'LA CPID Look up'!$A$3:$C$153,2,FALSE)","v":"Cumbria County Council"},"North of England"]
[null,null,null,null,null,null,null,null,null,null,null,null,null,null,118408,"Walsall Academy","2003-09-01","Walsall Metropolitan Borough Council",{"$f":"VLOOKUP(R5195,'LA CPID Look up'!$A$3:$C$153,2,FALSE)","v":"Walsall Metropolitan Borough Council"},"West Midlands"]
[null,null,null,null,null,null,null,null,null,null,null,null,null,null,123394,"Walsall Studio School","2013-09-01","Walsall Metropolitan Borough Council",{"$f":"VLOOKUP(R5196,'LA CPID Look up'!$A$3:$C$153,2,FALSE)","v":"Walsall Metropolitan Borough Council"},"West Midlands"]
[null,null,null,null,null,null,null,null,null,null,null,null,null,null,132406,"Walsgrave Church of England Primary School","2015-09-01","Coventry City Council",{"$f":"VLOOKUP(R5197,'LA CPID Look up'!$A$3:$C$153,2,FALSE)","v":"Coventry City Council"},"West Midlands"]
[null,null,null,null,null,null,null,null,null,null,null,null,null,null,120771,"Waltham Leas Primary Academy","2012-01-01","North East Lincolnshire Council",{"$f":"VLOOKUP(R5198,'LA CPID Look up'!$A$3:$C$153,2,FALSE)","v":"North East Lincolnshire Council"},"East Midlands and the Humber"]
[null,null,null,null,null,null,null,null,null,null,null,null,null,null,130604,"Waltham on the Wolds Church of England Primary School","2014-10-01","Leicestershire County Council",{"$f":"VLOOKUP(R5199,'LA CPID Look up'!$A$3:$C$153,2,FALSE)","v":"Leicestershire County Council"},"East Midlands and the Humber"]
[null,null,null,null,null,null,null,null,null,null,null,null,null,null,118656,"Walthamstow Academy","2006-09-01","Waltham Forest London Borough Council",{"$f":"VLOOKUP(R5200,'LA CPID Look up'!$A$3:$C$153,2,FALSE)","v":"Waltham Forest London Borough Council"},"East of England and North-East London"]
[null,null,null,null,null,null,null,null,null,null,null,null,null,null,130833,"Walthamstow Primary Academy","2015-09-01","Waltham Forest London Borough Council",{"$f":"VLOOKUP(R5201,'LA CPID Look up'!$A$3:$C$153,2,FALSE)","v":"Waltham Forest London Borough Council"},"East of England and North-East London"]
[null,null,null,null,null,null,null,null,null,null,null,null,null,null,119538,"Walton Girls' High School and Sixth Form","2011-04-01","Lincolnshire County Council",{"$f":"VLOOKUP(R5202,'LA CPID Look up'!$A$3:$C$153,2,FALSE)","v":"Lincolnshire County Council"},"East Midlands and the Humber"]
[null,null,null,null,null,null,null,null,null,null,null,null,null,null,130758,"Walton Hall Academy","2014-10-01","Staffordshire County Council",{"$f":"VLOOKUP(R5203,'LA CPID Look up'!$A$3:$C$153,2,FALSE)","v":"Staffordshire County Council"},"West Midlands"]
[null,null,null,null,null,null,null,null,null,null,null,null,null,null,119842,"Walton High","2011-07-01","Milton Keynes Council",{"$f":"VLOOKUP(R5204,'LA CPID Look up'!$A$3:$C$153,2,FALSE)","v":"Milton Keynes Council"},"East of England and North-East London"]
[null,null,null,null,null,null,null,null,null,null,null,null,null,null,130742,"Walton Primary Academy","2014-09-01","Wakefield Council",{"$f":"VLOOKUP(R5205,'LA CPID Look up'!$A$3:$C$153,2,FALSE)","v":"Wakefield City Council"},"Lancashire and West Yorkshire"]
[null,null,null,null,null,null,null,null,null,null,null,null,null,null,120354,"Wandle Valley School","2011-09-01","Sutton London Borough Council",{"$f":"VLOOKUP(R5206,'LA CPID Look up'!$A$3:$C$153,2,FALSE)","v":"Sutton London Borough Council"},"South-East England and South London"]
[null,null,null,null,null,null,null,null,null,null,null,null,null,null,124650,"Wansbeck Primary School","2013-07-01","Hull City Council",{"$f":"VLOOKUP(R5207,'LA CPID Look up'!$A$3:$C$153,2,FALSE)","v":"Kingston upon Hull City Council"},"East Midlands and the Humber"]
[null,null,null,null,null,null,null,null,null,null,null,null,null,null,122579,"Wansdyke Community School","2013-02-01","Wiltshire Council",{"$f":"VLOOKUP(R5208,'LA CPID Look up'!$A$3:$C$153,2,FALSE)","v":"Wiltshire Unitary Authority"},"South-West England"]
[null,null,null,null,null,null,null,null,null,null,null,null,null,null,124163,"Wantage Church of England Primary School","2013-10-01","Oxfordshire County Council",{"$f":"VLOOKUP(R5209,'LA CPID Look up'!$A$3:$C$153,2,FALSE)","v":"Oxfordshire County Council"},"East of England and North-East London"]
[null,null,null,null,null,null,null,null,null,null,null,null,null,null,121978,"Wapping High School","2012-09-01","Tower Hamlets London Borough Council",{"$f":"VLOOKUP(R5210,'LA CPID Look up'!$A$3:$C$153,2,FALSE)","v":"Tower Hamlets London Borough Council"},"East of England and North-East London"]
[null,null,null,null,null,null,null,null,null,null,null,null,null,null,132921,"Warberry CofE Academy","2015-09-01","Torbay Council",{"$f":"VLOOKUP(R5211,'LA CPID Look up'!$A$3:$C$153,2,FALSE)","v":"Torbay Council"},"South-West England"]
[null,null,null,null,null,null,null,null,null,null,null,null,null,null,123067,"Warden House Primary School","2013-01-01","Kent County Council",{"$f":"VLOOKUP(R5212,'LA CPID Look up'!$A$3:$C$153,2,FALSE)","v":"Kent County Council"},"South-East England and South London"]
[null,null,null,null,null,null,null,null,null,null,null,null,null,null,120211,"Warden Park Primary Academy","2012-01-01","West Sussex County Council",{"$f":"VLOOKUP(R5213,'LA CPID Look up'!$A$3:$C$153,2,FALSE)","v":"West Sussex County Council"},"South-East England and South London"]
[null,null,null,null,null,null,null,null,null,null,null,null,null,null,120386,"Warden Park School","2011-09-01","West Sussex County Council",{"$f":"VLOOKUP(R5214,'LA CPID Look up'!$A$3:$C$153,2,FALSE)","v":"West Sussex County Council"},"South-East England and South London"]
[null,null,null,null,null,null,null,null,null,null,null,null,null,null,122073,"Wardle Academy","2013-09-01","Rochdale Metropolitan Borough Council",{"$f":"VLOOKUP(R5215,'LA CPID Look up'!$A$3:$C$153,2,FALSE)","v":"Rochdale Borough Council"},"Lancashire and West Yorkshire"]
[null,null,null,null,null,null,null,null,null,null,null,null,null,null,132032,"Wareham St Mary Church of England Voluntary Controlled Primary School","2015-07-01","Dorset County Council",{"$f":"VLOOKUP(R5216,'LA CPID Look up'!$A$3:$C$153,2,FALSE)","v":"Dorset County Council"},"South-West England"]
[null,null,null,null,null,null,null,null,null,null,null,null,null,null,122593,"Warlingham School","2012-11-01","Surrey County Council",{"$f":"VLOOKUP(R5217,'LA CPID Look up'!$A$3:$C$153,2,FALSE)","v":"Surrey County Council"},"South-East England and South London"]
[null,null,null,null,null,null,null,null,null,null,null,null,null,null,124770,"Warlingham Village Primary School","2013-09-01","Surrey County Council",{"$f":"VLOOKUP(R5218,'LA CPID Look up'!$A$3:$C$153,2,FALSE)","v":"Surrey County Council"},"South-East England and South London"]
[null,null,null,null,null,null,null,null,null,null,null,null,null,null,120230,"Warminster Kingdown","2011-08-01","Wiltshire Council",{"$f":"VLOOKUP(R5219,'LA CPID Look up'!$A$3:$C$153,2,FALSE)","v":"Wiltshire Unitary Authority"},"South-West England"]
[null,null,null,null,null,null,null,null,null,null,null,null,null,null,122068,"Warren Farm Primary School","2012-07-01","Birmingham City Council",{"$f":"VLOOKUP(R5220,'LA CPID Look up'!$A$3:$C$153,2,FALSE)","v":"Birmingham City Council"},"West Midlands"]
[null,null,null,null,null,null,null,null,null,null,null,null,null,null,127930,"Warren Mead Junior School","2014-04-01","Surrey County Council",{"$f":"VLOOKUP(R5221,'LA CPID Look up'!$A$3:$C$153,2,FALSE)","v":"Surrey County Council"},"South-East England and South London"]
[null,null,null,null,null,null,null,null,null,null,null,null,null,null,120283,"Warren Primary School","2011-09-01","Nottingham City Council",{"$f":"VLOOKUP(R5222,'LA CPID Look up'!$A$3:$C$153,2,FALSE)","v":"Nottingham City Council"},"East Midlands and the Humber"]
[null,null,null,null,null,null,null,null,null,null,null,null,null,null,119915,"Warren Road Primary School","2011-07-01","Bromley London Borough Council",{"$f":"VLOOKUP(R5223,'LA CPID Look up'!$A$3:$C$153,2,FALSE)","v":"Bromley London Borough Council"},"South-East England and South London"]
[null,null,null,null,null,null,null,null,null,null,null,null,null,null,131291,"Warren School, The","2014-09-01","Barking and Dagenham London Borough Council",{"$f":"VLOOKUP(R5224,'LA CPID Look up'!$A$3:$C$153,2,FALSE)","v":"Barking & Dagenham London Borough Council"},"East of England and North-East London"]
[null,null,null,null,null,null,null,null,null,null,null,null,null,null,132033,"Warren Wood - a specialist academy","2015-07-01","Lincolnshire County Council",{"$f":"VLOOKUP(R5225,'LA CPID Look up'!$A$3:$C$153,2,FALSE)","v":"Lincolnshire County Council"},"East Midlands and the Humber"]
[null,null,null,null,null,null,null,null,null,null,null,null,null,null,130759,"Warren Wood Community Primary School and Language Unit","2014-07-01","Medway Council",{"$f":"VLOOKUP(R5226,'LA CPID Look up'!$A$3:$C$153,2,FALSE)","v":"Medway Towns Unitary Authority (The)"},"South-East England and South London"]
[null,null,null,null,null,null,null,null,null,null,null,null,null,null,132407,"Warriner School, The","2015-08-01","Oxfordshire County Council",{"$f":"VLOOKUP(R5227,'LA CPID Look up'!$A$3:$C$153,2,FALSE)","v":"Oxfordshire County Council"},"East of England and North-East London"]
[null,null,null,null,null,null,null,null,null,null,null,null,null,null,123232,"Warton Nethersole's CofE Primary School","2013-09-01","Warwickshire County Council",{"$f":"VLOOKUP(R5228,'LA CPID Look up'!$A$3:$C$153,2,FALSE)","v":"Warwickshire County Council"},"West Midlands"]
[null,null,null,null,null,null,null,null,null,null,null,null,null,null,122734,"Warwick Primary School","2012-11-01","Northamptonshire County Council",{"$f":"VLOOKUP(R5229,'LA CPID Look up'!$A$3:$C$153,2,FALSE)","v":"Northamptonshire County Council"},"East of England and North-East London"]
[null,null,null,null,null,null,null,null,null,null,null,null,null,null,122594,"Waseley Hills High School","2012-09-01","Worcestershire County Council",{"$f":"VLOOKUP(R5230,'LA CPID Look up'!$A$3:$C$153,2,FALSE)","v":"Worcestershire County Council"},"West Midlands"]
[null,null,null,null,null,null,null,null,null,null,null,null,null,null,121212,"Washingborough Academy","2012-04-01","Lincolnshire County Council",{"$f":"VLOOKUP(R5231,'LA CPID Look up'!$A$3:$C$153,2,FALSE)","v":"Lincolnshire County Council"},"East Midlands and the Humber"]
[null,null,null,null,null,null,null,null,null,null,null,null,null,null,124134,"Washwood Heath Academy","2013-07-01","Birmingham City Council",{"$f":"VLOOKUP(R5232,'LA CPID Look up'!$A$3:$C$153,2,FALSE)","v":"Birmingham City Council"},"West Midlands"]
[null,null,null,null,null,null,null,null,null,null,null,null,null,null,124352,"Watchfield Primary School","2013-11-01","Oxfordshire County Council",{"$f":"VLOOKUP(R5233,'LA CPID Look up'!$A$3:$C$153,2,FALSE)","v":"Oxfordshire County Council"},"East of England and North-East London"]
[null,null,null,null,null,null,null,null,null,null,null,null,null,null,131117,"Water Lane Primary School","2014-09-01","Essex County Council",{"$f":"VLOOKUP(R5234,'LA CPID Look up'!$A$3:$C$153,2,FALSE)","v":"Essex County Council"},"East of England and North-East London"]
[null,null,null,null,null,null,null,null,null,null,null,null,null,null,119212,"Waterhead Academy","2010-09-01","Oldham Metropolitan Borough Council",{"$f":"VLOOKUP(R5235,'LA CPID Look up'!$A$3:$C$153,2,FALSE)","v":"Oldham Metropolitan Borough Council"},"Lancashire and West Yorkshire"]
[null,null,null,null,null,null,null,null,null,null,null,null,null,null,122121,"Waterloo Primary School","2012-07-01","Blackpool Council",{"$f":"VLOOKUP(R5236,'LA CPID Look up'!$A$3:$C$153,2,FALSE)","v":"Blackpool Unitary Authority"},"Lancashire and West Yorkshire"]
[null,null,null,null,null,null,null,null,null,null,null,null,null,null,131066,"Waterman Primary Academy","2015-02-01","Essex County Council",{"$f":"VLOOKUP(R5237,'LA CPID Look up'!$A$3:$C$153,2,FALSE)","v":"Essex County Council"},"East of England and North-East London"]
[null,null,null,null,null,null,null,null,null,null,null,null,null,null,124128,"Waterwells Primary Academy","2013-09-01","Gloucestershire County Council",{"$f":"VLOOKUP(R5238,'LA CPID Look up'!$A$3:$C$153,2,FALSE)","v":"Gloucestershire County Council"},"South-West England"]
[null,null,null,null,null,null,null,null,null,null,null,null,null,null,119248,"Watford Grammar School for Boys","2010-09-01","Hertfordshire County Council",{"$f":"VLOOKUP(R5239,'LA CPID Look up'!$A$3:$C$153,2,FALSE)","v":"Hertfordshire County Council"},"East of England and North-East London"]
[null,null,null,null,null,null,null,null,null,null,null,null,null,null,119249,"Watford Grammar School for Girls","2010-09-01","Hertfordshire County Council",{"$f":"VLOOKUP(R5240,'LA CPID Look up'!$A$3:$C$153,2,FALSE)","v":"Hertfordshire County Council"},"East of England and North-East London"]
[null,null,null,null,null,null,null,null,null,null,null,null,null,null,130567,"Watford UTC, The","2014-09-01","Hertfordshire County Council",{"$f":"VLOOKUP(R5241,'LA CPID Look up'!$A$3:$C$153,2,FALSE)","v":"Hertfordshire County Council"},"East of England and North-East London"]
[null,null,null,null,null,null,null,null,null,null,null,null,null,null,132668,"Watling Park School","2015-09-01","Barnet London Borough Council",{"$f":"VLOOKUP(R5242,'LA CPID Look up'!$A$3:$C$153,2,FALSE)","v":"Barnet London Borough Council"},"South-Central England and North-West London"]
[null,null,null,null,null,null,null,null,null,null,null,null,null,null,131409,"Waverley School","2015-08-01","Birmingham City Council",{"$f":"VLOOKUP(R5243,'LA CPID Look up'!$A$3:$C$153,2,FALSE)","v":"Birmingham City Council"},"West Midlands"]
[null,null,null,null,null,null,null,null,null,null,null,null,null,null,123395,"Waverley Studio College","2013-09-01","Birmingham City Council",{"$f":"VLOOKUP(R5244,'LA CPID Look up'!$A$3:$C$153,2,FALSE)","v":"Birmingham City Council"},"West Midlands"]
[null,null,null,null,null,null,null,null,null,null,null,null,null,null,120212,"Waycroft Academy","2011-08-01","Bristol City Council",{"$f":"VLOOKUP(R5245,'LA CPID Look up'!$A$3:$C$153,2,FALSE)","v":"Bristol City Council"},"South-West England"]
[null,null,null,null,null,null,null,null,null,null,null,null,null,null,125268,"Wayfield Primary School","2013-11-01","Medway Council",{"$f":"VLOOKUP(R5246,'LA CPID Look up'!$A$3:$C$153,2,FALSE)","v":"Medway Towns Unitary Authority (The)"},"South-East England and South London"]
[null,null,null,null,null,null,null,null,null,null,null,null,null,null,120855,"Wayland Academy Norfolk","2012-03-01","Norfolk County Council",{"$f":"VLOOKUP(R5247,'LA CPID Look up'!$A$3:$C$153,2,FALSE)","v":"Norfolk County Council"},"East of England and North-East London"]
[null,null,null,null,null,null,null,null,null,null,null,null,null,null,129586,"Wayland Junior Academy Watton","2014-04-01","Norfolk County Council",{"$f":"VLOOKUP(R5248,'LA CPID Look up'!$A$3:$C$153,2,FALSE)","v":"Norfolk County Council"},"East of England and North-East London"]
[null,null,null,null,null,null,null,null,null,null,null,null,null,null,121089,"Waynflete Infants' School","2012-04-01","Northamptonshire County Council",{"$f":"VLOOKUP(R5249,'LA CPID Look up'!$A$3:$C$153,2,FALSE)","v":"Northamptonshire County Council"},"East of England and North-East London"]
[null,null,null,null,null,null,null,null,null,null,null,null,null,null,131543,"Weald CofE Voluntary Aided Primary School, The","2015-09-01","Surrey County Council",{"$f":"VLOOKUP(R5250,'LA CPID Look up'!$A$3:$C$153,2,FALSE)","v":"Surrey County Council"},"South-East England and South London"]
[null,null,null,null,null,null,null,null,null,null,null,null,null,null,119505,"Weald of Kent Grammar School","2011-02-01","Kent County Council",{"$f":"VLOOKUP(R5251,'LA CPID Look up'!$A$3:$C$153,2,FALSE)","v":"Kent County Council"},"South-East England and South London"]
[null,null,null,null,null,null,null,null,null,null,null,null,null,null,119634,"Weare Academy First School","2011-04-01","Somerset County Council",{"$f":"VLOOKUP(R5252,'LA CPID Look up'!$A$3:$C$153,2,FALSE)","v":"Somerset County Council"},"South-West England"]
[null,null,null,null,null,null,null,null,null,null,null,null,null,null,120776,"Weatherfield School","2012-03-01","Central Bedfordshire Council",{"$f":"VLOOKUP(R5253,'LA CPID Look up'!$A$3:$C$153,2,FALSE)","v":"Central Bedfordshire Unitary Authority"},"South-Central England and North-West London"]
[null,null,null,null,null,null,null,null,null,null,null,null,null,null,120749,"Weatherhead High School","2012-01-01","Wirral Metropolitan Borough Council",{"$f":"VLOOKUP(R5254,'LA CPID Look up'!$A$3:$C$153,2,FALSE)","v":"Wirral Metropolitan Borough Council"},"Lancashire and West Yorkshire"]
[null,null,null,null,null,null,null,null,null,null,null,null,null,null,124232,"Weavers Academy","2013-09-01","Northamptonshire County Council",{"$f":"VLOOKUP(R5255,'LA CPID Look up'!$A$3:$C$153,2,FALSE)","v":"Northamptonshire County Council"},"East of England and North-East London"]
[null,null,null,null,null,null,null,null,null,null,null,null,null,null,123153,"Weavers Close Church of England Primary School","2013-03-01","Leicestershire County Council",{"$f":"VLOOKUP(R5256,'LA CPID Look up'!$A$3:$C$153,2,FALSE)","v":"Leicestershire County Council"},"East Midlands and the Humber"]
[null,null,null,null,null,null,null,null,null,null,null,null,null,null,121235,"Webheath First School Academy","2012-04-01","Worcestershire County Council",{"$f":"VLOOKUP(R5257,'LA CPID Look up'!$A$3:$C$153,2,FALSE)","v":"Worcestershire County Council"},"West Midlands"]
[null,null,null,null,null,null,null,null,null,null,null,null,null,null,122893,"Webster Primary School","2013-04-01","Manchester City Council",{"$f":"VLOOKUP(R5258,'LA CPID Look up'!$A$3:$C$153,2,FALSE)","v":"Manchester City Council"},"Lancashire and West Yorkshire"]
[null,null,null,null,null,null,null,null,null,null,null,null,null,null,119829,"Wedmore First School","2011-07-01","Somerset County Council",{"$f":"VLOOKUP(R5259,'LA CPID Look up'!$A$3:$C$153,2,FALSE)","v":"Somerset County Council"},"South-West England"]
[null,null,null,null,null,null,null,null,null,null,null,null,null,null,124076,"Wednesbury Oak Primary School","2014-04-01","Sandwell Metropolitan Borough Council",{"$f":"VLOOKUP(R5260,'LA CPID Look up'!$A$3:$C$153,2,FALSE)","v":"Sandwell Metropolitan Borough Council"},"West Midlands"]
[null,null,null,null,null,null,null,null,null,null,null,null,null,null,130918,"Wednesfield High School","2015-01-01","Wolverhampton City Council",{"$f":"VLOOKUP(R5261,'LA CPID Look up'!$A$3:$C$153,2,FALSE)","v":"Wolverhampton City Council"},"West Midlands"]
[null,null,null,null,null,null,null,null,null,null,null,null,null,null,129894,"Weedon Bec Primary School","2014-07-01","Northamptonshire County Council",{"$f":"VLOOKUP(R5262,'LA CPID Look up'!$A$3:$C$153,2,FALSE)","v":"Northamptonshire County Council"},"East of England and North-East London"]
[null,null,null,null,null,null,null,null,null,null,null,null,null,null,124694,"Weeley St Andrew's CofE Primary School","2013-11-01","Essex County Council",{"$f":"VLOOKUP(R5263,'LA CPID Look up'!$A$3:$C$153,2,FALSE)","v":"Essex County Council"},"East of England and North-East London"]
[null,null,null,null,null,null,null,null,null,null,null,null,null,null,121992,"Weelsby Academy","2012-07-01","North East Lincolnshire Council",{"$f":"VLOOKUP(R5264,'LA CPID Look up'!$A$3:$C$153,2,FALSE)","v":"North East Lincolnshire Council"},"East Midlands and the Humber"]
[null,null,null,null,null,null,null,null,null,null,null,null,null,null,129718,"Weeting Church of England Primary School","2014-04-01","Norfolk County Council",{"$f":"VLOOKUP(R5265,'LA CPID Look up'!$A$3:$C$153,2,FALSE)","v":"Norfolk County Council"},"East of England and North-East London"]
[null,null,null,null,null,null,null,null,null,null,null,null,null,null,122322,"Welbeck Academy","2012-09-01","Newcastle Upon Tyne City Council",{"$f":"VLOOKUP(R5266,'LA CPID Look up'!$A$3:$C$153,2,FALSE)","v":"Newcastle upon Tyne City Council"},"North of England"]
[null,null,null,null,null,null,null,null,null,null,null,null,null,null,133448,"Weldon Church of England Primary School","2016-03-01","Northamptonshire County Council",{"$f":"VLOOKUP(R5267,'LA CPID Look up'!$A$3:$C$153,2,FALSE)","v":"Northamptonshire County Council"},"East of England and North-East London"]
[null,null,null,null,null,null,null,null,null,null,null,null,null,null,130845,"Welholme Academy","2014-09-01","North East Lincolnshire Council",{"$f":"VLOOKUP(R5268,'LA CPID Look up'!$A$3:$C$153,2,FALSE)","v":"North East Lincolnshire Council"},"East Midlands and the Humber"]
[null,null,null,null,null,null,null,null,null,null,null,null,null,null,119394,"Wellacre Technology Academy","2011-01-01","Trafford Borough Council",{"$f":"VLOOKUP(R5269,'LA CPID Look up'!$A$3:$C$153,2,FALSE)","v":"Trafford Metropolitan Borough Council"},"Lancashire and West Yorkshire"]
[null,null,null,null,null,null,null,null,null,null,null,null,null,null,124996,"Welland Academy - Peterborough","2013-10-01","Peterborough City Council",{"$f":"VLOOKUP(R5270,'LA CPID Look up'!$A$3:$C$153,2,FALSE)","v":"Peterborough City Council"},"East of England and North-East London"]
[null,null,null,null,null,null,null,null,null,null,null,null,null,null,120170,"Welland Park Academy - Market Harborough","2011-08-01","Leicestershire County Council",{"$f":"VLOOKUP(R5271,'LA CPID Look up'!$A$3:$C$153,2,FALSE)","v":"Leicestershire County Council"},"East Midlands and the Humber"]
[null,null,null,null,null,null,null,null,null,null,null,null,null,null,123885,"Wellesley Park Primary School","2013-04-01","Somerset County Council",{"$f":"VLOOKUP(R5272,'LA CPID Look up'!$A$3:$C$153,2,FALSE)","v":"Somerset County Council"},"South-West England"]
[null,null,null,null,null,null,null,null,null,null,null,null,null,null,119740,"Welling School","2011-05-01","Bexley London Borough Council",{"$f":"VLOOKUP(R5273,'LA CPID Look up'!$A$3:$C$153,2,FALSE)","v":"Bexley London Borough Council"},"South-East England and South London"]
[null,null,null,null,null,null,null,null,null,null,null,null,null,null,118900,"Wellington Academy, The - Ludgershall","2009-09-01","Wiltshire Council",{"$f":"VLOOKUP(R5274,'LA CPID Look up'!$A$3:$C$153,2,FALSE)","v":"Wiltshire Unitary Authority"},"South-West England"]
[null,null,null,null,null,null,null,null,null,null,null,null,null,null,130401,"Wellington Primary Academy - Tidworth","2014-09-01","Wiltshire Council",{"$f":"VLOOKUP(R5275,'LA CPID Look up'!$A$3:$C$153,2,FALSE)","v":"Wiltshire Unitary Authority"},"South-West England"]
[null,null,null,null,null,null,null,null,null,null,null,null,null,null,119395,"Wellington School - Altrincham","2011-01-01","Trafford Borough Council",{"$f":"VLOOKUP(R5276,'LA CPID Look up'!$A$3:$C$153,2,FALSE)","v":"Trafford Metropolitan Borough Council"},"Lancashire and West Yorkshire"]
[null,null,null,null,null,null,null,null,null,null,null,null,null,null,123364,"Wells Free School, The","2013-09-01","Kent County Council",{"$f":"VLOOKUP(R5277,'LA CPID Look up'!$A$3:$C$153,2,FALSE)","v":"Kent County Council"},"South-East England and South London"]
[null,null,null,null,null,null,null,null,null,null,null,null,null,null,120630,"Wellsway School","2011-10-01","Bath & North East Somerset Council",{"$f":"VLOOKUP(R5278,'LA CPID Look up'!$A$3:$C$153,2,FALSE)","v":"Bath & North East Somerset Council"},"South-West England"]
[null,null,null,null,null,null,null,null,null,null,null,null,null,null,122076,"Welton Church of England Academy","2012-10-01","Northamptonshire County Council",{"$f":"VLOOKUP(R5279,'LA CPID Look up'!$A$3:$C$153,2,FALSE)","v":"Northamptonshire County Council"},"East of England and North-East London"]
[null,null,null,null,null,null,null,null,null,null,null,null,null,null,122658,"Welton St Mary's Church of England Primary Academy","2013-01-01","Lincolnshire County Council",{"$f":"VLOOKUP(R5280,'LA CPID Look up'!$A$3:$C$153,2,FALSE)","v":"Lincolnshire County Council"},"East Midlands and the Humber"]
[null,null,null,null,null,null,null,null,null,null,null,null,null,null,122580,"Wembley High Technology College","2012-08-01","Brent London Borough Council",{"$f":"VLOOKUP(R5281,'LA CPID Look up'!$A$3:$C$153,2,FALSE)","v":"Brent London Borough Council"},"South-Central England and North-West London"]
[null,null,null,null,null,null,null,null,null,null,null,null,null,null,122563,"Wensley Fold CofE Primary Academy","2013-04-01","Blackburn with Darwen Borough Council",{"$f":"VLOOKUP(R5282,'LA CPID Look up'!$A$3:$C$153,2,FALSE)","v":"Blackburn with Darwen Unitary Authority"},"Lancashire and West Yorkshire"]
[null,null,null,null,null,null,null,null,null,null,null,null,null,null,131521,"Wensum Junior School","2015-02-01","Norfolk County Council",{"$f":"VLOOKUP(R5283,'LA CPID Look up'!$A$3:$C$153,2,FALSE)","v":"Norfolk County Council"},"East of England and North-East London"]
[null,null,null,null,null,null,null,null,null,null,null,null,null,null,120784,"Wentworth Primary School","2012-02-01","Kent County Council",{"$f":"VLOOKUP(R5284,'LA CPID Look up'!$A$3:$C$153,2,FALSE)","v":"Kent County Council"},"South-East England and South London"]
[null,null,null,null,null,null,null,null,null,null,null,null,null,null,129550,"Werneth Primary School","2014-02-01","Oldham Metropolitan Borough Council",{"$f":"VLOOKUP(R5285,'LA CPID Look up'!$A$3:$C$153,2,FALSE)","v":"Oldham Metropolitan Borough Council"},"Lancashire and West Yorkshire"]
[null,null,null,null,null,null,null,null,null,null,null,null,null,null,133189,"Werrington Community Primary School","2016-01-01","Cornwall Council",{"$f":"VLOOKUP(R5286,'LA CPID Look up'!$A$3:$C$153,2,FALSE)","v":"Cornwall Unitary Authority"},"South-West England"]
[null,null,null,null,null,null,null,null,null,null,null,null,null,null,119543,"West Bridgford School, The","2011-04-01","Nottinghamshire County Council",{"$f":"VLOOKUP(R5287,'LA CPID Look up'!$A$3:$C$153,2,FALSE)","v":"Nottinghamshire County Council"},"East Midlands and the Humber"]
[null,null,null,null,null,null,null,null,null,null,null,null,null,null,122696,"West Derby School","2012-09-01","Liverpool City Council",{"$f":"VLOOKUP(R5288,'LA CPID Look up'!$A$3:$C$153,2,FALSE)","v":"Liverpool City Council"},"Lancashire and West Yorkshire"]
[null,null,null,null,null,null,null,null,null,null,null,null,null,null,132669,"West Didsbury CE Primary School","2015-09-01","Manchester City Council",{"$f":"VLOOKUP(R5289,'LA CPID Look up'!$A$3:$C$153,2,FALSE)","v":"Manchester City Council"},"Lancashire and West Yorkshire"]
[null,null,null,null,null,null,null,null,null,null,null,null,null,null,123229,"West End Academy","2013-10-01","Wakefield Council",{"$f":"VLOOKUP(R5290,'LA CPID Look up'!$A$3:$C$153,2,FALSE)","v":"Wakefield City Council"},"Lancashire and West Yorkshire"]
[null,null,null,null,null,null,null,null,null,null,null,null,null,null,119477,"West Grantham Academy - Earl of Dysart","2011-02-01","Lincolnshire County Council",{"$f":"VLOOKUP(R5291,'LA CPID Look up'!$A$3:$C$153,2,FALSE)","v":"Lincolnshire County Council"},"East Midlands and the Humber"]
[null,null,null,null,null,null,null,null,null,null,null,null,null,null,119476,"West Grantham Academy St Hugh's, The","2011-02-01","Lincolnshire County Council",{"$f":"VLOOKUP(R5292,'LA CPID Look up'!$A$3:$C$153,2,FALSE)","v":"Lincolnshire County Council"},"East Midlands and the Humber"]
[null,null,null,null,null,null,null,null,null,null,null,null,null,null,119478,"West Grantham Academy St John's, The","2011-02-01","Lincolnshire County Council",{"$f":"VLOOKUP(R5293,'LA CPID Look up'!$A$3:$C$153,2,FALSE)","v":"Lincolnshire County Council"},"East Midlands and the Humber"]
[null,null,null,null,null,null,null,null,null,null,null,null,null,null,119787,"West Hatch High School","2011-06-01","Essex County Council",{"$f":"VLOOKUP(R5294,'LA CPID Look up'!$A$3:$C$153,2,FALSE)","v":"Essex County Council"},"East of England and North-East London"]
[null,null,null,null,null,null,null,null,null,null,null,null,null,null,120020,"West Hill School","2011-08-01","Tameside Metropolitan Borough Council",{"$f":"VLOOKUP(R5295,'LA CPID Look up'!$A$3:$C$153,2,FALSE)","v":"Tameside Metropolitan Borough Council"},"Lancashire and West Yorkshire"]
[null,null,null,null,null,null,null,null,null,null,null,null,null,null,120243,"West Kirby Grammar School","2011-08-01","Wirral Metropolitan Borough Council",{"$f":"VLOOKUP(R5296,'LA CPID Look up'!$A$3:$C$153,2,FALSE)","v":"Wirral Metropolitan Borough Council"},"Lancashire and West Yorkshire"]
[null,null,null,null,null,null,null,null,null,null,null,null,null,null,118657,"West Lakes Academy","2008-09-01","Cumbria County Council",{"$f":"VLOOKUP(R5297,'LA CPID Look up'!$A$3:$C$153,2,FALSE)","v":"Cumbria County Council"},"North of England"]
[null,null,null,null,null,null,null,null,null,null,null,null,null,null,120471,"West London Free School","2011-09-01","Hammersmith and Fulham London Borough Council",{"$f":"VLOOKUP(R5298,'LA CPID Look up'!$A$3:$C$153,2,FALSE)","v":"Hammersmith and Fulham London Borough Council"},"South-Central England and North-West London"]
[null,null,null,null,null,null,null,null,null,null,null,null,null,null,123371,"West London Free School Primary","2013-09-01","Hammersmith and Fulham London Borough Council",{"$f":"VLOOKUP(R5299,'LA CPID Look up'!$A$3:$C$153,2,FALSE)","v":"Hammersmith and Fulham London Borough Council"},"South-Central England and North-West London"]
[null,null,null,null,null,null,null,null,null,null,null,null,null,null,130919,"West Lynn Primary School","2014-09-01","Norfolk County Council",{"$f":"VLOOKUP(R5300,'LA CPID Look up'!$A$3:$C$153,2,FALSE)","v":"Norfolk County Council"},"East of England and North-East London"]
[null,null,null,null,null,null,null,null,null,null,null,null,null,null,122286,"West Malling Church of England Voluntary Controlled Primary School","2012-09-01","Kent County Council",{"$f":"VLOOKUP(R5301,'LA CPID Look up'!$A$3:$C$153,2,FALSE)","v":"Kent County Council"},"South-East England and South London"]
[null,null,null,null,null,null,null,null,null,null,null,null,null,null,127592,"West Meadows Primary School","2013-12-01","Barnsley Metropolitan Borough Council",{"$f":"VLOOKUP(R5302,'LA CPID Look up'!$A$3:$C$153,2,FALSE)","v":"Barnsley Metropolitan Borough Council"},"East Midlands and the Humber"]
[null,null,null,null,null,null,null,null,null,null,null,null,null,null,132693,"West Midlands Construction UTC","2015-09-01","Wolverhampton City Council",{"$f":"VLOOKUP(R5303,'LA CPID Look up'!$A$3:$C$153,2,FALSE)","v":"Wolverhampton City Council"},"West Midlands"]
[null,null,null,null,null,null,null,null,null,null,null,null,null,null,131855,"West Moors, St Mary's Church of England Voluntary Controlled First School","2015-12-01","Dorset County Council",{"$f":"VLOOKUP(R5304,'LA CPID Look up'!$A$3:$C$153,2,FALSE)","v":"Dorset County Council"},"South-West England"]
[null,null,null,null,null,null,null,null,null,null,null,null,null,null,123372,"West Newcastle Academy","2013-09-01","Newcastle Upon Tyne City Council",{"$f":"VLOOKUP(R5305,'LA CPID Look up'!$A$3:$C$153,2,FALSE)","v":"Newcastle upon Tyne City Council"},"North of England"]
[null,null,null,null,null,null,null,null,null,null,null,null,null,null,119901,"West Park Academy","2011-07-01","Darlington Borough Council",{"$f":"VLOOKUP(R5306,'LA CPID Look up'!$A$3:$C$153,2,FALSE)","v":"Darlington Borough Council"},"North of England"]
[null,null,null,null,null,null,null,null,null,null,null,null,null,null,120587,"West Park Primary School","2015-03-01","Hartlepool Borough Council",{"$f":"VLOOKUP(R5307,'LA CPID Look up'!$A$3:$C$153,2,FALSE)","v":"Hartlepool Borough Council"},"North of England"]
[null,null,null,null,null,null,null,null,null,null,null,null,null,null,119548,"West Park School","2011-04-01","Derby City Council",{"$f":"VLOOKUP(R5308,'LA CPID Look up'!$A$3:$C$153,2,FALSE)","v":"Derby City Council"},"East Midlands and the Humber"]
[null,null,null,null,null,null,null,null,null,null,null,null,null,null,131863,"West Raynham Church of England Primary Academy","2015-12-01","Norfolk County Council",{"$f":"VLOOKUP(R5309,'LA CPID Look up'!$A$3:$C$153,2,FALSE)","v":"Norfolk County Council"},"East of England and North-East London"]
[null,null,null,null,null,null,null,null,null,null,null,null,null,null,119784,"West Somerset College","2011-06-01","Somerset County Council",{"$f":"VLOOKUP(R5310,'LA CPID Look up'!$A$3:$C$153,2,FALSE)","v":"Somerset County Council"},"South-West England"]
[null,null,null,null,null,null,null,null,null,null,null,null,null,null,125003,"West St Leonards Primary Academy","2013-11-01","East Sussex County Council",{"$f":"VLOOKUP(R5311,'LA CPID Look up'!$A$3:$C$153,2,FALSE)","v":"East Sussex County Council"},"South-East England and South London"]
[null,null,null,null,null,null,null,null,null,null,null,null,null,null,119763,"West Thornton Primary School","2011-06-01","Croydon London Borough Council",{"$f":"VLOOKUP(R5312,'LA CPID Look up'!$A$3:$C$153,2,FALSE)","v":"Croydon London Borough Council"},"South-East England and South London"]
[null,null,null,null,null,null,null,null,null,null,null,null,null,null,122892,"West Thurrock Academy","2013-08-01","Thurrock Borough Council",{"$f":"VLOOKUP(R5313,'LA CPID Look up'!$A$3:$C$153,2,FALSE)","v":"Thurrock Unitary Authority"},"East of England and North-East London"]
[null,null,null,null,null,null,null,null,null,null,null,null,null,null,120436,"West Town Lane Academy","2012-01-01","Bristol City Council",{"$f":"VLOOKUP(R5314,'LA CPID Look up'!$A$3:$C$153,2,FALSE)","v":"Bristol City Council"},"South-West England"]
[null,null,null,null,null,null,null,null,null,null,null,null,null,null,127400,"West Town Primary Academy","2014-06-01","Peterborough City Council",{"$f":"VLOOKUP(R5315,'LA CPID Look up'!$A$3:$C$153,2,FALSE)","v":"Peterborough City Council"},"East of England and North-East London"]
[null,null,null,null,null,null,null,null,null,null,null,null,null,null,131065,"West View Primary School","2015-01-01","Hartlepool Borough Council",{"$f":"VLOOKUP(R5316,'LA CPID Look up'!$A$3:$C$153,2,FALSE)","v":"Hartlepool Borough Council"},"North of England"]
[null,null,null,null,null,null,null,null,null,null,null,null,null,null,121922,"West Walsall E-ACT Academy","2012-09-01","Walsall Metropolitan Borough Council",{"$f":"VLOOKUP(R5317,'LA CPID Look up'!$A$3:$C$153,2,FALSE)","v":"Walsall Metropolitan Borough Council"},"West Midlands"]
[null,null,null,null,null,null,null,null,null,null,null,null,null,null,119301,"Westborough Academy, The","2010-10-01","Southend-on-Sea Borough Council",{"$f":"VLOOKUP(R5318,'LA CPID Look up'!$A$3:$C$153,2,FALSE)","v":"Southend-on-Sea Borough Council"},"East of England and North-East London"]
[null,null,null,null,null,null,null,null,null,null,null,null,null,null,123185,"Westbourne Academy","2013-02-01","Suffolk County Council",{"$f":"VLOOKUP(R5319,'LA CPID Look up'!$A$3:$C$153,2,FALSE)","v":"Suffolk County Council"},"East of England and North-East London"]
[null,null,null,null,null,null,null,null,null,null,null,null,null,null,119767,"Westbourne Primary School","2011-06-01","Sutton London Borough Council",{"$f":"VLOOKUP(R5320,'LA CPID Look up'!$A$3:$C$153,2,FALSE)","v":"Sutton London Borough Council"},"South-East England and South London"]
[null,null,null,null,null,null,null,null,null,null,null,null,null,null,127649,"Westbridge Primary School","2014-04-01","Wandsworth London Borough Council",{"$f":"VLOOKUP(R5321,'LA CPID Look up'!$A$3:$C$153,2,FALSE)","v":"Wandsworth London Borough Council"},"South-East England and South London"]
[null,null,null,null,null,null,null,null,null,null,null,null,null,null,124492,"Westbrook Primary School","2013-07-01","Hounslow London Borough Council",{"$f":"VLOOKUP(R5322,'LA CPID Look up'!$A$3:$C$153,2,FALSE)","v":"Hounslow London Borough Council"},"East of England and North-East London"]
[null,null,null,null,null,null,null,null,null,null,null,null,null,null,122341,"Westbury Park Primary School","2012-08-01","Bristol City Council",{"$f":"VLOOKUP(R5323,'LA CPID Look up'!$A$3:$C$153,2,FALSE)","v":"Bristol City Council"},"South-West England"]
[null,null,null,null,null,null,null,null,null,null,null,null,null,null,120062,"Westbury-On-Trym Church of England Academy","2011-08-01","Bristol City Council",{"$f":"VLOOKUP(R5324,'LA CPID Look up'!$A$3:$C$153,2,FALSE)","v":"Bristol City Council"},"South-West England"]
[null,null,null,null,null,null,null,null,null,null,null,null,null,null,119262,"Westcliff High School for Boys Academy","2010-09-01","Southend-on-Sea Borough Council",{"$f":"VLOOKUP(R5325,'LA CPID Look up'!$A$3:$C$153,2,FALSE)","v":"Southend-on-Sea Borough Council"},"East of England and North-East London"]
[null,null,null,null,null,null,null,null,null,null,null,null,null,null,119490,"Westcliff High School for Girls","2011-03-01","Southend-on-Sea Borough Council",{"$f":"VLOOKUP(R5326,'LA CPID Look up'!$A$3:$C$153,2,FALSE)","v":"Southend-on-Sea Borough Council"},"East of England and North-East London"]
[null,null,null,null,null,null,null,null,null,null,null,null,null,null,120370,"Westcliff Primary School - Blackpool","2011-09-01","Blackpool Council",{"$f":"VLOOKUP(R5327,'LA CPID Look up'!$A$3:$C$153,2,FALSE)","v":"Blackpool Unitary Authority"},"Lancashire and West Yorkshire"]
[null,null,null,null,null,null,null,null,null,null,null,null,null,null,132441,"Westcliff School - Dawlish","2016-02-01","Devon County Council",{"$f":"VLOOKUP(R5328,'LA CPID Look up'!$A$3:$C$153,2,FALSE)","v":"Devon County Council"},"South-West England"]
[null,null,null,null,null,null,null,null,null,null,null,null,null,null,133065,"Westcroft Sport and Vocational College","2015-12-01","Wolverhampton City Council",{"$f":"VLOOKUP(R5329,'LA CPID Look up'!$A$3:$C$153,2,FALSE)","v":"Wolverhampton City Council"},"West Midlands"]
[null,null,null,null,null,null,null,null,null,null,null,null,null,null,120341,"Westerings Primary Academy","2011-09-01","Essex County Council",{"$f":"VLOOKUP(R5330,'LA CPID Look up'!$A$3:$C$153,2,FALSE)","v":"Essex County Council"},"East of England and North-East London"]
[null,null,null,null,null,null,null,null,null,null,null,null,null,null,130622,"Western House Academy","2014-08-01","Slough Borough Council",{"$f":"VLOOKUP(R5331,'LA CPID Look up'!$A$3:$C$153,2,FALSE)","v":"Slough Borough Council"},"East of England and North-East London"]
[null,null,null,null,null,null,null,null,null,null,null,null,null,null,132333,"Western Primary School","2015-08-01","North Yorkshire County Council",{"$f":"VLOOKUP(R5332,'LA CPID Look up'!$A$3:$C$153,2,FALSE)","v":"North Yorkshire County Council"},"North of England"]
[null,null,null,null,null,null,null,null,null,null,null,null,null,null,131797,"Westerton Primary School","2016-03-01","Leeds City Council",{"$f":"VLOOKUP(R5333,'LA CPID Look up'!$A$3:$C$153,2,FALSE)","v":"Leeds City Council"},"Lancashire and West Yorkshire"]
[null,null,null,null,null,null,null,null,null,null,null,null,null,null,124311,"Westfield Academy","2013-09-01","Hertfordshire County Council",{"$f":"VLOOKUP(R5334,'LA CPID Look up'!$A$3:$C$153,2,FALSE)","v":"Hertfordshire County Council"},"East of England and North-East London"]
[null,null,null,null,null,null,null,null,null,null,null,null,null,null,120203,"Westfield Academy - Yeovil","2011-08-01","Somerset County Council",{"$f":"VLOOKUP(R5335,'LA CPID Look up'!$A$3:$C$153,2,FALSE)","v":"Somerset County Council"},"South-West England"]
[null,null,null,null,null,null,null,null,null,null,null,null,null,null,124755,"Westfield Primary Academy - Haverhill","2013-10-01","Suffolk County Council",{"$f":"VLOOKUP(R5336,'LA CPID Look up'!$A$3:$C$153,2,FALSE)","v":"Suffolk County Council"},"East of England and North-East London"]
[null,null,null,null,null,null,null,null,null,null,null,null,null,null,120317,"Westgate Academy","2011-09-01","Lincolnshire County Council",{"$f":"VLOOKUP(R5337,'LA CPID Look up'!$A$3:$C$153,2,FALSE)","v":"Lincolnshire County Council"},"East Midlands and the Humber"]
[null,null,null,null,null,null,null,null,null,null,null,null,null,null,121066,"Westgate School, The","2012-04-01","Slough Borough Council",{"$f":"VLOOKUP(R5338,'LA CPID Look up'!$A$3:$C$153,2,FALSE)","v":"Slough Borough Council"},"East of England and North-East London"]
[null,null,null,null,null,null,null,null,null,null,null,null,null,null,131507,"Westlands Academy","2014-09-01","Stockton-on-Tees Borough Council",{"$f":"VLOOKUP(R5339,'LA CPID Look up'!$A$3:$C$153,2,FALSE)","v":"Stockton-on-Tees Borough Council"},"North of England"]
[null,null,null,null,null,null,null,null,null,null,null,null,null,null,119257,"Westlands Primary School","2010-09-01","Kent County Council",{"$f":"VLOOKUP(R5340,'LA CPID Look up'!$A$3:$C$153,2,FALSE)","v":"Kent County Council"},"South-East England and South London"]
[null,null,null,null,null,null,null,null,null,null,null,null,null,null,124564,"Westlands School - Thornaby","2013-08-01","Stockton-on-Tees Borough Council",{"$f":"VLOOKUP(R5341,'LA CPID Look up'!$A$3:$C$153,2,FALSE)","v":"Stockton-on-Tees Borough Council"},"North of England"]
[null,null,null,null,null,null,null,null,null,null,null,null,null,null,119261,"Westlands School, The - Sittingbourne","2010-09-01","Kent County Council",{"$f":"VLOOKUP(R5342,'LA CPID Look up'!$A$3:$C$153,2,FALSE)","v":"Kent County Council"},"South-East England and South London"]
[null,null,null,null,null,null,null,null,null,null,null,null,null,null,124152,"Westlea Primary School","2013-11-01","Swindon Borough Council",{"$f":"VLOOKUP(R5343,'LA CPID Look up'!$A$3:$C$153,2,FALSE)","v":"Swindon Unitary Authority"},"South-West England"]
[null,null,null,null,null,null,null,null,null,null,null,null,null,null,124692,"Westleigh Methodist Primary School","2013-09-01","Wigan Metropolitan Borough Council",{"$f":"VLOOKUP(R5344,'LA CPID Look up'!$A$3:$C$153,2,FALSE)","v":"Wigan Metropolitan Borough Council"},"Lancashire and West Yorkshire"]
[null,null,null,null,null,null,null,null,null,null,null,null,null,null,120180,"Westley Middle School","2011-08-01","Suffolk County Council",{"$f":"VLOOKUP(R5345,'LA CPID Look up'!$A$3:$C$153,2,FALSE)","v":"Suffolk County Council"},"East of England and North-East London"]
[null,null,null,null,null,null,null,null,null,null,null,null,null,null,118658,"Westminster Academy","2006-09-01","Westminster City Council",{"$f":"VLOOKUP(R5346,'LA CPID Look up'!$A$3:$C$153,2,FALSE)","v":"Westminster City Council"},"East of England and North-East London"]
[null,null,null,null,null,null,null,null,null,null,null,null,null,null,122164,"Westminster City School","2012-07-01","Westminster City Council",{"$f":"VLOOKUP(R5347,'LA CPID Look up'!$A$3:$C$153,2,FALSE)","v":"Westminster City Council"},"East of England and North-East London"]
[null,null,null,null,null,null,null,null,null,null,null,null,null,null,120816,"Weston Academy","2012-04-01","Isle of Wight Council",{"$f":"VLOOKUP(R5348,'LA CPID Look up'!$A$3:$C$153,2,FALSE)","v":"Isle of Wight Council"},"South-East England and South London"]
[null,null,null,null,null,null,null,null,null,null,null,null,null,null,119948,"Weston Favell Academy","2012-09-01","Northamptonshire County Council",{"$f":"VLOOKUP(R5349,'LA CPID Look up'!$A$3:$C$153,2,FALSE)","v":"Northamptonshire County Council"},"East of England and North-East London"]
[null,null,null,null,null,null,null,null,null,null,null,null,null,null,121467,"Weston Favell CofE Primary School","2012-11-01","Northamptonshire County Council",{"$f":"VLOOKUP(R5350,'LA CPID Look up'!$A$3:$C$153,2,FALSE)","v":"Northamptonshire County Council"},"East of England and North-East London"]
[null,null,null,null,null,null,null,null,null,null,null,null,null,null,120583,"Weston Road Academy, The","2011-10-01","Staffordshire County Council",{"$f":"VLOOKUP(R5351,'LA CPID Look up'!$A$3:$C$153,2,FALSE)","v":"Staffordshire County Council"},"West Midlands"]
[null,null,null,null,null,null,null,null,null,null,null,null,null,null,130760,"Weston St Mary Church of England Primary School","2014-09-01","Lincolnshire County Council",{"$f":"VLOOKUP(R5352,'LA CPID Look up'!$A$3:$C$153,2,FALSE)","v":"Lincolnshire County Council"},"East Midlands and the Humber"]
[null,null,null,null,null,null,null,null,null,null,null,null,null,null,133170,"Westover Primary School","2016-02-01","Portsmouth City Council",{"$f":"VLOOKUP(R5353,'LA CPID Look up'!$A$3:$C$153,2,FALSE)","v":"Portsmouth City Council"},"South-East England and South London"]
[null,null,null,null,null,null,null,null,null,null,null,null,null,null,123417,"Westside Free School","2013-09-01","Westminster City Council",{"$f":"VLOOKUP(R5354,'LA CPID Look up'!$A$3:$C$153,2,FALSE)","v":"Westminster City Council"},"East of England and North-East London"]
[null,null,null,null,null,null,null,null,null,null,null,null,null,null,120030,"Westwood Academy - Benfleet","2011-08-01","Essex County Council",{"$f":"VLOOKUP(R5355,'LA CPID Look up'!$A$3:$C$153,2,FALSE)","v":"Essex County Council"},"East of England and North-East London"]
[null,null,null,null,null,null,null,null,null,null,null,null,null,null,131400,"Westwood Academy - Oldham","2014-11-01","Oldham Metropolitan Borough Council",{"$f":"VLOOKUP(R5356,'LA CPID Look up'!$A$3:$C$153,2,FALSE)","v":"Oldham Metropolitan Borough Council"},"Lancashire and West Yorkshire"]
[null,null,null,null,null,null,null,null,null,null,null,null,null,null,120225,"Westwood Academy, The - Coventry","2011-08-01","Coventry City Council",{"$f":"VLOOKUP(R5357,'LA CPID Look up'!$A$3:$C$153,2,FALSE)","v":"Coventry City Council"},"West Midlands"]
[null,null,null,null,null,null,null,null,null,null,null,null,null,null,124630,"Westwood Primary School","2013-08-01","Suffolk County Council",{"$f":"VLOOKUP(R5358,'LA CPID Look up'!$A$3:$C$153,2,FALSE)","v":"Suffolk County Council"},"East of England and North-East London"]
[null,null,null,null,null,null,null,null,null,null,null,null,null,null,122499,"Westwoodside Church of England Academy","2012-09-01","North Lincolnshire Council",{"$f":"VLOOKUP(R5359,'LA CPID Look up'!$A$3:$C$153,2,FALSE)","v":"North Lincolnshire Council"},"East Midlands and the Humber"]
[null,null,null,null,null,null,null,null,null,null,null,null,null,null,122687,"Wey Valley School, The","2012-09-01","Dorset County Council",{"$f":"VLOOKUP(R5360,'LA CPID Look up'!$A$3:$C$153,2,FALSE)","v":"Dorset County Council"},"South-West England"]
[null,null,null,null,null,null,null,null,null,null,null,null,null,null,119595,"Weydon School","2011-04-01","Surrey County Council",{"$f":"VLOOKUP(R5361,'LA CPID Look up'!$A$3:$C$153,2,FALSE)","v":"Surrey County Council"},"South-East England and South London"]
[null,null,null,null,null,null,null,null,null,null,null,null,null,null,122545,"Weyfield Academy","2013-02-01","Surrey County Council",{"$f":"VLOOKUP(R5362,'LA CPID Look up'!$A$3:$C$153,2,FALSE)","v":"Surrey County Council"},"South-East England and South London"]
[null,null,null,null,null,null,null,null,null,null,null,null,null,null,130357,"Whalley Range 11-18 High School","2014-09-01","Manchester City Council",{"$f":"VLOOKUP(R5363,'LA CPID Look up'!$A$3:$C$153,2,FALSE)","v":"Manchester City Council"},"Lancashire and West Yorkshire"]
[null,null,null,null,null,null,null,null,null,null,null,null,null,null,126518,"Wheatfield Academy","2014-09-01","Wokingham Borough Council",{"$f":"VLOOKUP(R5364,'LA CPID Look up'!$A$3:$C$153,2,FALSE)","v":"Wokingham Council"},"East of England and North-East London"]
[null,null,null,null,null,null,null,null,null,null,null,null,null,null,125171,"Wheatley Church of England (C) Primary School","2014-03-01","Oxfordshire County Council",{"$f":"VLOOKUP(R5365,'LA CPID Look up'!$A$3:$C$153,2,FALSE)","v":"Oxfordshire County Council"},"East of England and North-East London"]
[null,null,null,null,null,null,null,null,null,null,null,null,null,null,126207,"Wheatley Park School","2014-05-01","Oxfordshire County Council",{"$f":"VLOOKUP(R5366,'LA CPID Look up'!$A$3:$C$153,2,FALSE)","v":"Oxfordshire County Council"},"East of England and North-East London"]
[null,null,null,null,null,null,null,null,null,null,null,null,null,null,124063,"Wheeler Primary School","2014-01-01","Hull City Council",{"$f":"VLOOKUP(R5367,'LA CPID Look up'!$A$3:$C$153,2,FALSE)","v":"Kingston upon Hull City Council"},"East Midlands and the Humber"]
[null,null,null,null,null,null,null,null,null,null,null,null,null,null,122861,"Whetley Academy","2012-12-01","Bradford Metropolitan District Council",{"$f":"VLOOKUP(R5368,'LA CPID Look up'!$A$3:$C$153,2,FALSE)","v":"Bradford City Council"},"Lancashire and West Yorkshire"]
[null,null,null,null,null,null,null,null,null,null,null,null,null,null,120358,"Whickham School","2011-09-01","Gateshead Council",{"$f":"VLOOKUP(R5369,'LA CPID Look up'!$A$3:$C$153,2,FALSE)","v":"Gateshead Council"},"North of England"]
[null,null,null,null,null,null,null,null,null,null,null,null,null,null,122346,"Whipperley Infant Academy","2013-01-01","Luton Borough Council",{"$f":"VLOOKUP(R5370,'LA CPID Look up'!$A$3:$C$153,2,FALSE)","v":"Luton Borough Council"},"East of England and North-East London"]
[null,null,null,null,null,null,null,null,null,null,null,null,null,null,124204,"Whirley Primary School","2014-02-01","Cheshire East Council",{"$f":"VLOOKUP(R5371,'LA CPID Look up'!$A$3:$C$153,2,FALSE)","v":"Cheshire East Unitary Authority"},"West Midlands"]
[null,null,null,null,null,null,null,null,null,null,null,null,null,null,131057,"Whissendine Church of England Primary School","2014-10-01","Rutland County Council",{"$f":"VLOOKUP(R5372,'LA CPID Look up'!$A$3:$C$153,2,FALSE)","v":"Rutland County Council"},"East Midlands and the Humber"]
[null,null,null,null,null,null,null,null,null,null,null,null,null,null,124563,"Whiston Junior and Infant School","2013-09-01","Rotherham Metropolitan Borough Council",{"$f":"VLOOKUP(R5373,'LA CPID Look up'!$A$3:$C$153,2,FALSE)","v":"Rotherham Borough Council"},"East Midlands and the Humber"]
[null,null,null,null,null,null,null,null,null,null,null,null,null,null,124583,"Whiston Worry Goose Junior and Infant School","2013-09-01","Rotherham Metropolitan Borough Council",{"$f":"VLOOKUP(R5374,'LA CPID Look up'!$A$3:$C$153,2,FALSE)","v":"Rotherham Borough Council"},"East Midlands and the Humber"]
[null,null,null,null,null,null,null,null,null,null,null,null,null,null,119398,"Whitburn Church of England Academy","2011-01-01","South Tyneside Council",{"$f":"VLOOKUP(R5375,'LA CPID Look up'!$A$3:$C$153,2,FALSE)","v":"South Tyneside Council"},"North of England"]
[null,null,null,null,null,null,null,null,null,null,null,null,null,null,122069,"White Cliffs Primary College for the Arts","2012-06-01","Kent County Council",{"$f":"VLOOKUP(R5376,'LA CPID Look up'!$A$3:$C$153,2,FALSE)","v":"Kent County Council"},"South-East England and South London"]
[null,null,null,null,null,null,null,null,null,null,null,null,null,null,120929,"White Hall Academy","2012-09-01","Essex County Council",{"$f":"VLOOKUP(R5377,'LA CPID Look up'!$A$3:$C$153,2,FALSE)","v":"Essex County Council"},"East of England and North-East London"]
[null,null,null,null,null,null,null,null,null,null,null,null,null,null,130920,"White House Academy","2014-09-01","East Sussex County Council",{"$f":"VLOOKUP(R5378,'LA CPID Look up'!$A$3:$C$153,2,FALSE)","v":"East Sussex County Council"},"South-East England and South London"]
[null,null,null,null,null,null,null,null,null,null,null,null,null,null,130079,"White Meadows Primary School","2014-04-01","West Sussex County Council",{"$f":"VLOOKUP(R5379,'LA CPID Look up'!$A$3:$C$153,2,FALSE)","v":"West Sussex County Council"},"South-East England and South London"]
[null,null,null,null,null,null,null,null,null,null,null,null,null,null,122292,"White Waltham CofE Academy","2012-09-01","Royal Borough of Windsor and Maidenhead",{"$f":"VLOOKUP(R5380,'LA CPID Look up'!$A$3:$C$153,2,FALSE)","v":"Windsor and Maidenhead (Royal Borough of)"},"East of England and North-East London"]
[null,null,null,null,null,null,null,null,null,null,null,null,null,null,123807,"White’s Wood Academy","2013-03-01","Lincolnshire County Council",{"$f":"VLOOKUP(R5381,'LA CPID Look up'!$A$3:$C$153,2,FALSE)","v":"Lincolnshire County Council"},"East Midlands and the Humber"]
[null,null,null,null,null,null,null,null,null,null,null,null,null,null,120600,"Whitecross Hereford; High School and Specialist Sports College","2013-01-01","Herefordshire Council",{"$f":"VLOOKUP(R5382,'LA CPID Look up'!$A$3:$C$153,2,FALSE)","v":"Herefordshire Council"},"West Midlands"]
[null,null,null,null,null,null,null,null,null,null,null,null,null,null,120355,"Whitefield School - Cricklewood","2011-09-01","Barnet London Borough Council",{"$f":"VLOOKUP(R5383,'LA CPID Look up'!$A$3:$C$153,2,FALSE)","v":"Barnet London Borough Council"},"South-Central England and North-West London"]
[null,null,null,null,null,null,null,null,null,null,null,null,null,null,126350,"Whitefield Schools and Centre - Walthamstow","2014-04-01","Waltham Forest London Borough Council",{"$f":"VLOOKUP(R5384,'LA CPID Look up'!$A$3:$C$153,2,FALSE)","v":"Waltham Forest London Borough Council"},"East of England and North-East London"]
[null,null,null,null,null,null,null,null,null,null,null,null,null,null,130297,"Whitefriars Church of England Primary Academy","2014-09-01","Norfolk County Council",{"$f":"VLOOKUP(R5385,'LA CPID Look up'!$A$3:$C$153,2,FALSE)","v":"Norfolk County Council"},"East of England and North-East London"]
[null,null,null,null,null,null,null,null,null,null,null,null,null,null,127889,"Whitefriars School","2014-07-01","Harrow London Borough Council",{"$f":"VLOOKUP(R5386,'LA CPID Look up'!$A$3:$C$153,2,FALSE)","v":"Harrow London Borough Council"},"East of England and North-East London"]
[null,null,null,null,null,null,null,null,null,null,null,null,null,null,130517,"Whitehall Park School","2014-09-01","Islington London Borough Council",{"$f":"VLOOKUP(R5387,'LA CPID Look up'!$A$3:$C$153,2,FALSE)","v":"Islington London Borough Council"},"East of England and North-East London"]
[null,null,null,null,null,null,null,null,null,null,null,null,null,null,127198,"Whitehaven Academy, The","2014-01-01","Cumbria County Council",{"$f":"VLOOKUP(R5388,'LA CPID Look up'!$A$3:$C$153,2,FALSE)","v":"Cumbria County Council"},"North of England"]
[null,null,null,null,null,null,null,null,null,null,null,null,null,null,119600,"Whitehill Community Academy","2011-04-01","Calderdale Metropolitan Borough Council",{"$f":"VLOOKUP(R5389,'LA CPID Look up'!$A$3:$C$153,2,FALSE)","v":"Calderdale Metropolitan Borough Council"},"Lancashire and West Yorkshire"]
[null,null,null,null,null,null,null,null,null,null,null,null,null,null,129100,"Whitehill Primary School","2014-04-01","Kent County Council",{"$f":"VLOOKUP(R5390,'LA CPID Look up'!$A$3:$C$153,2,FALSE)","v":"Kent County Council"},"South-East England and South London"]
[null,null,null,null,null,null,null,null,null,null,null,null,null,null,119666,"Whitehorse Manor Infant School","2011-04-01","Croydon London Borough Council",{"$f":"VLOOKUP(R5391,'LA CPID Look up'!$A$3:$C$153,2,FALSE)","v":"Croydon London Borough Council"},"South-East England and South London"]
[null,null,null,null,null,null,null,null,null,null,null,null,null,null,119667,"Whitehorse Manor Junior School","2011-04-01","Croydon London Borough Council",{"$f":"VLOOKUP(R5392,'LA CPID Look up'!$A$3:$C$153,2,FALSE)","v":"Croydon London Borough Council"},"South-East England and South London"]
[null,null,null,null,null,null,null,null,null,null,null,null,null,null,131990,"Whitehouse Pupil Referral Unit","2015-09-01","Hull City Council",{"$f":"VLOOKUP(R5393,'LA CPID Look up'!$A$3:$C$153,2,FALSE)","v":"Kingston upon Hull City Council"},"East Midlands and the Humber"]
[null,null,null,null,null,null,null,null,null,null,null,null,null,null,127278,"Whitelands Park Primary School","2014-01-01","West Berkshire Council",{"$f":"VLOOKUP(R5394,'LA CPID Look up'!$A$3:$C$153,2,FALSE)","v":"West Berkshire Council"},"East of England and North-East London"]
[null,null,null,null,null,null,null,null,null,null,null,null,null,null,122897,"Whitemoor Academy","2012-11-01","Cornwall Council",{"$f":"VLOOKUP(R5395,'LA CPID Look up'!$A$3:$C$153,2,FALSE)","v":"Cornwall Unitary Authority"},"South-West England"]
[null,null,null,null,null,null,null,null,null,null,null,null,null,null,122018,"Whitemoor Academy (Primary and Nursery)","2012-09-01","Nottingham City Council",{"$f":"VLOOKUP(R5396,'LA CPID Look up'!$A$3:$C$153,2,FALSE)","v":"Nottingham City Council"},"East Midlands and the Humber"]
[null,null,null,null,null,null,null,null,null,null,null,null,null,null,124297,"Whitesheet Church of England Primary Academy","2013-12-01","Wiltshire Council",{"$f":"VLOOKUP(R5397,'LA CPID Look up'!$A$3:$C$153,2,FALSE)","v":"Wiltshire Unitary Authority"},"South-West England"]
[null,null,null,null,null,null,null,null,null,null,null,null,null,null,132911,"Whiteshill Primary School","2015-11-01","Gloucestershire County Council",{"$f":"VLOOKUP(R5398,'LA CPID Look up'!$A$3:$C$153,2,FALSE)","v":"Gloucestershire County Council"},"South-West England"]
[null,null,null,null,null,null,null,null,null,null,null,null,null,null,131216,"Whitfield Valley Primary School","2015-04-01","Stoke-on-Trent City Council",{"$f":"VLOOKUP(R5399,'LA CPID Look up'!$A$3:$C$153,2,FALSE)","v":"Stoke-on-Trent Unitary Authority"},"West Midlands"]
[null,null,null,null,null,null,null,null,null,null,null,null,null,null,119840,"Whitley Academy","2011-07-01","Coventry City Council",{"$f":"VLOOKUP(R5400,'LA CPID Look up'!$A$3:$C$153,2,FALSE)","v":"Coventry City Council"},"West Midlands"]
[null,null,null,null,null,null,null,null,null,null,null,null,null,null,120192,"Whitstone","2011-08-01","Somerset County Council",{"$f":"VLOOKUP(R5401,'LA CPID Look up'!$A$3:$C$153,2,FALSE)","v":"Somerset County Council"},"South-West England"]
[null,null,null,null,null,null,null,null,null,null,null,null,null,null,123201,"Whittingham Primary Academy","2013-02-01","Waltham Forest London Borough Council",{"$f":"VLOOKUP(R5402,'LA CPID Look up'!$A$3:$C$153,2,FALSE)","v":"Waltham Forest London Borough Council"},"East of England and North-East London"]
[null,null,null,null,null,null,null,null,null,null,null,null,null,null,131197,"Whitton Community Primary School","2015-03-01","Suffolk County Council",{"$f":"VLOOKUP(R5403,'LA CPID Look up'!$A$3:$C$153,2,FALSE)","v":"Suffolk County Council"},"East of England and North-East London"]
[null,null,null,null,null,null,null,null,null,null,null,null,null,null,131225,"Whyteleafe Primary School","2014-12-01","Surrey County Council",{"$f":"VLOOKUP(R5404,'LA CPID Look up'!$A$3:$C$153,2,FALSE)","v":"Surrey County Council"},"South-East England and South London"]
[null,null,null,null,null,null,null,null,null,null,null,null,null,null,131217,"Wickersley Northfield Primary School","2014-11-01","Rotherham Metropolitan Borough Council",{"$f":"VLOOKUP(R5405,'LA CPID Look up'!$A$3:$C$153,2,FALSE)","v":"Rotherham Borough Council"},"East Midlands and the Humber"]
[null,null,null,null,null,null,null,null,null,null,null,null,null,null,129177,"Wickersley School and Sports College","2014-03-01","Rotherham Metropolitan Borough Council",{"$f":"VLOOKUP(R5406,'LA CPID Look up'!$A$3:$C$153,2,FALSE)","v":"Rotherham Borough Council"},"East Midlands and the Humber"]
[null,null,null,null,null,null,null,null,null,null,null,null,null,null,120590,"Wickford Church of England School, The","2011-12-01","Essex County Council",{"$f":"VLOOKUP(R5407,'LA CPID Look up'!$A$3:$C$153,2,FALSE)","v":"Essex County Council"},"East of England and North-East London"]
[null,null,null,null,null,null,null,null,null,null,null,null,null,null,131820,"Wickham Common Primary School","2015-09-01","Bromley London Borough Council",{"$f":"VLOOKUP(R5408,'LA CPID Look up'!$A$3:$C$153,2,FALSE)","v":"Bromley London Borough Council"},"South-East England and South London"]
[null,null,null,null,null,null,null,null,null,null,null,null,null,null,131123,"Wickham Market Community Primary School","2014-11-01","Suffolk County Council",{"$f":"VLOOKUP(R5409,'LA CPID Look up'!$A$3:$C$153,2,FALSE)","v":"Suffolk County Council"},"East of England and North-East London"]
[null,null,null,null,null,null,null,null,null,null,null,null,null,null,131370,"Wicklea Academy","2015-03-01","Bristol City Council",{"$f":"VLOOKUP(R5410,'LA CPID Look up'!$A$3:$C$153,2,FALSE)","v":"Bristol City Council"},"South-West England"]
[null,null,null,null,null,null,null,null,null,null,null,null,null,null,119668,"Widecombe-in-the-Moor Primary School","2011-04-01","Devon County Council",{"$f":"VLOOKUP(R5411,'LA CPID Look up'!$A$3:$C$153,2,FALSE)","v":"Devon County Council"},"South-West England"]
[null,null,null,null,null,null,null,null,null,null,null,null,null,null,122942,"Widewell Primary School","2013-02-01","Plymouth City Council",{"$f":"VLOOKUP(R5412,'LA CPID Look up'!$A$3:$C$153,2,FALSE)","v":"Plymouth City Council"},"South-West England"]
[null,null,null,null,null,null,null,null,null,null,null,null,null,null,131052,"Widnes Academy","2015-02-01","Halton Borough Council",{"$f":"VLOOKUP(R5413,'LA CPID Look up'!$A$3:$C$153,2,FALSE)","v":"Halton Borough Council"},"Lancashire and West Yorkshire"]
[null,null,null,null,null,null,null,null,null,null,null,null,null,null,122059,"Wigan UTC","2013-09-01","Wigan Metropolitan Borough Council",{"$f":"VLOOKUP(R5414,'LA CPID Look up'!$A$3:$C$153,2,FALSE)","v":"Wigan Metropolitan Borough Council"},"Lancashire and West Yorkshire"]
[null,null,null,null,null,null,null,null,null,null,null,null,null,null,119420,"Wigmore Primary School","2011-01-01","Herefordshire Council",{"$f":"VLOOKUP(R5415,'LA CPID Look up'!$A$3:$C$153,2,FALSE)","v":"Herefordshire Council"},"West Midlands"]
[null,null,null,null,null,null,null,null,null,null,null,null,null,null,119421,"Wigmore School","2011-01-01","Herefordshire Council",{"$f":"VLOOKUP(R5416,'LA CPID Look up'!$A$3:$C$153,2,FALSE)","v":"Herefordshire Council"},"West Midlands"]
[null,null,null,null,null,null,null,null,null,null,null,null,null,null,121203,"Wigston Academy","2012-04-01","Leicestershire County Council",{"$f":"VLOOKUP(R5417,'LA CPID Look up'!$A$3:$C$153,2,FALSE)","v":"Leicestershire County Council"},"East Midlands and the Humber"]
[null,null,null,null,null,null,null,null,null,null,null,null,null,null,122105,"Wigston Birkett House Community Special School","2012-11-01","Leicestershire County Council",{"$f":"VLOOKUP(R5418,'LA CPID Look up'!$A$3:$C$153,2,FALSE)","v":"Leicestershire County Council"},"East Midlands and the Humber"]
[null,null,null,null,null,null,null,null,null,null,null,null,null,null,124530,"Wilbarston Church of England Primary School","2013-09-01","Northamptonshire County Council",{"$f":"VLOOKUP(R5419,'LA CPID Look up'!$A$3:$C$153,2,FALSE)","v":"Northamptonshire County Council"},"East of England and North-East London"]
[null,null,null,null,null,null,null,null,null,null,null,null,null,null,123271,"Wilberforce Primary","2013-09-01","Westminster City Council",{"$f":"VLOOKUP(R5420,'LA CPID Look up'!$A$3:$C$153,2,FALSE)","v":"Westminster City Council"},"East of England and North-East London"]
[null,null,null,null,null,null,null,null,null,null,null,null,null,null,120362,"Wilcombe Primary School","2011-11-01","Devon County Council",{"$f":"VLOOKUP(R5421,'LA CPID Look up'!$A$3:$C$153,2,FALSE)","v":"Devon County Council"},"South-West England"]
[null,null,null,null,null,null,null,null,null,null,null,null,null,null,119641,"Wildern School","2011-04-01","Hampshire County Council",{"$f":"VLOOKUP(R5422,'LA CPID Look up'!$A$3:$C$153,2,FALSE)","v":"Hampshire County Council"},"South-East England and South London"]
[null,null,null,null,null,null,null,null,null,null,null,null,null,null,132423,"Willaston Primary Academy","2015-09-01","Cheshire East Council",{"$f":"VLOOKUP(R5423,'LA CPID Look up'!$A$3:$C$153,2,FALSE)","v":"Cheshire East Unitary Authority"},"West Midlands"]
[null,null,null,null,null,null,null,null,null,null,null,null,null,null,120976,"Willenhall E-ACT Academy","2012-01-01","Walsall Metropolitan Borough Council",{"$f":"VLOOKUP(R5424,'LA CPID Look up'!$A$3:$C$153,2,FALSE)","v":"Walsall Metropolitan Borough Council"},"West Midlands"]
[null,null,null,null,null,null,null,null,null,null,null,null,null,null,120637,"William Alvey School","2011-10-01","Lincolnshire County Council",{"$f":"VLOOKUP(R5425,'LA CPID Look up'!$A$3:$C$153,2,FALSE)","v":"Lincolnshire County Council"},"East Midlands and the Humber"]
[null,null,null,null,null,null,null,null,null,null,null,null,null,null,131058,"William Bradford Academy, The","2014-09-01","Leicestershire County Council",{"$f":"VLOOKUP(R5426,'LA CPID Look up'!$A$3:$C$153,2,FALSE)","v":"Leicestershire County Council"},"East Midlands and the Humber"]
[null,null,null,null,null,null,null,null,null,null,null,null,null,null,123181,"William Brookes School","2013-06-01","Shropshire Council",{"$f":"VLOOKUP(R5427,'LA CPID Look up'!$A$3:$C$153,2,FALSE)","v":"Shropshire Unitary Authority"},"West Midlands"]
[null,null,null,null,null,null,null,null,null,null,null,null,null,null,119630,"William de Ferrers School","2011-04-01","Essex County Council",{"$f":"VLOOKUP(R5428,'LA CPID Look up'!$A$3:$C$153,2,FALSE)","v":"Essex County Council"},"East of England and North-East London"]
[null,null,null,null,null,null,null,null,null,null,null,null,null,null,131159,"William De Yaxley Church of England Academy, The","2014-11-01","Cambridgeshire County Council",{"$f":"VLOOKUP(R5429,'LA CPID Look up'!$A$3:$C$153,2,FALSE)","v":"Cambridgeshire County Council"},"East of England and North-East London"]
[null,null,null,null,null,null,null,null,null,null,null,null,null,null,120214,"William Edwards School","2011-08-01","Thurrock Borough Council",{"$f":"VLOOKUP(R5430,'LA CPID Look up'!$A$3:$C$153,2,FALSE)","v":"Thurrock Unitary Authority"},"East of England and North-East London"]
[null,null,null,null,null,null,null,null,null,null,null,null,null,null,119445,"William Farr CofE Comprehensive School","2011-01-01","Lincolnshire County Council",{"$f":"VLOOKUP(R5431,'LA CPID Look up'!$A$3:$C$153,2,FALSE)","v":"Lincolnshire County Council"},"East Midlands and the Humber"]
[null,null,null,null,null,null,null,null,null,null,null,null,null,null,131935,"William Gilbert Endowed Church of England Primary School","2015-03-01","Derbyshire County Council",{"$f":"VLOOKUP(R5432,'LA CPID Look up'!$A$3:$C$153,2,FALSE)","v":"Derbyshire County Council"},"East Midlands and the Humber"]
[null,null,null,null,null,null,null,null,null,null,null,null,null,null,120252,"William Howard School","2011-08-01","Cumbria County Council",{"$f":"VLOOKUP(R5433,'LA CPID Look up'!$A$3:$C$153,2,FALSE)","v":"Cumbria County Council"},"North of England"]
[null,null,null,null,null,null,null,null,null,null,null,null,null,null,118652,"William Hulme's Grammar School","2007-09-01","Manchester City Council",{"$f":"VLOOKUP(R5434,'LA CPID Look up'!$A$3:$C$153,2,FALSE)","v":"Manchester City Council"},"Lancashire and West Yorkshire"]
[null,null,null,null,null,null,null,null,null,null,null,null,null,null,130355,"William Law CE Primary School","2014-06-01","Peterborough City Council",{"$f":"VLOOKUP(R5435,'LA CPID Look up'!$A$3:$C$153,2,FALSE)","v":"Peterborough City Council"},"East of England and North-East London"]
[null,null,null,null,null,null,null,null,null,null,null,null,null,null,121866,"William Lovell Church of England School","2012-09-01","Lincolnshire County Council",{"$f":"VLOOKUP(R5436,'LA CPID Look up'!$A$3:$C$153,2,FALSE)","v":"Lincolnshire County Council"},"East Midlands and the Humber"]
[null,null,null,null,null,null,null,null,null,null,null,null,null,null,133195,"William Morris Primary School","2016-02-01","Oxfordshire County Council",{"$f":"VLOOKUP(R5437,'LA CPID Look up'!$A$3:$C$153,2,FALSE)","v":"Oxfordshire County Council"},"East of England and North-East London"]
[null,null,null,null,null,null,null,null,null,null,null,null,null,null,121996,"William Perkin Church of England High School","2013-09-01","Ealing London Borough Council",{"$f":"VLOOKUP(R5438,'LA CPID Look up'!$A$3:$C$153,2,FALSE)","v":"Ealing London Borough Council"},"South-Central England and North-West London"]
[null,null,null,null,null,null,null,null,null,null,null,null,null,null,120481,"William Tyndale Primary School","2011-10-01","Islington London Borough Council",{"$f":"VLOOKUP(R5439,'LA CPID Look up'!$A$3:$C$153,2,FALSE)","v":"Islington London Borough Council"},"East of England and North-East London"]
[null,null,null,null,null,null,null,null,null,null,null,null,null,null,129540,"Willoughby Road Primary Academy","2014-04-01","North Lincolnshire Council",{"$f":"VLOOKUP(R5440,'LA CPID Look up'!$A$3:$C$153,2,FALSE)","v":"North Lincolnshire Council"},"East Midlands and the Humber"]
[null,null,null,null,null,null,null,null,null,null,null,null,null,null,120698,"Willow Academy - Doncaster","2012-04-01","Doncaster Metropolitan Borough Council",{"$f":"VLOOKUP(R5441,'LA CPID Look up'!$A$3:$C$153,2,FALSE)","v":"Doncaster Metropolitan Borough Council"},"East Midlands and the Humber"]
[null,null,null,null,null,null,null,null,null,null,null,null,null,null,120532,"Willow Bank Primary School","2011-09-01","Bexley London Borough Council",{"$f":"VLOOKUP(R5442,'LA CPID Look up'!$A$3:$C$153,2,FALSE)","v":"Bexley London Borough Council"},"South-East England and South London"]
[null,null,null,null,null,null,null,null,null,null,null,null,null,null,120974,"Willow Brook Primary School Academy","2012-09-01","Waltham Forest London Borough Council",{"$f":"VLOOKUP(R5443,'LA CPID Look up'!$A$3:$C$153,2,FALSE)","v":"Waltham Forest London Borough Council"},"East of England and North-East London"]
[null,null,null,null,null,null,null,null,null,null,null,null,null,null,130921,"Willow Brook Primary School and Nursery","2014-09-01","Essex County Council",{"$f":"VLOOKUP(R5444,'LA CPID Look up'!$A$3:$C$153,2,FALSE)","v":"Essex County Council"},"East of England and North-East London"]
[null,null,null,null,null,null,null,null,null,null,null,null,null,null,122251,"Willow Green Academy","2012-08-01","Wakefield Council",{"$f":"VLOOKUP(R5445,'LA CPID Look up'!$A$3:$C$153,2,FALSE)","v":"Wakefield City Council"},"Lancashire and West Yorkshire"]
[null,null,null,null,null,null,null,null,null,null,null,null,null,null,122871,"Willow Primary School - Slough","2013-02-01","Slough Borough Council",{"$f":"VLOOKUP(R5446,'LA CPID Look up'!$A$3:$C$153,2,FALSE)","v":"Slough Borough Council"},"East of England and North-East London"]
[null,null,null,null,null,null,null,null,null,null,null,null,null,null,124112,"Willowcroft Community School","2013-06-01","Oxfordshire County Council",{"$f":"VLOOKUP(R5447,'LA CPID Look up'!$A$3:$C$153,2,FALSE)","v":"Oxfordshire County Council"},"East of England and North-East London"]
[null,null,null,null,null,null,null,null,null,null,null,null,null,null,130410,"Willowdown Primary Academy","2014-09-01","Somerset County Council",{"$f":"VLOOKUP(R5448,'LA CPID Look up'!$A$3:$C$153,2,FALSE)","v":"Somerset County Council"},"South-West England"]
[null,null,null,null,null,null,null,null,null,null,null,null,null,null,123017,"Willows Primary Academy","2013-05-01","North East Lincolnshire Council",{"$f":"VLOOKUP(R5449,'LA CPID Look up'!$A$3:$C$153,2,FALSE)","v":"North East Lincolnshire Council"},"East Midlands and the Humber"]
[null,null,null,null,null,null,null,null,null,null,null,null,null,null,124303,"Willows Primary School, The - Manchester","2013-04-01","Manchester City Council",{"$f":"VLOOKUP(R5450,'LA CPID Look up'!$A$3:$C$153,2,FALSE)","v":"Manchester City Council"},"Lancashire and West Yorkshire"]
[null,null,null,null,null,null,null,null,null,null,null,null,null,null,120483,"Willows School, The - Hillingdon","2011-11-01","Hillingdon London Borough Council",{"$f":"VLOOKUP(R5451,'LA CPID Look up'!$A$3:$C$153,2,FALSE)","v":"Hillingdon London Borough Council"},"East of England and North-East London"]
[null,null,null,null,null,null,null,null,null,null,null,null,null,null,119330,"Wilmington Academy","2010-09-01","Kent County Council",{"$f":"VLOOKUP(R5452,'LA CPID Look up'!$A$3:$C$153,2,FALSE)","v":"Kent County Council"},"South-East England and South London"]
[null,null,null,null,null,null,null,null,null,null,null,null,null,null,120227,"Wilmington Grammar School for Boys","2011-08-01","Kent County Council",{"$f":"VLOOKUP(R5453,'LA CPID Look up'!$A$3:$C$153,2,FALSE)","v":"Kent County Council"},"South-East England and South London"]
[null,null,null,null,null,null,null,null,null,null,null,null,null,null,120250,"Wilmington Grammar School for Girls","2011-08-01","Kent County Council",{"$f":"VLOOKUP(R5454,'LA CPID Look up'!$A$3:$C$153,2,FALSE)","v":"Kent County Council"},"South-East England and South London"]
[null,null,null,null,null,null,null,null,null,null,null,null,null,null,120620,"Wilmington Primary School","2011-11-01","Kent County Council",{"$f":"VLOOKUP(R5455,'LA CPID Look up'!$A$3:$C$153,2,FALSE)","v":"Kent County Council"},"South-East England and South London"]
[null,null,null,null,null,null,null,null,null,null,null,null,null,null,122943,"Wilnecote High School","2012-11-01","Staffordshire County Council",{"$f":"VLOOKUP(R5456,'LA CPID Look up'!$A$3:$C$153,2,FALSE)","v":"Staffordshire County Council"},"West Midlands"]
[null,null,null,null,null,null,null,null,null,null,null,null,null,null,129588,"Wilshere-Dacre Junior Academy","2014-03-01","Hertfordshire County Council",{"$f":"VLOOKUP(R5457,'LA CPID Look up'!$A$3:$C$153,2,FALSE)","v":"Hertfordshire County Council"},"East of England and North-East London"]
[null,null,null,null,null,null,null,null,null,null,null,null,null,null,121131,"Wilson Stuart School","2012-07-01","Birmingham City Council",{"$f":"VLOOKUP(R5458,'LA CPID Look up'!$A$3:$C$153,2,FALSE)","v":"Birmingham City Council"},"West Midlands"]
[null,null,null,null,null,null,null,null,null,null,null,null,null,null,119535,"Wilson's School","2011-04-01","Sutton London Borough Council",{"$f":"VLOOKUP(R5459,'LA CPID Look up'!$A$3:$C$153,2,FALSE)","v":"Sutton London Borough Council"},"South-East England and South London"]
[null,null,null,null,null,null,null,null,null,null,null,null,null,null,129908,"Winchcombe Abbey Church of England Primary School","2014-04-01","Gloucestershire County Council",{"$f":"VLOOKUP(R5460,'LA CPID Look up'!$A$3:$C$153,2,FALSE)","v":"Gloucestershire County Council"},"South-West England"]
[null,null,null,null,null,null,null,null,null,null,null,null,null,null,119788,"Winchcombe School","2011-06-01","Gloucestershire County Council",{"$f":"VLOOKUP(R5461,'LA CPID Look up'!$A$3:$C$153,2,FALSE)","v":"Gloucestershire County Council"},"South-West England"]
[null,null,null,null,null,null,null,null,null,null,null,null,null,null,129432,"Wincobank Nursery and Infant School","2014-03-01","Sheffield City Council",{"$f":"VLOOKUP(R5462,'LA CPID Look up'!$A$3:$C$153,2,FALSE)","v":"Sheffield City Council"},"East Midlands and the Humber"]
[null,null,null,null,null,null,null,null,null,null,null,null,null,null,122878,"Windale Community Primary School","2013-08-01","Oxfordshire County Council",{"$f":"VLOOKUP(R5463,'LA CPID Look up'!$A$3:$C$153,2,FALSE)","v":"Oxfordshire County Council"},"East of England and North-East London"]
[null,null,null,null,null,null,null,null,null,null,null,null,null,null,131079,"Windhill School","2015-03-01","Hertfordshire County Council",{"$f":"VLOOKUP(R5464,'LA CPID Look up'!$A$3:$C$153,2,FALSE)","v":"Hertfordshire County Council"},"East of England and North-East London"]
[null,null,null,null,null,null,null,null,null,null,null,null,null,null,127710,"Windmill Hill Academy","2014-01-01","Cornwall Council",{"$f":"VLOOKUP(R5465,'LA CPID Look up'!$A$3:$C$153,2,FALSE)","v":"Cornwall Unitary Authority"},"South-West England"]
[null,null,null,null,null,null,null,null,null,null,null,null,null,null,122939,"Windmill LEAD Academy","2013-02-01","Nottingham City Council",{"$f":"VLOOKUP(R5466,'LA CPID Look up'!$A$3:$C$153,2,FALSE)","v":"Nottingham City Council"},"East Midlands and the Humber"]
[null,null,null,null,null,null,null,null,null,null,null,null,null,null,124316,"Windmill Primary School - Wellingborough","2013-05-01","Northamptonshire County Council",{"$f":"VLOOKUP(R5467,'LA CPID Look up'!$A$3:$C$153,2,FALSE)","v":"Northamptonshire County Council"},"East of England and North-East London"]
[null,null,null,null,null,null,null,null,null,null,null,null,null,null,126512,"Windmill Primary School - Wokingham","2013-09-01","Wokingham Borough Council",{"$f":"VLOOKUP(R5468,'LA CPID Look up'!$A$3:$C$153,2,FALSE)","v":"Wokingham Council"},"East of England and North-East London"]
[null,null,null,null,null,null,null,null,null,null,null,null,null,null,132044,"Windsor Boys' School, The","2015-03-01","Royal Borough of Windsor and Maidenhead",{"$f":"VLOOKUP(R5469,'LA CPID Look up'!$A$3:$C$153,2,FALSE)","v":"Windsor and Maidenhead (Royal Borough of)"},"East of England and North-East London"]
[null,null,null,null,null,null,null,null,null,null,null,null,null,null,132046,"Windsor Girls' School","2015-03-01","Royal Borough of Windsor and Maidenhead",{"$f":"VLOOKUP(R5470,'LA CPID Look up'!$A$3:$C$153,2,FALSE)","v":"Windsor and Maidenhead (Royal Borough of)"},"East of England and North-East London"]
[null,null,null,null,null,null,null,null,null,null,null,null,null,null,119532,"Windsor High School and Sixth Form","2011-04-01","Dudley Metropolitan Borough Council",{"$f":"VLOOKUP(R5471,'LA CPID Look up'!$A$3:$C$153,2,FALSE)","v":"Dudley Metropolitan Borough Council"},"West Midlands"]
[null,null,null,null,null,null,null,null,null,null,null,null,null,null,123211,"Wingfield Academy","2013-08-01","Rotherham Metropolitan Borough Council",{"$f":"VLOOKUP(R5472,'LA CPID Look up'!$A$3:$C$153,2,FALSE)","v":"Rotherham Borough Council"},"East Midlands and the Humber"]
[null,null,null,null,null,null,null,null,null,null,null,null,null,null,122047,"Winhills Primary School","2012-07-01","Cambridgeshire County Council",{"$f":"VLOOKUP(R5473,'LA CPID Look up'!$A$3:$C$153,2,FALSE)","v":"Cambridgeshire County Council"},"East of England and North-East London"]
[null,null,null,null,null,null,null,null,null,null,null,null,null,null,122911,"Winifred Holtby Academy","2013-05-01","Hull City Council",{"$f":"VLOOKUP(R5474,'LA CPID Look up'!$A$3:$C$153,2,FALSE)","v":"Kingston upon Hull City Council"},"East Midlands and the Humber"]
[null,null,null,null,null,null,null,null,null,null,null,null,null,null,119336,"Winsford Academy, The","2010-09-01","Cheshire West and Chester Council",{"$f":"VLOOKUP(R5475,'LA CPID Look up'!$A$3:$C$153,2,FALSE)","v":"Cheshire West and Chester Unitary Authority"},"West Midlands"]
[null,null,null,null,null,null,null,null,null,null,null,null,null,null,122148,"Winstanley Community College","2012-08-01","Leicestershire County Council",{"$f":"VLOOKUP(R5476,'LA CPID Look up'!$A$3:$C$153,2,FALSE)","v":"Leicestershire County Council"},"East Midlands and the Humber"]
[null,null,null,null,null,null,null,null,null,null,null,null,null,null,132288,"Winter Gardens Primary Academy","2015-07-01","Essex County Council",{"$f":"VLOOKUP(R5477,'LA CPID Look up'!$A$3:$C$153,2,FALSE)","v":"Essex County Council"},"East of England and North-East London"]
[null,null,null,null,null,null,null,null,null,null,null,null,null,null,127977,"Winterbourne Boys' Academy","2014-04-01","Croydon London Borough Council",{"$f":"VLOOKUP(R5478,'LA CPID Look up'!$A$3:$C$153,2,FALSE)","v":"Croydon London Borough Council"},"South-East England and South London"]
[null,null,null,null,null,null,null,null,null,null,null,null,null,null,119094,"Winterbourne International Academy","2009-09-01","South Gloucestershire Council",{"$f":"VLOOKUP(R5479,'LA CPID Look up'!$A$3:$C$153,2,FALSE)","v":"South Gloucestershire Council"},"South-West England"]
[null,null,null,null,null,null,null,null,null,null,null,null,null,null,130310,"Winterhill School","2016-02-01","Rotherham Metropolitan Borough Council",{"$f":"VLOOKUP(R5480,'LA CPID Look up'!$A$3:$C$153,2,FALSE)","v":"Rotherham Borough Council"},"East Midlands and the Humber"]
[null,null,null,null,null,null,null,null,null,null,null,null,null,null,122560,"Winterton Community Academy","2012-10-01","North Lincolnshire Council",{"$f":"VLOOKUP(R5481,'LA CPID Look up'!$A$3:$C$153,2,FALSE)","v":"North Lincolnshire Council"},"East Midlands and the Humber"]
[null,null,null,null,null,null,null,null,null,null,null,null,null,null,123804,"Winton Arts and Media College","2013-09-01","Bournemouth Borough Council",{"$f":"VLOOKUP(R5482,'LA CPID Look up'!$A$3:$C$153,2,FALSE)","v":"Bournemouth Council"},"South-West England"]
[null,null,null,null,null,null,null,null,null,null,null,null,null,null,121884,"Winton Community Academy","2012-11-01","Hampshire County Council",{"$f":"VLOOKUP(R5483,'LA CPID Look up'!$A$3:$C$153,2,FALSE)","v":"Hampshire County Council"},"South-East England and South London"]
[null,null,null,null,null,null,null,null,null,null,null,null,null,null,132358,"Winton Primary School","2016-02-01","Bournemouth Borough Council",{"$f":"VLOOKUP(R5484,'LA CPID Look up'!$A$3:$C$153,2,FALSE)","v":"Bournemouth Council"},"South-West England"]
[null,null,null,null,null,null,null,null,null,null,null,null,null,null,120371,"Wirral Grammar School for Boys","2011-09-01","Wirral Metropolitan Borough Council",{"$f":"VLOOKUP(R5485,'LA CPID Look up'!$A$3:$C$153,2,FALSE)","v":"Wirral Metropolitan Borough Council"},"Lancashire and West Yorkshire"]
[null,null,null,null,null,null,null,null,null,null,null,null,null,null,120171,"Wirral Grammar School for Girls","2011-08-01","Wirral Metropolitan Borough Council",{"$f":"VLOOKUP(R5486,'LA CPID Look up'!$A$3:$C$153,2,FALSE)","v":"Wirral Metropolitan Borough Council"},"Lancashire and West Yorkshire"]
[null,null,null,null,null,null,null,null,null,null,null,null,null,null,132985,"Wisewood Community Primary School","2015-09-01","Sheffield City Council",{"$f":"VLOOKUP(R5487,'LA CPID Look up'!$A$3:$C$153,2,FALSE)","v":"Sheffield City Council"},"East Midlands and the Humber"]
[null,null,null,null,null,null,null,null,null,null,null,null,null,null,122424,"Wishmore Cross Academy","2012-09-01","Surrey County Council",{"$f":"VLOOKUP(R5488,'LA CPID Look up'!$A$3:$C$153,2,FALSE)","v":"Surrey County Council"},"South-East England and South London"]
[null,null,null,null,null,null,null,null,null,null,null,null,null,null,129605,"Wistaston Academy","2014-03-01","Cheshire East Council",{"$f":"VLOOKUP(R5489,'LA CPID Look up'!$A$3:$C$153,2,FALSE)","v":"Cheshire East Unitary Authority"},"West Midlands"]
[null,null,null,null,null,null,null,null,null,null,null,null,null,null,130712,"Wistaston Church Lane Primary School","2015-01-01","Cheshire East Council",{"$f":"VLOOKUP(R5490,'LA CPID Look up'!$A$3:$C$153,2,FALSE)","v":"Cheshire East Unitary Authority"},"West Midlands"]
[null,null,null,null,null,null,null,null,null,null,null,null,null,null,131459,"Witchampton Church of England Voluntary Aided First School","2015-03-01","Dorset County Council",{"$f":"VLOOKUP(R5491,'LA CPID Look up'!$A$3:$C$153,2,FALSE)","v":"Dorset County Council"},"South-West England"]
[null,null,null,null,null,null,null,null,null,null,null,null,null,null,120655,"Witchford Village College","2011-10-01","Cambridgeshire County Council",{"$f":"VLOOKUP(R5492,'LA CPID Look up'!$A$3:$C$153,2,FALSE)","v":"Cambridgeshire County Council"},"East of England and North-East London"]
[null,null,null,null,null,null,null,null,null,null,null,null,null,null,121856,"Witham St Hughs Academy","2012-04-01","Lincolnshire County Council",{"$f":"VLOOKUP(R5493,'LA CPID Look up'!$A$3:$C$153,2,FALSE)","v":"Lincolnshire County Council"},"East Midlands and the Humber"]
[null,null,null,null,null,null,null,null,null,null,null,null,null,null,131894,"Withernsea Primary School","2015-04-01","East Riding of Yorkshire Council",{"$f":"VLOOKUP(R5494,'LA CPID Look up'!$A$3:$C$153,2,FALSE)","v":"East Riding of Yorkshire Council"},"East Midlands and the Humber"]
[null,null,null,null,null,null,null,null,null,null,null,null,null,null,125008,"Witton Park High School","2014-05-01","Blackburn with Darwen Borough Council",{"$f":"VLOOKUP(R5495,'LA CPID Look up'!$A$3:$C$153,2,FALSE)","v":"Blackburn with Darwen Unitary Authority"},"Lancashire and West Yorkshire"]
[null,null,null,null,null,null,null,null,null,null,null,null,null,null,130561,"WMG Academy for Young Engineers","2014-09-01","Coventry City Council",{"$f":"VLOOKUP(R5496,'LA CPID Look up'!$A$3:$C$153,2,FALSE)","v":"Coventry City Council"},"West Midlands"]
[null,null,null,null,null,null,null,null,null,null,null,null,null,null,122489,"Woden Primary School","2013-04-01","Wolverhampton City Council",{"$f":"VLOOKUP(R5497,'LA CPID Look up'!$A$3:$C$153,2,FALSE)","v":"Wolverhampton City Council"},"West Midlands"]
[null,null,null,null,null,null,null,null,null,null,null,null,null,null,126339,"Wodensborough Ormiston Academy","2013-11-01","Sandwell Metropolitan Borough Council",{"$f":"VLOOKUP(R5498,'LA CPID Look up'!$A$3:$C$153,2,FALSE)","v":"Sandwell Metropolitan Borough Council"},"West Midlands"]
[null,null,null,null,null,null,null,null,null,null,null,null,null,null,124312,"Woking High School","2013-08-01","Surrey County Council",{"$f":"VLOOKUP(R5499,'LA CPID Look up'!$A$3:$C$153,2,FALSE)","v":"Surrey County Council"},"South-East England and South London"]
[null,null,null,null,null,null,null,null,null,null,null,null,null,null,124230,"Wold Academy","2013-10-01","Hull City Council",{"$f":"VLOOKUP(R5500,'LA CPID Look up'!$A$3:$C$153,2,FALSE)","v":"Kingston upon Hull City Council"},"East Midlands and the Humber"]
[null,null,null,null,null,null,null,null,null,null,null,null,null,null,125013,"Wolsey Junior Academy","2013-11-01","Croydon London Borough Council",{"$f":"VLOOKUP(R5501,'LA CPID Look up'!$A$3:$C$153,2,FALSE)","v":"Croydon London Borough Council"},"South-East England and South London"]
[null,null,null,null,null,null,null,null,null,null,null,null,null,null,132298,"Wolstanton High Academy","2015-09-01","Staffordshire County Council",{"$f":"VLOOKUP(R5502,'LA CPID Look up'!$A$3:$C$153,2,FALSE)","v":"Staffordshire County Council"},"West Midlands"]
[null,null,null,null,null,null,null,null,null,null,null,null,null,null,132453,"Wolvercote Primary School","2015-11-01","Oxfordshire County Council",{"$f":"VLOOKUP(R5503,'LA CPID Look up'!$A$3:$C$153,2,FALSE)","v":"Oxfordshire County Council"},"East of England and North-East London"]
[null,null,null,null,null,null,null,null,null,null,null,null,null,null,130336,"Wolverhampton Girls' High School","2014-04-01","Wolverhampton City Council",{"$f":"VLOOKUP(R5504,'LA CPID Look up'!$A$3:$C$153,2,FALSE)","v":"Wolverhampton City Council"},"West Midlands"]
[null,null,null,null,null,null,null,null,null,null,null,null,null,null,132675,"Wolverhampton Vocational Training Centre","2015-09-01","Wolverhampton City Council",{"$f":"VLOOKUP(R5505,'LA CPID Look up'!$A$3:$C$153,2,FALSE)","v":"Wolverhampton City Council"},"West Midlands"]
[null,null,null,null,null,null,null,null,null,null,null,null,null,null,131988,"Wombwell Park Street Primary School Academy","2015-10-01","Barnsley Metropolitan Borough Council",{"$f":"VLOOKUP(R5506,'LA CPID Look up'!$A$3:$C$153,2,FALSE)","v":"Barnsley Metropolitan Borough Council"},"East Midlands and the Humber"]
[null,null,null,null,null,null,null,null,null,null,null,null,null,null,119741,"Wood End Academy - Greenford","2011-05-01","Ealing London Borough Council",{"$f":"VLOOKUP(R5507,'LA CPID Look up'!$A$3:$C$153,2,FALSE)","v":"Ealing London Borough Council"},"South-Central England and North-West London"]
[null,null,null,null,null,null,null,null,null,null,null,null,null,null,122682,"Wood End Park Academy - Hayes","2012-09-01","Hillingdon London Borough Council",{"$f":"VLOOKUP(R5508,'LA CPID Look up'!$A$3:$C$153,2,FALSE)","v":"Hillingdon London Borough Council"},"East of England and North-East London"]
[null,null,null,null,null,null,null,null,null,null,null,null,null,null,124605,"Wood End Primary School - Athlestone","2014-01-01","Warwickshire County Council",{"$f":"VLOOKUP(R5509,'LA CPID Look up'!$A$3:$C$153,2,FALSE)","v":"Warwickshire County Council"},"West Midlands"]
[null,null,null,null,null,null,null,null,null,null,null,null,null,null,119530,"Wood Green Academy","2011-04-01","Sandwell Metropolitan Borough Council",{"$f":"VLOOKUP(R5510,'LA CPID Look up'!$A$3:$C$153,2,FALSE)","v":"Sandwell Metropolitan Borough Council"},"West Midlands"]
[null,null,null,null,null,null,null,null,null,null,null,null,null,null,120318,"Woodbrook Vale School","2011-09-01","Leicestershire County Council",{"$f":"VLOOKUP(R5511,'LA CPID Look up'!$A$3:$C$153,2,FALSE)","v":"Leicestershire County Council"},"East Midlands and the Humber"]
[null,null,null,null,null,null,null,null,null,null,null,null,null,null,120612,"Woodchurch High School","2012-10-01","Wirral Metropolitan Borough Council",{"$f":"VLOOKUP(R5512,'LA CPID Look up'!$A$3:$C$153,2,FALSE)","v":"Wirral Metropolitan Borough Council"},"Lancashire and West Yorkshire"]
[null,null,null,null,null,null,null,null,null,null,null,null,null,null,121951,"Woodcote High School","2012-06-01","Croydon London Borough Council",{"$f":"VLOOKUP(R5513,'LA CPID Look up'!$A$3:$C$153,2,FALSE)","v":"Croydon London Borough Council"},"South-East England and South London"]
[null,null,null,null,null,null,null,null,null,null,null,null,null,null,121936,"Woodfield Academy - Redditch","2012-06-01","Worcestershire County Council",{"$f":"VLOOKUP(R5514,'LA CPID Look up'!$A$3:$C$153,2,FALSE)","v":"Worcestershire County Council"},"West Midlands"]
[null,null,null,null,null,null,null,null,null,null,null,null,null,null,130300,"Woodfield School - Kingsbury","2014-04-01","Brent London Borough Council",{"$f":"VLOOKUP(R5515,'LA CPID Look up'!$A$3:$C$153,2,FALSE)","v":"Brent London Borough Council"},"South-Central England and North-West London"]
[null,null,null,null,null,null,null,null,null,null,null,null,null,null,129886,"Woodford Halse Church of England School","2014-07-01","Northamptonshire County Council",{"$f":"VLOOKUP(R5516,'LA CPID Look up'!$A$3:$C$153,2,FALSE)","v":"Northamptonshire County Council"},"East of England and North-East London"]
[null,null,null,null,null,null,null,null,null,null,null,null,null,null,121107,"Woodford Valley Church of England Aided School","2012-06-01","Wiltshire Council",{"$f":"VLOOKUP(R5517,'LA CPID Look up'!$A$3:$C$153,2,FALSE)","v":"Wiltshire Unitary Authority"},"South-West England"]
[null,null,null,null,null,null,null,null,null,null,null,null,null,null,122575,"Woodham Academy","2012-09-01","Durham County Council",{"$f":"VLOOKUP(R5518,'LA CPID Look up'!$A$3:$C$153,2,FALSE)","v":"County Durham Unitary Authority"},"North of England"]
[null,null,null,null,null,null,null,null,null,null,null,null,null,null,131436,"Woodham Ley Primary School","2015-01-01","Essex County Council",{"$f":"VLOOKUP(R5519,'LA CPID Look up'!$A$3:$C$153,2,FALSE)","v":"Essex County Council"},"East of England and North-East London"]
[null,null,null,null,null,null,null,null,null,null,null,null,null,null,130744,"Woodhouse Academy","2014-07-01","Staffordshire County Council",{"$f":"VLOOKUP(R5520,'LA CPID Look up'!$A$3:$C$153,2,FALSE)","v":"Staffordshire County Council"},"West Midlands"]
[null,null,null,null,null,null,null,null,null,null,null,null,null,null,123256,"Woodhouse Primary Academy","2013-09-01","Birmingham City Council",{"$f":"VLOOKUP(R5521,'LA CPID Look up'!$A$3:$C$153,2,FALSE)","v":"Birmingham City Council"},"West Midlands"]
[null,null,null,null,null,null,null,null,null,null,null,null,null,null,120455,"Woodkirk Academy","2011-09-01","Leeds City Council",{"$f":"VLOOKUP(R5522,'LA CPID Look up'!$A$3:$C$153,2,FALSE)","v":"Leeds City Council"},"Lancashire and West Yorkshire"]
[null,null,null,null,null,null,null,null,null,null,null,null,null,null,119573,"Woodland Middle School Academy","2011-04-01","Central Bedfordshire Council",{"$f":"VLOOKUP(R5523,'LA CPID Look up'!$A$3:$C$153,2,FALSE)","v":"Central Bedfordshire Unitary Authority"},"South-Central England and North-West London"]
[null,null,null,null,null,null,null,null,null,null,null,null,null,null,121104,"Woodland View Primary School","2012-03-01","Northamptonshire County Council",{"$f":"VLOOKUP(R5524,'LA CPID Look up'!$A$3:$C$153,2,FALSE)","v":"Northamptonshire County Council"},"East of England and North-East London"]
[null,null,null,null,null,null,null,null,null,null,null,null,null,null,120165,"Woodlands Academy - Coventry","2011-08-01","Coventry City Council",{"$f":"VLOOKUP(R5525,'LA CPID Look up'!$A$3:$C$153,2,FALSE)","v":"Coventry City Council"},"West Midlands"]
[null,null,null,null,null,null,null,null,null,null,null,null,null,null,122118,"Woodlands Academy of Learning - Willenhall","2012-07-01","Walsall Metropolitan Borough Council",{"$f":"VLOOKUP(R5526,'LA CPID Look up'!$A$3:$C$153,2,FALSE)","v":"Walsall Metropolitan Borough Council"},"West Midlands"]
[null,null,null,null,null,null,null,null,null,null,null,null,null,null,123219,"Woodlands Academy, The - Scarborough","2013-04-01","North Yorkshire County Council",{"$f":"VLOOKUP(R5527,'LA CPID Look up'!$A$3:$C$153,2,FALSE)","v":"North Yorkshire County Council"},"North of England"]
[null,null,null,null,null,null,null,null,null,null,null,null,null,null,124246,"Woodlands Primary Academy - Bradwell","2013-07-01","Norfolk County Council",{"$f":"VLOOKUP(R5528,'LA CPID Look up'!$A$3:$C$153,2,FALSE)","v":"Norfolk County Council"},"East of England and North-East London"]
[null,null,null,null,null,null,null,null,null,null,null,null,null,null,122319,"Woodlands Primary Academy - Leeds","2012-12-01","Leeds City Council",{"$f":"VLOOKUP(R5529,'LA CPID Look up'!$A$3:$C$153,2,FALSE)","v":"Leeds City Council"},"Lancashire and West Yorkshire"]
[null,null,null,null,null,null,null,null,null,null,null,null,null,null,133082,"Woodlands Primary School - Grimsby","2016-01-01","North East Lincolnshire Council",{"$f":"VLOOKUP(R5530,'LA CPID Look up'!$A$3:$C$153,2,FALSE)","v":"North East Lincolnshire Council"},"East Midlands and the Humber"]
[null,null,null,null,null,null,null,null,null,null,null,null,null,null,123042,"Woodlands Primary School - Medway","2013-04-01","Medway Council",{"$f":"VLOOKUP(R5531,'LA CPID Look up'!$A$3:$C$153,2,FALSE)","v":"Medway Towns Unitary Authority (The)"},"South-East England and South London"]
[null,null,null,null,null,null,null,null,null,null,null,null,null,null,121014,"Woodlands School - Allestree","2012-03-01","Derby City Council",{"$f":"VLOOKUP(R5532,'LA CPID Look up'!$A$3:$C$153,2,FALSE)","v":"Derby City Council"},"East Midlands and the Humber"]
[null,null,null,null,null,null,null,null,null,null,null,null,null,null,130948,"Woodlands School - Basildon","2015-04-01","Essex County Council",{"$f":"VLOOKUP(R5533,'LA CPID Look up'!$A$3:$C$153,2,FALSE)","v":"Essex County Council"},"East of England and North-East London"]
[null,null,null,null,null,null,null,null,null,null,null,null,null,null,132007,"Woodloes Primary School","2015-03-01","Warwickshire County Council",{"$f":"VLOOKUP(R5534,'LA CPID Look up'!$A$3:$C$153,2,FALSE)","v":"Warwickshire County Council"},"West Midlands"]
[null,null,null,null,null,null,null,null,null,null,null,null,null,null,121108,"Woodnewton","2012-06-01","Northamptonshire County Council",{"$f":"VLOOKUP(R5535,'LA CPID Look up'!$A$3:$C$153,2,FALSE)","v":"Northamptonshire County Council"},"East of England and North-East London"]
[null,null,null,null,null,null,null,null,null,null,null,null,null,null,120552,"Woodpecker Hall Primary Academy","2011-09-01","Enfield London Borough Council",{"$f":"VLOOKUP(R5536,'LA CPID Look up'!$A$3:$C$153,2,FALSE)","v":"Enfield London Borough Council"},"South-Central England and North-West London"]
[null,null,null,null,null,null,null,null,null,null,null,null,null,null,119904,"Woodrush Community High School","2011-07-01","Worcestershire County Council",{"$f":"VLOOKUP(R5537,'LA CPID Look up'!$A$3:$C$153,2,FALSE)","v":"Worcestershire County Council"},"West Midlands"]
[null,null,null,null,null,null,null,null,null,null,null,null,null,null,131550,"Woodseaves CoE Primary Academy","2015-04-01","Staffordshire County Council",{"$f":"VLOOKUP(R5538,'LA CPID Look up'!$A$3:$C$153,2,FALSE)","v":"Staffordshire County Council"},"West Midlands"]
[null,null,null,null,null,null,null,null,null,null,null,null,null,null,121178,"Woodside Academy","2012-12-01","Bradford Metropolitan District Council",{"$f":"VLOOKUP(R5539,'LA CPID Look up'!$A$3:$C$153,2,FALSE)","v":"Bradford City Council"},"Lancashire and West Yorkshire"]
[null,null,null,null,null,null,null,null,null,null,null,null,null,null,122592,"Woodside Academy - Grays","2012-12-01","Thurrock Borough Council",{"$f":"VLOOKUP(R5540,'LA CPID Look up'!$A$3:$C$153,2,FALSE)","v":"Thurrock Unitary Authority"},"East of England and North-East London"]
[null,null,null,null,null,null,null,null,null,null,null,null,null,null,123242,"Woodside CofE Controlled Primary School","2013-09-01","Warwickshire County Council",{"$f":"VLOOKUP(R5541,'LA CPID Look up'!$A$3:$C$153,2,FALSE)","v":"Warwickshire County Council"},"West Midlands"]
[null,null,null,null,null,null,null,null,null,null,null,null,null,null,120694,"Woodside High School - Haringey","2011-12-01","Haringey London Borough Council",{"$f":"VLOOKUP(R5542,'LA CPID Look up'!$A$3:$C$153,2,FALSE)","v":"Haringey London Borough Council"},"East of England and North-East London"]
[null,null,null,null,null,null,null,null,null,null,null,null,null,null,122843,"Woodside Primary Academy, The","2012-12-01","Waltham Forest London Borough Council",{"$f":"VLOOKUP(R5543,'LA CPID Look up'!$A$3:$C$153,2,FALSE)","v":"Waltham Forest London Borough Council"},"East of England and North-East London"]
[null,null,null,null,null,null,null,null,null,null,null,null,null,null,122397,"Woodside Primary School - Oswestry","2013-05-01","Shropshire Council",{"$f":"VLOOKUP(R5544,'LA CPID Look up'!$A$3:$C$153,2,FALSE)","v":"Shropshire Unitary Authority"},"West Midlands"]
[null,null,null,null,null,null,null,null,null,null,null,null,null,null,123094,"Woodvale Primary Academy","2013-02-01","Northamptonshire County Council",{"$f":"VLOOKUP(R5545,'LA CPID Look up'!$A$3:$C$153,2,FALSE)","v":"Northamptonshire County Council"},"East of England and North-East London"]
[null,null,null,null,null,null,null,null,null,null,null,null,null,null,124753,"Woodville Primary School","2013-12-01","Essex County Council",{"$f":"VLOOKUP(R5546,'LA CPID Look up'!$A$3:$C$153,2,FALSE)","v":"Essex County Council"},"East of England and North-East London"]
[null,null,null,null,null,null,null,null,null,null,null,null,null,null,122420,"Woodwater Academy, The","2013-01-01","Devon County Council",{"$f":"VLOOKUP(R5547,'LA CPID Look up'!$A$3:$C$153,2,FALSE)","v":"Devon County Council"},"South-West England"]
[null,null,null,null,null,null,null,null,null,null,null,null,null,null,127647,"Woolavington Village Primary School","2014-01-01","Somerset County Council",{"$f":"VLOOKUP(R5548,'LA CPID Look up'!$A$3:$C$153,2,FALSE)","v":"Somerset County Council"},"South-West England"]
[null,null,null,null,null,null,null,null,null,null,null,null,null,null,130624,"Woolden Hill Primary School","2014-06-01","Leicestershire County Council",{"$f":"VLOOKUP(R5549,'LA CPID Look up'!$A$3:$C$153,2,FALSE)","v":"Leicestershire County Council"},"East Midlands and the Humber"]
[null,null,null,null,null,null,null,null,null,null,null,null,null,null,121841,"Woolgrove School","2012-04-01","Hertfordshire County Council",{"$f":"VLOOKUP(R5550,'LA CPID Look up'!$A$3:$C$153,2,FALSE)","v":"Hertfordshire County Council"},"East of England and North-East London"]
[null,null,null,null,null,null,null,null,null,null,null,null,null,null,120314,"Woolmer Hill School","2011-08-17","Surrey County Council",{"$f":"VLOOKUP(R5551,'LA CPID Look up'!$A$3:$C$153,2,FALSE)","v":"Surrey County Council"},"South-East England and South London"]
[null,null,null,null,null,null,null,null,null,null,null,null,null,null,132431,"Woolpit Community Primary School","2016-01-01","Suffolk County Council",{"$f":"VLOOKUP(R5552,'LA CPID Look up'!$A$3:$C$153,2,FALSE)","v":"Suffolk County Council"},"East of England and North-East London"]
[null,null,null,null,null,null,null,null,null,null,null,null,null,null,130350,"Woolwich Polytechnic School","2014-08-01","Greenwich London Borough Council",{"$f":"VLOOKUP(R5553,'LA CPID Look up'!$A$3:$C$153,2,FALSE)","v":"Greenwich London Borough Council"},"South-East England and South London"]
[null,null,null,null,null,null,null,null,null,null,null,null,null,null,122266,"Wootton Primary School","2012-10-01","Northamptonshire County Council",{"$f":"VLOOKUP(R5554,'LA CPID Look up'!$A$3:$C$153,2,FALSE)","v":"Northamptonshire County Council"},"East of England and North-East London"]
[null,null,null,null,null,null,null,null,null,null,null,null,null,null,120406,"Wootton Upper School","2011-10-01","Bedford Borough Council",{"$f":"VLOOKUP(R5555,'LA CPID Look up'!$A$3:$C$153,2,FALSE)","v":"Bedford Unitary Authority"},"South-Central England and North-West London"]
[null,null,null,null,null,null,null,null,null,null,null,null,null,null,130852,"Wordsworth Primary School","2014-10-01","Southampton City Council",{"$f":"VLOOKUP(R5556,'LA CPID Look up'!$A$3:$C$153,2,FALSE)","v":"Southampton City Council"},"South-East England and South London"]
[null,null,null,null,null,null,null,null,null,null,null,null,null,null,131866,"Workington Academy, The","2015-09-01","Cumbria County Council",{"$f":"VLOOKUP(R5557,'LA CPID Look up'!$A$3:$C$153,2,FALSE)","v":"Cumbria County Council"},"North of England"]
[null,null,null,null,null,null,null,null,null,null,null,null,null,null,122741,"Worlaby Academy","2012-08-01","North Lincolnshire Council",{"$f":"VLOOKUP(R5558,'LA CPID Look up'!$A$3:$C$153,2,FALSE)","v":"North Lincolnshire Council"},"East Midlands and the Humber"]
[null,null,null,null,null,null,null,null,null,null,null,null,null,null,131165,"Wormegay Church of England Primary School","2014-10-01","Norfolk County Council",{"$f":"VLOOKUP(R5559,'LA CPID Look up'!$A$3:$C$153,2,FALSE)","v":"Norfolk County Council"},"East of England and North-East London"]
[null,null,null,null,null,null,null,null,null,null,null,null,null,null,133192,"Worsley Bridge Primary School","2016-01-01","Bromley London Borough Council",{"$f":"VLOOKUP(R5560,'LA CPID Look up'!$A$3:$C$153,2,FALSE)","v":"Bromley London Borough Council"},"South-East England and South London"]
[null,null,null,null,null,null,null,null,null,null,null,null,null,null,123814,"Worth Primary School","2013-04-01","Cheshire East Council",{"$f":"VLOOKUP(R5561,'LA CPID Look up'!$A$3:$C$153,2,FALSE)","v":"Cheshire East Unitary Authority"},"West Midlands"]
[null,null,null,null,null,null,null,null,null,null,null,null,null,null,122970,"Worthing High School","2012-12-01","West Sussex County Council",{"$f":"VLOOKUP(R5562,'LA CPID Look up'!$A$3:$C$153,2,FALSE)","v":"West Sussex County Council"},"South-East England and South London"]
[null,null,null,null,null,null,null,null,null,null,null,null,null,null,113696,"Wreake Valley Academy","2012-04-01","Leicestershire County Council",{"$f":"VLOOKUP(R5563,'LA CPID Look up'!$A$3:$C$153,2,FALSE)","v":"Leicestershire County Council"},"East Midlands and the Humber"]
[null,null,null,null,null,null,null,null,null,null,null,null,null,null,118676,"Wren Academy - North Finchley","2008-09-01","Barnet London Borough Council",{"$f":"VLOOKUP(R5564,'LA CPID Look up'!$A$3:$C$153,2,FALSE)","v":"Barnet London Borough Council"},"South-Central England and North-West London"]
[null,null,null,null,null,null,null,null,null,null,null,null,null,null,132662,"WREN School, The","2015-09-01","Reading Borough Council",{"$f":"VLOOKUP(R5565,'LA CPID Look up'!$A$3:$C$153,2,FALSE)","v":"Reading Borough Council"},"East of England and North-East London"]
[null,null,null,null,null,null,null,null,null,null,null,null,null,null,124748,"Wrenn School - Wellingborough","2013-09-01","Northamptonshire County Council",{"$f":"VLOOKUP(R5566,'LA CPID Look up'!$A$3:$C$153,2,FALSE)","v":"Northamptonshire County Council"},"East of England and North-East London"]
[null,null,null,null,null,null,null,null,null,null,null,null,null,null,120633,"Writhlington School","2011-10-01","Bath & North East Somerset Council",{"$f":"VLOOKUP(R5567,'LA CPID Look up'!$A$3:$C$153,2,FALSE)","v":"Bath & North East Somerset Council"},"South-West England"]
[null,null,null,null,null,null,null,null,null,null,null,null,null,null,123881,"Wrockwardine Wood Arts Academy","2013-04-01","Telford and Wrekin Council",{"$f":"VLOOKUP(R5568,'LA CPID Look up'!$A$3:$C$153,2,FALSE)","v":"Telford and Wrekin (Borough of)"},"West Midlands"]
[null,null,null,null,null,null,null,null,null,null,null,null,null,null,120709,"Wrotham School","2013-04-01","Kent County Council",{"$f":"VLOOKUP(R5569,'LA CPID Look up'!$A$3:$C$153,2,FALSE)","v":"Kent County Council"},"South-East England and South London"]
[null,null,null,null,null,null,null,null,null,null,null,null,null,null,121916,"Wroxham School, The","2012-06-01","Hertfordshire County Council",{"$f":"VLOOKUP(R5570,'LA CPID Look up'!$A$3:$C$153,2,FALSE)","v":"Hertfordshire County Council"},"East of England and North-East London"]
[null,null,null,null,null,null,null,null,null,null,null,null,null,null,122428,"Wybers Wood Academy","2012-12-01","North East Lincolnshire Council",{"$f":"VLOOKUP(R5571,'LA CPID Look up'!$A$3:$C$153,2,FALSE)","v":"North East Lincolnshire Council"},"East Midlands and the Humber"]
[null,null,null,null,null,null,null,null,null,null,null,null,null,null,132280,"Wychall Primary School","2015-10-01","Birmingham City Council",{"$f":"VLOOKUP(R5572,'LA CPID Look up'!$A$3:$C$153,2,FALSE)","v":"Birmingham City Council"},"West Midlands"]
[null,null,null,null,null,null,null,null,null,null,null,null,null,null,119742,"Wycombe High School","2011-05-01","Buckinghamshire County Council",{"$f":"VLOOKUP(R5573,'LA CPID Look up'!$A$3:$C$153,2,FALSE)","v":"Buckinghamshire County Council"},"South-Central England and North-West London"]
[null,null,null,null,null,null,null,null,null,null,null,null,null,null,123373,"Wye School","2013-09-01","Kent County Council",{"$f":"VLOOKUP(R5574,'LA CPID Look up'!$A$3:$C$153,2,FALSE)","v":"Kent County Council"},"South-East England and South London"]
[null,null,null,null,null,null,null,null,null,null,null,null,null,null,120415,"Wyedean School and 6th Form Centre","2011-09-01","Gloucestershire County Council",{"$f":"VLOOKUP(R5575,'LA CPID Look up'!$A$3:$C$153,2,FALSE)","v":"Gloucestershire County Council"},"South-West England"]
[null,null,null,null,null,null,null,null,null,null,null,null,null,null,130420,"Wygate Park Academy","2014-09-01","Lincolnshire County Council",{"$f":"VLOOKUP(R5576,'LA CPID Look up'!$A$3:$C$153,2,FALSE)","v":"Lincolnshire County Council"},"East Midlands and the Humber"]
[null,null,null,null,null,null,null,null,null,null,null,null,null,null,119481,"Wymondham College","2011-02-01","Norfolk County Council",{"$f":"VLOOKUP(R5577,'LA CPID Look up'!$A$3:$C$153,2,FALSE)","v":"Norfolk County Council"},"East of England and North-East London"]
[null,null,null,null,null,null,null,null,null,null,null,null,null,null,120342,"Wymondham High School","2011-09-01","Norfolk County Council",{"$f":"VLOOKUP(R5578,'LA CPID Look up'!$A$3:$C$153,2,FALSE)","v":"Norfolk County Council"},"East of England and North-East London"]
[null,null,null,null,null,null,null,null,null,null,null,null,null,null,131218,"Wyndcliffe Primary School","2015-03-01","Birmingham City Council",{"$f":"VLOOKUP(R5579,'LA CPID Look up'!$A$3:$C$153,2,FALSE)","v":"Birmingham City Council"},"West Midlands"]
[null,null,null,null,null,null,null,null,null,null,null,null,null,null,131207,"Wyndham Park Infants' School","2015-01-01","Wiltshire Council",{"$f":"VLOOKUP(R5580,'LA CPID Look up'!$A$3:$C$153,2,FALSE)","v":"Wiltshire Unitary Authority"},"South-West England"]
[null,null,null,null,null,null,null,null,null,null,null,null,null,null,120997,"Wyndham Primary Academy","2012-09-01","Derby City Council",{"$f":"VLOOKUP(R5581,'LA CPID Look up'!$A$3:$C$153,2,FALSE)","v":"Derby City Council"},"East Midlands and the Humber"]
[null,null,null,null,null,null,null,null,null,null,null,null,null,null,132670,"Wynyard Church of England Primary School","2015-09-01","Stockton-on-Tees Borough Council",{"$f":"VLOOKUP(R5582,'LA CPID Look up'!$A$3:$C$153,2,FALSE)","v":"Stockton-on-Tees Borough Council"},"North of England"]
[null,null,null,null,null,null,null,null,null,null,null,null,null,null,122578,"Wyvern Academy","2012-09-01","Dorset County Council",{"$f":"VLOOKUP(R5583,'LA CPID Look up'!$A$3:$C$153,2,FALSE)","v":"Dorset County Council"},"South-West England"]
[null,null,null,null,null,null,null,null,null,null,null,null,null,null,121161,"Wyvern College","2012-06-01","Hampshire County Council",{"$f":"VLOOKUP(R5584,'LA CPID Look up'!$A$3:$C$153,2,FALSE)","v":"Hampshire County Council"},"South-East England and South London"]
[null,null,null,null,null,null,null,null,null,null,null,null,null,null,130558,"XP School (Doncaster)","2014-09-01","Doncaster Metropolitan Borough Council",{"$f":"VLOOKUP(R5585,'LA CPID Look up'!$A$3:$C$153,2,FALSE)","v":"Doncaster Metropolitan Borough Council"},"East Midlands and the Humber"]
[null,null,null,null,null,null,null,null,null,null,null,null,null,null,131086,"Yanwath Primary School","2015-03-01","Cumbria County Council",{"$f":"VLOOKUP(R5586,'LA CPID Look up'!$A$3:$C$153,2,FALSE)","v":"Cumbria County Council"},"North of England"]
[null,null,null,null,null,null,null,null,null,null,null,null,null,null,121901,"Yarborough Academy","2012-08-01","North East Lincolnshire Council",{"$f":"VLOOKUP(R5587,'LA CPID Look up'!$A$3:$C$153,2,FALSE)","v":"North East Lincolnshire Council"},"East Midlands and the Humber"]
[null,null,null,null,null,null,null,null,null,null,null,null,null,null,119390,"Yardley Primary School - Waltham Forrest","2011-01-01","Waltham Forest London Borough Council",{"$f":"VLOOKUP(R5588,'LA CPID Look up'!$A$3:$C$153,2,FALSE)","v":"Waltham Forest London Borough Council"},"East of England and North-East London"]
[null,null,null,null,null,null,null,null,null,null,null,null,null,null,123056,"Yardleys School - Birmingham","2013-08-01","Birmingham City Council",{"$f":"VLOOKUP(R5589,'LA CPID Look up'!$A$3:$C$153,2,FALSE)","v":"Birmingham City Council"},"West Midlands"]
[null,null,null,null,null,null,null,null,null,null,null,null,null,null,132022,"Yarlside Academy","2015-09-01","Cumbria County Council",{"$f":"VLOOKUP(R5590,'LA CPID Look up'!$A$3:$C$153,2,FALSE)","v":"Cumbria County Council"},"North of England"]
[null,null,null,null,null,null,null,null,null,null,null,null,null,null,129569,"Yarm Primary School","2014-02-01","Stockton-on-Tees Borough Council",{"$f":"VLOOKUP(R5591,'LA CPID Look up'!$A$3:$C$153,2,FALSE)","v":"Stockton-on-Tees Borough Council"},"North of England"]
[null,null,null,null,null,null,null,null,null,null,null,null,null,null,122947,"Yarnfield Primary School","2013-07-01","Birmingham City Council",{"$f":"VLOOKUP(R5592,'LA CPID Look up'!$A$3:$C$153,2,FALSE)","v":"Birmingham City Council"},"West Midlands"]
[null,null,null,null,null,null,null,null,null,null,null,null,null,null,119093,"Yate International Academy","2009-09-01","South Gloucestershire Council",{"$f":"VLOOKUP(R5593,'LA CPID Look up'!$A$3:$C$153,2,FALSE)","v":"South Gloucestershire Council"},"South-West England"]
[null,null,null,null,null,null,null,null,null,null,null,null,null,null,119906,"Yavneh College","2011-07-01","Hertfordshire County Council",{"$f":"VLOOKUP(R5594,'LA CPID Look up'!$A$3:$C$153,2,FALSE)","v":"Hertfordshire County Council"},"East of England and North-East London"]
[null,null,null,null,null,null,null,null,null,null,null,null,null,null,119654,"Yealmpton Primary School","2011-04-01","Devon County Council",{"$f":"VLOOKUP(R5595,'LA CPID Look up'!$A$3:$C$153,2,FALSE)","v":"Devon County Council"},"South-West England"]
[null,null,null,null,null,null,null,null,null,null,null,null,null,null,131372,"Yeo Moor Primary School","2015-01-01","North Somerset District Council",{"$f":"VLOOKUP(R5596,'LA CPID Look up'!$A$3:$C$153,2,FALSE)","v":"North Somerset Council"},"South-West England"]
[null,null,null,null,null,null,null,null,null,null,null,null,null,null,119578,"Yesoiday Hatorah School","2011-04-01","Bury Metropolitan Borough Council",{"$f":"VLOOKUP(R5597,'LA CPID Look up'!$A$3:$C$153,2,FALSE)","v":"Bury Metropolitan Borough Council"},"Lancashire and West Yorkshire"]
[null,null,null,null,null,null,null,null,null,null,null,null,null,null,132368,"Yewdale School","2015-09-01","Cumbria County Council",{"$f":"VLOOKUP(R5598,'LA CPID Look up'!$A$3:$C$153,2,FALSE)","v":"Cumbria County Council"},"North of England"]
[null,null,null,null,null,null,null,null,null,null,null,null,null,null,120453,"Yewlands Academy","2011-09-01","Sheffield City Council",{"$f":"VLOOKUP(R5599,'LA CPID Look up'!$A$3:$C$153,2,FALSE)","v":"Sheffield City Council"},"East Midlands and the Humber"]
[null,null,null,null,null,null,null,null,null,null,null,null,null,null,120980,"York Road Junior Academy","2012-04-01","Kent County Council",{"$f":"VLOOKUP(R5600,'LA CPID Look up'!$A$3:$C$153,2,FALSE)","v":"Kent County Council"},"South-East England and South London"]
[null,null,null,null,null,null,null,null,null,null,null,null,null,null,131405,"Young People's Academy, The","2015-04-01","Hillingdon London Borough Council",{"$f":"VLOOKUP(R5601,'LA CPID Look up'!$A$3:$C$153,2,FALSE)","v":"Hillingdon London Borough Council"},"East of England and North-East London"]
[null,null,null,null,null,null,null,null,null,null,null,null,null,null,131089,"Young People's Education Centre","2014-10-01","North Lincolnshire Council",{"$f":"VLOOKUP(R5602,'LA CPID Look up'!$A$3:$C$153,2,FALSE)","v":"North Lincolnshire Council"},"East Midlands and the Humber"]
[null,null,null,null,null,null,null,null,null,null,null,null,null,null,129864,"Zouch Academy","2014-04-01","Wiltshire Council",{"$f":"VLOOKUP(R5603,'LA CPID Look up'!$A$3:$C$153,2,FALSE)","v":"Wiltshire Unitary Authority"},"South-West England"]
[null,null,null,null,null,null,null,null,null,null,null,null,null,null,"Pre-opening","Assets held for academy not yet open","Pre-opening","Pre-opening",null,"Pre-opening"]
[null,null,null,null,null,null,null,null,null,null,null,null,null,null,999999,"Coketown Academy","2011-04-01","South East ",null,"Kent"]

{"sheet":"NumData","index":12,"n_rows":3074,"n_cols":6,"rows_kept":3074,"cut":false,"hidden":true,"merged":[]}
["Academy ID 1","Academy ID 2","Academy Name 2","Sheet Name","Cell ID","Value"]
[{"$f":"'Standing Data'!$D$12","v":{"$error":"#N/A"}},{"$f":"'Standing Data'!$F$9","v":0},{"$f":"'Standing Data'!#REF!","v":{"$error":"#REF!"}},"Fin.Return","E18",{"$f":"'Fin.Return - SOFA'!E19","v":0}]
[{"$f":"'Standing Data'!$D$12","v":{"$error":"#N/A"}},{"$f":"'Standing Data'!$F$9","v":0},{"$f":"'Standing Data'!#REF!","v":{"$error":"#REF!"}},"Fin.Return","E19",{"$f":"'Fin.Return - SOFA'!E20","v":0}]
[{"$f":"'Standing Data'!$D$12","v":{"$error":"#N/A"}},{"$f":"'Standing Data'!$F$9","v":0},{"$f":"'Standing Data'!#REF!","v":{"$error":"#REF!"}},"Fin.Return","E20",{"$f":"'Fin.Return - SOFA'!E22","v":0}]
[{"$f":"'Standing Data'!$D$12","v":{"$error":"#N/A"}},{"$f":"'Standing Data'!$F$9","v":0},{"$f":"'Standing Data'!#REF!","v":{"$error":"#REF!"}},"Fin.Return","E21",{"$f":"'Fin.Return - SOFA'!E23","v":0}]
[{"$f":"'Standing Data'!$D$12","v":{"$error":"#N/A"}},{"$f":"'Standing Data'!$F$9","v":0},{"$f":"'Standing Data'!#REF!","v":{"$error":"#REF!"}},"Fin.Return","E23",{"$f":"'Fin.Return - SOFA'!E25","v":0}]
[{"$f":"'Standing Data'!$D$12","v":{"$error":"#N/A"}},{"$f":"'Standing Data'!$F$9","v":0},{"$f":"'Standing Data'!#REF!","v":{"$error":"#REF!"}},"Fin.Return","E24",{"$f":"'Fin.Return - SOFA'!E26","v":0}]
[{"$f":"'Standing Data'!$D$12","v":{"$error":"#N/A"}},{"$f":"'Standing Data'!$F$9","v":0},{"$f":"'Standing Data'!#REF!","v":{"$error":"#REF!"}},"Fin.Return","E26",{"$f":"'Fin.Return - SOFA'!E28","v":0}]
[{"$f":"'Standing Data'!$D$12","v":{"$error":"#N/A"}},{"$f":"'Standing Data'!$F$9","v":0},{"$f":"'Standing Data'!#REF!","v":{"$error":"#REF!"}},"Fin.Return","E29",{"$f":"'Fin.Return - SOFA'!E31","v":0}]
[{"$f":"'Standing Data'!$D$12","v":{"$error":"#N/A"}},{"$f":"'Standing Data'!$F$9","v":0},{"$f":"'Standing Data'!#REF!","v":{"$error":"#REF!"}},"Fin.Return","E30",{"$f":"'Fin.Return - SOFA'!#REF!","v":{"$error":"#REF!"}}]
[{"$f":"'Standing Data'!$D$12","v":{"$error":"#N/A"}},{"$f":"'Standing Data'!$F$9","v":0},{"$f":"'Standing Data'!#REF!","v":{"$error":"#REF!"}},"Fin.Return","E31",{"$f":"'Fin.Return - SOFA'!E33","v":0}]
[{"$f":"'Standing Data'!$D$12","v":{"$error":"#N/A"}},{"$f":"'Standing Data'!$F$9","v":0},{"$f":"'Standing Data'!#REF!","v":{"$error":"#REF!"}},"Fin.Return","E33",{"$f":"'Fin.Return - SOFA'!E35","v":0}]
[{"$f":"'Standing Data'!$D$12","v":{"$error":"#N/A"}},{"$f":"'Standing Data'!$F$9","v":0},{"$f":"'Standing Data'!#REF!","v":{"$error":"#REF!"}},"Fin.Return","E34",{"$f":"'Fin.Return - SOFA'!E36","v":0}]
[{"$f":"'Standing Data'!$D$12","v":{"$error":"#N/A"}},{"$f":"'Standing Data'!$F$9","v":0},{"$f":"'Standing Data'!#REF!","v":{"$error":"#REF!"}},"Fin.Return","E35",{"$f":"'Fin.Return - SOFA'!E37","v":0}]
[{"$f":"'Standing Data'!$D$12","v":{"$error":"#N/A"}},{"$f":"'Standing Data'!$F$9","v":0},{"$f":"'Standing Data'!#REF!","v":{"$error":"#REF!"}},"Fin.Return","E37",{"$f":"'Fin.Return - SOFA'!E39","v":0}]
[{"$f":"'Standing Data'!$D$12","v":{"$error":"#N/A"}},{"$f":"'Standing Data'!$F$9","v":0},{"$f":"'Standing Data'!#REF!","v":{"$error":"#REF!"}},"Fin.Return","E38",{"$f":"'Fin.Return - SOFA'!E40","v":0}]
[{"$f":"'Standing Data'!$D$12","v":{"$error":"#N/A"}},{"$f":"'Standing Data'!$F$9","v":0},{"$f":"'Standing Data'!#REF!","v":{"$error":"#REF!"}},"Fin.Return","E39",{"$f":"'Fin.Return - SOFA'!E41","v":0}]
[{"$f":"'Standing Data'!$D$12","v":{"$error":"#N/A"}},{"$f":"'Standing Data'!$F$9","v":0},{"$f":"'Standing Data'!#REF!","v":{"$error":"#REF!"}},"Fin.Return","E41",{"$f":"'Fin.Return - SOFA'!E43","v":0}]
[{"$f":"'Standing Data'!$D$12","v":{"$error":"#N/A"}},{"$f":"'Standing Data'!$F$9","v":0},{"$f":"'Standing Data'!#REF!","v":{"$error":"#REF!"}},"Fin.Return","E43",{"$f":"'Fin.Return - SOFA'!E45","v":0}]
[{"$f":"'Standing Data'!$D$12","v":{"$error":"#N/A"}},{"$f":"'Standing Data'!$F$9","v":0},{"$f":"'Standing Data'!#REF!","v":{"$error":"#REF!"}},"Fin.Return","E44",{"$f":"'Fin.Return - SOFA'!E46","v":0}]
[{"$f":"'Standing Data'!$D$12","v":{"$error":"#N/A"}},{"$f":"'Standing Data'!$F$9","v":0},{"$f":"'Standing Data'!#REF!","v":{"$error":"#REF!"}},"Fin.Return","E45",{"$f":"'Fin.Return - SOFA'!E47","v":0}]
[{"$f":"'Standing Data'!$D$12","v":{"$error":"#N/A"}},{"$f":"'Standing Data'!$F$9","v":0},{"$f":"'Standing Data'!#REF!","v":{"$error":"#REF!"}},"Fin.Return","E46",{"$f":"'Fin.Return - SOFA'!E48","v":0}]
[{"$f":"'Standing Data'!$D$12","v":{"$error":"#N/A"}},{"$f":"'Standing Data'!$F$9","v":0},{"$f":"'Standing Data'!#REF!","v":{"$error":"#REF!"}},"Fin.Return","E48",{"$f":"'Fin.Return - SOFA'!E50","v":0}]
[{"$f":"'Standing Data'!$D$12","v":{"$error":"#N/A"}},{"$f":"'Standing Data'!$F$9","v":0},{"$f":"'Standing Data'!#REF!","v":{"$error":"#REF!"}},"Fin.Return","E50",{"$f":"'Fin.Return - SOFA'!E52","v":0}]
[{"$f":"'Standing Data'!$D$12","v":{"$error":"#N/A"}},{"$f":"'Standing Data'!$F$9","v":0},{"$f":"'Standing Data'!#REF!","v":{"$error":"#REF!"}},"Fin.Return","E51",{"$f":"'Fin.Return - SOFA'!E53","v":0}]
[{"$f":"'Standing Data'!$D$12","v":{"$error":"#N/A"}},{"$f":"'Standing Data'!$F$9","v":0},{"$f":"'Standing Data'!#REF!","v":{"$error":"#REF!"}},"Fin.Return","E52",{"$f":"'Fin.Return - SOFA'!E56","v":0}]
[{"$f":"'Standing Data'!$D$12","v":{"$error":"#N/A"}},{"$f":"'Standing Data'!$F$9","v":0},{"$f":"'Standing Data'!#REF!","v":{"$error":"#REF!"}},"Fin.Return","E54",{"$f":"'Fin.Return - SOFA'!E58","v":0}]
[{"$f":"'Standing Data'!$D$12","v":{"$error":"#N/A"}},{"$f":"'Standing Data'!$F$9","v":0},{"$f":"'Standing Data'!#REF!","v":{"$error":"#REF!"}},"Fin.Return","E69",{"$f":"'Fin.Return - BS'!E25","v":0}]
[{"$f":"'Standing Data'!$D$12","v":{"$error":"#N/A"}},{"$f":"'Standing Data'!$F$9","v":0},{"$f":"'Standing Data'!#REF!","v":{"$error":"#REF!"}},"Fin.Return","E70",{"$f":"'Fin.Return - BS'!E26","v":0}]
[{"$f":"'Standing Data'!$D$12","v":{"$error":"#N/A"}},{"$f":"'Standing Data'!$F$9","v":0},{"$f":"'Standing Data'!#REF!","v":{"$error":"#REF!"}},"Fin.Return","E71",{"$f":"'Fin.Return - BS'!E27","v":0}]
[{"$f":"'Standing Data'!$D$12","v":{"$error":"#N/A"}},{"$f":"'Standing Data'!$F$9","v":0},{"$f":"'Standing Data'!#REF!","v":{"$error":"#REF!"}},"Fin.Return","E72",{"$f":"'Fin.Return - BS'!E28","v":0}]
[{"$f":"'Standing Data'!$D$12","v":{"$error":"#N/A"}},{"$f":"'Standing Data'!$F$9","v":0},{"$f":"'Standing Data'!#REF!","v":{"$error":"#REF!"}},"Fin.Return","E73",{"$f":"'Fin.Return - BS'!E29","v":0}]
[{"$f":"'Standing Data'!$D$12","v":{"$error":"#N/A"}},{"$f":"'Standing Data'!$F$9","v":0},{"$f":"'Standing Data'!#REF!","v":{"$error":"#REF!"}},"Fin.Return","E75",{"$f":"'Fin.Return - BS'!E31","v":0}]
[{"$f":"'Standing Data'!$D$12","v":{"$error":"#N/A"}},{"$f":"'Standing Data'!$F$9","v":0},{"$f":"'Standing Data'!#REF!","v":{"$error":"#REF!"}},"Fin.Return","E76",{"$f":"'Fin.Return - BS'!E32","v":0}]
[{"$f":"'Standing Data'!$D$12","v":{"$error":"#N/A"}},{"$f":"'Standing Data'!$F$9","v":0},{"$f":"'Standing Data'!#REF!","v":{"$error":"#REF!"}},"Fin.Return","E134",{"$f":"'Fin.Return - SOFA'!E68","v":0}]
[{"$f":"'Standing Data'!$D$12","v":{"$error":"#N/A"}},{"$f":"'Standing Data'!$F$9","v":0},{"$f":"'Standing Data'!#REF!","v":{"$error":"#REF!"}},"Fin.Return","E135",{"$f":"'Fin.Return - SOFA'!E70","v":0}]
[{"$f":"'Standing Data'!$D$12","v":{"$error":"#N/A"}},{"$f":"'Standing Data'!$F$9","v":0},{"$f":"'Standing Data'!#REF!","v":{"$error":"#REF!"}},"Fin.Return","E136",{"$f":"'Fin.Return - SOFA'!E71","v":0}]
[{"$f":"'Standing Data'!$D$12","v":{"$error":"#N/A"}},{"$f":"'Standing Data'!$F$9","v":0},{"$f":"'Standing Data'!#REF!","v":{"$error":"#REF!"}},"Fin.Return","E138",{"$f":"'Fin.Return - SOFA'!E73","v":0}]
[{"$f":"'Standing Data'!$D$12","v":{"$error":"#N/A"}},{"$f":"'Standing Data'!$F$9","v":0},{"$f":"'Standing Data'!#REF!","v":{"$error":"#REF!"}},"Fin.Return","E144",{"$f":"'Fin.Return - SOFA'!E79","v":0}]
[{"$f":"'Standing Data'!$D$12","v":{"$error":"#N/A"}},{"$f":"'Standing Data'!$F$9","v":0},{"$f":"'Standing Data'!#REF!","v":{"$error":"#REF!"}},"Fin.Return","E145",{"$f":"'Fin.Return - SOFA'!E80","v":0}]
[{"$f":"'Standing Data'!$D$12","v":{"$error":"#N/A"}},{"$f":"'Standing Data'!$F$9","v":0},{"$f":"'Standing Data'!#REF!","v":{"$error":"#REF!"}},"Fin.Return","E146",{"$f":"'Fin.Return - SOFA'!E81","v":0}]
[{"$f":"'Standing Data'!$D$12","v":{"$error":"#N/A"}},{"$f":"'Standing Data'!$F$9","v":0},{"$f":"'Standing Data'!#REF!","v":{"$error":"#REF!"}},"Fin.Return","E147",{"$f":"'Fin.Return - SOFA'!E84","v":0}]
[{"$f":"'Standing Data'!$D$12","v":{"$error":"#N/A"}},{"$f":"'Standing Data'!$F$9","v":0},{"$f":"'Standing Data'!#REF!","v":{"$error":"#REF!"}},"Fin.Return","E149",{"$f":"'Fin.Return - SOFA'!E86","v":0}]
[{"$f":"'Standing Data'!$D$12","v":{"$error":"#N/A"}},{"$f":"'Standing Data'!$F$9","v":0},{"$f":"'Standing Data'!#REF!","v":{"$error":"#REF!"}},"Fin.Return","E155",{"$f":"'Fin.Return - SOFA'!E92","v":0}]
[{"$f":"'Standing Data'!$D$12","v":{"$error":"#N/A"}},{"$f":"'Standing Data'!$F$9","v":0},{"$f":"'Standing Data'!#REF!","v":{"$error":"#REF!"}},"Fin.Return","E156",{"$f":"'Fin.Return - SOFA'!E93","v":0}]
[{"$f":"'Standing Data'!$D$12","v":{"$error":"#N/A"}},{"$f":"'Standing Data'!$F$9","v":0},{"$f":"'Standing Data'!#REF!","v":{"$error":"#REF!"}},"Fin.Return","E157",{"$f":"'Fin.Return - SOFA'!E94","v":0}]
[{"$f":"'Standing Data'!$D$12","v":{"$error":"#N/A"}},{"$f":"'Standing Data'!$F$9","v":0},{"$f":"'Standing Data'!#REF!","v":{"$error":"#REF!"}},"Fin.Return","E158",{"$f":"'Fin.Return - SOFA'!E95","v":0}]
[{"$f":"'Standing Data'!$D$12","v":{"$error":"#N/A"}},{"$f":"'Standing Data'!$F$9","v":0},{"$f":"'Standing Data'!#REF!","v":{"$error":"#REF!"}},"Fin.Return","E160",{"$f":"'Fin.Return - SOFA'!E97","v":0}]
[{"$f":"'Standing Data'!$D$12","v":{"$error":"#N/A"}},{"$f":"'Standing Data'!$F$9","v":0},{"$f":"'Standing Data'!#REF!","v":{"$error":"#REF!"}},"Fin.Return","E168",{"$f":"'Fin.Return - SOFA'!E105","v":0}]
[{"$f":"'Standing Data'!$D$12","v":{"$error":"#N/A"}},{"$f":"'Standing Data'!$F$9","v":0},{"$f":"'Standing Data'!#REF!","v":{"$error":"#REF!"}},"Fin.Return","E169",{"$f":"'Fin.Return - SOFA'!E106","v":0}]
[{"$f":"'Standing Data'!$D$12","v":{"$error":"#N/A"}},{"$f":"'Standing Data'!$F$9","v":0},{"$f":"'Standing Data'!#REF!","v":{"$error":"#REF!"}},"Fin.Return","E170",{"$f":"'Fin.Return - SOFA'!#REF!","v":{"$error":"#REF!"}}]
[{"$f":"'Standing Data'!$D$12","v":{"$error":"#N/A"}},{"$f":"'Standing Data'!$F$9","v":0},{"$f":"'Standing Data'!#REF!","v":{"$error":"#REF!"}},"Fin.Return","E171",{"$f":"'Fin.Return - SOFA'!E107","v":0}]
[{"$f":"'Standing Data'!$D$12","v":{"$error":"#N/A"}},{"$f":"'Standing Data'!$F$9","v":0},{"$f":"'Standing Data'!#REF!","v":{"$error":"#REF!"}},"Fin.Return","E172",{"$f":"'Fin.Return - SOFA'!E108","v":0}]
[{"$f":"'Standing Data'!$D$12","v":{"$error":"#N/A"}},{"$f":"'Standing Data'!$F$9","v":0},{"$f":"'Standing Data'!#REF!","v":{"$error":"#REF!"}},"Fin.Return","E173",{"$f":"'Fin.Return - SOFA'!#REF!","v":{"$error":"#REF!"}}]
[{"$f":"'Standing Data'!$D$12","v":{"$error":"#N/A"}},{"$f":"'Standing Data'!$F$9","v":0},{"$f":"'Standing Data'!#REF!","v":{"$error":"#REF!"}},"Fin.Return","E174",{"$f":"'Fin.Return - SOFA'!E109","v":0}]
[{"$f":"'Standing Data'!$D$12","v":{"$error":"#N/A"}},{"$f":"'Standing Data'!$F$9","v":0},{"$f":"'Standing Data'!#REF!","v":{"$error":"#REF!"}},"Fin.Return","E175",{"$f":"'Fin.Return - SOFA'!E110","v":0}]
[{"$f":"'Standing Data'!$D$12","v":{"$error":"#N/A"}},{"$f":"'Standing Data'!$F$9","v":0},{"$f":"'Standing Data'!#REF!","v":{"$error":"#REF!"}},"Fin.Return","E176",{"$f":"'Fin.Return - SOFA'!E111","v":0}]
[{"$f":"'Standing Data'!$D$12","v":{"$error":"#N/A"}},{"$f":"'Standing Data'!$F$9","v":0},{"$f":"'Standing Data'!#REF!","v":{"$error":"#REF!"}},"Fin.Return","E177",{"$f":"'Fin.Return - SOFA'!E112","v":0}]
[{"$f":"'Standing Data'!$D$12","v":{"$error":"#N/A"}},{"$f":"'Standing Data'!$F$9","v":0},{"$f":"'Standing Data'!#REF!","v":{"$error":"#REF!"}},"Fin.Return","E178",{"$f":"'Fin.Return - SOFA'!E113","v":0}]
[{"$f":"'Standing Data'!$D$12","v":{"$error":"#N/A"}},{"$f":"'Standing Data'!$F$9","v":0},{"$f":"'Standing Data'!#REF!","v":{"$error":"#REF!"}},"Fin.Return","E179",{"$f":"'Fin.Return - SOFA'!E114","v":0}]
[{"$f":"'Standing Data'!$D$12","v":{"$error":"#N/A"}},{"$f":"'Standing Data'!$F$9","v":0},{"$f":"'Standing Data'!#REF!","v":{"$error":"#REF!"}},"Fin.Return","E182",{"$f":"'Fin.Return - SOFA'!E117","v":0}]
[{"$f":"'Standing Data'!$D$12","v":{"$error":"#N/A"}},{"$f":"'Standing Data'!$F$9","v":0},{"$f":"'Standing Data'!#REF!","v":{"$error":"#REF!"}},"Fin.Return","E183",{"$f":"'Fin.Return - SOFA'!E118","v":0}]
[{"$f":"'Standing Data'!$D$12","v":{"$error":"#N/A"}},{"$f":"'Standing Data'!$F$9","v":0},{"$f":"'Standing Data'!#REF!","v":{"$error":"#REF!"}},"Fin.Return","E184",{"$f":"'Fin.Return - SOFA'!E119","v":0}]
[{"$f":"'Standing Data'!$D$12","v":{"$error":"#N/A"}},{"$f":"'Standing Data'!$F$9","v":0},{"$f":"'Standing Data'!#REF!","v":{"$error":"#REF!"}},"Fin.Return","E185",{"$f":"'Fin.Return - SOFA'!E120","v":0}]
[{"$f":"'Standing Data'!$D$12","v":{"$error":"#N/A"}},{"$f":"'Standing Data'!$F$9","v":0},{"$f":"'Standing Data'!#REF!","v":{"$error":"#REF!"}},"Fin.Return","E186",{"$f":"'Fin.Return - SOFA'!E121","v":0}]
[{"$f":"'Standing Data'!$D$12","v":{"$error":"#N/A"}},{"$f":"'Standing Data'!$F$9","v":0},{"$f":"'Standing Data'!#REF!","v":{"$error":"#REF!"}},"Fin.Return","E187",{"$f":"'Fin.Return - SOFA'!E122","v":0}]
[{"$f":"'Standing Data'!$D$12","v":{"$error":"#N/A"}},{"$f":"'Standing Data'!$F$9","v":0},{"$f":"'Standing Data'!#REF!","v":{"$error":"#REF!"}},"Fin.Return","E188",{"$f":"'Fin.Return - SOFA'!E123","v":0}]
[{"$f":"'Standing Data'!$D$12","v":{"$error":"#N/A"}},{"$f":"'Standing Data'!$F$9","v":0},{"$f":"'Standing Data'!#REF!","v":{"$error":"#REF!"}},"Fin.Return","E189",{"$f":"'Fin.Return - SOFA'!E124","v":0}]
[{"$f":"'Standing Data'!$D$12","v":{"$error":"#N/A"}},{"$f":"'Standing Data'!$F$9","v":0},{"$f":"'Standing Data'!#REF!","v":{"$error":"#REF!"}},"Fin.Return","E191",{"$f":"'Fin.Return - SOFA'!E126","v":0}]
[{"$f":"'Standing Data'!$D$12","v":{"$error":"#N/A"}},{"$f":"'Standing Data'!$F$9","v":0},{"$f":"'Standing Data'!#REF!","v":{"$error":"#REF!"}},"Fin.Return","E193",{"$f":"'Fin.Return - SOFA'!E128","v":0}]
[{"$f":"'Standing Data'!$D$12","v":{"$error":"#N/A"}},{"$f":"'Standing Data'!$F$9","v":0},{"$f":"'Standing Data'!#REF!","v":{"$error":"#REF!"}},"Fin.Return","E194",{"$f":"'Fin.Return - SOFA'!E129","v":0}]
[{"$f":"'Standing Data'!$D$12","v":{"$error":"#N/A"}},{"$f":"'Standing Data'!$F$9","v":0},{"$f":"'Standing Data'!#REF!","v":{"$error":"#REF!"}},"Fin.Return","E195",{"$f":"'Fin.Return - SOFA'!E130","v":0}]
[{"$f":"'Standing Data'!$D$12","v":{"$error":"#N/A"}},{"$f":"'Standing Data'!$F$9","v":0},{"$f":"'Standing Data'!#REF!","v":{"$error":"#REF!"}},"Fin.Return","E196",{"$f":"'Fin.Return - SOFA'!E131","v":0}]
[{"$f":"'Standing Data'!$D$12","v":{"$error":"#N/A"}},{"$f":"'Standing Data'!$F$9","v":0},{"$f":"'Standing Data'!#REF!","v":{"$error":"#REF!"}},"Fin.Return","E197",{"$f":"'Fin.Return - SOFA'!E132","v":0}]
[{"$f":"'Standing Data'!$D$12","v":{"$error":"#N/A"}},{"$f":"'Standing Data'!$F$9","v":0},{"$f":"'Standing Data'!#REF!","v":{"$error":"#REF!"}},"Fin.Return","E198",{"$f":"'Fin.Return - SOFA'!E133","v":0}]
[{"$f":"'Standing Data'!$D$12","v":{"$error":"#N/A"}},{"$f":"'Standing Data'!$F$9","v":0},{"$f":"'Standing Data'!#REF!","v":{"$error":"#REF!"}},"Fin.Return","E200",{"$f":"'Fin.Return - SOFA'!E135","v":0}]
[{"$f":"'Standing Data'!$D$12","v":{"$error":"#N/A"}},{"$f":"'Standing Data'!$F$9","v":0},{"$f":"'Standing Data'!#REF!","v":{"$error":"#REF!"}},"Fin.Return","E202",{"$f":"'Fin.Return - SOFA'!E137","v":0}]
[{"$f":"'Standing Data'!$D$12","v":{"$error":"#N/A"}},{"$f":"'Standing Data'!$F$9","v":0},{"$f":"'Standing Data'!#REF!","v":{"$error":"#REF!"}},"Fin.Return","E203",{"$f":"'Fin.Return - SOFA'!E138","v":0}]
[{"$f":"'Standing Data'!$D$12","v":{"$error":"#N/A"}},{"$f":"'Standing Data'!$F$9","v":0},{"$f":"'Standing Data'!#REF!","v":{"$error":"#REF!"}},"Fin.Return","E204",{"$f":"'Fin.Return - SOFA'!E139","v":0}]
[{"$f":"'Standing Data'!$D$12","v":{"$error":"#N/A"}},{"$f":"'Standing Data'!$F$9","v":0},{"$f":"'Standing Data'!#REF!","v":{"$error":"#REF!"}},"Fin.Return","E205",{"$f":"'Fin.Return - SOFA'!E140","v":0}]
[{"$f":"'Standing Data'!$D$12","v":{"$error":"#N/A"}},{"$f":"'Standing Data'!$F$9","v":0},{"$f":"'Standing Data'!#REF!","v":{"$error":"#REF!"}},"Fin.Return","E206",{"$f":"'Fin.Return - SOFA'!E141","v":0}]
[{"$f":"'Standing Data'!$D$12","v":{"$error":"#N/A"}},{"$f":"'Standing Data'!$F$9","v":0},{"$f":"'Standing Data'!#REF!","v":{"$error":"#REF!"}},"Fin.Return","E207",{"$f":"'Fin.Return - SOFA'!E142","v":0}]
[{"$f":"'Standing Data'!$D$12","v":{"$error":"#N/A"}},{"$f":"'Standing Data'!$F$9","v":0},{"$f":"'Standing Data'!#REF!","v":{"$error":"#REF!"}},"Fin.Return","E209",{"$f":"'Fin.Return - SOFA'!E144","v":0}]
[{"$f":"'Standing Data'!$D$12","v":{"$error":"#N/A"}},{"$f":"'Standing Data'!$F$9","v":0},{"$f":"'Standing Data'!#REF!","v":{"$error":"#REF!"}},"Fin.Return","E211",{"$f":"'Fin.Return - SOFA'!E153","v":0}]
[{"$f":"'Standing Data'!$D$12","v":{"$error":"#N/A"}},{"$f":"'Standing Data'!$F$9","v":0},{"$f":"'Standing Data'!#REF!","v":{"$error":"#REF!"}},"Fin.Return","E212",{"$f":"'Fin.Return - SOFA'!E154","v":0}]
[{"$f":"'Standing Data'!$D$12","v":{"$error":"#N/A"}},{"$f":"'Standing Data'!$F$9","v":0},{"$f":"'Standing Data'!#REF!","v":{"$error":"#REF!"}},"Fin.Return","E214",{"$f":"'Fin.Return - SOFA'!E156","v":0}]
[{"$f":"'Standing Data'!$D$12","v":{"$error":"#N/A"}},{"$f":"'Standing Data'!$F$9","v":0},{"$f":"'Standing Data'!#REF!","v":{"$error":"#REF!"}},"Fin.Return","E216",{"$f":"'Fin.Return - SOFA'!E158","v":0}]
[{"$f":"'Standing Data'!$D$12","v":{"$error":"#N/A"}},{"$f":"'Standing Data'!$F$9","v":0},{"$f":"'Standing Data'!#REF!","v":{"$error":"#REF!"}},"Fin.Return","E217",{"$f":"'Fin.Return - SOFA'!E159","v":0}]
[{"$f":"'Standing Data'!$D$12","v":{"$error":"#N/A"}},{"$f":"'Standing Data'!$F$9","v":0},{"$f":"'Standing Data'!#REF!","v":{"$error":"#REF!"}},"Fin.Return","E218",{"$f":"'Fin.Return - SOFA'!E161","v":0}]
[{"$f":"'Standing Data'!$D$12","v":{"$error":"#N/A"}},{"$f":"'Standing Data'!$F$9","v":0},{"$f":"'Standing Data'!#REF!","v":{"$error":"#REF!"}},"Fin.Return","E220",{"$f":"'Fin.Return - SOFA'!E163","v":0}]
[{"$f":"'Standing Data'!$D$12","v":{"$error":"#N/A"}},{"$f":"'Standing Data'!$F$9","v":0},{"$f":"'Standing Data'!#REF!","v":{"$error":"#REF!"}},"Fin.Return","E222",{"$f":"'Fin.Return - SOFA'!E165","v":0}]
[{"$f":"'Standing Data'!$D$12","v":{"$error":"#N/A"}},{"$f":"'Standing Data'!$F$9","v":0},{"$f":"'Standing Data'!#REF!","v":{"$error":"#REF!"}},"Fin.Return","E228",{"$f":"'Fin.Return - SOFA'!E171","v":0}]
[{"$f":"'Standing Data'!$D$12","v":{"$error":"#N/A"}},{"$f":"'Standing Data'!$F$9","v":0},{"$f":"'Standing Data'!#REF!","v":{"$error":"#REF!"}},"Fin.Return","E229",{"$f":"'Fin.Return - SOFA'!E172","v":0}]
[{"$f":"'Standing Data'!$D$12","v":{"$error":"#N/A"}},{"$f":"'Standing Data'!$F$9","v":0},{"$f":"'Standing Data'!#REF!","v":{"$error":"#REF!"}},"Fin.Return","E231",{"$f":"'Fin.Return - SOFA'!E174","v":0}]
[{"$f":"'Standing Data'!$D$12","v":{"$error":"#N/A"}},{"$f":"'Standing Data'!$F$9","v":0},{"$f":"'Standing Data'!#REF!","v":{"$error":"#REF!"}},"Fin.Return","E232",{"$f":"'Fin.Return - SOFA'!E175","v":0}]
[{"$f":"'Standing Data'!$D$12","v":{"$error":"#N/A"}},{"$f":"'Standing Data'!$F$9","v":0},{"$f":"'Standing Data'!#REF!","v":{"$error":"#REF!"}},"Fin.Return","E234",{"$f":"'Fin.Return - SOFA'!E177","v":0}]
[{"$f":"'Standing Data'!$D$12","v":{"$error":"#N/A"}},{"$f":"'Standing Data'!$F$9","v":0},{"$f":"'Standing Data'!#REF!","v":{"$error":"#REF!"}},"Fin.Return","E235",{"$f":"'Fin.Return - SOFA'!E178","v":0}]
[{"$f":"'Standing Data'!$D$12","v":{"$error":"#N/A"}},{"$f":"'Standing Data'!$F$9","v":0},{"$f":"'Standing Data'!#REF!","v":{"$error":"#REF!"}},"Fin.Return","E236",{"$f":"'Fin.Return - SOFA'!E179","v":0}]
[{"$f":"'Standing Data'!$D$12","v":{"$error":"#N/A"}},{"$f":"'Standing Data'!$F$9","v":0},{"$f":"'Standing Data'!#REF!","v":{"$error":"#REF!"}},"Fin.Return","E238",{"$f":"'Fin.Return - SOFA'!E181","v":0}]
[{"$f":"'Standing Data'!$D$12","v":{"$error":"#N/A"}},{"$f":"'Standing Data'!$F$9","v":0},{"$f":"'Standing Data'!#REF!","v":{"$error":"#REF!"}},"Fin.Return","E242",{"$f":"'Fin.Return - SOFA'!E185","v":0}]
[{"$f":"'Standing Data'!$D$12","v":{"$error":"#N/A"}},{"$f":"'Standing Data'!$F$9","v":0},{"$f":"'Standing Data'!#REF!","v":{"$error":"#REF!"}},"Fin.Return","E243",{"$f":"'Fin.Return - SOFA'!E186","v":0}]
[{"$f":"'Standing Data'!$D$12","v":{"$error":"#N/A"}},{"$f":"'Standing Data'!$F$9","v":0},{"$f":"'Standing Data'!#REF!","v":{"$error":"#REF!"}},"Fin.Return","E244",{"$f":"'Fin.Return - SOFA'!E187","v":0}]
[{"$f":"'Standing Data'!$D$12","v":{"$error":"#N/A"}},{"$f":"'Standing Data'!$F$9","v":0},{"$f":"'Standing Data'!#REF!","v":{"$error":"#REF!"}},"Fin.Return","E245",{"$f":"'Fin.Return - SOFA'!E188","v":0}]
[{"$f":"'Standing Data'!$D$12","v":{"$error":"#N/A"}},{"$f":"'Standing Data'!$F$9","v":0},{"$f":"'Standing Data'!#REF!","v":{"$error":"#REF!"}},"Fin.Return","E246",{"$f":"'Fin.Return - SOFA'!E189","v":0}]
[{"$f":"'Standing Data'!$D$12","v":{"$error":"#N/A"}},{"$f":"'Standing Data'!$F$9","v":0},{"$f":"'Standing Data'!#REF!","v":{"$error":"#REF!"}},"Fin.Return","E248",{"$f":"'Fin.Return - SOFA'!E191","v":0}]
[{"$f":"'Standing Data'!$D$12","v":{"$error":"#N/A"}},{"$f":"'Standing Data'!$F$9","v":0},{"$f":"'Standing Data'!#REF!","v":{"$error":"#REF!"}},"Fin.Return","E249",{"$f":"'Fin.Return - SOFA'!E192","v":0}]
[{"$f":"'Standing Data'!$D$12","v":{"$error":"#N/A"}},{"$f":"'Standing Data'!$F$9","v":0},{"$f":"'Standing Data'!#REF!","v":{"$error":"#REF!"}},"Fin.Return","E250",{"$f":"'Fin.Return - SOFA'!E193","v":0}]
[{"$f":"'Standing Data'!$D$12","v":{"$error":"#N/A"}},{"$f":"'Standing Data'!$F$9","v":0},{"$f":"'Standing Data'!#REF!","v":{"$error":"#REF!"}},"Fin.Return","E251",{"$f":"'Fin.Return - SOFA'!E194","v":0}]
[{"$f":"'Standing Data'!$D$12","v":{"$error":"#N/A"}},{"$f":"'Standing Data'!$F$9","v":0},{"$f":"'Standing Data'!#REF!","v":{"$error":"#REF!"}},"Fin.Return","E252",{"$f":"'Fin.Return - SOFA'!E195","v":0}]
[{"$f":"'Standing Data'!$D$12","v":{"$error":"#N/A"}},{"$f":"'Standing Data'!$F$9","v":0},{"$f":"'Standing Data'!#REF!","v":{"$error":"#REF!"}},"Fin.Return","E257",{"$f":"'Fin.Return - SOFA'!E200","v":0}]
[{"$f":"'Standing Data'!$D$12","v":{"$error":"#N/A"}},{"$f":"'Standing Data'!$F$9","v":0},{"$f":"'Standing Data'!#REF!","v":{"$error":"#REF!"}},"Fin.Return","E258",{"$f":"'Fin.Return - SOFA'!#REF!","v":{"$error":"#REF!"}}]
[{"$f":"'Standing Data'!$D$12","v":{"$error":"#N/A"}},{"$f":"'Standing Data'!$F$9","v":0},{"$f":"'Standing Data'!#REF!","v":{"$error":"#REF!"}},"Fin.Return","E259",{"$f":"'Fin.Return - SOFA'!E201","v":0}]
[{"$f":"'Standing Data'!$D$12","v":{"$error":"#N/A"}},{"$f":"'Standing Data'!$F$9","v":0},{"$f":"'Standing Data'!#REF!","v":{"$error":"#REF!"}},"Fin.Return","E260",{"$f":"'Fin.Return - SOFA'!E202","v":0}]
[{"$f":"'Standing Data'!$D$12","v":{"$error":"#N/A"}},{"$f":"'Standing Data'!$F$9","v":0},{"$f":"'Standing Data'!#REF!","v":{"$error":"#REF!"}},"Fin.Return","E261",{"$f":"'Fin.Return - SOFA'!E203","v":0}]
[{"$f":"'Standing Data'!$D$12","v":{"$error":"#N/A"}},{"$f":"'Standing Data'!$F$9","v":0},{"$f":"'Standing Data'!#REF!","v":{"$error":"#REF!"}},"Fin.Return","E262",{"$f":"'Fin.Return - SOFA'!E204","v":0}]
[{"$f":"'Standing Data'!$D$12","v":{"$error":"#N/A"}},{"$f":"'Standing Data'!$F$9","v":0},{"$f":"'Standing Data'!#REF!","v":{"$error":"#REF!"}},"Fin.Return","E264",{"$f":"'Fin.Return - SOFA'!E206","v":0}]
[{"$f":"'Standing Data'!$D$12","v":{"$error":"#N/A"}},{"$f":"'Standing Data'!$F$9","v":0},{"$f":"'Standing Data'!#REF!","v":{"$error":"#REF!"}},"Fin.Return","E270",{"$f":"'Fin.Return - SOFA'!E212","v":0}]
[{"$f":"'Standing Data'!$D$12","v":{"$error":"#N/A"}},{"$f":"'Standing Data'!$F$9","v":0},{"$f":"'Standing Data'!#REF!","v":{"$error":"#REF!"}},"Fin.Return","E271",{"$f":"'Fin.Return - SOFA'!E213","v":0}]
[{"$f":"'Standing Data'!$D$12","v":{"$error":"#N/A"}},{"$f":"'Standing Data'!$F$9","v":0},{"$f":"'Standing Data'!#REF!","v":{"$error":"#REF!"}},"Fin.Return","E272",{"$f":"'Fin.Return - SOFA'!E214","v":0}]
[{"$f":"'Standing Data'!$D$12","v":{"$error":"#N/A"}},{"$f":"'Standing Data'!$F$9","v":0},{"$f":"'Standing Data'!#REF!","v":{"$error":"#REF!"}},"Fin.Return","E273",{"$f":"'Fin.Return - SOFA'!E215","v":0}]
[{"$f":"'Standing Data'!$D$12","v":{"$error":"#N/A"}},{"$f":"'Standing Data'!$F$9","v":0},{"$f":"'Standing Data'!#REF!","v":{"$error":"#REF!"}},"Fin.Return","E274",{"$f":"'Fin.Return - SOFA'!E216","v":0}]
[{"$f":"'Standing Data'!$D$12","v":{"$error":"#N/A"}},{"$f":"'Standing Data'!$F$9","v":0},{"$f":"'Standing Data'!#REF!","v":{"$error":"#REF!"}},"Fin.Return","E275",{"$f":"'Fin.Return - SOFA'!E217","v":0}]
[{"$f":"'Standing Data'!$D$12","v":{"$error":"#N/A"}},{"$f":"'Standing Data'!$F$9","v":0},{"$f":"'Standing Data'!#REF!","v":{"$error":"#REF!"}},"Fin.Return","E276",{"$f":"'Fin.Return - SOFA'!E218","v":0}]
[{"$f":"'Standing Data'!$D$12","v":{"$error":"#N/A"}},{"$f":"'Standing Data'!$F$9","v":0},{"$f":"'Standing Data'!#REF!","v":{"$error":"#REF!"}},"Fin.Return","E277",{"$f":"'Fin.Return - SOFA'!E220","v":0}]
[{"$f":"'Standing Data'!$D$12","v":{"$error":"#N/A"}},{"$f":"'Standing Data'!$F$9","v":0},{"$f":"'Standing Data'!#REF!","v":{"$error":"#REF!"}},"Fin.Return","E278",{"$f":"'Fin.Return - SOFA'!E221","v":0}]
[{"$f":"'Standing Data'!$D$12","v":{"$error":"#N/A"}},{"$f":"'Standing Data'!$F$9","v":0},{"$f":"'Standing Data'!#REF!","v":{"$error":"#REF!"}},"Fin.Return","E279",{"$f":"'Fin.Return - SOFA'!E222","v":0}]
[{"$f":"'Standing Data'!$D$12","v":{"$error":"#N/A"}},{"$f":"'Standing Data'!$F$9","v":0},{"$f":"'Standing Data'!#REF!","v":{"$error":"#REF!"}},"Fin.Return","E280",{"$f":"'Fin.Return - SOFA'!E223","v":0}]
[{"$f":"'Standing Data'!$D$12","v":{"$error":"#N/A"}},{"$f":"'Standing Data'!$F$9","v":0},{"$f":"'Standing Data'!#REF!","v":{"$error":"#REF!"}},"Fin.Return","E282",{"$f":"'Fin.Return - SOFA'!E225","v":0}]
[{"$f":"'Standing Data'!$D$12","v":{"$error":"#N/A"}},{"$f":"'Standing Data'!$F$9","v":0},{"$f":"'Standing Data'!#REF!","v":{"$error":"#REF!"}},"Fin.Return","E284",{"$f":"'Fin.Return - SOFA'!E227","v":0}]
[{"$f":"'Standing Data'!$D$12","v":{"$error":"#N/A"}},{"$f":"'Standing Data'!$F$9","v":0},{"$f":"'Standing Data'!#REF!","v":{"$error":"#REF!"}},"Fin.Return","E285",{"$f":"'Fin.Return - SOFA'!E229","v":0}]
[{"$f":"'Standing Data'!$D$12","v":{"$error":"#N/A"}},{"$f":"'Standing Data'!$F$9","v":0},{"$f":"'Standing Data'!#REF!","v":{"$error":"#REF!"}},"Fin.Return","E286",{"$f":"'Fin.Return - SOFA'!E230","v":0}]
[{"$f":"'Standing Data'!$D$12","v":{"$error":"#N/A"}},{"$f":"'Standing Data'!$F$9","v":0},{"$f":"'Standing Data'!#REF!","v":{"$error":"#REF!"}},"Fin.Return","E287",{"$f":"'Fin.Return - SOFA'!E231","v":0}]
[{"$f":"'Standing Data'!$D$12","v":{"$error":"#N/A"}},{"$f":"'Standing Data'!$F$9","v":0},{"$f":"'Standing Data'!#REF!","v":{"$error":"#REF!"}},"Fin.Return","E288",{"$f":"'Fin.Return - SOFA'!E232","v":0}]
[{"$f":"'Standing Data'!$D$12","v":{"$error":"#N/A"}},{"$f":"'Standing Data'!$F$9","v":0},{"$f":"'Standing Data'!#REF!","v":{"$error":"#REF!"}},"Fin.Return","E289",{"$f":"'Fin.Return - SOFA'!E233","v":0}]
[{"$f":"'Standing Data'!$D$12","v":{"$error":"#N/A"}},{"$f":"'Standing Data'!$F$9","v":0},{"$f":"'Standing Data'!#REF!","v":{"$error":"#REF!"}},"Fin.Return","E290",{"$f":"'Fin.Return - SOFA'!E234","v":0}]
[{"$f":"'Standing Data'!$D$12","v":{"$error":"#N/A"}},{"$f":"'Standing Data'!$F$9","v":0},{"$f":"'Standing Data'!#REF!","v":{"$error":"#REF!"}},"Fin.Return","E291",{"$f":"'Fin.Return - SOFA'!E235","v":0}]
[{"$f":"'Standing Data'!$D$12","v":{"$error":"#N/A"}},{"$f":"'Standing Data'!$F$9","v":0},{"$f":"'Standing Data'!#REF!","v":{"$error":"#REF!"}},"Fin.Return","E292",{"$f":"'Fin.Return - SOFA'!E236","v":0}]
[{"$f":"'Standing Data'!$D$12","v":{"$error":"#N/A"}},{"$f":"'Standing Data'!$F$9","v":0},{"$f":"'Standing Data'!#REF!","v":{"$error":"#REF!"}},"Fin.Return","E293",{"$f":"'Fin.Return - SOFA'!E237","v":0}]
[{"$f":"'Standing Data'!$D$12","v":{"$error":"#N/A"}},{"$f":"'Standing Data'!$F$9","v":0},{"$f":"'Standing Data'!#REF!","v":{"$error":"#REF!"}},"Fin.Return","E294",{"$f":"'Fin.Return - SOFA'!E238","v":0}]
[{"$f":"'Standing Data'!$D$12","v":{"$error":"#N/A"}},{"$f":"'Standing Data'!$F$9","v":0},{"$f":"'Standing Data'!#REF!","v":{"$error":"#REF!"}},"Fin.Return","E295",{"$f":"'Fin.Return - SOFA'!E239","v":0}]
[{"$f":"'Standing Data'!$D$12","v":{"$error":"#N/A"}},{"$f":"'Standing Data'!$F$9","v":0},{"$f":"'Standing Data'!#REF!","v":{"$error":"#REF!"}},"Fin.Return","E296",{"$f":"'Fin.Return - SOFA'!E240","v":0}]
[{"$f":"'Standing Data'!$D$12","v":{"$error":"#N/A"}},{"$f":"'Standing Data'!$F$9","v":0},{"$f":"'Standing Data'!#REF!","v":{"$error":"#REF!"}},"Fin.Return","E297",{"$f":"'Fin.Return - SOFA'!E241","v":0}]
[{"$f":"'Standing Data'!$D$12","v":{"$error":"#N/A"}},{"$f":"'Standing Data'!$F$9","v":0},{"$f":"'Standing Data'!#REF!","v":{"$error":"#REF!"}},"Fin.Return","E298",{"$f":"'Fin.Return - SOFA'!E243","v":0}]
[{"$f":"'Standing Data'!$D$12","v":{"$error":"#N/A"}},{"$f":"'Standing Data'!$F$9","v":0},{"$f":"'Standing Data'!#REF!","v":{"$error":"#REF!"}},"Fin.Return","E299",{"$f":"'Fin.Return - SOFA'!E244","v":0}]
[{"$f":"'Standing Data'!$D$12","v":{"$error":"#N/A"}},{"$f":"'Standing Data'!$F$9","v":0},{"$f":"'Standing Data'!#REF!","v":{"$error":"#REF!"}},"Fin.Return","E300",{"$f":"'Fin.Return - SOFA'!E245","v":0}]
[{"$f":"'Standing Data'!$D$12","v":{"$error":"#N/A"}},{"$f":"'Standing Data'!$F$9","v":0},{"$f":"'Standing Data'!#REF!","v":{"$error":"#REF!"}},"Fin.Return","E301",{"$f":"'Fin.Return - SOFA'!E246","v":0}]
[{"$f":"'Standing Data'!$D$12","v":{"$error":"#N/A"}},{"$f":"'Standing Data'!$F$9","v":0},{"$f":"'Standing Data'!#REF!","v":{"$error":"#REF!"}},"Fin.Return","E302",{"$f":"'Fin.Return - SOFA'!E247","v":0}]
[{"$f":"'Standing Data'!$D$12","v":{"$error":"#N/A"}},{"$f":"'Standing Data'!$F$9","v":0},{"$f":"'Standing Data'!#REF!","v":{"$error":"#REF!"}},"Fin.Return","E303",{"$f":"'Fin.Return - SOFA'!E251","v":0}]
[{"$f":"'Standing Data'!$D$12","v":{"$error":"#N/A"}},{"$f":"'Standing Data'!$F$9","v":0},{"$f":"'Standing Data'!#REF!","v":{"$error":"#REF!"}},"Fin.Return","E304",{"$f":"'Fin.Return - SOFA'!E252","v":0}]
[{"$f":"'Standing Data'!$D$12","v":{"$error":"#N/A"}},{"$f":"'Standing Data'!$F$9","v":0},{"$f":"'Standing Data'!#REF!","v":{"$error":"#REF!"}},"Fin.Return","E305",{"$f":"'Fin.Return - SOFA'!E253","v":0}]
[{"$f":"'Standing Data'!$D$12","v":{"$error":"#N/A"}},{"$f":"'Standing Data'!$F$9","v":0},{"$f":"'Standing Data'!#REF!","v":{"$error":"#REF!"}},"Fin.Return","E306",{"$f":"'Fin.Return - SOFA'!E254","v":0}]
[{"$f":"'Standing Data'!$D$12","v":{"$error":"#N/A"}},{"$f":"'Standing Data'!$F$9","v":0},{"$f":"'Standing Data'!#REF!","v":{"$error":"#REF!"}},"Fin.Return","E307",{"$f":"'Fin.Return - SOFA'!E255","v":0}]
[{"$f":"'Standing Data'!$D$12","v":{"$error":"#N/A"}},{"$f":"'Standing Data'!$F$9","v":0},{"$f":"'Standing Data'!#REF!","v":{"$error":"#REF!"}},"Fin.Return","E308",{"$f":"'Fin.Return - SOFA'!E256","v":0}]
[{"$f":"'Standing Data'!$D$12","v":{"$error":"#N/A"}},{"$f":"'Standing Data'!$F$9","v":0},{"$f":"'Standing Data'!#REF!","v":{"$error":"#REF!"}},"Fin.Return","E309",{"$f":"'Fin.Return - SOFA'!E257","v":0}]
[{"$f":"'Standing Data'!$D$12","v":{"$error":"#N/A"}},{"$f":"'Standing Data'!$F$9","v":0},{"$f":"'Standing Data'!#REF!","v":{"$error":"#REF!"}},"Fin.Return","E311",{"$f":"'Fin.Return - SOFA'!E259","v":0}]
[{"$f":"'Standing Data'!$D$12","v":{"$error":"#N/A"}},{"$f":"'Standing Data'!$F$9","v":0},{"$f":"'Standing Data'!#REF!","v":{"$error":"#REF!"}},"Fin.Return","E313",{"$f":"'Fin.Return - SOFA'!E261","v":0}]
[{"$f":"'Standing Data'!$D$12","v":{"$error":"#N/A"}},{"$f":"'Standing Data'!$F$9","v":0},{"$f":"'Standing Data'!#REF!","v":{"$error":"#REF!"}},"Fin.Return","E318",{"$f":"'Fin.Return - SOFA'!E266","v":0}]
[{"$f":"'Standing Data'!$D$12","v":{"$error":"#N/A"}},{"$f":"'Standing Data'!$F$9","v":0},{"$f":"'Standing Data'!#REF!","v":{"$error":"#REF!"}},"Fin.Return","E319",{"$f":"'Fin.Return - SOFA'!E267","v":0}]
[{"$f":"'Standing Data'!$D$12","v":{"$error":"#N/A"}},{"$f":"'Standing Data'!$F$9","v":0},{"$f":"'Standing Data'!#REF!","v":{"$error":"#REF!"}},"Fin.Return","E320",{"$f":"'Fin.Return - SOFA'!E268","v":0}]
[{"$f":"'Standing Data'!$D$12","v":{"$error":"#N/A"}},{"$f":"'Standing Data'!$F$9","v":0},{"$f":"'Standing Data'!#REF!","v":{"$error":"#REF!"}},"Fin.Return","E321",{"$f":"'Fin.Return - SOFA'!E269","v":0}]
[{"$f":"'Standing Data'!$D$12","v":{"$error":"#N/A"}},{"$f":"'Standing Data'!$F$9","v":0},{"$f":"'Standing Data'!#REF!","v":{"$error":"#REF!"}},"Fin.Return","E323",{"$f":"'Fin.Return - SOFA'!E271","v":0}]
[{"$f":"'Standing Data'!$D$12","v":{"$error":"#N/A"}},{"$f":"'Standing Data'!$F$9","v":0},{"$f":"'Standing Data'!#REF!","v":{"$error":"#REF!"}},"Fin.Return","E324",{"$f":"'Fin.Return - SOFA'!E272","v":0}]
[{"$f":"'Standing Data'!$D$12","v":{"$error":"#N/A"}},{"$f":"'Standing Data'!$F$9","v":0},{"$f":"'Standing Data'!#REF!","v":{"$error":"#REF!"}},"Fin.Return","E325",{"$f":"'Fin.Return - SOFA'!E273","v":0}]
[{"$f":"'Standing Data'!$D$12","v":{"$error":"#N/A"}},{"$f":"'Standing Data'!$F$9","v":0},{"$f":"'Standing Data'!#REF!","v":{"$error":"#REF!"}},"Fin.Return","E326",{"$f":"'Fin.Return - SOFA'!E274","v":0}]
[{"$f":"'Standing Data'!$D$12","v":{"$error":"#N/A"}},{"$f":"'Standing Data'!$F$9","v":0},{"$f":"'Standing Data'!#REF!","v":{"$error":"#REF!"}},"Fin.Return","E327",{"$f":"'Fin.Return - SOFA'!E275","v":0}]
[{"$f":"'Standing Data'!$D$12","v":{"$error":"#N/A"}},{"$f":"'Standing Data'!$F$9","v":0},{"$f":"'Standing Data'!#REF!","v":{"$error":"#REF!"}},"Fin.Return","E328",{"$f":"'Fin.Return - SOFA'!E277","v":0}]
[{"$f":"'Standing Data'!$D$12","v":{"$error":"#N/A"}},{"$f":"'Standing Data'!$F$9","v":0},{"$f":"'Standing Data'!#REF!","v":{"$error":"#REF!"}},"Fin.Return","E330",{"$f":"'Fin.Return - SOFA'!E279","v":0}]
[{"$f":"'Standing Data'!$D$12","v":{"$error":"#N/A"}},{"$f":"'Standing Data'!$F$9","v":0},{"$f":"'Standing Data'!#REF!","v":{"$error":"#REF!"}},"Fin.Return","E331",{"$f":"'Fin.Return - SOFA'!E280","v":0}]
[{"$f":"'Standing Data'!$D$12","v":{"$error":"#N/A"}},{"$f":"'Standing Data'!$F$9","v":0},{"$f":"'Standing Data'!#REF!","v":{"$error":"#REF!"}},"Fin.Return","E332",{"$f":"'Fin.Return - SOFA'!E281","v":0}]
[{"$f":"'Standing Data'!$D$12","v":{"$error":"#N/A"}},{"$f":"'Standing Data'!$F$9","v":0},{"$f":"'Standing Data'!#REF!","v":{"$error":"#REF!"}},"Fin.Return","E334",{"$f":"'Fin.Return - SOFA'!E283","v":0}]
[{"$f":"'Standing Data'!$D$12","v":{"$error":"#N/A"}},{"$f":"'Standing Data'!$F$9","v":0},{"$f":"'Standing Data'!#REF!","v":{"$error":"#REF!"}},"Fin.Return","E340",{"$f":"'Fin.Return - SOFA'!E289","v":0}]
[{"$f":"'Standing Data'!$D$12","v":{"$error":"#N/A"}},{"$f":"'Standing Data'!$F$9","v":0},{"$f":"'Standing Data'!#REF!","v":{"$error":"#REF!"}},"Fin.Return","E341",{"$f":"'Fin.Return - SOFA'!E290","v":0}]
[{"$f":"'Standing Data'!$D$12","v":{"$error":"#N/A"}},{"$f":"'Standing Data'!$F$9","v":0},{"$f":"'Standing Data'!#REF!","v":{"$error":"#REF!"}},"Fin.Return","E342",{"$f":"'Fin.Return - SOFA'!E291","v":0}]
[{"$f":"'Standing Data'!$D$12","v":{"$error":"#N/A"}},{"$f":"'Standing Data'!$F$9","v":0},{"$f":"'Standing Data'!#REF!","v":{"$error":"#REF!"}},"Fin.Return","E344",{"$f":"'Fin.Return - SOFA'!E293","v":0}]
[{"$f":"'Standing Data'!$D$12","v":{"$error":"#N/A"}},{"$f":"'Standing Data'!$F$9","v":0},{"$f":"'Standing Data'!#REF!","v":{"$error":"#REF!"}},"Fin.Return","E345",{"$f":"'Fin.Return - SOFA'!E294","v":0}]
[{"$f":"'Standing Data'!$D$12","v":{"$error":"#N/A"}},{"$f":"'Standing Data'!$F$9","v":0},{"$f":"'Standing Data'!#REF!","v":{"$error":"#REF!"}},"Fin.Return","E346",{"$f":"'Fin.Return - SOFA'!E295","v":0}]
[{"$f":"'Standing Data'!$D$12","v":{"$error":"#N/A"}},{"$f":"'Standing Data'!$F$9","v":0},{"$f":"'Standing Data'!#REF!","v":{"$error":"#REF!"}},"Fin.Return","E347",{"$f":"'Fin.Return - SOFA'!E296","v":0}]
[{"$f":"'Standing Data'!$D$12","v":{"$error":"#N/A"}},{"$f":"'Standing Data'!$F$9","v":0},{"$f":"'Standing Data'!#REF!","v":{"$error":"#REF!"}},"Fin.Return","E349",{"$f":"'Fin.Return - SOFA'!E298","v":0}]
[{"$f":"'Standing Data'!$D$12","v":{"$error":"#N/A"}},{"$f":"'Standing Data'!$F$9","v":0},{"$f":"'Standing Data'!#REF!","v":{"$error":"#REF!"}},"Fin.Return","E350",{"$f":"'Fin.Return - SOFA'!E299","v":0}]
[{"$f":"'Standing Data'!$D$12","v":{"$error":"#N/A"}},{"$f":"'Standing Data'!$F$9","v":0},{"$f":"'Standing Data'!#REF!","v":{"$error":"#REF!"}},"Fin.Return","E352",{"$f":"'Fin.Return - SOFA'!E301","v":0}]
[{"$f":"'Standing Data'!$D$12","v":{"$error":"#N/A"}},{"$f":"'Standing Data'!$F$9","v":0},{"$f":"'Standing Data'!#REF!","v":{"$error":"#REF!"}},"Fin.Return","E357",{"$f":"'Fin.Return - SOFA'!E306","v":0}]
[{"$f":"'Standing Data'!$D$12","v":{"$error":"#N/A"}},{"$f":"'Standing Data'!$F$9","v":0},{"$f":"'Standing Data'!#REF!","v":{"$error":"#REF!"}},"Fin.Return","E358",{"$f":"'Fin.Return - SOFA'!E307","v":0}]
[{"$f":"'Standing Data'!$D$12","v":{"$error":"#N/A"}},{"$f":"'Standing Data'!$F$9","v":0},{"$f":"'Standing Data'!#REF!","v":{"$error":"#REF!"}},"Fin.Return","E359",{"$f":"'Fin.Return - SOFA'!E308","v":0}]
[{"$f":"'Standing Data'!$D$12","v":{"$error":"#N/A"}},{"$f":"'Standing Data'!$F$9","v":0},{"$f":"'Standing Data'!#REF!","v":{"$error":"#REF!"}},"Fin.Return","E361",{"$f":"'Fin.Return - SOFA'!E310","v":0}]
[{"$f":"'Standing Data'!$D$12","v":{"$error":"#N/A"}},{"$f":"'Standing Data'!$F$9","v":0},{"$f":"'Standing Data'!#REF!","v":{"$error":"#REF!"}},"Fin.Return","E366",{"$f":"'Fin.Return - SOFA'!E315","v":0}]
[{"$f":"'Standing Data'!$D$12","v":{"$error":"#N/A"}},{"$f":"'Standing Data'!$F$9","v":0},{"$f":"'Standing Data'!#REF!","v":{"$error":"#REF!"}},"Fin.Return","E367",{"$f":"'Fin.Return - SOFA'!E316","v":0}]
[{"$f":"'Standing Data'!$D$12","v":{"$error":"#N/A"}},{"$f":"'Standing Data'!$F$9","v":0},{"$f":"'Standing Data'!#REF!","v":{"$error":"#REF!"}},"Fin.Return","E368",{"$f":"'Fin.Return - SOFA'!E317","v":0}]
[{"$f":"'Standing Data'!$D$12","v":{"$error":"#N/A"}},{"$f":"'Standing Data'!$F$9","v":0},{"$f":"'Standing Data'!#REF!","v":{"$error":"#REF!"}},"Fin.Return","E369",{"$f":"'Fin.Return - SOFA'!E318","v":0}]
[{"$f":"'Standing Data'!$D$12","v":{"$error":"#N/A"}},{"$f":"'Standing Data'!$F$9","v":0},{"$f":"'Standing Data'!#REF!","v":{"$error":"#REF!"}},"Fin.Return","E370",{"$f":"'Fin.Return - SOFA'!E319","v":0}]
[{"$f":"'Standing Data'!$D$12","v":{"$error":"#N/A"}},{"$f":"'Standing Data'!$F$9","v":0},{"$f":"'Standing Data'!#REF!","v":{"$error":"#REF!"}},"Fin.Return","E371",{"$f":"'Fin.Return - SOFA'!E320","v":0}]
[{"$f":"'Standing Data'!$D$12","v":{"$error":"#N/A"}},{"$f":"'Standing Data'!$F$9","v":0},{"$f":"'Standing Data'!#REF!","v":{"$error":"#REF!"}},"Fin.Return","E372",{"$f":"'Fin.Return - SOFA'!E321","v":0}]
[{"$f":"'Standing Data'!$D$12","v":{"$error":"#N/A"}},{"$f":"'Standing Data'!$F$9","v":0},{"$f":"'Standing Data'!#REF!","v":{"$error":"#REF!"}},"Fin.Return","E373",{"$f":"'Fin.Return - SOFA'!E322","v":0}]
[{"$f":"'Standing Data'!$D$12","v":{"$error":"#N/A"}},{"$f":"'Standing Data'!$F$9","v":0},{"$f":"'Standing Data'!#REF!","v":{"$error":"#REF!"}},"Fin.Return","E374",{"$f":"'Fin.Return - SOFA'!E323","v":0}]
[{"$f":"'Standing Data'!$D$12","v":{"$error":"#N/A"}},{"$f":"'Standing Data'!$F$9","v":0},{"$f":"'Standing Data'!#REF!","v":{"$error":"#REF!"}},"Fin.Return","E375",{"$f":"'Fin.Return - SOFA'!E324","v":0}]
[{"$f":"'Standing Data'!$D$12","v":{"$error":"#N/A"}},{"$f":"'Standing Data'!$F$9","v":0},{"$f":"'Standing Data'!#REF!","v":{"$error":"#REF!"}},"Fin.Return","E376",{"$f":"'Fin.Return - SOFA'!E325","v":0}]
[{"$f":"'Standing Data'!$D$12","v":{"$error":"#N/A"}},{"$f":"'Standing Data'!$F$9","v":0},{"$f":"'Standing Data'!#REF!","v":{"$error":"#REF!"}},"Fin.Return","E377",{"$f":"'Fin.Return - SOFA'!E326","v":0}]
[{"$f":"'Standing Data'!$D$12","v":{"$error":"#N/A"}},{"$f":"'Standing Data'!$F$9","v":0},{"$f":"'Standing Data'!#REF!","v":{"$error":"#REF!"}},"Fin.Return","E378",{"$f":"'Fin.Return - SOFA'!E327","v":0}]
[{"$f":"'Standing Data'!$D$12","v":{"$error":"#N/A"}},{"$f":"'Standing Data'!$F$9","v":0},{"$f":"'Standing Data'!#REF!","v":{"$error":"#REF!"}},"Fin.Return","E379",{"$f":"'Fin.Return - SOFA'!E328","v":0}]
[{"$f":"'Standing Data'!$D$12","v":{"$error":"#N/A"}},{"$f":"'Standing Data'!$F$9","v":0},{"$f":"'Standing Data'!#REF!","v":{"$error":"#REF!"}},"Fin.Return","E380",{"$f":"'Fin.Return - SOFA'!E329","v":0}]
[{"$f":"'Standing Data'!$D$12","v":{"$error":"#N/A"}},{"$f":"'Standing Data'!$F$9","v":0},{"$f":"'Standing Data'!#REF!","v":{"$error":"#REF!"}},"Fin.Return","E381",{"$f":"'Fin.Return - SOFA'!E330","v":0}]
[{"$f":"'Standing Data'!$D$12","v":{"$error":"#N/A"}},{"$f":"'Standing Data'!$F$9","v":0},{"$f":"'Standing Data'!#REF!","v":{"$error":"#REF!"}},"Fin.Return","E382",{"$f":"'Fin.Return - SOFA'!E331","v":0}]
[{"$f":"'Standing Data'!$D$12","v":{"$error":"#N/A"}},{"$f":"'Standing Data'!$F$9","v":0},{"$f":"'Standing Data'!#REF!","v":{"$error":"#REF!"}},"Fin.Return","E383",{"$f":"'Fin.Return - SOFA'!E332","v":0}]
[{"$f":"'Standing Data'!$D$12","v":{"$error":"#N/A"}},{"$f":"'Standing Data'!$F$9","v":0},{"$f":"'Standing Data'!#REF!","v":{"$error":"#REF!"}},"Fin.Return","E384",{"$f":"'Fin.Return - SOFA'!E333","v":0}]
[{"$f":"'Standing Data'!$D$12","v":{"$error":"#N/A"}},{"$f":"'Standing Data'!$F$9","v":0},{"$f":"'Standing Data'!#REF!","v":{"$error":"#REF!"}},"Fin.Return","E385",{"$f":"'Fin.Return - SOFA'!E334","v":0}]
[{"$f":"'Standing Data'!$D$12","v":{"$error":"#N/A"}},{"$f":"'Standing Data'!$F$9","v":0},{"$f":"'Standing Data'!#REF!","v":{"$error":"#REF!"}},"Fin.Return","E386",{"$f":"'Fin.Return - SOFA'!E335","v":0}]
[{"$f":"'Standing Data'!$D$12","v":{"$error":"#N/A"}},{"$f":"'Standing Data'!$F$9","v":0},{"$f":"'Standing Data'!#REF!","v":{"$error":"#REF!"}},"Fin.Return","E387",{"$f":"'Fin.Return - SOFA'!E336","v":0}]
[{"$f":"'Standing Data'!$D$12","v":{"$error":"#N/A"}},{"$f":"'Standing Data'!$F$9","v":0},{"$f":"'Standing Data'!#REF!","v":{"$error":"#REF!"}},"Fin.Return","E388",{"$f":"'Fin.Return - SOFA'!E337","v":0}]
[{"$f":"'Standing Data'!$D$12","v":{"$error":"#N/A"}},{"$f":"'Standing Data'!$F$9","v":0},{"$f":"'Standing Data'!#REF!","v":{"$error":"#REF!"}},"Fin.Return","E389",{"$f":"'Fin.Return - SOFA'!E338","v":0}]
[{"$f":"'Standing Data'!$D$12","v":{"$error":"#N/A"}},{"$f":"'Standing Data'!$F$9","v":0},{"$f":"'Standing Data'!#REF!","v":{"$error":"#REF!"}},"Fin.Return","E390",{"$f":"'Fin.Return - SOFA'!E339","v":0}]
[{"$f":"'Standing Data'!$D$12","v":{"$error":"#N/A"}},{"$f":"'Standing Data'!$F$9","v":0},{"$f":"'Standing Data'!#REF!","v":{"$error":"#REF!"}},"Fin.Return","E391",{"$f":"'Fin.Return - SOFA'!E340","v":0}]
[{"$f":"'Standing Data'!$D$12","v":{"$error":"#N/A"}},{"$f":"'Standing Data'!$F$9","v":0},{"$f":"'Standing Data'!#REF!","v":{"$error":"#REF!"}},"Fin.Return","E392",{"$f":"'Fin.Return - SOFA'!E341","v":0}]
[{"$f":"'Standing Data'!$D$12","v":{"$error":"#N/A"}},{"$f":"'Standing Data'!$F$9","v":0},{"$f":"'Standing Data'!#REF!","v":{"$error":"#REF!"}},"Fin.Return","E393",{"$f":"'Fin.Return - SOFA'!E342","v":0}]
[{"$f":"'Standing Data'!$D$12","v":{"$error":"#N/A"}},{"$f":"'Standing Data'!$F$9","v":0},{"$f":"'Standing Data'!#REF!","v":{"$error":"#REF!"}},"Fin.Return","E394",{"$f":"'Fin.Return - SOFA'!E343","v":0}]
[{"$f":"'Standing Data'!$D$12","v":{"$error":"#N/A"}},{"$f":"'Standing Data'!$F$9","v":0},{"$f":"'Standing Data'!#REF!","v":{"$error":"#REF!"}},"Fin.Return","E395",{"$f":"'Fin.Return - SOFA'!E346","v":0}]
[{"$f":"'Standing Data'!$D$12","v":{"$error":"#N/A"}},{"$f":"'Standing Data'!$F$9","v":0},{"$f":"'Standing Data'!#REF!","v":{"$error":"#REF!"}},"Fin.Return","E400",{"$f":"'Fin.Return - SOFA'!E351","v":0}]
[{"$f":"'Standing Data'!$D$12","v":{"$error":"#N/A"}},{"$f":"'Standing Data'!$F$9","v":0},{"$f":"'Standing Data'!#REF!","v":{"$error":"#REF!"}},"Fin.Return","E423",{"$f":"'Fin.Return - SOFA'!E374","v":0}]
[{"$f":"'Standing Data'!$D$12","v":{"$error":"#N/A"}},{"$f":"'Standing Data'!$F$9","v":0},{"$f":"'Standing Data'!#REF!","v":{"$error":"#REF!"}},"Fin.Return","E424",{"$f":"'Fin.Return - SOFA'!E375","v":0}]
[{"$f":"'Standing Data'!$D$12","v":{"$error":"#N/A"}},{"$f":"'Standing Data'!$F$9","v":0},{"$f":"'Standing Data'!#REF!","v":{"$error":"#REF!"}},"Fin.Return","E425",{"$f":"'Fin.Return - SOFA'!E376","v":0}]
[{"$f":"'Standing Data'!$D$12","v":{"$error":"#N/A"}},{"$f":"'Standing Data'!$F$9","v":0},{"$f":"'Standing Data'!#REF!","v":{"$error":"#REF!"}},"Fin.Return","E426",{"$f":"'Fin.Return - SOFA'!E377","v":0}]
[{"$f":"'Standing Data'!$D$12","v":{"$error":"#N/A"}},{"$f":"'Standing Data'!$F$9","v":0},{"$f":"'Standing Data'!#REF!","v":{"$error":"#REF!"}},"Fin.Return","E427",{"$f":"'Fin.Return - SOFA'!E378","v":0}]
[{"$f":"'Standing Data'!$D$12","v":{"$error":"#N/A"}},{"$f":"'Standing Data'!$F$9","v":0},{"$f":"'Standing Data'!#REF!","v":{"$error":"#REF!"}},"Fin.Return","E429",{"$f":"'Fin.Return - SOFA'!E380","v":0}]
[{"$f":"'Standing Data'!$D$12","v":{"$error":"#N/A"}},{"$f":"'Standing Data'!$F$9","v":0},{"$f":"'Standing Data'!#REF!","v":{"$error":"#REF!"}},"Fin.Return","E431",{"$f":"'Fin.Return - SOFA'!E382","v":0}]
[{"$f":"'Standing Data'!$D$12","v":{"$error":"#N/A"}},{"$f":"'Standing Data'!$F$9","v":0},{"$f":"'Standing Data'!#REF!","v":{"$error":"#REF!"}},"Fin.Return","E432",{"$f":"'Fin.Return - SOFA'!E383","v":0}]
[{"$f":"'Standing Data'!$D$12","v":{"$error":"#N/A"}},{"$f":"'Standing Data'!$F$9","v":0},{"$f":"'Standing Data'!#REF!","v":{"$error":"#REF!"}},"Fin.Return","E433",{"$f":"'Fin.Return - SOFA'!E384","v":0}]
[{"$f":"'Standing Data'!$D$12","v":{"$error":"#N/A"}},{"$f":"'Standing Data'!$F$9","v":0},{"$f":"'Standing Data'!#REF!","v":{"$error":"#REF!"}},"Fin.Return","E434",{"$f":"'Fin.Return - SOFA'!E385","v":0}]
[{"$f":"'Standing Data'!$D$12","v":{"$error":"#N/A"}},{"$f":"'Standing Data'!$F$9","v":0},{"$f":"'Standing Data'!#REF!","v":{"$error":"#REF!"}},"Fin.Return","E435",{"$f":"'Fin.Return - SOFA'!E386","v":0}]
[{"$f":"'Standing Data'!$D$12","v":{"$error":"#N/A"}},{"$f":"'Standing Data'!$F$9","v":0},{"$f":"'Standing Data'!#REF!","v":{"$error":"#REF!"}},"Fin.Return","E436",{"$f":"'Fin.Return - SOFA'!E387","v":0}]
[{"$f":"'Standing Data'!$D$12","v":{"$error":"#N/A"}},{"$f":"'Standing Data'!$F$9","v":0},{"$f":"'Standing Data'!#REF!","v":{"$error":"#REF!"}},"Fin.Return","E437",{"$f":"'Fin.Return - SOFA'!E388","v":0}]
[{"$f":"'Standing Data'!$D$12","v":{"$error":"#N/A"}},{"$f":"'Standing Data'!$F$9","v":0},{"$f":"'Standing Data'!#REF!","v":{"$error":"#REF!"}},"Fin.Return","E438",{"$f":"'Fin.Return - SOFA'!E389","v":0}]
[{"$f":"'Standing Data'!$D$12","v":{"$error":"#N/A"}},{"$f":"'Standing Data'!$F$9","v":0},{"$f":"'Standing Data'!#REF!","v":{"$error":"#REF!"}},"Fin.Return","E439",{"$f":"'Fin.Return - SOFA'!E390","v":0}]
[{"$f":"'Standing Data'!$D$12","v":{"$error":"#N/A"}},{"$f":"'Standing Data'!$F$9","v":0},{"$f":"'Standing Data'!#REF!","v":{"$error":"#REF!"}},"Fin.Return","E440",{"$f":"'Fin.Return - SOFA'!E391","v":0}]
[{"$f":"'Standing Data'!$D$12","v":{"$error":"#N/A"}},{"$f":"'Standing Data'!$F$9","v":0},{"$f":"'Standing Data'!#REF!","v":{"$error":"#REF!"}},"Fin.Return","E441",{"$f":"'Fin.Return - SOFA'!E392","v":0}]
[{"$f":"'Standing Data'!$D$12","v":{"$error":"#N/A"}},{"$f":"'Standing Data'!$F$9","v":0},{"$f":"'Standing Data'!#REF!","v":{"$error":"#REF!"}},"Fin.Return","E442",{"$f":"'Fin.Return - SOFA'!E393","v":0}]
[{"$f":"'Standing Data'!$D$12","v":{"$error":"#N/A"}},{"$f":"'Standing Data'!$F$9","v":0},{"$f":"'Standing Data'!#REF!","v":{"$error":"#REF!"}},"Fin.Return","E443",{"$f":"'Fin.Return - SOFA'!E394","v":0}]
[{"$f":"'Standing Data'!$D$12","v":{"$error":"#N/A"}},{"$f":"'Standing Data'!$F$9","v":0},{"$f":"'Standing Data'!#REF!","v":{"$error":"#REF!"}},"Fin.Return","E444",{"$f":"'Fin.Return - SOFA'!E395","v":0}]
[{"$f":"'Standing Data'!$D$12","v":{"$error":"#N/A"}},{"$f":"'Standing Data'!$F$9","v":0},{"$f":"'Standing Data'!#REF!","v":{"$error":"#REF!"}},"Fin.Return","E445",{"$f":"'Fin.Return - SOFA'!E396","v":0}]
[{"$f":"'Standing Data'!$D$12","v":{"$error":"#N/A"}},{"$f":"'Standing Data'!$F$9","v":0},{"$f":"'Standing Data'!#REF!","v":{"$error":"#REF!"}},"Fin.Return","E446",{"$f":"'Fin.Return - SOFA'!E397","v":0}]
[{"$f":"'Standing Data'!$D$12","v":{"$error":"#N/A"}},{"$f":"'Standing Data'!$F$9","v":0},{"$f":"'Standing Data'!#REF!","v":{"$error":"#REF!"}},"Fin.Return","E447",{"$f":"'Fin.Return - SOFA'!E398","v":0}]
[{"$f":"'Standing Data'!$D$12","v":{"$error":"#N/A"}},{"$f":"'Standing Data'!$F$9","v":0},{"$f":"'Standing Data'!#REF!","v":{"$error":"#REF!"}},"Fin.Return","E449",{"$f":"'Fin.Return - SOFA'!E400","v":0}]
[{"$f":"'Standing Data'!$D$12","v":{"$error":"#N/A"}},{"$f":"'Standing Data'!$F$9","v":0},{"$f":"'Standing Data'!#REF!","v":{"$error":"#REF!"}},"Fin.Return","E451",{"$f":"'Fin.Return - SOFA'!E402","v":0}]
[{"$f":"'Standing Data'!$D$12","v":{"$error":"#N/A"}},{"$f":"'Standing Data'!$F$9","v":0},{"$f":"'Standing Data'!#REF!","v":{"$error":"#REF!"}},"Fin.Return","E452",{"$f":"'Fin.Return - SOFA'!E403","v":0}]
[{"$f":"'Standing Data'!$D$12","v":{"$error":"#N/A"}},{"$f":"'Standing Data'!$F$9","v":0},{"$f":"'Standing Data'!#REF!","v":{"$error":"#REF!"}},"Fin.Return","E454",{"$f":"'Fin.Return - SOFA'!E405","v":0}]
[{"$f":"'Standing Data'!$D$12","v":{"$error":"#N/A"}},{"$f":"'Standing Data'!$F$9","v":0},{"$f":"'Standing Data'!#REF!","v":{"$error":"#REF!"}},"Fin.Return","E468",{"$f":"'Fin.Return - BS'!E64","v":0}]
[{"$f":"'Standing Data'!$D$12","v":{"$error":"#N/A"}},{"$f":"'Standing Data'!$F$9","v":0},{"$f":"'Standing Data'!#REF!","v":{"$error":"#REF!"}},"Fin.Return","E469",{"$f":"'Fin.Return - BS'!E65","v":0}]
[{"$f":"'Standing Data'!$D$12","v":{"$error":"#N/A"}},{"$f":"'Standing Data'!$F$9","v":0},{"$f":"'Standing Data'!#REF!","v":{"$error":"#REF!"}},"Fin.Return","E470",{"$f":"'Fin.Return - BS'!E67","v":0}]
[{"$f":"'Standing Data'!$D$12","v":{"$error":"#N/A"}},{"$f":"'Standing Data'!$F$9","v":0},{"$f":"'Standing Data'!#REF!","v":{"$error":"#REF!"}},"Fin.Return","E471",{"$f":"'Fin.Return - BS'!E68","v":0}]
[{"$f":"'Standing Data'!$D$12","v":{"$error":"#N/A"}},{"$f":"'Standing Data'!$F$9","v":0},{"$f":"'Standing Data'!#REF!","v":{"$error":"#REF!"}},"Fin.Return","E472",{"$f":"'Fin.Return - BS'!E70","v":0}]
[{"$f":"'Standing Data'!$D$12","v":{"$error":"#N/A"}},{"$f":"'Standing Data'!$F$9","v":0},{"$f":"'Standing Data'!#REF!","v":{"$error":"#REF!"}},"Fin.Return","E473",{"$f":"'Fin.Return - BS'!E72","v":0}]
[{"$f":"'Standing Data'!$D$12","v":{"$error":"#N/A"}},{"$f":"'Standing Data'!$F$9","v":0},{"$f":"'Standing Data'!#REF!","v":{"$error":"#REF!"}},"Fin.Return","E474",{"$f":"'Fin.Return - BS'!E74","v":0}]
[{"$f":"'Standing Data'!$D$12","v":{"$error":"#N/A"}},{"$f":"'Standing Data'!$F$9","v":0},{"$f":"'Standing Data'!#REF!","v":{"$error":"#REF!"}},"Fin.Return","E475",{"$f":"'Fin.Return - BS'!E75","v":0}]
[{"$f":"'Standing Data'!$D$12","v":{"$error":"#N/A"}},{"$f":"'Standing Data'!$F$9","v":0},{"$f":"'Standing Data'!#REF!","v":{"$error":"#REF!"}},"Fin.Return","E477",{"$f":"'Fin.Return - BS'!E77","v":0}]
[{"$f":"'Standing Data'!$D$12","v":{"$error":"#N/A"}},{"$f":"'Standing Data'!$F$9","v":0},{"$f":"'Standing Data'!#REF!","v":{"$error":"#REF!"}},"Fin.Return","E480",{"$f":"'Fin.Return - BS'!E80","v":0}]
[{"$f":"'Standing Data'!$D$12","v":{"$error":"#N/A"}},{"$f":"'Standing Data'!$F$9","v":0},{"$f":"'Standing Data'!#REF!","v":{"$error":"#REF!"}},"Fin.Return","E481",{"$f":"'Fin.Return - BS'!E81","v":0}]
[{"$f":"'Standing Data'!$D$12","v":{"$error":"#N/A"}},{"$f":"'Standing Data'!$F$9","v":0},{"$f":"'Standing Data'!#REF!","v":{"$error":"#REF!"}},"Fin.Return","E482",{"$f":"'Fin.Return - BS'!E82","v":0}]
[{"$f":"'Standing Data'!$D$12","v":{"$error":"#N/A"}},{"$f":"'Standing Data'!$F$9","v":0},{"$f":"'Standing Data'!#REF!","v":{"$error":"#REF!"}},"Fin.Return","E483",{"$f":"'Fin.Return - BS'!E84","v":0}]
[{"$f":"'Standing Data'!$D$12","v":{"$error":"#N/A"}},{"$f":"'Standing Data'!$F$9","v":0},{"$f":"'Standing Data'!#REF!","v":{"$error":"#REF!"}},"Fin.Return","E484",{"$f":"'Fin.Return - BS'!E85","v":0}]
[{"$f":"'Standing Data'!$D$12","v":{"$error":"#N/A"}},{"$f":"'Standing Data'!$F$9","v":0},{"$f":"'Standing Data'!#REF!","v":{"$error":"#REF!"}},"Fin.Return","E486",{"$f":"'Fin.Return - BS'!E87","v":0}]
[{"$f":"'Standing Data'!$D$12","v":{"$error":"#N/A"}},{"$f":"'Standing Data'!$F$9","v":0},{"$f":"'Standing Data'!#REF!","v":{"$error":"#REF!"}},"Fin.Return","E489",{"$f":"'Fin.Return - BS'!E90","v":0}]
[{"$f":"'Standing Data'!$D$12","v":{"$error":"#N/A"}},{"$f":"'Standing Data'!$F$9","v":0},{"$f":"'Standing Data'!#REF!","v":{"$error":"#REF!"}},"Fin.Return","E490",{"$f":"'Fin.Return - BS'!E91","v":0}]
[{"$f":"'Standing Data'!$D$12","v":{"$error":"#N/A"}},{"$f":"'Standing Data'!$F$9","v":0},{"$f":"'Standing Data'!#REF!","v":{"$error":"#REF!"}},"Fin.Return","E491",{"$f":"'Fin.Return - BS'!E92","v":0}]
[{"$f":"'Standing Data'!$D$12","v":{"$error":"#N/A"}},{"$f":"'Standing Data'!$F$9","v":0},{"$f":"'Standing Data'!#REF!","v":{"$error":"#REF!"}},"Fin.Return","E493",{"$f":"'Fin.Return - BS'!E95","v":0}]
[{"$f":"'Standing Data'!$D$12","v":{"$error":"#N/A"}},{"$f":"'Standing Data'!$F$9","v":0},{"$f":"'Standing Data'!#REF!","v":{"$error":"#REF!"}},"Fin.Return","E496",{"$f":"'Fin.Return - BS'!E98","v":0}]
[{"$f":"'Standing Data'!$D$12","v":{"$error":"#N/A"}},{"$f":"'Standing Data'!$F$9","v":0},{"$f":"'Standing Data'!#REF!","v":{"$error":"#REF!"}},"Fin.Return","E499",{"$f":"'Fin.Return - BS'!E101","v":0}]
[{"$f":"'Standing Data'!$D$12","v":{"$error":"#N/A"}},{"$f":"'Standing Data'!$F$9","v":0},{"$f":"'Standing Data'!#REF!","v":{"$error":"#REF!"}},"Fin.Return","E514",{"$f":"'Fin.Return - BS'!E116","v":0}]
[{"$f":"'Standing Data'!$D$12","v":{"$error":"#N/A"}},{"$f":"'Standing Data'!$F$9","v":0},{"$f":"'Standing Data'!#REF!","v":{"$error":"#REF!"}},"Fin.Return","E515",{"$f":"'Fin.Return - BS'!E117","v":0}]
[{"$f":"'Standing Data'!$D$12","v":{"$error":"#N/A"}},{"$f":"'Standing Data'!$F$9","v":0},{"$f":"'Standing Data'!#REF!","v":{"$error":"#REF!"}},"Fin.Return","E517",{"$f":"'Fin.Return - BS'!E119","v":0}]
[{"$f":"'Standing Data'!$D$12","v":{"$error":"#N/A"}},{"$f":"'Standing Data'!$F$9","v":0},{"$f":"'Standing Data'!#REF!","v":{"$error":"#REF!"}},"Fin.Return","E519",{"$f":"'Fin.Return - BS'!E121","v":0}]
[{"$f":"'Standing Data'!$D$12","v":{"$error":"#N/A"}},{"$f":"'Standing Data'!$F$9","v":0},{"$f":"'Standing Data'!#REF!","v":{"$error":"#REF!"}},"Fin.Return","E525",{"$f":"'Fin.Return - BS'!E127","v":0}]
[{"$f":"'Standing Data'!$D$12","v":{"$error":"#N/A"}},{"$f":"'Standing Data'!$F$9","v":0},{"$f":"'Standing Data'!#REF!","v":{"$error":"#REF!"}},"Fin.Return","E526",{"$f":"'Fin.Return - BS'!E128","v":0}]
[{"$f":"'Standing Data'!$D$12","v":{"$error":"#N/A"}},{"$f":"'Standing Data'!$F$9","v":0},{"$f":"'Standing Data'!#REF!","v":{"$error":"#REF!"}},"Fin.Return","E527",{"$f":"'Fin.Return - BS'!E129","v":0}]
[{"$f":"'Standing Data'!$D$12","v":{"$error":"#N/A"}},{"$f":"'Standing Data'!$F$9","v":0},{"$f":"'Standing Data'!#REF!","v":{"$error":"#REF!"}},"Fin.Return","E528",{"$f":"'Fin.Return - BS'!E130","v":0}]
[{"$f":"'Standing Data'!$D$12","v":{"$error":"#N/A"}},{"$f":"'Standing Data'!$F$9","v":0},{"$f":"'Standing Data'!#REF!","v":{"$error":"#REF!"}},"Fin.Return","E529",{"$f":"'Fin.Return - BS'!E132","v":0}]
[{"$f":"'Standing Data'!$D$12","v":{"$error":"#N/A"}},{"$f":"'Standing Data'!$F$9","v":0},{"$f":"'Standing Data'!#REF!","v":{"$error":"#REF!"}},"Fin.Return","E530",{"$f":"'Fin.Return - BS'!E134","v":0}]
[{"$f":"'Standing Data'!$D$12","v":{"$error":"#N/A"}},{"$f":"'Standing Data'!$F$9","v":0},{"$f":"'Standing Data'!#REF!","v":{"$error":"#REF!"}},"Fin.Return","E531",{"$f":"'Fin.Return - BS'!E135","v":0}]
[{"$f":"'Standing Data'!$D$12","v":{"$error":"#N/A"}},{"$f":"'Standing Data'!$F$9","v":0},{"$f":"'Standing Data'!#REF!","v":{"$error":"#REF!"}},"Fin.Return","E533",{"$f":"'Fin.Return - BS'!E137","v":0}]
[{"$f":"'Standing Data'!$D$12","v":{"$error":"#N/A"}},{"$f":"'Standing Data'!$F$9","v":0},{"$f":"'Standing Data'!#REF!","v":{"$error":"#REF!"}},"Fin.Return","E536",{"$f":"'Fin.Return - BS'!E140","v":0}]
[{"$f":"'Standing Data'!$D$12","v":{"$error":"#N/A"}},{"$f":"'Standing Data'!$F$9","v":0},{"$f":"'Standing Data'!#REF!","v":{"$error":"#REF!"}},"Fin.Return","E537",{"$f":"'Fin.Return - BS'!E141","v":0}]
[{"$f":"'Standing Data'!$D$12","v":{"$error":"#N/A"}},{"$f":"'Standing Data'!$F$9","v":0},{"$f":"'Standing Data'!#REF!","v":{"$error":"#REF!"}},"Fin.Return","E538",{"$f":"'Fin.Return - BS'!E142","v":0}]
[{"$f":"'Standing Data'!$D$12","v":{"$error":"#N/A"}},{"$f":"'Standing Data'!$F$9","v":0},{"$f":"'Standing Data'!#REF!","v":{"$error":"#REF!"}},"Fin.Return","E539",{"$f":"'Fin.Return - BS'!E144","v":0}]
[{"$f":"'Standing Data'!$D$12","v":{"$error":"#N/A"}},{"$f":"'Standing Data'!$F$9","v":0},{"$f":"'Standing Data'!#REF!","v":{"$error":"#REF!"}},"Fin.Return","E540",{"$f":"'Fin.Return - BS'!E145","v":0}]
[{"$f":"'Standing Data'!$D$12","v":{"$error":"#N/A"}},{"$f":"'Standing Data'!$F$9","v":0},{"$f":"'Standing Data'!#REF!","v":{"$error":"#REF!"}},"Fin.Return","E542",{"$f":"'Fin.Return - BS'!E147","v":0}]
[{"$f":"'Standing Data'!$D$12","v":{"$error":"#N/A"}},{"$f":"'Standing Data'!$F$9","v":0},{"$f":"'Standing Data'!#REF!","v":{"$error":"#REF!"}},"Fin.Return","E545",{"$f":"'Fin.Return - BS'!E150","v":0}]
[{"$f":"'Standing Data'!$D$12","v":{"$error":"#N/A"}},{"$f":"'Standing Data'!$F$9","v":0},{"$f":"'Standing Data'!#REF!","v":{"$error":"#REF!"}},"Fin.Return","E546",{"$f":"'Fin.Return - BS'!E151","v":0}]
[{"$f":"'Standing Data'!$D$12","v":{"$error":"#N/A"}},{"$f":"'Standing Data'!$F$9","v":0},{"$f":"'Standing Data'!#REF!","v":{"$error":"#REF!"}},"Fin.Return","E547",{"$f":"'Fin.Return - BS'!E152","v":0}]
[{"$f":"'Standing Data'!$D$12","v":{"$error":"#N/A"}},{"$f":"'Standing Data'!$F$9","v":0},{"$f":"'Standing Data'!#REF!","v":{"$error":"#REF!"}},"Fin.Return","E549",{"$f":"'Fin.Return - BS'!E155","v":0}]
[{"$f":"'Standing Data'!$D$12","v":{"$error":"#N/A"}},{"$f":"'Standing Data'!$F$9","v":0},{"$f":"'Standing Data'!#REF!","v":{"$error":"#REF!"}},"Fin.Return","E552",{"$f":"'Fin.Return - BS'!E158","v":0}]
[{"$f":"'Standing Data'!$D$12","v":{"$error":"#N/A"}},{"$f":"'Standing Data'!$F$9","v":0},{"$f":"'Standing Data'!#REF!","v":{"$error":"#REF!"}},"Fin.Return","E555",{"$f":"'Fin.Return - BS'!E161","v":0}]
[{"$f":"'Standing Data'!$D$12","v":{"$error":"#N/A"}},{"$f":"'Standing Data'!$F$9","v":0},{"$f":"'Standing Data'!#REF!","v":{"$error":"#REF!"}},"Fin.Return","E556",{"$f":"'Fin.Return - BS'!E162","v":""}]
[{"$f":"'Standing Data'!$D$12","v":{"$error":"#N/A"}},{"$f":"'Standing Data'!$F$9","v":0},{"$f":"'Standing Data'!#REF!","v":{"$error":"#REF!"}},"Fin.Return","E565",{"$f":"'Fin.Return - BS'!E172","v":0}]
[{"$f":"'Standing Data'!$D$12","v":{"$error":"#N/A"}},{"$f":"'Standing Data'!$F$9","v":0},{"$f":"'Standing Data'!#REF!","v":{"$error":"#REF!"}},"Fin.Return","E566",{"$f":"'Fin.Return - BS'!E173","v":0}]
[{"$f":"'Standing Data'!$D$12","v":{"$error":"#N/A"}},{"$f":"'Standing Data'!$F$9","v":0},{"$f":"'Standing Data'!#REF!","v":{"$error":"#REF!"}},"Fin.Return","E567",{"$f":"'Fin.Return - BS'!E174","v":0}]
[{"$f":"'Standing Data'!$D$12","v":{"$error":"#N/A"}},{"$f":"'Standing Data'!$F$9","v":0},{"$f":"'Standing Data'!#REF!","v":{"$error":"#REF!"}},"Fin.Return","E568",{"$f":"'Fin.Return - BS'!E175","v":0}]
[{"$f":"'Standing Data'!$D$12","v":{"$error":"#N/A"}},{"$f":"'Standing Data'!$F$9","v":0},{"$f":"'Standing Data'!#REF!","v":{"$error":"#REF!"}},"Fin.Return","E569",{"$f":"'Fin.Return - BS'!E176","v":0}]
[{"$f":"'Standing Data'!$D$12","v":{"$error":"#N/A"}},{"$f":"'Standing Data'!$F$9","v":0},{"$f":"'Standing Data'!#REF!","v":{"$error":"#REF!"}},"Fin.Return","E570",{"$f":"'Fin.Return - BS'!E179","v":0}]
[{"$f":"'Standing Data'!$D$12","v":{"$error":"#N/A"}},{"$f":"'Standing Data'!$F$9","v":0},{"$f":"'Standing Data'!#REF!","v":{"$error":"#REF!"}},"Fin.Return","E571",{"$f":"'Fin.Return - BS'!E180","v":0}]
[{"$f":"'Standing Data'!$D$12","v":{"$error":"#N/A"}},{"$f":"'Standing Data'!$F$9","v":0},{"$f":"'Standing Data'!#REF!","v":{"$error":"#REF!"}},"Fin.Return","E572",{"$f":"'Fin.Return - BS'!E182","v":0}]
[{"$f":"'Standing Data'!$D$12","v":{"$error":"#N/A"}},{"$f":"'Standing Data'!$F$9","v":0},{"$f":"'Standing Data'!#REF!","v":{"$error":"#REF!"}},"Fin.Return","E573",{"$f":"'Fin.Return - BS'!E183","v":0}]
[{"$f":"'Standing Data'!$D$12","v":{"$error":"#N/A"}},{"$f":"'Standing Data'!$F$9","v":0},{"$f":"'Standing Data'!#REF!","v":{"$error":"#REF!"}},"Fin.Return","E575",{"$f":"'Fin.Return - BS'!E185","v":0}]
[{"$f":"'Standing Data'!$D$12","v":{"$error":"#N/A"}},{"$f":"'Standing Data'!$F$9","v":0},{"$f":"'Standing Data'!#REF!","v":{"$error":"#REF!"}},"Fin.Return","E585",{"$f":"'Fin.Return - BS'!E195","v":0}]
[{"$f":"'Standing Data'!$D$12","v":{"$error":"#N/A"}},{"$f":"'Standing Data'!$F$9","v":0},{"$f":"'Standing Data'!#REF!","v":{"$error":"#REF!"}},"Fin.Return","E586",{"$f":"'Fin.Return - BS'!E196","v":0}]
[{"$f":"'Standing Data'!$D$12","v":{"$error":"#N/A"}},{"$f":"'Standing Data'!$F$9","v":0},{"$f":"'Standing Data'!#REF!","v":{"$error":"#REF!"}},"Fin.Return","E587",{"$f":"'Fin.Return - BS'!E197","v":0}]
[{"$f":"'Standing Data'!$D$12","v":{"$error":"#N/A"}},{"$f":"'Standing Data'!$F$9","v":0},{"$f":"'Standing Data'!#REF!","v":{"$error":"#REF!"}},"Fin.Return","E588",{"$f":"'Fin.Return - BS'!E198","v":0}]
[{"$f":"'Standing Data'!$D$12","v":{"$error":"#N/A"}},{"$f":"'Standing Data'!$F$9","v":0},{"$f":"'Standing Data'!#REF!","v":{"$error":"#REF!"}},"Fin.Return","E589",{"$f":"'Fin.Return - BS'!E199","v":0}]
[{"$f":"'Standing Data'!$D$12","v":{"$error":"#N/A"}},{"$f":"'Standing Data'!$F$9","v":0},{"$f":"'Standing Data'!#REF!","v":{"$error":"#REF!"}},"Fin.Return","E591",{"$f":"'Fin.Return - BS'!E201","v":0}]
[{"$f":"'Standing Data'!$D$12","v":{"$error":"#N/A"}},{"$f":"'Standing Data'!$F$9","v":0},{"$f":"'Standing Data'!#REF!","v":{"$error":"#REF!"}},"Fin.Return","E597",{"$f":"'Fin.Return - BS'!E207","v":0}]
[{"$f":"'Standing Data'!$D$12","v":{"$error":"#N/A"}},{"$f":"'Standing Data'!$F$9","v":0},{"$f":"'Standing Data'!#REF!","v":{"$error":"#REF!"}},"Fin.Return","E598",{"$f":"'Fin.Return - BS'!E208","v":0}]
[{"$f":"'Standing Data'!$D$12","v":{"$error":"#N/A"}},{"$f":"'Standing Data'!$F$9","v":0},{"$f":"'Standing Data'!#REF!","v":{"$error":"#REF!"}},"Fin.Return","E599",{"$f":"'Fin.Return - BS'!E209","v":0}]
[{"$f":"'Standing Data'!$D$12","v":{"$error":"#N/A"}},{"$f":"'Standing Data'!$F$9","v":0},{"$f":"'Standing Data'!#REF!","v":{"$error":"#REF!"}},"Fin.Return","E600",{"$f":"'Fin.Return - BS'!E210","v":0}]
[{"$f":"'Standing Data'!$D$12","v":{"$error":"#N/A"}},{"$f":"'Standing Data'!$F$9","v":0},{"$f":"'Standing Data'!#REF!","v":{"$error":"#REF!"}},"Fin.Return","E601",{"$f":"'Fin.Return - BS'!E211","v":0}]
[{"$f":"'Standing Data'!$D$12","v":{"$error":"#N/A"}},{"$f":"'Standing Data'!$F$9","v":0},{"$f":"'Standing Data'!#REF!","v":{"$error":"#REF!"}},"Fin.Return","E603",{"$f":"'Fin.Return - BS'!E213","v":0}]
[{"$f":"'Standing Data'!$D$12","v":{"$error":"#N/A"}},{"$f":"'Standing Data'!$F$9","v":0},{"$f":"'Standing Data'!#REF!","v":{"$error":"#REF!"}},"Fin.Return","E609",{"$f":"'Fin.Return - BS'!E219","v":0}]
[{"$f":"'Standing Data'!$D$12","v":{"$error":"#N/A"}},{"$f":"'Standing Data'!$F$9","v":0},{"$f":"'Standing Data'!#REF!","v":{"$error":"#REF!"}},"Fin.Return","E610",{"$f":"'Fin.Return - BS'!E220","v":0}]
[{"$f":"'Standing Data'!$D$12","v":{"$error":"#N/A"}},{"$f":"'Standing Data'!$F$9","v":0},{"$f":"'Standing Data'!#REF!","v":{"$error":"#REF!"}},"Fin.Return","E611",{"$f":"'Fin.Return - BS'!E221","v":0}]
[{"$f":"'Standing Data'!$D$12","v":{"$error":"#N/A"}},{"$f":"'Standing Data'!$F$9","v":0},{"$f":"'Standing Data'!#REF!","v":{"$error":"#REF!"}},"Fin.Return","E612",{"$f":"'Fin.Return - BS'!E222","v":0}]
[{"$f":"'Standing Data'!$D$12","v":{"$error":"#N/A"}},{"$f":"'Standing Data'!$F$9","v":0},{"$f":"'Standing Data'!#REF!","v":{"$error":"#REF!"}},"Fin.Return","E613",{"$f":"'Fin.Return - BS'!E223","v":0}]
[{"$f":"'Standing Data'!$D$12","v":{"$error":"#N/A"}},{"$f":"'Standing Data'!$F$9","v":0},{"$f":"'Standing Data'!#REF!","v":{"$error":"#REF!"}},"Fin.Return","E614",{"$f":"'Fin.Return - BS'!E224","v":0}]
[{"$f":"'Standing Data'!$D$12","v":{"$error":"#N/A"}},{"$f":"'Standing Data'!$F$9","v":0},{"$f":"'Standing Data'!#REF!","v":{"$error":"#REF!"}},"Fin.Return","E615",{"$f":"'Fin.Return - BS'!E225","v":0}]
[{"$f":"'Standing Data'!$D$12","v":{"$error":"#N/A"}},{"$f":"'Standing Data'!$F$9","v":0},{"$f":"'Standing Data'!#REF!","v":{"$error":"#REF!"}},"Fin.Return","E616",{"$f":"'Fin.Return - BS'!E226","v":0}]
[{"$f":"'Standing Data'!$D$12","v":{"$error":"#N/A"}},{"$f":"'Standing Data'!$F$9","v":0},{"$f":"'Standing Data'!#REF!","v":{"$error":"#REF!"}},"Fin.Return","E617",{"$f":"'Fin.Return - BS'!E227","v":0}]
[{"$f":"'Standing Data'!$D$12","v":{"$error":"#N/A"}},{"$f":"'Standing Data'!$F$9","v":0},{"$f":"'Standing Data'!#REF!","v":{"$error":"#REF!"}},"Fin.Return","E618",{"$f":"'Fin.Return - BS'!E228","v":0}]
[{"$f":"'Standing Data'!$D$12","v":{"$error":"#N/A"}},{"$f":"'Standing Data'!$F$9","v":0},{"$f":"'Standing Data'!#REF!","v":{"$error":"#REF!"}},"Fin.Return","E619",{"$f":"'Fin.Return - BS'!E229","v":0}]
[{"$f":"'Standing Data'!$D$12","v":{"$error":"#N/A"}},{"$f":"'Standing Data'!$F$9","v":0},{"$f":"'Standing Data'!#REF!","v":{"$error":"#REF!"}},"Fin.Return","E620",{"$f":"'Fin.Return - BS'!E230","v":0}]
[{"$f":"'Standing Data'!$D$12","v":{"$error":"#N/A"}},{"$f":"'Standing Data'!$F$9","v":0},{"$f":"'Standing Data'!#REF!","v":{"$error":"#REF!"}},"Fin.Return","E622",{"$f":"'Fin.Return - BS'!E232","v":0}]
[{"$f":"'Standing Data'!$D$12","v":{"$error":"#N/A"}},{"$f":"'Standing Data'!$F$9","v":0},{"$f":"'Standing Data'!#REF!","v":{"$error":"#REF!"}},"Fin.Return","E623",{"$f":"'Fin.Return - BS'!E233","v":0}]
[{"$f":"'Standing Data'!$D$12","v":{"$error":"#N/A"}},{"$f":"'Standing Data'!$F$9","v":0},{"$f":"'Standing Data'!#REF!","v":{"$error":"#REF!"}},"Fin.Return","E625",{"$f":"'Fin.Return - BS'!E235","v":0}]
[{"$f":"'Standing Data'!$D$12","v":{"$error":"#N/A"}},{"$f":"'Standing Data'!$F$9","v":0},{"$f":"'Standing Data'!#REF!","v":{"$error":"#REF!"}},"Fin.Return","E630",{"$f":"'Fin.Return - BS'!E241","v":0}]
[{"$f":"'Standing Data'!$D$12","v":{"$error":"#N/A"}},{"$f":"'Standing Data'!$F$9","v":0},{"$f":"'Standing Data'!#REF!","v":{"$error":"#REF!"}},"Fin.Return","E631",{"$f":"'Fin.Return - BS'!E242","v":0}]
[{"$f":"'Standing Data'!$D$12","v":{"$error":"#N/A"}},{"$f":"'Standing Data'!$F$9","v":0},{"$f":"'Standing Data'!#REF!","v":{"$error":"#REF!"}},"Fin.Return","E632",{"$f":"'Fin.Return - BS'!E243","v":0}]
[{"$f":"'Standing Data'!$D$12","v":{"$error":"#N/A"}},{"$f":"'Standing Data'!$F$9","v":0},{"$f":"'Standing Data'!#REF!","v":{"$error":"#REF!"}},"Fin.Return","E633",{"$f":"'Fin.Return - BS'!E244","v":0}]
[{"$f":"'Standing Data'!$D$12","v":{"$error":"#N/A"}},{"$f":"'Standing Data'!$F$9","v":0},{"$f":"'Standing Data'!#REF!","v":{"$error":"#REF!"}},"Fin.Return","E634",{"$f":"'Fin.Return - BS'!E245","v":0}]
[{"$f":"'Standing Data'!$D$12","v":{"$error":"#N/A"}},{"$f":"'Standing Data'!$F$9","v":0},{"$f":"'Standing Data'!#REF!","v":{"$error":"#REF!"}},"Fin.Return","E635",{"$f":"'Fin.Return - BS'!E248","v":0}]
[{"$f":"'Standing Data'!$D$12","v":{"$error":"#N/A"}},{"$f":"'Standing Data'!$F$9","v":0},{"$f":"'Standing Data'!#REF!","v":{"$error":"#REF!"}},"Fin.Return","E636",{"$f":"'Fin.Return - BS'!E249","v":0}]
[{"$f":"'Standing Data'!$D$12","v":{"$error":"#N/A"}},{"$f":"'Standing Data'!$F$9","v":0},{"$f":"'Standing Data'!#REF!","v":{"$error":"#REF!"}},"Fin.Return","E637",{"$f":"'Fin.Return - BS'!E251","v":0}]
[{"$f":"'Standing Data'!$D$12","v":{"$error":"#N/A"}},{"$f":"'Standing Data'!$F$9","v":0},{"$f":"'Standing Data'!#REF!","v":{"$error":"#REF!"}},"Fin.Return","E638",{"$f":"'Fin.Return - BS'!E252","v":0}]
[{"$f":"'Standing Data'!$D$12","v":{"$error":"#N/A"}},{"$f":"'Standing Data'!$F$9","v":0},{"$f":"'Standing Data'!#REF!","v":{"$error":"#REF!"}},"Fin.Return","E640",{"$f":"'Fin.Return - BS'!E254","v":0}]
[{"$f":"'Standing Data'!$D$12","v":{"$error":"#N/A"}},{"$f":"'Standing Data'!$F$9","v":0},{"$f":"'Standing Data'!#REF!","v":{"$error":"#REF!"}},"Fin.Return","E648",{"$f":"'Fin.Return - BS'!E262","v":0}]
[{"$f":"'Standing Data'!$D$12","v":{"$error":"#N/A"}},{"$f":"'Standing Data'!$F$9","v":0},{"$f":"'Standing Data'!#REF!","v":{"$error":"#REF!"}},"Fin.Return","E649",{"$f":"'Fin.Return - BS'!#REF!","v":{"$error":"#REF!"}}]
[{"$f":"'Standing Data'!$D$12","v":{"$error":"#N/A"}},{"$f":"'Standing Data'!$F$9","v":0},{"$f":"'Standing Data'!#REF!","v":{"$error":"#REF!"}},"Fin.Return","E651",{"$f":"'Fin.Return - BS'!#REF!","v":{"$error":"#REF!"}}]
[{"$f":"'Standing Data'!$D$12","v":{"$error":"#N/A"}},{"$f":"'Standing Data'!$F$9","v":0},{"$f":"'Standing Data'!#REF!","v":{"$error":"#REF!"}},"Fin.Return","E652",{"$f":"'Fin.Return - BS'!E263","v":0}]
[{"$f":"'Standing Data'!$D$12","v":{"$error":"#N/A"}},{"$f":"'Standing Data'!$F$9","v":0},{"$f":"'Standing Data'!#REF!","v":{"$error":"#REF!"}},"Fin.Return","E654",{"$f":"'Fin.Return - BS'!E265","v":0}]
[{"$f":"'Standing Data'!$D$12","v":{"$error":"#N/A"}},{"$f":"'Standing Data'!$F$9","v":0},{"$f":"'Standing Data'!#REF!","v":{"$error":"#REF!"}},"Fin.Return","E659",{"$f":"'Fin.Return - BS'!E270","v":0}]
[{"$f":"'Standing Data'!$D$12","v":{"$error":"#N/A"}},{"$f":"'Standing Data'!$F$9","v":0},{"$f":"'Standing Data'!#REF!","v":{"$error":"#REF!"}},"Fin.Return","E660",{"$f":"'Fin.Return - BS'!E271","v":0}]
[{"$f":"'Standing Data'!$D$12","v":{"$error":"#N/A"}},{"$f":"'Standing Data'!$F$9","v":0},{"$f":"'Standing Data'!#REF!","v":{"$error":"#REF!"}},"Fin.Return","E661",{"$f":"'Fin.Return - BS'!E272","v":0}]
[{"$f":"'Standing Data'!$D$12","v":{"$error":"#N/A"}},{"$f":"'Standing Data'!$F$9","v":0},{"$f":"'Standing Data'!#REF!","v":{"$error":"#REF!"}},"Fin.Return","E662",{"$f":"'Fin.Return - BS'!E273","v":0}]
[{"$f":"'Standing Data'!$D$12","v":{"$error":"#N/A"}},{"$f":"'Standing Data'!$F$9","v":0},{"$f":"'Standing Data'!#REF!","v":{"$error":"#REF!"}},"Fin.Return","E663",{"$f":"'Fin.Return - BS'!E274","v":0}]
[{"$f":"'Standing Data'!$D$12","v":{"$error":"#N/A"}},{"$f":"'Standing Data'!$F$9","v":0},{"$f":"'Standing Data'!#REF!","v":{"$error":"#REF!"}},"Fin.Return","E664",{"$f":"'Fin.Return - BS'!E275","v":0}]
[{"$f":"'Standing Data'!$D$12","v":{"$error":"#N/A"}},{"$f":"'Standing Data'!$F$9","v":0},{"$f":"'Standing Data'!#REF!","v":{"$error":"#REF!"}},"Fin.Return","E665",{"$f":"'Fin.Return - BS'!E276","v":0}]
[{"$f":"'Standing Data'!$D$12","v":{"$error":"#N/A"}},{"$f":"'Standing Data'!$F$9","v":0},{"$f":"'Standing Data'!#REF!","v":{"$error":"#REF!"}},"Fin.Return","E666",{"$f":"'Fin.Return - BS'!E277","v":0}]
[{"$f":"'Standing Data'!$D$12","v":{"$error":"#N/A"}},{"$f":"'Standing Data'!$F$9","v":0},{"$f":"'Standing Data'!#REF!","v":{"$error":"#REF!"}},"Fin.Return","E667",{"$f":"'Fin.Return - BS'!E278","v":0}]
[{"$f":"'Standing Data'!$D$12","v":{"$error":"#N/A"}},{"$f":"'Standing Data'!$F$9","v":0},{"$f":"'Standing Data'!#REF!","v":{"$error":"#REF!"}},"Fin.Return","E668",{"$f":"'Fin.Return - BS'!E279","v":0}]
[{"$f":"'Standing Data'!$D$12","v":{"$error":"#N/A"}},{"$f":"'Standing Data'!$F$9","v":0},{"$f":"'Standing Data'!#REF!","v":{"$error":"#REF!"}},"Fin.Return","E670",{"$f":"'Fin.Return - BS'!E281","v":0}]
[{"$f":"'Standing Data'!$D$12","v":{"$error":"#N/A"}},{"$f":"'Standing Data'!$F$9","v":0},{"$f":"'Standing Data'!#REF!","v":{"$error":"#REF!"}},"Fin.Return","E673",{"$f":"'Fin.Return - BS'!E284","v":0}]
[{"$f":"'Standing Data'!$D$12","v":{"$error":"#N/A"}},{"$f":"'Standing Data'!$F$9","v":0},{"$f":"'Standing Data'!#REF!","v":{"$error":"#REF!"}},"Fin.Return","E674",{"$f":"'Fin.Return - BS'!E285","v":0}]
[{"$f":"'Standing Data'!$D$12","v":{"$error":"#N/A"}},{"$f":"'Standing Data'!$F$9","v":0},{"$f":"'Standing Data'!#REF!","v":{"$error":"#REF!"}},"Fin.Return","E675",{"$f":"'Fin.Return - BS'!E286","v":0}]
[{"$f":"'Standing Data'!$D$12","v":{"$error":"#N/A"}},{"$f":"'Standing Data'!$F$9","v":0},{"$f":"'Standing Data'!#REF!","v":{"$error":"#REF!"}},"Fin.Return","E677",{"$f":"'Fin.Return - BS'!E288","v":0}]
[{"$f":"'Standing Data'!$D$12","v":{"$error":"#N/A"}},{"$f":"'Standing Data'!$F$9","v":0},{"$f":"'Standing Data'!#REF!","v":{"$error":"#REF!"}},"Fin.Return","E684",{"$f":"'Fin.Return - BS'!E295","v":0}]
[{"$f":"'Standing Data'!$D$12","v":{"$error":"#N/A"}},{"$f":"'Standing Data'!$F$9","v":0},{"$f":"'Standing Data'!#REF!","v":{"$error":"#REF!"}},"Fin.Return","E685",{"$f":"'Fin.Return - BS'!E296","v":0}]
[{"$f":"'Standing Data'!$D$12","v":{"$error":"#N/A"}},{"$f":"'Standing Data'!$F$9","v":0},{"$f":"'Standing Data'!#REF!","v":{"$error":"#REF!"}},"Fin.Return","E686",{"$f":"'Fin.Return - BS'!E297","v":0}]
[{"$f":"'Standing Data'!$D$12","v":{"$error":"#N/A"}},{"$f":"'Standing Data'!$F$9","v":0},{"$f":"'Standing Data'!#REF!","v":{"$error":"#REF!"}},"Fin.Return","E687",{"$f":"'Fin.Return - BS'!E298","v":0}]
[{"$f":"'Standing Data'!$D$12","v":{"$error":"#N/A"}},{"$f":"'Standing Data'!$F$9","v":0},{"$f":"'Standing Data'!#REF!","v":{"$error":"#REF!"}},"Fin.Return","E688",{"$f":"'Fin.Return - BS'!E299","v":0}]
[{"$f":"'Standing Data'!$D$12","v":{"$error":"#N/A"}},{"$f":"'Standing Data'!$F$9","v":0},{"$f":"'Standing Data'!#REF!","v":{"$error":"#REF!"}},"Fin.Return","E689",{"$f":"'Fin.Return - BS'!E300","v":0}]
[{"$f":"'Standing Data'!$D$12","v":{"$error":"#N/A"}},{"$f":"'Standing Data'!$F$9","v":0},{"$f":"'Standing Data'!#REF!","v":{"$error":"#REF!"}},"Fin.Return","E690",{"$f":"'Fin.Return - BS'!E301","v":0}]
[{"$f":"'Standing Data'!$D$12","v":{"$error":"#N/A"}},{"$f":"'Standing Data'!$F$9","v":0},{"$f":"'Standing Data'!#REF!","v":{"$error":"#REF!"}},"Fin.Return","E691",{"$f":"'Fin.Return - BS'!E302","v":0}]
[{"$f":"'Standing Data'!$D$12","v":{"$error":"#N/A"}},{"$f":"'Standing Data'!$F$9","v":0},{"$f":"'Standing Data'!#REF!","v":{"$error":"#REF!"}},"Fin.Return","E692",{"$f":"'Fin.Return - BS'!E303","v":0}]
[{"$f":"'Standing Data'!$D$12","v":{"$error":"#N/A"}},{"$f":"'Standing Data'!$F$9","v":0},{"$f":"'Standing Data'!#REF!","v":{"$error":"#REF!"}},"Fin.Return","E693",{"$f":"'Fin.Return - BS'!E304","v":0}]
[{"$f":"'Standing Data'!$D$12","v":{"$error":"#N/A"}},{"$f":"'Standing Data'!$F$9","v":0},{"$f":"'Standing Data'!#REF!","v":{"$error":"#REF!"}},"Fin.Return","E694",{"$f":"'Fin.Return - BS'!E305","v":0}]
[{"$f":"'Standing Data'!$D$12","v":{"$error":"#N/A"}},{"$f":"'Standing Data'!$F$9","v":0},{"$f":"'Standing Data'!#REF!","v":{"$error":"#REF!"}},"Fin.Return","E695",{"$f":"'Fin.Return - BS'!E306","v":0}]
[{"$f":"'Standing Data'!$D$12","v":{"$error":"#N/A"}},{"$f":"'Standing Data'!$F$9","v":0},{"$f":"'Standing Data'!#REF!","v":{"$error":"#REF!"}},"Fin.Return","E697",{"$f":"'Fin.Return - BS'!E308","v":0}]
[{"$f":"'Standing Data'!$D$12","v":{"$error":"#N/A"}},{"$f":"'Standing Data'!$F$9","v":0},{"$f":"'Standing Data'!#REF!","v":{"$error":"#REF!"}},"Fin.Return","E698",{"$f":"'Fin.Return - BS'!E309","v":0}]
[{"$f":"'Standing Data'!$D$12","v":{"$error":"#N/A"}},{"$f":"'Standing Data'!$F$9","v":0},{"$f":"'Standing Data'!#REF!","v":{"$error":"#REF!"}},"Fin.Return","E700",{"$f":"'Fin.Return - BS'!E311","v":0}]
[{"$f":"'Standing Data'!$D$12","v":{"$error":"#N/A"}},{"$f":"'Standing Data'!$F$9","v":0},{"$f":"'Standing Data'!#REF!","v":{"$error":"#REF!"}},"Fin.Return","E705",{"$f":"'Fin.Return - BS'!E316","v":0}]
[{"$f":"'Standing Data'!$D$12","v":{"$error":"#N/A"}},{"$f":"'Standing Data'!$F$9","v":0},{"$f":"'Standing Data'!#REF!","v":{"$error":"#REF!"}},"Fin.Return","E706",{"$f":"'Fin.Return - BS'!E317","v":0}]
[{"$f":"'Standing Data'!$D$12","v":{"$error":"#N/A"}},{"$f":"'Standing Data'!$F$9","v":0},{"$f":"'Standing Data'!#REF!","v":{"$error":"#REF!"}},"Fin.Return","E707",{"$f":"'Fin.Return - BS'!E318","v":0}]
[{"$f":"'Standing Data'!$D$12","v":{"$error":"#N/A"}},{"$f":"'Standing Data'!$F$9","v":0},{"$f":"'Standing Data'!#REF!","v":{"$error":"#REF!"}},"Fin.Return","E708",{"$f":"'Fin.Return - BS'!E319","v":0}]
[{"$f":"'Standing Data'!$D$12","v":{"$error":"#N/A"}},{"$f":"'Standing Data'!$F$9","v":0},{"$f":"'Standing Data'!#REF!","v":{"$error":"#REF!"}},"Fin.Return","E709",{"$f":"'Fin.Return - BS'!E320","v":0}]
[{"$f":"'Standing Data'!$D$12","v":{"$error":"#N/A"}},{"$f":"'Standing Data'!$F$9","v":0},{"$f":"'Standing Data'!#REF!","v":{"$error":"#REF!"}},"Fin.Return","E711",{"$f":"'Fin.Return - BS'!E322","v":0}]
[{"$f":"'Standing Data'!$D$12","v":{"$error":"#N/A"}},{"$f":"'Standing Data'!$F$9","v":0},{"$f":"'Standing Data'!#REF!","v":{"$error":"#REF!"}},"Fin.Return","E714",{"$f":"'Fin.Return - BS'!E325","v":0}]
[{"$f":"'Standing Data'!$D$12","v":{"$error":"#N/A"}},{"$f":"'Standing Data'!$F$9","v":0},{"$f":"'Standing Data'!#REF!","v":{"$error":"#REF!"}},"Fin.Return","E715",{"$f":"'Fin.Return - BS'!E326","v":0}]
[{"$f":"'Standing Data'!$D$12","v":{"$error":"#N/A"}},{"$f":"'Standing Data'!$F$9","v":0},{"$f":"'Standing Data'!#REF!","v":{"$error":"#REF!"}},"Fin.Return","E716",{"$f":"'Fin.Return - BS'!E327","v":0}]
[{"$f":"'Standing Data'!$D$12","v":{"$error":"#N/A"}},{"$f":"'Standing Data'!$F$9","v":0},{"$f":"'Standing Data'!#REF!","v":{"$error":"#REF!"}},"Fin.Return","E718",{"$f":"'Fin.Return - BS'!E329","v":0}]
[{"$f":"'Standing Data'!$D$12","v":{"$error":"#N/A"}},{"$f":"'Standing Data'!$F$9","v":0},{"$f":"'Standing Data'!#REF!","v":{"$error":"#REF!"}},"Fin.Return","E724",{"$f":"'Fin.Return - BS'!E335","v":0}]
[{"$f":"'Standing Data'!$D$12","v":{"$error":"#N/A"}},{"$f":"'Standing Data'!$F$9","v":0},{"$f":"'Standing Data'!#REF!","v":{"$error":"#REF!"}},"Fin.Return","E725",{"$f":"'Fin.Return - BS'!E336","v":0}]
[{"$f":"'Standing Data'!$D$12","v":{"$error":"#N/A"}},{"$f":"'Standing Data'!$F$9","v":0},{"$f":"'Standing Data'!#REF!","v":{"$error":"#REF!"}},"Fin.Return","E726",{"$f":"'Fin.Return - BS'!E337","v":0}]
[{"$f":"'Standing Data'!$D$12","v":{"$error":"#N/A"}},{"$f":"'Standing Data'!$F$9","v":0},{"$f":"'Standing Data'!#REF!","v":{"$error":"#REF!"}},"Fin.Return","E727",{"$f":"'Fin.Return - BS'!E338","v":0}]
[{"$f":"'Standing Data'!$D$12","v":{"$error":"#N/A"}},{"$f":"'Standing Data'!$F$9","v":0},{"$f":"'Standing Data'!#REF!","v":{"$error":"#REF!"}},"Fin.Return","E728",{"$f":"'Fin.Return - BS'!E339","v":0}]
[{"$f":"'Standing Data'!$D$12","v":{"$error":"#N/A"}},{"$f":"'Standing Data'!$F$9","v":0},{"$f":"'Standing Data'!#REF!","v":{"$error":"#REF!"}},"Fin.Return","E729",{"$f":"'Fin.Return - BS'!E340","v":0}]
[{"$f":"'Standing Data'!$D$12","v":{"$error":"#N/A"}},{"$f":"'Standing Data'!$F$9","v":0},{"$f":"'Standing Data'!#REF!","v":{"$error":"#REF!"}},"Fin.Return","E730",{"$f":"'Fin.Return - BS'!E341","v":0}]
[{"$f":"'Standing Data'!$D$12","v":{"$error":"#N/A"}},{"$f":"'Standing Data'!$F$9","v":0},{"$f":"'Standing Data'!#REF!","v":{"$error":"#REF!"}},"Fin.Return","E731",{"$f":"'Fin.Return - BS'!E342","v":0}]
[{"$f":"'Standing Data'!$D$12","v":{"$error":"#N/A"}},{"$f":"'Standing Data'!$F$9","v":0},{"$f":"'Standing Data'!#REF!","v":{"$error":"#REF!"}},"Fin.Return","E732",{"$f":"'Fin.Return - BS'!E343","v":0}]
[{"$f":"'Standing Data'!$D$12","v":{"$error":"#N/A"}},{"$f":"'Standing Data'!$F$9","v":0},{"$f":"'Standing Data'!#REF!","v":{"$error":"#REF!"}},"Fin.Return","E733",{"$f":"'Fin.Return - BS'!E344","v":0}]
[{"$f":"'Standing Data'!$D$12","v":{"$error":"#N/A"}},{"$f":"'Standing Data'!$F$9","v":0},{"$f":"'Standing Data'!#REF!","v":{"$error":"#REF!"}},"Fin.Return","E734",{"$f":"'Fin.Return - BS'!E345","v":0}]
[{"$f":"'Standing Data'!$D$12","v":{"$error":"#N/A"}},{"$f":"'Standing Data'!$F$9","v":0},{"$f":"'Standing Data'!#REF!","v":{"$error":"#REF!"}},"Fin.Return","E735",{"$f":"'Fin.Return - BS'!E346","v":0}]
[{"$f":"'Standing Data'!$D$12","v":{"$error":"#N/A"}},{"$f":"'Standing Data'!$F$9","v":0},{"$f":"'Standing Data'!#REF!","v":{"$error":"#REF!"}},"Fin.Return","E737",{"$f":"'Fin.Return - BS'!E348","v":0}]
[{"$f":"'Standing Data'!$D$12","v":{"$error":"#N/A"}},{"$f":"'Standing Data'!$F$9","v":0},{"$f":"'Standing Data'!#REF!","v":{"$error":"#REF!"}},"Fin.Return","E738",{"$f":"'Fin.Return - BS'!E349","v":0}]
[{"$f":"'Standing Data'!$D$12","v":{"$error":"#N/A"}},{"$f":"'Standing Data'!$F$9","v":0},{"$f":"'Standing Data'!#REF!","v":{"$error":"#REF!"}},"Fin.Return","E740",{"$f":"'Fin.Return - BS'!E351","v":0}]
[{"$f":"'Standing Data'!$D$12","v":{"$error":"#N/A"}},{"$f":"'Standing Data'!$F$9","v":0},{"$f":"'Standing Data'!#REF!","v":{"$error":"#REF!"}},"Fin.Return","E745",{"$f":"'Fin.Return - BS'!E356","v":0}]
[{"$f":"'Standing Data'!$D$12","v":{"$error":"#N/A"}},{"$f":"'Standing Data'!$F$9","v":0},{"$f":"'Standing Data'!#REF!","v":{"$error":"#REF!"}},"Fin.Return","E746",{"$f":"'Fin.Return - BS'!E357","v":0}]
[{"$f":"'Standing Data'!$D$12","v":{"$error":"#N/A"}},{"$f":"'Standing Data'!$F$9","v":0},{"$f":"'Standing Data'!#REF!","v":{"$error":"#REF!"}},"Fin.Return","E747",{"$f":"'Fin.Return - BS'!E358","v":0}]
[{"$f":"'Standing Data'!$D$12","v":{"$error":"#N/A"}},{"$f":"'Standing Data'!$F$9","v":0},{"$f":"'Standing Data'!#REF!","v":{"$error":"#REF!"}},"Fin.Return","E748",{"$f":"'Fin.Return - BS'!E359","v":0}]
[{"$f":"'Standing Data'!$D$12","v":{"$error":"#N/A"}},{"$f":"'Standing Data'!$F$9","v":0},{"$f":"'Standing Data'!#REF!","v":{"$error":"#REF!"}},"Fin.Return","E750",{"$f":"'Fin.Return - BS'!E361","v":0}]
[{"$f":"'Standing Data'!$D$12","v":{"$error":"#N/A"}},{"$f":"'Standing Data'!$F$9","v":0},{"$f":"'Standing Data'!#REF!","v":{"$error":"#REF!"}},"Fin.Return","E755",{"$f":"'Fin.Return - BS'!E366","v":0}]
[{"$f":"'Standing Data'!$D$12","v":{"$error":"#N/A"}},{"$f":"'Standing Data'!$F$9","v":0},{"$f":"'Standing Data'!#REF!","v":{"$error":"#REF!"}},"Fin.Return","E756",{"$f":"'Fin.Return - BS'!E367","v":0}]
[{"$f":"'Standing Data'!$D$12","v":{"$error":"#N/A"}},{"$f":"'Standing Data'!$F$9","v":0},{"$f":"'Standing Data'!#REF!","v":{"$error":"#REF!"}},"Fin.Return","E757",{"$f":"'Fin.Return - BS'!E368","v":0}]
[{"$f":"'Standing Data'!$D$12","v":{"$error":"#N/A"}},{"$f":"'Standing Data'!$F$9","v":0},{"$f":"'Standing Data'!#REF!","v":{"$error":"#REF!"}},"Fin.Return","E759",{"$f":"'Fin.Return - BS'!E370","v":0}]
[{"$f":"'Standing Data'!$D$12","v":{"$error":"#N/A"}},{"$f":"'Standing Data'!$F$9","v":0},{"$f":"'Standing Data'!#REF!","v":{"$error":"#REF!"}},"Fin.Return","E767",{"$f":"'Fin.Return - BS'!E378","v":0}]
[{"$f":"'Standing Data'!$D$12","v":{"$error":"#N/A"}},{"$f":"'Standing Data'!$F$9","v":0},{"$f":"'Standing Data'!#REF!","v":{"$error":"#REF!"}},"Fin.Return","E768",{"$f":"'Fin.Return - BS'!E379","v":0}]
[{"$f":"'Standing Data'!$D$12","v":{"$error":"#N/A"}},{"$f":"'Standing Data'!$F$9","v":0},{"$f":"'Standing Data'!#REF!","v":{"$error":"#REF!"}},"Fin.Return","E770",{"$f":"'Fin.Return - Other Notes'!#REF!","v":{"$error":"#REF!"}}]
[{"$f":"'Standing Data'!$D$12","v":{"$error":"#N/A"}},{"$f":"'Standing Data'!$F$9","v":0},{"$f":"'Standing Data'!#REF!","v":{"$error":"#REF!"}},"Fin.Return","E771",{"$f":"'Fin.Return - Other Notes'!#REF!","v":{"$error":"#REF!"}}]
[{"$f":"'Standing Data'!$D$12","v":{"$error":"#N/A"}},{"$f":"'Standing Data'!$F$9","v":0},{"$f":"'Standing Data'!#REF!","v":{"$error":"#REF!"}},"Fin.Return","E772",{"$f":"'Fin.Return - Other Notes'!#REF!","v":{"$error":"#REF!"}}]
[{"$f":"'Standing Data'!$D$12","v":{"$error":"#N/A"}},{"$f":"'Standing Data'!$F$9","v":0},{"$f":"'Standing Data'!#REF!","v":{"$error":"#REF!"}},"Fin.Return","E773",{"$f":"'Fin.Return - Other Notes'!#REF!","v":{"$error":"#REF!"}}]
[{"$f":"'Standing Data'!$D$12","v":{"$error":"#N/A"}},{"$f":"'Standing Data'!$F$9","v":0},{"$f":"'Standing Data'!#REF!","v":{"$error":"#REF!"}},"Fin.Return","E774",{"$f":"'Fin.Return - Other Notes'!#REF!","v":{"$error":"#REF!"}}]
[{"$f":"'Standing Data'!$D$12","v":{"$error":"#N/A"}},{"$f":"'Standing Data'!$F$9","v":0},{"$f":"'Standing Data'!#REF!","v":{"$error":"#REF!"}},"Fin.Return","E775",{"$f":"'Fin.Return - Other Notes'!#REF!","v":{"$error":"#REF!"}}]
[{"$f":"'Standing Data'!$D$12","v":{"$error":"#N/A"}},{"$f":"'Standing Data'!$F$9","v":0},{"$f":"'Standing Data'!#REF!","v":{"$error":"#REF!"}},"Fin.Return","E776",{"$f":"'Fin.Return - BS'!E381","v":0}]
[{"$f":"'Standing Data'!$D$12","v":{"$error":"#N/A"}},{"$f":"'Standing Data'!$F$9","v":0},{"$f":"'Standing Data'!#REF!","v":{"$error":"#REF!"}},"Fin.Return","E777",{"$f":"'Fin.Return - BS'!E382","v":0}]
[{"$f":"'Standing Data'!$D$12","v":{"$error":"#N/A"}},{"$f":"'Standing Data'!$F$9","v":0},{"$f":"'Standing Data'!#REF!","v":{"$error":"#REF!"}},"Fin.Return","E779",{"$f":"'Fin.Return - BS'!E384","v":0}]
[{"$f":"'Standing Data'!$D$12","v":{"$error":"#N/A"}},{"$f":"'Standing Data'!$F$9","v":0},{"$f":"'Standing Data'!#REF!","v":{"$error":"#REF!"}},"Fin.Return","E780",{"$f":"'Fin.Return - BS'!E385","v":0}]
[{"$f":"'Standing Data'!$D$12","v":{"$error":"#N/A"}},{"$f":"'Standing Data'!$F$9","v":0},{"$f":"'Standing Data'!#REF!","v":{"$error":"#REF!"}},"Fin.Return","E782",{"$f":"'Fin.Return - BS'!E387","v":0}]
[{"$f":"'Standing Data'!$D$12","v":{"$error":"#N/A"}},{"$f":"'Standing Data'!$F$9","v":0},{"$f":"'Standing Data'!#REF!","v":{"$error":"#REF!"}},"Fin.Return","E783",{"$f":"'Fin.Return - BS'!E388","v":0}]
[{"$f":"'Standing Data'!$D$12","v":{"$error":"#N/A"}},{"$f":"'Standing Data'!$F$9","v":0},{"$f":"'Standing Data'!#REF!","v":{"$error":"#REF!"}},"Fin.Return","E787",{"$f":"'Fin.Return - BS'!E392","v":0}]
[{"$f":"'Standing Data'!$D$12","v":{"$error":"#N/A"}},{"$f":"'Standing Data'!$F$9","v":0},{"$f":"'Standing Data'!#REF!","v":{"$error":"#REF!"}},"Fin.Return","E789",{"$f":"'Fin.Return - Other Notes'!#REF!","v":{"$error":"#REF!"}}]
[{"$f":"'Standing Data'!$D$12","v":{"$error":"#N/A"}},{"$f":"'Standing Data'!$F$9","v":0},{"$f":"'Standing Data'!#REF!","v":{"$error":"#REF!"}},"Fin.Return","E790",{"$f":"'Fin.Return - Other Notes'!#REF!","v":{"$error":"#REF!"}}]
[{"$f":"'Standing Data'!$D$12","v":{"$error":"#N/A"}},{"$f":"'Standing Data'!$F$9","v":0},{"$f":"'Standing Data'!#REF!","v":{"$error":"#REF!"}},"Fin.Return","E791",{"$f":"'Fin.Return - Other Notes'!#REF!","v":{"$error":"#REF!"}}]
[{"$f":"'Standing Data'!$D$12","v":{"$error":"#N/A"}},{"$f":"'Standing Data'!$F$9","v":0},{"$f":"'Standing Data'!#REF!","v":{"$error":"#REF!"}},"Fin.Return","E792",{"$f":"'Fin.Return - Other Notes'!#REF!","v":{"$error":"#REF!"}}]
[{"$f":"'Standing Data'!$D$12","v":{"$error":"#N/A"}},{"$f":"'Standing Data'!$F$9","v":0},{"$f":"'Standing Data'!#REF!","v":{"$error":"#REF!"}},"Fin.Return","E793",{"$f":"'Fin.Return - Other Notes'!#REF!","v":{"$error":"#REF!"}}]
[{"$f":"'Standing Data'!$D$12","v":{"$error":"#N/A"}},{"$f":"'Standing Data'!$F$9","v":0},{"$f":"'Standing Data'!#REF!","v":{"$error":"#REF!"}},"Fin.Return","E794",{"$f":"'Fin.Return - Other Notes'!#REF!","v":{"$error":"#REF!"}}]
[{"$f":"'Standing Data'!$D$12","v":{"$error":"#N/A"}},{"$f":"'Standing Data'!$F$9","v":0},{"$f":"'Standing Data'!#REF!","v":{"$error":"#REF!"}},"Fin.Return","E795",{"$f":"'Fin.Return - BS'!E394","v":0}]
[{"$f":"'Standing Data'!$D$12","v":{"$error":"#N/A"}},{"$f":"'Standing Data'!$F$9","v":0},{"$f":"'Standing Data'!#REF!","v":{"$error":"#REF!"}},"Fin.Return","E796",{"$f":"'Fin.Return - BS'!E395","v":0}]
[{"$f":"'Standing Data'!$D$12","v":{"$error":"#N/A"}},{"$f":"'Standing Data'!$F$9","v":0},{"$f":"'Standing Data'!#REF!","v":{"$error":"#REF!"}},"Fin.Return","E798",{"$f":"'Fin.Return - BS'!E397","v":0}]
[{"$f":"'Standing Data'!$D$12","v":{"$error":"#N/A"}},{"$f":"'Standing Data'!$F$9","v":0},{"$f":"'Standing Data'!#REF!","v":{"$error":"#REF!"}},"Fin.Return","E799",{"$f":"'Fin.Return - BS'!E398","v":0}]
[{"$f":"'Standing Data'!$D$12","v":{"$error":"#N/A"}},{"$f":"'Standing Data'!$F$9","v":0},{"$f":"'Standing Data'!#REF!","v":{"$error":"#REF!"}},"Fin.Return","E800",{"$f":"'Fin.Return - BS'!E399","v":0}]
[{"$f":"'Standing Data'!$D$12","v":{"$error":"#N/A"}},{"$f":"'Standing Data'!$F$9","v":0},{"$f":"'Standing Data'!#REF!","v":{"$error":"#REF!"}},"Fin.Return","E802",{"$f":"'Fin.Return - BS'!E401","v":0}]
[{"$f":"'Standing Data'!$D$12","v":{"$error":"#N/A"}},{"$f":"'Standing Data'!$F$9","v":0},{"$f":"'Standing Data'!#REF!","v":{"$error":"#REF!"}},"Fin.Return","E803",{"$f":"'Fin.Return - BS'!E402","v":0}]
[{"$f":"'Standing Data'!$D$12","v":{"$error":"#N/A"}},{"$f":"'Standing Data'!$F$9","v":0},{"$f":"'Standing Data'!#REF!","v":{"$error":"#REF!"}},"Fin.Return","E805",{"$f":"'Fin.Return - BS'!E404","v":0}]
[{"$f":"'Standing Data'!$D$12","v":{"$error":"#N/A"}},{"$f":"'Standing Data'!$F$9","v":0},{"$f":"'Standing Data'!#REF!","v":{"$error":"#REF!"}},"Fin.Return","E807",{"$f":"'Fin.Return - BS'!E406","v":0}]
[{"$f":"'Standing Data'!$D$12","v":{"$error":"#N/A"}},{"$f":"'Standing Data'!$F$9","v":0},{"$f":"'Standing Data'!#REF!","v":{"$error":"#REF!"}},"Fin.Return","E809",{"$f":"'Fin.Return - BS'!E408","v":0}]
[{"$f":"'Standing Data'!$D$12","v":{"$error":"#N/A"}},{"$f":"'Standing Data'!$F$9","v":0},{"$f":"'Standing Data'!#REF!","v":{"$error":"#REF!"}},"Fin.Return","E811",{"$f":"'Fin.Return - BS'!E410","v":0}]
[{"$f":"'Standing Data'!$D$12","v":{"$error":"#N/A"}},{"$f":"'Standing Data'!$F$9","v":0},{"$f":"'Standing Data'!#REF!","v":{"$error":"#REF!"}},"Fin.Return","E812",{"$f":"'Fin.Return - BS'!E411","v":""}]
[{"$f":"'Standing Data'!$D$12","v":{"$error":"#N/A"}},{"$f":"'Standing Data'!$F$9","v":0},{"$f":"'Standing Data'!#REF!","v":{"$error":"#REF!"}},"Fin.Return","E816",{"$f":"'Fin.Return - Other Notes'!E126","v":0}]
[{"$f":"'Standing Data'!$D$12","v":{"$error":"#N/A"}},{"$f":"'Standing Data'!$F$9","v":0},{"$f":"'Standing Data'!#REF!","v":{"$error":"#REF!"}},"Fin.Return","E817",{"$f":"'Fin.Return - Other Notes'!E127","v":0}]
[{"$f":"'Standing Data'!$D$12","v":{"$error":"#N/A"}},{"$f":"'Standing Data'!$F$9","v":0},{"$f":"'Standing Data'!#REF!","v":{"$error":"#REF!"}},"Fin.Return","E818",{"$f":"'Fin.Return - Other Notes'!E128","v":0}]
[{"$f":"'Standing Data'!$D$12","v":{"$error":"#N/A"}},{"$f":"'Standing Data'!$F$9","v":0},{"$f":"'Standing Data'!#REF!","v":{"$error":"#REF!"}},"Fin.Return","E819",{"$f":"'Fin.Return - Other Notes'!E129","v":0}]
[{"$f":"'Standing Data'!$D$12","v":{"$error":"#N/A"}},{"$f":"'Standing Data'!$F$9","v":0},{"$f":"'Standing Data'!#REF!","v":{"$error":"#REF!"}},"Fin.Return","E820",{"$f":"'Fin.Return - Other Notes'!E130","v":0}]
[{"$f":"'Standing Data'!$D$12","v":{"$error":"#N/A"}},{"$f":"'Standing Data'!$F$9","v":0},{"$f":"'Standing Data'!#REF!","v":{"$error":"#REF!"}},"Fin.Return","E821",{"$f":"'Fin.Return - Other Notes'!E131","v":0}]
[{"$f":"'Standing Data'!$D$12","v":{"$error":"#N/A"}},{"$f":"'Standing Data'!$F$9","v":0},{"$f":"'Standing Data'!#REF!","v":{"$error":"#REF!"}},"Fin.Return","E823",{"$f":"'Fin.Return - Other Notes'!E133","v":0}]
[{"$f":"'Standing Data'!$D$12","v":{"$error":"#N/A"}},{"$f":"'Standing Data'!$F$9","v":0},{"$f":"'Standing Data'!#REF!","v":{"$error":"#REF!"}},"Fin.Return","E839",{"$f":"'Fin.Return - Other Notes'!E149","v":0}]
[{"$f":"'Standing Data'!$D$12","v":{"$error":"#N/A"}},{"$f":"'Standing Data'!$F$9","v":0},{"$f":"'Standing Data'!#REF!","v":{"$error":"#REF!"}},"Fin.Return","E840",{"$f":"'Fin.Return - Other Notes'!E151","v":0}]
[{"$f":"'Standing Data'!$D$12","v":{"$error":"#N/A"}},{"$f":"'Standing Data'!$F$9","v":0},{"$f":"'Standing Data'!#REF!","v":{"$error":"#REF!"}},"Fin.Return","E841",{"$f":"'Fin.Return - Other Notes'!E153","v":0}]
[{"$f":"'Standing Data'!$D$12","v":{"$error":"#N/A"}},{"$f":"'Standing Data'!$F$9","v":0},{"$f":"'Standing Data'!#REF!","v":{"$error":"#REF!"}},"Fin.Return","E842",{"$f":"'Fin.Return - Other Notes'!E154","v":0}]
[{"$f":"'Standing Data'!$D$12","v":{"$error":"#N/A"}},{"$f":"'Standing Data'!$F$9","v":0},{"$f":"'Standing Data'!#REF!","v":{"$error":"#REF!"}},"Fin.Return","E843",{"$f":"'Fin.Return - Other Notes'!E155","v":0}]
[{"$f":"'Standing Data'!$D$12","v":{"$error":"#N/A"}},{"$f":"'Standing Data'!$F$9","v":0},{"$f":"'Standing Data'!#REF!","v":{"$error":"#REF!"}},"Fin.Return","E845",{"$f":"'Fin.Return - Other Notes'!E157","v":0}]
[{"$f":"'Standing Data'!$D$12","v":{"$error":"#N/A"}},{"$f":"'Standing Data'!$F$9","v":0},{"$f":"'Standing Data'!#REF!","v":{"$error":"#REF!"}},"Fin.Return","E850",{"$f":"'Fin.Return - Other Notes'!E162","v":0}]
[{"$f":"'Standing Data'!$D$12","v":{"$error":"#N/A"}},{"$f":"'Standing Data'!$F$9","v":0},{"$f":"'Standing Data'!#REF!","v":{"$error":"#REF!"}},"Fin.Return","E851",{"$f":"'Fin.Return - Other Notes'!E163","v":0}]
[{"$f":"'Standing Data'!$D$12","v":{"$error":"#N/A"}},{"$f":"'Standing Data'!$F$9","v":0},{"$f":"'Standing Data'!#REF!","v":{"$error":"#REF!"}},"Fin.Return","E852",{"$f":"'Fin.Return - Other Notes'!E164","v":0}]
[{"$f":"'Standing Data'!$D$12","v":{"$error":"#N/A"}},{"$f":"'Standing Data'!$F$9","v":0},{"$f":"'Standing Data'!#REF!","v":{"$error":"#REF!"}},"Fin.Return","E854",{"$f":"'Fin.Return - Other Notes'!E166","v":0}]
[{"$f":"'Standing Data'!$D$12","v":{"$error":"#N/A"}},{"$f":"'Standing Data'!$F$9","v":0},{"$f":"'Standing Data'!#REF!","v":{"$error":"#REF!"}},"Fin.Return","E856",{"$f":"'Fin.Return - Other Notes'!E168","v":0}]
[{"$f":"'Standing Data'!$D$12","v":{"$error":"#N/A"}},{"$f":"'Standing Data'!$F$9","v":0},{"$f":"'Standing Data'!#REF!","v":{"$error":"#REF!"}},"Fin.Return","E857",{"$f":"'Fin.Return - Other Notes'!E169","v":0}]
[{"$f":"'Standing Data'!$D$12","v":{"$error":"#N/A"}},{"$f":"'Standing Data'!$F$9","v":0},{"$f":"'Standing Data'!#REF!","v":{"$error":"#REF!"}},"Fin.Return","E858",{"$f":"'Fin.Return - Other Notes'!E170","v":0}]
[{"$f":"'Standing Data'!$D$12","v":{"$error":"#N/A"}},{"$f":"'Standing Data'!$F$9","v":0},{"$f":"'Standing Data'!#REF!","v":{"$error":"#REF!"}},"Fin.Return","E860",{"$f":"'Fin.Return - Other Notes'!E172","v":0}]
[{"$f":"'Standing Data'!$D$12","v":{"$error":"#N/A"}},{"$f":"'Standing Data'!$F$9","v":0},{"$f":"'Standing Data'!#REF!","v":{"$error":"#REF!"}},"Fin.Return","E862",{"$f":"'Fin.Return - Other Notes'!E174","v":0}]
[{"$f":"'Standing Data'!$D$12","v":{"$error":"#N/A"}},{"$f":"'Standing Data'!$F$9","v":0},{"$f":"'Standing Data'!#REF!","v":{"$error":"#REF!"}},"Fin.Return","E865",{"$f":"'Fin.Return - Other Notes'!E177","v":0}]
[{"$f":"'Standing Data'!$D$12","v":{"$error":"#N/A"}},{"$f":"'Standing Data'!$F$9","v":0},{"$f":"'Standing Data'!#REF!","v":{"$error":"#REF!"}},"Fin.Return","E866",{"$f":"'Fin.Return - Other Notes'!E178","v":0}]
[{"$f":"'Standing Data'!$D$12","v":{"$error":"#N/A"}},{"$f":"'Standing Data'!$F$9","v":0},{"$f":"'Standing Data'!#REF!","v":{"$error":"#REF!"}},"Fin.Return","E867",{"$f":"'Fin.Return - Other Notes'!E179","v":0}]
[{"$f":"'Standing Data'!$D$12","v":{"$error":"#N/A"}},{"$f":"'Standing Data'!$F$9","v":0},{"$f":"'Standing Data'!#REF!","v":{"$error":"#REF!"}},"Fin.Return","E868",{"$f":"'Fin.Return - Other Notes'!E180","v":0}]
[{"$f":"'Standing Data'!$D$12","v":{"$error":"#N/A"}},{"$f":"'Standing Data'!$F$9","v":0},{"$f":"'Standing Data'!#REF!","v":{"$error":"#REF!"}},"Fin.Return","E869",{"$f":"'Fin.Return - Other Notes'!E181","v":0}]
[{"$f":"'Standing Data'!$D$12","v":{"$error":"#N/A"}},{"$f":"'Standing Data'!$F$9","v":0},{"$f":"'Standing Data'!#REF!","v":{"$error":"#REF!"}},"Fin.Return","E870",{"$f":"'Fin.Return - Other Notes'!E182","v":0}]
[{"$f":"'Standing Data'!$D$12","v":{"$error":"#N/A"}},{"$f":"'Standing Data'!$F$9","v":0},{"$f":"'Standing Data'!#REF!","v":{"$error":"#REF!"}},"Fin.Return","E871",{"$f":"'Fin.Return - Other Notes'!E183","v":0}]
[{"$f":"'Standing Data'!$D$12","v":{"$error":"#N/A"}},{"$f":"'Standing Data'!$F$9","v":0},{"$f":"'Standing Data'!#REF!","v":{"$error":"#REF!"}},"Fin.Return","E872",{"$f":"'Fin.Return - Other Notes'!E184","v":0}]
[{"$f":"'Standing Data'!$D$12","v":{"$error":"#N/A"}},{"$f":"'Standing Data'!$F$9","v":0},{"$f":"'Standing Data'!#REF!","v":{"$error":"#REF!"}},"Fin.Return","E873",{"$f":"'Fin.Return - Other Notes'!E185","v":0}]
[{"$f":"'Standing Data'!$D$12","v":{"$error":"#N/A"}},{"$f":"'Standing Data'!$F$9","v":0},{"$f":"'Standing Data'!#REF!","v":{"$error":"#REF!"}},"Fin.Return","E874",{"$f":"'Fin.Return - Other Notes'!E186","v":0}]
[{"$f":"'Standing Data'!$D$12","v":{"$error":"#N/A"}},{"$f":"'Standing Data'!$F$9","v":0},{"$f":"'Standing Data'!#REF!","v":{"$error":"#REF!"}},"Fin.Return","E876",{"$f":"'Fin.Return - Other Notes'!E190","v":0}]
[{"$f":"'Standing Data'!$D$12","v":{"$error":"#N/A"}},{"$f":"'Standing Data'!$F$9","v":0},{"$f":"'Standing Data'!#REF!","v":{"$error":"#REF!"}},"Fin.Return","E879",{"$f":"'Fin.Return - Other Notes'!E193","v":0}]
[{"$f":"'Standing Data'!$D$12","v":{"$error":"#N/A"}},{"$f":"'Standing Data'!$F$9","v":0},{"$f":"'Standing Data'!#REF!","v":{"$error":"#REF!"}},"Fin.Return","E880",{"$f":"'Fin.Return - Other Notes'!E194","v":0}]
[{"$f":"'Standing Data'!$D$12","v":{"$error":"#N/A"}},{"$f":"'Standing Data'!$F$9","v":0},{"$f":"'Standing Data'!#REF!","v":{"$error":"#REF!"}},"Fin.Return","E881",{"$f":"'Fin.Return - Other Notes'!E195","v":0}]
[{"$f":"'Standing Data'!$D$12","v":{"$error":"#N/A"}},{"$f":"'Standing Data'!$F$9","v":0},{"$f":"'Standing Data'!#REF!","v":{"$error":"#REF!"}},"Fin.Return","E882",{"$f":"'Fin.Return - Other Notes'!E196","v":0}]
[{"$f":"'Standing Data'!$D$12","v":{"$error":"#N/A"}},{"$f":"'Standing Data'!$F$9","v":0},{"$f":"'Standing Data'!#REF!","v":{"$error":"#REF!"}},"Fin.Return","E883",{"$f":"'Fin.Return - Other Notes'!E197","v":0}]
[{"$f":"'Standing Data'!$D$12","v":{"$error":"#N/A"}},{"$f":"'Standing Data'!$F$9","v":0},{"$f":"'Standing Data'!#REF!","v":{"$error":"#REF!"}},"Fin.Return","E884",{"$f":"'Fin.Return - Other Notes'!E198","v":0}]
[{"$f":"'Standing Data'!$D$12","v":{"$error":"#N/A"}},{"$f":"'Standing Data'!$F$9","v":0},{"$f":"'Standing Data'!#REF!","v":{"$error":"#REF!"}},"Fin.Return","E885",{"$f":"'Fin.Return - Other Notes'!E199","v":0}]
[{"$f":"'Standing Data'!$D$12","v":{"$error":"#N/A"}},{"$f":"'Standing Data'!$F$9","v":0},{"$f":"'Standing Data'!#REF!","v":{"$error":"#REF!"}},"Fin.Return","E887",{"$f":"'Fin.Return - Other Notes'!E203","v":0}]
[{"$f":"'Standing Data'!$D$12","v":{"$error":"#N/A"}},{"$f":"'Standing Data'!$F$9","v":0},{"$f":"'Standing Data'!#REF!","v":{"$error":"#REF!"}},"Fin.Return","E890",{"$f":"'Fin.Return - Other Notes'!E206","v":0}]
[{"$f":"'Standing Data'!$D$12","v":{"$error":"#N/A"}},{"$f":"'Standing Data'!$F$9","v":0},{"$f":"'Standing Data'!#REF!","v":{"$error":"#REF!"}},"Fin.Return","E891",{"$f":"'Fin.Return - Other Notes'!E207","v":0}]
[{"$f":"'Standing Data'!$D$12","v":{"$error":"#N/A"}},{"$f":"'Standing Data'!$F$9","v":0},{"$f":"'Standing Data'!#REF!","v":{"$error":"#REF!"}},"Fin.Return","E892",{"$f":"'Fin.Return - Other Notes'!E208","v":0}]
[{"$f":"'Standing Data'!$D$12","v":{"$error":"#N/A"}},{"$f":"'Standing Data'!$F$9","v":0},{"$f":"'Standing Data'!#REF!","v":{"$error":"#REF!"}},"Fin.Return","E893",{"$f":"'Fin.Return - Other Notes'!E209","v":0}]
[{"$f":"'Standing Data'!$D$12","v":{"$error":"#N/A"}},{"$f":"'Standing Data'!$F$9","v":0},{"$f":"'Standing Data'!#REF!","v":{"$error":"#REF!"}},"Fin.Return","E894",{"$f":"'Fin.Return - Other Notes'!E210","v":0}]
[{"$f":"'Standing Data'!$D$12","v":{"$error":"#N/A"}},{"$f":"'Standing Data'!$F$9","v":0},{"$f":"'Standing Data'!#REF!","v":{"$error":"#REF!"}},"Fin.Return","E895",{"$f":"'Fin.Return - Other Notes'!E211","v":0}]
[{"$f":"'Standing Data'!$D$12","v":{"$error":"#N/A"}},{"$f":"'Standing Data'!$F$9","v":0},{"$f":"'Standing Data'!#REF!","v":{"$error":"#REF!"}},"Fin.Return","E896",{"$f":"'Fin.Return - Other Notes'!E212","v":0}]
[{"$f":"'Standing Data'!$D$12","v":{"$error":"#N/A"}},{"$f":"'Standing Data'!$F$9","v":0},{"$f":"'Standing Data'!#REF!","v":{"$error":"#REF!"}},"Fin.Return","E897",{"$f":"'Fin.Return - Other Notes'!E213","v":0}]
[{"$f":"'Standing Data'!$D$12","v":{"$error":"#N/A"}},{"$f":"'Standing Data'!$F$9","v":0},{"$f":"'Standing Data'!#REF!","v":{"$error":"#REF!"}},"Fin.Return","E898",{"$f":"'Fin.Return - Other Notes'!E214","v":0}]
[{"$f":"'Standing Data'!$D$12","v":{"$error":"#N/A"}},{"$f":"'Standing Data'!$F$9","v":0},{"$f":"'Standing Data'!#REF!","v":{"$error":"#REF!"}},"Fin.Return","E899",{"$f":"'Fin.Return - Other Notes'!E215","v":0}]
[{"$f":"'Standing Data'!$D$12","v":{"$error":"#N/A"}},{"$f":"'Standing Data'!$F$9","v":0},{"$f":"'Standing Data'!#REF!","v":{"$error":"#REF!"}},"Fin.Return","E901",{"$f":"'Fin.Return - Other Notes'!E219","v":0}]
[{"$f":"'Standing Data'!$D$12","v":{"$error":"#N/A"}},{"$f":"'Standing Data'!$F$9","v":0},{"$f":"'Standing Data'!#REF!","v":{"$error":"#REF!"}},"Fin.Return","E908",{"$f":"'Fin.Return - Other Notes'!E228","v":0}]
[{"$f":"'Standing Data'!$D$12","v":{"$error":"#N/A"}},{"$f":"'Standing Data'!$F$9","v":0},{"$f":"'Standing Data'!#REF!","v":{"$error":"#REF!"}},"Fin.Return","E909",{"$f":"'Fin.Return - Other Notes'!E229","v":0}]
[{"$f":"'Standing Data'!$D$12","v":{"$error":"#N/A"}},{"$f":"'Standing Data'!$F$9","v":0},{"$f":"'Standing Data'!#REF!","v":{"$error":"#REF!"}},"Fin.Return","E910",{"$f":"'Fin.Return - Other Notes'!E230","v":0}]
[{"$f":"'Standing Data'!$D$12","v":{"$error":"#N/A"}},{"$f":"'Standing Data'!$F$9","v":0},{"$f":"'Standing Data'!#REF!","v":{"$error":"#REF!"}},"Fin.Return","E911",{"$f":"'Fin.Return - Other Notes'!E231","v":0}]
[{"$f":"'Standing Data'!$D$12","v":{"$error":"#N/A"}},{"$f":"'Standing Data'!$F$9","v":0},{"$f":"'Standing Data'!#REF!","v":{"$error":"#REF!"}},"Fin.Return","E912",{"$f":"'Fin.Return - Other Notes'!E232","v":0}]
[{"$f":"'Standing Data'!$D$12","v":{"$error":"#N/A"}},{"$f":"'Standing Data'!$F$9","v":0},{"$f":"'Standing Data'!#REF!","v":{"$error":"#REF!"}},"Fin.Return","E913",{"$f":"'Fin.Return - Other Notes'!E233","v":0}]
[{"$f":"'Standing Data'!$D$12","v":{"$error":"#N/A"}},{"$f":"'Standing Data'!$F$9","v":0},{"$f":"'Standing Data'!#REF!","v":{"$error":"#REF!"}},"Fin.Return","E914",{"$f":"'Fin.Return - Other Notes'!E234","v":0}]
[{"$f":"'Standing Data'!$D$12","v":{"$error":"#N/A"}},{"$f":"'Standing Data'!$F$9","v":0},{"$f":"'Standing Data'!#REF!","v":{"$error":"#REF!"}},"Fin.Return","E915",{"$f":"'Fin.Return - Other Notes'!E235","v":0}]
[{"$f":"'Standing Data'!$D$12","v":{"$error":"#N/A"}},{"$f":"'Standing Data'!$F$9","v":0},{"$f":"'Standing Data'!#REF!","v":{"$error":"#REF!"}},"Fin.Return","E916",{"$f":"'Fin.Return - Other Notes'!E236","v":0}]
[{"$f":"'Standing Data'!$D$12","v":{"$error":"#N/A"}},{"$f":"'Standing Data'!$F$9","v":0},{"$f":"'Standing Data'!#REF!","v":{"$error":"#REF!"}},"Fin.Return","E917",{"$f":"'Fin.Return - Other Notes'!E237","v":0}]
[{"$f":"'Standing Data'!$D$12","v":{"$error":"#N/A"}},{"$f":"'Standing Data'!$F$9","v":0},{"$f":"'Standing Data'!#REF!","v":{"$error":"#REF!"}},"Fin.Return","E918",{"$f":"'Fin.Return - Other Notes'!E238","v":0}]
[{"$f":"'Standing Data'!$D$12","v":{"$error":"#N/A"}},{"$f":"'Standing Data'!$F$9","v":0},{"$f":"'Standing Data'!#REF!","v":{"$error":"#REF!"}},"Fin.Return","E919",{"$f":"'Fin.Return - Other Notes'!E239","v":0}]
[{"$f":"'Standing Data'!$D$12","v":{"$error":"#N/A"}},{"$f":"'Standing Data'!$F$9","v":0},{"$f":"'Standing Data'!#REF!","v":{"$error":"#REF!"}},"Fin.Return","E920",{"$f":"'Fin.Return - Other Notes'!E240","v":0}]
[{"$f":"'Standing Data'!$D$12","v":{"$error":"#N/A"}},{"$f":"'Standing Data'!$F$9","v":0},{"$f":"'Standing Data'!#REF!","v":{"$error":"#REF!"}},"Fin.Return","E922",{"$f":"'Fin.Return - Other Notes'!E242","v":0}]
[{"$f":"'Standing Data'!$D$12","v":{"$error":"#N/A"}},{"$f":"'Standing Data'!$F$9","v":0},{"$f":"'Standing Data'!#REF!","v":{"$error":"#REF!"}},"Fin.Return","E923",{"$f":"'Fin.Return - Other Notes'!E243","v":0}]
[{"$f":"'Standing Data'!$D$12","v":{"$error":"#N/A"}},{"$f":"'Standing Data'!$F$9","v":0},{"$f":"'Standing Data'!#REF!","v":{"$error":"#REF!"}},"Fin.Return","E924",{"$f":"'Fin.Return - Other Notes'!E244","v":0}]
[{"$f":"'Standing Data'!$D$12","v":{"$error":"#N/A"}},{"$f":"'Standing Data'!$F$9","v":0},{"$f":"'Standing Data'!#REF!","v":{"$error":"#REF!"}},"Fin.Return","E925",{"$f":"'Fin.Return - Other Notes'!E245","v":0}]
[{"$f":"'Standing Data'!$D$12","v":{"$error":"#N/A"}},{"$f":"'Standing Data'!$F$9","v":0},{"$f":"'Standing Data'!#REF!","v":{"$error":"#REF!"}},"Fin.Return","E926",{"$f":"'Fin.Return - Other Notes'!E246","v":0}]
[{"$f":"'Standing Data'!$D$12","v":{"$error":"#N/A"}},{"$f":"'Standing Data'!$F$9","v":0},{"$f":"'Standing Data'!#REF!","v":{"$error":"#REF!"}},"Fin.Return","E927",{"$f":"'Fin.Return - Other Notes'!E247","v":0}]
[{"$f":"'Standing Data'!$D$12","v":{"$error":"#N/A"}},{"$f":"'Standing Data'!$F$9","v":0},{"$f":"'Standing Data'!#REF!","v":{"$error":"#REF!"}},"Fin.Return","E928",{"$f":"'Fin.Return - Other Notes'!E248","v":0}]
[{"$f":"'Standing Data'!$D$12","v":{"$error":"#N/A"}},{"$f":"'Standing Data'!$F$9","v":0},{"$f":"'Standing Data'!#REF!","v":{"$error":"#REF!"}},"Fin.Return","E929",{"$f":"'Fin.Return - Other Notes'!E249","v":0}]
[{"$f":"'Standing Data'!$D$12","v":{"$error":"#N/A"}},{"$f":"'Standing Data'!$F$9","v":0},{"$f":"'Standing Data'!#REF!","v":{"$error":"#REF!"}},"Fin.Return","E930",{"$f":"'Fin.Return - Other Notes'!E250","v":0}]
[{"$f":"'Standing Data'!$D$12","v":{"$error":"#N/A"}},{"$f":"'Standing Data'!$F$9","v":0},{"$f":"'Standing Data'!#REF!","v":{"$error":"#REF!"}},"Fin.Return","E931",{"$f":"'Fin.Return - Other Notes'!E251","v":0}]
[{"$f":"'Standing Data'!$D$12","v":{"$error":"#N/A"}},{"$f":"'Standing Data'!$F$9","v":0},{"$f":"'Standing Data'!#REF!","v":{"$error":"#REF!"}},"Fin.Return","E933",{"$f":"'Fin.Return - Other Notes'!E253","v":0}]
[{"$f":"'Standing Data'!$D$12","v":{"$error":"#N/A"}},{"$f":"'Standing Data'!$F$9","v":0},{"$f":"'Standing Data'!#REF!","v":{"$error":"#REF!"}},"Fin.Return","E934",{"$f":"'Fin.Return - Other Notes'!E254","v":0}]
[{"$f":"'Standing Data'!$D$12","v":{"$error":"#N/A"}},{"$f":"'Standing Data'!$F$9","v":0},{"$f":"'Standing Data'!#REF!","v":{"$error":"#REF!"}},"Fin.Return","E935",{"$f":"'Fin.Return - Other Notes'!E255","v":0}]
[{"$f":"'Standing Data'!$D$12","v":{"$error":"#N/A"}},{"$f":"'Standing Data'!$F$9","v":0},{"$f":"'Standing Data'!#REF!","v":{"$error":"#REF!"}},"Fin.Return","E936",{"$f":"'Fin.Return - Other Notes'!E256","v":0}]
[{"$f":"'Standing Data'!$D$12","v":{"$error":"#N/A"}},{"$f":"'Standing Data'!$F$9","v":0},{"$f":"'Standing Data'!#REF!","v":{"$error":"#REF!"}},"Fin.Return","E938",{"$f":"'Fin.Return - Other Notes'!E258","v":0}]
[{"$f":"'Standing Data'!$D$12","v":{"$error":"#N/A"}},{"$f":"'Standing Data'!$F$9","v":0},{"$f":"'Standing Data'!#REF!","v":{"$error":"#REF!"}},"Fin.Return","E940",{"$f":"'Fin.Return - Other Notes'!E260","v":0}]
[{"$f":"'Standing Data'!$D$12","v":{"$error":"#N/A"}},{"$f":"'Standing Data'!$F$9","v":0},{"$f":"'Standing Data'!#REF!","v":{"$error":"#REF!"}},"Fin.Return","E942",{"$f":"'Fin.Return - Other Notes'!E262","v":0}]
[{"$f":"'Standing Data'!$D$12","v":{"$error":"#N/A"}},{"$f":"'Standing Data'!$F$9","v":0},{"$f":"'Standing Data'!#REF!","v":{"$error":"#REF!"}},"Fin.Return","E948",{"$f":"'Fin.Return - Other Notes'!E350","v":0}]
[{"$f":"'Standing Data'!$D$12","v":{"$error":"#N/A"}},{"$f":"'Standing Data'!$F$9","v":0},{"$f":"'Standing Data'!#REF!","v":{"$error":"#REF!"}},"Fin.Return","E949",{"$f":"'Fin.Return - Other Notes'!E351","v":0}]
[{"$f":"'Standing Data'!$D$12","v":{"$error":"#N/A"}},{"$f":"'Standing Data'!$F$9","v":0},{"$f":"'Standing Data'!#REF!","v":{"$error":"#REF!"}},"Fin.Return","E951",{"$f":"'Fin.Return - Other Notes'!E353","v":0}]
[{"$f":"'Standing Data'!$D$12","v":{"$error":"#N/A"}},{"$f":"'Standing Data'!$F$9","v":0},{"$f":"'Standing Data'!#REF!","v":{"$error":"#REF!"}},"Fin.Return","E957",{"$f":"'Fin.Return - Other Notes'!#REF!","v":{"$error":"#REF!"}}]
[{"$f":"'Standing Data'!$D$12","v":{"$error":"#N/A"}},{"$f":"'Standing Data'!$F$9","v":0},{"$f":"'Standing Data'!#REF!","v":{"$error":"#REF!"}},"Fin.Return","E958",{"$f":"'Fin.Return - Other Notes'!#REF!","v":{"$error":"#REF!"}}]
[{"$f":"'Standing Data'!$D$12","v":{"$error":"#N/A"}},{"$f":"'Standing Data'!$F$9","v":0},{"$f":"'Standing Data'!#REF!","v":{"$error":"#REF!"}},"Fin.Return","E959",{"$f":"'Fin.Return - Other Notes'!#REF!","v":{"$error":"#REF!"}}]
[{"$f":"'Standing Data'!$D$12","v":{"$error":"#N/A"}},{"$f":"'Standing Data'!$F$9","v":0},{"$f":"'Standing Data'!#REF!","v":{"$error":"#REF!"}},"Fin.Return","E961",{"$f":"'Fin.Return - Other Notes'!#REF!","v":{"$error":"#REF!"}}]
[{"$f":"'Standing Data'!$D$12","v":{"$error":"#N/A"}},{"$f":"'Standing Data'!$F$9","v":0},{"$f":"'Standing Data'!#REF!","v":{"$error":"#REF!"}},"Fin.Return","E969",{"$f":"'Fin.Return - Other Notes'!E359","v":0}]
[{"$f":"'Standing Data'!$D$12","v":{"$error":"#N/A"}},{"$f":"'Standing Data'!$F$9","v":0},{"$f":"'Standing Data'!#REF!","v":{"$error":"#REF!"}},"Fin.Return","E970",{"$f":"'Fin.Return - Other Notes'!E360","v":0}]
[{"$f":"'Standing Data'!$D$12","v":{"$error":"#N/A"}},{"$f":"'Standing Data'!$F$9","v":0},{"$f":"'Standing Data'!#REF!","v":{"$error":"#REF!"}},"Fin.Return","E971",{"$f":"'Fin.Return - Other Notes'!E361","v":0}]
[{"$f":"'Standing Data'!$D$12","v":{"$error":"#N/A"}},{"$f":"'Standing Data'!$F$9","v":0},{"$f":"'Standing Data'!#REF!","v":{"$error":"#REF!"}},"Fin.Return","E973",{"$f":"'Fin.Return - Other Notes'!E363","v":0}]
[{"$f":"'Standing Data'!$D$12","v":{"$error":"#N/A"}},{"$f":"'Standing Data'!$F$9","v":0},{"$f":"'Standing Data'!#REF!","v":{"$error":"#REF!"}},"Fin.Return","E974",{"$f":"'Fin.Return - Other Notes'!E364","v":0}]
[{"$f":"'Standing Data'!$D$12","v":{"$error":"#N/A"}},{"$f":"'Standing Data'!$F$9","v":0},{"$f":"'Standing Data'!#REF!","v":{"$error":"#REF!"}},"Fin.Return","E976",{"$f":"'Fin.Return - Other Notes'!E366","v":0}]
[{"$f":"'Standing Data'!$D$12","v":{"$error":"#N/A"}},{"$f":"'Standing Data'!$F$9","v":0},{"$f":"'Standing Data'!#REF!","v":{"$error":"#REF!"}},"Fin.Return","E986",{"$f":"'Fin.Return - Other Notes'!E374","v":0}]
[{"$f":"'Standing Data'!$D$12","v":{"$error":"#N/A"}},{"$f":"'Standing Data'!$F$9","v":0},{"$f":"'Standing Data'!#REF!","v":{"$error":"#REF!"}},"Fin.Return","E987",{"$f":"'Fin.Return - Other Notes'!E375","v":0}]
[{"$f":"'Standing Data'!$D$12","v":{"$error":"#N/A"}},{"$f":"'Standing Data'!$F$9","v":0},{"$f":"'Standing Data'!#REF!","v":{"$error":"#REF!"}},"Fin.Return","E988",{"$f":"'Fin.Return - Other Notes'!E376","v":0}]
[{"$f":"'Standing Data'!$D$12","v":{"$error":"#N/A"}},{"$f":"'Standing Data'!$F$9","v":0},{"$f":"'Standing Data'!#REF!","v":{"$error":"#REF!"}},"Fin.Return","E990",{"$f":"'Fin.Return - Other Notes'!E378","v":0}]
[{"$f":"'Standing Data'!$D$12","v":{"$error":"#N/A"}},{"$f":"'Standing Data'!$F$9","v":0},{"$f":"'Standing Data'!#REF!","v":{"$error":"#REF!"}},"Fin.Return","E991",{"$f":"'Fin.Return - Other Notes'!E379","v":0}]
[{"$f":"'Standing Data'!$D$12","v":{"$error":"#N/A"}},{"$f":"'Standing Data'!$F$9","v":0},{"$f":"'Standing Data'!#REF!","v":{"$error":"#REF!"}},"Fin.Return","E992",{"$f":"'Fin.Return - Other Notes'!E380","v":0}]
[{"$f":"'Standing Data'!$D$12","v":{"$error":"#N/A"}},{"$f":"'Standing Data'!$F$9","v":0},{"$f":"'Standing Data'!#REF!","v":{"$error":"#REF!"}},"Fin.Return","E994",{"$f":"'Fin.Return - Other Notes'!E382","v":0}]
[{"$f":"'Standing Data'!$D$12","v":{"$error":"#N/A"}},{"$f":"'Standing Data'!$F$9","v":0},{"$f":"'Standing Data'!#REF!","v":{"$error":"#REF!"}},"Fin.Return","E995",{"$f":"'Fin.Return - Other Notes'!E383","v":0}]
[{"$f":"'Standing Data'!$D$12","v":{"$error":"#N/A"}},{"$f":"'Standing Data'!$F$9","v":0},{"$f":"'Standing Data'!#REF!","v":{"$error":"#REF!"}},"Fin.Return","E996",{"$f":"'Fin.Return - Other Notes'!E384","v":0}]
[{"$f":"'Standing Data'!$D$12","v":{"$error":"#N/A"}},{"$f":"'Standing Data'!$F$9","v":0},{"$f":"'Standing Data'!#REF!","v":{"$error":"#REF!"}},"Fin.Return","E998",{"$f":"'Fin.Return - Other Notes'!E386","v":0}]
[{"$f":"'Standing Data'!$D$12","v":{"$error":"#N/A"}},{"$f":"'Standing Data'!$F$9","v":0},{"$f":"'Standing Data'!#REF!","v":{"$error":"#REF!"}},"Fin.Return","E999",{"$f":"'Fin.Return - Other Notes'!E387","v":0}]
[{"$f":"'Standing Data'!$D$12","v":{"$error":"#N/A"}},{"$f":"'Standing Data'!$F$9","v":0},{"$f":"'Standing Data'!#REF!","v":{"$error":"#REF!"}},"Fin.Return","E1001",{"$f":"'Fin.Return - Other Notes'!E389","v":0}]
[{"$f":"'Standing Data'!$D$12","v":{"$error":"#N/A"}},{"$f":"'Standing Data'!$F$9","v":0},{"$f":"'Standing Data'!#REF!","v":{"$error":"#REF!"}},"Fin.Return","E1009",{"$f":"'Fin.Return - Other Notes'!E397","v":0}]
[{"$f":"'Standing Data'!$D$12","v":{"$error":"#N/A"}},{"$f":"'Standing Data'!$F$9","v":0},{"$f":"'Standing Data'!#REF!","v":{"$error":"#REF!"}},"Fin.Return","E1010",{"$f":"'Fin.Return - Other Notes'!E398","v":0}]
[{"$f":"'Standing Data'!$D$12","v":{"$error":"#N/A"}},{"$f":"'Standing Data'!$F$9","v":0},{"$f":"'Standing Data'!#REF!","v":{"$error":"#REF!"}},"Fin.Return","E1011",{"$f":"'Fin.Return - Other Notes'!E399","v":0}]
[{"$f":"'Standing Data'!$D$12","v":{"$error":"#N/A"}},{"$f":"'Standing Data'!$F$9","v":0},{"$f":"'Standing Data'!#REF!","v":{"$error":"#REF!"}},"Fin.Return","E1012",{"$f":"'Fin.Return - Other Notes'!E400","v":0}]
[{"$f":"'Standing Data'!$D$12","v":{"$error":"#N/A"}},{"$f":"'Standing Data'!$F$9","v":0},{"$f":"'Standing Data'!#REF!","v":{"$error":"#REF!"}},"Fin.Return","E1013",{"$f":"'Fin.Return - Other Notes'!E401","v":0}]
[{"$f":"'Standing Data'!$D$12","v":{"$error":"#N/A"}},{"$f":"'Standing Data'!$F$9","v":0},{"$f":"'Standing Data'!#REF!","v":{"$error":"#REF!"}},"Fin.Return","E1014",{"$f":"'Fin.Return - Other Notes'!E402","v":0}]
[{"$f":"'Standing Data'!$D$12","v":{"$error":"#N/A"}},{"$f":"'Standing Data'!$F$9","v":0},{"$f":"'Standing Data'!#REF!","v":{"$error":"#REF!"}},"Fin.Return","E1015",{"$f":"'Fin.Return - Other Notes'!E403","v":0}]
[{"$f":"'Standing Data'!$D$12","v":{"$error":"#N/A"}},{"$f":"'Standing Data'!$F$9","v":0},{"$f":"'Standing Data'!#REF!","v":{"$error":"#REF!"}},"Fin.Return","E1016",{"$f":"'Fin.Return - Other Notes'!E404","v":0}]
[{"$f":"'Standing Data'!$D$12","v":{"$error":"#N/A"}},{"$f":"'Standing Data'!$F$9","v":0},{"$f":"'Standing Data'!#REF!","v":{"$error":"#REF!"}},"Fin.Return","E1017",{"$f":"'Fin.Return - Other Notes'!E405","v":0}]
[{"$f":"'Standing Data'!$D$12","v":{"$error":"#N/A"}},{"$f":"'Standing Data'!$F$9","v":0},{"$f":"'Standing Data'!#REF!","v":{"$error":"#REF!"}},"Fin.Return","E1018",{"$f":"'Fin.Return - Other Notes'!E406","v":0}]
[{"$f":"'Standing Data'!$D$12","v":{"$error":"#N/A"}},{"$f":"'Standing Data'!$F$9","v":0},{"$f":"'Standing Data'!#REF!","v":{"$error":"#REF!"}},"Fin.Return","E1019",{"$f":"'Fin.Return - Other Notes'!E407","v":0}]
[{"$f":"'Standing Data'!$D$12","v":{"$error":"#N/A"}},{"$f":"'Standing Data'!$F$9","v":0},{"$f":"'Standing Data'!#REF!","v":{"$error":"#REF!"}},"Fin.Return","E1021",{"$f":"'Fin.Return - Other Notes'!E409","v":0}]
[{"$f":"'Standing Data'!$D$12","v":{"$error":"#N/A"}},{"$f":"'Standing Data'!$F$9","v":0},{"$f":"'Standing Data'!#REF!","v":{"$error":"#REF!"}},"Fin.Return","E1022",{"$f":"'Fin.Return - Other Notes'!E410","v":0}]
[{"$f":"'Standing Data'!$D$12","v":{"$error":"#N/A"}},{"$f":"'Standing Data'!$F$9","v":0},{"$f":"'Standing Data'!#REF!","v":{"$error":"#REF!"}},"Fin.Return","E1024",{"$f":"'Fin.Return - Other Notes'!E412","v":0}]
[{"$f":"'Standing Data'!$D$12","v":{"$error":"#N/A"}},{"$f":"'Standing Data'!$F$9","v":0},{"$f":"'Standing Data'!#REF!","v":{"$error":"#REF!"}},"Fin.Return","E1030",{"$f":"'Fin.Return - Other Notes'!#REF!","v":{"$error":"#REF!"}}]
[{"$f":"'Standing Data'!$D$12","v":{"$error":"#N/A"}},{"$f":"'Standing Data'!$F$9","v":0},{"$f":"'Standing Data'!#REF!","v":{"$error":"#REF!"}},"Fin.Return","E1031",{"$f":"'Fin.Return - Other Notes'!#REF!","v":{"$error":"#REF!"}}]
[{"$f":"'Standing Data'!$D$12","v":{"$error":"#N/A"}},{"$f":"'Standing Data'!$F$9","v":0},{"$f":"'Standing Data'!#REF!","v":{"$error":"#REF!"}},"Fin.Return","E1032",{"$f":"'Fin.Return - Other Notes'!#REF!","v":{"$error":"#REF!"}}]
[{"$f":"'Standing Data'!$D$12","v":{"$error":"#N/A"}},{"$f":"'Standing Data'!$F$9","v":0},{"$f":"'Standing Data'!#REF!","v":{"$error":"#REF!"}},"Fin.Return","E1034",{"$f":"'Fin.Return - Other Notes'!#REF!","v":{"$error":"#REF!"}}]
[{"$f":"'Standing Data'!$D$12","v":{"$error":"#N/A"}},{"$f":"'Standing Data'!$F$9","v":0},{"$f":"'Standing Data'!#REF!","v":{"$error":"#REF!"}},"Fin.Return","E1042",{"$f":"'Fin.Return - Other Notes'!E418","v":0}]
[{"$f":"'Standing Data'!$D$12","v":{"$error":"#N/A"}},{"$f":"'Standing Data'!$F$9","v":0},{"$f":"'Standing Data'!#REF!","v":{"$error":"#REF!"}},"Fin.Return","E1043",{"$f":"'Fin.Return - Other Notes'!E419","v":0}]
[{"$f":"'Standing Data'!$D$12","v":{"$error":"#N/A"}},{"$f":"'Standing Data'!$F$9","v":0},{"$f":"'Standing Data'!#REF!","v":{"$error":"#REF!"}},"Fin.Return","E1044",{"$f":"'Fin.Return - Other Notes'!E420","v":0}]
[{"$f":"'Standing Data'!$D$12","v":{"$error":"#N/A"}},{"$f":"'Standing Data'!$F$9","v":0},{"$f":"'Standing Data'!#REF!","v":{"$error":"#REF!"}},"Fin.Return","E1046",{"$f":"'Fin.Return - Other Notes'!E422","v":0}]
[{"$f":"'Standing Data'!$D$12","v":{"$error":"#N/A"}},{"$f":"'Standing Data'!$F$9","v":0},{"$f":"'Standing Data'!#REF!","v":{"$error":"#REF!"}},"Fin.Return","E1047",{"$f":"'Fin.Return - Other Notes'!E423","v":0}]
[{"$f":"'Standing Data'!$D$12","v":{"$error":"#N/A"}},{"$f":"'Standing Data'!$F$9","v":0},{"$f":"'Standing Data'!#REF!","v":{"$error":"#REF!"}},"Fin.Return","E1049",{"$f":"'Fin.Return - Other Notes'!E425","v":0}]
[{"$f":"'Standing Data'!$D$12","v":{"$error":"#N/A"}},{"$f":"'Standing Data'!$F$9","v":0},{"$f":"'Standing Data'!#REF!","v":{"$error":"#REF!"}},"Fin.Return","E1059",{"$f":"'Fin.Return - Other Notes'!E433","v":0}]
[{"$f":"'Standing Data'!$D$12","v":{"$error":"#N/A"}},{"$f":"'Standing Data'!$F$9","v":0},{"$f":"'Standing Data'!#REF!","v":{"$error":"#REF!"}},"Fin.Return","E1060",{"$f":"'Fin.Return - Other Notes'!E434","v":0}]
[{"$f":"'Standing Data'!$D$12","v":{"$error":"#N/A"}},{"$f":"'Standing Data'!$F$9","v":0},{"$f":"'Standing Data'!#REF!","v":{"$error":"#REF!"}},"Fin.Return","E1061",{"$f":"'Fin.Return - Other Notes'!E435","v":0}]
[{"$f":"'Standing Data'!$D$12","v":{"$error":"#N/A"}},{"$f":"'Standing Data'!$F$9","v":0},{"$f":"'Standing Data'!#REF!","v":{"$error":"#REF!"}},"Fin.Return","E1063",{"$f":"'Fin.Return - Other Notes'!E437","v":0}]
[{"$f":"'Standing Data'!$D$12","v":{"$error":"#N/A"}},{"$f":"'Standing Data'!$F$9","v":0},{"$f":"'Standing Data'!#REF!","v":{"$error":"#REF!"}},"Fin.Return","E1064",{"$f":"'Fin.Return - Other Notes'!E438","v":0}]
[{"$f":"'Standing Data'!$D$12","v":{"$error":"#N/A"}},{"$f":"'Standing Data'!$F$9","v":0},{"$f":"'Standing Data'!#REF!","v":{"$error":"#REF!"}},"Fin.Return","E1065",{"$f":"'Fin.Return - Other Notes'!E439","v":0}]
[{"$f":"'Standing Data'!$D$12","v":{"$error":"#N/A"}},{"$f":"'Standing Data'!$F$9","v":0},{"$f":"'Standing Data'!#REF!","v":{"$error":"#REF!"}},"Fin.Return","E1067",{"$f":"'Fin.Return - Other Notes'!E441","v":0}]
[{"$f":"'Standing Data'!$D$12","v":{"$error":"#N/A"}},{"$f":"'Standing Data'!$F$9","v":0},{"$f":"'Standing Data'!#REF!","v":{"$error":"#REF!"}},"Fin.Return","E1068",{"$f":"'Fin.Return - Other Notes'!E442","v":0}]
[{"$f":"'Standing Data'!$D$12","v":{"$error":"#N/A"}},{"$f":"'Standing Data'!$F$9","v":0},{"$f":"'Standing Data'!#REF!","v":{"$error":"#REF!"}},"Fin.Return","E1069",{"$f":"'Fin.Return - Other Notes'!E443","v":0}]
[{"$f":"'Standing Data'!$D$12","v":{"$error":"#N/A"}},{"$f":"'Standing Data'!$F$9","v":0},{"$f":"'Standing Data'!#REF!","v":{"$error":"#REF!"}},"Fin.Return","E1071",{"$f":"'Fin.Return - Other Notes'!E445","v":0}]
[{"$f":"'Standing Data'!$D$12","v":{"$error":"#N/A"}},{"$f":"'Standing Data'!$F$9","v":0},{"$f":"'Standing Data'!#REF!","v":{"$error":"#REF!"}},"Fin.Return","E1072",{"$f":"'Fin.Return - Other Notes'!E446","v":0}]
[{"$f":"'Standing Data'!$D$12","v":{"$error":"#N/A"}},{"$f":"'Standing Data'!$F$9","v":0},{"$f":"'Standing Data'!#REF!","v":{"$error":"#REF!"}},"Fin.Return","E1074",{"$f":"'Fin.Return - Other Notes'!E448","v":0}]
[{"$f":"'Standing Data'!$D$12","v":{"$error":"#N/A"}},{"$f":"'Standing Data'!$F$9","v":0},{"$f":"'Standing Data'!#REF!","v":{"$error":"#REF!"}},"Fin.Return","E1082",{"$f":"'Fin.Return - Other Notes'!E456","v":0}]
[{"$f":"'Standing Data'!$D$12","v":{"$error":"#N/A"}},{"$f":"'Standing Data'!$F$9","v":0},{"$f":"'Standing Data'!#REF!","v":{"$error":"#REF!"}},"Fin.Return","E1083",{"$f":"'Fin.Return - Other Notes'!E457","v":0}]
[{"$f":"'Standing Data'!$D$12","v":{"$error":"#N/A"}},{"$f":"'Standing Data'!$F$9","v":0},{"$f":"'Standing Data'!#REF!","v":{"$error":"#REF!"}},"Fin.Return","E1084",{"$f":"'Fin.Return - Other Notes'!E458","v":0}]
[{"$f":"'Standing Data'!$D$12","v":{"$error":"#N/A"}},{"$f":"'Standing Data'!$F$9","v":0},{"$f":"'Standing Data'!#REF!","v":{"$error":"#REF!"}},"Fin.Return","E1086",{"$f":"'Fin.Return - Other Notes'!E460","v":0}]
[{"$f":"'Standing Data'!$D$12","v":{"$error":"#N/A"}},{"$f":"'Standing Data'!$F$9","v":0},{"$f":"'Standing Data'!#REF!","v":{"$error":"#REF!"}},"Fin.Return","E1087",{"$f":"'Fin.Return - Other Notes'!E461","v":0}]
[{"$f":"'Standing Data'!$D$12","v":{"$error":"#N/A"}},{"$f":"'Standing Data'!$F$9","v":0},{"$f":"'Standing Data'!#REF!","v":{"$error":"#REF!"}},"Fin.Return","E1088",{"$f":"'Fin.Return - Other Notes'!E462","v":0}]
[{"$f":"'Standing Data'!$D$12","v":{"$error":"#N/A"}},{"$f":"'Standing Data'!$F$9","v":0},{"$f":"'Standing Data'!#REF!","v":{"$error":"#REF!"}},"Fin.Return","E1090",{"$f":"'Fin.Return - Other Notes'!E464","v":0}]
[{"$f":"'Standing Data'!$D$12","v":{"$error":"#N/A"}},{"$f":"'Standing Data'!$F$9","v":0},{"$f":"'Standing Data'!#REF!","v":{"$error":"#REF!"}},"Fin.Return","E1091",{"$f":"'Fin.Return - Other Notes'!E465","v":0}]
[{"$f":"'Standing Data'!$D$12","v":{"$error":"#N/A"}},{"$f":"'Standing Data'!$F$9","v":0},{"$f":"'Standing Data'!#REF!","v":{"$error":"#REF!"}},"Fin.Return","E1092",{"$f":"'Fin.Return - Other Notes'!E466","v":0}]
[{"$f":"'Standing Data'!$D$12","v":{"$error":"#N/A"}},{"$f":"'Standing Data'!$F$9","v":0},{"$f":"'Standing Data'!#REF!","v":{"$error":"#REF!"}},"Fin.Return","E1094",{"$f":"'Fin.Return - Other Notes'!E468","v":0}]
[{"$f":"'Standing Data'!$D$12","v":{"$error":"#N/A"}},{"$f":"'Standing Data'!$F$9","v":0},{"$f":"'Standing Data'!#REF!","v":{"$error":"#REF!"}},"Fin.Return","E1095",{"$f":"'Fin.Return - Other Notes'!E469","v":0}]
[{"$f":"'Standing Data'!$D$12","v":{"$error":"#N/A"}},{"$f":"'Standing Data'!$F$9","v":0},{"$f":"'Standing Data'!#REF!","v":{"$error":"#REF!"}},"Fin.Return","E1097",{"$f":"'Fin.Return - Other Notes'!E471","v":0}]
[{"$f":"'Standing Data'!$D$12","v":{"$error":"#N/A"}},{"$f":"'Standing Data'!$F$9","v":0},{"$f":"'Standing Data'!#REF!","v":{"$error":"#REF!"}},"Fin.Return","E1102",{"$f":"'Fin.Return - Other Notes'!E476","v":0}]
[{"$f":"'Standing Data'!$D$12","v":{"$error":"#N/A"}},{"$f":"'Standing Data'!$F$9","v":0},{"$f":"'Standing Data'!#REF!","v":{"$error":"#REF!"}},"Fin.Return","E1103",{"$f":"'Fin.Return - Other Notes'!E477","v":0}]
[{"$f":"'Standing Data'!$D$12","v":{"$error":"#N/A"}},{"$f":"'Standing Data'!$F$9","v":0},{"$f":"'Standing Data'!#REF!","v":{"$error":"#REF!"}},"Fin.Return","E1104",{"$f":"'Fin.Return - Other Notes'!E478","v":0}]
[{"$f":"'Standing Data'!$D$12","v":{"$error":"#N/A"}},{"$f":"'Standing Data'!$F$9","v":0},{"$f":"'Standing Data'!#REF!","v":{"$error":"#REF!"}},"Fin.Return","E1106",{"$f":"'Fin.Return - Other Notes'!E480","v":0}]
[{"$f":"'Standing Data'!$D$12","v":{"$error":"#N/A"}},{"$f":"'Standing Data'!$F$9","v":0},{"$f":"'Standing Data'!#REF!","v":{"$error":"#REF!"}},"Fin.Return","E1111",{"$f":"'Fin.Return - Other Notes'!E485","v":0}]
[{"$f":"'Standing Data'!$D$12","v":{"$error":"#N/A"}},{"$f":"'Standing Data'!$F$9","v":0},{"$f":"'Standing Data'!#REF!","v":{"$error":"#REF!"}},"Fin.Return","E1112",{"$f":"'Fin.Return - Other Notes'!E486","v":0}]
[{"$f":"'Standing Data'!$D$12","v":{"$error":"#N/A"}},{"$f":"'Standing Data'!$F$9","v":0},{"$f":"'Standing Data'!#REF!","v":{"$error":"#REF!"}},"Fin.Return","E1113",{"$f":"'Fin.Return - Other Notes'!E487","v":0}]
[{"$f":"'Standing Data'!$D$12","v":{"$error":"#N/A"}},{"$f":"'Standing Data'!$F$9","v":0},{"$f":"'Standing Data'!#REF!","v":{"$error":"#REF!"}},"Fin.Return","E1115",{"$f":"'Fin.Return - Other Notes'!E489","v":0}]
[{"$f":"'Standing Data'!$D$12","v":{"$error":"#N/A"}},{"$f":"'Standing Data'!$F$9","v":0},{"$f":"'Standing Data'!#REF!","v":{"$error":"#REF!"}},"Fin.Return","E1121",{"$f":"'Fin.Return - Other Notes'!E495","v":0}]
[{"$f":"'Standing Data'!$D$12","v":{"$error":"#N/A"}},{"$f":"'Standing Data'!$F$9","v":0},{"$f":"'Standing Data'!#REF!","v":{"$error":"#REF!"}},"Fin.Return","E1122",{"$f":"'Fin.Return - Other Notes'!E496","v":0}]
[{"$f":"'Standing Data'!$D$12","v":{"$error":"#N/A"}},{"$f":"'Standing Data'!$F$9","v":0},{"$f":"'Standing Data'!#REF!","v":{"$error":"#REF!"}},"Fin.Return","E1123",{"$f":"'Fin.Return - Other Notes'!E497","v":0}]
[{"$f":"'Standing Data'!$D$12","v":{"$error":"#N/A"}},{"$f":"'Standing Data'!$F$9","v":0},{"$f":"'Standing Data'!#REF!","v":{"$error":"#REF!"}},"Fin.Return","E1125",{"$f":"'Fin.Return - Other Notes'!E499","v":0}]
[{"$f":"'Standing Data'!$D$12","v":{"$error":"#N/A"}},{"$f":"'Standing Data'!$F$9","v":0},{"$f":"'Standing Data'!#REF!","v":{"$error":"#REF!"}},"Fin.Return","E1131",{"$f":"'Fin.Return - Other Notes'!E505","v":0}]
[{"$f":"'Standing Data'!$D$12","v":{"$error":"#N/A"}},{"$f":"'Standing Data'!$F$9","v":0},{"$f":"'Standing Data'!#REF!","v":{"$error":"#REF!"}},"Fin.Return","E1132",{"$f":"'Fin.Return - Other Notes'!E506","v":0}]
[{"$f":"'Standing Data'!$D$12","v":{"$error":"#N/A"}},{"$f":"'Standing Data'!$F$9","v":0},{"$f":"'Standing Data'!#REF!","v":{"$error":"#REF!"}},"Fin.Return","E1133",{"$f":"'Fin.Return - Other Notes'!E507","v":0}]
[{"$f":"'Standing Data'!$D$12","v":{"$error":"#N/A"}},{"$f":"'Standing Data'!$F$9","v":0},{"$f":"'Standing Data'!#REF!","v":{"$error":"#REF!"}},"Fin.Return","E1135",{"$f":"'Fin.Return - Other Notes'!E509","v":0}]
[{"$f":"'Standing Data'!$D$12","v":{"$error":"#N/A"}},{"$f":"'Standing Data'!$F$9","v":0},{"$f":"'Standing Data'!#REF!","v":{"$error":"#REF!"}},"Fin.Return","E1140",{"$f":"'Fin.Return - Other Notes'!E514","v":0}]
[{"$f":"'Standing Data'!$D$12","v":{"$error":"#N/A"}},{"$f":"'Standing Data'!$F$9","v":0},{"$f":"'Standing Data'!#REF!","v":{"$error":"#REF!"}},"Fin.Return","E1141",{"$f":"'Fin.Return - Other Notes'!E515","v":0}]
[{"$f":"'Standing Data'!$D$12","v":{"$error":"#N/A"}},{"$f":"'Standing Data'!$F$9","v":0},{"$f":"'Standing Data'!#REF!","v":{"$error":"#REF!"}},"Fin.Return","E1142",{"$f":"'Fin.Return - Other Notes'!E516","v":0}]
[{"$f":"'Standing Data'!$D$12","v":{"$error":"#N/A"}},{"$f":"'Standing Data'!$F$9","v":0},{"$f":"'Standing Data'!#REF!","v":{"$error":"#REF!"}},"Fin.Return","E1144",{"$f":"'Fin.Return - Other Notes'!E518","v":0}]
[{"$f":"'Standing Data'!$D$12","v":{"$error":"#N/A"}},{"$f":"'Standing Data'!$F$9","v":0},{"$f":"'Standing Data'!#REF!","v":{"$error":"#REF!"}},"Fin.Return","E1149",{"$f":"'Fin.Return - SOFA'!#REF!","v":{"$error":"#REF!"}}]
[{"$f":"'Standing Data'!$D$12","v":{"$error":"#N/A"}},{"$f":"'Standing Data'!$F$9","v":0},{"$f":"'Standing Data'!#REF!","v":{"$error":"#REF!"}},"Fin.Return","E1150",{"$f":"'Fin.Return - SOFA'!#REF!","v":{"$error":"#REF!"}}]
[{"$f":"'Standing Data'!$D$12","v":{"$error":"#N/A"}},{"$f":"'Standing Data'!$F$9","v":0},{"$f":"'Standing Data'!#REF!","v":{"$error":"#REF!"}},"Fin.Return","E1151",{"$f":"'Fin.Return - SOFA'!#REF!","v":{"$error":"#REF!"}}]
[{"$f":"'Standing Data'!$D$12","v":{"$error":"#N/A"}},{"$f":"'Standing Data'!$F$9","v":0},{"$f":"'Standing Data'!#REF!","v":{"$error":"#REF!"}},"Fin.Return","E1153",{"$f":"'Fin.Return - SOFA'!#REF!","v":{"$error":"#REF!"}}]
[{"$f":"'Standing Data'!$D$12","v":{"$error":"#N/A"}},{"$f":"'Standing Data'!$F$9","v":0},{"$f":"'Standing Data'!#REF!","v":{"$error":"#REF!"}},"Fin.Return","E1159",{"$f":"'Fin.Return - SOFA'!#REF!","v":{"$error":"#REF!"}}]
[{"$f":"'Standing Data'!$D$12","v":{"$error":"#N/A"}},{"$f":"'Standing Data'!$F$9","v":0},{"$f":"'Standing Data'!#REF!","v":{"$error":"#REF!"}},"Fin.Return","E1160",{"$f":"'Fin.Return - SOFA'!#REF!","v":{"$error":"#REF!"}}]
[{"$f":"'Standing Data'!$D$12","v":{"$error":"#N/A"}},{"$f":"'Standing Data'!$F$9","v":0},{"$f":"'Standing Data'!#REF!","v":{"$error":"#REF!"}},"Fin.Return","E1161",{"$f":"'Fin.Return - SOFA'!#REF!","v":{"$error":"#REF!"}}]
[{"$f":"'Standing Data'!$D$12","v":{"$error":"#N/A"}},{"$f":"'Standing Data'!$F$9","v":0},{"$f":"'Standing Data'!#REF!","v":{"$error":"#REF!"}},"Fin.Return","E1162",{"$f":"'Fin.Return - SOFA'!#REF!","v":{"$error":"#REF!"}}]
[{"$f":"'Standing Data'!$D$12","v":{"$error":"#N/A"}},{"$f":"'Standing Data'!$F$9","v":0},{"$f":"'Standing Data'!#REF!","v":{"$error":"#REF!"}},"Fin.Return","E1163",{"$f":"'Fin.Return - SOFA'!#REF!","v":{"$error":"#REF!"}}]
[{"$f":"'Standing Data'!$D$12","v":{"$error":"#N/A"}},{"$f":"'Standing Data'!$F$9","v":0},{"$f":"'Standing Data'!#REF!","v":{"$error":"#REF!"}},"Fin.Return","E1164",{"$f":"'Fin.Return - SOFA'!#REF!","v":{"$error":"#REF!"}}]
[{"$f":"'Standing Data'!$D$12","v":{"$error":"#N/A"}},{"$f":"'Standing Data'!$F$9","v":0},{"$f":"'Standing Data'!#REF!","v":{"$error":"#REF!"}},"Fin.Return","E1165",{"$f":"'Fin.Return - SOFA'!#REF!","v":{"$error":"#REF!"}}]
[{"$f":"'Standing Data'!$D$12","v":{"$error":"#N/A"}},{"$f":"'Standing Data'!$F$9","v":0},{"$f":"'Standing Data'!#REF!","v":{"$error":"#REF!"}},"Fin.Return","E1166",{"$f":"'Fin.Return - SOFA'!#REF!","v":{"$error":"#REF!"}}]
[{"$f":"'Standing Data'!$D$12","v":{"$error":"#N/A"}},{"$f":"'Standing Data'!$F$9","v":0},{"$f":"'Standing Data'!#REF!","v":{"$error":"#REF!"}},"Fin.Return","E1167",{"$f":"'Fin.Return - SOFA'!#REF!","v":{"$error":"#REF!"}}]
[{"$f":"'Standing Data'!$D$12","v":{"$error":"#N/A"}},{"$f":"'Standing Data'!$F$9","v":0},{"$f":"'Standing Data'!#REF!","v":{"$error":"#REF!"}},"Fin.Return","E1168",{"$f":"'Fin.Return - SOFA'!#REF!","v":{"$error":"#REF!"}}]
[{"$f":"'Standing Data'!$D$12","v":{"$error":"#N/A"}},{"$f":"'Standing Data'!$F$9","v":0},{"$f":"'Standing Data'!#REF!","v":{"$error":"#REF!"}},"Fin.Return","E1169",{"$f":"'Fin.Return - SOFA'!#REF!","v":{"$error":"#REF!"}}]
[{"$f":"'Standing Data'!$D$12","v":{"$error":"#N/A"}},{"$f":"'Standing Data'!$F$9","v":0},{"$f":"'Standing Data'!#REF!","v":{"$error":"#REF!"}},"Fin.Return","E1170",{"$f":"'Fin.Return - SOFA'!#REF!","v":{"$error":"#REF!"}}]
[{"$f":"'Standing Data'!$D$12","v":{"$error":"#N/A"}},{"$f":"'Standing Data'!$F$9","v":0},{"$f":"'Standing Data'!#REF!","v":{"$error":"#REF!"}},"Fin.Return","E1171",{"$f":"'Fin.Return - SOFA'!#REF!","v":{"$error":"#REF!"}}]
[{"$f":"'Standing Data'!$D$12","v":{"$error":"#N/A"}},{"$f":"'Standing Data'!$F$9","v":0},{"$f":"'Standing Data'!#REF!","v":{"$error":"#REF!"}},"Fin.Return","E1172",{"$f":"'Fin.Return - SOFA'!#REF!","v":{"$error":"#REF!"}}]
[{"$f":"'Standing Data'!$D$12","v":{"$error":"#N/A"}},{"$f":"'Standing Data'!$F$9","v":0},{"$f":"'Standing Data'!#REF!","v":{"$error":"#REF!"}},"Fin.Return","E1180",{"$f":"'Fin.Return - Other Notes'!E568","v":0}]
[{"$f":"'Standing Data'!$D$12","v":{"$error":"#N/A"}},{"$f":"'Standing Data'!$F$9","v":0},{"$f":"'Standing Data'!#REF!","v":{"$error":"#REF!"}},"Fin.Return","E1181",{"$f":"'Fin.Return - Other Notes'!E569","v":0}]
[{"$f":"'Standing Data'!$D$12","v":{"$error":"#N/A"}},{"$f":"'Standing Data'!$F$9","v":0},{"$f":"'Standing Data'!#REF!","v":{"$error":"#REF!"}},"Fin.Return","E1182",{"$f":"'Fin.Return - Other Notes'!E570","v":0}]
[{"$f":"'Standing Data'!$D$12","v":{"$error":"#N/A"}},{"$f":"'Standing Data'!$F$9","v":0},{"$f":"'Standing Data'!#REF!","v":{"$error":"#REF!"}},"Fin.Return","E1183",{"$f":"'Fin.Return - Other Notes'!E571","v":0}]
[{"$f":"'Standing Data'!$D$12","v":{"$error":"#N/A"}},{"$f":"'Standing Data'!$F$9","v":0},{"$f":"'Standing Data'!#REF!","v":{"$error":"#REF!"}},"Fin.Return","E1184",{"$f":"'Fin.Return - Other Notes'!E572","v":0}]
[{"$f":"'Standing Data'!$D$12","v":{"$error":"#N/A"}},{"$f":"'Standing Data'!$F$9","v":0},{"$f":"'Standing Data'!#REF!","v":{"$error":"#REF!"}},"Fin.Return","E1185",{"$f":"'Fin.Return - Other Notes'!E573","v":0}]
[{"$f":"'Standing Data'!$D$12","v":{"$error":"#N/A"}},{"$f":"'Standing Data'!$F$9","v":0},{"$f":"'Standing Data'!#REF!","v":{"$error":"#REF!"}},"Fin.Return","E1186",{"$f":"'Fin.Return - Other Notes'!E574","v":0}]
[{"$f":"'Standing Data'!$D$12","v":{"$error":"#N/A"}},{"$f":"'Standing Data'!$F$9","v":0},{"$f":"'Standing Data'!#REF!","v":{"$error":"#REF!"}},"Fin.Return","E1187",{"$f":"'Fin.Return - Other Notes'!E575","v":0}]
[{"$f":"'Standing Data'!$D$12","v":{"$error":"#N/A"}},{"$f":"'Standing Data'!$F$9","v":0},{"$f":"'Standing Data'!#REF!","v":{"$error":"#REF!"}},"Fin.Return","E1188",{"$f":"'Fin.Return - Other Notes'!E576","v":0}]
[{"$f":"'Standing Data'!$D$12","v":{"$error":"#N/A"}},{"$f":"'Standing Data'!$F$9","v":0},{"$f":"'Standing Data'!#REF!","v":{"$error":"#REF!"}},"Fin.Return","E1189",{"$f":"'Fin.Return - Other Notes'!E577","v":0}]
[{"$f":"'Standing Data'!$D$12","v":{"$error":"#N/A"}},{"$f":"'Standing Data'!$F$9","v":0},{"$f":"'Standing Data'!#REF!","v":{"$error":"#REF!"}},"Fin.Return","E1190",{"$f":"'Fin.Return - Other Notes'!E578","v":0}]
[{"$f":"'Standing Data'!$D$12","v":{"$error":"#N/A"}},{"$f":"'Standing Data'!$F$9","v":0},{"$f":"'Standing Data'!#REF!","v":{"$error":"#REF!"}},"Fin.Return","E1191",{"$f":"'Fin.Return - Other Notes'!E579","v":0}]
[{"$f":"'Standing Data'!$D$12","v":{"$error":"#N/A"}},{"$f":"'Standing Data'!$F$9","v":0},{"$f":"'Standing Data'!#REF!","v":{"$error":"#REF!"}},"Fin.Return","E1192",{"$f":"'Fin.Return - Other Notes'!E580","v":0}]
[{"$f":"'Standing Data'!$D$12","v":{"$error":"#N/A"}},{"$f":"'Standing Data'!$F$9","v":0},{"$f":"'Standing Data'!#REF!","v":{"$error":"#REF!"}},"Fin.Return","E1193",{"$f":"'Fin.Return - Other Notes'!E581","v":0}]
[{"$f":"'Standing Data'!$D$12","v":{"$error":"#N/A"}},{"$f":"'Standing Data'!$F$9","v":0},{"$f":"'Standing Data'!#REF!","v":{"$error":"#REF!"}},"Fin.Return","E1194",{"$f":"'Fin.Return - Other Notes'!E582","v":0}]
[{"$f":"'Standing Data'!$D$12","v":{"$error":"#N/A"}},{"$f":"'Standing Data'!$F$9","v":0},{"$f":"'Standing Data'!#REF!","v":{"$error":"#REF!"}},"Fin.Return","E1195",{"$f":"'Fin.Return - Other Notes'!E583","v":0}]
[{"$f":"'Standing Data'!$D$12","v":{"$error":"#N/A"}},{"$f":"'Standing Data'!$F$9","v":0},{"$f":"'Standing Data'!#REF!","v":{"$error":"#REF!"}},"Fin.Return","E1196",{"$f":"'Fin.Return - Other Notes'!E584","v":0}]
[{"$f":"'Standing Data'!$D$12","v":{"$error":"#N/A"}},{"$f":"'Standing Data'!$F$9","v":0},{"$f":"'Standing Data'!#REF!","v":{"$error":"#REF!"}},"Fin.Return","E1197",{"$f":"'Fin.Return - Other Notes'!E585","v":0}]
[{"$f":"'Standing Data'!$D$12","v":{"$error":"#N/A"}},{"$f":"'Standing Data'!$F$9","v":0},{"$f":"'Standing Data'!#REF!","v":{"$error":"#REF!"}},"Fin.Return","E1198",{"$f":"'Fin.Return - Other Notes'!E586","v":0}]
[{"$f":"'Standing Data'!$D$12","v":{"$error":"#N/A"}},{"$f":"'Standing Data'!$F$9","v":0},{"$f":"'Standing Data'!#REF!","v":{"$error":"#REF!"}},"Fin.Return","E1199",{"$f":"'Fin.Return - Other Notes'!E587","v":0}]
[{"$f":"'Standing Data'!$D$12","v":{"$error":"#N/A"}},{"$f":"'Standing Data'!$F$9","v":0},{"$f":"'Standing Data'!#REF!","v":{"$error":"#REF!"}},"Fin.Return","E1200",{"$f":"'Fin.Return - Other Notes'!E588","v":0}]
[{"$f":"'Standing Data'!$D$12","v":{"$error":"#N/A"}},{"$f":"'Standing Data'!$F$9","v":0},{"$f":"'Standing Data'!#REF!","v":{"$error":"#REF!"}},"Fin.Return","E1201",{"$f":"'Fin.Return - Other Notes'!E589","v":0}]
[{"$f":"'Standing Data'!$D$12","v":{"$error":"#N/A"}},{"$f":"'Standing Data'!$F$9","v":0},{"$f":"'Standing Data'!#REF!","v":{"$error":"#REF!"}},"Fin.Return","E1202",{"$f":"'Fin.Return - Other Notes'!E590","v":0}]
[{"$f":"'Standing Data'!$D$12","v":{"$error":"#N/A"}},{"$f":"'Standing Data'!$F$9","v":0},{"$f":"'Standing Data'!#REF!","v":{"$error":"#REF!"}},"Fin.Return","E1203",{"$f":"'Fin.Return - Other Notes'!E591","v":0}]
[{"$f":"'Standing Data'!$D$12","v":{"$error":"#N/A"}},{"$f":"'Standing Data'!$F$9","v":0},{"$f":"'Standing Data'!#REF!","v":{"$error":"#REF!"}},"Fin.Return","E1204",{"$f":"'Fin.Return - Other Notes'!E592","v":0}]
[{"$f":"'Standing Data'!$D$12","v":{"$error":"#N/A"}},{"$f":"'Standing Data'!$F$9","v":0},{"$f":"'Standing Data'!#REF!","v":{"$error":"#REF!"}},"Fin.Return","E1205",{"$f":"'Fin.Return - Other Notes'!E593","v":0}]
[{"$f":"'Standing Data'!$D$12","v":{"$error":"#N/A"}},{"$f":"'Standing Data'!$F$9","v":0},{"$f":"'Standing Data'!#REF!","v":{"$error":"#REF!"}},"Fin.Return","E1206",{"$f":"'Fin.Return - Other Notes'!E594","v":0}]
[{"$f":"'Standing Data'!$D$12","v":{"$error":"#N/A"}},{"$f":"'Standing Data'!$F$9","v":0},{"$f":"'Standing Data'!#REF!","v":{"$error":"#REF!"}},"Fin.Return","E1207",{"$f":"'Fin.Return - Other Notes'!E595","v":0}]
[{"$f":"'Standing Data'!$D$12","v":{"$error":"#N/A"}},{"$f":"'Standing Data'!$F$9","v":0},{"$f":"'Standing Data'!#REF!","v":{"$error":"#REF!"}},"Fin.Return","E1208",{"$f":"'Fin.Return - Other Notes'!E596","v":0}]
[{"$f":"'Standing Data'!$D$12","v":{"$error":"#N/A"}},{"$f":"'Standing Data'!$F$9","v":0},{"$f":"'Standing Data'!#REF!","v":{"$error":"#REF!"}},"Fin.Return","E1209",{"$f":"'Fin.Return - Other Notes'!E597","v":0}]
[{"$f":"'Standing Data'!$D$12","v":{"$error":"#N/A"}},{"$f":"'Standing Data'!$F$9","v":0},{"$f":"'Standing Data'!#REF!","v":{"$error":"#REF!"}},"Fin.Return","E1210",{"$f":"'Fin.Return - Other Notes'!E598","v":0}]
[{"$f":"'Standing Data'!$D$12","v":{"$error":"#N/A"}},{"$f":"'Standing Data'!$F$9","v":0},{"$f":"'Standing Data'!#REF!","v":{"$error":"#REF!"}},"Fin.Return","E1211",{"$f":"'Fin.Return - Other Notes'!E599","v":0}]
[{"$f":"'Standing Data'!$D$12","v":{"$error":"#N/A"}},{"$f":"'Standing Data'!$F$9","v":0},{"$f":"'Standing Data'!#REF!","v":{"$error":"#REF!"}},"Fin.Return","E1212",{"$f":"'Fin.Return - Other Notes'!E600","v":0}]
[{"$f":"'Standing Data'!$D$12","v":{"$error":"#N/A"}},{"$f":"'Standing Data'!$F$9","v":0},{"$f":"'Standing Data'!#REF!","v":{"$error":"#REF!"}},"Fin.Return","E1213",{"$f":"'Fin.Return - Other Notes'!E601","v":0}]
[{"$f":"'Standing Data'!$D$12","v":{"$error":"#N/A"}},{"$f":"'Standing Data'!$F$9","v":0},{"$f":"'Standing Data'!#REF!","v":{"$error":"#REF!"}},"Fin.Return","E1214",{"$f":"'Fin.Return - Other Notes'!E602","v":0}]
[{"$f":"'Standing Data'!$D$12","v":{"$error":"#N/A"}},{"$f":"'Standing Data'!$F$9","v":0},{"$f":"'Standing Data'!#REF!","v":{"$error":"#REF!"}},"Fin.Return","E1215",{"$f":"'Fin.Return - Other Notes'!E603","v":0}]
[{"$f":"'Standing Data'!$D$12","v":{"$error":"#N/A"}},{"$f":"'Standing Data'!$F$9","v":0},{"$f":"'Standing Data'!#REF!","v":{"$error":"#REF!"}},"Fin.Return","E1216",{"$f":"'Fin.Return - Other Notes'!E604","v":0}]
[{"$f":"'Standing Data'!$D$12","v":{"$error":"#N/A"}},{"$f":"'Standing Data'!$F$9","v":0},{"$f":"'Standing Data'!#REF!","v":{"$error":"#REF!"}},"Fin.Return","E1217",{"$f":"'Fin.Return - Other Notes'!E605","v":0}]
[{"$f":"'Standing Data'!$D$12","v":{"$error":"#N/A"}},{"$f":"'Standing Data'!$F$9","v":0},{"$f":"'Standing Data'!#REF!","v":{"$error":"#REF!"}},"Fin.Return","E1218",{"$f":"'Fin.Return - Other Notes'!E606","v":0}]
[{"$f":"'Standing Data'!$D$12","v":{"$error":"#N/A"}},{"$f":"'Standing Data'!$F$9","v":0},{"$f":"'Standing Data'!#REF!","v":{"$error":"#REF!"}},"Fin.Return","E1219",{"$f":"'Fin.Return - Other Notes'!E607","v":0}]
[{"$f":"'Standing Data'!$D$12","v":{"$error":"#N/A"}},{"$f":"'Standing Data'!$F$9","v":0},{"$f":"'Standing Data'!#REF!","v":{"$error":"#REF!"}},"Fin.Return","E1220",{"$f":"'Fin.Return - Other Notes'!E608","v":0}]
[{"$f":"'Standing Data'!$D$12","v":{"$error":"#N/A"}},{"$f":"'Standing Data'!$F$9","v":0},{"$f":"'Standing Data'!#REF!","v":{"$error":"#REF!"}},"Fin.Return","E1221",{"$f":"'Fin.Return - Other Notes'!#REF!","v":{"$error":"#REF!"}}]
[{"$f":"'Standing Data'!$D$12","v":{"$error":"#N/A"}},{"$f":"'Standing Data'!$F$9","v":0},{"$f":"'Standing Data'!#REF!","v":{"$error":"#REF!"}},"Fin.Return","E1222",{"$f":"'Fin.Return - Other Notes'!#REF!","v":{"$error":"#REF!"}}]
[{"$f":"'Standing Data'!$D$12","v":{"$error":"#N/A"}},{"$f":"'Standing Data'!$F$9","v":0},{"$f":"'Standing Data'!#REF!","v":{"$error":"#REF!"}},"Fin.Return","E1223",{"$f":"'Fin.Return - Other Notes'!#REF!","v":{"$error":"#REF!"}}]
[{"$f":"'Standing Data'!$D$12","v":{"$error":"#N/A"}},{"$f":"'Standing Data'!$F$9","v":0},{"$f":"'Standing Data'!#REF!","v":{"$error":"#REF!"}},"Fin.Return","E1224",{"$f":"'Fin.Return - Other Notes'!#REF!","v":{"$error":"#REF!"}}]
[{"$f":"'Standing Data'!$D$12","v":{"$error":"#N/A"}},{"$f":"'Standing Data'!$F$9","v":0},{"$f":"'Standing Data'!#REF!","v":{"$error":"#REF!"}},"Fin.Return","E1225",{"$f":"'Fin.Return - Other Notes'!#REF!","v":{"$error":"#REF!"}}]
[{"$f":"'Standing Data'!$D$12","v":{"$error":"#N/A"}},{"$f":"'Standing Data'!$F$9","v":0},{"$f":"'Standing Data'!#REF!","v":{"$error":"#REF!"}},"Fin.Return","E1226",{"$f":"'Fin.Return - Other Notes'!#REF!","v":{"$error":"#REF!"}}]
[{"$f":"'Standing Data'!$D$12","v":{"$error":"#N/A"}},{"$f":"'Standing Data'!$F$9","v":0},{"$f":"'Standing Data'!#REF!","v":{"$error":"#REF!"}},"Fin.Return","E1227",{"$f":"'Fin.Return - Other Notes'!#REF!","v":{"$error":"#REF!"}}]
[{"$f":"'Standing Data'!$D$12","v":{"$error":"#N/A"}},{"$f":"'Standing Data'!$F$9","v":0},{"$f":"'Standing Data'!#REF!","v":{"$error":"#REF!"}},"Fin.Return","E1228",{"$f":"'Fin.Return - Other Notes'!#REF!","v":{"$error":"#REF!"}}]
[{"$f":"'Standing Data'!$D$12","v":{"$error":"#N/A"}},{"$f":"'Standing Data'!$F$9","v":0},{"$f":"'Standing Data'!#REF!","v":{"$error":"#REF!"}},"Fin.Return","E1229",{"$f":"'Fin.Return - Other Notes'!#REF!","v":{"$error":"#REF!"}}]
[{"$f":"'Standing Data'!$D$12","v":{"$error":"#N/A"}},{"$f":"'Standing Data'!$F$9","v":0},{"$f":"'Standing Data'!#REF!","v":{"$error":"#REF!"}},"Fin.Return","E1230",{"$f":"'Fin.Return - Other Notes'!#REF!","v":{"$error":"#REF!"}}]
[{"$f":"'Standing Data'!$D$12","v":{"$error":"#N/A"}},{"$f":"'Standing Data'!$F$9","v":0},{"$f":"'Standing Data'!#REF!","v":{"$error":"#REF!"}},"Fin.Return","E1237",{"$f":"'Fin.Return - Other Notes'!E615","v":0}]
[{"$f":"'Standing Data'!$D$12","v":{"$error":"#N/A"}},{"$f":"'Standing Data'!$F$9","v":0},{"$f":"'Standing Data'!#REF!","v":{"$error":"#REF!"}},"Fin.Return","E1238",{"$f":"'Fin.Return - Other Notes'!E616","v":0}]
[{"$f":"'Standing Data'!$D$12","v":{"$error":"#N/A"}},{"$f":"'Standing Data'!$F$9","v":0},{"$f":"'Standing Data'!#REF!","v":{"$error":"#REF!"}},"Fin.Return","E1239",{"$f":"'Fin.Return - Other Notes'!E617","v":0}]
[{"$f":"'Standing Data'!$D$12","v":{"$error":"#N/A"}},{"$f":"'Standing Data'!$F$9","v":0},{"$f":"'Standing Data'!#REF!","v":{"$error":"#REF!"}},"Fin.Return","E1240",{"$f":"'Fin.Return - Other Notes'!E618","v":0}]
[{"$f":"'Standing Data'!$D$12","v":{"$error":"#N/A"}},{"$f":"'Standing Data'!$F$9","v":0},{"$f":"'Standing Data'!#REF!","v":{"$error":"#REF!"}},"Fin.Return","E1241",{"$f":"'Fin.Return - Other Notes'!E619","v":0}]
[{"$f":"'Standing Data'!$D$12","v":{"$error":"#N/A"}},{"$f":"'Standing Data'!$F$9","v":0},{"$f":"'Standing Data'!#REF!","v":{"$error":"#REF!"}},"Fin.Return","E1242",{"$f":"'Fin.Return - Other Notes'!E620","v":0}]
[{"$f":"'Standing Data'!$D$12","v":{"$error":"#N/A"}},{"$f":"'Standing Data'!$F$9","v":0},{"$f":"'Standing Data'!#REF!","v":{"$error":"#REF!"}},"Fin.Return","E1243",{"$f":"'Fin.Return - Other Notes'!E621","v":0}]
[{"$f":"'Standing Data'!$D$12","v":{"$error":"#N/A"}},{"$f":"'Standing Data'!$F$9","v":0},{"$f":"'Standing Data'!#REF!","v":{"$error":"#REF!"}},"Fin.Return","E1244",{"$f":"'Fin.Return - Other Notes'!E622","v":0}]
[{"$f":"'Standing Data'!$D$12","v":{"$error":"#N/A"}},{"$f":"'Standing Data'!$F$9","v":0},{"$f":"'Standing Data'!#REF!","v":{"$error":"#REF!"}},"Fin.Return","E1245",{"$f":"'Fin.Return - Other Notes'!E623","v":0}]
[{"$f":"'Standing Data'!$D$12","v":{"$error":"#N/A"}},{"$f":"'Standing Data'!$F$9","v":0},{"$f":"'Standing Data'!#REF!","v":{"$error":"#REF!"}},"Fin.Return","E1246",{"$f":"'Fin.Return - Other Notes'!E624","v":0}]
[{"$f":"'Standing Data'!$D$12","v":{"$error":"#N/A"}},{"$f":"'Standing Data'!$F$9","v":0},{"$f":"'Standing Data'!#REF!","v":{"$error":"#REF!"}},"Fin.Return","E1247",{"$f":"'Fin.Return - Other Notes'!E625","v":0}]
[{"$f":"'Standing Data'!$D$12","v":{"$error":"#N/A"}},{"$f":"'Standing Data'!$F$9","v":0},{"$f":"'Standing Data'!#REF!","v":{"$error":"#REF!"}},"Fin.Return","E1248",{"$f":"'Fin.Return - Other Notes'!E626","v":0}]
[{"$f":"'Standing Data'!$D$12","v":{"$error":"#N/A"}},{"$f":"'Standing Data'!$F$9","v":0},{"$f":"'Standing Data'!#REF!","v":{"$error":"#REF!"}},"Fin.Return","E1249",{"$f":"'Fin.Return - Other Notes'!E627","v":0}]
[{"$f":"'Standing Data'!$D$12","v":{"$error":"#N/A"}},{"$f":"'Standing Data'!$F$9","v":0},{"$f":"'Standing Data'!#REF!","v":{"$error":"#REF!"}},"Fin.Return","E1250",{"$f":"'Fin.Return - Other Notes'!E628","v":0}]
[{"$f":"'Standing Data'!$D$12","v":{"$error":"#N/A"}},{"$f":"'Standing Data'!$F$9","v":0},{"$f":"'Standing Data'!#REF!","v":{"$error":"#REF!"}},"Fin.Return","E1252",{"$f":"'Fin.Return - Other Notes'!E630","v":0}]
[{"$f":"'Standing Data'!$D$12","v":{"$error":"#N/A"}},{"$f":"'Standing Data'!$F$9","v":0},{"$f":"'Standing Data'!#REF!","v":{"$error":"#REF!"}},"Fin.Return","E1257",{"$f":"'Fin.Return - Other Notes'!E635","v":0}]
[{"$f":"'Standing Data'!$D$12","v":{"$error":"#N/A"}},{"$f":"'Standing Data'!$F$9","v":0},{"$f":"'Standing Data'!#REF!","v":{"$error":"#REF!"}},"Fin.Return","E1258",{"$f":"'Fin.Return - Other Notes'!E636","v":0}]
[{"$f":"'Standing Data'!$D$12","v":{"$error":"#N/A"}},{"$f":"'Standing Data'!$F$9","v":0},{"$f":"'Standing Data'!#REF!","v":{"$error":"#REF!"}},"Fin.Return","E1259",{"$f":"'Fin.Return - Other Notes'!E637","v":0}]
[{"$f":"'Standing Data'!$D$12","v":{"$error":"#N/A"}},{"$f":"'Standing Data'!$F$9","v":0},{"$f":"'Standing Data'!#REF!","v":{"$error":"#REF!"}},"Fin.Return","E1260",{"$f":"'Fin.Return - Other Notes'!E638","v":0}]
[{"$f":"'Standing Data'!$D$12","v":{"$error":"#N/A"}},{"$f":"'Standing Data'!$F$9","v":0},{"$f":"'Standing Data'!#REF!","v":{"$error":"#REF!"}},"Fin.Return","E1261",{"$f":"'Fin.Return - Other Notes'!E639","v":0}]
[{"$f":"'Standing Data'!$D$12","v":{"$error":"#N/A"}},{"$f":"'Standing Data'!$F$9","v":0},{"$f":"'Standing Data'!#REF!","v":{"$error":"#REF!"}},"Fin.Return","E1262",{"$f":"'Fin.Return - Other Notes'!E640","v":0}]
[{"$f":"'Standing Data'!$D$12","v":{"$error":"#N/A"}},{"$f":"'Standing Data'!$F$9","v":0},{"$f":"'Standing Data'!#REF!","v":{"$error":"#REF!"}},"Fin.Return","E1263",{"$f":"'Fin.Return - Other Notes'!E641","v":0}]
[{"$f":"'Standing Data'!$D$12","v":{"$error":"#N/A"}},{"$f":"'Standing Data'!$F$9","v":0},{"$f":"'Standing Data'!#REF!","v":{"$error":"#REF!"}},"Fin.Return","E1264",{"$f":"'Fin.Return - Other Notes'!E642","v":0}]
[{"$f":"'Standing Data'!$D$12","v":{"$error":"#N/A"}},{"$f":"'Standing Data'!$F$9","v":0},{"$f":"'Standing Data'!#REF!","v":{"$error":"#REF!"}},"Fin.Return","E1265",{"$f":"'Fin.Return - Other Notes'!E643","v":0}]
[{"$f":"'Standing Data'!$D$12","v":{"$error":"#N/A"}},{"$f":"'Standing Data'!$F$9","v":0},{"$f":"'Standing Data'!#REF!","v":{"$error":"#REF!"}},"Fin.Return","E1266",{"$f":"'Fin.Return - Other Notes'!E644","v":0}]
[{"$f":"'Standing Data'!$D$12","v":{"$error":"#N/A"}},{"$f":"'Standing Data'!$F$9","v":0},{"$f":"'Standing Data'!#REF!","v":{"$error":"#REF!"}},"Fin.Return","E1267",{"$f":"'Fin.Return - Other Notes'!E645","v":0}]
[{"$f":"'Standing Data'!$D$12","v":{"$error":"#N/A"}},{"$f":"'Standing Data'!$F$9","v":0},{"$f":"'Standing Data'!#REF!","v":{"$error":"#REF!"}},"Fin.Return","E1268",{"$f":"'Fin.Return - Other Notes'!#REF!","v":{"$error":"#REF!"}}]
[{"$f":"'Standing Data'!$D$12","v":{"$error":"#N/A"}},{"$f":"'Standing Data'!$F$9","v":0},{"$f":"'Standing Data'!#REF!","v":{"$error":"#REF!"}},"Fin.Return","G18",{"$f":"'Fin.Return - SOFA'!G19","v":0}]
[{"$f":"'Standing Data'!$D$12","v":{"$error":"#N/A"}},{"$f":"'Standing Data'!$F$9","v":0},{"$f":"'Standing Data'!#REF!","v":{"$error":"#REF!"}},"Fin.Return","G19",{"$f":"'Fin.Return - SOFA'!G20","v":0}]
[{"$f":"'Standing Data'!$D$12","v":{"$error":"#N/A"}},{"$f":"'Standing Data'!$F$9","v":0},{"$f":"'Standing Data'!#REF!","v":{"$error":"#REF!"}},"Fin.Return","G20",{"$f":"'Fin.Return - SOFA'!G22","v":0}]
[{"$f":"'Standing Data'!$D$12","v":{"$error":"#N/A"}},{"$f":"'Standing Data'!$F$9","v":0},{"$f":"'Standing Data'!#REF!","v":{"$error":"#REF!"}},"Fin.Return","G21",{"$f":"'Fin.Return - SOFA'!G23","v":0}]
[{"$f":"'Standing Data'!$D$12","v":{"$error":"#N/A"}},{"$f":"'Standing Data'!$F$9","v":0},{"$f":"'Standing Data'!#REF!","v":{"$error":"#REF!"}},"Fin.Return","G23",{"$f":"'Fin.Return - SOFA'!G25","v":0}]
[{"$f":"'Standing Data'!$D$12","v":{"$error":"#N/A"}},{"$f":"'Standing Data'!$F$9","v":0},{"$f":"'Standing Data'!#REF!","v":{"$error":"#REF!"}},"Fin.Return","G24",{"$f":"'Fin.Return - SOFA'!G26","v":0}]
[{"$f":"'Standing Data'!$D$12","v":{"$error":"#N/A"}},{"$f":"'Standing Data'!$F$9","v":0},{"$f":"'Standing Data'!#REF!","v":{"$error":"#REF!"}},"Fin.Return","G26",{"$f":"'Fin.Return - SOFA'!G28","v":0}]
[{"$f":"'Standing Data'!$D$12","v":{"$error":"#N/A"}},{"$f":"'Standing Data'!$F$9","v":0},{"$f":"'Standing Data'!#REF!","v":{"$error":"#REF!"}},"Fin.Return","G29",{"$f":"'Fin.Return - SOFA'!G31","v":0}]
[{"$f":"'Standing Data'!$D$12","v":{"$error":"#N/A"}},{"$f":"'Standing Data'!$F$9","v":0},{"$f":"'Standing Data'!#REF!","v":{"$error":"#REF!"}},"Fin.Return","G30",{"$f":"'Fin.Return - SOFA'!#REF!","v":{"$error":"#REF!"}}]
[{"$f":"'Standing Data'!$D$12","v":{"$error":"#N/A"}},{"$f":"'Standing Data'!$F$9","v":0},{"$f":"'Standing Data'!#REF!","v":{"$error":"#REF!"}},"Fin.Return","G31",{"$f":"'Fin.Return - SOFA'!G33","v":0}]
[{"$f":"'Standing Data'!$D$12","v":{"$error":"#N/A"}},{"$f":"'Standing Data'!$F$9","v":0},{"$f":"'Standing Data'!#REF!","v":{"$error":"#REF!"}},"Fin.Return","G33",{"$f":"'Fin.Return - SOFA'!G35","v":0}]
[{"$f":"'Standing Data'!$D$12","v":{"$error":"#N/A"}},{"$f":"'Standing Data'!$F$9","v":0},{"$f":"'Standing Data'!#REF!","v":{"$error":"#REF!"}},"Fin.Return","G34",{"$f":"'Fin.Return - SOFA'!G36","v":0}]
[{"$f":"'Standing Data'!$D$12","v":{"$error":"#N/A"}},{"$f":"'Standing Data'!$F$9","v":0},{"$f":"'Standing Data'!#REF!","v":{"$error":"#REF!"}},"Fin.Return","G35",{"$f":"'Fin.Return - SOFA'!G37","v":0}]
[{"$f":"'Standing Data'!$D$12","v":{"$error":"#N/A"}},{"$f":"'Standing Data'!$F$9","v":0},{"$f":"'Standing Data'!#REF!","v":{"$error":"#REF!"}},"Fin.Return","G37",{"$f":"'Fin.Return - SOFA'!G39","v":0}]
[{"$f":"'Standing Data'!$D$12","v":{"$error":"#N/A"}},{"$f":"'Standing Data'!$F$9","v":0},{"$f":"'Standing Data'!#REF!","v":{"$error":"#REF!"}},"Fin.Return","G38",{"$f":"'Fin.Return - SOFA'!G40","v":0}]
[{"$f":"'Standing Data'!$D$12","v":{"$error":"#N/A"}},{"$f":"'Standing Data'!$F$9","v":0},{"$f":"'Standing Data'!#REF!","v":{"$error":"#REF!"}},"Fin.Return","G39",{"$f":"'Fin.Return - SOFA'!G41","v":0}]
[{"$f":"'Standing Data'!$D$12","v":{"$error":"#N/A"}},{"$f":"'Standing Data'!$F$9","v":0},{"$f":"'Standing Data'!#REF!","v":{"$error":"#REF!"}},"Fin.Return","G41",{"$f":"'Fin.Return - SOFA'!G43","v":0}]
[{"$f":"'Standing Data'!$D$12","v":{"$error":"#N/A"}},{"$f":"'Standing Data'!$F$9","v":0},{"$f":"'Standing Data'!#REF!","v":{"$error":"#REF!"}},"Fin.Return","G43",{"$f":"'Fin.Return - SOFA'!G45","v":0}]
[{"$f":"'Standing Data'!$D$12","v":{"$error":"#N/A"}},{"$f":"'Standing Data'!$F$9","v":0},{"$f":"'Standing Data'!#REF!","v":{"$error":"#REF!"}},"Fin.Return","G44",{"$f":"'Fin.Return - SOFA'!G46","v":0}]
[{"$f":"'Standing Data'!$D$12","v":{"$error":"#N/A"}},{"$f":"'Standing Data'!$F$9","v":0},{"$f":"'Standing Data'!#REF!","v":{"$error":"#REF!"}},"Fin.Return","G45",{"$f":"'Fin.Return - SOFA'!G47","v":0}]
[{"$f":"'Standing Data'!$D$12","v":{"$error":"#N/A"}},{"$f":"'Standing Data'!$F$9","v":0},{"$f":"'Standing Data'!#REF!","v":{"$error":"#REF!"}},"Fin.Return","G46",{"$f":"'Fin.Return - SOFA'!G48","v":0}]
[{"$f":"'Standing Data'!$D$12","v":{"$error":"#N/A"}},{"$f":"'Standing Data'!$F$9","v":0},{"$f":"'Standing Data'!#REF!","v":{"$error":"#REF!"}},"Fin.Return","G48",{"$f":"'Fin.Return - SOFA'!G50","v":0}]
[{"$f":"'Standing Data'!$D$12","v":{"$error":"#N/A"}},{"$f":"'Standing Data'!$F$9","v":0},{"$f":"'Standing Data'!#REF!","v":{"$error":"#REF!"}},"Fin.Return","G50",{"$f":"'Fin.Return - SOFA'!G52","v":0}]
[{"$f":"'Standing Data'!$D$12","v":{"$error":"#N/A"}},{"$f":"'Standing Data'!$F$9","v":0},{"$f":"'Standing Data'!#REF!","v":{"$error":"#REF!"}},"Fin.Return","G51",{"$f":"'Fin.Return - SOFA'!G53","v":0}]
[{"$f":"'Standing Data'!$D$12","v":{"$error":"#N/A"}},{"$f":"'Standing Data'!$F$9","v":0},{"$f":"'Standing Data'!#REF!","v":{"$error":"#REF!"}},"Fin.Return","G52",{"$f":"'Fin.Return - SOFA'!G56","v":0}]
[{"$f":"'Standing Data'!$D$12","v":{"$error":"#N/A"}},{"$f":"'Standing Data'!$F$9","v":0},{"$f":"'Standing Data'!#REF!","v":{"$error":"#REF!"}},"Fin.Return","G54",{"$f":"'Fin.Return - SOFA'!G58","v":0}]
[{"$f":"'Standing Data'!$D$12","v":{"$error":"#N/A"}},{"$f":"'Standing Data'!$F$9","v":0},{"$f":"'Standing Data'!#REF!","v":{"$error":"#REF!"}},"Fin.Return","G63",{"$f":"'Fin.Return - BS'!G19","v":0}]
[{"$f":"'Standing Data'!$D$12","v":{"$error":"#N/A"}},{"$f":"'Standing Data'!$F$9","v":0},{"$f":"'Standing Data'!#REF!","v":{"$error":"#REF!"}},"Fin.Return","G64",{"$f":"'Fin.Return - BS'!G20","v":0}]
[{"$f":"'Standing Data'!$D$12","v":{"$error":"#N/A"}},{"$f":"'Standing Data'!$F$9","v":0},{"$f":"'Standing Data'!#REF!","v":{"$error":"#REF!"}},"Fin.Return","G65",{"$f":"'Fin.Return - BS'!G21","v":0}]
[{"$f":"'Standing Data'!$D$12","v":{"$error":"#N/A"}},{"$f":"'Standing Data'!$F$9","v":0},{"$f":"'Standing Data'!#REF!","v":{"$error":"#REF!"}},"Fin.Return","G67",{"$f":"'Fin.Return - BS'!G23","v":0}]
[{"$f":"'Standing Data'!$D$12","v":{"$error":"#N/A"}},{"$f":"'Standing Data'!$F$9","v":0},{"$f":"'Standing Data'!#REF!","v":{"$error":"#REF!"}},"Fin.Return","G78",{"$f":"'Fin.Return - BS'!G34","v":0}]
[{"$f":"'Standing Data'!$D$12","v":{"$error":"#N/A"}},{"$f":"'Standing Data'!$F$9","v":0},{"$f":"'Standing Data'!#REF!","v":{"$error":"#REF!"}},"Fin.Return","G80",{"$f":"'Fin.Return - BS'!G36","v":0}]
[{"$f":"'Standing Data'!$D$12","v":{"$error":"#N/A"}},{"$f":"'Standing Data'!$F$9","v":0},{"$f":"'Standing Data'!#REF!","v":{"$error":"#REF!"}},"Fin.Return","G81",{"$f":"'Fin.Return - BS'!G37","v":0}]
[{"$f":"'Standing Data'!$D$12","v":{"$error":"#N/A"}},{"$f":"'Standing Data'!$F$9","v":0},{"$f":"'Standing Data'!#REF!","v":{"$error":"#REF!"}},"Fin.Return","G82",{"$f":"'Fin.Return - BS'!G38","v":0}]
[{"$f":"'Standing Data'!$D$12","v":{"$error":"#N/A"}},{"$f":"'Standing Data'!$F$9","v":0},{"$f":"'Standing Data'!#REF!","v":{"$error":"#REF!"}},"Fin.Return","G84",{"$f":"'Fin.Return - BS'!G40","v":0}]
[{"$f":"'Standing Data'!$D$12","v":{"$error":"#N/A"}},{"$f":"'Standing Data'!$F$9","v":0},{"$f":"'Standing Data'!#REF!","v":{"$error":"#REF!"}},"Fin.Return","G85",{"$f":"'Fin.Return - BS'!G41","v":0}]
[{"$f":"'Standing Data'!$D$12","v":{"$error":"#N/A"}},{"$f":"'Standing Data'!$F$9","v":0},{"$f":"'Standing Data'!#REF!","v":{"$error":"#REF!"}},"Fin.Return","G87",{"$f":"'Fin.Return - BS'!G43","v":0}]
[{"$f":"'Standing Data'!$D$12","v":{"$error":"#N/A"}},{"$f":"'Standing Data'!$F$9","v":0},{"$f":"'Standing Data'!#REF!","v":{"$error":"#REF!"}},"Fin.Return","G89",{"$f":"'Fin.Return - BS'!G45","v":0}]
[{"$f":"'Standing Data'!$D$12","v":{"$error":"#N/A"}},{"$f":"'Standing Data'!$F$9","v":0},{"$f":"'Standing Data'!#REF!","v":{"$error":"#REF!"}},"Fin.Return","G91",{"$f":"'Fin.Return - BS'!G47","v":0}]
[{"$f":"'Standing Data'!$D$12","v":{"$error":"#N/A"}},{"$f":"'Standing Data'!$F$9","v":0},{"$f":"'Standing Data'!#REF!","v":{"$error":"#REF!"}},"Fin.Return","G92",{"$f":"'Fin.Return - BS'!G48","v":0}]
[{"$f":"'Standing Data'!$D$12","v":{"$error":"#N/A"}},{"$f":"'Standing Data'!$F$9","v":0},{"$f":"'Standing Data'!#REF!","v":{"$error":"#REF!"}},"Fin.Return","G93",{"$f":"'Fin.Return - BS'!G49","v":0}]
[{"$f":"'Standing Data'!$D$12","v":{"$error":"#N/A"}},{"$f":"'Standing Data'!$F$9","v":0},{"$f":"'Standing Data'!#REF!","v":{"$error":"#REF!"}},"Fin.Return","G95",{"$f":"'Fin.Return - BS'!G51","v":0}]
[{"$f":"'Standing Data'!$D$12","v":{"$error":"#N/A"}},{"$f":"'Standing Data'!$F$9","v":0},{"$f":"'Standing Data'!#REF!","v":{"$error":"#REF!"}},"Fin.Return","G97",{"$f":"'Fin.Return - BS'!G53","v":0}]
[{"$f":"'Standing Data'!$D$12","v":{"$error":"#N/A"}},{"$f":"'Standing Data'!$F$9","v":0},{"$f":"'Standing Data'!#REF!","v":{"$error":"#REF!"}},"Fin.Return","G99",{"$f":"'Fin.Return - BS'!G55","v":0}]
[{"$f":"'Standing Data'!$D$12","v":{"$error":"#N/A"}},{"$f":"'Standing Data'!$F$9","v":0},{"$f":"'Standing Data'!#REF!","v":{"$error":"#REF!"}},"Fin.Return","G101",{"$f":"'Fin.Return - BS'!G57","v":0}]
[{"$f":"'Standing Data'!$D$12","v":{"$error":"#N/A"}},{"$f":"'Standing Data'!$F$9","v":0},{"$f":"'Standing Data'!#REF!","v":{"$error":"#REF!"}},"Fin.Return","G134",{"$f":"'Fin.Return - SOFA'!G68","v":0}]
[{"$f":"'Standing Data'!$D$12","v":{"$error":"#N/A"}},{"$f":"'Standing Data'!$F$9","v":0},{"$f":"'Standing Data'!#REF!","v":{"$error":"#REF!"}},"Fin.Return","G135",{"$f":"'Fin.Return - SOFA'!G70","v":0}]
[{"$f":"'Standing Data'!$D$12","v":{"$error":"#N/A"}},{"$f":"'Standing Data'!$F$9","v":0},{"$f":"'Standing Data'!#REF!","v":{"$error":"#REF!"}},"Fin.Return","G136",{"$f":"'Fin.Return - SOFA'!G71","v":0}]
[{"$f":"'Standing Data'!$D$12","v":{"$error":"#N/A"}},{"$f":"'Standing Data'!$F$9","v":0},{"$f":"'Standing Data'!#REF!","v":{"$error":"#REF!"}},"Fin.Return","G138",{"$f":"'Fin.Return - SOFA'!G73","v":0}]
[{"$f":"'Standing Data'!$D$12","v":{"$error":"#N/A"}},{"$f":"'Standing Data'!$F$9","v":0},{"$f":"'Standing Data'!#REF!","v":{"$error":"#REF!"}},"Fin.Return","G144",{"$f":"'Fin.Return - SOFA'!G79","v":0}]
[{"$f":"'Standing Data'!$D$12","v":{"$error":"#N/A"}},{"$f":"'Standing Data'!$F$9","v":0},{"$f":"'Standing Data'!#REF!","v":{"$error":"#REF!"}},"Fin.Return","G145",{"$f":"'Fin.Return - SOFA'!G80","v":0}]
[{"$f":"'Standing Data'!$D$12","v":{"$error":"#N/A"}},{"$f":"'Standing Data'!$F$9","v":0},{"$f":"'Standing Data'!#REF!","v":{"$error":"#REF!"}},"Fin.Return","G146",{"$f":"'Fin.Return - SOFA'!G81","v":0}]
[{"$f":"'Standing Data'!$D$12","v":{"$error":"#N/A"}},{"$f":"'Standing Data'!$F$9","v":0},{"$f":"'Standing Data'!#REF!","v":{"$error":"#REF!"}},"Fin.Return","G147",{"$f":"'Fin.Return - SOFA'!G84","v":0}]
[{"$f":"'Standing Data'!$D$12","v":{"$error":"#N/A"}},{"$f":"'Standing Data'!$F$9","v":0},{"$f":"'Standing Data'!#REF!","v":{"$error":"#REF!"}},"Fin.Return","G149",{"$f":"'Fin.Return - SOFA'!G86","v":0}]
[{"$f":"'Standing Data'!$D$12","v":{"$error":"#N/A"}},{"$f":"'Standing Data'!$F$9","v":0},{"$f":"'Standing Data'!#REF!","v":{"$error":"#REF!"}},"Fin.Return","G155",{"$f":"'Fin.Return - SOFA'!G92","v":0}]
[{"$f":"'Standing Data'!$D$12","v":{"$error":"#N/A"}},{"$f":"'Standing Data'!$F$9","v":0},{"$f":"'Standing Data'!#REF!","v":{"$error":"#REF!"}},"Fin.Return","G156",{"$f":"'Fin.Return - SOFA'!G93","v":0}]
[{"$f":"'Standing Data'!$D$12","v":{"$error":"#N/A"}},{"$f":"'Standing Data'!$F$9","v":0},{"$f":"'Standing Data'!#REF!","v":{"$error":"#REF!"}},"Fin.Return","G157",{"$f":"'Fin.Return - SOFA'!G94","v":0}]
[{"$f":"'Standing Data'!$D$12","v":{"$error":"#N/A"}},{"$f":"'Standing Data'!$F$9","v":0},{"$f":"'Standing Data'!#REF!","v":{"$error":"#REF!"}},"Fin.Return","G158",{"$f":"'Fin.Return - SOFA'!G95","v":0}]
[{"$f":"'Standing Data'!$D$12","v":{"$error":"#N/A"}},{"$f":"'Standing Data'!$F$9","v":0},{"$f":"'Standing Data'!#REF!","v":{"$error":"#REF!"}},"Fin.Return","G160",{"$f":"'Fin.Return - SOFA'!G97","v":0}]
[{"$f":"'Standing Data'!$D$12","v":{"$error":"#N/A"}},{"$f":"'Standing Data'!$F$9","v":0},{"$f":"'Standing Data'!#REF!","v":{"$error":"#REF!"}},"Fin.Return","G168",{"$f":"'Fin.Return - SOFA'!G105","v":0}]
[{"$f":"'Standing Data'!$D$12","v":{"$error":"#N/A"}},{"$f":"'Standing Data'!$F$9","v":0},{"$f":"'Standing Data'!#REF!","v":{"$error":"#REF!"}},"Fin.Return","G169",{"$f":"'Fin.Return - SOFA'!G106","v":0}]
[{"$f":"'Standing Data'!$D$12","v":{"$error":"#N/A"}},{"$f":"'Standing Data'!$F$9","v":0},{"$f":"'Standing Data'!#REF!","v":{"$error":"#REF!"}},"Fin.Return","G170",{"$f":"'Fin.Return - SOFA'!#REF!","v":{"$error":"#REF!"}}]
[{"$f":"'Standing Data'!$D$12","v":{"$error":"#N/A"}},{"$f":"'Standing Data'!$F$9","v":0},{"$f":"'Standing Data'!#REF!","v":{"$error":"#REF!"}},"Fin.Return","G171",{"$f":"'Fin.Return - SOFA'!G107","v":0}]
[{"$f":"'Standing Data'!$D$12","v":{"$error":"#N/A"}},{"$f":"'Standing Data'!$F$9","v":0},{"$f":"'Standing Data'!#REF!","v":{"$error":"#REF!"}},"Fin.Return","G172",{"$f":"'Fin.Return - SOFA'!G108","v":0}]
[{"$f":"'Standing Data'!$D$12","v":{"$error":"#N/A"}},{"$f":"'Standing Data'!$F$9","v":0},{"$f":"'Standing Data'!#REF!","v":{"$error":"#REF!"}},"Fin.Return","G173",{"$f":"'Fin.Return - SOFA'!#REF!","v":{"$error":"#REF!"}}]
[{"$f":"'Standing Data'!$D$12","v":{"$error":"#N/A"}},{"$f":"'Standing Data'!$F$9","v":0},{"$f":"'Standing Data'!#REF!","v":{"$error":"#REF!"}},"Fin.Return","G174",{"$f":"'Fin.Return - SOFA'!G109","v":0}]
[{"$f":"'Standing Data'!$D$12","v":{"$error":"#N/A"}},{"$f":"'Standing Data'!$F$9","v":0},{"$f":"'Standing Data'!#REF!","v":{"$error":"#REF!"}},"Fin.Return","G175",{"$f":"'Fin.Return - SOFA'!G110","v":0}]
[{"$f":"'Standing Data'!$D$12","v":{"$error":"#N/A"}},{"$f":"'Standing Data'!$F$9","v":0},{"$f":"'Standing Data'!#REF!","v":{"$error":"#REF!"}},"Fin.Return","G176",{"$f":"'Fin.Return - SOFA'!G111","v":0}]
[{"$f":"'Standing Data'!$D$12","v":{"$error":"#N/A"}},{"$f":"'Standing Data'!$F$9","v":0},{"$f":"'Standing Data'!#REF!","v":{"$error":"#REF!"}},"Fin.Return","G177",{"$f":"'Fin.Return - SOFA'!G112","v":0}]
[{"$f":"'Standing Data'!$D$12","v":{"$error":"#N/A"}},{"$f":"'Standing Data'!$F$9","v":0},{"$f":"'Standing Data'!#REF!","v":{"$error":"#REF!"}},"Fin.Return","G178",{"$f":"'Fin.Return - SOFA'!G113","v":0}]
[{"$f":"'Standing Data'!$D$12","v":{"$error":"#N/A"}},{"$f":"'Standing Data'!$F$9","v":0},{"$f":"'Standing Data'!#REF!","v":{"$error":"#REF!"}},"Fin.Return","G179",{"$f":"'Fin.Return - SOFA'!G114","v":0}]
[{"$f":"'Standing Data'!$D$12","v":{"$error":"#N/A"}},{"$f":"'Standing Data'!$F$9","v":0},{"$f":"'Standing Data'!#REF!","v":{"$error":"#REF!"}},"Fin.Return","G180",{"$f":"'Fin.Return - SOFA'!G115","v":0}]
[{"$f":"'Standing Data'!$D$12","v":{"$error":"#N/A"}},{"$f":"'Standing Data'!$F$9","v":0},{"$f":"'Standing Data'!#REF!","v":{"$error":"#REF!"}},"Fin.Return","G181",{"$f":"'Fin.Return - SOFA'!G116","v":0}]
[{"$f":"'Standing Data'!$D$12","v":{"$error":"#N/A"}},{"$f":"'Standing Data'!$F$9","v":0},{"$f":"'Standing Data'!#REF!","v":{"$error":"#REF!"}},"Fin.Return","G182",{"$f":"'Fin.Return - SOFA'!G117","v":0}]
[{"$f":"'Standing Data'!$D$12","v":{"$error":"#N/A"}},{"$f":"'Standing Data'!$F$9","v":0},{"$f":"'Standing Data'!#REF!","v":{"$error":"#REF!"}},"Fin.Return","G183",{"$f":"'Fin.Return - SOFA'!G118","v":0}]
[{"$f":"'Standing Data'!$D$12","v":{"$error":"#N/A"}},{"$f":"'Standing Data'!$F$9","v":0},{"$f":"'Standing Data'!#REF!","v":{"$error":"#REF!"}},"Fin.Return","G184",{"$f":"'Fin.Return - SOFA'!G119","v":0}]
[{"$f":"'Standing Data'!$D$12","v":{"$error":"#N/A"}},{"$f":"'Standing Data'!$F$9","v":0},{"$f":"'Standing Data'!#REF!","v":{"$error":"#REF!"}},"Fin.Return","G185",{"$f":"'Fin.Return - SOFA'!G120","v":0}]
[{"$f":"'Standing Data'!$D$12","v":{"$error":"#N/A"}},{"$f":"'Standing Data'!$F$9","v":0},{"$f":"'Standing Data'!#REF!","v":{"$error":"#REF!"}},"Fin.Return","G186",{"$f":"'Fin.Return - SOFA'!G121","v":0}]
[{"$f":"'Standing Data'!$D$12","v":{"$error":"#N/A"}},{"$f":"'Standing Data'!$F$9","v":0},{"$f":"'Standing Data'!#REF!","v":{"$error":"#REF!"}},"Fin.Return","G187",{"$f":"'Fin.Return - SOFA'!G122","v":0}]
[{"$f":"'Standing Data'!$D$12","v":{"$error":"#N/A"}},{"$f":"'Standing Data'!$F$9","v":0},{"$f":"'Standing Data'!#REF!","v":{"$error":"#REF!"}},"Fin.Return","G188",{"$f":"'Fin.Return - SOFA'!G123","v":0}]
[{"$f":"'Standing Data'!$D$12","v":{"$error":"#N/A"}},{"$f":"'Standing Data'!$F$9","v":0},{"$f":"'Standing Data'!#REF!","v":{"$error":"#REF!"}},"Fin.Return","G189",{"$f":"'Fin.Return - SOFA'!G124","v":0}]
[{"$f":"'Standing Data'!$D$12","v":{"$error":"#N/A"}},{"$f":"'Standing Data'!$F$9","v":0},{"$f":"'Standing Data'!#REF!","v":{"$error":"#REF!"}},"Fin.Return","G191",{"$f":"'Fin.Return - SOFA'!G126","v":0}]
[{"$f":"'Standing Data'!$D$12","v":{"$error":"#N/A"}},{"$f":"'Standing Data'!$F$9","v":0},{"$f":"'Standing Data'!#REF!","v":{"$error":"#REF!"}},"Fin.Return","G193",{"$f":"'Fin.Return - SOFA'!G128","v":0}]
[{"$f":"'Standing Data'!$D$12","v":{"$error":"#N/A"}},{"$f":"'Standing Data'!$F$9","v":0},{"$f":"'Standing Data'!#REF!","v":{"$error":"#REF!"}},"Fin.Return","G194",{"$f":"'Fin.Return - SOFA'!G129","v":0}]
[{"$f":"'Standing Data'!$D$12","v":{"$error":"#N/A"}},{"$f":"'Standing Data'!$F$9","v":0},{"$f":"'Standing Data'!#REF!","v":{"$error":"#REF!"}},"Fin.Return","G195",{"$f":"'Fin.Return - SOFA'!G130","v":0}]
[{"$f":"'Standing Data'!$D$12","v":{"$error":"#N/A"}},{"$f":"'Standing Data'!$F$9","v":0},{"$f":"'Standing Data'!#REF!","v":{"$error":"#REF!"}},"Fin.Return","G196",{"$f":"'Fin.Return - SOFA'!G131","v":0}]
[{"$f":"'Standing Data'!$D$12","v":{"$error":"#N/A"}},{"$f":"'Standing Data'!$F$9","v":0},{"$f":"'Standing Data'!#REF!","v":{"$error":"#REF!"}},"Fin.Return","G197",{"$f":"'Fin.Return - SOFA'!G132","v":0}]
[{"$f":"'Standing Data'!$D$12","v":{"$error":"#N/A"}},{"$f":"'Standing Data'!$F$9","v":0},{"$f":"'Standing Data'!#REF!","v":{"$error":"#REF!"}},"Fin.Return","G198",{"$f":"'Fin.Return - SOFA'!G133","v":0}]
[{"$f":"'Standing Data'!$D$12","v":{"$error":"#N/A"}},{"$f":"'Standing Data'!$F$9","v":0},{"$f":"'Standing Data'!#REF!","v":{"$error":"#REF!"}},"Fin.Return","G200",{"$f":"'Fin.Return - SOFA'!G135","v":0}]
[{"$f":"'Standing Data'!$D$12","v":{"$error":"#N/A"}},{"$f":"'Standing Data'!$F$9","v":0},{"$f":"'Standing Data'!#REF!","v":{"$error":"#REF!"}},"Fin.Return","G202",{"$f":"'Fin.Return - SOFA'!G137","v":0}]
[{"$f":"'Standing Data'!$D$12","v":{"$error":"#N/A"}},{"$f":"'Standing Data'!$F$9","v":0},{"$f":"'Standing Data'!#REF!","v":{"$error":"#REF!"}},"Fin.Return","G203",{"$f":"'Fin.Return - SOFA'!G138","v":0}]
[{"$f":"'Standing Data'!$D$12","v":{"$error":"#N/A"}},{"$f":"'Standing Data'!$F$9","v":0},{"$f":"'Standing Data'!#REF!","v":{"$error":"#REF!"}},"Fin.Return","G204",{"$f":"'Fin.Return - SOFA'!G139","v":0}]
[{"$f":"'Standing Data'!$D$12","v":{"$error":"#N/A"}},{"$f":"'Standing Data'!$F$9","v":0},{"$f":"'Standing Data'!#REF!","v":{"$error":"#REF!"}},"Fin.Return","G205",{"$f":"'Fin.Return - SOFA'!G140","v":0}]
[{"$f":"'Standing Data'!$D$12","v":{"$error":"#N/A"}},{"$f":"'Standing Data'!$F$9","v":0},{"$f":"'Standing Data'!#REF!","v":{"$error":"#REF!"}},"Fin.Return","G206",{"$f":"'Fin.Return - SOFA'!G141","v":0}]
[{"$f":"'Standing Data'!$D$12","v":{"$error":"#N/A"}},{"$f":"'Standing Data'!$F$9","v":0},{"$f":"'Standing Data'!#REF!","v":{"$error":"#REF!"}},"Fin.Return","G207",{"$f":"'Fin.Return - SOFA'!G142","v":0}]
[{"$f":"'Standing Data'!$D$12","v":{"$error":"#N/A"}},{"$f":"'Standing Data'!$F$9","v":0},{"$f":"'Standing Data'!#REF!","v":{"$error":"#REF!"}},"Fin.Return","G209",{"$f":"'Fin.Return - SOFA'!G144","v":0}]
[{"$f":"'Standing Data'!$D$12","v":{"$error":"#N/A"}},{"$f":"'Standing Data'!$F$9","v":0},{"$f":"'Standing Data'!#REF!","v":{"$error":"#REF!"}},"Fin.Return","G211",{"$f":"'Fin.Return - SOFA'!G153","v":0}]
[{"$f":"'Standing Data'!$D$12","v":{"$error":"#N/A"}},{"$f":"'Standing Data'!$F$9","v":0},{"$f":"'Standing Data'!#REF!","v":{"$error":"#REF!"}},"Fin.Return","G212",{"$f":"'Fin.Return - SOFA'!G154","v":0}]
[{"$f":"'Standing Data'!$D$12","v":{"$error":"#N/A"}},{"$f":"'Standing Data'!$F$9","v":0},{"$f":"'Standing Data'!#REF!","v":{"$error":"#REF!"}},"Fin.Return","G214",{"$f":"'Fin.Return - SOFA'!G156","v":0}]
[{"$f":"'Standing Data'!$D$12","v":{"$error":"#N/A"}},{"$f":"'Standing Data'!$F$9","v":0},{"$f":"'Standing Data'!#REF!","v":{"$error":"#REF!"}},"Fin.Return","G216",{"$f":"'Fin.Return - SOFA'!G158","v":0}]
[{"$f":"'Standing Data'!$D$12","v":{"$error":"#N/A"}},{"$f":"'Standing Data'!$F$9","v":0},{"$f":"'Standing Data'!#REF!","v":{"$error":"#REF!"}},"Fin.Return","G217",{"$f":"'Fin.Return - SOFA'!G159","v":0}]
[{"$f":"'Standing Data'!$D$12","v":{"$error":"#N/A"}},{"$f":"'Standing Data'!$F$9","v":0},{"$f":"'Standing Data'!#REF!","v":{"$error":"#REF!"}},"Fin.Return","G218",{"$f":"'Fin.Return - SOFA'!G161","v":0}]
[{"$f":"'Standing Data'!$D$12","v":{"$error":"#N/A"}},{"$f":"'Standing Data'!$F$9","v":0},{"$f":"'Standing Data'!#REF!","v":{"$error":"#REF!"}},"Fin.Return","G220",{"$f":"'Fin.Return - SOFA'!G163","v":0}]
[{"$f":"'Standing Data'!$D$12","v":{"$error":"#N/A"}},{"$f":"'Standing Data'!$F$9","v":0},{"$f":"'Standing Data'!#REF!","v":{"$error":"#REF!"}},"Fin.Return","G222",{"$f":"'Fin.Return - SOFA'!G165","v":0}]
[{"$f":"'Standing Data'!$D$12","v":{"$error":"#N/A"}},{"$f":"'Standing Data'!$F$9","v":0},{"$f":"'Standing Data'!#REF!","v":{"$error":"#REF!"}},"Fin.Return","G228",{"$f":"'Fin.Return - SOFA'!G171","v":0}]
[{"$f":"'Standing Data'!$D$12","v":{"$error":"#N/A"}},{"$f":"'Standing Data'!$F$9","v":0},{"$f":"'Standing Data'!#REF!","v":{"$error":"#REF!"}},"Fin.Return","G229",{"$f":"'Fin.Return - SOFA'!G172","v":0}]
[{"$f":"'Standing Data'!$D$12","v":{"$error":"#N/A"}},{"$f":"'Standing Data'!$F$9","v":0},{"$f":"'Standing Data'!#REF!","v":{"$error":"#REF!"}},"Fin.Return","G231",{"$f":"'Fin.Return - SOFA'!G174","v":0}]
[{"$f":"'Standing Data'!$D$12","v":{"$error":"#N/A"}},{"$f":"'Standing Data'!$F$9","v":0},{"$f":"'Standing Data'!#REF!","v":{"$error":"#REF!"}},"Fin.Return","G232",{"$f":"'Fin.Return - SOFA'!G175","v":0}]
[{"$f":"'Standing Data'!$D$12","v":{"$error":"#N/A"}},{"$f":"'Standing Data'!$F$9","v":0},{"$f":"'Standing Data'!#REF!","v":{"$error":"#REF!"}},"Fin.Return","G234",{"$f":"'Fin.Return - SOFA'!G177","v":0}]
[{"$f":"'Standing Data'!$D$12","v":{"$error":"#N/A"}},{"$f":"'Standing Data'!$F$9","v":0},{"$f":"'Standing Data'!#REF!","v":{"$error":"#REF!"}},"Fin.Return","G235",{"$f":"'Fin.Return - SOFA'!G178","v":0}]
[{"$f":"'Standing Data'!$D$12","v":{"$error":"#N/A"}},{"$f":"'Standing Data'!$F$9","v":0},{"$f":"'Standing Data'!#REF!","v":{"$error":"#REF!"}},"Fin.Return","G236",{"$f":"'Fin.Return - SOFA'!G179","v":0}]
[{"$f":"'Standing Data'!$D$12","v":{"$error":"#N/A"}},{"$f":"'Standing Data'!$F$9","v":0},{"$f":"'Standing Data'!#REF!","v":{"$error":"#REF!"}},"Fin.Return","G238",{"$f":"'Fin.Return - SOFA'!G181","v":0}]
[{"$f":"'Standing Data'!$D$12","v":{"$error":"#N/A"}},{"$f":"'Standing Data'!$F$9","v":0},{"$f":"'Standing Data'!#REF!","v":{"$error":"#REF!"}},"Fin.Return","G340",{"$f":"'Fin.Return - SOFA'!G289","v":0}]
[{"$f":"'Standing Data'!$D$12","v":{"$error":"#N/A"}},{"$f":"'Standing Data'!$F$9","v":0},{"$f":"'Standing Data'!#REF!","v":{"$error":"#REF!"}},"Fin.Return","G341",{"$f":"'Fin.Return - SOFA'!G290","v":0}]
[{"$f":"'Standing Data'!$D$12","v":{"$error":"#N/A"}},{"$f":"'Standing Data'!$F$9","v":0},{"$f":"'Standing Data'!#REF!","v":{"$error":"#REF!"}},"Fin.Return","G342",{"$f":"'Fin.Return - SOFA'!G291","v":0}]
[{"$f":"'Standing Data'!$D$12","v":{"$error":"#N/A"}},{"$f":"'Standing Data'!$F$9","v":0},{"$f":"'Standing Data'!#REF!","v":{"$error":"#REF!"}},"Fin.Return","G344",{"$f":"'Fin.Return - SOFA'!G293","v":0}]
[{"$f":"'Standing Data'!$D$12","v":{"$error":"#N/A"}},{"$f":"'Standing Data'!$F$9","v":0},{"$f":"'Standing Data'!#REF!","v":{"$error":"#REF!"}},"Fin.Return","G345",{"$f":"'Fin.Return - SOFA'!G294","v":0}]
[{"$f":"'Standing Data'!$D$12","v":{"$error":"#N/A"}},{"$f":"'Standing Data'!$F$9","v":0},{"$f":"'Standing Data'!#REF!","v":{"$error":"#REF!"}},"Fin.Return","G346",{"$f":"'Fin.Return - SOFA'!G295","v":0}]
[{"$f":"'Standing Data'!$D$12","v":{"$error":"#N/A"}},{"$f":"'Standing Data'!$F$9","v":0},{"$f":"'Standing Data'!#REF!","v":{"$error":"#REF!"}},"Fin.Return","G347",{"$f":"'Fin.Return - SOFA'!G296","v":0}]
[{"$f":"'Standing Data'!$D$12","v":{"$error":"#N/A"}},{"$f":"'Standing Data'!$F$9","v":0},{"$f":"'Standing Data'!#REF!","v":{"$error":"#REF!"}},"Fin.Return","G349",{"$f":"'Fin.Return - SOFA'!G298","v":0}]
[{"$f":"'Standing Data'!$D$12","v":{"$error":"#N/A"}},{"$f":"'Standing Data'!$F$9","v":0},{"$f":"'Standing Data'!#REF!","v":{"$error":"#REF!"}},"Fin.Return","G350",{"$f":"'Fin.Return - SOFA'!G299","v":0}]
[{"$f":"'Standing Data'!$D$12","v":{"$error":"#N/A"}},{"$f":"'Standing Data'!$F$9","v":0},{"$f":"'Standing Data'!#REF!","v":{"$error":"#REF!"}},"Fin.Return","G352",{"$f":"'Fin.Return - SOFA'!G301","v":0}]
[{"$f":"'Standing Data'!$D$12","v":{"$error":"#N/A"}},{"$f":"'Standing Data'!$F$9","v":0},{"$f":"'Standing Data'!#REF!","v":{"$error":"#REF!"}},"Fin.Return","G357",{"$f":"'Fin.Return - SOFA'!G306","v":0}]
[{"$f":"'Standing Data'!$D$12","v":{"$error":"#N/A"}},{"$f":"'Standing Data'!$F$9","v":0},{"$f":"'Standing Data'!#REF!","v":{"$error":"#REF!"}},"Fin.Return","G358",{"$f":"'Fin.Return - SOFA'!G307","v":0}]
[{"$f":"'Standing Data'!$D$12","v":{"$error":"#N/A"}},{"$f":"'Standing Data'!$F$9","v":0},{"$f":"'Standing Data'!#REF!","v":{"$error":"#REF!"}},"Fin.Return","G359",{"$f":"'Fin.Return - SOFA'!G308","v":0}]
[{"$f":"'Standing Data'!$D$12","v":{"$error":"#N/A"}},{"$f":"'Standing Data'!$F$9","v":0},{"$f":"'Standing Data'!#REF!","v":{"$error":"#REF!"}},"Fin.Return","G361",{"$f":"'Fin.Return - SOFA'!G310","v":0}]
[{"$f":"'Standing Data'!$D$12","v":{"$error":"#N/A"}},{"$f":"'Standing Data'!$F$9","v":0},{"$f":"'Standing Data'!#REF!","v":{"$error":"#REF!"}},"Fin.Return","G400",{"$f":"'Fin.Return - SOFA'!G351","v":0}]
[{"$f":"'Standing Data'!$D$12","v":{"$error":"#N/A"}},{"$f":"'Standing Data'!$F$9","v":0},{"$f":"'Standing Data'!#REF!","v":{"$error":"#REF!"}},"Fin.Return","G406",{"$f":"'Fin.Return - SOFA'!G357","v":0}]
[{"$f":"'Standing Data'!$D$12","v":{"$error":"#N/A"}},{"$f":"'Standing Data'!$F$9","v":0},{"$f":"'Standing Data'!#REF!","v":{"$error":"#REF!"}},"Fin.Return","G407",{"$f":"'Fin.Return - SOFA'!G358","v":0}]
[{"$f":"'Standing Data'!$D$12","v":{"$error":"#N/A"}},{"$f":"'Standing Data'!$F$9","v":0},{"$f":"'Standing Data'!#REF!","v":{"$error":"#REF!"}},"Fin.Return","G409",{"$f":"'Fin.Return - SOFA'!G360","v":0}]
[{"$f":"'Standing Data'!$D$12","v":{"$error":"#N/A"}},{"$f":"'Standing Data'!$F$9","v":0},{"$f":"'Standing Data'!#REF!","v":{"$error":"#REF!"}},"Fin.Return","G410",{"$f":"'Fin.Return - SOFA'!G361","v":0}]
[{"$f":"'Standing Data'!$D$12","v":{"$error":"#N/A"}},{"$f":"'Standing Data'!$F$9","v":0},{"$f":"'Standing Data'!#REF!","v":{"$error":"#REF!"}},"Fin.Return","G411",{"$f":"'Fin.Return - SOFA'!G362","v":0}]
[{"$f":"'Standing Data'!$D$12","v":{"$error":"#N/A"}},{"$f":"'Standing Data'!$F$9","v":0},{"$f":"'Standing Data'!#REF!","v":{"$error":"#REF!"}},"Fin.Return","G412",{"$f":"'Fin.Return - SOFA'!G363","v":0}]
[{"$f":"'Standing Data'!$D$12","v":{"$error":"#N/A"}},{"$f":"'Standing Data'!$F$9","v":0},{"$f":"'Standing Data'!#REF!","v":{"$error":"#REF!"}},"Fin.Return","G413",{"$f":"'Fin.Return - SOFA'!G364","v":0}]
[{"$f":"'Standing Data'!$D$12","v":{"$error":"#N/A"}},{"$f":"'Standing Data'!$F$9","v":0},{"$f":"'Standing Data'!#REF!","v":{"$error":"#REF!"}},"Fin.Return","G414",{"$f":"'Fin.Return - SOFA'!G365","v":0}]
[{"$f":"'Standing Data'!$D$12","v":{"$error":"#N/A"}},{"$f":"'Standing Data'!$F$9","v":0},{"$f":"'Standing Data'!#REF!","v":{"$error":"#REF!"}},"Fin.Return","G415",{"$f":"'Fin.Return - SOFA'!G366","v":0}]
[{"$f":"'Standing Data'!$D$12","v":{"$error":"#N/A"}},{"$f":"'Standing Data'!$F$9","v":0},{"$f":"'Standing Data'!#REF!","v":{"$error":"#REF!"}},"Fin.Return","G416",{"$f":"'Fin.Return - SOFA'!G367","v":0}]
[{"$f":"'Standing Data'!$D$12","v":{"$error":"#N/A"}},{"$f":"'Standing Data'!$F$9","v":0},{"$f":"'Standing Data'!#REF!","v":{"$error":"#REF!"}},"Fin.Return","G417",{"$f":"'Fin.Return - SOFA'!G368","v":0}]
[{"$f":"'Standing Data'!$D$12","v":{"$error":"#N/A"}},{"$f":"'Standing Data'!$F$9","v":0},{"$f":"'Standing Data'!#REF!","v":{"$error":"#REF!"}},"Fin.Return","G419",{"$f":"'Fin.Return - SOFA'!G370","v":0}]
[{"$f":"'Standing Data'!$D$12","v":{"$error":"#N/A"}},{"$f":"'Standing Data'!$F$9","v":0},{"$f":"'Standing Data'!#REF!","v":{"$error":"#REF!"}},"Fin.Return","G456",{"$f":"'Fin.Return - SOFA'!G407","v":0}]
[{"$f":"'Standing Data'!$D$12","v":{"$error":"#N/A"}},{"$f":"'Standing Data'!$F$9","v":0},{"$f":"'Standing Data'!#REF!","v":{"$error":"#REF!"}},"Fin.Return","G459",{"$f":"'Fin.Return - SOFA'!G410","v":0}]
[{"$f":"'Standing Data'!$D$12","v":{"$error":"#N/A"}},{"$f":"'Standing Data'!$F$9","v":0},{"$f":"'Standing Data'!#REF!","v":{"$error":"#REF!"}},"Fin.Return","G460",{"$f":"'Fin.Return - SOFA'!G411","v":0}]
[{"$f":"'Standing Data'!$D$12","v":{"$error":"#N/A"}},{"$f":"'Standing Data'!$F$9","v":0},{"$f":"'Standing Data'!#REF!","v":{"$error":"#REF!"}},"Fin.Return","G462",{"$f":"'Fin.Return - SOFA'!G413","v":0}]
[{"$f":"'Standing Data'!$D$12","v":{"$error":"#N/A"}},{"$f":"'Standing Data'!$F$9","v":0},{"$f":"'Standing Data'!#REF!","v":{"$error":"#REF!"}},"Fin.Return","G468",{"$f":"'Fin.Return - BS'!G64","v":0}]
[{"$f":"'Standing Data'!$D$12","v":{"$error":"#N/A"}},{"$f":"'Standing Data'!$F$9","v":0},{"$f":"'Standing Data'!#REF!","v":{"$error":"#REF!"}},"Fin.Return","G469",{"$f":"'Fin.Return - BS'!G65","v":0}]
[{"$f":"'Standing Data'!$D$12","v":{"$error":"#N/A"}},{"$f":"'Standing Data'!$F$9","v":0},{"$f":"'Standing Data'!#REF!","v":{"$error":"#REF!"}},"Fin.Return","G470",{"$f":"'Fin.Return - BS'!G67","v":0}]
[{"$f":"'Standing Data'!$D$12","v":{"$error":"#N/A"}},{"$f":"'Standing Data'!$F$9","v":0},{"$f":"'Standing Data'!#REF!","v":{"$error":"#REF!"}},"Fin.Return","G471",{"$f":"'Fin.Return - BS'!G68","v":0}]
[{"$f":"'Standing Data'!$D$12","v":{"$error":"#N/A"}},{"$f":"'Standing Data'!$F$9","v":0},{"$f":"'Standing Data'!#REF!","v":{"$error":"#REF!"}},"Fin.Return","G472",{"$f":"'Fin.Return - BS'!G70","v":0}]
[{"$f":"'Standing Data'!$D$12","v":{"$error":"#N/A"}},{"$f":"'Standing Data'!$F$9","v":0},{"$f":"'Standing Data'!#REF!","v":{"$error":"#REF!"}},"Fin.Return","G473",{"$f":"'Fin.Return - BS'!G72","v":0}]
[{"$f":"'Standing Data'!$D$12","v":{"$error":"#N/A"}},{"$f":"'Standing Data'!$F$9","v":0},{"$f":"'Standing Data'!#REF!","v":{"$error":"#REF!"}},"Fin.Return","G474",{"$f":"'Fin.Return - BS'!G74","v":0}]
[{"$f":"'Standing Data'!$D$12","v":{"$error":"#N/A"}},{"$f":"'Standing Data'!$F$9","v":0},{"$f":"'Standing Data'!#REF!","v":{"$error":"#REF!"}},"Fin.Return","G475",{"$f":"'Fin.Return - BS'!G75","v":0}]
[{"$f":"'Standing Data'!$D$12","v":{"$error":"#N/A"}},{"$f":"'Standing Data'!$F$9","v":0},{"$f":"'Standing Data'!#REF!","v":{"$error":"#REF!"}},"Fin.Return","G477",{"$f":"'Fin.Return - BS'!G77","v":0}]
[{"$f":"'Standing Data'!$D$12","v":{"$error":"#N/A"}},{"$f":"'Standing Data'!$F$9","v":0},{"$f":"'Standing Data'!#REF!","v":{"$error":"#REF!"}},"Fin.Return","G480",{"$f":"'Fin.Return - BS'!G80","v":0}]
[{"$f":"'Standing Data'!$D$12","v":{"$error":"#N/A"}},{"$f":"'Standing Data'!$F$9","v":0},{"$f":"'Standing Data'!#REF!","v":{"$error":"#REF!"}},"Fin.Return","G481",{"$f":"'Fin.Return - BS'!G81","v":0}]
[{"$f":"'Standing Data'!$D$12","v":{"$error":"#N/A"}},{"$f":"'Standing Data'!$F$9","v":0},{"$f":"'Standing Data'!#REF!","v":{"$error":"#REF!"}},"Fin.Return","G482",{"$f":"'Fin.Return - BS'!G82","v":0}]
[{"$f":"'Standing Data'!$D$12","v":{"$error":"#N/A"}},{"$f":"'Standing Data'!$F$9","v":0},{"$f":"'Standing Data'!#REF!","v":{"$error":"#REF!"}},"Fin.Return","G483",{"$f":"'Fin.Return - BS'!G84","v":0}]
[{"$f":"'Standing Data'!$D$12","v":{"$error":"#N/A"}},{"$f":"'Standing Data'!$F$9","v":0},{"$f":"'Standing Data'!#REF!","v":{"$error":"#REF!"}},"Fin.Return","G484",{"$f":"'Fin.Return - BS'!G85","v":0}]
[{"$f":"'Standing Data'!$D$12","v":{"$error":"#N/A"}},{"$f":"'Standing Data'!$F$9","v":0},{"$f":"'Standing Data'!#REF!","v":{"$error":"#REF!"}},"Fin.Return","G486",{"$f":"'Fin.Return - BS'!G87","v":0}]
[{"$f":"'Standing Data'!$D$12","v":{"$error":"#N/A"}},{"$f":"'Standing Data'!$F$9","v":0},{"$f":"'Standing Data'!#REF!","v":{"$error":"#REF!"}},"Fin.Return","G489",{"$f":"'Fin.Return - BS'!G90","v":0}]
[{"$f":"'Standing Data'!$D$12","v":{"$error":"#N/A"}},{"$f":"'Standing Data'!$F$9","v":0},{"$f":"'Standing Data'!#REF!","v":{"$error":"#REF!"}},"Fin.Return","G490",{"$f":"'Fin.Return - BS'!G91","v":0}]
[{"$f":"'Standing Data'!$D$12","v":{"$error":"#N/A"}},{"$f":"'Standing Data'!$F$9","v":0},{"$f":"'Standing Data'!#REF!","v":{"$error":"#REF!"}},"Fin.Return","G491",{"$f":"'Fin.Return - BS'!G92","v":0}]
[{"$f":"'Standing Data'!$D$12","v":{"$error":"#N/A"}},{"$f":"'Standing Data'!$F$9","v":0},{"$f":"'Standing Data'!#REF!","v":{"$error":"#REF!"}},"Fin.Return","G493",{"$f":"'Fin.Return - BS'!G95","v":0}]
[{"$f":"'Standing Data'!$D$12","v":{"$error":"#N/A"}},{"$f":"'Standing Data'!$F$9","v":0},{"$f":"'Standing Data'!#REF!","v":{"$error":"#REF!"}},"Fin.Return","G496",{"$f":"'Fin.Return - BS'!G98","v":0}]
[{"$f":"'Standing Data'!$D$12","v":{"$error":"#N/A"}},{"$f":"'Standing Data'!$F$9","v":0},{"$f":"'Standing Data'!#REF!","v":{"$error":"#REF!"}},"Fin.Return","G499",{"$f":"'Fin.Return - BS'!G101","v":0}]
[{"$f":"'Standing Data'!$D$12","v":{"$error":"#N/A"}},{"$f":"'Standing Data'!$F$9","v":0},{"$f":"'Standing Data'!#REF!","v":{"$error":"#REF!"}},"Fin.Return","G503",{"$f":"'Fin.Return - BS'!G105","v":0}]
[{"$f":"'Standing Data'!$D$12","v":{"$error":"#N/A"}},{"$f":"'Standing Data'!$F$9","v":0},{"$f":"'Standing Data'!#REF!","v":{"$error":"#REF!"}},"Fin.Return","G504",{"$f":"'Fin.Return - BS'!G106","v":0}]
[{"$f":"'Standing Data'!$D$12","v":{"$error":"#N/A"}},{"$f":"'Standing Data'!$F$9","v":0},{"$f":"'Standing Data'!#REF!","v":{"$error":"#REF!"}},"Fin.Return","G505",{"$f":"'Fin.Return - BS'!G107","v":0}]
[{"$f":"'Standing Data'!$D$12","v":{"$error":"#N/A"}},{"$f":"'Standing Data'!$F$9","v":0},{"$f":"'Standing Data'!#REF!","v":{"$error":"#REF!"}},"Fin.Return","G508",{"$f":"'Fin.Return - BS'!G110","v":0}]
[{"$f":"'Standing Data'!$D$12","v":{"$error":"#N/A"}},{"$f":"'Standing Data'!$F$9","v":0},{"$f":"'Standing Data'!#REF!","v":{"$error":"#REF!"}},"Fin.Return","G509",{"$f":"'Fin.Return - BS'!G111","v":0}]
[{"$f":"'Standing Data'!$D$12","v":{"$error":"#N/A"}},{"$f":"'Standing Data'!$F$9","v":0},{"$f":"'Standing Data'!#REF!","v":{"$error":"#REF!"}},"Fin.Return","G511",{"$f":"'Fin.Return - BS'!G113","v":0}]
[{"$f":"'Standing Data'!$D$12","v":{"$error":"#N/A"}},{"$f":"'Standing Data'!$F$9","v":0},{"$f":"'Standing Data'!#REF!","v":{"$error":"#REF!"}},"Fin.Return","G514",{"$f":"'Fin.Return - BS'!G116","v":0}]
[{"$f":"'Standing Data'!$D$12","v":{"$error":"#N/A"}},{"$f":"'Standing Data'!$F$9","v":0},{"$f":"'Standing Data'!#REF!","v":{"$error":"#REF!"}},"Fin.Return","G515",{"$f":"'Fin.Return - BS'!G117","v":0}]
[{"$f":"'Standing Data'!$D$12","v":{"$error":"#N/A"}},{"$f":"'Standing Data'!$F$9","v":0},{"$f":"'Standing Data'!#REF!","v":{"$error":"#REF!"}},"Fin.Return","G517",{"$f":"'Fin.Return - BS'!G119","v":0}]
[{"$f":"'Standing Data'!$D$12","v":{"$error":"#N/A"}},{"$f":"'Standing Data'!$F$9","v":0},{"$f":"'Standing Data'!#REF!","v":{"$error":"#REF!"}},"Fin.Return","G519",{"$f":"'Fin.Return - BS'!G121","v":0}]
[{"$f":"'Standing Data'!$D$12","v":{"$error":"#N/A"}},{"$f":"'Standing Data'!$F$9","v":0},{"$f":"'Standing Data'!#REF!","v":{"$error":"#REF!"}},"Fin.Return","G525",{"$f":"'Fin.Return - BS'!G127","v":0}]
[{"$f":"'Standing Data'!$D$12","v":{"$error":"#N/A"}},{"$f":"'Standing Data'!$F$9","v":0},{"$f":"'Standing Data'!#REF!","v":{"$error":"#REF!"}},"Fin.Return","G526",{"$f":"'Fin.Return - BS'!G128","v":0}]
[{"$f":"'Standing Data'!$D$12","v":{"$error":"#N/A"}},{"$f":"'Standing Data'!$F$9","v":0},{"$f":"'Standing Data'!#REF!","v":{"$error":"#REF!"}},"Fin.Return","G527",{"$f":"'Fin.Return - BS'!G129","v":0}]
[{"$f":"'Standing Data'!$D$12","v":{"$error":"#N/A"}},{"$f":"'Standing Data'!$F$9","v":0},{"$f":"'Standing Data'!#REF!","v":{"$error":"#REF!"}},"Fin.Return","G528",{"$f":"'Fin.Return - BS'!G130","v":0}]
[{"$f":"'Standing Data'!$D$12","v":{"$error":"#N/A"}},{"$f":"'Standing Data'!$F$9","v":0},{"$f":"'Standing Data'!#REF!","v":{"$error":"#REF!"}},"Fin.Return","G529",{"$f":"'Fin.Return - BS'!G132","v":0}]
[{"$f":"'Standing Data'!$D$12","v":{"$error":"#N/A"}},{"$f":"'Standing Data'!$F$9","v":0},{"$f":"'Standing Data'!#REF!","v":{"$error":"#REF!"}},"Fin.Return","G530",{"$f":"'Fin.Return - BS'!G134","v":0}]
[{"$f":"'Standing Data'!$D$12","v":{"$error":"#N/A"}},{"$f":"'Standing Data'!$F$9","v":0},{"$f":"'Standing Data'!#REF!","v":{"$error":"#REF!"}},"Fin.Return","G531",{"$f":"'Fin.Return - BS'!G135","v":0}]
[{"$f":"'Standing Data'!$D$12","v":{"$error":"#N/A"}},{"$f":"'Standing Data'!$F$9","v":0},{"$f":"'Standing Data'!#REF!","v":{"$error":"#REF!"}},"Fin.Return","G533",{"$f":"'Fin.Return - BS'!G137","v":0}]
[{"$f":"'Standing Data'!$D$12","v":{"$error":"#N/A"}},{"$f":"'Standing Data'!$F$9","v":0},{"$f":"'Standing Data'!#REF!","v":{"$error":"#REF!"}},"Fin.Return","G536",{"$f":"'Fin.Return - BS'!G140","v":0}]
[{"$f":"'Standing Data'!$D$12","v":{"$error":"#N/A"}},{"$f":"'Standing Data'!$F$9","v":0},{"$f":"'Standing Data'!#REF!","v":{"$error":"#REF!"}},"Fin.Return","G537",{"$f":"'Fin.Return - BS'!G141","v":0}]
[{"$f":"'Standing Data'!$D$12","v":{"$error":"#N/A"}},{"$f":"'Standing Data'!$F$9","v":0},{"$f":"'Standing Data'!#REF!","v":{"$error":"#REF!"}},"Fin.Return","G538",{"$f":"'Fin.Return - BS'!G142","v":0}]
[{"$f":"'Standing Data'!$D$12","v":{"$error":"#N/A"}},{"$f":"'Standing Data'!$F$9","v":0},{"$f":"'Standing Data'!#REF!","v":{"$error":"#REF!"}},"Fin.Return","G539",{"$f":"'Fin.Return - BS'!G144","v":0}]
[{"$f":"'Standing Data'!$D$12","v":{"$error":"#N/A"}},{"$f":"'Standing Data'!$F$9","v":0},{"$f":"'Standing Data'!#REF!","v":{"$error":"#REF!"}},"Fin.Return","G540",{"$f":"'Fin.Return - BS'!G145","v":0}]
[{"$f":"'Standing Data'!$D$12","v":{"$error":"#N/A"}},{"$f":"'Standing Data'!$F$9","v":0},{"$f":"'Standing Data'!#REF!","v":{"$error":"#REF!"}},"Fin.Return","G542",{"$f":"'Fin.Return - BS'!G147","v":0}]
[{"$f":"'Standing Data'!$D$12","v":{"$error":"#N/A"}},{"$f":"'Standing Data'!$F$9","v":0},{"$f":"'Standing Data'!#REF!","v":{"$error":"#REF!"}},"Fin.Return","G545",{"$f":"'Fin.Return - BS'!G150","v":0}]
[{"$f":"'Standing Data'!$D$12","v":{"$error":"#N/A"}},{"$f":"'Standing Data'!$F$9","v":0},{"$f":"'Standing Data'!#REF!","v":{"$error":"#REF!"}},"Fin.Return","G546",{"$f":"'Fin.Return - BS'!G151","v":0}]
[{"$f":"'Standing Data'!$D$12","v":{"$error":"#N/A"}},{"$f":"'Standing Data'!$F$9","v":0},{"$f":"'Standing Data'!#REF!","v":{"$error":"#REF!"}},"Fin.Return","G547",{"$f":"'Fin.Return - BS'!G152","v":0}]
[{"$f":"'Standing Data'!$D$12","v":{"$error":"#N/A"}},{"$f":"'Standing Data'!$F$9","v":0},{"$f":"'Standing Data'!#REF!","v":{"$error":"#REF!"}},"Fin.Return","G549",{"$f":"'Fin.Return - BS'!G155","v":0}]
[{"$f":"'Standing Data'!$D$12","v":{"$error":"#N/A"}},{"$f":"'Standing Data'!$F$9","v":0},{"$f":"'Standing Data'!#REF!","v":{"$error":"#REF!"}},"Fin.Return","G552",{"$f":"'Fin.Return - BS'!G158","v":0}]
[{"$f":"'Standing Data'!$D$12","v":{"$error":"#N/A"}},{"$f":"'Standing Data'!$F$9","v":0},{"$f":"'Standing Data'!#REF!","v":{"$error":"#REF!"}},"Fin.Return","G555",{"$f":"'Fin.Return - BS'!G161","v":0}]
[{"$f":"'Standing Data'!$D$12","v":{"$error":"#N/A"}},{"$f":"'Standing Data'!$F$9","v":0},{"$f":"'Standing Data'!#REF!","v":{"$error":"#REF!"}},"Fin.Return","G558",{"$f":"'Fin.Return - BS'!G164","v":0}]
[{"$f":"'Standing Data'!$D$12","v":{"$error":"#N/A"}},{"$f":"'Standing Data'!$F$9","v":0},{"$f":"'Standing Data'!#REF!","v":{"$error":"#REF!"}},"Fin.Return","G559",{"$f":"'Fin.Return - BS'!G165","v":0}]
[{"$f":"'Standing Data'!$D$12","v":{"$error":"#N/A"}},{"$f":"'Standing Data'!$F$9","v":0},{"$f":"'Standing Data'!#REF!","v":{"$error":"#REF!"}},"Fin.Return","G565",{"$f":"'Fin.Return - BS'!G172","v":0}]
[{"$f":"'Standing Data'!$D$12","v":{"$error":"#N/A"}},{"$f":"'Standing Data'!$F$9","v":0},{"$f":"'Standing Data'!#REF!","v":{"$error":"#REF!"}},"Fin.Return","G566",{"$f":"'Fin.Return - BS'!G173","v":0}]
[{"$f":"'Standing Data'!$D$12","v":{"$error":"#N/A"}},{"$f":"'Standing Data'!$F$9","v":0},{"$f":"'Standing Data'!#REF!","v":{"$error":"#REF!"}},"Fin.Return","G567",{"$f":"'Fin.Return - BS'!G174","v":0}]
[{"$f":"'Standing Data'!$D$12","v":{"$error":"#N/A"}},{"$f":"'Standing Data'!$F$9","v":0},{"$f":"'Standing Data'!#REF!","v":{"$error":"#REF!"}},"Fin.Return","G568",{"$f":"'Fin.Return - BS'!G175","v":0}]
[{"$f":"'Standing Data'!$D$12","v":{"$error":"#N/A"}},{"$f":"'Standing Data'!$F$9","v":0},{"$f":"'Standing Data'!#REF!","v":{"$error":"#REF!"}},"Fin.Return","G569",{"$f":"'Fin.Return - BS'!G176","v":0}]
[{"$f":"'Standing Data'!$D$12","v":{"$error":"#N/A"}},{"$f":"'Standing Data'!$F$9","v":0},{"$f":"'Standing Data'!#REF!","v":{"$error":"#REF!"}},"Fin.Return","G570",{"$f":"'Fin.Return - BS'!G179","v":0}]
[{"$f":"'Standing Data'!$D$12","v":{"$error":"#N/A"}},{"$f":"'Standing Data'!$F$9","v":0},{"$f":"'Standing Data'!#REF!","v":{"$error":"#REF!"}},"Fin.Return","G571",{"$f":"'Fin.Return - BS'!G180","v":0}]
[{"$f":"'Standing Data'!$D$12","v":{"$error":"#N/A"}},{"$f":"'Standing Data'!$F$9","v":0},{"$f":"'Standing Data'!#REF!","v":{"$error":"#REF!"}},"Fin.Return","G573",{"$f":"'Fin.Return - BS'!G183","v":0}]
[{"$f":"'Standing Data'!$D$12","v":{"$error":"#N/A"}},{"$f":"'Standing Data'!$F$9","v":0},{"$f":"'Standing Data'!#REF!","v":{"$error":"#REF!"}},"Fin.Return","G575",{"$f":"'Fin.Return - BS'!G185","v":0}]
[{"$f":"'Standing Data'!$D$12","v":{"$error":"#N/A"}},{"$f":"'Standing Data'!$F$9","v":0},{"$f":"'Standing Data'!#REF!","v":{"$error":"#REF!"}},"Fin.Return","G597",{"$f":"'Fin.Return - BS'!G207","v":0}]
[{"$f":"'Standing Data'!$D$12","v":{"$error":"#N/A"}},{"$f":"'Standing Data'!$F$9","v":0},{"$f":"'Standing Data'!#REF!","v":{"$error":"#REF!"}},"Fin.Return","G598",{"$f":"'Fin.Return - BS'!G208","v":0}]
[{"$f":"'Standing Data'!$D$12","v":{"$error":"#N/A"}},{"$f":"'Standing Data'!$F$9","v":0},{"$f":"'Standing Data'!#REF!","v":{"$error":"#REF!"}},"Fin.Return","G599",{"$f":"'Fin.Return - BS'!G209","v":0}]
[{"$f":"'Standing Data'!$D$12","v":{"$error":"#N/A"}},{"$f":"'Standing Data'!$F$9","v":0},{"$f":"'Standing Data'!#REF!","v":{"$error":"#REF!"}},"Fin.Return","G600",{"$f":"'Fin.Return - BS'!G210","v":0}]
[{"$f":"'Standing Data'!$D$12","v":{"$error":"#N/A"}},{"$f":"'Standing Data'!$F$9","v":0},{"$f":"'Standing Data'!#REF!","v":{"$error":"#REF!"}},"Fin.Return","G601",{"$f":"'Fin.Return - BS'!G211","v":0}]
[{"$f":"'Standing Data'!$D$12","v":{"$error":"#N/A"}},{"$f":"'Standing Data'!$F$9","v":0},{"$f":"'Standing Data'!#REF!","v":{"$error":"#REF!"}},"Fin.Return","G603",{"$f":"'Fin.Return - BS'!G213","v":0}]
[{"$f":"'Standing Data'!$D$12","v":{"$error":"#N/A"}},{"$f":"'Standing Data'!$F$9","v":0},{"$f":"'Standing Data'!#REF!","v":{"$error":"#REF!"}},"Fin.Return","G609",{"$f":"'Fin.Return - BS'!G219","v":0}]
[{"$f":"'Standing Data'!$D$12","v":{"$error":"#N/A"}},{"$f":"'Standing Data'!$F$9","v":0},{"$f":"'Standing Data'!#REF!","v":{"$error":"#REF!"}},"Fin.Return","G610",{"$f":"'Fin.Return - BS'!G220","v":0}]
[{"$f":"'Standing Data'!$D$12","v":{"$error":"#N/A"}},{"$f":"'Standing Data'!$F$9","v":0},{"$f":"'Standing Data'!#REF!","v":{"$error":"#REF!"}},"Fin.Return","G611",{"$f":"'Fin.Return - BS'!G221","v":0}]
[{"$f":"'Standing Data'!$D$12","v":{"$error":"#N/A"}},{"$f":"'Standing Data'!$F$9","v":0},{"$f":"'Standing Data'!#REF!","v":{"$error":"#REF!"}},"Fin.Return","G612",{"$f":"'Fin.Return - BS'!G222","v":0}]
[{"$f":"'Standing Data'!$D$12","v":{"$error":"#N/A"}},{"$f":"'Standing Data'!$F$9","v":0},{"$f":"'Standing Data'!#REF!","v":{"$error":"#REF!"}},"Fin.Return","G613",{"$f":"'Fin.Return - BS'!G223","v":0}]
[{"$f":"'Standing Data'!$D$12","v":{"$error":"#N/A"}},{"$f":"'Standing Data'!$F$9","v":0},{"$f":"'Standing Data'!#REF!","v":{"$error":"#REF!"}},"Fin.Return","G614",{"$f":"'Fin.Return - BS'!G224","v":0}]
[{"$f":"'Standing Data'!$D$12","v":{"$error":"#N/A"}},{"$f":"'Standing Data'!$F$9","v":0},{"$f":"'Standing Data'!#REF!","v":{"$error":"#REF!"}},"Fin.Return","G615",{"$f":"'Fin.Return - BS'!G225","v":0}]
[{"$f":"'Standing Data'!$D$12","v":{"$error":"#N/A"}},{"$f":"'Standing Data'!$F$9","v":0},{"$f":"'Standing Data'!#REF!","v":{"$error":"#REF!"}},"Fin.Return","G616",{"$f":"'Fin.Return - BS'!G226","v":0}]
[{"$f":"'Standing Data'!$D$12","v":{"$error":"#N/A"}},{"$f":"'Standing Data'!$F$9","v":0},{"$f":"'Standing Data'!#REF!","v":{"$error":"#REF!"}},"Fin.Return","G617",{"$f":"'Fin.Return - BS'!G227","v":0}]
[{"$f":"'Standing Data'!$D$12","v":{"$error":"#N/A"}},{"$f":"'Standing Data'!$F$9","v":0},{"$f":"'Standing Data'!#REF!","v":{"$error":"#REF!"}},"Fin.Return","G618",{"$f":"'Fin.Return - BS'!G228","v":0}]
[{"$f":"'Standing Data'!$D$12","v":{"$error":"#N/A"}},{"$f":"'Standing Data'!$F$9","v":0},{"$f":"'Standing Data'!#REF!","v":{"$error":"#REF!"}},"Fin.Return","G619",{"$f":"'Fin.Return - BS'!G229","v":0}]
[{"$f":"'Standing Data'!$D$12","v":{"$error":"#N/A"}},{"$f":"'Standing Data'!$F$9","v":0},{"$f":"'Standing Data'!#REF!","v":{"$error":"#REF!"}},"Fin.Return","G620",{"$f":"'Fin.Return - BS'!G230","v":0}]
[{"$f":"'Standing Data'!$D$12","v":{"$error":"#N/A"}},{"$f":"'Standing Data'!$F$9","v":0},{"$f":"'Standing Data'!#REF!","v":{"$error":"#REF!"}},"Fin.Return","G622",{"$f":"'Fin.Return - BS'!G232","v":0}]
[{"$f":"'Standing Data'!$D$12","v":{"$error":"#N/A"}},{"$f":"'Standing Data'!$F$9","v":0},{"$f":"'Standing Data'!#REF!","v":{"$error":"#REF!"}},"Fin.Return","G623",{"$f":"'Fin.Return - BS'!G233","v":0}]
[{"$f":"'Standing Data'!$D$12","v":{"$error":"#N/A"}},{"$f":"'Standing Data'!$F$9","v":0},{"$f":"'Standing Data'!#REF!","v":{"$error":"#REF!"}},"Fin.Return","G625",{"$f":"'Fin.Return - BS'!G235","v":0}]
[{"$f":"'Standing Data'!$D$12","v":{"$error":"#N/A"}},{"$f":"'Standing Data'!$F$9","v":0},{"$f":"'Standing Data'!#REF!","v":{"$error":"#REF!"}},"Fin.Return","G630",{"$f":"'Fin.Return - BS'!G241","v":0}]
[{"$f":"'Standing Data'!$D$12","v":{"$error":"#N/A"}},{"$f":"'Standing Data'!$F$9","v":0},{"$f":"'Standing Data'!#REF!","v":{"$error":"#REF!"}},"Fin.Return","G631",{"$f":"'Fin.Return - BS'!G242","v":0}]
[{"$f":"'Standing Data'!$D$12","v":{"$error":"#N/A"}},{"$f":"'Standing Data'!$F$9","v":0},{"$f":"'Standing Data'!#REF!","v":{"$error":"#REF!"}},"Fin.Return","G632",{"$f":"'Fin.Return - BS'!G243","v":0}]
[{"$f":"'Standing Data'!$D$12","v":{"$error":"#N/A"}},{"$f":"'Standing Data'!$F$9","v":0},{"$f":"'Standing Data'!#REF!","v":{"$error":"#REF!"}},"Fin.Return","G633",{"$f":"'Fin.Return - BS'!G244","v":0}]
[{"$f":"'Standing Data'!$D$12","v":{"$error":"#N/A"}},{"$f":"'Standing Data'!$F$9","v":0},{"$f":"'Standing Data'!#REF!","v":{"$error":"#REF!"}},"Fin.Return","G634",{"$f":"'Fin.Return - BS'!G245","v":0}]
[{"$f":"'Standing Data'!$D$12","v":{"$error":"#N/A"}},{"$f":"'Standing Data'!$F$9","v":0},{"$f":"'Standing Data'!#REF!","v":{"$error":"#REF!"}},"Fin.Return","G635",{"$f":"'Fin.Return - BS'!G248","v":0}]
[{"$f":"'Standing Data'!$D$12","v":{"$error":"#N/A"}},{"$f":"'Standing Data'!$F$9","v":0},{"$f":"'Standing Data'!#REF!","v":{"$error":"#REF!"}},"Fin.Return","G636",{"$f":"'Fin.Return - BS'!G249","v":0}]
[{"$f":"'Standing Data'!$D$12","v":{"$error":"#N/A"}},{"$f":"'Standing Data'!$F$9","v":0},{"$f":"'Standing Data'!#REF!","v":{"$error":"#REF!"}},"Fin.Return","G638",{"$f":"'Fin.Return - BS'!G252","v":0}]
[{"$f":"'Standing Data'!$D$12","v":{"$error":"#N/A"}},{"$f":"'Standing Data'!$F$9","v":0},{"$f":"'Standing Data'!#REF!","v":{"$error":"#REF!"}},"Fin.Return","G640",{"$f":"'Fin.Return - BS'!G254","v":0}]
[{"$f":"'Standing Data'!$D$12","v":{"$error":"#N/A"}},{"$f":"'Standing Data'!$F$9","v":0},{"$f":"'Standing Data'!#REF!","v":{"$error":"#REF!"}},"Fin.Return","G745",{"$f":"'Fin.Return - BS'!G356","v":0}]
[{"$f":"'Standing Data'!$D$12","v":{"$error":"#N/A"}},{"$f":"'Standing Data'!$F$9","v":0},{"$f":"'Standing Data'!#REF!","v":{"$error":"#REF!"}},"Fin.Return","G746",{"$f":"'Fin.Return - BS'!G357","v":0}]
[{"$f":"'Standing Data'!$D$12","v":{"$error":"#N/A"}},{"$f":"'Standing Data'!$F$9","v":0},{"$f":"'Standing Data'!#REF!","v":{"$error":"#REF!"}},"Fin.Return","G747",{"$f":"'Fin.Return - BS'!G358","v":0}]
[{"$f":"'Standing Data'!$D$12","v":{"$error":"#N/A"}},{"$f":"'Standing Data'!$F$9","v":0},{"$f":"'Standing Data'!#REF!","v":{"$error":"#REF!"}},"Fin.Return","G748",{"$f":"'Fin.Return - BS'!G359","v":0}]
[{"$f":"'Standing Data'!$D$12","v":{"$error":"#N/A"}},{"$f":"'Standing Data'!$F$9","v":0},{"$f":"'Standing Data'!#REF!","v":{"$error":"#REF!"}},"Fin.Return","G750",{"$f":"'Fin.Return - BS'!G361","v":0}]
[{"$f":"'Standing Data'!$D$12","v":{"$error":"#N/A"}},{"$f":"'Standing Data'!$F$9","v":0},{"$f":"'Standing Data'!#REF!","v":{"$error":"#REF!"}},"Fin.Return","G755",{"$f":"'Fin.Return - BS'!G366","v":0}]
[{"$f":"'Standing Data'!$D$12","v":{"$error":"#N/A"}},{"$f":"'Standing Data'!$F$9","v":0},{"$f":"'Standing Data'!#REF!","v":{"$error":"#REF!"}},"Fin.Return","G756",{"$f":"'Fin.Return - BS'!G367","v":0}]
[{"$f":"'Standing Data'!$D$12","v":{"$error":"#N/A"}},{"$f":"'Standing Data'!$F$9","v":0},{"$f":"'Standing Data'!#REF!","v":{"$error":"#REF!"}},"Fin.Return","G757",{"$f":"'Fin.Return - BS'!G368","v":0}]
[{"$f":"'Standing Data'!$D$12","v":{"$error":"#N/A"}},{"$f":"'Standing Data'!$F$9","v":0},{"$f":"'Standing Data'!#REF!","v":{"$error":"#REF!"}},"Fin.Return","G759",{"$f":"'Fin.Return - BS'!G370","v":0}]
[{"$f":"'Standing Data'!$D$12","v":{"$error":"#N/A"}},{"$f":"'Standing Data'!$F$9","v":0},{"$f":"'Standing Data'!#REF!","v":{"$error":"#REF!"}},"Fin.Return","G767",{"$f":"'Fin.Return - BS'!G378","v":0}]
[{"$f":"'Standing Data'!$D$12","v":{"$error":"#N/A"}},{"$f":"'Standing Data'!$F$9","v":0},{"$f":"'Standing Data'!#REF!","v":{"$error":"#REF!"}},"Fin.Return","G768",{"$f":"'Fin.Return - BS'!G379","v":0}]
[{"$f":"'Standing Data'!$D$12","v":{"$error":"#N/A"}},{"$f":"'Standing Data'!$F$9","v":0},{"$f":"'Standing Data'!#REF!","v":{"$error":"#REF!"}},"Fin.Return","G770",{"$f":"'Fin.Return - Other Notes'!#REF!","v":{"$error":"#REF!"}}]
[{"$f":"'Standing Data'!$D$12","v":{"$error":"#N/A"}},{"$f":"'Standing Data'!$F$9","v":0},{"$f":"'Standing Data'!#REF!","v":{"$error":"#REF!"}},"Fin.Return","G771",{"$f":"'Fin.Return - Other Notes'!#REF!","v":{"$error":"#REF!"}}]
[{"$f":"'Standing Data'!$D$12","v":{"$error":"#N/A"}},{"$f":"'Standing Data'!$F$9","v":0},{"$f":"'Standing Data'!#REF!","v":{"$error":"#REF!"}},"Fin.Return","G772",{"$f":"'Fin.Return - Other Notes'!#REF!","v":{"$error":"#REF!"}}]
[{"$f":"'Standing Data'!$D$12","v":{"$error":"#N/A"}},{"$f":"'Standing Data'!$F$9","v":0},{"$f":"'Standing Data'!#REF!","v":{"$error":"#REF!"}},"Fin.Return","G773",{"$f":"'Fin.Return - Other Notes'!#REF!","v":{"$error":"#REF!"}}]
[{"$f":"'Standing Data'!$D$12","v":{"$error":"#N/A"}},{"$f":"'Standing Data'!$F$9","v":0},{"$f":"'Standing Data'!#REF!","v":{"$error":"#REF!"}},"Fin.Return","G774",{"$f":"'Fin.Return - Other Notes'!#REF!","v":{"$error":"#REF!"}}]
[{"$f":"'Standing Data'!$D$12","v":{"$error":"#N/A"}},{"$f":"'Standing Data'!$F$9","v":0},{"$f":"'Standing Data'!#REF!","v":{"$error":"#REF!"}},"Fin.Return","G775",{"$f":"'Fin.Return - Other Notes'!#REF!","v":{"$error":"#REF!"}}]
[{"$f":"'Standing Data'!$D$12","v":{"$error":"#N/A"}},{"$f":"'Standing Data'!$F$9","v":0},{"$f":"'Standing Data'!#REF!","v":{"$error":"#REF!"}},"Fin.Return","G776",{"$f":"'Fin.Return - BS'!G381","v":0}]
[{"$f":"'Standing Data'!$D$12","v":{"$error":"#N/A"}},{"$f":"'Standing Data'!$F$9","v":0},{"$f":"'Standing Data'!#REF!","v":{"$error":"#REF!"}},"Fin.Return","G777",{"$f":"'Fin.Return - BS'!G382","v":0}]
[{"$f":"'Standing Data'!$D$12","v":{"$error":"#N/A"}},{"$f":"'Standing Data'!$F$9","v":0},{"$f":"'Standing Data'!#REF!","v":{"$error":"#REF!"}},"Fin.Return","G779",{"$f":"'Fin.Return - BS'!G384","v":0}]
[{"$f":"'Standing Data'!$D$12","v":{"$error":"#N/A"}},{"$f":"'Standing Data'!$F$9","v":0},{"$f":"'Standing Data'!#REF!","v":{"$error":"#REF!"}},"Fin.Return","G780",{"$f":"'Fin.Return - BS'!G385","v":0}]
[{"$f":"'Standing Data'!$D$12","v":{"$error":"#N/A"}},{"$f":"'Standing Data'!$F$9","v":0},{"$f":"'Standing Data'!#REF!","v":{"$error":"#REF!"}},"Fin.Return","G782",{"$f":"'Fin.Return - BS'!G387","v":0}]
[{"$f":"'Standing Data'!$D$12","v":{"$error":"#N/A"}},{"$f":"'Standing Data'!$F$9","v":0},{"$f":"'Standing Data'!#REF!","v":{"$error":"#REF!"}},"Fin.Return","G783",{"$f":"'Fin.Return - BS'!G388","v":0}]
[{"$f":"'Standing Data'!$D$12","v":{"$error":"#N/A"}},{"$f":"'Standing Data'!$F$9","v":0},{"$f":"'Standing Data'!#REF!","v":{"$error":"#REF!"}},"Fin.Return","G785",{"$f":"'Fin.Return - BS'!G390","v":0}]
[{"$f":"'Standing Data'!$D$12","v":{"$error":"#N/A"}},{"$f":"'Standing Data'!$F$9","v":0},{"$f":"'Standing Data'!#REF!","v":{"$error":"#REF!"}},"Fin.Return","G787",{"$f":"'Fin.Return - BS'!G392","v":0}]
[{"$f":"'Standing Data'!$D$12","v":{"$error":"#N/A"}},{"$f":"'Standing Data'!$F$9","v":0},{"$f":"'Standing Data'!#REF!","v":{"$error":"#REF!"}},"Fin.Return","G789",{"$f":"'Fin.Return - Other Notes'!#REF!","v":{"$error":"#REF!"}}]
[{"$f":"'Standing Data'!$D$12","v":{"$error":"#N/A"}},{"$f":"'Standing Data'!$F$9","v":0},{"$f":"'Standing Data'!#REF!","v":{"$error":"#REF!"}},"Fin.Return","G790",{"$f":"'Fin.Return - Other Notes'!#REF!","v":{"$error":"#REF!"}}]
[{"$f":"'Standing Data'!$D$12","v":{"$error":"#N/A"}},{"$f":"'Standing Data'!$F$9","v":0},{"$f":"'Standing Data'!#REF!","v":{"$error":"#REF!"}},"Fin.Return","G791",{"$f":"'Fin.Return - Other Notes'!#REF!","v":{"$error":"#REF!"}}]
[{"$f":"'Standing Data'!$D$12","v":{"$error":"#N/A"}},{"$f":"'Standing Data'!$F$9","v":0},{"$f":"'Standing Data'!#REF!","v":{"$error":"#REF!"}},"Fin.Return","G792",{"$f":"'Fin.Return - Other Notes'!#REF!","v":{"$error":"#REF!"}}]
[{"$f":"'Standing Data'!$D$12","v":{"$error":"#N/A"}},{"$f":"'Standing Data'!$F$9","v":0},{"$f":"'Standing Data'!#REF!","v":{"$error":"#REF!"}},"Fin.Return","G793",{"$f":"'Fin.Return - Other Notes'!#REF!","v":{"$error":"#REF!"}}]
[{"$f":"'Standing Data'!$D$12","v":{"$error":"#N/A"}},{"$f":"'Standing Data'!$F$9","v":0},{"$f":"'Standing Data'!#REF!","v":{"$error":"#REF!"}},"Fin.Return","G794",{"$f":"'Fin.Return - Other Notes'!#REF!","v":{"$error":"#REF!"}}]
[{"$f":"'Standing Data'!$D$12","v":{"$error":"#N/A"}},{"$f":"'Standing Data'!$F$9","v":0},{"$f":"'Standing Data'!#REF!","v":{"$error":"#REF!"}},"Fin.Return","G795",{"$f":"'Fin.Return - BS'!G394","v":0}]
[{"$f":"'Standing Data'!$D$12","v":{"$error":"#N/A"}},{"$f":"'Standing Data'!$F$9","v":0},{"$f":"'Standing Data'!#REF!","v":{"$error":"#REF!"}},"Fin.Return","G796",{"$f":"'Fin.Return - BS'!G395","v":0}]
[{"$f":"'Standing Data'!$D$12","v":{"$error":"#N/A"}},{"$f":"'Standing Data'!$F$9","v":0},{"$f":"'Standing Data'!#REF!","v":{"$error":"#REF!"}},"Fin.Return","G798",{"$f":"'Fin.Return - BS'!G397","v":0}]
[{"$f":"'Standing Data'!$D$12","v":{"$error":"#N/A"}},{"$f":"'Standing Data'!$F$9","v":0},{"$f":"'Standing Data'!#REF!","v":{"$error":"#REF!"}},"Fin.Return","G799",{"$f":"'Fin.Return - BS'!G398","v":0}]
[{"$f":"'Standing Data'!$D$12","v":{"$error":"#N/A"}},{"$f":"'Standing Data'!$F$9","v":0},{"$f":"'Standing Data'!#REF!","v":{"$error":"#REF!"}},"Fin.Return","G800",{"$f":"'Fin.Return - BS'!G399","v":0}]
[{"$f":"'Standing Data'!$D$12","v":{"$error":"#N/A"}},{"$f":"'Standing Data'!$F$9","v":0},{"$f":"'Standing Data'!#REF!","v":{"$error":"#REF!"}},"Fin.Return","G802",{"$f":"'Fin.Return - BS'!G401","v":0}]
[{"$f":"'Standing Data'!$D$12","v":{"$error":"#N/A"}},{"$f":"'Standing Data'!$F$9","v":0},{"$f":"'Standing Data'!#REF!","v":{"$error":"#REF!"}},"Fin.Return","G803",{"$f":"'Fin.Return - BS'!G402","v":0}]
[{"$f":"'Standing Data'!$D$12","v":{"$error":"#N/A"}},{"$f":"'Standing Data'!$F$9","v":0},{"$f":"'Standing Data'!#REF!","v":{"$error":"#REF!"}},"Fin.Return","G805",{"$f":"'Fin.Return - BS'!G404","v":0}]
[{"$f":"'Standing Data'!$D$12","v":{"$error":"#N/A"}},{"$f":"'Standing Data'!$F$9","v":0},{"$f":"'Standing Data'!#REF!","v":{"$error":"#REF!"}},"Fin.Return","G807",{"$f":"'Fin.Return - BS'!G406","v":0}]
[{"$f":"'Standing Data'!$D$12","v":{"$error":"#N/A"}},{"$f":"'Standing Data'!$F$9","v":0},{"$f":"'Standing Data'!#REF!","v":{"$error":"#REF!"}},"Fin.Return","G809",{"$f":"'Fin.Return - BS'!G408","v":0}]
[{"$f":"'Standing Data'!$D$12","v":{"$error":"#N/A"}},{"$f":"'Standing Data'!$F$9","v":0},{"$f":"'Standing Data'!#REF!","v":{"$error":"#REF!"}},"Fin.Return","G811",{"$f":"'Fin.Return - BS'!G410","v":0}]
[{"$f":"'Standing Data'!$D$12","v":{"$error":"#N/A"}},{"$f":"'Standing Data'!$F$9","v":0},{"$f":"'Standing Data'!#REF!","v":{"$error":"#REF!"}},"Fin.Return","G816",{"$f":"'Fin.Return - Other Notes'!G126","v":0}]
[{"$f":"'Standing Data'!$D$12","v":{"$error":"#N/A"}},{"$f":"'Standing Data'!$F$9","v":0},{"$f":"'Standing Data'!#REF!","v":{"$error":"#REF!"}},"Fin.Return","G817",{"$f":"'Fin.Return - Other Notes'!G127","v":0}]
[{"$f":"'Standing Data'!$D$12","v":{"$error":"#N/A"}},{"$f":"'Standing Data'!$F$9","v":0},{"$f":"'Standing Data'!#REF!","v":{"$error":"#REF!"}},"Fin.Return","G818",{"$f":"'Fin.Return - Other Notes'!G128","v":0}]
[{"$f":"'Standing Data'!$D$12","v":{"$error":"#N/A"}},{"$f":"'Standing Data'!$F$9","v":0},{"$f":"'Standing Data'!#REF!","v":{"$error":"#REF!"}},"Fin.Return","G819",{"$f":"'Fin.Return - Other Notes'!G129","v":0}]
[{"$f":"'Standing Data'!$D$12","v":{"$error":"#N/A"}},{"$f":"'Standing Data'!$F$9","v":0},{"$f":"'Standing Data'!#REF!","v":{"$error":"#REF!"}},"Fin.Return","G820",{"$f":"'Fin.Return - Other Notes'!G130","v":0}]
[{"$f":"'Standing Data'!$D$12","v":{"$error":"#N/A"}},{"$f":"'Standing Data'!$F$9","v":0},{"$f":"'Standing Data'!#REF!","v":{"$error":"#REF!"}},"Fin.Return","G821",{"$f":"'Fin.Return - Other Notes'!G131","v":0}]
[{"$f":"'Standing Data'!$D$12","v":{"$error":"#N/A"}},{"$f":"'Standing Data'!$F$9","v":0},{"$f":"'Standing Data'!#REF!","v":{"$error":"#REF!"}},"Fin.Return","G823",{"$f":"'Fin.Return - Other Notes'!G133","v":0}]
[{"$f":"'Standing Data'!$D$12","v":{"$error":"#N/A"}},{"$f":"'Standing Data'!$F$9","v":0},{"$f":"'Standing Data'!#REF!","v":{"$error":"#REF!"}},"Fin.Return","G839",{"$f":"'Fin.Return - Other Notes'!G149","v":0}]
[{"$f":"'Standing Data'!$D$12","v":{"$error":"#N/A"}},{"$f":"'Standing Data'!$F$9","v":0},{"$f":"'Standing Data'!#REF!","v":{"$error":"#REF!"}},"Fin.Return","G840",{"$f":"'Fin.Return - Other Notes'!G151","v":0}]
[{"$f":"'Standing Data'!$D$12","v":{"$error":"#N/A"}},{"$f":"'Standing Data'!$F$9","v":0},{"$f":"'Standing Data'!#REF!","v":{"$error":"#REF!"}},"Fin.Return","G841",{"$f":"'Fin.Return - Other Notes'!G153","v":0}]
[{"$f":"'Standing Data'!$D$12","v":{"$error":"#N/A"}},{"$f":"'Standing Data'!$F$9","v":0},{"$f":"'Standing Data'!#REF!","v":{"$error":"#REF!"}},"Fin.Return","G842",{"$f":"'Fin.Return - Other Notes'!G154","v":0}]
[{"$f":"'Standing Data'!$D$12","v":{"$error":"#N/A"}},{"$f":"'Standing Data'!$F$9","v":0},{"$f":"'Standing Data'!#REF!","v":{"$error":"#REF!"}},"Fin.Return","G843",{"$f":"'Fin.Return - Other Notes'!G155","v":0}]
[{"$f":"'Standing Data'!$D$12","v":{"$error":"#N/A"}},{"$f":"'Standing Data'!$F$9","v":0},{"$f":"'Standing Data'!#REF!","v":{"$error":"#REF!"}},"Fin.Return","G845",{"$f":"'Fin.Return - Other Notes'!G157","v":0}]
[{"$f":"'Standing Data'!$D$12","v":{"$error":"#N/A"}},{"$f":"'Standing Data'!$F$9","v":0},{"$f":"'Standing Data'!#REF!","v":{"$error":"#REF!"}},"Fin.Return","G850",{"$f":"'Fin.Return - Other Notes'!G162","v":0}]
[{"$f":"'Standing Data'!$D$12","v":{"$error":"#N/A"}},{"$f":"'Standing Data'!$F$9","v":0},{"$f":"'Standing Data'!#REF!","v":{"$error":"#REF!"}},"Fin.Return","G851",{"$f":"'Fin.Return - Other Notes'!G163","v":0}]
[{"$f":"'Standing Data'!$D$12","v":{"$error":"#N/A"}},{"$f":"'Standing Data'!$F$9","v":0},{"$f":"'Standing Data'!#REF!","v":{"$error":"#REF!"}},"Fin.Return","G852",{"$f":"'Fin.Return - Other Notes'!G164","v":0}]
[{"$f":"'Standing Data'!$D$12","v":{"$error":"#N/A"}},{"$f":"'Standing Data'!$F$9","v":0},{"$f":"'Standing Data'!#REF!","v":{"$error":"#REF!"}},"Fin.Return","G854",{"$f":"'Fin.Return - Other Notes'!G166","v":0}]
[{"$f":"'Standing Data'!$D$12","v":{"$error":"#N/A"}},{"$f":"'Standing Data'!$F$9","v":0},{"$f":"'Standing Data'!#REF!","v":{"$error":"#REF!"}},"Fin.Return","G857",{"$f":"'Fin.Return - Other Notes'!G169","v":0}]
[{"$f":"'Standing Data'!$D$12","v":{"$error":"#N/A"}},{"$f":"'Standing Data'!$F$9","v":0},{"$f":"'Standing Data'!#REF!","v":{"$error":"#REF!"}},"Fin.Return","G858",{"$f":"'Fin.Return - Other Notes'!G170","v":0}]
[{"$f":"'Standing Data'!$D$12","v":{"$error":"#N/A"}},{"$f":"'Standing Data'!$F$9","v":0},{"$f":"'Standing Data'!#REF!","v":{"$error":"#REF!"}},"Fin.Return","G860",{"$f":"'Fin.Return - Other Notes'!G172","v":0}]
[{"$f":"'Standing Data'!$D$12","v":{"$error":"#N/A"}},{"$f":"'Standing Data'!$F$9","v":0},{"$f":"'Standing Data'!#REF!","v":{"$error":"#REF!"}},"Fin.Return","G862",{"$f":"'Fin.Return - Other Notes'!G174","v":0}]
[{"$f":"'Standing Data'!$D$12","v":{"$error":"#N/A"}},{"$f":"'Standing Data'!$F$9","v":0},{"$f":"'Standing Data'!#REF!","v":{"$error":"#REF!"}},"Fin.Return","G865",{"$f":"'Fin.Return - Other Notes'!G177","v":0}]
[{"$f":"'Standing Data'!$D$12","v":{"$error":"#N/A"}},{"$f":"'Standing Data'!$F$9","v":0},{"$f":"'Standing Data'!#REF!","v":{"$error":"#REF!"}},"Fin.Return","G866",{"$f":"'Fin.Return - Other Notes'!G178","v":0}]
[{"$f":"'Standing Data'!$D$12","v":{"$error":"#N/A"}},{"$f":"'Standing Data'!$F$9","v":0},{"$f":"'Standing Data'!#REF!","v":{"$error":"#REF!"}},"Fin.Return","G867",{"$f":"'Fin.Return - Other Notes'!G179","v":0}]
[{"$f":"'Standing Data'!$D$12","v":{"$error":"#N/A"}},{"$f":"'Standing Data'!$F$9","v":0},{"$f":"'Standing Data'!#REF!","v":{"$error":"#REF!"}},"Fin.Return","G868",{"$f":"'Fin.Return - Other Notes'!G180","v":0}]
[{"$f":"'Standing Data'!$D$12","v":{"$error":"#N/A"}},{"$f":"'Standing Data'!$F$9","v":0},{"$f":"'Standing Data'!#REF!","v":{"$error":"#REF!"}},"Fin.Return","G869",{"$f":"'Fin.Return - Other Notes'!G181","v":0}]
[{"$f":"'Standing Data'!$D$12","v":{"$error":"#N/A"}},{"$f":"'Standing Data'!$F$9","v":0},{"$f":"'Standing Data'!#REF!","v":{"$error":"#REF!"}},"Fin.Return","G870",{"$f":"'Fin.Return - Other Notes'!G182","v":0}]
[{"$f":"'Standing Data'!$D$12","v":{"$error":"#N/A"}},{"$f":"'Standing Data'!$F$9","v":0},{"$f":"'Standing Data'!#REF!","v":{"$error":"#REF!"}},"Fin.Return","G871",{"$f":"'Fin.Return - Other Notes'!G183","v":0}]
[{"$f":"'Standing Data'!$D$12","v":{"$error":"#N/A"}},{"$f":"'Standing Data'!$F$9","v":0},{"$f":"'Standing Data'!#REF!","v":{"$error":"#REF!"}},"Fin.Return","G872",{"$f":"'Fin.Return - Other Notes'!G184","v":0}]
[{"$f":"'Standing Data'!$D$12","v":{"$error":"#N/A"}},{"$f":"'Standing Data'!$F$9","v":0},{"$f":"'Standing Data'!#REF!","v":{"$error":"#REF!"}},"Fin.Return","G873",{"$f":"'Fin.Return - Other Notes'!G185","v":0}]
[{"$f":"'Standing Data'!$D$12","v":{"$error":"#N/A"}},{"$f":"'Standing Data'!$F$9","v":0},{"$f":"'Standing Data'!#REF!","v":{"$error":"#REF!"}},"Fin.Return","G874",{"$f":"'Fin.Return - Other Notes'!G186","v":0}]
[{"$f":"'Standing Data'!$D$12","v":{"$error":"#N/A"}},{"$f":"'Standing Data'!$F$9","v":0},{"$f":"'Standing Data'!#REF!","v":{"$error":"#REF!"}},"Fin.Return","G876",{"$f":"'Fin.Return - Other Notes'!G190","v":0}]
[{"$f":"'Standing Data'!$D$12","v":{"$error":"#N/A"}},{"$f":"'Standing Data'!$F$9","v":0},{"$f":"'Standing Data'!#REF!","v":{"$error":"#REF!"}},"Fin.Return","G879",{"$f":"'Fin.Return - Other Notes'!G193","v":0}]
[{"$f":"'Standing Data'!$D$12","v":{"$error":"#N/A"}},{"$f":"'Standing Data'!$F$9","v":0},{"$f":"'Standing Data'!#REF!","v":{"$error":"#REF!"}},"Fin.Return","G880",{"$f":"'Fin.Return - Other Notes'!G194","v":0}]
[{"$f":"'Standing Data'!$D$12","v":{"$error":"#N/A"}},{"$f":"'Standing Data'!$F$9","v":0},{"$f":"'Standing Data'!#REF!","v":{"$error":"#REF!"}},"Fin.Return","G881",{"$f":"'Fin.Return - Other Notes'!G195","v":0}]
[{"$f":"'Standing Data'!$D$12","v":{"$error":"#N/A"}},{"$f":"'Standing Data'!$F$9","v":0},{"$f":"'Standing Data'!#REF!","v":{"$error":"#REF!"}},"Fin.Return","G882",{"$f":"'Fin.Return - Other Notes'!G196","v":0}]
[{"$f":"'Standing Data'!$D$12","v":{"$error":"#N/A"}},{"$f":"'Standing Data'!$F$9","v":0},{"$f":"'Standing Data'!#REF!","v":{"$error":"#REF!"}},"Fin.Return","G883",{"$f":"'Fin.Return - Other Notes'!G197","v":0}]
[{"$f":"'Standing Data'!$D$12","v":{"$error":"#N/A"}},{"$f":"'Standing Data'!$F$9","v":0},{"$f":"'Standing Data'!#REF!","v":{"$error":"#REF!"}},"Fin.Return","G884",{"$f":"'Fin.Return - Other Notes'!G198","v":0}]
[{"$f":"'Standing Data'!$D$12","v":{"$error":"#N/A"}},{"$f":"'Standing Data'!$F$9","v":0},{"$f":"'Standing Data'!#REF!","v":{"$error":"#REF!"}},"Fin.Return","G885",{"$f":"'Fin.Return - Other Notes'!G199","v":0}]
[{"$f":"'Standing Data'!$D$12","v":{"$error":"#N/A"}},{"$f":"'Standing Data'!$F$9","v":0},{"$f":"'Standing Data'!#REF!","v":{"$error":"#REF!"}},"Fin.Return","G887",{"$f":"'Fin.Return - Other Notes'!G203","v":0}]
[{"$f":"'Standing Data'!$D$12","v":{"$error":"#N/A"}},{"$f":"'Standing Data'!$F$9","v":0},{"$f":"'Standing Data'!#REF!","v":{"$error":"#REF!"}},"Fin.Return","G890",{"$f":"'Fin.Return - Other Notes'!G206","v":0}]
[{"$f":"'Standing Data'!$D$12","v":{"$error":"#N/A"}},{"$f":"'Standing Data'!$F$9","v":0},{"$f":"'Standing Data'!#REF!","v":{"$error":"#REF!"}},"Fin.Return","G891",{"$f":"'Fin.Return - Other Notes'!G207","v":0}]
[{"$f":"'Standing Data'!$D$12","v":{"$error":"#N/A"}},{"$f":"'Standing Data'!$F$9","v":0},{"$f":"'Standing Data'!#REF!","v":{"$error":"#REF!"}},"Fin.Return","G892",{"$f":"'Fin.Return - Other Notes'!G208","v":0}]
[{"$f":"'Standing Data'!$D$12","v":{"$error":"#N/A"}},{"$f":"'Standing Data'!$F$9","v":0},{"$f":"'Standing Data'!#REF!","v":{"$error":"#REF!"}},"Fin.Return","G893",{"$f":"'Fin.Return - Other Notes'!G209","v":0}]
[{"$f":"'Standing Data'!$D$12","v":{"$error":"#N/A"}},{"$f":"'Standing Data'!$F$9","v":0},{"$f":"'Standing Data'!#REF!","v":{"$error":"#REF!"}},"Fin.Return","G894",{"$f":"'Fin.Return - Other Notes'!G210","v":0}]
[{"$f":"'Standing Data'!$D$12","v":{"$error":"#N/A"}},{"$f":"'Standing Data'!$F$9","v":0},{"$f":"'Standing Data'!#REF!","v":{"$error":"#REF!"}},"Fin.Return","G895",{"$f":"'Fin.Return - Other Notes'!G211","v":0}]
[{"$f":"'Standing Data'!$D$12","v":{"$error":"#N/A"}},{"$f":"'Standing Data'!$F$9","v":0},{"$f":"'Standing Data'!#REF!","v":{"$error":"#REF!"}},"Fin.Return","G896",{"$f":"'Fin.Return - Other Notes'!G212","v":0}]
[{"$f":"'Standing Data'!$D$12","v":{"$error":"#N/A"}},{"$f":"'Standing Data'!$F$9","v":0},{"$f":"'Standing Data'!#REF!","v":{"$error":"#REF!"}},"Fin.Return","G897",{"$f":"'Fin.Return - Other Notes'!G213","v":0}]
[{"$f":"'Standing Data'!$D$12","v":{"$error":"#N/A"}},{"$f":"'Standing Data'!$F$9","v":0},{"$f":"'Standing Data'!#REF!","v":{"$error":"#REF!"}},"Fin.Return","G898",{"$f":"'Fin.Return - Other Notes'!G214","v":0}]
[{"$f":"'Standing Data'!$D$12","v":{"$error":"#N/A"}},{"$f":"'Standing Data'!$F$9","v":0},{"$f":"'Standing Data'!#REF!","v":{"$error":"#REF!"}},"Fin.Return","G899",{"$f":"'Fin.Return - Other Notes'!G215","v":0}]
[{"$f":"'Standing Data'!$D$12","v":{"$error":"#N/A"}},{"$f":"'Standing Data'!$F$9","v":0},{"$f":"'Standing Data'!#REF!","v":{"$error":"#REF!"}},"Fin.Return","G901",{"$f":"'Fin.Return - Other Notes'!G219","v":0}]
[{"$f":"'Standing Data'!$D$12","v":{"$error":"#N/A"}},{"$f":"'Standing Data'!$F$9","v":0},{"$f":"'Standing Data'!#REF!","v":{"$error":"#REF!"}},"Fin.Return","G908",{"$f":"'Fin.Return - Other Notes'!G228","v":0}]
[{"$f":"'Standing Data'!$D$12","v":{"$error":"#N/A"}},{"$f":"'Standing Data'!$F$9","v":0},{"$f":"'Standing Data'!#REF!","v":{"$error":"#REF!"}},"Fin.Return","G909",{"$f":"'Fin.Return - Other Notes'!G229","v":0}]
[{"$f":"'Standing Data'!$D$12","v":{"$error":"#N/A"}},{"$f":"'Standing Data'!$F$9","v":0},{"$f":"'Standing Data'!#REF!","v":{"$error":"#REF!"}},"Fin.Return","G910",{"$f":"'Fin.Return - Other Notes'!G230","v":0}]
[{"$f":"'Standing Data'!$D$12","v":{"$error":"#N/A"}},{"$f":"'Standing Data'!$F$9","v":0},{"$f":"'Standing Data'!#REF!","v":{"$error":"#REF!"}},"Fin.Return","G911",{"$f":"'Fin.Return - Other Notes'!G231","v":0}]
[{"$f":"'Standing Data'!$D$12","v":{"$error":"#N/A"}},{"$f":"'Standing Data'!$F$9","v":0},{"$f":"'Standing Data'!#REF!","v":{"$error":"#REF!"}},"Fin.Return","G912",{"$f":"'Fin.Return - Other Notes'!G232","v":0}]
[{"$f":"'Standing Data'!$D$12","v":{"$error":"#N/A"}},{"$f":"'Standing Data'!$F$9","v":0},{"$f":"'Standing Data'!#REF!","v":{"$error":"#REF!"}},"Fin.Return","G914",{"$f":"'Fin.Return - Other Notes'!G234","v":0}]
[{"$f":"'Standing Data'!$D$12","v":{"$error":"#N/A"}},{"$f":"'Standing Data'!$F$9","v":0},{"$f":"'Standing Data'!#REF!","v":{"$error":"#REF!"}},"Fin.Return","G913",{"$f":"'Fin.Return - Other Notes'!G233","v":0}]
[{"$f":"'Standing Data'!$D$12","v":{"$error":"#N/A"}},{"$f":"'Standing Data'!$F$9","v":0},{"$f":"'Standing Data'!#REF!","v":{"$error":"#REF!"}},"Fin.Return","G916",{"$f":"'Fin.Return - Other Notes'!G236","v":0}]
[{"$f":"'Standing Data'!$D$12","v":{"$error":"#N/A"}},{"$f":"'Standing Data'!$F$9","v":0},{"$f":"'Standing Data'!#REF!","v":{"$error":"#REF!"}},"Fin.Return","G917",{"$f":"'Fin.Return - Other Notes'!G237","v":0}]
[{"$f":"'Standing Data'!$D$12","v":{"$error":"#N/A"}},{"$f":"'Standing Data'!$F$9","v":0},{"$f":"'Standing Data'!#REF!","v":{"$error":"#REF!"}},"Fin.Return","G918",{"$f":"'Fin.Return - Other Notes'!G238","v":0}]
[{"$f":"'Standing Data'!$D$12","v":{"$error":"#N/A"}},{"$f":"'Standing Data'!$F$9","v":0},{"$f":"'Standing Data'!#REF!","v":{"$error":"#REF!"}},"Fin.Return","G919",{"$f":"'Fin.Return - Other Notes'!G239","v":0}]
[{"$f":"'Standing Data'!$D$12","v":{"$error":"#N/A"}},{"$f":"'Standing Data'!$F$9","v":0},{"$f":"'Standing Data'!#REF!","v":{"$error":"#REF!"}},"Fin.Return","G920",{"$f":"'Fin.Return - Other Notes'!G240","v":0}]
[{"$f":"'Standing Data'!$D$12","v":{"$error":"#N/A"}},{"$f":"'Standing Data'!$F$9","v":0},{"$f":"'Standing Data'!#REF!","v":{"$error":"#REF!"}},"Fin.Return","G922",{"$f":"'Fin.Return - Other Notes'!G242","v":0}]
[{"$f":"'Standing Data'!$D$12","v":{"$error":"#N/A"}},{"$f":"'Standing Data'!$F$9","v":0},{"$f":"'Standing Data'!#REF!","v":{"$error":"#REF!"}},"Fin.Return","G924",{"$f":"'Fin.Return - Other Notes'!G244","v":0}]
[{"$f":"'Standing Data'!$D$12","v":{"$error":"#N/A"}},{"$f":"'Standing Data'!$F$9","v":0},{"$f":"'Standing Data'!#REF!","v":{"$error":"#REF!"}},"Fin.Return","G925",{"$f":"'Fin.Return - Other Notes'!G245","v":0}]
[{"$f":"'Standing Data'!$D$12","v":{"$error":"#N/A"}},{"$f":"'Standing Data'!$F$9","v":0},{"$f":"'Standing Data'!#REF!","v":{"$error":"#REF!"}},"Fin.Return","G926",{"$f":"'Fin.Return - Other Notes'!G246","v":0}]
[{"$f":"'Standing Data'!$D$12","v":{"$error":"#N/A"}},{"$f":"'Standing Data'!$F$9","v":0},{"$f":"'Standing Data'!#REF!","v":{"$error":"#REF!"}},"Fin.Return","G927",{"$f":"'Fin.Return - Other Notes'!G247","v":0}]
[{"$f":"'Standing Data'!$D$12","v":{"$error":"#N/A"}},{"$f":"'Standing Data'!$F$9","v":0},{"$f":"'Standing Data'!#REF!","v":{"$error":"#REF!"}},"Fin.Return","G928",{"$f":"'Fin.Return - Other Notes'!G248","v":0}]
[{"$f":"'Standing Data'!$D$12","v":{"$error":"#N/A"}},{"$f":"'Standing Data'!$F$9","v":0},{"$f":"'Standing Data'!#REF!","v":{"$error":"#REF!"}},"Fin.Return","G929",{"$f":"'Fin.Return - Other Notes'!G249","v":0}]
[{"$f":"'Standing Data'!$D$12","v":{"$error":"#N/A"}},{"$f":"'Standing Data'!$F$9","v":0},{"$f":"'Standing Data'!#REF!","v":{"$error":"#REF!"}},"Fin.Return","G930",{"$f":"'Fin.Return - Other Notes'!G250","v":0}]
[{"$f":"'Standing Data'!$D$12","v":{"$error":"#N/A"}},{"$f":"'Standing Data'!$F$9","v":0},{"$f":"'Standing Data'!#REF!","v":{"$error":"#REF!"}},"Fin.Return","G931",{"$f":"'Fin.Return - Other Notes'!G251","v":0}]
[{"$f":"'Standing Data'!$D$12","v":{"$error":"#N/A"}},{"$f":"'Standing Data'!$F$9","v":0},{"$f":"'Standing Data'!#REF!","v":{"$error":"#REF!"}},"Fin.Return","G933",{"$f":"'Fin.Return - Other Notes'!G253","v":0}]
[{"$f":"'Standing Data'!$D$12","v":{"$error":"#N/A"}},{"$f":"'Standing Data'!$F$9","v":0},{"$f":"'Standing Data'!#REF!","v":{"$error":"#REF!"}},"Fin.Return","G934",{"$f":"'Fin.Return - Other Notes'!G254","v":0}]
[{"$f":"'Standing Data'!$D$12","v":{"$error":"#N/A"}},{"$f":"'Standing Data'!$F$9","v":0},{"$f":"'Standing Data'!#REF!","v":{"$error":"#REF!"}},"Fin.Return","G935",{"$f":"'Fin.Return - Other Notes'!G255","v":0}]
[{"$f":"'Standing Data'!$D$12","v":{"$error":"#N/A"}},{"$f":"'Standing Data'!$F$9","v":0},{"$f":"'Standing Data'!#REF!","v":{"$error":"#REF!"}},"Fin.Return","G936",{"$f":"'Fin.Return - Other Notes'!G256","v":0}]
[{"$f":"'Standing Data'!$D$12","v":{"$error":"#N/A"}},{"$f":"'Standing Data'!$F$9","v":0},{"$f":"'Standing Data'!#REF!","v":{"$error":"#REF!"}},"Fin.Return","G938",{"$f":"'Fin.Return - Other Notes'!G258","v":0}]
[{"$f":"'Standing Data'!$D$12","v":{"$error":"#N/A"}},{"$f":"'Standing Data'!$F$9","v":0},{"$f":"'Standing Data'!#REF!","v":{"$error":"#REF!"}},"Fin.Return","G940",{"$f":"'Fin.Return - Other Notes'!G260","v":0}]
[{"$f":"'Standing Data'!$D$12","v":{"$error":"#N/A"}},{"$f":"'Standing Data'!$F$9","v":0},{"$f":"'Standing Data'!#REF!","v":{"$error":"#REF!"}},"Fin.Return","G942",{"$f":"'Fin.Return - Other Notes'!G262","v":0}]
[{"$f":"'Standing Data'!$D$12","v":{"$error":"#N/A"}},{"$f":"'Standing Data'!$F$9","v":0},{"$f":"'Standing Data'!#REF!","v":{"$error":"#REF!"}},"Fin.Return","G957",{"$f":"'Fin.Return - Other Notes'!#REF!","v":{"$error":"#REF!"}}]
[{"$f":"'Standing Data'!$D$12","v":{"$error":"#N/A"}},{"$f":"'Standing Data'!$F$9","v":0},{"$f":"'Standing Data'!#REF!","v":{"$error":"#REF!"}},"Fin.Return","G958",{"$f":"'Fin.Return - Other Notes'!#REF!","v":{"$error":"#REF!"}}]
[{"$f":"'Standing Data'!$D$12","v":{"$error":"#N/A"}},{"$f":"'Standing Data'!$F$9","v":0},{"$f":"'Standing Data'!#REF!","v":{"$error":"#REF!"}},"Fin.Return","G959",{"$f":"'Fin.Return - Other Notes'!#REF!","v":{"$error":"#REF!"}}]
[{"$f":"'Standing Data'!$D$12","v":{"$error":"#N/A"}},{"$f":"'Standing Data'!$F$9","v":0},{"$f":"'Standing Data'!#REF!","v":{"$error":"#REF!"}},"Fin.Return","G961",{"$f":"'Fin.Return - Other Notes'!#REF!","v":{"$error":"#REF!"}}]
[{"$f":"'Standing Data'!$D$12","v":{"$error":"#N/A"}},{"$f":"'Standing Data'!$F$9","v":0},{"$f":"'Standing Data'!#REF!","v":{"$error":"#REF!"}},"Fin.Return","G969",{"$f":"'Fin.Return - Other Notes'!G359","v":0}]
[{"$f":"'Standing Data'!$D$12","v":{"$error":"#N/A"}},{"$f":"'Standing Data'!$F$9","v":0},{"$f":"'Standing Data'!#REF!","v":{"$error":"#REF!"}},"Fin.Return","G970",{"$f":"'Fin.Return - Other Notes'!G360","v":0}]
[{"$f":"'Standing Data'!$D$12","v":{"$error":"#N/A"}},{"$f":"'Standing Data'!$F$9","v":0},{"$f":"'Standing Data'!#REF!","v":{"$error":"#REF!"}},"Fin.Return","G971",{"$f":"'Fin.Return - Other Notes'!G361","v":0}]
[{"$f":"'Standing Data'!$D$12","v":{"$error":"#N/A"}},{"$f":"'Standing Data'!$F$9","v":0},{"$f":"'Standing Data'!#REF!","v":{"$error":"#REF!"}},"Fin.Return","G973",{"$f":"'Fin.Return - Other Notes'!G363","v":0}]
[{"$f":"'Standing Data'!$D$12","v":{"$error":"#N/A"}},{"$f":"'Standing Data'!$F$9","v":0},{"$f":"'Standing Data'!#REF!","v":{"$error":"#REF!"}},"Fin.Return","G974",{"$f":"'Fin.Return - Other Notes'!G364","v":0}]
[{"$f":"'Standing Data'!$D$12","v":{"$error":"#N/A"}},{"$f":"'Standing Data'!$F$9","v":0},{"$f":"'Standing Data'!#REF!","v":{"$error":"#REF!"}},"Fin.Return","G976",{"$f":"'Fin.Return - Other Notes'!G366","v":0}]
[{"$f":"'Standing Data'!$D$12","v":{"$error":"#N/A"}},{"$f":"'Standing Data'!$F$9","v":0},{"$f":"'Standing Data'!#REF!","v":{"$error":"#REF!"}},"Fin.Return","G986",{"$f":"'Fin.Return - Other Notes'!G374","v":0}]
[{"$f":"'Standing Data'!$D$12","v":{"$error":"#N/A"}},{"$f":"'Standing Data'!$F$9","v":0},{"$f":"'Standing Data'!#REF!","v":{"$error":"#REF!"}},"Fin.Return","G987",{"$f":"'Fin.Return - Other Notes'!G375","v":0}]
[{"$f":"'Standing Data'!$D$12","v":{"$error":"#N/A"}},{"$f":"'Standing Data'!$F$9","v":0},{"$f":"'Standing Data'!#REF!","v":{"$error":"#REF!"}},"Fin.Return","G988",{"$f":"'Fin.Return - Other Notes'!G376","v":0}]
[{"$f":"'Standing Data'!$D$12","v":{"$error":"#N/A"}},{"$f":"'Standing Data'!$F$9","v":0},{"$f":"'Standing Data'!#REF!","v":{"$error":"#REF!"}},"Fin.Return","G990",{"$f":"'Fin.Return - Other Notes'!G378","v":0}]
[{"$f":"'Standing Data'!$D$12","v":{"$error":"#N/A"}},{"$f":"'Standing Data'!$F$9","v":0},{"$f":"'Standing Data'!#REF!","v":{"$error":"#REF!"}},"Fin.Return","G991",{"$f":"'Fin.Return - Other Notes'!G379","v":0}]
[{"$f":"'Standing Data'!$D$12","v":{"$error":"#N/A"}},{"$f":"'Standing Data'!$F$9","v":0},{"$f":"'Standing Data'!#REF!","v":{"$error":"#REF!"}},"Fin.Return","G992",{"$f":"'Fin.Return - Other Notes'!G380","v":0}]
[{"$f":"'Standing Data'!$D$12","v":{"$error":"#N/A"}},{"$f":"'Standing Data'!$F$9","v":0},{"$f":"'Standing Data'!#REF!","v":{"$error":"#REF!"}},"Fin.Return","G994",{"$f":"'Fin.Return - Other Notes'!G382","v":0}]
[{"$f":"'Standing Data'!$D$12","v":{"$error":"#N/A"}},{"$f":"'Standing Data'!$F$9","v":0},{"$f":"'Standing Data'!#REF!","v":{"$error":"#REF!"}},"Fin.Return","G995",{"$f":"'Fin.Return - Other Notes'!G383","v":0}]
[{"$f":"'Standing Data'!$D$12","v":{"$error":"#N/A"}},{"$f":"'Standing Data'!$F$9","v":0},{"$f":"'Standing Data'!#REF!","v":{"$error":"#REF!"}},"Fin.Return","G996",{"$f":"'Fin.Return - Other Notes'!G384","v":0}]
[{"$f":"'Standing Data'!$D$12","v":{"$error":"#N/A"}},{"$f":"'Standing Data'!$F$9","v":0},{"$f":"'Standing Data'!#REF!","v":{"$error":"#REF!"}},"Fin.Return","G998",{"$f":"'Fin.Return - Other Notes'!G386","v":0}]
[{"$f":"'Standing Data'!$D$12","v":{"$error":"#N/A"}},{"$f":"'Standing Data'!$F$9","v":0},{"$f":"'Standing Data'!#REF!","v":{"$error":"#REF!"}},"Fin.Return","G999",{"$f":"'Fin.Return - Other Notes'!G387","v":0}]
[{"$f":"'Standing Data'!$D$12","v":{"$error":"#N/A"}},{"$f":"'Standing Data'!$F$9","v":0},{"$f":"'Standing Data'!#REF!","v":{"$error":"#REF!"}},"Fin.Return","G1001",{"$f":"'Fin.Return - Other Notes'!G389","v":0}]
[{"$f":"'Standing Data'!$D$12","v":{"$error":"#N/A"}},{"$f":"'Standing Data'!$F$9","v":0},{"$f":"'Standing Data'!#REF!","v":{"$error":"#REF!"}},"Fin.Return","G1009",{"$f":"'Fin.Return - Other Notes'!G397","v":0}]
[{"$f":"'Standing Data'!$D$12","v":{"$error":"#N/A"}},{"$f":"'Standing Data'!$F$9","v":0},{"$f":"'Standing Data'!#REF!","v":{"$error":"#REF!"}},"Fin.Return","G1010",{"$f":"'Fin.Return - Other Notes'!G398","v":0}]
[{"$f":"'Standing Data'!$D$12","v":{"$error":"#N/A"}},{"$f":"'Standing Data'!$F$9","v":0},{"$f":"'Standing Data'!#REF!","v":{"$error":"#REF!"}},"Fin.Return","G1011",{"$f":"'Fin.Return - Other Notes'!G399","v":0}]
[{"$f":"'Standing Data'!$D$12","v":{"$error":"#N/A"}},{"$f":"'Standing Data'!$F$9","v":0},{"$f":"'Standing Data'!#REF!","v":{"$error":"#REF!"}},"Fin.Return","G1013",{"$f":"'Fin.Return - Other Notes'!G401","v":0}]
[{"$f":"'Standing Data'!$D$12","v":{"$error":"#N/A"}},{"$f":"'Standing Data'!$F$9","v":0},{"$f":"'Standing Data'!#REF!","v":{"$error":"#REF!"}},"Fin.Return","G1014",{"$f":"'Fin.Return - Other Notes'!G402","v":0}]
[{"$f":"'Standing Data'!$D$12","v":{"$error":"#N/A"}},{"$f":"'Standing Data'!$F$9","v":0},{"$f":"'Standing Data'!#REF!","v":{"$error":"#REF!"}},"Fin.Return","G1015",{"$f":"'Fin.Return - Other Notes'!G403","v":0}]
[{"$f":"'Standing Data'!$D$12","v":{"$error":"#N/A"}},{"$f":"'Standing Data'!$F$9","v":0},{"$f":"'Standing Data'!#REF!","v":{"$error":"#REF!"}},"Fin.Return","G1017",{"$f":"'Fin.Return - Other Notes'!G405","v":0}]
[{"$f":"'Standing Data'!$D$12","v":{"$error":"#N/A"}},{"$f":"'Standing Data'!$F$9","v":0},{"$f":"'Standing Data'!#REF!","v":{"$error":"#REF!"}},"Fin.Return","G1018",{"$f":"'Fin.Return - Other Notes'!G406","v":0}]
[{"$f":"'Standing Data'!$D$12","v":{"$error":"#N/A"}},{"$f":"'Standing Data'!$F$9","v":0},{"$f":"'Standing Data'!#REF!","v":{"$error":"#REF!"}},"Fin.Return","G1019",{"$f":"'Fin.Return - Other Notes'!G407","v":0}]
[{"$f":"'Standing Data'!$D$12","v":{"$error":"#N/A"}},{"$f":"'Standing Data'!$F$9","v":0},{"$f":"'Standing Data'!#REF!","v":{"$error":"#REF!"}},"Fin.Return","G1021",{"$f":"'Fin.Return - Other Notes'!G409","v":0}]
[{"$f":"'Standing Data'!$D$12","v":{"$error":"#N/A"}},{"$f":"'Standing Data'!$F$9","v":0},{"$f":"'Standing Data'!#REF!","v":{"$error":"#REF!"}},"Fin.Return","G1022",{"$f":"'Fin.Return - Other Notes'!G410","v":0}]
[{"$f":"'Standing Data'!$D$12","v":{"$error":"#N/A"}},{"$f":"'Standing Data'!$F$9","v":0},{"$f":"'Standing Data'!#REF!","v":{"$error":"#REF!"}},"Fin.Return","G1024",{"$f":"'Fin.Return - Other Notes'!G412","v":0}]
[{"$f":"'Standing Data'!$D$12","v":{"$error":"#N/A"}},{"$f":"'Standing Data'!$F$9","v":0},{"$f":"'Standing Data'!#REF!","v":{"$error":"#REF!"}},"Fin.Return","G1030",{"$f":"'Fin.Return - Other Notes'!#REF!","v":{"$error":"#REF!"}}]
[{"$f":"'Standing Data'!$D$12","v":{"$error":"#N/A"}},{"$f":"'Standing Data'!$F$9","v":0},{"$f":"'Standing Data'!#REF!","v":{"$error":"#REF!"}},"Fin.Return","G1031",{"$f":"'Fin.Return - Other Notes'!#REF!","v":{"$error":"#REF!"}}]
[{"$f":"'Standing Data'!$D$12","v":{"$error":"#N/A"}},{"$f":"'Standing Data'!$F$9","v":0},{"$f":"'Standing Data'!#REF!","v":{"$error":"#REF!"}},"Fin.Return","G1032",{"$f":"'Fin.Return - Other Notes'!#REF!","v":{"$error":"#REF!"}}]
[{"$f":"'Standing Data'!$D$12","v":{"$error":"#N/A"}},{"$f":"'Standing Data'!$F$9","v":0},{"$f":"'Standing Data'!#REF!","v":{"$error":"#REF!"}},"Fin.Return","G1034",{"$f":"'Fin.Return - Other Notes'!#REF!","v":{"$error":"#REF!"}}]
[{"$f":"'Standing Data'!$D$12","v":{"$error":"#N/A"}},{"$f":"'Standing Data'!$F$9","v":0},{"$f":"'Standing Data'!#REF!","v":{"$error":"#REF!"}},"Fin.Return","G1042",{"$f":"'Fin.Return - Other Notes'!G418","v":0}]
[{"$f":"'Standing Data'!$D$12","v":{"$error":"#N/A"}},{"$f":"'Standing Data'!$F$9","v":0},{"$f":"'Standing Data'!#REF!","v":{"$error":"#REF!"}},"Fin.Return","G1043",{"$f":"'Fin.Return - Other Notes'!G419","v":0}]
[{"$f":"'Standing Data'!$D$12","v":{"$error":"#N/A"}},{"$f":"'Standing Data'!$F$9","v":0},{"$f":"'Standing Data'!#REF!","v":{"$error":"#REF!"}},"Fin.Return","G1044",{"$f":"'Fin.Return - Other Notes'!G420","v":0}]
[{"$f":"'Standing Data'!$D$12","v":{"$error":"#N/A"}},{"$f":"'Standing Data'!$F$9","v":0},{"$f":"'Standing Data'!#REF!","v":{"$error":"#REF!"}},"Fin.Return","G1046",{"$f":"'Fin.Return - Other Notes'!G422","v":0}]
[{"$f":"'Standing Data'!$D$12","v":{"$error":"#N/A"}},{"$f":"'Standing Data'!$F$9","v":0},{"$f":"'Standing Data'!#REF!","v":{"$error":"#REF!"}},"Fin.Return","G1047",{"$f":"'Fin.Return - Other Notes'!G423","v":0}]
[{"$f":"'Standing Data'!$D$12","v":{"$error":"#N/A"}},{"$f":"'Standing Data'!$F$9","v":0},{"$f":"'Standing Data'!#REF!","v":{"$error":"#REF!"}},"Fin.Return","G1049",{"$f":"'Fin.Return - Other Notes'!G425","v":0}]
[{"$f":"'Standing Data'!$D$12","v":{"$error":"#N/A"}},{"$f":"'Standing Data'!$F$9","v":0},{"$f":"'Standing Data'!#REF!","v":{"$error":"#REF!"}},"Fin.Return","G1059",{"$f":"'Fin.Return - Other Notes'!G433","v":0}]
[{"$f":"'Standing Data'!$D$12","v":{"$error":"#N/A"}},{"$f":"'Standing Data'!$F$9","v":0},{"$f":"'Standing Data'!#REF!","v":{"$error":"#REF!"}},"Fin.Return","G1060",{"$f":"'Fin.Return - Other Notes'!G434","v":0}]
[{"$f":"'Standing Data'!$D$12","v":{"$error":"#N/A"}},{"$f":"'Standing Data'!$F$9","v":0},{"$f":"'Standing Data'!#REF!","v":{"$error":"#REF!"}},"Fin.Return","G1061",{"$f":"'Fin.Return - Other Notes'!G435","v":0}]
[{"$f":"'Standing Data'!$D$12","v":{"$error":"#N/A"}},{"$f":"'Standing Data'!$F$9","v":0},{"$f":"'Standing Data'!#REF!","v":{"$error":"#REF!"}},"Fin.Return","G1063",{"$f":"'Fin.Return - Other Notes'!G437","v":0}]
[{"$f":"'Standing Data'!$D$12","v":{"$error":"#N/A"}},{"$f":"'Standing Data'!$F$9","v":0},{"$f":"'Standing Data'!#REF!","v":{"$error":"#REF!"}},"Fin.Return","G1064",{"$f":"'Fin.Return - Other Notes'!G438","v":0}]
[{"$f":"'Standing Data'!$D$12","v":{"$error":"#N/A"}},{"$f":"'Standing Data'!$F$9","v":0},{"$f":"'Standing Data'!#REF!","v":{"$error":"#REF!"}},"Fin.Return","G1065",{"$f":"'Fin.Return - Other Notes'!G439","v":0}]
[{"$f":"'Standing Data'!$D$12","v":{"$error":"#N/A"}},{"$f":"'Standing Data'!$F$9","v":0},{"$f":"'Standing Data'!#REF!","v":{"$error":"#REF!"}},"Fin.Return","G1067",{"$f":"'Fin.Return - Other Notes'!G441","v":0}]
[{"$f":"'Standing Data'!$D$12","v":{"$error":"#N/A"}},{"$f":"'Standing Data'!$F$9","v":0},{"$f":"'Standing Data'!#REF!","v":{"$error":"#REF!"}},"Fin.Return","G1068",{"$f":"'Fin.Return - Other Notes'!G442","v":0}]
[{"$f":"'Standing Data'!$D$12","v":{"$error":"#N/A"}},{"$f":"'Standing Data'!$F$9","v":0},{"$f":"'Standing Data'!#REF!","v":{"$error":"#REF!"}},"Fin.Return","G1069",{"$f":"'Fin.Return - Other Notes'!G443","v":0}]
[{"$f":"'Standing Data'!$D$12","v":{"$error":"#N/A"}},{"$f":"'Standing Data'!$F$9","v":0},{"$f":"'Standing Data'!#REF!","v":{"$error":"#REF!"}},"Fin.Return","G1071",{"$f":"'Fin.Return - Other Notes'!G445","v":0}]
[{"$f":"'Standing Data'!$D$12","v":{"$error":"#N/A"}},{"$f":"'Standing Data'!$F$9","v":0},{"$f":"'Standing Data'!#REF!","v":{"$error":"#REF!"}},"Fin.Return","G1072",{"$f":"'Fin.Return - Other Notes'!G446","v":0}]
[{"$f":"'Standing Data'!$D$12","v":{"$error":"#N/A"}},{"$f":"'Standing Data'!$F$9","v":0},{"$f":"'Standing Data'!#REF!","v":{"$error":"#REF!"}},"Fin.Return","G1074",{"$f":"'Fin.Return - Other Notes'!G448","v":0}]
[{"$f":"'Standing Data'!$D$12","v":{"$error":"#N/A"}},{"$f":"'Standing Data'!$F$9","v":0},{"$f":"'Standing Data'!#REF!","v":{"$error":"#REF!"}},"Fin.Return","G1082",{"$f":"'Fin.Return - Other Notes'!G456","v":0}]
[{"$f":"'Standing Data'!$D$12","v":{"$error":"#N/A"}},{"$f":"'Standing Data'!$F$9","v":0},{"$f":"'Standing Data'!#REF!","v":{"$error":"#REF!"}},"Fin.Return","G1083",{"$f":"'Fin.Return - Other Notes'!G457","v":0}]
[{"$f":"'Standing Data'!$D$12","v":{"$error":"#N/A"}},{"$f":"'Standing Data'!$F$9","v":0},{"$f":"'Standing Data'!#REF!","v":{"$error":"#REF!"}},"Fin.Return","G1084",{"$f":"'Fin.Return - Other Notes'!G458","v":0}]
[{"$f":"'Standing Data'!$D$12","v":{"$error":"#N/A"}},{"$f":"'Standing Data'!$F$9","v":0},{"$f":"'Standing Data'!#REF!","v":{"$error":"#REF!"}},"Fin.Return","G1086",{"$f":"'Fin.Return - Other Notes'!G460","v":0}]
[{"$f":"'Standing Data'!$D$12","v":{"$error":"#N/A"}},{"$f":"'Standing Data'!$F$9","v":0},{"$f":"'Standing Data'!#REF!","v":{"$error":"#REF!"}},"Fin.Return","G1087",{"$f":"'Fin.Return - Other Notes'!G461","v":0}]
[{"$f":"'Standing Data'!$D$12","v":{"$error":"#N/A"}},{"$f":"'Standing Data'!$F$9","v":0},{"$f":"'Standing Data'!#REF!","v":{"$error":"#REF!"}},"Fin.Return","G1088",{"$f":"'Fin.Return - Other Notes'!G462","v":0}]
[{"$f":"'Standing Data'!$D$12","v":{"$error":"#N/A"}},{"$f":"'Standing Data'!$F$9","v":0},{"$f":"'Standing Data'!#REF!","v":{"$error":"#REF!"}},"Fin.Return","G1090",{"$f":"'Fin.Return - Other Notes'!G464","v":0}]
[{"$f":"'Standing Data'!$D$12","v":{"$error":"#N/A"}},{"$f":"'Standing Data'!$F$9","v":0},{"$f":"'Standing Data'!#REF!","v":{"$error":"#REF!"}},"Fin.Return","G1091",{"$f":"'Fin.Return - Other Notes'!G465","v":0}]
[{"$f":"'Standing Data'!$D$12","v":{"$error":"#N/A"}},{"$f":"'Standing Data'!$F$9","v":0},{"$f":"'Standing Data'!#REF!","v":{"$error":"#REF!"}},"Fin.Return","G1092",{"$f":"'Fin.Return - Other Notes'!G466","v":0}]
[{"$f":"'Standing Data'!$D$12","v":{"$error":"#N/A"}},{"$f":"'Standing Data'!$F$9","v":0},{"$f":"'Standing Data'!#REF!","v":{"$error":"#REF!"}},"Fin.Return","G1094",{"$f":"'Fin.Return - Other Notes'!G468","v":0}]
[{"$f":"'Standing Data'!$D$12","v":{"$error":"#N/A"}},{"$f":"'Standing Data'!$F$9","v":0},{"$f":"'Standing Data'!#REF!","v":{"$error":"#REF!"}},"Fin.Return","G1095",{"$f":"'Fin.Return - Other Notes'!G469","v":0}]
[{"$f":"'Standing Data'!$D$12","v":{"$error":"#N/A"}},{"$f":"'Standing Data'!$F$9","v":0},{"$f":"'Standing Data'!#REF!","v":{"$error":"#REF!"}},"Fin.Return","G1097",{"$f":"'Fin.Return - Other Notes'!G471","v":0}]
[{"$f":"'Standing Data'!$D$12","v":{"$error":"#N/A"}},{"$f":"'Standing Data'!$F$9","v":0},{"$f":"'Standing Data'!#REF!","v":{"$error":"#REF!"}},"Fin.Return","G1102",{"$f":"'Fin.Return - Other Notes'!G476","v":0}]
[{"$f":"'Standing Data'!$D$12","v":{"$error":"#N/A"}},{"$f":"'Standing Data'!$F$9","v":0},{"$f":"'Standing Data'!#REF!","v":{"$error":"#REF!"}},"Fin.Return","G1103",{"$f":"'Fin.Return - Other Notes'!G477","v":0}]
[{"$f":"'Standing Data'!$D$12","v":{"$error":"#N/A"}},{"$f":"'Standing Data'!$F$9","v":0},{"$f":"'Standing Data'!#REF!","v":{"$error":"#REF!"}},"Fin.Return","G1104",{"$f":"'Fin.Return - Other Notes'!G478","v":0}]
[{"$f":"'Standing Data'!$D$12","v":{"$error":"#N/A"}},{"$f":"'Standing Data'!$F$9","v":0},{"$f":"'Standing Data'!#REF!","v":{"$error":"#REF!"}},"Fin.Return","G1106",{"$f":"'Fin.Return - Other Notes'!G480","v":0}]
[{"$f":"'Standing Data'!$D$12","v":{"$error":"#N/A"}},{"$f":"'Standing Data'!$F$9","v":0},{"$f":"'Standing Data'!#REF!","v":{"$error":"#REF!"}},"Fin.Return","G1111",{"$f":"'Fin.Return - Other Notes'!G485","v":0}]
[{"$f":"'Standing Data'!$D$12","v":{"$error":"#N/A"}},{"$f":"'Standing Data'!$F$9","v":0},{"$f":"'Standing Data'!#REF!","v":{"$error":"#REF!"}},"Fin.Return","G1112",{"$f":"'Fin.Return - Other Notes'!G486","v":0}]
[{"$f":"'Standing Data'!$D$12","v":{"$error":"#N/A"}},{"$f":"'Standing Data'!$F$9","v":0},{"$f":"'Standing Data'!#REF!","v":{"$error":"#REF!"}},"Fin.Return","G1113",{"$f":"'Fin.Return - Other Notes'!G487","v":0}]
[{"$f":"'Standing Data'!$D$12","v":{"$error":"#N/A"}},{"$f":"'Standing Data'!$F$9","v":0},{"$f":"'Standing Data'!#REF!","v":{"$error":"#REF!"}},"Fin.Return","G1115",{"$f":"'Fin.Return - Other Notes'!G489","v":0}]
[{"$f":"'Standing Data'!$D$12","v":{"$error":"#N/A"}},{"$f":"'Standing Data'!$F$9","v":0},{"$f":"'Standing Data'!#REF!","v":{"$error":"#REF!"}},"Fin.Return","G1121",{"$f":"'Fin.Return - Other Notes'!G495","v":0}]
[{"$f":"'Standing Data'!$D$12","v":{"$error":"#N/A"}},{"$f":"'Standing Data'!$F$9","v":0},{"$f":"'Standing Data'!#REF!","v":{"$error":"#REF!"}},"Fin.Return","G1122",{"$f":"'Fin.Return - Other Notes'!G496","v":0}]
[{"$f":"'Standing Data'!$D$12","v":{"$error":"#N/A"}},{"$f":"'Standing Data'!$F$9","v":0},{"$f":"'Standing Data'!#REF!","v":{"$error":"#REF!"}},"Fin.Return","G1123",{"$f":"'Fin.Return - Other Notes'!G497","v":0}]
[{"$f":"'Standing Data'!$D$12","v":{"$error":"#N/A"}},{"$f":"'Standing Data'!$F$9","v":0},{"$f":"'Standing Data'!#REF!","v":{"$error":"#REF!"}},"Fin.Return","G1125",{"$f":"'Fin.Return - Other Notes'!G499","v":0}]
[{"$f":"'Standing Data'!$D$12","v":{"$error":"#N/A"}},{"$f":"'Standing Data'!$F$9","v":0},{"$f":"'Standing Data'!#REF!","v":{"$error":"#REF!"}},"Fin.Return","G1131",{"$f":"'Fin.Return - Other Notes'!G505","v":0}]
[{"$f":"'Standing Data'!$D$12","v":{"$error":"#N/A"}},{"$f":"'Standing Data'!$F$9","v":0},{"$f":"'Standing Data'!#REF!","v":{"$error":"#REF!"}},"Fin.Return","G1132",{"$f":"'Fin.Return - Other Notes'!G506","v":0}]
[{"$f":"'Standing Data'!$D$12","v":{"$error":"#N/A"}},{"$f":"'Standing Data'!$F$9","v":0},{"$f":"'Standing Data'!#REF!","v":{"$error":"#REF!"}},"Fin.Return","G1133",{"$f":"'Fin.Return - Other Notes'!G507","v":0}]
[{"$f":"'Standing Data'!$D$12","v":{"$error":"#N/A"}},{"$f":"'Standing Data'!$F$9","v":0},{"$f":"'Standing Data'!#REF!","v":{"$error":"#REF!"}},"Fin.Return","G1135",{"$f":"'Fin.Return - Other Notes'!G509","v":0}]
[{"$f":"'Standing Data'!$D$12","v":{"$error":"#N/A"}},{"$f":"'Standing Data'!$F$9","v":0},{"$f":"'Standing Data'!#REF!","v":{"$error":"#REF!"}},"Fin.Return","G1140",{"$f":"'Fin.Return - Other Notes'!G514","v":0}]
[{"$f":"'Standing Data'!$D$12","v":{"$error":"#N/A"}},{"$f":"'Standing Data'!$F$9","v":0},{"$f":"'Standing Data'!#REF!","v":{"$error":"#REF!"}},"Fin.Return","G1141",{"$f":"'Fin.Return - Other Notes'!G515","v":0}]
[{"$f":"'Standing Data'!$D$12","v":{"$error":"#N/A"}},{"$f":"'Standing Data'!$F$9","v":0},{"$f":"'Standing Data'!#REF!","v":{"$error":"#REF!"}},"Fin.Return","G1142",{"$f":"'Fin.Return - Other Notes'!G516","v":0}]
[{"$f":"'Standing Data'!$D$12","v":{"$error":"#N/A"}},{"$f":"'Standing Data'!$F$9","v":0},{"$f":"'Standing Data'!#REF!","v":{"$error":"#REF!"}},"Fin.Return","G1144",{"$f":"'Fin.Return - Other Notes'!G518","v":0}]
[{"$f":"'Standing Data'!$D$12","v":{"$error":"#N/A"}},{"$f":"'Standing Data'!$F$9","v":0},{"$f":"'Standing Data'!#REF!","v":{"$error":"#REF!"}},"Fin.Return","G1149",{"$f":"'Fin.Return - SOFA'!#REF!","v":{"$error":"#REF!"}}]
[{"$f":"'Standing Data'!$D$12","v":{"$error":"#N/A"}},{"$f":"'Standing Data'!$F$9","v":0},{"$f":"'Standing Data'!#REF!","v":{"$error":"#REF!"}},"Fin.Return","G1150",{"$f":"'Fin.Return - SOFA'!#REF!","v":{"$error":"#REF!"}}]
[{"$f":"'Standing Data'!$D$12","v":{"$error":"#N/A"}},{"$f":"'Standing Data'!$F$9","v":0},{"$f":"'Standing Data'!#REF!","v":{"$error":"#REF!"}},"Fin.Return","G1151",{"$f":"'Fin.Return - SOFA'!#REF!","v":{"$error":"#REF!"}}]
[{"$f":"'Standing Data'!$D$12","v":{"$error":"#N/A"}},{"$f":"'Standing Data'!$F$9","v":0},{"$f":"'Standing Data'!#REF!","v":{"$error":"#REF!"}},"Fin.Return","G1153",{"$f":"'Fin.Return - SOFA'!#REF!","v":{"$error":"#REF!"}}]
[{"$f":"'Standing Data'!$D$12","v":{"$error":"#N/A"}},{"$f":"'Standing Data'!$F$9","v":0},{"$f":"'Standing Data'!#REF!","v":{"$error":"#REF!"}},"Fin.Return","G1159",{"$f":"'Fin.Return - SOFA'!#REF!","v":{"$error":"#REF!"}}]
[{"$f":"'Standing Data'!$D$12","v":{"$error":"#N/A"}},{"$f":"'Standing Data'!$F$9","v":0},{"$f":"'Standing Data'!#REF!","v":{"$error":"#REF!"}},"Fin.Return","G1160",{"$f":"'Fin.Return - SOFA'!#REF!","v":{"$error":"#REF!"}}]
[{"$f":"'Standing Data'!$D$12","v":{"$error":"#N/A"}},{"$f":"'Standing Data'!$F$9","v":0},{"$f":"'Standing Data'!#REF!","v":{"$error":"#REF!"}},"Fin.Return","G1161",{"$f":"'Fin.Return - SOFA'!#REF!","v":{"$error":"#REF!"}}]
[{"$f":"'Standing Data'!$D$12","v":{"$error":"#N/A"}},{"$f":"'Standing Data'!$F$9","v":0},{"$f":"'Standing Data'!#REF!","v":{"$error":"#REF!"}},"Fin.Return","G1162",{"$f":"'Fin.Return - SOFA'!#REF!","v":{"$error":"#REF!"}}]
[{"$f":"'Standing Data'!$D$12","v":{"$error":"#N/A"}},{"$f":"'Standing Data'!$F$9","v":0},{"$f":"'Standing Data'!#REF!","v":{"$error":"#REF!"}},"Fin.Return","G1163",{"$f":"'Fin.Return - SOFA'!#REF!","v":{"$error":"#REF!"}}]
[{"$f":"'Standing Data'!$D$12","v":{"$error":"#N/A"}},{"$f":"'Standing Data'!$F$9","v":0},{"$f":"'Standing Data'!#REF!","v":{"$error":"#REF!"}},"Fin.Return","G1164",{"$f":"'Fin.Return - SOFA'!#REF!","v":{"$error":"#REF!"}}]
[{"$f":"'Standing Data'!$D$12","v":{"$error":"#N/A"}},{"$f":"'Standing Data'!$F$9","v":0},{"$f":"'Standing Data'!#REF!","v":{"$error":"#REF!"}},"Fin.Return","G1165",{"$f":"'Fin.Return - SOFA'!#REF!","v":{"$error":"#REF!"}}]
[{"$f":"'Standing Data'!$D$12","v":{"$error":"#N/A"}},{"$f":"'Standing Data'!$F$9","v":0},{"$f":"'Standing Data'!#REF!","v":{"$error":"#REF!"}},"Fin.Return","G1166",{"$f":"'Fin.Return - SOFA'!#REF!","v":{"$error":"#REF!"}}]
[{"$f":"'Standing Data'!$D$12","v":{"$error":"#N/A"}},{"$f":"'Standing Data'!$F$9","v":0},{"$f":"'Standing Data'!#REF!","v":{"$error":"#REF!"}},"Fin.Return","G1167",{"$f":"'Fin.Return - SOFA'!#REF!","v":{"$error":"#REF!"}}]
[{"$f":"'Standing Data'!$D$12","v":{"$error":"#N/A"}},{"$f":"'Standing Data'!$F$9","v":0},{"$f":"'Standing Data'!#REF!","v":{"$error":"#REF!"}},"Fin.Return","G1168",{"$f":"'Fin.Return - SOFA'!#REF!","v":{"$error":"#REF!"}}]
[{"$f":"'Standing Data'!$D$12","v":{"$error":"#N/A"}},{"$f":"'Standing Data'!$F$9","v":0},{"$f":"'Standing Data'!#REF!","v":{"$error":"#REF!"}},"Fin.Return","G1169",{"$f":"'Fin.Return - SOFA'!#REF!","v":{"$error":"#REF!"}}]
[{"$f":"'Standing Data'!$D$12","v":{"$error":"#N/A"}},{"$f":"'Standing Data'!$F$9","v":0},{"$f":"'Standing Data'!#REF!","v":{"$error":"#REF!"}},"Fin.Return","G1170",{"$f":"'Fin.Return - SOFA'!#REF!","v":{"$error":"#REF!"}}]
[{"$f":"'Standing Data'!$D$12","v":{"$error":"#N/A"}},{"$f":"'Standing Data'!$F$9","v":0},{"$f":"'Standing Data'!#REF!","v":{"$error":"#REF!"}},"Fin.Return","G1171",{"$f":"'Fin.Return - SOFA'!#REF!","v":{"$error":"#REF!"}}]
[{"$f":"'Standing Data'!$D$12","v":{"$error":"#N/A"}},{"$f":"'Standing Data'!$F$9","v":0},{"$f":"'Standing Data'!#REF!","v":{"$error":"#REF!"}},"Fin.Return","G1172",{"$f":"'Fin.Return - SOFA'!#REF!","v":{"$error":"#REF!"}}]
[{"$f":"'Standing Data'!$D$12","v":{"$error":"#N/A"}},{"$f":"'Standing Data'!$F$9","v":0},{"$f":"'Standing Data'!#REF!","v":{"$error":"#REF!"}},"Fin.Return","G1180",{"$f":"'Fin.Return - Other Notes'!G568","v":0}]
[{"$f":"'Standing Data'!$D$12","v":{"$error":"#N/A"}},{"$f":"'Standing Data'!$F$9","v":0},{"$f":"'Standing Data'!#REF!","v":{"$error":"#REF!"}},"Fin.Return","G1181",{"$f":"'Fin.Return - Other Notes'!G569","v":0}]
[{"$f":"'Standing Data'!$D$12","v":{"$error":"#N/A"}},{"$f":"'Standing Data'!$F$9","v":0},{"$f":"'Standing Data'!#REF!","v":{"$error":"#REF!"}},"Fin.Return","G1182",{"$f":"'Fin.Return - Other Notes'!G570","v":0}]
[{"$f":"'Standing Data'!$D$12","v":{"$error":"#N/A"}},{"$f":"'Standing Data'!$F$9","v":0},{"$f":"'Standing Data'!#REF!","v":{"$error":"#REF!"}},"Fin.Return","G1183",{"$f":"'Fin.Return - Other Notes'!G571","v":0}]
[{"$f":"'Standing Data'!$D$12","v":{"$error":"#N/A"}},{"$f":"'Standing Data'!$F$9","v":0},{"$f":"'Standing Data'!#REF!","v":{"$error":"#REF!"}},"Fin.Return","G1184",{"$f":"'Fin.Return - Other Notes'!G572","v":0}]
[{"$f":"'Standing Data'!$D$12","v":{"$error":"#N/A"}},{"$f":"'Standing Data'!$F$9","v":0},{"$f":"'Standing Data'!#REF!","v":{"$error":"#REF!"}},"Fin.Return","G1185",{"$f":"'Fin.Return - Other Notes'!G573","v":0}]
[{"$f":"'Standing Data'!$D$12","v":{"$error":"#N/A"}},{"$f":"'Standing Data'!$F$9","v":0},{"$f":"'Standing Data'!#REF!","v":{"$error":"#REF!"}},"Fin.Return","G1186",{"$f":"'Fin.Return - Other Notes'!G574","v":0}]
[{"$f":"'Standing Data'!$D$12","v":{"$error":"#N/A"}},{"$f":"'Standing Data'!$F$9","v":0},{"$f":"'Standing Data'!#REF!","v":{"$error":"#REF!"}},"Fin.Return","G1187",{"$f":"'Fin.Return - Other Notes'!G575","v":0}]
[{"$f":"'Standing Data'!$D$12","v":{"$error":"#N/A"}},{"$f":"'Standing Data'!$F$9","v":0},{"$f":"'Standing Data'!#REF!","v":{"$error":"#REF!"}},"Fin.Return","G1188",{"$f":"'Fin.Return - Other Notes'!G576","v":0}]
[{"$f":"'Standing Data'!$D$12","v":{"$error":"#N/A"}},{"$f":"'Standing Data'!$F$9","v":0},{"$f":"'Standing Data'!#REF!","v":{"$error":"#REF!"}},"Fin.Return","G1189",{"$f":"'Fin.Return - Other Notes'!G577","v":0}]
[{"$f":"'Standing Data'!$D$12","v":{"$error":"#N/A"}},{"$f":"'Standing Data'!$F$9","v":0},{"$f":"'Standing Data'!#REF!","v":{"$error":"#REF!"}},"Fin.Return","G1190",{"$f":"'Fin.Return - Other Notes'!G578","v":0}]
[{"$f":"'Standing Data'!$D$12","v":{"$error":"#N/A"}},{"$f":"'Standing Data'!$F$9","v":0},{"$f":"'Standing Data'!#REF!","v":{"$error":"#REF!"}},"Fin.Return","G1191",{"$f":"'Fin.Return - Other Notes'!G579","v":0}]
[{"$f":"'Standing Data'!$D$12","v":{"$error":"#N/A"}},{"$f":"'Standing Data'!$F$9","v":0},{"$f":"'Standing Data'!#REF!","v":{"$error":"#REF!"}},"Fin.Return","G1192",{"$f":"'Fin.Return - Other Notes'!G580","v":0}]
[{"$f":"'Standing Data'!$D$12","v":{"$error":"#N/A"}},{"$f":"'Standing Data'!$F$9","v":0},{"$f":"'Standing Data'!#REF!","v":{"$error":"#REF!"}},"Fin.Return","G1193",{"$f":"'Fin.Return - Other Notes'!G581","v":0}]
[{"$f":"'Standing Data'!$D$12","v":{"$error":"#N/A"}},{"$f":"'Standing Data'!$F$9","v":0},{"$f":"'Standing Data'!#REF!","v":{"$error":"#REF!"}},"Fin.Return","G1194",{"$f":"'Fin.Return - Other Notes'!G582","v":0}]
[{"$f":"'Standing Data'!$D$12","v":{"$error":"#N/A"}},{"$f":"'Standing Data'!$F$9","v":0},{"$f":"'Standing Data'!#REF!","v":{"$error":"#REF!"}},"Fin.Return","G1195",{"$f":"'Fin.Return - Other Notes'!G583","v":0}]
[{"$f":"'Standing Data'!$D$12","v":{"$error":"#N/A"}},{"$f":"'Standing Data'!$F$9","v":0},{"$f":"'Standing Data'!#REF!","v":{"$error":"#REF!"}},"Fin.Return","G1196",{"$f":"'Fin.Return - Other Notes'!G584","v":0}]
[{"$f":"'Standing Data'!$D$12","v":{"$error":"#N/A"}},{"$f":"'Standing Data'!$F$9","v":0},{"$f":"'Standing Data'!#REF!","v":{"$error":"#REF!"}},"Fin.Return","G1197",{"$f":"'Fin.Return - Other Notes'!G585","v":0}]
[{"$f":"'Standing Data'!$D$12","v":{"$error":"#N/A"}},{"$f":"'Standing Data'!$F$9","v":0},{"$f":"'Standing Data'!#REF!","v":{"$error":"#REF!"}},"Fin.Return","G1198",{"$f":"'Fin.Return - Other Notes'!G586","v":0}]
[{"$f":"'Standing Data'!$D$12","v":{"$error":"#N/A"}},{"$f":"'Standing Data'!$F$9","v":0},{"$f":"'Standing Data'!#REF!","v":{"$error":"#REF!"}},"Fin.Return","G1199",{"$f":"'Fin.Return - Other Notes'!G587","v":0}]
[{"$f":"'Standing Data'!$D$12","v":{"$error":"#N/A"}},{"$f":"'Standing Data'!$F$9","v":0},{"$f":"'Standing Data'!#REF!","v":{"$error":"#REF!"}},"Fin.Return","G1200",{"$f":"'Fin.Return - Other Notes'!G588","v":0}]
[{"$f":"'Standing Data'!$D$12","v":{"$error":"#N/A"}},{"$f":"'Standing Data'!$F$9","v":0},{"$f":"'Standing Data'!#REF!","v":{"$error":"#REF!"}},"Fin.Return","G1201",{"$f":"'Fin.Return - Other Notes'!G589","v":0}]
[{"$f":"'Standing Data'!$D$12","v":{"$error":"#N/A"}},{"$f":"'Standing Data'!$F$9","v":0},{"$f":"'Standing Data'!#REF!","v":{"$error":"#REF!"}},"Fin.Return","G1202",{"$f":"'Fin.Return - Other Notes'!G590","v":0}]
[{"$f":"'Standing Data'!$D$12","v":{"$error":"#N/A"}},{"$f":"'Standing Data'!$F$9","v":0},{"$f":"'Standing Data'!#REF!","v":{"$error":"#REF!"}},"Fin.Return","G1203",{"$f":"'Fin.Return - Other Notes'!G591","v":0}]
[{"$f":"'Standing Data'!$D$12","v":{"$error":"#N/A"}},{"$f":"'Standing Data'!$F$9","v":0},{"$f":"'Standing Data'!#REF!","v":{"$error":"#REF!"}},"Fin.Return","G1204",{"$f":"'Fin.Return - Other Notes'!G592","v":0}]
[{"$f":"'Standing Data'!$D$12","v":{"$error":"#N/A"}},{"$f":"'Standing Data'!$F$9","v":0},{"$f":"'Standing Data'!#REF!","v":{"$error":"#REF!"}},"Fin.Return","G1205",{"$f":"'Fin.Return - Other Notes'!G593","v":0}]
[{"$f":"'Standing Data'!$D$12","v":{"$error":"#N/A"}},{"$f":"'Standing Data'!$F$9","v":0},{"$f":"'Standing Data'!#REF!","v":{"$error":"#REF!"}},"Fin.Return","G1206",{"$f":"'Fin.Return - Other Notes'!G594","v":0}]
[{"$f":"'Standing Data'!$D$12","v":{"$error":"#N/A"}},{"$f":"'Standing Data'!$F$9","v":0},{"$f":"'Standing Data'!#REF!","v":{"$error":"#REF!"}},"Fin.Return","G1207",{"$f":"'Fin.Return - Other Notes'!G595","v":0}]
[{"$f":"'Standing Data'!$D$12","v":{"$error":"#N/A"}},{"$f":"'Standing Data'!$F$9","v":0},{"$f":"'Standing Data'!#REF!","v":{"$error":"#REF!"}},"Fin.Return","G1208",{"$f":"'Fin.Return - Other Notes'!G596","v":0}]
[{"$f":"'Standing Data'!$D$12","v":{"$error":"#N/A"}},{"$f":"'Standing Data'!$F$9","v":0},{"$f":"'Standing Data'!#REF!","v":{"$error":"#REF!"}},"Fin.Return","G1209",{"$f":"'Fin.Return - Other Notes'!G597","v":0}]
[{"$f":"'Standing Data'!$D$12","v":{"$error":"#N/A"}},{"$f":"'Standing Data'!$F$9","v":0},{"$f":"'Standing Data'!#REF!","v":{"$error":"#REF!"}},"Fin.Return","G1210",{"$f":"'Fin.Return - Other Notes'!G598","v":0}]
[{"$f":"'Standing Data'!$D$12","v":{"$error":"#N/A"}},{"$f":"'Standing Data'!$F$9","v":0},{"$f":"'Standing Data'!#REF!","v":{"$error":"#REF!"}},"Fin.Return","G1211",{"$f":"'Fin.Return - Other Notes'!G599","v":0}]
[{"$f":"'Standing Data'!$D$12","v":{"$error":"#N/A"}},{"$f":"'Standing Data'!$F$9","v":0},{"$f":"'Standing Data'!#REF!","v":{"$error":"#REF!"}},"Fin.Return","G1212",{"$f":"'Fin.Return - Other Notes'!G600","v":0}]
[{"$f":"'Standing Data'!$D$12","v":{"$error":"#N/A"}},{"$f":"'Standing Data'!$F$9","v":0},{"$f":"'Standing Data'!#REF!","v":{"$error":"#REF!"}},"Fin.Return","G1213",{"$f":"'Fin.Return - Other Notes'!G601","v":0}]
[{"$f":"'Standing Data'!$D$12","v":{"$error":"#N/A"}},{"$f":"'Standing Data'!$F$9","v":0},{"$f":"'Standing Data'!#REF!","v":{"$error":"#REF!"}},"Fin.Return","G1214",{"$f":"'Fin.Return - Other Notes'!G602","v":0}]
[{"$f":"'Standing Data'!$D$12","v":{"$error":"#N/A"}},{"$f":"'Standing Data'!$F$9","v":0},{"$f":"'Standing Data'!#REF!","v":{"$error":"#REF!"}},"Fin.Return","G1215",{"$f":"'Fin.Return - Other Notes'!G603","v":0}]
[{"$f":"'Standing Data'!$D$12","v":{"$error":"#N/A"}},{"$f":"'Standing Data'!$F$9","v":0},{"$f":"'Standing Data'!#REF!","v":{"$error":"#REF!"}},"Fin.Return","G1216",{"$f":"'Fin.Return - Other Notes'!G604","v":0}]
[{"$f":"'Standing Data'!$D$12","v":{"$error":"#N/A"}},{"$f":"'Standing Data'!$F$9","v":0},{"$f":"'Standing Data'!#REF!","v":{"$error":"#REF!"}},"Fin.Return","G1217",{"$f":"'Fin.Return - Other Notes'!G605","v":0}]
[{"$f":"'Standing Data'!$D$12","v":{"$error":"#N/A"}},{"$f":"'Standing Data'!$F$9","v":0},{"$f":"'Standing Data'!#REF!","v":{"$error":"#REF!"}},"Fin.Return","G1218",{"$f":"'Fin.Return - Other Notes'!G606","v":0}]
[{"$f":"'Standing Data'!$D$12","v":{"$error":"#N/A"}},{"$f":"'Standing Data'!$F$9","v":0},{"$f":"'Standing Data'!#REF!","v":{"$error":"#REF!"}},"Fin.Return","G1219",{"$f":"'Fin.Return - Other Notes'!G607","v":0}]
[{"$f":"'Standing Data'!$D$12","v":{"$error":"#N/A"}},{"$f":"'Standing Data'!$F$9","v":0},{"$f":"'Standing Data'!#REF!","v":{"$error":"#REF!"}},"Fin.Return","G1220",{"$f":"'Fin.Return - Other Notes'!G608","v":0}]
[{"$f":"'Standing Data'!$D$12","v":{"$error":"#N/A"}},{"$f":"'Standing Data'!$F$9","v":0},{"$f":"'Standing Data'!#REF!","v":{"$error":"#REF!"}},"Fin.Return","G1221",{"$f":"'Fin.Return - Other Notes'!#REF!","v":{"$error":"#REF!"}}]
[{"$f":"'Standing Data'!$D$12","v":{"$error":"#N/A"}},{"$f":"'Standing Data'!$F$9","v":0},{"$f":"'Standing Data'!#REF!","v":{"$error":"#REF!"}},"Fin.Return","G1222",{"$f":"'Fin.Return - Other Notes'!#REF!","v":{"$error":"#REF!"}}]
[{"$f":"'Standing Data'!$D$12","v":{"$error":"#N/A"}},{"$f":"'Standing Data'!$F$9","v":0},{"$f":"'Standing Data'!#REF!","v":{"$error":"#REF!"}},"Fin.Return","G1223",{"$f":"'Fin.Return - Other Notes'!#REF!","v":{"$error":"#REF!"}}]
[{"$f":"'Standing Data'!$D$12","v":{"$error":"#N/A"}},{"$f":"'Standing Data'!$F$9","v":0},{"$f":"'Standing Data'!#REF!","v":{"$error":"#REF!"}},"Fin.Return","G1224",{"$f":"'Fin.Return - Other Notes'!#REF!","v":{"$error":"#REF!"}}]
[{"$f":"'Standing Data'!$D$12","v":{"$error":"#N/A"}},{"$f":"'Standing Data'!$F$9","v":0},{"$f":"'Standing Data'!#REF!","v":{"$error":"#REF!"}},"Fin.Return","G1225",{"$f":"'Fin.Return - Other Notes'!#REF!","v":{"$error":"#REF!"}}]
[{"$f":"'Standing Data'!$D$12","v":{"$error":"#N/A"}},{"$f":"'Standing Data'!$F$9","v":0},{"$f":"'Standing Data'!#REF!","v":{"$error":"#REF!"}},"Fin.Return","G1226",{"$f":"'Fin.Return - Other Notes'!#REF!","v":{"$error":"#REF!"}}]
[{"$f":"'Standing Data'!$D$12","v":{"$error":"#N/A"}},{"$f":"'Standing Data'!$F$9","v":0},{"$f":"'Standing Data'!#REF!","v":{"$error":"#REF!"}},"Fin.Return","G1227",{"$f":"'Fin.Return - Other Notes'!#REF!","v":{"$error":"#REF!"}}]
[{"$f":"'Standing Data'!$D$12","v":{"$error":"#N/A"}},{"$f":"'Standing Data'!$F$9","v":0},{"$f":"'Standing Data'!#REF!","v":{"$error":"#REF!"}},"Fin.Return","G1228",{"$f":"'Fin.Return - Other Notes'!#REF!","v":{"$error":"#REF!"}}]
[{"$f":"'Standing Data'!$D$12","v":{"$error":"#N/A"}},{"$f":"'Standing Data'!$F$9","v":0},{"$f":"'Standing Data'!#REF!","v":{"$error":"#REF!"}},"Fin.Return","G1229",{"$f":"'Fin.Return - Other Notes'!#REF!","v":{"$error":"#REF!"}}]
[{"$f":"'Standing Data'!$D$12","v":{"$error":"#N/A"}},{"$f":"'Standing Data'!$F$9","v":0},{"$f":"'Standing Data'!#REF!","v":{"$error":"#REF!"}},"Fin.Return","G1230",{"$f":"'Fin.Return - Other Notes'!#REF!","v":{"$error":"#REF!"}}]
[{"$f":"'Standing Data'!$D$12","v":{"$error":"#N/A"}},{"$f":"'Standing Data'!$F$9","v":0},{"$f":"'Standing Data'!#REF!","v":{"$error":"#REF!"}},"Fin.Return","G1237",{"$f":"'Fin.Return - Other Notes'!G615","v":0}]
[{"$f":"'Standing Data'!$D$12","v":{"$error":"#N/A"}},{"$f":"'Standing Data'!$F$9","v":0},{"$f":"'Standing Data'!#REF!","v":{"$error":"#REF!"}},"Fin.Return","G1238",{"$f":"'Fin.Return - Other Notes'!G616","v":0}]
[{"$f":"'Standing Data'!$D$12","v":{"$error":"#N/A"}},{"$f":"'Standing Data'!$F$9","v":0},{"$f":"'Standing Data'!#REF!","v":{"$error":"#REF!"}},"Fin.Return","G1239",{"$f":"'Fin.Return - Other Notes'!G617","v":0}]
[{"$f":"'Standing Data'!$D$12","v":{"$error":"#N/A"}},{"$f":"'Standing Data'!$F$9","v":0},{"$f":"'Standing Data'!#REF!","v":{"$error":"#REF!"}},"Fin.Return","G1240",{"$f":"'Fin.Return - Other Notes'!G618","v":0}]
[{"$f":"'Standing Data'!$D$12","v":{"$error":"#N/A"}},{"$f":"'Standing Data'!$F$9","v":0},{"$f":"'Standing Data'!#REF!","v":{"$error":"#REF!"}},"Fin.Return","G1241",{"$f":"'Fin.Return - Other Notes'!G619","v":0}]
[{"$f":"'Standing Data'!$D$12","v":{"$error":"#N/A"}},{"$f":"'Standing Data'!$F$9","v":0},{"$f":"'Standing Data'!#REF!","v":{"$error":"#REF!"}},"Fin.Return","G1242",{"$f":"'Fin.Return - Other Notes'!G620","v":0}]
[{"$f":"'Standing Data'!$D$12","v":{"$error":"#N/A"}},{"$f":"'Standing Data'!$F$9","v":0},{"$f":"'Standing Data'!#REF!","v":{"$error":"#REF!"}},"Fin.Return","G1243",{"$f":"'Fin.Return - Other Notes'!G621","v":0}]
[{"$f":"'Standing Data'!$D$12","v":{"$error":"#N/A"}},{"$f":"'Standing Data'!$F$9","v":0},{"$f":"'Standing Data'!#REF!","v":{"$error":"#REF!"}},"Fin.Return","G1244",{"$f":"'Fin.Return - Other Notes'!G622","v":0}]
[{"$f":"'Standing Data'!$D$12","v":{"$error":"#N/A"}},{"$f":"'Standing Data'!$F$9","v":0},{"$f":"'Standing Data'!#REF!","v":{"$error":"#REF!"}},"Fin.Return","G1245",{"$f":"'Fin.Return - Other Notes'!G623","v":0}]
[{"$f":"'Standing Data'!$D$12","v":{"$error":"#N/A"}},{"$f":"'Standing Data'!$F$9","v":0},{"$f":"'Standing Data'!#REF!","v":{"$error":"#REF!"}},"Fin.Return","G1246",{"$f":"'Fin.Return - Other Notes'!G624","v":0}]
[{"$f":"'Standing Data'!$D$12","v":{"$error":"#N/A"}},{"$f":"'Standing Data'!$F$9","v":0},{"$f":"'Standing Data'!#REF!","v":{"$error":"#REF!"}},"Fin.Return","G1247",{"$f":"'Fin.Return - Other Notes'!G625","v":0}]
[{"$f":"'Standing Data'!$D$12","v":{"$error":"#N/A"}},{"$f":"'Standing Data'!$F$9","v":0},{"$f":"'Standing Data'!#REF!","v":{"$error":"#REF!"}},"Fin.Return","G1248",{"$f":"'Fin.Return - Other Notes'!G626","v":0}]
[{"$f":"'Standing Data'!$D$12","v":{"$error":"#N/A"}},{"$f":"'Standing Data'!$F$9","v":0},{"$f":"'Standing Data'!#REF!","v":{"$error":"#REF!"}},"Fin.Return","G1249",{"$f":"'Fin.Return - Other Notes'!G627","v":0}]
[{"$f":"'Standing Data'!$D$12","v":{"$error":"#N/A"}},{"$f":"'Standing Data'!$F$9","v":0},{"$f":"'Standing Data'!#REF!","v":{"$error":"#REF!"}},"Fin.Return","G1250",{"$f":"'Fin.Return - Other Notes'!G628","v":0}]
[{"$f":"'Standing Data'!$D$12","v":{"$error":"#N/A"}},{"$f":"'Standing Data'!$F$9","v":0},{"$f":"'Standing Data'!#REF!","v":{"$error":"#REF!"}},"Fin.Return","G1252",{"$f":"'Fin.Return - Other Notes'!G630","v":0}]
[{"$f":"'Standing Data'!$D$12","v":{"$error":"#N/A"}},{"$f":"'Standing Data'!$F$9","v":0},{"$f":"'Standing Data'!#REF!","v":{"$error":"#REF!"}},"Fin.Return","G1257",{"$f":"'Fin.Return - Other Notes'!G635","v":0}]
[{"$f":"'Standing Data'!$D$12","v":{"$error":"#N/A"}},{"$f":"'Standing Data'!$F$9","v":0},{"$f":"'Standing Data'!#REF!","v":{"$error":"#REF!"}},"Fin.Return","G1258",{"$f":"'Fin.Return - Other Notes'!G636","v":0}]
[{"$f":"'Standing Data'!$D$12","v":{"$error":"#N/A"}},{"$f":"'Standing Data'!$F$9","v":0},{"$f":"'Standing Data'!#REF!","v":{"$error":"#REF!"}},"Fin.Return","G1259",{"$f":"'Fin.Return - Other Notes'!G637","v":0}]
[{"$f":"'Standing Data'!$D$12","v":{"$error":"#N/A"}},{"$f":"'Standing Data'!$F$9","v":0},{"$f":"'Standing Data'!#REF!","v":{"$error":"#REF!"}},"Fin.Return","G1260",{"$f":"'Fin.Return - Other Notes'!G638","v":0}]
[{"$f":"'Standing Data'!$D$12","v":{"$error":"#N/A"}},{"$f":"'Standing Data'!$F$9","v":0},{"$f":"'Standing Data'!#REF!","v":{"$error":"#REF!"}},"Fin.Return","G1261",{"$f":"'Fin.Return - Other Notes'!G639","v":0}]
[{"$f":"'Standing Data'!$D$12","v":{"$error":"#N/A"}},{"$f":"'Standing Data'!$F$9","v":0},{"$f":"'Standing Data'!#REF!","v":{"$error":"#REF!"}},"Fin.Return","G1262",{"$f":"'Fin.Return - Other Notes'!G640","v":0}]
[{"$f":"'Standing Data'!$D$12","v":{"$error":"#N/A"}},{"$f":"'Standing Data'!$F$9","v":0},{"$f":"'Standing Data'!#REF!","v":{"$error":"#REF!"}},"Fin.Return","G1263",{"$f":"'Fin.Return - Other Notes'!G641","v":0}]
[{"$f":"'Standing Data'!$D$12","v":{"$error":"#N/A"}},{"$f":"'Standing Data'!$F$9","v":0},{"$f":"'Standing Data'!#REF!","v":{"$error":"#REF!"}},"Fin.Return","G1264",{"$f":"'Fin.Return - Other Notes'!G642","v":0}]
[{"$f":"'Standing Data'!$D$12","v":{"$error":"#N/A"}},{"$f":"'Standing Data'!$F$9","v":0},{"$f":"'Standing Data'!#REF!","v":{"$error":"#REF!"}},"Fin.Return","G1265",{"$f":"'Fin.Return - Other Notes'!G643","v":0}]
[{"$f":"'Standing Data'!$D$12","v":{"$error":"#N/A"}},{"$f":"'Standing Data'!$F$9","v":0},{"$f":"'Standing Data'!#REF!","v":{"$error":"#REF!"}},"Fin.Return","G1266",{"$f":"'Fin.Return - Other Notes'!G644","v":0}]
[{"$f":"'Standing Data'!$D$12","v":{"$error":"#N/A"}},{"$f":"'Standing Data'!$F$9","v":0},{"$f":"'Standing Data'!#REF!","v":{"$error":"#REF!"}},"Fin.Return","G1267",{"$f":"'Fin.Return - Other Notes'!G645","v":0}]
[{"$f":"'Standing Data'!$D$12","v":{"$error":"#N/A"}},{"$f":"'Standing Data'!$F$9","v":0},{"$f":"'Standing Data'!#REF!","v":{"$error":"#REF!"}},"Fin.Return","G1268",{"$f":"'Fin.Return - Other Notes'!#REF!","v":{"$error":"#REF!"}}]
[{"$f":"'Standing Data'!$D$12","v":{"$error":"#N/A"}},{"$f":"'Standing Data'!$F$9","v":0},{"$f":"'Standing Data'!#REF!","v":{"$error":"#REF!"}},"Fin.Return","H18",{"$f":"'Fin.Return - SOFA'!H19","v":0}]
[{"$f":"'Standing Data'!$D$12","v":{"$error":"#N/A"}},{"$f":"'Standing Data'!$F$9","v":0},{"$f":"'Standing Data'!#REF!","v":{"$error":"#REF!"}},"Fin.Return","H19",{"$f":"'Fin.Return - SOFA'!H20","v":0}]
[{"$f":"'Standing Data'!$D$12","v":{"$error":"#N/A"}},{"$f":"'Standing Data'!$F$9","v":0},{"$f":"'Standing Data'!#REF!","v":{"$error":"#REF!"}},"Fin.Return","H20",{"$f":"'Fin.Return - SOFA'!H22","v":0}]
[{"$f":"'Standing Data'!$D$12","v":{"$error":"#N/A"}},{"$f":"'Standing Data'!$F$9","v":0},{"$f":"'Standing Data'!#REF!","v":{"$error":"#REF!"}},"Fin.Return","H21",{"$f":"'Fin.Return - SOFA'!H23","v":0}]
[{"$f":"'Standing Data'!$D$12","v":{"$error":"#N/A"}},{"$f":"'Standing Data'!$F$9","v":0},{"$f":"'Standing Data'!#REF!","v":{"$error":"#REF!"}},"Fin.Return","H23",{"$f":"'Fin.Return - SOFA'!H25","v":0}]
[{"$f":"'Standing Data'!$D$12","v":{"$error":"#N/A"}},{"$f":"'Standing Data'!$F$9","v":0},{"$f":"'Standing Data'!#REF!","v":{"$error":"#REF!"}},"Fin.Return","H24",{"$f":"'Fin.Return - SOFA'!H26","v":0}]
[{"$f":"'Standing Data'!$D$12","v":{"$error":"#N/A"}},{"$f":"'Standing Data'!$F$9","v":0},{"$f":"'Standing Data'!#REF!","v":{"$error":"#REF!"}},"Fin.Return","H26",{"$f":"'Fin.Return - SOFA'!H28","v":0}]
[{"$f":"'Standing Data'!$D$12","v":{"$error":"#N/A"}},{"$f":"'Standing Data'!$F$9","v":0},{"$f":"'Standing Data'!#REF!","v":{"$error":"#REF!"}},"Fin.Return","H29",{"$f":"'Fin.Return - SOFA'!H31","v":0}]
[{"$f":"'Standing Data'!$D$12","v":{"$error":"#N/A"}},{"$f":"'Standing Data'!$F$9","v":0},{"$f":"'Standing Data'!#REF!","v":{"$error":"#REF!"}},"Fin.Return","H30",{"$f":"'Fin.Return - SOFA'!#REF!","v":{"$error":"#REF!"}}]
[{"$f":"'Standing Data'!$D$12","v":{"$error":"#N/A"}},{"$f":"'Standing Data'!$F$9","v":0},{"$f":"'Standing Data'!#REF!","v":{"$error":"#REF!"}},"Fin.Return","H31",{"$f":"'Fin.Return - SOFA'!H33","v":0}]
[{"$f":"'Standing Data'!$D$12","v":{"$error":"#N/A"}},{"$f":"'Standing Data'!$F$9","v":0},{"$f":"'Standing Data'!#REF!","v":{"$error":"#REF!"}},"Fin.Return","H33",{"$f":"'Fin.Return - SOFA'!H35","v":0}]
[{"$f":"'Standing Data'!$D$12","v":{"$error":"#N/A"}},{"$f":"'Standing Data'!$F$9","v":0},{"$f":"'Standing Data'!#REF!","v":{"$error":"#REF!"}},"Fin.Return","H34",{"$f":"'Fin.Return - SOFA'!H36","v":0}]
[{"$f":"'Standing Data'!$D$12","v":{"$error":"#N/A"}},{"$f":"'Standing Data'!$F$9","v":0},{"$f":"'Standing Data'!#REF!","v":{"$error":"#REF!"}},"Fin.Return","H35",{"$f":"'Fin.Return - SOFA'!H37","v":0}]
[{"$f":"'Standing Data'!$D$12","v":{"$error":"#N/A"}},{"$f":"'Standing Data'!$F$9","v":0},{"$f":"'Standing Data'!#REF!","v":{"$error":"#REF!"}},"Fin.Return","H37",{"$f":"'Fin.Return - SOFA'!H39","v":0}]
[{"$f":"'Standing Data'!$D$12","v":{"$error":"#N/A"}},{"$f":"'Standing Data'!$F$9","v":0},{"$f":"'Standing Data'!#REF!","v":{"$error":"#REF!"}},"Fin.Return","H38",{"$f":"'Fin.Return - SOFA'!H40","v":0}]
[{"$f":"'Standing Data'!$D$12","v":{"$error":"#N/A"}},{"$f":"'Standing Data'!$F$9","v":0},{"$f":"'Standing Data'!#REF!","v":{"$error":"#REF!"}},"Fin.Return","H39",{"$f":"'Fin.Return - SOFA'!H41","v":0}]
[{"$f":"'Standing Data'!$D$12","v":{"$error":"#N/A"}},{"$f":"'Standing Data'!$F$9","v":0},{"$f":"'Standing Data'!#REF!","v":{"$error":"#REF!"}},"Fin.Return","H41",{"$f":"'Fin.Return - SOFA'!H43","v":0}]
[{"$f":"'Standing Data'!$D$12","v":{"$error":"#N/A"}},{"$f":"'Standing Data'!$F$9","v":0},{"$f":"'Standing Data'!#REF!","v":{"$error":"#REF!"}},"Fin.Return","H43",{"$f":"'Fin.Return - SOFA'!H45","v":0}]
[{"$f":"'Standing Data'!$D$12","v":{"$error":"#N/A"}},{"$f":"'Standing Data'!$F$9","v":0},{"$f":"'Standing Data'!#REF!","v":{"$error":"#REF!"}},"Fin.Return","H44",{"$f":"'Fin.Return - SOFA'!H46","v":0}]
[{"$f":"'Standing Data'!$D$12","v":{"$error":"#N/A"}},{"$f":"'Standing Data'!$F$9","v":0},{"$f":"'Standing Data'!#REF!","v":{"$error":"#REF!"}},"Fin.Return","H45",{"$f":"'Fin.Return - SOFA'!H47","v":0}]
[{"$f":"'Standing Data'!$D$12","v":{"$error":"#N/A"}},{"$f":"'Standing Data'!$F$9","v":0},{"$f":"'Standing Data'!#REF!","v":{"$error":"#REF!"}},"Fin.Return","H46",{"$f":"'Fin.Return - SOFA'!H48","v":0}]
[{"$f":"'Standing Data'!$D$12","v":{"$error":"#N/A"}},{"$f":"'Standing Data'!$F$9","v":0},{"$f":"'Standing Data'!#REF!","v":{"$error":"#REF!"}},"Fin.Return","H48",{"$f":"'Fin.Return - SOFA'!H50","v":0}]
[{"$f":"'Standing Data'!$D$12","v":{"$error":"#N/A"}},{"$f":"'Standing Data'!$F$9","v":0},{"$f":"'Standing Data'!#REF!","v":{"$error":"#REF!"}},"Fin.Return","H50",{"$f":"'Fin.Return - SOFA'!H52","v":0}]
[{"$f":"'Standing Data'!$D$12","v":{"$error":"#N/A"}},{"$f":"'Standing Data'!$F$9","v":0},{"$f":"'Standing Data'!#REF!","v":{"$error":"#REF!"}},"Fin.Return","H51",{"$f":"'Fin.Return - SOFA'!H53","v":0}]
[{"$f":"'Standing Data'!$D$12","v":{"$error":"#N/A"}},{"$f":"'Standing Data'!$F$9","v":0},{"$f":"'Standing Data'!#REF!","v":{"$error":"#REF!"}},"Fin.Return","H52",{"$f":"'Fin.Return - SOFA'!H56","v":0}]
[{"$f":"'Standing Data'!$D$12","v":{"$error":"#N/A"}},{"$f":"'Standing Data'!$F$9","v":0},{"$f":"'Standing Data'!#REF!","v":{"$error":"#REF!"}},"Fin.Return","H54",{"$f":"'Fin.Return - SOFA'!H58","v":0}]
[{"$f":"'Standing Data'!$D$12","v":{"$error":"#N/A"}},{"$f":"'Standing Data'!$F$9","v":0},{"$f":"'Standing Data'!#REF!","v":{"$error":"#REF!"}},"Fin.Return","H134",{"$f":"'Fin.Return - SOFA'!H68","v":0}]
[{"$f":"'Standing Data'!$D$12","v":{"$error":"#N/A"}},{"$f":"'Standing Data'!$F$9","v":0},{"$f":"'Standing Data'!#REF!","v":{"$error":"#REF!"}},"Fin.Return","H135",{"$f":"'Fin.Return - SOFA'!H70","v":0}]
[{"$f":"'Standing Data'!$D$12","v":{"$error":"#N/A"}},{"$f":"'Standing Data'!$F$9","v":0},{"$f":"'Standing Data'!#REF!","v":{"$error":"#REF!"}},"Fin.Return","H136",{"$f":"'Fin.Return - SOFA'!H71","v":0}]
[{"$f":"'Standing Data'!$D$12","v":{"$error":"#N/A"}},{"$f":"'Standing Data'!$F$9","v":0},{"$f":"'Standing Data'!#REF!","v":{"$error":"#REF!"}},"Fin.Return","H138",{"$f":"'Fin.Return - SOFA'!H73","v":0}]
[{"$f":"'Standing Data'!$D$12","v":{"$error":"#N/A"}},{"$f":"'Standing Data'!$F$9","v":0},{"$f":"'Standing Data'!#REF!","v":{"$error":"#REF!"}},"Fin.Return","H144",{"$f":"'Fin.Return - SOFA'!H79","v":0}]
[{"$f":"'Standing Data'!$D$12","v":{"$error":"#N/A"}},{"$f":"'Standing Data'!$F$9","v":0},{"$f":"'Standing Data'!#REF!","v":{"$error":"#REF!"}},"Fin.Return","H145",{"$f":"'Fin.Return - SOFA'!H80","v":0}]
[{"$f":"'Standing Data'!$D$12","v":{"$error":"#N/A"}},{"$f":"'Standing Data'!$F$9","v":0},{"$f":"'Standing Data'!#REF!","v":{"$error":"#REF!"}},"Fin.Return","H146",{"$f":"'Fin.Return - SOFA'!H81","v":0}]
[{"$f":"'Standing Data'!$D$12","v":{"$error":"#N/A"}},{"$f":"'Standing Data'!$F$9","v":0},{"$f":"'Standing Data'!#REF!","v":{"$error":"#REF!"}},"Fin.Return","H147",{"$f":"'Fin.Return - SOFA'!H84","v":0}]
[{"$f":"'Standing Data'!$D$12","v":{"$error":"#N/A"}},{"$f":"'Standing Data'!$F$9","v":0},{"$f":"'Standing Data'!#REF!","v":{"$error":"#REF!"}},"Fin.Return","H149",{"$f":"'Fin.Return - SOFA'!H86","v":0}]
[{"$f":"'Standing Data'!$D$12","v":{"$error":"#N/A"}},{"$f":"'Standing Data'!$F$9","v":0},{"$f":"'Standing Data'!#REF!","v":{"$error":"#REF!"}},"Fin.Return","H155",{"$f":"'Fin.Return - SOFA'!H92","v":0}]
[{"$f":"'Standing Data'!$D$12","v":{"$error":"#N/A"}},{"$f":"'Standing Data'!$F$9","v":0},{"$f":"'Standing Data'!#REF!","v":{"$error":"#REF!"}},"Fin.Return","H156",{"$f":"'Fin.Return - SOFA'!H93","v":0}]
[{"$f":"'Standing Data'!$D$12","v":{"$error":"#N/A"}},{"$f":"'Standing Data'!$F$9","v":0},{"$f":"'Standing Data'!#REF!","v":{"$error":"#REF!"}},"Fin.Return","H157",{"$f":"'Fin.Return - SOFA'!H94","v":0}]
[{"$f":"'Standing Data'!$D$12","v":{"$error":"#N/A"}},{"$f":"'Standing Data'!$F$9","v":0},{"$f":"'Standing Data'!#REF!","v":{"$error":"#REF!"}},"Fin.Return","H158",{"$f":"'Fin.Return - SOFA'!H95","v":0}]
[{"$f":"'Standing Data'!$D$12","v":{"$error":"#N/A"}},{"$f":"'Standing Data'!$F$9","v":0},{"$f":"'Standing Data'!#REF!","v":{"$error":"#REF!"}},"Fin.Return","H160",{"$f":"'Fin.Return - SOFA'!H97","v":0}]
[{"$f":"'Standing Data'!$D$12","v":{"$error":"#N/A"}},{"$f":"'Standing Data'!$F$9","v":0},{"$f":"'Standing Data'!#REF!","v":{"$error":"#REF!"}},"Fin.Return","H168",{"$f":"'Fin.Return - SOFA'!H105","v":0}]
[{"$f":"'Standing Data'!$D$12","v":{"$error":"#N/A"}},{"$f":"'Standing Data'!$F$9","v":0},{"$f":"'Standing Data'!#REF!","v":{"$error":"#REF!"}},"Fin.Return","H169",{"$f":"'Fin.Return - SOFA'!H106","v":0}]
[{"$f":"'Standing Data'!$D$12","v":{"$error":"#N/A"}},{"$f":"'Standing Data'!$F$9","v":0},{"$f":"'Standing Data'!#REF!","v":{"$error":"#REF!"}},"Fin.Return","H170",{"$f":"'Fin.Return - SOFA'!#REF!","v":{"$error":"#REF!"}}]
[{"$f":"'Standing Data'!$D$12","v":{"$error":"#N/A"}},{"$f":"'Standing Data'!$F$9","v":0},{"$f":"'Standing Data'!#REF!","v":{"$error":"#REF!"}},"Fin.Return","H171",{"$f":"'Fin.Return - SOFA'!H107","v":0}]
[{"$f":"'Standing Data'!$D$12","v":{"$error":"#N/A"}},{"$f":"'Standing Data'!$F$9","v":0},{"$f":"'Standing Data'!#REF!","v":{"$error":"#REF!"}},"Fin.Return","H172",{"$f":"'Fin.Return - SOFA'!H108","v":0}]
[{"$f":"'Standing Data'!$D$12","v":{"$error":"#N/A"}},{"$f":"'Standing Data'!$F$9","v":0},{"$f":"'Standing Data'!#REF!","v":{"$error":"#REF!"}},"Fin.Return","H173",{"$f":"'Fin.Return - SOFA'!#REF!","v":{"$error":"#REF!"}}]
[{"$f":"'Standing Data'!$D$12","v":{"$error":"#N/A"}},{"$f":"'Standing Data'!$F$9","v":0},{"$f":"'Standing Data'!#REF!","v":{"$error":"#REF!"}},"Fin.Return","H174",{"$f":"'Fin.Return - SOFA'!H109","v":0}]
[{"$f":"'Standing Data'!$D$12","v":{"$error":"#N/A"}},{"$f":"'Standing Data'!$F$9","v":0},{"$f":"'Standing Data'!#REF!","v":{"$error":"#REF!"}},"Fin.Return","H175",{"$f":"'Fin.Return - SOFA'!H110","v":0}]
[{"$f":"'Standing Data'!$D$12","v":{"$error":"#N/A"}},{"$f":"'Standing Data'!$F$9","v":0},{"$f":"'Standing Data'!#REF!","v":{"$error":"#REF!"}},"Fin.Return","H176",{"$f":"'Fin.Return - SOFA'!H111","v":0}]
[{"$f":"'Standing Data'!$D$12","v":{"$error":"#N/A"}},{"$f":"'Standing Data'!$F$9","v":0},{"$f":"'Standing Data'!#REF!","v":{"$error":"#REF!"}},"Fin.Return","H177",{"$f":"'Fin.Return - SOFA'!H112","v":0}]
[{"$f":"'Standing Data'!$D$12","v":{"$error":"#N/A"}},{"$f":"'Standing Data'!$F$9","v":0},{"$f":"'Standing Data'!#REF!","v":{"$error":"#REF!"}},"Fin.Return","H178",{"$f":"'Fin.Return - SOFA'!H113","v":0}]
[{"$f":"'Standing Data'!$D$12","v":{"$error":"#N/A"}},{"$f":"'Standing Data'!$F$9","v":0},{"$f":"'Standing Data'!#REF!","v":{"$error":"#REF!"}},"Fin.Return","H179",{"$f":"'Fin.Return - SOFA'!H114","v":0}]
[{"$f":"'Standing Data'!$D$12","v":{"$error":"#N/A"}},{"$f":"'Standing Data'!$F$9","v":0},{"$f":"'Standing Data'!#REF!","v":{"$error":"#REF!"}},"Fin.Return","H180",{"$f":"'Fin.Return - SOFA'!H115","v":0}]
[{"$f":"'Standing Data'!$D$12","v":{"$error":"#N/A"}},{"$f":"'Standing Data'!$F$9","v":0},{"$f":"'Standing Data'!#REF!","v":{"$error":"#REF!"}},"Fin.Return","H181",{"$f":"'Fin.Return - SOFA'!H116","v":0}]
[{"$f":"'Standing Data'!$D$12","v":{"$error":"#N/A"}},{"$f":"'Standing Data'!$F$9","v":0},{"$f":"'Standing Data'!#REF!","v":{"$error":"#REF!"}},"Fin.Return","H182",{"$f":"'Fin.Return - SOFA'!H117","v":0}]
[{"$f":"'Standing Data'!$D$12","v":{"$error":"#N/A"}},{"$f":"'Standing Data'!$F$9","v":0},{"$f":"'Standing Data'!#REF!","v":{"$error":"#REF!"}},"Fin.Return","H183",{"$f":"'Fin.Return - SOFA'!H118","v":0}]
[{"$f":"'Standing Data'!$D$12","v":{"$error":"#N/A"}},{"$f":"'Standing Data'!$F$9","v":0},{"$f":"'Standing Data'!#REF!","v":{"$error":"#REF!"}},"Fin.Return","H184",{"$f":"'Fin.Return - SOFA'!H119","v":0}]
[{"$f":"'Standing Data'!$D$12","v":{"$error":"#N/A"}},{"$f":"'Standing Data'!$F$9","v":0},{"$f":"'Standing Data'!#REF!","v":{"$error":"#REF!"}},"Fin.Return","H185",{"$f":"'Fin.Return - SOFA'!H120","v":0}]
[{"$f":"'Standing Data'!$D$12","v":{"$error":"#N/A"}},{"$f":"'Standing Data'!$F$9","v":0},{"$f":"'Standing Data'!#REF!","v":{"$error":"#REF!"}},"Fin.Return","H186",{"$f":"'Fin.Return - SOFA'!H121","v":0}]
[{"$f":"'Standing Data'!$D$12","v":{"$error":"#N/A"}},{"$f":"'Standing Data'!$F$9","v":0},{"$f":"'Standing Data'!#REF!","v":{"$error":"#REF!"}},"Fin.Return","H187",{"$f":"'Fin.Return - SOFA'!H122","v":0}]
[{"$f":"'Standing Data'!$D$12","v":{"$error":"#N/A"}},{"$f":"'Standing Data'!$F$9","v":0},{"$f":"'Standing Data'!#REF!","v":{"$error":"#REF!"}},"Fin.Return","H188",{"$f":"'Fin.Return - SOFA'!H123","v":0}]
[{"$f":"'Standing Data'!$D$12","v":{"$error":"#N/A"}},{"$f":"'Standing Data'!$F$9","v":0},{"$f":"'Standing Data'!#REF!","v":{"$error":"#REF!"}},"Fin.Return","H189",{"$f":"'Fin.Return - SOFA'!H124","v":0}]
[{"$f":"'Standing Data'!$D$12","v":{"$error":"#N/A"}},{"$f":"'Standing Data'!$F$9","v":0},{"$f":"'Standing Data'!#REF!","v":{"$error":"#REF!"}},"Fin.Return","H191",{"$f":"'Fin.Return - SOFA'!H126","v":0}]
[{"$f":"'Standing Data'!$D$12","v":{"$error":"#N/A"}},{"$f":"'Standing Data'!$F$9","v":0},{"$f":"'Standing Data'!#REF!","v":{"$error":"#REF!"}},"Fin.Return","H193",{"$f":"'Fin.Return - SOFA'!H128","v":0}]
[{"$f":"'Standing Data'!$D$12","v":{"$error":"#N/A"}},{"$f":"'Standing Data'!$F$9","v":0},{"$f":"'Standing Data'!#REF!","v":{"$error":"#REF!"}},"Fin.Return","H194",{"$f":"'Fin.Return - SOFA'!H129","v":0}]
[{"$f":"'Standing Data'!$D$12","v":{"$error":"#N/A"}},{"$f":"'Standing Data'!$F$9","v":0},{"$f":"'Standing Data'!#REF!","v":{"$error":"#REF!"}},"Fin.Return","H195",{"$f":"'Fin.Return - SOFA'!H130","v":0}]
[{"$f":"'Standing Data'!$D$12","v":{"$error":"#N/A"}},{"$f":"'Standing Data'!$F$9","v":0},{"$f":"'Standing Data'!#REF!","v":{"$error":"#REF!"}},"Fin.Return","H196",{"$f":"'Fin.Return - SOFA'!H131","v":0}]
[{"$f":"'Standing Data'!$D$12","v":{"$error":"#N/A"}},{"$f":"'Standing Data'!$F$9","v":0},{"$f":"'Standing Data'!#REF!","v":{"$error":"#REF!"}},"Fin.Return","H197",{"$f":"'Fin.Return - SOFA'!H132","v":0}]
[{"$f":"'Standing Data'!$D$12","v":{"$error":"#N/A"}},{"$f":"'Standing Data'!$F$9","v":0},{"$f":"'Standing Data'!#REF!","v":{"$error":"#REF!"}},"Fin.Return","H198",{"$f":"'Fin.Return - SOFA'!H133","v":0}]
[{"$f":"'Standing Data'!$D$12","v":{"$error":"#N/A"}},{"$f":"'Standing Data'!$F$9","v":0},{"$f":"'Standing Data'!#REF!","v":{"$error":"#REF!"}},"Fin.Return","H200",{"$f":"'Fin.Return - SOFA'!H135","v":0}]
[{"$f":"'Standing Data'!$D$12","v":{"$error":"#N/A"}},{"$f":"'Standing Data'!$F$9","v":0},{"$f":"'Standing Data'!#REF!","v":{"$error":"#REF!"}},"Fin.Return","H202",{"$f":"'Fin.Return - SOFA'!H137","v":0}]
[{"$f":"'Standing Data'!$D$12","v":{"$error":"#N/A"}},{"$f":"'Standing Data'!$F$9","v":0},{"$f":"'Standing Data'!#REF!","v":{"$error":"#REF!"}},"Fin.Return","H203",{"$f":"'Fin.Return - SOFA'!H138","v":0}]
[{"$f":"'Standing Data'!$D$12","v":{"$error":"#N/A"}},{"$f":"'Standing Data'!$F$9","v":0},{"$f":"'Standing Data'!#REF!","v":{"$error":"#REF!"}},"Fin.Return","H204",{"$f":"'Fin.Return - SOFA'!H139","v":0}]
[{"$f":"'Standing Data'!$D$12","v":{"$error":"#N/A"}},{"$f":"'Standing Data'!$F$9","v":0},{"$f":"'Standing Data'!#REF!","v":{"$error":"#REF!"}},"Fin.Return","H205",{"$f":"'Fin.Return - SOFA'!H140","v":0}]
[{"$f":"'Standing Data'!$D$12","v":{"$error":"#N/A"}},{"$f":"'Standing Data'!$F$9","v":0},{"$f":"'Standing Data'!#REF!","v":{"$error":"#REF!"}},"Fin.Return","H206",{"$f":"'Fin.Return - SOFA'!H141","v":0}]
[{"$f":"'Standing Data'!$D$12","v":{"$error":"#N/A"}},{"$f":"'Standing Data'!$F$9","v":0},{"$f":"'Standing Data'!#REF!","v":{"$error":"#REF!"}},"Fin.Return","H207",{"$f":"'Fin.Return - SOFA'!H142","v":0}]
[{"$f":"'Standing Data'!$D$12","v":{"$error":"#N/A"}},{"$f":"'Standing Data'!$F$9","v":0},{"$f":"'Standing Data'!#REF!","v":{"$error":"#REF!"}},"Fin.Return","H209",{"$f":"'Fin.Return - SOFA'!H144","v":0}]
[{"$f":"'Standing Data'!$D$12","v":{"$error":"#N/A"}},{"$f":"'Standing Data'!$F$9","v":0},{"$f":"'Standing Data'!#REF!","v":{"$error":"#REF!"}},"Fin.Return","H211",{"$f":"'Fin.Return - SOFA'!H153","v":0}]
[{"$f":"'Standing Data'!$D$12","v":{"$error":"#N/A"}},{"$f":"'Standing Data'!$F$9","v":0},{"$f":"'Standing Data'!#REF!","v":{"$error":"#REF!"}},"Fin.Return","H212",{"$f":"'Fin.Return - SOFA'!H154","v":0}]
[{"$f":"'Standing Data'!$D$12","v":{"$error":"#N/A"}},{"$f":"'Standing Data'!$F$9","v":0},{"$f":"'Standing Data'!#REF!","v":{"$error":"#REF!"}},"Fin.Return","H214",{"$f":"'Fin.Return - SOFA'!H156","v":0}]
[{"$f":"'Standing Data'!$D$12","v":{"$error":"#N/A"}},{"$f":"'Standing Data'!$F$9","v":0},{"$f":"'Standing Data'!#REF!","v":{"$error":"#REF!"}},"Fin.Return","H216",{"$f":"'Fin.Return - SOFA'!H158","v":0}]
[{"$f":"'Standing Data'!$D$12","v":{"$error":"#N/A"}},{"$f":"'Standing Data'!$F$9","v":0},{"$f":"'Standing Data'!#REF!","v":{"$error":"#REF!"}},"Fin.Return","H217",{"$f":"'Fin.Return - SOFA'!H159","v":0}]
[{"$f":"'Standing Data'!$D$12","v":{"$error":"#N/A"}},{"$f":"'Standing Data'!$F$9","v":0},{"$f":"'Standing Data'!#REF!","v":{"$error":"#REF!"}},"Fin.Return","H218",{"$f":"'Fin.Return - SOFA'!H161","v":0}]
[{"$f":"'Standing Data'!$D$12","v":{"$error":"#N/A"}},{"$f":"'Standing Data'!$F$9","v":0},{"$f":"'Standing Data'!#REF!","v":{"$error":"#REF!"}},"Fin.Return","H220",{"$f":"'Fin.Return - SOFA'!H163","v":0}]
[{"$f":"'Standing Data'!$D$12","v":{"$error":"#N/A"}},{"$f":"'Standing Data'!$F$9","v":0},{"$f":"'Standing Data'!#REF!","v":{"$error":"#REF!"}},"Fin.Return","H222",{"$f":"'Fin.Return - SOFA'!H165","v":0}]
[{"$f":"'Standing Data'!$D$12","v":{"$error":"#N/A"}},{"$f":"'Standing Data'!$F$9","v":0},{"$f":"'Standing Data'!#REF!","v":{"$error":"#REF!"}},"Fin.Return","H228",{"$f":"'Fin.Return - SOFA'!H171","v":0}]
[{"$f":"'Standing Data'!$D$12","v":{"$error":"#N/A"}},{"$f":"'Standing Data'!$F$9","v":0},{"$f":"'Standing Data'!#REF!","v":{"$error":"#REF!"}},"Fin.Return","H229",{"$f":"'Fin.Return - SOFA'!H172","v":0}]
[{"$f":"'Standing Data'!$D$12","v":{"$error":"#N/A"}},{"$f":"'Standing Data'!$F$9","v":0},{"$f":"'Standing Data'!#REF!","v":{"$error":"#REF!"}},"Fin.Return","H231",{"$f":"'Fin.Return - SOFA'!H174","v":0}]
[{"$f":"'Standing Data'!$D$12","v":{"$error":"#N/A"}},{"$f":"'Standing Data'!$F$9","v":0},{"$f":"'Standing Data'!#REF!","v":{"$error":"#REF!"}},"Fin.Return","H232",{"$f":"'Fin.Return - SOFA'!H175","v":0}]
[{"$f":"'Standing Data'!$D$12","v":{"$error":"#N/A"}},{"$f":"'Standing Data'!$F$9","v":0},{"$f":"'Standing Data'!#REF!","v":{"$error":"#REF!"}},"Fin.Return","H234",{"$f":"'Fin.Return - SOFA'!H177","v":0}]
[{"$f":"'Standing Data'!$D$12","v":{"$error":"#N/A"}},{"$f":"'Standing Data'!$F$9","v":0},{"$f":"'Standing Data'!#REF!","v":{"$error":"#REF!"}},"Fin.Return","H235",{"$f":"'Fin.Return - SOFA'!H178","v":0}]
[{"$f":"'Standing Data'!$D$12","v":{"$error":"#N/A"}},{"$f":"'Standing Data'!$F$9","v":0},{"$f":"'Standing Data'!#REF!","v":{"$error":"#REF!"}},"Fin.Return","H236",{"$f":"'Fin.Return - SOFA'!H179","v":0}]
[{"$f":"'Standing Data'!$D$12","v":{"$error":"#N/A"}},{"$f":"'Standing Data'!$F$9","v":0},{"$f":"'Standing Data'!#REF!","v":{"$error":"#REF!"}},"Fin.Return","H238",{"$f":"'Fin.Return - SOFA'!H181","v":0}]
[{"$f":"'Standing Data'!$D$12","v":{"$error":"#N/A"}},{"$f":"'Standing Data'!$F$9","v":0},{"$f":"'Standing Data'!#REF!","v":{"$error":"#REF!"}},"Fin.Return","H357",{"$f":"'Fin.Return - SOFA'!H306","v":0}]
[{"$f":"'Standing Data'!$D$12","v":{"$error":"#N/A"}},{"$f":"'Standing Data'!$F$9","v":0},{"$f":"'Standing Data'!#REF!","v":{"$error":"#REF!"}},"Fin.Return","H358",{"$f":"'Fin.Return - SOFA'!H307","v":0}]
[{"$f":"'Standing Data'!$D$12","v":{"$error":"#N/A"}},{"$f":"'Standing Data'!$F$9","v":0},{"$f":"'Standing Data'!#REF!","v":{"$error":"#REF!"}},"Fin.Return","H359",{"$f":"'Fin.Return - SOFA'!H308","v":0}]
[{"$f":"'Standing Data'!$D$12","v":{"$error":"#N/A"}},{"$f":"'Standing Data'!$F$9","v":0},{"$f":"'Standing Data'!#REF!","v":{"$error":"#REF!"}},"Fin.Return","H361",{"$f":"'Fin.Return - SOFA'!H310","v":0}]
[{"$f":"'Standing Data'!$D$12","v":{"$error":"#N/A"}},{"$f":"'Standing Data'!$F$9","v":0},{"$f":"'Standing Data'!#REF!","v":{"$error":"#REF!"}},"Fin.Return","H400",{"$f":"'Fin.Return - SOFA'!H351","v":0}]
[{"$f":"'Standing Data'!$D$12","v":{"$error":"#N/A"}},{"$f":"'Standing Data'!$F$9","v":0},{"$f":"'Standing Data'!#REF!","v":{"$error":"#REF!"}},"Fin.Return","H468",{"$f":"'Fin.Return - BS'!H64","v":0}]
[{"$f":"'Standing Data'!$D$12","v":{"$error":"#N/A"}},{"$f":"'Standing Data'!$F$9","v":0},{"$f":"'Standing Data'!#REF!","v":{"$error":"#REF!"}},"Fin.Return","H469",{"$f":"'Fin.Return - BS'!H65","v":0}]
[{"$f":"'Standing Data'!$D$12","v":{"$error":"#N/A"}},{"$f":"'Standing Data'!$F$9","v":0},{"$f":"'Standing Data'!#REF!","v":{"$error":"#REF!"}},"Fin.Return","H470",{"$f":"'Fin.Return - BS'!H67","v":0}]
[{"$f":"'Standing Data'!$D$12","v":{"$error":"#N/A"}},{"$f":"'Standing Data'!$F$9","v":0},{"$f":"'Standing Data'!#REF!","v":{"$error":"#REF!"}},"Fin.Return","H471",{"$f":"'Fin.Return - BS'!H68","v":0}]
[{"$f":"'Standing Data'!$D$12","v":{"$error":"#N/A"}},{"$f":"'Standing Data'!$F$9","v":0},{"$f":"'Standing Data'!#REF!","v":{"$error":"#REF!"}},"Fin.Return","H472",{"$f":"'Fin.Return - BS'!H70","v":0}]
[{"$f":"'Standing Data'!$D$12","v":{"$error":"#N/A"}},{"$f":"'Standing Data'!$F$9","v":0},{"$f":"'Standing Data'!#REF!","v":{"$error":"#REF!"}},"Fin.Return","H473",{"$f":"'Fin.Return - BS'!H72","v":0}]
[{"$f":"'Standing Data'!$D$12","v":{"$error":"#N/A"}},{"$f":"'Standing Data'!$F$9","v":0},{"$f":"'Standing Data'!#REF!","v":{"$error":"#REF!"}},"Fin.Return","H474",{"$f":"'Fin.Return - BS'!H74","v":0}]
[{"$f":"'Standing Data'!$D$12","v":{"$error":"#N/A"}},{"$f":"'Standing Data'!$F$9","v":0},{"$f":"'Standing Data'!#REF!","v":{"$error":"#REF!"}},"Fin.Return","H475",{"$f":"'Fin.Return - BS'!H75","v":0}]
[{"$f":"'Standing Data'!$D$12","v":{"$error":"#N/A"}},{"$f":"'Standing Data'!$F$9","v":0},{"$f":"'Standing Data'!#REF!","v":{"$error":"#REF!"}},"Fin.Return","H477",{"$f":"'Fin.Return - BS'!H77","v":0}]
[{"$f":"'Standing Data'!$D$12","v":{"$error":"#N/A"}},{"$f":"'Standing Data'!$F$9","v":0},{"$f":"'Standing Data'!#REF!","v":{"$error":"#REF!"}},"Fin.Return","H480",{"$f":"'Fin.Return - BS'!H80","v":0}]
[{"$f":"'Standing Data'!$D$12","v":{"$error":"#N/A"}},{"$f":"'Standing Data'!$F$9","v":0},{"$f":"'Standing Data'!#REF!","v":{"$error":"#REF!"}},"Fin.Return","H481",{"$f":"'Fin.Return - BS'!H81","v":0}]
[{"$f":"'Standing Data'!$D$12","v":{"$error":"#N/A"}},{"$f":"'Standing Data'!$F$9","v":0},{"$f":"'Standing Data'!#REF!","v":{"$error":"#REF!"}},"Fin.Return","H482",{"$f":"'Fin.Return - BS'!H82","v":0}]
[{"$f":"'Standing Data'!$D$12","v":{"$error":"#N/A"}},{"$f":"'Standing Data'!$F$9","v":0},{"$f":"'Standing Data'!#REF!","v":{"$error":"#REF!"}},"Fin.Return","H483",{"$f":"'Fin.Return - BS'!H84","v":0}]
[{"$f":"'Standing Data'!$D$12","v":{"$error":"#N/A"}},{"$f":"'Standing Data'!$F$9","v":0},{"$f":"'Standing Data'!#REF!","v":{"$error":"#REF!"}},"Fin.Return","H484",{"$f":"'Fin.Return - BS'!H85","v":0}]
[{"$f":"'Standing Data'!$D$12","v":{"$error":"#N/A"}},{"$f":"'Standing Data'!$F$9","v":0},{"$f":"'Standing Data'!#REF!","v":{"$error":"#REF!"}},"Fin.Return","H486",{"$f":"'Fin.Return - BS'!H87","v":0}]
[{"$f":"'Standing Data'!$D$12","v":{"$error":"#N/A"}},{"$f":"'Standing Data'!$F$9","v":0},{"$f":"'Standing Data'!#REF!","v":{"$error":"#REF!"}},"Fin.Return","H489",{"$f":"'Fin.Return - BS'!H90","v":0}]
[{"$f":"'Standing Data'!$D$12","v":{"$error":"#N/A"}},{"$f":"'Standing Data'!$F$9","v":0},{"$f":"'Standing Data'!#REF!","v":{"$error":"#REF!"}},"Fin.Return","H490",{"$f":"'Fin.Return - BS'!H91","v":0}]
[{"$f":"'Standing Data'!$D$12","v":{"$error":"#N/A"}},{"$f":"'Standing Data'!$F$9","v":0},{"$f":"'Standing Data'!#REF!","v":{"$error":"#REF!"}},"Fin.Return","H491",{"$f":"'Fin.Return - BS'!H92","v":0}]
[{"$f":"'Standing Data'!$D$12","v":{"$error":"#N/A"}},{"$f":"'Standing Data'!$F$9","v":0},{"$f":"'Standing Data'!#REF!","v":{"$error":"#REF!"}},"Fin.Return","H493",{"$f":"'Fin.Return - BS'!H95","v":0}]
[{"$f":"'Standing Data'!$D$12","v":{"$error":"#N/A"}},{"$f":"'Standing Data'!$F$9","v":0},{"$f":"'Standing Data'!#REF!","v":{"$error":"#REF!"}},"Fin.Return","H496",{"$f":"'Fin.Return - BS'!H98","v":0}]
[{"$f":"'Standing Data'!$D$12","v":{"$error":"#N/A"}},{"$f":"'Standing Data'!$F$9","v":0},{"$f":"'Standing Data'!#REF!","v":{"$error":"#REF!"}},"Fin.Return","H499",{"$f":"'Fin.Return - BS'!H101","v":0}]
[{"$f":"'Standing Data'!$D$12","v":{"$error":"#N/A"}},{"$f":"'Standing Data'!$F$9","v":0},{"$f":"'Standing Data'!#REF!","v":{"$error":"#REF!"}},"Fin.Return","H503",{"$f":"'Fin.Return - BS'!H105","v":0}]
[{"$f":"'Standing Data'!$D$12","v":{"$error":"#N/A"}},{"$f":"'Standing Data'!$F$9","v":0},{"$f":"'Standing Data'!#REF!","v":{"$error":"#REF!"}},"Fin.Return","H504",{"$f":"'Fin.Return - BS'!H106","v":0}]
[{"$f":"'Standing Data'!$D$12","v":{"$error":"#N/A"}},{"$f":"'Standing Data'!$F$9","v":0},{"$f":"'Standing Data'!#REF!","v":{"$error":"#REF!"}},"Fin.Return","H505",{"$f":"'Fin.Return - BS'!H107","v":0}]
[{"$f":"'Standing Data'!$D$12","v":{"$error":"#N/A"}},{"$f":"'Standing Data'!$F$9","v":0},{"$f":"'Standing Data'!#REF!","v":{"$error":"#REF!"}},"Fin.Return","H508",{"$f":"'Fin.Return - BS'!H110","v":0}]
[{"$f":"'Standing Data'!$D$12","v":{"$error":"#N/A"}},{"$f":"'Standing Data'!$F$9","v":0},{"$f":"'Standing Data'!#REF!","v":{"$error":"#REF!"}},"Fin.Return","H509",{"$f":"'Fin.Return - BS'!H111","v":0}]
[{"$f":"'Standing Data'!$D$12","v":{"$error":"#N/A"}},{"$f":"'Standing Data'!$F$9","v":0},{"$f":"'Standing Data'!#REF!","v":{"$error":"#REF!"}},"Fin.Return","H511",{"$f":"'Fin.Return - BS'!H113","v":0}]
[{"$f":"'Standing Data'!$D$12","v":{"$error":"#N/A"}},{"$f":"'Standing Data'!$F$9","v":0},{"$f":"'Standing Data'!#REF!","v":{"$error":"#REF!"}},"Fin.Return","H514",{"$f":"'Fin.Return - BS'!H116","v":0}]
[{"$f":"'Standing Data'!$D$12","v":{"$error":"#N/A"}},{"$f":"'Standing Data'!$F$9","v":0},{"$f":"'Standing Data'!#REF!","v":{"$error":"#REF!"}},"Fin.Return","H515",{"$f":"'Fin.Return - BS'!H117","v":0}]
[{"$f":"'Standing Data'!$D$12","v":{"$error":"#N/A"}},{"$f":"'Standing Data'!$F$9","v":0},{"$f":"'Standing Data'!#REF!","v":{"$error":"#REF!"}},"Fin.Return","H517",{"$f":"'Fin.Return - BS'!H119","v":0}]
[{"$f":"'Standing Data'!$D$12","v":{"$error":"#N/A"}},{"$f":"'Standing Data'!$F$9","v":0},{"$f":"'Standing Data'!#REF!","v":{"$error":"#REF!"}},"Fin.Return","H519",{"$f":"'Fin.Return - BS'!H121","v":0}]
[{"$f":"'Standing Data'!$D$12","v":{"$error":"#N/A"}},{"$f":"'Standing Data'!$F$9","v":0},{"$f":"'Standing Data'!#REF!","v":{"$error":"#REF!"}},"Fin.Return","H525",{"$f":"'Fin.Return - BS'!H127","v":0}]
[{"$f":"'Standing Data'!$D$12","v":{"$error":"#N/A"}},{"$f":"'Standing Data'!$F$9","v":0},{"$f":"'Standing Data'!#REF!","v":{"$error":"#REF!"}},"Fin.Return","H526",{"$f":"'Fin.Return - BS'!H128","v":0}]
[{"$f":"'Standing Data'!$D$12","v":{"$error":"#N/A"}},{"$f":"'Standing Data'!$F$9","v":0},{"$f":"'Standing Data'!#REF!","v":{"$error":"#REF!"}},"Fin.Return","H527",{"$f":"'Fin.Return - BS'!H129","v":0}]
[{"$f":"'Standing Data'!$D$12","v":{"$error":"#N/A"}},{"$f":"'Standing Data'!$F$9","v":0},{"$f":"'Standing Data'!#REF!","v":{"$error":"#REF!"}},"Fin.Return","H528",{"$f":"'Fin.Return - BS'!H130","v":0}]
[{"$f":"'Standing Data'!$D$12","v":{"$error":"#N/A"}},{"$f":"'Standing Data'!$F$9","v":0},{"$f":"'Standing Data'!#REF!","v":{"$error":"#REF!"}},"Fin.Return","H529",{"$f":"'Fin.Return - BS'!H132","v":0}]
[{"$f":"'Standing Data'!$D$12","v":{"$error":"#N/A"}},{"$f":"'Standing Data'!$F$9","v":0},{"$f":"'Standing Data'!#REF!","v":{"$error":"#REF!"}},"Fin.Return","H530",{"$f":"'Fin.Return - BS'!H134","v":0}]
[{"$f":"'Standing Data'!$D$12","v":{"$error":"#N/A"}},{"$f":"'Standing Data'!$F$9","v":0},{"$f":"'Standing Data'!#REF!","v":{"$error":"#REF!"}},"Fin.Return","H531",{"$f":"'Fin.Return - BS'!H135","v":0}]
[{"$f":"'Standing Data'!$D$12","v":{"$error":"#N/A"}},{"$f":"'Standing Data'!$F$9","v":0},{"$f":"'Standing Data'!#REF!","v":{"$error":"#REF!"}},"Fin.Return","H533",{"$f":"'Fin.Return - BS'!H137","v":0}]
[{"$f":"'Standing Data'!$D$12","v":{"$error":"#N/A"}},{"$f":"'Standing Data'!$F$9","v":0},{"$f":"'Standing Data'!#REF!","v":{"$error":"#REF!"}},"Fin.Return","H536",{"$f":"'Fin.Return - BS'!H140","v":0}]
[{"$f":"'Standing Data'!$D$12","v":{"$error":"#N/A"}},{"$f":"'Standing Data'!$F$9","v":0},{"$f":"'Standing Data'!#REF!","v":{"$error":"#REF!"}},"Fin.Return","H537",{"$f":"'Fin.Return - BS'!H141","v":0}]
[{"$f":"'Standing Data'!$D$12","v":{"$error":"#N/A"}},{"$f":"'Standing Data'!$F$9","v":0},{"$f":"'Standing Data'!#REF!","v":{"$error":"#REF!"}},"Fin.Return","H538",{"$f":"'Fin.Return - BS'!H142","v":0}]
[{"$f":"'Standing Data'!$D$12","v":{"$error":"#N/A"}},{"$f":"'Standing Data'!$F$9","v":0},{"$f":"'Standing Data'!#REF!","v":{"$error":"#REF!"}},"Fin.Return","H539",{"$f":"'Fin.Return - BS'!H144","v":0}]
[{"$f":"'Standing Data'!$D$12","v":{"$error":"#N/A"}},{"$f":"'Standing Data'!$F$9","v":0},{"$f":"'Standing Data'!#REF!","v":{"$error":"#REF!"}},"Fin.Return","H540",{"$f":"'Fin.Return - BS'!H145","v":0}]
[{"$f":"'Standing Data'!$D$12","v":{"$error":"#N/A"}},{"$f":"'Standing Data'!$F$9","v":0},{"$f":"'Standing Data'!#REF!","v":{"$error":"#REF!"}},"Fin.Return","H542",{"$f":"'Fin.Return - BS'!H147","v":0}]
[{"$f":"'Standing Data'!$D$12","v":{"$error":"#N/A"}},{"$f":"'Standing Data'!$F$9","v":0},{"$f":"'Standing Data'!#REF!","v":{"$error":"#REF!"}},"Fin.Return","H545",{"$f":"'Fin.Return - BS'!H150","v":0}]
[{"$f":"'Standing Data'!$D$12","v":{"$error":"#N/A"}},{"$f":"'Standing Data'!$F$9","v":0},{"$f":"'Standing Data'!#REF!","v":{"$error":"#REF!"}},"Fin.Return","H546",{"$f":"'Fin.Return - BS'!H151","v":0}]
[{"$f":"'Standing Data'!$D$12","v":{"$error":"#N/A"}},{"$f":"'Standing Data'!$F$9","v":0},{"$f":"'Standing Data'!#REF!","v":{"$error":"#REF!"}},"Fin.Return","H547",{"$f":"'Fin.Return - BS'!H152","v":0}]
[{"$f":"'Standing Data'!$D$12","v":{"$error":"#N/A"}},{"$f":"'Standing Data'!$F$9","v":0},{"$f":"'Standing Data'!#REF!","v":{"$error":"#REF!"}},"Fin.Return","H549",{"$f":"'Fin.Return - BS'!H155","v":0}]
[{"$f":"'Standing Data'!$D$12","v":{"$error":"#N/A"}},{"$f":"'Standing Data'!$F$9","v":0},{"$f":"'Standing Data'!#REF!","v":{"$error":"#REF!"}},"Fin.Return","H552",{"$f":"'Fin.Return - BS'!H158","v":0}]
[{"$f":"'Standing Data'!$D$12","v":{"$error":"#N/A"}},{"$f":"'Standing Data'!$F$9","v":0},{"$f":"'Standing Data'!#REF!","v":{"$error":"#REF!"}},"Fin.Return","H555",{"$f":"'Fin.Return - BS'!H161","v":0}]
[{"$f":"'Standing Data'!$D$12","v":{"$error":"#N/A"}},{"$f":"'Standing Data'!$F$9","v":0},{"$f":"'Standing Data'!#REF!","v":{"$error":"#REF!"}},"Fin.Return","H558",{"$f":"'Fin.Return - BS'!H164","v":0}]
[{"$f":"'Standing Data'!$D$12","v":{"$error":"#N/A"}},{"$f":"'Standing Data'!$F$9","v":0},{"$f":"'Standing Data'!#REF!","v":{"$error":"#REF!"}},"Fin.Return","H559",{"$f":"'Fin.Return - BS'!H165","v":0}]
[{"$f":"'Standing Data'!$D$12","v":{"$error":"#N/A"}},{"$f":"'Standing Data'!$F$9","v":0},{"$f":"'Standing Data'!#REF!","v":{"$error":"#REF!"}},"Fin.Return","H565",{"$f":"'Fin.Return - BS'!H172","v":0}]
[{"$f":"'Standing Data'!$D$12","v":{"$error":"#N/A"}},{"$f":"'Standing Data'!$F$9","v":0},{"$f":"'Standing Data'!#REF!","v":{"$error":"#REF!"}},"Fin.Return","H566",{"$f":"'Fin.Return - BS'!H173","v":0}]
[{"$f":"'Standing Data'!$D$12","v":{"$error":"#N/A"}},{"$f":"'Standing Data'!$F$9","v":0},{"$f":"'Standing Data'!#REF!","v":{"$error":"#REF!"}},"Fin.Return","H567",{"$f":"'Fin.Return - BS'!H174","v":0}]
[{"$f":"'Standing Data'!$D$12","v":{"$error":"#N/A"}},{"$f":"'Standing Data'!$F$9","v":0},{"$f":"'Standing Data'!#REF!","v":{"$error":"#REF!"}},"Fin.Return","H568",{"$f":"'Fin.Return - BS'!H175","v":0}]
[{"$f":"'Standing Data'!$D$12","v":{"$error":"#N/A"}},{"$f":"'Standing Data'!$F$9","v":0},{"$f":"'Standing Data'!#REF!","v":{"$error":"#REF!"}},"Fin.Return","H569",{"$f":"'Fin.Return - BS'!H176","v":0}]
[{"$f":"'Standing Data'!$D$12","v":{"$error":"#N/A"}},{"$f":"'Standing Data'!$F$9","v":0},{"$f":"'Standing Data'!#REF!","v":{"$error":"#REF!"}},"Fin.Return","H570",{"$f":"'Fin.Return - BS'!H179","v":0}]
[{"$f":"'Standing Data'!$D$12","v":{"$error":"#N/A"}},{"$f":"'Standing Data'!$F$9","v":0},{"$f":"'Standing Data'!#REF!","v":{"$error":"#REF!"}},"Fin.Return","H571",{"$f":"'Fin.Return - BS'!H180","v":0}]
[{"$f":"'Standing Data'!$D$12","v":{"$error":"#N/A"}},{"$f":"'Standing Data'!$F$9","v":0},{"$f":"'Standing Data'!#REF!","v":{"$error":"#REF!"}},"Fin.Return","H573",{"$f":"'Fin.Return - BS'!H183","v":0}]
[{"$f":"'Standing Data'!$D$12","v":{"$error":"#N/A"}},{"$f":"'Standing Data'!$F$9","v":0},{"$f":"'Standing Data'!#REF!","v":{"$error":"#REF!"}},"Fin.Return","H575",{"$f":"'Fin.Return - BS'!H185","v":0}]
[{"$f":"'Standing Data'!$D$12","v":{"$error":"#N/A"}},{"$f":"'Standing Data'!$F$9","v":0},{"$f":"'Standing Data'!#REF!","v":{"$error":"#REF!"}},"Fin.Return","H630",{"$f":"'Fin.Return - BS'!H241","v":0}]
[{"$f":"'Standing Data'!$D$12","v":{"$error":"#N/A"}},{"$f":"'Standing Data'!$F$9","v":0},{"$f":"'Standing Data'!#REF!","v":{"$error":"#REF!"}},"Fin.Return","H631",{"$f":"'Fin.Return - BS'!H242","v":0}]
[{"$f":"'Standing Data'!$D$12","v":{"$error":"#N/A"}},{"$f":"'Standing Data'!$F$9","v":0},{"$f":"'Standing Data'!#REF!","v":{"$error":"#REF!"}},"Fin.Return","H632",{"$f":"'Fin.Return - BS'!H243","v":0}]
[{"$f":"'Standing Data'!$D$12","v":{"$error":"#N/A"}},{"$f":"'Standing Data'!$F$9","v":0},{"$f":"'Standing Data'!#REF!","v":{"$error":"#REF!"}},"Fin.Return","H633",{"$f":"'Fin.Return - BS'!H244","v":0}]
[{"$f":"'Standing Data'!$D$12","v":{"$error":"#N/A"}},{"$f":"'Standing Data'!$F$9","v":0},{"$f":"'Standing Data'!#REF!","v":{"$error":"#REF!"}},"Fin.Return","H634",{"$f":"'Fin.Return - BS'!H245","v":0}]
[{"$f":"'Standing Data'!$D$12","v":{"$error":"#N/A"}},{"$f":"'Standing Data'!$F$9","v":0},{"$f":"'Standing Data'!#REF!","v":{"$error":"#REF!"}},"Fin.Return","H635",{"$f":"'Fin.Return - BS'!H248","v":0}]
[{"$f":"'Standing Data'!$D$12","v":{"$error":"#N/A"}},{"$f":"'Standing Data'!$F$9","v":0},{"$f":"'Standing Data'!#REF!","v":{"$error":"#REF!"}},"Fin.Return","H636",{"$f":"'Fin.Return - BS'!H249","v":0}]
[{"$f":"'Standing Data'!$D$12","v":{"$error":"#N/A"}},{"$f":"'Standing Data'!$F$9","v":0},{"$f":"'Standing Data'!#REF!","v":{"$error":"#REF!"}},"Fin.Return","H638",{"$f":"'Fin.Return - BS'!H252","v":0}]
[{"$f":"'Standing Data'!$D$12","v":{"$error":"#N/A"}},{"$f":"'Standing Data'!$F$9","v":0},{"$f":"'Standing Data'!#REF!","v":{"$error":"#REF!"}},"Fin.Return","H640",{"$f":"'Fin.Return - BS'!H254","v":0}]
[{"$f":"'Standing Data'!$D$12","v":{"$error":"#N/A"}},{"$f":"'Standing Data'!$F$9","v":0},{"$f":"'Standing Data'!#REF!","v":{"$error":"#REF!"}},"Fin.Return","H745",{"$f":"'Fin.Return - BS'!H356","v":0}]
[{"$f":"'Standing Data'!$D$12","v":{"$error":"#N/A"}},{"$f":"'Standing Data'!$F$9","v":0},{"$f":"'Standing Data'!#REF!","v":{"$error":"#REF!"}},"Fin.Return","H746",{"$f":"'Fin.Return - BS'!H357","v":0}]
[{"$f":"'Standing Data'!$D$12","v":{"$error":"#N/A"}},{"$f":"'Standing Data'!$F$9","v":0},{"$f":"'Standing Data'!#REF!","v":{"$error":"#REF!"}},"Fin.Return","H747",{"$f":"'Fin.Return - BS'!H358","v":0}]
[{"$f":"'Standing Data'!$D$12","v":{"$error":"#N/A"}},{"$f":"'Standing Data'!$F$9","v":0},{"$f":"'Standing Data'!#REF!","v":{"$error":"#REF!"}},"Fin.Return","H748",{"$f":"'Fin.Return - BS'!H359","v":0}]
[{"$f":"'Standing Data'!$D$12","v":{"$error":"#N/A"}},{"$f":"'Standing Data'!$F$9","v":0},{"$f":"'Standing Data'!#REF!","v":{"$error":"#REF!"}},"Fin.Return","H750",{"$f":"'Fin.Return - BS'!H361","v":0}]
[{"$f":"'Standing Data'!$D$12","v":{"$error":"#N/A"}},{"$f":"'Standing Data'!$F$9","v":0},{"$f":"'Standing Data'!#REF!","v":{"$error":"#REF!"}},"Fin.Return","H755",{"$f":"'Fin.Return - BS'!H366","v":0}]
[{"$f":"'Standing Data'!$D$12","v":{"$error":"#N/A"}},{"$f":"'Standing Data'!$F$9","v":0},{"$f":"'Standing Data'!#REF!","v":{"$error":"#REF!"}},"Fin.Return","H756",{"$f":"'Fin.Return - BS'!H367","v":0}]
[{"$f":"'Standing Data'!$D$12","v":{"$error":"#N/A"}},{"$f":"'Standing Data'!$F$9","v":0},{"$f":"'Standing Data'!#REF!","v":{"$error":"#REF!"}},"Fin.Return","H757",{"$f":"'Fin.Return - BS'!H368","v":0}]
[{"$f":"'Standing Data'!$D$12","v":{"$error":"#N/A"}},{"$f":"'Standing Data'!$F$9","v":0},{"$f":"'Standing Data'!#REF!","v":{"$error":"#REF!"}},"Fin.Return","H759",{"$f":"'Fin.Return - BS'!H370","v":0}]
[{"$f":"'Standing Data'!$D$12","v":{"$error":"#N/A"}},{"$f":"'Standing Data'!$F$9","v":0},{"$f":"'Standing Data'!#REF!","v":{"$error":"#REF!"}},"Fin.Return","H767",{"$f":"'Fin.Return - BS'!H378","v":0}]
[{"$f":"'Standing Data'!$D$12","v":{"$error":"#N/A"}},{"$f":"'Standing Data'!$F$9","v":0},{"$f":"'Standing Data'!#REF!","v":{"$error":"#REF!"}},"Fin.Return","H768",{"$f":"'Fin.Return - BS'!H379","v":0}]
[{"$f":"'Standing Data'!$D$12","v":{"$error":"#N/A"}},{"$f":"'Standing Data'!$F$9","v":0},{"$f":"'Standing Data'!#REF!","v":{"$error":"#REF!"}},"Fin.Return","H770",{"$f":"'Fin.Return - Other Notes'!#REF!","v":{"$error":"#REF!"}}]
[{"$f":"'Standing Data'!$D$12","v":{"$error":"#N/A"}},{"$f":"'Standing Data'!$F$9","v":0},{"$f":"'Standing Data'!#REF!","v":{"$error":"#REF!"}},"Fin.Return","H771",{"$f":"'Fin.Return - Other Notes'!#REF!","v":{"$error":"#REF!"}}]
[{"$f":"'Standing Data'!$D$12","v":{"$error":"#N/A"}},{"$f":"'Standing Data'!$F$9","v":0},{"$f":"'Standing Data'!#REF!","v":{"$error":"#REF!"}},"Fin.Return","H772",{"$f":"'Fin.Return - Other Notes'!#REF!","v":{"$error":"#REF!"}}]
[{"$f":"'Standing Data'!$D$12","v":{"$error":"#N/A"}},{"$f":"'Standing Data'!$F$9","v":0},{"$f":"'Standing Data'!#REF!","v":{"$error":"#REF!"}},"Fin.Return","H773",{"$f":"'Fin.Return - Other Notes'!#REF!","v":{"$error":"#REF!"}}]
[{"$f":"'Standing Data'!$D$12","v":{"$error":"#N/A"}},{"$f":"'Standing Data'!$F$9","v":0},{"$f":"'Standing Data'!#REF!","v":{"$error":"#REF!"}},"Fin.Return","H774",{"$f":"'Fin.Return - Other Notes'!#REF!","v":{"$error":"#REF!"}}]
[{"$f":"'Standing Data'!$D$12","v":{"$error":"#N/A"}},{"$f":"'Standing Data'!$F$9","v":0},{"$f":"'Standing Data'!#REF!","v":{"$error":"#REF!"}},"Fin.Return","H775",{"$f":"'Fin.Return - Other Notes'!#REF!","v":{"$error":"#REF!"}}]
[{"$f":"'Standing Data'!$D$12","v":{"$error":"#N/A"}},{"$f":"'Standing Data'!$F$9","v":0},{"$f":"'Standing Data'!#REF!","v":{"$error":"#REF!"}},"Fin.Return","H776",{"$f":"'Fin.Return - BS'!H381","v":0}]
[{"$f":"'Standing Data'!$D$12","v":{"$error":"#N/A"}},{"$f":"'Standing Data'!$F$9","v":0},{"$f":"'Standing Data'!#REF!","v":{"$error":"#REF!"}},"Fin.Return","H777",{"$f":"'Fin.Return - BS'!H382","v":0}]
[{"$f":"'Standing Data'!$D$12","v":{"$error":"#N/A"}},{"$f":"'Standing Data'!$F$9","v":0},{"$f":"'Standing Data'!#REF!","v":{"$error":"#REF!"}},"Fin.Return","H779",{"$f":"'Fin.Return - BS'!H384","v":0}]
[{"$f":"'Standing Data'!$D$12","v":{"$error":"#N/A"}},{"$f":"'Standing Data'!$F$9","v":0},{"$f":"'Standing Data'!#REF!","v":{"$error":"#REF!"}},"Fin.Return","H780",{"$f":"'Fin.Return - BS'!H385","v":0}]
[{"$f":"'Standing Data'!$D$12","v":{"$error":"#N/A"}},{"$f":"'Standing Data'!$F$9","v":0},{"$f":"'Standing Data'!#REF!","v":{"$error":"#REF!"}},"Fin.Return","H782",{"$f":"'Fin.Return - BS'!H387","v":0}]
[{"$f":"'Standing Data'!$D$12","v":{"$error":"#N/A"}},{"$f":"'Standing Data'!$F$9","v":0},{"$f":"'Standing Data'!#REF!","v":{"$error":"#REF!"}},"Fin.Return","H783",{"$f":"'Fin.Return - BS'!H388","v":0}]
[{"$f":"'Standing Data'!$D$12","v":{"$error":"#N/A"}},{"$f":"'Standing Data'!$F$9","v":0},{"$f":"'Standing Data'!#REF!","v":{"$error":"#REF!"}},"Fin.Return","H785",{"$f":"'Fin.Return - BS'!H390","v":0}]
[{"$f":"'Standing Data'!$D$12","v":{"$error":"#N/A"}},{"$f":"'Standing Data'!$F$9","v":0},{"$f":"'Standing Data'!#REF!","v":{"$error":"#REF!"}},"Fin.Return","H787",{"$f":"'Fin.Return - BS'!H392","v":0}]
[{"$f":"'Standing Data'!$D$12","v":{"$error":"#N/A"}},{"$f":"'Standing Data'!$F$9","v":0},{"$f":"'Standing Data'!#REF!","v":{"$error":"#REF!"}},"Fin.Return","H789",{"$f":"'Fin.Return - Other Notes'!#REF!","v":{"$error":"#REF!"}}]
[{"$f":"'Standing Data'!$D$12","v":{"$error":"#N/A"}},{"$f":"'Standing Data'!$F$9","v":0},{"$f":"'Standing Data'!#REF!","v":{"$error":"#REF!"}},"Fin.Return","H790",{"$f":"'Fin.Return - Other Notes'!#REF!","v":{"$error":"#REF!"}}]
[{"$f":"'Standing Data'!$D$12","v":{"$error":"#N/A"}},{"$f":"'Standing Data'!$F$9","v":0},{"$f":"'Standing Data'!#REF!","v":{"$error":"#REF!"}},"Fin.Return","H791",{"$f":"'Fin.Return - Other Notes'!#REF!","v":{"$error":"#REF!"}}]
[{"$f":"'Standing Data'!$D$12","v":{"$error":"#N/A"}},{"$f":"'Standing Data'!$F$9","v":0},{"$f":"'Standing Data'!#REF!","v":{"$error":"#REF!"}},"Fin.Return","H792",{"$f":"'Fin.Return - Other Notes'!#REF!","v":{"$error":"#REF!"}}]
[{"$f":"'Standing Data'!$D$12","v":{"$error":"#N/A"}},{"$f":"'Standing Data'!$F$9","v":0},{"$f":"'Standing Data'!#REF!","v":{"$error":"#REF!"}},"Fin.Return","H793",{"$f":"'Fin.Return - Other Notes'!#REF!","v":{"$error":"#REF!"}}]
[{"$f":"'Standing Data'!$D$12","v":{"$error":"#N/A"}},{"$f":"'Standing Data'!$F$9","v":0},{"$f":"'Standing Data'!#REF!","v":{"$error":"#REF!"}},"Fin.Return","H794",{"$f":"'Fin.Return - Other Notes'!#REF!","v":{"$error":"#REF!"}}]
[{"$f":"'Standing Data'!$D$12","v":{"$error":"#N/A"}},{"$f":"'Standing Data'!$F$9","v":0},{"$f":"'Standing Data'!#REF!","v":{"$error":"#REF!"}},"Fin.Return","H795",{"$f":"'Fin.Return - BS'!H394","v":0}]
[{"$f":"'Standing Data'!$D$12","v":{"$error":"#N/A"}},{"$f":"'Standing Data'!$F$9","v":0},{"$f":"'Standing Data'!#REF!","v":{"$error":"#REF!"}},"Fin.Return","H796",{"$f":"'Fin.Return - BS'!H395","v":0}]
[{"$f":"'Standing Data'!$D$12","v":{"$error":"#N/A"}},{"$f":"'Standing Data'!$F$9","v":0},{"$f":"'Standing Data'!#REF!","v":{"$error":"#REF!"}},"Fin.Return","H798",{"$f":"'Fin.Return - BS'!H397","v":0}]
[{"$f":"'Standing Data'!$D$12","v":{"$error":"#N/A"}},{"$f":"'Standing Data'!$F$9","v":0},{"$f":"'Standing Data'!#REF!","v":{"$error":"#REF!"}},"Fin.Return","H799",{"$f":"'Fin.Return - BS'!H398","v":0}]
[{"$f":"'Standing Data'!$D$12","v":{"$error":"#N/A"}},{"$f":"'Standing Data'!$F$9","v":0},{"$f":"'Standing Data'!#REF!","v":{"$error":"#REF!"}},"Fin.Return","H800",{"$f":"'Fin.Return - BS'!H399","v":0}]
[{"$f":"'Standing Data'!$D$12","v":{"$error":"#N/A"}},{"$f":"'Standing Data'!$F$9","v":0},{"$f":"'Standing Data'!#REF!","v":{"$error":"#REF!"}},"Fin.Return","H802",{"$f":"'Fin.Return - BS'!H401","v":0}]
[{"$f":"'Standing Data'!$D$12","v":{"$error":"#N/A"}},{"$f":"'Standing Data'!$F$9","v":0},{"$f":"'Standing Data'!#REF!","v":{"$error":"#REF!"}},"Fin.Return","H803",{"$f":"'Fin.Return - BS'!H402","v":0}]
[{"$f":"'Standing Data'!$D$12","v":{"$error":"#N/A"}},{"$f":"'Standing Data'!$F$9","v":0},{"$f":"'Standing Data'!#REF!","v":{"$error":"#REF!"}},"Fin.Return","H805",{"$f":"'Fin.Return - BS'!H404","v":0}]
[{"$f":"'Standing Data'!$D$12","v":{"$error":"#N/A"}},{"$f":"'Standing Data'!$F$9","v":0},{"$f":"'Standing Data'!#REF!","v":{"$error":"#REF!"}},"Fin.Return","H807",{"$f":"'Fin.Return - BS'!H406","v":0}]
[{"$f":"'Standing Data'!$D$12","v":{"$error":"#N/A"}},{"$f":"'Standing Data'!$F$9","v":0},{"$f":"'Standing Data'!#REF!","v":{"$error":"#REF!"}},"Fin.Return","H809",{"$f":"'Fin.Return - BS'!H408","v":0}]
[{"$f":"'Standing Data'!$D$12","v":{"$error":"#N/A"}},{"$f":"'Standing Data'!$F$9","v":0},{"$f":"'Standing Data'!#REF!","v":{"$error":"#REF!"}},"Fin.Return","H811",{"$f":"'Fin.Return - BS'!H410","v":0}]
[{"$f":"'Standing Data'!$D$12","v":{"$error":"#N/A"}},{"$f":"'Standing Data'!$F$9","v":0},{"$f":"'Standing Data'!#REF!","v":{"$error":"#REF!"}},"Fin.Return","H816",{"$f":"'Fin.Return - Other Notes'!H126","v":0}]
[{"$f":"'Standing Data'!$D$12","v":{"$error":"#N/A"}},{"$f":"'Standing Data'!$F$9","v":0},{"$f":"'Standing Data'!#REF!","v":{"$error":"#REF!"}},"Fin.Return","H817",{"$f":"'Fin.Return - Other Notes'!H127","v":0}]
[{"$f":"'Standing Data'!$D$12","v":{"$error":"#N/A"}},{"$f":"'Standing Data'!$F$9","v":0},{"$f":"'Standing Data'!#REF!","v":{"$error":"#REF!"}},"Fin.Return","H818",{"$f":"'Fin.Return - Other Notes'!H128","v":0}]
[{"$f":"'Standing Data'!$D$12","v":{"$error":"#N/A"}},{"$f":"'Standing Data'!$F$9","v":0},{"$f":"'Standing Data'!#REF!","v":{"$error":"#REF!"}},"Fin.Return","H819",{"$f":"'Fin.Return - Other Notes'!H129","v":0}]
[{"$f":"'Standing Data'!$D$12","v":{"$error":"#N/A"}},{"$f":"'Standing Data'!$F$9","v":0},{"$f":"'Standing Data'!#REF!","v":{"$error":"#REF!"}},"Fin.Return","H820",{"$f":"'Fin.Return - Other Notes'!H130","v":0}]
[{"$f":"'Standing Data'!$D$12","v":{"$error":"#N/A"}},{"$f":"'Standing Data'!$F$9","v":0},{"$f":"'Standing Data'!#REF!","v":{"$error":"#REF!"}},"Fin.Return","H821",{"$f":"'Fin.Return - Other Notes'!H131","v":0}]
[{"$f":"'Standing Data'!$D$12","v":{"$error":"#N/A"}},{"$f":"'Standing Data'!$F$9","v":0},{"$f":"'Standing Data'!#REF!","v":{"$error":"#REF!"}},"Fin.Return","H823",{"$f":"'Fin.Return - Other Notes'!H133","v":0}]
[{"$f":"'Standing Data'!$D$12","v":{"$error":"#N/A"}},{"$f":"'Standing Data'!$F$9","v":0},{"$f":"'Standing Data'!#REF!","v":{"$error":"#REF!"}},"Fin.Return","H839",{"$f":"'Fin.Return - Other Notes'!H149","v":0}]
[{"$f":"'Standing Data'!$D$12","v":{"$error":"#N/A"}},{"$f":"'Standing Data'!$F$9","v":0},{"$f":"'Standing Data'!#REF!","v":{"$error":"#REF!"}},"Fin.Return","H840",{"$f":"'Fin.Return - Other Notes'!H151","v":0}]
[{"$f":"'Standing Data'!$D$12","v":{"$error":"#N/A"}},{"$f":"'Standing Data'!$F$9","v":0},{"$f":"'Standing Data'!#REF!","v":{"$error":"#REF!"}},"Fin.Return","H845",{"$f":"'Fin.Return - Other Notes'!H157","v":0}]
[{"$f":"'Standing Data'!$D$12","v":{"$error":"#N/A"}},{"$f":"'Standing Data'!$F$9","v":0},{"$f":"'Standing Data'!#REF!","v":{"$error":"#REF!"}},"Fin.Return","H850",{"$f":"'Fin.Return - Other Notes'!H162","v":0}]
[{"$f":"'Standing Data'!$D$12","v":{"$error":"#N/A"}},{"$f":"'Standing Data'!$F$9","v":0},{"$f":"'Standing Data'!#REF!","v":{"$error":"#REF!"}},"Fin.Return","H851",{"$f":"'Fin.Return - Other Notes'!H163","v":0}]
[{"$f":"'Standing Data'!$D$12","v":{"$error":"#N/A"}},{"$f":"'Standing Data'!$F$9","v":0},{"$f":"'Standing Data'!#REF!","v":{"$error":"#REF!"}},"Fin.Return","H852",{"$f":"'Fin.Return - Other Notes'!H164","v":0}]
[{"$f":"'Standing Data'!$D$12","v":{"$error":"#N/A"}},{"$f":"'Standing Data'!$F$9","v":0},{"$f":"'Standing Data'!#REF!","v":{"$error":"#REF!"}},"Fin.Return","H854",{"$f":"'Fin.Return - Other Notes'!H166","v":0}]
[{"$f":"'Standing Data'!$D$12","v":{"$error":"#N/A"}},{"$f":"'Standing Data'!$F$9","v":0},{"$f":"'Standing Data'!#REF!","v":{"$error":"#REF!"}},"Fin.Return","H857",{"$f":"'Fin.Return - Other Notes'!H169","v":0}]
[{"$f":"'Standing Data'!$D$12","v":{"$error":"#N/A"}},{"$f":"'Standing Data'!$F$9","v":0},{"$f":"'Standing Data'!#REF!","v":{"$error":"#REF!"}},"Fin.Return","H858",{"$f":"'Fin.Return - Other Notes'!H170","v":0}]
[{"$f":"'Standing Data'!$D$12","v":{"$error":"#N/A"}},{"$f":"'Standing Data'!$F$9","v":0},{"$f":"'Standing Data'!#REF!","v":{"$error":"#REF!"}},"Fin.Return","H860",{"$f":"'Fin.Return - Other Notes'!H172","v":0}]
[{"$f":"'Standing Data'!$D$12","v":{"$error":"#N/A"}},{"$f":"'Standing Data'!$F$9","v":0},{"$f":"'Standing Data'!#REF!","v":{"$error":"#REF!"}},"Fin.Return","H862",{"$f":"'Fin.Return - Other Notes'!H174","v":0}]
[{"$f":"'Standing Data'!$D$12","v":{"$error":"#N/A"}},{"$f":"'Standing Data'!$F$9","v":0},{"$f":"'Standing Data'!#REF!","v":{"$error":"#REF!"}},"Fin.Return","H865",{"$f":"'Fin.Return - Other Notes'!H177","v":0}]
[{"$f":"'Standing Data'!$D$12","v":{"$error":"#N/A"}},{"$f":"'Standing Data'!$F$9","v":0},{"$f":"'Standing Data'!#REF!","v":{"$error":"#REF!"}},"Fin.Return","H866",{"$f":"'Fin.Return - Other Notes'!H178","v":0}]
[{"$f":"'Standing Data'!$D$12","v":{"$error":"#N/A"}},{"$f":"'Standing Data'!$F$9","v":0},{"$f":"'Standing Data'!#REF!","v":{"$error":"#REF!"}},"Fin.Return","H867",{"$f":"'Fin.Return - Other Notes'!H179","v":0}]
[{"$f":"'Standing Data'!$D$12","v":{"$error":"#N/A"}},{"$f":"'Standing Data'!$F$9","v":0},{"$f":"'Standing Data'!#REF!","v":{"$error":"#REF!"}},"Fin.Return","H868",{"$f":"'Fin.Return - Other Notes'!H180","v":0}]
[{"$f":"'Standing Data'!$D$12","v":{"$error":"#N/A"}},{"$f":"'Standing Data'!$F$9","v":0},{"$f":"'Standing Data'!#REF!","v":{"$error":"#REF!"}},"Fin.Return","H869",{"$f":"'Fin.Return - Other Notes'!H181","v":0}]
[{"$f":"'Standing Data'!$D$12","v":{"$error":"#N/A"}},{"$f":"'Standing Data'!$F$9","v":0},{"$f":"'Standing Data'!#REF!","v":{"$error":"#REF!"}},"Fin.Return","H870",{"$f":"'Fin.Return - Other Notes'!H182","v":0}]
[{"$f":"'Standing Data'!$D$12","v":{"$error":"#N/A"}},{"$f":"'Standing Data'!$F$9","v":0},{"$f":"'Standing Data'!#REF!","v":{"$error":"#REF!"}},"Fin.Return","H871",{"$f":"'Fin.Return - Other Notes'!H183","v":0}]
[{"$f":"'Standing Data'!$D$12","v":{"$error":"#N/A"}},{"$f":"'Standing Data'!$F$9","v":0},{"$f":"'Standing Data'!#REF!","v":{"$error":"#REF!"}},"Fin.Return","H872",{"$f":"'Fin.Return - Other Notes'!H184","v":0}]
[{"$f":"'Standing Data'!$D$12","v":{"$error":"#N/A"}},{"$f":"'Standing Data'!$F$9","v":0},{"$f":"'Standing Data'!#REF!","v":{"$error":"#REF!"}},"Fin.Return","H873",{"$f":"'Fin.Return - Other Notes'!H185","v":0}]
[{"$f":"'Standing Data'!$D$12","v":{"$error":"#N/A"}},{"$f":"'Standing Data'!$F$9","v":0},{"$f":"'Standing Data'!#REF!","v":{"$error":"#REF!"}},"Fin.Return","H874",{"$f":"'Fin.Return - Other Notes'!H186","v":0}]
[{"$f":"'Standing Data'!$D$12","v":{"$error":"#N/A"}},{"$f":"'Standing Data'!$F$9","v":0},{"$f":"'Standing Data'!#REF!","v":{"$error":"#REF!"}},"Fin.Return","H876",{"$f":"'Fin.Return - Other Notes'!H190","v":0}]
[{"$f":"'Standing Data'!$D$12","v":{"$error":"#N/A"}},{"$f":"'Standing Data'!$F$9","v":0},{"$f":"'Standing Data'!#REF!","v":{"$error":"#REF!"}},"Fin.Return","H879",{"$f":"'Fin.Return - Other Notes'!H193","v":0}]
[{"$f":"'Standing Data'!$D$12","v":{"$error":"#N/A"}},{"$f":"'Standing Data'!$F$9","v":0},{"$f":"'Standing Data'!#REF!","v":{"$error":"#REF!"}},"Fin.Return","H880",{"$f":"'Fin.Return - Other Notes'!H194","v":0}]
[{"$f":"'Standing Data'!$D$12","v":{"$error":"#N/A"}},{"$f":"'Standing Data'!$F$9","v":0},{"$f":"'Standing Data'!#REF!","v":{"$error":"#REF!"}},"Fin.Return","H881",{"$f":"'Fin.Return - Other Notes'!H195","v":0}]
[{"$f":"'Standing Data'!$D$12","v":{"$error":"#N/A"}},{"$f":"'Standing Data'!$F$9","v":0},{"$f":"'Standing Data'!#REF!","v":{"$error":"#REF!"}},"Fin.Return","H882",{"$f":"'Fin.Return - Other Notes'!H196","v":0}]
[{"$f":"'Standing Data'!$D$12","v":{"$error":"#N/A"}},{"$f":"'Standing Data'!$F$9","v":0},{"$f":"'Standing Data'!#REF!","v":{"$error":"#REF!"}},"Fin.Return","H883",{"$f":"'Fin.Return - Other Notes'!H197","v":0}]
[{"$f":"'Standing Data'!$D$12","v":{"$error":"#N/A"}},{"$f":"'Standing Data'!$F$9","v":0},{"$f":"'Standing Data'!#REF!","v":{"$error":"#REF!"}},"Fin.Return","H884",{"$f":"'Fin.Return - Other Notes'!H198","v":0}]
[{"$f":"'Standing Data'!$D$12","v":{"$error":"#N/A"}},{"$f":"'Standing Data'!$F$9","v":0},{"$f":"'Standing Data'!#REF!","v":{"$error":"#REF!"}},"Fin.Return","H885",{"$f":"'Fin.Return - Other Notes'!H199","v":0}]
[{"$f":"'Standing Data'!$D$12","v":{"$error":"#N/A"}},{"$f":"'Standing Data'!$F$9","v":0},{"$f":"'Standing Data'!#REF!","v":{"$error":"#REF!"}},"Fin.Return","H887",{"$f":"'Fin.Return - Other Notes'!H203","v":0}]
[{"$f":"'Standing Data'!$D$12","v":{"$error":"#N/A"}},{"$f":"'Standing Data'!$F$9","v":0},{"$f":"'Standing Data'!#REF!","v":{"$error":"#REF!"}},"Fin.Return","H890",{"$f":"'Fin.Return - Other Notes'!H206","v":0}]
[{"$f":"'Standing Data'!$D$12","v":{"$error":"#N/A"}},{"$f":"'Standing Data'!$F$9","v":0},{"$f":"'Standing Data'!#REF!","v":{"$error":"#REF!"}},"Fin.Return","H891",{"$f":"'Fin.Return - Other Notes'!H207","v":0}]
[{"$f":"'Standing Data'!$D$12","v":{"$error":"#N/A"}},{"$f":"'Standing Data'!$F$9","v":0},{"$f":"'Standing Data'!#REF!","v":{"$error":"#REF!"}},"Fin.Return","H892",{"$f":"'Fin.Return - Other Notes'!H208","v":0}]
[{"$f":"'Standing Data'!$D$12","v":{"$error":"#N/A"}},{"$f":"'Standing Data'!$F$9","v":0},{"$f":"'Standing Data'!#REF!","v":{"$error":"#REF!"}},"Fin.Return","H893",{"$f":"'Fin.Return - Other Notes'!H209","v":0}]
[{"$f":"'Standing Data'!$D$12","v":{"$error":"#N/A"}},{"$f":"'Standing Data'!$F$9","v":0},{"$f":"'Standing Data'!#REF!","v":{"$error":"#REF!"}},"Fin.Return","H894",{"$f":"'Fin.Return - Other Notes'!H210","v":0}]
[{"$f":"'Standing Data'!$D$12","v":{"$error":"#N/A"}},{"$f":"'Standing Data'!$F$9","v":0},{"$f":"'Standing Data'!#REF!","v":{"$error":"#REF!"}},"Fin.Return","H895",{"$f":"'Fin.Return - Other Notes'!H211","v":0}]
[{"$f":"'Standing Data'!$D$12","v":{"$error":"#N/A"}},{"$f":"'Standing Data'!$F$9","v":0},{"$f":"'Standing Data'!#REF!","v":{"$error":"#REF!"}},"Fin.Return","H896",{"$f":"'Fin.Return - Other Notes'!H212","v":0}]
[{"$f":"'Standing Data'!$D$12","v":{"$error":"#N/A"}},{"$f":"'Standing Data'!$F$9","v":0},{"$f":"'Standing Data'!#REF!","v":{"$error":"#REF!"}},"Fin.Return","H897",{"$f":"'Fin.Return - Other Notes'!H213","v":0}]
[{"$f":"'Standing Data'!$D$12","v":{"$error":"#N/A"}},{"$f":"'Standing Data'!$F$9","v":0},{"$f":"'Standing Data'!#REF!","v":{"$error":"#REF!"}},"Fin.Return","H898",{"$f":"'Fin.Return - Other Notes'!H214","v":0}]
[{"$f":"'Standing Data'!$D$12","v":{"$error":"#N/A"}},{"$f":"'Standing Data'!$F$9","v":0},{"$f":"'Standing Data'!#REF!","v":{"$error":"#REF!"}},"Fin.Return","H899",{"$f":"'Fin.Return - Other Notes'!H215","v":0}]
[{"$f":"'Standing Data'!$D$12","v":{"$error":"#N/A"}},{"$f":"'Standing Data'!$F$9","v":0},{"$f":"'Standing Data'!#REF!","v":{"$error":"#REF!"}},"Fin.Return","H901",{"$f":"'Fin.Return - Other Notes'!H219","v":0}]
[{"$f":"'Standing Data'!$D$12","v":{"$error":"#N/A"}},{"$f":"'Standing Data'!$F$9","v":0},{"$f":"'Standing Data'!#REF!","v":{"$error":"#REF!"}},"Fin.Return","H908",{"$f":"'Fin.Return - Other Notes'!H228","v":0}]
[{"$f":"'Standing Data'!$D$12","v":{"$error":"#N/A"}},{"$f":"'Standing Data'!$F$9","v":0},{"$f":"'Standing Data'!#REF!","v":{"$error":"#REF!"}},"Fin.Return","H909",{"$f":"'Fin.Return - Other Notes'!H229","v":0}]
[{"$f":"'Standing Data'!$D$12","v":{"$error":"#N/A"}},{"$f":"'Standing Data'!$F$9","v":0},{"$f":"'Standing Data'!#REF!","v":{"$error":"#REF!"}},"Fin.Return","H910",{"$f":"'Fin.Return - Other Notes'!H230","v":0}]
[{"$f":"'Standing Data'!$D$12","v":{"$error":"#N/A"}},{"$f":"'Standing Data'!$F$9","v":0},{"$f":"'Standing Data'!#REF!","v":{"$error":"#REF!"}},"Fin.Return","H911",{"$f":"'Fin.Return - Other Notes'!H231","v":0}]
[{"$f":"'Standing Data'!$D$12","v":{"$error":"#N/A"}},{"$f":"'Standing Data'!$F$9","v":0},{"$f":"'Standing Data'!#REF!","v":{"$error":"#REF!"}},"Fin.Return","H912",{"$f":"'Fin.Return - Other Notes'!H232","v":0}]
[{"$f":"'Standing Data'!$D$12","v":{"$error":"#N/A"}},{"$f":"'Standing Data'!$F$9","v":0},{"$f":"'Standing Data'!#REF!","v":{"$error":"#REF!"}},"Fin.Return","H914",{"$f":"'Fin.Return - Other Notes'!H234","v":0}]
[{"$f":"'Standing Data'!$D$12","v":{"$error":"#N/A"}},{"$f":"'Standing Data'!$F$9","v":0},{"$f":"'Standing Data'!#REF!","v":{"$error":"#REF!"}},"Fin.Return","H913",{"$f":"'Fin.Return - Other Notes'!H233","v":0}]
[{"$f":"'Standing Data'!$D$12","v":{"$error":"#N/A"}},{"$f":"'Standing Data'!$F$9","v":0},{"$f":"'Standing Data'!#REF!","v":{"$error":"#REF!"}},"Fin.Return","H916",{"$f":"'Fin.Return - Other Notes'!H236","v":0}]
[{"$f":"'Standing Data'!$D$12","v":{"$error":"#N/A"}},{"$f":"'Standing Data'!$F$9","v":0},{"$f":"'Standing Data'!#REF!","v":{"$error":"#REF!"}},"Fin.Return","H917",{"$f":"'Fin.Return - Other Notes'!H237","v":0}]
[{"$f":"'Standing Data'!$D$12","v":{"$error":"#N/A"}},{"$f":"'Standing Data'!$F$9","v":0},{"$f":"'Standing Data'!#REF!","v":{"$error":"#REF!"}},"Fin.Return","H918",{"$f":"'Fin.Return - Other Notes'!H238","v":0}]
[{"$f":"'Standing Data'!$D$12","v":{"$error":"#N/A"}},{"$f":"'Standing Data'!$F$9","v":0},{"$f":"'Standing Data'!#REF!","v":{"$error":"#REF!"}},"Fin.Return","H919",{"$f":"'Fin.Return - Other Notes'!H239","v":0}]
[{"$f":"'Standing Data'!$D$12","v":{"$error":"#N/A"}},{"$f":"'Standing Data'!$F$9","v":0},{"$f":"'Standing Data'!#REF!","v":{"$error":"#REF!"}},"Fin.Return","H920",{"$f":"'Fin.Return - Other Notes'!H240","v":0}]
[{"$f":"'Standing Data'!$D$12","v":{"$error":"#N/A"}},{"$f":"'Standing Data'!$F$9","v":0},{"$f":"'Standing Data'!#REF!","v":{"$error":"#REF!"}},"Fin.Return","H922",{"$f":"'Fin.Return - Other Notes'!H242","v":0}]
[{"$f":"'Standing Data'!$D$12","v":{"$error":"#N/A"}},{"$f":"'Standing Data'!$F$9","v":0},{"$f":"'Standing Data'!#REF!","v":{"$error":"#REF!"}},"Fin.Return","H924",{"$f":"'Fin.Return - Other Notes'!H244","v":0}]
[{"$f":"'Standing Data'!$D$12","v":{"$error":"#N/A"}},{"$f":"'Standing Data'!$F$9","v":0},{"$f":"'Standing Data'!#REF!","v":{"$error":"#REF!"}},"Fin.Return","H925",{"$f":"'Fin.Return - Other Notes'!H245","v":0}]
[{"$f":"'Standing Data'!$D$12","v":{"$error":"#N/A"}},{"$f":"'Standing Data'!$F$9","v":0},{"$f":"'Standing Data'!#REF!","v":{"$error":"#REF!"}},"Fin.Return","H926",{"$f":"'Fin.Return - Other Notes'!H246","v":0}]
[{"$f":"'Standing Data'!$D$12","v":{"$error":"#N/A"}},{"$f":"'Standing Data'!$F$9","v":0},{"$f":"'Standing Data'!#REF!","v":{"$error":"#REF!"}},"Fin.Return","H927",{"$f":"'Fin.Return - Other Notes'!H247","v":0}]
[{"$f":"'Standing Data'!$D$12","v":{"$error":"#N/A"}},{"$f":"'Standing Data'!$F$9","v":0},{"$f":"'Standing Data'!#REF!","v":{"$error":"#REF!"}},"Fin.Return","H928",{"$f":"'Fin.Return - Other Notes'!H248","v":0}]
[{"$f":"'Standing Data'!$D$12","v":{"$error":"#N/A"}},{"$f":"'Standing Data'!$F$9","v":0},{"$f":"'Standing Data'!#REF!","v":{"$error":"#REF!"}},"Fin.Return","H929",{"$f":"'Fin.Return - Other Notes'!H249","v":0}]
[{"$f":"'Standing Data'!$D$12","v":{"$error":"#N/A"}},{"$f":"'Standing Data'!$F$9","v":0},{"$f":"'Standing Data'!#REF!","v":{"$error":"#REF!"}},"Fin.Return","H930",{"$f":"'Fin.Return - Other Notes'!H250","v":0}]
[{"$f":"'Standing Data'!$D$12","v":{"$error":"#N/A"}},{"$f":"'Standing Data'!$F$9","v":0},{"$f":"'Standing Data'!#REF!","v":{"$error":"#REF!"}},"Fin.Return","H931",{"$f":"'Fin.Return - Other Notes'!H251","v":0}]
[{"$f":"'Standing Data'!$D$12","v":{"$error":"#N/A"}},{"$f":"'Standing Data'!$F$9","v":0},{"$f":"'Standing Data'!#REF!","v":{"$error":"#REF!"}},"Fin.Return","H933",{"$f":"'Fin.Return - Other Notes'!H253","v":0}]
[{"$f":"'Standing Data'!$D$12","v":{"$error":"#N/A"}},{"$f":"'Standing Data'!$F$9","v":0},{"$f":"'Standing Data'!#REF!","v":{"$error":"#REF!"}},"Fin.Return","H934",{"$f":"'Fin.Return - Other Notes'!H254","v":0}]
[{"$f":"'Standing Data'!$D$12","v":{"$error":"#N/A"}},{"$f":"'Standing Data'!$F$9","v":0},{"$f":"'Standing Data'!#REF!","v":{"$error":"#REF!"}},"Fin.Return","H935",{"$f":"'Fin.Return - Other Notes'!H255","v":0}]
[{"$f":"'Standing Data'!$D$12","v":{"$error":"#N/A"}},{"$f":"'Standing Data'!$F$9","v":0},{"$f":"'Standing Data'!#REF!","v":{"$error":"#REF!"}},"Fin.Return","H936",{"$f":"'Fin.Return - Other Notes'!H256","v":0}]
[{"$f":"'Standing Data'!$D$12","v":{"$error":"#N/A"}},{"$f":"'Standing Data'!$F$9","v":0},{"$f":"'Standing Data'!#REF!","v":{"$error":"#REF!"}},"Fin.Return","H938",{"$f":"'Fin.Return - Other Notes'!H258","v":0}]
[{"$f":"'Standing Data'!$D$12","v":{"$error":"#N/A"}},{"$f":"'Standing Data'!$F$9","v":0},{"$f":"'Standing Data'!#REF!","v":{"$error":"#REF!"}},"Fin.Return","H940",{"$f":"'Fin.Return - Other Notes'!H260","v":0}]
[{"$f":"'Standing Data'!$D$12","v":{"$error":"#N/A"}},{"$f":"'Standing Data'!$F$9","v":0},{"$f":"'Standing Data'!#REF!","v":{"$error":"#REF!"}},"Fin.Return","H942",{"$f":"'Fin.Return - Other Notes'!H262","v":0}]
[{"$f":"'Standing Data'!$D$12","v":{"$error":"#N/A"}},{"$f":"'Standing Data'!$F$9","v":0},{"$f":"'Standing Data'!#REF!","v":{"$error":"#REF!"}},"Fin.Return","H957",{"$f":"'Fin.Return - Other Notes'!#REF!","v":{"$error":"#REF!"}}]
[{"$f":"'Standing Data'!$D$12","v":{"$error":"#N/A"}},{"$f":"'Standing Data'!$F$9","v":0},{"$f":"'Standing Data'!#REF!","v":{"$error":"#REF!"}},"Fin.Return","H958",{"$f":"'Fin.Return - Other Notes'!#REF!","v":{"$error":"#REF!"}}]
[{"$f":"'Standing Data'!$D$12","v":{"$error":"#N/A"}},{"$f":"'Standing Data'!$F$9","v":0},{"$f":"'Standing Data'!#REF!","v":{"$error":"#REF!"}},"Fin.Return","H959",{"$f":"'Fin.Return - Other Notes'!#REF!","v":{"$error":"#REF!"}}]
[{"$f":"'Standing Data'!$D$12","v":{"$error":"#N/A"}},{"$f":"'Standing Data'!$F$9","v":0},{"$f":"'Standing Data'!#REF!","v":{"$error":"#REF!"}},"Fin.Return","H961",{"$f":"'Fin.Return - Other Notes'!#REF!","v":{"$error":"#REF!"}}]
[{"$f":"'Standing Data'!$D$12","v":{"$error":"#N/A"}},{"$f":"'Standing Data'!$F$9","v":0},{"$f":"'Standing Data'!#REF!","v":{"$error":"#REF!"}},"Fin.Return","H969",{"$f":"'Fin.Return - Other Notes'!H359","v":0}]
[{"$f":"'Standing Data'!$D$12","v":{"$error":"#N/A"}},{"$f":"'Standing Data'!$F$9","v":0},{"$f":"'Standing Data'!#REF!","v":{"$error":"#REF!"}},"Fin.Return","H970",{"$f":"'Fin.Return - Other Notes'!H360","v":0}]
[{"$f":"'Standing Data'!$D$12","v":{"$error":"#N/A"}},{"$f":"'Standing Data'!$F$9","v":0},{"$f":"'Standing Data'!#REF!","v":{"$error":"#REF!"}},"Fin.Return","H971",{"$f":"'Fin.Return - Other Notes'!H361","v":0}]
[{"$f":"'Standing Data'!$D$12","v":{"$error":"#N/A"}},{"$f":"'Standing Data'!$F$9","v":0},{"$f":"'Standing Data'!#REF!","v":{"$error":"#REF!"}},"Fin.Return","H973",{"$f":"'Fin.Return - Other Notes'!H363","v":0}]
[{"$f":"'Standing Data'!$D$12","v":{"$error":"#N/A"}},{"$f":"'Standing Data'!$F$9","v":0},{"$f":"'Standing Data'!#REF!","v":{"$error":"#REF!"}},"Fin.Return","H974",{"$f":"'Fin.Return - Other Notes'!H364","v":0}]
[{"$f":"'Standing Data'!$D$12","v":{"$error":"#N/A"}},{"$f":"'Standing Data'!$F$9","v":0},{"$f":"'Standing Data'!#REF!","v":{"$error":"#REF!"}},"Fin.Return","H976",{"$f":"'Fin.Return - Other Notes'!H366","v":0}]
[{"$f":"'Standing Data'!$D$12","v":{"$error":"#N/A"}},{"$f":"'Standing Data'!$F$9","v":0},{"$f":"'Standing Data'!#REF!","v":{"$error":"#REF!"}},"Fin.Return","H986",{"$f":"'Fin.Return - Other Notes'!H374","v":0}]
[{"$f":"'Standing Data'!$D$12","v":{"$error":"#N/A"}},{"$f":"'Standing Data'!$F$9","v":0},{"$f":"'Standing Data'!#REF!","v":{"$error":"#REF!"}},"Fin.Return","H987",{"$f":"'Fin.Return - Other Notes'!H375","v":0}]
[{"$f":"'Standing Data'!$D$12","v":{"$error":"#N/A"}},{"$f":"'Standing Data'!$F$9","v":0},{"$f":"'Standing Data'!#REF!","v":{"$error":"#REF!"}},"Fin.Return","H988",{"$f":"'Fin.Return - Other Notes'!H376","v":0}]
[{"$f":"'Standing Data'!$D$12","v":{"$error":"#N/A"}},{"$f":"'Standing Data'!$F$9","v":0},{"$f":"'Standing Data'!#REF!","v":{"$error":"#REF!"}},"Fin.Return","H990",{"$f":"'Fin.Return - Other Notes'!H378","v":0}]
[{"$f":"'Standing Data'!$D$12","v":{"$error":"#N/A"}},{"$f":"'Standing Data'!$F$9","v":0},{"$f":"'Standing Data'!#REF!","v":{"$error":"#REF!"}},"Fin.Return","H991",{"$f":"'Fin.Return - Other Notes'!H379","v":0}]
[{"$f":"'Standing Data'!$D$12","v":{"$error":"#N/A"}},{"$f":"'Standing Data'!$F$9","v":0},{"$f":"'Standing Data'!#REF!","v":{"$error":"#REF!"}},"Fin.Return","H992",{"$f":"'Fin.Return - Other Notes'!H380","v":0}]
[{"$f":"'Standing Data'!$D$12","v":{"$error":"#N/A"}},{"$f":"'Standing Data'!$F$9","v":0},{"$f":"'Standing Data'!#REF!","v":{"$error":"#REF!"}},"Fin.Return","H994",{"$f":"'Fin.Return - Other Notes'!H382","v":0}]
[{"$f":"'Standing Data'!$D$12","v":{"$error":"#N/A"}},{"$f":"'Standing Data'!$F$9","v":0},{"$f":"'Standing Data'!#REF!","v":{"$error":"#REF!"}},"Fin.Return","H995",{"$f":"'Fin.Return - Other Notes'!H383","v":0}]
[{"$f":"'Standing Data'!$D$12","v":{"$error":"#N/A"}},{"$f":"'Standing Data'!$F$9","v":0},{"$f":"'Standing Data'!#REF!","v":{"$error":"#REF!"}},"Fin.Return","H996",{"$f":"'Fin.Return - Other Notes'!H384","v":0}]
[{"$f":"'Standing Data'!$D$12","v":{"$error":"#N/A"}},{"$f":"'Standing Data'!$F$9","v":0},{"$f":"'Standing Data'!#REF!","v":{"$error":"#REF!"}},"Fin.Return","H998",{"$f":"'Fin.Return - Other Notes'!H386","v":0}]
[{"$f":"'Standing Data'!$D$12","v":{"$error":"#N/A"}},{"$f":"'Standing Data'!$F$9","v":0},{"$f":"'Standing Data'!#REF!","v":{"$error":"#REF!"}},"Fin.Return","H999",{"$f":"'Fin.Return - Other Notes'!H387","v":0}]
[{"$f":"'Standing Data'!$D$12","v":{"$error":"#N/A"}},{"$f":"'Standing Data'!$F$9","v":0},{"$f":"'Standing Data'!#REF!","v":{"$error":"#REF!"}},"Fin.Return","H1001",{"$f":"'Fin.Return - Other Notes'!H389","v":0}]
[{"$f":"'Standing Data'!$D$12","v":{"$error":"#N/A"}},{"$f":"'Standing Data'!$F$9","v":0},{"$f":"'Standing Data'!#REF!","v":{"$error":"#REF!"}},"Fin.Return","H1009",{"$f":"'Fin.Return - Other Notes'!H397","v":0}]
[{"$f":"'Standing Data'!$D$12","v":{"$error":"#N/A"}},{"$f":"'Standing Data'!$F$9","v":0},{"$f":"'Standing Data'!#REF!","v":{"$error":"#REF!"}},"Fin.Return","H1010",{"$f":"'Fin.Return - Other Notes'!H398","v":0}]
[{"$f":"'Standing Data'!$D$12","v":{"$error":"#N/A"}},{"$f":"'Standing Data'!$F$9","v":0},{"$f":"'Standing Data'!#REF!","v":{"$error":"#REF!"}},"Fin.Return","H1011",{"$f":"'Fin.Return - Other Notes'!H399","v":0}]
[{"$f":"'Standing Data'!$D$12","v":{"$error":"#N/A"}},{"$f":"'Standing Data'!$F$9","v":0},{"$f":"'Standing Data'!#REF!","v":{"$error":"#REF!"}},"Fin.Return","H1013",{"$f":"'Fin.Return - Other Notes'!H401","v":0}]
[{"$f":"'Standing Data'!$D$12","v":{"$error":"#N/A"}},{"$f":"'Standing Data'!$F$9","v":0},{"$f":"'Standing Data'!#REF!","v":{"$error":"#REF!"}},"Fin.Return","H1014",{"$f":"'Fin.Return - Other Notes'!H402","v":0}]
[{"$f":"'Standing Data'!$D$12","v":{"$error":"#N/A"}},{"$f":"'Standing Data'!$F$9","v":0},{"$f":"'Standing Data'!#REF!","v":{"$error":"#REF!"}},"Fin.Return","H1015",{"$f":"'Fin.Return - Other Notes'!H403","v":0}]
[{"$f":"'Standing Data'!$D$12","v":{"$error":"#N/A"}},{"$f":"'Standing Data'!$F$9","v":0},{"$f":"'Standing Data'!#REF!","v":{"$error":"#REF!"}},"Fin.Return","H1017",{"$f":"'Fin.Return - Other Notes'!H405","v":0}]
[{"$f":"'Standing Data'!$D$12","v":{"$error":"#N/A"}},{"$f":"'Standing Data'!$F$9","v":0},{"$f":"'Standing Data'!#REF!","v":{"$error":"#REF!"}},"Fin.Return","H1018",{"$f":"'Fin.Return - Other Notes'!H406","v":0}]
[{"$f":"'Standing Data'!$D$12","v":{"$error":"#N/A"}},{"$f":"'Standing Data'!$F$9","v":0},{"$f":"'Standing Data'!#REF!","v":{"$error":"#REF!"}},"Fin.Return","H1019",{"$f":"'Fin.Return - Other Notes'!H407","v":0}]
[{"$f":"'Standing Data'!$D$12","v":{"$error":"#N/A"}},{"$f":"'Standing Data'!$F$9","v":0},{"$f":"'Standing Data'!#REF!","v":{"$error":"#REF!"}},"Fin.Return","H1021",{"$f":"'Fin.Return - Other Notes'!H409","v":0}]
[{"$f":"'Standing Data'!$D$12","v":{"$error":"#N/A"}},{"$f":"'Standing Data'!$F$9","v":0},{"$f":"'Standing Data'!#REF!","v":{"$error":"#REF!"}},"Fin.Return","H1022",{"$f":"'Fin.Return - Other Notes'!H410","v":0}]
[{"$f":"'Standing Data'!$D$12","v":{"$error":"#N/A"}},{"$f":"'Standing Data'!$F$9","v":0},{"$f":"'Standing Data'!#REF!","v":{"$error":"#REF!"}},"Fin.Return","H1024",{"$f":"'Fin.Return - Other Notes'!H412","v":0}]
[{"$f":"'Standing Data'!$D$12","v":{"$error":"#N/A"}},{"$f":"'Standing Data'!$F$9","v":0},{"$f":"'Standing Data'!#REF!","v":{"$error":"#REF!"}},"Fin.Return","H1030",{"$f":"'Fin.Return - Other Notes'!#REF!","v":{"$error":"#REF!"}}]
[{"$f":"'Standing Data'!$D$12","v":{"$error":"#N/A"}},{"$f":"'Standing Data'!$F$9","v":0},{"$f":"'Standing Data'!#REF!","v":{"$error":"#REF!"}},"Fin.Return","H1031",{"$f":"'Fin.Return - Other Notes'!#REF!","v":{"$error":"#REF!"}}]
[{"$f":"'Standing Data'!$D$12","v":{"$error":"#N/A"}},{"$f":"'Standing Data'!$F$9","v":0},{"$f":"'Standing Data'!#REF!","v":{"$error":"#REF!"}},"Fin.Return","H1032",{"$f":"'Fin.Return - Other Notes'!#REF!","v":{"$error":"#REF!"}}]
[{"$f":"'Standing Data'!$D$12","v":{"$error":"#N/A"}},{"$f":"'Standing Data'!$F$9","v":0},{"$f":"'Standing Data'!#REF!","v":{"$error":"#REF!"}},"Fin.Return","H1034",{"$f":"'Fin.Return - Other Notes'!#REF!","v":{"$error":"#REF!"}}]
[{"$f":"'Standing Data'!$D$12","v":{"$error":"#N/A"}},{"$f":"'Standing Data'!$F$9","v":0},{"$f":"'Standing Data'!#REF!","v":{"$error":"#REF!"}},"Fin.Return","H1042",{"$f":"'Fin.Return - Other Notes'!H418","v":0}]
[{"$f":"'Standing Data'!$D$12","v":{"$error":"#N/A"}},{"$f":"'Standing Data'!$F$9","v":0},{"$f":"'Standing Data'!#REF!","v":{"$error":"#REF!"}},"Fin.Return","H1043",{"$f":"'Fin.Return - Other Notes'!H419","v":0}]
[{"$f":"'Standing Data'!$D$12","v":{"$error":"#N/A"}},{"$f":"'Standing Data'!$F$9","v":0},{"$f":"'Standing Data'!#REF!","v":{"$error":"#REF!"}},"Fin.Return","H1044",{"$f":"'Fin.Return - Other Notes'!H420","v":0}]
[{"$f":"'Standing Data'!$D$12","v":{"$error":"#N/A"}},{"$f":"'Standing Data'!$F$9","v":0},{"$f":"'Standing Data'!#REF!","v":{"$error":"#REF!"}},"Fin.Return","H1046",{"$f":"'Fin.Return - Other Notes'!H422","v":0}]
[{"$f":"'Standing Data'!$D$12","v":{"$error":"#N/A"}},{"$f":"'Standing Data'!$F$9","v":0},{"$f":"'Standing Data'!#REF!","v":{"$error":"#REF!"}},"Fin.Return","H1047",{"$f":"'Fin.Return - Other Notes'!H423","v":0}]
[{"$f":"'Standing Data'!$D$12","v":{"$error":"#N/A"}},{"$f":"'Standing Data'!$F$9","v":0},{"$f":"'Standing Data'!#REF!","v":{"$error":"#REF!"}},"Fin.Return","H1049",{"$f":"'Fin.Return - Other Notes'!H425","v":0}]
[{"$f":"'Standing Data'!$D$12","v":{"$error":"#N/A"}},{"$f":"'Standing Data'!$F$9","v":0},{"$f":"'Standing Data'!#REF!","v":{"$error":"#REF!"}},"Fin.Return","H1059",{"$f":"'Fin.Return - Other Notes'!H433","v":0}]
[{"$f":"'Standing Data'!$D$12","v":{"$error":"#N/A"}},{"$f":"'Standing Data'!$F$9","v":0},{"$f":"'Standing Data'!#REF!","v":{"$error":"#REF!"}},"Fin.Return","H1060",{"$f":"'Fin.Return - Other Notes'!H434","v":0}]
[{"$f":"'Standing Data'!$D$12","v":{"$error":"#N/A"}},{"$f":"'Standing Data'!$F$9","v":0},{"$f":"'Standing Data'!#REF!","v":{"$error":"#REF!"}},"Fin.Return","H1061",{"$f":"'Fin.Return - Other Notes'!H435","v":0}]
[{"$f":"'Standing Data'!$D$12","v":{"$error":"#N/A"}},{"$f":"'Standing Data'!$F$9","v":0},{"$f":"'Standing Data'!#REF!","v":{"$error":"#REF!"}},"Fin.Return","H1063",{"$f":"'Fin.Return - Other Notes'!H437","v":0}]
[{"$f":"'Standing Data'!$D$12","v":{"$error":"#N/A"}},{"$f":"'Standing Data'!$F$9","v":0},{"$f":"'Standing Data'!#REF!","v":{"$error":"#REF!"}},"Fin.Return","H1064",{"$f":"'Fin.Return - Other Notes'!H438","v":0}]
[{"$f":"'Standing Data'!$D$12","v":{"$error":"#N/A"}},{"$f":"'Standing Data'!$F$9","v":0},{"$f":"'Standing Data'!#REF!","v":{"$error":"#REF!"}},"Fin.Return","H1065",{"$f":"'Fin.Return - Other Notes'!H439","v":0}]
[{"$f":"'Standing Data'!$D$12","v":{"$error":"#N/A"}},{"$f":"'Standing Data'!$F$9","v":0},{"$f":"'Standing Data'!#REF!","v":{"$error":"#REF!"}},"Fin.Return","H1067",{"$f":"'Fin.Return - Other Notes'!H441","v":0}]
[{"$f":"'Standing Data'!$D$12","v":{"$error":"#N/A"}},{"$f":"'Standing Data'!$F$9","v":0},{"$f":"'Standing Data'!#REF!","v":{"$error":"#REF!"}},"Fin.Return","H1068",{"$f":"'Fin.Return - Other Notes'!H442","v":0}]
[{"$f":"'Standing Data'!$D$12","v":{"$error":"#N/A"}},{"$f":"'Standing Data'!$F$9","v":0},{"$f":"'Standing Data'!#REF!","v":{"$error":"#REF!"}},"Fin.Return","H1069",{"$f":"'Fin.Return - Other Notes'!H443","v":0}]
[{"$f":"'Standing Data'!$D$12","v":{"$error":"#N/A"}},{"$f":"'Standing Data'!$F$9","v":0},{"$f":"'Standing Data'!#REF!","v":{"$error":"#REF!"}},"Fin.Return","H1071",{"$f":"'Fin.Return - Other Notes'!H445","v":0}]
[{"$f":"'Standing Data'!$D$12","v":{"$error":"#N/A"}},{"$f":"'Standing Data'!$F$9","v":0},{"$f":"'Standing Data'!#REF!","v":{"$error":"#REF!"}},"Fin.Return","H1072",{"$f":"'Fin.Return - Other Notes'!H446","v":0}]
[{"$f":"'Standing Data'!$D$12","v":{"$error":"#N/A"}},{"$f":"'Standing Data'!$F$9","v":0},{"$f":"'Standing Data'!#REF!","v":{"$error":"#REF!"}},"Fin.Return","H1074",{"$f":"'Fin.Return - Other Notes'!H448","v":0}]
[{"$f":"'Standing Data'!$D$12","v":{"$error":"#N/A"}},{"$f":"'Standing Data'!$F$9","v":0},{"$f":"'Standing Data'!#REF!","v":{"$error":"#REF!"}},"Fin.Return","H1082",{"$f":"'Fin.Return - Other Notes'!H456","v":0}]
[{"$f":"'Standing Data'!$D$12","v":{"$error":"#N/A"}},{"$f":"'Standing Data'!$F$9","v":0},{"$f":"'Standing Data'!#REF!","v":{"$error":"#REF!"}},"Fin.Return","H1083",{"$f":"'Fin.Return - Other Notes'!H457","v":0}]
[{"$f":"'Standing Data'!$D$12","v":{"$error":"#N/A"}},{"$f":"'Standing Data'!$F$9","v":0},{"$f":"'Standing Data'!#REF!","v":{"$error":"#REF!"}},"Fin.Return","H1084",{"$f":"'Fin.Return - Other Notes'!H458","v":0}]
[{"$f":"'Standing Data'!$D$12","v":{"$error":"#N/A"}},{"$f":"'Standing Data'!$F$9","v":0},{"$f":"'Standing Data'!#REF!","v":{"$error":"#REF!"}},"Fin.Return","H1086",{"$f":"'Fin.Return - Other Notes'!H460","v":0}]
[{"$f":"'Standing Data'!$D$12","v":{"$error":"#N/A"}},{"$f":"'Standing Data'!$F$9","v":0},{"$f":"'Standing Data'!#REF!","v":{"$error":"#REF!"}},"Fin.Return","H1087",{"$f":"'Fin.Return - Other Notes'!H461","v":0}]
[{"$f":"'Standing Data'!$D$12","v":{"$error":"#N/A"}},{"$f":"'Standing Data'!$F$9","v":0},{"$f":"'Standing Data'!#REF!","v":{"$error":"#REF!"}},"Fin.Return","H1088",{"$f":"'Fin.Return - Other Notes'!H462","v":0}]
[{"$f":"'Standing Data'!$D$12","v":{"$error":"#N/A"}},{"$f":"'Standing Data'!$F$9","v":0},{"$f":"'Standing Data'!#REF!","v":{"$error":"#REF!"}},"Fin.Return","H1090",{"$f":"'Fin.Return - Other Notes'!H464","v":0}]
[{"$f":"'Standing Data'!$D$12","v":{"$error":"#N/A"}},{"$f":"'Standing Data'!$F$9","v":0},{"$f":"'Standing Data'!#REF!","v":{"$error":"#REF!"}},"Fin.Return","H1091",{"$f":"'Fin.Return - Other Notes'!H465","v":0}]
[{"$f":"'Standing Data'!$D$12","v":{"$error":"#N/A"}},{"$f":"'Standing Data'!$F$9","v":0},{"$f":"'Standing Data'!#REF!","v":{"$error":"#REF!"}},"Fin.Return","H1092",{"$f":"'Fin.Return - Other Notes'!H466","v":0}]
[{"$f":"'Standing Data'!$D$12","v":{"$error":"#N/A"}},{"$f":"'Standing Data'!$F$9","v":0},{"$f":"'Standing Data'!#REF!","v":{"$error":"#REF!"}},"Fin.Return","H1094",{"$f":"'Fin.Return - Other Notes'!H468","v":0}]
[{"$f":"'Standing Data'!$D$12","v":{"$error":"#N/A"}},{"$f":"'Standing Data'!$F$9","v":0},{"$f":"'Standing Data'!#REF!","v":{"$error":"#REF!"}},"Fin.Return","H1095",{"$f":"'Fin.Return - Other Notes'!H469","v":0}]
[{"$f":"'Standing Data'!$D$12","v":{"$error":"#N/A"}},{"$f":"'Standing Data'!$F$9","v":0},{"$f":"'Standing Data'!#REF!","v":{"$error":"#REF!"}},"Fin.Return","H1097",{"$f":"'Fin.Return - Other Notes'!H471","v":0}]
[{"$f":"'Standing Data'!$D$12","v":{"$error":"#N/A"}},{"$f":"'Standing Data'!$F$9","v":0},{"$f":"'Standing Data'!#REF!","v":{"$error":"#REF!"}},"Fin.Return","H1102",{"$f":"'Fin.Return - Other Notes'!H476","v":0}]
[{"$f":"'Standing Data'!$D$12","v":{"$error":"#N/A"}},{"$f":"'Standing Data'!$F$9","v":0},{"$f":"'Standing Data'!#REF!","v":{"$error":"#REF!"}},"Fin.Return","H1103",{"$f":"'Fin.Return - Other Notes'!H477","v":0}]
[{"$f":"'Standing Data'!$D$12","v":{"$error":"#N/A"}},{"$f":"'Standing Data'!$F$9","v":0},{"$f":"'Standing Data'!#REF!","v":{"$error":"#REF!"}},"Fin.Return","H1104",{"$f":"'Fin.Return - Other Notes'!H478","v":0}]
[{"$f":"'Standing Data'!$D$12","v":{"$error":"#N/A"}},{"$f":"'Standing Data'!$F$9","v":0},{"$f":"'Standing Data'!#REF!","v":{"$error":"#REF!"}},"Fin.Return","H1106",{"$f":"'Fin.Return - Other Notes'!H480","v":0}]
[{"$f":"'Standing Data'!$D$12","v":{"$error":"#N/A"}},{"$f":"'Standing Data'!$F$9","v":0},{"$f":"'Standing Data'!#REF!","v":{"$error":"#REF!"}},"Fin.Return","H1111",{"$f":"'Fin.Return - Other Notes'!H485","v":0}]
[{"$f":"'Standing Data'!$D$12","v":{"$error":"#N/A"}},{"$f":"'Standing Data'!$F$9","v":0},{"$f":"'Standing Data'!#REF!","v":{"$error":"#REF!"}},"Fin.Return","H1112",{"$f":"'Fin.Return - Other Notes'!H486","v":0}]
[{"$f":"'Standing Data'!$D$12","v":{"$error":"#N/A"}},{"$f":"'Standing Data'!$F$9","v":0},{"$f":"'Standing Data'!#REF!","v":{"$error":"#REF!"}},"Fin.Return","H1113",{"$f":"'Fin.Return - Other Notes'!H487","v":0}]
[{"$f":"'Standing Data'!$D$12","v":{"$error":"#N/A"}},{"$f":"'Standing Data'!$F$9","v":0},{"$f":"'Standing Data'!#REF!","v":{"$error":"#REF!"}},"Fin.Return","H1115",{"$f":"'Fin.Return - Other Notes'!H489","v":0}]
[{"$f":"'Standing Data'!$D$12","v":{"$error":"#N/A"}},{"$f":"'Standing Data'!$F$9","v":0},{"$f":"'Standing Data'!#REF!","v":{"$error":"#REF!"}},"Fin.Return","H1121",{"$f":"'Fin.Return - Other Notes'!H495","v":0}]
[{"$f":"'Standing Data'!$D$12","v":{"$error":"#N/A"}},{"$f":"'Standing Data'!$F$9","v":0},{"$f":"'Standing Data'!#REF!","v":{"$error":"#REF!"}},"Fin.Return","H1122",{"$f":"'Fin.Return - Other Notes'!H496","v":0}]
[{"$f":"'Standing Data'!$D$12","v":{"$error":"#N/A"}},{"$f":"'Standing Data'!$F$9","v":0},{"$f":"'Standing Data'!#REF!","v":{"$error":"#REF!"}},"Fin.Return","H1123",{"$f":"'Fin.Return - Other Notes'!H497","v":0}]
[{"$f":"'Standing Data'!$D$12","v":{"$error":"#N/A"}},{"$f":"'Standing Data'!$F$9","v":0},{"$f":"'Standing Data'!#REF!","v":{"$error":"#REF!"}},"Fin.Return","H1125",{"$f":"'Fin.Return - Other Notes'!H499","v":0}]
[{"$f":"'Standing Data'!$D$12","v":{"$error":"#N/A"}},{"$f":"'Standing Data'!$F$9","v":0},{"$f":"'Standing Data'!#REF!","v":{"$error":"#REF!"}},"Fin.Return","H1131",{"$f":"'Fin.Return - Other Notes'!H505","v":0}]
[{"$f":"'Standing Data'!$D$12","v":{"$error":"#N/A"}},{"$f":"'Standing Data'!$F$9","v":0},{"$f":"'Standing Data'!#REF!","v":{"$error":"#REF!"}},"Fin.Return","H1132",{"$f":"'Fin.Return - Other Notes'!H506","v":0}]
[{"$f":"'Standing Data'!$D$12","v":{"$error":"#N/A"}},{"$f":"'Standing Data'!$F$9","v":0},{"$f":"'Standing Data'!#REF!","v":{"$error":"#REF!"}},"Fin.Return","H1133",{"$f":"'Fin.Return - Other Notes'!H507","v":0}]
[{"$f":"'Standing Data'!$D$12","v":{"$error":"#N/A"}},{"$f":"'Standing Data'!$F$9","v":0},{"$f":"'Standing Data'!#REF!","v":{"$error":"#REF!"}},"Fin.Return","H1135",{"$f":"'Fin.Return - Other Notes'!H509","v":0}]
[{"$f":"'Standing Data'!$D$12","v":{"$error":"#N/A"}},{"$f":"'Standing Data'!$F$9","v":0},{"$f":"'Standing Data'!#REF!","v":{"$error":"#REF!"}},"Fin.Return","H1140",{"$f":"'Fin.Return - Other Notes'!H514","v":0}]
[{"$f":"'Standing Data'!$D$12","v":{"$error":"#N/A"}},{"$f":"'Standing Data'!$F$9","v":0},{"$f":"'Standing Data'!#REF!","v":{"$error":"#REF!"}},"Fin.Return","H1141",{"$f":"'Fin.Return - Other Notes'!H515","v":0}]
[{"$f":"'Standing Data'!$D$12","v":{"$error":"#N/A"}},{"$f":"'Standing Data'!$F$9","v":0},{"$f":"'Standing Data'!#REF!","v":{"$error":"#REF!"}},"Fin.Return","H1142",{"$f":"'Fin.Return - Other Notes'!H516","v":0}]
[{"$f":"'Standing Data'!$D$12","v":{"$error":"#N/A"}},{"$f":"'Standing Data'!$F$9","v":0},{"$f":"'Standing Data'!#REF!","v":{"$error":"#REF!"}},"Fin.Return","H1144",{"$f":"'Fin.Return - Other Notes'!H518","v":0}]
[{"$f":"'Standing Data'!$D$12","v":{"$error":"#N/A"}},{"$f":"'Standing Data'!$F$9","v":0},{"$f":"'Standing Data'!#REF!","v":{"$error":"#REF!"}},"Fin.Return","H1149",{"$f":"'Fin.Return - SOFA'!#REF!","v":{"$error":"#REF!"}}]
[{"$f":"'Standing Data'!$D$12","v":{"$error":"#N/A"}},{"$f":"'Standing Data'!$F$9","v":0},{"$f":"'Standing Data'!#REF!","v":{"$error":"#REF!"}},"Fin.Return","H1150",{"$f":"'Fin.Return - SOFA'!#REF!","v":{"$error":"#REF!"}}]
[{"$f":"'Standing Data'!$D$12","v":{"$error":"#N/A"}},{"$f":"'Standing Data'!$F$9","v":0},{"$f":"'Standing Data'!#REF!","v":{"$error":"#REF!"}},"Fin.Return","H1151",{"$f":"'Fin.Return - SOFA'!#REF!","v":{"$error":"#REF!"}}]
[{"$f":"'Standing Data'!$D$12","v":{"$error":"#N/A"}},{"$f":"'Standing Data'!$F$9","v":0},{"$f":"'Standing Data'!#REF!","v":{"$error":"#REF!"}},"Fin.Return","H1153",{"$f":"'Fin.Return - SOFA'!#REF!","v":{"$error":"#REF!"}}]
[{"$f":"'Standing Data'!$D$12","v":{"$error":"#N/A"}},{"$f":"'Standing Data'!$F$9","v":0},{"$f":"'Standing Data'!#REF!","v":{"$error":"#REF!"}},"Fin.Return","H1159",{"$f":"'Fin.Return - SOFA'!#REF!","v":{"$error":"#REF!"}}]
[{"$f":"'Standing Data'!$D$12","v":{"$error":"#N/A"}},{"$f":"'Standing Data'!$F$9","v":0},{"$f":"'Standing Data'!#REF!","v":{"$error":"#REF!"}},"Fin.Return","H1160",{"$f":"'Fin.Return - SOFA'!#REF!","v":{"$error":"#REF!"}}]
[{"$f":"'Standing Data'!$D$12","v":{"$error":"#N/A"}},{"$f":"'Standing Data'!$F$9","v":0},{"$f":"'Standing Data'!#REF!","v":{"$error":"#REF!"}},"Fin.Return","H1161",{"$f":"'Fin.Return - SOFA'!#REF!","v":{"$error":"#REF!"}}]
[{"$f":"'Standing Data'!$D$12","v":{"$error":"#N/A"}},{"$f":"'Standing Data'!$F$9","v":0},{"$f":"'Standing Data'!#REF!","v":{"$error":"#REF!"}},"Fin.Return","H1162",{"$f":"'Fin.Return - SOFA'!#REF!","v":{"$error":"#REF!"}}]
[{"$f":"'Standing Data'!$D$12","v":{"$error":"#N/A"}},{"$f":"'Standing Data'!$F$9","v":0},{"$f":"'Standing Data'!#REF!","v":{"$error":"#REF!"}},"Fin.Return","H1163",{"$f":"'Fin.Return - SOFA'!#REF!","v":{"$error":"#REF!"}}]
[{"$f":"'Standing Data'!$D$12","v":{"$error":"#N/A"}},{"$f":"'Standing Data'!$F$9","v":0},{"$f":"'Standing Data'!#REF!","v":{"$error":"#REF!"}},"Fin.Return","H1164",{"$f":"'Fin.Return - SOFA'!#REF!","v":{"$error":"#REF!"}}]
[{"$f":"'Standing Data'!$D$12","v":{"$error":"#N/A"}},{"$f":"'Standing Data'!$F$9","v":0},{"$f":"'Standing Data'!#REF!","v":{"$error":"#REF!"}},"Fin.Return","H1165",{"$f":"'Fin.Return - SOFA'!#REF!","v":{"$error":"#REF!"}}]
[{"$f":"'Standing Data'!$D$12","v":{"$error":"#N/A"}},{"$f":"'Standing Data'!$F$9","v":0},{"$f":"'Standing Data'!#REF!","v":{"$error":"#REF!"}},"Fin.Return","H1166",{"$f":"'Fin.Return - SOFA'!#REF!","v":{"$error":"#REF!"}}]
[{"$f":"'Standing Data'!$D$12","v":{"$error":"#N/A"}},{"$f":"'Standing Data'!$F$9","v":0},{"$f":"'Standing Data'!#REF!","v":{"$error":"#REF!"}},"Fin.Return","H1167",{"$f":"'Fin.Return - SOFA'!#REF!","v":{"$error":"#REF!"}}]
[{"$f":"'Standing Data'!$D$12","v":{"$error":"#N/A"}},{"$f":"'Standing Data'!$F$9","v":0},{"$f":"'Standing Data'!#REF!","v":{"$error":"#REF!"}},"Fin.Return","H1168",{"$f":"'Fin.Return - SOFA'!#REF!","v":{"$error":"#REF!"}}]
[{"$f":"'Standing Data'!$D$12","v":{"$error":"#N/A"}},{"$f":"'Standing Data'!$F$9","v":0},{"$f":"'Standing Data'!#REF!","v":{"$error":"#REF!"}},"Fin.Return","H1169",{"$f":"'Fin.Return - SOFA'!#REF!","v":{"$error":"#REF!"}}]
[{"$f":"'Standing Data'!$D$12","v":{"$error":"#N/A"}},{"$f":"'Standing Data'!$F$9","v":0},{"$f":"'Standing Data'!#REF!","v":{"$error":"#REF!"}},"Fin.Return","H1170",{"$f":"'Fin.Return - SOFA'!#REF!","v":{"$error":"#REF!"}}]
[{"$f":"'Standing Data'!$D$12","v":{"$error":"#N/A"}},{"$f":"'Standing Data'!$F$9","v":0},{"$f":"'Standing Data'!#REF!","v":{"$error":"#REF!"}},"Fin.Return","H1171",{"$f":"'Fin.Return - SOFA'!#REF!","v":{"$error":"#REF!"}}]
[{"$f":"'Standing Data'!$D$12","v":{"$error":"#N/A"}},{"$f":"'Standing Data'!$F$9","v":0},{"$f":"'Standing Data'!#REF!","v":{"$error":"#REF!"}},"Fin.Return","H1172",{"$f":"'Fin.Return - SOFA'!#REF!","v":{"$error":"#REF!"}}]
[{"$f":"'Standing Data'!$D$12","v":{"$error":"#N/A"}},{"$f":"'Standing Data'!$F$9","v":0},{"$f":"'Standing Data'!#REF!","v":{"$error":"#REF!"}},"Fin.Return","H1180",{"$f":"'Fin.Return - Other Notes'!H568","v":0}]
[{"$f":"'Standing Data'!$D$12","v":{"$error":"#N/A"}},{"$f":"'Standing Data'!$F$9","v":0},{"$f":"'Standing Data'!#REF!","v":{"$error":"#REF!"}},"Fin.Return","H1181",{"$f":"'Fin.Return - Other Notes'!H569","v":0}]
[{"$f":"'Standing Data'!$D$12","v":{"$error":"#N/A"}},{"$f":"'Standing Data'!$F$9","v":0},{"$f":"'Standing Data'!#REF!","v":{"$error":"#REF!"}},"Fin.Return","H1182",{"$f":"'Fin.Return - Other Notes'!H570","v":0}]
[{"$f":"'Standing Data'!$D$12","v":{"$error":"#N/A"}},{"$f":"'Standing Data'!$F$9","v":0},{"$f":"'Standing Data'!#REF!","v":{"$error":"#REF!"}},"Fin.Return","H1183",{"$f":"'Fin.Return - Other Notes'!H571","v":0}]
[{"$f":"'Standing Data'!$D$12","v":{"$error":"#N/A"}},{"$f":"'Standing Data'!$F$9","v":0},{"$f":"'Standing Data'!#REF!","v":{"$error":"#REF!"}},"Fin.Return","H1184",{"$f":"'Fin.Return - Other Notes'!H572","v":0}]
[{"$f":"'Standing Data'!$D$12","v":{"$error":"#N/A"}},{"$f":"'Standing Data'!$F$9","v":0},{"$f":"'Standing Data'!#REF!","v":{"$error":"#REF!"}},"Fin.Return","H1185",{"$f":"'Fin.Return - Other Notes'!H573","v":0}]
[{"$f":"'Standing Data'!$D$12","v":{"$error":"#N/A"}},{"$f":"'Standing Data'!$F$9","v":0},{"$f":"'Standing Data'!#REF!","v":{"$error":"#REF!"}},"Fin.Return","H1186",{"$f":"'Fin.Return - Other Notes'!H574","v":0}]
[{"$f":"'Standing Data'!$D$12","v":{"$error":"#N/A"}},{"$f":"'Standing Data'!$F$9","v":0},{"$f":"'Standing Data'!#REF!","v":{"$error":"#REF!"}},"Fin.Return","H1187",{"$f":"'Fin.Return - Other Notes'!H575","v":0}]
[{"$f":"'Standing Data'!$D$12","v":{"$error":"#N/A"}},{"$f":"'Standing Data'!$F$9","v":0},{"$f":"'Standing Data'!#REF!","v":{"$error":"#REF!"}},"Fin.Return","H1188",{"$f":"'Fin.Return - Other Notes'!H576","v":0}]
[{"$f":"'Standing Data'!$D$12","v":{"$error":"#N/A"}},{"$f":"'Standing Data'!$F$9","v":0},{"$f":"'Standing Data'!#REF!","v":{"$error":"#REF!"}},"Fin.Return","H1189",{"$f":"'Fin.Return - Other Notes'!H577","v":0}]
[{"$f":"'Standing Data'!$D$12","v":{"$error":"#N/A"}},{"$f":"'Standing Data'!$F$9","v":0},{"$f":"'Standing Data'!#REF!","v":{"$error":"#REF!"}},"Fin.Return","H1190",{"$f":"'Fin.Return - Other Notes'!H578","v":0}]
[{"$f":"'Standing Data'!$D$12","v":{"$error":"#N/A"}},{"$f":"'Standing Data'!$F$9","v":0},{"$f":"'Standing Data'!#REF!","v":{"$error":"#REF!"}},"Fin.Return","H1191",{"$f":"'Fin.Return - Other Notes'!H579","v":0}]
[{"$f":"'Standing Data'!$D$12","v":{"$error":"#N/A"}},{"$f":"'Standing Data'!$F$9","v":0},{"$f":"'Standing Data'!#REF!","v":{"$error":"#REF!"}},"Fin.Return","H1192",{"$f":"'Fin.Return - Other Notes'!H580","v":0}]
[{"$f":"'Standing Data'!$D$12","v":{"$error":"#N/A"}},{"$f":"'Standing Data'!$F$9","v":0},{"$f":"'Standing Data'!#REF!","v":{"$error":"#REF!"}},"Fin.Return","H1193",{"$f":"'Fin.Return - Other Notes'!H581","v":0}]
[{"$f":"'Standing Data'!$D$12","v":{"$error":"#N/A"}},{"$f":"'Standing Data'!$F$9","v":0},{"$f":"'Standing Data'!#REF!","v":{"$error":"#REF!"}},"Fin.Return","H1194",{"$f":"'Fin.Return - Other Notes'!H582","v":0}]
[{"$f":"'Standing Data'!$D$12","v":{"$error":"#N/A"}},{"$f":"'Standing Data'!$F$9","v":0},{"$f":"'Standing Data'!#REF!","v":{"$error":"#REF!"}},"Fin.Return","H1195",{"$f":"'Fin.Return - Other Notes'!H583","v":0}]
[{"$f":"'Standing Data'!$D$12","v":{"$error":"#N/A"}},{"$f":"'Standing Data'!$F$9","v":0},{"$f":"'Standing Data'!#REF!","v":{"$error":"#REF!"}},"Fin.Return","H1196",{"$f":"'Fin.Return - Other Notes'!H584","v":0}]
[{"$f":"'Standing Data'!$D$12","v":{"$error":"#N/A"}},{"$f":"'Standing Data'!$F$9","v":0},{"$f":"'Standing Data'!#REF!","v":{"$error":"#REF!"}},"Fin.Return","H1197",{"$f":"'Fin.Return - Other Notes'!H585","v":0}]
[{"$f":"'Standing Data'!$D$12","v":{"$error":"#N/A"}},{"$f":"'Standing Data'!$F$9","v":0},{"$f":"'Standing Data'!#REF!","v":{"$error":"#REF!"}},"Fin.Return","H1198",{"$f":"'Fin.Return - Other Notes'!H586","v":0}]
[{"$f":"'Standing Data'!$D$12","v":{"$error":"#N/A"}},{"$f":"'Standing Data'!$F$9","v":0},{"$f":"'Standing Data'!#REF!","v":{"$error":"#REF!"}},"Fin.Return","H1199",{"$f":"'Fin.Return - Other Notes'!H587","v":0}]
[{"$f":"'Standing Data'!$D$12","v":{"$error":"#N/A"}},{"$f":"'Standing Data'!$F$9","v":0},{"$f":"'Standing Data'!#REF!","v":{"$error":"#REF!"}},"Fin.Return","H1200",{"$f":"'Fin.Return - Other Notes'!H588","v":0}]
[{"$f":"'Standing Data'!$D$12","v":{"$error":"#N/A"}},{"$f":"'Standing Data'!$F$9","v":0},{"$f":"'Standing Data'!#REF!","v":{"$error":"#REF!"}},"Fin.Return","H1201",{"$f":"'Fin.Return - Other Notes'!H589","v":0}]
[{"$f":"'Standing Data'!$D$12","v":{"$error":"#N/A"}},{"$f":"'Standing Data'!$F$9","v":0},{"$f":"'Standing Data'!#REF!","v":{"$error":"#REF!"}},"Fin.Return","H1202",{"$f":"'Fin.Return - Other Notes'!H590","v":0}]
[{"$f":"'Standing Data'!$D$12","v":{"$error":"#N/A"}},{"$f":"'Standing Data'!$F$9","v":0},{"$f":"'Standing Data'!#REF!","v":{"$error":"#REF!"}},"Fin.Return","H1203",{"$f":"'Fin.Return - Other Notes'!H591","v":0}]
[{"$f":"'Standing Data'!$D$12","v":{"$error":"#N/A"}},{"$f":"'Standing Data'!$F$9","v":0},{"$f":"'Standing Data'!#REF!","v":{"$error":"#REF!"}},"Fin.Return","H1204",{"$f":"'Fin.Return - Other Notes'!H592","v":0}]
[{"$f":"'Standing Data'!$D$12","v":{"$error":"#N/A"}},{"$f":"'Standing Data'!$F$9","v":0},{"$f":"'Standing Data'!#REF!","v":{"$error":"#REF!"}},"Fin.Return","H1205",{"$f":"'Fin.Return - Other Notes'!H593","v":0}]
[{"$f":"'Standing Data'!$D$12","v":{"$error":"#N/A"}},{"$f":"'Standing Data'!$F$9","v":0},{"$f":"'Standing Data'!#REF!","v":{"$error":"#REF!"}},"Fin.Return","H1206",{"$f":"'Fin.Return - Other Notes'!H594","v":0}]
[{"$f":"'Standing Data'!$D$12","v":{"$error":"#N/A"}},{"$f":"'Standing Data'!$F$9","v":0},{"$f":"'Standing Data'!#REF!","v":{"$error":"#REF!"}},"Fin.Return","H1207",{"$f":"'Fin.Return - Other Notes'!H595","v":0}]
[{"$f":"'Standing Data'!$D$12","v":{"$error":"#N/A"}},{"$f":"'Standing Data'!$F$9","v":0},{"$f":"'Standing Data'!#REF!","v":{"$error":"#REF!"}},"Fin.Return","H1208",{"$f":"'Fin.Return - Other Notes'!H596","v":0}]
[{"$f":"'Standing Data'!$D$12","v":{"$error":"#N/A"}},{"$f":"'Standing Data'!$F$9","v":0},{"$f":"'Standing Data'!#REF!","v":{"$error":"#REF!"}},"Fin.Return","H1209",{"$f":"'Fin.Return - Other Notes'!H597","v":0}]
[{"$f":"'Standing Data'!$D$12","v":{"$error":"#N/A"}},{"$f":"'Standing Data'!$F$9","v":0},{"$f":"'Standing Data'!#REF!","v":{"$error":"#REF!"}},"Fin.Return","H1210",{"$f":"'Fin.Return - Other Notes'!H598","v":0}]
[{"$f":"'Standing Data'!$D$12","v":{"$error":"#N/A"}},{"$f":"'Standing Data'!$F$9","v":0},{"$f":"'Standing Data'!#REF!","v":{"$error":"#REF!"}},"Fin.Return","H1211",{"$f":"'Fin.Return - Other Notes'!H599","v":0}]
[{"$f":"'Standing Data'!$D$12","v":{"$error":"#N/A"}},{"$f":"'Standing Data'!$F$9","v":0},{"$f":"'Standing Data'!#REF!","v":{"$error":"#REF!"}},"Fin.Return","H1212",{"$f":"'Fin.Return - Other Notes'!H600","v":0}]
[{"$f":"'Standing Data'!$D$12","v":{"$error":"#N/A"}},{"$f":"'Standing Data'!$F$9","v":0},{"$f":"'Standing Data'!#REF!","v":{"$error":"#REF!"}},"Fin.Return","H1213",{"$f":"'Fin.Return - Other Notes'!H601","v":0}]
[{"$f":"'Standing Data'!$D$12","v":{"$error":"#N/A"}},{"$f":"'Standing Data'!$F$9","v":0},{"$f":"'Standing Data'!#REF!","v":{"$error":"#REF!"}},"Fin.Return","H1214",{"$f":"'Fin.Return - Other Notes'!H602","v":0}]
[{"$f":"'Standing Data'!$D$12","v":{"$error":"#N/A"}},{"$f":"'Standing Data'!$F$9","v":0},{"$f":"'Standing Data'!#REF!","v":{"$error":"#REF!"}},"Fin.Return","H1215",{"$f":"'Fin.Return - Other Notes'!H603","v":0}]
[{"$f":"'Standing Data'!$D$12","v":{"$error":"#N/A"}},{"$f":"'Standing Data'!$F$9","v":0},{"$f":"'Standing Data'!#REF!","v":{"$error":"#REF!"}},"Fin.Return","H1216",{"$f":"'Fin.Return - Other Notes'!H604","v":0}]
[{"$f":"'Standing Data'!$D$12","v":{"$error":"#N/A"}},{"$f":"'Standing Data'!$F$9","v":0},{"$f":"'Standing Data'!#REF!","v":{"$error":"#REF!"}},"Fin.Return","H1217",{"$f":"'Fin.Return - Other Notes'!H605","v":0}]
[{"$f":"'Standing Data'!$D$12","v":{"$error":"#N/A"}},{"$f":"'Standing Data'!$F$9","v":0},{"$f":"'Standing Data'!#REF!","v":{"$error":"#REF!"}},"Fin.Return","H1218",{"$f":"'Fin.Return - Other Notes'!H606","v":0}]
[{"$f":"'Standing Data'!$D$12","v":{"$error":"#N/A"}},{"$f":"'Standing Data'!$F$9","v":0},{"$f":"'Standing Data'!#REF!","v":{"$error":"#REF!"}},"Fin.Return","H1219",{"$f":"'Fin.Return - Other Notes'!H607","v":0}]
[{"$f":"'Standing Data'!$D$12","v":{"$error":"#N/A"}},{"$f":"'Standing Data'!$F$9","v":0},{"$f":"'Standing Data'!#REF!","v":{"$error":"#REF!"}},"Fin.Return","H1220",{"$f":"'Fin.Return - Other Notes'!H608","v":0}]
[{"$f":"'Standing Data'!$D$12","v":{"$error":"#N/A"}},{"$f":"'Standing Data'!$F$9","v":0},{"$f":"'Standing Data'!#REF!","v":{"$error":"#REF!"}},"Fin.Return","H1221",{"$f":"'Fin.Return - Other Notes'!#REF!","v":{"$error":"#REF!"}}]
[{"$f":"'Standing Data'!$D$12","v":{"$error":"#N/A"}},{"$f":"'Standing Data'!$F$9","v":0},{"$f":"'Standing Data'!#REF!","v":{"$error":"#REF!"}},"Fin.Return","H1222",{"$f":"'Fin.Return - Other Notes'!#REF!","v":{"$error":"#REF!"}}]
[{"$f":"'Standing Data'!$D$12","v":{"$error":"#N/A"}},{"$f":"'Standing Data'!$F$9","v":0},{"$f":"'Standing Data'!#REF!","v":{"$error":"#REF!"}},"Fin.Return","H1223",{"$f":"'Fin.Return - Other Notes'!#REF!","v":{"$error":"#REF!"}}]
[{"$f":"'Standing Data'!$D$12","v":{"$error":"#N/A"}},{"$f":"'Standing Data'!$F$9","v":0},{"$f":"'Standing Data'!#REF!","v":{"$error":"#REF!"}},"Fin.Return","H1224",{"$f":"'Fin.Return - Other Notes'!#REF!","v":{"$error":"#REF!"}}]
[{"$f":"'Standing Data'!$D$12","v":{"$error":"#N/A"}},{"$f":"'Standing Data'!$F$9","v":0},{"$f":"'Standing Data'!#REF!","v":{"$error":"#REF!"}},"Fin.Return","H1225",{"$f":"'Fin.Return - Other Notes'!#REF!","v":{"$error":"#REF!"}}]
[{"$f":"'Standing Data'!$D$12","v":{"$error":"#N/A"}},{"$f":"'Standing Data'!$F$9","v":0},{"$f":"'Standing Data'!#REF!","v":{"$error":"#REF!"}},"Fin.Return","H1226",{"$f":"'Fin.Return - Other Notes'!#REF!","v":{"$error":"#REF!"}}]
[{"$f":"'Standing Data'!$D$12","v":{"$error":"#N/A"}},{"$f":"'Standing Data'!$F$9","v":0},{"$f":"'Standing Data'!#REF!","v":{"$error":"#REF!"}},"Fin.Return","H1227",{"$f":"'Fin.Return - Other Notes'!#REF!","v":{"$error":"#REF!"}}]
[{"$f":"'Standing Data'!$D$12","v":{"$error":"#N/A"}},{"$f":"'Standing Data'!$F$9","v":0},{"$f":"'Standing Data'!#REF!","v":{"$error":"#REF!"}},"Fin.Return","H1228",{"$f":"'Fin.Return - Other Notes'!#REF!","v":{"$error":"#REF!"}}]
[{"$f":"'Standing Data'!$D$12","v":{"$error":"#N/A"}},{"$f":"'Standing Data'!$F$9","v":0},{"$f":"'Standing Data'!#REF!","v":{"$error":"#REF!"}},"Fin.Return","H1229",{"$f":"'Fin.Return - Other Notes'!#REF!","v":{"$error":"#REF!"}}]
[{"$f":"'Standing Data'!$D$12","v":{"$error":"#N/A"}},{"$f":"'Standing Data'!$F$9","v":0},{"$f":"'Standing Data'!#REF!","v":{"$error":"#REF!"}},"Fin.Return","H1230",{"$f":"'Fin.Return - Other Notes'!#REF!","v":{"$error":"#REF!"}}]
[{"$f":"'Standing Data'!$D$12","v":{"$error":"#N/A"}},{"$f":"'Standing Data'!$F$9","v":0},{"$f":"'Standing Data'!#REF!","v":{"$error":"#REF!"}},"Fin.Return","H1257",{"$f":"'Fin.Return - Other Notes'!H635","v":0}]
[{"$f":"'Standing Data'!$D$12","v":{"$error":"#N/A"}},{"$f":"'Standing Data'!$F$9","v":0},{"$f":"'Standing Data'!#REF!","v":{"$error":"#REF!"}},"Fin.Return","H1258",{"$f":"'Fin.Return - Other Notes'!H636","v":0}]
[{"$f":"'Standing Data'!$D$12","v":{"$error":"#N/A"}},{"$f":"'Standing Data'!$F$9","v":0},{"$f":"'Standing Data'!#REF!","v":{"$error":"#REF!"}},"Fin.Return","H1259",{"$f":"'Fin.Return - Other Notes'!H637","v":0}]
[{"$f":"'Standing Data'!$D$12","v":{"$error":"#N/A"}},{"$f":"'Standing Data'!$F$9","v":0},{"$f":"'Standing Data'!#REF!","v":{"$error":"#REF!"}},"Fin.Return","H1260",{"$f":"'Fin.Return - Other Notes'!H638","v":0}]
[{"$f":"'Standing Data'!$D$12","v":{"$error":"#N/A"}},{"$f":"'Standing Data'!$F$9","v":0},{"$f":"'Standing Data'!#REF!","v":{"$error":"#REF!"}},"Fin.Return","H1261",{"$f":"'Fin.Return - Other Notes'!H639","v":0}]
[{"$f":"'Standing Data'!$D$12","v":{"$error":"#N/A"}},{"$f":"'Standing Data'!$F$9","v":0},{"$f":"'Standing Data'!#REF!","v":{"$error":"#REF!"}},"Fin.Return","H1262",{"$f":"'Fin.Return - Other Notes'!H640","v":0}]
[{"$f":"'Standing Data'!$D$12","v":{"$error":"#N/A"}},{"$f":"'Standing Data'!$F$9","v":0},{"$f":"'Standing Data'!#REF!","v":{"$error":"#REF!"}},"Fin.Return","H1263",{"$f":"'Fin.Return - Other Notes'!H641","v":0}]
[{"$f":"'Standing Data'!$D$12","v":{"$error":"#N/A"}},{"$f":"'Standing Data'!$F$9","v":0},{"$f":"'Standing Data'!#REF!","v":{"$error":"#REF!"}},"Fin.Return","H1264",{"$f":"'Fin.Return - Other Notes'!H642","v":0}]
[{"$f":"'Standing Data'!$D$12","v":{"$error":"#N/A"}},{"$f":"'Standing Data'!$F$9","v":0},{"$f":"'Standing Data'!#REF!","v":{"$error":"#REF!"}},"Fin.Return","H1265",{"$f":"'Fin.Return - Other Notes'!H643","v":0}]
[{"$f":"'Standing Data'!$D$12","v":{"$error":"#N/A"}},{"$f":"'Standing Data'!$F$9","v":0},{"$f":"'Standing Data'!#REF!","v":{"$error":"#REF!"}},"Fin.Return","H1266",{"$f":"'Fin.Return - Other Notes'!H644","v":0}]
[{"$f":"'Standing Data'!$D$12","v":{"$error":"#N/A"}},{"$f":"'Standing Data'!$F$9","v":0},{"$f":"'Standing Data'!#REF!","v":{"$error":"#REF!"}},"Fin.Return","H1267",{"$f":"'Fin.Return - Other Notes'!H645","v":0}]
[{"$f":"'Standing Data'!$D$12","v":{"$error":"#N/A"}},{"$f":"'Standing Data'!$F$9","v":0},{"$f":"'Standing Data'!#REF!","v":{"$error":"#REF!"}},"Fin.Return","H1268",{"$f":"'Fin.Return - Other Notes'!#REF!","v":{"$error":"#REF!"}}]
[{"$f":"'Standing Data'!$D$12","v":{"$error":"#N/A"}},{"$f":"'Standing Data'!$F$9","v":0},{"$f":"'Standing Data'!#REF!","v":{"$error":"#REF!"}},"Fin.Return","I18",{"$f":"'Fin.Return - SOFA'!I19","v":0}]
[{"$f":"'Standing Data'!$D$12","v":{"$error":"#N/A"}},{"$f":"'Standing Data'!$F$9","v":0},{"$f":"'Standing Data'!#REF!","v":{"$error":"#REF!"}},"Fin.Return","I19",{"$f":"'Fin.Return - SOFA'!I20","v":0}]
[{"$f":"'Standing Data'!$D$12","v":{"$error":"#N/A"}},{"$f":"'Standing Data'!$F$9","v":0},{"$f":"'Standing Data'!#REF!","v":{"$error":"#REF!"}},"Fin.Return","I20",{"$f":"'Fin.Return - SOFA'!I22","v":0}]
[{"$f":"'Standing Data'!$D$12","v":{"$error":"#N/A"}},{"$f":"'Standing Data'!$F$9","v":0},{"$f":"'Standing Data'!#REF!","v":{"$error":"#REF!"}},"Fin.Return","I21",{"$f":"'Fin.Return - SOFA'!I23","v":0}]
[{"$f":"'Standing Data'!$D$12","v":{"$error":"#N/A"}},{"$f":"'Standing Data'!$F$9","v":0},{"$f":"'Standing Data'!#REF!","v":{"$error":"#REF!"}},"Fin.Return","I23",{"$f":"'Fin.Return - SOFA'!I25","v":0}]
[{"$f":"'Standing Data'!$D$12","v":{"$error":"#N/A"}},{"$f":"'Standing Data'!$F$9","v":0},{"$f":"'Standing Data'!#REF!","v":{"$error":"#REF!"}},"Fin.Return","I24",{"$f":"'Fin.Return - SOFA'!I26","v":0}]
[{"$f":"'Standing Data'!$D$12","v":{"$error":"#N/A"}},{"$f":"'Standing Data'!$F$9","v":0},{"$f":"'Standing Data'!#REF!","v":{"$error":"#REF!"}},"Fin.Return","I26",{"$f":"'Fin.Return - SOFA'!I28","v":0}]
[{"$f":"'Standing Data'!$D$12","v":{"$error":"#N/A"}},{"$f":"'Standing Data'!$F$9","v":0},{"$f":"'Standing Data'!#REF!","v":{"$error":"#REF!"}},"Fin.Return","I29",{"$f":"'Fin.Return - SOFA'!I31","v":0}]
[{"$f":"'Standing Data'!$D$12","v":{"$error":"#N/A"}},{"$f":"'Standing Data'!$F$9","v":0},{"$f":"'Standing Data'!#REF!","v":{"$error":"#REF!"}},"Fin.Return","I30",{"$f":"'Fin.Return - SOFA'!#REF!","v":{"$error":"#REF!"}}]
[{"$f":"'Standing Data'!$D$12","v":{"$error":"#N/A"}},{"$f":"'Standing Data'!$F$9","v":0},{"$f":"'Standing Data'!#REF!","v":{"$error":"#REF!"}},"Fin.Return","I31",{"$f":"'Fin.Return - SOFA'!I33","v":0}]
[{"$f":"'Standing Data'!$D$12","v":{"$error":"#N/A"}},{"$f":"'Standing Data'!$F$9","v":0},{"$f":"'Standing Data'!#REF!","v":{"$error":"#REF!"}},"Fin.Return","I33",{"$f":"'Fin.Return - SOFA'!I35","v":0}]
[{"$f":"'Standing Data'!$D$12","v":{"$error":"#N/A"}},{"$f":"'Standing Data'!$F$9","v":0},{"$f":"'Standing Data'!#REF!","v":{"$error":"#REF!"}},"Fin.Return","I34",{"$f":"'Fin.Return - SOFA'!I36","v":0}]
[{"$f":"'Standing Data'!$D$12","v":{"$error":"#N/A"}},{"$f":"'Standing Data'!$F$9","v":0},{"$f":"'Standing Data'!#REF!","v":{"$error":"#REF!"}},"Fin.Return","I35",{"$f":"'Fin.Return - SOFA'!I37","v":0}]
[{"$f":"'Standing Data'!$D$12","v":{"$error":"#N/A"}},{"$f":"'Standing Data'!$F$9","v":0},{"$f":"'Standing Data'!#REF!","v":{"$error":"#REF!"}},"Fin.Return","I37",{"$f":"'Fin.Return - SOFA'!I39","v":0}]
[{"$f":"'Standing Data'!$D$12","v":{"$error":"#N/A"}},{"$f":"'Standing Data'!$F$9","v":0},{"$f":"'Standing Data'!#REF!","v":{"$error":"#REF!"}},"Fin.Return","I38",{"$f":"'Fin.Return - SOFA'!I40","v":0}]
[{"$f":"'Standing Data'!$D$12","v":{"$error":"#N/A"}},{"$f":"'Standing Data'!$F$9","v":0},{"$f":"'Standing Data'!#REF!","v":{"$error":"#REF!"}},"Fin.Return","I39",{"$f":"'Fin.Return - SOFA'!I41","v":0}]
[{"$f":"'Standing Data'!$D$12","v":{"$error":"#N/A"}},{"$f":"'Standing Data'!$F$9","v":0},{"$f":"'Standing Data'!#REF!","v":{"$error":"#REF!"}},"Fin.Return","I41",{"$f":"'Fin.Return - SOFA'!I43","v":0}]
[{"$f":"'Standing Data'!$D$12","v":{"$error":"#N/A"}},{"$f":"'Standing Data'!$F$9","v":0},{"$f":"'Standing Data'!#REF!","v":{"$error":"#REF!"}},"Fin.Return","I44",{"$f":"'Fin.Return - SOFA'!I46","v":0}]
[{"$f":"'Standing Data'!$D$12","v":{"$error":"#N/A"}},{"$f":"'Standing Data'!$F$9","v":0},{"$f":"'Standing Data'!#REF!","v":{"$error":"#REF!"}},"Fin.Return","I45",{"$f":"'Fin.Return - SOFA'!I47","v":0}]
[{"$f":"'Standing Data'!$D$12","v":{"$error":"#N/A"}},{"$f":"'Standing Data'!$F$9","v":0},{"$f":"'Standing Data'!#REF!","v":{"$error":"#REF!"}},"Fin.Return","I46",{"$f":"'Fin.Return - SOFA'!I48","v":0}]
[{"$f":"'Standing Data'!$D$12","v":{"$error":"#N/A"}},{"$f":"'Standing Data'!$F$9","v":0},{"$f":"'Standing Data'!#REF!","v":{"$error":"#REF!"}},"Fin.Return","I48",{"$f":"'Fin.Return - SOFA'!I50","v":0}]
[{"$f":"'Standing Data'!$D$12","v":{"$error":"#N/A"}},{"$f":"'Standing Data'!$F$9","v":0},{"$f":"'Standing Data'!#REF!","v":{"$error":"#REF!"}},"Fin.Return","I50",{"$f":"'Fin.Return - SOFA'!I52","v":0}]
[{"$f":"'Standing Data'!$D$12","v":{"$error":"#N/A"}},{"$f":"'Standing Data'!$F$9","v":0},{"$f":"'Standing Data'!#REF!","v":{"$error":"#REF!"}},"Fin.Return","I51",{"$f":"'Fin.Return - SOFA'!I53","v":0}]
[{"$f":"'Standing Data'!$D$12","v":{"$error":"#N/A"}},{"$f":"'Standing Data'!$F$9","v":0},{"$f":"'Standing Data'!#REF!","v":{"$error":"#REF!"}},"Fin.Return","I52",{"$f":"'Fin.Return - SOFA'!I56","v":0}]
[{"$f":"'Standing Data'!$D$12","v":{"$error":"#N/A"}},{"$f":"'Standing Data'!$F$9","v":0},{"$f":"'Standing Data'!#REF!","v":{"$error":"#REF!"}},"Fin.Return","I54",{"$f":"'Fin.Return - SOFA'!I58","v":0}]
[{"$f":"'Standing Data'!$D$12","v":{"$error":"#N/A"}},{"$f":"'Standing Data'!$F$9","v":0},{"$f":"'Standing Data'!#REF!","v":{"$error":"#REF!"}},"Fin.Return","I134",{"$f":"'Fin.Return - SOFA'!I68","v":0}]
[{"$f":"'Standing Data'!$D$12","v":{"$error":"#N/A"}},{"$f":"'Standing Data'!$F$9","v":0},{"$f":"'Standing Data'!#REF!","v":{"$error":"#REF!"}},"Fin.Return","I135",{"$f":"'Fin.Return - SOFA'!I70","v":0}]
[{"$f":"'Standing Data'!$D$12","v":{"$error":"#N/A"}},{"$f":"'Standing Data'!$F$9","v":0},{"$f":"'Standing Data'!#REF!","v":{"$error":"#REF!"}},"Fin.Return","I136",{"$f":"'Fin.Return - SOFA'!I71","v":0}]
[{"$f":"'Standing Data'!$D$12","v":{"$error":"#N/A"}},{"$f":"'Standing Data'!$F$9","v":0},{"$f":"'Standing Data'!#REF!","v":{"$error":"#REF!"}},"Fin.Return","I138",{"$f":"'Fin.Return - SOFA'!I73","v":0}]
[{"$f":"'Standing Data'!$D$12","v":{"$error":"#N/A"}},{"$f":"'Standing Data'!$F$9","v":0},{"$f":"'Standing Data'!#REF!","v":{"$error":"#REF!"}},"Fin.Return","I144",{"$f":"'Fin.Return - SOFA'!I79","v":0}]
[{"$f":"'Standing Data'!$D$12","v":{"$error":"#N/A"}},{"$f":"'Standing Data'!$F$9","v":0},{"$f":"'Standing Data'!#REF!","v":{"$error":"#REF!"}},"Fin.Return","I145",{"$f":"'Fin.Return - SOFA'!I80","v":0}]
[{"$f":"'Standing Data'!$D$12","v":{"$error":"#N/A"}},{"$f":"'Standing Data'!$F$9","v":0},{"$f":"'Standing Data'!#REF!","v":{"$error":"#REF!"}},"Fin.Return","I146",{"$f":"'Fin.Return - SOFA'!I81","v":0}]
[{"$f":"'Standing Data'!$D$12","v":{"$error":"#N/A"}},{"$f":"'Standing Data'!$F$9","v":0},{"$f":"'Standing Data'!#REF!","v":{"$error":"#REF!"}},"Fin.Return","I147",{"$f":"'Fin.Return - SOFA'!I84","v":0}]
[{"$f":"'Standing Data'!$D$12","v":{"$error":"#N/A"}},{"$f":"'Standing Data'!$F$9","v":0},{"$f":"'Standing Data'!#REF!","v":{"$error":"#REF!"}},"Fin.Return","I149",{"$f":"'Fin.Return - SOFA'!I86","v":0}]
[{"$f":"'Standing Data'!$D$12","v":{"$error":"#N/A"}},{"$f":"'Standing Data'!$F$9","v":0},{"$f":"'Standing Data'!#REF!","v":{"$error":"#REF!"}},"Fin.Return","I155",{"$f":"'Fin.Return - SOFA'!I92","v":0}]
[{"$f":"'Standing Data'!$D$12","v":{"$error":"#N/A"}},{"$f":"'Standing Data'!$F$9","v":0},{"$f":"'Standing Data'!#REF!","v":{"$error":"#REF!"}},"Fin.Return","I156",{"$f":"'Fin.Return - SOFA'!I93","v":0}]
[{"$f":"'Standing Data'!$D$12","v":{"$error":"#N/A"}},{"$f":"'Standing Data'!$F$9","v":0},{"$f":"'Standing Data'!#REF!","v":{"$error":"#REF!"}},"Fin.Return","I157",{"$f":"'Fin.Return - SOFA'!I94","v":0}]
[{"$f":"'Standing Data'!$D$12","v":{"$error":"#N/A"}},{"$f":"'Standing Data'!$F$9","v":0},{"$f":"'Standing Data'!#REF!","v":{"$error":"#REF!"}},"Fin.Return","I158",{"$f":"'Fin.Return - SOFA'!I95","v":0}]
[{"$f":"'Standing Data'!$D$12","v":{"$error":"#N/A"}},{"$f":"'Standing Data'!$F$9","v":0},{"$f":"'Standing Data'!#REF!","v":{"$error":"#REF!"}},"Fin.Return","I160",{"$f":"'Fin.Return - SOFA'!I97","v":0}]
[{"$f":"'Standing Data'!$D$12","v":{"$error":"#N/A"}},{"$f":"'Standing Data'!$F$9","v":0},{"$f":"'Standing Data'!#REF!","v":{"$error":"#REF!"}},"Fin.Return","I228",{"$f":"'Fin.Return - SOFA'!I171","v":0}]
[{"$f":"'Standing Data'!$D$12","v":{"$error":"#N/A"}},{"$f":"'Standing Data'!$F$9","v":0},{"$f":"'Standing Data'!#REF!","v":{"$error":"#REF!"}},"Fin.Return","I229",{"$f":"'Fin.Return - SOFA'!I172","v":0}]
[{"$f":"'Standing Data'!$D$12","v":{"$error":"#N/A"}},{"$f":"'Standing Data'!$F$9","v":0},{"$f":"'Standing Data'!#REF!","v":{"$error":"#REF!"}},"Fin.Return","I231",{"$f":"'Fin.Return - SOFA'!I174","v":0}]
[{"$f":"'Standing Data'!$D$12","v":{"$error":"#N/A"}},{"$f":"'Standing Data'!$F$9","v":0},{"$f":"'Standing Data'!#REF!","v":{"$error":"#REF!"}},"Fin.Return","I232",{"$f":"'Fin.Return - SOFA'!I175","v":0}]
[{"$f":"'Standing Data'!$D$12","v":{"$error":"#N/A"}},{"$f":"'Standing Data'!$F$9","v":0},{"$f":"'Standing Data'!#REF!","v":{"$error":"#REF!"}},"Fin.Return","I234",{"$f":"'Fin.Return - SOFA'!I177","v":0}]
[{"$f":"'Standing Data'!$D$12","v":{"$error":"#N/A"}},{"$f":"'Standing Data'!$F$9","v":0},{"$f":"'Standing Data'!#REF!","v":{"$error":"#REF!"}},"Fin.Return","I235",{"$f":"'Fin.Return - SOFA'!I178","v":0}]
[{"$f":"'Standing Data'!$D$12","v":{"$error":"#N/A"}},{"$f":"'Standing Data'!$F$9","v":0},{"$f":"'Standing Data'!#REF!","v":{"$error":"#REF!"}},"Fin.Return","I236",{"$f":"'Fin.Return - SOFA'!I179","v":0}]
[{"$f":"'Standing Data'!$D$12","v":{"$error":"#N/A"}},{"$f":"'Standing Data'!$F$9","v":0},{"$f":"'Standing Data'!#REF!","v":{"$error":"#REF!"}},"Fin.Return","I238",{"$f":"'Fin.Return - SOFA'!I181","v":0}]
[{"$f":"'Standing Data'!$D$12","v":{"$error":"#N/A"}},{"$f":"'Standing Data'!$F$9","v":0},{"$f":"'Standing Data'!#REF!","v":{"$error":"#REF!"}},"Fin.Return","I400",{"$f":"'Fin.Return - SOFA'!I351","v":0}]
[{"$f":"'Standing Data'!$D$12","v":{"$error":"#N/A"}},{"$f":"'Standing Data'!$F$9","v":0},{"$f":"'Standing Data'!#REF!","v":{"$error":"#REF!"}},"Fin.Return","I468",{"$f":"'Fin.Return - BS'!I64","v":0}]
[{"$f":"'Standing Data'!$D$12","v":{"$error":"#N/A"}},{"$f":"'Standing Data'!$F$9","v":0},{"$f":"'Standing Data'!#REF!","v":{"$error":"#REF!"}},"Fin.Return","I469",{"$f":"'Fin.Return - BS'!I65","v":0}]
[{"$f":"'Standing Data'!$D$12","v":{"$error":"#N/A"}},{"$f":"'Standing Data'!$F$9","v":0},{"$f":"'Standing Data'!#REF!","v":{"$error":"#REF!"}},"Fin.Return","I470",{"$f":"'Fin.Return - BS'!I67","v":0}]
[{"$f":"'Standing Data'!$D$12","v":{"$error":"#N/A"}},{"$f":"'Standing Data'!$F$9","v":0},{"$f":"'Standing Data'!#REF!","v":{"$error":"#REF!"}},"Fin.Return","I471",{"$f":"'Fin.Return - BS'!I68","v":0}]
[{"$f":"'Standing Data'!$D$12","v":{"$error":"#N/A"}},{"$f":"'Standing Data'!$F$9","v":0},{"$f":"'Standing Data'!#REF!","v":{"$error":"#REF!"}},"Fin.Return","I472",{"$f":"'Fin.Return - BS'!I70","v":0}]
[{"$f":"'Standing Data'!$D$12","v":{"$error":"#N/A"}},{"$f":"'Standing Data'!$F$9","v":0},{"$f":"'Standing Data'!#REF!","v":{"$error":"#REF!"}},"Fin.Return","I473",{"$f":"'Fin.Return - BS'!I72","v":0}]
[{"$f":"'Standing Data'!$D$12","v":{"$error":"#N/A"}},{"$f":"'Standing Data'!$F$9","v":0},{"$f":"'Standing Data'!#REF!","v":{"$error":"#REF!"}},"Fin.Return","I474",{"$f":"'Fin.Return - BS'!I74","v":0}]
[{"$f":"'Standing Data'!$D$12","v":{"$error":"#N/A"}},{"$f":"'Standing Data'!$F$9","v":0},{"$f":"'Standing Data'!#REF!","v":{"$error":"#REF!"}},"Fin.Return","I475",{"$f":"'Fin.Return - BS'!I75","v":0}]
[{"$f":"'Standing Data'!$D$12","v":{"$error":"#N/A"}},{"$f":"'Standing Data'!$F$9","v":0},{"$f":"'Standing Data'!#REF!","v":{"$error":"#REF!"}},"Fin.Return","I477",{"$f":"'Fin.Return - BS'!I77","v":0}]
[{"$f":"'Standing Data'!$D$12","v":{"$error":"#N/A"}},{"$f":"'Standing Data'!$F$9","v":0},{"$f":"'Standing Data'!#REF!","v":{"$error":"#REF!"}},"Fin.Return","I480",{"$f":"'Fin.Return - BS'!I80","v":0}]
[{"$f":"'Standing Data'!$D$12","v":{"$error":"#N/A"}},{"$f":"'Standing Data'!$F$9","v":0},{"$f":"'Standing Data'!#REF!","v":{"$error":"#REF!"}},"Fin.Return","I481",{"$f":"'Fin.Return - BS'!I81","v":0}]
[{"$f":"'Standing Data'!$D$12","v":{"$error":"#N/A"}},{"$f":"'Standing Data'!$F$9","v":0},{"$f":"'Standing Data'!#REF!","v":{"$error":"#REF!"}},"Fin.Return","I482",{"$f":"'Fin.Return - BS'!I82","v":0}]
[{"$f":"'Standing Data'!$D$12","v":{"$error":"#N/A"}},{"$f":"'Standing Data'!$F$9","v":0},{"$f":"'Standing Data'!#REF!","v":{"$error":"#REF!"}},"Fin.Return","I483",{"$f":"'Fin.Return - BS'!I84","v":0}]
[{"$f":"'Standing Data'!$D$12","v":{"$error":"#N/A"}},{"$f":"'Standing Data'!$F$9","v":0},{"$f":"'Standing Data'!#REF!","v":{"$error":"#REF!"}},"Fin.Return","I484",{"$f":"'Fin.Return - BS'!I85","v":0}]
[{"$f":"'Standing Data'!$D$12","v":{"$error":"#N/A"}},{"$f":"'Standing Data'!$F$9","v":0},{"$f":"'Standing Data'!#REF!","v":{"$error":"#REF!"}},"Fin.Return","I486",{"$f":"'Fin.Return - BS'!I87","v":0}]
[{"$f":"'Standing Data'!$D$12","v":{"$error":"#N/A"}},{"$f":"'Standing Data'!$F$9","v":0},{"$f":"'Standing Data'!#REF!","v":{"$error":"#REF!"}},"Fin.Return","I489",{"$f":"'Fin.Return - BS'!I90","v":0}]
[{"$f":"'Standing Data'!$D$12","v":{"$error":"#N/A"}},{"$f":"'Standing Data'!$F$9","v":0},{"$f":"'Standing Data'!#REF!","v":{"$error":"#REF!"}},"Fin.Return","I490",{"$f":"'Fin.Return - BS'!I91","v":0}]
[{"$f":"'Standing Data'!$D$12","v":{"$error":"#N/A"}},{"$f":"'Standing Data'!$F$9","v":0},{"$f":"'Standing Data'!#REF!","v":{"$error":"#REF!"}},"Fin.Return","I491",{"$f":"'Fin.Return - BS'!I92","v":0}]
[{"$f":"'Standing Data'!$D$12","v":{"$error":"#N/A"}},{"$f":"'Standing Data'!$F$9","v":0},{"$f":"'Standing Data'!#REF!","v":{"$error":"#REF!"}},"Fin.Return","I493",{"$f":"'Fin.Return - BS'!I95","v":0}]
[{"$f":"'Standing Data'!$D$12","v":{"$error":"#N/A"}},{"$f":"'Standing Data'!$F$9","v":0},{"$f":"'Standing Data'!#REF!","v":{"$error":"#REF!"}},"Fin.Return","I496",{"$f":"'Fin.Return - BS'!I98","v":0}]
[{"$f":"'Standing Data'!$D$12","v":{"$error":"#N/A"}},{"$f":"'Standing Data'!$F$9","v":0},{"$f":"'Standing Data'!#REF!","v":{"$error":"#REF!"}},"Fin.Return","I499",{"$f":"'Fin.Return - BS'!I101","v":0}]
[{"$f":"'Standing Data'!$D$12","v":{"$error":"#N/A"}},{"$f":"'Standing Data'!$F$9","v":0},{"$f":"'Standing Data'!#REF!","v":{"$error":"#REF!"}},"Fin.Return","I503",{"$f":"'Fin.Return - BS'!I105","v":0}]
[{"$f":"'Standing Data'!$D$12","v":{"$error":"#N/A"}},{"$f":"'Standing Data'!$F$9","v":0},{"$f":"'Standing Data'!#REF!","v":{"$error":"#REF!"}},"Fin.Return","I504",{"$f":"'Fin.Return - BS'!I106","v":0}]
[{"$f":"'Standing Data'!$D$12","v":{"$error":"#N/A"}},{"$f":"'Standing Data'!$F$9","v":0},{"$f":"'Standing Data'!#REF!","v":{"$error":"#REF!"}},"Fin.Return","I505",{"$f":"'Fin.Return - BS'!I107","v":0}]
[{"$f":"'Standing Data'!$D$12","v":{"$error":"#N/A"}},{"$f":"'Standing Data'!$F$9","v":0},{"$f":"'Standing Data'!#REF!","v":{"$error":"#REF!"}},"Fin.Return","I514",{"$f":"'Fin.Return - BS'!I116","v":0}]
[{"$f":"'Standing Data'!$D$12","v":{"$error":"#N/A"}},{"$f":"'Standing Data'!$F$9","v":0},{"$f":"'Standing Data'!#REF!","v":{"$error":"#REF!"}},"Fin.Return","I515",{"$f":"'Fin.Return - BS'!I117","v":0}]
[{"$f":"'Standing Data'!$D$12","v":{"$error":"#N/A"}},{"$f":"'Standing Data'!$F$9","v":0},{"$f":"'Standing Data'!#REF!","v":{"$error":"#REF!"}},"Fin.Return","I517",{"$f":"'Fin.Return - BS'!I119","v":0}]
[{"$f":"'Standing Data'!$D$12","v":{"$error":"#N/A"}},{"$f":"'Standing Data'!$F$9","v":0},{"$f":"'Standing Data'!#REF!","v":{"$error":"#REF!"}},"Fin.Return","I519",{"$f":"'Fin.Return - BS'!I121","v":0}]
[{"$f":"'Standing Data'!$D$12","v":{"$error":"#N/A"}},{"$f":"'Standing Data'!$F$9","v":0},{"$f":"'Standing Data'!#REF!","v":{"$error":"#REF!"}},"Fin.Return","I525",{"$f":"'Fin.Return - BS'!I127","v":0}]
[{"$f":"'Standing Data'!$D$12","v":{"$error":"#N/A"}},{"$f":"'Standing Data'!$F$9","v":0},{"$f":"'Standing Data'!#REF!","v":{"$error":"#REF!"}},"Fin.Return","I526",{"$f":"'Fin.Return - BS'!I128","v":0}]
[{"$f":"'Standing Data'!$D$12","v":{"$error":"#N/A"}},{"$f":"'Standing Data'!$F$9","v":0},{"$f":"'Standing Data'!#REF!","v":{"$error":"#REF!"}},"Fin.Return","I527",{"$f":"'Fin.Return - BS'!I129","v":0}]
[{"$f":"'Standing Data'!$D$12","v":{"$error":"#N/A"}},{"$f":"'Standing Data'!$F$9","v":0},{"$f":"'Standing Data'!#REF!","v":{"$error":"#REF!"}},"Fin.Return","I528",{"$f":"'Fin.Return - BS'!I130","v":0}]
[{"$f":"'Standing Data'!$D$12","v":{"$error":"#N/A"}},{"$f":"'Standing Data'!$F$9","v":0},{"$f":"'Standing Data'!#REF!","v":{"$error":"#REF!"}},"Fin.Return","I529",{"$f":"'Fin.Return - BS'!I132","v":0}]
[{"$f":"'Standing Data'!$D$12","v":{"$error":"#N/A"}},{"$f":"'Standing Data'!$F$9","v":0},{"$f":"'Standing Data'!#REF!","v":{"$error":"#REF!"}},"Fin.Return","I530",{"$f":"'Fin.Return - BS'!I134","v":0}]
[{"$f":"'Standing Data'!$D$12","v":{"$error":"#N/A"}},{"$f":"'Standing Data'!$F$9","v":0},{"$f":"'Standing Data'!#REF!","v":{"$error":"#REF!"}},"Fin.Return","I531",{"$f":"'Fin.Return - BS'!I135","v":0}]
[{"$f":"'Standing Data'!$D$12","v":{"$error":"#N/A"}},{"$f":"'Standing Data'!$F$9","v":0},{"$f":"'Standing Data'!#REF!","v":{"$error":"#REF!"}},"Fin.Return","I533",{"$f":"'Fin.Return - BS'!I137","v":0}]
[{"$f":"'Standing Data'!$D$12","v":{"$error":"#N/A"}},{"$f":"'Standing Data'!$F$9","v":0},{"$f":"'Standing Data'!#REF!","v":{"$error":"#REF!"}},"Fin.Return","I536",{"$f":"'Fin.Return - BS'!I140","v":0}]
[{"$f":"'Standing Data'!$D$12","v":{"$error":"#N/A"}},{"$f":"'Standing Data'!$F$9","v":0},{"$f":"'Standing Data'!#REF!","v":{"$error":"#REF!"}},"Fin.Return","I537",{"$f":"'Fin.Return - BS'!I141","v":0}]
[{"$f":"'Standing Data'!$D$12","v":{"$error":"#N/A"}},{"$f":"'Standing Data'!$F$9","v":0},{"$f":"'Standing Data'!#REF!","v":{"$error":"#REF!"}},"Fin.Return","I538",{"$f":"'Fin.Return - BS'!I142","v":0}]
[{"$f":"'Standing Data'!$D$12","v":{"$error":"#N/A"}},{"$f":"'Standing Data'!$F$9","v":0},{"$f":"'Standing Data'!#REF!","v":{"$error":"#REF!"}},"Fin.Return","I539",{"$f":"'Fin.Return - BS'!I144","v":0}]
[{"$f":"'Standing Data'!$D$12","v":{"$error":"#N/A"}},{"$f":"'Standing Data'!$F$9","v":0},{"$f":"'Standing Data'!#REF!","v":{"$error":"#REF!"}},"Fin.Return","I540",{"$f":"'Fin.Return - BS'!I145","v":0}]
[{"$f":"'Standing Data'!$D$12","v":{"$error":"#N/A"}},{"$f":"'Standing Data'!$F$9","v":0},{"$f":"'Standing Data'!#REF!","v":{"$error":"#REF!"}},"Fin.Return","I542",{"$f":"'Fin.Return - BS'!I147","v":0}]
[{"$f":"'Standing Data'!$D$12","v":{"$error":"#N/A"}},{"$f":"'Standing Data'!$F$9","v":0},{"$f":"'Standing Data'!#REF!","v":{"$error":"#REF!"}},"Fin.Return","I545",{"$f":"'Fin.Return - BS'!I150","v":0}]
[{"$f":"'Standing Data'!$D$12","v":{"$error":"#N/A"}},{"$f":"'Standing Data'!$F$9","v":0},{"$f":"'Standing Data'!#REF!","v":{"$error":"#REF!"}},"Fin.Return","I546",{"$f":"'Fin.Return - BS'!I151","v":0}]
[{"$f":"'Standing Data'!$D$12","v":{"$error":"#N/A"}},{"$f":"'Standing Data'!$F$9","v":0},{"$f":"'Standing Data'!#REF!","v":{"$error":"#REF!"}},"Fin.Return","I547",{"$f":"'Fin.Return - BS'!I152","v":0}]
[{"$f":"'Standing Data'!$D$12","v":{"$error":"#N/A"}},{"$f":"'Standing Data'!$F$9","v":0},{"$f":"'Standing Data'!#REF!","v":{"$error":"#REF!"}},"Fin.Return","I549",{"$f":"'Fin.Return - BS'!I155","v":0}]
[{"$f":"'Standing Data'!$D$12","v":{"$error":"#N/A"}},{"$f":"'Standing Data'!$F$9","v":0},{"$f":"'Standing Data'!#REF!","v":{"$error":"#REF!"}},"Fin.Return","I552",{"$f":"'Fin.Return - BS'!I158","v":0}]
[{"$f":"'Standing Data'!$D$12","v":{"$error":"#N/A"}},{"$f":"'Standing Data'!$F$9","v":0},{"$f":"'Standing Data'!#REF!","v":{"$error":"#REF!"}},"Fin.Return","I555",{"$f":"'Fin.Return - BS'!I161","v":0}]
[{"$f":"'Standing Data'!$D$12","v":{"$error":"#N/A"}},{"$f":"'Standing Data'!$F$9","v":0},{"$f":"'Standing Data'!#REF!","v":{"$error":"#REF!"}},"Fin.Return","I558",{"$f":"'Fin.Return - BS'!I164","v":0}]
[{"$f":"'Standing Data'!$D$12","v":{"$error":"#N/A"}},{"$f":"'Standing Data'!$F$9","v":0},{"$f":"'Standing Data'!#REF!","v":{"$error":"#REF!"}},"Fin.Return","I559",{"$f":"'Fin.Return - BS'!I165","v":0}]
[{"$f":"'Standing Data'!$D$12","v":{"$error":"#N/A"}},{"$f":"'Standing Data'!$F$9","v":0},{"$f":"'Standing Data'!#REF!","v":{"$error":"#REF!"}},"Fin.Return","I565",{"$f":"'Fin.Return - BS'!I172","v":0}]
[{"$f":"'Standing Data'!$D$12","v":{"$error":"#N/A"}},{"$f":"'Standing Data'!$F$9","v":0},{"$f":"'Standing Data'!#REF!","v":{"$error":"#REF!"}},"Fin.Return","I566",{"$f":"'Fin.Return - BS'!I173","v":0}]
[{"$f":"'Standing Data'!$D$12","v":{"$error":"#N/A"}},{"$f":"'Standing Data'!$F$9","v":0},{"$f":"'Standing Data'!#REF!","v":{"$error":"#REF!"}},"Fin.Return","I567",{"$f":"'Fin.Return - BS'!I174","v":0}]
[{"$f":"'Standing Data'!$D$12","v":{"$error":"#N/A"}},{"$f":"'Standing Data'!$F$9","v":0},{"$f":"'Standing Data'!#REF!","v":{"$error":"#REF!"}},"Fin.Return","I568",{"$f":"'Fin.Return - BS'!I175","v":0}]
[{"$f":"'Standing Data'!$D$12","v":{"$error":"#N/A"}},{"$f":"'Standing Data'!$F$9","v":0},{"$f":"'Standing Data'!#REF!","v":{"$error":"#REF!"}},"Fin.Return","I569",{"$f":"'Fin.Return - BS'!I176","v":0}]
[{"$f":"'Standing Data'!$D$12","v":{"$error":"#N/A"}},{"$f":"'Standing Data'!$F$9","v":0},{"$f":"'Standing Data'!#REF!","v":{"$error":"#REF!"}},"Fin.Return","I570",{"$f":"'Fin.Return - BS'!I179","v":0}]
[{"$f":"'Standing Data'!$D$12","v":{"$error":"#N/A"}},{"$f":"'Standing Data'!$F$9","v":0},{"$f":"'Standing Data'!#REF!","v":{"$error":"#REF!"}},"Fin.Return","I571",{"$f":"'Fin.Return - BS'!I180","v":0}]
[{"$f":"'Standing Data'!$D$12","v":{"$error":"#N/A"}},{"$f":"'Standing Data'!$F$9","v":0},{"$f":"'Standing Data'!#REF!","v":{"$error":"#REF!"}},"Fin.Return","I573",{"$f":"'Fin.Return - BS'!I183","v":0}]
[{"$f":"'Standing Data'!$D$12","v":{"$error":"#N/A"}},{"$f":"'Standing Data'!$F$9","v":0},{"$f":"'Standing Data'!#REF!","v":{"$error":"#REF!"}},"Fin.Return","I575",{"$f":"'Fin.Return - BS'!I185","v":0}]
[{"$f":"'Standing Data'!$D$12","v":{"$error":"#N/A"}},{"$f":"'Standing Data'!$F$9","v":0},{"$f":"'Standing Data'!#REF!","v":{"$error":"#REF!"}},"Fin.Return","I630",{"$f":"'Fin.Return - BS'!I241","v":0}]
[{"$f":"'Standing Data'!$D$12","v":{"$error":"#N/A"}},{"$f":"'Standing Data'!$F$9","v":0},{"$f":"'Standing Data'!#REF!","v":{"$error":"#REF!"}},"Fin.Return","I631",{"$f":"'Fin.Return - BS'!I242","v":0}]
[{"$f":"'Standing Data'!$D$12","v":{"$error":"#N/A"}},{"$f":"'Standing Data'!$F$9","v":0},{"$f":"'Standing Data'!#REF!","v":{"$error":"#REF!"}},"Fin.Return","I632",{"$f":"'Fin.Return - BS'!I243","v":0}]
[{"$f":"'Standing Data'!$D$12","v":{"$error":"#N/A"}},{"$f":"'Standing Data'!$F$9","v":0},{"$f":"'Standing Data'!#REF!","v":{"$error":"#REF!"}},"Fin.Return","I633",{"$f":"'Fin.Return - BS'!I244","v":0}]
[{"$f":"'Standing Data'!$D$12","v":{"$error":"#N/A"}},{"$f":"'Standing Data'!$F$9","v":0},{"$f":"'Standing Data'!#REF!","v":{"$error":"#REF!"}},"Fin.Return","I634",{"$f":"'Fin.Return - BS'!I245","v":0}]
[{"$f":"'Standing Data'!$D$12","v":{"$error":"#N/A"}},{"$f":"'Standing Data'!$F$9","v":0},{"$f":"'Standing Data'!#REF!","v":{"$error":"#REF!"}},"Fin.Return","I635",{"$f":"'Fin.Return - BS'!I248","v":0}]
[{"$f":"'Standing Data'!$D$12","v":{"$error":"#N/A"}},{"$f":"'Standing Data'!$F$9","v":0},{"$f":"'Standing Data'!#REF!","v":{"$error":"#REF!"}},"Fin.Return","I636",{"$f":"'Fin.Return - BS'!I249","v":0}]
[{"$f":"'Standing Data'!$D$12","v":{"$error":"#N/A"}},{"$f":"'Standing Data'!$F$9","v":0},{"$f":"'Standing Data'!#REF!","v":{"$error":"#REF!"}},"Fin.Return","I638",{"$f":"'Fin.Return - BS'!I252","v":0}]
[{"$f":"'Standing Data'!$D$12","v":{"$error":"#N/A"}},{"$f":"'Standing Data'!$F$9","v":0},{"$f":"'Standing Data'!#REF!","v":{"$error":"#REF!"}},"Fin.Return","I640",{"$f":"'Fin.Return - BS'!I254","v":0}]
[{"$f":"'Standing Data'!$D$12","v":{"$error":"#N/A"}},{"$f":"'Standing Data'!$F$9","v":0},{"$f":"'Standing Data'!#REF!","v":{"$error":"#REF!"}},"Fin.Return","I745",{"$f":"'Fin.Return - BS'!I356","v":0}]
[{"$f":"'Standing Data'!$D$12","v":{"$error":"#N/A"}},{"$f":"'Standing Data'!$F$9","v":0},{"$f":"'Standing Data'!#REF!","v":{"$error":"#REF!"}},"Fin.Return","I746",{"$f":"'Fin.Return - BS'!I357","v":0}]
[{"$f":"'Standing Data'!$D$12","v":{"$error":"#N/A"}},{"$f":"'Standing Data'!$F$9","v":0},{"$f":"'Standing Data'!#REF!","v":{"$error":"#REF!"}},"Fin.Return","I747",{"$f":"'Fin.Return - BS'!I358","v":0}]
[{"$f":"'Standing Data'!$D$12","v":{"$error":"#N/A"}},{"$f":"'Standing Data'!$F$9","v":0},{"$f":"'Standing Data'!#REF!","v":{"$error":"#REF!"}},"Fin.Return","I748",{"$f":"'Fin.Return - BS'!I359","v":0}]
[{"$f":"'Standing Data'!$D$12","v":{"$error":"#N/A"}},{"$f":"'Standing Data'!$F$9","v":0},{"$f":"'Standing Data'!#REF!","v":{"$error":"#REF!"}},"Fin.Return","I750",{"$f":"'Fin.Return - BS'!I361","v":0}]
[{"$f":"'Standing Data'!$D$12","v":{"$error":"#N/A"}},{"$f":"'Standing Data'!$F$9","v":0},{"$f":"'Standing Data'!#REF!","v":{"$error":"#REF!"}},"Fin.Return","I755",{"$f":"'Fin.Return - BS'!I366","v":0}]
[{"$f":"'Standing Data'!$D$12","v":{"$error":"#N/A"}},{"$f":"'Standing Data'!$F$9","v":0},{"$f":"'Standing Data'!#REF!","v":{"$error":"#REF!"}},"Fin.Return","I756",{"$f":"'Fin.Return - BS'!I367","v":0}]
[{"$f":"'Standing Data'!$D$12","v":{"$error":"#N/A"}},{"$f":"'Standing Data'!$F$9","v":0},{"$f":"'Standing Data'!#REF!","v":{"$error":"#REF!"}},"Fin.Return","I757",{"$f":"'Fin.Return - BS'!I368","v":0}]
[{"$f":"'Standing Data'!$D$12","v":{"$error":"#N/A"}},{"$f":"'Standing Data'!$F$9","v":0},{"$f":"'Standing Data'!#REF!","v":{"$error":"#REF!"}},"Fin.Return","I759",{"$f":"'Fin.Return - BS'!I370","v":0}]
[{"$f":"'Standing Data'!$D$12","v":{"$error":"#N/A"}},{"$f":"'Standing Data'!$F$9","v":0},{"$f":"'Standing Data'!#REF!","v":{"$error":"#REF!"}},"Fin.Return","I767",{"$f":"'Fin.Return - BS'!I378","v":0}]
[{"$f":"'Standing Data'!$D$12","v":{"$error":"#N/A"}},{"$f":"'Standing Data'!$F$9","v":0},{"$f":"'Standing Data'!#REF!","v":{"$error":"#REF!"}},"Fin.Return","I768",{"$f":"'Fin.Return - BS'!I379","v":0}]
[{"$f":"'Standing Data'!$D$12","v":{"$error":"#N/A"}},{"$f":"'Standing Data'!$F$9","v":0},{"$f":"'Standing Data'!#REF!","v":{"$error":"#REF!"}},"Fin.Return","I770",{"$f":"'Fin.Return - Other Notes'!#REF!","v":{"$error":"#REF!"}}]
[{"$f":"'Standing Data'!$D$12","v":{"$error":"#N/A"}},{"$f":"'Standing Data'!$F$9","v":0},{"$f":"'Standing Data'!#REF!","v":{"$error":"#REF!"}},"Fin.Return","I771",{"$f":"'Fin.Return - Other Notes'!#REF!","v":{"$error":"#REF!"}}]
[{"$f":"'Standing Data'!$D$12","v":{"$error":"#N/A"}},{"$f":"'Standing Data'!$F$9","v":0},{"$f":"'Standing Data'!#REF!","v":{"$error":"#REF!"}},"Fin.Return","I772",{"$f":"'Fin.Return - Other Notes'!#REF!","v":{"$error":"#REF!"}}]
[{"$f":"'Standing Data'!$D$12","v":{"$error":"#N/A"}},{"$f":"'Standing Data'!$F$9","v":0},{"$f":"'Standing Data'!#REF!","v":{"$error":"#REF!"}},"Fin.Return","I773",{"$f":"'Fin.Return - Other Notes'!#REF!","v":{"$error":"#REF!"}}]
[{"$f":"'Standing Data'!$D$12","v":{"$error":"#N/A"}},{"$f":"'Standing Data'!$F$9","v":0},{"$f":"'Standing Data'!#REF!","v":{"$error":"#REF!"}},"Fin.Return","I774",{"$f":"'Fin.Return - Other Notes'!#REF!","v":{"$error":"#REF!"}}]
[{"$f":"'Standing Data'!$D$12","v":{"$error":"#N/A"}},{"$f":"'Standing Data'!$F$9","v":0},{"$f":"'Standing Data'!#REF!","v":{"$error":"#REF!"}},"Fin.Return","I775",{"$f":"'Fin.Return - Other Notes'!#REF!","v":{"$error":"#REF!"}}]
[{"$f":"'Standing Data'!$D$12","v":{"$error":"#N/A"}},{"$f":"'Standing Data'!$F$9","v":0},{"$f":"'Standing Data'!#REF!","v":{"$error":"#REF!"}},"Fin.Return","I776",{"$f":"'Fin.Return - BS'!I381","v":0}]
[{"$f":"'Standing Data'!$D$12","v":{"$error":"#N/A"}},{"$f":"'Standing Data'!$F$9","v":0},{"$f":"'Standing Data'!#REF!","v":{"$error":"#REF!"}},"Fin.Return","I777",{"$f":"'Fin.Return - BS'!I382","v":0}]
[{"$f":"'Standing Data'!$D$12","v":{"$error":"#N/A"}},{"$f":"'Standing Data'!$F$9","v":0},{"$f":"'Standing Data'!#REF!","v":{"$error":"#REF!"}},"Fin.Return","I779",{"$f":"'Fin.Return - BS'!I384","v":0}]
[{"$f":"'Standing Data'!$D$12","v":{"$error":"#N/A"}},{"$f":"'Standing Data'!$F$9","v":0},{"$f":"'Standing Data'!#REF!","v":{"$error":"#REF!"}},"Fin.Return","I780",{"$f":"'Fin.Return - BS'!I385","v":0}]
[{"$f":"'Standing Data'!$D$12","v":{"$error":"#N/A"}},{"$f":"'Standing Data'!$F$9","v":0},{"$f":"'Standing Data'!#REF!","v":{"$error":"#REF!"}},"Fin.Return","I782",{"$f":"'Fin.Return - BS'!I387","v":0}]
[{"$f":"'Standing Data'!$D$12","v":{"$error":"#N/A"}},{"$f":"'Standing Data'!$F$9","v":0},{"$f":"'Standing Data'!#REF!","v":{"$error":"#REF!"}},"Fin.Return","I783",{"$f":"'Fin.Return - BS'!I388","v":0}]
[{"$f":"'Standing Data'!$D$12","v":{"$error":"#N/A"}},{"$f":"'Standing Data'!$F$9","v":0},{"$f":"'Standing Data'!#REF!","v":{"$error":"#REF!"}},"Fin.Return","I785",{"$f":"'Fin.Return - BS'!I390","v":0}]
[{"$f":"'Standing Data'!$D$12","v":{"$error":"#N/A"}},{"$f":"'Standing Data'!$F$9","v":0},{"$f":"'Standing Data'!#REF!","v":{"$error":"#REF!"}},"Fin.Return","I787",{"$f":"'Fin.Return - BS'!I392","v":0}]
[{"$f":"'Standing Data'!$D$12","v":{"$error":"#N/A"}},{"$f":"'Standing Data'!$F$9","v":0},{"$f":"'Standing Data'!#REF!","v":{"$error":"#REF!"}},"Fin.Return","I789",{"$f":"'Fin.Return - Other Notes'!#REF!","v":{"$error":"#REF!"}}]
[{"$f":"'Standing Data'!$D$12","v":{"$error":"#N/A"}},{"$f":"'Standing Data'!$F$9","v":0},{"$f":"'Standing Data'!#REF!","v":{"$error":"#REF!"}},"Fin.Return","I790",{"$f":"'Fin.Return - Other Notes'!#REF!","v":{"$error":"#REF!"}}]
[{"$f":"'Standing Data'!$D$12","v":{"$error":"#N/A"}},{"$f":"'Standing Data'!$F$9","v":0},{"$f":"'Standing Data'!#REF!","v":{"$error":"#REF!"}},"Fin.Return","I791",{"$f":"'Fin.Return - Other Notes'!#REF!","v":{"$error":"#REF!"}}]
[{"$f":"'Standing Data'!$D$12","v":{"$error":"#N/A"}},{"$f":"'Standing Data'!$F$9","v":0},{"$f":"'Standing Data'!#REF!","v":{"$error":"#REF!"}},"Fin.Return","I792",{"$f":"'Fin.Return - Other Notes'!#REF!","v":{"$error":"#REF!"}}]
[{"$f":"'Standing Data'!$D$12","v":{"$error":"#N/A"}},{"$f":"'Standing Data'!$F$9","v":0},{"$f":"'Standing Data'!#REF!","v":{"$error":"#REF!"}},"Fin.Return","I793",{"$f":"'Fin.Return - Other Notes'!#REF!","v":{"$error":"#REF!"}}]
[{"$f":"'Standing Data'!$D$12","v":{"$error":"#N/A"}},{"$f":"'Standing Data'!$F$9","v":0},{"$f":"'Standing Data'!#REF!","v":{"$error":"#REF!"}},"Fin.Return","I794",{"$f":"'Fin.Return - Other Notes'!#REF!","v":{"$error":"#REF!"}}]
[{"$f":"'Standing Data'!$D$12","v":{"$error":"#N/A"}},{"$f":"'Standing Data'!$F$9","v":0},{"$f":"'Standing Data'!#REF!","v":{"$error":"#REF!"}},"Fin.Return","I795",{"$f":"'Fin.Return - BS'!I394","v":0}]
[{"$f":"'Standing Data'!$D$12","v":{"$error":"#N/A"}},{"$f":"'Standing Data'!$F$9","v":0},{"$f":"'Standing Data'!#REF!","v":{"$error":"#REF!"}},"Fin.Return","I796",{"$f":"'Fin.Return - BS'!I395","v":0}]
[{"$f":"'Standing Data'!$D$12","v":{"$error":"#N/A"}},{"$f":"'Standing Data'!$F$9","v":0},{"$f":"'Standing Data'!#REF!","v":{"$error":"#REF!"}},"Fin.Return","I798",{"$f":"'Fin.Return - BS'!I397","v":0}]
[{"$f":"'Standing Data'!$D$12","v":{"$error":"#N/A"}},{"$f":"'Standing Data'!$F$9","v":0},{"$f":"'Standing Data'!#REF!","v":{"$error":"#REF!"}},"Fin.Return","I799",{"$f":"'Fin.Return - BS'!I398","v":0}]
[{"$f":"'Standing Data'!$D$12","v":{"$error":"#N/A"}},{"$f":"'Standing Data'!$F$9","v":0},{"$f":"'Standing Data'!#REF!","v":{"$error":"#REF!"}},"Fin.Return","I800",{"$f":"'Fin.Return - BS'!I399","v":0}]
[{"$f":"'Standing Data'!$D$12","v":{"$error":"#N/A"}},{"$f":"'Standing Data'!$F$9","v":0},{"$f":"'Standing Data'!#REF!","v":{"$error":"#REF!"}},"Fin.Return","I802",{"$f":"'Fin.Return - BS'!I401","v":0}]
[{"$f":"'Standing Data'!$D$12","v":{"$error":"#N/A"}},{"$f":"'Standing Data'!$F$9","v":0},{"$f":"'Standing Data'!#REF!","v":{"$error":"#REF!"}},"Fin.Return","I803",{"$f":"'Fin.Return - BS'!I402","v":0}]
[{"$f":"'Standing Data'!$D$12","v":{"$error":"#N/A"}},{"$f":"'Standing Data'!$F$9","v":0},{"$f":"'Standing Data'!#REF!","v":{"$error":"#REF!"}},"Fin.Return","I805",{"$f":"'Fin.Return - BS'!I404","v":0}]
[{"$f":"'Standing Data'!$D$12","v":{"$error":"#N/A"}},{"$f":"'Standing Data'!$F$9","v":0},{"$f":"'Standing Data'!#REF!","v":{"$error":"#REF!"}},"Fin.Return","I807",{"$f":"'Fin.Return - BS'!I406","v":0}]
[{"$f":"'Standing Data'!$D$12","v":{"$error":"#N/A"}},{"$f":"'Standing Data'!$F$9","v":0},{"$f":"'Standing Data'!#REF!","v":{"$error":"#REF!"}},"Fin.Return","I809",{"$f":"'Fin.Return - BS'!I408","v":0}]
[{"$f":"'Standing Data'!$D$12","v":{"$error":"#N/A"}},{"$f":"'Standing Data'!$F$9","v":0},{"$f":"'Standing Data'!#REF!","v":{"$error":"#REF!"}},"Fin.Return","I811",{"$f":"'Fin.Return - BS'!I410","v":0}]
[{"$f":"'Standing Data'!$D$12","v":{"$error":"#N/A"}},{"$f":"'Standing Data'!$F$9","v":0},{"$f":"'Standing Data'!#REF!","v":{"$error":"#REF!"}},"Fin.Return","I816",{"$f":"'Fin.Return - Other Notes'!I126","v":0}]
[{"$f":"'Standing Data'!$D$12","v":{"$error":"#N/A"}},{"$f":"'Standing Data'!$F$9","v":0},{"$f":"'Standing Data'!#REF!","v":{"$error":"#REF!"}},"Fin.Return","I817",{"$f":"'Fin.Return - Other Notes'!I127","v":0}]
[{"$f":"'Standing Data'!$D$12","v":{"$error":"#N/A"}},{"$f":"'Standing Data'!$F$9","v":0},{"$f":"'Standing Data'!#REF!","v":{"$error":"#REF!"}},"Fin.Return","I818",{"$f":"'Fin.Return - Other Notes'!I128","v":0}]
[{"$f":"'Standing Data'!$D$12","v":{"$error":"#N/A"}},{"$f":"'Standing Data'!$F$9","v":0},{"$f":"'Standing Data'!#REF!","v":{"$error":"#REF!"}},"Fin.Return","I819",{"$f":"'Fin.Return - Other Notes'!I129","v":0}]
[{"$f":"'Standing Data'!$D$12","v":{"$error":"#N/A"}},{"$f":"'Standing Data'!$F$9","v":0},{"$f":"'Standing Data'!#REF!","v":{"$error":"#REF!"}},"Fin.Return","I820",{"$f":"'Fin.Return - Other Notes'!I130","v":0}]
[{"$f":"'Standing Data'!$D$12","v":{"$error":"#N/A"}},{"$f":"'Standing Data'!$F$9","v":0},{"$f":"'Standing Data'!#REF!","v":{"$error":"#REF!"}},"Fin.Return","I821",{"$f":"'Fin.Return - Other Notes'!I131","v":0}]
[{"$f":"'Standing Data'!$D$12","v":{"$error":"#N/A"}},{"$f":"'Standing Data'!$F$9","v":0},{"$f":"'Standing Data'!#REF!","v":{"$error":"#REF!"}},"Fin.Return","I823",{"$f":"'Fin.Return - Other Notes'!I133","v":0}]
[{"$f":"'Standing Data'!$D$12","v":{"$error":"#N/A"}},{"$f":"'Standing Data'!$F$9","v":0},{"$f":"'Standing Data'!#REF!","v":{"$error":"#REF!"}},"Fin.Return","I850",{"$f":"'Fin.Return - Other Notes'!I162","v":0}]
[{"$f":"'Standing Data'!$D$12","v":{"$error":"#N/A"}},{"$f":"'Standing Data'!$F$9","v":0},{"$f":"'Standing Data'!#REF!","v":{"$error":"#REF!"}},"Fin.Return","I851",{"$f":"'Fin.Return - Other Notes'!I163","v":0}]
[{"$f":"'Standing Data'!$D$12","v":{"$error":"#N/A"}},{"$f":"'Standing Data'!$F$9","v":0},{"$f":"'Standing Data'!#REF!","v":{"$error":"#REF!"}},"Fin.Return","I852",{"$f":"'Fin.Return - Other Notes'!I164","v":0}]
[{"$f":"'Standing Data'!$D$12","v":{"$error":"#N/A"}},{"$f":"'Standing Data'!$F$9","v":0},{"$f":"'Standing Data'!#REF!","v":{"$error":"#REF!"}},"Fin.Return","I854",{"$f":"'Fin.Return - Other Notes'!I166","v":0}]
[{"$f":"'Standing Data'!$D$12","v":{"$error":"#N/A"}},{"$f":"'Standing Data'!$F$9","v":0},{"$f":"'Standing Data'!#REF!","v":{"$error":"#REF!"}},"Fin.Return","I857",{"$f":"'Fin.Return - Other Notes'!I169","v":0}]
[{"$f":"'Standing Data'!$D$12","v":{"$error":"#N/A"}},{"$f":"'Standing Data'!$F$9","v":0},{"$f":"'Standing Data'!#REF!","v":{"$error":"#REF!"}},"Fin.Return","I858",{"$f":"'Fin.Return - Other Notes'!I170","v":0}]
[{"$f":"'Standing Data'!$D$12","v":{"$error":"#N/A"}},{"$f":"'Standing Data'!$F$9","v":0},{"$f":"'Standing Data'!#REF!","v":{"$error":"#REF!"}},"Fin.Return","I860",{"$f":"'Fin.Return - Other Notes'!I172","v":0}]
[{"$f":"'Standing Data'!$D$12","v":{"$error":"#N/A"}},{"$f":"'Standing Data'!$F$9","v":0},{"$f":"'Standing Data'!#REF!","v":{"$error":"#REF!"}},"Fin.Return","I862",{"$f":"'Fin.Return - Other Notes'!I174","v":0}]
[{"$f":"'Standing Data'!$D$12","v":{"$error":"#N/A"}},{"$f":"'Standing Data'!$F$9","v":0},{"$f":"'Standing Data'!#REF!","v":{"$error":"#REF!"}},"Fin.Return","I865",{"$f":"'Fin.Return - Other Notes'!I177","v":0}]
[{"$f":"'Standing Data'!$D$12","v":{"$error":"#N/A"}},{"$f":"'Standing Data'!$F$9","v":0},{"$f":"'Standing Data'!#REF!","v":{"$error":"#REF!"}},"Fin.Return","I866",{"$f":"'Fin.Return - Other Notes'!I178","v":0}]
[{"$f":"'Standing Data'!$D$12","v":{"$error":"#N/A"}},{"$f":"'Standing Data'!$F$9","v":0},{"$f":"'Standing Data'!#REF!","v":{"$error":"#REF!"}},"Fin.Return","I867",{"$f":"'Fin.Return - Other Notes'!I179","v":0}]
[{"$f":"'Standing Data'!$D$12","v":{"$error":"#N/A"}},{"$f":"'Standing Data'!$F$9","v":0},{"$f":"'Standing Data'!#REF!","v":{"$error":"#REF!"}},"Fin.Return","I868",{"$f":"'Fin.Return - Other Notes'!I180","v":0}]
[{"$f":"'Standing Data'!$D$12","v":{"$error":"#N/A"}},{"$f":"'Standing Data'!$F$9","v":0},{"$f":"'Standing Data'!#REF!","v":{"$error":"#REF!"}},"Fin.Return","I869",{"$f":"'Fin.Return - Other Notes'!I181","v":0}]
[{"$f":"'Standing Data'!$D$12","v":{"$error":"#N/A"}},{"$f":"'Standing Data'!$F$9","v":0},{"$f":"'Standing Data'!#REF!","v":{"$error":"#REF!"}},"Fin.Return","I870",{"$f":"'Fin.Return - Other Notes'!I182","v":0}]
[{"$f":"'Standing Data'!$D$12","v":{"$error":"#N/A"}},{"$f":"'Standing Data'!$F$9","v":0},{"$f":"'Standing Data'!#REF!","v":{"$error":"#REF!"}},"Fin.Return","I871",{"$f":"'Fin.Return - Other Notes'!I183","v":0}]
[{"$f":"'Standing Data'!$D$12","v":{"$error":"#N/A"}},{"$f":"'Standing Data'!$F$9","v":0},{"$f":"'Standing Data'!#REF!","v":{"$error":"#REF!"}},"Fin.Return","I872",{"$f":"'Fin.Return - Other Notes'!I184","v":0}]
[{"$f":"'Standing Data'!$D$12","v":{"$error":"#N/A"}},{"$f":"'Standing Data'!$F$9","v":0},{"$f":"'Standing Data'!#REF!","v":{"$error":"#REF!"}},"Fin.Return","I873",{"$f":"'Fin.Return - Other Notes'!I185","v":0}]
[{"$f":"'Standing Data'!$D$12","v":{"$error":"#N/A"}},{"$f":"'Standing Data'!$F$9","v":0},{"$f":"'Standing Data'!#REF!","v":{"$error":"#REF!"}},"Fin.Return","I874",{"$f":"'Fin.Return - Other Notes'!I186","v":0}]
[{"$f":"'Standing Data'!$D$12","v":{"$error":"#N/A"}},{"$f":"'Standing Data'!$F$9","v":0},{"$f":"'Standing Data'!#REF!","v":{"$error":"#REF!"}},"Fin.Return","I876",{"$f":"'Fin.Return - Other Notes'!I190","v":0}]
[{"$f":"'Standing Data'!$D$12","v":{"$error":"#N/A"}},{"$f":"'Standing Data'!$F$9","v":0},{"$f":"'Standing Data'!#REF!","v":{"$error":"#REF!"}},"Fin.Return","I879",{"$f":"'Fin.Return - Other Notes'!I193","v":0}]
[{"$f":"'Standing Data'!$D$12","v":{"$error":"#N/A"}},{"$f":"'Standing Data'!$F$9","v":0},{"$f":"'Standing Data'!#REF!","v":{"$error":"#REF!"}},"Fin.Return","I880",{"$f":"'Fin.Return - Other Notes'!I194","v":0}]
[{"$f":"'Standing Data'!$D$12","v":{"$error":"#N/A"}},{"$f":"'Standing Data'!$F$9","v":0},{"$f":"'Standing Data'!#REF!","v":{"$error":"#REF!"}},"Fin.Return","I881",{"$f":"'Fin.Return - Other Notes'!I195","v":0}]
[{"$f":"'Standing Data'!$D$12","v":{"$error":"#N/A"}},{"$f":"'Standing Data'!$F$9","v":0},{"$f":"'Standing Data'!#REF!","v":{"$error":"#REF!"}},"Fin.Return","I882",{"$f":"'Fin.Return - Other Notes'!I196","v":0}]
[{"$f":"'Standing Data'!$D$12","v":{"$error":"#N/A"}},{"$f":"'Standing Data'!$F$9","v":0},{"$f":"'Standing Data'!#REF!","v":{"$error":"#REF!"}},"Fin.Return","I883",{"$f":"'Fin.Return - Other Notes'!I197","v":0}]
[{"$f":"'Standing Data'!$D$12","v":{"$error":"#N/A"}},{"$f":"'Standing Data'!$F$9","v":0},{"$f":"'Standing Data'!#REF!","v":{"$error":"#REF!"}},"Fin.Return","I884",{"$f":"'Fin.Return - Other Notes'!I198","v":0}]
[{"$f":"'Standing Data'!$D$12","v":{"$error":"#N/A"}},{"$f":"'Standing Data'!$F$9","v":0},{"$f":"'Standing Data'!#REF!","v":{"$error":"#REF!"}},"Fin.Return","I885",{"$f":"'Fin.Return - Other Notes'!I199","v":0}]
[{"$f":"'Standing Data'!$D$12","v":{"$error":"#N/A"}},{"$f":"'Standing Data'!$F$9","v":0},{"$f":"'Standing Data'!#REF!","v":{"$error":"#REF!"}},"Fin.Return","I887",{"$f":"'Fin.Return - Other Notes'!I203","v":0}]
[{"$f":"'Standing Data'!$D$12","v":{"$error":"#N/A"}},{"$f":"'Standing Data'!$F$9","v":0},{"$f":"'Standing Data'!#REF!","v":{"$error":"#REF!"}},"Fin.Return","I890",{"$f":"'Fin.Return - Other Notes'!I206","v":0}]
[{"$f":"'Standing Data'!$D$12","v":{"$error":"#N/A"}},{"$f":"'Standing Data'!$F$9","v":0},{"$f":"'Standing Data'!#REF!","v":{"$error":"#REF!"}},"Fin.Return","I891",{"$f":"'Fin.Return - Other Notes'!I207","v":0}]
[{"$f":"'Standing Data'!$D$12","v":{"$error":"#N/A"}},{"$f":"'Standing Data'!$F$9","v":0},{"$f":"'Standing Data'!#REF!","v":{"$error":"#REF!"}},"Fin.Return","I892",{"$f":"'Fin.Return - Other Notes'!I208","v":0}]
[{"$f":"'Standing Data'!$D$12","v":{"$error":"#N/A"}},{"$f":"'Standing Data'!$F$9","v":0},{"$f":"'Standing Data'!#REF!","v":{"$error":"#REF!"}},"Fin.Return","I893",{"$f":"'Fin.Return - Other Notes'!I209","v":0}]
[{"$f":"'Standing Data'!$D$12","v":{"$error":"#N/A"}},{"$f":"'Standing Data'!$F$9","v":0},{"$f":"'Standing Data'!#REF!","v":{"$error":"#REF!"}},"Fin.Return","I894",{"$f":"'Fin.Return - Other Notes'!I210","v":0}]
[{"$f":"'Standing Data'!$D$12","v":{"$error":"#N/A"}},{"$f":"'Standing Data'!$F$9","v":0},{"$f":"'Standing Data'!#REF!","v":{"$error":"#REF!"}},"Fin.Return","I895",{"$f":"'Fin.Return - Other Notes'!I211","v":0}]
[{"$f":"'Standing Data'!$D$12","v":{"$error":"#N/A"}},{"$f":"'Standing Data'!$F$9","v":0},{"$f":"'Standing Data'!#REF!","v":{"$error":"#REF!"}},"Fin.Return","I896",{"$f":"'Fin.Return - Other Notes'!I212","v":0}]
[{"$f":"'Standing Data'!$D$12","v":{"$error":"#N/A"}},{"$f":"'Standing Data'!$F$9","v":0},{"$f":"'Standing Data'!#REF!","v":{"$error":"#REF!"}},"Fin.Return","I897",{"$f":"'Fin.Return - Other Notes'!I213","v":0}]
[{"$f":"'Standing Data'!$D$12","v":{"$error":"#N/A"}},{"$f":"'Standing Data'!$F$9","v":0},{"$f":"'Standing Data'!#REF!","v":{"$error":"#REF!"}},"Fin.Return","I898",{"$f":"'Fin.Return - Other Notes'!I214","v":0}]
[{"$f":"'Standing Data'!$D$12","v":{"$error":"#N/A"}},{"$f":"'Standing Data'!$F$9","v":0},{"$f":"'Standing Data'!#REF!","v":{"$error":"#REF!"}},"Fin.Return","I899",{"$f":"'Fin.Return - Other Notes'!I215","v":0}]
[{"$f":"'Standing Data'!$D$12","v":{"$error":"#N/A"}},{"$f":"'Standing Data'!$F$9","v":0},{"$f":"'Standing Data'!#REF!","v":{"$error":"#REF!"}},"Fin.Return","I901",{"$f":"'Fin.Return - Other Notes'!I219","v":0}]
[{"$f":"'Standing Data'!$D$12","v":{"$error":"#N/A"}},{"$f":"'Standing Data'!$F$9","v":0},{"$f":"'Standing Data'!#REF!","v":{"$error":"#REF!"}},"Fin.Return","I908",{"$f":"'Fin.Return - Other Notes'!I228","v":0}]
[{"$f":"'Standing Data'!$D$12","v":{"$error":"#N/A"}},{"$f":"'Standing Data'!$F$9","v":0},{"$f":"'Standing Data'!#REF!","v":{"$error":"#REF!"}},"Fin.Return","I909",{"$f":"'Fin.Return - Other Notes'!I229","v":0}]
[{"$f":"'Standing Data'!$D$12","v":{"$error":"#N/A"}},{"$f":"'Standing Data'!$F$9","v":0},{"$f":"'Standing Data'!#REF!","v":{"$error":"#REF!"}},"Fin.Return","I910",{"$f":"'Fin.Return - Other Notes'!I230","v":0}]
[{"$f":"'Standing Data'!$D$12","v":{"$error":"#N/A"}},{"$f":"'Standing Data'!$F$9","v":0},{"$f":"'Standing Data'!#REF!","v":{"$error":"#REF!"}},"Fin.Return","I911",{"$f":"'Fin.Return - Other Notes'!I231","v":0}]
[{"$f":"'Standing Data'!$D$12","v":{"$error":"#N/A"}},{"$f":"'Standing Data'!$F$9","v":0},{"$f":"'Standing Data'!#REF!","v":{"$error":"#REF!"}},"Fin.Return","I912",{"$f":"'Fin.Return - Other Notes'!I232","v":0}]
[{"$f":"'Standing Data'!$D$12","v":{"$error":"#N/A"}},{"$f":"'Standing Data'!$F$9","v":0},{"$f":"'Standing Data'!#REF!","v":{"$error":"#REF!"}},"Fin.Return","I914",{"$f":"'Fin.Return - Other Notes'!I234","v":0}]
[{"$f":"'Standing Data'!$D$12","v":{"$error":"#N/A"}},{"$f":"'Standing Data'!$F$9","v":0},{"$f":"'Standing Data'!#REF!","v":{"$error":"#REF!"}},"Fin.Return","I913",{"$f":"'Fin.Return - Other Notes'!I233","v":0}]
[{"$f":"'Standing Data'!$D$12","v":{"$error":"#N/A"}},{"$f":"'Standing Data'!$F$9","v":0},{"$f":"'Standing Data'!#REF!","v":{"$error":"#REF!"}},"Fin.Return","I916",{"$f":"'Fin.Return - Other Notes'!I236","v":0}]
[{"$f":"'Standing Data'!$D$12","v":{"$error":"#N/A"}},{"$f":"'Standing Data'!$F$9","v":0},{"$f":"'Standing Data'!#REF!","v":{"$error":"#REF!"}},"Fin.Return","I917",{"$f":"'Fin.Return - Other Notes'!I237","v":0}]
[{"$f":"'Standing Data'!$D$12","v":{"$error":"#N/A"}},{"$f":"'Standing Data'!$F$9","v":0},{"$f":"'Standing Data'!#REF!","v":{"$error":"#REF!"}},"Fin.Return","I918",{"$f":"'Fin.Return - Other Notes'!I238","v":0}]
[{"$f":"'Standing Data'!$D$12","v":{"$error":"#N/A"}},{"$f":"'Standing Data'!$F$9","v":0},{"$f":"'Standing Data'!#REF!","v":{"$error":"#REF!"}},"Fin.Return","I919",{"$f":"'Fin.Return - Other Notes'!I239","v":0}]
[{"$f":"'Standing Data'!$D$12","v":{"$error":"#N/A"}},{"$f":"'Standing Data'!$F$9","v":0},{"$f":"'Standing Data'!#REF!","v":{"$error":"#REF!"}},"Fin.Return","I920",{"$f":"'Fin.Return - Other Notes'!I240","v":0}]
[{"$f":"'Standing Data'!$D$12","v":{"$error":"#N/A"}},{"$f":"'Standing Data'!$F$9","v":0},{"$f":"'Standing Data'!#REF!","v":{"$error":"#REF!"}},"Fin.Return","I922",{"$f":"'Fin.Return - Other Notes'!I242","v":0}]
[{"$f":"'Standing Data'!$D$12","v":{"$error":"#N/A"}},{"$f":"'Standing Data'!$F$9","v":0},{"$f":"'Standing Data'!#REF!","v":{"$error":"#REF!"}},"Fin.Return","I924",{"$f":"'Fin.Return - Other Notes'!I244","v":0}]
[{"$f":"'Standing Data'!$D$12","v":{"$error":"#N/A"}},{"$f":"'Standing Data'!$F$9","v":0},{"$f":"'Standing Data'!#REF!","v":{"$error":"#REF!"}},"Fin.Return","I925",{"$f":"'Fin.Return - Other Notes'!I245","v":0}]
[{"$f":"'Standing Data'!$D$12","v":{"$error":"#N/A"}},{"$f":"'Standing Data'!$F$9","v":0},{"$f":"'Standing Data'!#REF!","v":{"$error":"#REF!"}},"Fin.Return","I926",{"$f":"'Fin.Return - Other Notes'!I246","v":0}]
[{"$f":"'Standing Data'!$D$12","v":{"$error":"#N/A"}},{"$f":"'Standing Data'!$F$9","v":0},{"$f":"'Standing Data'!#REF!","v":{"$error":"#REF!"}},"Fin.Return","I927",{"$f":"'Fin.Return - Other Notes'!I247","v":0}]
[{"$f":"'Standing Data'!$D$12","v":{"$error":"#N/A"}},{"$f":"'Standing Data'!$F$9","v":0},{"$f":"'Standing Data'!#REF!","v":{"$error":"#REF!"}},"Fin.Return","I928",{"$f":"'Fin.Return - Other Notes'!I248","v":0}]
[{"$f":"'Standing Data'!$D$12","v":{"$error":"#N/A"}},{"$f":"'Standing Data'!$F$9","v":0},{"$f":"'Standing Data'!#REF!","v":{"$error":"#REF!"}},"Fin.Return","I929",{"$f":"'Fin.Return - Other Notes'!I249","v":0}]
[{"$f":"'Standing Data'!$D$12","v":{"$error":"#N/A"}},{"$f":"'Standing Data'!$F$9","v":0},{"$f":"'Standing Data'!#REF!","v":{"$error":"#REF!"}},"Fin.Return","I930",{"$f":"'Fin.Return - Other Notes'!I250","v":0}]
[{"$f":"'Standing Data'!$D$12","v":{"$error":"#N/A"}},{"$f":"'Standing Data'!$F$9","v":0},{"$f":"'Standing Data'!#REF!","v":{"$error":"#REF!"}},"Fin.Return","I931",{"$f":"'Fin.Return - Other Notes'!I251","v":0}]
[{"$f":"'Standing Data'!$D$12","v":{"$error":"#N/A"}},{"$f":"'Standing Data'!$F$9","v":0},{"$f":"'Standing Data'!#REF!","v":{"$error":"#REF!"}},"Fin.Return","I933",{"$f":"'Fin.Return - Other Notes'!I253","v":0}]
[{"$f":"'Standing Data'!$D$12","v":{"$error":"#N/A"}},{"$f":"'Standing Data'!$F$9","v":0},{"$f":"'Standing Data'!#REF!","v":{"$error":"#REF!"}},"Fin.Return","I934",{"$f":"'Fin.Return - Other Notes'!I254","v":0}]
[{"$f":"'Standing Data'!$D$12","v":{"$error":"#N/A"}},{"$f":"'Standing Data'!$F$9","v":0},{"$f":"'Standing Data'!#REF!","v":{"$error":"#REF!"}},"Fin.Return","I935",{"$f":"'Fin.Return - Other Notes'!I255","v":0}]
[{"$f":"'Standing Data'!$D$12","v":{"$error":"#N/A"}},{"$f":"'Standing Data'!$F$9","v":0},{"$f":"'Standing Data'!#REF!","v":{"$error":"#REF!"}},"Fin.Return","I936",{"$f":"'Fin.Return - Other Notes'!I256","v":0}]
[{"$f":"'Standing Data'!$D$12","v":{"$error":"#N/A"}},{"$f":"'Standing Data'!$F$9","v":0},{"$f":"'Standing Data'!#REF!","v":{"$error":"#REF!"}},"Fin.Return","I938",{"$f":"'Fin.Return - Other Notes'!I258","v":0}]
[{"$f":"'Standing Data'!$D$12","v":{"$error":"#N/A"}},{"$f":"'Standing Data'!$F$9","v":0},{"$f":"'Standing Data'!#REF!","v":{"$error":"#REF!"}},"Fin.Return","I940",{"$f":"'Fin.Return - Other Notes'!I260","v":0}]
[{"$f":"'Standing Data'!$D$12","v":{"$error":"#N/A"}},{"$f":"'Standing Data'!$F$9","v":0},{"$f":"'Standing Data'!#REF!","v":{"$error":"#REF!"}},"Fin.Return","I942",{"$f":"'Fin.Return - Other Notes'!I262","v":0}]
[{"$f":"'Standing Data'!$D$12","v":{"$error":"#N/A"}},{"$f":"'Standing Data'!$F$9","v":0},{"$f":"'Standing Data'!#REF!","v":{"$error":"#REF!"}},"Fin.Return","I957",{"$f":"'Fin.Return - Other Notes'!#REF!","v":{"$error":"#REF!"}}]
[{"$f":"'Standing Data'!$D$12","v":{"$error":"#N/A"}},{"$f":"'Standing Data'!$F$9","v":0},{"$f":"'Standing Data'!#REF!","v":{"$error":"#REF!"}},"Fin.Return","I958",{"$f":"'Fin.Return - Other Notes'!#REF!","v":{"$error":"#REF!"}}]
[{"$f":"'Standing Data'!$D$12","v":{"$error":"#N/A"}},{"$f":"'Standing Data'!$F$9","v":0},{"$f":"'Standing Data'!#REF!","v":{"$error":"#REF!"}},"Fin.Return","I959",{"$f":"'Fin.Return - Other Notes'!#REF!","v":{"$error":"#REF!"}}]
[{"$f":"'Standing Data'!$D$12","v":{"$error":"#N/A"}},{"$f":"'Standing Data'!$F$9","v":0},{"$f":"'Standing Data'!#REF!","v":{"$error":"#REF!"}},"Fin.Return","I961",{"$f":"'Fin.Return - Other Notes'!#REF!","v":{"$error":"#REF!"}}]
[{"$f":"'Standing Data'!$D$12","v":{"$error":"#N/A"}},{"$f":"'Standing Data'!$F$9","v":0},{"$f":"'Standing Data'!#REF!","v":{"$error":"#REF!"}},"Fin.Return","I969",{"$f":"'Fin.Return - Other Notes'!I359","v":0}]
[{"$f":"'Standing Data'!$D$12","v":{"$error":"#N/A"}},{"$f":"'Standing Data'!$F$9","v":0},{"$f":"'Standing Data'!#REF!","v":{"$error":"#REF!"}},"Fin.Return","I970",{"$f":"'Fin.Return - Other Notes'!I360","v":0}]
[{"$f":"'Standing Data'!$D$12","v":{"$error":"#N/A"}},{"$f":"'Standing Data'!$F$9","v":0},{"$f":"'Standing Data'!#REF!","v":{"$error":"#REF!"}},"Fin.Return","I971",{"$f":"'Fin.Return - Other Notes'!I361","v":0}]
[{"$f":"'Standing Data'!$D$12","v":{"$error":"#N/A"}},{"$f":"'Standing Data'!$F$9","v":0},{"$f":"'Standing Data'!#REF!","v":{"$error":"#REF!"}},"Fin.Return","I973",{"$f":"'Fin.Return - Other Notes'!I363","v":0}]
[{"$f":"'Standing Data'!$D$12","v":{"$error":"#N/A"}},{"$f":"'Standing Data'!$F$9","v":0},{"$f":"'Standing Data'!#REF!","v":{"$error":"#REF!"}},"Fin.Return","I974",{"$f":"'Fin.Return - Other Notes'!I364","v":0}]
[{"$f":"'Standing Data'!$D$12","v":{"$error":"#N/A"}},{"$f":"'Standing Data'!$F$9","v":0},{"$f":"'Standing Data'!#REF!","v":{"$error":"#REF!"}},"Fin.Return","I976",{"$f":"'Fin.Return - Other Notes'!I366","v":0}]
[{"$f":"'Standing Data'!$D$12","v":{"$error":"#N/A"}},{"$f":"'Standing Data'!$F$9","v":0},{"$f":"'Standing Data'!#REF!","v":{"$error":"#REF!"}},"Fin.Return","I986",{"$f":"'Fin.Return - Other Notes'!I374","v":0}]
[{"$f":"'Standing Data'!$D$12","v":{"$error":"#N/A"}},{"$f":"'Standing Data'!$F$9","v":0},{"$f":"'Standing Data'!#REF!","v":{"$error":"#REF!"}},"Fin.Return","I987",{"$f":"'Fin.Return - Other Notes'!I375","v":0}]
[{"$f":"'Standing Data'!$D$12","v":{"$error":"#N/A"}},{"$f":"'Standing Data'!$F$9","v":0},{"$f":"'Standing Data'!#REF!","v":{"$error":"#REF!"}},"Fin.Return","I988",{"$f":"'Fin.Return - Other Notes'!I376","v":0}]
[{"$f":"'Standing Data'!$D$12","v":{"$error":"#N/A"}},{"$f":"'Standing Data'!$F$9","v":0},{"$f":"'Standing Data'!#REF!","v":{"$error":"#REF!"}},"Fin.Return","I990",{"$f":"'Fin.Return - Other Notes'!I378","v":0}]
[{"$f":"'Standing Data'!$D$12","v":{"$error":"#N/A"}},{"$f":"'Standing Data'!$F$9","v":0},{"$f":"'Standing Data'!#REF!","v":{"$error":"#REF!"}},"Fin.Return","I991",{"$f":"'Fin.Return - Other Notes'!I379","v":0}]
[{"$f":"'Standing Data'!$D$12","v":{"$error":"#N/A"}},{"$f":"'Standing Data'!$F$9","v":0},{"$f":"'Standing Data'!#REF!","v":{"$error":"#REF!"}},"Fin.Return","I992",{"$f":"'Fin.Return - Other Notes'!I380","v":0}]
[{"$f":"'Standing Data'!$D$12","v":{"$error":"#N/A"}},{"$f":"'Standing Data'!$F$9","v":0},{"$f":"'Standing Data'!#REF!","v":{"$error":"#REF!"}},"Fin.Return","I994",{"$f":"'Fin.Return - Other Notes'!I382","v":0}]
[{"$f":"'Standing Data'!$D$12","v":{"$error":"#N/A"}},{"$f":"'Standing Data'!$F$9","v":0},{"$f":"'Standing Data'!#REF!","v":{"$error":"#REF!"}},"Fin.Return","I995",{"$f":"'Fin.Return - Other Notes'!I383","v":0}]
[{"$f":"'Standing Data'!$D$12","v":{"$error":"#N/A"}},{"$f":"'Standing Data'!$F$9","v":0},{"$f":"'Standing Data'!#REF!","v":{"$error":"#REF!"}},"Fin.Return","I996",{"$f":"'Fin.Return - Other Notes'!I384","v":0}]
[{"$f":"'Standing Data'!$D$12","v":{"$error":"#N/A"}},{"$f":"'Standing Data'!$F$9","v":0},{"$f":"'Standing Data'!#REF!","v":{"$error":"#REF!"}},"Fin.Return","I998",{"$f":"'Fin.Return - Other Notes'!I386","v":0}]
[{"$f":"'Standing Data'!$D$12","v":{"$error":"#N/A"}},{"$f":"'Standing Data'!$F$9","v":0},{"$f":"'Standing Data'!#REF!","v":{"$error":"#REF!"}},"Fin.Return","I999",{"$f":"'Fin.Return - Other Notes'!I387","v":0}]
[{"$f":"'Standing Data'!$D$12","v":{"$error":"#N/A"}},{"$f":"'Standing Data'!$F$9","v":0},{"$f":"'Standing Data'!#REF!","v":{"$error":"#REF!"}},"Fin.Return","I1001",{"$f":"'Fin.Return - Other Notes'!I389","v":0}]
[{"$f":"'Standing Data'!$D$12","v":{"$error":"#N/A"}},{"$f":"'Standing Data'!$F$9","v":0},{"$f":"'Standing Data'!#REF!","v":{"$error":"#REF!"}},"Fin.Return","I1009",{"$f":"'Fin.Return - Other Notes'!I397","v":0}]
[{"$f":"'Standing Data'!$D$12","v":{"$error":"#N/A"}},{"$f":"'Standing Data'!$F$9","v":0},{"$f":"'Standing Data'!#REF!","v":{"$error":"#REF!"}},"Fin.Return","I1010",{"$f":"'Fin.Return - Other Notes'!I398","v":0}]
[{"$f":"'Standing Data'!$D$12","v":{"$error":"#N/A"}},{"$f":"'Standing Data'!$F$9","v":0},{"$f":"'Standing Data'!#REF!","v":{"$error":"#REF!"}},"Fin.Return","I1011",{"$f":"'Fin.Return - Other Notes'!I399","v":0}]
[{"$f":"'Standing Data'!$D$12","v":{"$error":"#N/A"}},{"$f":"'Standing Data'!$F$9","v":0},{"$f":"'Standing Data'!#REF!","v":{"$error":"#REF!"}},"Fin.Return","I1013",{"$f":"'Fin.Return - Other Notes'!I401","v":0}]
[{"$f":"'Standing Data'!$D$12","v":{"$error":"#N/A"}},{"$f":"'Standing Data'!$F$9","v":0},{"$f":"'Standing Data'!#REF!","v":{"$error":"#REF!"}},"Fin.Return","I1014",{"$f":"'Fin.Return - Other Notes'!I402","v":0}]
[{"$f":"'Standing Data'!$D$12","v":{"$error":"#N/A"}},{"$f":"'Standing Data'!$F$9","v":0},{"$f":"'Standing Data'!#REF!","v":{"$error":"#REF!"}},"Fin.Return","I1015",{"$f":"'Fin.Return - Other Notes'!I403","v":0}]
[{"$f":"'Standing Data'!$D$12","v":{"$error":"#N/A"}},{"$f":"'Standing Data'!$F$9","v":0},{"$f":"'Standing Data'!#REF!","v":{"$error":"#REF!"}},"Fin.Return","I1017",{"$f":"'Fin.Return - Other Notes'!I405","v":0}]
[{"$f":"'Standing Data'!$D$12","v":{"$error":"#N/A"}},{"$f":"'Standing Data'!$F$9","v":0},{"$f":"'Standing Data'!#REF!","v":{"$error":"#REF!"}},"Fin.Return","I1018",{"$f":"'Fin.Return - Other Notes'!I406","v":0}]
[{"$f":"'Standing Data'!$D$12","v":{"$error":"#N/A"}},{"$f":"'Standing Data'!$F$9","v":0},{"$f":"'Standing Data'!#REF!","v":{"$error":"#REF!"}},"Fin.Return","I1019",{"$f":"'Fin.Return - Other Notes'!I407","v":0}]
[{"$f":"'Standing Data'!$D$12","v":{"$error":"#N/A"}},{"$f":"'Standing Data'!$F$9","v":0},{"$f":"'Standing Data'!#REF!","v":{"$error":"#REF!"}},"Fin.Return","I1021",{"$f":"'Fin.Return - Other Notes'!I409","v":0}]
[{"$f":"'Standing Data'!$D$12","v":{"$error":"#N/A"}},{"$f":"'Standing Data'!$F$9","v":0},{"$f":"'Standing Data'!#REF!","v":{"$error":"#REF!"}},"Fin.Return","I1022",{"$f":"'Fin.Return - Other Notes'!I410","v":0}]
[{"$f":"'Standing Data'!$D$12","v":{"$error":"#N/A"}},{"$f":"'Standing Data'!$F$9","v":0},{"$f":"'Standing Data'!#REF!","v":{"$error":"#REF!"}},"Fin.Return","I1024",{"$f":"'Fin.Return - Other Notes'!I412","v":0}]
[{"$f":"'Standing Data'!$D$12","v":{"$error":"#N/A"}},{"$f":"'Standing Data'!$F$9","v":0},{"$f":"'Standing Data'!#REF!","v":{"$error":"#REF!"}},"Fin.Return","I1030",{"$f":"'Fin.Return - Other Notes'!#REF!","v":{"$error":"#REF!"}}]
[{"$f":"'Standing Data'!$D$12","v":{"$error":"#N/A"}},{"$f":"'Standing Data'!$F$9","v":0},{"$f":"'Standing Data'!#REF!","v":{"$error":"#REF!"}},"Fin.Return","I1031",{"$f":"'Fin.Return - Other Notes'!#REF!","v":{"$error":"#REF!"}}]
[{"$f":"'Standing Data'!$D$12","v":{"$error":"#N/A"}},{"$f":"'Standing Data'!$F$9","v":0},{"$f":"'Standing Data'!#REF!","v":{"$error":"#REF!"}},"Fin.Return","I1032",{"$f":"'Fin.Return - Other Notes'!#REF!","v":{"$error":"#REF!"}}]
[{"$f":"'Standing Data'!$D$12","v":{"$error":"#N/A"}},{"$f":"'Standing Data'!$F$9","v":0},{"$f":"'Standing Data'!#REF!","v":{"$error":"#REF!"}},"Fin.Return","I1034",{"$f":"'Fin.Return - Other Notes'!#REF!","v":{"$error":"#REF!"}}]
[{"$f":"'Standing Data'!$D$12","v":{"$error":"#N/A"}},{"$f":"'Standing Data'!$F$9","v":0},{"$f":"'Standing Data'!#REF!","v":{"$error":"#REF!"}},"Fin.Return","I1042",{"$f":"'Fin.Return - Other Notes'!I418","v":0}]
[{"$f":"'Standing Data'!$D$12","v":{"$error":"#N/A"}},{"$f":"'Standing Data'!$F$9","v":0},{"$f":"'Standing Data'!#REF!","v":{"$error":"#REF!"}},"Fin.Return","I1043",{"$f":"'Fin.Return - Other Notes'!I419","v":0}]
[{"$f":"'Standing Data'!$D$12","v":{"$error":"#N/A"}},{"$f":"'Standing Data'!$F$9","v":0},{"$f":"'Standing Data'!#REF!","v":{"$error":"#REF!"}},"Fin.Return","I1044",{"$f":"'Fin.Return - Other Notes'!I420","v":0}]
[{"$f":"'Standing Data'!$D$12","v":{"$error":"#N/A"}},{"$f":"'Standing Data'!$F$9","v":0},{"$f":"'Standing Data'!#REF!","v":{"$error":"#REF!"}},"Fin.Return","I1046",{"$f":"'Fin.Return - Other Notes'!I422","v":0}]
[{"$f":"'Standing Data'!$D$12","v":{"$error":"#N/A"}},{"$f":"'Standing Data'!$F$9","v":0},{"$f":"'Standing Data'!#REF!","v":{"$error":"#REF!"}},"Fin.Return","I1047",{"$f":"'Fin.Return - Other Notes'!I423","v":0}]
[{"$f":"'Standing Data'!$D$12","v":{"$error":"#N/A"}},{"$f":"'Standing Data'!$F$9","v":0},{"$f":"'Standing Data'!#REF!","v":{"$error":"#REF!"}},"Fin.Return","I1049",{"$f":"'Fin.Return - Other Notes'!I425","v":0}]
[{"$f":"'Standing Data'!$D$12","v":{"$error":"#N/A"}},{"$f":"'Standing Data'!$F$9","v":0},{"$f":"'Standing Data'!#REF!","v":{"$error":"#REF!"}},"Fin.Return","I1059",{"$f":"'Fin.Return - Other Notes'!I433","v":0}]
[{"$f":"'Standing Data'!$D$12","v":{"$error":"#N/A"}},{"$f":"'Standing Data'!$F$9","v":0},{"$f":"'Standing Data'!#REF!","v":{"$error":"#REF!"}},"Fin.Return","I1060",{"$f":"'Fin.Return - Other Notes'!I434","v":0}]
[{"$f":"'Standing Data'!$D$12","v":{"$error":"#N/A"}},{"$f":"'Standing Data'!$F$9","v":0},{"$f":"'Standing Data'!#REF!","v":{"$error":"#REF!"}},"Fin.Return","I1061",{"$f":"'Fin.Return - Other Notes'!I435","v":0}]
[{"$f":"'Standing Data'!$D$12","v":{"$error":"#N/A"}},{"$f":"'Standing Data'!$F$9","v":0},{"$f":"'Standing Data'!#REF!","v":{"$error":"#REF!"}},"Fin.Return","I1063",{"$f":"'Fin.Return - Other Notes'!I437","v":0}]
[{"$f":"'Standing Data'!$D$12","v":{"$error":"#N/A"}},{"$f":"'Standing Data'!$F$9","v":0},{"$f":"'Standing Data'!#REF!","v":{"$error":"#REF!"}},"Fin.Return","I1064",{"$f":"'Fin.Return - Other Notes'!I438","v":0}]
[{"$f":"'Standing Data'!$D$12","v":{"$error":"#N/A"}},{"$f":"'Standing Data'!$F$9","v":0},{"$f":"'Standing Data'!#REF!","v":{"$error":"#REF!"}},"Fin.Return","I1065",{"$f":"'Fin.Return - Other Notes'!I439","v":0}]
[{"$f":"'Standing Data'!$D$12","v":{"$error":"#N/A"}},{"$f":"'Standing Data'!$F$9","v":0},{"$f":"'Standing Data'!#REF!","v":{"$error":"#REF!"}},"Fin.Return","I1067",{"$f":"'Fin.Return - Other Notes'!I441","v":0}]
[{"$f":"'Standing Data'!$D$12","v":{"$error":"#N/A"}},{"$f":"'Standing Data'!$F$9","v":0},{"$f":"'Standing Data'!#REF!","v":{"$error":"#REF!"}},"Fin.Return","I1068",{"$f":"'Fin.Return - Other Notes'!I442","v":0}]
[{"$f":"'Standing Data'!$D$12","v":{"$error":"#N/A"}},{"$f":"'Standing Data'!$F$9","v":0},{"$f":"'Standing Data'!#REF!","v":{"$error":"#REF!"}},"Fin.Return","I1069",{"$f":"'Fin.Return - Other Notes'!I443","v":0}]
[{"$f":"'Standing Data'!$D$12","v":{"$error":"#N/A"}},{"$f":"'Standing Data'!$F$9","v":0},{"$f":"'Standing Data'!#REF!","v":{"$error":"#REF!"}},"Fin.Return","I1071",{"$f":"'Fin.Return - Other Notes'!I445","v":0}]
[{"$f":"'Standing Data'!$D$12","v":{"$error":"#N/A"}},{"$f":"'Standing Data'!$F$9","v":0},{"$f":"'Standing Data'!#REF!","v":{"$error":"#REF!"}},"Fin.Return","I1072",{"$f":"'Fin.Return - Other Notes'!I446","v":0}]
[{"$f":"'Standing Data'!$D$12","v":{"$error":"#N/A"}},{"$f":"'Standing Data'!$F$9","v":0},{"$f":"'Standing Data'!#REF!","v":{"$error":"#REF!"}},"Fin.Return","I1074",{"$f":"'Fin.Return - Other Notes'!I448","v":0}]
[{"$f":"'Standing Data'!$D$12","v":{"$error":"#N/A"}},{"$f":"'Standing Data'!$F$9","v":0},{"$f":"'Standing Data'!#REF!","v":{"$error":"#REF!"}},"Fin.Return","I1082",{"$f":"'Fin.Return - Other Notes'!I456","v":0}]
[{"$f":"'Standing Data'!$D$12","v":{"$error":"#N/A"}},{"$f":"'Standing Data'!$F$9","v":0},{"$f":"'Standing Data'!#REF!","v":{"$error":"#REF!"}},"Fin.Return","I1083",{"$f":"'Fin.Return - Other Notes'!I457","v":0}]
[{"$f":"'Standing Data'!$D$12","v":{"$error":"#N/A"}},{"$f":"'Standing Data'!$F$9","v":0},{"$f":"'Standing Data'!#REF!","v":{"$error":"#REF!"}},"Fin.Return","I1084",{"$f":"'Fin.Return - Other Notes'!I458","v":0}]
[{"$f":"'Standing Data'!$D$12","v":{"$error":"#N/A"}},{"$f":"'Standing Data'!$F$9","v":0},{"$f":"'Standing Data'!#REF!","v":{"$error":"#REF!"}},"Fin.Return","I1086",{"$f":"'Fin.Return - Other Notes'!I460","v":0}]
[{"$f":"'Standing Data'!$D$12","v":{"$error":"#N/A"}},{"$f":"'Standing Data'!$F$9","v":0},{"$f":"'Standing Data'!#REF!","v":{"$error":"#REF!"}},"Fin.Return","I1087",{"$f":"'Fin.Return - Other Notes'!I461","v":0}]
[{"$f":"'Standing Data'!$D$12","v":{"$error":"#N/A"}},{"$f":"'Standing Data'!$F$9","v":0},{"$f":"'Standing Data'!#REF!","v":{"$error":"#REF!"}},"Fin.Return","I1088",{"$f":"'Fin.Return - Other Notes'!I462","v":0}]
[{"$f":"'Standing Data'!$D$12","v":{"$error":"#N/A"}},{"$f":"'Standing Data'!$F$9","v":0},{"$f":"'Standing Data'!#REF!","v":{"$error":"#REF!"}},"Fin.Return","I1090",{"$f":"'Fin.Return - Other Notes'!I464","v":0}]
[{"$f":"'Standing Data'!$D$12","v":{"$error":"#N/A"}},{"$f":"'Standing Data'!$F$9","v":0},{"$f":"'Standing Data'!#REF!","v":{"$error":"#REF!"}},"Fin.Return","I1091",{"$f":"'Fin.Return - Other Notes'!I465","v":0}]
[{"$f":"'Standing Data'!$D$12","v":{"$error":"#N/A"}},{"$f":"'Standing Data'!$F$9","v":0},{"$f":"'Standing Data'!#REF!","v":{"$error":"#REF!"}},"Fin.Return","I1092",{"$f":"'Fin.Return - Other Notes'!I466","v":0}]
[{"$f":"'Standing Data'!$D$12","v":{"$error":"#N/A"}},{"$f":"'Standing Data'!$F$9","v":0},{"$f":"'Standing Data'!#REF!","v":{"$error":"#REF!"}},"Fin.Return","I1094",{"$f":"'Fin.Return - Other Notes'!I468","v":0}]
[{"$f":"'Standing Data'!$D$12","v":{"$error":"#N/A"}},{"$f":"'Standing Data'!$F$9","v":0},{"$f":"'Standing Data'!#REF!","v":{"$error":"#REF!"}},"Fin.Return","I1095",{"$f":"'Fin.Return - Other Notes'!I469","v":0}]
[{"$f":"'Standing Data'!$D$12","v":{"$error":"#N/A"}},{"$f":"'Standing Data'!$F$9","v":0},{"$f":"'Standing Data'!#REF!","v":{"$error":"#REF!"}},"Fin.Return","I1097",{"$f":"'Fin.Return - Other Notes'!I471","v":0}]
[{"$f":"'Standing Data'!$D$12","v":{"$error":"#N/A"}},{"$f":"'Standing Data'!$F$9","v":0},{"$f":"'Standing Data'!#REF!","v":{"$error":"#REF!"}},"Fin.Return","I1102",{"$f":"'Fin.Return - Other Notes'!I476","v":0}]
[{"$f":"'Standing Data'!$D$12","v":{"$error":"#N/A"}},{"$f":"'Standing Data'!$F$9","v":0},{"$f":"'Standing Data'!#REF!","v":{"$error":"#REF!"}},"Fin.Return","I1103",{"$f":"'Fin.Return - Other Notes'!I477","v":0}]
[{"$f":"'Standing Data'!$D$12","v":{"$error":"#N/A"}},{"$f":"'Standing Data'!$F$9","v":0},{"$f":"'Standing Data'!#REF!","v":{"$error":"#REF!"}},"Fin.Return","I1104",{"$f":"'Fin.Return - Other Notes'!I478","v":0}]
[{"$f":"'Standing Data'!$D$12","v":{"$error":"#N/A"}},{"$f":"'Standing Data'!$F$9","v":0},{"$f":"'Standing Data'!#REF!","v":{"$error":"#REF!"}},"Fin.Return","I1106",{"$f":"'Fin.Return - Other Notes'!I480","v":0}]
[{"$f":"'Standing Data'!$D$12","v":{"$error":"#N/A"}},{"$f":"'Standing Data'!$F$9","v":0},{"$f":"'Standing Data'!#REF!","v":{"$error":"#REF!"}},"Fin.Return","I1111",{"$f":"'Fin.Return - Other Notes'!I485","v":0}]
[{"$f":"'Standing Data'!$D$12","v":{"$error":"#N/A"}},{"$f":"'Standing Data'!$F$9","v":0},{"$f":"'Standing Data'!#REF!","v":{"$error":"#REF!"}},"Fin.Return","I1112",{"$f":"'Fin.Return - Other Notes'!I486","v":0}]
[{"$f":"'Standing Data'!$D$12","v":{"$error":"#N/A"}},{"$f":"'Standing Data'!$F$9","v":0},{"$f":"'Standing Data'!#REF!","v":{"$error":"#REF!"}},"Fin.Return","I1113",{"$f":"'Fin.Return - Other Notes'!I487","v":0}]
[{"$f":"'Standing Data'!$D$12","v":{"$error":"#N/A"}},{"$f":"'Standing Data'!$F$9","v":0},{"$f":"'Standing Data'!#REF!","v":{"$error":"#REF!"}},"Fin.Return","I1115",{"$f":"'Fin.Return - Other Notes'!I489","v":0}]
[{"$f":"'Standing Data'!$D$12","v":{"$error":"#N/A"}},{"$f":"'Standing Data'!$F$9","v":0},{"$f":"'Standing Data'!#REF!","v":{"$error":"#REF!"}},"Fin.Return","I1121",{"$f":"'Fin.Return - Other Notes'!I495","v":0}]
[{"$f":"'Standing Data'!$D$12","v":{"$error":"#N/A"}},{"$f":"'Standing Data'!$F$9","v":0},{"$f":"'Standing Data'!#REF!","v":{"$error":"#REF!"}},"Fin.Return","I1122",{"$f":"'Fin.Return - Other Notes'!I496","v":0}]
[{"$f":"'Standing Data'!$D$12","v":{"$error":"#N/A"}},{"$f":"'Standing Data'!$F$9","v":0},{"$f":"'Standing Data'!#REF!","v":{"$error":"#REF!"}},"Fin.Return","I1123",{"$f":"'Fin.Return - Other Notes'!I497","v":0}]
[{"$f":"'Standing Data'!$D$12","v":{"$error":"#N/A"}},{"$f":"'Standing Data'!$F$9","v":0},{"$f":"'Standing Data'!#REF!","v":{"$error":"#REF!"}},"Fin.Return","I1125",{"$f":"'Fin.Return - Other Notes'!I499","v":0}]
[{"$f":"'Standing Data'!$D$12","v":{"$error":"#N/A"}},{"$f":"'Standing Data'!$F$9","v":0},{"$f":"'Standing Data'!#REF!","v":{"$error":"#REF!"}},"Fin.Return","I1131",{"$f":"'Fin.Return - Other Notes'!I505","v":0}]
[{"$f":"'Standing Data'!$D$12","v":{"$error":"#N/A"}},{"$f":"'Standing Data'!$F$9","v":0},{"$f":"'Standing Data'!#REF!","v":{"$error":"#REF!"}},"Fin.Return","I1132",{"$f":"'Fin.Return - Other Notes'!I506","v":0}]
[{"$f":"'Standing Data'!$D$12","v":{"$error":"#N/A"}},{"$f":"'Standing Data'!$F$9","v":0},{"$f":"'Standing Data'!#REF!","v":{"$error":"#REF!"}},"Fin.Return","I1133",{"$f":"'Fin.Return - Other Notes'!I507","v":0}]
[{"$f":"'Standing Data'!$D$12","v":{"$error":"#N/A"}},{"$f":"'Standing Data'!$F$9","v":0},{"$f":"'Standing Data'!#REF!","v":{"$error":"#REF!"}},"Fin.Return","I1135",{"$f":"'Fin.Return - Other Notes'!I509","v":0}]
[{"$f":"'Standing Data'!$D$12","v":{"$error":"#N/A"}},{"$f":"'Standing Data'!$F$9","v":0},{"$f":"'Standing Data'!#REF!","v":{"$error":"#REF!"}},"Fin.Return","I1140",{"$f":"'Fin.Return - Other Notes'!I514","v":0}]
[{"$f":"'Standing Data'!$D$12","v":{"$error":"#N/A"}},{"$f":"'Standing Data'!$F$9","v":0},{"$f":"'Standing Data'!#REF!","v":{"$error":"#REF!"}},"Fin.Return","I1141",{"$f":"'Fin.Return - Other Notes'!I515","v":0}]
[{"$f":"'Standing Data'!$D$12","v":{"$error":"#N/A"}},{"$f":"'Standing Data'!$F$9","v":0},{"$f":"'Standing Data'!#REF!","v":{"$error":"#REF!"}},"Fin.Return","I1142",{"$f":"'Fin.Return - Other Notes'!I516","v":0}]
[{"$f":"'Standing Data'!$D$12","v":{"$error":"#N/A"}},{"$f":"'Standing Data'!$F$9","v":0},{"$f":"'Standing Data'!#REF!","v":{"$error":"#REF!"}},"Fin.Return","I1144",{"$f":"'Fin.Return - Other Notes'!I518","v":0}]
[{"$f":"'Standing Data'!$D$12","v":{"$error":"#N/A"}},{"$f":"'Standing Data'!$F$9","v":0},{"$f":"'Standing Data'!#REF!","v":{"$error":"#REF!"}},"Fin.Return","I1149",{"$f":"'Fin.Return - SOFA'!#REF!","v":{"$error":"#REF!"}}]
[{"$f":"'Standing Data'!$D$12","v":{"$error":"#N/A"}},{"$f":"'Standing Data'!$F$9","v":0},{"$f":"'Standing Data'!#REF!","v":{"$error":"#REF!"}},"Fin.Return","I1150",{"$f":"'Fin.Return - SOFA'!#REF!","v":{"$error":"#REF!"}}]
[{"$f":"'Standing Data'!$D$12","v":{"$error":"#N/A"}},{"$f":"'Standing Data'!$F$9","v":0},{"$f":"'Standing Data'!#REF!","v":{"$error":"#REF!"}},"Fin.Return","I1151",{"$f":"'Fin.Return - SOFA'!#REF!","v":{"$error":"#REF!"}}]
[{"$f":"'Standing Data'!$D$12","v":{"$error":"#N/A"}},{"$f":"'Standing Data'!$F$9","v":0},{"$f":"'Standing Data'!#REF!","v":{"$error":"#REF!"}},"Fin.Return","I1153",{"$f":"'Fin.Return - SOFA'!#REF!","v":{"$error":"#REF!"}}]
[{"$f":"'Standing Data'!$D$12","v":{"$error":"#N/A"}},{"$f":"'Standing Data'!$F$9","v":0},{"$f":"'Standing Data'!#REF!","v":{"$error":"#REF!"}},"Fin.Return","I1237",{"$f":"'Fin.Return - Other Notes'!I615","v":0}]
[{"$f":"'Standing Data'!$D$12","v":{"$error":"#N/A"}},{"$f":"'Standing Data'!$F$9","v":0},{"$f":"'Standing Data'!#REF!","v":{"$error":"#REF!"}},"Fin.Return","I1238",{"$f":"'Fin.Return - Other Notes'!I616","v":0}]
[{"$f":"'Standing Data'!$D$12","v":{"$error":"#N/A"}},{"$f":"'Standing Data'!$F$9","v":0},{"$f":"'Standing Data'!#REF!","v":{"$error":"#REF!"}},"Fin.Return","I1239",{"$f":"'Fin.Return - Other Notes'!I617","v":0}]
[{"$f":"'Standing Data'!$D$12","v":{"$error":"#N/A"}},{"$f":"'Standing Data'!$F$9","v":0},{"$f":"'Standing Data'!#REF!","v":{"$error":"#REF!"}},"Fin.Return","I1240",{"$f":"'Fin.Return - Other Notes'!I618","v":0}]
[{"$f":"'Standing Data'!$D$12","v":{"$error":"#N/A"}},{"$f":"'Standing Data'!$F$9","v":0},{"$f":"'Standing Data'!#REF!","v":{"$error":"#REF!"}},"Fin.Return","I1241",{"$f":"'Fin.Return - Other Notes'!I619","v":0}]
[{"$f":"'Standing Data'!$D$12","v":{"$error":"#N/A"}},{"$f":"'Standing Data'!$F$9","v":0},{"$f":"'Standing Data'!#REF!","v":{"$error":"#REF!"}},"Fin.Return","I1242",{"$f":"'Fin.Return - Other Notes'!I620","v":0}]
[{"$f":"'Standing Data'!$D$12","v":{"$error":"#N/A"}},{"$f":"'Standing Data'!$F$9","v":0},{"$f":"'Standing Data'!#REF!","v":{"$error":"#REF!"}},"Fin.Return","I1243",{"$f":"'Fin.Return - Other Notes'!I621","v":0}]
[{"$f":"'Standing Data'!$D$12","v":{"$error":"#N/A"}},{"$f":"'Standing Data'!$F$9","v":0},{"$f":"'Standing Data'!#REF!","v":{"$error":"#REF!"}},"Fin.Return","I1244",{"$f":"'Fin.Return - Other Notes'!I622","v":0}]
[{"$f":"'Standing Data'!$D$12","v":{"$error":"#N/A"}},{"$f":"'Standing Data'!$F$9","v":0},{"$f":"'Standing Data'!#REF!","v":{"$error":"#REF!"}},"Fin.Return","I1245",{"$f":"'Fin.Return - Other Notes'!I623","v":0}]
[{"$f":"'Standing Data'!$D$12","v":{"$error":"#N/A"}},{"$f":"'Standing Data'!$F$9","v":0},{"$f":"'Standing Data'!#REF!","v":{"$error":"#REF!"}},"Fin.Return","I1246",{"$f":"'Fin.Return - Other Notes'!I624","v":0}]
[{"$f":"'Standing Data'!$D$12","v":{"$error":"#N/A"}},{"$f":"'Standing Data'!$F$9","v":0},{"$f":"'Standing Data'!#REF!","v":{"$error":"#REF!"}},"Fin.Return","I1247",{"$f":"'Fin.Return - Other Notes'!I625","v":0}]
[{"$f":"'Standing Data'!$D$12","v":{"$error":"#N/A"}},{"$f":"'Standing Data'!$F$9","v":0},{"$f":"'Standing Data'!#REF!","v":{"$error":"#REF!"}},"Fin.Return","I1248",{"$f":"'Fin.Return - Other Notes'!I626","v":0}]
[{"$f":"'Standing Data'!$D$12","v":{"$error":"#N/A"}},{"$f":"'Standing Data'!$F$9","v":0},{"$f":"'Standing Data'!#REF!","v":{"$error":"#REF!"}},"Fin.Return","I1249",{"$f":"'Fin.Return - Other Notes'!I627","v":0}]
[{"$f":"'Standing Data'!$D$12","v":{"$error":"#N/A"}},{"$f":"'Standing Data'!$F$9","v":0},{"$f":"'Standing Data'!#REF!","v":{"$error":"#REF!"}},"Fin.Return","I1250",{"$f":"'Fin.Return - Other Notes'!I628","v":0}]
[{"$f":"'Standing Data'!$D$12","v":{"$error":"#N/A"}},{"$f":"'Standing Data'!$F$9","v":0},{"$f":"'Standing Data'!#REF!","v":{"$error":"#REF!"}},"Fin.Return","I1252",{"$f":"'Fin.Return - Other Notes'!I630","v":0}]
[{"$f":"'Standing Data'!$D$12","v":{"$error":"#N/A"}},{"$f":"'Standing Data'!$F$9","v":0},{"$f":"'Standing Data'!#REF!","v":{"$error":"#REF!"}},"Fin.Return","I1257",{"$f":"'Fin.Return - Other Notes'!I635","v":0}]
[{"$f":"'Standing Data'!$D$12","v":{"$error":"#N/A"}},{"$f":"'Standing Data'!$F$9","v":0},{"$f":"'Standing Data'!#REF!","v":{"$error":"#REF!"}},"Fin.Return","I1258",{"$f":"'Fin.Return - Other Notes'!I636","v":0}]
[{"$f":"'Standing Data'!$D$12","v":{"$error":"#N/A"}},{"$f":"'Standing Data'!$F$9","v":0},{"$f":"'Standing Data'!#REF!","v":{"$error":"#REF!"}},"Fin.Return","I1259",{"$f":"'Fin.Return - Other Notes'!I637","v":0}]
[{"$f":"'Standing Data'!$D$12","v":{"$error":"#N/A"}},{"$f":"'Standing Data'!$F$9","v":0},{"$f":"'Standing Data'!#REF!","v":{"$error":"#REF!"}},"Fin.Return","I1260",{"$f":"'Fin.Return - Other Notes'!I638","v":0}]
[{"$f":"'Standing Data'!$D$12","v":{"$error":"#N/A"}},{"$f":"'Standing Data'!$F$9","v":0},{"$f":"'Standing Data'!#REF!","v":{"$error":"#REF!"}},"Fin.Return","I1261",{"$f":"'Fin.Return - Other Notes'!I639","v":0}]
[{"$f":"'Standing Data'!$D$12","v":{"$error":"#N/A"}},{"$f":"'Standing Data'!$F$9","v":0},{"$f":"'Standing Data'!#REF!","v":{"$error":"#REF!"}},"Fin.Return","I1262",{"$f":"'Fin.Return - Other Notes'!I640","v":0}]
[{"$f":"'Standing Data'!$D$12","v":{"$error":"#N/A"}},{"$f":"'Standing Data'!$F$9","v":0},{"$f":"'Standing Data'!#REF!","v":{"$error":"#REF!"}},"Fin.Return","I1263",{"$f":"'Fin.Return - Other Notes'!I641","v":0}]
[{"$f":"'Standing Data'!$D$12","v":{"$error":"#N/A"}},{"$f":"'Standing Data'!$F$9","v":0},{"$f":"'Standing Data'!#REF!","v":{"$error":"#REF!"}},"Fin.Return","I1264",{"$f":"'Fin.Return - Other Notes'!I642","v":0}]
[{"$f":"'Standing Data'!$D$12","v":{"$error":"#N/A"}},{"$f":"'Standing Data'!$F$9","v":0},{"$f":"'Standing Data'!#REF!","v":{"$error":"#REF!"}},"Fin.Return","I1265",{"$f":"'Fin.Return - Other Notes'!I643","v":0}]
[{"$f":"'Standing Data'!$D$12","v":{"$error":"#N/A"}},{"$f":"'Standing Data'!$F$9","v":0},{"$f":"'Standing Data'!#REF!","v":{"$error":"#REF!"}},"Fin.Return","I1266",{"$f":"'Fin.Return - Other Notes'!I644","v":0}]
[{"$f":"'Standing Data'!$D$12","v":{"$error":"#N/A"}},{"$f":"'Standing Data'!$F$9","v":0},{"$f":"'Standing Data'!#REF!","v":{"$error":"#REF!"}},"Fin.Return","I1267",{"$f":"'Fin.Return - Other Notes'!I645","v":0}]
[{"$f":"'Standing Data'!$D$12","v":{"$error":"#N/A"}},{"$f":"'Standing Data'!$F$9","v":0},{"$f":"'Standing Data'!#REF!","v":{"$error":"#REF!"}},"Fin.Return","I1268",{"$f":"'Fin.Return - Other Notes'!#REF!","v":{"$error":"#REF!"}}]
[{"$f":"'Standing Data'!$D$12","v":{"$error":"#N/A"}},{"$f":"'Standing Data'!$F$9","v":0},{"$f":"'Standing Data'!#REF!","v":{"$error":"#REF!"}},"Fin.Return","J18",{"$f":"'Fin.Return - SOFA'!J19","v":0}]
[{"$f":"'Standing Data'!$D$12","v":{"$error":"#N/A"}},{"$f":"'Standing Data'!$F$9","v":0},{"$f":"'Standing Data'!#REF!","v":{"$error":"#REF!"}},"Fin.Return","J19",{"$f":"'Fin.Return - SOFA'!J20","v":0}]
[{"$f":"'Standing Data'!$D$12","v":{"$error":"#N/A"}},{"$f":"'Standing Data'!$F$9","v":0},{"$f":"'Standing Data'!#REF!","v":{"$error":"#REF!"}},"Fin.Return","J20",{"$f":"'Fin.Return - SOFA'!J22","v":0}]
[{"$f":"'Standing Data'!$D$12","v":{"$error":"#N/A"}},{"$f":"'Standing Data'!$F$9","v":0},{"$f":"'Standing Data'!#REF!","v":{"$error":"#REF!"}},"Fin.Return","J21",{"$f":"'Fin.Return - SOFA'!J23","v":0}]
[{"$f":"'Standing Data'!$D$12","v":{"$error":"#N/A"}},{"$f":"'Standing Data'!$F$9","v":0},{"$f":"'Standing Data'!#REF!","v":{"$error":"#REF!"}},"Fin.Return","J23",{"$f":"'Fin.Return - SOFA'!J25","v":0}]
[{"$f":"'Standing Data'!$D$12","v":{"$error":"#N/A"}},{"$f":"'Standing Data'!$F$9","v":0},{"$f":"'Standing Data'!#REF!","v":{"$error":"#REF!"}},"Fin.Return","J24",{"$f":"'Fin.Return - SOFA'!J26","v":0}]
[{"$f":"'Standing Data'!$D$12","v":{"$error":"#N/A"}},{"$f":"'Standing Data'!$F$9","v":0},{"$f":"'Standing Data'!#REF!","v":{"$error":"#REF!"}},"Fin.Return","J26",{"$f":"'Fin.Return - SOFA'!J28","v":0}]
[{"$f":"'Standing Data'!$D$12","v":{"$error":"#N/A"}},{"$f":"'Standing Data'!$F$9","v":0},{"$f":"'Standing Data'!#REF!","v":{"$error":"#REF!"}},"Fin.Return","J29",{"$f":"'Fin.Return - SOFA'!J31","v":0}]
[{"$f":"'Standing Data'!$D$12","v":{"$error":"#N/A"}},{"$f":"'Standing Data'!$F$9","v":0},{"$f":"'Standing Data'!#REF!","v":{"$error":"#REF!"}},"Fin.Return","J30",{"$f":"'Fin.Return - SOFA'!#REF!","v":{"$error":"#REF!"}}]
[{"$f":"'Standing Data'!$D$12","v":{"$error":"#N/A"}},{"$f":"'Standing Data'!$F$9","v":0},{"$f":"'Standing Data'!#REF!","v":{"$error":"#REF!"}},"Fin.Return","J31",{"$f":"'Fin.Return - SOFA'!J33","v":0}]
[{"$f":"'Standing Data'!$D$12","v":{"$error":"#N/A"}},{"$f":"'Standing Data'!$F$9","v":0},{"$f":"'Standing Data'!#REF!","v":{"$error":"#REF!"}},"Fin.Return","J33",{"$f":"'Fin.Return - SOFA'!J35","v":0}]
[{"$f":"'Standing Data'!$D$12","v":{"$error":"#N/A"}},{"$f":"'Standing Data'!$F$9","v":0},{"$f":"'Standing Data'!#REF!","v":{"$error":"#REF!"}},"Fin.Return","J34",{"$f":"'Fin.Return - SOFA'!J36","v":0}]
[{"$f":"'Standing Data'!$D$12","v":{"$error":"#N/A"}},{"$f":"'Standing Data'!$F$9","v":0},{"$f":"'Standing Data'!#REF!","v":{"$error":"#REF!"}},"Fin.Return","J35",{"$f":"'Fin.Return - SOFA'!J37","v":0}]
[{"$f":"'Standing Data'!$D$12","v":{"$error":"#N/A"}},{"$f":"'Standing Data'!$F$9","v":0},{"$f":"'Standing Data'!#REF!","v":{"$error":"#REF!"}},"Fin.Return","J37",{"$f":"'Fin.Return - SOFA'!J39","v":0}]
[{"$f":"'Standing Data'!$D$12","v":{"$error":"#N/A"}},{"$f":"'Standing Data'!$F$9","v":0},{"$f":"'Standing Data'!#REF!","v":{"$error":"#REF!"}},"Fin.Return","J38",{"$f":"'Fin.Return - SOFA'!J40","v":0}]
[{"$f":"'Standing Data'!$D$12","v":{"$error":"#N/A"}},{"$f":"'Standing Data'!$F$9","v":0},{"$f":"'Standing Data'!#REF!","v":{"$error":"#REF!"}},"Fin.Return","J39",{"$f":"'Fin.Return - SOFA'!J41","v":0}]
[{"$f":"'Standing Data'!$D$12","v":{"$error":"#N/A"}},{"$f":"'Standing Data'!$F$9","v":0},{"$f":"'Standing Data'!#REF!","v":{"$error":"#REF!"}},"Fin.Return","J41",{"$f":"'Fin.Return - SOFA'!J43","v":0}]
[{"$f":"'Standing Data'!$D$12","v":{"$error":"#N/A"}},{"$f":"'Standing Data'!$F$9","v":0},{"$f":"'Standing Data'!#REF!","v":{"$error":"#REF!"}},"Fin.Return","J44",{"$f":"'Fin.Return - SOFA'!J46","v":0}]
[{"$f":"'Standing Data'!$D$12","v":{"$error":"#N/A"}},{"$f":"'Standing Data'!$F$9","v":0},{"$f":"'Standing Data'!#REF!","v":{"$error":"#REF!"}},"Fin.Return","J45",{"$f":"'Fin.Return - SOFA'!J47","v":0}]
[{"$f":"'Standing Data'!$D$12","v":{"$error":"#N/A"}},{"$f":"'Standing Data'!$F$9","v":0},{"$f":"'Standing Data'!#REF!","v":{"$error":"#REF!"}},"Fin.Return","J46",{"$f":"'Fin.Return - SOFA'!J48","v":0}]
[{"$f":"'Standing Data'!$D$12","v":{"$error":"#N/A"}},{"$f":"'Standing Data'!$F$9","v":0},{"$f":"'Standing Data'!#REF!","v":{"$error":"#REF!"}},"Fin.Return","J48",{"$f":"'Fin.Return - SOFA'!J50","v":0}]
[{"$f":"'Standing Data'!$D$12","v":{"$error":"#N/A"}},{"$f":"'Standing Data'!$F$9","v":0},{"$f":"'Standing Data'!#REF!","v":{"$error":"#REF!"}},"Fin.Return","J50",{"$f":"'Fin.Return - SOFA'!J52","v":0}]
[{"$f":"'Standing Data'!$D$12","v":{"$error":"#N/A"}},{"$f":"'Standing Data'!$F$9","v":0},{"$f":"'Standing Data'!#REF!","v":{"$error":"#REF!"}},"Fin.Return","J51",{"$f":"'Fin.Return - SOFA'!J53","v":0}]
[{"$f":"'Standing Data'!$D$12","v":{"$error":"#N/A"}},{"$f":"'Standing Data'!$F$9","v":0},{"$f":"'Standing Data'!#REF!","v":{"$error":"#REF!"}},"Fin.Return","J52",{"$f":"'Fin.Return - SOFA'!J56","v":0}]
[{"$f":"'Standing Data'!$D$12","v":{"$error":"#N/A"}},{"$f":"'Standing Data'!$F$9","v":0},{"$f":"'Standing Data'!#REF!","v":{"$error":"#REF!"}},"Fin.Return","J54",{"$f":"'Fin.Return - SOFA'!J58","v":0}]
[{"$f":"'Standing Data'!$D$12","v":{"$error":"#N/A"}},{"$f":"'Standing Data'!$F$9","v":0},{"$f":"'Standing Data'!#REF!","v":{"$error":"#REF!"}},"Fin.Return","J400",{"$f":"'Fin.Return - SOFA'!J351","v":0}]
[{"$f":"'Standing Data'!$D$12","v":{"$error":"#N/A"}},{"$f":"'Standing Data'!$F$9","v":0},{"$f":"'Standing Data'!#REF!","v":{"$error":"#REF!"}},"Fin.Return","J468",{"$f":"'Fin.Return - BS'!J64","v":0}]
[{"$f":"'Standing Data'!$D$12","v":{"$error":"#N/A"}},{"$f":"'Standing Data'!$F$9","v":0},{"$f":"'Standing Data'!#REF!","v":{"$error":"#REF!"}},"Fin.Return","J469",{"$f":"'Fin.Return - BS'!J65","v":0}]
[{"$f":"'Standing Data'!$D$12","v":{"$error":"#N/A"}},{"$f":"'Standing Data'!$F$9","v":0},{"$f":"'Standing Data'!#REF!","v":{"$error":"#REF!"}},"Fin.Return","J470",{"$f":"'Fin.Return - BS'!J67","v":0}]
[{"$f":"'Standing Data'!$D$12","v":{"$error":"#N/A"}},{"$f":"'Standing Data'!$F$9","v":0},{"$f":"'Standing Data'!#REF!","v":{"$error":"#REF!"}},"Fin.Return","J471",{"$f":"'Fin.Return - BS'!J68","v":0}]
[{"$f":"'Standing Data'!$D$12","v":{"$error":"#N/A"}},{"$f":"'Standing Data'!$F$9","v":0},{"$f":"'Standing Data'!#REF!","v":{"$error":"#REF!"}},"Fin.Return","J472",{"$f":"'Fin.Return - BS'!J70","v":0}]
[{"$f":"'Standing Data'!$D$12","v":{"$error":"#N/A"}},{"$f":"'Standing Data'!$F$9","v":0},{"$f":"'Standing Data'!#REF!","v":{"$error":"#REF!"}},"Fin.Return","J473",{"$f":"'Fin.Return - BS'!J72","v":0}]
[{"$f":"'Standing Data'!$D$12","v":{"$error":"#N/A"}},{"$f":"'Standing Data'!$F$9","v":0},{"$f":"'Standing Data'!#REF!","v":{"$error":"#REF!"}},"Fin.Return","J474",{"$f":"'Fin.Return - BS'!J74","v":0}]
[{"$f":"'Standing Data'!$D$12","v":{"$error":"#N/A"}},{"$f":"'Standing Data'!$F$9","v":0},{"$f":"'Standing Data'!#REF!","v":{"$error":"#REF!"}},"Fin.Return","J475",{"$f":"'Fin.Return - BS'!J75","v":0}]
[{"$f":"'Standing Data'!$D$12","v":{"$error":"#N/A"}},{"$f":"'Standing Data'!$F$9","v":0},{"$f":"'Standing Data'!#REF!","v":{"$error":"#REF!"}},"Fin.Return","J477",{"$f":"'Fin.Return - BS'!J77","v":0}]
[{"$f":"'Standing Data'!$D$12","v":{"$error":"#N/A"}},{"$f":"'Standing Data'!$F$9","v":0},{"$f":"'Standing Data'!#REF!","v":{"$error":"#REF!"}},"Fin.Return","J480",{"$f":"'Fin.Return - BS'!J80","v":0}]
[{"$f":"'Standing Data'!$D$12","v":{"$error":"#N/A"}},{"$f":"'Standing Data'!$F$9","v":0},{"$f":"'Standing Data'!#REF!","v":{"$error":"#REF!"}},"Fin.Return","J481",{"$f":"'Fin.Return - BS'!J81","v":0}]
[{"$f":"'Standing Data'!$D$12","v":{"$error":"#N/A"}},{"$f":"'Standing Data'!$F$9","v":0},{"$f":"'Standing Data'!#REF!","v":{"$error":"#REF!"}},"Fin.Return","J482",{"$f":"'Fin.Return - BS'!J82","v":0}]
[{"$f":"'Standing Data'!$D$12","v":{"$error":"#N/A"}},{"$f":"'Standing Data'!$F$9","v":0},{"$f":"'Standing Data'!#REF!","v":{"$error":"#REF!"}},"Fin.Return","J483",{"$f":"'Fin.Return - BS'!J84","v":0}]
[{"$f":"'Standing Data'!$D$12","v":{"$error":"#N/A"}},{"$f":"'Standing Data'!$F$9","v":0},{"$f":"'Standing Data'!#REF!","v":{"$error":"#REF!"}},"Fin.Return","J484",{"$f":"'Fin.Return - BS'!J85","v":0}]
[{"$f":"'Standing Data'!$D$12","v":{"$error":"#N/A"}},{"$f":"'Standing Data'!$F$9","v":0},{"$f":"'Standing Data'!#REF!","v":{"$error":"#REF!"}},"Fin.Return","J486",{"$f":"'Fin.Return - BS'!J87","v":0}]
[{"$f":"'Standing Data'!$D$12","v":{"$error":"#N/A"}},{"$f":"'Standing Data'!$F$9","v":0},{"$f":"'Standing Data'!#REF!","v":{"$error":"#REF!"}},"Fin.Return","J489",{"$f":"'Fin.Return - BS'!J90","v":0}]
[{"$f":"'Standing Data'!$D$12","v":{"$error":"#N/A"}},{"$f":"'Standing Data'!$F$9","v":0},{"$f":"'Standing Data'!#REF!","v":{"$error":"#REF!"}},"Fin.Return","J490",{"$f":"'Fin.Return - BS'!J91","v":0}]
[{"$f":"'Standing Data'!$D$12","v":{"$error":"#N/A"}},{"$f":"'Standing Data'!$F$9","v":0},{"$f":"'Standing Data'!#REF!","v":{"$error":"#REF!"}},"Fin.Return","J491",{"$f":"'Fin.Return - BS'!J92","v":0}]
[{"$f":"'Standing Data'!$D$12","v":{"$error":"#N/A"}},{"$f":"'Standing Data'!$F$9","v":0},{"$f":"'Standing Data'!#REF!","v":{"$error":"#REF!"}},"Fin.Return","J493",{"$f":"'Fin.Return - BS'!J95","v":0}]
[{"$f":"'Standing Data'!$D$12","v":{"$error":"#N/A"}},{"$f":"'Standing Data'!$F$9","v":0},{"$f":"'Standing Data'!#REF!","v":{"$error":"#REF!"}},"Fin.Return","J496",{"$f":"'Fin.Return - BS'!J98","v":0}]
[{"$f":"'Standing Data'!$D$12","v":{"$error":"#N/A"}},{"$f":"'Standing Data'!$F$9","v":0},{"$f":"'Standing Data'!#REF!","v":{"$error":"#REF!"}},"Fin.Return","J499",{"$f":"'Fin.Return - BS'!J101","v":0}]
[{"$f":"'Standing Data'!$D$12","v":{"$error":"#N/A"}},{"$f":"'Standing Data'!$F$9","v":0},{"$f":"'Standing Data'!#REF!","v":{"$error":"#REF!"}},"Fin.Return","J503",{"$f":"'Fin.Return - BS'!J105","v":0}]
[{"$f":"'Standing Data'!$D$12","v":{"$error":"#N/A"}},{"$f":"'Standing Data'!$F$9","v":0},{"$f":"'Standing Data'!#REF!","v":{"$error":"#REF!"}},"Fin.Return","J504",{"$f":"'Fin.Return - BS'!J106","v":0}]
[{"$f":"'Standing Data'!$D$12","v":{"$error":"#N/A"}},{"$f":"'Standing Data'!$F$9","v":0},{"$f":"'Standing Data'!#REF!","v":{"$error":"#REF!"}},"Fin.Return","J505",{"$f":"'Fin.Return - BS'!J107","v":0}]
[{"$f":"'Standing Data'!$D$12","v":{"$error":"#N/A"}},{"$f":"'Standing Data'!$F$9","v":0},{"$f":"'Standing Data'!#REF!","v":{"$error":"#REF!"}},"Fin.Return","J514",{"$f":"'Fin.Return - BS'!J116","v":0}]
[{"$f":"'Standing Data'!$D$12","v":{"$error":"#N/A"}},{"$f":"'Standing Data'!$F$9","v":0},{"$f":"'Standing Data'!#REF!","v":{"$error":"#REF!"}},"Fin.Return","J515",{"$f":"'Fin.Return - BS'!J117","v":0}]
[{"$f":"'Standing Data'!$D$12","v":{"$error":"#N/A"}},{"$f":"'Standing Data'!$F$9","v":0},{"$f":"'Standing Data'!#REF!","v":{"$error":"#REF!"}},"Fin.Return","J517",{"$f":"'Fin.Return - BS'!J119","v":0}]
[{"$f":"'Standing Data'!$D$12","v":{"$error":"#N/A"}},{"$f":"'Standing Data'!$F$9","v":0},{"$f":"'Standing Data'!#REF!","v":{"$error":"#REF!"}},"Fin.Return","J519",{"$f":"'Fin.Return - BS'!J121","v":0}]
[{"$f":"'Standing Data'!$D$12","v":{"$error":"#N/A"}},{"$f":"'Standing Data'!$F$9","v":0},{"$f":"'Standing Data'!#REF!","v":{"$error":"#REF!"}},"Fin.Return","J565",{"$f":"'Fin.Return - BS'!J172","v":0}]
[{"$f":"'Standing Data'!$D$12","v":{"$error":"#N/A"}},{"$f":"'Standing Data'!$F$9","v":0},{"$f":"'Standing Data'!#REF!","v":{"$error":"#REF!"}},"Fin.Return","J566",{"$f":"'Fin.Return - BS'!J173","v":0}]
[{"$f":"'Standing Data'!$D$12","v":{"$error":"#N/A"}},{"$f":"'Standing Data'!$F$9","v":0},{"$f":"'Standing Data'!#REF!","v":{"$error":"#REF!"}},"Fin.Return","J567",{"$f":"'Fin.Return - BS'!J174","v":0}]
[{"$f":"'Standing Data'!$D$12","v":{"$error":"#N/A"}},{"$f":"'Standing Data'!$F$9","v":0},{"$f":"'Standing Data'!#REF!","v":{"$error":"#REF!"}},"Fin.Return","J568",{"$f":"'Fin.Return - BS'!J175","v":0}]
[{"$f":"'Standing Data'!$D$12","v":{"$error":"#N/A"}},{"$f":"'Standing Data'!$F$9","v":0},{"$f":"'Standing Data'!#REF!","v":{"$error":"#REF!"}},"Fin.Return","J569",{"$f":"'Fin.Return - BS'!J176","v":0}]
[{"$f":"'Standing Data'!$D$12","v":{"$error":"#N/A"}},{"$f":"'Standing Data'!$F$9","v":0},{"$f":"'Standing Data'!#REF!","v":{"$error":"#REF!"}},"Fin.Return","J570",{"$f":"'Fin.Return - BS'!J179","v":0}]
[{"$f":"'Standing Data'!$D$12","v":{"$error":"#N/A"}},{"$f":"'Standing Data'!$F$9","v":0},{"$f":"'Standing Data'!#REF!","v":{"$error":"#REF!"}},"Fin.Return","J571",{"$f":"'Fin.Return - BS'!J180","v":0}]
[{"$f":"'Standing Data'!$D$12","v":{"$error":"#N/A"}},{"$f":"'Standing Data'!$F$9","v":0},{"$f":"'Standing Data'!#REF!","v":{"$error":"#REF!"}},"Fin.Return","J572",{"$f":"'Fin.Return - BS'!J182","v":0}]
[{"$f":"'Standing Data'!$D$12","v":{"$error":"#N/A"}},{"$f":"'Standing Data'!$F$9","v":0},{"$f":"'Standing Data'!#REF!","v":{"$error":"#REF!"}},"Fin.Return","J573",{"$f":"'Fin.Return - BS'!J183","v":0}]
[{"$f":"'Standing Data'!$D$12","v":{"$error":"#N/A"}},{"$f":"'Standing Data'!$F$9","v":0},{"$f":"'Standing Data'!#REF!","v":{"$error":"#REF!"}},"Fin.Return","J575",{"$f":"'Fin.Return - BS'!J185","v":0}]
[{"$f":"'Standing Data'!$D$12","v":{"$error":"#N/A"}},{"$f":"'Standing Data'!$F$9","v":0},{"$f":"'Standing Data'!#REF!","v":{"$error":"#REF!"}},"Fin.Return","J630",{"$f":"'Fin.Return - BS'!J241","v":0}]
[{"$f":"'Standing Data'!$D$12","v":{"$error":"#N/A"}},{"$f":"'Standing Data'!$F$9","v":0},{"$f":"'Standing Data'!#REF!","v":{"$error":"#REF!"}},"Fin.Return","J631",{"$f":"'Fin.Return - BS'!J242","v":0}]
[{"$f":"'Standing Data'!$D$12","v":{"$error":"#N/A"}},{"$f":"'Standing Data'!$F$9","v":0},{"$f":"'Standing Data'!#REF!","v":{"$error":"#REF!"}},"Fin.Return","J632",{"$f":"'Fin.Return - BS'!J243","v":0}]
[{"$f":"'Standing Data'!$D$12","v":{"$error":"#N/A"}},{"$f":"'Standing Data'!$F$9","v":0},{"$f":"'Standing Data'!#REF!","v":{"$error":"#REF!"}},"Fin.Return","J633",{"$f":"'Fin.Return - BS'!J244","v":0}]
[{"$f":"'Standing Data'!$D$12","v":{"$error":"#N/A"}},{"$f":"'Standing Data'!$F$9","v":0},{"$f":"'Standing Data'!#REF!","v":{"$error":"#REF!"}},"Fin.Return","J634",{"$f":"'Fin.Return - BS'!J245","v":0}]
[{"$f":"'Standing Data'!$D$12","v":{"$error":"#N/A"}},{"$f":"'Standing Data'!$F$9","v":0},{"$f":"'Standing Data'!#REF!","v":{"$error":"#REF!"}},"Fin.Return","J635",{"$f":"'Fin.Return - BS'!J248","v":0}]
[{"$f":"'Standing Data'!$D$12","v":{"$error":"#N/A"}},{"$f":"'Standing Data'!$F$9","v":0},{"$f":"'Standing Data'!#REF!","v":{"$error":"#REF!"}},"Fin.Return","J636",{"$f":"'Fin.Return - BS'!J249","v":0}]
[{"$f":"'Standing Data'!$D$12","v":{"$error":"#N/A"}},{"$f":"'Standing Data'!$F$9","v":0},{"$f":"'Standing Data'!#REF!","v":{"$error":"#REF!"}},"Fin.Return","J637",{"$f":"'Fin.Return - BS'!J251","v":0}]
[{"$f":"'Standing Data'!$D$12","v":{"$error":"#N/A"}},{"$f":"'Standing Data'!$F$9","v":0},{"$f":"'Standing Data'!#REF!","v":{"$error":"#REF!"}},"Fin.Return","J638",{"$f":"'Fin.Return - BS'!J252","v":0}]
[{"$f":"'Standing Data'!$D$12","v":{"$error":"#N/A"}},{"$f":"'Standing Data'!$F$9","v":0},{"$f":"'Standing Data'!#REF!","v":{"$error":"#REF!"}},"Fin.Return","J640",{"$f":"'Fin.Return - BS'!J254","v":0}]
[{"$f":"'Standing Data'!$D$12","v":{"$error":"#N/A"}},{"$f":"'Standing Data'!$F$9","v":0},{"$f":"'Standing Data'!#REF!","v":{"$error":"#REF!"}},"Fin.Return","J745",{"$f":"'Fin.Return - BS'!J356","v":0}]
[{"$f":"'Standing Data'!$D$12","v":{"$error":"#N/A"}},{"$f":"'Standing Data'!$F$9","v":0},{"$f":"'Standing Data'!#REF!","v":{"$error":"#REF!"}},"Fin.Return","J746",{"$f":"'Fin.Return - BS'!J357","v":0}]
[{"$f":"'Standing Data'!$D$12","v":{"$error":"#N/A"}},{"$f":"'Standing Data'!$F$9","v":0},{"$f":"'Standing Data'!#REF!","v":{"$error":"#REF!"}},"Fin.Return","J747",{"$f":"'Fin.Return - BS'!J358","v":0}]
[{"$f":"'Standing Data'!$D$12","v":{"$error":"#N/A"}},{"$f":"'Standing Data'!$F$9","v":0},{"$f":"'Standing Data'!#REF!","v":{"$error":"#REF!"}},"Fin.Return","J748",{"$f":"'Fin.Return - BS'!J359","v":0}]
[{"$f":"'Standing Data'!$D$12","v":{"$error":"#N/A"}},{"$f":"'Standing Data'!$F$9","v":0},{"$f":"'Standing Data'!#REF!","v":{"$error":"#REF!"}},"Fin.Return","J750",{"$f":"'Fin.Return - BS'!J361","v":0}]
[{"$f":"'Standing Data'!$D$12","v":{"$error":"#N/A"}},{"$f":"'Standing Data'!$F$9","v":0},{"$f":"'Standing Data'!#REF!","v":{"$error":"#REF!"}},"Fin.Return","J755",{"$f":"'Fin.Return - BS'!J366","v":0}]
[{"$f":"'Standing Data'!$D$12","v":{"$error":"#N/A"}},{"$f":"'Standing Data'!$F$9","v":0},{"$f":"'Standing Data'!#REF!","v":{"$error":"#REF!"}},"Fin.Return","J756",{"$f":"'Fin.Return - BS'!J367","v":0}]
[{"$f":"'Standing Data'!$D$12","v":{"$error":"#N/A"}},{"$f":"'Standing Data'!$F$9","v":0},{"$f":"'Standing Data'!#REF!","v":{"$error":"#REF!"}},"Fin.Return","J757",{"$f":"'Fin.Return - BS'!J368","v":0}]
[{"$f":"'Standing Data'!$D$12","v":{"$error":"#N/A"}},{"$f":"'Standing Data'!$F$9","v":0},{"$f":"'Standing Data'!#REF!","v":{"$error":"#REF!"}},"Fin.Return","J759",{"$f":"'Fin.Return - BS'!J370","v":0}]
[{"$f":"'Standing Data'!$D$12","v":{"$error":"#N/A"}},{"$f":"'Standing Data'!$F$9","v":0},{"$f":"'Standing Data'!#REF!","v":{"$error":"#REF!"}},"Fin.Return","J816",{"$f":"'Fin.Return - Other Notes'!J126","v":0}]
[{"$f":"'Standing Data'!$D$12","v":{"$error":"#N/A"}},{"$f":"'Standing Data'!$F$9","v":0},{"$f":"'Standing Data'!#REF!","v":{"$error":"#REF!"}},"Fin.Return","J817",{"$f":"'Fin.Return - Other Notes'!J127","v":0}]
[{"$f":"'Standing Data'!$D$12","v":{"$error":"#N/A"}},{"$f":"'Standing Data'!$F$9","v":0},{"$f":"'Standing Data'!#REF!","v":{"$error":"#REF!"}},"Fin.Return","J818",{"$f":"'Fin.Return - Other Notes'!J128","v":0}]
[{"$f":"'Standing Data'!$D$12","v":{"$error":"#N/A"}},{"$f":"'Standing Data'!$F$9","v":0},{"$f":"'Standing Data'!#REF!","v":{"$error":"#REF!"}},"Fin.Return","J819",{"$f":"'Fin.Return - Other Notes'!J129","v":0}]
[{"$f":"'Standing Data'!$D$12","v":{"$error":"#N/A"}},{"$f":"'Standing Data'!$F$9","v":0},{"$f":"'Standing Data'!#REF!","v":{"$error":"#REF!"}},"Fin.Return","J820",{"$f":"'Fin.Return - Other Notes'!J130","v":0}]
[{"$f":"'Standing Data'!$D$12","v":{"$error":"#N/A"}},{"$f":"'Standing Data'!$F$9","v":0},{"$f":"'Standing Data'!#REF!","v":{"$error":"#REF!"}},"Fin.Return","J821",{"$f":"'Fin.Return - Other Notes'!J131","v":0}]
[{"$f":"'Standing Data'!$D$12","v":{"$error":"#N/A"}},{"$f":"'Standing Data'!$F$9","v":0},{"$f":"'Standing Data'!#REF!","v":{"$error":"#REF!"}},"Fin.Return","J823",{"$f":"'Fin.Return - Other Notes'!J133","v":0}]
[{"$f":"'Standing Data'!$D$12","v":{"$error":"#N/A"}},{"$f":"'Standing Data'!$F$9","v":0},{"$f":"'Standing Data'!#REF!","v":{"$error":"#REF!"}},"Fin.Return","J850",{"$f":"'Fin.Return - Other Notes'!J162","v":0}]
[{"$f":"'Standing Data'!$D$12","v":{"$error":"#N/A"}},{"$f":"'Standing Data'!$F$9","v":0},{"$f":"'Standing Data'!#REF!","v":{"$error":"#REF!"}},"Fin.Return","J851",{"$f":"'Fin.Return - Other Notes'!J163","v":0}]
[{"$f":"'Standing Data'!$D$12","v":{"$error":"#N/A"}},{"$f":"'Standing Data'!$F$9","v":0},{"$f":"'Standing Data'!#REF!","v":{"$error":"#REF!"}},"Fin.Return","J852",{"$f":"'Fin.Return - Other Notes'!J164","v":0}]
[{"$f":"'Standing Data'!$D$12","v":{"$error":"#N/A"}},{"$f":"'Standing Data'!$F$9","v":0},{"$f":"'Standing Data'!#REF!","v":{"$error":"#REF!"}},"Fin.Return","J854",{"$f":"'Fin.Return - Other Notes'!J166","v":0}]
[{"$f":"'Standing Data'!$D$12","v":{"$error":"#N/A"}},{"$f":"'Standing Data'!$F$9","v":0},{"$f":"'Standing Data'!#REF!","v":{"$error":"#REF!"}},"Fin.Return","J857",{"$f":"'Fin.Return - Other Notes'!J169","v":0}]
[{"$f":"'Standing Data'!$D$12","v":{"$error":"#N/A"}},{"$f":"'Standing Data'!$F$9","v":0},{"$f":"'Standing Data'!#REF!","v":{"$error":"#REF!"}},"Fin.Return","J858",{"$f":"'Fin.Return - Other Notes'!J170","v":0}]
[{"$f":"'Standing Data'!$D$12","v":{"$error":"#N/A"}},{"$f":"'Standing Data'!$F$9","v":0},{"$f":"'Standing Data'!#REF!","v":{"$error":"#REF!"}},"Fin.Return","J860",{"$f":"'Fin.Return - Other Notes'!J172","v":0}]
[{"$f":"'Standing Data'!$D$12","v":{"$error":"#N/A"}},{"$f":"'Standing Data'!$F$9","v":0},{"$f":"'Standing Data'!#REF!","v":{"$error":"#REF!"}},"Fin.Return","J862",{"$f":"'Fin.Return - Other Notes'!J174","v":0}]
[{"$f":"'Standing Data'!$D$12","v":{"$error":"#N/A"}},{"$f":"'Standing Data'!$F$9","v":0},{"$f":"'Standing Data'!#REF!","v":{"$error":"#REF!"}},"Fin.Return","J865",{"$f":"'Fin.Return - Other Notes'!J177","v":0}]
[{"$f":"'Standing Data'!$D$12","v":{"$error":"#N/A"}},{"$f":"'Standing Data'!$F$9","v":0},{"$f":"'Standing Data'!#REF!","v":{"$error":"#REF!"}},"Fin.Return","J866",{"$f":"'Fin.Return - Other Notes'!J178","v":0}]
[{"$f":"'Standing Data'!$D$12","v":{"$error":"#N/A"}},{"$f":"'Standing Data'!$F$9","v":0},{"$f":"'Standing Data'!#REF!","v":{"$error":"#REF!"}},"Fin.Return","J867",{"$f":"'Fin.Return - Other Notes'!J179","v":0}]
[{"$f":"'Standing Data'!$D$12","v":{"$error":"#N/A"}},{"$f":"'Standing Data'!$F$9","v":0},{"$f":"'Standing Data'!#REF!","v":{"$error":"#REF!"}},"Fin.Return","J868",{"$f":"'Fin.Return - Other Notes'!J180","v":0}]
[{"$f":"'Standing Data'!$D$12","v":{"$error":"#N/A"}},{"$f":"'Standing Data'!$F$9","v":0},{"$f":"'Standing Data'!#REF!","v":{"$error":"#REF!"}},"Fin.Return","J869",{"$f":"'Fin.Return - Other Notes'!J181","v":0}]
[{"$f":"'Standing Data'!$D$12","v":{"$error":"#N/A"}},{"$f":"'Standing Data'!$F$9","v":0},{"$f":"'Standing Data'!#REF!","v":{"$error":"#REF!"}},"Fin.Return","J870",{"$f":"'Fin.Return - Other Notes'!J182","v":0}]
[{"$f":"'Standing Data'!$D$12","v":{"$error":"#N/A"}},{"$f":"'Standing Data'!$F$9","v":0},{"$f":"'Standing Data'!#REF!","v":{"$error":"#REF!"}},"Fin.Return","J871",{"$f":"'Fin.Return - Other Notes'!J183","v":0}]
[{"$f":"'Standing Data'!$D$12","v":{"$error":"#N/A"}},{"$f":"'Standing Data'!$F$9","v":0},{"$f":"'Standing Data'!#REF!","v":{"$error":"#REF!"}},"Fin.Return","J872",{"$f":"'Fin.Return - Other Notes'!J184","v":0}]
[{"$f":"'Standing Data'!$D$12","v":{"$error":"#N/A"}},{"$f":"'Standing Data'!$F$9","v":0},{"$f":"'Standing Data'!#REF!","v":{"$error":"#REF!"}},"Fin.Return","J873",{"$f":"'Fin.Return - Other Notes'!J185","v":0}]
[{"$f":"'Standing Data'!$D$12","v":{"$error":"#N/A"}},{"$f":"'Standing Data'!$F$9","v":0},{"$f":"'Standing Data'!#REF!","v":{"$error":"#REF!"}},"Fin.Return","J874",{"$f":"'Fin.Return - Other Notes'!J186","v":0}]
[{"$f":"'Standing Data'!$D$12","v":{"$error":"#N/A"}},{"$f":"'Standing Data'!$F$9","v":0},{"$f":"'Standing Data'!#REF!","v":{"$error":"#REF!"}},"Fin.Return","J876",{"$f":"'Fin.Return - Other Notes'!J190","v":0}]
[{"$f":"'Standing Data'!$D$12","v":{"$error":"#N/A"}},{"$f":"'Standing Data'!$F$9","v":0},{"$f":"'Standing Data'!#REF!","v":{"$error":"#REF!"}},"Fin.Return","J879",{"$f":"'Fin.Return - Other Notes'!J193","v":0}]
[{"$f":"'Standing Data'!$D$12","v":{"$error":"#N/A"}},{"$f":"'Standing Data'!$F$9","v":0},{"$f":"'Standing Data'!#REF!","v":{"$error":"#REF!"}},"Fin.Return","J880",{"$f":"'Fin.Return - Other Notes'!J194","v":0}]
[{"$f":"'Standing Data'!$D$12","v":{"$error":"#N/A"}},{"$f":"'Standing Data'!$F$9","v":0},{"$f":"'Standing Data'!#REF!","v":{"$error":"#REF!"}},"Fin.Return","J881",{"$f":"'Fin.Return - Other Notes'!J195","v":0}]
[{"$f":"'Standing Data'!$D$12","v":{"$error":"#N/A"}},{"$f":"'Standing Data'!$F$9","v":0},{"$f":"'Standing Data'!#REF!","v":{"$error":"#REF!"}},"Fin.Return","J882",{"$f":"'Fin.Return - Other Notes'!J196","v":0}]
[{"$f":"'Standing Data'!$D$12","v":{"$error":"#N/A"}},{"$f":"'Standing Data'!$F$9","v":0},{"$f":"'Standing Data'!#REF!","v":{"$error":"#REF!"}},"Fin.Return","J883",{"$f":"'Fin.Return - Other Notes'!J197","v":0}]
[{"$f":"'Standing Data'!$D$12","v":{"$error":"#N/A"}},{"$f":"'Standing Data'!$F$9","v":0},{"$f":"'Standing Data'!#REF!","v":{"$error":"#REF!"}},"Fin.Return","J884",{"$f":"'Fin.Return - Other Notes'!J198","v":0}]
[{"$f":"'Standing Data'!$D$12","v":{"$error":"#N/A"}},{"$f":"'Standing Data'!$F$9","v":0},{"$f":"'Standing Data'!#REF!","v":{"$error":"#REF!"}},"Fin.Return","J885",{"$f":"'Fin.Return - Other Notes'!J199","v":0}]
[{"$f":"'Standing Data'!$D$12","v":{"$error":"#N/A"}},{"$f":"'Standing Data'!$F$9","v":0},{"$f":"'Standing Data'!#REF!","v":{"$error":"#REF!"}},"Fin.Return","J887",{"$f":"'Fin.Return - Other Notes'!J203","v":0}]
[{"$f":"'Standing Data'!$D$12","v":{"$error":"#N/A"}},{"$f":"'Standing Data'!$F$9","v":0},{"$f":"'Standing Data'!#REF!","v":{"$error":"#REF!"}},"Fin.Return","J890",{"$f":"'Fin.Return - Other Notes'!J206","v":0}]
[{"$f":"'Standing Data'!$D$12","v":{"$error":"#N/A"}},{"$f":"'Standing Data'!$F$9","v":0},{"$f":"'Standing Data'!#REF!","v":{"$error":"#REF!"}},"Fin.Return","J891",{"$f":"'Fin.Return - Other Notes'!J207","v":0}]
[{"$f":"'Standing Data'!$D$12","v":{"$error":"#N/A"}},{"$f":"'Standing Data'!$F$9","v":0},{"$f":"'Standing Data'!#REF!","v":{"$error":"#REF!"}},"Fin.Return","J892",{"$f":"'Fin.Return - Other Notes'!J208","v":0}]
[{"$f":"'Standing Data'!$D$12","v":{"$error":"#N/A"}},{"$f":"'Standing Data'!$F$9","v":0},{"$f":"'Standing Data'!#REF!","v":{"$error":"#REF!"}},"Fin.Return","J893",{"$f":"'Fin.Return - Other Notes'!J209","v":0}]
[{"$f":"'Standing Data'!$D$12","v":{"$error":"#N/A"}},{"$f":"'Standing Data'!$F$9","v":0},{"$f":"'Standing Data'!#REF!","v":{"$error":"#REF!"}},"Fin.Return","J894",{"$f":"'Fin.Return - Other Notes'!J210","v":0}]
[{"$f":"'Standing Data'!$D$12","v":{"$error":"#N/A"}},{"$f":"'Standing Data'!$F$9","v":0},{"$f":"'Standing Data'!#REF!","v":{"$error":"#REF!"}},"Fin.Return","J895",{"$f":"'Fin.Return - Other Notes'!J211","v":0}]
[{"$f":"'Standing Data'!$D$12","v":{"$error":"#N/A"}},{"$f":"'Standing Data'!$F$9","v":0},{"$f":"'Standing Data'!#REF!","v":{"$error":"#REF!"}},"Fin.Return","J896",{"$f":"'Fin.Return - Other Notes'!J212","v":0}]
[{"$f":"'Standing Data'!$D$12","v":{"$error":"#N/A"}},{"$f":"'Standing Data'!$F$9","v":0},{"$f":"'Standing Data'!#REF!","v":{"$error":"#REF!"}},"Fin.Return","J897",{"$f":"'Fin.Return - Other Notes'!J213","v":0}]
[{"$f":"'Standing Data'!$D$12","v":{"$error":"#N/A"}},{"$f":"'Standing Data'!$F$9","v":0},{"$f":"'Standing Data'!#REF!","v":{"$error":"#REF!"}},"Fin.Return","J898",{"$f":"'Fin.Return - Other Notes'!J214","v":0}]
[{"$f":"'Standing Data'!$D$12","v":{"$error":"#N/A"}},{"$f":"'Standing Data'!$F$9","v":0},{"$f":"'Standing Data'!#REF!","v":{"$error":"#REF!"}},"Fin.Return","J899",{"$f":"'Fin.Return - Other Notes'!J215","v":0}]
[{"$f":"'Standing Data'!$D$12","v":{"$error":"#N/A"}},{"$f":"'Standing Data'!$F$9","v":0},{"$f":"'Standing Data'!#REF!","v":{"$error":"#REF!"}},"Fin.Return","J901",{"$f":"'Fin.Return - Other Notes'!J219","v":0}]
[{"$f":"'Standing Data'!$D$12","v":{"$error":"#N/A"}},{"$f":"'Standing Data'!$F$9","v":0},{"$f":"'Standing Data'!#REF!","v":{"$error":"#REF!"}},"Fin.Return","J908",{"$f":"'Fin.Return - Other Notes'!J228","v":0}]
[{"$f":"'Standing Data'!$D$12","v":{"$error":"#N/A"}},{"$f":"'Standing Data'!$F$9","v":0},{"$f":"'Standing Data'!#REF!","v":{"$error":"#REF!"}},"Fin.Return","J909",{"$f":"'Fin.Return - Other Notes'!J229","v":0}]
[{"$f":"'Standing Data'!$D$12","v":{"$error":"#N/A"}},{"$f":"'Standing Data'!$F$9","v":0},{"$f":"'Standing Data'!#REF!","v":{"$error":"#REF!"}},"Fin.Return","J910",{"$f":"'Fin.Return - Other Notes'!J230","v":0}]
[{"$f":"'Standing Data'!$D$12","v":{"$error":"#N/A"}},{"$f":"'Standing Data'!$F$9","v":0},{"$f":"'Standing Data'!#REF!","v":{"$error":"#REF!"}},"Fin.Return","J911",{"$f":"'Fin.Return - Other Notes'!J231","v":0}]
[{"$f":"'Standing Data'!$D$12","v":{"$error":"#N/A"}},{"$f":"'Standing Data'!$F$9","v":0},{"$f":"'Standing Data'!#REF!","v":{"$error":"#REF!"}},"Fin.Return","J912",{"$f":"'Fin.Return - Other Notes'!J232","v":0}]
[{"$f":"'Standing Data'!$D$12","v":{"$error":"#N/A"}},{"$f":"'Standing Data'!$F$9","v":0},{"$f":"'Standing Data'!#REF!","v":{"$error":"#REF!"}},"Fin.Return","J914",{"$f":"'Fin.Return - Other Notes'!J234","v":0}]
[{"$f":"'Standing Data'!$D$12","v":{"$error":"#N/A"}},{"$f":"'Standing Data'!$F$9","v":0},{"$f":"'Standing Data'!#REF!","v":{"$error":"#REF!"}},"Fin.Return","J913",{"$f":"'Fin.Return - Other Notes'!J233","v":0}]
[{"$f":"'Standing Data'!$D$12","v":{"$error":"#N/A"}},{"$f":"'Standing Data'!$F$9","v":0},{"$f":"'Standing Data'!#REF!","v":{"$error":"#REF!"}},"Fin.Return","J916",{"$f":"'Fin.Return - Other Notes'!J236","v":0}]
[{"$f":"'Standing Data'!$D$12","v":{"$error":"#N/A"}},{"$f":"'Standing Data'!$F$9","v":0},{"$f":"'Standing Data'!#REF!","v":{"$error":"#REF!"}},"Fin.Return","J917",{"$f":"'Fin.Return - Other Notes'!J237","v":0}]
[{"$f":"'Standing Data'!$D$12","v":{"$error":"#N/A"}},{"$f":"'Standing Data'!$F$9","v":0},{"$f":"'Standing Data'!#REF!","v":{"$error":"#REF!"}},"Fin.Return","J918",{"$f":"'Fin.Return - Other Notes'!J238","v":0}]
[{"$f":"'Standing Data'!$D$12","v":{"$error":"#N/A"}},{"$f":"'Standing Data'!$F$9","v":0},{"$f":"'Standing Data'!#REF!","v":{"$error":"#REF!"}},"Fin.Return","J919",{"$f":"'Fin.Return - Other Notes'!J239","v":0}]
[{"$f":"'Standing Data'!$D$12","v":{"$error":"#N/A"}},{"$f":"'Standing Data'!$F$9","v":0},{"$f":"'Standing Data'!#REF!","v":{"$error":"#REF!"}},"Fin.Return","J920",{"$f":"'Fin.Return - Other Notes'!J240","v":0}]
[{"$f":"'Standing Data'!$D$12","v":{"$error":"#N/A"}},{"$f":"'Standing Data'!$F$9","v":0},{"$f":"'Standing Data'!#REF!","v":{"$error":"#REF!"}},"Fin.Return","J922",{"$f":"'Fin.Return - Other Notes'!J242","v":0}]
[{"$f":"'Standing Data'!$D$12","v":{"$error":"#N/A"}},{"$f":"'Standing Data'!$F$9","v":0},{"$f":"'Standing Data'!#REF!","v":{"$error":"#REF!"}},"Fin.Return","J924",{"$f":"'Fin.Return - Other Notes'!J244","v":0}]
[{"$f":"'Standing Data'!$D$12","v":{"$error":"#N/A"}},{"$f":"'Standing Data'!$F$9","v":0},{"$f":"'Standing Data'!#REF!","v":{"$error":"#REF!"}},"Fin.Return","J925",{"$f":"'Fin.Return - Other Notes'!J245","v":0}]
[{"$f":"'Standing Data'!$D$12","v":{"$error":"#N/A"}},{"$f":"'Standing Data'!$F$9","v":0},{"$f":"'Standing Data'!#REF!","v":{"$error":"#REF!"}},"Fin.Return","J926",{"$f":"'Fin.Return - Other Notes'!J246","v":0}]
[{"$f":"'Standing Data'!$D$12","v":{"$error":"#N/A"}},{"$f":"'Standing Data'!$F$9","v":0},{"$f":"'Standing Data'!#REF!","v":{"$error":"#REF!"}},"Fin.Return","J927",{"$f":"'Fin.Return - Other Notes'!J247","v":0}]
[{"$f":"'Standing Data'!$D$12","v":{"$error":"#N/A"}},{"$f":"'Standing Data'!$F$9","v":0},{"$f":"'Standing Data'!#REF!","v":{"$error":"#REF!"}},"Fin.Return","J928",{"$f":"'Fin.Return - Other Notes'!J248","v":0}]
[{"$f":"'Standing Data'!$D$12","v":{"$error":"#N/A"}},{"$f":"'Standing Data'!$F$9","v":0},{"$f":"'Standing Data'!#REF!","v":{"$error":"#REF!"}},"Fin.Return","J929",{"$f":"'Fin.Return - Other Notes'!J249","v":0}]
[{"$f":"'Standing Data'!$D$12","v":{"$error":"#N/A"}},{"$f":"'Standing Data'!$F$9","v":0},{"$f":"'Standing Data'!#REF!","v":{"$error":"#REF!"}},"Fin.Return","J930",{"$f":"'Fin.Return - Other Notes'!J250","v":0}]
[{"$f":"'Standing Data'!$D$12","v":{"$error":"#N/A"}},{"$f":"'Standing Data'!$F$9","v":0},{"$f":"'Standing Data'!#REF!","v":{"$error":"#REF!"}},"Fin.Return","J931",{"$f":"'Fin.Return - Other Notes'!J251","v":0}]
[{"$f":"'Standing Data'!$D$12","v":{"$error":"#N/A"}},{"$f":"'Standing Data'!$F$9","v":0},{"$f":"'Standing Data'!#REF!","v":{"$error":"#REF!"}},"Fin.Return","J933",{"$f":"'Fin.Return - Other Notes'!J253","v":0}]
[{"$f":"'Standing Data'!$D$12","v":{"$error":"#N/A"}},{"$f":"'Standing Data'!$F$9","v":0},{"$f":"'Standing Data'!#REF!","v":{"$error":"#REF!"}},"Fin.Return","J934",{"$f":"'Fin.Return - Other Notes'!J254","v":0}]
[{"$f":"'Standing Data'!$D$12","v":{"$error":"#N/A"}},{"$f":"'Standing Data'!$F$9","v":0},{"$f":"'Standing Data'!#REF!","v":{"$error":"#REF!"}},"Fin.Return","J935",{"$f":"'Fin.Return - Other Notes'!J255","v":0}]
[{"$f":"'Standing Data'!$D$12","v":{"$error":"#N/A"}},{"$f":"'Standing Data'!$F$9","v":0},{"$f":"'Standing Data'!#REF!","v":{"$error":"#REF!"}},"Fin.Return","J936",{"$f":"'Fin.Return - Other Notes'!J256","v":0}]
[{"$f":"'Standing Data'!$D$12","v":{"$error":"#N/A"}},{"$f":"'Standing Data'!$F$9","v":0},{"$f":"'Standing Data'!#REF!","v":{"$error":"#REF!"}},"Fin.Return","J938",{"$f":"'Fin.Return - Other Notes'!J258","v":0}]
[{"$f":"'Standing Data'!$D$12","v":{"$error":"#N/A"}},{"$f":"'Standing Data'!$F$9","v":0},{"$f":"'Standing Data'!#REF!","v":{"$error":"#REF!"}},"Fin.Return","J940",{"$f":"'Fin.Return - Other Notes'!J260","v":0}]
[{"$f":"'Standing Data'!$D$12","v":{"$error":"#N/A"}},{"$f":"'Standing Data'!$F$9","v":0},{"$f":"'Standing Data'!#REF!","v":{"$error":"#REF!"}},"Fin.Return","J942",{"$f":"'Fin.Return - Other Notes'!J262","v":0}]
[{"$f":"'Standing Data'!$D$12","v":{"$error":"#N/A"}},{"$f":"'Standing Data'!$F$9","v":0},{"$f":"'Standing Data'!#REF!","v":{"$error":"#REF!"}},"Fin.Return","J1009",{"$f":"'Fin.Return - Other Notes'!J397","v":0}]
[{"$f":"'Standing Data'!$D$12","v":{"$error":"#N/A"}},{"$f":"'Standing Data'!$F$9","v":0},{"$f":"'Standing Data'!#REF!","v":{"$error":"#REF!"}},"Fin.Return","J1010",{"$f":"'Fin.Return - Other Notes'!J398","v":0}]
[{"$f":"'Standing Data'!$D$12","v":{"$error":"#N/A"}},{"$f":"'Standing Data'!$F$9","v":0},{"$f":"'Standing Data'!#REF!","v":{"$error":"#REF!"}},"Fin.Return","J1011",{"$f":"'Fin.Return - Other Notes'!J399","v":0}]
[{"$f":"'Standing Data'!$D$12","v":{"$error":"#N/A"}},{"$f":"'Standing Data'!$F$9","v":0},{"$f":"'Standing Data'!#REF!","v":{"$error":"#REF!"}},"Fin.Return","J1013",{"$f":"'Fin.Return - Other Notes'!J401","v":0}]
[{"$f":"'Standing Data'!$D$12","v":{"$error":"#N/A"}},{"$f":"'Standing Data'!$F$9","v":0},{"$f":"'Standing Data'!#REF!","v":{"$error":"#REF!"}},"Fin.Return","J1014",{"$f":"'Fin.Return - Other Notes'!J402","v":0}]
[{"$f":"'Standing Data'!$D$12","v":{"$error":"#N/A"}},{"$f":"'Standing Data'!$F$9","v":0},{"$f":"'Standing Data'!#REF!","v":{"$error":"#REF!"}},"Fin.Return","J1015",{"$f":"'Fin.Return - Other Notes'!J403","v":0}]
[{"$f":"'Standing Data'!$D$12","v":{"$error":"#N/A"}},{"$f":"'Standing Data'!$F$9","v":0},{"$f":"'Standing Data'!#REF!","v":{"$error":"#REF!"}},"Fin.Return","J1017",{"$f":"'Fin.Return - Other Notes'!J405","v":0}]
[{"$f":"'Standing Data'!$D$12","v":{"$error":"#N/A"}},{"$f":"'Standing Data'!$F$9","v":0},{"$f":"'Standing Data'!#REF!","v":{"$error":"#REF!"}},"Fin.Return","J1018",{"$f":"'Fin.Return - Other Notes'!J406","v":0}]
[{"$f":"'Standing Data'!$D$12","v":{"$error":"#N/A"}},{"$f":"'Standing Data'!$F$9","v":0},{"$f":"'Standing Data'!#REF!","v":{"$error":"#REF!"}},"Fin.Return","J1019",{"$f":"'Fin.Return - Other Notes'!J407","v":0}]
[{"$f":"'Standing Data'!$D$12","v":{"$error":"#N/A"}},{"$f":"'Standing Data'!$F$9","v":0},{"$f":"'Standing Data'!#REF!","v":{"$error":"#REF!"}},"Fin.Return","J1021",{"$f":"'Fin.Return - Other Notes'!J409","v":0}]
[{"$f":"'Standing Data'!$D$12","v":{"$error":"#N/A"}},{"$f":"'Standing Data'!$F$9","v":0},{"$f":"'Standing Data'!#REF!","v":{"$error":"#REF!"}},"Fin.Return","J1022",{"$f":"'Fin.Return - Other Notes'!J410","v":0}]
[{"$f":"'Standing Data'!$D$12","v":{"$error":"#N/A"}},{"$f":"'Standing Data'!$F$9","v":0},{"$f":"'Standing Data'!#REF!","v":{"$error":"#REF!"}},"Fin.Return","J1024",{"$f":"'Fin.Return - Other Notes'!J412","v":0}]
[{"$f":"'Standing Data'!$D$12","v":{"$error":"#N/A"}},{"$f":"'Standing Data'!$F$9","v":0},{"$f":"'Standing Data'!#REF!","v":{"$error":"#REF!"}},"Fin.Return","J1082",{"$f":"'Fin.Return - Other Notes'!J456","v":0}]
[{"$f":"'Standing Data'!$D$12","v":{"$error":"#N/A"}},{"$f":"'Standing Data'!$F$9","v":0},{"$f":"'Standing Data'!#REF!","v":{"$error":"#REF!"}},"Fin.Return","J1083",{"$f":"'Fin.Return - Other Notes'!J457","v":0}]
[{"$f":"'Standing Data'!$D$12","v":{"$error":"#N/A"}},{"$f":"'Standing Data'!$F$9","v":0},{"$f":"'Standing Data'!#REF!","v":{"$error":"#REF!"}},"Fin.Return","J1084",{"$f":"'Fin.Return - Other Notes'!J458","v":0}]
[{"$f":"'Standing Data'!$D$12","v":{"$error":"#N/A"}},{"$f":"'Standing Data'!$F$9","v":0},{"$f":"'Standing Data'!#REF!","v":{"$error":"#REF!"}},"Fin.Return","J1086",{"$f":"'Fin.Return - Other Notes'!J460","v":0}]
[{"$f":"'Standing Data'!$D$12","v":{"$error":"#N/A"}},{"$f":"'Standing Data'!$F$9","v":0},{"$f":"'Standing Data'!#REF!","v":{"$error":"#REF!"}},"Fin.Return","J1087",{"$f":"'Fin.Return - Other Notes'!J461","v":0}]
[{"$f":"'Standing Data'!$D$12","v":{"$error":"#N/A"}},{"$f":"'Standing Data'!$F$9","v":0},{"$f":"'Standing Data'!#REF!","v":{"$error":"#REF!"}},"Fin.Return","J1088",{"$f":"'Fin.Return - Other Notes'!J462","v":0}]
[{"$f":"'Standing Data'!$D$12","v":{"$error":"#N/A"}},{"$f":"'Standing Data'!$F$9","v":0},{"$f":"'Standing Data'!#REF!","v":{"$error":"#REF!"}},"Fin.Return","J1090",{"$f":"'Fin.Return - Other Notes'!J464","v":0}]
[{"$f":"'Standing Data'!$D$12","v":{"$error":"#N/A"}},{"$f":"'Standing Data'!$F$9","v":0},{"$f":"'Standing Data'!#REF!","v":{"$error":"#REF!"}},"Fin.Return","J1091",{"$f":"'Fin.Return - Other Notes'!J465","v":0}]
[{"$f":"'Standing Data'!$D$12","v":{"$error":"#N/A"}},{"$f":"'Standing Data'!$F$9","v":0},{"$f":"'Standing Data'!#REF!","v":{"$error":"#REF!"}},"Fin.Return","J1092",{"$f":"'Fin.Return - Other Notes'!J466","v":0}]
[{"$f":"'Standing Data'!$D$12","v":{"$error":"#N/A"}},{"$f":"'Standing Data'!$F$9","v":0},{"$f":"'Standing Data'!#REF!","v":{"$error":"#REF!"}},"Fin.Return","J1094",{"$f":"'Fin.Return - Other Notes'!J468","v":0}]
[{"$f":"'Standing Data'!$D$12","v":{"$error":"#N/A"}},{"$f":"'Standing Data'!$F$9","v":0},{"$f":"'Standing Data'!#REF!","v":{"$error":"#REF!"}},"Fin.Return","J1095",{"$f":"'Fin.Return - Other Notes'!J469","v":0}]
[{"$f":"'Standing Data'!$D$12","v":{"$error":"#N/A"}},{"$f":"'Standing Data'!$F$9","v":0},{"$f":"'Standing Data'!#REF!","v":{"$error":"#REF!"}},"Fin.Return","J1097",{"$f":"'Fin.Return - Other Notes'!J471","v":0}]
[{"$f":"'Standing Data'!$D$12","v":{"$error":"#N/A"}},{"$f":"'Standing Data'!$F$9","v":0},{"$f":"'Standing Data'!#REF!","v":{"$error":"#REF!"}},"Fin.Return","J1111",{"$f":"'Fin.Return - Other Notes'!J485","v":0}]
[{"$f":"'Standing Data'!$D$12","v":{"$error":"#N/A"}},{"$f":"'Standing Data'!$F$9","v":0},{"$f":"'Standing Data'!#REF!","v":{"$error":"#REF!"}},"Fin.Return","J1112",{"$f":"'Fin.Return - Other Notes'!J486","v":0}]
[{"$f":"'Standing Data'!$D$12","v":{"$error":"#N/A"}},{"$f":"'Standing Data'!$F$9","v":0},{"$f":"'Standing Data'!#REF!","v":{"$error":"#REF!"}},"Fin.Return","J1113",{"$f":"'Fin.Return - Other Notes'!J487","v":0}]
[{"$f":"'Standing Data'!$D$12","v":{"$error":"#N/A"}},{"$f":"'Standing Data'!$F$9","v":0},{"$f":"'Standing Data'!#REF!","v":{"$error":"#REF!"}},"Fin.Return","J1115",{"$f":"'Fin.Return - Other Notes'!J489","v":0}]
[{"$f":"'Standing Data'!$D$12","v":{"$error":"#N/A"}},{"$f":"'Standing Data'!$F$9","v":0},{"$f":"'Standing Data'!#REF!","v":{"$error":"#REF!"}},"Fin.Return","J1131",{"$f":"'Fin.Return - Other Notes'!J505","v":0}]
[{"$f":"'Standing Data'!$D$12","v":{"$error":"#N/A"}},{"$f":"'Standing Data'!$F$9","v":0},{"$f":"'Standing Data'!#REF!","v":{"$error":"#REF!"}},"Fin.Return","J1132",{"$f":"'Fin.Return - Other Notes'!J506","v":0}]
[{"$f":"'Standing Data'!$D$12","v":{"$error":"#N/A"}},{"$f":"'Standing Data'!$F$9","v":0},{"$f":"'Standing Data'!#REF!","v":{"$error":"#REF!"}},"Fin.Return","J1133",{"$f":"'Fin.Return - Other Notes'!J507","v":0}]
[{"$f":"'Standing Data'!$D$12","v":{"$error":"#N/A"}},{"$f":"'Standing Data'!$F$9","v":0},{"$f":"'Standing Data'!#REF!","v":{"$error":"#REF!"}},"Fin.Return","J1135",{"$f":"'Fin.Return - Other Notes'!J509","v":0}]
[{"$f":"'Standing Data'!$D$12","v":{"$error":"#N/A"}},{"$f":"'Standing Data'!$F$9","v":0},{"$f":"'Standing Data'!#REF!","v":{"$error":"#REF!"}},"Fin.Return","J1237",{"$f":"'Fin.Return - Other Notes'!J615","v":0}]
[{"$f":"'Standing Data'!$D$12","v":{"$error":"#N/A"}},{"$f":"'Standing Data'!$F$9","v":0},{"$f":"'Standing Data'!#REF!","v":{"$error":"#REF!"}},"Fin.Return","J1238",{"$f":"'Fin.Return - Other Notes'!J616","v":0}]
[{"$f":"'Standing Data'!$D$12","v":{"$error":"#N/A"}},{"$f":"'Standing Data'!$F$9","v":0},{"$f":"'Standing Data'!#REF!","v":{"$error":"#REF!"}},"Fin.Return","J1239",{"$f":"'Fin.Return - Other Notes'!J617","v":0}]
[{"$f":"'Standing Data'!$D$12","v":{"$error":"#N/A"}},{"$f":"'Standing Data'!$F$9","v":0},{"$f":"'Standing Data'!#REF!","v":{"$error":"#REF!"}},"Fin.Return","J1240",{"$f":"'Fin.Return - Other Notes'!J618","v":0}]
[{"$f":"'Standing Data'!$D$12","v":{"$error":"#N/A"}},{"$f":"'Standing Data'!$F$9","v":0},{"$f":"'Standing Data'!#REF!","v":{"$error":"#REF!"}},"Fin.Return","J1241",{"$f":"'Fin.Return - Other Notes'!J619","v":0}]
[{"$f":"'Standing Data'!$D$12","v":{"$error":"#N/A"}},{"$f":"'Standing Data'!$F$9","v":0},{"$f":"'Standing Data'!#REF!","v":{"$error":"#REF!"}},"Fin.Return","J1242",{"$f":"'Fin.Return - Other Notes'!J620","v":0}]
[{"$f":"'Standing Data'!$D$12","v":{"$error":"#N/A"}},{"$f":"'Standing Data'!$F$9","v":0},{"$f":"'Standing Data'!#REF!","v":{"$error":"#REF!"}},"Fin.Return","J1243",{"$f":"'Fin.Return - Other Notes'!J621","v":0}]
[{"$f":"'Standing Data'!$D$12","v":{"$error":"#N/A"}},{"$f":"'Standing Data'!$F$9","v":0},{"$f":"'Standing Data'!#REF!","v":{"$error":"#REF!"}},"Fin.Return","J1244",{"$f":"'Fin.Return - Other Notes'!J622","v":0}]
[{"$f":"'Standing Data'!$D$12","v":{"$error":"#N/A"}},{"$f":"'Standing Data'!$F$9","v":0},{"$f":"'Standing Data'!#REF!","v":{"$error":"#REF!"}},"Fin.Return","J1245",{"$f":"'Fin.Return - Other Notes'!J623","v":0}]
[{"$f":"'Standing Data'!$D$12","v":{"$error":"#N/A"}},{"$f":"'Standing Data'!$F$9","v":0},{"$f":"'Standing Data'!#REF!","v":{"$error":"#REF!"}},"Fin.Return","J1246",{"$f":"'Fin.Return - Other Notes'!J624","v":0}]
[{"$f":"'Standing Data'!$D$12","v":{"$error":"#N/A"}},{"$f":"'Standing Data'!$F$9","v":0},{"$f":"'Standing Data'!#REF!","v":{"$error":"#REF!"}},"Fin.Return","J1247",{"$f":"'Fin.Return - Other Notes'!J625","v":0}]
[{"$f":"'Standing Data'!$D$12","v":{"$error":"#N/A"}},{"$f":"'Standing Data'!$F$9","v":0},{"$f":"'Standing Data'!#REF!","v":{"$error":"#REF!"}},"Fin.Return","J1248",{"$f":"'Fin.Return - Other Notes'!J626","v":0}]
[{"$f":"'Standing Data'!$D$12","v":{"$error":"#N/A"}},{"$f":"'Standing Data'!$F$9","v":0},{"$f":"'Standing Data'!#REF!","v":{"$error":"#REF!"}},"Fin.Return","J1249",{"$f":"'Fin.Return - Other Notes'!J627","v":0}]
[{"$f":"'Standing Data'!$D$12","v":{"$error":"#N/A"}},{"$f":"'Standing Data'!$F$9","v":0},{"$f":"'Standing Data'!#REF!","v":{"$error":"#REF!"}},"Fin.Return","J1250",{"$f":"'Fin.Return - Other Notes'!J628","v":0}]
[{"$f":"'Standing Data'!$D$12","v":{"$error":"#N/A"}},{"$f":"'Standing Data'!$F$9","v":0},{"$f":"'Standing Data'!#REF!","v":{"$error":"#REF!"}},"Fin.Return","J1252",{"$f":"'Fin.Return - Other Notes'!J630","v":0}]
[{"$f":"'Standing Data'!$D$12","v":{"$error":"#N/A"}},{"$f":"'Standing Data'!$F$9","v":0},{"$f":"'Standing Data'!#REF!","v":{"$error":"#REF!"}},"Fin.Return","K468",{"$f":"'Fin.Return - BS'!K64","v":0}]
[{"$f":"'Standing Data'!$D$12","v":{"$error":"#N/A"}},{"$f":"'Standing Data'!$F$9","v":0},{"$f":"'Standing Data'!#REF!","v":{"$error":"#REF!"}},"Fin.Return","K469",{"$f":"'Fin.Return - BS'!K65","v":0}]
[{"$f":"'Standing Data'!$D$12","v":{"$error":"#N/A"}},{"$f":"'Standing Data'!$F$9","v":0},{"$f":"'Standing Data'!#REF!","v":{"$error":"#REF!"}},"Fin.Return","K470",{"$f":"'Fin.Return - BS'!K67","v":0}]
[{"$f":"'Standing Data'!$D$12","v":{"$error":"#N/A"}},{"$f":"'Standing Data'!$F$9","v":0},{"$f":"'Standing Data'!#REF!","v":{"$error":"#REF!"}},"Fin.Return","K471",{"$f":"'Fin.Return - BS'!K68","v":0}]
[{"$f":"'Standing Data'!$D$12","v":{"$error":"#N/A"}},{"$f":"'Standing Data'!$F$9","v":0},{"$f":"'Standing Data'!#REF!","v":{"$error":"#REF!"}},"Fin.Return","K472",{"$f":"'Fin.Return - BS'!K70","v":0}]
[{"$f":"'Standing Data'!$D$12","v":{"$error":"#N/A"}},{"$f":"'Standing Data'!$F$9","v":0},{"$f":"'Standing Data'!#REF!","v":{"$error":"#REF!"}},"Fin.Return","K473",{"$f":"'Fin.Return - BS'!K72","v":0}]
[{"$f":"'Standing Data'!$D$12","v":{"$error":"#N/A"}},{"$f":"'Standing Data'!$F$9","v":0},{"$f":"'Standing Data'!#REF!","v":{"$error":"#REF!"}},"Fin.Return","K474",{"$f":"'Fin.Return - BS'!K74","v":0}]
[{"$f":"'Standing Data'!$D$12","v":{"$error":"#N/A"}},{"$f":"'Standing Data'!$F$9","v":0},{"$f":"'Standing Data'!#REF!","v":{"$error":"#REF!"}},"Fin.Return","K475",{"$f":"'Fin.Return - BS'!K75","v":0}]
[{"$f":"'Standing Data'!$D$12","v":{"$error":"#N/A"}},{"$f":"'Standing Data'!$F$9","v":0},{"$f":"'Standing Data'!#REF!","v":{"$error":"#REF!"}},"Fin.Return","K477",{"$f":"'Fin.Return - BS'!K77","v":0}]
[{"$f":"'Standing Data'!$D$12","v":{"$error":"#N/A"}},{"$f":"'Standing Data'!$F$9","v":0},{"$f":"'Standing Data'!#REF!","v":{"$error":"#REF!"}},"Fin.Return","K480",{"$f":"'Fin.Return - BS'!K80","v":0}]
[{"$f":"'Standing Data'!$D$12","v":{"$error":"#N/A"}},{"$f":"'Standing Data'!$F$9","v":0},{"$f":"'Standing Data'!#REF!","v":{"$error":"#REF!"}},"Fin.Return","K481",{"$f":"'Fin.Return - BS'!K81","v":0}]
[{"$f":"'Standing Data'!$D$12","v":{"$error":"#N/A"}},{"$f":"'Standing Data'!$F$9","v":0},{"$f":"'Standing Data'!#REF!","v":{"$error":"#REF!"}},"Fin.Return","K482",{"$f":"'Fin.Return - BS'!K82","v":0}]
[{"$f":"'Standing Data'!$D$12","v":{"$error":"#N/A"}},{"$f":"'Standing Data'!$F$9","v":0},{"$f":"'Standing Data'!#REF!","v":{"$error":"#REF!"}},"Fin.Return","K483",{"$f":"'Fin.Return - BS'!K84","v":0}]
[{"$f":"'Standing Data'!$D$12","v":{"$error":"#N/A"}},{"$f":"'Standing Data'!$F$9","v":0},{"$f":"'Standing Data'!#REF!","v":{"$error":"#REF!"}},"Fin.Return","K484",{"$f":"'Fin.Return - BS'!K85","v":0}]
[{"$f":"'Standing Data'!$D$12","v":{"$error":"#N/A"}},{"$f":"'Standing Data'!$F$9","v":0},{"$f":"'Standing Data'!#REF!","v":{"$error":"#REF!"}},"Fin.Return","K486",{"$f":"'Fin.Return - BS'!K87","v":0}]
[{"$f":"'Standing Data'!$D$12","v":{"$error":"#N/A"}},{"$f":"'Standing Data'!$F$9","v":0},{"$f":"'Standing Data'!#REF!","v":{"$error":"#REF!"}},"Fin.Return","K489",{"$f":"'Fin.Return - BS'!K90","v":0}]
[{"$f":"'Standing Data'!$D$12","v":{"$error":"#N/A"}},{"$f":"'Standing Data'!$F$9","v":0},{"$f":"'Standing Data'!#REF!","v":{"$error":"#REF!"}},"Fin.Return","K490",{"$f":"'Fin.Return - BS'!K91","v":0}]
[{"$f":"'Standing Data'!$D$12","v":{"$error":"#N/A"}},{"$f":"'Standing Data'!$F$9","v":0},{"$f":"'Standing Data'!#REF!","v":{"$error":"#REF!"}},"Fin.Return","K491",{"$f":"'Fin.Return - BS'!K92","v":0}]
[{"$f":"'Standing Data'!$D$12","v":{"$error":"#N/A"}},{"$f":"'Standing Data'!$F$9","v":0},{"$f":"'Standing Data'!#REF!","v":{"$error":"#REF!"}},"Fin.Return","K493",{"$f":"'Fin.Return - BS'!K95","v":0}]
[{"$f":"'Standing Data'!$D$12","v":{"$error":"#N/A"}},{"$f":"'Standing Data'!$F$9","v":0},{"$f":"'Standing Data'!#REF!","v":{"$error":"#REF!"}},"Fin.Return","K496",{"$f":"'Fin.Return - BS'!K98","v":0}]
[{"$f":"'Standing Data'!$D$12","v":{"$error":"#N/A"}},{"$f":"'Standing Data'!$F$9","v":0},{"$f":"'Standing Data'!#REF!","v":{"$error":"#REF!"}},"Fin.Return","K499",{"$f":"'Fin.Return - BS'!K101","v":0}]
[{"$f":"'Standing Data'!$D$12","v":{"$error":"#N/A"}},{"$f":"'Standing Data'!$F$9","v":0},{"$f":"'Standing Data'!#REF!","v":{"$error":"#REF!"}},"Fin.Return","K503",{"$f":"'Fin.Return - BS'!K105","v":0}]
[{"$f":"'Standing Data'!$D$12","v":{"$error":"#N/A"}},{"$f":"'Standing Data'!$F$9","v":0},{"$f":"'Standing Data'!#REF!","v":{"$error":"#REF!"}},"Fin.Return","K504",{"$f":"'Fin.Return - BS'!K106","v":0}]
[{"$f":"'Standing Data'!$D$12","v":{"$error":"#N/A"}},{"$f":"'Standing Data'!$F$9","v":0},{"$f":"'Standing Data'!#REF!","v":{"$error":"#REF!"}},"Fin.Return","K505",{"$f":"'Fin.Return - BS'!K107","v":0}]
[{"$f":"'Standing Data'!$D$12","v":{"$error":"#N/A"}},{"$f":"'Standing Data'!$F$9","v":0},{"$f":"'Standing Data'!#REF!","v":{"$error":"#REF!"}},"Fin.Return","K514",{"$f":"'Fin.Return - BS'!K116","v":0}]
[{"$f":"'Standing Data'!$D$12","v":{"$error":"#N/A"}},{"$f":"'Standing Data'!$F$9","v":0},{"$f":"'Standing Data'!#REF!","v":{"$error":"#REF!"}},"Fin.Return","K515",{"$f":"'Fin.Return - BS'!K117","v":0}]
[{"$f":"'Standing Data'!$D$12","v":{"$error":"#N/A"}},{"$f":"'Standing Data'!$F$9","v":0},{"$f":"'Standing Data'!#REF!","v":{"$error":"#REF!"}},"Fin.Return","K517",{"$f":"'Fin.Return - BS'!K119","v":0}]
[{"$f":"'Standing Data'!$D$12","v":{"$error":"#N/A"}},{"$f":"'Standing Data'!$F$9","v":0},{"$f":"'Standing Data'!#REF!","v":{"$error":"#REF!"}},"Fin.Return","K519",{"$f":"'Fin.Return - BS'!K121","v":0}]
[{"$f":"'Standing Data'!$D$12","v":{"$error":"#N/A"}},{"$f":"'Standing Data'!$F$9","v":0},{"$f":"'Standing Data'!#REF!","v":{"$error":"#REF!"}},"Fin.Return","K565",{"$f":"'Fin.Return - BS'!K172","v":0}]
[{"$f":"'Standing Data'!$D$12","v":{"$error":"#N/A"}},{"$f":"'Standing Data'!$F$9","v":0},{"$f":"'Standing Data'!#REF!","v":{"$error":"#REF!"}},"Fin.Return","K566",{"$f":"'Fin.Return - BS'!K173","v":0}]
[{"$f":"'Standing Data'!$D$12","v":{"$error":"#N/A"}},{"$f":"'Standing Data'!$F$9","v":0},{"$f":"'Standing Data'!#REF!","v":{"$error":"#REF!"}},"Fin.Return","K567",{"$f":"'Fin.Return - BS'!K174","v":0}]
[{"$f":"'Standing Data'!$D$12","v":{"$error":"#N/A"}},{"$f":"'Standing Data'!$F$9","v":0},{"$f":"'Standing Data'!#REF!","v":{"$error":"#REF!"}},"Fin.Return","K568",{"$f":"'Fin.Return - BS'!K175","v":0}]
[{"$f":"'Standing Data'!$D$12","v":{"$error":"#N/A"}},{"$f":"'Standing Data'!$F$9","v":0},{"$f":"'Standing Data'!#REF!","v":{"$error":"#REF!"}},"Fin.Return","K569",{"$f":"'Fin.Return - BS'!K176","v":0}]
[{"$f":"'Standing Data'!$D$12","v":{"$error":"#N/A"}},{"$f":"'Standing Data'!$F$9","v":0},{"$f":"'Standing Data'!#REF!","v":{"$error":"#REF!"}},"Fin.Return","K570",{"$f":"'Fin.Return - BS'!K179","v":0}]
[{"$f":"'Standing Data'!$D$12","v":{"$error":"#N/A"}},{"$f":"'Standing Data'!$F$9","v":0},{"$f":"'Standing Data'!#REF!","v":{"$error":"#REF!"}},"Fin.Return","K571",{"$f":"'Fin.Return - BS'!K180","v":0}]
[{"$f":"'Standing Data'!$D$12","v":{"$error":"#N/A"}},{"$f":"'Standing Data'!$F$9","v":0},{"$f":"'Standing Data'!#REF!","v":{"$error":"#REF!"}},"Fin.Return","K572",{"$f":"'Fin.Return - BS'!K182","v":0}]
[{"$f":"'Standing Data'!$D$12","v":{"$error":"#N/A"}},{"$f":"'Standing Data'!$F$9","v":0},{"$f":"'Standing Data'!#REF!","v":{"$error":"#REF!"}},"Fin.Return","K573",{"$f":"'Fin.Return - BS'!K183","v":0}]
[{"$f":"'Standing Data'!$D$12","v":{"$error":"#N/A"}},{"$f":"'Standing Data'!$F$9","v":0},{"$f":"'Standing Data'!#REF!","v":{"$error":"#REF!"}},"Fin.Return","K575",{"$f":"'Fin.Return - BS'!K185","v":0}]
[{"$f":"'Standing Data'!$D$12","v":{"$error":"#N/A"}},{"$f":"'Standing Data'!$F$9","v":0},{"$f":"'Standing Data'!#REF!","v":{"$error":"#REF!"}},"Fin.Return","K630",{"$f":"'Fin.Return - BS'!K241","v":0}]
[{"$f":"'Standing Data'!$D$12","v":{"$error":"#N/A"}},{"$f":"'Standing Data'!$F$9","v":0},{"$f":"'Standing Data'!#REF!","v":{"$error":"#REF!"}},"Fin.Return","K631",{"$f":"'Fin.Return - BS'!K242","v":0}]
[{"$f":"'Standing Data'!$D$12","v":{"$error":"#N/A"}},{"$f":"'Standing Data'!$F$9","v":0},{"$f":"'Standing Data'!#REF!","v":{"$error":"#REF!"}},"Fin.Return","K632",{"$f":"'Fin.Return - BS'!K243","v":0}]
[{"$f":"'Standing Data'!$D$12","v":{"$error":"#N/A"}},{"$f":"'Standing Data'!$F$9","v":0},{"$f":"'Standing Data'!#REF!","v":{"$error":"#REF!"}},"Fin.Return","K633",{"$f":"'Fin.Return - BS'!K244","v":0}]
[{"$f":"'Standing Data'!$D$12","v":{"$error":"#N/A"}},{"$f":"'Standing Data'!$F$9","v":0},{"$f":"'Standing Data'!#REF!","v":{"$error":"#REF!"}},"Fin.Return","K634",{"$f":"'Fin.Return - BS'!K245","v":0}]
[{"$f":"'Standing Data'!$D$12","v":{"$error":"#N/A"}},{"$f":"'Standing Data'!$F$9","v":0},{"$f":"'Standing Data'!#REF!","v":{"$error":"#REF!"}},"Fin.Return","K635",{"$f":"'Fin.Return - BS'!K248","v":0}]
[{"$f":"'Standing Data'!$D$12","v":{"$error":"#N/A"}},{"$f":"'Standing Data'!$F$9","v":0},{"$f":"'Standing Data'!#REF!","v":{"$error":"#REF!"}},"Fin.Return","K636",{"$f":"'Fin.Return - BS'!K249","v":0}]
[{"$f":"'Standing Data'!$D$12","v":{"$error":"#N/A"}},{"$f":"'Standing Data'!$F$9","v":0},{"$f":"'Standing Data'!#REF!","v":{"$error":"#REF!"}},"Fin.Return","K637",{"$f":"'Fin.Return - BS'!K251","v":0}]
[{"$f":"'Standing Data'!$D$12","v":{"$error":"#N/A"}},{"$f":"'Standing Data'!$F$9","v":0},{"$f":"'Standing Data'!#REF!","v":{"$error":"#REF!"}},"Fin.Return","K638",{"$f":"'Fin.Return - BS'!K252","v":0}]
[{"$f":"'Standing Data'!$D$12","v":{"$error":"#N/A"}},{"$f":"'Standing Data'!$F$9","v":0},{"$f":"'Standing Data'!#REF!","v":{"$error":"#REF!"}},"Fin.Return","K640",{"$f":"'Fin.Return - BS'!K254","v":0}]
[{"$f":"'Standing Data'!$D$12","v":{"$error":"#N/A"}},{"$f":"'Standing Data'!$F$9","v":0},{"$f":"'Standing Data'!#REF!","v":{"$error":"#REF!"}},"Fin.Return","K767",{"$f":"'Fin.Return - BS'!K378","v":0}]
[{"$f":"'Standing Data'!$D$12","v":{"$error":"#N/A"}},{"$f":"'Standing Data'!$F$9","v":0},{"$f":"'Standing Data'!#REF!","v":{"$error":"#REF!"}},"Fin.Return","K768",{"$f":"'Fin.Return - BS'!K379","v":0}]
[{"$f":"'Standing Data'!$D$12","v":{"$error":"#N/A"}},{"$f":"'Standing Data'!$F$9","v":0},{"$f":"'Standing Data'!#REF!","v":{"$error":"#REF!"}},"Fin.Return","K770",{"$f":"'Fin.Return - Other Notes'!#REF!","v":{"$error":"#REF!"}}]
[{"$f":"'Standing Data'!$D$12","v":{"$error":"#N/A"}},{"$f":"'Standing Data'!$F$9","v":0},{"$f":"'Standing Data'!#REF!","v":{"$error":"#REF!"}},"Fin.Return","K771",{"$f":"'Fin.Return - Other Notes'!#REF!","v":{"$error":"#REF!"}}]
[{"$f":"'Standing Data'!$D$12","v":{"$error":"#N/A"}},{"$f":"'Standing Data'!$F$9","v":0},{"$f":"'Standing Data'!#REF!","v":{"$error":"#REF!"}},"Fin.Return","K772",{"$f":"'Fin.Return - Other Notes'!#REF!","v":{"$error":"#REF!"}}]
[{"$f":"'Standing Data'!$D$12","v":{"$error":"#N/A"}},{"$f":"'Standing Data'!$F$9","v":0},{"$f":"'Standing Data'!#REF!","v":{"$error":"#REF!"}},"Fin.Return","K773",{"$f":"'Fin.Return - Other Notes'!#REF!","v":{"$error":"#REF!"}}]
[{"$f":"'Standing Data'!$D$12","v":{"$error":"#N/A"}},{"$f":"'Standing Data'!$F$9","v":0},{"$f":"'Standing Data'!#REF!","v":{"$error":"#REF!"}},"Fin.Return","K774",{"$f":"'Fin.Return - Other Notes'!#REF!","v":{"$error":"#REF!"}}]
[{"$f":"'Standing Data'!$D$12","v":{"$error":"#N/A"}},{"$f":"'Standing Data'!$F$9","v":0},{"$f":"'Standing Data'!#REF!","v":{"$error":"#REF!"}},"Fin.Return","K775",{"$f":"'Fin.Return - Other Notes'!#REF!","v":{"$error":"#REF!"}}]
[{"$f":"'Standing Data'!$D$12","v":{"$error":"#N/A"}},{"$f":"'Standing Data'!$F$9","v":0},{"$f":"'Standing Data'!#REF!","v":{"$error":"#REF!"}},"Fin.Return","K776",{"$f":"'Fin.Return - BS'!K381","v":0}]
[{"$f":"'Standing Data'!$D$12","v":{"$error":"#N/A"}},{"$f":"'Standing Data'!$F$9","v":0},{"$f":"'Standing Data'!#REF!","v":{"$error":"#REF!"}},"Fin.Return","K777",{"$f":"'Fin.Return - BS'!K382","v":0}]
[{"$f":"'Standing Data'!$D$12","v":{"$error":"#N/A"}},{"$f":"'Standing Data'!$F$9","v":0},{"$f":"'Standing Data'!#REF!","v":{"$error":"#REF!"}},"Fin.Return","K779",{"$f":"'Fin.Return - BS'!K384","v":0}]
[{"$f":"'Standing Data'!$D$12","v":{"$error":"#N/A"}},{"$f":"'Standing Data'!$F$9","v":0},{"$f":"'Standing Data'!#REF!","v":{"$error":"#REF!"}},"Fin.Return","K780",{"$f":"'Fin.Return - BS'!K385","v":0}]
[{"$f":"'Standing Data'!$D$12","v":{"$error":"#N/A"}},{"$f":"'Standing Data'!$F$9","v":0},{"$f":"'Standing Data'!#REF!","v":{"$error":"#REF!"}},"Fin.Return","K782",{"$f":"'Fin.Return - BS'!K387","v":0}]
[{"$f":"'Standing Data'!$D$12","v":{"$error":"#N/A"}},{"$f":"'Standing Data'!$F$9","v":0},{"$f":"'Standing Data'!#REF!","v":{"$error":"#REF!"}},"Fin.Return","K783",{"$f":"'Fin.Return - BS'!K388","v":0}]
[{"$f":"'Standing Data'!$D$12","v":{"$error":"#N/A"}},{"$f":"'Standing Data'!$F$9","v":0},{"$f":"'Standing Data'!#REF!","v":{"$error":"#REF!"}},"Fin.Return","K785",{"$f":"'Fin.Return - BS'!K390","v":0}]
[{"$f":"'Standing Data'!$D$12","v":{"$error":"#N/A"}},{"$f":"'Standing Data'!$F$9","v":0},{"$f":"'Standing Data'!#REF!","v":{"$error":"#REF!"}},"Fin.Return","K787",{"$f":"'Fin.Return - BS'!K392","v":0}]
[{"$f":"'Standing Data'!$D$12","v":{"$error":"#N/A"}},{"$f":"'Standing Data'!$F$9","v":0},{"$f":"'Standing Data'!#REF!","v":{"$error":"#REF!"}},"Fin.Return","K789",{"$f":"'Fin.Return - Other Notes'!#REF!","v":{"$error":"#REF!"}}]
[{"$f":"'Standing Data'!$D$12","v":{"$error":"#N/A"}},{"$f":"'Standing Data'!$F$9","v":0},{"$f":"'Standing Data'!#REF!","v":{"$error":"#REF!"}},"Fin.Return","K790",{"$f":"'Fin.Return - Other Notes'!#REF!","v":{"$error":"#REF!"}}]
[{"$f":"'Standing Data'!$D$12","v":{"$error":"#N/A"}},{"$f":"'Standing Data'!$F$9","v":0},{"$f":"'Standing Data'!#REF!","v":{"$error":"#REF!"}},"Fin.Return","K791",{"$f":"'Fin.Return - Other Notes'!#REF!","v":{"$error":"#REF!"}}]
[{"$f":"'Standing Data'!$D$12","v":{"$error":"#N/A"}},{"$f":"'Standing Data'!$F$9","v":0},{"$f":"'Standing Data'!#REF!","v":{"$error":"#REF!"}},"Fin.Return","K792",{"$f":"'Fin.Return - Other Notes'!#REF!","v":{"$error":"#REF!"}}]
[{"$f":"'Standing Data'!$D$12","v":{"$error":"#N/A"}},{"$f":"'Standing Data'!$F$9","v":0},{"$f":"'Standing Data'!#REF!","v":{"$error":"#REF!"}},"Fin.Return","K793",{"$f":"'Fin.Return - Other Notes'!#REF!","v":{"$error":"#REF!"}}]
[{"$f":"'Standing Data'!$D$12","v":{"$error":"#N/A"}},{"$f":"'Standing Data'!$F$9","v":0},{"$f":"'Standing Data'!#REF!","v":{"$error":"#REF!"}},"Fin.Return","K794",{"$f":"'Fin.Return - Other Notes'!#REF!","v":{"$error":"#REF!"}}]
[{"$f":"'Standing Data'!$D$12","v":{"$error":"#N/A"}},{"$f":"'Standing Data'!$F$9","v":0},{"$f":"'Standing Data'!#REF!","v":{"$error":"#REF!"}},"Fin.Return","K795",{"$f":"'Fin.Return - BS'!K394","v":0}]
[{"$f":"'Standing Data'!$D$12","v":{"$error":"#N/A"}},{"$f":"'Standing Data'!$F$9","v":0},{"$f":"'Standing Data'!#REF!","v":{"$error":"#REF!"}},"Fin.Return","K796",{"$f":"'Fin.Return - BS'!K395","v":0}]
[{"$f":"'Standing Data'!$D$12","v":{"$error":"#N/A"}},{"$f":"'Standing Data'!$F$9","v":0},{"$f":"'Standing Data'!#REF!","v":{"$error":"#REF!"}},"Fin.Return","K797",{"$f":"'Fin.Return - BS'!K396","v":0}]
[{"$f":"'Standing Data'!$D$12","v":{"$error":"#N/A"}},{"$f":"'Standing Data'!$F$9","v":0},{"$f":"'Standing Data'!#REF!","v":{"$error":"#REF!"}},"Fin.Return","K798",{"$f":"'Fin.Return - BS'!K397","v":0}]
[{"$f":"'Standing Data'!$D$12","v":{"$error":"#N/A"}},{"$f":"'Standing Data'!$F$9","v":0},{"$f":"'Standing Data'!#REF!","v":{"$error":"#REF!"}},"Fin.Return","K799",{"$f":"'Fin.Return - BS'!K398","v":0}]
[{"$f":"'Standing Data'!$D$12","v":{"$error":"#N/A"}},{"$f":"'Standing Data'!$F$9","v":0},{"$f":"'Standing Data'!#REF!","v":{"$error":"#REF!"}},"Fin.Return","K800",{"$f":"'Fin.Return - BS'!K399","v":0}]
[{"$f":"'Standing Data'!$D$12","v":{"$error":"#N/A"}},{"$f":"'Standing Data'!$F$9","v":0},{"$f":"'Standing Data'!#REF!","v":{"$error":"#REF!"}},"Fin.Return","K802",{"$f":"'Fin.Return - BS'!K401","v":0}]
[{"$f":"'Standing Data'!$D$12","v":{"$error":"#N/A"}},{"$f":"'Standing Data'!$F$9","v":0},{"$f":"'Standing Data'!#REF!","v":{"$error":"#REF!"}},"Fin.Return","K803",{"$f":"'Fin.Return - BS'!K402","v":0}]
[{"$f":"'Standing Data'!$D$12","v":{"$error":"#N/A"}},{"$f":"'Standing Data'!$F$9","v":0},{"$f":"'Standing Data'!#REF!","v":{"$error":"#REF!"}},"Fin.Return","K805",{"$f":"'Fin.Return - BS'!K404","v":0}]
[{"$f":"'Standing Data'!$D$12","v":{"$error":"#N/A"}},{"$f":"'Standing Data'!$F$9","v":0},{"$f":"'Standing Data'!#REF!","v":{"$error":"#REF!"}},"Fin.Return","K807",{"$f":"'Fin.Return - BS'!K406","v":0}]
[{"$f":"'Standing Data'!$D$12","v":{"$error":"#N/A"}},{"$f":"'Standing Data'!$F$9","v":0},{"$f":"'Standing Data'!#REF!","v":{"$error":"#REF!"}},"Fin.Return","K809",{"$f":"'Fin.Return - BS'!K408","v":0}]
[{"$f":"'Standing Data'!$D$12","v":{"$error":"#N/A"}},{"$f":"'Standing Data'!$F$9","v":0},{"$f":"'Standing Data'!#REF!","v":{"$error":"#REF!"}},"Fin.Return","K811",{"$f":"'Fin.Return - BS'!K410","v":0}]
[{"$f":"'Standing Data'!$D$12","v":{"$error":"#N/A"}},{"$f":"'Standing Data'!$F$9","v":0},{"$f":"'Standing Data'!#REF!","v":{"$error":"#REF!"}},"Fin.Return","K908",{"$f":"'Fin.Return - Other Notes'!K228","v":0}]
[{"$f":"'Standing Data'!$D$12","v":{"$error":"#N/A"}},{"$f":"'Standing Data'!$F$9","v":0},{"$f":"'Standing Data'!#REF!","v":{"$error":"#REF!"}},"Fin.Return","K909",{"$f":"'Fin.Return - Other Notes'!K229","v":0}]
[{"$f":"'Standing Data'!$D$12","v":{"$error":"#N/A"}},{"$f":"'Standing Data'!$F$9","v":0},{"$f":"'Standing Data'!#REF!","v":{"$error":"#REF!"}},"Fin.Return","K910",{"$f":"'Fin.Return - Other Notes'!K230","v":0}]
[{"$f":"'Standing Data'!$D$12","v":{"$error":"#N/A"}},{"$f":"'Standing Data'!$F$9","v":0},{"$f":"'Standing Data'!#REF!","v":{"$error":"#REF!"}},"Fin.Return","K911",{"$f":"'Fin.Return - Other Notes'!K231","v":0}]
[{"$f":"'Standing Data'!$D$12","v":{"$error":"#N/A"}},{"$f":"'Standing Data'!$F$9","v":0},{"$f":"'Standing Data'!#REF!","v":{"$error":"#REF!"}},"Fin.Return","K912",{"$f":"'Fin.Return - Other Notes'!K232","v":0}]
[{"$f":"'Standing Data'!$D$12","v":{"$error":"#N/A"}},{"$f":"'Standing Data'!$F$9","v":0},{"$f":"'Standing Data'!#REF!","v":{"$error":"#REF!"}},"Fin.Return","K914",{"$f":"'Fin.Return - Other Notes'!K234","v":0}]
[{"$f":"'Standing Data'!$D$12","v":{"$error":"#N/A"}},{"$f":"'Standing Data'!$F$9","v":0},{"$f":"'Standing Data'!#REF!","v":{"$error":"#REF!"}},"Fin.Return","K913",{"$f":"'Fin.Return - Other Notes'!K233","v":0}]
[{"$f":"'Standing Data'!$D$12","v":{"$error":"#N/A"}},{"$f":"'Standing Data'!$F$9","v":0},{"$f":"'Standing Data'!#REF!","v":{"$error":"#REF!"}},"Fin.Return","K916",{"$f":"'Fin.Return - Other Notes'!K236","v":0}]
[{"$f":"'Standing Data'!$D$12","v":{"$error":"#N/A"}},{"$f":"'Standing Data'!$F$9","v":0},{"$f":"'Standing Data'!#REF!","v":{"$error":"#REF!"}},"Fin.Return","K917",{"$f":"'Fin.Return - Other Notes'!K237","v":0}]
[{"$f":"'Standing Data'!$D$12","v":{"$error":"#N/A"}},{"$f":"'Standing Data'!$F$9","v":0},{"$f":"'Standing Data'!#REF!","v":{"$error":"#REF!"}},"Fin.Return","K918",{"$f":"'Fin.Return - Other Notes'!K238","v":0}]
[{"$f":"'Standing Data'!$D$12","v":{"$error":"#N/A"}},{"$f":"'Standing Data'!$F$9","v":0},{"$f":"'Standing Data'!#REF!","v":{"$error":"#REF!"}},"Fin.Return","K919",{"$f":"'Fin.Return - Other Notes'!K239","v":0}]
[{"$f":"'Standing Data'!$D$12","v":{"$error":"#N/A"}},{"$f":"'Standing Data'!$F$9","v":0},{"$f":"'Standing Data'!#REF!","v":{"$error":"#REF!"}},"Fin.Return","K920",{"$f":"'Fin.Return - Other Notes'!K240","v":0}]
[{"$f":"'Standing Data'!$D$12","v":{"$error":"#N/A"}},{"$f":"'Standing Data'!$F$9","v":0},{"$f":"'Standing Data'!#REF!","v":{"$error":"#REF!"}},"Fin.Return","K922",{"$f":"'Fin.Return - Other Notes'!K242","v":0}]
[{"$f":"'Standing Data'!$D$12","v":{"$error":"#N/A"}},{"$f":"'Standing Data'!$F$9","v":0},{"$f":"'Standing Data'!#REF!","v":{"$error":"#REF!"}},"Fin.Return","K924",{"$f":"'Fin.Return - Other Notes'!K244","v":0}]
[{"$f":"'Standing Data'!$D$12","v":{"$error":"#N/A"}},{"$f":"'Standing Data'!$F$9","v":0},{"$f":"'Standing Data'!#REF!","v":{"$error":"#REF!"}},"Fin.Return","K925",{"$f":"'Fin.Return - Other Notes'!K245","v":0}]
[{"$f":"'Standing Data'!$D$12","v":{"$error":"#N/A"}},{"$f":"'Standing Data'!$F$9","v":0},{"$f":"'Standing Data'!#REF!","v":{"$error":"#REF!"}},"Fin.Return","K926",{"$f":"'Fin.Return - Other Notes'!K246","v":0}]
[{"$f":"'Standing Data'!$D$12","v":{"$error":"#N/A"}},{"$f":"'Standing Data'!$F$9","v":0},{"$f":"'Standing Data'!#REF!","v":{"$error":"#REF!"}},"Fin.Return","K927",{"$f":"'Fin.Return - Other Notes'!K247","v":0}]
[{"$f":"'Standing Data'!$D$12","v":{"$error":"#N/A"}},{"$f":"'Standing Data'!$F$9","v":0},{"$f":"'Standing Data'!#REF!","v":{"$error":"#REF!"}},"Fin.Return","K928",{"$f":"'Fin.Return - Other Notes'!K248","v":0}]
[{"$f":"'Standing Data'!$D$12","v":{"$error":"#N/A"}},{"$f":"'Standing Data'!$F$9","v":0},{"$f":"'Standing Data'!#REF!","v":{"$error":"#REF!"}},"Fin.Return","K929",{"$f":"'Fin.Return - Other Notes'!K249","v":0}]
[{"$f":"'Standing Data'!$D$12","v":{"$error":"#N/A"}},{"$f":"'Standing Data'!$F$9","v":0},{"$f":"'Standing Data'!#REF!","v":{"$error":"#REF!"}},"Fin.Return","K930",{"$f":"'Fin.Return - Other Notes'!K250","v":0}]
[{"$f":"'Standing Data'!$D$12","v":{"$error":"#N/A"}},{"$f":"'Standing Data'!$F$9","v":0},{"$f":"'Standing Data'!#REF!","v":{"$error":"#REF!"}},"Fin.Return","K931",{"$f":"'Fin.Return - Other Notes'!K251","v":0}]
[{"$f":"'Standing Data'!$D$12","v":{"$error":"#N/A"}},{"$f":"'Standing Data'!$F$9","v":0},{"$f":"'Standing Data'!#REF!","v":{"$error":"#REF!"}},"Fin.Return","K933",{"$f":"'Fin.Return - Other Notes'!K253","v":0}]
[{"$f":"'Standing Data'!$D$12","v":{"$error":"#N/A"}},{"$f":"'Standing Data'!$F$9","v":0},{"$f":"'Standing Data'!#REF!","v":{"$error":"#REF!"}},"Fin.Return","K934",{"$f":"'Fin.Return - Other Notes'!K254","v":0}]
[{"$f":"'Standing Data'!$D$12","v":{"$error":"#N/A"}},{"$f":"'Standing Data'!$F$9","v":0},{"$f":"'Standing Data'!#REF!","v":{"$error":"#REF!"}},"Fin.Return","K935",{"$f":"'Fin.Return - Other Notes'!K255","v":0}]
[{"$f":"'Standing Data'!$D$12","v":{"$error":"#N/A"}},{"$f":"'Standing Data'!$F$9","v":0},{"$f":"'Standing Data'!#REF!","v":{"$error":"#REF!"}},"Fin.Return","K936",{"$f":"'Fin.Return - Other Notes'!K256","v":0}]
[{"$f":"'Standing Data'!$D$12","v":{"$error":"#N/A"}},{"$f":"'Standing Data'!$F$9","v":0},{"$f":"'Standing Data'!#REF!","v":{"$error":"#REF!"}},"Fin.Return","K938",{"$f":"'Fin.Return - Other Notes'!K258","v":0}]
[{"$f":"'Standing Data'!$D$12","v":{"$error":"#N/A"}},{"$f":"'Standing Data'!$F$9","v":0},{"$f":"'Standing Data'!#REF!","v":{"$error":"#REF!"}},"Fin.Return","K940",{"$f":"'Fin.Return - Other Notes'!K260","v":0}]
[{"$f":"'Standing Data'!$D$12","v":{"$error":"#N/A"}},{"$f":"'Standing Data'!$F$9","v":0},{"$f":"'Standing Data'!#REF!","v":{"$error":"#REF!"}},"Fin.Return","K942",{"$f":"'Fin.Return - Other Notes'!K262","v":0}]
[{"$f":"'Standing Data'!$D$12","v":{"$error":"#N/A"}},{"$f":"'Standing Data'!$F$9","v":0},{"$f":"'Standing Data'!#REF!","v":{"$error":"#REF!"}},"Fin.Return","K1009",{"$f":"'Fin.Return - Other Notes'!K397","v":0}]
[{"$f":"'Standing Data'!$D$12","v":{"$error":"#N/A"}},{"$f":"'Standing Data'!$F$9","v":0},{"$f":"'Standing Data'!#REF!","v":{"$error":"#REF!"}},"Fin.Return","K1010",{"$f":"'Fin.Return - Other Notes'!K398","v":0}]
[{"$f":"'Standing Data'!$D$12","v":{"$error":"#N/A"}},{"$f":"'Standing Data'!$F$9","v":0},{"$f":"'Standing Data'!#REF!","v":{"$error":"#REF!"}},"Fin.Return","K1011",{"$f":"'Fin.Return - Other Notes'!K399","v":0}]
[{"$f":"'Standing Data'!$D$12","v":{"$error":"#N/A"}},{"$f":"'Standing Data'!$F$9","v":0},{"$f":"'Standing Data'!#REF!","v":{"$error":"#REF!"}},"Fin.Return","K1013",{"$f":"'Fin.Return - Other Notes'!K401","v":0}]
[{"$f":"'Standing Data'!$D$12","v":{"$error":"#N/A"}},{"$f":"'Standing Data'!$F$9","v":0},{"$f":"'Standing Data'!#REF!","v":{"$error":"#REF!"}},"Fin.Return","K1014",{"$f":"'Fin.Return - Other Notes'!K402","v":0}]
[{"$f":"'Standing Data'!$D$12","v":{"$error":"#N/A"}},{"$f":"'Standing Data'!$F$9","v":0},{"$f":"'Standing Data'!#REF!","v":{"$error":"#REF!"}},"Fin.Return","K1015",{"$f":"'Fin.Return - Other Notes'!K403","v":0}]
[{"$f":"'Standing Data'!$D$12","v":{"$error":"#N/A"}},{"$f":"'Standing Data'!$F$9","v":0},{"$f":"'Standing Data'!#REF!","v":{"$error":"#REF!"}},"Fin.Return","K1017",{"$f":"'Fin.Return - Other Notes'!K405","v":0}]
[{"$f":"'Standing Data'!$D$12","v":{"$error":"#N/A"}},{"$f":"'Standing Data'!$F$9","v":0},{"$f":"'Standing Data'!#REF!","v":{"$error":"#REF!"}},"Fin.Return","K1018",{"$f":"'Fin.Return - Other Notes'!K406","v":0}]
[{"$f":"'Standing Data'!$D$12","v":{"$error":"#N/A"}},{"$f":"'Standing Data'!$F$9","v":0},{"$f":"'Standing Data'!#REF!","v":{"$error":"#REF!"}},"Fin.Return","K1019",{"$f":"'Fin.Return - Other Notes'!K407","v":0}]
[{"$f":"'Standing Data'!$D$12","v":{"$error":"#N/A"}},{"$f":"'Standing Data'!$F$9","v":0},{"$f":"'Standing Data'!#REF!","v":{"$error":"#REF!"}},"Fin.Return","K1021",{"$f":"'Fin.Return - Other Notes'!K409","v":0}]
[{"$f":"'Standing Data'!$D$12","v":{"$error":"#N/A"}},{"$f":"'Standing Data'!$F$9","v":0},{"$f":"'Standing Data'!#REF!","v":{"$error":"#REF!"}},"Fin.Return","K1022",{"$f":"'Fin.Return - Other Notes'!K410","v":0}]
[{"$f":"'Standing Data'!$D$12","v":{"$error":"#N/A"}},{"$f":"'Standing Data'!$F$9","v":0},{"$f":"'Standing Data'!#REF!","v":{"$error":"#REF!"}},"Fin.Return","K1024",{"$f":"'Fin.Return - Other Notes'!K412","v":0}]
[{"$f":"'Standing Data'!$D$12","v":{"$error":"#N/A"}},{"$f":"'Standing Data'!$F$9","v":0},{"$f":"'Standing Data'!#REF!","v":{"$error":"#REF!"}},"Fin.Return","K1082",{"$f":"'Fin.Return - Other Notes'!K456","v":0}]
[{"$f":"'Standing Data'!$D$12","v":{"$error":"#N/A"}},{"$f":"'Standing Data'!$F$9","v":0},{"$f":"'Standing Data'!#REF!","v":{"$error":"#REF!"}},"Fin.Return","K1083",{"$f":"'Fin.Return - Other Notes'!K457","v":0}]
[{"$f":"'Standing Data'!$D$12","v":{"$error":"#N/A"}},{"$f":"'Standing Data'!$F$9","v":0},{"$f":"'Standing Data'!#REF!","v":{"$error":"#REF!"}},"Fin.Return","K1084",{"$f":"'Fin.Return - Other Notes'!K458","v":0}]
[{"$f":"'Standing Data'!$D$12","v":{"$error":"#N/A"}},{"$f":"'Standing Data'!$F$9","v":0},{"$f":"'Standing Data'!#REF!","v":{"$error":"#REF!"}},"Fin.Return","K1086",{"$f":"'Fin.Return - Other Notes'!K460","v":0}]
[{"$f":"'Standing Data'!$D$12","v":{"$error":"#N/A"}},{"$f":"'Standing Data'!$F$9","v":0},{"$f":"'Standing Data'!#REF!","v":{"$error":"#REF!"}},"Fin.Return","K1087",{"$f":"'Fin.Return - Other Notes'!K461","v":0}]
[{"$f":"'Standing Data'!$D$12","v":{"$error":"#N/A"}},{"$f":"'Standing Data'!$F$9","v":0},{"$f":"'Standing Data'!#REF!","v":{"$error":"#REF!"}},"Fin.Return","K1088",{"$f":"'Fin.Return - Other Notes'!K462","v":0}]
[{"$f":"'Standing Data'!$D$12","v":{"$error":"#N/A"}},{"$f":"'Standing Data'!$F$9","v":0},{"$f":"'Standing Data'!#REF!","v":{"$error":"#REF!"}},"Fin.Return","K1090",{"$f":"'Fin.Return - Other Notes'!K464","v":0}]
[{"$f":"'Standing Data'!$D$12","v":{"$error":"#N/A"}},{"$f":"'Standing Data'!$F$9","v":0},{"$f":"'Standing Data'!#REF!","v":{"$error":"#REF!"}},"Fin.Return","K1091",{"$f":"'Fin.Return - Other Notes'!K465","v":0}]
[{"$f":"'Standing Data'!$D$12","v":{"$error":"#N/A"}},{"$f":"'Standing Data'!$F$9","v":0},{"$f":"'Standing Data'!#REF!","v":{"$error":"#REF!"}},"Fin.Return","K1092",{"$f":"'Fin.Return - Other Notes'!K466","v":0}]
[{"$f":"'Standing Data'!$D$12","v":{"$error":"#N/A"}},{"$f":"'Standing Data'!$F$9","v":0},{"$f":"'Standing Data'!#REF!","v":{"$error":"#REF!"}},"Fin.Return","K1094",{"$f":"'Fin.Return - Other Notes'!K468","v":0}]
[{"$f":"'Standing Data'!$D$12","v":{"$error":"#N/A"}},{"$f":"'Standing Data'!$F$9","v":0},{"$f":"'Standing Data'!#REF!","v":{"$error":"#REF!"}},"Fin.Return","K1095",{"$f":"'Fin.Return - Other Notes'!K469","v":0}]
[{"$f":"'Standing Data'!$D$12","v":{"$error":"#N/A"}},{"$f":"'Standing Data'!$F$9","v":0},{"$f":"'Standing Data'!#REF!","v":{"$error":"#REF!"}},"Fin.Return","K1097",{"$f":"'Fin.Return - Other Notes'!K471","v":0}]
[{"$f":"'Standing Data'!$D$12","v":{"$error":"#N/A"}},{"$f":"'Standing Data'!$F$9","v":0},{"$f":"'Standing Data'!#REF!","v":{"$error":"#REF!"}},"Fin.Return","K1111",{"$f":"'Fin.Return - Other Notes'!K485","v":0}]
[{"$f":"'Standing Data'!$D$12","v":{"$error":"#N/A"}},{"$f":"'Standing Data'!$F$9","v":0},{"$f":"'Standing Data'!#REF!","v":{"$error":"#REF!"}},"Fin.Return","K1112",{"$f":"'Fin.Return - Other Notes'!K486","v":0}]
[{"$f":"'Standing Data'!$D$12","v":{"$error":"#N/A"}},{"$f":"'Standing Data'!$F$9","v":0},{"$f":"'Standing Data'!#REF!","v":{"$error":"#REF!"}},"Fin.Return","K1113",{"$f":"'Fin.Return - Other Notes'!K487","v":0}]
[{"$f":"'Standing Data'!$D$12","v":{"$error":"#N/A"}},{"$f":"'Standing Data'!$F$9","v":0},{"$f":"'Standing Data'!#REF!","v":{"$error":"#REF!"}},"Fin.Return","K1115",{"$f":"'Fin.Return - Other Notes'!K489","v":0}]
[{"$f":"'Standing Data'!$D$12","v":{"$error":"#N/A"}},{"$f":"'Standing Data'!$F$9","v":0},{"$f":"'Standing Data'!#REF!","v":{"$error":"#REF!"}},"Fin.Return","K1131",{"$f":"'Fin.Return - Other Notes'!K505","v":0}]
[{"$f":"'Standing Data'!$D$12","v":{"$error":"#N/A"}},{"$f":"'Standing Data'!$F$9","v":0},{"$f":"'Standing Data'!#REF!","v":{"$error":"#REF!"}},"Fin.Return","K1132",{"$f":"'Fin.Return - Other Notes'!K506","v":0}]
[{"$f":"'Standing Data'!$D$12","v":{"$error":"#N/A"}},{"$f":"'Standing Data'!$F$9","v":0},{"$f":"'Standing Data'!#REF!","v":{"$error":"#REF!"}},"Fin.Return","K1133",{"$f":"'Fin.Return - Other Notes'!K507","v":0}]
[{"$f":"'Standing Data'!$D$12","v":{"$error":"#N/A"}},{"$f":"'Standing Data'!$F$9","v":0},{"$f":"'Standing Data'!#REF!","v":{"$error":"#REF!"}},"Fin.Return","K1135",{"$f":"'Fin.Return - Other Notes'!K509","v":0}]
[{"$f":"'Standing Data'!$D$12","v":{"$error":"#N/A"}},{"$f":"'Standing Data'!$F$9","v":0},{"$f":"'Standing Data'!#REF!","v":{"$error":"#REF!"}},"Fin.Return","K1140",{"$f":"'Fin.Return - Other Notes'!K514","v":0}]
[{"$f":"'Standing Data'!$D$12","v":{"$error":"#N/A"}},{"$f":"'Standing Data'!$F$9","v":0},{"$f":"'Standing Data'!#REF!","v":{"$error":"#REF!"}},"Fin.Return","K1141",{"$f":"'Fin.Return - Other Notes'!K515","v":0}]
[{"$f":"'Standing Data'!$D$12","v":{"$error":"#N/A"}},{"$f":"'Standing Data'!$F$9","v":0},{"$f":"'Standing Data'!#REF!","v":{"$error":"#REF!"}},"Fin.Return","K1142",{"$f":"'Fin.Return - Other Notes'!K516","v":0}]
[{"$f":"'Standing Data'!$D$12","v":{"$error":"#N/A"}},{"$f":"'Standing Data'!$F$9","v":0},{"$f":"'Standing Data'!#REF!","v":{"$error":"#REF!"}},"Fin.Return","K1144",{"$f":"'Fin.Return - Other Notes'!K518","v":0}]
[{"$f":"'Standing Data'!$D$12","v":{"$error":"#N/A"}},{"$f":"'Standing Data'!$F$9","v":0},{"$f":"'Standing Data'!#REF!","v":{"$error":"#REF!"}},"Fin.Return","K1149",{"$f":"'Fin.Return - SOFA'!#REF!","v":{"$error":"#REF!"}}]
[{"$f":"'Standing Data'!$D$12","v":{"$error":"#N/A"}},{"$f":"'Standing Data'!$F$9","v":0},{"$f":"'Standing Data'!#REF!","v":{"$error":"#REF!"}},"Fin.Return","K1150",{"$f":"'Fin.Return - SOFA'!#REF!","v":{"$error":"#REF!"}}]
[{"$f":"'Standing Data'!$D$12","v":{"$error":"#N/A"}},{"$f":"'Standing Data'!$F$9","v":0},{"$f":"'Standing Data'!#REF!","v":{"$error":"#REF!"}},"Fin.Return","K1151",{"$f":"'Fin.Return - SOFA'!#REF!","v":{"$error":"#REF!"}}]
[{"$f":"'Standing Data'!$D$12","v":{"$error":"#N/A"}},{"$f":"'Standing Data'!$F$9","v":0},{"$f":"'Standing Data'!#REF!","v":{"$error":"#REF!"}},"Fin.Return","K1153",{"$f":"'Fin.Return - SOFA'!#REF!","v":{"$error":"#REF!"}}]
[{"$f":"'Standing Data'!$D$12","v":{"$error":"#N/A"}},{"$f":"'Standing Data'!$F$9","v":0},{"$f":"'Standing Data'!#REF!","v":{"$error":"#REF!"}},"Fin.Return","L468",{"$f":"'Fin.Return - BS'!L64","v":0}]
[{"$f":"'Standing Data'!$D$12","v":{"$error":"#N/A"}},{"$f":"'Standing Data'!$F$9","v":0},{"$f":"'Standing Data'!#REF!","v":{"$error":"#REF!"}},"Fin.Return","L469",{"$f":"'Fin.Return - BS'!L65","v":0}]
[{"$f":"'Standing Data'!$D$12","v":{"$error":"#N/A"}},{"$f":"'Standing Data'!$F$9","v":0},{"$f":"'Standing Data'!#REF!","v":{"$error":"#REF!"}},"Fin.Return","L470",{"$f":"'Fin.Return - BS'!L67","v":0}]
[{"$f":"'Standing Data'!$D$12","v":{"$error":"#N/A"}},{"$f":"'Standing Data'!$F$9","v":0},{"$f":"'Standing Data'!#REF!","v":{"$error":"#REF!"}},"Fin.Return","L471",{"$f":"'Fin.Return - BS'!L68","v":0}]
[{"$f":"'Standing Data'!$D$12","v":{"$error":"#N/A"}},{"$f":"'Standing Data'!$F$9","v":0},{"$f":"'Standing Data'!#REF!","v":{"$error":"#REF!"}},"Fin.Return","L472",{"$f":"'Fin.Return - BS'!L70","v":0}]
[{"$f":"'Standing Data'!$D$12","v":{"$error":"#N/A"}},{"$f":"'Standing Data'!$F$9","v":0},{"$f":"'Standing Data'!#REF!","v":{"$error":"#REF!"}},"Fin.Return","L473",{"$f":"'Fin.Return - BS'!L72","v":0}]
[{"$f":"'Standing Data'!$D$12","v":{"$error":"#N/A"}},{"$f":"'Standing Data'!$F$9","v":0},{"$f":"'Standing Data'!#REF!","v":{"$error":"#REF!"}},"Fin.Return","L474",{"$f":"'Fin.Return - BS'!L74","v":0}]
[{"$f":"'Standing Data'!$D$12","v":{"$error":"#N/A"}},{"$f":"'Standing Data'!$F$9","v":0},{"$f":"'Standing Data'!#REF!","v":{"$error":"#REF!"}},"Fin.Return","L475",{"$f":"'Fin.Return - BS'!L75","v":0}]
[{"$f":"'Standing Data'!$D$12","v":{"$error":"#N/A"}},{"$f":"'Standing Data'!$F$9","v":0},{"$f":"'Standing Data'!#REF!","v":{"$error":"#REF!"}},"Fin.Return","L477",{"$f":"'Fin.Return - BS'!L77","v":0}]
[{"$f":"'Standing Data'!$D$12","v":{"$error":"#N/A"}},{"$f":"'Standing Data'!$F$9","v":0},{"$f":"'Standing Data'!#REF!","v":{"$error":"#REF!"}},"Fin.Return","L480",{"$f":"'Fin.Return - BS'!L80","v":0}]
[{"$f":"'Standing Data'!$D$12","v":{"$error":"#N/A"}},{"$f":"'Standing Data'!$F$9","v":0},{"$f":"'Standing Data'!#REF!","v":{"$error":"#REF!"}},"Fin.Return","L481",{"$f":"'Fin.Return - BS'!L81","v":0}]
[{"$f":"'Standing Data'!$D$12","v":{"$error":"#N/A"}},{"$f":"'Standing Data'!$F$9","v":0},{"$f":"'Standing Data'!#REF!","v":{"$error":"#REF!"}},"Fin.Return","L482",{"$f":"'Fin.Return - BS'!L82","v":0}]
[{"$f":"'Standing Data'!$D$12","v":{"$error":"#N/A"}},{"$f":"'Standing Data'!$F$9","v":0},{"$f":"'Standing Data'!#REF!","v":{"$error":"#REF!"}},"Fin.Return","L483",{"$f":"'Fin.Return - BS'!L84","v":0}]
[{"$f":"'Standing Data'!$D$12","v":{"$error":"#N/A"}},{"$f":"'Standing Data'!$F$9","v":0},{"$f":"'Standing Data'!#REF!","v":{"$error":"#REF!"}},"Fin.Return","L484",{"$f":"'Fin.Return - BS'!L85","v":0}]
[{"$f":"'Standing Data'!$D$12","v":{"$error":"#N/A"}},{"$f":"'Standing Data'!$F$9","v":0},{"$f":"'Standing Data'!#REF!","v":{"$error":"#REF!"}},"Fin.Return","L486",{"$f":"'Fin.Return - BS'!L87","v":0}]
[{"$f":"'Standing Data'!$D$12","v":{"$error":"#N/A"}},{"$f":"'Standing Data'!$F$9","v":0},{"$f":"'Standing Data'!#REF!","v":{"$error":"#REF!"}},"Fin.Return","L489",{"$f":"'Fin.Return - BS'!L90","v":0}]
[{"$f":"'Standing Data'!$D$12","v":{"$error":"#N/A"}},{"$f":"'Standing Data'!$F$9","v":0},{"$f":"'Standing Data'!#REF!","v":{"$error":"#REF!"}},"Fin.Return","L490",{"$f":"'Fin.Return - BS'!L91","v":0}]
[{"$f":"'Standing Data'!$D$12","v":{"$error":"#N/A"}},{"$f":"'Standing Data'!$F$9","v":0},{"$f":"'Standing Data'!#REF!","v":{"$error":"#REF!"}},"Fin.Return","L491",{"$f":"'Fin.Return - BS'!L92","v":0}]
[{"$f":"'Standing Data'!$D$12","v":{"$error":"#N/A"}},{"$f":"'Standing Data'!$F$9","v":0},{"$f":"'Standing Data'!#REF!","v":{"$error":"#REF!"}},"Fin.Return","L493",{"$f":"'Fin.Return - BS'!L95","v":0}]
[{"$f":"'Standing Data'!$D$12","v":{"$error":"#N/A"}},{"$f":"'Standing Data'!$F$9","v":0},{"$f":"'Standing Data'!#REF!","v":{"$error":"#REF!"}},"Fin.Return","L496",{"$f":"'Fin.Return - BS'!L98","v":0}]
[{"$f":"'Standing Data'!$D$12","v":{"$error":"#N/A"}},{"$f":"'Standing Data'!$F$9","v":0},{"$f":"'Standing Data'!#REF!","v":{"$error":"#REF!"}},"Fin.Return","L499",{"$f":"'Fin.Return - BS'!L101","v":0}]
[{"$f":"'Standing Data'!$D$12","v":{"$error":"#N/A"}},{"$f":"'Standing Data'!$F$9","v":0},{"$f":"'Standing Data'!#REF!","v":{"$error":"#REF!"}},"Fin.Return","L503",{"$f":"'Fin.Return - BS'!L105","v":0}]
[{"$f":"'Standing Data'!$D$12","v":{"$error":"#N/A"}},{"$f":"'Standing Data'!$F$9","v":0},{"$f":"'Standing Data'!#REF!","v":{"$error":"#REF!"}},"Fin.Return","L504",{"$f":"'Fin.Return - BS'!L106","v":0}]
[{"$f":"'Standing Data'!$D$12","v":{"$error":"#N/A"}},{"$f":"'Standing Data'!$F$9","v":0},{"$f":"'Standing Data'!#REF!","v":{"$error":"#REF!"}},"Fin.Return","L505",{"$f":"'Fin.Return - BS'!L107","v":0}]
[{"$f":"'Standing Data'!$D$12","v":{"$error":"#N/A"}},{"$f":"'Standing Data'!$F$9","v":0},{"$f":"'Standing Data'!#REF!","v":{"$error":"#REF!"}},"Fin.Return","L514",{"$f":"'Fin.Return - BS'!L116","v":0}]
[{"$f":"'Standing Data'!$D$12","v":{"$error":"#N/A"}},{"$f":"'Standing Data'!$F$9","v":0},{"$f":"'Standing Data'!#REF!","v":{"$error":"#REF!"}},"Fin.Return","L515",{"$f":"'Fin.Return - BS'!L117","v":0}]
[{"$f":"'Standing Data'!$D$12","v":{"$error":"#N/A"}},{"$f":"'Standing Data'!$F$9","v":0},{"$f":"'Standing Data'!#REF!","v":{"$error":"#REF!"}},"Fin.Return","L517",{"$f":"'Fin.Return - BS'!L119","v":0}]
[{"$f":"'Standing Data'!$D$12","v":{"$error":"#N/A"}},{"$f":"'Standing Data'!$F$9","v":0},{"$f":"'Standing Data'!#REF!","v":{"$error":"#REF!"}},"Fin.Return","L519",{"$f":"'Fin.Return - BS'!L121","v":0}]
[{"$f":"'Standing Data'!$D$12","v":{"$error":"#N/A"}},{"$f":"'Standing Data'!$F$9","v":0},{"$f":"'Standing Data'!#REF!","v":{"$error":"#REF!"}},"Fin.Return","L565",{"$f":"'Fin.Return - BS'!L172","v":0}]
[{"$f":"'Standing Data'!$D$12","v":{"$error":"#N/A"}},{"$f":"'Standing Data'!$F$9","v":0},{"$f":"'Standing Data'!#REF!","v":{"$error":"#REF!"}},"Fin.Return","L566",{"$f":"'Fin.Return - BS'!L173","v":0}]
[{"$f":"'Standing Data'!$D$12","v":{"$error":"#N/A"}},{"$f":"'Standing Data'!$F$9","v":0},{"$f":"'Standing Data'!#REF!","v":{"$error":"#REF!"}},"Fin.Return","L567",{"$f":"'Fin.Return - BS'!L174","v":0}]
[{"$f":"'Standing Data'!$D$12","v":{"$error":"#N/A"}},{"$f":"'Standing Data'!$F$9","v":0},{"$f":"'Standing Data'!#REF!","v":{"$error":"#REF!"}},"Fin.Return","L568",{"$f":"'Fin.Return - BS'!L175","v":0}]
[{"$f":"'Standing Data'!$D$12","v":{"$error":"#N/A"}},{"$f":"'Standing Data'!$F$9","v":0},{"$f":"'Standing Data'!#REF!","v":{"$error":"#REF!"}},"Fin.Return","L569",{"$f":"'Fin.Return - BS'!L176","v":0}]
[{"$f":"'Standing Data'!$D$12","v":{"$error":"#N/A"}},{"$f":"'Standing Data'!$F$9","v":0},{"$f":"'Standing Data'!#REF!","v":{"$error":"#REF!"}},"Fin.Return","L570",{"$f":"'Fin.Return - BS'!L179","v":0}]
[{"$f":"'Standing Data'!$D$12","v":{"$error":"#N/A"}},{"$f":"'Standing Data'!$F$9","v":0},{"$f":"'Standing Data'!#REF!","v":{"$error":"#REF!"}},"Fin.Return","L571",{"$f":"'Fin.Return - BS'!L180","v":0}]
[{"$f":"'Standing Data'!$D$12","v":{"$error":"#N/A"}},{"$f":"'Standing Data'!$F$9","v":0},{"$f":"'Standing Data'!#REF!","v":{"$error":"#REF!"}},"Fin.Return","L572",{"$f":"'Fin.Return - BS'!L182","v":0}]
[{"$f":"'Standing Data'!$D$12","v":{"$error":"#N/A"}},{"$f":"'Standing Data'!$F$9","v":0},{"$f":"'Standing Data'!#REF!","v":{"$error":"#REF!"}},"Fin.Return","L573",{"$f":"'Fin.Return - BS'!L183","v":0}]
[{"$f":"'Standing Data'!$D$12","v":{"$error":"#N/A"}},{"$f":"'Standing Data'!$F$9","v":0},{"$f":"'Standing Data'!#REF!","v":{"$error":"#REF!"}},"Fin.Return","L575",{"$f":"'Fin.Return - BS'!L185","v":0}]
[{"$f":"'Standing Data'!$D$12","v":{"$error":"#N/A"}},{"$f":"'Standing Data'!$F$9","v":0},{"$f":"'Standing Data'!#REF!","v":{"$error":"#REF!"}},"Fin.Return","L630",{"$f":"'Fin.Return - BS'!L241","v":0}]
[{"$f":"'Standing Data'!$D$12","v":{"$error":"#N/A"}},{"$f":"'Standing Data'!$F$9","v":0},{"$f":"'Standing Data'!#REF!","v":{"$error":"#REF!"}},"Fin.Return","L631",{"$f":"'Fin.Return - BS'!L242","v":0}]
[{"$f":"'Standing Data'!$D$12","v":{"$error":"#N/A"}},{"$f":"'Standing Data'!$F$9","v":0},{"$f":"'Standing Data'!#REF!","v":{"$error":"#REF!"}},"Fin.Return","L632",{"$f":"'Fin.Return - BS'!L243","v":0}]
[{"$f":"'Standing Data'!$D$12","v":{"$error":"#N/A"}},{"$f":"'Standing Data'!$F$9","v":0},{"$f":"'Standing Data'!#REF!","v":{"$error":"#REF!"}},"Fin.Return","L633",{"$f":"'Fin.Return - BS'!L244","v":0}]
[{"$f":"'Standing Data'!$D$12","v":{"$error":"#N/A"}},{"$f":"'Standing Data'!$F$9","v":0},{"$f":"'Standing Data'!#REF!","v":{"$error":"#REF!"}},"Fin.Return","L634",{"$f":"'Fin.Return - BS'!L245","v":0}]
[{"$f":"'Standing Data'!$D$12","v":{"$error":"#N/A"}},{"$f":"'Standing Data'!$F$9","v":0},{"$f":"'Standing Data'!#REF!","v":{"$error":"#REF!"}},"Fin.Return","L635",{"$f":"'Fin.Return - BS'!L248","v":0}]
[{"$f":"'Standing Data'!$D$12","v":{"$error":"#N/A"}},{"$f":"'Standing Data'!$F$9","v":0},{"$f":"'Standing Data'!#REF!","v":{"$error":"#REF!"}},"Fin.Return","L636",{"$f":"'Fin.Return - BS'!L249","v":0}]
[{"$f":"'Standing Data'!$D$12","v":{"$error":"#N/A"}},{"$f":"'Standing Data'!$F$9","v":0},{"$f":"'Standing Data'!#REF!","v":{"$error":"#REF!"}},"Fin.Return","L637",{"$f":"'Fin.Return - BS'!L251","v":0}]
[{"$f":"'Standing Data'!$D$12","v":{"$error":"#N/A"}},{"$f":"'Standing Data'!$F$9","v":0},{"$f":"'Standing Data'!#REF!","v":{"$error":"#REF!"}},"Fin.Return","L638",{"$f":"'Fin.Return - BS'!L252","v":0}]
[{"$f":"'Standing Data'!$D$12","v":{"$error":"#N/A"}},{"$f":"'Standing Data'!$F$9","v":0},{"$f":"'Standing Data'!#REF!","v":{"$error":"#REF!"}},"Fin.Return","L640",{"$f":"'Fin.Return - BS'!L254","v":0}]
[{"$f":"'Standing Data'!$D$12","v":{"$error":"#N/A"}},{"$f":"'Standing Data'!$F$9","v":0},{"$f":"'Standing Data'!#REF!","v":{"$error":"#REF!"}},"Fin.Return","L908",{"$f":"'Fin.Return - Other Notes'!L228","v":0}]
[{"$f":"'Standing Data'!$D$12","v":{"$error":"#N/A"}},{"$f":"'Standing Data'!$F$9","v":0},{"$f":"'Standing Data'!#REF!","v":{"$error":"#REF!"}},"Fin.Return","L909",{"$f":"'Fin.Return - Other Notes'!L229","v":0}]
[{"$f":"'Standing Data'!$D$12","v":{"$error":"#N/A"}},{"$f":"'Standing Data'!$F$9","v":0},{"$f":"'Standing Data'!#REF!","v":{"$error":"#REF!"}},"Fin.Return","L910",{"$f":"'Fin.Return - Other Notes'!L230","v":0}]
[{"$f":"'Standing Data'!$D$12","v":{"$error":"#N/A"}},{"$f":"'Standing Data'!$F$9","v":0},{"$f":"'Standing Data'!#REF!","v":{"$error":"#REF!"}},"Fin.Return","L911",{"$f":"'Fin.Return - Other Notes'!L231","v":0}]
[{"$f":"'Standing Data'!$D$12","v":{"$error":"#N/A"}},{"$f":"'Standing Data'!$F$9","v":0},{"$f":"'Standing Data'!#REF!","v":{"$error":"#REF!"}},"Fin.Return","L912",{"$f":"'Fin.Return - Other Notes'!L232","v":0}]
[{"$f":"'Standing Data'!$D$12","v":{"$error":"#N/A"}},{"$f":"'Standing Data'!$F$9","v":0},{"$f":"'Standing Data'!#REF!","v":{"$error":"#REF!"}},"Fin.Return","L914",{"$f":"'Fin.Return - Other Notes'!L234","v":0}]
[{"$f":"'Standing Data'!$D$12","v":{"$error":"#N/A"}},{"$f":"'Standing Data'!$F$9","v":0},{"$f":"'Standing Data'!#REF!","v":{"$error":"#REF!"}},"Fin.Return","L913",{"$f":"'Fin.Return - Other Notes'!L233","v":0}]
[{"$f":"'Standing Data'!$D$12","v":{"$error":"#N/A"}},{"$f":"'Standing Data'!$F$9","v":0},{"$f":"'Standing Data'!#REF!","v":{"$error":"#REF!"}},"Fin.Return","L916",{"$f":"'Fin.Return - Other Notes'!L236","v":0}]
[{"$f":"'Standing Data'!$D$12","v":{"$error":"#N/A"}},{"$f":"'Standing Data'!$F$9","v":0},{"$f":"'Standing Data'!#REF!","v":{"$error":"#REF!"}},"Fin.Return","L917",{"$f":"'Fin.Return - Other Notes'!L237","v":0}]
[{"$f":"'Standing Data'!$D$12","v":{"$error":"#N/A"}},{"$f":"'Standing Data'!$F$9","v":0},{"$f":"'Standing Data'!#REF!","v":{"$error":"#REF!"}},"Fin.Return","L918",{"$f":"'Fin.Return - Other Notes'!L238","v":0}]
[{"$f":"'Standing Data'!$D$12","v":{"$error":"#N/A"}},{"$f":"'Standing Data'!$F$9","v":0},{"$f":"'Standing Data'!#REF!","v":{"$error":"#REF!"}},"Fin.Return","L919",{"$f":"'Fin.Return - Other Notes'!L239","v":0}]
[{"$f":"'Standing Data'!$D$12","v":{"$error":"#N/A"}},{"$f":"'Standing Data'!$F$9","v":0},{"$f":"'Standing Data'!#REF!","v":{"$error":"#REF!"}},"Fin.Return","L920",{"$f":"'Fin.Return - Other Notes'!L240","v":0}]
[{"$f":"'Standing Data'!$D$12","v":{"$error":"#N/A"}},{"$f":"'Standing Data'!$F$9","v":0},{"$f":"'Standing Data'!#REF!","v":{"$error":"#REF!"}},"Fin.Return","L922",{"$f":"'Fin.Return - Other Notes'!L242","v":0}]
[{"$f":"'Standing Data'!$D$12","v":{"$error":"#N/A"}},{"$f":"'Standing Data'!$F$9","v":0},{"$f":"'Standing Data'!#REF!","v":{"$error":"#REF!"}},"Fin.Return","L924",{"$f":"'Fin.Return - Other Notes'!L244","v":0}]
[{"$f":"'Standing Data'!$D$12","v":{"$error":"#N/A"}},{"$f":"'Standing Data'!$F$9","v":0},{"$f":"'Standing Data'!#REF!","v":{"$error":"#REF!"}},"Fin.Return","L925",{"$f":"'Fin.Return - Other Notes'!L245","v":0}]
[{"$f":"'Standing Data'!$D$12","v":{"$error":"#N/A"}},{"$f":"'Standing Data'!$F$9","v":0},{"$f":"'Standing Data'!#REF!","v":{"$error":"#REF!"}},"Fin.Return","L926",{"$f":"'Fin.Return - Other Notes'!L246","v":0}]
[{"$f":"'Standing Data'!$D$12","v":{"$error":"#N/A"}},{"$f":"'Standing Data'!$F$9","v":0},{"$f":"'Standing Data'!#REF!","v":{"$error":"#REF!"}},"Fin.Return","L927",{"$f":"'Fin.Return - Other Notes'!L247","v":0}]
[{"$f":"'Standing Data'!$D$12","v":{"$error":"#N/A"}},{"$f":"'Standing Data'!$F$9","v":0},{"$f":"'Standing Data'!#REF!","v":{"$error":"#REF!"}},"Fin.Return","L928",{"$f":"'Fin.Return - Other Notes'!L248","v":0}]
[{"$f":"'Standing Data'!$D$12","v":{"$error":"#N/A"}},{"$f":"'Standing Data'!$F$9","v":0},{"$f":"'Standing Data'!#REF!","v":{"$error":"#REF!"}},"Fin.Return","L929",{"$f":"'Fin.Return - Other Notes'!L249","v":0}]
[{"$f":"'Standing Data'!$D$12","v":{"$error":"#N/A"}},{"$f":"'Standing Data'!$F$9","v":0},{"$f":"'Standing Data'!#REF!","v":{"$error":"#REF!"}},"Fin.Return","L930",{"$f":"'Fin.Return - Other Notes'!L250","v":0}]
[{"$f":"'Standing Data'!$D$12","v":{"$error":"#N/A"}},{"$f":"'Standing Data'!$F$9","v":0},{"$f":"'Standing Data'!#REF!","v":{"$error":"#REF!"}},"Fin.Return","L931",{"$f":"'Fin.Return - Other Notes'!L251","v":0}]
[{"$f":"'Standing Data'!$D$12","v":{"$error":"#N/A"}},{"$f":"'Standing Data'!$F$9","v":0},{"$f":"'Standing Data'!#REF!","v":{"$error":"#REF!"}},"Fin.Return","L933",{"$f":"'Fin.Return - Other Notes'!L253","v":0}]
[{"$f":"'Standing Data'!$D$12","v":{"$error":"#N/A"}},{"$f":"'Standing Data'!$F$9","v":0},{"$f":"'Standing Data'!#REF!","v":{"$error":"#REF!"}},"Fin.Return","L934",{"$f":"'Fin.Return - Other Notes'!L254","v":0}]
[{"$f":"'Standing Data'!$D$12","v":{"$error":"#N/A"}},{"$f":"'Standing Data'!$F$9","v":0},{"$f":"'Standing Data'!#REF!","v":{"$error":"#REF!"}},"Fin.Return","L935",{"$f":"'Fin.Return - Other Notes'!L255","v":0}]
[{"$f":"'Standing Data'!$D$12","v":{"$error":"#N/A"}},{"$f":"'Standing Data'!$F$9","v":0},{"$f":"'Standing Data'!#REF!","v":{"$error":"#REF!"}},"Fin.Return","L936",{"$f":"'Fin.Return - Other Notes'!L256","v":0}]
[{"$f":"'Standing Data'!$D$12","v":{"$error":"#N/A"}},{"$f":"'Standing Data'!$F$9","v":0},{"$f":"'Standing Data'!#REF!","v":{"$error":"#REF!"}},"Fin.Return","L938",{"$f":"'Fin.Return - Other Notes'!L258","v":0}]
[{"$f":"'Standing Data'!$D$12","v":{"$error":"#N/A"}},{"$f":"'Standing Data'!$F$9","v":0},{"$f":"'Standing Data'!#REF!","v":{"$error":"#REF!"}},"Fin.Return","L940",{"$f":"'Fin.Return - Other Notes'!L260","v":0}]
[{"$f":"'Standing Data'!$D$12","v":{"$error":"#N/A"}},{"$f":"'Standing Data'!$F$9","v":0},{"$f":"'Standing Data'!#REF!","v":{"$error":"#REF!"}},"Fin.Return","L942",{"$f":"'Fin.Return - Other Notes'!L262","v":0}]
[{"$f":"'Standing Data'!$D$12","v":{"$error":"#N/A"}},{"$f":"'Standing Data'!$F$9","v":0},{"$f":"'Standing Data'!#REF!","v":{"$error":"#REF!"}},"Fin.Return","L1009",{"$f":"'Fin.Return - Other Notes'!L397","v":0}]
[{"$f":"'Standing Data'!$D$12","v":{"$error":"#N/A"}},{"$f":"'Standing Data'!$F$9","v":0},{"$f":"'Standing Data'!#REF!","v":{"$error":"#REF!"}},"Fin.Return","L1010",{"$f":"'Fin.Return - Other Notes'!L398","v":0}]
[{"$f":"'Standing Data'!$D$12","v":{"$error":"#N/A"}},{"$f":"'Standing Data'!$F$9","v":0},{"$f":"'Standing Data'!#REF!","v":{"$error":"#REF!"}},"Fin.Return","L1011",{"$f":"'Fin.Return - Other Notes'!L399","v":0}]
[{"$f":"'Standing Data'!$D$12","v":{"$error":"#N/A"}},{"$f":"'Standing Data'!$F$9","v":0},{"$f":"'Standing Data'!#REF!","v":{"$error":"#REF!"}},"Fin.Return","L1013",{"$f":"'Fin.Return - Other Notes'!L401","v":0}]
[{"$f":"'Standing Data'!$D$12","v":{"$error":"#N/A"}},{"$f":"'Standing Data'!$F$9","v":0},{"$f":"'Standing Data'!#REF!","v":{"$error":"#REF!"}},"Fin.Return","L1014",{"$f":"'Fin.Return - Other Notes'!L402","v":0}]
[{"$f":"'Standing Data'!$D$12","v":{"$error":"#N/A"}},{"$f":"'Standing Data'!$F$9","v":0},{"$f":"'Standing Data'!#REF!","v":{"$error":"#REF!"}},"Fin.Return","L1015",{"$f":"'Fin.Return - Other Notes'!L403","v":0}]
[{"$f":"'Standing Data'!$D$12","v":{"$error":"#N/A"}},{"$f":"'Standing Data'!$F$9","v":0},{"$f":"'Standing Data'!#REF!","v":{"$error":"#REF!"}},"Fin.Return","L1017",{"$f":"'Fin.Return - Other Notes'!L405","v":0}]
[{"$f":"'Standing Data'!$D$12","v":{"$error":"#N/A"}},{"$f":"'Standing Data'!$F$9","v":0},{"$f":"'Standing Data'!#REF!","v":{"$error":"#REF!"}},"Fin.Return","L1018",{"$f":"'Fin.Return - Other Notes'!L406","v":0}]
[{"$f":"'Standing Data'!$D$12","v":{"$error":"#N/A"}},{"$f":"'Standing Data'!$F$9","v":0},{"$f":"'Standing Data'!#REF!","v":{"$error":"#REF!"}},"Fin.Return","L1019",{"$f":"'Fin.Return - Other Notes'!L407","v":0}]
[{"$f":"'Standing Data'!$D$12","v":{"$error":"#N/A"}},{"$f":"'Standing Data'!$F$9","v":0},{"$f":"'Standing Data'!#REF!","v":{"$error":"#REF!"}},"Fin.Return","L1021",{"$f":"'Fin.Return - Other Notes'!L409","v":0}]
[{"$f":"'Standing Data'!$D$12","v":{"$error":"#N/A"}},{"$f":"'Standing Data'!$F$9","v":0},{"$f":"'Standing Data'!#REF!","v":{"$error":"#REF!"}},"Fin.Return","L1022",{"$f":"'Fin.Return - Other Notes'!L410","v":0}]
[{"$f":"'Standing Data'!$D$12","v":{"$error":"#N/A"}},{"$f":"'Standing Data'!$F$9","v":0},{"$f":"'Standing Data'!#REF!","v":{"$error":"#REF!"}},"Fin.Return","L1024",{"$f":"'Fin.Return - Other Notes'!L412","v":0}]
[{"$f":"'Standing Data'!$D$12","v":{"$error":"#N/A"}},{"$f":"'Standing Data'!$F$9","v":0},{"$f":"'Standing Data'!#REF!","v":{"$error":"#REF!"}},"Fin.Return","L1082",{"$f":"'Fin.Return - Other Notes'!L456","v":0}]
[{"$f":"'Standing Data'!$D$12","v":{"$error":"#N/A"}},{"$f":"'Standing Data'!$F$9","v":0},{"$f":"'Standing Data'!#REF!","v":{"$error":"#REF!"}},"Fin.Return","L1083",{"$f":"'Fin.Return - Other Notes'!L457","v":0}]
[{"$f":"'Standing Data'!$D$12","v":{"$error":"#N/A"}},{"$f":"'Standing Data'!$F$9","v":0},{"$f":"'Standing Data'!#REF!","v":{"$error":"#REF!"}},"Fin.Return","L1084",{"$f":"'Fin.Return - Other Notes'!L458","v":0}]
[{"$f":"'Standing Data'!$D$12","v":{"$error":"#N/A"}},{"$f":"'Standing Data'!$F$9","v":0},{"$f":"'Standing Data'!#REF!","v":{"$error":"#REF!"}},"Fin.Return","L1086",{"$f":"'Fin.Return - Other Notes'!L460","v":0}]
[{"$f":"'Standing Data'!$D$12","v":{"$error":"#N/A"}},{"$f":"'Standing Data'!$F$9","v":0},{"$f":"'Standing Data'!#REF!","v":{"$error":"#REF!"}},"Fin.Return","L1087",{"$f":"'Fin.Return - Other Notes'!L461","v":0}]
[{"$f":"'Standing Data'!$D$12","v":{"$error":"#N/A"}},{"$f":"'Standing Data'!$F$9","v":0},{"$f":"'Standing Data'!#REF!","v":{"$error":"#REF!"}},"Fin.Return","L1088",{"$f":"'Fin.Return - Other Notes'!L462","v":0}]
[{"$f":"'Standing Data'!$D$12","v":{"$error":"#N/A"}},{"$f":"'Standing Data'!$F$9","v":0},{"$f":"'Standing Data'!#REF!","v":{"$error":"#REF!"}},"Fin.Return","L1090",{"$f":"'Fin.Return - Other Notes'!L464","v":0}]
[{"$f":"'Standing Data'!$D$12","v":{"$error":"#N/A"}},{"$f":"'Standing Data'!$F$9","v":0},{"$f":"'Standing Data'!#REF!","v":{"$error":"#REF!"}},"Fin.Return","L1091",{"$f":"'Fin.Return - Other Notes'!L465","v":0}]
[{"$f":"'Standing Data'!$D$12","v":{"$error":"#N/A"}},{"$f":"'Standing Data'!$F$9","v":0},{"$f":"'Standing Data'!#REF!","v":{"$error":"#REF!"}},"Fin.Return","L1092",{"$f":"'Fin.Return - Other Notes'!L466","v":0}]
[{"$f":"'Standing Data'!$D$12","v":{"$error":"#N/A"}},{"$f":"'Standing Data'!$F$9","v":0},{"$f":"'Standing Data'!#REF!","v":{"$error":"#REF!"}},"Fin.Return","L1094",{"$f":"'Fin.Return - Other Notes'!L468","v":0}]
[{"$f":"'Standing Data'!$D$12","v":{"$error":"#N/A"}},{"$f":"'Standing Data'!$F$9","v":0},{"$f":"'Standing Data'!#REF!","v":{"$error":"#REF!"}},"Fin.Return","L1095",{"$f":"'Fin.Return - Other Notes'!L469","v":0}]
[{"$f":"'Standing Data'!$D$12","v":{"$error":"#N/A"}},{"$f":"'Standing Data'!$F$9","v":0},{"$f":"'Standing Data'!#REF!","v":{"$error":"#REF!"}},"Fin.Return","L1097",{"$f":"'Fin.Return - Other Notes'!L471","v":0}]
[{"$f":"'Standing Data'!$D$12","v":{"$error":"#N/A"}},{"$f":"'Standing Data'!$F$9","v":0},{"$f":"'Standing Data'!#REF!","v":{"$error":"#REF!"}},"Fin.Return","L1111",{"$f":"'Fin.Return - Other Notes'!L485","v":0}]
[{"$f":"'Standing Data'!$D$12","v":{"$error":"#N/A"}},{"$f":"'Standing Data'!$F$9","v":0},{"$f":"'Standing Data'!#REF!","v":{"$error":"#REF!"}},"Fin.Return","L1112",{"$f":"'Fin.Return - Other Notes'!L486","v":0}]
[{"$f":"'Standing Data'!$D$12","v":{"$error":"#N/A"}},{"$f":"'Standing Data'!$F$9","v":0},{"$f":"'Standing Data'!#REF!","v":{"$error":"#REF!"}},"Fin.Return","L1113",{"$f":"'Fin.Return - Other Notes'!L487","v":0}]
[{"$f":"'Standing Data'!$D$12","v":{"$error":"#N/A"}},{"$f":"'Standing Data'!$F$9","v":0},{"$f":"'Standing Data'!#REF!","v":{"$error":"#REF!"}},"Fin.Return","L1115",{"$f":"'Fin.Return - Other Notes'!L489","v":0}]
[{"$f":"'Standing Data'!$D$12","v":{"$error":"#N/A"}},{"$f":"'Standing Data'!$F$9","v":0},{"$f":"'Standing Data'!#REF!","v":{"$error":"#REF!"}},"Fin.Return","L1131",{"$f":"'Fin.Return - Other Notes'!L505","v":0}]
[{"$f":"'Standing Data'!$D$12","v":{"$error":"#N/A"}},{"$f":"'Standing Data'!$F$9","v":0},{"$f":"'Standing Data'!#REF!","v":{"$error":"#REF!"}},"Fin.Return","L1132",{"$f":"'Fin.Return - Other Notes'!L506","v":0}]
[{"$f":"'Standing Data'!$D$12","v":{"$error":"#N/A"}},{"$f":"'Standing Data'!$F$9","v":0},{"$f":"'Standing Data'!#REF!","v":{"$error":"#REF!"}},"Fin.Return","L1133",{"$f":"'Fin.Return - Other Notes'!L507","v":0}]
[{"$f":"'Standing Data'!$D$12","v":{"$error":"#N/A"}},{"$f":"'Standing Data'!$F$9","v":0},{"$f":"'Standing Data'!#REF!","v":{"$error":"#REF!"}},"Fin.Return","L1135",{"$f":"'Fin.Return - Other Notes'!L509","v":0}]
[{"$f":"'Standing Data'!$D$12","v":{"$error":"#N/A"}},{"$f":"'Standing Data'!$F$9","v":0},{"$f":"'Standing Data'!#REF!","v":{"$error":"#REF!"}},"Fin.Return","L1237",{"$f":"'Fin.Return - Other Notes'!L615","v":0}]
[{"$f":"'Standing Data'!$D$12","v":{"$error":"#N/A"}},{"$f":"'Standing Data'!$F$9","v":0},{"$f":"'Standing Data'!#REF!","v":{"$error":"#REF!"}},"Fin.Return","L1238",{"$f":"'Fin.Return - Other Notes'!L616","v":0}]
[{"$f":"'Standing Data'!$D$12","v":{"$error":"#N/A"}},{"$f":"'Standing Data'!$F$9","v":0},{"$f":"'Standing Data'!#REF!","v":{"$error":"#REF!"}},"Fin.Return","L1239",{"$f":"'Fin.Return - Other Notes'!L617","v":0}]
[{"$f":"'Standing Data'!$D$12","v":{"$error":"#N/A"}},{"$f":"'Standing Data'!$F$9","v":0},{"$f":"'Standing Data'!#REF!","v":{"$error":"#REF!"}},"Fin.Return","L1240",{"$f":"'Fin.Return - Other Notes'!L618","v":0}]
[{"$f":"'Standing Data'!$D$12","v":{"$error":"#N/A"}},{"$f":"'Standing Data'!$F$9","v":0},{"$f":"'Standing Data'!#REF!","v":{"$error":"#REF!"}},"Fin.Return","L1241",{"$f":"'Fin.Return - Other Notes'!L619","v":0}]
[{"$f":"'Standing Data'!$D$12","v":{"$error":"#N/A"}},{"$f":"'Standing Data'!$F$9","v":0},{"$f":"'Standing Data'!#REF!","v":{"$error":"#REF!"}},"Fin.Return","L1242",{"$f":"'Fin.Return - Other Notes'!L620","v":0}]
[{"$f":"'Standing Data'!$D$12","v":{"$error":"#N/A"}},{"$f":"'Standing Data'!$F$9","v":0},{"$f":"'Standing Data'!#REF!","v":{"$error":"#REF!"}},"Fin.Return","L1243",{"$f":"'Fin.Return - Other Notes'!L621","v":0}]
[{"$f":"'Standing Data'!$D$12","v":{"$error":"#N/A"}},{"$f":"'Standing Data'!$F$9","v":0},{"$f":"'Standing Data'!#REF!","v":{"$error":"#REF!"}},"Fin.Return","L1244",{"$f":"'Fin.Return - Other Notes'!L622","v":0}]
[{"$f":"'Standing Data'!$D$12","v":{"$error":"#N/A"}},{"$f":"'Standing Data'!$F$9","v":0},{"$f":"'Standing Data'!#REF!","v":{"$error":"#REF!"}},"Fin.Return","L1245",{"$f":"'Fin.Return - Other Notes'!L623","v":0}]
[{"$f":"'Standing Data'!$D$12","v":{"$error":"#N/A"}},{"$f":"'Standing Data'!$F$9","v":0},{"$f":"'Standing Data'!#REF!","v":{"$error":"#REF!"}},"Fin.Return","L1246",{"$f":"'Fin.Return - Other Notes'!L624","v":0}]
[{"$f":"'Standing Data'!$D$12","v":{"$error":"#N/A"}},{"$f":"'Standing Data'!$F$9","v":0},{"$f":"'Standing Data'!#REF!","v":{"$error":"#REF!"}},"Fin.Return","L1247",{"$f":"'Fin.Return - Other Notes'!L625","v":0}]
[{"$f":"'Standing Data'!$D$12","v":{"$error":"#N/A"}},{"$f":"'Standing Data'!$F$9","v":0},{"$f":"'Standing Data'!#REF!","v":{"$error":"#REF!"}},"Fin.Return","L1248",{"$f":"'Fin.Return - Other Notes'!L626","v":0}]
[{"$f":"'Standing Data'!$D$12","v":{"$error":"#N/A"}},{"$f":"'Standing Data'!$F$9","v":0},{"$f":"'Standing Data'!#REF!","v":{"$error":"#REF!"}},"Fin.Return","L1249",{"$f":"'Fin.Return - Other Notes'!L627","v":0}]
[{"$f":"'Standing Data'!$D$12","v":{"$error":"#N/A"}},{"$f":"'Standing Data'!$F$9","v":0},{"$f":"'Standing Data'!#REF!","v":{"$error":"#REF!"}},"Fin.Return","L1250",{"$f":"'Fin.Return - Other Notes'!L628","v":0}]
[{"$f":"'Standing Data'!$D$12","v":{"$error":"#N/A"}},{"$f":"'Standing Data'!$F$9","v":0},{"$f":"'Standing Data'!#REF!","v":{"$error":"#REF!"}},"Fin.Return","L1252",{"$f":"'Fin.Return - Other Notes'!L630","v":0}]
[{"$f":"'Standing Data'!$D$12","v":{"$error":"#N/A"}},{"$f":"'Standing Data'!$F$9","v":0},{"$f":"'Standing Data'!#REF!","v":{"$error":"#REF!"}},"Fin.Return","M468",{"$f":"'Fin.Return - BS'!#REF!","v":{"$error":"#REF!"}}]
[{"$f":"'Standing Data'!$D$12","v":{"$error":"#N/A"}},{"$f":"'Standing Data'!$F$9","v":0},{"$f":"'Standing Data'!#REF!","v":{"$error":"#REF!"}},"Fin.Return","M469",{"$f":"'Fin.Return - BS'!#REF!","v":{"$error":"#REF!"}}]
[{"$f":"'Standing Data'!$D$12","v":{"$error":"#N/A"}},{"$f":"'Standing Data'!$F$9","v":0},{"$f":"'Standing Data'!#REF!","v":{"$error":"#REF!"}},"Fin.Return","M470",{"$f":"'Fin.Return - BS'!#REF!","v":{"$error":"#REF!"}}]
[{"$f":"'Standing Data'!$D$12","v":{"$error":"#N/A"}},{"$f":"'Standing Data'!$F$9","v":0},{"$f":"'Standing Data'!#REF!","v":{"$error":"#REF!"}},"Fin.Return","M471",{"$f":"'Fin.Return - BS'!#REF!","v":{"$error":"#REF!"}}]
[{"$f":"'Standing Data'!$D$12","v":{"$error":"#N/A"}},{"$f":"'Standing Data'!$F$9","v":0},{"$f":"'Standing Data'!#REF!","v":{"$error":"#REF!"}},"Fin.Return","M472",{"$f":"'Fin.Return - BS'!#REF!","v":{"$error":"#REF!"}}]
[{"$f":"'Standing Data'!$D$12","v":{"$error":"#N/A"}},{"$f":"'Standing Data'!$F$9","v":0},{"$f":"'Standing Data'!#REF!","v":{"$error":"#REF!"}},"Fin.Return","M473",{"$f":"'Fin.Return - BS'!#REF!","v":{"$error":"#REF!"}}]
[{"$f":"'Standing Data'!$D$12","v":{"$error":"#N/A"}},{"$f":"'Standing Data'!$F$9","v":0},{"$f":"'Standing Data'!#REF!","v":{"$error":"#REF!"}},"Fin.Return","M474",{"$f":"'Fin.Return - BS'!#REF!","v":{"$error":"#REF!"}}]
[{"$f":"'Standing Data'!$D$12","v":{"$error":"#N/A"}},{"$f":"'Standing Data'!$F$9","v":0},{"$f":"'Standing Data'!#REF!","v":{"$error":"#REF!"}},"Fin.Return","M475",{"$f":"'Fin.Return - BS'!#REF!","v":{"$error":"#REF!"}}]
[{"$f":"'Standing Data'!$D$12","v":{"$error":"#N/A"}},{"$f":"'Standing Data'!$F$9","v":0},{"$f":"'Standing Data'!#REF!","v":{"$error":"#REF!"}},"Fin.Return","M477",{"$f":"'Fin.Return - BS'!#REF!","v":{"$error":"#REF!"}}]
[{"$f":"'Standing Data'!$D$12","v":{"$error":"#N/A"}},{"$f":"'Standing Data'!$F$9","v":0},{"$f":"'Standing Data'!#REF!","v":{"$error":"#REF!"}},"Fin.Return","M480",{"$f":"'Fin.Return - BS'!#REF!","v":{"$error":"#REF!"}}]
[{"$f":"'Standing Data'!$D$12","v":{"$error":"#N/A"}},{"$f":"'Standing Data'!$F$9","v":0},{"$f":"'Standing Data'!#REF!","v":{"$error":"#REF!"}},"Fin.Return","M481",{"$f":"'Fin.Return - BS'!#REF!","v":{"$error":"#REF!"}}]
[{"$f":"'Standing Data'!$D$12","v":{"$error":"#N/A"}},{"$f":"'Standing Data'!$F$9","v":0},{"$f":"'Standing Data'!#REF!","v":{"$error":"#REF!"}},"Fin.Return","M482",{"$f":"'Fin.Return - BS'!#REF!","v":{"$error":"#REF!"}}]
[{"$f":"'Standing Data'!$D$12","v":{"$error":"#N/A"}},{"$f":"'Standing Data'!$F$9","v":0},{"$f":"'Standing Data'!#REF!","v":{"$error":"#REF!"}},"Fin.Return","M483",{"$f":"'Fin.Return - BS'!#REF!","v":{"$error":"#REF!"}}]
[{"$f":"'Standing Data'!$D$12","v":{"$error":"#N/A"}},{"$f":"'Standing Data'!$F$9","v":0},{"$f":"'Standing Data'!#REF!","v":{"$error":"#REF!"}},"Fin.Return","M484",{"$f":"'Fin.Return - BS'!#REF!","v":{"$error":"#REF!"}}]
[{"$f":"'Standing Data'!$D$12","v":{"$error":"#N/A"}},{"$f":"'Standing Data'!$F$9","v":0},{"$f":"'Standing Data'!#REF!","v":{"$error":"#REF!"}},"Fin.Return","M486",{"$f":"'Fin.Return - BS'!#REF!","v":{"$error":"#REF!"}}]
[{"$f":"'Standing Data'!$D$12","v":{"$error":"#N/A"}},{"$f":"'Standing Data'!$F$9","v":0},{"$f":"'Standing Data'!#REF!","v":{"$error":"#REF!"}},"Fin.Return","M489",{"$f":"'Fin.Return - BS'!#REF!","v":{"$error":"#REF!"}}]
[{"$f":"'Standing Data'!$D$12","v":{"$error":"#N/A"}},{"$f":"'Standing Data'!$F$9","v":0},{"$f":"'Standing Data'!#REF!","v":{"$error":"#REF!"}},"Fin.Return","M490",{"$f":"'Fin.Return - BS'!#REF!","v":{"$error":"#REF!"}}]
[{"$f":"'Standing Data'!$D$12","v":{"$error":"#N/A"}},{"$f":"'Standing Data'!$F$9","v":0},{"$f":"'Standing Data'!#REF!","v":{"$error":"#REF!"}},"Fin.Return","M491",{"$f":"'Fin.Return - BS'!#REF!","v":{"$error":"#REF!"}}]
[{"$f":"'Standing Data'!$D$12","v":{"$error":"#N/A"}},{"$f":"'Standing Data'!$F$9","v":0},{"$f":"'Standing Data'!#REF!","v":{"$error":"#REF!"}},"Fin.Return","M493",{"$f":"'Fin.Return - BS'!#REF!","v":{"$error":"#REF!"}}]
[{"$f":"'Standing Data'!$D$12","v":{"$error":"#N/A"}},{"$f":"'Standing Data'!$F$9","v":0},{"$f":"'Standing Data'!#REF!","v":{"$error":"#REF!"}},"Fin.Return","M496",{"$f":"'Fin.Return - BS'!#REF!","v":{"$error":"#REF!"}}]
[{"$f":"'Standing Data'!$D$12","v":{"$error":"#N/A"}},{"$f":"'Standing Data'!$F$9","v":0},{"$f":"'Standing Data'!#REF!","v":{"$error":"#REF!"}},"Fin.Return","M499",{"$f":"'Fin.Return - BS'!#REF!","v":{"$error":"#REF!"}}]
[{"$f":"'Standing Data'!$D$12","v":{"$error":"#N/A"}},{"$f":"'Standing Data'!$F$9","v":0},{"$f":"'Standing Data'!#REF!","v":{"$error":"#REF!"}},"Fin.Return","M503",{"$f":"'Fin.Return - BS'!#REF!","v":{"$error":"#REF!"}}]
[{"$f":"'Standing Data'!$D$12","v":{"$error":"#N/A"}},{"$f":"'Standing Data'!$F$9","v":0},{"$f":"'Standing Data'!#REF!","v":{"$error":"#REF!"}},"Fin.Return","M504",{"$f":"'Fin.Return - BS'!#REF!","v":{"$error":"#REF!"}}]
[{"$f":"'Standing Data'!$D$12","v":{"$error":"#N/A"}},{"$f":"'Standing Data'!$F$9","v":0},{"$f":"'Standing Data'!#REF!","v":{"$error":"#REF!"}},"Fin.Return","M505",{"$f":"'Fin.Return - BS'!#REF!","v":{"$error":"#REF!"}}]
[{"$f":"'Standing Data'!$D$12","v":{"$error":"#N/A"}},{"$f":"'Standing Data'!$F$9","v":0},{"$f":"'Standing Data'!#REF!","v":{"$error":"#REF!"}},"Fin.Return","M514",{"$f":"'Fin.Return - BS'!#REF!","v":{"$error":"#REF!"}}]
[{"$f":"'Standing Data'!$D$12","v":{"$error":"#N/A"}},{"$f":"'Standing Data'!$F$9","v":0},{"$f":"'Standing Data'!#REF!","v":{"$error":"#REF!"}},"Fin.Return","M515",{"$f":"'Fin.Return - BS'!#REF!","v":{"$error":"#REF!"}}]
[{"$f":"'Standing Data'!$D$12","v":{"$error":"#N/A"}},{"$f":"'Standing Data'!$F$9","v":0},{"$f":"'Standing Data'!#REF!","v":{"$error":"#REF!"}},"Fin.Return","M517",{"$f":"'Fin.Return - BS'!#REF!","v":{"$error":"#REF!"}}]
[{"$f":"'Standing Data'!$D$12","v":{"$error":"#N/A"}},{"$f":"'Standing Data'!$F$9","v":0},{"$f":"'Standing Data'!#REF!","v":{"$error":"#REF!"}},"Fin.Return","M519",{"$f":"'Fin.Return - BS'!#REF!","v":{"$error":"#REF!"}}]
[{"$f":"'Standing Data'!$D$12","v":{"$error":"#N/A"}},{"$f":"'Standing Data'!$F$9","v":0},{"$f":"'Standing Data'!#REF!","v":{"$error":"#REF!"}},"Fin.Return","M908",{"$f":"'Fin.Return - Other Notes'!M228","v":0}]
[{"$f":"'Standing Data'!$D$12","v":{"$error":"#N/A"}},{"$f":"'Standing Data'!$F$9","v":0},{"$f":"'Standing Data'!#REF!","v":{"$error":"#REF!"}},"Fin.Return","M909",{"$f":"'Fin.Return - Other Notes'!M229","v":0}]
[{"$f":"'Standing Data'!$D$12","v":{"$error":"#N/A"}},{"$f":"'Standing Data'!$F$9","v":0},{"$f":"'Standing Data'!#REF!","v":{"$error":"#REF!"}},"Fin.Return","M910",{"$f":"'Fin.Return - Other Notes'!M230","v":0}]
[{"$f":"'Standing Data'!$D$12","v":{"$error":"#N/A"}},{"$f":"'Standing Data'!$F$9","v":0},{"$f":"'Standing Data'!#REF!","v":{"$error":"#REF!"}},"Fin.Return","M911",{"$f":"'Fin.Return - Other Notes'!M231","v":0}]
[{"$f":"'Standing Data'!$D$12","v":{"$error":"#N/A"}},{"$f":"'Standing Data'!$F$9","v":0},{"$f":"'Standing Data'!#REF!","v":{"$error":"#REF!"}},"Fin.Return","M912",{"$f":"'Fin.Return - Other Notes'!M232","v":0}]
[{"$f":"'Standing Data'!$D$12","v":{"$error":"#N/A"}},{"$f":"'Standing Data'!$F$9","v":0},{"$f":"'Standing Data'!#REF!","v":{"$error":"#REF!"}},"Fin.Return","M914",{"$f":"'Fin.Return - Other Notes'!M234","v":0}]
[{"$f":"'Standing Data'!$D$12","v":{"$error":"#N/A"}},{"$f":"'Standing Data'!$F$9","v":0},{"$f":"'Standing Data'!#REF!","v":{"$error":"#REF!"}},"Fin.Return","M913",{"$f":"'Fin.Return - Other Notes'!M233","v":0}]
[{"$f":"'Standing Data'!$D$12","v":{"$error":"#N/A"}},{"$f":"'Standing Data'!$F$9","v":0},{"$f":"'Standing Data'!#REF!","v":{"$error":"#REF!"}},"Fin.Return","M916",{"$f":"'Fin.Return - Other Notes'!M236","v":0}]
[{"$f":"'Standing Data'!$D$12","v":{"$error":"#N/A"}},{"$f":"'Standing Data'!$F$9","v":0},{"$f":"'Standing Data'!#REF!","v":{"$error":"#REF!"}},"Fin.Return","M917",{"$f":"'Fin.Return - Other Notes'!M237","v":0}]
[{"$f":"'Standing Data'!$D$12","v":{"$error":"#N/A"}},{"$f":"'Standing Data'!$F$9","v":0},{"$f":"'Standing Data'!#REF!","v":{"$error":"#REF!"}},"Fin.Return","M918",{"$f":"'Fin.Return - Other Notes'!M238","v":0}]
[{"$f":"'Standing Data'!$D$12","v":{"$error":"#N/A"}},{"$f":"'Standing Data'!$F$9","v":0},{"$f":"'Standing Data'!#REF!","v":{"$error":"#REF!"}},"Fin.Return","M919",{"$f":"'Fin.Return - Other Notes'!M239","v":0}]
[{"$f":"'Standing Data'!$D$12","v":{"$error":"#N/A"}},{"$f":"'Standing Data'!$F$9","v":0},{"$f":"'Standing Data'!#REF!","v":{"$error":"#REF!"}},"Fin.Return","M920",{"$f":"'Fin.Return - Other Notes'!M240","v":0}]
[{"$f":"'Standing Data'!$D$12","v":{"$error":"#N/A"}},{"$f":"'Standing Data'!$F$9","v":0},{"$f":"'Standing Data'!#REF!","v":{"$error":"#REF!"}},"Fin.Return","M922",{"$f":"'Fin.Return - Other Notes'!M242","v":0}]
[{"$f":"'Standing Data'!$D$12","v":{"$error":"#N/A"}},{"$f":"'Standing Data'!$F$9","v":0},{"$f":"'Standing Data'!#REF!","v":{"$error":"#REF!"}},"Fin.Return","M924",{"$f":"'Fin.Return - Other Notes'!M244","v":0}]
[{"$f":"'Standing Data'!$D$12","v":{"$error":"#N/A"}},{"$f":"'Standing Data'!$F$9","v":0},{"$f":"'Standing Data'!#REF!","v":{"$error":"#REF!"}},"Fin.Return","M925",{"$f":"'Fin.Return - Other Notes'!M245","v":0}]
[{"$f":"'Standing Data'!$D$12","v":{"$error":"#N/A"}},{"$f":"'Standing Data'!$F$9","v":0},{"$f":"'Standing Data'!#REF!","v":{"$error":"#REF!"}},"Fin.Return","M926",{"$f":"'Fin.Return - Other Notes'!M246","v":0}]
[{"$f":"'Standing Data'!$D$12","v":{"$error":"#N/A"}},{"$f":"'Standing Data'!$F$9","v":0},{"$f":"'Standing Data'!#REF!","v":{"$error":"#REF!"}},"Fin.Return","M927",{"$f":"'Fin.Return - Other Notes'!M247","v":0}]
[{"$f":"'Standing Data'!$D$12","v":{"$error":"#N/A"}},{"$f":"'Standing Data'!$F$9","v":0},{"$f":"'Standing Data'!#REF!","v":{"$error":"#REF!"}},"Fin.Return","M928",{"$f":"'Fin.Return - Other Notes'!M248","v":0}]
[{"$f":"'Standing Data'!$D$12","v":{"$error":"#N/A"}},{"$f":"'Standing Data'!$F$9","v":0},{"$f":"'Standing Data'!#REF!","v":{"$error":"#REF!"}},"Fin.Return","M929",{"$f":"'Fin.Return - Other Notes'!M249","v":0}]
[{"$f":"'Standing Data'!$D$12","v":{"$error":"#N/A"}},{"$f":"'Standing Data'!$F$9","v":0},{"$f":"'Standing Data'!#REF!","v":{"$error":"#REF!"}},"Fin.Return","M930",{"$f":"'Fin.Return - Other Notes'!M250","v":0}]
[{"$f":"'Standing Data'!$D$12","v":{"$error":"#N/A"}},{"$f":"'Standing Data'!$F$9","v":0},{"$f":"'Standing Data'!#REF!","v":{"$error":"#REF!"}},"Fin.Return","M931",{"$f":"'Fin.Return - Other Notes'!M251","v":0}]
[{"$f":"'Standing Data'!$D$12","v":{"$error":"#N/A"}},{"$f":"'Standing Data'!$F$9","v":0},{"$f":"'Standing Data'!#REF!","v":{"$error":"#REF!"}},"Fin.Return","M933",{"$f":"'Fin.Return - Other Notes'!M253","v":0}]
[{"$f":"'Standing Data'!$D$12","v":{"$error":"#N/A"}},{"$f":"'Standing Data'!$F$9","v":0},{"$f":"'Standing Data'!#REF!","v":{"$error":"#REF!"}},"Fin.Return","M934",{"$f":"'Fin.Return - Other Notes'!M254","v":0}]
[{"$f":"'Standing Data'!$D$12","v":{"$error":"#N/A"}},{"$f":"'Standing Data'!$F$9","v":0},{"$f":"'Standing Data'!#REF!","v":{"$error":"#REF!"}},"Fin.Return","M935",{"$f":"'Fin.Return - Other Notes'!M255","v":0}]
[{"$f":"'Standing Data'!$D$12","v":{"$error":"#N/A"}},{"$f":"'Standing Data'!$F$9","v":0},{"$f":"'Standing Data'!#REF!","v":{"$error":"#REF!"}},"Fin.Return","M936",{"$f":"'Fin.Return - Other Notes'!M256","v":0}]
[{"$f":"'Standing Data'!$D$12","v":{"$error":"#N/A"}},{"$f":"'Standing Data'!$F$9","v":0},{"$f":"'Standing Data'!#REF!","v":{"$error":"#REF!"}},"Fin.Return","M938",{"$f":"'Fin.Return - Other Notes'!M258","v":0}]
[{"$f":"'Standing Data'!$D$12","v":{"$error":"#N/A"}},{"$f":"'Standing Data'!$F$9","v":0},{"$f":"'Standing Data'!#REF!","v":{"$error":"#REF!"}},"Fin.Return","M940",{"$f":"'Fin.Return - Other Notes'!M260","v":0}]
[{"$f":"'Standing Data'!$D$12","v":{"$error":"#N/A"}},{"$f":"'Standing Data'!$F$9","v":0},{"$f":"'Standing Data'!#REF!","v":{"$error":"#REF!"}},"Fin.Return","M942",{"$f":"'Fin.Return - Other Notes'!M262","v":0}]
[{"$f":"'Standing Data'!$D$12","v":{"$error":"#N/A"}},{"$f":"'Standing Data'!$F$9","v":0},{"$f":"'Standing Data'!#REF!","v":{"$error":"#REF!"}},"Fin.Return","M1009",{"$f":"'Fin.Return - Other Notes'!M397","v":0}]
[{"$f":"'Standing Data'!$D$12","v":{"$error":"#N/A"}},{"$f":"'Standing Data'!$F$9","v":0},{"$f":"'Standing Data'!#REF!","v":{"$error":"#REF!"}},"Fin.Return","M1010",{"$f":"'Fin.Return - Other Notes'!M398","v":0}]
[{"$f":"'Standing Data'!$D$12","v":{"$error":"#N/A"}},{"$f":"'Standing Data'!$F$9","v":0},{"$f":"'Standing Data'!#REF!","v":{"$error":"#REF!"}},"Fin.Return","M1011",{"$f":"'Fin.Return - Other Notes'!M399","v":0}]
[{"$f":"'Standing Data'!$D$12","v":{"$error":"#N/A"}},{"$f":"'Standing Data'!$F$9","v":0},{"$f":"'Standing Data'!#REF!","v":{"$error":"#REF!"}},"Fin.Return","M1013",{"$f":"'Fin.Return - Other Notes'!M401","v":0}]
[{"$f":"'Standing Data'!$D$12","v":{"$error":"#N/A"}},{"$f":"'Standing Data'!$F$9","v":0},{"$f":"'Standing Data'!#REF!","v":{"$error":"#REF!"}},"Fin.Return","M1014",{"$f":"'Fin.Return - Other Notes'!M402","v":0}]
[{"$f":"'Standing Data'!$D$12","v":{"$error":"#N/A"}},{"$f":"'Standing Data'!$F$9","v":0},{"$f":"'Standing Data'!#REF!","v":{"$error":"#REF!"}},"Fin.Return","M1015",{"$f":"'Fin.Return - Other Notes'!M403","v":0}]
[{"$f":"'Standing Data'!$D$12","v":{"$error":"#N/A"}},{"$f":"'Standing Data'!$F$9","v":0},{"$f":"'Standing Data'!#REF!","v":{"$error":"#REF!"}},"Fin.Return","M1017",{"$f":"'Fin.Return - Other Notes'!M405","v":0}]
[{"$f":"'Standing Data'!$D$12","v":{"$error":"#N/A"}},{"$f":"'Standing Data'!$F$9","v":0},{"$f":"'Standing Data'!#REF!","v":{"$error":"#REF!"}},"Fin.Return","M1018",{"$f":"'Fin.Return - Other Notes'!M406","v":0}]
[{"$f":"'Standing Data'!$D$12","v":{"$error":"#N/A"}},{"$f":"'Standing Data'!$F$9","v":0},{"$f":"'Standing Data'!#REF!","v":{"$error":"#REF!"}},"Fin.Return","M1019",{"$f":"'Fin.Return - Other Notes'!M407","v":0}]
[{"$f":"'Standing Data'!$D$12","v":{"$error":"#N/A"}},{"$f":"'Standing Data'!$F$9","v":0},{"$f":"'Standing Data'!#REF!","v":{"$error":"#REF!"}},"Fin.Return","M1021",{"$f":"'Fin.Return - Other Notes'!M409","v":0}]
[{"$f":"'Standing Data'!$D$12","v":{"$error":"#N/A"}},{"$f":"'Standing Data'!$F$9","v":0},{"$f":"'Standing Data'!#REF!","v":{"$error":"#REF!"}},"Fin.Return","M1022",{"$f":"'Fin.Return - Other Notes'!M410","v":0}]
[{"$f":"'Standing Data'!$D$12","v":{"$error":"#N/A"}},{"$f":"'Standing Data'!$F$9","v":0},{"$f":"'Standing Data'!#REF!","v":{"$error":"#REF!"}},"Fin.Return","M1024",{"$f":"'Fin.Return - Other Notes'!M412","v":0}]
[{"$f":"'Standing Data'!$D$12","v":{"$error":"#N/A"}},{"$f":"'Standing Data'!$F$9","v":0},{"$f":"'Standing Data'!#REF!","v":{"$error":"#REF!"}},"Fin.Return","M1082",{"$f":"'Fin.Return - Other Notes'!M456","v":0}]
[{"$f":"'Standing Data'!$D$12","v":{"$error":"#N/A"}},{"$f":"'Standing Data'!$F$9","v":0},{"$f":"'Standing Data'!#REF!","v":{"$error":"#REF!"}},"Fin.Return","M1083",{"$f":"'Fin.Return - Other Notes'!M457","v":0}]
[{"$f":"'Standing Data'!$D$12","v":{"$error":"#N/A"}},{"$f":"'Standing Data'!$F$9","v":0},{"$f":"'Standing Data'!#REF!","v":{"$error":"#REF!"}},"Fin.Return","M1084",{"$f":"'Fin.Return - Other Notes'!M458","v":0}]
[{"$f":"'Standing Data'!$D$12","v":{"$error":"#N/A"}},{"$f":"'Standing Data'!$F$9","v":0},{"$f":"'Standing Data'!#REF!","v":{"$error":"#REF!"}},"Fin.Return","M1086",{"$f":"'Fin.Return - Other Notes'!M460","v":0}]
[{"$f":"'Standing Data'!$D$12","v":{"$error":"#N/A"}},{"$f":"'Standing Data'!$F$9","v":0},{"$f":"'Standing Data'!#REF!","v":{"$error":"#REF!"}},"Fin.Return","M1087",{"$f":"'Fin.Return - Other Notes'!M461","v":0}]
[{"$f":"'Standing Data'!$D$12","v":{"$error":"#N/A"}},{"$f":"'Standing Data'!$F$9","v":0},{"$f":"'Standing Data'!#REF!","v":{"$error":"#REF!"}},"Fin.Return","M1088",{"$f":"'Fin.Return - Other Notes'!M462","v":0}]
[{"$f":"'Standing Data'!$D$12","v":{"$error":"#N/A"}},{"$f":"'Standing Data'!$F$9","v":0},{"$f":"'Standing Data'!#REF!","v":{"$error":"#REF!"}},"Fin.Return","M1090",{"$f":"'Fin.Return - Other Notes'!M464","v":0}]
[{"$f":"'Standing Data'!$D$12","v":{"$error":"#N/A"}},{"$f":"'Standing Data'!$F$9","v":0},{"$f":"'Standing Data'!#REF!","v":{"$error":"#REF!"}},"Fin.Return","M1091",{"$f":"'Fin.Return - Other Notes'!M465","v":0}]
[{"$f":"'Standing Data'!$D$12","v":{"$error":"#N/A"}},{"$f":"'Standing Data'!$F$9","v":0},{"$f":"'Standing Data'!#REF!","v":{"$error":"#REF!"}},"Fin.Return","M1092",{"$f":"'Fin.Return - Other Notes'!M466","v":0}]
[{"$f":"'Standing Data'!$D$12","v":{"$error":"#N/A"}},{"$f":"'Standing Data'!$F$9","v":0},{"$f":"'Standing Data'!#REF!","v":{"$error":"#REF!"}},"Fin.Return","M1094",{"$f":"'Fin.Return - Other Notes'!M468","v":0}]
[{"$f":"'Standing Data'!$D$12","v":{"$error":"#N/A"}},{"$f":"'Standing Data'!$F$9","v":0},{"$f":"'Standing Data'!#REF!","v":{"$error":"#REF!"}},"Fin.Return","M1095",{"$f":"'Fin.Return - Other Notes'!M469","v":0}]
[{"$f":"'Standing Data'!$D$12","v":{"$error":"#N/A"}},{"$f":"'Standing Data'!$F$9","v":0},{"$f":"'Standing Data'!#REF!","v":{"$error":"#REF!"}},"Fin.Return","M1097",{"$f":"'Fin.Return - Other Notes'!M471","v":0}]
[{"$f":"'Standing Data'!$D$12","v":{"$error":"#N/A"}},{"$f":"'Standing Data'!$F$9","v":0},{"$f":"'Standing Data'!#REF!","v":{"$error":"#REF!"}},"Fin.Return","M1111",{"$f":"'Fin.Return - Other Notes'!M485","v":0}]
[{"$f":"'Standing Data'!$D$12","v":{"$error":"#N/A"}},{"$f":"'Standing Data'!$F$9","v":0},{"$f":"'Standing Data'!#REF!","v":{"$error":"#REF!"}},"Fin.Return","M1112",{"$f":"'Fin.Return - Other Notes'!M486","v":0}]
[{"$f":"'Standing Data'!$D$12","v":{"$error":"#N/A"}},{"$f":"'Standing Data'!$F$9","v":0},{"$f":"'Standing Data'!#REF!","v":{"$error":"#REF!"}},"Fin.Return","M1113",{"$f":"'Fin.Return - Other Notes'!M487","v":0}]
[{"$f":"'Standing Data'!$D$12","v":{"$error":"#N/A"}},{"$f":"'Standing Data'!$F$9","v":0},{"$f":"'Standing Data'!#REF!","v":{"$error":"#REF!"}},"Fin.Return","M1115",{"$f":"'Fin.Return - Other Notes'!M489","v":0}]
[{"$f":"'Standing Data'!$D$12","v":{"$error":"#N/A"}},{"$f":"'Standing Data'!$F$9","v":0},{"$f":"'Standing Data'!#REF!","v":{"$error":"#REF!"}},"Fin.Return","M1131",{"$f":"'Fin.Return - Other Notes'!M505","v":0}]
[{"$f":"'Standing Data'!$D$12","v":{"$error":"#N/A"}},{"$f":"'Standing Data'!$F$9","v":0},{"$f":"'Standing Data'!#REF!","v":{"$error":"#REF!"}},"Fin.Return","M1132",{"$f":"'Fin.Return - Other Notes'!M506","v":0}]
[{"$f":"'Standing Data'!$D$12","v":{"$error":"#N/A"}},{"$f":"'Standing Data'!$F$9","v":0},{"$f":"'Standing Data'!#REF!","v":{"$error":"#REF!"}},"Fin.Return","M1133",{"$f":"'Fin.Return - Other Notes'!M507","v":0}]
[{"$f":"'Standing Data'!$D$12","v":{"$error":"#N/A"}},{"$f":"'Standing Data'!$F$9","v":0},{"$f":"'Standing Data'!#REF!","v":{"$error":"#REF!"}},"Fin.Return","M1135",{"$f":"'Fin.Return - Other Notes'!M509","v":0}]
[{"$f":"'Standing Data'!$D$12","v":{"$error":"#N/A"}},{"$f":"'Standing Data'!$F$9","v":0},{"$f":"'Standing Data'!#REF!","v":{"$error":"#REF!"}},"Fin.Return","M1237",{"$f":"'Fin.Return - Other Notes'!M615","v":0}]
[{"$f":"'Standing Data'!$D$12","v":{"$error":"#N/A"}},{"$f":"'Standing Data'!$F$9","v":0},{"$f":"'Standing Data'!#REF!","v":{"$error":"#REF!"}},"Fin.Return","M1238",{"$f":"'Fin.Return - Other Notes'!M616","v":0}]
[{"$f":"'Standing Data'!$D$12","v":{"$error":"#N/A"}},{"$f":"'Standing Data'!$F$9","v":0},{"$f":"'Standing Data'!#REF!","v":{"$error":"#REF!"}},"Fin.Return","M1239",{"$f":"'Fin.Return - Other Notes'!M617","v":0}]
[{"$f":"'Standing Data'!$D$12","v":{"$error":"#N/A"}},{"$f":"'Standing Data'!$F$9","v":0},{"$f":"'Standing Data'!#REF!","v":{"$error":"#REF!"}},"Fin.Return","M1240",{"$f":"'Fin.Return - Other Notes'!M618","v":0}]
[{"$f":"'Standing Data'!$D$12","v":{"$error":"#N/A"}},{"$f":"'Standing Data'!$F$9","v":0},{"$f":"'Standing Data'!#REF!","v":{"$error":"#REF!"}},"Fin.Return","M1241",{"$f":"'Fin.Return - Other Notes'!M619","v":0}]
[{"$f":"'Standing Data'!$D$12","v":{"$error":"#N/A"}},{"$f":"'Standing Data'!$F$9","v":0},{"$f":"'Standing Data'!#REF!","v":{"$error":"#REF!"}},"Fin.Return","M1242",{"$f":"'Fin.Return - Other Notes'!M620","v":0}]
[{"$f":"'Standing Data'!$D$12","v":{"$error":"#N/A"}},{"$f":"'Standing Data'!$F$9","v":0},{"$f":"'Standing Data'!#REF!","v":{"$error":"#REF!"}},"Fin.Return","M1243",{"$f":"'Fin.Return - Other Notes'!M621","v":0}]
[{"$f":"'Standing Data'!$D$12","v":{"$error":"#N/A"}},{"$f":"'Standing Data'!$F$9","v":0},{"$f":"'Standing Data'!#REF!","v":{"$error":"#REF!"}},"Fin.Return","M1244",{"$f":"'Fin.Return - Other Notes'!M622","v":0}]
[{"$f":"'Standing Data'!$D$12","v":{"$error":"#N/A"}},{"$f":"'Standing Data'!$F$9","v":0},{"$f":"'Standing Data'!#REF!","v":{"$error":"#REF!"}},"Fin.Return","M1245",{"$f":"'Fin.Return - Other Notes'!M623","v":0}]
[{"$f":"'Standing Data'!$D$12","v":{"$error":"#N/A"}},{"$f":"'Standing Data'!$F$9","v":0},{"$f":"'Standing Data'!#REF!","v":{"$error":"#REF!"}},"Fin.Return","M1246",{"$f":"'Fin.Return - Other Notes'!M624","v":0}]
[{"$f":"'Standing Data'!$D$12","v":{"$error":"#N/A"}},{"$f":"'Standing Data'!$F$9","v":0},{"$f":"'Standing Data'!#REF!","v":{"$error":"#REF!"}},"Fin.Return","M1247",{"$f":"'Fin.Return - Other Notes'!M625","v":0}]
[{"$f":"'Standing Data'!$D$12","v":{"$error":"#N/A"}},{"$f":"'Standing Data'!$F$9","v":0},{"$f":"'Standing Data'!#REF!","v":{"$error":"#REF!"}},"Fin.Return","M1248",{"$f":"'Fin.Return - Other Notes'!M626","v":0}]
[{"$f":"'Standing Data'!$D$12","v":{"$error":"#N/A"}},{"$f":"'Standing Data'!$F$9","v":0},{"$f":"'Standing Data'!#REF!","v":{"$error":"#REF!"}},"Fin.Return","M1249",{"$f":"'Fin.Return - Other Notes'!M627","v":0}]
[{"$f":"'Standing Data'!$D$12","v":{"$error":"#N/A"}},{"$f":"'Standing Data'!$F$9","v":0},{"$f":"'Standing Data'!#REF!","v":{"$error":"#REF!"}},"Fin.Return","M1250",{"$f":"'Fin.Return - Other Notes'!M628","v":0}]
[{"$f":"'Standing Data'!$D$12","v":{"$error":"#N/A"}},{"$f":"'Standing Data'!$F$9","v":0},{"$f":"'Standing Data'!#REF!","v":{"$error":"#REF!"}},"Fin.Return","M1252",{"$f":"'Fin.Return - Other Notes'!M630","v":0}]
[{"$f":"'Standing Data'!$D$12","v":{"$error":"#N/A"}},{"$f":"'Standing Data'!$F$9","v":0},{"$f":"'Standing Data'!#REF!","v":{"$error":"#REF!"}},"Fin.Return","N468",{"$f":"'Fin.Return - BS'!M64","v":0}]
[{"$f":"'Standing Data'!$D$12","v":{"$error":"#N/A"}},{"$f":"'Standing Data'!$F$9","v":0},{"$f":"'Standing Data'!#REF!","v":{"$error":"#REF!"}},"Fin.Return","N469",{"$f":"'Fin.Return - BS'!M65","v":0}]
[{"$f":"'Standing Data'!$D$12","v":{"$error":"#N/A"}},{"$f":"'Standing Data'!$F$9","v":0},{"$f":"'Standing Data'!#REF!","v":{"$error":"#REF!"}},"Fin.Return","N470",{"$f":"'Fin.Return - BS'!M67","v":0}]
[{"$f":"'Standing Data'!$D$12","v":{"$error":"#N/A"}},{"$f":"'Standing Data'!$F$9","v":0},{"$f":"'Standing Data'!#REF!","v":{"$error":"#REF!"}},"Fin.Return","N471",{"$f":"'Fin.Return - BS'!M68","v":0}]
[{"$f":"'Standing Data'!$D$12","v":{"$error":"#N/A"}},{"$f":"'Standing Data'!$F$9","v":0},{"$f":"'Standing Data'!#REF!","v":{"$error":"#REF!"}},"Fin.Return","N472",{"$f":"'Fin.Return - BS'!M70","v":0}]
[{"$f":"'Standing Data'!$D$12","v":{"$error":"#N/A"}},{"$f":"'Standing Data'!$F$9","v":0},{"$f":"'Standing Data'!#REF!","v":{"$error":"#REF!"}},"Fin.Return","N473",{"$f":"'Fin.Return - BS'!M72","v":0}]
[{"$f":"'Standing Data'!$D$12","v":{"$error":"#N/A"}},{"$f":"'Standing Data'!$F$9","v":0},{"$f":"'Standing Data'!#REF!","v":{"$error":"#REF!"}},"Fin.Return","N474",{"$f":"'Fin.Return - BS'!M74","v":0}]
[{"$f":"'Standing Data'!$D$12","v":{"$error":"#N/A"}},{"$f":"'Standing Data'!$F$9","v":0},{"$f":"'Standing Data'!#REF!","v":{"$error":"#REF!"}},"Fin.Return","N475",{"$f":"'Fin.Return - BS'!M75","v":0}]
[{"$f":"'Standing Data'!$D$12","v":{"$error":"#N/A"}},{"$f":"'Standing Data'!$F$9","v":0},{"$f":"'Standing Data'!#REF!","v":{"$error":"#REF!"}},"Fin.Return","N477",{"$f":"'Fin.Return - BS'!M77","v":0}]
[{"$f":"'Standing Data'!$D$12","v":{"$error":"#N/A"}},{"$f":"'Standing Data'!$F$9","v":0},{"$f":"'Standing Data'!#REF!","v":{"$error":"#REF!"}},"Fin.Return","N480",{"$f":"'Fin.Return - BS'!M80","v":0}]
[{"$f":"'Standing Data'!$D$12","v":{"$error":"#N/A"}},{"$f":"'Standing Data'!$F$9","v":0},{"$f":"'Standing Data'!#REF!","v":{"$error":"#REF!"}},"Fin.Return","N481",{"$f":"'Fin.Return - BS'!M81","v":0}]
[{"$f":"'Standing Data'!$D$12","v":{"$error":"#N/A"}},{"$f":"'Standing Data'!$F$9","v":0},{"$f":"'Standing Data'!#REF!","v":{"$error":"#REF!"}},"Fin.Return","N482",{"$f":"'Fin.Return - BS'!M82","v":0}]
[{"$f":"'Standing Data'!$D$12","v":{"$error":"#N/A"}},{"$f":"'Standing Data'!$F$9","v":0},{"$f":"'Standing Data'!#REF!","v":{"$error":"#REF!"}},"Fin.Return","N483",{"$f":"'Fin.Return - BS'!M84","v":0}]
[{"$f":"'Standing Data'!$D$12","v":{"$error":"#N/A"}},{"$f":"'Standing Data'!$F$9","v":0},{"$f":"'Standing Data'!#REF!","v":{"$error":"#REF!"}},"Fin.Return","N484",{"$f":"'Fin.Return - BS'!M85","v":0}]
[{"$f":"'Standing Data'!$D$12","v":{"$error":"#N/A"}},{"$f":"'Standing Data'!$F$9","v":0},{"$f":"'Standing Data'!#REF!","v":{"$error":"#REF!"}},"Fin.Return","N486",{"$f":"'Fin.Return - BS'!M87","v":0}]
[{"$f":"'Standing Data'!$D$12","v":{"$error":"#N/A"}},{"$f":"'Standing Data'!$F$9","v":0},{"$f":"'Standing Data'!#REF!","v":{"$error":"#REF!"}},"Fin.Return","N489",{"$f":"'Fin.Return - BS'!M90","v":0}]
[{"$f":"'Standing Data'!$D$12","v":{"$error":"#N/A"}},{"$f":"'Standing Data'!$F$9","v":0},{"$f":"'Standing Data'!#REF!","v":{"$error":"#REF!"}},"Fin.Return","N490",{"$f":"'Fin.Return - BS'!M91","v":0}]
[{"$f":"'Standing Data'!$D$12","v":{"$error":"#N/A"}},{"$f":"'Standing Data'!$F$9","v":0},{"$f":"'Standing Data'!#REF!","v":{"$error":"#REF!"}},"Fin.Return","N491",{"$f":"'Fin.Return - BS'!M92","v":0}]
[{"$f":"'Standing Data'!$D$12","v":{"$error":"#N/A"}},{"$f":"'Standing Data'!$F$9","v":0},{"$f":"'Standing Data'!#REF!","v":{"$error":"#REF!"}},"Fin.Return","N493",{"$f":"'Fin.Return - BS'!M95","v":0}]
[{"$f":"'Standing Data'!$D$12","v":{"$error":"#N/A"}},{"$f":"'Standing Data'!$F$9","v":0},{"$f":"'Standing Data'!#REF!","v":{"$error":"#REF!"}},"Fin.Return","N496",{"$f":"'Fin.Return - BS'!M98","v":0}]
[{"$f":"'Standing Data'!$D$12","v":{"$error":"#N/A"}},{"$f":"'Standing Data'!$F$9","v":0},{"$f":"'Standing Data'!#REF!","v":{"$error":"#REF!"}},"Fin.Return","N499",{"$f":"'Fin.Return - BS'!M101","v":0}]
[{"$f":"'Standing Data'!$D$12","v":{"$error":"#N/A"}},{"$f":"'Standing Data'!$F$9","v":0},{"$f":"'Standing Data'!#REF!","v":{"$error":"#REF!"}},"Fin.Return","N503",{"$f":"'Fin.Return - BS'!M105","v":0}]
[{"$f":"'Standing Data'!$D$12","v":{"$error":"#N/A"}},{"$f":"'Standing Data'!$F$9","v":0},{"$f":"'Standing Data'!#REF!","v":{"$error":"#REF!"}},"Fin.Return","N504",{"$f":"'Fin.Return - BS'!M106","v":0}]
[{"$f":"'Standing Data'!$D$12","v":{"$error":"#N/A"}},{"$f":"'Standing Data'!$F$9","v":0},{"$f":"'Standing Data'!#REF!","v":{"$error":"#REF!"}},"Fin.Return","N505",{"$f":"'Fin.Return - BS'!M107","v":0}]
[{"$f":"'Standing Data'!$D$12","v":{"$error":"#N/A"}},{"$f":"'Standing Data'!$F$9","v":0},{"$f":"'Standing Data'!#REF!","v":{"$error":"#REF!"}},"Fin.Return","N514",{"$f":"'Fin.Return - BS'!M116","v":0}]
[{"$f":"'Standing Data'!$D$12","v":{"$error":"#N/A"}},{"$f":"'Standing Data'!$F$9","v":0},{"$f":"'Standing Data'!#REF!","v":{"$error":"#REF!"}},"Fin.Return","N515",{"$f":"'Fin.Return - BS'!M117","v":0}]
[{"$f":"'Standing Data'!$D$12","v":{"$error":"#N/A"}},{"$f":"'Standing Data'!$F$9","v":0},{"$f":"'Standing Data'!#REF!","v":{"$error":"#REF!"}},"Fin.Return","N517",{"$f":"'Fin.Return - BS'!M119","v":0}]
[{"$f":"'Standing Data'!$D$12","v":{"$error":"#N/A"}},{"$f":"'Standing Data'!$F$9","v":0},{"$f":"'Standing Data'!#REF!","v":{"$error":"#REF!"}},"Fin.Return","N519",{"$f":"'Fin.Return - BS'!M121","v":0}]
[{"$f":"'Standing Data'!$D$12","v":{"$error":"#N/A"}},{"$f":"'Standing Data'!$F$9","v":0},{"$f":"'Standing Data'!#REF!","v":{"$error":"#REF!"}},"Fin.Return","N908",{"$f":"'Fin.Return - Other Notes'!N228","v":0}]
[{"$f":"'Standing Data'!$D$12","v":{"$error":"#N/A"}},{"$f":"'Standing Data'!$F$9","v":0},{"$f":"'Standing Data'!#REF!","v":{"$error":"#REF!"}},"Fin.Return","N909",{"$f":"'Fin.Return - Other Notes'!N229","v":0}]
[{"$f":"'Standing Data'!$D$12","v":{"$error":"#N/A"}},{"$f":"'Standing Data'!$F$9","v":0},{"$f":"'Standing Data'!#REF!","v":{"$error":"#REF!"}},"Fin.Return","N910",{"$f":"'Fin.Return - Other Notes'!N230","v":0}]
[{"$f":"'Standing Data'!$D$12","v":{"$error":"#N/A"}},{"$f":"'Standing Data'!$F$9","v":0},{"$f":"'Standing Data'!#REF!","v":{"$error":"#REF!"}},"Fin.Return","N911",{"$f":"'Fin.Return - Other Notes'!N231","v":0}]
[{"$f":"'Standing Data'!$D$12","v":{"$error":"#N/A"}},{"$f":"'Standing Data'!$F$9","v":0},{"$f":"'Standing Data'!#REF!","v":{"$error":"#REF!"}},"Fin.Return","N912",{"$f":"'Fin.Return - Other Notes'!N232","v":0}]
[{"$f":"'Standing Data'!$D$12","v":{"$error":"#N/A"}},{"$f":"'Standing Data'!$F$9","v":0},{"$f":"'Standing Data'!#REF!","v":{"$error":"#REF!"}},"Fin.Return","N914",{"$f":"'Fin.Return - Other Notes'!N234","v":0}]
[{"$f":"'Standing Data'!$D$12","v":{"$error":"#N/A"}},{"$f":"'Standing Data'!$F$9","v":0},{"$f":"'Standing Data'!#REF!","v":{"$error":"#REF!"}},"Fin.Return","N913",{"$f":"'Fin.Return - Other Notes'!N233","v":0}]
[{"$f":"'Standing Data'!$D$12","v":{"$error":"#N/A"}},{"$f":"'Standing Data'!$F$9","v":0},{"$f":"'Standing Data'!#REF!","v":{"$error":"#REF!"}},"Fin.Return","N916",{"$f":"'Fin.Return - Other Notes'!N236","v":0}]
[{"$f":"'Standing Data'!$D$12","v":{"$error":"#N/A"}},{"$f":"'Standing Data'!$F$9","v":0},{"$f":"'Standing Data'!#REF!","v":{"$error":"#REF!"}},"Fin.Return","N917",{"$f":"'Fin.Return - Other Notes'!N237","v":0}]
[{"$f":"'Standing Data'!$D$12","v":{"$error":"#N/A"}},{"$f":"'Standing Data'!$F$9","v":0},{"$f":"'Standing Data'!#REF!","v":{"$error":"#REF!"}},"Fin.Return","N918",{"$f":"'Fin.Return - Other Notes'!N238","v":0}]
[{"$f":"'Standing Data'!$D$12","v":{"$error":"#N/A"}},{"$f":"'Standing Data'!$F$9","v":0},{"$f":"'Standing Data'!#REF!","v":{"$error":"#REF!"}},"Fin.Return","N919",{"$f":"'Fin.Return - Other Notes'!N239","v":0}]
[{"$f":"'Standing Data'!$D$12","v":{"$error":"#N/A"}},{"$f":"'Standing Data'!$F$9","v":0},{"$f":"'Standing Data'!#REF!","v":{"$error":"#REF!"}},"Fin.Return","N920",{"$f":"'Fin.Return - Other Notes'!N240","v":0}]
[{"$f":"'Standing Data'!$D$12","v":{"$error":"#N/A"}},{"$f":"'Standing Data'!$F$9","v":0},{"$f":"'Standing Data'!#REF!","v":{"$error":"#REF!"}},"Fin.Return","N922",{"$f":"'Fin.Return - Other Notes'!N242","v":0}]
[{"$f":"'Standing Data'!$D$12","v":{"$error":"#N/A"}},{"$f":"'Standing Data'!$F$9","v":0},{"$f":"'Standing Data'!#REF!","v":{"$error":"#REF!"}},"Fin.Return","N924",{"$f":"'Fin.Return - Other Notes'!N244","v":0}]
[{"$f":"'Standing Data'!$D$12","v":{"$error":"#N/A"}},{"$f":"'Standing Data'!$F$9","v":0},{"$f":"'Standing Data'!#REF!","v":{"$error":"#REF!"}},"Fin.Return","N925",{"$f":"'Fin.Return - Other Notes'!N245","v":0}]
[{"$f":"'Standing Data'!$D$12","v":{"$error":"#N/A"}},{"$f":"'Standing Data'!$F$9","v":0},{"$f":"'Standing Data'!#REF!","v":{"$error":"#REF!"}},"Fin.Return","N926",{"$f":"'Fin.Return - Other Notes'!N246","v":0}]
[{"$f":"'Standing Data'!$D$12","v":{"$error":"#N/A"}},{"$f":"'Standing Data'!$F$9","v":0},{"$f":"'Standing Data'!#REF!","v":{"$error":"#REF!"}},"Fin.Return","N927",{"$f":"'Fin.Return - Other Notes'!N247","v":0}]
[{"$f":"'Standing Data'!$D$12","v":{"$error":"#N/A"}},{"$f":"'Standing Data'!$F$9","v":0},{"$f":"'Standing Data'!#REF!","v":{"$error":"#REF!"}},"Fin.Return","N928",{"$f":"'Fin.Return - Other Notes'!N248","v":0}]
[{"$f":"'Standing Data'!$D$12","v":{"$error":"#N/A"}},{"$f":"'Standing Data'!$F$9","v":0},{"$f":"'Standing Data'!#REF!","v":{"$error":"#REF!"}},"Fin.Return","N929",{"$f":"'Fin.Return - Other Notes'!N249","v":0}]
[{"$f":"'Standing Data'!$D$12","v":{"$error":"#N/A"}},{"$f":"'Standing Data'!$F$9","v":0},{"$f":"'Standing Data'!#REF!","v":{"$error":"#REF!"}},"Fin.Return","N930",{"$f":"'Fin.Return - Other Notes'!N250","v":0}]
[{"$f":"'Standing Data'!$D$12","v":{"$error":"#N/A"}},{"$f":"'Standing Data'!$F$9","v":0},{"$f":"'Standing Data'!#REF!","v":{"$error":"#REF!"}},"Fin.Return","N931",{"$f":"'Fin.Return - Other Notes'!N251","v":0}]
[{"$f":"'Standing Data'!$D$12","v":{"$error":"#N/A"}},{"$f":"'Standing Data'!$F$9","v":0},{"$f":"'Standing Data'!#REF!","v":{"$error":"#REF!"}},"Fin.Return","N933",{"$f":"'Fin.Return - Other Notes'!N253","v":0}]
[{"$f":"'Standing Data'!$D$12","v":{"$error":"#N/A"}},{"$f":"'Standing Data'!$F$9","v":0},{"$f":"'Standing Data'!#REF!","v":{"$error":"#REF!"}},"Fin.Return","N934",{"$f":"'Fin.Return - Other Notes'!N254","v":0}]
[{"$f":"'Standing Data'!$D$12","v":{"$error":"#N/A"}},{"$f":"'Standing Data'!$F$9","v":0},{"$f":"'Standing Data'!#REF!","v":{"$error":"#REF!"}},"Fin.Return","N935",{"$f":"'Fin.Return - Other Notes'!N255","v":0}]
[{"$f":"'Standing Data'!$D$12","v":{"$error":"#N/A"}},{"$f":"'Standing Data'!$F$9","v":0},{"$f":"'Standing Data'!#REF!","v":{"$error":"#REF!"}},"Fin.Return","N936",{"$f":"'Fin.Return - Other Notes'!N256","v":0}]
[{"$f":"'Standing Data'!$D$12","v":{"$error":"#N/A"}},{"$f":"'Standing Data'!$F$9","v":0},{"$f":"'Standing Data'!#REF!","v":{"$error":"#REF!"}},"Fin.Return","N938",{"$f":"'Fin.Return - Other Notes'!N258","v":0}]
[{"$f":"'Standing Data'!$D$12","v":{"$error":"#N/A"}},{"$f":"'Standing Data'!$F$9","v":0},{"$f":"'Standing Data'!#REF!","v":{"$error":"#REF!"}},"Fin.Return","N940",{"$f":"'Fin.Return - Other Notes'!N260","v":0}]
[{"$f":"'Standing Data'!$D$12","v":{"$error":"#N/A"}},{"$f":"'Standing Data'!$F$9","v":0},{"$f":"'Standing Data'!#REF!","v":{"$error":"#REF!"}},"Fin.Return","N942",{"$f":"'Fin.Return - Other Notes'!N262","v":0}]
[{"$f":"'Standing Data'!$D$12","v":{"$error":"#N/A"}},{"$f":"'Standing Data'!$F$9","v":0},{"$f":"'Standing Data'!#REF!","v":{"$error":"#REF!"}},"Fin.Return","P908",{"$f":"'Fin.Return - Other Notes'!P228","v":0}]
[{"$f":"'Standing Data'!$D$12","v":{"$error":"#N/A"}},{"$f":"'Standing Data'!$F$9","v":0},{"$f":"'Standing Data'!#REF!","v":{"$error":"#REF!"}},"Fin.Return","P909",{"$f":"'Fin.Return - Other Notes'!P229","v":0}]
[{"$f":"'Standing Data'!$D$12","v":{"$error":"#N/A"}},{"$f":"'Standing Data'!$F$9","v":0},{"$f":"'Standing Data'!#REF!","v":{"$error":"#REF!"}},"Fin.Return","P910",{"$f":"'Fin.Return - Other Notes'!P230","v":0}]
[{"$f":"'Standing Data'!$D$12","v":{"$error":"#N/A"}},{"$f":"'Standing Data'!$F$9","v":0},{"$f":"'Standing Data'!#REF!","v":{"$error":"#REF!"}},"Fin.Return","P911",{"$f":"'Fin.Return - Other Notes'!P231","v":0}]
[{"$f":"'Standing Data'!$D$12","v":{"$error":"#N/A"}},{"$f":"'Standing Data'!$F$9","v":0},{"$f":"'Standing Data'!#REF!","v":{"$error":"#REF!"}},"Fin.Return","P912",{"$f":"'Fin.Return - Other Notes'!P232","v":0}]
[{"$f":"'Standing Data'!$D$12","v":{"$error":"#N/A"}},{"$f":"'Standing Data'!$F$9","v":0},{"$f":"'Standing Data'!#REF!","v":{"$error":"#REF!"}},"Fin.Return","P914",{"$f":"'Fin.Return - Other Notes'!P234","v":0}]
[{"$f":"'Standing Data'!$D$12","v":{"$error":"#N/A"}},{"$f":"'Standing Data'!$F$9","v":0},{"$f":"'Standing Data'!#REF!","v":{"$error":"#REF!"}},"Fin.Return","P913",{"$f":"'Fin.Return - Other Notes'!P233","v":0}]
[{"$f":"'Standing Data'!$D$12","v":{"$error":"#N/A"}},{"$f":"'Standing Data'!$F$9","v":0},{"$f":"'Standing Data'!#REF!","v":{"$error":"#REF!"}},"Fin.Return","P916",{"$f":"'Fin.Return - Other Notes'!P236","v":0}]
[{"$f":"'Standing Data'!$D$12","v":{"$error":"#N/A"}},{"$f":"'Standing Data'!$F$9","v":0},{"$f":"'Standing Data'!#REF!","v":{"$error":"#REF!"}},"Fin.Return","P917",{"$f":"'Fin.Return - Other Notes'!P237","v":0}]
[{"$f":"'Standing Data'!$D$12","v":{"$error":"#N/A"}},{"$f":"'Standing Data'!$F$9","v":0},{"$f":"'Standing Data'!#REF!","v":{"$error":"#REF!"}},"Fin.Return","P918",{"$f":"'Fin.Return - Other Notes'!P238","v":0}]
[{"$f":"'Standing Data'!$D$12","v":{"$error":"#N/A"}},{"$f":"'Standing Data'!$F$9","v":0},{"$f":"'Standing Data'!#REF!","v":{"$error":"#REF!"}},"Fin.Return","P919",{"$f":"'Fin.Return - Other Notes'!P239","v":0}]
[{"$f":"'Standing Data'!$D$12","v":{"$error":"#N/A"}},{"$f":"'Standing Data'!$F$9","v":0},{"$f":"'Standing Data'!#REF!","v":{"$error":"#REF!"}},"Fin.Return","P920",{"$f":"'Fin.Return - Other Notes'!P240","v":0}]
[{"$f":"'Standing Data'!$D$12","v":{"$error":"#N/A"}},{"$f":"'Standing Data'!$F$9","v":0},{"$f":"'Standing Data'!#REF!","v":{"$error":"#REF!"}},"Fin.Return","P922",{"$f":"'Fin.Return - Other Notes'!P242","v":0}]
[{"$f":"'Standing Data'!$D$12","v":{"$error":"#N/A"}},{"$f":"'Standing Data'!$F$9","v":0},{"$f":"'Standing Data'!#REF!","v":{"$error":"#REF!"}},"Fin.Return","P924",{"$f":"'Fin.Return - Other Notes'!P244","v":0}]
[{"$f":"'Standing Data'!$D$12","v":{"$error":"#N/A"}},{"$f":"'Standing Data'!$F$9","v":0},{"$f":"'Standing Data'!#REF!","v":{"$error":"#REF!"}},"Fin.Return","P925",{"$f":"'Fin.Return - Other Notes'!P245","v":0}]
[{"$f":"'Standing Data'!$D$12","v":{"$error":"#N/A"}},{"$f":"'Standing Data'!$F$9","v":0},{"$f":"'Standing Data'!#REF!","v":{"$error":"#REF!"}},"Fin.Return","P926",{"$f":"'Fin.Return - Other Notes'!P246","v":0}]
[{"$f":"'Standing Data'!$D$12","v":{"$error":"#N/A"}},{"$f":"'Standing Data'!$F$9","v":0},{"$f":"'Standing Data'!#REF!","v":{"$error":"#REF!"}},"Fin.Return","P927",{"$f":"'Fin.Return - Other Notes'!P247","v":0}]
[{"$f":"'Standing Data'!$D$12","v":{"$error":"#N/A"}},{"$f":"'Standing Data'!$F$9","v":0},{"$f":"'Standing Data'!#REF!","v":{"$error":"#REF!"}},"Fin.Return","P928",{"$f":"'Fin.Return - Other Notes'!P248","v":0}]
[{"$f":"'Standing Data'!$D$12","v":{"$error":"#N/A"}},{"$f":"'Standing Data'!$F$9","v":0},{"$f":"'Standing Data'!#REF!","v":{"$error":"#REF!"}},"Fin.Return","P929",{"$f":"'Fin.Return - Other Notes'!P249","v":0}]
[{"$f":"'Standing Data'!$D$12","v":{"$error":"#N/A"}},{"$f":"'Standing Data'!$F$9","v":0},{"$f":"'Standing Data'!#REF!","v":{"$error":"#REF!"}},"Fin.Return","P930",{"$f":"'Fin.Return - Other Notes'!P250","v":0}]
[{"$f":"'Standing Data'!$D$12","v":{"$error":"#N/A"}},{"$f":"'Standing Data'!$F$9","v":0},{"$f":"'Standing Data'!#REF!","v":{"$error":"#REF!"}},"Fin.Return","P931",{"$f":"'Fin.Return - Other Notes'!P251","v":0}]
[{"$f":"'Standing Data'!$D$12","v":{"$error":"#N/A"}},{"$f":"'Standing Data'!$F$9","v":0},{"$f":"'Standing Data'!#REF!","v":{"$error":"#REF!"}},"Fin.Return","P933",{"$f":"'Fin.Return - Other Notes'!P253","v":0}]
[{"$f":"'Standing Data'!$D$12","v":{"$error":"#N/A"}},{"$f":"'Standing Data'!$F$9","v":0},{"$f":"'Standing Data'!#REF!","v":{"$error":"#REF!"}},"Fin.Return","P934",{"$f":"'Fin.Return - Other Notes'!P254","v":0}]
[{"$f":"'Standing Data'!$D$12","v":{"$error":"#N/A"}},{"$f":"'Standing Data'!$F$9","v":0},{"$f":"'Standing Data'!#REF!","v":{"$error":"#REF!"}},"Fin.Return","P935",{"$f":"'Fin.Return - Other Notes'!P255","v":0}]
[{"$f":"'Standing Data'!$D$12","v":{"$error":"#N/A"}},{"$f":"'Standing Data'!$F$9","v":0},{"$f":"'Standing Data'!#REF!","v":{"$error":"#REF!"}},"Fin.Return","P936",{"$f":"'Fin.Return - Other Notes'!P256","v":0}]
[{"$f":"'Standing Data'!$D$12","v":{"$error":"#N/A"}},{"$f":"'Standing Data'!$F$9","v":0},{"$f":"'Standing Data'!#REF!","v":{"$error":"#REF!"}},"Fin.Return","P938",{"$f":"'Fin.Return - Other Notes'!P258","v":0}]
[{"$f":"'Standing Data'!$D$12","v":{"$error":"#N/A"}},{"$f":"'Standing Data'!$F$9","v":0},{"$f":"'Standing Data'!#REF!","v":{"$error":"#REF!"}},"Fin.Return","P940",{"$f":"'Fin.Return - Other Notes'!P260","v":0}]
[{"$f":"'Standing Data'!$D$12","v":{"$error":"#N/A"}},{"$f":"'Standing Data'!$F$9","v":0},{"$f":"'Standing Data'!#REF!","v":{"$error":"#REF!"}},"Fin.Return","P942",{"$f":"'Fin.Return - Other Notes'!P262","v":0}]
[{"$f":"'Standing Data'!$D$12","v":{"$error":"#N/A"}},{"$f":"'Standing Data'!$F$9","v":0},{"$f":"'Standing Data'!#REF!","v":{"$error":"#REF!"}},"Fin.Return","Q908",{"$f":"'Fin.Return - Other Notes'!Q228","v":0}]
[{"$f":"'Standing Data'!$D$12","v":{"$error":"#N/A"}},{"$f":"'Standing Data'!$F$9","v":0},{"$f":"'Standing Data'!#REF!","v":{"$error":"#REF!"}},"Fin.Return","Q909",{"$f":"'Fin.Return - Other Notes'!Q229","v":0}]
[{"$f":"'Standing Data'!$D$12","v":{"$error":"#N/A"}},{"$f":"'Standing Data'!$F$9","v":0},{"$f":"'Standing Data'!#REF!","v":{"$error":"#REF!"}},"Fin.Return","Q910",{"$f":"'Fin.Return - Other Notes'!Q230","v":0}]
[{"$f":"'Standing Data'!$D$12","v":{"$error":"#N/A"}},{"$f":"'Standing Data'!$F$9","v":0},{"$f":"'Standing Data'!#REF!","v":{"$error":"#REF!"}},"Fin.Return","Q911",{"$f":"'Fin.Return - Other Notes'!Q231","v":0}]
[{"$f":"'Standing Data'!$D$12","v":{"$error":"#N/A"}},{"$f":"'Standing Data'!$F$9","v":0},{"$f":"'Standing Data'!#REF!","v":{"$error":"#REF!"}},"Fin.Return","Q912",{"$f":"'Fin.Return - Other Notes'!Q232","v":0}]
[{"$f":"'Standing Data'!$D$12","v":{"$error":"#N/A"}},{"$f":"'Standing Data'!$F$9","v":0},{"$f":"'Standing Data'!#REF!","v":{"$error":"#REF!"}},"Fin.Return","Q914",{"$f":"'Fin.Return - Other Notes'!Q234","v":0}]
[{"$f":"'Standing Data'!$D$12","v":{"$error":"#N/A"}},{"$f":"'Standing Data'!$F$9","v":0},{"$f":"'Standing Data'!#REF!","v":{"$error":"#REF!"}},"Fin.Return","Q913",{"$f":"'Fin.Return - Other Notes'!Q233","v":0}]
[{"$f":"'Standing Data'!$D$12","v":{"$error":"#N/A"}},{"$f":"'Standing Data'!$F$9","v":0},{"$f":"'Standing Data'!#REF!","v":{"$error":"#REF!"}},"Fin.Return","Q916",{"$f":"'Fin.Return - Other Notes'!Q236","v":0}]
[{"$f":"'Standing Data'!$D$12","v":{"$error":"#N/A"}},{"$f":"'Standing Data'!$F$9","v":0},{"$f":"'Standing Data'!#REF!","v":{"$error":"#REF!"}},"Fin.Return","Q917",{"$f":"'Fin.Return - Other Notes'!Q237","v":0}]
[{"$f":"'Standing Data'!$D$12","v":{"$error":"#N/A"}},{"$f":"'Standing Data'!$F$9","v":0},{"$f":"'Standing Data'!#REF!","v":{"$error":"#REF!"}},"Fin.Return","Q918",{"$f":"'Fin.Return - Other Notes'!Q238","v":0}]
[{"$f":"'Standing Data'!$D$12","v":{"$error":"#N/A"}},{"$f":"'Standing Data'!$F$9","v":0},{"$f":"'Standing Data'!#REF!","v":{"$error":"#REF!"}},"Fin.Return","Q919",{"$f":"'Fin.Return - Other Notes'!Q239","v":0}]
[{"$f":"'Standing Data'!$D$12","v":{"$error":"#N/A"}},{"$f":"'Standing Data'!$F$9","v":0},{"$f":"'Standing Data'!#REF!","v":{"$error":"#REF!"}},"Fin.Return","Q920",{"$f":"'Fin.Return - Other Notes'!Q240","v":0}]
[{"$f":"'Standing Data'!$D$12","v":{"$error":"#N/A"}},{"$f":"'Standing Data'!$F$9","v":0},{"$f":"'Standing Data'!#REF!","v":{"$error":"#REF!"}},"Fin.Return","Q922",{"$f":"'Fin.Return - Other Notes'!Q242","v":0}]
[{"$f":"'Standing Data'!$D$12","v":{"$error":"#N/A"}},{"$f":"'Standing Data'!$F$9","v":0},{"$f":"'Standing Data'!#REF!","v":{"$error":"#REF!"}},"Fin.Return","Q924",{"$f":"'Fin.Return - Other Notes'!Q244","v":0}]
[{"$f":"'Standing Data'!$D$12","v":{"$error":"#N/A"}},{"$f":"'Standing Data'!$F$9","v":0},{"$f":"'Standing Data'!#REF!","v":{"$error":"#REF!"}},"Fin.Return","Q925",{"$f":"'Fin.Return - Other Notes'!Q245","v":0}]
[{"$f":"'Standing Data'!$D$12","v":{"$error":"#N/A"}},{"$f":"'Standing Data'!$F$9","v":0},{"$f":"'Standing Data'!#REF!","v":{"$error":"#REF!"}},"Fin.Return","Q926",{"$f":"'Fin.Return - Other Notes'!Q246","v":0}]
[{"$f":"'Standing Data'!$D$12","v":{"$error":"#N/A"}},{"$f":"'Standing Data'!$F$9","v":0},{"$f":"'Standing Data'!#REF!","v":{"$error":"#REF!"}},"Fin.Return","Q927",{"$f":"'Fin.Return - Other Notes'!Q247","v":0}]
[{"$f":"'Standing Data'!$D$12","v":{"$error":"#N/A"}},{"$f":"'Standing Data'!$F$9","v":0},{"$f":"'Standing Data'!#REF!","v":{"$error":"#REF!"}},"Fin.Return","Q928",{"$f":"'Fin.Return - Other Notes'!Q248","v":0}]
[{"$f":"'Standing Data'!$D$12","v":{"$error":"#N/A"}},{"$f":"'Standing Data'!$F$9","v":0},{"$f":"'Standing Data'!#REF!","v":{"$error":"#REF!"}},"Fin.Return","Q929",{"$f":"'Fin.Return - Other Notes'!Q249","v":0}]
[{"$f":"'Standing Data'!$D$12","v":{"$error":"#N/A"}},{"$f":"'Standing Data'!$F$9","v":0},{"$f":"'Standing Data'!#REF!","v":{"$error":"#REF!"}},"Fin.Return","Q930",{"$f":"'Fin.Return - Other Notes'!Q250","v":0}]
[{"$f":"'Standing Data'!$D$12","v":{"$error":"#N/A"}},{"$f":"'Standing Data'!$F$9","v":0},{"$f":"'Standing Data'!#REF!","v":{"$error":"#REF!"}},"Fin.Return","Q931",{"$f":"'Fin.Return - Other Notes'!Q251","v":0}]
[{"$f":"'Standing Data'!$D$12","v":{"$error":"#N/A"}},{"$f":"'Standing Data'!$F$9","v":0},{"$f":"'Standing Data'!#REF!","v":{"$error":"#REF!"}},"Fin.Return","Q933",{"$f":"'Fin.Return - Other Notes'!Q253","v":0}]
[{"$f":"'Standing Data'!$D$12","v":{"$error":"#N/A"}},{"$f":"'Standing Data'!$F$9","v":0},{"$f":"'Standing Data'!#REF!","v":{"$error":"#REF!"}},"Fin.Return","Q934",{"$f":"'Fin.Return - Other Notes'!Q254","v":0}]
[{"$f":"'Standing Data'!$D$12","v":{"$error":"#N/A"}},{"$f":"'Standing Data'!$F$9","v":0},{"$f":"'Standing Data'!#REF!","v":{"$error":"#REF!"}},"Fin.Return","Q935",{"$f":"'Fin.Return - Other Notes'!Q255","v":0}]
[{"$f":"'Standing Data'!$D$12","v":{"$error":"#N/A"}},{"$f":"'Standing Data'!$F$9","v":0},{"$f":"'Standing Data'!#REF!","v":{"$error":"#REF!"}},"Fin.Return","Q936",{"$f":"'Fin.Return - Other Notes'!Q256","v":0}]
[{"$f":"'Standing Data'!$D$12","v":{"$error":"#N/A"}},{"$f":"'Standing Data'!$F$9","v":0},{"$f":"'Standing Data'!#REF!","v":{"$error":"#REF!"}},"Fin.Return","Q938",{"$f":"'Fin.Return - Other Notes'!Q258","v":0}]
[{"$f":"'Standing Data'!$D$12","v":{"$error":"#N/A"}},{"$f":"'Standing Data'!$F$9","v":0},{"$f":"'Standing Data'!#REF!","v":{"$error":"#REF!"}},"Fin.Return","Q940",{"$f":"'Fin.Return - Other Notes'!Q260","v":0}]
[{"$f":"'Standing Data'!$D$12","v":{"$error":"#N/A"}},{"$f":"'Standing Data'!$F$9","v":0},{"$f":"'Standing Data'!#REF!","v":{"$error":"#REF!"}},"Fin.Return","Q942",{"$f":"'Fin.Return - Other Notes'!Q262","v":0}]
[{"$f":"'Standing Data'!$D$12","v":{"$error":"#N/A"}},{"$f":"'Standing Data'!$F$9","v":0},{"$f":"'Standing Data'!#REF!","v":{"$error":"#REF!"}},"Fin.Return","R908",{"$f":"'Fin.Return - Other Notes'!R228","v":0}]
[{"$f":"'Standing Data'!$D$12","v":{"$error":"#N/A"}},{"$f":"'Standing Data'!$F$9","v":0},{"$f":"'Standing Data'!#REF!","v":{"$error":"#REF!"}},"Fin.Return","R909",{"$f":"'Fin.Return - Other Notes'!R229","v":0}]
[{"$f":"'Standing Data'!$D$12","v":{"$error":"#N/A"}},{"$f":"'Standing Data'!$F$9","v":0},{"$f":"'Standing Data'!#REF!","v":{"$error":"#REF!"}},"Fin.Return","R910",{"$f":"'Fin.Return - Other Notes'!R230","v":0}]
[{"$f":"'Standing Data'!$D$12","v":{"$error":"#N/A"}},{"$f":"'Standing Data'!$F$9","v":0},{"$f":"'Standing Data'!#REF!","v":{"$error":"#REF!"}},"Fin.Return","R911",{"$f":"'Fin.Return - Other Notes'!R231","v":0}]
[{"$f":"'Standing Data'!$D$12","v":{"$error":"#N/A"}},{"$f":"'Standing Data'!$F$9","v":0},{"$f":"'Standing Data'!#REF!","v":{"$error":"#REF!"}},"Fin.Return","R912",{"$f":"'Fin.Return - Other Notes'!R232","v":0}]
[{"$f":"'Standing Data'!$D$12","v":{"$error":"#N/A"}},{"$f":"'Standing Data'!$F$9","v":0},{"$f":"'Standing Data'!#REF!","v":{"$error":"#REF!"}},"Fin.Return","R914",{"$f":"'Fin.Return - Other Notes'!R234","v":0}]
[{"$f":"'Standing Data'!$D$12","v":{"$error":"#N/A"}},{"$f":"'Standing Data'!$F$9","v":0},{"$f":"'Standing Data'!#REF!","v":{"$error":"#REF!"}},"Fin.Return","R913",{"$f":"'Fin.Return - Other Notes'!R233","v":0}]
[{"$f":"'Standing Data'!$D$12","v":{"$error":"#N/A"}},{"$f":"'Standing Data'!$F$9","v":0},{"$f":"'Standing Data'!#REF!","v":{"$error":"#REF!"}},"Fin.Return","R916",{"$f":"'Fin.Return - Other Notes'!R236","v":0}]
[{"$f":"'Standing Data'!$D$12","v":{"$error":"#N/A"}},{"$f":"'Standing Data'!$F$9","v":0},{"$f":"'Standing Data'!#REF!","v":{"$error":"#REF!"}},"Fin.Return","R917",{"$f":"'Fin.Return - Other Notes'!R237","v":0}]
[{"$f":"'Standing Data'!$D$12","v":{"$error":"#N/A"}},{"$f":"'Standing Data'!$F$9","v":0},{"$f":"'Standing Data'!#REF!","v":{"$error":"#REF!"}},"Fin.Return","R918",{"$f":"'Fin.Return - Other Notes'!R238","v":0}]
[{"$f":"'Standing Data'!$D$12","v":{"$error":"#N/A"}},{"$f":"'Standing Data'!$F$9","v":0},{"$f":"'Standing Data'!#REF!","v":{"$error":"#REF!"}},"Fin.Return","R919",{"$f":"'Fin.Return - Other Notes'!R239","v":0}]
[{"$f":"'Standing Data'!$D$12","v":{"$error":"#N/A"}},{"$f":"'Standing Data'!$F$9","v":0},{"$f":"'Standing Data'!#REF!","v":{"$error":"#REF!"}},"Fin.Return","R920",{"$f":"'Fin.Return - Other Notes'!R240","v":0}]
[{"$f":"'Standing Data'!$D$12","v":{"$error":"#N/A"}},{"$f":"'Standing Data'!$F$9","v":0},{"$f":"'Standing Data'!#REF!","v":{"$error":"#REF!"}},"Fin.Return","R922",{"$f":"'Fin.Return - Other Notes'!R242","v":0}]
[{"$f":"'Standing Data'!$D$12","v":{"$error":"#N/A"}},{"$f":"'Standing Data'!$F$9","v":0},{"$f":"'Standing Data'!#REF!","v":{"$error":"#REF!"}},"Fin.Return","R924",{"$f":"'Fin.Return - Other Notes'!R244","v":0}]
[{"$f":"'Standing Data'!$D$12","v":{"$error":"#N/A"}},{"$f":"'Standing Data'!$F$9","v":0},{"$f":"'Standing Data'!#REF!","v":{"$error":"#REF!"}},"Fin.Return","R925",{"$f":"'Fin.Return - Other Notes'!R245","v":0}]
[{"$f":"'Standing Data'!$D$12","v":{"$error":"#N/A"}},{"$f":"'Standing Data'!$F$9","v":0},{"$f":"'Standing Data'!#REF!","v":{"$error":"#REF!"}},"Fin.Return","R926",{"$f":"'Fin.Return - Other Notes'!R246","v":0}]
[{"$f":"'Standing Data'!$D$12","v":{"$error":"#N/A"}},{"$f":"'Standing Data'!$F$9","v":0},{"$f":"'Standing Data'!#REF!","v":{"$error":"#REF!"}},"Fin.Return","R927",{"$f":"'Fin.Return - Other Notes'!R247","v":0}]
[{"$f":"'Standing Data'!$D$12","v":{"$error":"#N/A"}},{"$f":"'Standing Data'!$F$9","v":0},{"$f":"'Standing Data'!#REF!","v":{"$error":"#REF!"}},"Fin.Return","R928",{"$f":"'Fin.Return - Other Notes'!R248","v":0}]
[{"$f":"'Standing Data'!$D$12","v":{"$error":"#N/A"}},{"$f":"'Standing Data'!$F$9","v":0},{"$f":"'Standing Data'!#REF!","v":{"$error":"#REF!"}},"Fin.Return","R929",{"$f":"'Fin.Return - Other Notes'!R249","v":0}]
[{"$f":"'Standing Data'!$D$12","v":{"$error":"#N/A"}},{"$f":"'Standing Data'!$F$9","v":0},{"$f":"'Standing Data'!#REF!","v":{"$error":"#REF!"}},"Fin.Return","R930",{"$f":"'Fin.Return - Other Notes'!R250","v":0}]
[{"$f":"'Standing Data'!$D$12","v":{"$error":"#N/A"}},{"$f":"'Standing Data'!$F$9","v":0},{"$f":"'Standing Data'!#REF!","v":{"$error":"#REF!"}},"Fin.Return","R931",{"$f":"'Fin.Return - Other Notes'!R251","v":0}]
[{"$f":"'Standing Data'!$D$12","v":{"$error":"#N/A"}},{"$f":"'Standing Data'!$F$9","v":0},{"$f":"'Standing Data'!#REF!","v":{"$error":"#REF!"}},"Fin.Return","R933",{"$f":"'Fin.Return - Other Notes'!R253","v":0}]
[{"$f":"'Standing Data'!$D$12","v":{"$error":"#N/A"}},{"$f":"'Standing Data'!$F$9","v":0},{"$f":"'Standing Data'!#REF!","v":{"$error":"#REF!"}},"Fin.Return","R934",{"$f":"'Fin.Return - Other Notes'!R254","v":0}]
[{"$f":"'Standing Data'!$D$12","v":{"$error":"#N/A"}},{"$f":"'Standing Data'!$F$9","v":0},{"$f":"'Standing Data'!#REF!","v":{"$error":"#REF!"}},"Fin.Return","R935",{"$f":"'Fin.Return - Other Notes'!R255","v":0}]
[{"$f":"'Standing Data'!$D$12","v":{"$error":"#N/A"}},{"$f":"'Standing Data'!$F$9","v":0},{"$f":"'Standing Data'!#REF!","v":{"$error":"#REF!"}},"Fin.Return","R936",{"$f":"'Fin.Return - Other Notes'!R256","v":0}]
[{"$f":"'Standing Data'!$D$12","v":{"$error":"#N/A"}},{"$f":"'Standing Data'!$F$9","v":0},{"$f":"'Standing Data'!#REF!","v":{"$error":"#REF!"}},"Fin.Return","R938",{"$f":"'Fin.Return - Other Notes'!R258","v":0}]
[{"$f":"'Standing Data'!$D$12","v":{"$error":"#N/A"}},{"$f":"'Standing Data'!$F$9","v":0},{"$f":"'Standing Data'!#REF!","v":{"$error":"#REF!"}},"Fin.Return","R940",{"$f":"'Fin.Return - Other Notes'!R260","v":0}]
[{"$f":"'Standing Data'!$D$12","v":{"$error":"#N/A"}},{"$f":"'Standing Data'!$F$9","v":0},{"$f":"'Standing Data'!#REF!","v":{"$error":"#REF!"}},"Fin.Return","R942",{"$f":"'Fin.Return - Other Notes'!R262","v":0}]
[{"$f":"'Standing Data'!$D$12","v":{"$error":"#N/A"}},{"$f":"'Standing Data'!$F$9","v":0},{"$f":"'Standing Data'!#REF!","v":{"$error":"#REF!"}},"Fin.Return","S908",{"$f":"'Fin.Return - Other Notes'!S228","v":0}]
[{"$f":"'Standing Data'!$D$12","v":{"$error":"#N/A"}},{"$f":"'Standing Data'!$F$9","v":0},{"$f":"'Standing Data'!#REF!","v":{"$error":"#REF!"}},"Fin.Return","S909",{"$f":"'Fin.Return - Other Notes'!S229","v":0}]
[{"$f":"'Standing Data'!$D$12","v":{"$error":"#N/A"}},{"$f":"'Standing Data'!$F$9","v":0},{"$f":"'Standing Data'!#REF!","v":{"$error":"#REF!"}},"Fin.Return","S910",{"$f":"'Fin.Return - Other Notes'!S230","v":0}]
[{"$f":"'Standing Data'!$D$12","v":{"$error":"#N/A"}},{"$f":"'Standing Data'!$F$9","v":0},{"$f":"'Standing Data'!#REF!","v":{"$error":"#REF!"}},"Fin.Return","S911",{"$f":"'Fin.Return - Other Notes'!S231","v":0}]
[{"$f":"'Standing Data'!$D$12","v":{"$error":"#N/A"}},{"$f":"'Standing Data'!$F$9","v":0},{"$f":"'Standing Data'!#REF!","v":{"$error":"#REF!"}},"Fin.Return","S912",{"$f":"'Fin.Return - Other Notes'!S232","v":0}]
[{"$f":"'Standing Data'!$D$12","v":{"$error":"#N/A"}},{"$f":"'Standing Data'!$F$9","v":0},{"$f":"'Standing Data'!#REF!","v":{"$error":"#REF!"}},"Fin.Return","S914",{"$f":"'Fin.Return - Other Notes'!S234","v":0}]
[{"$f":"'Standing Data'!$D$12","v":{"$error":"#N/A"}},{"$f":"'Standing Data'!$F$9","v":0},{"$f":"'Standing Data'!#REF!","v":{"$error":"#REF!"}},"Fin.Return","S913",{"$f":"'Fin.Return - Other Notes'!S233","v":0}]
[{"$f":"'Standing Data'!$D$12","v":{"$error":"#N/A"}},{"$f":"'Standing Data'!$F$9","v":0},{"$f":"'Standing Data'!#REF!","v":{"$error":"#REF!"}},"Fin.Return","S916",{"$f":"'Fin.Return - Other Notes'!S236","v":0}]
[{"$f":"'Standing Data'!$D$12","v":{"$error":"#N/A"}},{"$f":"'Standing Data'!$F$9","v":0},{"$f":"'Standing Data'!#REF!","v":{"$error":"#REF!"}},"Fin.Return","S917",{"$f":"'Fin.Return - Other Notes'!S237","v":0}]
[{"$f":"'Standing Data'!$D$12","v":{"$error":"#N/A"}},{"$f":"'Standing Data'!$F$9","v":0},{"$f":"'Standing Data'!#REF!","v":{"$error":"#REF!"}},"Fin.Return","S918",{"$f":"'Fin.Return - Other Notes'!S238","v":0}]
[{"$f":"'Standing Data'!$D$12","v":{"$error":"#N/A"}},{"$f":"'Standing Data'!$F$9","v":0},{"$f":"'Standing Data'!#REF!","v":{"$error":"#REF!"}},"Fin.Return","S919",{"$f":"'Fin.Return - Other Notes'!S239","v":0}]
[{"$f":"'Standing Data'!$D$12","v":{"$error":"#N/A"}},{"$f":"'Standing Data'!$F$9","v":0},{"$f":"'Standing Data'!#REF!","v":{"$error":"#REF!"}},"Fin.Return","S920",{"$f":"'Fin.Return - Other Notes'!S240","v":0}]
[{"$f":"'Standing Data'!$D$12","v":{"$error":"#N/A"}},{"$f":"'Standing Data'!$F$9","v":0},{"$f":"'Standing Data'!#REF!","v":{"$error":"#REF!"}},"Fin.Return","S922",{"$f":"'Fin.Return - Other Notes'!S242","v":0}]
[{"$f":"'Standing Data'!$D$12","v":{"$error":"#N/A"}},{"$f":"'Standing Data'!$F$9","v":0},{"$f":"'Standing Data'!#REF!","v":{"$error":"#REF!"}},"Fin.Return","S924",{"$f":"'Fin.Return - Other Notes'!S244","v":0}]
[{"$f":"'Standing Data'!$D$12","v":{"$error":"#N/A"}},{"$f":"'Standing Data'!$F$9","v":0},{"$f":"'Standing Data'!#REF!","v":{"$error":"#REF!"}},"Fin.Return","S925",{"$f":"'Fin.Return - Other Notes'!S245","v":0}]
[{"$f":"'Standing Data'!$D$12","v":{"$error":"#N/A"}},{"$f":"'Standing Data'!$F$9","v":0},{"$f":"'Standing Data'!#REF!","v":{"$error":"#REF!"}},"Fin.Return","S926",{"$f":"'Fin.Return - Other Notes'!S246","v":0}]
[{"$f":"'Standing Data'!$D$12","v":{"$error":"#N/A"}},{"$f":"'Standing Data'!$F$9","v":0},{"$f":"'Standing Data'!#REF!","v":{"$error":"#REF!"}},"Fin.Return","S927",{"$f":"'Fin.Return - Other Notes'!S247","v":0}]
[{"$f":"'Standing Data'!$D$12","v":{"$error":"#N/A"}},{"$f":"'Standing Data'!$F$9","v":0},{"$f":"'Standing Data'!#REF!","v":{"$error":"#REF!"}},"Fin.Return","S928",{"$f":"'Fin.Return - Other Notes'!S248","v":0}]
[{"$f":"'Standing Data'!$D$12","v":{"$error":"#N/A"}},{"$f":"'Standing Data'!$F$9","v":0},{"$f":"'Standing Data'!#REF!","v":{"$error":"#REF!"}},"Fin.Return","S929",{"$f":"'Fin.Return - Other Notes'!S249","v":0}]
[{"$f":"'Standing Data'!$D$12","v":{"$error":"#N/A"}},{"$f":"'Standing Data'!$F$9","v":0},{"$f":"'Standing Data'!#REF!","v":{"$error":"#REF!"}},"Fin.Return","S930",{"$f":"'Fin.Return - Other Notes'!S250","v":0}]
[{"$f":"'Standing Data'!$D$12","v":{"$error":"#N/A"}},{"$f":"'Standing Data'!$F$9","v":0},{"$f":"'Standing Data'!#REF!","v":{"$error":"#REF!"}},"Fin.Return","S931",{"$f":"'Fin.Return - Other Notes'!S251","v":0}]
[{"$f":"'Standing Data'!$D$12","v":{"$error":"#N/A"}},{"$f":"'Standing Data'!$F$9","v":0},{"$f":"'Standing Data'!#REF!","v":{"$error":"#REF!"}},"Fin.Return","S933",{"$f":"'Fin.Return - Other Notes'!S253","v":0}]
[{"$f":"'Standing Data'!$D$12","v":{"$error":"#N/A"}},{"$f":"'Standing Data'!$F$9","v":0},{"$f":"'Standing Data'!#REF!","v":{"$error":"#REF!"}},"Fin.Return","S934",{"$f":"'Fin.Return - Other Notes'!S254","v":0}]
[{"$f":"'Standing Data'!$D$12","v":{"$error":"#N/A"}},{"$f":"'Standing Data'!$F$9","v":0},{"$f":"'Standing Data'!#REF!","v":{"$error":"#REF!"}},"Fin.Return","S935",{"$f":"'Fin.Return - Other Notes'!S255","v":0}]
[{"$f":"'Standing Data'!$D$12","v":{"$error":"#N/A"}},{"$f":"'Standing Data'!$F$9","v":0},{"$f":"'Standing Data'!#REF!","v":{"$error":"#REF!"}},"Fin.Return","S936",{"$f":"'Fin.Return - Other Notes'!S256","v":0}]
[{"$f":"'Standing Data'!$D$12","v":{"$error":"#N/A"}},{"$f":"'Standing Data'!$F$9","v":0},{"$f":"'Standing Data'!#REF!","v":{"$error":"#REF!"}},"Fin.Return","S938",{"$f":"'Fin.Return - Other Notes'!S258","v":0}]
[{"$f":"'Standing Data'!$D$12","v":{"$error":"#N/A"}},{"$f":"'Standing Data'!$F$9","v":0},{"$f":"'Standing Data'!#REF!","v":{"$error":"#REF!"}},"Fin.Return","S940",{"$f":"'Fin.Return - Other Notes'!S260","v":0}]
[{"$f":"'Standing Data'!$D$12","v":{"$error":"#N/A"}},{"$f":"'Standing Data'!$F$9","v":0},{"$f":"'Standing Data'!#REF!","v":{"$error":"#REF!"}},"Fin.Return","S942",{"$f":"'Fin.Return - Other Notes'!S262","v":0}]
[{"$f":"'Standing Data'!$D$12","v":{"$error":"#N/A"}},{"$f":"'Standing Data'!$F$9","v":0},{"$f":"'Standing Data'!#REF!","v":{"$error":"#REF!"}},"Fin.Return","T908",{"$f":"'Fin.Return - Other Notes'!T228","v":0}]
[{"$f":"'Standing Data'!$D$12","v":{"$error":"#N/A"}},{"$f":"'Standing Data'!$F$9","v":0},{"$f":"'Standing Data'!#REF!","v":{"$error":"#REF!"}},"Fin.Return","T909",{"$f":"'Fin.Return - Other Notes'!T229","v":0}]
[{"$f":"'Standing Data'!$D$12","v":{"$error":"#N/A"}},{"$f":"'Standing Data'!$F$9","v":0},{"$f":"'Standing Data'!#REF!","v":{"$error":"#REF!"}},"Fin.Return","T910",{"$f":"'Fin.Return - Other Notes'!T230","v":0}]
[{"$f":"'Standing Data'!$D$12","v":{"$error":"#N/A"}},{"$f":"'Standing Data'!$F$9","v":0},{"$f":"'Standing Data'!#REF!","v":{"$error":"#REF!"}},"Fin.Return","T911",{"$f":"'Fin.Return - Other Notes'!T231","v":0}]
[{"$f":"'Standing Data'!$D$12","v":{"$error":"#N/A"}},{"$f":"'Standing Data'!$F$9","v":0},{"$f":"'Standing Data'!#REF!","v":{"$error":"#REF!"}},"Fin.Return","T912",{"$f":"'Fin.Return - Other Notes'!T232","v":0}]
[{"$f":"'Standing Data'!$D$12","v":{"$error":"#N/A"}},{"$f":"'Standing Data'!$F$9","v":0},{"$f":"'Standing Data'!#REF!","v":{"$error":"#REF!"}},"Fin.Return","T914",{"$f":"'Fin.Return - Other Notes'!T234","v":0}]
[{"$f":"'Standing Data'!$D$12","v":{"$error":"#N/A"}},{"$f":"'Standing Data'!$F$9","v":0},{"$f":"'Standing Data'!#REF!","v":{"$error":"#REF!"}},"Fin.Return","T913",{"$f":"'Fin.Return - Other Notes'!T233","v":0}]
[{"$f":"'Standing Data'!$D$12","v":{"$error":"#N/A"}},{"$f":"'Standing Data'!$F$9","v":0},{"$f":"'Standing Data'!#REF!","v":{"$error":"#REF!"}},"Fin.Return","T916",{"$f":"'Fin.Return - Other Notes'!T236","v":0}]
[{"$f":"'Standing Data'!$D$12","v":{"$error":"#N/A"}},{"$f":"'Standing Data'!$F$9","v":0},{"$f":"'Standing Data'!#REF!","v":{"$error":"#REF!"}},"Fin.Return","T917",{"$f":"'Fin.Return - Other Notes'!T237","v":0}]
[{"$f":"'Standing Data'!$D$12","v":{"$error":"#N/A"}},{"$f":"'Standing Data'!$F$9","v":0},{"$f":"'Standing Data'!#REF!","v":{"$error":"#REF!"}},"Fin.Return","T918",{"$f":"'Fin.Return - Other Notes'!T238","v":0}]
[{"$f":"'Standing Data'!$D$12","v":{"$error":"#N/A"}},{"$f":"'Standing Data'!$F$9","v":0},{"$f":"'Standing Data'!#REF!","v":{"$error":"#REF!"}},"Fin.Return","T919",{"$f":"'Fin.Return - Other Notes'!T239","v":0}]
[{"$f":"'Standing Data'!$D$12","v":{"$error":"#N/A"}},{"$f":"'Standing Data'!$F$9","v":0},{"$f":"'Standing Data'!#REF!","v":{"$error":"#REF!"}},"Fin.Return","T920",{"$f":"'Fin.Return - Other Notes'!T240","v":0}]
[{"$f":"'Standing Data'!$D$12","v":{"$error":"#N/A"}},{"$f":"'Standing Data'!$F$9","v":0},{"$f":"'Standing Data'!#REF!","v":{"$error":"#REF!"}},"Fin.Return","T922",{"$f":"'Fin.Return - Other Notes'!T242","v":0}]
[{"$f":"'Standing Data'!$D$12","v":{"$error":"#N/A"}},{"$f":"'Standing Data'!$F$9","v":0},{"$f":"'Standing Data'!#REF!","v":{"$error":"#REF!"}},"Fin.Return","T924",{"$f":"'Fin.Return - Other Notes'!T244","v":0}]
[{"$f":"'Standing Data'!$D$12","v":{"$error":"#N/A"}},{"$f":"'Standing Data'!$F$9","v":0},{"$f":"'Standing Data'!#REF!","v":{"$error":"#REF!"}},"Fin.Return","T925",{"$f":"'Fin.Return - Other Notes'!T245","v":0}]
[{"$f":"'Standing Data'!$D$12","v":{"$error":"#N/A"}},{"$f":"'Standing Data'!$F$9","v":0},{"$f":"'Standing Data'!#REF!","v":{"$error":"#REF!"}},"Fin.Return","T926",{"$f":"'Fin.Return - Other Notes'!T246","v":0}]
[{"$f":"'Standing Data'!$D$12","v":{"$error":"#N/A"}},{"$f":"'Standing Data'!$F$9","v":0},{"$f":"'Standing Data'!#REF!","v":{"$error":"#REF!"}},"Fin.Return","T927",{"$f":"'Fin.Return - Other Notes'!T247","v":0}]
[{"$f":"'Standing Data'!$D$12","v":{"$error":"#N/A"}},{"$f":"'Standing Data'!$F$9","v":0},{"$f":"'Standing Data'!#REF!","v":{"$error":"#REF!"}},"Fin.Return","T928",{"$f":"'Fin.Return - Other Notes'!T248","v":0}]
[{"$f":"'Standing Data'!$D$12","v":{"$error":"#N/A"}},{"$f":"'Standing Data'!$F$9","v":0},{"$f":"'Standing Data'!#REF!","v":{"$error":"#REF!"}},"Fin.Return","T929",{"$f":"'Fin.Return - Other Notes'!T249","v":0}]
[{"$f":"'Standing Data'!$D$12","v":{"$error":"#N/A"}},{"$f":"'Standing Data'!$F$9","v":0},{"$f":"'Standing Data'!#REF!","v":{"$error":"#REF!"}},"Fin.Return","T930",{"$f":"'Fin.Return - Other Notes'!T250","v":0}]
[{"$f":"'Standing Data'!$D$12","v":{"$error":"#N/A"}},{"$f":"'Standing Data'!$F$9","v":0},{"$f":"'Standing Data'!#REF!","v":{"$error":"#REF!"}},"Fin.Return","T931",{"$f":"'Fin.Return - Other Notes'!T251","v":0}]
[{"$f":"'Standing Data'!$D$12","v":{"$error":"#N/A"}},{"$f":"'Standing Data'!$F$9","v":0},{"$f":"'Standing Data'!#REF!","v":{"$error":"#REF!"}},"Fin.Return","T933",{"$f":"'Fin.Return - Other Notes'!T253","v":0}]
[{"$f":"'Standing Data'!$D$12","v":{"$error":"#N/A"}},{"$f":"'Standing Data'!$F$9","v":0},{"$f":"'Standing Data'!#REF!","v":{"$error":"#REF!"}},"Fin.Return","T934",{"$f":"'Fin.Return - Other Notes'!T254","v":0}]
[{"$f":"'Standing Data'!$D$12","v":{"$error":"#N/A"}},{"$f":"'Standing Data'!$F$9","v":0},{"$f":"'Standing Data'!#REF!","v":{"$error":"#REF!"}},"Fin.Return","T935",{"$f":"'Fin.Return - Other Notes'!T255","v":0}]
[{"$f":"'Standing Data'!$D$12","v":{"$error":"#N/A"}},{"$f":"'Standing Data'!$F$9","v":0},{"$f":"'Standing Data'!#REF!","v":{"$error":"#REF!"}},"Fin.Return","T936",{"$f":"'Fin.Return - Other Notes'!T256","v":0}]
[{"$f":"'Standing Data'!$D$12","v":{"$error":"#N/A"}},{"$f":"'Standing Data'!$F$9","v":0},{"$f":"'Standing Data'!#REF!","v":{"$error":"#REF!"}},"Fin.Return","T938",{"$f":"'Fin.Return - Other Notes'!T258","v":0}]
[{"$f":"'Standing Data'!$D$12","v":{"$error":"#N/A"}},{"$f":"'Standing Data'!$F$9","v":0},{"$f":"'Standing Data'!#REF!","v":{"$error":"#REF!"}},"Fin.Return","T940",{"$f":"'Fin.Return - Other Notes'!T260","v":0}]
[{"$f":"'Standing Data'!$D$12","v":{"$error":"#N/A"}},{"$f":"'Standing Data'!$F$9","v":0},{"$f":"'Standing Data'!#REF!","v":{"$error":"#REF!"}},"Fin.Return","T942",{"$f":"'Fin.Return - Other Notes'!T262","v":0}]
[{"$f":"'Standing Data'!$D$12","v":{"$error":"#N/A"}},{"$f":"'Standing Data'!$F$9","v":0},{"$f":"'Standing Data'!#REF!","v":{"$error":"#REF!"}},"Fin.Return","U908",{"$f":"'Fin.Return - Other Notes'!U228","v":0}]
[{"$f":"'Standing Data'!$D$12","v":{"$error":"#N/A"}},{"$f":"'Standing Data'!$F$9","v":0},{"$f":"'Standing Data'!#REF!","v":{"$error":"#REF!"}},"Fin.Return","U909",{"$f":"'Fin.Return - Other Notes'!U229","v":0}]
[{"$f":"'Standing Data'!$D$12","v":{"$error":"#N/A"}},{"$f":"'Standing Data'!$F$9","v":0},{"$f":"'Standing Data'!#REF!","v":{"$error":"#REF!"}},"Fin.Return","U910",{"$f":"'Fin.Return - Other Notes'!U230","v":0}]
[{"$f":"'Standing Data'!$D$12","v":{"$error":"#N/A"}},{"$f":"'Standing Data'!$F$9","v":0},{"$f":"'Standing Data'!#REF!","v":{"$error":"#REF!"}},"Fin.Return","U911",{"$f":"'Fin.Return - Other Notes'!U231","v":0}]
[{"$f":"'Standing Data'!$D$12","v":{"$error":"#N/A"}},{"$f":"'Standing Data'!$F$9","v":0},{"$f":"'Standing Data'!#REF!","v":{"$error":"#REF!"}},"Fin.Return","U912",{"$f":"'Fin.Return - Other Notes'!U232","v":0}]
[{"$f":"'Standing Data'!$D$12","v":{"$error":"#N/A"}},{"$f":"'Standing Data'!$F$9","v":0},{"$f":"'Standing Data'!#REF!","v":{"$error":"#REF!"}},"Fin.Return","U914",{"$f":"'Fin.Return - Other Notes'!U234","v":0}]
[{"$f":"'Standing Data'!$D$12","v":{"$error":"#N/A"}},{"$f":"'Standing Data'!$F$9","v":0},{"$f":"'Standing Data'!#REF!","v":{"$error":"#REF!"}},"Fin.Return","U913",{"$f":"'Fin.Return - Other Notes'!U233","v":0}]
[{"$f":"'Standing Data'!$D$12","v":{"$error":"#N/A"}},{"$f":"'Standing Data'!$F$9","v":0},{"$f":"'Standing Data'!#REF!","v":{"$error":"#REF!"}},"Fin.Return","U916",{"$f":"'Fin.Return - Other Notes'!U236","v":0}]
[{"$f":"'Standing Data'!$D$12","v":{"$error":"#N/A"}},{"$f":"'Standing Data'!$F$9","v":0},{"$f":"'Standing Data'!#REF!","v":{"$error":"#REF!"}},"Fin.Return","U917",{"$f":"'Fin.Return - Other Notes'!U237","v":0}]
[{"$f":"'Standing Data'!$D$12","v":{"$error":"#N/A"}},{"$f":"'Standing Data'!$F$9","v":0},{"$f":"'Standing Data'!#REF!","v":{"$error":"#REF!"}},"Fin.Return","U918",{"$f":"'Fin.Return - Other Notes'!U238","v":0}]
[{"$f":"'Standing Data'!$D$12","v":{"$error":"#N/A"}},{"$f":"'Standing Data'!$F$9","v":0},{"$f":"'Standing Data'!#REF!","v":{"$error":"#REF!"}},"Fin.Return","U919",{"$f":"'Fin.Return - Other Notes'!U239","v":0}]
[{"$f":"'Standing Data'!$D$12","v":{"$error":"#N/A"}},{"$f":"'Standing Data'!$F$9","v":0},{"$f":"'Standing Data'!#REF!","v":{"$error":"#REF!"}},"Fin.Return","U920",{"$f":"'Fin.Return - Other Notes'!U240","v":0}]
[{"$f":"'Standing Data'!$D$12","v":{"$error":"#N/A"}},{"$f":"'Standing Data'!$F$9","v":0},{"$f":"'Standing Data'!#REF!","v":{"$error":"#REF!"}},"Fin.Return","U922",{"$f":"'Fin.Return - Other Notes'!U242","v":0}]
[{"$f":"'Standing Data'!$D$12","v":{"$error":"#N/A"}},{"$f":"'Standing Data'!$F$9","v":0},{"$f":"'Standing Data'!#REF!","v":{"$error":"#REF!"}},"Fin.Return","U924",{"$f":"'Fin.Return - Other Notes'!U244","v":0}]
[{"$f":"'Standing Data'!$D$12","v":{"$error":"#N/A"}},{"$f":"'Standing Data'!$F$9","v":0},{"$f":"'Standing Data'!#REF!","v":{"$error":"#REF!"}},"Fin.Return","U925",{"$f":"'Fin.Return - Other Notes'!U245","v":0}]
[{"$f":"'Standing Data'!$D$12","v":{"$error":"#N/A"}},{"$f":"'Standing Data'!$F$9","v":0},{"$f":"'Standing Data'!#REF!","v":{"$error":"#REF!"}},"Fin.Return","U926",{"$f":"'Fin.Return - Other Notes'!U246","v":0}]
[{"$f":"'Standing Data'!$D$12","v":{"$error":"#N/A"}},{"$f":"'Standing Data'!$F$9","v":0},{"$f":"'Standing Data'!#REF!","v":{"$error":"#REF!"}},"Fin.Return","U927",{"$f":"'Fin.Return - Other Notes'!U247","v":0}]
[{"$f":"'Standing Data'!$D$12","v":{"$error":"#N/A"}},{"$f":"'Standing Data'!$F$9","v":0},{"$f":"'Standing Data'!#REF!","v":{"$error":"#REF!"}},"Fin.Return","U928",{"$f":"'Fin.Return - Other Notes'!U248","v":0}]
[{"$f":"'Standing Data'!$D$12","v":{"$error":"#N/A"}},{"$f":"'Standing Data'!$F$9","v":0},{"$f":"'Standing Data'!#REF!","v":{"$error":"#REF!"}},"Fin.Return","U929",{"$f":"'Fin.Return - Other Notes'!U249","v":0}]
[{"$f":"'Standing Data'!$D$12","v":{"$error":"#N/A"}},{"$f":"'Standing Data'!$F$9","v":0},{"$f":"'Standing Data'!#REF!","v":{"$error":"#REF!"}},"Fin.Return","U930",{"$f":"'Fin.Return - Other Notes'!U250","v":0}]
[{"$f":"'Standing Data'!$D$12","v":{"$error":"#N/A"}},{"$f":"'Standing Data'!$F$9","v":0},{"$f":"'Standing Data'!#REF!","v":{"$error":"#REF!"}},"Fin.Return","U931",{"$f":"'Fin.Return - Other Notes'!U251","v":0}]
[{"$f":"'Standing Data'!$D$12","v":{"$error":"#N/A"}},{"$f":"'Standing Data'!$F$9","v":0},{"$f":"'Standing Data'!#REF!","v":{"$error":"#REF!"}},"Fin.Return","U933",{"$f":"'Fin.Return - Other Notes'!U253","v":0}]
[{"$f":"'Standing Data'!$D$12","v":{"$error":"#N/A"}},{"$f":"'Standing Data'!$F$9","v":0},{"$f":"'Standing Data'!#REF!","v":{"$error":"#REF!"}},"Fin.Return","U934",{"$f":"'Fin.Return - Other Notes'!U254","v":0}]
[{"$f":"'Standing Data'!$D$12","v":{"$error":"#N/A"}},{"$f":"'Standing Data'!$F$9","v":0},{"$f":"'Standing Data'!#REF!","v":{"$error":"#REF!"}},"Fin.Return","U935",{"$f":"'Fin.Return - Other Notes'!U255","v":0}]
[{"$f":"'Standing Data'!$D$12","v":{"$error":"#N/A"}},{"$f":"'Standing Data'!$F$9","v":0},{"$f":"'Standing Data'!#REF!","v":{"$error":"#REF!"}},"Fin.Return","U936",{"$f":"'Fin.Return - Other Notes'!U256","v":0}]
[{"$f":"'Standing Data'!$D$12","v":{"$error":"#N/A"}},{"$f":"'Standing Data'!$F$9","v":0},{"$f":"'Standing Data'!#REF!","v":{"$error":"#REF!"}},"Fin.Return","U938",{"$f":"'Fin.Return - Other Notes'!U258","v":0}]
[{"$f":"'Standing Data'!$D$12","v":{"$error":"#N/A"}},{"$f":"'Standing Data'!$F$9","v":0},{"$f":"'Standing Data'!#REF!","v":{"$error":"#REF!"}},"Fin.Return","U940",{"$f":"'Fin.Return - Other Notes'!U260","v":0}]
[{"$f":"'Standing Data'!$D$12","v":{"$error":"#N/A"}},{"$f":"'Standing Data'!$F$9","v":0},{"$f":"'Standing Data'!#REF!","v":{"$error":"#REF!"}},"Fin.Return","U942",{"$f":"'Fin.Return - Other Notes'!U262","v":0}]
[{"$f":"'Standing Data'!$D$12","v":{"$error":"#N/A"}},{"$f":"'Standing Data'!$F$9","v":0},{"$f":"'Standing Data'!#REF!","v":{"$error":"#REF!"}},"Fin.Return","V908",{"$f":"'Fin.Return - Other Notes'!V228","v":0}]
[{"$f":"'Standing Data'!$D$12","v":{"$error":"#N/A"}},{"$f":"'Standing Data'!$F$9","v":0},{"$f":"'Standing Data'!#REF!","v":{"$error":"#REF!"}},"Fin.Return","V909",{"$f":"'Fin.Return - Other Notes'!V229","v":0}]
[{"$f":"'Standing Data'!$D$12","v":{"$error":"#N/A"}},{"$f":"'Standing Data'!$F$9","v":0},{"$f":"'Standing Data'!#REF!","v":{"$error":"#REF!"}},"Fin.Return","V910",{"$f":"'Fin.Return - Other Notes'!V230","v":0}]
[{"$f":"'Standing Data'!$D$12","v":{"$error":"#N/A"}},{"$f":"'Standing Data'!$F$9","v":0},{"$f":"'Standing Data'!#REF!","v":{"$error":"#REF!"}},"Fin.Return","V911",{"$f":"'Fin.Return - Other Notes'!V231","v":0}]
[{"$f":"'Standing Data'!$D$12","v":{"$error":"#N/A"}},{"$f":"'Standing Data'!$F$9","v":0},{"$f":"'Standing Data'!#REF!","v":{"$error":"#REF!"}},"Fin.Return","V912",{"$f":"'Fin.Return - Other Notes'!V232","v":0}]
[{"$f":"'Standing Data'!$D$12","v":{"$error":"#N/A"}},{"$f":"'Standing Data'!$F$9","v":0},{"$f":"'Standing Data'!#REF!","v":{"$error":"#REF!"}},"Fin.Return","V914",{"$f":"'Fin.Return - Other Notes'!V234","v":0}]
[{"$f":"'Standing Data'!$D$12","v":{"$error":"#N/A"}},{"$f":"'Standing Data'!$F$9","v":0},{"$f":"'Standing Data'!#REF!","v":{"$error":"#REF!"}},"Fin.Return","V913",{"$f":"'Fin.Return - Other Notes'!V233","v":0}]
[{"$f":"'Standing Data'!$D$12","v":{"$error":"#N/A"}},{"$f":"'Standing Data'!$F$9","v":0},{"$f":"'Standing Data'!#REF!","v":{"$error":"#REF!"}},"Fin.Return","V916",{"$f":"'Fin.Return - Other Notes'!V236","v":0}]
[{"$f":"'Standing Data'!$D$12","v":{"$error":"#N/A"}},{"$f":"'Standing Data'!$F$9","v":0},{"$f":"'Standing Data'!#REF!","v":{"$error":"#REF!"}},"Fin.Return","V917",{"$f":"'Fin.Return - Other Notes'!V237","v":0}]
[{"$f":"'Standing Data'!$D$12","v":{"$error":"#N/A"}},{"$f":"'Standing Data'!$F$9","v":0},{"$f":"'Standing Data'!#REF!","v":{"$error":"#REF!"}},"Fin.Return","V918",{"$f":"'Fin.Return - Other Notes'!V238","v":0}]
[{"$f":"'Standing Data'!$D$12","v":{"$error":"#N/A"}},{"$f":"'Standing Data'!$F$9","v":0},{"$f":"'Standing Data'!#REF!","v":{"$error":"#REF!"}},"Fin.Return","V919",{"$f":"'Fin.Return - Other Notes'!V239","v":0}]
[{"$f":"'Standing Data'!$D$12","v":{"$error":"#N/A"}},{"$f":"'Standing Data'!$F$9","v":0},{"$f":"'Standing Data'!#REF!","v":{"$error":"#REF!"}},"Fin.Return","V920",{"$f":"'Fin.Return - Other Notes'!V240","v":0}]
[{"$f":"'Standing Data'!$D$12","v":{"$error":"#N/A"}},{"$f":"'Standing Data'!$F$9","v":0},{"$f":"'Standing Data'!#REF!","v":{"$error":"#REF!"}},"Fin.Return","V922",{"$f":"'Fin.Return - Other Notes'!V242","v":0}]
[{"$f":"'Standing Data'!$D$12","v":{"$error":"#N/A"}},{"$f":"'Standing Data'!$F$9","v":0},{"$f":"'Standing Data'!#REF!","v":{"$error":"#REF!"}},"Fin.Return","V924",{"$f":"'Fin.Return - Other Notes'!V244","v":0}]
[{"$f":"'Standing Data'!$D$12","v":{"$error":"#N/A"}},{"$f":"'Standing Data'!$F$9","v":0},{"$f":"'Standing Data'!#REF!","v":{"$error":"#REF!"}},"Fin.Return","V925",{"$f":"'Fin.Return - Other Notes'!V245","v":0}]
[{"$f":"'Standing Data'!$D$12","v":{"$error":"#N/A"}},{"$f":"'Standing Data'!$F$9","v":0},{"$f":"'Standing Data'!#REF!","v":{"$error":"#REF!"}},"Fin.Return","V926",{"$f":"'Fin.Return - Other Notes'!V246","v":0}]
[{"$f":"'Standing Data'!$D$12","v":{"$error":"#N/A"}},{"$f":"'Standing Data'!$F$9","v":0},{"$f":"'Standing Data'!#REF!","v":{"$error":"#REF!"}},"Fin.Return","V927",{"$f":"'Fin.Return - Other Notes'!V247","v":0}]
[{"$f":"'Standing Data'!$D$12","v":{"$error":"#N/A"}},{"$f":"'Standing Data'!$F$9","v":0},{"$f":"'Standing Data'!#REF!","v":{"$error":"#REF!"}},"Fin.Return","V928",{"$f":"'Fin.Return - Other Notes'!V248","v":0}]
[{"$f":"'Standing Data'!$D$12","v":{"$error":"#N/A"}},{"$f":"'Standing Data'!$F$9","v":0},{"$f":"'Standing Data'!#REF!","v":{"$error":"#REF!"}},"Fin.Return","V929",{"$f":"'Fin.Return - Other Notes'!V249","v":0}]
[{"$f":"'Standing Data'!$D$12","v":{"$error":"#N/A"}},{"$f":"'Standing Data'!$F$9","v":0},{"$f":"'Standing Data'!#REF!","v":{"$error":"#REF!"}},"Fin.Return","V930",{"$f":"'Fin.Return - Other Notes'!V250","v":0}]
[{"$f":"'Standing Data'!$D$12","v":{"$error":"#N/A"}},{"$f":"'Standing Data'!$F$9","v":0},{"$f":"'Standing Data'!#REF!","v":{"$error":"#REF!"}},"Fin.Return","V931",{"$f":"'Fin.Return - Other Notes'!V251","v":0}]
[{"$f":"'Standing Data'!$D$12","v":{"$error":"#N/A"}},{"$f":"'Standing Data'!$F$9","v":0},{"$f":"'Standing Data'!#REF!","v":{"$error":"#REF!"}},"Fin.Return","V933",{"$f":"'Fin.Return - Other Notes'!V253","v":0}]
[{"$f":"'Standing Data'!$D$12","v":{"$error":"#N/A"}},{"$f":"'Standing Data'!$F$9","v":0},{"$f":"'Standing Data'!#REF!","v":{"$error":"#REF!"}},"Fin.Return","V934",{"$f":"'Fin.Return - Other Notes'!V254","v":0}]
[{"$f":"'Standing Data'!$D$12","v":{"$error":"#N/A"}},{"$f":"'Standing Data'!$F$9","v":0},{"$f":"'Standing Data'!#REF!","v":{"$error":"#REF!"}},"Fin.Return","V935",{"$f":"'Fin.Return - Other Notes'!V255","v":0}]
[{"$f":"'Standing Data'!$D$12","v":{"$error":"#N/A"}},{"$f":"'Standing Data'!$F$9","v":0},{"$f":"'Standing Data'!#REF!","v":{"$error":"#REF!"}},"Fin.Return","V936",{"$f":"'Fin.Return - Other Notes'!V256","v":0}]
[{"$f":"'Standing Data'!$D$12","v":{"$error":"#N/A"}},{"$f":"'Standing Data'!$F$9","v":0},{"$f":"'Standing Data'!#REF!","v":{"$error":"#REF!"}},"Fin.Return","V938",{"$f":"'Fin.Return - Other Notes'!V258","v":0}]
[{"$f":"'Standing Data'!$D$12","v":{"$error":"#N/A"}},{"$f":"'Standing Data'!$F$9","v":0},{"$f":"'Standing Data'!#REF!","v":{"$error":"#REF!"}},"Fin.Return","V940",{"$f":"'Fin.Return - Other Notes'!V260","v":0}]
[{"$f":"'Standing Data'!$D$12","v":{"$error":"#N/A"}},{"$f":"'Standing Data'!$F$9","v":0},{"$f":"'Standing Data'!#REF!","v":{"$error":"#REF!"}},"Fin.Return","V942",{"$f":"'Fin.Return - Other Notes'!V262","v":0}]
[{"$f":"'Standing Data'!$D$12","v":{"$error":"#N/A"}},{"$f":"'Standing Data'!$F$9","v":0},{"$f":"'Standing Data'!#REF!","v":{"$error":"#REF!"}},"Fin.Return","W908",{"$f":"'Fin.Return - Other Notes'!W228","v":0}]
[{"$f":"'Standing Data'!$D$12","v":{"$error":"#N/A"}},{"$f":"'Standing Data'!$F$9","v":0},{"$f":"'Standing Data'!#REF!","v":{"$error":"#REF!"}},"Fin.Return","W909",{"$f":"'Fin.Return - Other Notes'!W229","v":0}]
[{"$f":"'Standing Data'!$D$12","v":{"$error":"#N/A"}},{"$f":"'Standing Data'!$F$9","v":0},{"$f":"'Standing Data'!#REF!","v":{"$error":"#REF!"}},"Fin.Return","W910",{"$f":"'Fin.Return - Other Notes'!W230","v":0}]
[{"$f":"'Standing Data'!$D$12","v":{"$error":"#N/A"}},{"$f":"'Standing Data'!$F$9","v":0},{"$f":"'Standing Data'!#REF!","v":{"$error":"#REF!"}},"Fin.Return","W911",{"$f":"'Fin.Return - Other Notes'!W231","v":0}]
[{"$f":"'Standing Data'!$D$12","v":{"$error":"#N/A"}},{"$f":"'Standing Data'!$F$9","v":0},{"$f":"'Standing Data'!#REF!","v":{"$error":"#REF!"}},"Fin.Return","W912",{"$f":"'Fin.Return - Other Notes'!W232","v":0}]
[{"$f":"'Standing Data'!$D$12","v":{"$error":"#N/A"}},{"$f":"'Standing Data'!$F$9","v":0},{"$f":"'Standing Data'!#REF!","v":{"$error":"#REF!"}},"Fin.Return","W914",{"$f":"'Fin.Return - Other Notes'!W234","v":0}]
[{"$f":"'Standing Data'!$D$12","v":{"$error":"#N/A"}},{"$f":"'Standing Data'!$F$9","v":0},{"$f":"'Standing Data'!#REF!","v":{"$error":"#REF!"}},"Fin.Return","W913",{"$f":"'Fin.Return - Other Notes'!W233","v":0}]
[{"$f":"'Standing Data'!$D$12","v":{"$error":"#N/A"}},{"$f":"'Standing Data'!$F$9","v":0},{"$f":"'Standing Data'!#REF!","v":{"$error":"#REF!"}},"Fin.Return","W916",{"$f":"'Fin.Return - Other Notes'!W236","v":0}]
[{"$f":"'Standing Data'!$D$12","v":{"$error":"#N/A"}},{"$f":"'Standing Data'!$F$9","v":0},{"$f":"'Standing Data'!#REF!","v":{"$error":"#REF!"}},"Fin.Return","W917",{"$f":"'Fin.Return - Other Notes'!W237","v":0}]
[{"$f":"'Standing Data'!$D$12","v":{"$error":"#N/A"}},{"$f":"'Standing Data'!$F$9","v":0},{"$f":"'Standing Data'!#REF!","v":{"$error":"#REF!"}},"Fin.Return","W918",{"$f":"'Fin.Return - Other Notes'!W238","v":0}]
[{"$f":"'Standing Data'!$D$12","v":{"$error":"#N/A"}},{"$f":"'Standing Data'!$F$9","v":0},{"$f":"'Standing Data'!#REF!","v":{"$error":"#REF!"}},"Fin.Return","W919",{"$f":"'Fin.Return - Other Notes'!W239","v":0}]
[{"$f":"'Standing Data'!$D$12","v":{"$error":"#N/A"}},{"$f":"'Standing Data'!$F$9","v":0},{"$f":"'Standing Data'!#REF!","v":{"$error":"#REF!"}},"Fin.Return","W920",{"$f":"'Fin.Return - Other Notes'!W240","v":0}]
[{"$f":"'Standing Data'!$D$12","v":{"$error":"#N/A"}},{"$f":"'Standing Data'!$F$9","v":0},{"$f":"'Standing Data'!#REF!","v":{"$error":"#REF!"}},"Fin.Return","W922",{"$f":"'Fin.Return - Other Notes'!W242","v":0}]
[{"$f":"'Standing Data'!$D$12","v":{"$error":"#N/A"}},{"$f":"'Standing Data'!$F$9","v":0},{"$f":"'Standing Data'!#REF!","v":{"$error":"#REF!"}},"Fin.Return","W924",{"$f":"'Fin.Return - Other Notes'!W244","v":0}]
[{"$f":"'Standing Data'!$D$12","v":{"$error":"#N/A"}},{"$f":"'Standing Data'!$F$9","v":0},{"$f":"'Standing Data'!#REF!","v":{"$error":"#REF!"}},"Fin.Return","W925",{"$f":"'Fin.Return - Other Notes'!W245","v":0}]
[{"$f":"'Standing Data'!$D$12","v":{"$error":"#N/A"}},{"$f":"'Standing Data'!$F$9","v":0},{"$f":"'Standing Data'!#REF!","v":{"$error":"#REF!"}},"Fin.Return","W926",{"$f":"'Fin.Return - Other Notes'!W246","v":0}]
[{"$f":"'Standing Data'!$D$12","v":{"$error":"#N/A"}},{"$f":"'Standing Data'!$F$9","v":0},{"$f":"'Standing Data'!#REF!","v":{"$error":"#REF!"}},"Fin.Return","W927",{"$f":"'Fin.Return - Other Notes'!W247","v":0}]
[{"$f":"'Standing Data'!$D$12","v":{"$error":"#N/A"}},{"$f":"'Standing Data'!$F$9","v":0},{"$f":"'Standing Data'!#REF!","v":{"$error":"#REF!"}},"Fin.Return","W928",{"$f":"'Fin.Return - Other Notes'!W248","v":0}]
[{"$f":"'Standing Data'!$D$12","v":{"$error":"#N/A"}},{"$f":"'Standing Data'!$F$9","v":0},{"$f":"'Standing Data'!#REF!","v":{"$error":"#REF!"}},"Fin.Return","W929",{"$f":"'Fin.Return - Other Notes'!W249","v":0}]
[{"$f":"'Standing Data'!$D$12","v":{"$error":"#N/A"}},{"$f":"'Standing Data'!$F$9","v":0},{"$f":"'Standing Data'!#REF!","v":{"$error":"#REF!"}},"Fin.Return","W930",{"$f":"'Fin.Return - Other Notes'!W250","v":0}]
[{"$f":"'Standing Data'!$D$12","v":{"$error":"#N/A"}},{"$f":"'Standing Data'!$F$9","v":0},{"$f":"'Standing Data'!#REF!","v":{"$error":"#REF!"}},"Fin.Return","W931",{"$f":"'Fin.Return - Other Notes'!W251","v":0}]
[{"$f":"'Standing Data'!$D$12","v":{"$error":"#N/A"}},{"$f":"'Standing Data'!$F$9","v":0},{"$f":"'Standing Data'!#REF!","v":{"$error":"#REF!"}},"Fin.Return","W933",{"$f":"'Fin.Return - Other Notes'!W253","v":0}]
[{"$f":"'Standing Data'!$D$12","v":{"$error":"#N/A"}},{"$f":"'Standing Data'!$F$9","v":0},{"$f":"'Standing Data'!#REF!","v":{"$error":"#REF!"}},"Fin.Return","W934",{"$f":"'Fin.Return - Other Notes'!W254","v":0}]
[{"$f":"'Standing Data'!$D$12","v":{"$error":"#N/A"}},{"$f":"'Standing Data'!$F$9","v":0},{"$f":"'Standing Data'!#REF!","v":{"$error":"#REF!"}},"Fin.Return","W935",{"$f":"'Fin.Return - Other Notes'!W255","v":0}]
[{"$f":"'Standing Data'!$D$12","v":{"$error":"#N/A"}},{"$f":"'Standing Data'!$F$9","v":0},{"$f":"'Standing Data'!#REF!","v":{"$error":"#REF!"}},"Fin.Return","W936",{"$f":"'Fin.Return - Other Notes'!W256","v":0}]
[{"$f":"'Standing Data'!$D$12","v":{"$error":"#N/A"}},{"$f":"'Standing Data'!$F$9","v":0},{"$f":"'Standing Data'!#REF!","v":{"$error":"#REF!"}},"Fin.Return","W938",{"$f":"'Fin.Return - Other Notes'!W258","v":0}]
[{"$f":"'Standing Data'!$D$12","v":{"$error":"#N/A"}},{"$f":"'Standing Data'!$F$9","v":0},{"$f":"'Standing Data'!#REF!","v":{"$error":"#REF!"}},"Fin.Return","W940",{"$f":"'Fin.Return - Other Notes'!W260","v":0}]
[{"$f":"'Standing Data'!$D$12","v":{"$error":"#N/A"}},{"$f":"'Standing Data'!$F$9","v":0},{"$f":"'Standing Data'!#REF!","v":{"$error":"#REF!"}},"Fin.Return","W942",{"$f":"'Fin.Return - Other Notes'!W262","v":0}]
[{"$f":"'Standing Data'!$D$12","v":{"$error":"#N/A"}},{"$f":"'Standing Data'!$F$9","v":0},{"$f":"'Standing Data'!#REF!","v":{"$error":"#REF!"}},"Fin.Return","X908",{"$f":"'Fin.Return - Other Notes'!X228","v":0}]
[{"$f":"'Standing Data'!$D$12","v":{"$error":"#N/A"}},{"$f":"'Standing Data'!$F$9","v":0},{"$f":"'Standing Data'!#REF!","v":{"$error":"#REF!"}},"Fin.Return","X909",{"$f":"'Fin.Return - Other Notes'!X229","v":0}]
[{"$f":"'Standing Data'!$D$12","v":{"$error":"#N/A"}},{"$f":"'Standing Data'!$F$9","v":0},{"$f":"'Standing Data'!#REF!","v":{"$error":"#REF!"}},"Fin.Return","X910",{"$f":"'Fin.Return - Other Notes'!X230","v":0}]
[{"$f":"'Standing Data'!$D$12","v":{"$error":"#N/A"}},{"$f":"'Standing Data'!$F$9","v":0},{"$f":"'Standing Data'!#REF!","v":{"$error":"#REF!"}},"Fin.Return","X911",{"$f":"'Fin.Return - Other Notes'!X231","v":0}]
[{"$f":"'Standing Data'!$D$12","v":{"$error":"#N/A"}},{"$f":"'Standing Data'!$F$9","v":0},{"$f":"'Standing Data'!#REF!","v":{"$error":"#REF!"}},"Fin.Return","X912",{"$f":"'Fin.Return - Other Notes'!X232","v":0}]
[{"$f":"'Standing Data'!$D$12","v":{"$error":"#N/A"}},{"$f":"'Standing Data'!$F$9","v":0},{"$f":"'Standing Data'!#REF!","v":{"$error":"#REF!"}},"Fin.Return","X914",{"$f":"'Fin.Return - Other Notes'!X234","v":0}]
[{"$f":"'Standing Data'!$D$12","v":{"$error":"#N/A"}},{"$f":"'Standing Data'!$F$9","v":0},{"$f":"'Standing Data'!#REF!","v":{"$error":"#REF!"}},"Fin.Return","X913",{"$f":"'Fin.Return - Other Notes'!X233","v":0}]
[{"$f":"'Standing Data'!$D$12","v":{"$error":"#N/A"}},{"$f":"'Standing Data'!$F$9","v":0},{"$f":"'Standing Data'!#REF!","v":{"$error":"#REF!"}},"Fin.Return","X916",{"$f":"'Fin.Return - Other Notes'!X236","v":0}]
[{"$f":"'Standing Data'!$D$12","v":{"$error":"#N/A"}},{"$f":"'Standing Data'!$F$9","v":0},{"$f":"'Standing Data'!#REF!","v":{"$error":"#REF!"}},"Fin.Return","X917",{"$f":"'Fin.Return - Other Notes'!X237","v":0}]
[{"$f":"'Standing Data'!$D$12","v":{"$error":"#N/A"}},{"$f":"'Standing Data'!$F$9","v":0},{"$f":"'Standing Data'!#REF!","v":{"$error":"#REF!"}},"Fin.Return","X918",{"$f":"'Fin.Return - Other Notes'!X238","v":0}]
[{"$f":"'Standing Data'!$D$12","v":{"$error":"#N/A"}},{"$f":"'Standing Data'!$F$9","v":0},{"$f":"'Standing Data'!#REF!","v":{"$error":"#REF!"}},"Fin.Return","X919",{"$f":"'Fin.Return - Other Notes'!X239","v":0}]
[{"$f":"'Standing Data'!$D$12","v":{"$error":"#N/A"}},{"$f":"'Standing Data'!$F$9","v":0},{"$f":"'Standing Data'!#REF!","v":{"$error":"#REF!"}},"Fin.Return","X920",{"$f":"'Fin.Return - Other Notes'!X240","v":0}]
[{"$f":"'Standing Data'!$D$12","v":{"$error":"#N/A"}},{"$f":"'Standing Data'!$F$9","v":0},{"$f":"'Standing Data'!#REF!","v":{"$error":"#REF!"}},"Fin.Return","X922",{"$f":"'Fin.Return - Other Notes'!X242","v":0}]
[{"$f":"'Standing Data'!$D$12","v":{"$error":"#N/A"}},{"$f":"'Standing Data'!$F$9","v":0},{"$f":"'Standing Data'!#REF!","v":{"$error":"#REF!"}},"Fin.Return","X924",{"$f":"'Fin.Return - Other Notes'!X244","v":0}]
[{"$f":"'Standing Data'!$D$12","v":{"$error":"#N/A"}},{"$f":"'Standing Data'!$F$9","v":0},{"$f":"'Standing Data'!#REF!","v":{"$error":"#REF!"}},"Fin.Return","X925",{"$f":"'Fin.Return - Other Notes'!X245","v":0}]
[{"$f":"'Standing Data'!$D$12","v":{"$error":"#N/A"}},{"$f":"'Standing Data'!$F$9","v":0},{"$f":"'Standing Data'!#REF!","v":{"$error":"#REF!"}},"Fin.Return","X926",{"$f":"'Fin.Return - Other Notes'!X246","v":0}]
[{"$f":"'Standing Data'!$D$12","v":{"$error":"#N/A"}},{"$f":"'Standing Data'!$F$9","v":0},{"$f":"'Standing Data'!#REF!","v":{"$error":"#REF!"}},"Fin.Return","X927",{"$f":"'Fin.Return - Other Notes'!X247","v":0}]
[{"$f":"'Standing Data'!$D$12","v":{"$error":"#N/A"}},{"$f":"'Standing Data'!$F$9","v":0},{"$f":"'Standing Data'!#REF!","v":{"$error":"#REF!"}},"Fin.Return","X928",{"$f":"'Fin.Return - Other Notes'!X248","v":0}]
[{"$f":"'Standing Data'!$D$12","v":{"$error":"#N/A"}},{"$f":"'Standing Data'!$F$9","v":0},{"$f":"'Standing Data'!#REF!","v":{"$error":"#REF!"}},"Fin.Return","X929",{"$f":"'Fin.Return - Other Notes'!X249","v":0}]
[{"$f":"'Standing Data'!$D$12","v":{"$error":"#N/A"}},{"$f":"'Standing Data'!$F$9","v":0},{"$f":"'Standing Data'!#REF!","v":{"$error":"#REF!"}},"Fin.Return","X930",{"$f":"'Fin.Return - Other Notes'!X250","v":0}]
[{"$f":"'Standing Data'!$D$12","v":{"$error":"#N/A"}},{"$f":"'Standing Data'!$F$9","v":0},{"$f":"'Standing Data'!#REF!","v":{"$error":"#REF!"}},"Fin.Return","X931",{"$f":"'Fin.Return - Other Notes'!X251","v":0}]
[{"$f":"'Standing Data'!$D$12","v":{"$error":"#N/A"}},{"$f":"'Standing Data'!$F$9","v":0},{"$f":"'Standing Data'!#REF!","v":{"$error":"#REF!"}},"Fin.Return","X933",{"$f":"'Fin.Return - Other Notes'!X253","v":0}]
[{"$f":"'Standing Data'!$D$12","v":{"$error":"#N/A"}},{"$f":"'Standing Data'!$F$9","v":0},{"$f":"'Standing Data'!#REF!","v":{"$error":"#REF!"}},"Fin.Return","X934",{"$f":"'Fin.Return - Other Notes'!X254","v":0}]
[{"$f":"'Standing Data'!$D$12","v":{"$error":"#N/A"}},{"$f":"'Standing Data'!$F$9","v":0},{"$f":"'Standing Data'!#REF!","v":{"$error":"#REF!"}},"Fin.Return","X935",{"$f":"'Fin.Return - Other Notes'!X255","v":0}]
[{"$f":"'Standing Data'!$D$12","v":{"$error":"#N/A"}},{"$f":"'Standing Data'!$F$9","v":0},{"$f":"'Standing Data'!#REF!","v":{"$error":"#REF!"}},"Fin.Return","X936",{"$f":"'Fin.Return - Other Notes'!X256","v":0}]
[{"$f":"'Standing Data'!$D$12","v":{"$error":"#N/A"}},{"$f":"'Standing Data'!$F$9","v":0},{"$f":"'Standing Data'!#REF!","v":{"$error":"#REF!"}},"Fin.Return","X938",{"$f":"'Fin.Return - Other Notes'!X258","v":0}]
[{"$f":"'Standing Data'!$D$12","v":{"$error":"#N/A"}},{"$f":"'Standing Data'!$F$9","v":0},{"$f":"'Standing Data'!#REF!","v":{"$error":"#REF!"}},"Fin.Return","X940",{"$f":"'Fin.Return - Other Notes'!X260","v":0}]
[{"$f":"'Standing Data'!$D$12","v":{"$error":"#N/A"}},{"$f":"'Standing Data'!$F$9","v":0},{"$f":"'Standing Data'!#REF!","v":{"$error":"#REF!"}},"Fin.Return","X942",{"$f":"'Fin.Return - Other Notes'!X262","v":0}]
[{"$f":"'Standing Data'!$D$12","v":{"$error":"#N/A"}},{"$f":"'Standing Data'!$F$9","v":0},{"$f":"'Standing Data'!#REF!","v":{"$error":"#REF!"}},"Fin.Return","Y908",{"$f":"'Fin.Return - Other Notes'!AU228","v":0}]
[{"$f":"'Standing Data'!$D$12","v":{"$error":"#N/A"}},{"$f":"'Standing Data'!$F$9","v":0},{"$f":"'Standing Data'!#REF!","v":{"$error":"#REF!"}},"Fin.Return","Y909",{"$f":"'Fin.Return - Other Notes'!AU229","v":0}]
[{"$f":"'Standing Data'!$D$12","v":{"$error":"#N/A"}},{"$f":"'Standing Data'!$F$9","v":0},{"$f":"'Standing Data'!#REF!","v":{"$error":"#REF!"}},"Fin.Return","Y910",{"$f":"'Fin.Return - Other Notes'!AU230","v":0}]
[{"$f":"'Standing Data'!$D$12","v":{"$error":"#N/A"}},{"$f":"'Standing Data'!$F$9","v":0},{"$f":"'Standing Data'!#REF!","v":{"$error":"#REF!"}},"Fin.Return","Y911",{"$f":"'Fin.Return - Other Notes'!AU231","v":0}]
[{"$f":"'Standing Data'!$D$12","v":{"$error":"#N/A"}},{"$f":"'Standing Data'!$F$9","v":0},{"$f":"'Standing Data'!#REF!","v":{"$error":"#REF!"}},"Fin.Return","Y912",{"$f":"'Fin.Return - Other Notes'!AU232","v":0}]
[{"$f":"'Standing Data'!$D$12","v":{"$error":"#N/A"}},{"$f":"'Standing Data'!$F$9","v":0},{"$f":"'Standing Data'!#REF!","v":{"$error":"#REF!"}},"Fin.Return","Y914",{"$f":"'Fin.Return - Other Notes'!AU234","v":0}]
[{"$f":"'Standing Data'!$D$12","v":{"$error":"#N/A"}},{"$f":"'Standing Data'!$F$9","v":0},{"$f":"'Standing Data'!#REF!","v":{"$error":"#REF!"}},"Fin.Return","Y913",{"$f":"'Fin.Return - Other Notes'!AU233","v":0}]
[{"$f":"'Standing Data'!$D$12","v":{"$error":"#N/A"}},{"$f":"'Standing Data'!$F$9","v":0},{"$f":"'Standing Data'!#REF!","v":{"$error":"#REF!"}},"Fin.Return","Y916",{"$f":"'Fin.Return - Other Notes'!AU236","v":0}]
[{"$f":"'Standing Data'!$D$12","v":{"$error":"#N/A"}},{"$f":"'Standing Data'!$F$9","v":0},{"$f":"'Standing Data'!#REF!","v":{"$error":"#REF!"}},"Fin.Return","Y917",{"$f":"'Fin.Return - Other Notes'!AU237","v":0}]
[{"$f":"'Standing Data'!$D$12","v":{"$error":"#N/A"}},{"$f":"'Standing Data'!$F$9","v":0},{"$f":"'Standing Data'!#REF!","v":{"$error":"#REF!"}},"Fin.Return","Y918",{"$f":"'Fin.Return - Other Notes'!AU238","v":0}]
[{"$f":"'Standing Data'!$D$12","v":{"$error":"#N/A"}},{"$f":"'Standing Data'!$F$9","v":0},{"$f":"'Standing Data'!#REF!","v":{"$error":"#REF!"}},"Fin.Return","Y919",{"$f":"'Fin.Return - Other Notes'!AU239","v":0}]
[{"$f":"'Standing Data'!$D$12","v":{"$error":"#N/A"}},{"$f":"'Standing Data'!$F$9","v":0},{"$f":"'Standing Data'!#REF!","v":{"$error":"#REF!"}},"Fin.Return","Y920",{"$f":"'Fin.Return - Other Notes'!AU240","v":0}]
[{"$f":"'Standing Data'!$D$12","v":{"$error":"#N/A"}},{"$f":"'Standing Data'!$F$9","v":0},{"$f":"'Standing Data'!#REF!","v":{"$error":"#REF!"}},"Fin.Return","Y922",{"$f":"'Fin.Return - Other Notes'!AU242","v":0}]
[{"$f":"'Standing Data'!$D$12","v":{"$error":"#N/A"}},{"$f":"'Standing Data'!$F$9","v":0},{"$f":"'Standing Data'!#REF!","v":{"$error":"#REF!"}},"Fin.Return","Y924",{"$f":"'Fin.Return - Other Notes'!AU244","v":0}]
[{"$f":"'Standing Data'!$D$12","v":{"$error":"#N/A"}},{"$f":"'Standing Data'!$F$9","v":0},{"$f":"'Standing Data'!#REF!","v":{"$error":"#REF!"}},"Fin.Return","Y925",{"$f":"'Fin.Return - Other Notes'!AU245","v":0}]
[{"$f":"'Standing Data'!$D$12","v":{"$error":"#N/A"}},{"$f":"'Standing Data'!$F$9","v":0},{"$f":"'Standing Data'!#REF!","v":{"$error":"#REF!"}},"Fin.Return","Y926",{"$f":"'Fin.Return - Other Notes'!AU246","v":0}]
[{"$f":"'Standing Data'!$D$12","v":{"$error":"#N/A"}},{"$f":"'Standing Data'!$F$9","v":0},{"$f":"'Standing Data'!#REF!","v":{"$error":"#REF!"}},"Fin.Return","Y927",{"$f":"'Fin.Return - Other Notes'!AU247","v":0}]
[{"$f":"'Standing Data'!$D$12","v":{"$error":"#N/A"}},{"$f":"'Standing Data'!$F$9","v":0},{"$f":"'Standing Data'!#REF!","v":{"$error":"#REF!"}},"Fin.Return","Y928",{"$f":"'Fin.Return - Other Notes'!AU248","v":0}]
[{"$f":"'Standing Data'!$D$12","v":{"$error":"#N/A"}},{"$f":"'Standing Data'!$F$9","v":0},{"$f":"'Standing Data'!#REF!","v":{"$error":"#REF!"}},"Fin.Return","Y929",{"$f":"'Fin.Return - Other Notes'!AU249","v":0}]
[{"$f":"'Standing Data'!$D$12","v":{"$error":"#N/A"}},{"$f":"'Standing Data'!$F$9","v":0},{"$f":"'Standing Data'!#REF!","v":{"$error":"#REF!"}},"Fin.Return","Y930",{"$f":"'Fin.Return - Other Notes'!AU250","v":0}]
[{"$f":"'Standing Data'!$D$12","v":{"$error":"#N/A"}},{"$f":"'Standing Data'!$F$9","v":0},{"$f":"'Standing Data'!#REF!","v":{"$error":"#REF!"}},"Fin.Return","Y931",{"$f":"'Fin.Return - Other Notes'!AU251","v":0}]
[{"$f":"'Standing Data'!$D$12","v":{"$error":"#N/A"}},{"$f":"'Standing Data'!$F$9","v":0},{"$f":"'Standing Data'!#REF!","v":{"$error":"#REF!"}},"Fin.Return","Y933",{"$f":"'Fin.Return - Other Notes'!AU253","v":0}]
[{"$f":"'Standing Data'!$D$12","v":{"$error":"#N/A"}},{"$f":"'Standing Data'!$F$9","v":0},{"$f":"'Standing Data'!#REF!","v":{"$error":"#REF!"}},"Fin.Return","Y934",{"$f":"'Fin.Return - Other Notes'!AU254","v":0}]
[{"$f":"'Standing Data'!$D$12","v":{"$error":"#N/A"}},{"$f":"'Standing Data'!$F$9","v":0},{"$f":"'Standing Data'!#REF!","v":{"$error":"#REF!"}},"Fin.Return","Y935",{"$f":"'Fin.Return - Other Notes'!AU255","v":0}]
[{"$f":"'Standing Data'!$D$12","v":{"$error":"#N/A"}},{"$f":"'Standing Data'!$F$9","v":0},{"$f":"'Standing Data'!#REF!","v":{"$error":"#REF!"}},"Fin.Return","Y936",{"$f":"'Fin.Return - Other Notes'!AU256","v":0}]
[{"$f":"'Standing Data'!$D$12","v":{"$error":"#N/A"}},{"$f":"'Standing Data'!$F$9","v":0},{"$f":"'Standing Data'!#REF!","v":{"$error":"#REF!"}},"Fin.Return","Y938",{"$f":"'Fin.Return - Other Notes'!AU258","v":0}]
[{"$f":"'Standing Data'!$D$12","v":{"$error":"#N/A"}},{"$f":"'Standing Data'!$F$9","v":0},{"$f":"'Standing Data'!#REF!","v":{"$error":"#REF!"}},"Fin.Return","Y940",{"$f":"'Fin.Return - Other Notes'!AU260","v":0}]
[{"$f":"'Standing Data'!$D$12","v":{"$error":"#N/A"}},{"$f":"'Standing Data'!$F$9","v":0},{"$f":"'Standing Data'!#REF!","v":{"$error":"#REF!"}},"Fin.Return","Y942",{"$f":"'Fin.Return - Other Notes'!AU262","v":0}]
[{"$f":"'Standing Data'!$D$12","v":{"$error":"#N/A"}},{"$f":"'Standing Data'!$F$9","v":0},{"$f":"'Standing Data'!#REF!","v":{"$error":"#REF!"}},"Fin.Return","Z908",{"$f":"'Fin.Return - Other Notes'!AV228","v":0}]
[{"$f":"'Standing Data'!$D$12","v":{"$error":"#N/A"}},{"$f":"'Standing Data'!$F$9","v":0},{"$f":"'Standing Data'!#REF!","v":{"$error":"#REF!"}},"Fin.Return","Z909",{"$f":"'Fin.Return - Other Notes'!AV229","v":0}]
[{"$f":"'Standing Data'!$D$12","v":{"$error":"#N/A"}},{"$f":"'Standing Data'!$F$9","v":0},{"$f":"'Standing Data'!#REF!","v":{"$error":"#REF!"}},"Fin.Return","Z910",{"$f":"'Fin.Return - Other Notes'!AV230","v":0}]
[{"$f":"'Standing Data'!$D$12","v":{"$error":"#N/A"}},{"$f":"'Standing Data'!$F$9","v":0},{"$f":"'Standing Data'!#REF!","v":{"$error":"#REF!"}},"Fin.Return","Z911",{"$f":"'Fin.Return - Other Notes'!AV231","v":0}]
[{"$f":"'Standing Data'!$D$12","v":{"$error":"#N/A"}},{"$f":"'Standing Data'!$F$9","v":0},{"$f":"'Standing Data'!#REF!","v":{"$error":"#REF!"}},"Fin.Return","Z912",{"$f":"'Fin.Return - Other Notes'!AV232","v":0}]
[{"$f":"'Standing Data'!$D$12","v":{"$error":"#N/A"}},{"$f":"'Standing Data'!$F$9","v":0},{"$f":"'Standing Data'!#REF!","v":{"$error":"#REF!"}},"Fin.Return","Z914",{"$f":"'Fin.Return - Other Notes'!AV234","v":0}]
[{"$f":"'Standing Data'!$D$12","v":{"$error":"#N/A"}},{"$f":"'Standing Data'!$F$9","v":0},{"$f":"'Standing Data'!#REF!","v":{"$error":"#REF!"}},"Fin.Return","Z913",{"$f":"'Fin.Return - Other Notes'!AV233","v":0}]
[{"$f":"'Standing Data'!$D$12","v":{"$error":"#N/A"}},{"$f":"'Standing Data'!$F$9","v":0},{"$f":"'Standing Data'!#REF!","v":{"$error":"#REF!"}},"Fin.Return","Z916",{"$f":"'Fin.Return - Other Notes'!AV236","v":0}]
[{"$f":"'Standing Data'!$D$12","v":{"$error":"#N/A"}},{"$f":"'Standing Data'!$F$9","v":0},{"$f":"'Standing Data'!#REF!","v":{"$error":"#REF!"}},"Fin.Return","Z917",{"$f":"'Fin.Return - Other Notes'!AV237","v":0}]
[{"$f":"'Standing Data'!$D$12","v":{"$error":"#N/A"}},{"$f":"'Standing Data'!$F$9","v":0},{"$f":"'Standing Data'!#REF!","v":{"$error":"#REF!"}},"Fin.Return","Z918",{"$f":"'Fin.Return - Other Notes'!AV238","v":0}]
[{"$f":"'Standing Data'!$D$12","v":{"$error":"#N/A"}},{"$f":"'Standing Data'!$F$9","v":0},{"$f":"'Standing Data'!#REF!","v":{"$error":"#REF!"}},"Fin.Return","Z919",{"$f":"'Fin.Return - Other Notes'!AV239","v":0}]
[{"$f":"'Standing Data'!$D$12","v":{"$error":"#N/A"}},{"$f":"'Standing Data'!$F$9","v":0},{"$f":"'Standing Data'!#REF!","v":{"$error":"#REF!"}},"Fin.Return","Z920",{"$f":"'Fin.Return - Other Notes'!AV240","v":0}]
[{"$f":"'Standing Data'!$D$12","v":{"$error":"#N/A"}},{"$f":"'Standing Data'!$F$9","v":0},{"$f":"'Standing Data'!#REF!","v":{"$error":"#REF!"}},"Fin.Return","Z922",{"$f":"'Fin.Return - Other Notes'!AV242","v":0}]
[{"$f":"'Standing Data'!$D$12","v":{"$error":"#N/A"}},{"$f":"'Standing Data'!$F$9","v":0},{"$f":"'Standing Data'!#REF!","v":{"$error":"#REF!"}},"Fin.Return","Z924",{"$f":"'Fin.Return - Other Notes'!AV244","v":0}]
[{"$f":"'Standing Data'!$D$12","v":{"$error":"#N/A"}},{"$f":"'Standing Data'!$F$9","v":0},{"$f":"'Standing Data'!#REF!","v":{"$error":"#REF!"}},"Fin.Return","Z925",{"$f":"'Fin.Return - Other Notes'!AV245","v":0}]
[{"$f":"'Standing Data'!$D$12","v":{"$error":"#N/A"}},{"$f":"'Standing Data'!$F$9","v":0},{"$f":"'Standing Data'!#REF!","v":{"$error":"#REF!"}},"Fin.Return","Z926",{"$f":"'Fin.Return - Other Notes'!AV246","v":0}]
[{"$f":"'Standing Data'!$D$12","v":{"$error":"#N/A"}},{"$f":"'Standing Data'!$F$9","v":0},{"$f":"'Standing Data'!#REF!","v":{"$error":"#REF!"}},"Fin.Return","Z927",{"$f":"'Fin.Return - Other Notes'!AV247","v":0}]
[{"$f":"'Standing Data'!$D$12","v":{"$error":"#N/A"}},{"$f":"'Standing Data'!$F$9","v":0},{"$f":"'Standing Data'!#REF!","v":{"$error":"#REF!"}},"Fin.Return","Z928",{"$f":"'Fin.Return - Other Notes'!AV248","v":0}]
[{"$f":"'Standing Data'!$D$12","v":{"$error":"#N/A"}},{"$f":"'Standing Data'!$F$9","v":0},{"$f":"'Standing Data'!#REF!","v":{"$error":"#REF!"}},"Fin.Return","Z929",{"$f":"'Fin.Return - Other Notes'!AV249","v":0}]
[{"$f":"'Standing Data'!$D$12","v":{"$error":"#N/A"}},{"$f":"'Standing Data'!$F$9","v":0},{"$f":"'Standing Data'!#REF!","v":{"$error":"#REF!"}},"Fin.Return","Z930",{"$f":"'Fin.Return - Other Notes'!AV250","v":0}]
[{"$f":"'Standing Data'!$D$12","v":{"$error":"#N/A"}},{"$f":"'Standing Data'!$F$9","v":0},{"$f":"'Standing Data'!#REF!","v":{"$error":"#REF!"}},"Fin.Return","Z931",{"$f":"'Fin.Return - Other Notes'!AV251","v":0}]
[{"$f":"'Standing Data'!$D$12","v":{"$error":"#N/A"}},{"$f":"'Standing Data'!$F$9","v":0},{"$f":"'Standing Data'!#REF!","v":{"$error":"#REF!"}},"Fin.Return","Z933",{"$f":"'Fin.Return - Other Notes'!AV253","v":0}]
[{"$f":"'Standing Data'!$D$12","v":{"$error":"#N/A"}},{"$f":"'Standing Data'!$F$9","v":0},{"$f":"'Standing Data'!#REF!","v":{"$error":"#REF!"}},"Fin.Return","Z934",{"$f":"'Fin.Return - Other Notes'!AV254","v":0}]
[{"$f":"'Standing Data'!$D$12","v":{"$error":"#N/A"}},{"$f":"'Standing Data'!$F$9","v":0},{"$f":"'Standing Data'!#REF!","v":{"$error":"#REF!"}},"Fin.Return","Z935",{"$f":"'Fin.Return - Other Notes'!AV255","v":0}]
[{"$f":"'Standing Data'!$D$12","v":{"$error":"#N/A"}},{"$f":"'Standing Data'!$F$9","v":0},{"$f":"'Standing Data'!#REF!","v":{"$error":"#REF!"}},"Fin.Return","Z936",{"$f":"'Fin.Return - Other Notes'!AV256","v":0}]
[{"$f":"'Standing Data'!$D$12","v":{"$error":"#N/A"}},{"$f":"'Standing Data'!$F$9","v":0},{"$f":"'Standing Data'!#REF!","v":{"$error":"#REF!"}},"Fin.Return","Z938",{"$f":"'Fin.Return - Other Notes'!AV258","v":0}]
[{"$f":"'Standing Data'!$D$12","v":{"$error":"#N/A"}},{"$f":"'Standing Data'!$F$9","v":0},{"$f":"'Standing Data'!#REF!","v":{"$error":"#REF!"}},"Fin.Return","Z940",{"$f":"'Fin.Return - Other Notes'!AV260","v":0}]
[{"$f":"'Standing Data'!$D$12","v":{"$error":"#N/A"}},{"$f":"'Standing Data'!$F$9","v":0},{"$f":"'Standing Data'!#REF!","v":{"$error":"#REF!"}},"Fin.Return","Z942",{"$f":"'Fin.Return - Other Notes'!AV262","v":0}]
[{"$f":"'Standing Data'!$D$12","v":{"$error":"#N/A"}},{"$f":"'Standing Data'!$F$9","v":0},{"$f":"'Standing Data'!#REF!","v":{"$error":"#REF!"}},"Bench.Return","F54",{"$f":"'Bench.Return '!#REF!","v":{"$error":"#REF!"}}]
[{"$f":"'Standing Data'!$D$12","v":{"$error":"#N/A"}},{"$f":"'Standing Data'!$F$9","v":0},{"$f":"'Standing Data'!#REF!","v":{"$error":"#REF!"}},"Bench.Return","F55",{"$f":"'Bench.Return '!#REF!","v":{"$error":"#REF!"}}]
[{"$f":"'Standing Data'!$D$12","v":{"$error":"#N/A"}},{"$f":"'Standing Data'!$F$9","v":0},{"$f":"'Standing Data'!#REF!","v":{"$error":"#REF!"}},"Bench.Return","F56",{"$f":"'Bench.Return '!#REF!","v":{"$error":"#REF!"}}]
[{"$f":"'Standing Data'!$D$12","v":{"$error":"#N/A"}},{"$f":"'Standing Data'!$F$9","v":0},{"$f":"'Standing Data'!#REF!","v":{"$error":"#REF!"}},"Bench.Return","F57",{"$f":"'Bench.Return '!#REF!","v":{"$error":"#REF!"}}]
[{"$f":"'Standing Data'!$D$12","v":{"$error":"#N/A"}},{"$f":"'Standing Data'!$F$9","v":0},{"$f":"'Standing Data'!#REF!","v":{"$error":"#REF!"}},"Bench.Return","F58",{"$f":"'Bench.Return '!#REF!","v":{"$error":"#REF!"}}]
[{"$f":"'Standing Data'!$D$12","v":{"$error":"#N/A"}},{"$f":"'Standing Data'!$F$9","v":0},{"$f":"'Standing Data'!#REF!","v":{"$error":"#REF!"}},"Bench.Return","F59",{"$f":"'Bench.Return '!#REF!","v":{"$error":"#REF!"}}]
[{"$f":"'Standing Data'!$D$12","v":{"$error":"#N/A"}},{"$f":"'Standing Data'!$F$9","v":0},{"$f":"'Standing Data'!#REF!","v":{"$error":"#REF!"}},"Bench.Return","F60",{"$f":"'Bench.Return '!#REF!","v":{"$error":"#REF!"}}]
[{"$f":"'Standing Data'!$D$12","v":{"$error":"#N/A"}},{"$f":"'Standing Data'!$F$9","v":0},{"$f":"'Standing Data'!#REF!","v":{"$error":"#REF!"}},"Bench.Return","F62",{"$f":"'Bench.Return '!#REF!","v":{"$error":"#REF!"}}]
[{"$f":"'Standing Data'!$D$12","v":{"$error":"#N/A"}},{"$f":"'Standing Data'!$F$9","v":0},{"$f":"'Standing Data'!#REF!","v":{"$error":"#REF!"}},"Bench.Return","F63",{"$f":"'Bench.Return '!#REF!","v":{"$error":"#REF!"}}]
[{"$f":"'Standing Data'!$D$12","v":{"$error":"#N/A"}},{"$f":"'Standing Data'!$F$9","v":0},{"$f":"'Standing Data'!#REF!","v":{"$error":"#REF!"}},"Bench.Return","F64",{"$f":"'Bench.Return '!#REF!","v":{"$error":"#REF!"}}]
[{"$f":"'Standing Data'!$D$12","v":{"$error":"#N/A"}},{"$f":"'Standing Data'!$F$9","v":0},{"$f":"'Standing Data'!#REF!","v":{"$error":"#REF!"}},"Bench.Return","F65",{"$f":"'Bench.Return '!#REF!","v":{"$error":"#REF!"}}]
[{"$f":"'Standing Data'!$D$12","v":{"$error":"#N/A"}},{"$f":"'Standing Data'!$F$9","v":0},{"$f":"'Standing Data'!#REF!","v":{"$error":"#REF!"}},"Bench.Return","F66",{"$f":"'Bench.Return '!#REF!","v":{"$error":"#REF!"}}]
[{"$f":"'Standing Data'!$D$12","v":{"$error":"#N/A"}},{"$f":"'Standing Data'!$F$9","v":0},{"$f":"'Standing Data'!#REF!","v":{"$error":"#REF!"}},"Bench.Return","F70",{"$f":"'Bench.Return '!F48","v":0}]
[{"$f":"'Standing Data'!$D$12","v":{"$error":"#N/A"}},{"$f":"'Standing Data'!$F$9","v":0},{"$f":"'Standing Data'!#REF!","v":{"$error":"#REF!"}},"Bench.Return","F71",{"$f":"'Bench.Return '!F49","v":0}]
[{"$f":"'Standing Data'!$D$12","v":{"$error":"#N/A"}},{"$f":"'Standing Data'!$F$9","v":0},{"$f":"'Standing Data'!#REF!","v":{"$error":"#REF!"}},"Bench.Return","F75",{"$f":"'Bench.Return '!F53","v":0}]
[{"$f":"'Standing Data'!$D$12","v":{"$error":"#N/A"}},{"$f":"'Standing Data'!$F$9","v":0},{"$f":"'Standing Data'!#REF!","v":{"$error":"#REF!"}},"Bench.Return","F76",{"$f":"'Bench.Return '!F54","v":0}]
[{"$f":"'Standing Data'!$D$12","v":{"$error":"#N/A"}},{"$f":"'Standing Data'!$F$9","v":0},{"$f":"'Standing Data'!#REF!","v":{"$error":"#REF!"}},"Bench.Return","F77",{"$f":"'Bench.Return '!F56","v":0}]
[{"$f":"'Standing Data'!$D$12","v":{"$error":"#N/A"}},{"$f":"'Standing Data'!$F$9","v":0},{"$f":"'Standing Data'!#REF!","v":{"$error":"#REF!"}},"Bench.Return","F78",{"$f":"'Bench.Return '!F57","v":0}]
[{"$f":"'Standing Data'!$D$12","v":{"$error":"#N/A"}},{"$f":"'Standing Data'!$F$9","v":0},{"$f":"'Standing Data'!#REF!","v":{"$error":"#REF!"}},"Bench.Return","F79",{"$f":"'Bench.Return '!F58","v":0}]
[{"$f":"'Standing Data'!$D$12","v":{"$error":"#N/A"}},{"$f":"'Standing Data'!$F$9","v":0},{"$f":"'Standing Data'!#REF!","v":{"$error":"#REF!"}},"Bench.Return","F86",{"$f":"'Bench.Return '!F65","v":0}]
[{"$f":"'Standing Data'!$D$12","v":{"$error":"#N/A"}},{"$f":"'Standing Data'!$F$9","v":0},{"$f":"'Standing Data'!#REF!","v":{"$error":"#REF!"}},"Bench.Return","F87",{"$f":"'Bench.Return '!F66","v":0}]
[{"$f":"'Standing Data'!$D$12","v":{"$error":"#N/A"}},{"$f":"'Standing Data'!$F$9","v":0},{"$f":"'Standing Data'!#REF!","v":{"$error":"#REF!"}},"Bench.Return","F88",{"$f":"'Bench.Return '!F67","v":0}]
[{"$f":"'Standing Data'!$D$12","v":{"$error":"#N/A"}},{"$f":"'Standing Data'!$F$9","v":0},{"$f":"'Standing Data'!#REF!","v":{"$error":"#REF!"}},"Bench.Return","F89",{"$f":"'Bench.Return '!F68","v":0}]
[{"$f":"'Standing Data'!$D$12","v":{"$error":"#N/A"}},{"$f":"'Standing Data'!$F$9","v":0},{"$f":"'Standing Data'!#REF!","v":{"$error":"#REF!"}},"Bench.Return","F90",{"$f":"'Bench.Return '!F69","v":0}]
[{"$f":"'Standing Data'!$D$12","v":{"$error":"#N/A"}},{"$f":"'Standing Data'!$F$9","v":0},{"$f":"'Standing Data'!#REF!","v":{"$error":"#REF!"}},"Bench.Return","F91",{"$f":"'Bench.Return '!F70","v":0}]
[{"$f":"'Standing Data'!$D$12","v":{"$error":"#N/A"}},{"$f":"'Standing Data'!$F$9","v":0},{"$f":"'Standing Data'!#REF!","v":{"$error":"#REF!"}},"Bench.Return","F98",{"$f":"'Bench.Return '!F77","v":0}]
[{"$f":"'Standing Data'!$D$12","v":{"$error":"#N/A"}},{"$f":"'Standing Data'!$F$9","v":0},{"$f":"'Standing Data'!#REF!","v":{"$error":"#REF!"}},"Bench.Return","F99",{"$f":"'Bench.Return '!F78","v":0}]
[{"$f":"'Standing Data'!$D$12","v":{"$error":"#N/A"}},{"$f":"'Standing Data'!$F$9","v":0},{"$f":"'Standing Data'!#REF!","v":{"$error":"#REF!"}},"Bench.Return","F100",{"$f":"'Bench.Return '!F79","v":0}]
[{"$f":"'Standing Data'!$D$12","v":{"$error":"#N/A"}},{"$f":"'Standing Data'!$F$9","v":0},{"$f":"'Standing Data'!#REF!","v":{"$error":"#REF!"}},"Bench.Return","F101",{"$f":"'Bench.Return '!F80","v":0}]
[{"$f":"'Standing Data'!$D$12","v":{"$error":"#N/A"}},{"$f":"'Standing Data'!$F$9","v":0},{"$f":"'Standing Data'!#REF!","v":{"$error":"#REF!"}},"Bench.Return","F102",{"$f":"'Bench.Return '!F81","v":0}]
[{"$f":"'Standing Data'!$D$12","v":{"$error":"#N/A"}},{"$f":"'Standing Data'!$F$9","v":0},{"$f":"'Standing Data'!#REF!","v":{"$error":"#REF!"}},"Bench.Return","F106",{"$f":"'Bench.Return '!F85","v":0}]
[{"$f":"'Standing Data'!$D$12","v":{"$error":"#N/A"}},{"$f":"'Standing Data'!$F$9","v":0},{"$f":"'Standing Data'!#REF!","v":{"$error":"#REF!"}},"Bench.Return","F107",{"$f":"'Bench.Return '!F86","v":0}]
[{"$f":"'Standing Data'!$D$12","v":{"$error":"#N/A"}},{"$f":"'Standing Data'!$F$9","v":0},{"$f":"'Standing Data'!#REF!","v":{"$error":"#REF!"}},"Bench.Return","F108",{"$f":"'Bench.Return '!F87","v":0}]
[{"$f":"'Standing Data'!$D$12","v":{"$error":"#N/A"}},{"$f":"'Standing Data'!$F$9","v":0},{"$f":"'Standing Data'!#REF!","v":{"$error":"#REF!"}},"Bench.Return","G15",{"$f":"'Bench.Return '!G19","v":0}]
[{"$f":"'Standing Data'!$D$12","v":{"$error":"#N/A"}},{"$f":"'Standing Data'!$F$9","v":0},{"$f":"'Standing Data'!#REF!","v":{"$error":"#REF!"}},"Bench.Return","G16",{"$f":"'Bench.Return '!#REF!","v":{"$error":"#REF!"}}]
[{"$f":"'Standing Data'!$D$12","v":{"$error":"#N/A"}},{"$f":"'Standing Data'!$F$9","v":0},{"$f":"'Standing Data'!#REF!","v":{"$error":"#REF!"}},"Bench.Return","G17",{"$f":"'Bench.Return '!#REF!","v":{"$error":"#REF!"}}]
[{"$f":"'Standing Data'!$D$12","v":{"$error":"#N/A"}},{"$f":"'Standing Data'!$F$9","v":0},{"$f":"'Standing Data'!#REF!","v":{"$error":"#REF!"}},"Bench.Return","G18",{"$f":"'Bench.Return '!#REF!","v":{"$error":"#REF!"}}]
[{"$f":"'Standing Data'!$D$12","v":{"$error":"#N/A"}},{"$f":"'Standing Data'!$F$9","v":0},{"$f":"'Standing Data'!#REF!","v":{"$error":"#REF!"}},"Bench.Return","G19",{"$f":"'Bench.Return '!#REF!","v":{"$error":"#REF!"}}]
[{"$f":"'Standing Data'!$D$12","v":{"$error":"#N/A"}},{"$f":"'Standing Data'!$F$9","v":0},{"$f":"'Standing Data'!#REF!","v":{"$error":"#REF!"}},"Bench.Return","G20",{"$f":"'Bench.Return '!#REF!","v":{"$error":"#REF!"}}]
[{"$f":"'Standing Data'!$D$12","v":{"$error":"#N/A"}},{"$f":"'Standing Data'!$F$9","v":0},{"$f":"'Standing Data'!#REF!","v":{"$error":"#REF!"}},"Bench.Return","G21",{"$f":"'Bench.Return '!#REF!","v":{"$error":"#REF!"}}]
[{"$f":"'Standing Data'!$D$12","v":{"$error":"#N/A"}},{"$f":"'Standing Data'!$F$9","v":0},{"$f":"'Standing Data'!#REF!","v":{"$error":"#REF!"}},"Bench.Return","G22",{"$f":"'Bench.Return '!#REF!","v":{"$error":"#REF!"}}]
[{"$f":"'Standing Data'!$D$12","v":{"$error":"#N/A"}},{"$f":"'Standing Data'!$F$9","v":0},{"$f":"'Standing Data'!#REF!","v":{"$error":"#REF!"}},"Bench.Return","G23",{"$f":"'Bench.Return '!#REF!","v":{"$error":"#REF!"}}]
[{"$f":"'Standing Data'!$D$12","v":{"$error":"#N/A"}},{"$f":"'Standing Data'!$F$9","v":0},{"$f":"'Standing Data'!#REF!","v":{"$error":"#REF!"}},"Bench.Return","G27",{"$f":"'Bench.Return '!G20","v":0}]
[{"$f":"'Standing Data'!$D$12","v":{"$error":"#N/A"}},{"$f":"'Standing Data'!$F$9","v":0},{"$f":"'Standing Data'!#REF!","v":{"$error":"#REF!"}},"Bench.Return","G28",{"$f":"'Bench.Return '!G21","v":0}]
[{"$f":"'Standing Data'!$D$12","v":{"$error":"#N/A"}},{"$f":"'Standing Data'!$F$9","v":0},{"$f":"'Standing Data'!#REF!","v":{"$error":"#REF!"}},"Bench.Return","G29",{"$f":"'Bench.Return '!G22","v":0}]
[{"$f":"'Standing Data'!$D$12","v":{"$error":"#N/A"}},{"$f":"'Standing Data'!$F$9","v":0},{"$f":"'Standing Data'!#REF!","v":{"$error":"#REF!"}},"Bench.Return","G30",{"$f":"'Bench.Return '!G23","v":0}]
[{"$f":"'Standing Data'!$D$12","v":{"$error":"#N/A"}},{"$f":"'Standing Data'!$F$9","v":0},{"$f":"'Standing Data'!#REF!","v":{"$error":"#REF!"}},"Bench.Return","G31",{"$f":"'Bench.Return '!G24","v":0}]
[{"$f":"'Standing Data'!$D$12","v":{"$error":"#N/A"}},{"$f":"'Standing Data'!$F$9","v":0},{"$f":"'Standing Data'!#REF!","v":{"$error":"#REF!"}},"Bench.Return","G32",{"$f":"'Bench.Return '!G25","v":0}]
[{"$f":"'Standing Data'!$D$12","v":{"$error":"#N/A"}},{"$f":"'Standing Data'!$F$9","v":0},{"$f":"'Standing Data'!#REF!","v":{"$error":"#REF!"}},"Bench.Return","G33",{"$f":"'Bench.Return '!G26","v":0}]
[{"$f":"'Standing Data'!$D$12","v":{"$error":"#N/A"}},{"$f":"'Standing Data'!$F$9","v":0},{"$f":"'Standing Data'!#REF!","v":{"$error":"#REF!"}},"Bench.Return","G41",{"$f":"'Bench.Return '!G35","v":0}]
[{"$f":"'Standing Data'!$D$12","v":{"$error":"#N/A"}},{"$f":"'Standing Data'!$F$9","v":0},{"$f":"'Standing Data'!#REF!","v":{"$error":"#REF!"}},"Bench.Return","G42",{"$f":"'Bench.Return '!G36","v":0}]
[{"$f":"'Standing Data'!$D$12","v":{"$error":"#N/A"}},{"$f":"'Standing Data'!$F$9","v":0},{"$f":"'Standing Data'!#REF!","v":{"$error":"#REF!"}},"Bench.Return","G43",{"$f":"'Bench.Return '!G37","v":0}]
[{"$f":"'Standing Data'!$D$12","v":{"$error":"#N/A"}},{"$f":"'Standing Data'!$F$9","v":0},{"$f":"'Standing Data'!#REF!","v":{"$error":"#REF!"}},"Bench.Return","G44",{"$f":"'Bench.Return '!G38","v":0}]
[{"$f":"'Standing Data'!$D$12","v":{"$error":"#N/A"}},{"$f":"'Standing Data'!$F$9","v":0},{"$f":"'Standing Data'!#REF!","v":{"$error":"#REF!"}},"Bench.Return","G68",{"$f":"'Bench.Return '!G46","v":0}]
[{"$f":"'Standing Data'!$D$12","v":{"$error":"#N/A"}},{"$f":"'Standing Data'!$F$9","v":0},{"$f":"'Standing Data'!#REF!","v":{"$error":"#REF!"}},"Bench.Return","G73",{"$f":"'Bench.Return '!G51","v":0}]
[{"$f":"'Standing Data'!$D$12","v":{"$error":"#N/A"}},{"$f":"'Standing Data'!$F$9","v":0},{"$f":"'Standing Data'!#REF!","v":{"$error":"#REF!"}},"Bench.Return","G81",{"$f":"'Bench.Return '!G60","v":0}]
[{"$f":"'Standing Data'!$D$12","v":{"$error":"#N/A"}},{"$f":"'Standing Data'!$F$9","v":0},{"$f":"'Standing Data'!#REF!","v":{"$error":"#REF!"}},"Bench.Return","G83",{"$f":"'Bench.Return '!G62","v":0}]
[{"$f":"'Standing Data'!$D$12","v":{"$error":"#N/A"}},{"$f":"'Standing Data'!$F$9","v":0},{"$f":"'Standing Data'!#REF!","v":{"$error":"#REF!"}},"Bench.Return","G93",{"$f":"'Bench.Return '!G72","v":0}]
[{"$f":"'Standing Data'!$D$12","v":{"$error":"#N/A"}},{"$f":"'Standing Data'!$F$9","v":0},{"$f":"'Standing Data'!#REF!","v":{"$error":"#REF!"}},"Bench.Return","G95",{"$f":"'Bench.Return '!G74","v":0}]
[{"$f":"'Standing Data'!$D$12","v":{"$error":"#N/A"}},{"$f":"'Standing Data'!$F$9","v":0},{"$f":"'Standing Data'!#REF!","v":{"$error":"#REF!"}},"Bench.Return","G104",{"$f":"'Bench.Return '!G83","v":0}]
[{"$f":"'Standing Data'!$D$12","v":{"$error":"#N/A"}},{"$f":"'Standing Data'!$F$9","v":0},{"$f":"'Standing Data'!#REF!","v":{"$error":"#REF!"}},"Bench.Return","G110",{"$f":"'Bench.Return '!G89","v":0}]
[{"$f":"'Standing Data'!$D$12","v":{"$error":"#N/A"}},{"$f":"'Standing Data'!$F$9","v":0},{"$f":"'Standing Data'!#REF!","v":{"$error":"#REF!"}},"Bench.Return","G114",{"$f":"'Bench.Return '!G93","v":0}]
[{"$f":"'Standing Data'!$D$12","v":{"$error":"#N/A"}},{"$f":"'Standing Data'!$F$9","v":0},{"$f":"'Standing Data'!#REF!","v":{"$error":"#REF!"}},"Bench.Return","G115",{"$f":"'Bench.Return '!G94","v":0}]
[{"$f":"'Standing Data'!$D$12","v":{"$error":"#N/A"}},{"$f":"'Standing Data'!$F$9","v":0},{"$f":"'Standing Data'!#REF!","v":{"$error":"#REF!"}},"Bench.Return","G116",{"$f":"'Bench.Return '!G95","v":0}]
[{"$f":"'Standing Data'!$D$12","v":{"$error":"#N/A"}},{"$f":"'Standing Data'!$F$9","v":0},{"$f":"'Standing Data'!#REF!","v":{"$error":"#REF!"}},"Bench.Return","G117",{"$f":"'Bench.Return '!G96","v":0}]
[{"$f":"'Standing Data'!$D$12","v":{"$error":"#N/A"}},{"$f":"'Standing Data'!$F$9","v":0},{"$f":"'Standing Data'!#REF!","v":{"$error":"#REF!"}},"Bench.Return","G118",{"$f":"'Bench.Return '!G97","v":0}]
[{"$f":"'Standing Data'!$D$12","v":{"$error":"#N/A"}},{"$f":"'Standing Data'!$F$9","v":0},{"$f":"'Standing Data'!#REF!","v":{"$error":"#REF!"}},"Bench.Return","G119",{"$f":"'Bench.Return '!G98","v":0}]
[{"$f":"'Standing Data'!$D$12","v":{"$error":"#N/A"}},{"$f":"'Standing Data'!$F$9","v":0},{"$f":"'Standing Data'!#REF!","v":{"$error":"#REF!"}},"Bench.Return","I25",{"$f":"'Bench.Return '!#REF!","v":{"$error":"#REF!"}}]
[{"$f":"'Standing Data'!$D$12","v":{"$error":"#N/A"}},{"$f":"'Standing Data'!$F$9","v":0},{"$f":"'Standing Data'!#REF!","v":{"$error":"#REF!"}},"Bench.Return","I35",{"$f":"'Bench.Return '!I28","v":0}]
[{"$f":"'Standing Data'!$D$12","v":{"$error":"#N/A"}},{"$f":"'Standing Data'!$F$9","v":0},{"$f":"'Standing Data'!#REF!","v":{"$error":"#REF!"}},"Bench.Return","I37",{"$f":"'Bench.Return '!I30","v":0}]
[{"$f":"'Standing Data'!$D$12","v":{"$error":"#N/A"}},{"$f":"'Standing Data'!$F$9","v":0},{"$f":"'Standing Data'!#REF!","v":{"$error":"#REF!"}},"Bench.Return","I39",{"$f":"'Bench.Return '!I32","v":0}]
[{"$f":"'Standing Data'!$D$12","v":{"$error":"#N/A"}},{"$f":"'Standing Data'!$F$9","v":0},{"$f":"'Standing Data'!#REF!","v":{"$error":"#REF!"}},"Bench.Return","I46",{"$f":"'Bench.Return '!I40","v":0}]
[{"$f":"'Standing Data'!$D$12","v":{"$error":"#N/A"}},{"$f":"'Standing Data'!$F$9","v":0},{"$f":"'Standing Data'!#REF!","v":{"$error":"#REF!"}},"Bench.Return","I48",{"$f":"'Bench.Return '!I42","v":0}]
[{"$f":"'Standing Data'!$D$12","v":{"$error":"#N/A"}},{"$f":"'Standing Data'!$F$9","v":0},{"$f":"'Standing Data'!#REF!","v":{"$error":"#REF!"}},"Bench.Return","I50",{"$f":"'Bench.Return '!I44","v":0}]
[{"$f":"'Standing Data'!$D$12","v":{"$error":"#N/A"}},{"$f":"'Standing Data'!$F$9","v":0},{"$f":"'Standing Data'!#REF!","v":{"$error":"#REF!"}},"Bench.Return","I112",{"$f":"'Bench.Return '!I91","v":0}]
[{"$f":"'Standing Data'!$D$12","v":{"$error":"#N/A"}},{"$f":"'Standing Data'!$F$9","v":0},{"$f":"'Standing Data'!#REF!","v":{"$error":"#REF!"}},"Bench.Return","I121",{"$f":"'Bench.Return '!I101","v":0}]
[{"$f":"'Standing Data'!$D$12","v":{"$error":"#N/A"}},{"$f":"'Standing Data'!$F$9","v":0},{"$f":"'Standing Data'!#REF!","v":{"$error":"#REF!"}},"Bench.Return","I123",{"$f":"'Bench.Return '!I103","v":0}]

{"sheet":"ChaData","index":13,"n_rows":735,"n_cols":6,"rows_kept":735,"cut":false,"hidden":true,"merged":[]}
["Academy ID 1","Academy ID 2","Academy Name 2","Sheet Name","Cell ID","Value"]
[{"$f":"'Standing Data'!$D$12","v":{"$error":"#N/A"}},{"$f":"'Standing Data'!$F$9","v":0},{"$f":"'Standing Data'!#REF!","v":{"$error":"#REF!"}},"Standing Data","D1",{"$f":"'Standing Data'!D3","v":0}]
[{"$f":"'Standing Data'!$D$12","v":{"$error":"#N/A"}},{"$f":"'Standing Data'!$F$9","v":0},{"$f":"'Standing Data'!#REF!","v":{"$error":"#REF!"}},"Standing Data","F1:J1",{"$f":"'Standing Data'!F3:J3","v":0}]
[{"$f":"'Standing Data'!$D$12","v":{"$error":"#N/A"}},{"$f":"'Standing Data'!$F$9","v":0},{"$f":"'Standing Data'!#REF!","v":{"$error":"#REF!"}},"Standing Data","D4",{"$f":"'Standing Data'!D6","v":"2016-03-31"}]
[{"$f":"'Standing Data'!$D$12","v":{"$error":"#N/A"}},{"$f":"'Standing Data'!$F$9","v":0},{"$f":"'Standing Data'!#REF!","v":{"$error":"#REF!"}},"Standing Data","D10",{"$f":"'Standing Data'!D14","v":"Type number here"}]
[{"$f":"'Standing Data'!$D$12","v":{"$error":"#N/A"}},{"$f":"'Standing Data'!$F$9","v":0},{"$f":"'Standing Data'!#REF!","v":{"$error":"#REF!"}},"Standing Data","D16",{"$f":"'Standing Data'!D17","v":{"$error":"#N/A"}}]
[{"$f":"'Standing Data'!$D$12","v":{"$error":"#N/A"}},{"$f":"'Standing Data'!$F$9","v":0},{"$f":"'Standing Data'!#REF!","v":{"$error":"#REF!"}},"Standing Data","F16",{"$f":"'Standing Data'!F17","v":"00:00:00"}]
[{"$f":"'Standing Data'!$D$12","v":{"$error":"#N/A"}},{"$f":"'Standing Data'!$F$9","v":0},{"$f":"'Standing Data'!#REF!","v":{"$error":"#REF!"}},"Standing Data","D19",{"$f":"'Standing Data'!D20","v":"00:00:00"}]
[{"$f":"'Standing Data'!$D$12","v":{"$error":"#N/A"}},{"$f":"'Standing Data'!$F$9","v":0},{"$f":"'Standing Data'!#REF!","v":{"$error":"#REF!"}},"Standing Data","D22",{"$f":"'Standing Data'!D23","v":0}]
[{"$f":"'Standing Data'!$D$12","v":{"$error":"#N/A"}},{"$f":"'Standing Data'!$F$9","v":0},{"$f":"'Standing Data'!#REF!","v":{"$error":"#REF!"}},"Standing Data","D25",{"$f":"'Standing Data'!D26","v":"N/A - 31 March"}]
[{"$f":"'Standing Data'!$D$12","v":{"$error":"#N/A"}},{"$f":"'Standing Data'!$F$9","v":0},{"$f":"'Standing Data'!#REF!","v":{"$error":"#REF!"}},"Standing Data","D31",{"$f":"'Standing Data'!D35","v":{"$error":"#N/A"}}]
[{"$f":"'Standing Data'!$D$12","v":{"$error":"#N/A"}},{"$f":"'Standing Data'!$F$9","v":0},{"$f":"'Standing Data'!#REF!","v":{"$error":"#REF!"}},"Standing Data","F31:H31",{"$f":"'Standing Data'!F35:H35","v":0}]
[{"$f":"'Standing Data'!$D$12","v":{"$error":"#N/A"}},{"$f":"'Standing Data'!$F$9","v":0},{"$f":"'Standing Data'!#REF!","v":{"$error":"#REF!"}},"Standing Data","D34",{"$f":"'Standing Data'!D38","v":{"$error":"#N/A"}}]
[{"$f":"'Standing Data'!$D$12","v":{"$error":"#N/A"}},{"$f":"'Standing Data'!$F$9","v":0},{"$f":"'Standing Data'!#REF!","v":{"$error":"#REF!"}},"Standing Data","F34:H34",{"$f":"'Standing Data'!F38:H38","v":"00:00:00"}]
[{"$f":"'Standing Data'!$D$12","v":{"$error":"#N/A"}},{"$f":"'Standing Data'!$F$9","v":0},{"$f":"'Standing Data'!#REF!","v":{"$error":"#REF!"}},"Standing Data","D37",{"$f":"'Standing Data'!D41","v":0}]
[{"$f":"'Standing Data'!$D$12","v":{"$error":"#N/A"}},{"$f":"'Standing Data'!$F$9","v":0},{"$f":"'Standing Data'!#REF!","v":{"$error":"#REF!"}},"Standing Data","F37:H37",{"$f":"'Standing Data'!F41:H41","v":0}]
[{"$f":"'Standing Data'!$D$12","v":{"$error":"#N/A"}},{"$f":"'Standing Data'!$F$9","v":0},{"$f":"'Standing Data'!#REF!","v":{"$error":"#REF!"}},"Standing Data","D40",{"$f":"'Standing Data'!D44","v":{"$error":"#N/A"}}]
[{"$f":"'Standing Data'!$D$12","v":{"$error":"#N/A"}},{"$f":"'Standing Data'!$F$9","v":0},{"$f":"'Standing Data'!#REF!","v":{"$error":"#REF!"}},"Standing Data","D44",{"$f":"'Standing Data'!D48","v":""}]
[{"$f":"'Standing Data'!$D$12","v":{"$error":"#N/A"}},{"$f":"'Standing Data'!$F$9","v":0},{"$f":"'Standing Data'!#REF!","v":{"$error":"#REF!"}},"Standing Data","D45",{"$f":"'Standing Data'!D49","v":""}]
[{"$f":"'Standing Data'!$D$12","v":{"$error":"#N/A"}},{"$f":"'Standing Data'!$F$9","v":0},{"$f":"'Standing Data'!#REF!","v":{"$error":"#REF!"}},"Standing Data","D46",{"$f":"'Standing Data'!D50","v":""}]
[{"$f":"'Standing Data'!$D$12","v":{"$error":"#N/A"}},{"$f":"'Standing Data'!$F$9","v":0},{"$f":"'Standing Data'!#REF!","v":{"$error":"#REF!"}},"Standing Data","D47",{"$f":"'Standing Data'!D51","v":""}]
[{"$f":"'Standing Data'!$D$12","v":{"$error":"#N/A"}},{"$f":"'Standing Data'!$F$9","v":0},{"$f":"'Standing Data'!#REF!","v":{"$error":"#REF!"}},"Standing Data","D48",{"$f":"'Standing Data'!D52","v":""}]
[{"$f":"'Standing Data'!$D$12","v":{"$error":"#N/A"}},{"$f":"'Standing Data'!$F$9","v":0},{"$f":"'Standing Data'!#REF!","v":{"$error":"#REF!"}},"Standing Data","D49",{"$f":"'Standing Data'!D53","v":""}]
[{"$f":"'Standing Data'!$D$12","v":{"$error":"#N/A"}},{"$f":"'Standing Data'!$F$9","v":0},{"$f":"'Standing Data'!#REF!","v":{"$error":"#REF!"}},"Standing Data","D50",{"$f":"'Standing Data'!D54","v":""}]
[{"$f":"'Standing Data'!$D$12","v":{"$error":"#N/A"}},{"$f":"'Standing Data'!$F$9","v":0},{"$f":"'Standing Data'!#REF!","v":{"$error":"#REF!"}},"Standing Data","D51",{"$f":"'Standing Data'!D55","v":""}]
[{"$f":"'Standing Data'!$D$12","v":{"$error":"#N/A"}},{"$f":"'Standing Data'!$F$9","v":0},{"$f":"'Standing Data'!#REF!","v":{"$error":"#REF!"}},"Standing Data","D52",{"$f":"'Standing Data'!D56","v":""}]
[{"$f":"'Standing Data'!$D$12","v":{"$error":"#N/A"}},{"$f":"'Standing Data'!$F$9","v":0},{"$f":"'Standing Data'!#REF!","v":{"$error":"#REF!"}},"Standing Data","D53",{"$f":"'Standing Data'!D57","v":""}]
[{"$f":"'Standing Data'!$D$12","v":{"$error":"#N/A"}},{"$f":"'Standing Data'!$F$9","v":0},{"$f":"'Standing Data'!#REF!","v":{"$error":"#REF!"}},"Standing Data","D54",{"$f":"'Standing Data'!D58","v":""}]
[{"$f":"'Standing Data'!$D$12","v":{"$error":"#N/A"}},{"$f":"'Standing Data'!$F$9","v":0},{"$f":"'Standing Data'!#REF!","v":{"$error":"#REF!"}},"Standing Data","D55",{"$f":"'Standing Data'!D59","v":""}]
[{"$f":"'Standing Data'!$D$12","v":{"$error":"#N/A"}},{"$f":"'Standing Data'!$F$9","v":0},{"$f":"'Standing Data'!#REF!","v":{"$error":"#REF!"}},"Standing Data","D56",{"$f":"'Standing Data'!D60","v":""}]
[{"$f":"'Standing Data'!$D$12","v":{"$error":"#N/A"}},{"$f":"'Standing Data'!$F$9","v":0},{"$f":"'Standing Data'!#REF!","v":{"$error":"#REF!"}},"Standing Data","D57",{"$f":"'Standing Data'!D61","v":""}]
[{"$f":"'Standing Data'!$D$12","v":{"$error":"#N/A"}},{"$f":"'Standing Data'!$F$9","v":0},{"$f":"'Standing Data'!#REF!","v":{"$error":"#REF!"}},"Standing Data","D58",{"$f":"'Standing Data'!D62","v":""}]
[{"$f":"'Standing Data'!$D$12","v":{"$error":"#N/A"}},{"$f":"'Standing Data'!$F$9","v":0},{"$f":"'Standing Data'!#REF!","v":{"$error":"#REF!"}},"Standing Data","D59",{"$f":"'Standing Data'!D63","v":""}]
[{"$f":"'Standing Data'!$D$12","v":{"$error":"#N/A"}},{"$f":"'Standing Data'!$F$9","v":0},{"$f":"'Standing Data'!#REF!","v":{"$error":"#REF!"}},"Standing Data","D60",{"$f":"'Standing Data'!D64","v":""}]
[{"$f":"'Standing Data'!$D$12","v":{"$error":"#N/A"}},{"$f":"'Standing Data'!$F$9","v":0},{"$f":"'Standing Data'!#REF!","v":{"$error":"#REF!"}},"Standing Data","D61",{"$f":"'Standing Data'!D65","v":""}]
[{"$f":"'Standing Data'!$D$12","v":{"$error":"#N/A"}},{"$f":"'Standing Data'!$F$9","v":0},{"$f":"'Standing Data'!#REF!","v":{"$error":"#REF!"}},"Standing Data","D62",{"$f":"'Standing Data'!D66","v":""}]
[{"$f":"'Standing Data'!$D$12","v":{"$error":"#N/A"}},{"$f":"'Standing Data'!$F$9","v":0},{"$f":"'Standing Data'!#REF!","v":{"$error":"#REF!"}},"Standing Data","D63",{"$f":"'Standing Data'!D67","v":""}]
[{"$f":"'Standing Data'!$D$12","v":{"$error":"#N/A"}},{"$f":"'Standing Data'!$F$9","v":0},{"$f":"'Standing Data'!#REF!","v":{"$error":"#REF!"}},"Standing Data","D64",{"$f":"'Standing Data'!D68","v":""}]
[{"$f":"'Standing Data'!$D$12","v":{"$error":"#N/A"}},{"$f":"'Standing Data'!$F$9","v":0},{"$f":"'Standing Data'!#REF!","v":{"$error":"#REF!"}},"Standing Data","D65",{"$f":"'Standing Data'!D69","v":""}]
[{"$f":"'Standing Data'!$D$12","v":{"$error":"#N/A"}},{"$f":"'Standing Data'!$F$9","v":0},{"$f":"'Standing Data'!#REF!","v":{"$error":"#REF!"}},"Standing Data","D66",{"$f":"'Standing Data'!D70","v":""}]
[{"$f":"'Standing Data'!$D$12","v":{"$error":"#N/A"}},{"$f":"'Standing Data'!$F$9","v":0},{"$f":"'Standing Data'!#REF!","v":{"$error":"#REF!"}},"Standing Data","D67",{"$f":"'Standing Data'!D71","v":""}]
[{"$f":"'Standing Data'!$D$12","v":{"$error":"#N/A"}},{"$f":"'Standing Data'!$F$9","v":0},{"$f":"'Standing Data'!#REF!","v":{"$error":"#REF!"}},"Standing Data","D68",{"$f":"'Standing Data'!D72","v":""}]
[{"$f":"'Standing Data'!$D$12","v":{"$error":"#N/A"}},{"$f":"'Standing Data'!$F$9","v":0},{"$f":"'Standing Data'!#REF!","v":{"$error":"#REF!"}},"Standing Data","D69",{"$f":"'Standing Data'!D73","v":""}]
[{"$f":"'Standing Data'!$D$12","v":{"$error":"#N/A"}},{"$f":"'Standing Data'!$F$9","v":0},{"$f":"'Standing Data'!#REF!","v":{"$error":"#REF!"}},"Standing Data","D70",{"$f":"'Standing Data'!D74","v":""}]
[{"$f":"'Standing Data'!$D$12","v":{"$error":"#N/A"}},{"$f":"'Standing Data'!$F$9","v":0},{"$f":"'Standing Data'!#REF!","v":{"$error":"#REF!"}},"Standing Data","D71",{"$f":"'Standing Data'!D75","v":""}]
[{"$f":"'Standing Data'!$D$12","v":{"$error":"#N/A"}},{"$f":"'Standing Data'!$F$9","v":0},{"$f":"'Standing Data'!#REF!","v":{"$error":"#REF!"}},"Standing Data","D72",{"$f":"'Standing Data'!D76","v":""}]
[{"$f":"'Standing Data'!$D$12","v":{"$error":"#N/A"}},{"$f":"'Standing Data'!$F$9","v":0},{"$f":"'Standing Data'!#REF!","v":{"$error":"#REF!"}},"Standing Data","D73",{"$f":"'Standing Data'!D77","v":""}]
[{"$f":"'Standing Data'!$D$12","v":{"$error":"#N/A"}},{"$f":"'Standing Data'!$F$9","v":0},{"$f":"'Standing Data'!#REF!","v":{"$error":"#REF!"}},"Standing Data","D74",{"$f":"'Standing Data'!D78","v":""}]
[{"$f":"'Standing Data'!$D$12","v":{"$error":"#N/A"}},{"$f":"'Standing Data'!$F$9","v":0},{"$f":"'Standing Data'!#REF!","v":{"$error":"#REF!"}},"Standing Data","D75",{"$f":"'Standing Data'!D79","v":""}]
[{"$f":"'Standing Data'!$D$12","v":{"$error":"#N/A"}},{"$f":"'Standing Data'!$F$9","v":0},{"$f":"'Standing Data'!#REF!","v":{"$error":"#REF!"}},"Standing Data","D76",{"$f":"'Standing Data'!D80","v":""}]
[{"$f":"'Standing Data'!$D$12","v":{"$error":"#N/A"}},{"$f":"'Standing Data'!$F$9","v":0},{"$f":"'Standing Data'!#REF!","v":{"$error":"#REF!"}},"Standing Data","D77",{"$f":"'Standing Data'!D81","v":""}]
[{"$f":"'Standing Data'!$D$12","v":{"$error":"#N/A"}},{"$f":"'Standing Data'!$F$9","v":0},{"$f":"'Standing Data'!#REF!","v":{"$error":"#REF!"}},"Standing Data","D78",{"$f":"'Standing Data'!D82","v":""}]
[{"$f":"'Standing Data'!$D$12","v":{"$error":"#N/A"}},{"$f":"'Standing Data'!$F$9","v":0},{"$f":"'Standing Data'!#REF!","v":{"$error":"#REF!"}},"Standing Data","D79",{"$f":"'Standing Data'!D83","v":""}]
[{"$f":"'Standing Data'!$D$12","v":{"$error":"#N/A"}},{"$f":"'Standing Data'!$F$9","v":0},{"$f":"'Standing Data'!#REF!","v":{"$error":"#REF!"}},"Standing Data","D80",{"$f":"'Standing Data'!D84","v":""}]
[{"$f":"'Standing Data'!$D$12","v":{"$error":"#N/A"}},{"$f":"'Standing Data'!$F$9","v":0},{"$f":"'Standing Data'!#REF!","v":{"$error":"#REF!"}},"Standing Data","D81",{"$f":"'Standing Data'!D85","v":""}]
[{"$f":"'Standing Data'!$D$12","v":{"$error":"#N/A"}},{"$f":"'Standing Data'!$F$9","v":0},{"$f":"'Standing Data'!#REF!","v":{"$error":"#REF!"}},"Standing Data","D82",{"$f":"'Standing Data'!D86","v":""}]
[{"$f":"'Standing Data'!$D$12","v":{"$error":"#N/A"}},{"$f":"'Standing Data'!$F$9","v":0},{"$f":"'Standing Data'!#REF!","v":{"$error":"#REF!"}},"Standing Data","D83",{"$f":"'Standing Data'!D87","v":""}]
[{"$f":"'Standing Data'!$D$12","v":{"$error":"#N/A"}},{"$f":"'Standing Data'!$F$9","v":0},{"$f":"'Standing Data'!#REF!","v":{"$error":"#REF!"}},"Standing Data","D84",{"$f":"'Standing Data'!D88","v":""}]
[{"$f":"'Standing Data'!$D$12","v":{"$error":"#N/A"}},{"$f":"'Standing Data'!$F$9","v":0},{"$f":"'Standing Data'!#REF!","v":{"$error":"#REF!"}},"Standing Data","D85",{"$f":"'Standing Data'!D89","v":""}]
[{"$f":"'Standing Data'!$D$12","v":{"$error":"#N/A"}},{"$f":"'Standing Data'!$F$9","v":0},{"$f":"'Standing Data'!#REF!","v":{"$error":"#REF!"}},"Standing Data","D86",{"$f":"'Standing Data'!D90","v":""}]
[{"$f":"'Standing Data'!$D$12","v":{"$error":"#N/A"}},{"$f":"'Standing Data'!$F$9","v":0},{"$f":"'Standing Data'!#REF!","v":{"$error":"#REF!"}},"Standing Data","D87",{"$f":"'Standing Data'!D91","v":""}]
[{"$f":"'Standing Data'!$D$12","v":{"$error":"#N/A"}},{"$f":"'Standing Data'!$F$9","v":0},{"$f":"'Standing Data'!#REF!","v":{"$error":"#REF!"}},"Standing Data","D88",{"$f":"'Standing Data'!D92","v":""}]
[{"$f":"'Standing Data'!$D$12","v":{"$error":"#N/A"}},{"$f":"'Standing Data'!$F$9","v":0},{"$f":"'Standing Data'!#REF!","v":{"$error":"#REF!"}},"Standing Data","D89",{"$f":"'Standing Data'!D93","v":""}]
[{"$f":"'Standing Data'!$D$12","v":{"$error":"#N/A"}},{"$f":"'Standing Data'!$F$9","v":0},{"$f":"'Standing Data'!#REF!","v":{"$error":"#REF!"}},"Standing Data","D90",{"$f":"'Standing Data'!D94","v":""}]
[{"$f":"'Standing Data'!$D$12","v":{"$error":"#N/A"}},{"$f":"'Standing Data'!$F$9","v":0},{"$f":"'Standing Data'!#REF!","v":{"$error":"#REF!"}},"Standing Data","D91",{"$f":"'Standing Data'!D95","v":""}]
[{"$f":"'Standing Data'!$D$12","v":{"$error":"#N/A"}},{"$f":"'Standing Data'!$F$9","v":0},{"$f":"'Standing Data'!#REF!","v":{"$error":"#REF!"}},"Standing Data","D92",{"$f":"'Standing Data'!D96","v":""}]
[{"$f":"'Standing Data'!$D$12","v":{"$error":"#N/A"}},{"$f":"'Standing Data'!$F$9","v":0},{"$f":"'Standing Data'!#REF!","v":{"$error":"#REF!"}},"Standing Data","D93",{"$f":"'Standing Data'!D97","v":""}]
[{"$f":"'Standing Data'!$D$12","v":{"$error":"#N/A"}},{"$f":"'Standing Data'!$F$9","v":0},{"$f":"'Standing Data'!#REF!","v":{"$error":"#REF!"}},"Standing Data","D94",{"$f":"'Standing Data'!D98","v":""}]
[{"$f":"'Standing Data'!$D$12","v":{"$error":"#N/A"}},{"$f":"'Standing Data'!$F$9","v":0},{"$f":"'Standing Data'!#REF!","v":{"$error":"#REF!"}},"Standing Data","D95",{"$f":"'Standing Data'!D99","v":""}]
[{"$f":"'Standing Data'!$D$12","v":{"$error":"#N/A"}},{"$f":"'Standing Data'!$F$9","v":0},{"$f":"'Standing Data'!#REF!","v":{"$error":"#REF!"}},"Standing Data","D96",{"$f":"'Standing Data'!D100","v":""}]
[{"$f":"'Standing Data'!$D$12","v":{"$error":"#N/A"}},{"$f":"'Standing Data'!$F$9","v":0},{"$f":"'Standing Data'!#REF!","v":{"$error":"#REF!"}},"Standing Data","D97",{"$f":"'Standing Data'!D101","v":""}]
[{"$f":"'Standing Data'!$D$12","v":{"$error":"#N/A"}},{"$f":"'Standing Data'!$F$9","v":0},{"$f":"'Standing Data'!#REF!","v":{"$error":"#REF!"}},"Standing Data","D98",{"$f":"'Standing Data'!D102","v":""}]
[{"$f":"'Standing Data'!$D$12","v":{"$error":"#N/A"}},{"$f":"'Standing Data'!$F$9","v":0},{"$f":"'Standing Data'!#REF!","v":{"$error":"#REF!"}},"Standing Data","D99",{"$f":"'Standing Data'!D103","v":""}]
[{"$f":"'Standing Data'!$D$12","v":{"$error":"#N/A"}},{"$f":"'Standing Data'!$F$9","v":0},{"$f":"'Standing Data'!#REF!","v":{"$error":"#REF!"}},"Standing Data","D100",{"$f":"'Standing Data'!D104","v":""}]
[{"$f":"'Standing Data'!$D$12","v":{"$error":"#N/A"}},{"$f":"'Standing Data'!$F$9","v":0},{"$f":"'Standing Data'!#REF!","v":{"$error":"#REF!"}},"Standing Data","D101",{"$f":"'Standing Data'!D105","v":""}]
[{"$f":"'Standing Data'!$D$12","v":{"$error":"#N/A"}},{"$f":"'Standing Data'!$F$9","v":0},{"$f":"'Standing Data'!#REF!","v":{"$error":"#REF!"}},"Standing Data","D102",{"$f":"'Standing Data'!D106","v":""}]
[{"$f":"'Standing Data'!$D$12","v":{"$error":"#N/A"}},{"$f":"'Standing Data'!$F$9","v":0},{"$f":"'Standing Data'!#REF!","v":{"$error":"#REF!"}},"Standing Data","D103",{"$f":"'Standing Data'!D107","v":""}]
[{"$f":"'Standing Data'!$D$12","v":{"$error":"#N/A"}},{"$f":"'Standing Data'!$F$9","v":0},{"$f":"'Standing Data'!#REF!","v":{"$error":"#REF!"}},"Standing Data","D104",{"$f":"'Standing Data'!D108","v":""}]
[{"$f":"'Standing Data'!$D$12","v":{"$error":"#N/A"}},{"$f":"'Standing Data'!$F$9","v":0},{"$f":"'Standing Data'!#REF!","v":{"$error":"#REF!"}},"Standing Data","D105",{"$f":"'Standing Data'!D109","v":""}]
[{"$f":"'Standing Data'!$D$12","v":{"$error":"#N/A"}},{"$f":"'Standing Data'!$F$9","v":0},{"$f":"'Standing Data'!#REF!","v":{"$error":"#REF!"}},"Standing Data","D106",{"$f":"'Standing Data'!D110","v":""}]
[{"$f":"'Standing Data'!$D$12","v":{"$error":"#N/A"}},{"$f":"'Standing Data'!$F$9","v":0},{"$f":"'Standing Data'!#REF!","v":{"$error":"#REF!"}},"Standing Data","D107",{"$f":"'Standing Data'!D111","v":""}]
[{"$f":"'Standing Data'!$D$12","v":{"$error":"#N/A"}},{"$f":"'Standing Data'!$F$9","v":0},{"$f":"'Standing Data'!#REF!","v":{"$error":"#REF!"}},"Standing Data","D108",{"$f":"'Standing Data'!D112","v":""}]
[{"$f":"'Standing Data'!$D$12","v":{"$error":"#N/A"}},{"$f":"'Standing Data'!$F$9","v":0},{"$f":"'Standing Data'!#REF!","v":{"$error":"#REF!"}},"Standing Data","D109",{"$f":"'Standing Data'!D113","v":""}]
[{"$f":"'Standing Data'!$D$12","v":{"$error":"#N/A"}},{"$f":"'Standing Data'!$F$9","v":0},{"$f":"'Standing Data'!#REF!","v":{"$error":"#REF!"}},"Standing Data","D110",{"$f":"'Standing Data'!D114","v":""}]
[{"$f":"'Standing Data'!$D$12","v":{"$error":"#N/A"}},{"$f":"'Standing Data'!$F$9","v":0},{"$f":"'Standing Data'!#REF!","v":{"$error":"#REF!"}},"Standing Data","D111",{"$f":"'Standing Data'!D115","v":""}]
[{"$f":"'Standing Data'!$D$12","v":{"$error":"#N/A"}},{"$f":"'Standing Data'!$F$9","v":0},{"$f":"'Standing Data'!#REF!","v":{"$error":"#REF!"}},"Standing Data","D112",{"$f":"'Standing Data'!D116","v":""}]
[{"$f":"'Standing Data'!$D$12","v":{"$error":"#N/A"}},{"$f":"'Standing Data'!$F$9","v":0},{"$f":"'Standing Data'!#REF!","v":{"$error":"#REF!"}},"Standing Data","D113",{"$f":"'Standing Data'!D117","v":""}]
[{"$f":"'Standing Data'!$D$12","v":{"$error":"#N/A"}},{"$f":"'Standing Data'!$F$9","v":0},{"$f":"'Standing Data'!#REF!","v":{"$error":"#REF!"}},"Standing Data","D114",{"$f":"'Standing Data'!D118","v":""}]
[{"$f":"'Standing Data'!$D$12","v":{"$error":"#N/A"}},{"$f":"'Standing Data'!$F$9","v":0},{"$f":"'Standing Data'!#REF!","v":{"$error":"#REF!"}},"Standing Data","D115",{"$f":"'Standing Data'!D119","v":""}]
[{"$f":"'Standing Data'!$D$12","v":{"$error":"#N/A"}},{"$f":"'Standing Data'!$F$9","v":0},{"$f":"'Standing Data'!#REF!","v":{"$error":"#REF!"}},"Standing Data","D116",{"$f":"'Standing Data'!D120","v":""}]
[{"$f":"'Standing Data'!$D$12","v":{"$error":"#N/A"}},{"$f":"'Standing Data'!$F$9","v":0},{"$f":"'Standing Data'!#REF!","v":{"$error":"#REF!"}},"Standing Data","D117",{"$f":"'Standing Data'!D121","v":""}]
[{"$f":"'Standing Data'!$D$12","v":{"$error":"#N/A"}},{"$f":"'Standing Data'!$F$9","v":0},{"$f":"'Standing Data'!#REF!","v":{"$error":"#REF!"}},"Standing Data","D118",{"$f":"'Standing Data'!D122","v":""}]
[{"$f":"'Standing Data'!$D$12","v":{"$error":"#N/A"}},{"$f":"'Standing Data'!$F$9","v":0},{"$f":"'Standing Data'!#REF!","v":{"$error":"#REF!"}},"Standing Data","D119",{"$f":"'Standing Data'!D123","v":""}]
[{"$f":"'Standing Data'!$D$12","v":{"$error":"#N/A"}},{"$f":"'Standing Data'!$F$9","v":0},{"$f":"'Standing Data'!#REF!","v":{"$error":"#REF!"}},"Standing Data","D120",{"$f":"'Standing Data'!D124","v":""}]
[{"$f":"'Standing Data'!$D$12","v":{"$error":"#N/A"}},{"$f":"'Standing Data'!$F$9","v":0},{"$f":"'Standing Data'!#REF!","v":{"$error":"#REF!"}},"Standing Data","D121",{"$f":"'Standing Data'!D125","v":""}]
[{"$f":"'Standing Data'!$D$12","v":{"$error":"#N/A"}},{"$f":"'Standing Data'!$F$9","v":0},{"$f":"'Standing Data'!#REF!","v":{"$error":"#REF!"}},"Standing Data","D122",{"$f":"'Standing Data'!D126","v":""}]
[{"$f":"'Standing Data'!$D$12","v":{"$error":"#N/A"}},{"$f":"'Standing Data'!$F$9","v":0},{"$f":"'Standing Data'!#REF!","v":{"$error":"#REF!"}},"Standing Data","D123",{"$f":"'Standing Data'!D127","v":""}]
[{"$f":"'Standing Data'!$D$12","v":{"$error":"#N/A"}},{"$f":"'Standing Data'!$F$9","v":0},{"$f":"'Standing Data'!#REF!","v":{"$error":"#REF!"}},"Standing Data","D124",{"$f":"'Standing Data'!D128","v":""}]
[{"$f":"'Standing Data'!$D$12","v":{"$error":"#N/A"}},{"$f":"'Standing Data'!$F$9","v":0},{"$f":"'Standing Data'!#REF!","v":{"$error":"#REF!"}},"Standing Data","D125",{"$f":"'Standing Data'!D129","v":""}]
[{"$f":"'Standing Data'!$D$12","v":{"$error":"#N/A"}},{"$f":"'Standing Data'!$F$9","v":0},{"$f":"'Standing Data'!#REF!","v":{"$error":"#REF!"}},"Standing Data","D126",{"$f":"'Standing Data'!D130","v":""}]
[{"$f":"'Standing Data'!$D$12","v":{"$error":"#N/A"}},{"$f":"'Standing Data'!$F$9","v":0},{"$f":"'Standing Data'!#REF!","v":{"$error":"#REF!"}},"Standing Data","D127",{"$f":"'Standing Data'!D131","v":""}]
[{"$f":"'Standing Data'!$D$12","v":{"$error":"#N/A"}},{"$f":"'Standing Data'!$F$9","v":0},{"$f":"'Standing Data'!#REF!","v":{"$error":"#REF!"}},"Standing Data","D128",{"$f":"'Standing Data'!D132","v":""}]
[{"$f":"'Standing Data'!$D$12","v":{"$error":"#N/A"}},{"$f":"'Standing Data'!$F$9","v":0},{"$f":"'Standing Data'!#REF!","v":{"$error":"#REF!"}},"Standing Data","D129",{"$f":"'Standing Data'!D133","v":""}]
[{"$f":"'Standing Data'!$D$12","v":{"$error":"#N/A"}},{"$f":"'Standing Data'!$F$9","v":0},{"$f":"'Standing Data'!#REF!","v":{"$error":"#REF!"}},"Standing Data","D130",{"$f":"'Standing Data'!D134","v":""}]
[{"$f":"'Standing Data'!$D$12","v":{"$error":"#N/A"}},{"$f":"'Standing Data'!$F$9","v":0},{"$f":"'Standing Data'!#REF!","v":{"$error":"#REF!"}},"Standing Data","D131",{"$f":"'Standing Data'!D135","v":""}]
[{"$f":"'Standing Data'!$D$12","v":{"$error":"#N/A"}},{"$f":"'Standing Data'!$F$9","v":0},{"$f":"'Standing Data'!#REF!","v":{"$error":"#REF!"}},"Standing Data","D132",{"$f":"'Standing Data'!D136","v":""}]
[{"$f":"'Standing Data'!$D$12","v":{"$error":"#N/A"}},{"$f":"'Standing Data'!$F$9","v":0},{"$f":"'Standing Data'!#REF!","v":{"$error":"#REF!"}},"Standing Data","D133",{"$f":"'Standing Data'!D137","v":""}]
[{"$f":"'Standing Data'!$D$12","v":{"$error":"#N/A"}},{"$f":"'Standing Data'!$F$9","v":0},{"$f":"'Standing Data'!#REF!","v":{"$error":"#REF!"}},"Standing Data","D134",{"$f":"'Standing Data'!D138","v":""}]
[{"$f":"'Standing Data'!$D$12","v":{"$error":"#N/A"}},{"$f":"'Standing Data'!$F$9","v":0},{"$f":"'Standing Data'!#REF!","v":{"$error":"#REF!"}},"Standing Data","D135",{"$f":"'Standing Data'!D139","v":""}]
[{"$f":"'Standing Data'!$D$12","v":{"$error":"#N/A"}},{"$f":"'Standing Data'!$F$9","v":0},{"$f":"'Standing Data'!#REF!","v":{"$error":"#REF!"}},"Standing Data","D136",{"$f":"'Standing Data'!D140","v":""}]
[{"$f":"'Standing Data'!$D$12","v":{"$error":"#N/A"}},{"$f":"'Standing Data'!$F$9","v":0},{"$f":"'Standing Data'!#REF!","v":{"$error":"#REF!"}},"Standing Data","D137",{"$f":"'Standing Data'!D141","v":""}]
[{"$f":"'Standing Data'!$D$12","v":{"$error":"#N/A"}},{"$f":"'Standing Data'!$F$9","v":0},{"$f":"'Standing Data'!#REF!","v":{"$error":"#REF!"}},"Standing Data","D138",{"$f":"'Standing Data'!D142","v":""}]
[{"$f":"'Standing Data'!$D$12","v":{"$error":"#N/A"}},{"$f":"'Standing Data'!$F$9","v":0},{"$f":"'Standing Data'!#REF!","v":{"$error":"#REF!"}},"Standing Data","D139",{"$f":"'Standing Data'!D143","v":""}]
[{"$f":"'Standing Data'!$D$12","v":{"$error":"#N/A"}},{"$f":"'Standing Data'!$F$9","v":0},{"$f":"'Standing Data'!#REF!","v":{"$error":"#REF!"}},"Standing Data","D140",{"$f":"'Standing Data'!D144","v":""}]
[{"$f":"'Standing Data'!$D$12","v":{"$error":"#N/A"}},{"$f":"'Standing Data'!$F$9","v":0},{"$f":"'Standing Data'!#REF!","v":{"$error":"#REF!"}},"Standing Data","D141",{"$f":"'Standing Data'!D145","v":""}]
[{"$f":"'Standing Data'!$D$12","v":{"$error":"#N/A"}},{"$f":"'Standing Data'!$F$9","v":0},{"$f":"'Standing Data'!#REF!","v":{"$error":"#REF!"}},"Standing Data","D142",{"$f":"'Standing Data'!D146","v":""}]
[{"$f":"'Standing Data'!$D$12","v":{"$error":"#N/A"}},{"$f":"'Standing Data'!$F$9","v":0},{"$f":"'Standing Data'!#REF!","v":{"$error":"#REF!"}},"Standing Data","D143",{"$f":"'Standing Data'!D147","v":""}]
[{"$f":"'Standing Data'!$D$12","v":{"$error":"#N/A"}},{"$f":"'Standing Data'!$F$9","v":0},{"$f":"'Standing Data'!#REF!","v":{"$error":"#REF!"}},"Standing Data","E44",{"$f":"'Standing Data'!E48","v":0}]
[{"$f":"'Standing Data'!$D$12","v":{"$error":"#N/A"}},{"$f":"'Standing Data'!$F$9","v":0},{"$f":"'Standing Data'!#REF!","v":{"$error":"#REF!"}},"Standing Data","E45",{"$f":"'Standing Data'!E49","v":0}]
[{"$f":"'Standing Data'!$D$12","v":{"$error":"#N/A"}},{"$f":"'Standing Data'!$F$9","v":0},{"$f":"'Standing Data'!#REF!","v":{"$error":"#REF!"}},"Standing Data","E46",{"$f":"'Standing Data'!E50","v":0}]
[{"$f":"'Standing Data'!$D$12","v":{"$error":"#N/A"}},{"$f":"'Standing Data'!$F$9","v":0},{"$f":"'Standing Data'!#REF!","v":{"$error":"#REF!"}},"Standing Data","E47",{"$f":"'Standing Data'!E51","v":0}]
[{"$f":"'Standing Data'!$D$12","v":{"$error":"#N/A"}},{"$f":"'Standing Data'!$F$9","v":0},{"$f":"'Standing Data'!#REF!","v":{"$error":"#REF!"}},"Standing Data","E48",{"$f":"'Standing Data'!E52","v":0}]
[{"$f":"'Standing Data'!$D$12","v":{"$error":"#N/A"}},{"$f":"'Standing Data'!$F$9","v":0},{"$f":"'Standing Data'!#REF!","v":{"$error":"#REF!"}},"Standing Data","E49",{"$f":"'Standing Data'!E53","v":0}]
[{"$f":"'Standing Data'!$D$12","v":{"$error":"#N/A"}},{"$f":"'Standing Data'!$F$9","v":0},{"$f":"'Standing Data'!#REF!","v":{"$error":"#REF!"}},"Standing Data","E50",{"$f":"'Standing Data'!E54","v":0}]
[{"$f":"'Standing Data'!$D$12","v":{"$error":"#N/A"}},{"$f":"'Standing Data'!$F$9","v":0},{"$f":"'Standing Data'!#REF!","v":{"$error":"#REF!"}},"Standing Data","E51",{"$f":"'Standing Data'!E55","v":0}]
[{"$f":"'Standing Data'!$D$12","v":{"$error":"#N/A"}},{"$f":"'Standing Data'!$F$9","v":0},{"$f":"'Standing Data'!#REF!","v":{"$error":"#REF!"}},"Standing Data","E52",{"$f":"'Standing Data'!E56","v":0}]
[{"$f":"'Standing Data'!$D$12","v":{"$error":"#N/A"}},{"$f":"'Standing Data'!$F$9","v":0},{"$f":"'Standing Data'!#REF!","v":{"$error":"#REF!"}},"Standing Data","E53",{"$f":"'Standing Data'!E57","v":0}]
[{"$f":"'Standing Data'!$D$12","v":{"$error":"#N/A"}},{"$f":"'Standing Data'!$F$9","v":0},{"$f":"'Standing Data'!#REF!","v":{"$error":"#REF!"}},"Standing Data","E54",{"$f":"'Standing Data'!E58","v":0}]
[{"$f":"'Standing Data'!$D$12","v":{"$error":"#N/A"}},{"$f":"'Standing Data'!$F$9","v":0},{"$f":"'Standing Data'!#REF!","v":{"$error":"#REF!"}},"Standing Data","E55",{"$f":"'Standing Data'!E59","v":0}]
[{"$f":"'Standing Data'!$D$12","v":{"$error":"#N/A"}},{"$f":"'Standing Data'!$F$9","v":0},{"$f":"'Standing Data'!#REF!","v":{"$error":"#REF!"}},"Standing Data","E56",{"$f":"'Standing Data'!E60","v":0}]
[{"$f":"'Standing Data'!$D$12","v":{"$error":"#N/A"}},{"$f":"'Standing Data'!$F$9","v":0},{"$f":"'Standing Data'!#REF!","v":{"$error":"#REF!"}},"Standing Data","E57",{"$f":"'Standing Data'!E61","v":0}]
[{"$f":"'Standing Data'!$D$12","v":{"$error":"#N/A"}},{"$f":"'Standing Data'!$F$9","v":0},{"$f":"'Standing Data'!#REF!","v":{"$error":"#REF!"}},"Standing Data","E58",{"$f":"'Standing Data'!E62","v":0}]
[{"$f":"'Standing Data'!$D$12","v":{"$error":"#N/A"}},{"$f":"'Standing Data'!$F$9","v":0},{"$f":"'Standing Data'!#REF!","v":{"$error":"#REF!"}},"Standing Data","E59",{"$f":"'Standing Data'!E63","v":0}]
[{"$f":"'Standing Data'!$D$12","v":{"$error":"#N/A"}},{"$f":"'Standing Data'!$F$9","v":0},{"$f":"'Standing Data'!#REF!","v":{"$error":"#REF!"}},"Standing Data","E60",{"$f":"'Standing Data'!E64","v":0}]
[{"$f":"'Standing Data'!$D$12","v":{"$error":"#N/A"}},{"$f":"'Standing Data'!$F$9","v":0},{"$f":"'Standing Data'!#REF!","v":{"$error":"#REF!"}},"Standing Data","E61",{"$f":"'Standing Data'!E65","v":0}]
[{"$f":"'Standing Data'!$D$12","v":{"$error":"#N/A"}},{"$f":"'Standing Data'!$F$9","v":0},{"$f":"'Standing Data'!#REF!","v":{"$error":"#REF!"}},"Standing Data","E62",{"$f":"'Standing Data'!E66","v":0}]
[{"$f":"'Standing Data'!$D$12","v":{"$error":"#N/A"}},{"$f":"'Standing Data'!$F$9","v":0},{"$f":"'Standing Data'!#REF!","v":{"$error":"#REF!"}},"Standing Data","E63",{"$f":"'Standing Data'!E67","v":0}]
[{"$f":"'Standing Data'!$D$12","v":{"$error":"#N/A"}},{"$f":"'Standing Data'!$F$9","v":0},{"$f":"'Standing Data'!#REF!","v":{"$error":"#REF!"}},"Standing Data","E64",{"$f":"'Standing Data'!E68","v":0}]
[{"$f":"'Standing Data'!$D$12","v":{"$error":"#N/A"}},{"$f":"'Standing Data'!$F$9","v":0},{"$f":"'Standing Data'!#REF!","v":{"$error":"#REF!"}},"Standing Data","E65",{"$f":"'Standing Data'!E69","v":0}]
[{"$f":"'Standing Data'!$D$12","v":{"$error":"#N/A"}},{"$f":"'Standing Data'!$F$9","v":0},{"$f":"'Standing Data'!#REF!","v":{"$error":"#REF!"}},"Standing Data","E66",{"$f":"'Standing Data'!E70","v":0}]
[{"$f":"'Standing Data'!$D$12","v":{"$error":"#N/A"}},{"$f":"'Standing Data'!$F$9","v":0},{"$f":"'Standing Data'!#REF!","v":{"$error":"#REF!"}},"Standing Data","E67",{"$f":"'Standing Data'!E71","v":0}]
[{"$f":"'Standing Data'!$D$12","v":{"$error":"#N/A"}},{"$f":"'Standing Data'!$F$9","v":0},{"$f":"'Standing Data'!#REF!","v":{"$error":"#REF!"}},"Standing Data","E68",{"$f":"'Standing Data'!E72","v":0}]
[{"$f":"'Standing Data'!$D$12","v":{"$error":"#N/A"}},{"$f":"'Standing Data'!$F$9","v":0},{"$f":"'Standing Data'!#REF!","v":{"$error":"#REF!"}},"Standing Data","E69",{"$f":"'Standing Data'!E73","v":0}]
[{"$f":"'Standing Data'!$D$12","v":{"$error":"#N/A"}},{"$f":"'Standing Data'!$F$9","v":0},{"$f":"'Standing Data'!#REF!","v":{"$error":"#REF!"}},"Standing Data","E70",{"$f":"'Standing Data'!E74","v":0}]
[{"$f":"'Standing Data'!$D$12","v":{"$error":"#N/A"}},{"$f":"'Standing Data'!$F$9","v":0},{"$f":"'Standing Data'!#REF!","v":{"$error":"#REF!"}},"Standing Data","E71",{"$f":"'Standing Data'!E75","v":0}]
[{"$f":"'Standing Data'!$D$12","v":{"$error":"#N/A"}},{"$f":"'Standing Data'!$F$9","v":0},{"$f":"'Standing Data'!#REF!","v":{"$error":"#REF!"}},"Standing Data","E72",{"$f":"'Standing Data'!E76","v":0}]
[{"$f":"'Standing Data'!$D$12","v":{"$error":"#N/A"}},{"$f":"'Standing Data'!$F$9","v":0},{"$f":"'Standing Data'!#REF!","v":{"$error":"#REF!"}},"Standing Data","E73",{"$f":"'Standing Data'!E77","v":0}]
[{"$f":"'Standing Data'!$D$12","v":{"$error":"#N/A"}},{"$f":"'Standing Data'!$F$9","v":0},{"$f":"'Standing Data'!#REF!","v":{"$error":"#REF!"}},"Standing Data","E74",{"$f":"'Standing Data'!E78","v":0}]
[{"$f":"'Standing Data'!$D$12","v":{"$error":"#N/A"}},{"$f":"'Standing Data'!$F$9","v":0},{"$f":"'Standing Data'!#REF!","v":{"$error":"#REF!"}},"Standing Data","E75",{"$f":"'Standing Data'!E79","v":0}]
[{"$f":"'Standing Data'!$D$12","v":{"$error":"#N/A"}},{"$f":"'Standing Data'!$F$9","v":0},{"$f":"'Standing Data'!#REF!","v":{"$error":"#REF!"}},"Standing Data","E76",{"$f":"'Standing Data'!E80","v":0}]
[{"$f":"'Standing Data'!$D$12","v":{"$error":"#N/A"}},{"$f":"'Standing Data'!$F$9","v":0},{"$f":"'Standing Data'!#REF!","v":{"$error":"#REF!"}},"Standing Data","E77",{"$f":"'Standing Data'!E81","v":0}]
[{"$f":"'Standing Data'!$D$12","v":{"$error":"#N/A"}},{"$f":"'Standing Data'!$F$9","v":0},{"$f":"'Standing Data'!#REF!","v":{"$error":"#REF!"}},"Standing Data","E78",{"$f":"'Standing Data'!E82","v":0}]
[{"$f":"'Standing Data'!$D$12","v":{"$error":"#N/A"}},{"$f":"'Standing Data'!$F$9","v":0},{"$f":"'Standing Data'!#REF!","v":{"$error":"#REF!"}},"Standing Data","E79",{"$f":"'Standing Data'!E83","v":0}]
[{"$f":"'Standing Data'!$D$12","v":{"$error":"#N/A"}},{"$f":"'Standing Data'!$F$9","v":0},{"$f":"'Standing Data'!#REF!","v":{"$error":"#REF!"}},"Standing Data","E80",{"$f":"'Standing Data'!E84","v":0}]
[{"$f":"'Standing Data'!$D$12","v":{"$error":"#N/A"}},{"$f":"'Standing Data'!$F$9","v":0},{"$f":"'Standing Data'!#REF!","v":{"$error":"#REF!"}},"Standing Data","E81",{"$f":"'Standing Data'!E85","v":0}]
[{"$f":"'Standing Data'!$D$12","v":{"$error":"#N/A"}},{"$f":"'Standing Data'!$F$9","v":0},{"$f":"'Standing Data'!#REF!","v":{"$error":"#REF!"}},"Standing Data","E82",{"$f":"'Standing Data'!E86","v":0}]
[{"$f":"'Standing Data'!$D$12","v":{"$error":"#N/A"}},{"$f":"'Standing Data'!$F$9","v":0},{"$f":"'Standing Data'!#REF!","v":{"$error":"#REF!"}},"Standing Data","E83",{"$f":"'Standing Data'!E87","v":0}]
[{"$f":"'Standing Data'!$D$12","v":{"$error":"#N/A"}},{"$f":"'Standing Data'!$F$9","v":0},{"$f":"'Standing Data'!#REF!","v":{"$error":"#REF!"}},"Standing Data","E84",{"$f":"'Standing Data'!E88","v":0}]
[{"$f":"'Standing Data'!$D$12","v":{"$error":"#N/A"}},{"$f":"'Standing Data'!$F$9","v":0},{"$f":"'Standing Data'!#REF!","v":{"$error":"#REF!"}},"Standing Data","E85",{"$f":"'Standing Data'!E89","v":0}]
[{"$f":"'Standing Data'!$D$12","v":{"$error":"#N/A"}},{"$f":"'Standing Data'!$F$9","v":0},{"$f":"'Standing Data'!#REF!","v":{"$error":"#REF!"}},"Standing Data","E86",{"$f":"'Standing Data'!E90","v":0}]
[{"$f":"'Standing Data'!$D$12","v":{"$error":"#N/A"}},{"$f":"'Standing Data'!$F$9","v":0},{"$f":"'Standing Data'!#REF!","v":{"$error":"#REF!"}},"Standing Data","E87",{"$f":"'Standing Data'!E91","v":0}]
[{"$f":"'Standing Data'!$D$12","v":{"$error":"#N/A"}},{"$f":"'Standing Data'!$F$9","v":0},{"$f":"'Standing Data'!#REF!","v":{"$error":"#REF!"}},"Standing Data","E88",{"$f":"'Standing Data'!E92","v":0}]
[{"$f":"'Standing Data'!$D$12","v":{"$error":"#N/A"}},{"$f":"'Standing Data'!$F$9","v":0},{"$f":"'Standing Data'!#REF!","v":{"$error":"#REF!"}},"Standing Data","E89",{"$f":"'Standing Data'!E93","v":0}]
[{"$f":"'Standing Data'!$D$12","v":{"$error":"#N/A"}},{"$f":"'Standing Data'!$F$9","v":0},{"$f":"'Standing Data'!#REF!","v":{"$error":"#REF!"}},"Standing Data","E90",{"$f":"'Standing Data'!E94","v":0}]
[{"$f":"'Standing Data'!$D$12","v":{"$error":"#N/A"}},{"$f":"'Standing Data'!$F$9","v":0},{"$f":"'Standing Data'!#REF!","v":{"$error":"#REF!"}},"Standing Data","E91",{"$f":"'Standing Data'!E95","v":0}]
[{"$f":"'Standing Data'!$D$12","v":{"$error":"#N/A"}},{"$f":"'Standing Data'!$F$9","v":0},{"$f":"'Standing Data'!#REF!","v":{"$error":"#REF!"}},"Standing Data","E92",{"$f":"'Standing Data'!E96","v":0}]
[{"$f":"'Standing Data'!$D$12","v":{"$error":"#N/A"}},{"$f":"'Standing Data'!$F$9","v":0},{"$f":"'Standing Data'!#REF!","v":{"$error":"#REF!"}},"Standing Data","E93",{"$f":"'Standing Data'!E97","v":0}]
[{"$f":"'Standing Data'!$D$12","v":{"$error":"#N/A"}},{"$f":"'Standing Data'!$F$9","v":0},{"$f":"'Standing Data'!#REF!","v":{"$error":"#REF!"}},"Standing Data","E94",{"$f":"'Standing Data'!E98","v":0}]
[{"$f":"'Standing Data'!$D$12","v":{"$error":"#N/A"}},{"$f":"'Standing Data'!$F$9","v":0},{"$f":"'Standing Data'!#REF!","v":{"$error":"#REF!"}},"Standing Data","E95",{"$f":"'Standing Data'!E99","v":0}]
[{"$f":"'Standing Data'!$D$12","v":{"$error":"#N/A"}},{"$f":"'Standing Data'!$F$9","v":0},{"$f":"'Standing Data'!#REF!","v":{"$error":"#REF!"}},"Standing Data","E96",{"$f":"'Standing Data'!E100","v":0}]
[{"$f":"'Standing Data'!$D$12","v":{"$error":"#N/A"}},{"$f":"'Standing Data'!$F$9","v":0},{"$f":"'Standing Data'!#REF!","v":{"$error":"#REF!"}},"Standing Data","E97",{"$f":"'Standing Data'!E101","v":0}]
[{"$f":"'Standing Data'!$D$12","v":{"$error":"#N/A"}},{"$f":"'Standing Data'!$F$9","v":0},{"$f":"'Standing Data'!#REF!","v":{"$error":"#REF!"}},"Standing Data","E98",{"$f":"'Standing Data'!E102","v":0}]
[{"$f":"'Standing Data'!$D$12","v":{"$error":"#N/A"}},{"$f":"'Standing Data'!$F$9","v":0},{"$f":"'Standing Data'!#REF!","v":{"$error":"#REF!"}},"Standing Data","E99",{"$f":"'Standing Data'!E103","v":0}]
[{"$f":"'Standing Data'!$D$12","v":{"$error":"#N/A"}},{"$f":"'Standing Data'!$F$9","v":0},{"$f":"'Standing Data'!#REF!","v":{"$error":"#REF!"}},"Standing Data","E100",{"$f":"'Standing Data'!E104","v":0}]
[{"$f":"'Standing Data'!$D$12","v":{"$error":"#N/A"}},{"$f":"'Standing Data'!$F$9","v":0},{"$f":"'Standing Data'!#REF!","v":{"$error":"#REF!"}},"Standing Data","E101",{"$f":"'Standing Data'!E105","v":0}]
[{"$f":"'Standing Data'!$D$12","v":{"$error":"#N/A"}},{"$f":"'Standing Data'!$F$9","v":0},{"$f":"'Standing Data'!#REF!","v":{"$error":"#REF!"}},"Standing Data","E102",{"$f":"'Standing Data'!E106","v":0}]
[{"$f":"'Standing Data'!$D$12","v":{"$error":"#N/A"}},{"$f":"'Standing Data'!$F$9","v":0},{"$f":"'Standing Data'!#REF!","v":{"$error":"#REF!"}},"Standing Data","E103",{"$f":"'Standing Data'!E107","v":0}]
[{"$f":"'Standing Data'!$D$12","v":{"$error":"#N/A"}},{"$f":"'Standing Data'!$F$9","v":0},{"$f":"'Standing Data'!#REF!","v":{"$error":"#REF!"}},"Standing Data","E104",{"$f":"'Standing Data'!E108","v":0}]
[{"$f":"'Standing Data'!$D$12","v":{"$error":"#N/A"}},{"$f":"'Standing Data'!$F$9","v":0},{"$f":"'Standing Data'!#REF!","v":{"$error":"#REF!"}},"Standing Data","E105",{"$f":"'Standing Data'!E109","v":0}]
[{"$f":"'Standing Data'!$D$12","v":{"$error":"#N/A"}},{"$f":"'Standing Data'!$F$9","v":0},{"$f":"'Standing Data'!#REF!","v":{"$error":"#REF!"}},"Standing Data","E106",{"$f":"'Standing Data'!E110","v":0}]
[{"$f":"'Standing Data'!$D$12","v":{"$error":"#N/A"}},{"$f":"'Standing Data'!$F$9","v":0},{"$f":"'Standing Data'!#REF!","v":{"$error":"#REF!"}},"Standing Data","E107",{"$f":"'Standing Data'!E111","v":0}]
[{"$f":"'Standing Data'!$D$12","v":{"$error":"#N/A"}},{"$f":"'Standing Data'!$F$9","v":0},{"$f":"'Standing Data'!#REF!","v":{"$error":"#REF!"}},"Standing Data","E108",{"$f":"'Standing Data'!E112","v":0}]
[{"$f":"'Standing Data'!$D$12","v":{"$error":"#N/A"}},{"$f":"'Standing Data'!$F$9","v":0},{"$f":"'Standing Data'!#REF!","v":{"$error":"#REF!"}},"Standing Data","E109",{"$f":"'Standing Data'!E113","v":0}]
[{"$f":"'Standing Data'!$D$12","v":{"$error":"#N/A"}},{"$f":"'Standing Data'!$F$9","v":0},{"$f":"'Standing Data'!#REF!","v":{"$error":"#REF!"}},"Standing Data","E110",{"$f":"'Standing Data'!E114","v":0}]
[{"$f":"'Standing Data'!$D$12","v":{"$error":"#N/A"}},{"$f":"'Standing Data'!$F$9","v":0},{"$f":"'Standing Data'!#REF!","v":{"$error":"#REF!"}},"Standing Data","E111",{"$f":"'Standing Data'!E115","v":0}]
[{"$f":"'Standing Data'!$D$12","v":{"$error":"#N/A"}},{"$f":"'Standing Data'!$F$9","v":0},{"$f":"'Standing Data'!#REF!","v":{"$error":"#REF!"}},"Standing Data","E112",{"$f":"'Standing Data'!E116","v":0}]
[{"$f":"'Standing Data'!$D$12","v":{"$error":"#N/A"}},{"$f":"'Standing Data'!$F$9","v":0},{"$f":"'Standing Data'!#REF!","v":{"$error":"#REF!"}},"Standing Data","E113",{"$f":"'Standing Data'!E117","v":0}]
[{"$f":"'Standing Data'!$D$12","v":{"$error":"#N/A"}},{"$f":"'Standing Data'!$F$9","v":0},{"$f":"'Standing Data'!#REF!","v":{"$error":"#REF!"}},"Standing Data","E114",{"$f":"'Standing Data'!E118","v":0}]
[{"$f":"'Standing Data'!$D$12","v":{"$error":"#N/A"}},{"$f":"'Standing Data'!$F$9","v":0},{"$f":"'Standing Data'!#REF!","v":{"$error":"#REF!"}},"Standing Data","E115",{"$f":"'Standing Data'!E119","v":0}]
[{"$f":"'Standing Data'!$D$12","v":{"$error":"#N/A"}},{"$f":"'Standing Data'!$F$9","v":0},{"$f":"'Standing Data'!#REF!","v":{"$error":"#REF!"}},"Standing Data","E116",{"$f":"'Standing Data'!E120","v":0}]
[{"$f":"'Standing Data'!$D$12","v":{"$error":"#N/A"}},{"$f":"'Standing Data'!$F$9","v":0},{"$f":"'Standing Data'!#REF!","v":{"$error":"#REF!"}},"Standing Data","E117",{"$f":"'Standing Data'!E121","v":0}]
[{"$f":"'Standing Data'!$D$12","v":{"$error":"#N/A"}},{"$f":"'Standing Data'!$F$9","v":0},{"$f":"'Standing Data'!#REF!","v":{"$error":"#REF!"}},"Standing Data","E118",{"$f":"'Standing Data'!E122","v":0}]
[{"$f":"'Standing Data'!$D$12","v":{"$error":"#N/A"}},{"$f":"'Standing Data'!$F$9","v":0},{"$f":"'Standing Data'!#REF!","v":{"$error":"#REF!"}},"Standing Data","E119",{"$f":"'Standing Data'!E123","v":0}]
[{"$f":"'Standing Data'!$D$12","v":{"$error":"#N/A"}},{"$f":"'Standing Data'!$F$9","v":0},{"$f":"'Standing Data'!#REF!","v":{"$error":"#REF!"}},"Standing Data","E120",{"$f":"'Standing Data'!E124","v":0}]
[{"$f":"'Standing Data'!$D$12","v":{"$error":"#N/A"}},{"$f":"'Standing Data'!$F$9","v":0},{"$f":"'Standing Data'!#REF!","v":{"$error":"#REF!"}},"Standing Data","E121",{"$f":"'Standing Data'!E125","v":0}]
[{"$f":"'Standing Data'!$D$12","v":{"$error":"#N/A"}},{"$f":"'Standing Data'!$F$9","v":0},{"$f":"'Standing Data'!#REF!","v":{"$error":"#REF!"}},"Standing Data","E122",{"$f":"'Standing Data'!E126","v":0}]
[{"$f":"'Standing Data'!$D$12","v":{"$error":"#N/A"}},{"$f":"'Standing Data'!$F$9","v":0},{"$f":"'Standing Data'!#REF!","v":{"$error":"#REF!"}},"Standing Data","E123",{"$f":"'Standing Data'!E127","v":0}]
[{"$f":"'Standing Data'!$D$12","v":{"$error":"#N/A"}},{"$f":"'Standing Data'!$F$9","v":0},{"$f":"'Standing Data'!#REF!","v":{"$error":"#REF!"}},"Standing Data","E124",{"$f":"'Standing Data'!E128","v":0}]
[{"$f":"'Standing Data'!$D$12","v":{"$error":"#N/A"}},{"$f":"'Standing Data'!$F$9","v":0},{"$f":"'Standing Data'!#REF!","v":{"$error":"#REF!"}},"Standing Data","E125",{"$f":"'Standing Data'!E129","v":0}]
[{"$f":"'Standing Data'!$D$12","v":{"$error":"#N/A"}},{"$f":"'Standing Data'!$F$9","v":0},{"$f":"'Standing Data'!#REF!","v":{"$error":"#REF!"}},"Standing Data","E126",{"$f":"'Standing Data'!E130","v":0}]
[{"$f":"'Standing Data'!$D$12","v":{"$error":"#N/A"}},{"$f":"'Standing Data'!$F$9","v":0},{"$f":"'Standing Data'!#REF!","v":{"$error":"#REF!"}},"Standing Data","E127",{"$f":"'Standing Data'!E131","v":0}]
[{"$f":"'Standing Data'!$D$12","v":{"$error":"#N/A"}},{"$f":"'Standing Data'!$F$9","v":0},{"$f":"'Standing Data'!#REF!","v":{"$error":"#REF!"}},"Standing Data","E128",{"$f":"'Standing Data'!E132","v":0}]
[{"$f":"'Standing Data'!$D$12","v":{"$error":"#N/A"}},{"$f":"'Standing Data'!$F$9","v":0},{"$f":"'Standing Data'!#REF!","v":{"$error":"#REF!"}},"Standing Data","E129",{"$f":"'Standing Data'!E133","v":0}]
[{"$f":"'Standing Data'!$D$12","v":{"$error":"#N/A"}},{"$f":"'Standing Data'!$F$9","v":0},{"$f":"'Standing Data'!#REF!","v":{"$error":"#REF!"}},"Standing Data","E130",{"$f":"'Standing Data'!E134","v":0}]
[{"$f":"'Standing Data'!$D$12","v":{"$error":"#N/A"}},{"$f":"'Standing Data'!$F$9","v":0},{"$f":"'Standing Data'!#REF!","v":{"$error":"#REF!"}},"Standing Data","E131",{"$f":"'Standing Data'!E135","v":0}]
[{"$f":"'Standing Data'!$D$12","v":{"$error":"#N/A"}},{"$f":"'Standing Data'!$F$9","v":0},{"$f":"'Standing Data'!#REF!","v":{"$error":"#REF!"}},"Standing Data","E132",{"$f":"'Standing Data'!E136","v":0}]
[{"$f":"'Standing Data'!$D$12","v":{"$error":"#N/A"}},{"$f":"'Standing Data'!$F$9","v":0},{"$f":"'Standing Data'!#REF!","v":{"$error":"#REF!"}},"Standing Data","E133",{"$f":"'Standing Data'!E137","v":0}]
[{"$f":"'Standing Data'!$D$12","v":{"$error":"#N/A"}},{"$f":"'Standing Data'!$F$9","v":0},{"$f":"'Standing Data'!#REF!","v":{"$error":"#REF!"}},"Standing Data","E134",{"$f":"'Standing Data'!E138","v":0}]
[{"$f":"'Standing Data'!$D$12","v":{"$error":"#N/A"}},{"$f":"'Standing Data'!$F$9","v":0},{"$f":"'Standing Data'!#REF!","v":{"$error":"#REF!"}},"Standing Data","E135",{"$f":"'Standing Data'!E139","v":0}]
[{"$f":"'Standing Data'!$D$12","v":{"$error":"#N/A"}},{"$f":"'Standing Data'!$F$9","v":0},{"$f":"'Standing Data'!#REF!","v":{"$error":"#REF!"}},"Standing Data","E136",{"$f":"'Standing Data'!E140","v":0}]
[{"$f":"'Standing Data'!$D$12","v":{"$error":"#N/A"}},{"$f":"'Standing Data'!$F$9","v":0},{"$f":"'Standing Data'!#REF!","v":{"$error":"#REF!"}},"Standing Data","E137",{"$f":"'Standing Data'!E141","v":0}]
[{"$f":"'Standing Data'!$D$12","v":{"$error":"#N/A"}},{"$f":"'Standing Data'!$F$9","v":0},{"$f":"'Standing Data'!#REF!","v":{"$error":"#REF!"}},"Standing Data","E138",{"$f":"'Standing Data'!E142","v":0}]
[{"$f":"'Standing Data'!$D$12","v":{"$error":"#N/A"}},{"$f":"'Standing Data'!$F$9","v":0},{"$f":"'Standing Data'!#REF!","v":{"$error":"#REF!"}},"Standing Data","E139",{"$f":"'Standing Data'!E143","v":0}]
[{"$f":"'Standing Data'!$D$12","v":{"$error":"#N/A"}},{"$f":"'Standing Data'!$F$9","v":0},{"$f":"'Standing Data'!#REF!","v":{"$error":"#REF!"}},"Standing Data","E140",{"$f":"'Standing Data'!E144","v":0}]
[{"$f":"'Standing Data'!$D$12","v":{"$error":"#N/A"}},{"$f":"'Standing Data'!$F$9","v":0},{"$f":"'Standing Data'!#REF!","v":{"$error":"#REF!"}},"Standing Data","E141",{"$f":"'Standing Data'!E145","v":0}]
[{"$f":"'Standing Data'!$D$12","v":{"$error":"#N/A"}},{"$f":"'Standing Data'!$F$9","v":0},{"$f":"'Standing Data'!#REF!","v":{"$error":"#REF!"}},"Standing Data","E142",{"$f":"'Standing Data'!E146","v":0}]
[{"$f":"'Standing Data'!$D$12","v":{"$error":"#N/A"}},{"$f":"'Standing Data'!$F$9","v":0},{"$f":"'Standing Data'!#REF!","v":{"$error":"#REF!"}},"Standing Data","E143",{"$f":"'Standing Data'!E147","v":0}]
[{"$f":"'Standing Data'!$D$12","v":{"$error":"#N/A"}},{"$f":"'Standing Data'!$F$9","v":0},{"$f":"'Standing Data'!#REF!","v":{"$error":"#REF!"}},"Standing Data","F44",{"$f":"'Standing Data'!F48","v":0}]
[{"$f":"'Standing Data'!$D$12","v":{"$error":"#N/A"}},{"$f":"'Standing Data'!$F$9","v":0},{"$f":"'Standing Data'!#REF!","v":{"$error":"#REF!"}},"Standing Data","F45",{"$f":"'Standing Data'!F49","v":0}]
[{"$f":"'Standing Data'!$D$12","v":{"$error":"#N/A"}},{"$f":"'Standing Data'!$F$9","v":0},{"$f":"'Standing Data'!#REF!","v":{"$error":"#REF!"}},"Standing Data","F46",{"$f":"'Standing Data'!F50","v":0}]
[{"$f":"'Standing Data'!$D$12","v":{"$error":"#N/A"}},{"$f":"'Standing Data'!$F$9","v":0},{"$f":"'Standing Data'!#REF!","v":{"$error":"#REF!"}},"Standing Data","F47",{"$f":"'Standing Data'!F51","v":0}]
[{"$f":"'Standing Data'!$D$12","v":{"$error":"#N/A"}},{"$f":"'Standing Data'!$F$9","v":0},{"$f":"'Standing Data'!#REF!","v":{"$error":"#REF!"}},"Standing Data","F48",{"$f":"'Standing Data'!F52","v":0}]
[{"$f":"'Standing Data'!$D$12","v":{"$error":"#N/A"}},{"$f":"'Standing Data'!$F$9","v":0},{"$f":"'Standing Data'!#REF!","v":{"$error":"#REF!"}},"Standing Data","F49",{"$f":"'Standing Data'!F53","v":0}]
[{"$f":"'Standing Data'!$D$12","v":{"$error":"#N/A"}},{"$f":"'Standing Data'!$F$9","v":0},{"$f":"'Standing Data'!#REF!","v":{"$error":"#REF!"}},"Standing Data","F50",{"$f":"'Standing Data'!F54","v":0}]
[{"$f":"'Standing Data'!$D$12","v":{"$error":"#N/A"}},{"$f":"'Standing Data'!$F$9","v":0},{"$f":"'Standing Data'!#REF!","v":{"$error":"#REF!"}},"Standing Data","F51",{"$f":"'Standing Data'!F55","v":0}]
[{"$f":"'Standing Data'!$D$12","v":{"$error":"#N/A"}},{"$f":"'Standing Data'!$F$9","v":0},{"$f":"'Standing Data'!#REF!","v":{"$error":"#REF!"}},"Standing Data","F52",{"$f":"'Standing Data'!F56","v":0}]
[{"$f":"'Standing Data'!$D$12","v":{"$error":"#N/A"}},{"$f":"'Standing Data'!$F$9","v":0},{"$f":"'Standing Data'!#REF!","v":{"$error":"#REF!"}},"Standing Data","F53",{"$f":"'Standing Data'!F57","v":0}]
[{"$f":"'Standing Data'!$D$12","v":{"$error":"#N/A"}},{"$f":"'Standing Data'!$F$9","v":0},{"$f":"'Standing Data'!#REF!","v":{"$error":"#REF!"}},"Standing Data","F54",{"$f":"'Standing Data'!F58","v":0}]
[{"$f":"'Standing Data'!$D$12","v":{"$error":"#N/A"}},{"$f":"'Standing Data'!$F$9","v":0},{"$f":"'Standing Data'!#REF!","v":{"$error":"#REF!"}},"Standing Data","F55",{"$f":"'Standing Data'!F59","v":0}]
[{"$f":"'Standing Data'!$D$12","v":{"$error":"#N/A"}},{"$f":"'Standing Data'!$F$9","v":0},{"$f":"'Standing Data'!#REF!","v":{"$error":"#REF!"}},"Standing Data","F56",{"$f":"'Standing Data'!F60","v":0}]
[{"$f":"'Standing Data'!$D$12","v":{"$error":"#N/A"}},{"$f":"'Standing Data'!$F$9","v":0},{"$f":"'Standing Data'!#REF!","v":{"$error":"#REF!"}},"Standing Data","F57",{"$f":"'Standing Data'!F61","v":0}]
[{"$f":"'Standing Data'!$D$12","v":{"$error":"#N/A"}},{"$f":"'Standing Data'!$F$9","v":0},{"$f":"'Standing Data'!#REF!","v":{"$error":"#REF!"}},"Standing Data","F58",{"$f":"'Standing Data'!F62","v":0}]
[{"$f":"'Standing Data'!$D$12","v":{"$error":"#N/A"}},{"$f":"'Standing Data'!$F$9","v":0},{"$f":"'Standing Data'!#REF!","v":{"$error":"#REF!"}},"Standing Data","F59",{"$f":"'Standing Data'!F63","v":0}]
[{"$f":"'Standing Data'!$D$12","v":{"$error":"#N/A"}},{"$f":"'Standing Data'!$F$9","v":0},{"$f":"'Standing Data'!#REF!","v":{"$error":"#REF!"}},"Standing Data","F60",{"$f":"'Standing Data'!F64","v":0}]
[{"$f":"'Standing Data'!$D$12","v":{"$error":"#N/A"}},{"$f":"'Standing Data'!$F$9","v":0},{"$f":"'Standing Data'!#REF!","v":{"$error":"#REF!"}},"Standing Data","F61",{"$f":"'Standing Data'!F65","v":0}]
[{"$f":"'Standing Data'!$D$12","v":{"$error":"#N/A"}},{"$f":"'Standing Data'!$F$9","v":0},{"$f":"'Standing Data'!#REF!","v":{"$error":"#REF!"}},"Standing Data","F62",{"$f":"'Standing Data'!F66","v":0}]
[{"$f":"'Standing Data'!$D$12","v":{"$error":"#N/A"}},{"$f":"'Standing Data'!$F$9","v":0},{"$f":"'Standing Data'!#REF!","v":{"$error":"#REF!"}},"Standing Data","F63",{"$f":"'Standing Data'!F67","v":0}]
[{"$f":"'Standing Data'!$D$12","v":{"$error":"#N/A"}},{"$f":"'Standing Data'!$F$9","v":0},{"$f":"'Standing Data'!#REF!","v":{"$error":"#REF!"}},"Standing Data","F64",{"$f":"'Standing Data'!F68","v":0}]
[{"$f":"'Standing Data'!$D$12","v":{"$error":"#N/A"}},{"$f":"'Standing Data'!$F$9","v":0},{"$f":"'Standing Data'!#REF!","v":{"$error":"#REF!"}},"Standing Data","F65",{"$f":"'Standing Data'!F69","v":0}]
[{"$f":"'Standing Data'!$D$12","v":{"$error":"#N/A"}},{"$f":"'Standing Data'!$F$9","v":0},{"$f":"'Standing Data'!#REF!","v":{"$error":"#REF!"}},"Standing Data","F66",{"$f":"'Standing Data'!F70","v":0}]
[{"$f":"'Standing Data'!$D$12","v":{"$error":"#N/A"}},{"$f":"'Standing Data'!$F$9","v":0},{"$f":"'Standing Data'!#REF!","v":{"$error":"#REF!"}},"Standing Data","F67",{"$f":"'Standing Data'!F71","v":0}]
[{"$f":"'Standing Data'!$D$12","v":{"$error":"#N/A"}},{"$f":"'Standing Data'!$F$9","v":0},{"$f":"'Standing Data'!#REF!","v":{"$error":"#REF!"}},"Standing Data","F68",{"$f":"'Standing Data'!F72","v":0}]
[{"$f":"'Standing Data'!$D$12","v":{"$error":"#N/A"}},{"$f":"'Standing Data'!$F$9","v":0},{"$f":"'Standing Data'!#REF!","v":{"$error":"#REF!"}},"Standing Data","F69",{"$f":"'Standing Data'!F73","v":0}]
[{"$f":"'Standing Data'!$D$12","v":{"$error":"#N/A"}},{"$f":"'Standing Data'!$F$9","v":0},{"$f":"'Standing Data'!#REF!","v":{"$error":"#REF!"}},"Standing Data","F70",{"$f":"'Standing Data'!F74","v":0}]
[{"$f":"'Standing Data'!$D$12","v":{"$error":"#N/A"}},{"$f":"'Standing Data'!$F$9","v":0},{"$f":"'Standing Data'!#REF!","v":{"$error":"#REF!"}},"Standing Data","F71",{"$f":"'Standing Data'!F75","v":0}]
[{"$f":"'Standing Data'!$D$12","v":{"$error":"#N/A"}},{"$f":"'Standing Data'!$F$9","v":0},{"$f":"'Standing Data'!#REF!","v":{"$error":"#REF!"}},"Standing Data","F72",{"$f":"'Standing Data'!F76","v":0}]
[{"$f":"'Standing Data'!$D$12","v":{"$error":"#N/A"}},{"$f":"'Standing Data'!$F$9","v":0},{"$f":"'Standing Data'!#REF!","v":{"$error":"#REF!"}},"Standing Data","F73",{"$f":"'Standing Data'!F77","v":0}]
[{"$f":"'Standing Data'!$D$12","v":{"$error":"#N/A"}},{"$f":"'Standing Data'!$F$9","v":0},{"$f":"'Standing Data'!#REF!","v":{"$error":"#REF!"}},"Standing Data","F74",{"$f":"'Standing Data'!F78","v":0}]
[{"$f":"'Standing Data'!$D$12","v":{"$error":"#N/A"}},{"$f":"'Standing Data'!$F$9","v":0},{"$f":"'Standing Data'!#REF!","v":{"$error":"#REF!"}},"Standing Data","F75",{"$f":"'Standing Data'!F79","v":0}]
[{"$f":"'Standing Data'!$D$12","v":{"$error":"#N/A"}},{"$f":"'Standing Data'!$F$9","v":0},{"$f":"'Standing Data'!#REF!","v":{"$error":"#REF!"}},"Standing Data","F76",{"$f":"'Standing Data'!F80","v":0}]
[{"$f":"'Standing Data'!$D$12","v":{"$error":"#N/A"}},{"$f":"'Standing Data'!$F$9","v":0},{"$f":"'Standing Data'!#REF!","v":{"$error":"#REF!"}},"Standing Data","F77",{"$f":"'Standing Data'!F81","v":0}]
[{"$f":"'Standing Data'!$D$12","v":{"$error":"#N/A"}},{"$f":"'Standing Data'!$F$9","v":0},{"$f":"'Standing Data'!#REF!","v":{"$error":"#REF!"}},"Standing Data","F78",{"$f":"'Standing Data'!F82","v":0}]
[{"$f":"'Standing Data'!$D$12","v":{"$error":"#N/A"}},{"$f":"'Standing Data'!$F$9","v":0},{"$f":"'Standing Data'!#REF!","v":{"$error":"#REF!"}},"Standing Data","F79",{"$f":"'Standing Data'!F83","v":0}]
[{"$f":"'Standing Data'!$D$12","v":{"$error":"#N/A"}},{"$f":"'Standing Data'!$F$9","v":0},{"$f":"'Standing Data'!#REF!","v":{"$error":"#REF!"}},"Standing Data","F80",{"$f":"'Standing Data'!F84","v":0}]
[{"$f":"'Standing Data'!$D$12","v":{"$error":"#N/A"}},{"$f":"'Standing Data'!$F$9","v":0},{"$f":"'Standing Data'!#REF!","v":{"$error":"#REF!"}},"Standing Data","F81",{"$f":"'Standing Data'!F85","v":0}]
[{"$f":"'Standing Data'!$D$12","v":{"$error":"#N/A"}},{"$f":"'Standing Data'!$F$9","v":0},{"$f":"'Standing Data'!#REF!","v":{"$error":"#REF!"}},"Standing Data","F82",{"$f":"'Standing Data'!F86","v":0}]
[{"$f":"'Standing Data'!$D$12","v":{"$error":"#N/A"}},{"$f":"'Standing Data'!$F$9","v":0},{"$f":"'Standing Data'!#REF!","v":{"$error":"#REF!"}},"Standing Data","F83",{"$f":"'Standing Data'!F87","v":0}]
[{"$f":"'Standing Data'!$D$12","v":{"$error":"#N/A"}},{"$f":"'Standing Data'!$F$9","v":0},{"$f":"'Standing Data'!#REF!","v":{"$error":"#REF!"}},"Standing Data","F84",{"$f":"'Standing Data'!F88","v":0}]
[{"$f":"'Standing Data'!$D$12","v":{"$error":"#N/A"}},{"$f":"'Standing Data'!$F$9","v":0},{"$f":"'Standing Data'!#REF!","v":{"$error":"#REF!"}},"Standing Data","F85",{"$f":"'Standing Data'!F89","v":0}]
[{"$f":"'Standing Data'!$D$12","v":{"$error":"#N/A"}},{"$f":"'Standing Data'!$F$9","v":0},{"$f":"'Standing Data'!#REF!","v":{"$error":"#REF!"}},"Standing Data","F86",{"$f":"'Standing Data'!F90","v":0}]
[{"$f":"'Standing Data'!$D$12","v":{"$error":"#N/A"}},{"$f":"'Standing Data'!$F$9","v":0},{"$f":"'Standing Data'!#REF!","v":{"$error":"#REF!"}},"Standing Data","F87",{"$f":"'Standing Data'!F91","v":0}]
[{"$f":"'Standing Data'!$D$12","v":{"$error":"#N/A"}},{"$f":"'Standing Data'!$F$9","v":0},{"$f":"'Standing Data'!#REF!","v":{"$error":"#REF!"}},"Standing Data","F88",{"$f":"'Standing Data'!F92","v":0}]
[{"$f":"'Standing Data'!$D$12","v":{"$error":"#N/A"}},{"$f":"'Standing Data'!$F$9","v":0},{"$f":"'Standing Data'!#REF!","v":{"$error":"#REF!"}},"Standing Data","F89",{"$f":"'Standing Data'!F93","v":0}]
[{"$f":"'Standing Data'!$D$12","v":{"$error":"#N/A"}},{"$f":"'Standing Data'!$F$9","v":0},{"$f":"'Standing Data'!#REF!","v":{"$error":"#REF!"}},"Standing Data","F90",{"$f":"'Standing Data'!F94","v":0}]
[{"$f":"'Standing Data'!$D$12","v":{"$error":"#N/A"}},{"$f":"'Standing Data'!$F$9","v":0},{"$f":"'Standing Data'!#REF!","v":{"$error":"#REF!"}},"Standing Data","F91",{"$f":"'Standing Data'!F95","v":0}]
[{"$f":"'Standing Data'!$D$12","v":{"$error":"#N/A"}},{"$f":"'Standing Data'!$F$9","v":0},{"$f":"'Standing Data'!#REF!","v":{"$error":"#REF!"}},"Standing Data","F92",{"$f":"'Standing Data'!F96","v":0}]
[{"$f":"'Standing Data'!$D$12","v":{"$error":"#N/A"}},{"$f":"'Standing Data'!$F$9","v":0},{"$f":"'Standing Data'!#REF!","v":{"$error":"#REF!"}},"Standing Data","F93",{"$f":"'Standing Data'!F97","v":0}]
[{"$f":"'Standing Data'!$D$12","v":{"$error":"#N/A"}},{"$f":"'Standing Data'!$F$9","v":0},{"$f":"'Standing Data'!#REF!","v":{"$error":"#REF!"}},"Standing Data","F94",{"$f":"'Standing Data'!F98","v":0}]
[{"$f":"'Standing Data'!$D$12","v":{"$error":"#N/A"}},{"$f":"'Standing Data'!$F$9","v":0},{"$f":"'Standing Data'!#REF!","v":{"$error":"#REF!"}},"Standing Data","F95",{"$f":"'Standing Data'!F99","v":0}]
[{"$f":"'Standing Data'!$D$12","v":{"$error":"#N/A"}},{"$f":"'Standing Data'!$F$9","v":0},{"$f":"'Standing Data'!#REF!","v":{"$error":"#REF!"}},"Standing Data","F96",{"$f":"'Standing Data'!F100","v":0}]
[{"$f":"'Standing Data'!$D$12","v":{"$error":"#N/A"}},{"$f":"'Standing Data'!$F$9","v":0},{"$f":"'Standing Data'!#REF!","v":{"$error":"#REF!"}},"Standing Data","F97",{"$f":"'Standing Data'!F101","v":0}]
[{"$f":"'Standing Data'!$D$12","v":{"$error":"#N/A"}},{"$f":"'Standing Data'!$F$9","v":0},{"$f":"'Standing Data'!#REF!","v":{"$error":"#REF!"}},"Standing Data","F98",{"$f":"'Standing Data'!F102","v":0}]
[{"$f":"'Standing Data'!$D$12","v":{"$error":"#N/A"}},{"$f":"'Standing Data'!$F$9","v":0},{"$f":"'Standing Data'!#REF!","v":{"$error":"#REF!"}},"Standing Data","F99",{"$f":"'Standing Data'!F103","v":0}]
[{"$f":"'Standing Data'!$D$12","v":{"$error":"#N/A"}},{"$f":"'Standing Data'!$F$9","v":0},{"$f":"'Standing Data'!#REF!","v":{"$error":"#REF!"}},"Standing Data","F100",{"$f":"'Standing Data'!F104","v":0}]
[{"$f":"'Standing Data'!$D$12","v":{"$error":"#N/A"}},{"$f":"'Standing Data'!$F$9","v":0},{"$f":"'Standing Data'!#REF!","v":{"$error":"#REF!"}},"Standing Data","F101",{"$f":"'Standing Data'!F105","v":0}]
[{"$f":"'Standing Data'!$D$12","v":{"$error":"#N/A"}},{"$f":"'Standing Data'!$F$9","v":0},{"$f":"'Standing Data'!#REF!","v":{"$error":"#REF!"}},"Standing Data","F102",{"$f":"'Standing Data'!F106","v":0}]
[{"$f":"'Standing Data'!$D$12","v":{"$error":"#N/A"}},{"$f":"'Standing Data'!$F$9","v":0},{"$f":"'Standing Data'!#REF!","v":{"$error":"#REF!"}},"Standing Data","F103",{"$f":"'Standing Data'!F107","v":0}]
[{"$f":"'Standing Data'!$D$12","v":{"$error":"#N/A"}},{"$f":"'Standing Data'!$F$9","v":0},{"$f":"'Standing Data'!#REF!","v":{"$error":"#REF!"}},"Standing Data","F104",{"$f":"'Standing Data'!F108","v":0}]
[{"$f":"'Standing Data'!$D$12","v":{"$error":"#N/A"}},{"$f":"'Standing Data'!$F$9","v":0},{"$f":"'Standing Data'!#REF!","v":{"$error":"#REF!"}},"Standing Data","F105",{"$f":"'Standing Data'!F109","v":0}]
[{"$f":"'Standing Data'!$D$12","v":{"$error":"#N/A"}},{"$f":"'Standing Data'!$F$9","v":0},{"$f":"'Standing Data'!#REF!","v":{"$error":"#REF!"}},"Standing Data","F106",{"$f":"'Standing Data'!F110","v":0}]
[{"$f":"'Standing Data'!$D$12","v":{"$error":"#N/A"}},{"$f":"'Standing Data'!$F$9","v":0},{"$f":"'Standing Data'!#REF!","v":{"$error":"#REF!"}},"Standing Data","F107",{"$f":"'Standing Data'!F111","v":0}]
[{"$f":"'Standing Data'!$D$12","v":{"$error":"#N/A"}},{"$f":"'Standing Data'!$F$9","v":0},{"$f":"'Standing Data'!#REF!","v":{"$error":"#REF!"}},"Standing Data","F108",{"$f":"'Standing Data'!F112","v":0}]
[{"$f":"'Standing Data'!$D$12","v":{"$error":"#N/A"}},{"$f":"'Standing Data'!$F$9","v":0},{"$f":"'Standing Data'!#REF!","v":{"$error":"#REF!"}},"Standing Data","F109",{"$f":"'Standing Data'!F113","v":0}]
[{"$f":"'Standing Data'!$D$12","v":{"$error":"#N/A"}},{"$f":"'Standing Data'!$F$9","v":0},{"$f":"'Standing Data'!#REF!","v":{"$error":"#REF!"}},"Standing Data","F110",{"$f":"'Standing Data'!F114","v":0}]
[{"$f":"'Standing Data'!$D$12","v":{"$error":"#N/A"}},{"$f":"'Standing Data'!$F$9","v":0},{"$f":"'Standing Data'!#REF!","v":{"$error":"#REF!"}},"Standing Data","F111",{"$f":"'Standing Data'!F115","v":0}]
[{"$f":"'Standing Data'!$D$12","v":{"$error":"#N/A"}},{"$f":"'Standing Data'!$F$9","v":0},{"$f":"'Standing Data'!#REF!","v":{"$error":"#REF!"}},"Standing Data","F112",{"$f":"'Standing Data'!F116","v":0}]
[{"$f":"'Standing Data'!$D$12","v":{"$error":"#N/A"}},{"$f":"'Standing Data'!$F$9","v":0},{"$f":"'Standing Data'!#REF!","v":{"$error":"#REF!"}},"Standing Data","F113",{"$f":"'Standing Data'!F117","v":0}]
[{"$f":"'Standing Data'!$D$12","v":{"$error":"#N/A"}},{"$f":"'Standing Data'!$F$9","v":0},{"$f":"'Standing Data'!#REF!","v":{"$error":"#REF!"}},"Standing Data","F114",{"$f":"'Standing Data'!F118","v":0}]
[{"$f":"'Standing Data'!$D$12","v":{"$error":"#N/A"}},{"$f":"'Standing Data'!$F$9","v":0},{"$f":"'Standing Data'!#REF!","v":{"$error":"#REF!"}},"Standing Data","F115",{"$f":"'Standing Data'!F119","v":0}]
[{"$f":"'Standing Data'!$D$12","v":{"$error":"#N/A"}},{"$f":"'Standing Data'!$F$9","v":0},{"$f":"'Standing Data'!#REF!","v":{"$error":"#REF!"}},"Standing Data","F116",{"$f":"'Standing Data'!F120","v":0}]
[{"$f":"'Standing Data'!$D$12","v":{"$error":"#N/A"}},{"$f":"'Standing Data'!$F$9","v":0},{"$f":"'Standing Data'!#REF!","v":{"$error":"#REF!"}},"Standing Data","F117",{"$f":"'Standing Data'!F121","v":0}]
[{"$f":"'Standing Data'!$D$12","v":{"$error":"#N/A"}},{"$f":"'Standing Data'!$F$9","v":0},{"$f":"'Standing Data'!#REF!","v":{"$error":"#REF!"}},"Standing Data","F118",{"$f":"'Standing Data'!F122","v":0}]
[{"$f":"'Standing Data'!$D$12","v":{"$error":"#N/A"}},{"$f":"'Standing Data'!$F$9","v":0},{"$f":"'Standing Data'!#REF!","v":{"$error":"#REF!"}},"Standing Data","F119",{"$f":"'Standing Data'!F123","v":0}]
[{"$f":"'Standing Data'!$D$12","v":{"$error":"#N/A"}},{"$f":"'Standing Data'!$F$9","v":0},{"$f":"'Standing Data'!#REF!","v":{"$error":"#REF!"}},"Standing Data","F120",{"$f":"'Standing Data'!F124","v":0}]
[{"$f":"'Standing Data'!$D$12","v":{"$error":"#N/A"}},{"$f":"'Standing Data'!$F$9","v":0},{"$f":"'Standing Data'!#REF!","v":{"$error":"#REF!"}},"Standing Data","F121",{"$f":"'Standing Data'!F125","v":0}]
[{"$f":"'Standing Data'!$D$12","v":{"$error":"#N/A"}},{"$f":"'Standing Data'!$F$9","v":0},{"$f":"'Standing Data'!#REF!","v":{"$error":"#REF!"}},"Standing Data","F122",{"$f":"'Standing Data'!F126","v":0}]
[{"$f":"'Standing Data'!$D$12","v":{"$error":"#N/A"}},{"$f":"'Standing Data'!$F$9","v":0},{"$f":"'Standing Data'!#REF!","v":{"$error":"#REF!"}},"Standing Data","F123",{"$f":"'Standing Data'!F127","v":0}]
[{"$f":"'Standing Data'!$D$12","v":{"$error":"#N/A"}},{"$f":"'Standing Data'!$F$9","v":0},{"$f":"'Standing Data'!#REF!","v":{"$error":"#REF!"}},"Standing Data","F124",{"$f":"'Standing Data'!F128","v":0}]
[{"$f":"'Standing Data'!$D$12","v":{"$error":"#N/A"}},{"$f":"'Standing Data'!$F$9","v":0},{"$f":"'Standing Data'!#REF!","v":{"$error":"#REF!"}},"Standing Data","F125",{"$f":"'Standing Data'!F129","v":0}]
[{"$f":"'Standing Data'!$D$12","v":{"$error":"#N/A"}},{"$f":"'Standing Data'!$F$9","v":0},{"$f":"'Standing Data'!#REF!","v":{"$error":"#REF!"}},"Standing Data","F126",{"$f":"'Standing Data'!F130","v":0}]
[{"$f":"'Standing Data'!$D$12","v":{"$error":"#N/A"}},{"$f":"'Standing Data'!$F$9","v":0},{"$f":"'Standing Data'!#REF!","v":{"$error":"#REF!"}},"Standing Data","F127",{"$f":"'Standing Data'!F131","v":0}]
[{"$f":"'Standing Data'!$D$12","v":{"$error":"#N/A"}},{"$f":"'Standing Data'!$F$9","v":0},{"$f":"'Standing Data'!#REF!","v":{"$error":"#REF!"}},"Standing Data","F128",{"$f":"'Standing Data'!F132","v":0}]
[{"$f":"'Standing Data'!$D$12","v":{"$error":"#N/A"}},{"$f":"'Standing Data'!$F$9","v":0},{"$f":"'Standing Data'!#REF!","v":{"$error":"#REF!"}},"Standing Data","F129",{"$f":"'Standing Data'!F133","v":0}]
[{"$f":"'Standing Data'!$D$12","v":{"$error":"#N/A"}},{"$f":"'Standing Data'!$F$9","v":0},{"$f":"'Standing Data'!#REF!","v":{"$error":"#REF!"}},"Standing Data","F130",{"$f":"'Standing Data'!F134","v":0}]
[{"$f":"'Standing Data'!$D$12","v":{"$error":"#N/A"}},{"$f":"'Standing Data'!$F$9","v":0},{"$f":"'Standing Data'!#REF!","v":{"$error":"#REF!"}},"Standing Data","F131",{"$f":"'Standing Data'!F135","v":0}]
[{"$f":"'Standing Data'!$D$12","v":{"$error":"#N/A"}},{"$f":"'Standing Data'!$F$9","v":0},{"$f":"'Standing Data'!#REF!","v":{"$error":"#REF!"}},"Standing Data","F132",{"$f":"'Standing Data'!F136","v":0}]
[{"$f":"'Standing Data'!$D$12","v":{"$error":"#N/A"}},{"$f":"'Standing Data'!$F$9","v":0},{"$f":"'Standing Data'!#REF!","v":{"$error":"#REF!"}},"Standing Data","F133",{"$f":"'Standing Data'!F137","v":0}]
[{"$f":"'Standing Data'!$D$12","v":{"$error":"#N/A"}},{"$f":"'Standing Data'!$F$9","v":0},{"$f":"'Standing Data'!#REF!","v":{"$error":"#REF!"}},"Standing Data","F134",{"$f":"'Standing Data'!F138","v":0}]
[{"$f":"'Standing Data'!$D$12","v":{"$error":"#N/A"}},{"$f":"'Standing Data'!$F$9","v":0},{"$f":"'Standing Data'!#REF!","v":{"$error":"#REF!"}},"Standing Data","F135",{"$f":"'Standing Data'!F139","v":0}]
[{"$f":"'Standing Data'!$D$12","v":{"$error":"#N/A"}},{"$f":"'Standing Data'!$F$9","v":0},{"$f":"'Standing Data'!#REF!","v":{"$error":"#REF!"}},"Standing Data","F136",{"$f":"'Standing Data'!F140","v":0}]
[{"$f":"'Standing Data'!$D$12","v":{"$error":"#N/A"}},{"$f":"'Standing Data'!$F$9","v":0},{"$f":"'Standing Data'!#REF!","v":{"$error":"#REF!"}},"Standing Data","F137",{"$f":"'Standing Data'!F141","v":0}]
[{"$f":"'Standing Data'!$D$12","v":{"$error":"#N/A"}},{"$f":"'Standing Data'!$F$9","v":0},{"$f":"'Standing Data'!#REF!","v":{"$error":"#REF!"}},"Standing Data","F138",{"$f":"'Standing Data'!F142","v":0}]
[{"$f":"'Standing Data'!$D$12","v":{"$error":"#N/A"}},{"$f":"'Standing Data'!$F$9","v":0},{"$f":"'Standing Data'!#REF!","v":{"$error":"#REF!"}},"Standing Data","F139",{"$f":"'Standing Data'!F143","v":0}]
[{"$f":"'Standing Data'!$D$12","v":{"$error":"#N/A"}},{"$f":"'Standing Data'!$F$9","v":0},{"$f":"'Standing Data'!#REF!","v":{"$error":"#REF!"}},"Standing Data","F140",{"$f":"'Standing Data'!F144","v":0}]
[{"$f":"'Standing Data'!$D$12","v":{"$error":"#N/A"}},{"$f":"'Standing Data'!$F$9","v":0},{"$f":"'Standing Data'!#REF!","v":{"$error":"#REF!"}},"Standing Data","F141",{"$f":"'Standing Data'!F145","v":0}]
[{"$f":"'Standing Data'!$D$12","v":{"$error":"#N/A"}},{"$f":"'Standing Data'!$F$9","v":0},{"$f":"'Standing Data'!#REF!","v":{"$error":"#REF!"}},"Standing Data","F142",{"$f":"'Standing Data'!F146","v":0}]
[{"$f":"'Standing Data'!$D$12","v":{"$error":"#N/A"}},{"$f":"'Standing Data'!$F$9","v":0},{"$f":"'Standing Data'!#REF!","v":{"$error":"#REF!"}},"Standing Data","F143",{"$f":"'Standing Data'!F147","v":0}]
[{"$f":"'Standing Data'!$D$12","v":{"$error":"#N/A"}},{"$f":"'Standing Data'!$F$9","v":0},{"$f":"'Standing Data'!#REF!","v":{"$error":"#REF!"}},"Standing Data","G44",{"$f":"'Standing Data'!G48","v":"00:00:00"}]
[{"$f":"'Standing Data'!$D$12","v":{"$error":"#N/A"}},{"$f":"'Standing Data'!$F$9","v":0},{"$f":"'Standing Data'!#REF!","v":{"$error":"#REF!"}},"Standing Data","G45",{"$f":"'Standing Data'!G49","v":"00:00:00"}]
[{"$f":"'Standing Data'!$D$12","v":{"$error":"#N/A"}},{"$f":"'Standing Data'!$F$9","v":0},{"$f":"'Standing Data'!#REF!","v":{"$error":"#REF!"}},"Standing Data","G46",{"$f":"'Standing Data'!G50","v":"00:00:00"}]
[{"$f":"'Standing Data'!$D$12","v":{"$error":"#N/A"}},{"$f":"'Standing Data'!$F$9","v":0},{"$f":"'Standing Data'!#REF!","v":{"$error":"#REF!"}},"Standing Data","G47",{"$f":"'Standing Data'!G51","v":"00:00:00"}]
[{"$f":"'Standing Data'!$D$12","v":{"$error":"#N/A"}},{"$f":"'Standing Data'!$F$9","v":0},{"$f":"'Standing Data'!#REF!","v":{"$error":"#REF!"}},"Standing Data","G48",{"$f":"'Standing Data'!G52","v":"00:00:00"}]
[{"$f":"'Standing Data'!$D$12","v":{"$error":"#N/A"}},{"$f":"'Standing Data'!$F$9","v":0},{"$f":"'Standing Data'!#REF!","v":{"$error":"#REF!"}},"Standing Data","G49",{"$f":"'Standing Data'!G53","v":"00:00:00"}]
[{"$f":"'Standing Data'!$D$12","v":{"$error":"#N/A"}},{"$f":"'Standing Data'!$F$9","v":0},{"$f":"'Standing Data'!#REF!","v":{"$error":"#REF!"}},"Standing Data","G50",{"$f":"'Standing Data'!G54","v":"00:00:00"}]
[{"$f":"'Standing Data'!$D$12","v":{"$error":"#N/A"}},{"$f":"'Standing Data'!$F$9","v":0},{"$f":"'Standing Data'!#REF!","v":{"$error":"#REF!"}},"Standing Data","G51",{"$f":"'Standing Data'!G55","v":"00:00:00"}]
[{"$f":"'Standing Data'!$D$12","v":{"$error":"#N/A"}},{"$f":"'Standing Data'!$F$9","v":0},{"$f":"'Standing Data'!#REF!","v":{"$error":"#REF!"}},"Standing Data","G52",{"$f":"'Standing Data'!G56","v":"00:00:00"}]
[{"$f":"'Standing Data'!$D$12","v":{"$error":"#N/A"}},{"$f":"'Standing Data'!$F$9","v":0},{"$f":"'Standing Data'!#REF!","v":{"$error":"#REF!"}},"Standing Data","G53",{"$f":"'Standing Data'!G57","v":"00:00:00"}]
[{"$f":"'Standing Data'!$D$12","v":{"$error":"#N/A"}},{"$f":"'Standing Data'!$F$9","v":0},{"$f":"'Standing Data'!#REF!","v":{"$error":"#REF!"}},"Standing Data","G54",{"$f":"'Standing Data'!G58","v":"00:00:00"}]
[{"$f":"'Standing Data'!$D$12","v":{"$error":"#N/A"}},{"$f":"'Standing Data'!$F$9","v":0},{"$f":"'Standing Data'!#REF!","v":{"$error":"#REF!"}},"Standing Data","G55",{"$f":"'Standing Data'!G59","v":"00:00:00"}]
[{"$f":"'Standing Data'!$D$12","v":{"$error":"#N/A"}},{"$f":"'Standing Data'!$F$9","v":0},{"$f":"'Standing Data'!#REF!","v":{"$error":"#REF!"}},"Standing Data","G56",{"$f":"'Standing Data'!G60","v":"00:00:00"}]
[{"$f":"'Standing Data'!$D$12","v":{"$error":"#N/A"}},{"$f":"'Standing Data'!$F$9","v":0},{"$f":"'Standing Data'!#REF!","v":{"$error":"#REF!"}},"Standing Data","G57",{"$f":"'Standing Data'!G61","v":"00:00:00"}]
[{"$f":"'Standing Data'!$D$12","v":{"$error":"#N/A"}},{"$f":"'Standing Data'!$F$9","v":0},{"$f":"'Standing Data'!#REF!","v":{"$error":"#REF!"}},"Standing Data","G58",{"$f":"'Standing Data'!G62","v":"00:00:00"}]
[{"$f":"'Standing Data'!$D$12","v":{"$error":"#N/A"}},{"$f":"'Standing Data'!$F$9","v":0},{"$f":"'Standing Data'!#REF!","v":{"$error":"#REF!"}},"Standing Data","G59",{"$f":"'Standing Data'!G63","v":"00:00:00"}]
[{"$f":"'Standing Data'!$D$12","v":{"$error":"#N/A"}},{"$f":"'Standing Data'!$F$9","v":0},{"$f":"'Standing Data'!#REF!","v":{"$error":"#REF!"}},"Standing Data","G60",{"$f":"'Standing Data'!G64","v":"00:00:00"}]
[{"$f":"'Standing Data'!$D$12","v":{"$error":"#N/A"}},{"$f":"'Standing Data'!$F$9","v":0},{"$f":"'Standing Data'!#REF!","v":{"$error":"#REF!"}},"Standing Data","G61",{"$f":"'Standing Data'!G65","v":"00:00:00"}]
[{"$f":"'Standing Data'!$D$12","v":{"$error":"#N/A"}},{"$f":"'Standing Data'!$F$9","v":0},{"$f":"'Standing Data'!#REF!","v":{"$error":"#REF!"}},"Standing Data","G62",{"$f":"'Standing Data'!G66","v":"00:00:00"}]
[{"$f":"'Standing Data'!$D$12","v":{"$error":"#N/A"}},{"$f":"'Standing Data'!$F$9","v":0},{"$f":"'Standing Data'!#REF!","v":{"$error":"#REF!"}},"Standing Data","G63",{"$f":"'Standing Data'!G67","v":"00:00:00"}]
[{"$f":"'Standing Data'!$D$12","v":{"$error":"#N/A"}},{"$f":"'Standing Data'!$F$9","v":0},{"$f":"'Standing Data'!#REF!","v":{"$error":"#REF!"}},"Standing Data","G64",{"$f":"'Standing Data'!G68","v":"00:00:00"}]
[{"$f":"'Standing Data'!$D$12","v":{"$error":"#N/A"}},{"$f":"'Standing Data'!$F$9","v":0},{"$f":"'Standing Data'!#REF!","v":{"$error":"#REF!"}},"Standing Data","G65",{"$f":"'Standing Data'!G69","v":"00:00:00"}]
[{"$f":"'Standing Data'!$D$12","v":{"$error":"#N/A"}},{"$f":"'Standing Data'!$F$9","v":0},{"$f":"'Standing Data'!#REF!","v":{"$error":"#REF!"}},"Standing Data","G66",{"$f":"'Standing Data'!G70","v":"00:00:00"}]
[{"$f":"'Standing Data'!$D$12","v":{"$error":"#N/A"}},{"$f":"'Standing Data'!$F$9","v":0},{"$f":"'Standing Data'!#REF!","v":{"$error":"#REF!"}},"Standing Data","G67",{"$f":"'Standing Data'!G71","v":"00:00:00"}]
[{"$f":"'Standing Data'!$D$12","v":{"$error":"#N/A"}},{"$f":"'Standing Data'!$F$9","v":0},{"$f":"'Standing Data'!#REF!","v":{"$error":"#REF!"}},"Standing Data","G68",{"$f":"'Standing Data'!G72","v":"00:00:00"}]
[{"$f":"'Standing Data'!$D$12","v":{"$error":"#N/A"}},{"$f":"'Standing Data'!$F$9","v":0},{"$f":"'Standing Data'!#REF!","v":{"$error":"#REF!"}},"Standing Data","G69",{"$f":"'Standing Data'!G73","v":"00:00:00"}]
[{"$f":"'Standing Data'!$D$12","v":{"$error":"#N/A"}},{"$f":"'Standing Data'!$F$9","v":0},{"$f":"'Standing Data'!#REF!","v":{"$error":"#REF!"}},"Standing Data","G70",{"$f":"'Standing Data'!G74","v":"00:00:00"}]
[{"$f":"'Standing Data'!$D$12","v":{"$error":"#N/A"}},{"$f":"'Standing Data'!$F$9","v":0},{"$f":"'Standing Data'!#REF!","v":{"$error":"#REF!"}},"Standing Data","G71",{"$f":"'Standing Data'!G75","v":"00:00:00"}]
[{"$f":"'Standing Data'!$D$12","v":{"$error":"#N/A"}},{"$f":"'Standing Data'!$F$9","v":0},{"$f":"'Standing Data'!#REF!","v":{"$error":"#REF!"}},"Standing Data","G72",{"$f":"'Standing Data'!G76","v":"00:00:00"}]
[{"$f":"'Standing Data'!$D$12","v":{"$error":"#N/A"}},{"$f":"'Standing Data'!$F$9","v":0},{"$f":"'Standing Data'!#REF!","v":{"$error":"#REF!"}},"Standing Data","G73",{"$f":"'Standing Data'!G77","v":"00:00:00"}]
[{"$f":"'Standing Data'!$D$12","v":{"$error":"#N/A"}},{"$f":"'Standing Data'!$F$9","v":0},{"$f":"'Standing Data'!#REF!","v":{"$error":"#REF!"}},"Standing Data","G74",{"$f":"'Standing Data'!G78","v":"00:00:00"}]
[{"$f":"'Standing Data'!$D$12","v":{"$error":"#N/A"}},{"$f":"'Standing Data'!$F$9","v":0},{"$f":"'Standing Data'!#REF!","v":{"$error":"#REF!"}},"Standing Data","G75",{"$f":"'Standing Data'!G79","v":"00:00:00"}]
[{"$f":"'Standing Data'!$D$12","v":{"$error":"#N/A"}},{"$f":"'Standing Data'!$F$9","v":0},{"$f":"'Standing Data'!#REF!","v":{"$error":"#REF!"}},"Standing Data","G76",{"$f":"'Standing Data'!G80","v":"00:00:00"}]
[{"$f":"'Standing Data'!$D$12","v":{"$error":"#N/A"}},{"$f":"'Standing Data'!$F$9","v":0},{"$f":"'Standing Data'!#REF!","v":{"$error":"#REF!"}},"Standing Data","G77",{"$f":"'Standing Data'!G81","v":"00:00:00"}]
[{"$f":"'Standing Data'!$D$12","v":{"$error":"#N/A"}},{"$f":"'Standing Data'!$F$9","v":0},{"$f":"'Standing Data'!#REF!","v":{"$error":"#REF!"}},"Standing Data","G78",{"$f":"'Standing Data'!G82","v":"00:00:00"}]
[{"$f":"'Standing Data'!$D$12","v":{"$error":"#N/A"}},{"$f":"'Standing Data'!$F$9","v":0},{"$f":"'Standing Data'!#REF!","v":{"$error":"#REF!"}},"Standing Data","G79",{"$f":"'Standing Data'!G83","v":"00:00:00"}]
[{"$f":"'Standing Data'!$D$12","v":{"$error":"#N/A"}},{"$f":"'Standing Data'!$F$9","v":0},{"$f":"'Standing Data'!#REF!","v":{"$error":"#REF!"}},"Standing Data","G80",{"$f":"'Standing Data'!G84","v":"00:00:00"}]
[{"$f":"'Standing Data'!$D$12","v":{"$error":"#N/A"}},{"$f":"'Standing Data'!$F$9","v":0},{"$f":"'Standing Data'!#REF!","v":{"$error":"#REF!"}},"Standing Data","G81",{"$f":"'Standing Data'!G85","v":"00:00:00"}]
[{"$f":"'Standing Data'!$D$12","v":{"$error":"#N/A"}},{"$f":"'Standing Data'!$F$9","v":0},{"$f":"'Standing Data'!#REF!","v":{"$error":"#REF!"}},"Standing Data","G82",{"$f":"'Standing Data'!G86","v":"00:00:00"}]
[{"$f":"'Standing Data'!$D$12","v":{"$error":"#N/A"}},{"$f":"'Standing Data'!$F$9","v":0},{"$f":"'Standing Data'!#REF!","v":{"$error":"#REF!"}},"Standing Data","G83",{"$f":"'Standing Data'!G87","v":"00:00:00"}]
[{"$f":"'Standing Data'!$D$12","v":{"$error":"#N/A"}},{"$f":"'Standing Data'!$F$9","v":0},{"$f":"'Standing Data'!#REF!","v":{"$error":"#REF!"}},"Standing Data","G84",{"$f":"'Standing Data'!G88","v":"00:00:00"}]
[{"$f":"'Standing Data'!$D$12","v":{"$error":"#N/A"}},{"$f":"'Standing Data'!$F$9","v":0},{"$f":"'Standing Data'!#REF!","v":{"$error":"#REF!"}},"Standing Data","G85",{"$f":"'Standing Data'!G89","v":"00:00:00"}]
[{"$f":"'Standing Data'!$D$12","v":{"$error":"#N/A"}},{"$f":"'Standing Data'!$F$9","v":0},{"$f":"'Standing Data'!#REF!","v":{"$error":"#REF!"}},"Standing Data","G86",{"$f":"'Standing Data'!G90","v":"00:00:00"}]
[{"$f":"'Standing Data'!$D$12","v":{"$error":"#N/A"}},{"$f":"'Standing Data'!$F$9","v":0},{"$f":"'Standing Data'!#REF!","v":{"$error":"#REF!"}},"Standing Data","G87",{"$f":"'Standing Data'!G91","v":"00:00:00"}]
[{"$f":"'Standing Data'!$D$12","v":{"$error":"#N/A"}},{"$f":"'Standing Data'!$F$9","v":0},{"$f":"'Standing Data'!#REF!","v":{"$error":"#REF!"}},"Standing Data","G88",{"$f":"'Standing Data'!G92","v":"00:00:00"}]
[{"$f":"'Standing Data'!$D$12","v":{"$error":"#N/A"}},{"$f":"'Standing Data'!$F$9","v":0},{"$f":"'Standing Data'!#REF!","v":{"$error":"#REF!"}},"Standing Data","G89",{"$f":"'Standing Data'!G93","v":"00:00:00"}]
[{"$f":"'Standing Data'!$D$12","v":{"$error":"#N/A"}},{"$f":"'Standing Data'!$F$9","v":0},{"$f":"'Standing Data'!#REF!","v":{"$error":"#REF!"}},"Standing Data","G90",{"$f":"'Standing Data'!G94","v":"00:00:00"}]
[{"$f":"'Standing Data'!$D$12","v":{"$error":"#N/A"}},{"$f":"'Standing Data'!$F$9","v":0},{"$f":"'Standing Data'!#REF!","v":{"$error":"#REF!"}},"Standing Data","G91",{"$f":"'Standing Data'!G95","v":"00:00:00"}]
[{"$f":"'Standing Data'!$D$12","v":{"$error":"#N/A"}},{"$f":"'Standing Data'!$F$9","v":0},{"$f":"'Standing Data'!#REF!","v":{"$error":"#REF!"}},"Standing Data","G92",{"$f":"'Standing Data'!G96","v":"00:00:00"}]
[{"$f":"'Standing Data'!$D$12","v":{"$error":"#N/A"}},{"$f":"'Standing Data'!$F$9","v":0},{"$f":"'Standing Data'!#REF!","v":{"$error":"#REF!"}},"Standing Data","G93",{"$f":"'Standing Data'!G97","v":"00:00:00"}]
[{"$f":"'Standing Data'!$D$12","v":{"$error":"#N/A"}},{"$f":"'Standing Data'!$F$9","v":0},{"$f":"'Standing Data'!#REF!","v":{"$error":"#REF!"}},"Standing Data","G94",{"$f":"'Standing Data'!G98","v":"00:00:00"}]
[{"$f":"'Standing Data'!$D$12","v":{"$error":"#N/A"}},{"$f":"'Standing Data'!$F$9","v":0},{"$f":"'Standing Data'!#REF!","v":{"$error":"#REF!"}},"Standing Data","G95",{"$f":"'Standing Data'!G99","v":"00:00:00"}]
[{"$f":"'Standing Data'!$D$12","v":{"$error":"#N/A"}},{"$f":"'Standing Data'!$F$9","v":0},{"$f":"'Standing Data'!#REF!","v":{"$error":"#REF!"}},"Standing Data","G96",{"$f":"'Standing Data'!G100","v":"00:00:00"}]
[{"$f":"'Standing Data'!$D$12","v":{"$error":"#N/A"}},{"$f":"'Standing Data'!$F$9","v":0},{"$f":"'Standing Data'!#REF!","v":{"$error":"#REF!"}},"Standing Data","G97",{"$f":"'Standing Data'!G101","v":"00:00:00"}]
[{"$f":"'Standing Data'!$D$12","v":{"$error":"#N/A"}},{"$f":"'Standing Data'!$F$9","v":0},{"$f":"'Standing Data'!#REF!","v":{"$error":"#REF!"}},"Standing Data","G98",{"$f":"'Standing Data'!G102","v":"00:00:00"}]
[{"$f":"'Standing Data'!$D$12","v":{"$error":"#N/A"}},{"$f":"'Standing Data'!$F$9","v":0},{"$f":"'Standing Data'!#REF!","v":{"$error":"#REF!"}},"Standing Data","G99",{"$f":"'Standing Data'!G103","v":"00:00:00"}]
[{"$f":"'Standing Data'!$D$12","v":{"$error":"#N/A"}},{"$f":"'Standing Data'!$F$9","v":0},{"$f":"'Standing Data'!#REF!","v":{"$error":"#REF!"}},"Standing Data","G100",{"$f":"'Standing Data'!G104","v":"00:00:00"}]
[{"$f":"'Standing Data'!$D$12","v":{"$error":"#N/A"}},{"$f":"'Standing Data'!$F$9","v":0},{"$f":"'Standing Data'!#REF!","v":{"$error":"#REF!"}},"Standing Data","G101",{"$f":"'Standing Data'!G105","v":"00:00:00"}]
[{"$f":"'Standing Data'!$D$12","v":{"$error":"#N/A"}},{"$f":"'Standing Data'!$F$9","v":0},{"$f":"'Standing Data'!#REF!","v":{"$error":"#REF!"}},"Standing Data","G102",{"$f":"'Standing Data'!G106","v":"00:00:00"}]
[{"$f":"'Standing Data'!$D$12","v":{"$error":"#N/A"}},{"$f":"'Standing Data'!$F$9","v":0},{"$f":"'Standing Data'!#REF!","v":{"$error":"#REF!"}},"Standing Data","G103",{"$f":"'Standing Data'!G107","v":"00:00:00"}]
[{"$f":"'Standing Data'!$D$12","v":{"$error":"#N/A"}},{"$f":"'Standing Data'!$F$9","v":0},{"$f":"'Standing Data'!#REF!","v":{"$error":"#REF!"}},"Standing Data","G104",{"$f":"'Standing Data'!G108","v":"00:00:00"}]
[{"$f":"'Standing Data'!$D$12","v":{"$error":"#N/A"}},{"$f":"'Standing Data'!$F$9","v":0},{"$f":"'Standing Data'!#REF!","v":{"$error":"#REF!"}},"Standing Data","G105",{"$f":"'Standing Data'!G109","v":"00:00:00"}]
[{"$f":"'Standing Data'!$D$12","v":{"$error":"#N/A"}},{"$f":"'Standing Data'!$F$9","v":0},{"$f":"'Standing Data'!#REF!","v":{"$error":"#REF!"}},"Standing Data","G106",{"$f":"'Standing Data'!G110","v":"00:00:00"}]
[{"$f":"'Standing Data'!$D$12","v":{"$error":"#N/A"}},{"$f":"'Standing Data'!$F$9","v":0},{"$f":"'Standing Data'!#REF!","v":{"$error":"#REF!"}},"Standing Data","G107",{"$f":"'Standing Data'!G111","v":"00:00:00"}]
[{"$f":"'Standing Data'!$D$12","v":{"$error":"#N/A"}},{"$f":"'Standing Data'!$F$9","v":0},{"$f":"'Standing Data'!#REF!","v":{"$error":"#REF!"}},"Standing Data","G108",{"$f":"'Standing Data'!G112","v":"00:00:00"}]
[{"$f":"'Standing Data'!$D$12","v":{"$error":"#N/A"}},{"$f":"'Standing Data'!$F$9","v":0},{"$f":"'Standing Data'!#REF!","v":{"$error":"#REF!"}},"Standing Data","G109",{"$f":"'Standing Data'!G113","v":"00:00:00"}]
[{"$f":"'Standing Data'!$D$12","v":{"$error":"#N/A"}},{"$f":"'Standing Data'!$F$9","v":0},{"$f":"'Standing Data'!#REF!","v":{"$error":"#REF!"}},"Standing Data","G110",{"$f":"'Standing Data'!G114","v":"00:00:00"}]
[{"$f":"'Standing Data'!$D$12","v":{"$error":"#N/A"}},{"$f":"'Standing Data'!$F$9","v":0},{"$f":"'Standing Data'!#REF!","v":{"$error":"#REF!"}},"Standing Data","G111",{"$f":"'Standing Data'!G115","v":"00:00:00"}]
[{"$f":"'Standing Data'!$D$12","v":{"$error":"#N/A"}},{"$f":"'Standing Data'!$F$9","v":0},{"$f":"'Standing Data'!#REF!","v":{"$error":"#REF!"}},"Standing Data","G112",{"$f":"'Standing Data'!G116","v":"00:00:00"}]
[{"$f":"'Standing Data'!$D$12","v":{"$error":"#N/A"}},{"$f":"'Standing Data'!$F$9","v":0},{"$f":"'Standing Data'!#REF!","v":{"$error":"#REF!"}},"Standing Data","G113",{"$f":"'Standing Data'!G117","v":"00:00:00"}]
[{"$f":"'Standing Data'!$D$12","v":{"$error":"#N/A"}},{"$f":"'Standing Data'!$F$9","v":0},{"$f":"'Standing Data'!#REF!","v":{"$error":"#REF!"}},"Standing Data","G114",{"$f":"'Standing Data'!G118","v":"00:00:00"}]
[{"$f":"'Standing Data'!$D$12","v":{"$error":"#N/A"}},{"$f":"'Standing Data'!$F$9","v":0},{"$f":"'Standing Data'!#REF!","v":{"$error":"#REF!"}},"Standing Data","G115",{"$f":"'Standing Data'!G119","v":"00:00:00"}]
[{"$f":"'Standing Data'!$D$12","v":{"$error":"#N/A"}},{"$f":"'Standing Data'!$F$9","v":0},{"$f":"'Standing Data'!#REF!","v":{"$error":"#REF!"}},"Standing Data","G116",{"$f":"'Standing Data'!G120","v":"00:00:00"}]
[{"$f":"'Standing Data'!$D$12","v":{"$error":"#N/A"}},{"$f":"'Standing Data'!$F$9","v":0},{"$f":"'Standing Data'!#REF!","v":{"$error":"#REF!"}},"Standing Data","G117",{"$f":"'Standing Data'!G121","v":"00:00:00"}]
[{"$f":"'Standing Data'!$D$12","v":{"$error":"#N/A"}},{"$f":"'Standing Data'!$F$9","v":0},{"$f":"'Standing Data'!#REF!","v":{"$error":"#REF!"}},"Standing Data","G118",{"$f":"'Standing Data'!G122","v":"00:00:00"}]
[{"$f":"'Standing Data'!$D$12","v":{"$error":"#N/A"}},{"$f":"'Standing Data'!$F$9","v":0},{"$f":"'Standing Data'!#REF!","v":{"$error":"#REF!"}},"Standing Data","G119",{"$f":"'Standing Data'!G123","v":"00:00:00"}]
[{"$f":"'Standing Data'!$D$12","v":{"$error":"#N/A"}},{"$f":"'Standing Data'!$F$9","v":0},{"$f":"'Standing Data'!#REF!","v":{"$error":"#REF!"}},"Standing Data","G120",{"$f":"'Standing Data'!G124","v":"00:00:00"}]
[{"$f":"'Standing Data'!$D$12","v":{"$error":"#N/A"}},{"$f":"'Standing Data'!$F$9","v":0},{"$f":"'Standing Data'!#REF!","v":{"$error":"#REF!"}},"Standing Data","G121",{"$f":"'Standing Data'!G125","v":"00:00:00"}]
[{"$f":"'Standing Data'!$D$12","v":{"$error":"#N/A"}},{"$f":"'Standing Data'!$F$9","v":0},{"$f":"'Standing Data'!#REF!","v":{"$error":"#REF!"}},"Standing Data","G122",{"$f":"'Standing Data'!G126","v":"00:00:00"}]
[{"$f":"'Standing Data'!$D$12","v":{"$error":"#N/A"}},{"$f":"'Standing Data'!$F$9","v":0},{"$f":"'Standing Data'!#REF!","v":{"$error":"#REF!"}},"Standing Data","G123",{"$f":"'Standing Data'!G127","v":"00:00:00"}]
[{"$f":"'Standing Data'!$D$12","v":{"$error":"#N/A"}},{"$f":"'Standing Data'!$F$9","v":0},{"$f":"'Standing Data'!#REF!","v":{"$error":"#REF!"}},"Standing Data","G124",{"$f":"'Standing Data'!G128","v":"00:00:00"}]
[{"$f":"'Standing Data'!$D$12","v":{"$error":"#N/A"}},{"$f":"'Standing Data'!$F$9","v":0},{"$f":"'Standing Data'!#REF!","v":{"$error":"#REF!"}},"Standing Data","G125",{"$f":"'Standing Data'!G129","v":"00:00:00"}]
[{"$f":"'Standing Data'!$D$12","v":{"$error":"#N/A"}},{"$f":"'Standing Data'!$F$9","v":0},{"$f":"'Standing Data'!#REF!","v":{"$error":"#REF!"}},"Standing Data","G126",{"$f":"'Standing Data'!G130","v":"00:00:00"}]
[{"$f":"'Standing Data'!$D$12","v":{"$error":"#N/A"}},{"$f":"'Standing Data'!$F$9","v":0},{"$f":"'Standing Data'!#REF!","v":{"$error":"#REF!"}},"Standing Data","G127",{"$f":"'Standing Data'!G131","v":"00:00:00"}]
[{"$f":"'Standing Data'!$D$12","v":{"$error":"#N/A"}},{"$f":"'Standing Data'!$F$9","v":0},{"$f":"'Standing Data'!#REF!","v":{"$error":"#REF!"}},"Standing Data","G128",{"$f":"'Standing Data'!G132","v":"00:00:00"}]
[{"$f":"'Standing Data'!$D$12","v":{"$error":"#N/A"}},{"$f":"'Standing Data'!$F$9","v":0},{"$f":"'Standing Data'!#REF!","v":{"$error":"#REF!"}},"Standing Data","G129",{"$f":"'Standing Data'!G133","v":"00:00:00"}]
[{"$f":"'Standing Data'!$D$12","v":{"$error":"#N/A"}},{"$f":"'Standing Data'!$F$9","v":0},{"$f":"'Standing Data'!#REF!","v":{"$error":"#REF!"}},"Standing Data","G130",{"$f":"'Standing Data'!G134","v":"00:00:00"}]
[{"$f":"'Standing Data'!$D$12","v":{"$error":"#N/A"}},{"$f":"'Standing Data'!$F$9","v":0},{"$f":"'Standing Data'!#REF!","v":{"$error":"#REF!"}},"Standing Data","G131",{"$f":"'Standing Data'!G135","v":"00:00:00"}]
[{"$f":"'Standing Data'!$D$12","v":{"$error":"#N/A"}},{"$f":"'Standing Data'!$F$9","v":0},{"$f":"'Standing Data'!#REF!","v":{"$error":"#REF!"}},"Standing Data","G132",{"$f":"'Standing Data'!G136","v":"00:00:00"}]
[{"$f":"'Standing Data'!$D$12","v":{"$error":"#N/A"}},{"$f":"'Standing Data'!$F$9","v":0},{"$f":"'Standing Data'!#REF!","v":{"$error":"#REF!"}},"Standing Data","G133",{"$f":"'Standing Data'!G137","v":"00:00:00"}]
[{"$f":"'Standing Data'!$D$12","v":{"$error":"#N/A"}},{"$f":"'Standing Data'!$F$9","v":0},{"$f":"'Standing Data'!#REF!","v":{"$error":"#REF!"}},"Standing Data","G134",{"$f":"'Standing Data'!G138","v":"00:00:00"}]
[{"$f":"'Standing Data'!$D$12","v":{"$error":"#N/A"}},{"$f":"'Standing Data'!$F$9","v":0},{"$f":"'Standing Data'!#REF!","v":{"$error":"#REF!"}},"Standing Data","G135",{"$f":"'Standing Data'!G139","v":"00:00:00"}]
[{"$f":"'Standing Data'!$D$12","v":{"$error":"#N/A"}},{"$f":"'Standing Data'!$F$9","v":0},{"$f":"'Standing Data'!#REF!","v":{"$error":"#REF!"}},"Standing Data","G136",{"$f":"'Standing Data'!G140","v":"00:00:00"}]
[{"$f":"'Standing Data'!$D$12","v":{"$error":"#N/A"}},{"$f":"'Standing Data'!$F$9","v":0},{"$f":"'Standing Data'!#REF!","v":{"$error":"#REF!"}},"Standing Data","G137",{"$f":"'Standing Data'!G141","v":"00:00:00"}]
[{"$f":"'Standing Data'!$D$12","v":{"$error":"#N/A"}},{"$f":"'Standing Data'!$F$9","v":0},{"$f":"'Standing Data'!#REF!","v":{"$error":"#REF!"}},"Standing Data","G138",{"$f":"'Standing Data'!G142","v":"00:00:00"}]
[{"$f":"'Standing Data'!$D$12","v":{"$error":"#N/A"}},{"$f":"'Standing Data'!$F$9","v":0},{"$f":"'Standing Data'!#REF!","v":{"$error":"#REF!"}},"Standing Data","G139",{"$f":"'Standing Data'!G143","v":"00:00:00"}]
[{"$f":"'Standing Data'!$D$12","v":{"$error":"#N/A"}},{"$f":"'Standing Data'!$F$9","v":0},{"$f":"'Standing Data'!#REF!","v":{"$error":"#REF!"}},"Standing Data","G140",{"$f":"'Standing Data'!G144","v":"00:00:00"}]
[{"$f":"'Standing Data'!$D$12","v":{"$error":"#N/A"}},{"$f":"'Standing Data'!$F$9","v":0},{"$f":"'Standing Data'!#REF!","v":{"$error":"#REF!"}},"Standing Data","G141",{"$f":"'Standing Data'!G145","v":"00:00:00"}]
[{"$f":"'Standing Data'!$D$12","v":{"$error":"#N/A"}},{"$f":"'Standing Data'!$F$9","v":0},{"$f":"'Standing Data'!#REF!","v":{"$error":"#REF!"}},"Standing Data","G142",{"$f":"'Standing Data'!G146","v":"00:00:00"}]
[{"$f":"'Standing Data'!$D$12","v":{"$error":"#N/A"}},{"$f":"'Standing Data'!$F$9","v":0},{"$f":"'Standing Data'!#REF!","v":{"$error":"#REF!"}},"Standing Data","G143",{"$f":"'Standing Data'!G147","v":"00:00:00"}]
[{"$f":"'Standing Data'!$D$12","v":{"$error":"#N/A"}},{"$f":"'Standing Data'!$F$9","v":0},{"$f":"'Standing Data'!#REF!","v":{"$error":"#REF!"}},"Standing Data","I44",{"$f":"'Standing Data'!I48","v":0}]
[{"$f":"'Standing Data'!$D$12","v":{"$error":"#N/A"}},{"$f":"'Standing Data'!$F$9","v":0},{"$f":"'Standing Data'!#REF!","v":{"$error":"#REF!"}},"Standing Data","I45",{"$f":"'Standing Data'!I49","v":0}]
[{"$f":"'Standing Data'!$D$12","v":{"$error":"#N/A"}},{"$f":"'Standing Data'!$F$9","v":0},{"$f":"'Standing Data'!#REF!","v":{"$error":"#REF!"}},"Standing Data","I46",{"$f":"'Standing Data'!I50","v":0}]
[{"$f":"'Standing Data'!$D$12","v":{"$error":"#N/A"}},{"$f":"'Standing Data'!$F$9","v":0},{"$f":"'Standing Data'!#REF!","v":{"$error":"#REF!"}},"Standing Data","I47",{"$f":"'Standing Data'!I51","v":0}]
[{"$f":"'Standing Data'!$D$12","v":{"$error":"#N/A"}},{"$f":"'Standing Data'!$F$9","v":0},{"$f":"'Standing Data'!#REF!","v":{"$error":"#REF!"}},"Standing Data","I48",{"$f":"'Standing Data'!I52","v":0}]
[{"$f":"'Standing Data'!$D$12","v":{"$error":"#N/A"}},{"$f":"'Standing Data'!$F$9","v":0},{"$f":"'Standing Data'!#REF!","v":{"$error":"#REF!"}},"Standing Data","I49",{"$f":"'Standing Data'!I53","v":0}]
[{"$f":"'Standing Data'!$D$12","v":{"$error":"#N/A"}},{"$f":"'Standing Data'!$F$9","v":0},{"$f":"'Standing Data'!#REF!","v":{"$error":"#REF!"}},"Standing Data","I50",{"$f":"'Standing Data'!I54","v":0}]
[{"$f":"'Standing Data'!$D$12","v":{"$error":"#N/A"}},{"$f":"'Standing Data'!$F$9","v":0},{"$f":"'Standing Data'!#REF!","v":{"$error":"#REF!"}},"Standing Data","I51",{"$f":"'Standing Data'!I55","v":0}]
[{"$f":"'Standing Data'!$D$12","v":{"$error":"#N/A"}},{"$f":"'Standing Data'!$F$9","v":0},{"$f":"'Standing Data'!#REF!","v":{"$error":"#REF!"}},"Standing Data","I52",{"$f":"'Standing Data'!I56","v":0}]
[{"$f":"'Standing Data'!$D$12","v":{"$error":"#N/A"}},{"$f":"'Standing Data'!$F$9","v":0},{"$f":"'Standing Data'!#REF!","v":{"$error":"#REF!"}},"Standing Data","I53",{"$f":"'Standing Data'!I57","v":0}]
[{"$f":"'Standing Data'!$D$12","v":{"$error":"#N/A"}},{"$f":"'Standing Data'!$F$9","v":0},{"$f":"'Standing Data'!#REF!","v":{"$error":"#REF!"}},"Standing Data","I54",{"$f":"'Standing Data'!I58","v":0}]
[{"$f":"'Standing Data'!$D$12","v":{"$error":"#N/A"}},{"$f":"'Standing Data'!$F$9","v":0},{"$f":"'Standing Data'!#REF!","v":{"$error":"#REF!"}},"Standing Data","I55",{"$f":"'Standing Data'!I59","v":0}]
[{"$f":"'Standing Data'!$D$12","v":{"$error":"#N/A"}},{"$f":"'Standing Data'!$F$9","v":0},{"$f":"'Standing Data'!#REF!","v":{"$error":"#REF!"}},"Standing Data","I56",{"$f":"'Standing Data'!I60","v":0}]
[{"$f":"'Standing Data'!$D$12","v":{"$error":"#N/A"}},{"$f":"'Standing Data'!$F$9","v":0},{"$f":"'Standing Data'!#REF!","v":{"$error":"#REF!"}},"Standing Data","I57",{"$f":"'Standing Data'!I61","v":0}]
[{"$f":"'Standing Data'!$D$12","v":{"$error":"#N/A"}},{"$f":"'Standing Data'!$F$9","v":0},{"$f":"'Standing Data'!#REF!","v":{"$error":"#REF!"}},"Standing Data","I58",{"$f":"'Standing Data'!I62","v":0}]
[{"$f":"'Standing Data'!$D$12","v":{"$error":"#N/A"}},{"$f":"'Standing Data'!$F$9","v":0},{"$f":"'Standing Data'!#REF!","v":{"$error":"#REF!"}},"Standing Data","I59",{"$f":"'Standing Data'!I63","v":0}]
[{"$f":"'Standing Data'!$D$12","v":{"$error":"#N/A"}},{"$f":"'Standing Data'!$F$9","v":0},{"$f":"'Standing Data'!#REF!","v":{"$error":"#REF!"}},"Standing Data","I60",{"$f":"'Standing Data'!I64","v":0}]
[{"$f":"'Standing Data'!$D$12","v":{"$error":"#N/A"}},{"$f":"'Standing Data'!$F$9","v":0},{"$f":"'Standing Data'!#REF!","v":{"$error":"#REF!"}},"Standing Data","I61",{"$f":"'Standing Data'!I65","v":0}]
[{"$f":"'Standing Data'!$D$12","v":{"$error":"#N/A"}},{"$f":"'Standing Data'!$F$9","v":0},{"$f":"'Standing Data'!#REF!","v":{"$error":"#REF!"}},"Standing Data","I62",{"$f":"'Standing Data'!I66","v":0}]
[{"$f":"'Standing Data'!$D$12","v":{"$error":"#N/A"}},{"$f":"'Standing Data'!$F$9","v":0},{"$f":"'Standing Data'!#REF!","v":{"$error":"#REF!"}},"Standing Data","I63",{"$f":"'Standing Data'!I67","v":0}]
[{"$f":"'Standing Data'!$D$12","v":{"$error":"#N/A"}},{"$f":"'Standing Data'!$F$9","v":0},{"$f":"'Standing Data'!#REF!","v":{"$error":"#REF!"}},"Standing Data","I64",{"$f":"'Standing Data'!I68","v":0}]
[{"$f":"'Standing Data'!$D$12","v":{"$error":"#N/A"}},{"$f":"'Standing Data'!$F$9","v":0},{"$f":"'Standing Data'!#REF!","v":{"$error":"#REF!"}},"Standing Data","I65",{"$f":"'Standing Data'!I69","v":0}]
[{"$f":"'Standing Data'!$D$12","v":{"$error":"#N/A"}},{"$f":"'Standing Data'!$F$9","v":0},{"$f":"'Standing Data'!#REF!","v":{"$error":"#REF!"}},"Standing Data","I66",{"$f":"'Standing Data'!I70","v":0}]
[{"$f":"'Standing Data'!$D$12","v":{"$error":"#N/A"}},{"$f":"'Standing Data'!$F$9","v":0},{"$f":"'Standing Data'!#REF!","v":{"$error":"#REF!"}},"Standing Data","I67",{"$f":"'Standing Data'!I71","v":0}]
[{"$f":"'Standing Data'!$D$12","v":{"$error":"#N/A"}},{"$f":"'Standing Data'!$F$9","v":0},{"$f":"'Standing Data'!#REF!","v":{"$error":"#REF!"}},"Standing Data","I68",{"$f":"'Standing Data'!I72","v":0}]
[{"$f":"'Standing Data'!$D$12","v":{"$error":"#N/A"}},{"$f":"'Standing Data'!$F$9","v":0},{"$f":"'Standing Data'!#REF!","v":{"$error":"#REF!"}},"Standing Data","I69",{"$f":"'Standing Data'!I73","v":0}]
[{"$f":"'Standing Data'!$D$12","v":{"$error":"#N/A"}},{"$f":"'Standing Data'!$F$9","v":0},{"$f":"'Standing Data'!#REF!","v":{"$error":"#REF!"}},"Standing Data","I70",{"$f":"'Standing Data'!I74","v":0}]
[{"$f":"'Standing Data'!$D$12","v":{"$error":"#N/A"}},{"$f":"'Standing Data'!$F$9","v":0},{"$f":"'Standing Data'!#REF!","v":{"$error":"#REF!"}},"Standing Data","I71",{"$f":"'Standing Data'!I75","v":0}]
[{"$f":"'Standing Data'!$D$12","v":{"$error":"#N/A"}},{"$f":"'Standing Data'!$F$9","v":0},{"$f":"'Standing Data'!#REF!","v":{"$error":"#REF!"}},"Standing Data","I72",{"$f":"'Standing Data'!I76","v":0}]
[{"$f":"'Standing Data'!$D$12","v":{"$error":"#N/A"}},{"$f":"'Standing Data'!$F$9","v":0},{"$f":"'Standing Data'!#REF!","v":{"$error":"#REF!"}},"Standing Data","I73",{"$f":"'Standing Data'!I77","v":0}]
[{"$f":"'Standing Data'!$D$12","v":{"$error":"#N/A"}},{"$f":"'Standing Data'!$F$9","v":0},{"$f":"'Standing Data'!#REF!","v":{"$error":"#REF!"}},"Standing Data","I74",{"$f":"'Standing Data'!I78","v":0}]
[{"$f":"'Standing Data'!$D$12","v":{"$error":"#N/A"}},{"$f":"'Standing Data'!$F$9","v":0},{"$f":"'Standing Data'!#REF!","v":{"$error":"#REF!"}},"Standing Data","I75",{"$f":"'Standing Data'!I79","v":0}]
[{"$f":"'Standing Data'!$D$12","v":{"$error":"#N/A"}},{"$f":"'Standing Data'!$F$9","v":0},{"$f":"'Standing Data'!#REF!","v":{"$error":"#REF!"}},"Standing Data","I76",{"$f":"'Standing Data'!I80","v":0}]
[{"$f":"'Standing Data'!$D$12","v":{"$error":"#N/A"}},{"$f":"'Standing Data'!$F$9","v":0},{"$f":"'Standing Data'!#REF!","v":{"$error":"#REF!"}},"Standing Data","I77",{"$f":"'Standing Data'!I81","v":0}]
[{"$f":"'Standing Data'!$D$12","v":{"$error":"#N/A"}},{"$f":"'Standing Data'!$F$9","v":0},{"$f":"'Standing Data'!#REF!","v":{"$error":"#REF!"}},"Standing Data","I78",{"$f":"'Standing Data'!I82","v":0}]
[{"$f":"'Standing Data'!$D$12","v":{"$error":"#N/A"}},{"$f":"'Standing Data'!$F$9","v":0},{"$f":"'Standing Data'!#REF!","v":{"$error":"#REF!"}},"Standing Data","I79",{"$f":"'Standing Data'!I83","v":0}]
[{"$f":"'Standing Data'!$D$12","v":{"$error":"#N/A"}},{"$f":"'Standing Data'!$F$9","v":0},{"$f":"'Standing Data'!#REF!","v":{"$error":"#REF!"}},"Standing Data","I80",{"$f":"'Standing Data'!I84","v":0}]
[{"$f":"'Standing Data'!$D$12","v":{"$error":"#N/A"}},{"$f":"'Standing Data'!$F$9","v":0},{"$f":"'Standing Data'!#REF!","v":{"$error":"#REF!"}},"Standing Data","I81",{"$f":"'Standing Data'!I85","v":0}]
[{"$f":"'Standing Data'!$D$12","v":{"$error":"#N/A"}},{"$f":"'Standing Data'!$F$9","v":0},{"$f":"'Standing Data'!#REF!","v":{"$error":"#REF!"}},"Standing Data","I82",{"$f":"'Standing Data'!I86","v":0}]
[{"$f":"'Standing Data'!$D$12","v":{"$error":"#N/A"}},{"$f":"'Standing Data'!$F$9","v":0},{"$f":"'Standing Data'!#REF!","v":{"$error":"#REF!"}},"Standing Data","I83",{"$f":"'Standing Data'!I87","v":0}]
[{"$f":"'Standing Data'!$D$12","v":{"$error":"#N/A"}},{"$f":"'Standing Data'!$F$9","v":0},{"$f":"'Standing Data'!#REF!","v":{"$error":"#REF!"}},"Standing Data","I84",{"$f":"'Standing Data'!I88","v":0}]
[{"$f":"'Standing Data'!$D$12","v":{"$error":"#N/A"}},{"$f":"'Standing Data'!$F$9","v":0},{"$f":"'Standing Data'!#REF!","v":{"$error":"#REF!"}},"Standing Data","I85",{"$f":"'Standing Data'!I89","v":0}]
[{"$f":"'Standing Data'!$D$12","v":{"$error":"#N/A"}},{"$f":"'Standing Data'!$F$9","v":0},{"$f":"'Standing Data'!#REF!","v":{"$error":"#REF!"}},"Standing Data","I86",{"$f":"'Standing Data'!I90","v":0}]
[{"$f":"'Standing Data'!$D$12","v":{"$error":"#N/A"}},{"$f":"'Standing Data'!$F$9","v":0},{"$f":"'Standing Data'!#REF!","v":{"$error":"#REF!"}},"Standing Data","I87",{"$f":"'Standing Data'!I91","v":0}]
[{"$f":"'Standing Data'!$D$12","v":{"$error":"#N/A"}},{"$f":"'Standing Data'!$F$9","v":0},{"$f":"'Standing Data'!#REF!","v":{"$error":"#REF!"}},"Standing Data","I88",{"$f":"'Standing Data'!I92","v":0}]
[{"$f":"'Standing Data'!$D$12","v":{"$error":"#N/A"}},{"$f":"'Standing Data'!$F$9","v":0},{"$f":"'Standing Data'!#REF!","v":{"$error":"#REF!"}},"Standing Data","I89",{"$f":"'Standing Data'!I93","v":0}]
[{"$f":"'Standing Data'!$D$12","v":{"$error":"#N/A"}},{"$f":"'Standing Data'!$F$9","v":0},{"$f":"'Standing Data'!#REF!","v":{"$error":"#REF!"}},"Standing Data","I90",{"$f":"'Standing Data'!I94","v":0}]
[{"$f":"'Standing Data'!$D$12","v":{"$error":"#N/A"}},{"$f":"'Standing Data'!$F$9","v":0},{"$f":"'Standing Data'!#REF!","v":{"$error":"#REF!"}},"Standing Data","I91",{"$f":"'Standing Data'!I95","v":0}]
[{"$f":"'Standing Data'!$D$12","v":{"$error":"#N/A"}},{"$f":"'Standing Data'!$F$9","v":0},{"$f":"'Standing Data'!#REF!","v":{"$error":"#REF!"}},"Standing Data","I92",{"$f":"'Standing Data'!I96","v":0}]
[{"$f":"'Standing Data'!$D$12","v":{"$error":"#N/A"}},{"$f":"'Standing Data'!$F$9","v":0},{"$f":"'Standing Data'!#REF!","v":{"$error":"#REF!"}},"Standing Data","I93",{"$f":"'Standing Data'!I97","v":0}]
[{"$f":"'Standing Data'!$D$12","v":{"$error":"#N/A"}},{"$f":"'Standing Data'!$F$9","v":0},{"$f":"'Standing Data'!#REF!","v":{"$error":"#REF!"}},"Standing Data","I94",{"$f":"'Standing Data'!I98","v":0}]
[{"$f":"'Standing Data'!$D$12","v":{"$error":"#N/A"}},{"$f":"'Standing Data'!$F$9","v":0},{"$f":"'Standing Data'!#REF!","v":{"$error":"#REF!"}},"Standing Data","I95",{"$f":"'Standing Data'!I99","v":0}]
[{"$f":"'Standing Data'!$D$12","v":{"$error":"#N/A"}},{"$f":"'Standing Data'!$F$9","v":0},{"$f":"'Standing Data'!#REF!","v":{"$error":"#REF!"}},"Standing Data","I96",{"$f":"'Standing Data'!I100","v":0}]
[{"$f":"'Standing Data'!$D$12","v":{"$error":"#N/A"}},{"$f":"'Standing Data'!$F$9","v":0},{"$f":"'Standing Data'!#REF!","v":{"$error":"#REF!"}},"Standing Data","I97",{"$f":"'Standing Data'!I101","v":0}]
[{"$f":"'Standing Data'!$D$12","v":{"$error":"#N/A"}},{"$f":"'Standing Data'!$F$9","v":0},{"$f":"'Standing Data'!#REF!","v":{"$error":"#REF!"}},"Standing Data","I98",{"$f":"'Standing Data'!I102","v":0}]
[{"$f":"'Standing Data'!$D$12","v":{"$error":"#N/A"}},{"$f":"'Standing Data'!$F$9","v":0},{"$f":"'Standing Data'!#REF!","v":{"$error":"#REF!"}},"Standing Data","I99",{"$f":"'Standing Data'!I103","v":0}]
[{"$f":"'Standing Data'!$D$12","v":{"$error":"#N/A"}},{"$f":"'Standing Data'!$F$9","v":0},{"$f":"'Standing Data'!#REF!","v":{"$error":"#REF!"}},"Standing Data","I100",{"$f":"'Standing Data'!I104","v":0}]
[{"$f":"'Standing Data'!$D$12","v":{"$error":"#N/A"}},{"$f":"'Standing Data'!$F$9","v":0},{"$f":"'Standing Data'!#REF!","v":{"$error":"#REF!"}},"Standing Data","I101",{"$f":"'Standing Data'!I105","v":0}]
[{"$f":"'Standing Data'!$D$12","v":{"$error":"#N/A"}},{"$f":"'Standing Data'!$F$9","v":0},{"$f":"'Standing Data'!#REF!","v":{"$error":"#REF!"}},"Standing Data","I102",{"$f":"'Standing Data'!I106","v":0}]
[{"$f":"'Standing Data'!$D$12","v":{"$error":"#N/A"}},{"$f":"'Standing Data'!$F$9","v":0},{"$f":"'Standing Data'!#REF!","v":{"$error":"#REF!"}},"Standing Data","I103",{"$f":"'Standing Data'!I107","v":0}]
[{"$f":"'Standing Data'!$D$12","v":{"$error":"#N/A"}},{"$f":"'Standing Data'!$F$9","v":0},{"$f":"'Standing Data'!#REF!","v":{"$error":"#REF!"}},"Standing Data","I104",{"$f":"'Standing Data'!I108","v":0}]
[{"$f":"'Standing Data'!$D$12","v":{"$error":"#N/A"}},{"$f":"'Standing Data'!$F$9","v":0},{"$f":"'Standing Data'!#REF!","v":{"$error":"#REF!"}},"Standing Data","I105",{"$f":"'Standing Data'!I109","v":0}]
[{"$f":"'Standing Data'!$D$12","v":{"$error":"#N/A"}},{"$f":"'Standing Data'!$F$9","v":0},{"$f":"'Standing Data'!#REF!","v":{"$error":"#REF!"}},"Standing Data","I106",{"$f":"'Standing Data'!I110","v":0}]
[{"$f":"'Standing Data'!$D$12","v":{"$error":"#N/A"}},{"$f":"'Standing Data'!$F$9","v":0},{"$f":"'Standing Data'!#REF!","v":{"$error":"#REF!"}},"Standing Data","I107",{"$f":"'Standing Data'!I111","v":0}]
[{"$f":"'Standing Data'!$D$12","v":{"$error":"#N/A"}},{"$f":"'Standing Data'!$F$9","v":0},{"$f":"'Standing Data'!#REF!","v":{"$error":"#REF!"}},"Standing Data","I108",{"$f":"'Standing Data'!I112","v":0}]
[{"$f":"'Standing Data'!$D$12","v":{"$error":"#N/A"}},{"$f":"'Standing Data'!$F$9","v":0},{"$f":"'Standing Data'!#REF!","v":{"$error":"#REF!"}},"Standing Data","I109",{"$f":"'Standing Data'!I113","v":0}]
[{"$f":"'Standing Data'!$D$12","v":{"$error":"#N/A"}},{"$f":"'Standing Data'!$F$9","v":0},{"$f":"'Standing Data'!#REF!","v":{"$error":"#REF!"}},"Standing Data","I110",{"$f":"'Standing Data'!I114","v":0}]
[{"$f":"'Standing Data'!$D$12","v":{"$error":"#N/A"}},{"$f":"'Standing Data'!$F$9","v":0},{"$f":"'Standing Data'!#REF!","v":{"$error":"#REF!"}},"Standing Data","I111",{"$f":"'Standing Data'!I115","v":0}]
[{"$f":"'Standing Data'!$D$12","v":{"$error":"#N/A"}},{"$f":"'Standing Data'!$F$9","v":0},{"$f":"'Standing Data'!#REF!","v":{"$error":"#REF!"}},"Standing Data","I112",{"$f":"'Standing Data'!I116","v":0}]
[{"$f":"'Standing Data'!$D$12","v":{"$error":"#N/A"}},{"$f":"'Standing Data'!$F$9","v":0},{"$f":"'Standing Data'!#REF!","v":{"$error":"#REF!"}},"Standing Data","I113",{"$f":"'Standing Data'!I117","v":0}]
[{"$f":"'Standing Data'!$D$12","v":{"$error":"#N/A"}},{"$f":"'Standing Data'!$F$9","v":0},{"$f":"'Standing Data'!#REF!","v":{"$error":"#REF!"}},"Standing Data","I114",{"$f":"'Standing Data'!I118","v":0}]
[{"$f":"'Standing Data'!$D$12","v":{"$error":"#N/A"}},{"$f":"'Standing Data'!$F$9","v":0},{"$f":"'Standing Data'!#REF!","v":{"$error":"#REF!"}},"Standing Data","I115",{"$f":"'Standing Data'!I119","v":0}]
[{"$f":"'Standing Data'!$D$12","v":{"$error":"#N/A"}},{"$f":"'Standing Data'!$F$9","v":0},{"$f":"'Standing Data'!#REF!","v":{"$error":"#REF!"}},"Standing Data","I116",{"$f":"'Standing Data'!I120","v":0}]
[{"$f":"'Standing Data'!$D$12","v":{"$error":"#N/A"}},{"$f":"'Standing Data'!$F$9","v":0},{"$f":"'Standing Data'!#REF!","v":{"$error":"#REF!"}},"Standing Data","I117",{"$f":"'Standing Data'!I121","v":0}]
[{"$f":"'Standing Data'!$D$12","v":{"$error":"#N/A"}},{"$f":"'Standing Data'!$F$9","v":0},{"$f":"'Standing Data'!#REF!","v":{"$error":"#REF!"}},"Standing Data","I118",{"$f":"'Standing Data'!I122","v":0}]
[{"$f":"'Standing Data'!$D$12","v":{"$error":"#N/A"}},{"$f":"'Standing Data'!$F$9","v":0},{"$f":"'Standing Data'!#REF!","v":{"$error":"#REF!"}},"Standing Data","I119",{"$f":"'Standing Data'!I123","v":0}]
[{"$f":"'Standing Data'!$D$12","v":{"$error":"#N/A"}},{"$f":"'Standing Data'!$F$9","v":0},{"$f":"'Standing Data'!#REF!","v":{"$error":"#REF!"}},"Standing Data","I120",{"$f":"'Standing Data'!I124","v":0}]
[{"$f":"'Standing Data'!$D$12","v":{"$error":"#N/A"}},{"$f":"'Standing Data'!$F$9","v":0},{"$f":"'Standing Data'!#REF!","v":{"$error":"#REF!"}},"Standing Data","I121",{"$f":"'Standing Data'!I125","v":0}]
[{"$f":"'Standing Data'!$D$12","v":{"$error":"#N/A"}},{"$f":"'Standing Data'!$F$9","v":0},{"$f":"'Standing Data'!#REF!","v":{"$error":"#REF!"}},"Standing Data","I122",{"$f":"'Standing Data'!I126","v":0}]
[{"$f":"'Standing Data'!$D$12","v":{"$error":"#N/A"}},{"$f":"'Standing Data'!$F$9","v":0},{"$f":"'Standing Data'!#REF!","v":{"$error":"#REF!"}},"Standing Data","I123",{"$f":"'Standing Data'!I127","v":0}]
[{"$f":"'Standing Data'!$D$12","v":{"$error":"#N/A"}},{"$f":"'Standing Data'!$F$9","v":0},{"$f":"'Standing Data'!#REF!","v":{"$error":"#REF!"}},"Standing Data","I124",{"$f":"'Standing Data'!I128","v":0}]
[{"$f":"'Standing Data'!$D$12","v":{"$error":"#N/A"}},{"$f":"'Standing Data'!$F$9","v":0},{"$f":"'Standing Data'!#REF!","v":{"$error":"#REF!"}},"Standing Data","I125",{"$f":"'Standing Data'!I129","v":0}]
[{"$f":"'Standing Data'!$D$12","v":{"$error":"#N/A"}},{"$f":"'Standing Data'!$F$9","v":0},{"$f":"'Standing Data'!#REF!","v":{"$error":"#REF!"}},"Standing Data","I126",{"$f":"'Standing Data'!I130","v":0}]
[{"$f":"'Standing Data'!$D$12","v":{"$error":"#N/A"}},{"$f":"'Standing Data'!$F$9","v":0},{"$f":"'Standing Data'!#REF!","v":{"$error":"#REF!"}},"Standing Data","I127",{"$f":"'Standing Data'!I131","v":0}]
[{"$f":"'Standing Data'!$D$12","v":{"$error":"#N/A"}},{"$f":"'Standing Data'!$F$9","v":0},{"$f":"'Standing Data'!#REF!","v":{"$error":"#REF!"}},"Standing Data","I128",{"$f":"'Standing Data'!I132","v":0}]
[{"$f":"'Standing Data'!$D$12","v":{"$error":"#N/A"}},{"$f":"'Standing Data'!$F$9","v":0},{"$f":"'Standing Data'!#REF!","v":{"$error":"#REF!"}},"Standing Data","I129",{"$f":"'Standing Data'!I133","v":0}]
[{"$f":"'Standing Data'!$D$12","v":{"$error":"#N/A"}},{"$f":"'Standing Data'!$F$9","v":0},{"$f":"'Standing Data'!#REF!","v":{"$error":"#REF!"}},"Standing Data","I130",{"$f":"'Standing Data'!I134","v":0}]
[{"$f":"'Standing Data'!$D$12","v":{"$error":"#N/A"}},{"$f":"'Standing Data'!$F$9","v":0},{"$f":"'Standing Data'!#REF!","v":{"$error":"#REF!"}},"Standing Data","I131",{"$f":"'Standing Data'!I135","v":0}]
[{"$f":"'Standing Data'!$D$12","v":{"$error":"#N/A"}},{"$f":"'Standing Data'!$F$9","v":0},{"$f":"'Standing Data'!#REF!","v":{"$error":"#REF!"}},"Standing Data","I132",{"$f":"'Standing Data'!I136","v":0}]
[{"$f":"'Standing Data'!$D$12","v":{"$error":"#N/A"}},{"$f":"'Standing Data'!$F$9","v":0},{"$f":"'Standing Data'!#REF!","v":{"$error":"#REF!"}},"Standing Data","I133",{"$f":"'Standing Data'!I137","v":0}]
[{"$f":"'Standing Data'!$D$12","v":{"$error":"#N/A"}},{"$f":"'Standing Data'!$F$9","v":0},{"$f":"'Standing Data'!#REF!","v":{"$error":"#REF!"}},"Standing Data","I134",{"$f":"'Standing Data'!I138","v":0}]
[{"$f":"'Standing Data'!$D$12","v":{"$error":"#N/A"}},{"$f":"'Standing Data'!$F$9","v":0},{"$f":"'Standing Data'!#REF!","v":{"$error":"#REF!"}},"Standing Data","I135",{"$f":"'Standing Data'!I139","v":0}]
[{"$f":"'Standing Data'!$D$12","v":{"$error":"#N/A"}},{"$f":"'Standing Data'!$F$9","v":0},{"$f":"'Standing Data'!#REF!","v":{"$error":"#REF!"}},"Standing Data","I136",{"$f":"'Standing Data'!I140","v":0}]
[{"$f":"'Standing Data'!$D$12","v":{"$error":"#N/A"}},{"$f":"'Standing Data'!$F$9","v":0},{"$f":"'Standing Data'!#REF!","v":{"$error":"#REF!"}},"Standing Data","I137",{"$f":"'Standing Data'!I141","v":0}]
[{"$f":"'Standing Data'!$D$12","v":{"$error":"#N/A"}},{"$f":"'Standing Data'!$F$9","v":0},{"$f":"'Standing Data'!#REF!","v":{"$error":"#REF!"}},"Standing Data","I138",{"$f":"'Standing Data'!I142","v":0}]
[{"$f":"'Standing Data'!$D$12","v":{"$error":"#N/A"}},{"$f":"'Standing Data'!$F$9","v":0},{"$f":"'Standing Data'!#REF!","v":{"$error":"#REF!"}},"Standing Data","I139",{"$f":"'Standing Data'!I143","v":0}]
[{"$f":"'Standing Data'!$D$12","v":{"$error":"#N/A"}},{"$f":"'Standing Data'!$F$9","v":0},{"$f":"'Standing Data'!#REF!","v":{"$error":"#REF!"}},"Standing Data","I140",{"$f":"'Standing Data'!I144","v":0}]
[{"$f":"'Standing Data'!$D$12","v":{"$error":"#N/A"}},{"$f":"'Standing Data'!$F$9","v":0},{"$f":"'Standing Data'!#REF!","v":{"$error":"#REF!"}},"Standing Data","I141",{"$f":"'Standing Data'!I145","v":0}]
[{"$f":"'Standing Data'!$D$12","v":{"$error":"#N/A"}},{"$f":"'Standing Data'!$F$9","v":0},{"$f":"'Standing Data'!#REF!","v":{"$error":"#REF!"}},"Standing Data","I142",{"$f":"'Standing Data'!I146","v":0}]
[{"$f":"'Standing Data'!$D$12","v":{"$error":"#N/A"}},{"$f":"'Standing Data'!$F$9","v":0},{"$f":"'Standing Data'!#REF!","v":{"$error":"#REF!"}},"Standing Data","I143",{"$f":"'Standing Data'!I147","v":0}]
[{"$f":"'Standing Data'!$D$12","v":{"$error":"#N/A"}},{"$f":"'Standing Data'!$F$9","v":0},{"$f":"'Standing Data'!#REF!","v":{"$error":"#REF!"}},"Standing Data","M44",{"$f":"'Standing Data'!M48","v":0}]
[{"$f":"'Standing Data'!$D$12","v":{"$error":"#N/A"}},{"$f":"'Standing Data'!$F$9","v":0},{"$f":"'Standing Data'!#REF!","v":{"$error":"#REF!"}},"Standing Data","M45",{"$f":"'Standing Data'!M49","v":0}]
[{"$f":"'Standing Data'!$D$12","v":{"$error":"#N/A"}},{"$f":"'Standing Data'!$F$9","v":0},{"$f":"'Standing Data'!#REF!","v":{"$error":"#REF!"}},"Standing Data","M46",{"$f":"'Standing Data'!M50","v":0}]
[{"$f":"'Standing Data'!$D$12","v":{"$error":"#N/A"}},{"$f":"'Standing Data'!$F$9","v":0},{"$f":"'Standing Data'!#REF!","v":{"$error":"#REF!"}},"Standing Data","M47",{"$f":"'Standing Data'!M51","v":0}]
[{"$f":"'Standing Data'!$D$12","v":{"$error":"#N/A"}},{"$f":"'Standing Data'!$F$9","v":0},{"$f":"'Standing Data'!#REF!","v":{"$error":"#REF!"}},"Standing Data","M48",{"$f":"'Standing Data'!M52","v":0}]
[{"$f":"'Standing Data'!$D$12","v":{"$error":"#N/A"}},{"$f":"'Standing Data'!$F$9","v":0},{"$f":"'Standing Data'!#REF!","v":{"$error":"#REF!"}},"Standing Data","M49",{"$f":"'Standing Data'!M53","v":0}]
[{"$f":"'Standing Data'!$D$12","v":{"$error":"#N/A"}},{"$f":"'Standing Data'!$F$9","v":0},{"$f":"'Standing Data'!#REF!","v":{"$error":"#REF!"}},"Standing Data","M50",{"$f":"'Standing Data'!M54","v":0}]
[{"$f":"'Standing Data'!$D$12","v":{"$error":"#N/A"}},{"$f":"'Standing Data'!$F$9","v":0},{"$f":"'Standing Data'!#REF!","v":{"$error":"#REF!"}},"Standing Data","M51",{"$f":"'Standing Data'!M55","v":0}]
[{"$f":"'Standing Data'!$D$12","v":{"$error":"#N/A"}},{"$f":"'Standing Data'!$F$9","v":0},{"$f":"'Standing Data'!#REF!","v":{"$error":"#REF!"}},"Standing Data","M52",{"$f":"'Standing Data'!M56","v":0}]
[{"$f":"'Standing Data'!$D$12","v":{"$error":"#N/A"}},{"$f":"'Standing Data'!$F$9","v":0},{"$f":"'Standing Data'!#REF!","v":{"$error":"#REF!"}},"Standing Data","M53",{"$f":"'Standing Data'!M57","v":0}]
[{"$f":"'Standing Data'!$D$12","v":{"$error":"#N/A"}},{"$f":"'Standing Data'!$F$9","v":0},{"$f":"'Standing Data'!#REF!","v":{"$error":"#REF!"}},"Standing Data","M54",{"$f":"'Standing Data'!M58","v":0}]
[{"$f":"'Standing Data'!$D$12","v":{"$error":"#N/A"}},{"$f":"'Standing Data'!$F$9","v":0},{"$f":"'Standing Data'!#REF!","v":{"$error":"#REF!"}},"Standing Data","M55",{"$f":"'Standing Data'!M59","v":0}]
[{"$f":"'Standing Data'!$D$12","v":{"$error":"#N/A"}},{"$f":"'Standing Data'!$F$9","v":0},{"$f":"'Standing Data'!#REF!","v":{"$error":"#REF!"}},"Standing Data","M56",{"$f":"'Standing Data'!M60","v":0}]
[{"$f":"'Standing Data'!$D$12","v":{"$error":"#N/A"}},{"$f":"'Standing Data'!$F$9","v":0},{"$f":"'Standing Data'!#REF!","v":{"$error":"#REF!"}},"Standing Data","M57",{"$f":"'Standing Data'!M61","v":0}]
[{"$f":"'Standing Data'!$D$12","v":{"$error":"#N/A"}},{"$f":"'Standing Data'!$F$9","v":0},{"$f":"'Standing Data'!#REF!","v":{"$error":"#REF!"}},"Standing Data","M58",{"$f":"'Standing Data'!M62","v":0}]
[{"$f":"'Standing Data'!$D$12","v":{"$error":"#N/A"}},{"$f":"'Standing Data'!$F$9","v":0},{"$f":"'Standing Data'!#REF!","v":{"$error":"#REF!"}},"Standing Data","M59",{"$f":"'Standing Data'!M63","v":0}]
[{"$f":"'Standing Data'!$D$12","v":{"$error":"#N/A"}},{"$f":"'Standing Data'!$F$9","v":0},{"$f":"'Standing Data'!#REF!","v":{"$error":"#REF!"}},"Standing Data","M60",{"$f":"'Standing Data'!M64","v":0}]
[{"$f":"'Standing Data'!$D$12","v":{"$error":"#N/A"}},{"$f":"'Standing Data'!$F$9","v":0},{"$f":"'Standing Data'!#REF!","v":{"$error":"#REF!"}},"Standing Data","M61",{"$f":"'Standing Data'!M65","v":0}]
[{"$f":"'Standing Data'!$D$12","v":{"$error":"#N/A"}},{"$f":"'Standing Data'!$F$9","v":0},{"$f":"'Standing Data'!#REF!","v":{"$error":"#REF!"}},"Standing Data","M62",{"$f":"'Standing Data'!M66","v":0}]
[{"$f":"'Standing Data'!$D$12","v":{"$error":"#N/A"}},{"$f":"'Standing Data'!$F$9","v":0},{"$f":"'Standing Data'!#REF!","v":{"$error":"#REF!"}},"Standing Data","M63",{"$f":"'Standing Data'!M67","v":0}]
[{"$f":"'Standing Data'!$D$12","v":{"$error":"#N/A"}},{"$f":"'Standing Data'!$F$9","v":0},{"$f":"'Standing Data'!#REF!","v":{"$error":"#REF!"}},"Standing Data","M64",{"$f":"'Standing Data'!M68","v":0}]
[{"$f":"'Standing Data'!$D$12","v":{"$error":"#N/A"}},{"$f":"'Standing Data'!$F$9","v":0},{"$f":"'Standing Data'!#REF!","v":{"$error":"#REF!"}},"Standing Data","M65",{"$f":"'Standing Data'!M69","v":0}]
[{"$f":"'Standing Data'!$D$12","v":{"$error":"#N/A"}},{"$f":"'Standing Data'!$F$9","v":0},{"$f":"'Standing Data'!#REF!","v":{"$error":"#REF!"}},"Standing Data","M66",{"$f":"'Standing Data'!M70","v":0}]
[{"$f":"'Standing Data'!$D$12","v":{"$error":"#N/A"}},{"$f":"'Standing Data'!$F$9","v":0},{"$f":"'Standing Data'!#REF!","v":{"$error":"#REF!"}},"Standing Data","M67",{"$f":"'Standing Data'!M71","v":0}]
[{"$f":"'Standing Data'!$D$12","v":{"$error":"#N/A"}},{"$f":"'Standing Data'!$F$9","v":0},{"$f":"'Standing Data'!#REF!","v":{"$error":"#REF!"}},"Standing Data","M68",{"$f":"'Standing Data'!M72","v":0}]
[{"$f":"'Standing Data'!$D$12","v":{"$error":"#N/A"}},{"$f":"'Standing Data'!$F$9","v":0},{"$f":"'Standing Data'!#REF!","v":{"$error":"#REF!"}},"Standing Data","M69",{"$f":"'Standing Data'!M73","v":0}]
[{"$f":"'Standing Data'!$D$12","v":{"$error":"#N/A"}},{"$f":"'Standing Data'!$F$9","v":0},{"$f":"'Standing Data'!#REF!","v":{"$error":"#REF!"}},"Standing Data","M70",{"$f":"'Standing Data'!M74","v":0}]
[{"$f":"'Standing Data'!$D$12","v":{"$error":"#N/A"}},{"$f":"'Standing Data'!$F$9","v":0},{"$f":"'Standing Data'!#REF!","v":{"$error":"#REF!"}},"Standing Data","M71",{"$f":"'Standing Data'!M75","v":0}]
[{"$f":"'Standing Data'!$D$12","v":{"$error":"#N/A"}},{"$f":"'Standing Data'!$F$9","v":0},{"$f":"'Standing Data'!#REF!","v":{"$error":"#REF!"}},"Standing Data","M72",{"$f":"'Standing Data'!M76","v":0}]
[{"$f":"'Standing Data'!$D$12","v":{"$error":"#N/A"}},{"$f":"'Standing Data'!$F$9","v":0},{"$f":"'Standing Data'!#REF!","v":{"$error":"#REF!"}},"Standing Data","M73",{"$f":"'Standing Data'!M77","v":0}]
[{"$f":"'Standing Data'!$D$12","v":{"$error":"#N/A"}},{"$f":"'Standing Data'!$F$9","v":0},{"$f":"'Standing Data'!#REF!","v":{"$error":"#REF!"}},"Standing Data","M74",{"$f":"'Standing Data'!M78","v":0}]
[{"$f":"'Standing Data'!$D$12","v":{"$error":"#N/A"}},{"$f":"'Standing Data'!$F$9","v":0},{"$f":"'Standing Data'!#REF!","v":{"$error":"#REF!"}},"Standing Data","M75",{"$f":"'Standing Data'!M79","v":0}]
[{"$f":"'Standing Data'!$D$12","v":{"$error":"#N/A"}},{"$f":"'Standing Data'!$F$9","v":0},{"$f":"'Standing Data'!#REF!","v":{"$error":"#REF!"}},"Standing Data","M76",{"$f":"'Standing Data'!M80","v":0}]
[{"$f":"'Standing Data'!$D$12","v":{"$error":"#N/A"}},{"$f":"'Standing Data'!$F$9","v":0},{"$f":"'Standing Data'!#REF!","v":{"$error":"#REF!"}},"Standing Data","M77",{"$f":"'Standing Data'!M81","v":0}]
[{"$f":"'Standing Data'!$D$12","v":{"$error":"#N/A"}},{"$f":"'Standing Data'!$F$9","v":0},{"$f":"'Standing Data'!#REF!","v":{"$error":"#REF!"}},"Standing Data","M78",{"$f":"'Standing Data'!M82","v":0}]
[{"$f":"'Standing Data'!$D$12","v":{"$error":"#N/A"}},{"$f":"'Standing Data'!$F$9","v":0},{"$f":"'Standing Data'!#REF!","v":{"$error":"#REF!"}},"Standing Data","M79",{"$f":"'Standing Data'!M83","v":0}]
[{"$f":"'Standing Data'!$D$12","v":{"$error":"#N/A"}},{"$f":"'Standing Data'!$F$9","v":0},{"$f":"'Standing Data'!#REF!","v":{"$error":"#REF!"}},"Standing Data","M80",{"$f":"'Standing Data'!M84","v":0}]
[{"$f":"'Standing Data'!$D$12","v":{"$error":"#N/A"}},{"$f":"'Standing Data'!$F$9","v":0},{"$f":"'Standing Data'!#REF!","v":{"$error":"#REF!"}},"Standing Data","M81",{"$f":"'Standing Data'!M85","v":0}]
[{"$f":"'Standing Data'!$D$12","v":{"$error":"#N/A"}},{"$f":"'Standing Data'!$F$9","v":0},{"$f":"'Standing Data'!#REF!","v":{"$error":"#REF!"}},"Standing Data","M82",{"$f":"'Standing Data'!M86","v":0}]
[{"$f":"'Standing Data'!$D$12","v":{"$error":"#N/A"}},{"$f":"'Standing Data'!$F$9","v":0},{"$f":"'Standing Data'!#REF!","v":{"$error":"#REF!"}},"Standing Data","M83",{"$f":"'Standing Data'!M87","v":0}]
[{"$f":"'Standing Data'!$D$12","v":{"$error":"#N/A"}},{"$f":"'Standing Data'!$F$9","v":0},{"$f":"'Standing Data'!#REF!","v":{"$error":"#REF!"}},"Standing Data","M84",{"$f":"'Standing Data'!M88","v":0}]
[{"$f":"'Standing Data'!$D$12","v":{"$error":"#N/A"}},{"$f":"'Standing Data'!$F$9","v":0},{"$f":"'Standing Data'!#REF!","v":{"$error":"#REF!"}},"Standing Data","M85",{"$f":"'Standing Data'!M89","v":0}]
[{"$f":"'Standing Data'!$D$12","v":{"$error":"#N/A"}},{"$f":"'Standing Data'!$F$9","v":0},{"$f":"'Standing Data'!#REF!","v":{"$error":"#REF!"}},"Standing Data","M86",{"$f":"'Standing Data'!M90","v":0}]
[{"$f":"'Standing Data'!$D$12","v":{"$error":"#N/A"}},{"$f":"'Standing Data'!$F$9","v":0},{"$f":"'Standing Data'!#REF!","v":{"$error":"#REF!"}},"Standing Data","M87",{"$f":"'Standing Data'!M91","v":0}]
[{"$f":"'Standing Data'!$D$12","v":{"$error":"#N/A"}},{"$f":"'Standing Data'!$F$9","v":0},{"$f":"'Standing Data'!#REF!","v":{"$error":"#REF!"}},"Standing Data","M88",{"$f":"'Standing Data'!M92","v":0}]
[{"$f":"'Standing Data'!$D$12","v":{"$error":"#N/A"}},{"$f":"'Standing Data'!$F$9","v":0},{"$f":"'Standing Data'!#REF!","v":{"$error":"#REF!"}},"Standing Data","M89",{"$f":"'Standing Data'!M93","v":0}]
[{"$f":"'Standing Data'!$D$12","v":{"$error":"#N/A"}},{"$f":"'Standing Data'!$F$9","v":0},{"$f":"'Standing Data'!#REF!","v":{"$error":"#REF!"}},"Standing Data","M90",{"$f":"'Standing Data'!M94","v":0}]
[{"$f":"'Standing Data'!$D$12","v":{"$error":"#N/A"}},{"$f":"'Standing Data'!$F$9","v":0},{"$f":"'Standing Data'!#REF!","v":{"$error":"#REF!"}},"Standing Data","M91",{"$f":"'Standing Data'!M95","v":0}]
[{"$f":"'Standing Data'!$D$12","v":{"$error":"#N/A"}},{"$f":"'Standing Data'!$F$9","v":0},{"$f":"'Standing Data'!#REF!","v":{"$error":"#REF!"}},"Standing Data","M92",{"$f":"'Standing Data'!M96","v":0}]
[{"$f":"'Standing Data'!$D$12","v":{"$error":"#N/A"}},{"$f":"'Standing Data'!$F$9","v":0},{"$f":"'Standing Data'!#REF!","v":{"$error":"#REF!"}},"Standing Data","M93",{"$f":"'Standing Data'!M97","v":0}]
[{"$f":"'Standing Data'!$D$12","v":{"$error":"#N/A"}},{"$f":"'Standing Data'!$F$9","v":0},{"$f":"'Standing Data'!#REF!","v":{"$error":"#REF!"}},"Standing Data","M94",{"$f":"'Standing Data'!M98","v":0}]
[{"$f":"'Standing Data'!$D$12","v":{"$error":"#N/A"}},{"$f":"'Standing Data'!$F$9","v":0},{"$f":"'Standing Data'!#REF!","v":{"$error":"#REF!"}},"Standing Data","M95",{"$f":"'Standing Data'!M99","v":0}]
[{"$f":"'Standing Data'!$D$12","v":{"$error":"#N/A"}},{"$f":"'Standing Data'!$F$9","v":0},{"$f":"'Standing Data'!#REF!","v":{"$error":"#REF!"}},"Standing Data","M96",{"$f":"'Standing Data'!M100","v":0}]
[{"$f":"'Standing Data'!$D$12","v":{"$error":"#N/A"}},{"$f":"'Standing Data'!$F$9","v":0},{"$f":"'Standing Data'!#REF!","v":{"$error":"#REF!"}},"Standing Data","M97",{"$f":"'Standing Data'!M101","v":0}]
[{"$f":"'Standing Data'!$D$12","v":{"$error":"#N/A"}},{"$f":"'Standing Data'!$F$9","v":0},{"$f":"'Standing Data'!#REF!","v":{"$error":"#REF!"}},"Standing Data","M98",{"$f":"'Standing Data'!M102","v":0}]
[{"$f":"'Standing Data'!$D$12","v":{"$error":"#N/A"}},{"$f":"'Standing Data'!$F$9","v":0},{"$f":"'Standing Data'!#REF!","v":{"$error":"#REF!"}},"Standing Data","M99",{"$f":"'Standing Data'!M103","v":0}]
[{"$f":"'Standing Data'!$D$12","v":{"$error":"#N/A"}},{"$f":"'Standing Data'!$F$9","v":0},{"$f":"'Standing Data'!#REF!","v":{"$error":"#REF!"}},"Standing Data","M100",{"$f":"'Standing Data'!M104","v":0}]
[{"$f":"'Standing Data'!$D$12","v":{"$error":"#N/A"}},{"$f":"'Standing Data'!$F$9","v":0},{"$f":"'Standing Data'!#REF!","v":{"$error":"#REF!"}},"Standing Data","M101",{"$f":"'Standing Data'!M105","v":0}]
[{"$f":"'Standing Data'!$D$12","v":{"$error":"#N/A"}},{"$f":"'Standing Data'!$F$9","v":0},{"$f":"'Standing Data'!#REF!","v":{"$error":"#REF!"}},"Standing Data","M102",{"$f":"'Standing Data'!M106","v":0}]
[{"$f":"'Standing Data'!$D$12","v":{"$error":"#N/A"}},{"$f":"'Standing Data'!$F$9","v":0},{"$f":"'Standing Data'!#REF!","v":{"$error":"#REF!"}},"Standing Data","M103",{"$f":"'Standing Data'!M107","v":0}]
[{"$f":"'Standing Data'!$D$12","v":{"$error":"#N/A"}},{"$f":"'Standing Data'!$F$9","v":0},{"$f":"'Standing Data'!#REF!","v":{"$error":"#REF!"}},"Standing Data","M104",{"$f":"'Standing Data'!M108","v":0}]
[{"$f":"'Standing Data'!$D$12","v":{"$error":"#N/A"}},{"$f":"'Standing Data'!$F$9","v":0},{"$f":"'Standing Data'!#REF!","v":{"$error":"#REF!"}},"Standing Data","M105",{"$f":"'Standing Data'!M109","v":0}]
[{"$f":"'Standing Data'!$D$12","v":{"$error":"#N/A"}},{"$f":"'Standing Data'!$F$9","v":0},{"$f":"'Standing Data'!#REF!","v":{"$error":"#REF!"}},"Standing Data","M106",{"$f":"'Standing Data'!M110","v":0}]
[{"$f":"'Standing Data'!$D$12","v":{"$error":"#N/A"}},{"$f":"'Standing Data'!$F$9","v":0},{"$f":"'Standing Data'!#REF!","v":{"$error":"#REF!"}},"Standing Data","M107",{"$f":"'Standing Data'!M111","v":0}]
[{"$f":"'Standing Data'!$D$12","v":{"$error":"#N/A"}},{"$f":"'Standing Data'!$F$9","v":0},{"$f":"'Standing Data'!#REF!","v":{"$error":"#REF!"}},"Standing Data","M108",{"$f":"'Standing Data'!M112","v":0}]
[{"$f":"'Standing Data'!$D$12","v":{"$error":"#N/A"}},{"$f":"'Standing Data'!$F$9","v":0},{"$f":"'Standing Data'!#REF!","v":{"$error":"#REF!"}},"Standing Data","M109",{"$f":"'Standing Data'!M113","v":0}]
[{"$f":"'Standing Data'!$D$12","v":{"$error":"#N/A"}},{"$f":"'Standing Data'!$F$9","v":0},{"$f":"'Standing Data'!#REF!","v":{"$error":"#REF!"}},"Standing Data","M110",{"$f":"'Standing Data'!M114","v":0}]
[{"$f":"'Standing Data'!$D$12","v":{"$error":"#N/A"}},{"$f":"'Standing Data'!$F$9","v":0},{"$f":"'Standing Data'!#REF!","v":{"$error":"#REF!"}},"Standing Data","M111",{"$f":"'Standing Data'!M115","v":0}]
[{"$f":"'Standing Data'!$D$12","v":{"$error":"#N/A"}},{"$f":"'Standing Data'!$F$9","v":0},{"$f":"'Standing Data'!#REF!","v":{"$error":"#REF!"}},"Standing Data","M112",{"$f":"'Standing Data'!M116","v":0}]
[{"$f":"'Standing Data'!$D$12","v":{"$error":"#N/A"}},{"$f":"'Standing Data'!$F$9","v":0},{"$f":"'Standing Data'!#REF!","v":{"$error":"#REF!"}},"Standing Data","M113",{"$f":"'Standing Data'!M117","v":0}]
[{"$f":"'Standing Data'!$D$12","v":{"$error":"#N/A"}},{"$f":"'Standing Data'!$F$9","v":0},{"$f":"'Standing Data'!#REF!","v":{"$error":"#REF!"}},"Standing Data","M114",{"$f":"'Standing Data'!M118","v":0}]
[{"$f":"'Standing Data'!$D$12","v":{"$error":"#N/A"}},{"$f":"'Standing Data'!$F$9","v":0},{"$f":"'Standing Data'!#REF!","v":{"$error":"#REF!"}},"Standing Data","M115",{"$f":"'Standing Data'!M119","v":0}]
[{"$f":"'Standing Data'!$D$12","v":{"$error":"#N/A"}},{"$f":"'Standing Data'!$F$9","v":0},{"$f":"'Standing Data'!#REF!","v":{"$error":"#REF!"}},"Standing Data","M116",{"$f":"'Standing Data'!M120","v":0}]
[{"$f":"'Standing Data'!$D$12","v":{"$error":"#N/A"}},{"$f":"'Standing Data'!$F$9","v":0},{"$f":"'Standing Data'!#REF!","v":{"$error":"#REF!"}},"Standing Data","M117",{"$f":"'Standing Data'!M121","v":0}]
[{"$f":"'Standing Data'!$D$12","v":{"$error":"#N/A"}},{"$f":"'Standing Data'!$F$9","v":0},{"$f":"'Standing Data'!#REF!","v":{"$error":"#REF!"}},"Standing Data","M118",{"$f":"'Standing Data'!M122","v":0}]
[{"$f":"'Standing Data'!$D$12","v":{"$error":"#N/A"}},{"$f":"'Standing Data'!$F$9","v":0},{"$f":"'Standing Data'!#REF!","v":{"$error":"#REF!"}},"Standing Data","M119",{"$f":"'Standing Data'!M123","v":0}]
[{"$f":"'Standing Data'!$D$12","v":{"$error":"#N/A"}},{"$f":"'Standing Data'!$F$9","v":0},{"$f":"'Standing Data'!#REF!","v":{"$error":"#REF!"}},"Standing Data","M120",{"$f":"'Standing Data'!M124","v":0}]
[{"$f":"'Standing Data'!$D$12","v":{"$error":"#N/A"}},{"$f":"'Standing Data'!$F$9","v":0},{"$f":"'Standing Data'!#REF!","v":{"$error":"#REF!"}},"Standing Data","M121",{"$f":"'Standing Data'!M125","v":0}]
[{"$f":"'Standing Data'!$D$12","v":{"$error":"#N/A"}},{"$f":"'Standing Data'!$F$9","v":0},{"$f":"'Standing Data'!#REF!","v":{"$error":"#REF!"}},"Standing Data","M122",{"$f":"'Standing Data'!M126","v":0}]
[{"$f":"'Standing Data'!$D$12","v":{"$error":"#N/A"}},{"$f":"'Standing Data'!$F$9","v":0},{"$f":"'Standing Data'!#REF!","v":{"$error":"#REF!"}},"Standing Data","M123",{"$f":"'Standing Data'!M127","v":0}]
[{"$f":"'Standing Data'!$D$12","v":{"$error":"#N/A"}},{"$f":"'Standing Data'!$F$9","v":0},{"$f":"'Standing Data'!#REF!","v":{"$error":"#REF!"}},"Standing Data","M124",{"$f":"'Standing Data'!M128","v":0}]
[{"$f":"'Standing Data'!$D$12","v":{"$error":"#N/A"}},{"$f":"'Standing Data'!$F$9","v":0},{"$f":"'Standing Data'!#REF!","v":{"$error":"#REF!"}},"Standing Data","M125",{"$f":"'Standing Data'!M129","v":0}]
[{"$f":"'Standing Data'!$D$12","v":{"$error":"#N/A"}},{"$f":"'Standing Data'!$F$9","v":0},{"$f":"'Standing Data'!#REF!","v":{"$error":"#REF!"}},"Standing Data","M126",{"$f":"'Standing Data'!M130","v":0}]
[{"$f":"'Standing Data'!$D$12","v":{"$error":"#N/A"}},{"$f":"'Standing Data'!$F$9","v":0},{"$f":"'Standing Data'!#REF!","v":{"$error":"#REF!"}},"Standing Data","M127",{"$f":"'Standing Data'!M131","v":0}]
[{"$f":"'Standing Data'!$D$12","v":{"$error":"#N/A"}},{"$f":"'Standing Data'!$F$9","v":0},{"$f":"'Standing Data'!#REF!","v":{"$error":"#REF!"}},"Standing Data","M128",{"$f":"'Standing Data'!M132","v":0}]
[{"$f":"'Standing Data'!$D$12","v":{"$error":"#N/A"}},{"$f":"'Standing Data'!$F$9","v":0},{"$f":"'Standing Data'!#REF!","v":{"$error":"#REF!"}},"Standing Data","M129",{"$f":"'Standing Data'!M133","v":0}]
[{"$f":"'Standing Data'!$D$12","v":{"$error":"#N/A"}},{"$f":"'Standing Data'!$F$9","v":0},{"$f":"'Standing Data'!#REF!","v":{"$error":"#REF!"}},"Standing Data","M130",{"$f":"'Standing Data'!M134","v":0}]
[{"$f":"'Standing Data'!$D$12","v":{"$error":"#N/A"}},{"$f":"'Standing Data'!$F$9","v":0},{"$f":"'Standing Data'!#REF!","v":{"$error":"#REF!"}},"Standing Data","M131",{"$f":"'Standing Data'!M135","v":0}]
[{"$f":"'Standing Data'!$D$12","v":{"$error":"#N/A"}},{"$f":"'Standing Data'!$F$9","v":0},{"$f":"'Standing Data'!#REF!","v":{"$error":"#REF!"}},"Standing Data","M132",{"$f":"'Standing Data'!M136","v":0}]
[{"$f":"'Standing Data'!$D$12","v":{"$error":"#N/A"}},{"$f":"'Standing Data'!$F$9","v":0},{"$f":"'Standing Data'!#REF!","v":{"$error":"#REF!"}},"Standing Data","M133",{"$f":"'Standing Data'!M137","v":0}]
[{"$f":"'Standing Data'!$D$12","v":{"$error":"#N/A"}},{"$f":"'Standing Data'!$F$9","v":0},{"$f":"'Standing Data'!#REF!","v":{"$error":"#REF!"}},"Standing Data","M134",{"$f":"'Standing Data'!M138","v":0}]
[{"$f":"'Standing Data'!$D$12","v":{"$error":"#N/A"}},{"$f":"'Standing Data'!$F$9","v":0},{"$f":"'Standing Data'!#REF!","v":{"$error":"#REF!"}},"Standing Data","M135",{"$f":"'Standing Data'!M139","v":0}]
[{"$f":"'Standing Data'!$D$12","v":{"$error":"#N/A"}},{"$f":"'Standing Data'!$F$9","v":0},{"$f":"'Standing Data'!#REF!","v":{"$error":"#REF!"}},"Standing Data","M136",{"$f":"'Standing Data'!M140","v":0}]
[{"$f":"'Standing Data'!$D$12","v":{"$error":"#N/A"}},{"$f":"'Standing Data'!$F$9","v":0},{"$f":"'Standing Data'!#REF!","v":{"$error":"#REF!"}},"Standing Data","M137",{"$f":"'Standing Data'!M141","v":0}]
[{"$f":"'Standing Data'!$D$12","v":{"$error":"#N/A"}},{"$f":"'Standing Data'!$F$9","v":0},{"$f":"'Standing Data'!#REF!","v":{"$error":"#REF!"}},"Standing Data","M138",{"$f":"'Standing Data'!M142","v":0}]
[{"$f":"'Standing Data'!$D$12","v":{"$error":"#N/A"}},{"$f":"'Standing Data'!$F$9","v":0},{"$f":"'Standing Data'!#REF!","v":{"$error":"#REF!"}},"Standing Data","M139",{"$f":"'Standing Data'!M143","v":0}]
[{"$f":"'Standing Data'!$D$12","v":{"$error":"#N/A"}},{"$f":"'Standing Data'!$F$9","v":0},{"$f":"'Standing Data'!#REF!","v":{"$error":"#REF!"}},"Standing Data","M140",{"$f":"'Standing Data'!M144","v":0}]
[{"$f":"'Standing Data'!$D$12","v":{"$error":"#N/A"}},{"$f":"'Standing Data'!$F$9","v":0},{"$f":"'Standing Data'!#REF!","v":{"$error":"#REF!"}},"Standing Data","M141",{"$f":"'Standing Data'!M145","v":0}]
[{"$f":"'Standing Data'!$D$12","v":{"$error":"#N/A"}},{"$f":"'Standing Data'!$F$9","v":0},{"$f":"'Standing Data'!#REF!","v":{"$error":"#REF!"}},"Standing Data","M142",{"$f":"'Standing Data'!M146","v":0}]
[{"$f":"'Standing Data'!$D$12","v":{"$error":"#N/A"}},{"$f":"'Standing Data'!$F$9","v":0},{"$f":"'Standing Data'!#REF!","v":{"$error":"#REF!"}},"Standing Data","M143",{"$f":"'Standing Data'!M147","v":0}]
[{"$f":"'Standing Data'!$D$12","v":{"$error":"#N/A"}},{"$f":"'Standing Data'!$F$9","v":0},{"$f":"'Standing Data'!#REF!","v":{"$error":"#REF!"}},"Standing Data","D146",{"$f":"'Standing Data'!D163","v":0}]
[{"$f":"'Standing Data'!$D$12","v":{"$error":"#N/A"}},{"$f":"'Standing Data'!$F$9","v":0},{"$f":"'Standing Data'!#REF!","v":{"$error":"#REF!"}},"Standing Data","D149",{"$f":"'Standing Data'!D166","v":0}]
[{"$f":"'Standing Data'!$D$12","v":{"$error":"#N/A"}},{"$f":"'Standing Data'!$F$9","v":0},{"$f":"'Standing Data'!#REF!","v":{"$error":"#REF!"}},"Standing Data","B158",{"$f":"'Standing Data'!B175","v":"Please type name here"}]
[{"$f":"'Standing Data'!$D$12","v":{"$error":"#N/A"}},{"$f":"'Standing Data'!$F$9","v":0},{"$f":"'Standing Data'!#REF!","v":{"$error":"#REF!"}},"Standing Data","B161",{"$f":"'Standing Data'!B180","v":0}]
[{"$f":"'Standing Data'!$D$12","v":{"$error":"#N/A"}},{"$f":"'Standing Data'!$F$9","v":0},{"$f":"'Standing Data'!#REF!","v":{"$error":"#REF!"}},"Fin.Return","B578",{"$f":"'Fin.Return - BS'!B188","v":0}]
[{"$f":"'Standing Data'!$D$12","v":{"$error":"#N/A"}},{"$f":"'Standing Data'!$F$9","v":0},{"$f":"'Standing Data'!#REF!","v":{"$error":"#REF!"}},"Fin.Return","D580",{"$f":"'Fin.Return - BS'!D190","v":"No"}]
[{"$f":"'Standing Data'!$D$12","v":{"$error":"#N/A"}},{"$f":"'Standing Data'!$F$9","v":0},{"$f":"'Standing Data'!#REF!","v":{"$error":"#REF!"}},"Fin.Return","B643",{"$f":"'Fin.Return - BS'!B257","v":0}]
[{"$f":"'Standing Data'!$D$12","v":{"$error":"#N/A"}},{"$f":"'Standing Data'!$F$9","v":0},{"$f":"'Standing Data'!#REF!","v":{"$error":"#REF!"}},"Fin.Return","C761",{"$f":"'Fin.Return - BS'!C372","v":"Describe Other here"}]
[{"$f":"'Standing Data'!$D$12","v":{"$error":"#N/A"}},{"$f":"'Standing Data'!$F$9","v":0},{"$f":"'Standing Data'!#REF!","v":{"$error":"#REF!"}},"Fin.Return","C832",{"$f":"'Fin.Return - Other Notes'!C142","v":"Scheme Name"}]
[{"$f":"'Standing Data'!$D$12","v":{"$error":"#N/A"}},{"$f":"'Standing Data'!$F$9","v":0},{"$f":"'Standing Data'!#REF!","v":{"$error":"#REF!"}},"Fin.Return","C833",{"$f":"'Fin.Return - Other Notes'!C143","v":"Scheme Name"}]
[{"$f":"'Standing Data'!$D$12","v":{"$error":"#N/A"}},{"$f":"'Standing Data'!$F$9","v":0},{"$f":"'Standing Data'!#REF!","v":{"$error":"#REF!"}},"Fin.Return","C834",{"$f":"'Fin.Return - Other Notes'!C144","v":"Scheme Name"}]
[{"$f":"'Standing Data'!$D$12","v":{"$error":"#N/A"}},{"$f":"'Standing Data'!$F$9","v":0},{"$f":"'Standing Data'!#REF!","v":{"$error":"#REF!"}},"Fin.Return","E832",{"$f":"'Fin.Return - Other Notes'!E142","v":"Scheme Type"}]
[{"$f":"'Standing Data'!$D$12","v":{"$error":"#N/A"}},{"$f":"'Standing Data'!$F$9","v":0},{"$f":"'Standing Data'!#REF!","v":{"$error":"#REF!"}},"Fin.Return","E833",{"$f":"'Fin.Return - Other Notes'!E143","v":"Scheme Type"}]
[{"$f":"'Standing Data'!$D$12","v":{"$error":"#N/A"}},{"$f":"'Standing Data'!$F$9","v":0},{"$f":"'Standing Data'!#REF!","v":{"$error":"#REF!"}},"Fin.Return","E834",{"$f":"'Fin.Return - Other Notes'!E144","v":"Scheme Type"}]
[{"$f":"'Standing Data'!$D$12","v":{"$error":"#N/A"}},{"$f":"'Standing Data'!$F$9","v":0},{"$f":"'Standing Data'!#REF!","v":{"$error":"#REF!"}},"Fin.Return","G904",{"$f":"'Fin.Return - Other Notes'!G222","v":0}]
[{"$f":"'Standing Data'!$D$12","v":{"$error":"#N/A"}},{"$f":"'Standing Data'!$F$9","v":0},{"$f":"'Standing Data'!#REF!","v":{"$error":"#REF!"}},"Fin.Return","H904",{"$f":"'Fin.Return - Other Notes'!H222","v":0}]
[{"$f":"'Standing Data'!$D$12","v":{"$error":"#N/A"}},{"$f":"'Standing Data'!$F$9","v":0},{"$f":"'Standing Data'!#REF!","v":{"$error":"#REF!"}},"Fin.Return","I904",{"$f":"'Fin.Return - Other Notes'!I222","v":0}]
[{"$f":"'Standing Data'!$D$12","v":{"$error":"#N/A"}},{"$f":"'Standing Data'!$F$9","v":0},{"$f":"'Standing Data'!#REF!","v":{"$error":"#REF!"}},"Fin.Return","J904",{"$f":"'Fin.Return - Other Notes'!J222","v":0}]
[{"$f":"'Standing Data'!$D$12","v":{"$error":"#N/A"}},{"$f":"'Standing Data'!$F$9","v":0},{"$f":"'Standing Data'!#REF!","v":{"$error":"#REF!"}},"Fin.Return","K904",{"$f":"'Fin.Return - Other Notes'!K222","v":0}]
[{"$f":"'Standing Data'!$D$12","v":{"$error":"#N/A"}},{"$f":"'Standing Data'!$F$9","v":0},{"$f":"'Standing Data'!#REF!","v":{"$error":"#REF!"}},"Fin.Return","L904",{"$f":"'Fin.Return - Other Notes'!L222","v":0}]
[{"$f":"'Standing Data'!$D$12","v":{"$error":"#N/A"}},{"$f":"'Standing Data'!$F$9","v":0},{"$f":"'Standing Data'!#REF!","v":{"$error":"#REF!"}},"Fin.Return","M904",{"$f":"'Fin.Return - Other Notes'!M222","v":0}]
[{"$f":"'Standing Data'!$D$12","v":{"$error":"#N/A"}},{"$f":"'Standing Data'!$F$9","v":0},{"$f":"'Standing Data'!#REF!","v":{"$error":"#REF!"}},"Fin.Return","N904",{"$f":"'Fin.Return - Other Notes'!N222","v":0}]
[{"$f":"'Standing Data'!$D$12","v":{"$error":"#N/A"}},{"$f":"'Standing Data'!$F$9","v":0},{"$f":"'Standing Data'!#REF!","v":{"$error":"#REF!"}},"Fin.Return","O904",{"$f":"'Fin.Return - Other Notes'!O222","v":0}]
[{"$f":"'Standing Data'!$D$12","v":{"$error":"#N/A"}},{"$f":"'Standing Data'!$F$9","v":0},{"$f":"'Standing Data'!#REF!","v":{"$error":"#REF!"}},"Fin.Return","P904",{"$f":"'Fin.Return - Other Notes'!P222","v":0}]
[{"$f":"'Standing Data'!$D$12","v":{"$error":"#N/A"}},{"$f":"'Standing Data'!$F$9","v":0},{"$f":"'Standing Data'!#REF!","v":{"$error":"#REF!"}},"Fin.Return","Q904",{"$f":"'Fin.Return - Other Notes'!Q222","v":0}]
[{"$f":"'Standing Data'!$D$12","v":{"$error":"#N/A"}},{"$f":"'Standing Data'!$F$9","v":0},{"$f":"'Standing Data'!#REF!","v":{"$error":"#REF!"}},"Fin.Return","R904",{"$f":"'Fin.Return - Other Notes'!R222","v":0}]
[{"$f":"'Standing Data'!$D$12","v":{"$error":"#N/A"}},{"$f":"'Standing Data'!$F$9","v":0},{"$f":"'Standing Data'!#REF!","v":{"$error":"#REF!"}},"Fin.Return","S904",{"$f":"'Fin.Return - Other Notes'!S222","v":0}]
[{"$f":"'Standing Data'!$D$12","v":{"$error":"#N/A"}},{"$f":"'Standing Data'!$F$9","v":0},{"$f":"'Standing Data'!#REF!","v":{"$error":"#REF!"}},"Fin.Return","T904",{"$f":"'Fin.Return - Other Notes'!T222","v":0}]
[{"$f":"'Standing Data'!$D$12","v":{"$error":"#N/A"}},{"$f":"'Standing Data'!$F$9","v":0},{"$f":"'Standing Data'!#REF!","v":{"$error":"#REF!"}},"Fin.Return","U904",{"$f":"'Fin.Return - Other Notes'!U222","v":0}]
[{"$f":"'Standing Data'!$D$12","v":{"$error":"#N/A"}},{"$f":"'Standing Data'!$F$9","v":0},{"$f":"'Standing Data'!#REF!","v":{"$error":"#REF!"}},"Fin.Return","V904",{"$f":"'Fin.Return - Other Notes'!V222","v":0}]
[{"$f":"'Standing Data'!$D$12","v":{"$error":"#N/A"}},{"$f":"'Standing Data'!$F$9","v":0},{"$f":"'Standing Data'!#REF!","v":{"$error":"#REF!"}},"Fin.Return","W904",{"$f":"'Fin.Return - Other Notes'!W222","v":0}]
[{"$f":"'Standing Data'!$D$12","v":{"$error":"#N/A"}},{"$f":"'Standing Data'!$F$9","v":0},{"$f":"'Standing Data'!#REF!","v":{"$error":"#REF!"}},"Fin.Return","X904",{"$f":"'Fin.Return - Other Notes'!X222","v":0}]
[{"$f":"'Standing Data'!$D$12","v":{"$error":"#N/A"}},{"$f":"'Standing Data'!$F$9","v":0},{"$f":"'Standing Data'!#REF!","v":{"$error":"#REF!"}},"Fin.Return","Y904",{"$f":"'Fin.Return - Other Notes'!AU222","v":0}]
[{"$f":"'Standing Data'!$D$12","v":{"$error":"#N/A"}},{"$f":"'Standing Data'!$F$9","v":0},{"$f":"'Standing Data'!#REF!","v":{"$error":"#REF!"}},"Fin.Return","Z904",{"$f":"'Fin.Return - Other Notes'!AV222","v":0}]
[{"$f":"'Standing Data'!$D$12","v":{"$error":"#N/A"}},{"$f":"'Standing Data'!$F$9","v":0},{"$f":"'Standing Data'!#REF!","v":{"$error":"#REF!"}},"Fin.Return","D1003",{"$f":"'Fin.Return - Other Notes'!D391","v":"Name here"}]
[{"$f":"'Standing Data'!$D$12","v":{"$error":"#N/A"}},{"$f":"'Standing Data'!$F$9","v":0},{"$f":"'Standing Data'!#REF!","v":{"$error":"#REF!"}},"Fin.Return","D1076",{"$f":"'Fin.Return - Other Notes'!D450","v":"Name here"}]
[{"$f":"'Standing Data'!$D$12","v":{"$error":"#N/A"}},{"$f":"'Standing Data'!$F$9","v":0},{"$f":"'Standing Data'!#REF!","v":{"$error":"#REF!"}},"Fin.Return","B1140",{"$f":"'Fin.Return - Other Notes'!B514","v":"Contingent liability 1"}]
[{"$f":"'Standing Data'!$D$12","v":{"$error":"#N/A"}},{"$f":"'Standing Data'!$F$9","v":0},{"$f":"'Standing Data'!#REF!","v":{"$error":"#REF!"}},"Fin.Return","B1141",{"$f":"'Fin.Return - Other Notes'!B515","v":"Contingent liability 2"}]
[{"$f":"'Standing Data'!$D$12","v":{"$error":"#N/A"}},{"$f":"'Standing Data'!$F$9","v":0},{"$f":"'Standing Data'!#REF!","v":{"$error":"#REF!"}},"Fin.Return","B1142",{"$f":"'Fin.Return - Other Notes'!B516","v":"Contingent liability 3"}]
[{"$f":"'Standing Data'!$D$12","v":{"$error":"#N/A"}},{"$f":"'Standing Data'!$F$9","v":0},{"$f":"'Standing Data'!#REF!","v":{"$error":"#REF!"}},"Fin.Return","B1149",{"$f":"'Fin.Return - SOFA'!#REF!","v":{"$error":"#REF!"}}]
[{"$f":"'Standing Data'!$D$12","v":{"$error":"#N/A"}},{"$f":"'Standing Data'!$F$9","v":0},{"$f":"'Standing Data'!#REF!","v":{"$error":"#REF!"}},"Fin.Return","B1150",{"$f":"'Fin.Return - SOFA'!#REF!","v":{"$error":"#REF!"}}]
[{"$f":"'Standing Data'!$D$12","v":{"$error":"#N/A"}},{"$f":"'Standing Data'!$F$9","v":0},{"$f":"'Standing Data'!#REF!","v":{"$error":"#REF!"}},"Fin.Return","B1151",{"$f":"'Fin.Return - SOFA'!#REF!","v":{"$error":"#REF!"}}]
[{"$f":"'Standing Data'!$D$12","v":{"$error":"#N/A"}},{"$f":"'Standing Data'!$F$9","v":0},{"$f":"'Standing Data'!#REF!","v":{"$error":"#REF!"}},"Fin.Return","E1174",{"$f":"'Fin.Return - SOFA'!#REF!","v":{"$error":"#REF!"}}]
[{"$f":"'Standing Data'!$D$12","v":{"$error":"#N/A"}},{"$f":"'Standing Data'!$F$9","v":0},{"$f":"'Standing Data'!#REF!","v":{"$error":"#REF!"}},"Fin.Return","E1232",{"$f":"'Fin.Return - Other Notes'!E610","v":0}]
[{"$f":"'Standing Data'!$D$12","v":{"$error":"#N/A"}},{"$f":"'Standing Data'!$F$9","v":0},{"$f":"'Standing Data'!#REF!","v":{"$error":"#REF!"}},"Fin.Return","I1257",{"$f":"'Fin.Return - Other Notes'!I635","v":0}]
[{"$f":"'Standing Data'!$D$12","v":{"$error":"#N/A"}},{"$f":"'Standing Data'!$F$9","v":0},{"$f":"'Standing Data'!#REF!","v":{"$error":"#REF!"}},"Fin.Return","I1258",{"$f":"'Fin.Return - Other Notes'!I636","v":0}]
[{"$f":"'Standing Data'!$D$12","v":{"$error":"#N/A"}},{"$f":"'Standing Data'!$F$9","v":0},{"$f":"'Standing Data'!#REF!","v":{"$error":"#REF!"}},"Fin.Return","I1259",{"$f":"'Fin.Return - Other Notes'!I637","v":0}]
[{"$f":"'Standing Data'!$D$12","v":{"$error":"#N/A"}},{"$f":"'Standing Data'!$F$9","v":0},{"$f":"'Standing Data'!#REF!","v":{"$error":"#REF!"}},"Fin.Return","I1260",{"$f":"'Fin.Return - Other Notes'!I638","v":0}]
[{"$f":"'Standing Data'!$D$12","v":{"$error":"#N/A"}},{"$f":"'Standing Data'!$F$9","v":0},{"$f":"'Standing Data'!#REF!","v":{"$error":"#REF!"}},"Fin.Return","I1261",{"$f":"'Fin.Return - Other Notes'!I639","v":0}]
[{"$f":"'Standing Data'!$D$12","v":{"$error":"#N/A"}},{"$f":"'Standing Data'!$F$9","v":0},{"$f":"'Standing Data'!#REF!","v":{"$error":"#REF!"}},"Fin.Return","I1262",{"$f":"'Fin.Return - Other Notes'!I640","v":0}]
[{"$f":"'Standing Data'!$D$12","v":{"$error":"#N/A"}},{"$f":"'Standing Data'!$F$9","v":0},{"$f":"'Standing Data'!#REF!","v":{"$error":"#REF!"}},"Fin.Return","I1263",{"$f":"'Fin.Return - Other Notes'!I641","v":0}]
[{"$f":"'Standing Data'!$D$12","v":{"$error":"#N/A"}},{"$f":"'Standing Data'!$F$9","v":0},{"$f":"'Standing Data'!#REF!","v":{"$error":"#REF!"}},"Fin.Return","I1264",{"$f":"'Fin.Return - Other Notes'!I642","v":0}]
[{"$f":"'Standing Data'!$D$12","v":{"$error":"#N/A"}},{"$f":"'Standing Data'!$F$9","v":0},{"$f":"'Standing Data'!#REF!","v":{"$error":"#REF!"}},"Fin.Return","I1265",{"$f":"'Fin.Return - Other Notes'!I643","v":0}]
[{"$f":"'Standing Data'!$D$12","v":{"$error":"#N/A"}},{"$f":"'Standing Data'!$F$9","v":0},{"$f":"'Standing Data'!#REF!","v":{"$error":"#REF!"}},"Fin.Return","I1266",{"$f":"'Fin.Return - Other Notes'!I644","v":0}]
[{"$f":"'Standing Data'!$D$12","v":{"$error":"#N/A"}},{"$f":"'Standing Data'!$F$9","v":0},{"$f":"'Standing Data'!#REF!","v":{"$error":"#REF!"}},"Fin.Return","I1267",{"$f":"'Fin.Return - Other Notes'!I645","v":0}]
[{"$f":"'Standing Data'!$D$12","v":{"$error":"#N/A"}},{"$f":"'Standing Data'!$F$9","v":0},{"$f":"'Standing Data'!#REF!","v":{"$error":"#REF!"}},"Fin.Return","I1268",{"$f":"'Fin.Return - Other Notes'!#REF!","v":{"$error":"#REF!"}}]
[{"$f":"'Standing Data'!$D$12","v":{"$error":"#N/A"}},{"$f":"'Standing Data'!$F$9","v":0},{"$f":"'Standing Data'!#REF!","v":{"$error":"#REF!"}},"Bench.Return","L15",{"$f":"'Bench.Return '!#REF!","v":{"$error":"#REF!"}}]
[{"$f":"'Standing Data'!$D$12","v":{"$error":"#N/A"}},{"$f":"'Standing Data'!$F$9","v":0},{"$f":"'Standing Data'!#REF!","v":{"$error":"#REF!"}},"Bench.Return","L16",{"$f":"'Bench.Return '!#REF!","v":{"$error":"#REF!"}}]
[{"$f":"'Standing Data'!$D$12","v":{"$error":"#N/A"}},{"$f":"'Standing Data'!$F$9","v":0},{"$f":"'Standing Data'!#REF!","v":{"$error":"#REF!"}},"Bench.Return","L17",{"$f":"'Bench.Return '!#REF!","v":{"$error":"#REF!"}}]
[{"$f":"'Standing Data'!$D$12","v":{"$error":"#N/A"}},{"$f":"'Standing Data'!$F$9","v":0},{"$f":"'Standing Data'!#REF!","v":{"$error":"#REF!"}},"Bench.Return","L18",{"$f":"'Bench.Return '!#REF!","v":{"$error":"#REF!"}}]
[{"$f":"'Standing Data'!$D$12","v":{"$error":"#N/A"}},{"$f":"'Standing Data'!$F$9","v":0},{"$f":"'Standing Data'!#REF!","v":{"$error":"#REF!"}},"Bench.Return","L19",{"$f":"'Bench.Return '!#REF!","v":{"$error":"#REF!"}}]
[{"$f":"'Standing Data'!$D$12","v":{"$error":"#N/A"}},{"$f":"'Standing Data'!$F$9","v":0},{"$f":"'Standing Data'!#REF!","v":{"$error":"#REF!"}},"Bench.Return","L20",{"$f":"'Bench.Return '!#REF!","v":{"$error":"#REF!"}}]
[{"$f":"'Standing Data'!$D$12","v":{"$error":"#N/A"}},{"$f":"'Standing Data'!$F$9","v":0},{"$f":"'Standing Data'!#REF!","v":{"$error":"#REF!"}},"Bench.Return","L21",{"$f":"'Bench.Return '!#REF!","v":{"$error":"#REF!"}}]
[{"$f":"'Standing Data'!$D$12","v":{"$error":"#N/A"}},{"$f":"'Standing Data'!$F$9","v":0},{"$f":"'Standing Data'!#REF!","v":{"$error":"#REF!"}},"Bench.Return","L22",{"$f":"'Bench.Return '!#REF!","v":{"$error":"#REF!"}}]
[{"$f":"'Standing Data'!$D$12","v":{"$error":"#N/A"}},{"$f":"'Standing Data'!$F$9","v":0},{"$f":"'Standing Data'!#REF!","v":{"$error":"#REF!"}},"Bench.Return","L23",{"$f":"'Bench.Return '!#REF!","v":{"$error":"#REF!"}}]
[{"$f":"'Standing Data'!$D$12","v":{"$error":"#N/A"}},{"$f":"'Standing Data'!$F$9","v":0},{"$f":"'Standing Data'!#REF!","v":{"$error":"#REF!"}},"Bench.Return","L27",{"$f":"'Bench.Return '!#REF!","v":{"$error":"#REF!"}}]
[{"$f":"'Standing Data'!$D$12","v":{"$error":"#N/A"}},{"$f":"'Standing Data'!$F$9","v":0},{"$f":"'Standing Data'!#REF!","v":{"$error":"#REF!"}},"Bench.Return","L28",{"$f":"'Bench.Return '!#REF!","v":{"$error":"#REF!"}}]
[{"$f":"'Standing Data'!$D$12","v":{"$error":"#N/A"}},{"$f":"'Standing Data'!$F$9","v":0},{"$f":"'Standing Data'!#REF!","v":{"$error":"#REF!"}},"Bench.Return","L29",{"$f":"'Bench.Return '!#REF!","v":{"$error":"#REF!"}}]
[{"$f":"'Standing Data'!$D$12","v":{"$error":"#N/A"}},{"$f":"'Standing Data'!$F$9","v":0},{"$f":"'Standing Data'!#REF!","v":{"$error":"#REF!"}},"Bench.Return","L30",{"$f":"'Bench.Return '!#REF!","v":{"$error":"#REF!"}}]
[{"$f":"'Standing Data'!$D$12","v":{"$error":"#N/A"}},{"$f":"'Standing Data'!$F$9","v":0},{"$f":"'Standing Data'!#REF!","v":{"$error":"#REF!"}},"Bench.Return","L31",{"$f":"'Bench.Return '!#REF!","v":{"$error":"#REF!"}}]
[{"$f":"'Standing Data'!$D$12","v":{"$error":"#N/A"}},{"$f":"'Standing Data'!$F$9","v":0},{"$f":"'Standing Data'!#REF!","v":{"$error":"#REF!"}},"Bench.Return","L32",{"$f":"'Bench.Return '!#REF!","v":{"$error":"#REF!"}}]
[{"$f":"'Standing Data'!$D$12","v":{"$error":"#N/A"}},{"$f":"'Standing Data'!$F$9","v":0},{"$f":"'Standing Data'!#REF!","v":{"$error":"#REF!"}},"Bench.Return","L33",{"$f":"'Bench.Return '!#REF!","v":{"$error":"#REF!"}}]
[{"$f":"'Standing Data'!$D$12","v":{"$error":"#N/A"}},{"$f":"'Standing Data'!$F$9","v":0},{"$f":"'Standing Data'!#REF!","v":{"$error":"#REF!"}},"Bench.Return","L37",{"$f":"'Bench.Return '!#REF!","v":{"$error":"#REF!"}}]
[{"$f":"'Standing Data'!$D$12","v":{"$error":"#N/A"}},{"$f":"'Standing Data'!$F$9","v":0},{"$f":"'Standing Data'!#REF!","v":{"$error":"#REF!"}},"Bench.Return","L41",{"$f":"'Bench.Return '!#REF!","v":{"$error":"#REF!"}}]
[{"$f":"'Standing Data'!$D$12","v":{"$error":"#N/A"}},{"$f":"'Standing Data'!$F$9","v":0},{"$f":"'Standing Data'!#REF!","v":{"$error":"#REF!"}},"Bench.Return","L42",{"$f":"'Bench.Return '!#REF!","v":{"$error":"#REF!"}}]
[{"$f":"'Standing Data'!$D$12","v":{"$error":"#N/A"}},{"$f":"'Standing Data'!$F$9","v":0},{"$f":"'Standing Data'!#REF!","v":{"$error":"#REF!"}},"Bench.Return","L43",{"$f":"'Bench.Return '!#REF!","v":{"$error":"#REF!"}}]
[{"$f":"'Standing Data'!$D$12","v":{"$error":"#N/A"}},{"$f":"'Standing Data'!$F$9","v":0},{"$f":"'Standing Data'!#REF!","v":{"$error":"#REF!"}},"Bench.Return","L44",{"$f":"'Bench.Return '!#REF!","v":{"$error":"#REF!"}}]
[{"$f":"'Standing Data'!$D$12","v":{"$error":"#N/A"}},{"$f":"'Standing Data'!$F$9","v":0},{"$f":"'Standing Data'!#REF!","v":{"$error":"#REF!"}},"Bench.Return","L50",{"$f":"'Bench.Return '!#REF!","v":{"$error":"#REF!"}}]
[{"$f":"'Standing Data'!$D$12","v":{"$error":"#N/A"}},{"$f":"'Standing Data'!$F$9","v":0},{"$f":"'Standing Data'!#REF!","v":{"$error":"#REF!"}},"Bench.Return","L54",{"$f":"'Bench.Return '!#REF!","v":{"$error":"#REF!"}}]
[{"$f":"'Standing Data'!$D$12","v":{"$error":"#N/A"}},{"$f":"'Standing Data'!$F$9","v":0},{"$f":"'Standing Data'!#REF!","v":{"$error":"#REF!"}},"Bench.Return","L55",{"$f":"'Bench.Return '!#REF!","v":{"$error":"#REF!"}}]
[{"$f":"'Standing Data'!$D$12","v":{"$error":"#N/A"}},{"$f":"'Standing Data'!$F$9","v":0},{"$f":"'Standing Data'!#REF!","v":{"$error":"#REF!"}},"Bench.Return","L56",{"$f":"'Bench.Return '!#REF!","v":{"$error":"#REF!"}}]
[{"$f":"'Standing Data'!$D$12","v":{"$error":"#N/A"}},{"$f":"'Standing Data'!$F$9","v":0},{"$f":"'Standing Data'!#REF!","v":{"$error":"#REF!"}},"Bench.Return","L57",{"$f":"'Bench.Return '!#REF!","v":{"$error":"#REF!"}}]
[{"$f":"'Standing Data'!$D$12","v":{"$error":"#N/A"}},{"$f":"'Standing Data'!$F$9","v":0},{"$f":"'Standing Data'!#REF!","v":{"$error":"#REF!"}},"Bench.Return","L58",{"$f":"'Bench.Return '!#REF!","v":{"$error":"#REF!"}}]
[{"$f":"'Standing Data'!$D$12","v":{"$error":"#N/A"}},{"$f":"'Standing Data'!$F$9","v":0},{"$f":"'Standing Data'!#REF!","v":{"$error":"#REF!"}},"Bench.Return","L59",{"$f":"'Bench.Return '!#REF!","v":{"$error":"#REF!"}}]
[{"$f":"'Standing Data'!$D$12","v":{"$error":"#N/A"}},{"$f":"'Standing Data'!$F$9","v":0},{"$f":"'Standing Data'!#REF!","v":{"$error":"#REF!"}},"Bench.Return","L60",{"$f":"'Bench.Return '!#REF!","v":{"$error":"#REF!"}}]
[{"$f":"'Standing Data'!$D$12","v":{"$error":"#N/A"}},{"$f":"'Standing Data'!$F$9","v":0},{"$f":"'Standing Data'!#REF!","v":{"$error":"#REF!"}},"Bench.Return","L63",{"$f":"'Bench.Return '!#REF!","v":{"$error":"#REF!"}}]
[{"$f":"'Standing Data'!$D$12","v":{"$error":"#N/A"}},{"$f":"'Standing Data'!$F$9","v":0},{"$f":"'Standing Data'!#REF!","v":{"$error":"#REF!"}},"Bench.Return","L64",{"$f":"'Bench.Return '!#REF!","v":{"$error":"#REF!"}}]
[{"$f":"'Standing Data'!$D$12","v":{"$error":"#N/A"}},{"$f":"'Standing Data'!$F$9","v":0},{"$f":"'Standing Data'!#REF!","v":{"$error":"#REF!"}},"Bench.Return","L65",{"$f":"'Bench.Return '!#REF!","v":{"$error":"#REF!"}}]
[{"$f":"'Standing Data'!$D$12","v":{"$error":"#N/A"}},{"$f":"'Standing Data'!$F$9","v":0},{"$f":"'Standing Data'!#REF!","v":{"$error":"#REF!"}},"Bench.Return","L66",{"$f":"'Bench.Return '!#REF!","v":{"$error":"#REF!"}}]
[{"$f":"'Standing Data'!$D$12","v":{"$error":"#N/A"}},{"$f":"'Standing Data'!$F$9","v":0},{"$f":"'Standing Data'!#REF!","v":{"$error":"#REF!"}},"Bench.Return","L70",{"$f":"'Bench.Return '!#REF!","v":{"$error":"#REF!"}}]
[{"$f":"'Standing Data'!$D$12","v":{"$error":"#N/A"}},{"$f":"'Standing Data'!$F$9","v":0},{"$f":"'Standing Data'!#REF!","v":{"$error":"#REF!"}},"Bench.Return","L71",{"$f":"'Bench.Return '!#REF!","v":{"$error":"#REF!"}}]
[{"$f":"'Standing Data'!$D$12","v":{"$error":"#N/A"}},{"$f":"'Standing Data'!$F$9","v":0},{"$f":"'Standing Data'!#REF!","v":{"$error":"#REF!"}},"Bench.Return","L75",{"$f":"'Bench.Return '!#REF!","v":{"$error":"#REF!"}}]
[{"$f":"'Standing Data'!$D$12","v":{"$error":"#N/A"}},{"$f":"'Standing Data'!$F$9","v":0},{"$f":"'Standing Data'!#REF!","v":{"$error":"#REF!"}},"Bench.Return","L76",{"$f":"'Bench.Return '!#REF!","v":{"$error":"#REF!"}}]
[{"$f":"'Standing Data'!$D$12","v":{"$error":"#N/A"}},{"$f":"'Standing Data'!$F$9","v":0},{"$f":"'Standing Data'!#REF!","v":{"$error":"#REF!"}},"Bench.Return","L77",{"$f":"'Bench.Return '!#REF!","v":{"$error":"#REF!"}}]
[{"$f":"'Standing Data'!$D$12","v":{"$error":"#N/A"}},{"$f":"'Standing Data'!$F$9","v":0},{"$f":"'Standing Data'!#REF!","v":{"$error":"#REF!"}},"Bench.Return","L78",{"$f":"'Bench.Return '!#REF!","v":{"$error":"#REF!"}}]
[{"$f":"'Standing Data'!$D$12","v":{"$error":"#N/A"}},{"$f":"'Standing Data'!$F$9","v":0},{"$f":"'Standing Data'!#REF!","v":{"$error":"#REF!"}},"Bench.Return","L79",{"$f":"'Bench.Return '!#REF!","v":{"$error":"#REF!"}}]
[{"$f":"'Standing Data'!$D$12","v":{"$error":"#N/A"}},{"$f":"'Standing Data'!$F$9","v":0},{"$f":"'Standing Data'!#REF!","v":{"$error":"#REF!"}},"Bench.Return","L83",{"$f":"'Bench.Return '!#REF!","v":{"$error":"#REF!"}}]
[{"$f":"'Standing Data'!$D$12","v":{"$error":"#N/A"}},{"$f":"'Standing Data'!$F$9","v":0},{"$f":"'Standing Data'!#REF!","v":{"$error":"#REF!"}},"Bench.Return","L86",{"$f":"'Bench.Return '!#REF!","v":{"$error":"#REF!"}}]
[{"$f":"'Standing Data'!$D$12","v":{"$error":"#N/A"}},{"$f":"'Standing Data'!$F$9","v":0},{"$f":"'Standing Data'!#REF!","v":{"$error":"#REF!"}},"Bench.Return","L87",{"$f":"'Bench.Return '!#REF!","v":{"$error":"#REF!"}}]
[{"$f":"'Standing Data'!$D$12","v":{"$error":"#N/A"}},{"$f":"'Standing Data'!$F$9","v":0},{"$f":"'Standing Data'!#REF!","v":{"$error":"#REF!"}},"Bench.Return","L88",{"$f":"'Bench.Return '!#REF!","v":{"$error":"#REF!"}}]
[{"$f":"'Standing Data'!$D$12","v":{"$error":"#N/A"}},{"$f":"'Standing Data'!$F$9","v":0},{"$f":"'Standing Data'!#REF!","v":{"$error":"#REF!"}},"Bench.Return","L89",{"$f":"'Bench.Return '!#REF!","v":{"$error":"#REF!"}}]
[{"$f":"'Standing Data'!$D$12","v":{"$error":"#N/A"}},{"$f":"'Standing Data'!$F$9","v":0},{"$f":"'Standing Data'!#REF!","v":{"$error":"#REF!"}},"Bench.Return","L90",{"$f":"'Bench.Return '!#REF!","v":{"$error":"#REF!"}}]
[{"$f":"'Standing Data'!$D$12","v":{"$error":"#N/A"}},{"$f":"'Standing Data'!$F$9","v":0},{"$f":"'Standing Data'!#REF!","v":{"$error":"#REF!"}},"Bench.Return","L91",{"$f":"'Bench.Return '!#REF!","v":{"$error":"#REF!"}}]
[{"$f":"'Standing Data'!$D$12","v":{"$error":"#N/A"}},{"$f":"'Standing Data'!$F$9","v":0},{"$f":"'Standing Data'!#REF!","v":{"$error":"#REF!"}},"Bench.Return","L95",{"$f":"'Bench.Return '!#REF!","v":{"$error":"#REF!"}}]
[{"$f":"'Standing Data'!$D$12","v":{"$error":"#N/A"}},{"$f":"'Standing Data'!$F$9","v":0},{"$f":"'Standing Data'!#REF!","v":{"$error":"#REF!"}},"Bench.Return","L98",{"$f":"'Bench.Return '!#REF!","v":{"$error":"#REF!"}}]
[{"$f":"'Standing Data'!$D$12","v":{"$error":"#N/A"}},{"$f":"'Standing Data'!$F$9","v":0},{"$f":"'Standing Data'!#REF!","v":{"$error":"#REF!"}},"Bench.Return","L99",{"$f":"'Bench.Return '!#REF!","v":{"$error":"#REF!"}}]
[{"$f":"'Standing Data'!$D$12","v":{"$error":"#N/A"}},{"$f":"'Standing Data'!$F$9","v":0},{"$f":"'Standing Data'!#REF!","v":{"$error":"#REF!"}},"Bench.Return","L100",{"$f":"'Bench.Return '!#REF!","v":{"$error":"#REF!"}}]
[{"$f":"'Standing Data'!$D$12","v":{"$error":"#N/A"}},{"$f":"'Standing Data'!$F$9","v":0},{"$f":"'Standing Data'!#REF!","v":{"$error":"#REF!"}},"Bench.Return","L101",{"$f":"'Bench.Return '!#REF!","v":{"$error":"#REF!"}}]
[{"$f":"'Standing Data'!$D$12","v":{"$error":"#N/A"}},{"$f":"'Standing Data'!$F$9","v":0},{"$f":"'Standing Data'!#REF!","v":{"$error":"#REF!"}},"Bench.Return","L102",{"$f":"'Bench.Return '!#REF!","v":{"$error":"#REF!"}}]
[{"$f":"'Standing Data'!$D$12","v":{"$error":"#N/A"}},{"$f":"'Standing Data'!$F$9","v":0},{"$f":"'Standing Data'!#REF!","v":{"$error":"#REF!"}},"Bench.Return","L106",{"$f":"'Bench.Return '!#REF!","v":{"$error":"#REF!"}}]
[{"$f":"'Standing Data'!$D$12","v":{"$error":"#N/A"}},{"$f":"'Standing Data'!$F$9","v":0},{"$f":"'Standing Data'!#REF!","v":{"$error":"#REF!"}},"Bench.Return","L107",{"$f":"'Bench.Return '!#REF!","v":{"$error":"#REF!"}}]
[{"$f":"'Standing Data'!$D$12","v":{"$error":"#N/A"}},{"$f":"'Standing Data'!$F$9","v":0},{"$f":"'Standing Data'!#REF!","v":{"$error":"#REF!"}},"Bench.Return","L108",{"$f":"'Bench.Return '!#REF!","v":{"$error":"#REF!"}}]
[{"$f":"'Standing Data'!$D$12","v":{"$error":"#N/A"}},{"$f":"'Standing Data'!$F$9","v":0},{"$f":"'Standing Data'!#REF!","v":{"$error":"#REF!"}},"Bench.Return","L114",{"$f":"'Bench.Return '!#REF!","v":{"$error":"#REF!"}}]
[{"$f":"'Standing Data'!$D$12","v":{"$error":"#N/A"}},{"$f":"'Standing Data'!$F$9","v":0},{"$f":"'Standing Data'!#REF!","v":{"$error":"#REF!"}},"Bench.Return","L115",{"$f":"'Bench.Return '!#REF!","v":{"$error":"#REF!"}}]
[{"$f":"'Standing Data'!$D$12","v":{"$error":"#N/A"}},{"$f":"'Standing Data'!$F$9","v":0},{"$f":"'Standing Data'!#REF!","v":{"$error":"#REF!"}},"Bench.Return","L116",{"$f":"'Bench.Return '!#REF!","v":{"$error":"#REF!"}}]
[{"$f":"'Standing Data'!$D$12","v":{"$error":"#N/A"}},{"$f":"'Standing Data'!$F$9","v":0},{"$f":"'Standing Data'!#REF!","v":{"$error":"#REF!"}},"Bench.Return","L117",{"$f":"'Bench.Return '!#REF!","v":{"$error":"#REF!"}}]
[{"$f":"'Standing Data'!$D$12","v":{"$error":"#N/A"}},{"$f":"'Standing Data'!$F$9","v":0},{"$f":"'Standing Data'!#REF!","v":{"$error":"#REF!"}},"Bench.Return","L118",{"$f":"'Bench.Return '!#REF!","v":{"$error":"#REF!"}}]
[{"$f":"'Standing Data'!$D$12","v":{"$error":"#N/A"}},{"$f":"'Standing Data'!$F$9","v":0},{"$f":"'Standing Data'!#REF!","v":{"$error":"#REF!"}},"Bench.Return","L119",{"$f":"'Bench.Return '!#REF!","v":{"$error":"#REF!"}}]

{"sheet":"Change log","index":14,"n_rows":2,"n_cols":8,"rows_kept":2,"cut":false,"hidden":false,"merged":[]}
["March 2016 Accounts Return - post publication change log"]
["Update No","Sheet","Cell References","Name","Issue","Amendment","Actioned?","Requires change to guidance?"]